{"text_format":"1","workbook":"xlsx","n_sheets":5,"sheets":["OrigTable","HdrFtr","Sheet5","ScriptText","FullScript"],"not_rendered":{"charts":0,"images":1,"macros":1,"external_links":0,"defined_names":0,"comments":0,"pivot_tables":0},"unopened":[],"bounds":{"document_bytes":16777216,"sheet_cells":100000,"rows_first":2000,"rows_last":500,"rows_between":2000,"halvings":0,"cell_chars":16384,"cell_head_chars":4096},"cells_cut":0,"cells_raw":0,"read":"whole","date_system":"1900"}

{"sheet":"OrigTable","index":0,"n_rows":500,"n_cols":4,"rows_kept":500,"cut":false,"hidden":false,"merged":[]}
[null,"Table Name:","CP Notices"]
[]
[]
[]
["CP No.","Amt. (If applicable)","Explanation","Type Notice"]
[1,null,"We have verified your claim of identity theft.","IMF Notices"]
["01A",null,"We’ve assigned you an identity protection Personal Identification Number (PIN).","IMF Notices"]
["01B",null,"Message about potential Identity Theft during return processing.","IMF Notices"]
["01E",null,"Employment Related Identity Theft Notice","IMF Notices"]
["01F",null,"An identity protection Personal Identification Number will be mailed to you.","IMF Notices"]
["01H",null,"We are unable to process your tax return which was submitted with Locked SSN.","IMF Notices"]
["01L",null,"Your federal tax account has been locked as requested.","IMF Notices"]
["01R",null,"We are unable to process your tax return.","IMF Notices"]
["01S",null,"We received your Form 14039 or similar statement for your Identity Theft claim.","IMF Notices"]
["01U",null,"We unlocked your federal tax account.","IMF Notices"]
["02H",null,"Casualty/Disaster Loss reminder notice (Katrina/Wilma/Rita).","IMF Notices"]
["03C",null,"Important information about your First-Time Home Buyers Credit reporting of any change to your primary residence.","IMF Notices"]
[4,null,"Important information about your Combat Zone tax deferment, we need information about your dates of service.","IMF Notices"]
[5,null,"We’re holding your refund until we finish reviewing your tax return.","IMF Notices"]
["05A",null,"We need more information to determine whether you’re due a refund.","IMF Notices"]
["05B",null,"We need more information to determine whether you’re due a refund","IMF Notices"]
[7,null,"We're holding your refund for further review-1040NR.","IMF Notices"]
[6,null,"Premiun Tax Credit Verification, supporting docs requested refund frozen","IMF Notices"]
["06A",null,"Premiun Tax Credit Verification, supporting docs requested possible bal due or even balance","IMF Notices"]
[8,null,"You may be entitled to additional Child Tax Credit – You may qualify for a refund.","IMF Notices"]
[9,null,"You may be entitled to Earned Income Credit – you may qualify for a refund.","IMF Notices"]
[10,null,"Math Error notice with reduced credit elect.","IMF Notices"]
["10A",null,"EIC Math Error notice with reduced credit elect.","IMF Notices"]
[11,null,"Math Error notice with balance due of $5.00 or more.","IMF Notices"]
["11A",null,"EIC Math Error notice with balance due of $5.00 or more.","IMF Notices"]
[12,null,"Math Error notice with overpayment of $1.00 or more.","IMF Notices"]
["12A",null,"EIC Math Error notice with overpayment of $1.00 or more.","IMF Notices"]
["12E, F, G,\nN, U",null,"Exam coded Math Error notice with overpayment of $1.00 or more.","IMF Notices"]
[13,null,"Math Error notice with a balance due < $5.00 or overpayment < $1.00.","IMF Notices"]
["13A",null,"EIC Math Error notice with a balance due < $5.00 or overpayment < $1.00.","IMF Notices"]
["13M",null,"Making Work Pay Math Error notice with a balance due < $5.00 or overpayment < $1.00.","IMF Notices"]
[14,null,"Notice with a balance due of $5.00 or More, no Math Error.","IMF Notices"]
["14H",null,"You have an unpaid shared responsibility payment (Affordable Care Act or ACA)","IMF Notices"]
["14I",null,"Notice with a balance due of $5.00 or More, no Math Error (IRAF).","IMF Notices"]
[15,null,"Notice of civil penalty charge, various penalties.","IMF Notices"]
["15H",null,"We charged you a shared responsibility payment for not having minimum essential health coverage\n(ACA)","IMF Notices"]
["15B",null,"Notice of civil penalty charge, Trust Fund Recovery Penalty (MFT 55).","IMF Notices"]
[16,null,"Math Error notice with an overpayment applied to another IMF tax liability.","IMF Notices"]
[17,null,"Notice of refund of unfrozen, excess estimated credits.","IMF Notices"]
["19E,\nF,or G",null,"Notice of Examination unallowable items with Balance Due, response required. , various audit codes.","IMF Notices"]
["20E,\nF, or G",null,"Notice of Examination unallowable items with overpayment, response required. , various audit codes.","IMF Notices"]
["21A",null,"Notice of Data Processing adjustments, resulting in a balance due of $5.00 or more when account is in TDA/BAL DUE status.","IMF Notices"]
["21B",null,"Notice of Data Processing adjustments resulting in an overpayment of $1.00 or more.","IMF Notices"]
["21C",null,"Notice of Data Processing adjustments resulting in a balance due < $5.00 or an overpayment < $1.00.","IMF Notices"]
["21E",null,"Notice of Examination adjustments, resulting in a change to an account in TDA/BAL DUE status.","IMF Notices"]
["21H",null,"Changes to your shared responsibility payment (ACA)","IMF Notices"]
["21I",null,"Notice of Data Processing adjustments, resulting in a balance due of $5.00 or more when account is in TDA/BAL DUE status (IRAF).","IMF Notices"]
["22A",null,"Notice of Data Processing adjustments, resulting in a balance due of $5.00 or more when an account isn’t in TDA/BAL DUE status.","IMF Notices"]
["22E",null,"Notice of Examination adjustments, resulting in changes to an account isn’t in TDA/BAL DUE status.","IMF Notices"]
["22H",null,"Changes to your shared responsibility payment (ACA)","IMF Notices"]
["22I",null,"Notice of Data Processing adjustments, resulting in a balance due of $5.00 or more when account isn’t in TDA/BAL DUE status (IRAF).","IMF Notices"]
[23,null,"Notice of estimated credits discrepancy with a balance due of $5.00 or more.","IMF Notices"]
[25,null,"Notice of estimated credits discrepancy with a balance due of < $5 or an overpayment of < $1.00.","IMF Notices"]
[27,null,"Notice to a taxpayer without qualifying children of possible refund due to Earned Income Credit eligibility.","IMF Notices"]
[29,null,"Campus notice only: Amended Return Posted, No Original.","IMF Notices"]
["29I",null,"Campus notice only: Amended Return Posted, No Original IRAF.","IMF Notices"]
[30,null,"Notice to taxpayer of reduced refund due to payment of penalty for failure to pay estimated taxes.","IMF Notices"]
["30A",null,"Notice to taxpayer of refund due to recalculation of penalty for failure to pay estimated taxes.","IMF Notices"]
[32,null,"Notice to taxpayer of replacement refund check for one that expired as uncashed.","IMF Notices"]
["32A",null,"Notice to taxpayer that a replacement refund check will not be issued unless the taxpayer contacts us.","IMF Notices"]
[35,null,"Campus notice only:  Duplicate Filing (Transfer-In) Doc Code 51.","IMF Notices"]
["35A",null,"Campus notice only: Requision Form for First Return.","IMF Notices"]
[36,null,"Campus notice only: Issued each time a return, or a 290 transaction with a DLN block number between 200 and 299 (Form 1040X) posts to a module with a return with transaction code 150, 976 or 977 already\nposted.","IMF Notices"]
["36B",null,"Campus notice only: Requision form for first return.","IMF Notices"]
["36C",null,"Campus notice only: Routing of substitute for return doc to SFR unit.","IMF Notices"]
["36D",null,"Campus notice only: This notice is generated whenever TC 150, doc code 05, 07, 09, or 11, posts with blocking 920-929 indicating that Form 8379, Injured Spouse Claim and Allocation, was filed. Original return and claim are sent to IMF Adjustments Branch for processing.","IMF Notices"]
["36S",null,"Campus notice only: Mixed entity or potential scrambled SSN.","IMF Notices"]
["36I",null,"Duplicate Filing Notice (IRAF)","IMF Notices"]
["36Z",null,"Duplicate Filing Condition - Automated Substitute for Return","IMF Notices"]
[37,null,"Campus notice only: This notice is generated whenever a Form 2363 is input to the IMF to change a social security number or name control (or by a generated resequencing as a result of SSN revalidation) but the account fails to properly resequence because the resequence transaction matches another account on SSN but fails to match on any name control. The account  attempting to resequence is restored to its original location on IMF.","IMF Notices"]
[38,null,"Campus notice only: Issued for the DATC/ASTA project.","IMF Notices"]
[39,null,"Notice to inform the taxpayer that an overpayment from a secondary SSN account has been applied to his/her balance due.","IMF Notices"]
[40,null,"Assigning Delinquent Account to a Private Collection Agency","IMF Notices"]
[41,null,"Campus notice only: Issued to notify the Campus that an unresolved manual refund freeze has been present on the master file for more than 7 cycles.","IMF Notices"]
["41I",null,"Campus notice only: Issued to notify the Campus that an unresolved manual refund freeze has been present on the master file for more than 7 cycles.(IRAF)","IMF Notices"]
[42,null,"Notice to inform the taxpayer that an overpayment from their account has been applied to pay a balance due in a secondary SSN account.","IMF Notices"]
[43,null,"Campus notice only: This notice is issued to notify the Campus of the account controlling name line in order that a name change to the tax year prior to the latest year on file may be input correctly and cause the\naccount to properly resequence.","IMF Notices"]
[44,null,"Notice to a taxpayer of delay in processing refund when it might be applied to a NMF account.","IMF Notices"]
[45,null,"Notice to a taxpayer of a change in the amount of credit elect applied to his/her next year’s tax return.","IMF Notices"]
[46,null,"Campus notice only: Issued to notify the Campus that a refund is due on an “L” or “W” coded income tax\nreturn, and there is no second name for that return on the master file.","IMF Notices"]
[48,null,"ITIN Deactivation","IMF Notices"]
[49,null,"Notice to a taxpayer that an overpayment was applied to an unpaid IMF liability or liabilities.","IMF Notices"]
["51A,",null,"Notice to a taxpayer the IRS calculated their taxes for them resulting in a balance due of $5.00 or more.","IMF Notices"]
["51B",null,"Notice to a taxpayer the IRS calculated their taxes for them resulting in an overpayment of $1.00 or more.","IMF Notices"]
["51C",null,"Notice to a taxpayer the IRS calculated their taxes for them resulting in a balance due of < $5.00 or an\noverpayment < $1.00.","IMF Notices"]
[52,null,"Notice to taxpayer explaining a correction to reduce taxable self-employment earnings.","IMF Notices"]
[53,null,"Notice to taxpayer that the IRS was unable to direct deposit and a paper refund check will be sent by mail.","IMF Notices"]
["53A",null,"Notice to taxpayer that the IRS was unable to direct deposit because of rejection by the financial institution, and we are researching the taxpayer account.","IMF Notices"]
["53B",null,"Direct Deposit refund rejected by financial institution, paper ck issued","IMF Notices"]
["53C",null,"Direct Deposit refund rejected by financial institution, we are researching your request","IMF Notices"]
["53D",null,"We can't direct deposit as too many requests to the same account","IMF Notices"]
["54B",null,"Notice to taxpayer that there is a problem with the name and SSN on the return, refund delayed.","IMF Notices"]
["54E",null,"Notice of inquiry regarding a problem with the name and SSN on estimated tax payments.","IMF Notices"]
["54G",null,"Notice of inquiry regarding the name and SSN on a tax return with an even balance due.","IMF Notices"]
["54Q",null,"Second notice of inquiry regarding name and SSN on a tax return with a possible refund.","IMF Notices"]
[55,null,"Campus notice only: Issued to inform the Campus that a transaction for a Form 5344 adjustment posts (DC47) with a DLN in a 790-799 or 900-999 blocking series to cause association of the original return with an adjustment made utilizing a taxpayer’s retained copy of a return. Also generated on Forms 1040X in blocking series 900-909 (TC294/295), 960-969 (TC290), 980-989 (TC290) and MFT55 block 530-539\n(TC290). Does not generate on civil penalty modules for blocking series 530-539, 960-969 and 980-989 if prior control DLN is 59X. For additional blocking series information refer to Chapter 4.","IMF Notices"]
[59,null,"First notice issued to inform the taxpayer that we have no record of a tax return filed. (IMF).","IMF Notices"]
[60,null,"Notice advising the taxpayer of a credit reversal adjustment to their account causing a balance due of $5.00 or more.","IMF Notices"]
[62,null,"Notice to taxpayer of credit transfer based on their correspondence. It also notifies the taxpayer that their account is a bal due, even balance or refund due which will be issued soon.","IMF Notices"]
[63,null,"Notice to the taxpayer that their refund is on hold until all other tax returns are filed.","IMF Notices"]
[64,null,"Campus notice only: Notice of Tentative Carryback Allowance.","IMF Notices"]
[71,null,"Annual reminder notice to the taxpayer of their balance due module(s), that are in status 23 with a module balance of $25.00 or more.","IMF Notices"]
["71A",null,"Annual reminder notice to the taxpayer of their balance due on a module(s), that have been in currently-not- collectible status (53) for at least 65 cycles with closing code 12 or 24-32, 39.","IMF Notices"]
["71C",null,"Annual reminder notice to the taxpayer of their balance due module(s) that are in status 24 with a module\nbalance of $25.00 or more. The notice will reflect a CSCO return address and an ACS telephone number.","IMF Notices"]
["71D",null,"Annual reminder notice to the taxpayer of their balance due module(s) that are in status 22 or status 26 for 1\nyear or more if the balance due is $25.00 or more.","IMF Notices"]
["71H",null,"Annual reminder notice to taxpayers with balance due modules from ACA, all statuses.","IMF Notices"]
[74,null,"Notice to the taxpayer they have successfully re-certified for the Earned Income Credit.","IMF Notices"]
[75,null,"Initial Exam notice to the taxpayer telling them that their refund for Earned Income Credit is frozen pending\nan examination of their return, requesting additional documentation.","IMF Notices"]
["75A",null,"Initial Exam notice to the taxpayer telling them that their return is being examined for Earned Income Credit\nand addition child tax credit, requesting additional documentation. .","IMF Notices"]
["75C",null,"Notice to taxpayer informing them that their claimed Earned Income Credit refund has been disallowed due to their being banned from filing for Earned Income Credit.","IMF Notices"]
["75D",null,"Initial Exam notice to taxpayer, requesting supporting documentation for Earned Income Credit, filing status and/or dependent information. Entire refund is frozen.","IMF Notices"]
[76,null,"Notice to the taxpayer informing them that their Earned Income Credit claim has been allowed and if a refund is due it will be issued within 8 weeks.","IMF Notices"]
[77,null,"Final Demand Notice, Notice of Intent to Levy and Notice of Your Right to an Appeals Hearing (Used for the\nAlaska Permanent Fund Dividend (AKPFD) Levy Program).","IMF Notices"]
[79,null,"Notice Issued to taxpayers to inform them of their obligation to re-certify for Earned Income Credit with a\nForm 8862 on the next return they claim Earned Income Credit.","IMF Notices"]
["79A",null,"Notice issued to taxpayers informing them they are banned from claiming the Earned Income Credit for two years, and must re-certify to claim the Earned Income Credit in the first year after the ban has been lifted.","IMF Notices"]
["79B",null,"Notice issued to taxpayers to inform them they are banned from claiming the Earned Income Credit for ten years, and must re-certify to claim the Earned Income Credit in the first year after the ban has been lifted.","IMF Notices"]
[80,null,"Reminder notice that we still haven’t received taxpayer return, with credit waiting for possible refund.","IMF Notices"]
[81,null,"Reminder notice issued within 6 months of expiration date for refunding a credit when no return has been filed.","IMF Notices"]
[83,null,"Campus notice only: issued when a math error is referred to Exam.","IMF Notices"]
["85A",null,"Exam soft notice requesting confirmation of filing status. Master File will contain a TC 971, Action Code (AC) 138.","IMF Notices"]
["85B",null,"Exam soft notice requesting confirmation of a qualifying child for Earned Income Credit. Master File will contain a TC 971, Action Code (AC) 138.","IMF Notices"]
["85C",null,"Exam soft notice requesting confirmation of Schedule C income. Master File will contain a TC 971, Action\nCode (AC) 138.","IMF Notices"]
[86,null,"Campus notice only: Issued when revenue receipt is input to a module restricted from generating interest or FTP.","IMF Notices"]
["87A",null,"Exam soft notice requesting confirmation of a qualifying child for Earned Income Credit, who was claimed on another return. Master File will contain a TC 971, Action Code (AC) 138.","IMF Notices"]
["87B",null,"Exam soft notice requesting confirmation that the taxpayer can claim an exemption for themselves when another taxpayer also claimed them as an exemption. Master File will contain a TC 971, Action Code (AC) 138.","IMF Notices"]
["87C",null,"Exam soft notice requesting confirmation that the taxpayer can claim a person as a dependent who is over the age of 23 and had reported gross income more than allowed for a dependent. Master File will contain a TC 971, Action Code (AC) 138.","IMF Notices"]
["87D",null,"Exam soft notice requesting confirmation that the taxpayer can claim an exemption for a dependent that was also claimed on a joint return. Master File will contain a TC 971, Action Code (AC) 138.","IMF Notices"]
[88,null,"Notice to taxpayer that their current year refund is being held because they haven’t filed a prior year return\nwith reason to believe taxes will be owed.","IMF Notices"]
[89,null,"Annual reminder notice for taxpayers with installment agreements showing all payments for the year and\ncurrent balances on all modules in the agreement.","IMF Notices"]
[90,null,"Final Demand Notice, Notice of Intent to Levy and Notice of Your Right to an Appeals hearing for the Federal Payment Levy Program.","IMF Notices"]
["90C",null,"Final Demand Notice, Notice of Intent to Levy and Notice of Your Right to an Appeals hearing for the Federal Payment Levy Program, specifically for federal contractors.","IMF Notices"]
[91,null,"Final Demand Notice, Notice of Intent to Levy and Notice of Your Right to an Appeals hearing for the Federal Payment Levy Program, specifically for 15% levy on Social Security Benefits.","IMF Notices"]
[92,null,"Notice of Levy on State Income tax refund and notice of your right to a CDP hearing","IMF Notices"]
[93,null,"Campus only notice: generated when a module contains a duplicate filing condition and an unreversed TC 420 or TC 576.","IMF Notices"]
[94,null,"Notice of Levy for Criminal Restitution","IMF Notices"]
[96,null,"Campus only notice: Used to journalize the amount of a transfer out and to prepare the transfer document.\nGenerated whenever a TC 400 posts to a tax module.","IMF Notices"]
["96I",null,"Campus only notice: Account transfer out transcript","IMF Notices"]
[98,null,"Campus only notice: Generated to notify the Campus that the return (TC 150) has posted to a module in\nwhich such notification was previously requested.","IMF Notices"]
["98A",null,"Campus only notice: Generated to notify the Campus that the return (TC 150) has posted to a module in\nwhich such notification was previously requested.","IMF Notices"]
[301,null,"eAuthentication Acknowledgement Notice.","IMF Notices"]
[2000,null,"Issued to taxpayer to request verification for unreported income, payments, or credits.","IRP Notices"]
[2005,null,"Computer generated letter to taxpayer acknowledging the receipt of information concerning their tax liability and closing their account (Underreporter issue).","IRP Notices"]
[2006,null,"Computer generated letter to taxpayer acknowledging the receipt of information concerning their tax\nliability.","IRP Notices"]
[2057,null,"Check your records to confirm the income you received","IRP Notices"]
[2100,null,"Check Your Backup Withholding List (\"Large\" payers)","IRP Notices"]
["2100A",null,"Please Check Your Backup Withholding List (\"Small\" payers)","IRP Notices"]
[2501,null,"Initial contact notice to resolve discrepancy between Income, Credits and/or deductions claimed on return and those reported by payers on information returns.","IRP Notices"]
[2566,null,"You must file your tax return","IRP Notices"]
["2566R",null,"We may apply your refund to tax due","IRP Notices"]
["3219A",null,"Increase in tax and notice of your right to challenge, IMF","IRP Notices"]
["3219N",null,"ASFR Statutory Notice of Deficiency - 90-Day Letter","IRP Notices"]
["3219N(SP)",null,"ASFR Spanish Statutory Notice of Deficiency - 90-Day Letter","IRP Notices"]
[80,null,"Reminder - we have not received your return","BMF Notices"]
[81,null,"We may have a refund for you","BMF Notices"]
[101,"Yes","Math error on Form 940 or 940EZ resulting in a net balance due.","BMF Notices"]
[102,"Yes","Math error on Form 941, 943, 944 or 945 resulting in a net balance due.","BMF Notices"]
[103,"Yes","Math error on Form CT-1 resulting in a net balance due.","BMF Notices"]
[104,"Yes","Math error on Form 720 resulting in a net balance due.","BMF Notices"]
[105,"Yes","Math error on Form 11C, 706, 709, 2290 or 730 resulting in a net balance due.","BMF Notices"]
[106,"Yes","Math error on Form 990PF, 5227, 5330 or 4720 resulting in a net balance due.","BMF Notices"]
[107,"Yes","Math error on Form 1042 resulting in a net balance due.","BMF Notices"]
[108,"Yes","Problem with your Federal Tax Deposit (FTD), error on FTD coupon/EFTPS payment","BMF Notices"]
[110,null,"Math Error on Form 1066 - Balance Due of $5 or More on Form 1066 – Obsoleted in 2016 per Unified Work Request (UWR) 93310 – Obsoletion of CP 110 and CP 118. Keep\nfor Historical information and for prior years.","BMF Notices"]
[111,"Yes","Math Error on Form 940 or 940EZ resulting in a net overpayment.","BMF Notices"]
[112,"Yes","Math Error on Form 941,943 or 944 resulting in a net overpayment.","BMF Notices"]
[113,"Yes","Math Error on Form CT-1 resulting in a net overpayment.","BMF Notices"]
[114,"Yes","Math Error on Form 720 resulting in a net overpayment.","BMF Notices"]
[115,"Yes","Math Error on Form 11C, 706, 709, 2290 or 730 resulting in a net overpayment.","BMF Notices"]
[116,"Yes","Math Error on Form 990-PF, 5227, 5330 or 4720 resulting in a net overpayment.","BMF Notices"]
[117,"Yes","Math Error on Form 1042 resulting in a net overpayment.","BMF Notices"]
[118,null,"Overpayment/Even Balance - Form 1066 – Obsoleted in 2016 per Unified Work Request\n(UWR) 93310 – Obsoletion of CP 110 and CP 118. Keep for Historical information and for prior years.","BMF Notices"]
[119,null,"Supplemental Group Ruling Information (SGRI) notice and subordinate listing, Replacement for Letter 1582O","BMF Notices"]
[120,null,"Verify Tax Exempt Status was revoked","BMF Notices"]
["120A",null,"Revocation notice of tax exempt status, for failure to file an annual information return for 3 years","BMF Notices"]
["120B",null,"Revocation notice of tax exempt status due to non-recognition as subordinate in a group\nexemption letter","BMF Notices"]
[123,"Yes","Math error, overpayment or balance due of less than $1 on Form CT-1","BMF Notices"]
[124,"Yes","Math error on Form 720 with the net result a zero less than a $1.00 balance.","BMF Notices"]
[125,"Yes","Math error on Form 11-C, 706, 709, 2290 or 730 with the net result a zero or less than a\n$1.00 balance.","BMF Notices"]
[126,"Yes","Math error on Form 990-PF, 5227, 5330 or 4720 with the net result a zero or less\nthan a $1.00 balance.","BMF Notices"]
[127,"Yes","Math error on Form 1042 with the net result a zero or less than a $1.00 balance.","BMF Notices"]
[128,"Yes","Notification of the remaining balance due on a tax period after an offset-in.","BMF Notices"]
[130,"Yes","Notification of possible exemption from Alternative Minimum Tax","BMF Notices"]
[131,"Yes","Math error on Form 1120 series, 1041, Form 8804, 990-C or 990-T with the net result a zero or less than a $1.00 balance.","BMF Notices"]
["131A","Yes","Math error on Form 1120 series, 1041, Form 8804, 990-C or 990-T with the net result a\nbalance due under $5.00","BMF Notices"]
[132,"Yes","Math error on Form 1120 series, 1041, Form 8804, 990-C or 990-T resulting in a balance\ndue.","BMF Notices"]
[133,"Yes","Math error on Form 1120 series, 1041, Form 8804, 990-C or 990-T resulting in a net overpayment.","BMF Notices"]
["134B","Yes","FTD discrepancy – Balance due","BMF Notices"]
["134R","No","FTD discrepancy – Refund due","BMF Notices"]
[135,"No","Campus notice only - Notification to AC International—Collection that a new foreign\naddress has posted to the entity with a tax period in delinquent status because the taxpayer was out of the country.","BMF Notices"]
[136,"No","Annual Notification of FTD Deposit Requirements (941, 941SS)","BMF Notices"]
["136B","No","Your Federal Tax Deposit Requirements for (Form 941) figured using the second preceding calendar year Form 944 as the Form 941 lookback period.","BMF Notices"]
[137,"No","Annual Notification of FTD Deposit Requirements (Form 943)","BMF Notices"]
["137A","No","Annual Notification of FTD Deposit Requirements (Form CT-1)","BMF Notices"]
["137B","No","Annual Notification of FTD Deposit Requirements (Form 945)","BMF Notices"]
[138,null,"Notification that the overpayment on the return was offset against another tax period with a balance due","BMF Notices"]
["141C","Yes","We charged a penalty under IRC section 6652c - Form filed late and incomplete.","BMF Notices"]
["141I","Yes","We charged a penalty under IRC section 6652c – Form incomplete","BMF Notices"]
["141L","Yes","We charged a penalty under IRC section 6652c - Form filed late.","BMF Notices"]
["141R",null,"Notification of penalty removal for exempt organization returns","BMF Notices"]
[142,null,"Request for reason of Late Filing a Tax Exempt Bond Return (Form 8038, 8038-G or\n8038-GC)","BMF Notices"]
[143,null,"Late Filing Accepted of a Tax Exempt Bond Return (Form 8038, 8038-G or 8038-GC)","BMF Notices"]
[145,"Yes","Credit Elect to Succeeding Year On forms CT-1, 720, 941, 942, 943, 1041, 1042, 1120C, 1120F, 1120L and 1120M","BMF Notices"]
[147,"Yes","Credit Elect additional amount applied","BMF Notices"]
["148A",null,"Notification of Change of address sent to new address","BMF Notices"]
["148B",null,"Notification of Change of address sent to old address","BMF Notices"]
[152,null,"Tax Exempt Bond Acknowledgement","BMF Notices"]
["152A",null,"We received your tax-advantaged bond form (Sequestration Reduction of Credit)","BMF Notices"]
[153,"No","Notice of ETF refund not allowed","BMF Notices"]
[155,null,"Campus notice only: Notice to refile return – Forms 94X, 1120","BMF Notices"]
[156,"Yes","We applied the sequestration rate to your credit","BMF Notices"]
[160,"Yes","Annual notification to remind the taxpayer of a balance due on prior tax periods.\n(1) Modules in status 23 with a module balance of $25.00 or more and\n(2) Module in status 22 with an unreversed TC 530 with closing code 09 and module balance of $25.00 or more.","BMF Notices"]
[161,"Yes","Notification of the tax, penalty and interest due for a tax return without a math error\nexcept 1065.","BMF Notices"]
[162,"Yes","Notification that an additional penalty has been assessed for missing information or late filing on Form 1065.","BMF Notices"]
[163,"Yes",null,"BMF Notices"]
[164,"Yes","Campus only notification to Appellate of a posting Tentative Carryback adjustment.","BMF Notices"]
[165,"Yes","Notification that a check for Federal Tax Deposits/Estimated Taxes has been dishonored.\nRequests repayment of the check plus the bad check penalty assessed.","BMF Notices"]
[166,"Yes","Informs taxpayer of a default on a Direct Debit Installment Agreement (DDIA) due to insufficient funds. DDIA payments are electronic payments and not subject to an IRC\n6657 bad check penalty charge.","BMF Notices"]
[169,"No","Notification that the return filed is missing and requesting that a copy be furnished.","BMF Notices"]
[170,"No","Campus only notice : that a duplicate return tried to post from a TC 370 (doc. code 51)","BMF Notices"]
[171,"Yes","Generated annually as a reminder to the taxpayer of balance due tax modules in status\n24. Will reflect CSCO return addresses and ACS telephone numbers. The tolerance is\n$25.00.","BMF Notices"]
[172,null,"Campus only notice: requesting follow-up action on an entity that was established as\nexempt for Social Security taxes","BMF Notices"]
[173,"No","Notification of Estimated Tax Penalty due on Form 1120 series, 1041, 990-C, 990-T and\n990-PF.","BMF Notices"]
[177,null,"177 Notice of Levy and Notice of Your Right to a Hearing (Used for the Alaska\nPermanent Fund Dividend (AKPFD) Levy Program)","BMF Notices"]
[178,"No","Taxpayer not liable to file Form 720","BMF Notices"]
[180,null,"Missing schedule on Form 1120 series (except Form 1120-S), Form 1041, Form 990-C, and Form 990-T","BMF Notices"]
["180B",null,"Corporate Income Tax Return Incomplete – Obsoleted in 2010 per Office of Taxpayer Communication (OTC) email dated November 17, 2021. Keep for Historical information\nand for prior years.","BMF Notices"]
[181,null,"Missing schedule on Form 1120 series (except Form 1120-S), Form 1041, Form 990-C,\nand Form 990-T","BMF Notices"]
["181B",null,"Corporate Income Tax Return Incomplete – Obsoleted in 2010 per Office of Taxpayer Communication (OTC) email dated November 17, 2021. Keep for Historical information and for prior years.","BMF Notices"]
[182,null,"Missing Form 3468 on Form 1120, Form 1120-C, Form 1120-F, Form 1120-POL, Form 1041, Form 990-C, and Form 990-T","BMF Notices"]
["182B",null,"Estate/Trust Tax return incomplete – Obsoleted in 2010 (Obsoleted on SNIP in 2021) per\nOffice of Taxpayer Communication (OTC) email dated November 17, 2021. Keep for Historical information and for prior years.","BMF Notices"]
[183,null,"Breakdown of Liability By Abstract Number on Form 720","BMF Notices"]
[185,"No","Campus notice only: that a TC 690 (Designated Payment of Penalty) posted assessment of the penalty is posted.","BMF Notices"]
[186,"No","Campus notice only: of a potential manual interest or penalty adjustment.","BMF Notices"]
[187,"Yes","Annual reminder to BMF taxpayers of balance due account in statues 22 or 26.","BMF Notices"]
[188,"No","Notification to Collection that a credit is available on a taxpayer’s account for applying to a non-master file balance due. Part 2 of the notice can be used for mailing to the taxpayer.","BMF Notices"]
[190,"No","Campus notice only: Notification that an amended return was received but an original\nreturn was not received.","BMF Notices"]
[191,"No","Campus notice only: Notification to SC Accounting to update the installment billing clerks\nfile.","BMF Notices"]
[192,"No","Campus notice only: Notification to SC that an account with an Employment Code G has filed a Form 941 or 943 with Social Security Wages. Or an account with an Employment\nCode W, F or T filed a Form 940.","BMF Notices"]
[193,"No","Campus notice only: Notification to SC Adjustments that a duplicate or amended return\nposted to a tax module with an original return posted.","BMF Notices"]
[194,"No","Campus notice only: Notification to SC Accounting that an account is not complying with FTD requirements or a dishonored FTD transaction after the return posted. A letter to the\ntaxpayer may be issued.","BMF Notices"]
[195,"No","Campus notice only: Notification to SC Adjustments that an unresolved manual refund freeze has been on for seven weeks.","BMF Notices"]
[198,"No","Campus notice only: Push Code Condition - a TC150 has posted on a module where a TC930 was previously posted, and/or an unreversed TC590 (CC7)/591/597 has posted","BMF Notices"]
["198A",null,"Campus notice only: Push Code Condition","BMF Notices"]
[200,null,"Campus notice only: Notification that a consolidation of two EINs failed because one\naccount was inactive","BMF Notices"]
[201,null,"Campus notice only: Notification that a consolidation of two EINs failed because the\nname controls didn’t match.","BMF Notices"]
[202,"No","Campus notice only: Notification that a consolidation of two EINS failed because the filing\nrequirements weren’t compatible.","BMF Notices"]
[207,"No","Proposed average FTD Penalty (amounts less than $75,000), request for correct ROFTL Information.","BMF Notices"]
["207L",null,"Proposed FTD Penalty — Request for Correct ROFT Information – Over $100,000","BMF Notices"]
[208,"No","Campus notice only: Notice of Potential Credit Transfer Form 1041 –P freeze for review","BMF Notices"]
[209,null,"EIN assigned in error.","BMF Notices"]
[210,null,"Notification of Adjustment to tax return resulting in balance due, zero balance or overpayment","BMF Notices"]
["211A",null,"Application for Extension of Time to File an Exempt Organization Return - Approved","BMF Notices"]
["211B",null,"Application for Extension of Time to File an Exempt Organization Return – Denied – Request Not Signed","BMF Notices"]
["211C",null,"Application for Extension of Time to File an Exempt Organization Return – Denied – Request not Timely","BMF Notices"]
["211D",null,"Application for Extension of Time to File an Exempt Organization Return – Reasonable Cause Not Established","BMF Notices"]
["211E",null,"Application for Extension of Time to File an Exempt Organization Return – Denied -\nGeneral","BMF Notices"]
[212,null,"Form 5500, EIN Assigned in Error","BMF Notices"]
[214,null,"Form 5500-EZ/5500-SF filing requirements reminder, to determine if taxpayer needs to\nfile form","BMF Notices"]
[215,null,"Notification of a Civil Penalty assessment.","BMF Notices"]
["216F",null,"Your Extension of Time to File was Approved to file Form 5500 Series and/or Form 8955- SSA.","BMF Notices"]
["216H",null,"Your Extension of Time to File Form 5500 Series and/or Form 8955-SSA was Denied, (not timely filed).","BMF Notices"]
[217,"No","State & Local agencies are exempt. Form 940 not required.","BMF Notices"]
[218,"No","Churches & other religious organizations are exempt. Form 940 not required.","BMF Notices"]
[219,"No","Exempt under 501c (3) of IRC. Form 940 not required.","BMF Notices"]
[220,"Yes","Audit/DP Adjustment – Balance due, even balance or refund due","BMF Notices"]
["220J",null,"Audit/DP adjustment bal due, even bal or overpayment for ACA 4980H provision","BMF Notices"]
[221,"No","Exempt under section 501(e), 501(f) or 501(k). Form 940 not required.","BMF Notices"]
[222,"No","Campus notice only. TIN change on a CAF account","BMF Notices"]
[223,"No","Campus notice only: Notice of civil penalty","BMF Notices"]
[224,"No","Notice of potential qualification as a Personal Service Corporation\nNote: Obsoleted CP 224 per Unified Work Request (UWR) 228032 - Obsolete BMF CP Notice 224, effective February 1, 2021. This notice is no longer used and is not usable for\ncommunicating with taxpayers. Removing the notice saves time and resources spent on notice maintenance.","BMF Notices"]
[225,"Yes","Missing payment applied, balance due, even balance or refund due","BMF Notices"]
[230,"Yes","Notification that an adjustment has been made under CAWR Reconciliation Program. Issued after the CAWR case has been closed and a tax adjustment has been made,\nbalance due, even balance or refund due.","BMF Notices"]
[231,null,"Your refund check was returned to us","BMF Notices"]
["232A",null,"F5558 extension for F5330 approved","BMF Notices"]
["232B",null,"F5558 extension for F5330 denied not timely","BMF Notices"]
["232C",null,"F5558 extension for F5330 denied not signed","BMF Notices"]
["232D",null,"F5558 extension for F5330 denied unacceptable reason","BMF Notices"]
["233J",null,"4980H Adjustment bal due, even bal or overpayment Notice","BMF Notices"]
[234,null,"Campus notice only. Potential ES penalty for F1120, 1120F, 1120L, 1120M and 990C","BMF Notices"]
[235,null,"FTD penalty waived due to change in requirements","BMF Notices"]
[236,"No","Deposit Requirement Reminder for Newly Required Semi-weekly Depositors","BMF Notices"]
[237,"No","Notification to taxpayer of Reason For Issuance of Replacement Refund Check.","BMF Notices"]
["237A","No","FMS Refund Cancellation (over $1000 or frozen account) Comes in as 537","BMF Notices"]
[238,"No","Issued to inform taxpayer no penalty has been charged for late FTD’s (First time liable for return)","BMF Notices"]
[240,"Yes","DP Adjustment – (CAWR) Balance Due of $5 or more and module not in TDA/BAL DUE\nstatus. TC 290 (BS 550-559) posts to MFT 01, 04, 11 modules.","BMF Notices"]
[241,"No","Campus only notice will generate to D.O. Exam Division, 637 Coordinator.","BMF Notices"]
[242,"No","Notice of Levy on Your State Tax Refund. Notice of Your Right to a Hearing.","BMF Notices"]
[248,"No","Non-electronic FTD deposited when taxpayer is required to file electronically","BMF Notices"]
["249A",null,"Form 8871 Not Filed","BMF Notices"]
["249B",null,"Form 8872 Late","BMF Notices"]
["249C",null,"Form 8872 Not Filed","BMF Notices"]
["250A","No","Notification to Form 944 filer that they should file 941 for first quarter of next calendar year.","BMF Notices"]
["250B","No","Notification to Form 944 filer that they should file 941 for first quarter of second calendar year.","BMF Notices"]
["250C","No","Reminder to CP250B recipients.","BMF Notices"]
[251,null,"NOTICE OF Employment Tax Problem—Why You’re Tax May Be Changed. Notice issued to taxpayer under the Combined Annual Wage Reporting (CAWR) program to advise of a wage discrepancy (potential overpayment or underpayment). 253 Request for W-2 not filed with Social Security Administration- Notice issued to taxpayer under the Combined Annual Wage Reporting (CAWR) program to advise of missing forms W-2.The\nnotice is generated from the CAP system, not BMF.","BMF Notices"]
[255,null,"Request to finalize termination of private foundation status","BMF Notices"]
[259,"No","First Notice for Nonfiler Return Delinquency is issued to inform the taxpayer that we have no record of a tax return filed.","BMF Notices"]
["259A","No","First Notice for Nonfiler Return Delinquency is issued to inform the taxpayer that we have no record of a tax return filed. Form 990/990EZ","BMF Notices"]
["259B","No","First Notice for Nonfiler Return Delinquency is issued to inform the taxpayer that we have no record of a tax return filed. Form 990PF","BMF Notices"]
["259D","No","First Notice for Nonfiler Return Delinquency is issued to inform the taxpayer that we have no record of a tax return filed. Form 990T","BMF Notices"]
["259F","No","First Notice for Nonfiler Return Delinquency is issued to inform the taxpayer that we have\nno record of a tax return filed. Form5227","BMF Notices"]
["259G",null,"EO Return Delinquency Notice 1120-POL","BMF Notices"]
["259H",null,"EO Return Delinquency Notice PAC, Form 990/990EZ","BMF Notices"]
[260,"Yes","Notification that a credit was reversed creating a balance due.","BMF Notices"]
[261,"No","Issued to notify the taxpayer of acceptance of taxpayer petition to become an S- Corporation.","BMF Notices"]
["261X",null,"Notification of acceptance of taxpayer as an S-Corporation","BMF Notices"]
[262,"No","Issued to notify the taxpayer of revocation of taxpayer status as an S-Corporation.","BMF Notices"]
[264,"No","Issued to notify taxpayer of denial of taxpayer petition to become an S-Corporation.","BMF Notices"]
[265,"No","Issued to notify taxpayer of termination of taxpayer status as an S-Corporation.","BMF Notices"]
[266,"No","Issued to notify taxpayer of forwarding their Form 2553 to National Office.","BMF Notices"]
[267,"Yes","Issued to notify taxpayer of excess credits in a tax module in which no math error return posted and a request taxpayer response for resolution of the condition.","BMF Notices"]
["267B",null,"Non-Exchange for Provision 9010 Insurance Provider Fee","BMF Notices"]
[268,"Yes","Issued to notify taxpayer of excess credits in a tax module in which a math error returned posted and a request for resolution of the condition.","BMF Notices"]
[269,null,"Exam Initial Contact letter – Excise Tax - Refund frozen","BMF Notices"]
["269C",null,"Exam Initial Contact Letter – COBRA – Refund frozen","BMF Notices"]
["269D",null,"Exam Initial Contact Letter – COBRA","BMF Notices"]
[270,"No","Campus notice only: Notification to SC Adjustments or Examination that TC 29X or 30X\nwith a hold code 2, 4, 7 or 9 posted and module is in debit balance and a subsequent TC 29X or 30X without a hold code 2, 4, 7 or 9 has not posted.","BMF Notices"]
["276A","No","Reminder to Supply a Properly Completed Tax Liability Schedule When Filing Future\nReturns","BMF Notices"]
["276B","No","You Made One or More Late Federal Tax Deposits But We Didn’t Charge You a Penalty","BMF Notices"]
[277,"No","Form 8832 Entity Classification Election acceptance","BMF Notices"]
[278,null,"Denial of Form 8832","BMF Notices"]
[279,"No","Acceptance of Form 8869, Qualified Subchapter S Subsidiary Election","BMF Notices"]
["279A",null,"Approval of Form 8869 filed by Parent S Corporation","BMF Notices"]
[281,"No","Revocation of Form 8869","BMF Notices"]
[282,"No","Notification of Possible Filing Requirements, forms 1065/1065B","BMF Notices"]
[283,null,"Penalty Charged on your Form 5500","BMF Notices"]
["283C",null,"Penalty Charged on your Form 8955-SSA, incomplete or late filing.","BMF Notices"]
[284,"No","Acceptance of Form 1128","BMF Notices"]
[285,"No","Form 1128 denied","BMF Notices"]
[286,"No","Accepts Account Period Change via F8716","BMF Notices"]
["286D",null,"Sec 444 election terminated","BMF Notices"]
[287,"No","Denies Account Period Change via F8716","BMF Notices"]
["287A",null,"Form 8716 Denied – Received late","BMF Notices"]
["287B","o","Form 8716 Denied – Deferral Period Too Long","BMF Notices"]
["287C",null,"Form 8716 Denied – Previous Election Terminated","BMF Notices"]
[288,"No","Accepts Small Business Becoming QSST via F2553","BMF Notices"]
[289,null,"Annual Installment Agreement Statement BMF","BMF Notices"]
[290,"No","Accepts Request To Become Small Business Trust via F2553","BMF Notices"]
[291,"No","Electing Small Business Trust (ESBT) Revoked","BMF Notices"]
[292,"No","Qualified Subchapter S Trust (QSST) Revoked","BMF Notices"]
[293,"No","Campus notice only: Notification to SC Examination that a duplicate return posted to a\ntax period under AIMS control.","BMF Notices"]
[294,"No","Campus notice only: Notification to SC Adjustments of a potential 15% FTD penalty on an account with Forms 940, 941, 943, 944, 945, or 1042.","BMF Notices"]
[295,null,"Request for Payment – Form 5500","BMF Notices"]
["295A",null,"Request for payment (5500NMF Accounts)","BMF Notices"]
[296,null,"Campus notice only: Notification to SC accounting that an account has been transferred\nout","BMF Notices"]
[297,"No","Final Notice, Notice of Intent to Levy and Notice of Your Right to a Hearing","BMF Notices"]
["297A",null,"Notice of Levy and Notice of Your Right to a Hearing FPLP","BMF Notices"]
["297C",null,"Notice of Levy and Notice of Your Right to a Hearing FPLP, federal contractor","BMF Notices"]
[298,"No","Final Notice Before Levy on Social Security Benefits","BMF Notices"]
[299,null,"Annual Electronic Notice Filing Requirement Form 990N","BMF Notices"]
[212,null,"Notification of EIN assigned in error","EPMF Notices"]
[214,null,"Annual Filing Requirement Reminder notice for Form 5500-EZ filers","EPMF Notices"]
["216F",null,"Your Extension of Time to File was Approved to file Form 5500","EPMF Notices"]
["216H",null,"Your Extension of Time to File Form 5500 was Denied, (not timely filed)","EPMF Notices"]
["232A",null,"From 5558 Extension Approved","EPMF Notices"]
["232B",null,"From 5558 Extension Not Approved – Late filed","EPMF Notices"]
["232C",null,"From 5558 Extension Not Approved – Not Signed","EPMF Notices"]
["232D",null,"From 5558 Extension Not Approved – Unacceptable Reason","EPMF Notices"]
[283,null,"1 st Balance Due notice, MFT 74, Form 5500 series","EPMF Notices"]
["283C",null,"1 st Balance Due notice, MFT 75, Form 8955-SSA","EPMF Notices"]
[295,null,"Annual Balance Due Reminder, MFT 74, Form 5500 series","EPMF Notices"]
["295A",null,"Annual Balance Due Reminder, MFT 74, Form 5500 series. From NMF","EPMF Notices"]
[403,null,"1 st Notice – EPMF Return Delinquency","EPMF Notices"]
[406,null,"4 th Notice – EPMF Return Delinquency","EPMF Notices"]
["580A",null,"Notification of EIN assigned to taxpayer whose EIN was assigned from\nForm 5500 series return","EPMF Notices"]
["580B",null,"Notification of EIN assigned to taxpayer whose EIN was assigned from\nForm 5500 series return","EPMF Notices"]
[581,null,"Notification of EIN assigned to taxpayer whose EIN was assigned from a 5500 series return","EPMF Notices"]
["582A",null,"Notification of EIN assigned to the administrator from Form SS-4 or Tele- TIN","EPMF Notices"]
["582B",null,"Notification of EIN assignment to Plan Administrator","EPMF Notices"]
["583A",null,"Notice of EIN assigned to an employee benefit trust","EPMF Notices"]
["583B",null,"Notice of EIN assigned to an employee benefit trust","EPMF Notices"]
[584,null,"Notice of EIN assigned to the administrator from a 5500 series return","EPMF Notices"]
[587,null,"Check not accepted by Bank (aka F2287(CG))","EPMF Notices"]
[403,null,"Form 5500 , First Delinquency Notice","IDRS Notices"]
[406,null,"Form 5500 Final Delinquency Notice","IDRS Notices"]
["501/601",null,"1st Notice—Balance Due","IDRS Notices"]
["501H",null,"1st Notice—Balance Due, ACA cases only","IDRS Notices"]
[503,null,"IMF 2nd Balance Due Notice","IDRS Notices"]
[603,null,"3rd Notice—Balance Due","IDRS Notices"]
["503H",null,"503H- IMF 2nd Notice – Balance Due- Shared responsibility payment (SRP).","IDRS Notices"]
["504/604",null,"Final Notice—Balance Due- IMF no response allows for lien filing and levies on state income tax refunds","IDRS Notices"]
["504B/604B",null,"Final Notice –Balance Due – BMF, no response allows for lien filing and levies on certain assets","IDRS Notices"]
["515/615",null,"1st  Notice – Return Delinquency for BMF modules with a BOD of TEGE only.","IDRS Notices"]
[516,null,"2nd  notice – Return Delinquency for IMF PC-B modules only.","IDRS Notices"]
["518/618",null,"Final Notice - Return Delinquency","IDRS Notices"]
["521/621",null,"Installment Agreement Reminder Notice","IDRS Notices"]
["522/622",null,"Review Financial Condition, issued for Partial Payment Installment agreements only.","IDRS Notices"]
["523/623",null,"Installment Agreement Default Notice with Intent to Levy","IDRS Notices"]
["523H",null,"Installment Agreement Default Notice with Intent to Levy, ACA cases only","IDRS Notices"]
[531,null,"Backup Withholding C notice, you could be subject to backup withholding","IDRS Notices"]
[538,null,"Backup withholding C notice, taxpayer notification of balance due","IDRS Notices"]
[539,null,"Backup withholding C notice, taxpayer second notification of balance due and now subject to backup\nwithholding","IDRS Notices"]
[540,null,"Backup withholding C notice, taxpayer notification of non-filer","IDRS Notices"]
[541,null,"Backup withholding C notice, taxpayer second notification of non-filer and now subject to backup\nwithholding.","IDRS Notices"]
[542,null,"Notice to payee to stop backup withholding","IDRS Notices"]
[543,null,"Backup withholding notification- Payer notification to begin backup withholding on taxpayer(s) listed","IDRS Notices"]
[544,null,"Backup withholding notification to payer to stop backup withholding","IDRS Notices"]
[545,null,"Backup withholding notification to payer to discontinue backup withholding","IDRS Notices"]
[546,null,"Backup withholding notification- Special backup withholding list","IDRS Notices"]
[547,null,"We assigned you a Centralized Authorization File (CAF) number","IDRS Notices"]
["548A",null,"Change to Representation – representative disbarred","IDRS Notices"]
["548B",null,"Change to Representation – representative suspended","IDRS Notices"]
["548C",null,"Change to Representation – representative address undeliverable","IDRS Notices"]
["548D",null,"Change to Representation – representative deceased","IDRS Notices"]
["548E",null,"Change to Representation – representative retired","IDRS Notices"]
["548F",null,"Change to Representation – representative ineligible","IDRS Notices"]
[549,null,"Form 944 notification package RAF/CAF","IDRS Notices"]
["560A",null,"ATIN Assignment Notice – We assigned your adoptive child a temporary Adoption Taxpayer Identification Number (ATIN)","IDRS Notices"]
["560B",null,"ATIN Extension Notice – We have granted your request for an Extension for your Adoption Taxpayer Identification Number (ATIN)","IDRS Notices"]
[561,null,"ATIN Notice – The Adoption Taxpayer Identification Number (ATIN) assigned to your adoptive child will expire soon.","IDRS Notices"]
["561A",null,"Your child’s ATIN expires in 3 Months","IDRS Notices"]
["561B",null,"The extension for your child’s ATIN expires in 3 months","IDRS Notices"]
["561C",null,"Your child’s ATIN expired","IDRS Notices"]
["562A",null,"ATIN Notice – Request for Additional Information","IDRS Notices"]
["562C",null,"ATIN Extension Request – Additional Information Needed","IDRS Notices"]
[563,null,"ATIN Rejection Notice","IDRS Notices"]
["563A",null,"You don’t qualify for an ATIN as we previously assigned you an ATIN","IDRS Notices"]
["563B",null,"We are already processing an application for you","IDRS Notices"]
["563C",null,"We couldn’t process your application due to lack of information","IDRS Notices"]
["563D",null,"We couldn’t process your application for a non-US citizen or resident","IDRS Notices"]
["563F",null,"We couldn’t process your request for extension of use of an ATIN","IDRS Notices"]
["563G",null,"You don’t qualify for an ATIN due to incomplete adoption placement","IDRS Notices"]
["563H",null,"You don’t qualify for an ATIN for lack of authorized adoption","IDRS Notices"]
["563I",null,"Your ATIN is no longer valid since you no longer need one","IDRS Notices"]
["563J",null,"You don’t qualify for an AtIN as foster adoption doesn’t qualify","IDRS Notices"]
[564,null,"CP 564 Notice to Taxpayer that undeliverable refund check reissued(F5511)","IDRS Notices"]
[565,null,"ITIN assignment notice","IDRS Notices"]
["565SP",null,"ITIN assignment notice Spanish","IDRS Notices"]
[566,null,"ITIN Suspense Notice, advises the applicant that additional information and/or supporting identification or\nexception documentation is necessary to complete the processing of Form W-7, Application for IRS Individual Taxpayer Identification Number","IDRS Notices"]
[567,null,"ITIN rejection Notice, advises the applicant that the application can’t be processed as submitted, for a specific reason that must be addressed. Rejection Notice can’t be re-issued.","IDRS Notices"]
["567SP",null,"ITIN rejection Notice, advises the applicant that the application can’t be processed as submitted, for a\nspecific reason that must be addressed. Rejection Notice can’t be re-issued., Spanish","IDRS Notices"]
[568,null,"FTD penalty computation explanation letter","IDRS Notices"]
[569,null,"Penalty and Interest Explanation","IDRS Notices"]
[570,null,"PTIN Rejection Notice","IDRS Notices"]
[571,null,"PTIN Assignment Notice","IDRS Notices"]
[574,null,"Advises applicant their W-7 application for an ITIN is being rejected. It can’t be worked further and must be resubmitted with the required supporting identification documentation and a valid US Federal Tax Return (Formerly CP 569)","IDRS Notices"]
[587,null,"Notice of Dishonored Check not paid by bank (aka Form 2287(CG))","IDRS Notices"]
["565SP",null,"ITIN assignment notice Spanish","Master File Notices"]
["566SP",null,"ITIN assignment notice Spanish","Master File Notices"]
["567SP",null,"ITIN assignment notice Spanish","Master File Notices"]
[601,null,"Reminder - 1ST. Notice Balance Due","Master File Notices"]
[603,null,"IMPORTANT – Immediate action is required","Master File Notices"]
[604,null,"Final Notice – Balance Due- IMF","Master File Notices"]
["604B",null,"Final Notice – Balance Due- BMF","Master File Notices"]
[615,null,"1st Notice - Request for your Tax Return","Master File Notices"]
[616,null,"2nd notice – Return Delinquency for IMF PC-B modules only.","Master File Notices"]
[618,null,"Final Notice Return Delinquency Notice (IMF/BMF)","Master File Notices"]
[621,null,"Installment Agreement Monthly Reminder Notice","Master File Notices"]
[622,null,"Campus issued only. Financial Statement request, issued on Partial Payment Installment Agreements","Master File Notices"]
[623,null,"Installment Agreement Default Notice with Intent to Levy","Master File Notices"]
[701,null,"Spanish version of CP01S – We received your Form 14039 or similar statement for your Identity Theft claim.","Master File Notices"]
["701B",null,"Potential Identity Theft during Original Processing with Online Option","Master File Notices"]
[711,null,"Balance Due on Form 1040PR Math Error","Master File Notices"]
["701E",null,"Notice is issued to Identity theft related to employment","Master File Notices"]
["701S",null,"We received your Form 14039 or similar statement for your identity theft claim","Master File Notices"]
[712,null,"Overpayment Form 1040PR","Master File Notices"]
[713,null,"Math Error Settlement on Form 1040PR Math Error","Master File Notices"]
[714,null,"No Math Error Balance Due 1040PR (IMF/SP)","Master File Notices"]
[721,null,"Audit/DP Tax Adjustment (IMF/SP) account in TDA/BAL DUE status","Master File Notices"]
["721A",null,"Balance Due Adjustment Notice","Master File Notices"]
["721B",null,"Overpaid Due Adjustment Notice","Master File Notices"]
["721C",null,"Even Balance Adjustment Notice","Master File Notices"]
["721E",null,"Examination Adjustment Notice (Spanish)","Master File Notices"]
["721I",null,"IRAF Adjustment Notice","Master File Notices"]
[722,null,"Audit/DP Tax Adjustment (IMF/SP) account not in TDA/BAL DUE status","Master File Notices"]
["722A",null,"Notice of Data Processing adjustments, resulting in a balance due of $5.00 or more when account is in TDA/BAL DUE status.","Master File Notices"]
["722E",null,"Notice of Examination adjustments, resulting in a change to an account in TDA/BAL DUE status","Master File Notices"]
["722I",null,"Notice of Data Processing adjustments, resulting in a balance due of $5.00 or more when account is in TDA/BAL DUE status","Master File Notices"]
[740,null,"Notice is issued to indicate that we have assigned their account to a Private Collection Agency","Master File Notices"]
["748E",null,"ITIN Deactivation -Spanish","Master File Notices"]
[749,null,"Overpayment Adjustment, Offset (IMF/Spanish)","Master File Notices"]
[759,null,"1st  notice IMF Nonfiler Return Delinquency","Master File Notices"]
[771,null,"Issued to remind the taxpayer of a balance of tax due. Notice is generated for (1) modules in status 23\nwith a module balance of $25.00 or more and (2) module in status 22 with an unreversed TC 530 with closing code 09 and module balance of $25.00 or more.","Master File Notices"]
[772,null,"Issued annually to remind IMF taxpayers of a balance due on a module that has been in Currently Not\nCollectible status 53 for at least 65 cycles with closing code 12 or 24-32, 39.","Master File Notices"]
[773,null,"Issued annually as a reminder to the taxpayer of balance due tax modules in status 24. Will reflect\nCSCO return addresses and ACS telephone numbers. The tolerance is $25.00","Master File Notices"]
[774,null,"An annual notice that is generated for any tax module in status 26 for 1 year or more if the balance due\nis $25 or greater.","Master File Notices"]
[789,null,"Annual Installment Agreement Statement (IMF)","Master File Notices"]
[801,null,"Math Error—Balance Due of $5 or more on Form 940PR (BMF/Spanish)","Master File Notices"]
[802,null,"Math Error—Balance Due of $5 or more on Form 941PR, 942PR, 943PR, (BMF/Spanish)","Master File Notices"]
[811,null,"Math Error—Overpayment of $1 or more on Form 940PR (BMF/Spanish)","Master File Notices"]
[812,null,"Math Error—Overpayment of $1 or more on Form 941PR, 943PR, 944PR (BMF/Spanish)","Master File Notices"]
["834B",null,"FTD/Estimated Payment Discrepancy Notice – Balance Due","Master File Notices"]
["834R",null,"FTD/Estimated Payment Discrepancy Notice – Refund","Master File Notices"]
["848A",null,"Notification of Change of address sent to new address, Spanish","Master File Notices"]
["848B",null,"Notification of Change of address sent to old address","Master File Notices"]
[838,null,"We applied your overpayment to other Federal Taxes","Master File Notices"]
[861,null,"No Math Error—First Notice of Balance Due—Forms 940PR, 941PR, 942PR, 943PR (BMF/Spanish)","Master File Notices"]
[865,null,"Penalty for Dishonored Check—Form 940PR, 941PR or 943PR (Spanish) (after 01-01-2011, will include penalty on all dishonored payments).","Master File Notices"]
[910,null,"Audit/DP Tax Adjustment Notices (BMF/Spanish)","Master File Notices"]
[920,null,"Audit/DP Tax Adjustment Notices (BMF/Spanish)","Master File Notices"]
["950A",null,"No longer eligible to file F944PR","Master File Notices"]
["950B",null,"No longer eligible to file F944PR","Master File Notices"]
["950C",null,"No longer eligible to file F944PR","Master File Notices"]
[959,null,"1st  notice BMF Nonfiler Return Delinquency","Master File Notices"]
[989,null,"Annual Installment Agreement Statement","Master File Notices"]

{"sheet":"HdrFtr","index":1,"n_rows":60,"n_cols":7,"rows_kept":60,"cut":false,"hidden":false,"merged":[]}
[]
[null,null,null,null,null,"HEADER","FOOTER"]
[null,null,null,null,null,"<!DOCTYPE html>","</tr>"]
[null,null,null,null,null,"<html>","</table>"]
[null,null,null,null,null,"<head>","<script>"]
[null,null,null,null,null,"<meta name=\"viewport\" content=\"width=device-width, initial-scale=1\">","function myFunction() {"]
[null,null,null,null,null,"<style>","  var input, filter, table, tr, td, i, txtValue;"]
[null,null,null,null,null,"* {","  input = document.getElementById(\"myInput\");"]
[null,null,null,null,null,"box-sizing: border-box;","  filter = input.value.toUpperCase();"]
[null,null,null,null,null,"}","  table = document.getElementById(\"myTable\");"]
[null,null,null,null,null,null,"  tr = table.getElementsByTagName(\"tr\");"]
[null,null,null,null,null,"#myInput {","  for (i = 0; i < tr.length; i++) {"]
[null,null,null,null,null,"background-image: url('/css/searchicon.png');","    td = tr[i].getElementsByTagName(\"td\")[0];"]
[null,null,null,null,null,"background-position: 10px 10px;","    if (td) {"]
[null,null,null,null,null,"background-repeat: no-repeat;","      txtValue = td.textContent || td.innerText;"]
[null,null,null,null,null,"width: 100%;","      if (txtValue.toUpperCase().indexOf(filter) > -1) {"]
[null,null,null,null,null,"font-size: 16px;","        tr[i].style.display = \"\";"]
[null,null,null,null,null,"padding: 12px 20px 12px 40px;","      } else {"]
[null,null,null,null,null,"border: 1px solid #ddd;","        tr[i].style.display = \"none\";"]
[null,null,null,null,null,"margin-bottom: 12px;","      }"]
[null,null,null,null,null,"}","    }       "]
[null,null,null,null,null,null,"  }"]
[null,null,null,null,null,"#myTable {","}"]
[null,null,null,null,null,"border-collapse: collapse;","</script>"]
[null,null,null,null,null,"width: 100%;"]
[null,null,null,null,null,"border: 1px solid #ddd;","</body>"]
[null,null,null,null,null,"font-size: 18px;","</html>"]
[null,null,null,null,null,"}"]
[]
[null,null,null,null,null,"#myTable th, #myTable td {"]
[null,null,null,null,null,"text-align: left;"]
[null,null,null,null,null,"padding: 12px;"]
[null,null,null,null,null,"}"]
[]
[null,null,null,null,null,"#myTable tr {"]
[null,null,null,null,null,"border-bottom: 1px solid #ddd;"]
[null,null,null,null,null,"}"]
[]
[null,null,null,null,null,"#myTable tr.header, #myTable tr:hover {"]
[null,null,null,null,null,"background-color: #f1f1f1;"]
[null,null,null,null,null,"}"]
[null,null,null,null,null,"</style>"]
[null,null,null,null,null,"</head>"]
[null,null,null,null,null,"<body>"]
[]
["<h2>","</h2>",null,null,null,{"$f":"A46&OrigTable!C1&HdrFtr!B46","v":"<h2>CP Notices</h2>"}]
[]
[null,null,null,null,null,"<input type=\"text\" id=\"myInput\" onkeyup=\"myFunction()\" placeholder=\"Search for code..\" title=\"Type in a code number\">"]
[]
[null,null,null,null,null,"<table id=\"myTable\">"]
[null,"% of COL",null,"Hdr Name",null,"<tr class=\"header\">"]
["<th style=\"width:",10,"%;\">","CP No.","</th>",{"$f":"IF(D52=\"\",\"\",A52&B52&C52&D52&E52)","v":"<th style=\"width:10%;\">CP No.</th>"}]
["<th style=\"width:",10,"%;\">","Amt. (if applicable)","</th>",{"$f":"IF(D53=\"\",\"\",A53&B53&C53&D53&E53)","v":"<th style=\"width:10%;\">Amt. (if applicable)</th>"}]
["<th style=\"width:",null,"%;\">","Explanation","</th>","<th style=\"width:%;\">Explanation</th>"]
["<th style=\"width:",null,"%;\">","Type Notice","</th>","<th style=\"width:%;\">Type Notice</th>"]
["<th style=\"width:",null,"%;\">",null,"</th>",""]
["<th style=\"width:",null,"%;\">",null,"</th>",""]
["<th style=\"width:",null,"%;\">",null,"</th>"]
["<th style=\"width:",null,"%;\">",null,"</th>"]
[null,null,null,null,null,"</tr>"]

{"sheet":"Sheet5","index":2,"n_rows":0,"n_cols":0,"rows_kept":0,"cut":false,"hidden":false,"merged":[]}

{"sheet":"ScriptText","index":3,"n_rows":2005,"n_cols":23,"rows_kept":2005,"cut":false,"hidden":false,"merged":[[4,16,4,18],[4,19,4,21],[4,1,4,3],[4,4,4,6],[4,7,4,9],[4,10,4,12],[4,13,4,15]]}
[{"$f":"MAX(W6:W2005)","v":500},"<tr>","</tr>","<td>","</td>"]
[]
[]
[]
[null,{"$f":"IF(OrigTable!A5=\"\",\"\",\"Column 1\")","v":"Column 1"},null,null,{"$f":"IF(OrigTable!B5=\"\",\"\",\"Column 2\")","v":"Column 2"},null,null,{"$f":"IF(OrigTable!C5=\"\",\"\",\"Column 3\")","v":"Column 3"},null,null,{"$f":"IF(OrigTable!D5=\"\",\"\",\"Column 4\")","v":"Column 4"},null,null,{"$f":"IF(OrigTable!E5=\"\",\"\",\"Column 5\")","v":""},null,null,{"$f":"IF(OrigTable!F5=\"\",\"\",\"Column 6\")","v":""},null,null,{"$f":"IF(OrigTable!G5=\"\",\"\",\"Column 7\")","v":""}]
[{"$f":"_xlfn.TEXTJOIN(\"\",TRUE,B6:D6)&CHAR(10)&_xlfn.TEXTJOIN(\"\",TRUE,E6:G6)&CHAR(10)&_xlfn.TEXTJOIN(\"\",TRUE,H6:J6)&CHAR(10)&_xlfn.TEXTJOIN(\"\",TRUE,K6:M6)&_xlfn.TEXTJOIN(\"\",TRUE,N6:P6)&_xlfn.TEXTJOIN(\"\",TRUE,Q6:S6)&_xlfn.TEXTJOIN(\"\",TRUE,T6:V6)","v":"<tr>\n<td>01</td>\n</tr>\n\n<tr>\n<td>We have verified your claim of identity theft.</td>\n</tr>\n<tr>\n<td>IMF Notices</td>\n</tr>"},{"$f":"IF(OrigTable!A6=\"\",\"\",ScriptText!$B$1&CHAR(10)&ScriptText!$D$1)","v":"<tr>\n<td>"},{"$f":"IF(OrigTable!A6=\"\",\"\",TEXT(OrigTable!A6,\"00\"))","v":"01"},{"$f":"IF(OrigTable!A6=\"\",\"\",ScriptText!$E$1&CHAR(10)&ScriptText!$C$1)","v":"</td>\n</tr>"},{"$f":"IF(OrigTable!B6=\"\",\"\",ScriptText!$B$1&CHAR(10)&ScriptText!$D$1)","v":""},{"$f":"IF(OrigTable!B6=\"\",\"\",TEXT(OrigTable!B6,\"00\"))","v":""},{"$f":"IF(OrigTable!B6=\"\",\"\",ScriptText!$E$1&CHAR(10)&ScriptText!C1)","v":""},{"$f":"IF(OrigTable!C6=\"\",\"\",ScriptText!$B$1&CHAR(10)&ScriptText!$D$1)","v":"<tr>\n<td>"},{"$f":"IF(OrigTable!C6=\"\",\"\",IF(LEN(OrigTable!C6)>255,LEFT(OrigTable!C6,250)&\". . .\",OrigTable!C6))","v":"We have verified your claim of identity theft."},{"$f":"IF(OrigTable!C6=\"\",\"\",ScriptText!$E$1&CHAR(10)&ScriptText!$C$1)","v":"</td>\n</tr>"},{"$f":"IF(OrigTable!D6=\"\",\"\",ScriptText!$B$1&CHAR(10)&ScriptText!$D$1)","v":"<tr>\n<td>"},{"$f":"IF(OrigTable!D6=\"\",\"\",TEXT(OrigTable!D6,\"00\"))","v":"IMF Notices"},{"$f":"IF(OrigTable!D6=\"\",\"\",ScriptText!$E$1&CHAR(10)&ScriptText!$C$1)","v":"</td>\n</tr>"},{"$f":"IF(OrigTable!E6=\"\",\"\",ScriptText!$B$1&CHAR(10)&ScriptText!$D$1)","v":""},{"$f":"IF(OrigTable!E6=\"\",\"\",TEXT(OrigTable!E6,\"00\"))","v":""},{"$f":"IF(OrigTable!E6=\"\",\"\",ScriptText!$E$1&CHAR(10)&ScriptText!$C$1)","v":""},{"$f":"IF(OrigTable!F6=\"\",\"\",ScriptText!$B$1&CHAR(10)&ScriptText!$D$1)","v":""},{"$f":"IF(OrigTable!F6=\"\",\"\",TEXT(OrigTable!F6,\"00\"))","v":""},{"$f":"IF(OrigTable!F6=\"\",\"\",ScriptText!$E$1&CHAR(10)&ScriptText!$C$1)","v":""},{"$f":"IF(OrigTable!G6=\"\",\"\",ScriptText!$B$1&CHAR(10)&ScriptText!$D$1)","v":""},{"$f":"IF(OrigTable!G6=\"\",\"\",TEXT(OrigTable!G6,\"00\"))","v":""},{"$f":"IF(OrigTable!G6=\"\",\"\",ScriptText!$E$1&CHAR(10)&ScriptText!$C$1)","v":""},{"$f":"IF(LEN(A6)>3,ROW(),0)","v":6}]
[{"$f":"_xlfn.TEXTJOIN(\"\",TRUE,B7:D7)&CHAR(10)&_xlfn.TEXTJOIN(\"\",TRUE,E7:G7)&CHAR(10)&_xlfn.TEXTJOIN(\"\",TRUE,H7:J7)&CHAR(10)&_xlfn.TEXTJOIN(\"\",TRUE,K7:M7)&_xlfn.TEXTJOIN(\"\",TRUE,N7:P7)&_xlfn.TEXTJOIN(\"\",TRUE,Q7:S7)&_xlfn.TEXTJOIN(\"\",TRUE,T7:V7)","v":"<tr>\n<td>01A</td>\n</tr>\n\n<tr>\n<td>We’ve assigned you an identity protection Personal Identification Number (PIN).</td>\n</tr>\n<tr>\n<td>IMF Notices</td>\n</tr>"},{"$f":"IF(OrigTable!A7=\"\",\"\",ScriptText!$B$1&CHAR(10)&ScriptText!$D$1)","v":"<tr>\n<td>"},{"$f":"IF(OrigTable!A7=\"\",\"\",TEXT(OrigTable!A7,\"00\"))","v":"01A"},{"$f":"IF(OrigTable!A7=\"\",\"\",ScriptText!$E$1&CHAR(10)&ScriptText!$C$1)","v":"</td>\n</tr>"},{"$f":"IF(OrigTable!B7=\"\",\"\",ScriptText!$B$1&CHAR(10)&ScriptText!$D$1)","v":""},{"$f":"IF(OrigTable!B7=\"\",\"\",TEXT(OrigTable!B7,\"00\"))","v":""},{"$f":"IF(OrigTable!B7=\"\",\"\",ScriptText!$E$1&CHAR(10)&ScriptText!C2)","v":""},{"$f":"IF(OrigTable!C7=\"\",\"\",ScriptText!$B$1&CHAR(10)&ScriptText!$D$1)","v":"<tr>\n<td>"},{"$f":"IF(OrigTable!C7=\"\",\"\",IF(LEN(OrigTable!C7)>255,LEFT(OrigTable!C7,250)&\". . .\",OrigTable!C7))","v":"We’ve assigned you an identity protection Personal Identification Number (PIN)."},{"$f":"IF(OrigTable!C7=\"\",\"\",ScriptText!$E$1&CHAR(10)&ScriptText!$C$1)","v":"</td>\n</tr>"},{"$f":"IF(OrigTable!D7=\"\",\"\",ScriptText!$B$1&CHAR(10)&ScriptText!$D$1)","v":"<tr>\n<td>"},{"$f":"IF(OrigTable!D7=\"\",\"\",TEXT(OrigTable!D7,\"00\"))","v":"IMF Notices"},{"$f":"IF(OrigTable!D7=\"\",\"\",ScriptText!$E$1&CHAR(10)&ScriptText!$C$1)","v":"</td>\n</tr>"},{"$f":"IF(OrigTable!E7=\"\",\"\",ScriptText!$B$1&CHAR(10)&ScriptText!$D$1)","v":""},{"$f":"IF(OrigTable!E7=\"\",\"\",TEXT(OrigTable!E7,\"00\"))","v":""},{"$f":"IF(OrigTable!E7=\"\",\"\",ScriptText!$E$1&CHAR(10)&ScriptText!$C$1)","v":""},{"$f":"IF(OrigTable!F7=\"\",\"\",ScriptText!$B$1&CHAR(10)&ScriptText!$D$1)","v":""},{"$f":"IF(OrigTable!F7=\"\",\"\",TEXT(OrigTable!F7,\"00\"))","v":""},{"$f":"IF(OrigTable!F7=\"\",\"\",ScriptText!$E$1&CHAR(10)&ScriptText!$C$1)","v":""},{"$f":"IF(OrigTable!G7=\"\",\"\",ScriptText!$B$1&CHAR(10)&ScriptText!$D$1)","v":""},{"$f":"IF(OrigTable!G7=\"\",\"\",TEXT(OrigTable!G7,\"00\"))","v":""},{"$f":"IF(OrigTable!G7=\"\",\"\",ScriptText!$E$1&CHAR(10)&ScriptText!$C$1)","v":""},7]
["<tr>\n<td>01B</td>\n</tr>\n\n<tr>\n<td>Message about potential Identity Theft during return processing.</td>\n</tr>\n<tr>\n<td>IMF Notices</td>\n</tr>",{"$f":"IF(OrigTable!A8=\"\",\"\",ScriptText!$B$1&CHAR(10)&ScriptText!$D$1)","v":"<tr>\n<td>"},{"$f":"IF(OrigTable!A8=\"\",\"\",TEXT(OrigTable!A8,\"00\"))","v":"01B"},{"$f":"IF(OrigTable!A8=\"\",\"\",ScriptText!$E$1&CHAR(10)&ScriptText!$C$1)","v":"</td>\n</tr>"},{"$f":"IF(OrigTable!B8=\"\",\"\",ScriptText!$B$1&CHAR(10)&ScriptText!$D$1)","v":""},{"$f":"IF(OrigTable!B8=\"\",\"\",TEXT(OrigTable!B8,\"00\"))","v":""},{"$f":"IF(OrigTable!B8=\"\",\"\",ScriptText!$E$1&CHAR(10)&ScriptText!C3)","v":""},{"$f":"IF(OrigTable!C8=\"\",\"\",ScriptText!$B$1&CHAR(10)&ScriptText!$D$1)","v":"<tr>\n<td>"},{"$f":"IF(OrigTable!C8=\"\",\"\",IF(LEN(OrigTable!C8)>255,LEFT(OrigTable!C8,250)&\". . .\",OrigTable!C8))","v":"Message about potential Identity Theft during return processing."},{"$f":"IF(OrigTable!C8=\"\",\"\",ScriptText!$E$1&CHAR(10)&ScriptText!$C$1)","v":"</td>\n</tr>"},{"$f":"IF(OrigTable!D8=\"\",\"\",ScriptText!$B$1&CHAR(10)&ScriptText!$D$1)","v":"<tr>\n<td>"},{"$f":"IF(OrigTable!D8=\"\",\"\",TEXT(OrigTable!D8,\"00\"))","v":"IMF Notices"},{"$f":"IF(OrigTable!D8=\"\",\"\",ScriptText!$E$1&CHAR(10)&ScriptText!$C$1)","v":"</td>\n</tr>"},{"$f":"IF(OrigTable!E8=\"\",\"\",ScriptText!$B$1&CHAR(10)&ScriptText!$D$1)","v":""},{"$f":"IF(OrigTable!E8=\"\",\"\",TEXT(OrigTable!E8,\"00\"))","v":""},{"$f":"IF(OrigTable!E8=\"\",\"\",ScriptText!$E$1&CHAR(10)&ScriptText!$C$1)","v":""},{"$f":"IF(OrigTable!F8=\"\",\"\",ScriptText!$B$1&CHAR(10)&ScriptText!$D$1)","v":""},{"$f":"IF(OrigTable!F8=\"\",\"\",TEXT(OrigTable!F8,\"00\"))","v":""},{"$f":"IF(OrigTable!F8=\"\",\"\",ScriptText!$E$1&CHAR(10)&ScriptText!$C$1)","v":""},{"$f":"IF(OrigTable!G8=\"\",\"\",ScriptText!$B$1&CHAR(10)&ScriptText!$D$1)","v":""},{"$f":"IF(OrigTable!G8=\"\",\"\",TEXT(OrigTable!G8,\"00\"))","v":""},{"$f":"IF(OrigTable!G8=\"\",\"\",ScriptText!$E$1&CHAR(10)&ScriptText!$C$1)","v":""},8]
[{"$f":"_xlfn.TEXTJOIN(\"\",TRUE,B9:D9)&CHAR(10)&_xlfn.TEXTJOIN(\"\",TRUE,E9:G9)&CHAR(10)&_xlfn.TEXTJOIN(\"\",TRUE,H9:J9)&CHAR(10)&_xlfn.TEXTJOIN(\"\",TRUE,K9:M9)&_xlfn.TEXTJOIN(\"\",TRUE,N9:P9)&_xlfn.TEXTJOIN(\"\",TRUE,Q9:S9)&_xlfn.TEXTJOIN(\"\",TRUE,T9:V9)","v":"<tr>\n<td>01E</td>\n</tr>\n\n<tr>\n<td>Employment Related Identity Theft Notice</td>\n</tr>\n<tr>\n<td>IMF Notices</td>\n</tr>"},{"$f":"IF(OrigTable!A9=\"\",\"\",ScriptText!$B$1&CHAR(10)&ScriptText!$D$1)","v":"<tr>\n<td>"},{"$f":"IF(OrigTable!A9=\"\",\"\",TEXT(OrigTable!A9,\"00\"))","v":"01E"},{"$f":"IF(OrigTable!A9=\"\",\"\",ScriptText!$E$1&CHAR(10)&ScriptText!$C$1)","v":"</td>\n</tr>"},{"$f":"IF(OrigTable!B9=\"\",\"\",ScriptText!$B$1&CHAR(10)&ScriptText!$D$1)","v":""},{"$f":"IF(OrigTable!B9=\"\",\"\",TEXT(OrigTable!B9,\"00\"))","v":""},{"$f":"IF(OrigTable!B9=\"\",\"\",ScriptText!$E$1&CHAR(10)&ScriptText!C4)","v":""},{"$f":"IF(OrigTable!C9=\"\",\"\",ScriptText!$B$1&CHAR(10)&ScriptText!$D$1)","v":"<tr>\n<td>"},{"$f":"IF(OrigTable!C9=\"\",\"\",IF(LEN(OrigTable!C9)>255,LEFT(OrigTable!C9,250)&\". . .\",OrigTable!C9))","v":"Employment Related Identity Theft Notice"},{"$f":"IF(OrigTable!C9=\"\",\"\",ScriptText!$E$1&CHAR(10)&ScriptText!$C$1)","v":"</td>\n</tr>"},{"$f":"IF(OrigTable!D9=\"\",\"\",ScriptText!$B$1&CHAR(10)&ScriptText!$D$1)","v":"<tr>\n<td>"},{"$f":"IF(OrigTable!D9=\"\",\"\",TEXT(OrigTable!D9,\"00\"))","v":"IMF Notices"},{"$f":"IF(OrigTable!D9=\"\",\"\",ScriptText!$E$1&CHAR(10)&ScriptText!$C$1)","v":"</td>\n</tr>"},{"$f":"IF(OrigTable!E9=\"\",\"\",ScriptText!$B$1&CHAR(10)&ScriptText!$D$1)","v":""},{"$f":"IF(OrigTable!E9=\"\",\"\",TEXT(OrigTable!E9,\"00\"))","v":""},{"$f":"IF(OrigTable!E9=\"\",\"\",ScriptText!$E$1&CHAR(10)&ScriptText!$C$1)","v":""},{"$f":"IF(OrigTable!F9=\"\",\"\",ScriptText!$B$1&CHAR(10)&ScriptText!$D$1)","v":""},{"$f":"IF(OrigTable!F9=\"\",\"\",TEXT(OrigTable!F9,\"00\"))","v":""},{"$f":"IF(OrigTable!F9=\"\",\"\",ScriptText!$E$1&CHAR(10)&ScriptText!$C$1)","v":""},{"$f":"IF(OrigTable!G9=\"\",\"\",ScriptText!$B$1&CHAR(10)&ScriptText!$D$1)","v":""},{"$f":"IF(OrigTable!G9=\"\",\"\",TEXT(OrigTable!G9,\"00\"))","v":""},{"$f":"IF(OrigTable!G9=\"\",\"\",ScriptText!$E$1&CHAR(10)&ScriptText!$C$1)","v":""},9]
["<tr>\n<td>01F</td>\n</tr>\n\n<tr>\n<td>An identity protection Personal Identification Number will be mailed to you.</td>\n</tr>\n<tr>\n<td>IMF Notices</td>\n</tr>",{"$f":"IF(OrigTable!A10=\"\",\"\",ScriptText!$B$1&CHAR(10)&ScriptText!$D$1)","v":"<tr>\n<td>"},{"$f":"IF(OrigTable!A10=\"\",\"\",TEXT(OrigTable!A10,\"00\"))","v":"01F"},{"$f":"IF(OrigTable!A10=\"\",\"\",ScriptText!$E$1&CHAR(10)&ScriptText!$C$1)","v":"</td>\n</tr>"},{"$f":"IF(OrigTable!B10=\"\",\"\",ScriptText!$B$1&CHAR(10)&ScriptText!$D$1)","v":""},{"$f":"IF(OrigTable!B10=\"\",\"\",TEXT(OrigTable!B10,\"00\"))","v":""},{"$f":"IF(OrigTable!B10=\"\",\"\",ScriptText!$E$1&CHAR(10)&ScriptText!C5)","v":""},{"$f":"IF(OrigTable!C10=\"\",\"\",ScriptText!$B$1&CHAR(10)&ScriptText!$D$1)","v":"<tr>\n<td>"},{"$f":"IF(OrigTable!C10=\"\",\"\",IF(LEN(OrigTable!C10)>255,LEFT(OrigTable!C10,250)&\". . .\",OrigTable!C10))","v":"An identity protection Personal Identification Number will be mailed to you."},{"$f":"IF(OrigTable!C10=\"\",\"\",ScriptText!$E$1&CHAR(10)&ScriptText!$C$1)","v":"</td>\n</tr>"},{"$f":"IF(OrigTable!D10=\"\",\"\",ScriptText!$B$1&CHAR(10)&ScriptText!$D$1)","v":"<tr>\n<td>"},{"$f":"IF(OrigTable!D10=\"\",\"\",TEXT(OrigTable!D10,\"00\"))","v":"IMF Notices"},{"$f":"IF(OrigTable!D10=\"\",\"\",ScriptText!$E$1&CHAR(10)&ScriptText!$C$1)","v":"</td>\n</tr>"},{"$f":"IF(OrigTable!E10=\"\",\"\",ScriptText!$B$1&CHAR(10)&ScriptText!$D$1)","v":""},{"$f":"IF(OrigTable!E10=\"\",\"\",TEXT(OrigTable!E10,\"00\"))","v":""},{"$f":"IF(OrigTable!E10=\"\",\"\",ScriptText!$E$1&CHAR(10)&ScriptText!$C$1)","v":""},{"$f":"IF(OrigTable!F10=\"\",\"\",ScriptText!$B$1&CHAR(10)&ScriptText!$D$1)","v":""},{"$f":"IF(OrigTable!F10=\"\",\"\",TEXT(OrigTable!F10,\"00\"))","v":""},{"$f":"IF(OrigTable!F10=\"\",\"\",ScriptText!$E$1&CHAR(10)&ScriptText!$C$1)","v":""},{"$f":"IF(OrigTable!G10=\"\",\"\",ScriptText!$B$1&CHAR(10)&ScriptText!$D$1)","v":""},{"$f":"IF(OrigTable!G10=\"\",\"\",TEXT(OrigTable!G10,\"00\"))","v":""},{"$f":"IF(OrigTable!G10=\"\",\"\",ScriptText!$E$1&CHAR(10)&ScriptText!$C$1)","v":""},10]
["<tr>\n<td>01H</td>\n</tr>\n\n<tr>\n<td>We are unable to process your tax return which was submitted with Locked SSN.</td>\n</tr>\n<tr>\n<td>IMF Notices</td>\n</tr>",{"$f":"IF(OrigTable!A11=\"\",\"\",ScriptText!$B$1&CHAR(10)&ScriptText!$D$1)","v":"<tr>\n<td>"},{"$f":"IF(OrigTable!A11=\"\",\"\",TEXT(OrigTable!A11,\"00\"))","v":"01H"},{"$f":"IF(OrigTable!A11=\"\",\"\",ScriptText!$E$1&CHAR(10)&ScriptText!$C$1)","v":"</td>\n</tr>"},{"$f":"IF(OrigTable!B11=\"\",\"\",ScriptText!$B$1&CHAR(10)&ScriptText!$D$1)","v":""},{"$f":"IF(OrigTable!B11=\"\",\"\",TEXT(OrigTable!B11,\"00\"))","v":""},{"$f":"IF(OrigTable!B11=\"\",\"\",ScriptText!$E$1&CHAR(10)&ScriptText!C6)","v":""},{"$f":"IF(OrigTable!C11=\"\",\"\",ScriptText!$B$1&CHAR(10)&ScriptText!$D$1)","v":"<tr>\n<td>"},{"$f":"IF(OrigTable!C11=\"\",\"\",IF(LEN(OrigTable!C11)>255,LEFT(OrigTable!C11,250)&\". . .\",OrigTable!C11))","v":"We are unable to process your tax return which was submitted with Locked SSN."},{"$f":"IF(OrigTable!C11=\"\",\"\",ScriptText!$E$1&CHAR(10)&ScriptText!$C$1)","v":"</td>\n</tr>"},{"$f":"IF(OrigTable!D11=\"\",\"\",ScriptText!$B$1&CHAR(10)&ScriptText!$D$1)","v":"<tr>\n<td>"},{"$f":"IF(OrigTable!D11=\"\",\"\",TEXT(OrigTable!D11,\"00\"))","v":"IMF Notices"},{"$f":"IF(OrigTable!D11=\"\",\"\",ScriptText!$E$1&CHAR(10)&ScriptText!$C$1)","v":"</td>\n</tr>"},{"$f":"IF(OrigTable!E11=\"\",\"\",ScriptText!$B$1&CHAR(10)&ScriptText!$D$1)","v":""},{"$f":"IF(OrigTable!E11=\"\",\"\",TEXT(OrigTable!E11,\"00\"))","v":""},{"$f":"IF(OrigTable!E11=\"\",\"\",ScriptText!$E$1&CHAR(10)&ScriptText!$C$1)","v":""},{"$f":"IF(OrigTable!F11=\"\",\"\",ScriptText!$B$1&CHAR(10)&ScriptText!$D$1)","v":""},{"$f":"IF(OrigTable!F11=\"\",\"\",TEXT(OrigTable!F11,\"00\"))","v":""},{"$f":"IF(OrigTable!F11=\"\",\"\",ScriptText!$E$1&CHAR(10)&ScriptText!$C$1)","v":""},{"$f":"IF(OrigTable!G11=\"\",\"\",ScriptText!$B$1&CHAR(10)&ScriptText!$D$1)","v":""},{"$f":"IF(OrigTable!G11=\"\",\"\",TEXT(OrigTable!G11,\"00\"))","v":""},{"$f":"IF(OrigTable!G11=\"\",\"\",ScriptText!$E$1&CHAR(10)&ScriptText!$C$1)","v":""},11]
["<tr>\n<td>01L</td>\n</tr>\n\n<tr>\n<td>Your federal tax account has been locked as requested.</td>\n</tr>\n<tr>\n<td>IMF Notices</td>\n</tr>",{"$f":"IF(OrigTable!A12=\"\",\"\",ScriptText!$B$1&CHAR(10)&ScriptText!$D$1)","v":"<tr>\n<td>"},{"$f":"IF(OrigTable!A12=\"\",\"\",TEXT(OrigTable!A12,\"00\"))","v":"01L"},{"$f":"IF(OrigTable!A12=\"\",\"\",ScriptText!$E$1&CHAR(10)&ScriptText!$C$1)","v":"</td>\n</tr>"},{"$f":"IF(OrigTable!B12=\"\",\"\",ScriptText!$B$1&CHAR(10)&ScriptText!$D$1)","v":""},{"$f":"IF(OrigTable!B12=\"\",\"\",TEXT(OrigTable!B12,\"00\"))","v":""},{"$f":"IF(OrigTable!B12=\"\",\"\",ScriptText!$E$1&CHAR(10)&ScriptText!C7)","v":""},{"$f":"IF(OrigTable!C12=\"\",\"\",ScriptText!$B$1&CHAR(10)&ScriptText!$D$1)","v":"<tr>\n<td>"},{"$f":"IF(OrigTable!C12=\"\",\"\",IF(LEN(OrigTable!C12)>255,LEFT(OrigTable!C12,250)&\". . .\",OrigTable!C12))","v":"Your federal tax account has been locked as requested."},{"$f":"IF(OrigTable!C12=\"\",\"\",ScriptText!$E$1&CHAR(10)&ScriptText!$C$1)","v":"</td>\n</tr>"},{"$f":"IF(OrigTable!D12=\"\",\"\",ScriptText!$B$1&CHAR(10)&ScriptText!$D$1)","v":"<tr>\n<td>"},{"$f":"IF(OrigTable!D12=\"\",\"\",TEXT(OrigTable!D12,\"00\"))","v":"IMF Notices"},{"$f":"IF(OrigTable!D12=\"\",\"\",ScriptText!$E$1&CHAR(10)&ScriptText!$C$1)","v":"</td>\n</tr>"},{"$f":"IF(OrigTable!E12=\"\",\"\",ScriptText!$B$1&CHAR(10)&ScriptText!$D$1)","v":""},{"$f":"IF(OrigTable!E12=\"\",\"\",TEXT(OrigTable!E12,\"00\"))","v":""},{"$f":"IF(OrigTable!E12=\"\",\"\",ScriptText!$E$1&CHAR(10)&ScriptText!$C$1)","v":""},{"$f":"IF(OrigTable!F12=\"\",\"\",ScriptText!$B$1&CHAR(10)&ScriptText!$D$1)","v":""},{"$f":"IF(OrigTable!F12=\"\",\"\",TEXT(OrigTable!F12,\"00\"))","v":""},{"$f":"IF(OrigTable!F12=\"\",\"\",ScriptText!$E$1&CHAR(10)&ScriptText!$C$1)","v":""},{"$f":"IF(OrigTable!G12=\"\",\"\",ScriptText!$B$1&CHAR(10)&ScriptText!$D$1)","v":""},{"$f":"IF(OrigTable!G12=\"\",\"\",TEXT(OrigTable!G12,\"00\"))","v":""},{"$f":"IF(OrigTable!G12=\"\",\"\",ScriptText!$E$1&CHAR(10)&ScriptText!$C$1)","v":""},12]
["<tr>\n<td>01R</td>\n</tr>\n\n<tr>\n<td>We are unable to process your tax return.</td>\n</tr>\n<tr>\n<td>IMF Notices</td>\n</tr>",{"$f":"IF(OrigTable!A13=\"\",\"\",ScriptText!$B$1&CHAR(10)&ScriptText!$D$1)","v":"<tr>\n<td>"},{"$f":"IF(OrigTable!A13=\"\",\"\",TEXT(OrigTable!A13,\"00\"))","v":"01R"},{"$f":"IF(OrigTable!A13=\"\",\"\",ScriptText!$E$1&CHAR(10)&ScriptText!$C$1)","v":"</td>\n</tr>"},{"$f":"IF(OrigTable!B13=\"\",\"\",ScriptText!$B$1&CHAR(10)&ScriptText!$D$1)","v":""},{"$f":"IF(OrigTable!B13=\"\",\"\",TEXT(OrigTable!B13,\"00\"))","v":""},{"$f":"IF(OrigTable!B13=\"\",\"\",ScriptText!$E$1&CHAR(10)&ScriptText!C8)","v":""},{"$f":"IF(OrigTable!C13=\"\",\"\",ScriptText!$B$1&CHAR(10)&ScriptText!$D$1)","v":"<tr>\n<td>"},{"$f":"IF(OrigTable!C13=\"\",\"\",IF(LEN(OrigTable!C13)>255,LEFT(OrigTable!C13,250)&\". . .\",OrigTable!C13))","v":"We are unable to process your tax return."},{"$f":"IF(OrigTable!C13=\"\",\"\",ScriptText!$E$1&CHAR(10)&ScriptText!$C$1)","v":"</td>\n</tr>"},{"$f":"IF(OrigTable!D13=\"\",\"\",ScriptText!$B$1&CHAR(10)&ScriptText!$D$1)","v":"<tr>\n<td>"},{"$f":"IF(OrigTable!D13=\"\",\"\",TEXT(OrigTable!D13,\"00\"))","v":"IMF Notices"},{"$f":"IF(OrigTable!D13=\"\",\"\",ScriptText!$E$1&CHAR(10)&ScriptText!$C$1)","v":"</td>\n</tr>"},{"$f":"IF(OrigTable!E13=\"\",\"\",ScriptText!$B$1&CHAR(10)&ScriptText!$D$1)","v":""},{"$f":"IF(OrigTable!E13=\"\",\"\",TEXT(OrigTable!E13,\"00\"))","v":""},{"$f":"IF(OrigTable!E13=\"\",\"\",ScriptText!$E$1&CHAR(10)&ScriptText!$C$1)","v":""},{"$f":"IF(OrigTable!F13=\"\",\"\",ScriptText!$B$1&CHAR(10)&ScriptText!$D$1)","v":""},{"$f":"IF(OrigTable!F13=\"\",\"\",TEXT(OrigTable!F13,\"00\"))","v":""},{"$f":"IF(OrigTable!F13=\"\",\"\",ScriptText!$E$1&CHAR(10)&ScriptText!$C$1)","v":""},{"$f":"IF(OrigTable!G13=\"\",\"\",ScriptText!$B$1&CHAR(10)&ScriptText!$D$1)","v":""},{"$f":"IF(OrigTable!G13=\"\",\"\",TEXT(OrigTable!G13,\"00\"))","v":""},{"$f":"IF(OrigTable!G13=\"\",\"\",ScriptText!$E$1&CHAR(10)&ScriptText!$C$1)","v":""},13]
["<tr>\n<td>01S</td>\n</tr>\n\n<tr>\n<td>We received your Form 14039 or similar statement for your Identity Theft claim.</td>\n</tr>\n<tr>\n<td>IMF Notices</td>\n</tr>",{"$f":"IF(OrigTable!A14=\"\",\"\",ScriptText!$B$1&CHAR(10)&ScriptText!$D$1)","v":"<tr>\n<td>"},{"$f":"IF(OrigTable!A14=\"\",\"\",TEXT(OrigTable!A14,\"00\"))","v":"01S"},{"$f":"IF(OrigTable!A14=\"\",\"\",ScriptText!$E$1&CHAR(10)&ScriptText!$C$1)","v":"</td>\n</tr>"},{"$f":"IF(OrigTable!B14=\"\",\"\",ScriptText!$B$1&CHAR(10)&ScriptText!$D$1)","v":""},{"$f":"IF(OrigTable!B14=\"\",\"\",TEXT(OrigTable!B14,\"00\"))","v":""},{"$f":"IF(OrigTable!B14=\"\",\"\",ScriptText!$E$1&CHAR(10)&ScriptText!C9)","v":""},{"$f":"IF(OrigTable!C14=\"\",\"\",ScriptText!$B$1&CHAR(10)&ScriptText!$D$1)","v":"<tr>\n<td>"},{"$f":"IF(OrigTable!C14=\"\",\"\",IF(LEN(OrigTable!C14)>255,LEFT(OrigTable!C14,250)&\". . .\",OrigTable!C14))","v":"We received your Form 14039 or similar statement for your Identity Theft claim."},{"$f":"IF(OrigTable!C14=\"\",\"\",ScriptText!$E$1&CHAR(10)&ScriptText!$C$1)","v":"</td>\n</tr>"},{"$f":"IF(OrigTable!D14=\"\",\"\",ScriptText!$B$1&CHAR(10)&ScriptText!$D$1)","v":"<tr>\n<td>"},{"$f":"IF(OrigTable!D14=\"\",\"\",TEXT(OrigTable!D14,\"00\"))","v":"IMF Notices"},{"$f":"IF(OrigTable!D14=\"\",\"\",ScriptText!$E$1&CHAR(10)&ScriptText!$C$1)","v":"</td>\n</tr>"},{"$f":"IF(OrigTable!E14=\"\",\"\",ScriptText!$B$1&CHAR(10)&ScriptText!$D$1)","v":""},{"$f":"IF(OrigTable!E14=\"\",\"\",TEXT(OrigTable!E14,\"00\"))","v":""},{"$f":"IF(OrigTable!E14=\"\",\"\",ScriptText!$E$1&CHAR(10)&ScriptText!$C$1)","v":""},{"$f":"IF(OrigTable!F14=\"\",\"\",ScriptText!$B$1&CHAR(10)&ScriptText!$D$1)","v":""},{"$f":"IF(OrigTable!F14=\"\",\"\",TEXT(OrigTable!F14,\"00\"))","v":""},{"$f":"IF(OrigTable!F14=\"\",\"\",ScriptText!$E$1&CHAR(10)&ScriptText!$C$1)","v":""},{"$f":"IF(OrigTable!G14=\"\",\"\",ScriptText!$B$1&CHAR(10)&ScriptText!$D$1)","v":""},{"$f":"IF(OrigTable!G14=\"\",\"\",TEXT(OrigTable!G14,\"00\"))","v":""},{"$f":"IF(OrigTable!G14=\"\",\"\",ScriptText!$E$1&CHAR(10)&ScriptText!$C$1)","v":""},14]
["<tr>\n<td>01U</td>\n</tr>\n\n<tr>\n<td>We unlocked your federal tax account.</td>\n</tr>\n<tr>\n<td>IMF Notices</td>\n</tr>",{"$f":"IF(OrigTable!A15=\"\",\"\",ScriptText!$B$1&CHAR(10)&ScriptText!$D$1)","v":"<tr>\n<td>"},{"$f":"IF(OrigTable!A15=\"\",\"\",TEXT(OrigTable!A15,\"00\"))","v":"01U"},{"$f":"IF(OrigTable!A15=\"\",\"\",ScriptText!$E$1&CHAR(10)&ScriptText!$C$1)","v":"</td>\n</tr>"},{"$f":"IF(OrigTable!B15=\"\",\"\",ScriptText!$B$1&CHAR(10)&ScriptText!$D$1)","v":""},{"$f":"IF(OrigTable!B15=\"\",\"\",TEXT(OrigTable!B15,\"00\"))","v":""},{"$f":"IF(OrigTable!B15=\"\",\"\",ScriptText!$E$1&CHAR(10)&ScriptText!C10)","v":""},{"$f":"IF(OrigTable!C15=\"\",\"\",ScriptText!$B$1&CHAR(10)&ScriptText!$D$1)","v":"<tr>\n<td>"},{"$f":"IF(OrigTable!C15=\"\",\"\",IF(LEN(OrigTable!C15)>255,LEFT(OrigTable!C15,250)&\". . .\",OrigTable!C15))","v":"We unlocked your federal tax account."},{"$f":"IF(OrigTable!C15=\"\",\"\",ScriptText!$E$1&CHAR(10)&ScriptText!$C$1)","v":"</td>\n</tr>"},{"$f":"IF(OrigTable!D15=\"\",\"\",ScriptText!$B$1&CHAR(10)&ScriptText!$D$1)","v":"<tr>\n<td>"},{"$f":"IF(OrigTable!D15=\"\",\"\",TEXT(OrigTable!D15,\"00\"))","v":"IMF Notices"},{"$f":"IF(OrigTable!D15=\"\",\"\",ScriptText!$E$1&CHAR(10)&ScriptText!$C$1)","v":"</td>\n</tr>"},{"$f":"IF(OrigTable!E15=\"\",\"\",ScriptText!$B$1&CHAR(10)&ScriptText!$D$1)","v":""},{"$f":"IF(OrigTable!E15=\"\",\"\",TEXT(OrigTable!E15,\"00\"))","v":""},{"$f":"IF(OrigTable!E15=\"\",\"\",ScriptText!$E$1&CHAR(10)&ScriptText!$C$1)","v":""},{"$f":"IF(OrigTable!F15=\"\",\"\",ScriptText!$B$1&CHAR(10)&ScriptText!$D$1)","v":""},{"$f":"IF(OrigTable!F15=\"\",\"\",TEXT(OrigTable!F15,\"00\"))","v":""},{"$f":"IF(OrigTable!F15=\"\",\"\",ScriptText!$E$1&CHAR(10)&ScriptText!$C$1)","v":""},{"$f":"IF(OrigTable!G15=\"\",\"\",ScriptText!$B$1&CHAR(10)&ScriptText!$D$1)","v":""},{"$f":"IF(OrigTable!G15=\"\",\"\",TEXT(OrigTable!G15,\"00\"))","v":""},{"$f":"IF(OrigTable!G15=\"\",\"\",ScriptText!$E$1&CHAR(10)&ScriptText!$C$1)","v":""},15]
["<tr>\n<td>02H</td>\n</tr>\n\n<tr>\n<td>Casualty/Disaster Loss reminder notice (Katrina/Wilma/Rita).</td>\n</tr>\n<tr>\n<td>IMF Notices</td>\n</tr>",{"$f":"IF(OrigTable!A16=\"\",\"\",ScriptText!$B$1&CHAR(10)&ScriptText!$D$1)","v":"<tr>\n<td>"},{"$f":"IF(OrigTable!A16=\"\",\"\",TEXT(OrigTable!A16,\"00\"))","v":"02H"},{"$f":"IF(OrigTable!A16=\"\",\"\",ScriptText!$E$1&CHAR(10)&ScriptText!$C$1)","v":"</td>\n</tr>"},{"$f":"IF(OrigTable!B16=\"\",\"\",ScriptText!$B$1&CHAR(10)&ScriptText!$D$1)","v":""},{"$f":"IF(OrigTable!B16=\"\",\"\",TEXT(OrigTable!B16,\"00\"))","v":""},{"$f":"IF(OrigTable!B16=\"\",\"\",ScriptText!$E$1&CHAR(10)&ScriptText!C11)","v":""},{"$f":"IF(OrigTable!C16=\"\",\"\",ScriptText!$B$1&CHAR(10)&ScriptText!$D$1)","v":"<tr>\n<td>"},{"$f":"IF(OrigTable!C16=\"\",\"\",IF(LEN(OrigTable!C16)>255,LEFT(OrigTable!C16,250)&\". . .\",OrigTable!C16))","v":"Casualty/Disaster Loss reminder notice (Katrina/Wilma/Rita)."},{"$f":"IF(OrigTable!C16=\"\",\"\",ScriptText!$E$1&CHAR(10)&ScriptText!$C$1)","v":"</td>\n</tr>"},{"$f":"IF(OrigTable!D16=\"\",\"\",ScriptText!$B$1&CHAR(10)&ScriptText!$D$1)","v":"<tr>\n<td>"},{"$f":"IF(OrigTable!D16=\"\",\"\",TEXT(OrigTable!D16,\"00\"))","v":"IMF Notices"},{"$f":"IF(OrigTable!D16=\"\",\"\",ScriptText!$E$1&CHAR(10)&ScriptText!$C$1)","v":"</td>\n</tr>"},{"$f":"IF(OrigTable!E16=\"\",\"\",ScriptText!$B$1&CHAR(10)&ScriptText!$D$1)","v":""},{"$f":"IF(OrigTable!E16=\"\",\"\",TEXT(OrigTable!E16,\"00\"))","v":""},{"$f":"IF(OrigTable!E16=\"\",\"\",ScriptText!$E$1&CHAR(10)&ScriptText!$C$1)","v":""},{"$f":"IF(OrigTable!F16=\"\",\"\",ScriptText!$B$1&CHAR(10)&ScriptText!$D$1)","v":""},{"$f":"IF(OrigTable!F16=\"\",\"\",TEXT(OrigTable!F16,\"00\"))","v":""},{"$f":"IF(OrigTable!F16=\"\",\"\",ScriptText!$E$1&CHAR(10)&ScriptText!$C$1)","v":""},{"$f":"IF(OrigTable!G16=\"\",\"\",ScriptText!$B$1&CHAR(10)&ScriptText!$D$1)","v":""},{"$f":"IF(OrigTable!G16=\"\",\"\",TEXT(OrigTable!G16,\"00\"))","v":""},{"$f":"IF(OrigTable!G16=\"\",\"\",ScriptText!$E$1&CHAR(10)&ScriptText!$C$1)","v":""},16]
["<tr>\n<td>03C</td>\n</tr>\n\n<tr>\n<td>Important information about your First-Time Home Buyers Credit reporting of any change to your primary residence.</td>\n</tr>\n<tr>\n<td>IMF Notices</td>\n</tr>",{"$f":"IF(OrigTable!A17=\"\",\"\",ScriptText!$B$1&CHAR(10)&ScriptText!$D$1)","v":"<tr>\n<td>"},{"$f":"IF(OrigTable!A17=\"\",\"\",TEXT(OrigTable!A17,\"00\"))","v":"03C"},{"$f":"IF(OrigTable!A17=\"\",\"\",ScriptText!$E$1&CHAR(10)&ScriptText!$C$1)","v":"</td>\n</tr>"},{"$f":"IF(OrigTable!B17=\"\",\"\",ScriptText!$B$1&CHAR(10)&ScriptText!$D$1)","v":""},{"$f":"IF(OrigTable!B17=\"\",\"\",TEXT(OrigTable!B17,\"00\"))","v":""},{"$f":"IF(OrigTable!B17=\"\",\"\",ScriptText!$E$1&CHAR(10)&ScriptText!C12)","v":""},{"$f":"IF(OrigTable!C17=\"\",\"\",ScriptText!$B$1&CHAR(10)&ScriptText!$D$1)","v":"<tr>\n<td>"},{"$f":"IF(OrigTable!C17=\"\",\"\",IF(LEN(OrigTable!C17)>255,LEFT(OrigTable!C17,250)&\". . .\",OrigTable!C17))","v":"Important information about your First-Time Home Buyers Credit reporting of any change to your primary residence."},{"$f":"IF(OrigTable!C17=\"\",\"\",ScriptText!$E$1&CHAR(10)&ScriptText!$C$1)","v":"</td>\n</tr>"},{"$f":"IF(OrigTable!D17=\"\",\"\",ScriptText!$B$1&CHAR(10)&ScriptText!$D$1)","v":"<tr>\n<td>"},{"$f":"IF(OrigTable!D17=\"\",\"\",TEXT(OrigTable!D17,\"00\"))","v":"IMF Notices"},{"$f":"IF(OrigTable!D17=\"\",\"\",ScriptText!$E$1&CHAR(10)&ScriptText!$C$1)","v":"</td>\n</tr>"},{"$f":"IF(OrigTable!E17=\"\",\"\",ScriptText!$B$1&CHAR(10)&ScriptText!$D$1)","v":""},{"$f":"IF(OrigTable!E17=\"\",\"\",TEXT(OrigTable!E17,\"00\"))","v":""},{"$f":"IF(OrigTable!E17=\"\",\"\",ScriptText!$E$1&CHAR(10)&ScriptText!$C$1)","v":""},{"$f":"IF(OrigTable!F17=\"\",\"\",ScriptText!$B$1&CHAR(10)&ScriptText!$D$1)","v":""},{"$f":"IF(OrigTable!F17=\"\",\"\",TEXT(OrigTable!F17,\"00\"))","v":""},{"$f":"IF(OrigTable!F17=\"\",\"\",ScriptText!$E$1&CHAR(10)&ScriptText!$C$1)","v":""},{"$f":"IF(OrigTable!G17=\"\",\"\",ScriptText!$B$1&CHAR(10)&ScriptText!$D$1)","v":""},{"$f":"IF(OrigTable!G17=\"\",\"\",TEXT(OrigTable!G17,\"00\"))","v":""},{"$f":"IF(OrigTable!G17=\"\",\"\",ScriptText!$E$1&CHAR(10)&ScriptText!$C$1)","v":""},17]
["<tr>\n<td>04</td>\n</tr>\n\n<tr>\n<td>Important information about your Combat Zone tax deferment, we need information about your dates of service.</td>\n</tr>\n<tr>\n<td>IMF Notices</td>\n</tr>",{"$f":"IF(OrigTable!A18=\"\",\"\",ScriptText!$B$1&CHAR(10)&ScriptText!$D$1)","v":"<tr>\n<td>"},{"$f":"IF(OrigTable!A18=\"\",\"\",TEXT(OrigTable!A18,\"00\"))","v":"04"},{"$f":"IF(OrigTable!A18=\"\",\"\",ScriptText!$E$1&CHAR(10)&ScriptText!$C$1)","v":"</td>\n</tr>"},{"$f":"IF(OrigTable!B18=\"\",\"\",ScriptText!$B$1&CHAR(10)&ScriptText!$D$1)","v":""},{"$f":"IF(OrigTable!B18=\"\",\"\",TEXT(OrigTable!B18,\"00\"))","v":""},{"$f":"IF(OrigTable!B18=\"\",\"\",ScriptText!$E$1&CHAR(10)&ScriptText!C13)","v":""},{"$f":"IF(OrigTable!C18=\"\",\"\",ScriptText!$B$1&CHAR(10)&ScriptText!$D$1)","v":"<tr>\n<td>"},{"$f":"IF(OrigTable!C18=\"\",\"\",IF(LEN(OrigTable!C18)>255,LEFT(OrigTable!C18,250)&\". . .\",OrigTable!C18))","v":"Important information about your Combat Zone tax deferment, we need information about your dates of service."},{"$f":"IF(OrigTable!C18=\"\",\"\",ScriptText!$E$1&CHAR(10)&ScriptText!$C$1)","v":"</td>\n</tr>"},{"$f":"IF(OrigTable!D18=\"\",\"\",ScriptText!$B$1&CHAR(10)&ScriptText!$D$1)","v":"<tr>\n<td>"},{"$f":"IF(OrigTable!D18=\"\",\"\",TEXT(OrigTable!D18,\"00\"))","v":"IMF Notices"},{"$f":"IF(OrigTable!D18=\"\",\"\",ScriptText!$E$1&CHAR(10)&ScriptText!$C$1)","v":"</td>\n</tr>"},{"$f":"IF(OrigTable!E18=\"\",\"\",ScriptText!$B$1&CHAR(10)&ScriptText!$D$1)","v":""},{"$f":"IF(OrigTable!E18=\"\",\"\",TEXT(OrigTable!E18,\"00\"))","v":""},{"$f":"IF(OrigTable!E18=\"\",\"\",ScriptText!$E$1&CHAR(10)&ScriptText!$C$1)","v":""},{"$f":"IF(OrigTable!F18=\"\",\"\",ScriptText!$B$1&CHAR(10)&ScriptText!$D$1)","v":""},{"$f":"IF(OrigTable!F18=\"\",\"\",TEXT(OrigTable!F18,\"00\"))","v":""},{"$f":"IF(OrigTable!F18=\"\",\"\",ScriptText!$E$1&CHAR(10)&ScriptText!$C$1)","v":""},{"$f":"IF(OrigTable!G18=\"\",\"\",ScriptText!$B$1&CHAR(10)&ScriptText!$D$1)","v":""},{"$f":"IF(OrigTable!G18=\"\",\"\",TEXT(OrigTable!G18,\"00\"))","v":""},{"$f":"IF(OrigTable!G18=\"\",\"\",ScriptText!$E$1&CHAR(10)&ScriptText!$C$1)","v":""},18]
["<tr>\n<td>05</td>\n</tr>\n\n<tr>\n<td>We’re holding your refund until we finish reviewing your tax return.</td>\n</tr>\n<tr>\n<td>IMF Notices</td>\n</tr>",{"$f":"IF(OrigTable!A19=\"\",\"\",ScriptText!$B$1&CHAR(10)&ScriptText!$D$1)","v":"<tr>\n<td>"},{"$f":"IF(OrigTable!A19=\"\",\"\",TEXT(OrigTable!A19,\"00\"))","v":"05"},{"$f":"IF(OrigTable!A19=\"\",\"\",ScriptText!$E$1&CHAR(10)&ScriptText!$C$1)","v":"</td>\n</tr>"},{"$f":"IF(OrigTable!B19=\"\",\"\",ScriptText!$B$1&CHAR(10)&ScriptText!$D$1)","v":""},{"$f":"IF(OrigTable!B19=\"\",\"\",TEXT(OrigTable!B19,\"00\"))","v":""},{"$f":"IF(OrigTable!B19=\"\",\"\",ScriptText!$E$1&CHAR(10)&ScriptText!C14)","v":""},{"$f":"IF(OrigTable!C19=\"\",\"\",ScriptText!$B$1&CHAR(10)&ScriptText!$D$1)","v":"<tr>\n<td>"},{"$f":"IF(OrigTable!C19=\"\",\"\",IF(LEN(OrigTable!C19)>255,LEFT(OrigTable!C19,250)&\". . .\",OrigTable!C19))","v":"We’re holding your refund until we finish reviewing your tax return."},{"$f":"IF(OrigTable!C19=\"\",\"\",ScriptText!$E$1&CHAR(10)&ScriptText!$C$1)","v":"</td>\n</tr>"},{"$f":"IF(OrigTable!D19=\"\",\"\",ScriptText!$B$1&CHAR(10)&ScriptText!$D$1)","v":"<tr>\n<td>"},{"$f":"IF(OrigTable!D19=\"\",\"\",TEXT(OrigTable!D19,\"00\"))","v":"IMF Notices"},{"$f":"IF(OrigTable!D19=\"\",\"\",ScriptText!$E$1&CHAR(10)&ScriptText!$C$1)","v":"</td>\n</tr>"},{"$f":"IF(OrigTable!E19=\"\",\"\",ScriptText!$B$1&CHAR(10)&ScriptText!$D$1)","v":""},{"$f":"IF(OrigTable!E19=\"\",\"\",TEXT(OrigTable!E19,\"00\"))","v":""},{"$f":"IF(OrigTable!E19=\"\",\"\",ScriptText!$E$1&CHAR(10)&ScriptText!$C$1)","v":""},{"$f":"IF(OrigTable!F19=\"\",\"\",ScriptText!$B$1&CHAR(10)&ScriptText!$D$1)","v":""},{"$f":"IF(OrigTable!F19=\"\",\"\",TEXT(OrigTable!F19,\"00\"))","v":""},{"$f":"IF(OrigTable!F19=\"\",\"\",ScriptText!$E$1&CHAR(10)&ScriptText!$C$1)","v":""},{"$f":"IF(OrigTable!G19=\"\",\"\",ScriptText!$B$1&CHAR(10)&ScriptText!$D$1)","v":""},{"$f":"IF(OrigTable!G19=\"\",\"\",TEXT(OrigTable!G19,\"00\"))","v":""},{"$f":"IF(OrigTable!G19=\"\",\"\",ScriptText!$E$1&CHAR(10)&ScriptText!$C$1)","v":""},19]
["<tr>\n<td>05A</td>\n</tr>\n\n<tr>\n<td>We need more information to determine whether you’re due a refund.</td>\n</tr>\n<tr>\n<td>IMF Notices</td>\n</tr>",{"$f":"IF(OrigTable!A20=\"\",\"\",ScriptText!$B$1&CHAR(10)&ScriptText!$D$1)","v":"<tr>\n<td>"},{"$f":"IF(OrigTable!A20=\"\",\"\",TEXT(OrigTable!A20,\"00\"))","v":"05A"},{"$f":"IF(OrigTable!A20=\"\",\"\",ScriptText!$E$1&CHAR(10)&ScriptText!$C$1)","v":"</td>\n</tr>"},{"$f":"IF(OrigTable!B20=\"\",\"\",ScriptText!$B$1&CHAR(10)&ScriptText!$D$1)","v":""},{"$f":"IF(OrigTable!B20=\"\",\"\",TEXT(OrigTable!B20,\"00\"))","v":""},{"$f":"IF(OrigTable!B20=\"\",\"\",ScriptText!$E$1&CHAR(10)&ScriptText!C15)","v":""},{"$f":"IF(OrigTable!C20=\"\",\"\",ScriptText!$B$1&CHAR(10)&ScriptText!$D$1)","v":"<tr>\n<td>"},{"$f":"IF(OrigTable!C20=\"\",\"\",IF(LEN(OrigTable!C20)>255,LEFT(OrigTable!C20,250)&\". . .\",OrigTable!C20))","v":"We need more information to determine whether you’re due a refund."},{"$f":"IF(OrigTable!C20=\"\",\"\",ScriptText!$E$1&CHAR(10)&ScriptText!$C$1)","v":"</td>\n</tr>"},{"$f":"IF(OrigTable!D20=\"\",\"\",ScriptText!$B$1&CHAR(10)&ScriptText!$D$1)","v":"<tr>\n<td>"},{"$f":"IF(OrigTable!D20=\"\",\"\",TEXT(OrigTable!D20,\"00\"))","v":"IMF Notices"},{"$f":"IF(OrigTable!D20=\"\",\"\",ScriptText!$E$1&CHAR(10)&ScriptText!$C$1)","v":"</td>\n</tr>"},{"$f":"IF(OrigTable!E20=\"\",\"\",ScriptText!$B$1&CHAR(10)&ScriptText!$D$1)","v":""},{"$f":"IF(OrigTable!E20=\"\",\"\",TEXT(OrigTable!E20,\"00\"))","v":""},{"$f":"IF(OrigTable!E20=\"\",\"\",ScriptText!$E$1&CHAR(10)&ScriptText!$C$1)","v":""},{"$f":"IF(OrigTable!F20=\"\",\"\",ScriptText!$B$1&CHAR(10)&ScriptText!$D$1)","v":""},{"$f":"IF(OrigTable!F20=\"\",\"\",TEXT(OrigTable!F20,\"00\"))","v":""},{"$f":"IF(OrigTable!F20=\"\",\"\",ScriptText!$E$1&CHAR(10)&ScriptText!$C$1)","v":""},{"$f":"IF(OrigTable!G20=\"\",\"\",ScriptText!$B$1&CHAR(10)&ScriptText!$D$1)","v":""},{"$f":"IF(OrigTable!G20=\"\",\"\",TEXT(OrigTable!G20,\"00\"))","v":""},{"$f":"IF(OrigTable!G20=\"\",\"\",ScriptText!$E$1&CHAR(10)&ScriptText!$C$1)","v":""},20]
["<tr>\n<td>05B</td>\n</tr>\n\n<tr>\n<td>We need more information to determine whether you’re due a refund</td>\n</tr>\n<tr>\n<td>IMF Notices</td>\n</tr>",{"$f":"IF(OrigTable!A21=\"\",\"\",ScriptText!$B$1&CHAR(10)&ScriptText!$D$1)","v":"<tr>\n<td>"},{"$f":"IF(OrigTable!A21=\"\",\"\",TEXT(OrigTable!A21,\"00\"))","v":"05B"},{"$f":"IF(OrigTable!A21=\"\",\"\",ScriptText!$E$1&CHAR(10)&ScriptText!$C$1)","v":"</td>\n</tr>"},{"$f":"IF(OrigTable!B21=\"\",\"\",ScriptText!$B$1&CHAR(10)&ScriptText!$D$1)","v":""},{"$f":"IF(OrigTable!B21=\"\",\"\",TEXT(OrigTable!B21,\"00\"))","v":""},{"$f":"IF(OrigTable!B21=\"\",\"\",ScriptText!$E$1&CHAR(10)&ScriptText!C16)","v":""},{"$f":"IF(OrigTable!C21=\"\",\"\",ScriptText!$B$1&CHAR(10)&ScriptText!$D$1)","v":"<tr>\n<td>"},{"$f":"IF(OrigTable!C21=\"\",\"\",IF(LEN(OrigTable!C21)>255,LEFT(OrigTable!C21,250)&\". . .\",OrigTable!C21))","v":"We need more information to determine whether you’re due a refund"},{"$f":"IF(OrigTable!C21=\"\",\"\",ScriptText!$E$1&CHAR(10)&ScriptText!$C$1)","v":"</td>\n</tr>"},{"$f":"IF(OrigTable!D21=\"\",\"\",ScriptText!$B$1&CHAR(10)&ScriptText!$D$1)","v":"<tr>\n<td>"},{"$f":"IF(OrigTable!D21=\"\",\"\",TEXT(OrigTable!D21,\"00\"))","v":"IMF Notices"},{"$f":"IF(OrigTable!D21=\"\",\"\",ScriptText!$E$1&CHAR(10)&ScriptText!$C$1)","v":"</td>\n</tr>"},{"$f":"IF(OrigTable!E21=\"\",\"\",ScriptText!$B$1&CHAR(10)&ScriptText!$D$1)","v":""},{"$f":"IF(OrigTable!E21=\"\",\"\",TEXT(OrigTable!E21,\"00\"))","v":""},{"$f":"IF(OrigTable!E21=\"\",\"\",ScriptText!$E$1&CHAR(10)&ScriptText!$C$1)","v":""},{"$f":"IF(OrigTable!F21=\"\",\"\",ScriptText!$B$1&CHAR(10)&ScriptText!$D$1)","v":""},{"$f":"IF(OrigTable!F21=\"\",\"\",TEXT(OrigTable!F21,\"00\"))","v":""},{"$f":"IF(OrigTable!F21=\"\",\"\",ScriptText!$E$1&CHAR(10)&ScriptText!$C$1)","v":""},{"$f":"IF(OrigTable!G21=\"\",\"\",ScriptText!$B$1&CHAR(10)&ScriptText!$D$1)","v":""},{"$f":"IF(OrigTable!G21=\"\",\"\",TEXT(OrigTable!G21,\"00\"))","v":""},{"$f":"IF(OrigTable!G21=\"\",\"\",ScriptText!$E$1&CHAR(10)&ScriptText!$C$1)","v":""},21]
["<tr>\n<td>07</td>\n</tr>\n\n<tr>\n<td>We're holding your refund for further review-1040NR.</td>\n</tr>\n<tr>\n<td>IMF Notices</td>\n</tr>",{"$f":"IF(OrigTable!A22=\"\",\"\",ScriptText!$B$1&CHAR(10)&ScriptText!$D$1)","v":"<tr>\n<td>"},{"$f":"IF(OrigTable!A22=\"\",\"\",TEXT(OrigTable!A22,\"00\"))","v":"07"},{"$f":"IF(OrigTable!A22=\"\",\"\",ScriptText!$E$1&CHAR(10)&ScriptText!$C$1)","v":"</td>\n</tr>"},{"$f":"IF(OrigTable!B22=\"\",\"\",ScriptText!$B$1&CHAR(10)&ScriptText!$D$1)","v":""},{"$f":"IF(OrigTable!B22=\"\",\"\",TEXT(OrigTable!B22,\"00\"))","v":""},{"$f":"IF(OrigTable!B22=\"\",\"\",ScriptText!$E$1&CHAR(10)&ScriptText!C17)","v":""},{"$f":"IF(OrigTable!C22=\"\",\"\",ScriptText!$B$1&CHAR(10)&ScriptText!$D$1)","v":"<tr>\n<td>"},{"$f":"IF(OrigTable!C22=\"\",\"\",IF(LEN(OrigTable!C22)>255,LEFT(OrigTable!C22,250)&\". . .\",OrigTable!C22))","v":"We're holding your refund for further review-1040NR."},{"$f":"IF(OrigTable!C22=\"\",\"\",ScriptText!$E$1&CHAR(10)&ScriptText!$C$1)","v":"</td>\n</tr>"},{"$f":"IF(OrigTable!D22=\"\",\"\",ScriptText!$B$1&CHAR(10)&ScriptText!$D$1)","v":"<tr>\n<td>"},{"$f":"IF(OrigTable!D22=\"\",\"\",TEXT(OrigTable!D22,\"00\"))","v":"IMF Notices"},{"$f":"IF(OrigTable!D22=\"\",\"\",ScriptText!$E$1&CHAR(10)&ScriptText!$C$1)","v":"</td>\n</tr>"},{"$f":"IF(OrigTable!E22=\"\",\"\",ScriptText!$B$1&CHAR(10)&ScriptText!$D$1)","v":""},{"$f":"IF(OrigTable!E22=\"\",\"\",TEXT(OrigTable!E22,\"00\"))","v":""},{"$f":"IF(OrigTable!E22=\"\",\"\",ScriptText!$E$1&CHAR(10)&ScriptText!$C$1)","v":""},{"$f":"IF(OrigTable!F22=\"\",\"\",ScriptText!$B$1&CHAR(10)&ScriptText!$D$1)","v":""},{"$f":"IF(OrigTable!F22=\"\",\"\",TEXT(OrigTable!F22,\"00\"))","v":""},{"$f":"IF(OrigTable!F22=\"\",\"\",ScriptText!$E$1&CHAR(10)&ScriptText!$C$1)","v":""},{"$f":"IF(OrigTable!G22=\"\",\"\",ScriptText!$B$1&CHAR(10)&ScriptText!$D$1)","v":""},{"$f":"IF(OrigTable!G22=\"\",\"\",TEXT(OrigTable!G22,\"00\"))","v":""},{"$f":"IF(OrigTable!G22=\"\",\"\",ScriptText!$E$1&CHAR(10)&ScriptText!$C$1)","v":""},22]
["<tr>\n<td>06</td>\n</tr>\n\n<tr>\n<td>Premiun Tax Credit Verification, supporting docs requested refund frozen</td>\n</tr>\n<tr>\n<td>IMF Notices</td>\n</tr>",{"$f":"IF(OrigTable!A23=\"\",\"\",ScriptText!$B$1&CHAR(10)&ScriptText!$D$1)","v":"<tr>\n<td>"},{"$f":"IF(OrigTable!A23=\"\",\"\",TEXT(OrigTable!A23,\"00\"))","v":"06"},{"$f":"IF(OrigTable!A23=\"\",\"\",ScriptText!$E$1&CHAR(10)&ScriptText!$C$1)","v":"</td>\n</tr>"},{"$f":"IF(OrigTable!B23=\"\",\"\",ScriptText!$B$1&CHAR(10)&ScriptText!$D$1)","v":""},{"$f":"IF(OrigTable!B23=\"\",\"\",TEXT(OrigTable!B23,\"00\"))","v":""},{"$f":"IF(OrigTable!B23=\"\",\"\",ScriptText!$E$1&CHAR(10)&ScriptText!C18)","v":""},{"$f":"IF(OrigTable!C23=\"\",\"\",ScriptText!$B$1&CHAR(10)&ScriptText!$D$1)","v":"<tr>\n<td>"},{"$f":"IF(OrigTable!C23=\"\",\"\",IF(LEN(OrigTable!C23)>255,LEFT(OrigTable!C23,250)&\". . .\",OrigTable!C23))","v":"Premiun Tax Credit Verification, supporting docs requested refund frozen"},{"$f":"IF(OrigTable!C23=\"\",\"\",ScriptText!$E$1&CHAR(10)&ScriptText!$C$1)","v":"</td>\n</tr>"},{"$f":"IF(OrigTable!D23=\"\",\"\",ScriptText!$B$1&CHAR(10)&ScriptText!$D$1)","v":"<tr>\n<td>"},{"$f":"IF(OrigTable!D23=\"\",\"\",TEXT(OrigTable!D23,\"00\"))","v":"IMF Notices"},{"$f":"IF(OrigTable!D23=\"\",\"\",ScriptText!$E$1&CHAR(10)&ScriptText!$C$1)","v":"</td>\n</tr>"},{"$f":"IF(OrigTable!E23=\"\",\"\",ScriptText!$B$1&CHAR(10)&ScriptText!$D$1)","v":""},{"$f":"IF(OrigTable!E23=\"\",\"\",TEXT(OrigTable!E23,\"00\"))","v":""},{"$f":"IF(OrigTable!E23=\"\",\"\",ScriptText!$E$1&CHAR(10)&ScriptText!$C$1)","v":""},{"$f":"IF(OrigTable!F23=\"\",\"\",ScriptText!$B$1&CHAR(10)&ScriptText!$D$1)","v":""},{"$f":"IF(OrigTable!F23=\"\",\"\",TEXT(OrigTable!F23,\"00\"))","v":""},{"$f":"IF(OrigTable!F23=\"\",\"\",ScriptText!$E$1&CHAR(10)&ScriptText!$C$1)","v":""},{"$f":"IF(OrigTable!G23=\"\",\"\",ScriptText!$B$1&CHAR(10)&ScriptText!$D$1)","v":""},{"$f":"IF(OrigTable!G23=\"\",\"\",TEXT(OrigTable!G23,\"00\"))","v":""},{"$f":"IF(OrigTable!G23=\"\",\"\",ScriptText!$E$1&CHAR(10)&ScriptText!$C$1)","v":""},23]
["<tr>\n<td>06A</td>\n</tr>\n\n<tr>\n<td>Premiun Tax Credit Verification, supporting docs requested possible bal due or even balance</td>\n</tr>\n<tr>\n<td>IMF Notices</td>\n</tr>",{"$f":"IF(OrigTable!A24=\"\",\"\",ScriptText!$B$1&CHAR(10)&ScriptText!$D$1)","v":"<tr>\n<td>"},{"$f":"IF(OrigTable!A24=\"\",\"\",TEXT(OrigTable!A24,\"00\"))","v":"06A"},{"$f":"IF(OrigTable!A24=\"\",\"\",ScriptText!$E$1&CHAR(10)&ScriptText!$C$1)","v":"</td>\n</tr>"},{"$f":"IF(OrigTable!B24=\"\",\"\",ScriptText!$B$1&CHAR(10)&ScriptText!$D$1)","v":""},{"$f":"IF(OrigTable!B24=\"\",\"\",TEXT(OrigTable!B24,\"00\"))","v":""},{"$f":"IF(OrigTable!B24=\"\",\"\",ScriptText!$E$1&CHAR(10)&ScriptText!C19)","v":""},{"$f":"IF(OrigTable!C24=\"\",\"\",ScriptText!$B$1&CHAR(10)&ScriptText!$D$1)","v":"<tr>\n<td>"},{"$f":"IF(OrigTable!C24=\"\",\"\",IF(LEN(OrigTable!C24)>255,LEFT(OrigTable!C24,250)&\". . .\",OrigTable!C24))","v":"Premiun Tax Credit Verification, supporting docs requested possible bal due or even balance"},{"$f":"IF(OrigTable!C24=\"\",\"\",ScriptText!$E$1&CHAR(10)&ScriptText!$C$1)","v":"</td>\n</tr>"},{"$f":"IF(OrigTable!D24=\"\",\"\",ScriptText!$B$1&CHAR(10)&ScriptText!$D$1)","v":"<tr>\n<td>"},{"$f":"IF(OrigTable!D24=\"\",\"\",TEXT(OrigTable!D24,\"00\"))","v":"IMF Notices"},{"$f":"IF(OrigTable!D24=\"\",\"\",ScriptText!$E$1&CHAR(10)&ScriptText!$C$1)","v":"</td>\n</tr>"},{"$f":"IF(OrigTable!E24=\"\",\"\",ScriptText!$B$1&CHAR(10)&ScriptText!$D$1)","v":""},{"$f":"IF(OrigTable!E24=\"\",\"\",TEXT(OrigTable!E24,\"00\"))","v":""},{"$f":"IF(OrigTable!E24=\"\",\"\",ScriptText!$E$1&CHAR(10)&ScriptText!$C$1)","v":""},{"$f":"IF(OrigTable!F24=\"\",\"\",ScriptText!$B$1&CHAR(10)&ScriptText!$D$1)","v":""},{"$f":"IF(OrigTable!F24=\"\",\"\",TEXT(OrigTable!F24,\"00\"))","v":""},{"$f":"IF(OrigTable!F24=\"\",\"\",ScriptText!$E$1&CHAR(10)&ScriptText!$C$1)","v":""},{"$f":"IF(OrigTable!G24=\"\",\"\",ScriptText!$B$1&CHAR(10)&ScriptText!$D$1)","v":""},{"$f":"IF(OrigTable!G24=\"\",\"\",TEXT(OrigTable!G24,\"00\"))","v":""},{"$f":"IF(OrigTable!G24=\"\",\"\",ScriptText!$E$1&CHAR(10)&ScriptText!$C$1)","v":""},24]
["<tr>\n<td>08</td>\n</tr>\n\n<tr>\n<td>You may be entitled to additional Child Tax Credit – You may qualify for a refund.</td>\n</tr>\n<tr>\n<td>IMF Notices</td>\n</tr>",{"$f":"IF(OrigTable!A25=\"\",\"\",ScriptText!$B$1&CHAR(10)&ScriptText!$D$1)","v":"<tr>\n<td>"},{"$f":"IF(OrigTable!A25=\"\",\"\",TEXT(OrigTable!A25,\"00\"))","v":"08"},{"$f":"IF(OrigTable!A25=\"\",\"\",ScriptText!$E$1&CHAR(10)&ScriptText!$C$1)","v":"</td>\n</tr>"},{"$f":"IF(OrigTable!B25=\"\",\"\",ScriptText!$B$1&CHAR(10)&ScriptText!$D$1)","v":""},{"$f":"IF(OrigTable!B25=\"\",\"\",TEXT(OrigTable!B25,\"00\"))","v":""},{"$f":"IF(OrigTable!B25=\"\",\"\",ScriptText!$E$1&CHAR(10)&ScriptText!C20)","v":""},{"$f":"IF(OrigTable!C25=\"\",\"\",ScriptText!$B$1&CHAR(10)&ScriptText!$D$1)","v":"<tr>\n<td>"},{"$f":"IF(OrigTable!C25=\"\",\"\",IF(LEN(OrigTable!C25)>255,LEFT(OrigTable!C25,250)&\". . .\",OrigTable!C25))","v":"You may be entitled to additional Child Tax Credit – You may qualify for a refund."},{"$f":"IF(OrigTable!C25=\"\",\"\",ScriptText!$E$1&CHAR(10)&ScriptText!$C$1)","v":"</td>\n</tr>"},{"$f":"IF(OrigTable!D25=\"\",\"\",ScriptText!$B$1&CHAR(10)&ScriptText!$D$1)","v":"<tr>\n<td>"},{"$f":"IF(OrigTable!D25=\"\",\"\",TEXT(OrigTable!D25,\"00\"))","v":"IMF Notices"},{"$f":"IF(OrigTable!D25=\"\",\"\",ScriptText!$E$1&CHAR(10)&ScriptText!$C$1)","v":"</td>\n</tr>"},{"$f":"IF(OrigTable!E25=\"\",\"\",ScriptText!$B$1&CHAR(10)&ScriptText!$D$1)","v":""},{"$f":"IF(OrigTable!E25=\"\",\"\",TEXT(OrigTable!E25,\"00\"))","v":""},{"$f":"IF(OrigTable!E25=\"\",\"\",ScriptText!$E$1&CHAR(10)&ScriptText!$C$1)","v":""},{"$f":"IF(OrigTable!F25=\"\",\"\",ScriptText!$B$1&CHAR(10)&ScriptText!$D$1)","v":""},{"$f":"IF(OrigTable!F25=\"\",\"\",TEXT(OrigTable!F25,\"00\"))","v":""},{"$f":"IF(OrigTable!F25=\"\",\"\",ScriptText!$E$1&CHAR(10)&ScriptText!$C$1)","v":""},{"$f":"IF(OrigTable!G25=\"\",\"\",ScriptText!$B$1&CHAR(10)&ScriptText!$D$1)","v":""},{"$f":"IF(OrigTable!G25=\"\",\"\",TEXT(OrigTable!G25,\"00\"))","v":""},{"$f":"IF(OrigTable!G25=\"\",\"\",ScriptText!$E$1&CHAR(10)&ScriptText!$C$1)","v":""},25]
["<tr>\n<td>09</td>\n</tr>\n\n<tr>\n<td>You may be entitled to Earned Income Credit – you may qualify for a refund.</td>\n</tr>\n<tr>\n<td>IMF Notices</td>\n</tr>",{"$f":"IF(OrigTable!A26=\"\",\"\",ScriptText!$B$1&CHAR(10)&ScriptText!$D$1)","v":"<tr>\n<td>"},{"$f":"IF(OrigTable!A26=\"\",\"\",TEXT(OrigTable!A26,\"00\"))","v":"09"},{"$f":"IF(OrigTable!A26=\"\",\"\",ScriptText!$E$1&CHAR(10)&ScriptText!$C$1)","v":"</td>\n</tr>"},{"$f":"IF(OrigTable!B26=\"\",\"\",ScriptText!$B$1&CHAR(10)&ScriptText!$D$1)","v":""},{"$f":"IF(OrigTable!B26=\"\",\"\",TEXT(OrigTable!B26,\"00\"))","v":""},{"$f":"IF(OrigTable!B26=\"\",\"\",ScriptText!$E$1&CHAR(10)&ScriptText!C21)","v":""},{"$f":"IF(OrigTable!C26=\"\",\"\",ScriptText!$B$1&CHAR(10)&ScriptText!$D$1)","v":"<tr>\n<td>"},{"$f":"IF(OrigTable!C26=\"\",\"\",IF(LEN(OrigTable!C26)>255,LEFT(OrigTable!C26,250)&\". . .\",OrigTable!C26))","v":"You may be entitled to Earned Income Credit – you may qualify for a refund."},{"$f":"IF(OrigTable!C26=\"\",\"\",ScriptText!$E$1&CHAR(10)&ScriptText!$C$1)","v":"</td>\n</tr>"},{"$f":"IF(OrigTable!D26=\"\",\"\",ScriptText!$B$1&CHAR(10)&ScriptText!$D$1)","v":"<tr>\n<td>"},{"$f":"IF(OrigTable!D26=\"\",\"\",TEXT(OrigTable!D26,\"00\"))","v":"IMF Notices"},{"$f":"IF(OrigTable!D26=\"\",\"\",ScriptText!$E$1&CHAR(10)&ScriptText!$C$1)","v":"</td>\n</tr>"},{"$f":"IF(OrigTable!E26=\"\",\"\",ScriptText!$B$1&CHAR(10)&ScriptText!$D$1)","v":""},{"$f":"IF(OrigTable!E26=\"\",\"\",TEXT(OrigTable!E26,\"00\"))","v":""},{"$f":"IF(OrigTable!E26=\"\",\"\",ScriptText!$E$1&CHAR(10)&ScriptText!$C$1)","v":""},{"$f":"IF(OrigTable!F26=\"\",\"\",ScriptText!$B$1&CHAR(10)&ScriptText!$D$1)","v":""},{"$f":"IF(OrigTable!F26=\"\",\"\",TEXT(OrigTable!F26,\"00\"))","v":""},{"$f":"IF(OrigTable!F26=\"\",\"\",ScriptText!$E$1&CHAR(10)&ScriptText!$C$1)","v":""},{"$f":"IF(OrigTable!G26=\"\",\"\",ScriptText!$B$1&CHAR(10)&ScriptText!$D$1)","v":""},{"$f":"IF(OrigTable!G26=\"\",\"\",TEXT(OrigTable!G26,\"00\"))","v":""},{"$f":"IF(OrigTable!G26=\"\",\"\",ScriptText!$E$1&CHAR(10)&ScriptText!$C$1)","v":""},26]
["<tr>\n<td>10</td>\n</tr>\n\n<tr>\n<td>Math Error notice with reduced credit elect.</td>\n</tr>\n<tr>\n<td>IMF Notices</td>\n</tr>",{"$f":"IF(OrigTable!A27=\"\",\"\",ScriptText!$B$1&CHAR(10)&ScriptText!$D$1)","v":"<tr>\n<td>"},{"$f":"IF(OrigTable!A27=\"\",\"\",TEXT(OrigTable!A27,\"00\"))","v":"10"},{"$f":"IF(OrigTable!A27=\"\",\"\",ScriptText!$E$1&CHAR(10)&ScriptText!$C$1)","v":"</td>\n</tr>"},{"$f":"IF(OrigTable!B27=\"\",\"\",ScriptText!$B$1&CHAR(10)&ScriptText!$D$1)","v":""},{"$f":"IF(OrigTable!B27=\"\",\"\",TEXT(OrigTable!B27,\"00\"))","v":""},{"$f":"IF(OrigTable!B27=\"\",\"\",ScriptText!$E$1&CHAR(10)&ScriptText!C22)","v":""},{"$f":"IF(OrigTable!C27=\"\",\"\",ScriptText!$B$1&CHAR(10)&ScriptText!$D$1)","v":"<tr>\n<td>"},{"$f":"IF(OrigTable!C27=\"\",\"\",IF(LEN(OrigTable!C27)>255,LEFT(OrigTable!C27,250)&\". . .\",OrigTable!C27))","v":"Math Error notice with reduced credit elect."},{"$f":"IF(OrigTable!C27=\"\",\"\",ScriptText!$E$1&CHAR(10)&ScriptText!$C$1)","v":"</td>\n</tr>"},{"$f":"IF(OrigTable!D27=\"\",\"\",ScriptText!$B$1&CHAR(10)&ScriptText!$D$1)","v":"<tr>\n<td>"},{"$f":"IF(OrigTable!D27=\"\",\"\",TEXT(OrigTable!D27,\"00\"))","v":"IMF Notices"},{"$f":"IF(OrigTable!D27=\"\",\"\",ScriptText!$E$1&CHAR(10)&ScriptText!$C$1)","v":"</td>\n</tr>"},{"$f":"IF(OrigTable!E27=\"\",\"\",ScriptText!$B$1&CHAR(10)&ScriptText!$D$1)","v":""},{"$f":"IF(OrigTable!E27=\"\",\"\",TEXT(OrigTable!E27,\"00\"))","v":""},{"$f":"IF(OrigTable!E27=\"\",\"\",ScriptText!$E$1&CHAR(10)&ScriptText!$C$1)","v":""},{"$f":"IF(OrigTable!F27=\"\",\"\",ScriptText!$B$1&CHAR(10)&ScriptText!$D$1)","v":""},{"$f":"IF(OrigTable!F27=\"\",\"\",TEXT(OrigTable!F27,\"00\"))","v":""},{"$f":"IF(OrigTable!F27=\"\",\"\",ScriptText!$E$1&CHAR(10)&ScriptText!$C$1)","v":""},{"$f":"IF(OrigTable!G27=\"\",\"\",ScriptText!$B$1&CHAR(10)&ScriptText!$D$1)","v":""},{"$f":"IF(OrigTable!G27=\"\",\"\",TEXT(OrigTable!G27,\"00\"))","v":""},{"$f":"IF(OrigTable!G27=\"\",\"\",ScriptText!$E$1&CHAR(10)&ScriptText!$C$1)","v":""},27]
["<tr>\n<td>10A</td>\n</tr>\n\n<tr>\n<td>EIC Math Error notice with reduced credit elect.</td>\n</tr>\n<tr>\n<td>IMF Notices</td>\n</tr>",{"$f":"IF(OrigTable!A28=\"\",\"\",ScriptText!$B$1&CHAR(10)&ScriptText!$D$1)","v":"<tr>\n<td>"},{"$f":"IF(OrigTable!A28=\"\",\"\",TEXT(OrigTable!A28,\"00\"))","v":"10A"},{"$f":"IF(OrigTable!A28=\"\",\"\",ScriptText!$E$1&CHAR(10)&ScriptText!$C$1)","v":"</td>\n</tr>"},{"$f":"IF(OrigTable!B28=\"\",\"\",ScriptText!$B$1&CHAR(10)&ScriptText!$D$1)","v":""},{"$f":"IF(OrigTable!B28=\"\",\"\",TEXT(OrigTable!B28,\"00\"))","v":""},{"$f":"IF(OrigTable!B28=\"\",\"\",ScriptText!$E$1&CHAR(10)&ScriptText!C23)","v":""},{"$f":"IF(OrigTable!C28=\"\",\"\",ScriptText!$B$1&CHAR(10)&ScriptText!$D$1)","v":"<tr>\n<td>"},{"$f":"IF(OrigTable!C28=\"\",\"\",IF(LEN(OrigTable!C28)>255,LEFT(OrigTable!C28,250)&\". . .\",OrigTable!C28))","v":"EIC Math Error notice with reduced credit elect."},{"$f":"IF(OrigTable!C28=\"\",\"\",ScriptText!$E$1&CHAR(10)&ScriptText!$C$1)","v":"</td>\n</tr>"},{"$f":"IF(OrigTable!D28=\"\",\"\",ScriptText!$B$1&CHAR(10)&ScriptText!$D$1)","v":"<tr>\n<td>"},{"$f":"IF(OrigTable!D28=\"\",\"\",TEXT(OrigTable!D28,\"00\"))","v":"IMF Notices"},{"$f":"IF(OrigTable!D28=\"\",\"\",ScriptText!$E$1&CHAR(10)&ScriptText!$C$1)","v":"</td>\n</tr>"},{"$f":"IF(OrigTable!E28=\"\",\"\",ScriptText!$B$1&CHAR(10)&ScriptText!$D$1)","v":""},{"$f":"IF(OrigTable!E28=\"\",\"\",TEXT(OrigTable!E28,\"00\"))","v":""},{"$f":"IF(OrigTable!E28=\"\",\"\",ScriptText!$E$1&CHAR(10)&ScriptText!$C$1)","v":""},{"$f":"IF(OrigTable!F28=\"\",\"\",ScriptText!$B$1&CHAR(10)&ScriptText!$D$1)","v":""},{"$f":"IF(OrigTable!F28=\"\",\"\",TEXT(OrigTable!F28,\"00\"))","v":""},{"$f":"IF(OrigTable!F28=\"\",\"\",ScriptText!$E$1&CHAR(10)&ScriptText!$C$1)","v":""},{"$f":"IF(OrigTable!G28=\"\",\"\",ScriptText!$B$1&CHAR(10)&ScriptText!$D$1)","v":""},{"$f":"IF(OrigTable!G28=\"\",\"\",TEXT(OrigTable!G28,\"00\"))","v":""},{"$f":"IF(OrigTable!G28=\"\",\"\",ScriptText!$E$1&CHAR(10)&ScriptText!$C$1)","v":""},28]
["<tr>\n<td>11</td>\n</tr>\n\n<tr>\n<td>Math Error notice with balance due of $5.00 or more.</td>\n</tr>\n<tr>\n<td>IMF Notices</td>\n</tr>",{"$f":"IF(OrigTable!A29=\"\",\"\",ScriptText!$B$1&CHAR(10)&ScriptText!$D$1)","v":"<tr>\n<td>"},{"$f":"IF(OrigTable!A29=\"\",\"\",TEXT(OrigTable!A29,\"00\"))","v":"11"},{"$f":"IF(OrigTable!A29=\"\",\"\",ScriptText!$E$1&CHAR(10)&ScriptText!$C$1)","v":"</td>\n</tr>"},{"$f":"IF(OrigTable!B29=\"\",\"\",ScriptText!$B$1&CHAR(10)&ScriptText!$D$1)","v":""},{"$f":"IF(OrigTable!B29=\"\",\"\",TEXT(OrigTable!B29,\"00\"))","v":""},{"$f":"IF(OrigTable!B29=\"\",\"\",ScriptText!$E$1&CHAR(10)&ScriptText!C24)","v":""},{"$f":"IF(OrigTable!C29=\"\",\"\",ScriptText!$B$1&CHAR(10)&ScriptText!$D$1)","v":"<tr>\n<td>"},{"$f":"IF(OrigTable!C29=\"\",\"\",IF(LEN(OrigTable!C29)>255,LEFT(OrigTable!C29,250)&\". . .\",OrigTable!C29))","v":"Math Error notice with balance due of $5.00 or more."},{"$f":"IF(OrigTable!C29=\"\",\"\",ScriptText!$E$1&CHAR(10)&ScriptText!$C$1)","v":"</td>\n</tr>"},{"$f":"IF(OrigTable!D29=\"\",\"\",ScriptText!$B$1&CHAR(10)&ScriptText!$D$1)","v":"<tr>\n<td>"},{"$f":"IF(OrigTable!D29=\"\",\"\",TEXT(OrigTable!D29,\"00\"))","v":"IMF Notices"},{"$f":"IF(OrigTable!D29=\"\",\"\",ScriptText!$E$1&CHAR(10)&ScriptText!$C$1)","v":"</td>\n</tr>"},{"$f":"IF(OrigTable!E29=\"\",\"\",ScriptText!$B$1&CHAR(10)&ScriptText!$D$1)","v":""},{"$f":"IF(OrigTable!E29=\"\",\"\",TEXT(OrigTable!E29,\"00\"))","v":""},{"$f":"IF(OrigTable!E29=\"\",\"\",ScriptText!$E$1&CHAR(10)&ScriptText!$C$1)","v":""},{"$f":"IF(OrigTable!F29=\"\",\"\",ScriptText!$B$1&CHAR(10)&ScriptText!$D$1)","v":""},{"$f":"IF(OrigTable!F29=\"\",\"\",TEXT(OrigTable!F29,\"00\"))","v":""},{"$f":"IF(OrigTable!F29=\"\",\"\",ScriptText!$E$1&CHAR(10)&ScriptText!$C$1)","v":""},{"$f":"IF(OrigTable!G29=\"\",\"\",ScriptText!$B$1&CHAR(10)&ScriptText!$D$1)","v":""},{"$f":"IF(OrigTable!G29=\"\",\"\",TEXT(OrigTable!G29,\"00\"))","v":""},{"$f":"IF(OrigTable!G29=\"\",\"\",ScriptText!$E$1&CHAR(10)&ScriptText!$C$1)","v":""},29]
["<tr>\n<td>11A</td>\n</tr>\n\n<tr>\n<td>EIC Math Error notice with balance due of $5.00 or more.</td>\n</tr>\n<tr>\n<td>IMF Notices</td>\n</tr>",{"$f":"IF(OrigTable!A30=\"\",\"\",ScriptText!$B$1&CHAR(10)&ScriptText!$D$1)","v":"<tr>\n<td>"},{"$f":"IF(OrigTable!A30=\"\",\"\",TEXT(OrigTable!A30,\"00\"))","v":"11A"},{"$f":"IF(OrigTable!A30=\"\",\"\",ScriptText!$E$1&CHAR(10)&ScriptText!$C$1)","v":"</td>\n</tr>"},{"$f":"IF(OrigTable!B30=\"\",\"\",ScriptText!$B$1&CHAR(10)&ScriptText!$D$1)","v":""},{"$f":"IF(OrigTable!B30=\"\",\"\",TEXT(OrigTable!B30,\"00\"))","v":""},{"$f":"IF(OrigTable!B30=\"\",\"\",ScriptText!$E$1&CHAR(10)&ScriptText!C25)","v":""},{"$f":"IF(OrigTable!C30=\"\",\"\",ScriptText!$B$1&CHAR(10)&ScriptText!$D$1)","v":"<tr>\n<td>"},{"$f":"IF(OrigTable!C30=\"\",\"\",IF(LEN(OrigTable!C30)>255,LEFT(OrigTable!C30,250)&\". . .\",OrigTable!C30))","v":"EIC Math Error notice with balance due of $5.00 or more."},{"$f":"IF(OrigTable!C30=\"\",\"\",ScriptText!$E$1&CHAR(10)&ScriptText!$C$1)","v":"</td>\n</tr>"},{"$f":"IF(OrigTable!D30=\"\",\"\",ScriptText!$B$1&CHAR(10)&ScriptText!$D$1)","v":"<tr>\n<td>"},{"$f":"IF(OrigTable!D30=\"\",\"\",TEXT(OrigTable!D30,\"00\"))","v":"IMF Notices"},{"$f":"IF(OrigTable!D30=\"\",\"\",ScriptText!$E$1&CHAR(10)&ScriptText!$C$1)","v":"</td>\n</tr>"},{"$f":"IF(OrigTable!E30=\"\",\"\",ScriptText!$B$1&CHAR(10)&ScriptText!$D$1)","v":""},{"$f":"IF(OrigTable!E30=\"\",\"\",TEXT(OrigTable!E30,\"00\"))","v":""},{"$f":"IF(OrigTable!E30=\"\",\"\",ScriptText!$E$1&CHAR(10)&ScriptText!$C$1)","v":""},{"$f":"IF(OrigTable!F30=\"\",\"\",ScriptText!$B$1&CHAR(10)&ScriptText!$D$1)","v":""},{"$f":"IF(OrigTable!F30=\"\",\"\",TEXT(OrigTable!F30,\"00\"))","v":""},{"$f":"IF(OrigTable!F30=\"\",\"\",ScriptText!$E$1&CHAR(10)&ScriptText!$C$1)","v":""},{"$f":"IF(OrigTable!G30=\"\",\"\",ScriptText!$B$1&CHAR(10)&ScriptText!$D$1)","v":""},{"$f":"IF(OrigTable!G30=\"\",\"\",TEXT(OrigTable!G30,\"00\"))","v":""},{"$f":"IF(OrigTable!G30=\"\",\"\",ScriptText!$E$1&CHAR(10)&ScriptText!$C$1)","v":""},30]
["<tr>\n<td>12</td>\n</tr>\n\n<tr>\n<td>Math Error notice with overpayment of $1.00 or more.</td>\n</tr>\n<tr>\n<td>IMF Notices</td>\n</tr>",{"$f":"IF(OrigTable!A31=\"\",\"\",ScriptText!$B$1&CHAR(10)&ScriptText!$D$1)","v":"<tr>\n<td>"},{"$f":"IF(OrigTable!A31=\"\",\"\",TEXT(OrigTable!A31,\"00\"))","v":"12"},{"$f":"IF(OrigTable!A31=\"\",\"\",ScriptText!$E$1&CHAR(10)&ScriptText!$C$1)","v":"</td>\n</tr>"},{"$f":"IF(OrigTable!B31=\"\",\"\",ScriptText!$B$1&CHAR(10)&ScriptText!$D$1)","v":""},{"$f":"IF(OrigTable!B31=\"\",\"\",TEXT(OrigTable!B31,\"00\"))","v":""},{"$f":"IF(OrigTable!B31=\"\",\"\",ScriptText!$E$1&CHAR(10)&ScriptText!C26)","v":""},{"$f":"IF(OrigTable!C31=\"\",\"\",ScriptText!$B$1&CHAR(10)&ScriptText!$D$1)","v":"<tr>\n<td>"},{"$f":"IF(OrigTable!C31=\"\",\"\",IF(LEN(OrigTable!C31)>255,LEFT(OrigTable!C31,250)&\". . .\",OrigTable!C31))","v":"Math Error notice with overpayment of $1.00 or more."},{"$f":"IF(OrigTable!C31=\"\",\"\",ScriptText!$E$1&CHAR(10)&ScriptText!$C$1)","v":"</td>\n</tr>"},{"$f":"IF(OrigTable!D31=\"\",\"\",ScriptText!$B$1&CHAR(10)&ScriptText!$D$1)","v":"<tr>\n<td>"},{"$f":"IF(OrigTable!D31=\"\",\"\",TEXT(OrigTable!D31,\"00\"))","v":"IMF Notices"},{"$f":"IF(OrigTable!D31=\"\",\"\",ScriptText!$E$1&CHAR(10)&ScriptText!$C$1)","v":"</td>\n</tr>"},{"$f":"IF(OrigTable!E31=\"\",\"\",ScriptText!$B$1&CHAR(10)&ScriptText!$D$1)","v":""},{"$f":"IF(OrigTable!E31=\"\",\"\",TEXT(OrigTable!E31,\"00\"))","v":""},{"$f":"IF(OrigTable!E31=\"\",\"\",ScriptText!$E$1&CHAR(10)&ScriptText!$C$1)","v":""},{"$f":"IF(OrigTable!F31=\"\",\"\",ScriptText!$B$1&CHAR(10)&ScriptText!$D$1)","v":""},{"$f":"IF(OrigTable!F31=\"\",\"\",TEXT(OrigTable!F31,\"00\"))","v":""},{"$f":"IF(OrigTable!F31=\"\",\"\",ScriptText!$E$1&CHAR(10)&ScriptText!$C$1)","v":""},{"$f":"IF(OrigTable!G31=\"\",\"\",ScriptText!$B$1&CHAR(10)&ScriptText!$D$1)","v":""},{"$f":"IF(OrigTable!G31=\"\",\"\",TEXT(OrigTable!G31,\"00\"))","v":""},{"$f":"IF(OrigTable!G31=\"\",\"\",ScriptText!$E$1&CHAR(10)&ScriptText!$C$1)","v":""},31]
["<tr>\n<td>12A</td>\n</tr>\n\n<tr>\n<td>EIC Math Error notice with overpayment of $1.00 or more.</td>\n</tr>\n<tr>\n<td>IMF Notices</td>\n</tr>",{"$f":"IF(OrigTable!A32=\"\",\"\",ScriptText!$B$1&CHAR(10)&ScriptText!$D$1)","v":"<tr>\n<td>"},{"$f":"IF(OrigTable!A32=\"\",\"\",TEXT(OrigTable!A32,\"00\"))","v":"12A"},{"$f":"IF(OrigTable!A32=\"\",\"\",ScriptText!$E$1&CHAR(10)&ScriptText!$C$1)","v":"</td>\n</tr>"},{"$f":"IF(OrigTable!B32=\"\",\"\",ScriptText!$B$1&CHAR(10)&ScriptText!$D$1)","v":""},{"$f":"IF(OrigTable!B32=\"\",\"\",TEXT(OrigTable!B32,\"00\"))","v":""},{"$f":"IF(OrigTable!B32=\"\",\"\",ScriptText!$E$1&CHAR(10)&ScriptText!C27)","v":""},{"$f":"IF(OrigTable!C32=\"\",\"\",ScriptText!$B$1&CHAR(10)&ScriptText!$D$1)","v":"<tr>\n<td>"},{"$f":"IF(OrigTable!C32=\"\",\"\",IF(LEN(OrigTable!C32)>255,LEFT(OrigTable!C32,250)&\". . .\",OrigTable!C32))","v":"EIC Math Error notice with overpayment of $1.00 or more."},{"$f":"IF(OrigTable!C32=\"\",\"\",ScriptText!$E$1&CHAR(10)&ScriptText!$C$1)","v":"</td>\n</tr>"},{"$f":"IF(OrigTable!D32=\"\",\"\",ScriptText!$B$1&CHAR(10)&ScriptText!$D$1)","v":"<tr>\n<td>"},{"$f":"IF(OrigTable!D32=\"\",\"\",TEXT(OrigTable!D32,\"00\"))","v":"IMF Notices"},{"$f":"IF(OrigTable!D32=\"\",\"\",ScriptText!$E$1&CHAR(10)&ScriptText!$C$1)","v":"</td>\n</tr>"},{"$f":"IF(OrigTable!E32=\"\",\"\",ScriptText!$B$1&CHAR(10)&ScriptText!$D$1)","v":""},{"$f":"IF(OrigTable!E32=\"\",\"\",TEXT(OrigTable!E32,\"00\"))","v":""},{"$f":"IF(OrigTable!E32=\"\",\"\",ScriptText!$E$1&CHAR(10)&ScriptText!$C$1)","v":""},{"$f":"IF(OrigTable!F32=\"\",\"\",ScriptText!$B$1&CHAR(10)&ScriptText!$D$1)","v":""},{"$f":"IF(OrigTable!F32=\"\",\"\",TEXT(OrigTable!F32,\"00\"))","v":""},{"$f":"IF(OrigTable!F32=\"\",\"\",ScriptText!$E$1&CHAR(10)&ScriptText!$C$1)","v":""},{"$f":"IF(OrigTable!G32=\"\",\"\",ScriptText!$B$1&CHAR(10)&ScriptText!$D$1)","v":""},{"$f":"IF(OrigTable!G32=\"\",\"\",TEXT(OrigTable!G32,\"00\"))","v":""},{"$f":"IF(OrigTable!G32=\"\",\"\",ScriptText!$E$1&CHAR(10)&ScriptText!$C$1)","v":""},32]
["<tr>\n<td>12E, F, G,\nN, U</td>\n</tr>\n\n<tr>\n<td>Exam coded Math Error notice with overpayment of $1.00 or more.</td>\n</tr>\n<tr>\n<td>IMF Notices</td>\n</tr>",{"$f":"IF(OrigTable!A33=\"\",\"\",ScriptText!$B$1&CHAR(10)&ScriptText!$D$1)","v":"<tr>\n<td>"},{"$f":"IF(OrigTable!A33=\"\",\"\",TEXT(OrigTable!A33,\"00\"))","v":"12E, F, G,\nN, U"},{"$f":"IF(OrigTable!A33=\"\",\"\",ScriptText!$E$1&CHAR(10)&ScriptText!$C$1)","v":"</td>\n</tr>"},{"$f":"IF(OrigTable!B33=\"\",\"\",ScriptText!$B$1&CHAR(10)&ScriptText!$D$1)","v":""},{"$f":"IF(OrigTable!B33=\"\",\"\",TEXT(OrigTable!B33,\"00\"))","v":""},{"$f":"IF(OrigTable!B33=\"\",\"\",ScriptText!$E$1&CHAR(10)&ScriptText!C28)","v":""},{"$f":"IF(OrigTable!C33=\"\",\"\",ScriptText!$B$1&CHAR(10)&ScriptText!$D$1)","v":"<tr>\n<td>"},{"$f":"IF(OrigTable!C33=\"\",\"\",IF(LEN(OrigTable!C33)>255,LEFT(OrigTable!C33,250)&\". . .\",OrigTable!C33))","v":"Exam coded Math Error notice with overpayment of $1.00 or more."},{"$f":"IF(OrigTable!C33=\"\",\"\",ScriptText!$E$1&CHAR(10)&ScriptText!$C$1)","v":"</td>\n</tr>"},{"$f":"IF(OrigTable!D33=\"\",\"\",ScriptText!$B$1&CHAR(10)&ScriptText!$D$1)","v":"<tr>\n<td>"},{"$f":"IF(OrigTable!D33=\"\",\"\",TEXT(OrigTable!D33,\"00\"))","v":"IMF Notices"},{"$f":"IF(OrigTable!D33=\"\",\"\",ScriptText!$E$1&CHAR(10)&ScriptText!$C$1)","v":"</td>\n</tr>"},{"$f":"IF(OrigTable!E33=\"\",\"\",ScriptText!$B$1&CHAR(10)&ScriptText!$D$1)","v":""},{"$f":"IF(OrigTable!E33=\"\",\"\",TEXT(OrigTable!E33,\"00\"))","v":""},{"$f":"IF(OrigTable!E33=\"\",\"\",ScriptText!$E$1&CHAR(10)&ScriptText!$C$1)","v":""},{"$f":"IF(OrigTable!F33=\"\",\"\",ScriptText!$B$1&CHAR(10)&ScriptText!$D$1)","v":""},{"$f":"IF(OrigTable!F33=\"\",\"\",TEXT(OrigTable!F33,\"00\"))","v":""},{"$f":"IF(OrigTable!F33=\"\",\"\",ScriptText!$E$1&CHAR(10)&ScriptText!$C$1)","v":""},{"$f":"IF(OrigTable!G33=\"\",\"\",ScriptText!$B$1&CHAR(10)&ScriptText!$D$1)","v":""},{"$f":"IF(OrigTable!G33=\"\",\"\",TEXT(OrigTable!G33,\"00\"))","v":""},{"$f":"IF(OrigTable!G33=\"\",\"\",ScriptText!$E$1&CHAR(10)&ScriptText!$C$1)","v":""},33]
["<tr>\n<td>13</td>\n</tr>\n\n<tr>\n<td>Math Error notice with a balance due < $5.00 or overpayment < $1.00.</td>\n</tr>\n<tr>\n<td>IMF Notices</td>\n</tr>",{"$f":"IF(OrigTable!A34=\"\",\"\",ScriptText!$B$1&CHAR(10)&ScriptText!$D$1)","v":"<tr>\n<td>"},{"$f":"IF(OrigTable!A34=\"\",\"\",TEXT(OrigTable!A34,\"00\"))","v":"13"},{"$f":"IF(OrigTable!A34=\"\",\"\",ScriptText!$E$1&CHAR(10)&ScriptText!$C$1)","v":"</td>\n</tr>"},{"$f":"IF(OrigTable!B34=\"\",\"\",ScriptText!$B$1&CHAR(10)&ScriptText!$D$1)","v":""},{"$f":"IF(OrigTable!B34=\"\",\"\",TEXT(OrigTable!B34,\"00\"))","v":""},{"$f":"IF(OrigTable!B34=\"\",\"\",ScriptText!$E$1&CHAR(10)&ScriptText!C29)","v":""},{"$f":"IF(OrigTable!C34=\"\",\"\",ScriptText!$B$1&CHAR(10)&ScriptText!$D$1)","v":"<tr>\n<td>"},{"$f":"IF(OrigTable!C34=\"\",\"\",IF(LEN(OrigTable!C34)>255,LEFT(OrigTable!C34,250)&\". . .\",OrigTable!C34))","v":"Math Error notice with a balance due < $5.00 or overpayment < $1.00."},{"$f":"IF(OrigTable!C34=\"\",\"\",ScriptText!$E$1&CHAR(10)&ScriptText!$C$1)","v":"</td>\n</tr>"},{"$f":"IF(OrigTable!D34=\"\",\"\",ScriptText!$B$1&CHAR(10)&ScriptText!$D$1)","v":"<tr>\n<td>"},{"$f":"IF(OrigTable!D34=\"\",\"\",TEXT(OrigTable!D34,\"00\"))","v":"IMF Notices"},{"$f":"IF(OrigTable!D34=\"\",\"\",ScriptText!$E$1&CHAR(10)&ScriptText!$C$1)","v":"</td>\n</tr>"},{"$f":"IF(OrigTable!E34=\"\",\"\",ScriptText!$B$1&CHAR(10)&ScriptText!$D$1)","v":""},{"$f":"IF(OrigTable!E34=\"\",\"\",TEXT(OrigTable!E34,\"00\"))","v":""},{"$f":"IF(OrigTable!E34=\"\",\"\",ScriptText!$E$1&CHAR(10)&ScriptText!$C$1)","v":""},{"$f":"IF(OrigTable!F34=\"\",\"\",ScriptText!$B$1&CHAR(10)&ScriptText!$D$1)","v":""},{"$f":"IF(OrigTable!F34=\"\",\"\",TEXT(OrigTable!F34,\"00\"))","v":""},{"$f":"IF(OrigTable!F34=\"\",\"\",ScriptText!$E$1&CHAR(10)&ScriptText!$C$1)","v":""},{"$f":"IF(OrigTable!G34=\"\",\"\",ScriptText!$B$1&CHAR(10)&ScriptText!$D$1)","v":""},{"$f":"IF(OrigTable!G34=\"\",\"\",TEXT(OrigTable!G34,\"00\"))","v":""},{"$f":"IF(OrigTable!G34=\"\",\"\",ScriptText!$E$1&CHAR(10)&ScriptText!$C$1)","v":""},34]
["<tr>\n<td>13A</td>\n</tr>\n\n<tr>\n<td>EIC Math Error notice with a balance due < $5.00 or overpayment < $1.00.</td>\n</tr>\n<tr>\n<td>IMF Notices</td>\n</tr>",{"$f":"IF(OrigTable!A35=\"\",\"\",ScriptText!$B$1&CHAR(10)&ScriptText!$D$1)","v":"<tr>\n<td>"},{"$f":"IF(OrigTable!A35=\"\",\"\",TEXT(OrigTable!A35,\"00\"))","v":"13A"},{"$f":"IF(OrigTable!A35=\"\",\"\",ScriptText!$E$1&CHAR(10)&ScriptText!$C$1)","v":"</td>\n</tr>"},{"$f":"IF(OrigTable!B35=\"\",\"\",ScriptText!$B$1&CHAR(10)&ScriptText!$D$1)","v":""},{"$f":"IF(OrigTable!B35=\"\",\"\",TEXT(OrigTable!B35,\"00\"))","v":""},{"$f":"IF(OrigTable!B35=\"\",\"\",ScriptText!$E$1&CHAR(10)&ScriptText!C30)","v":""},{"$f":"IF(OrigTable!C35=\"\",\"\",ScriptText!$B$1&CHAR(10)&ScriptText!$D$1)","v":"<tr>\n<td>"},{"$f":"IF(OrigTable!C35=\"\",\"\",IF(LEN(OrigTable!C35)>255,LEFT(OrigTable!C35,250)&\". . .\",OrigTable!C35))","v":"EIC Math Error notice with a balance due < $5.00 or overpayment < $1.00."},{"$f":"IF(OrigTable!C35=\"\",\"\",ScriptText!$E$1&CHAR(10)&ScriptText!$C$1)","v":"</td>\n</tr>"},{"$f":"IF(OrigTable!D35=\"\",\"\",ScriptText!$B$1&CHAR(10)&ScriptText!$D$1)","v":"<tr>\n<td>"},{"$f":"IF(OrigTable!D35=\"\",\"\",TEXT(OrigTable!D35,\"00\"))","v":"IMF Notices"},{"$f":"IF(OrigTable!D35=\"\",\"\",ScriptText!$E$1&CHAR(10)&ScriptText!$C$1)","v":"</td>\n</tr>"},{"$f":"IF(OrigTable!E35=\"\",\"\",ScriptText!$B$1&CHAR(10)&ScriptText!$D$1)","v":""},{"$f":"IF(OrigTable!E35=\"\",\"\",TEXT(OrigTable!E35,\"00\"))","v":""},{"$f":"IF(OrigTable!E35=\"\",\"\",ScriptText!$E$1&CHAR(10)&ScriptText!$C$1)","v":""},{"$f":"IF(OrigTable!F35=\"\",\"\",ScriptText!$B$1&CHAR(10)&ScriptText!$D$1)","v":""},{"$f":"IF(OrigTable!F35=\"\",\"\",TEXT(OrigTable!F35,\"00\"))","v":""},{"$f":"IF(OrigTable!F35=\"\",\"\",ScriptText!$E$1&CHAR(10)&ScriptText!$C$1)","v":""},{"$f":"IF(OrigTable!G35=\"\",\"\",ScriptText!$B$1&CHAR(10)&ScriptText!$D$1)","v":""},{"$f":"IF(OrigTable!G35=\"\",\"\",TEXT(OrigTable!G35,\"00\"))","v":""},{"$f":"IF(OrigTable!G35=\"\",\"\",ScriptText!$E$1&CHAR(10)&ScriptText!$C$1)","v":""},35]
["<tr>\n<td>13M</td>\n</tr>\n\n<tr>\n<td>Making Work Pay Math Error notice with a balance due < $5.00 or overpayment < $1.00.</td>\n</tr>\n<tr>\n<td>IMF Notices</td>\n</tr>",{"$f":"IF(OrigTable!A36=\"\",\"\",ScriptText!$B$1&CHAR(10)&ScriptText!$D$1)","v":"<tr>\n<td>"},{"$f":"IF(OrigTable!A36=\"\",\"\",TEXT(OrigTable!A36,\"00\"))","v":"13M"},{"$f":"IF(OrigTable!A36=\"\",\"\",ScriptText!$E$1&CHAR(10)&ScriptText!$C$1)","v":"</td>\n</tr>"},{"$f":"IF(OrigTable!B36=\"\",\"\",ScriptText!$B$1&CHAR(10)&ScriptText!$D$1)","v":""},{"$f":"IF(OrigTable!B36=\"\",\"\",TEXT(OrigTable!B36,\"00\"))","v":""},{"$f":"IF(OrigTable!B36=\"\",\"\",ScriptText!$E$1&CHAR(10)&ScriptText!C31)","v":""},{"$f":"IF(OrigTable!C36=\"\",\"\",ScriptText!$B$1&CHAR(10)&ScriptText!$D$1)","v":"<tr>\n<td>"},{"$f":"IF(OrigTable!C36=\"\",\"\",IF(LEN(OrigTable!C36)>255,LEFT(OrigTable!C36,250)&\". . .\",OrigTable!C36))","v":"Making Work Pay Math Error notice with a balance due < $5.00 or overpayment < $1.00."},{"$f":"IF(OrigTable!C36=\"\",\"\",ScriptText!$E$1&CHAR(10)&ScriptText!$C$1)","v":"</td>\n</tr>"},{"$f":"IF(OrigTable!D36=\"\",\"\",ScriptText!$B$1&CHAR(10)&ScriptText!$D$1)","v":"<tr>\n<td>"},{"$f":"IF(OrigTable!D36=\"\",\"\",TEXT(OrigTable!D36,\"00\"))","v":"IMF Notices"},{"$f":"IF(OrigTable!D36=\"\",\"\",ScriptText!$E$1&CHAR(10)&ScriptText!$C$1)","v":"</td>\n</tr>"},{"$f":"IF(OrigTable!E36=\"\",\"\",ScriptText!$B$1&CHAR(10)&ScriptText!$D$1)","v":""},{"$f":"IF(OrigTable!E36=\"\",\"\",TEXT(OrigTable!E36,\"00\"))","v":""},{"$f":"IF(OrigTable!E36=\"\",\"\",ScriptText!$E$1&CHAR(10)&ScriptText!$C$1)","v":""},{"$f":"IF(OrigTable!F36=\"\",\"\",ScriptText!$B$1&CHAR(10)&ScriptText!$D$1)","v":""},{"$f":"IF(OrigTable!F36=\"\",\"\",TEXT(OrigTable!F36,\"00\"))","v":""},{"$f":"IF(OrigTable!F36=\"\",\"\",ScriptText!$E$1&CHAR(10)&ScriptText!$C$1)","v":""},{"$f":"IF(OrigTable!G36=\"\",\"\",ScriptText!$B$1&CHAR(10)&ScriptText!$D$1)","v":""},{"$f":"IF(OrigTable!G36=\"\",\"\",TEXT(OrigTable!G36,\"00\"))","v":""},{"$f":"IF(OrigTable!G36=\"\",\"\",ScriptText!$E$1&CHAR(10)&ScriptText!$C$1)","v":""},36]
["<tr>\n<td>14</td>\n</tr>\n\n<tr>\n<td>Notice with a balance due of $5.00 or More, no Math Error.</td>\n</tr>\n<tr>\n<td>IMF Notices</td>\n</tr>",{"$f":"IF(OrigTable!A37=\"\",\"\",ScriptText!$B$1&CHAR(10)&ScriptText!$D$1)","v":"<tr>\n<td>"},{"$f":"IF(OrigTable!A37=\"\",\"\",TEXT(OrigTable!A37,\"00\"))","v":"14"},{"$f":"IF(OrigTable!A37=\"\",\"\",ScriptText!$E$1&CHAR(10)&ScriptText!$C$1)","v":"</td>\n</tr>"},{"$f":"IF(OrigTable!B37=\"\",\"\",ScriptText!$B$1&CHAR(10)&ScriptText!$D$1)","v":""},{"$f":"IF(OrigTable!B37=\"\",\"\",TEXT(OrigTable!B37,\"00\"))","v":""},{"$f":"IF(OrigTable!B37=\"\",\"\",ScriptText!$E$1&CHAR(10)&ScriptText!C32)","v":""},{"$f":"IF(OrigTable!C37=\"\",\"\",ScriptText!$B$1&CHAR(10)&ScriptText!$D$1)","v":"<tr>\n<td>"},{"$f":"IF(OrigTable!C37=\"\",\"\",IF(LEN(OrigTable!C37)>255,LEFT(OrigTable!C37,250)&\". . .\",OrigTable!C37))","v":"Notice with a balance due of $5.00 or More, no Math Error."},{"$f":"IF(OrigTable!C37=\"\",\"\",ScriptText!$E$1&CHAR(10)&ScriptText!$C$1)","v":"</td>\n</tr>"},{"$f":"IF(OrigTable!D37=\"\",\"\",ScriptText!$B$1&CHAR(10)&ScriptText!$D$1)","v":"<tr>\n<td>"},{"$f":"IF(OrigTable!D37=\"\",\"\",TEXT(OrigTable!D37,\"00\"))","v":"IMF Notices"},{"$f":"IF(OrigTable!D37=\"\",\"\",ScriptText!$E$1&CHAR(10)&ScriptText!$C$1)","v":"</td>\n</tr>"},{"$f":"IF(OrigTable!E37=\"\",\"\",ScriptText!$B$1&CHAR(10)&ScriptText!$D$1)","v":""},{"$f":"IF(OrigTable!E37=\"\",\"\",TEXT(OrigTable!E37,\"00\"))","v":""},{"$f":"IF(OrigTable!E37=\"\",\"\",ScriptText!$E$1&CHAR(10)&ScriptText!$C$1)","v":""},{"$f":"IF(OrigTable!F37=\"\",\"\",ScriptText!$B$1&CHAR(10)&ScriptText!$D$1)","v":""},{"$f":"IF(OrigTable!F37=\"\",\"\",TEXT(OrigTable!F37,\"00\"))","v":""},{"$f":"IF(OrigTable!F37=\"\",\"\",ScriptText!$E$1&CHAR(10)&ScriptText!$C$1)","v":""},{"$f":"IF(OrigTable!G37=\"\",\"\",ScriptText!$B$1&CHAR(10)&ScriptText!$D$1)","v":""},{"$f":"IF(OrigTable!G37=\"\",\"\",TEXT(OrigTable!G37,\"00\"))","v":""},{"$f":"IF(OrigTable!G37=\"\",\"\",ScriptText!$E$1&CHAR(10)&ScriptText!$C$1)","v":""},37]
["<tr>\n<td>14H</td>\n</tr>\n\n<tr>\n<td>You have an unpaid shared responsibility payment (Affordable Care Act or ACA)</td>\n</tr>\n<tr>\n<td>IMF Notices</td>\n</tr>",{"$f":"IF(OrigTable!A38=\"\",\"\",ScriptText!$B$1&CHAR(10)&ScriptText!$D$1)","v":"<tr>\n<td>"},{"$f":"IF(OrigTable!A38=\"\",\"\",TEXT(OrigTable!A38,\"00\"))","v":"14H"},{"$f":"IF(OrigTable!A38=\"\",\"\",ScriptText!$E$1&CHAR(10)&ScriptText!$C$1)","v":"</td>\n</tr>"},{"$f":"IF(OrigTable!B38=\"\",\"\",ScriptText!$B$1&CHAR(10)&ScriptText!$D$1)","v":""},{"$f":"IF(OrigTable!B38=\"\",\"\",TEXT(OrigTable!B38,\"00\"))","v":""},{"$f":"IF(OrigTable!B38=\"\",\"\",ScriptText!$E$1&CHAR(10)&ScriptText!C33)","v":""},{"$f":"IF(OrigTable!C38=\"\",\"\",ScriptText!$B$1&CHAR(10)&ScriptText!$D$1)","v":"<tr>\n<td>"},{"$f":"IF(OrigTable!C38=\"\",\"\",IF(LEN(OrigTable!C38)>255,LEFT(OrigTable!C38,250)&\". . .\",OrigTable!C38))","v":"You have an unpaid shared responsibility payment (Affordable Care Act or ACA)"},{"$f":"IF(OrigTable!C38=\"\",\"\",ScriptText!$E$1&CHAR(10)&ScriptText!$C$1)","v":"</td>\n</tr>"},{"$f":"IF(OrigTable!D38=\"\",\"\",ScriptText!$B$1&CHAR(10)&ScriptText!$D$1)","v":"<tr>\n<td>"},{"$f":"IF(OrigTable!D38=\"\",\"\",TEXT(OrigTable!D38,\"00\"))","v":"IMF Notices"},{"$f":"IF(OrigTable!D38=\"\",\"\",ScriptText!$E$1&CHAR(10)&ScriptText!$C$1)","v":"</td>\n</tr>"},{"$f":"IF(OrigTable!E38=\"\",\"\",ScriptText!$B$1&CHAR(10)&ScriptText!$D$1)","v":""},{"$f":"IF(OrigTable!E38=\"\",\"\",TEXT(OrigTable!E38,\"00\"))","v":""},{"$f":"IF(OrigTable!E38=\"\",\"\",ScriptText!$E$1&CHAR(10)&ScriptText!$C$1)","v":""},{"$f":"IF(OrigTable!F38=\"\",\"\",ScriptText!$B$1&CHAR(10)&ScriptText!$D$1)","v":""},{"$f":"IF(OrigTable!F38=\"\",\"\",TEXT(OrigTable!F38,\"00\"))","v":""},{"$f":"IF(OrigTable!F38=\"\",\"\",ScriptText!$E$1&CHAR(10)&ScriptText!$C$1)","v":""},{"$f":"IF(OrigTable!G38=\"\",\"\",ScriptText!$B$1&CHAR(10)&ScriptText!$D$1)","v":""},{"$f":"IF(OrigTable!G38=\"\",\"\",TEXT(OrigTable!G38,\"00\"))","v":""},{"$f":"IF(OrigTable!G38=\"\",\"\",ScriptText!$E$1&CHAR(10)&ScriptText!$C$1)","v":""},38]
["<tr>\n<td>14I</td>\n</tr>\n\n<tr>\n<td>Notice with a balance due of $5.00 or More, no Math Error (IRAF).</td>\n</tr>\n<tr>\n<td>IMF Notices</td>\n</tr>",{"$f":"IF(OrigTable!A39=\"\",\"\",ScriptText!$B$1&CHAR(10)&ScriptText!$D$1)","v":"<tr>\n<td>"},{"$f":"IF(OrigTable!A39=\"\",\"\",TEXT(OrigTable!A39,\"00\"))","v":"14I"},{"$f":"IF(OrigTable!A39=\"\",\"\",ScriptText!$E$1&CHAR(10)&ScriptText!$C$1)","v":"</td>\n</tr>"},{"$f":"IF(OrigTable!B39=\"\",\"\",ScriptText!$B$1&CHAR(10)&ScriptText!$D$1)","v":""},{"$f":"IF(OrigTable!B39=\"\",\"\",TEXT(OrigTable!B39,\"00\"))","v":""},{"$f":"IF(OrigTable!B39=\"\",\"\",ScriptText!$E$1&CHAR(10)&ScriptText!C34)","v":""},{"$f":"IF(OrigTable!C39=\"\",\"\",ScriptText!$B$1&CHAR(10)&ScriptText!$D$1)","v":"<tr>\n<td>"},{"$f":"IF(OrigTable!C39=\"\",\"\",IF(LEN(OrigTable!C39)>255,LEFT(OrigTable!C39,250)&\". . .\",OrigTable!C39))","v":"Notice with a balance due of $5.00 or More, no Math Error (IRAF)."},{"$f":"IF(OrigTable!C39=\"\",\"\",ScriptText!$E$1&CHAR(10)&ScriptText!$C$1)","v":"</td>\n</tr>"},{"$f":"IF(OrigTable!D39=\"\",\"\",ScriptText!$B$1&CHAR(10)&ScriptText!$D$1)","v":"<tr>\n<td>"},{"$f":"IF(OrigTable!D39=\"\",\"\",TEXT(OrigTable!D39,\"00\"))","v":"IMF Notices"},{"$f":"IF(OrigTable!D39=\"\",\"\",ScriptText!$E$1&CHAR(10)&ScriptText!$C$1)","v":"</td>\n</tr>"},{"$f":"IF(OrigTable!E39=\"\",\"\",ScriptText!$B$1&CHAR(10)&ScriptText!$D$1)","v":""},{"$f":"IF(OrigTable!E39=\"\",\"\",TEXT(OrigTable!E39,\"00\"))","v":""},{"$f":"IF(OrigTable!E39=\"\",\"\",ScriptText!$E$1&CHAR(10)&ScriptText!$C$1)","v":""},{"$f":"IF(OrigTable!F39=\"\",\"\",ScriptText!$B$1&CHAR(10)&ScriptText!$D$1)","v":""},{"$f":"IF(OrigTable!F39=\"\",\"\",TEXT(OrigTable!F39,\"00\"))","v":""},{"$f":"IF(OrigTable!F39=\"\",\"\",ScriptText!$E$1&CHAR(10)&ScriptText!$C$1)","v":""},{"$f":"IF(OrigTable!G39=\"\",\"\",ScriptText!$B$1&CHAR(10)&ScriptText!$D$1)","v":""},{"$f":"IF(OrigTable!G39=\"\",\"\",TEXT(OrigTable!G39,\"00\"))","v":""},{"$f":"IF(OrigTable!G39=\"\",\"\",ScriptText!$E$1&CHAR(10)&ScriptText!$C$1)","v":""},39]
["<tr>\n<td>15</td>\n</tr>\n\n<tr>\n<td>Notice of civil penalty charge, various penalties.</td>\n</tr>\n<tr>\n<td>IMF Notices</td>\n</tr>",{"$f":"IF(OrigTable!A40=\"\",\"\",ScriptText!$B$1&CHAR(10)&ScriptText!$D$1)","v":"<tr>\n<td>"},{"$f":"IF(OrigTable!A40=\"\",\"\",TEXT(OrigTable!A40,\"00\"))","v":"15"},{"$f":"IF(OrigTable!A40=\"\",\"\",ScriptText!$E$1&CHAR(10)&ScriptText!$C$1)","v":"</td>\n</tr>"},{"$f":"IF(OrigTable!B40=\"\",\"\",ScriptText!$B$1&CHAR(10)&ScriptText!$D$1)","v":""},{"$f":"IF(OrigTable!B40=\"\",\"\",TEXT(OrigTable!B40,\"00\"))","v":""},{"$f":"IF(OrigTable!B40=\"\",\"\",ScriptText!$E$1&CHAR(10)&ScriptText!C35)","v":""},{"$f":"IF(OrigTable!C40=\"\",\"\",ScriptText!$B$1&CHAR(10)&ScriptText!$D$1)","v":"<tr>\n<td>"},{"$f":"IF(OrigTable!C40=\"\",\"\",IF(LEN(OrigTable!C40)>255,LEFT(OrigTable!C40,250)&\". . .\",OrigTable!C40))","v":"Notice of civil penalty charge, various penalties."},{"$f":"IF(OrigTable!C40=\"\",\"\",ScriptText!$E$1&CHAR(10)&ScriptText!$C$1)","v":"</td>\n</tr>"},{"$f":"IF(OrigTable!D40=\"\",\"\",ScriptText!$B$1&CHAR(10)&ScriptText!$D$1)","v":"<tr>\n<td>"},{"$f":"IF(OrigTable!D40=\"\",\"\",TEXT(OrigTable!D40,\"00\"))","v":"IMF Notices"},{"$f":"IF(OrigTable!D40=\"\",\"\",ScriptText!$E$1&CHAR(10)&ScriptText!$C$1)","v":"</td>\n</tr>"},{"$f":"IF(OrigTable!E40=\"\",\"\",ScriptText!$B$1&CHAR(10)&ScriptText!$D$1)","v":""},{"$f":"IF(OrigTable!E40=\"\",\"\",TEXT(OrigTable!E40,\"00\"))","v":""},{"$f":"IF(OrigTable!E40=\"\",\"\",ScriptText!$E$1&CHAR(10)&ScriptText!$C$1)","v":""},{"$f":"IF(OrigTable!F40=\"\",\"\",ScriptText!$B$1&CHAR(10)&ScriptText!$D$1)","v":""},{"$f":"IF(OrigTable!F40=\"\",\"\",TEXT(OrigTable!F40,\"00\"))","v":""},{"$f":"IF(OrigTable!F40=\"\",\"\",ScriptText!$E$1&CHAR(10)&ScriptText!$C$1)","v":""},{"$f":"IF(OrigTable!G40=\"\",\"\",ScriptText!$B$1&CHAR(10)&ScriptText!$D$1)","v":""},{"$f":"IF(OrigTable!G40=\"\",\"\",TEXT(OrigTable!G40,\"00\"))","v":""},{"$f":"IF(OrigTable!G40=\"\",\"\",ScriptText!$E$1&CHAR(10)&ScriptText!$C$1)","v":""},40]
["<tr>\n<td>15H</td>\n</tr>\n\n<tr>\n<td>We charged you a shared responsibility payment for not having minimum essential health coverage\n(ACA)</td>\n</tr>\n<tr>\n<td>IMF Notices</td>\n</tr>",{"$f":"IF(OrigTable!A41=\"\",\"\",ScriptText!$B$1&CHAR(10)&ScriptText!$D$1)","v":"<tr>\n<td>"},{"$f":"IF(OrigTable!A41=\"\",\"\",TEXT(OrigTable!A41,\"00\"))","v":"15H"},{"$f":"IF(OrigTable!A41=\"\",\"\",ScriptText!$E$1&CHAR(10)&ScriptText!$C$1)","v":"</td>\n</tr>"},{"$f":"IF(OrigTable!B41=\"\",\"\",ScriptText!$B$1&CHAR(10)&ScriptText!$D$1)","v":""},{"$f":"IF(OrigTable!B41=\"\",\"\",TEXT(OrigTable!B41,\"00\"))","v":""},{"$f":"IF(OrigTable!B41=\"\",\"\",ScriptText!$E$1&CHAR(10)&ScriptText!C36)","v":""},{"$f":"IF(OrigTable!C41=\"\",\"\",ScriptText!$B$1&CHAR(10)&ScriptText!$D$1)","v":"<tr>\n<td>"},{"$f":"IF(OrigTable!C41=\"\",\"\",IF(LEN(OrigTable!C41)>255,LEFT(OrigTable!C41,250)&\". . .\",OrigTable!C41))","v":"We charged you a shared responsibility payment for not having minimum essential health coverage\n(ACA)"},{"$f":"IF(OrigTable!C41=\"\",\"\",ScriptText!$E$1&CHAR(10)&ScriptText!$C$1)","v":"</td>\n</tr>"},{"$f":"IF(OrigTable!D41=\"\",\"\",ScriptText!$B$1&CHAR(10)&ScriptText!$D$1)","v":"<tr>\n<td>"},{"$f":"IF(OrigTable!D41=\"\",\"\",TEXT(OrigTable!D41,\"00\"))","v":"IMF Notices"},{"$f":"IF(OrigTable!D41=\"\",\"\",ScriptText!$E$1&CHAR(10)&ScriptText!$C$1)","v":"</td>\n</tr>"},{"$f":"IF(OrigTable!E41=\"\",\"\",ScriptText!$B$1&CHAR(10)&ScriptText!$D$1)","v":""},{"$f":"IF(OrigTable!E41=\"\",\"\",TEXT(OrigTable!E41,\"00\"))","v":""},{"$f":"IF(OrigTable!E41=\"\",\"\",ScriptText!$E$1&CHAR(10)&ScriptText!$C$1)","v":""},{"$f":"IF(OrigTable!F41=\"\",\"\",ScriptText!$B$1&CHAR(10)&ScriptText!$D$1)","v":""},{"$f":"IF(OrigTable!F41=\"\",\"\",TEXT(OrigTable!F41,\"00\"))","v":""},{"$f":"IF(OrigTable!F41=\"\",\"\",ScriptText!$E$1&CHAR(10)&ScriptText!$C$1)","v":""},{"$f":"IF(OrigTable!G41=\"\",\"\",ScriptText!$B$1&CHAR(10)&ScriptText!$D$1)","v":""},{"$f":"IF(OrigTable!G41=\"\",\"\",TEXT(OrigTable!G41,\"00\"))","v":""},{"$f":"IF(OrigTable!G41=\"\",\"\",ScriptText!$E$1&CHAR(10)&ScriptText!$C$1)","v":""},41]
["<tr>\n<td>15B</td>\n</tr>\n\n<tr>\n<td>Notice of civil penalty charge, Trust Fund Recovery Penalty (MFT 55).</td>\n</tr>\n<tr>\n<td>IMF Notices</td>\n</tr>",{"$f":"IF(OrigTable!A42=\"\",\"\",ScriptText!$B$1&CHAR(10)&ScriptText!$D$1)","v":"<tr>\n<td>"},{"$f":"IF(OrigTable!A42=\"\",\"\",TEXT(OrigTable!A42,\"00\"))","v":"15B"},{"$f":"IF(OrigTable!A42=\"\",\"\",ScriptText!$E$1&CHAR(10)&ScriptText!$C$1)","v":"</td>\n</tr>"},{"$f":"IF(OrigTable!B42=\"\",\"\",ScriptText!$B$1&CHAR(10)&ScriptText!$D$1)","v":""},{"$f":"IF(OrigTable!B42=\"\",\"\",TEXT(OrigTable!B42,\"00\"))","v":""},{"$f":"IF(OrigTable!B42=\"\",\"\",ScriptText!$E$1&CHAR(10)&ScriptText!C37)","v":""},{"$f":"IF(OrigTable!C42=\"\",\"\",ScriptText!$B$1&CHAR(10)&ScriptText!$D$1)","v":"<tr>\n<td>"},{"$f":"IF(OrigTable!C42=\"\",\"\",IF(LEN(OrigTable!C42)>255,LEFT(OrigTable!C42,250)&\". . .\",OrigTable!C42))","v":"Notice of civil penalty charge, Trust Fund Recovery Penalty (MFT 55)."},{"$f":"IF(OrigTable!C42=\"\",\"\",ScriptText!$E$1&CHAR(10)&ScriptText!$C$1)","v":"</td>\n</tr>"},{"$f":"IF(OrigTable!D42=\"\",\"\",ScriptText!$B$1&CHAR(10)&ScriptText!$D$1)","v":"<tr>\n<td>"},{"$f":"IF(OrigTable!D42=\"\",\"\",TEXT(OrigTable!D42,\"00\"))","v":"IMF Notices"},{"$f":"IF(OrigTable!D42=\"\",\"\",ScriptText!$E$1&CHAR(10)&ScriptText!$C$1)","v":"</td>\n</tr>"},{"$f":"IF(OrigTable!E42=\"\",\"\",ScriptText!$B$1&CHAR(10)&ScriptText!$D$1)","v":""},{"$f":"IF(OrigTable!E42=\"\",\"\",TEXT(OrigTable!E42,\"00\"))","v":""},{"$f":"IF(OrigTable!E42=\"\",\"\",ScriptText!$E$1&CHAR(10)&ScriptText!$C$1)","v":""},{"$f":"IF(OrigTable!F42=\"\",\"\",ScriptText!$B$1&CHAR(10)&ScriptText!$D$1)","v":""},{"$f":"IF(OrigTable!F42=\"\",\"\",TEXT(OrigTable!F42,\"00\"))","v":""},{"$f":"IF(OrigTable!F42=\"\",\"\",ScriptText!$E$1&CHAR(10)&ScriptText!$C$1)","v":""},{"$f":"IF(OrigTable!G42=\"\",\"\",ScriptText!$B$1&CHAR(10)&ScriptText!$D$1)","v":""},{"$f":"IF(OrigTable!G42=\"\",\"\",TEXT(OrigTable!G42,\"00\"))","v":""},{"$f":"IF(OrigTable!G42=\"\",\"\",ScriptText!$E$1&CHAR(10)&ScriptText!$C$1)","v":""},42]
["<tr>\n<td>16</td>\n</tr>\n\n<tr>\n<td>Math Error notice with an overpayment applied to another IMF tax liability.</td>\n</tr>\n<tr>\n<td>IMF Notices</td>\n</tr>",{"$f":"IF(OrigTable!A43=\"\",\"\",ScriptText!$B$1&CHAR(10)&ScriptText!$D$1)","v":"<tr>\n<td>"},{"$f":"IF(OrigTable!A43=\"\",\"\",TEXT(OrigTable!A43,\"00\"))","v":"16"},{"$f":"IF(OrigTable!A43=\"\",\"\",ScriptText!$E$1&CHAR(10)&ScriptText!$C$1)","v":"</td>\n</tr>"},{"$f":"IF(OrigTable!B43=\"\",\"\",ScriptText!$B$1&CHAR(10)&ScriptText!$D$1)","v":""},{"$f":"IF(OrigTable!B43=\"\",\"\",TEXT(OrigTable!B43,\"00\"))","v":""},{"$f":"IF(OrigTable!B43=\"\",\"\",ScriptText!$E$1&CHAR(10)&ScriptText!C38)","v":""},{"$f":"IF(OrigTable!C43=\"\",\"\",ScriptText!$B$1&CHAR(10)&ScriptText!$D$1)","v":"<tr>\n<td>"},{"$f":"IF(OrigTable!C43=\"\",\"\",IF(LEN(OrigTable!C43)>255,LEFT(OrigTable!C43,250)&\". . .\",OrigTable!C43))","v":"Math Error notice with an overpayment applied to another IMF tax liability."},{"$f":"IF(OrigTable!C43=\"\",\"\",ScriptText!$E$1&CHAR(10)&ScriptText!$C$1)","v":"</td>\n</tr>"},{"$f":"IF(OrigTable!D43=\"\",\"\",ScriptText!$B$1&CHAR(10)&ScriptText!$D$1)","v":"<tr>\n<td>"},{"$f":"IF(OrigTable!D43=\"\",\"\",TEXT(OrigTable!D43,\"00\"))","v":"IMF Notices"},{"$f":"IF(OrigTable!D43=\"\",\"\",ScriptText!$E$1&CHAR(10)&ScriptText!$C$1)","v":"</td>\n</tr>"},{"$f":"IF(OrigTable!E43=\"\",\"\",ScriptText!$B$1&CHAR(10)&ScriptText!$D$1)","v":""},{"$f":"IF(OrigTable!E43=\"\",\"\",TEXT(OrigTable!E43,\"00\"))","v":""},{"$f":"IF(OrigTable!E43=\"\",\"\",ScriptText!$E$1&CHAR(10)&ScriptText!$C$1)","v":""},{"$f":"IF(OrigTable!F43=\"\",\"\",ScriptText!$B$1&CHAR(10)&ScriptText!$D$1)","v":""},{"$f":"IF(OrigTable!F43=\"\",\"\",TEXT(OrigTable!F43,\"00\"))","v":""},{"$f":"IF(OrigTable!F43=\"\",\"\",ScriptText!$E$1&CHAR(10)&ScriptText!$C$1)","v":""},{"$f":"IF(OrigTable!G43=\"\",\"\",ScriptText!$B$1&CHAR(10)&ScriptText!$D$1)","v":""},{"$f":"IF(OrigTable!G43=\"\",\"\",TEXT(OrigTable!G43,\"00\"))","v":""},{"$f":"IF(OrigTable!G43=\"\",\"\",ScriptText!$E$1&CHAR(10)&ScriptText!$C$1)","v":""},43]
["<tr>\n<td>17</td>\n</tr>\n\n<tr>\n<td>Notice of refund of unfrozen, excess estimated credits.</td>\n</tr>\n<tr>\n<td>IMF Notices</td>\n</tr>",{"$f":"IF(OrigTable!A44=\"\",\"\",ScriptText!$B$1&CHAR(10)&ScriptText!$D$1)","v":"<tr>\n<td>"},{"$f":"IF(OrigTable!A44=\"\",\"\",TEXT(OrigTable!A44,\"00\"))","v":"17"},{"$f":"IF(OrigTable!A44=\"\",\"\",ScriptText!$E$1&CHAR(10)&ScriptText!$C$1)","v":"</td>\n</tr>"},{"$f":"IF(OrigTable!B44=\"\",\"\",ScriptText!$B$1&CHAR(10)&ScriptText!$D$1)","v":""},{"$f":"IF(OrigTable!B44=\"\",\"\",TEXT(OrigTable!B44,\"00\"))","v":""},{"$f":"IF(OrigTable!B44=\"\",\"\",ScriptText!$E$1&CHAR(10)&ScriptText!C39)","v":""},{"$f":"IF(OrigTable!C44=\"\",\"\",ScriptText!$B$1&CHAR(10)&ScriptText!$D$1)","v":"<tr>\n<td>"},{"$f":"IF(OrigTable!C44=\"\",\"\",IF(LEN(OrigTable!C44)>255,LEFT(OrigTable!C44,250)&\". . .\",OrigTable!C44))","v":"Notice of refund of unfrozen, excess estimated credits."},{"$f":"IF(OrigTable!C44=\"\",\"\",ScriptText!$E$1&CHAR(10)&ScriptText!$C$1)","v":"</td>\n</tr>"},{"$f":"IF(OrigTable!D44=\"\",\"\",ScriptText!$B$1&CHAR(10)&ScriptText!$D$1)","v":"<tr>\n<td>"},{"$f":"IF(OrigTable!D44=\"\",\"\",TEXT(OrigTable!D44,\"00\"))","v":"IMF Notices"},{"$f":"IF(OrigTable!D44=\"\",\"\",ScriptText!$E$1&CHAR(10)&ScriptText!$C$1)","v":"</td>\n</tr>"},{"$f":"IF(OrigTable!E44=\"\",\"\",ScriptText!$B$1&CHAR(10)&ScriptText!$D$1)","v":""},{"$f":"IF(OrigTable!E44=\"\",\"\",TEXT(OrigTable!E44,\"00\"))","v":""},{"$f":"IF(OrigTable!E44=\"\",\"\",ScriptText!$E$1&CHAR(10)&ScriptText!$C$1)","v":""},{"$f":"IF(OrigTable!F44=\"\",\"\",ScriptText!$B$1&CHAR(10)&ScriptText!$D$1)","v":""},{"$f":"IF(OrigTable!F44=\"\",\"\",TEXT(OrigTable!F44,\"00\"))","v":""},{"$f":"IF(OrigTable!F44=\"\",\"\",ScriptText!$E$1&CHAR(10)&ScriptText!$C$1)","v":""},{"$f":"IF(OrigTable!G44=\"\",\"\",ScriptText!$B$1&CHAR(10)&ScriptText!$D$1)","v":""},{"$f":"IF(OrigTable!G44=\"\",\"\",TEXT(OrigTable!G44,\"00\"))","v":""},{"$f":"IF(OrigTable!G44=\"\",\"\",ScriptText!$E$1&CHAR(10)&ScriptText!$C$1)","v":""},44]
["<tr>\n<td>19E,\nF,or G</td>\n</tr>\n\n<tr>\n<td>Notice of Examination unallowable items with Balance Due, response required. , various audit codes.</td>\n</tr>\n<tr>\n<td>IMF Notices</td>\n</tr>",{"$f":"IF(OrigTable!A45=\"\",\"\",ScriptText!$B$1&CHAR(10)&ScriptText!$D$1)","v":"<tr>\n<td>"},{"$f":"IF(OrigTable!A45=\"\",\"\",TEXT(OrigTable!A45,\"00\"))","v":"19E,\nF,or G"},{"$f":"IF(OrigTable!A45=\"\",\"\",ScriptText!$E$1&CHAR(10)&ScriptText!$C$1)","v":"</td>\n</tr>"},{"$f":"IF(OrigTable!B45=\"\",\"\",ScriptText!$B$1&CHAR(10)&ScriptText!$D$1)","v":""},{"$f":"IF(OrigTable!B45=\"\",\"\",TEXT(OrigTable!B45,\"00\"))","v":""},{"$f":"IF(OrigTable!B45=\"\",\"\",ScriptText!$E$1&CHAR(10)&ScriptText!C40)","v":""},{"$f":"IF(OrigTable!C45=\"\",\"\",ScriptText!$B$1&CHAR(10)&ScriptText!$D$1)","v":"<tr>\n<td>"},{"$f":"IF(OrigTable!C45=\"\",\"\",IF(LEN(OrigTable!C45)>255,LEFT(OrigTable!C45,250)&\". . .\",OrigTable!C45))","v":"Notice of Examination unallowable items with Balance Due, response required. , various audit codes."},{"$f":"IF(OrigTable!C45=\"\",\"\",ScriptText!$E$1&CHAR(10)&ScriptText!$C$1)","v":"</td>\n</tr>"},{"$f":"IF(OrigTable!D45=\"\",\"\",ScriptText!$B$1&CHAR(10)&ScriptText!$D$1)","v":"<tr>\n<td>"},{"$f":"IF(OrigTable!D45=\"\",\"\",TEXT(OrigTable!D45,\"00\"))","v":"IMF Notices"},{"$f":"IF(OrigTable!D45=\"\",\"\",ScriptText!$E$1&CHAR(10)&ScriptText!$C$1)","v":"</td>\n</tr>"},{"$f":"IF(OrigTable!E45=\"\",\"\",ScriptText!$B$1&CHAR(10)&ScriptText!$D$1)","v":""},{"$f":"IF(OrigTable!E45=\"\",\"\",TEXT(OrigTable!E45,\"00\"))","v":""},{"$f":"IF(OrigTable!E45=\"\",\"\",ScriptText!$E$1&CHAR(10)&ScriptText!$C$1)","v":""},{"$f":"IF(OrigTable!F45=\"\",\"\",ScriptText!$B$1&CHAR(10)&ScriptText!$D$1)","v":""},{"$f":"IF(OrigTable!F45=\"\",\"\",TEXT(OrigTable!F45,\"00\"))","v":""},{"$f":"IF(OrigTable!F45=\"\",\"\",ScriptText!$E$1&CHAR(10)&ScriptText!$C$1)","v":""},{"$f":"IF(OrigTable!G45=\"\",\"\",ScriptText!$B$1&CHAR(10)&ScriptText!$D$1)","v":""},{"$f":"IF(OrigTable!G45=\"\",\"\",TEXT(OrigTable!G45,\"00\"))","v":""},{"$f":"IF(OrigTable!G45=\"\",\"\",ScriptText!$E$1&CHAR(10)&ScriptText!$C$1)","v":""},45]
["<tr>\n<td>20E,\nF, or G</td>\n</tr>\n\n<tr>\n<td>Notice of Examination unallowable items with overpayment, response required. , various audit codes.</td>\n</tr>\n<tr>\n<td>IMF Notices</td>\n</tr>",{"$f":"IF(OrigTable!A46=\"\",\"\",ScriptText!$B$1&CHAR(10)&ScriptText!$D$1)","v":"<tr>\n<td>"},{"$f":"IF(OrigTable!A46=\"\",\"\",TEXT(OrigTable!A46,\"00\"))","v":"20E,\nF, or G"},{"$f":"IF(OrigTable!A46=\"\",\"\",ScriptText!$E$1&CHAR(10)&ScriptText!$C$1)","v":"</td>\n</tr>"},{"$f":"IF(OrigTable!B46=\"\",\"\",ScriptText!$B$1&CHAR(10)&ScriptText!$D$1)","v":""},{"$f":"IF(OrigTable!B46=\"\",\"\",TEXT(OrigTable!B46,\"00\"))","v":""},{"$f":"IF(OrigTable!B46=\"\",\"\",ScriptText!$E$1&CHAR(10)&ScriptText!C41)","v":""},{"$f":"IF(OrigTable!C46=\"\",\"\",ScriptText!$B$1&CHAR(10)&ScriptText!$D$1)","v":"<tr>\n<td>"},{"$f":"IF(OrigTable!C46=\"\",\"\",IF(LEN(OrigTable!C46)>255,LEFT(OrigTable!C46,250)&\". . .\",OrigTable!C46))","v":"Notice of Examination unallowable items with overpayment, response required. , various audit codes."},{"$f":"IF(OrigTable!C46=\"\",\"\",ScriptText!$E$1&CHAR(10)&ScriptText!$C$1)","v":"</td>\n</tr>"},{"$f":"IF(OrigTable!D46=\"\",\"\",ScriptText!$B$1&CHAR(10)&ScriptText!$D$1)","v":"<tr>\n<td>"},{"$f":"IF(OrigTable!D46=\"\",\"\",TEXT(OrigTable!D46,\"00\"))","v":"IMF Notices"},{"$f":"IF(OrigTable!D46=\"\",\"\",ScriptText!$E$1&CHAR(10)&ScriptText!$C$1)","v":"</td>\n</tr>"},{"$f":"IF(OrigTable!E46=\"\",\"\",ScriptText!$B$1&CHAR(10)&ScriptText!$D$1)","v":""},{"$f":"IF(OrigTable!E46=\"\",\"\",TEXT(OrigTable!E46,\"00\"))","v":""},{"$f":"IF(OrigTable!E46=\"\",\"\",ScriptText!$E$1&CHAR(10)&ScriptText!$C$1)","v":""},{"$f":"IF(OrigTable!F46=\"\",\"\",ScriptText!$B$1&CHAR(10)&ScriptText!$D$1)","v":""},{"$f":"IF(OrigTable!F46=\"\",\"\",TEXT(OrigTable!F46,\"00\"))","v":""},{"$f":"IF(OrigTable!F46=\"\",\"\",ScriptText!$E$1&CHAR(10)&ScriptText!$C$1)","v":""},{"$f":"IF(OrigTable!G46=\"\",\"\",ScriptText!$B$1&CHAR(10)&ScriptText!$D$1)","v":""},{"$f":"IF(OrigTable!G46=\"\",\"\",TEXT(OrigTable!G46,\"00\"))","v":""},{"$f":"IF(OrigTable!G46=\"\",\"\",ScriptText!$E$1&CHAR(10)&ScriptText!$C$1)","v":""},46]
["<tr>\n<td>21A</td>\n</tr>\n\n<tr>\n<td>Notice of Data Processing adjustments, resulting in a balance due of $5.00 or more when account is in TDA/BAL DUE status.</td>\n</tr>\n<tr>\n<td>IMF Notices</td>\n</tr>",{"$f":"IF(OrigTable!A47=\"\",\"\",ScriptText!$B$1&CHAR(10)&ScriptText!$D$1)","v":"<tr>\n<td>"},{"$f":"IF(OrigTable!A47=\"\",\"\",TEXT(OrigTable!A47,\"00\"))","v":"21A"},{"$f":"IF(OrigTable!A47=\"\",\"\",ScriptText!$E$1&CHAR(10)&ScriptText!$C$1)","v":"</td>\n</tr>"},{"$f":"IF(OrigTable!B47=\"\",\"\",ScriptText!$B$1&CHAR(10)&ScriptText!$D$1)","v":""},{"$f":"IF(OrigTable!B47=\"\",\"\",TEXT(OrigTable!B47,\"00\"))","v":""},{"$f":"IF(OrigTable!B47=\"\",\"\",ScriptText!$E$1&CHAR(10)&ScriptText!C42)","v":""},{"$f":"IF(OrigTable!C47=\"\",\"\",ScriptText!$B$1&CHAR(10)&ScriptText!$D$1)","v":"<tr>\n<td>"},{"$f":"IF(OrigTable!C47=\"\",\"\",IF(LEN(OrigTable!C47)>255,LEFT(OrigTable!C47,250)&\". . .\",OrigTable!C47))","v":"Notice of Data Processing adjustments, resulting in a balance due of $5.00 or more when account is in TDA/BAL DUE status."},{"$f":"IF(OrigTable!C47=\"\",\"\",ScriptText!$E$1&CHAR(10)&ScriptText!$C$1)","v":"</td>\n</tr>"},{"$f":"IF(OrigTable!D47=\"\",\"\",ScriptText!$B$1&CHAR(10)&ScriptText!$D$1)","v":"<tr>\n<td>"},{"$f":"IF(OrigTable!D47=\"\",\"\",TEXT(OrigTable!D47,\"00\"))","v":"IMF Notices"},{"$f":"IF(OrigTable!D47=\"\",\"\",ScriptText!$E$1&CHAR(10)&ScriptText!$C$1)","v":"</td>\n</tr>"},{"$f":"IF(OrigTable!E47=\"\",\"\",ScriptText!$B$1&CHAR(10)&ScriptText!$D$1)","v":""},{"$f":"IF(OrigTable!E47=\"\",\"\",TEXT(OrigTable!E47,\"00\"))","v":""},{"$f":"IF(OrigTable!E47=\"\",\"\",ScriptText!$E$1&CHAR(10)&ScriptText!$C$1)","v":""},{"$f":"IF(OrigTable!F47=\"\",\"\",ScriptText!$B$1&CHAR(10)&ScriptText!$D$1)","v":""},{"$f":"IF(OrigTable!F47=\"\",\"\",TEXT(OrigTable!F47,\"00\"))","v":""},{"$f":"IF(OrigTable!F47=\"\",\"\",ScriptText!$E$1&CHAR(10)&ScriptText!$C$1)","v":""},{"$f":"IF(OrigTable!G47=\"\",\"\",ScriptText!$B$1&CHAR(10)&ScriptText!$D$1)","v":""},{"$f":"IF(OrigTable!G47=\"\",\"\",TEXT(OrigTable!G47,\"00\"))","v":""},{"$f":"IF(OrigTable!G47=\"\",\"\",ScriptText!$E$1&CHAR(10)&ScriptText!$C$1)","v":""},47]
["<tr>\n<td>21B</td>\n</tr>\n\n<tr>\n<td>Notice of Data Processing adjustments resulting in an overpayment of $1.00 or more.</td>\n</tr>\n<tr>\n<td>IMF Notices</td>\n</tr>",{"$f":"IF(OrigTable!A48=\"\",\"\",ScriptText!$B$1&CHAR(10)&ScriptText!$D$1)","v":"<tr>\n<td>"},{"$f":"IF(OrigTable!A48=\"\",\"\",TEXT(OrigTable!A48,\"00\"))","v":"21B"},{"$f":"IF(OrigTable!A48=\"\",\"\",ScriptText!$E$1&CHAR(10)&ScriptText!$C$1)","v":"</td>\n</tr>"},{"$f":"IF(OrigTable!B48=\"\",\"\",ScriptText!$B$1&CHAR(10)&ScriptText!$D$1)","v":""},{"$f":"IF(OrigTable!B48=\"\",\"\",TEXT(OrigTable!B48,\"00\"))","v":""},{"$f":"IF(OrigTable!B48=\"\",\"\",ScriptText!$E$1&CHAR(10)&ScriptText!C43)","v":""},{"$f":"IF(OrigTable!C48=\"\",\"\",ScriptText!$B$1&CHAR(10)&ScriptText!$D$1)","v":"<tr>\n<td>"},{"$f":"IF(OrigTable!C48=\"\",\"\",IF(LEN(OrigTable!C48)>255,LEFT(OrigTable!C48,250)&\". . .\",OrigTable!C48))","v":"Notice of Data Processing adjustments resulting in an overpayment of $1.00 or more."},{"$f":"IF(OrigTable!C48=\"\",\"\",ScriptText!$E$1&CHAR(10)&ScriptText!$C$1)","v":"</td>\n</tr>"},{"$f":"IF(OrigTable!D48=\"\",\"\",ScriptText!$B$1&CHAR(10)&ScriptText!$D$1)","v":"<tr>\n<td>"},{"$f":"IF(OrigTable!D48=\"\",\"\",TEXT(OrigTable!D48,\"00\"))","v":"IMF Notices"},{"$f":"IF(OrigTable!D48=\"\",\"\",ScriptText!$E$1&CHAR(10)&ScriptText!$C$1)","v":"</td>\n</tr>"},{"$f":"IF(OrigTable!E48=\"\",\"\",ScriptText!$B$1&CHAR(10)&ScriptText!$D$1)","v":""},{"$f":"IF(OrigTable!E48=\"\",\"\",TEXT(OrigTable!E48,\"00\"))","v":""},{"$f":"IF(OrigTable!E48=\"\",\"\",ScriptText!$E$1&CHAR(10)&ScriptText!$C$1)","v":""},{"$f":"IF(OrigTable!F48=\"\",\"\",ScriptText!$B$1&CHAR(10)&ScriptText!$D$1)","v":""},{"$f":"IF(OrigTable!F48=\"\",\"\",TEXT(OrigTable!F48,\"00\"))","v":""},{"$f":"IF(OrigTable!F48=\"\",\"\",ScriptText!$E$1&CHAR(10)&ScriptText!$C$1)","v":""},{"$f":"IF(OrigTable!G48=\"\",\"\",ScriptText!$B$1&CHAR(10)&ScriptText!$D$1)","v":""},{"$f":"IF(OrigTable!G48=\"\",\"\",TEXT(OrigTable!G48,\"00\"))","v":""},{"$f":"IF(OrigTable!G48=\"\",\"\",ScriptText!$E$1&CHAR(10)&ScriptText!$C$1)","v":""},48]
["<tr>\n<td>21C</td>\n</tr>\n\n<tr>\n<td>Notice of Data Processing adjustments resulting in a balance due < $5.00 or an overpayment < $1.00.</td>\n</tr>\n<tr>\n<td>IMF Notices</td>\n</tr>",{"$f":"IF(OrigTable!A49=\"\",\"\",ScriptText!$B$1&CHAR(10)&ScriptText!$D$1)","v":"<tr>\n<td>"},{"$f":"IF(OrigTable!A49=\"\",\"\",TEXT(OrigTable!A49,\"00\"))","v":"21C"},{"$f":"IF(OrigTable!A49=\"\",\"\",ScriptText!$E$1&CHAR(10)&ScriptText!$C$1)","v":"</td>\n</tr>"},{"$f":"IF(OrigTable!B49=\"\",\"\",ScriptText!$B$1&CHAR(10)&ScriptText!$D$1)","v":""},{"$f":"IF(OrigTable!B49=\"\",\"\",TEXT(OrigTable!B49,\"00\"))","v":""},{"$f":"IF(OrigTable!B49=\"\",\"\",ScriptText!$E$1&CHAR(10)&ScriptText!C44)","v":""},{"$f":"IF(OrigTable!C49=\"\",\"\",ScriptText!$B$1&CHAR(10)&ScriptText!$D$1)","v":"<tr>\n<td>"},{"$f":"IF(OrigTable!C49=\"\",\"\",IF(LEN(OrigTable!C49)>255,LEFT(OrigTable!C49,250)&\". . .\",OrigTable!C49))","v":"Notice of Data Processing adjustments resulting in a balance due < $5.00 or an overpayment < $1.00."},{"$f":"IF(OrigTable!C49=\"\",\"\",ScriptText!$E$1&CHAR(10)&ScriptText!$C$1)","v":"</td>\n</tr>"},{"$f":"IF(OrigTable!D49=\"\",\"\",ScriptText!$B$1&CHAR(10)&ScriptText!$D$1)","v":"<tr>\n<td>"},{"$f":"IF(OrigTable!D49=\"\",\"\",TEXT(OrigTable!D49,\"00\"))","v":"IMF Notices"},{"$f":"IF(OrigTable!D49=\"\",\"\",ScriptText!$E$1&CHAR(10)&ScriptText!$C$1)","v":"</td>\n</tr>"},{"$f":"IF(OrigTable!E49=\"\",\"\",ScriptText!$B$1&CHAR(10)&ScriptText!$D$1)","v":""},{"$f":"IF(OrigTable!E49=\"\",\"\",TEXT(OrigTable!E49,\"00\"))","v":""},{"$f":"IF(OrigTable!E49=\"\",\"\",ScriptText!$E$1&CHAR(10)&ScriptText!$C$1)","v":""},{"$f":"IF(OrigTable!F49=\"\",\"\",ScriptText!$B$1&CHAR(10)&ScriptText!$D$1)","v":""},{"$f":"IF(OrigTable!F49=\"\",\"\",TEXT(OrigTable!F49,\"00\"))","v":""},{"$f":"IF(OrigTable!F49=\"\",\"\",ScriptText!$E$1&CHAR(10)&ScriptText!$C$1)","v":""},{"$f":"IF(OrigTable!G49=\"\",\"\",ScriptText!$B$1&CHAR(10)&ScriptText!$D$1)","v":""},{"$f":"IF(OrigTable!G49=\"\",\"\",TEXT(OrigTable!G49,\"00\"))","v":""},{"$f":"IF(OrigTable!G49=\"\",\"\",ScriptText!$E$1&CHAR(10)&ScriptText!$C$1)","v":""},49]
["<tr>\n<td>21E</td>\n</tr>\n\n<tr>\n<td>Notice of Examination adjustments, resulting in a change to an account in TDA/BAL DUE status.</td>\n</tr>\n<tr>\n<td>IMF Notices</td>\n</tr>",{"$f":"IF(OrigTable!A50=\"\",\"\",ScriptText!$B$1&CHAR(10)&ScriptText!$D$1)","v":"<tr>\n<td>"},{"$f":"IF(OrigTable!A50=\"\",\"\",TEXT(OrigTable!A50,\"00\"))","v":"21E"},{"$f":"IF(OrigTable!A50=\"\",\"\",ScriptText!$E$1&CHAR(10)&ScriptText!$C$1)","v":"</td>\n</tr>"},{"$f":"IF(OrigTable!B50=\"\",\"\",ScriptText!$B$1&CHAR(10)&ScriptText!$D$1)","v":""},{"$f":"IF(OrigTable!B50=\"\",\"\",TEXT(OrigTable!B50,\"00\"))","v":""},{"$f":"IF(OrigTable!B50=\"\",\"\",ScriptText!$E$1&CHAR(10)&ScriptText!C45)","v":""},{"$f":"IF(OrigTable!C50=\"\",\"\",ScriptText!$B$1&CHAR(10)&ScriptText!$D$1)","v":"<tr>\n<td>"},{"$f":"IF(OrigTable!C50=\"\",\"\",IF(LEN(OrigTable!C50)>255,LEFT(OrigTable!C50,250)&\". . .\",OrigTable!C50))","v":"Notice of Examination adjustments, resulting in a change to an account in TDA/BAL DUE status."},{"$f":"IF(OrigTable!C50=\"\",\"\",ScriptText!$E$1&CHAR(10)&ScriptText!$C$1)","v":"</td>\n</tr>"},{"$f":"IF(OrigTable!D50=\"\",\"\",ScriptText!$B$1&CHAR(10)&ScriptText!$D$1)","v":"<tr>\n<td>"},{"$f":"IF(OrigTable!D50=\"\",\"\",TEXT(OrigTable!D50,\"00\"))","v":"IMF Notices"},{"$f":"IF(OrigTable!D50=\"\",\"\",ScriptText!$E$1&CHAR(10)&ScriptText!$C$1)","v":"</td>\n</tr>"},{"$f":"IF(OrigTable!E50=\"\",\"\",ScriptText!$B$1&CHAR(10)&ScriptText!$D$1)","v":""},{"$f":"IF(OrigTable!E50=\"\",\"\",TEXT(OrigTable!E50,\"00\"))","v":""},{"$f":"IF(OrigTable!E50=\"\",\"\",ScriptText!$E$1&CHAR(10)&ScriptText!$C$1)","v":""},{"$f":"IF(OrigTable!F50=\"\",\"\",ScriptText!$B$1&CHAR(10)&ScriptText!$D$1)","v":""},{"$f":"IF(OrigTable!F50=\"\",\"\",TEXT(OrigTable!F50,\"00\"))","v":""},{"$f":"IF(OrigTable!F50=\"\",\"\",ScriptText!$E$1&CHAR(10)&ScriptText!$C$1)","v":""},{"$f":"IF(OrigTable!G50=\"\",\"\",ScriptText!$B$1&CHAR(10)&ScriptText!$D$1)","v":""},{"$f":"IF(OrigTable!G50=\"\",\"\",TEXT(OrigTable!G50,\"00\"))","v":""},{"$f":"IF(OrigTable!G50=\"\",\"\",ScriptText!$E$1&CHAR(10)&ScriptText!$C$1)","v":""},50]
["<tr>\n<td>21H</td>\n</tr>\n\n<tr>\n<td>Changes to your shared responsibility payment (ACA)</td>\n</tr>\n<tr>\n<td>IMF Notices</td>\n</tr>",{"$f":"IF(OrigTable!A51=\"\",\"\",ScriptText!$B$1&CHAR(10)&ScriptText!$D$1)","v":"<tr>\n<td>"},{"$f":"IF(OrigTable!A51=\"\",\"\",TEXT(OrigTable!A51,\"00\"))","v":"21H"},{"$f":"IF(OrigTable!A51=\"\",\"\",ScriptText!$E$1&CHAR(10)&ScriptText!$C$1)","v":"</td>\n</tr>"},{"$f":"IF(OrigTable!B51=\"\",\"\",ScriptText!$B$1&CHAR(10)&ScriptText!$D$1)","v":""},{"$f":"IF(OrigTable!B51=\"\",\"\",TEXT(OrigTable!B51,\"00\"))","v":""},{"$f":"IF(OrigTable!B51=\"\",\"\",ScriptText!$E$1&CHAR(10)&ScriptText!C46)","v":""},{"$f":"IF(OrigTable!C51=\"\",\"\",ScriptText!$B$1&CHAR(10)&ScriptText!$D$1)","v":"<tr>\n<td>"},{"$f":"IF(OrigTable!C51=\"\",\"\",IF(LEN(OrigTable!C51)>255,LEFT(OrigTable!C51,250)&\". . .\",OrigTable!C51))","v":"Changes to your shared responsibility payment (ACA)"},{"$f":"IF(OrigTable!C51=\"\",\"\",ScriptText!$E$1&CHAR(10)&ScriptText!$C$1)","v":"</td>\n</tr>"},{"$f":"IF(OrigTable!D51=\"\",\"\",ScriptText!$B$1&CHAR(10)&ScriptText!$D$1)","v":"<tr>\n<td>"},{"$f":"IF(OrigTable!D51=\"\",\"\",TEXT(OrigTable!D51,\"00\"))","v":"IMF Notices"},{"$f":"IF(OrigTable!D51=\"\",\"\",ScriptText!$E$1&CHAR(10)&ScriptText!$C$1)","v":"</td>\n</tr>"},{"$f":"IF(OrigTable!E51=\"\",\"\",ScriptText!$B$1&CHAR(10)&ScriptText!$D$1)","v":""},{"$f":"IF(OrigTable!E51=\"\",\"\",TEXT(OrigTable!E51,\"00\"))","v":""},{"$f":"IF(OrigTable!E51=\"\",\"\",ScriptText!$E$1&CHAR(10)&ScriptText!$C$1)","v":""},{"$f":"IF(OrigTable!F51=\"\",\"\",ScriptText!$B$1&CHAR(10)&ScriptText!$D$1)","v":""},{"$f":"IF(OrigTable!F51=\"\",\"\",TEXT(OrigTable!F51,\"00\"))","v":""},{"$f":"IF(OrigTable!F51=\"\",\"\",ScriptText!$E$1&CHAR(10)&ScriptText!$C$1)","v":""},{"$f":"IF(OrigTable!G51=\"\",\"\",ScriptText!$B$1&CHAR(10)&ScriptText!$D$1)","v":""},{"$f":"IF(OrigTable!G51=\"\",\"\",TEXT(OrigTable!G51,\"00\"))","v":""},{"$f":"IF(OrigTable!G51=\"\",\"\",ScriptText!$E$1&CHAR(10)&ScriptText!$C$1)","v":""},51]
["<tr>\n<td>21I</td>\n</tr>\n\n<tr>\n<td>Notice of Data Processing adjustments, resulting in a balance due of $5.00 or more when account is in TDA/BAL DUE status (IRAF).</td>\n</tr>\n<tr>\n<td>IMF Notices</td>\n</tr>",{"$f":"IF(OrigTable!A52=\"\",\"\",ScriptText!$B$1&CHAR(10)&ScriptText!$D$1)","v":"<tr>\n<td>"},{"$f":"IF(OrigTable!A52=\"\",\"\",TEXT(OrigTable!A52,\"00\"))","v":"21I"},{"$f":"IF(OrigTable!A52=\"\",\"\",ScriptText!$E$1&CHAR(10)&ScriptText!$C$1)","v":"</td>\n</tr>"},{"$f":"IF(OrigTable!B52=\"\",\"\",ScriptText!$B$1&CHAR(10)&ScriptText!$D$1)","v":""},{"$f":"IF(OrigTable!B52=\"\",\"\",TEXT(OrigTable!B52,\"00\"))","v":""},{"$f":"IF(OrigTable!B52=\"\",\"\",ScriptText!$E$1&CHAR(10)&ScriptText!C47)","v":""},{"$f":"IF(OrigTable!C52=\"\",\"\",ScriptText!$B$1&CHAR(10)&ScriptText!$D$1)","v":"<tr>\n<td>"},{"$f":"IF(OrigTable!C52=\"\",\"\",IF(LEN(OrigTable!C52)>255,LEFT(OrigTable!C52,250)&\". . .\",OrigTable!C52))","v":"Notice of Data Processing adjustments, resulting in a balance due of $5.00 or more when account is in TDA/BAL DUE status (IRAF)."},{"$f":"IF(OrigTable!C52=\"\",\"\",ScriptText!$E$1&CHAR(10)&ScriptText!$C$1)","v":"</td>\n</tr>"},{"$f":"IF(OrigTable!D52=\"\",\"\",ScriptText!$B$1&CHAR(10)&ScriptText!$D$1)","v":"<tr>\n<td>"},{"$f":"IF(OrigTable!D52=\"\",\"\",TEXT(OrigTable!D52,\"00\"))","v":"IMF Notices"},{"$f":"IF(OrigTable!D52=\"\",\"\",ScriptText!$E$1&CHAR(10)&ScriptText!$C$1)","v":"</td>\n</tr>"},{"$f":"IF(OrigTable!E52=\"\",\"\",ScriptText!$B$1&CHAR(10)&ScriptText!$D$1)","v":""},{"$f":"IF(OrigTable!E52=\"\",\"\",TEXT(OrigTable!E52,\"00\"))","v":""},{"$f":"IF(OrigTable!E52=\"\",\"\",ScriptText!$E$1&CHAR(10)&ScriptText!$C$1)","v":""},{"$f":"IF(OrigTable!F52=\"\",\"\",ScriptText!$B$1&CHAR(10)&ScriptText!$D$1)","v":""},{"$f":"IF(OrigTable!F52=\"\",\"\",TEXT(OrigTable!F52,\"00\"))","v":""},{"$f":"IF(OrigTable!F52=\"\",\"\",ScriptText!$E$1&CHAR(10)&ScriptText!$C$1)","v":""},{"$f":"IF(OrigTable!G52=\"\",\"\",ScriptText!$B$1&CHAR(10)&ScriptText!$D$1)","v":""},{"$f":"IF(OrigTable!G52=\"\",\"\",TEXT(OrigTable!G52,\"00\"))","v":""},{"$f":"IF(OrigTable!G52=\"\",\"\",ScriptText!$E$1&CHAR(10)&ScriptText!$C$1)","v":""},52]
["<tr>\n<td>22A</td>\n</tr>\n\n<tr>\n<td>Notice of Data Processing adjustments, resulting in a balance due of $5.00 or more when an account isn’t in TDA/BAL DUE status.</td>\n</tr>\n<tr>\n<td>IMF Notices</td>\n</tr>",{"$f":"IF(OrigTable!A53=\"\",\"\",ScriptText!$B$1&CHAR(10)&ScriptText!$D$1)","v":"<tr>\n<td>"},{"$f":"IF(OrigTable!A53=\"\",\"\",TEXT(OrigTable!A53,\"00\"))","v":"22A"},{"$f":"IF(OrigTable!A53=\"\",\"\",ScriptText!$E$1&CHAR(10)&ScriptText!$C$1)","v":"</td>\n</tr>"},{"$f":"IF(OrigTable!B53=\"\",\"\",ScriptText!$B$1&CHAR(10)&ScriptText!$D$1)","v":""},{"$f":"IF(OrigTable!B53=\"\",\"\",TEXT(OrigTable!B53,\"00\"))","v":""},{"$f":"IF(OrigTable!B53=\"\",\"\",ScriptText!$E$1&CHAR(10)&ScriptText!C48)","v":""},{"$f":"IF(OrigTable!C53=\"\",\"\",ScriptText!$B$1&CHAR(10)&ScriptText!$D$1)","v":"<tr>\n<td>"},{"$f":"IF(OrigTable!C53=\"\",\"\",IF(LEN(OrigTable!C53)>255,LEFT(OrigTable!C53,250)&\". . .\",OrigTable!C53))","v":"Notice of Data Processing adjustments, resulting in a balance due of $5.00 or more when an account isn’t in TDA/BAL DUE status."},{"$f":"IF(OrigTable!C53=\"\",\"\",ScriptText!$E$1&CHAR(10)&ScriptText!$C$1)","v":"</td>\n</tr>"},{"$f":"IF(OrigTable!D53=\"\",\"\",ScriptText!$B$1&CHAR(10)&ScriptText!$D$1)","v":"<tr>\n<td>"},{"$f":"IF(OrigTable!D53=\"\",\"\",TEXT(OrigTable!D53,\"00\"))","v":"IMF Notices"},{"$f":"IF(OrigTable!D53=\"\",\"\",ScriptText!$E$1&CHAR(10)&ScriptText!$C$1)","v":"</td>\n</tr>"},{"$f":"IF(OrigTable!E53=\"\",\"\",ScriptText!$B$1&CHAR(10)&ScriptText!$D$1)","v":""},{"$f":"IF(OrigTable!E53=\"\",\"\",TEXT(OrigTable!E53,\"00\"))","v":""},{"$f":"IF(OrigTable!E53=\"\",\"\",ScriptText!$E$1&CHAR(10)&ScriptText!$C$1)","v":""},{"$f":"IF(OrigTable!F53=\"\",\"\",ScriptText!$B$1&CHAR(10)&ScriptText!$D$1)","v":""},{"$f":"IF(OrigTable!F53=\"\",\"\",TEXT(OrigTable!F53,\"00\"))","v":""},{"$f":"IF(OrigTable!F53=\"\",\"\",ScriptText!$E$1&CHAR(10)&ScriptText!$C$1)","v":""},{"$f":"IF(OrigTable!G53=\"\",\"\",ScriptText!$B$1&CHAR(10)&ScriptText!$D$1)","v":""},{"$f":"IF(OrigTable!G53=\"\",\"\",TEXT(OrigTable!G53,\"00\"))","v":""},{"$f":"IF(OrigTable!G53=\"\",\"\",ScriptText!$E$1&CHAR(10)&ScriptText!$C$1)","v":""},53]
["<tr>\n<td>22E</td>\n</tr>\n\n<tr>\n<td>Notice of Examination adjustments, resulting in changes to an account isn’t in TDA/BAL DUE status.</td>\n</tr>\n<tr>\n<td>IMF Notices</td>\n</tr>",{"$f":"IF(OrigTable!A54=\"\",\"\",ScriptText!$B$1&CHAR(10)&ScriptText!$D$1)","v":"<tr>\n<td>"},{"$f":"IF(OrigTable!A54=\"\",\"\",TEXT(OrigTable!A54,\"00\"))","v":"22E"},{"$f":"IF(OrigTable!A54=\"\",\"\",ScriptText!$E$1&CHAR(10)&ScriptText!$C$1)","v":"</td>\n</tr>"},{"$f":"IF(OrigTable!B54=\"\",\"\",ScriptText!$B$1&CHAR(10)&ScriptText!$D$1)","v":""},{"$f":"IF(OrigTable!B54=\"\",\"\",TEXT(OrigTable!B54,\"00\"))","v":""},{"$f":"IF(OrigTable!B54=\"\",\"\",ScriptText!$E$1&CHAR(10)&ScriptText!C49)","v":""},{"$f":"IF(OrigTable!C54=\"\",\"\",ScriptText!$B$1&CHAR(10)&ScriptText!$D$1)","v":"<tr>\n<td>"},{"$f":"IF(OrigTable!C54=\"\",\"\",IF(LEN(OrigTable!C54)>255,LEFT(OrigTable!C54,250)&\". . .\",OrigTable!C54))","v":"Notice of Examination adjustments, resulting in changes to an account isn’t in TDA/BAL DUE status."},{"$f":"IF(OrigTable!C54=\"\",\"\",ScriptText!$E$1&CHAR(10)&ScriptText!$C$1)","v":"</td>\n</tr>"},{"$f":"IF(OrigTable!D54=\"\",\"\",ScriptText!$B$1&CHAR(10)&ScriptText!$D$1)","v":"<tr>\n<td>"},{"$f":"IF(OrigTable!D54=\"\",\"\",TEXT(OrigTable!D54,\"00\"))","v":"IMF Notices"},{"$f":"IF(OrigTable!D54=\"\",\"\",ScriptText!$E$1&CHAR(10)&ScriptText!$C$1)","v":"</td>\n</tr>"},{"$f":"IF(OrigTable!E54=\"\",\"\",ScriptText!$B$1&CHAR(10)&ScriptText!$D$1)","v":""},{"$f":"IF(OrigTable!E54=\"\",\"\",TEXT(OrigTable!E54,\"00\"))","v":""},{"$f":"IF(OrigTable!E54=\"\",\"\",ScriptText!$E$1&CHAR(10)&ScriptText!$C$1)","v":""},{"$f":"IF(OrigTable!F54=\"\",\"\",ScriptText!$B$1&CHAR(10)&ScriptText!$D$1)","v":""},{"$f":"IF(OrigTable!F54=\"\",\"\",TEXT(OrigTable!F54,\"00\"))","v":""},{"$f":"IF(OrigTable!F54=\"\",\"\",ScriptText!$E$1&CHAR(10)&ScriptText!$C$1)","v":""},{"$f":"IF(OrigTable!G54=\"\",\"\",ScriptText!$B$1&CHAR(10)&ScriptText!$D$1)","v":""},{"$f":"IF(OrigTable!G54=\"\",\"\",TEXT(OrigTable!G54,\"00\"))","v":""},{"$f":"IF(OrigTable!G54=\"\",\"\",ScriptText!$E$1&CHAR(10)&ScriptText!$C$1)","v":""},54]
["<tr>\n<td>22H</td>\n</tr>\n\n<tr>\n<td>Changes to your shared responsibility payment (ACA)</td>\n</tr>\n<tr>\n<td>IMF Notices</td>\n</tr>",{"$f":"IF(OrigTable!A55=\"\",\"\",ScriptText!$B$1&CHAR(10)&ScriptText!$D$1)","v":"<tr>\n<td>"},{"$f":"IF(OrigTable!A55=\"\",\"\",TEXT(OrigTable!A55,\"00\"))","v":"22H"},{"$f":"IF(OrigTable!A55=\"\",\"\",ScriptText!$E$1&CHAR(10)&ScriptText!$C$1)","v":"</td>\n</tr>"},{"$f":"IF(OrigTable!B55=\"\",\"\",ScriptText!$B$1&CHAR(10)&ScriptText!$D$1)","v":""},{"$f":"IF(OrigTable!B55=\"\",\"\",TEXT(OrigTable!B55,\"00\"))","v":""},{"$f":"IF(OrigTable!B55=\"\",\"\",ScriptText!$E$1&CHAR(10)&ScriptText!C50)","v":""},{"$f":"IF(OrigTable!C55=\"\",\"\",ScriptText!$B$1&CHAR(10)&ScriptText!$D$1)","v":"<tr>\n<td>"},{"$f":"IF(OrigTable!C55=\"\",\"\",IF(LEN(OrigTable!C55)>255,LEFT(OrigTable!C55,250)&\". . .\",OrigTable!C55))","v":"Changes to your shared responsibility payment (ACA)"},{"$f":"IF(OrigTable!C55=\"\",\"\",ScriptText!$E$1&CHAR(10)&ScriptText!$C$1)","v":"</td>\n</tr>"},{"$f":"IF(OrigTable!D55=\"\",\"\",ScriptText!$B$1&CHAR(10)&ScriptText!$D$1)","v":"<tr>\n<td>"},{"$f":"IF(OrigTable!D55=\"\",\"\",TEXT(OrigTable!D55,\"00\"))","v":"IMF Notices"},{"$f":"IF(OrigTable!D55=\"\",\"\",ScriptText!$E$1&CHAR(10)&ScriptText!$C$1)","v":"</td>\n</tr>"},{"$f":"IF(OrigTable!E55=\"\",\"\",ScriptText!$B$1&CHAR(10)&ScriptText!$D$1)","v":""},{"$f":"IF(OrigTable!E55=\"\",\"\",TEXT(OrigTable!E55,\"00\"))","v":""},{"$f":"IF(OrigTable!E55=\"\",\"\",ScriptText!$E$1&CHAR(10)&ScriptText!$C$1)","v":""},{"$f":"IF(OrigTable!F55=\"\",\"\",ScriptText!$B$1&CHAR(10)&ScriptText!$D$1)","v":""},{"$f":"IF(OrigTable!F55=\"\",\"\",TEXT(OrigTable!F55,\"00\"))","v":""},{"$f":"IF(OrigTable!F55=\"\",\"\",ScriptText!$E$1&CHAR(10)&ScriptText!$C$1)","v":""},{"$f":"IF(OrigTable!G55=\"\",\"\",ScriptText!$B$1&CHAR(10)&ScriptText!$D$1)","v":""},{"$f":"IF(OrigTable!G55=\"\",\"\",TEXT(OrigTable!G55,\"00\"))","v":""},{"$f":"IF(OrigTable!G55=\"\",\"\",ScriptText!$E$1&CHAR(10)&ScriptText!$C$1)","v":""},55]
["<tr>\n<td>22I</td>\n</tr>\n\n<tr>\n<td>Notice of Data Processing adjustments, resulting in a balance due of $5.00 or more when account isn’t in TDA/BAL DUE status (IRAF).</td>\n</tr>\n<tr>\n<td>IMF Notices</td>\n</tr>",{"$f":"IF(OrigTable!A56=\"\",\"\",ScriptText!$B$1&CHAR(10)&ScriptText!$D$1)","v":"<tr>\n<td>"},{"$f":"IF(OrigTable!A56=\"\",\"\",TEXT(OrigTable!A56,\"00\"))","v":"22I"},{"$f":"IF(OrigTable!A56=\"\",\"\",ScriptText!$E$1&CHAR(10)&ScriptText!$C$1)","v":"</td>\n</tr>"},{"$f":"IF(OrigTable!B56=\"\",\"\",ScriptText!$B$1&CHAR(10)&ScriptText!$D$1)","v":""},{"$f":"IF(OrigTable!B56=\"\",\"\",TEXT(OrigTable!B56,\"00\"))","v":""},{"$f":"IF(OrigTable!B56=\"\",\"\",ScriptText!$E$1&CHAR(10)&ScriptText!C51)","v":""},{"$f":"IF(OrigTable!C56=\"\",\"\",ScriptText!$B$1&CHAR(10)&ScriptText!$D$1)","v":"<tr>\n<td>"},{"$f":"IF(OrigTable!C56=\"\",\"\",IF(LEN(OrigTable!C56)>255,LEFT(OrigTable!C56,250)&\". . .\",OrigTable!C56))","v":"Notice of Data Processing adjustments, resulting in a balance due of $5.00 or more when account isn’t in TDA/BAL DUE status (IRAF)."},{"$f":"IF(OrigTable!C56=\"\",\"\",ScriptText!$E$1&CHAR(10)&ScriptText!$C$1)","v":"</td>\n</tr>"},{"$f":"IF(OrigTable!D56=\"\",\"\",ScriptText!$B$1&CHAR(10)&ScriptText!$D$1)","v":"<tr>\n<td>"},{"$f":"IF(OrigTable!D56=\"\",\"\",TEXT(OrigTable!D56,\"00\"))","v":"IMF Notices"},{"$f":"IF(OrigTable!D56=\"\",\"\",ScriptText!$E$1&CHAR(10)&ScriptText!$C$1)","v":"</td>\n</tr>"},{"$f":"IF(OrigTable!E56=\"\",\"\",ScriptText!$B$1&CHAR(10)&ScriptText!$D$1)","v":""},{"$f":"IF(OrigTable!E56=\"\",\"\",TEXT(OrigTable!E56,\"00\"))","v":""},{"$f":"IF(OrigTable!E56=\"\",\"\",ScriptText!$E$1&CHAR(10)&ScriptText!$C$1)","v":""},{"$f":"IF(OrigTable!F56=\"\",\"\",ScriptText!$B$1&CHAR(10)&ScriptText!$D$1)","v":""},{"$f":"IF(OrigTable!F56=\"\",\"\",TEXT(OrigTable!F56,\"00\"))","v":""},{"$f":"IF(OrigTable!F56=\"\",\"\",ScriptText!$E$1&CHAR(10)&ScriptText!$C$1)","v":""},{"$f":"IF(OrigTable!G56=\"\",\"\",ScriptText!$B$1&CHAR(10)&ScriptText!$D$1)","v":""},{"$f":"IF(OrigTable!G56=\"\",\"\",TEXT(OrigTable!G56,\"00\"))","v":""},{"$f":"IF(OrigTable!G56=\"\",\"\",ScriptText!$E$1&CHAR(10)&ScriptText!$C$1)","v":""},56]
["<tr>\n<td>23</td>\n</tr>\n\n<tr>\n<td>Notice of estimated credits discrepancy with a balance due of $5.00 or more.</td>\n</tr>\n<tr>\n<td>IMF Notices</td>\n</tr>",{"$f":"IF(OrigTable!A57=\"\",\"\",ScriptText!$B$1&CHAR(10)&ScriptText!$D$1)","v":"<tr>\n<td>"},{"$f":"IF(OrigTable!A57=\"\",\"\",TEXT(OrigTable!A57,\"00\"))","v":"23"},{"$f":"IF(OrigTable!A57=\"\",\"\",ScriptText!$E$1&CHAR(10)&ScriptText!$C$1)","v":"</td>\n</tr>"},{"$f":"IF(OrigTable!B57=\"\",\"\",ScriptText!$B$1&CHAR(10)&ScriptText!$D$1)","v":""},{"$f":"IF(OrigTable!B57=\"\",\"\",TEXT(OrigTable!B57,\"00\"))","v":""},{"$f":"IF(OrigTable!B57=\"\",\"\",ScriptText!$E$1&CHAR(10)&ScriptText!C52)","v":""},{"$f":"IF(OrigTable!C57=\"\",\"\",ScriptText!$B$1&CHAR(10)&ScriptText!$D$1)","v":"<tr>\n<td>"},{"$f":"IF(OrigTable!C57=\"\",\"\",IF(LEN(OrigTable!C57)>255,LEFT(OrigTable!C57,250)&\". . .\",OrigTable!C57))","v":"Notice of estimated credits discrepancy with a balance due of $5.00 or more."},{"$f":"IF(OrigTable!C57=\"\",\"\",ScriptText!$E$1&CHAR(10)&ScriptText!$C$1)","v":"</td>\n</tr>"},{"$f":"IF(OrigTable!D57=\"\",\"\",ScriptText!$B$1&CHAR(10)&ScriptText!$D$1)","v":"<tr>\n<td>"},{"$f":"IF(OrigTable!D57=\"\",\"\",TEXT(OrigTable!D57,\"00\"))","v":"IMF Notices"},{"$f":"IF(OrigTable!D57=\"\",\"\",ScriptText!$E$1&CHAR(10)&ScriptText!$C$1)","v":"</td>\n</tr>"},{"$f":"IF(OrigTable!E57=\"\",\"\",ScriptText!$B$1&CHAR(10)&ScriptText!$D$1)","v":""},{"$f":"IF(OrigTable!E57=\"\",\"\",TEXT(OrigTable!E57,\"00\"))","v":""},{"$f":"IF(OrigTable!E57=\"\",\"\",ScriptText!$E$1&CHAR(10)&ScriptText!$C$1)","v":""},{"$f":"IF(OrigTable!F57=\"\",\"\",ScriptText!$B$1&CHAR(10)&ScriptText!$D$1)","v":""},{"$f":"IF(OrigTable!F57=\"\",\"\",TEXT(OrigTable!F57,\"00\"))","v":""},{"$f":"IF(OrigTable!F57=\"\",\"\",ScriptText!$E$1&CHAR(10)&ScriptText!$C$1)","v":""},{"$f":"IF(OrigTable!G57=\"\",\"\",ScriptText!$B$1&CHAR(10)&ScriptText!$D$1)","v":""},{"$f":"IF(OrigTable!G57=\"\",\"\",TEXT(OrigTable!G57,\"00\"))","v":""},{"$f":"IF(OrigTable!G57=\"\",\"\",ScriptText!$E$1&CHAR(10)&ScriptText!$C$1)","v":""},57]
["<tr>\n<td>25</td>\n</tr>\n\n<tr>\n<td>Notice of estimated credits discrepancy with a balance due of < $5 or an overpayment of < $1.00.</td>\n</tr>\n<tr>\n<td>IMF Notices</td>\n</tr>",{"$f":"IF(OrigTable!A58=\"\",\"\",ScriptText!$B$1&CHAR(10)&ScriptText!$D$1)","v":"<tr>\n<td>"},{"$f":"IF(OrigTable!A58=\"\",\"\",TEXT(OrigTable!A58,\"00\"))","v":"25"},{"$f":"IF(OrigTable!A58=\"\",\"\",ScriptText!$E$1&CHAR(10)&ScriptText!$C$1)","v":"</td>\n</tr>"},{"$f":"IF(OrigTable!B58=\"\",\"\",ScriptText!$B$1&CHAR(10)&ScriptText!$D$1)","v":""},{"$f":"IF(OrigTable!B58=\"\",\"\",TEXT(OrigTable!B58,\"00\"))","v":""},{"$f":"IF(OrigTable!B58=\"\",\"\",ScriptText!$E$1&CHAR(10)&ScriptText!C53)","v":""},{"$f":"IF(OrigTable!C58=\"\",\"\",ScriptText!$B$1&CHAR(10)&ScriptText!$D$1)","v":"<tr>\n<td>"},{"$f":"IF(OrigTable!C58=\"\",\"\",IF(LEN(OrigTable!C58)>255,LEFT(OrigTable!C58,250)&\". . .\",OrigTable!C58))","v":"Notice of estimated credits discrepancy with a balance due of < $5 or an overpayment of < $1.00."},{"$f":"IF(OrigTable!C58=\"\",\"\",ScriptText!$E$1&CHAR(10)&ScriptText!$C$1)","v":"</td>\n</tr>"},{"$f":"IF(OrigTable!D58=\"\",\"\",ScriptText!$B$1&CHAR(10)&ScriptText!$D$1)","v":"<tr>\n<td>"},{"$f":"IF(OrigTable!D58=\"\",\"\",TEXT(OrigTable!D58,\"00\"))","v":"IMF Notices"},{"$f":"IF(OrigTable!D58=\"\",\"\",ScriptText!$E$1&CHAR(10)&ScriptText!$C$1)","v":"</td>\n</tr>"},{"$f":"IF(OrigTable!E58=\"\",\"\",ScriptText!$B$1&CHAR(10)&ScriptText!$D$1)","v":""},{"$f":"IF(OrigTable!E58=\"\",\"\",TEXT(OrigTable!E58,\"00\"))","v":""},{"$f":"IF(OrigTable!E58=\"\",\"\",ScriptText!$E$1&CHAR(10)&ScriptText!$C$1)","v":""},{"$f":"IF(OrigTable!F58=\"\",\"\",ScriptText!$B$1&CHAR(10)&ScriptText!$D$1)","v":""},{"$f":"IF(OrigTable!F58=\"\",\"\",TEXT(OrigTable!F58,\"00\"))","v":""},{"$f":"IF(OrigTable!F58=\"\",\"\",ScriptText!$E$1&CHAR(10)&ScriptText!$C$1)","v":""},{"$f":"IF(OrigTable!G58=\"\",\"\",ScriptText!$B$1&CHAR(10)&ScriptText!$D$1)","v":""},{"$f":"IF(OrigTable!G58=\"\",\"\",TEXT(OrigTable!G58,\"00\"))","v":""},{"$f":"IF(OrigTable!G58=\"\",\"\",ScriptText!$E$1&CHAR(10)&ScriptText!$C$1)","v":""},58]
["<tr>\n<td>27</td>\n</tr>\n\n<tr>\n<td>Notice to a taxpayer without qualifying children of possible refund due to Earned Income Credit eligibility.</td>\n</tr>\n<tr>\n<td>IMF Notices</td>\n</tr>",{"$f":"IF(OrigTable!A59=\"\",\"\",ScriptText!$B$1&CHAR(10)&ScriptText!$D$1)","v":"<tr>\n<td>"},{"$f":"IF(OrigTable!A59=\"\",\"\",TEXT(OrigTable!A59,\"00\"))","v":"27"},{"$f":"IF(OrigTable!A59=\"\",\"\",ScriptText!$E$1&CHAR(10)&ScriptText!$C$1)","v":"</td>\n</tr>"},{"$f":"IF(OrigTable!B59=\"\",\"\",ScriptText!$B$1&CHAR(10)&ScriptText!$D$1)","v":""},{"$f":"IF(OrigTable!B59=\"\",\"\",TEXT(OrigTable!B59,\"00\"))","v":""},{"$f":"IF(OrigTable!B59=\"\",\"\",ScriptText!$E$1&CHAR(10)&ScriptText!C54)","v":""},{"$f":"IF(OrigTable!C59=\"\",\"\",ScriptText!$B$1&CHAR(10)&ScriptText!$D$1)","v":"<tr>\n<td>"},{"$f":"IF(OrigTable!C59=\"\",\"\",IF(LEN(OrigTable!C59)>255,LEFT(OrigTable!C59,250)&\". . .\",OrigTable!C59))","v":"Notice to a taxpayer without qualifying children of possible refund due to Earned Income Credit eligibility."},{"$f":"IF(OrigTable!C59=\"\",\"\",ScriptText!$E$1&CHAR(10)&ScriptText!$C$1)","v":"</td>\n</tr>"},{"$f":"IF(OrigTable!D59=\"\",\"\",ScriptText!$B$1&CHAR(10)&ScriptText!$D$1)","v":"<tr>\n<td>"},{"$f":"IF(OrigTable!D59=\"\",\"\",TEXT(OrigTable!D59,\"00\"))","v":"IMF Notices"},{"$f":"IF(OrigTable!D59=\"\",\"\",ScriptText!$E$1&CHAR(10)&ScriptText!$C$1)","v":"</td>\n</tr>"},{"$f":"IF(OrigTable!E59=\"\",\"\",ScriptText!$B$1&CHAR(10)&ScriptText!$D$1)","v":""},{"$f":"IF(OrigTable!E59=\"\",\"\",TEXT(OrigTable!E59,\"00\"))","v":""},{"$f":"IF(OrigTable!E59=\"\",\"\",ScriptText!$E$1&CHAR(10)&ScriptText!$C$1)","v":""},{"$f":"IF(OrigTable!F59=\"\",\"\",ScriptText!$B$1&CHAR(10)&ScriptText!$D$1)","v":""},{"$f":"IF(OrigTable!F59=\"\",\"\",TEXT(OrigTable!F59,\"00\"))","v":""},{"$f":"IF(OrigTable!F59=\"\",\"\",ScriptText!$E$1&CHAR(10)&ScriptText!$C$1)","v":""},{"$f":"IF(OrigTable!G59=\"\",\"\",ScriptText!$B$1&CHAR(10)&ScriptText!$D$1)","v":""},{"$f":"IF(OrigTable!G59=\"\",\"\",TEXT(OrigTable!G59,\"00\"))","v":""},{"$f":"IF(OrigTable!G59=\"\",\"\",ScriptText!$E$1&CHAR(10)&ScriptText!$C$1)","v":""},59]
["<tr>\n<td>29</td>\n</tr>\n\n<tr>\n<td>Campus notice only: Amended Return Posted, No Original.</td>\n</tr>\n<tr>\n<td>IMF Notices</td>\n</tr>",{"$f":"IF(OrigTable!A60=\"\",\"\",ScriptText!$B$1&CHAR(10)&ScriptText!$D$1)","v":"<tr>\n<td>"},{"$f":"IF(OrigTable!A60=\"\",\"\",TEXT(OrigTable!A60,\"00\"))","v":"29"},{"$f":"IF(OrigTable!A60=\"\",\"\",ScriptText!$E$1&CHAR(10)&ScriptText!$C$1)","v":"</td>\n</tr>"},{"$f":"IF(OrigTable!B60=\"\",\"\",ScriptText!$B$1&CHAR(10)&ScriptText!$D$1)","v":""},{"$f":"IF(OrigTable!B60=\"\",\"\",TEXT(OrigTable!B60,\"00\"))","v":""},{"$f":"IF(OrigTable!B60=\"\",\"\",ScriptText!$E$1&CHAR(10)&ScriptText!C55)","v":""},{"$f":"IF(OrigTable!C60=\"\",\"\",ScriptText!$B$1&CHAR(10)&ScriptText!$D$1)","v":"<tr>\n<td>"},{"$f":"IF(OrigTable!C60=\"\",\"\",IF(LEN(OrigTable!C60)>255,LEFT(OrigTable!C60,250)&\". . .\",OrigTable!C60))","v":"Campus notice only: Amended Return Posted, No Original."},{"$f":"IF(OrigTable!C60=\"\",\"\",ScriptText!$E$1&CHAR(10)&ScriptText!$C$1)","v":"</td>\n</tr>"},{"$f":"IF(OrigTable!D60=\"\",\"\",ScriptText!$B$1&CHAR(10)&ScriptText!$D$1)","v":"<tr>\n<td>"},{"$f":"IF(OrigTable!D60=\"\",\"\",TEXT(OrigTable!D60,\"00\"))","v":"IMF Notices"},{"$f":"IF(OrigTable!D60=\"\",\"\",ScriptText!$E$1&CHAR(10)&ScriptText!$C$1)","v":"</td>\n</tr>"},{"$f":"IF(OrigTable!E60=\"\",\"\",ScriptText!$B$1&CHAR(10)&ScriptText!$D$1)","v":""},{"$f":"IF(OrigTable!E60=\"\",\"\",TEXT(OrigTable!E60,\"00\"))","v":""},{"$f":"IF(OrigTable!E60=\"\",\"\",ScriptText!$E$1&CHAR(10)&ScriptText!$C$1)","v":""},{"$f":"IF(OrigTable!F60=\"\",\"\",ScriptText!$B$1&CHAR(10)&ScriptText!$D$1)","v":""},{"$f":"IF(OrigTable!F60=\"\",\"\",TEXT(OrigTable!F60,\"00\"))","v":""},{"$f":"IF(OrigTable!F60=\"\",\"\",ScriptText!$E$1&CHAR(10)&ScriptText!$C$1)","v":""},{"$f":"IF(OrigTable!G60=\"\",\"\",ScriptText!$B$1&CHAR(10)&ScriptText!$D$1)","v":""},{"$f":"IF(OrigTable!G60=\"\",\"\",TEXT(OrigTable!G60,\"00\"))","v":""},{"$f":"IF(OrigTable!G60=\"\",\"\",ScriptText!$E$1&CHAR(10)&ScriptText!$C$1)","v":""},60]
["<tr>\n<td>29I</td>\n</tr>\n\n<tr>\n<td>Campus notice only: Amended Return Posted, No Original IRAF.</td>\n</tr>\n<tr>\n<td>IMF Notices</td>\n</tr>",{"$f":"IF(OrigTable!A61=\"\",\"\",ScriptText!$B$1&CHAR(10)&ScriptText!$D$1)","v":"<tr>\n<td>"},{"$f":"IF(OrigTable!A61=\"\",\"\",TEXT(OrigTable!A61,\"00\"))","v":"29I"},{"$f":"IF(OrigTable!A61=\"\",\"\",ScriptText!$E$1&CHAR(10)&ScriptText!$C$1)","v":"</td>\n</tr>"},{"$f":"IF(OrigTable!B61=\"\",\"\",ScriptText!$B$1&CHAR(10)&ScriptText!$D$1)","v":""},{"$f":"IF(OrigTable!B61=\"\",\"\",TEXT(OrigTable!B61,\"00\"))","v":""},{"$f":"IF(OrigTable!B61=\"\",\"\",ScriptText!$E$1&CHAR(10)&ScriptText!C56)","v":""},{"$f":"IF(OrigTable!C61=\"\",\"\",ScriptText!$B$1&CHAR(10)&ScriptText!$D$1)","v":"<tr>\n<td>"},{"$f":"IF(OrigTable!C61=\"\",\"\",IF(LEN(OrigTable!C61)>255,LEFT(OrigTable!C61,250)&\". . .\",OrigTable!C61))","v":"Campus notice only: Amended Return Posted, No Original IRAF."},{"$f":"IF(OrigTable!C61=\"\",\"\",ScriptText!$E$1&CHAR(10)&ScriptText!$C$1)","v":"</td>\n</tr>"},{"$f":"IF(OrigTable!D61=\"\",\"\",ScriptText!$B$1&CHAR(10)&ScriptText!$D$1)","v":"<tr>\n<td>"},{"$f":"IF(OrigTable!D61=\"\",\"\",TEXT(OrigTable!D61,\"00\"))","v":"IMF Notices"},{"$f":"IF(OrigTable!D61=\"\",\"\",ScriptText!$E$1&CHAR(10)&ScriptText!$C$1)","v":"</td>\n</tr>"},{"$f":"IF(OrigTable!E61=\"\",\"\",ScriptText!$B$1&CHAR(10)&ScriptText!$D$1)","v":""},{"$f":"IF(OrigTable!E61=\"\",\"\",TEXT(OrigTable!E61,\"00\"))","v":""},{"$f":"IF(OrigTable!E61=\"\",\"\",ScriptText!$E$1&CHAR(10)&ScriptText!$C$1)","v":""},{"$f":"IF(OrigTable!F61=\"\",\"\",ScriptText!$B$1&CHAR(10)&ScriptText!$D$1)","v":""},{"$f":"IF(OrigTable!F61=\"\",\"\",TEXT(OrigTable!F61,\"00\"))","v":""},{"$f":"IF(OrigTable!F61=\"\",\"\",ScriptText!$E$1&CHAR(10)&ScriptText!$C$1)","v":""},{"$f":"IF(OrigTable!G61=\"\",\"\",ScriptText!$B$1&CHAR(10)&ScriptText!$D$1)","v":""},{"$f":"IF(OrigTable!G61=\"\",\"\",TEXT(OrigTable!G61,\"00\"))","v":""},{"$f":"IF(OrigTable!G61=\"\",\"\",ScriptText!$E$1&CHAR(10)&ScriptText!$C$1)","v":""},61]
["<tr>\n<td>30</td>\n</tr>\n\n<tr>\n<td>Notice to taxpayer of reduced refund due to payment of penalty for failure to pay estimated taxes.</td>\n</tr>\n<tr>\n<td>IMF Notices</td>\n</tr>",{"$f":"IF(OrigTable!A62=\"\",\"\",ScriptText!$B$1&CHAR(10)&ScriptText!$D$1)","v":"<tr>\n<td>"},{"$f":"IF(OrigTable!A62=\"\",\"\",TEXT(OrigTable!A62,\"00\"))","v":"30"},{"$f":"IF(OrigTable!A62=\"\",\"\",ScriptText!$E$1&CHAR(10)&ScriptText!$C$1)","v":"</td>\n</tr>"},{"$f":"IF(OrigTable!B62=\"\",\"\",ScriptText!$B$1&CHAR(10)&ScriptText!$D$1)","v":""},{"$f":"IF(OrigTable!B62=\"\",\"\",TEXT(OrigTable!B62,\"00\"))","v":""},{"$f":"IF(OrigTable!B62=\"\",\"\",ScriptText!$E$1&CHAR(10)&ScriptText!C57)","v":""},{"$f":"IF(OrigTable!C62=\"\",\"\",ScriptText!$B$1&CHAR(10)&ScriptText!$D$1)","v":"<tr>\n<td>"},{"$f":"IF(OrigTable!C62=\"\",\"\",IF(LEN(OrigTable!C62)>255,LEFT(OrigTable!C62,250)&\". . .\",OrigTable!C62))","v":"Notice to taxpayer of reduced refund due to payment of penalty for failure to pay estimated taxes."},{"$f":"IF(OrigTable!C62=\"\",\"\",ScriptText!$E$1&CHAR(10)&ScriptText!$C$1)","v":"</td>\n</tr>"},{"$f":"IF(OrigTable!D62=\"\",\"\",ScriptText!$B$1&CHAR(10)&ScriptText!$D$1)","v":"<tr>\n<td>"},{"$f":"IF(OrigTable!D62=\"\",\"\",TEXT(OrigTable!D62,\"00\"))","v":"IMF Notices"},{"$f":"IF(OrigTable!D62=\"\",\"\",ScriptText!$E$1&CHAR(10)&ScriptText!$C$1)","v":"</td>\n</tr>"},{"$f":"IF(OrigTable!E62=\"\",\"\",ScriptText!$B$1&CHAR(10)&ScriptText!$D$1)","v":""},{"$f":"IF(OrigTable!E62=\"\",\"\",TEXT(OrigTable!E62,\"00\"))","v":""},{"$f":"IF(OrigTable!E62=\"\",\"\",ScriptText!$E$1&CHAR(10)&ScriptText!$C$1)","v":""},{"$f":"IF(OrigTable!F62=\"\",\"\",ScriptText!$B$1&CHAR(10)&ScriptText!$D$1)","v":""},{"$f":"IF(OrigTable!F62=\"\",\"\",TEXT(OrigTable!F62,\"00\"))","v":""},{"$f":"IF(OrigTable!F62=\"\",\"\",ScriptText!$E$1&CHAR(10)&ScriptText!$C$1)","v":""},{"$f":"IF(OrigTable!G62=\"\",\"\",ScriptText!$B$1&CHAR(10)&ScriptText!$D$1)","v":""},{"$f":"IF(OrigTable!G62=\"\",\"\",TEXT(OrigTable!G62,\"00\"))","v":""},{"$f":"IF(OrigTable!G62=\"\",\"\",ScriptText!$E$1&CHAR(10)&ScriptText!$C$1)","v":""},62]
["<tr>\n<td>30A</td>\n</tr>\n\n<tr>\n<td>Notice to taxpayer of refund due to recalculation of penalty for failure to pay estimated taxes.</td>\n</tr>\n<tr>\n<td>IMF Notices</td>\n</tr>",{"$f":"IF(OrigTable!A63=\"\",\"\",ScriptText!$B$1&CHAR(10)&ScriptText!$D$1)","v":"<tr>\n<td>"},{"$f":"IF(OrigTable!A63=\"\",\"\",TEXT(OrigTable!A63,\"00\"))","v":"30A"},{"$f":"IF(OrigTable!A63=\"\",\"\",ScriptText!$E$1&CHAR(10)&ScriptText!$C$1)","v":"</td>\n</tr>"},{"$f":"IF(OrigTable!B63=\"\",\"\",ScriptText!$B$1&CHAR(10)&ScriptText!$D$1)","v":""},{"$f":"IF(OrigTable!B63=\"\",\"\",TEXT(OrigTable!B63,\"00\"))","v":""},{"$f":"IF(OrigTable!B63=\"\",\"\",ScriptText!$E$1&CHAR(10)&ScriptText!C58)","v":""},{"$f":"IF(OrigTable!C63=\"\",\"\",ScriptText!$B$1&CHAR(10)&ScriptText!$D$1)","v":"<tr>\n<td>"},{"$f":"IF(OrigTable!C63=\"\",\"\",IF(LEN(OrigTable!C63)>255,LEFT(OrigTable!C63,250)&\". . .\",OrigTable!C63))","v":"Notice to taxpayer of refund due to recalculation of penalty for failure to pay estimated taxes."},{"$f":"IF(OrigTable!C63=\"\",\"\",ScriptText!$E$1&CHAR(10)&ScriptText!$C$1)","v":"</td>\n</tr>"},{"$f":"IF(OrigTable!D63=\"\",\"\",ScriptText!$B$1&CHAR(10)&ScriptText!$D$1)","v":"<tr>\n<td>"},{"$f":"IF(OrigTable!D63=\"\",\"\",TEXT(OrigTable!D63,\"00\"))","v":"IMF Notices"},{"$f":"IF(OrigTable!D63=\"\",\"\",ScriptText!$E$1&CHAR(10)&ScriptText!$C$1)","v":"</td>\n</tr>"},{"$f":"IF(OrigTable!E63=\"\",\"\",ScriptText!$B$1&CHAR(10)&ScriptText!$D$1)","v":""},{"$f":"IF(OrigTable!E63=\"\",\"\",TEXT(OrigTable!E63,\"00\"))","v":""},{"$f":"IF(OrigTable!E63=\"\",\"\",ScriptText!$E$1&CHAR(10)&ScriptText!$C$1)","v":""},{"$f":"IF(OrigTable!F63=\"\",\"\",ScriptText!$B$1&CHAR(10)&ScriptText!$D$1)","v":""},{"$f":"IF(OrigTable!F63=\"\",\"\",TEXT(OrigTable!F63,\"00\"))","v":""},{"$f":"IF(OrigTable!F63=\"\",\"\",ScriptText!$E$1&CHAR(10)&ScriptText!$C$1)","v":""},{"$f":"IF(OrigTable!G63=\"\",\"\",ScriptText!$B$1&CHAR(10)&ScriptText!$D$1)","v":""},{"$f":"IF(OrigTable!G63=\"\",\"\",TEXT(OrigTable!G63,\"00\"))","v":""},{"$f":"IF(OrigTable!G63=\"\",\"\",ScriptText!$E$1&CHAR(10)&ScriptText!$C$1)","v":""},63]
["<tr>\n<td>32</td>\n</tr>\n\n<tr>\n<td>Notice to taxpayer of replacement refund check for one that expired as uncashed.</td>\n</tr>\n<tr>\n<td>IMF Notices</td>\n</tr>",{"$f":"IF(OrigTable!A64=\"\",\"\",ScriptText!$B$1&CHAR(10)&ScriptText!$D$1)","v":"<tr>\n<td>"},{"$f":"IF(OrigTable!A64=\"\",\"\",TEXT(OrigTable!A64,\"00\"))","v":"32"},{"$f":"IF(OrigTable!A64=\"\",\"\",ScriptText!$E$1&CHAR(10)&ScriptText!$C$1)","v":"</td>\n</tr>"},{"$f":"IF(OrigTable!B64=\"\",\"\",ScriptText!$B$1&CHAR(10)&ScriptText!$D$1)","v":""},{"$f":"IF(OrigTable!B64=\"\",\"\",TEXT(OrigTable!B64,\"00\"))","v":""},{"$f":"IF(OrigTable!B64=\"\",\"\",ScriptText!$E$1&CHAR(10)&ScriptText!C59)","v":""},{"$f":"IF(OrigTable!C64=\"\",\"\",ScriptText!$B$1&CHAR(10)&ScriptText!$D$1)","v":"<tr>\n<td>"},{"$f":"IF(OrigTable!C64=\"\",\"\",IF(LEN(OrigTable!C64)>255,LEFT(OrigTable!C64,250)&\". . .\",OrigTable!C64))","v":"Notice to taxpayer of replacement refund check for one that expired as uncashed."},{"$f":"IF(OrigTable!C64=\"\",\"\",ScriptText!$E$1&CHAR(10)&ScriptText!$C$1)","v":"</td>\n</tr>"},{"$f":"IF(OrigTable!D64=\"\",\"\",ScriptText!$B$1&CHAR(10)&ScriptText!$D$1)","v":"<tr>\n<td>"},{"$f":"IF(OrigTable!D64=\"\",\"\",TEXT(OrigTable!D64,\"00\"))","v":"IMF Notices"},{"$f":"IF(OrigTable!D64=\"\",\"\",ScriptText!$E$1&CHAR(10)&ScriptText!$C$1)","v":"</td>\n</tr>"},{"$f":"IF(OrigTable!E64=\"\",\"\",ScriptText!$B$1&CHAR(10)&ScriptText!$D$1)","v":""},{"$f":"IF(OrigTable!E64=\"\",\"\",TEXT(OrigTable!E64,\"00\"))","v":""},{"$f":"IF(OrigTable!E64=\"\",\"\",ScriptText!$E$1&CHAR(10)&ScriptText!$C$1)","v":""},{"$f":"IF(OrigTable!F64=\"\",\"\",ScriptText!$B$1&CHAR(10)&ScriptText!$D$1)","v":""},{"$f":"IF(OrigTable!F64=\"\",\"\",TEXT(OrigTable!F64,\"00\"))","v":""},{"$f":"IF(OrigTable!F64=\"\",\"\",ScriptText!$E$1&CHAR(10)&ScriptText!$C$1)","v":""},{"$f":"IF(OrigTable!G64=\"\",\"\",ScriptText!$B$1&CHAR(10)&ScriptText!$D$1)","v":""},{"$f":"IF(OrigTable!G64=\"\",\"\",TEXT(OrigTable!G64,\"00\"))","v":""},{"$f":"IF(OrigTable!G64=\"\",\"\",ScriptText!$E$1&CHAR(10)&ScriptText!$C$1)","v":""},64]
["<tr>\n<td>32A</td>\n</tr>\n\n<tr>\n<td>Notice to taxpayer that a replacement refund check will not be issued unless the taxpayer contacts us.</td>\n</tr>\n<tr>\n<td>IMF Notices</td>\n</tr>",{"$f":"IF(OrigTable!A65=\"\",\"\",ScriptText!$B$1&CHAR(10)&ScriptText!$D$1)","v":"<tr>\n<td>"},{"$f":"IF(OrigTable!A65=\"\",\"\",TEXT(OrigTable!A65,\"00\"))","v":"32A"},{"$f":"IF(OrigTable!A65=\"\",\"\",ScriptText!$E$1&CHAR(10)&ScriptText!$C$1)","v":"</td>\n</tr>"},{"$f":"IF(OrigTable!B65=\"\",\"\",ScriptText!$B$1&CHAR(10)&ScriptText!$D$1)","v":""},{"$f":"IF(OrigTable!B65=\"\",\"\",TEXT(OrigTable!B65,\"00\"))","v":""},{"$f":"IF(OrigTable!B65=\"\",\"\",ScriptText!$E$1&CHAR(10)&ScriptText!C60)","v":""},{"$f":"IF(OrigTable!C65=\"\",\"\",ScriptText!$B$1&CHAR(10)&ScriptText!$D$1)","v":"<tr>\n<td>"},{"$f":"IF(OrigTable!C65=\"\",\"\",IF(LEN(OrigTable!C65)>255,LEFT(OrigTable!C65,250)&\". . .\",OrigTable!C65))","v":"Notice to taxpayer that a replacement refund check will not be issued unless the taxpayer contacts us."},{"$f":"IF(OrigTable!C65=\"\",\"\",ScriptText!$E$1&CHAR(10)&ScriptText!$C$1)","v":"</td>\n</tr>"},{"$f":"IF(OrigTable!D65=\"\",\"\",ScriptText!$B$1&CHAR(10)&ScriptText!$D$1)","v":"<tr>\n<td>"},{"$f":"IF(OrigTable!D65=\"\",\"\",TEXT(OrigTable!D65,\"00\"))","v":"IMF Notices"},{"$f":"IF(OrigTable!D65=\"\",\"\",ScriptText!$E$1&CHAR(10)&ScriptText!$C$1)","v":"</td>\n</tr>"},{"$f":"IF(OrigTable!E65=\"\",\"\",ScriptText!$B$1&CHAR(10)&ScriptText!$D$1)","v":""},{"$f":"IF(OrigTable!E65=\"\",\"\",TEXT(OrigTable!E65,\"00\"))","v":""},{"$f":"IF(OrigTable!E65=\"\",\"\",ScriptText!$E$1&CHAR(10)&ScriptText!$C$1)","v":""},{"$f":"IF(OrigTable!F65=\"\",\"\",ScriptText!$B$1&CHAR(10)&ScriptText!$D$1)","v":""},{"$f":"IF(OrigTable!F65=\"\",\"\",TEXT(OrigTable!F65,\"00\"))","v":""},{"$f":"IF(OrigTable!F65=\"\",\"\",ScriptText!$E$1&CHAR(10)&ScriptText!$C$1)","v":""},{"$f":"IF(OrigTable!G65=\"\",\"\",ScriptText!$B$1&CHAR(10)&ScriptText!$D$1)","v":""},{"$f":"IF(OrigTable!G65=\"\",\"\",TEXT(OrigTable!G65,\"00\"))","v":""},{"$f":"IF(OrigTable!G65=\"\",\"\",ScriptText!$E$1&CHAR(10)&ScriptText!$C$1)","v":""},65]
["<tr>\n<td>35</td>\n</tr>\n\n<tr>\n<td>Campus notice only:  Duplicate Filing (Transfer-In) Doc Code 51.</td>\n</tr>\n<tr>\n<td>IMF Notices</td>\n</tr>",{"$f":"IF(OrigTable!A66=\"\",\"\",ScriptText!$B$1&CHAR(10)&ScriptText!$D$1)","v":"<tr>\n<td>"},{"$f":"IF(OrigTable!A66=\"\",\"\",TEXT(OrigTable!A66,\"00\"))","v":"35"},{"$f":"IF(OrigTable!A66=\"\",\"\",ScriptText!$E$1&CHAR(10)&ScriptText!$C$1)","v":"</td>\n</tr>"},{"$f":"IF(OrigTable!B66=\"\",\"\",ScriptText!$B$1&CHAR(10)&ScriptText!$D$1)","v":""},{"$f":"IF(OrigTable!B66=\"\",\"\",TEXT(OrigTable!B66,\"00\"))","v":""},{"$f":"IF(OrigTable!B66=\"\",\"\",ScriptText!$E$1&CHAR(10)&ScriptText!C61)","v":""},{"$f":"IF(OrigTable!C66=\"\",\"\",ScriptText!$B$1&CHAR(10)&ScriptText!$D$1)","v":"<tr>\n<td>"},{"$f":"IF(OrigTable!C66=\"\",\"\",IF(LEN(OrigTable!C66)>255,LEFT(OrigTable!C66,250)&\". . .\",OrigTable!C66))","v":"Campus notice only:  Duplicate Filing (Transfer-In) Doc Code 51."},{"$f":"IF(OrigTable!C66=\"\",\"\",ScriptText!$E$1&CHAR(10)&ScriptText!$C$1)","v":"</td>\n</tr>"},{"$f":"IF(OrigTable!D66=\"\",\"\",ScriptText!$B$1&CHAR(10)&ScriptText!$D$1)","v":"<tr>\n<td>"},{"$f":"IF(OrigTable!D66=\"\",\"\",TEXT(OrigTable!D66,\"00\"))","v":"IMF Notices"},{"$f":"IF(OrigTable!D66=\"\",\"\",ScriptText!$E$1&CHAR(10)&ScriptText!$C$1)","v":"</td>\n</tr>"},{"$f":"IF(OrigTable!E66=\"\",\"\",ScriptText!$B$1&CHAR(10)&ScriptText!$D$1)","v":""},{"$f":"IF(OrigTable!E66=\"\",\"\",TEXT(OrigTable!E66,\"00\"))","v":""},{"$f":"IF(OrigTable!E66=\"\",\"\",ScriptText!$E$1&CHAR(10)&ScriptText!$C$1)","v":""},{"$f":"IF(OrigTable!F66=\"\",\"\",ScriptText!$B$1&CHAR(10)&ScriptText!$D$1)","v":""},{"$f":"IF(OrigTable!F66=\"\",\"\",TEXT(OrigTable!F66,\"00\"))","v":""},{"$f":"IF(OrigTable!F66=\"\",\"\",ScriptText!$E$1&CHAR(10)&ScriptText!$C$1)","v":""},{"$f":"IF(OrigTable!G66=\"\",\"\",ScriptText!$B$1&CHAR(10)&ScriptText!$D$1)","v":""},{"$f":"IF(OrigTable!G66=\"\",\"\",TEXT(OrigTable!G66,\"00\"))","v":""},{"$f":"IF(OrigTable!G66=\"\",\"\",ScriptText!$E$1&CHAR(10)&ScriptText!$C$1)","v":""},66]
["<tr>\n<td>35A</td>\n</tr>\n\n<tr>\n<td>Campus notice only: Requision Form for First Return.</td>\n</tr>\n<tr>\n<td>IMF Notices</td>\n</tr>",{"$f":"IF(OrigTable!A67=\"\",\"\",ScriptText!$B$1&CHAR(10)&ScriptText!$D$1)","v":"<tr>\n<td>"},{"$f":"IF(OrigTable!A67=\"\",\"\",TEXT(OrigTable!A67,\"00\"))","v":"35A"},{"$f":"IF(OrigTable!A67=\"\",\"\",ScriptText!$E$1&CHAR(10)&ScriptText!$C$1)","v":"</td>\n</tr>"},{"$f":"IF(OrigTable!B67=\"\",\"\",ScriptText!$B$1&CHAR(10)&ScriptText!$D$1)","v":""},{"$f":"IF(OrigTable!B67=\"\",\"\",TEXT(OrigTable!B67,\"00\"))","v":""},{"$f":"IF(OrigTable!B67=\"\",\"\",ScriptText!$E$1&CHAR(10)&ScriptText!C62)","v":""},{"$f":"IF(OrigTable!C67=\"\",\"\",ScriptText!$B$1&CHAR(10)&ScriptText!$D$1)","v":"<tr>\n<td>"},{"$f":"IF(OrigTable!C67=\"\",\"\",IF(LEN(OrigTable!C67)>255,LEFT(OrigTable!C67,250)&\". . .\",OrigTable!C67))","v":"Campus notice only: Requision Form for First Return."},{"$f":"IF(OrigTable!C67=\"\",\"\",ScriptText!$E$1&CHAR(10)&ScriptText!$C$1)","v":"</td>\n</tr>"},{"$f":"IF(OrigTable!D67=\"\",\"\",ScriptText!$B$1&CHAR(10)&ScriptText!$D$1)","v":"<tr>\n<td>"},{"$f":"IF(OrigTable!D67=\"\",\"\",TEXT(OrigTable!D67,\"00\"))","v":"IMF Notices"},{"$f":"IF(OrigTable!D67=\"\",\"\",ScriptText!$E$1&CHAR(10)&ScriptText!$C$1)","v":"</td>\n</tr>"},{"$f":"IF(OrigTable!E67=\"\",\"\",ScriptText!$B$1&CHAR(10)&ScriptText!$D$1)","v":""},{"$f":"IF(OrigTable!E67=\"\",\"\",TEXT(OrigTable!E67,\"00\"))","v":""},{"$f":"IF(OrigTable!E67=\"\",\"\",ScriptText!$E$1&CHAR(10)&ScriptText!$C$1)","v":""},{"$f":"IF(OrigTable!F67=\"\",\"\",ScriptText!$B$1&CHAR(10)&ScriptText!$D$1)","v":""},{"$f":"IF(OrigTable!F67=\"\",\"\",TEXT(OrigTable!F67,\"00\"))","v":""},{"$f":"IF(OrigTable!F67=\"\",\"\",ScriptText!$E$1&CHAR(10)&ScriptText!$C$1)","v":""},{"$f":"IF(OrigTable!G67=\"\",\"\",ScriptText!$B$1&CHAR(10)&ScriptText!$D$1)","v":""},{"$f":"IF(OrigTable!G67=\"\",\"\",TEXT(OrigTable!G67,\"00\"))","v":""},{"$f":"IF(OrigTable!G67=\"\",\"\",ScriptText!$E$1&CHAR(10)&ScriptText!$C$1)","v":""},67]
["<tr>\n<td>36</td>\n</tr>\n\n<tr>\n<td>Campus notice only: Issued each time a return, or a 290 transaction with a DLN block number between 200 and 299 (Form 1040X) posts to a module with a return with transaction code 150, 976 or 977 already\nposted.</td>\n</tr>\n<tr>\n<td>IMF Notices</td>\n</tr>",{"$f":"IF(OrigTable!A68=\"\",\"\",ScriptText!$B$1&CHAR(10)&ScriptText!$D$1)","v":"<tr>\n<td>"},{"$f":"IF(OrigTable!A68=\"\",\"\",TEXT(OrigTable!A68,\"00\"))","v":"36"},{"$f":"IF(OrigTable!A68=\"\",\"\",ScriptText!$E$1&CHAR(10)&ScriptText!$C$1)","v":"</td>\n</tr>"},{"$f":"IF(OrigTable!B68=\"\",\"\",ScriptText!$B$1&CHAR(10)&ScriptText!$D$1)","v":""},{"$f":"IF(OrigTable!B68=\"\",\"\",TEXT(OrigTable!B68,\"00\"))","v":""},{"$f":"IF(OrigTable!B68=\"\",\"\",ScriptText!$E$1&CHAR(10)&ScriptText!C63)","v":""},{"$f":"IF(OrigTable!C68=\"\",\"\",ScriptText!$B$1&CHAR(10)&ScriptText!$D$1)","v":"<tr>\n<td>"},{"$f":"IF(OrigTable!C68=\"\",\"\",IF(LEN(OrigTable!C68)>255,LEFT(OrigTable!C68,250)&\". . .\",OrigTable!C68))","v":"Campus notice only: Issued each time a return, or a 290 transaction with a DLN block number between 200 and 299 (Form 1040X) posts to a module with a return with transaction code 150, 976 or 977 already\nposted."},{"$f":"IF(OrigTable!C68=\"\",\"\",ScriptText!$E$1&CHAR(10)&ScriptText!$C$1)","v":"</td>\n</tr>"},{"$f":"IF(OrigTable!D68=\"\",\"\",ScriptText!$B$1&CHAR(10)&ScriptText!$D$1)","v":"<tr>\n<td>"},{"$f":"IF(OrigTable!D68=\"\",\"\",TEXT(OrigTable!D68,\"00\"))","v":"IMF Notices"},{"$f":"IF(OrigTable!D68=\"\",\"\",ScriptText!$E$1&CHAR(10)&ScriptText!$C$1)","v":"</td>\n</tr>"},{"$f":"IF(OrigTable!E68=\"\",\"\",ScriptText!$B$1&CHAR(10)&ScriptText!$D$1)","v":""},{"$f":"IF(OrigTable!E68=\"\",\"\",TEXT(OrigTable!E68,\"00\"))","v":""},{"$f":"IF(OrigTable!E68=\"\",\"\",ScriptText!$E$1&CHAR(10)&ScriptText!$C$1)","v":""},{"$f":"IF(OrigTable!F68=\"\",\"\",ScriptText!$B$1&CHAR(10)&ScriptText!$D$1)","v":""},{"$f":"IF(OrigTable!F68=\"\",\"\",TEXT(OrigTable!F68,\"00\"))","v":""},{"$f":"IF(OrigTable!F68=\"\",\"\",ScriptText!$E$1&CHAR(10)&ScriptText!$C$1)","v":""},{"$f":"IF(OrigTable!G68=\"\",\"\",ScriptText!$B$1&CHAR(10)&ScriptText!$D$1)","v":""},{"$f":"IF(OrigTable!G68=\"\",\"\",TEXT(OrigTable!G68,\"00\"))","v":""},{"$f":"IF(OrigTable!G68=\"\",\"\",ScriptText!$E$1&CHAR(10)&ScriptText!$C$1)","v":""},68]
["<tr>\n<td>36B</td>\n</tr>\n\n<tr>\n<td>Campus notice only: Requision form for first return.</td>\n</tr>\n<tr>\n<td>IMF Notices</td>\n</tr>",{"$f":"IF(OrigTable!A69=\"\",\"\",ScriptText!$B$1&CHAR(10)&ScriptText!$D$1)","v":"<tr>\n<td>"},{"$f":"IF(OrigTable!A69=\"\",\"\",TEXT(OrigTable!A69,\"00\"))","v":"36B"},{"$f":"IF(OrigTable!A69=\"\",\"\",ScriptText!$E$1&CHAR(10)&ScriptText!$C$1)","v":"</td>\n</tr>"},{"$f":"IF(OrigTable!B69=\"\",\"\",ScriptText!$B$1&CHAR(10)&ScriptText!$D$1)","v":""},{"$f":"IF(OrigTable!B69=\"\",\"\",TEXT(OrigTable!B69,\"00\"))","v":""},{"$f":"IF(OrigTable!B69=\"\",\"\",ScriptText!$E$1&CHAR(10)&ScriptText!C64)","v":""},{"$f":"IF(OrigTable!C69=\"\",\"\",ScriptText!$B$1&CHAR(10)&ScriptText!$D$1)","v":"<tr>\n<td>"},{"$f":"IF(OrigTable!C69=\"\",\"\",IF(LEN(OrigTable!C69)>255,LEFT(OrigTable!C69,250)&\". . .\",OrigTable!C69))","v":"Campus notice only: Requision form for first return."},{"$f":"IF(OrigTable!C69=\"\",\"\",ScriptText!$E$1&CHAR(10)&ScriptText!$C$1)","v":"</td>\n</tr>"},{"$f":"IF(OrigTable!D69=\"\",\"\",ScriptText!$B$1&CHAR(10)&ScriptText!$D$1)","v":"<tr>\n<td>"},{"$f":"IF(OrigTable!D69=\"\",\"\",TEXT(OrigTable!D69,\"00\"))","v":"IMF Notices"},{"$f":"IF(OrigTable!D69=\"\",\"\",ScriptText!$E$1&CHAR(10)&ScriptText!$C$1)","v":"</td>\n</tr>"},{"$f":"IF(OrigTable!E69=\"\",\"\",ScriptText!$B$1&CHAR(10)&ScriptText!$D$1)","v":""},{"$f":"IF(OrigTable!E69=\"\",\"\",TEXT(OrigTable!E69,\"00\"))","v":""},{"$f":"IF(OrigTable!E69=\"\",\"\",ScriptText!$E$1&CHAR(10)&ScriptText!$C$1)","v":""},{"$f":"IF(OrigTable!F69=\"\",\"\",ScriptText!$B$1&CHAR(10)&ScriptText!$D$1)","v":""},{"$f":"IF(OrigTable!F69=\"\",\"\",TEXT(OrigTable!F69,\"00\"))","v":""},{"$f":"IF(OrigTable!F69=\"\",\"\",ScriptText!$E$1&CHAR(10)&ScriptText!$C$1)","v":""},{"$f":"IF(OrigTable!G69=\"\",\"\",ScriptText!$B$1&CHAR(10)&ScriptText!$D$1)","v":""},{"$f":"IF(OrigTable!G69=\"\",\"\",TEXT(OrigTable!G69,\"00\"))","v":""},{"$f":"IF(OrigTable!G69=\"\",\"\",ScriptText!$E$1&CHAR(10)&ScriptText!$C$1)","v":""},69]
["<tr>\n<td>36C</td>\n</tr>\n\n<tr>\n<td>Campus notice only: Routing of substitute for return doc to SFR unit.</td>\n</tr>\n<tr>\n<td>IMF Notices</td>\n</tr>",{"$f":"IF(OrigTable!A70=\"\",\"\",ScriptText!$B$1&CHAR(10)&ScriptText!$D$1)","v":"<tr>\n<td>"},{"$f":"IF(OrigTable!A70=\"\",\"\",TEXT(OrigTable!A70,\"00\"))","v":"36C"},{"$f":"IF(OrigTable!A70=\"\",\"\",ScriptText!$E$1&CHAR(10)&ScriptText!$C$1)","v":"</td>\n</tr>"},{"$f":"IF(OrigTable!B70=\"\",\"\",ScriptText!$B$1&CHAR(10)&ScriptText!$D$1)","v":""},{"$f":"IF(OrigTable!B70=\"\",\"\",TEXT(OrigTable!B70,\"00\"))","v":""},{"$f":"IF(OrigTable!B70=\"\",\"\",ScriptText!$E$1&CHAR(10)&ScriptText!C65)","v":""},{"$f":"IF(OrigTable!C70=\"\",\"\",ScriptText!$B$1&CHAR(10)&ScriptText!$D$1)","v":"<tr>\n<td>"},{"$f":"IF(OrigTable!C70=\"\",\"\",IF(LEN(OrigTable!C70)>255,LEFT(OrigTable!C70,250)&\". . .\",OrigTable!C70))","v":"Campus notice only: Routing of substitute for return doc to SFR unit."},{"$f":"IF(OrigTable!C70=\"\",\"\",ScriptText!$E$1&CHAR(10)&ScriptText!$C$1)","v":"</td>\n</tr>"},{"$f":"IF(OrigTable!D70=\"\",\"\",ScriptText!$B$1&CHAR(10)&ScriptText!$D$1)","v":"<tr>\n<td>"},{"$f":"IF(OrigTable!D70=\"\",\"\",TEXT(OrigTable!D70,\"00\"))","v":"IMF Notices"},{"$f":"IF(OrigTable!D70=\"\",\"\",ScriptText!$E$1&CHAR(10)&ScriptText!$C$1)","v":"</td>\n</tr>"},{"$f":"IF(OrigTable!E70=\"\",\"\",ScriptText!$B$1&CHAR(10)&ScriptText!$D$1)","v":""},{"$f":"IF(OrigTable!E70=\"\",\"\",TEXT(OrigTable!E70,\"00\"))","v":""},{"$f":"IF(OrigTable!E70=\"\",\"\",ScriptText!$E$1&CHAR(10)&ScriptText!$C$1)","v":""},{"$f":"IF(OrigTable!F70=\"\",\"\",ScriptText!$B$1&CHAR(10)&ScriptText!$D$1)","v":""},{"$f":"IF(OrigTable!F70=\"\",\"\",TEXT(OrigTable!F70,\"00\"))","v":""},{"$f":"IF(OrigTable!F70=\"\",\"\",ScriptText!$E$1&CHAR(10)&ScriptText!$C$1)","v":""},{"$f":"IF(OrigTable!G70=\"\",\"\",ScriptText!$B$1&CHAR(10)&ScriptText!$D$1)","v":""},{"$f":"IF(OrigTable!G70=\"\",\"\",TEXT(OrigTable!G70,\"00\"))","v":""},{"$f":"IF(OrigTable!G70=\"\",\"\",ScriptText!$E$1&CHAR(10)&ScriptText!$C$1)","v":""},{"$f":"IF(LEN(A70)>3,ROW(),0)","v":70}]
["<tr>\n<td>36D</td>\n</tr>\n\n<tr>\n<td>Campus notice only: This notice is generated whenever TC 150, doc code 05, 07, 09, or 11, posts with blocking 920-929 indicating that Form 8379, Injured Spouse Claim and Allocation, was filed. Original return and claim are sent to IMF Adjustments Bra. . .</td>\n</tr>\n<tr>\n<td>IMF Notices</td>\n</tr>",{"$f":"IF(OrigTable!A71=\"\",\"\",ScriptText!$B$1&CHAR(10)&ScriptText!$D$1)","v":"<tr>\n<td>"},{"$f":"IF(OrigTable!A71=\"\",\"\",TEXT(OrigTable!A71,\"00\"))","v":"36D"},{"$f":"IF(OrigTable!A71=\"\",\"\",ScriptText!$E$1&CHAR(10)&ScriptText!$C$1)","v":"</td>\n</tr>"},{"$f":"IF(OrigTable!B71=\"\",\"\",ScriptText!$B$1&CHAR(10)&ScriptText!$D$1)","v":""},{"$f":"IF(OrigTable!B71=\"\",\"\",TEXT(OrigTable!B71,\"00\"))","v":""},{"$f":"IF(OrigTable!B71=\"\",\"\",ScriptText!$E$1&CHAR(10)&ScriptText!C66)","v":""},{"$f":"IF(OrigTable!C71=\"\",\"\",ScriptText!$B$1&CHAR(10)&ScriptText!$D$1)","v":"<tr>\n<td>"},{"$f":"IF(OrigTable!C71=\"\",\"\",IF(LEN(OrigTable!C71)>255,LEFT(OrigTable!C71,250)&\". . .\",OrigTable!C71))","v":"Campus notice only: This notice is generated whenever TC 150, doc code 05, 07, 09, or 11, posts with blocking 920-929 indicating that Form 8379, Injured Spouse Claim and Allocation, was filed. Original return and claim are sent to IMF Adjustments Bra. . ."},{"$f":"IF(OrigTable!C71=\"\",\"\",ScriptText!$E$1&CHAR(10)&ScriptText!$C$1)","v":"</td>\n</tr>"},{"$f":"IF(OrigTable!D71=\"\",\"\",ScriptText!$B$1&CHAR(10)&ScriptText!$D$1)","v":"<tr>\n<td>"},{"$f":"IF(OrigTable!D71=\"\",\"\",TEXT(OrigTable!D71,\"00\"))","v":"IMF Notices"},{"$f":"IF(OrigTable!D71=\"\",\"\",ScriptText!$E$1&CHAR(10)&ScriptText!$C$1)","v":"</td>\n</tr>"},{"$f":"IF(OrigTable!E71=\"\",\"\",ScriptText!$B$1&CHAR(10)&ScriptText!$D$1)","v":""},{"$f":"IF(OrigTable!E71=\"\",\"\",TEXT(OrigTable!E71,\"00\"))","v":""},{"$f":"IF(OrigTable!E71=\"\",\"\",ScriptText!$E$1&CHAR(10)&ScriptText!$C$1)","v":""},{"$f":"IF(OrigTable!F71=\"\",\"\",ScriptText!$B$1&CHAR(10)&ScriptText!$D$1)","v":""},{"$f":"IF(OrigTable!F71=\"\",\"\",TEXT(OrigTable!F71,\"00\"))","v":""},{"$f":"IF(OrigTable!F71=\"\",\"\",ScriptText!$E$1&CHAR(10)&ScriptText!$C$1)","v":""},{"$f":"IF(OrigTable!G71=\"\",\"\",ScriptText!$B$1&CHAR(10)&ScriptText!$D$1)","v":""},{"$f":"IF(OrigTable!G71=\"\",\"\",TEXT(OrigTable!G71,\"00\"))","v":""},{"$f":"IF(OrigTable!G71=\"\",\"\",ScriptText!$E$1&CHAR(10)&ScriptText!$C$1)","v":""},71]
["<tr>\n<td>36S</td>\n</tr>\n\n<tr>\n<td>Campus notice only: Mixed entity or potential scrambled SSN.</td>\n</tr>\n<tr>\n<td>IMF Notices</td>\n</tr>",{"$f":"IF(OrigTable!A72=\"\",\"\",ScriptText!$B$1&CHAR(10)&ScriptText!$D$1)","v":"<tr>\n<td>"},{"$f":"IF(OrigTable!A72=\"\",\"\",TEXT(OrigTable!A72,\"00\"))","v":"36S"},{"$f":"IF(OrigTable!A72=\"\",\"\",ScriptText!$E$1&CHAR(10)&ScriptText!$C$1)","v":"</td>\n</tr>"},{"$f":"IF(OrigTable!B72=\"\",\"\",ScriptText!$B$1&CHAR(10)&ScriptText!$D$1)","v":""},{"$f":"IF(OrigTable!B72=\"\",\"\",TEXT(OrigTable!B72,\"00\"))","v":""},{"$f":"IF(OrigTable!B72=\"\",\"\",ScriptText!$E$1&CHAR(10)&ScriptText!C67)","v":""},{"$f":"IF(OrigTable!C72=\"\",\"\",ScriptText!$B$1&CHAR(10)&ScriptText!$D$1)","v":"<tr>\n<td>"},{"$f":"IF(OrigTable!C72=\"\",\"\",IF(LEN(OrigTable!C72)>255,LEFT(OrigTable!C72,250)&\". . .\",OrigTable!C72))","v":"Campus notice only: Mixed entity or potential scrambled SSN."},{"$f":"IF(OrigTable!C72=\"\",\"\",ScriptText!$E$1&CHAR(10)&ScriptText!$C$1)","v":"</td>\n</tr>"},{"$f":"IF(OrigTable!D72=\"\",\"\",ScriptText!$B$1&CHAR(10)&ScriptText!$D$1)","v":"<tr>\n<td>"},{"$f":"IF(OrigTable!D72=\"\",\"\",TEXT(OrigTable!D72,\"00\"))","v":"IMF Notices"},{"$f":"IF(OrigTable!D72=\"\",\"\",ScriptText!$E$1&CHAR(10)&ScriptText!$C$1)","v":"</td>\n</tr>"},{"$f":"IF(OrigTable!E72=\"\",\"\",ScriptText!$B$1&CHAR(10)&ScriptText!$D$1)","v":""},{"$f":"IF(OrigTable!E72=\"\",\"\",TEXT(OrigTable!E72,\"00\"))","v":""},{"$f":"IF(OrigTable!E72=\"\",\"\",ScriptText!$E$1&CHAR(10)&ScriptText!$C$1)","v":""},{"$f":"IF(OrigTable!F72=\"\",\"\",ScriptText!$B$1&CHAR(10)&ScriptText!$D$1)","v":""},{"$f":"IF(OrigTable!F72=\"\",\"\",TEXT(OrigTable!F72,\"00\"))","v":""},{"$f":"IF(OrigTable!F72=\"\",\"\",ScriptText!$E$1&CHAR(10)&ScriptText!$C$1)","v":""},{"$f":"IF(OrigTable!G72=\"\",\"\",ScriptText!$B$1&CHAR(10)&ScriptText!$D$1)","v":""},{"$f":"IF(OrigTable!G72=\"\",\"\",TEXT(OrigTable!G72,\"00\"))","v":""},{"$f":"IF(OrigTable!G72=\"\",\"\",ScriptText!$E$1&CHAR(10)&ScriptText!$C$1)","v":""},72]
[{"$f":"_xlfn.TEXTJOIN(\"\",TRUE,B73:D73)&CHAR(10)&_xlfn.TEXTJOIN(\"\",TRUE,E73:G73)&CHAR(10)&_xlfn.TEXTJOIN(\"\",TRUE,H73:J73)&CHAR(10)&_xlfn.TEXTJOIN(\"\",TRUE,K73:M73)&_xlfn.TEXTJOIN(\"\",TRUE,N73:P73)&_xlfn.TEXTJOIN(\"\",TRUE,Q73:S73)&_xlfn.TEXTJOIN(\"\",TRUE,T73:V73)","v":"<tr>\n<td>36I</td>\n</tr>\n\n<tr>\n<td>Duplicate Filing Notice (IRAF)</td>\n</tr>\n<tr>\n<td>IMF Notices</td>\n</tr>"},{"$f":"IF(OrigTable!A73=\"\",\"\",ScriptText!$B$1&CHAR(10)&ScriptText!$D$1)","v":"<tr>\n<td>"},{"$f":"IF(OrigTable!A73=\"\",\"\",TEXT(OrigTable!A73,\"00\"))","v":"36I"},{"$f":"IF(OrigTable!A73=\"\",\"\",ScriptText!$E$1&CHAR(10)&ScriptText!$C$1)","v":"</td>\n</tr>"},{"$f":"IF(OrigTable!B73=\"\",\"\",ScriptText!$B$1&CHAR(10)&ScriptText!$D$1)","v":""},{"$f":"IF(OrigTable!B73=\"\",\"\",TEXT(OrigTable!B73,\"00\"))","v":""},{"$f":"IF(OrigTable!B73=\"\",\"\",ScriptText!$E$1&CHAR(10)&ScriptText!C68)","v":""},{"$f":"IF(OrigTable!C73=\"\",\"\",ScriptText!$B$1&CHAR(10)&ScriptText!$D$1)","v":"<tr>\n<td>"},{"$f":"IF(OrigTable!C73=\"\",\"\",IF(LEN(OrigTable!C73)>255,LEFT(OrigTable!C73,250)&\". . .\",OrigTable!C73))","v":"Duplicate Filing Notice (IRAF)"},{"$f":"IF(OrigTable!C73=\"\",\"\",ScriptText!$E$1&CHAR(10)&ScriptText!$C$1)","v":"</td>\n</tr>"},{"$f":"IF(OrigTable!D73=\"\",\"\",ScriptText!$B$1&CHAR(10)&ScriptText!$D$1)","v":"<tr>\n<td>"},{"$f":"IF(OrigTable!D73=\"\",\"\",TEXT(OrigTable!D73,\"00\"))","v":"IMF Notices"},{"$f":"IF(OrigTable!D73=\"\",\"\",ScriptText!$E$1&CHAR(10)&ScriptText!$C$1)","v":"</td>\n</tr>"},{"$f":"IF(OrigTable!E73=\"\",\"\",ScriptText!$B$1&CHAR(10)&ScriptText!$D$1)","v":""},{"$f":"IF(OrigTable!E73=\"\",\"\",TEXT(OrigTable!E73,\"00\"))","v":""},{"$f":"IF(OrigTable!E73=\"\",\"\",ScriptText!$E$1&CHAR(10)&ScriptText!$C$1)","v":""},{"$f":"IF(OrigTable!F73=\"\",\"\",ScriptText!$B$1&CHAR(10)&ScriptText!$D$1)","v":""},{"$f":"IF(OrigTable!F73=\"\",\"\",TEXT(OrigTable!F73,\"00\"))","v":""},{"$f":"IF(OrigTable!F73=\"\",\"\",ScriptText!$E$1&CHAR(10)&ScriptText!$C$1)","v":""},{"$f":"IF(OrigTable!G73=\"\",\"\",ScriptText!$B$1&CHAR(10)&ScriptText!$D$1)","v":""},{"$f":"IF(OrigTable!G73=\"\",\"\",TEXT(OrigTable!G73,\"00\"))","v":""},{"$f":"IF(OrigTable!G73=\"\",\"\",ScriptText!$E$1&CHAR(10)&ScriptText!$C$1)","v":""},73]
["<tr>\n<td>36Z</td>\n</tr>\n\n<tr>\n<td>Duplicate Filing Condition - Automated Substitute for Return</td>\n</tr>\n<tr>\n<td>IMF Notices</td>\n</tr>",{"$f":"IF(OrigTable!A74=\"\",\"\",ScriptText!$B$1&CHAR(10)&ScriptText!$D$1)","v":"<tr>\n<td>"},{"$f":"IF(OrigTable!A74=\"\",\"\",TEXT(OrigTable!A74,\"00\"))","v":"36Z"},{"$f":"IF(OrigTable!A74=\"\",\"\",ScriptText!$E$1&CHAR(10)&ScriptText!$C$1)","v":"</td>\n</tr>"},{"$f":"IF(OrigTable!B74=\"\",\"\",ScriptText!$B$1&CHAR(10)&ScriptText!$D$1)","v":""},{"$f":"IF(OrigTable!B74=\"\",\"\",TEXT(OrigTable!B74,\"00\"))","v":""},{"$f":"IF(OrigTable!B74=\"\",\"\",ScriptText!$E$1&CHAR(10)&ScriptText!C69)","v":""},{"$f":"IF(OrigTable!C74=\"\",\"\",ScriptText!$B$1&CHAR(10)&ScriptText!$D$1)","v":"<tr>\n<td>"},{"$f":"IF(OrigTable!C74=\"\",\"\",IF(LEN(OrigTable!C74)>255,LEFT(OrigTable!C74,250)&\". . .\",OrigTable!C74))","v":"Duplicate Filing Condition - Automated Substitute for Return"},{"$f":"IF(OrigTable!C74=\"\",\"\",ScriptText!$E$1&CHAR(10)&ScriptText!$C$1)","v":"</td>\n</tr>"},{"$f":"IF(OrigTable!D74=\"\",\"\",ScriptText!$B$1&CHAR(10)&ScriptText!$D$1)","v":"<tr>\n<td>"},{"$f":"IF(OrigTable!D74=\"\",\"\",TEXT(OrigTable!D74,\"00\"))","v":"IMF Notices"},{"$f":"IF(OrigTable!D74=\"\",\"\",ScriptText!$E$1&CHAR(10)&ScriptText!$C$1)","v":"</td>\n</tr>"},{"$f":"IF(OrigTable!E74=\"\",\"\",ScriptText!$B$1&CHAR(10)&ScriptText!$D$1)","v":""},{"$f":"IF(OrigTable!E74=\"\",\"\",TEXT(OrigTable!E74,\"00\"))","v":""},{"$f":"IF(OrigTable!E74=\"\",\"\",ScriptText!$E$1&CHAR(10)&ScriptText!$C$1)","v":""},{"$f":"IF(OrigTable!F74=\"\",\"\",ScriptText!$B$1&CHAR(10)&ScriptText!$D$1)","v":""},{"$f":"IF(OrigTable!F74=\"\",\"\",TEXT(OrigTable!F74,\"00\"))","v":""},{"$f":"IF(OrigTable!F74=\"\",\"\",ScriptText!$E$1&CHAR(10)&ScriptText!$C$1)","v":""},{"$f":"IF(OrigTable!G74=\"\",\"\",ScriptText!$B$1&CHAR(10)&ScriptText!$D$1)","v":""},{"$f":"IF(OrigTable!G74=\"\",\"\",TEXT(OrigTable!G74,\"00\"))","v":""},{"$f":"IF(OrigTable!G74=\"\",\"\",ScriptText!$E$1&CHAR(10)&ScriptText!$C$1)","v":""},74]
["<tr>\n<td>37</td>\n</tr>\n\n<tr>\n<td>Campus notice only: This notice is generated whenever a Form 2363 is input to the IMF to change a social security number or name control (or by a generated resequencing as a result of SSN revalidation) but the account fails to properly resequence bec. . .</td>\n</tr>\n<tr>\n<td>IMF Notices</td>\n</tr>",{"$f":"IF(OrigTable!A75=\"\",\"\",ScriptText!$B$1&CHAR(10)&ScriptText!$D$1)","v":"<tr>\n<td>"},{"$f":"IF(OrigTable!A75=\"\",\"\",TEXT(OrigTable!A75,\"00\"))","v":"37"},{"$f":"IF(OrigTable!A75=\"\",\"\",ScriptText!$E$1&CHAR(10)&ScriptText!$C$1)","v":"</td>\n</tr>"},{"$f":"IF(OrigTable!B75=\"\",\"\",ScriptText!$B$1&CHAR(10)&ScriptText!$D$1)","v":""},{"$f":"IF(OrigTable!B75=\"\",\"\",TEXT(OrigTable!B75,\"00\"))","v":""},{"$f":"IF(OrigTable!B75=\"\",\"\",ScriptText!$E$1&CHAR(10)&ScriptText!C70)","v":""},{"$f":"IF(OrigTable!C75=\"\",\"\",ScriptText!$B$1&CHAR(10)&ScriptText!$D$1)","v":"<tr>\n<td>"},{"$f":"IF(OrigTable!C75=\"\",\"\",IF(LEN(OrigTable!C75)>255,LEFT(OrigTable!C75,250)&\". . .\",OrigTable!C75))","v":"Campus notice only: This notice is generated whenever a Form 2363 is input to the IMF to change a social security number or name control (or by a generated resequencing as a result of SSN revalidation) but the account fails to properly resequence bec. . ."},{"$f":"IF(OrigTable!C75=\"\",\"\",ScriptText!$E$1&CHAR(10)&ScriptText!$C$1)","v":"</td>\n</tr>"},{"$f":"IF(OrigTable!D75=\"\",\"\",ScriptText!$B$1&CHAR(10)&ScriptText!$D$1)","v":"<tr>\n<td>"},{"$f":"IF(OrigTable!D75=\"\",\"\",TEXT(OrigTable!D75,\"00\"))","v":"IMF Notices"},{"$f":"IF(OrigTable!D75=\"\",\"\",ScriptText!$E$1&CHAR(10)&ScriptText!$C$1)","v":"</td>\n</tr>"},{"$f":"IF(OrigTable!E75=\"\",\"\",ScriptText!$B$1&CHAR(10)&ScriptText!$D$1)","v":""},{"$f":"IF(OrigTable!E75=\"\",\"\",TEXT(OrigTable!E75,\"00\"))","v":""},{"$f":"IF(OrigTable!E75=\"\",\"\",ScriptText!$E$1&CHAR(10)&ScriptText!$C$1)","v":""},{"$f":"IF(OrigTable!F75=\"\",\"\",ScriptText!$B$1&CHAR(10)&ScriptText!$D$1)","v":""},{"$f":"IF(OrigTable!F75=\"\",\"\",TEXT(OrigTable!F75,\"00\"))","v":""},{"$f":"IF(OrigTable!F75=\"\",\"\",ScriptText!$E$1&CHAR(10)&ScriptText!$C$1)","v":""},{"$f":"IF(OrigTable!G75=\"\",\"\",ScriptText!$B$1&CHAR(10)&ScriptText!$D$1)","v":""},{"$f":"IF(OrigTable!G75=\"\",\"\",TEXT(OrigTable!G75,\"00\"))","v":""},{"$f":"IF(OrigTable!G75=\"\",\"\",ScriptText!$E$1&CHAR(10)&ScriptText!$C$1)","v":""},75]
["<tr>\n<td>38</td>\n</tr>\n\n<tr>\n<td>Campus notice only: Issued for the DATC/ASTA project.</td>\n</tr>\n<tr>\n<td>IMF Notices</td>\n</tr>",{"$f":"IF(OrigTable!A76=\"\",\"\",ScriptText!$B$1&CHAR(10)&ScriptText!$D$1)","v":"<tr>\n<td>"},{"$f":"IF(OrigTable!A76=\"\",\"\",TEXT(OrigTable!A76,\"00\"))","v":"38"},{"$f":"IF(OrigTable!A76=\"\",\"\",ScriptText!$E$1&CHAR(10)&ScriptText!$C$1)","v":"</td>\n</tr>"},{"$f":"IF(OrigTable!B76=\"\",\"\",ScriptText!$B$1&CHAR(10)&ScriptText!$D$1)","v":""},{"$f":"IF(OrigTable!B76=\"\",\"\",TEXT(OrigTable!B76,\"00\"))","v":""},{"$f":"IF(OrigTable!B76=\"\",\"\",ScriptText!$E$1&CHAR(10)&ScriptText!C71)","v":""},{"$f":"IF(OrigTable!C76=\"\",\"\",ScriptText!$B$1&CHAR(10)&ScriptText!$D$1)","v":"<tr>\n<td>"},{"$f":"IF(OrigTable!C76=\"\",\"\",IF(LEN(OrigTable!C76)>255,LEFT(OrigTable!C76,250)&\". . .\",OrigTable!C76))","v":"Campus notice only: Issued for the DATC/ASTA project."},{"$f":"IF(OrigTable!C76=\"\",\"\",ScriptText!$E$1&CHAR(10)&ScriptText!$C$1)","v":"</td>\n</tr>"},{"$f":"IF(OrigTable!D76=\"\",\"\",ScriptText!$B$1&CHAR(10)&ScriptText!$D$1)","v":"<tr>\n<td>"},{"$f":"IF(OrigTable!D76=\"\",\"\",TEXT(OrigTable!D76,\"00\"))","v":"IMF Notices"},{"$f":"IF(OrigTable!D76=\"\",\"\",ScriptText!$E$1&CHAR(10)&ScriptText!$C$1)","v":"</td>\n</tr>"},{"$f":"IF(OrigTable!E76=\"\",\"\",ScriptText!$B$1&CHAR(10)&ScriptText!$D$1)","v":""},{"$f":"IF(OrigTable!E76=\"\",\"\",TEXT(OrigTable!E76,\"00\"))","v":""},{"$f":"IF(OrigTable!E76=\"\",\"\",ScriptText!$E$1&CHAR(10)&ScriptText!$C$1)","v":""},{"$f":"IF(OrigTable!F76=\"\",\"\",ScriptText!$B$1&CHAR(10)&ScriptText!$D$1)","v":""},{"$f":"IF(OrigTable!F76=\"\",\"\",TEXT(OrigTable!F76,\"00\"))","v":""},{"$f":"IF(OrigTable!F76=\"\",\"\",ScriptText!$E$1&CHAR(10)&ScriptText!$C$1)","v":""},{"$f":"IF(OrigTable!G76=\"\",\"\",ScriptText!$B$1&CHAR(10)&ScriptText!$D$1)","v":""},{"$f":"IF(OrigTable!G76=\"\",\"\",TEXT(OrigTable!G76,\"00\"))","v":""},{"$f":"IF(OrigTable!G76=\"\",\"\",ScriptText!$E$1&CHAR(10)&ScriptText!$C$1)","v":""},76]
["<tr>\n<td>39</td>\n</tr>\n\n<tr>\n<td>Notice to inform the taxpayer that an overpayment from a secondary SSN account has been applied to his/her balance due.</td>\n</tr>\n<tr>\n<td>IMF Notices</td>\n</tr>",{"$f":"IF(OrigTable!A77=\"\",\"\",ScriptText!$B$1&CHAR(10)&ScriptText!$D$1)","v":"<tr>\n<td>"},{"$f":"IF(OrigTable!A77=\"\",\"\",TEXT(OrigTable!A77,\"00\"))","v":"39"},{"$f":"IF(OrigTable!A77=\"\",\"\",ScriptText!$E$1&CHAR(10)&ScriptText!$C$1)","v":"</td>\n</tr>"},{"$f":"IF(OrigTable!B77=\"\",\"\",ScriptText!$B$1&CHAR(10)&ScriptText!$D$1)","v":""},{"$f":"IF(OrigTable!B77=\"\",\"\",TEXT(OrigTable!B77,\"00\"))","v":""},{"$f":"IF(OrigTable!B77=\"\",\"\",ScriptText!$E$1&CHAR(10)&ScriptText!C72)","v":""},{"$f":"IF(OrigTable!C77=\"\",\"\",ScriptText!$B$1&CHAR(10)&ScriptText!$D$1)","v":"<tr>\n<td>"},{"$f":"IF(OrigTable!C77=\"\",\"\",IF(LEN(OrigTable!C77)>255,LEFT(OrigTable!C77,250)&\". . .\",OrigTable!C77))","v":"Notice to inform the taxpayer that an overpayment from a secondary SSN account has been applied to his/her balance due."},{"$f":"IF(OrigTable!C77=\"\",\"\",ScriptText!$E$1&CHAR(10)&ScriptText!$C$1)","v":"</td>\n</tr>"},{"$f":"IF(OrigTable!D77=\"\",\"\",ScriptText!$B$1&CHAR(10)&ScriptText!$D$1)","v":"<tr>\n<td>"},{"$f":"IF(OrigTable!D77=\"\",\"\",TEXT(OrigTable!D77,\"00\"))","v":"IMF Notices"},{"$f":"IF(OrigTable!D77=\"\",\"\",ScriptText!$E$1&CHAR(10)&ScriptText!$C$1)","v":"</td>\n</tr>"},{"$f":"IF(OrigTable!E77=\"\",\"\",ScriptText!$B$1&CHAR(10)&ScriptText!$D$1)","v":""},{"$f":"IF(OrigTable!E77=\"\",\"\",TEXT(OrigTable!E77,\"00\"))","v":""},{"$f":"IF(OrigTable!E77=\"\",\"\",ScriptText!$E$1&CHAR(10)&ScriptText!$C$1)","v":""},{"$f":"IF(OrigTable!F77=\"\",\"\",ScriptText!$B$1&CHAR(10)&ScriptText!$D$1)","v":""},{"$f":"IF(OrigTable!F77=\"\",\"\",TEXT(OrigTable!F77,\"00\"))","v":""},{"$f":"IF(OrigTable!F77=\"\",\"\",ScriptText!$E$1&CHAR(10)&ScriptText!$C$1)","v":""},{"$f":"IF(OrigTable!G77=\"\",\"\",ScriptText!$B$1&CHAR(10)&ScriptText!$D$1)","v":""},{"$f":"IF(OrigTable!G77=\"\",\"\",TEXT(OrigTable!G77,\"00\"))","v":""},{"$f":"IF(OrigTable!G77=\"\",\"\",ScriptText!$E$1&CHAR(10)&ScriptText!$C$1)","v":""},77]
["<tr>\n<td>40</td>\n</tr>\n\n<tr>\n<td>Assigning Delinquent Account to a Private Collection Agency</td>\n</tr>\n<tr>\n<td>IMF Notices</td>\n</tr>",{"$f":"IF(OrigTable!A78=\"\",\"\",ScriptText!$B$1&CHAR(10)&ScriptText!$D$1)","v":"<tr>\n<td>"},{"$f":"IF(OrigTable!A78=\"\",\"\",TEXT(OrigTable!A78,\"00\"))","v":"40"},{"$f":"IF(OrigTable!A78=\"\",\"\",ScriptText!$E$1&CHAR(10)&ScriptText!$C$1)","v":"</td>\n</tr>"},{"$f":"IF(OrigTable!B78=\"\",\"\",ScriptText!$B$1&CHAR(10)&ScriptText!$D$1)","v":""},{"$f":"IF(OrigTable!B78=\"\",\"\",TEXT(OrigTable!B78,\"00\"))","v":""},{"$f":"IF(OrigTable!B78=\"\",\"\",ScriptText!$E$1&CHAR(10)&ScriptText!C73)","v":""},{"$f":"IF(OrigTable!C78=\"\",\"\",ScriptText!$B$1&CHAR(10)&ScriptText!$D$1)","v":"<tr>\n<td>"},{"$f":"IF(OrigTable!C78=\"\",\"\",IF(LEN(OrigTable!C78)>255,LEFT(OrigTable!C78,250)&\". . .\",OrigTable!C78))","v":"Assigning Delinquent Account to a Private Collection Agency"},{"$f":"IF(OrigTable!C78=\"\",\"\",ScriptText!$E$1&CHAR(10)&ScriptText!$C$1)","v":"</td>\n</tr>"},{"$f":"IF(OrigTable!D78=\"\",\"\",ScriptText!$B$1&CHAR(10)&ScriptText!$D$1)","v":"<tr>\n<td>"},{"$f":"IF(OrigTable!D78=\"\",\"\",TEXT(OrigTable!D78,\"00\"))","v":"IMF Notices"},{"$f":"IF(OrigTable!D78=\"\",\"\",ScriptText!$E$1&CHAR(10)&ScriptText!$C$1)","v":"</td>\n</tr>"},{"$f":"IF(OrigTable!E78=\"\",\"\",ScriptText!$B$1&CHAR(10)&ScriptText!$D$1)","v":""},{"$f":"IF(OrigTable!E78=\"\",\"\",TEXT(OrigTable!E78,\"00\"))","v":""},{"$f":"IF(OrigTable!E78=\"\",\"\",ScriptText!$E$1&CHAR(10)&ScriptText!$C$1)","v":""},{"$f":"IF(OrigTable!F78=\"\",\"\",ScriptText!$B$1&CHAR(10)&ScriptText!$D$1)","v":""},{"$f":"IF(OrigTable!F78=\"\",\"\",TEXT(OrigTable!F78,\"00\"))","v":""},{"$f":"IF(OrigTable!F78=\"\",\"\",ScriptText!$E$1&CHAR(10)&ScriptText!$C$1)","v":""},{"$f":"IF(OrigTable!G78=\"\",\"\",ScriptText!$B$1&CHAR(10)&ScriptText!$D$1)","v":""},{"$f":"IF(OrigTable!G78=\"\",\"\",TEXT(OrigTable!G78,\"00\"))","v":""},{"$f":"IF(OrigTable!G78=\"\",\"\",ScriptText!$E$1&CHAR(10)&ScriptText!$C$1)","v":""},78]
["<tr>\n<td>41</td>\n</tr>\n\n<tr>\n<td>Campus notice only: Issued to notify the Campus that an unresolved manual refund freeze has been present on the master file for more than 7 cycles.</td>\n</tr>\n<tr>\n<td>IMF Notices</td>\n</tr>",{"$f":"IF(OrigTable!A79=\"\",\"\",ScriptText!$B$1&CHAR(10)&ScriptText!$D$1)","v":"<tr>\n<td>"},{"$f":"IF(OrigTable!A79=\"\",\"\",TEXT(OrigTable!A79,\"00\"))","v":"41"},{"$f":"IF(OrigTable!A79=\"\",\"\",ScriptText!$E$1&CHAR(10)&ScriptText!$C$1)","v":"</td>\n</tr>"},{"$f":"IF(OrigTable!B79=\"\",\"\",ScriptText!$B$1&CHAR(10)&ScriptText!$D$1)","v":""},{"$f":"IF(OrigTable!B79=\"\",\"\",TEXT(OrigTable!B79,\"00\"))","v":""},{"$f":"IF(OrigTable!B79=\"\",\"\",ScriptText!$E$1&CHAR(10)&ScriptText!C74)","v":""},{"$f":"IF(OrigTable!C79=\"\",\"\",ScriptText!$B$1&CHAR(10)&ScriptText!$D$1)","v":"<tr>\n<td>"},{"$f":"IF(OrigTable!C79=\"\",\"\",IF(LEN(OrigTable!C79)>255,LEFT(OrigTable!C79,250)&\". . .\",OrigTable!C79))","v":"Campus notice only: Issued to notify the Campus that an unresolved manual refund freeze has been present on the master file for more than 7 cycles."},{"$f":"IF(OrigTable!C79=\"\",\"\",ScriptText!$E$1&CHAR(10)&ScriptText!$C$1)","v":"</td>\n</tr>"},{"$f":"IF(OrigTable!D79=\"\",\"\",ScriptText!$B$1&CHAR(10)&ScriptText!$D$1)","v":"<tr>\n<td>"},{"$f":"IF(OrigTable!D79=\"\",\"\",TEXT(OrigTable!D79,\"00\"))","v":"IMF Notices"},{"$f":"IF(OrigTable!D79=\"\",\"\",ScriptText!$E$1&CHAR(10)&ScriptText!$C$1)","v":"</td>\n</tr>"},{"$f":"IF(OrigTable!E79=\"\",\"\",ScriptText!$B$1&CHAR(10)&ScriptText!$D$1)","v":""},{"$f":"IF(OrigTable!E79=\"\",\"\",TEXT(OrigTable!E79,\"00\"))","v":""},{"$f":"IF(OrigTable!E79=\"\",\"\",ScriptText!$E$1&CHAR(10)&ScriptText!$C$1)","v":""},{"$f":"IF(OrigTable!F79=\"\",\"\",ScriptText!$B$1&CHAR(10)&ScriptText!$D$1)","v":""},{"$f":"IF(OrigTable!F79=\"\",\"\",TEXT(OrigTable!F79,\"00\"))","v":""},{"$f":"IF(OrigTable!F79=\"\",\"\",ScriptText!$E$1&CHAR(10)&ScriptText!$C$1)","v":""},{"$f":"IF(OrigTable!G79=\"\",\"\",ScriptText!$B$1&CHAR(10)&ScriptText!$D$1)","v":""},{"$f":"IF(OrigTable!G79=\"\",\"\",TEXT(OrigTable!G79,\"00\"))","v":""},{"$f":"IF(OrigTable!G79=\"\",\"\",ScriptText!$E$1&CHAR(10)&ScriptText!$C$1)","v":""},79]
["<tr>\n<td>41I</td>\n</tr>\n\n<tr>\n<td>Campus notice only: Issued to notify the Campus that an unresolved manual refund freeze has been present on the master file for more than 7 cycles.(IRAF)</td>\n</tr>\n<tr>\n<td>IMF Notices</td>\n</tr>",{"$f":"IF(OrigTable!A80=\"\",\"\",ScriptText!$B$1&CHAR(10)&ScriptText!$D$1)","v":"<tr>\n<td>"},{"$f":"IF(OrigTable!A80=\"\",\"\",TEXT(OrigTable!A80,\"00\"))","v":"41I"},{"$f":"IF(OrigTable!A80=\"\",\"\",ScriptText!$E$1&CHAR(10)&ScriptText!$C$1)","v":"</td>\n</tr>"},{"$f":"IF(OrigTable!B80=\"\",\"\",ScriptText!$B$1&CHAR(10)&ScriptText!$D$1)","v":""},{"$f":"IF(OrigTable!B80=\"\",\"\",TEXT(OrigTable!B80,\"00\"))","v":""},{"$f":"IF(OrigTable!B80=\"\",\"\",ScriptText!$E$1&CHAR(10)&ScriptText!C75)","v":""},{"$f":"IF(OrigTable!C80=\"\",\"\",ScriptText!$B$1&CHAR(10)&ScriptText!$D$1)","v":"<tr>\n<td>"},{"$f":"IF(OrigTable!C80=\"\",\"\",IF(LEN(OrigTable!C80)>255,LEFT(OrigTable!C80,250)&\". . .\",OrigTable!C80))","v":"Campus notice only: Issued to notify the Campus that an unresolved manual refund freeze has been present on the master file for more than 7 cycles.(IRAF)"},{"$f":"IF(OrigTable!C80=\"\",\"\",ScriptText!$E$1&CHAR(10)&ScriptText!$C$1)","v":"</td>\n</tr>"},{"$f":"IF(OrigTable!D80=\"\",\"\",ScriptText!$B$1&CHAR(10)&ScriptText!$D$1)","v":"<tr>\n<td>"},{"$f":"IF(OrigTable!D80=\"\",\"\",TEXT(OrigTable!D80,\"00\"))","v":"IMF Notices"},{"$f":"IF(OrigTable!D80=\"\",\"\",ScriptText!$E$1&CHAR(10)&ScriptText!$C$1)","v":"</td>\n</tr>"},{"$f":"IF(OrigTable!E80=\"\",\"\",ScriptText!$B$1&CHAR(10)&ScriptText!$D$1)","v":""},{"$f":"IF(OrigTable!E80=\"\",\"\",TEXT(OrigTable!E80,\"00\"))","v":""},{"$f":"IF(OrigTable!E80=\"\",\"\",ScriptText!$E$1&CHAR(10)&ScriptText!$C$1)","v":""},{"$f":"IF(OrigTable!F80=\"\",\"\",ScriptText!$B$1&CHAR(10)&ScriptText!$D$1)","v":""},{"$f":"IF(OrigTable!F80=\"\",\"\",TEXT(OrigTable!F80,\"00\"))","v":""},{"$f":"IF(OrigTable!F80=\"\",\"\",ScriptText!$E$1&CHAR(10)&ScriptText!$C$1)","v":""},{"$f":"IF(OrigTable!G80=\"\",\"\",ScriptText!$B$1&CHAR(10)&ScriptText!$D$1)","v":""},{"$f":"IF(OrigTable!G80=\"\",\"\",TEXT(OrigTable!G80,\"00\"))","v":""},{"$f":"IF(OrigTable!G80=\"\",\"\",ScriptText!$E$1&CHAR(10)&ScriptText!$C$1)","v":""},80]
["<tr>\n<td>42</td>\n</tr>\n\n<tr>\n<td>Notice to inform the taxpayer that an overpayment from their account has been applied to pay a balance due in a secondary SSN account.</td>\n</tr>\n<tr>\n<td>IMF Notices</td>\n</tr>",{"$f":"IF(OrigTable!A81=\"\",\"\",ScriptText!$B$1&CHAR(10)&ScriptText!$D$1)","v":"<tr>\n<td>"},{"$f":"IF(OrigTable!A81=\"\",\"\",TEXT(OrigTable!A81,\"00\"))","v":"42"},{"$f":"IF(OrigTable!A81=\"\",\"\",ScriptText!$E$1&CHAR(10)&ScriptText!$C$1)","v":"</td>\n</tr>"},{"$f":"IF(OrigTable!B81=\"\",\"\",ScriptText!$B$1&CHAR(10)&ScriptText!$D$1)","v":""},{"$f":"IF(OrigTable!B81=\"\",\"\",TEXT(OrigTable!B81,\"00\"))","v":""},{"$f":"IF(OrigTable!B81=\"\",\"\",ScriptText!$E$1&CHAR(10)&ScriptText!C76)","v":""},{"$f":"IF(OrigTable!C81=\"\",\"\",ScriptText!$B$1&CHAR(10)&ScriptText!$D$1)","v":"<tr>\n<td>"},{"$f":"IF(OrigTable!C81=\"\",\"\",IF(LEN(OrigTable!C81)>255,LEFT(OrigTable!C81,250)&\". . .\",OrigTable!C81))","v":"Notice to inform the taxpayer that an overpayment from their account has been applied to pay a balance due in a secondary SSN account."},{"$f":"IF(OrigTable!C81=\"\",\"\",ScriptText!$E$1&CHAR(10)&ScriptText!$C$1)","v":"</td>\n</tr>"},{"$f":"IF(OrigTable!D81=\"\",\"\",ScriptText!$B$1&CHAR(10)&ScriptText!$D$1)","v":"<tr>\n<td>"},{"$f":"IF(OrigTable!D81=\"\",\"\",TEXT(OrigTable!D81,\"00\"))","v":"IMF Notices"},{"$f":"IF(OrigTable!D81=\"\",\"\",ScriptText!$E$1&CHAR(10)&ScriptText!$C$1)","v":"</td>\n</tr>"},{"$f":"IF(OrigTable!E81=\"\",\"\",ScriptText!$B$1&CHAR(10)&ScriptText!$D$1)","v":""},{"$f":"IF(OrigTable!E81=\"\",\"\",TEXT(OrigTable!E81,\"00\"))","v":""},{"$f":"IF(OrigTable!E81=\"\",\"\",ScriptText!$E$1&CHAR(10)&ScriptText!$C$1)","v":""},{"$f":"IF(OrigTable!F81=\"\",\"\",ScriptText!$B$1&CHAR(10)&ScriptText!$D$1)","v":""},{"$f":"IF(OrigTable!F81=\"\",\"\",TEXT(OrigTable!F81,\"00\"))","v":""},{"$f":"IF(OrigTable!F81=\"\",\"\",ScriptText!$E$1&CHAR(10)&ScriptText!$C$1)","v":""},{"$f":"IF(OrigTable!G81=\"\",\"\",ScriptText!$B$1&CHAR(10)&ScriptText!$D$1)","v":""},{"$f":"IF(OrigTable!G81=\"\",\"\",TEXT(OrigTable!G81,\"00\"))","v":""},{"$f":"IF(OrigTable!G81=\"\",\"\",ScriptText!$E$1&CHAR(10)&ScriptText!$C$1)","v":""},81]
["<tr>\n<td>43</td>\n</tr>\n\n<tr>\n<td>Campus notice only: This notice is issued to notify the Campus of the account controlling name line in order that a name change to the tax year prior to the latest year on file may be input correctly and cause the\naccount to properly resequence.</td>\n</tr>\n<tr>\n<td>IMF Notices</td>\n</tr>",{"$f":"IF(OrigTable!A82=\"\",\"\",ScriptText!$B$1&CHAR(10)&ScriptText!$D$1)","v":"<tr>\n<td>"},{"$f":"IF(OrigTable!A82=\"\",\"\",TEXT(OrigTable!A82,\"00\"))","v":"43"},{"$f":"IF(OrigTable!A82=\"\",\"\",ScriptText!$E$1&CHAR(10)&ScriptText!$C$1)","v":"</td>\n</tr>"},{"$f":"IF(OrigTable!B82=\"\",\"\",ScriptText!$B$1&CHAR(10)&ScriptText!$D$1)","v":""},{"$f":"IF(OrigTable!B82=\"\",\"\",TEXT(OrigTable!B82,\"00\"))","v":""},{"$f":"IF(OrigTable!B82=\"\",\"\",ScriptText!$E$1&CHAR(10)&ScriptText!C77)","v":""},{"$f":"IF(OrigTable!C82=\"\",\"\",ScriptText!$B$1&CHAR(10)&ScriptText!$D$1)","v":"<tr>\n<td>"},{"$f":"IF(OrigTable!C82=\"\",\"\",IF(LEN(OrigTable!C82)>255,LEFT(OrigTable!C82,250)&\". . .\",OrigTable!C82))","v":"Campus notice only: This notice is issued to notify the Campus of the account controlling name line in order that a name change to the tax year prior to the latest year on file may be input correctly and cause the\naccount to properly resequence."},{"$f":"IF(OrigTable!C82=\"\",\"\",ScriptText!$E$1&CHAR(10)&ScriptText!$C$1)","v":"</td>\n</tr>"},{"$f":"IF(OrigTable!D82=\"\",\"\",ScriptText!$B$1&CHAR(10)&ScriptText!$D$1)","v":"<tr>\n<td>"},{"$f":"IF(OrigTable!D82=\"\",\"\",TEXT(OrigTable!D82,\"00\"))","v":"IMF Notices"},{"$f":"IF(OrigTable!D82=\"\",\"\",ScriptText!$E$1&CHAR(10)&ScriptText!$C$1)","v":"</td>\n</tr>"},{"$f":"IF(OrigTable!E82=\"\",\"\",ScriptText!$B$1&CHAR(10)&ScriptText!$D$1)","v":""},{"$f":"IF(OrigTable!E82=\"\",\"\",TEXT(OrigTable!E82,\"00\"))","v":""},{"$f":"IF(OrigTable!E82=\"\",\"\",ScriptText!$E$1&CHAR(10)&ScriptText!$C$1)","v":""},{"$f":"IF(OrigTable!F82=\"\",\"\",ScriptText!$B$1&CHAR(10)&ScriptText!$D$1)","v":""},{"$f":"IF(OrigTable!F82=\"\",\"\",TEXT(OrigTable!F82,\"00\"))","v":""},{"$f":"IF(OrigTable!F82=\"\",\"\",ScriptText!$E$1&CHAR(10)&ScriptText!$C$1)","v":""},{"$f":"IF(OrigTable!G82=\"\",\"\",ScriptText!$B$1&CHAR(10)&ScriptText!$D$1)","v":""},{"$f":"IF(OrigTable!G82=\"\",\"\",TEXT(OrigTable!G82,\"00\"))","v":""},{"$f":"IF(OrigTable!G82=\"\",\"\",ScriptText!$E$1&CHAR(10)&ScriptText!$C$1)","v":""},82]
["<tr>\n<td>44</td>\n</tr>\n\n<tr>\n<td>Notice to a taxpayer of delay in processing refund when it might be applied to a NMF account.</td>\n</tr>\n<tr>\n<td>IMF Notices</td>\n</tr>",{"$f":"IF(OrigTable!A83=\"\",\"\",ScriptText!$B$1&CHAR(10)&ScriptText!$D$1)","v":"<tr>\n<td>"},{"$f":"IF(OrigTable!A83=\"\",\"\",TEXT(OrigTable!A83,\"00\"))","v":"44"},{"$f":"IF(OrigTable!A83=\"\",\"\",ScriptText!$E$1&CHAR(10)&ScriptText!$C$1)","v":"</td>\n</tr>"},{"$f":"IF(OrigTable!B83=\"\",\"\",ScriptText!$B$1&CHAR(10)&ScriptText!$D$1)","v":""},{"$f":"IF(OrigTable!B83=\"\",\"\",TEXT(OrigTable!B83,\"00\"))","v":""},{"$f":"IF(OrigTable!B83=\"\",\"\",ScriptText!$E$1&CHAR(10)&ScriptText!C78)","v":""},{"$f":"IF(OrigTable!C83=\"\",\"\",ScriptText!$B$1&CHAR(10)&ScriptText!$D$1)","v":"<tr>\n<td>"},{"$f":"IF(OrigTable!C83=\"\",\"\",IF(LEN(OrigTable!C83)>255,LEFT(OrigTable!C83,250)&\". . .\",OrigTable!C83))","v":"Notice to a taxpayer of delay in processing refund when it might be applied to a NMF account."},{"$f":"IF(OrigTable!C83=\"\",\"\",ScriptText!$E$1&CHAR(10)&ScriptText!$C$1)","v":"</td>\n</tr>"},{"$f":"IF(OrigTable!D83=\"\",\"\",ScriptText!$B$1&CHAR(10)&ScriptText!$D$1)","v":"<tr>\n<td>"},{"$f":"IF(OrigTable!D83=\"\",\"\",TEXT(OrigTable!D83,\"00\"))","v":"IMF Notices"},{"$f":"IF(OrigTable!D83=\"\",\"\",ScriptText!$E$1&CHAR(10)&ScriptText!$C$1)","v":"</td>\n</tr>"},{"$f":"IF(OrigTable!E83=\"\",\"\",ScriptText!$B$1&CHAR(10)&ScriptText!$D$1)","v":""},{"$f":"IF(OrigTable!E83=\"\",\"\",TEXT(OrigTable!E83,\"00\"))","v":""},{"$f":"IF(OrigTable!E83=\"\",\"\",ScriptText!$E$1&CHAR(10)&ScriptText!$C$1)","v":""},{"$f":"IF(OrigTable!F83=\"\",\"\",ScriptText!$B$1&CHAR(10)&ScriptText!$D$1)","v":""},{"$f":"IF(OrigTable!F83=\"\",\"\",TEXT(OrigTable!F83,\"00\"))","v":""},{"$f":"IF(OrigTable!F83=\"\",\"\",ScriptText!$E$1&CHAR(10)&ScriptText!$C$1)","v":""},{"$f":"IF(OrigTable!G83=\"\",\"\",ScriptText!$B$1&CHAR(10)&ScriptText!$D$1)","v":""},{"$f":"IF(OrigTable!G83=\"\",\"\",TEXT(OrigTable!G83,\"00\"))","v":""},{"$f":"IF(OrigTable!G83=\"\",\"\",ScriptText!$E$1&CHAR(10)&ScriptText!$C$1)","v":""},83]
["<tr>\n<td>45</td>\n</tr>\n\n<tr>\n<td>Notice to a taxpayer of a change in the amount of credit elect applied to his/her next year’s tax return.</td>\n</tr>\n<tr>\n<td>IMF Notices</td>\n</tr>",{"$f":"IF(OrigTable!A84=\"\",\"\",ScriptText!$B$1&CHAR(10)&ScriptText!$D$1)","v":"<tr>\n<td>"},{"$f":"IF(OrigTable!A84=\"\",\"\",TEXT(OrigTable!A84,\"00\"))","v":"45"},{"$f":"IF(OrigTable!A84=\"\",\"\",ScriptText!$E$1&CHAR(10)&ScriptText!$C$1)","v":"</td>\n</tr>"},{"$f":"IF(OrigTable!B84=\"\",\"\",ScriptText!$B$1&CHAR(10)&ScriptText!$D$1)","v":""},{"$f":"IF(OrigTable!B84=\"\",\"\",TEXT(OrigTable!B84,\"00\"))","v":""},{"$f":"IF(OrigTable!B84=\"\",\"\",ScriptText!$E$1&CHAR(10)&ScriptText!C79)","v":""},{"$f":"IF(OrigTable!C84=\"\",\"\",ScriptText!$B$1&CHAR(10)&ScriptText!$D$1)","v":"<tr>\n<td>"},{"$f":"IF(OrigTable!C84=\"\",\"\",IF(LEN(OrigTable!C84)>255,LEFT(OrigTable!C84,250)&\". . .\",OrigTable!C84))","v":"Notice to a taxpayer of a change in the amount of credit elect applied to his/her next year’s tax return."},{"$f":"IF(OrigTable!C84=\"\",\"\",ScriptText!$E$1&CHAR(10)&ScriptText!$C$1)","v":"</td>\n</tr>"},{"$f":"IF(OrigTable!D84=\"\",\"\",ScriptText!$B$1&CHAR(10)&ScriptText!$D$1)","v":"<tr>\n<td>"},{"$f":"IF(OrigTable!D84=\"\",\"\",TEXT(OrigTable!D84,\"00\"))","v":"IMF Notices"},{"$f":"IF(OrigTable!D84=\"\",\"\",ScriptText!$E$1&CHAR(10)&ScriptText!$C$1)","v":"</td>\n</tr>"},{"$f":"IF(OrigTable!E84=\"\",\"\",ScriptText!$B$1&CHAR(10)&ScriptText!$D$1)","v":""},{"$f":"IF(OrigTable!E84=\"\",\"\",TEXT(OrigTable!E84,\"00\"))","v":""},{"$f":"IF(OrigTable!E84=\"\",\"\",ScriptText!$E$1&CHAR(10)&ScriptText!$C$1)","v":""},{"$f":"IF(OrigTable!F84=\"\",\"\",ScriptText!$B$1&CHAR(10)&ScriptText!$D$1)","v":""},{"$f":"IF(OrigTable!F84=\"\",\"\",TEXT(OrigTable!F84,\"00\"))","v":""},{"$f":"IF(OrigTable!F84=\"\",\"\",ScriptText!$E$1&CHAR(10)&ScriptText!$C$1)","v":""},{"$f":"IF(OrigTable!G84=\"\",\"\",ScriptText!$B$1&CHAR(10)&ScriptText!$D$1)","v":""},{"$f":"IF(OrigTable!G84=\"\",\"\",TEXT(OrigTable!G84,\"00\"))","v":""},{"$f":"IF(OrigTable!G84=\"\",\"\",ScriptText!$E$1&CHAR(10)&ScriptText!$C$1)","v":""},84]
["<tr>\n<td>46</td>\n</tr>\n\n<tr>\n<td>Campus notice only: Issued to notify the Campus that a refund is due on an “L” or “W” coded income tax\nreturn, and there is no second name for that return on the master file.</td>\n</tr>\n<tr>\n<td>IMF Notices</td>\n</tr>",{"$f":"IF(OrigTable!A85=\"\",\"\",ScriptText!$B$1&CHAR(10)&ScriptText!$D$1)","v":"<tr>\n<td>"},{"$f":"IF(OrigTable!A85=\"\",\"\",TEXT(OrigTable!A85,\"00\"))","v":"46"},{"$f":"IF(OrigTable!A85=\"\",\"\",ScriptText!$E$1&CHAR(10)&ScriptText!$C$1)","v":"</td>\n</tr>"},{"$f":"IF(OrigTable!B85=\"\",\"\",ScriptText!$B$1&CHAR(10)&ScriptText!$D$1)","v":""},{"$f":"IF(OrigTable!B85=\"\",\"\",TEXT(OrigTable!B85,\"00\"))","v":""},{"$f":"IF(OrigTable!B85=\"\",\"\",ScriptText!$E$1&CHAR(10)&ScriptText!C80)","v":""},{"$f":"IF(OrigTable!C85=\"\",\"\",ScriptText!$B$1&CHAR(10)&ScriptText!$D$1)","v":"<tr>\n<td>"},{"$f":"IF(OrigTable!C85=\"\",\"\",IF(LEN(OrigTable!C85)>255,LEFT(OrigTable!C85,250)&\". . .\",OrigTable!C85))","v":"Campus notice only: Issued to notify the Campus that a refund is due on an “L” or “W” coded income tax\nreturn, and there is no second name for that return on the master file."},{"$f":"IF(OrigTable!C85=\"\",\"\",ScriptText!$E$1&CHAR(10)&ScriptText!$C$1)","v":"</td>\n</tr>"},{"$f":"IF(OrigTable!D85=\"\",\"\",ScriptText!$B$1&CHAR(10)&ScriptText!$D$1)","v":"<tr>\n<td>"},{"$f":"IF(OrigTable!D85=\"\",\"\",TEXT(OrigTable!D85,\"00\"))","v":"IMF Notices"},{"$f":"IF(OrigTable!D85=\"\",\"\",ScriptText!$E$1&CHAR(10)&ScriptText!$C$1)","v":"</td>\n</tr>"},{"$f":"IF(OrigTable!E85=\"\",\"\",ScriptText!$B$1&CHAR(10)&ScriptText!$D$1)","v":""},{"$f":"IF(OrigTable!E85=\"\",\"\",TEXT(OrigTable!E85,\"00\"))","v":""},{"$f":"IF(OrigTable!E85=\"\",\"\",ScriptText!$E$1&CHAR(10)&ScriptText!$C$1)","v":""},{"$f":"IF(OrigTable!F85=\"\",\"\",ScriptText!$B$1&CHAR(10)&ScriptText!$D$1)","v":""},{"$f":"IF(OrigTable!F85=\"\",\"\",TEXT(OrigTable!F85,\"00\"))","v":""},{"$f":"IF(OrigTable!F85=\"\",\"\",ScriptText!$E$1&CHAR(10)&ScriptText!$C$1)","v":""},{"$f":"IF(OrigTable!G85=\"\",\"\",ScriptText!$B$1&CHAR(10)&ScriptText!$D$1)","v":""},{"$f":"IF(OrigTable!G85=\"\",\"\",TEXT(OrigTable!G85,\"00\"))","v":""},{"$f":"IF(OrigTable!G85=\"\",\"\",ScriptText!$E$1&CHAR(10)&ScriptText!$C$1)","v":""},85]
["<tr>\n<td>48</td>\n</tr>\n\n<tr>\n<td>ITIN Deactivation</td>\n</tr>\n<tr>\n<td>IMF Notices</td>\n</tr>",{"$f":"IF(OrigTable!A86=\"\",\"\",ScriptText!$B$1&CHAR(10)&ScriptText!$D$1)","v":"<tr>\n<td>"},{"$f":"IF(OrigTable!A86=\"\",\"\",TEXT(OrigTable!A86,\"00\"))","v":"48"},{"$f":"IF(OrigTable!A86=\"\",\"\",ScriptText!$E$1&CHAR(10)&ScriptText!$C$1)","v":"</td>\n</tr>"},{"$f":"IF(OrigTable!B86=\"\",\"\",ScriptText!$B$1&CHAR(10)&ScriptText!$D$1)","v":""},{"$f":"IF(OrigTable!B86=\"\",\"\",TEXT(OrigTable!B86,\"00\"))","v":""},{"$f":"IF(OrigTable!B86=\"\",\"\",ScriptText!$E$1&CHAR(10)&ScriptText!C81)","v":""},{"$f":"IF(OrigTable!C86=\"\",\"\",ScriptText!$B$1&CHAR(10)&ScriptText!$D$1)","v":"<tr>\n<td>"},{"$f":"IF(OrigTable!C86=\"\",\"\",IF(LEN(OrigTable!C86)>255,LEFT(OrigTable!C86,250)&\". . .\",OrigTable!C86))","v":"ITIN Deactivation"},{"$f":"IF(OrigTable!C86=\"\",\"\",ScriptText!$E$1&CHAR(10)&ScriptText!$C$1)","v":"</td>\n</tr>"},{"$f":"IF(OrigTable!D86=\"\",\"\",ScriptText!$B$1&CHAR(10)&ScriptText!$D$1)","v":"<tr>\n<td>"},{"$f":"IF(OrigTable!D86=\"\",\"\",TEXT(OrigTable!D86,\"00\"))","v":"IMF Notices"},{"$f":"IF(OrigTable!D86=\"\",\"\",ScriptText!$E$1&CHAR(10)&ScriptText!$C$1)","v":"</td>\n</tr>"},{"$f":"IF(OrigTable!E86=\"\",\"\",ScriptText!$B$1&CHAR(10)&ScriptText!$D$1)","v":""},{"$f":"IF(OrigTable!E86=\"\",\"\",TEXT(OrigTable!E86,\"00\"))","v":""},{"$f":"IF(OrigTable!E86=\"\",\"\",ScriptText!$E$1&CHAR(10)&ScriptText!$C$1)","v":""},{"$f":"IF(OrigTable!F86=\"\",\"\",ScriptText!$B$1&CHAR(10)&ScriptText!$D$1)","v":""},{"$f":"IF(OrigTable!F86=\"\",\"\",TEXT(OrigTable!F86,\"00\"))","v":""},{"$f":"IF(OrigTable!F86=\"\",\"\",ScriptText!$E$1&CHAR(10)&ScriptText!$C$1)","v":""},{"$f":"IF(OrigTable!G86=\"\",\"\",ScriptText!$B$1&CHAR(10)&ScriptText!$D$1)","v":""},{"$f":"IF(OrigTable!G86=\"\",\"\",TEXT(OrigTable!G86,\"00\"))","v":""},{"$f":"IF(OrigTable!G86=\"\",\"\",ScriptText!$E$1&CHAR(10)&ScriptText!$C$1)","v":""},86]
["<tr>\n<td>49</td>\n</tr>\n\n<tr>\n<td>Notice to a taxpayer that an overpayment was applied to an unpaid IMF liability or liabilities.</td>\n</tr>\n<tr>\n<td>IMF Notices</td>\n</tr>",{"$f":"IF(OrigTable!A87=\"\",\"\",ScriptText!$B$1&CHAR(10)&ScriptText!$D$1)","v":"<tr>\n<td>"},{"$f":"IF(OrigTable!A87=\"\",\"\",TEXT(OrigTable!A87,\"00\"))","v":"49"},{"$f":"IF(OrigTable!A87=\"\",\"\",ScriptText!$E$1&CHAR(10)&ScriptText!$C$1)","v":"</td>\n</tr>"},{"$f":"IF(OrigTable!B87=\"\",\"\",ScriptText!$B$1&CHAR(10)&ScriptText!$D$1)","v":""},{"$f":"IF(OrigTable!B87=\"\",\"\",TEXT(OrigTable!B87,\"00\"))","v":""},{"$f":"IF(OrigTable!B87=\"\",\"\",ScriptText!$E$1&CHAR(10)&ScriptText!C82)","v":""},{"$f":"IF(OrigTable!C87=\"\",\"\",ScriptText!$B$1&CHAR(10)&ScriptText!$D$1)","v":"<tr>\n<td>"},{"$f":"IF(OrigTable!C87=\"\",\"\",IF(LEN(OrigTable!C87)>255,LEFT(OrigTable!C87,250)&\". . .\",OrigTable!C87))","v":"Notice to a taxpayer that an overpayment was applied to an unpaid IMF liability or liabilities."},{"$f":"IF(OrigTable!C87=\"\",\"\",ScriptText!$E$1&CHAR(10)&ScriptText!$C$1)","v":"</td>\n</tr>"},{"$f":"IF(OrigTable!D87=\"\",\"\",ScriptText!$B$1&CHAR(10)&ScriptText!$D$1)","v":"<tr>\n<td>"},{"$f":"IF(OrigTable!D87=\"\",\"\",TEXT(OrigTable!D87,\"00\"))","v":"IMF Notices"},{"$f":"IF(OrigTable!D87=\"\",\"\",ScriptText!$E$1&CHAR(10)&ScriptText!$C$1)","v":"</td>\n</tr>"},{"$f":"IF(OrigTable!E87=\"\",\"\",ScriptText!$B$1&CHAR(10)&ScriptText!$D$1)","v":""},{"$f":"IF(OrigTable!E87=\"\",\"\",TEXT(OrigTable!E87,\"00\"))","v":""},{"$f":"IF(OrigTable!E87=\"\",\"\",ScriptText!$E$1&CHAR(10)&ScriptText!$C$1)","v":""},{"$f":"IF(OrigTable!F87=\"\",\"\",ScriptText!$B$1&CHAR(10)&ScriptText!$D$1)","v":""},{"$f":"IF(OrigTable!F87=\"\",\"\",TEXT(OrigTable!F87,\"00\"))","v":""},{"$f":"IF(OrigTable!F87=\"\",\"\",ScriptText!$E$1&CHAR(10)&ScriptText!$C$1)","v":""},{"$f":"IF(OrigTable!G87=\"\",\"\",ScriptText!$B$1&CHAR(10)&ScriptText!$D$1)","v":""},{"$f":"IF(OrigTable!G87=\"\",\"\",TEXT(OrigTable!G87,\"00\"))","v":""},{"$f":"IF(OrigTable!G87=\"\",\"\",ScriptText!$E$1&CHAR(10)&ScriptText!$C$1)","v":""},87]
["<tr>\n<td>51A,</td>\n</tr>\n\n<tr>\n<td>Notice to a taxpayer the IRS calculated their taxes for them resulting in a balance due of $5.00 or more.</td>\n</tr>\n<tr>\n<td>IMF Notices</td>\n</tr>",{"$f":"IF(OrigTable!A88=\"\",\"\",ScriptText!$B$1&CHAR(10)&ScriptText!$D$1)","v":"<tr>\n<td>"},{"$f":"IF(OrigTable!A88=\"\",\"\",TEXT(OrigTable!A88,\"00\"))","v":"51A,"},{"$f":"IF(OrigTable!A88=\"\",\"\",ScriptText!$E$1&CHAR(10)&ScriptText!$C$1)","v":"</td>\n</tr>"},{"$f":"IF(OrigTable!B88=\"\",\"\",ScriptText!$B$1&CHAR(10)&ScriptText!$D$1)","v":""},{"$f":"IF(OrigTable!B88=\"\",\"\",TEXT(OrigTable!B88,\"00\"))","v":""},{"$f":"IF(OrigTable!B88=\"\",\"\",ScriptText!$E$1&CHAR(10)&ScriptText!C83)","v":""},{"$f":"IF(OrigTable!C88=\"\",\"\",ScriptText!$B$1&CHAR(10)&ScriptText!$D$1)","v":"<tr>\n<td>"},{"$f":"IF(OrigTable!C88=\"\",\"\",IF(LEN(OrigTable!C88)>255,LEFT(OrigTable!C88,250)&\". . .\",OrigTable!C88))","v":"Notice to a taxpayer the IRS calculated their taxes for them resulting in a balance due of $5.00 or more."},{"$f":"IF(OrigTable!C88=\"\",\"\",ScriptText!$E$1&CHAR(10)&ScriptText!$C$1)","v":"</td>\n</tr>"},{"$f":"IF(OrigTable!D88=\"\",\"\",ScriptText!$B$1&CHAR(10)&ScriptText!$D$1)","v":"<tr>\n<td>"},{"$f":"IF(OrigTable!D88=\"\",\"\",TEXT(OrigTable!D88,\"00\"))","v":"IMF Notices"},{"$f":"IF(OrigTable!D88=\"\",\"\",ScriptText!$E$1&CHAR(10)&ScriptText!$C$1)","v":"</td>\n</tr>"},{"$f":"IF(OrigTable!E88=\"\",\"\",ScriptText!$B$1&CHAR(10)&ScriptText!$D$1)","v":""},{"$f":"IF(OrigTable!E88=\"\",\"\",TEXT(OrigTable!E88,\"00\"))","v":""},{"$f":"IF(OrigTable!E88=\"\",\"\",ScriptText!$E$1&CHAR(10)&ScriptText!$C$1)","v":""},{"$f":"IF(OrigTable!F88=\"\",\"\",ScriptText!$B$1&CHAR(10)&ScriptText!$D$1)","v":""},{"$f":"IF(OrigTable!F88=\"\",\"\",TEXT(OrigTable!F88,\"00\"))","v":""},{"$f":"IF(OrigTable!F88=\"\",\"\",ScriptText!$E$1&CHAR(10)&ScriptText!$C$1)","v":""},{"$f":"IF(OrigTable!G88=\"\",\"\",ScriptText!$B$1&CHAR(10)&ScriptText!$D$1)","v":""},{"$f":"IF(OrigTable!G88=\"\",\"\",TEXT(OrigTable!G88,\"00\"))","v":""},{"$f":"IF(OrigTable!G88=\"\",\"\",ScriptText!$E$1&CHAR(10)&ScriptText!$C$1)","v":""},88]
["<tr>\n<td>51B</td>\n</tr>\n\n<tr>\n<td>Notice to a taxpayer the IRS calculated their taxes for them resulting in an overpayment of $1.00 or more.</td>\n</tr>\n<tr>\n<td>IMF Notices</td>\n</tr>",{"$f":"IF(OrigTable!A89=\"\",\"\",ScriptText!$B$1&CHAR(10)&ScriptText!$D$1)","v":"<tr>\n<td>"},{"$f":"IF(OrigTable!A89=\"\",\"\",TEXT(OrigTable!A89,\"00\"))","v":"51B"},{"$f":"IF(OrigTable!A89=\"\",\"\",ScriptText!$E$1&CHAR(10)&ScriptText!$C$1)","v":"</td>\n</tr>"},{"$f":"IF(OrigTable!B89=\"\",\"\",ScriptText!$B$1&CHAR(10)&ScriptText!$D$1)","v":""},{"$f":"IF(OrigTable!B89=\"\",\"\",TEXT(OrigTable!B89,\"00\"))","v":""},{"$f":"IF(OrigTable!B89=\"\",\"\",ScriptText!$E$1&CHAR(10)&ScriptText!C84)","v":""},{"$f":"IF(OrigTable!C89=\"\",\"\",ScriptText!$B$1&CHAR(10)&ScriptText!$D$1)","v":"<tr>\n<td>"},{"$f":"IF(OrigTable!C89=\"\",\"\",IF(LEN(OrigTable!C89)>255,LEFT(OrigTable!C89,250)&\". . .\",OrigTable!C89))","v":"Notice to a taxpayer the IRS calculated their taxes for them resulting in an overpayment of $1.00 or more."},{"$f":"IF(OrigTable!C89=\"\",\"\",ScriptText!$E$1&CHAR(10)&ScriptText!$C$1)","v":"</td>\n</tr>"},{"$f":"IF(OrigTable!D89=\"\",\"\",ScriptText!$B$1&CHAR(10)&ScriptText!$D$1)","v":"<tr>\n<td>"},{"$f":"IF(OrigTable!D89=\"\",\"\",TEXT(OrigTable!D89,\"00\"))","v":"IMF Notices"},{"$f":"IF(OrigTable!D89=\"\",\"\",ScriptText!$E$1&CHAR(10)&ScriptText!$C$1)","v":"</td>\n</tr>"},{"$f":"IF(OrigTable!E89=\"\",\"\",ScriptText!$B$1&CHAR(10)&ScriptText!$D$1)","v":""},{"$f":"IF(OrigTable!E89=\"\",\"\",TEXT(OrigTable!E89,\"00\"))","v":""},{"$f":"IF(OrigTable!E89=\"\",\"\",ScriptText!$E$1&CHAR(10)&ScriptText!$C$1)","v":""},{"$f":"IF(OrigTable!F89=\"\",\"\",ScriptText!$B$1&CHAR(10)&ScriptText!$D$1)","v":""},{"$f":"IF(OrigTable!F89=\"\",\"\",TEXT(OrigTable!F89,\"00\"))","v":""},{"$f":"IF(OrigTable!F89=\"\",\"\",ScriptText!$E$1&CHAR(10)&ScriptText!$C$1)","v":""},{"$f":"IF(OrigTable!G89=\"\",\"\",ScriptText!$B$1&CHAR(10)&ScriptText!$D$1)","v":""},{"$f":"IF(OrigTable!G89=\"\",\"\",TEXT(OrigTable!G89,\"00\"))","v":""},{"$f":"IF(OrigTable!G89=\"\",\"\",ScriptText!$E$1&CHAR(10)&ScriptText!$C$1)","v":""},89]
["<tr>\n<td>51C</td>\n</tr>\n\n<tr>\n<td>Notice to a taxpayer the IRS calculated their taxes for them resulting in a balance due of < $5.00 or an\noverpayment < $1.00.</td>\n</tr>\n<tr>\n<td>IMF Notices</td>\n</tr>",{"$f":"IF(OrigTable!A90=\"\",\"\",ScriptText!$B$1&CHAR(10)&ScriptText!$D$1)","v":"<tr>\n<td>"},{"$f":"IF(OrigTable!A90=\"\",\"\",TEXT(OrigTable!A90,\"00\"))","v":"51C"},{"$f":"IF(OrigTable!A90=\"\",\"\",ScriptText!$E$1&CHAR(10)&ScriptText!$C$1)","v":"</td>\n</tr>"},{"$f":"IF(OrigTable!B90=\"\",\"\",ScriptText!$B$1&CHAR(10)&ScriptText!$D$1)","v":""},{"$f":"IF(OrigTable!B90=\"\",\"\",TEXT(OrigTable!B90,\"00\"))","v":""},{"$f":"IF(OrigTable!B90=\"\",\"\",ScriptText!$E$1&CHAR(10)&ScriptText!C85)","v":""},{"$f":"IF(OrigTable!C90=\"\",\"\",ScriptText!$B$1&CHAR(10)&ScriptText!$D$1)","v":"<tr>\n<td>"},{"$f":"IF(OrigTable!C90=\"\",\"\",IF(LEN(OrigTable!C90)>255,LEFT(OrigTable!C90,250)&\". . .\",OrigTable!C90))","v":"Notice to a taxpayer the IRS calculated their taxes for them resulting in a balance due of < $5.00 or an\noverpayment < $1.00."},{"$f":"IF(OrigTable!C90=\"\",\"\",ScriptText!$E$1&CHAR(10)&ScriptText!$C$1)","v":"</td>\n</tr>"},{"$f":"IF(OrigTable!D90=\"\",\"\",ScriptText!$B$1&CHAR(10)&ScriptText!$D$1)","v":"<tr>\n<td>"},{"$f":"IF(OrigTable!D90=\"\",\"\",TEXT(OrigTable!D90,\"00\"))","v":"IMF Notices"},{"$f":"IF(OrigTable!D90=\"\",\"\",ScriptText!$E$1&CHAR(10)&ScriptText!$C$1)","v":"</td>\n</tr>"},{"$f":"IF(OrigTable!E90=\"\",\"\",ScriptText!$B$1&CHAR(10)&ScriptText!$D$1)","v":""},{"$f":"IF(OrigTable!E90=\"\",\"\",TEXT(OrigTable!E90,\"00\"))","v":""},{"$f":"IF(OrigTable!E90=\"\",\"\",ScriptText!$E$1&CHAR(10)&ScriptText!$C$1)","v":""},{"$f":"IF(OrigTable!F90=\"\",\"\",ScriptText!$B$1&CHAR(10)&ScriptText!$D$1)","v":""},{"$f":"IF(OrigTable!F90=\"\",\"\",TEXT(OrigTable!F90,\"00\"))","v":""},{"$f":"IF(OrigTable!F90=\"\",\"\",ScriptText!$E$1&CHAR(10)&ScriptText!$C$1)","v":""},{"$f":"IF(OrigTable!G90=\"\",\"\",ScriptText!$B$1&CHAR(10)&ScriptText!$D$1)","v":""},{"$f":"IF(OrigTable!G90=\"\",\"\",TEXT(OrigTable!G90,\"00\"))","v":""},{"$f":"IF(OrigTable!G90=\"\",\"\",ScriptText!$E$1&CHAR(10)&ScriptText!$C$1)","v":""},90]
["<tr>\n<td>52</td>\n</tr>\n\n<tr>\n<td>Notice to taxpayer explaining a correction to reduce taxable self-employment earnings.</td>\n</tr>\n<tr>\n<td>IMF Notices</td>\n</tr>",{"$f":"IF(OrigTable!A91=\"\",\"\",ScriptText!$B$1&CHAR(10)&ScriptText!$D$1)","v":"<tr>\n<td>"},{"$f":"IF(OrigTable!A91=\"\",\"\",TEXT(OrigTable!A91,\"00\"))","v":"52"},{"$f":"IF(OrigTable!A91=\"\",\"\",ScriptText!$E$1&CHAR(10)&ScriptText!$C$1)","v":"</td>\n</tr>"},{"$f":"IF(OrigTable!B91=\"\",\"\",ScriptText!$B$1&CHAR(10)&ScriptText!$D$1)","v":""},{"$f":"IF(OrigTable!B91=\"\",\"\",TEXT(OrigTable!B91,\"00\"))","v":""},{"$f":"IF(OrigTable!B91=\"\",\"\",ScriptText!$E$1&CHAR(10)&ScriptText!C86)","v":""},{"$f":"IF(OrigTable!C91=\"\",\"\",ScriptText!$B$1&CHAR(10)&ScriptText!$D$1)","v":"<tr>\n<td>"},{"$f":"IF(OrigTable!C91=\"\",\"\",IF(LEN(OrigTable!C91)>255,LEFT(OrigTable!C91,250)&\". . .\",OrigTable!C91))","v":"Notice to taxpayer explaining a correction to reduce taxable self-employment earnings."},{"$f":"IF(OrigTable!C91=\"\",\"\",ScriptText!$E$1&CHAR(10)&ScriptText!$C$1)","v":"</td>\n</tr>"},{"$f":"IF(OrigTable!D91=\"\",\"\",ScriptText!$B$1&CHAR(10)&ScriptText!$D$1)","v":"<tr>\n<td>"},{"$f":"IF(OrigTable!D91=\"\",\"\",TEXT(OrigTable!D91,\"00\"))","v":"IMF Notices"},{"$f":"IF(OrigTable!D91=\"\",\"\",ScriptText!$E$1&CHAR(10)&ScriptText!$C$1)","v":"</td>\n</tr>"},{"$f":"IF(OrigTable!E91=\"\",\"\",ScriptText!$B$1&CHAR(10)&ScriptText!$D$1)","v":""},{"$f":"IF(OrigTable!E91=\"\",\"\",TEXT(OrigTable!E91,\"00\"))","v":""},{"$f":"IF(OrigTable!E91=\"\",\"\",ScriptText!$E$1&CHAR(10)&ScriptText!$C$1)","v":""},{"$f":"IF(OrigTable!F91=\"\",\"\",ScriptText!$B$1&CHAR(10)&ScriptText!$D$1)","v":""},{"$f":"IF(OrigTable!F91=\"\",\"\",TEXT(OrigTable!F91,\"00\"))","v":""},{"$f":"IF(OrigTable!F91=\"\",\"\",ScriptText!$E$1&CHAR(10)&ScriptText!$C$1)","v":""},{"$f":"IF(OrigTable!G91=\"\",\"\",ScriptText!$B$1&CHAR(10)&ScriptText!$D$1)","v":""},{"$f":"IF(OrigTable!G91=\"\",\"\",TEXT(OrigTable!G91,\"00\"))","v":""},{"$f":"IF(OrigTable!G91=\"\",\"\",ScriptText!$E$1&CHAR(10)&ScriptText!$C$1)","v":""},91]
["<tr>\n<td>53</td>\n</tr>\n\n<tr>\n<td>Notice to taxpayer that the IRS was unable to direct deposit and a paper refund check will be sent by mail.</td>\n</tr>\n<tr>\n<td>IMF Notices</td>\n</tr>",{"$f":"IF(OrigTable!A92=\"\",\"\",ScriptText!$B$1&CHAR(10)&ScriptText!$D$1)","v":"<tr>\n<td>"},{"$f":"IF(OrigTable!A92=\"\",\"\",TEXT(OrigTable!A92,\"00\"))","v":"53"},{"$f":"IF(OrigTable!A92=\"\",\"\",ScriptText!$E$1&CHAR(10)&ScriptText!$C$1)","v":"</td>\n</tr>"},{"$f":"IF(OrigTable!B92=\"\",\"\",ScriptText!$B$1&CHAR(10)&ScriptText!$D$1)","v":""},{"$f":"IF(OrigTable!B92=\"\",\"\",TEXT(OrigTable!B92,\"00\"))","v":""},{"$f":"IF(OrigTable!B92=\"\",\"\",ScriptText!$E$1&CHAR(10)&ScriptText!C87)","v":""},{"$f":"IF(OrigTable!C92=\"\",\"\",ScriptText!$B$1&CHAR(10)&ScriptText!$D$1)","v":"<tr>\n<td>"},{"$f":"IF(OrigTable!C92=\"\",\"\",IF(LEN(OrigTable!C92)>255,LEFT(OrigTable!C92,250)&\". . .\",OrigTable!C92))","v":"Notice to taxpayer that the IRS was unable to direct deposit and a paper refund check will be sent by mail."},{"$f":"IF(OrigTable!C92=\"\",\"\",ScriptText!$E$1&CHAR(10)&ScriptText!$C$1)","v":"</td>\n</tr>"},{"$f":"IF(OrigTable!D92=\"\",\"\",ScriptText!$B$1&CHAR(10)&ScriptText!$D$1)","v":"<tr>\n<td>"},{"$f":"IF(OrigTable!D92=\"\",\"\",TEXT(OrigTable!D92,\"00\"))","v":"IMF Notices"},{"$f":"IF(OrigTable!D92=\"\",\"\",ScriptText!$E$1&CHAR(10)&ScriptText!$C$1)","v":"</td>\n</tr>"},{"$f":"IF(OrigTable!E92=\"\",\"\",ScriptText!$B$1&CHAR(10)&ScriptText!$D$1)","v":""},{"$f":"IF(OrigTable!E92=\"\",\"\",TEXT(OrigTable!E92,\"00\"))","v":""},{"$f":"IF(OrigTable!E92=\"\",\"\",ScriptText!$E$1&CHAR(10)&ScriptText!$C$1)","v":""},{"$f":"IF(OrigTable!F92=\"\",\"\",ScriptText!$B$1&CHAR(10)&ScriptText!$D$1)","v":""},{"$f":"IF(OrigTable!F92=\"\",\"\",TEXT(OrigTable!F92,\"00\"))","v":""},{"$f":"IF(OrigTable!F92=\"\",\"\",ScriptText!$E$1&CHAR(10)&ScriptText!$C$1)","v":""},{"$f":"IF(OrigTable!G92=\"\",\"\",ScriptText!$B$1&CHAR(10)&ScriptText!$D$1)","v":""},{"$f":"IF(OrigTable!G92=\"\",\"\",TEXT(OrigTable!G92,\"00\"))","v":""},{"$f":"IF(OrigTable!G92=\"\",\"\",ScriptText!$E$1&CHAR(10)&ScriptText!$C$1)","v":""},92]
["<tr>\n<td>53A</td>\n</tr>\n\n<tr>\n<td>Notice to taxpayer that the IRS was unable to direct deposit because of rejection by the financial institution, and we are researching the taxpayer account.</td>\n</tr>\n<tr>\n<td>IMF Notices</td>\n</tr>",{"$f":"IF(OrigTable!A93=\"\",\"\",ScriptText!$B$1&CHAR(10)&ScriptText!$D$1)","v":"<tr>\n<td>"},{"$f":"IF(OrigTable!A93=\"\",\"\",TEXT(OrigTable!A93,\"00\"))","v":"53A"},{"$f":"IF(OrigTable!A93=\"\",\"\",ScriptText!$E$1&CHAR(10)&ScriptText!$C$1)","v":"</td>\n</tr>"},{"$f":"IF(OrigTable!B93=\"\",\"\",ScriptText!$B$1&CHAR(10)&ScriptText!$D$1)","v":""},{"$f":"IF(OrigTable!B93=\"\",\"\",TEXT(OrigTable!B93,\"00\"))","v":""},{"$f":"IF(OrigTable!B93=\"\",\"\",ScriptText!$E$1&CHAR(10)&ScriptText!C88)","v":""},{"$f":"IF(OrigTable!C93=\"\",\"\",ScriptText!$B$1&CHAR(10)&ScriptText!$D$1)","v":"<tr>\n<td>"},{"$f":"IF(OrigTable!C93=\"\",\"\",IF(LEN(OrigTable!C93)>255,LEFT(OrigTable!C93,250)&\". . .\",OrigTable!C93))","v":"Notice to taxpayer that the IRS was unable to direct deposit because of rejection by the financial institution, and we are researching the taxpayer account."},{"$f":"IF(OrigTable!C93=\"\",\"\",ScriptText!$E$1&CHAR(10)&ScriptText!$C$1)","v":"</td>\n</tr>"},{"$f":"IF(OrigTable!D93=\"\",\"\",ScriptText!$B$1&CHAR(10)&ScriptText!$D$1)","v":"<tr>\n<td>"},{"$f":"IF(OrigTable!D93=\"\",\"\",TEXT(OrigTable!D93,\"00\"))","v":"IMF Notices"},{"$f":"IF(OrigTable!D93=\"\",\"\",ScriptText!$E$1&CHAR(10)&ScriptText!$C$1)","v":"</td>\n</tr>"},{"$f":"IF(OrigTable!E93=\"\",\"\",ScriptText!$B$1&CHAR(10)&ScriptText!$D$1)","v":""},{"$f":"IF(OrigTable!E93=\"\",\"\",TEXT(OrigTable!E93,\"00\"))","v":""},{"$f":"IF(OrigTable!E93=\"\",\"\",ScriptText!$E$1&CHAR(10)&ScriptText!$C$1)","v":""},{"$f":"IF(OrigTable!F93=\"\",\"\",ScriptText!$B$1&CHAR(10)&ScriptText!$D$1)","v":""},{"$f":"IF(OrigTable!F93=\"\",\"\",TEXT(OrigTable!F93,\"00\"))","v":""},{"$f":"IF(OrigTable!F93=\"\",\"\",ScriptText!$E$1&CHAR(10)&ScriptText!$C$1)","v":""},{"$f":"IF(OrigTable!G93=\"\",\"\",ScriptText!$B$1&CHAR(10)&ScriptText!$D$1)","v":""},{"$f":"IF(OrigTable!G93=\"\",\"\",TEXT(OrigTable!G93,\"00\"))","v":""},{"$f":"IF(OrigTable!G93=\"\",\"\",ScriptText!$E$1&CHAR(10)&ScriptText!$C$1)","v":""},93]
["<tr>\n<td>53B</td>\n</tr>\n\n<tr>\n<td>Direct Deposit refund rejected by financial institution, paper ck issued</td>\n</tr>\n<tr>\n<td>IMF Notices</td>\n</tr>",{"$f":"IF(OrigTable!A94=\"\",\"\",ScriptText!$B$1&CHAR(10)&ScriptText!$D$1)","v":"<tr>\n<td>"},{"$f":"IF(OrigTable!A94=\"\",\"\",TEXT(OrigTable!A94,\"00\"))","v":"53B"},{"$f":"IF(OrigTable!A94=\"\",\"\",ScriptText!$E$1&CHAR(10)&ScriptText!$C$1)","v":"</td>\n</tr>"},{"$f":"IF(OrigTable!B94=\"\",\"\",ScriptText!$B$1&CHAR(10)&ScriptText!$D$1)","v":""},{"$f":"IF(OrigTable!B94=\"\",\"\",TEXT(OrigTable!B94,\"00\"))","v":""},{"$f":"IF(OrigTable!B94=\"\",\"\",ScriptText!$E$1&CHAR(10)&ScriptText!C89)","v":""},{"$f":"IF(OrigTable!C94=\"\",\"\",ScriptText!$B$1&CHAR(10)&ScriptText!$D$1)","v":"<tr>\n<td>"},{"$f":"IF(OrigTable!C94=\"\",\"\",IF(LEN(OrigTable!C94)>255,LEFT(OrigTable!C94,250)&\". . .\",OrigTable!C94))","v":"Direct Deposit refund rejected by financial institution, paper ck issued"},{"$f":"IF(OrigTable!C94=\"\",\"\",ScriptText!$E$1&CHAR(10)&ScriptText!$C$1)","v":"</td>\n</tr>"},{"$f":"IF(OrigTable!D94=\"\",\"\",ScriptText!$B$1&CHAR(10)&ScriptText!$D$1)","v":"<tr>\n<td>"},{"$f":"IF(OrigTable!D94=\"\",\"\",TEXT(OrigTable!D94,\"00\"))","v":"IMF Notices"},{"$f":"IF(OrigTable!D94=\"\",\"\",ScriptText!$E$1&CHAR(10)&ScriptText!$C$1)","v":"</td>\n</tr>"},{"$f":"IF(OrigTable!E94=\"\",\"\",ScriptText!$B$1&CHAR(10)&ScriptText!$D$1)","v":""},{"$f":"IF(OrigTable!E94=\"\",\"\",TEXT(OrigTable!E94,\"00\"))","v":""},{"$f":"IF(OrigTable!E94=\"\",\"\",ScriptText!$E$1&CHAR(10)&ScriptText!$C$1)","v":""},{"$f":"IF(OrigTable!F94=\"\",\"\",ScriptText!$B$1&CHAR(10)&ScriptText!$D$1)","v":""},{"$f":"IF(OrigTable!F94=\"\",\"\",TEXT(OrigTable!F94,\"00\"))","v":""},{"$f":"IF(OrigTable!F94=\"\",\"\",ScriptText!$E$1&CHAR(10)&ScriptText!$C$1)","v":""},{"$f":"IF(OrigTable!G94=\"\",\"\",ScriptText!$B$1&CHAR(10)&ScriptText!$D$1)","v":""},{"$f":"IF(OrigTable!G94=\"\",\"\",TEXT(OrigTable!G94,\"00\"))","v":""},{"$f":"IF(OrigTable!G94=\"\",\"\",ScriptText!$E$1&CHAR(10)&ScriptText!$C$1)","v":""},94]
["<tr>\n<td>53C</td>\n</tr>\n\n<tr>\n<td>Direct Deposit refund rejected by financial institution, we are researching your request</td>\n</tr>\n<tr>\n<td>IMF Notices</td>\n</tr>",{"$f":"IF(OrigTable!A95=\"\",\"\",ScriptText!$B$1&CHAR(10)&ScriptText!$D$1)","v":"<tr>\n<td>"},{"$f":"IF(OrigTable!A95=\"\",\"\",TEXT(OrigTable!A95,\"00\"))","v":"53C"},{"$f":"IF(OrigTable!A95=\"\",\"\",ScriptText!$E$1&CHAR(10)&ScriptText!$C$1)","v":"</td>\n</tr>"},{"$f":"IF(OrigTable!B95=\"\",\"\",ScriptText!$B$1&CHAR(10)&ScriptText!$D$1)","v":""},{"$f":"IF(OrigTable!B95=\"\",\"\",TEXT(OrigTable!B95,\"00\"))","v":""},{"$f":"IF(OrigTable!B95=\"\",\"\",ScriptText!$E$1&CHAR(10)&ScriptText!C90)","v":""},{"$f":"IF(OrigTable!C95=\"\",\"\",ScriptText!$B$1&CHAR(10)&ScriptText!$D$1)","v":"<tr>\n<td>"},{"$f":"IF(OrigTable!C95=\"\",\"\",IF(LEN(OrigTable!C95)>255,LEFT(OrigTable!C95,250)&\". . .\",OrigTable!C95))","v":"Direct Deposit refund rejected by financial institution, we are researching your request"},{"$f":"IF(OrigTable!C95=\"\",\"\",ScriptText!$E$1&CHAR(10)&ScriptText!$C$1)","v":"</td>\n</tr>"},{"$f":"IF(OrigTable!D95=\"\",\"\",ScriptText!$B$1&CHAR(10)&ScriptText!$D$1)","v":"<tr>\n<td>"},{"$f":"IF(OrigTable!D95=\"\",\"\",TEXT(OrigTable!D95,\"00\"))","v":"IMF Notices"},{"$f":"IF(OrigTable!D95=\"\",\"\",ScriptText!$E$1&CHAR(10)&ScriptText!$C$1)","v":"</td>\n</tr>"},{"$f":"IF(OrigTable!E95=\"\",\"\",ScriptText!$B$1&CHAR(10)&ScriptText!$D$1)","v":""},{"$f":"IF(OrigTable!E95=\"\",\"\",TEXT(OrigTable!E95,\"00\"))","v":""},{"$f":"IF(OrigTable!E95=\"\",\"\",ScriptText!$E$1&CHAR(10)&ScriptText!$C$1)","v":""},{"$f":"IF(OrigTable!F95=\"\",\"\",ScriptText!$B$1&CHAR(10)&ScriptText!$D$1)","v":""},{"$f":"IF(OrigTable!F95=\"\",\"\",TEXT(OrigTable!F95,\"00\"))","v":""},{"$f":"IF(OrigTable!F95=\"\",\"\",ScriptText!$E$1&CHAR(10)&ScriptText!$C$1)","v":""},{"$f":"IF(OrigTable!G95=\"\",\"\",ScriptText!$B$1&CHAR(10)&ScriptText!$D$1)","v":""},{"$f":"IF(OrigTable!G95=\"\",\"\",TEXT(OrigTable!G95,\"00\"))","v":""},{"$f":"IF(OrigTable!G95=\"\",\"\",ScriptText!$E$1&CHAR(10)&ScriptText!$C$1)","v":""},95]
["<tr>\n<td>53D</td>\n</tr>\n\n<tr>\n<td>We can't direct deposit as too many requests to the same account</td>\n</tr>\n<tr>\n<td>IMF Notices</td>\n</tr>",{"$f":"IF(OrigTable!A96=\"\",\"\",ScriptText!$B$1&CHAR(10)&ScriptText!$D$1)","v":"<tr>\n<td>"},{"$f":"IF(OrigTable!A96=\"\",\"\",TEXT(OrigTable!A96,\"00\"))","v":"53D"},{"$f":"IF(OrigTable!A96=\"\",\"\",ScriptText!$E$1&CHAR(10)&ScriptText!$C$1)","v":"</td>\n</tr>"},{"$f":"IF(OrigTable!B96=\"\",\"\",ScriptText!$B$1&CHAR(10)&ScriptText!$D$1)","v":""},{"$f":"IF(OrigTable!B96=\"\",\"\",TEXT(OrigTable!B96,\"00\"))","v":""},{"$f":"IF(OrigTable!B96=\"\",\"\",ScriptText!$E$1&CHAR(10)&ScriptText!C91)","v":""},{"$f":"IF(OrigTable!C96=\"\",\"\",ScriptText!$B$1&CHAR(10)&ScriptText!$D$1)","v":"<tr>\n<td>"},{"$f":"IF(OrigTable!C96=\"\",\"\",IF(LEN(OrigTable!C96)>255,LEFT(OrigTable!C96,250)&\". . .\",OrigTable!C96))","v":"We can't direct deposit as too many requests to the same account"},{"$f":"IF(OrigTable!C96=\"\",\"\",ScriptText!$E$1&CHAR(10)&ScriptText!$C$1)","v":"</td>\n</tr>"},{"$f":"IF(OrigTable!D96=\"\",\"\",ScriptText!$B$1&CHAR(10)&ScriptText!$D$1)","v":"<tr>\n<td>"},{"$f":"IF(OrigTable!D96=\"\",\"\",TEXT(OrigTable!D96,\"00\"))","v":"IMF Notices"},{"$f":"IF(OrigTable!D96=\"\",\"\",ScriptText!$E$1&CHAR(10)&ScriptText!$C$1)","v":"</td>\n</tr>"},{"$f":"IF(OrigTable!E96=\"\",\"\",ScriptText!$B$1&CHAR(10)&ScriptText!$D$1)","v":""},{"$f":"IF(OrigTable!E96=\"\",\"\",TEXT(OrigTable!E96,\"00\"))","v":""},{"$f":"IF(OrigTable!E96=\"\",\"\",ScriptText!$E$1&CHAR(10)&ScriptText!$C$1)","v":""},{"$f":"IF(OrigTable!F96=\"\",\"\",ScriptText!$B$1&CHAR(10)&ScriptText!$D$1)","v":""},{"$f":"IF(OrigTable!F96=\"\",\"\",TEXT(OrigTable!F96,\"00\"))","v":""},{"$f":"IF(OrigTable!F96=\"\",\"\",ScriptText!$E$1&CHAR(10)&ScriptText!$C$1)","v":""},{"$f":"IF(OrigTable!G96=\"\",\"\",ScriptText!$B$1&CHAR(10)&ScriptText!$D$1)","v":""},{"$f":"IF(OrigTable!G96=\"\",\"\",TEXT(OrigTable!G96,\"00\"))","v":""},{"$f":"IF(OrigTable!G96=\"\",\"\",ScriptText!$E$1&CHAR(10)&ScriptText!$C$1)","v":""},96]
["<tr>\n<td>54B</td>\n</tr>\n\n<tr>\n<td>Notice to taxpayer that there is a problem with the name and SSN on the return, refund delayed.</td>\n</tr>\n<tr>\n<td>IMF Notices</td>\n</tr>",{"$f":"IF(OrigTable!A97=\"\",\"\",ScriptText!$B$1&CHAR(10)&ScriptText!$D$1)","v":"<tr>\n<td>"},{"$f":"IF(OrigTable!A97=\"\",\"\",TEXT(OrigTable!A97,\"00\"))","v":"54B"},{"$f":"IF(OrigTable!A97=\"\",\"\",ScriptText!$E$1&CHAR(10)&ScriptText!$C$1)","v":"</td>\n</tr>"},{"$f":"IF(OrigTable!B97=\"\",\"\",ScriptText!$B$1&CHAR(10)&ScriptText!$D$1)","v":""},{"$f":"IF(OrigTable!B97=\"\",\"\",TEXT(OrigTable!B97,\"00\"))","v":""},{"$f":"IF(OrigTable!B97=\"\",\"\",ScriptText!$E$1&CHAR(10)&ScriptText!C92)","v":""},{"$f":"IF(OrigTable!C97=\"\",\"\",ScriptText!$B$1&CHAR(10)&ScriptText!$D$1)","v":"<tr>\n<td>"},{"$f":"IF(OrigTable!C97=\"\",\"\",IF(LEN(OrigTable!C97)>255,LEFT(OrigTable!C97,250)&\". . .\",OrigTable!C97))","v":"Notice to taxpayer that there is a problem with the name and SSN on the return, refund delayed."},{"$f":"IF(OrigTable!C97=\"\",\"\",ScriptText!$E$1&CHAR(10)&ScriptText!$C$1)","v":"</td>\n</tr>"},{"$f":"IF(OrigTable!D97=\"\",\"\",ScriptText!$B$1&CHAR(10)&ScriptText!$D$1)","v":"<tr>\n<td>"},{"$f":"IF(OrigTable!D97=\"\",\"\",TEXT(OrigTable!D97,\"00\"))","v":"IMF Notices"},{"$f":"IF(OrigTable!D97=\"\",\"\",ScriptText!$E$1&CHAR(10)&ScriptText!$C$1)","v":"</td>\n</tr>"},{"$f":"IF(OrigTable!E97=\"\",\"\",ScriptText!$B$1&CHAR(10)&ScriptText!$D$1)","v":""},{"$f":"IF(OrigTable!E97=\"\",\"\",TEXT(OrigTable!E97,\"00\"))","v":""},{"$f":"IF(OrigTable!E97=\"\",\"\",ScriptText!$E$1&CHAR(10)&ScriptText!$C$1)","v":""},{"$f":"IF(OrigTable!F97=\"\",\"\",ScriptText!$B$1&CHAR(10)&ScriptText!$D$1)","v":""},{"$f":"IF(OrigTable!F97=\"\",\"\",TEXT(OrigTable!F97,\"00\"))","v":""},{"$f":"IF(OrigTable!F97=\"\",\"\",ScriptText!$E$1&CHAR(10)&ScriptText!$C$1)","v":""},{"$f":"IF(OrigTable!G97=\"\",\"\",ScriptText!$B$1&CHAR(10)&ScriptText!$D$1)","v":""},{"$f":"IF(OrigTable!G97=\"\",\"\",TEXT(OrigTable!G97,\"00\"))","v":""},{"$f":"IF(OrigTable!G97=\"\",\"\",ScriptText!$E$1&CHAR(10)&ScriptText!$C$1)","v":""},97]
["<tr>\n<td>54E</td>\n</tr>\n\n<tr>\n<td>Notice of inquiry regarding a problem with the name and SSN on estimated tax payments.</td>\n</tr>\n<tr>\n<td>IMF Notices</td>\n</tr>",{"$f":"IF(OrigTable!A98=\"\",\"\",ScriptText!$B$1&CHAR(10)&ScriptText!$D$1)","v":"<tr>\n<td>"},{"$f":"IF(OrigTable!A98=\"\",\"\",TEXT(OrigTable!A98,\"00\"))","v":"54E"},{"$f":"IF(OrigTable!A98=\"\",\"\",ScriptText!$E$1&CHAR(10)&ScriptText!$C$1)","v":"</td>\n</tr>"},{"$f":"IF(OrigTable!B98=\"\",\"\",ScriptText!$B$1&CHAR(10)&ScriptText!$D$1)","v":""},{"$f":"IF(OrigTable!B98=\"\",\"\",TEXT(OrigTable!B98,\"00\"))","v":""},{"$f":"IF(OrigTable!B98=\"\",\"\",ScriptText!$E$1&CHAR(10)&ScriptText!C93)","v":""},{"$f":"IF(OrigTable!C98=\"\",\"\",ScriptText!$B$1&CHAR(10)&ScriptText!$D$1)","v":"<tr>\n<td>"},{"$f":"IF(OrigTable!C98=\"\",\"\",IF(LEN(OrigTable!C98)>255,LEFT(OrigTable!C98,250)&\". . .\",OrigTable!C98))","v":"Notice of inquiry regarding a problem with the name and SSN on estimated tax payments."},{"$f":"IF(OrigTable!C98=\"\",\"\",ScriptText!$E$1&CHAR(10)&ScriptText!$C$1)","v":"</td>\n</tr>"},{"$f":"IF(OrigTable!D98=\"\",\"\",ScriptText!$B$1&CHAR(10)&ScriptText!$D$1)","v":"<tr>\n<td>"},{"$f":"IF(OrigTable!D98=\"\",\"\",TEXT(OrigTable!D98,\"00\"))","v":"IMF Notices"},{"$f":"IF(OrigTable!D98=\"\",\"\",ScriptText!$E$1&CHAR(10)&ScriptText!$C$1)","v":"</td>\n</tr>"},{"$f":"IF(OrigTable!E98=\"\",\"\",ScriptText!$B$1&CHAR(10)&ScriptText!$D$1)","v":""},{"$f":"IF(OrigTable!E98=\"\",\"\",TEXT(OrigTable!E98,\"00\"))","v":""},{"$f":"IF(OrigTable!E98=\"\",\"\",ScriptText!$E$1&CHAR(10)&ScriptText!$C$1)","v":""},{"$f":"IF(OrigTable!F98=\"\",\"\",ScriptText!$B$1&CHAR(10)&ScriptText!$D$1)","v":""},{"$f":"IF(OrigTable!F98=\"\",\"\",TEXT(OrigTable!F98,\"00\"))","v":""},{"$f":"IF(OrigTable!F98=\"\",\"\",ScriptText!$E$1&CHAR(10)&ScriptText!$C$1)","v":""},{"$f":"IF(OrigTable!G98=\"\",\"\",ScriptText!$B$1&CHAR(10)&ScriptText!$D$1)","v":""},{"$f":"IF(OrigTable!G98=\"\",\"\",TEXT(OrigTable!G98,\"00\"))","v":""},{"$f":"IF(OrigTable!G98=\"\",\"\",ScriptText!$E$1&CHAR(10)&ScriptText!$C$1)","v":""},98]
["<tr>\n<td>54G</td>\n</tr>\n\n<tr>\n<td>Notice of inquiry regarding the name and SSN on a tax return with an even balance due.</td>\n</tr>\n<tr>\n<td>IMF Notices</td>\n</tr>",{"$f":"IF(OrigTable!A99=\"\",\"\",ScriptText!$B$1&CHAR(10)&ScriptText!$D$1)","v":"<tr>\n<td>"},{"$f":"IF(OrigTable!A99=\"\",\"\",TEXT(OrigTable!A99,\"00\"))","v":"54G"},{"$f":"IF(OrigTable!A99=\"\",\"\",ScriptText!$E$1&CHAR(10)&ScriptText!$C$1)","v":"</td>\n</tr>"},{"$f":"IF(OrigTable!B99=\"\",\"\",ScriptText!$B$1&CHAR(10)&ScriptText!$D$1)","v":""},{"$f":"IF(OrigTable!B99=\"\",\"\",TEXT(OrigTable!B99,\"00\"))","v":""},{"$f":"IF(OrigTable!B99=\"\",\"\",ScriptText!$E$1&CHAR(10)&ScriptText!C94)","v":""},{"$f":"IF(OrigTable!C99=\"\",\"\",ScriptText!$B$1&CHAR(10)&ScriptText!$D$1)","v":"<tr>\n<td>"},{"$f":"IF(OrigTable!C99=\"\",\"\",IF(LEN(OrigTable!C99)>255,LEFT(OrigTable!C99,250)&\". . .\",OrigTable!C99))","v":"Notice of inquiry regarding the name and SSN on a tax return with an even balance due."},{"$f":"IF(OrigTable!C99=\"\",\"\",ScriptText!$E$1&CHAR(10)&ScriptText!$C$1)","v":"</td>\n</tr>"},{"$f":"IF(OrigTable!D99=\"\",\"\",ScriptText!$B$1&CHAR(10)&ScriptText!$D$1)","v":"<tr>\n<td>"},{"$f":"IF(OrigTable!D99=\"\",\"\",TEXT(OrigTable!D99,\"00\"))","v":"IMF Notices"},{"$f":"IF(OrigTable!D99=\"\",\"\",ScriptText!$E$1&CHAR(10)&ScriptText!$C$1)","v":"</td>\n</tr>"},{"$f":"IF(OrigTable!E99=\"\",\"\",ScriptText!$B$1&CHAR(10)&ScriptText!$D$1)","v":""},{"$f":"IF(OrigTable!E99=\"\",\"\",TEXT(OrigTable!E99,\"00\"))","v":""},{"$f":"IF(OrigTable!E99=\"\",\"\",ScriptText!$E$1&CHAR(10)&ScriptText!$C$1)","v":""},{"$f":"IF(OrigTable!F99=\"\",\"\",ScriptText!$B$1&CHAR(10)&ScriptText!$D$1)","v":""},{"$f":"IF(OrigTable!F99=\"\",\"\",TEXT(OrigTable!F99,\"00\"))","v":""},{"$f":"IF(OrigTable!F99=\"\",\"\",ScriptText!$E$1&CHAR(10)&ScriptText!$C$1)","v":""},{"$f":"IF(OrigTable!G99=\"\",\"\",ScriptText!$B$1&CHAR(10)&ScriptText!$D$1)","v":""},{"$f":"IF(OrigTable!G99=\"\",\"\",TEXT(OrigTable!G99,\"00\"))","v":""},{"$f":"IF(OrigTable!G99=\"\",\"\",ScriptText!$E$1&CHAR(10)&ScriptText!$C$1)","v":""},99]
["<tr>\n<td>54Q</td>\n</tr>\n\n<tr>\n<td>Second notice of inquiry regarding name and SSN on a tax return with a possible refund.</td>\n</tr>\n<tr>\n<td>IMF Notices</td>\n</tr>",{"$f":"IF(OrigTable!A100=\"\",\"\",ScriptText!$B$1&CHAR(10)&ScriptText!$D$1)","v":"<tr>\n<td>"},{"$f":"IF(OrigTable!A100=\"\",\"\",TEXT(OrigTable!A100,\"00\"))","v":"54Q"},{"$f":"IF(OrigTable!A100=\"\",\"\",ScriptText!$E$1&CHAR(10)&ScriptText!$C$1)","v":"</td>\n</tr>"},{"$f":"IF(OrigTable!B100=\"\",\"\",ScriptText!$B$1&CHAR(10)&ScriptText!$D$1)","v":""},{"$f":"IF(OrigTable!B100=\"\",\"\",TEXT(OrigTable!B100,\"00\"))","v":""},{"$f":"IF(OrigTable!B100=\"\",\"\",ScriptText!$E$1&CHAR(10)&ScriptText!C95)","v":""},{"$f":"IF(OrigTable!C100=\"\",\"\",ScriptText!$B$1&CHAR(10)&ScriptText!$D$1)","v":"<tr>\n<td>"},{"$f":"IF(OrigTable!C100=\"\",\"\",IF(LEN(OrigTable!C100)>255,LEFT(OrigTable!C100,250)&\". . .\",OrigTable!C100))","v":"Second notice of inquiry regarding name and SSN on a tax return with a possible refund."},{"$f":"IF(OrigTable!C100=\"\",\"\",ScriptText!$E$1&CHAR(10)&ScriptText!$C$1)","v":"</td>\n</tr>"},{"$f":"IF(OrigTable!D100=\"\",\"\",ScriptText!$B$1&CHAR(10)&ScriptText!$D$1)","v":"<tr>\n<td>"},{"$f":"IF(OrigTable!D100=\"\",\"\",TEXT(OrigTable!D100,\"00\"))","v":"IMF Notices"},{"$f":"IF(OrigTable!D100=\"\",\"\",ScriptText!$E$1&CHAR(10)&ScriptText!$C$1)","v":"</td>\n</tr>"},{"$f":"IF(OrigTable!E100=\"\",\"\",ScriptText!$B$1&CHAR(10)&ScriptText!$D$1)","v":""},{"$f":"IF(OrigTable!E100=\"\",\"\",TEXT(OrigTable!E100,\"00\"))","v":""},{"$f":"IF(OrigTable!E100=\"\",\"\",ScriptText!$E$1&CHAR(10)&ScriptText!$C$1)","v":""},{"$f":"IF(OrigTable!F100=\"\",\"\",ScriptText!$B$1&CHAR(10)&ScriptText!$D$1)","v":""},{"$f":"IF(OrigTable!F100=\"\",\"\",TEXT(OrigTable!F100,\"00\"))","v":""},{"$f":"IF(OrigTable!F100=\"\",\"\",ScriptText!$E$1&CHAR(10)&ScriptText!$C$1)","v":""},{"$f":"IF(OrigTable!G100=\"\",\"\",ScriptText!$B$1&CHAR(10)&ScriptText!$D$1)","v":""},{"$f":"IF(OrigTable!G100=\"\",\"\",TEXT(OrigTable!G100,\"00\"))","v":""},{"$f":"IF(OrigTable!G100=\"\",\"\",ScriptText!$E$1&CHAR(10)&ScriptText!$C$1)","v":""},100]
["<tr>\n<td>55</td>\n</tr>\n\n<tr>\n<td>Campus notice only: Issued to inform the Campus that a transaction for a Form 5344 adjustment posts (DC47) with a DLN in a 790-799 or 900-999 blocking series to cause association of the original return with an adjustment made utilizing a taxpayer’s r. . .</td>\n</tr>\n<tr>\n<td>IMF Notices</td>\n</tr>",{"$f":"IF(OrigTable!A101=\"\",\"\",ScriptText!$B$1&CHAR(10)&ScriptText!$D$1)","v":"<tr>\n<td>"},{"$f":"IF(OrigTable!A101=\"\",\"\",TEXT(OrigTable!A101,\"00\"))","v":"55"},{"$f":"IF(OrigTable!A101=\"\",\"\",ScriptText!$E$1&CHAR(10)&ScriptText!$C$1)","v":"</td>\n</tr>"},{"$f":"IF(OrigTable!B101=\"\",\"\",ScriptText!$B$1&CHAR(10)&ScriptText!$D$1)","v":""},{"$f":"IF(OrigTable!B101=\"\",\"\",TEXT(OrigTable!B101,\"00\"))","v":""},{"$f":"IF(OrigTable!B101=\"\",\"\",ScriptText!$E$1&CHAR(10)&ScriptText!C96)","v":""},{"$f":"IF(OrigTable!C101=\"\",\"\",ScriptText!$B$1&CHAR(10)&ScriptText!$D$1)","v":"<tr>\n<td>"},{"$f":"IF(OrigTable!C101=\"\",\"\",IF(LEN(OrigTable!C101)>255,LEFT(OrigTable!C101,250)&\". . .\",OrigTable!C101))","v":"Campus notice only: Issued to inform the Campus that a transaction for a Form 5344 adjustment posts (DC47) with a DLN in a 790-799 or 900-999 blocking series to cause association of the original return with an adjustment made utilizing a taxpayer’s r. . ."},{"$f":"IF(OrigTable!C101=\"\",\"\",ScriptText!$E$1&CHAR(10)&ScriptText!$C$1)","v":"</td>\n</tr>"},{"$f":"IF(OrigTable!D101=\"\",\"\",ScriptText!$B$1&CHAR(10)&ScriptText!$D$1)","v":"<tr>\n<td>"},{"$f":"IF(OrigTable!D101=\"\",\"\",TEXT(OrigTable!D101,\"00\"))","v":"IMF Notices"},{"$f":"IF(OrigTable!D101=\"\",\"\",ScriptText!$E$1&CHAR(10)&ScriptText!$C$1)","v":"</td>\n</tr>"},{"$f":"IF(OrigTable!E101=\"\",\"\",ScriptText!$B$1&CHAR(10)&ScriptText!$D$1)","v":""},{"$f":"IF(OrigTable!E101=\"\",\"\",TEXT(OrigTable!E101,\"00\"))","v":""},{"$f":"IF(OrigTable!E101=\"\",\"\",ScriptText!$E$1&CHAR(10)&ScriptText!$C$1)","v":""},{"$f":"IF(OrigTable!F101=\"\",\"\",ScriptText!$B$1&CHAR(10)&ScriptText!$D$1)","v":""},{"$f":"IF(OrigTable!F101=\"\",\"\",TEXT(OrigTable!F101,\"00\"))","v":""},{"$f":"IF(OrigTable!F101=\"\",\"\",ScriptText!$E$1&CHAR(10)&ScriptText!$C$1)","v":""},{"$f":"IF(OrigTable!G101=\"\",\"\",ScriptText!$B$1&CHAR(10)&ScriptText!$D$1)","v":""},{"$f":"IF(OrigTable!G101=\"\",\"\",TEXT(OrigTable!G101,\"00\"))","v":""},{"$f":"IF(OrigTable!G101=\"\",\"\",ScriptText!$E$1&CHAR(10)&ScriptText!$C$1)","v":""},101]
["<tr>\n<td>59</td>\n</tr>\n\n<tr>\n<td>First notice issued to inform the taxpayer that we have no record of a tax return filed. (IMF).</td>\n</tr>\n<tr>\n<td>IMF Notices</td>\n</tr>",{"$f":"IF(OrigTable!A102=\"\",\"\",ScriptText!$B$1&CHAR(10)&ScriptText!$D$1)","v":"<tr>\n<td>"},{"$f":"IF(OrigTable!A102=\"\",\"\",TEXT(OrigTable!A102,\"00\"))","v":"59"},{"$f":"IF(OrigTable!A102=\"\",\"\",ScriptText!$E$1&CHAR(10)&ScriptText!$C$1)","v":"</td>\n</tr>"},{"$f":"IF(OrigTable!B102=\"\",\"\",ScriptText!$B$1&CHAR(10)&ScriptText!$D$1)","v":""},{"$f":"IF(OrigTable!B102=\"\",\"\",TEXT(OrigTable!B102,\"00\"))","v":""},{"$f":"IF(OrigTable!B102=\"\",\"\",ScriptText!$E$1&CHAR(10)&ScriptText!C97)","v":""},{"$f":"IF(OrigTable!C102=\"\",\"\",ScriptText!$B$1&CHAR(10)&ScriptText!$D$1)","v":"<tr>\n<td>"},{"$f":"IF(OrigTable!C102=\"\",\"\",IF(LEN(OrigTable!C102)>255,LEFT(OrigTable!C102,250)&\". . .\",OrigTable!C102))","v":"First notice issued to inform the taxpayer that we have no record of a tax return filed. (IMF)."},{"$f":"IF(OrigTable!C102=\"\",\"\",ScriptText!$E$1&CHAR(10)&ScriptText!$C$1)","v":"</td>\n</tr>"},{"$f":"IF(OrigTable!D102=\"\",\"\",ScriptText!$B$1&CHAR(10)&ScriptText!$D$1)","v":"<tr>\n<td>"},{"$f":"IF(OrigTable!D102=\"\",\"\",TEXT(OrigTable!D102,\"00\"))","v":"IMF Notices"},{"$f":"IF(OrigTable!D102=\"\",\"\",ScriptText!$E$1&CHAR(10)&ScriptText!$C$1)","v":"</td>\n</tr>"},{"$f":"IF(OrigTable!E102=\"\",\"\",ScriptText!$B$1&CHAR(10)&ScriptText!$D$1)","v":""},{"$f":"IF(OrigTable!E102=\"\",\"\",TEXT(OrigTable!E102,\"00\"))","v":""},{"$f":"IF(OrigTable!E102=\"\",\"\",ScriptText!$E$1&CHAR(10)&ScriptText!$C$1)","v":""},{"$f":"IF(OrigTable!F102=\"\",\"\",ScriptText!$B$1&CHAR(10)&ScriptText!$D$1)","v":""},{"$f":"IF(OrigTable!F102=\"\",\"\",TEXT(OrigTable!F102,\"00\"))","v":""},{"$f":"IF(OrigTable!F102=\"\",\"\",ScriptText!$E$1&CHAR(10)&ScriptText!$C$1)","v":""},{"$f":"IF(OrigTable!G102=\"\",\"\",ScriptText!$B$1&CHAR(10)&ScriptText!$D$1)","v":""},{"$f":"IF(OrigTable!G102=\"\",\"\",TEXT(OrigTable!G102,\"00\"))","v":""},{"$f":"IF(OrigTable!G102=\"\",\"\",ScriptText!$E$1&CHAR(10)&ScriptText!$C$1)","v":""},102]
["<tr>\n<td>60</td>\n</tr>\n\n<tr>\n<td>Notice advising the taxpayer of a credit reversal adjustment to their account causing a balance due of $5.00 or more.</td>\n</tr>\n<tr>\n<td>IMF Notices</td>\n</tr>",{"$f":"IF(OrigTable!A103=\"\",\"\",ScriptText!$B$1&CHAR(10)&ScriptText!$D$1)","v":"<tr>\n<td>"},{"$f":"IF(OrigTable!A103=\"\",\"\",TEXT(OrigTable!A103,\"00\"))","v":"60"},{"$f":"IF(OrigTable!A103=\"\",\"\",ScriptText!$E$1&CHAR(10)&ScriptText!$C$1)","v":"</td>\n</tr>"},{"$f":"IF(OrigTable!B103=\"\",\"\",ScriptText!$B$1&CHAR(10)&ScriptText!$D$1)","v":""},{"$f":"IF(OrigTable!B103=\"\",\"\",TEXT(OrigTable!B103,\"00\"))","v":""},{"$f":"IF(OrigTable!B103=\"\",\"\",ScriptText!$E$1&CHAR(10)&ScriptText!C98)","v":""},{"$f":"IF(OrigTable!C103=\"\",\"\",ScriptText!$B$1&CHAR(10)&ScriptText!$D$1)","v":"<tr>\n<td>"},{"$f":"IF(OrigTable!C103=\"\",\"\",IF(LEN(OrigTable!C103)>255,LEFT(OrigTable!C103,250)&\". . .\",OrigTable!C103))","v":"Notice advising the taxpayer of a credit reversal adjustment to their account causing a balance due of $5.00 or more."},{"$f":"IF(OrigTable!C103=\"\",\"\",ScriptText!$E$1&CHAR(10)&ScriptText!$C$1)","v":"</td>\n</tr>"},{"$f":"IF(OrigTable!D103=\"\",\"\",ScriptText!$B$1&CHAR(10)&ScriptText!$D$1)","v":"<tr>\n<td>"},{"$f":"IF(OrigTable!D103=\"\",\"\",TEXT(OrigTable!D103,\"00\"))","v":"IMF Notices"},{"$f":"IF(OrigTable!D103=\"\",\"\",ScriptText!$E$1&CHAR(10)&ScriptText!$C$1)","v":"</td>\n</tr>"},{"$f":"IF(OrigTable!E103=\"\",\"\",ScriptText!$B$1&CHAR(10)&ScriptText!$D$1)","v":""},{"$f":"IF(OrigTable!E103=\"\",\"\",TEXT(OrigTable!E103,\"00\"))","v":""},{"$f":"IF(OrigTable!E103=\"\",\"\",ScriptText!$E$1&CHAR(10)&ScriptText!$C$1)","v":""},{"$f":"IF(OrigTable!F103=\"\",\"\",ScriptText!$B$1&CHAR(10)&ScriptText!$D$1)","v":""},{"$f":"IF(OrigTable!F103=\"\",\"\",TEXT(OrigTable!F103,\"00\"))","v":""},{"$f":"IF(OrigTable!F103=\"\",\"\",ScriptText!$E$1&CHAR(10)&ScriptText!$C$1)","v":""},{"$f":"IF(OrigTable!G103=\"\",\"\",ScriptText!$B$1&CHAR(10)&ScriptText!$D$1)","v":""},{"$f":"IF(OrigTable!G103=\"\",\"\",TEXT(OrigTable!G103,\"00\"))","v":""},{"$f":"IF(OrigTable!G103=\"\",\"\",ScriptText!$E$1&CHAR(10)&ScriptText!$C$1)","v":""},103]
["<tr>\n<td>62</td>\n</tr>\n\n<tr>\n<td>Notice to taxpayer of credit transfer based on their correspondence. It also notifies the taxpayer that their account is a bal due, even balance or refund due which will be issued soon.</td>\n</tr>\n<tr>\n<td>IMF Notices</td>\n</tr>",{"$f":"IF(OrigTable!A104=\"\",\"\",ScriptText!$B$1&CHAR(10)&ScriptText!$D$1)","v":"<tr>\n<td>"},{"$f":"IF(OrigTable!A104=\"\",\"\",TEXT(OrigTable!A104,\"00\"))","v":"62"},{"$f":"IF(OrigTable!A104=\"\",\"\",ScriptText!$E$1&CHAR(10)&ScriptText!$C$1)","v":"</td>\n</tr>"},{"$f":"IF(OrigTable!B104=\"\",\"\",ScriptText!$B$1&CHAR(10)&ScriptText!$D$1)","v":""},{"$f":"IF(OrigTable!B104=\"\",\"\",TEXT(OrigTable!B104,\"00\"))","v":""},{"$f":"IF(OrigTable!B104=\"\",\"\",ScriptText!$E$1&CHAR(10)&ScriptText!C99)","v":""},{"$f":"IF(OrigTable!C104=\"\",\"\",ScriptText!$B$1&CHAR(10)&ScriptText!$D$1)","v":"<tr>\n<td>"},{"$f":"IF(OrigTable!C104=\"\",\"\",IF(LEN(OrigTable!C104)>255,LEFT(OrigTable!C104,250)&\". . .\",OrigTable!C104))","v":"Notice to taxpayer of credit transfer based on their correspondence. It also notifies the taxpayer that their account is a bal due, even balance or refund due which will be issued soon."},{"$f":"IF(OrigTable!C104=\"\",\"\",ScriptText!$E$1&CHAR(10)&ScriptText!$C$1)","v":"</td>\n</tr>"},{"$f":"IF(OrigTable!D104=\"\",\"\",ScriptText!$B$1&CHAR(10)&ScriptText!$D$1)","v":"<tr>\n<td>"},{"$f":"IF(OrigTable!D104=\"\",\"\",TEXT(OrigTable!D104,\"00\"))","v":"IMF Notices"},{"$f":"IF(OrigTable!D104=\"\",\"\",ScriptText!$E$1&CHAR(10)&ScriptText!$C$1)","v":"</td>\n</tr>"},{"$f":"IF(OrigTable!E104=\"\",\"\",ScriptText!$B$1&CHAR(10)&ScriptText!$D$1)","v":""},{"$f":"IF(OrigTable!E104=\"\",\"\",TEXT(OrigTable!E104,\"00\"))","v":""},{"$f":"IF(OrigTable!E104=\"\",\"\",ScriptText!$E$1&CHAR(10)&ScriptText!$C$1)","v":""},{"$f":"IF(OrigTable!F104=\"\",\"\",ScriptText!$B$1&CHAR(10)&ScriptText!$D$1)","v":""},{"$f":"IF(OrigTable!F104=\"\",\"\",TEXT(OrigTable!F104,\"00\"))","v":""},{"$f":"IF(OrigTable!F104=\"\",\"\",ScriptText!$E$1&CHAR(10)&ScriptText!$C$1)","v":""},{"$f":"IF(OrigTable!G104=\"\",\"\",ScriptText!$B$1&CHAR(10)&ScriptText!$D$1)","v":""},{"$f":"IF(OrigTable!G104=\"\",\"\",TEXT(OrigTable!G104,\"00\"))","v":""},{"$f":"IF(OrigTable!G104=\"\",\"\",ScriptText!$E$1&CHAR(10)&ScriptText!$C$1)","v":""},104]
["<tr>\n<td>63</td>\n</tr>\n\n<tr>\n<td>Notice to the taxpayer that their refund is on hold until all other tax returns are filed.</td>\n</tr>\n<tr>\n<td>IMF Notices</td>\n</tr>",{"$f":"IF(OrigTable!A105=\"\",\"\",ScriptText!$B$1&CHAR(10)&ScriptText!$D$1)","v":"<tr>\n<td>"},{"$f":"IF(OrigTable!A105=\"\",\"\",TEXT(OrigTable!A105,\"00\"))","v":"63"},{"$f":"IF(OrigTable!A105=\"\",\"\",ScriptText!$E$1&CHAR(10)&ScriptText!$C$1)","v":"</td>\n</tr>"},{"$f":"IF(OrigTable!B105=\"\",\"\",ScriptText!$B$1&CHAR(10)&ScriptText!$D$1)","v":""},{"$f":"IF(OrigTable!B105=\"\",\"\",TEXT(OrigTable!B105,\"00\"))","v":""},{"$f":"IF(OrigTable!B105=\"\",\"\",ScriptText!$E$1&CHAR(10)&ScriptText!C100)","v":""},{"$f":"IF(OrigTable!C105=\"\",\"\",ScriptText!$B$1&CHAR(10)&ScriptText!$D$1)","v":"<tr>\n<td>"},{"$f":"IF(OrigTable!C105=\"\",\"\",IF(LEN(OrigTable!C105)>255,LEFT(OrigTable!C105,250)&\". . .\",OrigTable!C105))","v":"Notice to the taxpayer that their refund is on hold until all other tax returns are filed."},{"$f":"IF(OrigTable!C105=\"\",\"\",ScriptText!$E$1&CHAR(10)&ScriptText!$C$1)","v":"</td>\n</tr>"},{"$f":"IF(OrigTable!D105=\"\",\"\",ScriptText!$B$1&CHAR(10)&ScriptText!$D$1)","v":"<tr>\n<td>"},{"$f":"IF(OrigTable!D105=\"\",\"\",TEXT(OrigTable!D105,\"00\"))","v":"IMF Notices"},{"$f":"IF(OrigTable!D105=\"\",\"\",ScriptText!$E$1&CHAR(10)&ScriptText!$C$1)","v":"</td>\n</tr>"},{"$f":"IF(OrigTable!E105=\"\",\"\",ScriptText!$B$1&CHAR(10)&ScriptText!$D$1)","v":""},{"$f":"IF(OrigTable!E105=\"\",\"\",TEXT(OrigTable!E105,\"00\"))","v":""},{"$f":"IF(OrigTable!E105=\"\",\"\",ScriptText!$E$1&CHAR(10)&ScriptText!$C$1)","v":""},{"$f":"IF(OrigTable!F105=\"\",\"\",ScriptText!$B$1&CHAR(10)&ScriptText!$D$1)","v":""},{"$f":"IF(OrigTable!F105=\"\",\"\",TEXT(OrigTable!F105,\"00\"))","v":""},{"$f":"IF(OrigTable!F105=\"\",\"\",ScriptText!$E$1&CHAR(10)&ScriptText!$C$1)","v":""},{"$f":"IF(OrigTable!G105=\"\",\"\",ScriptText!$B$1&CHAR(10)&ScriptText!$D$1)","v":""},{"$f":"IF(OrigTable!G105=\"\",\"\",TEXT(OrigTable!G105,\"00\"))","v":""},{"$f":"IF(OrigTable!G105=\"\",\"\",ScriptText!$E$1&CHAR(10)&ScriptText!$C$1)","v":""},105]
["<tr>\n<td>64</td>\n</tr>\n\n<tr>\n<td>Campus notice only: Notice of Tentative Carryback Allowance.</td>\n</tr>\n<tr>\n<td>IMF Notices</td>\n</tr>",{"$f":"IF(OrigTable!A106=\"\",\"\",ScriptText!$B$1&CHAR(10)&ScriptText!$D$1)","v":"<tr>\n<td>"},{"$f":"IF(OrigTable!A106=\"\",\"\",TEXT(OrigTable!A106,\"00\"))","v":"64"},{"$f":"IF(OrigTable!A106=\"\",\"\",ScriptText!$E$1&CHAR(10)&ScriptText!$C$1)","v":"</td>\n</tr>"},{"$f":"IF(OrigTable!B106=\"\",\"\",ScriptText!$B$1&CHAR(10)&ScriptText!$D$1)","v":""},{"$f":"IF(OrigTable!B106=\"\",\"\",TEXT(OrigTable!B106,\"00\"))","v":""},{"$f":"IF(OrigTable!B106=\"\",\"\",ScriptText!$E$1&CHAR(10)&ScriptText!C101)","v":""},{"$f":"IF(OrigTable!C106=\"\",\"\",ScriptText!$B$1&CHAR(10)&ScriptText!$D$1)","v":"<tr>\n<td>"},{"$f":"IF(OrigTable!C106=\"\",\"\",IF(LEN(OrigTable!C106)>255,LEFT(OrigTable!C106,250)&\". . .\",OrigTable!C106))","v":"Campus notice only: Notice of Tentative Carryback Allowance."},{"$f":"IF(OrigTable!C106=\"\",\"\",ScriptText!$E$1&CHAR(10)&ScriptText!$C$1)","v":"</td>\n</tr>"},{"$f":"IF(OrigTable!D106=\"\",\"\",ScriptText!$B$1&CHAR(10)&ScriptText!$D$1)","v":"<tr>\n<td>"},{"$f":"IF(OrigTable!D106=\"\",\"\",TEXT(OrigTable!D106,\"00\"))","v":"IMF Notices"},{"$f":"IF(OrigTable!D106=\"\",\"\",ScriptText!$E$1&CHAR(10)&ScriptText!$C$1)","v":"</td>\n</tr>"},{"$f":"IF(OrigTable!E106=\"\",\"\",ScriptText!$B$1&CHAR(10)&ScriptText!$D$1)","v":""},{"$f":"IF(OrigTable!E106=\"\",\"\",TEXT(OrigTable!E106,\"00\"))","v":""},{"$f":"IF(OrigTable!E106=\"\",\"\",ScriptText!$E$1&CHAR(10)&ScriptText!$C$1)","v":""},{"$f":"IF(OrigTable!F106=\"\",\"\",ScriptText!$B$1&CHAR(10)&ScriptText!$D$1)","v":""},{"$f":"IF(OrigTable!F106=\"\",\"\",TEXT(OrigTable!F106,\"00\"))","v":""},{"$f":"IF(OrigTable!F106=\"\",\"\",ScriptText!$E$1&CHAR(10)&ScriptText!$C$1)","v":""},{"$f":"IF(OrigTable!G106=\"\",\"\",ScriptText!$B$1&CHAR(10)&ScriptText!$D$1)","v":""},{"$f":"IF(OrigTable!G106=\"\",\"\",TEXT(OrigTable!G106,\"00\"))","v":""},{"$f":"IF(OrigTable!G106=\"\",\"\",ScriptText!$E$1&CHAR(10)&ScriptText!$C$1)","v":""},106]
["<tr>\n<td>71</td>\n</tr>\n\n<tr>\n<td>Annual reminder notice to the taxpayer of their balance due module(s), that are in status 23 with a module balance of $25.00 or more.</td>\n</tr>\n<tr>\n<td>IMF Notices</td>\n</tr>",{"$f":"IF(OrigTable!A107=\"\",\"\",ScriptText!$B$1&CHAR(10)&ScriptText!$D$1)","v":"<tr>\n<td>"},{"$f":"IF(OrigTable!A107=\"\",\"\",TEXT(OrigTable!A107,\"00\"))","v":"71"},{"$f":"IF(OrigTable!A107=\"\",\"\",ScriptText!$E$1&CHAR(10)&ScriptText!$C$1)","v":"</td>\n</tr>"},{"$f":"IF(OrigTable!B107=\"\",\"\",ScriptText!$B$1&CHAR(10)&ScriptText!$D$1)","v":""},{"$f":"IF(OrigTable!B107=\"\",\"\",TEXT(OrigTable!B107,\"00\"))","v":""},{"$f":"IF(OrigTable!B107=\"\",\"\",ScriptText!$E$1&CHAR(10)&ScriptText!C102)","v":""},{"$f":"IF(OrigTable!C107=\"\",\"\",ScriptText!$B$1&CHAR(10)&ScriptText!$D$1)","v":"<tr>\n<td>"},{"$f":"IF(OrigTable!C107=\"\",\"\",IF(LEN(OrigTable!C107)>255,LEFT(OrigTable!C107,250)&\". . .\",OrigTable!C107))","v":"Annual reminder notice to the taxpayer of their balance due module(s), that are in status 23 with a module balance of $25.00 or more."},{"$f":"IF(OrigTable!C107=\"\",\"\",ScriptText!$E$1&CHAR(10)&ScriptText!$C$1)","v":"</td>\n</tr>"},{"$f":"IF(OrigTable!D107=\"\",\"\",ScriptText!$B$1&CHAR(10)&ScriptText!$D$1)","v":"<tr>\n<td>"},{"$f":"IF(OrigTable!D107=\"\",\"\",TEXT(OrigTable!D107,\"00\"))","v":"IMF Notices"},{"$f":"IF(OrigTable!D107=\"\",\"\",ScriptText!$E$1&CHAR(10)&ScriptText!$C$1)","v":"</td>\n</tr>"},{"$f":"IF(OrigTable!E107=\"\",\"\",ScriptText!$B$1&CHAR(10)&ScriptText!$D$1)","v":""},{"$f":"IF(OrigTable!E107=\"\",\"\",TEXT(OrigTable!E107,\"00\"))","v":""},{"$f":"IF(OrigTable!E107=\"\",\"\",ScriptText!$E$1&CHAR(10)&ScriptText!$C$1)","v":""},{"$f":"IF(OrigTable!F107=\"\",\"\",ScriptText!$B$1&CHAR(10)&ScriptText!$D$1)","v":""},{"$f":"IF(OrigTable!F107=\"\",\"\",TEXT(OrigTable!F107,\"00\"))","v":""},{"$f":"IF(OrigTable!F107=\"\",\"\",ScriptText!$E$1&CHAR(10)&ScriptText!$C$1)","v":""},{"$f":"IF(OrigTable!G107=\"\",\"\",ScriptText!$B$1&CHAR(10)&ScriptText!$D$1)","v":""},{"$f":"IF(OrigTable!G107=\"\",\"\",TEXT(OrigTable!G107,\"00\"))","v":""},{"$f":"IF(OrigTable!G107=\"\",\"\",ScriptText!$E$1&CHAR(10)&ScriptText!$C$1)","v":""},107]
["<tr>\n<td>71A</td>\n</tr>\n\n<tr>\n<td>Annual reminder notice to the taxpayer of their balance due on a module(s), that have been in currently-not- collectible status (53) for at least 65 cycles with closing code 12 or 24-32, 39.</td>\n</tr>\n<tr>\n<td>IMF Notices</td>\n</tr>",{"$f":"IF(OrigTable!A108=\"\",\"\",ScriptText!$B$1&CHAR(10)&ScriptText!$D$1)","v":"<tr>\n<td>"},{"$f":"IF(OrigTable!A108=\"\",\"\",TEXT(OrigTable!A108,\"00\"))","v":"71A"},{"$f":"IF(OrigTable!A108=\"\",\"\",ScriptText!$E$1&CHAR(10)&ScriptText!$C$1)","v":"</td>\n</tr>"},{"$f":"IF(OrigTable!B108=\"\",\"\",ScriptText!$B$1&CHAR(10)&ScriptText!$D$1)","v":""},{"$f":"IF(OrigTable!B108=\"\",\"\",TEXT(OrigTable!B108,\"00\"))","v":""},{"$f":"IF(OrigTable!B108=\"\",\"\",ScriptText!$E$1&CHAR(10)&ScriptText!C103)","v":""},{"$f":"IF(OrigTable!C108=\"\",\"\",ScriptText!$B$1&CHAR(10)&ScriptText!$D$1)","v":"<tr>\n<td>"},{"$f":"IF(OrigTable!C108=\"\",\"\",IF(LEN(OrigTable!C108)>255,LEFT(OrigTable!C108,250)&\". . .\",OrigTable!C108))","v":"Annual reminder notice to the taxpayer of their balance due on a module(s), that have been in currently-not- collectible status (53) for at least 65 cycles with closing code 12 or 24-32, 39."},{"$f":"IF(OrigTable!C108=\"\",\"\",ScriptText!$E$1&CHAR(10)&ScriptText!$C$1)","v":"</td>\n</tr>"},{"$f":"IF(OrigTable!D108=\"\",\"\",ScriptText!$B$1&CHAR(10)&ScriptText!$D$1)","v":"<tr>\n<td>"},{"$f":"IF(OrigTable!D108=\"\",\"\",TEXT(OrigTable!D108,\"00\"))","v":"IMF Notices"},{"$f":"IF(OrigTable!D108=\"\",\"\",ScriptText!$E$1&CHAR(10)&ScriptText!$C$1)","v":"</td>\n</tr>"},{"$f":"IF(OrigTable!E108=\"\",\"\",ScriptText!$B$1&CHAR(10)&ScriptText!$D$1)","v":""},{"$f":"IF(OrigTable!E108=\"\",\"\",TEXT(OrigTable!E108,\"00\"))","v":""},{"$f":"IF(OrigTable!E108=\"\",\"\",ScriptText!$E$1&CHAR(10)&ScriptText!$C$1)","v":""},{"$f":"IF(OrigTable!F108=\"\",\"\",ScriptText!$B$1&CHAR(10)&ScriptText!$D$1)","v":""},{"$f":"IF(OrigTable!F108=\"\",\"\",TEXT(OrigTable!F108,\"00\"))","v":""},{"$f":"IF(OrigTable!F108=\"\",\"\",ScriptText!$E$1&CHAR(10)&ScriptText!$C$1)","v":""},{"$f":"IF(OrigTable!G108=\"\",\"\",ScriptText!$B$1&CHAR(10)&ScriptText!$D$1)","v":""},{"$f":"IF(OrigTable!G108=\"\",\"\",TEXT(OrigTable!G108,\"00\"))","v":""},{"$f":"IF(OrigTable!G108=\"\",\"\",ScriptText!$E$1&CHAR(10)&ScriptText!$C$1)","v":""},108]
["<tr>\n<td>71C</td>\n</tr>\n\n<tr>\n<td>Annual reminder notice to the taxpayer of their balance due module(s) that are in status 24 with a module\nbalance of $25.00 or more. The notice will reflect a CSCO return address and an ACS telephone number.</td>\n</tr>\n<tr>\n<td>IMF Notices</td>\n</tr>",{"$f":"IF(OrigTable!A109=\"\",\"\",ScriptText!$B$1&CHAR(10)&ScriptText!$D$1)","v":"<tr>\n<td>"},{"$f":"IF(OrigTable!A109=\"\",\"\",TEXT(OrigTable!A109,\"00\"))","v":"71C"},{"$f":"IF(OrigTable!A109=\"\",\"\",ScriptText!$E$1&CHAR(10)&ScriptText!$C$1)","v":"</td>\n</tr>"},{"$f":"IF(OrigTable!B109=\"\",\"\",ScriptText!$B$1&CHAR(10)&ScriptText!$D$1)","v":""},{"$f":"IF(OrigTable!B109=\"\",\"\",TEXT(OrigTable!B109,\"00\"))","v":""},{"$f":"IF(OrigTable!B109=\"\",\"\",ScriptText!$E$1&CHAR(10)&ScriptText!C104)","v":""},{"$f":"IF(OrigTable!C109=\"\",\"\",ScriptText!$B$1&CHAR(10)&ScriptText!$D$1)","v":"<tr>\n<td>"},{"$f":"IF(OrigTable!C109=\"\",\"\",IF(LEN(OrigTable!C109)>255,LEFT(OrigTable!C109,250)&\". . .\",OrigTable!C109))","v":"Annual reminder notice to the taxpayer of their balance due module(s) that are in status 24 with a module\nbalance of $25.00 or more. The notice will reflect a CSCO return address and an ACS telephone number."},{"$f":"IF(OrigTable!C109=\"\",\"\",ScriptText!$E$1&CHAR(10)&ScriptText!$C$1)","v":"</td>\n</tr>"},{"$f":"IF(OrigTable!D109=\"\",\"\",ScriptText!$B$1&CHAR(10)&ScriptText!$D$1)","v":"<tr>\n<td>"},{"$f":"IF(OrigTable!D109=\"\",\"\",TEXT(OrigTable!D109,\"00\"))","v":"IMF Notices"},{"$f":"IF(OrigTable!D109=\"\",\"\",ScriptText!$E$1&CHAR(10)&ScriptText!$C$1)","v":"</td>\n</tr>"},{"$f":"IF(OrigTable!E109=\"\",\"\",ScriptText!$B$1&CHAR(10)&ScriptText!$D$1)","v":""},{"$f":"IF(OrigTable!E109=\"\",\"\",TEXT(OrigTable!E109,\"00\"))","v":""},{"$f":"IF(OrigTable!E109=\"\",\"\",ScriptText!$E$1&CHAR(10)&ScriptText!$C$1)","v":""},{"$f":"IF(OrigTable!F109=\"\",\"\",ScriptText!$B$1&CHAR(10)&ScriptText!$D$1)","v":""},{"$f":"IF(OrigTable!F109=\"\",\"\",TEXT(OrigTable!F109,\"00\"))","v":""},{"$f":"IF(OrigTable!F109=\"\",\"\",ScriptText!$E$1&CHAR(10)&ScriptText!$C$1)","v":""},{"$f":"IF(OrigTable!G109=\"\",\"\",ScriptText!$B$1&CHAR(10)&ScriptText!$D$1)","v":""},{"$f":"IF(OrigTable!G109=\"\",\"\",TEXT(OrigTable!G109,\"00\"))","v":""},{"$f":"IF(OrigTable!G109=\"\",\"\",ScriptText!$E$1&CHAR(10)&ScriptText!$C$1)","v":""},109]
["<tr>\n<td>71D</td>\n</tr>\n\n<tr>\n<td>Annual reminder notice to the taxpayer of their balance due module(s) that are in status 22 or status 26 for 1\nyear or more if the balance due is $25.00 or more.</td>\n</tr>\n<tr>\n<td>IMF Notices</td>\n</tr>",{"$f":"IF(OrigTable!A110=\"\",\"\",ScriptText!$B$1&CHAR(10)&ScriptText!$D$1)","v":"<tr>\n<td>"},{"$f":"IF(OrigTable!A110=\"\",\"\",TEXT(OrigTable!A110,\"00\"))","v":"71D"},{"$f":"IF(OrigTable!A110=\"\",\"\",ScriptText!$E$1&CHAR(10)&ScriptText!$C$1)","v":"</td>\n</tr>"},{"$f":"IF(OrigTable!B110=\"\",\"\",ScriptText!$B$1&CHAR(10)&ScriptText!$D$1)","v":""},{"$f":"IF(OrigTable!B110=\"\",\"\",TEXT(OrigTable!B110,\"00\"))","v":""},{"$f":"IF(OrigTable!B110=\"\",\"\",ScriptText!$E$1&CHAR(10)&ScriptText!C105)","v":""},{"$f":"IF(OrigTable!C110=\"\",\"\",ScriptText!$B$1&CHAR(10)&ScriptText!$D$1)","v":"<tr>\n<td>"},{"$f":"IF(OrigTable!C110=\"\",\"\",IF(LEN(OrigTable!C110)>255,LEFT(OrigTable!C110,250)&\". . .\",OrigTable!C110))","v":"Annual reminder notice to the taxpayer of their balance due module(s) that are in status 22 or status 26 for 1\nyear or more if the balance due is $25.00 or more."},{"$f":"IF(OrigTable!C110=\"\",\"\",ScriptText!$E$1&CHAR(10)&ScriptText!$C$1)","v":"</td>\n</tr>"},{"$f":"IF(OrigTable!D110=\"\",\"\",ScriptText!$B$1&CHAR(10)&ScriptText!$D$1)","v":"<tr>\n<td>"},{"$f":"IF(OrigTable!D110=\"\",\"\",TEXT(OrigTable!D110,\"00\"))","v":"IMF Notices"},{"$f":"IF(OrigTable!D110=\"\",\"\",ScriptText!$E$1&CHAR(10)&ScriptText!$C$1)","v":"</td>\n</tr>"},{"$f":"IF(OrigTable!E110=\"\",\"\",ScriptText!$B$1&CHAR(10)&ScriptText!$D$1)","v":""},{"$f":"IF(OrigTable!E110=\"\",\"\",TEXT(OrigTable!E110,\"00\"))","v":""},{"$f":"IF(OrigTable!E110=\"\",\"\",ScriptText!$E$1&CHAR(10)&ScriptText!$C$1)","v":""},{"$f":"IF(OrigTable!F110=\"\",\"\",ScriptText!$B$1&CHAR(10)&ScriptText!$D$1)","v":""},{"$f":"IF(OrigTable!F110=\"\",\"\",TEXT(OrigTable!F110,\"00\"))","v":""},{"$f":"IF(OrigTable!F110=\"\",\"\",ScriptText!$E$1&CHAR(10)&ScriptText!$C$1)","v":""},{"$f":"IF(OrigTable!G110=\"\",\"\",ScriptText!$B$1&CHAR(10)&ScriptText!$D$1)","v":""},{"$f":"IF(OrigTable!G110=\"\",\"\",TEXT(OrigTable!G110,\"00\"))","v":""},{"$f":"IF(OrigTable!G110=\"\",\"\",ScriptText!$E$1&CHAR(10)&ScriptText!$C$1)","v":""},110]
["<tr>\n<td>71H</td>\n</tr>\n\n<tr>\n<td>Annual reminder notice to taxpayers with balance due modules from ACA, all statuses.</td>\n</tr>\n<tr>\n<td>IMF Notices</td>\n</tr>",{"$f":"IF(OrigTable!A111=\"\",\"\",ScriptText!$B$1&CHAR(10)&ScriptText!$D$1)","v":"<tr>\n<td>"},{"$f":"IF(OrigTable!A111=\"\",\"\",TEXT(OrigTable!A111,\"00\"))","v":"71H"},{"$f":"IF(OrigTable!A111=\"\",\"\",ScriptText!$E$1&CHAR(10)&ScriptText!$C$1)","v":"</td>\n</tr>"},{"$f":"IF(OrigTable!B111=\"\",\"\",ScriptText!$B$1&CHAR(10)&ScriptText!$D$1)","v":""},{"$f":"IF(OrigTable!B111=\"\",\"\",TEXT(OrigTable!B111,\"00\"))","v":""},{"$f":"IF(OrigTable!B111=\"\",\"\",ScriptText!$E$1&CHAR(10)&ScriptText!C106)","v":""},{"$f":"IF(OrigTable!C111=\"\",\"\",ScriptText!$B$1&CHAR(10)&ScriptText!$D$1)","v":"<tr>\n<td>"},{"$f":"IF(OrigTable!C111=\"\",\"\",IF(LEN(OrigTable!C111)>255,LEFT(OrigTable!C111,250)&\". . .\",OrigTable!C111))","v":"Annual reminder notice to taxpayers with balance due modules from ACA, all statuses."},{"$f":"IF(OrigTable!C111=\"\",\"\",ScriptText!$E$1&CHAR(10)&ScriptText!$C$1)","v":"</td>\n</tr>"},{"$f":"IF(OrigTable!D111=\"\",\"\",ScriptText!$B$1&CHAR(10)&ScriptText!$D$1)","v":"<tr>\n<td>"},{"$f":"IF(OrigTable!D111=\"\",\"\",TEXT(OrigTable!D111,\"00\"))","v":"IMF Notices"},{"$f":"IF(OrigTable!D111=\"\",\"\",ScriptText!$E$1&CHAR(10)&ScriptText!$C$1)","v":"</td>\n</tr>"},{"$f":"IF(OrigTable!E111=\"\",\"\",ScriptText!$B$1&CHAR(10)&ScriptText!$D$1)","v":""},{"$f":"IF(OrigTable!E111=\"\",\"\",TEXT(OrigTable!E111,\"00\"))","v":""},{"$f":"IF(OrigTable!E111=\"\",\"\",ScriptText!$E$1&CHAR(10)&ScriptText!$C$1)","v":""},{"$f":"IF(OrigTable!F111=\"\",\"\",ScriptText!$B$1&CHAR(10)&ScriptText!$D$1)","v":""},{"$f":"IF(OrigTable!F111=\"\",\"\",TEXT(OrigTable!F111,\"00\"))","v":""},{"$f":"IF(OrigTable!F111=\"\",\"\",ScriptText!$E$1&CHAR(10)&ScriptText!$C$1)","v":""},{"$f":"IF(OrigTable!G111=\"\",\"\",ScriptText!$B$1&CHAR(10)&ScriptText!$D$1)","v":""},{"$f":"IF(OrigTable!G111=\"\",\"\",TEXT(OrigTable!G111,\"00\"))","v":""},{"$f":"IF(OrigTable!G111=\"\",\"\",ScriptText!$E$1&CHAR(10)&ScriptText!$C$1)","v":""},111]
["<tr>\n<td>74</td>\n</tr>\n\n<tr>\n<td>Notice to the taxpayer they have successfully re-certified for the Earned Income Credit.</td>\n</tr>\n<tr>\n<td>IMF Notices</td>\n</tr>",{"$f":"IF(OrigTable!A112=\"\",\"\",ScriptText!$B$1&CHAR(10)&ScriptText!$D$1)","v":"<tr>\n<td>"},{"$f":"IF(OrigTable!A112=\"\",\"\",TEXT(OrigTable!A112,\"00\"))","v":"74"},{"$f":"IF(OrigTable!A112=\"\",\"\",ScriptText!$E$1&CHAR(10)&ScriptText!$C$1)","v":"</td>\n</tr>"},{"$f":"IF(OrigTable!B112=\"\",\"\",ScriptText!$B$1&CHAR(10)&ScriptText!$D$1)","v":""},{"$f":"IF(OrigTable!B112=\"\",\"\",TEXT(OrigTable!B112,\"00\"))","v":""},{"$f":"IF(OrigTable!B112=\"\",\"\",ScriptText!$E$1&CHAR(10)&ScriptText!C107)","v":""},{"$f":"IF(OrigTable!C112=\"\",\"\",ScriptText!$B$1&CHAR(10)&ScriptText!$D$1)","v":"<tr>\n<td>"},{"$f":"IF(OrigTable!C112=\"\",\"\",IF(LEN(OrigTable!C112)>255,LEFT(OrigTable!C112,250)&\". . .\",OrigTable!C112))","v":"Notice to the taxpayer they have successfully re-certified for the Earned Income Credit."},{"$f":"IF(OrigTable!C112=\"\",\"\",ScriptText!$E$1&CHAR(10)&ScriptText!$C$1)","v":"</td>\n</tr>"},{"$f":"IF(OrigTable!D112=\"\",\"\",ScriptText!$B$1&CHAR(10)&ScriptText!$D$1)","v":"<tr>\n<td>"},{"$f":"IF(OrigTable!D112=\"\",\"\",TEXT(OrigTable!D112,\"00\"))","v":"IMF Notices"},{"$f":"IF(OrigTable!D112=\"\",\"\",ScriptText!$E$1&CHAR(10)&ScriptText!$C$1)","v":"</td>\n</tr>"},{"$f":"IF(OrigTable!E112=\"\",\"\",ScriptText!$B$1&CHAR(10)&ScriptText!$D$1)","v":""},{"$f":"IF(OrigTable!E112=\"\",\"\",TEXT(OrigTable!E112,\"00\"))","v":""},{"$f":"IF(OrigTable!E112=\"\",\"\",ScriptText!$E$1&CHAR(10)&ScriptText!$C$1)","v":""},{"$f":"IF(OrigTable!F112=\"\",\"\",ScriptText!$B$1&CHAR(10)&ScriptText!$D$1)","v":""},{"$f":"IF(OrigTable!F112=\"\",\"\",TEXT(OrigTable!F112,\"00\"))","v":""},{"$f":"IF(OrigTable!F112=\"\",\"\",ScriptText!$E$1&CHAR(10)&ScriptText!$C$1)","v":""},{"$f":"IF(OrigTable!G112=\"\",\"\",ScriptText!$B$1&CHAR(10)&ScriptText!$D$1)","v":""},{"$f":"IF(OrigTable!G112=\"\",\"\",TEXT(OrigTable!G112,\"00\"))","v":""},{"$f":"IF(OrigTable!G112=\"\",\"\",ScriptText!$E$1&CHAR(10)&ScriptText!$C$1)","v":""},112]
["<tr>\n<td>75</td>\n</tr>\n\n<tr>\n<td>Initial Exam notice to the taxpayer telling them that their refund for Earned Income Credit is frozen pending\nan examination of their return, requesting additional documentation.</td>\n</tr>\n<tr>\n<td>IMF Notices</td>\n</tr>",{"$f":"IF(OrigTable!A113=\"\",\"\",ScriptText!$B$1&CHAR(10)&ScriptText!$D$1)","v":"<tr>\n<td>"},{"$f":"IF(OrigTable!A113=\"\",\"\",TEXT(OrigTable!A113,\"00\"))","v":"75"},{"$f":"IF(OrigTable!A113=\"\",\"\",ScriptText!$E$1&CHAR(10)&ScriptText!$C$1)","v":"</td>\n</tr>"},{"$f":"IF(OrigTable!B113=\"\",\"\",ScriptText!$B$1&CHAR(10)&ScriptText!$D$1)","v":""},{"$f":"IF(OrigTable!B113=\"\",\"\",TEXT(OrigTable!B113,\"00\"))","v":""},{"$f":"IF(OrigTable!B113=\"\",\"\",ScriptText!$E$1&CHAR(10)&ScriptText!C108)","v":""},{"$f":"IF(OrigTable!C113=\"\",\"\",ScriptText!$B$1&CHAR(10)&ScriptText!$D$1)","v":"<tr>\n<td>"},{"$f":"IF(OrigTable!C113=\"\",\"\",IF(LEN(OrigTable!C113)>255,LEFT(OrigTable!C113,250)&\". . .\",OrigTable!C113))","v":"Initial Exam notice to the taxpayer telling them that their refund for Earned Income Credit is frozen pending\nan examination of their return, requesting additional documentation."},{"$f":"IF(OrigTable!C113=\"\",\"\",ScriptText!$E$1&CHAR(10)&ScriptText!$C$1)","v":"</td>\n</tr>"},{"$f":"IF(OrigTable!D113=\"\",\"\",ScriptText!$B$1&CHAR(10)&ScriptText!$D$1)","v":"<tr>\n<td>"},{"$f":"IF(OrigTable!D113=\"\",\"\",TEXT(OrigTable!D113,\"00\"))","v":"IMF Notices"},{"$f":"IF(OrigTable!D113=\"\",\"\",ScriptText!$E$1&CHAR(10)&ScriptText!$C$1)","v":"</td>\n</tr>"},{"$f":"IF(OrigTable!E113=\"\",\"\",ScriptText!$B$1&CHAR(10)&ScriptText!$D$1)","v":""},{"$f":"IF(OrigTable!E113=\"\",\"\",TEXT(OrigTable!E113,\"00\"))","v":""},{"$f":"IF(OrigTable!E113=\"\",\"\",ScriptText!$E$1&CHAR(10)&ScriptText!$C$1)","v":""},{"$f":"IF(OrigTable!F113=\"\",\"\",ScriptText!$B$1&CHAR(10)&ScriptText!$D$1)","v":""},{"$f":"IF(OrigTable!F113=\"\",\"\",TEXT(OrigTable!F113,\"00\"))","v":""},{"$f":"IF(OrigTable!F113=\"\",\"\",ScriptText!$E$1&CHAR(10)&ScriptText!$C$1)","v":""},{"$f":"IF(OrigTable!G113=\"\",\"\",ScriptText!$B$1&CHAR(10)&ScriptText!$D$1)","v":""},{"$f":"IF(OrigTable!G113=\"\",\"\",TEXT(OrigTable!G113,\"00\"))","v":""},{"$f":"IF(OrigTable!G113=\"\",\"\",ScriptText!$E$1&CHAR(10)&ScriptText!$C$1)","v":""},113]
["<tr>\n<td>75A</td>\n</tr>\n\n<tr>\n<td>Initial Exam notice to the taxpayer telling them that their return is being examined for Earned Income Credit\nand addition child tax credit, requesting additional documentation. .</td>\n</tr>\n<tr>\n<td>IMF Notices</td>\n</tr>",{"$f":"IF(OrigTable!A114=\"\",\"\",ScriptText!$B$1&CHAR(10)&ScriptText!$D$1)","v":"<tr>\n<td>"},{"$f":"IF(OrigTable!A114=\"\",\"\",TEXT(OrigTable!A114,\"00\"))","v":"75A"},{"$f":"IF(OrigTable!A114=\"\",\"\",ScriptText!$E$1&CHAR(10)&ScriptText!$C$1)","v":"</td>\n</tr>"},{"$f":"IF(OrigTable!B114=\"\",\"\",ScriptText!$B$1&CHAR(10)&ScriptText!$D$1)","v":""},{"$f":"IF(OrigTable!B114=\"\",\"\",TEXT(OrigTable!B114,\"00\"))","v":""},{"$f":"IF(OrigTable!B114=\"\",\"\",ScriptText!$E$1&CHAR(10)&ScriptText!C109)","v":""},{"$f":"IF(OrigTable!C114=\"\",\"\",ScriptText!$B$1&CHAR(10)&ScriptText!$D$1)","v":"<tr>\n<td>"},{"$f":"IF(OrigTable!C114=\"\",\"\",IF(LEN(OrigTable!C114)>255,LEFT(OrigTable!C114,250)&\". . .\",OrigTable!C114))","v":"Initial Exam notice to the taxpayer telling them that their return is being examined for Earned Income Credit\nand addition child tax credit, requesting additional documentation. ."},{"$f":"IF(OrigTable!C114=\"\",\"\",ScriptText!$E$1&CHAR(10)&ScriptText!$C$1)","v":"</td>\n</tr>"},{"$f":"IF(OrigTable!D114=\"\",\"\",ScriptText!$B$1&CHAR(10)&ScriptText!$D$1)","v":"<tr>\n<td>"},{"$f":"IF(OrigTable!D114=\"\",\"\",TEXT(OrigTable!D114,\"00\"))","v":"IMF Notices"},{"$f":"IF(OrigTable!D114=\"\",\"\",ScriptText!$E$1&CHAR(10)&ScriptText!$C$1)","v":"</td>\n</tr>"},{"$f":"IF(OrigTable!E114=\"\",\"\",ScriptText!$B$1&CHAR(10)&ScriptText!$D$1)","v":""},{"$f":"IF(OrigTable!E114=\"\",\"\",TEXT(OrigTable!E114,\"00\"))","v":""},{"$f":"IF(OrigTable!E114=\"\",\"\",ScriptText!$E$1&CHAR(10)&ScriptText!$C$1)","v":""},{"$f":"IF(OrigTable!F114=\"\",\"\",ScriptText!$B$1&CHAR(10)&ScriptText!$D$1)","v":""},{"$f":"IF(OrigTable!F114=\"\",\"\",TEXT(OrigTable!F114,\"00\"))","v":""},{"$f":"IF(OrigTable!F114=\"\",\"\",ScriptText!$E$1&CHAR(10)&ScriptText!$C$1)","v":""},{"$f":"IF(OrigTable!G114=\"\",\"\",ScriptText!$B$1&CHAR(10)&ScriptText!$D$1)","v":""},{"$f":"IF(OrigTable!G114=\"\",\"\",TEXT(OrigTable!G114,\"00\"))","v":""},{"$f":"IF(OrigTable!G114=\"\",\"\",ScriptText!$E$1&CHAR(10)&ScriptText!$C$1)","v":""},114]
["<tr>\n<td>75C</td>\n</tr>\n\n<tr>\n<td>Notice to taxpayer informing them that their claimed Earned Income Credit refund has been disallowed due to their being banned from filing for Earned Income Credit.</td>\n</tr>\n<tr>\n<td>IMF Notices</td>\n</tr>",{"$f":"IF(OrigTable!A115=\"\",\"\",ScriptText!$B$1&CHAR(10)&ScriptText!$D$1)","v":"<tr>\n<td>"},{"$f":"IF(OrigTable!A115=\"\",\"\",TEXT(OrigTable!A115,\"00\"))","v":"75C"},{"$f":"IF(OrigTable!A115=\"\",\"\",ScriptText!$E$1&CHAR(10)&ScriptText!$C$1)","v":"</td>\n</tr>"},{"$f":"IF(OrigTable!B115=\"\",\"\",ScriptText!$B$1&CHAR(10)&ScriptText!$D$1)","v":""},{"$f":"IF(OrigTable!B115=\"\",\"\",TEXT(OrigTable!B115,\"00\"))","v":""},{"$f":"IF(OrigTable!B115=\"\",\"\",ScriptText!$E$1&CHAR(10)&ScriptText!C110)","v":""},{"$f":"IF(OrigTable!C115=\"\",\"\",ScriptText!$B$1&CHAR(10)&ScriptText!$D$1)","v":"<tr>\n<td>"},{"$f":"IF(OrigTable!C115=\"\",\"\",IF(LEN(OrigTable!C115)>255,LEFT(OrigTable!C115,250)&\". . .\",OrigTable!C115))","v":"Notice to taxpayer informing them that their claimed Earned Income Credit refund has been disallowed due to their being banned from filing for Earned Income Credit."},{"$f":"IF(OrigTable!C115=\"\",\"\",ScriptText!$E$1&CHAR(10)&ScriptText!$C$1)","v":"</td>\n</tr>"},{"$f":"IF(OrigTable!D115=\"\",\"\",ScriptText!$B$1&CHAR(10)&ScriptText!$D$1)","v":"<tr>\n<td>"},{"$f":"IF(OrigTable!D115=\"\",\"\",TEXT(OrigTable!D115,\"00\"))","v":"IMF Notices"},{"$f":"IF(OrigTable!D115=\"\",\"\",ScriptText!$E$1&CHAR(10)&ScriptText!$C$1)","v":"</td>\n</tr>"},{"$f":"IF(OrigTable!E115=\"\",\"\",ScriptText!$B$1&CHAR(10)&ScriptText!$D$1)","v":""},{"$f":"IF(OrigTable!E115=\"\",\"\",TEXT(OrigTable!E115,\"00\"))","v":""},{"$f":"IF(OrigTable!E115=\"\",\"\",ScriptText!$E$1&CHAR(10)&ScriptText!$C$1)","v":""},{"$f":"IF(OrigTable!F115=\"\",\"\",ScriptText!$B$1&CHAR(10)&ScriptText!$D$1)","v":""},{"$f":"IF(OrigTable!F115=\"\",\"\",TEXT(OrigTable!F115,\"00\"))","v":""},{"$f":"IF(OrigTable!F115=\"\",\"\",ScriptText!$E$1&CHAR(10)&ScriptText!$C$1)","v":""},{"$f":"IF(OrigTable!G115=\"\",\"\",ScriptText!$B$1&CHAR(10)&ScriptText!$D$1)","v":""},{"$f":"IF(OrigTable!G115=\"\",\"\",TEXT(OrigTable!G115,\"00\"))","v":""},{"$f":"IF(OrigTable!G115=\"\",\"\",ScriptText!$E$1&CHAR(10)&ScriptText!$C$1)","v":""},115]
["<tr>\n<td>75D</td>\n</tr>\n\n<tr>\n<td>Initial Exam notice to taxpayer, requesting supporting documentation for Earned Income Credit, filing status and/or dependent information. Entire refund is frozen.</td>\n</tr>\n<tr>\n<td>IMF Notices</td>\n</tr>",{"$f":"IF(OrigTable!A116=\"\",\"\",ScriptText!$B$1&CHAR(10)&ScriptText!$D$1)","v":"<tr>\n<td>"},{"$f":"IF(OrigTable!A116=\"\",\"\",TEXT(OrigTable!A116,\"00\"))","v":"75D"},{"$f":"IF(OrigTable!A116=\"\",\"\",ScriptText!$E$1&CHAR(10)&ScriptText!$C$1)","v":"</td>\n</tr>"},{"$f":"IF(OrigTable!B116=\"\",\"\",ScriptText!$B$1&CHAR(10)&ScriptText!$D$1)","v":""},{"$f":"IF(OrigTable!B116=\"\",\"\",TEXT(OrigTable!B116,\"00\"))","v":""},{"$f":"IF(OrigTable!B116=\"\",\"\",ScriptText!$E$1&CHAR(10)&ScriptText!C111)","v":""},{"$f":"IF(OrigTable!C116=\"\",\"\",ScriptText!$B$1&CHAR(10)&ScriptText!$D$1)","v":"<tr>\n<td>"},{"$f":"IF(OrigTable!C116=\"\",\"\",IF(LEN(OrigTable!C116)>255,LEFT(OrigTable!C116,250)&\". . .\",OrigTable!C116))","v":"Initial Exam notice to taxpayer, requesting supporting documentation for Earned Income Credit, filing status and/or dependent information. Entire refund is frozen."},{"$f":"IF(OrigTable!C116=\"\",\"\",ScriptText!$E$1&CHAR(10)&ScriptText!$C$1)","v":"</td>\n</tr>"},{"$f":"IF(OrigTable!D116=\"\",\"\",ScriptText!$B$1&CHAR(10)&ScriptText!$D$1)","v":"<tr>\n<td>"},{"$f":"IF(OrigTable!D116=\"\",\"\",TEXT(OrigTable!D116,\"00\"))","v":"IMF Notices"},{"$f":"IF(OrigTable!D116=\"\",\"\",ScriptText!$E$1&CHAR(10)&ScriptText!$C$1)","v":"</td>\n</tr>"},{"$f":"IF(OrigTable!E116=\"\",\"\",ScriptText!$B$1&CHAR(10)&ScriptText!$D$1)","v":""},{"$f":"IF(OrigTable!E116=\"\",\"\",TEXT(OrigTable!E116,\"00\"))","v":""},{"$f":"IF(OrigTable!E116=\"\",\"\",ScriptText!$E$1&CHAR(10)&ScriptText!$C$1)","v":""},{"$f":"IF(OrigTable!F116=\"\",\"\",ScriptText!$B$1&CHAR(10)&ScriptText!$D$1)","v":""},{"$f":"IF(OrigTable!F116=\"\",\"\",TEXT(OrigTable!F116,\"00\"))","v":""},{"$f":"IF(OrigTable!F116=\"\",\"\",ScriptText!$E$1&CHAR(10)&ScriptText!$C$1)","v":""},{"$f":"IF(OrigTable!G116=\"\",\"\",ScriptText!$B$1&CHAR(10)&ScriptText!$D$1)","v":""},{"$f":"IF(OrigTable!G116=\"\",\"\",TEXT(OrigTable!G116,\"00\"))","v":""},{"$f":"IF(OrigTable!G116=\"\",\"\",ScriptText!$E$1&CHAR(10)&ScriptText!$C$1)","v":""},116]
["<tr>\n<td>76</td>\n</tr>\n\n<tr>\n<td>Notice to the taxpayer informing them that their Earned Income Credit claim has been allowed and if a refund is due it will be issued within 8 weeks.</td>\n</tr>\n<tr>\n<td>IMF Notices</td>\n</tr>",{"$f":"IF(OrigTable!A117=\"\",\"\",ScriptText!$B$1&CHAR(10)&ScriptText!$D$1)","v":"<tr>\n<td>"},{"$f":"IF(OrigTable!A117=\"\",\"\",TEXT(OrigTable!A117,\"00\"))","v":"76"},{"$f":"IF(OrigTable!A117=\"\",\"\",ScriptText!$E$1&CHAR(10)&ScriptText!$C$1)","v":"</td>\n</tr>"},{"$f":"IF(OrigTable!B117=\"\",\"\",ScriptText!$B$1&CHAR(10)&ScriptText!$D$1)","v":""},{"$f":"IF(OrigTable!B117=\"\",\"\",TEXT(OrigTable!B117,\"00\"))","v":""},{"$f":"IF(OrigTable!B117=\"\",\"\",ScriptText!$E$1&CHAR(10)&ScriptText!C112)","v":""},{"$f":"IF(OrigTable!C117=\"\",\"\",ScriptText!$B$1&CHAR(10)&ScriptText!$D$1)","v":"<tr>\n<td>"},{"$f":"IF(OrigTable!C117=\"\",\"\",IF(LEN(OrigTable!C117)>255,LEFT(OrigTable!C117,250)&\". . .\",OrigTable!C117))","v":"Notice to the taxpayer informing them that their Earned Income Credit claim has been allowed and if a refund is due it will be issued within 8 weeks."},{"$f":"IF(OrigTable!C117=\"\",\"\",ScriptText!$E$1&CHAR(10)&ScriptText!$C$1)","v":"</td>\n</tr>"},{"$f":"IF(OrigTable!D117=\"\",\"\",ScriptText!$B$1&CHAR(10)&ScriptText!$D$1)","v":"<tr>\n<td>"},{"$f":"IF(OrigTable!D117=\"\",\"\",TEXT(OrigTable!D117,\"00\"))","v":"IMF Notices"},{"$f":"IF(OrigTable!D117=\"\",\"\",ScriptText!$E$1&CHAR(10)&ScriptText!$C$1)","v":"</td>\n</tr>"},{"$f":"IF(OrigTable!E117=\"\",\"\",ScriptText!$B$1&CHAR(10)&ScriptText!$D$1)","v":""},{"$f":"IF(OrigTable!E117=\"\",\"\",TEXT(OrigTable!E117,\"00\"))","v":""},{"$f":"IF(OrigTable!E117=\"\",\"\",ScriptText!$E$1&CHAR(10)&ScriptText!$C$1)","v":""},{"$f":"IF(OrigTable!F117=\"\",\"\",ScriptText!$B$1&CHAR(10)&ScriptText!$D$1)","v":""},{"$f":"IF(OrigTable!F117=\"\",\"\",TEXT(OrigTable!F117,\"00\"))","v":""},{"$f":"IF(OrigTable!F117=\"\",\"\",ScriptText!$E$1&CHAR(10)&ScriptText!$C$1)","v":""},{"$f":"IF(OrigTable!G117=\"\",\"\",ScriptText!$B$1&CHAR(10)&ScriptText!$D$1)","v":""},{"$f":"IF(OrigTable!G117=\"\",\"\",TEXT(OrigTable!G117,\"00\"))","v":""},{"$f":"IF(OrigTable!G117=\"\",\"\",ScriptText!$E$1&CHAR(10)&ScriptText!$C$1)","v":""},117]
["<tr>\n<td>77</td>\n</tr>\n\n<tr>\n<td>Final Demand Notice, Notice of Intent to Levy and Notice of Your Right to an Appeals Hearing (Used for the\nAlaska Permanent Fund Dividend (AKPFD) Levy Program).</td>\n</tr>\n<tr>\n<td>IMF Notices</td>\n</tr>",{"$f":"IF(OrigTable!A118=\"\",\"\",ScriptText!$B$1&CHAR(10)&ScriptText!$D$1)","v":"<tr>\n<td>"},{"$f":"IF(OrigTable!A118=\"\",\"\",TEXT(OrigTable!A118,\"00\"))","v":"77"},{"$f":"IF(OrigTable!A118=\"\",\"\",ScriptText!$E$1&CHAR(10)&ScriptText!$C$1)","v":"</td>\n</tr>"},{"$f":"IF(OrigTable!B118=\"\",\"\",ScriptText!$B$1&CHAR(10)&ScriptText!$D$1)","v":""},{"$f":"IF(OrigTable!B118=\"\",\"\",TEXT(OrigTable!B118,\"00\"))","v":""},{"$f":"IF(OrigTable!B118=\"\",\"\",ScriptText!$E$1&CHAR(10)&ScriptText!C113)","v":""},{"$f":"IF(OrigTable!C118=\"\",\"\",ScriptText!$B$1&CHAR(10)&ScriptText!$D$1)","v":"<tr>\n<td>"},{"$f":"IF(OrigTable!C118=\"\",\"\",IF(LEN(OrigTable!C118)>255,LEFT(OrigTable!C118,250)&\". . .\",OrigTable!C118))","v":"Final Demand Notice, Notice of Intent to Levy and Notice of Your Right to an Appeals Hearing (Used for the\nAlaska Permanent Fund Dividend (AKPFD) Levy Program)."},{"$f":"IF(OrigTable!C118=\"\",\"\",ScriptText!$E$1&CHAR(10)&ScriptText!$C$1)","v":"</td>\n</tr>"},{"$f":"IF(OrigTable!D118=\"\",\"\",ScriptText!$B$1&CHAR(10)&ScriptText!$D$1)","v":"<tr>\n<td>"},{"$f":"IF(OrigTable!D118=\"\",\"\",TEXT(OrigTable!D118,\"00\"))","v":"IMF Notices"},{"$f":"IF(OrigTable!D118=\"\",\"\",ScriptText!$E$1&CHAR(10)&ScriptText!$C$1)","v":"</td>\n</tr>"},{"$f":"IF(OrigTable!E118=\"\",\"\",ScriptText!$B$1&CHAR(10)&ScriptText!$D$1)","v":""},{"$f":"IF(OrigTable!E118=\"\",\"\",TEXT(OrigTable!E118,\"00\"))","v":""},{"$f":"IF(OrigTable!E118=\"\",\"\",ScriptText!$E$1&CHAR(10)&ScriptText!$C$1)","v":""},{"$f":"IF(OrigTable!F118=\"\",\"\",ScriptText!$B$1&CHAR(10)&ScriptText!$D$1)","v":""},{"$f":"IF(OrigTable!F118=\"\",\"\",TEXT(OrigTable!F118,\"00\"))","v":""},{"$f":"IF(OrigTable!F118=\"\",\"\",ScriptText!$E$1&CHAR(10)&ScriptText!$C$1)","v":""},{"$f":"IF(OrigTable!G118=\"\",\"\",ScriptText!$B$1&CHAR(10)&ScriptText!$D$1)","v":""},{"$f":"IF(OrigTable!G118=\"\",\"\",TEXT(OrigTable!G118,\"00\"))","v":""},{"$f":"IF(OrigTable!G118=\"\",\"\",ScriptText!$E$1&CHAR(10)&ScriptText!$C$1)","v":""},118]
["<tr>\n<td>79</td>\n</tr>\n\n<tr>\n<td>Notice Issued to taxpayers to inform them of their obligation to re-certify for Earned Income Credit with a\nForm 8862 on the next return they claim Earned Income Credit.</td>\n</tr>\n<tr>\n<td>IMF Notices</td>\n</tr>",{"$f":"IF(OrigTable!A119=\"\",\"\",ScriptText!$B$1&CHAR(10)&ScriptText!$D$1)","v":"<tr>\n<td>"},{"$f":"IF(OrigTable!A119=\"\",\"\",TEXT(OrigTable!A119,\"00\"))","v":"79"},{"$f":"IF(OrigTable!A119=\"\",\"\",ScriptText!$E$1&CHAR(10)&ScriptText!$C$1)","v":"</td>\n</tr>"},{"$f":"IF(OrigTable!B119=\"\",\"\",ScriptText!$B$1&CHAR(10)&ScriptText!$D$1)","v":""},{"$f":"IF(OrigTable!B119=\"\",\"\",TEXT(OrigTable!B119,\"00\"))","v":""},{"$f":"IF(OrigTable!B119=\"\",\"\",ScriptText!$E$1&CHAR(10)&ScriptText!C114)","v":""},{"$f":"IF(OrigTable!C119=\"\",\"\",ScriptText!$B$1&CHAR(10)&ScriptText!$D$1)","v":"<tr>\n<td>"},{"$f":"IF(OrigTable!C119=\"\",\"\",IF(LEN(OrigTable!C119)>255,LEFT(OrigTable!C119,250)&\". . .\",OrigTable!C119))","v":"Notice Issued to taxpayers to inform them of their obligation to re-certify for Earned Income Credit with a\nForm 8862 on the next return they claim Earned Income Credit."},{"$f":"IF(OrigTable!C119=\"\",\"\",ScriptText!$E$1&CHAR(10)&ScriptText!$C$1)","v":"</td>\n</tr>"},{"$f":"IF(OrigTable!D119=\"\",\"\",ScriptText!$B$1&CHAR(10)&ScriptText!$D$1)","v":"<tr>\n<td>"},{"$f":"IF(OrigTable!D119=\"\",\"\",TEXT(OrigTable!D119,\"00\"))","v":"IMF Notices"},{"$f":"IF(OrigTable!D119=\"\",\"\",ScriptText!$E$1&CHAR(10)&ScriptText!$C$1)","v":"</td>\n</tr>"},{"$f":"IF(OrigTable!E119=\"\",\"\",ScriptText!$B$1&CHAR(10)&ScriptText!$D$1)","v":""},{"$f":"IF(OrigTable!E119=\"\",\"\",TEXT(OrigTable!E119,\"00\"))","v":""},{"$f":"IF(OrigTable!E119=\"\",\"\",ScriptText!$E$1&CHAR(10)&ScriptText!$C$1)","v":""},{"$f":"IF(OrigTable!F119=\"\",\"\",ScriptText!$B$1&CHAR(10)&ScriptText!$D$1)","v":""},{"$f":"IF(OrigTable!F119=\"\",\"\",TEXT(OrigTable!F119,\"00\"))","v":""},{"$f":"IF(OrigTable!F119=\"\",\"\",ScriptText!$E$1&CHAR(10)&ScriptText!$C$1)","v":""},{"$f":"IF(OrigTable!G119=\"\",\"\",ScriptText!$B$1&CHAR(10)&ScriptText!$D$1)","v":""},{"$f":"IF(OrigTable!G119=\"\",\"\",TEXT(OrigTable!G119,\"00\"))","v":""},{"$f":"IF(OrigTable!G119=\"\",\"\",ScriptText!$E$1&CHAR(10)&ScriptText!$C$1)","v":""},119]
["<tr>\n<td>79A</td>\n</tr>\n\n<tr>\n<td>Notice issued to taxpayers informing them they are banned from claiming the Earned Income Credit for two years, and must re-certify to claim the Earned Income Credit in the first year after the ban has been lifted.</td>\n</tr>\n<tr>\n<td>IMF Notices</td>\n</tr>",{"$f":"IF(OrigTable!A120=\"\",\"\",ScriptText!$B$1&CHAR(10)&ScriptText!$D$1)","v":"<tr>\n<td>"},{"$f":"IF(OrigTable!A120=\"\",\"\",TEXT(OrigTable!A120,\"00\"))","v":"79A"},{"$f":"IF(OrigTable!A120=\"\",\"\",ScriptText!$E$1&CHAR(10)&ScriptText!$C$1)","v":"</td>\n</tr>"},{"$f":"IF(OrigTable!B120=\"\",\"\",ScriptText!$B$1&CHAR(10)&ScriptText!$D$1)","v":""},{"$f":"IF(OrigTable!B120=\"\",\"\",TEXT(OrigTable!B120,\"00\"))","v":""},{"$f":"IF(OrigTable!B120=\"\",\"\",ScriptText!$E$1&CHAR(10)&ScriptText!C115)","v":""},{"$f":"IF(OrigTable!C120=\"\",\"\",ScriptText!$B$1&CHAR(10)&ScriptText!$D$1)","v":"<tr>\n<td>"},{"$f":"IF(OrigTable!C120=\"\",\"\",IF(LEN(OrigTable!C120)>255,LEFT(OrigTable!C120,250)&\". . .\",OrigTable!C120))","v":"Notice issued to taxpayers informing them they are banned from claiming the Earned Income Credit for two years, and must re-certify to claim the Earned Income Credit in the first year after the ban has been lifted."},{"$f":"IF(OrigTable!C120=\"\",\"\",ScriptText!$E$1&CHAR(10)&ScriptText!$C$1)","v":"</td>\n</tr>"},{"$f":"IF(OrigTable!D120=\"\",\"\",ScriptText!$B$1&CHAR(10)&ScriptText!$D$1)","v":"<tr>\n<td>"},{"$f":"IF(OrigTable!D120=\"\",\"\",TEXT(OrigTable!D120,\"00\"))","v":"IMF Notices"},{"$f":"IF(OrigTable!D120=\"\",\"\",ScriptText!$E$1&CHAR(10)&ScriptText!$C$1)","v":"</td>\n</tr>"},{"$f":"IF(OrigTable!E120=\"\",\"\",ScriptText!$B$1&CHAR(10)&ScriptText!$D$1)","v":""},{"$f":"IF(OrigTable!E120=\"\",\"\",TEXT(OrigTable!E120,\"00\"))","v":""},{"$f":"IF(OrigTable!E120=\"\",\"\",ScriptText!$E$1&CHAR(10)&ScriptText!$C$1)","v":""},{"$f":"IF(OrigTable!F120=\"\",\"\",ScriptText!$B$1&CHAR(10)&ScriptText!$D$1)","v":""},{"$f":"IF(OrigTable!F120=\"\",\"\",TEXT(OrigTable!F120,\"00\"))","v":""},{"$f":"IF(OrigTable!F120=\"\",\"\",ScriptText!$E$1&CHAR(10)&ScriptText!$C$1)","v":""},{"$f":"IF(OrigTable!G120=\"\",\"\",ScriptText!$B$1&CHAR(10)&ScriptText!$D$1)","v":""},{"$f":"IF(OrigTable!G120=\"\",\"\",TEXT(OrigTable!G120,\"00\"))","v":""},{"$f":"IF(OrigTable!G120=\"\",\"\",ScriptText!$E$1&CHAR(10)&ScriptText!$C$1)","v":""},120]
["<tr>\n<td>79B</td>\n</tr>\n\n<tr>\n<td>Notice issued to taxpayers to inform them they are banned from claiming the Earned Income Credit for ten years, and must re-certify to claim the Earned Income Credit in the first year after the ban has been lifted.</td>\n</tr>\n<tr>\n<td>IMF Notices</td>\n</tr>",{"$f":"IF(OrigTable!A121=\"\",\"\",ScriptText!$B$1&CHAR(10)&ScriptText!$D$1)","v":"<tr>\n<td>"},{"$f":"IF(OrigTable!A121=\"\",\"\",TEXT(OrigTable!A121,\"00\"))","v":"79B"},{"$f":"IF(OrigTable!A121=\"\",\"\",ScriptText!$E$1&CHAR(10)&ScriptText!$C$1)","v":"</td>\n</tr>"},{"$f":"IF(OrigTable!B121=\"\",\"\",ScriptText!$B$1&CHAR(10)&ScriptText!$D$1)","v":""},{"$f":"IF(OrigTable!B121=\"\",\"\",TEXT(OrigTable!B121,\"00\"))","v":""},{"$f":"IF(OrigTable!B121=\"\",\"\",ScriptText!$E$1&CHAR(10)&ScriptText!C116)","v":""},{"$f":"IF(OrigTable!C121=\"\",\"\",ScriptText!$B$1&CHAR(10)&ScriptText!$D$1)","v":"<tr>\n<td>"},{"$f":"IF(OrigTable!C121=\"\",\"\",IF(LEN(OrigTable!C121)>255,LEFT(OrigTable!C121,250)&\". . .\",OrigTable!C121))","v":"Notice issued to taxpayers to inform them they are banned from claiming the Earned Income Credit for ten years, and must re-certify to claim the Earned Income Credit in the first year after the ban has been lifted."},{"$f":"IF(OrigTable!C121=\"\",\"\",ScriptText!$E$1&CHAR(10)&ScriptText!$C$1)","v":"</td>\n</tr>"},{"$f":"IF(OrigTable!D121=\"\",\"\",ScriptText!$B$1&CHAR(10)&ScriptText!$D$1)","v":"<tr>\n<td>"},{"$f":"IF(OrigTable!D121=\"\",\"\",TEXT(OrigTable!D121,\"00\"))","v":"IMF Notices"},{"$f":"IF(OrigTable!D121=\"\",\"\",ScriptText!$E$1&CHAR(10)&ScriptText!$C$1)","v":"</td>\n</tr>"},{"$f":"IF(OrigTable!E121=\"\",\"\",ScriptText!$B$1&CHAR(10)&ScriptText!$D$1)","v":""},{"$f":"IF(OrigTable!E121=\"\",\"\",TEXT(OrigTable!E121,\"00\"))","v":""},{"$f":"IF(OrigTable!E121=\"\",\"\",ScriptText!$E$1&CHAR(10)&ScriptText!$C$1)","v":""},{"$f":"IF(OrigTable!F121=\"\",\"\",ScriptText!$B$1&CHAR(10)&ScriptText!$D$1)","v":""},{"$f":"IF(OrigTable!F121=\"\",\"\",TEXT(OrigTable!F121,\"00\"))","v":""},{"$f":"IF(OrigTable!F121=\"\",\"\",ScriptText!$E$1&CHAR(10)&ScriptText!$C$1)","v":""},{"$f":"IF(OrigTable!G121=\"\",\"\",ScriptText!$B$1&CHAR(10)&ScriptText!$D$1)","v":""},{"$f":"IF(OrigTable!G121=\"\",\"\",TEXT(OrigTable!G121,\"00\"))","v":""},{"$f":"IF(OrigTable!G121=\"\",\"\",ScriptText!$E$1&CHAR(10)&ScriptText!$C$1)","v":""},121]
["<tr>\n<td>80</td>\n</tr>\n\n<tr>\n<td>Reminder notice that we still haven’t received taxpayer return, with credit waiting for possible refund.</td>\n</tr>\n<tr>\n<td>IMF Notices</td>\n</tr>",{"$f":"IF(OrigTable!A122=\"\",\"\",ScriptText!$B$1&CHAR(10)&ScriptText!$D$1)","v":"<tr>\n<td>"},{"$f":"IF(OrigTable!A122=\"\",\"\",TEXT(OrigTable!A122,\"00\"))","v":"80"},{"$f":"IF(OrigTable!A122=\"\",\"\",ScriptText!$E$1&CHAR(10)&ScriptText!$C$1)","v":"</td>\n</tr>"},{"$f":"IF(OrigTable!B122=\"\",\"\",ScriptText!$B$1&CHAR(10)&ScriptText!$D$1)","v":""},{"$f":"IF(OrigTable!B122=\"\",\"\",TEXT(OrigTable!B122,\"00\"))","v":""},{"$f":"IF(OrigTable!B122=\"\",\"\",ScriptText!$E$1&CHAR(10)&ScriptText!C117)","v":""},{"$f":"IF(OrigTable!C122=\"\",\"\",ScriptText!$B$1&CHAR(10)&ScriptText!$D$1)","v":"<tr>\n<td>"},{"$f":"IF(OrigTable!C122=\"\",\"\",IF(LEN(OrigTable!C122)>255,LEFT(OrigTable!C122,250)&\". . .\",OrigTable!C122))","v":"Reminder notice that we still haven’t received taxpayer return, with credit waiting for possible refund."},{"$f":"IF(OrigTable!C122=\"\",\"\",ScriptText!$E$1&CHAR(10)&ScriptText!$C$1)","v":"</td>\n</tr>"},{"$f":"IF(OrigTable!D122=\"\",\"\",ScriptText!$B$1&CHAR(10)&ScriptText!$D$1)","v":"<tr>\n<td>"},{"$f":"IF(OrigTable!D122=\"\",\"\",TEXT(OrigTable!D122,\"00\"))","v":"IMF Notices"},{"$f":"IF(OrigTable!D122=\"\",\"\",ScriptText!$E$1&CHAR(10)&ScriptText!$C$1)","v":"</td>\n</tr>"},{"$f":"IF(OrigTable!E122=\"\",\"\",ScriptText!$B$1&CHAR(10)&ScriptText!$D$1)","v":""},{"$f":"IF(OrigTable!E122=\"\",\"\",TEXT(OrigTable!E122,\"00\"))","v":""},{"$f":"IF(OrigTable!E122=\"\",\"\",ScriptText!$E$1&CHAR(10)&ScriptText!$C$1)","v":""},{"$f":"IF(OrigTable!F122=\"\",\"\",ScriptText!$B$1&CHAR(10)&ScriptText!$D$1)","v":""},{"$f":"IF(OrigTable!F122=\"\",\"\",TEXT(OrigTable!F122,\"00\"))","v":""},{"$f":"IF(OrigTable!F122=\"\",\"\",ScriptText!$E$1&CHAR(10)&ScriptText!$C$1)","v":""},{"$f":"IF(OrigTable!G122=\"\",\"\",ScriptText!$B$1&CHAR(10)&ScriptText!$D$1)","v":""},{"$f":"IF(OrigTable!G122=\"\",\"\",TEXT(OrigTable!G122,\"00\"))","v":""},{"$f":"IF(OrigTable!G122=\"\",\"\",ScriptText!$E$1&CHAR(10)&ScriptText!$C$1)","v":""},122]
["<tr>\n<td>81</td>\n</tr>\n\n<tr>\n<td>Reminder notice issued within 6 months of expiration date for refunding a credit when no return has been filed.</td>\n</tr>\n<tr>\n<td>IMF Notices</td>\n</tr>",{"$f":"IF(OrigTable!A123=\"\",\"\",ScriptText!$B$1&CHAR(10)&ScriptText!$D$1)","v":"<tr>\n<td>"},{"$f":"IF(OrigTable!A123=\"\",\"\",TEXT(OrigTable!A123,\"00\"))","v":"81"},{"$f":"IF(OrigTable!A123=\"\",\"\",ScriptText!$E$1&CHAR(10)&ScriptText!$C$1)","v":"</td>\n</tr>"},{"$f":"IF(OrigTable!B123=\"\",\"\",ScriptText!$B$1&CHAR(10)&ScriptText!$D$1)","v":""},{"$f":"IF(OrigTable!B123=\"\",\"\",TEXT(OrigTable!B123,\"00\"))","v":""},{"$f":"IF(OrigTable!B123=\"\",\"\",ScriptText!$E$1&CHAR(10)&ScriptText!C118)","v":""},{"$f":"IF(OrigTable!C123=\"\",\"\",ScriptText!$B$1&CHAR(10)&ScriptText!$D$1)","v":"<tr>\n<td>"},{"$f":"IF(OrigTable!C123=\"\",\"\",IF(LEN(OrigTable!C123)>255,LEFT(OrigTable!C123,250)&\". . .\",OrigTable!C123))","v":"Reminder notice issued within 6 months of expiration date for refunding a credit when no return has been filed."},{"$f":"IF(OrigTable!C123=\"\",\"\",ScriptText!$E$1&CHAR(10)&ScriptText!$C$1)","v":"</td>\n</tr>"},{"$f":"IF(OrigTable!D123=\"\",\"\",ScriptText!$B$1&CHAR(10)&ScriptText!$D$1)","v":"<tr>\n<td>"},{"$f":"IF(OrigTable!D123=\"\",\"\",TEXT(OrigTable!D123,\"00\"))","v":"IMF Notices"},{"$f":"IF(OrigTable!D123=\"\",\"\",ScriptText!$E$1&CHAR(10)&ScriptText!$C$1)","v":"</td>\n</tr>"},{"$f":"IF(OrigTable!E123=\"\",\"\",ScriptText!$B$1&CHAR(10)&ScriptText!$D$1)","v":""},{"$f":"IF(OrigTable!E123=\"\",\"\",TEXT(OrigTable!E123,\"00\"))","v":""},{"$f":"IF(OrigTable!E123=\"\",\"\",ScriptText!$E$1&CHAR(10)&ScriptText!$C$1)","v":""},{"$f":"IF(OrigTable!F123=\"\",\"\",ScriptText!$B$1&CHAR(10)&ScriptText!$D$1)","v":""},{"$f":"IF(OrigTable!F123=\"\",\"\",TEXT(OrigTable!F123,\"00\"))","v":""},{"$f":"IF(OrigTable!F123=\"\",\"\",ScriptText!$E$1&CHAR(10)&ScriptText!$C$1)","v":""},{"$f":"IF(OrigTable!G123=\"\",\"\",ScriptText!$B$1&CHAR(10)&ScriptText!$D$1)","v":""},{"$f":"IF(OrigTable!G123=\"\",\"\",TEXT(OrigTable!G123,\"00\"))","v":""},{"$f":"IF(OrigTable!G123=\"\",\"\",ScriptText!$E$1&CHAR(10)&ScriptText!$C$1)","v":""},123]
["<tr>\n<td>83</td>\n</tr>\n\n<tr>\n<td>Campus notice only: issued when a math error is referred to Exam.</td>\n</tr>\n<tr>\n<td>IMF Notices</td>\n</tr>",{"$f":"IF(OrigTable!A124=\"\",\"\",ScriptText!$B$1&CHAR(10)&ScriptText!$D$1)","v":"<tr>\n<td>"},{"$f":"IF(OrigTable!A124=\"\",\"\",TEXT(OrigTable!A124,\"00\"))","v":"83"},{"$f":"IF(OrigTable!A124=\"\",\"\",ScriptText!$E$1&CHAR(10)&ScriptText!$C$1)","v":"</td>\n</tr>"},{"$f":"IF(OrigTable!B124=\"\",\"\",ScriptText!$B$1&CHAR(10)&ScriptText!$D$1)","v":""},{"$f":"IF(OrigTable!B124=\"\",\"\",TEXT(OrigTable!B124,\"00\"))","v":""},{"$f":"IF(OrigTable!B124=\"\",\"\",ScriptText!$E$1&CHAR(10)&ScriptText!C119)","v":""},{"$f":"IF(OrigTable!C124=\"\",\"\",ScriptText!$B$1&CHAR(10)&ScriptText!$D$1)","v":"<tr>\n<td>"},{"$f":"IF(OrigTable!C124=\"\",\"\",IF(LEN(OrigTable!C124)>255,LEFT(OrigTable!C124,250)&\". . .\",OrigTable!C124))","v":"Campus notice only: issued when a math error is referred to Exam."},{"$f":"IF(OrigTable!C124=\"\",\"\",ScriptText!$E$1&CHAR(10)&ScriptText!$C$1)","v":"</td>\n</tr>"},{"$f":"IF(OrigTable!D124=\"\",\"\",ScriptText!$B$1&CHAR(10)&ScriptText!$D$1)","v":"<tr>\n<td>"},{"$f":"IF(OrigTable!D124=\"\",\"\",TEXT(OrigTable!D124,\"00\"))","v":"IMF Notices"},{"$f":"IF(OrigTable!D124=\"\",\"\",ScriptText!$E$1&CHAR(10)&ScriptText!$C$1)","v":"</td>\n</tr>"},{"$f":"IF(OrigTable!E124=\"\",\"\",ScriptText!$B$1&CHAR(10)&ScriptText!$D$1)","v":""},{"$f":"IF(OrigTable!E124=\"\",\"\",TEXT(OrigTable!E124,\"00\"))","v":""},{"$f":"IF(OrigTable!E124=\"\",\"\",ScriptText!$E$1&CHAR(10)&ScriptText!$C$1)","v":""},{"$f":"IF(OrigTable!F124=\"\",\"\",ScriptText!$B$1&CHAR(10)&ScriptText!$D$1)","v":""},{"$f":"IF(OrigTable!F124=\"\",\"\",TEXT(OrigTable!F124,\"00\"))","v":""},{"$f":"IF(OrigTable!F124=\"\",\"\",ScriptText!$E$1&CHAR(10)&ScriptText!$C$1)","v":""},{"$f":"IF(OrigTable!G124=\"\",\"\",ScriptText!$B$1&CHAR(10)&ScriptText!$D$1)","v":""},{"$f":"IF(OrigTable!G124=\"\",\"\",TEXT(OrigTable!G124,\"00\"))","v":""},{"$f":"IF(OrigTable!G124=\"\",\"\",ScriptText!$E$1&CHAR(10)&ScriptText!$C$1)","v":""},124]
["<tr>\n<td>85A</td>\n</tr>\n\n<tr>\n<td>Exam soft notice requesting confirmation of filing status. Master File will contain a TC 971, Action Code (AC) 138.</td>\n</tr>\n<tr>\n<td>IMF Notices</td>\n</tr>",{"$f":"IF(OrigTable!A125=\"\",\"\",ScriptText!$B$1&CHAR(10)&ScriptText!$D$1)","v":"<tr>\n<td>"},{"$f":"IF(OrigTable!A125=\"\",\"\",TEXT(OrigTable!A125,\"00\"))","v":"85A"},{"$f":"IF(OrigTable!A125=\"\",\"\",ScriptText!$E$1&CHAR(10)&ScriptText!$C$1)","v":"</td>\n</tr>"},{"$f":"IF(OrigTable!B125=\"\",\"\",ScriptText!$B$1&CHAR(10)&ScriptText!$D$1)","v":""},{"$f":"IF(OrigTable!B125=\"\",\"\",TEXT(OrigTable!B125,\"00\"))","v":""},{"$f":"IF(OrigTable!B125=\"\",\"\",ScriptText!$E$1&CHAR(10)&ScriptText!C120)","v":""},{"$f":"IF(OrigTable!C125=\"\",\"\",ScriptText!$B$1&CHAR(10)&ScriptText!$D$1)","v":"<tr>\n<td>"},{"$f":"IF(OrigTable!C125=\"\",\"\",IF(LEN(OrigTable!C125)>255,LEFT(OrigTable!C125,250)&\". . .\",OrigTable!C125))","v":"Exam soft notice requesting confirmation of filing status. Master File will contain a TC 971, Action Code (AC) 138."},{"$f":"IF(OrigTable!C125=\"\",\"\",ScriptText!$E$1&CHAR(10)&ScriptText!$C$1)","v":"</td>\n</tr>"},{"$f":"IF(OrigTable!D125=\"\",\"\",ScriptText!$B$1&CHAR(10)&ScriptText!$D$1)","v":"<tr>\n<td>"},{"$f":"IF(OrigTable!D125=\"\",\"\",TEXT(OrigTable!D125,\"00\"))","v":"IMF Notices"},{"$f":"IF(OrigTable!D125=\"\",\"\",ScriptText!$E$1&CHAR(10)&ScriptText!$C$1)","v":"</td>\n</tr>"},{"$f":"IF(OrigTable!E125=\"\",\"\",ScriptText!$B$1&CHAR(10)&ScriptText!$D$1)","v":""},{"$f":"IF(OrigTable!E125=\"\",\"\",TEXT(OrigTable!E125,\"00\"))","v":""},{"$f":"IF(OrigTable!E125=\"\",\"\",ScriptText!$E$1&CHAR(10)&ScriptText!$C$1)","v":""},{"$f":"IF(OrigTable!F125=\"\",\"\",ScriptText!$B$1&CHAR(10)&ScriptText!$D$1)","v":""},{"$f":"IF(OrigTable!F125=\"\",\"\",TEXT(OrigTable!F125,\"00\"))","v":""},{"$f":"IF(OrigTable!F125=\"\",\"\",ScriptText!$E$1&CHAR(10)&ScriptText!$C$1)","v":""},{"$f":"IF(OrigTable!G125=\"\",\"\",ScriptText!$B$1&CHAR(10)&ScriptText!$D$1)","v":""},{"$f":"IF(OrigTable!G125=\"\",\"\",TEXT(OrigTable!G125,\"00\"))","v":""},{"$f":"IF(OrigTable!G125=\"\",\"\",ScriptText!$E$1&CHAR(10)&ScriptText!$C$1)","v":""},125]
["<tr>\n<td>85B</td>\n</tr>\n\n<tr>\n<td>Exam soft notice requesting confirmation of a qualifying child for Earned Income Credit. Master File will contain a TC 971, Action Code (AC) 138.</td>\n</tr>\n<tr>\n<td>IMF Notices</td>\n</tr>",{"$f":"IF(OrigTable!A126=\"\",\"\",ScriptText!$B$1&CHAR(10)&ScriptText!$D$1)","v":"<tr>\n<td>"},{"$f":"IF(OrigTable!A126=\"\",\"\",TEXT(OrigTable!A126,\"00\"))","v":"85B"},{"$f":"IF(OrigTable!A126=\"\",\"\",ScriptText!$E$1&CHAR(10)&ScriptText!$C$1)","v":"</td>\n</tr>"},{"$f":"IF(OrigTable!B126=\"\",\"\",ScriptText!$B$1&CHAR(10)&ScriptText!$D$1)","v":""},{"$f":"IF(OrigTable!B126=\"\",\"\",TEXT(OrigTable!B126,\"00\"))","v":""},{"$f":"IF(OrigTable!B126=\"\",\"\",ScriptText!$E$1&CHAR(10)&ScriptText!C121)","v":""},{"$f":"IF(OrigTable!C126=\"\",\"\",ScriptText!$B$1&CHAR(10)&ScriptText!$D$1)","v":"<tr>\n<td>"},{"$f":"IF(OrigTable!C126=\"\",\"\",IF(LEN(OrigTable!C126)>255,LEFT(OrigTable!C126,250)&\". . .\",OrigTable!C126))","v":"Exam soft notice requesting confirmation of a qualifying child for Earned Income Credit. Master File will contain a TC 971, Action Code (AC) 138."},{"$f":"IF(OrigTable!C126=\"\",\"\",ScriptText!$E$1&CHAR(10)&ScriptText!$C$1)","v":"</td>\n</tr>"},{"$f":"IF(OrigTable!D126=\"\",\"\",ScriptText!$B$1&CHAR(10)&ScriptText!$D$1)","v":"<tr>\n<td>"},{"$f":"IF(OrigTable!D126=\"\",\"\",TEXT(OrigTable!D126,\"00\"))","v":"IMF Notices"},{"$f":"IF(OrigTable!D126=\"\",\"\",ScriptText!$E$1&CHAR(10)&ScriptText!$C$1)","v":"</td>\n</tr>"},{"$f":"IF(OrigTable!E126=\"\",\"\",ScriptText!$B$1&CHAR(10)&ScriptText!$D$1)","v":""},{"$f":"IF(OrigTable!E126=\"\",\"\",TEXT(OrigTable!E126,\"00\"))","v":""},{"$f":"IF(OrigTable!E126=\"\",\"\",ScriptText!$E$1&CHAR(10)&ScriptText!$C$1)","v":""},{"$f":"IF(OrigTable!F126=\"\",\"\",ScriptText!$B$1&CHAR(10)&ScriptText!$D$1)","v":""},{"$f":"IF(OrigTable!F126=\"\",\"\",TEXT(OrigTable!F126,\"00\"))","v":""},{"$f":"IF(OrigTable!F126=\"\",\"\",ScriptText!$E$1&CHAR(10)&ScriptText!$C$1)","v":""},{"$f":"IF(OrigTable!G126=\"\",\"\",ScriptText!$B$1&CHAR(10)&ScriptText!$D$1)","v":""},{"$f":"IF(OrigTable!G126=\"\",\"\",TEXT(OrigTable!G126,\"00\"))","v":""},{"$f":"IF(OrigTable!G126=\"\",\"\",ScriptText!$E$1&CHAR(10)&ScriptText!$C$1)","v":""},126]
["<tr>\n<td>85C</td>\n</tr>\n\n<tr>\n<td>Exam soft notice requesting confirmation of Schedule C income. Master File will contain a TC 971, Action\nCode (AC) 138.</td>\n</tr>\n<tr>\n<td>IMF Notices</td>\n</tr>",{"$f":"IF(OrigTable!A127=\"\",\"\",ScriptText!$B$1&CHAR(10)&ScriptText!$D$1)","v":"<tr>\n<td>"},{"$f":"IF(OrigTable!A127=\"\",\"\",TEXT(OrigTable!A127,\"00\"))","v":"85C"},{"$f":"IF(OrigTable!A127=\"\",\"\",ScriptText!$E$1&CHAR(10)&ScriptText!$C$1)","v":"</td>\n</tr>"},{"$f":"IF(OrigTable!B127=\"\",\"\",ScriptText!$B$1&CHAR(10)&ScriptText!$D$1)","v":""},{"$f":"IF(OrigTable!B127=\"\",\"\",TEXT(OrigTable!B127,\"00\"))","v":""},{"$f":"IF(OrigTable!B127=\"\",\"\",ScriptText!$E$1&CHAR(10)&ScriptText!C122)","v":""},{"$f":"IF(OrigTable!C127=\"\",\"\",ScriptText!$B$1&CHAR(10)&ScriptText!$D$1)","v":"<tr>\n<td>"},{"$f":"IF(OrigTable!C127=\"\",\"\",IF(LEN(OrigTable!C127)>255,LEFT(OrigTable!C127,250)&\". . .\",OrigTable!C127))","v":"Exam soft notice requesting confirmation of Schedule C income. Master File will contain a TC 971, Action\nCode (AC) 138."},{"$f":"IF(OrigTable!C127=\"\",\"\",ScriptText!$E$1&CHAR(10)&ScriptText!$C$1)","v":"</td>\n</tr>"},{"$f":"IF(OrigTable!D127=\"\",\"\",ScriptText!$B$1&CHAR(10)&ScriptText!$D$1)","v":"<tr>\n<td>"},{"$f":"IF(OrigTable!D127=\"\",\"\",TEXT(OrigTable!D127,\"00\"))","v":"IMF Notices"},{"$f":"IF(OrigTable!D127=\"\",\"\",ScriptText!$E$1&CHAR(10)&ScriptText!$C$1)","v":"</td>\n</tr>"},{"$f":"IF(OrigTable!E127=\"\",\"\",ScriptText!$B$1&CHAR(10)&ScriptText!$D$1)","v":""},{"$f":"IF(OrigTable!E127=\"\",\"\",TEXT(OrigTable!E127,\"00\"))","v":""},{"$f":"IF(OrigTable!E127=\"\",\"\",ScriptText!$E$1&CHAR(10)&ScriptText!$C$1)","v":""},{"$f":"IF(OrigTable!F127=\"\",\"\",ScriptText!$B$1&CHAR(10)&ScriptText!$D$1)","v":""},{"$f":"IF(OrigTable!F127=\"\",\"\",TEXT(OrigTable!F127,\"00\"))","v":""},{"$f":"IF(OrigTable!F127=\"\",\"\",ScriptText!$E$1&CHAR(10)&ScriptText!$C$1)","v":""},{"$f":"IF(OrigTable!G127=\"\",\"\",ScriptText!$B$1&CHAR(10)&ScriptText!$D$1)","v":""},{"$f":"IF(OrigTable!G127=\"\",\"\",TEXT(OrigTable!G127,\"00\"))","v":""},{"$f":"IF(OrigTable!G127=\"\",\"\",ScriptText!$E$1&CHAR(10)&ScriptText!$C$1)","v":""},127]
["<tr>\n<td>86</td>\n</tr>\n\n<tr>\n<td>Campus notice only: Issued when revenue receipt is input to a module restricted from generating interest or FTP.</td>\n</tr>\n<tr>\n<td>IMF Notices</td>\n</tr>",{"$f":"IF(OrigTable!A128=\"\",\"\",ScriptText!$B$1&CHAR(10)&ScriptText!$D$1)","v":"<tr>\n<td>"},{"$f":"IF(OrigTable!A128=\"\",\"\",TEXT(OrigTable!A128,\"00\"))","v":"86"},{"$f":"IF(OrigTable!A128=\"\",\"\",ScriptText!$E$1&CHAR(10)&ScriptText!$C$1)","v":"</td>\n</tr>"},{"$f":"IF(OrigTable!B128=\"\",\"\",ScriptText!$B$1&CHAR(10)&ScriptText!$D$1)","v":""},{"$f":"IF(OrigTable!B128=\"\",\"\",TEXT(OrigTable!B128,\"00\"))","v":""},{"$f":"IF(OrigTable!B128=\"\",\"\",ScriptText!$E$1&CHAR(10)&ScriptText!C123)","v":""},{"$f":"IF(OrigTable!C128=\"\",\"\",ScriptText!$B$1&CHAR(10)&ScriptText!$D$1)","v":"<tr>\n<td>"},{"$f":"IF(OrigTable!C128=\"\",\"\",IF(LEN(OrigTable!C128)>255,LEFT(OrigTable!C128,250)&\". . .\",OrigTable!C128))","v":"Campus notice only: Issued when revenue receipt is input to a module restricted from generating interest or FTP."},{"$f":"IF(OrigTable!C128=\"\",\"\",ScriptText!$E$1&CHAR(10)&ScriptText!$C$1)","v":"</td>\n</tr>"},{"$f":"IF(OrigTable!D128=\"\",\"\",ScriptText!$B$1&CHAR(10)&ScriptText!$D$1)","v":"<tr>\n<td>"},{"$f":"IF(OrigTable!D128=\"\",\"\",TEXT(OrigTable!D128,\"00\"))","v":"IMF Notices"},{"$f":"IF(OrigTable!D128=\"\",\"\",ScriptText!$E$1&CHAR(10)&ScriptText!$C$1)","v":"</td>\n</tr>"},{"$f":"IF(OrigTable!E128=\"\",\"\",ScriptText!$B$1&CHAR(10)&ScriptText!$D$1)","v":""},{"$f":"IF(OrigTable!E128=\"\",\"\",TEXT(OrigTable!E128,\"00\"))","v":""},{"$f":"IF(OrigTable!E128=\"\",\"\",ScriptText!$E$1&CHAR(10)&ScriptText!$C$1)","v":""},{"$f":"IF(OrigTable!F128=\"\",\"\",ScriptText!$B$1&CHAR(10)&ScriptText!$D$1)","v":""},{"$f":"IF(OrigTable!F128=\"\",\"\",TEXT(OrigTable!F128,\"00\"))","v":""},{"$f":"IF(OrigTable!F128=\"\",\"\",ScriptText!$E$1&CHAR(10)&ScriptText!$C$1)","v":""},{"$f":"IF(OrigTable!G128=\"\",\"\",ScriptText!$B$1&CHAR(10)&ScriptText!$D$1)","v":""},{"$f":"IF(OrigTable!G128=\"\",\"\",TEXT(OrigTable!G128,\"00\"))","v":""},{"$f":"IF(OrigTable!G128=\"\",\"\",ScriptText!$E$1&CHAR(10)&ScriptText!$C$1)","v":""},128]
["<tr>\n<td>87A</td>\n</tr>\n\n<tr>\n<td>Exam soft notice requesting confirmation of a qualifying child for Earned Income Credit, who was claimed on another return. Master File will contain a TC 971, Action Code (AC) 138.</td>\n</tr>\n<tr>\n<td>IMF Notices</td>\n</tr>",{"$f":"IF(OrigTable!A129=\"\",\"\",ScriptText!$B$1&CHAR(10)&ScriptText!$D$1)","v":"<tr>\n<td>"},{"$f":"IF(OrigTable!A129=\"\",\"\",TEXT(OrigTable!A129,\"00\"))","v":"87A"},{"$f":"IF(OrigTable!A129=\"\",\"\",ScriptText!$E$1&CHAR(10)&ScriptText!$C$1)","v":"</td>\n</tr>"},{"$f":"IF(OrigTable!B129=\"\",\"\",ScriptText!$B$1&CHAR(10)&ScriptText!$D$1)","v":""},{"$f":"IF(OrigTable!B129=\"\",\"\",TEXT(OrigTable!B129,\"00\"))","v":""},{"$f":"IF(OrigTable!B129=\"\",\"\",ScriptText!$E$1&CHAR(10)&ScriptText!C124)","v":""},{"$f":"IF(OrigTable!C129=\"\",\"\",ScriptText!$B$1&CHAR(10)&ScriptText!$D$1)","v":"<tr>\n<td>"},{"$f":"IF(OrigTable!C129=\"\",\"\",IF(LEN(OrigTable!C129)>255,LEFT(OrigTable!C129,250)&\". . .\",OrigTable!C129))","v":"Exam soft notice requesting confirmation of a qualifying child for Earned Income Credit, who was claimed on another return. Master File will contain a TC 971, Action Code (AC) 138."},{"$f":"IF(OrigTable!C129=\"\",\"\",ScriptText!$E$1&CHAR(10)&ScriptText!$C$1)","v":"</td>\n</tr>"},{"$f":"IF(OrigTable!D129=\"\",\"\",ScriptText!$B$1&CHAR(10)&ScriptText!$D$1)","v":"<tr>\n<td>"},{"$f":"IF(OrigTable!D129=\"\",\"\",TEXT(OrigTable!D129,\"00\"))","v":"IMF Notices"},{"$f":"IF(OrigTable!D129=\"\",\"\",ScriptText!$E$1&CHAR(10)&ScriptText!$C$1)","v":"</td>\n</tr>"},{"$f":"IF(OrigTable!E129=\"\",\"\",ScriptText!$B$1&CHAR(10)&ScriptText!$D$1)","v":""},{"$f":"IF(OrigTable!E129=\"\",\"\",TEXT(OrigTable!E129,\"00\"))","v":""},{"$f":"IF(OrigTable!E129=\"\",\"\",ScriptText!$E$1&CHAR(10)&ScriptText!$C$1)","v":""},{"$f":"IF(OrigTable!F129=\"\",\"\",ScriptText!$B$1&CHAR(10)&ScriptText!$D$1)","v":""},{"$f":"IF(OrigTable!F129=\"\",\"\",TEXT(OrigTable!F129,\"00\"))","v":""},{"$f":"IF(OrigTable!F129=\"\",\"\",ScriptText!$E$1&CHAR(10)&ScriptText!$C$1)","v":""},{"$f":"IF(OrigTable!G129=\"\",\"\",ScriptText!$B$1&CHAR(10)&ScriptText!$D$1)","v":""},{"$f":"IF(OrigTable!G129=\"\",\"\",TEXT(OrigTable!G129,\"00\"))","v":""},{"$f":"IF(OrigTable!G129=\"\",\"\",ScriptText!$E$1&CHAR(10)&ScriptText!$C$1)","v":""},129]
["<tr>\n<td>87B</td>\n</tr>\n\n<tr>\n<td>Exam soft notice requesting confirmation that the taxpayer can claim an exemption for themselves when another taxpayer also claimed them as an exemption. Master File will contain a TC 971, Action Code (AC) 138.</td>\n</tr>\n<tr>\n<td>IMF Notices</td>\n</tr>",{"$f":"IF(OrigTable!A130=\"\",\"\",ScriptText!$B$1&CHAR(10)&ScriptText!$D$1)","v":"<tr>\n<td>"},{"$f":"IF(OrigTable!A130=\"\",\"\",TEXT(OrigTable!A130,\"00\"))","v":"87B"},{"$f":"IF(OrigTable!A130=\"\",\"\",ScriptText!$E$1&CHAR(10)&ScriptText!$C$1)","v":"</td>\n</tr>"},{"$f":"IF(OrigTable!B130=\"\",\"\",ScriptText!$B$1&CHAR(10)&ScriptText!$D$1)","v":""},{"$f":"IF(OrigTable!B130=\"\",\"\",TEXT(OrigTable!B130,\"00\"))","v":""},{"$f":"IF(OrigTable!B130=\"\",\"\",ScriptText!$E$1&CHAR(10)&ScriptText!C125)","v":""},{"$f":"IF(OrigTable!C130=\"\",\"\",ScriptText!$B$1&CHAR(10)&ScriptText!$D$1)","v":"<tr>\n<td>"},{"$f":"IF(OrigTable!C130=\"\",\"\",IF(LEN(OrigTable!C130)>255,LEFT(OrigTable!C130,250)&\". . .\",OrigTable!C130))","v":"Exam soft notice requesting confirmation that the taxpayer can claim an exemption for themselves when another taxpayer also claimed them as an exemption. Master File will contain a TC 971, Action Code (AC) 138."},{"$f":"IF(OrigTable!C130=\"\",\"\",ScriptText!$E$1&CHAR(10)&ScriptText!$C$1)","v":"</td>\n</tr>"},{"$f":"IF(OrigTable!D130=\"\",\"\",ScriptText!$B$1&CHAR(10)&ScriptText!$D$1)","v":"<tr>\n<td>"},{"$f":"IF(OrigTable!D130=\"\",\"\",TEXT(OrigTable!D130,\"00\"))","v":"IMF Notices"},{"$f":"IF(OrigTable!D130=\"\",\"\",ScriptText!$E$1&CHAR(10)&ScriptText!$C$1)","v":"</td>\n</tr>"},{"$f":"IF(OrigTable!E130=\"\",\"\",ScriptText!$B$1&CHAR(10)&ScriptText!$D$1)","v":""},{"$f":"IF(OrigTable!E130=\"\",\"\",TEXT(OrigTable!E130,\"00\"))","v":""},{"$f":"IF(OrigTable!E130=\"\",\"\",ScriptText!$E$1&CHAR(10)&ScriptText!$C$1)","v":""},{"$f":"IF(OrigTable!F130=\"\",\"\",ScriptText!$B$1&CHAR(10)&ScriptText!$D$1)","v":""},{"$f":"IF(OrigTable!F130=\"\",\"\",TEXT(OrigTable!F130,\"00\"))","v":""},{"$f":"IF(OrigTable!F130=\"\",\"\",ScriptText!$E$1&CHAR(10)&ScriptText!$C$1)","v":""},{"$f":"IF(OrigTable!G130=\"\",\"\",ScriptText!$B$1&CHAR(10)&ScriptText!$D$1)","v":""},{"$f":"IF(OrigTable!G130=\"\",\"\",TEXT(OrigTable!G130,\"00\"))","v":""},{"$f":"IF(OrigTable!G130=\"\",\"\",ScriptText!$E$1&CHAR(10)&ScriptText!$C$1)","v":""},130]
["<tr>\n<td>87C</td>\n</tr>\n\n<tr>\n<td>Exam soft notice requesting confirmation that the taxpayer can claim a person as a dependent who is over the age of 23 and had reported gross income more than allowed for a dependent. Master File will contain a TC 971, Action Code (AC) 138.</td>\n</tr>\n<tr>\n<td>IMF Notices</td>\n</tr>",{"$f":"IF(OrigTable!A131=\"\",\"\",ScriptText!$B$1&CHAR(10)&ScriptText!$D$1)","v":"<tr>\n<td>"},{"$f":"IF(OrigTable!A131=\"\",\"\",TEXT(OrigTable!A131,\"00\"))","v":"87C"},{"$f":"IF(OrigTable!A131=\"\",\"\",ScriptText!$E$1&CHAR(10)&ScriptText!$C$1)","v":"</td>\n</tr>"},{"$f":"IF(OrigTable!B131=\"\",\"\",ScriptText!$B$1&CHAR(10)&ScriptText!$D$1)","v":""},{"$f":"IF(OrigTable!B131=\"\",\"\",TEXT(OrigTable!B131,\"00\"))","v":""},{"$f":"IF(OrigTable!B131=\"\",\"\",ScriptText!$E$1&CHAR(10)&ScriptText!C126)","v":""},{"$f":"IF(OrigTable!C131=\"\",\"\",ScriptText!$B$1&CHAR(10)&ScriptText!$D$1)","v":"<tr>\n<td>"},{"$f":"IF(OrigTable!C131=\"\",\"\",IF(LEN(OrigTable!C131)>255,LEFT(OrigTable!C131,250)&\". . .\",OrigTable!C131))","v":"Exam soft notice requesting confirmation that the taxpayer can claim a person as a dependent who is over the age of 23 and had reported gross income more than allowed for a dependent. Master File will contain a TC 971, Action Code (AC) 138."},{"$f":"IF(OrigTable!C131=\"\",\"\",ScriptText!$E$1&CHAR(10)&ScriptText!$C$1)","v":"</td>\n</tr>"},{"$f":"IF(OrigTable!D131=\"\",\"\",ScriptText!$B$1&CHAR(10)&ScriptText!$D$1)","v":"<tr>\n<td>"},{"$f":"IF(OrigTable!D131=\"\",\"\",TEXT(OrigTable!D131,\"00\"))","v":"IMF Notices"},{"$f":"IF(OrigTable!D131=\"\",\"\",ScriptText!$E$1&CHAR(10)&ScriptText!$C$1)","v":"</td>\n</tr>"},{"$f":"IF(OrigTable!E131=\"\",\"\",ScriptText!$B$1&CHAR(10)&ScriptText!$D$1)","v":""},{"$f":"IF(OrigTable!E131=\"\",\"\",TEXT(OrigTable!E131,\"00\"))","v":""},{"$f":"IF(OrigTable!E131=\"\",\"\",ScriptText!$E$1&CHAR(10)&ScriptText!$C$1)","v":""},{"$f":"IF(OrigTable!F131=\"\",\"\",ScriptText!$B$1&CHAR(10)&ScriptText!$D$1)","v":""},{"$f":"IF(OrigTable!F131=\"\",\"\",TEXT(OrigTable!F131,\"00\"))","v":""},{"$f":"IF(OrigTable!F131=\"\",\"\",ScriptText!$E$1&CHAR(10)&ScriptText!$C$1)","v":""},{"$f":"IF(OrigTable!G131=\"\",\"\",ScriptText!$B$1&CHAR(10)&ScriptText!$D$1)","v":""},{"$f":"IF(OrigTable!G131=\"\",\"\",TEXT(OrigTable!G131,\"00\"))","v":""},{"$f":"IF(OrigTable!G131=\"\",\"\",ScriptText!$E$1&CHAR(10)&ScriptText!$C$1)","v":""},131]
["<tr>\n<td>87D</td>\n</tr>\n\n<tr>\n<td>Exam soft notice requesting confirmation that the taxpayer can claim an exemption for a dependent that was also claimed on a joint return. Master File will contain a TC 971, Action Code (AC) 138.</td>\n</tr>\n<tr>\n<td>IMF Notices</td>\n</tr>",{"$f":"IF(OrigTable!A132=\"\",\"\",ScriptText!$B$1&CHAR(10)&ScriptText!$D$1)","v":"<tr>\n<td>"},{"$f":"IF(OrigTable!A132=\"\",\"\",TEXT(OrigTable!A132,\"00\"))","v":"87D"},{"$f":"IF(OrigTable!A132=\"\",\"\",ScriptText!$E$1&CHAR(10)&ScriptText!$C$1)","v":"</td>\n</tr>"},{"$f":"IF(OrigTable!B132=\"\",\"\",ScriptText!$B$1&CHAR(10)&ScriptText!$D$1)","v":""},{"$f":"IF(OrigTable!B132=\"\",\"\",TEXT(OrigTable!B132,\"00\"))","v":""},{"$f":"IF(OrigTable!B132=\"\",\"\",ScriptText!$E$1&CHAR(10)&ScriptText!C127)","v":""},{"$f":"IF(OrigTable!C132=\"\",\"\",ScriptText!$B$1&CHAR(10)&ScriptText!$D$1)","v":"<tr>\n<td>"},{"$f":"IF(OrigTable!C132=\"\",\"\",IF(LEN(OrigTable!C132)>255,LEFT(OrigTable!C132,250)&\". . .\",OrigTable!C132))","v":"Exam soft notice requesting confirmation that the taxpayer can claim an exemption for a dependent that was also claimed on a joint return. Master File will contain a TC 971, Action Code (AC) 138."},{"$f":"IF(OrigTable!C132=\"\",\"\",ScriptText!$E$1&CHAR(10)&ScriptText!$C$1)","v":"</td>\n</tr>"},{"$f":"IF(OrigTable!D132=\"\",\"\",ScriptText!$B$1&CHAR(10)&ScriptText!$D$1)","v":"<tr>\n<td>"},{"$f":"IF(OrigTable!D132=\"\",\"\",TEXT(OrigTable!D132,\"00\"))","v":"IMF Notices"},{"$f":"IF(OrigTable!D132=\"\",\"\",ScriptText!$E$1&CHAR(10)&ScriptText!$C$1)","v":"</td>\n</tr>"},{"$f":"IF(OrigTable!E132=\"\",\"\",ScriptText!$B$1&CHAR(10)&ScriptText!$D$1)","v":""},{"$f":"IF(OrigTable!E132=\"\",\"\",TEXT(OrigTable!E132,\"00\"))","v":""},{"$f":"IF(OrigTable!E132=\"\",\"\",ScriptText!$E$1&CHAR(10)&ScriptText!$C$1)","v":""},{"$f":"IF(OrigTable!F132=\"\",\"\",ScriptText!$B$1&CHAR(10)&ScriptText!$D$1)","v":""},{"$f":"IF(OrigTable!F132=\"\",\"\",TEXT(OrigTable!F132,\"00\"))","v":""},{"$f":"IF(OrigTable!F132=\"\",\"\",ScriptText!$E$1&CHAR(10)&ScriptText!$C$1)","v":""},{"$f":"IF(OrigTable!G132=\"\",\"\",ScriptText!$B$1&CHAR(10)&ScriptText!$D$1)","v":""},{"$f":"IF(OrigTable!G132=\"\",\"\",TEXT(OrigTable!G132,\"00\"))","v":""},{"$f":"IF(OrigTable!G132=\"\",\"\",ScriptText!$E$1&CHAR(10)&ScriptText!$C$1)","v":""},132]
["<tr>\n<td>88</td>\n</tr>\n\n<tr>\n<td>Notice to taxpayer that their current year refund is being held because they haven’t filed a prior year return\nwith reason to believe taxes will be owed.</td>\n</tr>\n<tr>\n<td>IMF Notices</td>\n</tr>",{"$f":"IF(OrigTable!A133=\"\",\"\",ScriptText!$B$1&CHAR(10)&ScriptText!$D$1)","v":"<tr>\n<td>"},{"$f":"IF(OrigTable!A133=\"\",\"\",TEXT(OrigTable!A133,\"00\"))","v":"88"},{"$f":"IF(OrigTable!A133=\"\",\"\",ScriptText!$E$1&CHAR(10)&ScriptText!$C$1)","v":"</td>\n</tr>"},{"$f":"IF(OrigTable!B133=\"\",\"\",ScriptText!$B$1&CHAR(10)&ScriptText!$D$1)","v":""},{"$f":"IF(OrigTable!B133=\"\",\"\",TEXT(OrigTable!B133,\"00\"))","v":""},{"$f":"IF(OrigTable!B133=\"\",\"\",ScriptText!$E$1&CHAR(10)&ScriptText!C128)","v":""},{"$f":"IF(OrigTable!C133=\"\",\"\",ScriptText!$B$1&CHAR(10)&ScriptText!$D$1)","v":"<tr>\n<td>"},{"$f":"IF(OrigTable!C133=\"\",\"\",IF(LEN(OrigTable!C133)>255,LEFT(OrigTable!C133,250)&\". . .\",OrigTable!C133))","v":"Notice to taxpayer that their current year refund is being held because they haven’t filed a prior year return\nwith reason to believe taxes will be owed."},{"$f":"IF(OrigTable!C133=\"\",\"\",ScriptText!$E$1&CHAR(10)&ScriptText!$C$1)","v":"</td>\n</tr>"},{"$f":"IF(OrigTable!D133=\"\",\"\",ScriptText!$B$1&CHAR(10)&ScriptText!$D$1)","v":"<tr>\n<td>"},{"$f":"IF(OrigTable!D133=\"\",\"\",TEXT(OrigTable!D133,\"00\"))","v":"IMF Notices"},{"$f":"IF(OrigTable!D133=\"\",\"\",ScriptText!$E$1&CHAR(10)&ScriptText!$C$1)","v":"</td>\n</tr>"},{"$f":"IF(OrigTable!E133=\"\",\"\",ScriptText!$B$1&CHAR(10)&ScriptText!$D$1)","v":""},{"$f":"IF(OrigTable!E133=\"\",\"\",TEXT(OrigTable!E133,\"00\"))","v":""},{"$f":"IF(OrigTable!E133=\"\",\"\",ScriptText!$E$1&CHAR(10)&ScriptText!$C$1)","v":""},{"$f":"IF(OrigTable!F133=\"\",\"\",ScriptText!$B$1&CHAR(10)&ScriptText!$D$1)","v":""},{"$f":"IF(OrigTable!F133=\"\",\"\",TEXT(OrigTable!F133,\"00\"))","v":""},{"$f":"IF(OrigTable!F133=\"\",\"\",ScriptText!$E$1&CHAR(10)&ScriptText!$C$1)","v":""},{"$f":"IF(OrigTable!G133=\"\",\"\",ScriptText!$B$1&CHAR(10)&ScriptText!$D$1)","v":""},{"$f":"IF(OrigTable!G133=\"\",\"\",TEXT(OrigTable!G133,\"00\"))","v":""},{"$f":"IF(OrigTable!G133=\"\",\"\",ScriptText!$E$1&CHAR(10)&ScriptText!$C$1)","v":""},133]
["<tr>\n<td>89</td>\n</tr>\n\n<tr>\n<td>Annual reminder notice for taxpayers with installment agreements showing all payments for the year and\ncurrent balances on all modules in the agreement.</td>\n</tr>\n<tr>\n<td>IMF Notices</td>\n</tr>",{"$f":"IF(OrigTable!A134=\"\",\"\",ScriptText!$B$1&CHAR(10)&ScriptText!$D$1)","v":"<tr>\n<td>"},{"$f":"IF(OrigTable!A134=\"\",\"\",TEXT(OrigTable!A134,\"00\"))","v":"89"},{"$f":"IF(OrigTable!A134=\"\",\"\",ScriptText!$E$1&CHAR(10)&ScriptText!$C$1)","v":"</td>\n</tr>"},{"$f":"IF(OrigTable!B134=\"\",\"\",ScriptText!$B$1&CHAR(10)&ScriptText!$D$1)","v":""},{"$f":"IF(OrigTable!B134=\"\",\"\",TEXT(OrigTable!B134,\"00\"))","v":""},{"$f":"IF(OrigTable!B134=\"\",\"\",ScriptText!$E$1&CHAR(10)&ScriptText!C129)","v":""},{"$f":"IF(OrigTable!C134=\"\",\"\",ScriptText!$B$1&CHAR(10)&ScriptText!$D$1)","v":"<tr>\n<td>"},{"$f":"IF(OrigTable!C134=\"\",\"\",IF(LEN(OrigTable!C134)>255,LEFT(OrigTable!C134,250)&\". . .\",OrigTable!C134))","v":"Annual reminder notice for taxpayers with installment agreements showing all payments for the year and\ncurrent balances on all modules in the agreement."},{"$f":"IF(OrigTable!C134=\"\",\"\",ScriptText!$E$1&CHAR(10)&ScriptText!$C$1)","v":"</td>\n</tr>"},{"$f":"IF(OrigTable!D134=\"\",\"\",ScriptText!$B$1&CHAR(10)&ScriptText!$D$1)","v":"<tr>\n<td>"},{"$f":"IF(OrigTable!D134=\"\",\"\",TEXT(OrigTable!D134,\"00\"))","v":"IMF Notices"},{"$f":"IF(OrigTable!D134=\"\",\"\",ScriptText!$E$1&CHAR(10)&ScriptText!$C$1)","v":"</td>\n</tr>"},{"$f":"IF(OrigTable!E134=\"\",\"\",ScriptText!$B$1&CHAR(10)&ScriptText!$D$1)","v":""},{"$f":"IF(OrigTable!E134=\"\",\"\",TEXT(OrigTable!E134,\"00\"))","v":""},{"$f":"IF(OrigTable!E134=\"\",\"\",ScriptText!$E$1&CHAR(10)&ScriptText!$C$1)","v":""},{"$f":"IF(OrigTable!F134=\"\",\"\",ScriptText!$B$1&CHAR(10)&ScriptText!$D$1)","v":""},{"$f":"IF(OrigTable!F134=\"\",\"\",TEXT(OrigTable!F134,\"00\"))","v":""},{"$f":"IF(OrigTable!F134=\"\",\"\",ScriptText!$E$1&CHAR(10)&ScriptText!$C$1)","v":""},{"$f":"IF(OrigTable!G134=\"\",\"\",ScriptText!$B$1&CHAR(10)&ScriptText!$D$1)","v":""},{"$f":"IF(OrigTable!G134=\"\",\"\",TEXT(OrigTable!G134,\"00\"))","v":""},{"$f":"IF(OrigTable!G134=\"\",\"\",ScriptText!$E$1&CHAR(10)&ScriptText!$C$1)","v":""},{"$f":"IF(LEN(A134)>3,ROW(),0)","v":134}]
["<tr>\n<td>90</td>\n</tr>\n\n<tr>\n<td>Final Demand Notice, Notice of Intent to Levy and Notice of Your Right to an Appeals hearing for the Federal Payment Levy Program.</td>\n</tr>\n<tr>\n<td>IMF Notices</td>\n</tr>",{"$f":"IF(OrigTable!A135=\"\",\"\",ScriptText!$B$1&CHAR(10)&ScriptText!$D$1)","v":"<tr>\n<td>"},{"$f":"IF(OrigTable!A135=\"\",\"\",TEXT(OrigTable!A135,\"00\"))","v":"90"},{"$f":"IF(OrigTable!A135=\"\",\"\",ScriptText!$E$1&CHAR(10)&ScriptText!$C$1)","v":"</td>\n</tr>"},{"$f":"IF(OrigTable!B135=\"\",\"\",ScriptText!$B$1&CHAR(10)&ScriptText!$D$1)","v":""},{"$f":"IF(OrigTable!B135=\"\",\"\",TEXT(OrigTable!B135,\"00\"))","v":""},{"$f":"IF(OrigTable!B135=\"\",\"\",ScriptText!$E$1&CHAR(10)&ScriptText!C130)","v":""},{"$f":"IF(OrigTable!C135=\"\",\"\",ScriptText!$B$1&CHAR(10)&ScriptText!$D$1)","v":"<tr>\n<td>"},{"$f":"IF(OrigTable!C135=\"\",\"\",IF(LEN(OrigTable!C135)>255,LEFT(OrigTable!C135,250)&\". . .\",OrigTable!C135))","v":"Final Demand Notice, Notice of Intent to Levy and Notice of Your Right to an Appeals hearing for the Federal Payment Levy Program."},{"$f":"IF(OrigTable!C135=\"\",\"\",ScriptText!$E$1&CHAR(10)&ScriptText!$C$1)","v":"</td>\n</tr>"},{"$f":"IF(OrigTable!D135=\"\",\"\",ScriptText!$B$1&CHAR(10)&ScriptText!$D$1)","v":"<tr>\n<td>"},{"$f":"IF(OrigTable!D135=\"\",\"\",TEXT(OrigTable!D135,\"00\"))","v":"IMF Notices"},{"$f":"IF(OrigTable!D135=\"\",\"\",ScriptText!$E$1&CHAR(10)&ScriptText!$C$1)","v":"</td>\n</tr>"},{"$f":"IF(OrigTable!E135=\"\",\"\",ScriptText!$B$1&CHAR(10)&ScriptText!$D$1)","v":""},{"$f":"IF(OrigTable!E135=\"\",\"\",TEXT(OrigTable!E135,\"00\"))","v":""},{"$f":"IF(OrigTable!E135=\"\",\"\",ScriptText!$E$1&CHAR(10)&ScriptText!$C$1)","v":""},{"$f":"IF(OrigTable!F135=\"\",\"\",ScriptText!$B$1&CHAR(10)&ScriptText!$D$1)","v":""},{"$f":"IF(OrigTable!F135=\"\",\"\",TEXT(OrigTable!F135,\"00\"))","v":""},{"$f":"IF(OrigTable!F135=\"\",\"\",ScriptText!$E$1&CHAR(10)&ScriptText!$C$1)","v":""},{"$f":"IF(OrigTable!G135=\"\",\"\",ScriptText!$B$1&CHAR(10)&ScriptText!$D$1)","v":""},{"$f":"IF(OrigTable!G135=\"\",\"\",TEXT(OrigTable!G135,\"00\"))","v":""},{"$f":"IF(OrigTable!G135=\"\",\"\",ScriptText!$E$1&CHAR(10)&ScriptText!$C$1)","v":""},135]
["<tr>\n<td>90C</td>\n</tr>\n\n<tr>\n<td>Final Demand Notice, Notice of Intent to Levy and Notice of Your Right to an Appeals hearing for the Federal Payment Levy Program, specifically for federal contractors.</td>\n</tr>\n<tr>\n<td>IMF Notices</td>\n</tr>",{"$f":"IF(OrigTable!A136=\"\",\"\",ScriptText!$B$1&CHAR(10)&ScriptText!$D$1)","v":"<tr>\n<td>"},{"$f":"IF(OrigTable!A136=\"\",\"\",TEXT(OrigTable!A136,\"00\"))","v":"90C"},{"$f":"IF(OrigTable!A136=\"\",\"\",ScriptText!$E$1&CHAR(10)&ScriptText!$C$1)","v":"</td>\n</tr>"},{"$f":"IF(OrigTable!B136=\"\",\"\",ScriptText!$B$1&CHAR(10)&ScriptText!$D$1)","v":""},{"$f":"IF(OrigTable!B136=\"\",\"\",TEXT(OrigTable!B136,\"00\"))","v":""},{"$f":"IF(OrigTable!B136=\"\",\"\",ScriptText!$E$1&CHAR(10)&ScriptText!C131)","v":""},{"$f":"IF(OrigTable!C136=\"\",\"\",ScriptText!$B$1&CHAR(10)&ScriptText!$D$1)","v":"<tr>\n<td>"},{"$f":"IF(OrigTable!C136=\"\",\"\",IF(LEN(OrigTable!C136)>255,LEFT(OrigTable!C136,250)&\". . .\",OrigTable!C136))","v":"Final Demand Notice, Notice of Intent to Levy and Notice of Your Right to an Appeals hearing for the Federal Payment Levy Program, specifically for federal contractors."},{"$f":"IF(OrigTable!C136=\"\",\"\",ScriptText!$E$1&CHAR(10)&ScriptText!$C$1)","v":"</td>\n</tr>"},{"$f":"IF(OrigTable!D136=\"\",\"\",ScriptText!$B$1&CHAR(10)&ScriptText!$D$1)","v":"<tr>\n<td>"},{"$f":"IF(OrigTable!D136=\"\",\"\",TEXT(OrigTable!D136,\"00\"))","v":"IMF Notices"},{"$f":"IF(OrigTable!D136=\"\",\"\",ScriptText!$E$1&CHAR(10)&ScriptText!$C$1)","v":"</td>\n</tr>"},{"$f":"IF(OrigTable!E136=\"\",\"\",ScriptText!$B$1&CHAR(10)&ScriptText!$D$1)","v":""},{"$f":"IF(OrigTable!E136=\"\",\"\",TEXT(OrigTable!E136,\"00\"))","v":""},{"$f":"IF(OrigTable!E136=\"\",\"\",ScriptText!$E$1&CHAR(10)&ScriptText!$C$1)","v":""},{"$f":"IF(OrigTable!F136=\"\",\"\",ScriptText!$B$1&CHAR(10)&ScriptText!$D$1)","v":""},{"$f":"IF(OrigTable!F136=\"\",\"\",TEXT(OrigTable!F136,\"00\"))","v":""},{"$f":"IF(OrigTable!F136=\"\",\"\",ScriptText!$E$1&CHAR(10)&ScriptText!$C$1)","v":""},{"$f":"IF(OrigTable!G136=\"\",\"\",ScriptText!$B$1&CHAR(10)&ScriptText!$D$1)","v":""},{"$f":"IF(OrigTable!G136=\"\",\"\",TEXT(OrigTable!G136,\"00\"))","v":""},{"$f":"IF(OrigTable!G136=\"\",\"\",ScriptText!$E$1&CHAR(10)&ScriptText!$C$1)","v":""},136]
[{"$f":"_xlfn.TEXTJOIN(\"\",TRUE,B137:D137)&CHAR(10)&_xlfn.TEXTJOIN(\"\",TRUE,E137:G137)&CHAR(10)&_xlfn.TEXTJOIN(\"\",TRUE,H137:J137)&CHAR(10)&_xlfn.TEXTJOIN(\"\",TRUE,K137:M137)&_xlfn.TEXTJOIN(\"\",TRUE,N137:P137)&_xlfn.TEXTJOIN(\"\",TRUE,Q137:S137)&_xlfn.TEXTJOIN(\"\",TRUE,T137:V137)","v":"<tr>\n<td>91</td>\n</tr>\n\n<tr>\n<td>Final Demand Notice, Notice of Intent to Levy and Notice of Your Right to an Appeals hearing for the Federal Payment Levy Program, specifically for 15% levy on Social Security Benefits.</td>\n</tr>\n<tr>\n<td>IMF Notices</td>\n</tr>"},{"$f":"IF(OrigTable!A137=\"\",\"\",ScriptText!$B$1&CHAR(10)&ScriptText!$D$1)","v":"<tr>\n<td>"},{"$f":"IF(OrigTable!A137=\"\",\"\",TEXT(OrigTable!A137,\"00\"))","v":"91"},{"$f":"IF(OrigTable!A137=\"\",\"\",ScriptText!$E$1&CHAR(10)&ScriptText!$C$1)","v":"</td>\n</tr>"},{"$f":"IF(OrigTable!B137=\"\",\"\",ScriptText!$B$1&CHAR(10)&ScriptText!$D$1)","v":""},{"$f":"IF(OrigTable!B137=\"\",\"\",TEXT(OrigTable!B137,\"00\"))","v":""},{"$f":"IF(OrigTable!B137=\"\",\"\",ScriptText!$E$1&CHAR(10)&ScriptText!C132)","v":""},{"$f":"IF(OrigTable!C137=\"\",\"\",ScriptText!$B$1&CHAR(10)&ScriptText!$D$1)","v":"<tr>\n<td>"},{"$f":"IF(OrigTable!C137=\"\",\"\",IF(LEN(OrigTable!C137)>255,LEFT(OrigTable!C137,250)&\". . .\",OrigTable!C137))","v":"Final Demand Notice, Notice of Intent to Levy and Notice of Your Right to an Appeals hearing for the Federal Payment Levy Program, specifically for 15% levy on Social Security Benefits."},{"$f":"IF(OrigTable!C137=\"\",\"\",ScriptText!$E$1&CHAR(10)&ScriptText!$C$1)","v":"</td>\n</tr>"},{"$f":"IF(OrigTable!D137=\"\",\"\",ScriptText!$B$1&CHAR(10)&ScriptText!$D$1)","v":"<tr>\n<td>"},{"$f":"IF(OrigTable!D137=\"\",\"\",TEXT(OrigTable!D137,\"00\"))","v":"IMF Notices"},{"$f":"IF(OrigTable!D137=\"\",\"\",ScriptText!$E$1&CHAR(10)&ScriptText!$C$1)","v":"</td>\n</tr>"},{"$f":"IF(OrigTable!E137=\"\",\"\",ScriptText!$B$1&CHAR(10)&ScriptText!$D$1)","v":""},{"$f":"IF(OrigTable!E137=\"\",\"\",TEXT(OrigTable!E137,\"00\"))","v":""},{"$f":"IF(OrigTable!E137=\"\",\"\",ScriptText!$E$1&CHAR(10)&ScriptText!$C$1)","v":""},{"$f":"IF(OrigTable!F137=\"\",\"\",ScriptText!$B$1&CHAR(10)&ScriptText!$D$1)","v":""},{"$f":"IF(OrigTable!F137=\"\",\"\",TEXT(OrigTable!F137,\"00\"))","v":""},{"$f":"IF(OrigTable!F137=\"\",\"\",ScriptText!$E$1&CHAR(10)&ScriptText!$C$1)","v":""},{"$f":"IF(OrigTable!G137=\"\",\"\",ScriptText!$B$1&CHAR(10)&ScriptText!$D$1)","v":""},{"$f":"IF(OrigTable!G137=\"\",\"\",TEXT(OrigTable!G137,\"00\"))","v":""},{"$f":"IF(OrigTable!G137=\"\",\"\",ScriptText!$E$1&CHAR(10)&ScriptText!$C$1)","v":""},137]
["<tr>\n<td>92</td>\n</tr>\n\n<tr>\n<td>Notice of Levy on State Income tax refund and notice of your right to a CDP hearing</td>\n</tr>\n<tr>\n<td>IMF Notices</td>\n</tr>",{"$f":"IF(OrigTable!A138=\"\",\"\",ScriptText!$B$1&CHAR(10)&ScriptText!$D$1)","v":"<tr>\n<td>"},{"$f":"IF(OrigTable!A138=\"\",\"\",TEXT(OrigTable!A138,\"00\"))","v":"92"},{"$f":"IF(OrigTable!A138=\"\",\"\",ScriptText!$E$1&CHAR(10)&ScriptText!$C$1)","v":"</td>\n</tr>"},{"$f":"IF(OrigTable!B138=\"\",\"\",ScriptText!$B$1&CHAR(10)&ScriptText!$D$1)","v":""},{"$f":"IF(OrigTable!B138=\"\",\"\",TEXT(OrigTable!B138,\"00\"))","v":""},{"$f":"IF(OrigTable!B138=\"\",\"\",ScriptText!$E$1&CHAR(10)&ScriptText!C133)","v":""},{"$f":"IF(OrigTable!C138=\"\",\"\",ScriptText!$B$1&CHAR(10)&ScriptText!$D$1)","v":"<tr>\n<td>"},{"$f":"IF(OrigTable!C138=\"\",\"\",IF(LEN(OrigTable!C138)>255,LEFT(OrigTable!C138,250)&\". . .\",OrigTable!C138))","v":"Notice of Levy on State Income tax refund and notice of your right to a CDP hearing"},{"$f":"IF(OrigTable!C138=\"\",\"\",ScriptText!$E$1&CHAR(10)&ScriptText!$C$1)","v":"</td>\n</tr>"},{"$f":"IF(OrigTable!D138=\"\",\"\",ScriptText!$B$1&CHAR(10)&ScriptText!$D$1)","v":"<tr>\n<td>"},{"$f":"IF(OrigTable!D138=\"\",\"\",TEXT(OrigTable!D138,\"00\"))","v":"IMF Notices"},{"$f":"IF(OrigTable!D138=\"\",\"\",ScriptText!$E$1&CHAR(10)&ScriptText!$C$1)","v":"</td>\n</tr>"},{"$f":"IF(OrigTable!E138=\"\",\"\",ScriptText!$B$1&CHAR(10)&ScriptText!$D$1)","v":""},{"$f":"IF(OrigTable!E138=\"\",\"\",TEXT(OrigTable!E138,\"00\"))","v":""},{"$f":"IF(OrigTable!E138=\"\",\"\",ScriptText!$E$1&CHAR(10)&ScriptText!$C$1)","v":""},{"$f":"IF(OrigTable!F138=\"\",\"\",ScriptText!$B$1&CHAR(10)&ScriptText!$D$1)","v":""},{"$f":"IF(OrigTable!F138=\"\",\"\",TEXT(OrigTable!F138,\"00\"))","v":""},{"$f":"IF(OrigTable!F138=\"\",\"\",ScriptText!$E$1&CHAR(10)&ScriptText!$C$1)","v":""},{"$f":"IF(OrigTable!G138=\"\",\"\",ScriptText!$B$1&CHAR(10)&ScriptText!$D$1)","v":""},{"$f":"IF(OrigTable!G138=\"\",\"\",TEXT(OrigTable!G138,\"00\"))","v":""},{"$f":"IF(OrigTable!G138=\"\",\"\",ScriptText!$E$1&CHAR(10)&ScriptText!$C$1)","v":""},138]
["<tr>\n<td>93</td>\n</tr>\n\n<tr>\n<td>Campus only notice: generated when a module contains a duplicate filing condition and an unreversed TC 420 or TC 576.</td>\n</tr>\n<tr>\n<td>IMF Notices</td>\n</tr>",{"$f":"IF(OrigTable!A139=\"\",\"\",ScriptText!$B$1&CHAR(10)&ScriptText!$D$1)","v":"<tr>\n<td>"},{"$f":"IF(OrigTable!A139=\"\",\"\",TEXT(OrigTable!A139,\"00\"))","v":"93"},{"$f":"IF(OrigTable!A139=\"\",\"\",ScriptText!$E$1&CHAR(10)&ScriptText!$C$1)","v":"</td>\n</tr>"},{"$f":"IF(OrigTable!B139=\"\",\"\",ScriptText!$B$1&CHAR(10)&ScriptText!$D$1)","v":""},{"$f":"IF(OrigTable!B139=\"\",\"\",TEXT(OrigTable!B139,\"00\"))","v":""},{"$f":"IF(OrigTable!B139=\"\",\"\",ScriptText!$E$1&CHAR(10)&ScriptText!C134)","v":""},{"$f":"IF(OrigTable!C139=\"\",\"\",ScriptText!$B$1&CHAR(10)&ScriptText!$D$1)","v":"<tr>\n<td>"},{"$f":"IF(OrigTable!C139=\"\",\"\",IF(LEN(OrigTable!C139)>255,LEFT(OrigTable!C139,250)&\". . .\",OrigTable!C139))","v":"Campus only notice: generated when a module contains a duplicate filing condition and an unreversed TC 420 or TC 576."},{"$f":"IF(OrigTable!C139=\"\",\"\",ScriptText!$E$1&CHAR(10)&ScriptText!$C$1)","v":"</td>\n</tr>"},{"$f":"IF(OrigTable!D139=\"\",\"\",ScriptText!$B$1&CHAR(10)&ScriptText!$D$1)","v":"<tr>\n<td>"},{"$f":"IF(OrigTable!D139=\"\",\"\",TEXT(OrigTable!D139,\"00\"))","v":"IMF Notices"},{"$f":"IF(OrigTable!D139=\"\",\"\",ScriptText!$E$1&CHAR(10)&ScriptText!$C$1)","v":"</td>\n</tr>"},{"$f":"IF(OrigTable!E139=\"\",\"\",ScriptText!$B$1&CHAR(10)&ScriptText!$D$1)","v":""},{"$f":"IF(OrigTable!E139=\"\",\"\",TEXT(OrigTable!E139,\"00\"))","v":""},{"$f":"IF(OrigTable!E139=\"\",\"\",ScriptText!$E$1&CHAR(10)&ScriptText!$C$1)","v":""},{"$f":"IF(OrigTable!F139=\"\",\"\",ScriptText!$B$1&CHAR(10)&ScriptText!$D$1)","v":""},{"$f":"IF(OrigTable!F139=\"\",\"\",TEXT(OrigTable!F139,\"00\"))","v":""},{"$f":"IF(OrigTable!F139=\"\",\"\",ScriptText!$E$1&CHAR(10)&ScriptText!$C$1)","v":""},{"$f":"IF(OrigTable!G139=\"\",\"\",ScriptText!$B$1&CHAR(10)&ScriptText!$D$1)","v":""},{"$f":"IF(OrigTable!G139=\"\",\"\",TEXT(OrigTable!G139,\"00\"))","v":""},{"$f":"IF(OrigTable!G139=\"\",\"\",ScriptText!$E$1&CHAR(10)&ScriptText!$C$1)","v":""},139]
["<tr>\n<td>94</td>\n</tr>\n\n<tr>\n<td>Notice of Levy for Criminal Restitution</td>\n</tr>\n<tr>\n<td>IMF Notices</td>\n</tr>",{"$f":"IF(OrigTable!A140=\"\",\"\",ScriptText!$B$1&CHAR(10)&ScriptText!$D$1)","v":"<tr>\n<td>"},{"$f":"IF(OrigTable!A140=\"\",\"\",TEXT(OrigTable!A140,\"00\"))","v":"94"},{"$f":"IF(OrigTable!A140=\"\",\"\",ScriptText!$E$1&CHAR(10)&ScriptText!$C$1)","v":"</td>\n</tr>"},{"$f":"IF(OrigTable!B140=\"\",\"\",ScriptText!$B$1&CHAR(10)&ScriptText!$D$1)","v":""},{"$f":"IF(OrigTable!B140=\"\",\"\",TEXT(OrigTable!B140,\"00\"))","v":""},{"$f":"IF(OrigTable!B140=\"\",\"\",ScriptText!$E$1&CHAR(10)&ScriptText!C135)","v":""},{"$f":"IF(OrigTable!C140=\"\",\"\",ScriptText!$B$1&CHAR(10)&ScriptText!$D$1)","v":"<tr>\n<td>"},{"$f":"IF(OrigTable!C140=\"\",\"\",IF(LEN(OrigTable!C140)>255,LEFT(OrigTable!C140,250)&\". . .\",OrigTable!C140))","v":"Notice of Levy for Criminal Restitution"},{"$f":"IF(OrigTable!C140=\"\",\"\",ScriptText!$E$1&CHAR(10)&ScriptText!$C$1)","v":"</td>\n</tr>"},{"$f":"IF(OrigTable!D140=\"\",\"\",ScriptText!$B$1&CHAR(10)&ScriptText!$D$1)","v":"<tr>\n<td>"},{"$f":"IF(OrigTable!D140=\"\",\"\",TEXT(OrigTable!D140,\"00\"))","v":"IMF Notices"},{"$f":"IF(OrigTable!D140=\"\",\"\",ScriptText!$E$1&CHAR(10)&ScriptText!$C$1)","v":"</td>\n</tr>"},{"$f":"IF(OrigTable!E140=\"\",\"\",ScriptText!$B$1&CHAR(10)&ScriptText!$D$1)","v":""},{"$f":"IF(OrigTable!E140=\"\",\"\",TEXT(OrigTable!E140,\"00\"))","v":""},{"$f":"IF(OrigTable!E140=\"\",\"\",ScriptText!$E$1&CHAR(10)&ScriptText!$C$1)","v":""},{"$f":"IF(OrigTable!F140=\"\",\"\",ScriptText!$B$1&CHAR(10)&ScriptText!$D$1)","v":""},{"$f":"IF(OrigTable!F140=\"\",\"\",TEXT(OrigTable!F140,\"00\"))","v":""},{"$f":"IF(OrigTable!F140=\"\",\"\",ScriptText!$E$1&CHAR(10)&ScriptText!$C$1)","v":""},{"$f":"IF(OrigTable!G140=\"\",\"\",ScriptText!$B$1&CHAR(10)&ScriptText!$D$1)","v":""},{"$f":"IF(OrigTable!G140=\"\",\"\",TEXT(OrigTable!G140,\"00\"))","v":""},{"$f":"IF(OrigTable!G140=\"\",\"\",ScriptText!$E$1&CHAR(10)&ScriptText!$C$1)","v":""},140]
["<tr>\n<td>96</td>\n</tr>\n\n<tr>\n<td>Campus only notice: Used to journalize the amount of a transfer out and to prepare the transfer document.\nGenerated whenever a TC 400 posts to a tax module.</td>\n</tr>\n<tr>\n<td>IMF Notices</td>\n</tr>",{"$f":"IF(OrigTable!A141=\"\",\"\",ScriptText!$B$1&CHAR(10)&ScriptText!$D$1)","v":"<tr>\n<td>"},{"$f":"IF(OrigTable!A141=\"\",\"\",TEXT(OrigTable!A141,\"00\"))","v":"96"},{"$f":"IF(OrigTable!A141=\"\",\"\",ScriptText!$E$1&CHAR(10)&ScriptText!$C$1)","v":"</td>\n</tr>"},{"$f":"IF(OrigTable!B141=\"\",\"\",ScriptText!$B$1&CHAR(10)&ScriptText!$D$1)","v":""},{"$f":"IF(OrigTable!B141=\"\",\"\",TEXT(OrigTable!B141,\"00\"))","v":""},{"$f":"IF(OrigTable!B141=\"\",\"\",ScriptText!$E$1&CHAR(10)&ScriptText!C136)","v":""},{"$f":"IF(OrigTable!C141=\"\",\"\",ScriptText!$B$1&CHAR(10)&ScriptText!$D$1)","v":"<tr>\n<td>"},{"$f":"IF(OrigTable!C141=\"\",\"\",IF(LEN(OrigTable!C141)>255,LEFT(OrigTable!C141,250)&\". . .\",OrigTable!C141))","v":"Campus only notice: Used to journalize the amount of a transfer out and to prepare the transfer document.\nGenerated whenever a TC 400 posts to a tax module."},{"$f":"IF(OrigTable!C141=\"\",\"\",ScriptText!$E$1&CHAR(10)&ScriptText!$C$1)","v":"</td>\n</tr>"},{"$f":"IF(OrigTable!D141=\"\",\"\",ScriptText!$B$1&CHAR(10)&ScriptText!$D$1)","v":"<tr>\n<td>"},{"$f":"IF(OrigTable!D141=\"\",\"\",TEXT(OrigTable!D141,\"00\"))","v":"IMF Notices"},{"$f":"IF(OrigTable!D141=\"\",\"\",ScriptText!$E$1&CHAR(10)&ScriptText!$C$1)","v":"</td>\n</tr>"},{"$f":"IF(OrigTable!E141=\"\",\"\",ScriptText!$B$1&CHAR(10)&ScriptText!$D$1)","v":""},{"$f":"IF(OrigTable!E141=\"\",\"\",TEXT(OrigTable!E141,\"00\"))","v":""},{"$f":"IF(OrigTable!E141=\"\",\"\",ScriptText!$E$1&CHAR(10)&ScriptText!$C$1)","v":""},{"$f":"IF(OrigTable!F141=\"\",\"\",ScriptText!$B$1&CHAR(10)&ScriptText!$D$1)","v":""},{"$f":"IF(OrigTable!F141=\"\",\"\",TEXT(OrigTable!F141,\"00\"))","v":""},{"$f":"IF(OrigTable!F141=\"\",\"\",ScriptText!$E$1&CHAR(10)&ScriptText!$C$1)","v":""},{"$f":"IF(OrigTable!G141=\"\",\"\",ScriptText!$B$1&CHAR(10)&ScriptText!$D$1)","v":""},{"$f":"IF(OrigTable!G141=\"\",\"\",TEXT(OrigTable!G141,\"00\"))","v":""},{"$f":"IF(OrigTable!G141=\"\",\"\",ScriptText!$E$1&CHAR(10)&ScriptText!$C$1)","v":""},141]
["<tr>\n<td>96I</td>\n</tr>\n\n<tr>\n<td>Campus only notice: Account transfer out transcript</td>\n</tr>\n<tr>\n<td>IMF Notices</td>\n</tr>",{"$f":"IF(OrigTable!A142=\"\",\"\",ScriptText!$B$1&CHAR(10)&ScriptText!$D$1)","v":"<tr>\n<td>"},{"$f":"IF(OrigTable!A142=\"\",\"\",TEXT(OrigTable!A142,\"00\"))","v":"96I"},{"$f":"IF(OrigTable!A142=\"\",\"\",ScriptText!$E$1&CHAR(10)&ScriptText!$C$1)","v":"</td>\n</tr>"},{"$f":"IF(OrigTable!B142=\"\",\"\",ScriptText!$B$1&CHAR(10)&ScriptText!$D$1)","v":""},{"$f":"IF(OrigTable!B142=\"\",\"\",TEXT(OrigTable!B142,\"00\"))","v":""},{"$f":"IF(OrigTable!B142=\"\",\"\",ScriptText!$E$1&CHAR(10)&ScriptText!C137)","v":""},{"$f":"IF(OrigTable!C142=\"\",\"\",ScriptText!$B$1&CHAR(10)&ScriptText!$D$1)","v":"<tr>\n<td>"},{"$f":"IF(OrigTable!C142=\"\",\"\",IF(LEN(OrigTable!C142)>255,LEFT(OrigTable!C142,250)&\". . .\",OrigTable!C142))","v":"Campus only notice: Account transfer out transcript"},{"$f":"IF(OrigTable!C142=\"\",\"\",ScriptText!$E$1&CHAR(10)&ScriptText!$C$1)","v":"</td>\n</tr>"},{"$f":"IF(OrigTable!D142=\"\",\"\",ScriptText!$B$1&CHAR(10)&ScriptText!$D$1)","v":"<tr>\n<td>"},{"$f":"IF(OrigTable!D142=\"\",\"\",TEXT(OrigTable!D142,\"00\"))","v":"IMF Notices"},{"$f":"IF(OrigTable!D142=\"\",\"\",ScriptText!$E$1&CHAR(10)&ScriptText!$C$1)","v":"</td>\n</tr>"},{"$f":"IF(OrigTable!E142=\"\",\"\",ScriptText!$B$1&CHAR(10)&ScriptText!$D$1)","v":""},{"$f":"IF(OrigTable!E142=\"\",\"\",TEXT(OrigTable!E142,\"00\"))","v":""},{"$f":"IF(OrigTable!E142=\"\",\"\",ScriptText!$E$1&CHAR(10)&ScriptText!$C$1)","v":""},{"$f":"IF(OrigTable!F142=\"\",\"\",ScriptText!$B$1&CHAR(10)&ScriptText!$D$1)","v":""},{"$f":"IF(OrigTable!F142=\"\",\"\",TEXT(OrigTable!F142,\"00\"))","v":""},{"$f":"IF(OrigTable!F142=\"\",\"\",ScriptText!$E$1&CHAR(10)&ScriptText!$C$1)","v":""},{"$f":"IF(OrigTable!G142=\"\",\"\",ScriptText!$B$1&CHAR(10)&ScriptText!$D$1)","v":""},{"$f":"IF(OrigTable!G142=\"\",\"\",TEXT(OrigTable!G142,\"00\"))","v":""},{"$f":"IF(OrigTable!G142=\"\",\"\",ScriptText!$E$1&CHAR(10)&ScriptText!$C$1)","v":""},142]
["<tr>\n<td>98</td>\n</tr>\n\n<tr>\n<td>Campus only notice: Generated to notify the Campus that the return (TC 150) has posted to a module in\nwhich such notification was previously requested.</td>\n</tr>\n<tr>\n<td>IMF Notices</td>\n</tr>",{"$f":"IF(OrigTable!A143=\"\",\"\",ScriptText!$B$1&CHAR(10)&ScriptText!$D$1)","v":"<tr>\n<td>"},{"$f":"IF(OrigTable!A143=\"\",\"\",TEXT(OrigTable!A143,\"00\"))","v":"98"},{"$f":"IF(OrigTable!A143=\"\",\"\",ScriptText!$E$1&CHAR(10)&ScriptText!$C$1)","v":"</td>\n</tr>"},{"$f":"IF(OrigTable!B143=\"\",\"\",ScriptText!$B$1&CHAR(10)&ScriptText!$D$1)","v":""},{"$f":"IF(OrigTable!B143=\"\",\"\",TEXT(OrigTable!B143,\"00\"))","v":""},{"$f":"IF(OrigTable!B143=\"\",\"\",ScriptText!$E$1&CHAR(10)&ScriptText!C138)","v":""},{"$f":"IF(OrigTable!C143=\"\",\"\",ScriptText!$B$1&CHAR(10)&ScriptText!$D$1)","v":"<tr>\n<td>"},{"$f":"IF(OrigTable!C143=\"\",\"\",IF(LEN(OrigTable!C143)>255,LEFT(OrigTable!C143,250)&\". . .\",OrigTable!C143))","v":"Campus only notice: Generated to notify the Campus that the return (TC 150) has posted to a module in\nwhich such notification was previously requested."},{"$f":"IF(OrigTable!C143=\"\",\"\",ScriptText!$E$1&CHAR(10)&ScriptText!$C$1)","v":"</td>\n</tr>"},{"$f":"IF(OrigTable!D143=\"\",\"\",ScriptText!$B$1&CHAR(10)&ScriptText!$D$1)","v":"<tr>\n<td>"},{"$f":"IF(OrigTable!D143=\"\",\"\",TEXT(OrigTable!D143,\"00\"))","v":"IMF Notices"},{"$f":"IF(OrigTable!D143=\"\",\"\",ScriptText!$E$1&CHAR(10)&ScriptText!$C$1)","v":"</td>\n</tr>"},{"$f":"IF(OrigTable!E143=\"\",\"\",ScriptText!$B$1&CHAR(10)&ScriptText!$D$1)","v":""},{"$f":"IF(OrigTable!E143=\"\",\"\",TEXT(OrigTable!E143,\"00\"))","v":""},{"$f":"IF(OrigTable!E143=\"\",\"\",ScriptText!$E$1&CHAR(10)&ScriptText!$C$1)","v":""},{"$f":"IF(OrigTable!F143=\"\",\"\",ScriptText!$B$1&CHAR(10)&ScriptText!$D$1)","v":""},{"$f":"IF(OrigTable!F143=\"\",\"\",TEXT(OrigTable!F143,\"00\"))","v":""},{"$f":"IF(OrigTable!F143=\"\",\"\",ScriptText!$E$1&CHAR(10)&ScriptText!$C$1)","v":""},{"$f":"IF(OrigTable!G143=\"\",\"\",ScriptText!$B$1&CHAR(10)&ScriptText!$D$1)","v":""},{"$f":"IF(OrigTable!G143=\"\",\"\",TEXT(OrigTable!G143,\"00\"))","v":""},{"$f":"IF(OrigTable!G143=\"\",\"\",ScriptText!$E$1&CHAR(10)&ScriptText!$C$1)","v":""},143]
["<tr>\n<td>98A</td>\n</tr>\n\n<tr>\n<td>Campus only notice: Generated to notify the Campus that the return (TC 150) has posted to a module in\nwhich such notification was previously requested.</td>\n</tr>\n<tr>\n<td>IMF Notices</td>\n</tr>",{"$f":"IF(OrigTable!A144=\"\",\"\",ScriptText!$B$1&CHAR(10)&ScriptText!$D$1)","v":"<tr>\n<td>"},{"$f":"IF(OrigTable!A144=\"\",\"\",TEXT(OrigTable!A144,\"00\"))","v":"98A"},{"$f":"IF(OrigTable!A144=\"\",\"\",ScriptText!$E$1&CHAR(10)&ScriptText!$C$1)","v":"</td>\n</tr>"},{"$f":"IF(OrigTable!B144=\"\",\"\",ScriptText!$B$1&CHAR(10)&ScriptText!$D$1)","v":""},{"$f":"IF(OrigTable!B144=\"\",\"\",TEXT(OrigTable!B144,\"00\"))","v":""},{"$f":"IF(OrigTable!B144=\"\",\"\",ScriptText!$E$1&CHAR(10)&ScriptText!C139)","v":""},{"$f":"IF(OrigTable!C144=\"\",\"\",ScriptText!$B$1&CHAR(10)&ScriptText!$D$1)","v":"<tr>\n<td>"},{"$f":"IF(OrigTable!C144=\"\",\"\",IF(LEN(OrigTable!C144)>255,LEFT(OrigTable!C144,250)&\". . .\",OrigTable!C144))","v":"Campus only notice: Generated to notify the Campus that the return (TC 150) has posted to a module in\nwhich such notification was previously requested."},{"$f":"IF(OrigTable!C144=\"\",\"\",ScriptText!$E$1&CHAR(10)&ScriptText!$C$1)","v":"</td>\n</tr>"},{"$f":"IF(OrigTable!D144=\"\",\"\",ScriptText!$B$1&CHAR(10)&ScriptText!$D$1)","v":"<tr>\n<td>"},{"$f":"IF(OrigTable!D144=\"\",\"\",TEXT(OrigTable!D144,\"00\"))","v":"IMF Notices"},{"$f":"IF(OrigTable!D144=\"\",\"\",ScriptText!$E$1&CHAR(10)&ScriptText!$C$1)","v":"</td>\n</tr>"},{"$f":"IF(OrigTable!E144=\"\",\"\",ScriptText!$B$1&CHAR(10)&ScriptText!$D$1)","v":""},{"$f":"IF(OrigTable!E144=\"\",\"\",TEXT(OrigTable!E144,\"00\"))","v":""},{"$f":"IF(OrigTable!E144=\"\",\"\",ScriptText!$E$1&CHAR(10)&ScriptText!$C$1)","v":""},{"$f":"IF(OrigTable!F144=\"\",\"\",ScriptText!$B$1&CHAR(10)&ScriptText!$D$1)","v":""},{"$f":"IF(OrigTable!F144=\"\",\"\",TEXT(OrigTable!F144,\"00\"))","v":""},{"$f":"IF(OrigTable!F144=\"\",\"\",ScriptText!$E$1&CHAR(10)&ScriptText!$C$1)","v":""},{"$f":"IF(OrigTable!G144=\"\",\"\",ScriptText!$B$1&CHAR(10)&ScriptText!$D$1)","v":""},{"$f":"IF(OrigTable!G144=\"\",\"\",TEXT(OrigTable!G144,\"00\"))","v":""},{"$f":"IF(OrigTable!G144=\"\",\"\",ScriptText!$E$1&CHAR(10)&ScriptText!$C$1)","v":""},144]
["<tr>\n<td>301</td>\n</tr>\n\n<tr>\n<td>eAuthentication Acknowledgement Notice.</td>\n</tr>\n<tr>\n<td>IMF Notices</td>\n</tr>",{"$f":"IF(OrigTable!A145=\"\",\"\",ScriptText!$B$1&CHAR(10)&ScriptText!$D$1)","v":"<tr>\n<td>"},{"$f":"IF(OrigTable!A145=\"\",\"\",TEXT(OrigTable!A145,\"00\"))","v":"301"},{"$f":"IF(OrigTable!A145=\"\",\"\",ScriptText!$E$1&CHAR(10)&ScriptText!$C$1)","v":"</td>\n</tr>"},{"$f":"IF(OrigTable!B145=\"\",\"\",ScriptText!$B$1&CHAR(10)&ScriptText!$D$1)","v":""},{"$f":"IF(OrigTable!B145=\"\",\"\",TEXT(OrigTable!B145,\"00\"))","v":""},{"$f":"IF(OrigTable!B145=\"\",\"\",ScriptText!$E$1&CHAR(10)&ScriptText!C140)","v":""},{"$f":"IF(OrigTable!C145=\"\",\"\",ScriptText!$B$1&CHAR(10)&ScriptText!$D$1)","v":"<tr>\n<td>"},{"$f":"IF(OrigTable!C145=\"\",\"\",IF(LEN(OrigTable!C145)>255,LEFT(OrigTable!C145,250)&\". . .\",OrigTable!C145))","v":"eAuthentication Acknowledgement Notice."},{"$f":"IF(OrigTable!C145=\"\",\"\",ScriptText!$E$1&CHAR(10)&ScriptText!$C$1)","v":"</td>\n</tr>"},{"$f":"IF(OrigTable!D145=\"\",\"\",ScriptText!$B$1&CHAR(10)&ScriptText!$D$1)","v":"<tr>\n<td>"},{"$f":"IF(OrigTable!D145=\"\",\"\",TEXT(OrigTable!D145,\"00\"))","v":"IMF Notices"},{"$f":"IF(OrigTable!D145=\"\",\"\",ScriptText!$E$1&CHAR(10)&ScriptText!$C$1)","v":"</td>\n</tr>"},{"$f":"IF(OrigTable!E145=\"\",\"\",ScriptText!$B$1&CHAR(10)&ScriptText!$D$1)","v":""},{"$f":"IF(OrigTable!E145=\"\",\"\",TEXT(OrigTable!E145,\"00\"))","v":""},{"$f":"IF(OrigTable!E145=\"\",\"\",ScriptText!$E$1&CHAR(10)&ScriptText!$C$1)","v":""},{"$f":"IF(OrigTable!F145=\"\",\"\",ScriptText!$B$1&CHAR(10)&ScriptText!$D$1)","v":""},{"$f":"IF(OrigTable!F145=\"\",\"\",TEXT(OrigTable!F145,\"00\"))","v":""},{"$f":"IF(OrigTable!F145=\"\",\"\",ScriptText!$E$1&CHAR(10)&ScriptText!$C$1)","v":""},{"$f":"IF(OrigTable!G145=\"\",\"\",ScriptText!$B$1&CHAR(10)&ScriptText!$D$1)","v":""},{"$f":"IF(OrigTable!G145=\"\",\"\",TEXT(OrigTable!G145,\"00\"))","v":""},{"$f":"IF(OrigTable!G145=\"\",\"\",ScriptText!$E$1&CHAR(10)&ScriptText!$C$1)","v":""},145]
["<tr>\n<td>2000</td>\n</tr>\n\n<tr>\n<td>Issued to taxpayer to request verification for unreported income, payments, or credits.</td>\n</tr>\n<tr>\n<td>IRP Notices</td>\n</tr>",{"$f":"IF(OrigTable!A146=\"\",\"\",ScriptText!$B$1&CHAR(10)&ScriptText!$D$1)","v":"<tr>\n<td>"},{"$f":"IF(OrigTable!A146=\"\",\"\",TEXT(OrigTable!A146,\"00\"))","v":"2000"},{"$f":"IF(OrigTable!A146=\"\",\"\",ScriptText!$E$1&CHAR(10)&ScriptText!$C$1)","v":"</td>\n</tr>"},{"$f":"IF(OrigTable!B146=\"\",\"\",ScriptText!$B$1&CHAR(10)&ScriptText!$D$1)","v":""},{"$f":"IF(OrigTable!B146=\"\",\"\",TEXT(OrigTable!B146,\"00\"))","v":""},{"$f":"IF(OrigTable!B146=\"\",\"\",ScriptText!$E$1&CHAR(10)&ScriptText!C141)","v":""},{"$f":"IF(OrigTable!C146=\"\",\"\",ScriptText!$B$1&CHAR(10)&ScriptText!$D$1)","v":"<tr>\n<td>"},{"$f":"IF(OrigTable!C146=\"\",\"\",IF(LEN(OrigTable!C146)>255,LEFT(OrigTable!C146,250)&\". . .\",OrigTable!C146))","v":"Issued to taxpayer to request verification for unreported income, payments, or credits."},{"$f":"IF(OrigTable!C146=\"\",\"\",ScriptText!$E$1&CHAR(10)&ScriptText!$C$1)","v":"</td>\n</tr>"},{"$f":"IF(OrigTable!D146=\"\",\"\",ScriptText!$B$1&CHAR(10)&ScriptText!$D$1)","v":"<tr>\n<td>"},{"$f":"IF(OrigTable!D146=\"\",\"\",TEXT(OrigTable!D146,\"00\"))","v":"IRP Notices"},{"$f":"IF(OrigTable!D146=\"\",\"\",ScriptText!$E$1&CHAR(10)&ScriptText!$C$1)","v":"</td>\n</tr>"},{"$f":"IF(OrigTable!E146=\"\",\"\",ScriptText!$B$1&CHAR(10)&ScriptText!$D$1)","v":""},{"$f":"IF(OrigTable!E146=\"\",\"\",TEXT(OrigTable!E146,\"00\"))","v":""},{"$f":"IF(OrigTable!E146=\"\",\"\",ScriptText!$E$1&CHAR(10)&ScriptText!$C$1)","v":""},{"$f":"IF(OrigTable!F146=\"\",\"\",ScriptText!$B$1&CHAR(10)&ScriptText!$D$1)","v":""},{"$f":"IF(OrigTable!F146=\"\",\"\",TEXT(OrigTable!F146,\"00\"))","v":""},{"$f":"IF(OrigTable!F146=\"\",\"\",ScriptText!$E$1&CHAR(10)&ScriptText!$C$1)","v":""},{"$f":"IF(OrigTable!G146=\"\",\"\",ScriptText!$B$1&CHAR(10)&ScriptText!$D$1)","v":""},{"$f":"IF(OrigTable!G146=\"\",\"\",TEXT(OrigTable!G146,\"00\"))","v":""},{"$f":"IF(OrigTable!G146=\"\",\"\",ScriptText!$E$1&CHAR(10)&ScriptText!$C$1)","v":""},146]
["<tr>\n<td>2005</td>\n</tr>\n\n<tr>\n<td>Computer generated letter to taxpayer acknowledging the receipt of information concerning their tax liability and closing their account (Underreporter issue).</td>\n</tr>\n<tr>\n<td>IRP Notices</td>\n</tr>",{"$f":"IF(OrigTable!A147=\"\",\"\",ScriptText!$B$1&CHAR(10)&ScriptText!$D$1)","v":"<tr>\n<td>"},{"$f":"IF(OrigTable!A147=\"\",\"\",TEXT(OrigTable!A147,\"00\"))","v":"2005"},{"$f":"IF(OrigTable!A147=\"\",\"\",ScriptText!$E$1&CHAR(10)&ScriptText!$C$1)","v":"</td>\n</tr>"},{"$f":"IF(OrigTable!B147=\"\",\"\",ScriptText!$B$1&CHAR(10)&ScriptText!$D$1)","v":""},{"$f":"IF(OrigTable!B147=\"\",\"\",TEXT(OrigTable!B147,\"00\"))","v":""},{"$f":"IF(OrigTable!B147=\"\",\"\",ScriptText!$E$1&CHAR(10)&ScriptText!C142)","v":""},{"$f":"IF(OrigTable!C147=\"\",\"\",ScriptText!$B$1&CHAR(10)&ScriptText!$D$1)","v":"<tr>\n<td>"},{"$f":"IF(OrigTable!C147=\"\",\"\",IF(LEN(OrigTable!C147)>255,LEFT(OrigTable!C147,250)&\". . .\",OrigTable!C147))","v":"Computer generated letter to taxpayer acknowledging the receipt of information concerning their tax liability and closing their account (Underreporter issue)."},{"$f":"IF(OrigTable!C147=\"\",\"\",ScriptText!$E$1&CHAR(10)&ScriptText!$C$1)","v":"</td>\n</tr>"},{"$f":"IF(OrigTable!D147=\"\",\"\",ScriptText!$B$1&CHAR(10)&ScriptText!$D$1)","v":"<tr>\n<td>"},{"$f":"IF(OrigTable!D147=\"\",\"\",TEXT(OrigTable!D147,\"00\"))","v":"IRP Notices"},{"$f":"IF(OrigTable!D147=\"\",\"\",ScriptText!$E$1&CHAR(10)&ScriptText!$C$1)","v":"</td>\n</tr>"},{"$f":"IF(OrigTable!E147=\"\",\"\",ScriptText!$B$1&CHAR(10)&ScriptText!$D$1)","v":""},{"$f":"IF(OrigTable!E147=\"\",\"\",TEXT(OrigTable!E147,\"00\"))","v":""},{"$f":"IF(OrigTable!E147=\"\",\"\",ScriptText!$E$1&CHAR(10)&ScriptText!$C$1)","v":""},{"$f":"IF(OrigTable!F147=\"\",\"\",ScriptText!$B$1&CHAR(10)&ScriptText!$D$1)","v":""},{"$f":"IF(OrigTable!F147=\"\",\"\",TEXT(OrigTable!F147,\"00\"))","v":""},{"$f":"IF(OrigTable!F147=\"\",\"\",ScriptText!$E$1&CHAR(10)&ScriptText!$C$1)","v":""},{"$f":"IF(OrigTable!G147=\"\",\"\",ScriptText!$B$1&CHAR(10)&ScriptText!$D$1)","v":""},{"$f":"IF(OrigTable!G147=\"\",\"\",TEXT(OrigTable!G147,\"00\"))","v":""},{"$f":"IF(OrigTable!G147=\"\",\"\",ScriptText!$E$1&CHAR(10)&ScriptText!$C$1)","v":""},147]
["<tr>\n<td>2006</td>\n</tr>\n\n<tr>\n<td>Computer generated letter to taxpayer acknowledging the receipt of information concerning their tax\nliability.</td>\n</tr>\n<tr>\n<td>IRP Notices</td>\n</tr>",{"$f":"IF(OrigTable!A148=\"\",\"\",ScriptText!$B$1&CHAR(10)&ScriptText!$D$1)","v":"<tr>\n<td>"},{"$f":"IF(OrigTable!A148=\"\",\"\",TEXT(OrigTable!A148,\"00\"))","v":"2006"},{"$f":"IF(OrigTable!A148=\"\",\"\",ScriptText!$E$1&CHAR(10)&ScriptText!$C$1)","v":"</td>\n</tr>"},{"$f":"IF(OrigTable!B148=\"\",\"\",ScriptText!$B$1&CHAR(10)&ScriptText!$D$1)","v":""},{"$f":"IF(OrigTable!B148=\"\",\"\",TEXT(OrigTable!B148,\"00\"))","v":""},{"$f":"IF(OrigTable!B148=\"\",\"\",ScriptText!$E$1&CHAR(10)&ScriptText!C143)","v":""},{"$f":"IF(OrigTable!C148=\"\",\"\",ScriptText!$B$1&CHAR(10)&ScriptText!$D$1)","v":"<tr>\n<td>"},{"$f":"IF(OrigTable!C148=\"\",\"\",IF(LEN(OrigTable!C148)>255,LEFT(OrigTable!C148,250)&\". . .\",OrigTable!C148))","v":"Computer generated letter to taxpayer acknowledging the receipt of information concerning their tax\nliability."},{"$f":"IF(OrigTable!C148=\"\",\"\",ScriptText!$E$1&CHAR(10)&ScriptText!$C$1)","v":"</td>\n</tr>"},{"$f":"IF(OrigTable!D148=\"\",\"\",ScriptText!$B$1&CHAR(10)&ScriptText!$D$1)","v":"<tr>\n<td>"},{"$f":"IF(OrigTable!D148=\"\",\"\",TEXT(OrigTable!D148,\"00\"))","v":"IRP Notices"},{"$f":"IF(OrigTable!D148=\"\",\"\",ScriptText!$E$1&CHAR(10)&ScriptText!$C$1)","v":"</td>\n</tr>"},{"$f":"IF(OrigTable!E148=\"\",\"\",ScriptText!$B$1&CHAR(10)&ScriptText!$D$1)","v":""},{"$f":"IF(OrigTable!E148=\"\",\"\",TEXT(OrigTable!E148,\"00\"))","v":""},{"$f":"IF(OrigTable!E148=\"\",\"\",ScriptText!$E$1&CHAR(10)&ScriptText!$C$1)","v":""},{"$f":"IF(OrigTable!F148=\"\",\"\",ScriptText!$B$1&CHAR(10)&ScriptText!$D$1)","v":""},{"$f":"IF(OrigTable!F148=\"\",\"\",TEXT(OrigTable!F148,\"00\"))","v":""},{"$f":"IF(OrigTable!F148=\"\",\"\",ScriptText!$E$1&CHAR(10)&ScriptText!$C$1)","v":""},{"$f":"IF(OrigTable!G148=\"\",\"\",ScriptText!$B$1&CHAR(10)&ScriptText!$D$1)","v":""},{"$f":"IF(OrigTable!G148=\"\",\"\",TEXT(OrigTable!G148,\"00\"))","v":""},{"$f":"IF(OrigTable!G148=\"\",\"\",ScriptText!$E$1&CHAR(10)&ScriptText!$C$1)","v":""},148]
["<tr>\n<td>2057</td>\n</tr>\n\n<tr>\n<td>Check your records to confirm the income you received</td>\n</tr>\n<tr>\n<td>IRP Notices</td>\n</tr>",{"$f":"IF(OrigTable!A149=\"\",\"\",ScriptText!$B$1&CHAR(10)&ScriptText!$D$1)","v":"<tr>\n<td>"},{"$f":"IF(OrigTable!A149=\"\",\"\",TEXT(OrigTable!A149,\"00\"))","v":"2057"},{"$f":"IF(OrigTable!A149=\"\",\"\",ScriptText!$E$1&CHAR(10)&ScriptText!$C$1)","v":"</td>\n</tr>"},{"$f":"IF(OrigTable!B149=\"\",\"\",ScriptText!$B$1&CHAR(10)&ScriptText!$D$1)","v":""},{"$f":"IF(OrigTable!B149=\"\",\"\",TEXT(OrigTable!B149,\"00\"))","v":""},{"$f":"IF(OrigTable!B149=\"\",\"\",ScriptText!$E$1&CHAR(10)&ScriptText!C144)","v":""},{"$f":"IF(OrigTable!C149=\"\",\"\",ScriptText!$B$1&CHAR(10)&ScriptText!$D$1)","v":"<tr>\n<td>"},{"$f":"IF(OrigTable!C149=\"\",\"\",IF(LEN(OrigTable!C149)>255,LEFT(OrigTable!C149,250)&\". . .\",OrigTable!C149))","v":"Check your records to confirm the income you received"},{"$f":"IF(OrigTable!C149=\"\",\"\",ScriptText!$E$1&CHAR(10)&ScriptText!$C$1)","v":"</td>\n</tr>"},{"$f":"IF(OrigTable!D149=\"\",\"\",ScriptText!$B$1&CHAR(10)&ScriptText!$D$1)","v":"<tr>\n<td>"},{"$f":"IF(OrigTable!D149=\"\",\"\",TEXT(OrigTable!D149,\"00\"))","v":"IRP Notices"},{"$f":"IF(OrigTable!D149=\"\",\"\",ScriptText!$E$1&CHAR(10)&ScriptText!$C$1)","v":"</td>\n</tr>"},{"$f":"IF(OrigTable!E149=\"\",\"\",ScriptText!$B$1&CHAR(10)&ScriptText!$D$1)","v":""},{"$f":"IF(OrigTable!E149=\"\",\"\",TEXT(OrigTable!E149,\"00\"))","v":""},{"$f":"IF(OrigTable!E149=\"\",\"\",ScriptText!$E$1&CHAR(10)&ScriptText!$C$1)","v":""},{"$f":"IF(OrigTable!F149=\"\",\"\",ScriptText!$B$1&CHAR(10)&ScriptText!$D$1)","v":""},{"$f":"IF(OrigTable!F149=\"\",\"\",TEXT(OrigTable!F149,\"00\"))","v":""},{"$f":"IF(OrigTable!F149=\"\",\"\",ScriptText!$E$1&CHAR(10)&ScriptText!$C$1)","v":""},{"$f":"IF(OrigTable!G149=\"\",\"\",ScriptText!$B$1&CHAR(10)&ScriptText!$D$1)","v":""},{"$f":"IF(OrigTable!G149=\"\",\"\",TEXT(OrigTable!G149,\"00\"))","v":""},{"$f":"IF(OrigTable!G149=\"\",\"\",ScriptText!$E$1&CHAR(10)&ScriptText!$C$1)","v":""},149]
["<tr>\n<td>2100</td>\n</tr>\n\n<tr>\n<td>Check Your Backup Withholding List (\"Large\" payers)</td>\n</tr>\n<tr>\n<td>IRP Notices</td>\n</tr>",{"$f":"IF(OrigTable!A150=\"\",\"\",ScriptText!$B$1&CHAR(10)&ScriptText!$D$1)","v":"<tr>\n<td>"},{"$f":"IF(OrigTable!A150=\"\",\"\",TEXT(OrigTable!A150,\"00\"))","v":"2100"},{"$f":"IF(OrigTable!A150=\"\",\"\",ScriptText!$E$1&CHAR(10)&ScriptText!$C$1)","v":"</td>\n</tr>"},{"$f":"IF(OrigTable!B150=\"\",\"\",ScriptText!$B$1&CHAR(10)&ScriptText!$D$1)","v":""},{"$f":"IF(OrigTable!B150=\"\",\"\",TEXT(OrigTable!B150,\"00\"))","v":""},{"$f":"IF(OrigTable!B150=\"\",\"\",ScriptText!$E$1&CHAR(10)&ScriptText!C145)","v":""},{"$f":"IF(OrigTable!C150=\"\",\"\",ScriptText!$B$1&CHAR(10)&ScriptText!$D$1)","v":"<tr>\n<td>"},{"$f":"IF(OrigTable!C150=\"\",\"\",IF(LEN(OrigTable!C150)>255,LEFT(OrigTable!C150,250)&\". . .\",OrigTable!C150))","v":"Check Your Backup Withholding List (\"Large\" payers)"},{"$f":"IF(OrigTable!C150=\"\",\"\",ScriptText!$E$1&CHAR(10)&ScriptText!$C$1)","v":"</td>\n</tr>"},{"$f":"IF(OrigTable!D150=\"\",\"\",ScriptText!$B$1&CHAR(10)&ScriptText!$D$1)","v":"<tr>\n<td>"},{"$f":"IF(OrigTable!D150=\"\",\"\",TEXT(OrigTable!D150,\"00\"))","v":"IRP Notices"},{"$f":"IF(OrigTable!D150=\"\",\"\",ScriptText!$E$1&CHAR(10)&ScriptText!$C$1)","v":"</td>\n</tr>"},{"$f":"IF(OrigTable!E150=\"\",\"\",ScriptText!$B$1&CHAR(10)&ScriptText!$D$1)","v":""},{"$f":"IF(OrigTable!E150=\"\",\"\",TEXT(OrigTable!E150,\"00\"))","v":""},{"$f":"IF(OrigTable!E150=\"\",\"\",ScriptText!$E$1&CHAR(10)&ScriptText!$C$1)","v":""},{"$f":"IF(OrigTable!F150=\"\",\"\",ScriptText!$B$1&CHAR(10)&ScriptText!$D$1)","v":""},{"$f":"IF(OrigTable!F150=\"\",\"\",TEXT(OrigTable!F150,\"00\"))","v":""},{"$f":"IF(OrigTable!F150=\"\",\"\",ScriptText!$E$1&CHAR(10)&ScriptText!$C$1)","v":""},{"$f":"IF(OrigTable!G150=\"\",\"\",ScriptText!$B$1&CHAR(10)&ScriptText!$D$1)","v":""},{"$f":"IF(OrigTable!G150=\"\",\"\",TEXT(OrigTable!G150,\"00\"))","v":""},{"$f":"IF(OrigTable!G150=\"\",\"\",ScriptText!$E$1&CHAR(10)&ScriptText!$C$1)","v":""},150]
["<tr>\n<td>2100A</td>\n</tr>\n\n<tr>\n<td>Please Check Your Backup Withholding List (\"Small\" payers)</td>\n</tr>\n<tr>\n<td>IRP Notices</td>\n</tr>",{"$f":"IF(OrigTable!A151=\"\",\"\",ScriptText!$B$1&CHAR(10)&ScriptText!$D$1)","v":"<tr>\n<td>"},{"$f":"IF(OrigTable!A151=\"\",\"\",TEXT(OrigTable!A151,\"00\"))","v":"2100A"},{"$f":"IF(OrigTable!A151=\"\",\"\",ScriptText!$E$1&CHAR(10)&ScriptText!$C$1)","v":"</td>\n</tr>"},{"$f":"IF(OrigTable!B151=\"\",\"\",ScriptText!$B$1&CHAR(10)&ScriptText!$D$1)","v":""},{"$f":"IF(OrigTable!B151=\"\",\"\",TEXT(OrigTable!B151,\"00\"))","v":""},{"$f":"IF(OrigTable!B151=\"\",\"\",ScriptText!$E$1&CHAR(10)&ScriptText!C146)","v":""},{"$f":"IF(OrigTable!C151=\"\",\"\",ScriptText!$B$1&CHAR(10)&ScriptText!$D$1)","v":"<tr>\n<td>"},{"$f":"IF(OrigTable!C151=\"\",\"\",IF(LEN(OrigTable!C151)>255,LEFT(OrigTable!C151,250)&\". . .\",OrigTable!C151))","v":"Please Check Your Backup Withholding List (\"Small\" payers)"},{"$f":"IF(OrigTable!C151=\"\",\"\",ScriptText!$E$1&CHAR(10)&ScriptText!$C$1)","v":"</td>\n</tr>"},{"$f":"IF(OrigTable!D151=\"\",\"\",ScriptText!$B$1&CHAR(10)&ScriptText!$D$1)","v":"<tr>\n<td>"},{"$f":"IF(OrigTable!D151=\"\",\"\",TEXT(OrigTable!D151,\"00\"))","v":"IRP Notices"},{"$f":"IF(OrigTable!D151=\"\",\"\",ScriptText!$E$1&CHAR(10)&ScriptText!$C$1)","v":"</td>\n</tr>"},{"$f":"IF(OrigTable!E151=\"\",\"\",ScriptText!$B$1&CHAR(10)&ScriptText!$D$1)","v":""},{"$f":"IF(OrigTable!E151=\"\",\"\",TEXT(OrigTable!E151,\"00\"))","v":""},{"$f":"IF(OrigTable!E151=\"\",\"\",ScriptText!$E$1&CHAR(10)&ScriptText!$C$1)","v":""},{"$f":"IF(OrigTable!F151=\"\",\"\",ScriptText!$B$1&CHAR(10)&ScriptText!$D$1)","v":""},{"$f":"IF(OrigTable!F151=\"\",\"\",TEXT(OrigTable!F151,\"00\"))","v":""},{"$f":"IF(OrigTable!F151=\"\",\"\",ScriptText!$E$1&CHAR(10)&ScriptText!$C$1)","v":""},{"$f":"IF(OrigTable!G151=\"\",\"\",ScriptText!$B$1&CHAR(10)&ScriptText!$D$1)","v":""},{"$f":"IF(OrigTable!G151=\"\",\"\",TEXT(OrigTable!G151,\"00\"))","v":""},{"$f":"IF(OrigTable!G151=\"\",\"\",ScriptText!$E$1&CHAR(10)&ScriptText!$C$1)","v":""},151]
["<tr>\n<td>2501</td>\n</tr>\n\n<tr>\n<td>Initial contact notice to resolve discrepancy between Income, Credits and/or deductions claimed on return and those reported by payers on information returns.</td>\n</tr>\n<tr>\n<td>IRP Notices</td>\n</tr>",{"$f":"IF(OrigTable!A152=\"\",\"\",ScriptText!$B$1&CHAR(10)&ScriptText!$D$1)","v":"<tr>\n<td>"},{"$f":"IF(OrigTable!A152=\"\",\"\",TEXT(OrigTable!A152,\"00\"))","v":"2501"},{"$f":"IF(OrigTable!A152=\"\",\"\",ScriptText!$E$1&CHAR(10)&ScriptText!$C$1)","v":"</td>\n</tr>"},{"$f":"IF(OrigTable!B152=\"\",\"\",ScriptText!$B$1&CHAR(10)&ScriptText!$D$1)","v":""},{"$f":"IF(OrigTable!B152=\"\",\"\",TEXT(OrigTable!B152,\"00\"))","v":""},{"$f":"IF(OrigTable!B152=\"\",\"\",ScriptText!$E$1&CHAR(10)&ScriptText!C147)","v":""},{"$f":"IF(OrigTable!C152=\"\",\"\",ScriptText!$B$1&CHAR(10)&ScriptText!$D$1)","v":"<tr>\n<td>"},{"$f":"IF(OrigTable!C152=\"\",\"\",IF(LEN(OrigTable!C152)>255,LEFT(OrigTable!C152,250)&\". . .\",OrigTable!C152))","v":"Initial contact notice to resolve discrepancy between Income, Credits and/or deductions claimed on return and those reported by payers on information returns."},{"$f":"IF(OrigTable!C152=\"\",\"\",ScriptText!$E$1&CHAR(10)&ScriptText!$C$1)","v":"</td>\n</tr>"},{"$f":"IF(OrigTable!D152=\"\",\"\",ScriptText!$B$1&CHAR(10)&ScriptText!$D$1)","v":"<tr>\n<td>"},{"$f":"IF(OrigTable!D152=\"\",\"\",TEXT(OrigTable!D152,\"00\"))","v":"IRP Notices"},{"$f":"IF(OrigTable!D152=\"\",\"\",ScriptText!$E$1&CHAR(10)&ScriptText!$C$1)","v":"</td>\n</tr>"},{"$f":"IF(OrigTable!E152=\"\",\"\",ScriptText!$B$1&CHAR(10)&ScriptText!$D$1)","v":""},{"$f":"IF(OrigTable!E152=\"\",\"\",TEXT(OrigTable!E152,\"00\"))","v":""},{"$f":"IF(OrigTable!E152=\"\",\"\",ScriptText!$E$1&CHAR(10)&ScriptText!$C$1)","v":""},{"$f":"IF(OrigTable!F152=\"\",\"\",ScriptText!$B$1&CHAR(10)&ScriptText!$D$1)","v":""},{"$f":"IF(OrigTable!F152=\"\",\"\",TEXT(OrigTable!F152,\"00\"))","v":""},{"$f":"IF(OrigTable!F152=\"\",\"\",ScriptText!$E$1&CHAR(10)&ScriptText!$C$1)","v":""},{"$f":"IF(OrigTable!G152=\"\",\"\",ScriptText!$B$1&CHAR(10)&ScriptText!$D$1)","v":""},{"$f":"IF(OrigTable!G152=\"\",\"\",TEXT(OrigTable!G152,\"00\"))","v":""},{"$f":"IF(OrigTable!G152=\"\",\"\",ScriptText!$E$1&CHAR(10)&ScriptText!$C$1)","v":""},152]
["<tr>\n<td>2566</td>\n</tr>\n\n<tr>\n<td>You must file your tax return</td>\n</tr>\n<tr>\n<td>IRP Notices</td>\n</tr>",{"$f":"IF(OrigTable!A153=\"\",\"\",ScriptText!$B$1&CHAR(10)&ScriptText!$D$1)","v":"<tr>\n<td>"},{"$f":"IF(OrigTable!A153=\"\",\"\",TEXT(OrigTable!A153,\"00\"))","v":"2566"},{"$f":"IF(OrigTable!A153=\"\",\"\",ScriptText!$E$1&CHAR(10)&ScriptText!$C$1)","v":"</td>\n</tr>"},{"$f":"IF(OrigTable!B153=\"\",\"\",ScriptText!$B$1&CHAR(10)&ScriptText!$D$1)","v":""},{"$f":"IF(OrigTable!B153=\"\",\"\",TEXT(OrigTable!B153,\"00\"))","v":""},{"$f":"IF(OrigTable!B153=\"\",\"\",ScriptText!$E$1&CHAR(10)&ScriptText!C148)","v":""},{"$f":"IF(OrigTable!C153=\"\",\"\",ScriptText!$B$1&CHAR(10)&ScriptText!$D$1)","v":"<tr>\n<td>"},{"$f":"IF(OrigTable!C153=\"\",\"\",IF(LEN(OrigTable!C153)>255,LEFT(OrigTable!C153,250)&\". . .\",OrigTable!C153))","v":"You must file your tax return"},{"$f":"IF(OrigTable!C153=\"\",\"\",ScriptText!$E$1&CHAR(10)&ScriptText!$C$1)","v":"</td>\n</tr>"},{"$f":"IF(OrigTable!D153=\"\",\"\",ScriptText!$B$1&CHAR(10)&ScriptText!$D$1)","v":"<tr>\n<td>"},{"$f":"IF(OrigTable!D153=\"\",\"\",TEXT(OrigTable!D153,\"00\"))","v":"IRP Notices"},{"$f":"IF(OrigTable!D153=\"\",\"\",ScriptText!$E$1&CHAR(10)&ScriptText!$C$1)","v":"</td>\n</tr>"},{"$f":"IF(OrigTable!E153=\"\",\"\",ScriptText!$B$1&CHAR(10)&ScriptText!$D$1)","v":""},{"$f":"IF(OrigTable!E153=\"\",\"\",TEXT(OrigTable!E153,\"00\"))","v":""},{"$f":"IF(OrigTable!E153=\"\",\"\",ScriptText!$E$1&CHAR(10)&ScriptText!$C$1)","v":""},{"$f":"IF(OrigTable!F153=\"\",\"\",ScriptText!$B$1&CHAR(10)&ScriptText!$D$1)","v":""},{"$f":"IF(OrigTable!F153=\"\",\"\",TEXT(OrigTable!F153,\"00\"))","v":""},{"$f":"IF(OrigTable!F153=\"\",\"\",ScriptText!$E$1&CHAR(10)&ScriptText!$C$1)","v":""},{"$f":"IF(OrigTable!G153=\"\",\"\",ScriptText!$B$1&CHAR(10)&ScriptText!$D$1)","v":""},{"$f":"IF(OrigTable!G153=\"\",\"\",TEXT(OrigTable!G153,\"00\"))","v":""},{"$f":"IF(OrigTable!G153=\"\",\"\",ScriptText!$E$1&CHAR(10)&ScriptText!$C$1)","v":""},153]
["<tr>\n<td>2566R</td>\n</tr>\n\n<tr>\n<td>We may apply your refund to tax due</td>\n</tr>\n<tr>\n<td>IRP Notices</td>\n</tr>",{"$f":"IF(OrigTable!A154=\"\",\"\",ScriptText!$B$1&CHAR(10)&ScriptText!$D$1)","v":"<tr>\n<td>"},{"$f":"IF(OrigTable!A154=\"\",\"\",TEXT(OrigTable!A154,\"00\"))","v":"2566R"},{"$f":"IF(OrigTable!A154=\"\",\"\",ScriptText!$E$1&CHAR(10)&ScriptText!$C$1)","v":"</td>\n</tr>"},{"$f":"IF(OrigTable!B154=\"\",\"\",ScriptText!$B$1&CHAR(10)&ScriptText!$D$1)","v":""},{"$f":"IF(OrigTable!B154=\"\",\"\",TEXT(OrigTable!B154,\"00\"))","v":""},{"$f":"IF(OrigTable!B154=\"\",\"\",ScriptText!$E$1&CHAR(10)&ScriptText!C149)","v":""},{"$f":"IF(OrigTable!C154=\"\",\"\",ScriptText!$B$1&CHAR(10)&ScriptText!$D$1)","v":"<tr>\n<td>"},{"$f":"IF(OrigTable!C154=\"\",\"\",IF(LEN(OrigTable!C154)>255,LEFT(OrigTable!C154,250)&\". . .\",OrigTable!C154))","v":"We may apply your refund to tax due"},{"$f":"IF(OrigTable!C154=\"\",\"\",ScriptText!$E$1&CHAR(10)&ScriptText!$C$1)","v":"</td>\n</tr>"},{"$f":"IF(OrigTable!D154=\"\",\"\",ScriptText!$B$1&CHAR(10)&ScriptText!$D$1)","v":"<tr>\n<td>"},{"$f":"IF(OrigTable!D154=\"\",\"\",TEXT(OrigTable!D154,\"00\"))","v":"IRP Notices"},{"$f":"IF(OrigTable!D154=\"\",\"\",ScriptText!$E$1&CHAR(10)&ScriptText!$C$1)","v":"</td>\n</tr>"},{"$f":"IF(OrigTable!E154=\"\",\"\",ScriptText!$B$1&CHAR(10)&ScriptText!$D$1)","v":""},{"$f":"IF(OrigTable!E154=\"\",\"\",TEXT(OrigTable!E154,\"00\"))","v":""},{"$f":"IF(OrigTable!E154=\"\",\"\",ScriptText!$E$1&CHAR(10)&ScriptText!$C$1)","v":""},{"$f":"IF(OrigTable!F154=\"\",\"\",ScriptText!$B$1&CHAR(10)&ScriptText!$D$1)","v":""},{"$f":"IF(OrigTable!F154=\"\",\"\",TEXT(OrigTable!F154,\"00\"))","v":""},{"$f":"IF(OrigTable!F154=\"\",\"\",ScriptText!$E$1&CHAR(10)&ScriptText!$C$1)","v":""},{"$f":"IF(OrigTable!G154=\"\",\"\",ScriptText!$B$1&CHAR(10)&ScriptText!$D$1)","v":""},{"$f":"IF(OrigTable!G154=\"\",\"\",TEXT(OrigTable!G154,\"00\"))","v":""},{"$f":"IF(OrigTable!G154=\"\",\"\",ScriptText!$E$1&CHAR(10)&ScriptText!$C$1)","v":""},154]
["<tr>\n<td>3219A</td>\n</tr>\n\n<tr>\n<td>Increase in tax and notice of your right to challenge, IMF</td>\n</tr>\n<tr>\n<td>IRP Notices</td>\n</tr>",{"$f":"IF(OrigTable!A155=\"\",\"\",ScriptText!$B$1&CHAR(10)&ScriptText!$D$1)","v":"<tr>\n<td>"},{"$f":"IF(OrigTable!A155=\"\",\"\",TEXT(OrigTable!A155,\"00\"))","v":"3219A"},{"$f":"IF(OrigTable!A155=\"\",\"\",ScriptText!$E$1&CHAR(10)&ScriptText!$C$1)","v":"</td>\n</tr>"},{"$f":"IF(OrigTable!B155=\"\",\"\",ScriptText!$B$1&CHAR(10)&ScriptText!$D$1)","v":""},{"$f":"IF(OrigTable!B155=\"\",\"\",TEXT(OrigTable!B155,\"00\"))","v":""},{"$f":"IF(OrigTable!B155=\"\",\"\",ScriptText!$E$1&CHAR(10)&ScriptText!C150)","v":""},{"$f":"IF(OrigTable!C155=\"\",\"\",ScriptText!$B$1&CHAR(10)&ScriptText!$D$1)","v":"<tr>\n<td>"},{"$f":"IF(OrigTable!C155=\"\",\"\",IF(LEN(OrigTable!C155)>255,LEFT(OrigTable!C155,250)&\". . .\",OrigTable!C155))","v":"Increase in tax and notice of your right to challenge, IMF"},{"$f":"IF(OrigTable!C155=\"\",\"\",ScriptText!$E$1&CHAR(10)&ScriptText!$C$1)","v":"</td>\n</tr>"},{"$f":"IF(OrigTable!D155=\"\",\"\",ScriptText!$B$1&CHAR(10)&ScriptText!$D$1)","v":"<tr>\n<td>"},{"$f":"IF(OrigTable!D155=\"\",\"\",TEXT(OrigTable!D155,\"00\"))","v":"IRP Notices"},{"$f":"IF(OrigTable!D155=\"\",\"\",ScriptText!$E$1&CHAR(10)&ScriptText!$C$1)","v":"</td>\n</tr>"},{"$f":"IF(OrigTable!E155=\"\",\"\",ScriptText!$B$1&CHAR(10)&ScriptText!$D$1)","v":""},{"$f":"IF(OrigTable!E155=\"\",\"\",TEXT(OrigTable!E155,\"00\"))","v":""},{"$f":"IF(OrigTable!E155=\"\",\"\",ScriptText!$E$1&CHAR(10)&ScriptText!$C$1)","v":""},{"$f":"IF(OrigTable!F155=\"\",\"\",ScriptText!$B$1&CHAR(10)&ScriptText!$D$1)","v":""},{"$f":"IF(OrigTable!F155=\"\",\"\",TEXT(OrigTable!F155,\"00\"))","v":""},{"$f":"IF(OrigTable!F155=\"\",\"\",ScriptText!$E$1&CHAR(10)&ScriptText!$C$1)","v":""},{"$f":"IF(OrigTable!G155=\"\",\"\",ScriptText!$B$1&CHAR(10)&ScriptText!$D$1)","v":""},{"$f":"IF(OrigTable!G155=\"\",\"\",TEXT(OrigTable!G155,\"00\"))","v":""},{"$f":"IF(OrigTable!G155=\"\",\"\",ScriptText!$E$1&CHAR(10)&ScriptText!$C$1)","v":""},155]
["<tr>\n<td>3219N</td>\n</tr>\n\n<tr>\n<td>ASFR Statutory Notice of Deficiency - 90-Day Letter</td>\n</tr>\n<tr>\n<td>IRP Notices</td>\n</tr>",{"$f":"IF(OrigTable!A156=\"\",\"\",ScriptText!$B$1&CHAR(10)&ScriptText!$D$1)","v":"<tr>\n<td>"},{"$f":"IF(OrigTable!A156=\"\",\"\",TEXT(OrigTable!A156,\"00\"))","v":"3219N"},{"$f":"IF(OrigTable!A156=\"\",\"\",ScriptText!$E$1&CHAR(10)&ScriptText!$C$1)","v":"</td>\n</tr>"},{"$f":"IF(OrigTable!B156=\"\",\"\",ScriptText!$B$1&CHAR(10)&ScriptText!$D$1)","v":""},{"$f":"IF(OrigTable!B156=\"\",\"\",TEXT(OrigTable!B156,\"00\"))","v":""},{"$f":"IF(OrigTable!B156=\"\",\"\",ScriptText!$E$1&CHAR(10)&ScriptText!C151)","v":""},{"$f":"IF(OrigTable!C156=\"\",\"\",ScriptText!$B$1&CHAR(10)&ScriptText!$D$1)","v":"<tr>\n<td>"},{"$f":"IF(OrigTable!C156=\"\",\"\",IF(LEN(OrigTable!C156)>255,LEFT(OrigTable!C156,250)&\". . .\",OrigTable!C156))","v":"ASFR Statutory Notice of Deficiency - 90-Day Letter"},{"$f":"IF(OrigTable!C156=\"\",\"\",ScriptText!$E$1&CHAR(10)&ScriptText!$C$1)","v":"</td>\n</tr>"},{"$f":"IF(OrigTable!D156=\"\",\"\",ScriptText!$B$1&CHAR(10)&ScriptText!$D$1)","v":"<tr>\n<td>"},{"$f":"IF(OrigTable!D156=\"\",\"\",TEXT(OrigTable!D156,\"00\"))","v":"IRP Notices"},{"$f":"IF(OrigTable!D156=\"\",\"\",ScriptText!$E$1&CHAR(10)&ScriptText!$C$1)","v":"</td>\n</tr>"},{"$f":"IF(OrigTable!E156=\"\",\"\",ScriptText!$B$1&CHAR(10)&ScriptText!$D$1)","v":""},{"$f":"IF(OrigTable!E156=\"\",\"\",TEXT(OrigTable!E156,\"00\"))","v":""},{"$f":"IF(OrigTable!E156=\"\",\"\",ScriptText!$E$1&CHAR(10)&ScriptText!$C$1)","v":""},{"$f":"IF(OrigTable!F156=\"\",\"\",ScriptText!$B$1&CHAR(10)&ScriptText!$D$1)","v":""},{"$f":"IF(OrigTable!F156=\"\",\"\",TEXT(OrigTable!F156,\"00\"))","v":""},{"$f":"IF(OrigTable!F156=\"\",\"\",ScriptText!$E$1&CHAR(10)&ScriptText!$C$1)","v":""},{"$f":"IF(OrigTable!G156=\"\",\"\",ScriptText!$B$1&CHAR(10)&ScriptText!$D$1)","v":""},{"$f":"IF(OrigTable!G156=\"\",\"\",TEXT(OrigTable!G156,\"00\"))","v":""},{"$f":"IF(OrigTable!G156=\"\",\"\",ScriptText!$E$1&CHAR(10)&ScriptText!$C$1)","v":""},156]
["<tr>\n<td>3219N(SP)</td>\n</tr>\n\n<tr>\n<td>ASFR Spanish Statutory Notice of Deficiency - 90-Day Letter</td>\n</tr>\n<tr>\n<td>IRP Notices</td>\n</tr>",{"$f":"IF(OrigTable!A157=\"\",\"\",ScriptText!$B$1&CHAR(10)&ScriptText!$D$1)","v":"<tr>\n<td>"},{"$f":"IF(OrigTable!A157=\"\",\"\",TEXT(OrigTable!A157,\"00\"))","v":"3219N(SP)"},{"$f":"IF(OrigTable!A157=\"\",\"\",ScriptText!$E$1&CHAR(10)&ScriptText!$C$1)","v":"</td>\n</tr>"},{"$f":"IF(OrigTable!B157=\"\",\"\",ScriptText!$B$1&CHAR(10)&ScriptText!$D$1)","v":""},{"$f":"IF(OrigTable!B157=\"\",\"\",TEXT(OrigTable!B157,\"00\"))","v":""},{"$f":"IF(OrigTable!B157=\"\",\"\",ScriptText!$E$1&CHAR(10)&ScriptText!C152)","v":""},{"$f":"IF(OrigTable!C157=\"\",\"\",ScriptText!$B$1&CHAR(10)&ScriptText!$D$1)","v":"<tr>\n<td>"},{"$f":"IF(OrigTable!C157=\"\",\"\",IF(LEN(OrigTable!C157)>255,LEFT(OrigTable!C157,250)&\". . .\",OrigTable!C157))","v":"ASFR Spanish Statutory Notice of Deficiency - 90-Day Letter"},{"$f":"IF(OrigTable!C157=\"\",\"\",ScriptText!$E$1&CHAR(10)&ScriptText!$C$1)","v":"</td>\n</tr>"},{"$f":"IF(OrigTable!D157=\"\",\"\",ScriptText!$B$1&CHAR(10)&ScriptText!$D$1)","v":"<tr>\n<td>"},{"$f":"IF(OrigTable!D157=\"\",\"\",TEXT(OrigTable!D157,\"00\"))","v":"IRP Notices"},{"$f":"IF(OrigTable!D157=\"\",\"\",ScriptText!$E$1&CHAR(10)&ScriptText!$C$1)","v":"</td>\n</tr>"},{"$f":"IF(OrigTable!E157=\"\",\"\",ScriptText!$B$1&CHAR(10)&ScriptText!$D$1)","v":""},{"$f":"IF(OrigTable!E157=\"\",\"\",TEXT(OrigTable!E157,\"00\"))","v":""},{"$f":"IF(OrigTable!E157=\"\",\"\",ScriptText!$E$1&CHAR(10)&ScriptText!$C$1)","v":""},{"$f":"IF(OrigTable!F157=\"\",\"\",ScriptText!$B$1&CHAR(10)&ScriptText!$D$1)","v":""},{"$f":"IF(OrigTable!F157=\"\",\"\",TEXT(OrigTable!F157,\"00\"))","v":""},{"$f":"IF(OrigTable!F157=\"\",\"\",ScriptText!$E$1&CHAR(10)&ScriptText!$C$1)","v":""},{"$f":"IF(OrigTable!G157=\"\",\"\",ScriptText!$B$1&CHAR(10)&ScriptText!$D$1)","v":""},{"$f":"IF(OrigTable!G157=\"\",\"\",TEXT(OrigTable!G157,\"00\"))","v":""},{"$f":"IF(OrigTable!G157=\"\",\"\",ScriptText!$E$1&CHAR(10)&ScriptText!$C$1)","v":""},157]
["<tr>\n<td>80</td>\n</tr>\n\n<tr>\n<td>Reminder - we have not received your return</td>\n</tr>\n<tr>\n<td>BMF Notices</td>\n</tr>",{"$f":"IF(OrigTable!A158=\"\",\"\",ScriptText!$B$1&CHAR(10)&ScriptText!$D$1)","v":"<tr>\n<td>"},{"$f":"IF(OrigTable!A158=\"\",\"\",TEXT(OrigTable!A158,\"00\"))","v":"80"},{"$f":"IF(OrigTable!A158=\"\",\"\",ScriptText!$E$1&CHAR(10)&ScriptText!$C$1)","v":"</td>\n</tr>"},{"$f":"IF(OrigTable!B158=\"\",\"\",ScriptText!$B$1&CHAR(10)&ScriptText!$D$1)","v":""},{"$f":"IF(OrigTable!B158=\"\",\"\",TEXT(OrigTable!B158,\"00\"))","v":""},{"$f":"IF(OrigTable!B158=\"\",\"\",ScriptText!$E$1&CHAR(10)&ScriptText!C153)","v":""},{"$f":"IF(OrigTable!C158=\"\",\"\",ScriptText!$B$1&CHAR(10)&ScriptText!$D$1)","v":"<tr>\n<td>"},{"$f":"IF(OrigTable!C158=\"\",\"\",IF(LEN(OrigTable!C158)>255,LEFT(OrigTable!C158,250)&\". . .\",OrigTable!C158))","v":"Reminder - we have not received your return"},{"$f":"IF(OrigTable!C158=\"\",\"\",ScriptText!$E$1&CHAR(10)&ScriptText!$C$1)","v":"</td>\n</tr>"},{"$f":"IF(OrigTable!D158=\"\",\"\",ScriptText!$B$1&CHAR(10)&ScriptText!$D$1)","v":"<tr>\n<td>"},{"$f":"IF(OrigTable!D158=\"\",\"\",TEXT(OrigTable!D158,\"00\"))","v":"BMF Notices"},{"$f":"IF(OrigTable!D158=\"\",\"\",ScriptText!$E$1&CHAR(10)&ScriptText!$C$1)","v":"</td>\n</tr>"},{"$f":"IF(OrigTable!E158=\"\",\"\",ScriptText!$B$1&CHAR(10)&ScriptText!$D$1)","v":""},{"$f":"IF(OrigTable!E158=\"\",\"\",TEXT(OrigTable!E158,\"00\"))","v":""},{"$f":"IF(OrigTable!E158=\"\",\"\",ScriptText!$E$1&CHAR(10)&ScriptText!$C$1)","v":""},{"$f":"IF(OrigTable!F158=\"\",\"\",ScriptText!$B$1&CHAR(10)&ScriptText!$D$1)","v":""},{"$f":"IF(OrigTable!F158=\"\",\"\",TEXT(OrigTable!F158,\"00\"))","v":""},{"$f":"IF(OrigTable!F158=\"\",\"\",ScriptText!$E$1&CHAR(10)&ScriptText!$C$1)","v":""},{"$f":"IF(OrigTable!G158=\"\",\"\",ScriptText!$B$1&CHAR(10)&ScriptText!$D$1)","v":""},{"$f":"IF(OrigTable!G158=\"\",\"\",TEXT(OrigTable!G158,\"00\"))","v":""},{"$f":"IF(OrigTable!G158=\"\",\"\",ScriptText!$E$1&CHAR(10)&ScriptText!$C$1)","v":""},158]
["<tr>\n<td>81</td>\n</tr>\n\n<tr>\n<td>We may have a refund for you</td>\n</tr>\n<tr>\n<td>BMF Notices</td>\n</tr>",{"$f":"IF(OrigTable!A159=\"\",\"\",ScriptText!$B$1&CHAR(10)&ScriptText!$D$1)","v":"<tr>\n<td>"},{"$f":"IF(OrigTable!A159=\"\",\"\",TEXT(OrigTable!A159,\"00\"))","v":"81"},{"$f":"IF(OrigTable!A159=\"\",\"\",ScriptText!$E$1&CHAR(10)&ScriptText!$C$1)","v":"</td>\n</tr>"},{"$f":"IF(OrigTable!B159=\"\",\"\",ScriptText!$B$1&CHAR(10)&ScriptText!$D$1)","v":""},{"$f":"IF(OrigTable!B159=\"\",\"\",TEXT(OrigTable!B159,\"00\"))","v":""},{"$f":"IF(OrigTable!B159=\"\",\"\",ScriptText!$E$1&CHAR(10)&ScriptText!C154)","v":""},{"$f":"IF(OrigTable!C159=\"\",\"\",ScriptText!$B$1&CHAR(10)&ScriptText!$D$1)","v":"<tr>\n<td>"},{"$f":"IF(OrigTable!C159=\"\",\"\",IF(LEN(OrigTable!C159)>255,LEFT(OrigTable!C159,250)&\". . .\",OrigTable!C159))","v":"We may have a refund for you"},{"$f":"IF(OrigTable!C159=\"\",\"\",ScriptText!$E$1&CHAR(10)&ScriptText!$C$1)","v":"</td>\n</tr>"},{"$f":"IF(OrigTable!D159=\"\",\"\",ScriptText!$B$1&CHAR(10)&ScriptText!$D$1)","v":"<tr>\n<td>"},{"$f":"IF(OrigTable!D159=\"\",\"\",TEXT(OrigTable!D159,\"00\"))","v":"BMF Notices"},{"$f":"IF(OrigTable!D159=\"\",\"\",ScriptText!$E$1&CHAR(10)&ScriptText!$C$1)","v":"</td>\n</tr>"},{"$f":"IF(OrigTable!E159=\"\",\"\",ScriptText!$B$1&CHAR(10)&ScriptText!$D$1)","v":""},{"$f":"IF(OrigTable!E159=\"\",\"\",TEXT(OrigTable!E159,\"00\"))","v":""},{"$f":"IF(OrigTable!E159=\"\",\"\",ScriptText!$E$1&CHAR(10)&ScriptText!$C$1)","v":""},{"$f":"IF(OrigTable!F159=\"\",\"\",ScriptText!$B$1&CHAR(10)&ScriptText!$D$1)","v":""},{"$f":"IF(OrigTable!F159=\"\",\"\",TEXT(OrigTable!F159,\"00\"))","v":""},{"$f":"IF(OrigTable!F159=\"\",\"\",ScriptText!$E$1&CHAR(10)&ScriptText!$C$1)","v":""},{"$f":"IF(OrigTable!G159=\"\",\"\",ScriptText!$B$1&CHAR(10)&ScriptText!$D$1)","v":""},{"$f":"IF(OrigTable!G159=\"\",\"\",TEXT(OrigTable!G159,\"00\"))","v":""},{"$f":"IF(OrigTable!G159=\"\",\"\",ScriptText!$E$1&CHAR(10)&ScriptText!$C$1)","v":""},159]
["<tr>\n<td>101</td>\n</tr>\n<tr>\n<td>Yes</td>\n3219A\n<tr>\n<td>Math error on Form 940 or 940EZ resulting in a net balance due.</td>\n</tr>\n<tr>\n<td>BMF Notices</td>\n</tr>",{"$f":"IF(OrigTable!A160=\"\",\"\",ScriptText!$B$1&CHAR(10)&ScriptText!$D$1)","v":"<tr>\n<td>"},{"$f":"IF(OrigTable!A160=\"\",\"\",TEXT(OrigTable!A160,\"00\"))","v":"101"},{"$f":"IF(OrigTable!A160=\"\",\"\",ScriptText!$E$1&CHAR(10)&ScriptText!$C$1)","v":"</td>\n</tr>"},{"$f":"IF(OrigTable!B160=\"\",\"\",ScriptText!$B$1&CHAR(10)&ScriptText!$D$1)","v":"<tr>\n<td>"},{"$f":"IF(OrigTable!B160=\"\",\"\",TEXT(OrigTable!B160,\"00\"))","v":"Yes"},{"$f":"IF(OrigTable!B160=\"\",\"\",ScriptText!$E$1&CHAR(10)&ScriptText!C155)","v":"</td>\n3219A"},{"$f":"IF(OrigTable!C160=\"\",\"\",ScriptText!$B$1&CHAR(10)&ScriptText!$D$1)","v":"<tr>\n<td>"},{"$f":"IF(OrigTable!C160=\"\",\"\",IF(LEN(OrigTable!C160)>255,LEFT(OrigTable!C160,250)&\". . .\",OrigTable!C160))","v":"Math error on Form 940 or 940EZ resulting in a net balance due."},{"$f":"IF(OrigTable!C160=\"\",\"\",ScriptText!$E$1&CHAR(10)&ScriptText!$C$1)","v":"</td>\n</tr>"},{"$f":"IF(OrigTable!D160=\"\",\"\",ScriptText!$B$1&CHAR(10)&ScriptText!$D$1)","v":"<tr>\n<td>"},{"$f":"IF(OrigTable!D160=\"\",\"\",TEXT(OrigTable!D160,\"00\"))","v":"BMF Notices"},{"$f":"IF(OrigTable!D160=\"\",\"\",ScriptText!$E$1&CHAR(10)&ScriptText!$C$1)","v":"</td>\n</tr>"},{"$f":"IF(OrigTable!E160=\"\",\"\",ScriptText!$B$1&CHAR(10)&ScriptText!$D$1)","v":""},{"$f":"IF(OrigTable!E160=\"\",\"\",TEXT(OrigTable!E160,\"00\"))","v":""},{"$f":"IF(OrigTable!E160=\"\",\"\",ScriptText!$E$1&CHAR(10)&ScriptText!$C$1)","v":""},{"$f":"IF(OrigTable!F160=\"\",\"\",ScriptText!$B$1&CHAR(10)&ScriptText!$D$1)","v":""},{"$f":"IF(OrigTable!F160=\"\",\"\",TEXT(OrigTable!F160,\"00\"))","v":""},{"$f":"IF(OrigTable!F160=\"\",\"\",ScriptText!$E$1&CHAR(10)&ScriptText!$C$1)","v":""},{"$f":"IF(OrigTable!G160=\"\",\"\",ScriptText!$B$1&CHAR(10)&ScriptText!$D$1)","v":""},{"$f":"IF(OrigTable!G160=\"\",\"\",TEXT(OrigTable!G160,\"00\"))","v":""},{"$f":"IF(OrigTable!G160=\"\",\"\",ScriptText!$E$1&CHAR(10)&ScriptText!$C$1)","v":""},160]
["<tr>\n<td>102</td>\n</tr>\n<tr>\n<td>Yes</td>\n3219N\n<tr>\n<td>Math error on Form 941, 943, 944 or 945 resulting in a net balance due.</td>\n</tr>\n<tr>\n<td>BMF Notices</td>\n</tr>",{"$f":"IF(OrigTable!A161=\"\",\"\",ScriptText!$B$1&CHAR(10)&ScriptText!$D$1)","v":"<tr>\n<td>"},{"$f":"IF(OrigTable!A161=\"\",\"\",TEXT(OrigTable!A161,\"00\"))","v":"102"},{"$f":"IF(OrigTable!A161=\"\",\"\",ScriptText!$E$1&CHAR(10)&ScriptText!$C$1)","v":"</td>\n</tr>"},{"$f":"IF(OrigTable!B161=\"\",\"\",ScriptText!$B$1&CHAR(10)&ScriptText!$D$1)","v":"<tr>\n<td>"},{"$f":"IF(OrigTable!B161=\"\",\"\",TEXT(OrigTable!B161,\"00\"))","v":"Yes"},{"$f":"IF(OrigTable!B161=\"\",\"\",ScriptText!$E$1&CHAR(10)&ScriptText!C156)","v":"</td>\n3219N"},{"$f":"IF(OrigTable!C161=\"\",\"\",ScriptText!$B$1&CHAR(10)&ScriptText!$D$1)","v":"<tr>\n<td>"},{"$f":"IF(OrigTable!C161=\"\",\"\",IF(LEN(OrigTable!C161)>255,LEFT(OrigTable!C161,250)&\". . .\",OrigTable!C161))","v":"Math error on Form 941, 943, 944 or 945 resulting in a net balance due."},{"$f":"IF(OrigTable!C161=\"\",\"\",ScriptText!$E$1&CHAR(10)&ScriptText!$C$1)","v":"</td>\n</tr>"},{"$f":"IF(OrigTable!D161=\"\",\"\",ScriptText!$B$1&CHAR(10)&ScriptText!$D$1)","v":"<tr>\n<td>"},{"$f":"IF(OrigTable!D161=\"\",\"\",TEXT(OrigTable!D161,\"00\"))","v":"BMF Notices"},{"$f":"IF(OrigTable!D161=\"\",\"\",ScriptText!$E$1&CHAR(10)&ScriptText!$C$1)","v":"</td>\n</tr>"},{"$f":"IF(OrigTable!E161=\"\",\"\",ScriptText!$B$1&CHAR(10)&ScriptText!$D$1)","v":""},{"$f":"IF(OrigTable!E161=\"\",\"\",TEXT(OrigTable!E161,\"00\"))","v":""},{"$f":"IF(OrigTable!E161=\"\",\"\",ScriptText!$E$1&CHAR(10)&ScriptText!$C$1)","v":""},{"$f":"IF(OrigTable!F161=\"\",\"\",ScriptText!$B$1&CHAR(10)&ScriptText!$D$1)","v":""},{"$f":"IF(OrigTable!F161=\"\",\"\",TEXT(OrigTable!F161,\"00\"))","v":""},{"$f":"IF(OrigTable!F161=\"\",\"\",ScriptText!$E$1&CHAR(10)&ScriptText!$C$1)","v":""},{"$f":"IF(OrigTable!G161=\"\",\"\",ScriptText!$B$1&CHAR(10)&ScriptText!$D$1)","v":""},{"$f":"IF(OrigTable!G161=\"\",\"\",TEXT(OrigTable!G161,\"00\"))","v":""},{"$f":"IF(OrigTable!G161=\"\",\"\",ScriptText!$E$1&CHAR(10)&ScriptText!$C$1)","v":""},161]
["<tr>\n<td>103</td>\n</tr>\n<tr>\n<td>Yes</td>\n3219N(SP)\n<tr>\n<td>Math error on Form CT-1 resulting in a net balance due.</td>\n</tr>\n<tr>\n<td>BMF Notices</td>\n</tr>",{"$f":"IF(OrigTable!A162=\"\",\"\",ScriptText!$B$1&CHAR(10)&ScriptText!$D$1)","v":"<tr>\n<td>"},{"$f":"IF(OrigTable!A162=\"\",\"\",TEXT(OrigTable!A162,\"00\"))","v":"103"},{"$f":"IF(OrigTable!A162=\"\",\"\",ScriptText!$E$1&CHAR(10)&ScriptText!$C$1)","v":"</td>\n</tr>"},{"$f":"IF(OrigTable!B162=\"\",\"\",ScriptText!$B$1&CHAR(10)&ScriptText!$D$1)","v":"<tr>\n<td>"},{"$f":"IF(OrigTable!B162=\"\",\"\",TEXT(OrigTable!B162,\"00\"))","v":"Yes"},{"$f":"IF(OrigTable!B162=\"\",\"\",ScriptText!$E$1&CHAR(10)&ScriptText!C157)","v":"</td>\n3219N(SP)"},{"$f":"IF(OrigTable!C162=\"\",\"\",ScriptText!$B$1&CHAR(10)&ScriptText!$D$1)","v":"<tr>\n<td>"},{"$f":"IF(OrigTable!C162=\"\",\"\",IF(LEN(OrigTable!C162)>255,LEFT(OrigTable!C162,250)&\". . .\",OrigTable!C162))","v":"Math error on Form CT-1 resulting in a net balance due."},{"$f":"IF(OrigTable!C162=\"\",\"\",ScriptText!$E$1&CHAR(10)&ScriptText!$C$1)","v":"</td>\n</tr>"},{"$f":"IF(OrigTable!D162=\"\",\"\",ScriptText!$B$1&CHAR(10)&ScriptText!$D$1)","v":"<tr>\n<td>"},{"$f":"IF(OrigTable!D162=\"\",\"\",TEXT(OrigTable!D162,\"00\"))","v":"BMF Notices"},{"$f":"IF(OrigTable!D162=\"\",\"\",ScriptText!$E$1&CHAR(10)&ScriptText!$C$1)","v":"</td>\n</tr>"},{"$f":"IF(OrigTable!E162=\"\",\"\",ScriptText!$B$1&CHAR(10)&ScriptText!$D$1)","v":""},{"$f":"IF(OrigTable!E162=\"\",\"\",TEXT(OrigTable!E162,\"00\"))","v":""},{"$f":"IF(OrigTable!E162=\"\",\"\",ScriptText!$E$1&CHAR(10)&ScriptText!$C$1)","v":""},{"$f":"IF(OrigTable!F162=\"\",\"\",ScriptText!$B$1&CHAR(10)&ScriptText!$D$1)","v":""},{"$f":"IF(OrigTable!F162=\"\",\"\",TEXT(OrigTable!F162,\"00\"))","v":""},{"$f":"IF(OrigTable!F162=\"\",\"\",ScriptText!$E$1&CHAR(10)&ScriptText!$C$1)","v":""},{"$f":"IF(OrigTable!G162=\"\",\"\",ScriptText!$B$1&CHAR(10)&ScriptText!$D$1)","v":""},{"$f":"IF(OrigTable!G162=\"\",\"\",TEXT(OrigTable!G162,\"00\"))","v":""},{"$f":"IF(OrigTable!G162=\"\",\"\",ScriptText!$E$1&CHAR(10)&ScriptText!$C$1)","v":""},162]
["<tr>\n<td>104</td>\n</tr>\n<tr>\n<td>Yes</td>\n80\n<tr>\n<td>Math error on Form 720 resulting in a net balance due.</td>\n</tr>\n<tr>\n<td>BMF Notices</td>\n</tr>",{"$f":"IF(OrigTable!A163=\"\",\"\",ScriptText!$B$1&CHAR(10)&ScriptText!$D$1)","v":"<tr>\n<td>"},{"$f":"IF(OrigTable!A163=\"\",\"\",TEXT(OrigTable!A163,\"00\"))","v":"104"},{"$f":"IF(OrigTable!A163=\"\",\"\",ScriptText!$E$1&CHAR(10)&ScriptText!$C$1)","v":"</td>\n</tr>"},{"$f":"IF(OrigTable!B163=\"\",\"\",ScriptText!$B$1&CHAR(10)&ScriptText!$D$1)","v":"<tr>\n<td>"},{"$f":"IF(OrigTable!B163=\"\",\"\",TEXT(OrigTable!B163,\"00\"))","v":"Yes"},{"$f":"IF(OrigTable!B163=\"\",\"\",ScriptText!$E$1&CHAR(10)&ScriptText!C158)","v":"</td>\n80"},{"$f":"IF(OrigTable!C163=\"\",\"\",ScriptText!$B$1&CHAR(10)&ScriptText!$D$1)","v":"<tr>\n<td>"},{"$f":"IF(OrigTable!C163=\"\",\"\",IF(LEN(OrigTable!C163)>255,LEFT(OrigTable!C163,250)&\". . .\",OrigTable!C163))","v":"Math error on Form 720 resulting in a net balance due."},{"$f":"IF(OrigTable!C163=\"\",\"\",ScriptText!$E$1&CHAR(10)&ScriptText!$C$1)","v":"</td>\n</tr>"},{"$f":"IF(OrigTable!D163=\"\",\"\",ScriptText!$B$1&CHAR(10)&ScriptText!$D$1)","v":"<tr>\n<td>"},{"$f":"IF(OrigTable!D163=\"\",\"\",TEXT(OrigTable!D163,\"00\"))","v":"BMF Notices"},{"$f":"IF(OrigTable!D163=\"\",\"\",ScriptText!$E$1&CHAR(10)&ScriptText!$C$1)","v":"</td>\n</tr>"},{"$f":"IF(OrigTable!E163=\"\",\"\",ScriptText!$B$1&CHAR(10)&ScriptText!$D$1)","v":""},{"$f":"IF(OrigTable!E163=\"\",\"\",TEXT(OrigTable!E163,\"00\"))","v":""},{"$f":"IF(OrigTable!E163=\"\",\"\",ScriptText!$E$1&CHAR(10)&ScriptText!$C$1)","v":""},{"$f":"IF(OrigTable!F163=\"\",\"\",ScriptText!$B$1&CHAR(10)&ScriptText!$D$1)","v":""},{"$f":"IF(OrigTable!F163=\"\",\"\",TEXT(OrigTable!F163,\"00\"))","v":""},{"$f":"IF(OrigTable!F163=\"\",\"\",ScriptText!$E$1&CHAR(10)&ScriptText!$C$1)","v":""},{"$f":"IF(OrigTable!G163=\"\",\"\",ScriptText!$B$1&CHAR(10)&ScriptText!$D$1)","v":""},{"$f":"IF(OrigTable!G163=\"\",\"\",TEXT(OrigTable!G163,\"00\"))","v":""},{"$f":"IF(OrigTable!G163=\"\",\"\",ScriptText!$E$1&CHAR(10)&ScriptText!$C$1)","v":""},163]
["<tr>\n<td>105</td>\n</tr>\n<tr>\n<td>Yes</td>\n81\n<tr>\n<td>Math error on Form 11C, 706, 709, 2290 or 730 resulting in a net balance due.</td>\n</tr>\n<tr>\n<td>BMF Notices</td>\n</tr>",{"$f":"IF(OrigTable!A164=\"\",\"\",ScriptText!$B$1&CHAR(10)&ScriptText!$D$1)","v":"<tr>\n<td>"},{"$f":"IF(OrigTable!A164=\"\",\"\",TEXT(OrigTable!A164,\"00\"))","v":"105"},{"$f":"IF(OrigTable!A164=\"\",\"\",ScriptText!$E$1&CHAR(10)&ScriptText!$C$1)","v":"</td>\n</tr>"},{"$f":"IF(OrigTable!B164=\"\",\"\",ScriptText!$B$1&CHAR(10)&ScriptText!$D$1)","v":"<tr>\n<td>"},{"$f":"IF(OrigTable!B164=\"\",\"\",TEXT(OrigTable!B164,\"00\"))","v":"Yes"},{"$f":"IF(OrigTable!B164=\"\",\"\",ScriptText!$E$1&CHAR(10)&ScriptText!C159)","v":"</td>\n81"},{"$f":"IF(OrigTable!C164=\"\",\"\",ScriptText!$B$1&CHAR(10)&ScriptText!$D$1)","v":"<tr>\n<td>"},{"$f":"IF(OrigTable!C164=\"\",\"\",IF(LEN(OrigTable!C164)>255,LEFT(OrigTable!C164,250)&\". . .\",OrigTable!C164))","v":"Math error on Form 11C, 706, 709, 2290 or 730 resulting in a net balance due."},{"$f":"IF(OrigTable!C164=\"\",\"\",ScriptText!$E$1&CHAR(10)&ScriptText!$C$1)","v":"</td>\n</tr>"},{"$f":"IF(OrigTable!D164=\"\",\"\",ScriptText!$B$1&CHAR(10)&ScriptText!$D$1)","v":"<tr>\n<td>"},{"$f":"IF(OrigTable!D164=\"\",\"\",TEXT(OrigTable!D164,\"00\"))","v":"BMF Notices"},{"$f":"IF(OrigTable!D164=\"\",\"\",ScriptText!$E$1&CHAR(10)&ScriptText!$C$1)","v":"</td>\n</tr>"},{"$f":"IF(OrigTable!E164=\"\",\"\",ScriptText!$B$1&CHAR(10)&ScriptText!$D$1)","v":""},{"$f":"IF(OrigTable!E164=\"\",\"\",TEXT(OrigTable!E164,\"00\"))","v":""},{"$f":"IF(OrigTable!E164=\"\",\"\",ScriptText!$E$1&CHAR(10)&ScriptText!$C$1)","v":""},{"$f":"IF(OrigTable!F164=\"\",\"\",ScriptText!$B$1&CHAR(10)&ScriptText!$D$1)","v":""},{"$f":"IF(OrigTable!F164=\"\",\"\",TEXT(OrigTable!F164,\"00\"))","v":""},{"$f":"IF(OrigTable!F164=\"\",\"\",ScriptText!$E$1&CHAR(10)&ScriptText!$C$1)","v":""},{"$f":"IF(OrigTable!G164=\"\",\"\",ScriptText!$B$1&CHAR(10)&ScriptText!$D$1)","v":""},{"$f":"IF(OrigTable!G164=\"\",\"\",TEXT(OrigTable!G164,\"00\"))","v":""},{"$f":"IF(OrigTable!G164=\"\",\"\",ScriptText!$E$1&CHAR(10)&ScriptText!$C$1)","v":""},164]
["<tr>\n<td>106</td>\n</tr>\n<tr>\n<td>Yes</td>\n101\n<tr>\n<td>Math error on Form 990PF, 5227, 5330 or 4720 resulting in a net balance due.</td>\n</tr>\n<tr>\n<td>BMF Notices</td>\n</tr>",{"$f":"IF(OrigTable!A165=\"\",\"\",ScriptText!$B$1&CHAR(10)&ScriptText!$D$1)","v":"<tr>\n<td>"},{"$f":"IF(OrigTable!A165=\"\",\"\",TEXT(OrigTable!A165,\"00\"))","v":"106"},{"$f":"IF(OrigTable!A165=\"\",\"\",ScriptText!$E$1&CHAR(10)&ScriptText!$C$1)","v":"</td>\n</tr>"},{"$f":"IF(OrigTable!B165=\"\",\"\",ScriptText!$B$1&CHAR(10)&ScriptText!$D$1)","v":"<tr>\n<td>"},{"$f":"IF(OrigTable!B165=\"\",\"\",TEXT(OrigTable!B165,\"00\"))","v":"Yes"},{"$f":"IF(OrigTable!B165=\"\",\"\",ScriptText!$E$1&CHAR(10)&ScriptText!C160)","v":"</td>\n101"},{"$f":"IF(OrigTable!C165=\"\",\"\",ScriptText!$B$1&CHAR(10)&ScriptText!$D$1)","v":"<tr>\n<td>"},{"$f":"IF(OrigTable!C165=\"\",\"\",IF(LEN(OrigTable!C165)>255,LEFT(OrigTable!C165,250)&\". . .\",OrigTable!C165))","v":"Math error on Form 990PF, 5227, 5330 or 4720 resulting in a net balance due."},{"$f":"IF(OrigTable!C165=\"\",\"\",ScriptText!$E$1&CHAR(10)&ScriptText!$C$1)","v":"</td>\n</tr>"},{"$f":"IF(OrigTable!D165=\"\",\"\",ScriptText!$B$1&CHAR(10)&ScriptText!$D$1)","v":"<tr>\n<td>"},{"$f":"IF(OrigTable!D165=\"\",\"\",TEXT(OrigTable!D165,\"00\"))","v":"BMF Notices"},{"$f":"IF(OrigTable!D165=\"\",\"\",ScriptText!$E$1&CHAR(10)&ScriptText!$C$1)","v":"</td>\n</tr>"},{"$f":"IF(OrigTable!E165=\"\",\"\",ScriptText!$B$1&CHAR(10)&ScriptText!$D$1)","v":""},{"$f":"IF(OrigTable!E165=\"\",\"\",TEXT(OrigTable!E165,\"00\"))","v":""},{"$f":"IF(OrigTable!E165=\"\",\"\",ScriptText!$E$1&CHAR(10)&ScriptText!$C$1)","v":""},{"$f":"IF(OrigTable!F165=\"\",\"\",ScriptText!$B$1&CHAR(10)&ScriptText!$D$1)","v":""},{"$f":"IF(OrigTable!F165=\"\",\"\",TEXT(OrigTable!F165,\"00\"))","v":""},{"$f":"IF(OrigTable!F165=\"\",\"\",ScriptText!$E$1&CHAR(10)&ScriptText!$C$1)","v":""},{"$f":"IF(OrigTable!G165=\"\",\"\",ScriptText!$B$1&CHAR(10)&ScriptText!$D$1)","v":""},{"$f":"IF(OrigTable!G165=\"\",\"\",TEXT(OrigTable!G165,\"00\"))","v":""},{"$f":"IF(OrigTable!G165=\"\",\"\",ScriptText!$E$1&CHAR(10)&ScriptText!$C$1)","v":""},165]
["<tr>\n<td>107</td>\n</tr>\n<tr>\n<td>Yes</td>\n102\n<tr>\n<td>Math error on Form 1042 resulting in a net balance due.</td>\n</tr>\n<tr>\n<td>BMF Notices</td>\n</tr>",{"$f":"IF(OrigTable!A166=\"\",\"\",ScriptText!$B$1&CHAR(10)&ScriptText!$D$1)","v":"<tr>\n<td>"},{"$f":"IF(OrigTable!A166=\"\",\"\",TEXT(OrigTable!A166,\"00\"))","v":"107"},{"$f":"IF(OrigTable!A166=\"\",\"\",ScriptText!$E$1&CHAR(10)&ScriptText!$C$1)","v":"</td>\n</tr>"},{"$f":"IF(OrigTable!B166=\"\",\"\",ScriptText!$B$1&CHAR(10)&ScriptText!$D$1)","v":"<tr>\n<td>"},{"$f":"IF(OrigTable!B166=\"\",\"\",TEXT(OrigTable!B166,\"00\"))","v":"Yes"},{"$f":"IF(OrigTable!B166=\"\",\"\",ScriptText!$E$1&CHAR(10)&ScriptText!C161)","v":"</td>\n102"},{"$f":"IF(OrigTable!C166=\"\",\"\",ScriptText!$B$1&CHAR(10)&ScriptText!$D$1)","v":"<tr>\n<td>"},{"$f":"IF(OrigTable!C166=\"\",\"\",IF(LEN(OrigTable!C166)>255,LEFT(OrigTable!C166,250)&\". . .\",OrigTable!C166))","v":"Math error on Form 1042 resulting in a net balance due."},{"$f":"IF(OrigTable!C166=\"\",\"\",ScriptText!$E$1&CHAR(10)&ScriptText!$C$1)","v":"</td>\n</tr>"},{"$f":"IF(OrigTable!D166=\"\",\"\",ScriptText!$B$1&CHAR(10)&ScriptText!$D$1)","v":"<tr>\n<td>"},{"$f":"IF(OrigTable!D166=\"\",\"\",TEXT(OrigTable!D166,\"00\"))","v":"BMF Notices"},{"$f":"IF(OrigTable!D166=\"\",\"\",ScriptText!$E$1&CHAR(10)&ScriptText!$C$1)","v":"</td>\n</tr>"},{"$f":"IF(OrigTable!E166=\"\",\"\",ScriptText!$B$1&CHAR(10)&ScriptText!$D$1)","v":""},{"$f":"IF(OrigTable!E166=\"\",\"\",TEXT(OrigTable!E166,\"00\"))","v":""},{"$f":"IF(OrigTable!E166=\"\",\"\",ScriptText!$E$1&CHAR(10)&ScriptText!$C$1)","v":""},{"$f":"IF(OrigTable!F166=\"\",\"\",ScriptText!$B$1&CHAR(10)&ScriptText!$D$1)","v":""},{"$f":"IF(OrigTable!F166=\"\",\"\",TEXT(OrigTable!F166,\"00\"))","v":""},{"$f":"IF(OrigTable!F166=\"\",\"\",ScriptText!$E$1&CHAR(10)&ScriptText!$C$1)","v":""},{"$f":"IF(OrigTable!G166=\"\",\"\",ScriptText!$B$1&CHAR(10)&ScriptText!$D$1)","v":""},{"$f":"IF(OrigTable!G166=\"\",\"\",TEXT(OrigTable!G166,\"00\"))","v":""},{"$f":"IF(OrigTable!G166=\"\",\"\",ScriptText!$E$1&CHAR(10)&ScriptText!$C$1)","v":""},166]
["<tr>\n<td>108</td>\n</tr>\n<tr>\n<td>Yes</td>\n103\n<tr>\n<td>Problem with your Federal Tax Deposit (FTD), error on FTD coupon/EFTPS payment</td>\n</tr>\n<tr>\n<td>BMF Notices</td>\n</tr>",{"$f":"IF(OrigTable!A167=\"\",\"\",ScriptText!$B$1&CHAR(10)&ScriptText!$D$1)","v":"<tr>\n<td>"},{"$f":"IF(OrigTable!A167=\"\",\"\",TEXT(OrigTable!A167,\"00\"))","v":"108"},{"$f":"IF(OrigTable!A167=\"\",\"\",ScriptText!$E$1&CHAR(10)&ScriptText!$C$1)","v":"</td>\n</tr>"},{"$f":"IF(OrigTable!B167=\"\",\"\",ScriptText!$B$1&CHAR(10)&ScriptText!$D$1)","v":"<tr>\n<td>"},{"$f":"IF(OrigTable!B167=\"\",\"\",TEXT(OrigTable!B167,\"00\"))","v":"Yes"},{"$f":"IF(OrigTable!B167=\"\",\"\",ScriptText!$E$1&CHAR(10)&ScriptText!C162)","v":"</td>\n103"},{"$f":"IF(OrigTable!C167=\"\",\"\",ScriptText!$B$1&CHAR(10)&ScriptText!$D$1)","v":"<tr>\n<td>"},{"$f":"IF(OrigTable!C167=\"\",\"\",IF(LEN(OrigTable!C167)>255,LEFT(OrigTable!C167,250)&\". . .\",OrigTable!C167))","v":"Problem with your Federal Tax Deposit (FTD), error on FTD coupon/EFTPS payment"},{"$f":"IF(OrigTable!C167=\"\",\"\",ScriptText!$E$1&CHAR(10)&ScriptText!$C$1)","v":"</td>\n</tr>"},{"$f":"IF(OrigTable!D167=\"\",\"\",ScriptText!$B$1&CHAR(10)&ScriptText!$D$1)","v":"<tr>\n<td>"},{"$f":"IF(OrigTable!D167=\"\",\"\",TEXT(OrigTable!D167,\"00\"))","v":"BMF Notices"},{"$f":"IF(OrigTable!D167=\"\",\"\",ScriptText!$E$1&CHAR(10)&ScriptText!$C$1)","v":"</td>\n</tr>"},{"$f":"IF(OrigTable!E167=\"\",\"\",ScriptText!$B$1&CHAR(10)&ScriptText!$D$1)","v":""},{"$f":"IF(OrigTable!E167=\"\",\"\",TEXT(OrigTable!E167,\"00\"))","v":""},{"$f":"IF(OrigTable!E167=\"\",\"\",ScriptText!$E$1&CHAR(10)&ScriptText!$C$1)","v":""},{"$f":"IF(OrigTable!F167=\"\",\"\",ScriptText!$B$1&CHAR(10)&ScriptText!$D$1)","v":""},{"$f":"IF(OrigTable!F167=\"\",\"\",TEXT(OrigTable!F167,\"00\"))","v":""},{"$f":"IF(OrigTable!F167=\"\",\"\",ScriptText!$E$1&CHAR(10)&ScriptText!$C$1)","v":""},{"$f":"IF(OrigTable!G167=\"\",\"\",ScriptText!$B$1&CHAR(10)&ScriptText!$D$1)","v":""},{"$f":"IF(OrigTable!G167=\"\",\"\",TEXT(OrigTable!G167,\"00\"))","v":""},{"$f":"IF(OrigTable!G167=\"\",\"\",ScriptText!$E$1&CHAR(10)&ScriptText!$C$1)","v":""},167]
["<tr>\n<td>110</td>\n</tr>\n\n<tr>\n<td>Math Error on Form 1066 - Balance Due of $5 or More on Form 1066 – Obsoleted in 2016 per Unified Work Request (UWR) 93310 – Obsoletion of CP 110 and CP 118. Keep\nfor Historical information and for prior years.</td>\n</tr>\n<tr>\n<td>BMF Notices</td>\n</tr>",{"$f":"IF(OrigTable!A168=\"\",\"\",ScriptText!$B$1&CHAR(10)&ScriptText!$D$1)","v":"<tr>\n<td>"},{"$f":"IF(OrigTable!A168=\"\",\"\",TEXT(OrigTable!A168,\"00\"))","v":"110"},{"$f":"IF(OrigTable!A168=\"\",\"\",ScriptText!$E$1&CHAR(10)&ScriptText!$C$1)","v":"</td>\n</tr>"},{"$f":"IF(OrigTable!B168=\"\",\"\",ScriptText!$B$1&CHAR(10)&ScriptText!$D$1)","v":""},{"$f":"IF(OrigTable!B168=\"\",\"\",TEXT(OrigTable!B168,\"00\"))","v":""},{"$f":"IF(OrigTable!B168=\"\",\"\",ScriptText!$E$1&CHAR(10)&ScriptText!C163)","v":""},{"$f":"IF(OrigTable!C168=\"\",\"\",ScriptText!$B$1&CHAR(10)&ScriptText!$D$1)","v":"<tr>\n<td>"},{"$f":"IF(OrigTable!C168=\"\",\"\",IF(LEN(OrigTable!C168)>255,LEFT(OrigTable!C168,250)&\". . .\",OrigTable!C168))","v":"Math Error on Form 1066 - Balance Due of $5 or More on Form 1066 – Obsoleted in 2016 per Unified Work Request (UWR) 93310 – Obsoletion of CP 110 and CP 118. Keep\nfor Historical information and for prior years."},{"$f":"IF(OrigTable!C168=\"\",\"\",ScriptText!$E$1&CHAR(10)&ScriptText!$C$1)","v":"</td>\n</tr>"},{"$f":"IF(OrigTable!D168=\"\",\"\",ScriptText!$B$1&CHAR(10)&ScriptText!$D$1)","v":"<tr>\n<td>"},{"$f":"IF(OrigTable!D168=\"\",\"\",TEXT(OrigTable!D168,\"00\"))","v":"BMF Notices"},{"$f":"IF(OrigTable!D168=\"\",\"\",ScriptText!$E$1&CHAR(10)&ScriptText!$C$1)","v":"</td>\n</tr>"},{"$f":"IF(OrigTable!E168=\"\",\"\",ScriptText!$B$1&CHAR(10)&ScriptText!$D$1)","v":""},{"$f":"IF(OrigTable!E168=\"\",\"\",TEXT(OrigTable!E168,\"00\"))","v":""},{"$f":"IF(OrigTable!E168=\"\",\"\",ScriptText!$E$1&CHAR(10)&ScriptText!$C$1)","v":""},{"$f":"IF(OrigTable!F168=\"\",\"\",ScriptText!$B$1&CHAR(10)&ScriptText!$D$1)","v":""},{"$f":"IF(OrigTable!F168=\"\",\"\",TEXT(OrigTable!F168,\"00\"))","v":""},{"$f":"IF(OrigTable!F168=\"\",\"\",ScriptText!$E$1&CHAR(10)&ScriptText!$C$1)","v":""},{"$f":"IF(OrigTable!G168=\"\",\"\",ScriptText!$B$1&CHAR(10)&ScriptText!$D$1)","v":""},{"$f":"IF(OrigTable!G168=\"\",\"\",TEXT(OrigTable!G168,\"00\"))","v":""},{"$f":"IF(OrigTable!G168=\"\",\"\",ScriptText!$E$1&CHAR(10)&ScriptText!$C$1)","v":""},168]
["<tr>\n<td>111</td>\n</tr>\n<tr>\n<td>Yes</td>\n105\n<tr>\n<td>Math Error on Form 940 or 940EZ resulting in a net overpayment.</td>\n</tr>\n<tr>\n<td>BMF Notices</td>\n</tr>",{"$f":"IF(OrigTable!A169=\"\",\"\",ScriptText!$B$1&CHAR(10)&ScriptText!$D$1)","v":"<tr>\n<td>"},{"$f":"IF(OrigTable!A169=\"\",\"\",TEXT(OrigTable!A169,\"00\"))","v":"111"},{"$f":"IF(OrigTable!A169=\"\",\"\",ScriptText!$E$1&CHAR(10)&ScriptText!$C$1)","v":"</td>\n</tr>"},{"$f":"IF(OrigTable!B169=\"\",\"\",ScriptText!$B$1&CHAR(10)&ScriptText!$D$1)","v":"<tr>\n<td>"},{"$f":"IF(OrigTable!B169=\"\",\"\",TEXT(OrigTable!B169,\"00\"))","v":"Yes"},{"$f":"IF(OrigTable!B169=\"\",\"\",ScriptText!$E$1&CHAR(10)&ScriptText!C164)","v":"</td>\n105"},{"$f":"IF(OrigTable!C169=\"\",\"\",ScriptText!$B$1&CHAR(10)&ScriptText!$D$1)","v":"<tr>\n<td>"},{"$f":"IF(OrigTable!C169=\"\",\"\",IF(LEN(OrigTable!C169)>255,LEFT(OrigTable!C169,250)&\". . .\",OrigTable!C169))","v":"Math Error on Form 940 or 940EZ resulting in a net overpayment."},{"$f":"IF(OrigTable!C169=\"\",\"\",ScriptText!$E$1&CHAR(10)&ScriptText!$C$1)","v":"</td>\n</tr>"},{"$f":"IF(OrigTable!D169=\"\",\"\",ScriptText!$B$1&CHAR(10)&ScriptText!$D$1)","v":"<tr>\n<td>"},{"$f":"IF(OrigTable!D169=\"\",\"\",TEXT(OrigTable!D169,\"00\"))","v":"BMF Notices"},{"$f":"IF(OrigTable!D169=\"\",\"\",ScriptText!$E$1&CHAR(10)&ScriptText!$C$1)","v":"</td>\n</tr>"},{"$f":"IF(OrigTable!E169=\"\",\"\",ScriptText!$B$1&CHAR(10)&ScriptText!$D$1)","v":""},{"$f":"IF(OrigTable!E169=\"\",\"\",TEXT(OrigTable!E169,\"00\"))","v":""},{"$f":"IF(OrigTable!E169=\"\",\"\",ScriptText!$E$1&CHAR(10)&ScriptText!$C$1)","v":""},{"$f":"IF(OrigTable!F169=\"\",\"\",ScriptText!$B$1&CHAR(10)&ScriptText!$D$1)","v":""},{"$f":"IF(OrigTable!F169=\"\",\"\",TEXT(OrigTable!F169,\"00\"))","v":""},{"$f":"IF(OrigTable!F169=\"\",\"\",ScriptText!$E$1&CHAR(10)&ScriptText!$C$1)","v":""},{"$f":"IF(OrigTable!G169=\"\",\"\",ScriptText!$B$1&CHAR(10)&ScriptText!$D$1)","v":""},{"$f":"IF(OrigTable!G169=\"\",\"\",TEXT(OrigTable!G169,\"00\"))","v":""},{"$f":"IF(OrigTable!G169=\"\",\"\",ScriptText!$E$1&CHAR(10)&ScriptText!$C$1)","v":""},169]
["<tr>\n<td>112</td>\n</tr>\n<tr>\n<td>Yes</td>\n106\n<tr>\n<td>Math Error on Form 941,943 or 944 resulting in a net overpayment.</td>\n</tr>\n<tr>\n<td>BMF Notices</td>\n</tr>",{"$f":"IF(OrigTable!A170=\"\",\"\",ScriptText!$B$1&CHAR(10)&ScriptText!$D$1)","v":"<tr>\n<td>"},{"$f":"IF(OrigTable!A170=\"\",\"\",TEXT(OrigTable!A170,\"00\"))","v":"112"},{"$f":"IF(OrigTable!A170=\"\",\"\",ScriptText!$E$1&CHAR(10)&ScriptText!$C$1)","v":"</td>\n</tr>"},{"$f":"IF(OrigTable!B170=\"\",\"\",ScriptText!$B$1&CHAR(10)&ScriptText!$D$1)","v":"<tr>\n<td>"},{"$f":"IF(OrigTable!B170=\"\",\"\",TEXT(OrigTable!B170,\"00\"))","v":"Yes"},{"$f":"IF(OrigTable!B170=\"\",\"\",ScriptText!$E$1&CHAR(10)&ScriptText!C165)","v":"</td>\n106"},{"$f":"IF(OrigTable!C170=\"\",\"\",ScriptText!$B$1&CHAR(10)&ScriptText!$D$1)","v":"<tr>\n<td>"},{"$f":"IF(OrigTable!C170=\"\",\"\",IF(LEN(OrigTable!C170)>255,LEFT(OrigTable!C170,250)&\". . .\",OrigTable!C170))","v":"Math Error on Form 941,943 or 944 resulting in a net overpayment."},{"$f":"IF(OrigTable!C170=\"\",\"\",ScriptText!$E$1&CHAR(10)&ScriptText!$C$1)","v":"</td>\n</tr>"},{"$f":"IF(OrigTable!D170=\"\",\"\",ScriptText!$B$1&CHAR(10)&ScriptText!$D$1)","v":"<tr>\n<td>"},{"$f":"IF(OrigTable!D170=\"\",\"\",TEXT(OrigTable!D170,\"00\"))","v":"BMF Notices"},{"$f":"IF(OrigTable!D170=\"\",\"\",ScriptText!$E$1&CHAR(10)&ScriptText!$C$1)","v":"</td>\n</tr>"},{"$f":"IF(OrigTable!E170=\"\",\"\",ScriptText!$B$1&CHAR(10)&ScriptText!$D$1)","v":""},{"$f":"IF(OrigTable!E170=\"\",\"\",TEXT(OrigTable!E170,\"00\"))","v":""},{"$f":"IF(OrigTable!E170=\"\",\"\",ScriptText!$E$1&CHAR(10)&ScriptText!$C$1)","v":""},{"$f":"IF(OrigTable!F170=\"\",\"\",ScriptText!$B$1&CHAR(10)&ScriptText!$D$1)","v":""},{"$f":"IF(OrigTable!F170=\"\",\"\",TEXT(OrigTable!F170,\"00\"))","v":""},{"$f":"IF(OrigTable!F170=\"\",\"\",ScriptText!$E$1&CHAR(10)&ScriptText!$C$1)","v":""},{"$f":"IF(OrigTable!G170=\"\",\"\",ScriptText!$B$1&CHAR(10)&ScriptText!$D$1)","v":""},{"$f":"IF(OrigTable!G170=\"\",\"\",TEXT(OrigTable!G170,\"00\"))","v":""},{"$f":"IF(OrigTable!G170=\"\",\"\",ScriptText!$E$1&CHAR(10)&ScriptText!$C$1)","v":""},170]
["<tr>\n<td>113</td>\n</tr>\n<tr>\n<td>Yes</td>\n107\n<tr>\n<td>Math Error on Form CT-1 resulting in a net overpayment.</td>\n</tr>\n<tr>\n<td>BMF Notices</td>\n</tr>",{"$f":"IF(OrigTable!A171=\"\",\"\",ScriptText!$B$1&CHAR(10)&ScriptText!$D$1)","v":"<tr>\n<td>"},{"$f":"IF(OrigTable!A171=\"\",\"\",TEXT(OrigTable!A171,\"00\"))","v":"113"},{"$f":"IF(OrigTable!A171=\"\",\"\",ScriptText!$E$1&CHAR(10)&ScriptText!$C$1)","v":"</td>\n</tr>"},{"$f":"IF(OrigTable!B171=\"\",\"\",ScriptText!$B$1&CHAR(10)&ScriptText!$D$1)","v":"<tr>\n<td>"},{"$f":"IF(OrigTable!B171=\"\",\"\",TEXT(OrigTable!B171,\"00\"))","v":"Yes"},{"$f":"IF(OrigTable!B171=\"\",\"\",ScriptText!$E$1&CHAR(10)&ScriptText!C166)","v":"</td>\n107"},{"$f":"IF(OrigTable!C171=\"\",\"\",ScriptText!$B$1&CHAR(10)&ScriptText!$D$1)","v":"<tr>\n<td>"},{"$f":"IF(OrigTable!C171=\"\",\"\",IF(LEN(OrigTable!C171)>255,LEFT(OrigTable!C171,250)&\". . .\",OrigTable!C171))","v":"Math Error on Form CT-1 resulting in a net overpayment."},{"$f":"IF(OrigTable!C171=\"\",\"\",ScriptText!$E$1&CHAR(10)&ScriptText!$C$1)","v":"</td>\n</tr>"},{"$f":"IF(OrigTable!D171=\"\",\"\",ScriptText!$B$1&CHAR(10)&ScriptText!$D$1)","v":"<tr>\n<td>"},{"$f":"IF(OrigTable!D171=\"\",\"\",TEXT(OrigTable!D171,\"00\"))","v":"BMF Notices"},{"$f":"IF(OrigTable!D171=\"\",\"\",ScriptText!$E$1&CHAR(10)&ScriptText!$C$1)","v":"</td>\n</tr>"},{"$f":"IF(OrigTable!E171=\"\",\"\",ScriptText!$B$1&CHAR(10)&ScriptText!$D$1)","v":""},{"$f":"IF(OrigTable!E171=\"\",\"\",TEXT(OrigTable!E171,\"00\"))","v":""},{"$f":"IF(OrigTable!E171=\"\",\"\",ScriptText!$E$1&CHAR(10)&ScriptText!$C$1)","v":""},{"$f":"IF(OrigTable!F171=\"\",\"\",ScriptText!$B$1&CHAR(10)&ScriptText!$D$1)","v":""},{"$f":"IF(OrigTable!F171=\"\",\"\",TEXT(OrigTable!F171,\"00\"))","v":""},{"$f":"IF(OrigTable!F171=\"\",\"\",ScriptText!$E$1&CHAR(10)&ScriptText!$C$1)","v":""},{"$f":"IF(OrigTable!G171=\"\",\"\",ScriptText!$B$1&CHAR(10)&ScriptText!$D$1)","v":""},{"$f":"IF(OrigTable!G171=\"\",\"\",TEXT(OrigTable!G171,\"00\"))","v":""},{"$f":"IF(OrigTable!G171=\"\",\"\",ScriptText!$E$1&CHAR(10)&ScriptText!$C$1)","v":""},171]
["<tr>\n<td>114</td>\n</tr>\n<tr>\n<td>Yes</td>\n108\n<tr>\n<td>Math Error on Form 720 resulting in a net overpayment.</td>\n</tr>\n<tr>\n<td>BMF Notices</td>\n</tr>",{"$f":"IF(OrigTable!A172=\"\",\"\",ScriptText!$B$1&CHAR(10)&ScriptText!$D$1)","v":"<tr>\n<td>"},{"$f":"IF(OrigTable!A172=\"\",\"\",TEXT(OrigTable!A172,\"00\"))","v":"114"},{"$f":"IF(OrigTable!A172=\"\",\"\",ScriptText!$E$1&CHAR(10)&ScriptText!$C$1)","v":"</td>\n</tr>"},{"$f":"IF(OrigTable!B172=\"\",\"\",ScriptText!$B$1&CHAR(10)&ScriptText!$D$1)","v":"<tr>\n<td>"},{"$f":"IF(OrigTable!B172=\"\",\"\",TEXT(OrigTable!B172,\"00\"))","v":"Yes"},{"$f":"IF(OrigTable!B172=\"\",\"\",ScriptText!$E$1&CHAR(10)&ScriptText!C167)","v":"</td>\n108"},{"$f":"IF(OrigTable!C172=\"\",\"\",ScriptText!$B$1&CHAR(10)&ScriptText!$D$1)","v":"<tr>\n<td>"},{"$f":"IF(OrigTable!C172=\"\",\"\",IF(LEN(OrigTable!C172)>255,LEFT(OrigTable!C172,250)&\". . .\",OrigTable!C172))","v":"Math Error on Form 720 resulting in a net overpayment."},{"$f":"IF(OrigTable!C172=\"\",\"\",ScriptText!$E$1&CHAR(10)&ScriptText!$C$1)","v":"</td>\n</tr>"},{"$f":"IF(OrigTable!D172=\"\",\"\",ScriptText!$B$1&CHAR(10)&ScriptText!$D$1)","v":"<tr>\n<td>"},{"$f":"IF(OrigTable!D172=\"\",\"\",TEXT(OrigTable!D172,\"00\"))","v":"BMF Notices"},{"$f":"IF(OrigTable!D172=\"\",\"\",ScriptText!$E$1&CHAR(10)&ScriptText!$C$1)","v":"</td>\n</tr>"},{"$f":"IF(OrigTable!E172=\"\",\"\",ScriptText!$B$1&CHAR(10)&ScriptText!$D$1)","v":""},{"$f":"IF(OrigTable!E172=\"\",\"\",TEXT(OrigTable!E172,\"00\"))","v":""},{"$f":"IF(OrigTable!E172=\"\",\"\",ScriptText!$E$1&CHAR(10)&ScriptText!$C$1)","v":""},{"$f":"IF(OrigTable!F172=\"\",\"\",ScriptText!$B$1&CHAR(10)&ScriptText!$D$1)","v":""},{"$f":"IF(OrigTable!F172=\"\",\"\",TEXT(OrigTable!F172,\"00\"))","v":""},{"$f":"IF(OrigTable!F172=\"\",\"\",ScriptText!$E$1&CHAR(10)&ScriptText!$C$1)","v":""},{"$f":"IF(OrigTable!G172=\"\",\"\",ScriptText!$B$1&CHAR(10)&ScriptText!$D$1)","v":""},{"$f":"IF(OrigTable!G172=\"\",\"\",TEXT(OrigTable!G172,\"00\"))","v":""},{"$f":"IF(OrigTable!G172=\"\",\"\",ScriptText!$E$1&CHAR(10)&ScriptText!$C$1)","v":""},172]
["<tr>\n<td>115</td>\n</tr>\n<tr>\n<td>Yes</td>\n110\n<tr>\n<td>Math Error on Form 11C, 706, 709, 2290 or 730 resulting in a net overpayment.</td>\n</tr>\n<tr>\n<td>BMF Notices</td>\n</tr>",{"$f":"IF(OrigTable!A173=\"\",\"\",ScriptText!$B$1&CHAR(10)&ScriptText!$D$1)","v":"<tr>\n<td>"},{"$f":"IF(OrigTable!A173=\"\",\"\",TEXT(OrigTable!A173,\"00\"))","v":"115"},{"$f":"IF(OrigTable!A173=\"\",\"\",ScriptText!$E$1&CHAR(10)&ScriptText!$C$1)","v":"</td>\n</tr>"},{"$f":"IF(OrigTable!B173=\"\",\"\",ScriptText!$B$1&CHAR(10)&ScriptText!$D$1)","v":"<tr>\n<td>"},{"$f":"IF(OrigTable!B173=\"\",\"\",TEXT(OrigTable!B173,\"00\"))","v":"Yes"},{"$f":"IF(OrigTable!B173=\"\",\"\",ScriptText!$E$1&CHAR(10)&ScriptText!C168)","v":"</td>\n110"},{"$f":"IF(OrigTable!C173=\"\",\"\",ScriptText!$B$1&CHAR(10)&ScriptText!$D$1)","v":"<tr>\n<td>"},{"$f":"IF(OrigTable!C173=\"\",\"\",IF(LEN(OrigTable!C173)>255,LEFT(OrigTable!C173,250)&\". . .\",OrigTable!C173))","v":"Math Error on Form 11C, 706, 709, 2290 or 730 resulting in a net overpayment."},{"$f":"IF(OrigTable!C173=\"\",\"\",ScriptText!$E$1&CHAR(10)&ScriptText!$C$1)","v":"</td>\n</tr>"},{"$f":"IF(OrigTable!D173=\"\",\"\",ScriptText!$B$1&CHAR(10)&ScriptText!$D$1)","v":"<tr>\n<td>"},{"$f":"IF(OrigTable!D173=\"\",\"\",TEXT(OrigTable!D173,\"00\"))","v":"BMF Notices"},{"$f":"IF(OrigTable!D173=\"\",\"\",ScriptText!$E$1&CHAR(10)&ScriptText!$C$1)","v":"</td>\n</tr>"},{"$f":"IF(OrigTable!E173=\"\",\"\",ScriptText!$B$1&CHAR(10)&ScriptText!$D$1)","v":""},{"$f":"IF(OrigTable!E173=\"\",\"\",TEXT(OrigTable!E173,\"00\"))","v":""},{"$f":"IF(OrigTable!E173=\"\",\"\",ScriptText!$E$1&CHAR(10)&ScriptText!$C$1)","v":""},{"$f":"IF(OrigTable!F173=\"\",\"\",ScriptText!$B$1&CHAR(10)&ScriptText!$D$1)","v":""},{"$f":"IF(OrigTable!F173=\"\",\"\",TEXT(OrigTable!F173,\"00\"))","v":""},{"$f":"IF(OrigTable!F173=\"\",\"\",ScriptText!$E$1&CHAR(10)&ScriptText!$C$1)","v":""},{"$f":"IF(OrigTable!G173=\"\",\"\",ScriptText!$B$1&CHAR(10)&ScriptText!$D$1)","v":""},{"$f":"IF(OrigTable!G173=\"\",\"\",TEXT(OrigTable!G173,\"00\"))","v":""},{"$f":"IF(OrigTable!G173=\"\",\"\",ScriptText!$E$1&CHAR(10)&ScriptText!$C$1)","v":""},173]
["<tr>\n<td>116</td>\n</tr>\n<tr>\n<td>Yes</td>\n111\n<tr>\n<td>Math Error on Form 990-PF, 5227, 5330 or 4720 resulting in a net overpayment.</td>\n</tr>\n<tr>\n<td>BMF Notices</td>\n</tr>",{"$f":"IF(OrigTable!A174=\"\",\"\",ScriptText!$B$1&CHAR(10)&ScriptText!$D$1)","v":"<tr>\n<td>"},{"$f":"IF(OrigTable!A174=\"\",\"\",TEXT(OrigTable!A174,\"00\"))","v":"116"},{"$f":"IF(OrigTable!A174=\"\",\"\",ScriptText!$E$1&CHAR(10)&ScriptText!$C$1)","v":"</td>\n</tr>"},{"$f":"IF(OrigTable!B174=\"\",\"\",ScriptText!$B$1&CHAR(10)&ScriptText!$D$1)","v":"<tr>\n<td>"},{"$f":"IF(OrigTable!B174=\"\",\"\",TEXT(OrigTable!B174,\"00\"))","v":"Yes"},{"$f":"IF(OrigTable!B174=\"\",\"\",ScriptText!$E$1&CHAR(10)&ScriptText!C169)","v":"</td>\n111"},{"$f":"IF(OrigTable!C174=\"\",\"\",ScriptText!$B$1&CHAR(10)&ScriptText!$D$1)","v":"<tr>\n<td>"},{"$f":"IF(OrigTable!C174=\"\",\"\",IF(LEN(OrigTable!C174)>255,LEFT(OrigTable!C174,250)&\". . .\",OrigTable!C174))","v":"Math Error on Form 990-PF, 5227, 5330 or 4720 resulting in a net overpayment."},{"$f":"IF(OrigTable!C174=\"\",\"\",ScriptText!$E$1&CHAR(10)&ScriptText!$C$1)","v":"</td>\n</tr>"},{"$f":"IF(OrigTable!D174=\"\",\"\",ScriptText!$B$1&CHAR(10)&ScriptText!$D$1)","v":"<tr>\n<td>"},{"$f":"IF(OrigTable!D174=\"\",\"\",TEXT(OrigTable!D174,\"00\"))","v":"BMF Notices"},{"$f":"IF(OrigTable!D174=\"\",\"\",ScriptText!$E$1&CHAR(10)&ScriptText!$C$1)","v":"</td>\n</tr>"},{"$f":"IF(OrigTable!E174=\"\",\"\",ScriptText!$B$1&CHAR(10)&ScriptText!$D$1)","v":""},{"$f":"IF(OrigTable!E174=\"\",\"\",TEXT(OrigTable!E174,\"00\"))","v":""},{"$f":"IF(OrigTable!E174=\"\",\"\",ScriptText!$E$1&CHAR(10)&ScriptText!$C$1)","v":""},{"$f":"IF(OrigTable!F174=\"\",\"\",ScriptText!$B$1&CHAR(10)&ScriptText!$D$1)","v":""},{"$f":"IF(OrigTable!F174=\"\",\"\",TEXT(OrigTable!F174,\"00\"))","v":""},{"$f":"IF(OrigTable!F174=\"\",\"\",ScriptText!$E$1&CHAR(10)&ScriptText!$C$1)","v":""},{"$f":"IF(OrigTable!G174=\"\",\"\",ScriptText!$B$1&CHAR(10)&ScriptText!$D$1)","v":""},{"$f":"IF(OrigTable!G174=\"\",\"\",TEXT(OrigTable!G174,\"00\"))","v":""},{"$f":"IF(OrigTable!G174=\"\",\"\",ScriptText!$E$1&CHAR(10)&ScriptText!$C$1)","v":""},174]
["<tr>\n<td>117</td>\n</tr>\n<tr>\n<td>Yes</td>\n112\n<tr>\n<td>Math Error on Form 1042 resulting in a net overpayment.</td>\n</tr>\n<tr>\n<td>BMF Notices</td>\n</tr>",{"$f":"IF(OrigTable!A175=\"\",\"\",ScriptText!$B$1&CHAR(10)&ScriptText!$D$1)","v":"<tr>\n<td>"},{"$f":"IF(OrigTable!A175=\"\",\"\",TEXT(OrigTable!A175,\"00\"))","v":"117"},{"$f":"IF(OrigTable!A175=\"\",\"\",ScriptText!$E$1&CHAR(10)&ScriptText!$C$1)","v":"</td>\n</tr>"},{"$f":"IF(OrigTable!B175=\"\",\"\",ScriptText!$B$1&CHAR(10)&ScriptText!$D$1)","v":"<tr>\n<td>"},{"$f":"IF(OrigTable!B175=\"\",\"\",TEXT(OrigTable!B175,\"00\"))","v":"Yes"},{"$f":"IF(OrigTable!B175=\"\",\"\",ScriptText!$E$1&CHAR(10)&ScriptText!C170)","v":"</td>\n112"},{"$f":"IF(OrigTable!C175=\"\",\"\",ScriptText!$B$1&CHAR(10)&ScriptText!$D$1)","v":"<tr>\n<td>"},{"$f":"IF(OrigTable!C175=\"\",\"\",IF(LEN(OrigTable!C175)>255,LEFT(OrigTable!C175,250)&\". . .\",OrigTable!C175))","v":"Math Error on Form 1042 resulting in a net overpayment."},{"$f":"IF(OrigTable!C175=\"\",\"\",ScriptText!$E$1&CHAR(10)&ScriptText!$C$1)","v":"</td>\n</tr>"},{"$f":"IF(OrigTable!D175=\"\",\"\",ScriptText!$B$1&CHAR(10)&ScriptText!$D$1)","v":"<tr>\n<td>"},{"$f":"IF(OrigTable!D175=\"\",\"\",TEXT(OrigTable!D175,\"00\"))","v":"BMF Notices"},{"$f":"IF(OrigTable!D175=\"\",\"\",ScriptText!$E$1&CHAR(10)&ScriptText!$C$1)","v":"</td>\n</tr>"},{"$f":"IF(OrigTable!E175=\"\",\"\",ScriptText!$B$1&CHAR(10)&ScriptText!$D$1)","v":""},{"$f":"IF(OrigTable!E175=\"\",\"\",TEXT(OrigTable!E175,\"00\"))","v":""},{"$f":"IF(OrigTable!E175=\"\",\"\",ScriptText!$E$1&CHAR(10)&ScriptText!$C$1)","v":""},{"$f":"IF(OrigTable!F175=\"\",\"\",ScriptText!$B$1&CHAR(10)&ScriptText!$D$1)","v":""},{"$f":"IF(OrigTable!F175=\"\",\"\",TEXT(OrigTable!F175,\"00\"))","v":""},{"$f":"IF(OrigTable!F175=\"\",\"\",ScriptText!$E$1&CHAR(10)&ScriptText!$C$1)","v":""},{"$f":"IF(OrigTable!G175=\"\",\"\",ScriptText!$B$1&CHAR(10)&ScriptText!$D$1)","v":""},{"$f":"IF(OrigTable!G175=\"\",\"\",TEXT(OrigTable!G175,\"00\"))","v":""},{"$f":"IF(OrigTable!G175=\"\",\"\",ScriptText!$E$1&CHAR(10)&ScriptText!$C$1)","v":""},175]
["<tr>\n<td>118</td>\n</tr>\n\n<tr>\n<td>Overpayment/Even Balance - Form 1066 – Obsoleted in 2016 per Unified Work Request\n(UWR) 93310 – Obsoletion of CP 110 and CP 118. Keep for Historical information and for prior years.</td>\n</tr>\n<tr>\n<td>BMF Notices</td>\n</tr>",{"$f":"IF(OrigTable!A176=\"\",\"\",ScriptText!$B$1&CHAR(10)&ScriptText!$D$1)","v":"<tr>\n<td>"},{"$f":"IF(OrigTable!A176=\"\",\"\",TEXT(OrigTable!A176,\"00\"))","v":"118"},{"$f":"IF(OrigTable!A176=\"\",\"\",ScriptText!$E$1&CHAR(10)&ScriptText!$C$1)","v":"</td>\n</tr>"},{"$f":"IF(OrigTable!B176=\"\",\"\",ScriptText!$B$1&CHAR(10)&ScriptText!$D$1)","v":""},{"$f":"IF(OrigTable!B176=\"\",\"\",TEXT(OrigTable!B176,\"00\"))","v":""},{"$f":"IF(OrigTable!B176=\"\",\"\",ScriptText!$E$1&CHAR(10)&ScriptText!C171)","v":""},{"$f":"IF(OrigTable!C176=\"\",\"\",ScriptText!$B$1&CHAR(10)&ScriptText!$D$1)","v":"<tr>\n<td>"},{"$f":"IF(OrigTable!C176=\"\",\"\",IF(LEN(OrigTable!C176)>255,LEFT(OrigTable!C176,250)&\". . .\",OrigTable!C176))","v":"Overpayment/Even Balance - Form 1066 – Obsoleted in 2016 per Unified Work Request\n(UWR) 93310 – Obsoletion of CP 110 and CP 118. Keep for Historical information and for prior years."},{"$f":"IF(OrigTable!C176=\"\",\"\",ScriptText!$E$1&CHAR(10)&ScriptText!$C$1)","v":"</td>\n</tr>"},{"$f":"IF(OrigTable!D176=\"\",\"\",ScriptText!$B$1&CHAR(10)&ScriptText!$D$1)","v":"<tr>\n<td>"},{"$f":"IF(OrigTable!D176=\"\",\"\",TEXT(OrigTable!D176,\"00\"))","v":"BMF Notices"},{"$f":"IF(OrigTable!D176=\"\",\"\",ScriptText!$E$1&CHAR(10)&ScriptText!$C$1)","v":"</td>\n</tr>"},{"$f":"IF(OrigTable!E176=\"\",\"\",ScriptText!$B$1&CHAR(10)&ScriptText!$D$1)","v":""},{"$f":"IF(OrigTable!E176=\"\",\"\",TEXT(OrigTable!E176,\"00\"))","v":""},{"$f":"IF(OrigTable!E176=\"\",\"\",ScriptText!$E$1&CHAR(10)&ScriptText!$C$1)","v":""},{"$f":"IF(OrigTable!F176=\"\",\"\",ScriptText!$B$1&CHAR(10)&ScriptText!$D$1)","v":""},{"$f":"IF(OrigTable!F176=\"\",\"\",TEXT(OrigTable!F176,\"00\"))","v":""},{"$f":"IF(OrigTable!F176=\"\",\"\",ScriptText!$E$1&CHAR(10)&ScriptText!$C$1)","v":""},{"$f":"IF(OrigTable!G176=\"\",\"\",ScriptText!$B$1&CHAR(10)&ScriptText!$D$1)","v":""},{"$f":"IF(OrigTable!G176=\"\",\"\",TEXT(OrigTable!G176,\"00\"))","v":""},{"$f":"IF(OrigTable!G176=\"\",\"\",ScriptText!$E$1&CHAR(10)&ScriptText!$C$1)","v":""},176]
["<tr>\n<td>119</td>\n</tr>\n\n<tr>\n<td>Supplemental Group Ruling Information (SGRI) notice and subordinate listing, Replacement for Letter 1582O</td>\n</tr>\n<tr>\n<td>BMF Notices</td>\n</tr>",{"$f":"IF(OrigTable!A177=\"\",\"\",ScriptText!$B$1&CHAR(10)&ScriptText!$D$1)","v":"<tr>\n<td>"},{"$f":"IF(OrigTable!A177=\"\",\"\",TEXT(OrigTable!A177,\"00\"))","v":"119"},{"$f":"IF(OrigTable!A177=\"\",\"\",ScriptText!$E$1&CHAR(10)&ScriptText!$C$1)","v":"</td>\n</tr>"},{"$f":"IF(OrigTable!B177=\"\",\"\",ScriptText!$B$1&CHAR(10)&ScriptText!$D$1)","v":""},{"$f":"IF(OrigTable!B177=\"\",\"\",TEXT(OrigTable!B177,\"00\"))","v":""},{"$f":"IF(OrigTable!B177=\"\",\"\",ScriptText!$E$1&CHAR(10)&ScriptText!C172)","v":""},{"$f":"IF(OrigTable!C177=\"\",\"\",ScriptText!$B$1&CHAR(10)&ScriptText!$D$1)","v":"<tr>\n<td>"},{"$f":"IF(OrigTable!C177=\"\",\"\",IF(LEN(OrigTable!C177)>255,LEFT(OrigTable!C177,250)&\". . .\",OrigTable!C177))","v":"Supplemental Group Ruling Information (SGRI) notice and subordinate listing, Replacement for Letter 1582O"},{"$f":"IF(OrigTable!C177=\"\",\"\",ScriptText!$E$1&CHAR(10)&ScriptText!$C$1)","v":"</td>\n</tr>"},{"$f":"IF(OrigTable!D177=\"\",\"\",ScriptText!$B$1&CHAR(10)&ScriptText!$D$1)","v":"<tr>\n<td>"},{"$f":"IF(OrigTable!D177=\"\",\"\",TEXT(OrigTable!D177,\"00\"))","v":"BMF Notices"},{"$f":"IF(OrigTable!D177=\"\",\"\",ScriptText!$E$1&CHAR(10)&ScriptText!$C$1)","v":"</td>\n</tr>"},{"$f":"IF(OrigTable!E177=\"\",\"\",ScriptText!$B$1&CHAR(10)&ScriptText!$D$1)","v":""},{"$f":"IF(OrigTable!E177=\"\",\"\",TEXT(OrigTable!E177,\"00\"))","v":""},{"$f":"IF(OrigTable!E177=\"\",\"\",ScriptText!$E$1&CHAR(10)&ScriptText!$C$1)","v":""},{"$f":"IF(OrigTable!F177=\"\",\"\",ScriptText!$B$1&CHAR(10)&ScriptText!$D$1)","v":""},{"$f":"IF(OrigTable!F177=\"\",\"\",TEXT(OrigTable!F177,\"00\"))","v":""},{"$f":"IF(OrigTable!F177=\"\",\"\",ScriptText!$E$1&CHAR(10)&ScriptText!$C$1)","v":""},{"$f":"IF(OrigTable!G177=\"\",\"\",ScriptText!$B$1&CHAR(10)&ScriptText!$D$1)","v":""},{"$f":"IF(OrigTable!G177=\"\",\"\",TEXT(OrigTable!G177,\"00\"))","v":""},{"$f":"IF(OrigTable!G177=\"\",\"\",ScriptText!$E$1&CHAR(10)&ScriptText!$C$1)","v":""},177]
["<tr>\n<td>120</td>\n</tr>\n\n<tr>\n<td>Verify Tax Exempt Status was revoked</td>\n</tr>\n<tr>\n<td>BMF Notices</td>\n</tr>",{"$f":"IF(OrigTable!A178=\"\",\"\",ScriptText!$B$1&CHAR(10)&ScriptText!$D$1)","v":"<tr>\n<td>"},{"$f":"IF(OrigTable!A178=\"\",\"\",TEXT(OrigTable!A178,\"00\"))","v":"120"},{"$f":"IF(OrigTable!A178=\"\",\"\",ScriptText!$E$1&CHAR(10)&ScriptText!$C$1)","v":"</td>\n</tr>"},{"$f":"IF(OrigTable!B178=\"\",\"\",ScriptText!$B$1&CHAR(10)&ScriptText!$D$1)","v":""},{"$f":"IF(OrigTable!B178=\"\",\"\",TEXT(OrigTable!B178,\"00\"))","v":""},{"$f":"IF(OrigTable!B178=\"\",\"\",ScriptText!$E$1&CHAR(10)&ScriptText!C173)","v":""},{"$f":"IF(OrigTable!C178=\"\",\"\",ScriptText!$B$1&CHAR(10)&ScriptText!$D$1)","v":"<tr>\n<td>"},{"$f":"IF(OrigTable!C178=\"\",\"\",IF(LEN(OrigTable!C178)>255,LEFT(OrigTable!C178,250)&\". . .\",OrigTable!C178))","v":"Verify Tax Exempt Status was revoked"},{"$f":"IF(OrigTable!C178=\"\",\"\",ScriptText!$E$1&CHAR(10)&ScriptText!$C$1)","v":"</td>\n</tr>"},{"$f":"IF(OrigTable!D178=\"\",\"\",ScriptText!$B$1&CHAR(10)&ScriptText!$D$1)","v":"<tr>\n<td>"},{"$f":"IF(OrigTable!D178=\"\",\"\",TEXT(OrigTable!D178,\"00\"))","v":"BMF Notices"},{"$f":"IF(OrigTable!D178=\"\",\"\",ScriptText!$E$1&CHAR(10)&ScriptText!$C$1)","v":"</td>\n</tr>"},{"$f":"IF(OrigTable!E178=\"\",\"\",ScriptText!$B$1&CHAR(10)&ScriptText!$D$1)","v":""},{"$f":"IF(OrigTable!E178=\"\",\"\",TEXT(OrigTable!E178,\"00\"))","v":""},{"$f":"IF(OrigTable!E178=\"\",\"\",ScriptText!$E$1&CHAR(10)&ScriptText!$C$1)","v":""},{"$f":"IF(OrigTable!F178=\"\",\"\",ScriptText!$B$1&CHAR(10)&ScriptText!$D$1)","v":""},{"$f":"IF(OrigTable!F178=\"\",\"\",TEXT(OrigTable!F178,\"00\"))","v":""},{"$f":"IF(OrigTable!F178=\"\",\"\",ScriptText!$E$1&CHAR(10)&ScriptText!$C$1)","v":""},{"$f":"IF(OrigTable!G178=\"\",\"\",ScriptText!$B$1&CHAR(10)&ScriptText!$D$1)","v":""},{"$f":"IF(OrigTable!G178=\"\",\"\",TEXT(OrigTable!G178,\"00\"))","v":""},{"$f":"IF(OrigTable!G178=\"\",\"\",ScriptText!$E$1&CHAR(10)&ScriptText!$C$1)","v":""},178]
["<tr>\n<td>120A</td>\n</tr>\n\n<tr>\n<td>Revocation notice of tax exempt status, for failure to file an annual information return for 3 years</td>\n</tr>\n<tr>\n<td>BMF Notices</td>\n</tr>",{"$f":"IF(OrigTable!A179=\"\",\"\",ScriptText!$B$1&CHAR(10)&ScriptText!$D$1)","v":"<tr>\n<td>"},{"$f":"IF(OrigTable!A179=\"\",\"\",TEXT(OrigTable!A179,\"00\"))","v":"120A"},{"$f":"IF(OrigTable!A179=\"\",\"\",ScriptText!$E$1&CHAR(10)&ScriptText!$C$1)","v":"</td>\n</tr>"},{"$f":"IF(OrigTable!B179=\"\",\"\",ScriptText!$B$1&CHAR(10)&ScriptText!$D$1)","v":""},{"$f":"IF(OrigTable!B179=\"\",\"\",TEXT(OrigTable!B179,\"00\"))","v":""},{"$f":"IF(OrigTable!B179=\"\",\"\",ScriptText!$E$1&CHAR(10)&ScriptText!C174)","v":""},{"$f":"IF(OrigTable!C179=\"\",\"\",ScriptText!$B$1&CHAR(10)&ScriptText!$D$1)","v":"<tr>\n<td>"},{"$f":"IF(OrigTable!C179=\"\",\"\",IF(LEN(OrigTable!C179)>255,LEFT(OrigTable!C179,250)&\". . .\",OrigTable!C179))","v":"Revocation notice of tax exempt status, for failure to file an annual information return for 3 years"},{"$f":"IF(OrigTable!C179=\"\",\"\",ScriptText!$E$1&CHAR(10)&ScriptText!$C$1)","v":"</td>\n</tr>"},{"$f":"IF(OrigTable!D179=\"\",\"\",ScriptText!$B$1&CHAR(10)&ScriptText!$D$1)","v":"<tr>\n<td>"},{"$f":"IF(OrigTable!D179=\"\",\"\",TEXT(OrigTable!D179,\"00\"))","v":"BMF Notices"},{"$f":"IF(OrigTable!D179=\"\",\"\",ScriptText!$E$1&CHAR(10)&ScriptText!$C$1)","v":"</td>\n</tr>"},{"$f":"IF(OrigTable!E179=\"\",\"\",ScriptText!$B$1&CHAR(10)&ScriptText!$D$1)","v":""},{"$f":"IF(OrigTable!E179=\"\",\"\",TEXT(OrigTable!E179,\"00\"))","v":""},{"$f":"IF(OrigTable!E179=\"\",\"\",ScriptText!$E$1&CHAR(10)&ScriptText!$C$1)","v":""},{"$f":"IF(OrigTable!F179=\"\",\"\",ScriptText!$B$1&CHAR(10)&ScriptText!$D$1)","v":""},{"$f":"IF(OrigTable!F179=\"\",\"\",TEXT(OrigTable!F179,\"00\"))","v":""},{"$f":"IF(OrigTable!F179=\"\",\"\",ScriptText!$E$1&CHAR(10)&ScriptText!$C$1)","v":""},{"$f":"IF(OrigTable!G179=\"\",\"\",ScriptText!$B$1&CHAR(10)&ScriptText!$D$1)","v":""},{"$f":"IF(OrigTable!G179=\"\",\"\",TEXT(OrigTable!G179,\"00\"))","v":""},{"$f":"IF(OrigTable!G179=\"\",\"\",ScriptText!$E$1&CHAR(10)&ScriptText!$C$1)","v":""},179]
["<tr>\n<td>120B</td>\n</tr>\n\n<tr>\n<td>Revocation notice of tax exempt status due to non-recognition as subordinate in a group\nexemption letter</td>\n</tr>\n<tr>\n<td>BMF Notices</td>\n</tr>",{"$f":"IF(OrigTable!A180=\"\",\"\",ScriptText!$B$1&CHAR(10)&ScriptText!$D$1)","v":"<tr>\n<td>"},{"$f":"IF(OrigTable!A180=\"\",\"\",TEXT(OrigTable!A180,\"00\"))","v":"120B"},{"$f":"IF(OrigTable!A180=\"\",\"\",ScriptText!$E$1&CHAR(10)&ScriptText!$C$1)","v":"</td>\n</tr>"},{"$f":"IF(OrigTable!B180=\"\",\"\",ScriptText!$B$1&CHAR(10)&ScriptText!$D$1)","v":""},{"$f":"IF(OrigTable!B180=\"\",\"\",TEXT(OrigTable!B180,\"00\"))","v":""},{"$f":"IF(OrigTable!B180=\"\",\"\",ScriptText!$E$1&CHAR(10)&ScriptText!C175)","v":""},{"$f":"IF(OrigTable!C180=\"\",\"\",ScriptText!$B$1&CHAR(10)&ScriptText!$D$1)","v":"<tr>\n<td>"},{"$f":"IF(OrigTable!C180=\"\",\"\",IF(LEN(OrigTable!C180)>255,LEFT(OrigTable!C180,250)&\". . .\",OrigTable!C180))","v":"Revocation notice of tax exempt status due to non-recognition as subordinate in a group\nexemption letter"},{"$f":"IF(OrigTable!C180=\"\",\"\",ScriptText!$E$1&CHAR(10)&ScriptText!$C$1)","v":"</td>\n</tr>"},{"$f":"IF(OrigTable!D180=\"\",\"\",ScriptText!$B$1&CHAR(10)&ScriptText!$D$1)","v":"<tr>\n<td>"},{"$f":"IF(OrigTable!D180=\"\",\"\",TEXT(OrigTable!D180,\"00\"))","v":"BMF Notices"},{"$f":"IF(OrigTable!D180=\"\",\"\",ScriptText!$E$1&CHAR(10)&ScriptText!$C$1)","v":"</td>\n</tr>"},{"$f":"IF(OrigTable!E180=\"\",\"\",ScriptText!$B$1&CHAR(10)&ScriptText!$D$1)","v":""},{"$f":"IF(OrigTable!E180=\"\",\"\",TEXT(OrigTable!E180,\"00\"))","v":""},{"$f":"IF(OrigTable!E180=\"\",\"\",ScriptText!$E$1&CHAR(10)&ScriptText!$C$1)","v":""},{"$f":"IF(OrigTable!F180=\"\",\"\",ScriptText!$B$1&CHAR(10)&ScriptText!$D$1)","v":""},{"$f":"IF(OrigTable!F180=\"\",\"\",TEXT(OrigTable!F180,\"00\"))","v":""},{"$f":"IF(OrigTable!F180=\"\",\"\",ScriptText!$E$1&CHAR(10)&ScriptText!$C$1)","v":""},{"$f":"IF(OrigTable!G180=\"\",\"\",ScriptText!$B$1&CHAR(10)&ScriptText!$D$1)","v":""},{"$f":"IF(OrigTable!G180=\"\",\"\",TEXT(OrigTable!G180,\"00\"))","v":""},{"$f":"IF(OrigTable!G180=\"\",\"\",ScriptText!$E$1&CHAR(10)&ScriptText!$C$1)","v":""},180]
["<tr>\n<td>123</td>\n</tr>\n<tr>\n<td>Yes</td>\n118\n<tr>\n<td>Math error, overpayment or balance due of less than $1 on Form CT-1</td>\n</tr>\n<tr>\n<td>BMF Notices</td>\n</tr>",{"$f":"IF(OrigTable!A181=\"\",\"\",ScriptText!$B$1&CHAR(10)&ScriptText!$D$1)","v":"<tr>\n<td>"},{"$f":"IF(OrigTable!A181=\"\",\"\",TEXT(OrigTable!A181,\"00\"))","v":"123"},{"$f":"IF(OrigTable!A181=\"\",\"\",ScriptText!$E$1&CHAR(10)&ScriptText!$C$1)","v":"</td>\n</tr>"},{"$f":"IF(OrigTable!B181=\"\",\"\",ScriptText!$B$1&CHAR(10)&ScriptText!$D$1)","v":"<tr>\n<td>"},{"$f":"IF(OrigTable!B181=\"\",\"\",TEXT(OrigTable!B181,\"00\"))","v":"Yes"},{"$f":"IF(OrigTable!B181=\"\",\"\",ScriptText!$E$1&CHAR(10)&ScriptText!C176)","v":"</td>\n118"},{"$f":"IF(OrigTable!C181=\"\",\"\",ScriptText!$B$1&CHAR(10)&ScriptText!$D$1)","v":"<tr>\n<td>"},{"$f":"IF(OrigTable!C181=\"\",\"\",IF(LEN(OrigTable!C181)>255,LEFT(OrigTable!C181,250)&\". . .\",OrigTable!C181))","v":"Math error, overpayment or balance due of less than $1 on Form CT-1"},{"$f":"IF(OrigTable!C181=\"\",\"\",ScriptText!$E$1&CHAR(10)&ScriptText!$C$1)","v":"</td>\n</tr>"},{"$f":"IF(OrigTable!D181=\"\",\"\",ScriptText!$B$1&CHAR(10)&ScriptText!$D$1)","v":"<tr>\n<td>"},{"$f":"IF(OrigTable!D181=\"\",\"\",TEXT(OrigTable!D181,\"00\"))","v":"BMF Notices"},{"$f":"IF(OrigTable!D181=\"\",\"\",ScriptText!$E$1&CHAR(10)&ScriptText!$C$1)","v":"</td>\n</tr>"},{"$f":"IF(OrigTable!E181=\"\",\"\",ScriptText!$B$1&CHAR(10)&ScriptText!$D$1)","v":""},{"$f":"IF(OrigTable!E181=\"\",\"\",TEXT(OrigTable!E181,\"00\"))","v":""},{"$f":"IF(OrigTable!E181=\"\",\"\",ScriptText!$E$1&CHAR(10)&ScriptText!$C$1)","v":""},{"$f":"IF(OrigTable!F181=\"\",\"\",ScriptText!$B$1&CHAR(10)&ScriptText!$D$1)","v":""},{"$f":"IF(OrigTable!F181=\"\",\"\",TEXT(OrigTable!F181,\"00\"))","v":""},{"$f":"IF(OrigTable!F181=\"\",\"\",ScriptText!$E$1&CHAR(10)&ScriptText!$C$1)","v":""},{"$f":"IF(OrigTable!G181=\"\",\"\",ScriptText!$B$1&CHAR(10)&ScriptText!$D$1)","v":""},{"$f":"IF(OrigTable!G181=\"\",\"\",TEXT(OrigTable!G181,\"00\"))","v":""},{"$f":"IF(OrigTable!G181=\"\",\"\",ScriptText!$E$1&CHAR(10)&ScriptText!$C$1)","v":""},181]
["<tr>\n<td>124</td>\n</tr>\n<tr>\n<td>Yes</td>\n119\n<tr>\n<td>Math error on Form 720 with the net result a zero less than a $1.00 balance.</td>\n</tr>\n<tr>\n<td>BMF Notices</td>\n</tr>",{"$f":"IF(OrigTable!A182=\"\",\"\",ScriptText!$B$1&CHAR(10)&ScriptText!$D$1)","v":"<tr>\n<td>"},{"$f":"IF(OrigTable!A182=\"\",\"\",TEXT(OrigTable!A182,\"00\"))","v":"124"},{"$f":"IF(OrigTable!A182=\"\",\"\",ScriptText!$E$1&CHAR(10)&ScriptText!$C$1)","v":"</td>\n</tr>"},{"$f":"IF(OrigTable!B182=\"\",\"\",ScriptText!$B$1&CHAR(10)&ScriptText!$D$1)","v":"<tr>\n<td>"},{"$f":"IF(OrigTable!B182=\"\",\"\",TEXT(OrigTable!B182,\"00\"))","v":"Yes"},{"$f":"IF(OrigTable!B182=\"\",\"\",ScriptText!$E$1&CHAR(10)&ScriptText!C177)","v":"</td>\n119"},{"$f":"IF(OrigTable!C182=\"\",\"\",ScriptText!$B$1&CHAR(10)&ScriptText!$D$1)","v":"<tr>\n<td>"},{"$f":"IF(OrigTable!C182=\"\",\"\",IF(LEN(OrigTable!C182)>255,LEFT(OrigTable!C182,250)&\". . .\",OrigTable!C182))","v":"Math error on Form 720 with the net result a zero less than a $1.00 balance."},{"$f":"IF(OrigTable!C182=\"\",\"\",ScriptText!$E$1&CHAR(10)&ScriptText!$C$1)","v":"</td>\n</tr>"},{"$f":"IF(OrigTable!D182=\"\",\"\",ScriptText!$B$1&CHAR(10)&ScriptText!$D$1)","v":"<tr>\n<td>"},{"$f":"IF(OrigTable!D182=\"\",\"\",TEXT(OrigTable!D182,\"00\"))","v":"BMF Notices"},{"$f":"IF(OrigTable!D182=\"\",\"\",ScriptText!$E$1&CHAR(10)&ScriptText!$C$1)","v":"</td>\n</tr>"},{"$f":"IF(OrigTable!E182=\"\",\"\",ScriptText!$B$1&CHAR(10)&ScriptText!$D$1)","v":""},{"$f":"IF(OrigTable!E182=\"\",\"\",TEXT(OrigTable!E182,\"00\"))","v":""},{"$f":"IF(OrigTable!E182=\"\",\"\",ScriptText!$E$1&CHAR(10)&ScriptText!$C$1)","v":""},{"$f":"IF(OrigTable!F182=\"\",\"\",ScriptText!$B$1&CHAR(10)&ScriptText!$D$1)","v":""},{"$f":"IF(OrigTable!F182=\"\",\"\",TEXT(OrigTable!F182,\"00\"))","v":""},{"$f":"IF(OrigTable!F182=\"\",\"\",ScriptText!$E$1&CHAR(10)&ScriptText!$C$1)","v":""},{"$f":"IF(OrigTable!G182=\"\",\"\",ScriptText!$B$1&CHAR(10)&ScriptText!$D$1)","v":""},{"$f":"IF(OrigTable!G182=\"\",\"\",TEXT(OrigTable!G182,\"00\"))","v":""},{"$f":"IF(OrigTable!G182=\"\",\"\",ScriptText!$E$1&CHAR(10)&ScriptText!$C$1)","v":""},182]
["<tr>\n<td>125</td>\n</tr>\n<tr>\n<td>Yes</td>\n120\n<tr>\n<td>Math error on Form 11-C, 706, 709, 2290 or 730 with the net result a zero or less than a\n$1.00 balance.</td>\n</tr>\n<tr>\n<td>BMF Notices</td>\n</tr>",{"$f":"IF(OrigTable!A183=\"\",\"\",ScriptText!$B$1&CHAR(10)&ScriptText!$D$1)","v":"<tr>\n<td>"},{"$f":"IF(OrigTable!A183=\"\",\"\",TEXT(OrigTable!A183,\"00\"))","v":"125"},{"$f":"IF(OrigTable!A183=\"\",\"\",ScriptText!$E$1&CHAR(10)&ScriptText!$C$1)","v":"</td>\n</tr>"},{"$f":"IF(OrigTable!B183=\"\",\"\",ScriptText!$B$1&CHAR(10)&ScriptText!$D$1)","v":"<tr>\n<td>"},{"$f":"IF(OrigTable!B183=\"\",\"\",TEXT(OrigTable!B183,\"00\"))","v":"Yes"},{"$f":"IF(OrigTable!B183=\"\",\"\",ScriptText!$E$1&CHAR(10)&ScriptText!C178)","v":"</td>\n120"},{"$f":"IF(OrigTable!C183=\"\",\"\",ScriptText!$B$1&CHAR(10)&ScriptText!$D$1)","v":"<tr>\n<td>"},{"$f":"IF(OrigTable!C183=\"\",\"\",IF(LEN(OrigTable!C183)>255,LEFT(OrigTable!C183,250)&\". . .\",OrigTable!C183))","v":"Math error on Form 11-C, 706, 709, 2290 or 730 with the net result a zero or less than a\n$1.00 balance."},{"$f":"IF(OrigTable!C183=\"\",\"\",ScriptText!$E$1&CHAR(10)&ScriptText!$C$1)","v":"</td>\n</tr>"},{"$f":"IF(OrigTable!D183=\"\",\"\",ScriptText!$B$1&CHAR(10)&ScriptText!$D$1)","v":"<tr>\n<td>"},{"$f":"IF(OrigTable!D183=\"\",\"\",TEXT(OrigTable!D183,\"00\"))","v":"BMF Notices"},{"$f":"IF(OrigTable!D183=\"\",\"\",ScriptText!$E$1&CHAR(10)&ScriptText!$C$1)","v":"</td>\n</tr>"},{"$f":"IF(OrigTable!E183=\"\",\"\",ScriptText!$B$1&CHAR(10)&ScriptText!$D$1)","v":""},{"$f":"IF(OrigTable!E183=\"\",\"\",TEXT(OrigTable!E183,\"00\"))","v":""},{"$f":"IF(OrigTable!E183=\"\",\"\",ScriptText!$E$1&CHAR(10)&ScriptText!$C$1)","v":""},{"$f":"IF(OrigTable!F183=\"\",\"\",ScriptText!$B$1&CHAR(10)&ScriptText!$D$1)","v":""},{"$f":"IF(OrigTable!F183=\"\",\"\",TEXT(OrigTable!F183,\"00\"))","v":""},{"$f":"IF(OrigTable!F183=\"\",\"\",ScriptText!$E$1&CHAR(10)&ScriptText!$C$1)","v":""},{"$f":"IF(OrigTable!G183=\"\",\"\",ScriptText!$B$1&CHAR(10)&ScriptText!$D$1)","v":""},{"$f":"IF(OrigTable!G183=\"\",\"\",TEXT(OrigTable!G183,\"00\"))","v":""},{"$f":"IF(OrigTable!G183=\"\",\"\",ScriptText!$E$1&CHAR(10)&ScriptText!$C$1)","v":""},183]
["<tr>\n<td>126</td>\n</tr>\n<tr>\n<td>Yes</td>\n120A\n<tr>\n<td>Math error on Form 990-PF, 5227, 5330 or 4720 with the net result a zero or less\nthan a $1.00 balance.</td>\n</tr>\n<tr>\n<td>BMF Notices</td>\n</tr>",{"$f":"IF(OrigTable!A184=\"\",\"\",ScriptText!$B$1&CHAR(10)&ScriptText!$D$1)","v":"<tr>\n<td>"},{"$f":"IF(OrigTable!A184=\"\",\"\",TEXT(OrigTable!A184,\"00\"))","v":"126"},{"$f":"IF(OrigTable!A184=\"\",\"\",ScriptText!$E$1&CHAR(10)&ScriptText!$C$1)","v":"</td>\n</tr>"},{"$f":"IF(OrigTable!B184=\"\",\"\",ScriptText!$B$1&CHAR(10)&ScriptText!$D$1)","v":"<tr>\n<td>"},{"$f":"IF(OrigTable!B184=\"\",\"\",TEXT(OrigTable!B184,\"00\"))","v":"Yes"},{"$f":"IF(OrigTable!B184=\"\",\"\",ScriptText!$E$1&CHAR(10)&ScriptText!C179)","v":"</td>\n120A"},{"$f":"IF(OrigTable!C184=\"\",\"\",ScriptText!$B$1&CHAR(10)&ScriptText!$D$1)","v":"<tr>\n<td>"},{"$f":"IF(OrigTable!C184=\"\",\"\",IF(LEN(OrigTable!C184)>255,LEFT(OrigTable!C184,250)&\". . .\",OrigTable!C184))","v":"Math error on Form 990-PF, 5227, 5330 or 4720 with the net result a zero or less\nthan a $1.00 balance."},{"$f":"IF(OrigTable!C184=\"\",\"\",ScriptText!$E$1&CHAR(10)&ScriptText!$C$1)","v":"</td>\n</tr>"},{"$f":"IF(OrigTable!D184=\"\",\"\",ScriptText!$B$1&CHAR(10)&ScriptText!$D$1)","v":"<tr>\n<td>"},{"$f":"IF(OrigTable!D184=\"\",\"\",TEXT(OrigTable!D184,\"00\"))","v":"BMF Notices"},{"$f":"IF(OrigTable!D184=\"\",\"\",ScriptText!$E$1&CHAR(10)&ScriptText!$C$1)","v":"</td>\n</tr>"},{"$f":"IF(OrigTable!E184=\"\",\"\",ScriptText!$B$1&CHAR(10)&ScriptText!$D$1)","v":""},{"$f":"IF(OrigTable!E184=\"\",\"\",TEXT(OrigTable!E184,\"00\"))","v":""},{"$f":"IF(OrigTable!E184=\"\",\"\",ScriptText!$E$1&CHAR(10)&ScriptText!$C$1)","v":""},{"$f":"IF(OrigTable!F184=\"\",\"\",ScriptText!$B$1&CHAR(10)&ScriptText!$D$1)","v":""},{"$f":"IF(OrigTable!F184=\"\",\"\",TEXT(OrigTable!F184,\"00\"))","v":""},{"$f":"IF(OrigTable!F184=\"\",\"\",ScriptText!$E$1&CHAR(10)&ScriptText!$C$1)","v":""},{"$f":"IF(OrigTable!G184=\"\",\"\",ScriptText!$B$1&CHAR(10)&ScriptText!$D$1)","v":""},{"$f":"IF(OrigTable!G184=\"\",\"\",TEXT(OrigTable!G184,\"00\"))","v":""},{"$f":"IF(OrigTable!G184=\"\",\"\",ScriptText!$E$1&CHAR(10)&ScriptText!$C$1)","v":""},184]
["<tr>\n<td>127</td>\n</tr>\n<tr>\n<td>Yes</td>\n120B\n<tr>\n<td>Math error on Form 1042 with the net result a zero or less than a $1.00 balance.</td>\n</tr>\n<tr>\n<td>BMF Notices</td>\n</tr>",{"$f":"IF(OrigTable!A185=\"\",\"\",ScriptText!$B$1&CHAR(10)&ScriptText!$D$1)","v":"<tr>\n<td>"},{"$f":"IF(OrigTable!A185=\"\",\"\",TEXT(OrigTable!A185,\"00\"))","v":"127"},{"$f":"IF(OrigTable!A185=\"\",\"\",ScriptText!$E$1&CHAR(10)&ScriptText!$C$1)","v":"</td>\n</tr>"},{"$f":"IF(OrigTable!B185=\"\",\"\",ScriptText!$B$1&CHAR(10)&ScriptText!$D$1)","v":"<tr>\n<td>"},{"$f":"IF(OrigTable!B185=\"\",\"\",TEXT(OrigTable!B185,\"00\"))","v":"Yes"},{"$f":"IF(OrigTable!B185=\"\",\"\",ScriptText!$E$1&CHAR(10)&ScriptText!C180)","v":"</td>\n120B"},{"$f":"IF(OrigTable!C185=\"\",\"\",ScriptText!$B$1&CHAR(10)&ScriptText!$D$1)","v":"<tr>\n<td>"},{"$f":"IF(OrigTable!C185=\"\",\"\",IF(LEN(OrigTable!C185)>255,LEFT(OrigTable!C185,250)&\". . .\",OrigTable!C185))","v":"Math error on Form 1042 with the net result a zero or less than a $1.00 balance."},{"$f":"IF(OrigTable!C185=\"\",\"\",ScriptText!$E$1&CHAR(10)&ScriptText!$C$1)","v":"</td>\n</tr>"},{"$f":"IF(OrigTable!D185=\"\",\"\",ScriptText!$B$1&CHAR(10)&ScriptText!$D$1)","v":"<tr>\n<td>"},{"$f":"IF(OrigTable!D185=\"\",\"\",TEXT(OrigTable!D185,\"00\"))","v":"BMF Notices"},{"$f":"IF(OrigTable!D185=\"\",\"\",ScriptText!$E$1&CHAR(10)&ScriptText!$C$1)","v":"</td>\n</tr>"},{"$f":"IF(OrigTable!E185=\"\",\"\",ScriptText!$B$1&CHAR(10)&ScriptText!$D$1)","v":""},{"$f":"IF(OrigTable!E185=\"\",\"\",TEXT(OrigTable!E185,\"00\"))","v":""},{"$f":"IF(OrigTable!E185=\"\",\"\",ScriptText!$E$1&CHAR(10)&ScriptText!$C$1)","v":""},{"$f":"IF(OrigTable!F185=\"\",\"\",ScriptText!$B$1&CHAR(10)&ScriptText!$D$1)","v":""},{"$f":"IF(OrigTable!F185=\"\",\"\",TEXT(OrigTable!F185,\"00\"))","v":""},{"$f":"IF(OrigTable!F185=\"\",\"\",ScriptText!$E$1&CHAR(10)&ScriptText!$C$1)","v":""},{"$f":"IF(OrigTable!G185=\"\",\"\",ScriptText!$B$1&CHAR(10)&ScriptText!$D$1)","v":""},{"$f":"IF(OrigTable!G185=\"\",\"\",TEXT(OrigTable!G185,\"00\"))","v":""},{"$f":"IF(OrigTable!G185=\"\",\"\",ScriptText!$E$1&CHAR(10)&ScriptText!$C$1)","v":""},185]
["<tr>\n<td>128</td>\n</tr>\n<tr>\n<td>Yes</td>\n123\n<tr>\n<td>Notification of the remaining balance due on a tax period after an offset-in.</td>\n</tr>\n<tr>\n<td>BMF Notices</td>\n</tr>",{"$f":"IF(OrigTable!A186=\"\",\"\",ScriptText!$B$1&CHAR(10)&ScriptText!$D$1)","v":"<tr>\n<td>"},{"$f":"IF(OrigTable!A186=\"\",\"\",TEXT(OrigTable!A186,\"00\"))","v":"128"},{"$f":"IF(OrigTable!A186=\"\",\"\",ScriptText!$E$1&CHAR(10)&ScriptText!$C$1)","v":"</td>\n</tr>"},{"$f":"IF(OrigTable!B186=\"\",\"\",ScriptText!$B$1&CHAR(10)&ScriptText!$D$1)","v":"<tr>\n<td>"},{"$f":"IF(OrigTable!B186=\"\",\"\",TEXT(OrigTable!B186,\"00\"))","v":"Yes"},{"$f":"IF(OrigTable!B186=\"\",\"\",ScriptText!$E$1&CHAR(10)&ScriptText!C181)","v":"</td>\n123"},{"$f":"IF(OrigTable!C186=\"\",\"\",ScriptText!$B$1&CHAR(10)&ScriptText!$D$1)","v":"<tr>\n<td>"},{"$f":"IF(OrigTable!C186=\"\",\"\",IF(LEN(OrigTable!C186)>255,LEFT(OrigTable!C186,250)&\". . .\",OrigTable!C186))","v":"Notification of the remaining balance due on a tax period after an offset-in."},{"$f":"IF(OrigTable!C186=\"\",\"\",ScriptText!$E$1&CHAR(10)&ScriptText!$C$1)","v":"</td>\n</tr>"},{"$f":"IF(OrigTable!D186=\"\",\"\",ScriptText!$B$1&CHAR(10)&ScriptText!$D$1)","v":"<tr>\n<td>"},{"$f":"IF(OrigTable!D186=\"\",\"\",TEXT(OrigTable!D186,\"00\"))","v":"BMF Notices"},{"$f":"IF(OrigTable!D186=\"\",\"\",ScriptText!$E$1&CHAR(10)&ScriptText!$C$1)","v":"</td>\n</tr>"},{"$f":"IF(OrigTable!E186=\"\",\"\",ScriptText!$B$1&CHAR(10)&ScriptText!$D$1)","v":""},{"$f":"IF(OrigTable!E186=\"\",\"\",TEXT(OrigTable!E186,\"00\"))","v":""},{"$f":"IF(OrigTable!E186=\"\",\"\",ScriptText!$E$1&CHAR(10)&ScriptText!$C$1)","v":""},{"$f":"IF(OrigTable!F186=\"\",\"\",ScriptText!$B$1&CHAR(10)&ScriptText!$D$1)","v":""},{"$f":"IF(OrigTable!F186=\"\",\"\",TEXT(OrigTable!F186,\"00\"))","v":""},{"$f":"IF(OrigTable!F186=\"\",\"\",ScriptText!$E$1&CHAR(10)&ScriptText!$C$1)","v":""},{"$f":"IF(OrigTable!G186=\"\",\"\",ScriptText!$B$1&CHAR(10)&ScriptText!$D$1)","v":""},{"$f":"IF(OrigTable!G186=\"\",\"\",TEXT(OrigTable!G186,\"00\"))","v":""},{"$f":"IF(OrigTable!G186=\"\",\"\",ScriptText!$E$1&CHAR(10)&ScriptText!$C$1)","v":""},186]
["<tr>\n<td>130</td>\n</tr>\n<tr>\n<td>Yes</td>\n124\n<tr>\n<td>Notification of possible exemption from Alternative Minimum Tax</td>\n</tr>\n<tr>\n<td>BMF Notices</td>\n</tr>",{"$f":"IF(OrigTable!A187=\"\",\"\",ScriptText!$B$1&CHAR(10)&ScriptText!$D$1)","v":"<tr>\n<td>"},{"$f":"IF(OrigTable!A187=\"\",\"\",TEXT(OrigTable!A187,\"00\"))","v":"130"},{"$f":"IF(OrigTable!A187=\"\",\"\",ScriptText!$E$1&CHAR(10)&ScriptText!$C$1)","v":"</td>\n</tr>"},{"$f":"IF(OrigTable!B187=\"\",\"\",ScriptText!$B$1&CHAR(10)&ScriptText!$D$1)","v":"<tr>\n<td>"},{"$f":"IF(OrigTable!B187=\"\",\"\",TEXT(OrigTable!B187,\"00\"))","v":"Yes"},{"$f":"IF(OrigTable!B187=\"\",\"\",ScriptText!$E$1&CHAR(10)&ScriptText!C182)","v":"</td>\n124"},{"$f":"IF(OrigTable!C187=\"\",\"\",ScriptText!$B$1&CHAR(10)&ScriptText!$D$1)","v":"<tr>\n<td>"},{"$f":"IF(OrigTable!C187=\"\",\"\",IF(LEN(OrigTable!C187)>255,LEFT(OrigTable!C187,250)&\". . .\",OrigTable!C187))","v":"Notification of possible exemption from Alternative Minimum Tax"},{"$f":"IF(OrigTable!C187=\"\",\"\",ScriptText!$E$1&CHAR(10)&ScriptText!$C$1)","v":"</td>\n</tr>"},{"$f":"IF(OrigTable!D187=\"\",\"\",ScriptText!$B$1&CHAR(10)&ScriptText!$D$1)","v":"<tr>\n<td>"},{"$f":"IF(OrigTable!D187=\"\",\"\",TEXT(OrigTable!D187,\"00\"))","v":"BMF Notices"},{"$f":"IF(OrigTable!D187=\"\",\"\",ScriptText!$E$1&CHAR(10)&ScriptText!$C$1)","v":"</td>\n</tr>"},{"$f":"IF(OrigTable!E187=\"\",\"\",ScriptText!$B$1&CHAR(10)&ScriptText!$D$1)","v":""},{"$f":"IF(OrigTable!E187=\"\",\"\",TEXT(OrigTable!E187,\"00\"))","v":""},{"$f":"IF(OrigTable!E187=\"\",\"\",ScriptText!$E$1&CHAR(10)&ScriptText!$C$1)","v":""},{"$f":"IF(OrigTable!F187=\"\",\"\",ScriptText!$B$1&CHAR(10)&ScriptText!$D$1)","v":""},{"$f":"IF(OrigTable!F187=\"\",\"\",TEXT(OrigTable!F187,\"00\"))","v":""},{"$f":"IF(OrigTable!F187=\"\",\"\",ScriptText!$E$1&CHAR(10)&ScriptText!$C$1)","v":""},{"$f":"IF(OrigTable!G187=\"\",\"\",ScriptText!$B$1&CHAR(10)&ScriptText!$D$1)","v":""},{"$f":"IF(OrigTable!G187=\"\",\"\",TEXT(OrigTable!G187,\"00\"))","v":""},{"$f":"IF(OrigTable!G187=\"\",\"\",ScriptText!$E$1&CHAR(10)&ScriptText!$C$1)","v":""},187]
["<tr>\n<td>131</td>\n</tr>\n<tr>\n<td>Yes</td>\n125\n<tr>\n<td>Math error on Form 1120 series, 1041, Form 8804, 990-C or 990-T with the net result a zero or less than a $1.00 balance.</td>\n</tr>\n<tr>\n<td>BMF Notices</td>\n</tr>",{"$f":"IF(OrigTable!A188=\"\",\"\",ScriptText!$B$1&CHAR(10)&ScriptText!$D$1)","v":"<tr>\n<td>"},{"$f":"IF(OrigTable!A188=\"\",\"\",TEXT(OrigTable!A188,\"00\"))","v":"131"},{"$f":"IF(OrigTable!A188=\"\",\"\",ScriptText!$E$1&CHAR(10)&ScriptText!$C$1)","v":"</td>\n</tr>"},{"$f":"IF(OrigTable!B188=\"\",\"\",ScriptText!$B$1&CHAR(10)&ScriptText!$D$1)","v":"<tr>\n<td>"},{"$f":"IF(OrigTable!B188=\"\",\"\",TEXT(OrigTable!B188,\"00\"))","v":"Yes"},{"$f":"IF(OrigTable!B188=\"\",\"\",ScriptText!$E$1&CHAR(10)&ScriptText!C183)","v":"</td>\n125"},{"$f":"IF(OrigTable!C188=\"\",\"\",ScriptText!$B$1&CHAR(10)&ScriptText!$D$1)","v":"<tr>\n<td>"},{"$f":"IF(OrigTable!C188=\"\",\"\",IF(LEN(OrigTable!C188)>255,LEFT(OrigTable!C188,250)&\". . .\",OrigTable!C188))","v":"Math error on Form 1120 series, 1041, Form 8804, 990-C or 990-T with the net result a zero or less than a $1.00 balance."},{"$f":"IF(OrigTable!C188=\"\",\"\",ScriptText!$E$1&CHAR(10)&ScriptText!$C$1)","v":"</td>\n</tr>"},{"$f":"IF(OrigTable!D188=\"\",\"\",ScriptText!$B$1&CHAR(10)&ScriptText!$D$1)","v":"<tr>\n<td>"},{"$f":"IF(OrigTable!D188=\"\",\"\",TEXT(OrigTable!D188,\"00\"))","v":"BMF Notices"},{"$f":"IF(OrigTable!D188=\"\",\"\",ScriptText!$E$1&CHAR(10)&ScriptText!$C$1)","v":"</td>\n</tr>"},{"$f":"IF(OrigTable!E188=\"\",\"\",ScriptText!$B$1&CHAR(10)&ScriptText!$D$1)","v":""},{"$f":"IF(OrigTable!E188=\"\",\"\",TEXT(OrigTable!E188,\"00\"))","v":""},{"$f":"IF(OrigTable!E188=\"\",\"\",ScriptText!$E$1&CHAR(10)&ScriptText!$C$1)","v":""},{"$f":"IF(OrigTable!F188=\"\",\"\",ScriptText!$B$1&CHAR(10)&ScriptText!$D$1)","v":""},{"$f":"IF(OrigTable!F188=\"\",\"\",TEXT(OrigTable!F188,\"00\"))","v":""},{"$f":"IF(OrigTable!F188=\"\",\"\",ScriptText!$E$1&CHAR(10)&ScriptText!$C$1)","v":""},{"$f":"IF(OrigTable!G188=\"\",\"\",ScriptText!$B$1&CHAR(10)&ScriptText!$D$1)","v":""},{"$f":"IF(OrigTable!G188=\"\",\"\",TEXT(OrigTable!G188,\"00\"))","v":""},{"$f":"IF(OrigTable!G188=\"\",\"\",ScriptText!$E$1&CHAR(10)&ScriptText!$C$1)","v":""},188]
["<tr>\n<td>131A</td>\n</tr>\n<tr>\n<td>Yes</td>\n126\n<tr>\n<td>Math error on Form 1120 series, 1041, Form 8804, 990-C or 990-T with the net result a\nbalance due under $5.00</td>\n</tr>\n<tr>\n<td>BMF Notices</td>\n</tr>",{"$f":"IF(OrigTable!A189=\"\",\"\",ScriptText!$B$1&CHAR(10)&ScriptText!$D$1)","v":"<tr>\n<td>"},{"$f":"IF(OrigTable!A189=\"\",\"\",TEXT(OrigTable!A189,\"00\"))","v":"131A"},{"$f":"IF(OrigTable!A189=\"\",\"\",ScriptText!$E$1&CHAR(10)&ScriptText!$C$1)","v":"</td>\n</tr>"},{"$f":"IF(OrigTable!B189=\"\",\"\",ScriptText!$B$1&CHAR(10)&ScriptText!$D$1)","v":"<tr>\n<td>"},{"$f":"IF(OrigTable!B189=\"\",\"\",TEXT(OrigTable!B189,\"00\"))","v":"Yes"},{"$f":"IF(OrigTable!B189=\"\",\"\",ScriptText!$E$1&CHAR(10)&ScriptText!C184)","v":"</td>\n126"},{"$f":"IF(OrigTable!C189=\"\",\"\",ScriptText!$B$1&CHAR(10)&ScriptText!$D$1)","v":"<tr>\n<td>"},{"$f":"IF(OrigTable!C189=\"\",\"\",IF(LEN(OrigTable!C189)>255,LEFT(OrigTable!C189,250)&\". . .\",OrigTable!C189))","v":"Math error on Form 1120 series, 1041, Form 8804, 990-C or 990-T with the net result a\nbalance due under $5.00"},{"$f":"IF(OrigTable!C189=\"\",\"\",ScriptText!$E$1&CHAR(10)&ScriptText!$C$1)","v":"</td>\n</tr>"},{"$f":"IF(OrigTable!D189=\"\",\"\",ScriptText!$B$1&CHAR(10)&ScriptText!$D$1)","v":"<tr>\n<td>"},{"$f":"IF(OrigTable!D189=\"\",\"\",TEXT(OrigTable!D189,\"00\"))","v":"BMF Notices"},{"$f":"IF(OrigTable!D189=\"\",\"\",ScriptText!$E$1&CHAR(10)&ScriptText!$C$1)","v":"</td>\n</tr>"},{"$f":"IF(OrigTable!E189=\"\",\"\",ScriptText!$B$1&CHAR(10)&ScriptText!$D$1)","v":""},{"$f":"IF(OrigTable!E189=\"\",\"\",TEXT(OrigTable!E189,\"00\"))","v":""},{"$f":"IF(OrigTable!E189=\"\",\"\",ScriptText!$E$1&CHAR(10)&ScriptText!$C$1)","v":""},{"$f":"IF(OrigTable!F189=\"\",\"\",ScriptText!$B$1&CHAR(10)&ScriptText!$D$1)","v":""},{"$f":"IF(OrigTable!F189=\"\",\"\",TEXT(OrigTable!F189,\"00\"))","v":""},{"$f":"IF(OrigTable!F189=\"\",\"\",ScriptText!$E$1&CHAR(10)&ScriptText!$C$1)","v":""},{"$f":"IF(OrigTable!G189=\"\",\"\",ScriptText!$B$1&CHAR(10)&ScriptText!$D$1)","v":""},{"$f":"IF(OrigTable!G189=\"\",\"\",TEXT(OrigTable!G189,\"00\"))","v":""},{"$f":"IF(OrigTable!G189=\"\",\"\",ScriptText!$E$1&CHAR(10)&ScriptText!$C$1)","v":""},189]
["<tr>\n<td>132</td>\n</tr>\n<tr>\n<td>Yes</td>\n127\n<tr>\n<td>Math error on Form 1120 series, 1041, Form 8804, 990-C or 990-T resulting in a balance\ndue.</td>\n</tr>\n<tr>\n<td>BMF Notices</td>\n</tr>",{"$f":"IF(OrigTable!A190=\"\",\"\",ScriptText!$B$1&CHAR(10)&ScriptText!$D$1)","v":"<tr>\n<td>"},{"$f":"IF(OrigTable!A190=\"\",\"\",TEXT(OrigTable!A190,\"00\"))","v":"132"},{"$f":"IF(OrigTable!A190=\"\",\"\",ScriptText!$E$1&CHAR(10)&ScriptText!$C$1)","v":"</td>\n</tr>"},{"$f":"IF(OrigTable!B190=\"\",\"\",ScriptText!$B$1&CHAR(10)&ScriptText!$D$1)","v":"<tr>\n<td>"},{"$f":"IF(OrigTable!B190=\"\",\"\",TEXT(OrigTable!B190,\"00\"))","v":"Yes"},{"$f":"IF(OrigTable!B190=\"\",\"\",ScriptText!$E$1&CHAR(10)&ScriptText!C185)","v":"</td>\n127"},{"$f":"IF(OrigTable!C190=\"\",\"\",ScriptText!$B$1&CHAR(10)&ScriptText!$D$1)","v":"<tr>\n<td>"},{"$f":"IF(OrigTable!C190=\"\",\"\",IF(LEN(OrigTable!C190)>255,LEFT(OrigTable!C190,250)&\". . .\",OrigTable!C190))","v":"Math error on Form 1120 series, 1041, Form 8804, 990-C or 990-T resulting in a balance\ndue."},{"$f":"IF(OrigTable!C190=\"\",\"\",ScriptText!$E$1&CHAR(10)&ScriptText!$C$1)","v":"</td>\n</tr>"},{"$f":"IF(OrigTable!D190=\"\",\"\",ScriptText!$B$1&CHAR(10)&ScriptText!$D$1)","v":"<tr>\n<td>"},{"$f":"IF(OrigTable!D190=\"\",\"\",TEXT(OrigTable!D190,\"00\"))","v":"BMF Notices"},{"$f":"IF(OrigTable!D190=\"\",\"\",ScriptText!$E$1&CHAR(10)&ScriptText!$C$1)","v":"</td>\n</tr>"},{"$f":"IF(OrigTable!E190=\"\",\"\",ScriptText!$B$1&CHAR(10)&ScriptText!$D$1)","v":""},{"$f":"IF(OrigTable!E190=\"\",\"\",TEXT(OrigTable!E190,\"00\"))","v":""},{"$f":"IF(OrigTable!E190=\"\",\"\",ScriptText!$E$1&CHAR(10)&ScriptText!$C$1)","v":""},{"$f":"IF(OrigTable!F190=\"\",\"\",ScriptText!$B$1&CHAR(10)&ScriptText!$D$1)","v":""},{"$f":"IF(OrigTable!F190=\"\",\"\",TEXT(OrigTable!F190,\"00\"))","v":""},{"$f":"IF(OrigTable!F190=\"\",\"\",ScriptText!$E$1&CHAR(10)&ScriptText!$C$1)","v":""},{"$f":"IF(OrigTable!G190=\"\",\"\",ScriptText!$B$1&CHAR(10)&ScriptText!$D$1)","v":""},{"$f":"IF(OrigTable!G190=\"\",\"\",TEXT(OrigTable!G190,\"00\"))","v":""},{"$f":"IF(OrigTable!G190=\"\",\"\",ScriptText!$E$1&CHAR(10)&ScriptText!$C$1)","v":""},190]
["<tr>\n<td>133</td>\n</tr>\n<tr>\n<td>Yes</td>\n128\n<tr>\n<td>Math error on Form 1120 series, 1041, Form 8804, 990-C or 990-T resulting in a net overpayment.</td>\n</tr>\n<tr>\n<td>BMF Notices</td>\n</tr>",{"$f":"IF(OrigTable!A191=\"\",\"\",ScriptText!$B$1&CHAR(10)&ScriptText!$D$1)","v":"<tr>\n<td>"},{"$f":"IF(OrigTable!A191=\"\",\"\",TEXT(OrigTable!A191,\"00\"))","v":"133"},{"$f":"IF(OrigTable!A191=\"\",\"\",ScriptText!$E$1&CHAR(10)&ScriptText!$C$1)","v":"</td>\n</tr>"},{"$f":"IF(OrigTable!B191=\"\",\"\",ScriptText!$B$1&CHAR(10)&ScriptText!$D$1)","v":"<tr>\n<td>"},{"$f":"IF(OrigTable!B191=\"\",\"\",TEXT(OrigTable!B191,\"00\"))","v":"Yes"},{"$f":"IF(OrigTable!B191=\"\",\"\",ScriptText!$E$1&CHAR(10)&ScriptText!C186)","v":"</td>\n128"},{"$f":"IF(OrigTable!C191=\"\",\"\",ScriptText!$B$1&CHAR(10)&ScriptText!$D$1)","v":"<tr>\n<td>"},{"$f":"IF(OrigTable!C191=\"\",\"\",IF(LEN(OrigTable!C191)>255,LEFT(OrigTable!C191,250)&\". . .\",OrigTable!C191))","v":"Math error on Form 1120 series, 1041, Form 8804, 990-C or 990-T resulting in a net overpayment."},{"$f":"IF(OrigTable!C191=\"\",\"\",ScriptText!$E$1&CHAR(10)&ScriptText!$C$1)","v":"</td>\n</tr>"},{"$f":"IF(OrigTable!D191=\"\",\"\",ScriptText!$B$1&CHAR(10)&ScriptText!$D$1)","v":"<tr>\n<td>"},{"$f":"IF(OrigTable!D191=\"\",\"\",TEXT(OrigTable!D191,\"00\"))","v":"BMF Notices"},{"$f":"IF(OrigTable!D191=\"\",\"\",ScriptText!$E$1&CHAR(10)&ScriptText!$C$1)","v":"</td>\n</tr>"},{"$f":"IF(OrigTable!E191=\"\",\"\",ScriptText!$B$1&CHAR(10)&ScriptText!$D$1)","v":""},{"$f":"IF(OrigTable!E191=\"\",\"\",TEXT(OrigTable!E191,\"00\"))","v":""},{"$f":"IF(OrigTable!E191=\"\",\"\",ScriptText!$E$1&CHAR(10)&ScriptText!$C$1)","v":""},{"$f":"IF(OrigTable!F191=\"\",\"\",ScriptText!$B$1&CHAR(10)&ScriptText!$D$1)","v":""},{"$f":"IF(OrigTable!F191=\"\",\"\",TEXT(OrigTable!F191,\"00\"))","v":""},{"$f":"IF(OrigTable!F191=\"\",\"\",ScriptText!$E$1&CHAR(10)&ScriptText!$C$1)","v":""},{"$f":"IF(OrigTable!G191=\"\",\"\",ScriptText!$B$1&CHAR(10)&ScriptText!$D$1)","v":""},{"$f":"IF(OrigTable!G191=\"\",\"\",TEXT(OrigTable!G191,\"00\"))","v":""},{"$f":"IF(OrigTable!G191=\"\",\"\",ScriptText!$E$1&CHAR(10)&ScriptText!$C$1)","v":""},191]
["<tr>\n<td>134B</td>\n</tr>\n<tr>\n<td>Yes</td>\n130\n<tr>\n<td>FTD discrepancy – Balance due</td>\n</tr>\n<tr>\n<td>BMF Notices</td>\n</tr>",{"$f":"IF(OrigTable!A192=\"\",\"\",ScriptText!$B$1&CHAR(10)&ScriptText!$D$1)","v":"<tr>\n<td>"},{"$f":"IF(OrigTable!A192=\"\",\"\",TEXT(OrigTable!A192,\"00\"))","v":"134B"},{"$f":"IF(OrigTable!A192=\"\",\"\",ScriptText!$E$1&CHAR(10)&ScriptText!$C$1)","v":"</td>\n</tr>"},{"$f":"IF(OrigTable!B192=\"\",\"\",ScriptText!$B$1&CHAR(10)&ScriptText!$D$1)","v":"<tr>\n<td>"},{"$f":"IF(OrigTable!B192=\"\",\"\",TEXT(OrigTable!B192,\"00\"))","v":"Yes"},{"$f":"IF(OrigTable!B192=\"\",\"\",ScriptText!$E$1&CHAR(10)&ScriptText!C187)","v":"</td>\n130"},{"$f":"IF(OrigTable!C192=\"\",\"\",ScriptText!$B$1&CHAR(10)&ScriptText!$D$1)","v":"<tr>\n<td>"},{"$f":"IF(OrigTable!C192=\"\",\"\",IF(LEN(OrigTable!C192)>255,LEFT(OrigTable!C192,250)&\". . .\",OrigTable!C192))","v":"FTD discrepancy – Balance due"},{"$f":"IF(OrigTable!C192=\"\",\"\",ScriptText!$E$1&CHAR(10)&ScriptText!$C$1)","v":"</td>\n</tr>"},{"$f":"IF(OrigTable!D192=\"\",\"\",ScriptText!$B$1&CHAR(10)&ScriptText!$D$1)","v":"<tr>\n<td>"},{"$f":"IF(OrigTable!D192=\"\",\"\",TEXT(OrigTable!D192,\"00\"))","v":"BMF Notices"},{"$f":"IF(OrigTable!D192=\"\",\"\",ScriptText!$E$1&CHAR(10)&ScriptText!$C$1)","v":"</td>\n</tr>"},{"$f":"IF(OrigTable!E192=\"\",\"\",ScriptText!$B$1&CHAR(10)&ScriptText!$D$1)","v":""},{"$f":"IF(OrigTable!E192=\"\",\"\",TEXT(OrigTable!E192,\"00\"))","v":""},{"$f":"IF(OrigTable!E192=\"\",\"\",ScriptText!$E$1&CHAR(10)&ScriptText!$C$1)","v":""},{"$f":"IF(OrigTable!F192=\"\",\"\",ScriptText!$B$1&CHAR(10)&ScriptText!$D$1)","v":""},{"$f":"IF(OrigTable!F192=\"\",\"\",TEXT(OrigTable!F192,\"00\"))","v":""},{"$f":"IF(OrigTable!F192=\"\",\"\",ScriptText!$E$1&CHAR(10)&ScriptText!$C$1)","v":""},{"$f":"IF(OrigTable!G192=\"\",\"\",ScriptText!$B$1&CHAR(10)&ScriptText!$D$1)","v":""},{"$f":"IF(OrigTable!G192=\"\",\"\",TEXT(OrigTable!G192,\"00\"))","v":""},{"$f":"IF(OrigTable!G192=\"\",\"\",ScriptText!$E$1&CHAR(10)&ScriptText!$C$1)","v":""},192]
["<tr>\n<td>134R</td>\n</tr>\n<tr>\n<td>No</td>\n131\n<tr>\n<td>FTD discrepancy – Refund due</td>\n</tr>\n<tr>\n<td>BMF Notices</td>\n</tr>",{"$f":"IF(OrigTable!A193=\"\",\"\",ScriptText!$B$1&CHAR(10)&ScriptText!$D$1)","v":"<tr>\n<td>"},{"$f":"IF(OrigTable!A193=\"\",\"\",TEXT(OrigTable!A193,\"00\"))","v":"134R"},{"$f":"IF(OrigTable!A193=\"\",\"\",ScriptText!$E$1&CHAR(10)&ScriptText!$C$1)","v":"</td>\n</tr>"},{"$f":"IF(OrigTable!B193=\"\",\"\",ScriptText!$B$1&CHAR(10)&ScriptText!$D$1)","v":"<tr>\n<td>"},{"$f":"IF(OrigTable!B193=\"\",\"\",TEXT(OrigTable!B193,\"00\"))","v":"No"},{"$f":"IF(OrigTable!B193=\"\",\"\",ScriptText!$E$1&CHAR(10)&ScriptText!C188)","v":"</td>\n131"},{"$f":"IF(OrigTable!C193=\"\",\"\",ScriptText!$B$1&CHAR(10)&ScriptText!$D$1)","v":"<tr>\n<td>"},{"$f":"IF(OrigTable!C193=\"\",\"\",IF(LEN(OrigTable!C193)>255,LEFT(OrigTable!C193,250)&\". . .\",OrigTable!C193))","v":"FTD discrepancy – Refund due"},{"$f":"IF(OrigTable!C193=\"\",\"\",ScriptText!$E$1&CHAR(10)&ScriptText!$C$1)","v":"</td>\n</tr>"},{"$f":"IF(OrigTable!D193=\"\",\"\",ScriptText!$B$1&CHAR(10)&ScriptText!$D$1)","v":"<tr>\n<td>"},{"$f":"IF(OrigTable!D193=\"\",\"\",TEXT(OrigTable!D193,\"00\"))","v":"BMF Notices"},{"$f":"IF(OrigTable!D193=\"\",\"\",ScriptText!$E$1&CHAR(10)&ScriptText!$C$1)","v":"</td>\n</tr>"},{"$f":"IF(OrigTable!E193=\"\",\"\",ScriptText!$B$1&CHAR(10)&ScriptText!$D$1)","v":""},{"$f":"IF(OrigTable!E193=\"\",\"\",TEXT(OrigTable!E193,\"00\"))","v":""},{"$f":"IF(OrigTable!E193=\"\",\"\",ScriptText!$E$1&CHAR(10)&ScriptText!$C$1)","v":""},{"$f":"IF(OrigTable!F193=\"\",\"\",ScriptText!$B$1&CHAR(10)&ScriptText!$D$1)","v":""},{"$f":"IF(OrigTable!F193=\"\",\"\",TEXT(OrigTable!F193,\"00\"))","v":""},{"$f":"IF(OrigTable!F193=\"\",\"\",ScriptText!$E$1&CHAR(10)&ScriptText!$C$1)","v":""},{"$f":"IF(OrigTable!G193=\"\",\"\",ScriptText!$B$1&CHAR(10)&ScriptText!$D$1)","v":""},{"$f":"IF(OrigTable!G193=\"\",\"\",TEXT(OrigTable!G193,\"00\"))","v":""},{"$f":"IF(OrigTable!G193=\"\",\"\",ScriptText!$E$1&CHAR(10)&ScriptText!$C$1)","v":""},193]
["<tr>\n<td>135</td>\n</tr>\n<tr>\n<td>No</td>\n131A\n<tr>\n<td>Campus notice only - Notification to AC International—Collection that a new foreign\naddress has posted to the entity with a tax period in delinquent status because the taxpayer was out of the country.</td>\n</tr>\n<tr>\n<td>BMF Notices</td>\n</tr>",{"$f":"IF(OrigTable!A194=\"\",\"\",ScriptText!$B$1&CHAR(10)&ScriptText!$D$1)","v":"<tr>\n<td>"},{"$f":"IF(OrigTable!A194=\"\",\"\",TEXT(OrigTable!A194,\"00\"))","v":"135"},{"$f":"IF(OrigTable!A194=\"\",\"\",ScriptText!$E$1&CHAR(10)&ScriptText!$C$1)","v":"</td>\n</tr>"},{"$f":"IF(OrigTable!B194=\"\",\"\",ScriptText!$B$1&CHAR(10)&ScriptText!$D$1)","v":"<tr>\n<td>"},{"$f":"IF(OrigTable!B194=\"\",\"\",TEXT(OrigTable!B194,\"00\"))","v":"No"},{"$f":"IF(OrigTable!B194=\"\",\"\",ScriptText!$E$1&CHAR(10)&ScriptText!C189)","v":"</td>\n131A"},{"$f":"IF(OrigTable!C194=\"\",\"\",ScriptText!$B$1&CHAR(10)&ScriptText!$D$1)","v":"<tr>\n<td>"},{"$f":"IF(OrigTable!C194=\"\",\"\",IF(LEN(OrigTable!C194)>255,LEFT(OrigTable!C194,250)&\". . .\",OrigTable!C194))","v":"Campus notice only - Notification to AC International—Collection that a new foreign\naddress has posted to the entity with a tax period in delinquent status because the taxpayer was out of the country."},{"$f":"IF(OrigTable!C194=\"\",\"\",ScriptText!$E$1&CHAR(10)&ScriptText!$C$1)","v":"</td>\n</tr>"},{"$f":"IF(OrigTable!D194=\"\",\"\",ScriptText!$B$1&CHAR(10)&ScriptText!$D$1)","v":"<tr>\n<td>"},{"$f":"IF(OrigTable!D194=\"\",\"\",TEXT(OrigTable!D194,\"00\"))","v":"BMF Notices"},{"$f":"IF(OrigTable!D194=\"\",\"\",ScriptText!$E$1&CHAR(10)&ScriptText!$C$1)","v":"</td>\n</tr>"},{"$f":"IF(OrigTable!E194=\"\",\"\",ScriptText!$B$1&CHAR(10)&ScriptText!$D$1)","v":""},{"$f":"IF(OrigTable!E194=\"\",\"\",TEXT(OrigTable!E194,\"00\"))","v":""},{"$f":"IF(OrigTable!E194=\"\",\"\",ScriptText!$E$1&CHAR(10)&ScriptText!$C$1)","v":""},{"$f":"IF(OrigTable!F194=\"\",\"\",ScriptText!$B$1&CHAR(10)&ScriptText!$D$1)","v":""},{"$f":"IF(OrigTable!F194=\"\",\"\",TEXT(OrigTable!F194,\"00\"))","v":""},{"$f":"IF(OrigTable!F194=\"\",\"\",ScriptText!$E$1&CHAR(10)&ScriptText!$C$1)","v":""},{"$f":"IF(OrigTable!G194=\"\",\"\",ScriptText!$B$1&CHAR(10)&ScriptText!$D$1)","v":""},{"$f":"IF(OrigTable!G194=\"\",\"\",TEXT(OrigTable!G194,\"00\"))","v":""},{"$f":"IF(OrigTable!G194=\"\",\"\",ScriptText!$E$1&CHAR(10)&ScriptText!$C$1)","v":""},194]
["<tr>\n<td>136</td>\n</tr>\n<tr>\n<td>No</td>\n132\n<tr>\n<td>Annual Notification of FTD Deposit Requirements (941, 941SS)</td>\n</tr>\n<tr>\n<td>BMF Notices</td>\n</tr>",{"$f":"IF(OrigTable!A195=\"\",\"\",ScriptText!$B$1&CHAR(10)&ScriptText!$D$1)","v":"<tr>\n<td>"},{"$f":"IF(OrigTable!A195=\"\",\"\",TEXT(OrigTable!A195,\"00\"))","v":"136"},{"$f":"IF(OrigTable!A195=\"\",\"\",ScriptText!$E$1&CHAR(10)&ScriptText!$C$1)","v":"</td>\n</tr>"},{"$f":"IF(OrigTable!B195=\"\",\"\",ScriptText!$B$1&CHAR(10)&ScriptText!$D$1)","v":"<tr>\n<td>"},{"$f":"IF(OrigTable!B195=\"\",\"\",TEXT(OrigTable!B195,\"00\"))","v":"No"},{"$f":"IF(OrigTable!B195=\"\",\"\",ScriptText!$E$1&CHAR(10)&ScriptText!C190)","v":"</td>\n132"},{"$f":"IF(OrigTable!C195=\"\",\"\",ScriptText!$B$1&CHAR(10)&ScriptText!$D$1)","v":"<tr>\n<td>"},{"$f":"IF(OrigTable!C195=\"\",\"\",IF(LEN(OrigTable!C195)>255,LEFT(OrigTable!C195,250)&\". . .\",OrigTable!C195))","v":"Annual Notification of FTD Deposit Requirements (941, 941SS)"},{"$f":"IF(OrigTable!C195=\"\",\"\",ScriptText!$E$1&CHAR(10)&ScriptText!$C$1)","v":"</td>\n</tr>"},{"$f":"IF(OrigTable!D195=\"\",\"\",ScriptText!$B$1&CHAR(10)&ScriptText!$D$1)","v":"<tr>\n<td>"},{"$f":"IF(OrigTable!D195=\"\",\"\",TEXT(OrigTable!D195,\"00\"))","v":"BMF Notices"},{"$f":"IF(OrigTable!D195=\"\",\"\",ScriptText!$E$1&CHAR(10)&ScriptText!$C$1)","v":"</td>\n</tr>"},{"$f":"IF(OrigTable!E195=\"\",\"\",ScriptText!$B$1&CHAR(10)&ScriptText!$D$1)","v":""},{"$f":"IF(OrigTable!E195=\"\",\"\",TEXT(OrigTable!E195,\"00\"))","v":""},{"$f":"IF(OrigTable!E195=\"\",\"\",ScriptText!$E$1&CHAR(10)&ScriptText!$C$1)","v":""},{"$f":"IF(OrigTable!F195=\"\",\"\",ScriptText!$B$1&CHAR(10)&ScriptText!$D$1)","v":""},{"$f":"IF(OrigTable!F195=\"\",\"\",TEXT(OrigTable!F195,\"00\"))","v":""},{"$f":"IF(OrigTable!F195=\"\",\"\",ScriptText!$E$1&CHAR(10)&ScriptText!$C$1)","v":""},{"$f":"IF(OrigTable!G195=\"\",\"\",ScriptText!$B$1&CHAR(10)&ScriptText!$D$1)","v":""},{"$f":"IF(OrigTable!G195=\"\",\"\",TEXT(OrigTable!G195,\"00\"))","v":""},{"$f":"IF(OrigTable!G195=\"\",\"\",ScriptText!$E$1&CHAR(10)&ScriptText!$C$1)","v":""},195]
["<tr>\n<td>136B</td>\n</tr>\n<tr>\n<td>No</td>\n133\n<tr>\n<td>Your Federal Tax Deposit Requirements for (Form 941) figured using the second preceding calendar year Form 944 as the Form 941 lookback period.</td>\n</tr>\n<tr>\n<td>BMF Notices</td>\n</tr>",{"$f":"IF(OrigTable!A196=\"\",\"\",ScriptText!$B$1&CHAR(10)&ScriptText!$D$1)","v":"<tr>\n<td>"},{"$f":"IF(OrigTable!A196=\"\",\"\",TEXT(OrigTable!A196,\"00\"))","v":"136B"},{"$f":"IF(OrigTable!A196=\"\",\"\",ScriptText!$E$1&CHAR(10)&ScriptText!$C$1)","v":"</td>\n</tr>"},{"$f":"IF(OrigTable!B196=\"\",\"\",ScriptText!$B$1&CHAR(10)&ScriptText!$D$1)","v":"<tr>\n<td>"},{"$f":"IF(OrigTable!B196=\"\",\"\",TEXT(OrigTable!B196,\"00\"))","v":"No"},{"$f":"IF(OrigTable!B196=\"\",\"\",ScriptText!$E$1&CHAR(10)&ScriptText!C191)","v":"</td>\n133"},{"$f":"IF(OrigTable!C196=\"\",\"\",ScriptText!$B$1&CHAR(10)&ScriptText!$D$1)","v":"<tr>\n<td>"},{"$f":"IF(OrigTable!C196=\"\",\"\",IF(LEN(OrigTable!C196)>255,LEFT(OrigTable!C196,250)&\". . .\",OrigTable!C196))","v":"Your Federal Tax Deposit Requirements for (Form 941) figured using the second preceding calendar year Form 944 as the Form 941 lookback period."},{"$f":"IF(OrigTable!C196=\"\",\"\",ScriptText!$E$1&CHAR(10)&ScriptText!$C$1)","v":"</td>\n</tr>"},{"$f":"IF(OrigTable!D196=\"\",\"\",ScriptText!$B$1&CHAR(10)&ScriptText!$D$1)","v":"<tr>\n<td>"},{"$f":"IF(OrigTable!D196=\"\",\"\",TEXT(OrigTable!D196,\"00\"))","v":"BMF Notices"},{"$f":"IF(OrigTable!D196=\"\",\"\",ScriptText!$E$1&CHAR(10)&ScriptText!$C$1)","v":"</td>\n</tr>"},{"$f":"IF(OrigTable!E196=\"\",\"\",ScriptText!$B$1&CHAR(10)&ScriptText!$D$1)","v":""},{"$f":"IF(OrigTable!E196=\"\",\"\",TEXT(OrigTable!E196,\"00\"))","v":""},{"$f":"IF(OrigTable!E196=\"\",\"\",ScriptText!$E$1&CHAR(10)&ScriptText!$C$1)","v":""},{"$f":"IF(OrigTable!F196=\"\",\"\",ScriptText!$B$1&CHAR(10)&ScriptText!$D$1)","v":""},{"$f":"IF(OrigTable!F196=\"\",\"\",TEXT(OrigTable!F196,\"00\"))","v":""},{"$f":"IF(OrigTable!F196=\"\",\"\",ScriptText!$E$1&CHAR(10)&ScriptText!$C$1)","v":""},{"$f":"IF(OrigTable!G196=\"\",\"\",ScriptText!$B$1&CHAR(10)&ScriptText!$D$1)","v":""},{"$f":"IF(OrigTable!G196=\"\",\"\",TEXT(OrigTable!G196,\"00\"))","v":""},{"$f":"IF(OrigTable!G196=\"\",\"\",ScriptText!$E$1&CHAR(10)&ScriptText!$C$1)","v":""},196]
["<tr>\n<td>137</td>\n</tr>\n<tr>\n<td>No</td>\n134B\n<tr>\n<td>Annual Notification of FTD Deposit Requirements (Form 943)</td>\n</tr>\n<tr>\n<td>BMF Notices</td>\n</tr>",{"$f":"IF(OrigTable!A197=\"\",\"\",ScriptText!$B$1&CHAR(10)&ScriptText!$D$1)","v":"<tr>\n<td>"},{"$f":"IF(OrigTable!A197=\"\",\"\",TEXT(OrigTable!A197,\"00\"))","v":"137"},{"$f":"IF(OrigTable!A197=\"\",\"\",ScriptText!$E$1&CHAR(10)&ScriptText!$C$1)","v":"</td>\n</tr>"},{"$f":"IF(OrigTable!B197=\"\",\"\",ScriptText!$B$1&CHAR(10)&ScriptText!$D$1)","v":"<tr>\n<td>"},{"$f":"IF(OrigTable!B197=\"\",\"\",TEXT(OrigTable!B197,\"00\"))","v":"No"},{"$f":"IF(OrigTable!B197=\"\",\"\",ScriptText!$E$1&CHAR(10)&ScriptText!C192)","v":"</td>\n134B"},{"$f":"IF(OrigTable!C197=\"\",\"\",ScriptText!$B$1&CHAR(10)&ScriptText!$D$1)","v":"<tr>\n<td>"},{"$f":"IF(OrigTable!C197=\"\",\"\",IF(LEN(OrigTable!C197)>255,LEFT(OrigTable!C197,250)&\". . .\",OrigTable!C197))","v":"Annual Notification of FTD Deposit Requirements (Form 943)"},{"$f":"IF(OrigTable!C197=\"\",\"\",ScriptText!$E$1&CHAR(10)&ScriptText!$C$1)","v":"</td>\n</tr>"},{"$f":"IF(OrigTable!D197=\"\",\"\",ScriptText!$B$1&CHAR(10)&ScriptText!$D$1)","v":"<tr>\n<td>"},{"$f":"IF(OrigTable!D197=\"\",\"\",TEXT(OrigTable!D197,\"00\"))","v":"BMF Notices"},{"$f":"IF(OrigTable!D197=\"\",\"\",ScriptText!$E$1&CHAR(10)&ScriptText!$C$1)","v":"</td>\n</tr>"},{"$f":"IF(OrigTable!E197=\"\",\"\",ScriptText!$B$1&CHAR(10)&ScriptText!$D$1)","v":""},{"$f":"IF(OrigTable!E197=\"\",\"\",TEXT(OrigTable!E197,\"00\"))","v":""},{"$f":"IF(OrigTable!E197=\"\",\"\",ScriptText!$E$1&CHAR(10)&ScriptText!$C$1)","v":""},{"$f":"IF(OrigTable!F197=\"\",\"\",ScriptText!$B$1&CHAR(10)&ScriptText!$D$1)","v":""},{"$f":"IF(OrigTable!F197=\"\",\"\",TEXT(OrigTable!F197,\"00\"))","v":""},{"$f":"IF(OrigTable!F197=\"\",\"\",ScriptText!$E$1&CHAR(10)&ScriptText!$C$1)","v":""},{"$f":"IF(OrigTable!G197=\"\",\"\",ScriptText!$B$1&CHAR(10)&ScriptText!$D$1)","v":""},{"$f":"IF(OrigTable!G197=\"\",\"\",TEXT(OrigTable!G197,\"00\"))","v":""},{"$f":"IF(OrigTable!G197=\"\",\"\",ScriptText!$E$1&CHAR(10)&ScriptText!$C$1)","v":""},197]
["<tr>\n<td>137A</td>\n</tr>\n<tr>\n<td>No</td>\n134R\n<tr>\n<td>Annual Notification of FTD Deposit Requirements (Form CT-1)</td>\n</tr>\n<tr>\n<td>BMF Notices</td>\n</tr>",{"$f":"IF(OrigTable!A198=\"\",\"\",ScriptText!$B$1&CHAR(10)&ScriptText!$D$1)","v":"<tr>\n<td>"},{"$f":"IF(OrigTable!A198=\"\",\"\",TEXT(OrigTable!A198,\"00\"))","v":"137A"},{"$f":"IF(OrigTable!A198=\"\",\"\",ScriptText!$E$1&CHAR(10)&ScriptText!$C$1)","v":"</td>\n</tr>"},{"$f":"IF(OrigTable!B198=\"\",\"\",ScriptText!$B$1&CHAR(10)&ScriptText!$D$1)","v":"<tr>\n<td>"},{"$f":"IF(OrigTable!B198=\"\",\"\",TEXT(OrigTable!B198,\"00\"))","v":"No"},{"$f":"IF(OrigTable!B198=\"\",\"\",ScriptText!$E$1&CHAR(10)&ScriptText!C193)","v":"</td>\n134R"},{"$f":"IF(OrigTable!C198=\"\",\"\",ScriptText!$B$1&CHAR(10)&ScriptText!$D$1)","v":"<tr>\n<td>"},{"$f":"IF(OrigTable!C198=\"\",\"\",IF(LEN(OrigTable!C198)>255,LEFT(OrigTable!C198,250)&\". . .\",OrigTable!C198))","v":"Annual Notification of FTD Deposit Requirements (Form CT-1)"},{"$f":"IF(OrigTable!C198=\"\",\"\",ScriptText!$E$1&CHAR(10)&ScriptText!$C$1)","v":"</td>\n</tr>"},{"$f":"IF(OrigTable!D198=\"\",\"\",ScriptText!$B$1&CHAR(10)&ScriptText!$D$1)","v":"<tr>\n<td>"},{"$f":"IF(OrigTable!D198=\"\",\"\",TEXT(OrigTable!D198,\"00\"))","v":"BMF Notices"},{"$f":"IF(OrigTable!D198=\"\",\"\",ScriptText!$E$1&CHAR(10)&ScriptText!$C$1)","v":"</td>\n</tr>"},{"$f":"IF(OrigTable!E198=\"\",\"\",ScriptText!$B$1&CHAR(10)&ScriptText!$D$1)","v":""},{"$f":"IF(OrigTable!E198=\"\",\"\",TEXT(OrigTable!E198,\"00\"))","v":""},{"$f":"IF(OrigTable!E198=\"\",\"\",ScriptText!$E$1&CHAR(10)&ScriptText!$C$1)","v":""},{"$f":"IF(OrigTable!F198=\"\",\"\",ScriptText!$B$1&CHAR(10)&ScriptText!$D$1)","v":""},{"$f":"IF(OrigTable!F198=\"\",\"\",TEXT(OrigTable!F198,\"00\"))","v":""},{"$f":"IF(OrigTable!F198=\"\",\"\",ScriptText!$E$1&CHAR(10)&ScriptText!$C$1)","v":""},{"$f":"IF(OrigTable!G198=\"\",\"\",ScriptText!$B$1&CHAR(10)&ScriptText!$D$1)","v":""},{"$f":"IF(OrigTable!G198=\"\",\"\",TEXT(OrigTable!G198,\"00\"))","v":""},{"$f":"IF(OrigTable!G198=\"\",\"\",ScriptText!$E$1&CHAR(10)&ScriptText!$C$1)","v":""},{"$f":"IF(LEN(A198)>3,ROW(),0)","v":198}]
["<tr>\n<td>137B</td>\n</tr>\n<tr>\n<td>No</td>\n135\n<tr>\n<td>Annual Notification of FTD Deposit Requirements (Form 945)</td>\n</tr>\n<tr>\n<td>BMF Notices</td>\n</tr>",{"$f":"IF(OrigTable!A199=\"\",\"\",ScriptText!$B$1&CHAR(10)&ScriptText!$D$1)","v":"<tr>\n<td>"},{"$f":"IF(OrigTable!A199=\"\",\"\",TEXT(OrigTable!A199,\"00\"))","v":"137B"},{"$f":"IF(OrigTable!A199=\"\",\"\",ScriptText!$E$1&CHAR(10)&ScriptText!$C$1)","v":"</td>\n</tr>"},{"$f":"IF(OrigTable!B199=\"\",\"\",ScriptText!$B$1&CHAR(10)&ScriptText!$D$1)","v":"<tr>\n<td>"},{"$f":"IF(OrigTable!B199=\"\",\"\",TEXT(OrigTable!B199,\"00\"))","v":"No"},{"$f":"IF(OrigTable!B199=\"\",\"\",ScriptText!$E$1&CHAR(10)&ScriptText!C194)","v":"</td>\n135"},{"$f":"IF(OrigTable!C199=\"\",\"\",ScriptText!$B$1&CHAR(10)&ScriptText!$D$1)","v":"<tr>\n<td>"},{"$f":"IF(OrigTable!C199=\"\",\"\",IF(LEN(OrigTable!C199)>255,LEFT(OrigTable!C199,250)&\". . .\",OrigTable!C199))","v":"Annual Notification of FTD Deposit Requirements (Form 945)"},{"$f":"IF(OrigTable!C199=\"\",\"\",ScriptText!$E$1&CHAR(10)&ScriptText!$C$1)","v":"</td>\n</tr>"},{"$f":"IF(OrigTable!D199=\"\",\"\",ScriptText!$B$1&CHAR(10)&ScriptText!$D$1)","v":"<tr>\n<td>"},{"$f":"IF(OrigTable!D199=\"\",\"\",TEXT(OrigTable!D199,\"00\"))","v":"BMF Notices"},{"$f":"IF(OrigTable!D199=\"\",\"\",ScriptText!$E$1&CHAR(10)&ScriptText!$C$1)","v":"</td>\n</tr>"},{"$f":"IF(OrigTable!E199=\"\",\"\",ScriptText!$B$1&CHAR(10)&ScriptText!$D$1)","v":""},{"$f":"IF(OrigTable!E199=\"\",\"\",TEXT(OrigTable!E199,\"00\"))","v":""},{"$f":"IF(OrigTable!E199=\"\",\"\",ScriptText!$E$1&CHAR(10)&ScriptText!$C$1)","v":""},{"$f":"IF(OrigTable!F199=\"\",\"\",ScriptText!$B$1&CHAR(10)&ScriptText!$D$1)","v":""},{"$f":"IF(OrigTable!F199=\"\",\"\",TEXT(OrigTable!F199,\"00\"))","v":""},{"$f":"IF(OrigTable!F199=\"\",\"\",ScriptText!$E$1&CHAR(10)&ScriptText!$C$1)","v":""},{"$f":"IF(OrigTable!G199=\"\",\"\",ScriptText!$B$1&CHAR(10)&ScriptText!$D$1)","v":""},{"$f":"IF(OrigTable!G199=\"\",\"\",TEXT(OrigTable!G199,\"00\"))","v":""},{"$f":"IF(OrigTable!G199=\"\",\"\",ScriptText!$E$1&CHAR(10)&ScriptText!$C$1)","v":""},199]
["<tr>\n<td>138</td>\n</tr>\n\n<tr>\n<td>Notification that the overpayment on the return was offset against another tax period with a balance due</td>\n</tr>\n<tr>\n<td>BMF Notices</td>\n</tr>",{"$f":"IF(OrigTable!A200=\"\",\"\",ScriptText!$B$1&CHAR(10)&ScriptText!$D$1)","v":"<tr>\n<td>"},{"$f":"IF(OrigTable!A200=\"\",\"\",TEXT(OrigTable!A200,\"00\"))","v":"138"},{"$f":"IF(OrigTable!A200=\"\",\"\",ScriptText!$E$1&CHAR(10)&ScriptText!$C$1)","v":"</td>\n</tr>"},{"$f":"IF(OrigTable!B200=\"\",\"\",ScriptText!$B$1&CHAR(10)&ScriptText!$D$1)","v":""},{"$f":"IF(OrigTable!B200=\"\",\"\",TEXT(OrigTable!B200,\"00\"))","v":""},{"$f":"IF(OrigTable!B200=\"\",\"\",ScriptText!$E$1&CHAR(10)&ScriptText!C195)","v":""},{"$f":"IF(OrigTable!C200=\"\",\"\",ScriptText!$B$1&CHAR(10)&ScriptText!$D$1)","v":"<tr>\n<td>"},{"$f":"IF(OrigTable!C200=\"\",\"\",IF(LEN(OrigTable!C200)>255,LEFT(OrigTable!C200,250)&\". . .\",OrigTable!C200))","v":"Notification that the overpayment on the return was offset against another tax period with a balance due"},{"$f":"IF(OrigTable!C200=\"\",\"\",ScriptText!$E$1&CHAR(10)&ScriptText!$C$1)","v":"</td>\n</tr>"},{"$f":"IF(OrigTable!D200=\"\",\"\",ScriptText!$B$1&CHAR(10)&ScriptText!$D$1)","v":"<tr>\n<td>"},{"$f":"IF(OrigTable!D200=\"\",\"\",TEXT(OrigTable!D200,\"00\"))","v":"BMF Notices"},{"$f":"IF(OrigTable!D200=\"\",\"\",ScriptText!$E$1&CHAR(10)&ScriptText!$C$1)","v":"</td>\n</tr>"},{"$f":"IF(OrigTable!E200=\"\",\"\",ScriptText!$B$1&CHAR(10)&ScriptText!$D$1)","v":""},{"$f":"IF(OrigTable!E200=\"\",\"\",TEXT(OrigTable!E200,\"00\"))","v":""},{"$f":"IF(OrigTable!E200=\"\",\"\",ScriptText!$E$1&CHAR(10)&ScriptText!$C$1)","v":""},{"$f":"IF(OrigTable!F200=\"\",\"\",ScriptText!$B$1&CHAR(10)&ScriptText!$D$1)","v":""},{"$f":"IF(OrigTable!F200=\"\",\"\",TEXT(OrigTable!F200,\"00\"))","v":""},{"$f":"IF(OrigTable!F200=\"\",\"\",ScriptText!$E$1&CHAR(10)&ScriptText!$C$1)","v":""},{"$f":"IF(OrigTable!G200=\"\",\"\",ScriptText!$B$1&CHAR(10)&ScriptText!$D$1)","v":""},{"$f":"IF(OrigTable!G200=\"\",\"\",TEXT(OrigTable!G200,\"00\"))","v":""},{"$f":"IF(OrigTable!G200=\"\",\"\",ScriptText!$E$1&CHAR(10)&ScriptText!$C$1)","v":""},200]
[{"$f":"_xlfn.TEXTJOIN(\"\",TRUE,B201:D201)&CHAR(10)&_xlfn.TEXTJOIN(\"\",TRUE,E201:G201)&CHAR(10)&_xlfn.TEXTJOIN(\"\",TRUE,H201:J201)&CHAR(10)&_xlfn.TEXTJOIN(\"\",TRUE,K201:M201)&_xlfn.TEXTJOIN(\"\",TRUE,N201:P201)&_xlfn.TEXTJOIN(\"\",TRUE,Q201:S201)&_xlfn.TEXTJOIN(\"\",TRUE,T201:V201)","v":"<tr>\n<td>141C</td>\n</tr>\n<tr>\n<td>Yes</td>\n136B\n<tr>\n<td>We charged a penalty under IRC section 6652c - Form filed late and incomplete.</td>\n</tr>\n<tr>\n<td>BMF Notices</td>\n</tr>"},{"$f":"IF(OrigTable!A201=\"\",\"\",ScriptText!$B$1&CHAR(10)&ScriptText!$D$1)","v":"<tr>\n<td>"},{"$f":"IF(OrigTable!A201=\"\",\"\",TEXT(OrigTable!A201,\"00\"))","v":"141C"},{"$f":"IF(OrigTable!A201=\"\",\"\",ScriptText!$E$1&CHAR(10)&ScriptText!$C$1)","v":"</td>\n</tr>"},{"$f":"IF(OrigTable!B201=\"\",\"\",ScriptText!$B$1&CHAR(10)&ScriptText!$D$1)","v":"<tr>\n<td>"},{"$f":"IF(OrigTable!B201=\"\",\"\",TEXT(OrigTable!B201,\"00\"))","v":"Yes"},{"$f":"IF(OrigTable!B201=\"\",\"\",ScriptText!$E$1&CHAR(10)&ScriptText!C196)","v":"</td>\n136B"},{"$f":"IF(OrigTable!C201=\"\",\"\",ScriptText!$B$1&CHAR(10)&ScriptText!$D$1)","v":"<tr>\n<td>"},{"$f":"IF(OrigTable!C201=\"\",\"\",IF(LEN(OrigTable!C201)>255,LEFT(OrigTable!C201,250)&\". . .\",OrigTable!C201))","v":"We charged a penalty under IRC section 6652c - Form filed late and incomplete."},{"$f":"IF(OrigTable!C201=\"\",\"\",ScriptText!$E$1&CHAR(10)&ScriptText!$C$1)","v":"</td>\n</tr>"},{"$f":"IF(OrigTable!D201=\"\",\"\",ScriptText!$B$1&CHAR(10)&ScriptText!$D$1)","v":"<tr>\n<td>"},{"$f":"IF(OrigTable!D201=\"\",\"\",TEXT(OrigTable!D201,\"00\"))","v":"BMF Notices"},{"$f":"IF(OrigTable!D201=\"\",\"\",ScriptText!$E$1&CHAR(10)&ScriptText!$C$1)","v":"</td>\n</tr>"},{"$f":"IF(OrigTable!E201=\"\",\"\",ScriptText!$B$1&CHAR(10)&ScriptText!$D$1)","v":""},{"$f":"IF(OrigTable!E201=\"\",\"\",TEXT(OrigTable!E201,\"00\"))","v":""},{"$f":"IF(OrigTable!E201=\"\",\"\",ScriptText!$E$1&CHAR(10)&ScriptText!$C$1)","v":""},{"$f":"IF(OrigTable!F201=\"\",\"\",ScriptText!$B$1&CHAR(10)&ScriptText!$D$1)","v":""},{"$f":"IF(OrigTable!F201=\"\",\"\",TEXT(OrigTable!F201,\"00\"))","v":""},{"$f":"IF(OrigTable!F201=\"\",\"\",ScriptText!$E$1&CHAR(10)&ScriptText!$C$1)","v":""},{"$f":"IF(OrigTable!G201=\"\",\"\",ScriptText!$B$1&CHAR(10)&ScriptText!$D$1)","v":""},{"$f":"IF(OrigTable!G201=\"\",\"\",TEXT(OrigTable!G201,\"00\"))","v":""},{"$f":"IF(OrigTable!G201=\"\",\"\",ScriptText!$E$1&CHAR(10)&ScriptText!$C$1)","v":""},201]
["<tr>\n<td>141I</td>\n</tr>\n<tr>\n<td>Yes</td>\n137\n<tr>\n<td>We charged a penalty under IRC section 6652c – Form incomplete</td>\n</tr>\n<tr>\n<td>BMF Notices</td>\n</tr>",{"$f":"IF(OrigTable!A202=\"\",\"\",ScriptText!$B$1&CHAR(10)&ScriptText!$D$1)","v":"<tr>\n<td>"},{"$f":"IF(OrigTable!A202=\"\",\"\",TEXT(OrigTable!A202,\"00\"))","v":"141I"},{"$f":"IF(OrigTable!A202=\"\",\"\",ScriptText!$E$1&CHAR(10)&ScriptText!$C$1)","v":"</td>\n</tr>"},{"$f":"IF(OrigTable!B202=\"\",\"\",ScriptText!$B$1&CHAR(10)&ScriptText!$D$1)","v":"<tr>\n<td>"},{"$f":"IF(OrigTable!B202=\"\",\"\",TEXT(OrigTable!B202,\"00\"))","v":"Yes"},{"$f":"IF(OrigTable!B202=\"\",\"\",ScriptText!$E$1&CHAR(10)&ScriptText!C197)","v":"</td>\n137"},{"$f":"IF(OrigTable!C202=\"\",\"\",ScriptText!$B$1&CHAR(10)&ScriptText!$D$1)","v":"<tr>\n<td>"},{"$f":"IF(OrigTable!C202=\"\",\"\",IF(LEN(OrigTable!C202)>255,LEFT(OrigTable!C202,250)&\". . .\",OrigTable!C202))","v":"We charged a penalty under IRC section 6652c – Form incomplete"},{"$f":"IF(OrigTable!C202=\"\",\"\",ScriptText!$E$1&CHAR(10)&ScriptText!$C$1)","v":"</td>\n</tr>"},{"$f":"IF(OrigTable!D202=\"\",\"\",ScriptText!$B$1&CHAR(10)&ScriptText!$D$1)","v":"<tr>\n<td>"},{"$f":"IF(OrigTable!D202=\"\",\"\",TEXT(OrigTable!D202,\"00\"))","v":"BMF Notices"},{"$f":"IF(OrigTable!D202=\"\",\"\",ScriptText!$E$1&CHAR(10)&ScriptText!$C$1)","v":"</td>\n</tr>"},{"$f":"IF(OrigTable!E202=\"\",\"\",ScriptText!$B$1&CHAR(10)&ScriptText!$D$1)","v":""},{"$f":"IF(OrigTable!E202=\"\",\"\",TEXT(OrigTable!E202,\"00\"))","v":""},{"$f":"IF(OrigTable!E202=\"\",\"\",ScriptText!$E$1&CHAR(10)&ScriptText!$C$1)","v":""},{"$f":"IF(OrigTable!F202=\"\",\"\",ScriptText!$B$1&CHAR(10)&ScriptText!$D$1)","v":""},{"$f":"IF(OrigTable!F202=\"\",\"\",TEXT(OrigTable!F202,\"00\"))","v":""},{"$f":"IF(OrigTable!F202=\"\",\"\",ScriptText!$E$1&CHAR(10)&ScriptText!$C$1)","v":""},{"$f":"IF(OrigTable!G202=\"\",\"\",ScriptText!$B$1&CHAR(10)&ScriptText!$D$1)","v":""},{"$f":"IF(OrigTable!G202=\"\",\"\",TEXT(OrigTable!G202,\"00\"))","v":""},{"$f":"IF(OrigTable!G202=\"\",\"\",ScriptText!$E$1&CHAR(10)&ScriptText!$C$1)","v":""},202]
["<tr>\n<td>141L</td>\n</tr>\n<tr>\n<td>Yes</td>\n137A\n<tr>\n<td>We charged a penalty under IRC section 6652c - Form filed late.</td>\n</tr>\n<tr>\n<td>BMF Notices</td>\n</tr>",{"$f":"IF(OrigTable!A203=\"\",\"\",ScriptText!$B$1&CHAR(10)&ScriptText!$D$1)","v":"<tr>\n<td>"},{"$f":"IF(OrigTable!A203=\"\",\"\",TEXT(OrigTable!A203,\"00\"))","v":"141L"},{"$f":"IF(OrigTable!A203=\"\",\"\",ScriptText!$E$1&CHAR(10)&ScriptText!$C$1)","v":"</td>\n</tr>"},{"$f":"IF(OrigTable!B203=\"\",\"\",ScriptText!$B$1&CHAR(10)&ScriptText!$D$1)","v":"<tr>\n<td>"},{"$f":"IF(OrigTable!B203=\"\",\"\",TEXT(OrigTable!B203,\"00\"))","v":"Yes"},{"$f":"IF(OrigTable!B203=\"\",\"\",ScriptText!$E$1&CHAR(10)&ScriptText!C198)","v":"</td>\n137A"},{"$f":"IF(OrigTable!C203=\"\",\"\",ScriptText!$B$1&CHAR(10)&ScriptText!$D$1)","v":"<tr>\n<td>"},{"$f":"IF(OrigTable!C203=\"\",\"\",IF(LEN(OrigTable!C203)>255,LEFT(OrigTable!C203,250)&\". . .\",OrigTable!C203))","v":"We charged a penalty under IRC section 6652c - Form filed late."},{"$f":"IF(OrigTable!C203=\"\",\"\",ScriptText!$E$1&CHAR(10)&ScriptText!$C$1)","v":"</td>\n</tr>"},{"$f":"IF(OrigTable!D203=\"\",\"\",ScriptText!$B$1&CHAR(10)&ScriptText!$D$1)","v":"<tr>\n<td>"},{"$f":"IF(OrigTable!D203=\"\",\"\",TEXT(OrigTable!D203,\"00\"))","v":"BMF Notices"},{"$f":"IF(OrigTable!D203=\"\",\"\",ScriptText!$E$1&CHAR(10)&ScriptText!$C$1)","v":"</td>\n</tr>"},{"$f":"IF(OrigTable!E203=\"\",\"\",ScriptText!$B$1&CHAR(10)&ScriptText!$D$1)","v":""},{"$f":"IF(OrigTable!E203=\"\",\"\",TEXT(OrigTable!E203,\"00\"))","v":""},{"$f":"IF(OrigTable!E203=\"\",\"\",ScriptText!$E$1&CHAR(10)&ScriptText!$C$1)","v":""},{"$f":"IF(OrigTable!F203=\"\",\"\",ScriptText!$B$1&CHAR(10)&ScriptText!$D$1)","v":""},{"$f":"IF(OrigTable!F203=\"\",\"\",TEXT(OrigTable!F203,\"00\"))","v":""},{"$f":"IF(OrigTable!F203=\"\",\"\",ScriptText!$E$1&CHAR(10)&ScriptText!$C$1)","v":""},{"$f":"IF(OrigTable!G203=\"\",\"\",ScriptText!$B$1&CHAR(10)&ScriptText!$D$1)","v":""},{"$f":"IF(OrigTable!G203=\"\",\"\",TEXT(OrigTable!G203,\"00\"))","v":""},{"$f":"IF(OrigTable!G203=\"\",\"\",ScriptText!$E$1&CHAR(10)&ScriptText!$C$1)","v":""},203]
["<tr>\n<td>141R</td>\n</tr>\n\n<tr>\n<td>Notification of penalty removal for exempt organization returns</td>\n</tr>\n<tr>\n<td>BMF Notices</td>\n</tr>",{"$f":"IF(OrigTable!A204=\"\",\"\",ScriptText!$B$1&CHAR(10)&ScriptText!$D$1)","v":"<tr>\n<td>"},{"$f":"IF(OrigTable!A204=\"\",\"\",TEXT(OrigTable!A204,\"00\"))","v":"141R"},{"$f":"IF(OrigTable!A204=\"\",\"\",ScriptText!$E$1&CHAR(10)&ScriptText!$C$1)","v":"</td>\n</tr>"},{"$f":"IF(OrigTable!B204=\"\",\"\",ScriptText!$B$1&CHAR(10)&ScriptText!$D$1)","v":""},{"$f":"IF(OrigTable!B204=\"\",\"\",TEXT(OrigTable!B204,\"00\"))","v":""},{"$f":"IF(OrigTable!B204=\"\",\"\",ScriptText!$E$1&CHAR(10)&ScriptText!C199)","v":""},{"$f":"IF(OrigTable!C204=\"\",\"\",ScriptText!$B$1&CHAR(10)&ScriptText!$D$1)","v":"<tr>\n<td>"},{"$f":"IF(OrigTable!C204=\"\",\"\",IF(LEN(OrigTable!C204)>255,LEFT(OrigTable!C204,250)&\". . .\",OrigTable!C204))","v":"Notification of penalty removal for exempt organization returns"},{"$f":"IF(OrigTable!C204=\"\",\"\",ScriptText!$E$1&CHAR(10)&ScriptText!$C$1)","v":"</td>\n</tr>"},{"$f":"IF(OrigTable!D204=\"\",\"\",ScriptText!$B$1&CHAR(10)&ScriptText!$D$1)","v":"<tr>\n<td>"},{"$f":"IF(OrigTable!D204=\"\",\"\",TEXT(OrigTable!D204,\"00\"))","v":"BMF Notices"},{"$f":"IF(OrigTable!D204=\"\",\"\",ScriptText!$E$1&CHAR(10)&ScriptText!$C$1)","v":"</td>\n</tr>"},{"$f":"IF(OrigTable!E204=\"\",\"\",ScriptText!$B$1&CHAR(10)&ScriptText!$D$1)","v":""},{"$f":"IF(OrigTable!E204=\"\",\"\",TEXT(OrigTable!E204,\"00\"))","v":""},{"$f":"IF(OrigTable!E204=\"\",\"\",ScriptText!$E$1&CHAR(10)&ScriptText!$C$1)","v":""},{"$f":"IF(OrigTable!F204=\"\",\"\",ScriptText!$B$1&CHAR(10)&ScriptText!$D$1)","v":""},{"$f":"IF(OrigTable!F204=\"\",\"\",TEXT(OrigTable!F204,\"00\"))","v":""},{"$f":"IF(OrigTable!F204=\"\",\"\",ScriptText!$E$1&CHAR(10)&ScriptText!$C$1)","v":""},{"$f":"IF(OrigTable!G204=\"\",\"\",ScriptText!$B$1&CHAR(10)&ScriptText!$D$1)","v":""},{"$f":"IF(OrigTable!G204=\"\",\"\",TEXT(OrigTable!G204,\"00\"))","v":""},{"$f":"IF(OrigTable!G204=\"\",\"\",ScriptText!$E$1&CHAR(10)&ScriptText!$C$1)","v":""},204]
["<tr>\n<td>142</td>\n</tr>\n\n<tr>\n<td>Request for reason of Late Filing a Tax Exempt Bond Return (Form 8038, 8038-G or\n8038-GC)</td>\n</tr>\n<tr>\n<td>BMF Notices</td>\n</tr>",{"$f":"IF(OrigTable!A205=\"\",\"\",ScriptText!$B$1&CHAR(10)&ScriptText!$D$1)","v":"<tr>\n<td>"},{"$f":"IF(OrigTable!A205=\"\",\"\",TEXT(OrigTable!A205,\"00\"))","v":"142"},{"$f":"IF(OrigTable!A205=\"\",\"\",ScriptText!$E$1&CHAR(10)&ScriptText!$C$1)","v":"</td>\n</tr>"},{"$f":"IF(OrigTable!B205=\"\",\"\",ScriptText!$B$1&CHAR(10)&ScriptText!$D$1)","v":""},{"$f":"IF(OrigTable!B205=\"\",\"\",TEXT(OrigTable!B205,\"00\"))","v":""},{"$f":"IF(OrigTable!B205=\"\",\"\",ScriptText!$E$1&CHAR(10)&ScriptText!C200)","v":""},{"$f":"IF(OrigTable!C205=\"\",\"\",ScriptText!$B$1&CHAR(10)&ScriptText!$D$1)","v":"<tr>\n<td>"},{"$f":"IF(OrigTable!C205=\"\",\"\",IF(LEN(OrigTable!C205)>255,LEFT(OrigTable!C205,250)&\". . .\",OrigTable!C205))","v":"Request for reason of Late Filing a Tax Exempt Bond Return (Form 8038, 8038-G or\n8038-GC)"},{"$f":"IF(OrigTable!C205=\"\",\"\",ScriptText!$E$1&CHAR(10)&ScriptText!$C$1)","v":"</td>\n</tr>"},{"$f":"IF(OrigTable!D205=\"\",\"\",ScriptText!$B$1&CHAR(10)&ScriptText!$D$1)","v":"<tr>\n<td>"},{"$f":"IF(OrigTable!D205=\"\",\"\",TEXT(OrigTable!D205,\"00\"))","v":"BMF Notices"},{"$f":"IF(OrigTable!D205=\"\",\"\",ScriptText!$E$1&CHAR(10)&ScriptText!$C$1)","v":"</td>\n</tr>"},{"$f":"IF(OrigTable!E205=\"\",\"\",ScriptText!$B$1&CHAR(10)&ScriptText!$D$1)","v":""},{"$f":"IF(OrigTable!E205=\"\",\"\",TEXT(OrigTable!E205,\"00\"))","v":""},{"$f":"IF(OrigTable!E205=\"\",\"\",ScriptText!$E$1&CHAR(10)&ScriptText!$C$1)","v":""},{"$f":"IF(OrigTable!F205=\"\",\"\",ScriptText!$B$1&CHAR(10)&ScriptText!$D$1)","v":""},{"$f":"IF(OrigTable!F205=\"\",\"\",TEXT(OrigTable!F205,\"00\"))","v":""},{"$f":"IF(OrigTable!F205=\"\",\"\",ScriptText!$E$1&CHAR(10)&ScriptText!$C$1)","v":""},{"$f":"IF(OrigTable!G205=\"\",\"\",ScriptText!$B$1&CHAR(10)&ScriptText!$D$1)","v":""},{"$f":"IF(OrigTable!G205=\"\",\"\",TEXT(OrigTable!G205,\"00\"))","v":""},{"$f":"IF(OrigTable!G205=\"\",\"\",ScriptText!$E$1&CHAR(10)&ScriptText!$C$1)","v":""},205]
["<tr>\n<td>143</td>\n</tr>\n\n<tr>\n<td>Late Filing Accepted of a Tax Exempt Bond Return (Form 8038, 8038-G or 8038-GC)</td>\n</tr>\n<tr>\n<td>BMF Notices</td>\n</tr>",{"$f":"IF(OrigTable!A206=\"\",\"\",ScriptText!$B$1&CHAR(10)&ScriptText!$D$1)","v":"<tr>\n<td>"},{"$f":"IF(OrigTable!A206=\"\",\"\",TEXT(OrigTable!A206,\"00\"))","v":"143"},{"$f":"IF(OrigTable!A206=\"\",\"\",ScriptText!$E$1&CHAR(10)&ScriptText!$C$1)","v":"</td>\n</tr>"},{"$f":"IF(OrigTable!B206=\"\",\"\",ScriptText!$B$1&CHAR(10)&ScriptText!$D$1)","v":""},{"$f":"IF(OrigTable!B206=\"\",\"\",TEXT(OrigTable!B206,\"00\"))","v":""},{"$f":"IF(OrigTable!B206=\"\",\"\",ScriptText!$E$1&CHAR(10)&ScriptText!C201)","v":""},{"$f":"IF(OrigTable!C206=\"\",\"\",ScriptText!$B$1&CHAR(10)&ScriptText!$D$1)","v":"<tr>\n<td>"},{"$f":"IF(OrigTable!C206=\"\",\"\",IF(LEN(OrigTable!C206)>255,LEFT(OrigTable!C206,250)&\". . .\",OrigTable!C206))","v":"Late Filing Accepted of a Tax Exempt Bond Return (Form 8038, 8038-G or 8038-GC)"},{"$f":"IF(OrigTable!C206=\"\",\"\",ScriptText!$E$1&CHAR(10)&ScriptText!$C$1)","v":"</td>\n</tr>"},{"$f":"IF(OrigTable!D206=\"\",\"\",ScriptText!$B$1&CHAR(10)&ScriptText!$D$1)","v":"<tr>\n<td>"},{"$f":"IF(OrigTable!D206=\"\",\"\",TEXT(OrigTable!D206,\"00\"))","v":"BMF Notices"},{"$f":"IF(OrigTable!D206=\"\",\"\",ScriptText!$E$1&CHAR(10)&ScriptText!$C$1)","v":"</td>\n</tr>"},{"$f":"IF(OrigTable!E206=\"\",\"\",ScriptText!$B$1&CHAR(10)&ScriptText!$D$1)","v":""},{"$f":"IF(OrigTable!E206=\"\",\"\",TEXT(OrigTable!E206,\"00\"))","v":""},{"$f":"IF(OrigTable!E206=\"\",\"\",ScriptText!$E$1&CHAR(10)&ScriptText!$C$1)","v":""},{"$f":"IF(OrigTable!F206=\"\",\"\",ScriptText!$B$1&CHAR(10)&ScriptText!$D$1)","v":""},{"$f":"IF(OrigTable!F206=\"\",\"\",TEXT(OrigTable!F206,\"00\"))","v":""},{"$f":"IF(OrigTable!F206=\"\",\"\",ScriptText!$E$1&CHAR(10)&ScriptText!$C$1)","v":""},{"$f":"IF(OrigTable!G206=\"\",\"\",ScriptText!$B$1&CHAR(10)&ScriptText!$D$1)","v":""},{"$f":"IF(OrigTable!G206=\"\",\"\",TEXT(OrigTable!G206,\"00\"))","v":""},{"$f":"IF(OrigTable!G206=\"\",\"\",ScriptText!$E$1&CHAR(10)&ScriptText!$C$1)","v":""},206]
["<tr>\n<td>145</td>\n</tr>\n<tr>\n<td>Yes</td>\n141I\n<tr>\n<td>Credit Elect to Succeeding Year On forms CT-1, 720, 941, 942, 943, 1041, 1042, 1120C, 1120F, 1120L and 1120M</td>\n</tr>\n<tr>\n<td>BMF Notices</td>\n</tr>",{"$f":"IF(OrigTable!A207=\"\",\"\",ScriptText!$B$1&CHAR(10)&ScriptText!$D$1)","v":"<tr>\n<td>"},{"$f":"IF(OrigTable!A207=\"\",\"\",TEXT(OrigTable!A207,\"00\"))","v":"145"},{"$f":"IF(OrigTable!A207=\"\",\"\",ScriptText!$E$1&CHAR(10)&ScriptText!$C$1)","v":"</td>\n</tr>"},{"$f":"IF(OrigTable!B207=\"\",\"\",ScriptText!$B$1&CHAR(10)&ScriptText!$D$1)","v":"<tr>\n<td>"},{"$f":"IF(OrigTable!B207=\"\",\"\",TEXT(OrigTable!B207,\"00\"))","v":"Yes"},{"$f":"IF(OrigTable!B207=\"\",\"\",ScriptText!$E$1&CHAR(10)&ScriptText!C202)","v":"</td>\n141I"},{"$f":"IF(OrigTable!C207=\"\",\"\",ScriptText!$B$1&CHAR(10)&ScriptText!$D$1)","v":"<tr>\n<td>"},{"$f":"IF(OrigTable!C207=\"\",\"\",IF(LEN(OrigTable!C207)>255,LEFT(OrigTable!C207,250)&\". . .\",OrigTable!C207))","v":"Credit Elect to Succeeding Year On forms CT-1, 720, 941, 942, 943, 1041, 1042, 1120C, 1120F, 1120L and 1120M"},{"$f":"IF(OrigTable!C207=\"\",\"\",ScriptText!$E$1&CHAR(10)&ScriptText!$C$1)","v":"</td>\n</tr>"},{"$f":"IF(OrigTable!D207=\"\",\"\",ScriptText!$B$1&CHAR(10)&ScriptText!$D$1)","v":"<tr>\n<td>"},{"$f":"IF(OrigTable!D207=\"\",\"\",TEXT(OrigTable!D207,\"00\"))","v":"BMF Notices"},{"$f":"IF(OrigTable!D207=\"\",\"\",ScriptText!$E$1&CHAR(10)&ScriptText!$C$1)","v":"</td>\n</tr>"},{"$f":"IF(OrigTable!E207=\"\",\"\",ScriptText!$B$1&CHAR(10)&ScriptText!$D$1)","v":""},{"$f":"IF(OrigTable!E207=\"\",\"\",TEXT(OrigTable!E207,\"00\"))","v":""},{"$f":"IF(OrigTable!E207=\"\",\"\",ScriptText!$E$1&CHAR(10)&ScriptText!$C$1)","v":""},{"$f":"IF(OrigTable!F207=\"\",\"\",ScriptText!$B$1&CHAR(10)&ScriptText!$D$1)","v":""},{"$f":"IF(OrigTable!F207=\"\",\"\",TEXT(OrigTable!F207,\"00\"))","v":""},{"$f":"IF(OrigTable!F207=\"\",\"\",ScriptText!$E$1&CHAR(10)&ScriptText!$C$1)","v":""},{"$f":"IF(OrigTable!G207=\"\",\"\",ScriptText!$B$1&CHAR(10)&ScriptText!$D$1)","v":""},{"$f":"IF(OrigTable!G207=\"\",\"\",TEXT(OrigTable!G207,\"00\"))","v":""},{"$f":"IF(OrigTable!G207=\"\",\"\",ScriptText!$E$1&CHAR(10)&ScriptText!$C$1)","v":""},207]
["<tr>\n<td>147</td>\n</tr>\n<tr>\n<td>Yes</td>\n141L\n<tr>\n<td>Credit Elect additional amount applied</td>\n</tr>\n<tr>\n<td>BMF Notices</td>\n</tr>",{"$f":"IF(OrigTable!A208=\"\",\"\",ScriptText!$B$1&CHAR(10)&ScriptText!$D$1)","v":"<tr>\n<td>"},{"$f":"IF(OrigTable!A208=\"\",\"\",TEXT(OrigTable!A208,\"00\"))","v":"147"},{"$f":"IF(OrigTable!A208=\"\",\"\",ScriptText!$E$1&CHAR(10)&ScriptText!$C$1)","v":"</td>\n</tr>"},{"$f":"IF(OrigTable!B208=\"\",\"\",ScriptText!$B$1&CHAR(10)&ScriptText!$D$1)","v":"<tr>\n<td>"},{"$f":"IF(OrigTable!B208=\"\",\"\",TEXT(OrigTable!B208,\"00\"))","v":"Yes"},{"$f":"IF(OrigTable!B208=\"\",\"\",ScriptText!$E$1&CHAR(10)&ScriptText!C203)","v":"</td>\n141L"},{"$f":"IF(OrigTable!C208=\"\",\"\",ScriptText!$B$1&CHAR(10)&ScriptText!$D$1)","v":"<tr>\n<td>"},{"$f":"IF(OrigTable!C208=\"\",\"\",IF(LEN(OrigTable!C208)>255,LEFT(OrigTable!C208,250)&\". . .\",OrigTable!C208))","v":"Credit Elect additional amount applied"},{"$f":"IF(OrigTable!C208=\"\",\"\",ScriptText!$E$1&CHAR(10)&ScriptText!$C$1)","v":"</td>\n</tr>"},{"$f":"IF(OrigTable!D208=\"\",\"\",ScriptText!$B$1&CHAR(10)&ScriptText!$D$1)","v":"<tr>\n<td>"},{"$f":"IF(OrigTable!D208=\"\",\"\",TEXT(OrigTable!D208,\"00\"))","v":"BMF Notices"},{"$f":"IF(OrigTable!D208=\"\",\"\",ScriptText!$E$1&CHAR(10)&ScriptText!$C$1)","v":"</td>\n</tr>"},{"$f":"IF(OrigTable!E208=\"\",\"\",ScriptText!$B$1&CHAR(10)&ScriptText!$D$1)","v":""},{"$f":"IF(OrigTable!E208=\"\",\"\",TEXT(OrigTable!E208,\"00\"))","v":""},{"$f":"IF(OrigTable!E208=\"\",\"\",ScriptText!$E$1&CHAR(10)&ScriptText!$C$1)","v":""},{"$f":"IF(OrigTable!F208=\"\",\"\",ScriptText!$B$1&CHAR(10)&ScriptText!$D$1)","v":""},{"$f":"IF(OrigTable!F208=\"\",\"\",TEXT(OrigTable!F208,\"00\"))","v":""},{"$f":"IF(OrigTable!F208=\"\",\"\",ScriptText!$E$1&CHAR(10)&ScriptText!$C$1)","v":""},{"$f":"IF(OrigTable!G208=\"\",\"\",ScriptText!$B$1&CHAR(10)&ScriptText!$D$1)","v":""},{"$f":"IF(OrigTable!G208=\"\",\"\",TEXT(OrigTable!G208,\"00\"))","v":""},{"$f":"IF(OrigTable!G208=\"\",\"\",ScriptText!$E$1&CHAR(10)&ScriptText!$C$1)","v":""},208]
["<tr>\n<td>148A</td>\n</tr>\n\n<tr>\n<td>Notification of Change of address sent to new address</td>\n</tr>\n<tr>\n<td>BMF Notices</td>\n</tr>",{"$f":"IF(OrigTable!A209=\"\",\"\",ScriptText!$B$1&CHAR(10)&ScriptText!$D$1)","v":"<tr>\n<td>"},{"$f":"IF(OrigTable!A209=\"\",\"\",TEXT(OrigTable!A209,\"00\"))","v":"148A"},{"$f":"IF(OrigTable!A209=\"\",\"\",ScriptText!$E$1&CHAR(10)&ScriptText!$C$1)","v":"</td>\n</tr>"},{"$f":"IF(OrigTable!B209=\"\",\"\",ScriptText!$B$1&CHAR(10)&ScriptText!$D$1)","v":""},{"$f":"IF(OrigTable!B209=\"\",\"\",TEXT(OrigTable!B209,\"00\"))","v":""},{"$f":"IF(OrigTable!B209=\"\",\"\",ScriptText!$E$1&CHAR(10)&ScriptText!C204)","v":""},{"$f":"IF(OrigTable!C209=\"\",\"\",ScriptText!$B$1&CHAR(10)&ScriptText!$D$1)","v":"<tr>\n<td>"},{"$f":"IF(OrigTable!C209=\"\",\"\",IF(LEN(OrigTable!C209)>255,LEFT(OrigTable!C209,250)&\". . .\",OrigTable!C209))","v":"Notification of Change of address sent to new address"},{"$f":"IF(OrigTable!C209=\"\",\"\",ScriptText!$E$1&CHAR(10)&ScriptText!$C$1)","v":"</td>\n</tr>"},{"$f":"IF(OrigTable!D209=\"\",\"\",ScriptText!$B$1&CHAR(10)&ScriptText!$D$1)","v":"<tr>\n<td>"},{"$f":"IF(OrigTable!D209=\"\",\"\",TEXT(OrigTable!D209,\"00\"))","v":"BMF Notices"},{"$f":"IF(OrigTable!D209=\"\",\"\",ScriptText!$E$1&CHAR(10)&ScriptText!$C$1)","v":"</td>\n</tr>"},{"$f":"IF(OrigTable!E209=\"\",\"\",ScriptText!$B$1&CHAR(10)&ScriptText!$D$1)","v":""},{"$f":"IF(OrigTable!E209=\"\",\"\",TEXT(OrigTable!E209,\"00\"))","v":""},{"$f":"IF(OrigTable!E209=\"\",\"\",ScriptText!$E$1&CHAR(10)&ScriptText!$C$1)","v":""},{"$f":"IF(OrigTable!F209=\"\",\"\",ScriptText!$B$1&CHAR(10)&ScriptText!$D$1)","v":""},{"$f":"IF(OrigTable!F209=\"\",\"\",TEXT(OrigTable!F209,\"00\"))","v":""},{"$f":"IF(OrigTable!F209=\"\",\"\",ScriptText!$E$1&CHAR(10)&ScriptText!$C$1)","v":""},{"$f":"IF(OrigTable!G209=\"\",\"\",ScriptText!$B$1&CHAR(10)&ScriptText!$D$1)","v":""},{"$f":"IF(OrigTable!G209=\"\",\"\",TEXT(OrigTable!G209,\"00\"))","v":""},{"$f":"IF(OrigTable!G209=\"\",\"\",ScriptText!$E$1&CHAR(10)&ScriptText!$C$1)","v":""},209]
["<tr>\n<td>148B</td>\n</tr>\n\n<tr>\n<td>Notification of Change of address sent to old address</td>\n</tr>\n<tr>\n<td>BMF Notices</td>\n</tr>",{"$f":"IF(OrigTable!A210=\"\",\"\",ScriptText!$B$1&CHAR(10)&ScriptText!$D$1)","v":"<tr>\n<td>"},{"$f":"IF(OrigTable!A210=\"\",\"\",TEXT(OrigTable!A210,\"00\"))","v":"148B"},{"$f":"IF(OrigTable!A210=\"\",\"\",ScriptText!$E$1&CHAR(10)&ScriptText!$C$1)","v":"</td>\n</tr>"},{"$f":"IF(OrigTable!B210=\"\",\"\",ScriptText!$B$1&CHAR(10)&ScriptText!$D$1)","v":""},{"$f":"IF(OrigTable!B210=\"\",\"\",TEXT(OrigTable!B210,\"00\"))","v":""},{"$f":"IF(OrigTable!B210=\"\",\"\",ScriptText!$E$1&CHAR(10)&ScriptText!C205)","v":""},{"$f":"IF(OrigTable!C210=\"\",\"\",ScriptText!$B$1&CHAR(10)&ScriptText!$D$1)","v":"<tr>\n<td>"},{"$f":"IF(OrigTable!C210=\"\",\"\",IF(LEN(OrigTable!C210)>255,LEFT(OrigTable!C210,250)&\". . .\",OrigTable!C210))","v":"Notification of Change of address sent to old address"},{"$f":"IF(OrigTable!C210=\"\",\"\",ScriptText!$E$1&CHAR(10)&ScriptText!$C$1)","v":"</td>\n</tr>"},{"$f":"IF(OrigTable!D210=\"\",\"\",ScriptText!$B$1&CHAR(10)&ScriptText!$D$1)","v":"<tr>\n<td>"},{"$f":"IF(OrigTable!D210=\"\",\"\",TEXT(OrigTable!D210,\"00\"))","v":"BMF Notices"},{"$f":"IF(OrigTable!D210=\"\",\"\",ScriptText!$E$1&CHAR(10)&ScriptText!$C$1)","v":"</td>\n</tr>"},{"$f":"IF(OrigTable!E210=\"\",\"\",ScriptText!$B$1&CHAR(10)&ScriptText!$D$1)","v":""},{"$f":"IF(OrigTable!E210=\"\",\"\",TEXT(OrigTable!E210,\"00\"))","v":""},{"$f":"IF(OrigTable!E210=\"\",\"\",ScriptText!$E$1&CHAR(10)&ScriptText!$C$1)","v":""},{"$f":"IF(OrigTable!F210=\"\",\"\",ScriptText!$B$1&CHAR(10)&ScriptText!$D$1)","v":""},{"$f":"IF(OrigTable!F210=\"\",\"\",TEXT(OrigTable!F210,\"00\"))","v":""},{"$f":"IF(OrigTable!F210=\"\",\"\",ScriptText!$E$1&CHAR(10)&ScriptText!$C$1)","v":""},{"$f":"IF(OrigTable!G210=\"\",\"\",ScriptText!$B$1&CHAR(10)&ScriptText!$D$1)","v":""},{"$f":"IF(OrigTable!G210=\"\",\"\",TEXT(OrigTable!G210,\"00\"))","v":""},{"$f":"IF(OrigTable!G210=\"\",\"\",ScriptText!$E$1&CHAR(10)&ScriptText!$C$1)","v":""},210]
["<tr>\n<td>152</td>\n</tr>\n\n<tr>\n<td>Tax Exempt Bond Acknowledgement</td>\n</tr>\n<tr>\n<td>BMF Notices</td>\n</tr>",{"$f":"IF(OrigTable!A211=\"\",\"\",ScriptText!$B$1&CHAR(10)&ScriptText!$D$1)","v":"<tr>\n<td>"},{"$f":"IF(OrigTable!A211=\"\",\"\",TEXT(OrigTable!A211,\"00\"))","v":"152"},{"$f":"IF(OrigTable!A211=\"\",\"\",ScriptText!$E$1&CHAR(10)&ScriptText!$C$1)","v":"</td>\n</tr>"},{"$f":"IF(OrigTable!B211=\"\",\"\",ScriptText!$B$1&CHAR(10)&ScriptText!$D$1)","v":""},{"$f":"IF(OrigTable!B211=\"\",\"\",TEXT(OrigTable!B211,\"00\"))","v":""},{"$f":"IF(OrigTable!B211=\"\",\"\",ScriptText!$E$1&CHAR(10)&ScriptText!C206)","v":""},{"$f":"IF(OrigTable!C211=\"\",\"\",ScriptText!$B$1&CHAR(10)&ScriptText!$D$1)","v":"<tr>\n<td>"},{"$f":"IF(OrigTable!C211=\"\",\"\",IF(LEN(OrigTable!C211)>255,LEFT(OrigTable!C211,250)&\". . .\",OrigTable!C211))","v":"Tax Exempt Bond Acknowledgement"},{"$f":"IF(OrigTable!C211=\"\",\"\",ScriptText!$E$1&CHAR(10)&ScriptText!$C$1)","v":"</td>\n</tr>"},{"$f":"IF(OrigTable!D211=\"\",\"\",ScriptText!$B$1&CHAR(10)&ScriptText!$D$1)","v":"<tr>\n<td>"},{"$f":"IF(OrigTable!D211=\"\",\"\",TEXT(OrigTable!D211,\"00\"))","v":"BMF Notices"},{"$f":"IF(OrigTable!D211=\"\",\"\",ScriptText!$E$1&CHAR(10)&ScriptText!$C$1)","v":"</td>\n</tr>"},{"$f":"IF(OrigTable!E211=\"\",\"\",ScriptText!$B$1&CHAR(10)&ScriptText!$D$1)","v":""},{"$f":"IF(OrigTable!E211=\"\",\"\",TEXT(OrigTable!E211,\"00\"))","v":""},{"$f":"IF(OrigTable!E211=\"\",\"\",ScriptText!$E$1&CHAR(10)&ScriptText!$C$1)","v":""},{"$f":"IF(OrigTable!F211=\"\",\"\",ScriptText!$B$1&CHAR(10)&ScriptText!$D$1)","v":""},{"$f":"IF(OrigTable!F211=\"\",\"\",TEXT(OrigTable!F211,\"00\"))","v":""},{"$f":"IF(OrigTable!F211=\"\",\"\",ScriptText!$E$1&CHAR(10)&ScriptText!$C$1)","v":""},{"$f":"IF(OrigTable!G211=\"\",\"\",ScriptText!$B$1&CHAR(10)&ScriptText!$D$1)","v":""},{"$f":"IF(OrigTable!G211=\"\",\"\",TEXT(OrigTable!G211,\"00\"))","v":""},{"$f":"IF(OrigTable!G211=\"\",\"\",ScriptText!$E$1&CHAR(10)&ScriptText!$C$1)","v":""},211]
["<tr>\n<td>152A</td>\n</tr>\n\n<tr>\n<td>We received your tax-advantaged bond form (Sequestration Reduction of Credit)</td>\n</tr>\n<tr>\n<td>BMF Notices</td>\n</tr>",{"$f":"IF(OrigTable!A212=\"\",\"\",ScriptText!$B$1&CHAR(10)&ScriptText!$D$1)","v":"<tr>\n<td>"},{"$f":"IF(OrigTable!A212=\"\",\"\",TEXT(OrigTable!A212,\"00\"))","v":"152A"},{"$f":"IF(OrigTable!A212=\"\",\"\",ScriptText!$E$1&CHAR(10)&ScriptText!$C$1)","v":"</td>\n</tr>"},{"$f":"IF(OrigTable!B212=\"\",\"\",ScriptText!$B$1&CHAR(10)&ScriptText!$D$1)","v":""},{"$f":"IF(OrigTable!B212=\"\",\"\",TEXT(OrigTable!B212,\"00\"))","v":""},{"$f":"IF(OrigTable!B212=\"\",\"\",ScriptText!$E$1&CHAR(10)&ScriptText!C207)","v":""},{"$f":"IF(OrigTable!C212=\"\",\"\",ScriptText!$B$1&CHAR(10)&ScriptText!$D$1)","v":"<tr>\n<td>"},{"$f":"IF(OrigTable!C212=\"\",\"\",IF(LEN(OrigTable!C212)>255,LEFT(OrigTable!C212,250)&\". . .\",OrigTable!C212))","v":"We received your tax-advantaged bond form (Sequestration Reduction of Credit)"},{"$f":"IF(OrigTable!C212=\"\",\"\",ScriptText!$E$1&CHAR(10)&ScriptText!$C$1)","v":"</td>\n</tr>"},{"$f":"IF(OrigTable!D212=\"\",\"\",ScriptText!$B$1&CHAR(10)&ScriptText!$D$1)","v":"<tr>\n<td>"},{"$f":"IF(OrigTable!D212=\"\",\"\",TEXT(OrigTable!D212,\"00\"))","v":"BMF Notices"},{"$f":"IF(OrigTable!D212=\"\",\"\",ScriptText!$E$1&CHAR(10)&ScriptText!$C$1)","v":"</td>\n</tr>"},{"$f":"IF(OrigTable!E212=\"\",\"\",ScriptText!$B$1&CHAR(10)&ScriptText!$D$1)","v":""},{"$f":"IF(OrigTable!E212=\"\",\"\",TEXT(OrigTable!E212,\"00\"))","v":""},{"$f":"IF(OrigTable!E212=\"\",\"\",ScriptText!$E$1&CHAR(10)&ScriptText!$C$1)","v":""},{"$f":"IF(OrigTable!F212=\"\",\"\",ScriptText!$B$1&CHAR(10)&ScriptText!$D$1)","v":""},{"$f":"IF(OrigTable!F212=\"\",\"\",TEXT(OrigTable!F212,\"00\"))","v":""},{"$f":"IF(OrigTable!F212=\"\",\"\",ScriptText!$E$1&CHAR(10)&ScriptText!$C$1)","v":""},{"$f":"IF(OrigTable!G212=\"\",\"\",ScriptText!$B$1&CHAR(10)&ScriptText!$D$1)","v":""},{"$f":"IF(OrigTable!G212=\"\",\"\",TEXT(OrigTable!G212,\"00\"))","v":""},{"$f":"IF(OrigTable!G212=\"\",\"\",ScriptText!$E$1&CHAR(10)&ScriptText!$C$1)","v":""},212]
["<tr>\n<td>153</td>\n</tr>\n<tr>\n<td>No</td>\n147\n<tr>\n<td>Notice of ETF refund not allowed</td>\n</tr>\n<tr>\n<td>BMF Notices</td>\n</tr>",{"$f":"IF(OrigTable!A213=\"\",\"\",ScriptText!$B$1&CHAR(10)&ScriptText!$D$1)","v":"<tr>\n<td>"},{"$f":"IF(OrigTable!A213=\"\",\"\",TEXT(OrigTable!A213,\"00\"))","v":"153"},{"$f":"IF(OrigTable!A213=\"\",\"\",ScriptText!$E$1&CHAR(10)&ScriptText!$C$1)","v":"</td>\n</tr>"},{"$f":"IF(OrigTable!B213=\"\",\"\",ScriptText!$B$1&CHAR(10)&ScriptText!$D$1)","v":"<tr>\n<td>"},{"$f":"IF(OrigTable!B213=\"\",\"\",TEXT(OrigTable!B213,\"00\"))","v":"No"},{"$f":"IF(OrigTable!B213=\"\",\"\",ScriptText!$E$1&CHAR(10)&ScriptText!C208)","v":"</td>\n147"},{"$f":"IF(OrigTable!C213=\"\",\"\",ScriptText!$B$1&CHAR(10)&ScriptText!$D$1)","v":"<tr>\n<td>"},{"$f":"IF(OrigTable!C213=\"\",\"\",IF(LEN(OrigTable!C213)>255,LEFT(OrigTable!C213,250)&\". . .\",OrigTable!C213))","v":"Notice of ETF refund not allowed"},{"$f":"IF(OrigTable!C213=\"\",\"\",ScriptText!$E$1&CHAR(10)&ScriptText!$C$1)","v":"</td>\n</tr>"},{"$f":"IF(OrigTable!D213=\"\",\"\",ScriptText!$B$1&CHAR(10)&ScriptText!$D$1)","v":"<tr>\n<td>"},{"$f":"IF(OrigTable!D213=\"\",\"\",TEXT(OrigTable!D213,\"00\"))","v":"BMF Notices"},{"$f":"IF(OrigTable!D213=\"\",\"\",ScriptText!$E$1&CHAR(10)&ScriptText!$C$1)","v":"</td>\n</tr>"},{"$f":"IF(OrigTable!E213=\"\",\"\",ScriptText!$B$1&CHAR(10)&ScriptText!$D$1)","v":""},{"$f":"IF(OrigTable!E213=\"\",\"\",TEXT(OrigTable!E213,\"00\"))","v":""},{"$f":"IF(OrigTable!E213=\"\",\"\",ScriptText!$E$1&CHAR(10)&ScriptText!$C$1)","v":""},{"$f":"IF(OrigTable!F213=\"\",\"\",ScriptText!$B$1&CHAR(10)&ScriptText!$D$1)","v":""},{"$f":"IF(OrigTable!F213=\"\",\"\",TEXT(OrigTable!F213,\"00\"))","v":""},{"$f":"IF(OrigTable!F213=\"\",\"\",ScriptText!$E$1&CHAR(10)&ScriptText!$C$1)","v":""},{"$f":"IF(OrigTable!G213=\"\",\"\",ScriptText!$B$1&CHAR(10)&ScriptText!$D$1)","v":""},{"$f":"IF(OrigTable!G213=\"\",\"\",TEXT(OrigTable!G213,\"00\"))","v":""},{"$f":"IF(OrigTable!G213=\"\",\"\",ScriptText!$E$1&CHAR(10)&ScriptText!$C$1)","v":""},213]
["<tr>\n<td>155</td>\n</tr>\n\n<tr>\n<td>Campus notice only: Notice to refile return – Forms 94X, 1120</td>\n</tr>\n<tr>\n<td>BMF Notices</td>\n</tr>",{"$f":"IF(OrigTable!A214=\"\",\"\",ScriptText!$B$1&CHAR(10)&ScriptText!$D$1)","v":"<tr>\n<td>"},{"$f":"IF(OrigTable!A214=\"\",\"\",TEXT(OrigTable!A214,\"00\"))","v":"155"},{"$f":"IF(OrigTable!A214=\"\",\"\",ScriptText!$E$1&CHAR(10)&ScriptText!$C$1)","v":"</td>\n</tr>"},{"$f":"IF(OrigTable!B214=\"\",\"\",ScriptText!$B$1&CHAR(10)&ScriptText!$D$1)","v":""},{"$f":"IF(OrigTable!B214=\"\",\"\",TEXT(OrigTable!B214,\"00\"))","v":""},{"$f":"IF(OrigTable!B214=\"\",\"\",ScriptText!$E$1&CHAR(10)&ScriptText!C209)","v":""},{"$f":"IF(OrigTable!C214=\"\",\"\",ScriptText!$B$1&CHAR(10)&ScriptText!$D$1)","v":"<tr>\n<td>"},{"$f":"IF(OrigTable!C214=\"\",\"\",IF(LEN(OrigTable!C214)>255,LEFT(OrigTable!C214,250)&\". . .\",OrigTable!C214))","v":"Campus notice only: Notice to refile return – Forms 94X, 1120"},{"$f":"IF(OrigTable!C214=\"\",\"\",ScriptText!$E$1&CHAR(10)&ScriptText!$C$1)","v":"</td>\n</tr>"},{"$f":"IF(OrigTable!D214=\"\",\"\",ScriptText!$B$1&CHAR(10)&ScriptText!$D$1)","v":"<tr>\n<td>"},{"$f":"IF(OrigTable!D214=\"\",\"\",TEXT(OrigTable!D214,\"00\"))","v":"BMF Notices"},{"$f":"IF(OrigTable!D214=\"\",\"\",ScriptText!$E$1&CHAR(10)&ScriptText!$C$1)","v":"</td>\n</tr>"},{"$f":"IF(OrigTable!E214=\"\",\"\",ScriptText!$B$1&CHAR(10)&ScriptText!$D$1)","v":""},{"$f":"IF(OrigTable!E214=\"\",\"\",TEXT(OrigTable!E214,\"00\"))","v":""},{"$f":"IF(OrigTable!E214=\"\",\"\",ScriptText!$E$1&CHAR(10)&ScriptText!$C$1)","v":""},{"$f":"IF(OrigTable!F214=\"\",\"\",ScriptText!$B$1&CHAR(10)&ScriptText!$D$1)","v":""},{"$f":"IF(OrigTable!F214=\"\",\"\",TEXT(OrigTable!F214,\"00\"))","v":""},{"$f":"IF(OrigTable!F214=\"\",\"\",ScriptText!$E$1&CHAR(10)&ScriptText!$C$1)","v":""},{"$f":"IF(OrigTable!G214=\"\",\"\",ScriptText!$B$1&CHAR(10)&ScriptText!$D$1)","v":""},{"$f":"IF(OrigTable!G214=\"\",\"\",TEXT(OrigTable!G214,\"00\"))","v":""},{"$f":"IF(OrigTable!G214=\"\",\"\",ScriptText!$E$1&CHAR(10)&ScriptText!$C$1)","v":""},214]
["<tr>\n<td>156</td>\n</tr>\n<tr>\n<td>Yes</td>\n148B\n<tr>\n<td>We applied the sequestration rate to your credit</td>\n</tr>\n<tr>\n<td>BMF Notices</td>\n</tr>",{"$f":"IF(OrigTable!A215=\"\",\"\",ScriptText!$B$1&CHAR(10)&ScriptText!$D$1)","v":"<tr>\n<td>"},{"$f":"IF(OrigTable!A215=\"\",\"\",TEXT(OrigTable!A215,\"00\"))","v":"156"},{"$f":"IF(OrigTable!A215=\"\",\"\",ScriptText!$E$1&CHAR(10)&ScriptText!$C$1)","v":"</td>\n</tr>"},{"$f":"IF(OrigTable!B215=\"\",\"\",ScriptText!$B$1&CHAR(10)&ScriptText!$D$1)","v":"<tr>\n<td>"},{"$f":"IF(OrigTable!B215=\"\",\"\",TEXT(OrigTable!B215,\"00\"))","v":"Yes"},{"$f":"IF(OrigTable!B215=\"\",\"\",ScriptText!$E$1&CHAR(10)&ScriptText!C210)","v":"</td>\n148B"},{"$f":"IF(OrigTable!C215=\"\",\"\",ScriptText!$B$1&CHAR(10)&ScriptText!$D$1)","v":"<tr>\n<td>"},{"$f":"IF(OrigTable!C215=\"\",\"\",IF(LEN(OrigTable!C215)>255,LEFT(OrigTable!C215,250)&\". . .\",OrigTable!C215))","v":"We applied the sequestration rate to your credit"},{"$f":"IF(OrigTable!C215=\"\",\"\",ScriptText!$E$1&CHAR(10)&ScriptText!$C$1)","v":"</td>\n</tr>"},{"$f":"IF(OrigTable!D215=\"\",\"\",ScriptText!$B$1&CHAR(10)&ScriptText!$D$1)","v":"<tr>\n<td>"},{"$f":"IF(OrigTable!D215=\"\",\"\",TEXT(OrigTable!D215,\"00\"))","v":"BMF Notices"},{"$f":"IF(OrigTable!D215=\"\",\"\",ScriptText!$E$1&CHAR(10)&ScriptText!$C$1)","v":"</td>\n</tr>"},{"$f":"IF(OrigTable!E215=\"\",\"\",ScriptText!$B$1&CHAR(10)&ScriptText!$D$1)","v":""},{"$f":"IF(OrigTable!E215=\"\",\"\",TEXT(OrigTable!E215,\"00\"))","v":""},{"$f":"IF(OrigTable!E215=\"\",\"\",ScriptText!$E$1&CHAR(10)&ScriptText!$C$1)","v":""},{"$f":"IF(OrigTable!F215=\"\",\"\",ScriptText!$B$1&CHAR(10)&ScriptText!$D$1)","v":""},{"$f":"IF(OrigTable!F215=\"\",\"\",TEXT(OrigTable!F215,\"00\"))","v":""},{"$f":"IF(OrigTable!F215=\"\",\"\",ScriptText!$E$1&CHAR(10)&ScriptText!$C$1)","v":""},{"$f":"IF(OrigTable!G215=\"\",\"\",ScriptText!$B$1&CHAR(10)&ScriptText!$D$1)","v":""},{"$f":"IF(OrigTable!G215=\"\",\"\",TEXT(OrigTable!G215,\"00\"))","v":""},{"$f":"IF(OrigTable!G215=\"\",\"\",ScriptText!$E$1&CHAR(10)&ScriptText!$C$1)","v":""},215]
["<tr>\n<td>160</td>\n</tr>\n<tr>\n<td>Yes</td>\n152\n<tr>\n<td>Annual notification to remind the taxpayer of a balance due on prior tax periods.\n(1) Modules in status 23 with a module balance of $25.00 or more and\n(2) Module in status 22 with an unreversed TC 530 with closing code 09 and module balance of $25.00. . .</td>\n</tr>\n<tr>\n<td>BMF Notices</td>\n</tr>",{"$f":"IF(OrigTable!A216=\"\",\"\",ScriptText!$B$1&CHAR(10)&ScriptText!$D$1)","v":"<tr>\n<td>"},{"$f":"IF(OrigTable!A216=\"\",\"\",TEXT(OrigTable!A216,\"00\"))","v":"160"},{"$f":"IF(OrigTable!A216=\"\",\"\",ScriptText!$E$1&CHAR(10)&ScriptText!$C$1)","v":"</td>\n</tr>"},{"$f":"IF(OrigTable!B216=\"\",\"\",ScriptText!$B$1&CHAR(10)&ScriptText!$D$1)","v":"<tr>\n<td>"},{"$f":"IF(OrigTable!B216=\"\",\"\",TEXT(OrigTable!B216,\"00\"))","v":"Yes"},{"$f":"IF(OrigTable!B216=\"\",\"\",ScriptText!$E$1&CHAR(10)&ScriptText!C211)","v":"</td>\n152"},{"$f":"IF(OrigTable!C216=\"\",\"\",ScriptText!$B$1&CHAR(10)&ScriptText!$D$1)","v":"<tr>\n<td>"},{"$f":"IF(OrigTable!C216=\"\",\"\",IF(LEN(OrigTable!C216)>255,LEFT(OrigTable!C216,250)&\". . .\",OrigTable!C216))","v":"Annual notification to remind the taxpayer of a balance due on prior tax periods.\n(1) Modules in status 23 with a module balance of $25.00 or more and\n(2) Module in status 22 with an unreversed TC 530 with closing code 09 and module balance of $25.00. . ."},{"$f":"IF(OrigTable!C216=\"\",\"\",ScriptText!$E$1&CHAR(10)&ScriptText!$C$1)","v":"</td>\n</tr>"},{"$f":"IF(OrigTable!D216=\"\",\"\",ScriptText!$B$1&CHAR(10)&ScriptText!$D$1)","v":"<tr>\n<td>"},{"$f":"IF(OrigTable!D216=\"\",\"\",TEXT(OrigTable!D216,\"00\"))","v":"BMF Notices"},{"$f":"IF(OrigTable!D216=\"\",\"\",ScriptText!$E$1&CHAR(10)&ScriptText!$C$1)","v":"</td>\n</tr>"},{"$f":"IF(OrigTable!E216=\"\",\"\",ScriptText!$B$1&CHAR(10)&ScriptText!$D$1)","v":""},{"$f":"IF(OrigTable!E216=\"\",\"\",TEXT(OrigTable!E216,\"00\"))","v":""},{"$f":"IF(OrigTable!E216=\"\",\"\",ScriptText!$E$1&CHAR(10)&ScriptText!$C$1)","v":""},{"$f":"IF(OrigTable!F216=\"\",\"\",ScriptText!$B$1&CHAR(10)&ScriptText!$D$1)","v":""},{"$f":"IF(OrigTable!F216=\"\",\"\",TEXT(OrigTable!F216,\"00\"))","v":""},{"$f":"IF(OrigTable!F216=\"\",\"\",ScriptText!$E$1&CHAR(10)&ScriptText!$C$1)","v":""},{"$f":"IF(OrigTable!G216=\"\",\"\",ScriptText!$B$1&CHAR(10)&ScriptText!$D$1)","v":""},{"$f":"IF(OrigTable!G216=\"\",\"\",TEXT(OrigTable!G216,\"00\"))","v":""},{"$f":"IF(OrigTable!G216=\"\",\"\",ScriptText!$E$1&CHAR(10)&ScriptText!$C$1)","v":""},216]
["<tr>\n<td>161</td>\n</tr>\n<tr>\n<td>Yes</td>\n152A\n<tr>\n<td>Notification of the tax, penalty and interest due for a tax return without a math error\nexcept 1065.</td>\n</tr>\n<tr>\n<td>BMF Notices</td>\n</tr>",{"$f":"IF(OrigTable!A217=\"\",\"\",ScriptText!$B$1&CHAR(10)&ScriptText!$D$1)","v":"<tr>\n<td>"},{"$f":"IF(OrigTable!A217=\"\",\"\",TEXT(OrigTable!A217,\"00\"))","v":"161"},{"$f":"IF(OrigTable!A217=\"\",\"\",ScriptText!$E$1&CHAR(10)&ScriptText!$C$1)","v":"</td>\n</tr>"},{"$f":"IF(OrigTable!B217=\"\",\"\",ScriptText!$B$1&CHAR(10)&ScriptText!$D$1)","v":"<tr>\n<td>"},{"$f":"IF(OrigTable!B217=\"\",\"\",TEXT(OrigTable!B217,\"00\"))","v":"Yes"},{"$f":"IF(OrigTable!B217=\"\",\"\",ScriptText!$E$1&CHAR(10)&ScriptText!C212)","v":"</td>\n152A"},{"$f":"IF(OrigTable!C217=\"\",\"\",ScriptText!$B$1&CHAR(10)&ScriptText!$D$1)","v":"<tr>\n<td>"},{"$f":"IF(OrigTable!C217=\"\",\"\",IF(LEN(OrigTable!C217)>255,LEFT(OrigTable!C217,250)&\". . .\",OrigTable!C217))","v":"Notification of the tax, penalty and interest due for a tax return without a math error\nexcept 1065."},{"$f":"IF(OrigTable!C217=\"\",\"\",ScriptText!$E$1&CHAR(10)&ScriptText!$C$1)","v":"</td>\n</tr>"},{"$f":"IF(OrigTable!D217=\"\",\"\",ScriptText!$B$1&CHAR(10)&ScriptText!$D$1)","v":"<tr>\n<td>"},{"$f":"IF(OrigTable!D217=\"\",\"\",TEXT(OrigTable!D217,\"00\"))","v":"BMF Notices"},{"$f":"IF(OrigTable!D217=\"\",\"\",ScriptText!$E$1&CHAR(10)&ScriptText!$C$1)","v":"</td>\n</tr>"},{"$f":"IF(OrigTable!E217=\"\",\"\",ScriptText!$B$1&CHAR(10)&ScriptText!$D$1)","v":""},{"$f":"IF(OrigTable!E217=\"\",\"\",TEXT(OrigTable!E217,\"00\"))","v":""},{"$f":"IF(OrigTable!E217=\"\",\"\",ScriptText!$E$1&CHAR(10)&ScriptText!$C$1)","v":""},{"$f":"IF(OrigTable!F217=\"\",\"\",ScriptText!$B$1&CHAR(10)&ScriptText!$D$1)","v":""},{"$f":"IF(OrigTable!F217=\"\",\"\",TEXT(OrigTable!F217,\"00\"))","v":""},{"$f":"IF(OrigTable!F217=\"\",\"\",ScriptText!$E$1&CHAR(10)&ScriptText!$C$1)","v":""},{"$f":"IF(OrigTable!G217=\"\",\"\",ScriptText!$B$1&CHAR(10)&ScriptText!$D$1)","v":""},{"$f":"IF(OrigTable!G217=\"\",\"\",TEXT(OrigTable!G217,\"00\"))","v":""},{"$f":"IF(OrigTable!G217=\"\",\"\",ScriptText!$E$1&CHAR(10)&ScriptText!$C$1)","v":""},217]
["<tr>\n<td>162</td>\n</tr>\n<tr>\n<td>Yes</td>\n153\n<tr>\n<td>Notification that an additional penalty has been assessed for missing information or late filing on Form 1065.</td>\n</tr>\n<tr>\n<td>BMF Notices</td>\n</tr>",{"$f":"IF(OrigTable!A218=\"\",\"\",ScriptText!$B$1&CHAR(10)&ScriptText!$D$1)","v":"<tr>\n<td>"},{"$f":"IF(OrigTable!A218=\"\",\"\",TEXT(OrigTable!A218,\"00\"))","v":"162"},{"$f":"IF(OrigTable!A218=\"\",\"\",ScriptText!$E$1&CHAR(10)&ScriptText!$C$1)","v":"</td>\n</tr>"},{"$f":"IF(OrigTable!B218=\"\",\"\",ScriptText!$B$1&CHAR(10)&ScriptText!$D$1)","v":"<tr>\n<td>"},{"$f":"IF(OrigTable!B218=\"\",\"\",TEXT(OrigTable!B218,\"00\"))","v":"Yes"},{"$f":"IF(OrigTable!B218=\"\",\"\",ScriptText!$E$1&CHAR(10)&ScriptText!C213)","v":"</td>\n153"},{"$f":"IF(OrigTable!C218=\"\",\"\",ScriptText!$B$1&CHAR(10)&ScriptText!$D$1)","v":"<tr>\n<td>"},{"$f":"IF(OrigTable!C218=\"\",\"\",IF(LEN(OrigTable!C218)>255,LEFT(OrigTable!C218,250)&\". . .\",OrigTable!C218))","v":"Notification that an additional penalty has been assessed for missing information or late filing on Form 1065."},{"$f":"IF(OrigTable!C218=\"\",\"\",ScriptText!$E$1&CHAR(10)&ScriptText!$C$1)","v":"</td>\n</tr>"},{"$f":"IF(OrigTable!D218=\"\",\"\",ScriptText!$B$1&CHAR(10)&ScriptText!$D$1)","v":"<tr>\n<td>"},{"$f":"IF(OrigTable!D218=\"\",\"\",TEXT(OrigTable!D218,\"00\"))","v":"BMF Notices"},{"$f":"IF(OrigTable!D218=\"\",\"\",ScriptText!$E$1&CHAR(10)&ScriptText!$C$1)","v":"</td>\n</tr>"},{"$f":"IF(OrigTable!E218=\"\",\"\",ScriptText!$B$1&CHAR(10)&ScriptText!$D$1)","v":""},{"$f":"IF(OrigTable!E218=\"\",\"\",TEXT(OrigTable!E218,\"00\"))","v":""},{"$f":"IF(OrigTable!E218=\"\",\"\",ScriptText!$E$1&CHAR(10)&ScriptText!$C$1)","v":""},{"$f":"IF(OrigTable!F218=\"\",\"\",ScriptText!$B$1&CHAR(10)&ScriptText!$D$1)","v":""},{"$f":"IF(OrigTable!F218=\"\",\"\",TEXT(OrigTable!F218,\"00\"))","v":""},{"$f":"IF(OrigTable!F218=\"\",\"\",ScriptText!$E$1&CHAR(10)&ScriptText!$C$1)","v":""},{"$f":"IF(OrigTable!G218=\"\",\"\",ScriptText!$B$1&CHAR(10)&ScriptText!$D$1)","v":""},{"$f":"IF(OrigTable!G218=\"\",\"\",TEXT(OrigTable!G218,\"00\"))","v":""},{"$f":"IF(OrigTable!G218=\"\",\"\",ScriptText!$E$1&CHAR(10)&ScriptText!$C$1)","v":""},218]
["<tr>\n<td>163</td>\n</tr>\n<tr>\n<td>Yes</td>\n155\n\n<tr>\n<td>BMF Notices</td>\n</tr>",{"$f":"IF(OrigTable!A219=\"\",\"\",ScriptText!$B$1&CHAR(10)&ScriptText!$D$1)","v":"<tr>\n<td>"},{"$f":"IF(OrigTable!A219=\"\",\"\",TEXT(OrigTable!A219,\"00\"))","v":"163"},{"$f":"IF(OrigTable!A219=\"\",\"\",ScriptText!$E$1&CHAR(10)&ScriptText!$C$1)","v":"</td>\n</tr>"},{"$f":"IF(OrigTable!B219=\"\",\"\",ScriptText!$B$1&CHAR(10)&ScriptText!$D$1)","v":"<tr>\n<td>"},{"$f":"IF(OrigTable!B219=\"\",\"\",TEXT(OrigTable!B219,\"00\"))","v":"Yes"},{"$f":"IF(OrigTable!B219=\"\",\"\",ScriptText!$E$1&CHAR(10)&ScriptText!C214)","v":"</td>\n155"},{"$f":"IF(OrigTable!C219=\"\",\"\",ScriptText!$B$1&CHAR(10)&ScriptText!$D$1)","v":""},{"$f":"IF(OrigTable!C219=\"\",\"\",IF(LEN(OrigTable!C219)>255,LEFT(OrigTable!C219,250)&\". . .\",OrigTable!C219))","v":""},{"$f":"IF(OrigTable!C219=\"\",\"\",ScriptText!$E$1&CHAR(10)&ScriptText!$C$1)","v":""},{"$f":"IF(OrigTable!D219=\"\",\"\",ScriptText!$B$1&CHAR(10)&ScriptText!$D$1)","v":"<tr>\n<td>"},{"$f":"IF(OrigTable!D219=\"\",\"\",TEXT(OrigTable!D219,\"00\"))","v":"BMF Notices"},{"$f":"IF(OrigTable!D219=\"\",\"\",ScriptText!$E$1&CHAR(10)&ScriptText!$C$1)","v":"</td>\n</tr>"},{"$f":"IF(OrigTable!E219=\"\",\"\",ScriptText!$B$1&CHAR(10)&ScriptText!$D$1)","v":""},{"$f":"IF(OrigTable!E219=\"\",\"\",TEXT(OrigTable!E219,\"00\"))","v":""},{"$f":"IF(OrigTable!E219=\"\",\"\",ScriptText!$E$1&CHAR(10)&ScriptText!$C$1)","v":""},{"$f":"IF(OrigTable!F219=\"\",\"\",ScriptText!$B$1&CHAR(10)&ScriptText!$D$1)","v":""},{"$f":"IF(OrigTable!F219=\"\",\"\",TEXT(OrigTable!F219,\"00\"))","v":""},{"$f":"IF(OrigTable!F219=\"\",\"\",ScriptText!$E$1&CHAR(10)&ScriptText!$C$1)","v":""},{"$f":"IF(OrigTable!G219=\"\",\"\",ScriptText!$B$1&CHAR(10)&ScriptText!$D$1)","v":""},{"$f":"IF(OrigTable!G219=\"\",\"\",TEXT(OrigTable!G219,\"00\"))","v":""},{"$f":"IF(OrigTable!G219=\"\",\"\",ScriptText!$E$1&CHAR(10)&ScriptText!$C$1)","v":""},219]
["<tr>\n<td>164</td>\n</tr>\n<tr>\n<td>Yes</td>\n156\n<tr>\n<td>Campus only notification to Appellate of a posting Tentative Carryback adjustment.</td>\n</tr>\n<tr>\n<td>BMF Notices</td>\n</tr>",{"$f":"IF(OrigTable!A220=\"\",\"\",ScriptText!$B$1&CHAR(10)&ScriptText!$D$1)","v":"<tr>\n<td>"},{"$f":"IF(OrigTable!A220=\"\",\"\",TEXT(OrigTable!A220,\"00\"))","v":"164"},{"$f":"IF(OrigTable!A220=\"\",\"\",ScriptText!$E$1&CHAR(10)&ScriptText!$C$1)","v":"</td>\n</tr>"},{"$f":"IF(OrigTable!B220=\"\",\"\",ScriptText!$B$1&CHAR(10)&ScriptText!$D$1)","v":"<tr>\n<td>"},{"$f":"IF(OrigTable!B220=\"\",\"\",TEXT(OrigTable!B220,\"00\"))","v":"Yes"},{"$f":"IF(OrigTable!B220=\"\",\"\",ScriptText!$E$1&CHAR(10)&ScriptText!C215)","v":"</td>\n156"},{"$f":"IF(OrigTable!C220=\"\",\"\",ScriptText!$B$1&CHAR(10)&ScriptText!$D$1)","v":"<tr>\n<td>"},{"$f":"IF(OrigTable!C220=\"\",\"\",IF(LEN(OrigTable!C220)>255,LEFT(OrigTable!C220,250)&\". . .\",OrigTable!C220))","v":"Campus only notification to Appellate of a posting Tentative Carryback adjustment."},{"$f":"IF(OrigTable!C220=\"\",\"\",ScriptText!$E$1&CHAR(10)&ScriptText!$C$1)","v":"</td>\n</tr>"},{"$f":"IF(OrigTable!D220=\"\",\"\",ScriptText!$B$1&CHAR(10)&ScriptText!$D$1)","v":"<tr>\n<td>"},{"$f":"IF(OrigTable!D220=\"\",\"\",TEXT(OrigTable!D220,\"00\"))","v":"BMF Notices"},{"$f":"IF(OrigTable!D220=\"\",\"\",ScriptText!$E$1&CHAR(10)&ScriptText!$C$1)","v":"</td>\n</tr>"},{"$f":"IF(OrigTable!E220=\"\",\"\",ScriptText!$B$1&CHAR(10)&ScriptText!$D$1)","v":""},{"$f":"IF(OrigTable!E220=\"\",\"\",TEXT(OrigTable!E220,\"00\"))","v":""},{"$f":"IF(OrigTable!E220=\"\",\"\",ScriptText!$E$1&CHAR(10)&ScriptText!$C$1)","v":""},{"$f":"IF(OrigTable!F220=\"\",\"\",ScriptText!$B$1&CHAR(10)&ScriptText!$D$1)","v":""},{"$f":"IF(OrigTable!F220=\"\",\"\",TEXT(OrigTable!F220,\"00\"))","v":""},{"$f":"IF(OrigTable!F220=\"\",\"\",ScriptText!$E$1&CHAR(10)&ScriptText!$C$1)","v":""},{"$f":"IF(OrigTable!G220=\"\",\"\",ScriptText!$B$1&CHAR(10)&ScriptText!$D$1)","v":""},{"$f":"IF(OrigTable!G220=\"\",\"\",TEXT(OrigTable!G220,\"00\"))","v":""},{"$f":"IF(OrigTable!G220=\"\",\"\",ScriptText!$E$1&CHAR(10)&ScriptText!$C$1)","v":""},220]
["<tr>\n<td>165</td>\n</tr>\n<tr>\n<td>Yes</td>\n160\n<tr>\n<td>Notification that a check for Federal Tax Deposits/Estimated Taxes has been dishonored.\nRequests repayment of the check plus the bad check penalty assessed.</td>\n</tr>\n<tr>\n<td>BMF Notices</td>\n</tr>",{"$f":"IF(OrigTable!A221=\"\",\"\",ScriptText!$B$1&CHAR(10)&ScriptText!$D$1)","v":"<tr>\n<td>"},{"$f":"IF(OrigTable!A221=\"\",\"\",TEXT(OrigTable!A221,\"00\"))","v":"165"},{"$f":"IF(OrigTable!A221=\"\",\"\",ScriptText!$E$1&CHAR(10)&ScriptText!$C$1)","v":"</td>\n</tr>"},{"$f":"IF(OrigTable!B221=\"\",\"\",ScriptText!$B$1&CHAR(10)&ScriptText!$D$1)","v":"<tr>\n<td>"},{"$f":"IF(OrigTable!B221=\"\",\"\",TEXT(OrigTable!B221,\"00\"))","v":"Yes"},{"$f":"IF(OrigTable!B221=\"\",\"\",ScriptText!$E$1&CHAR(10)&ScriptText!C216)","v":"</td>\n160"},{"$f":"IF(OrigTable!C221=\"\",\"\",ScriptText!$B$1&CHAR(10)&ScriptText!$D$1)","v":"<tr>\n<td>"},{"$f":"IF(OrigTable!C221=\"\",\"\",IF(LEN(OrigTable!C221)>255,LEFT(OrigTable!C221,250)&\". . .\",OrigTable!C221))","v":"Notification that a check for Federal Tax Deposits/Estimated Taxes has been dishonored.\nRequests repayment of the check plus the bad check penalty assessed."},{"$f":"IF(OrigTable!C221=\"\",\"\",ScriptText!$E$1&CHAR(10)&ScriptText!$C$1)","v":"</td>\n</tr>"},{"$f":"IF(OrigTable!D221=\"\",\"\",ScriptText!$B$1&CHAR(10)&ScriptText!$D$1)","v":"<tr>\n<td>"},{"$f":"IF(OrigTable!D221=\"\",\"\",TEXT(OrigTable!D221,\"00\"))","v":"BMF Notices"},{"$f":"IF(OrigTable!D221=\"\",\"\",ScriptText!$E$1&CHAR(10)&ScriptText!$C$1)","v":"</td>\n</tr>"},{"$f":"IF(OrigTable!E221=\"\",\"\",ScriptText!$B$1&CHAR(10)&ScriptText!$D$1)","v":""},{"$f":"IF(OrigTable!E221=\"\",\"\",TEXT(OrigTable!E221,\"00\"))","v":""},{"$f":"IF(OrigTable!E221=\"\",\"\",ScriptText!$E$1&CHAR(10)&ScriptText!$C$1)","v":""},{"$f":"IF(OrigTable!F221=\"\",\"\",ScriptText!$B$1&CHAR(10)&ScriptText!$D$1)","v":""},{"$f":"IF(OrigTable!F221=\"\",\"\",TEXT(OrigTable!F221,\"00\"))","v":""},{"$f":"IF(OrigTable!F221=\"\",\"\",ScriptText!$E$1&CHAR(10)&ScriptText!$C$1)","v":""},{"$f":"IF(OrigTable!G221=\"\",\"\",ScriptText!$B$1&CHAR(10)&ScriptText!$D$1)","v":""},{"$f":"IF(OrigTable!G221=\"\",\"\",TEXT(OrigTable!G221,\"00\"))","v":""},{"$f":"IF(OrigTable!G221=\"\",\"\",ScriptText!$E$1&CHAR(10)&ScriptText!$C$1)","v":""},221]
["<tr>\n<td>166</td>\n</tr>\n<tr>\n<td>Yes</td>\n161\n<tr>\n<td>Informs taxpayer of a default on a Direct Debit Installment Agreement (DDIA) due to insufficient funds. DDIA payments are electronic payments and not subject to an IRC\n6657 bad check penalty charge.</td>\n</tr>\n<tr>\n<td>BMF Notices</td>\n</tr>",{"$f":"IF(OrigTable!A222=\"\",\"\",ScriptText!$B$1&CHAR(10)&ScriptText!$D$1)","v":"<tr>\n<td>"},{"$f":"IF(OrigTable!A222=\"\",\"\",TEXT(OrigTable!A222,\"00\"))","v":"166"},{"$f":"IF(OrigTable!A222=\"\",\"\",ScriptText!$E$1&CHAR(10)&ScriptText!$C$1)","v":"</td>\n</tr>"},{"$f":"IF(OrigTable!B222=\"\",\"\",ScriptText!$B$1&CHAR(10)&ScriptText!$D$1)","v":"<tr>\n<td>"},{"$f":"IF(OrigTable!B222=\"\",\"\",TEXT(OrigTable!B222,\"00\"))","v":"Yes"},{"$f":"IF(OrigTable!B222=\"\",\"\",ScriptText!$E$1&CHAR(10)&ScriptText!C217)","v":"</td>\n161"},{"$f":"IF(OrigTable!C222=\"\",\"\",ScriptText!$B$1&CHAR(10)&ScriptText!$D$1)","v":"<tr>\n<td>"},{"$f":"IF(OrigTable!C222=\"\",\"\",IF(LEN(OrigTable!C222)>255,LEFT(OrigTable!C222,250)&\". . .\",OrigTable!C222))","v":"Informs taxpayer of a default on a Direct Debit Installment Agreement (DDIA) due to insufficient funds. DDIA payments are electronic payments and not subject to an IRC\n6657 bad check penalty charge."},{"$f":"IF(OrigTable!C222=\"\",\"\",ScriptText!$E$1&CHAR(10)&ScriptText!$C$1)","v":"</td>\n</tr>"},{"$f":"IF(OrigTable!D222=\"\",\"\",ScriptText!$B$1&CHAR(10)&ScriptText!$D$1)","v":"<tr>\n<td>"},{"$f":"IF(OrigTable!D222=\"\",\"\",TEXT(OrigTable!D222,\"00\"))","v":"BMF Notices"},{"$f":"IF(OrigTable!D222=\"\",\"\",ScriptText!$E$1&CHAR(10)&ScriptText!$C$1)","v":"</td>\n</tr>"},{"$f":"IF(OrigTable!E222=\"\",\"\",ScriptText!$B$1&CHAR(10)&ScriptText!$D$1)","v":""},{"$f":"IF(OrigTable!E222=\"\",\"\",TEXT(OrigTable!E222,\"00\"))","v":""},{"$f":"IF(OrigTable!E222=\"\",\"\",ScriptText!$E$1&CHAR(10)&ScriptText!$C$1)","v":""},{"$f":"IF(OrigTable!F222=\"\",\"\",ScriptText!$B$1&CHAR(10)&ScriptText!$D$1)","v":""},{"$f":"IF(OrigTable!F222=\"\",\"\",TEXT(OrigTable!F222,\"00\"))","v":""},{"$f":"IF(OrigTable!F222=\"\",\"\",ScriptText!$E$1&CHAR(10)&ScriptText!$C$1)","v":""},{"$f":"IF(OrigTable!G222=\"\",\"\",ScriptText!$B$1&CHAR(10)&ScriptText!$D$1)","v":""},{"$f":"IF(OrigTable!G222=\"\",\"\",TEXT(OrigTable!G222,\"00\"))","v":""},{"$f":"IF(OrigTable!G222=\"\",\"\",ScriptText!$E$1&CHAR(10)&ScriptText!$C$1)","v":""},222]
["<tr>\n<td>169</td>\n</tr>\n<tr>\n<td>No</td>\n162\n<tr>\n<td>Notification that the return filed is missing and requesting that a copy be furnished.</td>\n</tr>\n<tr>\n<td>BMF Notices</td>\n</tr>",{"$f":"IF(OrigTable!A223=\"\",\"\",ScriptText!$B$1&CHAR(10)&ScriptText!$D$1)","v":"<tr>\n<td>"},{"$f":"IF(OrigTable!A223=\"\",\"\",TEXT(OrigTable!A223,\"00\"))","v":"169"},{"$f":"IF(OrigTable!A223=\"\",\"\",ScriptText!$E$1&CHAR(10)&ScriptText!$C$1)","v":"</td>\n</tr>"},{"$f":"IF(OrigTable!B223=\"\",\"\",ScriptText!$B$1&CHAR(10)&ScriptText!$D$1)","v":"<tr>\n<td>"},{"$f":"IF(OrigTable!B223=\"\",\"\",TEXT(OrigTable!B223,\"00\"))","v":"No"},{"$f":"IF(OrigTable!B223=\"\",\"\",ScriptText!$E$1&CHAR(10)&ScriptText!C218)","v":"</td>\n162"},{"$f":"IF(OrigTable!C223=\"\",\"\",ScriptText!$B$1&CHAR(10)&ScriptText!$D$1)","v":"<tr>\n<td>"},{"$f":"IF(OrigTable!C223=\"\",\"\",IF(LEN(OrigTable!C223)>255,LEFT(OrigTable!C223,250)&\". . .\",OrigTable!C223))","v":"Notification that the return filed is missing and requesting that a copy be furnished."},{"$f":"IF(OrigTable!C223=\"\",\"\",ScriptText!$E$1&CHAR(10)&ScriptText!$C$1)","v":"</td>\n</tr>"},{"$f":"IF(OrigTable!D223=\"\",\"\",ScriptText!$B$1&CHAR(10)&ScriptText!$D$1)","v":"<tr>\n<td>"},{"$f":"IF(OrigTable!D223=\"\",\"\",TEXT(OrigTable!D223,\"00\"))","v":"BMF Notices"},{"$f":"IF(OrigTable!D223=\"\",\"\",ScriptText!$E$1&CHAR(10)&ScriptText!$C$1)","v":"</td>\n</tr>"},{"$f":"IF(OrigTable!E223=\"\",\"\",ScriptText!$B$1&CHAR(10)&ScriptText!$D$1)","v":""},{"$f":"IF(OrigTable!E223=\"\",\"\",TEXT(OrigTable!E223,\"00\"))","v":""},{"$f":"IF(OrigTable!E223=\"\",\"\",ScriptText!$E$1&CHAR(10)&ScriptText!$C$1)","v":""},{"$f":"IF(OrigTable!F223=\"\",\"\",ScriptText!$B$1&CHAR(10)&ScriptText!$D$1)","v":""},{"$f":"IF(OrigTable!F223=\"\",\"\",TEXT(OrigTable!F223,\"00\"))","v":""},{"$f":"IF(OrigTable!F223=\"\",\"\",ScriptText!$E$1&CHAR(10)&ScriptText!$C$1)","v":""},{"$f":"IF(OrigTable!G223=\"\",\"\",ScriptText!$B$1&CHAR(10)&ScriptText!$D$1)","v":""},{"$f":"IF(OrigTable!G223=\"\",\"\",TEXT(OrigTable!G223,\"00\"))","v":""},{"$f":"IF(OrigTable!G223=\"\",\"\",ScriptText!$E$1&CHAR(10)&ScriptText!$C$1)","v":""},223]
["<tr>\n<td>170</td>\n</tr>\n<tr>\n<td>No</td>\n163\n<tr>\n<td>Campus only notice : that a duplicate return tried to post from a TC 370 (doc. code 51)</td>\n</tr>\n<tr>\n<td>BMF Notices</td>\n</tr>",{"$f":"IF(OrigTable!A224=\"\",\"\",ScriptText!$B$1&CHAR(10)&ScriptText!$D$1)","v":"<tr>\n<td>"},{"$f":"IF(OrigTable!A224=\"\",\"\",TEXT(OrigTable!A224,\"00\"))","v":"170"},{"$f":"IF(OrigTable!A224=\"\",\"\",ScriptText!$E$1&CHAR(10)&ScriptText!$C$1)","v":"</td>\n</tr>"},{"$f":"IF(OrigTable!B224=\"\",\"\",ScriptText!$B$1&CHAR(10)&ScriptText!$D$1)","v":"<tr>\n<td>"},{"$f":"IF(OrigTable!B224=\"\",\"\",TEXT(OrigTable!B224,\"00\"))","v":"No"},{"$f":"IF(OrigTable!B224=\"\",\"\",ScriptText!$E$1&CHAR(10)&ScriptText!C219)","v":"</td>\n163"},{"$f":"IF(OrigTable!C224=\"\",\"\",ScriptText!$B$1&CHAR(10)&ScriptText!$D$1)","v":"<tr>\n<td>"},{"$f":"IF(OrigTable!C224=\"\",\"\",IF(LEN(OrigTable!C224)>255,LEFT(OrigTable!C224,250)&\". . .\",OrigTable!C224))","v":"Campus only notice : that a duplicate return tried to post from a TC 370 (doc. code 51)"},{"$f":"IF(OrigTable!C224=\"\",\"\",ScriptText!$E$1&CHAR(10)&ScriptText!$C$1)","v":"</td>\n</tr>"},{"$f":"IF(OrigTable!D224=\"\",\"\",ScriptText!$B$1&CHAR(10)&ScriptText!$D$1)","v":"<tr>\n<td>"},{"$f":"IF(OrigTable!D224=\"\",\"\",TEXT(OrigTable!D224,\"00\"))","v":"BMF Notices"},{"$f":"IF(OrigTable!D224=\"\",\"\",ScriptText!$E$1&CHAR(10)&ScriptText!$C$1)","v":"</td>\n</tr>"},{"$f":"IF(OrigTable!E224=\"\",\"\",ScriptText!$B$1&CHAR(10)&ScriptText!$D$1)","v":""},{"$f":"IF(OrigTable!E224=\"\",\"\",TEXT(OrigTable!E224,\"00\"))","v":""},{"$f":"IF(OrigTable!E224=\"\",\"\",ScriptText!$E$1&CHAR(10)&ScriptText!$C$1)","v":""},{"$f":"IF(OrigTable!F224=\"\",\"\",ScriptText!$B$1&CHAR(10)&ScriptText!$D$1)","v":""},{"$f":"IF(OrigTable!F224=\"\",\"\",TEXT(OrigTable!F224,\"00\"))","v":""},{"$f":"IF(OrigTable!F224=\"\",\"\",ScriptText!$E$1&CHAR(10)&ScriptText!$C$1)","v":""},{"$f":"IF(OrigTable!G224=\"\",\"\",ScriptText!$B$1&CHAR(10)&ScriptText!$D$1)","v":""},{"$f":"IF(OrigTable!G224=\"\",\"\",TEXT(OrigTable!G224,\"00\"))","v":""},{"$f":"IF(OrigTable!G224=\"\",\"\",ScriptText!$E$1&CHAR(10)&ScriptText!$C$1)","v":""},224]
["<tr>\n<td>171</td>\n</tr>\n<tr>\n<td>Yes</td>\n164\n<tr>\n<td>Generated annually as a reminder to the taxpayer of balance due tax modules in status\n24. Will reflect CSCO return addresses and ACS telephone numbers. The tolerance is\n$25.00.</td>\n</tr>\n<tr>\n<td>BMF Notices</td>\n</tr>",{"$f":"IF(OrigTable!A225=\"\",\"\",ScriptText!$B$1&CHAR(10)&ScriptText!$D$1)","v":"<tr>\n<td>"},{"$f":"IF(OrigTable!A225=\"\",\"\",TEXT(OrigTable!A225,\"00\"))","v":"171"},{"$f":"IF(OrigTable!A225=\"\",\"\",ScriptText!$E$1&CHAR(10)&ScriptText!$C$1)","v":"</td>\n</tr>"},{"$f":"IF(OrigTable!B225=\"\",\"\",ScriptText!$B$1&CHAR(10)&ScriptText!$D$1)","v":"<tr>\n<td>"},{"$f":"IF(OrigTable!B225=\"\",\"\",TEXT(OrigTable!B225,\"00\"))","v":"Yes"},{"$f":"IF(OrigTable!B225=\"\",\"\",ScriptText!$E$1&CHAR(10)&ScriptText!C220)","v":"</td>\n164"},{"$f":"IF(OrigTable!C225=\"\",\"\",ScriptText!$B$1&CHAR(10)&ScriptText!$D$1)","v":"<tr>\n<td>"},{"$f":"IF(OrigTable!C225=\"\",\"\",IF(LEN(OrigTable!C225)>255,LEFT(OrigTable!C225,250)&\". . .\",OrigTable!C225))","v":"Generated annually as a reminder to the taxpayer of balance due tax modules in status\n24. Will reflect CSCO return addresses and ACS telephone numbers. The tolerance is\n$25.00."},{"$f":"IF(OrigTable!C225=\"\",\"\",ScriptText!$E$1&CHAR(10)&ScriptText!$C$1)","v":"</td>\n</tr>"},{"$f":"IF(OrigTable!D225=\"\",\"\",ScriptText!$B$1&CHAR(10)&ScriptText!$D$1)","v":"<tr>\n<td>"},{"$f":"IF(OrigTable!D225=\"\",\"\",TEXT(OrigTable!D225,\"00\"))","v":"BMF Notices"},{"$f":"IF(OrigTable!D225=\"\",\"\",ScriptText!$E$1&CHAR(10)&ScriptText!$C$1)","v":"</td>\n</tr>"},{"$f":"IF(OrigTable!E225=\"\",\"\",ScriptText!$B$1&CHAR(10)&ScriptText!$D$1)","v":""},{"$f":"IF(OrigTable!E225=\"\",\"\",TEXT(OrigTable!E225,\"00\"))","v":""},{"$f":"IF(OrigTable!E225=\"\",\"\",ScriptText!$E$1&CHAR(10)&ScriptText!$C$1)","v":""},{"$f":"IF(OrigTable!F225=\"\",\"\",ScriptText!$B$1&CHAR(10)&ScriptText!$D$1)","v":""},{"$f":"IF(OrigTable!F225=\"\",\"\",TEXT(OrigTable!F225,\"00\"))","v":""},{"$f":"IF(OrigTable!F225=\"\",\"\",ScriptText!$E$1&CHAR(10)&ScriptText!$C$1)","v":""},{"$f":"IF(OrigTable!G225=\"\",\"\",ScriptText!$B$1&CHAR(10)&ScriptText!$D$1)","v":""},{"$f":"IF(OrigTable!G225=\"\",\"\",TEXT(OrigTable!G225,\"00\"))","v":""},{"$f":"IF(OrigTable!G225=\"\",\"\",ScriptText!$E$1&CHAR(10)&ScriptText!$C$1)","v":""},225]
["<tr>\n<td>172</td>\n</tr>\n\n<tr>\n<td>Campus only notice: requesting follow-up action on an entity that was established as\nexempt for Social Security taxes</td>\n</tr>\n<tr>\n<td>BMF Notices</td>\n</tr>",{"$f":"IF(OrigTable!A226=\"\",\"\",ScriptText!$B$1&CHAR(10)&ScriptText!$D$1)","v":"<tr>\n<td>"},{"$f":"IF(OrigTable!A226=\"\",\"\",TEXT(OrigTable!A226,\"00\"))","v":"172"},{"$f":"IF(OrigTable!A226=\"\",\"\",ScriptText!$E$1&CHAR(10)&ScriptText!$C$1)","v":"</td>\n</tr>"},{"$f":"IF(OrigTable!B226=\"\",\"\",ScriptText!$B$1&CHAR(10)&ScriptText!$D$1)","v":""},{"$f":"IF(OrigTable!B226=\"\",\"\",TEXT(OrigTable!B226,\"00\"))","v":""},{"$f":"IF(OrigTable!B226=\"\",\"\",ScriptText!$E$1&CHAR(10)&ScriptText!C221)","v":""},{"$f":"IF(OrigTable!C226=\"\",\"\",ScriptText!$B$1&CHAR(10)&ScriptText!$D$1)","v":"<tr>\n<td>"},{"$f":"IF(OrigTable!C226=\"\",\"\",IF(LEN(OrigTable!C226)>255,LEFT(OrigTable!C226,250)&\". . .\",OrigTable!C226))","v":"Campus only notice: requesting follow-up action on an entity that was established as\nexempt for Social Security taxes"},{"$f":"IF(OrigTable!C226=\"\",\"\",ScriptText!$E$1&CHAR(10)&ScriptText!$C$1)","v":"</td>\n</tr>"},{"$f":"IF(OrigTable!D226=\"\",\"\",ScriptText!$B$1&CHAR(10)&ScriptText!$D$1)","v":"<tr>\n<td>"},{"$f":"IF(OrigTable!D226=\"\",\"\",TEXT(OrigTable!D226,\"00\"))","v":"BMF Notices"},{"$f":"IF(OrigTable!D226=\"\",\"\",ScriptText!$E$1&CHAR(10)&ScriptText!$C$1)","v":"</td>\n</tr>"},{"$f":"IF(OrigTable!E226=\"\",\"\",ScriptText!$B$1&CHAR(10)&ScriptText!$D$1)","v":""},{"$f":"IF(OrigTable!E226=\"\",\"\",TEXT(OrigTable!E226,\"00\"))","v":""},{"$f":"IF(OrigTable!E226=\"\",\"\",ScriptText!$E$1&CHAR(10)&ScriptText!$C$1)","v":""},{"$f":"IF(OrigTable!F226=\"\",\"\",ScriptText!$B$1&CHAR(10)&ScriptText!$D$1)","v":""},{"$f":"IF(OrigTable!F226=\"\",\"\",TEXT(OrigTable!F226,\"00\"))","v":""},{"$f":"IF(OrigTable!F226=\"\",\"\",ScriptText!$E$1&CHAR(10)&ScriptText!$C$1)","v":""},{"$f":"IF(OrigTable!G226=\"\",\"\",ScriptText!$B$1&CHAR(10)&ScriptText!$D$1)","v":""},{"$f":"IF(OrigTable!G226=\"\",\"\",TEXT(OrigTable!G226,\"00\"))","v":""},{"$f":"IF(OrigTable!G226=\"\",\"\",ScriptText!$E$1&CHAR(10)&ScriptText!$C$1)","v":""},226]
["<tr>\n<td>173</td>\n</tr>\n<tr>\n<td>No</td>\n166\n<tr>\n<td>Notification of Estimated Tax Penalty due on Form 1120 series, 1041, 990-C, 990-T and\n990-PF.</td>\n</tr>\n<tr>\n<td>BMF Notices</td>\n</tr>",{"$f":"IF(OrigTable!A227=\"\",\"\",ScriptText!$B$1&CHAR(10)&ScriptText!$D$1)","v":"<tr>\n<td>"},{"$f":"IF(OrigTable!A227=\"\",\"\",TEXT(OrigTable!A227,\"00\"))","v":"173"},{"$f":"IF(OrigTable!A227=\"\",\"\",ScriptText!$E$1&CHAR(10)&ScriptText!$C$1)","v":"</td>\n</tr>"},{"$f":"IF(OrigTable!B227=\"\",\"\",ScriptText!$B$1&CHAR(10)&ScriptText!$D$1)","v":"<tr>\n<td>"},{"$f":"IF(OrigTable!B227=\"\",\"\",TEXT(OrigTable!B227,\"00\"))","v":"No"},{"$f":"IF(OrigTable!B227=\"\",\"\",ScriptText!$E$1&CHAR(10)&ScriptText!C222)","v":"</td>\n166"},{"$f":"IF(OrigTable!C227=\"\",\"\",ScriptText!$B$1&CHAR(10)&ScriptText!$D$1)","v":"<tr>\n<td>"},{"$f":"IF(OrigTable!C227=\"\",\"\",IF(LEN(OrigTable!C227)>255,LEFT(OrigTable!C227,250)&\". . .\",OrigTable!C227))","v":"Notification of Estimated Tax Penalty due on Form 1120 series, 1041, 990-C, 990-T and\n990-PF."},{"$f":"IF(OrigTable!C227=\"\",\"\",ScriptText!$E$1&CHAR(10)&ScriptText!$C$1)","v":"</td>\n</tr>"},{"$f":"IF(OrigTable!D227=\"\",\"\",ScriptText!$B$1&CHAR(10)&ScriptText!$D$1)","v":"<tr>\n<td>"},{"$f":"IF(OrigTable!D227=\"\",\"\",TEXT(OrigTable!D227,\"00\"))","v":"BMF Notices"},{"$f":"IF(OrigTable!D227=\"\",\"\",ScriptText!$E$1&CHAR(10)&ScriptText!$C$1)","v":"</td>\n</tr>"},{"$f":"IF(OrigTable!E227=\"\",\"\",ScriptText!$B$1&CHAR(10)&ScriptText!$D$1)","v":""},{"$f":"IF(OrigTable!E227=\"\",\"\",TEXT(OrigTable!E227,\"00\"))","v":""},{"$f":"IF(OrigTable!E227=\"\",\"\",ScriptText!$E$1&CHAR(10)&ScriptText!$C$1)","v":""},{"$f":"IF(OrigTable!F227=\"\",\"\",ScriptText!$B$1&CHAR(10)&ScriptText!$D$1)","v":""},{"$f":"IF(OrigTable!F227=\"\",\"\",TEXT(OrigTable!F227,\"00\"))","v":""},{"$f":"IF(OrigTable!F227=\"\",\"\",ScriptText!$E$1&CHAR(10)&ScriptText!$C$1)","v":""},{"$f":"IF(OrigTable!G227=\"\",\"\",ScriptText!$B$1&CHAR(10)&ScriptText!$D$1)","v":""},{"$f":"IF(OrigTable!G227=\"\",\"\",TEXT(OrigTable!G227,\"00\"))","v":""},{"$f":"IF(OrigTable!G227=\"\",\"\",ScriptText!$E$1&CHAR(10)&ScriptText!$C$1)","v":""},227]
["<tr>\n<td>177</td>\n</tr>\n\n<tr>\n<td>177 Notice of Levy and Notice of Your Right to a Hearing (Used for the Alaska\nPermanent Fund Dividend (AKPFD) Levy Program)</td>\n</tr>\n<tr>\n<td>BMF Notices</td>\n</tr>",{"$f":"IF(OrigTable!A228=\"\",\"\",ScriptText!$B$1&CHAR(10)&ScriptText!$D$1)","v":"<tr>\n<td>"},{"$f":"IF(OrigTable!A228=\"\",\"\",TEXT(OrigTable!A228,\"00\"))","v":"177"},{"$f":"IF(OrigTable!A228=\"\",\"\",ScriptText!$E$1&CHAR(10)&ScriptText!$C$1)","v":"</td>\n</tr>"},{"$f":"IF(OrigTable!B228=\"\",\"\",ScriptText!$B$1&CHAR(10)&ScriptText!$D$1)","v":""},{"$f":"IF(OrigTable!B228=\"\",\"\",TEXT(OrigTable!B228,\"00\"))","v":""},{"$f":"IF(OrigTable!B228=\"\",\"\",ScriptText!$E$1&CHAR(10)&ScriptText!C223)","v":""},{"$f":"IF(OrigTable!C228=\"\",\"\",ScriptText!$B$1&CHAR(10)&ScriptText!$D$1)","v":"<tr>\n<td>"},{"$f":"IF(OrigTable!C228=\"\",\"\",IF(LEN(OrigTable!C228)>255,LEFT(OrigTable!C228,250)&\". . .\",OrigTable!C228))","v":"177 Notice of Levy and Notice of Your Right to a Hearing (Used for the Alaska\nPermanent Fund Dividend (AKPFD) Levy Program)"},{"$f":"IF(OrigTable!C228=\"\",\"\",ScriptText!$E$1&CHAR(10)&ScriptText!$C$1)","v":"</td>\n</tr>"},{"$f":"IF(OrigTable!D228=\"\",\"\",ScriptText!$B$1&CHAR(10)&ScriptText!$D$1)","v":"<tr>\n<td>"},{"$f":"IF(OrigTable!D228=\"\",\"\",TEXT(OrigTable!D228,\"00\"))","v":"BMF Notices"},{"$f":"IF(OrigTable!D228=\"\",\"\",ScriptText!$E$1&CHAR(10)&ScriptText!$C$1)","v":"</td>\n</tr>"},{"$f":"IF(OrigTable!E228=\"\",\"\",ScriptText!$B$1&CHAR(10)&ScriptText!$D$1)","v":""},{"$f":"IF(OrigTable!E228=\"\",\"\",TEXT(OrigTable!E228,\"00\"))","v":""},{"$f":"IF(OrigTable!E228=\"\",\"\",ScriptText!$E$1&CHAR(10)&ScriptText!$C$1)","v":""},{"$f":"IF(OrigTable!F228=\"\",\"\",ScriptText!$B$1&CHAR(10)&ScriptText!$D$1)","v":""},{"$f":"IF(OrigTable!F228=\"\",\"\",TEXT(OrigTable!F228,\"00\"))","v":""},{"$f":"IF(OrigTable!F228=\"\",\"\",ScriptText!$E$1&CHAR(10)&ScriptText!$C$1)","v":""},{"$f":"IF(OrigTable!G228=\"\",\"\",ScriptText!$B$1&CHAR(10)&ScriptText!$D$1)","v":""},{"$f":"IF(OrigTable!G228=\"\",\"\",TEXT(OrigTable!G228,\"00\"))","v":""},{"$f":"IF(OrigTable!G228=\"\",\"\",ScriptText!$E$1&CHAR(10)&ScriptText!$C$1)","v":""},228]
["<tr>\n<td>178</td>\n</tr>\n<tr>\n<td>No</td>\n170\n<tr>\n<td>Taxpayer not liable to file Form 720</td>\n</tr>\n<tr>\n<td>BMF Notices</td>\n</tr>",{"$f":"IF(OrigTable!A229=\"\",\"\",ScriptText!$B$1&CHAR(10)&ScriptText!$D$1)","v":"<tr>\n<td>"},{"$f":"IF(OrigTable!A229=\"\",\"\",TEXT(OrigTable!A229,\"00\"))","v":"178"},{"$f":"IF(OrigTable!A229=\"\",\"\",ScriptText!$E$1&CHAR(10)&ScriptText!$C$1)","v":"</td>\n</tr>"},{"$f":"IF(OrigTable!B229=\"\",\"\",ScriptText!$B$1&CHAR(10)&ScriptText!$D$1)","v":"<tr>\n<td>"},{"$f":"IF(OrigTable!B229=\"\",\"\",TEXT(OrigTable!B229,\"00\"))","v":"No"},{"$f":"IF(OrigTable!B229=\"\",\"\",ScriptText!$E$1&CHAR(10)&ScriptText!C224)","v":"</td>\n170"},{"$f":"IF(OrigTable!C229=\"\",\"\",ScriptText!$B$1&CHAR(10)&ScriptText!$D$1)","v":"<tr>\n<td>"},{"$f":"IF(OrigTable!C229=\"\",\"\",IF(LEN(OrigTable!C229)>255,LEFT(OrigTable!C229,250)&\". . .\",OrigTable!C229))","v":"Taxpayer not liable to file Form 720"},{"$f":"IF(OrigTable!C229=\"\",\"\",ScriptText!$E$1&CHAR(10)&ScriptText!$C$1)","v":"</td>\n</tr>"},{"$f":"IF(OrigTable!D229=\"\",\"\",ScriptText!$B$1&CHAR(10)&ScriptText!$D$1)","v":"<tr>\n<td>"},{"$f":"IF(OrigTable!D229=\"\",\"\",TEXT(OrigTable!D229,\"00\"))","v":"BMF Notices"},{"$f":"IF(OrigTable!D229=\"\",\"\",ScriptText!$E$1&CHAR(10)&ScriptText!$C$1)","v":"</td>\n</tr>"},{"$f":"IF(OrigTable!E229=\"\",\"\",ScriptText!$B$1&CHAR(10)&ScriptText!$D$1)","v":""},{"$f":"IF(OrigTable!E229=\"\",\"\",TEXT(OrigTable!E229,\"00\"))","v":""},{"$f":"IF(OrigTable!E229=\"\",\"\",ScriptText!$E$1&CHAR(10)&ScriptText!$C$1)","v":""},{"$f":"IF(OrigTable!F229=\"\",\"\",ScriptText!$B$1&CHAR(10)&ScriptText!$D$1)","v":""},{"$f":"IF(OrigTable!F229=\"\",\"\",TEXT(OrigTable!F229,\"00\"))","v":""},{"$f":"IF(OrigTable!F229=\"\",\"\",ScriptText!$E$1&CHAR(10)&ScriptText!$C$1)","v":""},{"$f":"IF(OrigTable!G229=\"\",\"\",ScriptText!$B$1&CHAR(10)&ScriptText!$D$1)","v":""},{"$f":"IF(OrigTable!G229=\"\",\"\",TEXT(OrigTable!G229,\"00\"))","v":""},{"$f":"IF(OrigTable!G229=\"\",\"\",ScriptText!$E$1&CHAR(10)&ScriptText!$C$1)","v":""},229]
["<tr>\n<td>180</td>\n</tr>\n\n<tr>\n<td>Missing schedule on Form 1120 series (except Form 1120-S), Form 1041, Form 990-C, and Form 990-T</td>\n</tr>\n<tr>\n<td>BMF Notices</td>\n</tr>",{"$f":"IF(OrigTable!A230=\"\",\"\",ScriptText!$B$1&CHAR(10)&ScriptText!$D$1)","v":"<tr>\n<td>"},{"$f":"IF(OrigTable!A230=\"\",\"\",TEXT(OrigTable!A230,\"00\"))","v":"180"},{"$f":"IF(OrigTable!A230=\"\",\"\",ScriptText!$E$1&CHAR(10)&ScriptText!$C$1)","v":"</td>\n</tr>"},{"$f":"IF(OrigTable!B230=\"\",\"\",ScriptText!$B$1&CHAR(10)&ScriptText!$D$1)","v":""},{"$f":"IF(OrigTable!B230=\"\",\"\",TEXT(OrigTable!B230,\"00\"))","v":""},{"$f":"IF(OrigTable!B230=\"\",\"\",ScriptText!$E$1&CHAR(10)&ScriptText!C225)","v":""},{"$f":"IF(OrigTable!C230=\"\",\"\",ScriptText!$B$1&CHAR(10)&ScriptText!$D$1)","v":"<tr>\n<td>"},{"$f":"IF(OrigTable!C230=\"\",\"\",IF(LEN(OrigTable!C230)>255,LEFT(OrigTable!C230,250)&\". . .\",OrigTable!C230))","v":"Missing schedule on Form 1120 series (except Form 1120-S), Form 1041, Form 990-C, and Form 990-T"},{"$f":"IF(OrigTable!C230=\"\",\"\",ScriptText!$E$1&CHAR(10)&ScriptText!$C$1)","v":"</td>\n</tr>"},{"$f":"IF(OrigTable!D230=\"\",\"\",ScriptText!$B$1&CHAR(10)&ScriptText!$D$1)","v":"<tr>\n<td>"},{"$f":"IF(OrigTable!D230=\"\",\"\",TEXT(OrigTable!D230,\"00\"))","v":"BMF Notices"},{"$f":"IF(OrigTable!D230=\"\",\"\",ScriptText!$E$1&CHAR(10)&ScriptText!$C$1)","v":"</td>\n</tr>"},{"$f":"IF(OrigTable!E230=\"\",\"\",ScriptText!$B$1&CHAR(10)&ScriptText!$D$1)","v":""},{"$f":"IF(OrigTable!E230=\"\",\"\",TEXT(OrigTable!E230,\"00\"))","v":""},{"$f":"IF(OrigTable!E230=\"\",\"\",ScriptText!$E$1&CHAR(10)&ScriptText!$C$1)","v":""},{"$f":"IF(OrigTable!F230=\"\",\"\",ScriptText!$B$1&CHAR(10)&ScriptText!$D$1)","v":""},{"$f":"IF(OrigTable!F230=\"\",\"\",TEXT(OrigTable!F230,\"00\"))","v":""},{"$f":"IF(OrigTable!F230=\"\",\"\",ScriptText!$E$1&CHAR(10)&ScriptText!$C$1)","v":""},{"$f":"IF(OrigTable!G230=\"\",\"\",ScriptText!$B$1&CHAR(10)&ScriptText!$D$1)","v":""},{"$f":"IF(OrigTable!G230=\"\",\"\",TEXT(OrigTable!G230,\"00\"))","v":""},{"$f":"IF(OrigTable!G230=\"\",\"\",ScriptText!$E$1&CHAR(10)&ScriptText!$C$1)","v":""},230]
["<tr>\n<td>180B</td>\n</tr>\n\n<tr>\n<td>Corporate Income Tax Return Incomplete – Obsoleted in 2010 per Office of Taxpayer Communication (OTC) email dated November 17, 2021. Keep for Historical information\nand for prior years.</td>\n</tr>\n<tr>\n<td>BMF Notices</td>\n</tr>",{"$f":"IF(OrigTable!A231=\"\",\"\",ScriptText!$B$1&CHAR(10)&ScriptText!$D$1)","v":"<tr>\n<td>"},{"$f":"IF(OrigTable!A231=\"\",\"\",TEXT(OrigTable!A231,\"00\"))","v":"180B"},{"$f":"IF(OrigTable!A231=\"\",\"\",ScriptText!$E$1&CHAR(10)&ScriptText!$C$1)","v":"</td>\n</tr>"},{"$f":"IF(OrigTable!B231=\"\",\"\",ScriptText!$B$1&CHAR(10)&ScriptText!$D$1)","v":""},{"$f":"IF(OrigTable!B231=\"\",\"\",TEXT(OrigTable!B231,\"00\"))","v":""},{"$f":"IF(OrigTable!B231=\"\",\"\",ScriptText!$E$1&CHAR(10)&ScriptText!C226)","v":""},{"$f":"IF(OrigTable!C231=\"\",\"\",ScriptText!$B$1&CHAR(10)&ScriptText!$D$1)","v":"<tr>\n<td>"},{"$f":"IF(OrigTable!C231=\"\",\"\",IF(LEN(OrigTable!C231)>255,LEFT(OrigTable!C231,250)&\". . .\",OrigTable!C231))","v":"Corporate Income Tax Return Incomplete – Obsoleted in 2010 per Office of Taxpayer Communication (OTC) email dated November 17, 2021. Keep for Historical information\nand for prior years."},{"$f":"IF(OrigTable!C231=\"\",\"\",ScriptText!$E$1&CHAR(10)&ScriptText!$C$1)","v":"</td>\n</tr>"},{"$f":"IF(OrigTable!D231=\"\",\"\",ScriptText!$B$1&CHAR(10)&ScriptText!$D$1)","v":"<tr>\n<td>"},{"$f":"IF(OrigTable!D231=\"\",\"\",TEXT(OrigTable!D231,\"00\"))","v":"BMF Notices"},{"$f":"IF(OrigTable!D231=\"\",\"\",ScriptText!$E$1&CHAR(10)&ScriptText!$C$1)","v":"</td>\n</tr>"},{"$f":"IF(OrigTable!E231=\"\",\"\",ScriptText!$B$1&CHAR(10)&ScriptText!$D$1)","v":""},{"$f":"IF(OrigTable!E231=\"\",\"\",TEXT(OrigTable!E231,\"00\"))","v":""},{"$f":"IF(OrigTable!E231=\"\",\"\",ScriptText!$E$1&CHAR(10)&ScriptText!$C$1)","v":""},{"$f":"IF(OrigTable!F231=\"\",\"\",ScriptText!$B$1&CHAR(10)&ScriptText!$D$1)","v":""},{"$f":"IF(OrigTable!F231=\"\",\"\",TEXT(OrigTable!F231,\"00\"))","v":""},{"$f":"IF(OrigTable!F231=\"\",\"\",ScriptText!$E$1&CHAR(10)&ScriptText!$C$1)","v":""},{"$f":"IF(OrigTable!G231=\"\",\"\",ScriptText!$B$1&CHAR(10)&ScriptText!$D$1)","v":""},{"$f":"IF(OrigTable!G231=\"\",\"\",TEXT(OrigTable!G231,\"00\"))","v":""},{"$f":"IF(OrigTable!G231=\"\",\"\",ScriptText!$E$1&CHAR(10)&ScriptText!$C$1)","v":""},231]
["<tr>\n<td>181</td>\n</tr>\n\n<tr>\n<td>Missing schedule on Form 1120 series (except Form 1120-S), Form 1041, Form 990-C,\nand Form 990-T</td>\n</tr>\n<tr>\n<td>BMF Notices</td>\n</tr>",{"$f":"IF(OrigTable!A232=\"\",\"\",ScriptText!$B$1&CHAR(10)&ScriptText!$D$1)","v":"<tr>\n<td>"},{"$f":"IF(OrigTable!A232=\"\",\"\",TEXT(OrigTable!A232,\"00\"))","v":"181"},{"$f":"IF(OrigTable!A232=\"\",\"\",ScriptText!$E$1&CHAR(10)&ScriptText!$C$1)","v":"</td>\n</tr>"},{"$f":"IF(OrigTable!B232=\"\",\"\",ScriptText!$B$1&CHAR(10)&ScriptText!$D$1)","v":""},{"$f":"IF(OrigTable!B232=\"\",\"\",TEXT(OrigTable!B232,\"00\"))","v":""},{"$f":"IF(OrigTable!B232=\"\",\"\",ScriptText!$E$1&CHAR(10)&ScriptText!C227)","v":""},{"$f":"IF(OrigTable!C232=\"\",\"\",ScriptText!$B$1&CHAR(10)&ScriptText!$D$1)","v":"<tr>\n<td>"},{"$f":"IF(OrigTable!C232=\"\",\"\",IF(LEN(OrigTable!C232)>255,LEFT(OrigTable!C232,250)&\". . .\",OrigTable!C232))","v":"Missing schedule on Form 1120 series (except Form 1120-S), Form 1041, Form 990-C,\nand Form 990-T"},{"$f":"IF(OrigTable!C232=\"\",\"\",ScriptText!$E$1&CHAR(10)&ScriptText!$C$1)","v":"</td>\n</tr>"},{"$f":"IF(OrigTable!D232=\"\",\"\",ScriptText!$B$1&CHAR(10)&ScriptText!$D$1)","v":"<tr>\n<td>"},{"$f":"IF(OrigTable!D232=\"\",\"\",TEXT(OrigTable!D232,\"00\"))","v":"BMF Notices"},{"$f":"IF(OrigTable!D232=\"\",\"\",ScriptText!$E$1&CHAR(10)&ScriptText!$C$1)","v":"</td>\n</tr>"},{"$f":"IF(OrigTable!E232=\"\",\"\",ScriptText!$B$1&CHAR(10)&ScriptText!$D$1)","v":""},{"$f":"IF(OrigTable!E232=\"\",\"\",TEXT(OrigTable!E232,\"00\"))","v":""},{"$f":"IF(OrigTable!E232=\"\",\"\",ScriptText!$E$1&CHAR(10)&ScriptText!$C$1)","v":""},{"$f":"IF(OrigTable!F232=\"\",\"\",ScriptText!$B$1&CHAR(10)&ScriptText!$D$1)","v":""},{"$f":"IF(OrigTable!F232=\"\",\"\",TEXT(OrigTable!F232,\"00\"))","v":""},{"$f":"IF(OrigTable!F232=\"\",\"\",ScriptText!$E$1&CHAR(10)&ScriptText!$C$1)","v":""},{"$f":"IF(OrigTable!G232=\"\",\"\",ScriptText!$B$1&CHAR(10)&ScriptText!$D$1)","v":""},{"$f":"IF(OrigTable!G232=\"\",\"\",TEXT(OrigTable!G232,\"00\"))","v":""},{"$f":"IF(OrigTable!G232=\"\",\"\",ScriptText!$E$1&CHAR(10)&ScriptText!$C$1)","v":""},232]
["<tr>\n<td>181B</td>\n</tr>\n\n<tr>\n<td>Corporate Income Tax Return Incomplete – Obsoleted in 2010 per Office of Taxpayer Communication (OTC) email dated November 17, 2021. Keep for Historical information and for prior years.</td>\n</tr>\n<tr>\n<td>BMF Notices</td>\n</tr>",{"$f":"IF(OrigTable!A233=\"\",\"\",ScriptText!$B$1&CHAR(10)&ScriptText!$D$1)","v":"<tr>\n<td>"},{"$f":"IF(OrigTable!A233=\"\",\"\",TEXT(OrigTable!A233,\"00\"))","v":"181B"},{"$f":"IF(OrigTable!A233=\"\",\"\",ScriptText!$E$1&CHAR(10)&ScriptText!$C$1)","v":"</td>\n</tr>"},{"$f":"IF(OrigTable!B233=\"\",\"\",ScriptText!$B$1&CHAR(10)&ScriptText!$D$1)","v":""},{"$f":"IF(OrigTable!B233=\"\",\"\",TEXT(OrigTable!B233,\"00\"))","v":""},{"$f":"IF(OrigTable!B233=\"\",\"\",ScriptText!$E$1&CHAR(10)&ScriptText!C228)","v":""},{"$f":"IF(OrigTable!C233=\"\",\"\",ScriptText!$B$1&CHAR(10)&ScriptText!$D$1)","v":"<tr>\n<td>"},{"$f":"IF(OrigTable!C233=\"\",\"\",IF(LEN(OrigTable!C233)>255,LEFT(OrigTable!C233,250)&\". . .\",OrigTable!C233))","v":"Corporate Income Tax Return Incomplete – Obsoleted in 2010 per Office of Taxpayer Communication (OTC) email dated November 17, 2021. Keep for Historical information and for prior years."},{"$f":"IF(OrigTable!C233=\"\",\"\",ScriptText!$E$1&CHAR(10)&ScriptText!$C$1)","v":"</td>\n</tr>"},{"$f":"IF(OrigTable!D233=\"\",\"\",ScriptText!$B$1&CHAR(10)&ScriptText!$D$1)","v":"<tr>\n<td>"},{"$f":"IF(OrigTable!D233=\"\",\"\",TEXT(OrigTable!D233,\"00\"))","v":"BMF Notices"},{"$f":"IF(OrigTable!D233=\"\",\"\",ScriptText!$E$1&CHAR(10)&ScriptText!$C$1)","v":"</td>\n</tr>"},{"$f":"IF(OrigTable!E233=\"\",\"\",ScriptText!$B$1&CHAR(10)&ScriptText!$D$1)","v":""},{"$f":"IF(OrigTable!E233=\"\",\"\",TEXT(OrigTable!E233,\"00\"))","v":""},{"$f":"IF(OrigTable!E233=\"\",\"\",ScriptText!$E$1&CHAR(10)&ScriptText!$C$1)","v":""},{"$f":"IF(OrigTable!F233=\"\",\"\",ScriptText!$B$1&CHAR(10)&ScriptText!$D$1)","v":""},{"$f":"IF(OrigTable!F233=\"\",\"\",TEXT(OrigTable!F233,\"00\"))","v":""},{"$f":"IF(OrigTable!F233=\"\",\"\",ScriptText!$E$1&CHAR(10)&ScriptText!$C$1)","v":""},{"$f":"IF(OrigTable!G233=\"\",\"\",ScriptText!$B$1&CHAR(10)&ScriptText!$D$1)","v":""},{"$f":"IF(OrigTable!G233=\"\",\"\",TEXT(OrigTable!G233,\"00\"))","v":""},{"$f":"IF(OrigTable!G233=\"\",\"\",ScriptText!$E$1&CHAR(10)&ScriptText!$C$1)","v":""},233]
["<tr>\n<td>182</td>\n</tr>\n\n<tr>\n<td>Missing Form 3468 on Form 1120, Form 1120-C, Form 1120-F, Form 1120-POL, Form 1041, Form 990-C, and Form 990-T</td>\n</tr>\n<tr>\n<td>BMF Notices</td>\n</tr>",{"$f":"IF(OrigTable!A234=\"\",\"\",ScriptText!$B$1&CHAR(10)&ScriptText!$D$1)","v":"<tr>\n<td>"},{"$f":"IF(OrigTable!A234=\"\",\"\",TEXT(OrigTable!A234,\"00\"))","v":"182"},{"$f":"IF(OrigTable!A234=\"\",\"\",ScriptText!$E$1&CHAR(10)&ScriptText!$C$1)","v":"</td>\n</tr>"},{"$f":"IF(OrigTable!B234=\"\",\"\",ScriptText!$B$1&CHAR(10)&ScriptText!$D$1)","v":""},{"$f":"IF(OrigTable!B234=\"\",\"\",TEXT(OrigTable!B234,\"00\"))","v":""},{"$f":"IF(OrigTable!B234=\"\",\"\",ScriptText!$E$1&CHAR(10)&ScriptText!C229)","v":""},{"$f":"IF(OrigTable!C234=\"\",\"\",ScriptText!$B$1&CHAR(10)&ScriptText!$D$1)","v":"<tr>\n<td>"},{"$f":"IF(OrigTable!C234=\"\",\"\",IF(LEN(OrigTable!C234)>255,LEFT(OrigTable!C234,250)&\". . .\",OrigTable!C234))","v":"Missing Form 3468 on Form 1120, Form 1120-C, Form 1120-F, Form 1120-POL, Form 1041, Form 990-C, and Form 990-T"},{"$f":"IF(OrigTable!C234=\"\",\"\",ScriptText!$E$1&CHAR(10)&ScriptText!$C$1)","v":"</td>\n</tr>"},{"$f":"IF(OrigTable!D234=\"\",\"\",ScriptText!$B$1&CHAR(10)&ScriptText!$D$1)","v":"<tr>\n<td>"},{"$f":"IF(OrigTable!D234=\"\",\"\",TEXT(OrigTable!D234,\"00\"))","v":"BMF Notices"},{"$f":"IF(OrigTable!D234=\"\",\"\",ScriptText!$E$1&CHAR(10)&ScriptText!$C$1)","v":"</td>\n</tr>"},{"$f":"IF(OrigTable!E234=\"\",\"\",ScriptText!$B$1&CHAR(10)&ScriptText!$D$1)","v":""},{"$f":"IF(OrigTable!E234=\"\",\"\",TEXT(OrigTable!E234,\"00\"))","v":""},{"$f":"IF(OrigTable!E234=\"\",\"\",ScriptText!$E$1&CHAR(10)&ScriptText!$C$1)","v":""},{"$f":"IF(OrigTable!F234=\"\",\"\",ScriptText!$B$1&CHAR(10)&ScriptText!$D$1)","v":""},{"$f":"IF(OrigTable!F234=\"\",\"\",TEXT(OrigTable!F234,\"00\"))","v":""},{"$f":"IF(OrigTable!F234=\"\",\"\",ScriptText!$E$1&CHAR(10)&ScriptText!$C$1)","v":""},{"$f":"IF(OrigTable!G234=\"\",\"\",ScriptText!$B$1&CHAR(10)&ScriptText!$D$1)","v":""},{"$f":"IF(OrigTable!G234=\"\",\"\",TEXT(OrigTable!G234,\"00\"))","v":""},{"$f":"IF(OrigTable!G234=\"\",\"\",ScriptText!$E$1&CHAR(10)&ScriptText!$C$1)","v":""},234]
["<tr>\n<td>182B</td>\n</tr>\n\n<tr>\n<td>Estate/Trust Tax return incomplete – Obsoleted in 2010 (Obsoleted on SNIP in 2021) per\nOffice of Taxpayer Communication (OTC) email dated November 17, 2021. Keep for Historical information and for prior years.</td>\n</tr>\n<tr>\n<td>BMF Notices</td>\n</tr>",{"$f":"IF(OrigTable!A235=\"\",\"\",ScriptText!$B$1&CHAR(10)&ScriptText!$D$1)","v":"<tr>\n<td>"},{"$f":"IF(OrigTable!A235=\"\",\"\",TEXT(OrigTable!A235,\"00\"))","v":"182B"},{"$f":"IF(OrigTable!A235=\"\",\"\",ScriptText!$E$1&CHAR(10)&ScriptText!$C$1)","v":"</td>\n</tr>"},{"$f":"IF(OrigTable!B235=\"\",\"\",ScriptText!$B$1&CHAR(10)&ScriptText!$D$1)","v":""},{"$f":"IF(OrigTable!B235=\"\",\"\",TEXT(OrigTable!B235,\"00\"))","v":""},{"$f":"IF(OrigTable!B235=\"\",\"\",ScriptText!$E$1&CHAR(10)&ScriptText!C230)","v":""},{"$f":"IF(OrigTable!C235=\"\",\"\",ScriptText!$B$1&CHAR(10)&ScriptText!$D$1)","v":"<tr>\n<td>"},{"$f":"IF(OrigTable!C235=\"\",\"\",IF(LEN(OrigTable!C235)>255,LEFT(OrigTable!C235,250)&\". . .\",OrigTable!C235))","v":"Estate/Trust Tax return incomplete – Obsoleted in 2010 (Obsoleted on SNIP in 2021) per\nOffice of Taxpayer Communication (OTC) email dated November 17, 2021. Keep for Historical information and for prior years."},{"$f":"IF(OrigTable!C235=\"\",\"\",ScriptText!$E$1&CHAR(10)&ScriptText!$C$1)","v":"</td>\n</tr>"},{"$f":"IF(OrigTable!D235=\"\",\"\",ScriptText!$B$1&CHAR(10)&ScriptText!$D$1)","v":"<tr>\n<td>"},{"$f":"IF(OrigTable!D235=\"\",\"\",TEXT(OrigTable!D235,\"00\"))","v":"BMF Notices"},{"$f":"IF(OrigTable!D235=\"\",\"\",ScriptText!$E$1&CHAR(10)&ScriptText!$C$1)","v":"</td>\n</tr>"},{"$f":"IF(OrigTable!E235=\"\",\"\",ScriptText!$B$1&CHAR(10)&ScriptText!$D$1)","v":""},{"$f":"IF(OrigTable!E235=\"\",\"\",TEXT(OrigTable!E235,\"00\"))","v":""},{"$f":"IF(OrigTable!E235=\"\",\"\",ScriptText!$E$1&CHAR(10)&ScriptText!$C$1)","v":""},{"$f":"IF(OrigTable!F235=\"\",\"\",ScriptText!$B$1&CHAR(10)&ScriptText!$D$1)","v":""},{"$f":"IF(OrigTable!F235=\"\",\"\",TEXT(OrigTable!F235,\"00\"))","v":""},{"$f":"IF(OrigTable!F235=\"\",\"\",ScriptText!$E$1&CHAR(10)&ScriptText!$C$1)","v":""},{"$f":"IF(OrigTable!G235=\"\",\"\",ScriptText!$B$1&CHAR(10)&ScriptText!$D$1)","v":""},{"$f":"IF(OrigTable!G235=\"\",\"\",TEXT(OrigTable!G235,\"00\"))","v":""},{"$f":"IF(OrigTable!G235=\"\",\"\",ScriptText!$E$1&CHAR(10)&ScriptText!$C$1)","v":""},235]
["<tr>\n<td>183</td>\n</tr>\n\n<tr>\n<td>Breakdown of Liability By Abstract Number on Form 720</td>\n</tr>\n<tr>\n<td>BMF Notices</td>\n</tr>",{"$f":"IF(OrigTable!A236=\"\",\"\",ScriptText!$B$1&CHAR(10)&ScriptText!$D$1)","v":"<tr>\n<td>"},{"$f":"IF(OrigTable!A236=\"\",\"\",TEXT(OrigTable!A236,\"00\"))","v":"183"},{"$f":"IF(OrigTable!A236=\"\",\"\",ScriptText!$E$1&CHAR(10)&ScriptText!$C$1)","v":"</td>\n</tr>"},{"$f":"IF(OrigTable!B236=\"\",\"\",ScriptText!$B$1&CHAR(10)&ScriptText!$D$1)","v":""},{"$f":"IF(OrigTable!B236=\"\",\"\",TEXT(OrigTable!B236,\"00\"))","v":""},{"$f":"IF(OrigTable!B236=\"\",\"\",ScriptText!$E$1&CHAR(10)&ScriptText!C231)","v":""},{"$f":"IF(OrigTable!C236=\"\",\"\",ScriptText!$B$1&CHAR(10)&ScriptText!$D$1)","v":"<tr>\n<td>"},{"$f":"IF(OrigTable!C236=\"\",\"\",IF(LEN(OrigTable!C236)>255,LEFT(OrigTable!C236,250)&\". . .\",OrigTable!C236))","v":"Breakdown of Liability By Abstract Number on Form 720"},{"$f":"IF(OrigTable!C236=\"\",\"\",ScriptText!$E$1&CHAR(10)&ScriptText!$C$1)","v":"</td>\n</tr>"},{"$f":"IF(OrigTable!D236=\"\",\"\",ScriptText!$B$1&CHAR(10)&ScriptText!$D$1)","v":"<tr>\n<td>"},{"$f":"IF(OrigTable!D236=\"\",\"\",TEXT(OrigTable!D236,\"00\"))","v":"BMF Notices"},{"$f":"IF(OrigTable!D236=\"\",\"\",ScriptText!$E$1&CHAR(10)&ScriptText!$C$1)","v":"</td>\n</tr>"},{"$f":"IF(OrigTable!E236=\"\",\"\",ScriptText!$B$1&CHAR(10)&ScriptText!$D$1)","v":""},{"$f":"IF(OrigTable!E236=\"\",\"\",TEXT(OrigTable!E236,\"00\"))","v":""},{"$f":"IF(OrigTable!E236=\"\",\"\",ScriptText!$E$1&CHAR(10)&ScriptText!$C$1)","v":""},{"$f":"IF(OrigTable!F236=\"\",\"\",ScriptText!$B$1&CHAR(10)&ScriptText!$D$1)","v":""},{"$f":"IF(OrigTable!F236=\"\",\"\",TEXT(OrigTable!F236,\"00\"))","v":""},{"$f":"IF(OrigTable!F236=\"\",\"\",ScriptText!$E$1&CHAR(10)&ScriptText!$C$1)","v":""},{"$f":"IF(OrigTable!G236=\"\",\"\",ScriptText!$B$1&CHAR(10)&ScriptText!$D$1)","v":""},{"$f":"IF(OrigTable!G236=\"\",\"\",TEXT(OrigTable!G236,\"00\"))","v":""},{"$f":"IF(OrigTable!G236=\"\",\"\",ScriptText!$E$1&CHAR(10)&ScriptText!$C$1)","v":""},236]
["<tr>\n<td>185</td>\n</tr>\n<tr>\n<td>No</td>\n181\n<tr>\n<td>Campus notice only: that a TC 690 (Designated Payment of Penalty) posted assessment of the penalty is posted.</td>\n</tr>\n<tr>\n<td>BMF Notices</td>\n</tr>",{"$f":"IF(OrigTable!A237=\"\",\"\",ScriptText!$B$1&CHAR(10)&ScriptText!$D$1)","v":"<tr>\n<td>"},{"$f":"IF(OrigTable!A237=\"\",\"\",TEXT(OrigTable!A237,\"00\"))","v":"185"},{"$f":"IF(OrigTable!A237=\"\",\"\",ScriptText!$E$1&CHAR(10)&ScriptText!$C$1)","v":"</td>\n</tr>"},{"$f":"IF(OrigTable!B237=\"\",\"\",ScriptText!$B$1&CHAR(10)&ScriptText!$D$1)","v":"<tr>\n<td>"},{"$f":"IF(OrigTable!B237=\"\",\"\",TEXT(OrigTable!B237,\"00\"))","v":"No"},{"$f":"IF(OrigTable!B237=\"\",\"\",ScriptText!$E$1&CHAR(10)&ScriptText!C232)","v":"</td>\n181"},{"$f":"IF(OrigTable!C237=\"\",\"\",ScriptText!$B$1&CHAR(10)&ScriptText!$D$1)","v":"<tr>\n<td>"},{"$f":"IF(OrigTable!C237=\"\",\"\",IF(LEN(OrigTable!C237)>255,LEFT(OrigTable!C237,250)&\". . .\",OrigTable!C237))","v":"Campus notice only: that a TC 690 (Designated Payment of Penalty) posted assessment of the penalty is posted."},{"$f":"IF(OrigTable!C237=\"\",\"\",ScriptText!$E$1&CHAR(10)&ScriptText!$C$1)","v":"</td>\n</tr>"},{"$f":"IF(OrigTable!D237=\"\",\"\",ScriptText!$B$1&CHAR(10)&ScriptText!$D$1)","v":"<tr>\n<td>"},{"$f":"IF(OrigTable!D237=\"\",\"\",TEXT(OrigTable!D237,\"00\"))","v":"BMF Notices"},{"$f":"IF(OrigTable!D237=\"\",\"\",ScriptText!$E$1&CHAR(10)&ScriptText!$C$1)","v":"</td>\n</tr>"},{"$f":"IF(OrigTable!E237=\"\",\"\",ScriptText!$B$1&CHAR(10)&ScriptText!$D$1)","v":""},{"$f":"IF(OrigTable!E237=\"\",\"\",TEXT(OrigTable!E237,\"00\"))","v":""},{"$f":"IF(OrigTable!E237=\"\",\"\",ScriptText!$E$1&CHAR(10)&ScriptText!$C$1)","v":""},{"$f":"IF(OrigTable!F237=\"\",\"\",ScriptText!$B$1&CHAR(10)&ScriptText!$D$1)","v":""},{"$f":"IF(OrigTable!F237=\"\",\"\",TEXT(OrigTable!F237,\"00\"))","v":""},{"$f":"IF(OrigTable!F237=\"\",\"\",ScriptText!$E$1&CHAR(10)&ScriptText!$C$1)","v":""},{"$f":"IF(OrigTable!G237=\"\",\"\",ScriptText!$B$1&CHAR(10)&ScriptText!$D$1)","v":""},{"$f":"IF(OrigTable!G237=\"\",\"\",TEXT(OrigTable!G237,\"00\"))","v":""},{"$f":"IF(OrigTable!G237=\"\",\"\",ScriptText!$E$1&CHAR(10)&ScriptText!$C$1)","v":""},237]
["<tr>\n<td>186</td>\n</tr>\n<tr>\n<td>No</td>\n181B\n<tr>\n<td>Campus notice only: of a potential manual interest or penalty adjustment.</td>\n</tr>\n<tr>\n<td>BMF Notices</td>\n</tr>",{"$f":"IF(OrigTable!A238=\"\",\"\",ScriptText!$B$1&CHAR(10)&ScriptText!$D$1)","v":"<tr>\n<td>"},{"$f":"IF(OrigTable!A238=\"\",\"\",TEXT(OrigTable!A238,\"00\"))","v":"186"},{"$f":"IF(OrigTable!A238=\"\",\"\",ScriptText!$E$1&CHAR(10)&ScriptText!$C$1)","v":"</td>\n</tr>"},{"$f":"IF(OrigTable!B238=\"\",\"\",ScriptText!$B$1&CHAR(10)&ScriptText!$D$1)","v":"<tr>\n<td>"},{"$f":"IF(OrigTable!B238=\"\",\"\",TEXT(OrigTable!B238,\"00\"))","v":"No"},{"$f":"IF(OrigTable!B238=\"\",\"\",ScriptText!$E$1&CHAR(10)&ScriptText!C233)","v":"</td>\n181B"},{"$f":"IF(OrigTable!C238=\"\",\"\",ScriptText!$B$1&CHAR(10)&ScriptText!$D$1)","v":"<tr>\n<td>"},{"$f":"IF(OrigTable!C238=\"\",\"\",IF(LEN(OrigTable!C238)>255,LEFT(OrigTable!C238,250)&\". . .\",OrigTable!C238))","v":"Campus notice only: of a potential manual interest or penalty adjustment."},{"$f":"IF(OrigTable!C238=\"\",\"\",ScriptText!$E$1&CHAR(10)&ScriptText!$C$1)","v":"</td>\n</tr>"},{"$f":"IF(OrigTable!D238=\"\",\"\",ScriptText!$B$1&CHAR(10)&ScriptText!$D$1)","v":"<tr>\n<td>"},{"$f":"IF(OrigTable!D238=\"\",\"\",TEXT(OrigTable!D238,\"00\"))","v":"BMF Notices"},{"$f":"IF(OrigTable!D238=\"\",\"\",ScriptText!$E$1&CHAR(10)&ScriptText!$C$1)","v":"</td>\n</tr>"},{"$f":"IF(OrigTable!E238=\"\",\"\",ScriptText!$B$1&CHAR(10)&ScriptText!$D$1)","v":""},{"$f":"IF(OrigTable!E238=\"\",\"\",TEXT(OrigTable!E238,\"00\"))","v":""},{"$f":"IF(OrigTable!E238=\"\",\"\",ScriptText!$E$1&CHAR(10)&ScriptText!$C$1)","v":""},{"$f":"IF(OrigTable!F238=\"\",\"\",ScriptText!$B$1&CHAR(10)&ScriptText!$D$1)","v":""},{"$f":"IF(OrigTable!F238=\"\",\"\",TEXT(OrigTable!F238,\"00\"))","v":""},{"$f":"IF(OrigTable!F238=\"\",\"\",ScriptText!$E$1&CHAR(10)&ScriptText!$C$1)","v":""},{"$f":"IF(OrigTable!G238=\"\",\"\",ScriptText!$B$1&CHAR(10)&ScriptText!$D$1)","v":""},{"$f":"IF(OrigTable!G238=\"\",\"\",TEXT(OrigTable!G238,\"00\"))","v":""},{"$f":"IF(OrigTable!G238=\"\",\"\",ScriptText!$E$1&CHAR(10)&ScriptText!$C$1)","v":""},238]
["<tr>\n<td>187</td>\n</tr>\n<tr>\n<td>Yes</td>\n182\n<tr>\n<td>Annual reminder to BMF taxpayers of balance due account in statues 22 or 26.</td>\n</tr>\n<tr>\n<td>BMF Notices</td>\n</tr>",{"$f":"IF(OrigTable!A239=\"\",\"\",ScriptText!$B$1&CHAR(10)&ScriptText!$D$1)","v":"<tr>\n<td>"},{"$f":"IF(OrigTable!A239=\"\",\"\",TEXT(OrigTable!A239,\"00\"))","v":"187"},{"$f":"IF(OrigTable!A239=\"\",\"\",ScriptText!$E$1&CHAR(10)&ScriptText!$C$1)","v":"</td>\n</tr>"},{"$f":"IF(OrigTable!B239=\"\",\"\",ScriptText!$B$1&CHAR(10)&ScriptText!$D$1)","v":"<tr>\n<td>"},{"$f":"IF(OrigTable!B239=\"\",\"\",TEXT(OrigTable!B239,\"00\"))","v":"Yes"},{"$f":"IF(OrigTable!B239=\"\",\"\",ScriptText!$E$1&CHAR(10)&ScriptText!C234)","v":"</td>\n182"},{"$f":"IF(OrigTable!C239=\"\",\"\",ScriptText!$B$1&CHAR(10)&ScriptText!$D$1)","v":"<tr>\n<td>"},{"$f":"IF(OrigTable!C239=\"\",\"\",IF(LEN(OrigTable!C239)>255,LEFT(OrigTable!C239,250)&\". . .\",OrigTable!C239))","v":"Annual reminder to BMF taxpayers of balance due account in statues 22 or 26."},{"$f":"IF(OrigTable!C239=\"\",\"\",ScriptText!$E$1&CHAR(10)&ScriptText!$C$1)","v":"</td>\n</tr>"},{"$f":"IF(OrigTable!D239=\"\",\"\",ScriptText!$B$1&CHAR(10)&ScriptText!$D$1)","v":"<tr>\n<td>"},{"$f":"IF(OrigTable!D239=\"\",\"\",TEXT(OrigTable!D239,\"00\"))","v":"BMF Notices"},{"$f":"IF(OrigTable!D239=\"\",\"\",ScriptText!$E$1&CHAR(10)&ScriptText!$C$1)","v":"</td>\n</tr>"},{"$f":"IF(OrigTable!E239=\"\",\"\",ScriptText!$B$1&CHAR(10)&ScriptText!$D$1)","v":""},{"$f":"IF(OrigTable!E239=\"\",\"\",TEXT(OrigTable!E239,\"00\"))","v":""},{"$f":"IF(OrigTable!E239=\"\",\"\",ScriptText!$E$1&CHAR(10)&ScriptText!$C$1)","v":""},{"$f":"IF(OrigTable!F239=\"\",\"\",ScriptText!$B$1&CHAR(10)&ScriptText!$D$1)","v":""},{"$f":"IF(OrigTable!F239=\"\",\"\",TEXT(OrigTable!F239,\"00\"))","v":""},{"$f":"IF(OrigTable!F239=\"\",\"\",ScriptText!$E$1&CHAR(10)&ScriptText!$C$1)","v":""},{"$f":"IF(OrigTable!G239=\"\",\"\",ScriptText!$B$1&CHAR(10)&ScriptText!$D$1)","v":""},{"$f":"IF(OrigTable!G239=\"\",\"\",TEXT(OrigTable!G239,\"00\"))","v":""},{"$f":"IF(OrigTable!G239=\"\",\"\",ScriptText!$E$1&CHAR(10)&ScriptText!$C$1)","v":""},239]
["<tr>\n<td>188</td>\n</tr>\n<tr>\n<td>No</td>\n182B\n<tr>\n<td>Notification to Collection that a credit is available on a taxpayer’s account for applying to a non-master file balance due. Part 2 of the notice can be used for mailing to the taxpayer.</td>\n</tr>\n<tr>\n<td>BMF Notices</td>\n</tr>",{"$f":"IF(OrigTable!A240=\"\",\"\",ScriptText!$B$1&CHAR(10)&ScriptText!$D$1)","v":"<tr>\n<td>"},{"$f":"IF(OrigTable!A240=\"\",\"\",TEXT(OrigTable!A240,\"00\"))","v":"188"},{"$f":"IF(OrigTable!A240=\"\",\"\",ScriptText!$E$1&CHAR(10)&ScriptText!$C$1)","v":"</td>\n</tr>"},{"$f":"IF(OrigTable!B240=\"\",\"\",ScriptText!$B$1&CHAR(10)&ScriptText!$D$1)","v":"<tr>\n<td>"},{"$f":"IF(OrigTable!B240=\"\",\"\",TEXT(OrigTable!B240,\"00\"))","v":"No"},{"$f":"IF(OrigTable!B240=\"\",\"\",ScriptText!$E$1&CHAR(10)&ScriptText!C235)","v":"</td>\n182B"},{"$f":"IF(OrigTable!C240=\"\",\"\",ScriptText!$B$1&CHAR(10)&ScriptText!$D$1)","v":"<tr>\n<td>"},{"$f":"IF(OrigTable!C240=\"\",\"\",IF(LEN(OrigTable!C240)>255,LEFT(OrigTable!C240,250)&\". . .\",OrigTable!C240))","v":"Notification to Collection that a credit is available on a taxpayer’s account for applying to a non-master file balance due. Part 2 of the notice can be used for mailing to the taxpayer."},{"$f":"IF(OrigTable!C240=\"\",\"\",ScriptText!$E$1&CHAR(10)&ScriptText!$C$1)","v":"</td>\n</tr>"},{"$f":"IF(OrigTable!D240=\"\",\"\",ScriptText!$B$1&CHAR(10)&ScriptText!$D$1)","v":"<tr>\n<td>"},{"$f":"IF(OrigTable!D240=\"\",\"\",TEXT(OrigTable!D240,\"00\"))","v":"BMF Notices"},{"$f":"IF(OrigTable!D240=\"\",\"\",ScriptText!$E$1&CHAR(10)&ScriptText!$C$1)","v":"</td>\n</tr>"},{"$f":"IF(OrigTable!E240=\"\",\"\",ScriptText!$B$1&CHAR(10)&ScriptText!$D$1)","v":""},{"$f":"IF(OrigTable!E240=\"\",\"\",TEXT(OrigTable!E240,\"00\"))","v":""},{"$f":"IF(OrigTable!E240=\"\",\"\",ScriptText!$E$1&CHAR(10)&ScriptText!$C$1)","v":""},{"$f":"IF(OrigTable!F240=\"\",\"\",ScriptText!$B$1&CHAR(10)&ScriptText!$D$1)","v":""},{"$f":"IF(OrigTable!F240=\"\",\"\",TEXT(OrigTable!F240,\"00\"))","v":""},{"$f":"IF(OrigTable!F240=\"\",\"\",ScriptText!$E$1&CHAR(10)&ScriptText!$C$1)","v":""},{"$f":"IF(OrigTable!G240=\"\",\"\",ScriptText!$B$1&CHAR(10)&ScriptText!$D$1)","v":""},{"$f":"IF(OrigTable!G240=\"\",\"\",TEXT(OrigTable!G240,\"00\"))","v":""},{"$f":"IF(OrigTable!G240=\"\",\"\",ScriptText!$E$1&CHAR(10)&ScriptText!$C$1)","v":""},240]
["<tr>\n<td>190</td>\n</tr>\n<tr>\n<td>No</td>\n183\n<tr>\n<td>Campus notice only: Notification that an amended return was received but an original\nreturn was not received.</td>\n</tr>\n<tr>\n<td>BMF Notices</td>\n</tr>",{"$f":"IF(OrigTable!A241=\"\",\"\",ScriptText!$B$1&CHAR(10)&ScriptText!$D$1)","v":"<tr>\n<td>"},{"$f":"IF(OrigTable!A241=\"\",\"\",TEXT(OrigTable!A241,\"00\"))","v":"190"},{"$f":"IF(OrigTable!A241=\"\",\"\",ScriptText!$E$1&CHAR(10)&ScriptText!$C$1)","v":"</td>\n</tr>"},{"$f":"IF(OrigTable!B241=\"\",\"\",ScriptText!$B$1&CHAR(10)&ScriptText!$D$1)","v":"<tr>\n<td>"},{"$f":"IF(OrigTable!B241=\"\",\"\",TEXT(OrigTable!B241,\"00\"))","v":"No"},{"$f":"IF(OrigTable!B241=\"\",\"\",ScriptText!$E$1&CHAR(10)&ScriptText!C236)","v":"</td>\n183"},{"$f":"IF(OrigTable!C241=\"\",\"\",ScriptText!$B$1&CHAR(10)&ScriptText!$D$1)","v":"<tr>\n<td>"},{"$f":"IF(OrigTable!C241=\"\",\"\",IF(LEN(OrigTable!C241)>255,LEFT(OrigTable!C241,250)&\". . .\",OrigTable!C241))","v":"Campus notice only: Notification that an amended return was received but an original\nreturn was not received."},{"$f":"IF(OrigTable!C241=\"\",\"\",ScriptText!$E$1&CHAR(10)&ScriptText!$C$1)","v":"</td>\n</tr>"},{"$f":"IF(OrigTable!D241=\"\",\"\",ScriptText!$B$1&CHAR(10)&ScriptText!$D$1)","v":"<tr>\n<td>"},{"$f":"IF(OrigTable!D241=\"\",\"\",TEXT(OrigTable!D241,\"00\"))","v":"BMF Notices"},{"$f":"IF(OrigTable!D241=\"\",\"\",ScriptText!$E$1&CHAR(10)&ScriptText!$C$1)","v":"</td>\n</tr>"},{"$f":"IF(OrigTable!E241=\"\",\"\",ScriptText!$B$1&CHAR(10)&ScriptText!$D$1)","v":""},{"$f":"IF(OrigTable!E241=\"\",\"\",TEXT(OrigTable!E241,\"00\"))","v":""},{"$f":"IF(OrigTable!E241=\"\",\"\",ScriptText!$E$1&CHAR(10)&ScriptText!$C$1)","v":""},{"$f":"IF(OrigTable!F241=\"\",\"\",ScriptText!$B$1&CHAR(10)&ScriptText!$D$1)","v":""},{"$f":"IF(OrigTable!F241=\"\",\"\",TEXT(OrigTable!F241,\"00\"))","v":""},{"$f":"IF(OrigTable!F241=\"\",\"\",ScriptText!$E$1&CHAR(10)&ScriptText!$C$1)","v":""},{"$f":"IF(OrigTable!G241=\"\",\"\",ScriptText!$B$1&CHAR(10)&ScriptText!$D$1)","v":""},{"$f":"IF(OrigTable!G241=\"\",\"\",TEXT(OrigTable!G241,\"00\"))","v":""},{"$f":"IF(OrigTable!G241=\"\",\"\",ScriptText!$E$1&CHAR(10)&ScriptText!$C$1)","v":""},241]
["<tr>\n<td>191</td>\n</tr>\n<tr>\n<td>No</td>\n185\n<tr>\n<td>Campus notice only: Notification to SC Accounting to update the installment billing clerks\nfile.</td>\n</tr>\n<tr>\n<td>BMF Notices</td>\n</tr>",{"$f":"IF(OrigTable!A242=\"\",\"\",ScriptText!$B$1&CHAR(10)&ScriptText!$D$1)","v":"<tr>\n<td>"},{"$f":"IF(OrigTable!A242=\"\",\"\",TEXT(OrigTable!A242,\"00\"))","v":"191"},{"$f":"IF(OrigTable!A242=\"\",\"\",ScriptText!$E$1&CHAR(10)&ScriptText!$C$1)","v":"</td>\n</tr>"},{"$f":"IF(OrigTable!B242=\"\",\"\",ScriptText!$B$1&CHAR(10)&ScriptText!$D$1)","v":"<tr>\n<td>"},{"$f":"IF(OrigTable!B242=\"\",\"\",TEXT(OrigTable!B242,\"00\"))","v":"No"},{"$f":"IF(OrigTable!B242=\"\",\"\",ScriptText!$E$1&CHAR(10)&ScriptText!C237)","v":"</td>\n185"},{"$f":"IF(OrigTable!C242=\"\",\"\",ScriptText!$B$1&CHAR(10)&ScriptText!$D$1)","v":"<tr>\n<td>"},{"$f":"IF(OrigTable!C242=\"\",\"\",IF(LEN(OrigTable!C242)>255,LEFT(OrigTable!C242,250)&\". . .\",OrigTable!C242))","v":"Campus notice only: Notification to SC Accounting to update the installment billing clerks\nfile."},{"$f":"IF(OrigTable!C242=\"\",\"\",ScriptText!$E$1&CHAR(10)&ScriptText!$C$1)","v":"</td>\n</tr>"},{"$f":"IF(OrigTable!D242=\"\",\"\",ScriptText!$B$1&CHAR(10)&ScriptText!$D$1)","v":"<tr>\n<td>"},{"$f":"IF(OrigTable!D242=\"\",\"\",TEXT(OrigTable!D242,\"00\"))","v":"BMF Notices"},{"$f":"IF(OrigTable!D242=\"\",\"\",ScriptText!$E$1&CHAR(10)&ScriptText!$C$1)","v":"</td>\n</tr>"},{"$f":"IF(OrigTable!E242=\"\",\"\",ScriptText!$B$1&CHAR(10)&ScriptText!$D$1)","v":""},{"$f":"IF(OrigTable!E242=\"\",\"\",TEXT(OrigTable!E242,\"00\"))","v":""},{"$f":"IF(OrigTable!E242=\"\",\"\",ScriptText!$E$1&CHAR(10)&ScriptText!$C$1)","v":""},{"$f":"IF(OrigTable!F242=\"\",\"\",ScriptText!$B$1&CHAR(10)&ScriptText!$D$1)","v":""},{"$f":"IF(OrigTable!F242=\"\",\"\",TEXT(OrigTable!F242,\"00\"))","v":""},{"$f":"IF(OrigTable!F242=\"\",\"\",ScriptText!$E$1&CHAR(10)&ScriptText!$C$1)","v":""},{"$f":"IF(OrigTable!G242=\"\",\"\",ScriptText!$B$1&CHAR(10)&ScriptText!$D$1)","v":""},{"$f":"IF(OrigTable!G242=\"\",\"\",TEXT(OrigTable!G242,\"00\"))","v":""},{"$f":"IF(OrigTable!G242=\"\",\"\",ScriptText!$E$1&CHAR(10)&ScriptText!$C$1)","v":""},242]
["<tr>\n<td>192</td>\n</tr>\n<tr>\n<td>No</td>\n186\n<tr>\n<td>Campus notice only: Notification to SC that an account with an Employment Code G has filed a Form 941 or 943 with Social Security Wages. Or an account with an Employment\nCode W, F or T filed a Form 940.</td>\n</tr>\n<tr>\n<td>BMF Notices</td>\n</tr>",{"$f":"IF(OrigTable!A243=\"\",\"\",ScriptText!$B$1&CHAR(10)&ScriptText!$D$1)","v":"<tr>\n<td>"},{"$f":"IF(OrigTable!A243=\"\",\"\",TEXT(OrigTable!A243,\"00\"))","v":"192"},{"$f":"IF(OrigTable!A243=\"\",\"\",ScriptText!$E$1&CHAR(10)&ScriptText!$C$1)","v":"</td>\n</tr>"},{"$f":"IF(OrigTable!B243=\"\",\"\",ScriptText!$B$1&CHAR(10)&ScriptText!$D$1)","v":"<tr>\n<td>"},{"$f":"IF(OrigTable!B243=\"\",\"\",TEXT(OrigTable!B243,\"00\"))","v":"No"},{"$f":"IF(OrigTable!B243=\"\",\"\",ScriptText!$E$1&CHAR(10)&ScriptText!C238)","v":"</td>\n186"},{"$f":"IF(OrigTable!C243=\"\",\"\",ScriptText!$B$1&CHAR(10)&ScriptText!$D$1)","v":"<tr>\n<td>"},{"$f":"IF(OrigTable!C243=\"\",\"\",IF(LEN(OrigTable!C243)>255,LEFT(OrigTable!C243,250)&\". . .\",OrigTable!C243))","v":"Campus notice only: Notification to SC that an account with an Employment Code G has filed a Form 941 or 943 with Social Security Wages. Or an account with an Employment\nCode W, F or T filed a Form 940."},{"$f":"IF(OrigTable!C243=\"\",\"\",ScriptText!$E$1&CHAR(10)&ScriptText!$C$1)","v":"</td>\n</tr>"},{"$f":"IF(OrigTable!D243=\"\",\"\",ScriptText!$B$1&CHAR(10)&ScriptText!$D$1)","v":"<tr>\n<td>"},{"$f":"IF(OrigTable!D243=\"\",\"\",TEXT(OrigTable!D243,\"00\"))","v":"BMF Notices"},{"$f":"IF(OrigTable!D243=\"\",\"\",ScriptText!$E$1&CHAR(10)&ScriptText!$C$1)","v":"</td>\n</tr>"},{"$f":"IF(OrigTable!E243=\"\",\"\",ScriptText!$B$1&CHAR(10)&ScriptText!$D$1)","v":""},{"$f":"IF(OrigTable!E243=\"\",\"\",TEXT(OrigTable!E243,\"00\"))","v":""},{"$f":"IF(OrigTable!E243=\"\",\"\",ScriptText!$E$1&CHAR(10)&ScriptText!$C$1)","v":""},{"$f":"IF(OrigTable!F243=\"\",\"\",ScriptText!$B$1&CHAR(10)&ScriptText!$D$1)","v":""},{"$f":"IF(OrigTable!F243=\"\",\"\",TEXT(OrigTable!F243,\"00\"))","v":""},{"$f":"IF(OrigTable!F243=\"\",\"\",ScriptText!$E$1&CHAR(10)&ScriptText!$C$1)","v":""},{"$f":"IF(OrigTable!G243=\"\",\"\",ScriptText!$B$1&CHAR(10)&ScriptText!$D$1)","v":""},{"$f":"IF(OrigTable!G243=\"\",\"\",TEXT(OrigTable!G243,\"00\"))","v":""},{"$f":"IF(OrigTable!G243=\"\",\"\",ScriptText!$E$1&CHAR(10)&ScriptText!$C$1)","v":""},243]
["<tr>\n<td>193</td>\n</tr>\n<tr>\n<td>No</td>\n187\n<tr>\n<td>Campus notice only: Notification to SC Adjustments that a duplicate or amended return\nposted to a tax module with an original return posted.</td>\n</tr>\n<tr>\n<td>BMF Notices</td>\n</tr>",{"$f":"IF(OrigTable!A244=\"\",\"\",ScriptText!$B$1&CHAR(10)&ScriptText!$D$1)","v":"<tr>\n<td>"},{"$f":"IF(OrigTable!A244=\"\",\"\",TEXT(OrigTable!A244,\"00\"))","v":"193"},{"$f":"IF(OrigTable!A244=\"\",\"\",ScriptText!$E$1&CHAR(10)&ScriptText!$C$1)","v":"</td>\n</tr>"},{"$f":"IF(OrigTable!B244=\"\",\"\",ScriptText!$B$1&CHAR(10)&ScriptText!$D$1)","v":"<tr>\n<td>"},{"$f":"IF(OrigTable!B244=\"\",\"\",TEXT(OrigTable!B244,\"00\"))","v":"No"},{"$f":"IF(OrigTable!B244=\"\",\"\",ScriptText!$E$1&CHAR(10)&ScriptText!C239)","v":"</td>\n187"},{"$f":"IF(OrigTable!C244=\"\",\"\",ScriptText!$B$1&CHAR(10)&ScriptText!$D$1)","v":"<tr>\n<td>"},{"$f":"IF(OrigTable!C244=\"\",\"\",IF(LEN(OrigTable!C244)>255,LEFT(OrigTable!C244,250)&\". . .\",OrigTable!C244))","v":"Campus notice only: Notification to SC Adjustments that a duplicate or amended return\nposted to a tax module with an original return posted."},{"$f":"IF(OrigTable!C244=\"\",\"\",ScriptText!$E$1&CHAR(10)&ScriptText!$C$1)","v":"</td>\n</tr>"},{"$f":"IF(OrigTable!D244=\"\",\"\",ScriptText!$B$1&CHAR(10)&ScriptText!$D$1)","v":"<tr>\n<td>"},{"$f":"IF(OrigTable!D244=\"\",\"\",TEXT(OrigTable!D244,\"00\"))","v":"BMF Notices"},{"$f":"IF(OrigTable!D244=\"\",\"\",ScriptText!$E$1&CHAR(10)&ScriptText!$C$1)","v":"</td>\n</tr>"},{"$f":"IF(OrigTable!E244=\"\",\"\",ScriptText!$B$1&CHAR(10)&ScriptText!$D$1)","v":""},{"$f":"IF(OrigTable!E244=\"\",\"\",TEXT(OrigTable!E244,\"00\"))","v":""},{"$f":"IF(OrigTable!E244=\"\",\"\",ScriptText!$E$1&CHAR(10)&ScriptText!$C$1)","v":""},{"$f":"IF(OrigTable!F244=\"\",\"\",ScriptText!$B$1&CHAR(10)&ScriptText!$D$1)","v":""},{"$f":"IF(OrigTable!F244=\"\",\"\",TEXT(OrigTable!F244,\"00\"))","v":""},{"$f":"IF(OrigTable!F244=\"\",\"\",ScriptText!$E$1&CHAR(10)&ScriptText!$C$1)","v":""},{"$f":"IF(OrigTable!G244=\"\",\"\",ScriptText!$B$1&CHAR(10)&ScriptText!$D$1)","v":""},{"$f":"IF(OrigTable!G244=\"\",\"\",TEXT(OrigTable!G244,\"00\"))","v":""},{"$f":"IF(OrigTable!G244=\"\",\"\",ScriptText!$E$1&CHAR(10)&ScriptText!$C$1)","v":""},244]
["<tr>\n<td>194</td>\n</tr>\n<tr>\n<td>No</td>\n188\n<tr>\n<td>Campus notice only: Notification to SC Accounting that an account is not complying with FTD requirements or a dishonored FTD transaction after the return posted. A letter to the\ntaxpayer may be issued.</td>\n</tr>\n<tr>\n<td>BMF Notices</td>\n</tr>",{"$f":"IF(OrigTable!A245=\"\",\"\",ScriptText!$B$1&CHAR(10)&ScriptText!$D$1)","v":"<tr>\n<td>"},{"$f":"IF(OrigTable!A245=\"\",\"\",TEXT(OrigTable!A245,\"00\"))","v":"194"},{"$f":"IF(OrigTable!A245=\"\",\"\",ScriptText!$E$1&CHAR(10)&ScriptText!$C$1)","v":"</td>\n</tr>"},{"$f":"IF(OrigTable!B245=\"\",\"\",ScriptText!$B$1&CHAR(10)&ScriptText!$D$1)","v":"<tr>\n<td>"},{"$f":"IF(OrigTable!B245=\"\",\"\",TEXT(OrigTable!B245,\"00\"))","v":"No"},{"$f":"IF(OrigTable!B245=\"\",\"\",ScriptText!$E$1&CHAR(10)&ScriptText!C240)","v":"</td>\n188"},{"$f":"IF(OrigTable!C245=\"\",\"\",ScriptText!$B$1&CHAR(10)&ScriptText!$D$1)","v":"<tr>\n<td>"},{"$f":"IF(OrigTable!C245=\"\",\"\",IF(LEN(OrigTable!C245)>255,LEFT(OrigTable!C245,250)&\". . .\",OrigTable!C245))","v":"Campus notice only: Notification to SC Accounting that an account is not complying with FTD requirements or a dishonored FTD transaction after the return posted. A letter to the\ntaxpayer may be issued."},{"$f":"IF(OrigTable!C245=\"\",\"\",ScriptText!$E$1&CHAR(10)&ScriptText!$C$1)","v":"</td>\n</tr>"},{"$f":"IF(OrigTable!D245=\"\",\"\",ScriptText!$B$1&CHAR(10)&ScriptText!$D$1)","v":"<tr>\n<td>"},{"$f":"IF(OrigTable!D245=\"\",\"\",TEXT(OrigTable!D245,\"00\"))","v":"BMF Notices"},{"$f":"IF(OrigTable!D245=\"\",\"\",ScriptText!$E$1&CHAR(10)&ScriptText!$C$1)","v":"</td>\n</tr>"},{"$f":"IF(OrigTable!E245=\"\",\"\",ScriptText!$B$1&CHAR(10)&ScriptText!$D$1)","v":""},{"$f":"IF(OrigTable!E245=\"\",\"\",TEXT(OrigTable!E245,\"00\"))","v":""},{"$f":"IF(OrigTable!E245=\"\",\"\",ScriptText!$E$1&CHAR(10)&ScriptText!$C$1)","v":""},{"$f":"IF(OrigTable!F245=\"\",\"\",ScriptText!$B$1&CHAR(10)&ScriptText!$D$1)","v":""},{"$f":"IF(OrigTable!F245=\"\",\"\",TEXT(OrigTable!F245,\"00\"))","v":""},{"$f":"IF(OrigTable!F245=\"\",\"\",ScriptText!$E$1&CHAR(10)&ScriptText!$C$1)","v":""},{"$f":"IF(OrigTable!G245=\"\",\"\",ScriptText!$B$1&CHAR(10)&ScriptText!$D$1)","v":""},{"$f":"IF(OrigTable!G245=\"\",\"\",TEXT(OrigTable!G245,\"00\"))","v":""},{"$f":"IF(OrigTable!G245=\"\",\"\",ScriptText!$E$1&CHAR(10)&ScriptText!$C$1)","v":""},245]
["<tr>\n<td>195</td>\n</tr>\n<tr>\n<td>No</td>\n190\n<tr>\n<td>Campus notice only: Notification to SC Adjustments that an unresolved manual refund freeze has been on for seven weeks.</td>\n</tr>\n<tr>\n<td>BMF Notices</td>\n</tr>",{"$f":"IF(OrigTable!A246=\"\",\"\",ScriptText!$B$1&CHAR(10)&ScriptText!$D$1)","v":"<tr>\n<td>"},{"$f":"IF(OrigTable!A246=\"\",\"\",TEXT(OrigTable!A246,\"00\"))","v":"195"},{"$f":"IF(OrigTable!A246=\"\",\"\",ScriptText!$E$1&CHAR(10)&ScriptText!$C$1)","v":"</td>\n</tr>"},{"$f":"IF(OrigTable!B246=\"\",\"\",ScriptText!$B$1&CHAR(10)&ScriptText!$D$1)","v":"<tr>\n<td>"},{"$f":"IF(OrigTable!B246=\"\",\"\",TEXT(OrigTable!B246,\"00\"))","v":"No"},{"$f":"IF(OrigTable!B246=\"\",\"\",ScriptText!$E$1&CHAR(10)&ScriptText!C241)","v":"</td>\n190"},{"$f":"IF(OrigTable!C246=\"\",\"\",ScriptText!$B$1&CHAR(10)&ScriptText!$D$1)","v":"<tr>\n<td>"},{"$f":"IF(OrigTable!C246=\"\",\"\",IF(LEN(OrigTable!C246)>255,LEFT(OrigTable!C246,250)&\". . .\",OrigTable!C246))","v":"Campus notice only: Notification to SC Adjustments that an unresolved manual refund freeze has been on for seven weeks."},{"$f":"IF(OrigTable!C246=\"\",\"\",ScriptText!$E$1&CHAR(10)&ScriptText!$C$1)","v":"</td>\n</tr>"},{"$f":"IF(OrigTable!D246=\"\",\"\",ScriptText!$B$1&CHAR(10)&ScriptText!$D$1)","v":"<tr>\n<td>"},{"$f":"IF(OrigTable!D246=\"\",\"\",TEXT(OrigTable!D246,\"00\"))","v":"BMF Notices"},{"$f":"IF(OrigTable!D246=\"\",\"\",ScriptText!$E$1&CHAR(10)&ScriptText!$C$1)","v":"</td>\n</tr>"},{"$f":"IF(OrigTable!E246=\"\",\"\",ScriptText!$B$1&CHAR(10)&ScriptText!$D$1)","v":""},{"$f":"IF(OrigTable!E246=\"\",\"\",TEXT(OrigTable!E246,\"00\"))","v":""},{"$f":"IF(OrigTable!E246=\"\",\"\",ScriptText!$E$1&CHAR(10)&ScriptText!$C$1)","v":""},{"$f":"IF(OrigTable!F246=\"\",\"\",ScriptText!$B$1&CHAR(10)&ScriptText!$D$1)","v":""},{"$f":"IF(OrigTable!F246=\"\",\"\",TEXT(OrigTable!F246,\"00\"))","v":""},{"$f":"IF(OrigTable!F246=\"\",\"\",ScriptText!$E$1&CHAR(10)&ScriptText!$C$1)","v":""},{"$f":"IF(OrigTable!G246=\"\",\"\",ScriptText!$B$1&CHAR(10)&ScriptText!$D$1)","v":""},{"$f":"IF(OrigTable!G246=\"\",\"\",TEXT(OrigTable!G246,\"00\"))","v":""},{"$f":"IF(OrigTable!G246=\"\",\"\",ScriptText!$E$1&CHAR(10)&ScriptText!$C$1)","v":""},246]
["<tr>\n<td>198</td>\n</tr>\n<tr>\n<td>No</td>\n191\n<tr>\n<td>Campus notice only: Push Code Condition - a TC150 has posted on a module where a TC930 was previously posted, and/or an unreversed TC590 (CC7)/591/597 has posted</td>\n</tr>\n<tr>\n<td>BMF Notices</td>\n</tr>",{"$f":"IF(OrigTable!A247=\"\",\"\",ScriptText!$B$1&CHAR(10)&ScriptText!$D$1)","v":"<tr>\n<td>"},{"$f":"IF(OrigTable!A247=\"\",\"\",TEXT(OrigTable!A247,\"00\"))","v":"198"},{"$f":"IF(OrigTable!A247=\"\",\"\",ScriptText!$E$1&CHAR(10)&ScriptText!$C$1)","v":"</td>\n</tr>"},{"$f":"IF(OrigTable!B247=\"\",\"\",ScriptText!$B$1&CHAR(10)&ScriptText!$D$1)","v":"<tr>\n<td>"},{"$f":"IF(OrigTable!B247=\"\",\"\",TEXT(OrigTable!B247,\"00\"))","v":"No"},{"$f":"IF(OrigTable!B247=\"\",\"\",ScriptText!$E$1&CHAR(10)&ScriptText!C242)","v":"</td>\n191"},{"$f":"IF(OrigTable!C247=\"\",\"\",ScriptText!$B$1&CHAR(10)&ScriptText!$D$1)","v":"<tr>\n<td>"},{"$f":"IF(OrigTable!C247=\"\",\"\",IF(LEN(OrigTable!C247)>255,LEFT(OrigTable!C247,250)&\". . .\",OrigTable!C247))","v":"Campus notice only: Push Code Condition - a TC150 has posted on a module where a TC930 was previously posted, and/or an unreversed TC590 (CC7)/591/597 has posted"},{"$f":"IF(OrigTable!C247=\"\",\"\",ScriptText!$E$1&CHAR(10)&ScriptText!$C$1)","v":"</td>\n</tr>"},{"$f":"IF(OrigTable!D247=\"\",\"\",ScriptText!$B$1&CHAR(10)&ScriptText!$D$1)","v":"<tr>\n<td>"},{"$f":"IF(OrigTable!D247=\"\",\"\",TEXT(OrigTable!D247,\"00\"))","v":"BMF Notices"},{"$f":"IF(OrigTable!D247=\"\",\"\",ScriptText!$E$1&CHAR(10)&ScriptText!$C$1)","v":"</td>\n</tr>"},{"$f":"IF(OrigTable!E247=\"\",\"\",ScriptText!$B$1&CHAR(10)&ScriptText!$D$1)","v":""},{"$f":"IF(OrigTable!E247=\"\",\"\",TEXT(OrigTable!E247,\"00\"))","v":""},{"$f":"IF(OrigTable!E247=\"\",\"\",ScriptText!$E$1&CHAR(10)&ScriptText!$C$1)","v":""},{"$f":"IF(OrigTable!F247=\"\",\"\",ScriptText!$B$1&CHAR(10)&ScriptText!$D$1)","v":""},{"$f":"IF(OrigTable!F247=\"\",\"\",TEXT(OrigTable!F247,\"00\"))","v":""},{"$f":"IF(OrigTable!F247=\"\",\"\",ScriptText!$E$1&CHAR(10)&ScriptText!$C$1)","v":""},{"$f":"IF(OrigTable!G247=\"\",\"\",ScriptText!$B$1&CHAR(10)&ScriptText!$D$1)","v":""},{"$f":"IF(OrigTable!G247=\"\",\"\",TEXT(OrigTable!G247,\"00\"))","v":""},{"$f":"IF(OrigTable!G247=\"\",\"\",ScriptText!$E$1&CHAR(10)&ScriptText!$C$1)","v":""},247]
["<tr>\n<td>198A</td>\n</tr>\n\n<tr>\n<td>Campus notice only: Push Code Condition</td>\n</tr>\n<tr>\n<td>BMF Notices</td>\n</tr>",{"$f":"IF(OrigTable!A248=\"\",\"\",ScriptText!$B$1&CHAR(10)&ScriptText!$D$1)","v":"<tr>\n<td>"},{"$f":"IF(OrigTable!A248=\"\",\"\",TEXT(OrigTable!A248,\"00\"))","v":"198A"},{"$f":"IF(OrigTable!A248=\"\",\"\",ScriptText!$E$1&CHAR(10)&ScriptText!$C$1)","v":"</td>\n</tr>"},{"$f":"IF(OrigTable!B248=\"\",\"\",ScriptText!$B$1&CHAR(10)&ScriptText!$D$1)","v":""},{"$f":"IF(OrigTable!B248=\"\",\"\",TEXT(OrigTable!B248,\"00\"))","v":""},{"$f":"IF(OrigTable!B248=\"\",\"\",ScriptText!$E$1&CHAR(10)&ScriptText!C243)","v":""},{"$f":"IF(OrigTable!C248=\"\",\"\",ScriptText!$B$1&CHAR(10)&ScriptText!$D$1)","v":"<tr>\n<td>"},{"$f":"IF(OrigTable!C248=\"\",\"\",IF(LEN(OrigTable!C248)>255,LEFT(OrigTable!C248,250)&\". . .\",OrigTable!C248))","v":"Campus notice only: Push Code Condition"},{"$f":"IF(OrigTable!C248=\"\",\"\",ScriptText!$E$1&CHAR(10)&ScriptText!$C$1)","v":"</td>\n</tr>"},{"$f":"IF(OrigTable!D248=\"\",\"\",ScriptText!$B$1&CHAR(10)&ScriptText!$D$1)","v":"<tr>\n<td>"},{"$f":"IF(OrigTable!D248=\"\",\"\",TEXT(OrigTable!D248,\"00\"))","v":"BMF Notices"},{"$f":"IF(OrigTable!D248=\"\",\"\",ScriptText!$E$1&CHAR(10)&ScriptText!$C$1)","v":"</td>\n</tr>"},{"$f":"IF(OrigTable!E248=\"\",\"\",ScriptText!$B$1&CHAR(10)&ScriptText!$D$1)","v":""},{"$f":"IF(OrigTable!E248=\"\",\"\",TEXT(OrigTable!E248,\"00\"))","v":""},{"$f":"IF(OrigTable!E248=\"\",\"\",ScriptText!$E$1&CHAR(10)&ScriptText!$C$1)","v":""},{"$f":"IF(OrigTable!F248=\"\",\"\",ScriptText!$B$1&CHAR(10)&ScriptText!$D$1)","v":""},{"$f":"IF(OrigTable!F248=\"\",\"\",TEXT(OrigTable!F248,\"00\"))","v":""},{"$f":"IF(OrigTable!F248=\"\",\"\",ScriptText!$E$1&CHAR(10)&ScriptText!$C$1)","v":""},{"$f":"IF(OrigTable!G248=\"\",\"\",ScriptText!$B$1&CHAR(10)&ScriptText!$D$1)","v":""},{"$f":"IF(OrigTable!G248=\"\",\"\",TEXT(OrigTable!G248,\"00\"))","v":""},{"$f":"IF(OrigTable!G248=\"\",\"\",ScriptText!$E$1&CHAR(10)&ScriptText!$C$1)","v":""},248]
["<tr>\n<td>200</td>\n</tr>\n\n<tr>\n<td>Campus notice only: Notification that a consolidation of two EINs failed because one\naccount was inactive</td>\n</tr>\n<tr>\n<td>BMF Notices</td>\n</tr>",{"$f":"IF(OrigTable!A249=\"\",\"\",ScriptText!$B$1&CHAR(10)&ScriptText!$D$1)","v":"<tr>\n<td>"},{"$f":"IF(OrigTable!A249=\"\",\"\",TEXT(OrigTable!A249,\"00\"))","v":"200"},{"$f":"IF(OrigTable!A249=\"\",\"\",ScriptText!$E$1&CHAR(10)&ScriptText!$C$1)","v":"</td>\n</tr>"},{"$f":"IF(OrigTable!B249=\"\",\"\",ScriptText!$B$1&CHAR(10)&ScriptText!$D$1)","v":""},{"$f":"IF(OrigTable!B249=\"\",\"\",TEXT(OrigTable!B249,\"00\"))","v":""},{"$f":"IF(OrigTable!B249=\"\",\"\",ScriptText!$E$1&CHAR(10)&ScriptText!C244)","v":""},{"$f":"IF(OrigTable!C249=\"\",\"\",ScriptText!$B$1&CHAR(10)&ScriptText!$D$1)","v":"<tr>\n<td>"},{"$f":"IF(OrigTable!C249=\"\",\"\",IF(LEN(OrigTable!C249)>255,LEFT(OrigTable!C249,250)&\". . .\",OrigTable!C249))","v":"Campus notice only: Notification that a consolidation of two EINs failed because one\naccount was inactive"},{"$f":"IF(OrigTable!C249=\"\",\"\",ScriptText!$E$1&CHAR(10)&ScriptText!$C$1)","v":"</td>\n</tr>"},{"$f":"IF(OrigTable!D249=\"\",\"\",ScriptText!$B$1&CHAR(10)&ScriptText!$D$1)","v":"<tr>\n<td>"},{"$f":"IF(OrigTable!D249=\"\",\"\",TEXT(OrigTable!D249,\"00\"))","v":"BMF Notices"},{"$f":"IF(OrigTable!D249=\"\",\"\",ScriptText!$E$1&CHAR(10)&ScriptText!$C$1)","v":"</td>\n</tr>"},{"$f":"IF(OrigTable!E249=\"\",\"\",ScriptText!$B$1&CHAR(10)&ScriptText!$D$1)","v":""},{"$f":"IF(OrigTable!E249=\"\",\"\",TEXT(OrigTable!E249,\"00\"))","v":""},{"$f":"IF(OrigTable!E249=\"\",\"\",ScriptText!$E$1&CHAR(10)&ScriptText!$C$1)","v":""},{"$f":"IF(OrigTable!F249=\"\",\"\",ScriptText!$B$1&CHAR(10)&ScriptText!$D$1)","v":""},{"$f":"IF(OrigTable!F249=\"\",\"\",TEXT(OrigTable!F249,\"00\"))","v":""},{"$f":"IF(OrigTable!F249=\"\",\"\",ScriptText!$E$1&CHAR(10)&ScriptText!$C$1)","v":""},{"$f":"IF(OrigTable!G249=\"\",\"\",ScriptText!$B$1&CHAR(10)&ScriptText!$D$1)","v":""},{"$f":"IF(OrigTable!G249=\"\",\"\",TEXT(OrigTable!G249,\"00\"))","v":""},{"$f":"IF(OrigTable!G249=\"\",\"\",ScriptText!$E$1&CHAR(10)&ScriptText!$C$1)","v":""},249]
["<tr>\n<td>201</td>\n</tr>\n\n<tr>\n<td>Campus notice only: Notification that a consolidation of two EINs failed because the\nname controls didn’t match.</td>\n</tr>\n<tr>\n<td>BMF Notices</td>\n</tr>",{"$f":"IF(OrigTable!A250=\"\",\"\",ScriptText!$B$1&CHAR(10)&ScriptText!$D$1)","v":"<tr>\n<td>"},{"$f":"IF(OrigTable!A250=\"\",\"\",TEXT(OrigTable!A250,\"00\"))","v":"201"},{"$f":"IF(OrigTable!A250=\"\",\"\",ScriptText!$E$1&CHAR(10)&ScriptText!$C$1)","v":"</td>\n</tr>"},{"$f":"IF(OrigTable!B250=\"\",\"\",ScriptText!$B$1&CHAR(10)&ScriptText!$D$1)","v":""},{"$f":"IF(OrigTable!B250=\"\",\"\",TEXT(OrigTable!B250,\"00\"))","v":""},{"$f":"IF(OrigTable!B250=\"\",\"\",ScriptText!$E$1&CHAR(10)&ScriptText!C245)","v":""},{"$f":"IF(OrigTable!C250=\"\",\"\",ScriptText!$B$1&CHAR(10)&ScriptText!$D$1)","v":"<tr>\n<td>"},{"$f":"IF(OrigTable!C250=\"\",\"\",IF(LEN(OrigTable!C250)>255,LEFT(OrigTable!C250,250)&\". . .\",OrigTable!C250))","v":"Campus notice only: Notification that a consolidation of two EINs failed because the\nname controls didn’t match."},{"$f":"IF(OrigTable!C250=\"\",\"\",ScriptText!$E$1&CHAR(10)&ScriptText!$C$1)","v":"</td>\n</tr>"},{"$f":"IF(OrigTable!D250=\"\",\"\",ScriptText!$B$1&CHAR(10)&ScriptText!$D$1)","v":"<tr>\n<td>"},{"$f":"IF(OrigTable!D250=\"\",\"\",TEXT(OrigTable!D250,\"00\"))","v":"BMF Notices"},{"$f":"IF(OrigTable!D250=\"\",\"\",ScriptText!$E$1&CHAR(10)&ScriptText!$C$1)","v":"</td>\n</tr>"},{"$f":"IF(OrigTable!E250=\"\",\"\",ScriptText!$B$1&CHAR(10)&ScriptText!$D$1)","v":""},{"$f":"IF(OrigTable!E250=\"\",\"\",TEXT(OrigTable!E250,\"00\"))","v":""},{"$f":"IF(OrigTable!E250=\"\",\"\",ScriptText!$E$1&CHAR(10)&ScriptText!$C$1)","v":""},{"$f":"IF(OrigTable!F250=\"\",\"\",ScriptText!$B$1&CHAR(10)&ScriptText!$D$1)","v":""},{"$f":"IF(OrigTable!F250=\"\",\"\",TEXT(OrigTable!F250,\"00\"))","v":""},{"$f":"IF(OrigTable!F250=\"\",\"\",ScriptText!$E$1&CHAR(10)&ScriptText!$C$1)","v":""},{"$f":"IF(OrigTable!G250=\"\",\"\",ScriptText!$B$1&CHAR(10)&ScriptText!$D$1)","v":""},{"$f":"IF(OrigTable!G250=\"\",\"\",TEXT(OrigTable!G250,\"00\"))","v":""},{"$f":"IF(OrigTable!G250=\"\",\"\",ScriptText!$E$1&CHAR(10)&ScriptText!$C$1)","v":""},250]
["<tr>\n<td>202</td>\n</tr>\n<tr>\n<td>No</td>\n195\n<tr>\n<td>Campus notice only: Notification that a consolidation of two EINS failed because the filing\nrequirements weren’t compatible.</td>\n</tr>\n<tr>\n<td>BMF Notices</td>\n</tr>",{"$f":"IF(OrigTable!A251=\"\",\"\",ScriptText!$B$1&CHAR(10)&ScriptText!$D$1)","v":"<tr>\n<td>"},{"$f":"IF(OrigTable!A251=\"\",\"\",TEXT(OrigTable!A251,\"00\"))","v":"202"},{"$f":"IF(OrigTable!A251=\"\",\"\",ScriptText!$E$1&CHAR(10)&ScriptText!$C$1)","v":"</td>\n</tr>"},{"$f":"IF(OrigTable!B251=\"\",\"\",ScriptText!$B$1&CHAR(10)&ScriptText!$D$1)","v":"<tr>\n<td>"},{"$f":"IF(OrigTable!B251=\"\",\"\",TEXT(OrigTable!B251,\"00\"))","v":"No"},{"$f":"IF(OrigTable!B251=\"\",\"\",ScriptText!$E$1&CHAR(10)&ScriptText!C246)","v":"</td>\n195"},{"$f":"IF(OrigTable!C251=\"\",\"\",ScriptText!$B$1&CHAR(10)&ScriptText!$D$1)","v":"<tr>\n<td>"},{"$f":"IF(OrigTable!C251=\"\",\"\",IF(LEN(OrigTable!C251)>255,LEFT(OrigTable!C251,250)&\". . .\",OrigTable!C251))","v":"Campus notice only: Notification that a consolidation of two EINS failed because the filing\nrequirements weren’t compatible."},{"$f":"IF(OrigTable!C251=\"\",\"\",ScriptText!$E$1&CHAR(10)&ScriptText!$C$1)","v":"</td>\n</tr>"},{"$f":"IF(OrigTable!D251=\"\",\"\",ScriptText!$B$1&CHAR(10)&ScriptText!$D$1)","v":"<tr>\n<td>"},{"$f":"IF(OrigTable!D251=\"\",\"\",TEXT(OrigTable!D251,\"00\"))","v":"BMF Notices"},{"$f":"IF(OrigTable!D251=\"\",\"\",ScriptText!$E$1&CHAR(10)&ScriptText!$C$1)","v":"</td>\n</tr>"},{"$f":"IF(OrigTable!E251=\"\",\"\",ScriptText!$B$1&CHAR(10)&ScriptText!$D$1)","v":""},{"$f":"IF(OrigTable!E251=\"\",\"\",TEXT(OrigTable!E251,\"00\"))","v":""},{"$f":"IF(OrigTable!E251=\"\",\"\",ScriptText!$E$1&CHAR(10)&ScriptText!$C$1)","v":""},{"$f":"IF(OrigTable!F251=\"\",\"\",ScriptText!$B$1&CHAR(10)&ScriptText!$D$1)","v":""},{"$f":"IF(OrigTable!F251=\"\",\"\",TEXT(OrigTable!F251,\"00\"))","v":""},{"$f":"IF(OrigTable!F251=\"\",\"\",ScriptText!$E$1&CHAR(10)&ScriptText!$C$1)","v":""},{"$f":"IF(OrigTable!G251=\"\",\"\",ScriptText!$B$1&CHAR(10)&ScriptText!$D$1)","v":""},{"$f":"IF(OrigTable!G251=\"\",\"\",TEXT(OrigTable!G251,\"00\"))","v":""},{"$f":"IF(OrigTable!G251=\"\",\"\",ScriptText!$E$1&CHAR(10)&ScriptText!$C$1)","v":""},251]
["<tr>\n<td>207</td>\n</tr>\n<tr>\n<td>No</td>\n198\n<tr>\n<td>Proposed average FTD Penalty (amounts less than $75,000), request for correct ROFTL Information.</td>\n</tr>\n<tr>\n<td>BMF Notices</td>\n</tr>",{"$f":"IF(OrigTable!A252=\"\",\"\",ScriptText!$B$1&CHAR(10)&ScriptText!$D$1)","v":"<tr>\n<td>"},{"$f":"IF(OrigTable!A252=\"\",\"\",TEXT(OrigTable!A252,\"00\"))","v":"207"},{"$f":"IF(OrigTable!A252=\"\",\"\",ScriptText!$E$1&CHAR(10)&ScriptText!$C$1)","v":"</td>\n</tr>"},{"$f":"IF(OrigTable!B252=\"\",\"\",ScriptText!$B$1&CHAR(10)&ScriptText!$D$1)","v":"<tr>\n<td>"},{"$f":"IF(OrigTable!B252=\"\",\"\",TEXT(OrigTable!B252,\"00\"))","v":"No"},{"$f":"IF(OrigTable!B252=\"\",\"\",ScriptText!$E$1&CHAR(10)&ScriptText!C247)","v":"</td>\n198"},{"$f":"IF(OrigTable!C252=\"\",\"\",ScriptText!$B$1&CHAR(10)&ScriptText!$D$1)","v":"<tr>\n<td>"},{"$f":"IF(OrigTable!C252=\"\",\"\",IF(LEN(OrigTable!C252)>255,LEFT(OrigTable!C252,250)&\". . .\",OrigTable!C252))","v":"Proposed average FTD Penalty (amounts less than $75,000), request for correct ROFTL Information."},{"$f":"IF(OrigTable!C252=\"\",\"\",ScriptText!$E$1&CHAR(10)&ScriptText!$C$1)","v":"</td>\n</tr>"},{"$f":"IF(OrigTable!D252=\"\",\"\",ScriptText!$B$1&CHAR(10)&ScriptText!$D$1)","v":"<tr>\n<td>"},{"$f":"IF(OrigTable!D252=\"\",\"\",TEXT(OrigTable!D252,\"00\"))","v":"BMF Notices"},{"$f":"IF(OrigTable!D252=\"\",\"\",ScriptText!$E$1&CHAR(10)&ScriptText!$C$1)","v":"</td>\n</tr>"},{"$f":"IF(OrigTable!E252=\"\",\"\",ScriptText!$B$1&CHAR(10)&ScriptText!$D$1)","v":""},{"$f":"IF(OrigTable!E252=\"\",\"\",TEXT(OrigTable!E252,\"00\"))","v":""},{"$f":"IF(OrigTable!E252=\"\",\"\",ScriptText!$E$1&CHAR(10)&ScriptText!$C$1)","v":""},{"$f":"IF(OrigTable!F252=\"\",\"\",ScriptText!$B$1&CHAR(10)&ScriptText!$D$1)","v":""},{"$f":"IF(OrigTable!F252=\"\",\"\",TEXT(OrigTable!F252,\"00\"))","v":""},{"$f":"IF(OrigTable!F252=\"\",\"\",ScriptText!$E$1&CHAR(10)&ScriptText!$C$1)","v":""},{"$f":"IF(OrigTable!G252=\"\",\"\",ScriptText!$B$1&CHAR(10)&ScriptText!$D$1)","v":""},{"$f":"IF(OrigTable!G252=\"\",\"\",TEXT(OrigTable!G252,\"00\"))","v":""},{"$f":"IF(OrigTable!G252=\"\",\"\",ScriptText!$E$1&CHAR(10)&ScriptText!$C$1)","v":""},252]
["<tr>\n<td>207L</td>\n</tr>\n\n<tr>\n<td>Proposed FTD Penalty — Request for Correct ROFT Information – Over $100,000</td>\n</tr>\n<tr>\n<td>BMF Notices</td>\n</tr>",{"$f":"IF(OrigTable!A253=\"\",\"\",ScriptText!$B$1&CHAR(10)&ScriptText!$D$1)","v":"<tr>\n<td>"},{"$f":"IF(OrigTable!A253=\"\",\"\",TEXT(OrigTable!A253,\"00\"))","v":"207L"},{"$f":"IF(OrigTable!A253=\"\",\"\",ScriptText!$E$1&CHAR(10)&ScriptText!$C$1)","v":"</td>\n</tr>"},{"$f":"IF(OrigTable!B253=\"\",\"\",ScriptText!$B$1&CHAR(10)&ScriptText!$D$1)","v":""},{"$f":"IF(OrigTable!B253=\"\",\"\",TEXT(OrigTable!B253,\"00\"))","v":""},{"$f":"IF(OrigTable!B253=\"\",\"\",ScriptText!$E$1&CHAR(10)&ScriptText!C248)","v":""},{"$f":"IF(OrigTable!C253=\"\",\"\",ScriptText!$B$1&CHAR(10)&ScriptText!$D$1)","v":"<tr>\n<td>"},{"$f":"IF(OrigTable!C253=\"\",\"\",IF(LEN(OrigTable!C253)>255,LEFT(OrigTable!C253,250)&\". . .\",OrigTable!C253))","v":"Proposed FTD Penalty — Request for Correct ROFT Information – Over $100,000"},{"$f":"IF(OrigTable!C253=\"\",\"\",ScriptText!$E$1&CHAR(10)&ScriptText!$C$1)","v":"</td>\n</tr>"},{"$f":"IF(OrigTable!D253=\"\",\"\",ScriptText!$B$1&CHAR(10)&ScriptText!$D$1)","v":"<tr>\n<td>"},{"$f":"IF(OrigTable!D253=\"\",\"\",TEXT(OrigTable!D253,\"00\"))","v":"BMF Notices"},{"$f":"IF(OrigTable!D253=\"\",\"\",ScriptText!$E$1&CHAR(10)&ScriptText!$C$1)","v":"</td>\n</tr>"},{"$f":"IF(OrigTable!E253=\"\",\"\",ScriptText!$B$1&CHAR(10)&ScriptText!$D$1)","v":""},{"$f":"IF(OrigTable!E253=\"\",\"\",TEXT(OrigTable!E253,\"00\"))","v":""},{"$f":"IF(OrigTable!E253=\"\",\"\",ScriptText!$E$1&CHAR(10)&ScriptText!$C$1)","v":""},{"$f":"IF(OrigTable!F253=\"\",\"\",ScriptText!$B$1&CHAR(10)&ScriptText!$D$1)","v":""},{"$f":"IF(OrigTable!F253=\"\",\"\",TEXT(OrigTable!F253,\"00\"))","v":""},{"$f":"IF(OrigTable!F253=\"\",\"\",ScriptText!$E$1&CHAR(10)&ScriptText!$C$1)","v":""},{"$f":"IF(OrigTable!G253=\"\",\"\",ScriptText!$B$1&CHAR(10)&ScriptText!$D$1)","v":""},{"$f":"IF(OrigTable!G253=\"\",\"\",TEXT(OrigTable!G253,\"00\"))","v":""},{"$f":"IF(OrigTable!G253=\"\",\"\",ScriptText!$E$1&CHAR(10)&ScriptText!$C$1)","v":""},253]
["<tr>\n<td>208</td>\n</tr>\n<tr>\n<td>No</td>\n200\n<tr>\n<td>Campus notice only: Notice of Potential Credit Transfer Form 1041 –P freeze for review</td>\n</tr>\n<tr>\n<td>BMF Notices</td>\n</tr>",{"$f":"IF(OrigTable!A254=\"\",\"\",ScriptText!$B$1&CHAR(10)&ScriptText!$D$1)","v":"<tr>\n<td>"},{"$f":"IF(OrigTable!A254=\"\",\"\",TEXT(OrigTable!A254,\"00\"))","v":"208"},{"$f":"IF(OrigTable!A254=\"\",\"\",ScriptText!$E$1&CHAR(10)&ScriptText!$C$1)","v":"</td>\n</tr>"},{"$f":"IF(OrigTable!B254=\"\",\"\",ScriptText!$B$1&CHAR(10)&ScriptText!$D$1)","v":"<tr>\n<td>"},{"$f":"IF(OrigTable!B254=\"\",\"\",TEXT(OrigTable!B254,\"00\"))","v":"No"},{"$f":"IF(OrigTable!B254=\"\",\"\",ScriptText!$E$1&CHAR(10)&ScriptText!C249)","v":"</td>\n200"},{"$f":"IF(OrigTable!C254=\"\",\"\",ScriptText!$B$1&CHAR(10)&ScriptText!$D$1)","v":"<tr>\n<td>"},{"$f":"IF(OrigTable!C254=\"\",\"\",IF(LEN(OrigTable!C254)>255,LEFT(OrigTable!C254,250)&\". . .\",OrigTable!C254))","v":"Campus notice only: Notice of Potential Credit Transfer Form 1041 –P freeze for review"},{"$f":"IF(OrigTable!C254=\"\",\"\",ScriptText!$E$1&CHAR(10)&ScriptText!$C$1)","v":"</td>\n</tr>"},{"$f":"IF(OrigTable!D254=\"\",\"\",ScriptText!$B$1&CHAR(10)&ScriptText!$D$1)","v":"<tr>\n<td>"},{"$f":"IF(OrigTable!D254=\"\",\"\",TEXT(OrigTable!D254,\"00\"))","v":"BMF Notices"},{"$f":"IF(OrigTable!D254=\"\",\"\",ScriptText!$E$1&CHAR(10)&ScriptText!$C$1)","v":"</td>\n</tr>"},{"$f":"IF(OrigTable!E254=\"\",\"\",ScriptText!$B$1&CHAR(10)&ScriptText!$D$1)","v":""},{"$f":"IF(OrigTable!E254=\"\",\"\",TEXT(OrigTable!E254,\"00\"))","v":""},{"$f":"IF(OrigTable!E254=\"\",\"\",ScriptText!$E$1&CHAR(10)&ScriptText!$C$1)","v":""},{"$f":"IF(OrigTable!F254=\"\",\"\",ScriptText!$B$1&CHAR(10)&ScriptText!$D$1)","v":""},{"$f":"IF(OrigTable!F254=\"\",\"\",TEXT(OrigTable!F254,\"00\"))","v":""},{"$f":"IF(OrigTable!F254=\"\",\"\",ScriptText!$E$1&CHAR(10)&ScriptText!$C$1)","v":""},{"$f":"IF(OrigTable!G254=\"\",\"\",ScriptText!$B$1&CHAR(10)&ScriptText!$D$1)","v":""},{"$f":"IF(OrigTable!G254=\"\",\"\",TEXT(OrigTable!G254,\"00\"))","v":""},{"$f":"IF(OrigTable!G254=\"\",\"\",ScriptText!$E$1&CHAR(10)&ScriptText!$C$1)","v":""},254]
["<tr>\n<td>209</td>\n</tr>\n\n<tr>\n<td>EIN assigned in error.</td>\n</tr>\n<tr>\n<td>BMF Notices</td>\n</tr>",{"$f":"IF(OrigTable!A255=\"\",\"\",ScriptText!$B$1&CHAR(10)&ScriptText!$D$1)","v":"<tr>\n<td>"},{"$f":"IF(OrigTable!A255=\"\",\"\",TEXT(OrigTable!A255,\"00\"))","v":"209"},{"$f":"IF(OrigTable!A255=\"\",\"\",ScriptText!$E$1&CHAR(10)&ScriptText!$C$1)","v":"</td>\n</tr>"},{"$f":"IF(OrigTable!B255=\"\",\"\",ScriptText!$B$1&CHAR(10)&ScriptText!$D$1)","v":""},{"$f":"IF(OrigTable!B255=\"\",\"\",TEXT(OrigTable!B255,\"00\"))","v":""},{"$f":"IF(OrigTable!B255=\"\",\"\",ScriptText!$E$1&CHAR(10)&ScriptText!C250)","v":""},{"$f":"IF(OrigTable!C255=\"\",\"\",ScriptText!$B$1&CHAR(10)&ScriptText!$D$1)","v":"<tr>\n<td>"},{"$f":"IF(OrigTable!C255=\"\",\"\",IF(LEN(OrigTable!C255)>255,LEFT(OrigTable!C255,250)&\". . .\",OrigTable!C255))","v":"EIN assigned in error."},{"$f":"IF(OrigTable!C255=\"\",\"\",ScriptText!$E$1&CHAR(10)&ScriptText!$C$1)","v":"</td>\n</tr>"},{"$f":"IF(OrigTable!D255=\"\",\"\",ScriptText!$B$1&CHAR(10)&ScriptText!$D$1)","v":"<tr>\n<td>"},{"$f":"IF(OrigTable!D255=\"\",\"\",TEXT(OrigTable!D255,\"00\"))","v":"BMF Notices"},{"$f":"IF(OrigTable!D255=\"\",\"\",ScriptText!$E$1&CHAR(10)&ScriptText!$C$1)","v":"</td>\n</tr>"},{"$f":"IF(OrigTable!E255=\"\",\"\",ScriptText!$B$1&CHAR(10)&ScriptText!$D$1)","v":""},{"$f":"IF(OrigTable!E255=\"\",\"\",TEXT(OrigTable!E255,\"00\"))","v":""},{"$f":"IF(OrigTable!E255=\"\",\"\",ScriptText!$E$1&CHAR(10)&ScriptText!$C$1)","v":""},{"$f":"IF(OrigTable!F255=\"\",\"\",ScriptText!$B$1&CHAR(10)&ScriptText!$D$1)","v":""},{"$f":"IF(OrigTable!F255=\"\",\"\",TEXT(OrigTable!F255,\"00\"))","v":""},{"$f":"IF(OrigTable!F255=\"\",\"\",ScriptText!$E$1&CHAR(10)&ScriptText!$C$1)","v":""},{"$f":"IF(OrigTable!G255=\"\",\"\",ScriptText!$B$1&CHAR(10)&ScriptText!$D$1)","v":""},{"$f":"IF(OrigTable!G255=\"\",\"\",TEXT(OrigTable!G255,\"00\"))","v":""},{"$f":"IF(OrigTable!G255=\"\",\"\",ScriptText!$E$1&CHAR(10)&ScriptText!$C$1)","v":""},255]
["<tr>\n<td>210</td>\n</tr>\n\n<tr>\n<td>Notification of Adjustment to tax return resulting in balance due, zero balance or overpayment</td>\n</tr>\n<tr>\n<td>BMF Notices</td>\n</tr>",{"$f":"IF(OrigTable!A256=\"\",\"\",ScriptText!$B$1&CHAR(10)&ScriptText!$D$1)","v":"<tr>\n<td>"},{"$f":"IF(OrigTable!A256=\"\",\"\",TEXT(OrigTable!A256,\"00\"))","v":"210"},{"$f":"IF(OrigTable!A256=\"\",\"\",ScriptText!$E$1&CHAR(10)&ScriptText!$C$1)","v":"</td>\n</tr>"},{"$f":"IF(OrigTable!B256=\"\",\"\",ScriptText!$B$1&CHAR(10)&ScriptText!$D$1)","v":""},{"$f":"IF(OrigTable!B256=\"\",\"\",TEXT(OrigTable!B256,\"00\"))","v":""},{"$f":"IF(OrigTable!B256=\"\",\"\",ScriptText!$E$1&CHAR(10)&ScriptText!C251)","v":""},{"$f":"IF(OrigTable!C256=\"\",\"\",ScriptText!$B$1&CHAR(10)&ScriptText!$D$1)","v":"<tr>\n<td>"},{"$f":"IF(OrigTable!C256=\"\",\"\",IF(LEN(OrigTable!C256)>255,LEFT(OrigTable!C256,250)&\". . .\",OrigTable!C256))","v":"Notification of Adjustment to tax return resulting in balance due, zero balance or overpayment"},{"$f":"IF(OrigTable!C256=\"\",\"\",ScriptText!$E$1&CHAR(10)&ScriptText!$C$1)","v":"</td>\n</tr>"},{"$f":"IF(OrigTable!D256=\"\",\"\",ScriptText!$B$1&CHAR(10)&ScriptText!$D$1)","v":"<tr>\n<td>"},{"$f":"IF(OrigTable!D256=\"\",\"\",TEXT(OrigTable!D256,\"00\"))","v":"BMF Notices"},{"$f":"IF(OrigTable!D256=\"\",\"\",ScriptText!$E$1&CHAR(10)&ScriptText!$C$1)","v":"</td>\n</tr>"},{"$f":"IF(OrigTable!E256=\"\",\"\",ScriptText!$B$1&CHAR(10)&ScriptText!$D$1)","v":""},{"$f":"IF(OrigTable!E256=\"\",\"\",TEXT(OrigTable!E256,\"00\"))","v":""},{"$f":"IF(OrigTable!E256=\"\",\"\",ScriptText!$E$1&CHAR(10)&ScriptText!$C$1)","v":""},{"$f":"IF(OrigTable!F256=\"\",\"\",ScriptText!$B$1&CHAR(10)&ScriptText!$D$1)","v":""},{"$f":"IF(OrigTable!F256=\"\",\"\",TEXT(OrigTable!F256,\"00\"))","v":""},{"$f":"IF(OrigTable!F256=\"\",\"\",ScriptText!$E$1&CHAR(10)&ScriptText!$C$1)","v":""},{"$f":"IF(OrigTable!G256=\"\",\"\",ScriptText!$B$1&CHAR(10)&ScriptText!$D$1)","v":""},{"$f":"IF(OrigTable!G256=\"\",\"\",TEXT(OrigTable!G256,\"00\"))","v":""},{"$f":"IF(OrigTable!G256=\"\",\"\",ScriptText!$E$1&CHAR(10)&ScriptText!$C$1)","v":""},256]
["<tr>\n<td>211A</td>\n</tr>\n\n<tr>\n<td>Application for Extension of Time to File an Exempt Organization Return - Approved</td>\n</tr>\n<tr>\n<td>BMF Notices</td>\n</tr>",{"$f":"IF(OrigTable!A257=\"\",\"\",ScriptText!$B$1&CHAR(10)&ScriptText!$D$1)","v":"<tr>\n<td>"},{"$f":"IF(OrigTable!A257=\"\",\"\",TEXT(OrigTable!A257,\"00\"))","v":"211A"},{"$f":"IF(OrigTable!A257=\"\",\"\",ScriptText!$E$1&CHAR(10)&ScriptText!$C$1)","v":"</td>\n</tr>"},{"$f":"IF(OrigTable!B257=\"\",\"\",ScriptText!$B$1&CHAR(10)&ScriptText!$D$1)","v":""},{"$f":"IF(OrigTable!B257=\"\",\"\",TEXT(OrigTable!B257,\"00\"))","v":""},{"$f":"IF(OrigTable!B257=\"\",\"\",ScriptText!$E$1&CHAR(10)&ScriptText!C252)","v":""},{"$f":"IF(OrigTable!C257=\"\",\"\",ScriptText!$B$1&CHAR(10)&ScriptText!$D$1)","v":"<tr>\n<td>"},{"$f":"IF(OrigTable!C257=\"\",\"\",IF(LEN(OrigTable!C257)>255,LEFT(OrigTable!C257,250)&\". . .\",OrigTable!C257))","v":"Application for Extension of Time to File an Exempt Organization Return - Approved"},{"$f":"IF(OrigTable!C257=\"\",\"\",ScriptText!$E$1&CHAR(10)&ScriptText!$C$1)","v":"</td>\n</tr>"},{"$f":"IF(OrigTable!D257=\"\",\"\",ScriptText!$B$1&CHAR(10)&ScriptText!$D$1)","v":"<tr>\n<td>"},{"$f":"IF(OrigTable!D257=\"\",\"\",TEXT(OrigTable!D257,\"00\"))","v":"BMF Notices"},{"$f":"IF(OrigTable!D257=\"\",\"\",ScriptText!$E$1&CHAR(10)&ScriptText!$C$1)","v":"</td>\n</tr>"},{"$f":"IF(OrigTable!E257=\"\",\"\",ScriptText!$B$1&CHAR(10)&ScriptText!$D$1)","v":""},{"$f":"IF(OrigTable!E257=\"\",\"\",TEXT(OrigTable!E257,\"00\"))","v":""},{"$f":"IF(OrigTable!E257=\"\",\"\",ScriptText!$E$1&CHAR(10)&ScriptText!$C$1)","v":""},{"$f":"IF(OrigTable!F257=\"\",\"\",ScriptText!$B$1&CHAR(10)&ScriptText!$D$1)","v":""},{"$f":"IF(OrigTable!F257=\"\",\"\",TEXT(OrigTable!F257,\"00\"))","v":""},{"$f":"IF(OrigTable!F257=\"\",\"\",ScriptText!$E$1&CHAR(10)&ScriptText!$C$1)","v":""},{"$f":"IF(OrigTable!G257=\"\",\"\",ScriptText!$B$1&CHAR(10)&ScriptText!$D$1)","v":""},{"$f":"IF(OrigTable!G257=\"\",\"\",TEXT(OrigTable!G257,\"00\"))","v":""},{"$f":"IF(OrigTable!G257=\"\",\"\",ScriptText!$E$1&CHAR(10)&ScriptText!$C$1)","v":""},257]
["<tr>\n<td>211B</td>\n</tr>\n\n<tr>\n<td>Application for Extension of Time to File an Exempt Organization Return – Denied – Request Not Signed</td>\n</tr>\n<tr>\n<td>BMF Notices</td>\n</tr>",{"$f":"IF(OrigTable!A258=\"\",\"\",ScriptText!$B$1&CHAR(10)&ScriptText!$D$1)","v":"<tr>\n<td>"},{"$f":"IF(OrigTable!A258=\"\",\"\",TEXT(OrigTable!A258,\"00\"))","v":"211B"},{"$f":"IF(OrigTable!A258=\"\",\"\",ScriptText!$E$1&CHAR(10)&ScriptText!$C$1)","v":"</td>\n</tr>"},{"$f":"IF(OrigTable!B258=\"\",\"\",ScriptText!$B$1&CHAR(10)&ScriptText!$D$1)","v":""},{"$f":"IF(OrigTable!B258=\"\",\"\",TEXT(OrigTable!B258,\"00\"))","v":""},{"$f":"IF(OrigTable!B258=\"\",\"\",ScriptText!$E$1&CHAR(10)&ScriptText!C253)","v":""},{"$f":"IF(OrigTable!C258=\"\",\"\",ScriptText!$B$1&CHAR(10)&ScriptText!$D$1)","v":"<tr>\n<td>"},{"$f":"IF(OrigTable!C258=\"\",\"\",IF(LEN(OrigTable!C258)>255,LEFT(OrigTable!C258,250)&\". . .\",OrigTable!C258))","v":"Application for Extension of Time to File an Exempt Organization Return – Denied – Request Not Signed"},{"$f":"IF(OrigTable!C258=\"\",\"\",ScriptText!$E$1&CHAR(10)&ScriptText!$C$1)","v":"</td>\n</tr>"},{"$f":"IF(OrigTable!D258=\"\",\"\",ScriptText!$B$1&CHAR(10)&ScriptText!$D$1)","v":"<tr>\n<td>"},{"$f":"IF(OrigTable!D258=\"\",\"\",TEXT(OrigTable!D258,\"00\"))","v":"BMF Notices"},{"$f":"IF(OrigTable!D258=\"\",\"\",ScriptText!$E$1&CHAR(10)&ScriptText!$C$1)","v":"</td>\n</tr>"},{"$f":"IF(OrigTable!E258=\"\",\"\",ScriptText!$B$1&CHAR(10)&ScriptText!$D$1)","v":""},{"$f":"IF(OrigTable!E258=\"\",\"\",TEXT(OrigTable!E258,\"00\"))","v":""},{"$f":"IF(OrigTable!E258=\"\",\"\",ScriptText!$E$1&CHAR(10)&ScriptText!$C$1)","v":""},{"$f":"IF(OrigTable!F258=\"\",\"\",ScriptText!$B$1&CHAR(10)&ScriptText!$D$1)","v":""},{"$f":"IF(OrigTable!F258=\"\",\"\",TEXT(OrigTable!F258,\"00\"))","v":""},{"$f":"IF(OrigTable!F258=\"\",\"\",ScriptText!$E$1&CHAR(10)&ScriptText!$C$1)","v":""},{"$f":"IF(OrigTable!G258=\"\",\"\",ScriptText!$B$1&CHAR(10)&ScriptText!$D$1)","v":""},{"$f":"IF(OrigTable!G258=\"\",\"\",TEXT(OrigTable!G258,\"00\"))","v":""},{"$f":"IF(OrigTable!G258=\"\",\"\",ScriptText!$E$1&CHAR(10)&ScriptText!$C$1)","v":""},258]
["<tr>\n<td>211C</td>\n</tr>\n\n<tr>\n<td>Application for Extension of Time to File an Exempt Organization Return – Denied – Request not Timely</td>\n</tr>\n<tr>\n<td>BMF Notices</td>\n</tr>",{"$f":"IF(OrigTable!A259=\"\",\"\",ScriptText!$B$1&CHAR(10)&ScriptText!$D$1)","v":"<tr>\n<td>"},{"$f":"IF(OrigTable!A259=\"\",\"\",TEXT(OrigTable!A259,\"00\"))","v":"211C"},{"$f":"IF(OrigTable!A259=\"\",\"\",ScriptText!$E$1&CHAR(10)&ScriptText!$C$1)","v":"</td>\n</tr>"},{"$f":"IF(OrigTable!B259=\"\",\"\",ScriptText!$B$1&CHAR(10)&ScriptText!$D$1)","v":""},{"$f":"IF(OrigTable!B259=\"\",\"\",TEXT(OrigTable!B259,\"00\"))","v":""},{"$f":"IF(OrigTable!B259=\"\",\"\",ScriptText!$E$1&CHAR(10)&ScriptText!C254)","v":""},{"$f":"IF(OrigTable!C259=\"\",\"\",ScriptText!$B$1&CHAR(10)&ScriptText!$D$1)","v":"<tr>\n<td>"},{"$f":"IF(OrigTable!C259=\"\",\"\",IF(LEN(OrigTable!C259)>255,LEFT(OrigTable!C259,250)&\". . .\",OrigTable!C259))","v":"Application for Extension of Time to File an Exempt Organization Return – Denied – Request not Timely"},{"$f":"IF(OrigTable!C259=\"\",\"\",ScriptText!$E$1&CHAR(10)&ScriptText!$C$1)","v":"</td>\n</tr>"},{"$f":"IF(OrigTable!D259=\"\",\"\",ScriptText!$B$1&CHAR(10)&ScriptText!$D$1)","v":"<tr>\n<td>"},{"$f":"IF(OrigTable!D259=\"\",\"\",TEXT(OrigTable!D259,\"00\"))","v":"BMF Notices"},{"$f":"IF(OrigTable!D259=\"\",\"\",ScriptText!$E$1&CHAR(10)&ScriptText!$C$1)","v":"</td>\n</tr>"},{"$f":"IF(OrigTable!E259=\"\",\"\",ScriptText!$B$1&CHAR(10)&ScriptText!$D$1)","v":""},{"$f":"IF(OrigTable!E259=\"\",\"\",TEXT(OrigTable!E259,\"00\"))","v":""},{"$f":"IF(OrigTable!E259=\"\",\"\",ScriptText!$E$1&CHAR(10)&ScriptText!$C$1)","v":""},{"$f":"IF(OrigTable!F259=\"\",\"\",ScriptText!$B$1&CHAR(10)&ScriptText!$D$1)","v":""},{"$f":"IF(OrigTable!F259=\"\",\"\",TEXT(OrigTable!F259,\"00\"))","v":""},{"$f":"IF(OrigTable!F259=\"\",\"\",ScriptText!$E$1&CHAR(10)&ScriptText!$C$1)","v":""},{"$f":"IF(OrigTable!G259=\"\",\"\",ScriptText!$B$1&CHAR(10)&ScriptText!$D$1)","v":""},{"$f":"IF(OrigTable!G259=\"\",\"\",TEXT(OrigTable!G259,\"00\"))","v":""},{"$f":"IF(OrigTable!G259=\"\",\"\",ScriptText!$E$1&CHAR(10)&ScriptText!$C$1)","v":""},259]
["<tr>\n<td>211D</td>\n</tr>\n\n<tr>\n<td>Application for Extension of Time to File an Exempt Organization Return – Reasonable Cause Not Established</td>\n</tr>\n<tr>\n<td>BMF Notices</td>\n</tr>",{"$f":"IF(OrigTable!A260=\"\",\"\",ScriptText!$B$1&CHAR(10)&ScriptText!$D$1)","v":"<tr>\n<td>"},{"$f":"IF(OrigTable!A260=\"\",\"\",TEXT(OrigTable!A260,\"00\"))","v":"211D"},{"$f":"IF(OrigTable!A260=\"\",\"\",ScriptText!$E$1&CHAR(10)&ScriptText!$C$1)","v":"</td>\n</tr>"},{"$f":"IF(OrigTable!B260=\"\",\"\",ScriptText!$B$1&CHAR(10)&ScriptText!$D$1)","v":""},{"$f":"IF(OrigTable!B260=\"\",\"\",TEXT(OrigTable!B260,\"00\"))","v":""},{"$f":"IF(OrigTable!B260=\"\",\"\",ScriptText!$E$1&CHAR(10)&ScriptText!C255)","v":""},{"$f":"IF(OrigTable!C260=\"\",\"\",ScriptText!$B$1&CHAR(10)&ScriptText!$D$1)","v":"<tr>\n<td>"},{"$f":"IF(OrigTable!C260=\"\",\"\",IF(LEN(OrigTable!C260)>255,LEFT(OrigTable!C260,250)&\". . .\",OrigTable!C260))","v":"Application for Extension of Time to File an Exempt Organization Return – Reasonable Cause Not Established"},{"$f":"IF(OrigTable!C260=\"\",\"\",ScriptText!$E$1&CHAR(10)&ScriptText!$C$1)","v":"</td>\n</tr>"},{"$f":"IF(OrigTable!D260=\"\",\"\",ScriptText!$B$1&CHAR(10)&ScriptText!$D$1)","v":"<tr>\n<td>"},{"$f":"IF(OrigTable!D260=\"\",\"\",TEXT(OrigTable!D260,\"00\"))","v":"BMF Notices"},{"$f":"IF(OrigTable!D260=\"\",\"\",ScriptText!$E$1&CHAR(10)&ScriptText!$C$1)","v":"</td>\n</tr>"},{"$f":"IF(OrigTable!E260=\"\",\"\",ScriptText!$B$1&CHAR(10)&ScriptText!$D$1)","v":""},{"$f":"IF(OrigTable!E260=\"\",\"\",TEXT(OrigTable!E260,\"00\"))","v":""},{"$f":"IF(OrigTable!E260=\"\",\"\",ScriptText!$E$1&CHAR(10)&ScriptText!$C$1)","v":""},{"$f":"IF(OrigTable!F260=\"\",\"\",ScriptText!$B$1&CHAR(10)&ScriptText!$D$1)","v":""},{"$f":"IF(OrigTable!F260=\"\",\"\",TEXT(OrigTable!F260,\"00\"))","v":""},{"$f":"IF(OrigTable!F260=\"\",\"\",ScriptText!$E$1&CHAR(10)&ScriptText!$C$1)","v":""},{"$f":"IF(OrigTable!G260=\"\",\"\",ScriptText!$B$1&CHAR(10)&ScriptText!$D$1)","v":""},{"$f":"IF(OrigTable!G260=\"\",\"\",TEXT(OrigTable!G260,\"00\"))","v":""},{"$f":"IF(OrigTable!G260=\"\",\"\",ScriptText!$E$1&CHAR(10)&ScriptText!$C$1)","v":""},260]
["<tr>\n<td>211E</td>\n</tr>\n\n<tr>\n<td>Application for Extension of Time to File an Exempt Organization Return – Denied -\nGeneral</td>\n</tr>\n<tr>\n<td>BMF Notices</td>\n</tr>",{"$f":"IF(OrigTable!A261=\"\",\"\",ScriptText!$B$1&CHAR(10)&ScriptText!$D$1)","v":"<tr>\n<td>"},{"$f":"IF(OrigTable!A261=\"\",\"\",TEXT(OrigTable!A261,\"00\"))","v":"211E"},{"$f":"IF(OrigTable!A261=\"\",\"\",ScriptText!$E$1&CHAR(10)&ScriptText!$C$1)","v":"</td>\n</tr>"},{"$f":"IF(OrigTable!B261=\"\",\"\",ScriptText!$B$1&CHAR(10)&ScriptText!$D$1)","v":""},{"$f":"IF(OrigTable!B261=\"\",\"\",TEXT(OrigTable!B261,\"00\"))","v":""},{"$f":"IF(OrigTable!B261=\"\",\"\",ScriptText!$E$1&CHAR(10)&ScriptText!C256)","v":""},{"$f":"IF(OrigTable!C261=\"\",\"\",ScriptText!$B$1&CHAR(10)&ScriptText!$D$1)","v":"<tr>\n<td>"},{"$f":"IF(OrigTable!C261=\"\",\"\",IF(LEN(OrigTable!C261)>255,LEFT(OrigTable!C261,250)&\". . .\",OrigTable!C261))","v":"Application for Extension of Time to File an Exempt Organization Return – Denied -\nGeneral"},{"$f":"IF(OrigTable!C261=\"\",\"\",ScriptText!$E$1&CHAR(10)&ScriptText!$C$1)","v":"</td>\n</tr>"},{"$f":"IF(OrigTable!D261=\"\",\"\",ScriptText!$B$1&CHAR(10)&ScriptText!$D$1)","v":"<tr>\n<td>"},{"$f":"IF(OrigTable!D261=\"\",\"\",TEXT(OrigTable!D261,\"00\"))","v":"BMF Notices"},{"$f":"IF(OrigTable!D261=\"\",\"\",ScriptText!$E$1&CHAR(10)&ScriptText!$C$1)","v":"</td>\n</tr>"},{"$f":"IF(OrigTable!E261=\"\",\"\",ScriptText!$B$1&CHAR(10)&ScriptText!$D$1)","v":""},{"$f":"IF(OrigTable!E261=\"\",\"\",TEXT(OrigTable!E261,\"00\"))","v":""},{"$f":"IF(OrigTable!E261=\"\",\"\",ScriptText!$E$1&CHAR(10)&ScriptText!$C$1)","v":""},{"$f":"IF(OrigTable!F261=\"\",\"\",ScriptText!$B$1&CHAR(10)&ScriptText!$D$1)","v":""},{"$f":"IF(OrigTable!F261=\"\",\"\",TEXT(OrigTable!F261,\"00\"))","v":""},{"$f":"IF(OrigTable!F261=\"\",\"\",ScriptText!$E$1&CHAR(10)&ScriptText!$C$1)","v":""},{"$f":"IF(OrigTable!G261=\"\",\"\",ScriptText!$B$1&CHAR(10)&ScriptText!$D$1)","v":""},{"$f":"IF(OrigTable!G261=\"\",\"\",TEXT(OrigTable!G261,\"00\"))","v":""},{"$f":"IF(OrigTable!G261=\"\",\"\",ScriptText!$E$1&CHAR(10)&ScriptText!$C$1)","v":""},261]
["<tr>\n<td>212</td>\n</tr>\n\n<tr>\n<td>Form 5500, EIN Assigned in Error</td>\n</tr>\n<tr>\n<td>BMF Notices</td>\n</tr>",{"$f":"IF(OrigTable!A262=\"\",\"\",ScriptText!$B$1&CHAR(10)&ScriptText!$D$1)","v":"<tr>\n<td>"},{"$f":"IF(OrigTable!A262=\"\",\"\",TEXT(OrigTable!A262,\"00\"))","v":"212"},{"$f":"IF(OrigTable!A262=\"\",\"\",ScriptText!$E$1&CHAR(10)&ScriptText!$C$1)","v":"</td>\n</tr>"},{"$f":"IF(OrigTable!B262=\"\",\"\",ScriptText!$B$1&CHAR(10)&ScriptText!$D$1)","v":""},{"$f":"IF(OrigTable!B262=\"\",\"\",TEXT(OrigTable!B262,\"00\"))","v":""},{"$f":"IF(OrigTable!B262=\"\",\"\",ScriptText!$E$1&CHAR(10)&ScriptText!C257)","v":""},{"$f":"IF(OrigTable!C262=\"\",\"\",ScriptText!$B$1&CHAR(10)&ScriptText!$D$1)","v":"<tr>\n<td>"},{"$f":"IF(OrigTable!C262=\"\",\"\",IF(LEN(OrigTable!C262)>255,LEFT(OrigTable!C262,250)&\". . .\",OrigTable!C262))","v":"Form 5500, EIN Assigned in Error"},{"$f":"IF(OrigTable!C262=\"\",\"\",ScriptText!$E$1&CHAR(10)&ScriptText!$C$1)","v":"</td>\n</tr>"},{"$f":"IF(OrigTable!D262=\"\",\"\",ScriptText!$B$1&CHAR(10)&ScriptText!$D$1)","v":"<tr>\n<td>"},{"$f":"IF(OrigTable!D262=\"\",\"\",TEXT(OrigTable!D262,\"00\"))","v":"BMF Notices"},{"$f":"IF(OrigTable!D262=\"\",\"\",ScriptText!$E$1&CHAR(10)&ScriptText!$C$1)","v":"</td>\n</tr>"},{"$f":"IF(OrigTable!E262=\"\",\"\",ScriptText!$B$1&CHAR(10)&ScriptText!$D$1)","v":""},{"$f":"IF(OrigTable!E262=\"\",\"\",TEXT(OrigTable!E262,\"00\"))","v":""},{"$f":"IF(OrigTable!E262=\"\",\"\",ScriptText!$E$1&CHAR(10)&ScriptText!$C$1)","v":""},{"$f":"IF(OrigTable!F262=\"\",\"\",ScriptText!$B$1&CHAR(10)&ScriptText!$D$1)","v":""},{"$f":"IF(OrigTable!F262=\"\",\"\",TEXT(OrigTable!F262,\"00\"))","v":""},{"$f":"IF(OrigTable!F262=\"\",\"\",ScriptText!$E$1&CHAR(10)&ScriptText!$C$1)","v":""},{"$f":"IF(OrigTable!G262=\"\",\"\",ScriptText!$B$1&CHAR(10)&ScriptText!$D$1)","v":""},{"$f":"IF(OrigTable!G262=\"\",\"\",TEXT(OrigTable!G262,\"00\"))","v":""},{"$f":"IF(OrigTable!G262=\"\",\"\",ScriptText!$E$1&CHAR(10)&ScriptText!$C$1)","v":""},{"$f":"IF(LEN(A262)>3,ROW(),0)","v":262}]
["<tr>\n<td>214</td>\n</tr>\n\n<tr>\n<td>Form 5500-EZ/5500-SF filing requirements reminder, to determine if taxpayer needs to\nfile form</td>\n</tr>\n<tr>\n<td>BMF Notices</td>\n</tr>",{"$f":"IF(OrigTable!A263=\"\",\"\",ScriptText!$B$1&CHAR(10)&ScriptText!$D$1)","v":"<tr>\n<td>"},{"$f":"IF(OrigTable!A263=\"\",\"\",TEXT(OrigTable!A263,\"00\"))","v":"214"},{"$f":"IF(OrigTable!A263=\"\",\"\",ScriptText!$E$1&CHAR(10)&ScriptText!$C$1)","v":"</td>\n</tr>"},{"$f":"IF(OrigTable!B263=\"\",\"\",ScriptText!$B$1&CHAR(10)&ScriptText!$D$1)","v":""},{"$f":"IF(OrigTable!B263=\"\",\"\",TEXT(OrigTable!B263,\"00\"))","v":""},{"$f":"IF(OrigTable!B263=\"\",\"\",ScriptText!$E$1&CHAR(10)&ScriptText!C258)","v":""},{"$f":"IF(OrigTable!C263=\"\",\"\",ScriptText!$B$1&CHAR(10)&ScriptText!$D$1)","v":"<tr>\n<td>"},{"$f":"IF(OrigTable!C263=\"\",\"\",IF(LEN(OrigTable!C263)>255,LEFT(OrigTable!C263,250)&\". . .\",OrigTable!C263))","v":"Form 5500-EZ/5500-SF filing requirements reminder, to determine if taxpayer needs to\nfile form"},{"$f":"IF(OrigTable!C263=\"\",\"\",ScriptText!$E$1&CHAR(10)&ScriptText!$C$1)","v":"</td>\n</tr>"},{"$f":"IF(OrigTable!D263=\"\",\"\",ScriptText!$B$1&CHAR(10)&ScriptText!$D$1)","v":"<tr>\n<td>"},{"$f":"IF(OrigTable!D263=\"\",\"\",TEXT(OrigTable!D263,\"00\"))","v":"BMF Notices"},{"$f":"IF(OrigTable!D263=\"\",\"\",ScriptText!$E$1&CHAR(10)&ScriptText!$C$1)","v":"</td>\n</tr>"},{"$f":"IF(OrigTable!E263=\"\",\"\",ScriptText!$B$1&CHAR(10)&ScriptText!$D$1)","v":""},{"$f":"IF(OrigTable!E263=\"\",\"\",TEXT(OrigTable!E263,\"00\"))","v":""},{"$f":"IF(OrigTable!E263=\"\",\"\",ScriptText!$E$1&CHAR(10)&ScriptText!$C$1)","v":""},{"$f":"IF(OrigTable!F263=\"\",\"\",ScriptText!$B$1&CHAR(10)&ScriptText!$D$1)","v":""},{"$f":"IF(OrigTable!F263=\"\",\"\",TEXT(OrigTable!F263,\"00\"))","v":""},{"$f":"IF(OrigTable!F263=\"\",\"\",ScriptText!$E$1&CHAR(10)&ScriptText!$C$1)","v":""},{"$f":"IF(OrigTable!G263=\"\",\"\",ScriptText!$B$1&CHAR(10)&ScriptText!$D$1)","v":""},{"$f":"IF(OrigTable!G263=\"\",\"\",TEXT(OrigTable!G263,\"00\"))","v":""},{"$f":"IF(OrigTable!G263=\"\",\"\",ScriptText!$E$1&CHAR(10)&ScriptText!$C$1)","v":""},263]
["<tr>\n<td>215</td>\n</tr>\n\n<tr>\n<td>Notification of a Civil Penalty assessment.</td>\n</tr>\n<tr>\n<td>BMF Notices</td>\n</tr>",{"$f":"IF(OrigTable!A264=\"\",\"\",ScriptText!$B$1&CHAR(10)&ScriptText!$D$1)","v":"<tr>\n<td>"},{"$f":"IF(OrigTable!A264=\"\",\"\",TEXT(OrigTable!A264,\"00\"))","v":"215"},{"$f":"IF(OrigTable!A264=\"\",\"\",ScriptText!$E$1&CHAR(10)&ScriptText!$C$1)","v":"</td>\n</tr>"},{"$f":"IF(OrigTable!B264=\"\",\"\",ScriptText!$B$1&CHAR(10)&ScriptText!$D$1)","v":""},{"$f":"IF(OrigTable!B264=\"\",\"\",TEXT(OrigTable!B264,\"00\"))","v":""},{"$f":"IF(OrigTable!B264=\"\",\"\",ScriptText!$E$1&CHAR(10)&ScriptText!C259)","v":""},{"$f":"IF(OrigTable!C264=\"\",\"\",ScriptText!$B$1&CHAR(10)&ScriptText!$D$1)","v":"<tr>\n<td>"},{"$f":"IF(OrigTable!C264=\"\",\"\",IF(LEN(OrigTable!C264)>255,LEFT(OrigTable!C264,250)&\". . .\",OrigTable!C264))","v":"Notification of a Civil Penalty assessment."},{"$f":"IF(OrigTable!C264=\"\",\"\",ScriptText!$E$1&CHAR(10)&ScriptText!$C$1)","v":"</td>\n</tr>"},{"$f":"IF(OrigTable!D264=\"\",\"\",ScriptText!$B$1&CHAR(10)&ScriptText!$D$1)","v":"<tr>\n<td>"},{"$f":"IF(OrigTable!D264=\"\",\"\",TEXT(OrigTable!D264,\"00\"))","v":"BMF Notices"},{"$f":"IF(OrigTable!D264=\"\",\"\",ScriptText!$E$1&CHAR(10)&ScriptText!$C$1)","v":"</td>\n</tr>"},{"$f":"IF(OrigTable!E264=\"\",\"\",ScriptText!$B$1&CHAR(10)&ScriptText!$D$1)","v":""},{"$f":"IF(OrigTable!E264=\"\",\"\",TEXT(OrigTable!E264,\"00\"))","v":""},{"$f":"IF(OrigTable!E264=\"\",\"\",ScriptText!$E$1&CHAR(10)&ScriptText!$C$1)","v":""},{"$f":"IF(OrigTable!F264=\"\",\"\",ScriptText!$B$1&CHAR(10)&ScriptText!$D$1)","v":""},{"$f":"IF(OrigTable!F264=\"\",\"\",TEXT(OrigTable!F264,\"00\"))","v":""},{"$f":"IF(OrigTable!F264=\"\",\"\",ScriptText!$E$1&CHAR(10)&ScriptText!$C$1)","v":""},{"$f":"IF(OrigTable!G264=\"\",\"\",ScriptText!$B$1&CHAR(10)&ScriptText!$D$1)","v":""},{"$f":"IF(OrigTable!G264=\"\",\"\",TEXT(OrigTable!G264,\"00\"))","v":""},{"$f":"IF(OrigTable!G264=\"\",\"\",ScriptText!$E$1&CHAR(10)&ScriptText!$C$1)","v":""},264]
[{"$f":"_xlfn.TEXTJOIN(\"\",TRUE,B265:D265)&CHAR(10)&_xlfn.TEXTJOIN(\"\",TRUE,E265:G265)&CHAR(10)&_xlfn.TEXTJOIN(\"\",TRUE,H265:J265)&CHAR(10)&_xlfn.TEXTJOIN(\"\",TRUE,K265:M265)&_xlfn.TEXTJOIN(\"\",TRUE,N265:P265)&_xlfn.TEXTJOIN(\"\",TRUE,Q265:S265)&_xlfn.TEXTJOIN(\"\",TRUE,T265:V265)","v":"<tr>\n<td>216F</td>\n</tr>\n\n<tr>\n<td>Your Extension of Time to File was Approved to file Form 5500 Series and/or Form 8955- SSA.</td>\n</tr>\n<tr>\n<td>BMF Notices</td>\n</tr>"},{"$f":"IF(OrigTable!A265=\"\",\"\",ScriptText!$B$1&CHAR(10)&ScriptText!$D$1)","v":"<tr>\n<td>"},{"$f":"IF(OrigTable!A265=\"\",\"\",TEXT(OrigTable!A265,\"00\"))","v":"216F"},{"$f":"IF(OrigTable!A265=\"\",\"\",ScriptText!$E$1&CHAR(10)&ScriptText!$C$1)","v":"</td>\n</tr>"},{"$f":"IF(OrigTable!B265=\"\",\"\",ScriptText!$B$1&CHAR(10)&ScriptText!$D$1)","v":""},{"$f":"IF(OrigTable!B265=\"\",\"\",TEXT(OrigTable!B265,\"00\"))","v":""},{"$f":"IF(OrigTable!B265=\"\",\"\",ScriptText!$E$1&CHAR(10)&ScriptText!C260)","v":""},{"$f":"IF(OrigTable!C265=\"\",\"\",ScriptText!$B$1&CHAR(10)&ScriptText!$D$1)","v":"<tr>\n<td>"},{"$f":"IF(OrigTable!C265=\"\",\"\",IF(LEN(OrigTable!C265)>255,LEFT(OrigTable!C265,250)&\". . .\",OrigTable!C265))","v":"Your Extension of Time to File was Approved to file Form 5500 Series and/or Form 8955- SSA."},{"$f":"IF(OrigTable!C265=\"\",\"\",ScriptText!$E$1&CHAR(10)&ScriptText!$C$1)","v":"</td>\n</tr>"},{"$f":"IF(OrigTable!D265=\"\",\"\",ScriptText!$B$1&CHAR(10)&ScriptText!$D$1)","v":"<tr>\n<td>"},{"$f":"IF(OrigTable!D265=\"\",\"\",TEXT(OrigTable!D265,\"00\"))","v":"BMF Notices"},{"$f":"IF(OrigTable!D265=\"\",\"\",ScriptText!$E$1&CHAR(10)&ScriptText!$C$1)","v":"</td>\n</tr>"},{"$f":"IF(OrigTable!E265=\"\",\"\",ScriptText!$B$1&CHAR(10)&ScriptText!$D$1)","v":""},{"$f":"IF(OrigTable!E265=\"\",\"\",TEXT(OrigTable!E265,\"00\"))","v":""},{"$f":"IF(OrigTable!E265=\"\",\"\",ScriptText!$E$1&CHAR(10)&ScriptText!$C$1)","v":""},{"$f":"IF(OrigTable!F265=\"\",\"\",ScriptText!$B$1&CHAR(10)&ScriptText!$D$1)","v":""},{"$f":"IF(OrigTable!F265=\"\",\"\",TEXT(OrigTable!F265,\"00\"))","v":""},{"$f":"IF(OrigTable!F265=\"\",\"\",ScriptText!$E$1&CHAR(10)&ScriptText!$C$1)","v":""},{"$f":"IF(OrigTable!G265=\"\",\"\",ScriptText!$B$1&CHAR(10)&ScriptText!$D$1)","v":""},{"$f":"IF(OrigTable!G265=\"\",\"\",TEXT(OrigTable!G265,\"00\"))","v":""},{"$f":"IF(OrigTable!G265=\"\",\"\",ScriptText!$E$1&CHAR(10)&ScriptText!$C$1)","v":""},265]
["<tr>\n<td>216H</td>\n</tr>\n\n<tr>\n<td>Your Extension of Time to File Form 5500 Series and/or Form 8955-SSA was Denied, (not timely filed).</td>\n</tr>\n<tr>\n<td>BMF Notices</td>\n</tr>",{"$f":"IF(OrigTable!A266=\"\",\"\",ScriptText!$B$1&CHAR(10)&ScriptText!$D$1)","v":"<tr>\n<td>"},{"$f":"IF(OrigTable!A266=\"\",\"\",TEXT(OrigTable!A266,\"00\"))","v":"216H"},{"$f":"IF(OrigTable!A266=\"\",\"\",ScriptText!$E$1&CHAR(10)&ScriptText!$C$1)","v":"</td>\n</tr>"},{"$f":"IF(OrigTable!B266=\"\",\"\",ScriptText!$B$1&CHAR(10)&ScriptText!$D$1)","v":""},{"$f":"IF(OrigTable!B266=\"\",\"\",TEXT(OrigTable!B266,\"00\"))","v":""},{"$f":"IF(OrigTable!B266=\"\",\"\",ScriptText!$E$1&CHAR(10)&ScriptText!C261)","v":""},{"$f":"IF(OrigTable!C266=\"\",\"\",ScriptText!$B$1&CHAR(10)&ScriptText!$D$1)","v":"<tr>\n<td>"},{"$f":"IF(OrigTable!C266=\"\",\"\",IF(LEN(OrigTable!C266)>255,LEFT(OrigTable!C266,250)&\". . .\",OrigTable!C266))","v":"Your Extension of Time to File Form 5500 Series and/or Form 8955-SSA was Denied, (not timely filed)."},{"$f":"IF(OrigTable!C266=\"\",\"\",ScriptText!$E$1&CHAR(10)&ScriptText!$C$1)","v":"</td>\n</tr>"},{"$f":"IF(OrigTable!D266=\"\",\"\",ScriptText!$B$1&CHAR(10)&ScriptText!$D$1)","v":"<tr>\n<td>"},{"$f":"IF(OrigTable!D266=\"\",\"\",TEXT(OrigTable!D266,\"00\"))","v":"BMF Notices"},{"$f":"IF(OrigTable!D266=\"\",\"\",ScriptText!$E$1&CHAR(10)&ScriptText!$C$1)","v":"</td>\n</tr>"},{"$f":"IF(OrigTable!E266=\"\",\"\",ScriptText!$B$1&CHAR(10)&ScriptText!$D$1)","v":""},{"$f":"IF(OrigTable!E266=\"\",\"\",TEXT(OrigTable!E266,\"00\"))","v":""},{"$f":"IF(OrigTable!E266=\"\",\"\",ScriptText!$E$1&CHAR(10)&ScriptText!$C$1)","v":""},{"$f":"IF(OrigTable!F266=\"\",\"\",ScriptText!$B$1&CHAR(10)&ScriptText!$D$1)","v":""},{"$f":"IF(OrigTable!F266=\"\",\"\",TEXT(OrigTable!F266,\"00\"))","v":""},{"$f":"IF(OrigTable!F266=\"\",\"\",ScriptText!$E$1&CHAR(10)&ScriptText!$C$1)","v":""},{"$f":"IF(OrigTable!G266=\"\",\"\",ScriptText!$B$1&CHAR(10)&ScriptText!$D$1)","v":""},{"$f":"IF(OrigTable!G266=\"\",\"\",TEXT(OrigTable!G266,\"00\"))","v":""},{"$f":"IF(OrigTable!G266=\"\",\"\",ScriptText!$E$1&CHAR(10)&ScriptText!$C$1)","v":""},266]
["<tr>\n<td>217</td>\n</tr>\n<tr>\n<td>No</td>\n212\n<tr>\n<td>State & Local agencies are exempt. Form 940 not required.</td>\n</tr>\n<tr>\n<td>BMF Notices</td>\n</tr>",{"$f":"IF(OrigTable!A267=\"\",\"\",ScriptText!$B$1&CHAR(10)&ScriptText!$D$1)","v":"<tr>\n<td>"},{"$f":"IF(OrigTable!A267=\"\",\"\",TEXT(OrigTable!A267,\"00\"))","v":"217"},{"$f":"IF(OrigTable!A267=\"\",\"\",ScriptText!$E$1&CHAR(10)&ScriptText!$C$1)","v":"</td>\n</tr>"},{"$f":"IF(OrigTable!B267=\"\",\"\",ScriptText!$B$1&CHAR(10)&ScriptText!$D$1)","v":"<tr>\n<td>"},{"$f":"IF(OrigTable!B267=\"\",\"\",TEXT(OrigTable!B267,\"00\"))","v":"No"},{"$f":"IF(OrigTable!B267=\"\",\"\",ScriptText!$E$1&CHAR(10)&ScriptText!C262)","v":"</td>\n212"},{"$f":"IF(OrigTable!C267=\"\",\"\",ScriptText!$B$1&CHAR(10)&ScriptText!$D$1)","v":"<tr>\n<td>"},{"$f":"IF(OrigTable!C267=\"\",\"\",IF(LEN(OrigTable!C267)>255,LEFT(OrigTable!C267,250)&\". . .\",OrigTable!C267))","v":"State & Local agencies are exempt. Form 940 not required."},{"$f":"IF(OrigTable!C267=\"\",\"\",ScriptText!$E$1&CHAR(10)&ScriptText!$C$1)","v":"</td>\n</tr>"},{"$f":"IF(OrigTable!D267=\"\",\"\",ScriptText!$B$1&CHAR(10)&ScriptText!$D$1)","v":"<tr>\n<td>"},{"$f":"IF(OrigTable!D267=\"\",\"\",TEXT(OrigTable!D267,\"00\"))","v":"BMF Notices"},{"$f":"IF(OrigTable!D267=\"\",\"\",ScriptText!$E$1&CHAR(10)&ScriptText!$C$1)","v":"</td>\n</tr>"},{"$f":"IF(OrigTable!E267=\"\",\"\",ScriptText!$B$1&CHAR(10)&ScriptText!$D$1)","v":""},{"$f":"IF(OrigTable!E267=\"\",\"\",TEXT(OrigTable!E267,\"00\"))","v":""},{"$f":"IF(OrigTable!E267=\"\",\"\",ScriptText!$E$1&CHAR(10)&ScriptText!$C$1)","v":""},{"$f":"IF(OrigTable!F267=\"\",\"\",ScriptText!$B$1&CHAR(10)&ScriptText!$D$1)","v":""},{"$f":"IF(OrigTable!F267=\"\",\"\",TEXT(OrigTable!F267,\"00\"))","v":""},{"$f":"IF(OrigTable!F267=\"\",\"\",ScriptText!$E$1&CHAR(10)&ScriptText!$C$1)","v":""},{"$f":"IF(OrigTable!G267=\"\",\"\",ScriptText!$B$1&CHAR(10)&ScriptText!$D$1)","v":""},{"$f":"IF(OrigTable!G267=\"\",\"\",TEXT(OrigTable!G267,\"00\"))","v":""},{"$f":"IF(OrigTable!G267=\"\",\"\",ScriptText!$E$1&CHAR(10)&ScriptText!$C$1)","v":""},267]
["<tr>\n<td>218</td>\n</tr>\n<tr>\n<td>No</td>\n214\n<tr>\n<td>Churches & other religious organizations are exempt. Form 940 not required.</td>\n</tr>\n<tr>\n<td>BMF Notices</td>\n</tr>",{"$f":"IF(OrigTable!A268=\"\",\"\",ScriptText!$B$1&CHAR(10)&ScriptText!$D$1)","v":"<tr>\n<td>"},{"$f":"IF(OrigTable!A268=\"\",\"\",TEXT(OrigTable!A268,\"00\"))","v":"218"},{"$f":"IF(OrigTable!A268=\"\",\"\",ScriptText!$E$1&CHAR(10)&ScriptText!$C$1)","v":"</td>\n</tr>"},{"$f":"IF(OrigTable!B268=\"\",\"\",ScriptText!$B$1&CHAR(10)&ScriptText!$D$1)","v":"<tr>\n<td>"},{"$f":"IF(OrigTable!B268=\"\",\"\",TEXT(OrigTable!B268,\"00\"))","v":"No"},{"$f":"IF(OrigTable!B268=\"\",\"\",ScriptText!$E$1&CHAR(10)&ScriptText!C263)","v":"</td>\n214"},{"$f":"IF(OrigTable!C268=\"\",\"\",ScriptText!$B$1&CHAR(10)&ScriptText!$D$1)","v":"<tr>\n<td>"},{"$f":"IF(OrigTable!C268=\"\",\"\",IF(LEN(OrigTable!C268)>255,LEFT(OrigTable!C268,250)&\". . .\",OrigTable!C268))","v":"Churches & other religious organizations are exempt. Form 940 not required."},{"$f":"IF(OrigTable!C268=\"\",\"\",ScriptText!$E$1&CHAR(10)&ScriptText!$C$1)","v":"</td>\n</tr>"},{"$f":"IF(OrigTable!D268=\"\",\"\",ScriptText!$B$1&CHAR(10)&ScriptText!$D$1)","v":"<tr>\n<td>"},{"$f":"IF(OrigTable!D268=\"\",\"\",TEXT(OrigTable!D268,\"00\"))","v":"BMF Notices"},{"$f":"IF(OrigTable!D268=\"\",\"\",ScriptText!$E$1&CHAR(10)&ScriptText!$C$1)","v":"</td>\n</tr>"},{"$f":"IF(OrigTable!E268=\"\",\"\",ScriptText!$B$1&CHAR(10)&ScriptText!$D$1)","v":""},{"$f":"IF(OrigTable!E268=\"\",\"\",TEXT(OrigTable!E268,\"00\"))","v":""},{"$f":"IF(OrigTable!E268=\"\",\"\",ScriptText!$E$1&CHAR(10)&ScriptText!$C$1)","v":""},{"$f":"IF(OrigTable!F268=\"\",\"\",ScriptText!$B$1&CHAR(10)&ScriptText!$D$1)","v":""},{"$f":"IF(OrigTable!F268=\"\",\"\",TEXT(OrigTable!F268,\"00\"))","v":""},{"$f":"IF(OrigTable!F268=\"\",\"\",ScriptText!$E$1&CHAR(10)&ScriptText!$C$1)","v":""},{"$f":"IF(OrigTable!G268=\"\",\"\",ScriptText!$B$1&CHAR(10)&ScriptText!$D$1)","v":""},{"$f":"IF(OrigTable!G268=\"\",\"\",TEXT(OrigTable!G268,\"00\"))","v":""},{"$f":"IF(OrigTable!G268=\"\",\"\",ScriptText!$E$1&CHAR(10)&ScriptText!$C$1)","v":""},268]
["<tr>\n<td>219</td>\n</tr>\n<tr>\n<td>No</td>\n215\n<tr>\n<td>Exempt under 501c (3) of IRC. Form 940 not required.</td>\n</tr>\n<tr>\n<td>BMF Notices</td>\n</tr>",{"$f":"IF(OrigTable!A269=\"\",\"\",ScriptText!$B$1&CHAR(10)&ScriptText!$D$1)","v":"<tr>\n<td>"},{"$f":"IF(OrigTable!A269=\"\",\"\",TEXT(OrigTable!A269,\"00\"))","v":"219"},{"$f":"IF(OrigTable!A269=\"\",\"\",ScriptText!$E$1&CHAR(10)&ScriptText!$C$1)","v":"</td>\n</tr>"},{"$f":"IF(OrigTable!B269=\"\",\"\",ScriptText!$B$1&CHAR(10)&ScriptText!$D$1)","v":"<tr>\n<td>"},{"$f":"IF(OrigTable!B269=\"\",\"\",TEXT(OrigTable!B269,\"00\"))","v":"No"},{"$f":"IF(OrigTable!B269=\"\",\"\",ScriptText!$E$1&CHAR(10)&ScriptText!C264)","v":"</td>\n215"},{"$f":"IF(OrigTable!C269=\"\",\"\",ScriptText!$B$1&CHAR(10)&ScriptText!$D$1)","v":"<tr>\n<td>"},{"$f":"IF(OrigTable!C269=\"\",\"\",IF(LEN(OrigTable!C269)>255,LEFT(OrigTable!C269,250)&\". . .\",OrigTable!C269))","v":"Exempt under 501c (3) of IRC. Form 940 not required."},{"$f":"IF(OrigTable!C269=\"\",\"\",ScriptText!$E$1&CHAR(10)&ScriptText!$C$1)","v":"</td>\n</tr>"},{"$f":"IF(OrigTable!D269=\"\",\"\",ScriptText!$B$1&CHAR(10)&ScriptText!$D$1)","v":"<tr>\n<td>"},{"$f":"IF(OrigTable!D269=\"\",\"\",TEXT(OrigTable!D269,\"00\"))","v":"BMF Notices"},{"$f":"IF(OrigTable!D269=\"\",\"\",ScriptText!$E$1&CHAR(10)&ScriptText!$C$1)","v":"</td>\n</tr>"},{"$f":"IF(OrigTable!E269=\"\",\"\",ScriptText!$B$1&CHAR(10)&ScriptText!$D$1)","v":""},{"$f":"IF(OrigTable!E269=\"\",\"\",TEXT(OrigTable!E269,\"00\"))","v":""},{"$f":"IF(OrigTable!E269=\"\",\"\",ScriptText!$E$1&CHAR(10)&ScriptText!$C$1)","v":""},{"$f":"IF(OrigTable!F269=\"\",\"\",ScriptText!$B$1&CHAR(10)&ScriptText!$D$1)","v":""},{"$f":"IF(OrigTable!F269=\"\",\"\",TEXT(OrigTable!F269,\"00\"))","v":""},{"$f":"IF(OrigTable!F269=\"\",\"\",ScriptText!$E$1&CHAR(10)&ScriptText!$C$1)","v":""},{"$f":"IF(OrigTable!G269=\"\",\"\",ScriptText!$B$1&CHAR(10)&ScriptText!$D$1)","v":""},{"$f":"IF(OrigTable!G269=\"\",\"\",TEXT(OrigTable!G269,\"00\"))","v":""},{"$f":"IF(OrigTable!G269=\"\",\"\",ScriptText!$E$1&CHAR(10)&ScriptText!$C$1)","v":""},269]
["<tr>\n<td>220</td>\n</tr>\n<tr>\n<td>Yes</td>\n216F\n<tr>\n<td>Audit/DP Adjustment – Balance due, even balance or refund due</td>\n</tr>\n<tr>\n<td>BMF Notices</td>\n</tr>",{"$f":"IF(OrigTable!A270=\"\",\"\",ScriptText!$B$1&CHAR(10)&ScriptText!$D$1)","v":"<tr>\n<td>"},{"$f":"IF(OrigTable!A270=\"\",\"\",TEXT(OrigTable!A270,\"00\"))","v":"220"},{"$f":"IF(OrigTable!A270=\"\",\"\",ScriptText!$E$1&CHAR(10)&ScriptText!$C$1)","v":"</td>\n</tr>"},{"$f":"IF(OrigTable!B270=\"\",\"\",ScriptText!$B$1&CHAR(10)&ScriptText!$D$1)","v":"<tr>\n<td>"},{"$f":"IF(OrigTable!B270=\"\",\"\",TEXT(OrigTable!B270,\"00\"))","v":"Yes"},{"$f":"IF(OrigTable!B270=\"\",\"\",ScriptText!$E$1&CHAR(10)&ScriptText!C265)","v":"</td>\n216F"},{"$f":"IF(OrigTable!C270=\"\",\"\",ScriptText!$B$1&CHAR(10)&ScriptText!$D$1)","v":"<tr>\n<td>"},{"$f":"IF(OrigTable!C270=\"\",\"\",IF(LEN(OrigTable!C270)>255,LEFT(OrigTable!C270,250)&\". . .\",OrigTable!C270))","v":"Audit/DP Adjustment – Balance due, even balance or refund due"},{"$f":"IF(OrigTable!C270=\"\",\"\",ScriptText!$E$1&CHAR(10)&ScriptText!$C$1)","v":"</td>\n</tr>"},{"$f":"IF(OrigTable!D270=\"\",\"\",ScriptText!$B$1&CHAR(10)&ScriptText!$D$1)","v":"<tr>\n<td>"},{"$f":"IF(OrigTable!D270=\"\",\"\",TEXT(OrigTable!D270,\"00\"))","v":"BMF Notices"},{"$f":"IF(OrigTable!D270=\"\",\"\",ScriptText!$E$1&CHAR(10)&ScriptText!$C$1)","v":"</td>\n</tr>"},{"$f":"IF(OrigTable!E270=\"\",\"\",ScriptText!$B$1&CHAR(10)&ScriptText!$D$1)","v":""},{"$f":"IF(OrigTable!E270=\"\",\"\",TEXT(OrigTable!E270,\"00\"))","v":""},{"$f":"IF(OrigTable!E270=\"\",\"\",ScriptText!$E$1&CHAR(10)&ScriptText!$C$1)","v":""},{"$f":"IF(OrigTable!F270=\"\",\"\",ScriptText!$B$1&CHAR(10)&ScriptText!$D$1)","v":""},{"$f":"IF(OrigTable!F270=\"\",\"\",TEXT(OrigTable!F270,\"00\"))","v":""},{"$f":"IF(OrigTable!F270=\"\",\"\",ScriptText!$E$1&CHAR(10)&ScriptText!$C$1)","v":""},{"$f":"IF(OrigTable!G270=\"\",\"\",ScriptText!$B$1&CHAR(10)&ScriptText!$D$1)","v":""},{"$f":"IF(OrigTable!G270=\"\",\"\",TEXT(OrigTable!G270,\"00\"))","v":""},{"$f":"IF(OrigTable!G270=\"\",\"\",ScriptText!$E$1&CHAR(10)&ScriptText!$C$1)","v":""},270]
["<tr>\n<td>220J</td>\n</tr>\n\n<tr>\n<td>Audit/DP adjustment bal due, even bal or overpayment for ACA 4980H provision</td>\n</tr>\n<tr>\n<td>BMF Notices</td>\n</tr>",{"$f":"IF(OrigTable!A271=\"\",\"\",ScriptText!$B$1&CHAR(10)&ScriptText!$D$1)","v":"<tr>\n<td>"},{"$f":"IF(OrigTable!A271=\"\",\"\",TEXT(OrigTable!A271,\"00\"))","v":"220J"},{"$f":"IF(OrigTable!A271=\"\",\"\",ScriptText!$E$1&CHAR(10)&ScriptText!$C$1)","v":"</td>\n</tr>"},{"$f":"IF(OrigTable!B271=\"\",\"\",ScriptText!$B$1&CHAR(10)&ScriptText!$D$1)","v":""},{"$f":"IF(OrigTable!B271=\"\",\"\",TEXT(OrigTable!B271,\"00\"))","v":""},{"$f":"IF(OrigTable!B271=\"\",\"\",ScriptText!$E$1&CHAR(10)&ScriptText!C266)","v":""},{"$f":"IF(OrigTable!C271=\"\",\"\",ScriptText!$B$1&CHAR(10)&ScriptText!$D$1)","v":"<tr>\n<td>"},{"$f":"IF(OrigTable!C271=\"\",\"\",IF(LEN(OrigTable!C271)>255,LEFT(OrigTable!C271,250)&\". . .\",OrigTable!C271))","v":"Audit/DP adjustment bal due, even bal or overpayment for ACA 4980H provision"},{"$f":"IF(OrigTable!C271=\"\",\"\",ScriptText!$E$1&CHAR(10)&ScriptText!$C$1)","v":"</td>\n</tr>"},{"$f":"IF(OrigTable!D271=\"\",\"\",ScriptText!$B$1&CHAR(10)&ScriptText!$D$1)","v":"<tr>\n<td>"},{"$f":"IF(OrigTable!D271=\"\",\"\",TEXT(OrigTable!D271,\"00\"))","v":"BMF Notices"},{"$f":"IF(OrigTable!D271=\"\",\"\",ScriptText!$E$1&CHAR(10)&ScriptText!$C$1)","v":"</td>\n</tr>"},{"$f":"IF(OrigTable!E271=\"\",\"\",ScriptText!$B$1&CHAR(10)&ScriptText!$D$1)","v":""},{"$f":"IF(OrigTable!E271=\"\",\"\",TEXT(OrigTable!E271,\"00\"))","v":""},{"$f":"IF(OrigTable!E271=\"\",\"\",ScriptText!$E$1&CHAR(10)&ScriptText!$C$1)","v":""},{"$f":"IF(OrigTable!F271=\"\",\"\",ScriptText!$B$1&CHAR(10)&ScriptText!$D$1)","v":""},{"$f":"IF(OrigTable!F271=\"\",\"\",TEXT(OrigTable!F271,\"00\"))","v":""},{"$f":"IF(OrigTable!F271=\"\",\"\",ScriptText!$E$1&CHAR(10)&ScriptText!$C$1)","v":""},{"$f":"IF(OrigTable!G271=\"\",\"\",ScriptText!$B$1&CHAR(10)&ScriptText!$D$1)","v":""},{"$f":"IF(OrigTable!G271=\"\",\"\",TEXT(OrigTable!G271,\"00\"))","v":""},{"$f":"IF(OrigTable!G271=\"\",\"\",ScriptText!$E$1&CHAR(10)&ScriptText!$C$1)","v":""},271]
["<tr>\n<td>221</td>\n</tr>\n<tr>\n<td>No</td>\n217\n<tr>\n<td>Exempt under section 501(e), 501(f) or 501(k). Form 940 not required.</td>\n</tr>\n<tr>\n<td>BMF Notices</td>\n</tr>",{"$f":"IF(OrigTable!A272=\"\",\"\",ScriptText!$B$1&CHAR(10)&ScriptText!$D$1)","v":"<tr>\n<td>"},{"$f":"IF(OrigTable!A272=\"\",\"\",TEXT(OrigTable!A272,\"00\"))","v":"221"},{"$f":"IF(OrigTable!A272=\"\",\"\",ScriptText!$E$1&CHAR(10)&ScriptText!$C$1)","v":"</td>\n</tr>"},{"$f":"IF(OrigTable!B272=\"\",\"\",ScriptText!$B$1&CHAR(10)&ScriptText!$D$1)","v":"<tr>\n<td>"},{"$f":"IF(OrigTable!B272=\"\",\"\",TEXT(OrigTable!B272,\"00\"))","v":"No"},{"$f":"IF(OrigTable!B272=\"\",\"\",ScriptText!$E$1&CHAR(10)&ScriptText!C267)","v":"</td>\n217"},{"$f":"IF(OrigTable!C272=\"\",\"\",ScriptText!$B$1&CHAR(10)&ScriptText!$D$1)","v":"<tr>\n<td>"},{"$f":"IF(OrigTable!C272=\"\",\"\",IF(LEN(OrigTable!C272)>255,LEFT(OrigTable!C272,250)&\". . .\",OrigTable!C272))","v":"Exempt under section 501(e), 501(f) or 501(k). Form 940 not required."},{"$f":"IF(OrigTable!C272=\"\",\"\",ScriptText!$E$1&CHAR(10)&ScriptText!$C$1)","v":"</td>\n</tr>"},{"$f":"IF(OrigTable!D272=\"\",\"\",ScriptText!$B$1&CHAR(10)&ScriptText!$D$1)","v":"<tr>\n<td>"},{"$f":"IF(OrigTable!D272=\"\",\"\",TEXT(OrigTable!D272,\"00\"))","v":"BMF Notices"},{"$f":"IF(OrigTable!D272=\"\",\"\",ScriptText!$E$1&CHAR(10)&ScriptText!$C$1)","v":"</td>\n</tr>"},{"$f":"IF(OrigTable!E272=\"\",\"\",ScriptText!$B$1&CHAR(10)&ScriptText!$D$1)","v":""},{"$f":"IF(OrigTable!E272=\"\",\"\",TEXT(OrigTable!E272,\"00\"))","v":""},{"$f":"IF(OrigTable!E272=\"\",\"\",ScriptText!$E$1&CHAR(10)&ScriptText!$C$1)","v":""},{"$f":"IF(OrigTable!F272=\"\",\"\",ScriptText!$B$1&CHAR(10)&ScriptText!$D$1)","v":""},{"$f":"IF(OrigTable!F272=\"\",\"\",TEXT(OrigTable!F272,\"00\"))","v":""},{"$f":"IF(OrigTable!F272=\"\",\"\",ScriptText!$E$1&CHAR(10)&ScriptText!$C$1)","v":""},{"$f":"IF(OrigTable!G272=\"\",\"\",ScriptText!$B$1&CHAR(10)&ScriptText!$D$1)","v":""},{"$f":"IF(OrigTable!G272=\"\",\"\",TEXT(OrigTable!G272,\"00\"))","v":""},{"$f":"IF(OrigTable!G272=\"\",\"\",ScriptText!$E$1&CHAR(10)&ScriptText!$C$1)","v":""},272]
["<tr>\n<td>222</td>\n</tr>\n<tr>\n<td>No</td>\n218\n<tr>\n<td>Campus notice only. TIN change on a CAF account</td>\n</tr>\n<tr>\n<td>BMF Notices</td>\n</tr>",{"$f":"IF(OrigTable!A273=\"\",\"\",ScriptText!$B$1&CHAR(10)&ScriptText!$D$1)","v":"<tr>\n<td>"},{"$f":"IF(OrigTable!A273=\"\",\"\",TEXT(OrigTable!A273,\"00\"))","v":"222"},{"$f":"IF(OrigTable!A273=\"\",\"\",ScriptText!$E$1&CHAR(10)&ScriptText!$C$1)","v":"</td>\n</tr>"},{"$f":"IF(OrigTable!B273=\"\",\"\",ScriptText!$B$1&CHAR(10)&ScriptText!$D$1)","v":"<tr>\n<td>"},{"$f":"IF(OrigTable!B273=\"\",\"\",TEXT(OrigTable!B273,\"00\"))","v":"No"},{"$f":"IF(OrigTable!B273=\"\",\"\",ScriptText!$E$1&CHAR(10)&ScriptText!C268)","v":"</td>\n218"},{"$f":"IF(OrigTable!C273=\"\",\"\",ScriptText!$B$1&CHAR(10)&ScriptText!$D$1)","v":"<tr>\n<td>"},{"$f":"IF(OrigTable!C273=\"\",\"\",IF(LEN(OrigTable!C273)>255,LEFT(OrigTable!C273,250)&\". . .\",OrigTable!C273))","v":"Campus notice only. TIN change on a CAF account"},{"$f":"IF(OrigTable!C273=\"\",\"\",ScriptText!$E$1&CHAR(10)&ScriptText!$C$1)","v":"</td>\n</tr>"},{"$f":"IF(OrigTable!D273=\"\",\"\",ScriptText!$B$1&CHAR(10)&ScriptText!$D$1)","v":"<tr>\n<td>"},{"$f":"IF(OrigTable!D273=\"\",\"\",TEXT(OrigTable!D273,\"00\"))","v":"BMF Notices"},{"$f":"IF(OrigTable!D273=\"\",\"\",ScriptText!$E$1&CHAR(10)&ScriptText!$C$1)","v":"</td>\n</tr>"},{"$f":"IF(OrigTable!E273=\"\",\"\",ScriptText!$B$1&CHAR(10)&ScriptText!$D$1)","v":""},{"$f":"IF(OrigTable!E273=\"\",\"\",TEXT(OrigTable!E273,\"00\"))","v":""},{"$f":"IF(OrigTable!E273=\"\",\"\",ScriptText!$E$1&CHAR(10)&ScriptText!$C$1)","v":""},{"$f":"IF(OrigTable!F273=\"\",\"\",ScriptText!$B$1&CHAR(10)&ScriptText!$D$1)","v":""},{"$f":"IF(OrigTable!F273=\"\",\"\",TEXT(OrigTable!F273,\"00\"))","v":""},{"$f":"IF(OrigTable!F273=\"\",\"\",ScriptText!$E$1&CHAR(10)&ScriptText!$C$1)","v":""},{"$f":"IF(OrigTable!G273=\"\",\"\",ScriptText!$B$1&CHAR(10)&ScriptText!$D$1)","v":""},{"$f":"IF(OrigTable!G273=\"\",\"\",TEXT(OrigTable!G273,\"00\"))","v":""},{"$f":"IF(OrigTable!G273=\"\",\"\",ScriptText!$E$1&CHAR(10)&ScriptText!$C$1)","v":""},273]
["<tr>\n<td>223</td>\n</tr>\n<tr>\n<td>No</td>\n219\n<tr>\n<td>Campus notice only: Notice of civil penalty</td>\n</tr>\n<tr>\n<td>BMF Notices</td>\n</tr>",{"$f":"IF(OrigTable!A274=\"\",\"\",ScriptText!$B$1&CHAR(10)&ScriptText!$D$1)","v":"<tr>\n<td>"},{"$f":"IF(OrigTable!A274=\"\",\"\",TEXT(OrigTable!A274,\"00\"))","v":"223"},{"$f":"IF(OrigTable!A274=\"\",\"\",ScriptText!$E$1&CHAR(10)&ScriptText!$C$1)","v":"</td>\n</tr>"},{"$f":"IF(OrigTable!B274=\"\",\"\",ScriptText!$B$1&CHAR(10)&ScriptText!$D$1)","v":"<tr>\n<td>"},{"$f":"IF(OrigTable!B274=\"\",\"\",TEXT(OrigTable!B274,\"00\"))","v":"No"},{"$f":"IF(OrigTable!B274=\"\",\"\",ScriptText!$E$1&CHAR(10)&ScriptText!C269)","v":"</td>\n219"},{"$f":"IF(OrigTable!C274=\"\",\"\",ScriptText!$B$1&CHAR(10)&ScriptText!$D$1)","v":"<tr>\n<td>"},{"$f":"IF(OrigTable!C274=\"\",\"\",IF(LEN(OrigTable!C274)>255,LEFT(OrigTable!C274,250)&\". . .\",OrigTable!C274))","v":"Campus notice only: Notice of civil penalty"},{"$f":"IF(OrigTable!C274=\"\",\"\",ScriptText!$E$1&CHAR(10)&ScriptText!$C$1)","v":"</td>\n</tr>"},{"$f":"IF(OrigTable!D274=\"\",\"\",ScriptText!$B$1&CHAR(10)&ScriptText!$D$1)","v":"<tr>\n<td>"},{"$f":"IF(OrigTable!D274=\"\",\"\",TEXT(OrigTable!D274,\"00\"))","v":"BMF Notices"},{"$f":"IF(OrigTable!D274=\"\",\"\",ScriptText!$E$1&CHAR(10)&ScriptText!$C$1)","v":"</td>\n</tr>"},{"$f":"IF(OrigTable!E274=\"\",\"\",ScriptText!$B$1&CHAR(10)&ScriptText!$D$1)","v":""},{"$f":"IF(OrigTable!E274=\"\",\"\",TEXT(OrigTable!E274,\"00\"))","v":""},{"$f":"IF(OrigTable!E274=\"\",\"\",ScriptText!$E$1&CHAR(10)&ScriptText!$C$1)","v":""},{"$f":"IF(OrigTable!F274=\"\",\"\",ScriptText!$B$1&CHAR(10)&ScriptText!$D$1)","v":""},{"$f":"IF(OrigTable!F274=\"\",\"\",TEXT(OrigTable!F274,\"00\"))","v":""},{"$f":"IF(OrigTable!F274=\"\",\"\",ScriptText!$E$1&CHAR(10)&ScriptText!$C$1)","v":""},{"$f":"IF(OrigTable!G274=\"\",\"\",ScriptText!$B$1&CHAR(10)&ScriptText!$D$1)","v":""},{"$f":"IF(OrigTable!G274=\"\",\"\",TEXT(OrigTable!G274,\"00\"))","v":""},{"$f":"IF(OrigTable!G274=\"\",\"\",ScriptText!$E$1&CHAR(10)&ScriptText!$C$1)","v":""},274]
["<tr>\n<td>224</td>\n</tr>\n<tr>\n<td>No</td>\n220\n<tr>\n<td>Notice of potential qualification as a Personal Service Corporation\nNote: Obsoleted CP 224 per Unified Work Request (UWR) 228032 - Obsolete BMF CP Notice 224, effective February 1, 2021. This notice is no longer used and is not usable for\ncommunicati. . .</td>\n</tr>\n<tr>\n<td>BMF Notices</td>\n</tr>",{"$f":"IF(OrigTable!A275=\"\",\"\",ScriptText!$B$1&CHAR(10)&ScriptText!$D$1)","v":"<tr>\n<td>"},{"$f":"IF(OrigTable!A275=\"\",\"\",TEXT(OrigTable!A275,\"00\"))","v":"224"},{"$f":"IF(OrigTable!A275=\"\",\"\",ScriptText!$E$1&CHAR(10)&ScriptText!$C$1)","v":"</td>\n</tr>"},{"$f":"IF(OrigTable!B275=\"\",\"\",ScriptText!$B$1&CHAR(10)&ScriptText!$D$1)","v":"<tr>\n<td>"},{"$f":"IF(OrigTable!B275=\"\",\"\",TEXT(OrigTable!B275,\"00\"))","v":"No"},{"$f":"IF(OrigTable!B275=\"\",\"\",ScriptText!$E$1&CHAR(10)&ScriptText!C270)","v":"</td>\n220"},{"$f":"IF(OrigTable!C275=\"\",\"\",ScriptText!$B$1&CHAR(10)&ScriptText!$D$1)","v":"<tr>\n<td>"},{"$f":"IF(OrigTable!C275=\"\",\"\",IF(LEN(OrigTable!C275)>255,LEFT(OrigTable!C275,250)&\". . .\",OrigTable!C275))","v":"Notice of potential qualification as a Personal Service Corporation\nNote: Obsoleted CP 224 per Unified Work Request (UWR) 228032 - Obsolete BMF CP Notice 224, effective February 1, 2021. This notice is no longer used and is not usable for\ncommunicati. . ."},{"$f":"IF(OrigTable!C275=\"\",\"\",ScriptText!$E$1&CHAR(10)&ScriptText!$C$1)","v":"</td>\n</tr>"},{"$f":"IF(OrigTable!D275=\"\",\"\",ScriptText!$B$1&CHAR(10)&ScriptText!$D$1)","v":"<tr>\n<td>"},{"$f":"IF(OrigTable!D275=\"\",\"\",TEXT(OrigTable!D275,\"00\"))","v":"BMF Notices"},{"$f":"IF(OrigTable!D275=\"\",\"\",ScriptText!$E$1&CHAR(10)&ScriptText!$C$1)","v":"</td>\n</tr>"},{"$f":"IF(OrigTable!E275=\"\",\"\",ScriptText!$B$1&CHAR(10)&ScriptText!$D$1)","v":""},{"$f":"IF(OrigTable!E275=\"\",\"\",TEXT(OrigTable!E275,\"00\"))","v":""},{"$f":"IF(OrigTable!E275=\"\",\"\",ScriptText!$E$1&CHAR(10)&ScriptText!$C$1)","v":""},{"$f":"IF(OrigTable!F275=\"\",\"\",ScriptText!$B$1&CHAR(10)&ScriptText!$D$1)","v":""},{"$f":"IF(OrigTable!F275=\"\",\"\",TEXT(OrigTable!F275,\"00\"))","v":""},{"$f":"IF(OrigTable!F275=\"\",\"\",ScriptText!$E$1&CHAR(10)&ScriptText!$C$1)","v":""},{"$f":"IF(OrigTable!G275=\"\",\"\",ScriptText!$B$1&CHAR(10)&ScriptText!$D$1)","v":""},{"$f":"IF(OrigTable!G275=\"\",\"\",TEXT(OrigTable!G275,\"00\"))","v":""},{"$f":"IF(OrigTable!G275=\"\",\"\",ScriptText!$E$1&CHAR(10)&ScriptText!$C$1)","v":""},275]
["<tr>\n<td>225</td>\n</tr>\n<tr>\n<td>Yes</td>\n220J\n<tr>\n<td>Missing payment applied, balance due, even balance or refund due</td>\n</tr>\n<tr>\n<td>BMF Notices</td>\n</tr>",{"$f":"IF(OrigTable!A276=\"\",\"\",ScriptText!$B$1&CHAR(10)&ScriptText!$D$1)","v":"<tr>\n<td>"},{"$f":"IF(OrigTable!A276=\"\",\"\",TEXT(OrigTable!A276,\"00\"))","v":"225"},{"$f":"IF(OrigTable!A276=\"\",\"\",ScriptText!$E$1&CHAR(10)&ScriptText!$C$1)","v":"</td>\n</tr>"},{"$f":"IF(OrigTable!B276=\"\",\"\",ScriptText!$B$1&CHAR(10)&ScriptText!$D$1)","v":"<tr>\n<td>"},{"$f":"IF(OrigTable!B276=\"\",\"\",TEXT(OrigTable!B276,\"00\"))","v":"Yes"},{"$f":"IF(OrigTable!B276=\"\",\"\",ScriptText!$E$1&CHAR(10)&ScriptText!C271)","v":"</td>\n220J"},{"$f":"IF(OrigTable!C276=\"\",\"\",ScriptText!$B$1&CHAR(10)&ScriptText!$D$1)","v":"<tr>\n<td>"},{"$f":"IF(OrigTable!C276=\"\",\"\",IF(LEN(OrigTable!C276)>255,LEFT(OrigTable!C276,250)&\". . .\",OrigTable!C276))","v":"Missing payment applied, balance due, even balance or refund due"},{"$f":"IF(OrigTable!C276=\"\",\"\",ScriptText!$E$1&CHAR(10)&ScriptText!$C$1)","v":"</td>\n</tr>"},{"$f":"IF(OrigTable!D276=\"\",\"\",ScriptText!$B$1&CHAR(10)&ScriptText!$D$1)","v":"<tr>\n<td>"},{"$f":"IF(OrigTable!D276=\"\",\"\",TEXT(OrigTable!D276,\"00\"))","v":"BMF Notices"},{"$f":"IF(OrigTable!D276=\"\",\"\",ScriptText!$E$1&CHAR(10)&ScriptText!$C$1)","v":"</td>\n</tr>"},{"$f":"IF(OrigTable!E276=\"\",\"\",ScriptText!$B$1&CHAR(10)&ScriptText!$D$1)","v":""},{"$f":"IF(OrigTable!E276=\"\",\"\",TEXT(OrigTable!E276,\"00\"))","v":""},{"$f":"IF(OrigTable!E276=\"\",\"\",ScriptText!$E$1&CHAR(10)&ScriptText!$C$1)","v":""},{"$f":"IF(OrigTable!F276=\"\",\"\",ScriptText!$B$1&CHAR(10)&ScriptText!$D$1)","v":""},{"$f":"IF(OrigTable!F276=\"\",\"\",TEXT(OrigTable!F276,\"00\"))","v":""},{"$f":"IF(OrigTable!F276=\"\",\"\",ScriptText!$E$1&CHAR(10)&ScriptText!$C$1)","v":""},{"$f":"IF(OrigTable!G276=\"\",\"\",ScriptText!$B$1&CHAR(10)&ScriptText!$D$1)","v":""},{"$f":"IF(OrigTable!G276=\"\",\"\",TEXT(OrigTable!G276,\"00\"))","v":""},{"$f":"IF(OrigTable!G276=\"\",\"\",ScriptText!$E$1&CHAR(10)&ScriptText!$C$1)","v":""},276]
["<tr>\n<td>230</td>\n</tr>\n<tr>\n<td>Yes</td>\n221\n<tr>\n<td>Notification that an adjustment has been made under CAWR Reconciliation Program. Issued after the CAWR case has been closed and a tax adjustment has been made,\nbalance due, even balance or refund due.</td>\n</tr>\n<tr>\n<td>BMF Notices</td>\n</tr>",{"$f":"IF(OrigTable!A277=\"\",\"\",ScriptText!$B$1&CHAR(10)&ScriptText!$D$1)","v":"<tr>\n<td>"},{"$f":"IF(OrigTable!A277=\"\",\"\",TEXT(OrigTable!A277,\"00\"))","v":"230"},{"$f":"IF(OrigTable!A277=\"\",\"\",ScriptText!$E$1&CHAR(10)&ScriptText!$C$1)","v":"</td>\n</tr>"},{"$f":"IF(OrigTable!B277=\"\",\"\",ScriptText!$B$1&CHAR(10)&ScriptText!$D$1)","v":"<tr>\n<td>"},{"$f":"IF(OrigTable!B277=\"\",\"\",TEXT(OrigTable!B277,\"00\"))","v":"Yes"},{"$f":"IF(OrigTable!B277=\"\",\"\",ScriptText!$E$1&CHAR(10)&ScriptText!C272)","v":"</td>\n221"},{"$f":"IF(OrigTable!C277=\"\",\"\",ScriptText!$B$1&CHAR(10)&ScriptText!$D$1)","v":"<tr>\n<td>"},{"$f":"IF(OrigTable!C277=\"\",\"\",IF(LEN(OrigTable!C277)>255,LEFT(OrigTable!C277,250)&\". . .\",OrigTable!C277))","v":"Notification that an adjustment has been made under CAWR Reconciliation Program. Issued after the CAWR case has been closed and a tax adjustment has been made,\nbalance due, even balance or refund due."},{"$f":"IF(OrigTable!C277=\"\",\"\",ScriptText!$E$1&CHAR(10)&ScriptText!$C$1)","v":"</td>\n</tr>"},{"$f":"IF(OrigTable!D277=\"\",\"\",ScriptText!$B$1&CHAR(10)&ScriptText!$D$1)","v":"<tr>\n<td>"},{"$f":"IF(OrigTable!D277=\"\",\"\",TEXT(OrigTable!D277,\"00\"))","v":"BMF Notices"},{"$f":"IF(OrigTable!D277=\"\",\"\",ScriptText!$E$1&CHAR(10)&ScriptText!$C$1)","v":"</td>\n</tr>"},{"$f":"IF(OrigTable!E277=\"\",\"\",ScriptText!$B$1&CHAR(10)&ScriptText!$D$1)","v":""},{"$f":"IF(OrigTable!E277=\"\",\"\",TEXT(OrigTable!E277,\"00\"))","v":""},{"$f":"IF(OrigTable!E277=\"\",\"\",ScriptText!$E$1&CHAR(10)&ScriptText!$C$1)","v":""},{"$f":"IF(OrigTable!F277=\"\",\"\",ScriptText!$B$1&CHAR(10)&ScriptText!$D$1)","v":""},{"$f":"IF(OrigTable!F277=\"\",\"\",TEXT(OrigTable!F277,\"00\"))","v":""},{"$f":"IF(OrigTable!F277=\"\",\"\",ScriptText!$E$1&CHAR(10)&ScriptText!$C$1)","v":""},{"$f":"IF(OrigTable!G277=\"\",\"\",ScriptText!$B$1&CHAR(10)&ScriptText!$D$1)","v":""},{"$f":"IF(OrigTable!G277=\"\",\"\",TEXT(OrigTable!G277,\"00\"))","v":""},{"$f":"IF(OrigTable!G277=\"\",\"\",ScriptText!$E$1&CHAR(10)&ScriptText!$C$1)","v":""},277]
["<tr>\n<td>231</td>\n</tr>\n\n<tr>\n<td>Your refund check was returned to us</td>\n</tr>\n<tr>\n<td>BMF Notices</td>\n</tr>",{"$f":"IF(OrigTable!A278=\"\",\"\",ScriptText!$B$1&CHAR(10)&ScriptText!$D$1)","v":"<tr>\n<td>"},{"$f":"IF(OrigTable!A278=\"\",\"\",TEXT(OrigTable!A278,\"00\"))","v":"231"},{"$f":"IF(OrigTable!A278=\"\",\"\",ScriptText!$E$1&CHAR(10)&ScriptText!$C$1)","v":"</td>\n</tr>"},{"$f":"IF(OrigTable!B278=\"\",\"\",ScriptText!$B$1&CHAR(10)&ScriptText!$D$1)","v":""},{"$f":"IF(OrigTable!B278=\"\",\"\",TEXT(OrigTable!B278,\"00\"))","v":""},{"$f":"IF(OrigTable!B278=\"\",\"\",ScriptText!$E$1&CHAR(10)&ScriptText!C273)","v":""},{"$f":"IF(OrigTable!C278=\"\",\"\",ScriptText!$B$1&CHAR(10)&ScriptText!$D$1)","v":"<tr>\n<td>"},{"$f":"IF(OrigTable!C278=\"\",\"\",IF(LEN(OrigTable!C278)>255,LEFT(OrigTable!C278,250)&\". . .\",OrigTable!C278))","v":"Your refund check was returned to us"},{"$f":"IF(OrigTable!C278=\"\",\"\",ScriptText!$E$1&CHAR(10)&ScriptText!$C$1)","v":"</td>\n</tr>"},{"$f":"IF(OrigTable!D278=\"\",\"\",ScriptText!$B$1&CHAR(10)&ScriptText!$D$1)","v":"<tr>\n<td>"},{"$f":"IF(OrigTable!D278=\"\",\"\",TEXT(OrigTable!D278,\"00\"))","v":"BMF Notices"},{"$f":"IF(OrigTable!D278=\"\",\"\",ScriptText!$E$1&CHAR(10)&ScriptText!$C$1)","v":"</td>\n</tr>"},{"$f":"IF(OrigTable!E278=\"\",\"\",ScriptText!$B$1&CHAR(10)&ScriptText!$D$1)","v":""},{"$f":"IF(OrigTable!E278=\"\",\"\",TEXT(OrigTable!E278,\"00\"))","v":""},{"$f":"IF(OrigTable!E278=\"\",\"\",ScriptText!$E$1&CHAR(10)&ScriptText!$C$1)","v":""},{"$f":"IF(OrigTable!F278=\"\",\"\",ScriptText!$B$1&CHAR(10)&ScriptText!$D$1)","v":""},{"$f":"IF(OrigTable!F278=\"\",\"\",TEXT(OrigTable!F278,\"00\"))","v":""},{"$f":"IF(OrigTable!F278=\"\",\"\",ScriptText!$E$1&CHAR(10)&ScriptText!$C$1)","v":""},{"$f":"IF(OrigTable!G278=\"\",\"\",ScriptText!$B$1&CHAR(10)&ScriptText!$D$1)","v":""},{"$f":"IF(OrigTable!G278=\"\",\"\",TEXT(OrigTable!G278,\"00\"))","v":""},{"$f":"IF(OrigTable!G278=\"\",\"\",ScriptText!$E$1&CHAR(10)&ScriptText!$C$1)","v":""},278]
["<tr>\n<td>232A</td>\n</tr>\n\n<tr>\n<td>F5558 extension for F5330 approved</td>\n</tr>\n<tr>\n<td>BMF Notices</td>\n</tr>",{"$f":"IF(OrigTable!A279=\"\",\"\",ScriptText!$B$1&CHAR(10)&ScriptText!$D$1)","v":"<tr>\n<td>"},{"$f":"IF(OrigTable!A279=\"\",\"\",TEXT(OrigTable!A279,\"00\"))","v":"232A"},{"$f":"IF(OrigTable!A279=\"\",\"\",ScriptText!$E$1&CHAR(10)&ScriptText!$C$1)","v":"</td>\n</tr>"},{"$f":"IF(OrigTable!B279=\"\",\"\",ScriptText!$B$1&CHAR(10)&ScriptText!$D$1)","v":""},{"$f":"IF(OrigTable!B279=\"\",\"\",TEXT(OrigTable!B279,\"00\"))","v":""},{"$f":"IF(OrigTable!B279=\"\",\"\",ScriptText!$E$1&CHAR(10)&ScriptText!C274)","v":""},{"$f":"IF(OrigTable!C279=\"\",\"\",ScriptText!$B$1&CHAR(10)&ScriptText!$D$1)","v":"<tr>\n<td>"},{"$f":"IF(OrigTable!C279=\"\",\"\",IF(LEN(OrigTable!C279)>255,LEFT(OrigTable!C279,250)&\". . .\",OrigTable!C279))","v":"F5558 extension for F5330 approved"},{"$f":"IF(OrigTable!C279=\"\",\"\",ScriptText!$E$1&CHAR(10)&ScriptText!$C$1)","v":"</td>\n</tr>"},{"$f":"IF(OrigTable!D279=\"\",\"\",ScriptText!$B$1&CHAR(10)&ScriptText!$D$1)","v":"<tr>\n<td>"},{"$f":"IF(OrigTable!D279=\"\",\"\",TEXT(OrigTable!D279,\"00\"))","v":"BMF Notices"},{"$f":"IF(OrigTable!D279=\"\",\"\",ScriptText!$E$1&CHAR(10)&ScriptText!$C$1)","v":"</td>\n</tr>"},{"$f":"IF(OrigTable!E279=\"\",\"\",ScriptText!$B$1&CHAR(10)&ScriptText!$D$1)","v":""},{"$f":"IF(OrigTable!E279=\"\",\"\",TEXT(OrigTable!E279,\"00\"))","v":""},{"$f":"IF(OrigTable!E279=\"\",\"\",ScriptText!$E$1&CHAR(10)&ScriptText!$C$1)","v":""},{"$f":"IF(OrigTable!F279=\"\",\"\",ScriptText!$B$1&CHAR(10)&ScriptText!$D$1)","v":""},{"$f":"IF(OrigTable!F279=\"\",\"\",TEXT(OrigTable!F279,\"00\"))","v":""},{"$f":"IF(OrigTable!F279=\"\",\"\",ScriptText!$E$1&CHAR(10)&ScriptText!$C$1)","v":""},{"$f":"IF(OrigTable!G279=\"\",\"\",ScriptText!$B$1&CHAR(10)&ScriptText!$D$1)","v":""},{"$f":"IF(OrigTable!G279=\"\",\"\",TEXT(OrigTable!G279,\"00\"))","v":""},{"$f":"IF(OrigTable!G279=\"\",\"\",ScriptText!$E$1&CHAR(10)&ScriptText!$C$1)","v":""},279]
["<tr>\n<td>232B</td>\n</tr>\n\n<tr>\n<td>F5558 extension for F5330 denied not timely</td>\n</tr>\n<tr>\n<td>BMF Notices</td>\n</tr>",{"$f":"IF(OrigTable!A280=\"\",\"\",ScriptText!$B$1&CHAR(10)&ScriptText!$D$1)","v":"<tr>\n<td>"},{"$f":"IF(OrigTable!A280=\"\",\"\",TEXT(OrigTable!A280,\"00\"))","v":"232B"},{"$f":"IF(OrigTable!A280=\"\",\"\",ScriptText!$E$1&CHAR(10)&ScriptText!$C$1)","v":"</td>\n</tr>"},{"$f":"IF(OrigTable!B280=\"\",\"\",ScriptText!$B$1&CHAR(10)&ScriptText!$D$1)","v":""},{"$f":"IF(OrigTable!B280=\"\",\"\",TEXT(OrigTable!B280,\"00\"))","v":""},{"$f":"IF(OrigTable!B280=\"\",\"\",ScriptText!$E$1&CHAR(10)&ScriptText!C275)","v":""},{"$f":"IF(OrigTable!C280=\"\",\"\",ScriptText!$B$1&CHAR(10)&ScriptText!$D$1)","v":"<tr>\n<td>"},{"$f":"IF(OrigTable!C280=\"\",\"\",IF(LEN(OrigTable!C280)>255,LEFT(OrigTable!C280,250)&\". . .\",OrigTable!C280))","v":"F5558 extension for F5330 denied not timely"},{"$f":"IF(OrigTable!C280=\"\",\"\",ScriptText!$E$1&CHAR(10)&ScriptText!$C$1)","v":"</td>\n</tr>"},{"$f":"IF(OrigTable!D280=\"\",\"\",ScriptText!$B$1&CHAR(10)&ScriptText!$D$1)","v":"<tr>\n<td>"},{"$f":"IF(OrigTable!D280=\"\",\"\",TEXT(OrigTable!D280,\"00\"))","v":"BMF Notices"},{"$f":"IF(OrigTable!D280=\"\",\"\",ScriptText!$E$1&CHAR(10)&ScriptText!$C$1)","v":"</td>\n</tr>"},{"$f":"IF(OrigTable!E280=\"\",\"\",ScriptText!$B$1&CHAR(10)&ScriptText!$D$1)","v":""},{"$f":"IF(OrigTable!E280=\"\",\"\",TEXT(OrigTable!E280,\"00\"))","v":""},{"$f":"IF(OrigTable!E280=\"\",\"\",ScriptText!$E$1&CHAR(10)&ScriptText!$C$1)","v":""},{"$f":"IF(OrigTable!F280=\"\",\"\",ScriptText!$B$1&CHAR(10)&ScriptText!$D$1)","v":""},{"$f":"IF(OrigTable!F280=\"\",\"\",TEXT(OrigTable!F280,\"00\"))","v":""},{"$f":"IF(OrigTable!F280=\"\",\"\",ScriptText!$E$1&CHAR(10)&ScriptText!$C$1)","v":""},{"$f":"IF(OrigTable!G280=\"\",\"\",ScriptText!$B$1&CHAR(10)&ScriptText!$D$1)","v":""},{"$f":"IF(OrigTable!G280=\"\",\"\",TEXT(OrigTable!G280,\"00\"))","v":""},{"$f":"IF(OrigTable!G280=\"\",\"\",ScriptText!$E$1&CHAR(10)&ScriptText!$C$1)","v":""},280]
["<tr>\n<td>232C</td>\n</tr>\n\n<tr>\n<td>F5558 extension for F5330 denied not signed</td>\n</tr>\n<tr>\n<td>BMF Notices</td>\n</tr>",{"$f":"IF(OrigTable!A281=\"\",\"\",ScriptText!$B$1&CHAR(10)&ScriptText!$D$1)","v":"<tr>\n<td>"},{"$f":"IF(OrigTable!A281=\"\",\"\",TEXT(OrigTable!A281,\"00\"))","v":"232C"},{"$f":"IF(OrigTable!A281=\"\",\"\",ScriptText!$E$1&CHAR(10)&ScriptText!$C$1)","v":"</td>\n</tr>"},{"$f":"IF(OrigTable!B281=\"\",\"\",ScriptText!$B$1&CHAR(10)&ScriptText!$D$1)","v":""},{"$f":"IF(OrigTable!B281=\"\",\"\",TEXT(OrigTable!B281,\"00\"))","v":""},{"$f":"IF(OrigTable!B281=\"\",\"\",ScriptText!$E$1&CHAR(10)&ScriptText!C276)","v":""},{"$f":"IF(OrigTable!C281=\"\",\"\",ScriptText!$B$1&CHAR(10)&ScriptText!$D$1)","v":"<tr>\n<td>"},{"$f":"IF(OrigTable!C281=\"\",\"\",IF(LEN(OrigTable!C281)>255,LEFT(OrigTable!C281,250)&\". . .\",OrigTable!C281))","v":"F5558 extension for F5330 denied not signed"},{"$f":"IF(OrigTable!C281=\"\",\"\",ScriptText!$E$1&CHAR(10)&ScriptText!$C$1)","v":"</td>\n</tr>"},{"$f":"IF(OrigTable!D281=\"\",\"\",ScriptText!$B$1&CHAR(10)&ScriptText!$D$1)","v":"<tr>\n<td>"},{"$f":"IF(OrigTable!D281=\"\",\"\",TEXT(OrigTable!D281,\"00\"))","v":"BMF Notices"},{"$f":"IF(OrigTable!D281=\"\",\"\",ScriptText!$E$1&CHAR(10)&ScriptText!$C$1)","v":"</td>\n</tr>"},{"$f":"IF(OrigTable!E281=\"\",\"\",ScriptText!$B$1&CHAR(10)&ScriptText!$D$1)","v":""},{"$f":"IF(OrigTable!E281=\"\",\"\",TEXT(OrigTable!E281,\"00\"))","v":""},{"$f":"IF(OrigTable!E281=\"\",\"\",ScriptText!$E$1&CHAR(10)&ScriptText!$C$1)","v":""},{"$f":"IF(OrigTable!F281=\"\",\"\",ScriptText!$B$1&CHAR(10)&ScriptText!$D$1)","v":""},{"$f":"IF(OrigTable!F281=\"\",\"\",TEXT(OrigTable!F281,\"00\"))","v":""},{"$f":"IF(OrigTable!F281=\"\",\"\",ScriptText!$E$1&CHAR(10)&ScriptText!$C$1)","v":""},{"$f":"IF(OrigTable!G281=\"\",\"\",ScriptText!$B$1&CHAR(10)&ScriptText!$D$1)","v":""},{"$f":"IF(OrigTable!G281=\"\",\"\",TEXT(OrigTable!G281,\"00\"))","v":""},{"$f":"IF(OrigTable!G281=\"\",\"\",ScriptText!$E$1&CHAR(10)&ScriptText!$C$1)","v":""},281]
["<tr>\n<td>232D</td>\n</tr>\n\n<tr>\n<td>F5558 extension for F5330 denied unacceptable reason</td>\n</tr>\n<tr>\n<td>BMF Notices</td>\n</tr>",{"$f":"IF(OrigTable!A282=\"\",\"\",ScriptText!$B$1&CHAR(10)&ScriptText!$D$1)","v":"<tr>\n<td>"},{"$f":"IF(OrigTable!A282=\"\",\"\",TEXT(OrigTable!A282,\"00\"))","v":"232D"},{"$f":"IF(OrigTable!A282=\"\",\"\",ScriptText!$E$1&CHAR(10)&ScriptText!$C$1)","v":"</td>\n</tr>"},{"$f":"IF(OrigTable!B282=\"\",\"\",ScriptText!$B$1&CHAR(10)&ScriptText!$D$1)","v":""},{"$f":"IF(OrigTable!B282=\"\",\"\",TEXT(OrigTable!B282,\"00\"))","v":""},{"$f":"IF(OrigTable!B282=\"\",\"\",ScriptText!$E$1&CHAR(10)&ScriptText!C277)","v":""},{"$f":"IF(OrigTable!C282=\"\",\"\",ScriptText!$B$1&CHAR(10)&ScriptText!$D$1)","v":"<tr>\n<td>"},{"$f":"IF(OrigTable!C282=\"\",\"\",IF(LEN(OrigTable!C282)>255,LEFT(OrigTable!C282,250)&\". . .\",OrigTable!C282))","v":"F5558 extension for F5330 denied unacceptable reason"},{"$f":"IF(OrigTable!C282=\"\",\"\",ScriptText!$E$1&CHAR(10)&ScriptText!$C$1)","v":"</td>\n</tr>"},{"$f":"IF(OrigTable!D282=\"\",\"\",ScriptText!$B$1&CHAR(10)&ScriptText!$D$1)","v":"<tr>\n<td>"},{"$f":"IF(OrigTable!D282=\"\",\"\",TEXT(OrigTable!D282,\"00\"))","v":"BMF Notices"},{"$f":"IF(OrigTable!D282=\"\",\"\",ScriptText!$E$1&CHAR(10)&ScriptText!$C$1)","v":"</td>\n</tr>"},{"$f":"IF(OrigTable!E282=\"\",\"\",ScriptText!$B$1&CHAR(10)&ScriptText!$D$1)","v":""},{"$f":"IF(OrigTable!E282=\"\",\"\",TEXT(OrigTable!E282,\"00\"))","v":""},{"$f":"IF(OrigTable!E282=\"\",\"\",ScriptText!$E$1&CHAR(10)&ScriptText!$C$1)","v":""},{"$f":"IF(OrigTable!F282=\"\",\"\",ScriptText!$B$1&CHAR(10)&ScriptText!$D$1)","v":""},{"$f":"IF(OrigTable!F282=\"\",\"\",TEXT(OrigTable!F282,\"00\"))","v":""},{"$f":"IF(OrigTable!F282=\"\",\"\",ScriptText!$E$1&CHAR(10)&ScriptText!$C$1)","v":""},{"$f":"IF(OrigTable!G282=\"\",\"\",ScriptText!$B$1&CHAR(10)&ScriptText!$D$1)","v":""},{"$f":"IF(OrigTable!G282=\"\",\"\",TEXT(OrigTable!G282,\"00\"))","v":""},{"$f":"IF(OrigTable!G282=\"\",\"\",ScriptText!$E$1&CHAR(10)&ScriptText!$C$1)","v":""},282]
["<tr>\n<td>233J</td>\n</tr>\n\n<tr>\n<td>4980H Adjustment bal due, even bal or overpayment Notice</td>\n</tr>\n<tr>\n<td>BMF Notices</td>\n</tr>",{"$f":"IF(OrigTable!A283=\"\",\"\",ScriptText!$B$1&CHAR(10)&ScriptText!$D$1)","v":"<tr>\n<td>"},{"$f":"IF(OrigTable!A283=\"\",\"\",TEXT(OrigTable!A283,\"00\"))","v":"233J"},{"$f":"IF(OrigTable!A283=\"\",\"\",ScriptText!$E$1&CHAR(10)&ScriptText!$C$1)","v":"</td>\n</tr>"},{"$f":"IF(OrigTable!B283=\"\",\"\",ScriptText!$B$1&CHAR(10)&ScriptText!$D$1)","v":""},{"$f":"IF(OrigTable!B283=\"\",\"\",TEXT(OrigTable!B283,\"00\"))","v":""},{"$f":"IF(OrigTable!B283=\"\",\"\",ScriptText!$E$1&CHAR(10)&ScriptText!C278)","v":""},{"$f":"IF(OrigTable!C283=\"\",\"\",ScriptText!$B$1&CHAR(10)&ScriptText!$D$1)","v":"<tr>\n<td>"},{"$f":"IF(OrigTable!C283=\"\",\"\",IF(LEN(OrigTable!C283)>255,LEFT(OrigTable!C283,250)&\". . .\",OrigTable!C283))","v":"4980H Adjustment bal due, even bal or overpayment Notice"},{"$f":"IF(OrigTable!C283=\"\",\"\",ScriptText!$E$1&CHAR(10)&ScriptText!$C$1)","v":"</td>\n</tr>"},{"$f":"IF(OrigTable!D283=\"\",\"\",ScriptText!$B$1&CHAR(10)&ScriptText!$D$1)","v":"<tr>\n<td>"},{"$f":"IF(OrigTable!D283=\"\",\"\",TEXT(OrigTable!D283,\"00\"))","v":"BMF Notices"},{"$f":"IF(OrigTable!D283=\"\",\"\",ScriptText!$E$1&CHAR(10)&ScriptText!$C$1)","v":"</td>\n</tr>"},{"$f":"IF(OrigTable!E283=\"\",\"\",ScriptText!$B$1&CHAR(10)&ScriptText!$D$1)","v":""},{"$f":"IF(OrigTable!E283=\"\",\"\",TEXT(OrigTable!E283,\"00\"))","v":""},{"$f":"IF(OrigTable!E283=\"\",\"\",ScriptText!$E$1&CHAR(10)&ScriptText!$C$1)","v":""},{"$f":"IF(OrigTable!F283=\"\",\"\",ScriptText!$B$1&CHAR(10)&ScriptText!$D$1)","v":""},{"$f":"IF(OrigTable!F283=\"\",\"\",TEXT(OrigTable!F283,\"00\"))","v":""},{"$f":"IF(OrigTable!F283=\"\",\"\",ScriptText!$E$1&CHAR(10)&ScriptText!$C$1)","v":""},{"$f":"IF(OrigTable!G283=\"\",\"\",ScriptText!$B$1&CHAR(10)&ScriptText!$D$1)","v":""},{"$f":"IF(OrigTable!G283=\"\",\"\",TEXT(OrigTable!G283,\"00\"))","v":""},{"$f":"IF(OrigTable!G283=\"\",\"\",ScriptText!$E$1&CHAR(10)&ScriptText!$C$1)","v":""},283]
["<tr>\n<td>234</td>\n</tr>\n\n<tr>\n<td>Campus notice only. Potential ES penalty for F1120, 1120F, 1120L, 1120M and 990C</td>\n</tr>\n<tr>\n<td>BMF Notices</td>\n</tr>",{"$f":"IF(OrigTable!A284=\"\",\"\",ScriptText!$B$1&CHAR(10)&ScriptText!$D$1)","v":"<tr>\n<td>"},{"$f":"IF(OrigTable!A284=\"\",\"\",TEXT(OrigTable!A284,\"00\"))","v":"234"},{"$f":"IF(OrigTable!A284=\"\",\"\",ScriptText!$E$1&CHAR(10)&ScriptText!$C$1)","v":"</td>\n</tr>"},{"$f":"IF(OrigTable!B284=\"\",\"\",ScriptText!$B$1&CHAR(10)&ScriptText!$D$1)","v":""},{"$f":"IF(OrigTable!B284=\"\",\"\",TEXT(OrigTable!B284,\"00\"))","v":""},{"$f":"IF(OrigTable!B284=\"\",\"\",ScriptText!$E$1&CHAR(10)&ScriptText!C279)","v":""},{"$f":"IF(OrigTable!C284=\"\",\"\",ScriptText!$B$1&CHAR(10)&ScriptText!$D$1)","v":"<tr>\n<td>"},{"$f":"IF(OrigTable!C284=\"\",\"\",IF(LEN(OrigTable!C284)>255,LEFT(OrigTable!C284,250)&\". . .\",OrigTable!C284))","v":"Campus notice only. Potential ES penalty for F1120, 1120F, 1120L, 1120M and 990C"},{"$f":"IF(OrigTable!C284=\"\",\"\",ScriptText!$E$1&CHAR(10)&ScriptText!$C$1)","v":"</td>\n</tr>"},{"$f":"IF(OrigTable!D284=\"\",\"\",ScriptText!$B$1&CHAR(10)&ScriptText!$D$1)","v":"<tr>\n<td>"},{"$f":"IF(OrigTable!D284=\"\",\"\",TEXT(OrigTable!D284,\"00\"))","v":"BMF Notices"},{"$f":"IF(OrigTable!D284=\"\",\"\",ScriptText!$E$1&CHAR(10)&ScriptText!$C$1)","v":"</td>\n</tr>"},{"$f":"IF(OrigTable!E284=\"\",\"\",ScriptText!$B$1&CHAR(10)&ScriptText!$D$1)","v":""},{"$f":"IF(OrigTable!E284=\"\",\"\",TEXT(OrigTable!E284,\"00\"))","v":""},{"$f":"IF(OrigTable!E284=\"\",\"\",ScriptText!$E$1&CHAR(10)&ScriptText!$C$1)","v":""},{"$f":"IF(OrigTable!F284=\"\",\"\",ScriptText!$B$1&CHAR(10)&ScriptText!$D$1)","v":""},{"$f":"IF(OrigTable!F284=\"\",\"\",TEXT(OrigTable!F284,\"00\"))","v":""},{"$f":"IF(OrigTable!F284=\"\",\"\",ScriptText!$E$1&CHAR(10)&ScriptText!$C$1)","v":""},{"$f":"IF(OrigTable!G284=\"\",\"\",ScriptText!$B$1&CHAR(10)&ScriptText!$D$1)","v":""},{"$f":"IF(OrigTable!G284=\"\",\"\",TEXT(OrigTable!G284,\"00\"))","v":""},{"$f":"IF(OrigTable!G284=\"\",\"\",ScriptText!$E$1&CHAR(10)&ScriptText!$C$1)","v":""},284]
["<tr>\n<td>235</td>\n</tr>\n\n<tr>\n<td>FTD penalty waived due to change in requirements</td>\n</tr>\n<tr>\n<td>BMF Notices</td>\n</tr>",{"$f":"IF(OrigTable!A285=\"\",\"\",ScriptText!$B$1&CHAR(10)&ScriptText!$D$1)","v":"<tr>\n<td>"},{"$f":"IF(OrigTable!A285=\"\",\"\",TEXT(OrigTable!A285,\"00\"))","v":"235"},{"$f":"IF(OrigTable!A285=\"\",\"\",ScriptText!$E$1&CHAR(10)&ScriptText!$C$1)","v":"</td>\n</tr>"},{"$f":"IF(OrigTable!B285=\"\",\"\",ScriptText!$B$1&CHAR(10)&ScriptText!$D$1)","v":""},{"$f":"IF(OrigTable!B285=\"\",\"\",TEXT(OrigTable!B285,\"00\"))","v":""},{"$f":"IF(OrigTable!B285=\"\",\"\",ScriptText!$E$1&CHAR(10)&ScriptText!C280)","v":""},{"$f":"IF(OrigTable!C285=\"\",\"\",ScriptText!$B$1&CHAR(10)&ScriptText!$D$1)","v":"<tr>\n<td>"},{"$f":"IF(OrigTable!C285=\"\",\"\",IF(LEN(OrigTable!C285)>255,LEFT(OrigTable!C285,250)&\". . .\",OrigTable!C285))","v":"FTD penalty waived due to change in requirements"},{"$f":"IF(OrigTable!C285=\"\",\"\",ScriptText!$E$1&CHAR(10)&ScriptText!$C$1)","v":"</td>\n</tr>"},{"$f":"IF(OrigTable!D285=\"\",\"\",ScriptText!$B$1&CHAR(10)&ScriptText!$D$1)","v":"<tr>\n<td>"},{"$f":"IF(OrigTable!D285=\"\",\"\",TEXT(OrigTable!D285,\"00\"))","v":"BMF Notices"},{"$f":"IF(OrigTable!D285=\"\",\"\",ScriptText!$E$1&CHAR(10)&ScriptText!$C$1)","v":"</td>\n</tr>"},{"$f":"IF(OrigTable!E285=\"\",\"\",ScriptText!$B$1&CHAR(10)&ScriptText!$D$1)","v":""},{"$f":"IF(OrigTable!E285=\"\",\"\",TEXT(OrigTable!E285,\"00\"))","v":""},{"$f":"IF(OrigTable!E285=\"\",\"\",ScriptText!$E$1&CHAR(10)&ScriptText!$C$1)","v":""},{"$f":"IF(OrigTable!F285=\"\",\"\",ScriptText!$B$1&CHAR(10)&ScriptText!$D$1)","v":""},{"$f":"IF(OrigTable!F285=\"\",\"\",TEXT(OrigTable!F285,\"00\"))","v":""},{"$f":"IF(OrigTable!F285=\"\",\"\",ScriptText!$E$1&CHAR(10)&ScriptText!$C$1)","v":""},{"$f":"IF(OrigTable!G285=\"\",\"\",ScriptText!$B$1&CHAR(10)&ScriptText!$D$1)","v":""},{"$f":"IF(OrigTable!G285=\"\",\"\",TEXT(OrigTable!G285,\"00\"))","v":""},{"$f":"IF(OrigTable!G285=\"\",\"\",ScriptText!$E$1&CHAR(10)&ScriptText!$C$1)","v":""},285]
["<tr>\n<td>236</td>\n</tr>\n<tr>\n<td>No</td>\n232C\n<tr>\n<td>Deposit Requirement Reminder for Newly Required Semi-weekly Depositors</td>\n</tr>\n<tr>\n<td>BMF Notices</td>\n</tr>",{"$f":"IF(OrigTable!A286=\"\",\"\",ScriptText!$B$1&CHAR(10)&ScriptText!$D$1)","v":"<tr>\n<td>"},{"$f":"IF(OrigTable!A286=\"\",\"\",TEXT(OrigTable!A286,\"00\"))","v":"236"},{"$f":"IF(OrigTable!A286=\"\",\"\",ScriptText!$E$1&CHAR(10)&ScriptText!$C$1)","v":"</td>\n</tr>"},{"$f":"IF(OrigTable!B286=\"\",\"\",ScriptText!$B$1&CHAR(10)&ScriptText!$D$1)","v":"<tr>\n<td>"},{"$f":"IF(OrigTable!B286=\"\",\"\",TEXT(OrigTable!B286,\"00\"))","v":"No"},{"$f":"IF(OrigTable!B286=\"\",\"\",ScriptText!$E$1&CHAR(10)&ScriptText!C281)","v":"</td>\n232C"},{"$f":"IF(OrigTable!C286=\"\",\"\",ScriptText!$B$1&CHAR(10)&ScriptText!$D$1)","v":"<tr>\n<td>"},{"$f":"IF(OrigTable!C286=\"\",\"\",IF(LEN(OrigTable!C286)>255,LEFT(OrigTable!C286,250)&\". . .\",OrigTable!C286))","v":"Deposit Requirement Reminder for Newly Required Semi-weekly Depositors"},{"$f":"IF(OrigTable!C286=\"\",\"\",ScriptText!$E$1&CHAR(10)&ScriptText!$C$1)","v":"</td>\n</tr>"},{"$f":"IF(OrigTable!D286=\"\",\"\",ScriptText!$B$1&CHAR(10)&ScriptText!$D$1)","v":"<tr>\n<td>"},{"$f":"IF(OrigTable!D286=\"\",\"\",TEXT(OrigTable!D286,\"00\"))","v":"BMF Notices"},{"$f":"IF(OrigTable!D286=\"\",\"\",ScriptText!$E$1&CHAR(10)&ScriptText!$C$1)","v":"</td>\n</tr>"},{"$f":"IF(OrigTable!E286=\"\",\"\",ScriptText!$B$1&CHAR(10)&ScriptText!$D$1)","v":""},{"$f":"IF(OrigTable!E286=\"\",\"\",TEXT(OrigTable!E286,\"00\"))","v":""},{"$f":"IF(OrigTable!E286=\"\",\"\",ScriptText!$E$1&CHAR(10)&ScriptText!$C$1)","v":""},{"$f":"IF(OrigTable!F286=\"\",\"\",ScriptText!$B$1&CHAR(10)&ScriptText!$D$1)","v":""},{"$f":"IF(OrigTable!F286=\"\",\"\",TEXT(OrigTable!F286,\"00\"))","v":""},{"$f":"IF(OrigTable!F286=\"\",\"\",ScriptText!$E$1&CHAR(10)&ScriptText!$C$1)","v":""},{"$f":"IF(OrigTable!G286=\"\",\"\",ScriptText!$B$1&CHAR(10)&ScriptText!$D$1)","v":""},{"$f":"IF(OrigTable!G286=\"\",\"\",TEXT(OrigTable!G286,\"00\"))","v":""},{"$f":"IF(OrigTable!G286=\"\",\"\",ScriptText!$E$1&CHAR(10)&ScriptText!$C$1)","v":""},286]
["<tr>\n<td>237</td>\n</tr>\n<tr>\n<td>No</td>\n232D\n<tr>\n<td>Notification to taxpayer of Reason For Issuance of Replacement Refund Check.</td>\n</tr>\n<tr>\n<td>BMF Notices</td>\n</tr>",{"$f":"IF(OrigTable!A287=\"\",\"\",ScriptText!$B$1&CHAR(10)&ScriptText!$D$1)","v":"<tr>\n<td>"},{"$f":"IF(OrigTable!A287=\"\",\"\",TEXT(OrigTable!A287,\"00\"))","v":"237"},{"$f":"IF(OrigTable!A287=\"\",\"\",ScriptText!$E$1&CHAR(10)&ScriptText!$C$1)","v":"</td>\n</tr>"},{"$f":"IF(OrigTable!B287=\"\",\"\",ScriptText!$B$1&CHAR(10)&ScriptText!$D$1)","v":"<tr>\n<td>"},{"$f":"IF(OrigTable!B287=\"\",\"\",TEXT(OrigTable!B287,\"00\"))","v":"No"},{"$f":"IF(OrigTable!B287=\"\",\"\",ScriptText!$E$1&CHAR(10)&ScriptText!C282)","v":"</td>\n232D"},{"$f":"IF(OrigTable!C287=\"\",\"\",ScriptText!$B$1&CHAR(10)&ScriptText!$D$1)","v":"<tr>\n<td>"},{"$f":"IF(OrigTable!C287=\"\",\"\",IF(LEN(OrigTable!C287)>255,LEFT(OrigTable!C287,250)&\". . .\",OrigTable!C287))","v":"Notification to taxpayer of Reason For Issuance of Replacement Refund Check."},{"$f":"IF(OrigTable!C287=\"\",\"\",ScriptText!$E$1&CHAR(10)&ScriptText!$C$1)","v":"</td>\n</tr>"},{"$f":"IF(OrigTable!D287=\"\",\"\",ScriptText!$B$1&CHAR(10)&ScriptText!$D$1)","v":"<tr>\n<td>"},{"$f":"IF(OrigTable!D287=\"\",\"\",TEXT(OrigTable!D287,\"00\"))","v":"BMF Notices"},{"$f":"IF(OrigTable!D287=\"\",\"\",ScriptText!$E$1&CHAR(10)&ScriptText!$C$1)","v":"</td>\n</tr>"},{"$f":"IF(OrigTable!E287=\"\",\"\",ScriptText!$B$1&CHAR(10)&ScriptText!$D$1)","v":""},{"$f":"IF(OrigTable!E287=\"\",\"\",TEXT(OrigTable!E287,\"00\"))","v":""},{"$f":"IF(OrigTable!E287=\"\",\"\",ScriptText!$E$1&CHAR(10)&ScriptText!$C$1)","v":""},{"$f":"IF(OrigTable!F287=\"\",\"\",ScriptText!$B$1&CHAR(10)&ScriptText!$D$1)","v":""},{"$f":"IF(OrigTable!F287=\"\",\"\",TEXT(OrigTable!F287,\"00\"))","v":""},{"$f":"IF(OrigTable!F287=\"\",\"\",ScriptText!$E$1&CHAR(10)&ScriptText!$C$1)","v":""},{"$f":"IF(OrigTable!G287=\"\",\"\",ScriptText!$B$1&CHAR(10)&ScriptText!$D$1)","v":""},{"$f":"IF(OrigTable!G287=\"\",\"\",TEXT(OrigTable!G287,\"00\"))","v":""},{"$f":"IF(OrigTable!G287=\"\",\"\",ScriptText!$E$1&CHAR(10)&ScriptText!$C$1)","v":""},287]
["<tr>\n<td>237A</td>\n</tr>\n<tr>\n<td>No</td>\n233J\n<tr>\n<td>FMS Refund Cancellation (over $1000 or frozen account) Comes in as 537</td>\n</tr>\n<tr>\n<td>BMF Notices</td>\n</tr>",{"$f":"IF(OrigTable!A288=\"\",\"\",ScriptText!$B$1&CHAR(10)&ScriptText!$D$1)","v":"<tr>\n<td>"},{"$f":"IF(OrigTable!A288=\"\",\"\",TEXT(OrigTable!A288,\"00\"))","v":"237A"},{"$f":"IF(OrigTable!A288=\"\",\"\",ScriptText!$E$1&CHAR(10)&ScriptText!$C$1)","v":"</td>\n</tr>"},{"$f":"IF(OrigTable!B288=\"\",\"\",ScriptText!$B$1&CHAR(10)&ScriptText!$D$1)","v":"<tr>\n<td>"},{"$f":"IF(OrigTable!B288=\"\",\"\",TEXT(OrigTable!B288,\"00\"))","v":"No"},{"$f":"IF(OrigTable!B288=\"\",\"\",ScriptText!$E$1&CHAR(10)&ScriptText!C283)","v":"</td>\n233J"},{"$f":"IF(OrigTable!C288=\"\",\"\",ScriptText!$B$1&CHAR(10)&ScriptText!$D$1)","v":"<tr>\n<td>"},{"$f":"IF(OrigTable!C288=\"\",\"\",IF(LEN(OrigTable!C288)>255,LEFT(OrigTable!C288,250)&\". . .\",OrigTable!C288))","v":"FMS Refund Cancellation (over $1000 or frozen account) Comes in as 537"},{"$f":"IF(OrigTable!C288=\"\",\"\",ScriptText!$E$1&CHAR(10)&ScriptText!$C$1)","v":"</td>\n</tr>"},{"$f":"IF(OrigTable!D288=\"\",\"\",ScriptText!$B$1&CHAR(10)&ScriptText!$D$1)","v":"<tr>\n<td>"},{"$f":"IF(OrigTable!D288=\"\",\"\",TEXT(OrigTable!D288,\"00\"))","v":"BMF Notices"},{"$f":"IF(OrigTable!D288=\"\",\"\",ScriptText!$E$1&CHAR(10)&ScriptText!$C$1)","v":"</td>\n</tr>"},{"$f":"IF(OrigTable!E288=\"\",\"\",ScriptText!$B$1&CHAR(10)&ScriptText!$D$1)","v":""},{"$f":"IF(OrigTable!E288=\"\",\"\",TEXT(OrigTable!E288,\"00\"))","v":""},{"$f":"IF(OrigTable!E288=\"\",\"\",ScriptText!$E$1&CHAR(10)&ScriptText!$C$1)","v":""},{"$f":"IF(OrigTable!F288=\"\",\"\",ScriptText!$B$1&CHAR(10)&ScriptText!$D$1)","v":""},{"$f":"IF(OrigTable!F288=\"\",\"\",TEXT(OrigTable!F288,\"00\"))","v":""},{"$f":"IF(OrigTable!F288=\"\",\"\",ScriptText!$E$1&CHAR(10)&ScriptText!$C$1)","v":""},{"$f":"IF(OrigTable!G288=\"\",\"\",ScriptText!$B$1&CHAR(10)&ScriptText!$D$1)","v":""},{"$f":"IF(OrigTable!G288=\"\",\"\",TEXT(OrigTable!G288,\"00\"))","v":""},{"$f":"IF(OrigTable!G288=\"\",\"\",ScriptText!$E$1&CHAR(10)&ScriptText!$C$1)","v":""},288]
["<tr>\n<td>238</td>\n</tr>\n<tr>\n<td>No</td>\n234\n<tr>\n<td>Issued to inform taxpayer no penalty has been charged for late FTD’s (First time liable for return)</td>\n</tr>\n<tr>\n<td>BMF Notices</td>\n</tr>",{"$f":"IF(OrigTable!A289=\"\",\"\",ScriptText!$B$1&CHAR(10)&ScriptText!$D$1)","v":"<tr>\n<td>"},{"$f":"IF(OrigTable!A289=\"\",\"\",TEXT(OrigTable!A289,\"00\"))","v":"238"},{"$f":"IF(OrigTable!A289=\"\",\"\",ScriptText!$E$1&CHAR(10)&ScriptText!$C$1)","v":"</td>\n</tr>"},{"$f":"IF(OrigTable!B289=\"\",\"\",ScriptText!$B$1&CHAR(10)&ScriptText!$D$1)","v":"<tr>\n<td>"},{"$f":"IF(OrigTable!B289=\"\",\"\",TEXT(OrigTable!B289,\"00\"))","v":"No"},{"$f":"IF(OrigTable!B289=\"\",\"\",ScriptText!$E$1&CHAR(10)&ScriptText!C284)","v":"</td>\n234"},{"$f":"IF(OrigTable!C289=\"\",\"\",ScriptText!$B$1&CHAR(10)&ScriptText!$D$1)","v":"<tr>\n<td>"},{"$f":"IF(OrigTable!C289=\"\",\"\",IF(LEN(OrigTable!C289)>255,LEFT(OrigTable!C289,250)&\". . .\",OrigTable!C289))","v":"Issued to inform taxpayer no penalty has been charged for late FTD’s (First time liable for return)"},{"$f":"IF(OrigTable!C289=\"\",\"\",ScriptText!$E$1&CHAR(10)&ScriptText!$C$1)","v":"</td>\n</tr>"},{"$f":"IF(OrigTable!D289=\"\",\"\",ScriptText!$B$1&CHAR(10)&ScriptText!$D$1)","v":"<tr>\n<td>"},{"$f":"IF(OrigTable!D289=\"\",\"\",TEXT(OrigTable!D289,\"00\"))","v":"BMF Notices"},{"$f":"IF(OrigTable!D289=\"\",\"\",ScriptText!$E$1&CHAR(10)&ScriptText!$C$1)","v":"</td>\n</tr>"},{"$f":"IF(OrigTable!E289=\"\",\"\",ScriptText!$B$1&CHAR(10)&ScriptText!$D$1)","v":""},{"$f":"IF(OrigTable!E289=\"\",\"\",TEXT(OrigTable!E289,\"00\"))","v":""},{"$f":"IF(OrigTable!E289=\"\",\"\",ScriptText!$E$1&CHAR(10)&ScriptText!$C$1)","v":""},{"$f":"IF(OrigTable!F289=\"\",\"\",ScriptText!$B$1&CHAR(10)&ScriptText!$D$1)","v":""},{"$f":"IF(OrigTable!F289=\"\",\"\",TEXT(OrigTable!F289,\"00\"))","v":""},{"$f":"IF(OrigTable!F289=\"\",\"\",ScriptText!$E$1&CHAR(10)&ScriptText!$C$1)","v":""},{"$f":"IF(OrigTable!G289=\"\",\"\",ScriptText!$B$1&CHAR(10)&ScriptText!$D$1)","v":""},{"$f":"IF(OrigTable!G289=\"\",\"\",TEXT(OrigTable!G289,\"00\"))","v":""},{"$f":"IF(OrigTable!G289=\"\",\"\",ScriptText!$E$1&CHAR(10)&ScriptText!$C$1)","v":""},289]
["<tr>\n<td>240</td>\n</tr>\n<tr>\n<td>Yes</td>\n235\n<tr>\n<td>DP Adjustment – (CAWR) Balance Due of $5 or more and module not in TDA/BAL DUE\nstatus. TC 290 (BS 550-559) posts to MFT 01, 04, 11 modules.</td>\n</tr>\n<tr>\n<td>BMF Notices</td>\n</tr>",{"$f":"IF(OrigTable!A290=\"\",\"\",ScriptText!$B$1&CHAR(10)&ScriptText!$D$1)","v":"<tr>\n<td>"},{"$f":"IF(OrigTable!A290=\"\",\"\",TEXT(OrigTable!A290,\"00\"))","v":"240"},{"$f":"IF(OrigTable!A290=\"\",\"\",ScriptText!$E$1&CHAR(10)&ScriptText!$C$1)","v":"</td>\n</tr>"},{"$f":"IF(OrigTable!B290=\"\",\"\",ScriptText!$B$1&CHAR(10)&ScriptText!$D$1)","v":"<tr>\n<td>"},{"$f":"IF(OrigTable!B290=\"\",\"\",TEXT(OrigTable!B290,\"00\"))","v":"Yes"},{"$f":"IF(OrigTable!B290=\"\",\"\",ScriptText!$E$1&CHAR(10)&ScriptText!C285)","v":"</td>\n235"},{"$f":"IF(OrigTable!C290=\"\",\"\",ScriptText!$B$1&CHAR(10)&ScriptText!$D$1)","v":"<tr>\n<td>"},{"$f":"IF(OrigTable!C290=\"\",\"\",IF(LEN(OrigTable!C290)>255,LEFT(OrigTable!C290,250)&\". . .\",OrigTable!C290))","v":"DP Adjustment – (CAWR) Balance Due of $5 or more and module not in TDA/BAL DUE\nstatus. TC 290 (BS 550-559) posts to MFT 01, 04, 11 modules."},{"$f":"IF(OrigTable!C290=\"\",\"\",ScriptText!$E$1&CHAR(10)&ScriptText!$C$1)","v":"</td>\n</tr>"},{"$f":"IF(OrigTable!D290=\"\",\"\",ScriptText!$B$1&CHAR(10)&ScriptText!$D$1)","v":"<tr>\n<td>"},{"$f":"IF(OrigTable!D290=\"\",\"\",TEXT(OrigTable!D290,\"00\"))","v":"BMF Notices"},{"$f":"IF(OrigTable!D290=\"\",\"\",ScriptText!$E$1&CHAR(10)&ScriptText!$C$1)","v":"</td>\n</tr>"},{"$f":"IF(OrigTable!E290=\"\",\"\",ScriptText!$B$1&CHAR(10)&ScriptText!$D$1)","v":""},{"$f":"IF(OrigTable!E290=\"\",\"\",TEXT(OrigTable!E290,\"00\"))","v":""},{"$f":"IF(OrigTable!E290=\"\",\"\",ScriptText!$E$1&CHAR(10)&ScriptText!$C$1)","v":""},{"$f":"IF(OrigTable!F290=\"\",\"\",ScriptText!$B$1&CHAR(10)&ScriptText!$D$1)","v":""},{"$f":"IF(OrigTable!F290=\"\",\"\",TEXT(OrigTable!F290,\"00\"))","v":""},{"$f":"IF(OrigTable!F290=\"\",\"\",ScriptText!$E$1&CHAR(10)&ScriptText!$C$1)","v":""},{"$f":"IF(OrigTable!G290=\"\",\"\",ScriptText!$B$1&CHAR(10)&ScriptText!$D$1)","v":""},{"$f":"IF(OrigTable!G290=\"\",\"\",TEXT(OrigTable!G290,\"00\"))","v":""},{"$f":"IF(OrigTable!G290=\"\",\"\",ScriptText!$E$1&CHAR(10)&ScriptText!$C$1)","v":""},290]
["<tr>\n<td>241</td>\n</tr>\n<tr>\n<td>No</td>\n236\n<tr>\n<td>Campus only notice will generate to D.O. Exam Division, 637 Coordinator.</td>\n</tr>\n<tr>\n<td>BMF Notices</td>\n</tr>",{"$f":"IF(OrigTable!A291=\"\",\"\",ScriptText!$B$1&CHAR(10)&ScriptText!$D$1)","v":"<tr>\n<td>"},{"$f":"IF(OrigTable!A291=\"\",\"\",TEXT(OrigTable!A291,\"00\"))","v":"241"},{"$f":"IF(OrigTable!A291=\"\",\"\",ScriptText!$E$1&CHAR(10)&ScriptText!$C$1)","v":"</td>\n</tr>"},{"$f":"IF(OrigTable!B291=\"\",\"\",ScriptText!$B$1&CHAR(10)&ScriptText!$D$1)","v":"<tr>\n<td>"},{"$f":"IF(OrigTable!B291=\"\",\"\",TEXT(OrigTable!B291,\"00\"))","v":"No"},{"$f":"IF(OrigTable!B291=\"\",\"\",ScriptText!$E$1&CHAR(10)&ScriptText!C286)","v":"</td>\n236"},{"$f":"IF(OrigTable!C291=\"\",\"\",ScriptText!$B$1&CHAR(10)&ScriptText!$D$1)","v":"<tr>\n<td>"},{"$f":"IF(OrigTable!C291=\"\",\"\",IF(LEN(OrigTable!C291)>255,LEFT(OrigTable!C291,250)&\". . .\",OrigTable!C291))","v":"Campus only notice will generate to D.O. Exam Division, 637 Coordinator."},{"$f":"IF(OrigTable!C291=\"\",\"\",ScriptText!$E$1&CHAR(10)&ScriptText!$C$1)","v":"</td>\n</tr>"},{"$f":"IF(OrigTable!D291=\"\",\"\",ScriptText!$B$1&CHAR(10)&ScriptText!$D$1)","v":"<tr>\n<td>"},{"$f":"IF(OrigTable!D291=\"\",\"\",TEXT(OrigTable!D291,\"00\"))","v":"BMF Notices"},{"$f":"IF(OrigTable!D291=\"\",\"\",ScriptText!$E$1&CHAR(10)&ScriptText!$C$1)","v":"</td>\n</tr>"},{"$f":"IF(OrigTable!E291=\"\",\"\",ScriptText!$B$1&CHAR(10)&ScriptText!$D$1)","v":""},{"$f":"IF(OrigTable!E291=\"\",\"\",TEXT(OrigTable!E291,\"00\"))","v":""},{"$f":"IF(OrigTable!E291=\"\",\"\",ScriptText!$E$1&CHAR(10)&ScriptText!$C$1)","v":""},{"$f":"IF(OrigTable!F291=\"\",\"\",ScriptText!$B$1&CHAR(10)&ScriptText!$D$1)","v":""},{"$f":"IF(OrigTable!F291=\"\",\"\",TEXT(OrigTable!F291,\"00\"))","v":""},{"$f":"IF(OrigTable!F291=\"\",\"\",ScriptText!$E$1&CHAR(10)&ScriptText!$C$1)","v":""},{"$f":"IF(OrigTable!G291=\"\",\"\",ScriptText!$B$1&CHAR(10)&ScriptText!$D$1)","v":""},{"$f":"IF(OrigTable!G291=\"\",\"\",TEXT(OrigTable!G291,\"00\"))","v":""},{"$f":"IF(OrigTable!G291=\"\",\"\",ScriptText!$E$1&CHAR(10)&ScriptText!$C$1)","v":""},291]
["<tr>\n<td>242</td>\n</tr>\n<tr>\n<td>No</td>\n237\n<tr>\n<td>Notice of Levy on Your State Tax Refund. Notice of Your Right to a Hearing.</td>\n</tr>\n<tr>\n<td>BMF Notices</td>\n</tr>",{"$f":"IF(OrigTable!A292=\"\",\"\",ScriptText!$B$1&CHAR(10)&ScriptText!$D$1)","v":"<tr>\n<td>"},{"$f":"IF(OrigTable!A292=\"\",\"\",TEXT(OrigTable!A292,\"00\"))","v":"242"},{"$f":"IF(OrigTable!A292=\"\",\"\",ScriptText!$E$1&CHAR(10)&ScriptText!$C$1)","v":"</td>\n</tr>"},{"$f":"IF(OrigTable!B292=\"\",\"\",ScriptText!$B$1&CHAR(10)&ScriptText!$D$1)","v":"<tr>\n<td>"},{"$f":"IF(OrigTable!B292=\"\",\"\",TEXT(OrigTable!B292,\"00\"))","v":"No"},{"$f":"IF(OrigTable!B292=\"\",\"\",ScriptText!$E$1&CHAR(10)&ScriptText!C287)","v":"</td>\n237"},{"$f":"IF(OrigTable!C292=\"\",\"\",ScriptText!$B$1&CHAR(10)&ScriptText!$D$1)","v":"<tr>\n<td>"},{"$f":"IF(OrigTable!C292=\"\",\"\",IF(LEN(OrigTable!C292)>255,LEFT(OrigTable!C292,250)&\". . .\",OrigTable!C292))","v":"Notice of Levy on Your State Tax Refund. Notice of Your Right to a Hearing."},{"$f":"IF(OrigTable!C292=\"\",\"\",ScriptText!$E$1&CHAR(10)&ScriptText!$C$1)","v":"</td>\n</tr>"},{"$f":"IF(OrigTable!D292=\"\",\"\",ScriptText!$B$1&CHAR(10)&ScriptText!$D$1)","v":"<tr>\n<td>"},{"$f":"IF(OrigTable!D292=\"\",\"\",TEXT(OrigTable!D292,\"00\"))","v":"BMF Notices"},{"$f":"IF(OrigTable!D292=\"\",\"\",ScriptText!$E$1&CHAR(10)&ScriptText!$C$1)","v":"</td>\n</tr>"},{"$f":"IF(OrigTable!E292=\"\",\"\",ScriptText!$B$1&CHAR(10)&ScriptText!$D$1)","v":""},{"$f":"IF(OrigTable!E292=\"\",\"\",TEXT(OrigTable!E292,\"00\"))","v":""},{"$f":"IF(OrigTable!E292=\"\",\"\",ScriptText!$E$1&CHAR(10)&ScriptText!$C$1)","v":""},{"$f":"IF(OrigTable!F292=\"\",\"\",ScriptText!$B$1&CHAR(10)&ScriptText!$D$1)","v":""},{"$f":"IF(OrigTable!F292=\"\",\"\",TEXT(OrigTable!F292,\"00\"))","v":""},{"$f":"IF(OrigTable!F292=\"\",\"\",ScriptText!$E$1&CHAR(10)&ScriptText!$C$1)","v":""},{"$f":"IF(OrigTable!G292=\"\",\"\",ScriptText!$B$1&CHAR(10)&ScriptText!$D$1)","v":""},{"$f":"IF(OrigTable!G292=\"\",\"\",TEXT(OrigTable!G292,\"00\"))","v":""},{"$f":"IF(OrigTable!G292=\"\",\"\",ScriptText!$E$1&CHAR(10)&ScriptText!$C$1)","v":""},292]
["<tr>\n<td>248</td>\n</tr>\n<tr>\n<td>No</td>\n237A\n<tr>\n<td>Non-electronic FTD deposited when taxpayer is required to file electronically</td>\n</tr>\n<tr>\n<td>BMF Notices</td>\n</tr>",{"$f":"IF(OrigTable!A293=\"\",\"\",ScriptText!$B$1&CHAR(10)&ScriptText!$D$1)","v":"<tr>\n<td>"},{"$f":"IF(OrigTable!A293=\"\",\"\",TEXT(OrigTable!A293,\"00\"))","v":"248"},{"$f":"IF(OrigTable!A293=\"\",\"\",ScriptText!$E$1&CHAR(10)&ScriptText!$C$1)","v":"</td>\n</tr>"},{"$f":"IF(OrigTable!B293=\"\",\"\",ScriptText!$B$1&CHAR(10)&ScriptText!$D$1)","v":"<tr>\n<td>"},{"$f":"IF(OrigTable!B293=\"\",\"\",TEXT(OrigTable!B293,\"00\"))","v":"No"},{"$f":"IF(OrigTable!B293=\"\",\"\",ScriptText!$E$1&CHAR(10)&ScriptText!C288)","v":"</td>\n237A"},{"$f":"IF(OrigTable!C293=\"\",\"\",ScriptText!$B$1&CHAR(10)&ScriptText!$D$1)","v":"<tr>\n<td>"},{"$f":"IF(OrigTable!C293=\"\",\"\",IF(LEN(OrigTable!C293)>255,LEFT(OrigTable!C293,250)&\". . .\",OrigTable!C293))","v":"Non-electronic FTD deposited when taxpayer is required to file electronically"},{"$f":"IF(OrigTable!C293=\"\",\"\",ScriptText!$E$1&CHAR(10)&ScriptText!$C$1)","v":"</td>\n</tr>"},{"$f":"IF(OrigTable!D293=\"\",\"\",ScriptText!$B$1&CHAR(10)&ScriptText!$D$1)","v":"<tr>\n<td>"},{"$f":"IF(OrigTable!D293=\"\",\"\",TEXT(OrigTable!D293,\"00\"))","v":"BMF Notices"},{"$f":"IF(OrigTable!D293=\"\",\"\",ScriptText!$E$1&CHAR(10)&ScriptText!$C$1)","v":"</td>\n</tr>"},{"$f":"IF(OrigTable!E293=\"\",\"\",ScriptText!$B$1&CHAR(10)&ScriptText!$D$1)","v":""},{"$f":"IF(OrigTable!E293=\"\",\"\",TEXT(OrigTable!E293,\"00\"))","v":""},{"$f":"IF(OrigTable!E293=\"\",\"\",ScriptText!$E$1&CHAR(10)&ScriptText!$C$1)","v":""},{"$f":"IF(OrigTable!F293=\"\",\"\",ScriptText!$B$1&CHAR(10)&ScriptText!$D$1)","v":""},{"$f":"IF(OrigTable!F293=\"\",\"\",TEXT(OrigTable!F293,\"00\"))","v":""},{"$f":"IF(OrigTable!F293=\"\",\"\",ScriptText!$E$1&CHAR(10)&ScriptText!$C$1)","v":""},{"$f":"IF(OrigTable!G293=\"\",\"\",ScriptText!$B$1&CHAR(10)&ScriptText!$D$1)","v":""},{"$f":"IF(OrigTable!G293=\"\",\"\",TEXT(OrigTable!G293,\"00\"))","v":""},{"$f":"IF(OrigTable!G293=\"\",\"\",ScriptText!$E$1&CHAR(10)&ScriptText!$C$1)","v":""},293]
["<tr>\n<td>249A</td>\n</tr>\n\n<tr>\n<td>Form 8871 Not Filed</td>\n</tr>\n<tr>\n<td>BMF Notices</td>\n</tr>",{"$f":"IF(OrigTable!A294=\"\",\"\",ScriptText!$B$1&CHAR(10)&ScriptText!$D$1)","v":"<tr>\n<td>"},{"$f":"IF(OrigTable!A294=\"\",\"\",TEXT(OrigTable!A294,\"00\"))","v":"249A"},{"$f":"IF(OrigTable!A294=\"\",\"\",ScriptText!$E$1&CHAR(10)&ScriptText!$C$1)","v":"</td>\n</tr>"},{"$f":"IF(OrigTable!B294=\"\",\"\",ScriptText!$B$1&CHAR(10)&ScriptText!$D$1)","v":""},{"$f":"IF(OrigTable!B294=\"\",\"\",TEXT(OrigTable!B294,\"00\"))","v":""},{"$f":"IF(OrigTable!B294=\"\",\"\",ScriptText!$E$1&CHAR(10)&ScriptText!C289)","v":""},{"$f":"IF(OrigTable!C294=\"\",\"\",ScriptText!$B$1&CHAR(10)&ScriptText!$D$1)","v":"<tr>\n<td>"},{"$f":"IF(OrigTable!C294=\"\",\"\",IF(LEN(OrigTable!C294)>255,LEFT(OrigTable!C294,250)&\". . .\",OrigTable!C294))","v":"Form 8871 Not Filed"},{"$f":"IF(OrigTable!C294=\"\",\"\",ScriptText!$E$1&CHAR(10)&ScriptText!$C$1)","v":"</td>\n</tr>"},{"$f":"IF(OrigTable!D294=\"\",\"\",ScriptText!$B$1&CHAR(10)&ScriptText!$D$1)","v":"<tr>\n<td>"},{"$f":"IF(OrigTable!D294=\"\",\"\",TEXT(OrigTable!D294,\"00\"))","v":"BMF Notices"},{"$f":"IF(OrigTable!D294=\"\",\"\",ScriptText!$E$1&CHAR(10)&ScriptText!$C$1)","v":"</td>\n</tr>"},{"$f":"IF(OrigTable!E294=\"\",\"\",ScriptText!$B$1&CHAR(10)&ScriptText!$D$1)","v":""},{"$f":"IF(OrigTable!E294=\"\",\"\",TEXT(OrigTable!E294,\"00\"))","v":""},{"$f":"IF(OrigTable!E294=\"\",\"\",ScriptText!$E$1&CHAR(10)&ScriptText!$C$1)","v":""},{"$f":"IF(OrigTable!F294=\"\",\"\",ScriptText!$B$1&CHAR(10)&ScriptText!$D$1)","v":""},{"$f":"IF(OrigTable!F294=\"\",\"\",TEXT(OrigTable!F294,\"00\"))","v":""},{"$f":"IF(OrigTable!F294=\"\",\"\",ScriptText!$E$1&CHAR(10)&ScriptText!$C$1)","v":""},{"$f":"IF(OrigTable!G294=\"\",\"\",ScriptText!$B$1&CHAR(10)&ScriptText!$D$1)","v":""},{"$f":"IF(OrigTable!G294=\"\",\"\",TEXT(OrigTable!G294,\"00\"))","v":""},{"$f":"IF(OrigTable!G294=\"\",\"\",ScriptText!$E$1&CHAR(10)&ScriptText!$C$1)","v":""},294]
["<tr>\n<td>249B</td>\n</tr>\n\n<tr>\n<td>Form 8872 Late</td>\n</tr>\n<tr>\n<td>BMF Notices</td>\n</tr>",{"$f":"IF(OrigTable!A295=\"\",\"\",ScriptText!$B$1&CHAR(10)&ScriptText!$D$1)","v":"<tr>\n<td>"},{"$f":"IF(OrigTable!A295=\"\",\"\",TEXT(OrigTable!A295,\"00\"))","v":"249B"},{"$f":"IF(OrigTable!A295=\"\",\"\",ScriptText!$E$1&CHAR(10)&ScriptText!$C$1)","v":"</td>\n</tr>"},{"$f":"IF(OrigTable!B295=\"\",\"\",ScriptText!$B$1&CHAR(10)&ScriptText!$D$1)","v":""},{"$f":"IF(OrigTable!B295=\"\",\"\",TEXT(OrigTable!B295,\"00\"))","v":""},{"$f":"IF(OrigTable!B295=\"\",\"\",ScriptText!$E$1&CHAR(10)&ScriptText!C290)","v":""},{"$f":"IF(OrigTable!C295=\"\",\"\",ScriptText!$B$1&CHAR(10)&ScriptText!$D$1)","v":"<tr>\n<td>"},{"$f":"IF(OrigTable!C295=\"\",\"\",IF(LEN(OrigTable!C295)>255,LEFT(OrigTable!C295,250)&\". . .\",OrigTable!C295))","v":"Form 8872 Late"},{"$f":"IF(OrigTable!C295=\"\",\"\",ScriptText!$E$1&CHAR(10)&ScriptText!$C$1)","v":"</td>\n</tr>"},{"$f":"IF(OrigTable!D295=\"\",\"\",ScriptText!$B$1&CHAR(10)&ScriptText!$D$1)","v":"<tr>\n<td>"},{"$f":"IF(OrigTable!D295=\"\",\"\",TEXT(OrigTable!D295,\"00\"))","v":"BMF Notices"},{"$f":"IF(OrigTable!D295=\"\",\"\",ScriptText!$E$1&CHAR(10)&ScriptText!$C$1)","v":"</td>\n</tr>"},{"$f":"IF(OrigTable!E295=\"\",\"\",ScriptText!$B$1&CHAR(10)&ScriptText!$D$1)","v":""},{"$f":"IF(OrigTable!E295=\"\",\"\",TEXT(OrigTable!E295,\"00\"))","v":""},{"$f":"IF(OrigTable!E295=\"\",\"\",ScriptText!$E$1&CHAR(10)&ScriptText!$C$1)","v":""},{"$f":"IF(OrigTable!F295=\"\",\"\",ScriptText!$B$1&CHAR(10)&ScriptText!$D$1)","v":""},{"$f":"IF(OrigTable!F295=\"\",\"\",TEXT(OrigTable!F295,\"00\"))","v":""},{"$f":"IF(OrigTable!F295=\"\",\"\",ScriptText!$E$1&CHAR(10)&ScriptText!$C$1)","v":""},{"$f":"IF(OrigTable!G295=\"\",\"\",ScriptText!$B$1&CHAR(10)&ScriptText!$D$1)","v":""},{"$f":"IF(OrigTable!G295=\"\",\"\",TEXT(OrigTable!G295,\"00\"))","v":""},{"$f":"IF(OrigTable!G295=\"\",\"\",ScriptText!$E$1&CHAR(10)&ScriptText!$C$1)","v":""},295]
["<tr>\n<td>249C</td>\n</tr>\n\n<tr>\n<td>Form 8872 Not Filed</td>\n</tr>\n<tr>\n<td>BMF Notices</td>\n</tr>",{"$f":"IF(OrigTable!A296=\"\",\"\",ScriptText!$B$1&CHAR(10)&ScriptText!$D$1)","v":"<tr>\n<td>"},{"$f":"IF(OrigTable!A296=\"\",\"\",TEXT(OrigTable!A296,\"00\"))","v":"249C"},{"$f":"IF(OrigTable!A296=\"\",\"\",ScriptText!$E$1&CHAR(10)&ScriptText!$C$1)","v":"</td>\n</tr>"},{"$f":"IF(OrigTable!B296=\"\",\"\",ScriptText!$B$1&CHAR(10)&ScriptText!$D$1)","v":""},{"$f":"IF(OrigTable!B296=\"\",\"\",TEXT(OrigTable!B296,\"00\"))","v":""},{"$f":"IF(OrigTable!B296=\"\",\"\",ScriptText!$E$1&CHAR(10)&ScriptText!C291)","v":""},{"$f":"IF(OrigTable!C296=\"\",\"\",ScriptText!$B$1&CHAR(10)&ScriptText!$D$1)","v":"<tr>\n<td>"},{"$f":"IF(OrigTable!C296=\"\",\"\",IF(LEN(OrigTable!C296)>255,LEFT(OrigTable!C296,250)&\". . .\",OrigTable!C296))","v":"Form 8872 Not Filed"},{"$f":"IF(OrigTable!C296=\"\",\"\",ScriptText!$E$1&CHAR(10)&ScriptText!$C$1)","v":"</td>\n</tr>"},{"$f":"IF(OrigTable!D296=\"\",\"\",ScriptText!$B$1&CHAR(10)&ScriptText!$D$1)","v":"<tr>\n<td>"},{"$f":"IF(OrigTable!D296=\"\",\"\",TEXT(OrigTable!D296,\"00\"))","v":"BMF Notices"},{"$f":"IF(OrigTable!D296=\"\",\"\",ScriptText!$E$1&CHAR(10)&ScriptText!$C$1)","v":"</td>\n</tr>"},{"$f":"IF(OrigTable!E296=\"\",\"\",ScriptText!$B$1&CHAR(10)&ScriptText!$D$1)","v":""},{"$f":"IF(OrigTable!E296=\"\",\"\",TEXT(OrigTable!E296,\"00\"))","v":""},{"$f":"IF(OrigTable!E296=\"\",\"\",ScriptText!$E$1&CHAR(10)&ScriptText!$C$1)","v":""},{"$f":"IF(OrigTable!F296=\"\",\"\",ScriptText!$B$1&CHAR(10)&ScriptText!$D$1)","v":""},{"$f":"IF(OrigTable!F296=\"\",\"\",TEXT(OrigTable!F296,\"00\"))","v":""},{"$f":"IF(OrigTable!F296=\"\",\"\",ScriptText!$E$1&CHAR(10)&ScriptText!$C$1)","v":""},{"$f":"IF(OrigTable!G296=\"\",\"\",ScriptText!$B$1&CHAR(10)&ScriptText!$D$1)","v":""},{"$f":"IF(OrigTable!G296=\"\",\"\",TEXT(OrigTable!G296,\"00\"))","v":""},{"$f":"IF(OrigTable!G296=\"\",\"\",ScriptText!$E$1&CHAR(10)&ScriptText!$C$1)","v":""},296]
["<tr>\n<td>250A</td>\n</tr>\n<tr>\n<td>No</td>\n242\n<tr>\n<td>Notification to Form 944 filer that they should file 941 for first quarter of next calendar year.</td>\n</tr>\n<tr>\n<td>BMF Notices</td>\n</tr>",{"$f":"IF(OrigTable!A297=\"\",\"\",ScriptText!$B$1&CHAR(10)&ScriptText!$D$1)","v":"<tr>\n<td>"},{"$f":"IF(OrigTable!A297=\"\",\"\",TEXT(OrigTable!A297,\"00\"))","v":"250A"},{"$f":"IF(OrigTable!A297=\"\",\"\",ScriptText!$E$1&CHAR(10)&ScriptText!$C$1)","v":"</td>\n</tr>"},{"$f":"IF(OrigTable!B297=\"\",\"\",ScriptText!$B$1&CHAR(10)&ScriptText!$D$1)","v":"<tr>\n<td>"},{"$f":"IF(OrigTable!B297=\"\",\"\",TEXT(OrigTable!B297,\"00\"))","v":"No"},{"$f":"IF(OrigTable!B297=\"\",\"\",ScriptText!$E$1&CHAR(10)&ScriptText!C292)","v":"</td>\n242"},{"$f":"IF(OrigTable!C297=\"\",\"\",ScriptText!$B$1&CHAR(10)&ScriptText!$D$1)","v":"<tr>\n<td>"},{"$f":"IF(OrigTable!C297=\"\",\"\",IF(LEN(OrigTable!C297)>255,LEFT(OrigTable!C297,250)&\". . .\",OrigTable!C297))","v":"Notification to Form 944 filer that they should file 941 for first quarter of next calendar year."},{"$f":"IF(OrigTable!C297=\"\",\"\",ScriptText!$E$1&CHAR(10)&ScriptText!$C$1)","v":"</td>\n</tr>"},{"$f":"IF(OrigTable!D297=\"\",\"\",ScriptText!$B$1&CHAR(10)&ScriptText!$D$1)","v":"<tr>\n<td>"},{"$f":"IF(OrigTable!D297=\"\",\"\",TEXT(OrigTable!D297,\"00\"))","v":"BMF Notices"},{"$f":"IF(OrigTable!D297=\"\",\"\",ScriptText!$E$1&CHAR(10)&ScriptText!$C$1)","v":"</td>\n</tr>"},{"$f":"IF(OrigTable!E297=\"\",\"\",ScriptText!$B$1&CHAR(10)&ScriptText!$D$1)","v":""},{"$f":"IF(OrigTable!E297=\"\",\"\",TEXT(OrigTable!E297,\"00\"))","v":""},{"$f":"IF(OrigTable!E297=\"\",\"\",ScriptText!$E$1&CHAR(10)&ScriptText!$C$1)","v":""},{"$f":"IF(OrigTable!F297=\"\",\"\",ScriptText!$B$1&CHAR(10)&ScriptText!$D$1)","v":""},{"$f":"IF(OrigTable!F297=\"\",\"\",TEXT(OrigTable!F297,\"00\"))","v":""},{"$f":"IF(OrigTable!F297=\"\",\"\",ScriptText!$E$1&CHAR(10)&ScriptText!$C$1)","v":""},{"$f":"IF(OrigTable!G297=\"\",\"\",ScriptText!$B$1&CHAR(10)&ScriptText!$D$1)","v":""},{"$f":"IF(OrigTable!G297=\"\",\"\",TEXT(OrigTable!G297,\"00\"))","v":""},{"$f":"IF(OrigTable!G297=\"\",\"\",ScriptText!$E$1&CHAR(10)&ScriptText!$C$1)","v":""},297]
["<tr>\n<td>250B</td>\n</tr>\n<tr>\n<td>No</td>\n248\n<tr>\n<td>Notification to Form 944 filer that they should file 941 for first quarter of second calendar year.</td>\n</tr>\n<tr>\n<td>BMF Notices</td>\n</tr>",{"$f":"IF(OrigTable!A298=\"\",\"\",ScriptText!$B$1&CHAR(10)&ScriptText!$D$1)","v":"<tr>\n<td>"},{"$f":"IF(OrigTable!A298=\"\",\"\",TEXT(OrigTable!A298,\"00\"))","v":"250B"},{"$f":"IF(OrigTable!A298=\"\",\"\",ScriptText!$E$1&CHAR(10)&ScriptText!$C$1)","v":"</td>\n</tr>"},{"$f":"IF(OrigTable!B298=\"\",\"\",ScriptText!$B$1&CHAR(10)&ScriptText!$D$1)","v":"<tr>\n<td>"},{"$f":"IF(OrigTable!B298=\"\",\"\",TEXT(OrigTable!B298,\"00\"))","v":"No"},{"$f":"IF(OrigTable!B298=\"\",\"\",ScriptText!$E$1&CHAR(10)&ScriptText!C293)","v":"</td>\n248"},{"$f":"IF(OrigTable!C298=\"\",\"\",ScriptText!$B$1&CHAR(10)&ScriptText!$D$1)","v":"<tr>\n<td>"},{"$f":"IF(OrigTable!C298=\"\",\"\",IF(LEN(OrigTable!C298)>255,LEFT(OrigTable!C298,250)&\". . .\",OrigTable!C298))","v":"Notification to Form 944 filer that they should file 941 for first quarter of second calendar year."},{"$f":"IF(OrigTable!C298=\"\",\"\",ScriptText!$E$1&CHAR(10)&ScriptText!$C$1)","v":"</td>\n</tr>"},{"$f":"IF(OrigTable!D298=\"\",\"\",ScriptText!$B$1&CHAR(10)&ScriptText!$D$1)","v":"<tr>\n<td>"},{"$f":"IF(OrigTable!D298=\"\",\"\",TEXT(OrigTable!D298,\"00\"))","v":"BMF Notices"},{"$f":"IF(OrigTable!D298=\"\",\"\",ScriptText!$E$1&CHAR(10)&ScriptText!$C$1)","v":"</td>\n</tr>"},{"$f":"IF(OrigTable!E298=\"\",\"\",ScriptText!$B$1&CHAR(10)&ScriptText!$D$1)","v":""},{"$f":"IF(OrigTable!E298=\"\",\"\",TEXT(OrigTable!E298,\"00\"))","v":""},{"$f":"IF(OrigTable!E298=\"\",\"\",ScriptText!$E$1&CHAR(10)&ScriptText!$C$1)","v":""},{"$f":"IF(OrigTable!F298=\"\",\"\",ScriptText!$B$1&CHAR(10)&ScriptText!$D$1)","v":""},{"$f":"IF(OrigTable!F298=\"\",\"\",TEXT(OrigTable!F298,\"00\"))","v":""},{"$f":"IF(OrigTable!F298=\"\",\"\",ScriptText!$E$1&CHAR(10)&ScriptText!$C$1)","v":""},{"$f":"IF(OrigTable!G298=\"\",\"\",ScriptText!$B$1&CHAR(10)&ScriptText!$D$1)","v":""},{"$f":"IF(OrigTable!G298=\"\",\"\",TEXT(OrigTable!G298,\"00\"))","v":""},{"$f":"IF(OrigTable!G298=\"\",\"\",ScriptText!$E$1&CHAR(10)&ScriptText!$C$1)","v":""},298]
["<tr>\n<td>250C</td>\n</tr>\n<tr>\n<td>No</td>\n249A\n<tr>\n<td>Reminder to CP250B recipients.</td>\n</tr>\n<tr>\n<td>BMF Notices</td>\n</tr>",{"$f":"IF(OrigTable!A299=\"\",\"\",ScriptText!$B$1&CHAR(10)&ScriptText!$D$1)","v":"<tr>\n<td>"},{"$f":"IF(OrigTable!A299=\"\",\"\",TEXT(OrigTable!A299,\"00\"))","v":"250C"},{"$f":"IF(OrigTable!A299=\"\",\"\",ScriptText!$E$1&CHAR(10)&ScriptText!$C$1)","v":"</td>\n</tr>"},{"$f":"IF(OrigTable!B299=\"\",\"\",ScriptText!$B$1&CHAR(10)&ScriptText!$D$1)","v":"<tr>\n<td>"},{"$f":"IF(OrigTable!B299=\"\",\"\",TEXT(OrigTable!B299,\"00\"))","v":"No"},{"$f":"IF(OrigTable!B299=\"\",\"\",ScriptText!$E$1&CHAR(10)&ScriptText!C294)","v":"</td>\n249A"},{"$f":"IF(OrigTable!C299=\"\",\"\",ScriptText!$B$1&CHAR(10)&ScriptText!$D$1)","v":"<tr>\n<td>"},{"$f":"IF(OrigTable!C299=\"\",\"\",IF(LEN(OrigTable!C299)>255,LEFT(OrigTable!C299,250)&\". . .\",OrigTable!C299))","v":"Reminder to CP250B recipients."},{"$f":"IF(OrigTable!C299=\"\",\"\",ScriptText!$E$1&CHAR(10)&ScriptText!$C$1)","v":"</td>\n</tr>"},{"$f":"IF(OrigTable!D299=\"\",\"\",ScriptText!$B$1&CHAR(10)&ScriptText!$D$1)","v":"<tr>\n<td>"},{"$f":"IF(OrigTable!D299=\"\",\"\",TEXT(OrigTable!D299,\"00\"))","v":"BMF Notices"},{"$f":"IF(OrigTable!D299=\"\",\"\",ScriptText!$E$1&CHAR(10)&ScriptText!$C$1)","v":"</td>\n</tr>"},{"$f":"IF(OrigTable!E299=\"\",\"\",ScriptText!$B$1&CHAR(10)&ScriptText!$D$1)","v":""},{"$f":"IF(OrigTable!E299=\"\",\"\",TEXT(OrigTable!E299,\"00\"))","v":""},{"$f":"IF(OrigTable!E299=\"\",\"\",ScriptText!$E$1&CHAR(10)&ScriptText!$C$1)","v":""},{"$f":"IF(OrigTable!F299=\"\",\"\",ScriptText!$B$1&CHAR(10)&ScriptText!$D$1)","v":""},{"$f":"IF(OrigTable!F299=\"\",\"\",TEXT(OrigTable!F299,\"00\"))","v":""},{"$f":"IF(OrigTable!F299=\"\",\"\",ScriptText!$E$1&CHAR(10)&ScriptText!$C$1)","v":""},{"$f":"IF(OrigTable!G299=\"\",\"\",ScriptText!$B$1&CHAR(10)&ScriptText!$D$1)","v":""},{"$f":"IF(OrigTable!G299=\"\",\"\",TEXT(OrigTable!G299,\"00\"))","v":""},{"$f":"IF(OrigTable!G299=\"\",\"\",ScriptText!$E$1&CHAR(10)&ScriptText!$C$1)","v":""},299]
["<tr>\n<td>251</td>\n</tr>\n\n<tr>\n<td>NOTICE OF Employment Tax Problem—Why You’re Tax May Be Changed. Notice issued to taxpayer under the Combined Annual Wage Reporting (CAWR) program to advise of a wage discrepancy (potential overpayment or underpayment). 253 Request for W-2 not filed w. . .</td>\n</tr>\n<tr>\n<td>BMF Notices</td>\n</tr>",{"$f":"IF(OrigTable!A300=\"\",\"\",ScriptText!$B$1&CHAR(10)&ScriptText!$D$1)","v":"<tr>\n<td>"},{"$f":"IF(OrigTable!A300=\"\",\"\",TEXT(OrigTable!A300,\"00\"))","v":"251"},{"$f":"IF(OrigTable!A300=\"\",\"\",ScriptText!$E$1&CHAR(10)&ScriptText!$C$1)","v":"</td>\n</tr>"},{"$f":"IF(OrigTable!B300=\"\",\"\",ScriptText!$B$1&CHAR(10)&ScriptText!$D$1)","v":""},{"$f":"IF(OrigTable!B300=\"\",\"\",TEXT(OrigTable!B300,\"00\"))","v":""},{"$f":"IF(OrigTable!B300=\"\",\"\",ScriptText!$E$1&CHAR(10)&ScriptText!C295)","v":""},{"$f":"IF(OrigTable!C300=\"\",\"\",ScriptText!$B$1&CHAR(10)&ScriptText!$D$1)","v":"<tr>\n<td>"},{"$f":"IF(OrigTable!C300=\"\",\"\",IF(LEN(OrigTable!C300)>255,LEFT(OrigTable!C300,250)&\". . .\",OrigTable!C300))","v":"NOTICE OF Employment Tax Problem—Why You’re Tax May Be Changed. Notice issued to taxpayer under the Combined Annual Wage Reporting (CAWR) program to advise of a wage discrepancy (potential overpayment or underpayment). 253 Request for W-2 not filed w. . ."},{"$f":"IF(OrigTable!C300=\"\",\"\",ScriptText!$E$1&CHAR(10)&ScriptText!$C$1)","v":"</td>\n</tr>"},{"$f":"IF(OrigTable!D300=\"\",\"\",ScriptText!$B$1&CHAR(10)&ScriptText!$D$1)","v":"<tr>\n<td>"},{"$f":"IF(OrigTable!D300=\"\",\"\",TEXT(OrigTable!D300,\"00\"))","v":"BMF Notices"},{"$f":"IF(OrigTable!D300=\"\",\"\",ScriptText!$E$1&CHAR(10)&ScriptText!$C$1)","v":"</td>\n</tr>"},{"$f":"IF(OrigTable!E300=\"\",\"\",ScriptText!$B$1&CHAR(10)&ScriptText!$D$1)","v":""},{"$f":"IF(OrigTable!E300=\"\",\"\",TEXT(OrigTable!E300,\"00\"))","v":""},{"$f":"IF(OrigTable!E300=\"\",\"\",ScriptText!$E$1&CHAR(10)&ScriptText!$C$1)","v":""},{"$f":"IF(OrigTable!F300=\"\",\"\",ScriptText!$B$1&CHAR(10)&ScriptText!$D$1)","v":""},{"$f":"IF(OrigTable!F300=\"\",\"\",TEXT(OrigTable!F300,\"00\"))","v":""},{"$f":"IF(OrigTable!F300=\"\",\"\",ScriptText!$E$1&CHAR(10)&ScriptText!$C$1)","v":""},{"$f":"IF(OrigTable!G300=\"\",\"\",ScriptText!$B$1&CHAR(10)&ScriptText!$D$1)","v":""},{"$f":"IF(OrigTable!G300=\"\",\"\",TEXT(OrigTable!G300,\"00\"))","v":""},{"$f":"IF(OrigTable!G300=\"\",\"\",ScriptText!$E$1&CHAR(10)&ScriptText!$C$1)","v":""},300]
["<tr>\n<td>255</td>\n</tr>\n\n<tr>\n<td>Request to finalize termination of private foundation status</td>\n</tr>\n<tr>\n<td>BMF Notices</td>\n</tr>",{"$f":"IF(OrigTable!A301=\"\",\"\",ScriptText!$B$1&CHAR(10)&ScriptText!$D$1)","v":"<tr>\n<td>"},{"$f":"IF(OrigTable!A301=\"\",\"\",TEXT(OrigTable!A301,\"00\"))","v":"255"},{"$f":"IF(OrigTable!A301=\"\",\"\",ScriptText!$E$1&CHAR(10)&ScriptText!$C$1)","v":"</td>\n</tr>"},{"$f":"IF(OrigTable!B301=\"\",\"\",ScriptText!$B$1&CHAR(10)&ScriptText!$D$1)","v":""},{"$f":"IF(OrigTable!B301=\"\",\"\",TEXT(OrigTable!B301,\"00\"))","v":""},{"$f":"IF(OrigTable!B301=\"\",\"\",ScriptText!$E$1&CHAR(10)&ScriptText!C296)","v":""},{"$f":"IF(OrigTable!C301=\"\",\"\",ScriptText!$B$1&CHAR(10)&ScriptText!$D$1)","v":"<tr>\n<td>"},{"$f":"IF(OrigTable!C301=\"\",\"\",IF(LEN(OrigTable!C301)>255,LEFT(OrigTable!C301,250)&\". . .\",OrigTable!C301))","v":"Request to finalize termination of private foundation status"},{"$f":"IF(OrigTable!C301=\"\",\"\",ScriptText!$E$1&CHAR(10)&ScriptText!$C$1)","v":"</td>\n</tr>"},{"$f":"IF(OrigTable!D301=\"\",\"\",ScriptText!$B$1&CHAR(10)&ScriptText!$D$1)","v":"<tr>\n<td>"},{"$f":"IF(OrigTable!D301=\"\",\"\",TEXT(OrigTable!D301,\"00\"))","v":"BMF Notices"},{"$f":"IF(OrigTable!D301=\"\",\"\",ScriptText!$E$1&CHAR(10)&ScriptText!$C$1)","v":"</td>\n</tr>"},{"$f":"IF(OrigTable!E301=\"\",\"\",ScriptText!$B$1&CHAR(10)&ScriptText!$D$1)","v":""},{"$f":"IF(OrigTable!E301=\"\",\"\",TEXT(OrigTable!E301,\"00\"))","v":""},{"$f":"IF(OrigTable!E301=\"\",\"\",ScriptText!$E$1&CHAR(10)&ScriptText!$C$1)","v":""},{"$f":"IF(OrigTable!F301=\"\",\"\",ScriptText!$B$1&CHAR(10)&ScriptText!$D$1)","v":""},{"$f":"IF(OrigTable!F301=\"\",\"\",TEXT(OrigTable!F301,\"00\"))","v":""},{"$f":"IF(OrigTable!F301=\"\",\"\",ScriptText!$E$1&CHAR(10)&ScriptText!$C$1)","v":""},{"$f":"IF(OrigTable!G301=\"\",\"\",ScriptText!$B$1&CHAR(10)&ScriptText!$D$1)","v":""},{"$f":"IF(OrigTable!G301=\"\",\"\",TEXT(OrigTable!G301,\"00\"))","v":""},{"$f":"IF(OrigTable!G301=\"\",\"\",ScriptText!$E$1&CHAR(10)&ScriptText!$C$1)","v":""},301]
["<tr>\n<td>259</td>\n</tr>\n<tr>\n<td>No</td>\n250A\n<tr>\n<td>First Notice for Nonfiler Return Delinquency is issued to inform the taxpayer that we have no record of a tax return filed.</td>\n</tr>\n<tr>\n<td>BMF Notices</td>\n</tr>",{"$f":"IF(OrigTable!A302=\"\",\"\",ScriptText!$B$1&CHAR(10)&ScriptText!$D$1)","v":"<tr>\n<td>"},{"$f":"IF(OrigTable!A302=\"\",\"\",TEXT(OrigTable!A302,\"00\"))","v":"259"},{"$f":"IF(OrigTable!A302=\"\",\"\",ScriptText!$E$1&CHAR(10)&ScriptText!$C$1)","v":"</td>\n</tr>"},{"$f":"IF(OrigTable!B302=\"\",\"\",ScriptText!$B$1&CHAR(10)&ScriptText!$D$1)","v":"<tr>\n<td>"},{"$f":"IF(OrigTable!B302=\"\",\"\",TEXT(OrigTable!B302,\"00\"))","v":"No"},{"$f":"IF(OrigTable!B302=\"\",\"\",ScriptText!$E$1&CHAR(10)&ScriptText!C297)","v":"</td>\n250A"},{"$f":"IF(OrigTable!C302=\"\",\"\",ScriptText!$B$1&CHAR(10)&ScriptText!$D$1)","v":"<tr>\n<td>"},{"$f":"IF(OrigTable!C302=\"\",\"\",IF(LEN(OrigTable!C302)>255,LEFT(OrigTable!C302,250)&\". . .\",OrigTable!C302))","v":"First Notice for Nonfiler Return Delinquency is issued to inform the taxpayer that we have no record of a tax return filed."},{"$f":"IF(OrigTable!C302=\"\",\"\",ScriptText!$E$1&CHAR(10)&ScriptText!$C$1)","v":"</td>\n</tr>"},{"$f":"IF(OrigTable!D302=\"\",\"\",ScriptText!$B$1&CHAR(10)&ScriptText!$D$1)","v":"<tr>\n<td>"},{"$f":"IF(OrigTable!D302=\"\",\"\",TEXT(OrigTable!D302,\"00\"))","v":"BMF Notices"},{"$f":"IF(OrigTable!D302=\"\",\"\",ScriptText!$E$1&CHAR(10)&ScriptText!$C$1)","v":"</td>\n</tr>"},{"$f":"IF(OrigTable!E302=\"\",\"\",ScriptText!$B$1&CHAR(10)&ScriptText!$D$1)","v":""},{"$f":"IF(OrigTable!E302=\"\",\"\",TEXT(OrigTable!E302,\"00\"))","v":""},{"$f":"IF(OrigTable!E302=\"\",\"\",ScriptText!$E$1&CHAR(10)&ScriptText!$C$1)","v":""},{"$f":"IF(OrigTable!F302=\"\",\"\",ScriptText!$B$1&CHAR(10)&ScriptText!$D$1)","v":""},{"$f":"IF(OrigTable!F302=\"\",\"\",TEXT(OrigTable!F302,\"00\"))","v":""},{"$f":"IF(OrigTable!F302=\"\",\"\",ScriptText!$E$1&CHAR(10)&ScriptText!$C$1)","v":""},{"$f":"IF(OrigTable!G302=\"\",\"\",ScriptText!$B$1&CHAR(10)&ScriptText!$D$1)","v":""},{"$f":"IF(OrigTable!G302=\"\",\"\",TEXT(OrigTable!G302,\"00\"))","v":""},{"$f":"IF(OrigTable!G302=\"\",\"\",ScriptText!$E$1&CHAR(10)&ScriptText!$C$1)","v":""},302]
["<tr>\n<td>259A</td>\n</tr>\n<tr>\n<td>No</td>\n250B\n<tr>\n<td>First Notice for Nonfiler Return Delinquency is issued to inform the taxpayer that we have no record of a tax return filed. Form 990/990EZ</td>\n</tr>\n<tr>\n<td>BMF Notices</td>\n</tr>",{"$f":"IF(OrigTable!A303=\"\",\"\",ScriptText!$B$1&CHAR(10)&ScriptText!$D$1)","v":"<tr>\n<td>"},{"$f":"IF(OrigTable!A303=\"\",\"\",TEXT(OrigTable!A303,\"00\"))","v":"259A"},{"$f":"IF(OrigTable!A303=\"\",\"\",ScriptText!$E$1&CHAR(10)&ScriptText!$C$1)","v":"</td>\n</tr>"},{"$f":"IF(OrigTable!B303=\"\",\"\",ScriptText!$B$1&CHAR(10)&ScriptText!$D$1)","v":"<tr>\n<td>"},{"$f":"IF(OrigTable!B303=\"\",\"\",TEXT(OrigTable!B303,\"00\"))","v":"No"},{"$f":"IF(OrigTable!B303=\"\",\"\",ScriptText!$E$1&CHAR(10)&ScriptText!C298)","v":"</td>\n250B"},{"$f":"IF(OrigTable!C303=\"\",\"\",ScriptText!$B$1&CHAR(10)&ScriptText!$D$1)","v":"<tr>\n<td>"},{"$f":"IF(OrigTable!C303=\"\",\"\",IF(LEN(OrigTable!C303)>255,LEFT(OrigTable!C303,250)&\". . .\",OrigTable!C303))","v":"First Notice for Nonfiler Return Delinquency is issued to inform the taxpayer that we have no record of a tax return filed. Form 990/990EZ"},{"$f":"IF(OrigTable!C303=\"\",\"\",ScriptText!$E$1&CHAR(10)&ScriptText!$C$1)","v":"</td>\n</tr>"},{"$f":"IF(OrigTable!D303=\"\",\"\",ScriptText!$B$1&CHAR(10)&ScriptText!$D$1)","v":"<tr>\n<td>"},{"$f":"IF(OrigTable!D303=\"\",\"\",TEXT(OrigTable!D303,\"00\"))","v":"BMF Notices"},{"$f":"IF(OrigTable!D303=\"\",\"\",ScriptText!$E$1&CHAR(10)&ScriptText!$C$1)","v":"</td>\n</tr>"},{"$f":"IF(OrigTable!E303=\"\",\"\",ScriptText!$B$1&CHAR(10)&ScriptText!$D$1)","v":""},{"$f":"IF(OrigTable!E303=\"\",\"\",TEXT(OrigTable!E303,\"00\"))","v":""},{"$f":"IF(OrigTable!E303=\"\",\"\",ScriptText!$E$1&CHAR(10)&ScriptText!$C$1)","v":""},{"$f":"IF(OrigTable!F303=\"\",\"\",ScriptText!$B$1&CHAR(10)&ScriptText!$D$1)","v":""},{"$f":"IF(OrigTable!F303=\"\",\"\",TEXT(OrigTable!F303,\"00\"))","v":""},{"$f":"IF(OrigTable!F303=\"\",\"\",ScriptText!$E$1&CHAR(10)&ScriptText!$C$1)","v":""},{"$f":"IF(OrigTable!G303=\"\",\"\",ScriptText!$B$1&CHAR(10)&ScriptText!$D$1)","v":""},{"$f":"IF(OrigTable!G303=\"\",\"\",TEXT(OrigTable!G303,\"00\"))","v":""},{"$f":"IF(OrigTable!G303=\"\",\"\",ScriptText!$E$1&CHAR(10)&ScriptText!$C$1)","v":""},303]
["<tr>\n<td>259B</td>\n</tr>\n<tr>\n<td>No</td>\n250C\n<tr>\n<td>First Notice for Nonfiler Return Delinquency is issued to inform the taxpayer that we have no record of a tax return filed. Form 990PF</td>\n</tr>\n<tr>\n<td>BMF Notices</td>\n</tr>",{"$f":"IF(OrigTable!A304=\"\",\"\",ScriptText!$B$1&CHAR(10)&ScriptText!$D$1)","v":"<tr>\n<td>"},{"$f":"IF(OrigTable!A304=\"\",\"\",TEXT(OrigTable!A304,\"00\"))","v":"259B"},{"$f":"IF(OrigTable!A304=\"\",\"\",ScriptText!$E$1&CHAR(10)&ScriptText!$C$1)","v":"</td>\n</tr>"},{"$f":"IF(OrigTable!B304=\"\",\"\",ScriptText!$B$1&CHAR(10)&ScriptText!$D$1)","v":"<tr>\n<td>"},{"$f":"IF(OrigTable!B304=\"\",\"\",TEXT(OrigTable!B304,\"00\"))","v":"No"},{"$f":"IF(OrigTable!B304=\"\",\"\",ScriptText!$E$1&CHAR(10)&ScriptText!C299)","v":"</td>\n250C"},{"$f":"IF(OrigTable!C304=\"\",\"\",ScriptText!$B$1&CHAR(10)&ScriptText!$D$1)","v":"<tr>\n<td>"},{"$f":"IF(OrigTable!C304=\"\",\"\",IF(LEN(OrigTable!C304)>255,LEFT(OrigTable!C304,250)&\". . .\",OrigTable!C304))","v":"First Notice for Nonfiler Return Delinquency is issued to inform the taxpayer that we have no record of a tax return filed. Form 990PF"},{"$f":"IF(OrigTable!C304=\"\",\"\",ScriptText!$E$1&CHAR(10)&ScriptText!$C$1)","v":"</td>\n</tr>"},{"$f":"IF(OrigTable!D304=\"\",\"\",ScriptText!$B$1&CHAR(10)&ScriptText!$D$1)","v":"<tr>\n<td>"},{"$f":"IF(OrigTable!D304=\"\",\"\",TEXT(OrigTable!D304,\"00\"))","v":"BMF Notices"},{"$f":"IF(OrigTable!D304=\"\",\"\",ScriptText!$E$1&CHAR(10)&ScriptText!$C$1)","v":"</td>\n</tr>"},{"$f":"IF(OrigTable!E304=\"\",\"\",ScriptText!$B$1&CHAR(10)&ScriptText!$D$1)","v":""},{"$f":"IF(OrigTable!E304=\"\",\"\",TEXT(OrigTable!E304,\"00\"))","v":""},{"$f":"IF(OrigTable!E304=\"\",\"\",ScriptText!$E$1&CHAR(10)&ScriptText!$C$1)","v":""},{"$f":"IF(OrigTable!F304=\"\",\"\",ScriptText!$B$1&CHAR(10)&ScriptText!$D$1)","v":""},{"$f":"IF(OrigTable!F304=\"\",\"\",TEXT(OrigTable!F304,\"00\"))","v":""},{"$f":"IF(OrigTable!F304=\"\",\"\",ScriptText!$E$1&CHAR(10)&ScriptText!$C$1)","v":""},{"$f":"IF(OrigTable!G304=\"\",\"\",ScriptText!$B$1&CHAR(10)&ScriptText!$D$1)","v":""},{"$f":"IF(OrigTable!G304=\"\",\"\",TEXT(OrigTable!G304,\"00\"))","v":""},{"$f":"IF(OrigTable!G304=\"\",\"\",ScriptText!$E$1&CHAR(10)&ScriptText!$C$1)","v":""},304]
["<tr>\n<td>259D</td>\n</tr>\n<tr>\n<td>No</td>\n251\n<tr>\n<td>First Notice for Nonfiler Return Delinquency is issued to inform the taxpayer that we have no record of a tax return filed. Form 990T</td>\n</tr>\n<tr>\n<td>BMF Notices</td>\n</tr>",{"$f":"IF(OrigTable!A305=\"\",\"\",ScriptText!$B$1&CHAR(10)&ScriptText!$D$1)","v":"<tr>\n<td>"},{"$f":"IF(OrigTable!A305=\"\",\"\",TEXT(OrigTable!A305,\"00\"))","v":"259D"},{"$f":"IF(OrigTable!A305=\"\",\"\",ScriptText!$E$1&CHAR(10)&ScriptText!$C$1)","v":"</td>\n</tr>"},{"$f":"IF(OrigTable!B305=\"\",\"\",ScriptText!$B$1&CHAR(10)&ScriptText!$D$1)","v":"<tr>\n<td>"},{"$f":"IF(OrigTable!B305=\"\",\"\",TEXT(OrigTable!B305,\"00\"))","v":"No"},{"$f":"IF(OrigTable!B305=\"\",\"\",ScriptText!$E$1&CHAR(10)&ScriptText!C300)","v":"</td>\n251"},{"$f":"IF(OrigTable!C305=\"\",\"\",ScriptText!$B$1&CHAR(10)&ScriptText!$D$1)","v":"<tr>\n<td>"},{"$f":"IF(OrigTable!C305=\"\",\"\",IF(LEN(OrigTable!C305)>255,LEFT(OrigTable!C305,250)&\". . .\",OrigTable!C305))","v":"First Notice for Nonfiler Return Delinquency is issued to inform the taxpayer that we have no record of a tax return filed. Form 990T"},{"$f":"IF(OrigTable!C305=\"\",\"\",ScriptText!$E$1&CHAR(10)&ScriptText!$C$1)","v":"</td>\n</tr>"},{"$f":"IF(OrigTable!D305=\"\",\"\",ScriptText!$B$1&CHAR(10)&ScriptText!$D$1)","v":"<tr>\n<td>"},{"$f":"IF(OrigTable!D305=\"\",\"\",TEXT(OrigTable!D305,\"00\"))","v":"BMF Notices"},{"$f":"IF(OrigTable!D305=\"\",\"\",ScriptText!$E$1&CHAR(10)&ScriptText!$C$1)","v":"</td>\n</tr>"},{"$f":"IF(OrigTable!E305=\"\",\"\",ScriptText!$B$1&CHAR(10)&ScriptText!$D$1)","v":""},{"$f":"IF(OrigTable!E305=\"\",\"\",TEXT(OrigTable!E305,\"00\"))","v":""},{"$f":"IF(OrigTable!E305=\"\",\"\",ScriptText!$E$1&CHAR(10)&ScriptText!$C$1)","v":""},{"$f":"IF(OrigTable!F305=\"\",\"\",ScriptText!$B$1&CHAR(10)&ScriptText!$D$1)","v":""},{"$f":"IF(OrigTable!F305=\"\",\"\",TEXT(OrigTable!F305,\"00\"))","v":""},{"$f":"IF(OrigTable!F305=\"\",\"\",ScriptText!$E$1&CHAR(10)&ScriptText!$C$1)","v":""},{"$f":"IF(OrigTable!G305=\"\",\"\",ScriptText!$B$1&CHAR(10)&ScriptText!$D$1)","v":""},{"$f":"IF(OrigTable!G305=\"\",\"\",TEXT(OrigTable!G305,\"00\"))","v":""},{"$f":"IF(OrigTable!G305=\"\",\"\",ScriptText!$E$1&CHAR(10)&ScriptText!$C$1)","v":""},305]
["<tr>\n<td>259F</td>\n</tr>\n<tr>\n<td>No</td>\n255\n<tr>\n<td>First Notice for Nonfiler Return Delinquency is issued to inform the taxpayer that we have\nno record of a tax return filed. Form5227</td>\n</tr>\n<tr>\n<td>BMF Notices</td>\n</tr>",{"$f":"IF(OrigTable!A306=\"\",\"\",ScriptText!$B$1&CHAR(10)&ScriptText!$D$1)","v":"<tr>\n<td>"},{"$f":"IF(OrigTable!A306=\"\",\"\",TEXT(OrigTable!A306,\"00\"))","v":"259F"},{"$f":"IF(OrigTable!A306=\"\",\"\",ScriptText!$E$1&CHAR(10)&ScriptText!$C$1)","v":"</td>\n</tr>"},{"$f":"IF(OrigTable!B306=\"\",\"\",ScriptText!$B$1&CHAR(10)&ScriptText!$D$1)","v":"<tr>\n<td>"},{"$f":"IF(OrigTable!B306=\"\",\"\",TEXT(OrigTable!B306,\"00\"))","v":"No"},{"$f":"IF(OrigTable!B306=\"\",\"\",ScriptText!$E$1&CHAR(10)&ScriptText!C301)","v":"</td>\n255"},{"$f":"IF(OrigTable!C306=\"\",\"\",ScriptText!$B$1&CHAR(10)&ScriptText!$D$1)","v":"<tr>\n<td>"},{"$f":"IF(OrigTable!C306=\"\",\"\",IF(LEN(OrigTable!C306)>255,LEFT(OrigTable!C306,250)&\". . .\",OrigTable!C306))","v":"First Notice for Nonfiler Return Delinquency is issued to inform the taxpayer that we have\nno record of a tax return filed. Form5227"},{"$f":"IF(OrigTable!C306=\"\",\"\",ScriptText!$E$1&CHAR(10)&ScriptText!$C$1)","v":"</td>\n</tr>"},{"$f":"IF(OrigTable!D306=\"\",\"\",ScriptText!$B$1&CHAR(10)&ScriptText!$D$1)","v":"<tr>\n<td>"},{"$f":"IF(OrigTable!D306=\"\",\"\",TEXT(OrigTable!D306,\"00\"))","v":"BMF Notices"},{"$f":"IF(OrigTable!D306=\"\",\"\",ScriptText!$E$1&CHAR(10)&ScriptText!$C$1)","v":"</td>\n</tr>"},{"$f":"IF(OrigTable!E306=\"\",\"\",ScriptText!$B$1&CHAR(10)&ScriptText!$D$1)","v":""},{"$f":"IF(OrigTable!E306=\"\",\"\",TEXT(OrigTable!E306,\"00\"))","v":""},{"$f":"IF(OrigTable!E306=\"\",\"\",ScriptText!$E$1&CHAR(10)&ScriptText!$C$1)","v":""},{"$f":"IF(OrigTable!F306=\"\",\"\",ScriptText!$B$1&CHAR(10)&ScriptText!$D$1)","v":""},{"$f":"IF(OrigTable!F306=\"\",\"\",TEXT(OrigTable!F306,\"00\"))","v":""},{"$f":"IF(OrigTable!F306=\"\",\"\",ScriptText!$E$1&CHAR(10)&ScriptText!$C$1)","v":""},{"$f":"IF(OrigTable!G306=\"\",\"\",ScriptText!$B$1&CHAR(10)&ScriptText!$D$1)","v":""},{"$f":"IF(OrigTable!G306=\"\",\"\",TEXT(OrigTable!G306,\"00\"))","v":""},{"$f":"IF(OrigTable!G306=\"\",\"\",ScriptText!$E$1&CHAR(10)&ScriptText!$C$1)","v":""},306]
["<tr>\n<td>259G</td>\n</tr>\n\n<tr>\n<td>EO Return Delinquency Notice 1120-POL</td>\n</tr>\n<tr>\n<td>BMF Notices</td>\n</tr>",{"$f":"IF(OrigTable!A307=\"\",\"\",ScriptText!$B$1&CHAR(10)&ScriptText!$D$1)","v":"<tr>\n<td>"},{"$f":"IF(OrigTable!A307=\"\",\"\",TEXT(OrigTable!A307,\"00\"))","v":"259G"},{"$f":"IF(OrigTable!A307=\"\",\"\",ScriptText!$E$1&CHAR(10)&ScriptText!$C$1)","v":"</td>\n</tr>"},{"$f":"IF(OrigTable!B307=\"\",\"\",ScriptText!$B$1&CHAR(10)&ScriptText!$D$1)","v":""},{"$f":"IF(OrigTable!B307=\"\",\"\",TEXT(OrigTable!B307,\"00\"))","v":""},{"$f":"IF(OrigTable!B307=\"\",\"\",ScriptText!$E$1&CHAR(10)&ScriptText!C302)","v":""},{"$f":"IF(OrigTable!C307=\"\",\"\",ScriptText!$B$1&CHAR(10)&ScriptText!$D$1)","v":"<tr>\n<td>"},{"$f":"IF(OrigTable!C307=\"\",\"\",IF(LEN(OrigTable!C307)>255,LEFT(OrigTable!C307,250)&\". . .\",OrigTable!C307))","v":"EO Return Delinquency Notice 1120-POL"},{"$f":"IF(OrigTable!C307=\"\",\"\",ScriptText!$E$1&CHAR(10)&ScriptText!$C$1)","v":"</td>\n</tr>"},{"$f":"IF(OrigTable!D307=\"\",\"\",ScriptText!$B$1&CHAR(10)&ScriptText!$D$1)","v":"<tr>\n<td>"},{"$f":"IF(OrigTable!D307=\"\",\"\",TEXT(OrigTable!D307,\"00\"))","v":"BMF Notices"},{"$f":"IF(OrigTable!D307=\"\",\"\",ScriptText!$E$1&CHAR(10)&ScriptText!$C$1)","v":"</td>\n</tr>"},{"$f":"IF(OrigTable!E307=\"\",\"\",ScriptText!$B$1&CHAR(10)&ScriptText!$D$1)","v":""},{"$f":"IF(OrigTable!E307=\"\",\"\",TEXT(OrigTable!E307,\"00\"))","v":""},{"$f":"IF(OrigTable!E307=\"\",\"\",ScriptText!$E$1&CHAR(10)&ScriptText!$C$1)","v":""},{"$f":"IF(OrigTable!F307=\"\",\"\",ScriptText!$B$1&CHAR(10)&ScriptText!$D$1)","v":""},{"$f":"IF(OrigTable!F307=\"\",\"\",TEXT(OrigTable!F307,\"00\"))","v":""},{"$f":"IF(OrigTable!F307=\"\",\"\",ScriptText!$E$1&CHAR(10)&ScriptText!$C$1)","v":""},{"$f":"IF(OrigTable!G307=\"\",\"\",ScriptText!$B$1&CHAR(10)&ScriptText!$D$1)","v":""},{"$f":"IF(OrigTable!G307=\"\",\"\",TEXT(OrigTable!G307,\"00\"))","v":""},{"$f":"IF(OrigTable!G307=\"\",\"\",ScriptText!$E$1&CHAR(10)&ScriptText!$C$1)","v":""},307]
["<tr>\n<td>259H</td>\n</tr>\n\n<tr>\n<td>EO Return Delinquency Notice PAC, Form 990/990EZ</td>\n</tr>\n<tr>\n<td>BMF Notices</td>\n</tr>",{"$f":"IF(OrigTable!A308=\"\",\"\",ScriptText!$B$1&CHAR(10)&ScriptText!$D$1)","v":"<tr>\n<td>"},{"$f":"IF(OrigTable!A308=\"\",\"\",TEXT(OrigTable!A308,\"00\"))","v":"259H"},{"$f":"IF(OrigTable!A308=\"\",\"\",ScriptText!$E$1&CHAR(10)&ScriptText!$C$1)","v":"</td>\n</tr>"},{"$f":"IF(OrigTable!B308=\"\",\"\",ScriptText!$B$1&CHAR(10)&ScriptText!$D$1)","v":""},{"$f":"IF(OrigTable!B308=\"\",\"\",TEXT(OrigTable!B308,\"00\"))","v":""},{"$f":"IF(OrigTable!B308=\"\",\"\",ScriptText!$E$1&CHAR(10)&ScriptText!C303)","v":""},{"$f":"IF(OrigTable!C308=\"\",\"\",ScriptText!$B$1&CHAR(10)&ScriptText!$D$1)","v":"<tr>\n<td>"},{"$f":"IF(OrigTable!C308=\"\",\"\",IF(LEN(OrigTable!C308)>255,LEFT(OrigTable!C308,250)&\". . .\",OrigTable!C308))","v":"EO Return Delinquency Notice PAC, Form 990/990EZ"},{"$f":"IF(OrigTable!C308=\"\",\"\",ScriptText!$E$1&CHAR(10)&ScriptText!$C$1)","v":"</td>\n</tr>"},{"$f":"IF(OrigTable!D308=\"\",\"\",ScriptText!$B$1&CHAR(10)&ScriptText!$D$1)","v":"<tr>\n<td>"},{"$f":"IF(OrigTable!D308=\"\",\"\",TEXT(OrigTable!D308,\"00\"))","v":"BMF Notices"},{"$f":"IF(OrigTable!D308=\"\",\"\",ScriptText!$E$1&CHAR(10)&ScriptText!$C$1)","v":"</td>\n</tr>"},{"$f":"IF(OrigTable!E308=\"\",\"\",ScriptText!$B$1&CHAR(10)&ScriptText!$D$1)","v":""},{"$f":"IF(OrigTable!E308=\"\",\"\",TEXT(OrigTable!E308,\"00\"))","v":""},{"$f":"IF(OrigTable!E308=\"\",\"\",ScriptText!$E$1&CHAR(10)&ScriptText!$C$1)","v":""},{"$f":"IF(OrigTable!F308=\"\",\"\",ScriptText!$B$1&CHAR(10)&ScriptText!$D$1)","v":""},{"$f":"IF(OrigTable!F308=\"\",\"\",TEXT(OrigTable!F308,\"00\"))","v":""},{"$f":"IF(OrigTable!F308=\"\",\"\",ScriptText!$E$1&CHAR(10)&ScriptText!$C$1)","v":""},{"$f":"IF(OrigTable!G308=\"\",\"\",ScriptText!$B$1&CHAR(10)&ScriptText!$D$1)","v":""},{"$f":"IF(OrigTable!G308=\"\",\"\",TEXT(OrigTable!G308,\"00\"))","v":""},{"$f":"IF(OrigTable!G308=\"\",\"\",ScriptText!$E$1&CHAR(10)&ScriptText!$C$1)","v":""},308]
["<tr>\n<td>260</td>\n</tr>\n<tr>\n<td>Yes</td>\n259B\n<tr>\n<td>Notification that a credit was reversed creating a balance due.</td>\n</tr>\n<tr>\n<td>BMF Notices</td>\n</tr>",{"$f":"IF(OrigTable!A309=\"\",\"\",ScriptText!$B$1&CHAR(10)&ScriptText!$D$1)","v":"<tr>\n<td>"},{"$f":"IF(OrigTable!A309=\"\",\"\",TEXT(OrigTable!A309,\"00\"))","v":"260"},{"$f":"IF(OrigTable!A309=\"\",\"\",ScriptText!$E$1&CHAR(10)&ScriptText!$C$1)","v":"</td>\n</tr>"},{"$f":"IF(OrigTable!B309=\"\",\"\",ScriptText!$B$1&CHAR(10)&ScriptText!$D$1)","v":"<tr>\n<td>"},{"$f":"IF(OrigTable!B309=\"\",\"\",TEXT(OrigTable!B309,\"00\"))","v":"Yes"},{"$f":"IF(OrigTable!B309=\"\",\"\",ScriptText!$E$1&CHAR(10)&ScriptText!C304)","v":"</td>\n259B"},{"$f":"IF(OrigTable!C309=\"\",\"\",ScriptText!$B$1&CHAR(10)&ScriptText!$D$1)","v":"<tr>\n<td>"},{"$f":"IF(OrigTable!C309=\"\",\"\",IF(LEN(OrigTable!C309)>255,LEFT(OrigTable!C309,250)&\". . .\",OrigTable!C309))","v":"Notification that a credit was reversed creating a balance due."},{"$f":"IF(OrigTable!C309=\"\",\"\",ScriptText!$E$1&CHAR(10)&ScriptText!$C$1)","v":"</td>\n</tr>"},{"$f":"IF(OrigTable!D309=\"\",\"\",ScriptText!$B$1&CHAR(10)&ScriptText!$D$1)","v":"<tr>\n<td>"},{"$f":"IF(OrigTable!D309=\"\",\"\",TEXT(OrigTable!D309,\"00\"))","v":"BMF Notices"},{"$f":"IF(OrigTable!D309=\"\",\"\",ScriptText!$E$1&CHAR(10)&ScriptText!$C$1)","v":"</td>\n</tr>"},{"$f":"IF(OrigTable!E309=\"\",\"\",ScriptText!$B$1&CHAR(10)&ScriptText!$D$1)","v":""},{"$f":"IF(OrigTable!E309=\"\",\"\",TEXT(OrigTable!E309,\"00\"))","v":""},{"$f":"IF(OrigTable!E309=\"\",\"\",ScriptText!$E$1&CHAR(10)&ScriptText!$C$1)","v":""},{"$f":"IF(OrigTable!F309=\"\",\"\",ScriptText!$B$1&CHAR(10)&ScriptText!$D$1)","v":""},{"$f":"IF(OrigTable!F309=\"\",\"\",TEXT(OrigTable!F309,\"00\"))","v":""},{"$f":"IF(OrigTable!F309=\"\",\"\",ScriptText!$E$1&CHAR(10)&ScriptText!$C$1)","v":""},{"$f":"IF(OrigTable!G309=\"\",\"\",ScriptText!$B$1&CHAR(10)&ScriptText!$D$1)","v":""},{"$f":"IF(OrigTable!G309=\"\",\"\",TEXT(OrigTable!G309,\"00\"))","v":""},{"$f":"IF(OrigTable!G309=\"\",\"\",ScriptText!$E$1&CHAR(10)&ScriptText!$C$1)","v":""},309]
["<tr>\n<td>261</td>\n</tr>\n<tr>\n<td>No</td>\n259D\n<tr>\n<td>Issued to notify the taxpayer of acceptance of taxpayer petition to become an S- Corporation.</td>\n</tr>\n<tr>\n<td>BMF Notices</td>\n</tr>",{"$f":"IF(OrigTable!A310=\"\",\"\",ScriptText!$B$1&CHAR(10)&ScriptText!$D$1)","v":"<tr>\n<td>"},{"$f":"IF(OrigTable!A310=\"\",\"\",TEXT(OrigTable!A310,\"00\"))","v":"261"},{"$f":"IF(OrigTable!A310=\"\",\"\",ScriptText!$E$1&CHAR(10)&ScriptText!$C$1)","v":"</td>\n</tr>"},{"$f":"IF(OrigTable!B310=\"\",\"\",ScriptText!$B$1&CHAR(10)&ScriptText!$D$1)","v":"<tr>\n<td>"},{"$f":"IF(OrigTable!B310=\"\",\"\",TEXT(OrigTable!B310,\"00\"))","v":"No"},{"$f":"IF(OrigTable!B310=\"\",\"\",ScriptText!$E$1&CHAR(10)&ScriptText!C305)","v":"</td>\n259D"},{"$f":"IF(OrigTable!C310=\"\",\"\",ScriptText!$B$1&CHAR(10)&ScriptText!$D$1)","v":"<tr>\n<td>"},{"$f":"IF(OrigTable!C310=\"\",\"\",IF(LEN(OrigTable!C310)>255,LEFT(OrigTable!C310,250)&\". . .\",OrigTable!C310))","v":"Issued to notify the taxpayer of acceptance of taxpayer petition to become an S- Corporation."},{"$f":"IF(OrigTable!C310=\"\",\"\",ScriptText!$E$1&CHAR(10)&ScriptText!$C$1)","v":"</td>\n</tr>"},{"$f":"IF(OrigTable!D310=\"\",\"\",ScriptText!$B$1&CHAR(10)&ScriptText!$D$1)","v":"<tr>\n<td>"},{"$f":"IF(OrigTable!D310=\"\",\"\",TEXT(OrigTable!D310,\"00\"))","v":"BMF Notices"},{"$f":"IF(OrigTable!D310=\"\",\"\",ScriptText!$E$1&CHAR(10)&ScriptText!$C$1)","v":"</td>\n</tr>"},{"$f":"IF(OrigTable!E310=\"\",\"\",ScriptText!$B$1&CHAR(10)&ScriptText!$D$1)","v":""},{"$f":"IF(OrigTable!E310=\"\",\"\",TEXT(OrigTable!E310,\"00\"))","v":""},{"$f":"IF(OrigTable!E310=\"\",\"\",ScriptText!$E$1&CHAR(10)&ScriptText!$C$1)","v":""},{"$f":"IF(OrigTable!F310=\"\",\"\",ScriptText!$B$1&CHAR(10)&ScriptText!$D$1)","v":""},{"$f":"IF(OrigTable!F310=\"\",\"\",TEXT(OrigTable!F310,\"00\"))","v":""},{"$f":"IF(OrigTable!F310=\"\",\"\",ScriptText!$E$1&CHAR(10)&ScriptText!$C$1)","v":""},{"$f":"IF(OrigTable!G310=\"\",\"\",ScriptText!$B$1&CHAR(10)&ScriptText!$D$1)","v":""},{"$f":"IF(OrigTable!G310=\"\",\"\",TEXT(OrigTable!G310,\"00\"))","v":""},{"$f":"IF(OrigTable!G310=\"\",\"\",ScriptText!$E$1&CHAR(10)&ScriptText!$C$1)","v":""},310]
["<tr>\n<td>261X</td>\n</tr>\n\n<tr>\n<td>Notification of acceptance of taxpayer as an S-Corporation</td>\n</tr>\n<tr>\n<td>BMF Notices</td>\n</tr>",{"$f":"IF(OrigTable!A311=\"\",\"\",ScriptText!$B$1&CHAR(10)&ScriptText!$D$1)","v":"<tr>\n<td>"},{"$f":"IF(OrigTable!A311=\"\",\"\",TEXT(OrigTable!A311,\"00\"))","v":"261X"},{"$f":"IF(OrigTable!A311=\"\",\"\",ScriptText!$E$1&CHAR(10)&ScriptText!$C$1)","v":"</td>\n</tr>"},{"$f":"IF(OrigTable!B311=\"\",\"\",ScriptText!$B$1&CHAR(10)&ScriptText!$D$1)","v":""},{"$f":"IF(OrigTable!B311=\"\",\"\",TEXT(OrigTable!B311,\"00\"))","v":""},{"$f":"IF(OrigTable!B311=\"\",\"\",ScriptText!$E$1&CHAR(10)&ScriptText!C306)","v":""},{"$f":"IF(OrigTable!C311=\"\",\"\",ScriptText!$B$1&CHAR(10)&ScriptText!$D$1)","v":"<tr>\n<td>"},{"$f":"IF(OrigTable!C311=\"\",\"\",IF(LEN(OrigTable!C311)>255,LEFT(OrigTable!C311,250)&\". . .\",OrigTable!C311))","v":"Notification of acceptance of taxpayer as an S-Corporation"},{"$f":"IF(OrigTable!C311=\"\",\"\",ScriptText!$E$1&CHAR(10)&ScriptText!$C$1)","v":"</td>\n</tr>"},{"$f":"IF(OrigTable!D311=\"\",\"\",ScriptText!$B$1&CHAR(10)&ScriptText!$D$1)","v":"<tr>\n<td>"},{"$f":"IF(OrigTable!D311=\"\",\"\",TEXT(OrigTable!D311,\"00\"))","v":"BMF Notices"},{"$f":"IF(OrigTable!D311=\"\",\"\",ScriptText!$E$1&CHAR(10)&ScriptText!$C$1)","v":"</td>\n</tr>"},{"$f":"IF(OrigTable!E311=\"\",\"\",ScriptText!$B$1&CHAR(10)&ScriptText!$D$1)","v":""},{"$f":"IF(OrigTable!E311=\"\",\"\",TEXT(OrigTable!E311,\"00\"))","v":""},{"$f":"IF(OrigTable!E311=\"\",\"\",ScriptText!$E$1&CHAR(10)&ScriptText!$C$1)","v":""},{"$f":"IF(OrigTable!F311=\"\",\"\",ScriptText!$B$1&CHAR(10)&ScriptText!$D$1)","v":""},{"$f":"IF(OrigTable!F311=\"\",\"\",TEXT(OrigTable!F311,\"00\"))","v":""},{"$f":"IF(OrigTable!F311=\"\",\"\",ScriptText!$E$1&CHAR(10)&ScriptText!$C$1)","v":""},{"$f":"IF(OrigTable!G311=\"\",\"\",ScriptText!$B$1&CHAR(10)&ScriptText!$D$1)","v":""},{"$f":"IF(OrigTable!G311=\"\",\"\",TEXT(OrigTable!G311,\"00\"))","v":""},{"$f":"IF(OrigTable!G311=\"\",\"\",ScriptText!$E$1&CHAR(10)&ScriptText!$C$1)","v":""},311]
["<tr>\n<td>262</td>\n</tr>\n<tr>\n<td>No</td>\n259G\n<tr>\n<td>Issued to notify the taxpayer of revocation of taxpayer status as an S-Corporation.</td>\n</tr>\n<tr>\n<td>BMF Notices</td>\n</tr>",{"$f":"IF(OrigTable!A312=\"\",\"\",ScriptText!$B$1&CHAR(10)&ScriptText!$D$1)","v":"<tr>\n<td>"},{"$f":"IF(OrigTable!A312=\"\",\"\",TEXT(OrigTable!A312,\"00\"))","v":"262"},{"$f":"IF(OrigTable!A312=\"\",\"\",ScriptText!$E$1&CHAR(10)&ScriptText!$C$1)","v":"</td>\n</tr>"},{"$f":"IF(OrigTable!B312=\"\",\"\",ScriptText!$B$1&CHAR(10)&ScriptText!$D$1)","v":"<tr>\n<td>"},{"$f":"IF(OrigTable!B312=\"\",\"\",TEXT(OrigTable!B312,\"00\"))","v":"No"},{"$f":"IF(OrigTable!B312=\"\",\"\",ScriptText!$E$1&CHAR(10)&ScriptText!C307)","v":"</td>\n259G"},{"$f":"IF(OrigTable!C312=\"\",\"\",ScriptText!$B$1&CHAR(10)&ScriptText!$D$1)","v":"<tr>\n<td>"},{"$f":"IF(OrigTable!C312=\"\",\"\",IF(LEN(OrigTable!C312)>255,LEFT(OrigTable!C312,250)&\". . .\",OrigTable!C312))","v":"Issued to notify the taxpayer of revocation of taxpayer status as an S-Corporation."},{"$f":"IF(OrigTable!C312=\"\",\"\",ScriptText!$E$1&CHAR(10)&ScriptText!$C$1)","v":"</td>\n</tr>"},{"$f":"IF(OrigTable!D312=\"\",\"\",ScriptText!$B$1&CHAR(10)&ScriptText!$D$1)","v":"<tr>\n<td>"},{"$f":"IF(OrigTable!D312=\"\",\"\",TEXT(OrigTable!D312,\"00\"))","v":"BMF Notices"},{"$f":"IF(OrigTable!D312=\"\",\"\",ScriptText!$E$1&CHAR(10)&ScriptText!$C$1)","v":"</td>\n</tr>"},{"$f":"IF(OrigTable!E312=\"\",\"\",ScriptText!$B$1&CHAR(10)&ScriptText!$D$1)","v":""},{"$f":"IF(OrigTable!E312=\"\",\"\",TEXT(OrigTable!E312,\"00\"))","v":""},{"$f":"IF(OrigTable!E312=\"\",\"\",ScriptText!$E$1&CHAR(10)&ScriptText!$C$1)","v":""},{"$f":"IF(OrigTable!F312=\"\",\"\",ScriptText!$B$1&CHAR(10)&ScriptText!$D$1)","v":""},{"$f":"IF(OrigTable!F312=\"\",\"\",TEXT(OrigTable!F312,\"00\"))","v":""},{"$f":"IF(OrigTable!F312=\"\",\"\",ScriptText!$E$1&CHAR(10)&ScriptText!$C$1)","v":""},{"$f":"IF(OrigTable!G312=\"\",\"\",ScriptText!$B$1&CHAR(10)&ScriptText!$D$1)","v":""},{"$f":"IF(OrigTable!G312=\"\",\"\",TEXT(OrigTable!G312,\"00\"))","v":""},{"$f":"IF(OrigTable!G312=\"\",\"\",ScriptText!$E$1&CHAR(10)&ScriptText!$C$1)","v":""},312]
["<tr>\n<td>264</td>\n</tr>\n<tr>\n<td>No</td>\n259H\n<tr>\n<td>Issued to notify taxpayer of denial of taxpayer petition to become an S-Corporation.</td>\n</tr>\n<tr>\n<td>BMF Notices</td>\n</tr>",{"$f":"IF(OrigTable!A313=\"\",\"\",ScriptText!$B$1&CHAR(10)&ScriptText!$D$1)","v":"<tr>\n<td>"},{"$f":"IF(OrigTable!A313=\"\",\"\",TEXT(OrigTable!A313,\"00\"))","v":"264"},{"$f":"IF(OrigTable!A313=\"\",\"\",ScriptText!$E$1&CHAR(10)&ScriptText!$C$1)","v":"</td>\n</tr>"},{"$f":"IF(OrigTable!B313=\"\",\"\",ScriptText!$B$1&CHAR(10)&ScriptText!$D$1)","v":"<tr>\n<td>"},{"$f":"IF(OrigTable!B313=\"\",\"\",TEXT(OrigTable!B313,\"00\"))","v":"No"},{"$f":"IF(OrigTable!B313=\"\",\"\",ScriptText!$E$1&CHAR(10)&ScriptText!C308)","v":"</td>\n259H"},{"$f":"IF(OrigTable!C313=\"\",\"\",ScriptText!$B$1&CHAR(10)&ScriptText!$D$1)","v":"<tr>\n<td>"},{"$f":"IF(OrigTable!C313=\"\",\"\",IF(LEN(OrigTable!C313)>255,LEFT(OrigTable!C313,250)&\". . .\",OrigTable!C313))","v":"Issued to notify taxpayer of denial of taxpayer petition to become an S-Corporation."},{"$f":"IF(OrigTable!C313=\"\",\"\",ScriptText!$E$1&CHAR(10)&ScriptText!$C$1)","v":"</td>\n</tr>"},{"$f":"IF(OrigTable!D313=\"\",\"\",ScriptText!$B$1&CHAR(10)&ScriptText!$D$1)","v":"<tr>\n<td>"},{"$f":"IF(OrigTable!D313=\"\",\"\",TEXT(OrigTable!D313,\"00\"))","v":"BMF Notices"},{"$f":"IF(OrigTable!D313=\"\",\"\",ScriptText!$E$1&CHAR(10)&ScriptText!$C$1)","v":"</td>\n</tr>"},{"$f":"IF(OrigTable!E313=\"\",\"\",ScriptText!$B$1&CHAR(10)&ScriptText!$D$1)","v":""},{"$f":"IF(OrigTable!E313=\"\",\"\",TEXT(OrigTable!E313,\"00\"))","v":""},{"$f":"IF(OrigTable!E313=\"\",\"\",ScriptText!$E$1&CHAR(10)&ScriptText!$C$1)","v":""},{"$f":"IF(OrigTable!F313=\"\",\"\",ScriptText!$B$1&CHAR(10)&ScriptText!$D$1)","v":""},{"$f":"IF(OrigTable!F313=\"\",\"\",TEXT(OrigTable!F313,\"00\"))","v":""},{"$f":"IF(OrigTable!F313=\"\",\"\",ScriptText!$E$1&CHAR(10)&ScriptText!$C$1)","v":""},{"$f":"IF(OrigTable!G313=\"\",\"\",ScriptText!$B$1&CHAR(10)&ScriptText!$D$1)","v":""},{"$f":"IF(OrigTable!G313=\"\",\"\",TEXT(OrigTable!G313,\"00\"))","v":""},{"$f":"IF(OrigTable!G313=\"\",\"\",ScriptText!$E$1&CHAR(10)&ScriptText!$C$1)","v":""},313]
["<tr>\n<td>265</td>\n</tr>\n<tr>\n<td>No</td>\n260\n<tr>\n<td>Issued to notify taxpayer of termination of taxpayer status as an S-Corporation.</td>\n</tr>\n<tr>\n<td>BMF Notices</td>\n</tr>",{"$f":"IF(OrigTable!A314=\"\",\"\",ScriptText!$B$1&CHAR(10)&ScriptText!$D$1)","v":"<tr>\n<td>"},{"$f":"IF(OrigTable!A314=\"\",\"\",TEXT(OrigTable!A314,\"00\"))","v":"265"},{"$f":"IF(OrigTable!A314=\"\",\"\",ScriptText!$E$1&CHAR(10)&ScriptText!$C$1)","v":"</td>\n</tr>"},{"$f":"IF(OrigTable!B314=\"\",\"\",ScriptText!$B$1&CHAR(10)&ScriptText!$D$1)","v":"<tr>\n<td>"},{"$f":"IF(OrigTable!B314=\"\",\"\",TEXT(OrigTable!B314,\"00\"))","v":"No"},{"$f":"IF(OrigTable!B314=\"\",\"\",ScriptText!$E$1&CHAR(10)&ScriptText!C309)","v":"</td>\n260"},{"$f":"IF(OrigTable!C314=\"\",\"\",ScriptText!$B$1&CHAR(10)&ScriptText!$D$1)","v":"<tr>\n<td>"},{"$f":"IF(OrigTable!C314=\"\",\"\",IF(LEN(OrigTable!C314)>255,LEFT(OrigTable!C314,250)&\". . .\",OrigTable!C314))","v":"Issued to notify taxpayer of termination of taxpayer status as an S-Corporation."},{"$f":"IF(OrigTable!C314=\"\",\"\",ScriptText!$E$1&CHAR(10)&ScriptText!$C$1)","v":"</td>\n</tr>"},{"$f":"IF(OrigTable!D314=\"\",\"\",ScriptText!$B$1&CHAR(10)&ScriptText!$D$1)","v":"<tr>\n<td>"},{"$f":"IF(OrigTable!D314=\"\",\"\",TEXT(OrigTable!D314,\"00\"))","v":"BMF Notices"},{"$f":"IF(OrigTable!D314=\"\",\"\",ScriptText!$E$1&CHAR(10)&ScriptText!$C$1)","v":"</td>\n</tr>"},{"$f":"IF(OrigTable!E314=\"\",\"\",ScriptText!$B$1&CHAR(10)&ScriptText!$D$1)","v":""},{"$f":"IF(OrigTable!E314=\"\",\"\",TEXT(OrigTable!E314,\"00\"))","v":""},{"$f":"IF(OrigTable!E314=\"\",\"\",ScriptText!$E$1&CHAR(10)&ScriptText!$C$1)","v":""},{"$f":"IF(OrigTable!F314=\"\",\"\",ScriptText!$B$1&CHAR(10)&ScriptText!$D$1)","v":""},{"$f":"IF(OrigTable!F314=\"\",\"\",TEXT(OrigTable!F314,\"00\"))","v":""},{"$f":"IF(OrigTable!F314=\"\",\"\",ScriptText!$E$1&CHAR(10)&ScriptText!$C$1)","v":""},{"$f":"IF(OrigTable!G314=\"\",\"\",ScriptText!$B$1&CHAR(10)&ScriptText!$D$1)","v":""},{"$f":"IF(OrigTable!G314=\"\",\"\",TEXT(OrigTable!G314,\"00\"))","v":""},{"$f":"IF(OrigTable!G314=\"\",\"\",ScriptText!$E$1&CHAR(10)&ScriptText!$C$1)","v":""},314]
["<tr>\n<td>266</td>\n</tr>\n<tr>\n<td>No</td>\n261\n<tr>\n<td>Issued to notify taxpayer of forwarding their Form 2553 to National Office.</td>\n</tr>\n<tr>\n<td>BMF Notices</td>\n</tr>",{"$f":"IF(OrigTable!A315=\"\",\"\",ScriptText!$B$1&CHAR(10)&ScriptText!$D$1)","v":"<tr>\n<td>"},{"$f":"IF(OrigTable!A315=\"\",\"\",TEXT(OrigTable!A315,\"00\"))","v":"266"},{"$f":"IF(OrigTable!A315=\"\",\"\",ScriptText!$E$1&CHAR(10)&ScriptText!$C$1)","v":"</td>\n</tr>"},{"$f":"IF(OrigTable!B315=\"\",\"\",ScriptText!$B$1&CHAR(10)&ScriptText!$D$1)","v":"<tr>\n<td>"},{"$f":"IF(OrigTable!B315=\"\",\"\",TEXT(OrigTable!B315,\"00\"))","v":"No"},{"$f":"IF(OrigTable!B315=\"\",\"\",ScriptText!$E$1&CHAR(10)&ScriptText!C310)","v":"</td>\n261"},{"$f":"IF(OrigTable!C315=\"\",\"\",ScriptText!$B$1&CHAR(10)&ScriptText!$D$1)","v":"<tr>\n<td>"},{"$f":"IF(OrigTable!C315=\"\",\"\",IF(LEN(OrigTable!C315)>255,LEFT(OrigTable!C315,250)&\". . .\",OrigTable!C315))","v":"Issued to notify taxpayer of forwarding their Form 2553 to National Office."},{"$f":"IF(OrigTable!C315=\"\",\"\",ScriptText!$E$1&CHAR(10)&ScriptText!$C$1)","v":"</td>\n</tr>"},{"$f":"IF(OrigTable!D315=\"\",\"\",ScriptText!$B$1&CHAR(10)&ScriptText!$D$1)","v":"<tr>\n<td>"},{"$f":"IF(OrigTable!D315=\"\",\"\",TEXT(OrigTable!D315,\"00\"))","v":"BMF Notices"},{"$f":"IF(OrigTable!D315=\"\",\"\",ScriptText!$E$1&CHAR(10)&ScriptText!$C$1)","v":"</td>\n</tr>"},{"$f":"IF(OrigTable!E315=\"\",\"\",ScriptText!$B$1&CHAR(10)&ScriptText!$D$1)","v":""},{"$f":"IF(OrigTable!E315=\"\",\"\",TEXT(OrigTable!E315,\"00\"))","v":""},{"$f":"IF(OrigTable!E315=\"\",\"\",ScriptText!$E$1&CHAR(10)&ScriptText!$C$1)","v":""},{"$f":"IF(OrigTable!F315=\"\",\"\",ScriptText!$B$1&CHAR(10)&ScriptText!$D$1)","v":""},{"$f":"IF(OrigTable!F315=\"\",\"\",TEXT(OrigTable!F315,\"00\"))","v":""},{"$f":"IF(OrigTable!F315=\"\",\"\",ScriptText!$E$1&CHAR(10)&ScriptText!$C$1)","v":""},{"$f":"IF(OrigTable!G315=\"\",\"\",ScriptText!$B$1&CHAR(10)&ScriptText!$D$1)","v":""},{"$f":"IF(OrigTable!G315=\"\",\"\",TEXT(OrigTable!G315,\"00\"))","v":""},{"$f":"IF(OrigTable!G315=\"\",\"\",ScriptText!$E$1&CHAR(10)&ScriptText!$C$1)","v":""},315]
["<tr>\n<td>267</td>\n</tr>\n<tr>\n<td>Yes</td>\n261X\n<tr>\n<td>Issued to notify taxpayer of excess credits in a tax module in which no math error return posted and a request taxpayer response for resolution of the condition.</td>\n</tr>\n<tr>\n<td>BMF Notices</td>\n</tr>",{"$f":"IF(OrigTable!A316=\"\",\"\",ScriptText!$B$1&CHAR(10)&ScriptText!$D$1)","v":"<tr>\n<td>"},{"$f":"IF(OrigTable!A316=\"\",\"\",TEXT(OrigTable!A316,\"00\"))","v":"267"},{"$f":"IF(OrigTable!A316=\"\",\"\",ScriptText!$E$1&CHAR(10)&ScriptText!$C$1)","v":"</td>\n</tr>"},{"$f":"IF(OrigTable!B316=\"\",\"\",ScriptText!$B$1&CHAR(10)&ScriptText!$D$1)","v":"<tr>\n<td>"},{"$f":"IF(OrigTable!B316=\"\",\"\",TEXT(OrigTable!B316,\"00\"))","v":"Yes"},{"$f":"IF(OrigTable!B316=\"\",\"\",ScriptText!$E$1&CHAR(10)&ScriptText!C311)","v":"</td>\n261X"},{"$f":"IF(OrigTable!C316=\"\",\"\",ScriptText!$B$1&CHAR(10)&ScriptText!$D$1)","v":"<tr>\n<td>"},{"$f":"IF(OrigTable!C316=\"\",\"\",IF(LEN(OrigTable!C316)>255,LEFT(OrigTable!C316,250)&\". . .\",OrigTable!C316))","v":"Issued to notify taxpayer of excess credits in a tax module in which no math error return posted and a request taxpayer response for resolution of the condition."},{"$f":"IF(OrigTable!C316=\"\",\"\",ScriptText!$E$1&CHAR(10)&ScriptText!$C$1)","v":"</td>\n</tr>"},{"$f":"IF(OrigTable!D316=\"\",\"\",ScriptText!$B$1&CHAR(10)&ScriptText!$D$1)","v":"<tr>\n<td>"},{"$f":"IF(OrigTable!D316=\"\",\"\",TEXT(OrigTable!D316,\"00\"))","v":"BMF Notices"},{"$f":"IF(OrigTable!D316=\"\",\"\",ScriptText!$E$1&CHAR(10)&ScriptText!$C$1)","v":"</td>\n</tr>"},{"$f":"IF(OrigTable!E316=\"\",\"\",ScriptText!$B$1&CHAR(10)&ScriptText!$D$1)","v":""},{"$f":"IF(OrigTable!E316=\"\",\"\",TEXT(OrigTable!E316,\"00\"))","v":""},{"$f":"IF(OrigTable!E316=\"\",\"\",ScriptText!$E$1&CHAR(10)&ScriptText!$C$1)","v":""},{"$f":"IF(OrigTable!F316=\"\",\"\",ScriptText!$B$1&CHAR(10)&ScriptText!$D$1)","v":""},{"$f":"IF(OrigTable!F316=\"\",\"\",TEXT(OrigTable!F316,\"00\"))","v":""},{"$f":"IF(OrigTable!F316=\"\",\"\",ScriptText!$E$1&CHAR(10)&ScriptText!$C$1)","v":""},{"$f":"IF(OrigTable!G316=\"\",\"\",ScriptText!$B$1&CHAR(10)&ScriptText!$D$1)","v":""},{"$f":"IF(OrigTable!G316=\"\",\"\",TEXT(OrigTable!G316,\"00\"))","v":""},{"$f":"IF(OrigTable!G316=\"\",\"\",ScriptText!$E$1&CHAR(10)&ScriptText!$C$1)","v":""},316]
["<tr>\n<td>267B</td>\n</tr>\n\n<tr>\n<td>Non-Exchange for Provision 9010 Insurance Provider Fee</td>\n</tr>\n<tr>\n<td>BMF Notices</td>\n</tr>",{"$f":"IF(OrigTable!A317=\"\",\"\",ScriptText!$B$1&CHAR(10)&ScriptText!$D$1)","v":"<tr>\n<td>"},{"$f":"IF(OrigTable!A317=\"\",\"\",TEXT(OrigTable!A317,\"00\"))","v":"267B"},{"$f":"IF(OrigTable!A317=\"\",\"\",ScriptText!$E$1&CHAR(10)&ScriptText!$C$1)","v":"</td>\n</tr>"},{"$f":"IF(OrigTable!B317=\"\",\"\",ScriptText!$B$1&CHAR(10)&ScriptText!$D$1)","v":""},{"$f":"IF(OrigTable!B317=\"\",\"\",TEXT(OrigTable!B317,\"00\"))","v":""},{"$f":"IF(OrigTable!B317=\"\",\"\",ScriptText!$E$1&CHAR(10)&ScriptText!C312)","v":""},{"$f":"IF(OrigTable!C317=\"\",\"\",ScriptText!$B$1&CHAR(10)&ScriptText!$D$1)","v":"<tr>\n<td>"},{"$f":"IF(OrigTable!C317=\"\",\"\",IF(LEN(OrigTable!C317)>255,LEFT(OrigTable!C317,250)&\". . .\",OrigTable!C317))","v":"Non-Exchange for Provision 9010 Insurance Provider Fee"},{"$f":"IF(OrigTable!C317=\"\",\"\",ScriptText!$E$1&CHAR(10)&ScriptText!$C$1)","v":"</td>\n</tr>"},{"$f":"IF(OrigTable!D317=\"\",\"\",ScriptText!$B$1&CHAR(10)&ScriptText!$D$1)","v":"<tr>\n<td>"},{"$f":"IF(OrigTable!D317=\"\",\"\",TEXT(OrigTable!D317,\"00\"))","v":"BMF Notices"},{"$f":"IF(OrigTable!D317=\"\",\"\",ScriptText!$E$1&CHAR(10)&ScriptText!$C$1)","v":"</td>\n</tr>"},{"$f":"IF(OrigTable!E317=\"\",\"\",ScriptText!$B$1&CHAR(10)&ScriptText!$D$1)","v":""},{"$f":"IF(OrigTable!E317=\"\",\"\",TEXT(OrigTable!E317,\"00\"))","v":""},{"$f":"IF(OrigTable!E317=\"\",\"\",ScriptText!$E$1&CHAR(10)&ScriptText!$C$1)","v":""},{"$f":"IF(OrigTable!F317=\"\",\"\",ScriptText!$B$1&CHAR(10)&ScriptText!$D$1)","v":""},{"$f":"IF(OrigTable!F317=\"\",\"\",TEXT(OrigTable!F317,\"00\"))","v":""},{"$f":"IF(OrigTable!F317=\"\",\"\",ScriptText!$E$1&CHAR(10)&ScriptText!$C$1)","v":""},{"$f":"IF(OrigTable!G317=\"\",\"\",ScriptText!$B$1&CHAR(10)&ScriptText!$D$1)","v":""},{"$f":"IF(OrigTable!G317=\"\",\"\",TEXT(OrigTable!G317,\"00\"))","v":""},{"$f":"IF(OrigTable!G317=\"\",\"\",ScriptText!$E$1&CHAR(10)&ScriptText!$C$1)","v":""},317]
["<tr>\n<td>268</td>\n</tr>\n<tr>\n<td>Yes</td>\n264\n<tr>\n<td>Issued to notify taxpayer of excess credits in a tax module in which a math error returned posted and a request for resolution of the condition.</td>\n</tr>\n<tr>\n<td>BMF Notices</td>\n</tr>",{"$f":"IF(OrigTable!A318=\"\",\"\",ScriptText!$B$1&CHAR(10)&ScriptText!$D$1)","v":"<tr>\n<td>"},{"$f":"IF(OrigTable!A318=\"\",\"\",TEXT(OrigTable!A318,\"00\"))","v":"268"},{"$f":"IF(OrigTable!A318=\"\",\"\",ScriptText!$E$1&CHAR(10)&ScriptText!$C$1)","v":"</td>\n</tr>"},{"$f":"IF(OrigTable!B318=\"\",\"\",ScriptText!$B$1&CHAR(10)&ScriptText!$D$1)","v":"<tr>\n<td>"},{"$f":"IF(OrigTable!B318=\"\",\"\",TEXT(OrigTable!B318,\"00\"))","v":"Yes"},{"$f":"IF(OrigTable!B318=\"\",\"\",ScriptText!$E$1&CHAR(10)&ScriptText!C313)","v":"</td>\n264"},{"$f":"IF(OrigTable!C318=\"\",\"\",ScriptText!$B$1&CHAR(10)&ScriptText!$D$1)","v":"<tr>\n<td>"},{"$f":"IF(OrigTable!C318=\"\",\"\",IF(LEN(OrigTable!C318)>255,LEFT(OrigTable!C318,250)&\". . .\",OrigTable!C318))","v":"Issued to notify taxpayer of excess credits in a tax module in which a math error returned posted and a request for resolution of the condition."},{"$f":"IF(OrigTable!C318=\"\",\"\",ScriptText!$E$1&CHAR(10)&ScriptText!$C$1)","v":"</td>\n</tr>"},{"$f":"IF(OrigTable!D318=\"\",\"\",ScriptText!$B$1&CHAR(10)&ScriptText!$D$1)","v":"<tr>\n<td>"},{"$f":"IF(OrigTable!D318=\"\",\"\",TEXT(OrigTable!D318,\"00\"))","v":"BMF Notices"},{"$f":"IF(OrigTable!D318=\"\",\"\",ScriptText!$E$1&CHAR(10)&ScriptText!$C$1)","v":"</td>\n</tr>"},{"$f":"IF(OrigTable!E318=\"\",\"\",ScriptText!$B$1&CHAR(10)&ScriptText!$D$1)","v":""},{"$f":"IF(OrigTable!E318=\"\",\"\",TEXT(OrigTable!E318,\"00\"))","v":""},{"$f":"IF(OrigTable!E318=\"\",\"\",ScriptText!$E$1&CHAR(10)&ScriptText!$C$1)","v":""},{"$f":"IF(OrigTable!F318=\"\",\"\",ScriptText!$B$1&CHAR(10)&ScriptText!$D$1)","v":""},{"$f":"IF(OrigTable!F318=\"\",\"\",TEXT(OrigTable!F318,\"00\"))","v":""},{"$f":"IF(OrigTable!F318=\"\",\"\",ScriptText!$E$1&CHAR(10)&ScriptText!$C$1)","v":""},{"$f":"IF(OrigTable!G318=\"\",\"\",ScriptText!$B$1&CHAR(10)&ScriptText!$D$1)","v":""},{"$f":"IF(OrigTable!G318=\"\",\"\",TEXT(OrigTable!G318,\"00\"))","v":""},{"$f":"IF(OrigTable!G318=\"\",\"\",ScriptText!$E$1&CHAR(10)&ScriptText!$C$1)","v":""},318]
["<tr>\n<td>269</td>\n</tr>\n\n<tr>\n<td>Exam Initial Contact letter – Excise Tax - Refund frozen</td>\n</tr>\n<tr>\n<td>BMF Notices</td>\n</tr>",{"$f":"IF(OrigTable!A319=\"\",\"\",ScriptText!$B$1&CHAR(10)&ScriptText!$D$1)","v":"<tr>\n<td>"},{"$f":"IF(OrigTable!A319=\"\",\"\",TEXT(OrigTable!A319,\"00\"))","v":"269"},{"$f":"IF(OrigTable!A319=\"\",\"\",ScriptText!$E$1&CHAR(10)&ScriptText!$C$1)","v":"</td>\n</tr>"},{"$f":"IF(OrigTable!B319=\"\",\"\",ScriptText!$B$1&CHAR(10)&ScriptText!$D$1)","v":""},{"$f":"IF(OrigTable!B319=\"\",\"\",TEXT(OrigTable!B319,\"00\"))","v":""},{"$f":"IF(OrigTable!B319=\"\",\"\",ScriptText!$E$1&CHAR(10)&ScriptText!C314)","v":""},{"$f":"IF(OrigTable!C319=\"\",\"\",ScriptText!$B$1&CHAR(10)&ScriptText!$D$1)","v":"<tr>\n<td>"},{"$f":"IF(OrigTable!C319=\"\",\"\",IF(LEN(OrigTable!C319)>255,LEFT(OrigTable!C319,250)&\". . .\",OrigTable!C319))","v":"Exam Initial Contact letter – Excise Tax - Refund frozen"},{"$f":"IF(OrigTable!C319=\"\",\"\",ScriptText!$E$1&CHAR(10)&ScriptText!$C$1)","v":"</td>\n</tr>"},{"$f":"IF(OrigTable!D319=\"\",\"\",ScriptText!$B$1&CHAR(10)&ScriptText!$D$1)","v":"<tr>\n<td>"},{"$f":"IF(OrigTable!D319=\"\",\"\",TEXT(OrigTable!D319,\"00\"))","v":"BMF Notices"},{"$f":"IF(OrigTable!D319=\"\",\"\",ScriptText!$E$1&CHAR(10)&ScriptText!$C$1)","v":"</td>\n</tr>"},{"$f":"IF(OrigTable!E319=\"\",\"\",ScriptText!$B$1&CHAR(10)&ScriptText!$D$1)","v":""},{"$f":"IF(OrigTable!E319=\"\",\"\",TEXT(OrigTable!E319,\"00\"))","v":""},{"$f":"IF(OrigTable!E319=\"\",\"\",ScriptText!$E$1&CHAR(10)&ScriptText!$C$1)","v":""},{"$f":"IF(OrigTable!F319=\"\",\"\",ScriptText!$B$1&CHAR(10)&ScriptText!$D$1)","v":""},{"$f":"IF(OrigTable!F319=\"\",\"\",TEXT(OrigTable!F319,\"00\"))","v":""},{"$f":"IF(OrigTable!F319=\"\",\"\",ScriptText!$E$1&CHAR(10)&ScriptText!$C$1)","v":""},{"$f":"IF(OrigTable!G319=\"\",\"\",ScriptText!$B$1&CHAR(10)&ScriptText!$D$1)","v":""},{"$f":"IF(OrigTable!G319=\"\",\"\",TEXT(OrigTable!G319,\"00\"))","v":""},{"$f":"IF(OrigTable!G319=\"\",\"\",ScriptText!$E$1&CHAR(10)&ScriptText!$C$1)","v":""},319]
["<tr>\n<td>269C</td>\n</tr>\n\n<tr>\n<td>Exam Initial Contact Letter – COBRA – Refund frozen</td>\n</tr>\n<tr>\n<td>BMF Notices</td>\n</tr>",{"$f":"IF(OrigTable!A320=\"\",\"\",ScriptText!$B$1&CHAR(10)&ScriptText!$D$1)","v":"<tr>\n<td>"},{"$f":"IF(OrigTable!A320=\"\",\"\",TEXT(OrigTable!A320,\"00\"))","v":"269C"},{"$f":"IF(OrigTable!A320=\"\",\"\",ScriptText!$E$1&CHAR(10)&ScriptText!$C$1)","v":"</td>\n</tr>"},{"$f":"IF(OrigTable!B320=\"\",\"\",ScriptText!$B$1&CHAR(10)&ScriptText!$D$1)","v":""},{"$f":"IF(OrigTable!B320=\"\",\"\",TEXT(OrigTable!B320,\"00\"))","v":""},{"$f":"IF(OrigTable!B320=\"\",\"\",ScriptText!$E$1&CHAR(10)&ScriptText!C315)","v":""},{"$f":"IF(OrigTable!C320=\"\",\"\",ScriptText!$B$1&CHAR(10)&ScriptText!$D$1)","v":"<tr>\n<td>"},{"$f":"IF(OrigTable!C320=\"\",\"\",IF(LEN(OrigTable!C320)>255,LEFT(OrigTable!C320,250)&\". . .\",OrigTable!C320))","v":"Exam Initial Contact Letter – COBRA – Refund frozen"},{"$f":"IF(OrigTable!C320=\"\",\"\",ScriptText!$E$1&CHAR(10)&ScriptText!$C$1)","v":"</td>\n</tr>"},{"$f":"IF(OrigTable!D320=\"\",\"\",ScriptText!$B$1&CHAR(10)&ScriptText!$D$1)","v":"<tr>\n<td>"},{"$f":"IF(OrigTable!D320=\"\",\"\",TEXT(OrigTable!D320,\"00\"))","v":"BMF Notices"},{"$f":"IF(OrigTable!D320=\"\",\"\",ScriptText!$E$1&CHAR(10)&ScriptText!$C$1)","v":"</td>\n</tr>"},{"$f":"IF(OrigTable!E320=\"\",\"\",ScriptText!$B$1&CHAR(10)&ScriptText!$D$1)","v":""},{"$f":"IF(OrigTable!E320=\"\",\"\",TEXT(OrigTable!E320,\"00\"))","v":""},{"$f":"IF(OrigTable!E320=\"\",\"\",ScriptText!$E$1&CHAR(10)&ScriptText!$C$1)","v":""},{"$f":"IF(OrigTable!F320=\"\",\"\",ScriptText!$B$1&CHAR(10)&ScriptText!$D$1)","v":""},{"$f":"IF(OrigTable!F320=\"\",\"\",TEXT(OrigTable!F320,\"00\"))","v":""},{"$f":"IF(OrigTable!F320=\"\",\"\",ScriptText!$E$1&CHAR(10)&ScriptText!$C$1)","v":""},{"$f":"IF(OrigTable!G320=\"\",\"\",ScriptText!$B$1&CHAR(10)&ScriptText!$D$1)","v":""},{"$f":"IF(OrigTable!G320=\"\",\"\",TEXT(OrigTable!G320,\"00\"))","v":""},{"$f":"IF(OrigTable!G320=\"\",\"\",ScriptText!$E$1&CHAR(10)&ScriptText!$C$1)","v":""},320]
["<tr>\n<td>269D</td>\n</tr>\n\n<tr>\n<td>Exam Initial Contact Letter – COBRA</td>\n</tr>\n<tr>\n<td>BMF Notices</td>\n</tr>",{"$f":"IF(OrigTable!A321=\"\",\"\",ScriptText!$B$1&CHAR(10)&ScriptText!$D$1)","v":"<tr>\n<td>"},{"$f":"IF(OrigTable!A321=\"\",\"\",TEXT(OrigTable!A321,\"00\"))","v":"269D"},{"$f":"IF(OrigTable!A321=\"\",\"\",ScriptText!$E$1&CHAR(10)&ScriptText!$C$1)","v":"</td>\n</tr>"},{"$f":"IF(OrigTable!B321=\"\",\"\",ScriptText!$B$1&CHAR(10)&ScriptText!$D$1)","v":""},{"$f":"IF(OrigTable!B321=\"\",\"\",TEXT(OrigTable!B321,\"00\"))","v":""},{"$f":"IF(OrigTable!B321=\"\",\"\",ScriptText!$E$1&CHAR(10)&ScriptText!C316)","v":""},{"$f":"IF(OrigTable!C321=\"\",\"\",ScriptText!$B$1&CHAR(10)&ScriptText!$D$1)","v":"<tr>\n<td>"},{"$f":"IF(OrigTable!C321=\"\",\"\",IF(LEN(OrigTable!C321)>255,LEFT(OrigTable!C321,250)&\". . .\",OrigTable!C321))","v":"Exam Initial Contact Letter – COBRA"},{"$f":"IF(OrigTable!C321=\"\",\"\",ScriptText!$E$1&CHAR(10)&ScriptText!$C$1)","v":"</td>\n</tr>"},{"$f":"IF(OrigTable!D321=\"\",\"\",ScriptText!$B$1&CHAR(10)&ScriptText!$D$1)","v":"<tr>\n<td>"},{"$f":"IF(OrigTable!D321=\"\",\"\",TEXT(OrigTable!D321,\"00\"))","v":"BMF Notices"},{"$f":"IF(OrigTable!D321=\"\",\"\",ScriptText!$E$1&CHAR(10)&ScriptText!$C$1)","v":"</td>\n</tr>"},{"$f":"IF(OrigTable!E321=\"\",\"\",ScriptText!$B$1&CHAR(10)&ScriptText!$D$1)","v":""},{"$f":"IF(OrigTable!E321=\"\",\"\",TEXT(OrigTable!E321,\"00\"))","v":""},{"$f":"IF(OrigTable!E321=\"\",\"\",ScriptText!$E$1&CHAR(10)&ScriptText!$C$1)","v":""},{"$f":"IF(OrigTable!F321=\"\",\"\",ScriptText!$B$1&CHAR(10)&ScriptText!$D$1)","v":""},{"$f":"IF(OrigTable!F321=\"\",\"\",TEXT(OrigTable!F321,\"00\"))","v":""},{"$f":"IF(OrigTable!F321=\"\",\"\",ScriptText!$E$1&CHAR(10)&ScriptText!$C$1)","v":""},{"$f":"IF(OrigTable!G321=\"\",\"\",ScriptText!$B$1&CHAR(10)&ScriptText!$D$1)","v":""},{"$f":"IF(OrigTable!G321=\"\",\"\",TEXT(OrigTable!G321,\"00\"))","v":""},{"$f":"IF(OrigTable!G321=\"\",\"\",ScriptText!$E$1&CHAR(10)&ScriptText!$C$1)","v":""},321]
["<tr>\n<td>270</td>\n</tr>\n<tr>\n<td>No</td>\n267B\n<tr>\n<td>Campus notice only: Notification to SC Adjustments or Examination that TC 29X or 30X\nwith a hold code 2, 4, 7 or 9 posted and module is in debit balance and a subsequent TC 29X or 30X without a hold code 2, 4, 7 or 9 has not posted.</td>\n</tr>\n<tr>\n<td>BMF Notices</td>\n</tr>",{"$f":"IF(OrigTable!A322=\"\",\"\",ScriptText!$B$1&CHAR(10)&ScriptText!$D$1)","v":"<tr>\n<td>"},{"$f":"IF(OrigTable!A322=\"\",\"\",TEXT(OrigTable!A322,\"00\"))","v":"270"},{"$f":"IF(OrigTable!A322=\"\",\"\",ScriptText!$E$1&CHAR(10)&ScriptText!$C$1)","v":"</td>\n</tr>"},{"$f":"IF(OrigTable!B322=\"\",\"\",ScriptText!$B$1&CHAR(10)&ScriptText!$D$1)","v":"<tr>\n<td>"},{"$f":"IF(OrigTable!B322=\"\",\"\",TEXT(OrigTable!B322,\"00\"))","v":"No"},{"$f":"IF(OrigTable!B322=\"\",\"\",ScriptText!$E$1&CHAR(10)&ScriptText!C317)","v":"</td>\n267B"},{"$f":"IF(OrigTable!C322=\"\",\"\",ScriptText!$B$1&CHAR(10)&ScriptText!$D$1)","v":"<tr>\n<td>"},{"$f":"IF(OrigTable!C322=\"\",\"\",IF(LEN(OrigTable!C322)>255,LEFT(OrigTable!C322,250)&\". . .\",OrigTable!C322))","v":"Campus notice only: Notification to SC Adjustments or Examination that TC 29X or 30X\nwith a hold code 2, 4, 7 or 9 posted and module is in debit balance and a subsequent TC 29X or 30X without a hold code 2, 4, 7 or 9 has not posted."},{"$f":"IF(OrigTable!C322=\"\",\"\",ScriptText!$E$1&CHAR(10)&ScriptText!$C$1)","v":"</td>\n</tr>"},{"$f":"IF(OrigTable!D322=\"\",\"\",ScriptText!$B$1&CHAR(10)&ScriptText!$D$1)","v":"<tr>\n<td>"},{"$f":"IF(OrigTable!D322=\"\",\"\",TEXT(OrigTable!D322,\"00\"))","v":"BMF Notices"},{"$f":"IF(OrigTable!D322=\"\",\"\",ScriptText!$E$1&CHAR(10)&ScriptText!$C$1)","v":"</td>\n</tr>"},{"$f":"IF(OrigTable!E322=\"\",\"\",ScriptText!$B$1&CHAR(10)&ScriptText!$D$1)","v":""},{"$f":"IF(OrigTable!E322=\"\",\"\",TEXT(OrigTable!E322,\"00\"))","v":""},{"$f":"IF(OrigTable!E322=\"\",\"\",ScriptText!$E$1&CHAR(10)&ScriptText!$C$1)","v":""},{"$f":"IF(OrigTable!F322=\"\",\"\",ScriptText!$B$1&CHAR(10)&ScriptText!$D$1)","v":""},{"$f":"IF(OrigTable!F322=\"\",\"\",TEXT(OrigTable!F322,\"00\"))","v":""},{"$f":"IF(OrigTable!F322=\"\",\"\",ScriptText!$E$1&CHAR(10)&ScriptText!$C$1)","v":""},{"$f":"IF(OrigTable!G322=\"\",\"\",ScriptText!$B$1&CHAR(10)&ScriptText!$D$1)","v":""},{"$f":"IF(OrigTable!G322=\"\",\"\",TEXT(OrigTable!G322,\"00\"))","v":""},{"$f":"IF(OrigTable!G322=\"\",\"\",ScriptText!$E$1&CHAR(10)&ScriptText!$C$1)","v":""},322]
["<tr>\n<td>276A</td>\n</tr>\n<tr>\n<td>No</td>\n268\n<tr>\n<td>Reminder to Supply a Properly Completed Tax Liability Schedule When Filing Future\nReturns</td>\n</tr>\n<tr>\n<td>BMF Notices</td>\n</tr>",{"$f":"IF(OrigTable!A323=\"\",\"\",ScriptText!$B$1&CHAR(10)&ScriptText!$D$1)","v":"<tr>\n<td>"},{"$f":"IF(OrigTable!A323=\"\",\"\",TEXT(OrigTable!A323,\"00\"))","v":"276A"},{"$f":"IF(OrigTable!A323=\"\",\"\",ScriptText!$E$1&CHAR(10)&ScriptText!$C$1)","v":"</td>\n</tr>"},{"$f":"IF(OrigTable!B323=\"\",\"\",ScriptText!$B$1&CHAR(10)&ScriptText!$D$1)","v":"<tr>\n<td>"},{"$f":"IF(OrigTable!B323=\"\",\"\",TEXT(OrigTable!B323,\"00\"))","v":"No"},{"$f":"IF(OrigTable!B323=\"\",\"\",ScriptText!$E$1&CHAR(10)&ScriptText!C318)","v":"</td>\n268"},{"$f":"IF(OrigTable!C323=\"\",\"\",ScriptText!$B$1&CHAR(10)&ScriptText!$D$1)","v":"<tr>\n<td>"},{"$f":"IF(OrigTable!C323=\"\",\"\",IF(LEN(OrigTable!C323)>255,LEFT(OrigTable!C323,250)&\". . .\",OrigTable!C323))","v":"Reminder to Supply a Properly Completed Tax Liability Schedule When Filing Future\nReturns"},{"$f":"IF(OrigTable!C323=\"\",\"\",ScriptText!$E$1&CHAR(10)&ScriptText!$C$1)","v":"</td>\n</tr>"},{"$f":"IF(OrigTable!D323=\"\",\"\",ScriptText!$B$1&CHAR(10)&ScriptText!$D$1)","v":"<tr>\n<td>"},{"$f":"IF(OrigTable!D323=\"\",\"\",TEXT(OrigTable!D323,\"00\"))","v":"BMF Notices"},{"$f":"IF(OrigTable!D323=\"\",\"\",ScriptText!$E$1&CHAR(10)&ScriptText!$C$1)","v":"</td>\n</tr>"},{"$f":"IF(OrigTable!E323=\"\",\"\",ScriptText!$B$1&CHAR(10)&ScriptText!$D$1)","v":""},{"$f":"IF(OrigTable!E323=\"\",\"\",TEXT(OrigTable!E323,\"00\"))","v":""},{"$f":"IF(OrigTable!E323=\"\",\"\",ScriptText!$E$1&CHAR(10)&ScriptText!$C$1)","v":""},{"$f":"IF(OrigTable!F323=\"\",\"\",ScriptText!$B$1&CHAR(10)&ScriptText!$D$1)","v":""},{"$f":"IF(OrigTable!F323=\"\",\"\",TEXT(OrigTable!F323,\"00\"))","v":""},{"$f":"IF(OrigTable!F323=\"\",\"\",ScriptText!$E$1&CHAR(10)&ScriptText!$C$1)","v":""},{"$f":"IF(OrigTable!G323=\"\",\"\",ScriptText!$B$1&CHAR(10)&ScriptText!$D$1)","v":""},{"$f":"IF(OrigTable!G323=\"\",\"\",TEXT(OrigTable!G323,\"00\"))","v":""},{"$f":"IF(OrigTable!G323=\"\",\"\",ScriptText!$E$1&CHAR(10)&ScriptText!$C$1)","v":""},323]
["<tr>\n<td>276B</td>\n</tr>\n<tr>\n<td>No</td>\n269\n<tr>\n<td>You Made One or More Late Federal Tax Deposits But We Didn’t Charge You a Penalty</td>\n</tr>\n<tr>\n<td>BMF Notices</td>\n</tr>",{"$f":"IF(OrigTable!A324=\"\",\"\",ScriptText!$B$1&CHAR(10)&ScriptText!$D$1)","v":"<tr>\n<td>"},{"$f":"IF(OrigTable!A324=\"\",\"\",TEXT(OrigTable!A324,\"00\"))","v":"276B"},{"$f":"IF(OrigTable!A324=\"\",\"\",ScriptText!$E$1&CHAR(10)&ScriptText!$C$1)","v":"</td>\n</tr>"},{"$f":"IF(OrigTable!B324=\"\",\"\",ScriptText!$B$1&CHAR(10)&ScriptText!$D$1)","v":"<tr>\n<td>"},{"$f":"IF(OrigTable!B324=\"\",\"\",TEXT(OrigTable!B324,\"00\"))","v":"No"},{"$f":"IF(OrigTable!B324=\"\",\"\",ScriptText!$E$1&CHAR(10)&ScriptText!C319)","v":"</td>\n269"},{"$f":"IF(OrigTable!C324=\"\",\"\",ScriptText!$B$1&CHAR(10)&ScriptText!$D$1)","v":"<tr>\n<td>"},{"$f":"IF(OrigTable!C324=\"\",\"\",IF(LEN(OrigTable!C324)>255,LEFT(OrigTable!C324,250)&\". . .\",OrigTable!C324))","v":"You Made One or More Late Federal Tax Deposits But We Didn’t Charge You a Penalty"},{"$f":"IF(OrigTable!C324=\"\",\"\",ScriptText!$E$1&CHAR(10)&ScriptText!$C$1)","v":"</td>\n</tr>"},{"$f":"IF(OrigTable!D324=\"\",\"\",ScriptText!$B$1&CHAR(10)&ScriptText!$D$1)","v":"<tr>\n<td>"},{"$f":"IF(OrigTable!D324=\"\",\"\",TEXT(OrigTable!D324,\"00\"))","v":"BMF Notices"},{"$f":"IF(OrigTable!D324=\"\",\"\",ScriptText!$E$1&CHAR(10)&ScriptText!$C$1)","v":"</td>\n</tr>"},{"$f":"IF(OrigTable!E324=\"\",\"\",ScriptText!$B$1&CHAR(10)&ScriptText!$D$1)","v":""},{"$f":"IF(OrigTable!E324=\"\",\"\",TEXT(OrigTable!E324,\"00\"))","v":""},{"$f":"IF(OrigTable!E324=\"\",\"\",ScriptText!$E$1&CHAR(10)&ScriptText!$C$1)","v":""},{"$f":"IF(OrigTable!F324=\"\",\"\",ScriptText!$B$1&CHAR(10)&ScriptText!$D$1)","v":""},{"$f":"IF(OrigTable!F324=\"\",\"\",TEXT(OrigTable!F324,\"00\"))","v":""},{"$f":"IF(OrigTable!F324=\"\",\"\",ScriptText!$E$1&CHAR(10)&ScriptText!$C$1)","v":""},{"$f":"IF(OrigTable!G324=\"\",\"\",ScriptText!$B$1&CHAR(10)&ScriptText!$D$1)","v":""},{"$f":"IF(OrigTable!G324=\"\",\"\",TEXT(OrigTable!G324,\"00\"))","v":""},{"$f":"IF(OrigTable!G324=\"\",\"\",ScriptText!$E$1&CHAR(10)&ScriptText!$C$1)","v":""},324]
["<tr>\n<td>277</td>\n</tr>\n<tr>\n<td>No</td>\n269C\n<tr>\n<td>Form 8832 Entity Classification Election acceptance</td>\n</tr>\n<tr>\n<td>BMF Notices</td>\n</tr>",{"$f":"IF(OrigTable!A325=\"\",\"\",ScriptText!$B$1&CHAR(10)&ScriptText!$D$1)","v":"<tr>\n<td>"},{"$f":"IF(OrigTable!A325=\"\",\"\",TEXT(OrigTable!A325,\"00\"))","v":"277"},{"$f":"IF(OrigTable!A325=\"\",\"\",ScriptText!$E$1&CHAR(10)&ScriptText!$C$1)","v":"</td>\n</tr>"},{"$f":"IF(OrigTable!B325=\"\",\"\",ScriptText!$B$1&CHAR(10)&ScriptText!$D$1)","v":"<tr>\n<td>"},{"$f":"IF(OrigTable!B325=\"\",\"\",TEXT(OrigTable!B325,\"00\"))","v":"No"},{"$f":"IF(OrigTable!B325=\"\",\"\",ScriptText!$E$1&CHAR(10)&ScriptText!C320)","v":"</td>\n269C"},{"$f":"IF(OrigTable!C325=\"\",\"\",ScriptText!$B$1&CHAR(10)&ScriptText!$D$1)","v":"<tr>\n<td>"},{"$f":"IF(OrigTable!C325=\"\",\"\",IF(LEN(OrigTable!C325)>255,LEFT(OrigTable!C325,250)&\". . .\",OrigTable!C325))","v":"Form 8832 Entity Classification Election acceptance"},{"$f":"IF(OrigTable!C325=\"\",\"\",ScriptText!$E$1&CHAR(10)&ScriptText!$C$1)","v":"</td>\n</tr>"},{"$f":"IF(OrigTable!D325=\"\",\"\",ScriptText!$B$1&CHAR(10)&ScriptText!$D$1)","v":"<tr>\n<td>"},{"$f":"IF(OrigTable!D325=\"\",\"\",TEXT(OrigTable!D325,\"00\"))","v":"BMF Notices"},{"$f":"IF(OrigTable!D325=\"\",\"\",ScriptText!$E$1&CHAR(10)&ScriptText!$C$1)","v":"</td>\n</tr>"},{"$f":"IF(OrigTable!E325=\"\",\"\",ScriptText!$B$1&CHAR(10)&ScriptText!$D$1)","v":""},{"$f":"IF(OrigTable!E325=\"\",\"\",TEXT(OrigTable!E325,\"00\"))","v":""},{"$f":"IF(OrigTable!E325=\"\",\"\",ScriptText!$E$1&CHAR(10)&ScriptText!$C$1)","v":""},{"$f":"IF(OrigTable!F325=\"\",\"\",ScriptText!$B$1&CHAR(10)&ScriptText!$D$1)","v":""},{"$f":"IF(OrigTable!F325=\"\",\"\",TEXT(OrigTable!F325,\"00\"))","v":""},{"$f":"IF(OrigTable!F325=\"\",\"\",ScriptText!$E$1&CHAR(10)&ScriptText!$C$1)","v":""},{"$f":"IF(OrigTable!G325=\"\",\"\",ScriptText!$B$1&CHAR(10)&ScriptText!$D$1)","v":""},{"$f":"IF(OrigTable!G325=\"\",\"\",TEXT(OrigTable!G325,\"00\"))","v":""},{"$f":"IF(OrigTable!G325=\"\",\"\",ScriptText!$E$1&CHAR(10)&ScriptText!$C$1)","v":""},325]
["<tr>\n<td>278</td>\n</tr>\n\n<tr>\n<td>Denial of Form 8832</td>\n</tr>\n<tr>\n<td>BMF Notices</td>\n</tr>",{"$f":"IF(OrigTable!A326=\"\",\"\",ScriptText!$B$1&CHAR(10)&ScriptText!$D$1)","v":"<tr>\n<td>"},{"$f":"IF(OrigTable!A326=\"\",\"\",TEXT(OrigTable!A326,\"00\"))","v":"278"},{"$f":"IF(OrigTable!A326=\"\",\"\",ScriptText!$E$1&CHAR(10)&ScriptText!$C$1)","v":"</td>\n</tr>"},{"$f":"IF(OrigTable!B326=\"\",\"\",ScriptText!$B$1&CHAR(10)&ScriptText!$D$1)","v":""},{"$f":"IF(OrigTable!B326=\"\",\"\",TEXT(OrigTable!B326,\"00\"))","v":""},{"$f":"IF(OrigTable!B326=\"\",\"\",ScriptText!$E$1&CHAR(10)&ScriptText!C321)","v":""},{"$f":"IF(OrigTable!C326=\"\",\"\",ScriptText!$B$1&CHAR(10)&ScriptText!$D$1)","v":"<tr>\n<td>"},{"$f":"IF(OrigTable!C326=\"\",\"\",IF(LEN(OrigTable!C326)>255,LEFT(OrigTable!C326,250)&\". . .\",OrigTable!C326))","v":"Denial of Form 8832"},{"$f":"IF(OrigTable!C326=\"\",\"\",ScriptText!$E$1&CHAR(10)&ScriptText!$C$1)","v":"</td>\n</tr>"},{"$f":"IF(OrigTable!D326=\"\",\"\",ScriptText!$B$1&CHAR(10)&ScriptText!$D$1)","v":"<tr>\n<td>"},{"$f":"IF(OrigTable!D326=\"\",\"\",TEXT(OrigTable!D326,\"00\"))","v":"BMF Notices"},{"$f":"IF(OrigTable!D326=\"\",\"\",ScriptText!$E$1&CHAR(10)&ScriptText!$C$1)","v":"</td>\n</tr>"},{"$f":"IF(OrigTable!E326=\"\",\"\",ScriptText!$B$1&CHAR(10)&ScriptText!$D$1)","v":""},{"$f":"IF(OrigTable!E326=\"\",\"\",TEXT(OrigTable!E326,\"00\"))","v":""},{"$f":"IF(OrigTable!E326=\"\",\"\",ScriptText!$E$1&CHAR(10)&ScriptText!$C$1)","v":""},{"$f":"IF(OrigTable!F326=\"\",\"\",ScriptText!$B$1&CHAR(10)&ScriptText!$D$1)","v":""},{"$f":"IF(OrigTable!F326=\"\",\"\",TEXT(OrigTable!F326,\"00\"))","v":""},{"$f":"IF(OrigTable!F326=\"\",\"\",ScriptText!$E$1&CHAR(10)&ScriptText!$C$1)","v":""},{"$f":"IF(OrigTable!G326=\"\",\"\",ScriptText!$B$1&CHAR(10)&ScriptText!$D$1)","v":""},{"$f":"IF(OrigTable!G326=\"\",\"\",TEXT(OrigTable!G326,\"00\"))","v":""},{"$f":"IF(OrigTable!G326=\"\",\"\",ScriptText!$E$1&CHAR(10)&ScriptText!$C$1)","v":""},{"$f":"IF(LEN(A326)>3,ROW(),0)","v":326}]
["<tr>\n<td>279</td>\n</tr>\n<tr>\n<td>No</td>\n270\n<tr>\n<td>Acceptance of Form 8869, Qualified Subchapter S Subsidiary Election</td>\n</tr>\n<tr>\n<td>BMF Notices</td>\n</tr>",{"$f":"IF(OrigTable!A327=\"\",\"\",ScriptText!$B$1&CHAR(10)&ScriptText!$D$1)","v":"<tr>\n<td>"},{"$f":"IF(OrigTable!A327=\"\",\"\",TEXT(OrigTable!A327,\"00\"))","v":"279"},{"$f":"IF(OrigTable!A327=\"\",\"\",ScriptText!$E$1&CHAR(10)&ScriptText!$C$1)","v":"</td>\n</tr>"},{"$f":"IF(OrigTable!B327=\"\",\"\",ScriptText!$B$1&CHAR(10)&ScriptText!$D$1)","v":"<tr>\n<td>"},{"$f":"IF(OrigTable!B327=\"\",\"\",TEXT(OrigTable!B327,\"00\"))","v":"No"},{"$f":"IF(OrigTable!B327=\"\",\"\",ScriptText!$E$1&CHAR(10)&ScriptText!C322)","v":"</td>\n270"},{"$f":"IF(OrigTable!C327=\"\",\"\",ScriptText!$B$1&CHAR(10)&ScriptText!$D$1)","v":"<tr>\n<td>"},{"$f":"IF(OrigTable!C327=\"\",\"\",IF(LEN(OrigTable!C327)>255,LEFT(OrigTable!C327,250)&\". . .\",OrigTable!C327))","v":"Acceptance of Form 8869, Qualified Subchapter S Subsidiary Election"},{"$f":"IF(OrigTable!C327=\"\",\"\",ScriptText!$E$1&CHAR(10)&ScriptText!$C$1)","v":"</td>\n</tr>"},{"$f":"IF(OrigTable!D327=\"\",\"\",ScriptText!$B$1&CHAR(10)&ScriptText!$D$1)","v":"<tr>\n<td>"},{"$f":"IF(OrigTable!D327=\"\",\"\",TEXT(OrigTable!D327,\"00\"))","v":"BMF Notices"},{"$f":"IF(OrigTable!D327=\"\",\"\",ScriptText!$E$1&CHAR(10)&ScriptText!$C$1)","v":"</td>\n</tr>"},{"$f":"IF(OrigTable!E327=\"\",\"\",ScriptText!$B$1&CHAR(10)&ScriptText!$D$1)","v":""},{"$f":"IF(OrigTable!E327=\"\",\"\",TEXT(OrigTable!E327,\"00\"))","v":""},{"$f":"IF(OrigTable!E327=\"\",\"\",ScriptText!$E$1&CHAR(10)&ScriptText!$C$1)","v":""},{"$f":"IF(OrigTable!F327=\"\",\"\",ScriptText!$B$1&CHAR(10)&ScriptText!$D$1)","v":""},{"$f":"IF(OrigTable!F327=\"\",\"\",TEXT(OrigTable!F327,\"00\"))","v":""},{"$f":"IF(OrigTable!F327=\"\",\"\",ScriptText!$E$1&CHAR(10)&ScriptText!$C$1)","v":""},{"$f":"IF(OrigTable!G327=\"\",\"\",ScriptText!$B$1&CHAR(10)&ScriptText!$D$1)","v":""},{"$f":"IF(OrigTable!G327=\"\",\"\",TEXT(OrigTable!G327,\"00\"))","v":""},{"$f":"IF(OrigTable!G327=\"\",\"\",ScriptText!$E$1&CHAR(10)&ScriptText!$C$1)","v":""},327]
["<tr>\n<td>279A</td>\n</tr>\n\n<tr>\n<td>Approval of Form 8869 filed by Parent S Corporation</td>\n</tr>\n<tr>\n<td>BMF Notices</td>\n</tr>",{"$f":"IF(OrigTable!A328=\"\",\"\",ScriptText!$B$1&CHAR(10)&ScriptText!$D$1)","v":"<tr>\n<td>"},{"$f":"IF(OrigTable!A328=\"\",\"\",TEXT(OrigTable!A328,\"00\"))","v":"279A"},{"$f":"IF(OrigTable!A328=\"\",\"\",ScriptText!$E$1&CHAR(10)&ScriptText!$C$1)","v":"</td>\n</tr>"},{"$f":"IF(OrigTable!B328=\"\",\"\",ScriptText!$B$1&CHAR(10)&ScriptText!$D$1)","v":""},{"$f":"IF(OrigTable!B328=\"\",\"\",TEXT(OrigTable!B328,\"00\"))","v":""},{"$f":"IF(OrigTable!B328=\"\",\"\",ScriptText!$E$1&CHAR(10)&ScriptText!C323)","v":""},{"$f":"IF(OrigTable!C328=\"\",\"\",ScriptText!$B$1&CHAR(10)&ScriptText!$D$1)","v":"<tr>\n<td>"},{"$f":"IF(OrigTable!C328=\"\",\"\",IF(LEN(OrigTable!C328)>255,LEFT(OrigTable!C328,250)&\". . .\",OrigTable!C328))","v":"Approval of Form 8869 filed by Parent S Corporation"},{"$f":"IF(OrigTable!C328=\"\",\"\",ScriptText!$E$1&CHAR(10)&ScriptText!$C$1)","v":"</td>\n</tr>"},{"$f":"IF(OrigTable!D328=\"\",\"\",ScriptText!$B$1&CHAR(10)&ScriptText!$D$1)","v":"<tr>\n<td>"},{"$f":"IF(OrigTable!D328=\"\",\"\",TEXT(OrigTable!D328,\"00\"))","v":"BMF Notices"},{"$f":"IF(OrigTable!D328=\"\",\"\",ScriptText!$E$1&CHAR(10)&ScriptText!$C$1)","v":"</td>\n</tr>"},{"$f":"IF(OrigTable!E328=\"\",\"\",ScriptText!$B$1&CHAR(10)&ScriptText!$D$1)","v":""},{"$f":"IF(OrigTable!E328=\"\",\"\",TEXT(OrigTable!E328,\"00\"))","v":""},{"$f":"IF(OrigTable!E328=\"\",\"\",ScriptText!$E$1&CHAR(10)&ScriptText!$C$1)","v":""},{"$f":"IF(OrigTable!F328=\"\",\"\",ScriptText!$B$1&CHAR(10)&ScriptText!$D$1)","v":""},{"$f":"IF(OrigTable!F328=\"\",\"\",TEXT(OrigTable!F328,\"00\"))","v":""},{"$f":"IF(OrigTable!F328=\"\",\"\",ScriptText!$E$1&CHAR(10)&ScriptText!$C$1)","v":""},{"$f":"IF(OrigTable!G328=\"\",\"\",ScriptText!$B$1&CHAR(10)&ScriptText!$D$1)","v":""},{"$f":"IF(OrigTable!G328=\"\",\"\",TEXT(OrigTable!G328,\"00\"))","v":""},{"$f":"IF(OrigTable!G328=\"\",\"\",ScriptText!$E$1&CHAR(10)&ScriptText!$C$1)","v":""},328]
[{"$f":"_xlfn.TEXTJOIN(\"\",TRUE,B329:D329)&CHAR(10)&_xlfn.TEXTJOIN(\"\",TRUE,E329:G329)&CHAR(10)&_xlfn.TEXTJOIN(\"\",TRUE,H329:J329)&CHAR(10)&_xlfn.TEXTJOIN(\"\",TRUE,K329:M329)&_xlfn.TEXTJOIN(\"\",TRUE,N329:P329)&_xlfn.TEXTJOIN(\"\",TRUE,Q329:S329)&_xlfn.TEXTJOIN(\"\",TRUE,T329:V329)","v":"<tr>\n<td>281</td>\n</tr>\n<tr>\n<td>No</td>\n276B\n<tr>\n<td>Revocation of Form 8869</td>\n</tr>\n<tr>\n<td>BMF Notices</td>\n</tr>"},{"$f":"IF(OrigTable!A329=\"\",\"\",ScriptText!$B$1&CHAR(10)&ScriptText!$D$1)","v":"<tr>\n<td>"},{"$f":"IF(OrigTable!A329=\"\",\"\",TEXT(OrigTable!A329,\"00\"))","v":"281"},{"$f":"IF(OrigTable!A329=\"\",\"\",ScriptText!$E$1&CHAR(10)&ScriptText!$C$1)","v":"</td>\n</tr>"},{"$f":"IF(OrigTable!B329=\"\",\"\",ScriptText!$B$1&CHAR(10)&ScriptText!$D$1)","v":"<tr>\n<td>"},{"$f":"IF(OrigTable!B329=\"\",\"\",TEXT(OrigTable!B329,\"00\"))","v":"No"},{"$f":"IF(OrigTable!B329=\"\",\"\",ScriptText!$E$1&CHAR(10)&ScriptText!C324)","v":"</td>\n276B"},{"$f":"IF(OrigTable!C329=\"\",\"\",ScriptText!$B$1&CHAR(10)&ScriptText!$D$1)","v":"<tr>\n<td>"},{"$f":"IF(OrigTable!C329=\"\",\"\",IF(LEN(OrigTable!C329)>255,LEFT(OrigTable!C329,250)&\". . .\",OrigTable!C329))","v":"Revocation of Form 8869"},{"$f":"IF(OrigTable!C329=\"\",\"\",ScriptText!$E$1&CHAR(10)&ScriptText!$C$1)","v":"</td>\n</tr>"},{"$f":"IF(OrigTable!D329=\"\",\"\",ScriptText!$B$1&CHAR(10)&ScriptText!$D$1)","v":"<tr>\n<td>"},{"$f":"IF(OrigTable!D329=\"\",\"\",TEXT(OrigTable!D329,\"00\"))","v":"BMF Notices"},{"$f":"IF(OrigTable!D329=\"\",\"\",ScriptText!$E$1&CHAR(10)&ScriptText!$C$1)","v":"</td>\n</tr>"},{"$f":"IF(OrigTable!E329=\"\",\"\",ScriptText!$B$1&CHAR(10)&ScriptText!$D$1)","v":""},{"$f":"IF(OrigTable!E329=\"\",\"\",TEXT(OrigTable!E329,\"00\"))","v":""},{"$f":"IF(OrigTable!E329=\"\",\"\",ScriptText!$E$1&CHAR(10)&ScriptText!$C$1)","v":""},{"$f":"IF(OrigTable!F329=\"\",\"\",ScriptText!$B$1&CHAR(10)&ScriptText!$D$1)","v":""},{"$f":"IF(OrigTable!F329=\"\",\"\",TEXT(OrigTable!F329,\"00\"))","v":""},{"$f":"IF(OrigTable!F329=\"\",\"\",ScriptText!$E$1&CHAR(10)&ScriptText!$C$1)","v":""},{"$f":"IF(OrigTable!G329=\"\",\"\",ScriptText!$B$1&CHAR(10)&ScriptText!$D$1)","v":""},{"$f":"IF(OrigTable!G329=\"\",\"\",TEXT(OrigTable!G329,\"00\"))","v":""},{"$f":"IF(OrigTable!G329=\"\",\"\",ScriptText!$E$1&CHAR(10)&ScriptText!$C$1)","v":""},329]
["<tr>\n<td>282</td>\n</tr>\n<tr>\n<td>No</td>\n277\n<tr>\n<td>Notification of Possible Filing Requirements, forms 1065/1065B</td>\n</tr>\n<tr>\n<td>BMF Notices</td>\n</tr>",{"$f":"IF(OrigTable!A330=\"\",\"\",ScriptText!$B$1&CHAR(10)&ScriptText!$D$1)","v":"<tr>\n<td>"},{"$f":"IF(OrigTable!A330=\"\",\"\",TEXT(OrigTable!A330,\"00\"))","v":"282"},{"$f":"IF(OrigTable!A330=\"\",\"\",ScriptText!$E$1&CHAR(10)&ScriptText!$C$1)","v":"</td>\n</tr>"},{"$f":"IF(OrigTable!B330=\"\",\"\",ScriptText!$B$1&CHAR(10)&ScriptText!$D$1)","v":"<tr>\n<td>"},{"$f":"IF(OrigTable!B330=\"\",\"\",TEXT(OrigTable!B330,\"00\"))","v":"No"},{"$f":"IF(OrigTable!B330=\"\",\"\",ScriptText!$E$1&CHAR(10)&ScriptText!C325)","v":"</td>\n277"},{"$f":"IF(OrigTable!C330=\"\",\"\",ScriptText!$B$1&CHAR(10)&ScriptText!$D$1)","v":"<tr>\n<td>"},{"$f":"IF(OrigTable!C330=\"\",\"\",IF(LEN(OrigTable!C330)>255,LEFT(OrigTable!C330,250)&\". . .\",OrigTable!C330))","v":"Notification of Possible Filing Requirements, forms 1065/1065B"},{"$f":"IF(OrigTable!C330=\"\",\"\",ScriptText!$E$1&CHAR(10)&ScriptText!$C$1)","v":"</td>\n</tr>"},{"$f":"IF(OrigTable!D330=\"\",\"\",ScriptText!$B$1&CHAR(10)&ScriptText!$D$1)","v":"<tr>\n<td>"},{"$f":"IF(OrigTable!D330=\"\",\"\",TEXT(OrigTable!D330,\"00\"))","v":"BMF Notices"},{"$f":"IF(OrigTable!D330=\"\",\"\",ScriptText!$E$1&CHAR(10)&ScriptText!$C$1)","v":"</td>\n</tr>"},{"$f":"IF(OrigTable!E330=\"\",\"\",ScriptText!$B$1&CHAR(10)&ScriptText!$D$1)","v":""},{"$f":"IF(OrigTable!E330=\"\",\"\",TEXT(OrigTable!E330,\"00\"))","v":""},{"$f":"IF(OrigTable!E330=\"\",\"\",ScriptText!$E$1&CHAR(10)&ScriptText!$C$1)","v":""},{"$f":"IF(OrigTable!F330=\"\",\"\",ScriptText!$B$1&CHAR(10)&ScriptText!$D$1)","v":""},{"$f":"IF(OrigTable!F330=\"\",\"\",TEXT(OrigTable!F330,\"00\"))","v":""},{"$f":"IF(OrigTable!F330=\"\",\"\",ScriptText!$E$1&CHAR(10)&ScriptText!$C$1)","v":""},{"$f":"IF(OrigTable!G330=\"\",\"\",ScriptText!$B$1&CHAR(10)&ScriptText!$D$1)","v":""},{"$f":"IF(OrigTable!G330=\"\",\"\",TEXT(OrigTable!G330,\"00\"))","v":""},{"$f":"IF(OrigTable!G330=\"\",\"\",ScriptText!$E$1&CHAR(10)&ScriptText!$C$1)","v":""},330]
["<tr>\n<td>283</td>\n</tr>\n\n<tr>\n<td>Penalty Charged on your Form 5500</td>\n</tr>\n<tr>\n<td>BMF Notices</td>\n</tr>",{"$f":"IF(OrigTable!A331=\"\",\"\",ScriptText!$B$1&CHAR(10)&ScriptText!$D$1)","v":"<tr>\n<td>"},{"$f":"IF(OrigTable!A331=\"\",\"\",TEXT(OrigTable!A331,\"00\"))","v":"283"},{"$f":"IF(OrigTable!A331=\"\",\"\",ScriptText!$E$1&CHAR(10)&ScriptText!$C$1)","v":"</td>\n</tr>"},{"$f":"IF(OrigTable!B331=\"\",\"\",ScriptText!$B$1&CHAR(10)&ScriptText!$D$1)","v":""},{"$f":"IF(OrigTable!B331=\"\",\"\",TEXT(OrigTable!B331,\"00\"))","v":""},{"$f":"IF(OrigTable!B331=\"\",\"\",ScriptText!$E$1&CHAR(10)&ScriptText!C326)","v":""},{"$f":"IF(OrigTable!C331=\"\",\"\",ScriptText!$B$1&CHAR(10)&ScriptText!$D$1)","v":"<tr>\n<td>"},{"$f":"IF(OrigTable!C331=\"\",\"\",IF(LEN(OrigTable!C331)>255,LEFT(OrigTable!C331,250)&\". . .\",OrigTable!C331))","v":"Penalty Charged on your Form 5500"},{"$f":"IF(OrigTable!C331=\"\",\"\",ScriptText!$E$1&CHAR(10)&ScriptText!$C$1)","v":"</td>\n</tr>"},{"$f":"IF(OrigTable!D331=\"\",\"\",ScriptText!$B$1&CHAR(10)&ScriptText!$D$1)","v":"<tr>\n<td>"},{"$f":"IF(OrigTable!D331=\"\",\"\",TEXT(OrigTable!D331,\"00\"))","v":"BMF Notices"},{"$f":"IF(OrigTable!D331=\"\",\"\",ScriptText!$E$1&CHAR(10)&ScriptText!$C$1)","v":"</td>\n</tr>"},{"$f":"IF(OrigTable!E331=\"\",\"\",ScriptText!$B$1&CHAR(10)&ScriptText!$D$1)","v":""},{"$f":"IF(OrigTable!E331=\"\",\"\",TEXT(OrigTable!E331,\"00\"))","v":""},{"$f":"IF(OrigTable!E331=\"\",\"\",ScriptText!$E$1&CHAR(10)&ScriptText!$C$1)","v":""},{"$f":"IF(OrigTable!F331=\"\",\"\",ScriptText!$B$1&CHAR(10)&ScriptText!$D$1)","v":""},{"$f":"IF(OrigTable!F331=\"\",\"\",TEXT(OrigTable!F331,\"00\"))","v":""},{"$f":"IF(OrigTable!F331=\"\",\"\",ScriptText!$E$1&CHAR(10)&ScriptText!$C$1)","v":""},{"$f":"IF(OrigTable!G331=\"\",\"\",ScriptText!$B$1&CHAR(10)&ScriptText!$D$1)","v":""},{"$f":"IF(OrigTable!G331=\"\",\"\",TEXT(OrigTable!G331,\"00\"))","v":""},{"$f":"IF(OrigTable!G331=\"\",\"\",ScriptText!$E$1&CHAR(10)&ScriptText!$C$1)","v":""},331]
["<tr>\n<td>283C</td>\n</tr>\n\n<tr>\n<td>Penalty Charged on your Form 8955-SSA, incomplete or late filing.</td>\n</tr>\n<tr>\n<td>BMF Notices</td>\n</tr>",{"$f":"IF(OrigTable!A332=\"\",\"\",ScriptText!$B$1&CHAR(10)&ScriptText!$D$1)","v":"<tr>\n<td>"},{"$f":"IF(OrigTable!A332=\"\",\"\",TEXT(OrigTable!A332,\"00\"))","v":"283C"},{"$f":"IF(OrigTable!A332=\"\",\"\",ScriptText!$E$1&CHAR(10)&ScriptText!$C$1)","v":"</td>\n</tr>"},{"$f":"IF(OrigTable!B332=\"\",\"\",ScriptText!$B$1&CHAR(10)&ScriptText!$D$1)","v":""},{"$f":"IF(OrigTable!B332=\"\",\"\",TEXT(OrigTable!B332,\"00\"))","v":""},{"$f":"IF(OrigTable!B332=\"\",\"\",ScriptText!$E$1&CHAR(10)&ScriptText!C327)","v":""},{"$f":"IF(OrigTable!C332=\"\",\"\",ScriptText!$B$1&CHAR(10)&ScriptText!$D$1)","v":"<tr>\n<td>"},{"$f":"IF(OrigTable!C332=\"\",\"\",IF(LEN(OrigTable!C332)>255,LEFT(OrigTable!C332,250)&\". . .\",OrigTable!C332))","v":"Penalty Charged on your Form 8955-SSA, incomplete or late filing."},{"$f":"IF(OrigTable!C332=\"\",\"\",ScriptText!$E$1&CHAR(10)&ScriptText!$C$1)","v":"</td>\n</tr>"},{"$f":"IF(OrigTable!D332=\"\",\"\",ScriptText!$B$1&CHAR(10)&ScriptText!$D$1)","v":"<tr>\n<td>"},{"$f":"IF(OrigTable!D332=\"\",\"\",TEXT(OrigTable!D332,\"00\"))","v":"BMF Notices"},{"$f":"IF(OrigTable!D332=\"\",\"\",ScriptText!$E$1&CHAR(10)&ScriptText!$C$1)","v":"</td>\n</tr>"},{"$f":"IF(OrigTable!E332=\"\",\"\",ScriptText!$B$1&CHAR(10)&ScriptText!$D$1)","v":""},{"$f":"IF(OrigTable!E332=\"\",\"\",TEXT(OrigTable!E332,\"00\"))","v":""},{"$f":"IF(OrigTable!E332=\"\",\"\",ScriptText!$E$1&CHAR(10)&ScriptText!$C$1)","v":""},{"$f":"IF(OrigTable!F332=\"\",\"\",ScriptText!$B$1&CHAR(10)&ScriptText!$D$1)","v":""},{"$f":"IF(OrigTable!F332=\"\",\"\",TEXT(OrigTable!F332,\"00\"))","v":""},{"$f":"IF(OrigTable!F332=\"\",\"\",ScriptText!$E$1&CHAR(10)&ScriptText!$C$1)","v":""},{"$f":"IF(OrigTable!G332=\"\",\"\",ScriptText!$B$1&CHAR(10)&ScriptText!$D$1)","v":""},{"$f":"IF(OrigTable!G332=\"\",\"\",TEXT(OrigTable!G332,\"00\"))","v":""},{"$f":"IF(OrigTable!G332=\"\",\"\",ScriptText!$E$1&CHAR(10)&ScriptText!$C$1)","v":""},332]
["<tr>\n<td>284</td>\n</tr>\n<tr>\n<td>No</td>\n279A\n<tr>\n<td>Acceptance of Form 1128</td>\n</tr>\n<tr>\n<td>BMF Notices</td>\n</tr>",{"$f":"IF(OrigTable!A333=\"\",\"\",ScriptText!$B$1&CHAR(10)&ScriptText!$D$1)","v":"<tr>\n<td>"},{"$f":"IF(OrigTable!A333=\"\",\"\",TEXT(OrigTable!A333,\"00\"))","v":"284"},{"$f":"IF(OrigTable!A333=\"\",\"\",ScriptText!$E$1&CHAR(10)&ScriptText!$C$1)","v":"</td>\n</tr>"},{"$f":"IF(OrigTable!B333=\"\",\"\",ScriptText!$B$1&CHAR(10)&ScriptText!$D$1)","v":"<tr>\n<td>"},{"$f":"IF(OrigTable!B333=\"\",\"\",TEXT(OrigTable!B333,\"00\"))","v":"No"},{"$f":"IF(OrigTable!B333=\"\",\"\",ScriptText!$E$1&CHAR(10)&ScriptText!C328)","v":"</td>\n279A"},{"$f":"IF(OrigTable!C333=\"\",\"\",ScriptText!$B$1&CHAR(10)&ScriptText!$D$1)","v":"<tr>\n<td>"},{"$f":"IF(OrigTable!C333=\"\",\"\",IF(LEN(OrigTable!C333)>255,LEFT(OrigTable!C333,250)&\". . .\",OrigTable!C333))","v":"Acceptance of Form 1128"},{"$f":"IF(OrigTable!C333=\"\",\"\",ScriptText!$E$1&CHAR(10)&ScriptText!$C$1)","v":"</td>\n</tr>"},{"$f":"IF(OrigTable!D333=\"\",\"\",ScriptText!$B$1&CHAR(10)&ScriptText!$D$1)","v":"<tr>\n<td>"},{"$f":"IF(OrigTable!D333=\"\",\"\",TEXT(OrigTable!D333,\"00\"))","v":"BMF Notices"},{"$f":"IF(OrigTable!D333=\"\",\"\",ScriptText!$E$1&CHAR(10)&ScriptText!$C$1)","v":"</td>\n</tr>"},{"$f":"IF(OrigTable!E333=\"\",\"\",ScriptText!$B$1&CHAR(10)&ScriptText!$D$1)","v":""},{"$f":"IF(OrigTable!E333=\"\",\"\",TEXT(OrigTable!E333,\"00\"))","v":""},{"$f":"IF(OrigTable!E333=\"\",\"\",ScriptText!$E$1&CHAR(10)&ScriptText!$C$1)","v":""},{"$f":"IF(OrigTable!F333=\"\",\"\",ScriptText!$B$1&CHAR(10)&ScriptText!$D$1)","v":""},{"$f":"IF(OrigTable!F333=\"\",\"\",TEXT(OrigTable!F333,\"00\"))","v":""},{"$f":"IF(OrigTable!F333=\"\",\"\",ScriptText!$E$1&CHAR(10)&ScriptText!$C$1)","v":""},{"$f":"IF(OrigTable!G333=\"\",\"\",ScriptText!$B$1&CHAR(10)&ScriptText!$D$1)","v":""},{"$f":"IF(OrigTable!G333=\"\",\"\",TEXT(OrigTable!G333,\"00\"))","v":""},{"$f":"IF(OrigTable!G333=\"\",\"\",ScriptText!$E$1&CHAR(10)&ScriptText!$C$1)","v":""},333]
["<tr>\n<td>285</td>\n</tr>\n<tr>\n<td>No</td>\n281\n<tr>\n<td>Form 1128 denied</td>\n</tr>\n<tr>\n<td>BMF Notices</td>\n</tr>",{"$f":"IF(OrigTable!A334=\"\",\"\",ScriptText!$B$1&CHAR(10)&ScriptText!$D$1)","v":"<tr>\n<td>"},{"$f":"IF(OrigTable!A334=\"\",\"\",TEXT(OrigTable!A334,\"00\"))","v":"285"},{"$f":"IF(OrigTable!A334=\"\",\"\",ScriptText!$E$1&CHAR(10)&ScriptText!$C$1)","v":"</td>\n</tr>"},{"$f":"IF(OrigTable!B334=\"\",\"\",ScriptText!$B$1&CHAR(10)&ScriptText!$D$1)","v":"<tr>\n<td>"},{"$f":"IF(OrigTable!B334=\"\",\"\",TEXT(OrigTable!B334,\"00\"))","v":"No"},{"$f":"IF(OrigTable!B334=\"\",\"\",ScriptText!$E$1&CHAR(10)&ScriptText!C329)","v":"</td>\n281"},{"$f":"IF(OrigTable!C334=\"\",\"\",ScriptText!$B$1&CHAR(10)&ScriptText!$D$1)","v":"<tr>\n<td>"},{"$f":"IF(OrigTable!C334=\"\",\"\",IF(LEN(OrigTable!C334)>255,LEFT(OrigTable!C334,250)&\". . .\",OrigTable!C334))","v":"Form 1128 denied"},{"$f":"IF(OrigTable!C334=\"\",\"\",ScriptText!$E$1&CHAR(10)&ScriptText!$C$1)","v":"</td>\n</tr>"},{"$f":"IF(OrigTable!D334=\"\",\"\",ScriptText!$B$1&CHAR(10)&ScriptText!$D$1)","v":"<tr>\n<td>"},{"$f":"IF(OrigTable!D334=\"\",\"\",TEXT(OrigTable!D334,\"00\"))","v":"BMF Notices"},{"$f":"IF(OrigTable!D334=\"\",\"\",ScriptText!$E$1&CHAR(10)&ScriptText!$C$1)","v":"</td>\n</tr>"},{"$f":"IF(OrigTable!E334=\"\",\"\",ScriptText!$B$1&CHAR(10)&ScriptText!$D$1)","v":""},{"$f":"IF(OrigTable!E334=\"\",\"\",TEXT(OrigTable!E334,\"00\"))","v":""},{"$f":"IF(OrigTable!E334=\"\",\"\",ScriptText!$E$1&CHAR(10)&ScriptText!$C$1)","v":""},{"$f":"IF(OrigTable!F334=\"\",\"\",ScriptText!$B$1&CHAR(10)&ScriptText!$D$1)","v":""},{"$f":"IF(OrigTable!F334=\"\",\"\",TEXT(OrigTable!F334,\"00\"))","v":""},{"$f":"IF(OrigTable!F334=\"\",\"\",ScriptText!$E$1&CHAR(10)&ScriptText!$C$1)","v":""},{"$f":"IF(OrigTable!G334=\"\",\"\",ScriptText!$B$1&CHAR(10)&ScriptText!$D$1)","v":""},{"$f":"IF(OrigTable!G334=\"\",\"\",TEXT(OrigTable!G334,\"00\"))","v":""},{"$f":"IF(OrigTable!G334=\"\",\"\",ScriptText!$E$1&CHAR(10)&ScriptText!$C$1)","v":""},334]
["<tr>\n<td>286</td>\n</tr>\n<tr>\n<td>No</td>\n282\n<tr>\n<td>Accepts Account Period Change via F8716</td>\n</tr>\n<tr>\n<td>BMF Notices</td>\n</tr>",{"$f":"IF(OrigTable!A335=\"\",\"\",ScriptText!$B$1&CHAR(10)&ScriptText!$D$1)","v":"<tr>\n<td>"},{"$f":"IF(OrigTable!A335=\"\",\"\",TEXT(OrigTable!A335,\"00\"))","v":"286"},{"$f":"IF(OrigTable!A335=\"\",\"\",ScriptText!$E$1&CHAR(10)&ScriptText!$C$1)","v":"</td>\n</tr>"},{"$f":"IF(OrigTable!B335=\"\",\"\",ScriptText!$B$1&CHAR(10)&ScriptText!$D$1)","v":"<tr>\n<td>"},{"$f":"IF(OrigTable!B335=\"\",\"\",TEXT(OrigTable!B335,\"00\"))","v":"No"},{"$f":"IF(OrigTable!B335=\"\",\"\",ScriptText!$E$1&CHAR(10)&ScriptText!C330)","v":"</td>\n282"},{"$f":"IF(OrigTable!C335=\"\",\"\",ScriptText!$B$1&CHAR(10)&ScriptText!$D$1)","v":"<tr>\n<td>"},{"$f":"IF(OrigTable!C335=\"\",\"\",IF(LEN(OrigTable!C335)>255,LEFT(OrigTable!C335,250)&\". . .\",OrigTable!C335))","v":"Accepts Account Period Change via F8716"},{"$f":"IF(OrigTable!C335=\"\",\"\",ScriptText!$E$1&CHAR(10)&ScriptText!$C$1)","v":"</td>\n</tr>"},{"$f":"IF(OrigTable!D335=\"\",\"\",ScriptText!$B$1&CHAR(10)&ScriptText!$D$1)","v":"<tr>\n<td>"},{"$f":"IF(OrigTable!D335=\"\",\"\",TEXT(OrigTable!D335,\"00\"))","v":"BMF Notices"},{"$f":"IF(OrigTable!D335=\"\",\"\",ScriptText!$E$1&CHAR(10)&ScriptText!$C$1)","v":"</td>\n</tr>"},{"$f":"IF(OrigTable!E335=\"\",\"\",ScriptText!$B$1&CHAR(10)&ScriptText!$D$1)","v":""},{"$f":"IF(OrigTable!E335=\"\",\"\",TEXT(OrigTable!E335,\"00\"))","v":""},{"$f":"IF(OrigTable!E335=\"\",\"\",ScriptText!$E$1&CHAR(10)&ScriptText!$C$1)","v":""},{"$f":"IF(OrigTable!F335=\"\",\"\",ScriptText!$B$1&CHAR(10)&ScriptText!$D$1)","v":""},{"$f":"IF(OrigTable!F335=\"\",\"\",TEXT(OrigTable!F335,\"00\"))","v":""},{"$f":"IF(OrigTable!F335=\"\",\"\",ScriptText!$E$1&CHAR(10)&ScriptText!$C$1)","v":""},{"$f":"IF(OrigTable!G335=\"\",\"\",ScriptText!$B$1&CHAR(10)&ScriptText!$D$1)","v":""},{"$f":"IF(OrigTable!G335=\"\",\"\",TEXT(OrigTable!G335,\"00\"))","v":""},{"$f":"IF(OrigTable!G335=\"\",\"\",ScriptText!$E$1&CHAR(10)&ScriptText!$C$1)","v":""},335]
["<tr>\n<td>286D</td>\n</tr>\n\n<tr>\n<td>Sec 444 election terminated</td>\n</tr>\n<tr>\n<td>BMF Notices</td>\n</tr>",{"$f":"IF(OrigTable!A336=\"\",\"\",ScriptText!$B$1&CHAR(10)&ScriptText!$D$1)","v":"<tr>\n<td>"},{"$f":"IF(OrigTable!A336=\"\",\"\",TEXT(OrigTable!A336,\"00\"))","v":"286D"},{"$f":"IF(OrigTable!A336=\"\",\"\",ScriptText!$E$1&CHAR(10)&ScriptText!$C$1)","v":"</td>\n</tr>"},{"$f":"IF(OrigTable!B336=\"\",\"\",ScriptText!$B$1&CHAR(10)&ScriptText!$D$1)","v":""},{"$f":"IF(OrigTable!B336=\"\",\"\",TEXT(OrigTable!B336,\"00\"))","v":""},{"$f":"IF(OrigTable!B336=\"\",\"\",ScriptText!$E$1&CHAR(10)&ScriptText!C331)","v":""},{"$f":"IF(OrigTable!C336=\"\",\"\",ScriptText!$B$1&CHAR(10)&ScriptText!$D$1)","v":"<tr>\n<td>"},{"$f":"IF(OrigTable!C336=\"\",\"\",IF(LEN(OrigTable!C336)>255,LEFT(OrigTable!C336,250)&\". . .\",OrigTable!C336))","v":"Sec 444 election terminated"},{"$f":"IF(OrigTable!C336=\"\",\"\",ScriptText!$E$1&CHAR(10)&ScriptText!$C$1)","v":"</td>\n</tr>"},{"$f":"IF(OrigTable!D336=\"\",\"\",ScriptText!$B$1&CHAR(10)&ScriptText!$D$1)","v":"<tr>\n<td>"},{"$f":"IF(OrigTable!D336=\"\",\"\",TEXT(OrigTable!D336,\"00\"))","v":"BMF Notices"},{"$f":"IF(OrigTable!D336=\"\",\"\",ScriptText!$E$1&CHAR(10)&ScriptText!$C$1)","v":"</td>\n</tr>"},{"$f":"IF(OrigTable!E336=\"\",\"\",ScriptText!$B$1&CHAR(10)&ScriptText!$D$1)","v":""},{"$f":"IF(OrigTable!E336=\"\",\"\",TEXT(OrigTable!E336,\"00\"))","v":""},{"$f":"IF(OrigTable!E336=\"\",\"\",ScriptText!$E$1&CHAR(10)&ScriptText!$C$1)","v":""},{"$f":"IF(OrigTable!F336=\"\",\"\",ScriptText!$B$1&CHAR(10)&ScriptText!$D$1)","v":""},{"$f":"IF(OrigTable!F336=\"\",\"\",TEXT(OrigTable!F336,\"00\"))","v":""},{"$f":"IF(OrigTable!F336=\"\",\"\",ScriptText!$E$1&CHAR(10)&ScriptText!$C$1)","v":""},{"$f":"IF(OrigTable!G336=\"\",\"\",ScriptText!$B$1&CHAR(10)&ScriptText!$D$1)","v":""},{"$f":"IF(OrigTable!G336=\"\",\"\",TEXT(OrigTable!G336,\"00\"))","v":""},{"$f":"IF(OrigTable!G336=\"\",\"\",ScriptText!$E$1&CHAR(10)&ScriptText!$C$1)","v":""},336]
["<tr>\n<td>287</td>\n</tr>\n<tr>\n<td>No</td>\n283C\n<tr>\n<td>Denies Account Period Change via F8716</td>\n</tr>\n<tr>\n<td>BMF Notices</td>\n</tr>",{"$f":"IF(OrigTable!A337=\"\",\"\",ScriptText!$B$1&CHAR(10)&ScriptText!$D$1)","v":"<tr>\n<td>"},{"$f":"IF(OrigTable!A337=\"\",\"\",TEXT(OrigTable!A337,\"00\"))","v":"287"},{"$f":"IF(OrigTable!A337=\"\",\"\",ScriptText!$E$1&CHAR(10)&ScriptText!$C$1)","v":"</td>\n</tr>"},{"$f":"IF(OrigTable!B337=\"\",\"\",ScriptText!$B$1&CHAR(10)&ScriptText!$D$1)","v":"<tr>\n<td>"},{"$f":"IF(OrigTable!B337=\"\",\"\",TEXT(OrigTable!B337,\"00\"))","v":"No"},{"$f":"IF(OrigTable!B337=\"\",\"\",ScriptText!$E$1&CHAR(10)&ScriptText!C332)","v":"</td>\n283C"},{"$f":"IF(OrigTable!C337=\"\",\"\",ScriptText!$B$1&CHAR(10)&ScriptText!$D$1)","v":"<tr>\n<td>"},{"$f":"IF(OrigTable!C337=\"\",\"\",IF(LEN(OrigTable!C337)>255,LEFT(OrigTable!C337,250)&\". . .\",OrigTable!C337))","v":"Denies Account Period Change via F8716"},{"$f":"IF(OrigTable!C337=\"\",\"\",ScriptText!$E$1&CHAR(10)&ScriptText!$C$1)","v":"</td>\n</tr>"},{"$f":"IF(OrigTable!D337=\"\",\"\",ScriptText!$B$1&CHAR(10)&ScriptText!$D$1)","v":"<tr>\n<td>"},{"$f":"IF(OrigTable!D337=\"\",\"\",TEXT(OrigTable!D337,\"00\"))","v":"BMF Notices"},{"$f":"IF(OrigTable!D337=\"\",\"\",ScriptText!$E$1&CHAR(10)&ScriptText!$C$1)","v":"</td>\n</tr>"},{"$f":"IF(OrigTable!E337=\"\",\"\",ScriptText!$B$1&CHAR(10)&ScriptText!$D$1)","v":""},{"$f":"IF(OrigTable!E337=\"\",\"\",TEXT(OrigTable!E337,\"00\"))","v":""},{"$f":"IF(OrigTable!E337=\"\",\"\",ScriptText!$E$1&CHAR(10)&ScriptText!$C$1)","v":""},{"$f":"IF(OrigTable!F337=\"\",\"\",ScriptText!$B$1&CHAR(10)&ScriptText!$D$1)","v":""},{"$f":"IF(OrigTable!F337=\"\",\"\",TEXT(OrigTable!F337,\"00\"))","v":""},{"$f":"IF(OrigTable!F337=\"\",\"\",ScriptText!$E$1&CHAR(10)&ScriptText!$C$1)","v":""},{"$f":"IF(OrigTable!G337=\"\",\"\",ScriptText!$B$1&CHAR(10)&ScriptText!$D$1)","v":""},{"$f":"IF(OrigTable!G337=\"\",\"\",TEXT(OrigTable!G337,\"00\"))","v":""},{"$f":"IF(OrigTable!G337=\"\",\"\",ScriptText!$E$1&CHAR(10)&ScriptText!$C$1)","v":""},337]
["<tr>\n<td>287A</td>\n</tr>\n\n<tr>\n<td>Form 8716 Denied – Received late</td>\n</tr>\n<tr>\n<td>BMF Notices</td>\n</tr>",{"$f":"IF(OrigTable!A338=\"\",\"\",ScriptText!$B$1&CHAR(10)&ScriptText!$D$1)","v":"<tr>\n<td>"},{"$f":"IF(OrigTable!A338=\"\",\"\",TEXT(OrigTable!A338,\"00\"))","v":"287A"},{"$f":"IF(OrigTable!A338=\"\",\"\",ScriptText!$E$1&CHAR(10)&ScriptText!$C$1)","v":"</td>\n</tr>"},{"$f":"IF(OrigTable!B338=\"\",\"\",ScriptText!$B$1&CHAR(10)&ScriptText!$D$1)","v":""},{"$f":"IF(OrigTable!B338=\"\",\"\",TEXT(OrigTable!B338,\"00\"))","v":""},{"$f":"IF(OrigTable!B338=\"\",\"\",ScriptText!$E$1&CHAR(10)&ScriptText!C333)","v":""},{"$f":"IF(OrigTable!C338=\"\",\"\",ScriptText!$B$1&CHAR(10)&ScriptText!$D$1)","v":"<tr>\n<td>"},{"$f":"IF(OrigTable!C338=\"\",\"\",IF(LEN(OrigTable!C338)>255,LEFT(OrigTable!C338,250)&\". . .\",OrigTable!C338))","v":"Form 8716 Denied – Received late"},{"$f":"IF(OrigTable!C338=\"\",\"\",ScriptText!$E$1&CHAR(10)&ScriptText!$C$1)","v":"</td>\n</tr>"},{"$f":"IF(OrigTable!D338=\"\",\"\",ScriptText!$B$1&CHAR(10)&ScriptText!$D$1)","v":"<tr>\n<td>"},{"$f":"IF(OrigTable!D338=\"\",\"\",TEXT(OrigTable!D338,\"00\"))","v":"BMF Notices"},{"$f":"IF(OrigTable!D338=\"\",\"\",ScriptText!$E$1&CHAR(10)&ScriptText!$C$1)","v":"</td>\n</tr>"},{"$f":"IF(OrigTable!E338=\"\",\"\",ScriptText!$B$1&CHAR(10)&ScriptText!$D$1)","v":""},{"$f":"IF(OrigTable!E338=\"\",\"\",TEXT(OrigTable!E338,\"00\"))","v":""},{"$f":"IF(OrigTable!E338=\"\",\"\",ScriptText!$E$1&CHAR(10)&ScriptText!$C$1)","v":""},{"$f":"IF(OrigTable!F338=\"\",\"\",ScriptText!$B$1&CHAR(10)&ScriptText!$D$1)","v":""},{"$f":"IF(OrigTable!F338=\"\",\"\",TEXT(OrigTable!F338,\"00\"))","v":""},{"$f":"IF(OrigTable!F338=\"\",\"\",ScriptText!$E$1&CHAR(10)&ScriptText!$C$1)","v":""},{"$f":"IF(OrigTable!G338=\"\",\"\",ScriptText!$B$1&CHAR(10)&ScriptText!$D$1)","v":""},{"$f":"IF(OrigTable!G338=\"\",\"\",TEXT(OrigTable!G338,\"00\"))","v":""},{"$f":"IF(OrigTable!G338=\"\",\"\",ScriptText!$E$1&CHAR(10)&ScriptText!$C$1)","v":""},338]
["<tr>\n<td>287B</td>\n</tr>\n<tr>\n<td>o</td>\n285\n<tr>\n<td>Form 8716 Denied – Deferral Period Too Long</td>\n</tr>\n<tr>\n<td>BMF Notices</td>\n</tr>",{"$f":"IF(OrigTable!A339=\"\",\"\",ScriptText!$B$1&CHAR(10)&ScriptText!$D$1)","v":"<tr>\n<td>"},{"$f":"IF(OrigTable!A339=\"\",\"\",TEXT(OrigTable!A339,\"00\"))","v":"287B"},{"$f":"IF(OrigTable!A339=\"\",\"\",ScriptText!$E$1&CHAR(10)&ScriptText!$C$1)","v":"</td>\n</tr>"},{"$f":"IF(OrigTable!B339=\"\",\"\",ScriptText!$B$1&CHAR(10)&ScriptText!$D$1)","v":"<tr>\n<td>"},{"$f":"IF(OrigTable!B339=\"\",\"\",TEXT(OrigTable!B339,\"00\"))","v":"o"},{"$f":"IF(OrigTable!B339=\"\",\"\",ScriptText!$E$1&CHAR(10)&ScriptText!C334)","v":"</td>\n285"},{"$f":"IF(OrigTable!C339=\"\",\"\",ScriptText!$B$1&CHAR(10)&ScriptText!$D$1)","v":"<tr>\n<td>"},{"$f":"IF(OrigTable!C339=\"\",\"\",IF(LEN(OrigTable!C339)>255,LEFT(OrigTable!C339,250)&\". . .\",OrigTable!C339))","v":"Form 8716 Denied – Deferral Period Too Long"},{"$f":"IF(OrigTable!C339=\"\",\"\",ScriptText!$E$1&CHAR(10)&ScriptText!$C$1)","v":"</td>\n</tr>"},{"$f":"IF(OrigTable!D339=\"\",\"\",ScriptText!$B$1&CHAR(10)&ScriptText!$D$1)","v":"<tr>\n<td>"},{"$f":"IF(OrigTable!D339=\"\",\"\",TEXT(OrigTable!D339,\"00\"))","v":"BMF Notices"},{"$f":"IF(OrigTable!D339=\"\",\"\",ScriptText!$E$1&CHAR(10)&ScriptText!$C$1)","v":"</td>\n</tr>"},{"$f":"IF(OrigTable!E339=\"\",\"\",ScriptText!$B$1&CHAR(10)&ScriptText!$D$1)","v":""},{"$f":"IF(OrigTable!E339=\"\",\"\",TEXT(OrigTable!E339,\"00\"))","v":""},{"$f":"IF(OrigTable!E339=\"\",\"\",ScriptText!$E$1&CHAR(10)&ScriptText!$C$1)","v":""},{"$f":"IF(OrigTable!F339=\"\",\"\",ScriptText!$B$1&CHAR(10)&ScriptText!$D$1)","v":""},{"$f":"IF(OrigTable!F339=\"\",\"\",TEXT(OrigTable!F339,\"00\"))","v":""},{"$f":"IF(OrigTable!F339=\"\",\"\",ScriptText!$E$1&CHAR(10)&ScriptText!$C$1)","v":""},{"$f":"IF(OrigTable!G339=\"\",\"\",ScriptText!$B$1&CHAR(10)&ScriptText!$D$1)","v":""},{"$f":"IF(OrigTable!G339=\"\",\"\",TEXT(OrigTable!G339,\"00\"))","v":""},{"$f":"IF(OrigTable!G339=\"\",\"\",ScriptText!$E$1&CHAR(10)&ScriptText!$C$1)","v":""},339]
["<tr>\n<td>287C</td>\n</tr>\n\n<tr>\n<td>Form 8716 Denied – Previous Election Terminated</td>\n</tr>\n<tr>\n<td>BMF Notices</td>\n</tr>",{"$f":"IF(OrigTable!A340=\"\",\"\",ScriptText!$B$1&CHAR(10)&ScriptText!$D$1)","v":"<tr>\n<td>"},{"$f":"IF(OrigTable!A340=\"\",\"\",TEXT(OrigTable!A340,\"00\"))","v":"287C"},{"$f":"IF(OrigTable!A340=\"\",\"\",ScriptText!$E$1&CHAR(10)&ScriptText!$C$1)","v":"</td>\n</tr>"},{"$f":"IF(OrigTable!B340=\"\",\"\",ScriptText!$B$1&CHAR(10)&ScriptText!$D$1)","v":""},{"$f":"IF(OrigTable!B340=\"\",\"\",TEXT(OrigTable!B340,\"00\"))","v":""},{"$f":"IF(OrigTable!B340=\"\",\"\",ScriptText!$E$1&CHAR(10)&ScriptText!C335)","v":""},{"$f":"IF(OrigTable!C340=\"\",\"\",ScriptText!$B$1&CHAR(10)&ScriptText!$D$1)","v":"<tr>\n<td>"},{"$f":"IF(OrigTable!C340=\"\",\"\",IF(LEN(OrigTable!C340)>255,LEFT(OrigTable!C340,250)&\". . .\",OrigTable!C340))","v":"Form 8716 Denied – Previous Election Terminated"},{"$f":"IF(OrigTable!C340=\"\",\"\",ScriptText!$E$1&CHAR(10)&ScriptText!$C$1)","v":"</td>\n</tr>"},{"$f":"IF(OrigTable!D340=\"\",\"\",ScriptText!$B$1&CHAR(10)&ScriptText!$D$1)","v":"<tr>\n<td>"},{"$f":"IF(OrigTable!D340=\"\",\"\",TEXT(OrigTable!D340,\"00\"))","v":"BMF Notices"},{"$f":"IF(OrigTable!D340=\"\",\"\",ScriptText!$E$1&CHAR(10)&ScriptText!$C$1)","v":"</td>\n</tr>"},{"$f":"IF(OrigTable!E340=\"\",\"\",ScriptText!$B$1&CHAR(10)&ScriptText!$D$1)","v":""},{"$f":"IF(OrigTable!E340=\"\",\"\",TEXT(OrigTable!E340,\"00\"))","v":""},{"$f":"IF(OrigTable!E340=\"\",\"\",ScriptText!$E$1&CHAR(10)&ScriptText!$C$1)","v":""},{"$f":"IF(OrigTable!F340=\"\",\"\",ScriptText!$B$1&CHAR(10)&ScriptText!$D$1)","v":""},{"$f":"IF(OrigTable!F340=\"\",\"\",TEXT(OrigTable!F340,\"00\"))","v":""},{"$f":"IF(OrigTable!F340=\"\",\"\",ScriptText!$E$1&CHAR(10)&ScriptText!$C$1)","v":""},{"$f":"IF(OrigTable!G340=\"\",\"\",ScriptText!$B$1&CHAR(10)&ScriptText!$D$1)","v":""},{"$f":"IF(OrigTable!G340=\"\",\"\",TEXT(OrigTable!G340,\"00\"))","v":""},{"$f":"IF(OrigTable!G340=\"\",\"\",ScriptText!$E$1&CHAR(10)&ScriptText!$C$1)","v":""},340]
["<tr>\n<td>288</td>\n</tr>\n<tr>\n<td>No</td>\n286D\n<tr>\n<td>Accepts Small Business Becoming QSST via F2553</td>\n</tr>\n<tr>\n<td>BMF Notices</td>\n</tr>",{"$f":"IF(OrigTable!A341=\"\",\"\",ScriptText!$B$1&CHAR(10)&ScriptText!$D$1)","v":"<tr>\n<td>"},{"$f":"IF(OrigTable!A341=\"\",\"\",TEXT(OrigTable!A341,\"00\"))","v":"288"},{"$f":"IF(OrigTable!A341=\"\",\"\",ScriptText!$E$1&CHAR(10)&ScriptText!$C$1)","v":"</td>\n</tr>"},{"$f":"IF(OrigTable!B341=\"\",\"\",ScriptText!$B$1&CHAR(10)&ScriptText!$D$1)","v":"<tr>\n<td>"},{"$f":"IF(OrigTable!B341=\"\",\"\",TEXT(OrigTable!B341,\"00\"))","v":"No"},{"$f":"IF(OrigTable!B341=\"\",\"\",ScriptText!$E$1&CHAR(10)&ScriptText!C336)","v":"</td>\n286D"},{"$f":"IF(OrigTable!C341=\"\",\"\",ScriptText!$B$1&CHAR(10)&ScriptText!$D$1)","v":"<tr>\n<td>"},{"$f":"IF(OrigTable!C341=\"\",\"\",IF(LEN(OrigTable!C341)>255,LEFT(OrigTable!C341,250)&\". . .\",OrigTable!C341))","v":"Accepts Small Business Becoming QSST via F2553"},{"$f":"IF(OrigTable!C341=\"\",\"\",ScriptText!$E$1&CHAR(10)&ScriptText!$C$1)","v":"</td>\n</tr>"},{"$f":"IF(OrigTable!D341=\"\",\"\",ScriptText!$B$1&CHAR(10)&ScriptText!$D$1)","v":"<tr>\n<td>"},{"$f":"IF(OrigTable!D341=\"\",\"\",TEXT(OrigTable!D341,\"00\"))","v":"BMF Notices"},{"$f":"IF(OrigTable!D341=\"\",\"\",ScriptText!$E$1&CHAR(10)&ScriptText!$C$1)","v":"</td>\n</tr>"},{"$f":"IF(OrigTable!E341=\"\",\"\",ScriptText!$B$1&CHAR(10)&ScriptText!$D$1)","v":""},{"$f":"IF(OrigTable!E341=\"\",\"\",TEXT(OrigTable!E341,\"00\"))","v":""},{"$f":"IF(OrigTable!E341=\"\",\"\",ScriptText!$E$1&CHAR(10)&ScriptText!$C$1)","v":""},{"$f":"IF(OrigTable!F341=\"\",\"\",ScriptText!$B$1&CHAR(10)&ScriptText!$D$1)","v":""},{"$f":"IF(OrigTable!F341=\"\",\"\",TEXT(OrigTable!F341,\"00\"))","v":""},{"$f":"IF(OrigTable!F341=\"\",\"\",ScriptText!$E$1&CHAR(10)&ScriptText!$C$1)","v":""},{"$f":"IF(OrigTable!G341=\"\",\"\",ScriptText!$B$1&CHAR(10)&ScriptText!$D$1)","v":""},{"$f":"IF(OrigTable!G341=\"\",\"\",TEXT(OrigTable!G341,\"00\"))","v":""},{"$f":"IF(OrigTable!G341=\"\",\"\",ScriptText!$E$1&CHAR(10)&ScriptText!$C$1)","v":""},341]
["<tr>\n<td>289</td>\n</tr>\n\n<tr>\n<td>Annual Installment Agreement Statement BMF</td>\n</tr>\n<tr>\n<td>BMF Notices</td>\n</tr>",{"$f":"IF(OrigTable!A342=\"\",\"\",ScriptText!$B$1&CHAR(10)&ScriptText!$D$1)","v":"<tr>\n<td>"},{"$f":"IF(OrigTable!A342=\"\",\"\",TEXT(OrigTable!A342,\"00\"))","v":"289"},{"$f":"IF(OrigTable!A342=\"\",\"\",ScriptText!$E$1&CHAR(10)&ScriptText!$C$1)","v":"</td>\n</tr>"},{"$f":"IF(OrigTable!B342=\"\",\"\",ScriptText!$B$1&CHAR(10)&ScriptText!$D$1)","v":""},{"$f":"IF(OrigTable!B342=\"\",\"\",TEXT(OrigTable!B342,\"00\"))","v":""},{"$f":"IF(OrigTable!B342=\"\",\"\",ScriptText!$E$1&CHAR(10)&ScriptText!C337)","v":""},{"$f":"IF(OrigTable!C342=\"\",\"\",ScriptText!$B$1&CHAR(10)&ScriptText!$D$1)","v":"<tr>\n<td>"},{"$f":"IF(OrigTable!C342=\"\",\"\",IF(LEN(OrigTable!C342)>255,LEFT(OrigTable!C342,250)&\". . .\",OrigTable!C342))","v":"Annual Installment Agreement Statement BMF"},{"$f":"IF(OrigTable!C342=\"\",\"\",ScriptText!$E$1&CHAR(10)&ScriptText!$C$1)","v":"</td>\n</tr>"},{"$f":"IF(OrigTable!D342=\"\",\"\",ScriptText!$B$1&CHAR(10)&ScriptText!$D$1)","v":"<tr>\n<td>"},{"$f":"IF(OrigTable!D342=\"\",\"\",TEXT(OrigTable!D342,\"00\"))","v":"BMF Notices"},{"$f":"IF(OrigTable!D342=\"\",\"\",ScriptText!$E$1&CHAR(10)&ScriptText!$C$1)","v":"</td>\n</tr>"},{"$f":"IF(OrigTable!E342=\"\",\"\",ScriptText!$B$1&CHAR(10)&ScriptText!$D$1)","v":""},{"$f":"IF(OrigTable!E342=\"\",\"\",TEXT(OrigTable!E342,\"00\"))","v":""},{"$f":"IF(OrigTable!E342=\"\",\"\",ScriptText!$E$1&CHAR(10)&ScriptText!$C$1)","v":""},{"$f":"IF(OrigTable!F342=\"\",\"\",ScriptText!$B$1&CHAR(10)&ScriptText!$D$1)","v":""},{"$f":"IF(OrigTable!F342=\"\",\"\",TEXT(OrigTable!F342,\"00\"))","v":""},{"$f":"IF(OrigTable!F342=\"\",\"\",ScriptText!$E$1&CHAR(10)&ScriptText!$C$1)","v":""},{"$f":"IF(OrigTable!G342=\"\",\"\",ScriptText!$B$1&CHAR(10)&ScriptText!$D$1)","v":""},{"$f":"IF(OrigTable!G342=\"\",\"\",TEXT(OrigTable!G342,\"00\"))","v":""},{"$f":"IF(OrigTable!G342=\"\",\"\",ScriptText!$E$1&CHAR(10)&ScriptText!$C$1)","v":""},342]
["<tr>\n<td>290</td>\n</tr>\n<tr>\n<td>No</td>\n287A\n<tr>\n<td>Accepts Request To Become Small Business Trust via F2553</td>\n</tr>\n<tr>\n<td>BMF Notices</td>\n</tr>",{"$f":"IF(OrigTable!A343=\"\",\"\",ScriptText!$B$1&CHAR(10)&ScriptText!$D$1)","v":"<tr>\n<td>"},{"$f":"IF(OrigTable!A343=\"\",\"\",TEXT(OrigTable!A343,\"00\"))","v":"290"},{"$f":"IF(OrigTable!A343=\"\",\"\",ScriptText!$E$1&CHAR(10)&ScriptText!$C$1)","v":"</td>\n</tr>"},{"$f":"IF(OrigTable!B343=\"\",\"\",ScriptText!$B$1&CHAR(10)&ScriptText!$D$1)","v":"<tr>\n<td>"},{"$f":"IF(OrigTable!B343=\"\",\"\",TEXT(OrigTable!B343,\"00\"))","v":"No"},{"$f":"IF(OrigTable!B343=\"\",\"\",ScriptText!$E$1&CHAR(10)&ScriptText!C338)","v":"</td>\n287A"},{"$f":"IF(OrigTable!C343=\"\",\"\",ScriptText!$B$1&CHAR(10)&ScriptText!$D$1)","v":"<tr>\n<td>"},{"$f":"IF(OrigTable!C343=\"\",\"\",IF(LEN(OrigTable!C343)>255,LEFT(OrigTable!C343,250)&\". . .\",OrigTable!C343))","v":"Accepts Request To Become Small Business Trust via F2553"},{"$f":"IF(OrigTable!C343=\"\",\"\",ScriptText!$E$1&CHAR(10)&ScriptText!$C$1)","v":"</td>\n</tr>"},{"$f":"IF(OrigTable!D343=\"\",\"\",ScriptText!$B$1&CHAR(10)&ScriptText!$D$1)","v":"<tr>\n<td>"},{"$f":"IF(OrigTable!D343=\"\",\"\",TEXT(OrigTable!D343,\"00\"))","v":"BMF Notices"},{"$f":"IF(OrigTable!D343=\"\",\"\",ScriptText!$E$1&CHAR(10)&ScriptText!$C$1)","v":"</td>\n</tr>"},{"$f":"IF(OrigTable!E343=\"\",\"\",ScriptText!$B$1&CHAR(10)&ScriptText!$D$1)","v":""},{"$f":"IF(OrigTable!E343=\"\",\"\",TEXT(OrigTable!E343,\"00\"))","v":""},{"$f":"IF(OrigTable!E343=\"\",\"\",ScriptText!$E$1&CHAR(10)&ScriptText!$C$1)","v":""},{"$f":"IF(OrigTable!F343=\"\",\"\",ScriptText!$B$1&CHAR(10)&ScriptText!$D$1)","v":""},{"$f":"IF(OrigTable!F343=\"\",\"\",TEXT(OrigTable!F343,\"00\"))","v":""},{"$f":"IF(OrigTable!F343=\"\",\"\",ScriptText!$E$1&CHAR(10)&ScriptText!$C$1)","v":""},{"$f":"IF(OrigTable!G343=\"\",\"\",ScriptText!$B$1&CHAR(10)&ScriptText!$D$1)","v":""},{"$f":"IF(OrigTable!G343=\"\",\"\",TEXT(OrigTable!G343,\"00\"))","v":""},{"$f":"IF(OrigTable!G343=\"\",\"\",ScriptText!$E$1&CHAR(10)&ScriptText!$C$1)","v":""},343]
["<tr>\n<td>291</td>\n</tr>\n<tr>\n<td>No</td>\n287B\n<tr>\n<td>Electing Small Business Trust (ESBT) Revoked</td>\n</tr>\n<tr>\n<td>BMF Notices</td>\n</tr>",{"$f":"IF(OrigTable!A344=\"\",\"\",ScriptText!$B$1&CHAR(10)&ScriptText!$D$1)","v":"<tr>\n<td>"},{"$f":"IF(OrigTable!A344=\"\",\"\",TEXT(OrigTable!A344,\"00\"))","v":"291"},{"$f":"IF(OrigTable!A344=\"\",\"\",ScriptText!$E$1&CHAR(10)&ScriptText!$C$1)","v":"</td>\n</tr>"},{"$f":"IF(OrigTable!B344=\"\",\"\",ScriptText!$B$1&CHAR(10)&ScriptText!$D$1)","v":"<tr>\n<td>"},{"$f":"IF(OrigTable!B344=\"\",\"\",TEXT(OrigTable!B344,\"00\"))","v":"No"},{"$f":"IF(OrigTable!B344=\"\",\"\",ScriptText!$E$1&CHAR(10)&ScriptText!C339)","v":"</td>\n287B"},{"$f":"IF(OrigTable!C344=\"\",\"\",ScriptText!$B$1&CHAR(10)&ScriptText!$D$1)","v":"<tr>\n<td>"},{"$f":"IF(OrigTable!C344=\"\",\"\",IF(LEN(OrigTable!C344)>255,LEFT(OrigTable!C344,250)&\". . .\",OrigTable!C344))","v":"Electing Small Business Trust (ESBT) Revoked"},{"$f":"IF(OrigTable!C344=\"\",\"\",ScriptText!$E$1&CHAR(10)&ScriptText!$C$1)","v":"</td>\n</tr>"},{"$f":"IF(OrigTable!D344=\"\",\"\",ScriptText!$B$1&CHAR(10)&ScriptText!$D$1)","v":"<tr>\n<td>"},{"$f":"IF(OrigTable!D344=\"\",\"\",TEXT(OrigTable!D344,\"00\"))","v":"BMF Notices"},{"$f":"IF(OrigTable!D344=\"\",\"\",ScriptText!$E$1&CHAR(10)&ScriptText!$C$1)","v":"</td>\n</tr>"},{"$f":"IF(OrigTable!E344=\"\",\"\",ScriptText!$B$1&CHAR(10)&ScriptText!$D$1)","v":""},{"$f":"IF(OrigTable!E344=\"\",\"\",TEXT(OrigTable!E344,\"00\"))","v":""},{"$f":"IF(OrigTable!E344=\"\",\"\",ScriptText!$E$1&CHAR(10)&ScriptText!$C$1)","v":""},{"$f":"IF(OrigTable!F344=\"\",\"\",ScriptText!$B$1&CHAR(10)&ScriptText!$D$1)","v":""},{"$f":"IF(OrigTable!F344=\"\",\"\",TEXT(OrigTable!F344,\"00\"))","v":""},{"$f":"IF(OrigTable!F344=\"\",\"\",ScriptText!$E$1&CHAR(10)&ScriptText!$C$1)","v":""},{"$f":"IF(OrigTable!G344=\"\",\"\",ScriptText!$B$1&CHAR(10)&ScriptText!$D$1)","v":""},{"$f":"IF(OrigTable!G344=\"\",\"\",TEXT(OrigTable!G344,\"00\"))","v":""},{"$f":"IF(OrigTable!G344=\"\",\"\",ScriptText!$E$1&CHAR(10)&ScriptText!$C$1)","v":""},344]
["<tr>\n<td>292</td>\n</tr>\n<tr>\n<td>No</td>\n287C\n<tr>\n<td>Qualified Subchapter S Trust (QSST) Revoked</td>\n</tr>\n<tr>\n<td>BMF Notices</td>\n</tr>",{"$f":"IF(OrigTable!A345=\"\",\"\",ScriptText!$B$1&CHAR(10)&ScriptText!$D$1)","v":"<tr>\n<td>"},{"$f":"IF(OrigTable!A345=\"\",\"\",TEXT(OrigTable!A345,\"00\"))","v":"292"},{"$f":"IF(OrigTable!A345=\"\",\"\",ScriptText!$E$1&CHAR(10)&ScriptText!$C$1)","v":"</td>\n</tr>"},{"$f":"IF(OrigTable!B345=\"\",\"\",ScriptText!$B$1&CHAR(10)&ScriptText!$D$1)","v":"<tr>\n<td>"},{"$f":"IF(OrigTable!B345=\"\",\"\",TEXT(OrigTable!B345,\"00\"))","v":"No"},{"$f":"IF(OrigTable!B345=\"\",\"\",ScriptText!$E$1&CHAR(10)&ScriptText!C340)","v":"</td>\n287C"},{"$f":"IF(OrigTable!C345=\"\",\"\",ScriptText!$B$1&CHAR(10)&ScriptText!$D$1)","v":"<tr>\n<td>"},{"$f":"IF(OrigTable!C345=\"\",\"\",IF(LEN(OrigTable!C345)>255,LEFT(OrigTable!C345,250)&\". . .\",OrigTable!C345))","v":"Qualified Subchapter S Trust (QSST) Revoked"},{"$f":"IF(OrigTable!C345=\"\",\"\",ScriptText!$E$1&CHAR(10)&ScriptText!$C$1)","v":"</td>\n</tr>"},{"$f":"IF(OrigTable!D345=\"\",\"\",ScriptText!$B$1&CHAR(10)&ScriptText!$D$1)","v":"<tr>\n<td>"},{"$f":"IF(OrigTable!D345=\"\",\"\",TEXT(OrigTable!D345,\"00\"))","v":"BMF Notices"},{"$f":"IF(OrigTable!D345=\"\",\"\",ScriptText!$E$1&CHAR(10)&ScriptText!$C$1)","v":"</td>\n</tr>"},{"$f":"IF(OrigTable!E345=\"\",\"\",ScriptText!$B$1&CHAR(10)&ScriptText!$D$1)","v":""},{"$f":"IF(OrigTable!E345=\"\",\"\",TEXT(OrigTable!E345,\"00\"))","v":""},{"$f":"IF(OrigTable!E345=\"\",\"\",ScriptText!$E$1&CHAR(10)&ScriptText!$C$1)","v":""},{"$f":"IF(OrigTable!F345=\"\",\"\",ScriptText!$B$1&CHAR(10)&ScriptText!$D$1)","v":""},{"$f":"IF(OrigTable!F345=\"\",\"\",TEXT(OrigTable!F345,\"00\"))","v":""},{"$f":"IF(OrigTable!F345=\"\",\"\",ScriptText!$E$1&CHAR(10)&ScriptText!$C$1)","v":""},{"$f":"IF(OrigTable!G345=\"\",\"\",ScriptText!$B$1&CHAR(10)&ScriptText!$D$1)","v":""},{"$f":"IF(OrigTable!G345=\"\",\"\",TEXT(OrigTable!G345,\"00\"))","v":""},{"$f":"IF(OrigTable!G345=\"\",\"\",ScriptText!$E$1&CHAR(10)&ScriptText!$C$1)","v":""},345]
["<tr>\n<td>293</td>\n</tr>\n<tr>\n<td>No</td>\n288\n<tr>\n<td>Campus notice only: Notification to SC Examination that a duplicate return posted to a\ntax period under AIMS control.</td>\n</tr>\n<tr>\n<td>BMF Notices</td>\n</tr>",{"$f":"IF(OrigTable!A346=\"\",\"\",ScriptText!$B$1&CHAR(10)&ScriptText!$D$1)","v":"<tr>\n<td>"},{"$f":"IF(OrigTable!A346=\"\",\"\",TEXT(OrigTable!A346,\"00\"))","v":"293"},{"$f":"IF(OrigTable!A346=\"\",\"\",ScriptText!$E$1&CHAR(10)&ScriptText!$C$1)","v":"</td>\n</tr>"},{"$f":"IF(OrigTable!B346=\"\",\"\",ScriptText!$B$1&CHAR(10)&ScriptText!$D$1)","v":"<tr>\n<td>"},{"$f":"IF(OrigTable!B346=\"\",\"\",TEXT(OrigTable!B346,\"00\"))","v":"No"},{"$f":"IF(OrigTable!B346=\"\",\"\",ScriptText!$E$1&CHAR(10)&ScriptText!C341)","v":"</td>\n288"},{"$f":"IF(OrigTable!C346=\"\",\"\",ScriptText!$B$1&CHAR(10)&ScriptText!$D$1)","v":"<tr>\n<td>"},{"$f":"IF(OrigTable!C346=\"\",\"\",IF(LEN(OrigTable!C346)>255,LEFT(OrigTable!C346,250)&\". . .\",OrigTable!C346))","v":"Campus notice only: Notification to SC Examination that a duplicate return posted to a\ntax period under AIMS control."},{"$f":"IF(OrigTable!C346=\"\",\"\",ScriptText!$E$1&CHAR(10)&ScriptText!$C$1)","v":"</td>\n</tr>"},{"$f":"IF(OrigTable!D346=\"\",\"\",ScriptText!$B$1&CHAR(10)&ScriptText!$D$1)","v":"<tr>\n<td>"},{"$f":"IF(OrigTable!D346=\"\",\"\",TEXT(OrigTable!D346,\"00\"))","v":"BMF Notices"},{"$f":"IF(OrigTable!D346=\"\",\"\",ScriptText!$E$1&CHAR(10)&ScriptText!$C$1)","v":"</td>\n</tr>"},{"$f":"IF(OrigTable!E346=\"\",\"\",ScriptText!$B$1&CHAR(10)&ScriptText!$D$1)","v":""},{"$f":"IF(OrigTable!E346=\"\",\"\",TEXT(OrigTable!E346,\"00\"))","v":""},{"$f":"IF(OrigTable!E346=\"\",\"\",ScriptText!$E$1&CHAR(10)&ScriptText!$C$1)","v":""},{"$f":"IF(OrigTable!F346=\"\",\"\",ScriptText!$B$1&CHAR(10)&ScriptText!$D$1)","v":""},{"$f":"IF(OrigTable!F346=\"\",\"\",TEXT(OrigTable!F346,\"00\"))","v":""},{"$f":"IF(OrigTable!F346=\"\",\"\",ScriptText!$E$1&CHAR(10)&ScriptText!$C$1)","v":""},{"$f":"IF(OrigTable!G346=\"\",\"\",ScriptText!$B$1&CHAR(10)&ScriptText!$D$1)","v":""},{"$f":"IF(OrigTable!G346=\"\",\"\",TEXT(OrigTable!G346,\"00\"))","v":""},{"$f":"IF(OrigTable!G346=\"\",\"\",ScriptText!$E$1&CHAR(10)&ScriptText!$C$1)","v":""},346]
["<tr>\n<td>294</td>\n</tr>\n<tr>\n<td>No</td>\n289\n<tr>\n<td>Campus notice only: Notification to SC Adjustments of a potential 15% FTD penalty on an account with Forms 940, 941, 943, 944, 945, or 1042.</td>\n</tr>\n<tr>\n<td>BMF Notices</td>\n</tr>",{"$f":"IF(OrigTable!A347=\"\",\"\",ScriptText!$B$1&CHAR(10)&ScriptText!$D$1)","v":"<tr>\n<td>"},{"$f":"IF(OrigTable!A347=\"\",\"\",TEXT(OrigTable!A347,\"00\"))","v":"294"},{"$f":"IF(OrigTable!A347=\"\",\"\",ScriptText!$E$1&CHAR(10)&ScriptText!$C$1)","v":"</td>\n</tr>"},{"$f":"IF(OrigTable!B347=\"\",\"\",ScriptText!$B$1&CHAR(10)&ScriptText!$D$1)","v":"<tr>\n<td>"},{"$f":"IF(OrigTable!B347=\"\",\"\",TEXT(OrigTable!B347,\"00\"))","v":"No"},{"$f":"IF(OrigTable!B347=\"\",\"\",ScriptText!$E$1&CHAR(10)&ScriptText!C342)","v":"</td>\n289"},{"$f":"IF(OrigTable!C347=\"\",\"\",ScriptText!$B$1&CHAR(10)&ScriptText!$D$1)","v":"<tr>\n<td>"},{"$f":"IF(OrigTable!C347=\"\",\"\",IF(LEN(OrigTable!C347)>255,LEFT(OrigTable!C347,250)&\". . .\",OrigTable!C347))","v":"Campus notice only: Notification to SC Adjustments of a potential 15% FTD penalty on an account with Forms 940, 941, 943, 944, 945, or 1042."},{"$f":"IF(OrigTable!C347=\"\",\"\",ScriptText!$E$1&CHAR(10)&ScriptText!$C$1)","v":"</td>\n</tr>"},{"$f":"IF(OrigTable!D347=\"\",\"\",ScriptText!$B$1&CHAR(10)&ScriptText!$D$1)","v":"<tr>\n<td>"},{"$f":"IF(OrigTable!D347=\"\",\"\",TEXT(OrigTable!D347,\"00\"))","v":"BMF Notices"},{"$f":"IF(OrigTable!D347=\"\",\"\",ScriptText!$E$1&CHAR(10)&ScriptText!$C$1)","v":"</td>\n</tr>"},{"$f":"IF(OrigTable!E347=\"\",\"\",ScriptText!$B$1&CHAR(10)&ScriptText!$D$1)","v":""},{"$f":"IF(OrigTable!E347=\"\",\"\",TEXT(OrigTable!E347,\"00\"))","v":""},{"$f":"IF(OrigTable!E347=\"\",\"\",ScriptText!$E$1&CHAR(10)&ScriptText!$C$1)","v":""},{"$f":"IF(OrigTable!F347=\"\",\"\",ScriptText!$B$1&CHAR(10)&ScriptText!$D$1)","v":""},{"$f":"IF(OrigTable!F347=\"\",\"\",TEXT(OrigTable!F347,\"00\"))","v":""},{"$f":"IF(OrigTable!F347=\"\",\"\",ScriptText!$E$1&CHAR(10)&ScriptText!$C$1)","v":""},{"$f":"IF(OrigTable!G347=\"\",\"\",ScriptText!$B$1&CHAR(10)&ScriptText!$D$1)","v":""},{"$f":"IF(OrigTable!G347=\"\",\"\",TEXT(OrigTable!G347,\"00\"))","v":""},{"$f":"IF(OrigTable!G347=\"\",\"\",ScriptText!$E$1&CHAR(10)&ScriptText!$C$1)","v":""},347]
["<tr>\n<td>295</td>\n</tr>\n\n<tr>\n<td>Request for Payment – Form 5500</td>\n</tr>\n<tr>\n<td>BMF Notices</td>\n</tr>",{"$f":"IF(OrigTable!A348=\"\",\"\",ScriptText!$B$1&CHAR(10)&ScriptText!$D$1)","v":"<tr>\n<td>"},{"$f":"IF(OrigTable!A348=\"\",\"\",TEXT(OrigTable!A348,\"00\"))","v":"295"},{"$f":"IF(OrigTable!A348=\"\",\"\",ScriptText!$E$1&CHAR(10)&ScriptText!$C$1)","v":"</td>\n</tr>"},{"$f":"IF(OrigTable!B348=\"\",\"\",ScriptText!$B$1&CHAR(10)&ScriptText!$D$1)","v":""},{"$f":"IF(OrigTable!B348=\"\",\"\",TEXT(OrigTable!B348,\"00\"))","v":""},{"$f":"IF(OrigTable!B348=\"\",\"\",ScriptText!$E$1&CHAR(10)&ScriptText!C343)","v":""},{"$f":"IF(OrigTable!C348=\"\",\"\",ScriptText!$B$1&CHAR(10)&ScriptText!$D$1)","v":"<tr>\n<td>"},{"$f":"IF(OrigTable!C348=\"\",\"\",IF(LEN(OrigTable!C348)>255,LEFT(OrigTable!C348,250)&\". . .\",OrigTable!C348))","v":"Request for Payment – Form 5500"},{"$f":"IF(OrigTable!C348=\"\",\"\",ScriptText!$E$1&CHAR(10)&ScriptText!$C$1)","v":"</td>\n</tr>"},{"$f":"IF(OrigTable!D348=\"\",\"\",ScriptText!$B$1&CHAR(10)&ScriptText!$D$1)","v":"<tr>\n<td>"},{"$f":"IF(OrigTable!D348=\"\",\"\",TEXT(OrigTable!D348,\"00\"))","v":"BMF Notices"},{"$f":"IF(OrigTable!D348=\"\",\"\",ScriptText!$E$1&CHAR(10)&ScriptText!$C$1)","v":"</td>\n</tr>"},{"$f":"IF(OrigTable!E348=\"\",\"\",ScriptText!$B$1&CHAR(10)&ScriptText!$D$1)","v":""},{"$f":"IF(OrigTable!E348=\"\",\"\",TEXT(OrigTable!E348,\"00\"))","v":""},{"$f":"IF(OrigTable!E348=\"\",\"\",ScriptText!$E$1&CHAR(10)&ScriptText!$C$1)","v":""},{"$f":"IF(OrigTable!F348=\"\",\"\",ScriptText!$B$1&CHAR(10)&ScriptText!$D$1)","v":""},{"$f":"IF(OrigTable!F348=\"\",\"\",TEXT(OrigTable!F348,\"00\"))","v":""},{"$f":"IF(OrigTable!F348=\"\",\"\",ScriptText!$E$1&CHAR(10)&ScriptText!$C$1)","v":""},{"$f":"IF(OrigTable!G348=\"\",\"\",ScriptText!$B$1&CHAR(10)&ScriptText!$D$1)","v":""},{"$f":"IF(OrigTable!G348=\"\",\"\",TEXT(OrigTable!G348,\"00\"))","v":""},{"$f":"IF(OrigTable!G348=\"\",\"\",ScriptText!$E$1&CHAR(10)&ScriptText!$C$1)","v":""},348]
["<tr>\n<td>295A</td>\n</tr>\n\n<tr>\n<td>Request for payment (5500NMF Accounts)</td>\n</tr>\n<tr>\n<td>BMF Notices</td>\n</tr>",{"$f":"IF(OrigTable!A349=\"\",\"\",ScriptText!$B$1&CHAR(10)&ScriptText!$D$1)","v":"<tr>\n<td>"},{"$f":"IF(OrigTable!A349=\"\",\"\",TEXT(OrigTable!A349,\"00\"))","v":"295A"},{"$f":"IF(OrigTable!A349=\"\",\"\",ScriptText!$E$1&CHAR(10)&ScriptText!$C$1)","v":"</td>\n</tr>"},{"$f":"IF(OrigTable!B349=\"\",\"\",ScriptText!$B$1&CHAR(10)&ScriptText!$D$1)","v":""},{"$f":"IF(OrigTable!B349=\"\",\"\",TEXT(OrigTable!B349,\"00\"))","v":""},{"$f":"IF(OrigTable!B349=\"\",\"\",ScriptText!$E$1&CHAR(10)&ScriptText!C344)","v":""},{"$f":"IF(OrigTable!C349=\"\",\"\",ScriptText!$B$1&CHAR(10)&ScriptText!$D$1)","v":"<tr>\n<td>"},{"$f":"IF(OrigTable!C349=\"\",\"\",IF(LEN(OrigTable!C349)>255,LEFT(OrigTable!C349,250)&\". . .\",OrigTable!C349))","v":"Request for payment (5500NMF Accounts)"},{"$f":"IF(OrigTable!C349=\"\",\"\",ScriptText!$E$1&CHAR(10)&ScriptText!$C$1)","v":"</td>\n</tr>"},{"$f":"IF(OrigTable!D349=\"\",\"\",ScriptText!$B$1&CHAR(10)&ScriptText!$D$1)","v":"<tr>\n<td>"},{"$f":"IF(OrigTable!D349=\"\",\"\",TEXT(OrigTable!D349,\"00\"))","v":"BMF Notices"},{"$f":"IF(OrigTable!D349=\"\",\"\",ScriptText!$E$1&CHAR(10)&ScriptText!$C$1)","v":"</td>\n</tr>"},{"$f":"IF(OrigTable!E349=\"\",\"\",ScriptText!$B$1&CHAR(10)&ScriptText!$D$1)","v":""},{"$f":"IF(OrigTable!E349=\"\",\"\",TEXT(OrigTable!E349,\"00\"))","v":""},{"$f":"IF(OrigTable!E349=\"\",\"\",ScriptText!$E$1&CHAR(10)&ScriptText!$C$1)","v":""},{"$f":"IF(OrigTable!F349=\"\",\"\",ScriptText!$B$1&CHAR(10)&ScriptText!$D$1)","v":""},{"$f":"IF(OrigTable!F349=\"\",\"\",TEXT(OrigTable!F349,\"00\"))","v":""},{"$f":"IF(OrigTable!F349=\"\",\"\",ScriptText!$E$1&CHAR(10)&ScriptText!$C$1)","v":""},{"$f":"IF(OrigTable!G349=\"\",\"\",ScriptText!$B$1&CHAR(10)&ScriptText!$D$1)","v":""},{"$f":"IF(OrigTable!G349=\"\",\"\",TEXT(OrigTable!G349,\"00\"))","v":""},{"$f":"IF(OrigTable!G349=\"\",\"\",ScriptText!$E$1&CHAR(10)&ScriptText!$C$1)","v":""},349]
["<tr>\n<td>296</td>\n</tr>\n\n<tr>\n<td>Campus notice only: Notification to SC accounting that an account has been transferred\nout</td>\n</tr>\n<tr>\n<td>BMF Notices</td>\n</tr>",{"$f":"IF(OrigTable!A350=\"\",\"\",ScriptText!$B$1&CHAR(10)&ScriptText!$D$1)","v":"<tr>\n<td>"},{"$f":"IF(OrigTable!A350=\"\",\"\",TEXT(OrigTable!A350,\"00\"))","v":"296"},{"$f":"IF(OrigTable!A350=\"\",\"\",ScriptText!$E$1&CHAR(10)&ScriptText!$C$1)","v":"</td>\n</tr>"},{"$f":"IF(OrigTable!B350=\"\",\"\",ScriptText!$B$1&CHAR(10)&ScriptText!$D$1)","v":""},{"$f":"IF(OrigTable!B350=\"\",\"\",TEXT(OrigTable!B350,\"00\"))","v":""},{"$f":"IF(OrigTable!B350=\"\",\"\",ScriptText!$E$1&CHAR(10)&ScriptText!C345)","v":""},{"$f":"IF(OrigTable!C350=\"\",\"\",ScriptText!$B$1&CHAR(10)&ScriptText!$D$1)","v":"<tr>\n<td>"},{"$f":"IF(OrigTable!C350=\"\",\"\",IF(LEN(OrigTable!C350)>255,LEFT(OrigTable!C350,250)&\". . .\",OrigTable!C350))","v":"Campus notice only: Notification to SC accounting that an account has been transferred\nout"},{"$f":"IF(OrigTable!C350=\"\",\"\",ScriptText!$E$1&CHAR(10)&ScriptText!$C$1)","v":"</td>\n</tr>"},{"$f":"IF(OrigTable!D350=\"\",\"\",ScriptText!$B$1&CHAR(10)&ScriptText!$D$1)","v":"<tr>\n<td>"},{"$f":"IF(OrigTable!D350=\"\",\"\",TEXT(OrigTable!D350,\"00\"))","v":"BMF Notices"},{"$f":"IF(OrigTable!D350=\"\",\"\",ScriptText!$E$1&CHAR(10)&ScriptText!$C$1)","v":"</td>\n</tr>"},{"$f":"IF(OrigTable!E350=\"\",\"\",ScriptText!$B$1&CHAR(10)&ScriptText!$D$1)","v":""},{"$f":"IF(OrigTable!E350=\"\",\"\",TEXT(OrigTable!E350,\"00\"))","v":""},{"$f":"IF(OrigTable!E350=\"\",\"\",ScriptText!$E$1&CHAR(10)&ScriptText!$C$1)","v":""},{"$f":"IF(OrigTable!F350=\"\",\"\",ScriptText!$B$1&CHAR(10)&ScriptText!$D$1)","v":""},{"$f":"IF(OrigTable!F350=\"\",\"\",TEXT(OrigTable!F350,\"00\"))","v":""},{"$f":"IF(OrigTable!F350=\"\",\"\",ScriptText!$E$1&CHAR(10)&ScriptText!$C$1)","v":""},{"$f":"IF(OrigTable!G350=\"\",\"\",ScriptText!$B$1&CHAR(10)&ScriptText!$D$1)","v":""},{"$f":"IF(OrigTable!G350=\"\",\"\",TEXT(OrigTable!G350,\"00\"))","v":""},{"$f":"IF(OrigTable!G350=\"\",\"\",ScriptText!$E$1&CHAR(10)&ScriptText!$C$1)","v":""},350]
["<tr>\n<td>297</td>\n</tr>\n<tr>\n<td>No</td>\n293\n<tr>\n<td>Final Notice, Notice of Intent to Levy and Notice of Your Right to a Hearing</td>\n</tr>\n<tr>\n<td>BMF Notices</td>\n</tr>",{"$f":"IF(OrigTable!A351=\"\",\"\",ScriptText!$B$1&CHAR(10)&ScriptText!$D$1)","v":"<tr>\n<td>"},{"$f":"IF(OrigTable!A351=\"\",\"\",TEXT(OrigTable!A351,\"00\"))","v":"297"},{"$f":"IF(OrigTable!A351=\"\",\"\",ScriptText!$E$1&CHAR(10)&ScriptText!$C$1)","v":"</td>\n</tr>"},{"$f":"IF(OrigTable!B351=\"\",\"\",ScriptText!$B$1&CHAR(10)&ScriptText!$D$1)","v":"<tr>\n<td>"},{"$f":"IF(OrigTable!B351=\"\",\"\",TEXT(OrigTable!B351,\"00\"))","v":"No"},{"$f":"IF(OrigTable!B351=\"\",\"\",ScriptText!$E$1&CHAR(10)&ScriptText!C346)","v":"</td>\n293"},{"$f":"IF(OrigTable!C351=\"\",\"\",ScriptText!$B$1&CHAR(10)&ScriptText!$D$1)","v":"<tr>\n<td>"},{"$f":"IF(OrigTable!C351=\"\",\"\",IF(LEN(OrigTable!C351)>255,LEFT(OrigTable!C351,250)&\". . .\",OrigTable!C351))","v":"Final Notice, Notice of Intent to Levy and Notice of Your Right to a Hearing"},{"$f":"IF(OrigTable!C351=\"\",\"\",ScriptText!$E$1&CHAR(10)&ScriptText!$C$1)","v":"</td>\n</tr>"},{"$f":"IF(OrigTable!D351=\"\",\"\",ScriptText!$B$1&CHAR(10)&ScriptText!$D$1)","v":"<tr>\n<td>"},{"$f":"IF(OrigTable!D351=\"\",\"\",TEXT(OrigTable!D351,\"00\"))","v":"BMF Notices"},{"$f":"IF(OrigTable!D351=\"\",\"\",ScriptText!$E$1&CHAR(10)&ScriptText!$C$1)","v":"</td>\n</tr>"},{"$f":"IF(OrigTable!E351=\"\",\"\",ScriptText!$B$1&CHAR(10)&ScriptText!$D$1)","v":""},{"$f":"IF(OrigTable!E351=\"\",\"\",TEXT(OrigTable!E351,\"00\"))","v":""},{"$f":"IF(OrigTable!E351=\"\",\"\",ScriptText!$E$1&CHAR(10)&ScriptText!$C$1)","v":""},{"$f":"IF(OrigTable!F351=\"\",\"\",ScriptText!$B$1&CHAR(10)&ScriptText!$D$1)","v":""},{"$f":"IF(OrigTable!F351=\"\",\"\",TEXT(OrigTable!F351,\"00\"))","v":""},{"$f":"IF(OrigTable!F351=\"\",\"\",ScriptText!$E$1&CHAR(10)&ScriptText!$C$1)","v":""},{"$f":"IF(OrigTable!G351=\"\",\"\",ScriptText!$B$1&CHAR(10)&ScriptText!$D$1)","v":""},{"$f":"IF(OrigTable!G351=\"\",\"\",TEXT(OrigTable!G351,\"00\"))","v":""},{"$f":"IF(OrigTable!G351=\"\",\"\",ScriptText!$E$1&CHAR(10)&ScriptText!$C$1)","v":""},351]
["<tr>\n<td>297A</td>\n</tr>\n\n<tr>\n<td>Notice of Levy and Notice of Your Right to a Hearing FPLP</td>\n</tr>\n<tr>\n<td>BMF Notices</td>\n</tr>",{"$f":"IF(OrigTable!A352=\"\",\"\",ScriptText!$B$1&CHAR(10)&ScriptText!$D$1)","v":"<tr>\n<td>"},{"$f":"IF(OrigTable!A352=\"\",\"\",TEXT(OrigTable!A352,\"00\"))","v":"297A"},{"$f":"IF(OrigTable!A352=\"\",\"\",ScriptText!$E$1&CHAR(10)&ScriptText!$C$1)","v":"</td>\n</tr>"},{"$f":"IF(OrigTable!B352=\"\",\"\",ScriptText!$B$1&CHAR(10)&ScriptText!$D$1)","v":""},{"$f":"IF(OrigTable!B352=\"\",\"\",TEXT(OrigTable!B352,\"00\"))","v":""},{"$f":"IF(OrigTable!B352=\"\",\"\",ScriptText!$E$1&CHAR(10)&ScriptText!C347)","v":""},{"$f":"IF(OrigTable!C352=\"\",\"\",ScriptText!$B$1&CHAR(10)&ScriptText!$D$1)","v":"<tr>\n<td>"},{"$f":"IF(OrigTable!C352=\"\",\"\",IF(LEN(OrigTable!C352)>255,LEFT(OrigTable!C352,250)&\". . .\",OrigTable!C352))","v":"Notice of Levy and Notice of Your Right to a Hearing FPLP"},{"$f":"IF(OrigTable!C352=\"\",\"\",ScriptText!$E$1&CHAR(10)&ScriptText!$C$1)","v":"</td>\n</tr>"},{"$f":"IF(OrigTable!D352=\"\",\"\",ScriptText!$B$1&CHAR(10)&ScriptText!$D$1)","v":"<tr>\n<td>"},{"$f":"IF(OrigTable!D352=\"\",\"\",TEXT(OrigTable!D352,\"00\"))","v":"BMF Notices"},{"$f":"IF(OrigTable!D352=\"\",\"\",ScriptText!$E$1&CHAR(10)&ScriptText!$C$1)","v":"</td>\n</tr>"},{"$f":"IF(OrigTable!E352=\"\",\"\",ScriptText!$B$1&CHAR(10)&ScriptText!$D$1)","v":""},{"$f":"IF(OrigTable!E352=\"\",\"\",TEXT(OrigTable!E352,\"00\"))","v":""},{"$f":"IF(OrigTable!E352=\"\",\"\",ScriptText!$E$1&CHAR(10)&ScriptText!$C$1)","v":""},{"$f":"IF(OrigTable!F352=\"\",\"\",ScriptText!$B$1&CHAR(10)&ScriptText!$D$1)","v":""},{"$f":"IF(OrigTable!F352=\"\",\"\",TEXT(OrigTable!F352,\"00\"))","v":""},{"$f":"IF(OrigTable!F352=\"\",\"\",ScriptText!$E$1&CHAR(10)&ScriptText!$C$1)","v":""},{"$f":"IF(OrigTable!G352=\"\",\"\",ScriptText!$B$1&CHAR(10)&ScriptText!$D$1)","v":""},{"$f":"IF(OrigTable!G352=\"\",\"\",TEXT(OrigTable!G352,\"00\"))","v":""},{"$f":"IF(OrigTable!G352=\"\",\"\",ScriptText!$E$1&CHAR(10)&ScriptText!$C$1)","v":""},352]
["<tr>\n<td>297C</td>\n</tr>\n\n<tr>\n<td>Notice of Levy and Notice of Your Right to a Hearing FPLP, federal contractor</td>\n</tr>\n<tr>\n<td>BMF Notices</td>\n</tr>",{"$f":"IF(OrigTable!A353=\"\",\"\",ScriptText!$B$1&CHAR(10)&ScriptText!$D$1)","v":"<tr>\n<td>"},{"$f":"IF(OrigTable!A353=\"\",\"\",TEXT(OrigTable!A353,\"00\"))","v":"297C"},{"$f":"IF(OrigTable!A353=\"\",\"\",ScriptText!$E$1&CHAR(10)&ScriptText!$C$1)","v":"</td>\n</tr>"},{"$f":"IF(OrigTable!B353=\"\",\"\",ScriptText!$B$1&CHAR(10)&ScriptText!$D$1)","v":""},{"$f":"IF(OrigTable!B353=\"\",\"\",TEXT(OrigTable!B353,\"00\"))","v":""},{"$f":"IF(OrigTable!B353=\"\",\"\",ScriptText!$E$1&CHAR(10)&ScriptText!C348)","v":""},{"$f":"IF(OrigTable!C353=\"\",\"\",ScriptText!$B$1&CHAR(10)&ScriptText!$D$1)","v":"<tr>\n<td>"},{"$f":"IF(OrigTable!C353=\"\",\"\",IF(LEN(OrigTable!C353)>255,LEFT(OrigTable!C353,250)&\". . .\",OrigTable!C353))","v":"Notice of Levy and Notice of Your Right to a Hearing FPLP, federal contractor"},{"$f":"IF(OrigTable!C353=\"\",\"\",ScriptText!$E$1&CHAR(10)&ScriptText!$C$1)","v":"</td>\n</tr>"},{"$f":"IF(OrigTable!D353=\"\",\"\",ScriptText!$B$1&CHAR(10)&ScriptText!$D$1)","v":"<tr>\n<td>"},{"$f":"IF(OrigTable!D353=\"\",\"\",TEXT(OrigTable!D353,\"00\"))","v":"BMF Notices"},{"$f":"IF(OrigTable!D353=\"\",\"\",ScriptText!$E$1&CHAR(10)&ScriptText!$C$1)","v":"</td>\n</tr>"},{"$f":"IF(OrigTable!E353=\"\",\"\",ScriptText!$B$1&CHAR(10)&ScriptText!$D$1)","v":""},{"$f":"IF(OrigTable!E353=\"\",\"\",TEXT(OrigTable!E353,\"00\"))","v":""},{"$f":"IF(OrigTable!E353=\"\",\"\",ScriptText!$E$1&CHAR(10)&ScriptText!$C$1)","v":""},{"$f":"IF(OrigTable!F353=\"\",\"\",ScriptText!$B$1&CHAR(10)&ScriptText!$D$1)","v":""},{"$f":"IF(OrigTable!F353=\"\",\"\",TEXT(OrigTable!F353,\"00\"))","v":""},{"$f":"IF(OrigTable!F353=\"\",\"\",ScriptText!$E$1&CHAR(10)&ScriptText!$C$1)","v":""},{"$f":"IF(OrigTable!G353=\"\",\"\",ScriptText!$B$1&CHAR(10)&ScriptText!$D$1)","v":""},{"$f":"IF(OrigTable!G353=\"\",\"\",TEXT(OrigTable!G353,\"00\"))","v":""},{"$f":"IF(OrigTable!G353=\"\",\"\",ScriptText!$E$1&CHAR(10)&ScriptText!$C$1)","v":""},353]
["<tr>\n<td>298</td>\n</tr>\n<tr>\n<td>No</td>\n295A\n<tr>\n<td>Final Notice Before Levy on Social Security Benefits</td>\n</tr>\n<tr>\n<td>BMF Notices</td>\n</tr>",{"$f":"IF(OrigTable!A354=\"\",\"\",ScriptText!$B$1&CHAR(10)&ScriptText!$D$1)","v":"<tr>\n<td>"},{"$f":"IF(OrigTable!A354=\"\",\"\",TEXT(OrigTable!A354,\"00\"))","v":"298"},{"$f":"IF(OrigTable!A354=\"\",\"\",ScriptText!$E$1&CHAR(10)&ScriptText!$C$1)","v":"</td>\n</tr>"},{"$f":"IF(OrigTable!B354=\"\",\"\",ScriptText!$B$1&CHAR(10)&ScriptText!$D$1)","v":"<tr>\n<td>"},{"$f":"IF(OrigTable!B354=\"\",\"\",TEXT(OrigTable!B354,\"00\"))","v":"No"},{"$f":"IF(OrigTable!B354=\"\",\"\",ScriptText!$E$1&CHAR(10)&ScriptText!C349)","v":"</td>\n295A"},{"$f":"IF(OrigTable!C354=\"\",\"\",ScriptText!$B$1&CHAR(10)&ScriptText!$D$1)","v":"<tr>\n<td>"},{"$f":"IF(OrigTable!C354=\"\",\"\",IF(LEN(OrigTable!C354)>255,LEFT(OrigTable!C354,250)&\". . .\",OrigTable!C354))","v":"Final Notice Before Levy on Social Security Benefits"},{"$f":"IF(OrigTable!C354=\"\",\"\",ScriptText!$E$1&CHAR(10)&ScriptText!$C$1)","v":"</td>\n</tr>"},{"$f":"IF(OrigTable!D354=\"\",\"\",ScriptText!$B$1&CHAR(10)&ScriptText!$D$1)","v":"<tr>\n<td>"},{"$f":"IF(OrigTable!D354=\"\",\"\",TEXT(OrigTable!D354,\"00\"))","v":"BMF Notices"},{"$f":"IF(OrigTable!D354=\"\",\"\",ScriptText!$E$1&CHAR(10)&ScriptText!$C$1)","v":"</td>\n</tr>"},{"$f":"IF(OrigTable!E354=\"\",\"\",ScriptText!$B$1&CHAR(10)&ScriptText!$D$1)","v":""},{"$f":"IF(OrigTable!E354=\"\",\"\",TEXT(OrigTable!E354,\"00\"))","v":""},{"$f":"IF(OrigTable!E354=\"\",\"\",ScriptText!$E$1&CHAR(10)&ScriptText!$C$1)","v":""},{"$f":"IF(OrigTable!F354=\"\",\"\",ScriptText!$B$1&CHAR(10)&ScriptText!$D$1)","v":""},{"$f":"IF(OrigTable!F354=\"\",\"\",TEXT(OrigTable!F354,\"00\"))","v":""},{"$f":"IF(OrigTable!F354=\"\",\"\",ScriptText!$E$1&CHAR(10)&ScriptText!$C$1)","v":""},{"$f":"IF(OrigTable!G354=\"\",\"\",ScriptText!$B$1&CHAR(10)&ScriptText!$D$1)","v":""},{"$f":"IF(OrigTable!G354=\"\",\"\",TEXT(OrigTable!G354,\"00\"))","v":""},{"$f":"IF(OrigTable!G354=\"\",\"\",ScriptText!$E$1&CHAR(10)&ScriptText!$C$1)","v":""},354]
["<tr>\n<td>299</td>\n</tr>\n\n<tr>\n<td>Annual Electronic Notice Filing Requirement Form 990N</td>\n</tr>\n<tr>\n<td>BMF Notices</td>\n</tr>",{"$f":"IF(OrigTable!A355=\"\",\"\",ScriptText!$B$1&CHAR(10)&ScriptText!$D$1)","v":"<tr>\n<td>"},{"$f":"IF(OrigTable!A355=\"\",\"\",TEXT(OrigTable!A355,\"00\"))","v":"299"},{"$f":"IF(OrigTable!A355=\"\",\"\",ScriptText!$E$1&CHAR(10)&ScriptText!$C$1)","v":"</td>\n</tr>"},{"$f":"IF(OrigTable!B355=\"\",\"\",ScriptText!$B$1&CHAR(10)&ScriptText!$D$1)","v":""},{"$f":"IF(OrigTable!B355=\"\",\"\",TEXT(OrigTable!B355,\"00\"))","v":""},{"$f":"IF(OrigTable!B355=\"\",\"\",ScriptText!$E$1&CHAR(10)&ScriptText!C350)","v":""},{"$f":"IF(OrigTable!C355=\"\",\"\",ScriptText!$B$1&CHAR(10)&ScriptText!$D$1)","v":"<tr>\n<td>"},{"$f":"IF(OrigTable!C355=\"\",\"\",IF(LEN(OrigTable!C355)>255,LEFT(OrigTable!C355,250)&\". . .\",OrigTable!C355))","v":"Annual Electronic Notice Filing Requirement Form 990N"},{"$f":"IF(OrigTable!C355=\"\",\"\",ScriptText!$E$1&CHAR(10)&ScriptText!$C$1)","v":"</td>\n</tr>"},{"$f":"IF(OrigTable!D355=\"\",\"\",ScriptText!$B$1&CHAR(10)&ScriptText!$D$1)","v":"<tr>\n<td>"},{"$f":"IF(OrigTable!D355=\"\",\"\",TEXT(OrigTable!D355,\"00\"))","v":"BMF Notices"},{"$f":"IF(OrigTable!D355=\"\",\"\",ScriptText!$E$1&CHAR(10)&ScriptText!$C$1)","v":"</td>\n</tr>"},{"$f":"IF(OrigTable!E355=\"\",\"\",ScriptText!$B$1&CHAR(10)&ScriptText!$D$1)","v":""},{"$f":"IF(OrigTable!E355=\"\",\"\",TEXT(OrigTable!E355,\"00\"))","v":""},{"$f":"IF(OrigTable!E355=\"\",\"\",ScriptText!$E$1&CHAR(10)&ScriptText!$C$1)","v":""},{"$f":"IF(OrigTable!F355=\"\",\"\",ScriptText!$B$1&CHAR(10)&ScriptText!$D$1)","v":""},{"$f":"IF(OrigTable!F355=\"\",\"\",TEXT(OrigTable!F355,\"00\"))","v":""},{"$f":"IF(OrigTable!F355=\"\",\"\",ScriptText!$E$1&CHAR(10)&ScriptText!$C$1)","v":""},{"$f":"IF(OrigTable!G355=\"\",\"\",ScriptText!$B$1&CHAR(10)&ScriptText!$D$1)","v":""},{"$f":"IF(OrigTable!G355=\"\",\"\",TEXT(OrigTable!G355,\"00\"))","v":""},{"$f":"IF(OrigTable!G355=\"\",\"\",ScriptText!$E$1&CHAR(10)&ScriptText!$C$1)","v":""},355]
["<tr>\n<td>212</td>\n</tr>\n\n<tr>\n<td>Notification of EIN assigned in error</td>\n</tr>\n<tr>\n<td>EPMF Notices</td>\n</tr>",{"$f":"IF(OrigTable!A356=\"\",\"\",ScriptText!$B$1&CHAR(10)&ScriptText!$D$1)","v":"<tr>\n<td>"},{"$f":"IF(OrigTable!A356=\"\",\"\",TEXT(OrigTable!A356,\"00\"))","v":"212"},{"$f":"IF(OrigTable!A356=\"\",\"\",ScriptText!$E$1&CHAR(10)&ScriptText!$C$1)","v":"</td>\n</tr>"},{"$f":"IF(OrigTable!B356=\"\",\"\",ScriptText!$B$1&CHAR(10)&ScriptText!$D$1)","v":""},{"$f":"IF(OrigTable!B356=\"\",\"\",TEXT(OrigTable!B356,\"00\"))","v":""},{"$f":"IF(OrigTable!B356=\"\",\"\",ScriptText!$E$1&CHAR(10)&ScriptText!C351)","v":""},{"$f":"IF(OrigTable!C356=\"\",\"\",ScriptText!$B$1&CHAR(10)&ScriptText!$D$1)","v":"<tr>\n<td>"},{"$f":"IF(OrigTable!C356=\"\",\"\",IF(LEN(OrigTable!C356)>255,LEFT(OrigTable!C356,250)&\". . .\",OrigTable!C356))","v":"Notification of EIN assigned in error"},{"$f":"IF(OrigTable!C356=\"\",\"\",ScriptText!$E$1&CHAR(10)&ScriptText!$C$1)","v":"</td>\n</tr>"},{"$f":"IF(OrigTable!D356=\"\",\"\",ScriptText!$B$1&CHAR(10)&ScriptText!$D$1)","v":"<tr>\n<td>"},{"$f":"IF(OrigTable!D356=\"\",\"\",TEXT(OrigTable!D356,\"00\"))","v":"EPMF Notices"},{"$f":"IF(OrigTable!D356=\"\",\"\",ScriptText!$E$1&CHAR(10)&ScriptText!$C$1)","v":"</td>\n</tr>"},{"$f":"IF(OrigTable!E356=\"\",\"\",ScriptText!$B$1&CHAR(10)&ScriptText!$D$1)","v":""},{"$f":"IF(OrigTable!E356=\"\",\"\",TEXT(OrigTable!E356,\"00\"))","v":""},{"$f":"IF(OrigTable!E356=\"\",\"\",ScriptText!$E$1&CHAR(10)&ScriptText!$C$1)","v":""},{"$f":"IF(OrigTable!F356=\"\",\"\",ScriptText!$B$1&CHAR(10)&ScriptText!$D$1)","v":""},{"$f":"IF(OrigTable!F356=\"\",\"\",TEXT(OrigTable!F356,\"00\"))","v":""},{"$f":"IF(OrigTable!F356=\"\",\"\",ScriptText!$E$1&CHAR(10)&ScriptText!$C$1)","v":""},{"$f":"IF(OrigTable!G356=\"\",\"\",ScriptText!$B$1&CHAR(10)&ScriptText!$D$1)","v":""},{"$f":"IF(OrigTable!G356=\"\",\"\",TEXT(OrigTable!G356,\"00\"))","v":""},{"$f":"IF(OrigTable!G356=\"\",\"\",ScriptText!$E$1&CHAR(10)&ScriptText!$C$1)","v":""},356]
["<tr>\n<td>214</td>\n</tr>\n\n<tr>\n<td>Annual Filing Requirement Reminder notice for Form 5500-EZ filers</td>\n</tr>\n<tr>\n<td>EPMF Notices</td>\n</tr>",{"$f":"IF(OrigTable!A357=\"\",\"\",ScriptText!$B$1&CHAR(10)&ScriptText!$D$1)","v":"<tr>\n<td>"},{"$f":"IF(OrigTable!A357=\"\",\"\",TEXT(OrigTable!A357,\"00\"))","v":"214"},{"$f":"IF(OrigTable!A357=\"\",\"\",ScriptText!$E$1&CHAR(10)&ScriptText!$C$1)","v":"</td>\n</tr>"},{"$f":"IF(OrigTable!B357=\"\",\"\",ScriptText!$B$1&CHAR(10)&ScriptText!$D$1)","v":""},{"$f":"IF(OrigTable!B357=\"\",\"\",TEXT(OrigTable!B357,\"00\"))","v":""},{"$f":"IF(OrigTable!B357=\"\",\"\",ScriptText!$E$1&CHAR(10)&ScriptText!C352)","v":""},{"$f":"IF(OrigTable!C357=\"\",\"\",ScriptText!$B$1&CHAR(10)&ScriptText!$D$1)","v":"<tr>\n<td>"},{"$f":"IF(OrigTable!C357=\"\",\"\",IF(LEN(OrigTable!C357)>255,LEFT(OrigTable!C357,250)&\". . .\",OrigTable!C357))","v":"Annual Filing Requirement Reminder notice for Form 5500-EZ filers"},{"$f":"IF(OrigTable!C357=\"\",\"\",ScriptText!$E$1&CHAR(10)&ScriptText!$C$1)","v":"</td>\n</tr>"},{"$f":"IF(OrigTable!D357=\"\",\"\",ScriptText!$B$1&CHAR(10)&ScriptText!$D$1)","v":"<tr>\n<td>"},{"$f":"IF(OrigTable!D357=\"\",\"\",TEXT(OrigTable!D357,\"00\"))","v":"EPMF Notices"},{"$f":"IF(OrigTable!D357=\"\",\"\",ScriptText!$E$1&CHAR(10)&ScriptText!$C$1)","v":"</td>\n</tr>"},{"$f":"IF(OrigTable!E357=\"\",\"\",ScriptText!$B$1&CHAR(10)&ScriptText!$D$1)","v":""},{"$f":"IF(OrigTable!E357=\"\",\"\",TEXT(OrigTable!E357,\"00\"))","v":""},{"$f":"IF(OrigTable!E357=\"\",\"\",ScriptText!$E$1&CHAR(10)&ScriptText!$C$1)","v":""},{"$f":"IF(OrigTable!F357=\"\",\"\",ScriptText!$B$1&CHAR(10)&ScriptText!$D$1)","v":""},{"$f":"IF(OrigTable!F357=\"\",\"\",TEXT(OrigTable!F357,\"00\"))","v":""},{"$f":"IF(OrigTable!F357=\"\",\"\",ScriptText!$E$1&CHAR(10)&ScriptText!$C$1)","v":""},{"$f":"IF(OrigTable!G357=\"\",\"\",ScriptText!$B$1&CHAR(10)&ScriptText!$D$1)","v":""},{"$f":"IF(OrigTable!G357=\"\",\"\",TEXT(OrigTable!G357,\"00\"))","v":""},{"$f":"IF(OrigTable!G357=\"\",\"\",ScriptText!$E$1&CHAR(10)&ScriptText!$C$1)","v":""},357]
["<tr>\n<td>216F</td>\n</tr>\n\n<tr>\n<td>Your Extension of Time to File was Approved to file Form 5500</td>\n</tr>\n<tr>\n<td>EPMF Notices</td>\n</tr>",{"$f":"IF(OrigTable!A358=\"\",\"\",ScriptText!$B$1&CHAR(10)&ScriptText!$D$1)","v":"<tr>\n<td>"},{"$f":"IF(OrigTable!A358=\"\",\"\",TEXT(OrigTable!A358,\"00\"))","v":"216F"},{"$f":"IF(OrigTable!A358=\"\",\"\",ScriptText!$E$1&CHAR(10)&ScriptText!$C$1)","v":"</td>\n</tr>"},{"$f":"IF(OrigTable!B358=\"\",\"\",ScriptText!$B$1&CHAR(10)&ScriptText!$D$1)","v":""},{"$f":"IF(OrigTable!B358=\"\",\"\",TEXT(OrigTable!B358,\"00\"))","v":""},{"$f":"IF(OrigTable!B358=\"\",\"\",ScriptText!$E$1&CHAR(10)&ScriptText!C353)","v":""},{"$f":"IF(OrigTable!C358=\"\",\"\",ScriptText!$B$1&CHAR(10)&ScriptText!$D$1)","v":"<tr>\n<td>"},{"$f":"IF(OrigTable!C358=\"\",\"\",IF(LEN(OrigTable!C358)>255,LEFT(OrigTable!C358,250)&\". . .\",OrigTable!C358))","v":"Your Extension of Time to File was Approved to file Form 5500"},{"$f":"IF(OrigTable!C358=\"\",\"\",ScriptText!$E$1&CHAR(10)&ScriptText!$C$1)","v":"</td>\n</tr>"},{"$f":"IF(OrigTable!D358=\"\",\"\",ScriptText!$B$1&CHAR(10)&ScriptText!$D$1)","v":"<tr>\n<td>"},{"$f":"IF(OrigTable!D358=\"\",\"\",TEXT(OrigTable!D358,\"00\"))","v":"EPMF Notices"},{"$f":"IF(OrigTable!D358=\"\",\"\",ScriptText!$E$1&CHAR(10)&ScriptText!$C$1)","v":"</td>\n</tr>"},{"$f":"IF(OrigTable!E358=\"\",\"\",ScriptText!$B$1&CHAR(10)&ScriptText!$D$1)","v":""},{"$f":"IF(OrigTable!E358=\"\",\"\",TEXT(OrigTable!E358,\"00\"))","v":""},{"$f":"IF(OrigTable!E358=\"\",\"\",ScriptText!$E$1&CHAR(10)&ScriptText!$C$1)","v":""},{"$f":"IF(OrigTable!F358=\"\",\"\",ScriptText!$B$1&CHAR(10)&ScriptText!$D$1)","v":""},{"$f":"IF(OrigTable!F358=\"\",\"\",TEXT(OrigTable!F358,\"00\"))","v":""},{"$f":"IF(OrigTable!F358=\"\",\"\",ScriptText!$E$1&CHAR(10)&ScriptText!$C$1)","v":""},{"$f":"IF(OrigTable!G358=\"\",\"\",ScriptText!$B$1&CHAR(10)&ScriptText!$D$1)","v":""},{"$f":"IF(OrigTable!G358=\"\",\"\",TEXT(OrigTable!G358,\"00\"))","v":""},{"$f":"IF(OrigTable!G358=\"\",\"\",ScriptText!$E$1&CHAR(10)&ScriptText!$C$1)","v":""},358]
["<tr>\n<td>216H</td>\n</tr>\n\n<tr>\n<td>Your Extension of Time to File Form 5500 was Denied, (not timely filed)</td>\n</tr>\n<tr>\n<td>EPMF Notices</td>\n</tr>",{"$f":"IF(OrigTable!A359=\"\",\"\",ScriptText!$B$1&CHAR(10)&ScriptText!$D$1)","v":"<tr>\n<td>"},{"$f":"IF(OrigTable!A359=\"\",\"\",TEXT(OrigTable!A359,\"00\"))","v":"216H"},{"$f":"IF(OrigTable!A359=\"\",\"\",ScriptText!$E$1&CHAR(10)&ScriptText!$C$1)","v":"</td>\n</tr>"},{"$f":"IF(OrigTable!B359=\"\",\"\",ScriptText!$B$1&CHAR(10)&ScriptText!$D$1)","v":""},{"$f":"IF(OrigTable!B359=\"\",\"\",TEXT(OrigTable!B359,\"00\"))","v":""},{"$f":"IF(OrigTable!B359=\"\",\"\",ScriptText!$E$1&CHAR(10)&ScriptText!C354)","v":""},{"$f":"IF(OrigTable!C359=\"\",\"\",ScriptText!$B$1&CHAR(10)&ScriptText!$D$1)","v":"<tr>\n<td>"},{"$f":"IF(OrigTable!C359=\"\",\"\",IF(LEN(OrigTable!C359)>255,LEFT(OrigTable!C359,250)&\". . .\",OrigTable!C359))","v":"Your Extension of Time to File Form 5500 was Denied, (not timely filed)"},{"$f":"IF(OrigTable!C359=\"\",\"\",ScriptText!$E$1&CHAR(10)&ScriptText!$C$1)","v":"</td>\n</tr>"},{"$f":"IF(OrigTable!D359=\"\",\"\",ScriptText!$B$1&CHAR(10)&ScriptText!$D$1)","v":"<tr>\n<td>"},{"$f":"IF(OrigTable!D359=\"\",\"\",TEXT(OrigTable!D359,\"00\"))","v":"EPMF Notices"},{"$f":"IF(OrigTable!D359=\"\",\"\",ScriptText!$E$1&CHAR(10)&ScriptText!$C$1)","v":"</td>\n</tr>"},{"$f":"IF(OrigTable!E359=\"\",\"\",ScriptText!$B$1&CHAR(10)&ScriptText!$D$1)","v":""},{"$f":"IF(OrigTable!E359=\"\",\"\",TEXT(OrigTable!E359,\"00\"))","v":""},{"$f":"IF(OrigTable!E359=\"\",\"\",ScriptText!$E$1&CHAR(10)&ScriptText!$C$1)","v":""},{"$f":"IF(OrigTable!F359=\"\",\"\",ScriptText!$B$1&CHAR(10)&ScriptText!$D$1)","v":""},{"$f":"IF(OrigTable!F359=\"\",\"\",TEXT(OrigTable!F359,\"00\"))","v":""},{"$f":"IF(OrigTable!F359=\"\",\"\",ScriptText!$E$1&CHAR(10)&ScriptText!$C$1)","v":""},{"$f":"IF(OrigTable!G359=\"\",\"\",ScriptText!$B$1&CHAR(10)&ScriptText!$D$1)","v":""},{"$f":"IF(OrigTable!G359=\"\",\"\",TEXT(OrigTable!G359,\"00\"))","v":""},{"$f":"IF(OrigTable!G359=\"\",\"\",ScriptText!$E$1&CHAR(10)&ScriptText!$C$1)","v":""},359]
["<tr>\n<td>232A</td>\n</tr>\n\n<tr>\n<td>From 5558 Extension Approved</td>\n</tr>\n<tr>\n<td>EPMF Notices</td>\n</tr>",{"$f":"IF(OrigTable!A360=\"\",\"\",ScriptText!$B$1&CHAR(10)&ScriptText!$D$1)","v":"<tr>\n<td>"},{"$f":"IF(OrigTable!A360=\"\",\"\",TEXT(OrigTable!A360,\"00\"))","v":"232A"},{"$f":"IF(OrigTable!A360=\"\",\"\",ScriptText!$E$1&CHAR(10)&ScriptText!$C$1)","v":"</td>\n</tr>"},{"$f":"IF(OrigTable!B360=\"\",\"\",ScriptText!$B$1&CHAR(10)&ScriptText!$D$1)","v":""},{"$f":"IF(OrigTable!B360=\"\",\"\",TEXT(OrigTable!B360,\"00\"))","v":""},{"$f":"IF(OrigTable!B360=\"\",\"\",ScriptText!$E$1&CHAR(10)&ScriptText!C355)","v":""},{"$f":"IF(OrigTable!C360=\"\",\"\",ScriptText!$B$1&CHAR(10)&ScriptText!$D$1)","v":"<tr>\n<td>"},{"$f":"IF(OrigTable!C360=\"\",\"\",IF(LEN(OrigTable!C360)>255,LEFT(OrigTable!C360,250)&\". . .\",OrigTable!C360))","v":"From 5558 Extension Approved"},{"$f":"IF(OrigTable!C360=\"\",\"\",ScriptText!$E$1&CHAR(10)&ScriptText!$C$1)","v":"</td>\n</tr>"},{"$f":"IF(OrigTable!D360=\"\",\"\",ScriptText!$B$1&CHAR(10)&ScriptText!$D$1)","v":"<tr>\n<td>"},{"$f":"IF(OrigTable!D360=\"\",\"\",TEXT(OrigTable!D360,\"00\"))","v":"EPMF Notices"},{"$f":"IF(OrigTable!D360=\"\",\"\",ScriptText!$E$1&CHAR(10)&ScriptText!$C$1)","v":"</td>\n</tr>"},{"$f":"IF(OrigTable!E360=\"\",\"\",ScriptText!$B$1&CHAR(10)&ScriptText!$D$1)","v":""},{"$f":"IF(OrigTable!E360=\"\",\"\",TEXT(OrigTable!E360,\"00\"))","v":""},{"$f":"IF(OrigTable!E360=\"\",\"\",ScriptText!$E$1&CHAR(10)&ScriptText!$C$1)","v":""},{"$f":"IF(OrigTable!F360=\"\",\"\",ScriptText!$B$1&CHAR(10)&ScriptText!$D$1)","v":""},{"$f":"IF(OrigTable!F360=\"\",\"\",TEXT(OrigTable!F360,\"00\"))","v":""},{"$f":"IF(OrigTable!F360=\"\",\"\",ScriptText!$E$1&CHAR(10)&ScriptText!$C$1)","v":""},{"$f":"IF(OrigTable!G360=\"\",\"\",ScriptText!$B$1&CHAR(10)&ScriptText!$D$1)","v":""},{"$f":"IF(OrigTable!G360=\"\",\"\",TEXT(OrigTable!G360,\"00\"))","v":""},{"$f":"IF(OrigTable!G360=\"\",\"\",ScriptText!$E$1&CHAR(10)&ScriptText!$C$1)","v":""},360]
["<tr>\n<td>232B</td>\n</tr>\n\n<tr>\n<td>From 5558 Extension Not Approved – Late filed</td>\n</tr>\n<tr>\n<td>EPMF Notices</td>\n</tr>",{"$f":"IF(OrigTable!A361=\"\",\"\",ScriptText!$B$1&CHAR(10)&ScriptText!$D$1)","v":"<tr>\n<td>"},{"$f":"IF(OrigTable!A361=\"\",\"\",TEXT(OrigTable!A361,\"00\"))","v":"232B"},{"$f":"IF(OrigTable!A361=\"\",\"\",ScriptText!$E$1&CHAR(10)&ScriptText!$C$1)","v":"</td>\n</tr>"},{"$f":"IF(OrigTable!B361=\"\",\"\",ScriptText!$B$1&CHAR(10)&ScriptText!$D$1)","v":""},{"$f":"IF(OrigTable!B361=\"\",\"\",TEXT(OrigTable!B361,\"00\"))","v":""},{"$f":"IF(OrigTable!B361=\"\",\"\",ScriptText!$E$1&CHAR(10)&ScriptText!C356)","v":""},{"$f":"IF(OrigTable!C361=\"\",\"\",ScriptText!$B$1&CHAR(10)&ScriptText!$D$1)","v":"<tr>\n<td>"},{"$f":"IF(OrigTable!C361=\"\",\"\",IF(LEN(OrigTable!C361)>255,LEFT(OrigTable!C361,250)&\". . .\",OrigTable!C361))","v":"From 5558 Extension Not Approved – Late filed"},{"$f":"IF(OrigTable!C361=\"\",\"\",ScriptText!$E$1&CHAR(10)&ScriptText!$C$1)","v":"</td>\n</tr>"},{"$f":"IF(OrigTable!D361=\"\",\"\",ScriptText!$B$1&CHAR(10)&ScriptText!$D$1)","v":"<tr>\n<td>"},{"$f":"IF(OrigTable!D361=\"\",\"\",TEXT(OrigTable!D361,\"00\"))","v":"EPMF Notices"},{"$f":"IF(OrigTable!D361=\"\",\"\",ScriptText!$E$1&CHAR(10)&ScriptText!$C$1)","v":"</td>\n</tr>"},{"$f":"IF(OrigTable!E361=\"\",\"\",ScriptText!$B$1&CHAR(10)&ScriptText!$D$1)","v":""},{"$f":"IF(OrigTable!E361=\"\",\"\",TEXT(OrigTable!E361,\"00\"))","v":""},{"$f":"IF(OrigTable!E361=\"\",\"\",ScriptText!$E$1&CHAR(10)&ScriptText!$C$1)","v":""},{"$f":"IF(OrigTable!F361=\"\",\"\",ScriptText!$B$1&CHAR(10)&ScriptText!$D$1)","v":""},{"$f":"IF(OrigTable!F361=\"\",\"\",TEXT(OrigTable!F361,\"00\"))","v":""},{"$f":"IF(OrigTable!F361=\"\",\"\",ScriptText!$E$1&CHAR(10)&ScriptText!$C$1)","v":""},{"$f":"IF(OrigTable!G361=\"\",\"\",ScriptText!$B$1&CHAR(10)&ScriptText!$D$1)","v":""},{"$f":"IF(OrigTable!G361=\"\",\"\",TEXT(OrigTable!G361,\"00\"))","v":""},{"$f":"IF(OrigTable!G361=\"\",\"\",ScriptText!$E$1&CHAR(10)&ScriptText!$C$1)","v":""},361]
["<tr>\n<td>232C</td>\n</tr>\n\n<tr>\n<td>From 5558 Extension Not Approved – Not Signed</td>\n</tr>\n<tr>\n<td>EPMF Notices</td>\n</tr>",{"$f":"IF(OrigTable!A362=\"\",\"\",ScriptText!$B$1&CHAR(10)&ScriptText!$D$1)","v":"<tr>\n<td>"},{"$f":"IF(OrigTable!A362=\"\",\"\",TEXT(OrigTable!A362,\"00\"))","v":"232C"},{"$f":"IF(OrigTable!A362=\"\",\"\",ScriptText!$E$1&CHAR(10)&ScriptText!$C$1)","v":"</td>\n</tr>"},{"$f":"IF(OrigTable!B362=\"\",\"\",ScriptText!$B$1&CHAR(10)&ScriptText!$D$1)","v":""},{"$f":"IF(OrigTable!B362=\"\",\"\",TEXT(OrigTable!B362,\"00\"))","v":""},{"$f":"IF(OrigTable!B362=\"\",\"\",ScriptText!$E$1&CHAR(10)&ScriptText!C357)","v":""},{"$f":"IF(OrigTable!C362=\"\",\"\",ScriptText!$B$1&CHAR(10)&ScriptText!$D$1)","v":"<tr>\n<td>"},{"$f":"IF(OrigTable!C362=\"\",\"\",IF(LEN(OrigTable!C362)>255,LEFT(OrigTable!C362,250)&\". . .\",OrigTable!C362))","v":"From 5558 Extension Not Approved – Not Signed"},{"$f":"IF(OrigTable!C362=\"\",\"\",ScriptText!$E$1&CHAR(10)&ScriptText!$C$1)","v":"</td>\n</tr>"},{"$f":"IF(OrigTable!D362=\"\",\"\",ScriptText!$B$1&CHAR(10)&ScriptText!$D$1)","v":"<tr>\n<td>"},{"$f":"IF(OrigTable!D362=\"\",\"\",TEXT(OrigTable!D362,\"00\"))","v":"EPMF Notices"},{"$f":"IF(OrigTable!D362=\"\",\"\",ScriptText!$E$1&CHAR(10)&ScriptText!$C$1)","v":"</td>\n</tr>"},{"$f":"IF(OrigTable!E362=\"\",\"\",ScriptText!$B$1&CHAR(10)&ScriptText!$D$1)","v":""},{"$f":"IF(OrigTable!E362=\"\",\"\",TEXT(OrigTable!E362,\"00\"))","v":""},{"$f":"IF(OrigTable!E362=\"\",\"\",ScriptText!$E$1&CHAR(10)&ScriptText!$C$1)","v":""},{"$f":"IF(OrigTable!F362=\"\",\"\",ScriptText!$B$1&CHAR(10)&ScriptText!$D$1)","v":""},{"$f":"IF(OrigTable!F362=\"\",\"\",TEXT(OrigTable!F362,\"00\"))","v":""},{"$f":"IF(OrigTable!F362=\"\",\"\",ScriptText!$E$1&CHAR(10)&ScriptText!$C$1)","v":""},{"$f":"IF(OrigTable!G362=\"\",\"\",ScriptText!$B$1&CHAR(10)&ScriptText!$D$1)","v":""},{"$f":"IF(OrigTable!G362=\"\",\"\",TEXT(OrigTable!G362,\"00\"))","v":""},{"$f":"IF(OrigTable!G362=\"\",\"\",ScriptText!$E$1&CHAR(10)&ScriptText!$C$1)","v":""},362]
["<tr>\n<td>232D</td>\n</tr>\n\n<tr>\n<td>From 5558 Extension Not Approved – Unacceptable Reason</td>\n</tr>\n<tr>\n<td>EPMF Notices</td>\n</tr>",{"$f":"IF(OrigTable!A363=\"\",\"\",ScriptText!$B$1&CHAR(10)&ScriptText!$D$1)","v":"<tr>\n<td>"},{"$f":"IF(OrigTable!A363=\"\",\"\",TEXT(OrigTable!A363,\"00\"))","v":"232D"},{"$f":"IF(OrigTable!A363=\"\",\"\",ScriptText!$E$1&CHAR(10)&ScriptText!$C$1)","v":"</td>\n</tr>"},{"$f":"IF(OrigTable!B363=\"\",\"\",ScriptText!$B$1&CHAR(10)&ScriptText!$D$1)","v":""},{"$f":"IF(OrigTable!B363=\"\",\"\",TEXT(OrigTable!B363,\"00\"))","v":""},{"$f":"IF(OrigTable!B363=\"\",\"\",ScriptText!$E$1&CHAR(10)&ScriptText!C358)","v":""},{"$f":"IF(OrigTable!C363=\"\",\"\",ScriptText!$B$1&CHAR(10)&ScriptText!$D$1)","v":"<tr>\n<td>"},{"$f":"IF(OrigTable!C363=\"\",\"\",IF(LEN(OrigTable!C363)>255,LEFT(OrigTable!C363,250)&\". . .\",OrigTable!C363))","v":"From 5558 Extension Not Approved – Unacceptable Reason"},{"$f":"IF(OrigTable!C363=\"\",\"\",ScriptText!$E$1&CHAR(10)&ScriptText!$C$1)","v":"</td>\n</tr>"},{"$f":"IF(OrigTable!D363=\"\",\"\",ScriptText!$B$1&CHAR(10)&ScriptText!$D$1)","v":"<tr>\n<td>"},{"$f":"IF(OrigTable!D363=\"\",\"\",TEXT(OrigTable!D363,\"00\"))","v":"EPMF Notices"},{"$f":"IF(OrigTable!D363=\"\",\"\",ScriptText!$E$1&CHAR(10)&ScriptText!$C$1)","v":"</td>\n</tr>"},{"$f":"IF(OrigTable!E363=\"\",\"\",ScriptText!$B$1&CHAR(10)&ScriptText!$D$1)","v":""},{"$f":"IF(OrigTable!E363=\"\",\"\",TEXT(OrigTable!E363,\"00\"))","v":""},{"$f":"IF(OrigTable!E363=\"\",\"\",ScriptText!$E$1&CHAR(10)&ScriptText!$C$1)","v":""},{"$f":"IF(OrigTable!F363=\"\",\"\",ScriptText!$B$1&CHAR(10)&ScriptText!$D$1)","v":""},{"$f":"IF(OrigTable!F363=\"\",\"\",TEXT(OrigTable!F363,\"00\"))","v":""},{"$f":"IF(OrigTable!F363=\"\",\"\",ScriptText!$E$1&CHAR(10)&ScriptText!$C$1)","v":""},{"$f":"IF(OrigTable!G363=\"\",\"\",ScriptText!$B$1&CHAR(10)&ScriptText!$D$1)","v":""},{"$f":"IF(OrigTable!G363=\"\",\"\",TEXT(OrigTable!G363,\"00\"))","v":""},{"$f":"IF(OrigTable!G363=\"\",\"\",ScriptText!$E$1&CHAR(10)&ScriptText!$C$1)","v":""},363]
["<tr>\n<td>283</td>\n</tr>\n\n<tr>\n<td>1 st Balance Due notice, MFT 74, Form 5500 series</td>\n</tr>\n<tr>\n<td>EPMF Notices</td>\n</tr>",{"$f":"IF(OrigTable!A364=\"\",\"\",ScriptText!$B$1&CHAR(10)&ScriptText!$D$1)","v":"<tr>\n<td>"},{"$f":"IF(OrigTable!A364=\"\",\"\",TEXT(OrigTable!A364,\"00\"))","v":"283"},{"$f":"IF(OrigTable!A364=\"\",\"\",ScriptText!$E$1&CHAR(10)&ScriptText!$C$1)","v":"</td>\n</tr>"},{"$f":"IF(OrigTable!B364=\"\",\"\",ScriptText!$B$1&CHAR(10)&ScriptText!$D$1)","v":""},{"$f":"IF(OrigTable!B364=\"\",\"\",TEXT(OrigTable!B364,\"00\"))","v":""},{"$f":"IF(OrigTable!B364=\"\",\"\",ScriptText!$E$1&CHAR(10)&ScriptText!C359)","v":""},{"$f":"IF(OrigTable!C364=\"\",\"\",ScriptText!$B$1&CHAR(10)&ScriptText!$D$1)","v":"<tr>\n<td>"},{"$f":"IF(OrigTable!C364=\"\",\"\",IF(LEN(OrigTable!C364)>255,LEFT(OrigTable!C364,250)&\". . .\",OrigTable!C364))","v":"1 st Balance Due notice, MFT 74, Form 5500 series"},{"$f":"IF(OrigTable!C364=\"\",\"\",ScriptText!$E$1&CHAR(10)&ScriptText!$C$1)","v":"</td>\n</tr>"},{"$f":"IF(OrigTable!D364=\"\",\"\",ScriptText!$B$1&CHAR(10)&ScriptText!$D$1)","v":"<tr>\n<td>"},{"$f":"IF(OrigTable!D364=\"\",\"\",TEXT(OrigTable!D364,\"00\"))","v":"EPMF Notices"},{"$f":"IF(OrigTable!D364=\"\",\"\",ScriptText!$E$1&CHAR(10)&ScriptText!$C$1)","v":"</td>\n</tr>"},{"$f":"IF(OrigTable!E364=\"\",\"\",ScriptText!$B$1&CHAR(10)&ScriptText!$D$1)","v":""},{"$f":"IF(OrigTable!E364=\"\",\"\",TEXT(OrigTable!E364,\"00\"))","v":""},{"$f":"IF(OrigTable!E364=\"\",\"\",ScriptText!$E$1&CHAR(10)&ScriptText!$C$1)","v":""},{"$f":"IF(OrigTable!F364=\"\",\"\",ScriptText!$B$1&CHAR(10)&ScriptText!$D$1)","v":""},{"$f":"IF(OrigTable!F364=\"\",\"\",TEXT(OrigTable!F364,\"00\"))","v":""},{"$f":"IF(OrigTable!F364=\"\",\"\",ScriptText!$E$1&CHAR(10)&ScriptText!$C$1)","v":""},{"$f":"IF(OrigTable!G364=\"\",\"\",ScriptText!$B$1&CHAR(10)&ScriptText!$D$1)","v":""},{"$f":"IF(OrigTable!G364=\"\",\"\",TEXT(OrigTable!G364,\"00\"))","v":""},{"$f":"IF(OrigTable!G364=\"\",\"\",ScriptText!$E$1&CHAR(10)&ScriptText!$C$1)","v":""},364]
["<tr>\n<td>283C</td>\n</tr>\n\n<tr>\n<td>1 st Balance Due notice, MFT 75, Form 8955-SSA</td>\n</tr>\n<tr>\n<td>EPMF Notices</td>\n</tr>",{"$f":"IF(OrigTable!A365=\"\",\"\",ScriptText!$B$1&CHAR(10)&ScriptText!$D$1)","v":"<tr>\n<td>"},{"$f":"IF(OrigTable!A365=\"\",\"\",TEXT(OrigTable!A365,\"00\"))","v":"283C"},{"$f":"IF(OrigTable!A365=\"\",\"\",ScriptText!$E$1&CHAR(10)&ScriptText!$C$1)","v":"</td>\n</tr>"},{"$f":"IF(OrigTable!B365=\"\",\"\",ScriptText!$B$1&CHAR(10)&ScriptText!$D$1)","v":""},{"$f":"IF(OrigTable!B365=\"\",\"\",TEXT(OrigTable!B365,\"00\"))","v":""},{"$f":"IF(OrigTable!B365=\"\",\"\",ScriptText!$E$1&CHAR(10)&ScriptText!C360)","v":""},{"$f":"IF(OrigTable!C365=\"\",\"\",ScriptText!$B$1&CHAR(10)&ScriptText!$D$1)","v":"<tr>\n<td>"},{"$f":"IF(OrigTable!C365=\"\",\"\",IF(LEN(OrigTable!C365)>255,LEFT(OrigTable!C365,250)&\". . .\",OrigTable!C365))","v":"1 st Balance Due notice, MFT 75, Form 8955-SSA"},{"$f":"IF(OrigTable!C365=\"\",\"\",ScriptText!$E$1&CHAR(10)&ScriptText!$C$1)","v":"</td>\n</tr>"},{"$f":"IF(OrigTable!D365=\"\",\"\",ScriptText!$B$1&CHAR(10)&ScriptText!$D$1)","v":"<tr>\n<td>"},{"$f":"IF(OrigTable!D365=\"\",\"\",TEXT(OrigTable!D365,\"00\"))","v":"EPMF Notices"},{"$f":"IF(OrigTable!D365=\"\",\"\",ScriptText!$E$1&CHAR(10)&ScriptText!$C$1)","v":"</td>\n</tr>"},{"$f":"IF(OrigTable!E365=\"\",\"\",ScriptText!$B$1&CHAR(10)&ScriptText!$D$1)","v":""},{"$f":"IF(OrigTable!E365=\"\",\"\",TEXT(OrigTable!E365,\"00\"))","v":""},{"$f":"IF(OrigTable!E365=\"\",\"\",ScriptText!$E$1&CHAR(10)&ScriptText!$C$1)","v":""},{"$f":"IF(OrigTable!F365=\"\",\"\",ScriptText!$B$1&CHAR(10)&ScriptText!$D$1)","v":""},{"$f":"IF(OrigTable!F365=\"\",\"\",TEXT(OrigTable!F365,\"00\"))","v":""},{"$f":"IF(OrigTable!F365=\"\",\"\",ScriptText!$E$1&CHAR(10)&ScriptText!$C$1)","v":""},{"$f":"IF(OrigTable!G365=\"\",\"\",ScriptText!$B$1&CHAR(10)&ScriptText!$D$1)","v":""},{"$f":"IF(OrigTable!G365=\"\",\"\",TEXT(OrigTable!G365,\"00\"))","v":""},{"$f":"IF(OrigTable!G365=\"\",\"\",ScriptText!$E$1&CHAR(10)&ScriptText!$C$1)","v":""},365]
["<tr>\n<td>295</td>\n</tr>\n\n<tr>\n<td>Annual Balance Due Reminder, MFT 74, Form 5500 series</td>\n</tr>\n<tr>\n<td>EPMF Notices</td>\n</tr>",{"$f":"IF(OrigTable!A366=\"\",\"\",ScriptText!$B$1&CHAR(10)&ScriptText!$D$1)","v":"<tr>\n<td>"},{"$f":"IF(OrigTable!A366=\"\",\"\",TEXT(OrigTable!A366,\"00\"))","v":"295"},{"$f":"IF(OrigTable!A366=\"\",\"\",ScriptText!$E$1&CHAR(10)&ScriptText!$C$1)","v":"</td>\n</tr>"},{"$f":"IF(OrigTable!B366=\"\",\"\",ScriptText!$B$1&CHAR(10)&ScriptText!$D$1)","v":""},{"$f":"IF(OrigTable!B366=\"\",\"\",TEXT(OrigTable!B366,\"00\"))","v":""},{"$f":"IF(OrigTable!B366=\"\",\"\",ScriptText!$E$1&CHAR(10)&ScriptText!C361)","v":""},{"$f":"IF(OrigTable!C366=\"\",\"\",ScriptText!$B$1&CHAR(10)&ScriptText!$D$1)","v":"<tr>\n<td>"},{"$f":"IF(OrigTable!C366=\"\",\"\",IF(LEN(OrigTable!C366)>255,LEFT(OrigTable!C366,250)&\". . .\",OrigTable!C366))","v":"Annual Balance Due Reminder, MFT 74, Form 5500 series"},{"$f":"IF(OrigTable!C366=\"\",\"\",ScriptText!$E$1&CHAR(10)&ScriptText!$C$1)","v":"</td>\n</tr>"},{"$f":"IF(OrigTable!D366=\"\",\"\",ScriptText!$B$1&CHAR(10)&ScriptText!$D$1)","v":"<tr>\n<td>"},{"$f":"IF(OrigTable!D366=\"\",\"\",TEXT(OrigTable!D366,\"00\"))","v":"EPMF Notices"},{"$f":"IF(OrigTable!D366=\"\",\"\",ScriptText!$E$1&CHAR(10)&ScriptText!$C$1)","v":"</td>\n</tr>"},{"$f":"IF(OrigTable!E366=\"\",\"\",ScriptText!$B$1&CHAR(10)&ScriptText!$D$1)","v":""},{"$f":"IF(OrigTable!E366=\"\",\"\",TEXT(OrigTable!E366,\"00\"))","v":""},{"$f":"IF(OrigTable!E366=\"\",\"\",ScriptText!$E$1&CHAR(10)&ScriptText!$C$1)","v":""},{"$f":"IF(OrigTable!F366=\"\",\"\",ScriptText!$B$1&CHAR(10)&ScriptText!$D$1)","v":""},{"$f":"IF(OrigTable!F366=\"\",\"\",TEXT(OrigTable!F366,\"00\"))","v":""},{"$f":"IF(OrigTable!F366=\"\",\"\",ScriptText!$E$1&CHAR(10)&ScriptText!$C$1)","v":""},{"$f":"IF(OrigTable!G366=\"\",\"\",ScriptText!$B$1&CHAR(10)&ScriptText!$D$1)","v":""},{"$f":"IF(OrigTable!G366=\"\",\"\",TEXT(OrigTable!G366,\"00\"))","v":""},{"$f":"IF(OrigTable!G366=\"\",\"\",ScriptText!$E$1&CHAR(10)&ScriptText!$C$1)","v":""},366]
["<tr>\n<td>295A</td>\n</tr>\n\n<tr>\n<td>Annual Balance Due Reminder, MFT 74, Form 5500 series. From NMF</td>\n</tr>\n<tr>\n<td>EPMF Notices</td>\n</tr>",{"$f":"IF(OrigTable!A367=\"\",\"\",ScriptText!$B$1&CHAR(10)&ScriptText!$D$1)","v":"<tr>\n<td>"},{"$f":"IF(OrigTable!A367=\"\",\"\",TEXT(OrigTable!A367,\"00\"))","v":"295A"},{"$f":"IF(OrigTable!A367=\"\",\"\",ScriptText!$E$1&CHAR(10)&ScriptText!$C$1)","v":"</td>\n</tr>"},{"$f":"IF(OrigTable!B367=\"\",\"\",ScriptText!$B$1&CHAR(10)&ScriptText!$D$1)","v":""},{"$f":"IF(OrigTable!B367=\"\",\"\",TEXT(OrigTable!B367,\"00\"))","v":""},{"$f":"IF(OrigTable!B367=\"\",\"\",ScriptText!$E$1&CHAR(10)&ScriptText!C362)","v":""},{"$f":"IF(OrigTable!C367=\"\",\"\",ScriptText!$B$1&CHAR(10)&ScriptText!$D$1)","v":"<tr>\n<td>"},{"$f":"IF(OrigTable!C367=\"\",\"\",IF(LEN(OrigTable!C367)>255,LEFT(OrigTable!C367,250)&\". . .\",OrigTable!C367))","v":"Annual Balance Due Reminder, MFT 74, Form 5500 series. From NMF"},{"$f":"IF(OrigTable!C367=\"\",\"\",ScriptText!$E$1&CHAR(10)&ScriptText!$C$1)","v":"</td>\n</tr>"},{"$f":"IF(OrigTable!D367=\"\",\"\",ScriptText!$B$1&CHAR(10)&ScriptText!$D$1)","v":"<tr>\n<td>"},{"$f":"IF(OrigTable!D367=\"\",\"\",TEXT(OrigTable!D367,\"00\"))","v":"EPMF Notices"},{"$f":"IF(OrigTable!D367=\"\",\"\",ScriptText!$E$1&CHAR(10)&ScriptText!$C$1)","v":"</td>\n</tr>"},{"$f":"IF(OrigTable!E367=\"\",\"\",ScriptText!$B$1&CHAR(10)&ScriptText!$D$1)","v":""},{"$f":"IF(OrigTable!E367=\"\",\"\",TEXT(OrigTable!E367,\"00\"))","v":""},{"$f":"IF(OrigTable!E367=\"\",\"\",ScriptText!$E$1&CHAR(10)&ScriptText!$C$1)","v":""},{"$f":"IF(OrigTable!F367=\"\",\"\",ScriptText!$B$1&CHAR(10)&ScriptText!$D$1)","v":""},{"$f":"IF(OrigTable!F367=\"\",\"\",TEXT(OrigTable!F367,\"00\"))","v":""},{"$f":"IF(OrigTable!F367=\"\",\"\",ScriptText!$E$1&CHAR(10)&ScriptText!$C$1)","v":""},{"$f":"IF(OrigTable!G367=\"\",\"\",ScriptText!$B$1&CHAR(10)&ScriptText!$D$1)","v":""},{"$f":"IF(OrigTable!G367=\"\",\"\",TEXT(OrigTable!G367,\"00\"))","v":""},{"$f":"IF(OrigTable!G367=\"\",\"\",ScriptText!$E$1&CHAR(10)&ScriptText!$C$1)","v":""},367]
["<tr>\n<td>403</td>\n</tr>\n\n<tr>\n<td>1 st Notice – EPMF Return Delinquency</td>\n</tr>\n<tr>\n<td>EPMF Notices</td>\n</tr>",{"$f":"IF(OrigTable!A368=\"\",\"\",ScriptText!$B$1&CHAR(10)&ScriptText!$D$1)","v":"<tr>\n<td>"},{"$f":"IF(OrigTable!A368=\"\",\"\",TEXT(OrigTable!A368,\"00\"))","v":"403"},{"$f":"IF(OrigTable!A368=\"\",\"\",ScriptText!$E$1&CHAR(10)&ScriptText!$C$1)","v":"</td>\n</tr>"},{"$f":"IF(OrigTable!B368=\"\",\"\",ScriptText!$B$1&CHAR(10)&ScriptText!$D$1)","v":""},{"$f":"IF(OrigTable!B368=\"\",\"\",TEXT(OrigTable!B368,\"00\"))","v":""},{"$f":"IF(OrigTable!B368=\"\",\"\",ScriptText!$E$1&CHAR(10)&ScriptText!C363)","v":""},{"$f":"IF(OrigTable!C368=\"\",\"\",ScriptText!$B$1&CHAR(10)&ScriptText!$D$1)","v":"<tr>\n<td>"},{"$f":"IF(OrigTable!C368=\"\",\"\",IF(LEN(OrigTable!C368)>255,LEFT(OrigTable!C368,250)&\". . .\",OrigTable!C368))","v":"1 st Notice – EPMF Return Delinquency"},{"$f":"IF(OrigTable!C368=\"\",\"\",ScriptText!$E$1&CHAR(10)&ScriptText!$C$1)","v":"</td>\n</tr>"},{"$f":"IF(OrigTable!D368=\"\",\"\",ScriptText!$B$1&CHAR(10)&ScriptText!$D$1)","v":"<tr>\n<td>"},{"$f":"IF(OrigTable!D368=\"\",\"\",TEXT(OrigTable!D368,\"00\"))","v":"EPMF Notices"},{"$f":"IF(OrigTable!D368=\"\",\"\",ScriptText!$E$1&CHAR(10)&ScriptText!$C$1)","v":"</td>\n</tr>"},{"$f":"IF(OrigTable!E368=\"\",\"\",ScriptText!$B$1&CHAR(10)&ScriptText!$D$1)","v":""},{"$f":"IF(OrigTable!E368=\"\",\"\",TEXT(OrigTable!E368,\"00\"))","v":""},{"$f":"IF(OrigTable!E368=\"\",\"\",ScriptText!$E$1&CHAR(10)&ScriptText!$C$1)","v":""},{"$f":"IF(OrigTable!F368=\"\",\"\",ScriptText!$B$1&CHAR(10)&ScriptText!$D$1)","v":""},{"$f":"IF(OrigTable!F368=\"\",\"\",TEXT(OrigTable!F368,\"00\"))","v":""},{"$f":"IF(OrigTable!F368=\"\",\"\",ScriptText!$E$1&CHAR(10)&ScriptText!$C$1)","v":""},{"$f":"IF(OrigTable!G368=\"\",\"\",ScriptText!$B$1&CHAR(10)&ScriptText!$D$1)","v":""},{"$f":"IF(OrigTable!G368=\"\",\"\",TEXT(OrigTable!G368,\"00\"))","v":""},{"$f":"IF(OrigTable!G368=\"\",\"\",ScriptText!$E$1&CHAR(10)&ScriptText!$C$1)","v":""},368]
["<tr>\n<td>406</td>\n</tr>\n\n<tr>\n<td>4 th Notice – EPMF Return Delinquency</td>\n</tr>\n<tr>\n<td>EPMF Notices</td>\n</tr>",{"$f":"IF(OrigTable!A369=\"\",\"\",ScriptText!$B$1&CHAR(10)&ScriptText!$D$1)","v":"<tr>\n<td>"},{"$f":"IF(OrigTable!A369=\"\",\"\",TEXT(OrigTable!A369,\"00\"))","v":"406"},{"$f":"IF(OrigTable!A369=\"\",\"\",ScriptText!$E$1&CHAR(10)&ScriptText!$C$1)","v":"</td>\n</tr>"},{"$f":"IF(OrigTable!B369=\"\",\"\",ScriptText!$B$1&CHAR(10)&ScriptText!$D$1)","v":""},{"$f":"IF(OrigTable!B369=\"\",\"\",TEXT(OrigTable!B369,\"00\"))","v":""},{"$f":"IF(OrigTable!B369=\"\",\"\",ScriptText!$E$1&CHAR(10)&ScriptText!C364)","v":""},{"$f":"IF(OrigTable!C369=\"\",\"\",ScriptText!$B$1&CHAR(10)&ScriptText!$D$1)","v":"<tr>\n<td>"},{"$f":"IF(OrigTable!C369=\"\",\"\",IF(LEN(OrigTable!C369)>255,LEFT(OrigTable!C369,250)&\". . .\",OrigTable!C369))","v":"4 th Notice – EPMF Return Delinquency"},{"$f":"IF(OrigTable!C369=\"\",\"\",ScriptText!$E$1&CHAR(10)&ScriptText!$C$1)","v":"</td>\n</tr>"},{"$f":"IF(OrigTable!D369=\"\",\"\",ScriptText!$B$1&CHAR(10)&ScriptText!$D$1)","v":"<tr>\n<td>"},{"$f":"IF(OrigTable!D369=\"\",\"\",TEXT(OrigTable!D369,\"00\"))","v":"EPMF Notices"},{"$f":"IF(OrigTable!D369=\"\",\"\",ScriptText!$E$1&CHAR(10)&ScriptText!$C$1)","v":"</td>\n</tr>"},{"$f":"IF(OrigTable!E369=\"\",\"\",ScriptText!$B$1&CHAR(10)&ScriptText!$D$1)","v":""},{"$f":"IF(OrigTable!E369=\"\",\"\",TEXT(OrigTable!E369,\"00\"))","v":""},{"$f":"IF(OrigTable!E369=\"\",\"\",ScriptText!$E$1&CHAR(10)&ScriptText!$C$1)","v":""},{"$f":"IF(OrigTable!F369=\"\",\"\",ScriptText!$B$1&CHAR(10)&ScriptText!$D$1)","v":""},{"$f":"IF(OrigTable!F369=\"\",\"\",TEXT(OrigTable!F369,\"00\"))","v":""},{"$f":"IF(OrigTable!F369=\"\",\"\",ScriptText!$E$1&CHAR(10)&ScriptText!$C$1)","v":""},{"$f":"IF(OrigTable!G369=\"\",\"\",ScriptText!$B$1&CHAR(10)&ScriptText!$D$1)","v":""},{"$f":"IF(OrigTable!G369=\"\",\"\",TEXT(OrigTable!G369,\"00\"))","v":""},{"$f":"IF(OrigTable!G369=\"\",\"\",ScriptText!$E$1&CHAR(10)&ScriptText!$C$1)","v":""},369]
["<tr>\n<td>580A</td>\n</tr>\n\n<tr>\n<td>Notification of EIN assigned to taxpayer whose EIN was assigned from\nForm 5500 series return</td>\n</tr>\n<tr>\n<td>EPMF Notices</td>\n</tr>",{"$f":"IF(OrigTable!A370=\"\",\"\",ScriptText!$B$1&CHAR(10)&ScriptText!$D$1)","v":"<tr>\n<td>"},{"$f":"IF(OrigTable!A370=\"\",\"\",TEXT(OrigTable!A370,\"00\"))","v":"580A"},{"$f":"IF(OrigTable!A370=\"\",\"\",ScriptText!$E$1&CHAR(10)&ScriptText!$C$1)","v":"</td>\n</tr>"},{"$f":"IF(OrigTable!B370=\"\",\"\",ScriptText!$B$1&CHAR(10)&ScriptText!$D$1)","v":""},{"$f":"IF(OrigTable!B370=\"\",\"\",TEXT(OrigTable!B370,\"00\"))","v":""},{"$f":"IF(OrigTable!B370=\"\",\"\",ScriptText!$E$1&CHAR(10)&ScriptText!C365)","v":""},{"$f":"IF(OrigTable!C370=\"\",\"\",ScriptText!$B$1&CHAR(10)&ScriptText!$D$1)","v":"<tr>\n<td>"},{"$f":"IF(OrigTable!C370=\"\",\"\",IF(LEN(OrigTable!C370)>255,LEFT(OrigTable!C370,250)&\". . .\",OrigTable!C370))","v":"Notification of EIN assigned to taxpayer whose EIN was assigned from\nForm 5500 series return"},{"$f":"IF(OrigTable!C370=\"\",\"\",ScriptText!$E$1&CHAR(10)&ScriptText!$C$1)","v":"</td>\n</tr>"},{"$f":"IF(OrigTable!D370=\"\",\"\",ScriptText!$B$1&CHAR(10)&ScriptText!$D$1)","v":"<tr>\n<td>"},{"$f":"IF(OrigTable!D370=\"\",\"\",TEXT(OrigTable!D370,\"00\"))","v":"EPMF Notices"},{"$f":"IF(OrigTable!D370=\"\",\"\",ScriptText!$E$1&CHAR(10)&ScriptText!$C$1)","v":"</td>\n</tr>"},{"$f":"IF(OrigTable!E370=\"\",\"\",ScriptText!$B$1&CHAR(10)&ScriptText!$D$1)","v":""},{"$f":"IF(OrigTable!E370=\"\",\"\",TEXT(OrigTable!E370,\"00\"))","v":""},{"$f":"IF(OrigTable!E370=\"\",\"\",ScriptText!$E$1&CHAR(10)&ScriptText!$C$1)","v":""},{"$f":"IF(OrigTable!F370=\"\",\"\",ScriptText!$B$1&CHAR(10)&ScriptText!$D$1)","v":""},{"$f":"IF(OrigTable!F370=\"\",\"\",TEXT(OrigTable!F370,\"00\"))","v":""},{"$f":"IF(OrigTable!F370=\"\",\"\",ScriptText!$E$1&CHAR(10)&ScriptText!$C$1)","v":""},{"$f":"IF(OrigTable!G370=\"\",\"\",ScriptText!$B$1&CHAR(10)&ScriptText!$D$1)","v":""},{"$f":"IF(OrigTable!G370=\"\",\"\",TEXT(OrigTable!G370,\"00\"))","v":""},{"$f":"IF(OrigTable!G370=\"\",\"\",ScriptText!$E$1&CHAR(10)&ScriptText!$C$1)","v":""},370]
["<tr>\n<td>580B</td>\n</tr>\n\n<tr>\n<td>Notification of EIN assigned to taxpayer whose EIN was assigned from\nForm 5500 series return</td>\n</tr>\n<tr>\n<td>EPMF Notices</td>\n</tr>",{"$f":"IF(OrigTable!A371=\"\",\"\",ScriptText!$B$1&CHAR(10)&ScriptText!$D$1)","v":"<tr>\n<td>"},{"$f":"IF(OrigTable!A371=\"\",\"\",TEXT(OrigTable!A371,\"00\"))","v":"580B"},{"$f":"IF(OrigTable!A371=\"\",\"\",ScriptText!$E$1&CHAR(10)&ScriptText!$C$1)","v":"</td>\n</tr>"},{"$f":"IF(OrigTable!B371=\"\",\"\",ScriptText!$B$1&CHAR(10)&ScriptText!$D$1)","v":""},{"$f":"IF(OrigTable!B371=\"\",\"\",TEXT(OrigTable!B371,\"00\"))","v":""},{"$f":"IF(OrigTable!B371=\"\",\"\",ScriptText!$E$1&CHAR(10)&ScriptText!C366)","v":""},{"$f":"IF(OrigTable!C371=\"\",\"\",ScriptText!$B$1&CHAR(10)&ScriptText!$D$1)","v":"<tr>\n<td>"},{"$f":"IF(OrigTable!C371=\"\",\"\",IF(LEN(OrigTable!C371)>255,LEFT(OrigTable!C371,250)&\". . .\",OrigTable!C371))","v":"Notification of EIN assigned to taxpayer whose EIN was assigned from\nForm 5500 series return"},{"$f":"IF(OrigTable!C371=\"\",\"\",ScriptText!$E$1&CHAR(10)&ScriptText!$C$1)","v":"</td>\n</tr>"},{"$f":"IF(OrigTable!D371=\"\",\"\",ScriptText!$B$1&CHAR(10)&ScriptText!$D$1)","v":"<tr>\n<td>"},{"$f":"IF(OrigTable!D371=\"\",\"\",TEXT(OrigTable!D371,\"00\"))","v":"EPMF Notices"},{"$f":"IF(OrigTable!D371=\"\",\"\",ScriptText!$E$1&CHAR(10)&ScriptText!$C$1)","v":"</td>\n</tr>"},{"$f":"IF(OrigTable!E371=\"\",\"\",ScriptText!$B$1&CHAR(10)&ScriptText!$D$1)","v":""},{"$f":"IF(OrigTable!E371=\"\",\"\",TEXT(OrigTable!E371,\"00\"))","v":""},{"$f":"IF(OrigTable!E371=\"\",\"\",ScriptText!$E$1&CHAR(10)&ScriptText!$C$1)","v":""},{"$f":"IF(OrigTable!F371=\"\",\"\",ScriptText!$B$1&CHAR(10)&ScriptText!$D$1)","v":""},{"$f":"IF(OrigTable!F371=\"\",\"\",TEXT(OrigTable!F371,\"00\"))","v":""},{"$f":"IF(OrigTable!F371=\"\",\"\",ScriptText!$E$1&CHAR(10)&ScriptText!$C$1)","v":""},{"$f":"IF(OrigTable!G371=\"\",\"\",ScriptText!$B$1&CHAR(10)&ScriptText!$D$1)","v":""},{"$f":"IF(OrigTable!G371=\"\",\"\",TEXT(OrigTable!G371,\"00\"))","v":""},{"$f":"IF(OrigTable!G371=\"\",\"\",ScriptText!$E$1&CHAR(10)&ScriptText!$C$1)","v":""},371]
["<tr>\n<td>581</td>\n</tr>\n\n<tr>\n<td>Notification of EIN assigned to taxpayer whose EIN was assigned from a 5500 series return</td>\n</tr>\n<tr>\n<td>EPMF Notices</td>\n</tr>",{"$f":"IF(OrigTable!A372=\"\",\"\",ScriptText!$B$1&CHAR(10)&ScriptText!$D$1)","v":"<tr>\n<td>"},{"$f":"IF(OrigTable!A372=\"\",\"\",TEXT(OrigTable!A372,\"00\"))","v":"581"},{"$f":"IF(OrigTable!A372=\"\",\"\",ScriptText!$E$1&CHAR(10)&ScriptText!$C$1)","v":"</td>\n</tr>"},{"$f":"IF(OrigTable!B372=\"\",\"\",ScriptText!$B$1&CHAR(10)&ScriptText!$D$1)","v":""},{"$f":"IF(OrigTable!B372=\"\",\"\",TEXT(OrigTable!B372,\"00\"))","v":""},{"$f":"IF(OrigTable!B372=\"\",\"\",ScriptText!$E$1&CHAR(10)&ScriptText!C367)","v":""},{"$f":"IF(OrigTable!C372=\"\",\"\",ScriptText!$B$1&CHAR(10)&ScriptText!$D$1)","v":"<tr>\n<td>"},{"$f":"IF(OrigTable!C372=\"\",\"\",IF(LEN(OrigTable!C372)>255,LEFT(OrigTable!C372,250)&\". . .\",OrigTable!C372))","v":"Notification of EIN assigned to taxpayer whose EIN was assigned from a 5500 series return"},{"$f":"IF(OrigTable!C372=\"\",\"\",ScriptText!$E$1&CHAR(10)&ScriptText!$C$1)","v":"</td>\n</tr>"},{"$f":"IF(OrigTable!D372=\"\",\"\",ScriptText!$B$1&CHAR(10)&ScriptText!$D$1)","v":"<tr>\n<td>"},{"$f":"IF(OrigTable!D372=\"\",\"\",TEXT(OrigTable!D372,\"00\"))","v":"EPMF Notices"},{"$f":"IF(OrigTable!D372=\"\",\"\",ScriptText!$E$1&CHAR(10)&ScriptText!$C$1)","v":"</td>\n</tr>"},{"$f":"IF(OrigTable!E372=\"\",\"\",ScriptText!$B$1&CHAR(10)&ScriptText!$D$1)","v":""},{"$f":"IF(OrigTable!E372=\"\",\"\",TEXT(OrigTable!E372,\"00\"))","v":""},{"$f":"IF(OrigTable!E372=\"\",\"\",ScriptText!$E$1&CHAR(10)&ScriptText!$C$1)","v":""},{"$f":"IF(OrigTable!F372=\"\",\"\",ScriptText!$B$1&CHAR(10)&ScriptText!$D$1)","v":""},{"$f":"IF(OrigTable!F372=\"\",\"\",TEXT(OrigTable!F372,\"00\"))","v":""},{"$f":"IF(OrigTable!F372=\"\",\"\",ScriptText!$E$1&CHAR(10)&ScriptText!$C$1)","v":""},{"$f":"IF(OrigTable!G372=\"\",\"\",ScriptText!$B$1&CHAR(10)&ScriptText!$D$1)","v":""},{"$f":"IF(OrigTable!G372=\"\",\"\",TEXT(OrigTable!G372,\"00\"))","v":""},{"$f":"IF(OrigTable!G372=\"\",\"\",ScriptText!$E$1&CHAR(10)&ScriptText!$C$1)","v":""},372]
["<tr>\n<td>582A</td>\n</tr>\n\n<tr>\n<td>Notification of EIN assigned to the administrator from Form SS-4 or Tele- TIN</td>\n</tr>\n<tr>\n<td>EPMF Notices</td>\n</tr>",{"$f":"IF(OrigTable!A373=\"\",\"\",ScriptText!$B$1&CHAR(10)&ScriptText!$D$1)","v":"<tr>\n<td>"},{"$f":"IF(OrigTable!A373=\"\",\"\",TEXT(OrigTable!A373,\"00\"))","v":"582A"},{"$f":"IF(OrigTable!A373=\"\",\"\",ScriptText!$E$1&CHAR(10)&ScriptText!$C$1)","v":"</td>\n</tr>"},{"$f":"IF(OrigTable!B373=\"\",\"\",ScriptText!$B$1&CHAR(10)&ScriptText!$D$1)","v":""},{"$f":"IF(OrigTable!B373=\"\",\"\",TEXT(OrigTable!B373,\"00\"))","v":""},{"$f":"IF(OrigTable!B373=\"\",\"\",ScriptText!$E$1&CHAR(10)&ScriptText!C368)","v":""},{"$f":"IF(OrigTable!C373=\"\",\"\",ScriptText!$B$1&CHAR(10)&ScriptText!$D$1)","v":"<tr>\n<td>"},{"$f":"IF(OrigTable!C373=\"\",\"\",IF(LEN(OrigTable!C373)>255,LEFT(OrigTable!C373,250)&\". . .\",OrigTable!C373))","v":"Notification of EIN assigned to the administrator from Form SS-4 or Tele- TIN"},{"$f":"IF(OrigTable!C373=\"\",\"\",ScriptText!$E$1&CHAR(10)&ScriptText!$C$1)","v":"</td>\n</tr>"},{"$f":"IF(OrigTable!D373=\"\",\"\",ScriptText!$B$1&CHAR(10)&ScriptText!$D$1)","v":"<tr>\n<td>"},{"$f":"IF(OrigTable!D373=\"\",\"\",TEXT(OrigTable!D373,\"00\"))","v":"EPMF Notices"},{"$f":"IF(OrigTable!D373=\"\",\"\",ScriptText!$E$1&CHAR(10)&ScriptText!$C$1)","v":"</td>\n</tr>"},{"$f":"IF(OrigTable!E373=\"\",\"\",ScriptText!$B$1&CHAR(10)&ScriptText!$D$1)","v":""},{"$f":"IF(OrigTable!E373=\"\",\"\",TEXT(OrigTable!E373,\"00\"))","v":""},{"$f":"IF(OrigTable!E373=\"\",\"\",ScriptText!$E$1&CHAR(10)&ScriptText!$C$1)","v":""},{"$f":"IF(OrigTable!F373=\"\",\"\",ScriptText!$B$1&CHAR(10)&ScriptText!$D$1)","v":""},{"$f":"IF(OrigTable!F373=\"\",\"\",TEXT(OrigTable!F373,\"00\"))","v":""},{"$f":"IF(OrigTable!F373=\"\",\"\",ScriptText!$E$1&CHAR(10)&ScriptText!$C$1)","v":""},{"$f":"IF(OrigTable!G373=\"\",\"\",ScriptText!$B$1&CHAR(10)&ScriptText!$D$1)","v":""},{"$f":"IF(OrigTable!G373=\"\",\"\",TEXT(OrigTable!G373,\"00\"))","v":""},{"$f":"IF(OrigTable!G373=\"\",\"\",ScriptText!$E$1&CHAR(10)&ScriptText!$C$1)","v":""},373]
["<tr>\n<td>582B</td>\n</tr>\n\n<tr>\n<td>Notification of EIN assignment to Plan Administrator</td>\n</tr>\n<tr>\n<td>EPMF Notices</td>\n</tr>",{"$f":"IF(OrigTable!A374=\"\",\"\",ScriptText!$B$1&CHAR(10)&ScriptText!$D$1)","v":"<tr>\n<td>"},{"$f":"IF(OrigTable!A374=\"\",\"\",TEXT(OrigTable!A374,\"00\"))","v":"582B"},{"$f":"IF(OrigTable!A374=\"\",\"\",ScriptText!$E$1&CHAR(10)&ScriptText!$C$1)","v":"</td>\n</tr>"},{"$f":"IF(OrigTable!B374=\"\",\"\",ScriptText!$B$1&CHAR(10)&ScriptText!$D$1)","v":""},{"$f":"IF(OrigTable!B374=\"\",\"\",TEXT(OrigTable!B374,\"00\"))","v":""},{"$f":"IF(OrigTable!B374=\"\",\"\",ScriptText!$E$1&CHAR(10)&ScriptText!C369)","v":""},{"$f":"IF(OrigTable!C374=\"\",\"\",ScriptText!$B$1&CHAR(10)&ScriptText!$D$1)","v":"<tr>\n<td>"},{"$f":"IF(OrigTable!C374=\"\",\"\",IF(LEN(OrigTable!C374)>255,LEFT(OrigTable!C374,250)&\". . .\",OrigTable!C374))","v":"Notification of EIN assignment to Plan Administrator"},{"$f":"IF(OrigTable!C374=\"\",\"\",ScriptText!$E$1&CHAR(10)&ScriptText!$C$1)","v":"</td>\n</tr>"},{"$f":"IF(OrigTable!D374=\"\",\"\",ScriptText!$B$1&CHAR(10)&ScriptText!$D$1)","v":"<tr>\n<td>"},{"$f":"IF(OrigTable!D374=\"\",\"\",TEXT(OrigTable!D374,\"00\"))","v":"EPMF Notices"},{"$f":"IF(OrigTable!D374=\"\",\"\",ScriptText!$E$1&CHAR(10)&ScriptText!$C$1)","v":"</td>\n</tr>"},{"$f":"IF(OrigTable!E374=\"\",\"\",ScriptText!$B$1&CHAR(10)&ScriptText!$D$1)","v":""},{"$f":"IF(OrigTable!E374=\"\",\"\",TEXT(OrigTable!E374,\"00\"))","v":""},{"$f":"IF(OrigTable!E374=\"\",\"\",ScriptText!$E$1&CHAR(10)&ScriptText!$C$1)","v":""},{"$f":"IF(OrigTable!F374=\"\",\"\",ScriptText!$B$1&CHAR(10)&ScriptText!$D$1)","v":""},{"$f":"IF(OrigTable!F374=\"\",\"\",TEXT(OrigTable!F374,\"00\"))","v":""},{"$f":"IF(OrigTable!F374=\"\",\"\",ScriptText!$E$1&CHAR(10)&ScriptText!$C$1)","v":""},{"$f":"IF(OrigTable!G374=\"\",\"\",ScriptText!$B$1&CHAR(10)&ScriptText!$D$1)","v":""},{"$f":"IF(OrigTable!G374=\"\",\"\",TEXT(OrigTable!G374,\"00\"))","v":""},{"$f":"IF(OrigTable!G374=\"\",\"\",ScriptText!$E$1&CHAR(10)&ScriptText!$C$1)","v":""},374]
["<tr>\n<td>583A</td>\n</tr>\n\n<tr>\n<td>Notice of EIN assigned to an employee benefit trust</td>\n</tr>\n<tr>\n<td>EPMF Notices</td>\n</tr>",{"$f":"IF(OrigTable!A375=\"\",\"\",ScriptText!$B$1&CHAR(10)&ScriptText!$D$1)","v":"<tr>\n<td>"},{"$f":"IF(OrigTable!A375=\"\",\"\",TEXT(OrigTable!A375,\"00\"))","v":"583A"},{"$f":"IF(OrigTable!A375=\"\",\"\",ScriptText!$E$1&CHAR(10)&ScriptText!$C$1)","v":"</td>\n</tr>"},{"$f":"IF(OrigTable!B375=\"\",\"\",ScriptText!$B$1&CHAR(10)&ScriptText!$D$1)","v":""},{"$f":"IF(OrigTable!B375=\"\",\"\",TEXT(OrigTable!B375,\"00\"))","v":""},{"$f":"IF(OrigTable!B375=\"\",\"\",ScriptText!$E$1&CHAR(10)&ScriptText!C370)","v":""},{"$f":"IF(OrigTable!C375=\"\",\"\",ScriptText!$B$1&CHAR(10)&ScriptText!$D$1)","v":"<tr>\n<td>"},{"$f":"IF(OrigTable!C375=\"\",\"\",IF(LEN(OrigTable!C375)>255,LEFT(OrigTable!C375,250)&\". . .\",OrigTable!C375))","v":"Notice of EIN assigned to an employee benefit trust"},{"$f":"IF(OrigTable!C375=\"\",\"\",ScriptText!$E$1&CHAR(10)&ScriptText!$C$1)","v":"</td>\n</tr>"},{"$f":"IF(OrigTable!D375=\"\",\"\",ScriptText!$B$1&CHAR(10)&ScriptText!$D$1)","v":"<tr>\n<td>"},{"$f":"IF(OrigTable!D375=\"\",\"\",TEXT(OrigTable!D375,\"00\"))","v":"EPMF Notices"},{"$f":"IF(OrigTable!D375=\"\",\"\",ScriptText!$E$1&CHAR(10)&ScriptText!$C$1)","v":"</td>\n</tr>"},{"$f":"IF(OrigTable!E375=\"\",\"\",ScriptText!$B$1&CHAR(10)&ScriptText!$D$1)","v":""},{"$f":"IF(OrigTable!E375=\"\",\"\",TEXT(OrigTable!E375,\"00\"))","v":""},{"$f":"IF(OrigTable!E375=\"\",\"\",ScriptText!$E$1&CHAR(10)&ScriptText!$C$1)","v":""},{"$f":"IF(OrigTable!F375=\"\",\"\",ScriptText!$B$1&CHAR(10)&ScriptText!$D$1)","v":""},{"$f":"IF(OrigTable!F375=\"\",\"\",TEXT(OrigTable!F375,\"00\"))","v":""},{"$f":"IF(OrigTable!F375=\"\",\"\",ScriptText!$E$1&CHAR(10)&ScriptText!$C$1)","v":""},{"$f":"IF(OrigTable!G375=\"\",\"\",ScriptText!$B$1&CHAR(10)&ScriptText!$D$1)","v":""},{"$f":"IF(OrigTable!G375=\"\",\"\",TEXT(OrigTable!G375,\"00\"))","v":""},{"$f":"IF(OrigTable!G375=\"\",\"\",ScriptText!$E$1&CHAR(10)&ScriptText!$C$1)","v":""},375]
["<tr>\n<td>583B</td>\n</tr>\n\n<tr>\n<td>Notice of EIN assigned to an employee benefit trust</td>\n</tr>\n<tr>\n<td>EPMF Notices</td>\n</tr>",{"$f":"IF(OrigTable!A376=\"\",\"\",ScriptText!$B$1&CHAR(10)&ScriptText!$D$1)","v":"<tr>\n<td>"},{"$f":"IF(OrigTable!A376=\"\",\"\",TEXT(OrigTable!A376,\"00\"))","v":"583B"},{"$f":"IF(OrigTable!A376=\"\",\"\",ScriptText!$E$1&CHAR(10)&ScriptText!$C$1)","v":"</td>\n</tr>"},{"$f":"IF(OrigTable!B376=\"\",\"\",ScriptText!$B$1&CHAR(10)&ScriptText!$D$1)","v":""},{"$f":"IF(OrigTable!B376=\"\",\"\",TEXT(OrigTable!B376,\"00\"))","v":""},{"$f":"IF(OrigTable!B376=\"\",\"\",ScriptText!$E$1&CHAR(10)&ScriptText!C371)","v":""},{"$f":"IF(OrigTable!C376=\"\",\"\",ScriptText!$B$1&CHAR(10)&ScriptText!$D$1)","v":"<tr>\n<td>"},{"$f":"IF(OrigTable!C376=\"\",\"\",IF(LEN(OrigTable!C376)>255,LEFT(OrigTable!C376,250)&\". . .\",OrigTable!C376))","v":"Notice of EIN assigned to an employee benefit trust"},{"$f":"IF(OrigTable!C376=\"\",\"\",ScriptText!$E$1&CHAR(10)&ScriptText!$C$1)","v":"</td>\n</tr>"},{"$f":"IF(OrigTable!D376=\"\",\"\",ScriptText!$B$1&CHAR(10)&ScriptText!$D$1)","v":"<tr>\n<td>"},{"$f":"IF(OrigTable!D376=\"\",\"\",TEXT(OrigTable!D376,\"00\"))","v":"EPMF Notices"},{"$f":"IF(OrigTable!D376=\"\",\"\",ScriptText!$E$1&CHAR(10)&ScriptText!$C$1)","v":"</td>\n</tr>"},{"$f":"IF(OrigTable!E376=\"\",\"\",ScriptText!$B$1&CHAR(10)&ScriptText!$D$1)","v":""},{"$f":"IF(OrigTable!E376=\"\",\"\",TEXT(OrigTable!E376,\"00\"))","v":""},{"$f":"IF(OrigTable!E376=\"\",\"\",ScriptText!$E$1&CHAR(10)&ScriptText!$C$1)","v":""},{"$f":"IF(OrigTable!F376=\"\",\"\",ScriptText!$B$1&CHAR(10)&ScriptText!$D$1)","v":""},{"$f":"IF(OrigTable!F376=\"\",\"\",TEXT(OrigTable!F376,\"00\"))","v":""},{"$f":"IF(OrigTable!F376=\"\",\"\",ScriptText!$E$1&CHAR(10)&ScriptText!$C$1)","v":""},{"$f":"IF(OrigTable!G376=\"\",\"\",ScriptText!$B$1&CHAR(10)&ScriptText!$D$1)","v":""},{"$f":"IF(OrigTable!G376=\"\",\"\",TEXT(OrigTable!G376,\"00\"))","v":""},{"$f":"IF(OrigTable!G376=\"\",\"\",ScriptText!$E$1&CHAR(10)&ScriptText!$C$1)","v":""},376]
["<tr>\n<td>584</td>\n</tr>\n\n<tr>\n<td>Notice of EIN assigned to the administrator from a 5500 series return</td>\n</tr>\n<tr>\n<td>EPMF Notices</td>\n</tr>",{"$f":"IF(OrigTable!A377=\"\",\"\",ScriptText!$B$1&CHAR(10)&ScriptText!$D$1)","v":"<tr>\n<td>"},{"$f":"IF(OrigTable!A377=\"\",\"\",TEXT(OrigTable!A377,\"00\"))","v":"584"},{"$f":"IF(OrigTable!A377=\"\",\"\",ScriptText!$E$1&CHAR(10)&ScriptText!$C$1)","v":"</td>\n</tr>"},{"$f":"IF(OrigTable!B377=\"\",\"\",ScriptText!$B$1&CHAR(10)&ScriptText!$D$1)","v":""},{"$f":"IF(OrigTable!B377=\"\",\"\",TEXT(OrigTable!B377,\"00\"))","v":""},{"$f":"IF(OrigTable!B377=\"\",\"\",ScriptText!$E$1&CHAR(10)&ScriptText!C372)","v":""},{"$f":"IF(OrigTable!C377=\"\",\"\",ScriptText!$B$1&CHAR(10)&ScriptText!$D$1)","v":"<tr>\n<td>"},{"$f":"IF(OrigTable!C377=\"\",\"\",IF(LEN(OrigTable!C377)>255,LEFT(OrigTable!C377,250)&\". . .\",OrigTable!C377))","v":"Notice of EIN assigned to the administrator from a 5500 series return"},{"$f":"IF(OrigTable!C377=\"\",\"\",ScriptText!$E$1&CHAR(10)&ScriptText!$C$1)","v":"</td>\n</tr>"},{"$f":"IF(OrigTable!D377=\"\",\"\",ScriptText!$B$1&CHAR(10)&ScriptText!$D$1)","v":"<tr>\n<td>"},{"$f":"IF(OrigTable!D377=\"\",\"\",TEXT(OrigTable!D377,\"00\"))","v":"EPMF Notices"},{"$f":"IF(OrigTable!D377=\"\",\"\",ScriptText!$E$1&CHAR(10)&ScriptText!$C$1)","v":"</td>\n</tr>"},{"$f":"IF(OrigTable!E377=\"\",\"\",ScriptText!$B$1&CHAR(10)&ScriptText!$D$1)","v":""},{"$f":"IF(OrigTable!E377=\"\",\"\",TEXT(OrigTable!E377,\"00\"))","v":""},{"$f":"IF(OrigTable!E377=\"\",\"\",ScriptText!$E$1&CHAR(10)&ScriptText!$C$1)","v":""},{"$f":"IF(OrigTable!F377=\"\",\"\",ScriptText!$B$1&CHAR(10)&ScriptText!$D$1)","v":""},{"$f":"IF(OrigTable!F377=\"\",\"\",TEXT(OrigTable!F377,\"00\"))","v":""},{"$f":"IF(OrigTable!F377=\"\",\"\",ScriptText!$E$1&CHAR(10)&ScriptText!$C$1)","v":""},{"$f":"IF(OrigTable!G377=\"\",\"\",ScriptText!$B$1&CHAR(10)&ScriptText!$D$1)","v":""},{"$f":"IF(OrigTable!G377=\"\",\"\",TEXT(OrigTable!G377,\"00\"))","v":""},{"$f":"IF(OrigTable!G377=\"\",\"\",ScriptText!$E$1&CHAR(10)&ScriptText!$C$1)","v":""},377]
["<tr>\n<td>587</td>\n</tr>\n\n<tr>\n<td>Check not accepted by Bank (aka F2287(CG))</td>\n</tr>\n<tr>\n<td>EPMF Notices</td>\n</tr>",{"$f":"IF(OrigTable!A378=\"\",\"\",ScriptText!$B$1&CHAR(10)&ScriptText!$D$1)","v":"<tr>\n<td>"},{"$f":"IF(OrigTable!A378=\"\",\"\",TEXT(OrigTable!A378,\"00\"))","v":"587"},{"$f":"IF(OrigTable!A378=\"\",\"\",ScriptText!$E$1&CHAR(10)&ScriptText!$C$1)","v":"</td>\n</tr>"},{"$f":"IF(OrigTable!B378=\"\",\"\",ScriptText!$B$1&CHAR(10)&ScriptText!$D$1)","v":""},{"$f":"IF(OrigTable!B378=\"\",\"\",TEXT(OrigTable!B378,\"00\"))","v":""},{"$f":"IF(OrigTable!B378=\"\",\"\",ScriptText!$E$1&CHAR(10)&ScriptText!C373)","v":""},{"$f":"IF(OrigTable!C378=\"\",\"\",ScriptText!$B$1&CHAR(10)&ScriptText!$D$1)","v":"<tr>\n<td>"},{"$f":"IF(OrigTable!C378=\"\",\"\",IF(LEN(OrigTable!C378)>255,LEFT(OrigTable!C378,250)&\". . .\",OrigTable!C378))","v":"Check not accepted by Bank (aka F2287(CG))"},{"$f":"IF(OrigTable!C378=\"\",\"\",ScriptText!$E$1&CHAR(10)&ScriptText!$C$1)","v":"</td>\n</tr>"},{"$f":"IF(OrigTable!D378=\"\",\"\",ScriptText!$B$1&CHAR(10)&ScriptText!$D$1)","v":"<tr>\n<td>"},{"$f":"IF(OrigTable!D378=\"\",\"\",TEXT(OrigTable!D378,\"00\"))","v":"EPMF Notices"},{"$f":"IF(OrigTable!D378=\"\",\"\",ScriptText!$E$1&CHAR(10)&ScriptText!$C$1)","v":"</td>\n</tr>"},{"$f":"IF(OrigTable!E378=\"\",\"\",ScriptText!$B$1&CHAR(10)&ScriptText!$D$1)","v":""},{"$f":"IF(OrigTable!E378=\"\",\"\",TEXT(OrigTable!E378,\"00\"))","v":""},{"$f":"IF(OrigTable!E378=\"\",\"\",ScriptText!$E$1&CHAR(10)&ScriptText!$C$1)","v":""},{"$f":"IF(OrigTable!F378=\"\",\"\",ScriptText!$B$1&CHAR(10)&ScriptText!$D$1)","v":""},{"$f":"IF(OrigTable!F378=\"\",\"\",TEXT(OrigTable!F378,\"00\"))","v":""},{"$f":"IF(OrigTable!F378=\"\",\"\",ScriptText!$E$1&CHAR(10)&ScriptText!$C$1)","v":""},{"$f":"IF(OrigTable!G378=\"\",\"\",ScriptText!$B$1&CHAR(10)&ScriptText!$D$1)","v":""},{"$f":"IF(OrigTable!G378=\"\",\"\",TEXT(OrigTable!G378,\"00\"))","v":""},{"$f":"IF(OrigTable!G378=\"\",\"\",ScriptText!$E$1&CHAR(10)&ScriptText!$C$1)","v":""},378]
["<tr>\n<td>403</td>\n</tr>\n\n<tr>\n<td>Form 5500 , First Delinquency Notice</td>\n</tr>\n<tr>\n<td>IDRS Notices</td>\n</tr>",{"$f":"IF(OrigTable!A379=\"\",\"\",ScriptText!$B$1&CHAR(10)&ScriptText!$D$1)","v":"<tr>\n<td>"},{"$f":"IF(OrigTable!A379=\"\",\"\",TEXT(OrigTable!A379,\"00\"))","v":"403"},{"$f":"IF(OrigTable!A379=\"\",\"\",ScriptText!$E$1&CHAR(10)&ScriptText!$C$1)","v":"</td>\n</tr>"},{"$f":"IF(OrigTable!B379=\"\",\"\",ScriptText!$B$1&CHAR(10)&ScriptText!$D$1)","v":""},{"$f":"IF(OrigTable!B379=\"\",\"\",TEXT(OrigTable!B379,\"00\"))","v":""},{"$f":"IF(OrigTable!B379=\"\",\"\",ScriptText!$E$1&CHAR(10)&ScriptText!C374)","v":""},{"$f":"IF(OrigTable!C379=\"\",\"\",ScriptText!$B$1&CHAR(10)&ScriptText!$D$1)","v":"<tr>\n<td>"},{"$f":"IF(OrigTable!C379=\"\",\"\",IF(LEN(OrigTable!C379)>255,LEFT(OrigTable!C379,250)&\". . .\",OrigTable!C379))","v":"Form 5500 , First Delinquency Notice"},{"$f":"IF(OrigTable!C379=\"\",\"\",ScriptText!$E$1&CHAR(10)&ScriptText!$C$1)","v":"</td>\n</tr>"},{"$f":"IF(OrigTable!D379=\"\",\"\",ScriptText!$B$1&CHAR(10)&ScriptText!$D$1)","v":"<tr>\n<td>"},{"$f":"IF(OrigTable!D379=\"\",\"\",TEXT(OrigTable!D379,\"00\"))","v":"IDRS Notices"},{"$f":"IF(OrigTable!D379=\"\",\"\",ScriptText!$E$1&CHAR(10)&ScriptText!$C$1)","v":"</td>\n</tr>"},{"$f":"IF(OrigTable!E379=\"\",\"\",ScriptText!$B$1&CHAR(10)&ScriptText!$D$1)","v":""},{"$f":"IF(OrigTable!E379=\"\",\"\",TEXT(OrigTable!E379,\"00\"))","v":""},{"$f":"IF(OrigTable!E379=\"\",\"\",ScriptText!$E$1&CHAR(10)&ScriptText!$C$1)","v":""},{"$f":"IF(OrigTable!F379=\"\",\"\",ScriptText!$B$1&CHAR(10)&ScriptText!$D$1)","v":""},{"$f":"IF(OrigTable!F379=\"\",\"\",TEXT(OrigTable!F379,\"00\"))","v":""},{"$f":"IF(OrigTable!F379=\"\",\"\",ScriptText!$E$1&CHAR(10)&ScriptText!$C$1)","v":""},{"$f":"IF(OrigTable!G379=\"\",\"\",ScriptText!$B$1&CHAR(10)&ScriptText!$D$1)","v":""},{"$f":"IF(OrigTable!G379=\"\",\"\",TEXT(OrigTable!G379,\"00\"))","v":""},{"$f":"IF(OrigTable!G379=\"\",\"\",ScriptText!$E$1&CHAR(10)&ScriptText!$C$1)","v":""},379]
["<tr>\n<td>406</td>\n</tr>\n\n<tr>\n<td>Form 5500 Final Delinquency Notice</td>\n</tr>\n<tr>\n<td>IDRS Notices</td>\n</tr>",{"$f":"IF(OrigTable!A380=\"\",\"\",ScriptText!$B$1&CHAR(10)&ScriptText!$D$1)","v":"<tr>\n<td>"},{"$f":"IF(OrigTable!A380=\"\",\"\",TEXT(OrigTable!A380,\"00\"))","v":"406"},{"$f":"IF(OrigTable!A380=\"\",\"\",ScriptText!$E$1&CHAR(10)&ScriptText!$C$1)","v":"</td>\n</tr>"},{"$f":"IF(OrigTable!B380=\"\",\"\",ScriptText!$B$1&CHAR(10)&ScriptText!$D$1)","v":""},{"$f":"IF(OrigTable!B380=\"\",\"\",TEXT(OrigTable!B380,\"00\"))","v":""},{"$f":"IF(OrigTable!B380=\"\",\"\",ScriptText!$E$1&CHAR(10)&ScriptText!C375)","v":""},{"$f":"IF(OrigTable!C380=\"\",\"\",ScriptText!$B$1&CHAR(10)&ScriptText!$D$1)","v":"<tr>\n<td>"},{"$f":"IF(OrigTable!C380=\"\",\"\",IF(LEN(OrigTable!C380)>255,LEFT(OrigTable!C380,250)&\". . .\",OrigTable!C380))","v":"Form 5500 Final Delinquency Notice"},{"$f":"IF(OrigTable!C380=\"\",\"\",ScriptText!$E$1&CHAR(10)&ScriptText!$C$1)","v":"</td>\n</tr>"},{"$f":"IF(OrigTable!D380=\"\",\"\",ScriptText!$B$1&CHAR(10)&ScriptText!$D$1)","v":"<tr>\n<td>"},{"$f":"IF(OrigTable!D380=\"\",\"\",TEXT(OrigTable!D380,\"00\"))","v":"IDRS Notices"},{"$f":"IF(OrigTable!D380=\"\",\"\",ScriptText!$E$1&CHAR(10)&ScriptText!$C$1)","v":"</td>\n</tr>"},{"$f":"IF(OrigTable!E380=\"\",\"\",ScriptText!$B$1&CHAR(10)&ScriptText!$D$1)","v":""},{"$f":"IF(OrigTable!E380=\"\",\"\",TEXT(OrigTable!E380,\"00\"))","v":""},{"$f":"IF(OrigTable!E380=\"\",\"\",ScriptText!$E$1&CHAR(10)&ScriptText!$C$1)","v":""},{"$f":"IF(OrigTable!F380=\"\",\"\",ScriptText!$B$1&CHAR(10)&ScriptText!$D$1)","v":""},{"$f":"IF(OrigTable!F380=\"\",\"\",TEXT(OrigTable!F380,\"00\"))","v":""},{"$f":"IF(OrigTable!F380=\"\",\"\",ScriptText!$E$1&CHAR(10)&ScriptText!$C$1)","v":""},{"$f":"IF(OrigTable!G380=\"\",\"\",ScriptText!$B$1&CHAR(10)&ScriptText!$D$1)","v":""},{"$f":"IF(OrigTable!G380=\"\",\"\",TEXT(OrigTable!G380,\"00\"))","v":""},{"$f":"IF(OrigTable!G380=\"\",\"\",ScriptText!$E$1&CHAR(10)&ScriptText!$C$1)","v":""},380]
["<tr>\n<td>501/601</td>\n</tr>\n\n<tr>\n<td>1st Notice—Balance Due</td>\n</tr>\n<tr>\n<td>IDRS Notices</td>\n</tr>",{"$f":"IF(OrigTable!A381=\"\",\"\",ScriptText!$B$1&CHAR(10)&ScriptText!$D$1)","v":"<tr>\n<td>"},{"$f":"IF(OrigTable!A381=\"\",\"\",TEXT(OrigTable!A381,\"00\"))","v":"501/601"},{"$f":"IF(OrigTable!A381=\"\",\"\",ScriptText!$E$1&CHAR(10)&ScriptText!$C$1)","v":"</td>\n</tr>"},{"$f":"IF(OrigTable!B381=\"\",\"\",ScriptText!$B$1&CHAR(10)&ScriptText!$D$1)","v":""},{"$f":"IF(OrigTable!B381=\"\",\"\",TEXT(OrigTable!B381,\"00\"))","v":""},{"$f":"IF(OrigTable!B381=\"\",\"\",ScriptText!$E$1&CHAR(10)&ScriptText!C376)","v":""},{"$f":"IF(OrigTable!C381=\"\",\"\",ScriptText!$B$1&CHAR(10)&ScriptText!$D$1)","v":"<tr>\n<td>"},{"$f":"IF(OrigTable!C381=\"\",\"\",IF(LEN(OrigTable!C381)>255,LEFT(OrigTable!C381,250)&\". . .\",OrigTable!C381))","v":"1st Notice—Balance Due"},{"$f":"IF(OrigTable!C381=\"\",\"\",ScriptText!$E$1&CHAR(10)&ScriptText!$C$1)","v":"</td>\n</tr>"},{"$f":"IF(OrigTable!D381=\"\",\"\",ScriptText!$B$1&CHAR(10)&ScriptText!$D$1)","v":"<tr>\n<td>"},{"$f":"IF(OrigTable!D381=\"\",\"\",TEXT(OrigTable!D381,\"00\"))","v":"IDRS Notices"},{"$f":"IF(OrigTable!D381=\"\",\"\",ScriptText!$E$1&CHAR(10)&ScriptText!$C$1)","v":"</td>\n</tr>"},{"$f":"IF(OrigTable!E381=\"\",\"\",ScriptText!$B$1&CHAR(10)&ScriptText!$D$1)","v":""},{"$f":"IF(OrigTable!E381=\"\",\"\",TEXT(OrigTable!E381,\"00\"))","v":""},{"$f":"IF(OrigTable!E381=\"\",\"\",ScriptText!$E$1&CHAR(10)&ScriptText!$C$1)","v":""},{"$f":"IF(OrigTable!F381=\"\",\"\",ScriptText!$B$1&CHAR(10)&ScriptText!$D$1)","v":""},{"$f":"IF(OrigTable!F381=\"\",\"\",TEXT(OrigTable!F381,\"00\"))","v":""},{"$f":"IF(OrigTable!F381=\"\",\"\",ScriptText!$E$1&CHAR(10)&ScriptText!$C$1)","v":""},{"$f":"IF(OrigTable!G381=\"\",\"\",ScriptText!$B$1&CHAR(10)&ScriptText!$D$1)","v":""},{"$f":"IF(OrigTable!G381=\"\",\"\",TEXT(OrigTable!G381,\"00\"))","v":""},{"$f":"IF(OrigTable!G381=\"\",\"\",ScriptText!$E$1&CHAR(10)&ScriptText!$C$1)","v":""},381]
["<tr>\n<td>501H</td>\n</tr>\n\n<tr>\n<td>1st Notice—Balance Due, ACA cases only</td>\n</tr>\n<tr>\n<td>IDRS Notices</td>\n</tr>",{"$f":"IF(OrigTable!A382=\"\",\"\",ScriptText!$B$1&CHAR(10)&ScriptText!$D$1)","v":"<tr>\n<td>"},{"$f":"IF(OrigTable!A382=\"\",\"\",TEXT(OrigTable!A382,\"00\"))","v":"501H"},{"$f":"IF(OrigTable!A382=\"\",\"\",ScriptText!$E$1&CHAR(10)&ScriptText!$C$1)","v":"</td>\n</tr>"},{"$f":"IF(OrigTable!B382=\"\",\"\",ScriptText!$B$1&CHAR(10)&ScriptText!$D$1)","v":""},{"$f":"IF(OrigTable!B382=\"\",\"\",TEXT(OrigTable!B382,\"00\"))","v":""},{"$f":"IF(OrigTable!B382=\"\",\"\",ScriptText!$E$1&CHAR(10)&ScriptText!C377)","v":""},{"$f":"IF(OrigTable!C382=\"\",\"\",ScriptText!$B$1&CHAR(10)&ScriptText!$D$1)","v":"<tr>\n<td>"},{"$f":"IF(OrigTable!C382=\"\",\"\",IF(LEN(OrigTable!C382)>255,LEFT(OrigTable!C382,250)&\". . .\",OrigTable!C382))","v":"1st Notice—Balance Due, ACA cases only"},{"$f":"IF(OrigTable!C382=\"\",\"\",ScriptText!$E$1&CHAR(10)&ScriptText!$C$1)","v":"</td>\n</tr>"},{"$f":"IF(OrigTable!D382=\"\",\"\",ScriptText!$B$1&CHAR(10)&ScriptText!$D$1)","v":"<tr>\n<td>"},{"$f":"IF(OrigTable!D382=\"\",\"\",TEXT(OrigTable!D382,\"00\"))","v":"IDRS Notices"},{"$f":"IF(OrigTable!D382=\"\",\"\",ScriptText!$E$1&CHAR(10)&ScriptText!$C$1)","v":"</td>\n</tr>"},{"$f":"IF(OrigTable!E382=\"\",\"\",ScriptText!$B$1&CHAR(10)&ScriptText!$D$1)","v":""},{"$f":"IF(OrigTable!E382=\"\",\"\",TEXT(OrigTable!E382,\"00\"))","v":""},{"$f":"IF(OrigTable!E382=\"\",\"\",ScriptText!$E$1&CHAR(10)&ScriptText!$C$1)","v":""},{"$f":"IF(OrigTable!F382=\"\",\"\",ScriptText!$B$1&CHAR(10)&ScriptText!$D$1)","v":""},{"$f":"IF(OrigTable!F382=\"\",\"\",TEXT(OrigTable!F382,\"00\"))","v":""},{"$f":"IF(OrigTable!F382=\"\",\"\",ScriptText!$E$1&CHAR(10)&ScriptText!$C$1)","v":""},{"$f":"IF(OrigTable!G382=\"\",\"\",ScriptText!$B$1&CHAR(10)&ScriptText!$D$1)","v":""},{"$f":"IF(OrigTable!G382=\"\",\"\",TEXT(OrigTable!G382,\"00\"))","v":""},{"$f":"IF(OrigTable!G382=\"\",\"\",ScriptText!$E$1&CHAR(10)&ScriptText!$C$1)","v":""},382]
["<tr>\n<td>503</td>\n</tr>\n\n<tr>\n<td>IMF 2nd Balance Due Notice</td>\n</tr>\n<tr>\n<td>IDRS Notices</td>\n</tr>",{"$f":"IF(OrigTable!A383=\"\",\"\",ScriptText!$B$1&CHAR(10)&ScriptText!$D$1)","v":"<tr>\n<td>"},{"$f":"IF(OrigTable!A383=\"\",\"\",TEXT(OrigTable!A383,\"00\"))","v":"503"},{"$f":"IF(OrigTable!A383=\"\",\"\",ScriptText!$E$1&CHAR(10)&ScriptText!$C$1)","v":"</td>\n</tr>"},{"$f":"IF(OrigTable!B383=\"\",\"\",ScriptText!$B$1&CHAR(10)&ScriptText!$D$1)","v":""},{"$f":"IF(OrigTable!B383=\"\",\"\",TEXT(OrigTable!B383,\"00\"))","v":""},{"$f":"IF(OrigTable!B383=\"\",\"\",ScriptText!$E$1&CHAR(10)&ScriptText!C378)","v":""},{"$f":"IF(OrigTable!C383=\"\",\"\",ScriptText!$B$1&CHAR(10)&ScriptText!$D$1)","v":"<tr>\n<td>"},{"$f":"IF(OrigTable!C383=\"\",\"\",IF(LEN(OrigTable!C383)>255,LEFT(OrigTable!C383,250)&\". . .\",OrigTable!C383))","v":"IMF 2nd Balance Due Notice"},{"$f":"IF(OrigTable!C383=\"\",\"\",ScriptText!$E$1&CHAR(10)&ScriptText!$C$1)","v":"</td>\n</tr>"},{"$f":"IF(OrigTable!D383=\"\",\"\",ScriptText!$B$1&CHAR(10)&ScriptText!$D$1)","v":"<tr>\n<td>"},{"$f":"IF(OrigTable!D383=\"\",\"\",TEXT(OrigTable!D383,\"00\"))","v":"IDRS Notices"},{"$f":"IF(OrigTable!D383=\"\",\"\",ScriptText!$E$1&CHAR(10)&ScriptText!$C$1)","v":"</td>\n</tr>"},{"$f":"IF(OrigTable!E383=\"\",\"\",ScriptText!$B$1&CHAR(10)&ScriptText!$D$1)","v":""},{"$f":"IF(OrigTable!E383=\"\",\"\",TEXT(OrigTable!E383,\"00\"))","v":""},{"$f":"IF(OrigTable!E383=\"\",\"\",ScriptText!$E$1&CHAR(10)&ScriptText!$C$1)","v":""},{"$f":"IF(OrigTable!F383=\"\",\"\",ScriptText!$B$1&CHAR(10)&ScriptText!$D$1)","v":""},{"$f":"IF(OrigTable!F383=\"\",\"\",TEXT(OrigTable!F383,\"00\"))","v":""},{"$f":"IF(OrigTable!F383=\"\",\"\",ScriptText!$E$1&CHAR(10)&ScriptText!$C$1)","v":""},{"$f":"IF(OrigTable!G383=\"\",\"\",ScriptText!$B$1&CHAR(10)&ScriptText!$D$1)","v":""},{"$f":"IF(OrigTable!G383=\"\",\"\",TEXT(OrigTable!G383,\"00\"))","v":""},{"$f":"IF(OrigTable!G383=\"\",\"\",ScriptText!$E$1&CHAR(10)&ScriptText!$C$1)","v":""},383]
["<tr>\n<td>603</td>\n</tr>\n\n<tr>\n<td>3rd Notice—Balance Due</td>\n</tr>\n<tr>\n<td>IDRS Notices</td>\n</tr>",{"$f":"IF(OrigTable!A384=\"\",\"\",ScriptText!$B$1&CHAR(10)&ScriptText!$D$1)","v":"<tr>\n<td>"},{"$f":"IF(OrigTable!A384=\"\",\"\",TEXT(OrigTable!A384,\"00\"))","v":"603"},{"$f":"IF(OrigTable!A384=\"\",\"\",ScriptText!$E$1&CHAR(10)&ScriptText!$C$1)","v":"</td>\n</tr>"},{"$f":"IF(OrigTable!B384=\"\",\"\",ScriptText!$B$1&CHAR(10)&ScriptText!$D$1)","v":""},{"$f":"IF(OrigTable!B384=\"\",\"\",TEXT(OrigTable!B384,\"00\"))","v":""},{"$f":"IF(OrigTable!B384=\"\",\"\",ScriptText!$E$1&CHAR(10)&ScriptText!C379)","v":""},{"$f":"IF(OrigTable!C384=\"\",\"\",ScriptText!$B$1&CHAR(10)&ScriptText!$D$1)","v":"<tr>\n<td>"},{"$f":"IF(OrigTable!C384=\"\",\"\",IF(LEN(OrigTable!C384)>255,LEFT(OrigTable!C384,250)&\". . .\",OrigTable!C384))","v":"3rd Notice—Balance Due"},{"$f":"IF(OrigTable!C384=\"\",\"\",ScriptText!$E$1&CHAR(10)&ScriptText!$C$1)","v":"</td>\n</tr>"},{"$f":"IF(OrigTable!D384=\"\",\"\",ScriptText!$B$1&CHAR(10)&ScriptText!$D$1)","v":"<tr>\n<td>"},{"$f":"IF(OrigTable!D384=\"\",\"\",TEXT(OrigTable!D384,\"00\"))","v":"IDRS Notices"},{"$f":"IF(OrigTable!D384=\"\",\"\",ScriptText!$E$1&CHAR(10)&ScriptText!$C$1)","v":"</td>\n</tr>"},{"$f":"IF(OrigTable!E384=\"\",\"\",ScriptText!$B$1&CHAR(10)&ScriptText!$D$1)","v":""},{"$f":"IF(OrigTable!E384=\"\",\"\",TEXT(OrigTable!E384,\"00\"))","v":""},{"$f":"IF(OrigTable!E384=\"\",\"\",ScriptText!$E$1&CHAR(10)&ScriptText!$C$1)","v":""},{"$f":"IF(OrigTable!F384=\"\",\"\",ScriptText!$B$1&CHAR(10)&ScriptText!$D$1)","v":""},{"$f":"IF(OrigTable!F384=\"\",\"\",TEXT(OrigTable!F384,\"00\"))","v":""},{"$f":"IF(OrigTable!F384=\"\",\"\",ScriptText!$E$1&CHAR(10)&ScriptText!$C$1)","v":""},{"$f":"IF(OrigTable!G384=\"\",\"\",ScriptText!$B$1&CHAR(10)&ScriptText!$D$1)","v":""},{"$f":"IF(OrigTable!G384=\"\",\"\",TEXT(OrigTable!G384,\"00\"))","v":""},{"$f":"IF(OrigTable!G384=\"\",\"\",ScriptText!$E$1&CHAR(10)&ScriptText!$C$1)","v":""},384]
["<tr>\n<td>503H</td>\n</tr>\n\n<tr>\n<td>503H- IMF 2nd Notice – Balance Due- Shared responsibility payment (SRP).</td>\n</tr>\n<tr>\n<td>IDRS Notices</td>\n</tr>",{"$f":"IF(OrigTable!A385=\"\",\"\",ScriptText!$B$1&CHAR(10)&ScriptText!$D$1)","v":"<tr>\n<td>"},{"$f":"IF(OrigTable!A385=\"\",\"\",TEXT(OrigTable!A385,\"00\"))","v":"503H"},{"$f":"IF(OrigTable!A385=\"\",\"\",ScriptText!$E$1&CHAR(10)&ScriptText!$C$1)","v":"</td>\n</tr>"},{"$f":"IF(OrigTable!B385=\"\",\"\",ScriptText!$B$1&CHAR(10)&ScriptText!$D$1)","v":""},{"$f":"IF(OrigTable!B385=\"\",\"\",TEXT(OrigTable!B385,\"00\"))","v":""},{"$f":"IF(OrigTable!B385=\"\",\"\",ScriptText!$E$1&CHAR(10)&ScriptText!C380)","v":""},{"$f":"IF(OrigTable!C385=\"\",\"\",ScriptText!$B$1&CHAR(10)&ScriptText!$D$1)","v":"<tr>\n<td>"},{"$f":"IF(OrigTable!C385=\"\",\"\",IF(LEN(OrigTable!C385)>255,LEFT(OrigTable!C385,250)&\". . .\",OrigTable!C385))","v":"503H- IMF 2nd Notice – Balance Due- Shared responsibility payment (SRP)."},{"$f":"IF(OrigTable!C385=\"\",\"\",ScriptText!$E$1&CHAR(10)&ScriptText!$C$1)","v":"</td>\n</tr>"},{"$f":"IF(OrigTable!D385=\"\",\"\",ScriptText!$B$1&CHAR(10)&ScriptText!$D$1)","v":"<tr>\n<td>"},{"$f":"IF(OrigTable!D385=\"\",\"\",TEXT(OrigTable!D385,\"00\"))","v":"IDRS Notices"},{"$f":"IF(OrigTable!D385=\"\",\"\",ScriptText!$E$1&CHAR(10)&ScriptText!$C$1)","v":"</td>\n</tr>"},{"$f":"IF(OrigTable!E385=\"\",\"\",ScriptText!$B$1&CHAR(10)&ScriptText!$D$1)","v":""},{"$f":"IF(OrigTable!E385=\"\",\"\",TEXT(OrigTable!E385,\"00\"))","v":""},{"$f":"IF(OrigTable!E385=\"\",\"\",ScriptText!$E$1&CHAR(10)&ScriptText!$C$1)","v":""},{"$f":"IF(OrigTable!F385=\"\",\"\",ScriptText!$B$1&CHAR(10)&ScriptText!$D$1)","v":""},{"$f":"IF(OrigTable!F385=\"\",\"\",TEXT(OrigTable!F385,\"00\"))","v":""},{"$f":"IF(OrigTable!F385=\"\",\"\",ScriptText!$E$1&CHAR(10)&ScriptText!$C$1)","v":""},{"$f":"IF(OrigTable!G385=\"\",\"\",ScriptText!$B$1&CHAR(10)&ScriptText!$D$1)","v":""},{"$f":"IF(OrigTable!G385=\"\",\"\",TEXT(OrigTable!G385,\"00\"))","v":""},{"$f":"IF(OrigTable!G385=\"\",\"\",ScriptText!$E$1&CHAR(10)&ScriptText!$C$1)","v":""},385]
["<tr>\n<td>504/604</td>\n</tr>\n\n<tr>\n<td>Final Notice—Balance Due- IMF no response allows for lien filing and levies on state income tax refunds</td>\n</tr>\n<tr>\n<td>IDRS Notices</td>\n</tr>",{"$f":"IF(OrigTable!A386=\"\",\"\",ScriptText!$B$1&CHAR(10)&ScriptText!$D$1)","v":"<tr>\n<td>"},{"$f":"IF(OrigTable!A386=\"\",\"\",TEXT(OrigTable!A386,\"00\"))","v":"504/604"},{"$f":"IF(OrigTable!A386=\"\",\"\",ScriptText!$E$1&CHAR(10)&ScriptText!$C$1)","v":"</td>\n</tr>"},{"$f":"IF(OrigTable!B386=\"\",\"\",ScriptText!$B$1&CHAR(10)&ScriptText!$D$1)","v":""},{"$f":"IF(OrigTable!B386=\"\",\"\",TEXT(OrigTable!B386,\"00\"))","v":""},{"$f":"IF(OrigTable!B386=\"\",\"\",ScriptText!$E$1&CHAR(10)&ScriptText!C381)","v":""},{"$f":"IF(OrigTable!C386=\"\",\"\",ScriptText!$B$1&CHAR(10)&ScriptText!$D$1)","v":"<tr>\n<td>"},{"$f":"IF(OrigTable!C386=\"\",\"\",IF(LEN(OrigTable!C386)>255,LEFT(OrigTable!C386,250)&\". . .\",OrigTable!C386))","v":"Final Notice—Balance Due- IMF no response allows for lien filing and levies on state income tax refunds"},{"$f":"IF(OrigTable!C386=\"\",\"\",ScriptText!$E$1&CHAR(10)&ScriptText!$C$1)","v":"</td>\n</tr>"},{"$f":"IF(OrigTable!D386=\"\",\"\",ScriptText!$B$1&CHAR(10)&ScriptText!$D$1)","v":"<tr>\n<td>"},{"$f":"IF(OrigTable!D386=\"\",\"\",TEXT(OrigTable!D386,\"00\"))","v":"IDRS Notices"},{"$f":"IF(OrigTable!D386=\"\",\"\",ScriptText!$E$1&CHAR(10)&ScriptText!$C$1)","v":"</td>\n</tr>"},{"$f":"IF(OrigTable!E386=\"\",\"\",ScriptText!$B$1&CHAR(10)&ScriptText!$D$1)","v":""},{"$f":"IF(OrigTable!E386=\"\",\"\",TEXT(OrigTable!E386,\"00\"))","v":""},{"$f":"IF(OrigTable!E386=\"\",\"\",ScriptText!$E$1&CHAR(10)&ScriptText!$C$1)","v":""},{"$f":"IF(OrigTable!F386=\"\",\"\",ScriptText!$B$1&CHAR(10)&ScriptText!$D$1)","v":""},{"$f":"IF(OrigTable!F386=\"\",\"\",TEXT(OrigTable!F386,\"00\"))","v":""},{"$f":"IF(OrigTable!F386=\"\",\"\",ScriptText!$E$1&CHAR(10)&ScriptText!$C$1)","v":""},{"$f":"IF(OrigTable!G386=\"\",\"\",ScriptText!$B$1&CHAR(10)&ScriptText!$D$1)","v":""},{"$f":"IF(OrigTable!G386=\"\",\"\",TEXT(OrigTable!G386,\"00\"))","v":""},{"$f":"IF(OrigTable!G386=\"\",\"\",ScriptText!$E$1&CHAR(10)&ScriptText!$C$1)","v":""},386]
["<tr>\n<td>504B/604B</td>\n</tr>\n\n<tr>\n<td>Final Notice –Balance Due – BMF, no response allows for lien filing and levies on certain assets</td>\n</tr>\n<tr>\n<td>IDRS Notices</td>\n</tr>",{"$f":"IF(OrigTable!A387=\"\",\"\",ScriptText!$B$1&CHAR(10)&ScriptText!$D$1)","v":"<tr>\n<td>"},{"$f":"IF(OrigTable!A387=\"\",\"\",TEXT(OrigTable!A387,\"00\"))","v":"504B/604B"},{"$f":"IF(OrigTable!A387=\"\",\"\",ScriptText!$E$1&CHAR(10)&ScriptText!$C$1)","v":"</td>\n</tr>"},{"$f":"IF(OrigTable!B387=\"\",\"\",ScriptText!$B$1&CHAR(10)&ScriptText!$D$1)","v":""},{"$f":"IF(OrigTable!B387=\"\",\"\",TEXT(OrigTable!B387,\"00\"))","v":""},{"$f":"IF(OrigTable!B387=\"\",\"\",ScriptText!$E$1&CHAR(10)&ScriptText!C382)","v":""},{"$f":"IF(OrigTable!C387=\"\",\"\",ScriptText!$B$1&CHAR(10)&ScriptText!$D$1)","v":"<tr>\n<td>"},{"$f":"IF(OrigTable!C387=\"\",\"\",IF(LEN(OrigTable!C387)>255,LEFT(OrigTable!C387,250)&\". . .\",OrigTable!C387))","v":"Final Notice –Balance Due – BMF, no response allows for lien filing and levies on certain assets"},{"$f":"IF(OrigTable!C387=\"\",\"\",ScriptText!$E$1&CHAR(10)&ScriptText!$C$1)","v":"</td>\n</tr>"},{"$f":"IF(OrigTable!D387=\"\",\"\",ScriptText!$B$1&CHAR(10)&ScriptText!$D$1)","v":"<tr>\n<td>"},{"$f":"IF(OrigTable!D387=\"\",\"\",TEXT(OrigTable!D387,\"00\"))","v":"IDRS Notices"},{"$f":"IF(OrigTable!D387=\"\",\"\",ScriptText!$E$1&CHAR(10)&ScriptText!$C$1)","v":"</td>\n</tr>"},{"$f":"IF(OrigTable!E387=\"\",\"\",ScriptText!$B$1&CHAR(10)&ScriptText!$D$1)","v":""},{"$f":"IF(OrigTable!E387=\"\",\"\",TEXT(OrigTable!E387,\"00\"))","v":""},{"$f":"IF(OrigTable!E387=\"\",\"\",ScriptText!$E$1&CHAR(10)&ScriptText!$C$1)","v":""},{"$f":"IF(OrigTable!F387=\"\",\"\",ScriptText!$B$1&CHAR(10)&ScriptText!$D$1)","v":""},{"$f":"IF(OrigTable!F387=\"\",\"\",TEXT(OrigTable!F387,\"00\"))","v":""},{"$f":"IF(OrigTable!F387=\"\",\"\",ScriptText!$E$1&CHAR(10)&ScriptText!$C$1)","v":""},{"$f":"IF(OrigTable!G387=\"\",\"\",ScriptText!$B$1&CHAR(10)&ScriptText!$D$1)","v":""},{"$f":"IF(OrigTable!G387=\"\",\"\",TEXT(OrigTable!G387,\"00\"))","v":""},{"$f":"IF(OrigTable!G387=\"\",\"\",ScriptText!$E$1&CHAR(10)&ScriptText!$C$1)","v":""},387]
["<tr>\n<td>515/615</td>\n</tr>\n\n<tr>\n<td>1st  Notice – Return Delinquency for BMF modules with a BOD of TEGE only.</td>\n</tr>\n<tr>\n<td>IDRS Notices</td>\n</tr>",{"$f":"IF(OrigTable!A388=\"\",\"\",ScriptText!$B$1&CHAR(10)&ScriptText!$D$1)","v":"<tr>\n<td>"},{"$f":"IF(OrigTable!A388=\"\",\"\",TEXT(OrigTable!A388,\"00\"))","v":"515/615"},{"$f":"IF(OrigTable!A388=\"\",\"\",ScriptText!$E$1&CHAR(10)&ScriptText!$C$1)","v":"</td>\n</tr>"},{"$f":"IF(OrigTable!B388=\"\",\"\",ScriptText!$B$1&CHAR(10)&ScriptText!$D$1)","v":""},{"$f":"IF(OrigTable!B388=\"\",\"\",TEXT(OrigTable!B388,\"00\"))","v":""},{"$f":"IF(OrigTable!B388=\"\",\"\",ScriptText!$E$1&CHAR(10)&ScriptText!C383)","v":""},{"$f":"IF(OrigTable!C388=\"\",\"\",ScriptText!$B$1&CHAR(10)&ScriptText!$D$1)","v":"<tr>\n<td>"},{"$f":"IF(OrigTable!C388=\"\",\"\",IF(LEN(OrigTable!C388)>255,LEFT(OrigTable!C388,250)&\". . .\",OrigTable!C388))","v":"1st  Notice – Return Delinquency for BMF modules with a BOD of TEGE only."},{"$f":"IF(OrigTable!C388=\"\",\"\",ScriptText!$E$1&CHAR(10)&ScriptText!$C$1)","v":"</td>\n</tr>"},{"$f":"IF(OrigTable!D388=\"\",\"\",ScriptText!$B$1&CHAR(10)&ScriptText!$D$1)","v":"<tr>\n<td>"},{"$f":"IF(OrigTable!D388=\"\",\"\",TEXT(OrigTable!D388,\"00\"))","v":"IDRS Notices"},{"$f":"IF(OrigTable!D388=\"\",\"\",ScriptText!$E$1&CHAR(10)&ScriptText!$C$1)","v":"</td>\n</tr>"},{"$f":"IF(OrigTable!E388=\"\",\"\",ScriptText!$B$1&CHAR(10)&ScriptText!$D$1)","v":""},{"$f":"IF(OrigTable!E388=\"\",\"\",TEXT(OrigTable!E388,\"00\"))","v":""},{"$f":"IF(OrigTable!E388=\"\",\"\",ScriptText!$E$1&CHAR(10)&ScriptText!$C$1)","v":""},{"$f":"IF(OrigTable!F388=\"\",\"\",ScriptText!$B$1&CHAR(10)&ScriptText!$D$1)","v":""},{"$f":"IF(OrigTable!F388=\"\",\"\",TEXT(OrigTable!F388,\"00\"))","v":""},{"$f":"IF(OrigTable!F388=\"\",\"\",ScriptText!$E$1&CHAR(10)&ScriptText!$C$1)","v":""},{"$f":"IF(OrigTable!G388=\"\",\"\",ScriptText!$B$1&CHAR(10)&ScriptText!$D$1)","v":""},{"$f":"IF(OrigTable!G388=\"\",\"\",TEXT(OrigTable!G388,\"00\"))","v":""},{"$f":"IF(OrigTable!G388=\"\",\"\",ScriptText!$E$1&CHAR(10)&ScriptText!$C$1)","v":""},388]
["<tr>\n<td>516</td>\n</tr>\n\n<tr>\n<td>2nd  notice – Return Delinquency for IMF PC-B modules only.</td>\n</tr>\n<tr>\n<td>IDRS Notices</td>\n</tr>",{"$f":"IF(OrigTable!A389=\"\",\"\",ScriptText!$B$1&CHAR(10)&ScriptText!$D$1)","v":"<tr>\n<td>"},{"$f":"IF(OrigTable!A389=\"\",\"\",TEXT(OrigTable!A389,\"00\"))","v":"516"},{"$f":"IF(OrigTable!A389=\"\",\"\",ScriptText!$E$1&CHAR(10)&ScriptText!$C$1)","v":"</td>\n</tr>"},{"$f":"IF(OrigTable!B389=\"\",\"\",ScriptText!$B$1&CHAR(10)&ScriptText!$D$1)","v":""},{"$f":"IF(OrigTable!B389=\"\",\"\",TEXT(OrigTable!B389,\"00\"))","v":""},{"$f":"IF(OrigTable!B389=\"\",\"\",ScriptText!$E$1&CHAR(10)&ScriptText!C384)","v":""},{"$f":"IF(OrigTable!C389=\"\",\"\",ScriptText!$B$1&CHAR(10)&ScriptText!$D$1)","v":"<tr>\n<td>"},{"$f":"IF(OrigTable!C389=\"\",\"\",IF(LEN(OrigTable!C389)>255,LEFT(OrigTable!C389,250)&\". . .\",OrigTable!C389))","v":"2nd  notice – Return Delinquency for IMF PC-B modules only."},{"$f":"IF(OrigTable!C389=\"\",\"\",ScriptText!$E$1&CHAR(10)&ScriptText!$C$1)","v":"</td>\n</tr>"},{"$f":"IF(OrigTable!D389=\"\",\"\",ScriptText!$B$1&CHAR(10)&ScriptText!$D$1)","v":"<tr>\n<td>"},{"$f":"IF(OrigTable!D389=\"\",\"\",TEXT(OrigTable!D389,\"00\"))","v":"IDRS Notices"},{"$f":"IF(OrigTable!D389=\"\",\"\",ScriptText!$E$1&CHAR(10)&ScriptText!$C$1)","v":"</td>\n</tr>"},{"$f":"IF(OrigTable!E389=\"\",\"\",ScriptText!$B$1&CHAR(10)&ScriptText!$D$1)","v":""},{"$f":"IF(OrigTable!E389=\"\",\"\",TEXT(OrigTable!E389,\"00\"))","v":""},{"$f":"IF(OrigTable!E389=\"\",\"\",ScriptText!$E$1&CHAR(10)&ScriptText!$C$1)","v":""},{"$f":"IF(OrigTable!F389=\"\",\"\",ScriptText!$B$1&CHAR(10)&ScriptText!$D$1)","v":""},{"$f":"IF(OrigTable!F389=\"\",\"\",TEXT(OrigTable!F389,\"00\"))","v":""},{"$f":"IF(OrigTable!F389=\"\",\"\",ScriptText!$E$1&CHAR(10)&ScriptText!$C$1)","v":""},{"$f":"IF(OrigTable!G389=\"\",\"\",ScriptText!$B$1&CHAR(10)&ScriptText!$D$1)","v":""},{"$f":"IF(OrigTable!G389=\"\",\"\",TEXT(OrigTable!G389,\"00\"))","v":""},{"$f":"IF(OrigTable!G389=\"\",\"\",ScriptText!$E$1&CHAR(10)&ScriptText!$C$1)","v":""},389]
["<tr>\n<td>518/618</td>\n</tr>\n\n<tr>\n<td>Final Notice - Return Delinquency</td>\n</tr>\n<tr>\n<td>IDRS Notices</td>\n</tr>",{"$f":"IF(OrigTable!A390=\"\",\"\",ScriptText!$B$1&CHAR(10)&ScriptText!$D$1)","v":"<tr>\n<td>"},{"$f":"IF(OrigTable!A390=\"\",\"\",TEXT(OrigTable!A390,\"00\"))","v":"518/618"},{"$f":"IF(OrigTable!A390=\"\",\"\",ScriptText!$E$1&CHAR(10)&ScriptText!$C$1)","v":"</td>\n</tr>"},{"$f":"IF(OrigTable!B390=\"\",\"\",ScriptText!$B$1&CHAR(10)&ScriptText!$D$1)","v":""},{"$f":"IF(OrigTable!B390=\"\",\"\",TEXT(OrigTable!B390,\"00\"))","v":""},{"$f":"IF(OrigTable!B390=\"\",\"\",ScriptText!$E$1&CHAR(10)&ScriptText!C385)","v":""},{"$f":"IF(OrigTable!C390=\"\",\"\",ScriptText!$B$1&CHAR(10)&ScriptText!$D$1)","v":"<tr>\n<td>"},{"$f":"IF(OrigTable!C390=\"\",\"\",IF(LEN(OrigTable!C390)>255,LEFT(OrigTable!C390,250)&\". . .\",OrigTable!C390))","v":"Final Notice - Return Delinquency"},{"$f":"IF(OrigTable!C390=\"\",\"\",ScriptText!$E$1&CHAR(10)&ScriptText!$C$1)","v":"</td>\n</tr>"},{"$f":"IF(OrigTable!D390=\"\",\"\",ScriptText!$B$1&CHAR(10)&ScriptText!$D$1)","v":"<tr>\n<td>"},{"$f":"IF(OrigTable!D390=\"\",\"\",TEXT(OrigTable!D390,\"00\"))","v":"IDRS Notices"},{"$f":"IF(OrigTable!D390=\"\",\"\",ScriptText!$E$1&CHAR(10)&ScriptText!$C$1)","v":"</td>\n</tr>"},{"$f":"IF(OrigTable!E390=\"\",\"\",ScriptText!$B$1&CHAR(10)&ScriptText!$D$1)","v":""},{"$f":"IF(OrigTable!E390=\"\",\"\",TEXT(OrigTable!E390,\"00\"))","v":""},{"$f":"IF(OrigTable!E390=\"\",\"\",ScriptText!$E$1&CHAR(10)&ScriptText!$C$1)","v":""},{"$f":"IF(OrigTable!F390=\"\",\"\",ScriptText!$B$1&CHAR(10)&ScriptText!$D$1)","v":""},{"$f":"IF(OrigTable!F390=\"\",\"\",TEXT(OrigTable!F390,\"00\"))","v":""},{"$f":"IF(OrigTable!F390=\"\",\"\",ScriptText!$E$1&CHAR(10)&ScriptText!$C$1)","v":""},{"$f":"IF(OrigTable!G390=\"\",\"\",ScriptText!$B$1&CHAR(10)&ScriptText!$D$1)","v":""},{"$f":"IF(OrigTable!G390=\"\",\"\",TEXT(OrigTable!G390,\"00\"))","v":""},{"$f":"IF(OrigTable!G390=\"\",\"\",ScriptText!$E$1&CHAR(10)&ScriptText!$C$1)","v":""},{"$f":"IF(LEN(A390)>3,ROW(),0)","v":390}]
["<tr>\n<td>521/621</td>\n</tr>\n\n<tr>\n<td>Installment Agreement Reminder Notice</td>\n</tr>\n<tr>\n<td>IDRS Notices</td>\n</tr>",{"$f":"IF(OrigTable!A391=\"\",\"\",ScriptText!$B$1&CHAR(10)&ScriptText!$D$1)","v":"<tr>\n<td>"},{"$f":"IF(OrigTable!A391=\"\",\"\",TEXT(OrigTable!A391,\"00\"))","v":"521/621"},{"$f":"IF(OrigTable!A391=\"\",\"\",ScriptText!$E$1&CHAR(10)&ScriptText!$C$1)","v":"</td>\n</tr>"},{"$f":"IF(OrigTable!B391=\"\",\"\",ScriptText!$B$1&CHAR(10)&ScriptText!$D$1)","v":""},{"$f":"IF(OrigTable!B391=\"\",\"\",TEXT(OrigTable!B391,\"00\"))","v":""},{"$f":"IF(OrigTable!B391=\"\",\"\",ScriptText!$E$1&CHAR(10)&ScriptText!C386)","v":""},{"$f":"IF(OrigTable!C391=\"\",\"\",ScriptText!$B$1&CHAR(10)&ScriptText!$D$1)","v":"<tr>\n<td>"},{"$f":"IF(OrigTable!C391=\"\",\"\",IF(LEN(OrigTable!C391)>255,LEFT(OrigTable!C391,250)&\". . .\",OrigTable!C391))","v":"Installment Agreement Reminder Notice"},{"$f":"IF(OrigTable!C391=\"\",\"\",ScriptText!$E$1&CHAR(10)&ScriptText!$C$1)","v":"</td>\n</tr>"},{"$f":"IF(OrigTable!D391=\"\",\"\",ScriptText!$B$1&CHAR(10)&ScriptText!$D$1)","v":"<tr>\n<td>"},{"$f":"IF(OrigTable!D391=\"\",\"\",TEXT(OrigTable!D391,\"00\"))","v":"IDRS Notices"},{"$f":"IF(OrigTable!D391=\"\",\"\",ScriptText!$E$1&CHAR(10)&ScriptText!$C$1)","v":"</td>\n</tr>"},{"$f":"IF(OrigTable!E391=\"\",\"\",ScriptText!$B$1&CHAR(10)&ScriptText!$D$1)","v":""},{"$f":"IF(OrigTable!E391=\"\",\"\",TEXT(OrigTable!E391,\"00\"))","v":""},{"$f":"IF(OrigTable!E391=\"\",\"\",ScriptText!$E$1&CHAR(10)&ScriptText!$C$1)","v":""},{"$f":"IF(OrigTable!F391=\"\",\"\",ScriptText!$B$1&CHAR(10)&ScriptText!$D$1)","v":""},{"$f":"IF(OrigTable!F391=\"\",\"\",TEXT(OrigTable!F391,\"00\"))","v":""},{"$f":"IF(OrigTable!F391=\"\",\"\",ScriptText!$E$1&CHAR(10)&ScriptText!$C$1)","v":""},{"$f":"IF(OrigTable!G391=\"\",\"\",ScriptText!$B$1&CHAR(10)&ScriptText!$D$1)","v":""},{"$f":"IF(OrigTable!G391=\"\",\"\",TEXT(OrigTable!G391,\"00\"))","v":""},{"$f":"IF(OrigTable!G391=\"\",\"\",ScriptText!$E$1&CHAR(10)&ScriptText!$C$1)","v":""},391]
["<tr>\n<td>522/622</td>\n</tr>\n\n<tr>\n<td>Review Financial Condition, issued for Partial Payment Installment agreements only.</td>\n</tr>\n<tr>\n<td>IDRS Notices</td>\n</tr>",{"$f":"IF(OrigTable!A392=\"\",\"\",ScriptText!$B$1&CHAR(10)&ScriptText!$D$1)","v":"<tr>\n<td>"},{"$f":"IF(OrigTable!A392=\"\",\"\",TEXT(OrigTable!A392,\"00\"))","v":"522/622"},{"$f":"IF(OrigTable!A392=\"\",\"\",ScriptText!$E$1&CHAR(10)&ScriptText!$C$1)","v":"</td>\n</tr>"},{"$f":"IF(OrigTable!B392=\"\",\"\",ScriptText!$B$1&CHAR(10)&ScriptText!$D$1)","v":""},{"$f":"IF(OrigTable!B392=\"\",\"\",TEXT(OrigTable!B392,\"00\"))","v":""},{"$f":"IF(OrigTable!B392=\"\",\"\",ScriptText!$E$1&CHAR(10)&ScriptText!C387)","v":""},{"$f":"IF(OrigTable!C392=\"\",\"\",ScriptText!$B$1&CHAR(10)&ScriptText!$D$1)","v":"<tr>\n<td>"},{"$f":"IF(OrigTable!C392=\"\",\"\",IF(LEN(OrigTable!C392)>255,LEFT(OrigTable!C392,250)&\". . .\",OrigTable!C392))","v":"Review Financial Condition, issued for Partial Payment Installment agreements only."},{"$f":"IF(OrigTable!C392=\"\",\"\",ScriptText!$E$1&CHAR(10)&ScriptText!$C$1)","v":"</td>\n</tr>"},{"$f":"IF(OrigTable!D392=\"\",\"\",ScriptText!$B$1&CHAR(10)&ScriptText!$D$1)","v":"<tr>\n<td>"},{"$f":"IF(OrigTable!D392=\"\",\"\",TEXT(OrigTable!D392,\"00\"))","v":"IDRS Notices"},{"$f":"IF(OrigTable!D392=\"\",\"\",ScriptText!$E$1&CHAR(10)&ScriptText!$C$1)","v":"</td>\n</tr>"},{"$f":"IF(OrigTable!E392=\"\",\"\",ScriptText!$B$1&CHAR(10)&ScriptText!$D$1)","v":""},{"$f":"IF(OrigTable!E392=\"\",\"\",TEXT(OrigTable!E392,\"00\"))","v":""},{"$f":"IF(OrigTable!E392=\"\",\"\",ScriptText!$E$1&CHAR(10)&ScriptText!$C$1)","v":""},{"$f":"IF(OrigTable!F392=\"\",\"\",ScriptText!$B$1&CHAR(10)&ScriptText!$D$1)","v":""},{"$f":"IF(OrigTable!F392=\"\",\"\",TEXT(OrigTable!F392,\"00\"))","v":""},{"$f":"IF(OrigTable!F392=\"\",\"\",ScriptText!$E$1&CHAR(10)&ScriptText!$C$1)","v":""},{"$f":"IF(OrigTable!G392=\"\",\"\",ScriptText!$B$1&CHAR(10)&ScriptText!$D$1)","v":""},{"$f":"IF(OrigTable!G392=\"\",\"\",TEXT(OrigTable!G392,\"00\"))","v":""},{"$f":"IF(OrigTable!G392=\"\",\"\",ScriptText!$E$1&CHAR(10)&ScriptText!$C$1)","v":""},392]
[{"$f":"_xlfn.TEXTJOIN(\"\",TRUE,B393:D393)&CHAR(10)&_xlfn.TEXTJOIN(\"\",TRUE,E393:G393)&CHAR(10)&_xlfn.TEXTJOIN(\"\",TRUE,H393:J393)&CHAR(10)&_xlfn.TEXTJOIN(\"\",TRUE,K393:M393)&_xlfn.TEXTJOIN(\"\",TRUE,N393:P393)&_xlfn.TEXTJOIN(\"\",TRUE,Q393:S393)&_xlfn.TEXTJOIN(\"\",TRUE,T393:V393)","v":"<tr>\n<td>523/623</td>\n</tr>\n\n<tr>\n<td>Installment Agreement Default Notice with Intent to Levy</td>\n</tr>\n<tr>\n<td>IDRS Notices</td>\n</tr>"},{"$f":"IF(OrigTable!A393=\"\",\"\",ScriptText!$B$1&CHAR(10)&ScriptText!$D$1)","v":"<tr>\n<td>"},{"$f":"IF(OrigTable!A393=\"\",\"\",TEXT(OrigTable!A393,\"00\"))","v":"523/623"},{"$f":"IF(OrigTable!A393=\"\",\"\",ScriptText!$E$1&CHAR(10)&ScriptText!$C$1)","v":"</td>\n</tr>"},{"$f":"IF(OrigTable!B393=\"\",\"\",ScriptText!$B$1&CHAR(10)&ScriptText!$D$1)","v":""},{"$f":"IF(OrigTable!B393=\"\",\"\",TEXT(OrigTable!B393,\"00\"))","v":""},{"$f":"IF(OrigTable!B393=\"\",\"\",ScriptText!$E$1&CHAR(10)&ScriptText!C388)","v":""},{"$f":"IF(OrigTable!C393=\"\",\"\",ScriptText!$B$1&CHAR(10)&ScriptText!$D$1)","v":"<tr>\n<td>"},{"$f":"IF(OrigTable!C393=\"\",\"\",IF(LEN(OrigTable!C393)>255,LEFT(OrigTable!C393,250)&\". . .\",OrigTable!C393))","v":"Installment Agreement Default Notice with Intent to Levy"},{"$f":"IF(OrigTable!C393=\"\",\"\",ScriptText!$E$1&CHAR(10)&ScriptText!$C$1)","v":"</td>\n</tr>"},{"$f":"IF(OrigTable!D393=\"\",\"\",ScriptText!$B$1&CHAR(10)&ScriptText!$D$1)","v":"<tr>\n<td>"},{"$f":"IF(OrigTable!D393=\"\",\"\",TEXT(OrigTable!D393,\"00\"))","v":"IDRS Notices"},{"$f":"IF(OrigTable!D393=\"\",\"\",ScriptText!$E$1&CHAR(10)&ScriptText!$C$1)","v":"</td>\n</tr>"},{"$f":"IF(OrigTable!E393=\"\",\"\",ScriptText!$B$1&CHAR(10)&ScriptText!$D$1)","v":""},{"$f":"IF(OrigTable!E393=\"\",\"\",TEXT(OrigTable!E393,\"00\"))","v":""},{"$f":"IF(OrigTable!E393=\"\",\"\",ScriptText!$E$1&CHAR(10)&ScriptText!$C$1)","v":""},{"$f":"IF(OrigTable!F393=\"\",\"\",ScriptText!$B$1&CHAR(10)&ScriptText!$D$1)","v":""},{"$f":"IF(OrigTable!F393=\"\",\"\",TEXT(OrigTable!F393,\"00\"))","v":""},{"$f":"IF(OrigTable!F393=\"\",\"\",ScriptText!$E$1&CHAR(10)&ScriptText!$C$1)","v":""},{"$f":"IF(OrigTable!G393=\"\",\"\",ScriptText!$B$1&CHAR(10)&ScriptText!$D$1)","v":""},{"$f":"IF(OrigTable!G393=\"\",\"\",TEXT(OrigTable!G393,\"00\"))","v":""},{"$f":"IF(OrigTable!G393=\"\",\"\",ScriptText!$E$1&CHAR(10)&ScriptText!$C$1)","v":""},393]
["<tr>\n<td>523H</td>\n</tr>\n\n<tr>\n<td>Installment Agreement Default Notice with Intent to Levy, ACA cases only</td>\n</tr>\n<tr>\n<td>IDRS Notices</td>\n</tr>",{"$f":"IF(OrigTable!A394=\"\",\"\",ScriptText!$B$1&CHAR(10)&ScriptText!$D$1)","v":"<tr>\n<td>"},{"$f":"IF(OrigTable!A394=\"\",\"\",TEXT(OrigTable!A394,\"00\"))","v":"523H"},{"$f":"IF(OrigTable!A394=\"\",\"\",ScriptText!$E$1&CHAR(10)&ScriptText!$C$1)","v":"</td>\n</tr>"},{"$f":"IF(OrigTable!B394=\"\",\"\",ScriptText!$B$1&CHAR(10)&ScriptText!$D$1)","v":""},{"$f":"IF(OrigTable!B394=\"\",\"\",TEXT(OrigTable!B394,\"00\"))","v":""},{"$f":"IF(OrigTable!B394=\"\",\"\",ScriptText!$E$1&CHAR(10)&ScriptText!C389)","v":""},{"$f":"IF(OrigTable!C394=\"\",\"\",ScriptText!$B$1&CHAR(10)&ScriptText!$D$1)","v":"<tr>\n<td>"},{"$f":"IF(OrigTable!C394=\"\",\"\",IF(LEN(OrigTable!C394)>255,LEFT(OrigTable!C394,250)&\". . .\",OrigTable!C394))","v":"Installment Agreement Default Notice with Intent to Levy, ACA cases only"},{"$f":"IF(OrigTable!C394=\"\",\"\",ScriptText!$E$1&CHAR(10)&ScriptText!$C$1)","v":"</td>\n</tr>"},{"$f":"IF(OrigTable!D394=\"\",\"\",ScriptText!$B$1&CHAR(10)&ScriptText!$D$1)","v":"<tr>\n<td>"},{"$f":"IF(OrigTable!D394=\"\",\"\",TEXT(OrigTable!D394,\"00\"))","v":"IDRS Notices"},{"$f":"IF(OrigTable!D394=\"\",\"\",ScriptText!$E$1&CHAR(10)&ScriptText!$C$1)","v":"</td>\n</tr>"},{"$f":"IF(OrigTable!E394=\"\",\"\",ScriptText!$B$1&CHAR(10)&ScriptText!$D$1)","v":""},{"$f":"IF(OrigTable!E394=\"\",\"\",TEXT(OrigTable!E394,\"00\"))","v":""},{"$f":"IF(OrigTable!E394=\"\",\"\",ScriptText!$E$1&CHAR(10)&ScriptText!$C$1)","v":""},{"$f":"IF(OrigTable!F394=\"\",\"\",ScriptText!$B$1&CHAR(10)&ScriptText!$D$1)","v":""},{"$f":"IF(OrigTable!F394=\"\",\"\",TEXT(OrigTable!F394,\"00\"))","v":""},{"$f":"IF(OrigTable!F394=\"\",\"\",ScriptText!$E$1&CHAR(10)&ScriptText!$C$1)","v":""},{"$f":"IF(OrigTable!G394=\"\",\"\",ScriptText!$B$1&CHAR(10)&ScriptText!$D$1)","v":""},{"$f":"IF(OrigTable!G394=\"\",\"\",TEXT(OrigTable!G394,\"00\"))","v":""},{"$f":"IF(OrigTable!G394=\"\",\"\",ScriptText!$E$1&CHAR(10)&ScriptText!$C$1)","v":""},394]
["<tr>\n<td>531</td>\n</tr>\n\n<tr>\n<td>Backup Withholding C notice, you could be subject to backup withholding</td>\n</tr>\n<tr>\n<td>IDRS Notices</td>\n</tr>",{"$f":"IF(OrigTable!A395=\"\",\"\",ScriptText!$B$1&CHAR(10)&ScriptText!$D$1)","v":"<tr>\n<td>"},{"$f":"IF(OrigTable!A395=\"\",\"\",TEXT(OrigTable!A395,\"00\"))","v":"531"},{"$f":"IF(OrigTable!A395=\"\",\"\",ScriptText!$E$1&CHAR(10)&ScriptText!$C$1)","v":"</td>\n</tr>"},{"$f":"IF(OrigTable!B395=\"\",\"\",ScriptText!$B$1&CHAR(10)&ScriptText!$D$1)","v":""},{"$f":"IF(OrigTable!B395=\"\",\"\",TEXT(OrigTable!B395,\"00\"))","v":""},{"$f":"IF(OrigTable!B395=\"\",\"\",ScriptText!$E$1&CHAR(10)&ScriptText!C390)","v":""},{"$f":"IF(OrigTable!C395=\"\",\"\",ScriptText!$B$1&CHAR(10)&ScriptText!$D$1)","v":"<tr>\n<td>"},{"$f":"IF(OrigTable!C395=\"\",\"\",IF(LEN(OrigTable!C395)>255,LEFT(OrigTable!C395,250)&\". . .\",OrigTable!C395))","v":"Backup Withholding C notice, you could be subject to backup withholding"},{"$f":"IF(OrigTable!C395=\"\",\"\",ScriptText!$E$1&CHAR(10)&ScriptText!$C$1)","v":"</td>\n</tr>"},{"$f":"IF(OrigTable!D395=\"\",\"\",ScriptText!$B$1&CHAR(10)&ScriptText!$D$1)","v":"<tr>\n<td>"},{"$f":"IF(OrigTable!D395=\"\",\"\",TEXT(OrigTable!D395,\"00\"))","v":"IDRS Notices"},{"$f":"IF(OrigTable!D395=\"\",\"\",ScriptText!$E$1&CHAR(10)&ScriptText!$C$1)","v":"</td>\n</tr>"},{"$f":"IF(OrigTable!E395=\"\",\"\",ScriptText!$B$1&CHAR(10)&ScriptText!$D$1)","v":""},{"$f":"IF(OrigTable!E395=\"\",\"\",TEXT(OrigTable!E395,\"00\"))","v":""},{"$f":"IF(OrigTable!E395=\"\",\"\",ScriptText!$E$1&CHAR(10)&ScriptText!$C$1)","v":""},{"$f":"IF(OrigTable!F395=\"\",\"\",ScriptText!$B$1&CHAR(10)&ScriptText!$D$1)","v":""},{"$f":"IF(OrigTable!F395=\"\",\"\",TEXT(OrigTable!F395,\"00\"))","v":""},{"$f":"IF(OrigTable!F395=\"\",\"\",ScriptText!$E$1&CHAR(10)&ScriptText!$C$1)","v":""},{"$f":"IF(OrigTable!G395=\"\",\"\",ScriptText!$B$1&CHAR(10)&ScriptText!$D$1)","v":""},{"$f":"IF(OrigTable!G395=\"\",\"\",TEXT(OrigTable!G395,\"00\"))","v":""},{"$f":"IF(OrigTable!G395=\"\",\"\",ScriptText!$E$1&CHAR(10)&ScriptText!$C$1)","v":""},395]
["<tr>\n<td>538</td>\n</tr>\n\n<tr>\n<td>Backup withholding C notice, taxpayer notification of balance due</td>\n</tr>\n<tr>\n<td>IDRS Notices</td>\n</tr>",{"$f":"IF(OrigTable!A396=\"\",\"\",ScriptText!$B$1&CHAR(10)&ScriptText!$D$1)","v":"<tr>\n<td>"},{"$f":"IF(OrigTable!A396=\"\",\"\",TEXT(OrigTable!A396,\"00\"))","v":"538"},{"$f":"IF(OrigTable!A396=\"\",\"\",ScriptText!$E$1&CHAR(10)&ScriptText!$C$1)","v":"</td>\n</tr>"},{"$f":"IF(OrigTable!B396=\"\",\"\",ScriptText!$B$1&CHAR(10)&ScriptText!$D$1)","v":""},{"$f":"IF(OrigTable!B396=\"\",\"\",TEXT(OrigTable!B396,\"00\"))","v":""},{"$f":"IF(OrigTable!B396=\"\",\"\",ScriptText!$E$1&CHAR(10)&ScriptText!C391)","v":""},{"$f":"IF(OrigTable!C396=\"\",\"\",ScriptText!$B$1&CHAR(10)&ScriptText!$D$1)","v":"<tr>\n<td>"},{"$f":"IF(OrigTable!C396=\"\",\"\",IF(LEN(OrigTable!C396)>255,LEFT(OrigTable!C396,250)&\". . .\",OrigTable!C396))","v":"Backup withholding C notice, taxpayer notification of balance due"},{"$f":"IF(OrigTable!C396=\"\",\"\",ScriptText!$E$1&CHAR(10)&ScriptText!$C$1)","v":"</td>\n</tr>"},{"$f":"IF(OrigTable!D396=\"\",\"\",ScriptText!$B$1&CHAR(10)&ScriptText!$D$1)","v":"<tr>\n<td>"},{"$f":"IF(OrigTable!D396=\"\",\"\",TEXT(OrigTable!D396,\"00\"))","v":"IDRS Notices"},{"$f":"IF(OrigTable!D396=\"\",\"\",ScriptText!$E$1&CHAR(10)&ScriptText!$C$1)","v":"</td>\n</tr>"},{"$f":"IF(OrigTable!E396=\"\",\"\",ScriptText!$B$1&CHAR(10)&ScriptText!$D$1)","v":""},{"$f":"IF(OrigTable!E396=\"\",\"\",TEXT(OrigTable!E396,\"00\"))","v":""},{"$f":"IF(OrigTable!E396=\"\",\"\",ScriptText!$E$1&CHAR(10)&ScriptText!$C$1)","v":""},{"$f":"IF(OrigTable!F396=\"\",\"\",ScriptText!$B$1&CHAR(10)&ScriptText!$D$1)","v":""},{"$f":"IF(OrigTable!F396=\"\",\"\",TEXT(OrigTable!F396,\"00\"))","v":""},{"$f":"IF(OrigTable!F396=\"\",\"\",ScriptText!$E$1&CHAR(10)&ScriptText!$C$1)","v":""},{"$f":"IF(OrigTable!G396=\"\",\"\",ScriptText!$B$1&CHAR(10)&ScriptText!$D$1)","v":""},{"$f":"IF(OrigTable!G396=\"\",\"\",TEXT(OrigTable!G396,\"00\"))","v":""},{"$f":"IF(OrigTable!G396=\"\",\"\",ScriptText!$E$1&CHAR(10)&ScriptText!$C$1)","v":""},396]
["<tr>\n<td>539</td>\n</tr>\n\n<tr>\n<td>Backup withholding C notice, taxpayer second notification of balance due and now subject to backup\nwithholding</td>\n</tr>\n<tr>\n<td>IDRS Notices</td>\n</tr>",{"$f":"IF(OrigTable!A397=\"\",\"\",ScriptText!$B$1&CHAR(10)&ScriptText!$D$1)","v":"<tr>\n<td>"},{"$f":"IF(OrigTable!A397=\"\",\"\",TEXT(OrigTable!A397,\"00\"))","v":"539"},{"$f":"IF(OrigTable!A397=\"\",\"\",ScriptText!$E$1&CHAR(10)&ScriptText!$C$1)","v":"</td>\n</tr>"},{"$f":"IF(OrigTable!B397=\"\",\"\",ScriptText!$B$1&CHAR(10)&ScriptText!$D$1)","v":""},{"$f":"IF(OrigTable!B397=\"\",\"\",TEXT(OrigTable!B397,\"00\"))","v":""},{"$f":"IF(OrigTable!B397=\"\",\"\",ScriptText!$E$1&CHAR(10)&ScriptText!C392)","v":""},{"$f":"IF(OrigTable!C397=\"\",\"\",ScriptText!$B$1&CHAR(10)&ScriptText!$D$1)","v":"<tr>\n<td>"},{"$f":"IF(OrigTable!C397=\"\",\"\",IF(LEN(OrigTable!C397)>255,LEFT(OrigTable!C397,250)&\". . .\",OrigTable!C397))","v":"Backup withholding C notice, taxpayer second notification of balance due and now subject to backup\nwithholding"},{"$f":"IF(OrigTable!C397=\"\",\"\",ScriptText!$E$1&CHAR(10)&ScriptText!$C$1)","v":"</td>\n</tr>"},{"$f":"IF(OrigTable!D397=\"\",\"\",ScriptText!$B$1&CHAR(10)&ScriptText!$D$1)","v":"<tr>\n<td>"},{"$f":"IF(OrigTable!D397=\"\",\"\",TEXT(OrigTable!D397,\"00\"))","v":"IDRS Notices"},{"$f":"IF(OrigTable!D397=\"\",\"\",ScriptText!$E$1&CHAR(10)&ScriptText!$C$1)","v":"</td>\n</tr>"},{"$f":"IF(OrigTable!E397=\"\",\"\",ScriptText!$B$1&CHAR(10)&ScriptText!$D$1)","v":""},{"$f":"IF(OrigTable!E397=\"\",\"\",TEXT(OrigTable!E397,\"00\"))","v":""},{"$f":"IF(OrigTable!E397=\"\",\"\",ScriptText!$E$1&CHAR(10)&ScriptText!$C$1)","v":""},{"$f":"IF(OrigTable!F397=\"\",\"\",ScriptText!$B$1&CHAR(10)&ScriptText!$D$1)","v":""},{"$f":"IF(OrigTable!F397=\"\",\"\",TEXT(OrigTable!F397,\"00\"))","v":""},{"$f":"IF(OrigTable!F397=\"\",\"\",ScriptText!$E$1&CHAR(10)&ScriptText!$C$1)","v":""},{"$f":"IF(OrigTable!G397=\"\",\"\",ScriptText!$B$1&CHAR(10)&ScriptText!$D$1)","v":""},{"$f":"IF(OrigTable!G397=\"\",\"\",TEXT(OrigTable!G397,\"00\"))","v":""},{"$f":"IF(OrigTable!G397=\"\",\"\",ScriptText!$E$1&CHAR(10)&ScriptText!$C$1)","v":""},397]
["<tr>\n<td>540</td>\n</tr>\n\n<tr>\n<td>Backup withholding C notice, taxpayer notification of non-filer</td>\n</tr>\n<tr>\n<td>IDRS Notices</td>\n</tr>",{"$f":"IF(OrigTable!A398=\"\",\"\",ScriptText!$B$1&CHAR(10)&ScriptText!$D$1)","v":"<tr>\n<td>"},{"$f":"IF(OrigTable!A398=\"\",\"\",TEXT(OrigTable!A398,\"00\"))","v":"540"},{"$f":"IF(OrigTable!A398=\"\",\"\",ScriptText!$E$1&CHAR(10)&ScriptText!$C$1)","v":"</td>\n</tr>"},{"$f":"IF(OrigTable!B398=\"\",\"\",ScriptText!$B$1&CHAR(10)&ScriptText!$D$1)","v":""},{"$f":"IF(OrigTable!B398=\"\",\"\",TEXT(OrigTable!B398,\"00\"))","v":""},{"$f":"IF(OrigTable!B398=\"\",\"\",ScriptText!$E$1&CHAR(10)&ScriptText!C393)","v":""},{"$f":"IF(OrigTable!C398=\"\",\"\",ScriptText!$B$1&CHAR(10)&ScriptText!$D$1)","v":"<tr>\n<td>"},{"$f":"IF(OrigTable!C398=\"\",\"\",IF(LEN(OrigTable!C398)>255,LEFT(OrigTable!C398,250)&\". . .\",OrigTable!C398))","v":"Backup withholding C notice, taxpayer notification of non-filer"},{"$f":"IF(OrigTable!C398=\"\",\"\",ScriptText!$E$1&CHAR(10)&ScriptText!$C$1)","v":"</td>\n</tr>"},{"$f":"IF(OrigTable!D398=\"\",\"\",ScriptText!$B$1&CHAR(10)&ScriptText!$D$1)","v":"<tr>\n<td>"},{"$f":"IF(OrigTable!D398=\"\",\"\",TEXT(OrigTable!D398,\"00\"))","v":"IDRS Notices"},{"$f":"IF(OrigTable!D398=\"\",\"\",ScriptText!$E$1&CHAR(10)&ScriptText!$C$1)","v":"</td>\n</tr>"},{"$f":"IF(OrigTable!E398=\"\",\"\",ScriptText!$B$1&CHAR(10)&ScriptText!$D$1)","v":""},{"$f":"IF(OrigTable!E398=\"\",\"\",TEXT(OrigTable!E398,\"00\"))","v":""},{"$f":"IF(OrigTable!E398=\"\",\"\",ScriptText!$E$1&CHAR(10)&ScriptText!$C$1)","v":""},{"$f":"IF(OrigTable!F398=\"\",\"\",ScriptText!$B$1&CHAR(10)&ScriptText!$D$1)","v":""},{"$f":"IF(OrigTable!F398=\"\",\"\",TEXT(OrigTable!F398,\"00\"))","v":""},{"$f":"IF(OrigTable!F398=\"\",\"\",ScriptText!$E$1&CHAR(10)&ScriptText!$C$1)","v":""},{"$f":"IF(OrigTable!G398=\"\",\"\",ScriptText!$B$1&CHAR(10)&ScriptText!$D$1)","v":""},{"$f":"IF(OrigTable!G398=\"\",\"\",TEXT(OrigTable!G398,\"00\"))","v":""},{"$f":"IF(OrigTable!G398=\"\",\"\",ScriptText!$E$1&CHAR(10)&ScriptText!$C$1)","v":""},398]
["<tr>\n<td>541</td>\n</tr>\n\n<tr>\n<td>Backup withholding C notice, taxpayer second notification of non-filer and now subject to backup\nwithholding.</td>\n</tr>\n<tr>\n<td>IDRS Notices</td>\n</tr>",{"$f":"IF(OrigTable!A399=\"\",\"\",ScriptText!$B$1&CHAR(10)&ScriptText!$D$1)","v":"<tr>\n<td>"},{"$f":"IF(OrigTable!A399=\"\",\"\",TEXT(OrigTable!A399,\"00\"))","v":"541"},{"$f":"IF(OrigTable!A399=\"\",\"\",ScriptText!$E$1&CHAR(10)&ScriptText!$C$1)","v":"</td>\n</tr>"},{"$f":"IF(OrigTable!B399=\"\",\"\",ScriptText!$B$1&CHAR(10)&ScriptText!$D$1)","v":""},{"$f":"IF(OrigTable!B399=\"\",\"\",TEXT(OrigTable!B399,\"00\"))","v":""},{"$f":"IF(OrigTable!B399=\"\",\"\",ScriptText!$E$1&CHAR(10)&ScriptText!C394)","v":""},{"$f":"IF(OrigTable!C399=\"\",\"\",ScriptText!$B$1&CHAR(10)&ScriptText!$D$1)","v":"<tr>\n<td>"},{"$f":"IF(OrigTable!C399=\"\",\"\",IF(LEN(OrigTable!C399)>255,LEFT(OrigTable!C399,250)&\". . .\",OrigTable!C399))","v":"Backup withholding C notice, taxpayer second notification of non-filer and now subject to backup\nwithholding."},{"$f":"IF(OrigTable!C399=\"\",\"\",ScriptText!$E$1&CHAR(10)&ScriptText!$C$1)","v":"</td>\n</tr>"},{"$f":"IF(OrigTable!D399=\"\",\"\",ScriptText!$B$1&CHAR(10)&ScriptText!$D$1)","v":"<tr>\n<td>"},{"$f":"IF(OrigTable!D399=\"\",\"\",TEXT(OrigTable!D399,\"00\"))","v":"IDRS Notices"},{"$f":"IF(OrigTable!D399=\"\",\"\",ScriptText!$E$1&CHAR(10)&ScriptText!$C$1)","v":"</td>\n</tr>"},{"$f":"IF(OrigTable!E399=\"\",\"\",ScriptText!$B$1&CHAR(10)&ScriptText!$D$1)","v":""},{"$f":"IF(OrigTable!E399=\"\",\"\",TEXT(OrigTable!E399,\"00\"))","v":""},{"$f":"IF(OrigTable!E399=\"\",\"\",ScriptText!$E$1&CHAR(10)&ScriptText!$C$1)","v":""},{"$f":"IF(OrigTable!F399=\"\",\"\",ScriptText!$B$1&CHAR(10)&ScriptText!$D$1)","v":""},{"$f":"IF(OrigTable!F399=\"\",\"\",TEXT(OrigTable!F399,\"00\"))","v":""},{"$f":"IF(OrigTable!F399=\"\",\"\",ScriptText!$E$1&CHAR(10)&ScriptText!$C$1)","v":""},{"$f":"IF(OrigTable!G399=\"\",\"\",ScriptText!$B$1&CHAR(10)&ScriptText!$D$1)","v":""},{"$f":"IF(OrigTable!G399=\"\",\"\",TEXT(OrigTable!G399,\"00\"))","v":""},{"$f":"IF(OrigTable!G399=\"\",\"\",ScriptText!$E$1&CHAR(10)&ScriptText!$C$1)","v":""},399]
["<tr>\n<td>542</td>\n</tr>\n\n<tr>\n<td>Notice to payee to stop backup withholding</td>\n</tr>\n<tr>\n<td>IDRS Notices</td>\n</tr>",{"$f":"IF(OrigTable!A400=\"\",\"\",ScriptText!$B$1&CHAR(10)&ScriptText!$D$1)","v":"<tr>\n<td>"},{"$f":"IF(OrigTable!A400=\"\",\"\",TEXT(OrigTable!A400,\"00\"))","v":"542"},{"$f":"IF(OrigTable!A400=\"\",\"\",ScriptText!$E$1&CHAR(10)&ScriptText!$C$1)","v":"</td>\n</tr>"},{"$f":"IF(OrigTable!B400=\"\",\"\",ScriptText!$B$1&CHAR(10)&ScriptText!$D$1)","v":""},{"$f":"IF(OrigTable!B400=\"\",\"\",TEXT(OrigTable!B400,\"00\"))","v":""},{"$f":"IF(OrigTable!B400=\"\",\"\",ScriptText!$E$1&CHAR(10)&ScriptText!C395)","v":""},{"$f":"IF(OrigTable!C400=\"\",\"\",ScriptText!$B$1&CHAR(10)&ScriptText!$D$1)","v":"<tr>\n<td>"},{"$f":"IF(OrigTable!C400=\"\",\"\",IF(LEN(OrigTable!C400)>255,LEFT(OrigTable!C400,250)&\". . .\",OrigTable!C400))","v":"Notice to payee to stop backup withholding"},{"$f":"IF(OrigTable!C400=\"\",\"\",ScriptText!$E$1&CHAR(10)&ScriptText!$C$1)","v":"</td>\n</tr>"},{"$f":"IF(OrigTable!D400=\"\",\"\",ScriptText!$B$1&CHAR(10)&ScriptText!$D$1)","v":"<tr>\n<td>"},{"$f":"IF(OrigTable!D400=\"\",\"\",TEXT(OrigTable!D400,\"00\"))","v":"IDRS Notices"},{"$f":"IF(OrigTable!D400=\"\",\"\",ScriptText!$E$1&CHAR(10)&ScriptText!$C$1)","v":"</td>\n</tr>"},{"$f":"IF(OrigTable!E400=\"\",\"\",ScriptText!$B$1&CHAR(10)&ScriptText!$D$1)","v":""},{"$f":"IF(OrigTable!E400=\"\",\"\",TEXT(OrigTable!E400,\"00\"))","v":""},{"$f":"IF(OrigTable!E400=\"\",\"\",ScriptText!$E$1&CHAR(10)&ScriptText!$C$1)","v":""},{"$f":"IF(OrigTable!F400=\"\",\"\",ScriptText!$B$1&CHAR(10)&ScriptText!$D$1)","v":""},{"$f":"IF(OrigTable!F400=\"\",\"\",TEXT(OrigTable!F400,\"00\"))","v":""},{"$f":"IF(OrigTable!F400=\"\",\"\",ScriptText!$E$1&CHAR(10)&ScriptText!$C$1)","v":""},{"$f":"IF(OrigTable!G400=\"\",\"\",ScriptText!$B$1&CHAR(10)&ScriptText!$D$1)","v":""},{"$f":"IF(OrigTable!G400=\"\",\"\",TEXT(OrigTable!G400,\"00\"))","v":""},{"$f":"IF(OrigTable!G400=\"\",\"\",ScriptText!$E$1&CHAR(10)&ScriptText!$C$1)","v":""},400]
["<tr>\n<td>543</td>\n</tr>\n\n<tr>\n<td>Backup withholding notification- Payer notification to begin backup withholding on taxpayer(s) listed</td>\n</tr>\n<tr>\n<td>IDRS Notices</td>\n</tr>",{"$f":"IF(OrigTable!A401=\"\",\"\",ScriptText!$B$1&CHAR(10)&ScriptText!$D$1)","v":"<tr>\n<td>"},{"$f":"IF(OrigTable!A401=\"\",\"\",TEXT(OrigTable!A401,\"00\"))","v":"543"},{"$f":"IF(OrigTable!A401=\"\",\"\",ScriptText!$E$1&CHAR(10)&ScriptText!$C$1)","v":"</td>\n</tr>"},{"$f":"IF(OrigTable!B401=\"\",\"\",ScriptText!$B$1&CHAR(10)&ScriptText!$D$1)","v":""},{"$f":"IF(OrigTable!B401=\"\",\"\",TEXT(OrigTable!B401,\"00\"))","v":""},{"$f":"IF(OrigTable!B401=\"\",\"\",ScriptText!$E$1&CHAR(10)&ScriptText!C396)","v":""},{"$f":"IF(OrigTable!C401=\"\",\"\",ScriptText!$B$1&CHAR(10)&ScriptText!$D$1)","v":"<tr>\n<td>"},{"$f":"IF(OrigTable!C401=\"\",\"\",IF(LEN(OrigTable!C401)>255,LEFT(OrigTable!C401,250)&\". . .\",OrigTable!C401))","v":"Backup withholding notification- Payer notification to begin backup withholding on taxpayer(s) listed"},{"$f":"IF(OrigTable!C401=\"\",\"\",ScriptText!$E$1&CHAR(10)&ScriptText!$C$1)","v":"</td>\n</tr>"},{"$f":"IF(OrigTable!D401=\"\",\"\",ScriptText!$B$1&CHAR(10)&ScriptText!$D$1)","v":"<tr>\n<td>"},{"$f":"IF(OrigTable!D401=\"\",\"\",TEXT(OrigTable!D401,\"00\"))","v":"IDRS Notices"},{"$f":"IF(OrigTable!D401=\"\",\"\",ScriptText!$E$1&CHAR(10)&ScriptText!$C$1)","v":"</td>\n</tr>"},{"$f":"IF(OrigTable!E401=\"\",\"\",ScriptText!$B$1&CHAR(10)&ScriptText!$D$1)","v":""},{"$f":"IF(OrigTable!E401=\"\",\"\",TEXT(OrigTable!E401,\"00\"))","v":""},{"$f":"IF(OrigTable!E401=\"\",\"\",ScriptText!$E$1&CHAR(10)&ScriptText!$C$1)","v":""},{"$f":"IF(OrigTable!F401=\"\",\"\",ScriptText!$B$1&CHAR(10)&ScriptText!$D$1)","v":""},{"$f":"IF(OrigTable!F401=\"\",\"\",TEXT(OrigTable!F401,\"00\"))","v":""},{"$f":"IF(OrigTable!F401=\"\",\"\",ScriptText!$E$1&CHAR(10)&ScriptText!$C$1)","v":""},{"$f":"IF(OrigTable!G401=\"\",\"\",ScriptText!$B$1&CHAR(10)&ScriptText!$D$1)","v":""},{"$f":"IF(OrigTable!G401=\"\",\"\",TEXT(OrigTable!G401,\"00\"))","v":""},{"$f":"IF(OrigTable!G401=\"\",\"\",ScriptText!$E$1&CHAR(10)&ScriptText!$C$1)","v":""},401]
["<tr>\n<td>544</td>\n</tr>\n\n<tr>\n<td>Backup withholding notification to payer to stop backup withholding</td>\n</tr>\n<tr>\n<td>IDRS Notices</td>\n</tr>",{"$f":"IF(OrigTable!A402=\"\",\"\",ScriptText!$B$1&CHAR(10)&ScriptText!$D$1)","v":"<tr>\n<td>"},{"$f":"IF(OrigTable!A402=\"\",\"\",TEXT(OrigTable!A402,\"00\"))","v":"544"},{"$f":"IF(OrigTable!A402=\"\",\"\",ScriptText!$E$1&CHAR(10)&ScriptText!$C$1)","v":"</td>\n</tr>"},{"$f":"IF(OrigTable!B402=\"\",\"\",ScriptText!$B$1&CHAR(10)&ScriptText!$D$1)","v":""},{"$f":"IF(OrigTable!B402=\"\",\"\",TEXT(OrigTable!B402,\"00\"))","v":""},{"$f":"IF(OrigTable!B402=\"\",\"\",ScriptText!$E$1&CHAR(10)&ScriptText!C397)","v":""},{"$f":"IF(OrigTable!C402=\"\",\"\",ScriptText!$B$1&CHAR(10)&ScriptText!$D$1)","v":"<tr>\n<td>"},{"$f":"IF(OrigTable!C402=\"\",\"\",IF(LEN(OrigTable!C402)>255,LEFT(OrigTable!C402,250)&\". . .\",OrigTable!C402))","v":"Backup withholding notification to payer to stop backup withholding"},{"$f":"IF(OrigTable!C402=\"\",\"\",ScriptText!$E$1&CHAR(10)&ScriptText!$C$1)","v":"</td>\n</tr>"},{"$f":"IF(OrigTable!D402=\"\",\"\",ScriptText!$B$1&CHAR(10)&ScriptText!$D$1)","v":"<tr>\n<td>"},{"$f":"IF(OrigTable!D402=\"\",\"\",TEXT(OrigTable!D402,\"00\"))","v":"IDRS Notices"},{"$f":"IF(OrigTable!D402=\"\",\"\",ScriptText!$E$1&CHAR(10)&ScriptText!$C$1)","v":"</td>\n</tr>"},{"$f":"IF(OrigTable!E402=\"\",\"\",ScriptText!$B$1&CHAR(10)&ScriptText!$D$1)","v":""},{"$f":"IF(OrigTable!E402=\"\",\"\",TEXT(OrigTable!E402,\"00\"))","v":""},{"$f":"IF(OrigTable!E402=\"\",\"\",ScriptText!$E$1&CHAR(10)&ScriptText!$C$1)","v":""},{"$f":"IF(OrigTable!F402=\"\",\"\",ScriptText!$B$1&CHAR(10)&ScriptText!$D$1)","v":""},{"$f":"IF(OrigTable!F402=\"\",\"\",TEXT(OrigTable!F402,\"00\"))","v":""},{"$f":"IF(OrigTable!F402=\"\",\"\",ScriptText!$E$1&CHAR(10)&ScriptText!$C$1)","v":""},{"$f":"IF(OrigTable!G402=\"\",\"\",ScriptText!$B$1&CHAR(10)&ScriptText!$D$1)","v":""},{"$f":"IF(OrigTable!G402=\"\",\"\",TEXT(OrigTable!G402,\"00\"))","v":""},{"$f":"IF(OrigTable!G402=\"\",\"\",ScriptText!$E$1&CHAR(10)&ScriptText!$C$1)","v":""},402]
["<tr>\n<td>545</td>\n</tr>\n\n<tr>\n<td>Backup withholding notification to payer to discontinue backup withholding</td>\n</tr>\n<tr>\n<td>IDRS Notices</td>\n</tr>",{"$f":"IF(OrigTable!A403=\"\",\"\",ScriptText!$B$1&CHAR(10)&ScriptText!$D$1)","v":"<tr>\n<td>"},{"$f":"IF(OrigTable!A403=\"\",\"\",TEXT(OrigTable!A403,\"00\"))","v":"545"},{"$f":"IF(OrigTable!A403=\"\",\"\",ScriptText!$E$1&CHAR(10)&ScriptText!$C$1)","v":"</td>\n</tr>"},{"$f":"IF(OrigTable!B403=\"\",\"\",ScriptText!$B$1&CHAR(10)&ScriptText!$D$1)","v":""},{"$f":"IF(OrigTable!B403=\"\",\"\",TEXT(OrigTable!B403,\"00\"))","v":""},{"$f":"IF(OrigTable!B403=\"\",\"\",ScriptText!$E$1&CHAR(10)&ScriptText!C398)","v":""},{"$f":"IF(OrigTable!C403=\"\",\"\",ScriptText!$B$1&CHAR(10)&ScriptText!$D$1)","v":"<tr>\n<td>"},{"$f":"IF(OrigTable!C403=\"\",\"\",IF(LEN(OrigTable!C403)>255,LEFT(OrigTable!C403,250)&\". . .\",OrigTable!C403))","v":"Backup withholding notification to payer to discontinue backup withholding"},{"$f":"IF(OrigTable!C403=\"\",\"\",ScriptText!$E$1&CHAR(10)&ScriptText!$C$1)","v":"</td>\n</tr>"},{"$f":"IF(OrigTable!D403=\"\",\"\",ScriptText!$B$1&CHAR(10)&ScriptText!$D$1)","v":"<tr>\n<td>"},{"$f":"IF(OrigTable!D403=\"\",\"\",TEXT(OrigTable!D403,\"00\"))","v":"IDRS Notices"},{"$f":"IF(OrigTable!D403=\"\",\"\",ScriptText!$E$1&CHAR(10)&ScriptText!$C$1)","v":"</td>\n</tr>"},{"$f":"IF(OrigTable!E403=\"\",\"\",ScriptText!$B$1&CHAR(10)&ScriptText!$D$1)","v":""},{"$f":"IF(OrigTable!E403=\"\",\"\",TEXT(OrigTable!E403,\"00\"))","v":""},{"$f":"IF(OrigTable!E403=\"\",\"\",ScriptText!$E$1&CHAR(10)&ScriptText!$C$1)","v":""},{"$f":"IF(OrigTable!F403=\"\",\"\",ScriptText!$B$1&CHAR(10)&ScriptText!$D$1)","v":""},{"$f":"IF(OrigTable!F403=\"\",\"\",TEXT(OrigTable!F403,\"00\"))","v":""},{"$f":"IF(OrigTable!F403=\"\",\"\",ScriptText!$E$1&CHAR(10)&ScriptText!$C$1)","v":""},{"$f":"IF(OrigTable!G403=\"\",\"\",ScriptText!$B$1&CHAR(10)&ScriptText!$D$1)","v":""},{"$f":"IF(OrigTable!G403=\"\",\"\",TEXT(OrigTable!G403,\"00\"))","v":""},{"$f":"IF(OrigTable!G403=\"\",\"\",ScriptText!$E$1&CHAR(10)&ScriptText!$C$1)","v":""},403]
["<tr>\n<td>546</td>\n</tr>\n\n<tr>\n<td>Backup withholding notification- Special backup withholding list</td>\n</tr>\n<tr>\n<td>IDRS Notices</td>\n</tr>",{"$f":"IF(OrigTable!A404=\"\",\"\",ScriptText!$B$1&CHAR(10)&ScriptText!$D$1)","v":"<tr>\n<td>"},{"$f":"IF(OrigTable!A404=\"\",\"\",TEXT(OrigTable!A404,\"00\"))","v":"546"},{"$f":"IF(OrigTable!A404=\"\",\"\",ScriptText!$E$1&CHAR(10)&ScriptText!$C$1)","v":"</td>\n</tr>"},{"$f":"IF(OrigTable!B404=\"\",\"\",ScriptText!$B$1&CHAR(10)&ScriptText!$D$1)","v":""},{"$f":"IF(OrigTable!B404=\"\",\"\",TEXT(OrigTable!B404,\"00\"))","v":""},{"$f":"IF(OrigTable!B404=\"\",\"\",ScriptText!$E$1&CHAR(10)&ScriptText!C399)","v":""},{"$f":"IF(OrigTable!C404=\"\",\"\",ScriptText!$B$1&CHAR(10)&ScriptText!$D$1)","v":"<tr>\n<td>"},{"$f":"IF(OrigTable!C404=\"\",\"\",IF(LEN(OrigTable!C404)>255,LEFT(OrigTable!C404,250)&\". . .\",OrigTable!C404))","v":"Backup withholding notification- Special backup withholding list"},{"$f":"IF(OrigTable!C404=\"\",\"\",ScriptText!$E$1&CHAR(10)&ScriptText!$C$1)","v":"</td>\n</tr>"},{"$f":"IF(OrigTable!D404=\"\",\"\",ScriptText!$B$1&CHAR(10)&ScriptText!$D$1)","v":"<tr>\n<td>"},{"$f":"IF(OrigTable!D404=\"\",\"\",TEXT(OrigTable!D404,\"00\"))","v":"IDRS Notices"},{"$f":"IF(OrigTable!D404=\"\",\"\",ScriptText!$E$1&CHAR(10)&ScriptText!$C$1)","v":"</td>\n</tr>"},{"$f":"IF(OrigTable!E404=\"\",\"\",ScriptText!$B$1&CHAR(10)&ScriptText!$D$1)","v":""},{"$f":"IF(OrigTable!E404=\"\",\"\",TEXT(OrigTable!E404,\"00\"))","v":""},{"$f":"IF(OrigTable!E404=\"\",\"\",ScriptText!$E$1&CHAR(10)&ScriptText!$C$1)","v":""},{"$f":"IF(OrigTable!F404=\"\",\"\",ScriptText!$B$1&CHAR(10)&ScriptText!$D$1)","v":""},{"$f":"IF(OrigTable!F404=\"\",\"\",TEXT(OrigTable!F404,\"00\"))","v":""},{"$f":"IF(OrigTable!F404=\"\",\"\",ScriptText!$E$1&CHAR(10)&ScriptText!$C$1)","v":""},{"$f":"IF(OrigTable!G404=\"\",\"\",ScriptText!$B$1&CHAR(10)&ScriptText!$D$1)","v":""},{"$f":"IF(OrigTable!G404=\"\",\"\",TEXT(OrigTable!G404,\"00\"))","v":""},{"$f":"IF(OrigTable!G404=\"\",\"\",ScriptText!$E$1&CHAR(10)&ScriptText!$C$1)","v":""},404]
["<tr>\n<td>547</td>\n</tr>\n\n<tr>\n<td>We assigned you a Centralized Authorization File (CAF) number</td>\n</tr>\n<tr>\n<td>IDRS Notices</td>\n</tr>",{"$f":"IF(OrigTable!A405=\"\",\"\",ScriptText!$B$1&CHAR(10)&ScriptText!$D$1)","v":"<tr>\n<td>"},{"$f":"IF(OrigTable!A405=\"\",\"\",TEXT(OrigTable!A405,\"00\"))","v":"547"},{"$f":"IF(OrigTable!A405=\"\",\"\",ScriptText!$E$1&CHAR(10)&ScriptText!$C$1)","v":"</td>\n</tr>"},{"$f":"IF(OrigTable!B405=\"\",\"\",ScriptText!$B$1&CHAR(10)&ScriptText!$D$1)","v":""},{"$f":"IF(OrigTable!B405=\"\",\"\",TEXT(OrigTable!B405,\"00\"))","v":""},{"$f":"IF(OrigTable!B405=\"\",\"\",ScriptText!$E$1&CHAR(10)&ScriptText!C400)","v":""},{"$f":"IF(OrigTable!C405=\"\",\"\",ScriptText!$B$1&CHAR(10)&ScriptText!$D$1)","v":"<tr>\n<td>"},{"$f":"IF(OrigTable!C405=\"\",\"\",IF(LEN(OrigTable!C405)>255,LEFT(OrigTable!C405,250)&\". . .\",OrigTable!C405))","v":"We assigned you a Centralized Authorization File (CAF) number"},{"$f":"IF(OrigTable!C405=\"\",\"\",ScriptText!$E$1&CHAR(10)&ScriptText!$C$1)","v":"</td>\n</tr>"},{"$f":"IF(OrigTable!D405=\"\",\"\",ScriptText!$B$1&CHAR(10)&ScriptText!$D$1)","v":"<tr>\n<td>"},{"$f":"IF(OrigTable!D405=\"\",\"\",TEXT(OrigTable!D405,\"00\"))","v":"IDRS Notices"},{"$f":"IF(OrigTable!D405=\"\",\"\",ScriptText!$E$1&CHAR(10)&ScriptText!$C$1)","v":"</td>\n</tr>"},{"$f":"IF(OrigTable!E405=\"\",\"\",ScriptText!$B$1&CHAR(10)&ScriptText!$D$1)","v":""},{"$f":"IF(OrigTable!E405=\"\",\"\",TEXT(OrigTable!E405,\"00\"))","v":""},{"$f":"IF(OrigTable!E405=\"\",\"\",ScriptText!$E$1&CHAR(10)&ScriptText!$C$1)","v":""},{"$f":"IF(OrigTable!F405=\"\",\"\",ScriptText!$B$1&CHAR(10)&ScriptText!$D$1)","v":""},{"$f":"IF(OrigTable!F405=\"\",\"\",TEXT(OrigTable!F405,\"00\"))","v":""},{"$f":"IF(OrigTable!F405=\"\",\"\",ScriptText!$E$1&CHAR(10)&ScriptText!$C$1)","v":""},{"$f":"IF(OrigTable!G405=\"\",\"\",ScriptText!$B$1&CHAR(10)&ScriptText!$D$1)","v":""},{"$f":"IF(OrigTable!G405=\"\",\"\",TEXT(OrigTable!G405,\"00\"))","v":""},{"$f":"IF(OrigTable!G405=\"\",\"\",ScriptText!$E$1&CHAR(10)&ScriptText!$C$1)","v":""},405]
["<tr>\n<td>548A</td>\n</tr>\n\n<tr>\n<td>Change to Representation – representative disbarred</td>\n</tr>\n<tr>\n<td>IDRS Notices</td>\n</tr>",{"$f":"IF(OrigTable!A406=\"\",\"\",ScriptText!$B$1&CHAR(10)&ScriptText!$D$1)","v":"<tr>\n<td>"},{"$f":"IF(OrigTable!A406=\"\",\"\",TEXT(OrigTable!A406,\"00\"))","v":"548A"},{"$f":"IF(OrigTable!A406=\"\",\"\",ScriptText!$E$1&CHAR(10)&ScriptText!$C$1)","v":"</td>\n</tr>"},{"$f":"IF(OrigTable!B406=\"\",\"\",ScriptText!$B$1&CHAR(10)&ScriptText!$D$1)","v":""},{"$f":"IF(OrigTable!B406=\"\",\"\",TEXT(OrigTable!B406,\"00\"))","v":""},{"$f":"IF(OrigTable!B406=\"\",\"\",ScriptText!$E$1&CHAR(10)&ScriptText!C401)","v":""},{"$f":"IF(OrigTable!C406=\"\",\"\",ScriptText!$B$1&CHAR(10)&ScriptText!$D$1)","v":"<tr>\n<td>"},{"$f":"IF(OrigTable!C406=\"\",\"\",IF(LEN(OrigTable!C406)>255,LEFT(OrigTable!C406,250)&\". . .\",OrigTable!C406))","v":"Change to Representation – representative disbarred"},{"$f":"IF(OrigTable!C406=\"\",\"\",ScriptText!$E$1&CHAR(10)&ScriptText!$C$1)","v":"</td>\n</tr>"},{"$f":"IF(OrigTable!D406=\"\",\"\",ScriptText!$B$1&CHAR(10)&ScriptText!$D$1)","v":"<tr>\n<td>"},{"$f":"IF(OrigTable!D406=\"\",\"\",TEXT(OrigTable!D406,\"00\"))","v":"IDRS Notices"},{"$f":"IF(OrigTable!D406=\"\",\"\",ScriptText!$E$1&CHAR(10)&ScriptText!$C$1)","v":"</td>\n</tr>"},{"$f":"IF(OrigTable!E406=\"\",\"\",ScriptText!$B$1&CHAR(10)&ScriptText!$D$1)","v":""},{"$f":"IF(OrigTable!E406=\"\",\"\",TEXT(OrigTable!E406,\"00\"))","v":""},{"$f":"IF(OrigTable!E406=\"\",\"\",ScriptText!$E$1&CHAR(10)&ScriptText!$C$1)","v":""},{"$f":"IF(OrigTable!F406=\"\",\"\",ScriptText!$B$1&CHAR(10)&ScriptText!$D$1)","v":""},{"$f":"IF(OrigTable!F406=\"\",\"\",TEXT(OrigTable!F406,\"00\"))","v":""},{"$f":"IF(OrigTable!F406=\"\",\"\",ScriptText!$E$1&CHAR(10)&ScriptText!$C$1)","v":""},{"$f":"IF(OrigTable!G406=\"\",\"\",ScriptText!$B$1&CHAR(10)&ScriptText!$D$1)","v":""},{"$f":"IF(OrigTable!G406=\"\",\"\",TEXT(OrigTable!G406,\"00\"))","v":""},{"$f":"IF(OrigTable!G406=\"\",\"\",ScriptText!$E$1&CHAR(10)&ScriptText!$C$1)","v":""},406]
["<tr>\n<td>548B</td>\n</tr>\n\n<tr>\n<td>Change to Representation – representative suspended</td>\n</tr>\n<tr>\n<td>IDRS Notices</td>\n</tr>",{"$f":"IF(OrigTable!A407=\"\",\"\",ScriptText!$B$1&CHAR(10)&ScriptText!$D$1)","v":"<tr>\n<td>"},{"$f":"IF(OrigTable!A407=\"\",\"\",TEXT(OrigTable!A407,\"00\"))","v":"548B"},{"$f":"IF(OrigTable!A407=\"\",\"\",ScriptText!$E$1&CHAR(10)&ScriptText!$C$1)","v":"</td>\n</tr>"},{"$f":"IF(OrigTable!B407=\"\",\"\",ScriptText!$B$1&CHAR(10)&ScriptText!$D$1)","v":""},{"$f":"IF(OrigTable!B407=\"\",\"\",TEXT(OrigTable!B407,\"00\"))","v":""},{"$f":"IF(OrigTable!B407=\"\",\"\",ScriptText!$E$1&CHAR(10)&ScriptText!C402)","v":""},{"$f":"IF(OrigTable!C407=\"\",\"\",ScriptText!$B$1&CHAR(10)&ScriptText!$D$1)","v":"<tr>\n<td>"},{"$f":"IF(OrigTable!C407=\"\",\"\",IF(LEN(OrigTable!C407)>255,LEFT(OrigTable!C407,250)&\". . .\",OrigTable!C407))","v":"Change to Representation – representative suspended"},{"$f":"IF(OrigTable!C407=\"\",\"\",ScriptText!$E$1&CHAR(10)&ScriptText!$C$1)","v":"</td>\n</tr>"},{"$f":"IF(OrigTable!D407=\"\",\"\",ScriptText!$B$1&CHAR(10)&ScriptText!$D$1)","v":"<tr>\n<td>"},{"$f":"IF(OrigTable!D407=\"\",\"\",TEXT(OrigTable!D407,\"00\"))","v":"IDRS Notices"},{"$f":"IF(OrigTable!D407=\"\",\"\",ScriptText!$E$1&CHAR(10)&ScriptText!$C$1)","v":"</td>\n</tr>"},{"$f":"IF(OrigTable!E407=\"\",\"\",ScriptText!$B$1&CHAR(10)&ScriptText!$D$1)","v":""},{"$f":"IF(OrigTable!E407=\"\",\"\",TEXT(OrigTable!E407,\"00\"))","v":""},{"$f":"IF(OrigTable!E407=\"\",\"\",ScriptText!$E$1&CHAR(10)&ScriptText!$C$1)","v":""},{"$f":"IF(OrigTable!F407=\"\",\"\",ScriptText!$B$1&CHAR(10)&ScriptText!$D$1)","v":""},{"$f":"IF(OrigTable!F407=\"\",\"\",TEXT(OrigTable!F407,\"00\"))","v":""},{"$f":"IF(OrigTable!F407=\"\",\"\",ScriptText!$E$1&CHAR(10)&ScriptText!$C$1)","v":""},{"$f":"IF(OrigTable!G407=\"\",\"\",ScriptText!$B$1&CHAR(10)&ScriptText!$D$1)","v":""},{"$f":"IF(OrigTable!G407=\"\",\"\",TEXT(OrigTable!G407,\"00\"))","v":""},{"$f":"IF(OrigTable!G407=\"\",\"\",ScriptText!$E$1&CHAR(10)&ScriptText!$C$1)","v":""},407]
["<tr>\n<td>548C</td>\n</tr>\n\n<tr>\n<td>Change to Representation – representative address undeliverable</td>\n</tr>\n<tr>\n<td>IDRS Notices</td>\n</tr>",{"$f":"IF(OrigTable!A408=\"\",\"\",ScriptText!$B$1&CHAR(10)&ScriptText!$D$1)","v":"<tr>\n<td>"},{"$f":"IF(OrigTable!A408=\"\",\"\",TEXT(OrigTable!A408,\"00\"))","v":"548C"},{"$f":"IF(OrigTable!A408=\"\",\"\",ScriptText!$E$1&CHAR(10)&ScriptText!$C$1)","v":"</td>\n</tr>"},{"$f":"IF(OrigTable!B408=\"\",\"\",ScriptText!$B$1&CHAR(10)&ScriptText!$D$1)","v":""},{"$f":"IF(OrigTable!B408=\"\",\"\",TEXT(OrigTable!B408,\"00\"))","v":""},{"$f":"IF(OrigTable!B408=\"\",\"\",ScriptText!$E$1&CHAR(10)&ScriptText!C403)","v":""},{"$f":"IF(OrigTable!C408=\"\",\"\",ScriptText!$B$1&CHAR(10)&ScriptText!$D$1)","v":"<tr>\n<td>"},{"$f":"IF(OrigTable!C408=\"\",\"\",IF(LEN(OrigTable!C408)>255,LEFT(OrigTable!C408,250)&\". . .\",OrigTable!C408))","v":"Change to Representation – representative address undeliverable"},{"$f":"IF(OrigTable!C408=\"\",\"\",ScriptText!$E$1&CHAR(10)&ScriptText!$C$1)","v":"</td>\n</tr>"},{"$f":"IF(OrigTable!D408=\"\",\"\",ScriptText!$B$1&CHAR(10)&ScriptText!$D$1)","v":"<tr>\n<td>"},{"$f":"IF(OrigTable!D408=\"\",\"\",TEXT(OrigTable!D408,\"00\"))","v":"IDRS Notices"},{"$f":"IF(OrigTable!D408=\"\",\"\",ScriptText!$E$1&CHAR(10)&ScriptText!$C$1)","v":"</td>\n</tr>"},{"$f":"IF(OrigTable!E408=\"\",\"\",ScriptText!$B$1&CHAR(10)&ScriptText!$D$1)","v":""},{"$f":"IF(OrigTable!E408=\"\",\"\",TEXT(OrigTable!E408,\"00\"))","v":""},{"$f":"IF(OrigTable!E408=\"\",\"\",ScriptText!$E$1&CHAR(10)&ScriptText!$C$1)","v":""},{"$f":"IF(OrigTable!F408=\"\",\"\",ScriptText!$B$1&CHAR(10)&ScriptText!$D$1)","v":""},{"$f":"IF(OrigTable!F408=\"\",\"\",TEXT(OrigTable!F408,\"00\"))","v":""},{"$f":"IF(OrigTable!F408=\"\",\"\",ScriptText!$E$1&CHAR(10)&ScriptText!$C$1)","v":""},{"$f":"IF(OrigTable!G408=\"\",\"\",ScriptText!$B$1&CHAR(10)&ScriptText!$D$1)","v":""},{"$f":"IF(OrigTable!G408=\"\",\"\",TEXT(OrigTable!G408,\"00\"))","v":""},{"$f":"IF(OrigTable!G408=\"\",\"\",ScriptText!$E$1&CHAR(10)&ScriptText!$C$1)","v":""},408]
["<tr>\n<td>548D</td>\n</tr>\n\n<tr>\n<td>Change to Representation – representative deceased</td>\n</tr>\n<tr>\n<td>IDRS Notices</td>\n</tr>",{"$f":"IF(OrigTable!A409=\"\",\"\",ScriptText!$B$1&CHAR(10)&ScriptText!$D$1)","v":"<tr>\n<td>"},{"$f":"IF(OrigTable!A409=\"\",\"\",TEXT(OrigTable!A409,\"00\"))","v":"548D"},{"$f":"IF(OrigTable!A409=\"\",\"\",ScriptText!$E$1&CHAR(10)&ScriptText!$C$1)","v":"</td>\n</tr>"},{"$f":"IF(OrigTable!B409=\"\",\"\",ScriptText!$B$1&CHAR(10)&ScriptText!$D$1)","v":""},{"$f":"IF(OrigTable!B409=\"\",\"\",TEXT(OrigTable!B409,\"00\"))","v":""},{"$f":"IF(OrigTable!B409=\"\",\"\",ScriptText!$E$1&CHAR(10)&ScriptText!C404)","v":""},{"$f":"IF(OrigTable!C409=\"\",\"\",ScriptText!$B$1&CHAR(10)&ScriptText!$D$1)","v":"<tr>\n<td>"},{"$f":"IF(OrigTable!C409=\"\",\"\",IF(LEN(OrigTable!C409)>255,LEFT(OrigTable!C409,250)&\". . .\",OrigTable!C409))","v":"Change to Representation – representative deceased"},{"$f":"IF(OrigTable!C409=\"\",\"\",ScriptText!$E$1&CHAR(10)&ScriptText!$C$1)","v":"</td>\n</tr>"},{"$f":"IF(OrigTable!D409=\"\",\"\",ScriptText!$B$1&CHAR(10)&ScriptText!$D$1)","v":"<tr>\n<td>"},{"$f":"IF(OrigTable!D409=\"\",\"\",TEXT(OrigTable!D409,\"00\"))","v":"IDRS Notices"},{"$f":"IF(OrigTable!D409=\"\",\"\",ScriptText!$E$1&CHAR(10)&ScriptText!$C$1)","v":"</td>\n</tr>"},{"$f":"IF(OrigTable!E409=\"\",\"\",ScriptText!$B$1&CHAR(10)&ScriptText!$D$1)","v":""},{"$f":"IF(OrigTable!E409=\"\",\"\",TEXT(OrigTable!E409,\"00\"))","v":""},{"$f":"IF(OrigTable!E409=\"\",\"\",ScriptText!$E$1&CHAR(10)&ScriptText!$C$1)","v":""},{"$f":"IF(OrigTable!F409=\"\",\"\",ScriptText!$B$1&CHAR(10)&ScriptText!$D$1)","v":""},{"$f":"IF(OrigTable!F409=\"\",\"\",TEXT(OrigTable!F409,\"00\"))","v":""},{"$f":"IF(OrigTable!F409=\"\",\"\",ScriptText!$E$1&CHAR(10)&ScriptText!$C$1)","v":""},{"$f":"IF(OrigTable!G409=\"\",\"\",ScriptText!$B$1&CHAR(10)&ScriptText!$D$1)","v":""},{"$f":"IF(OrigTable!G409=\"\",\"\",TEXT(OrigTable!G409,\"00\"))","v":""},{"$f":"IF(OrigTable!G409=\"\",\"\",ScriptText!$E$1&CHAR(10)&ScriptText!$C$1)","v":""},409]
["<tr>\n<td>548E</td>\n</tr>\n\n<tr>\n<td>Change to Representation – representative retired</td>\n</tr>\n<tr>\n<td>IDRS Notices</td>\n</tr>",{"$f":"IF(OrigTable!A410=\"\",\"\",ScriptText!$B$1&CHAR(10)&ScriptText!$D$1)","v":"<tr>\n<td>"},{"$f":"IF(OrigTable!A410=\"\",\"\",TEXT(OrigTable!A410,\"00\"))","v":"548E"},{"$f":"IF(OrigTable!A410=\"\",\"\",ScriptText!$E$1&CHAR(10)&ScriptText!$C$1)","v":"</td>\n</tr>"},{"$f":"IF(OrigTable!B410=\"\",\"\",ScriptText!$B$1&CHAR(10)&ScriptText!$D$1)","v":""},{"$f":"IF(OrigTable!B410=\"\",\"\",TEXT(OrigTable!B410,\"00\"))","v":""},{"$f":"IF(OrigTable!B410=\"\",\"\",ScriptText!$E$1&CHAR(10)&ScriptText!C405)","v":""},{"$f":"IF(OrigTable!C410=\"\",\"\",ScriptText!$B$1&CHAR(10)&ScriptText!$D$1)","v":"<tr>\n<td>"},{"$f":"IF(OrigTable!C410=\"\",\"\",IF(LEN(OrigTable!C410)>255,LEFT(OrigTable!C410,250)&\". . .\",OrigTable!C410))","v":"Change to Representation – representative retired"},{"$f":"IF(OrigTable!C410=\"\",\"\",ScriptText!$E$1&CHAR(10)&ScriptText!$C$1)","v":"</td>\n</tr>"},{"$f":"IF(OrigTable!D410=\"\",\"\",ScriptText!$B$1&CHAR(10)&ScriptText!$D$1)","v":"<tr>\n<td>"},{"$f":"IF(OrigTable!D410=\"\",\"\",TEXT(OrigTable!D410,\"00\"))","v":"IDRS Notices"},{"$f":"IF(OrigTable!D410=\"\",\"\",ScriptText!$E$1&CHAR(10)&ScriptText!$C$1)","v":"</td>\n</tr>"},{"$f":"IF(OrigTable!E410=\"\",\"\",ScriptText!$B$1&CHAR(10)&ScriptText!$D$1)","v":""},{"$f":"IF(OrigTable!E410=\"\",\"\",TEXT(OrigTable!E410,\"00\"))","v":""},{"$f":"IF(OrigTable!E410=\"\",\"\",ScriptText!$E$1&CHAR(10)&ScriptText!$C$1)","v":""},{"$f":"IF(OrigTable!F410=\"\",\"\",ScriptText!$B$1&CHAR(10)&ScriptText!$D$1)","v":""},{"$f":"IF(OrigTable!F410=\"\",\"\",TEXT(OrigTable!F410,\"00\"))","v":""},{"$f":"IF(OrigTable!F410=\"\",\"\",ScriptText!$E$1&CHAR(10)&ScriptText!$C$1)","v":""},{"$f":"IF(OrigTable!G410=\"\",\"\",ScriptText!$B$1&CHAR(10)&ScriptText!$D$1)","v":""},{"$f":"IF(OrigTable!G410=\"\",\"\",TEXT(OrigTable!G410,\"00\"))","v":""},{"$f":"IF(OrigTable!G410=\"\",\"\",ScriptText!$E$1&CHAR(10)&ScriptText!$C$1)","v":""},410]
["<tr>\n<td>548F</td>\n</tr>\n\n<tr>\n<td>Change to Representation – representative ineligible</td>\n</tr>\n<tr>\n<td>IDRS Notices</td>\n</tr>",{"$f":"IF(OrigTable!A411=\"\",\"\",ScriptText!$B$1&CHAR(10)&ScriptText!$D$1)","v":"<tr>\n<td>"},{"$f":"IF(OrigTable!A411=\"\",\"\",TEXT(OrigTable!A411,\"00\"))","v":"548F"},{"$f":"IF(OrigTable!A411=\"\",\"\",ScriptText!$E$1&CHAR(10)&ScriptText!$C$1)","v":"</td>\n</tr>"},{"$f":"IF(OrigTable!B411=\"\",\"\",ScriptText!$B$1&CHAR(10)&ScriptText!$D$1)","v":""},{"$f":"IF(OrigTable!B411=\"\",\"\",TEXT(OrigTable!B411,\"00\"))","v":""},{"$f":"IF(OrigTable!B411=\"\",\"\",ScriptText!$E$1&CHAR(10)&ScriptText!C406)","v":""},{"$f":"IF(OrigTable!C411=\"\",\"\",ScriptText!$B$1&CHAR(10)&ScriptText!$D$1)","v":"<tr>\n<td>"},{"$f":"IF(OrigTable!C411=\"\",\"\",IF(LEN(OrigTable!C411)>255,LEFT(OrigTable!C411,250)&\". . .\",OrigTable!C411))","v":"Change to Representation – representative ineligible"},{"$f":"IF(OrigTable!C411=\"\",\"\",ScriptText!$E$1&CHAR(10)&ScriptText!$C$1)","v":"</td>\n</tr>"},{"$f":"IF(OrigTable!D411=\"\",\"\",ScriptText!$B$1&CHAR(10)&ScriptText!$D$1)","v":"<tr>\n<td>"},{"$f":"IF(OrigTable!D411=\"\",\"\",TEXT(OrigTable!D411,\"00\"))","v":"IDRS Notices"},{"$f":"IF(OrigTable!D411=\"\",\"\",ScriptText!$E$1&CHAR(10)&ScriptText!$C$1)","v":"</td>\n</tr>"},{"$f":"IF(OrigTable!E411=\"\",\"\",ScriptText!$B$1&CHAR(10)&ScriptText!$D$1)","v":""},{"$f":"IF(OrigTable!E411=\"\",\"\",TEXT(OrigTable!E411,\"00\"))","v":""},{"$f":"IF(OrigTable!E411=\"\",\"\",ScriptText!$E$1&CHAR(10)&ScriptText!$C$1)","v":""},{"$f":"IF(OrigTable!F411=\"\",\"\",ScriptText!$B$1&CHAR(10)&ScriptText!$D$1)","v":""},{"$f":"IF(OrigTable!F411=\"\",\"\",TEXT(OrigTable!F411,\"00\"))","v":""},{"$f":"IF(OrigTable!F411=\"\",\"\",ScriptText!$E$1&CHAR(10)&ScriptText!$C$1)","v":""},{"$f":"IF(OrigTable!G411=\"\",\"\",ScriptText!$B$1&CHAR(10)&ScriptText!$D$1)","v":""},{"$f":"IF(OrigTable!G411=\"\",\"\",TEXT(OrigTable!G411,\"00\"))","v":""},{"$f":"IF(OrigTable!G411=\"\",\"\",ScriptText!$E$1&CHAR(10)&ScriptText!$C$1)","v":""},411]
["<tr>\n<td>549</td>\n</tr>\n\n<tr>\n<td>Form 944 notification package RAF/CAF</td>\n</tr>\n<tr>\n<td>IDRS Notices</td>\n</tr>",{"$f":"IF(OrigTable!A412=\"\",\"\",ScriptText!$B$1&CHAR(10)&ScriptText!$D$1)","v":"<tr>\n<td>"},{"$f":"IF(OrigTable!A412=\"\",\"\",TEXT(OrigTable!A412,\"00\"))","v":"549"},{"$f":"IF(OrigTable!A412=\"\",\"\",ScriptText!$E$1&CHAR(10)&ScriptText!$C$1)","v":"</td>\n</tr>"},{"$f":"IF(OrigTable!B412=\"\",\"\",ScriptText!$B$1&CHAR(10)&ScriptText!$D$1)","v":""},{"$f":"IF(OrigTable!B412=\"\",\"\",TEXT(OrigTable!B412,\"00\"))","v":""},{"$f":"IF(OrigTable!B412=\"\",\"\",ScriptText!$E$1&CHAR(10)&ScriptText!C407)","v":""},{"$f":"IF(OrigTable!C412=\"\",\"\",ScriptText!$B$1&CHAR(10)&ScriptText!$D$1)","v":"<tr>\n<td>"},{"$f":"IF(OrigTable!C412=\"\",\"\",IF(LEN(OrigTable!C412)>255,LEFT(OrigTable!C412,250)&\". . .\",OrigTable!C412))","v":"Form 944 notification package RAF/CAF"},{"$f":"IF(OrigTable!C412=\"\",\"\",ScriptText!$E$1&CHAR(10)&ScriptText!$C$1)","v":"</td>\n</tr>"},{"$f":"IF(OrigTable!D412=\"\",\"\",ScriptText!$B$1&CHAR(10)&ScriptText!$D$1)","v":"<tr>\n<td>"},{"$f":"IF(OrigTable!D412=\"\",\"\",TEXT(OrigTable!D412,\"00\"))","v":"IDRS Notices"},{"$f":"IF(OrigTable!D412=\"\",\"\",ScriptText!$E$1&CHAR(10)&ScriptText!$C$1)","v":"</td>\n</tr>"},{"$f":"IF(OrigTable!E412=\"\",\"\",ScriptText!$B$1&CHAR(10)&ScriptText!$D$1)","v":""},{"$f":"IF(OrigTable!E412=\"\",\"\",TEXT(OrigTable!E412,\"00\"))","v":""},{"$f":"IF(OrigTable!E412=\"\",\"\",ScriptText!$E$1&CHAR(10)&ScriptText!$C$1)","v":""},{"$f":"IF(OrigTable!F412=\"\",\"\",ScriptText!$B$1&CHAR(10)&ScriptText!$D$1)","v":""},{"$f":"IF(OrigTable!F412=\"\",\"\",TEXT(OrigTable!F412,\"00\"))","v":""},{"$f":"IF(OrigTable!F412=\"\",\"\",ScriptText!$E$1&CHAR(10)&ScriptText!$C$1)","v":""},{"$f":"IF(OrigTable!G412=\"\",\"\",ScriptText!$B$1&CHAR(10)&ScriptText!$D$1)","v":""},{"$f":"IF(OrigTable!G412=\"\",\"\",TEXT(OrigTable!G412,\"00\"))","v":""},{"$f":"IF(OrigTable!G412=\"\",\"\",ScriptText!$E$1&CHAR(10)&ScriptText!$C$1)","v":""},412]
["<tr>\n<td>560A</td>\n</tr>\n\n<tr>\n<td>ATIN Assignment Notice – We assigned your adoptive child a temporary Adoption Taxpayer Identification Number (ATIN)</td>\n</tr>\n<tr>\n<td>IDRS Notices</td>\n</tr>",{"$f":"IF(OrigTable!A413=\"\",\"\",ScriptText!$B$1&CHAR(10)&ScriptText!$D$1)","v":"<tr>\n<td>"},{"$f":"IF(OrigTable!A413=\"\",\"\",TEXT(OrigTable!A413,\"00\"))","v":"560A"},{"$f":"IF(OrigTable!A413=\"\",\"\",ScriptText!$E$1&CHAR(10)&ScriptText!$C$1)","v":"</td>\n</tr>"},{"$f":"IF(OrigTable!B413=\"\",\"\",ScriptText!$B$1&CHAR(10)&ScriptText!$D$1)","v":""},{"$f":"IF(OrigTable!B413=\"\",\"\",TEXT(OrigTable!B413,\"00\"))","v":""},{"$f":"IF(OrigTable!B413=\"\",\"\",ScriptText!$E$1&CHAR(10)&ScriptText!C408)","v":""},{"$f":"IF(OrigTable!C413=\"\",\"\",ScriptText!$B$1&CHAR(10)&ScriptText!$D$1)","v":"<tr>\n<td>"},{"$f":"IF(OrigTable!C413=\"\",\"\",IF(LEN(OrigTable!C413)>255,LEFT(OrigTable!C413,250)&\". . .\",OrigTable!C413))","v":"ATIN Assignment Notice – We assigned your adoptive child a temporary Adoption Taxpayer Identification Number (ATIN)"},{"$f":"IF(OrigTable!C413=\"\",\"\",ScriptText!$E$1&CHAR(10)&ScriptText!$C$1)","v":"</td>\n</tr>"},{"$f":"IF(OrigTable!D413=\"\",\"\",ScriptText!$B$1&CHAR(10)&ScriptText!$D$1)","v":"<tr>\n<td>"},{"$f":"IF(OrigTable!D413=\"\",\"\",TEXT(OrigTable!D413,\"00\"))","v":"IDRS Notices"},{"$f":"IF(OrigTable!D413=\"\",\"\",ScriptText!$E$1&CHAR(10)&ScriptText!$C$1)","v":"</td>\n</tr>"},{"$f":"IF(OrigTable!E413=\"\",\"\",ScriptText!$B$1&CHAR(10)&ScriptText!$D$1)","v":""},{"$f":"IF(OrigTable!E413=\"\",\"\",TEXT(OrigTable!E413,\"00\"))","v":""},{"$f":"IF(OrigTable!E413=\"\",\"\",ScriptText!$E$1&CHAR(10)&ScriptText!$C$1)","v":""},{"$f":"IF(OrigTable!F413=\"\",\"\",ScriptText!$B$1&CHAR(10)&ScriptText!$D$1)","v":""},{"$f":"IF(OrigTable!F413=\"\",\"\",TEXT(OrigTable!F413,\"00\"))","v":""},{"$f":"IF(OrigTable!F413=\"\",\"\",ScriptText!$E$1&CHAR(10)&ScriptText!$C$1)","v":""},{"$f":"IF(OrigTable!G413=\"\",\"\",ScriptText!$B$1&CHAR(10)&ScriptText!$D$1)","v":""},{"$f":"IF(OrigTable!G413=\"\",\"\",TEXT(OrigTable!G413,\"00\"))","v":""},{"$f":"IF(OrigTable!G413=\"\",\"\",ScriptText!$E$1&CHAR(10)&ScriptText!$C$1)","v":""},413]
["<tr>\n<td>560B</td>\n</tr>\n\n<tr>\n<td>ATIN Extension Notice – We have granted your request for an Extension for your Adoption Taxpayer Identification Number (ATIN)</td>\n</tr>\n<tr>\n<td>IDRS Notices</td>\n</tr>",{"$f":"IF(OrigTable!A414=\"\",\"\",ScriptText!$B$1&CHAR(10)&ScriptText!$D$1)","v":"<tr>\n<td>"},{"$f":"IF(OrigTable!A414=\"\",\"\",TEXT(OrigTable!A414,\"00\"))","v":"560B"},{"$f":"IF(OrigTable!A414=\"\",\"\",ScriptText!$E$1&CHAR(10)&ScriptText!$C$1)","v":"</td>\n</tr>"},{"$f":"IF(OrigTable!B414=\"\",\"\",ScriptText!$B$1&CHAR(10)&ScriptText!$D$1)","v":""},{"$f":"IF(OrigTable!B414=\"\",\"\",TEXT(OrigTable!B414,\"00\"))","v":""},{"$f":"IF(OrigTable!B414=\"\",\"\",ScriptText!$E$1&CHAR(10)&ScriptText!C409)","v":""},{"$f":"IF(OrigTable!C414=\"\",\"\",ScriptText!$B$1&CHAR(10)&ScriptText!$D$1)","v":"<tr>\n<td>"},{"$f":"IF(OrigTable!C414=\"\",\"\",IF(LEN(OrigTable!C414)>255,LEFT(OrigTable!C414,250)&\". . .\",OrigTable!C414))","v":"ATIN Extension Notice – We have granted your request for an Extension for your Adoption Taxpayer Identification Number (ATIN)"},{"$f":"IF(OrigTable!C414=\"\",\"\",ScriptText!$E$1&CHAR(10)&ScriptText!$C$1)","v":"</td>\n</tr>"},{"$f":"IF(OrigTable!D414=\"\",\"\",ScriptText!$B$1&CHAR(10)&ScriptText!$D$1)","v":"<tr>\n<td>"},{"$f":"IF(OrigTable!D414=\"\",\"\",TEXT(OrigTable!D414,\"00\"))","v":"IDRS Notices"},{"$f":"IF(OrigTable!D414=\"\",\"\",ScriptText!$E$1&CHAR(10)&ScriptText!$C$1)","v":"</td>\n</tr>"},{"$f":"IF(OrigTable!E414=\"\",\"\",ScriptText!$B$1&CHAR(10)&ScriptText!$D$1)","v":""},{"$f":"IF(OrigTable!E414=\"\",\"\",TEXT(OrigTable!E414,\"00\"))","v":""},{"$f":"IF(OrigTable!E414=\"\",\"\",ScriptText!$E$1&CHAR(10)&ScriptText!$C$1)","v":""},{"$f":"IF(OrigTable!F414=\"\",\"\",ScriptText!$B$1&CHAR(10)&ScriptText!$D$1)","v":""},{"$f":"IF(OrigTable!F414=\"\",\"\",TEXT(OrigTable!F414,\"00\"))","v":""},{"$f":"IF(OrigTable!F414=\"\",\"\",ScriptText!$E$1&CHAR(10)&ScriptText!$C$1)","v":""},{"$f":"IF(OrigTable!G414=\"\",\"\",ScriptText!$B$1&CHAR(10)&ScriptText!$D$1)","v":""},{"$f":"IF(OrigTable!G414=\"\",\"\",TEXT(OrigTable!G414,\"00\"))","v":""},{"$f":"IF(OrigTable!G414=\"\",\"\",ScriptText!$E$1&CHAR(10)&ScriptText!$C$1)","v":""},414]
["<tr>\n<td>561</td>\n</tr>\n\n<tr>\n<td>ATIN Notice – The Adoption Taxpayer Identification Number (ATIN) assigned to your adoptive child will expire soon.</td>\n</tr>\n<tr>\n<td>IDRS Notices</td>\n</tr>",{"$f":"IF(OrigTable!A415=\"\",\"\",ScriptText!$B$1&CHAR(10)&ScriptText!$D$1)","v":"<tr>\n<td>"},{"$f":"IF(OrigTable!A415=\"\",\"\",TEXT(OrigTable!A415,\"00\"))","v":"561"},{"$f":"IF(OrigTable!A415=\"\",\"\",ScriptText!$E$1&CHAR(10)&ScriptText!$C$1)","v":"</td>\n</tr>"},{"$f":"IF(OrigTable!B415=\"\",\"\",ScriptText!$B$1&CHAR(10)&ScriptText!$D$1)","v":""},{"$f":"IF(OrigTable!B415=\"\",\"\",TEXT(OrigTable!B415,\"00\"))","v":""},{"$f":"IF(OrigTable!B415=\"\",\"\",ScriptText!$E$1&CHAR(10)&ScriptText!C410)","v":""},{"$f":"IF(OrigTable!C415=\"\",\"\",ScriptText!$B$1&CHAR(10)&ScriptText!$D$1)","v":"<tr>\n<td>"},{"$f":"IF(OrigTable!C415=\"\",\"\",IF(LEN(OrigTable!C415)>255,LEFT(OrigTable!C415,250)&\". . .\",OrigTable!C415))","v":"ATIN Notice – The Adoption Taxpayer Identification Number (ATIN) assigned to your adoptive child will expire soon."},{"$f":"IF(OrigTable!C415=\"\",\"\",ScriptText!$E$1&CHAR(10)&ScriptText!$C$1)","v":"</td>\n</tr>"},{"$f":"IF(OrigTable!D415=\"\",\"\",ScriptText!$B$1&CHAR(10)&ScriptText!$D$1)","v":"<tr>\n<td>"},{"$f":"IF(OrigTable!D415=\"\",\"\",TEXT(OrigTable!D415,\"00\"))","v":"IDRS Notices"},{"$f":"IF(OrigTable!D415=\"\",\"\",ScriptText!$E$1&CHAR(10)&ScriptText!$C$1)","v":"</td>\n</tr>"},{"$f":"IF(OrigTable!E415=\"\",\"\",ScriptText!$B$1&CHAR(10)&ScriptText!$D$1)","v":""},{"$f":"IF(OrigTable!E415=\"\",\"\",TEXT(OrigTable!E415,\"00\"))","v":""},{"$f":"IF(OrigTable!E415=\"\",\"\",ScriptText!$E$1&CHAR(10)&ScriptText!$C$1)","v":""},{"$f":"IF(OrigTable!F415=\"\",\"\",ScriptText!$B$1&CHAR(10)&ScriptText!$D$1)","v":""},{"$f":"IF(OrigTable!F415=\"\",\"\",TEXT(OrigTable!F415,\"00\"))","v":""},{"$f":"IF(OrigTable!F415=\"\",\"\",ScriptText!$E$1&CHAR(10)&ScriptText!$C$1)","v":""},{"$f":"IF(OrigTable!G415=\"\",\"\",ScriptText!$B$1&CHAR(10)&ScriptText!$D$1)","v":""},{"$f":"IF(OrigTable!G415=\"\",\"\",TEXT(OrigTable!G415,\"00\"))","v":""},{"$f":"IF(OrigTable!G415=\"\",\"\",ScriptText!$E$1&CHAR(10)&ScriptText!$C$1)","v":""},415]
["<tr>\n<td>561A</td>\n</tr>\n\n<tr>\n<td>Your child’s ATIN expires in 3 Months</td>\n</tr>\n<tr>\n<td>IDRS Notices</td>\n</tr>",{"$f":"IF(OrigTable!A416=\"\",\"\",ScriptText!$B$1&CHAR(10)&ScriptText!$D$1)","v":"<tr>\n<td>"},{"$f":"IF(OrigTable!A416=\"\",\"\",TEXT(OrigTable!A416,\"00\"))","v":"561A"},{"$f":"IF(OrigTable!A416=\"\",\"\",ScriptText!$E$1&CHAR(10)&ScriptText!$C$1)","v":"</td>\n</tr>"},{"$f":"IF(OrigTable!B416=\"\",\"\",ScriptText!$B$1&CHAR(10)&ScriptText!$D$1)","v":""},{"$f":"IF(OrigTable!B416=\"\",\"\",TEXT(OrigTable!B416,\"00\"))","v":""},{"$f":"IF(OrigTable!B416=\"\",\"\",ScriptText!$E$1&CHAR(10)&ScriptText!C411)","v":""},{"$f":"IF(OrigTable!C416=\"\",\"\",ScriptText!$B$1&CHAR(10)&ScriptText!$D$1)","v":"<tr>\n<td>"},{"$f":"IF(OrigTable!C416=\"\",\"\",IF(LEN(OrigTable!C416)>255,LEFT(OrigTable!C416,250)&\". . .\",OrigTable!C416))","v":"Your child’s ATIN expires in 3 Months"},{"$f":"IF(OrigTable!C416=\"\",\"\",ScriptText!$E$1&CHAR(10)&ScriptText!$C$1)","v":"</td>\n</tr>"},{"$f":"IF(OrigTable!D416=\"\",\"\",ScriptText!$B$1&CHAR(10)&ScriptText!$D$1)","v":"<tr>\n<td>"},{"$f":"IF(OrigTable!D416=\"\",\"\",TEXT(OrigTable!D416,\"00\"))","v":"IDRS Notices"},{"$f":"IF(OrigTable!D416=\"\",\"\",ScriptText!$E$1&CHAR(10)&ScriptText!$C$1)","v":"</td>\n</tr>"},{"$f":"IF(OrigTable!E416=\"\",\"\",ScriptText!$B$1&CHAR(10)&ScriptText!$D$1)","v":""},{"$f":"IF(OrigTable!E416=\"\",\"\",TEXT(OrigTable!E416,\"00\"))","v":""},{"$f":"IF(OrigTable!E416=\"\",\"\",ScriptText!$E$1&CHAR(10)&ScriptText!$C$1)","v":""},{"$f":"IF(OrigTable!F416=\"\",\"\",ScriptText!$B$1&CHAR(10)&ScriptText!$D$1)","v":""},{"$f":"IF(OrigTable!F416=\"\",\"\",TEXT(OrigTable!F416,\"00\"))","v":""},{"$f":"IF(OrigTable!F416=\"\",\"\",ScriptText!$E$1&CHAR(10)&ScriptText!$C$1)","v":""},{"$f":"IF(OrigTable!G416=\"\",\"\",ScriptText!$B$1&CHAR(10)&ScriptText!$D$1)","v":""},{"$f":"IF(OrigTable!G416=\"\",\"\",TEXT(OrigTable!G416,\"00\"))","v":""},{"$f":"IF(OrigTable!G416=\"\",\"\",ScriptText!$E$1&CHAR(10)&ScriptText!$C$1)","v":""},416]
["<tr>\n<td>561B</td>\n</tr>\n\n<tr>\n<td>The extension for your child’s ATIN expires in 3 months</td>\n</tr>\n<tr>\n<td>IDRS Notices</td>\n</tr>",{"$f":"IF(OrigTable!A417=\"\",\"\",ScriptText!$B$1&CHAR(10)&ScriptText!$D$1)","v":"<tr>\n<td>"},{"$f":"IF(OrigTable!A417=\"\",\"\",TEXT(OrigTable!A417,\"00\"))","v":"561B"},{"$f":"IF(OrigTable!A417=\"\",\"\",ScriptText!$E$1&CHAR(10)&ScriptText!$C$1)","v":"</td>\n</tr>"},{"$f":"IF(OrigTable!B417=\"\",\"\",ScriptText!$B$1&CHAR(10)&ScriptText!$D$1)","v":""},{"$f":"IF(OrigTable!B417=\"\",\"\",TEXT(OrigTable!B417,\"00\"))","v":""},{"$f":"IF(OrigTable!B417=\"\",\"\",ScriptText!$E$1&CHAR(10)&ScriptText!C412)","v":""},{"$f":"IF(OrigTable!C417=\"\",\"\",ScriptText!$B$1&CHAR(10)&ScriptText!$D$1)","v":"<tr>\n<td>"},{"$f":"IF(OrigTable!C417=\"\",\"\",IF(LEN(OrigTable!C417)>255,LEFT(OrigTable!C417,250)&\". . .\",OrigTable!C417))","v":"The extension for your child’s ATIN expires in 3 months"},{"$f":"IF(OrigTable!C417=\"\",\"\",ScriptText!$E$1&CHAR(10)&ScriptText!$C$1)","v":"</td>\n</tr>"},{"$f":"IF(OrigTable!D417=\"\",\"\",ScriptText!$B$1&CHAR(10)&ScriptText!$D$1)","v":"<tr>\n<td>"},{"$f":"IF(OrigTable!D417=\"\",\"\",TEXT(OrigTable!D417,\"00\"))","v":"IDRS Notices"},{"$f":"IF(OrigTable!D417=\"\",\"\",ScriptText!$E$1&CHAR(10)&ScriptText!$C$1)","v":"</td>\n</tr>"},{"$f":"IF(OrigTable!E417=\"\",\"\",ScriptText!$B$1&CHAR(10)&ScriptText!$D$1)","v":""},{"$f":"IF(OrigTable!E417=\"\",\"\",TEXT(OrigTable!E417,\"00\"))","v":""},{"$f":"IF(OrigTable!E417=\"\",\"\",ScriptText!$E$1&CHAR(10)&ScriptText!$C$1)","v":""},{"$f":"IF(OrigTable!F417=\"\",\"\",ScriptText!$B$1&CHAR(10)&ScriptText!$D$1)","v":""},{"$f":"IF(OrigTable!F417=\"\",\"\",TEXT(OrigTable!F417,\"00\"))","v":""},{"$f":"IF(OrigTable!F417=\"\",\"\",ScriptText!$E$1&CHAR(10)&ScriptText!$C$1)","v":""},{"$f":"IF(OrigTable!G417=\"\",\"\",ScriptText!$B$1&CHAR(10)&ScriptText!$D$1)","v":""},{"$f":"IF(OrigTable!G417=\"\",\"\",TEXT(OrigTable!G417,\"00\"))","v":""},{"$f":"IF(OrigTable!G417=\"\",\"\",ScriptText!$E$1&CHAR(10)&ScriptText!$C$1)","v":""},417]
["<tr>\n<td>561C</td>\n</tr>\n\n<tr>\n<td>Your child’s ATIN expired</td>\n</tr>\n<tr>\n<td>IDRS Notices</td>\n</tr>",{"$f":"IF(OrigTable!A418=\"\",\"\",ScriptText!$B$1&CHAR(10)&ScriptText!$D$1)","v":"<tr>\n<td>"},{"$f":"IF(OrigTable!A418=\"\",\"\",TEXT(OrigTable!A418,\"00\"))","v":"561C"},{"$f":"IF(OrigTable!A418=\"\",\"\",ScriptText!$E$1&CHAR(10)&ScriptText!$C$1)","v":"</td>\n</tr>"},{"$f":"IF(OrigTable!B418=\"\",\"\",ScriptText!$B$1&CHAR(10)&ScriptText!$D$1)","v":""},{"$f":"IF(OrigTable!B418=\"\",\"\",TEXT(OrigTable!B418,\"00\"))","v":""},{"$f":"IF(OrigTable!B418=\"\",\"\",ScriptText!$E$1&CHAR(10)&ScriptText!C413)","v":""},{"$f":"IF(OrigTable!C418=\"\",\"\",ScriptText!$B$1&CHAR(10)&ScriptText!$D$1)","v":"<tr>\n<td>"},{"$f":"IF(OrigTable!C418=\"\",\"\",IF(LEN(OrigTable!C418)>255,LEFT(OrigTable!C418,250)&\". . .\",OrigTable!C418))","v":"Your child’s ATIN expired"},{"$f":"IF(OrigTable!C418=\"\",\"\",ScriptText!$E$1&CHAR(10)&ScriptText!$C$1)","v":"</td>\n</tr>"},{"$f":"IF(OrigTable!D418=\"\",\"\",ScriptText!$B$1&CHAR(10)&ScriptText!$D$1)","v":"<tr>\n<td>"},{"$f":"IF(OrigTable!D418=\"\",\"\",TEXT(OrigTable!D418,\"00\"))","v":"IDRS Notices"},{"$f":"IF(OrigTable!D418=\"\",\"\",ScriptText!$E$1&CHAR(10)&ScriptText!$C$1)","v":"</td>\n</tr>"},{"$f":"IF(OrigTable!E418=\"\",\"\",ScriptText!$B$1&CHAR(10)&ScriptText!$D$1)","v":""},{"$f":"IF(OrigTable!E418=\"\",\"\",TEXT(OrigTable!E418,\"00\"))","v":""},{"$f":"IF(OrigTable!E418=\"\",\"\",ScriptText!$E$1&CHAR(10)&ScriptText!$C$1)","v":""},{"$f":"IF(OrigTable!F418=\"\",\"\",ScriptText!$B$1&CHAR(10)&ScriptText!$D$1)","v":""},{"$f":"IF(OrigTable!F418=\"\",\"\",TEXT(OrigTable!F418,\"00\"))","v":""},{"$f":"IF(OrigTable!F418=\"\",\"\",ScriptText!$E$1&CHAR(10)&ScriptText!$C$1)","v":""},{"$f":"IF(OrigTable!G418=\"\",\"\",ScriptText!$B$1&CHAR(10)&ScriptText!$D$1)","v":""},{"$f":"IF(OrigTable!G418=\"\",\"\",TEXT(OrigTable!G418,\"00\"))","v":""},{"$f":"IF(OrigTable!G418=\"\",\"\",ScriptText!$E$1&CHAR(10)&ScriptText!$C$1)","v":""},418]
["<tr>\n<td>562A</td>\n</tr>\n\n<tr>\n<td>ATIN Notice – Request for Additional Information</td>\n</tr>\n<tr>\n<td>IDRS Notices</td>\n</tr>",{"$f":"IF(OrigTable!A419=\"\",\"\",ScriptText!$B$1&CHAR(10)&ScriptText!$D$1)","v":"<tr>\n<td>"},{"$f":"IF(OrigTable!A419=\"\",\"\",TEXT(OrigTable!A419,\"00\"))","v":"562A"},{"$f":"IF(OrigTable!A419=\"\",\"\",ScriptText!$E$1&CHAR(10)&ScriptText!$C$1)","v":"</td>\n</tr>"},{"$f":"IF(OrigTable!B419=\"\",\"\",ScriptText!$B$1&CHAR(10)&ScriptText!$D$1)","v":""},{"$f":"IF(OrigTable!B419=\"\",\"\",TEXT(OrigTable!B419,\"00\"))","v":""},{"$f":"IF(OrigTable!B419=\"\",\"\",ScriptText!$E$1&CHAR(10)&ScriptText!C414)","v":""},{"$f":"IF(OrigTable!C419=\"\",\"\",ScriptText!$B$1&CHAR(10)&ScriptText!$D$1)","v":"<tr>\n<td>"},{"$f":"IF(OrigTable!C419=\"\",\"\",IF(LEN(OrigTable!C419)>255,LEFT(OrigTable!C419,250)&\". . .\",OrigTable!C419))","v":"ATIN Notice – Request for Additional Information"},{"$f":"IF(OrigTable!C419=\"\",\"\",ScriptText!$E$1&CHAR(10)&ScriptText!$C$1)","v":"</td>\n</tr>"},{"$f":"IF(OrigTable!D419=\"\",\"\",ScriptText!$B$1&CHAR(10)&ScriptText!$D$1)","v":"<tr>\n<td>"},{"$f":"IF(OrigTable!D419=\"\",\"\",TEXT(OrigTable!D419,\"00\"))","v":"IDRS Notices"},{"$f":"IF(OrigTable!D419=\"\",\"\",ScriptText!$E$1&CHAR(10)&ScriptText!$C$1)","v":"</td>\n</tr>"},{"$f":"IF(OrigTable!E419=\"\",\"\",ScriptText!$B$1&CHAR(10)&ScriptText!$D$1)","v":""},{"$f":"IF(OrigTable!E419=\"\",\"\",TEXT(OrigTable!E419,\"00\"))","v":""},{"$f":"IF(OrigTable!E419=\"\",\"\",ScriptText!$E$1&CHAR(10)&ScriptText!$C$1)","v":""},{"$f":"IF(OrigTable!F419=\"\",\"\",ScriptText!$B$1&CHAR(10)&ScriptText!$D$1)","v":""},{"$f":"IF(OrigTable!F419=\"\",\"\",TEXT(OrigTable!F419,\"00\"))","v":""},{"$f":"IF(OrigTable!F419=\"\",\"\",ScriptText!$E$1&CHAR(10)&ScriptText!$C$1)","v":""},{"$f":"IF(OrigTable!G419=\"\",\"\",ScriptText!$B$1&CHAR(10)&ScriptText!$D$1)","v":""},{"$f":"IF(OrigTable!G419=\"\",\"\",TEXT(OrigTable!G419,\"00\"))","v":""},{"$f":"IF(OrigTable!G419=\"\",\"\",ScriptText!$E$1&CHAR(10)&ScriptText!$C$1)","v":""},419]
["<tr>\n<td>562C</td>\n</tr>\n\n<tr>\n<td>ATIN Extension Request – Additional Information Needed</td>\n</tr>\n<tr>\n<td>IDRS Notices</td>\n</tr>",{"$f":"IF(OrigTable!A420=\"\",\"\",ScriptText!$B$1&CHAR(10)&ScriptText!$D$1)","v":"<tr>\n<td>"},{"$f":"IF(OrigTable!A420=\"\",\"\",TEXT(OrigTable!A420,\"00\"))","v":"562C"},{"$f":"IF(OrigTable!A420=\"\",\"\",ScriptText!$E$1&CHAR(10)&ScriptText!$C$1)","v":"</td>\n</tr>"},{"$f":"IF(OrigTable!B420=\"\",\"\",ScriptText!$B$1&CHAR(10)&ScriptText!$D$1)","v":""},{"$f":"IF(OrigTable!B420=\"\",\"\",TEXT(OrigTable!B420,\"00\"))","v":""},{"$f":"IF(OrigTable!B420=\"\",\"\",ScriptText!$E$1&CHAR(10)&ScriptText!C415)","v":""},{"$f":"IF(OrigTable!C420=\"\",\"\",ScriptText!$B$1&CHAR(10)&ScriptText!$D$1)","v":"<tr>\n<td>"},{"$f":"IF(OrigTable!C420=\"\",\"\",IF(LEN(OrigTable!C420)>255,LEFT(OrigTable!C420,250)&\". . .\",OrigTable!C420))","v":"ATIN Extension Request – Additional Information Needed"},{"$f":"IF(OrigTable!C420=\"\",\"\",ScriptText!$E$1&CHAR(10)&ScriptText!$C$1)","v":"</td>\n</tr>"},{"$f":"IF(OrigTable!D420=\"\",\"\",ScriptText!$B$1&CHAR(10)&ScriptText!$D$1)","v":"<tr>\n<td>"},{"$f":"IF(OrigTable!D420=\"\",\"\",TEXT(OrigTable!D420,\"00\"))","v":"IDRS Notices"},{"$f":"IF(OrigTable!D420=\"\",\"\",ScriptText!$E$1&CHAR(10)&ScriptText!$C$1)","v":"</td>\n</tr>"},{"$f":"IF(OrigTable!E420=\"\",\"\",ScriptText!$B$1&CHAR(10)&ScriptText!$D$1)","v":""},{"$f":"IF(OrigTable!E420=\"\",\"\",TEXT(OrigTable!E420,\"00\"))","v":""},{"$f":"IF(OrigTable!E420=\"\",\"\",ScriptText!$E$1&CHAR(10)&ScriptText!$C$1)","v":""},{"$f":"IF(OrigTable!F420=\"\",\"\",ScriptText!$B$1&CHAR(10)&ScriptText!$D$1)","v":""},{"$f":"IF(OrigTable!F420=\"\",\"\",TEXT(OrigTable!F420,\"00\"))","v":""},{"$f":"IF(OrigTable!F420=\"\",\"\",ScriptText!$E$1&CHAR(10)&ScriptText!$C$1)","v":""},{"$f":"IF(OrigTable!G420=\"\",\"\",ScriptText!$B$1&CHAR(10)&ScriptText!$D$1)","v":""},{"$f":"IF(OrigTable!G420=\"\",\"\",TEXT(OrigTable!G420,\"00\"))","v":""},{"$f":"IF(OrigTable!G420=\"\",\"\",ScriptText!$E$1&CHAR(10)&ScriptText!$C$1)","v":""},420]
["<tr>\n<td>563</td>\n</tr>\n\n<tr>\n<td>ATIN Rejection Notice</td>\n</tr>\n<tr>\n<td>IDRS Notices</td>\n</tr>",{"$f":"IF(OrigTable!A421=\"\",\"\",ScriptText!$B$1&CHAR(10)&ScriptText!$D$1)","v":"<tr>\n<td>"},{"$f":"IF(OrigTable!A421=\"\",\"\",TEXT(OrigTable!A421,\"00\"))","v":"563"},{"$f":"IF(OrigTable!A421=\"\",\"\",ScriptText!$E$1&CHAR(10)&ScriptText!$C$1)","v":"</td>\n</tr>"},{"$f":"IF(OrigTable!B421=\"\",\"\",ScriptText!$B$1&CHAR(10)&ScriptText!$D$1)","v":""},{"$f":"IF(OrigTable!B421=\"\",\"\",TEXT(OrigTable!B421,\"00\"))","v":""},{"$f":"IF(OrigTable!B421=\"\",\"\",ScriptText!$E$1&CHAR(10)&ScriptText!C416)","v":""},{"$f":"IF(OrigTable!C421=\"\",\"\",ScriptText!$B$1&CHAR(10)&ScriptText!$D$1)","v":"<tr>\n<td>"},{"$f":"IF(OrigTable!C421=\"\",\"\",IF(LEN(OrigTable!C421)>255,LEFT(OrigTable!C421,250)&\". . .\",OrigTable!C421))","v":"ATIN Rejection Notice"},{"$f":"IF(OrigTable!C421=\"\",\"\",ScriptText!$E$1&CHAR(10)&ScriptText!$C$1)","v":"</td>\n</tr>"},{"$f":"IF(OrigTable!D421=\"\",\"\",ScriptText!$B$1&CHAR(10)&ScriptText!$D$1)","v":"<tr>\n<td>"},{"$f":"IF(OrigTable!D421=\"\",\"\",TEXT(OrigTable!D421,\"00\"))","v":"IDRS Notices"},{"$f":"IF(OrigTable!D421=\"\",\"\",ScriptText!$E$1&CHAR(10)&ScriptText!$C$1)","v":"</td>\n</tr>"},{"$f":"IF(OrigTable!E421=\"\",\"\",ScriptText!$B$1&CHAR(10)&ScriptText!$D$1)","v":""},{"$f":"IF(OrigTable!E421=\"\",\"\",TEXT(OrigTable!E421,\"00\"))","v":""},{"$f":"IF(OrigTable!E421=\"\",\"\",ScriptText!$E$1&CHAR(10)&ScriptText!$C$1)","v":""},{"$f":"IF(OrigTable!F421=\"\",\"\",ScriptText!$B$1&CHAR(10)&ScriptText!$D$1)","v":""},{"$f":"IF(OrigTable!F421=\"\",\"\",TEXT(OrigTable!F421,\"00\"))","v":""},{"$f":"IF(OrigTable!F421=\"\",\"\",ScriptText!$E$1&CHAR(10)&ScriptText!$C$1)","v":""},{"$f":"IF(OrigTable!G421=\"\",\"\",ScriptText!$B$1&CHAR(10)&ScriptText!$D$1)","v":""},{"$f":"IF(OrigTable!G421=\"\",\"\",TEXT(OrigTable!G421,\"00\"))","v":""},{"$f":"IF(OrigTable!G421=\"\",\"\",ScriptText!$E$1&CHAR(10)&ScriptText!$C$1)","v":""},421]
["<tr>\n<td>563A</td>\n</tr>\n\n<tr>\n<td>You don’t qualify for an ATIN as we previously assigned you an ATIN</td>\n</tr>\n<tr>\n<td>IDRS Notices</td>\n</tr>",{"$f":"IF(OrigTable!A422=\"\",\"\",ScriptText!$B$1&CHAR(10)&ScriptText!$D$1)","v":"<tr>\n<td>"},{"$f":"IF(OrigTable!A422=\"\",\"\",TEXT(OrigTable!A422,\"00\"))","v":"563A"},{"$f":"IF(OrigTable!A422=\"\",\"\",ScriptText!$E$1&CHAR(10)&ScriptText!$C$1)","v":"</td>\n</tr>"},{"$f":"IF(OrigTable!B422=\"\",\"\",ScriptText!$B$1&CHAR(10)&ScriptText!$D$1)","v":""},{"$f":"IF(OrigTable!B422=\"\",\"\",TEXT(OrigTable!B422,\"00\"))","v":""},{"$f":"IF(OrigTable!B422=\"\",\"\",ScriptText!$E$1&CHAR(10)&ScriptText!C417)","v":""},{"$f":"IF(OrigTable!C422=\"\",\"\",ScriptText!$B$1&CHAR(10)&ScriptText!$D$1)","v":"<tr>\n<td>"},{"$f":"IF(OrigTable!C422=\"\",\"\",IF(LEN(OrigTable!C422)>255,LEFT(OrigTable!C422,250)&\". . .\",OrigTable!C422))","v":"You don’t qualify for an ATIN as we previously assigned you an ATIN"},{"$f":"IF(OrigTable!C422=\"\",\"\",ScriptText!$E$1&CHAR(10)&ScriptText!$C$1)","v":"</td>\n</tr>"},{"$f":"IF(OrigTable!D422=\"\",\"\",ScriptText!$B$1&CHAR(10)&ScriptText!$D$1)","v":"<tr>\n<td>"},{"$f":"IF(OrigTable!D422=\"\",\"\",TEXT(OrigTable!D422,\"00\"))","v":"IDRS Notices"},{"$f":"IF(OrigTable!D422=\"\",\"\",ScriptText!$E$1&CHAR(10)&ScriptText!$C$1)","v":"</td>\n</tr>"},{"$f":"IF(OrigTable!E422=\"\",\"\",ScriptText!$B$1&CHAR(10)&ScriptText!$D$1)","v":""},{"$f":"IF(OrigTable!E422=\"\",\"\",TEXT(OrigTable!E422,\"00\"))","v":""},{"$f":"IF(OrigTable!E422=\"\",\"\",ScriptText!$E$1&CHAR(10)&ScriptText!$C$1)","v":""},{"$f":"IF(OrigTable!F422=\"\",\"\",ScriptText!$B$1&CHAR(10)&ScriptText!$D$1)","v":""},{"$f":"IF(OrigTable!F422=\"\",\"\",TEXT(OrigTable!F422,\"00\"))","v":""},{"$f":"IF(OrigTable!F422=\"\",\"\",ScriptText!$E$1&CHAR(10)&ScriptText!$C$1)","v":""},{"$f":"IF(OrigTable!G422=\"\",\"\",ScriptText!$B$1&CHAR(10)&ScriptText!$D$1)","v":""},{"$f":"IF(OrigTable!G422=\"\",\"\",TEXT(OrigTable!G422,\"00\"))","v":""},{"$f":"IF(OrigTable!G422=\"\",\"\",ScriptText!$E$1&CHAR(10)&ScriptText!$C$1)","v":""},422]
["<tr>\n<td>563B</td>\n</tr>\n\n<tr>\n<td>We are already processing an application for you</td>\n</tr>\n<tr>\n<td>IDRS Notices</td>\n</tr>",{"$f":"IF(OrigTable!A423=\"\",\"\",ScriptText!$B$1&CHAR(10)&ScriptText!$D$1)","v":"<tr>\n<td>"},{"$f":"IF(OrigTable!A423=\"\",\"\",TEXT(OrigTable!A423,\"00\"))","v":"563B"},{"$f":"IF(OrigTable!A423=\"\",\"\",ScriptText!$E$1&CHAR(10)&ScriptText!$C$1)","v":"</td>\n</tr>"},{"$f":"IF(OrigTable!B423=\"\",\"\",ScriptText!$B$1&CHAR(10)&ScriptText!$D$1)","v":""},{"$f":"IF(OrigTable!B423=\"\",\"\",TEXT(OrigTable!B423,\"00\"))","v":""},{"$f":"IF(OrigTable!B423=\"\",\"\",ScriptText!$E$1&CHAR(10)&ScriptText!C418)","v":""},{"$f":"IF(OrigTable!C423=\"\",\"\",ScriptText!$B$1&CHAR(10)&ScriptText!$D$1)","v":"<tr>\n<td>"},{"$f":"IF(OrigTable!C423=\"\",\"\",IF(LEN(OrigTable!C423)>255,LEFT(OrigTable!C423,250)&\". . .\",OrigTable!C423))","v":"We are already processing an application for you"},{"$f":"IF(OrigTable!C423=\"\",\"\",ScriptText!$E$1&CHAR(10)&ScriptText!$C$1)","v":"</td>\n</tr>"},{"$f":"IF(OrigTable!D423=\"\",\"\",ScriptText!$B$1&CHAR(10)&ScriptText!$D$1)","v":"<tr>\n<td>"},{"$f":"IF(OrigTable!D423=\"\",\"\",TEXT(OrigTable!D423,\"00\"))","v":"IDRS Notices"},{"$f":"IF(OrigTable!D423=\"\",\"\",ScriptText!$E$1&CHAR(10)&ScriptText!$C$1)","v":"</td>\n</tr>"},{"$f":"IF(OrigTable!E423=\"\",\"\",ScriptText!$B$1&CHAR(10)&ScriptText!$D$1)","v":""},{"$f":"IF(OrigTable!E423=\"\",\"\",TEXT(OrigTable!E423,\"00\"))","v":""},{"$f":"IF(OrigTable!E423=\"\",\"\",ScriptText!$E$1&CHAR(10)&ScriptText!$C$1)","v":""},{"$f":"IF(OrigTable!F423=\"\",\"\",ScriptText!$B$1&CHAR(10)&ScriptText!$D$1)","v":""},{"$f":"IF(OrigTable!F423=\"\",\"\",TEXT(OrigTable!F423,\"00\"))","v":""},{"$f":"IF(OrigTable!F423=\"\",\"\",ScriptText!$E$1&CHAR(10)&ScriptText!$C$1)","v":""},{"$f":"IF(OrigTable!G423=\"\",\"\",ScriptText!$B$1&CHAR(10)&ScriptText!$D$1)","v":""},{"$f":"IF(OrigTable!G423=\"\",\"\",TEXT(OrigTable!G423,\"00\"))","v":""},{"$f":"IF(OrigTable!G423=\"\",\"\",ScriptText!$E$1&CHAR(10)&ScriptText!$C$1)","v":""},423]
["<tr>\n<td>563C</td>\n</tr>\n\n<tr>\n<td>We couldn’t process your application due to lack of information</td>\n</tr>\n<tr>\n<td>IDRS Notices</td>\n</tr>",{"$f":"IF(OrigTable!A424=\"\",\"\",ScriptText!$B$1&CHAR(10)&ScriptText!$D$1)","v":"<tr>\n<td>"},{"$f":"IF(OrigTable!A424=\"\",\"\",TEXT(OrigTable!A424,\"00\"))","v":"563C"},{"$f":"IF(OrigTable!A424=\"\",\"\",ScriptText!$E$1&CHAR(10)&ScriptText!$C$1)","v":"</td>\n</tr>"},{"$f":"IF(OrigTable!B424=\"\",\"\",ScriptText!$B$1&CHAR(10)&ScriptText!$D$1)","v":""},{"$f":"IF(OrigTable!B424=\"\",\"\",TEXT(OrigTable!B424,\"00\"))","v":""},{"$f":"IF(OrigTable!B424=\"\",\"\",ScriptText!$E$1&CHAR(10)&ScriptText!C419)","v":""},{"$f":"IF(OrigTable!C424=\"\",\"\",ScriptText!$B$1&CHAR(10)&ScriptText!$D$1)","v":"<tr>\n<td>"},{"$f":"IF(OrigTable!C424=\"\",\"\",IF(LEN(OrigTable!C424)>255,LEFT(OrigTable!C424,250)&\". . .\",OrigTable!C424))","v":"We couldn’t process your application due to lack of information"},{"$f":"IF(OrigTable!C424=\"\",\"\",ScriptText!$E$1&CHAR(10)&ScriptText!$C$1)","v":"</td>\n</tr>"},{"$f":"IF(OrigTable!D424=\"\",\"\",ScriptText!$B$1&CHAR(10)&ScriptText!$D$1)","v":"<tr>\n<td>"},{"$f":"IF(OrigTable!D424=\"\",\"\",TEXT(OrigTable!D424,\"00\"))","v":"IDRS Notices"},{"$f":"IF(OrigTable!D424=\"\",\"\",ScriptText!$E$1&CHAR(10)&ScriptText!$C$1)","v":"</td>\n</tr>"},{"$f":"IF(OrigTable!E424=\"\",\"\",ScriptText!$B$1&CHAR(10)&ScriptText!$D$1)","v":""},{"$f":"IF(OrigTable!E424=\"\",\"\",TEXT(OrigTable!E424,\"00\"))","v":""},{"$f":"IF(OrigTable!E424=\"\",\"\",ScriptText!$E$1&CHAR(10)&ScriptText!$C$1)","v":""},{"$f":"IF(OrigTable!F424=\"\",\"\",ScriptText!$B$1&CHAR(10)&ScriptText!$D$1)","v":""},{"$f":"IF(OrigTable!F424=\"\",\"\",TEXT(OrigTable!F424,\"00\"))","v":""},{"$f":"IF(OrigTable!F424=\"\",\"\",ScriptText!$E$1&CHAR(10)&ScriptText!$C$1)","v":""},{"$f":"IF(OrigTable!G424=\"\",\"\",ScriptText!$B$1&CHAR(10)&ScriptText!$D$1)","v":""},{"$f":"IF(OrigTable!G424=\"\",\"\",TEXT(OrigTable!G424,\"00\"))","v":""},{"$f":"IF(OrigTable!G424=\"\",\"\",ScriptText!$E$1&CHAR(10)&ScriptText!$C$1)","v":""},424]
["<tr>\n<td>563D</td>\n</tr>\n\n<tr>\n<td>We couldn’t process your application for a non-US citizen or resident</td>\n</tr>\n<tr>\n<td>IDRS Notices</td>\n</tr>",{"$f":"IF(OrigTable!A425=\"\",\"\",ScriptText!$B$1&CHAR(10)&ScriptText!$D$1)","v":"<tr>\n<td>"},{"$f":"IF(OrigTable!A425=\"\",\"\",TEXT(OrigTable!A425,\"00\"))","v":"563D"},{"$f":"IF(OrigTable!A425=\"\",\"\",ScriptText!$E$1&CHAR(10)&ScriptText!$C$1)","v":"</td>\n</tr>"},{"$f":"IF(OrigTable!B425=\"\",\"\",ScriptText!$B$1&CHAR(10)&ScriptText!$D$1)","v":""},{"$f":"IF(OrigTable!B425=\"\",\"\",TEXT(OrigTable!B425,\"00\"))","v":""},{"$f":"IF(OrigTable!B425=\"\",\"\",ScriptText!$E$1&CHAR(10)&ScriptText!C420)","v":""},{"$f":"IF(OrigTable!C425=\"\",\"\",ScriptText!$B$1&CHAR(10)&ScriptText!$D$1)","v":"<tr>\n<td>"},{"$f":"IF(OrigTable!C425=\"\",\"\",IF(LEN(OrigTable!C425)>255,LEFT(OrigTable!C425,250)&\". . .\",OrigTable!C425))","v":"We couldn’t process your application for a non-US citizen or resident"},{"$f":"IF(OrigTable!C425=\"\",\"\",ScriptText!$E$1&CHAR(10)&ScriptText!$C$1)","v":"</td>\n</tr>"},{"$f":"IF(OrigTable!D425=\"\",\"\",ScriptText!$B$1&CHAR(10)&ScriptText!$D$1)","v":"<tr>\n<td>"},{"$f":"IF(OrigTable!D425=\"\",\"\",TEXT(OrigTable!D425,\"00\"))","v":"IDRS Notices"},{"$f":"IF(OrigTable!D425=\"\",\"\",ScriptText!$E$1&CHAR(10)&ScriptText!$C$1)","v":"</td>\n</tr>"},{"$f":"IF(OrigTable!E425=\"\",\"\",ScriptText!$B$1&CHAR(10)&ScriptText!$D$1)","v":""},{"$f":"IF(OrigTable!E425=\"\",\"\",TEXT(OrigTable!E425,\"00\"))","v":""},{"$f":"IF(OrigTable!E425=\"\",\"\",ScriptText!$E$1&CHAR(10)&ScriptText!$C$1)","v":""},{"$f":"IF(OrigTable!F425=\"\",\"\",ScriptText!$B$1&CHAR(10)&ScriptText!$D$1)","v":""},{"$f":"IF(OrigTable!F425=\"\",\"\",TEXT(OrigTable!F425,\"00\"))","v":""},{"$f":"IF(OrigTable!F425=\"\",\"\",ScriptText!$E$1&CHAR(10)&ScriptText!$C$1)","v":""},{"$f":"IF(OrigTable!G425=\"\",\"\",ScriptText!$B$1&CHAR(10)&ScriptText!$D$1)","v":""},{"$f":"IF(OrigTable!G425=\"\",\"\",TEXT(OrigTable!G425,\"00\"))","v":""},{"$f":"IF(OrigTable!G425=\"\",\"\",ScriptText!$E$1&CHAR(10)&ScriptText!$C$1)","v":""},425]
["<tr>\n<td>563F</td>\n</tr>\n\n<tr>\n<td>We couldn’t process your request for extension of use of an ATIN</td>\n</tr>\n<tr>\n<td>IDRS Notices</td>\n</tr>",{"$f":"IF(OrigTable!A426=\"\",\"\",ScriptText!$B$1&CHAR(10)&ScriptText!$D$1)","v":"<tr>\n<td>"},{"$f":"IF(OrigTable!A426=\"\",\"\",TEXT(OrigTable!A426,\"00\"))","v":"563F"},{"$f":"IF(OrigTable!A426=\"\",\"\",ScriptText!$E$1&CHAR(10)&ScriptText!$C$1)","v":"</td>\n</tr>"},{"$f":"IF(OrigTable!B426=\"\",\"\",ScriptText!$B$1&CHAR(10)&ScriptText!$D$1)","v":""},{"$f":"IF(OrigTable!B426=\"\",\"\",TEXT(OrigTable!B426,\"00\"))","v":""},{"$f":"IF(OrigTable!B426=\"\",\"\",ScriptText!$E$1&CHAR(10)&ScriptText!C421)","v":""},{"$f":"IF(OrigTable!C426=\"\",\"\",ScriptText!$B$1&CHAR(10)&ScriptText!$D$1)","v":"<tr>\n<td>"},{"$f":"IF(OrigTable!C426=\"\",\"\",IF(LEN(OrigTable!C426)>255,LEFT(OrigTable!C426,250)&\". . .\",OrigTable!C426))","v":"We couldn’t process your request for extension of use of an ATIN"},{"$f":"IF(OrigTable!C426=\"\",\"\",ScriptText!$E$1&CHAR(10)&ScriptText!$C$1)","v":"</td>\n</tr>"},{"$f":"IF(OrigTable!D426=\"\",\"\",ScriptText!$B$1&CHAR(10)&ScriptText!$D$1)","v":"<tr>\n<td>"},{"$f":"IF(OrigTable!D426=\"\",\"\",TEXT(OrigTable!D426,\"00\"))","v":"IDRS Notices"},{"$f":"IF(OrigTable!D426=\"\",\"\",ScriptText!$E$1&CHAR(10)&ScriptText!$C$1)","v":"</td>\n</tr>"},{"$f":"IF(OrigTable!E426=\"\",\"\",ScriptText!$B$1&CHAR(10)&ScriptText!$D$1)","v":""},{"$f":"IF(OrigTable!E426=\"\",\"\",TEXT(OrigTable!E426,\"00\"))","v":""},{"$f":"IF(OrigTable!E426=\"\",\"\",ScriptText!$E$1&CHAR(10)&ScriptText!$C$1)","v":""},{"$f":"IF(OrigTable!F426=\"\",\"\",ScriptText!$B$1&CHAR(10)&ScriptText!$D$1)","v":""},{"$f":"IF(OrigTable!F426=\"\",\"\",TEXT(OrigTable!F426,\"00\"))","v":""},{"$f":"IF(OrigTable!F426=\"\",\"\",ScriptText!$E$1&CHAR(10)&ScriptText!$C$1)","v":""},{"$f":"IF(OrigTable!G426=\"\",\"\",ScriptText!$B$1&CHAR(10)&ScriptText!$D$1)","v":""},{"$f":"IF(OrigTable!G426=\"\",\"\",TEXT(OrigTable!G426,\"00\"))","v":""},{"$f":"IF(OrigTable!G426=\"\",\"\",ScriptText!$E$1&CHAR(10)&ScriptText!$C$1)","v":""},426]
["<tr>\n<td>563G</td>\n</tr>\n\n<tr>\n<td>You don’t qualify for an ATIN due to incomplete adoption placement</td>\n</tr>\n<tr>\n<td>IDRS Notices</td>\n</tr>",{"$f":"IF(OrigTable!A427=\"\",\"\",ScriptText!$B$1&CHAR(10)&ScriptText!$D$1)","v":"<tr>\n<td>"},{"$f":"IF(OrigTable!A427=\"\",\"\",TEXT(OrigTable!A427,\"00\"))","v":"563G"},{"$f":"IF(OrigTable!A427=\"\",\"\",ScriptText!$E$1&CHAR(10)&ScriptText!$C$1)","v":"</td>\n</tr>"},{"$f":"IF(OrigTable!B427=\"\",\"\",ScriptText!$B$1&CHAR(10)&ScriptText!$D$1)","v":""},{"$f":"IF(OrigTable!B427=\"\",\"\",TEXT(OrigTable!B427,\"00\"))","v":""},{"$f":"IF(OrigTable!B427=\"\",\"\",ScriptText!$E$1&CHAR(10)&ScriptText!C422)","v":""},{"$f":"IF(OrigTable!C427=\"\",\"\",ScriptText!$B$1&CHAR(10)&ScriptText!$D$1)","v":"<tr>\n<td>"},{"$f":"IF(OrigTable!C427=\"\",\"\",IF(LEN(OrigTable!C427)>255,LEFT(OrigTable!C427,250)&\". . .\",OrigTable!C427))","v":"You don’t qualify for an ATIN due to incomplete adoption placement"},{"$f":"IF(OrigTable!C427=\"\",\"\",ScriptText!$E$1&CHAR(10)&ScriptText!$C$1)","v":"</td>\n</tr>"},{"$f":"IF(OrigTable!D427=\"\",\"\",ScriptText!$B$1&CHAR(10)&ScriptText!$D$1)","v":"<tr>\n<td>"},{"$f":"IF(OrigTable!D427=\"\",\"\",TEXT(OrigTable!D427,\"00\"))","v":"IDRS Notices"},{"$f":"IF(OrigTable!D427=\"\",\"\",ScriptText!$E$1&CHAR(10)&ScriptText!$C$1)","v":"</td>\n</tr>"},{"$f":"IF(OrigTable!E427=\"\",\"\",ScriptText!$B$1&CHAR(10)&ScriptText!$D$1)","v":""},{"$f":"IF(OrigTable!E427=\"\",\"\",TEXT(OrigTable!E427,\"00\"))","v":""},{"$f":"IF(OrigTable!E427=\"\",\"\",ScriptText!$E$1&CHAR(10)&ScriptText!$C$1)","v":""},{"$f":"IF(OrigTable!F427=\"\",\"\",ScriptText!$B$1&CHAR(10)&ScriptText!$D$1)","v":""},{"$f":"IF(OrigTable!F427=\"\",\"\",TEXT(OrigTable!F427,\"00\"))","v":""},{"$f":"IF(OrigTable!F427=\"\",\"\",ScriptText!$E$1&CHAR(10)&ScriptText!$C$1)","v":""},{"$f":"IF(OrigTable!G427=\"\",\"\",ScriptText!$B$1&CHAR(10)&ScriptText!$D$1)","v":""},{"$f":"IF(OrigTable!G427=\"\",\"\",TEXT(OrigTable!G427,\"00\"))","v":""},{"$f":"IF(OrigTable!G427=\"\",\"\",ScriptText!$E$1&CHAR(10)&ScriptText!$C$1)","v":""},427]
["<tr>\n<td>563H</td>\n</tr>\n\n<tr>\n<td>You don’t qualify for an ATIN for lack of authorized adoption</td>\n</tr>\n<tr>\n<td>IDRS Notices</td>\n</tr>",{"$f":"IF(OrigTable!A428=\"\",\"\",ScriptText!$B$1&CHAR(10)&ScriptText!$D$1)","v":"<tr>\n<td>"},{"$f":"IF(OrigTable!A428=\"\",\"\",TEXT(OrigTable!A428,\"00\"))","v":"563H"},{"$f":"IF(OrigTable!A428=\"\",\"\",ScriptText!$E$1&CHAR(10)&ScriptText!$C$1)","v":"</td>\n</tr>"},{"$f":"IF(OrigTable!B428=\"\",\"\",ScriptText!$B$1&CHAR(10)&ScriptText!$D$1)","v":""},{"$f":"IF(OrigTable!B428=\"\",\"\",TEXT(OrigTable!B428,\"00\"))","v":""},{"$f":"IF(OrigTable!B428=\"\",\"\",ScriptText!$E$1&CHAR(10)&ScriptText!C423)","v":""},{"$f":"IF(OrigTable!C428=\"\",\"\",ScriptText!$B$1&CHAR(10)&ScriptText!$D$1)","v":"<tr>\n<td>"},{"$f":"IF(OrigTable!C428=\"\",\"\",IF(LEN(OrigTable!C428)>255,LEFT(OrigTable!C428,250)&\". . .\",OrigTable!C428))","v":"You don’t qualify for an ATIN for lack of authorized adoption"},{"$f":"IF(OrigTable!C428=\"\",\"\",ScriptText!$E$1&CHAR(10)&ScriptText!$C$1)","v":"</td>\n</tr>"},{"$f":"IF(OrigTable!D428=\"\",\"\",ScriptText!$B$1&CHAR(10)&ScriptText!$D$1)","v":"<tr>\n<td>"},{"$f":"IF(OrigTable!D428=\"\",\"\",TEXT(OrigTable!D428,\"00\"))","v":"IDRS Notices"},{"$f":"IF(OrigTable!D428=\"\",\"\",ScriptText!$E$1&CHAR(10)&ScriptText!$C$1)","v":"</td>\n</tr>"},{"$f":"IF(OrigTable!E428=\"\",\"\",ScriptText!$B$1&CHAR(10)&ScriptText!$D$1)","v":""},{"$f":"IF(OrigTable!E428=\"\",\"\",TEXT(OrigTable!E428,\"00\"))","v":""},{"$f":"IF(OrigTable!E428=\"\",\"\",ScriptText!$E$1&CHAR(10)&ScriptText!$C$1)","v":""},{"$f":"IF(OrigTable!F428=\"\",\"\",ScriptText!$B$1&CHAR(10)&ScriptText!$D$1)","v":""},{"$f":"IF(OrigTable!F428=\"\",\"\",TEXT(OrigTable!F428,\"00\"))","v":""},{"$f":"IF(OrigTable!F428=\"\",\"\",ScriptText!$E$1&CHAR(10)&ScriptText!$C$1)","v":""},{"$f":"IF(OrigTable!G428=\"\",\"\",ScriptText!$B$1&CHAR(10)&ScriptText!$D$1)","v":""},{"$f":"IF(OrigTable!G428=\"\",\"\",TEXT(OrigTable!G428,\"00\"))","v":""},{"$f":"IF(OrigTable!G428=\"\",\"\",ScriptText!$E$1&CHAR(10)&ScriptText!$C$1)","v":""},428]
["<tr>\n<td>563I</td>\n</tr>\n\n<tr>\n<td>Your ATIN is no longer valid since you no longer need one</td>\n</tr>\n<tr>\n<td>IDRS Notices</td>\n</tr>",{"$f":"IF(OrigTable!A429=\"\",\"\",ScriptText!$B$1&CHAR(10)&ScriptText!$D$1)","v":"<tr>\n<td>"},{"$f":"IF(OrigTable!A429=\"\",\"\",TEXT(OrigTable!A429,\"00\"))","v":"563I"},{"$f":"IF(OrigTable!A429=\"\",\"\",ScriptText!$E$1&CHAR(10)&ScriptText!$C$1)","v":"</td>\n</tr>"},{"$f":"IF(OrigTable!B429=\"\",\"\",ScriptText!$B$1&CHAR(10)&ScriptText!$D$1)","v":""},{"$f":"IF(OrigTable!B429=\"\",\"\",TEXT(OrigTable!B429,\"00\"))","v":""},{"$f":"IF(OrigTable!B429=\"\",\"\",ScriptText!$E$1&CHAR(10)&ScriptText!C424)","v":""},{"$f":"IF(OrigTable!C429=\"\",\"\",ScriptText!$B$1&CHAR(10)&ScriptText!$D$1)","v":"<tr>\n<td>"},{"$f":"IF(OrigTable!C429=\"\",\"\",IF(LEN(OrigTable!C429)>255,LEFT(OrigTable!C429,250)&\". . .\",OrigTable!C429))","v":"Your ATIN is no longer valid since you no longer need one"},{"$f":"IF(OrigTable!C429=\"\",\"\",ScriptText!$E$1&CHAR(10)&ScriptText!$C$1)","v":"</td>\n</tr>"},{"$f":"IF(OrigTable!D429=\"\",\"\",ScriptText!$B$1&CHAR(10)&ScriptText!$D$1)","v":"<tr>\n<td>"},{"$f":"IF(OrigTable!D429=\"\",\"\",TEXT(OrigTable!D429,\"00\"))","v":"IDRS Notices"},{"$f":"IF(OrigTable!D429=\"\",\"\",ScriptText!$E$1&CHAR(10)&ScriptText!$C$1)","v":"</td>\n</tr>"},{"$f":"IF(OrigTable!E429=\"\",\"\",ScriptText!$B$1&CHAR(10)&ScriptText!$D$1)","v":""},{"$f":"IF(OrigTable!E429=\"\",\"\",TEXT(OrigTable!E429,\"00\"))","v":""},{"$f":"IF(OrigTable!E429=\"\",\"\",ScriptText!$E$1&CHAR(10)&ScriptText!$C$1)","v":""},{"$f":"IF(OrigTable!F429=\"\",\"\",ScriptText!$B$1&CHAR(10)&ScriptText!$D$1)","v":""},{"$f":"IF(OrigTable!F429=\"\",\"\",TEXT(OrigTable!F429,\"00\"))","v":""},{"$f":"IF(OrigTable!F429=\"\",\"\",ScriptText!$E$1&CHAR(10)&ScriptText!$C$1)","v":""},{"$f":"IF(OrigTable!G429=\"\",\"\",ScriptText!$B$1&CHAR(10)&ScriptText!$D$1)","v":""},{"$f":"IF(OrigTable!G429=\"\",\"\",TEXT(OrigTable!G429,\"00\"))","v":""},{"$f":"IF(OrigTable!G429=\"\",\"\",ScriptText!$E$1&CHAR(10)&ScriptText!$C$1)","v":""},429]
["<tr>\n<td>563J</td>\n</tr>\n\n<tr>\n<td>You don’t qualify for an AtIN as foster adoption doesn’t qualify</td>\n</tr>\n<tr>\n<td>IDRS Notices</td>\n</tr>",{"$f":"IF(OrigTable!A430=\"\",\"\",ScriptText!$B$1&CHAR(10)&ScriptText!$D$1)","v":"<tr>\n<td>"},{"$f":"IF(OrigTable!A430=\"\",\"\",TEXT(OrigTable!A430,\"00\"))","v":"563J"},{"$f":"IF(OrigTable!A430=\"\",\"\",ScriptText!$E$1&CHAR(10)&ScriptText!$C$1)","v":"</td>\n</tr>"},{"$f":"IF(OrigTable!B430=\"\",\"\",ScriptText!$B$1&CHAR(10)&ScriptText!$D$1)","v":""},{"$f":"IF(OrigTable!B430=\"\",\"\",TEXT(OrigTable!B430,\"00\"))","v":""},{"$f":"IF(OrigTable!B430=\"\",\"\",ScriptText!$E$1&CHAR(10)&ScriptText!C425)","v":""},{"$f":"IF(OrigTable!C430=\"\",\"\",ScriptText!$B$1&CHAR(10)&ScriptText!$D$1)","v":"<tr>\n<td>"},{"$f":"IF(OrigTable!C430=\"\",\"\",IF(LEN(OrigTable!C430)>255,LEFT(OrigTable!C430,250)&\". . .\",OrigTable!C430))","v":"You don’t qualify for an AtIN as foster adoption doesn’t qualify"},{"$f":"IF(OrigTable!C430=\"\",\"\",ScriptText!$E$1&CHAR(10)&ScriptText!$C$1)","v":"</td>\n</tr>"},{"$f":"IF(OrigTable!D430=\"\",\"\",ScriptText!$B$1&CHAR(10)&ScriptText!$D$1)","v":"<tr>\n<td>"},{"$f":"IF(OrigTable!D430=\"\",\"\",TEXT(OrigTable!D430,\"00\"))","v":"IDRS Notices"},{"$f":"IF(OrigTable!D430=\"\",\"\",ScriptText!$E$1&CHAR(10)&ScriptText!$C$1)","v":"</td>\n</tr>"},{"$f":"IF(OrigTable!E430=\"\",\"\",ScriptText!$B$1&CHAR(10)&ScriptText!$D$1)","v":""},{"$f":"IF(OrigTable!E430=\"\",\"\",TEXT(OrigTable!E430,\"00\"))","v":""},{"$f":"IF(OrigTable!E430=\"\",\"\",ScriptText!$E$1&CHAR(10)&ScriptText!$C$1)","v":""},{"$f":"IF(OrigTable!F430=\"\",\"\",ScriptText!$B$1&CHAR(10)&ScriptText!$D$1)","v":""},{"$f":"IF(OrigTable!F430=\"\",\"\",TEXT(OrigTable!F430,\"00\"))","v":""},{"$f":"IF(OrigTable!F430=\"\",\"\",ScriptText!$E$1&CHAR(10)&ScriptText!$C$1)","v":""},{"$f":"IF(OrigTable!G430=\"\",\"\",ScriptText!$B$1&CHAR(10)&ScriptText!$D$1)","v":""},{"$f":"IF(OrigTable!G430=\"\",\"\",TEXT(OrigTable!G430,\"00\"))","v":""},{"$f":"IF(OrigTable!G430=\"\",\"\",ScriptText!$E$1&CHAR(10)&ScriptText!$C$1)","v":""},430]
["<tr>\n<td>564</td>\n</tr>\n\n<tr>\n<td>CP 564 Notice to Taxpayer that undeliverable refund check reissued(F5511)</td>\n</tr>\n<tr>\n<td>IDRS Notices</td>\n</tr>",{"$f":"IF(OrigTable!A431=\"\",\"\",ScriptText!$B$1&CHAR(10)&ScriptText!$D$1)","v":"<tr>\n<td>"},{"$f":"IF(OrigTable!A431=\"\",\"\",TEXT(OrigTable!A431,\"00\"))","v":"564"},{"$f":"IF(OrigTable!A431=\"\",\"\",ScriptText!$E$1&CHAR(10)&ScriptText!$C$1)","v":"</td>\n</tr>"},{"$f":"IF(OrigTable!B431=\"\",\"\",ScriptText!$B$1&CHAR(10)&ScriptText!$D$1)","v":""},{"$f":"IF(OrigTable!B431=\"\",\"\",TEXT(OrigTable!B431,\"00\"))","v":""},{"$f":"IF(OrigTable!B431=\"\",\"\",ScriptText!$E$1&CHAR(10)&ScriptText!C426)","v":""},{"$f":"IF(OrigTable!C431=\"\",\"\",ScriptText!$B$1&CHAR(10)&ScriptText!$D$1)","v":"<tr>\n<td>"},{"$f":"IF(OrigTable!C431=\"\",\"\",IF(LEN(OrigTable!C431)>255,LEFT(OrigTable!C431,250)&\". . .\",OrigTable!C431))","v":"CP 564 Notice to Taxpayer that undeliverable refund check reissued(F5511)"},{"$f":"IF(OrigTable!C431=\"\",\"\",ScriptText!$E$1&CHAR(10)&ScriptText!$C$1)","v":"</td>\n</tr>"},{"$f":"IF(OrigTable!D431=\"\",\"\",ScriptText!$B$1&CHAR(10)&ScriptText!$D$1)","v":"<tr>\n<td>"},{"$f":"IF(OrigTable!D431=\"\",\"\",TEXT(OrigTable!D431,\"00\"))","v":"IDRS Notices"},{"$f":"IF(OrigTable!D431=\"\",\"\",ScriptText!$E$1&CHAR(10)&ScriptText!$C$1)","v":"</td>\n</tr>"},{"$f":"IF(OrigTable!E431=\"\",\"\",ScriptText!$B$1&CHAR(10)&ScriptText!$D$1)","v":""},{"$f":"IF(OrigTable!E431=\"\",\"\",TEXT(OrigTable!E431,\"00\"))","v":""},{"$f":"IF(OrigTable!E431=\"\",\"\",ScriptText!$E$1&CHAR(10)&ScriptText!$C$1)","v":""},{"$f":"IF(OrigTable!F431=\"\",\"\",ScriptText!$B$1&CHAR(10)&ScriptText!$D$1)","v":""},{"$f":"IF(OrigTable!F431=\"\",\"\",TEXT(OrigTable!F431,\"00\"))","v":""},{"$f":"IF(OrigTable!F431=\"\",\"\",ScriptText!$E$1&CHAR(10)&ScriptText!$C$1)","v":""},{"$f":"IF(OrigTable!G431=\"\",\"\",ScriptText!$B$1&CHAR(10)&ScriptText!$D$1)","v":""},{"$f":"IF(OrigTable!G431=\"\",\"\",TEXT(OrigTable!G431,\"00\"))","v":""},{"$f":"IF(OrigTable!G431=\"\",\"\",ScriptText!$E$1&CHAR(10)&ScriptText!$C$1)","v":""},431]
["<tr>\n<td>565</td>\n</tr>\n\n<tr>\n<td>ITIN assignment notice</td>\n</tr>\n<tr>\n<td>IDRS Notices</td>\n</tr>",{"$f":"IF(OrigTable!A432=\"\",\"\",ScriptText!$B$1&CHAR(10)&ScriptText!$D$1)","v":"<tr>\n<td>"},{"$f":"IF(OrigTable!A432=\"\",\"\",TEXT(OrigTable!A432,\"00\"))","v":"565"},{"$f":"IF(OrigTable!A432=\"\",\"\",ScriptText!$E$1&CHAR(10)&ScriptText!$C$1)","v":"</td>\n</tr>"},{"$f":"IF(OrigTable!B432=\"\",\"\",ScriptText!$B$1&CHAR(10)&ScriptText!$D$1)","v":""},{"$f":"IF(OrigTable!B432=\"\",\"\",TEXT(OrigTable!B432,\"00\"))","v":""},{"$f":"IF(OrigTable!B432=\"\",\"\",ScriptText!$E$1&CHAR(10)&ScriptText!C427)","v":""},{"$f":"IF(OrigTable!C432=\"\",\"\",ScriptText!$B$1&CHAR(10)&ScriptText!$D$1)","v":"<tr>\n<td>"},{"$f":"IF(OrigTable!C432=\"\",\"\",IF(LEN(OrigTable!C432)>255,LEFT(OrigTable!C432,250)&\". . .\",OrigTable!C432))","v":"ITIN assignment notice"},{"$f":"IF(OrigTable!C432=\"\",\"\",ScriptText!$E$1&CHAR(10)&ScriptText!$C$1)","v":"</td>\n</tr>"},{"$f":"IF(OrigTable!D432=\"\",\"\",ScriptText!$B$1&CHAR(10)&ScriptText!$D$1)","v":"<tr>\n<td>"},{"$f":"IF(OrigTable!D432=\"\",\"\",TEXT(OrigTable!D432,\"00\"))","v":"IDRS Notices"},{"$f":"IF(OrigTable!D432=\"\",\"\",ScriptText!$E$1&CHAR(10)&ScriptText!$C$1)","v":"</td>\n</tr>"},{"$f":"IF(OrigTable!E432=\"\",\"\",ScriptText!$B$1&CHAR(10)&ScriptText!$D$1)","v":""},{"$f":"IF(OrigTable!E432=\"\",\"\",TEXT(OrigTable!E432,\"00\"))","v":""},{"$f":"IF(OrigTable!E432=\"\",\"\",ScriptText!$E$1&CHAR(10)&ScriptText!$C$1)","v":""},{"$f":"IF(OrigTable!F432=\"\",\"\",ScriptText!$B$1&CHAR(10)&ScriptText!$D$1)","v":""},{"$f":"IF(OrigTable!F432=\"\",\"\",TEXT(OrigTable!F432,\"00\"))","v":""},{"$f":"IF(OrigTable!F432=\"\",\"\",ScriptText!$E$1&CHAR(10)&ScriptText!$C$1)","v":""},{"$f":"IF(OrigTable!G432=\"\",\"\",ScriptText!$B$1&CHAR(10)&ScriptText!$D$1)","v":""},{"$f":"IF(OrigTable!G432=\"\",\"\",TEXT(OrigTable!G432,\"00\"))","v":""},{"$f":"IF(OrigTable!G432=\"\",\"\",ScriptText!$E$1&CHAR(10)&ScriptText!$C$1)","v":""},432]
["<tr>\n<td>565SP</td>\n</tr>\n\n<tr>\n<td>ITIN assignment notice Spanish</td>\n</tr>\n<tr>\n<td>IDRS Notices</td>\n</tr>",{"$f":"IF(OrigTable!A433=\"\",\"\",ScriptText!$B$1&CHAR(10)&ScriptText!$D$1)","v":"<tr>\n<td>"},{"$f":"IF(OrigTable!A433=\"\",\"\",TEXT(OrigTable!A433,\"00\"))","v":"565SP"},{"$f":"IF(OrigTable!A433=\"\",\"\",ScriptText!$E$1&CHAR(10)&ScriptText!$C$1)","v":"</td>\n</tr>"},{"$f":"IF(OrigTable!B433=\"\",\"\",ScriptText!$B$1&CHAR(10)&ScriptText!$D$1)","v":""},{"$f":"IF(OrigTable!B433=\"\",\"\",TEXT(OrigTable!B433,\"00\"))","v":""},{"$f":"IF(OrigTable!B433=\"\",\"\",ScriptText!$E$1&CHAR(10)&ScriptText!C428)","v":""},{"$f":"IF(OrigTable!C433=\"\",\"\",ScriptText!$B$1&CHAR(10)&ScriptText!$D$1)","v":"<tr>\n<td>"},{"$f":"IF(OrigTable!C433=\"\",\"\",IF(LEN(OrigTable!C433)>255,LEFT(OrigTable!C433,250)&\". . .\",OrigTable!C433))","v":"ITIN assignment notice Spanish"},{"$f":"IF(OrigTable!C433=\"\",\"\",ScriptText!$E$1&CHAR(10)&ScriptText!$C$1)","v":"</td>\n</tr>"},{"$f":"IF(OrigTable!D433=\"\",\"\",ScriptText!$B$1&CHAR(10)&ScriptText!$D$1)","v":"<tr>\n<td>"},{"$f":"IF(OrigTable!D433=\"\",\"\",TEXT(OrigTable!D433,\"00\"))","v":"IDRS Notices"},{"$f":"IF(OrigTable!D433=\"\",\"\",ScriptText!$E$1&CHAR(10)&ScriptText!$C$1)","v":"</td>\n</tr>"},{"$f":"IF(OrigTable!E433=\"\",\"\",ScriptText!$B$1&CHAR(10)&ScriptText!$D$1)","v":""},{"$f":"IF(OrigTable!E433=\"\",\"\",TEXT(OrigTable!E433,\"00\"))","v":""},{"$f":"IF(OrigTable!E433=\"\",\"\",ScriptText!$E$1&CHAR(10)&ScriptText!$C$1)","v":""},{"$f":"IF(OrigTable!F433=\"\",\"\",ScriptText!$B$1&CHAR(10)&ScriptText!$D$1)","v":""},{"$f":"IF(OrigTable!F433=\"\",\"\",TEXT(OrigTable!F433,\"00\"))","v":""},{"$f":"IF(OrigTable!F433=\"\",\"\",ScriptText!$E$1&CHAR(10)&ScriptText!$C$1)","v":""},{"$f":"IF(OrigTable!G433=\"\",\"\",ScriptText!$B$1&CHAR(10)&ScriptText!$D$1)","v":""},{"$f":"IF(OrigTable!G433=\"\",\"\",TEXT(OrigTable!G433,\"00\"))","v":""},{"$f":"IF(OrigTable!G433=\"\",\"\",ScriptText!$E$1&CHAR(10)&ScriptText!$C$1)","v":""},433]
["<tr>\n<td>566</td>\n</tr>\n\n<tr>\n<td>ITIN Suspense Notice, advises the applicant that additional information and/or supporting identification or\nexception documentation is necessary to complete the processing of Form W-7, Application for IRS Individual Taxpayer Identification Number</td>\n</tr>\n<tr>\n<td>IDRS Notices</td>\n</tr>",{"$f":"IF(OrigTable!A434=\"\",\"\",ScriptText!$B$1&CHAR(10)&ScriptText!$D$1)","v":"<tr>\n<td>"},{"$f":"IF(OrigTable!A434=\"\",\"\",TEXT(OrigTable!A434,\"00\"))","v":"566"},{"$f":"IF(OrigTable!A434=\"\",\"\",ScriptText!$E$1&CHAR(10)&ScriptText!$C$1)","v":"</td>\n</tr>"},{"$f":"IF(OrigTable!B434=\"\",\"\",ScriptText!$B$1&CHAR(10)&ScriptText!$D$1)","v":""},{"$f":"IF(OrigTable!B434=\"\",\"\",TEXT(OrigTable!B434,\"00\"))","v":""},{"$f":"IF(OrigTable!B434=\"\",\"\",ScriptText!$E$1&CHAR(10)&ScriptText!C429)","v":""},{"$f":"IF(OrigTable!C434=\"\",\"\",ScriptText!$B$1&CHAR(10)&ScriptText!$D$1)","v":"<tr>\n<td>"},{"$f":"IF(OrigTable!C434=\"\",\"\",IF(LEN(OrigTable!C434)>255,LEFT(OrigTable!C434,250)&\". . .\",OrigTable!C434))","v":"ITIN Suspense Notice, advises the applicant that additional information and/or supporting identification or\nexception documentation is necessary to complete the processing of Form W-7, Application for IRS Individual Taxpayer Identification Number"},{"$f":"IF(OrigTable!C434=\"\",\"\",ScriptText!$E$1&CHAR(10)&ScriptText!$C$1)","v":"</td>\n</tr>"},{"$f":"IF(OrigTable!D434=\"\",\"\",ScriptText!$B$1&CHAR(10)&ScriptText!$D$1)","v":"<tr>\n<td>"},{"$f":"IF(OrigTable!D434=\"\",\"\",TEXT(OrigTable!D434,\"00\"))","v":"IDRS Notices"},{"$f":"IF(OrigTable!D434=\"\",\"\",ScriptText!$E$1&CHAR(10)&ScriptText!$C$1)","v":"</td>\n</tr>"},{"$f":"IF(OrigTable!E434=\"\",\"\",ScriptText!$B$1&CHAR(10)&ScriptText!$D$1)","v":""},{"$f":"IF(OrigTable!E434=\"\",\"\",TEXT(OrigTable!E434,\"00\"))","v":""},{"$f":"IF(OrigTable!E434=\"\",\"\",ScriptText!$E$1&CHAR(10)&ScriptText!$C$1)","v":""},{"$f":"IF(OrigTable!F434=\"\",\"\",ScriptText!$B$1&CHAR(10)&ScriptText!$D$1)","v":""},{"$f":"IF(OrigTable!F434=\"\",\"\",TEXT(OrigTable!F434,\"00\"))","v":""},{"$f":"IF(OrigTable!F434=\"\",\"\",ScriptText!$E$1&CHAR(10)&ScriptText!$C$1)","v":""},{"$f":"IF(OrigTable!G434=\"\",\"\",ScriptText!$B$1&CHAR(10)&ScriptText!$D$1)","v":""},{"$f":"IF(OrigTable!G434=\"\",\"\",TEXT(OrigTable!G434,\"00\"))","v":""},{"$f":"IF(OrigTable!G434=\"\",\"\",ScriptText!$E$1&CHAR(10)&ScriptText!$C$1)","v":""},434]
["<tr>\n<td>567</td>\n</tr>\n\n<tr>\n<td>ITIN rejection Notice, advises the applicant that the application can’t be processed as submitted, for a specific reason that must be addressed. Rejection Notice can’t be re-issued.</td>\n</tr>\n<tr>\n<td>IDRS Notices</td>\n</tr>",{"$f":"IF(OrigTable!A435=\"\",\"\",ScriptText!$B$1&CHAR(10)&ScriptText!$D$1)","v":"<tr>\n<td>"},{"$f":"IF(OrigTable!A435=\"\",\"\",TEXT(OrigTable!A435,\"00\"))","v":"567"},{"$f":"IF(OrigTable!A435=\"\",\"\",ScriptText!$E$1&CHAR(10)&ScriptText!$C$1)","v":"</td>\n</tr>"},{"$f":"IF(OrigTable!B435=\"\",\"\",ScriptText!$B$1&CHAR(10)&ScriptText!$D$1)","v":""},{"$f":"IF(OrigTable!B435=\"\",\"\",TEXT(OrigTable!B435,\"00\"))","v":""},{"$f":"IF(OrigTable!B435=\"\",\"\",ScriptText!$E$1&CHAR(10)&ScriptText!C430)","v":""},{"$f":"IF(OrigTable!C435=\"\",\"\",ScriptText!$B$1&CHAR(10)&ScriptText!$D$1)","v":"<tr>\n<td>"},{"$f":"IF(OrigTable!C435=\"\",\"\",IF(LEN(OrigTable!C435)>255,LEFT(OrigTable!C435,250)&\". . .\",OrigTable!C435))","v":"ITIN rejection Notice, advises the applicant that the application can’t be processed as submitted, for a specific reason that must be addressed. Rejection Notice can’t be re-issued."},{"$f":"IF(OrigTable!C435=\"\",\"\",ScriptText!$E$1&CHAR(10)&ScriptText!$C$1)","v":"</td>\n</tr>"},{"$f":"IF(OrigTable!D435=\"\",\"\",ScriptText!$B$1&CHAR(10)&ScriptText!$D$1)","v":"<tr>\n<td>"},{"$f":"IF(OrigTable!D435=\"\",\"\",TEXT(OrigTable!D435,\"00\"))","v":"IDRS Notices"},{"$f":"IF(OrigTable!D435=\"\",\"\",ScriptText!$E$1&CHAR(10)&ScriptText!$C$1)","v":"</td>\n</tr>"},{"$f":"IF(OrigTable!E435=\"\",\"\",ScriptText!$B$1&CHAR(10)&ScriptText!$D$1)","v":""},{"$f":"IF(OrigTable!E435=\"\",\"\",TEXT(OrigTable!E435,\"00\"))","v":""},{"$f":"IF(OrigTable!E435=\"\",\"\",ScriptText!$E$1&CHAR(10)&ScriptText!$C$1)","v":""},{"$f":"IF(OrigTable!F435=\"\",\"\",ScriptText!$B$1&CHAR(10)&ScriptText!$D$1)","v":""},{"$f":"IF(OrigTable!F435=\"\",\"\",TEXT(OrigTable!F435,\"00\"))","v":""},{"$f":"IF(OrigTable!F435=\"\",\"\",ScriptText!$E$1&CHAR(10)&ScriptText!$C$1)","v":""},{"$f":"IF(OrigTable!G435=\"\",\"\",ScriptText!$B$1&CHAR(10)&ScriptText!$D$1)","v":""},{"$f":"IF(OrigTable!G435=\"\",\"\",TEXT(OrigTable!G435,\"00\"))","v":""},{"$f":"IF(OrigTable!G435=\"\",\"\",ScriptText!$E$1&CHAR(10)&ScriptText!$C$1)","v":""},435]
["<tr>\n<td>567SP</td>\n</tr>\n\n<tr>\n<td>ITIN rejection Notice, advises the applicant that the application can’t be processed as submitted, for a\nspecific reason that must be addressed. Rejection Notice can’t be re-issued., Spanish</td>\n</tr>\n<tr>\n<td>IDRS Notices</td>\n</tr>",{"$f":"IF(OrigTable!A436=\"\",\"\",ScriptText!$B$1&CHAR(10)&ScriptText!$D$1)","v":"<tr>\n<td>"},{"$f":"IF(OrigTable!A436=\"\",\"\",TEXT(OrigTable!A436,\"00\"))","v":"567SP"},{"$f":"IF(OrigTable!A436=\"\",\"\",ScriptText!$E$1&CHAR(10)&ScriptText!$C$1)","v":"</td>\n</tr>"},{"$f":"IF(OrigTable!B436=\"\",\"\",ScriptText!$B$1&CHAR(10)&ScriptText!$D$1)","v":""},{"$f":"IF(OrigTable!B436=\"\",\"\",TEXT(OrigTable!B436,\"00\"))","v":""},{"$f":"IF(OrigTable!B436=\"\",\"\",ScriptText!$E$1&CHAR(10)&ScriptText!C431)","v":""},{"$f":"IF(OrigTable!C436=\"\",\"\",ScriptText!$B$1&CHAR(10)&ScriptText!$D$1)","v":"<tr>\n<td>"},{"$f":"IF(OrigTable!C436=\"\",\"\",IF(LEN(OrigTable!C436)>255,LEFT(OrigTable!C436,250)&\". . .\",OrigTable!C436))","v":"ITIN rejection Notice, advises the applicant that the application can’t be processed as submitted, for a\nspecific reason that must be addressed. Rejection Notice can’t be re-issued., Spanish"},{"$f":"IF(OrigTable!C436=\"\",\"\",ScriptText!$E$1&CHAR(10)&ScriptText!$C$1)","v":"</td>\n</tr>"},{"$f":"IF(OrigTable!D436=\"\",\"\",ScriptText!$B$1&CHAR(10)&ScriptText!$D$1)","v":"<tr>\n<td>"},{"$f":"IF(OrigTable!D436=\"\",\"\",TEXT(OrigTable!D436,\"00\"))","v":"IDRS Notices"},{"$f":"IF(OrigTable!D436=\"\",\"\",ScriptText!$E$1&CHAR(10)&ScriptText!$C$1)","v":"</td>\n</tr>"},{"$f":"IF(OrigTable!E436=\"\",\"\",ScriptText!$B$1&CHAR(10)&ScriptText!$D$1)","v":""},{"$f":"IF(OrigTable!E436=\"\",\"\",TEXT(OrigTable!E436,\"00\"))","v":""},{"$f":"IF(OrigTable!E436=\"\",\"\",ScriptText!$E$1&CHAR(10)&ScriptText!$C$1)","v":""},{"$f":"IF(OrigTable!F436=\"\",\"\",ScriptText!$B$1&CHAR(10)&ScriptText!$D$1)","v":""},{"$f":"IF(OrigTable!F436=\"\",\"\",TEXT(OrigTable!F436,\"00\"))","v":""},{"$f":"IF(OrigTable!F436=\"\",\"\",ScriptText!$E$1&CHAR(10)&ScriptText!$C$1)","v":""},{"$f":"IF(OrigTable!G436=\"\",\"\",ScriptText!$B$1&CHAR(10)&ScriptText!$D$1)","v":""},{"$f":"IF(OrigTable!G436=\"\",\"\",TEXT(OrigTable!G436,\"00\"))","v":""},{"$f":"IF(OrigTable!G436=\"\",\"\",ScriptText!$E$1&CHAR(10)&ScriptText!$C$1)","v":""},436]
["<tr>\n<td>568</td>\n</tr>\n\n<tr>\n<td>FTD penalty computation explanation letter</td>\n</tr>\n<tr>\n<td>IDRS Notices</td>\n</tr>",{"$f":"IF(OrigTable!A437=\"\",\"\",ScriptText!$B$1&CHAR(10)&ScriptText!$D$1)","v":"<tr>\n<td>"},{"$f":"IF(OrigTable!A437=\"\",\"\",TEXT(OrigTable!A437,\"00\"))","v":"568"},{"$f":"IF(OrigTable!A437=\"\",\"\",ScriptText!$E$1&CHAR(10)&ScriptText!$C$1)","v":"</td>\n</tr>"},{"$f":"IF(OrigTable!B437=\"\",\"\",ScriptText!$B$1&CHAR(10)&ScriptText!$D$1)","v":""},{"$f":"IF(OrigTable!B437=\"\",\"\",TEXT(OrigTable!B437,\"00\"))","v":""},{"$f":"IF(OrigTable!B437=\"\",\"\",ScriptText!$E$1&CHAR(10)&ScriptText!C432)","v":""},{"$f":"IF(OrigTable!C437=\"\",\"\",ScriptText!$B$1&CHAR(10)&ScriptText!$D$1)","v":"<tr>\n<td>"},{"$f":"IF(OrigTable!C437=\"\",\"\",IF(LEN(OrigTable!C437)>255,LEFT(OrigTable!C437,250)&\". . .\",OrigTable!C437))","v":"FTD penalty computation explanation letter"},{"$f":"IF(OrigTable!C437=\"\",\"\",ScriptText!$E$1&CHAR(10)&ScriptText!$C$1)","v":"</td>\n</tr>"},{"$f":"IF(OrigTable!D437=\"\",\"\",ScriptText!$B$1&CHAR(10)&ScriptText!$D$1)","v":"<tr>\n<td>"},{"$f":"IF(OrigTable!D437=\"\",\"\",TEXT(OrigTable!D437,\"00\"))","v":"IDRS Notices"},{"$f":"IF(OrigTable!D437=\"\",\"\",ScriptText!$E$1&CHAR(10)&ScriptText!$C$1)","v":"</td>\n</tr>"},{"$f":"IF(OrigTable!E437=\"\",\"\",ScriptText!$B$1&CHAR(10)&ScriptText!$D$1)","v":""},{"$f":"IF(OrigTable!E437=\"\",\"\",TEXT(OrigTable!E437,\"00\"))","v":""},{"$f":"IF(OrigTable!E437=\"\",\"\",ScriptText!$E$1&CHAR(10)&ScriptText!$C$1)","v":""},{"$f":"IF(OrigTable!F437=\"\",\"\",ScriptText!$B$1&CHAR(10)&ScriptText!$D$1)","v":""},{"$f":"IF(OrigTable!F437=\"\",\"\",TEXT(OrigTable!F437,\"00\"))","v":""},{"$f":"IF(OrigTable!F437=\"\",\"\",ScriptText!$E$1&CHAR(10)&ScriptText!$C$1)","v":""},{"$f":"IF(OrigTable!G437=\"\",\"\",ScriptText!$B$1&CHAR(10)&ScriptText!$D$1)","v":""},{"$f":"IF(OrigTable!G437=\"\",\"\",TEXT(OrigTable!G437,\"00\"))","v":""},{"$f":"IF(OrigTable!G437=\"\",\"\",ScriptText!$E$1&CHAR(10)&ScriptText!$C$1)","v":""},437]
["<tr>\n<td>569</td>\n</tr>\n\n<tr>\n<td>Penalty and Interest Explanation</td>\n</tr>\n<tr>\n<td>IDRS Notices</td>\n</tr>",{"$f":"IF(OrigTable!A438=\"\",\"\",ScriptText!$B$1&CHAR(10)&ScriptText!$D$1)","v":"<tr>\n<td>"},{"$f":"IF(OrigTable!A438=\"\",\"\",TEXT(OrigTable!A438,\"00\"))","v":"569"},{"$f":"IF(OrigTable!A438=\"\",\"\",ScriptText!$E$1&CHAR(10)&ScriptText!$C$1)","v":"</td>\n</tr>"},{"$f":"IF(OrigTable!B438=\"\",\"\",ScriptText!$B$1&CHAR(10)&ScriptText!$D$1)","v":""},{"$f":"IF(OrigTable!B438=\"\",\"\",TEXT(OrigTable!B438,\"00\"))","v":""},{"$f":"IF(OrigTable!B438=\"\",\"\",ScriptText!$E$1&CHAR(10)&ScriptText!C433)","v":""},{"$f":"IF(OrigTable!C438=\"\",\"\",ScriptText!$B$1&CHAR(10)&ScriptText!$D$1)","v":"<tr>\n<td>"},{"$f":"IF(OrigTable!C438=\"\",\"\",IF(LEN(OrigTable!C438)>255,LEFT(OrigTable!C438,250)&\". . .\",OrigTable!C438))","v":"Penalty and Interest Explanation"},{"$f":"IF(OrigTable!C438=\"\",\"\",ScriptText!$E$1&CHAR(10)&ScriptText!$C$1)","v":"</td>\n</tr>"},{"$f":"IF(OrigTable!D438=\"\",\"\",ScriptText!$B$1&CHAR(10)&ScriptText!$D$1)","v":"<tr>\n<td>"},{"$f":"IF(OrigTable!D438=\"\",\"\",TEXT(OrigTable!D438,\"00\"))","v":"IDRS Notices"},{"$f":"IF(OrigTable!D438=\"\",\"\",ScriptText!$E$1&CHAR(10)&ScriptText!$C$1)","v":"</td>\n</tr>"},{"$f":"IF(OrigTable!E438=\"\",\"\",ScriptText!$B$1&CHAR(10)&ScriptText!$D$1)","v":""},{"$f":"IF(OrigTable!E438=\"\",\"\",TEXT(OrigTable!E438,\"00\"))","v":""},{"$f":"IF(OrigTable!E438=\"\",\"\",ScriptText!$E$1&CHAR(10)&ScriptText!$C$1)","v":""},{"$f":"IF(OrigTable!F438=\"\",\"\",ScriptText!$B$1&CHAR(10)&ScriptText!$D$1)","v":""},{"$f":"IF(OrigTable!F438=\"\",\"\",TEXT(OrigTable!F438,\"00\"))","v":""},{"$f":"IF(OrigTable!F438=\"\",\"\",ScriptText!$E$1&CHAR(10)&ScriptText!$C$1)","v":""},{"$f":"IF(OrigTable!G438=\"\",\"\",ScriptText!$B$1&CHAR(10)&ScriptText!$D$1)","v":""},{"$f":"IF(OrigTable!G438=\"\",\"\",TEXT(OrigTable!G438,\"00\"))","v":""},{"$f":"IF(OrigTable!G438=\"\",\"\",ScriptText!$E$1&CHAR(10)&ScriptText!$C$1)","v":""},438]
["<tr>\n<td>570</td>\n</tr>\n\n<tr>\n<td>PTIN Rejection Notice</td>\n</tr>\n<tr>\n<td>IDRS Notices</td>\n</tr>",{"$f":"IF(OrigTable!A439=\"\",\"\",ScriptText!$B$1&CHAR(10)&ScriptText!$D$1)","v":"<tr>\n<td>"},{"$f":"IF(OrigTable!A439=\"\",\"\",TEXT(OrigTable!A439,\"00\"))","v":"570"},{"$f":"IF(OrigTable!A439=\"\",\"\",ScriptText!$E$1&CHAR(10)&ScriptText!$C$1)","v":"</td>\n</tr>"},{"$f":"IF(OrigTable!B439=\"\",\"\",ScriptText!$B$1&CHAR(10)&ScriptText!$D$1)","v":""},{"$f":"IF(OrigTable!B439=\"\",\"\",TEXT(OrigTable!B439,\"00\"))","v":""},{"$f":"IF(OrigTable!B439=\"\",\"\",ScriptText!$E$1&CHAR(10)&ScriptText!C434)","v":""},{"$f":"IF(OrigTable!C439=\"\",\"\",ScriptText!$B$1&CHAR(10)&ScriptText!$D$1)","v":"<tr>\n<td>"},{"$f":"IF(OrigTable!C439=\"\",\"\",IF(LEN(OrigTable!C439)>255,LEFT(OrigTable!C439,250)&\". . .\",OrigTable!C439))","v":"PTIN Rejection Notice"},{"$f":"IF(OrigTable!C439=\"\",\"\",ScriptText!$E$1&CHAR(10)&ScriptText!$C$1)","v":"</td>\n</tr>"},{"$f":"IF(OrigTable!D439=\"\",\"\",ScriptText!$B$1&CHAR(10)&ScriptText!$D$1)","v":"<tr>\n<td>"},{"$f":"IF(OrigTable!D439=\"\",\"\",TEXT(OrigTable!D439,\"00\"))","v":"IDRS Notices"},{"$f":"IF(OrigTable!D439=\"\",\"\",ScriptText!$E$1&CHAR(10)&ScriptText!$C$1)","v":"</td>\n</tr>"},{"$f":"IF(OrigTable!E439=\"\",\"\",ScriptText!$B$1&CHAR(10)&ScriptText!$D$1)","v":""},{"$f":"IF(OrigTable!E439=\"\",\"\",TEXT(OrigTable!E439,\"00\"))","v":""},{"$f":"IF(OrigTable!E439=\"\",\"\",ScriptText!$E$1&CHAR(10)&ScriptText!$C$1)","v":""},{"$f":"IF(OrigTable!F439=\"\",\"\",ScriptText!$B$1&CHAR(10)&ScriptText!$D$1)","v":""},{"$f":"IF(OrigTable!F439=\"\",\"\",TEXT(OrigTable!F439,\"00\"))","v":""},{"$f":"IF(OrigTable!F439=\"\",\"\",ScriptText!$E$1&CHAR(10)&ScriptText!$C$1)","v":""},{"$f":"IF(OrigTable!G439=\"\",\"\",ScriptText!$B$1&CHAR(10)&ScriptText!$D$1)","v":""},{"$f":"IF(OrigTable!G439=\"\",\"\",TEXT(OrigTable!G439,\"00\"))","v":""},{"$f":"IF(OrigTable!G439=\"\",\"\",ScriptText!$E$1&CHAR(10)&ScriptText!$C$1)","v":""},439]
["<tr>\n<td>571</td>\n</tr>\n\n<tr>\n<td>PTIN Assignment Notice</td>\n</tr>\n<tr>\n<td>IDRS Notices</td>\n</tr>",{"$f":"IF(OrigTable!A440=\"\",\"\",ScriptText!$B$1&CHAR(10)&ScriptText!$D$1)","v":"<tr>\n<td>"},{"$f":"IF(OrigTable!A440=\"\",\"\",TEXT(OrigTable!A440,\"00\"))","v":"571"},{"$f":"IF(OrigTable!A440=\"\",\"\",ScriptText!$E$1&CHAR(10)&ScriptText!$C$1)","v":"</td>\n</tr>"},{"$f":"IF(OrigTable!B440=\"\",\"\",ScriptText!$B$1&CHAR(10)&ScriptText!$D$1)","v":""},{"$f":"IF(OrigTable!B440=\"\",\"\",TEXT(OrigTable!B440,\"00\"))","v":""},{"$f":"IF(OrigTable!B440=\"\",\"\",ScriptText!$E$1&CHAR(10)&ScriptText!C435)","v":""},{"$f":"IF(OrigTable!C440=\"\",\"\",ScriptText!$B$1&CHAR(10)&ScriptText!$D$1)","v":"<tr>\n<td>"},{"$f":"IF(OrigTable!C440=\"\",\"\",IF(LEN(OrigTable!C440)>255,LEFT(OrigTable!C440,250)&\". . .\",OrigTable!C440))","v":"PTIN Assignment Notice"},{"$f":"IF(OrigTable!C440=\"\",\"\",ScriptText!$E$1&CHAR(10)&ScriptText!$C$1)","v":"</td>\n</tr>"},{"$f":"IF(OrigTable!D440=\"\",\"\",ScriptText!$B$1&CHAR(10)&ScriptText!$D$1)","v":"<tr>\n<td>"},{"$f":"IF(OrigTable!D440=\"\",\"\",TEXT(OrigTable!D440,\"00\"))","v":"IDRS Notices"},{"$f":"IF(OrigTable!D440=\"\",\"\",ScriptText!$E$1&CHAR(10)&ScriptText!$C$1)","v":"</td>\n</tr>"},{"$f":"IF(OrigTable!E440=\"\",\"\",ScriptText!$B$1&CHAR(10)&ScriptText!$D$1)","v":""},{"$f":"IF(OrigTable!E440=\"\",\"\",TEXT(OrigTable!E440,\"00\"))","v":""},{"$f":"IF(OrigTable!E440=\"\",\"\",ScriptText!$E$1&CHAR(10)&ScriptText!$C$1)","v":""},{"$f":"IF(OrigTable!F440=\"\",\"\",ScriptText!$B$1&CHAR(10)&ScriptText!$D$1)","v":""},{"$f":"IF(OrigTable!F440=\"\",\"\",TEXT(OrigTable!F440,\"00\"))","v":""},{"$f":"IF(OrigTable!F440=\"\",\"\",ScriptText!$E$1&CHAR(10)&ScriptText!$C$1)","v":""},{"$f":"IF(OrigTable!G440=\"\",\"\",ScriptText!$B$1&CHAR(10)&ScriptText!$D$1)","v":""},{"$f":"IF(OrigTable!G440=\"\",\"\",TEXT(OrigTable!G440,\"00\"))","v":""},{"$f":"IF(OrigTable!G440=\"\",\"\",ScriptText!$E$1&CHAR(10)&ScriptText!$C$1)","v":""},440]
["<tr>\n<td>574</td>\n</tr>\n\n<tr>\n<td>Advises applicant their W-7 application for an ITIN is being rejected. It can’t be worked further and must be resubmitted with the required supporting identification documentation and a valid US Federal Tax Return (Formerly CP 569)</td>\n</tr>\n<tr>\n<td>IDRS Notices</td>\n</tr>",{"$f":"IF(OrigTable!A441=\"\",\"\",ScriptText!$B$1&CHAR(10)&ScriptText!$D$1)","v":"<tr>\n<td>"},{"$f":"IF(OrigTable!A441=\"\",\"\",TEXT(OrigTable!A441,\"00\"))","v":"574"},{"$f":"IF(OrigTable!A441=\"\",\"\",ScriptText!$E$1&CHAR(10)&ScriptText!$C$1)","v":"</td>\n</tr>"},{"$f":"IF(OrigTable!B441=\"\",\"\",ScriptText!$B$1&CHAR(10)&ScriptText!$D$1)","v":""},{"$f":"IF(OrigTable!B441=\"\",\"\",TEXT(OrigTable!B441,\"00\"))","v":""},{"$f":"IF(OrigTable!B441=\"\",\"\",ScriptText!$E$1&CHAR(10)&ScriptText!C436)","v":""},{"$f":"IF(OrigTable!C441=\"\",\"\",ScriptText!$B$1&CHAR(10)&ScriptText!$D$1)","v":"<tr>\n<td>"},{"$f":"IF(OrigTable!C441=\"\",\"\",IF(LEN(OrigTable!C441)>255,LEFT(OrigTable!C441,250)&\". . .\",OrigTable!C441))","v":"Advises applicant their W-7 application for an ITIN is being rejected. It can’t be worked further and must be resubmitted with the required supporting identification documentation and a valid US Federal Tax Return (Formerly CP 569)"},{"$f":"IF(OrigTable!C441=\"\",\"\",ScriptText!$E$1&CHAR(10)&ScriptText!$C$1)","v":"</td>\n</tr>"},{"$f":"IF(OrigTable!D441=\"\",\"\",ScriptText!$B$1&CHAR(10)&ScriptText!$D$1)","v":"<tr>\n<td>"},{"$f":"IF(OrigTable!D441=\"\",\"\",TEXT(OrigTable!D441,\"00\"))","v":"IDRS Notices"},{"$f":"IF(OrigTable!D441=\"\",\"\",ScriptText!$E$1&CHAR(10)&ScriptText!$C$1)","v":"</td>\n</tr>"},{"$f":"IF(OrigTable!E441=\"\",\"\",ScriptText!$B$1&CHAR(10)&ScriptText!$D$1)","v":""},{"$f":"IF(OrigTable!E441=\"\",\"\",TEXT(OrigTable!E441,\"00\"))","v":""},{"$f":"IF(OrigTable!E441=\"\",\"\",ScriptText!$E$1&CHAR(10)&ScriptText!$C$1)","v":""},{"$f":"IF(OrigTable!F441=\"\",\"\",ScriptText!$B$1&CHAR(10)&ScriptText!$D$1)","v":""},{"$f":"IF(OrigTable!F441=\"\",\"\",TEXT(OrigTable!F441,\"00\"))","v":""},{"$f":"IF(OrigTable!F441=\"\",\"\",ScriptText!$E$1&CHAR(10)&ScriptText!$C$1)","v":""},{"$f":"IF(OrigTable!G441=\"\",\"\",ScriptText!$B$1&CHAR(10)&ScriptText!$D$1)","v":""},{"$f":"IF(OrigTable!G441=\"\",\"\",TEXT(OrigTable!G441,\"00\"))","v":""},{"$f":"IF(OrigTable!G441=\"\",\"\",ScriptText!$E$1&CHAR(10)&ScriptText!$C$1)","v":""},441]
["<tr>\n<td>587</td>\n</tr>\n\n<tr>\n<td>Notice of Dishonored Check not paid by bank (aka Form 2287(CG))</td>\n</tr>\n<tr>\n<td>IDRS Notices</td>\n</tr>",{"$f":"IF(OrigTable!A442=\"\",\"\",ScriptText!$B$1&CHAR(10)&ScriptText!$D$1)","v":"<tr>\n<td>"},{"$f":"IF(OrigTable!A442=\"\",\"\",TEXT(OrigTable!A442,\"00\"))","v":"587"},{"$f":"IF(OrigTable!A442=\"\",\"\",ScriptText!$E$1&CHAR(10)&ScriptText!$C$1)","v":"</td>\n</tr>"},{"$f":"IF(OrigTable!B442=\"\",\"\",ScriptText!$B$1&CHAR(10)&ScriptText!$D$1)","v":""},{"$f":"IF(OrigTable!B442=\"\",\"\",TEXT(OrigTable!B442,\"00\"))","v":""},{"$f":"IF(OrigTable!B442=\"\",\"\",ScriptText!$E$1&CHAR(10)&ScriptText!C437)","v":""},{"$f":"IF(OrigTable!C442=\"\",\"\",ScriptText!$B$1&CHAR(10)&ScriptText!$D$1)","v":"<tr>\n<td>"},{"$f":"IF(OrigTable!C442=\"\",\"\",IF(LEN(OrigTable!C442)>255,LEFT(OrigTable!C442,250)&\". . .\",OrigTable!C442))","v":"Notice of Dishonored Check not paid by bank (aka Form 2287(CG))"},{"$f":"IF(OrigTable!C442=\"\",\"\",ScriptText!$E$1&CHAR(10)&ScriptText!$C$1)","v":"</td>\n</tr>"},{"$f":"IF(OrigTable!D442=\"\",\"\",ScriptText!$B$1&CHAR(10)&ScriptText!$D$1)","v":"<tr>\n<td>"},{"$f":"IF(OrigTable!D442=\"\",\"\",TEXT(OrigTable!D442,\"00\"))","v":"IDRS Notices"},{"$f":"IF(OrigTable!D442=\"\",\"\",ScriptText!$E$1&CHAR(10)&ScriptText!$C$1)","v":"</td>\n</tr>"},{"$f":"IF(OrigTable!E442=\"\",\"\",ScriptText!$B$1&CHAR(10)&ScriptText!$D$1)","v":""},{"$f":"IF(OrigTable!E442=\"\",\"\",TEXT(OrigTable!E442,\"00\"))","v":""},{"$f":"IF(OrigTable!E442=\"\",\"\",ScriptText!$E$1&CHAR(10)&ScriptText!$C$1)","v":""},{"$f":"IF(OrigTable!F442=\"\",\"\",ScriptText!$B$1&CHAR(10)&ScriptText!$D$1)","v":""},{"$f":"IF(OrigTable!F442=\"\",\"\",TEXT(OrigTable!F442,\"00\"))","v":""},{"$f":"IF(OrigTable!F442=\"\",\"\",ScriptText!$E$1&CHAR(10)&ScriptText!$C$1)","v":""},{"$f":"IF(OrigTable!G442=\"\",\"\",ScriptText!$B$1&CHAR(10)&ScriptText!$D$1)","v":""},{"$f":"IF(OrigTable!G442=\"\",\"\",TEXT(OrigTable!G442,\"00\"))","v":""},{"$f":"IF(OrigTable!G442=\"\",\"\",ScriptText!$E$1&CHAR(10)&ScriptText!$C$1)","v":""},442]
["<tr>\n<td>565SP</td>\n</tr>\n\n<tr>\n<td>ITIN assignment notice Spanish</td>\n</tr>\n<tr>\n<td>Master File Notices</td>\n</tr>",{"$f":"IF(OrigTable!A443=\"\",\"\",ScriptText!$B$1&CHAR(10)&ScriptText!$D$1)","v":"<tr>\n<td>"},{"$f":"IF(OrigTable!A443=\"\",\"\",TEXT(OrigTable!A443,\"00\"))","v":"565SP"},{"$f":"IF(OrigTable!A443=\"\",\"\",ScriptText!$E$1&CHAR(10)&ScriptText!$C$1)","v":"</td>\n</tr>"},{"$f":"IF(OrigTable!B443=\"\",\"\",ScriptText!$B$1&CHAR(10)&ScriptText!$D$1)","v":""},{"$f":"IF(OrigTable!B443=\"\",\"\",TEXT(OrigTable!B443,\"00\"))","v":""},{"$f":"IF(OrigTable!B443=\"\",\"\",ScriptText!$E$1&CHAR(10)&ScriptText!C438)","v":""},{"$f":"IF(OrigTable!C443=\"\",\"\",ScriptText!$B$1&CHAR(10)&ScriptText!$D$1)","v":"<tr>\n<td>"},{"$f":"IF(OrigTable!C443=\"\",\"\",IF(LEN(OrigTable!C443)>255,LEFT(OrigTable!C443,250)&\". . .\",OrigTable!C443))","v":"ITIN assignment notice Spanish"},{"$f":"IF(OrigTable!C443=\"\",\"\",ScriptText!$E$1&CHAR(10)&ScriptText!$C$1)","v":"</td>\n</tr>"},{"$f":"IF(OrigTable!D443=\"\",\"\",ScriptText!$B$1&CHAR(10)&ScriptText!$D$1)","v":"<tr>\n<td>"},{"$f":"IF(OrigTable!D443=\"\",\"\",TEXT(OrigTable!D443,\"00\"))","v":"Master File Notices"},{"$f":"IF(OrigTable!D443=\"\",\"\",ScriptText!$E$1&CHAR(10)&ScriptText!$C$1)","v":"</td>\n</tr>"},{"$f":"IF(OrigTable!E443=\"\",\"\",ScriptText!$B$1&CHAR(10)&ScriptText!$D$1)","v":""},{"$f":"IF(OrigTable!E443=\"\",\"\",TEXT(OrigTable!E443,\"00\"))","v":""},{"$f":"IF(OrigTable!E443=\"\",\"\",ScriptText!$E$1&CHAR(10)&ScriptText!$C$1)","v":""},{"$f":"IF(OrigTable!F443=\"\",\"\",ScriptText!$B$1&CHAR(10)&ScriptText!$D$1)","v":""},{"$f":"IF(OrigTable!F443=\"\",\"\",TEXT(OrigTable!F443,\"00\"))","v":""},{"$f":"IF(OrigTable!F443=\"\",\"\",ScriptText!$E$1&CHAR(10)&ScriptText!$C$1)","v":""},{"$f":"IF(OrigTable!G443=\"\",\"\",ScriptText!$B$1&CHAR(10)&ScriptText!$D$1)","v":""},{"$f":"IF(OrigTable!G443=\"\",\"\",TEXT(OrigTable!G443,\"00\"))","v":""},{"$f":"IF(OrigTable!G443=\"\",\"\",ScriptText!$E$1&CHAR(10)&ScriptText!$C$1)","v":""},443]
["<tr>\n<td>566SP</td>\n</tr>\n\n<tr>\n<td>ITIN assignment notice Spanish</td>\n</tr>\n<tr>\n<td>Master File Notices</td>\n</tr>",{"$f":"IF(OrigTable!A444=\"\",\"\",ScriptText!$B$1&CHAR(10)&ScriptText!$D$1)","v":"<tr>\n<td>"},{"$f":"IF(OrigTable!A444=\"\",\"\",TEXT(OrigTable!A444,\"00\"))","v":"566SP"},{"$f":"IF(OrigTable!A444=\"\",\"\",ScriptText!$E$1&CHAR(10)&ScriptText!$C$1)","v":"</td>\n</tr>"},{"$f":"IF(OrigTable!B444=\"\",\"\",ScriptText!$B$1&CHAR(10)&ScriptText!$D$1)","v":""},{"$f":"IF(OrigTable!B444=\"\",\"\",TEXT(OrigTable!B444,\"00\"))","v":""},{"$f":"IF(OrigTable!B444=\"\",\"\",ScriptText!$E$1&CHAR(10)&ScriptText!C439)","v":""},{"$f":"IF(OrigTable!C444=\"\",\"\",ScriptText!$B$1&CHAR(10)&ScriptText!$D$1)","v":"<tr>\n<td>"},{"$f":"IF(OrigTable!C444=\"\",\"\",IF(LEN(OrigTable!C444)>255,LEFT(OrigTable!C444,250)&\". . .\",OrigTable!C444))","v":"ITIN assignment notice Spanish"},{"$f":"IF(OrigTable!C444=\"\",\"\",ScriptText!$E$1&CHAR(10)&ScriptText!$C$1)","v":"</td>\n</tr>"},{"$f":"IF(OrigTable!D444=\"\",\"\",ScriptText!$B$1&CHAR(10)&ScriptText!$D$1)","v":"<tr>\n<td>"},{"$f":"IF(OrigTable!D444=\"\",\"\",TEXT(OrigTable!D444,\"00\"))","v":"Master File Notices"},{"$f":"IF(OrigTable!D444=\"\",\"\",ScriptText!$E$1&CHAR(10)&ScriptText!$C$1)","v":"</td>\n</tr>"},{"$f":"IF(OrigTable!E444=\"\",\"\",ScriptText!$B$1&CHAR(10)&ScriptText!$D$1)","v":""},{"$f":"IF(OrigTable!E444=\"\",\"\",TEXT(OrigTable!E444,\"00\"))","v":""},{"$f":"IF(OrigTable!E444=\"\",\"\",ScriptText!$E$1&CHAR(10)&ScriptText!$C$1)","v":""},{"$f":"IF(OrigTable!F444=\"\",\"\",ScriptText!$B$1&CHAR(10)&ScriptText!$D$1)","v":""},{"$f":"IF(OrigTable!F444=\"\",\"\",TEXT(OrigTable!F444,\"00\"))","v":""},{"$f":"IF(OrigTable!F444=\"\",\"\",ScriptText!$E$1&CHAR(10)&ScriptText!$C$1)","v":""},{"$f":"IF(OrigTable!G444=\"\",\"\",ScriptText!$B$1&CHAR(10)&ScriptText!$D$1)","v":""},{"$f":"IF(OrigTable!G444=\"\",\"\",TEXT(OrigTable!G444,\"00\"))","v":""},{"$f":"IF(OrigTable!G444=\"\",\"\",ScriptText!$E$1&CHAR(10)&ScriptText!$C$1)","v":""},444]
["<tr>\n<td>567SP</td>\n</tr>\n\n<tr>\n<td>ITIN assignment notice Spanish</td>\n</tr>\n<tr>\n<td>Master File Notices</td>\n</tr>",{"$f":"IF(OrigTable!A445=\"\",\"\",ScriptText!$B$1&CHAR(10)&ScriptText!$D$1)","v":"<tr>\n<td>"},{"$f":"IF(OrigTable!A445=\"\",\"\",TEXT(OrigTable!A445,\"00\"))","v":"567SP"},{"$f":"IF(OrigTable!A445=\"\",\"\",ScriptText!$E$1&CHAR(10)&ScriptText!$C$1)","v":"</td>\n</tr>"},{"$f":"IF(OrigTable!B445=\"\",\"\",ScriptText!$B$1&CHAR(10)&ScriptText!$D$1)","v":""},{"$f":"IF(OrigTable!B445=\"\",\"\",TEXT(OrigTable!B445,\"00\"))","v":""},{"$f":"IF(OrigTable!B445=\"\",\"\",ScriptText!$E$1&CHAR(10)&ScriptText!C440)","v":""},{"$f":"IF(OrigTable!C445=\"\",\"\",ScriptText!$B$1&CHAR(10)&ScriptText!$D$1)","v":"<tr>\n<td>"},{"$f":"IF(OrigTable!C445=\"\",\"\",IF(LEN(OrigTable!C445)>255,LEFT(OrigTable!C445,250)&\". . .\",OrigTable!C445))","v":"ITIN assignment notice Spanish"},{"$f":"IF(OrigTable!C445=\"\",\"\",ScriptText!$E$1&CHAR(10)&ScriptText!$C$1)","v":"</td>\n</tr>"},{"$f":"IF(OrigTable!D445=\"\",\"\",ScriptText!$B$1&CHAR(10)&ScriptText!$D$1)","v":"<tr>\n<td>"},{"$f":"IF(OrigTable!D445=\"\",\"\",TEXT(OrigTable!D445,\"00\"))","v":"Master File Notices"},{"$f":"IF(OrigTable!D445=\"\",\"\",ScriptText!$E$1&CHAR(10)&ScriptText!$C$1)","v":"</td>\n</tr>"},{"$f":"IF(OrigTable!E445=\"\",\"\",ScriptText!$B$1&CHAR(10)&ScriptText!$D$1)","v":""},{"$f":"IF(OrigTable!E445=\"\",\"\",TEXT(OrigTable!E445,\"00\"))","v":""},{"$f":"IF(OrigTable!E445=\"\",\"\",ScriptText!$E$1&CHAR(10)&ScriptText!$C$1)","v":""},{"$f":"IF(OrigTable!F445=\"\",\"\",ScriptText!$B$1&CHAR(10)&ScriptText!$D$1)","v":""},{"$f":"IF(OrigTable!F445=\"\",\"\",TEXT(OrigTable!F445,\"00\"))","v":""},{"$f":"IF(OrigTable!F445=\"\",\"\",ScriptText!$E$1&CHAR(10)&ScriptText!$C$1)","v":""},{"$f":"IF(OrigTable!G445=\"\",\"\",ScriptText!$B$1&CHAR(10)&ScriptText!$D$1)","v":""},{"$f":"IF(OrigTable!G445=\"\",\"\",TEXT(OrigTable!G445,\"00\"))","v":""},{"$f":"IF(OrigTable!G445=\"\",\"\",ScriptText!$E$1&CHAR(10)&ScriptText!$C$1)","v":""},445]
["<tr>\n<td>601</td>\n</tr>\n\n<tr>\n<td>Reminder - 1ST. Notice Balance Due</td>\n</tr>\n<tr>\n<td>Master File Notices</td>\n</tr>",{"$f":"IF(OrigTable!A446=\"\",\"\",ScriptText!$B$1&CHAR(10)&ScriptText!$D$1)","v":"<tr>\n<td>"},{"$f":"IF(OrigTable!A446=\"\",\"\",TEXT(OrigTable!A446,\"00\"))","v":"601"},{"$f":"IF(OrigTable!A446=\"\",\"\",ScriptText!$E$1&CHAR(10)&ScriptText!$C$1)","v":"</td>\n</tr>"},{"$f":"IF(OrigTable!B446=\"\",\"\",ScriptText!$B$1&CHAR(10)&ScriptText!$D$1)","v":""},{"$f":"IF(OrigTable!B446=\"\",\"\",TEXT(OrigTable!B446,\"00\"))","v":""},{"$f":"IF(OrigTable!B446=\"\",\"\",ScriptText!$E$1&CHAR(10)&ScriptText!C441)","v":""},{"$f":"IF(OrigTable!C446=\"\",\"\",ScriptText!$B$1&CHAR(10)&ScriptText!$D$1)","v":"<tr>\n<td>"},{"$f":"IF(OrigTable!C446=\"\",\"\",IF(LEN(OrigTable!C446)>255,LEFT(OrigTable!C446,250)&\". . .\",OrigTable!C446))","v":"Reminder - 1ST. Notice Balance Due"},{"$f":"IF(OrigTable!C446=\"\",\"\",ScriptText!$E$1&CHAR(10)&ScriptText!$C$1)","v":"</td>\n</tr>"},{"$f":"IF(OrigTable!D446=\"\",\"\",ScriptText!$B$1&CHAR(10)&ScriptText!$D$1)","v":"<tr>\n<td>"},{"$f":"IF(OrigTable!D446=\"\",\"\",TEXT(OrigTable!D446,\"00\"))","v":"Master File Notices"},{"$f":"IF(OrigTable!D446=\"\",\"\",ScriptText!$E$1&CHAR(10)&ScriptText!$C$1)","v":"</td>\n</tr>"},{"$f":"IF(OrigTable!E446=\"\",\"\",ScriptText!$B$1&CHAR(10)&ScriptText!$D$1)","v":""},{"$f":"IF(OrigTable!E446=\"\",\"\",TEXT(OrigTable!E446,\"00\"))","v":""},{"$f":"IF(OrigTable!E446=\"\",\"\",ScriptText!$E$1&CHAR(10)&ScriptText!$C$1)","v":""},{"$f":"IF(OrigTable!F446=\"\",\"\",ScriptText!$B$1&CHAR(10)&ScriptText!$D$1)","v":""},{"$f":"IF(OrigTable!F446=\"\",\"\",TEXT(OrigTable!F446,\"00\"))","v":""},{"$f":"IF(OrigTable!F446=\"\",\"\",ScriptText!$E$1&CHAR(10)&ScriptText!$C$1)","v":""},{"$f":"IF(OrigTable!G446=\"\",\"\",ScriptText!$B$1&CHAR(10)&ScriptText!$D$1)","v":""},{"$f":"IF(OrigTable!G446=\"\",\"\",TEXT(OrigTable!G446,\"00\"))","v":""},{"$f":"IF(OrigTable!G446=\"\",\"\",ScriptText!$E$1&CHAR(10)&ScriptText!$C$1)","v":""},446]
["<tr>\n<td>603</td>\n</tr>\n\n<tr>\n<td>IMPORTANT – Immediate action is required</td>\n</tr>\n<tr>\n<td>Master File Notices</td>\n</tr>",{"$f":"IF(OrigTable!A447=\"\",\"\",ScriptText!$B$1&CHAR(10)&ScriptText!$D$1)","v":"<tr>\n<td>"},{"$f":"IF(OrigTable!A447=\"\",\"\",TEXT(OrigTable!A447,\"00\"))","v":"603"},{"$f":"IF(OrigTable!A447=\"\",\"\",ScriptText!$E$1&CHAR(10)&ScriptText!$C$1)","v":"</td>\n</tr>"},{"$f":"IF(OrigTable!B447=\"\",\"\",ScriptText!$B$1&CHAR(10)&ScriptText!$D$1)","v":""},{"$f":"IF(OrigTable!B447=\"\",\"\",TEXT(OrigTable!B447,\"00\"))","v":""},{"$f":"IF(OrigTable!B447=\"\",\"\",ScriptText!$E$1&CHAR(10)&ScriptText!C442)","v":""},{"$f":"IF(OrigTable!C447=\"\",\"\",ScriptText!$B$1&CHAR(10)&ScriptText!$D$1)","v":"<tr>\n<td>"},{"$f":"IF(OrigTable!C447=\"\",\"\",IF(LEN(OrigTable!C447)>255,LEFT(OrigTable!C447,250)&\". . .\",OrigTable!C447))","v":"IMPORTANT – Immediate action is required"},{"$f":"IF(OrigTable!C447=\"\",\"\",ScriptText!$E$1&CHAR(10)&ScriptText!$C$1)","v":"</td>\n</tr>"},{"$f":"IF(OrigTable!D447=\"\",\"\",ScriptText!$B$1&CHAR(10)&ScriptText!$D$1)","v":"<tr>\n<td>"},{"$f":"IF(OrigTable!D447=\"\",\"\",TEXT(OrigTable!D447,\"00\"))","v":"Master File Notices"},{"$f":"IF(OrigTable!D447=\"\",\"\",ScriptText!$E$1&CHAR(10)&ScriptText!$C$1)","v":"</td>\n</tr>"},{"$f":"IF(OrigTable!E447=\"\",\"\",ScriptText!$B$1&CHAR(10)&ScriptText!$D$1)","v":""},{"$f":"IF(OrigTable!E447=\"\",\"\",TEXT(OrigTable!E447,\"00\"))","v":""},{"$f":"IF(OrigTable!E447=\"\",\"\",ScriptText!$E$1&CHAR(10)&ScriptText!$C$1)","v":""},{"$f":"IF(OrigTable!F447=\"\",\"\",ScriptText!$B$1&CHAR(10)&ScriptText!$D$1)","v":""},{"$f":"IF(OrigTable!F447=\"\",\"\",TEXT(OrigTable!F447,\"00\"))","v":""},{"$f":"IF(OrigTable!F447=\"\",\"\",ScriptText!$E$1&CHAR(10)&ScriptText!$C$1)","v":""},{"$f":"IF(OrigTable!G447=\"\",\"\",ScriptText!$B$1&CHAR(10)&ScriptText!$D$1)","v":""},{"$f":"IF(OrigTable!G447=\"\",\"\",TEXT(OrigTable!G447,\"00\"))","v":""},{"$f":"IF(OrigTable!G447=\"\",\"\",ScriptText!$E$1&CHAR(10)&ScriptText!$C$1)","v":""},447]
["<tr>\n<td>604</td>\n</tr>\n\n<tr>\n<td>Final Notice – Balance Due- IMF</td>\n</tr>\n<tr>\n<td>Master File Notices</td>\n</tr>",{"$f":"IF(OrigTable!A448=\"\",\"\",ScriptText!$B$1&CHAR(10)&ScriptText!$D$1)","v":"<tr>\n<td>"},{"$f":"IF(OrigTable!A448=\"\",\"\",TEXT(OrigTable!A448,\"00\"))","v":"604"},{"$f":"IF(OrigTable!A448=\"\",\"\",ScriptText!$E$1&CHAR(10)&ScriptText!$C$1)","v":"</td>\n</tr>"},{"$f":"IF(OrigTable!B448=\"\",\"\",ScriptText!$B$1&CHAR(10)&ScriptText!$D$1)","v":""},{"$f":"IF(OrigTable!B448=\"\",\"\",TEXT(OrigTable!B448,\"00\"))","v":""},{"$f":"IF(OrigTable!B448=\"\",\"\",ScriptText!$E$1&CHAR(10)&ScriptText!C443)","v":""},{"$f":"IF(OrigTable!C448=\"\",\"\",ScriptText!$B$1&CHAR(10)&ScriptText!$D$1)","v":"<tr>\n<td>"},{"$f":"IF(OrigTable!C448=\"\",\"\",IF(LEN(OrigTable!C448)>255,LEFT(OrigTable!C448,250)&\". . .\",OrigTable!C448))","v":"Final Notice – Balance Due- IMF"},{"$f":"IF(OrigTable!C448=\"\",\"\",ScriptText!$E$1&CHAR(10)&ScriptText!$C$1)","v":"</td>\n</tr>"},{"$f":"IF(OrigTable!D448=\"\",\"\",ScriptText!$B$1&CHAR(10)&ScriptText!$D$1)","v":"<tr>\n<td>"},{"$f":"IF(OrigTable!D448=\"\",\"\",TEXT(OrigTable!D448,\"00\"))","v":"Master File Notices"},{"$f":"IF(OrigTable!D448=\"\",\"\",ScriptText!$E$1&CHAR(10)&ScriptText!$C$1)","v":"</td>\n</tr>"},{"$f":"IF(OrigTable!E448=\"\",\"\",ScriptText!$B$1&CHAR(10)&ScriptText!$D$1)","v":""},{"$f":"IF(OrigTable!E448=\"\",\"\",TEXT(OrigTable!E448,\"00\"))","v":""},{"$f":"IF(OrigTable!E448=\"\",\"\",ScriptText!$E$1&CHAR(10)&ScriptText!$C$1)","v":""},{"$f":"IF(OrigTable!F448=\"\",\"\",ScriptText!$B$1&CHAR(10)&ScriptText!$D$1)","v":""},{"$f":"IF(OrigTable!F448=\"\",\"\",TEXT(OrigTable!F448,\"00\"))","v":""},{"$f":"IF(OrigTable!F448=\"\",\"\",ScriptText!$E$1&CHAR(10)&ScriptText!$C$1)","v":""},{"$f":"IF(OrigTable!G448=\"\",\"\",ScriptText!$B$1&CHAR(10)&ScriptText!$D$1)","v":""},{"$f":"IF(OrigTable!G448=\"\",\"\",TEXT(OrigTable!G448,\"00\"))","v":""},{"$f":"IF(OrigTable!G448=\"\",\"\",ScriptText!$E$1&CHAR(10)&ScriptText!$C$1)","v":""},448]
["<tr>\n<td>604B</td>\n</tr>\n\n<tr>\n<td>Final Notice – Balance Due- BMF</td>\n</tr>\n<tr>\n<td>Master File Notices</td>\n</tr>",{"$f":"IF(OrigTable!A449=\"\",\"\",ScriptText!$B$1&CHAR(10)&ScriptText!$D$1)","v":"<tr>\n<td>"},{"$f":"IF(OrigTable!A449=\"\",\"\",TEXT(OrigTable!A449,\"00\"))","v":"604B"},{"$f":"IF(OrigTable!A449=\"\",\"\",ScriptText!$E$1&CHAR(10)&ScriptText!$C$1)","v":"</td>\n</tr>"},{"$f":"IF(OrigTable!B449=\"\",\"\",ScriptText!$B$1&CHAR(10)&ScriptText!$D$1)","v":""},{"$f":"IF(OrigTable!B449=\"\",\"\",TEXT(OrigTable!B449,\"00\"))","v":""},{"$f":"IF(OrigTable!B449=\"\",\"\",ScriptText!$E$1&CHAR(10)&ScriptText!C444)","v":""},{"$f":"IF(OrigTable!C449=\"\",\"\",ScriptText!$B$1&CHAR(10)&ScriptText!$D$1)","v":"<tr>\n<td>"},{"$f":"IF(OrigTable!C449=\"\",\"\",IF(LEN(OrigTable!C449)>255,LEFT(OrigTable!C449,250)&\". . .\",OrigTable!C449))","v":"Final Notice – Balance Due- BMF"},{"$f":"IF(OrigTable!C449=\"\",\"\",ScriptText!$E$1&CHAR(10)&ScriptText!$C$1)","v":"</td>\n</tr>"},{"$f":"IF(OrigTable!D449=\"\",\"\",ScriptText!$B$1&CHAR(10)&ScriptText!$D$1)","v":"<tr>\n<td>"},{"$f":"IF(OrigTable!D449=\"\",\"\",TEXT(OrigTable!D449,\"00\"))","v":"Master File Notices"},{"$f":"IF(OrigTable!D449=\"\",\"\",ScriptText!$E$1&CHAR(10)&ScriptText!$C$1)","v":"</td>\n</tr>"},{"$f":"IF(OrigTable!E449=\"\",\"\",ScriptText!$B$1&CHAR(10)&ScriptText!$D$1)","v":""},{"$f":"IF(OrigTable!E449=\"\",\"\",TEXT(OrigTable!E449,\"00\"))","v":""},{"$f":"IF(OrigTable!E449=\"\",\"\",ScriptText!$E$1&CHAR(10)&ScriptText!$C$1)","v":""},{"$f":"IF(OrigTable!F449=\"\",\"\",ScriptText!$B$1&CHAR(10)&ScriptText!$D$1)","v":""},{"$f":"IF(OrigTable!F449=\"\",\"\",TEXT(OrigTable!F449,\"00\"))","v":""},{"$f":"IF(OrigTable!F449=\"\",\"\",ScriptText!$E$1&CHAR(10)&ScriptText!$C$1)","v":""},{"$f":"IF(OrigTable!G449=\"\",\"\",ScriptText!$B$1&CHAR(10)&ScriptText!$D$1)","v":""},{"$f":"IF(OrigTable!G449=\"\",\"\",TEXT(OrigTable!G449,\"00\"))","v":""},{"$f":"IF(OrigTable!G449=\"\",\"\",ScriptText!$E$1&CHAR(10)&ScriptText!$C$1)","v":""},449]
["<tr>\n<td>615</td>\n</tr>\n\n<tr>\n<td>1st Notice - Request for your Tax Return</td>\n</tr>\n<tr>\n<td>Master File Notices</td>\n</tr>",{"$f":"IF(OrigTable!A450=\"\",\"\",ScriptText!$B$1&CHAR(10)&ScriptText!$D$1)","v":"<tr>\n<td>"},{"$f":"IF(OrigTable!A450=\"\",\"\",TEXT(OrigTable!A450,\"00\"))","v":"615"},{"$f":"IF(OrigTable!A450=\"\",\"\",ScriptText!$E$1&CHAR(10)&ScriptText!$C$1)","v":"</td>\n</tr>"},{"$f":"IF(OrigTable!B450=\"\",\"\",ScriptText!$B$1&CHAR(10)&ScriptText!$D$1)","v":""},{"$f":"IF(OrigTable!B450=\"\",\"\",TEXT(OrigTable!B450,\"00\"))","v":""},{"$f":"IF(OrigTable!B450=\"\",\"\",ScriptText!$E$1&CHAR(10)&ScriptText!C445)","v":""},{"$f":"IF(OrigTable!C450=\"\",\"\",ScriptText!$B$1&CHAR(10)&ScriptText!$D$1)","v":"<tr>\n<td>"},{"$f":"IF(OrigTable!C450=\"\",\"\",IF(LEN(OrigTable!C450)>255,LEFT(OrigTable!C450,250)&\". . .\",OrigTable!C450))","v":"1st Notice - Request for your Tax Return"},{"$f":"IF(OrigTable!C450=\"\",\"\",ScriptText!$E$1&CHAR(10)&ScriptText!$C$1)","v":"</td>\n</tr>"},{"$f":"IF(OrigTable!D450=\"\",\"\",ScriptText!$B$1&CHAR(10)&ScriptText!$D$1)","v":"<tr>\n<td>"},{"$f":"IF(OrigTable!D450=\"\",\"\",TEXT(OrigTable!D450,\"00\"))","v":"Master File Notices"},{"$f":"IF(OrigTable!D450=\"\",\"\",ScriptText!$E$1&CHAR(10)&ScriptText!$C$1)","v":"</td>\n</tr>"},{"$f":"IF(OrigTable!E450=\"\",\"\",ScriptText!$B$1&CHAR(10)&ScriptText!$D$1)","v":""},{"$f":"IF(OrigTable!E450=\"\",\"\",TEXT(OrigTable!E450,\"00\"))","v":""},{"$f":"IF(OrigTable!E450=\"\",\"\",ScriptText!$E$1&CHAR(10)&ScriptText!$C$1)","v":""},{"$f":"IF(OrigTable!F450=\"\",\"\",ScriptText!$B$1&CHAR(10)&ScriptText!$D$1)","v":""},{"$f":"IF(OrigTable!F450=\"\",\"\",TEXT(OrigTable!F450,\"00\"))","v":""},{"$f":"IF(OrigTable!F450=\"\",\"\",ScriptText!$E$1&CHAR(10)&ScriptText!$C$1)","v":""},{"$f":"IF(OrigTable!G450=\"\",\"\",ScriptText!$B$1&CHAR(10)&ScriptText!$D$1)","v":""},{"$f":"IF(OrigTable!G450=\"\",\"\",TEXT(OrigTable!G450,\"00\"))","v":""},{"$f":"IF(OrigTable!G450=\"\",\"\",ScriptText!$E$1&CHAR(10)&ScriptText!$C$1)","v":""},450]
["<tr>\n<td>616</td>\n</tr>\n\n<tr>\n<td>2nd notice – Return Delinquency for IMF PC-B modules only.</td>\n</tr>\n<tr>\n<td>Master File Notices</td>\n</tr>",{"$f":"IF(OrigTable!A451=\"\",\"\",ScriptText!$B$1&CHAR(10)&ScriptText!$D$1)","v":"<tr>\n<td>"},{"$f":"IF(OrigTable!A451=\"\",\"\",TEXT(OrigTable!A451,\"00\"))","v":"616"},{"$f":"IF(OrigTable!A451=\"\",\"\",ScriptText!$E$1&CHAR(10)&ScriptText!$C$1)","v":"</td>\n</tr>"},{"$f":"IF(OrigTable!B451=\"\",\"\",ScriptText!$B$1&CHAR(10)&ScriptText!$D$1)","v":""},{"$f":"IF(OrigTable!B451=\"\",\"\",TEXT(OrigTable!B451,\"00\"))","v":""},{"$f":"IF(OrigTable!B451=\"\",\"\",ScriptText!$E$1&CHAR(10)&ScriptText!C446)","v":""},{"$f":"IF(OrigTable!C451=\"\",\"\",ScriptText!$B$1&CHAR(10)&ScriptText!$D$1)","v":"<tr>\n<td>"},{"$f":"IF(OrigTable!C451=\"\",\"\",IF(LEN(OrigTable!C451)>255,LEFT(OrigTable!C451,250)&\". . .\",OrigTable!C451))","v":"2nd notice – Return Delinquency for IMF PC-B modules only."},{"$f":"IF(OrigTable!C451=\"\",\"\",ScriptText!$E$1&CHAR(10)&ScriptText!$C$1)","v":"</td>\n</tr>"},{"$f":"IF(OrigTable!D451=\"\",\"\",ScriptText!$B$1&CHAR(10)&ScriptText!$D$1)","v":"<tr>\n<td>"},{"$f":"IF(OrigTable!D451=\"\",\"\",TEXT(OrigTable!D451,\"00\"))","v":"Master File Notices"},{"$f":"IF(OrigTable!D451=\"\",\"\",ScriptText!$E$1&CHAR(10)&ScriptText!$C$1)","v":"</td>\n</tr>"},{"$f":"IF(OrigTable!E451=\"\",\"\",ScriptText!$B$1&CHAR(10)&ScriptText!$D$1)","v":""},{"$f":"IF(OrigTable!E451=\"\",\"\",TEXT(OrigTable!E451,\"00\"))","v":""},{"$f":"IF(OrigTable!E451=\"\",\"\",ScriptText!$E$1&CHAR(10)&ScriptText!$C$1)","v":""},{"$f":"IF(OrigTable!F451=\"\",\"\",ScriptText!$B$1&CHAR(10)&ScriptText!$D$1)","v":""},{"$f":"IF(OrigTable!F451=\"\",\"\",TEXT(OrigTable!F451,\"00\"))","v":""},{"$f":"IF(OrigTable!F451=\"\",\"\",ScriptText!$E$1&CHAR(10)&ScriptText!$C$1)","v":""},{"$f":"IF(OrigTable!G451=\"\",\"\",ScriptText!$B$1&CHAR(10)&ScriptText!$D$1)","v":""},{"$f":"IF(OrigTable!G451=\"\",\"\",TEXT(OrigTable!G451,\"00\"))","v":""},{"$f":"IF(OrigTable!G451=\"\",\"\",ScriptText!$E$1&CHAR(10)&ScriptText!$C$1)","v":""},451]
["<tr>\n<td>618</td>\n</tr>\n\n<tr>\n<td>Final Notice Return Delinquency Notice (IMF/BMF)</td>\n</tr>\n<tr>\n<td>Master File Notices</td>\n</tr>",{"$f":"IF(OrigTable!A452=\"\",\"\",ScriptText!$B$1&CHAR(10)&ScriptText!$D$1)","v":"<tr>\n<td>"},{"$f":"IF(OrigTable!A452=\"\",\"\",TEXT(OrigTable!A452,\"00\"))","v":"618"},{"$f":"IF(OrigTable!A452=\"\",\"\",ScriptText!$E$1&CHAR(10)&ScriptText!$C$1)","v":"</td>\n</tr>"},{"$f":"IF(OrigTable!B452=\"\",\"\",ScriptText!$B$1&CHAR(10)&ScriptText!$D$1)","v":""},{"$f":"IF(OrigTable!B452=\"\",\"\",TEXT(OrigTable!B452,\"00\"))","v":""},{"$f":"IF(OrigTable!B452=\"\",\"\",ScriptText!$E$1&CHAR(10)&ScriptText!C447)","v":""},{"$f":"IF(OrigTable!C452=\"\",\"\",ScriptText!$B$1&CHAR(10)&ScriptText!$D$1)","v":"<tr>\n<td>"},{"$f":"IF(OrigTable!C452=\"\",\"\",IF(LEN(OrigTable!C452)>255,LEFT(OrigTable!C452,250)&\". . .\",OrigTable!C452))","v":"Final Notice Return Delinquency Notice (IMF/BMF)"},{"$f":"IF(OrigTable!C452=\"\",\"\",ScriptText!$E$1&CHAR(10)&ScriptText!$C$1)","v":"</td>\n</tr>"},{"$f":"IF(OrigTable!D452=\"\",\"\",ScriptText!$B$1&CHAR(10)&ScriptText!$D$1)","v":"<tr>\n<td>"},{"$f":"IF(OrigTable!D452=\"\",\"\",TEXT(OrigTable!D452,\"00\"))","v":"Master File Notices"},{"$f":"IF(OrigTable!D452=\"\",\"\",ScriptText!$E$1&CHAR(10)&ScriptText!$C$1)","v":"</td>\n</tr>"},{"$f":"IF(OrigTable!E452=\"\",\"\",ScriptText!$B$1&CHAR(10)&ScriptText!$D$1)","v":""},{"$f":"IF(OrigTable!E452=\"\",\"\",TEXT(OrigTable!E452,\"00\"))","v":""},{"$f":"IF(OrigTable!E452=\"\",\"\",ScriptText!$E$1&CHAR(10)&ScriptText!$C$1)","v":""},{"$f":"IF(OrigTable!F452=\"\",\"\",ScriptText!$B$1&CHAR(10)&ScriptText!$D$1)","v":""},{"$f":"IF(OrigTable!F452=\"\",\"\",TEXT(OrigTable!F452,\"00\"))","v":""},{"$f":"IF(OrigTable!F452=\"\",\"\",ScriptText!$E$1&CHAR(10)&ScriptText!$C$1)","v":""},{"$f":"IF(OrigTable!G452=\"\",\"\",ScriptText!$B$1&CHAR(10)&ScriptText!$D$1)","v":""},{"$f":"IF(OrigTable!G452=\"\",\"\",TEXT(OrigTable!G452,\"00\"))","v":""},{"$f":"IF(OrigTable!G452=\"\",\"\",ScriptText!$E$1&CHAR(10)&ScriptText!$C$1)","v":""},452]
["<tr>\n<td>621</td>\n</tr>\n\n<tr>\n<td>Installment Agreement Monthly Reminder Notice</td>\n</tr>\n<tr>\n<td>Master File Notices</td>\n</tr>",{"$f":"IF(OrigTable!A453=\"\",\"\",ScriptText!$B$1&CHAR(10)&ScriptText!$D$1)","v":"<tr>\n<td>"},{"$f":"IF(OrigTable!A453=\"\",\"\",TEXT(OrigTable!A453,\"00\"))","v":"621"},{"$f":"IF(OrigTable!A453=\"\",\"\",ScriptText!$E$1&CHAR(10)&ScriptText!$C$1)","v":"</td>\n</tr>"},{"$f":"IF(OrigTable!B453=\"\",\"\",ScriptText!$B$1&CHAR(10)&ScriptText!$D$1)","v":""},{"$f":"IF(OrigTable!B453=\"\",\"\",TEXT(OrigTable!B453,\"00\"))","v":""},{"$f":"IF(OrigTable!B453=\"\",\"\",ScriptText!$E$1&CHAR(10)&ScriptText!C448)","v":""},{"$f":"IF(OrigTable!C453=\"\",\"\",ScriptText!$B$1&CHAR(10)&ScriptText!$D$1)","v":"<tr>\n<td>"},{"$f":"IF(OrigTable!C453=\"\",\"\",IF(LEN(OrigTable!C453)>255,LEFT(OrigTable!C453,250)&\". . .\",OrigTable!C453))","v":"Installment Agreement Monthly Reminder Notice"},{"$f":"IF(OrigTable!C453=\"\",\"\",ScriptText!$E$1&CHAR(10)&ScriptText!$C$1)","v":"</td>\n</tr>"},{"$f":"IF(OrigTable!D453=\"\",\"\",ScriptText!$B$1&CHAR(10)&ScriptText!$D$1)","v":"<tr>\n<td>"},{"$f":"IF(OrigTable!D453=\"\",\"\",TEXT(OrigTable!D453,\"00\"))","v":"Master File Notices"},{"$f":"IF(OrigTable!D453=\"\",\"\",ScriptText!$E$1&CHAR(10)&ScriptText!$C$1)","v":"</td>\n</tr>"},{"$f":"IF(OrigTable!E453=\"\",\"\",ScriptText!$B$1&CHAR(10)&ScriptText!$D$1)","v":""},{"$f":"IF(OrigTable!E453=\"\",\"\",TEXT(OrigTable!E453,\"00\"))","v":""},{"$f":"IF(OrigTable!E453=\"\",\"\",ScriptText!$E$1&CHAR(10)&ScriptText!$C$1)","v":""},{"$f":"IF(OrigTable!F453=\"\",\"\",ScriptText!$B$1&CHAR(10)&ScriptText!$D$1)","v":""},{"$f":"IF(OrigTable!F453=\"\",\"\",TEXT(OrigTable!F453,\"00\"))","v":""},{"$f":"IF(OrigTable!F453=\"\",\"\",ScriptText!$E$1&CHAR(10)&ScriptText!$C$1)","v":""},{"$f":"IF(OrigTable!G453=\"\",\"\",ScriptText!$B$1&CHAR(10)&ScriptText!$D$1)","v":""},{"$f":"IF(OrigTable!G453=\"\",\"\",TEXT(OrigTable!G453,\"00\"))","v":""},{"$f":"IF(OrigTable!G453=\"\",\"\",ScriptText!$E$1&CHAR(10)&ScriptText!$C$1)","v":""},453]
["<tr>\n<td>622</td>\n</tr>\n\n<tr>\n<td>Campus issued only. Financial Statement request, issued on Partial Payment Installment Agreements</td>\n</tr>\n<tr>\n<td>Master File Notices</td>\n</tr>",{"$f":"IF(OrigTable!A454=\"\",\"\",ScriptText!$B$1&CHAR(10)&ScriptText!$D$1)","v":"<tr>\n<td>"},{"$f":"IF(OrigTable!A454=\"\",\"\",TEXT(OrigTable!A454,\"00\"))","v":"622"},{"$f":"IF(OrigTable!A454=\"\",\"\",ScriptText!$E$1&CHAR(10)&ScriptText!$C$1)","v":"</td>\n</tr>"},{"$f":"IF(OrigTable!B454=\"\",\"\",ScriptText!$B$1&CHAR(10)&ScriptText!$D$1)","v":""},{"$f":"IF(OrigTable!B454=\"\",\"\",TEXT(OrigTable!B454,\"00\"))","v":""},{"$f":"IF(OrigTable!B454=\"\",\"\",ScriptText!$E$1&CHAR(10)&ScriptText!C449)","v":""},{"$f":"IF(OrigTable!C454=\"\",\"\",ScriptText!$B$1&CHAR(10)&ScriptText!$D$1)","v":"<tr>\n<td>"},{"$f":"IF(OrigTable!C454=\"\",\"\",IF(LEN(OrigTable!C454)>255,LEFT(OrigTable!C454,250)&\". . .\",OrigTable!C454))","v":"Campus issued only. Financial Statement request, issued on Partial Payment Installment Agreements"},{"$f":"IF(OrigTable!C454=\"\",\"\",ScriptText!$E$1&CHAR(10)&ScriptText!$C$1)","v":"</td>\n</tr>"},{"$f":"IF(OrigTable!D454=\"\",\"\",ScriptText!$B$1&CHAR(10)&ScriptText!$D$1)","v":"<tr>\n<td>"},{"$f":"IF(OrigTable!D454=\"\",\"\",TEXT(OrigTable!D454,\"00\"))","v":"Master File Notices"},{"$f":"IF(OrigTable!D454=\"\",\"\",ScriptText!$E$1&CHAR(10)&ScriptText!$C$1)","v":"</td>\n</tr>"},{"$f":"IF(OrigTable!E454=\"\",\"\",ScriptText!$B$1&CHAR(10)&ScriptText!$D$1)","v":""},{"$f":"IF(OrigTable!E454=\"\",\"\",TEXT(OrigTable!E454,\"00\"))","v":""},{"$f":"IF(OrigTable!E454=\"\",\"\",ScriptText!$E$1&CHAR(10)&ScriptText!$C$1)","v":""},{"$f":"IF(OrigTable!F454=\"\",\"\",ScriptText!$B$1&CHAR(10)&ScriptText!$D$1)","v":""},{"$f":"IF(OrigTable!F454=\"\",\"\",TEXT(OrigTable!F454,\"00\"))","v":""},{"$f":"IF(OrigTable!F454=\"\",\"\",ScriptText!$E$1&CHAR(10)&ScriptText!$C$1)","v":""},{"$f":"IF(OrigTable!G454=\"\",\"\",ScriptText!$B$1&CHAR(10)&ScriptText!$D$1)","v":""},{"$f":"IF(OrigTable!G454=\"\",\"\",TEXT(OrigTable!G454,\"00\"))","v":""},{"$f":"IF(OrigTable!G454=\"\",\"\",ScriptText!$E$1&CHAR(10)&ScriptText!$C$1)","v":""},{"$f":"IF(LEN(A454)>3,ROW(),0)","v":454}]
["<tr>\n<td>623</td>\n</tr>\n\n<tr>\n<td>Installment Agreement Default Notice with Intent to Levy</td>\n</tr>\n<tr>\n<td>Master File Notices</td>\n</tr>",{"$f":"IF(OrigTable!A455=\"\",\"\",ScriptText!$B$1&CHAR(10)&ScriptText!$D$1)","v":"<tr>\n<td>"},{"$f":"IF(OrigTable!A455=\"\",\"\",TEXT(OrigTable!A455,\"00\"))","v":"623"},{"$f":"IF(OrigTable!A455=\"\",\"\",ScriptText!$E$1&CHAR(10)&ScriptText!$C$1)","v":"</td>\n</tr>"},{"$f":"IF(OrigTable!B455=\"\",\"\",ScriptText!$B$1&CHAR(10)&ScriptText!$D$1)","v":""},{"$f":"IF(OrigTable!B455=\"\",\"\",TEXT(OrigTable!B455,\"00\"))","v":""},{"$f":"IF(OrigTable!B455=\"\",\"\",ScriptText!$E$1&CHAR(10)&ScriptText!C450)","v":""},{"$f":"IF(OrigTable!C455=\"\",\"\",ScriptText!$B$1&CHAR(10)&ScriptText!$D$1)","v":"<tr>\n<td>"},{"$f":"IF(OrigTable!C455=\"\",\"\",IF(LEN(OrigTable!C455)>255,LEFT(OrigTable!C455,250)&\". . .\",OrigTable!C455))","v":"Installment Agreement Default Notice with Intent to Levy"},{"$f":"IF(OrigTable!C455=\"\",\"\",ScriptText!$E$1&CHAR(10)&ScriptText!$C$1)","v":"</td>\n</tr>"},{"$f":"IF(OrigTable!D455=\"\",\"\",ScriptText!$B$1&CHAR(10)&ScriptText!$D$1)","v":"<tr>\n<td>"},{"$f":"IF(OrigTable!D455=\"\",\"\",TEXT(OrigTable!D455,\"00\"))","v":"Master File Notices"},{"$f":"IF(OrigTable!D455=\"\",\"\",ScriptText!$E$1&CHAR(10)&ScriptText!$C$1)","v":"</td>\n</tr>"},{"$f":"IF(OrigTable!E455=\"\",\"\",ScriptText!$B$1&CHAR(10)&ScriptText!$D$1)","v":""},{"$f":"IF(OrigTable!E455=\"\",\"\",TEXT(OrigTable!E455,\"00\"))","v":""},{"$f":"IF(OrigTable!E455=\"\",\"\",ScriptText!$E$1&CHAR(10)&ScriptText!$C$1)","v":""},{"$f":"IF(OrigTable!F455=\"\",\"\",ScriptText!$B$1&CHAR(10)&ScriptText!$D$1)","v":""},{"$f":"IF(OrigTable!F455=\"\",\"\",TEXT(OrigTable!F455,\"00\"))","v":""},{"$f":"IF(OrigTable!F455=\"\",\"\",ScriptText!$E$1&CHAR(10)&ScriptText!$C$1)","v":""},{"$f":"IF(OrigTable!G455=\"\",\"\",ScriptText!$B$1&CHAR(10)&ScriptText!$D$1)","v":""},{"$f":"IF(OrigTable!G455=\"\",\"\",TEXT(OrigTable!G455,\"00\"))","v":""},{"$f":"IF(OrigTable!G455=\"\",\"\",ScriptText!$E$1&CHAR(10)&ScriptText!$C$1)","v":""},455]
["<tr>\n<td>701</td>\n</tr>\n\n<tr>\n<td>Spanish version of CP01S – We received your Form 14039 or similar statement for your Identity Theft claim.</td>\n</tr>\n<tr>\n<td>Master File Notices</td>\n</tr>",{"$f":"IF(OrigTable!A456=\"\",\"\",ScriptText!$B$1&CHAR(10)&ScriptText!$D$1)","v":"<tr>\n<td>"},{"$f":"IF(OrigTable!A456=\"\",\"\",TEXT(OrigTable!A456,\"00\"))","v":"701"},{"$f":"IF(OrigTable!A456=\"\",\"\",ScriptText!$E$1&CHAR(10)&ScriptText!$C$1)","v":"</td>\n</tr>"},{"$f":"IF(OrigTable!B456=\"\",\"\",ScriptText!$B$1&CHAR(10)&ScriptText!$D$1)","v":""},{"$f":"IF(OrigTable!B456=\"\",\"\",TEXT(OrigTable!B456,\"00\"))","v":""},{"$f":"IF(OrigTable!B456=\"\",\"\",ScriptText!$E$1&CHAR(10)&ScriptText!C451)","v":""},{"$f":"IF(OrigTable!C456=\"\",\"\",ScriptText!$B$1&CHAR(10)&ScriptText!$D$1)","v":"<tr>\n<td>"},{"$f":"IF(OrigTable!C456=\"\",\"\",IF(LEN(OrigTable!C456)>255,LEFT(OrigTable!C456,250)&\". . .\",OrigTable!C456))","v":"Spanish version of CP01S – We received your Form 14039 or similar statement for your Identity Theft claim."},{"$f":"IF(OrigTable!C456=\"\",\"\",ScriptText!$E$1&CHAR(10)&ScriptText!$C$1)","v":"</td>\n</tr>"},{"$f":"IF(OrigTable!D456=\"\",\"\",ScriptText!$B$1&CHAR(10)&ScriptText!$D$1)","v":"<tr>\n<td>"},{"$f":"IF(OrigTable!D456=\"\",\"\",TEXT(OrigTable!D456,\"00\"))","v":"Master File Notices"},{"$f":"IF(OrigTable!D456=\"\",\"\",ScriptText!$E$1&CHAR(10)&ScriptText!$C$1)","v":"</td>\n</tr>"},{"$f":"IF(OrigTable!E456=\"\",\"\",ScriptText!$B$1&CHAR(10)&ScriptText!$D$1)","v":""},{"$f":"IF(OrigTable!E456=\"\",\"\",TEXT(OrigTable!E456,\"00\"))","v":""},{"$f":"IF(OrigTable!E456=\"\",\"\",ScriptText!$E$1&CHAR(10)&ScriptText!$C$1)","v":""},{"$f":"IF(OrigTable!F456=\"\",\"\",ScriptText!$B$1&CHAR(10)&ScriptText!$D$1)","v":""},{"$f":"IF(OrigTable!F456=\"\",\"\",TEXT(OrigTable!F456,\"00\"))","v":""},{"$f":"IF(OrigTable!F456=\"\",\"\",ScriptText!$E$1&CHAR(10)&ScriptText!$C$1)","v":""},{"$f":"IF(OrigTable!G456=\"\",\"\",ScriptText!$B$1&CHAR(10)&ScriptText!$D$1)","v":""},{"$f":"IF(OrigTable!G456=\"\",\"\",TEXT(OrigTable!G456,\"00\"))","v":""},{"$f":"IF(OrigTable!G456=\"\",\"\",ScriptText!$E$1&CHAR(10)&ScriptText!$C$1)","v":""},456]
[{"$f":"_xlfn.TEXTJOIN(\"\",TRUE,B457:D457)&CHAR(10)&_xlfn.TEXTJOIN(\"\",TRUE,E457:G457)&CHAR(10)&_xlfn.TEXTJOIN(\"\",TRUE,H457:J457)&CHAR(10)&_xlfn.TEXTJOIN(\"\",TRUE,K457:M457)&_xlfn.TEXTJOIN(\"\",TRUE,N457:P457)&_xlfn.TEXTJOIN(\"\",TRUE,Q457:S457)&_xlfn.TEXTJOIN(\"\",TRUE,T457:V457)","v":"<tr>\n<td>701B</td>\n</tr>\n\n<tr>\n<td>Potential Identity Theft during Original Processing with Online Option</td>\n</tr>\n<tr>\n<td>Master File Notices</td>\n</tr>"},{"$f":"IF(OrigTable!A457=\"\",\"\",ScriptText!$B$1&CHAR(10)&ScriptText!$D$1)","v":"<tr>\n<td>"},{"$f":"IF(OrigTable!A457=\"\",\"\",TEXT(OrigTable!A457,\"00\"))","v":"701B"},{"$f":"IF(OrigTable!A457=\"\",\"\",ScriptText!$E$1&CHAR(10)&ScriptText!$C$1)","v":"</td>\n</tr>"},{"$f":"IF(OrigTable!B457=\"\",\"\",ScriptText!$B$1&CHAR(10)&ScriptText!$D$1)","v":""},{"$f":"IF(OrigTable!B457=\"\",\"\",TEXT(OrigTable!B457,\"00\"))","v":""},{"$f":"IF(OrigTable!B457=\"\",\"\",ScriptText!$E$1&CHAR(10)&ScriptText!C452)","v":""},{"$f":"IF(OrigTable!C457=\"\",\"\",ScriptText!$B$1&CHAR(10)&ScriptText!$D$1)","v":"<tr>\n<td>"},{"$f":"IF(OrigTable!C457=\"\",\"\",IF(LEN(OrigTable!C457)>255,LEFT(OrigTable!C457,250)&\". . .\",OrigTable!C457))","v":"Potential Identity Theft during Original Processing with Online Option"},{"$f":"IF(OrigTable!C457=\"\",\"\",ScriptText!$E$1&CHAR(10)&ScriptText!$C$1)","v":"</td>\n</tr>"},{"$f":"IF(OrigTable!D457=\"\",\"\",ScriptText!$B$1&CHAR(10)&ScriptText!$D$1)","v":"<tr>\n<td>"},{"$f":"IF(OrigTable!D457=\"\",\"\",TEXT(OrigTable!D457,\"00\"))","v":"Master File Notices"},{"$f":"IF(OrigTable!D457=\"\",\"\",ScriptText!$E$1&CHAR(10)&ScriptText!$C$1)","v":"</td>\n</tr>"},{"$f":"IF(OrigTable!E457=\"\",\"\",ScriptText!$B$1&CHAR(10)&ScriptText!$D$1)","v":""},{"$f":"IF(OrigTable!E457=\"\",\"\",TEXT(OrigTable!E457,\"00\"))","v":""},{"$f":"IF(OrigTable!E457=\"\",\"\",ScriptText!$E$1&CHAR(10)&ScriptText!$C$1)","v":""},{"$f":"IF(OrigTable!F457=\"\",\"\",ScriptText!$B$1&CHAR(10)&ScriptText!$D$1)","v":""},{"$f":"IF(OrigTable!F457=\"\",\"\",TEXT(OrigTable!F457,\"00\"))","v":""},{"$f":"IF(OrigTable!F457=\"\",\"\",ScriptText!$E$1&CHAR(10)&ScriptText!$C$1)","v":""},{"$f":"IF(OrigTable!G457=\"\",\"\",ScriptText!$B$1&CHAR(10)&ScriptText!$D$1)","v":""},{"$f":"IF(OrigTable!G457=\"\",\"\",TEXT(OrigTable!G457,\"00\"))","v":""},{"$f":"IF(OrigTable!G457=\"\",\"\",ScriptText!$E$1&CHAR(10)&ScriptText!$C$1)","v":""},457]
["<tr>\n<td>711</td>\n</tr>\n\n<tr>\n<td>Balance Due on Form 1040PR Math Error</td>\n</tr>\n<tr>\n<td>Master File Notices</td>\n</tr>",{"$f":"IF(OrigTable!A458=\"\",\"\",ScriptText!$B$1&CHAR(10)&ScriptText!$D$1)","v":"<tr>\n<td>"},{"$f":"IF(OrigTable!A458=\"\",\"\",TEXT(OrigTable!A458,\"00\"))","v":"711"},{"$f":"IF(OrigTable!A458=\"\",\"\",ScriptText!$E$1&CHAR(10)&ScriptText!$C$1)","v":"</td>\n</tr>"},{"$f":"IF(OrigTable!B458=\"\",\"\",ScriptText!$B$1&CHAR(10)&ScriptText!$D$1)","v":""},{"$f":"IF(OrigTable!B458=\"\",\"\",TEXT(OrigTable!B458,\"00\"))","v":""},{"$f":"IF(OrigTable!B458=\"\",\"\",ScriptText!$E$1&CHAR(10)&ScriptText!C453)","v":""},{"$f":"IF(OrigTable!C458=\"\",\"\",ScriptText!$B$1&CHAR(10)&ScriptText!$D$1)","v":"<tr>\n<td>"},{"$f":"IF(OrigTable!C458=\"\",\"\",IF(LEN(OrigTable!C458)>255,LEFT(OrigTable!C458,250)&\". . .\",OrigTable!C458))","v":"Balance Due on Form 1040PR Math Error"},{"$f":"IF(OrigTable!C458=\"\",\"\",ScriptText!$E$1&CHAR(10)&ScriptText!$C$1)","v":"</td>\n</tr>"},{"$f":"IF(OrigTable!D458=\"\",\"\",ScriptText!$B$1&CHAR(10)&ScriptText!$D$1)","v":"<tr>\n<td>"},{"$f":"IF(OrigTable!D458=\"\",\"\",TEXT(OrigTable!D458,\"00\"))","v":"Master File Notices"},{"$f":"IF(OrigTable!D458=\"\",\"\",ScriptText!$E$1&CHAR(10)&ScriptText!$C$1)","v":"</td>\n</tr>"},{"$f":"IF(OrigTable!E458=\"\",\"\",ScriptText!$B$1&CHAR(10)&ScriptText!$D$1)","v":""},{"$f":"IF(OrigTable!E458=\"\",\"\",TEXT(OrigTable!E458,\"00\"))","v":""},{"$f":"IF(OrigTable!E458=\"\",\"\",ScriptText!$E$1&CHAR(10)&ScriptText!$C$1)","v":""},{"$f":"IF(OrigTable!F458=\"\",\"\",ScriptText!$B$1&CHAR(10)&ScriptText!$D$1)","v":""},{"$f":"IF(OrigTable!F458=\"\",\"\",TEXT(OrigTable!F458,\"00\"))","v":""},{"$f":"IF(OrigTable!F458=\"\",\"\",ScriptText!$E$1&CHAR(10)&ScriptText!$C$1)","v":""},{"$f":"IF(OrigTable!G458=\"\",\"\",ScriptText!$B$1&CHAR(10)&ScriptText!$D$1)","v":""},{"$f":"IF(OrigTable!G458=\"\",\"\",TEXT(OrigTable!G458,\"00\"))","v":""},{"$f":"IF(OrigTable!G458=\"\",\"\",ScriptText!$E$1&CHAR(10)&ScriptText!$C$1)","v":""},458]
["<tr>\n<td>701E</td>\n</tr>\n\n<tr>\n<td>Notice is issued to Identity theft related to employment</td>\n</tr>\n<tr>\n<td>Master File Notices</td>\n</tr>",{"$f":"IF(OrigTable!A459=\"\",\"\",ScriptText!$B$1&CHAR(10)&ScriptText!$D$1)","v":"<tr>\n<td>"},{"$f":"IF(OrigTable!A459=\"\",\"\",TEXT(OrigTable!A459,\"00\"))","v":"701E"},{"$f":"IF(OrigTable!A459=\"\",\"\",ScriptText!$E$1&CHAR(10)&ScriptText!$C$1)","v":"</td>\n</tr>"},{"$f":"IF(OrigTable!B459=\"\",\"\",ScriptText!$B$1&CHAR(10)&ScriptText!$D$1)","v":""},{"$f":"IF(OrigTable!B459=\"\",\"\",TEXT(OrigTable!B459,\"00\"))","v":""},{"$f":"IF(OrigTable!B459=\"\",\"\",ScriptText!$E$1&CHAR(10)&ScriptText!C454)","v":""},{"$f":"IF(OrigTable!C459=\"\",\"\",ScriptText!$B$1&CHAR(10)&ScriptText!$D$1)","v":"<tr>\n<td>"},{"$f":"IF(OrigTable!C459=\"\",\"\",IF(LEN(OrigTable!C459)>255,LEFT(OrigTable!C459,250)&\". . .\",OrigTable!C459))","v":"Notice is issued to Identity theft related to employment"},{"$f":"IF(OrigTable!C459=\"\",\"\",ScriptText!$E$1&CHAR(10)&ScriptText!$C$1)","v":"</td>\n</tr>"},{"$f":"IF(OrigTable!D459=\"\",\"\",ScriptText!$B$1&CHAR(10)&ScriptText!$D$1)","v":"<tr>\n<td>"},{"$f":"IF(OrigTable!D459=\"\",\"\",TEXT(OrigTable!D459,\"00\"))","v":"Master File Notices"},{"$f":"IF(OrigTable!D459=\"\",\"\",ScriptText!$E$1&CHAR(10)&ScriptText!$C$1)","v":"</td>\n</tr>"},{"$f":"IF(OrigTable!E459=\"\",\"\",ScriptText!$B$1&CHAR(10)&ScriptText!$D$1)","v":""},{"$f":"IF(OrigTable!E459=\"\",\"\",TEXT(OrigTable!E459,\"00\"))","v":""},{"$f":"IF(OrigTable!E459=\"\",\"\",ScriptText!$E$1&CHAR(10)&ScriptText!$C$1)","v":""},{"$f":"IF(OrigTable!F459=\"\",\"\",ScriptText!$B$1&CHAR(10)&ScriptText!$D$1)","v":""},{"$f":"IF(OrigTable!F459=\"\",\"\",TEXT(OrigTable!F459,\"00\"))","v":""},{"$f":"IF(OrigTable!F459=\"\",\"\",ScriptText!$E$1&CHAR(10)&ScriptText!$C$1)","v":""},{"$f":"IF(OrigTable!G459=\"\",\"\",ScriptText!$B$1&CHAR(10)&ScriptText!$D$1)","v":""},{"$f":"IF(OrigTable!G459=\"\",\"\",TEXT(OrigTable!G459,\"00\"))","v":""},{"$f":"IF(OrigTable!G459=\"\",\"\",ScriptText!$E$1&CHAR(10)&ScriptText!$C$1)","v":""},459]
["<tr>\n<td>701S</td>\n</tr>\n\n<tr>\n<td>We received your Form 14039 or similar statement for your identity theft claim</td>\n</tr>\n<tr>\n<td>Master File Notices</td>\n</tr>",{"$f":"IF(OrigTable!A460=\"\",\"\",ScriptText!$B$1&CHAR(10)&ScriptText!$D$1)","v":"<tr>\n<td>"},{"$f":"IF(OrigTable!A460=\"\",\"\",TEXT(OrigTable!A460,\"00\"))","v":"701S"},{"$f":"IF(OrigTable!A460=\"\",\"\",ScriptText!$E$1&CHAR(10)&ScriptText!$C$1)","v":"</td>\n</tr>"},{"$f":"IF(OrigTable!B460=\"\",\"\",ScriptText!$B$1&CHAR(10)&ScriptText!$D$1)","v":""},{"$f":"IF(OrigTable!B460=\"\",\"\",TEXT(OrigTable!B460,\"00\"))","v":""},{"$f":"IF(OrigTable!B460=\"\",\"\",ScriptText!$E$1&CHAR(10)&ScriptText!C455)","v":""},{"$f":"IF(OrigTable!C460=\"\",\"\",ScriptText!$B$1&CHAR(10)&ScriptText!$D$1)","v":"<tr>\n<td>"},{"$f":"IF(OrigTable!C460=\"\",\"\",IF(LEN(OrigTable!C460)>255,LEFT(OrigTable!C460,250)&\". . .\",OrigTable!C460))","v":"We received your Form 14039 or similar statement for your identity theft claim"},{"$f":"IF(OrigTable!C460=\"\",\"\",ScriptText!$E$1&CHAR(10)&ScriptText!$C$1)","v":"</td>\n</tr>"},{"$f":"IF(OrigTable!D460=\"\",\"\",ScriptText!$B$1&CHAR(10)&ScriptText!$D$1)","v":"<tr>\n<td>"},{"$f":"IF(OrigTable!D460=\"\",\"\",TEXT(OrigTable!D460,\"00\"))","v":"Master File Notices"},{"$f":"IF(OrigTable!D460=\"\",\"\",ScriptText!$E$1&CHAR(10)&ScriptText!$C$1)","v":"</td>\n</tr>"},{"$f":"IF(OrigTable!E460=\"\",\"\",ScriptText!$B$1&CHAR(10)&ScriptText!$D$1)","v":""},{"$f":"IF(OrigTable!E460=\"\",\"\",TEXT(OrigTable!E460,\"00\"))","v":""},{"$f":"IF(OrigTable!E460=\"\",\"\",ScriptText!$E$1&CHAR(10)&ScriptText!$C$1)","v":""},{"$f":"IF(OrigTable!F460=\"\",\"\",ScriptText!$B$1&CHAR(10)&ScriptText!$D$1)","v":""},{"$f":"IF(OrigTable!F460=\"\",\"\",TEXT(OrigTable!F460,\"00\"))","v":""},{"$f":"IF(OrigTable!F460=\"\",\"\",ScriptText!$E$1&CHAR(10)&ScriptText!$C$1)","v":""},{"$f":"IF(OrigTable!G460=\"\",\"\",ScriptText!$B$1&CHAR(10)&ScriptText!$D$1)","v":""},{"$f":"IF(OrigTable!G460=\"\",\"\",TEXT(OrigTable!G460,\"00\"))","v":""},{"$f":"IF(OrigTable!G460=\"\",\"\",ScriptText!$E$1&CHAR(10)&ScriptText!$C$1)","v":""},460]
["<tr>\n<td>712</td>\n</tr>\n\n<tr>\n<td>Overpayment Form 1040PR</td>\n</tr>\n<tr>\n<td>Master File Notices</td>\n</tr>",{"$f":"IF(OrigTable!A461=\"\",\"\",ScriptText!$B$1&CHAR(10)&ScriptText!$D$1)","v":"<tr>\n<td>"},{"$f":"IF(OrigTable!A461=\"\",\"\",TEXT(OrigTable!A461,\"00\"))","v":"712"},{"$f":"IF(OrigTable!A461=\"\",\"\",ScriptText!$E$1&CHAR(10)&ScriptText!$C$1)","v":"</td>\n</tr>"},{"$f":"IF(OrigTable!B461=\"\",\"\",ScriptText!$B$1&CHAR(10)&ScriptText!$D$1)","v":""},{"$f":"IF(OrigTable!B461=\"\",\"\",TEXT(OrigTable!B461,\"00\"))","v":""},{"$f":"IF(OrigTable!B461=\"\",\"\",ScriptText!$E$1&CHAR(10)&ScriptText!C456)","v":""},{"$f":"IF(OrigTable!C461=\"\",\"\",ScriptText!$B$1&CHAR(10)&ScriptText!$D$1)","v":"<tr>\n<td>"},{"$f":"IF(OrigTable!C461=\"\",\"\",IF(LEN(OrigTable!C461)>255,LEFT(OrigTable!C461,250)&\". . .\",OrigTable!C461))","v":"Overpayment Form 1040PR"},{"$f":"IF(OrigTable!C461=\"\",\"\",ScriptText!$E$1&CHAR(10)&ScriptText!$C$1)","v":"</td>\n</tr>"},{"$f":"IF(OrigTable!D461=\"\",\"\",ScriptText!$B$1&CHAR(10)&ScriptText!$D$1)","v":"<tr>\n<td>"},{"$f":"IF(OrigTable!D461=\"\",\"\",TEXT(OrigTable!D461,\"00\"))","v":"Master File Notices"},{"$f":"IF(OrigTable!D461=\"\",\"\",ScriptText!$E$1&CHAR(10)&ScriptText!$C$1)","v":"</td>\n</tr>"},{"$f":"IF(OrigTable!E461=\"\",\"\",ScriptText!$B$1&CHAR(10)&ScriptText!$D$1)","v":""},{"$f":"IF(OrigTable!E461=\"\",\"\",TEXT(OrigTable!E461,\"00\"))","v":""},{"$f":"IF(OrigTable!E461=\"\",\"\",ScriptText!$E$1&CHAR(10)&ScriptText!$C$1)","v":""},{"$f":"IF(OrigTable!F461=\"\",\"\",ScriptText!$B$1&CHAR(10)&ScriptText!$D$1)","v":""},{"$f":"IF(OrigTable!F461=\"\",\"\",TEXT(OrigTable!F461,\"00\"))","v":""},{"$f":"IF(OrigTable!F461=\"\",\"\",ScriptText!$E$1&CHAR(10)&ScriptText!$C$1)","v":""},{"$f":"IF(OrigTable!G461=\"\",\"\",ScriptText!$B$1&CHAR(10)&ScriptText!$D$1)","v":""},{"$f":"IF(OrigTable!G461=\"\",\"\",TEXT(OrigTable!G461,\"00\"))","v":""},{"$f":"IF(OrigTable!G461=\"\",\"\",ScriptText!$E$1&CHAR(10)&ScriptText!$C$1)","v":""},461]
["<tr>\n<td>713</td>\n</tr>\n\n<tr>\n<td>Math Error Settlement on Form 1040PR Math Error</td>\n</tr>\n<tr>\n<td>Master File Notices</td>\n</tr>",{"$f":"IF(OrigTable!A462=\"\",\"\",ScriptText!$B$1&CHAR(10)&ScriptText!$D$1)","v":"<tr>\n<td>"},{"$f":"IF(OrigTable!A462=\"\",\"\",TEXT(OrigTable!A462,\"00\"))","v":"713"},{"$f":"IF(OrigTable!A462=\"\",\"\",ScriptText!$E$1&CHAR(10)&ScriptText!$C$1)","v":"</td>\n</tr>"},{"$f":"IF(OrigTable!B462=\"\",\"\",ScriptText!$B$1&CHAR(10)&ScriptText!$D$1)","v":""},{"$f":"IF(OrigTable!B462=\"\",\"\",TEXT(OrigTable!B462,\"00\"))","v":""},{"$f":"IF(OrigTable!B462=\"\",\"\",ScriptText!$E$1&CHAR(10)&ScriptText!C457)","v":""},{"$f":"IF(OrigTable!C462=\"\",\"\",ScriptText!$B$1&CHAR(10)&ScriptText!$D$1)","v":"<tr>\n<td>"},{"$f":"IF(OrigTable!C462=\"\",\"\",IF(LEN(OrigTable!C462)>255,LEFT(OrigTable!C462,250)&\". . .\",OrigTable!C462))","v":"Math Error Settlement on Form 1040PR Math Error"},{"$f":"IF(OrigTable!C462=\"\",\"\",ScriptText!$E$1&CHAR(10)&ScriptText!$C$1)","v":"</td>\n</tr>"},{"$f":"IF(OrigTable!D462=\"\",\"\",ScriptText!$B$1&CHAR(10)&ScriptText!$D$1)","v":"<tr>\n<td>"},{"$f":"IF(OrigTable!D462=\"\",\"\",TEXT(OrigTable!D462,\"00\"))","v":"Master File Notices"},{"$f":"IF(OrigTable!D462=\"\",\"\",ScriptText!$E$1&CHAR(10)&ScriptText!$C$1)","v":"</td>\n</tr>"},{"$f":"IF(OrigTable!E462=\"\",\"\",ScriptText!$B$1&CHAR(10)&ScriptText!$D$1)","v":""},{"$f":"IF(OrigTable!E462=\"\",\"\",TEXT(OrigTable!E462,\"00\"))","v":""},{"$f":"IF(OrigTable!E462=\"\",\"\",ScriptText!$E$1&CHAR(10)&ScriptText!$C$1)","v":""},{"$f":"IF(OrigTable!F462=\"\",\"\",ScriptText!$B$1&CHAR(10)&ScriptText!$D$1)","v":""},{"$f":"IF(OrigTable!F462=\"\",\"\",TEXT(OrigTable!F462,\"00\"))","v":""},{"$f":"IF(OrigTable!F462=\"\",\"\",ScriptText!$E$1&CHAR(10)&ScriptText!$C$1)","v":""},{"$f":"IF(OrigTable!G462=\"\",\"\",ScriptText!$B$1&CHAR(10)&ScriptText!$D$1)","v":""},{"$f":"IF(OrigTable!G462=\"\",\"\",TEXT(OrigTable!G462,\"00\"))","v":""},{"$f":"IF(OrigTable!G462=\"\",\"\",ScriptText!$E$1&CHAR(10)&ScriptText!$C$1)","v":""},462]
["<tr>\n<td>714</td>\n</tr>\n\n<tr>\n<td>No Math Error Balance Due 1040PR (IMF/SP)</td>\n</tr>\n<tr>\n<td>Master File Notices</td>\n</tr>",{"$f":"IF(OrigTable!A463=\"\",\"\",ScriptText!$B$1&CHAR(10)&ScriptText!$D$1)","v":"<tr>\n<td>"},{"$f":"IF(OrigTable!A463=\"\",\"\",TEXT(OrigTable!A463,\"00\"))","v":"714"},{"$f":"IF(OrigTable!A463=\"\",\"\",ScriptText!$E$1&CHAR(10)&ScriptText!$C$1)","v":"</td>\n</tr>"},{"$f":"IF(OrigTable!B463=\"\",\"\",ScriptText!$B$1&CHAR(10)&ScriptText!$D$1)","v":""},{"$f":"IF(OrigTable!B463=\"\",\"\",TEXT(OrigTable!B463,\"00\"))","v":""},{"$f":"IF(OrigTable!B463=\"\",\"\",ScriptText!$E$1&CHAR(10)&ScriptText!C458)","v":""},{"$f":"IF(OrigTable!C463=\"\",\"\",ScriptText!$B$1&CHAR(10)&ScriptText!$D$1)","v":"<tr>\n<td>"},{"$f":"IF(OrigTable!C463=\"\",\"\",IF(LEN(OrigTable!C463)>255,LEFT(OrigTable!C463,250)&\". . .\",OrigTable!C463))","v":"No Math Error Balance Due 1040PR (IMF/SP)"},{"$f":"IF(OrigTable!C463=\"\",\"\",ScriptText!$E$1&CHAR(10)&ScriptText!$C$1)","v":"</td>\n</tr>"},{"$f":"IF(OrigTable!D463=\"\",\"\",ScriptText!$B$1&CHAR(10)&ScriptText!$D$1)","v":"<tr>\n<td>"},{"$f":"IF(OrigTable!D463=\"\",\"\",TEXT(OrigTable!D463,\"00\"))","v":"Master File Notices"},{"$f":"IF(OrigTable!D463=\"\",\"\",ScriptText!$E$1&CHAR(10)&ScriptText!$C$1)","v":"</td>\n</tr>"},{"$f":"IF(OrigTable!E463=\"\",\"\",ScriptText!$B$1&CHAR(10)&ScriptText!$D$1)","v":""},{"$f":"IF(OrigTable!E463=\"\",\"\",TEXT(OrigTable!E463,\"00\"))","v":""},{"$f":"IF(OrigTable!E463=\"\",\"\",ScriptText!$E$1&CHAR(10)&ScriptText!$C$1)","v":""},{"$f":"IF(OrigTable!F463=\"\",\"\",ScriptText!$B$1&CHAR(10)&ScriptText!$D$1)","v":""},{"$f":"IF(OrigTable!F463=\"\",\"\",TEXT(OrigTable!F463,\"00\"))","v":""},{"$f":"IF(OrigTable!F463=\"\",\"\",ScriptText!$E$1&CHAR(10)&ScriptText!$C$1)","v":""},{"$f":"IF(OrigTable!G463=\"\",\"\",ScriptText!$B$1&CHAR(10)&ScriptText!$D$1)","v":""},{"$f":"IF(OrigTable!G463=\"\",\"\",TEXT(OrigTable!G463,\"00\"))","v":""},{"$f":"IF(OrigTable!G463=\"\",\"\",ScriptText!$E$1&CHAR(10)&ScriptText!$C$1)","v":""},463]
["<tr>\n<td>721</td>\n</tr>\n\n<tr>\n<td>Audit/DP Tax Adjustment (IMF/SP) account in TDA/BAL DUE status</td>\n</tr>\n<tr>\n<td>Master File Notices</td>\n</tr>",{"$f":"IF(OrigTable!A464=\"\",\"\",ScriptText!$B$1&CHAR(10)&ScriptText!$D$1)","v":"<tr>\n<td>"},{"$f":"IF(OrigTable!A464=\"\",\"\",TEXT(OrigTable!A464,\"00\"))","v":"721"},{"$f":"IF(OrigTable!A464=\"\",\"\",ScriptText!$E$1&CHAR(10)&ScriptText!$C$1)","v":"</td>\n</tr>"},{"$f":"IF(OrigTable!B464=\"\",\"\",ScriptText!$B$1&CHAR(10)&ScriptText!$D$1)","v":""},{"$f":"IF(OrigTable!B464=\"\",\"\",TEXT(OrigTable!B464,\"00\"))","v":""},{"$f":"IF(OrigTable!B464=\"\",\"\",ScriptText!$E$1&CHAR(10)&ScriptText!C459)","v":""},{"$f":"IF(OrigTable!C464=\"\",\"\",ScriptText!$B$1&CHAR(10)&ScriptText!$D$1)","v":"<tr>\n<td>"},{"$f":"IF(OrigTable!C464=\"\",\"\",IF(LEN(OrigTable!C464)>255,LEFT(OrigTable!C464,250)&\". . .\",OrigTable!C464))","v":"Audit/DP Tax Adjustment (IMF/SP) account in TDA/BAL DUE status"},{"$f":"IF(OrigTable!C464=\"\",\"\",ScriptText!$E$1&CHAR(10)&ScriptText!$C$1)","v":"</td>\n</tr>"},{"$f":"IF(OrigTable!D464=\"\",\"\",ScriptText!$B$1&CHAR(10)&ScriptText!$D$1)","v":"<tr>\n<td>"},{"$f":"IF(OrigTable!D464=\"\",\"\",TEXT(OrigTable!D464,\"00\"))","v":"Master File Notices"},{"$f":"IF(OrigTable!D464=\"\",\"\",ScriptText!$E$1&CHAR(10)&ScriptText!$C$1)","v":"</td>\n</tr>"},{"$f":"IF(OrigTable!E464=\"\",\"\",ScriptText!$B$1&CHAR(10)&ScriptText!$D$1)","v":""},{"$f":"IF(OrigTable!E464=\"\",\"\",TEXT(OrigTable!E464,\"00\"))","v":""},{"$f":"IF(OrigTable!E464=\"\",\"\",ScriptText!$E$1&CHAR(10)&ScriptText!$C$1)","v":""},{"$f":"IF(OrigTable!F464=\"\",\"\",ScriptText!$B$1&CHAR(10)&ScriptText!$D$1)","v":""},{"$f":"IF(OrigTable!F464=\"\",\"\",TEXT(OrigTable!F464,\"00\"))","v":""},{"$f":"IF(OrigTable!F464=\"\",\"\",ScriptText!$E$1&CHAR(10)&ScriptText!$C$1)","v":""},{"$f":"IF(OrigTable!G464=\"\",\"\",ScriptText!$B$1&CHAR(10)&ScriptText!$D$1)","v":""},{"$f":"IF(OrigTable!G464=\"\",\"\",TEXT(OrigTable!G464,\"00\"))","v":""},{"$f":"IF(OrigTable!G464=\"\",\"\",ScriptText!$E$1&CHAR(10)&ScriptText!$C$1)","v":""},464]
["<tr>\n<td>721A</td>\n</tr>\n\n<tr>\n<td>Balance Due Adjustment Notice</td>\n</tr>\n<tr>\n<td>Master File Notices</td>\n</tr>",{"$f":"IF(OrigTable!A465=\"\",\"\",ScriptText!$B$1&CHAR(10)&ScriptText!$D$1)","v":"<tr>\n<td>"},{"$f":"IF(OrigTable!A465=\"\",\"\",TEXT(OrigTable!A465,\"00\"))","v":"721A"},{"$f":"IF(OrigTable!A465=\"\",\"\",ScriptText!$E$1&CHAR(10)&ScriptText!$C$1)","v":"</td>\n</tr>"},{"$f":"IF(OrigTable!B465=\"\",\"\",ScriptText!$B$1&CHAR(10)&ScriptText!$D$1)","v":""},{"$f":"IF(OrigTable!B465=\"\",\"\",TEXT(OrigTable!B465,\"00\"))","v":""},{"$f":"IF(OrigTable!B465=\"\",\"\",ScriptText!$E$1&CHAR(10)&ScriptText!C460)","v":""},{"$f":"IF(OrigTable!C465=\"\",\"\",ScriptText!$B$1&CHAR(10)&ScriptText!$D$1)","v":"<tr>\n<td>"},{"$f":"IF(OrigTable!C465=\"\",\"\",IF(LEN(OrigTable!C465)>255,LEFT(OrigTable!C465,250)&\". . .\",OrigTable!C465))","v":"Balance Due Adjustment Notice"},{"$f":"IF(OrigTable!C465=\"\",\"\",ScriptText!$E$1&CHAR(10)&ScriptText!$C$1)","v":"</td>\n</tr>"},{"$f":"IF(OrigTable!D465=\"\",\"\",ScriptText!$B$1&CHAR(10)&ScriptText!$D$1)","v":"<tr>\n<td>"},{"$f":"IF(OrigTable!D465=\"\",\"\",TEXT(OrigTable!D465,\"00\"))","v":"Master File Notices"},{"$f":"IF(OrigTable!D465=\"\",\"\",ScriptText!$E$1&CHAR(10)&ScriptText!$C$1)","v":"</td>\n</tr>"},{"$f":"IF(OrigTable!E465=\"\",\"\",ScriptText!$B$1&CHAR(10)&ScriptText!$D$1)","v":""},{"$f":"IF(OrigTable!E465=\"\",\"\",TEXT(OrigTable!E465,\"00\"))","v":""},{"$f":"IF(OrigTable!E465=\"\",\"\",ScriptText!$E$1&CHAR(10)&ScriptText!$C$1)","v":""},{"$f":"IF(OrigTable!F465=\"\",\"\",ScriptText!$B$1&CHAR(10)&ScriptText!$D$1)","v":""},{"$f":"IF(OrigTable!F465=\"\",\"\",TEXT(OrigTable!F465,\"00\"))","v":""},{"$f":"IF(OrigTable!F465=\"\",\"\",ScriptText!$E$1&CHAR(10)&ScriptText!$C$1)","v":""},{"$f":"IF(OrigTable!G465=\"\",\"\",ScriptText!$B$1&CHAR(10)&ScriptText!$D$1)","v":""},{"$f":"IF(OrigTable!G465=\"\",\"\",TEXT(OrigTable!G465,\"00\"))","v":""},{"$f":"IF(OrigTable!G465=\"\",\"\",ScriptText!$E$1&CHAR(10)&ScriptText!$C$1)","v":""},465]
["<tr>\n<td>721B</td>\n</tr>\n\n<tr>\n<td>Overpaid Due Adjustment Notice</td>\n</tr>\n<tr>\n<td>Master File Notices</td>\n</tr>",{"$f":"IF(OrigTable!A466=\"\",\"\",ScriptText!$B$1&CHAR(10)&ScriptText!$D$1)","v":"<tr>\n<td>"},{"$f":"IF(OrigTable!A466=\"\",\"\",TEXT(OrigTable!A466,\"00\"))","v":"721B"},{"$f":"IF(OrigTable!A466=\"\",\"\",ScriptText!$E$1&CHAR(10)&ScriptText!$C$1)","v":"</td>\n</tr>"},{"$f":"IF(OrigTable!B466=\"\",\"\",ScriptText!$B$1&CHAR(10)&ScriptText!$D$1)","v":""},{"$f":"IF(OrigTable!B466=\"\",\"\",TEXT(OrigTable!B466,\"00\"))","v":""},{"$f":"IF(OrigTable!B466=\"\",\"\",ScriptText!$E$1&CHAR(10)&ScriptText!C461)","v":""},{"$f":"IF(OrigTable!C466=\"\",\"\",ScriptText!$B$1&CHAR(10)&ScriptText!$D$1)","v":"<tr>\n<td>"},{"$f":"IF(OrigTable!C466=\"\",\"\",IF(LEN(OrigTable!C466)>255,LEFT(OrigTable!C466,250)&\". . .\",OrigTable!C466))","v":"Overpaid Due Adjustment Notice"},{"$f":"IF(OrigTable!C466=\"\",\"\",ScriptText!$E$1&CHAR(10)&ScriptText!$C$1)","v":"</td>\n</tr>"},{"$f":"IF(OrigTable!D466=\"\",\"\",ScriptText!$B$1&CHAR(10)&ScriptText!$D$1)","v":"<tr>\n<td>"},{"$f":"IF(OrigTable!D466=\"\",\"\",TEXT(OrigTable!D466,\"00\"))","v":"Master File Notices"},{"$f":"IF(OrigTable!D466=\"\",\"\",ScriptText!$E$1&CHAR(10)&ScriptText!$C$1)","v":"</td>\n</tr>"},{"$f":"IF(OrigTable!E466=\"\",\"\",ScriptText!$B$1&CHAR(10)&ScriptText!$D$1)","v":""},{"$f":"IF(OrigTable!E466=\"\",\"\",TEXT(OrigTable!E466,\"00\"))","v":""},{"$f":"IF(OrigTable!E466=\"\",\"\",ScriptText!$E$1&CHAR(10)&ScriptText!$C$1)","v":""},{"$f":"IF(OrigTable!F466=\"\",\"\",ScriptText!$B$1&CHAR(10)&ScriptText!$D$1)","v":""},{"$f":"IF(OrigTable!F466=\"\",\"\",TEXT(OrigTable!F466,\"00\"))","v":""},{"$f":"IF(OrigTable!F466=\"\",\"\",ScriptText!$E$1&CHAR(10)&ScriptText!$C$1)","v":""},{"$f":"IF(OrigTable!G466=\"\",\"\",ScriptText!$B$1&CHAR(10)&ScriptText!$D$1)","v":""},{"$f":"IF(OrigTable!G466=\"\",\"\",TEXT(OrigTable!G466,\"00\"))","v":""},{"$f":"IF(OrigTable!G466=\"\",\"\",ScriptText!$E$1&CHAR(10)&ScriptText!$C$1)","v":""},466]
["<tr>\n<td>721C</td>\n</tr>\n\n<tr>\n<td>Even Balance Adjustment Notice</td>\n</tr>\n<tr>\n<td>Master File Notices</td>\n</tr>",{"$f":"IF(OrigTable!A467=\"\",\"\",ScriptText!$B$1&CHAR(10)&ScriptText!$D$1)","v":"<tr>\n<td>"},{"$f":"IF(OrigTable!A467=\"\",\"\",TEXT(OrigTable!A467,\"00\"))","v":"721C"},{"$f":"IF(OrigTable!A467=\"\",\"\",ScriptText!$E$1&CHAR(10)&ScriptText!$C$1)","v":"</td>\n</tr>"},{"$f":"IF(OrigTable!B467=\"\",\"\",ScriptText!$B$1&CHAR(10)&ScriptText!$D$1)","v":""},{"$f":"IF(OrigTable!B467=\"\",\"\",TEXT(OrigTable!B467,\"00\"))","v":""},{"$f":"IF(OrigTable!B467=\"\",\"\",ScriptText!$E$1&CHAR(10)&ScriptText!C462)","v":""},{"$f":"IF(OrigTable!C467=\"\",\"\",ScriptText!$B$1&CHAR(10)&ScriptText!$D$1)","v":"<tr>\n<td>"},{"$f":"IF(OrigTable!C467=\"\",\"\",IF(LEN(OrigTable!C467)>255,LEFT(OrigTable!C467,250)&\". . .\",OrigTable!C467))","v":"Even Balance Adjustment Notice"},{"$f":"IF(OrigTable!C467=\"\",\"\",ScriptText!$E$1&CHAR(10)&ScriptText!$C$1)","v":"</td>\n</tr>"},{"$f":"IF(OrigTable!D467=\"\",\"\",ScriptText!$B$1&CHAR(10)&ScriptText!$D$1)","v":"<tr>\n<td>"},{"$f":"IF(OrigTable!D467=\"\",\"\",TEXT(OrigTable!D467,\"00\"))","v":"Master File Notices"},{"$f":"IF(OrigTable!D467=\"\",\"\",ScriptText!$E$1&CHAR(10)&ScriptText!$C$1)","v":"</td>\n</tr>"},{"$f":"IF(OrigTable!E467=\"\",\"\",ScriptText!$B$1&CHAR(10)&ScriptText!$D$1)","v":""},{"$f":"IF(OrigTable!E467=\"\",\"\",TEXT(OrigTable!E467,\"00\"))","v":""},{"$f":"IF(OrigTable!E467=\"\",\"\",ScriptText!$E$1&CHAR(10)&ScriptText!$C$1)","v":""},{"$f":"IF(OrigTable!F467=\"\",\"\",ScriptText!$B$1&CHAR(10)&ScriptText!$D$1)","v":""},{"$f":"IF(OrigTable!F467=\"\",\"\",TEXT(OrigTable!F467,\"00\"))","v":""},{"$f":"IF(OrigTable!F467=\"\",\"\",ScriptText!$E$1&CHAR(10)&ScriptText!$C$1)","v":""},{"$f":"IF(OrigTable!G467=\"\",\"\",ScriptText!$B$1&CHAR(10)&ScriptText!$D$1)","v":""},{"$f":"IF(OrigTable!G467=\"\",\"\",TEXT(OrigTable!G467,\"00\"))","v":""},{"$f":"IF(OrigTable!G467=\"\",\"\",ScriptText!$E$1&CHAR(10)&ScriptText!$C$1)","v":""},467]
["<tr>\n<td>721E</td>\n</tr>\n\n<tr>\n<td>Examination Adjustment Notice (Spanish)</td>\n</tr>\n<tr>\n<td>Master File Notices</td>\n</tr>",{"$f":"IF(OrigTable!A468=\"\",\"\",ScriptText!$B$1&CHAR(10)&ScriptText!$D$1)","v":"<tr>\n<td>"},{"$f":"IF(OrigTable!A468=\"\",\"\",TEXT(OrigTable!A468,\"00\"))","v":"721E"},{"$f":"IF(OrigTable!A468=\"\",\"\",ScriptText!$E$1&CHAR(10)&ScriptText!$C$1)","v":"</td>\n</tr>"},{"$f":"IF(OrigTable!B468=\"\",\"\",ScriptText!$B$1&CHAR(10)&ScriptText!$D$1)","v":""},{"$f":"IF(OrigTable!B468=\"\",\"\",TEXT(OrigTable!B468,\"00\"))","v":""},{"$f":"IF(OrigTable!B468=\"\",\"\",ScriptText!$E$1&CHAR(10)&ScriptText!C463)","v":""},{"$f":"IF(OrigTable!C468=\"\",\"\",ScriptText!$B$1&CHAR(10)&ScriptText!$D$1)","v":"<tr>\n<td>"},{"$f":"IF(OrigTable!C468=\"\",\"\",IF(LEN(OrigTable!C468)>255,LEFT(OrigTable!C468,250)&\". . .\",OrigTable!C468))","v":"Examination Adjustment Notice (Spanish)"},{"$f":"IF(OrigTable!C468=\"\",\"\",ScriptText!$E$1&CHAR(10)&ScriptText!$C$1)","v":"</td>\n</tr>"},{"$f":"IF(OrigTable!D468=\"\",\"\",ScriptText!$B$1&CHAR(10)&ScriptText!$D$1)","v":"<tr>\n<td>"},{"$f":"IF(OrigTable!D468=\"\",\"\",TEXT(OrigTable!D468,\"00\"))","v":"Master File Notices"},{"$f":"IF(OrigTable!D468=\"\",\"\",ScriptText!$E$1&CHAR(10)&ScriptText!$C$1)","v":"</td>\n</tr>"},{"$f":"IF(OrigTable!E468=\"\",\"\",ScriptText!$B$1&CHAR(10)&ScriptText!$D$1)","v":""},{"$f":"IF(OrigTable!E468=\"\",\"\",TEXT(OrigTable!E468,\"00\"))","v":""},{"$f":"IF(OrigTable!E468=\"\",\"\",ScriptText!$E$1&CHAR(10)&ScriptText!$C$1)","v":""},{"$f":"IF(OrigTable!F468=\"\",\"\",ScriptText!$B$1&CHAR(10)&ScriptText!$D$1)","v":""},{"$f":"IF(OrigTable!F468=\"\",\"\",TEXT(OrigTable!F468,\"00\"))","v":""},{"$f":"IF(OrigTable!F468=\"\",\"\",ScriptText!$E$1&CHAR(10)&ScriptText!$C$1)","v":""},{"$f":"IF(OrigTable!G468=\"\",\"\",ScriptText!$B$1&CHAR(10)&ScriptText!$D$1)","v":""},{"$f":"IF(OrigTable!G468=\"\",\"\",TEXT(OrigTable!G468,\"00\"))","v":""},{"$f":"IF(OrigTable!G468=\"\",\"\",ScriptText!$E$1&CHAR(10)&ScriptText!$C$1)","v":""},468]
["<tr>\n<td>721I</td>\n</tr>\n\n<tr>\n<td>IRAF Adjustment Notice</td>\n</tr>\n<tr>\n<td>Master File Notices</td>\n</tr>",{"$f":"IF(OrigTable!A469=\"\",\"\",ScriptText!$B$1&CHAR(10)&ScriptText!$D$1)","v":"<tr>\n<td>"},{"$f":"IF(OrigTable!A469=\"\",\"\",TEXT(OrigTable!A469,\"00\"))","v":"721I"},{"$f":"IF(OrigTable!A469=\"\",\"\",ScriptText!$E$1&CHAR(10)&ScriptText!$C$1)","v":"</td>\n</tr>"},{"$f":"IF(OrigTable!B469=\"\",\"\",ScriptText!$B$1&CHAR(10)&ScriptText!$D$1)","v":""},{"$f":"IF(OrigTable!B469=\"\",\"\",TEXT(OrigTable!B469,\"00\"))","v":""},{"$f":"IF(OrigTable!B469=\"\",\"\",ScriptText!$E$1&CHAR(10)&ScriptText!C464)","v":""},{"$f":"IF(OrigTable!C469=\"\",\"\",ScriptText!$B$1&CHAR(10)&ScriptText!$D$1)","v":"<tr>\n<td>"},{"$f":"IF(OrigTable!C469=\"\",\"\",IF(LEN(OrigTable!C469)>255,LEFT(OrigTable!C469,250)&\". . .\",OrigTable!C469))","v":"IRAF Adjustment Notice"},{"$f":"IF(OrigTable!C469=\"\",\"\",ScriptText!$E$1&CHAR(10)&ScriptText!$C$1)","v":"</td>\n</tr>"},{"$f":"IF(OrigTable!D469=\"\",\"\",ScriptText!$B$1&CHAR(10)&ScriptText!$D$1)","v":"<tr>\n<td>"},{"$f":"IF(OrigTable!D469=\"\",\"\",TEXT(OrigTable!D469,\"00\"))","v":"Master File Notices"},{"$f":"IF(OrigTable!D469=\"\",\"\",ScriptText!$E$1&CHAR(10)&ScriptText!$C$1)","v":"</td>\n</tr>"},{"$f":"IF(OrigTable!E469=\"\",\"\",ScriptText!$B$1&CHAR(10)&ScriptText!$D$1)","v":""},{"$f":"IF(OrigTable!E469=\"\",\"\",TEXT(OrigTable!E469,\"00\"))","v":""},{"$f":"IF(OrigTable!E469=\"\",\"\",ScriptText!$E$1&CHAR(10)&ScriptText!$C$1)","v":""},{"$f":"IF(OrigTable!F469=\"\",\"\",ScriptText!$B$1&CHAR(10)&ScriptText!$D$1)","v":""},{"$f":"IF(OrigTable!F469=\"\",\"\",TEXT(OrigTable!F469,\"00\"))","v":""},{"$f":"IF(OrigTable!F469=\"\",\"\",ScriptText!$E$1&CHAR(10)&ScriptText!$C$1)","v":""},{"$f":"IF(OrigTable!G469=\"\",\"\",ScriptText!$B$1&CHAR(10)&ScriptText!$D$1)","v":""},{"$f":"IF(OrigTable!G469=\"\",\"\",TEXT(OrigTable!G469,\"00\"))","v":""},{"$f":"IF(OrigTable!G469=\"\",\"\",ScriptText!$E$1&CHAR(10)&ScriptText!$C$1)","v":""},469]
["<tr>\n<td>722</td>\n</tr>\n\n<tr>\n<td>Audit/DP Tax Adjustment (IMF/SP) account not in TDA/BAL DUE status</td>\n</tr>\n<tr>\n<td>Master File Notices</td>\n</tr>",{"$f":"IF(OrigTable!A470=\"\",\"\",ScriptText!$B$1&CHAR(10)&ScriptText!$D$1)","v":"<tr>\n<td>"},{"$f":"IF(OrigTable!A470=\"\",\"\",TEXT(OrigTable!A470,\"00\"))","v":"722"},{"$f":"IF(OrigTable!A470=\"\",\"\",ScriptText!$E$1&CHAR(10)&ScriptText!$C$1)","v":"</td>\n</tr>"},{"$f":"IF(OrigTable!B470=\"\",\"\",ScriptText!$B$1&CHAR(10)&ScriptText!$D$1)","v":""},{"$f":"IF(OrigTable!B470=\"\",\"\",TEXT(OrigTable!B470,\"00\"))","v":""},{"$f":"IF(OrigTable!B470=\"\",\"\",ScriptText!$E$1&CHAR(10)&ScriptText!C465)","v":""},{"$f":"IF(OrigTable!C470=\"\",\"\",ScriptText!$B$1&CHAR(10)&ScriptText!$D$1)","v":"<tr>\n<td>"},{"$f":"IF(OrigTable!C470=\"\",\"\",IF(LEN(OrigTable!C470)>255,LEFT(OrigTable!C470,250)&\". . .\",OrigTable!C470))","v":"Audit/DP Tax Adjustment (IMF/SP) account not in TDA/BAL DUE status"},{"$f":"IF(OrigTable!C470=\"\",\"\",ScriptText!$E$1&CHAR(10)&ScriptText!$C$1)","v":"</td>\n</tr>"},{"$f":"IF(OrigTable!D470=\"\",\"\",ScriptText!$B$1&CHAR(10)&ScriptText!$D$1)","v":"<tr>\n<td>"},{"$f":"IF(OrigTable!D470=\"\",\"\",TEXT(OrigTable!D470,\"00\"))","v":"Master File Notices"},{"$f":"IF(OrigTable!D470=\"\",\"\",ScriptText!$E$1&CHAR(10)&ScriptText!$C$1)","v":"</td>\n</tr>"},{"$f":"IF(OrigTable!E470=\"\",\"\",ScriptText!$B$1&CHAR(10)&ScriptText!$D$1)","v":""},{"$f":"IF(OrigTable!E470=\"\",\"\",TEXT(OrigTable!E470,\"00\"))","v":""},{"$f":"IF(OrigTable!E470=\"\",\"\",ScriptText!$E$1&CHAR(10)&ScriptText!$C$1)","v":""},{"$f":"IF(OrigTable!F470=\"\",\"\",ScriptText!$B$1&CHAR(10)&ScriptText!$D$1)","v":""},{"$f":"IF(OrigTable!F470=\"\",\"\",TEXT(OrigTable!F470,\"00\"))","v":""},{"$f":"IF(OrigTable!F470=\"\",\"\",ScriptText!$E$1&CHAR(10)&ScriptText!$C$1)","v":""},{"$f":"IF(OrigTable!G470=\"\",\"\",ScriptText!$B$1&CHAR(10)&ScriptText!$D$1)","v":""},{"$f":"IF(OrigTable!G470=\"\",\"\",TEXT(OrigTable!G470,\"00\"))","v":""},{"$f":"IF(OrigTable!G470=\"\",\"\",ScriptText!$E$1&CHAR(10)&ScriptText!$C$1)","v":""},470]
["<tr>\n<td>722A</td>\n</tr>\n\n<tr>\n<td>Notice of Data Processing adjustments, resulting in a balance due of $5.00 or more when account is in TDA/BAL DUE status.</td>\n</tr>\n<tr>\n<td>Master File Notices</td>\n</tr>",{"$f":"IF(OrigTable!A471=\"\",\"\",ScriptText!$B$1&CHAR(10)&ScriptText!$D$1)","v":"<tr>\n<td>"},{"$f":"IF(OrigTable!A471=\"\",\"\",TEXT(OrigTable!A471,\"00\"))","v":"722A"},{"$f":"IF(OrigTable!A471=\"\",\"\",ScriptText!$E$1&CHAR(10)&ScriptText!$C$1)","v":"</td>\n</tr>"},{"$f":"IF(OrigTable!B471=\"\",\"\",ScriptText!$B$1&CHAR(10)&ScriptText!$D$1)","v":""},{"$f":"IF(OrigTable!B471=\"\",\"\",TEXT(OrigTable!B471,\"00\"))","v":""},{"$f":"IF(OrigTable!B471=\"\",\"\",ScriptText!$E$1&CHAR(10)&ScriptText!C466)","v":""},{"$f":"IF(OrigTable!C471=\"\",\"\",ScriptText!$B$1&CHAR(10)&ScriptText!$D$1)","v":"<tr>\n<td>"},{"$f":"IF(OrigTable!C471=\"\",\"\",IF(LEN(OrigTable!C471)>255,LEFT(OrigTable!C471,250)&\". . .\",OrigTable!C471))","v":"Notice of Data Processing adjustments, resulting in a balance due of $5.00 or more when account is in TDA/BAL DUE status."},{"$f":"IF(OrigTable!C471=\"\",\"\",ScriptText!$E$1&CHAR(10)&ScriptText!$C$1)","v":"</td>\n</tr>"},{"$f":"IF(OrigTable!D471=\"\",\"\",ScriptText!$B$1&CHAR(10)&ScriptText!$D$1)","v":"<tr>\n<td>"},{"$f":"IF(OrigTable!D471=\"\",\"\",TEXT(OrigTable!D471,\"00\"))","v":"Master File Notices"},{"$f":"IF(OrigTable!D471=\"\",\"\",ScriptText!$E$1&CHAR(10)&ScriptText!$C$1)","v":"</td>\n</tr>"},{"$f":"IF(OrigTable!E471=\"\",\"\",ScriptText!$B$1&CHAR(10)&ScriptText!$D$1)","v":""},{"$f":"IF(OrigTable!E471=\"\",\"\",TEXT(OrigTable!E471,\"00\"))","v":""},{"$f":"IF(OrigTable!E471=\"\",\"\",ScriptText!$E$1&CHAR(10)&ScriptText!$C$1)","v":""},{"$f":"IF(OrigTable!F471=\"\",\"\",ScriptText!$B$1&CHAR(10)&ScriptText!$D$1)","v":""},{"$f":"IF(OrigTable!F471=\"\",\"\",TEXT(OrigTable!F471,\"00\"))","v":""},{"$f":"IF(OrigTable!F471=\"\",\"\",ScriptText!$E$1&CHAR(10)&ScriptText!$C$1)","v":""},{"$f":"IF(OrigTable!G471=\"\",\"\",ScriptText!$B$1&CHAR(10)&ScriptText!$D$1)","v":""},{"$f":"IF(OrigTable!G471=\"\",\"\",TEXT(OrigTable!G471,\"00\"))","v":""},{"$f":"IF(OrigTable!G471=\"\",\"\",ScriptText!$E$1&CHAR(10)&ScriptText!$C$1)","v":""},471]
["<tr>\n<td>722E</td>\n</tr>\n\n<tr>\n<td>Notice of Examination adjustments, resulting in a change to an account in TDA/BAL DUE status</td>\n</tr>\n<tr>\n<td>Master File Notices</td>\n</tr>",{"$f":"IF(OrigTable!A472=\"\",\"\",ScriptText!$B$1&CHAR(10)&ScriptText!$D$1)","v":"<tr>\n<td>"},{"$f":"IF(OrigTable!A472=\"\",\"\",TEXT(OrigTable!A472,\"00\"))","v":"722E"},{"$f":"IF(OrigTable!A472=\"\",\"\",ScriptText!$E$1&CHAR(10)&ScriptText!$C$1)","v":"</td>\n</tr>"},{"$f":"IF(OrigTable!B472=\"\",\"\",ScriptText!$B$1&CHAR(10)&ScriptText!$D$1)","v":""},{"$f":"IF(OrigTable!B472=\"\",\"\",TEXT(OrigTable!B472,\"00\"))","v":""},{"$f":"IF(OrigTable!B472=\"\",\"\",ScriptText!$E$1&CHAR(10)&ScriptText!C467)","v":""},{"$f":"IF(OrigTable!C472=\"\",\"\",ScriptText!$B$1&CHAR(10)&ScriptText!$D$1)","v":"<tr>\n<td>"},{"$f":"IF(OrigTable!C472=\"\",\"\",IF(LEN(OrigTable!C472)>255,LEFT(OrigTable!C472,250)&\". . .\",OrigTable!C472))","v":"Notice of Examination adjustments, resulting in a change to an account in TDA/BAL DUE status"},{"$f":"IF(OrigTable!C472=\"\",\"\",ScriptText!$E$1&CHAR(10)&ScriptText!$C$1)","v":"</td>\n</tr>"},{"$f":"IF(OrigTable!D472=\"\",\"\",ScriptText!$B$1&CHAR(10)&ScriptText!$D$1)","v":"<tr>\n<td>"},{"$f":"IF(OrigTable!D472=\"\",\"\",TEXT(OrigTable!D472,\"00\"))","v":"Master File Notices"},{"$f":"IF(OrigTable!D472=\"\",\"\",ScriptText!$E$1&CHAR(10)&ScriptText!$C$1)","v":"</td>\n</tr>"},{"$f":"IF(OrigTable!E472=\"\",\"\",ScriptText!$B$1&CHAR(10)&ScriptText!$D$1)","v":""},{"$f":"IF(OrigTable!E472=\"\",\"\",TEXT(OrigTable!E472,\"00\"))","v":""},{"$f":"IF(OrigTable!E472=\"\",\"\",ScriptText!$E$1&CHAR(10)&ScriptText!$C$1)","v":""},{"$f":"IF(OrigTable!F472=\"\",\"\",ScriptText!$B$1&CHAR(10)&ScriptText!$D$1)","v":""},{"$f":"IF(OrigTable!F472=\"\",\"\",TEXT(OrigTable!F472,\"00\"))","v":""},{"$f":"IF(OrigTable!F472=\"\",\"\",ScriptText!$E$1&CHAR(10)&ScriptText!$C$1)","v":""},{"$f":"IF(OrigTable!G472=\"\",\"\",ScriptText!$B$1&CHAR(10)&ScriptText!$D$1)","v":""},{"$f":"IF(OrigTable!G472=\"\",\"\",TEXT(OrigTable!G472,\"00\"))","v":""},{"$f":"IF(OrigTable!G472=\"\",\"\",ScriptText!$E$1&CHAR(10)&ScriptText!$C$1)","v":""},472]
["<tr>\n<td>722I</td>\n</tr>\n\n<tr>\n<td>Notice of Data Processing adjustments, resulting in a balance due of $5.00 or more when account is in TDA/BAL DUE status</td>\n</tr>\n<tr>\n<td>Master File Notices</td>\n</tr>",{"$f":"IF(OrigTable!A473=\"\",\"\",ScriptText!$B$1&CHAR(10)&ScriptText!$D$1)","v":"<tr>\n<td>"},{"$f":"IF(OrigTable!A473=\"\",\"\",TEXT(OrigTable!A473,\"00\"))","v":"722I"},{"$f":"IF(OrigTable!A473=\"\",\"\",ScriptText!$E$1&CHAR(10)&ScriptText!$C$1)","v":"</td>\n</tr>"},{"$f":"IF(OrigTable!B473=\"\",\"\",ScriptText!$B$1&CHAR(10)&ScriptText!$D$1)","v":""},{"$f":"IF(OrigTable!B473=\"\",\"\",TEXT(OrigTable!B473,\"00\"))","v":""},{"$f":"IF(OrigTable!B473=\"\",\"\",ScriptText!$E$1&CHAR(10)&ScriptText!C468)","v":""},{"$f":"IF(OrigTable!C473=\"\",\"\",ScriptText!$B$1&CHAR(10)&ScriptText!$D$1)","v":"<tr>\n<td>"},{"$f":"IF(OrigTable!C473=\"\",\"\",IF(LEN(OrigTable!C473)>255,LEFT(OrigTable!C473,250)&\". . .\",OrigTable!C473))","v":"Notice of Data Processing adjustments, resulting in a balance due of $5.00 or more when account is in TDA/BAL DUE status"},{"$f":"IF(OrigTable!C473=\"\",\"\",ScriptText!$E$1&CHAR(10)&ScriptText!$C$1)","v":"</td>\n</tr>"},{"$f":"IF(OrigTable!D473=\"\",\"\",ScriptText!$B$1&CHAR(10)&ScriptText!$D$1)","v":"<tr>\n<td>"},{"$f":"IF(OrigTable!D473=\"\",\"\",TEXT(OrigTable!D473,\"00\"))","v":"Master File Notices"},{"$f":"IF(OrigTable!D473=\"\",\"\",ScriptText!$E$1&CHAR(10)&ScriptText!$C$1)","v":"</td>\n</tr>"},{"$f":"IF(OrigTable!E473=\"\",\"\",ScriptText!$B$1&CHAR(10)&ScriptText!$D$1)","v":""},{"$f":"IF(OrigTable!E473=\"\",\"\",TEXT(OrigTable!E473,\"00\"))","v":""},{"$f":"IF(OrigTable!E473=\"\",\"\",ScriptText!$E$1&CHAR(10)&ScriptText!$C$1)","v":""},{"$f":"IF(OrigTable!F473=\"\",\"\",ScriptText!$B$1&CHAR(10)&ScriptText!$D$1)","v":""},{"$f":"IF(OrigTable!F473=\"\",\"\",TEXT(OrigTable!F473,\"00\"))","v":""},{"$f":"IF(OrigTable!F473=\"\",\"\",ScriptText!$E$1&CHAR(10)&ScriptText!$C$1)","v":""},{"$f":"IF(OrigTable!G473=\"\",\"\",ScriptText!$B$1&CHAR(10)&ScriptText!$D$1)","v":""},{"$f":"IF(OrigTable!G473=\"\",\"\",TEXT(OrigTable!G473,\"00\"))","v":""},{"$f":"IF(OrigTable!G473=\"\",\"\",ScriptText!$E$1&CHAR(10)&ScriptText!$C$1)","v":""},473]
["<tr>\n<td>740</td>\n</tr>\n\n<tr>\n<td>Notice is issued to indicate that we have assigned their account to a Private Collection Agency</td>\n</tr>\n<tr>\n<td>Master File Notices</td>\n</tr>",{"$f":"IF(OrigTable!A474=\"\",\"\",ScriptText!$B$1&CHAR(10)&ScriptText!$D$1)","v":"<tr>\n<td>"},{"$f":"IF(OrigTable!A474=\"\",\"\",TEXT(OrigTable!A474,\"00\"))","v":"740"},{"$f":"IF(OrigTable!A474=\"\",\"\",ScriptText!$E$1&CHAR(10)&ScriptText!$C$1)","v":"</td>\n</tr>"},{"$f":"IF(OrigTable!B474=\"\",\"\",ScriptText!$B$1&CHAR(10)&ScriptText!$D$1)","v":""},{"$f":"IF(OrigTable!B474=\"\",\"\",TEXT(OrigTable!B474,\"00\"))","v":""},{"$f":"IF(OrigTable!B474=\"\",\"\",ScriptText!$E$1&CHAR(10)&ScriptText!C469)","v":""},{"$f":"IF(OrigTable!C474=\"\",\"\",ScriptText!$B$1&CHAR(10)&ScriptText!$D$1)","v":"<tr>\n<td>"},{"$f":"IF(OrigTable!C474=\"\",\"\",IF(LEN(OrigTable!C474)>255,LEFT(OrigTable!C474,250)&\". . .\",OrigTable!C474))","v":"Notice is issued to indicate that we have assigned their account to a Private Collection Agency"},{"$f":"IF(OrigTable!C474=\"\",\"\",ScriptText!$E$1&CHAR(10)&ScriptText!$C$1)","v":"</td>\n</tr>"},{"$f":"IF(OrigTable!D474=\"\",\"\",ScriptText!$B$1&CHAR(10)&ScriptText!$D$1)","v":"<tr>\n<td>"},{"$f":"IF(OrigTable!D474=\"\",\"\",TEXT(OrigTable!D474,\"00\"))","v":"Master File Notices"},{"$f":"IF(OrigTable!D474=\"\",\"\",ScriptText!$E$1&CHAR(10)&ScriptText!$C$1)","v":"</td>\n</tr>"},{"$f":"IF(OrigTable!E474=\"\",\"\",ScriptText!$B$1&CHAR(10)&ScriptText!$D$1)","v":""},{"$f":"IF(OrigTable!E474=\"\",\"\",TEXT(OrigTable!E474,\"00\"))","v":""},{"$f":"IF(OrigTable!E474=\"\",\"\",ScriptText!$E$1&CHAR(10)&ScriptText!$C$1)","v":""},{"$f":"IF(OrigTable!F474=\"\",\"\",ScriptText!$B$1&CHAR(10)&ScriptText!$D$1)","v":""},{"$f":"IF(OrigTable!F474=\"\",\"\",TEXT(OrigTable!F474,\"00\"))","v":""},{"$f":"IF(OrigTable!F474=\"\",\"\",ScriptText!$E$1&CHAR(10)&ScriptText!$C$1)","v":""},{"$f":"IF(OrigTable!G474=\"\",\"\",ScriptText!$B$1&CHAR(10)&ScriptText!$D$1)","v":""},{"$f":"IF(OrigTable!G474=\"\",\"\",TEXT(OrigTable!G474,\"00\"))","v":""},{"$f":"IF(OrigTable!G474=\"\",\"\",ScriptText!$E$1&CHAR(10)&ScriptText!$C$1)","v":""},474]
["<tr>\n<td>748E</td>\n</tr>\n\n<tr>\n<td>ITIN Deactivation -Spanish</td>\n</tr>\n<tr>\n<td>Master File Notices</td>\n</tr>",{"$f":"IF(OrigTable!A475=\"\",\"\",ScriptText!$B$1&CHAR(10)&ScriptText!$D$1)","v":"<tr>\n<td>"},{"$f":"IF(OrigTable!A475=\"\",\"\",TEXT(OrigTable!A475,\"00\"))","v":"748E"},{"$f":"IF(OrigTable!A475=\"\",\"\",ScriptText!$E$1&CHAR(10)&ScriptText!$C$1)","v":"</td>\n</tr>"},{"$f":"IF(OrigTable!B475=\"\",\"\",ScriptText!$B$1&CHAR(10)&ScriptText!$D$1)","v":""},{"$f":"IF(OrigTable!B475=\"\",\"\",TEXT(OrigTable!B475,\"00\"))","v":""},{"$f":"IF(OrigTable!B475=\"\",\"\",ScriptText!$E$1&CHAR(10)&ScriptText!C470)","v":""},{"$f":"IF(OrigTable!C475=\"\",\"\",ScriptText!$B$1&CHAR(10)&ScriptText!$D$1)","v":"<tr>\n<td>"},{"$f":"IF(OrigTable!C475=\"\",\"\",IF(LEN(OrigTable!C475)>255,LEFT(OrigTable!C475,250)&\". . .\",OrigTable!C475))","v":"ITIN Deactivation -Spanish"},{"$f":"IF(OrigTable!C475=\"\",\"\",ScriptText!$E$1&CHAR(10)&ScriptText!$C$1)","v":"</td>\n</tr>"},{"$f":"IF(OrigTable!D475=\"\",\"\",ScriptText!$B$1&CHAR(10)&ScriptText!$D$1)","v":"<tr>\n<td>"},{"$f":"IF(OrigTable!D475=\"\",\"\",TEXT(OrigTable!D475,\"00\"))","v":"Master File Notices"},{"$f":"IF(OrigTable!D475=\"\",\"\",ScriptText!$E$1&CHAR(10)&ScriptText!$C$1)","v":"</td>\n</tr>"},{"$f":"IF(OrigTable!E475=\"\",\"\",ScriptText!$B$1&CHAR(10)&ScriptText!$D$1)","v":""},{"$f":"IF(OrigTable!E475=\"\",\"\",TEXT(OrigTable!E475,\"00\"))","v":""},{"$f":"IF(OrigTable!E475=\"\",\"\",ScriptText!$E$1&CHAR(10)&ScriptText!$C$1)","v":""},{"$f":"IF(OrigTable!F475=\"\",\"\",ScriptText!$B$1&CHAR(10)&ScriptText!$D$1)","v":""},{"$f":"IF(OrigTable!F475=\"\",\"\",TEXT(OrigTable!F475,\"00\"))","v":""},{"$f":"IF(OrigTable!F475=\"\",\"\",ScriptText!$E$1&CHAR(10)&ScriptText!$C$1)","v":""},{"$f":"IF(OrigTable!G475=\"\",\"\",ScriptText!$B$1&CHAR(10)&ScriptText!$D$1)","v":""},{"$f":"IF(OrigTable!G475=\"\",\"\",TEXT(OrigTable!G475,\"00\"))","v":""},{"$f":"IF(OrigTable!G475=\"\",\"\",ScriptText!$E$1&CHAR(10)&ScriptText!$C$1)","v":""},475]
["<tr>\n<td>749</td>\n</tr>\n\n<tr>\n<td>Overpayment Adjustment, Offset (IMF/Spanish)</td>\n</tr>\n<tr>\n<td>Master File Notices</td>\n</tr>",{"$f":"IF(OrigTable!A476=\"\",\"\",ScriptText!$B$1&CHAR(10)&ScriptText!$D$1)","v":"<tr>\n<td>"},{"$f":"IF(OrigTable!A476=\"\",\"\",TEXT(OrigTable!A476,\"00\"))","v":"749"},{"$f":"IF(OrigTable!A476=\"\",\"\",ScriptText!$E$1&CHAR(10)&ScriptText!$C$1)","v":"</td>\n</tr>"},{"$f":"IF(OrigTable!B476=\"\",\"\",ScriptText!$B$1&CHAR(10)&ScriptText!$D$1)","v":""},{"$f":"IF(OrigTable!B476=\"\",\"\",TEXT(OrigTable!B476,\"00\"))","v":""},{"$f":"IF(OrigTable!B476=\"\",\"\",ScriptText!$E$1&CHAR(10)&ScriptText!C471)","v":""},{"$f":"IF(OrigTable!C476=\"\",\"\",ScriptText!$B$1&CHAR(10)&ScriptText!$D$1)","v":"<tr>\n<td>"},{"$f":"IF(OrigTable!C476=\"\",\"\",IF(LEN(OrigTable!C476)>255,LEFT(OrigTable!C476,250)&\". . .\",OrigTable!C476))","v":"Overpayment Adjustment, Offset (IMF/Spanish)"},{"$f":"IF(OrigTable!C476=\"\",\"\",ScriptText!$E$1&CHAR(10)&ScriptText!$C$1)","v":"</td>\n</tr>"},{"$f":"IF(OrigTable!D476=\"\",\"\",ScriptText!$B$1&CHAR(10)&ScriptText!$D$1)","v":"<tr>\n<td>"},{"$f":"IF(OrigTable!D476=\"\",\"\",TEXT(OrigTable!D476,\"00\"))","v":"Master File Notices"},{"$f":"IF(OrigTable!D476=\"\",\"\",ScriptText!$E$1&CHAR(10)&ScriptText!$C$1)","v":"</td>\n</tr>"},{"$f":"IF(OrigTable!E476=\"\",\"\",ScriptText!$B$1&CHAR(10)&ScriptText!$D$1)","v":""},{"$f":"IF(OrigTable!E476=\"\",\"\",TEXT(OrigTable!E476,\"00\"))","v":""},{"$f":"IF(OrigTable!E476=\"\",\"\",ScriptText!$E$1&CHAR(10)&ScriptText!$C$1)","v":""},{"$f":"IF(OrigTable!F476=\"\",\"\",ScriptText!$B$1&CHAR(10)&ScriptText!$D$1)","v":""},{"$f":"IF(OrigTable!F476=\"\",\"\",TEXT(OrigTable!F476,\"00\"))","v":""},{"$f":"IF(OrigTable!F476=\"\",\"\",ScriptText!$E$1&CHAR(10)&ScriptText!$C$1)","v":""},{"$f":"IF(OrigTable!G476=\"\",\"\",ScriptText!$B$1&CHAR(10)&ScriptText!$D$1)","v":""},{"$f":"IF(OrigTable!G476=\"\",\"\",TEXT(OrigTable!G476,\"00\"))","v":""},{"$f":"IF(OrigTable!G476=\"\",\"\",ScriptText!$E$1&CHAR(10)&ScriptText!$C$1)","v":""},476]
["<tr>\n<td>759</td>\n</tr>\n\n<tr>\n<td>1st  notice IMF Nonfiler Return Delinquency</td>\n</tr>\n<tr>\n<td>Master File Notices</td>\n</tr>",{"$f":"IF(OrigTable!A477=\"\",\"\",ScriptText!$B$1&CHAR(10)&ScriptText!$D$1)","v":"<tr>\n<td>"},{"$f":"IF(OrigTable!A477=\"\",\"\",TEXT(OrigTable!A477,\"00\"))","v":"759"},{"$f":"IF(OrigTable!A477=\"\",\"\",ScriptText!$E$1&CHAR(10)&ScriptText!$C$1)","v":"</td>\n</tr>"},{"$f":"IF(OrigTable!B477=\"\",\"\",ScriptText!$B$1&CHAR(10)&ScriptText!$D$1)","v":""},{"$f":"IF(OrigTable!B477=\"\",\"\",TEXT(OrigTable!B477,\"00\"))","v":""},{"$f":"IF(OrigTable!B477=\"\",\"\",ScriptText!$E$1&CHAR(10)&ScriptText!C472)","v":""},{"$f":"IF(OrigTable!C477=\"\",\"\",ScriptText!$B$1&CHAR(10)&ScriptText!$D$1)","v":"<tr>\n<td>"},{"$f":"IF(OrigTable!C477=\"\",\"\",IF(LEN(OrigTable!C477)>255,LEFT(OrigTable!C477,250)&\". . .\",OrigTable!C477))","v":"1st  notice IMF Nonfiler Return Delinquency"},{"$f":"IF(OrigTable!C477=\"\",\"\",ScriptText!$E$1&CHAR(10)&ScriptText!$C$1)","v":"</td>\n</tr>"},{"$f":"IF(OrigTable!D477=\"\",\"\",ScriptText!$B$1&CHAR(10)&ScriptText!$D$1)","v":"<tr>\n<td>"},{"$f":"IF(OrigTable!D477=\"\",\"\",TEXT(OrigTable!D477,\"00\"))","v":"Master File Notices"},{"$f":"IF(OrigTable!D477=\"\",\"\",ScriptText!$E$1&CHAR(10)&ScriptText!$C$1)","v":"</td>\n</tr>"},{"$f":"IF(OrigTable!E477=\"\",\"\",ScriptText!$B$1&CHAR(10)&ScriptText!$D$1)","v":""},{"$f":"IF(OrigTable!E477=\"\",\"\",TEXT(OrigTable!E477,\"00\"))","v":""},{"$f":"IF(OrigTable!E477=\"\",\"\",ScriptText!$E$1&CHAR(10)&ScriptText!$C$1)","v":""},{"$f":"IF(OrigTable!F477=\"\",\"\",ScriptText!$B$1&CHAR(10)&ScriptText!$D$1)","v":""},{"$f":"IF(OrigTable!F477=\"\",\"\",TEXT(OrigTable!F477,\"00\"))","v":""},{"$f":"IF(OrigTable!F477=\"\",\"\",ScriptText!$E$1&CHAR(10)&ScriptText!$C$1)","v":""},{"$f":"IF(OrigTable!G477=\"\",\"\",ScriptText!$B$1&CHAR(10)&ScriptText!$D$1)","v":""},{"$f":"IF(OrigTable!G477=\"\",\"\",TEXT(OrigTable!G477,\"00\"))","v":""},{"$f":"IF(OrigTable!G477=\"\",\"\",ScriptText!$E$1&CHAR(10)&ScriptText!$C$1)","v":""},477]
["<tr>\n<td>771</td>\n</tr>\n\n<tr>\n<td>Issued to remind the taxpayer of a balance of tax due. Notice is generated for (1) modules in status 23\nwith a module balance of $25.00 or more and (2) module in status 22 with an unreversed TC 530 with closing code 09 and module balance of $25.00 or. . .</td>\n</tr>\n<tr>\n<td>Master File Notices</td>\n</tr>",{"$f":"IF(OrigTable!A478=\"\",\"\",ScriptText!$B$1&CHAR(10)&ScriptText!$D$1)","v":"<tr>\n<td>"},{"$f":"IF(OrigTable!A478=\"\",\"\",TEXT(OrigTable!A478,\"00\"))","v":"771"},{"$f":"IF(OrigTable!A478=\"\",\"\",ScriptText!$E$1&CHAR(10)&ScriptText!$C$1)","v":"</td>\n</tr>"},{"$f":"IF(OrigTable!B478=\"\",\"\",ScriptText!$B$1&CHAR(10)&ScriptText!$D$1)","v":""},{"$f":"IF(OrigTable!B478=\"\",\"\",TEXT(OrigTable!B478,\"00\"))","v":""},{"$f":"IF(OrigTable!B478=\"\",\"\",ScriptText!$E$1&CHAR(10)&ScriptText!C473)","v":""},{"$f":"IF(OrigTable!C478=\"\",\"\",ScriptText!$B$1&CHAR(10)&ScriptText!$D$1)","v":"<tr>\n<td>"},{"$f":"IF(OrigTable!C478=\"\",\"\",IF(LEN(OrigTable!C478)>255,LEFT(OrigTable!C478,250)&\". . .\",OrigTable!C478))","v":"Issued to remind the taxpayer of a balance of tax due. Notice is generated for (1) modules in status 23\nwith a module balance of $25.00 or more and (2) module in status 22 with an unreversed TC 530 with closing code 09 and module balance of $25.00 or. . ."},{"$f":"IF(OrigTable!C478=\"\",\"\",ScriptText!$E$1&CHAR(10)&ScriptText!$C$1)","v":"</td>\n</tr>"},{"$f":"IF(OrigTable!D478=\"\",\"\",ScriptText!$B$1&CHAR(10)&ScriptText!$D$1)","v":"<tr>\n<td>"},{"$f":"IF(OrigTable!D478=\"\",\"\",TEXT(OrigTable!D478,\"00\"))","v":"Master File Notices"},{"$f":"IF(OrigTable!D478=\"\",\"\",ScriptText!$E$1&CHAR(10)&ScriptText!$C$1)","v":"</td>\n</tr>"},{"$f":"IF(OrigTable!E478=\"\",\"\",ScriptText!$B$1&CHAR(10)&ScriptText!$D$1)","v":""},{"$f":"IF(OrigTable!E478=\"\",\"\",TEXT(OrigTable!E478,\"00\"))","v":""},{"$f":"IF(OrigTable!E478=\"\",\"\",ScriptText!$E$1&CHAR(10)&ScriptText!$C$1)","v":""},{"$f":"IF(OrigTable!F478=\"\",\"\",ScriptText!$B$1&CHAR(10)&ScriptText!$D$1)","v":""},{"$f":"IF(OrigTable!F478=\"\",\"\",TEXT(OrigTable!F478,\"00\"))","v":""},{"$f":"IF(OrigTable!F478=\"\",\"\",ScriptText!$E$1&CHAR(10)&ScriptText!$C$1)","v":""},{"$f":"IF(OrigTable!G478=\"\",\"\",ScriptText!$B$1&CHAR(10)&ScriptText!$D$1)","v":""},{"$f":"IF(OrigTable!G478=\"\",\"\",TEXT(OrigTable!G478,\"00\"))","v":""},{"$f":"IF(OrigTable!G478=\"\",\"\",ScriptText!$E$1&CHAR(10)&ScriptText!$C$1)","v":""},478]
["<tr>\n<td>772</td>\n</tr>\n\n<tr>\n<td>Issued annually to remind IMF taxpayers of a balance due on a module that has been in Currently Not\nCollectible status 53 for at least 65 cycles with closing code 12 or 24-32, 39.</td>\n</tr>\n<tr>\n<td>Master File Notices</td>\n</tr>",{"$f":"IF(OrigTable!A479=\"\",\"\",ScriptText!$B$1&CHAR(10)&ScriptText!$D$1)","v":"<tr>\n<td>"},{"$f":"IF(OrigTable!A479=\"\",\"\",TEXT(OrigTable!A479,\"00\"))","v":"772"},{"$f":"IF(OrigTable!A479=\"\",\"\",ScriptText!$E$1&CHAR(10)&ScriptText!$C$1)","v":"</td>\n</tr>"},{"$f":"IF(OrigTable!B479=\"\",\"\",ScriptText!$B$1&CHAR(10)&ScriptText!$D$1)","v":""},{"$f":"IF(OrigTable!B479=\"\",\"\",TEXT(OrigTable!B479,\"00\"))","v":""},{"$f":"IF(OrigTable!B479=\"\",\"\",ScriptText!$E$1&CHAR(10)&ScriptText!C474)","v":""},{"$f":"IF(OrigTable!C479=\"\",\"\",ScriptText!$B$1&CHAR(10)&ScriptText!$D$1)","v":"<tr>\n<td>"},{"$f":"IF(OrigTable!C479=\"\",\"\",IF(LEN(OrigTable!C479)>255,LEFT(OrigTable!C479,250)&\". . .\",OrigTable!C479))","v":"Issued annually to remind IMF taxpayers of a balance due on a module that has been in Currently Not\nCollectible status 53 for at least 65 cycles with closing code 12 or 24-32, 39."},{"$f":"IF(OrigTable!C479=\"\",\"\",ScriptText!$E$1&CHAR(10)&ScriptText!$C$1)","v":"</td>\n</tr>"},{"$f":"IF(OrigTable!D479=\"\",\"\",ScriptText!$B$1&CHAR(10)&ScriptText!$D$1)","v":"<tr>\n<td>"},{"$f":"IF(OrigTable!D479=\"\",\"\",TEXT(OrigTable!D479,\"00\"))","v":"Master File Notices"},{"$f":"IF(OrigTable!D479=\"\",\"\",ScriptText!$E$1&CHAR(10)&ScriptText!$C$1)","v":"</td>\n</tr>"},{"$f":"IF(OrigTable!E479=\"\",\"\",ScriptText!$B$1&CHAR(10)&ScriptText!$D$1)","v":""},{"$f":"IF(OrigTable!E479=\"\",\"\",TEXT(OrigTable!E479,\"00\"))","v":""},{"$f":"IF(OrigTable!E479=\"\",\"\",ScriptText!$E$1&CHAR(10)&ScriptText!$C$1)","v":""},{"$f":"IF(OrigTable!F479=\"\",\"\",ScriptText!$B$1&CHAR(10)&ScriptText!$D$1)","v":""},{"$f":"IF(OrigTable!F479=\"\",\"\",TEXT(OrigTable!F479,\"00\"))","v":""},{"$f":"IF(OrigTable!F479=\"\",\"\",ScriptText!$E$1&CHAR(10)&ScriptText!$C$1)","v":""},{"$f":"IF(OrigTable!G479=\"\",\"\",ScriptText!$B$1&CHAR(10)&ScriptText!$D$1)","v":""},{"$f":"IF(OrigTable!G479=\"\",\"\",TEXT(OrigTable!G479,\"00\"))","v":""},{"$f":"IF(OrigTable!G479=\"\",\"\",ScriptText!$E$1&CHAR(10)&ScriptText!$C$1)","v":""},479]
["<tr>\n<td>773</td>\n</tr>\n\n<tr>\n<td>Issued annually as a reminder to the taxpayer of balance due tax modules in status 24. Will reflect\nCSCO return addresses and ACS telephone numbers. The tolerance is $25.00</td>\n</tr>\n<tr>\n<td>Master File Notices</td>\n</tr>",{"$f":"IF(OrigTable!A480=\"\",\"\",ScriptText!$B$1&CHAR(10)&ScriptText!$D$1)","v":"<tr>\n<td>"},{"$f":"IF(OrigTable!A480=\"\",\"\",TEXT(OrigTable!A480,\"00\"))","v":"773"},{"$f":"IF(OrigTable!A480=\"\",\"\",ScriptText!$E$1&CHAR(10)&ScriptText!$C$1)","v":"</td>\n</tr>"},{"$f":"IF(OrigTable!B480=\"\",\"\",ScriptText!$B$1&CHAR(10)&ScriptText!$D$1)","v":""},{"$f":"IF(OrigTable!B480=\"\",\"\",TEXT(OrigTable!B480,\"00\"))","v":""},{"$f":"IF(OrigTable!B480=\"\",\"\",ScriptText!$E$1&CHAR(10)&ScriptText!C475)","v":""},{"$f":"IF(OrigTable!C480=\"\",\"\",ScriptText!$B$1&CHAR(10)&ScriptText!$D$1)","v":"<tr>\n<td>"},{"$f":"IF(OrigTable!C480=\"\",\"\",IF(LEN(OrigTable!C480)>255,LEFT(OrigTable!C480,250)&\". . .\",OrigTable!C480))","v":"Issued annually as a reminder to the taxpayer of balance due tax modules in status 24. Will reflect\nCSCO return addresses and ACS telephone numbers. The tolerance is $25.00"},{"$f":"IF(OrigTable!C480=\"\",\"\",ScriptText!$E$1&CHAR(10)&ScriptText!$C$1)","v":"</td>\n</tr>"},{"$f":"IF(OrigTable!D480=\"\",\"\",ScriptText!$B$1&CHAR(10)&ScriptText!$D$1)","v":"<tr>\n<td>"},{"$f":"IF(OrigTable!D480=\"\",\"\",TEXT(OrigTable!D480,\"00\"))","v":"Master File Notices"},{"$f":"IF(OrigTable!D480=\"\",\"\",ScriptText!$E$1&CHAR(10)&ScriptText!$C$1)","v":"</td>\n</tr>"},{"$f":"IF(OrigTable!E480=\"\",\"\",ScriptText!$B$1&CHAR(10)&ScriptText!$D$1)","v":""},{"$f":"IF(OrigTable!E480=\"\",\"\",TEXT(OrigTable!E480,\"00\"))","v":""},{"$f":"IF(OrigTable!E480=\"\",\"\",ScriptText!$E$1&CHAR(10)&ScriptText!$C$1)","v":""},{"$f":"IF(OrigTable!F480=\"\",\"\",ScriptText!$B$1&CHAR(10)&ScriptText!$D$1)","v":""},{"$f":"IF(OrigTable!F480=\"\",\"\",TEXT(OrigTable!F480,\"00\"))","v":""},{"$f":"IF(OrigTable!F480=\"\",\"\",ScriptText!$E$1&CHAR(10)&ScriptText!$C$1)","v":""},{"$f":"IF(OrigTable!G480=\"\",\"\",ScriptText!$B$1&CHAR(10)&ScriptText!$D$1)","v":""},{"$f":"IF(OrigTable!G480=\"\",\"\",TEXT(OrigTable!G480,\"00\"))","v":""},{"$f":"IF(OrigTable!G480=\"\",\"\",ScriptText!$E$1&CHAR(10)&ScriptText!$C$1)","v":""},480]
["<tr>\n<td>774</td>\n</tr>\n\n<tr>\n<td>An annual notice that is generated for any tax module in status 26 for 1 year or more if the balance due\nis $25 or greater.</td>\n</tr>\n<tr>\n<td>Master File Notices</td>\n</tr>",{"$f":"IF(OrigTable!A481=\"\",\"\",ScriptText!$B$1&CHAR(10)&ScriptText!$D$1)","v":"<tr>\n<td>"},{"$f":"IF(OrigTable!A481=\"\",\"\",TEXT(OrigTable!A481,\"00\"))","v":"774"},{"$f":"IF(OrigTable!A481=\"\",\"\",ScriptText!$E$1&CHAR(10)&ScriptText!$C$1)","v":"</td>\n</tr>"},{"$f":"IF(OrigTable!B481=\"\",\"\",ScriptText!$B$1&CHAR(10)&ScriptText!$D$1)","v":""},{"$f":"IF(OrigTable!B481=\"\",\"\",TEXT(OrigTable!B481,\"00\"))","v":""},{"$f":"IF(OrigTable!B481=\"\",\"\",ScriptText!$E$1&CHAR(10)&ScriptText!C476)","v":""},{"$f":"IF(OrigTable!C481=\"\",\"\",ScriptText!$B$1&CHAR(10)&ScriptText!$D$1)","v":"<tr>\n<td>"},{"$f":"IF(OrigTable!C481=\"\",\"\",IF(LEN(OrigTable!C481)>255,LEFT(OrigTable!C481,250)&\". . .\",OrigTable!C481))","v":"An annual notice that is generated for any tax module in status 26 for 1 year or more if the balance due\nis $25 or greater."},{"$f":"IF(OrigTable!C481=\"\",\"\",ScriptText!$E$1&CHAR(10)&ScriptText!$C$1)","v":"</td>\n</tr>"},{"$f":"IF(OrigTable!D481=\"\",\"\",ScriptText!$B$1&CHAR(10)&ScriptText!$D$1)","v":"<tr>\n<td>"},{"$f":"IF(OrigTable!D481=\"\",\"\",TEXT(OrigTable!D481,\"00\"))","v":"Master File Notices"},{"$f":"IF(OrigTable!D481=\"\",\"\",ScriptText!$E$1&CHAR(10)&ScriptText!$C$1)","v":"</td>\n</tr>"},{"$f":"IF(OrigTable!E481=\"\",\"\",ScriptText!$B$1&CHAR(10)&ScriptText!$D$1)","v":""},{"$f":"IF(OrigTable!E481=\"\",\"\",TEXT(OrigTable!E481,\"00\"))","v":""},{"$f":"IF(OrigTable!E481=\"\",\"\",ScriptText!$E$1&CHAR(10)&ScriptText!$C$1)","v":""},{"$f":"IF(OrigTable!F481=\"\",\"\",ScriptText!$B$1&CHAR(10)&ScriptText!$D$1)","v":""},{"$f":"IF(OrigTable!F481=\"\",\"\",TEXT(OrigTable!F481,\"00\"))","v":""},{"$f":"IF(OrigTable!F481=\"\",\"\",ScriptText!$E$1&CHAR(10)&ScriptText!$C$1)","v":""},{"$f":"IF(OrigTable!G481=\"\",\"\",ScriptText!$B$1&CHAR(10)&ScriptText!$D$1)","v":""},{"$f":"IF(OrigTable!G481=\"\",\"\",TEXT(OrigTable!G481,\"00\"))","v":""},{"$f":"IF(OrigTable!G481=\"\",\"\",ScriptText!$E$1&CHAR(10)&ScriptText!$C$1)","v":""},481]
["<tr>\n<td>789</td>\n</tr>\n\n<tr>\n<td>Annual Installment Agreement Statement (IMF)</td>\n</tr>\n<tr>\n<td>Master File Notices</td>\n</tr>",{"$f":"IF(OrigTable!A482=\"\",\"\",ScriptText!$B$1&CHAR(10)&ScriptText!$D$1)","v":"<tr>\n<td>"},{"$f":"IF(OrigTable!A482=\"\",\"\",TEXT(OrigTable!A482,\"00\"))","v":"789"},{"$f":"IF(OrigTable!A482=\"\",\"\",ScriptText!$E$1&CHAR(10)&ScriptText!$C$1)","v":"</td>\n</tr>"},{"$f":"IF(OrigTable!B482=\"\",\"\",ScriptText!$B$1&CHAR(10)&ScriptText!$D$1)","v":""},{"$f":"IF(OrigTable!B482=\"\",\"\",TEXT(OrigTable!B482,\"00\"))","v":""},{"$f":"IF(OrigTable!B482=\"\",\"\",ScriptText!$E$1&CHAR(10)&ScriptText!C477)","v":""},{"$f":"IF(OrigTable!C482=\"\",\"\",ScriptText!$B$1&CHAR(10)&ScriptText!$D$1)","v":"<tr>\n<td>"},{"$f":"IF(OrigTable!C482=\"\",\"\",IF(LEN(OrigTable!C482)>255,LEFT(OrigTable!C482,250)&\". . .\",OrigTable!C482))","v":"Annual Installment Agreement Statement (IMF)"},{"$f":"IF(OrigTable!C482=\"\",\"\",ScriptText!$E$1&CHAR(10)&ScriptText!$C$1)","v":"</td>\n</tr>"},{"$f":"IF(OrigTable!D482=\"\",\"\",ScriptText!$B$1&CHAR(10)&ScriptText!$D$1)","v":"<tr>\n<td>"},{"$f":"IF(OrigTable!D482=\"\",\"\",TEXT(OrigTable!D482,\"00\"))","v":"Master File Notices"},{"$f":"IF(OrigTable!D482=\"\",\"\",ScriptText!$E$1&CHAR(10)&ScriptText!$C$1)","v":"</td>\n</tr>"},{"$f":"IF(OrigTable!E482=\"\",\"\",ScriptText!$B$1&CHAR(10)&ScriptText!$D$1)","v":""},{"$f":"IF(OrigTable!E482=\"\",\"\",TEXT(OrigTable!E482,\"00\"))","v":""},{"$f":"IF(OrigTable!E482=\"\",\"\",ScriptText!$E$1&CHAR(10)&ScriptText!$C$1)","v":""},{"$f":"IF(OrigTable!F482=\"\",\"\",ScriptText!$B$1&CHAR(10)&ScriptText!$D$1)","v":""},{"$f":"IF(OrigTable!F482=\"\",\"\",TEXT(OrigTable!F482,\"00\"))","v":""},{"$f":"IF(OrigTable!F482=\"\",\"\",ScriptText!$E$1&CHAR(10)&ScriptText!$C$1)","v":""},{"$f":"IF(OrigTable!G482=\"\",\"\",ScriptText!$B$1&CHAR(10)&ScriptText!$D$1)","v":""},{"$f":"IF(OrigTable!G482=\"\",\"\",TEXT(OrigTable!G482,\"00\"))","v":""},{"$f":"IF(OrigTable!G482=\"\",\"\",ScriptText!$E$1&CHAR(10)&ScriptText!$C$1)","v":""},482]
["<tr>\n<td>801</td>\n</tr>\n\n<tr>\n<td>Math Error—Balance Due of $5 or more on Form 940PR (BMF/Spanish)</td>\n</tr>\n<tr>\n<td>Master File Notices</td>\n</tr>",{"$f":"IF(OrigTable!A483=\"\",\"\",ScriptText!$B$1&CHAR(10)&ScriptText!$D$1)","v":"<tr>\n<td>"},{"$f":"IF(OrigTable!A483=\"\",\"\",TEXT(OrigTable!A483,\"00\"))","v":"801"},{"$f":"IF(OrigTable!A483=\"\",\"\",ScriptText!$E$1&CHAR(10)&ScriptText!$C$1)","v":"</td>\n</tr>"},{"$f":"IF(OrigTable!B483=\"\",\"\",ScriptText!$B$1&CHAR(10)&ScriptText!$D$1)","v":""},{"$f":"IF(OrigTable!B483=\"\",\"\",TEXT(OrigTable!B483,\"00\"))","v":""},{"$f":"IF(OrigTable!B483=\"\",\"\",ScriptText!$E$1&CHAR(10)&ScriptText!C478)","v":""},{"$f":"IF(OrigTable!C483=\"\",\"\",ScriptText!$B$1&CHAR(10)&ScriptText!$D$1)","v":"<tr>\n<td>"},{"$f":"IF(OrigTable!C483=\"\",\"\",IF(LEN(OrigTable!C483)>255,LEFT(OrigTable!C483,250)&\". . .\",OrigTable!C483))","v":"Math Error—Balance Due of $5 or more on Form 940PR (BMF/Spanish)"},{"$f":"IF(OrigTable!C483=\"\",\"\",ScriptText!$E$1&CHAR(10)&ScriptText!$C$1)","v":"</td>\n</tr>"},{"$f":"IF(OrigTable!D483=\"\",\"\",ScriptText!$B$1&CHAR(10)&ScriptText!$D$1)","v":"<tr>\n<td>"},{"$f":"IF(OrigTable!D483=\"\",\"\",TEXT(OrigTable!D483,\"00\"))","v":"Master File Notices"},{"$f":"IF(OrigTable!D483=\"\",\"\",ScriptText!$E$1&CHAR(10)&ScriptText!$C$1)","v":"</td>\n</tr>"},{"$f":"IF(OrigTable!E483=\"\",\"\",ScriptText!$B$1&CHAR(10)&ScriptText!$D$1)","v":""},{"$f":"IF(OrigTable!E483=\"\",\"\",TEXT(OrigTable!E483,\"00\"))","v":""},{"$f":"IF(OrigTable!E483=\"\",\"\",ScriptText!$E$1&CHAR(10)&ScriptText!$C$1)","v":""},{"$f":"IF(OrigTable!F483=\"\",\"\",ScriptText!$B$1&CHAR(10)&ScriptText!$D$1)","v":""},{"$f":"IF(OrigTable!F483=\"\",\"\",TEXT(OrigTable!F483,\"00\"))","v":""},{"$f":"IF(OrigTable!F483=\"\",\"\",ScriptText!$E$1&CHAR(10)&ScriptText!$C$1)","v":""},{"$f":"IF(OrigTable!G483=\"\",\"\",ScriptText!$B$1&CHAR(10)&ScriptText!$D$1)","v":""},{"$f":"IF(OrigTable!G483=\"\",\"\",TEXT(OrigTable!G483,\"00\"))","v":""},{"$f":"IF(OrigTable!G483=\"\",\"\",ScriptText!$E$1&CHAR(10)&ScriptText!$C$1)","v":""},483]
["<tr>\n<td>802</td>\n</tr>\n\n<tr>\n<td>Math Error—Balance Due of $5 or more on Form 941PR, 942PR, 943PR, (BMF/Spanish)</td>\n</tr>\n<tr>\n<td>Master File Notices</td>\n</tr>",{"$f":"IF(OrigTable!A484=\"\",\"\",ScriptText!$B$1&CHAR(10)&ScriptText!$D$1)","v":"<tr>\n<td>"},{"$f":"IF(OrigTable!A484=\"\",\"\",TEXT(OrigTable!A484,\"00\"))","v":"802"},{"$f":"IF(OrigTable!A484=\"\",\"\",ScriptText!$E$1&CHAR(10)&ScriptText!$C$1)","v":"</td>\n</tr>"},{"$f":"IF(OrigTable!B484=\"\",\"\",ScriptText!$B$1&CHAR(10)&ScriptText!$D$1)","v":""},{"$f":"IF(OrigTable!B484=\"\",\"\",TEXT(OrigTable!B484,\"00\"))","v":""},{"$f":"IF(OrigTable!B484=\"\",\"\",ScriptText!$E$1&CHAR(10)&ScriptText!C479)","v":""},{"$f":"IF(OrigTable!C484=\"\",\"\",ScriptText!$B$1&CHAR(10)&ScriptText!$D$1)","v":"<tr>\n<td>"},{"$f":"IF(OrigTable!C484=\"\",\"\",IF(LEN(OrigTable!C484)>255,LEFT(OrigTable!C484,250)&\". . .\",OrigTable!C484))","v":"Math Error—Balance Due of $5 or more on Form 941PR, 942PR, 943PR, (BMF/Spanish)"},{"$f":"IF(OrigTable!C484=\"\",\"\",ScriptText!$E$1&CHAR(10)&ScriptText!$C$1)","v":"</td>\n</tr>"},{"$f":"IF(OrigTable!D484=\"\",\"\",ScriptText!$B$1&CHAR(10)&ScriptText!$D$1)","v":"<tr>\n<td>"},{"$f":"IF(OrigTable!D484=\"\",\"\",TEXT(OrigTable!D484,\"00\"))","v":"Master File Notices"},{"$f":"IF(OrigTable!D484=\"\",\"\",ScriptText!$E$1&CHAR(10)&ScriptText!$C$1)","v":"</td>\n</tr>"},{"$f":"IF(OrigTable!E484=\"\",\"\",ScriptText!$B$1&CHAR(10)&ScriptText!$D$1)","v":""},{"$f":"IF(OrigTable!E484=\"\",\"\",TEXT(OrigTable!E484,\"00\"))","v":""},{"$f":"IF(OrigTable!E484=\"\",\"\",ScriptText!$E$1&CHAR(10)&ScriptText!$C$1)","v":""},{"$f":"IF(OrigTable!F484=\"\",\"\",ScriptText!$B$1&CHAR(10)&ScriptText!$D$1)","v":""},{"$f":"IF(OrigTable!F484=\"\",\"\",TEXT(OrigTable!F484,\"00\"))","v":""},{"$f":"IF(OrigTable!F484=\"\",\"\",ScriptText!$E$1&CHAR(10)&ScriptText!$C$1)","v":""},{"$f":"IF(OrigTable!G484=\"\",\"\",ScriptText!$B$1&CHAR(10)&ScriptText!$D$1)","v":""},{"$f":"IF(OrigTable!G484=\"\",\"\",TEXT(OrigTable!G484,\"00\"))","v":""},{"$f":"IF(OrigTable!G484=\"\",\"\",ScriptText!$E$1&CHAR(10)&ScriptText!$C$1)","v":""},484]
["<tr>\n<td>811</td>\n</tr>\n\n<tr>\n<td>Math Error—Overpayment of $1 or more on Form 940PR (BMF/Spanish)</td>\n</tr>\n<tr>\n<td>Master File Notices</td>\n</tr>",{"$f":"IF(OrigTable!A485=\"\",\"\",ScriptText!$B$1&CHAR(10)&ScriptText!$D$1)","v":"<tr>\n<td>"},{"$f":"IF(OrigTable!A485=\"\",\"\",TEXT(OrigTable!A485,\"00\"))","v":"811"},{"$f":"IF(OrigTable!A485=\"\",\"\",ScriptText!$E$1&CHAR(10)&ScriptText!$C$1)","v":"</td>\n</tr>"},{"$f":"IF(OrigTable!B485=\"\",\"\",ScriptText!$B$1&CHAR(10)&ScriptText!$D$1)","v":""},{"$f":"IF(OrigTable!B485=\"\",\"\",TEXT(OrigTable!B485,\"00\"))","v":""},{"$f":"IF(OrigTable!B485=\"\",\"\",ScriptText!$E$1&CHAR(10)&ScriptText!C480)","v":""},{"$f":"IF(OrigTable!C485=\"\",\"\",ScriptText!$B$1&CHAR(10)&ScriptText!$D$1)","v":"<tr>\n<td>"},{"$f":"IF(OrigTable!C485=\"\",\"\",IF(LEN(OrigTable!C485)>255,LEFT(OrigTable!C485,250)&\". . .\",OrigTable!C485))","v":"Math Error—Overpayment of $1 or more on Form 940PR (BMF/Spanish)"},{"$f":"IF(OrigTable!C485=\"\",\"\",ScriptText!$E$1&CHAR(10)&ScriptText!$C$1)","v":"</td>\n</tr>"},{"$f":"IF(OrigTable!D485=\"\",\"\",ScriptText!$B$1&CHAR(10)&ScriptText!$D$1)","v":"<tr>\n<td>"},{"$f":"IF(OrigTable!D485=\"\",\"\",TEXT(OrigTable!D485,\"00\"))","v":"Master File Notices"},{"$f":"IF(OrigTable!D485=\"\",\"\",ScriptText!$E$1&CHAR(10)&ScriptText!$C$1)","v":"</td>\n</tr>"},{"$f":"IF(OrigTable!E485=\"\",\"\",ScriptText!$B$1&CHAR(10)&ScriptText!$D$1)","v":""},{"$f":"IF(OrigTable!E485=\"\",\"\",TEXT(OrigTable!E485,\"00\"))","v":""},{"$f":"IF(OrigTable!E485=\"\",\"\",ScriptText!$E$1&CHAR(10)&ScriptText!$C$1)","v":""},{"$f":"IF(OrigTable!F485=\"\",\"\",ScriptText!$B$1&CHAR(10)&ScriptText!$D$1)","v":""},{"$f":"IF(OrigTable!F485=\"\",\"\",TEXT(OrigTable!F485,\"00\"))","v":""},{"$f":"IF(OrigTable!F485=\"\",\"\",ScriptText!$E$1&CHAR(10)&ScriptText!$C$1)","v":""},{"$f":"IF(OrigTable!G485=\"\",\"\",ScriptText!$B$1&CHAR(10)&ScriptText!$D$1)","v":""},{"$f":"IF(OrigTable!G485=\"\",\"\",TEXT(OrigTable!G485,\"00\"))","v":""},{"$f":"IF(OrigTable!G485=\"\",\"\",ScriptText!$E$1&CHAR(10)&ScriptText!$C$1)","v":""},485]
["<tr>\n<td>812</td>\n</tr>\n\n<tr>\n<td>Math Error—Overpayment of $1 or more on Form 941PR, 943PR, 944PR (BMF/Spanish)</td>\n</tr>\n<tr>\n<td>Master File Notices</td>\n</tr>",{"$f":"IF(OrigTable!A486=\"\",\"\",ScriptText!$B$1&CHAR(10)&ScriptText!$D$1)","v":"<tr>\n<td>"},{"$f":"IF(OrigTable!A486=\"\",\"\",TEXT(OrigTable!A486,\"00\"))","v":"812"},{"$f":"IF(OrigTable!A486=\"\",\"\",ScriptText!$E$1&CHAR(10)&ScriptText!$C$1)","v":"</td>\n</tr>"},{"$f":"IF(OrigTable!B486=\"\",\"\",ScriptText!$B$1&CHAR(10)&ScriptText!$D$1)","v":""},{"$f":"IF(OrigTable!B486=\"\",\"\",TEXT(OrigTable!B486,\"00\"))","v":""},{"$f":"IF(OrigTable!B486=\"\",\"\",ScriptText!$E$1&CHAR(10)&ScriptText!C481)","v":""},{"$f":"IF(OrigTable!C486=\"\",\"\",ScriptText!$B$1&CHAR(10)&ScriptText!$D$1)","v":"<tr>\n<td>"},{"$f":"IF(OrigTable!C486=\"\",\"\",IF(LEN(OrigTable!C486)>255,LEFT(OrigTable!C486,250)&\". . .\",OrigTable!C486))","v":"Math Error—Overpayment of $1 or more on Form 941PR, 943PR, 944PR (BMF/Spanish)"},{"$f":"IF(OrigTable!C486=\"\",\"\",ScriptText!$E$1&CHAR(10)&ScriptText!$C$1)","v":"</td>\n</tr>"},{"$f":"IF(OrigTable!D486=\"\",\"\",ScriptText!$B$1&CHAR(10)&ScriptText!$D$1)","v":"<tr>\n<td>"},{"$f":"IF(OrigTable!D486=\"\",\"\",TEXT(OrigTable!D486,\"00\"))","v":"Master File Notices"},{"$f":"IF(OrigTable!D486=\"\",\"\",ScriptText!$E$1&CHAR(10)&ScriptText!$C$1)","v":"</td>\n</tr>"},{"$f":"IF(OrigTable!E486=\"\",\"\",ScriptText!$B$1&CHAR(10)&ScriptText!$D$1)","v":""},{"$f":"IF(OrigTable!E486=\"\",\"\",TEXT(OrigTable!E486,\"00\"))","v":""},{"$f":"IF(OrigTable!E486=\"\",\"\",ScriptText!$E$1&CHAR(10)&ScriptText!$C$1)","v":""},{"$f":"IF(OrigTable!F486=\"\",\"\",ScriptText!$B$1&CHAR(10)&ScriptText!$D$1)","v":""},{"$f":"IF(OrigTable!F486=\"\",\"\",TEXT(OrigTable!F486,\"00\"))","v":""},{"$f":"IF(OrigTable!F486=\"\",\"\",ScriptText!$E$1&CHAR(10)&ScriptText!$C$1)","v":""},{"$f":"IF(OrigTable!G486=\"\",\"\",ScriptText!$B$1&CHAR(10)&ScriptText!$D$1)","v":""},{"$f":"IF(OrigTable!G486=\"\",\"\",TEXT(OrigTable!G486,\"00\"))","v":""},{"$f":"IF(OrigTable!G486=\"\",\"\",ScriptText!$E$1&CHAR(10)&ScriptText!$C$1)","v":""},486]
["<tr>\n<td>834B</td>\n</tr>\n\n<tr>\n<td>FTD/Estimated Payment Discrepancy Notice – Balance Due</td>\n</tr>\n<tr>\n<td>Master File Notices</td>\n</tr>",{"$f":"IF(OrigTable!A487=\"\",\"\",ScriptText!$B$1&CHAR(10)&ScriptText!$D$1)","v":"<tr>\n<td>"},{"$f":"IF(OrigTable!A487=\"\",\"\",TEXT(OrigTable!A487,\"00\"))","v":"834B"},{"$f":"IF(OrigTable!A487=\"\",\"\",ScriptText!$E$1&CHAR(10)&ScriptText!$C$1)","v":"</td>\n</tr>"},{"$f":"IF(OrigTable!B487=\"\",\"\",ScriptText!$B$1&CHAR(10)&ScriptText!$D$1)","v":""},{"$f":"IF(OrigTable!B487=\"\",\"\",TEXT(OrigTable!B487,\"00\"))","v":""},{"$f":"IF(OrigTable!B487=\"\",\"\",ScriptText!$E$1&CHAR(10)&ScriptText!C482)","v":""},{"$f":"IF(OrigTable!C487=\"\",\"\",ScriptText!$B$1&CHAR(10)&ScriptText!$D$1)","v":"<tr>\n<td>"},{"$f":"IF(OrigTable!C487=\"\",\"\",IF(LEN(OrigTable!C487)>255,LEFT(OrigTable!C487,250)&\". . .\",OrigTable!C487))","v":"FTD/Estimated Payment Discrepancy Notice – Balance Due"},{"$f":"IF(OrigTable!C487=\"\",\"\",ScriptText!$E$1&CHAR(10)&ScriptText!$C$1)","v":"</td>\n</tr>"},{"$f":"IF(OrigTable!D487=\"\",\"\",ScriptText!$B$1&CHAR(10)&ScriptText!$D$1)","v":"<tr>\n<td>"},{"$f":"IF(OrigTable!D487=\"\",\"\",TEXT(OrigTable!D487,\"00\"))","v":"Master File Notices"},{"$f":"IF(OrigTable!D487=\"\",\"\",ScriptText!$E$1&CHAR(10)&ScriptText!$C$1)","v":"</td>\n</tr>"},{"$f":"IF(OrigTable!E487=\"\",\"\",ScriptText!$B$1&CHAR(10)&ScriptText!$D$1)","v":""},{"$f":"IF(OrigTable!E487=\"\",\"\",TEXT(OrigTable!E487,\"00\"))","v":""},{"$f":"IF(OrigTable!E487=\"\",\"\",ScriptText!$E$1&CHAR(10)&ScriptText!$C$1)","v":""},{"$f":"IF(OrigTable!F487=\"\",\"\",ScriptText!$B$1&CHAR(10)&ScriptText!$D$1)","v":""},{"$f":"IF(OrigTable!F487=\"\",\"\",TEXT(OrigTable!F487,\"00\"))","v":""},{"$f":"IF(OrigTable!F487=\"\",\"\",ScriptText!$E$1&CHAR(10)&ScriptText!$C$1)","v":""},{"$f":"IF(OrigTable!G487=\"\",\"\",ScriptText!$B$1&CHAR(10)&ScriptText!$D$1)","v":""},{"$f":"IF(OrigTable!G487=\"\",\"\",TEXT(OrigTable!G487,\"00\"))","v":""},{"$f":"IF(OrigTable!G487=\"\",\"\",ScriptText!$E$1&CHAR(10)&ScriptText!$C$1)","v":""},487]
["<tr>\n<td>834R</td>\n</tr>\n\n<tr>\n<td>FTD/Estimated Payment Discrepancy Notice – Refund</td>\n</tr>\n<tr>\n<td>Master File Notices</td>\n</tr>",{"$f":"IF(OrigTable!A488=\"\",\"\",ScriptText!$B$1&CHAR(10)&ScriptText!$D$1)","v":"<tr>\n<td>"},{"$f":"IF(OrigTable!A488=\"\",\"\",TEXT(OrigTable!A488,\"00\"))","v":"834R"},{"$f":"IF(OrigTable!A488=\"\",\"\",ScriptText!$E$1&CHAR(10)&ScriptText!$C$1)","v":"</td>\n</tr>"},{"$f":"IF(OrigTable!B488=\"\",\"\",ScriptText!$B$1&CHAR(10)&ScriptText!$D$1)","v":""},{"$f":"IF(OrigTable!B488=\"\",\"\",TEXT(OrigTable!B488,\"00\"))","v":""},{"$f":"IF(OrigTable!B488=\"\",\"\",ScriptText!$E$1&CHAR(10)&ScriptText!C483)","v":""},{"$f":"IF(OrigTable!C488=\"\",\"\",ScriptText!$B$1&CHAR(10)&ScriptText!$D$1)","v":"<tr>\n<td>"},{"$f":"IF(OrigTable!C488=\"\",\"\",IF(LEN(OrigTable!C488)>255,LEFT(OrigTable!C488,250)&\". . .\",OrigTable!C488))","v":"FTD/Estimated Payment Discrepancy Notice – Refund"},{"$f":"IF(OrigTable!C488=\"\",\"\",ScriptText!$E$1&CHAR(10)&ScriptText!$C$1)","v":"</td>\n</tr>"},{"$f":"IF(OrigTable!D488=\"\",\"\",ScriptText!$B$1&CHAR(10)&ScriptText!$D$1)","v":"<tr>\n<td>"},{"$f":"IF(OrigTable!D488=\"\",\"\",TEXT(OrigTable!D488,\"00\"))","v":"Master File Notices"},{"$f":"IF(OrigTable!D488=\"\",\"\",ScriptText!$E$1&CHAR(10)&ScriptText!$C$1)","v":"</td>\n</tr>"},{"$f":"IF(OrigTable!E488=\"\",\"\",ScriptText!$B$1&CHAR(10)&ScriptText!$D$1)","v":""},{"$f":"IF(OrigTable!E488=\"\",\"\",TEXT(OrigTable!E488,\"00\"))","v":""},{"$f":"IF(OrigTable!E488=\"\",\"\",ScriptText!$E$1&CHAR(10)&ScriptText!$C$1)","v":""},{"$f":"IF(OrigTable!F488=\"\",\"\",ScriptText!$B$1&CHAR(10)&ScriptText!$D$1)","v":""},{"$f":"IF(OrigTable!F488=\"\",\"\",TEXT(OrigTable!F488,\"00\"))","v":""},{"$f":"IF(OrigTable!F488=\"\",\"\",ScriptText!$E$1&CHAR(10)&ScriptText!$C$1)","v":""},{"$f":"IF(OrigTable!G488=\"\",\"\",ScriptText!$B$1&CHAR(10)&ScriptText!$D$1)","v":""},{"$f":"IF(OrigTable!G488=\"\",\"\",TEXT(OrigTable!G488,\"00\"))","v":""},{"$f":"IF(OrigTable!G488=\"\",\"\",ScriptText!$E$1&CHAR(10)&ScriptText!$C$1)","v":""},488]
["<tr>\n<td>848A</td>\n</tr>\n\n<tr>\n<td>Notification of Change of address sent to new address, Spanish</td>\n</tr>\n<tr>\n<td>Master File Notices</td>\n</tr>",{"$f":"IF(OrigTable!A489=\"\",\"\",ScriptText!$B$1&CHAR(10)&ScriptText!$D$1)","v":"<tr>\n<td>"},{"$f":"IF(OrigTable!A489=\"\",\"\",TEXT(OrigTable!A489,\"00\"))","v":"848A"},{"$f":"IF(OrigTable!A489=\"\",\"\",ScriptText!$E$1&CHAR(10)&ScriptText!$C$1)","v":"</td>\n</tr>"},{"$f":"IF(OrigTable!B489=\"\",\"\",ScriptText!$B$1&CHAR(10)&ScriptText!$D$1)","v":""},{"$f":"IF(OrigTable!B489=\"\",\"\",TEXT(OrigTable!B489,\"00\"))","v":""},{"$f":"IF(OrigTable!B489=\"\",\"\",ScriptText!$E$1&CHAR(10)&ScriptText!C484)","v":""},{"$f":"IF(OrigTable!C489=\"\",\"\",ScriptText!$B$1&CHAR(10)&ScriptText!$D$1)","v":"<tr>\n<td>"},{"$f":"IF(OrigTable!C489=\"\",\"\",IF(LEN(OrigTable!C489)>255,LEFT(OrigTable!C489,250)&\". . .\",OrigTable!C489))","v":"Notification of Change of address sent to new address, Spanish"},{"$f":"IF(OrigTable!C489=\"\",\"\",ScriptText!$E$1&CHAR(10)&ScriptText!$C$1)","v":"</td>\n</tr>"},{"$f":"IF(OrigTable!D489=\"\",\"\",ScriptText!$B$1&CHAR(10)&ScriptText!$D$1)","v":"<tr>\n<td>"},{"$f":"IF(OrigTable!D489=\"\",\"\",TEXT(OrigTable!D489,\"00\"))","v":"Master File Notices"},{"$f":"IF(OrigTable!D489=\"\",\"\",ScriptText!$E$1&CHAR(10)&ScriptText!$C$1)","v":"</td>\n</tr>"},{"$f":"IF(OrigTable!E489=\"\",\"\",ScriptText!$B$1&CHAR(10)&ScriptText!$D$1)","v":""},{"$f":"IF(OrigTable!E489=\"\",\"\",TEXT(OrigTable!E489,\"00\"))","v":""},{"$f":"IF(OrigTable!E489=\"\",\"\",ScriptText!$E$1&CHAR(10)&ScriptText!$C$1)","v":""},{"$f":"IF(OrigTable!F489=\"\",\"\",ScriptText!$B$1&CHAR(10)&ScriptText!$D$1)","v":""},{"$f":"IF(OrigTable!F489=\"\",\"\",TEXT(OrigTable!F489,\"00\"))","v":""},{"$f":"IF(OrigTable!F489=\"\",\"\",ScriptText!$E$1&CHAR(10)&ScriptText!$C$1)","v":""},{"$f":"IF(OrigTable!G489=\"\",\"\",ScriptText!$B$1&CHAR(10)&ScriptText!$D$1)","v":""},{"$f":"IF(OrigTable!G489=\"\",\"\",TEXT(OrigTable!G489,\"00\"))","v":""},{"$f":"IF(OrigTable!G489=\"\",\"\",ScriptText!$E$1&CHAR(10)&ScriptText!$C$1)","v":""},489]
["<tr>\n<td>848B</td>\n</tr>\n\n<tr>\n<td>Notification of Change of address sent to old address</td>\n</tr>\n<tr>\n<td>Master File Notices</td>\n</tr>",{"$f":"IF(OrigTable!A490=\"\",\"\",ScriptText!$B$1&CHAR(10)&ScriptText!$D$1)","v":"<tr>\n<td>"},{"$f":"IF(OrigTable!A490=\"\",\"\",TEXT(OrigTable!A490,\"00\"))","v":"848B"},{"$f":"IF(OrigTable!A490=\"\",\"\",ScriptText!$E$1&CHAR(10)&ScriptText!$C$1)","v":"</td>\n</tr>"},{"$f":"IF(OrigTable!B490=\"\",\"\",ScriptText!$B$1&CHAR(10)&ScriptText!$D$1)","v":""},{"$f":"IF(OrigTable!B490=\"\",\"\",TEXT(OrigTable!B490,\"00\"))","v":""},{"$f":"IF(OrigTable!B490=\"\",\"\",ScriptText!$E$1&CHAR(10)&ScriptText!C485)","v":""},{"$f":"IF(OrigTable!C490=\"\",\"\",ScriptText!$B$1&CHAR(10)&ScriptText!$D$1)","v":"<tr>\n<td>"},{"$f":"IF(OrigTable!C490=\"\",\"\",IF(LEN(OrigTable!C490)>255,LEFT(OrigTable!C490,250)&\". . .\",OrigTable!C490))","v":"Notification of Change of address sent to old address"},{"$f":"IF(OrigTable!C490=\"\",\"\",ScriptText!$E$1&CHAR(10)&ScriptText!$C$1)","v":"</td>\n</tr>"},{"$f":"IF(OrigTable!D490=\"\",\"\",ScriptText!$B$1&CHAR(10)&ScriptText!$D$1)","v":"<tr>\n<td>"},{"$f":"IF(OrigTable!D490=\"\",\"\",TEXT(OrigTable!D490,\"00\"))","v":"Master File Notices"},{"$f":"IF(OrigTable!D490=\"\",\"\",ScriptText!$E$1&CHAR(10)&ScriptText!$C$1)","v":"</td>\n</tr>"},{"$f":"IF(OrigTable!E490=\"\",\"\",ScriptText!$B$1&CHAR(10)&ScriptText!$D$1)","v":""},{"$f":"IF(OrigTable!E490=\"\",\"\",TEXT(OrigTable!E490,\"00\"))","v":""},{"$f":"IF(OrigTable!E490=\"\",\"\",ScriptText!$E$1&CHAR(10)&ScriptText!$C$1)","v":""},{"$f":"IF(OrigTable!F490=\"\",\"\",ScriptText!$B$1&CHAR(10)&ScriptText!$D$1)","v":""},{"$f":"IF(OrigTable!F490=\"\",\"\",TEXT(OrigTable!F490,\"00\"))","v":""},{"$f":"IF(OrigTable!F490=\"\",\"\",ScriptText!$E$1&CHAR(10)&ScriptText!$C$1)","v":""},{"$f":"IF(OrigTable!G490=\"\",\"\",ScriptText!$B$1&CHAR(10)&ScriptText!$D$1)","v":""},{"$f":"IF(OrigTable!G490=\"\",\"\",TEXT(OrigTable!G490,\"00\"))","v":""},{"$f":"IF(OrigTable!G490=\"\",\"\",ScriptText!$E$1&CHAR(10)&ScriptText!$C$1)","v":""},490]
["<tr>\n<td>838</td>\n</tr>\n\n<tr>\n<td>We applied your overpayment to other Federal Taxes</td>\n</tr>\n<tr>\n<td>Master File Notices</td>\n</tr>",{"$f":"IF(OrigTable!A491=\"\",\"\",ScriptText!$B$1&CHAR(10)&ScriptText!$D$1)","v":"<tr>\n<td>"},{"$f":"IF(OrigTable!A491=\"\",\"\",TEXT(OrigTable!A491,\"00\"))","v":"838"},{"$f":"IF(OrigTable!A491=\"\",\"\",ScriptText!$E$1&CHAR(10)&ScriptText!$C$1)","v":"</td>\n</tr>"},{"$f":"IF(OrigTable!B491=\"\",\"\",ScriptText!$B$1&CHAR(10)&ScriptText!$D$1)","v":""},{"$f":"IF(OrigTable!B491=\"\",\"\",TEXT(OrigTable!B491,\"00\"))","v":""},{"$f":"IF(OrigTable!B491=\"\",\"\",ScriptText!$E$1&CHAR(10)&ScriptText!C486)","v":""},{"$f":"IF(OrigTable!C491=\"\",\"\",ScriptText!$B$1&CHAR(10)&ScriptText!$D$1)","v":"<tr>\n<td>"},{"$f":"IF(OrigTable!C491=\"\",\"\",IF(LEN(OrigTable!C491)>255,LEFT(OrigTable!C491,250)&\". . .\",OrigTable!C491))","v":"We applied your overpayment to other Federal Taxes"},{"$f":"IF(OrigTable!C491=\"\",\"\",ScriptText!$E$1&CHAR(10)&ScriptText!$C$1)","v":"</td>\n</tr>"},{"$f":"IF(OrigTable!D491=\"\",\"\",ScriptText!$B$1&CHAR(10)&ScriptText!$D$1)","v":"<tr>\n<td>"},{"$f":"IF(OrigTable!D491=\"\",\"\",TEXT(OrigTable!D491,\"00\"))","v":"Master File Notices"},{"$f":"IF(OrigTable!D491=\"\",\"\",ScriptText!$E$1&CHAR(10)&ScriptText!$C$1)","v":"</td>\n</tr>"},{"$f":"IF(OrigTable!E491=\"\",\"\",ScriptText!$B$1&CHAR(10)&ScriptText!$D$1)","v":""},{"$f":"IF(OrigTable!E491=\"\",\"\",TEXT(OrigTable!E491,\"00\"))","v":""},{"$f":"IF(OrigTable!E491=\"\",\"\",ScriptText!$E$1&CHAR(10)&ScriptText!$C$1)","v":""},{"$f":"IF(OrigTable!F491=\"\",\"\",ScriptText!$B$1&CHAR(10)&ScriptText!$D$1)","v":""},{"$f":"IF(OrigTable!F491=\"\",\"\",TEXT(OrigTable!F491,\"00\"))","v":""},{"$f":"IF(OrigTable!F491=\"\",\"\",ScriptText!$E$1&CHAR(10)&ScriptText!$C$1)","v":""},{"$f":"IF(OrigTable!G491=\"\",\"\",ScriptText!$B$1&CHAR(10)&ScriptText!$D$1)","v":""},{"$f":"IF(OrigTable!G491=\"\",\"\",TEXT(OrigTable!G491,\"00\"))","v":""},{"$f":"IF(OrigTable!G491=\"\",\"\",ScriptText!$E$1&CHAR(10)&ScriptText!$C$1)","v":""},491]
["<tr>\n<td>861</td>\n</tr>\n\n<tr>\n<td>No Math Error—First Notice of Balance Due—Forms 940PR, 941PR, 942PR, 943PR (BMF/Spanish)</td>\n</tr>\n<tr>\n<td>Master File Notices</td>\n</tr>",{"$f":"IF(OrigTable!A492=\"\",\"\",ScriptText!$B$1&CHAR(10)&ScriptText!$D$1)","v":"<tr>\n<td>"},{"$f":"IF(OrigTable!A492=\"\",\"\",TEXT(OrigTable!A492,\"00\"))","v":"861"},{"$f":"IF(OrigTable!A492=\"\",\"\",ScriptText!$E$1&CHAR(10)&ScriptText!$C$1)","v":"</td>\n</tr>"},{"$f":"IF(OrigTable!B492=\"\",\"\",ScriptText!$B$1&CHAR(10)&ScriptText!$D$1)","v":""},{"$f":"IF(OrigTable!B492=\"\",\"\",TEXT(OrigTable!B492,\"00\"))","v":""},{"$f":"IF(OrigTable!B492=\"\",\"\",ScriptText!$E$1&CHAR(10)&ScriptText!C487)","v":""},{"$f":"IF(OrigTable!C492=\"\",\"\",ScriptText!$B$1&CHAR(10)&ScriptText!$D$1)","v":"<tr>\n<td>"},{"$f":"IF(OrigTable!C492=\"\",\"\",IF(LEN(OrigTable!C492)>255,LEFT(OrigTable!C492,250)&\". . .\",OrigTable!C492))","v":"No Math Error—First Notice of Balance Due—Forms 940PR, 941PR, 942PR, 943PR (BMF/Spanish)"},{"$f":"IF(OrigTable!C492=\"\",\"\",ScriptText!$E$1&CHAR(10)&ScriptText!$C$1)","v":"</td>\n</tr>"},{"$f":"IF(OrigTable!D492=\"\",\"\",ScriptText!$B$1&CHAR(10)&ScriptText!$D$1)","v":"<tr>\n<td>"},{"$f":"IF(OrigTable!D492=\"\",\"\",TEXT(OrigTable!D492,\"00\"))","v":"Master File Notices"},{"$f":"IF(OrigTable!D492=\"\",\"\",ScriptText!$E$1&CHAR(10)&ScriptText!$C$1)","v":"</td>\n</tr>"},{"$f":"IF(OrigTable!E492=\"\",\"\",ScriptText!$B$1&CHAR(10)&ScriptText!$D$1)","v":""},{"$f":"IF(OrigTable!E492=\"\",\"\",TEXT(OrigTable!E492,\"00\"))","v":""},{"$f":"IF(OrigTable!E492=\"\",\"\",ScriptText!$E$1&CHAR(10)&ScriptText!$C$1)","v":""},{"$f":"IF(OrigTable!F492=\"\",\"\",ScriptText!$B$1&CHAR(10)&ScriptText!$D$1)","v":""},{"$f":"IF(OrigTable!F492=\"\",\"\",TEXT(OrigTable!F492,\"00\"))","v":""},{"$f":"IF(OrigTable!F492=\"\",\"\",ScriptText!$E$1&CHAR(10)&ScriptText!$C$1)","v":""},{"$f":"IF(OrigTable!G492=\"\",\"\",ScriptText!$B$1&CHAR(10)&ScriptText!$D$1)","v":""},{"$f":"IF(OrigTable!G492=\"\",\"\",TEXT(OrigTable!G492,\"00\"))","v":""},{"$f":"IF(OrigTable!G492=\"\",\"\",ScriptText!$E$1&CHAR(10)&ScriptText!$C$1)","v":""},492]
["<tr>\n<td>865</td>\n</tr>\n\n<tr>\n<td>Penalty for Dishonored Check—Form 940PR, 941PR or 943PR (Spanish) (after 01-01-2011, will include penalty on all dishonored payments).</td>\n</tr>\n<tr>\n<td>Master File Notices</td>\n</tr>",{"$f":"IF(OrigTable!A493=\"\",\"\",ScriptText!$B$1&CHAR(10)&ScriptText!$D$1)","v":"<tr>\n<td>"},{"$f":"IF(OrigTable!A493=\"\",\"\",TEXT(OrigTable!A493,\"00\"))","v":"865"},{"$f":"IF(OrigTable!A493=\"\",\"\",ScriptText!$E$1&CHAR(10)&ScriptText!$C$1)","v":"</td>\n</tr>"},{"$f":"IF(OrigTable!B493=\"\",\"\",ScriptText!$B$1&CHAR(10)&ScriptText!$D$1)","v":""},{"$f":"IF(OrigTable!B493=\"\",\"\",TEXT(OrigTable!B493,\"00\"))","v":""},{"$f":"IF(OrigTable!B493=\"\",\"\",ScriptText!$E$1&CHAR(10)&ScriptText!C488)","v":""},{"$f":"IF(OrigTable!C493=\"\",\"\",ScriptText!$B$1&CHAR(10)&ScriptText!$D$1)","v":"<tr>\n<td>"},{"$f":"IF(OrigTable!C493=\"\",\"\",IF(LEN(OrigTable!C493)>255,LEFT(OrigTable!C493,250)&\". . .\",OrigTable!C493))","v":"Penalty for Dishonored Check—Form 940PR, 941PR or 943PR (Spanish) (after 01-01-2011, will include penalty on all dishonored payments)."},{"$f":"IF(OrigTable!C493=\"\",\"\",ScriptText!$E$1&CHAR(10)&ScriptText!$C$1)","v":"</td>\n</tr>"},{"$f":"IF(OrigTable!D493=\"\",\"\",ScriptText!$B$1&CHAR(10)&ScriptText!$D$1)","v":"<tr>\n<td>"},{"$f":"IF(OrigTable!D493=\"\",\"\",TEXT(OrigTable!D493,\"00\"))","v":"Master File Notices"},{"$f":"IF(OrigTable!D493=\"\",\"\",ScriptText!$E$1&CHAR(10)&ScriptText!$C$1)","v":"</td>\n</tr>"},{"$f":"IF(OrigTable!E493=\"\",\"\",ScriptText!$B$1&CHAR(10)&ScriptText!$D$1)","v":""},{"$f":"IF(OrigTable!E493=\"\",\"\",TEXT(OrigTable!E493,\"00\"))","v":""},{"$f":"IF(OrigTable!E493=\"\",\"\",ScriptText!$E$1&CHAR(10)&ScriptText!$C$1)","v":""},{"$f":"IF(OrigTable!F493=\"\",\"\",ScriptText!$B$1&CHAR(10)&ScriptText!$D$1)","v":""},{"$f":"IF(OrigTable!F493=\"\",\"\",TEXT(OrigTable!F493,\"00\"))","v":""},{"$f":"IF(OrigTable!F493=\"\",\"\",ScriptText!$E$1&CHAR(10)&ScriptText!$C$1)","v":""},{"$f":"IF(OrigTable!G493=\"\",\"\",ScriptText!$B$1&CHAR(10)&ScriptText!$D$1)","v":""},{"$f":"IF(OrigTable!G493=\"\",\"\",TEXT(OrigTable!G493,\"00\"))","v":""},{"$f":"IF(OrigTable!G493=\"\",\"\",ScriptText!$E$1&CHAR(10)&ScriptText!$C$1)","v":""},493]
["<tr>\n<td>910</td>\n</tr>\n\n<tr>\n<td>Audit/DP Tax Adjustment Notices (BMF/Spanish)</td>\n</tr>\n<tr>\n<td>Master File Notices</td>\n</tr>",{"$f":"IF(OrigTable!A494=\"\",\"\",ScriptText!$B$1&CHAR(10)&ScriptText!$D$1)","v":"<tr>\n<td>"},{"$f":"IF(OrigTable!A494=\"\",\"\",TEXT(OrigTable!A494,\"00\"))","v":"910"},{"$f":"IF(OrigTable!A494=\"\",\"\",ScriptText!$E$1&CHAR(10)&ScriptText!$C$1)","v":"</td>\n</tr>"},{"$f":"IF(OrigTable!B494=\"\",\"\",ScriptText!$B$1&CHAR(10)&ScriptText!$D$1)","v":""},{"$f":"IF(OrigTable!B494=\"\",\"\",TEXT(OrigTable!B494,\"00\"))","v":""},{"$f":"IF(OrigTable!B494=\"\",\"\",ScriptText!$E$1&CHAR(10)&ScriptText!C489)","v":""},{"$f":"IF(OrigTable!C494=\"\",\"\",ScriptText!$B$1&CHAR(10)&ScriptText!$D$1)","v":"<tr>\n<td>"},{"$f":"IF(OrigTable!C494=\"\",\"\",IF(LEN(OrigTable!C494)>255,LEFT(OrigTable!C494,250)&\". . .\",OrigTable!C494))","v":"Audit/DP Tax Adjustment Notices (BMF/Spanish)"},{"$f":"IF(OrigTable!C494=\"\",\"\",ScriptText!$E$1&CHAR(10)&ScriptText!$C$1)","v":"</td>\n</tr>"},{"$f":"IF(OrigTable!D494=\"\",\"\",ScriptText!$B$1&CHAR(10)&ScriptText!$D$1)","v":"<tr>\n<td>"},{"$f":"IF(OrigTable!D494=\"\",\"\",TEXT(OrigTable!D494,\"00\"))","v":"Master File Notices"},{"$f":"IF(OrigTable!D494=\"\",\"\",ScriptText!$E$1&CHAR(10)&ScriptText!$C$1)","v":"</td>\n</tr>"},{"$f":"IF(OrigTable!E494=\"\",\"\",ScriptText!$B$1&CHAR(10)&ScriptText!$D$1)","v":""},{"$f":"IF(OrigTable!E494=\"\",\"\",TEXT(OrigTable!E494,\"00\"))","v":""},{"$f":"IF(OrigTable!E494=\"\",\"\",ScriptText!$E$1&CHAR(10)&ScriptText!$C$1)","v":""},{"$f":"IF(OrigTable!F494=\"\",\"\",ScriptText!$B$1&CHAR(10)&ScriptText!$D$1)","v":""},{"$f":"IF(OrigTable!F494=\"\",\"\",TEXT(OrigTable!F494,\"00\"))","v":""},{"$f":"IF(OrigTable!F494=\"\",\"\",ScriptText!$E$1&CHAR(10)&ScriptText!$C$1)","v":""},{"$f":"IF(OrigTable!G494=\"\",\"\",ScriptText!$B$1&CHAR(10)&ScriptText!$D$1)","v":""},{"$f":"IF(OrigTable!G494=\"\",\"\",TEXT(OrigTable!G494,\"00\"))","v":""},{"$f":"IF(OrigTable!G494=\"\",\"\",ScriptText!$E$1&CHAR(10)&ScriptText!$C$1)","v":""},494]
["<tr>\n<td>920</td>\n</tr>\n\n<tr>\n<td>Audit/DP Tax Adjustment Notices (BMF/Spanish)</td>\n</tr>\n<tr>\n<td>Master File Notices</td>\n</tr>",{"$f":"IF(OrigTable!A495=\"\",\"\",ScriptText!$B$1&CHAR(10)&ScriptText!$D$1)","v":"<tr>\n<td>"},{"$f":"IF(OrigTable!A495=\"\",\"\",TEXT(OrigTable!A495,\"00\"))","v":"920"},{"$f":"IF(OrigTable!A495=\"\",\"\",ScriptText!$E$1&CHAR(10)&ScriptText!$C$1)","v":"</td>\n</tr>"},{"$f":"IF(OrigTable!B495=\"\",\"\",ScriptText!$B$1&CHAR(10)&ScriptText!$D$1)","v":""},{"$f":"IF(OrigTable!B495=\"\",\"\",TEXT(OrigTable!B495,\"00\"))","v":""},{"$f":"IF(OrigTable!B495=\"\",\"\",ScriptText!$E$1&CHAR(10)&ScriptText!C490)","v":""},{"$f":"IF(OrigTable!C495=\"\",\"\",ScriptText!$B$1&CHAR(10)&ScriptText!$D$1)","v":"<tr>\n<td>"},{"$f":"IF(OrigTable!C495=\"\",\"\",IF(LEN(OrigTable!C495)>255,LEFT(OrigTable!C495,250)&\". . .\",OrigTable!C495))","v":"Audit/DP Tax Adjustment Notices (BMF/Spanish)"},{"$f":"IF(OrigTable!C495=\"\",\"\",ScriptText!$E$1&CHAR(10)&ScriptText!$C$1)","v":"</td>\n</tr>"},{"$f":"IF(OrigTable!D495=\"\",\"\",ScriptText!$B$1&CHAR(10)&ScriptText!$D$1)","v":"<tr>\n<td>"},{"$f":"IF(OrigTable!D495=\"\",\"\",TEXT(OrigTable!D495,\"00\"))","v":"Master File Notices"},{"$f":"IF(OrigTable!D495=\"\",\"\",ScriptText!$E$1&CHAR(10)&ScriptText!$C$1)","v":"</td>\n</tr>"},{"$f":"IF(OrigTable!E495=\"\",\"\",ScriptText!$B$1&CHAR(10)&ScriptText!$D$1)","v":""},{"$f":"IF(OrigTable!E495=\"\",\"\",TEXT(OrigTable!E495,\"00\"))","v":""},{"$f":"IF(OrigTable!E495=\"\",\"\",ScriptText!$E$1&CHAR(10)&ScriptText!$C$1)","v":""},{"$f":"IF(OrigTable!F495=\"\",\"\",ScriptText!$B$1&CHAR(10)&ScriptText!$D$1)","v":""},{"$f":"IF(OrigTable!F495=\"\",\"\",TEXT(OrigTable!F495,\"00\"))","v":""},{"$f":"IF(OrigTable!F495=\"\",\"\",ScriptText!$E$1&CHAR(10)&ScriptText!$C$1)","v":""},{"$f":"IF(OrigTable!G495=\"\",\"\",ScriptText!$B$1&CHAR(10)&ScriptText!$D$1)","v":""},{"$f":"IF(OrigTable!G495=\"\",\"\",TEXT(OrigTable!G495,\"00\"))","v":""},{"$f":"IF(OrigTable!G495=\"\",\"\",ScriptText!$E$1&CHAR(10)&ScriptText!$C$1)","v":""},495]
["<tr>\n<td>950A</td>\n</tr>\n\n<tr>\n<td>No longer eligible to file F944PR</td>\n</tr>\n<tr>\n<td>Master File Notices</td>\n</tr>",{"$f":"IF(OrigTable!A496=\"\",\"\",ScriptText!$B$1&CHAR(10)&ScriptText!$D$1)","v":"<tr>\n<td>"},{"$f":"IF(OrigTable!A496=\"\",\"\",TEXT(OrigTable!A496,\"00\"))","v":"950A"},{"$f":"IF(OrigTable!A496=\"\",\"\",ScriptText!$E$1&CHAR(10)&ScriptText!$C$1)","v":"</td>\n</tr>"},{"$f":"IF(OrigTable!B496=\"\",\"\",ScriptText!$B$1&CHAR(10)&ScriptText!$D$1)","v":""},{"$f":"IF(OrigTable!B496=\"\",\"\",TEXT(OrigTable!B496,\"00\"))","v":""},{"$f":"IF(OrigTable!B496=\"\",\"\",ScriptText!$E$1&CHAR(10)&ScriptText!C491)","v":""},{"$f":"IF(OrigTable!C496=\"\",\"\",ScriptText!$B$1&CHAR(10)&ScriptText!$D$1)","v":"<tr>\n<td>"},{"$f":"IF(OrigTable!C496=\"\",\"\",IF(LEN(OrigTable!C496)>255,LEFT(OrigTable!C496,250)&\". . .\",OrigTable!C496))","v":"No longer eligible to file F944PR"},{"$f":"IF(OrigTable!C496=\"\",\"\",ScriptText!$E$1&CHAR(10)&ScriptText!$C$1)","v":"</td>\n</tr>"},{"$f":"IF(OrigTable!D496=\"\",\"\",ScriptText!$B$1&CHAR(10)&ScriptText!$D$1)","v":"<tr>\n<td>"},{"$f":"IF(OrigTable!D496=\"\",\"\",TEXT(OrigTable!D496,\"00\"))","v":"Master File Notices"},{"$f":"IF(OrigTable!D496=\"\",\"\",ScriptText!$E$1&CHAR(10)&ScriptText!$C$1)","v":"</td>\n</tr>"},{"$f":"IF(OrigTable!E496=\"\",\"\",ScriptText!$B$1&CHAR(10)&ScriptText!$D$1)","v":""},{"$f":"IF(OrigTable!E496=\"\",\"\",TEXT(OrigTable!E496,\"00\"))","v":""},{"$f":"IF(OrigTable!E496=\"\",\"\",ScriptText!$E$1&CHAR(10)&ScriptText!$C$1)","v":""},{"$f":"IF(OrigTable!F496=\"\",\"\",ScriptText!$B$1&CHAR(10)&ScriptText!$D$1)","v":""},{"$f":"IF(OrigTable!F496=\"\",\"\",TEXT(OrigTable!F496,\"00\"))","v":""},{"$f":"IF(OrigTable!F496=\"\",\"\",ScriptText!$E$1&CHAR(10)&ScriptText!$C$1)","v":""},{"$f":"IF(OrigTable!G496=\"\",\"\",ScriptText!$B$1&CHAR(10)&ScriptText!$D$1)","v":""},{"$f":"IF(OrigTable!G496=\"\",\"\",TEXT(OrigTable!G496,\"00\"))","v":""},{"$f":"IF(OrigTable!G496=\"\",\"\",ScriptText!$E$1&CHAR(10)&ScriptText!$C$1)","v":""},496]
["<tr>\n<td>950B</td>\n</tr>\n\n<tr>\n<td>No longer eligible to file F944PR</td>\n</tr>\n<tr>\n<td>Master File Notices</td>\n</tr>",{"$f":"IF(OrigTable!A497=\"\",\"\",ScriptText!$B$1&CHAR(10)&ScriptText!$D$1)","v":"<tr>\n<td>"},{"$f":"IF(OrigTable!A497=\"\",\"\",TEXT(OrigTable!A497,\"00\"))","v":"950B"},{"$f":"IF(OrigTable!A497=\"\",\"\",ScriptText!$E$1&CHAR(10)&ScriptText!$C$1)","v":"</td>\n</tr>"},{"$f":"IF(OrigTable!B497=\"\",\"\",ScriptText!$B$1&CHAR(10)&ScriptText!$D$1)","v":""},{"$f":"IF(OrigTable!B497=\"\",\"\",TEXT(OrigTable!B497,\"00\"))","v":""},{"$f":"IF(OrigTable!B497=\"\",\"\",ScriptText!$E$1&CHAR(10)&ScriptText!C492)","v":""},{"$f":"IF(OrigTable!C497=\"\",\"\",ScriptText!$B$1&CHAR(10)&ScriptText!$D$1)","v":"<tr>\n<td>"},{"$f":"IF(OrigTable!C497=\"\",\"\",IF(LEN(OrigTable!C497)>255,LEFT(OrigTable!C497,250)&\". . .\",OrigTable!C497))","v":"No longer eligible to file F944PR"},{"$f":"IF(OrigTable!C497=\"\",\"\",ScriptText!$E$1&CHAR(10)&ScriptText!$C$1)","v":"</td>\n</tr>"},{"$f":"IF(OrigTable!D497=\"\",\"\",ScriptText!$B$1&CHAR(10)&ScriptText!$D$1)","v":"<tr>\n<td>"},{"$f":"IF(OrigTable!D497=\"\",\"\",TEXT(OrigTable!D497,\"00\"))","v":"Master File Notices"},{"$f":"IF(OrigTable!D497=\"\",\"\",ScriptText!$E$1&CHAR(10)&ScriptText!$C$1)","v":"</td>\n</tr>"},{"$f":"IF(OrigTable!E497=\"\",\"\",ScriptText!$B$1&CHAR(10)&ScriptText!$D$1)","v":""},{"$f":"IF(OrigTable!E497=\"\",\"\",TEXT(OrigTable!E497,\"00\"))","v":""},{"$f":"IF(OrigTable!E497=\"\",\"\",ScriptText!$E$1&CHAR(10)&ScriptText!$C$1)","v":""},{"$f":"IF(OrigTable!F497=\"\",\"\",ScriptText!$B$1&CHAR(10)&ScriptText!$D$1)","v":""},{"$f":"IF(OrigTable!F497=\"\",\"\",TEXT(OrigTable!F497,\"00\"))","v":""},{"$f":"IF(OrigTable!F497=\"\",\"\",ScriptText!$E$1&CHAR(10)&ScriptText!$C$1)","v":""},{"$f":"IF(OrigTable!G497=\"\",\"\",ScriptText!$B$1&CHAR(10)&ScriptText!$D$1)","v":""},{"$f":"IF(OrigTable!G497=\"\",\"\",TEXT(OrigTable!G497,\"00\"))","v":""},{"$f":"IF(OrigTable!G497=\"\",\"\",ScriptText!$E$1&CHAR(10)&ScriptText!$C$1)","v":""},497]
["<tr>\n<td>950C</td>\n</tr>\n\n<tr>\n<td>No longer eligible to file F944PR</td>\n</tr>\n<tr>\n<td>Master File Notices</td>\n</tr>",{"$f":"IF(OrigTable!A498=\"\",\"\",ScriptText!$B$1&CHAR(10)&ScriptText!$D$1)","v":"<tr>\n<td>"},{"$f":"IF(OrigTable!A498=\"\",\"\",TEXT(OrigTable!A498,\"00\"))","v":"950C"},{"$f":"IF(OrigTable!A498=\"\",\"\",ScriptText!$E$1&CHAR(10)&ScriptText!$C$1)","v":"</td>\n</tr>"},{"$f":"IF(OrigTable!B498=\"\",\"\",ScriptText!$B$1&CHAR(10)&ScriptText!$D$1)","v":""},{"$f":"IF(OrigTable!B498=\"\",\"\",TEXT(OrigTable!B498,\"00\"))","v":""},{"$f":"IF(OrigTable!B498=\"\",\"\",ScriptText!$E$1&CHAR(10)&ScriptText!C493)","v":""},{"$f":"IF(OrigTable!C498=\"\",\"\",ScriptText!$B$1&CHAR(10)&ScriptText!$D$1)","v":"<tr>\n<td>"},{"$f":"IF(OrigTable!C498=\"\",\"\",IF(LEN(OrigTable!C498)>255,LEFT(OrigTable!C498,250)&\". . .\",OrigTable!C498))","v":"No longer eligible to file F944PR"},{"$f":"IF(OrigTable!C498=\"\",\"\",ScriptText!$E$1&CHAR(10)&ScriptText!$C$1)","v":"</td>\n</tr>"},{"$f":"IF(OrigTable!D498=\"\",\"\",ScriptText!$B$1&CHAR(10)&ScriptText!$D$1)","v":"<tr>\n<td>"},{"$f":"IF(OrigTable!D498=\"\",\"\",TEXT(OrigTable!D498,\"00\"))","v":"Master File Notices"},{"$f":"IF(OrigTable!D498=\"\",\"\",ScriptText!$E$1&CHAR(10)&ScriptText!$C$1)","v":"</td>\n</tr>"},{"$f":"IF(OrigTable!E498=\"\",\"\",ScriptText!$B$1&CHAR(10)&ScriptText!$D$1)","v":""},{"$f":"IF(OrigTable!E498=\"\",\"\",TEXT(OrigTable!E498,\"00\"))","v":""},{"$f":"IF(OrigTable!E498=\"\",\"\",ScriptText!$E$1&CHAR(10)&ScriptText!$C$1)","v":""},{"$f":"IF(OrigTable!F498=\"\",\"\",ScriptText!$B$1&CHAR(10)&ScriptText!$D$1)","v":""},{"$f":"IF(OrigTable!F498=\"\",\"\",TEXT(OrigTable!F498,\"00\"))","v":""},{"$f":"IF(OrigTable!F498=\"\",\"\",ScriptText!$E$1&CHAR(10)&ScriptText!$C$1)","v":""},{"$f":"IF(OrigTable!G498=\"\",\"\",ScriptText!$B$1&CHAR(10)&ScriptText!$D$1)","v":""},{"$f":"IF(OrigTable!G498=\"\",\"\",TEXT(OrigTable!G498,\"00\"))","v":""},{"$f":"IF(OrigTable!G498=\"\",\"\",ScriptText!$E$1&CHAR(10)&ScriptText!$C$1)","v":""},498]
["<tr>\n<td>959</td>\n</tr>\n\n<tr>\n<td>1st  notice BMF Nonfiler Return Delinquency</td>\n</tr>\n<tr>\n<td>Master File Notices</td>\n</tr>",{"$f":"IF(OrigTable!A499=\"\",\"\",ScriptText!$B$1&CHAR(10)&ScriptText!$D$1)","v":"<tr>\n<td>"},{"$f":"IF(OrigTable!A499=\"\",\"\",TEXT(OrigTable!A499,\"00\"))","v":"959"},{"$f":"IF(OrigTable!A499=\"\",\"\",ScriptText!$E$1&CHAR(10)&ScriptText!$C$1)","v":"</td>\n</tr>"},{"$f":"IF(OrigTable!B499=\"\",\"\",ScriptText!$B$1&CHAR(10)&ScriptText!$D$1)","v":""},{"$f":"IF(OrigTable!B499=\"\",\"\",TEXT(OrigTable!B499,\"00\"))","v":""},{"$f":"IF(OrigTable!B499=\"\",\"\",ScriptText!$E$1&CHAR(10)&ScriptText!C494)","v":""},{"$f":"IF(OrigTable!C499=\"\",\"\",ScriptText!$B$1&CHAR(10)&ScriptText!$D$1)","v":"<tr>\n<td>"},{"$f":"IF(OrigTable!C499=\"\",\"\",IF(LEN(OrigTable!C499)>255,LEFT(OrigTable!C499,250)&\". . .\",OrigTable!C499))","v":"1st  notice BMF Nonfiler Return Delinquency"},{"$f":"IF(OrigTable!C499=\"\",\"\",ScriptText!$E$1&CHAR(10)&ScriptText!$C$1)","v":"</td>\n</tr>"},{"$f":"IF(OrigTable!D499=\"\",\"\",ScriptText!$B$1&CHAR(10)&ScriptText!$D$1)","v":"<tr>\n<td>"},{"$f":"IF(OrigTable!D499=\"\",\"\",TEXT(OrigTable!D499,\"00\"))","v":"Master File Notices"},{"$f":"IF(OrigTable!D499=\"\",\"\",ScriptText!$E$1&CHAR(10)&ScriptText!$C$1)","v":"</td>\n</tr>"},{"$f":"IF(OrigTable!E499=\"\",\"\",ScriptText!$B$1&CHAR(10)&ScriptText!$D$1)","v":""},{"$f":"IF(OrigTable!E499=\"\",\"\",TEXT(OrigTable!E499,\"00\"))","v":""},{"$f":"IF(OrigTable!E499=\"\",\"\",ScriptText!$E$1&CHAR(10)&ScriptText!$C$1)","v":""},{"$f":"IF(OrigTable!F499=\"\",\"\",ScriptText!$B$1&CHAR(10)&ScriptText!$D$1)","v":""},{"$f":"IF(OrigTable!F499=\"\",\"\",TEXT(OrigTable!F499,\"00\"))","v":""},{"$f":"IF(OrigTable!F499=\"\",\"\",ScriptText!$E$1&CHAR(10)&ScriptText!$C$1)","v":""},{"$f":"IF(OrigTable!G499=\"\",\"\",ScriptText!$B$1&CHAR(10)&ScriptText!$D$1)","v":""},{"$f":"IF(OrigTable!G499=\"\",\"\",TEXT(OrigTable!G499,\"00\"))","v":""},{"$f":"IF(OrigTable!G499=\"\",\"\",ScriptText!$E$1&CHAR(10)&ScriptText!$C$1)","v":""},499]
["<tr>\n<td>989</td>\n</tr>\n\n<tr>\n<td>Annual Installment Agreement Statement</td>\n</tr>\n<tr>\n<td>Master File Notices</td>\n</tr>",{"$f":"IF(OrigTable!A500=\"\",\"\",ScriptText!$B$1&CHAR(10)&ScriptText!$D$1)","v":"<tr>\n<td>"},{"$f":"IF(OrigTable!A500=\"\",\"\",TEXT(OrigTable!A500,\"00\"))","v":"989"},{"$f":"IF(OrigTable!A500=\"\",\"\",ScriptText!$E$1&CHAR(10)&ScriptText!$C$1)","v":"</td>\n</tr>"},{"$f":"IF(OrigTable!B500=\"\",\"\",ScriptText!$B$1&CHAR(10)&ScriptText!$D$1)","v":""},{"$f":"IF(OrigTable!B500=\"\",\"\",TEXT(OrigTable!B500,\"00\"))","v":""},{"$f":"IF(OrigTable!B500=\"\",\"\",ScriptText!$E$1&CHAR(10)&ScriptText!C495)","v":""},{"$f":"IF(OrigTable!C500=\"\",\"\",ScriptText!$B$1&CHAR(10)&ScriptText!$D$1)","v":"<tr>\n<td>"},{"$f":"IF(OrigTable!C500=\"\",\"\",IF(LEN(OrigTable!C500)>255,LEFT(OrigTable!C500,250)&\". . .\",OrigTable!C500))","v":"Annual Installment Agreement Statement"},{"$f":"IF(OrigTable!C500=\"\",\"\",ScriptText!$E$1&CHAR(10)&ScriptText!$C$1)","v":"</td>\n</tr>"},{"$f":"IF(OrigTable!D500=\"\",\"\",ScriptText!$B$1&CHAR(10)&ScriptText!$D$1)","v":"<tr>\n<td>"},{"$f":"IF(OrigTable!D500=\"\",\"\",TEXT(OrigTable!D500,\"00\"))","v":"Master File Notices"},{"$f":"IF(OrigTable!D500=\"\",\"\",ScriptText!$E$1&CHAR(10)&ScriptText!$C$1)","v":"</td>\n</tr>"},{"$f":"IF(OrigTable!E500=\"\",\"\",ScriptText!$B$1&CHAR(10)&ScriptText!$D$1)","v":""},{"$f":"IF(OrigTable!E500=\"\",\"\",TEXT(OrigTable!E500,\"00\"))","v":""},{"$f":"IF(OrigTable!E500=\"\",\"\",ScriptText!$E$1&CHAR(10)&ScriptText!$C$1)","v":""},{"$f":"IF(OrigTable!F500=\"\",\"\",ScriptText!$B$1&CHAR(10)&ScriptText!$D$1)","v":""},{"$f":"IF(OrigTable!F500=\"\",\"\",TEXT(OrigTable!F500,\"00\"))","v":""},{"$f":"IF(OrigTable!F500=\"\",\"\",ScriptText!$E$1&CHAR(10)&ScriptText!$C$1)","v":""},{"$f":"IF(OrigTable!G500=\"\",\"\",ScriptText!$B$1&CHAR(10)&ScriptText!$D$1)","v":""},{"$f":"IF(OrigTable!G500=\"\",\"\",TEXT(OrigTable!G500,\"00\"))","v":""},{"$f":"IF(OrigTable!G500=\"\",\"\",ScriptText!$E$1&CHAR(10)&ScriptText!$C$1)","v":""},500]
["\n\n\n",{"$f":"IF(OrigTable!A501=\"\",\"\",ScriptText!$B$1&CHAR(10)&ScriptText!$D$1)","v":""},{"$f":"IF(OrigTable!A501=\"\",\"\",TEXT(OrigTable!A501,\"00\"))","v":""},{"$f":"IF(OrigTable!A501=\"\",\"\",ScriptText!$E$1&CHAR(10)&ScriptText!$C$1)","v":""},{"$f":"IF(OrigTable!B501=\"\",\"\",ScriptText!$B$1&CHAR(10)&ScriptText!$D$1)","v":""},{"$f":"IF(OrigTable!B501=\"\",\"\",TEXT(OrigTable!B501,\"00\"))","v":""},{"$f":"IF(OrigTable!B501=\"\",\"\",ScriptText!$E$1&CHAR(10)&ScriptText!C496)","v":""},{"$f":"IF(OrigTable!C501=\"\",\"\",ScriptText!$B$1&CHAR(10)&ScriptText!$D$1)","v":""},{"$f":"IF(OrigTable!C501=\"\",\"\",IF(LEN(OrigTable!C501)>255,LEFT(OrigTable!C501,250)&\". . .\",OrigTable!C501))","v":""},{"$f":"IF(OrigTable!C501=\"\",\"\",ScriptText!$E$1&CHAR(10)&ScriptText!$C$1)","v":""},{"$f":"IF(OrigTable!D501=\"\",\"\",ScriptText!$B$1&CHAR(10)&ScriptText!$D$1)","v":""},{"$f":"IF(OrigTable!D501=\"\",\"\",TEXT(OrigTable!D501,\"00\"))","v":""},{"$f":"IF(OrigTable!D501=\"\",\"\",ScriptText!$E$1&CHAR(10)&ScriptText!$C$1)","v":""},{"$f":"IF(OrigTable!E501=\"\",\"\",ScriptText!$B$1&CHAR(10)&ScriptText!$D$1)","v":""},{"$f":"IF(OrigTable!E501=\"\",\"\",TEXT(OrigTable!E501,\"00\"))","v":""},{"$f":"IF(OrigTable!E501=\"\",\"\",ScriptText!$E$1&CHAR(10)&ScriptText!$C$1)","v":""},{"$f":"IF(OrigTable!F501=\"\",\"\",ScriptText!$B$1&CHAR(10)&ScriptText!$D$1)","v":""},{"$f":"IF(OrigTable!F501=\"\",\"\",TEXT(OrigTable!F501,\"00\"))","v":""},{"$f":"IF(OrigTable!F501=\"\",\"\",ScriptText!$E$1&CHAR(10)&ScriptText!$C$1)","v":""},{"$f":"IF(OrigTable!G501=\"\",\"\",ScriptText!$B$1&CHAR(10)&ScriptText!$D$1)","v":""},{"$f":"IF(OrigTable!G501=\"\",\"\",TEXT(OrigTable!G501,\"00\"))","v":""},{"$f":"IF(OrigTable!G501=\"\",\"\",ScriptText!$E$1&CHAR(10)&ScriptText!$C$1)","v":""},0]
["\n\n\n",{"$f":"IF(OrigTable!A502=\"\",\"\",ScriptText!$B$1&CHAR(10)&ScriptText!$D$1)","v":""},{"$f":"IF(OrigTable!A502=\"\",\"\",TEXT(OrigTable!A502,\"00\"))","v":""},{"$f":"IF(OrigTable!A502=\"\",\"\",ScriptText!$E$1&CHAR(10)&ScriptText!$C$1)","v":""},{"$f":"IF(OrigTable!B502=\"\",\"\",ScriptText!$B$1&CHAR(10)&ScriptText!$D$1)","v":""},{"$f":"IF(OrigTable!B502=\"\",\"\",TEXT(OrigTable!B502,\"00\"))","v":""},{"$f":"IF(OrigTable!B502=\"\",\"\",ScriptText!$E$1&CHAR(10)&ScriptText!C497)","v":""},{"$f":"IF(OrigTable!C502=\"\",\"\",ScriptText!$B$1&CHAR(10)&ScriptText!$D$1)","v":""},{"$f":"IF(OrigTable!C502=\"\",\"\",IF(LEN(OrigTable!C502)>255,LEFT(OrigTable!C502,250)&\". . .\",OrigTable!C502))","v":""},{"$f":"IF(OrigTable!C502=\"\",\"\",ScriptText!$E$1&CHAR(10)&ScriptText!$C$1)","v":""},{"$f":"IF(OrigTable!D502=\"\",\"\",ScriptText!$B$1&CHAR(10)&ScriptText!$D$1)","v":""},{"$f":"IF(OrigTable!D502=\"\",\"\",TEXT(OrigTable!D502,\"00\"))","v":""},{"$f":"IF(OrigTable!D502=\"\",\"\",ScriptText!$E$1&CHAR(10)&ScriptText!$C$1)","v":""},{"$f":"IF(OrigTable!E502=\"\",\"\",ScriptText!$B$1&CHAR(10)&ScriptText!$D$1)","v":""},{"$f":"IF(OrigTable!E502=\"\",\"\",TEXT(OrigTable!E502,\"00\"))","v":""},{"$f":"IF(OrigTable!E502=\"\",\"\",ScriptText!$E$1&CHAR(10)&ScriptText!$C$1)","v":""},{"$f":"IF(OrigTable!F502=\"\",\"\",ScriptText!$B$1&CHAR(10)&ScriptText!$D$1)","v":""},{"$f":"IF(OrigTable!F502=\"\",\"\",TEXT(OrigTable!F502,\"00\"))","v":""},{"$f":"IF(OrigTable!F502=\"\",\"\",ScriptText!$E$1&CHAR(10)&ScriptText!$C$1)","v":""},{"$f":"IF(OrigTable!G502=\"\",\"\",ScriptText!$B$1&CHAR(10)&ScriptText!$D$1)","v":""},{"$f":"IF(OrigTable!G502=\"\",\"\",TEXT(OrigTable!G502,\"00\"))","v":""},{"$f":"IF(OrigTable!G502=\"\",\"\",ScriptText!$E$1&CHAR(10)&ScriptText!$C$1)","v":""},0]
["\n\n\n",{"$f":"IF(OrigTable!A503=\"\",\"\",ScriptText!$B$1&CHAR(10)&ScriptText!$D$1)","v":""},{"$f":"IF(OrigTable!A503=\"\",\"\",TEXT(OrigTable!A503,\"00\"))","v":""},{"$f":"IF(OrigTable!A503=\"\",\"\",ScriptText!$E$1&CHAR(10)&ScriptText!$C$1)","v":""},{"$f":"IF(OrigTable!B503=\"\",\"\",ScriptText!$B$1&CHAR(10)&ScriptText!$D$1)","v":""},{"$f":"IF(OrigTable!B503=\"\",\"\",TEXT(OrigTable!B503,\"00\"))","v":""},{"$f":"IF(OrigTable!B503=\"\",\"\",ScriptText!$E$1&CHAR(10)&ScriptText!C498)","v":""},{"$f":"IF(OrigTable!C503=\"\",\"\",ScriptText!$B$1&CHAR(10)&ScriptText!$D$1)","v":""},{"$f":"IF(OrigTable!C503=\"\",\"\",IF(LEN(OrigTable!C503)>255,LEFT(OrigTable!C503,250)&\". . .\",OrigTable!C503))","v":""},{"$f":"IF(OrigTable!C503=\"\",\"\",ScriptText!$E$1&CHAR(10)&ScriptText!$C$1)","v":""},{"$f":"IF(OrigTable!D503=\"\",\"\",ScriptText!$B$1&CHAR(10)&ScriptText!$D$1)","v":""},{"$f":"IF(OrigTable!D503=\"\",\"\",TEXT(OrigTable!D503,\"00\"))","v":""},{"$f":"IF(OrigTable!D503=\"\",\"\",ScriptText!$E$1&CHAR(10)&ScriptText!$C$1)","v":""},{"$f":"IF(OrigTable!E503=\"\",\"\",ScriptText!$B$1&CHAR(10)&ScriptText!$D$1)","v":""},{"$f":"IF(OrigTable!E503=\"\",\"\",TEXT(OrigTable!E503,\"00\"))","v":""},{"$f":"IF(OrigTable!E503=\"\",\"\",ScriptText!$E$1&CHAR(10)&ScriptText!$C$1)","v":""},{"$f":"IF(OrigTable!F503=\"\",\"\",ScriptText!$B$1&CHAR(10)&ScriptText!$D$1)","v":""},{"$f":"IF(OrigTable!F503=\"\",\"\",TEXT(OrigTable!F503,\"00\"))","v":""},{"$f":"IF(OrigTable!F503=\"\",\"\",ScriptText!$E$1&CHAR(10)&ScriptText!$C$1)","v":""},{"$f":"IF(OrigTable!G503=\"\",\"\",ScriptText!$B$1&CHAR(10)&ScriptText!$D$1)","v":""},{"$f":"IF(OrigTable!G503=\"\",\"\",TEXT(OrigTable!G503,\"00\"))","v":""},{"$f":"IF(OrigTable!G503=\"\",\"\",ScriptText!$E$1&CHAR(10)&ScriptText!$C$1)","v":""},0]
["\n\n\n",{"$f":"IF(OrigTable!A504=\"\",\"\",ScriptText!$B$1&CHAR(10)&ScriptText!$D$1)","v":""},{"$f":"IF(OrigTable!A504=\"\",\"\",TEXT(OrigTable!A504,\"00\"))","v":""},{"$f":"IF(OrigTable!A504=\"\",\"\",ScriptText!$E$1&CHAR(10)&ScriptText!$C$1)","v":""},{"$f":"IF(OrigTable!B504=\"\",\"\",ScriptText!$B$1&CHAR(10)&ScriptText!$D$1)","v":""},{"$f":"IF(OrigTable!B504=\"\",\"\",TEXT(OrigTable!B504,\"00\"))","v":""},{"$f":"IF(OrigTable!B504=\"\",\"\",ScriptText!$E$1&CHAR(10)&ScriptText!C499)","v":""},{"$f":"IF(OrigTable!C504=\"\",\"\",ScriptText!$B$1&CHAR(10)&ScriptText!$D$1)","v":""},{"$f":"IF(OrigTable!C504=\"\",\"\",IF(LEN(OrigTable!C504)>255,LEFT(OrigTable!C504,250)&\". . .\",OrigTable!C504))","v":""},{"$f":"IF(OrigTable!C504=\"\",\"\",ScriptText!$E$1&CHAR(10)&ScriptText!$C$1)","v":""},{"$f":"IF(OrigTable!D504=\"\",\"\",ScriptText!$B$1&CHAR(10)&ScriptText!$D$1)","v":""},{"$f":"IF(OrigTable!D504=\"\",\"\",TEXT(OrigTable!D504,\"00\"))","v":""},{"$f":"IF(OrigTable!D504=\"\",\"\",ScriptText!$E$1&CHAR(10)&ScriptText!$C$1)","v":""},{"$f":"IF(OrigTable!E504=\"\",\"\",ScriptText!$B$1&CHAR(10)&ScriptText!$D$1)","v":""},{"$f":"IF(OrigTable!E504=\"\",\"\",TEXT(OrigTable!E504,\"00\"))","v":""},{"$f":"IF(OrigTable!E504=\"\",\"\",ScriptText!$E$1&CHAR(10)&ScriptText!$C$1)","v":""},{"$f":"IF(OrigTable!F504=\"\",\"\",ScriptText!$B$1&CHAR(10)&ScriptText!$D$1)","v":""},{"$f":"IF(OrigTable!F504=\"\",\"\",TEXT(OrigTable!F504,\"00\"))","v":""},{"$f":"IF(OrigTable!F504=\"\",\"\",ScriptText!$E$1&CHAR(10)&ScriptText!$C$1)","v":""},{"$f":"IF(OrigTable!G504=\"\",\"\",ScriptText!$B$1&CHAR(10)&ScriptText!$D$1)","v":""},{"$f":"IF(OrigTable!G504=\"\",\"\",TEXT(OrigTable!G504,\"00\"))","v":""},{"$f":"IF(OrigTable!G504=\"\",\"\",ScriptText!$E$1&CHAR(10)&ScriptText!$C$1)","v":""},0]
["\n\n\n",{"$f":"IF(OrigTable!A505=\"\",\"\",ScriptText!$B$1&CHAR(10)&ScriptText!$D$1)","v":""},{"$f":"IF(OrigTable!A505=\"\",\"\",TEXT(OrigTable!A505,\"00\"))","v":""},{"$f":"IF(OrigTable!A505=\"\",\"\",ScriptText!$E$1&CHAR(10)&ScriptText!$C$1)","v":""},{"$f":"IF(OrigTable!B505=\"\",\"\",ScriptText!$B$1&CHAR(10)&ScriptText!$D$1)","v":""},{"$f":"IF(OrigTable!B505=\"\",\"\",TEXT(OrigTable!B505,\"00\"))","v":""},{"$f":"IF(OrigTable!B505=\"\",\"\",ScriptText!$E$1&CHAR(10)&ScriptText!C500)","v":""},{"$f":"IF(OrigTable!C505=\"\",\"\",ScriptText!$B$1&CHAR(10)&ScriptText!$D$1)","v":""},{"$f":"IF(OrigTable!C505=\"\",\"\",IF(LEN(OrigTable!C505)>255,LEFT(OrigTable!C505,250)&\". . .\",OrigTable!C505))","v":""},{"$f":"IF(OrigTable!C505=\"\",\"\",ScriptText!$E$1&CHAR(10)&ScriptText!$C$1)","v":""},{"$f":"IF(OrigTable!D505=\"\",\"\",ScriptText!$B$1&CHAR(10)&ScriptText!$D$1)","v":""},{"$f":"IF(OrigTable!D505=\"\",\"\",TEXT(OrigTable!D505,\"00\"))","v":""},{"$f":"IF(OrigTable!D505=\"\",\"\",ScriptText!$E$1&CHAR(10)&ScriptText!$C$1)","v":""},{"$f":"IF(OrigTable!E505=\"\",\"\",ScriptText!$B$1&CHAR(10)&ScriptText!$D$1)","v":""},{"$f":"IF(OrigTable!E505=\"\",\"\",TEXT(OrigTable!E505,\"00\"))","v":""},{"$f":"IF(OrigTable!E505=\"\",\"\",ScriptText!$E$1&CHAR(10)&ScriptText!$C$1)","v":""},{"$f":"IF(OrigTable!F505=\"\",\"\",ScriptText!$B$1&CHAR(10)&ScriptText!$D$1)","v":""},{"$f":"IF(OrigTable!F505=\"\",\"\",TEXT(OrigTable!F505,\"00\"))","v":""},{"$f":"IF(OrigTable!F505=\"\",\"\",ScriptText!$E$1&CHAR(10)&ScriptText!$C$1)","v":""},{"$f":"IF(OrigTable!G505=\"\",\"\",ScriptText!$B$1&CHAR(10)&ScriptText!$D$1)","v":""},{"$f":"IF(OrigTable!G505=\"\",\"\",TEXT(OrigTable!G505,\"00\"))","v":""},{"$f":"IF(OrigTable!G505=\"\",\"\",ScriptText!$E$1&CHAR(10)&ScriptText!$C$1)","v":""},0]
["\n\n\n",{"$f":"IF(OrigTable!A506=\"\",\"\",ScriptText!$B$1&CHAR(10)&ScriptText!$D$1)","v":""},{"$f":"IF(OrigTable!A506=\"\",\"\",TEXT(OrigTable!A506,\"00\"))","v":""},{"$f":"IF(OrigTable!A506=\"\",\"\",ScriptText!$E$1&CHAR(10)&ScriptText!$C$1)","v":""},{"$f":"IF(OrigTable!B506=\"\",\"\",ScriptText!$B$1&CHAR(10)&ScriptText!$D$1)","v":""},{"$f":"IF(OrigTable!B506=\"\",\"\",TEXT(OrigTable!B506,\"00\"))","v":""},{"$f":"IF(OrigTable!B506=\"\",\"\",ScriptText!$E$1&CHAR(10)&ScriptText!C501)","v":""},{"$f":"IF(OrigTable!C506=\"\",\"\",ScriptText!$B$1&CHAR(10)&ScriptText!$D$1)","v":""},{"$f":"IF(OrigTable!C506=\"\",\"\",IF(LEN(OrigTable!C506)>255,LEFT(OrigTable!C506,250)&\". . .\",OrigTable!C506))","v":""},{"$f":"IF(OrigTable!C506=\"\",\"\",ScriptText!$E$1&CHAR(10)&ScriptText!$C$1)","v":""},{"$f":"IF(OrigTable!D506=\"\",\"\",ScriptText!$B$1&CHAR(10)&ScriptText!$D$1)","v":""},{"$f":"IF(OrigTable!D506=\"\",\"\",TEXT(OrigTable!D506,\"00\"))","v":""},{"$f":"IF(OrigTable!D506=\"\",\"\",ScriptText!$E$1&CHAR(10)&ScriptText!$C$1)","v":""},{"$f":"IF(OrigTable!E506=\"\",\"\",ScriptText!$B$1&CHAR(10)&ScriptText!$D$1)","v":""},{"$f":"IF(OrigTable!E506=\"\",\"\",TEXT(OrigTable!E506,\"00\"))","v":""},{"$f":"IF(OrigTable!E506=\"\",\"\",ScriptText!$E$1&CHAR(10)&ScriptText!$C$1)","v":""},{"$f":"IF(OrigTable!F506=\"\",\"\",ScriptText!$B$1&CHAR(10)&ScriptText!$D$1)","v":""},{"$f":"IF(OrigTable!F506=\"\",\"\",TEXT(OrigTable!F506,\"00\"))","v":""},{"$f":"IF(OrigTable!F506=\"\",\"\",ScriptText!$E$1&CHAR(10)&ScriptText!$C$1)","v":""},{"$f":"IF(OrigTable!G506=\"\",\"\",ScriptText!$B$1&CHAR(10)&ScriptText!$D$1)","v":""},{"$f":"IF(OrigTable!G506=\"\",\"\",TEXT(OrigTable!G506,\"00\"))","v":""},{"$f":"IF(OrigTable!G506=\"\",\"\",ScriptText!$E$1&CHAR(10)&ScriptText!$C$1)","v":""},0]
["\n\n\n",{"$f":"IF(OrigTable!A507=\"\",\"\",ScriptText!$B$1&CHAR(10)&ScriptText!$D$1)","v":""},{"$f":"IF(OrigTable!A507=\"\",\"\",TEXT(OrigTable!A507,\"00\"))","v":""},{"$f":"IF(OrigTable!A507=\"\",\"\",ScriptText!$E$1&CHAR(10)&ScriptText!$C$1)","v":""},{"$f":"IF(OrigTable!B507=\"\",\"\",ScriptText!$B$1&CHAR(10)&ScriptText!$D$1)","v":""},{"$f":"IF(OrigTable!B507=\"\",\"\",TEXT(OrigTable!B507,\"00\"))","v":""},{"$f":"IF(OrigTable!B507=\"\",\"\",ScriptText!$E$1&CHAR(10)&ScriptText!C502)","v":""},{"$f":"IF(OrigTable!C507=\"\",\"\",ScriptText!$B$1&CHAR(10)&ScriptText!$D$1)","v":""},{"$f":"IF(OrigTable!C507=\"\",\"\",IF(LEN(OrigTable!C507)>255,LEFT(OrigTable!C507,250)&\". . .\",OrigTable!C507))","v":""},{"$f":"IF(OrigTable!C507=\"\",\"\",ScriptText!$E$1&CHAR(10)&ScriptText!$C$1)","v":""},{"$f":"IF(OrigTable!D507=\"\",\"\",ScriptText!$B$1&CHAR(10)&ScriptText!$D$1)","v":""},{"$f":"IF(OrigTable!D507=\"\",\"\",TEXT(OrigTable!D507,\"00\"))","v":""},{"$f":"IF(OrigTable!D507=\"\",\"\",ScriptText!$E$1&CHAR(10)&ScriptText!$C$1)","v":""},{"$f":"IF(OrigTable!E507=\"\",\"\",ScriptText!$B$1&CHAR(10)&ScriptText!$D$1)","v":""},{"$f":"IF(OrigTable!E507=\"\",\"\",TEXT(OrigTable!E507,\"00\"))","v":""},{"$f":"IF(OrigTable!E507=\"\",\"\",ScriptText!$E$1&CHAR(10)&ScriptText!$C$1)","v":""},{"$f":"IF(OrigTable!F507=\"\",\"\",ScriptText!$B$1&CHAR(10)&ScriptText!$D$1)","v":""},{"$f":"IF(OrigTable!F507=\"\",\"\",TEXT(OrigTable!F507,\"00\"))","v":""},{"$f":"IF(OrigTable!F507=\"\",\"\",ScriptText!$E$1&CHAR(10)&ScriptText!$C$1)","v":""},{"$f":"IF(OrigTable!G507=\"\",\"\",ScriptText!$B$1&CHAR(10)&ScriptText!$D$1)","v":""},{"$f":"IF(OrigTable!G507=\"\",\"\",TEXT(OrigTable!G507,\"00\"))","v":""},{"$f":"IF(OrigTable!G507=\"\",\"\",ScriptText!$E$1&CHAR(10)&ScriptText!$C$1)","v":""},0]
["\n\n\n",{"$f":"IF(OrigTable!A508=\"\",\"\",ScriptText!$B$1&CHAR(10)&ScriptText!$D$1)","v":""},{"$f":"IF(OrigTable!A508=\"\",\"\",TEXT(OrigTable!A508,\"00\"))","v":""},{"$f":"IF(OrigTable!A508=\"\",\"\",ScriptText!$E$1&CHAR(10)&ScriptText!$C$1)","v":""},{"$f":"IF(OrigTable!B508=\"\",\"\",ScriptText!$B$1&CHAR(10)&ScriptText!$D$1)","v":""},{"$f":"IF(OrigTable!B508=\"\",\"\",TEXT(OrigTable!B508,\"00\"))","v":""},{"$f":"IF(OrigTable!B508=\"\",\"\",ScriptText!$E$1&CHAR(10)&ScriptText!C503)","v":""},{"$f":"IF(OrigTable!C508=\"\",\"\",ScriptText!$B$1&CHAR(10)&ScriptText!$D$1)","v":""},{"$f":"IF(OrigTable!C508=\"\",\"\",IF(LEN(OrigTable!C508)>255,LEFT(OrigTable!C508,250)&\". . .\",OrigTable!C508))","v":""},{"$f":"IF(OrigTable!C508=\"\",\"\",ScriptText!$E$1&CHAR(10)&ScriptText!$C$1)","v":""},{"$f":"IF(OrigTable!D508=\"\",\"\",ScriptText!$B$1&CHAR(10)&ScriptText!$D$1)","v":""},{"$f":"IF(OrigTable!D508=\"\",\"\",TEXT(OrigTable!D508,\"00\"))","v":""},{"$f":"IF(OrigTable!D508=\"\",\"\",ScriptText!$E$1&CHAR(10)&ScriptText!$C$1)","v":""},{"$f":"IF(OrigTable!E508=\"\",\"\",ScriptText!$B$1&CHAR(10)&ScriptText!$D$1)","v":""},{"$f":"IF(OrigTable!E508=\"\",\"\",TEXT(OrigTable!E508,\"00\"))","v":""},{"$f":"IF(OrigTable!E508=\"\",\"\",ScriptText!$E$1&CHAR(10)&ScriptText!$C$1)","v":""},{"$f":"IF(OrigTable!F508=\"\",\"\",ScriptText!$B$1&CHAR(10)&ScriptText!$D$1)","v":""},{"$f":"IF(OrigTable!F508=\"\",\"\",TEXT(OrigTable!F508,\"00\"))","v":""},{"$f":"IF(OrigTable!F508=\"\",\"\",ScriptText!$E$1&CHAR(10)&ScriptText!$C$1)","v":""},{"$f":"IF(OrigTable!G508=\"\",\"\",ScriptText!$B$1&CHAR(10)&ScriptText!$D$1)","v":""},{"$f":"IF(OrigTable!G508=\"\",\"\",TEXT(OrigTable!G508,\"00\"))","v":""},{"$f":"IF(OrigTable!G508=\"\",\"\",ScriptText!$E$1&CHAR(10)&ScriptText!$C$1)","v":""},0]
["\n\n\n",{"$f":"IF(OrigTable!A509=\"\",\"\",ScriptText!$B$1&CHAR(10)&ScriptText!$D$1)","v":""},{"$f":"IF(OrigTable!A509=\"\",\"\",TEXT(OrigTable!A509,\"00\"))","v":""},{"$f":"IF(OrigTable!A509=\"\",\"\",ScriptText!$E$1&CHAR(10)&ScriptText!$C$1)","v":""},{"$f":"IF(OrigTable!B509=\"\",\"\",ScriptText!$B$1&CHAR(10)&ScriptText!$D$1)","v":""},{"$f":"IF(OrigTable!B509=\"\",\"\",TEXT(OrigTable!B509,\"00\"))","v":""},{"$f":"IF(OrigTable!B509=\"\",\"\",ScriptText!$E$1&CHAR(10)&ScriptText!C504)","v":""},{"$f":"IF(OrigTable!C509=\"\",\"\",ScriptText!$B$1&CHAR(10)&ScriptText!$D$1)","v":""},{"$f":"IF(OrigTable!C509=\"\",\"\",IF(LEN(OrigTable!C509)>255,LEFT(OrigTable!C509,250)&\". . .\",OrigTable!C509))","v":""},{"$f":"IF(OrigTable!C509=\"\",\"\",ScriptText!$E$1&CHAR(10)&ScriptText!$C$1)","v":""},{"$f":"IF(OrigTable!D509=\"\",\"\",ScriptText!$B$1&CHAR(10)&ScriptText!$D$1)","v":""},{"$f":"IF(OrigTable!D509=\"\",\"\",TEXT(OrigTable!D509,\"00\"))","v":""},{"$f":"IF(OrigTable!D509=\"\",\"\",ScriptText!$E$1&CHAR(10)&ScriptText!$C$1)","v":""},{"$f":"IF(OrigTable!E509=\"\",\"\",ScriptText!$B$1&CHAR(10)&ScriptText!$D$1)","v":""},{"$f":"IF(OrigTable!E509=\"\",\"\",TEXT(OrigTable!E509,\"00\"))","v":""},{"$f":"IF(OrigTable!E509=\"\",\"\",ScriptText!$E$1&CHAR(10)&ScriptText!$C$1)","v":""},{"$f":"IF(OrigTable!F509=\"\",\"\",ScriptText!$B$1&CHAR(10)&ScriptText!$D$1)","v":""},{"$f":"IF(OrigTable!F509=\"\",\"\",TEXT(OrigTable!F509,\"00\"))","v":""},{"$f":"IF(OrigTable!F509=\"\",\"\",ScriptText!$E$1&CHAR(10)&ScriptText!$C$1)","v":""},{"$f":"IF(OrigTable!G509=\"\",\"\",ScriptText!$B$1&CHAR(10)&ScriptText!$D$1)","v":""},{"$f":"IF(OrigTable!G509=\"\",\"\",TEXT(OrigTable!G509,\"00\"))","v":""},{"$f":"IF(OrigTable!G509=\"\",\"\",ScriptText!$E$1&CHAR(10)&ScriptText!$C$1)","v":""},0]
["\n\n\n",{"$f":"IF(OrigTable!A510=\"\",\"\",ScriptText!$B$1&CHAR(10)&ScriptText!$D$1)","v":""},{"$f":"IF(OrigTable!A510=\"\",\"\",TEXT(OrigTable!A510,\"00\"))","v":""},{"$f":"IF(OrigTable!A510=\"\",\"\",ScriptText!$E$1&CHAR(10)&ScriptText!$C$1)","v":""},{"$f":"IF(OrigTable!B510=\"\",\"\",ScriptText!$B$1&CHAR(10)&ScriptText!$D$1)","v":""},{"$f":"IF(OrigTable!B510=\"\",\"\",TEXT(OrigTable!B510,\"00\"))","v":""},{"$f":"IF(OrigTable!B510=\"\",\"\",ScriptText!$E$1&CHAR(10)&ScriptText!C505)","v":""},{"$f":"IF(OrigTable!C510=\"\",\"\",ScriptText!$B$1&CHAR(10)&ScriptText!$D$1)","v":""},{"$f":"IF(OrigTable!C510=\"\",\"\",IF(LEN(OrigTable!C510)>255,LEFT(OrigTable!C510,250)&\". . .\",OrigTable!C510))","v":""},{"$f":"IF(OrigTable!C510=\"\",\"\",ScriptText!$E$1&CHAR(10)&ScriptText!$C$1)","v":""},{"$f":"IF(OrigTable!D510=\"\",\"\",ScriptText!$B$1&CHAR(10)&ScriptText!$D$1)","v":""},{"$f":"IF(OrigTable!D510=\"\",\"\",TEXT(OrigTable!D510,\"00\"))","v":""},{"$f":"IF(OrigTable!D510=\"\",\"\",ScriptText!$E$1&CHAR(10)&ScriptText!$C$1)","v":""},{"$f":"IF(OrigTable!E510=\"\",\"\",ScriptText!$B$1&CHAR(10)&ScriptText!$D$1)","v":""},{"$f":"IF(OrigTable!E510=\"\",\"\",TEXT(OrigTable!E510,\"00\"))","v":""},{"$f":"IF(OrigTable!E510=\"\",\"\",ScriptText!$E$1&CHAR(10)&ScriptText!$C$1)","v":""},{"$f":"IF(OrigTable!F510=\"\",\"\",ScriptText!$B$1&CHAR(10)&ScriptText!$D$1)","v":""},{"$f":"IF(OrigTable!F510=\"\",\"\",TEXT(OrigTable!F510,\"00\"))","v":""},{"$f":"IF(OrigTable!F510=\"\",\"\",ScriptText!$E$1&CHAR(10)&ScriptText!$C$1)","v":""},{"$f":"IF(OrigTable!G510=\"\",\"\",ScriptText!$B$1&CHAR(10)&ScriptText!$D$1)","v":""},{"$f":"IF(OrigTable!G510=\"\",\"\",TEXT(OrigTable!G510,\"00\"))","v":""},{"$f":"IF(OrigTable!G510=\"\",\"\",ScriptText!$E$1&CHAR(10)&ScriptText!$C$1)","v":""},0]
["\n\n\n",{"$f":"IF(OrigTable!A511=\"\",\"\",ScriptText!$B$1&CHAR(10)&ScriptText!$D$1)","v":""},{"$f":"IF(OrigTable!A511=\"\",\"\",TEXT(OrigTable!A511,\"00\"))","v":""},{"$f":"IF(OrigTable!A511=\"\",\"\",ScriptText!$E$1&CHAR(10)&ScriptText!$C$1)","v":""},{"$f":"IF(OrigTable!B511=\"\",\"\",ScriptText!$B$1&CHAR(10)&ScriptText!$D$1)","v":""},{"$f":"IF(OrigTable!B511=\"\",\"\",TEXT(OrigTable!B511,\"00\"))","v":""},{"$f":"IF(OrigTable!B511=\"\",\"\",ScriptText!$E$1&CHAR(10)&ScriptText!C506)","v":""},{"$f":"IF(OrigTable!C511=\"\",\"\",ScriptText!$B$1&CHAR(10)&ScriptText!$D$1)","v":""},{"$f":"IF(OrigTable!C511=\"\",\"\",IF(LEN(OrigTable!C511)>255,LEFT(OrigTable!C511,250)&\". . .\",OrigTable!C511))","v":""},{"$f":"IF(OrigTable!C511=\"\",\"\",ScriptText!$E$1&CHAR(10)&ScriptText!$C$1)","v":""},{"$f":"IF(OrigTable!D511=\"\",\"\",ScriptText!$B$1&CHAR(10)&ScriptText!$D$1)","v":""},{"$f":"IF(OrigTable!D511=\"\",\"\",TEXT(OrigTable!D511,\"00\"))","v":""},{"$f":"IF(OrigTable!D511=\"\",\"\",ScriptText!$E$1&CHAR(10)&ScriptText!$C$1)","v":""},{"$f":"IF(OrigTable!E511=\"\",\"\",ScriptText!$B$1&CHAR(10)&ScriptText!$D$1)","v":""},{"$f":"IF(OrigTable!E511=\"\",\"\",TEXT(OrigTable!E511,\"00\"))","v":""},{"$f":"IF(OrigTable!E511=\"\",\"\",ScriptText!$E$1&CHAR(10)&ScriptText!$C$1)","v":""},{"$f":"IF(OrigTable!F511=\"\",\"\",ScriptText!$B$1&CHAR(10)&ScriptText!$D$1)","v":""},{"$f":"IF(OrigTable!F511=\"\",\"\",TEXT(OrigTable!F511,\"00\"))","v":""},{"$f":"IF(OrigTable!F511=\"\",\"\",ScriptText!$E$1&CHAR(10)&ScriptText!$C$1)","v":""},{"$f":"IF(OrigTable!G511=\"\",\"\",ScriptText!$B$1&CHAR(10)&ScriptText!$D$1)","v":""},{"$f":"IF(OrigTable!G511=\"\",\"\",TEXT(OrigTable!G511,\"00\"))","v":""},{"$f":"IF(OrigTable!G511=\"\",\"\",ScriptText!$E$1&CHAR(10)&ScriptText!$C$1)","v":""},0]
["\n\n\n",{"$f":"IF(OrigTable!A512=\"\",\"\",ScriptText!$B$1&CHAR(10)&ScriptText!$D$1)","v":""},{"$f":"IF(OrigTable!A512=\"\",\"\",TEXT(OrigTable!A512,\"00\"))","v":""},{"$f":"IF(OrigTable!A512=\"\",\"\",ScriptText!$E$1&CHAR(10)&ScriptText!$C$1)","v":""},{"$f":"IF(OrigTable!B512=\"\",\"\",ScriptText!$B$1&CHAR(10)&ScriptText!$D$1)","v":""},{"$f":"IF(OrigTable!B512=\"\",\"\",TEXT(OrigTable!B512,\"00\"))","v":""},{"$f":"IF(OrigTable!B512=\"\",\"\",ScriptText!$E$1&CHAR(10)&ScriptText!C507)","v":""},{"$f":"IF(OrigTable!C512=\"\",\"\",ScriptText!$B$1&CHAR(10)&ScriptText!$D$1)","v":""},{"$f":"IF(OrigTable!C512=\"\",\"\",IF(LEN(OrigTable!C512)>255,LEFT(OrigTable!C512,250)&\". . .\",OrigTable!C512))","v":""},{"$f":"IF(OrigTable!C512=\"\",\"\",ScriptText!$E$1&CHAR(10)&ScriptText!$C$1)","v":""},{"$f":"IF(OrigTable!D512=\"\",\"\",ScriptText!$B$1&CHAR(10)&ScriptText!$D$1)","v":""},{"$f":"IF(OrigTable!D512=\"\",\"\",TEXT(OrigTable!D512,\"00\"))","v":""},{"$f":"IF(OrigTable!D512=\"\",\"\",ScriptText!$E$1&CHAR(10)&ScriptText!$C$1)","v":""},{"$f":"IF(OrigTable!E512=\"\",\"\",ScriptText!$B$1&CHAR(10)&ScriptText!$D$1)","v":""},{"$f":"IF(OrigTable!E512=\"\",\"\",TEXT(OrigTable!E512,\"00\"))","v":""},{"$f":"IF(OrigTable!E512=\"\",\"\",ScriptText!$E$1&CHAR(10)&ScriptText!$C$1)","v":""},{"$f":"IF(OrigTable!F512=\"\",\"\",ScriptText!$B$1&CHAR(10)&ScriptText!$D$1)","v":""},{"$f":"IF(OrigTable!F512=\"\",\"\",TEXT(OrigTable!F512,\"00\"))","v":""},{"$f":"IF(OrigTable!F512=\"\",\"\",ScriptText!$E$1&CHAR(10)&ScriptText!$C$1)","v":""},{"$f":"IF(OrigTable!G512=\"\",\"\",ScriptText!$B$1&CHAR(10)&ScriptText!$D$1)","v":""},{"$f":"IF(OrigTable!G512=\"\",\"\",TEXT(OrigTable!G512,\"00\"))","v":""},{"$f":"IF(OrigTable!G512=\"\",\"\",ScriptText!$E$1&CHAR(10)&ScriptText!$C$1)","v":""},0]
["\n\n\n",{"$f":"IF(OrigTable!A513=\"\",\"\",ScriptText!$B$1&CHAR(10)&ScriptText!$D$1)","v":""},{"$f":"IF(OrigTable!A513=\"\",\"\",TEXT(OrigTable!A513,\"00\"))","v":""},{"$f":"IF(OrigTable!A513=\"\",\"\",ScriptText!$E$1&CHAR(10)&ScriptText!$C$1)","v":""},{"$f":"IF(OrigTable!B513=\"\",\"\",ScriptText!$B$1&CHAR(10)&ScriptText!$D$1)","v":""},{"$f":"IF(OrigTable!B513=\"\",\"\",TEXT(OrigTable!B513,\"00\"))","v":""},{"$f":"IF(OrigTable!B513=\"\",\"\",ScriptText!$E$1&CHAR(10)&ScriptText!C508)","v":""},{"$f":"IF(OrigTable!C513=\"\",\"\",ScriptText!$B$1&CHAR(10)&ScriptText!$D$1)","v":""},{"$f":"IF(OrigTable!C513=\"\",\"\",IF(LEN(OrigTable!C513)>255,LEFT(OrigTable!C513,250)&\". . .\",OrigTable!C513))","v":""},{"$f":"IF(OrigTable!C513=\"\",\"\",ScriptText!$E$1&CHAR(10)&ScriptText!$C$1)","v":""},{"$f":"IF(OrigTable!D513=\"\",\"\",ScriptText!$B$1&CHAR(10)&ScriptText!$D$1)","v":""},{"$f":"IF(OrigTable!D513=\"\",\"\",TEXT(OrigTable!D513,\"00\"))","v":""},{"$f":"IF(OrigTable!D513=\"\",\"\",ScriptText!$E$1&CHAR(10)&ScriptText!$C$1)","v":""},{"$f":"IF(OrigTable!E513=\"\",\"\",ScriptText!$B$1&CHAR(10)&ScriptText!$D$1)","v":""},{"$f":"IF(OrigTable!E513=\"\",\"\",TEXT(OrigTable!E513,\"00\"))","v":""},{"$f":"IF(OrigTable!E513=\"\",\"\",ScriptText!$E$1&CHAR(10)&ScriptText!$C$1)","v":""},{"$f":"IF(OrigTable!F513=\"\",\"\",ScriptText!$B$1&CHAR(10)&ScriptText!$D$1)","v":""},{"$f":"IF(OrigTable!F513=\"\",\"\",TEXT(OrigTable!F513,\"00\"))","v":""},{"$f":"IF(OrigTable!F513=\"\",\"\",ScriptText!$E$1&CHAR(10)&ScriptText!$C$1)","v":""},{"$f":"IF(OrigTable!G513=\"\",\"\",ScriptText!$B$1&CHAR(10)&ScriptText!$D$1)","v":""},{"$f":"IF(OrigTable!G513=\"\",\"\",TEXT(OrigTable!G513,\"00\"))","v":""},{"$f":"IF(OrigTable!G513=\"\",\"\",ScriptText!$E$1&CHAR(10)&ScriptText!$C$1)","v":""},0]
["\n\n\n",{"$f":"IF(OrigTable!A514=\"\",\"\",ScriptText!$B$1&CHAR(10)&ScriptText!$D$1)","v":""},{"$f":"IF(OrigTable!A514=\"\",\"\",TEXT(OrigTable!A514,\"00\"))","v":""},{"$f":"IF(OrigTable!A514=\"\",\"\",ScriptText!$E$1&CHAR(10)&ScriptText!$C$1)","v":""},{"$f":"IF(OrigTable!B514=\"\",\"\",ScriptText!$B$1&CHAR(10)&ScriptText!$D$1)","v":""},{"$f":"IF(OrigTable!B514=\"\",\"\",TEXT(OrigTable!B514,\"00\"))","v":""},{"$f":"IF(OrigTable!B514=\"\",\"\",ScriptText!$E$1&CHAR(10)&ScriptText!C509)","v":""},{"$f":"IF(OrigTable!C514=\"\",\"\",ScriptText!$B$1&CHAR(10)&ScriptText!$D$1)","v":""},{"$f":"IF(OrigTable!C514=\"\",\"\",IF(LEN(OrigTable!C514)>255,LEFT(OrigTable!C514,250)&\". . .\",OrigTable!C514))","v":""},{"$f":"IF(OrigTable!C514=\"\",\"\",ScriptText!$E$1&CHAR(10)&ScriptText!$C$1)","v":""},{"$f":"IF(OrigTable!D514=\"\",\"\",ScriptText!$B$1&CHAR(10)&ScriptText!$D$1)","v":""},{"$f":"IF(OrigTable!D514=\"\",\"\",TEXT(OrigTable!D514,\"00\"))","v":""},{"$f":"IF(OrigTable!D514=\"\",\"\",ScriptText!$E$1&CHAR(10)&ScriptText!$C$1)","v":""},{"$f":"IF(OrigTable!E514=\"\",\"\",ScriptText!$B$1&CHAR(10)&ScriptText!$D$1)","v":""},{"$f":"IF(OrigTable!E514=\"\",\"\",TEXT(OrigTable!E514,\"00\"))","v":""},{"$f":"IF(OrigTable!E514=\"\",\"\",ScriptText!$E$1&CHAR(10)&ScriptText!$C$1)","v":""},{"$f":"IF(OrigTable!F514=\"\",\"\",ScriptText!$B$1&CHAR(10)&ScriptText!$D$1)","v":""},{"$f":"IF(OrigTable!F514=\"\",\"\",TEXT(OrigTable!F514,\"00\"))","v":""},{"$f":"IF(OrigTable!F514=\"\",\"\",ScriptText!$E$1&CHAR(10)&ScriptText!$C$1)","v":""},{"$f":"IF(OrigTable!G514=\"\",\"\",ScriptText!$B$1&CHAR(10)&ScriptText!$D$1)","v":""},{"$f":"IF(OrigTable!G514=\"\",\"\",TEXT(OrigTable!G514,\"00\"))","v":""},{"$f":"IF(OrigTable!G514=\"\",\"\",ScriptText!$E$1&CHAR(10)&ScriptText!$C$1)","v":""},0]
["\n\n\n",{"$f":"IF(OrigTable!A515=\"\",\"\",ScriptText!$B$1&CHAR(10)&ScriptText!$D$1)","v":""},{"$f":"IF(OrigTable!A515=\"\",\"\",TEXT(OrigTable!A515,\"00\"))","v":""},{"$f":"IF(OrigTable!A515=\"\",\"\",ScriptText!$E$1&CHAR(10)&ScriptText!$C$1)","v":""},{"$f":"IF(OrigTable!B515=\"\",\"\",ScriptText!$B$1&CHAR(10)&ScriptText!$D$1)","v":""},{"$f":"IF(OrigTable!B515=\"\",\"\",TEXT(OrigTable!B515,\"00\"))","v":""},{"$f":"IF(OrigTable!B515=\"\",\"\",ScriptText!$E$1&CHAR(10)&ScriptText!C510)","v":""},{"$f":"IF(OrigTable!C515=\"\",\"\",ScriptText!$B$1&CHAR(10)&ScriptText!$D$1)","v":""},{"$f":"IF(OrigTable!C515=\"\",\"\",IF(LEN(OrigTable!C515)>255,LEFT(OrigTable!C515,250)&\". . .\",OrigTable!C515))","v":""},{"$f":"IF(OrigTable!C515=\"\",\"\",ScriptText!$E$1&CHAR(10)&ScriptText!$C$1)","v":""},{"$f":"IF(OrigTable!D515=\"\",\"\",ScriptText!$B$1&CHAR(10)&ScriptText!$D$1)","v":""},{"$f":"IF(OrigTable!D515=\"\",\"\",TEXT(OrigTable!D515,\"00\"))","v":""},{"$f":"IF(OrigTable!D515=\"\",\"\",ScriptText!$E$1&CHAR(10)&ScriptText!$C$1)","v":""},{"$f":"IF(OrigTable!E515=\"\",\"\",ScriptText!$B$1&CHAR(10)&ScriptText!$D$1)","v":""},{"$f":"IF(OrigTable!E515=\"\",\"\",TEXT(OrigTable!E515,\"00\"))","v":""},{"$f":"IF(OrigTable!E515=\"\",\"\",ScriptText!$E$1&CHAR(10)&ScriptText!$C$1)","v":""},{"$f":"IF(OrigTable!F515=\"\",\"\",ScriptText!$B$1&CHAR(10)&ScriptText!$D$1)","v":""},{"$f":"IF(OrigTable!F515=\"\",\"\",TEXT(OrigTable!F515,\"00\"))","v":""},{"$f":"IF(OrigTable!F515=\"\",\"\",ScriptText!$E$1&CHAR(10)&ScriptText!$C$1)","v":""},{"$f":"IF(OrigTable!G515=\"\",\"\",ScriptText!$B$1&CHAR(10)&ScriptText!$D$1)","v":""},{"$f":"IF(OrigTable!G515=\"\",\"\",TEXT(OrigTable!G515,\"00\"))","v":""},{"$f":"IF(OrigTable!G515=\"\",\"\",ScriptText!$E$1&CHAR(10)&ScriptText!$C$1)","v":""},0]
["\n\n\n",{"$f":"IF(OrigTable!A516=\"\",\"\",ScriptText!$B$1&CHAR(10)&ScriptText!$D$1)","v":""},{"$f":"IF(OrigTable!A516=\"\",\"\",TEXT(OrigTable!A516,\"00\"))","v":""},{"$f":"IF(OrigTable!A516=\"\",\"\",ScriptText!$E$1&CHAR(10)&ScriptText!$C$1)","v":""},{"$f":"IF(OrigTable!B516=\"\",\"\",ScriptText!$B$1&CHAR(10)&ScriptText!$D$1)","v":""},{"$f":"IF(OrigTable!B516=\"\",\"\",TEXT(OrigTable!B516,\"00\"))","v":""},{"$f":"IF(OrigTable!B516=\"\",\"\",ScriptText!$E$1&CHAR(10)&ScriptText!C511)","v":""},{"$f":"IF(OrigTable!C516=\"\",\"\",ScriptText!$B$1&CHAR(10)&ScriptText!$D$1)","v":""},{"$f":"IF(OrigTable!C516=\"\",\"\",IF(LEN(OrigTable!C516)>255,LEFT(OrigTable!C516,250)&\". . .\",OrigTable!C516))","v":""},{"$f":"IF(OrigTable!C516=\"\",\"\",ScriptText!$E$1&CHAR(10)&ScriptText!$C$1)","v":""},{"$f":"IF(OrigTable!D516=\"\",\"\",ScriptText!$B$1&CHAR(10)&ScriptText!$D$1)","v":""},{"$f":"IF(OrigTable!D516=\"\",\"\",TEXT(OrigTable!D516,\"00\"))","v":""},{"$f":"IF(OrigTable!D516=\"\",\"\",ScriptText!$E$1&CHAR(10)&ScriptText!$C$1)","v":""},{"$f":"IF(OrigTable!E516=\"\",\"\",ScriptText!$B$1&CHAR(10)&ScriptText!$D$1)","v":""},{"$f":"IF(OrigTable!E516=\"\",\"\",TEXT(OrigTable!E516,\"00\"))","v":""},{"$f":"IF(OrigTable!E516=\"\",\"\",ScriptText!$E$1&CHAR(10)&ScriptText!$C$1)","v":""},{"$f":"IF(OrigTable!F516=\"\",\"\",ScriptText!$B$1&CHAR(10)&ScriptText!$D$1)","v":""},{"$f":"IF(OrigTable!F516=\"\",\"\",TEXT(OrigTable!F516,\"00\"))","v":""},{"$f":"IF(OrigTable!F516=\"\",\"\",ScriptText!$E$1&CHAR(10)&ScriptText!$C$1)","v":""},{"$f":"IF(OrigTable!G516=\"\",\"\",ScriptText!$B$1&CHAR(10)&ScriptText!$D$1)","v":""},{"$f":"IF(OrigTable!G516=\"\",\"\",TEXT(OrigTable!G516,\"00\"))","v":""},{"$f":"IF(OrigTable!G516=\"\",\"\",ScriptText!$E$1&CHAR(10)&ScriptText!$C$1)","v":""},0]
["\n\n\n",{"$f":"IF(OrigTable!A517=\"\",\"\",ScriptText!$B$1&CHAR(10)&ScriptText!$D$1)","v":""},{"$f":"IF(OrigTable!A517=\"\",\"\",TEXT(OrigTable!A517,\"00\"))","v":""},{"$f":"IF(OrigTable!A517=\"\",\"\",ScriptText!$E$1&CHAR(10)&ScriptText!$C$1)","v":""},{"$f":"IF(OrigTable!B517=\"\",\"\",ScriptText!$B$1&CHAR(10)&ScriptText!$D$1)","v":""},{"$f":"IF(OrigTable!B517=\"\",\"\",TEXT(OrigTable!B517,\"00\"))","v":""},{"$f":"IF(OrigTable!B517=\"\",\"\",ScriptText!$E$1&CHAR(10)&ScriptText!C512)","v":""},{"$f":"IF(OrigTable!C517=\"\",\"\",ScriptText!$B$1&CHAR(10)&ScriptText!$D$1)","v":""},{"$f":"IF(OrigTable!C517=\"\",\"\",IF(LEN(OrigTable!C517)>255,LEFT(OrigTable!C517,250)&\". . .\",OrigTable!C517))","v":""},{"$f":"IF(OrigTable!C517=\"\",\"\",ScriptText!$E$1&CHAR(10)&ScriptText!$C$1)","v":""},{"$f":"IF(OrigTable!D517=\"\",\"\",ScriptText!$B$1&CHAR(10)&ScriptText!$D$1)","v":""},{"$f":"IF(OrigTable!D517=\"\",\"\",TEXT(OrigTable!D517,\"00\"))","v":""},{"$f":"IF(OrigTable!D517=\"\",\"\",ScriptText!$E$1&CHAR(10)&ScriptText!$C$1)","v":""},{"$f":"IF(OrigTable!E517=\"\",\"\",ScriptText!$B$1&CHAR(10)&ScriptText!$D$1)","v":""},{"$f":"IF(OrigTable!E517=\"\",\"\",TEXT(OrigTable!E517,\"00\"))","v":""},{"$f":"IF(OrigTable!E517=\"\",\"\",ScriptText!$E$1&CHAR(10)&ScriptText!$C$1)","v":""},{"$f":"IF(OrigTable!F517=\"\",\"\",ScriptText!$B$1&CHAR(10)&ScriptText!$D$1)","v":""},{"$f":"IF(OrigTable!F517=\"\",\"\",TEXT(OrigTable!F517,\"00\"))","v":""},{"$f":"IF(OrigTable!F517=\"\",\"\",ScriptText!$E$1&CHAR(10)&ScriptText!$C$1)","v":""},{"$f":"IF(OrigTable!G517=\"\",\"\",ScriptText!$B$1&CHAR(10)&ScriptText!$D$1)","v":""},{"$f":"IF(OrigTable!G517=\"\",\"\",TEXT(OrigTable!G517,\"00\"))","v":""},{"$f":"IF(OrigTable!G517=\"\",\"\",ScriptText!$E$1&CHAR(10)&ScriptText!$C$1)","v":""},0]
["\n\n\n",{"$f":"IF(OrigTable!A518=\"\",\"\",ScriptText!$B$1&CHAR(10)&ScriptText!$D$1)","v":""},{"$f":"IF(OrigTable!A518=\"\",\"\",TEXT(OrigTable!A518,\"00\"))","v":""},{"$f":"IF(OrigTable!A518=\"\",\"\",ScriptText!$E$1&CHAR(10)&ScriptText!$C$1)","v":""},{"$f":"IF(OrigTable!B518=\"\",\"\",ScriptText!$B$1&CHAR(10)&ScriptText!$D$1)","v":""},{"$f":"IF(OrigTable!B518=\"\",\"\",TEXT(OrigTable!B518,\"00\"))","v":""},{"$f":"IF(OrigTable!B518=\"\",\"\",ScriptText!$E$1&CHAR(10)&ScriptText!C513)","v":""},{"$f":"IF(OrigTable!C518=\"\",\"\",ScriptText!$B$1&CHAR(10)&ScriptText!$D$1)","v":""},{"$f":"IF(OrigTable!C518=\"\",\"\",IF(LEN(OrigTable!C518)>255,LEFT(OrigTable!C518,250)&\". . .\",OrigTable!C518))","v":""},{"$f":"IF(OrigTable!C518=\"\",\"\",ScriptText!$E$1&CHAR(10)&ScriptText!$C$1)","v":""},{"$f":"IF(OrigTable!D518=\"\",\"\",ScriptText!$B$1&CHAR(10)&ScriptText!$D$1)","v":""},{"$f":"IF(OrigTable!D518=\"\",\"\",TEXT(OrigTable!D518,\"00\"))","v":""},{"$f":"IF(OrigTable!D518=\"\",\"\",ScriptText!$E$1&CHAR(10)&ScriptText!$C$1)","v":""},{"$f":"IF(OrigTable!E518=\"\",\"\",ScriptText!$B$1&CHAR(10)&ScriptText!$D$1)","v":""},{"$f":"IF(OrigTable!E518=\"\",\"\",TEXT(OrigTable!E518,\"00\"))","v":""},{"$f":"IF(OrigTable!E518=\"\",\"\",ScriptText!$E$1&CHAR(10)&ScriptText!$C$1)","v":""},{"$f":"IF(OrigTable!F518=\"\",\"\",ScriptText!$B$1&CHAR(10)&ScriptText!$D$1)","v":""},{"$f":"IF(OrigTable!F518=\"\",\"\",TEXT(OrigTable!F518,\"00\"))","v":""},{"$f":"IF(OrigTable!F518=\"\",\"\",ScriptText!$E$1&CHAR(10)&ScriptText!$C$1)","v":""},{"$f":"IF(OrigTable!G518=\"\",\"\",ScriptText!$B$1&CHAR(10)&ScriptText!$D$1)","v":""},{"$f":"IF(OrigTable!G518=\"\",\"\",TEXT(OrigTable!G518,\"00\"))","v":""},{"$f":"IF(OrigTable!G518=\"\",\"\",ScriptText!$E$1&CHAR(10)&ScriptText!$C$1)","v":""},{"$f":"IF(LEN(A518)>3,ROW(),0)","v":0}]
["\n\n\n",{"$f":"IF(OrigTable!A519=\"\",\"\",ScriptText!$B$1&CHAR(10)&ScriptText!$D$1)","v":""},{"$f":"IF(OrigTable!A519=\"\",\"\",TEXT(OrigTable!A519,\"00\"))","v":""},{"$f":"IF(OrigTable!A519=\"\",\"\",ScriptText!$E$1&CHAR(10)&ScriptText!$C$1)","v":""},{"$f":"IF(OrigTable!B519=\"\",\"\",ScriptText!$B$1&CHAR(10)&ScriptText!$D$1)","v":""},{"$f":"IF(OrigTable!B519=\"\",\"\",TEXT(OrigTable!B519,\"00\"))","v":""},{"$f":"IF(OrigTable!B519=\"\",\"\",ScriptText!$E$1&CHAR(10)&ScriptText!C514)","v":""},{"$f":"IF(OrigTable!C519=\"\",\"\",ScriptText!$B$1&CHAR(10)&ScriptText!$D$1)","v":""},{"$f":"IF(OrigTable!C519=\"\",\"\",IF(LEN(OrigTable!C519)>255,LEFT(OrigTable!C519,250)&\". . .\",OrigTable!C519))","v":""},{"$f":"IF(OrigTable!C519=\"\",\"\",ScriptText!$E$1&CHAR(10)&ScriptText!$C$1)","v":""},{"$f":"IF(OrigTable!D519=\"\",\"\",ScriptText!$B$1&CHAR(10)&ScriptText!$D$1)","v":""},{"$f":"IF(OrigTable!D519=\"\",\"\",TEXT(OrigTable!D519,\"00\"))","v":""},{"$f":"IF(OrigTable!D519=\"\",\"\",ScriptText!$E$1&CHAR(10)&ScriptText!$C$1)","v":""},{"$f":"IF(OrigTable!E519=\"\",\"\",ScriptText!$B$1&CHAR(10)&ScriptText!$D$1)","v":""},{"$f":"IF(OrigTable!E519=\"\",\"\",TEXT(OrigTable!E519,\"00\"))","v":""},{"$f":"IF(OrigTable!E519=\"\",\"\",ScriptText!$E$1&CHAR(10)&ScriptText!$C$1)","v":""},{"$f":"IF(OrigTable!F519=\"\",\"\",ScriptText!$B$1&CHAR(10)&ScriptText!$D$1)","v":""},{"$f":"IF(OrigTable!F519=\"\",\"\",TEXT(OrigTable!F519,\"00\"))","v":""},{"$f":"IF(OrigTable!F519=\"\",\"\",ScriptText!$E$1&CHAR(10)&ScriptText!$C$1)","v":""},{"$f":"IF(OrigTable!G519=\"\",\"\",ScriptText!$B$1&CHAR(10)&ScriptText!$D$1)","v":""},{"$f":"IF(OrigTable!G519=\"\",\"\",TEXT(OrigTable!G519,\"00\"))","v":""},{"$f":"IF(OrigTable!G519=\"\",\"\",ScriptText!$E$1&CHAR(10)&ScriptText!$C$1)","v":""},0]
["\n\n\n",{"$f":"IF(OrigTable!A520=\"\",\"\",ScriptText!$B$1&CHAR(10)&ScriptText!$D$1)","v":""},{"$f":"IF(OrigTable!A520=\"\",\"\",TEXT(OrigTable!A520,\"00\"))","v":""},{"$f":"IF(OrigTable!A520=\"\",\"\",ScriptText!$E$1&CHAR(10)&ScriptText!$C$1)","v":""},{"$f":"IF(OrigTable!B520=\"\",\"\",ScriptText!$B$1&CHAR(10)&ScriptText!$D$1)","v":""},{"$f":"IF(OrigTable!B520=\"\",\"\",TEXT(OrigTable!B520,\"00\"))","v":""},{"$f":"IF(OrigTable!B520=\"\",\"\",ScriptText!$E$1&CHAR(10)&ScriptText!C515)","v":""},{"$f":"IF(OrigTable!C520=\"\",\"\",ScriptText!$B$1&CHAR(10)&ScriptText!$D$1)","v":""},{"$f":"IF(OrigTable!C520=\"\",\"\",IF(LEN(OrigTable!C520)>255,LEFT(OrigTable!C520,250)&\". . .\",OrigTable!C520))","v":""},{"$f":"IF(OrigTable!C520=\"\",\"\",ScriptText!$E$1&CHAR(10)&ScriptText!$C$1)","v":""},{"$f":"IF(OrigTable!D520=\"\",\"\",ScriptText!$B$1&CHAR(10)&ScriptText!$D$1)","v":""},{"$f":"IF(OrigTable!D520=\"\",\"\",TEXT(OrigTable!D520,\"00\"))","v":""},{"$f":"IF(OrigTable!D520=\"\",\"\",ScriptText!$E$1&CHAR(10)&ScriptText!$C$1)","v":""},{"$f":"IF(OrigTable!E520=\"\",\"\",ScriptText!$B$1&CHAR(10)&ScriptText!$D$1)","v":""},{"$f":"IF(OrigTable!E520=\"\",\"\",TEXT(OrigTable!E520,\"00\"))","v":""},{"$f":"IF(OrigTable!E520=\"\",\"\",ScriptText!$E$1&CHAR(10)&ScriptText!$C$1)","v":""},{"$f":"IF(OrigTable!F520=\"\",\"\",ScriptText!$B$1&CHAR(10)&ScriptText!$D$1)","v":""},{"$f":"IF(OrigTable!F520=\"\",\"\",TEXT(OrigTable!F520,\"00\"))","v":""},{"$f":"IF(OrigTable!F520=\"\",\"\",ScriptText!$E$1&CHAR(10)&ScriptText!$C$1)","v":""},{"$f":"IF(OrigTable!G520=\"\",\"\",ScriptText!$B$1&CHAR(10)&ScriptText!$D$1)","v":""},{"$f":"IF(OrigTable!G520=\"\",\"\",TEXT(OrigTable!G520,\"00\"))","v":""},{"$f":"IF(OrigTable!G520=\"\",\"\",ScriptText!$E$1&CHAR(10)&ScriptText!$C$1)","v":""},0]
[{"$f":"_xlfn.TEXTJOIN(\"\",TRUE,B521:D521)&CHAR(10)&_xlfn.TEXTJOIN(\"\",TRUE,E521:G521)&CHAR(10)&_xlfn.TEXTJOIN(\"\",TRUE,H521:J521)&CHAR(10)&_xlfn.TEXTJOIN(\"\",TRUE,K521:M521)&_xlfn.TEXTJOIN(\"\",TRUE,N521:P521)&_xlfn.TEXTJOIN(\"\",TRUE,Q521:S521)&_xlfn.TEXTJOIN(\"\",TRUE,T521:V521)","v":"\n\n\n"},{"$f":"IF(OrigTable!A521=\"\",\"\",ScriptText!$B$1&CHAR(10)&ScriptText!$D$1)","v":""},{"$f":"IF(OrigTable!A521=\"\",\"\",TEXT(OrigTable!A521,\"00\"))","v":""},{"$f":"IF(OrigTable!A521=\"\",\"\",ScriptText!$E$1&CHAR(10)&ScriptText!$C$1)","v":""},{"$f":"IF(OrigTable!B521=\"\",\"\",ScriptText!$B$1&CHAR(10)&ScriptText!$D$1)","v":""},{"$f":"IF(OrigTable!B521=\"\",\"\",TEXT(OrigTable!B521,\"00\"))","v":""},{"$f":"IF(OrigTable!B521=\"\",\"\",ScriptText!$E$1&CHAR(10)&ScriptText!C516)","v":""},{"$f":"IF(OrigTable!C521=\"\",\"\",ScriptText!$B$1&CHAR(10)&ScriptText!$D$1)","v":""},{"$f":"IF(OrigTable!C521=\"\",\"\",IF(LEN(OrigTable!C521)>255,LEFT(OrigTable!C521,250)&\". . .\",OrigTable!C521))","v":""},{"$f":"IF(OrigTable!C521=\"\",\"\",ScriptText!$E$1&CHAR(10)&ScriptText!$C$1)","v":""},{"$f":"IF(OrigTable!D521=\"\",\"\",ScriptText!$B$1&CHAR(10)&ScriptText!$D$1)","v":""},{"$f":"IF(OrigTable!D521=\"\",\"\",TEXT(OrigTable!D521,\"00\"))","v":""},{"$f":"IF(OrigTable!D521=\"\",\"\",ScriptText!$E$1&CHAR(10)&ScriptText!$C$1)","v":""},{"$f":"IF(OrigTable!E521=\"\",\"\",ScriptText!$B$1&CHAR(10)&ScriptText!$D$1)","v":""},{"$f":"IF(OrigTable!E521=\"\",\"\",TEXT(OrigTable!E521,\"00\"))","v":""},{"$f":"IF(OrigTable!E521=\"\",\"\",ScriptText!$E$1&CHAR(10)&ScriptText!$C$1)","v":""},{"$f":"IF(OrigTable!F521=\"\",\"\",ScriptText!$B$1&CHAR(10)&ScriptText!$D$1)","v":""},{"$f":"IF(OrigTable!F521=\"\",\"\",TEXT(OrigTable!F521,\"00\"))","v":""},{"$f":"IF(OrigTable!F521=\"\",\"\",ScriptText!$E$1&CHAR(10)&ScriptText!$C$1)","v":""},{"$f":"IF(OrigTable!G521=\"\",\"\",ScriptText!$B$1&CHAR(10)&ScriptText!$D$1)","v":""},{"$f":"IF(OrigTable!G521=\"\",\"\",TEXT(OrigTable!G521,\"00\"))","v":""},{"$f":"IF(OrigTable!G521=\"\",\"\",ScriptText!$E$1&CHAR(10)&ScriptText!$C$1)","v":""},0]
["\n\n\n",{"$f":"IF(OrigTable!A522=\"\",\"\",ScriptText!$B$1&CHAR(10)&ScriptText!$D$1)","v":""},{"$f":"IF(OrigTable!A522=\"\",\"\",TEXT(OrigTable!A522,\"00\"))","v":""},{"$f":"IF(OrigTable!A522=\"\",\"\",ScriptText!$E$1&CHAR(10)&ScriptText!$C$1)","v":""},{"$f":"IF(OrigTable!B522=\"\",\"\",ScriptText!$B$1&CHAR(10)&ScriptText!$D$1)","v":""},{"$f":"IF(OrigTable!B522=\"\",\"\",TEXT(OrigTable!B522,\"00\"))","v":""},{"$f":"IF(OrigTable!B522=\"\",\"\",ScriptText!$E$1&CHAR(10)&ScriptText!C517)","v":""},{"$f":"IF(OrigTable!C522=\"\",\"\",ScriptText!$B$1&CHAR(10)&ScriptText!$D$1)","v":""},{"$f":"IF(OrigTable!C522=\"\",\"\",IF(LEN(OrigTable!C522)>255,LEFT(OrigTable!C522,250)&\". . .\",OrigTable!C522))","v":""},{"$f":"IF(OrigTable!C522=\"\",\"\",ScriptText!$E$1&CHAR(10)&ScriptText!$C$1)","v":""},{"$f":"IF(OrigTable!D522=\"\",\"\",ScriptText!$B$1&CHAR(10)&ScriptText!$D$1)","v":""},{"$f":"IF(OrigTable!D522=\"\",\"\",TEXT(OrigTable!D522,\"00\"))","v":""},{"$f":"IF(OrigTable!D522=\"\",\"\",ScriptText!$E$1&CHAR(10)&ScriptText!$C$1)","v":""},{"$f":"IF(OrigTable!E522=\"\",\"\",ScriptText!$B$1&CHAR(10)&ScriptText!$D$1)","v":""},{"$f":"IF(OrigTable!E522=\"\",\"\",TEXT(OrigTable!E522,\"00\"))","v":""},{"$f":"IF(OrigTable!E522=\"\",\"\",ScriptText!$E$1&CHAR(10)&ScriptText!$C$1)","v":""},{"$f":"IF(OrigTable!F522=\"\",\"\",ScriptText!$B$1&CHAR(10)&ScriptText!$D$1)","v":""},{"$f":"IF(OrigTable!F522=\"\",\"\",TEXT(OrigTable!F522,\"00\"))","v":""},{"$f":"IF(OrigTable!F522=\"\",\"\",ScriptText!$E$1&CHAR(10)&ScriptText!$C$1)","v":""},{"$f":"IF(OrigTable!G522=\"\",\"\",ScriptText!$B$1&CHAR(10)&ScriptText!$D$1)","v":""},{"$f":"IF(OrigTable!G522=\"\",\"\",TEXT(OrigTable!G522,\"00\"))","v":""},{"$f":"IF(OrigTable!G522=\"\",\"\",ScriptText!$E$1&CHAR(10)&ScriptText!$C$1)","v":""},0]
["\n\n\n",{"$f":"IF(OrigTable!A523=\"\",\"\",ScriptText!$B$1&CHAR(10)&ScriptText!$D$1)","v":""},{"$f":"IF(OrigTable!A523=\"\",\"\",TEXT(OrigTable!A523,\"00\"))","v":""},{"$f":"IF(OrigTable!A523=\"\",\"\",ScriptText!$E$1&CHAR(10)&ScriptText!$C$1)","v":""},{"$f":"IF(OrigTable!B523=\"\",\"\",ScriptText!$B$1&CHAR(10)&ScriptText!$D$1)","v":""},{"$f":"IF(OrigTable!B523=\"\",\"\",TEXT(OrigTable!B523,\"00\"))","v":""},{"$f":"IF(OrigTable!B523=\"\",\"\",ScriptText!$E$1&CHAR(10)&ScriptText!C518)","v":""},{"$f":"IF(OrigTable!C523=\"\",\"\",ScriptText!$B$1&CHAR(10)&ScriptText!$D$1)","v":""},{"$f":"IF(OrigTable!C523=\"\",\"\",IF(LEN(OrigTable!C523)>255,LEFT(OrigTable!C523,250)&\". . .\",OrigTable!C523))","v":""},{"$f":"IF(OrigTable!C523=\"\",\"\",ScriptText!$E$1&CHAR(10)&ScriptText!$C$1)","v":""},{"$f":"IF(OrigTable!D523=\"\",\"\",ScriptText!$B$1&CHAR(10)&ScriptText!$D$1)","v":""},{"$f":"IF(OrigTable!D523=\"\",\"\",TEXT(OrigTable!D523,\"00\"))","v":""},{"$f":"IF(OrigTable!D523=\"\",\"\",ScriptText!$E$1&CHAR(10)&ScriptText!$C$1)","v":""},{"$f":"IF(OrigTable!E523=\"\",\"\",ScriptText!$B$1&CHAR(10)&ScriptText!$D$1)","v":""},{"$f":"IF(OrigTable!E523=\"\",\"\",TEXT(OrigTable!E523,\"00\"))","v":""},{"$f":"IF(OrigTable!E523=\"\",\"\",ScriptText!$E$1&CHAR(10)&ScriptText!$C$1)","v":""},{"$f":"IF(OrigTable!F523=\"\",\"\",ScriptText!$B$1&CHAR(10)&ScriptText!$D$1)","v":""},{"$f":"IF(OrigTable!F523=\"\",\"\",TEXT(OrigTable!F523,\"00\"))","v":""},{"$f":"IF(OrigTable!F523=\"\",\"\",ScriptText!$E$1&CHAR(10)&ScriptText!$C$1)","v":""},{"$f":"IF(OrigTable!G523=\"\",\"\",ScriptText!$B$1&CHAR(10)&ScriptText!$D$1)","v":""},{"$f":"IF(OrigTable!G523=\"\",\"\",TEXT(OrigTable!G523,\"00\"))","v":""},{"$f":"IF(OrigTable!G523=\"\",\"\",ScriptText!$E$1&CHAR(10)&ScriptText!$C$1)","v":""},0]
["\n\n\n",{"$f":"IF(OrigTable!A524=\"\",\"\",ScriptText!$B$1&CHAR(10)&ScriptText!$D$1)","v":""},{"$f":"IF(OrigTable!A524=\"\",\"\",TEXT(OrigTable!A524,\"00\"))","v":""},{"$f":"IF(OrigTable!A524=\"\",\"\",ScriptText!$E$1&CHAR(10)&ScriptText!$C$1)","v":""},{"$f":"IF(OrigTable!B524=\"\",\"\",ScriptText!$B$1&CHAR(10)&ScriptText!$D$1)","v":""},{"$f":"IF(OrigTable!B524=\"\",\"\",TEXT(OrigTable!B524,\"00\"))","v":""},{"$f":"IF(OrigTable!B524=\"\",\"\",ScriptText!$E$1&CHAR(10)&ScriptText!C519)","v":""},{"$f":"IF(OrigTable!C524=\"\",\"\",ScriptText!$B$1&CHAR(10)&ScriptText!$D$1)","v":""},{"$f":"IF(OrigTable!C524=\"\",\"\",IF(LEN(OrigTable!C524)>255,LEFT(OrigTable!C524,250)&\". . .\",OrigTable!C524))","v":""},{"$f":"IF(OrigTable!C524=\"\",\"\",ScriptText!$E$1&CHAR(10)&ScriptText!$C$1)","v":""},{"$f":"IF(OrigTable!D524=\"\",\"\",ScriptText!$B$1&CHAR(10)&ScriptText!$D$1)","v":""},{"$f":"IF(OrigTable!D524=\"\",\"\",TEXT(OrigTable!D524,\"00\"))","v":""},{"$f":"IF(OrigTable!D524=\"\",\"\",ScriptText!$E$1&CHAR(10)&ScriptText!$C$1)","v":""},{"$f":"IF(OrigTable!E524=\"\",\"\",ScriptText!$B$1&CHAR(10)&ScriptText!$D$1)","v":""},{"$f":"IF(OrigTable!E524=\"\",\"\",TEXT(OrigTable!E524,\"00\"))","v":""},{"$f":"IF(OrigTable!E524=\"\",\"\",ScriptText!$E$1&CHAR(10)&ScriptText!$C$1)","v":""},{"$f":"IF(OrigTable!F524=\"\",\"\",ScriptText!$B$1&CHAR(10)&ScriptText!$D$1)","v":""},{"$f":"IF(OrigTable!F524=\"\",\"\",TEXT(OrigTable!F524,\"00\"))","v":""},{"$f":"IF(OrigTable!F524=\"\",\"\",ScriptText!$E$1&CHAR(10)&ScriptText!$C$1)","v":""},{"$f":"IF(OrigTable!G524=\"\",\"\",ScriptText!$B$1&CHAR(10)&ScriptText!$D$1)","v":""},{"$f":"IF(OrigTable!G524=\"\",\"\",TEXT(OrigTable!G524,\"00\"))","v":""},{"$f":"IF(OrigTable!G524=\"\",\"\",ScriptText!$E$1&CHAR(10)&ScriptText!$C$1)","v":""},0]
["\n\n\n",{"$f":"IF(OrigTable!A525=\"\",\"\",ScriptText!$B$1&CHAR(10)&ScriptText!$D$1)","v":""},{"$f":"IF(OrigTable!A525=\"\",\"\",TEXT(OrigTable!A525,\"00\"))","v":""},{"$f":"IF(OrigTable!A525=\"\",\"\",ScriptText!$E$1&CHAR(10)&ScriptText!$C$1)","v":""},{"$f":"IF(OrigTable!B525=\"\",\"\",ScriptText!$B$1&CHAR(10)&ScriptText!$D$1)","v":""},{"$f":"IF(OrigTable!B525=\"\",\"\",TEXT(OrigTable!B525,\"00\"))","v":""},{"$f":"IF(OrigTable!B525=\"\",\"\",ScriptText!$E$1&CHAR(10)&ScriptText!C520)","v":""},{"$f":"IF(OrigTable!C525=\"\",\"\",ScriptText!$B$1&CHAR(10)&ScriptText!$D$1)","v":""},{"$f":"IF(OrigTable!C525=\"\",\"\",IF(LEN(OrigTable!C525)>255,LEFT(OrigTable!C525,250)&\". . .\",OrigTable!C525))","v":""},{"$f":"IF(OrigTable!C525=\"\",\"\",ScriptText!$E$1&CHAR(10)&ScriptText!$C$1)","v":""},{"$f":"IF(OrigTable!D525=\"\",\"\",ScriptText!$B$1&CHAR(10)&ScriptText!$D$1)","v":""},{"$f":"IF(OrigTable!D525=\"\",\"\",TEXT(OrigTable!D525,\"00\"))","v":""},{"$f":"IF(OrigTable!D525=\"\",\"\",ScriptText!$E$1&CHAR(10)&ScriptText!$C$1)","v":""},{"$f":"IF(OrigTable!E525=\"\",\"\",ScriptText!$B$1&CHAR(10)&ScriptText!$D$1)","v":""},{"$f":"IF(OrigTable!E525=\"\",\"\",TEXT(OrigTable!E525,\"00\"))","v":""},{"$f":"IF(OrigTable!E525=\"\",\"\",ScriptText!$E$1&CHAR(10)&ScriptText!$C$1)","v":""},{"$f":"IF(OrigTable!F525=\"\",\"\",ScriptText!$B$1&CHAR(10)&ScriptText!$D$1)","v":""},{"$f":"IF(OrigTable!F525=\"\",\"\",TEXT(OrigTable!F525,\"00\"))","v":""},{"$f":"IF(OrigTable!F525=\"\",\"\",ScriptText!$E$1&CHAR(10)&ScriptText!$C$1)","v":""},{"$f":"IF(OrigTable!G525=\"\",\"\",ScriptText!$B$1&CHAR(10)&ScriptText!$D$1)","v":""},{"$f":"IF(OrigTable!G525=\"\",\"\",TEXT(OrigTable!G525,\"00\"))","v":""},{"$f":"IF(OrigTable!G525=\"\",\"\",ScriptText!$E$1&CHAR(10)&ScriptText!$C$1)","v":""},0]
["\n\n\n",{"$f":"IF(OrigTable!A526=\"\",\"\",ScriptText!$B$1&CHAR(10)&ScriptText!$D$1)","v":""},{"$f":"IF(OrigTable!A526=\"\",\"\",TEXT(OrigTable!A526,\"00\"))","v":""},{"$f":"IF(OrigTable!A526=\"\",\"\",ScriptText!$E$1&CHAR(10)&ScriptText!$C$1)","v":""},{"$f":"IF(OrigTable!B526=\"\",\"\",ScriptText!$B$1&CHAR(10)&ScriptText!$D$1)","v":""},{"$f":"IF(OrigTable!B526=\"\",\"\",TEXT(OrigTable!B526,\"00\"))","v":""},{"$f":"IF(OrigTable!B526=\"\",\"\",ScriptText!$E$1&CHAR(10)&ScriptText!C521)","v":""},{"$f":"IF(OrigTable!C526=\"\",\"\",ScriptText!$B$1&CHAR(10)&ScriptText!$D$1)","v":""},{"$f":"IF(OrigTable!C526=\"\",\"\",IF(LEN(OrigTable!C526)>255,LEFT(OrigTable!C526,250)&\". . .\",OrigTable!C526))","v":""},{"$f":"IF(OrigTable!C526=\"\",\"\",ScriptText!$E$1&CHAR(10)&ScriptText!$C$1)","v":""},{"$f":"IF(OrigTable!D526=\"\",\"\",ScriptText!$B$1&CHAR(10)&ScriptText!$D$1)","v":""},{"$f":"IF(OrigTable!D526=\"\",\"\",TEXT(OrigTable!D526,\"00\"))","v":""},{"$f":"IF(OrigTable!D526=\"\",\"\",ScriptText!$E$1&CHAR(10)&ScriptText!$C$1)","v":""},{"$f":"IF(OrigTable!E526=\"\",\"\",ScriptText!$B$1&CHAR(10)&ScriptText!$D$1)","v":""},{"$f":"IF(OrigTable!E526=\"\",\"\",TEXT(OrigTable!E526,\"00\"))","v":""},{"$f":"IF(OrigTable!E526=\"\",\"\",ScriptText!$E$1&CHAR(10)&ScriptText!$C$1)","v":""},{"$f":"IF(OrigTable!F526=\"\",\"\",ScriptText!$B$1&CHAR(10)&ScriptText!$D$1)","v":""},{"$f":"IF(OrigTable!F526=\"\",\"\",TEXT(OrigTable!F526,\"00\"))","v":""},{"$f":"IF(OrigTable!F526=\"\",\"\",ScriptText!$E$1&CHAR(10)&ScriptText!$C$1)","v":""},{"$f":"IF(OrigTable!G526=\"\",\"\",ScriptText!$B$1&CHAR(10)&ScriptText!$D$1)","v":""},{"$f":"IF(OrigTable!G526=\"\",\"\",TEXT(OrigTable!G526,\"00\"))","v":""},{"$f":"IF(OrigTable!G526=\"\",\"\",ScriptText!$E$1&CHAR(10)&ScriptText!$C$1)","v":""},0]
["\n\n\n",{"$f":"IF(OrigTable!A527=\"\",\"\",ScriptText!$B$1&CHAR(10)&ScriptText!$D$1)","v":""},{"$f":"IF(OrigTable!A527=\"\",\"\",TEXT(OrigTable!A527,\"00\"))","v":""},{"$f":"IF(OrigTable!A527=\"\",\"\",ScriptText!$E$1&CHAR(10)&ScriptText!$C$1)","v":""},{"$f":"IF(OrigTable!B527=\"\",\"\",ScriptText!$B$1&CHAR(10)&ScriptText!$D$1)","v":""},{"$f":"IF(OrigTable!B527=\"\",\"\",TEXT(OrigTable!B527,\"00\"))","v":""},{"$f":"IF(OrigTable!B527=\"\",\"\",ScriptText!$E$1&CHAR(10)&ScriptText!C522)","v":""},{"$f":"IF(OrigTable!C527=\"\",\"\",ScriptText!$B$1&CHAR(10)&ScriptText!$D$1)","v":""},{"$f":"IF(OrigTable!C527=\"\",\"\",IF(LEN(OrigTable!C527)>255,LEFT(OrigTable!C527,250)&\". . .\",OrigTable!C527))","v":""},{"$f":"IF(OrigTable!C527=\"\",\"\",ScriptText!$E$1&CHAR(10)&ScriptText!$C$1)","v":""},{"$f":"IF(OrigTable!D527=\"\",\"\",ScriptText!$B$1&CHAR(10)&ScriptText!$D$1)","v":""},{"$f":"IF(OrigTable!D527=\"\",\"\",TEXT(OrigTable!D527,\"00\"))","v":""},{"$f":"IF(OrigTable!D527=\"\",\"\",ScriptText!$E$1&CHAR(10)&ScriptText!$C$1)","v":""},{"$f":"IF(OrigTable!E527=\"\",\"\",ScriptText!$B$1&CHAR(10)&ScriptText!$D$1)","v":""},{"$f":"IF(OrigTable!E527=\"\",\"\",TEXT(OrigTable!E527,\"00\"))","v":""},{"$f":"IF(OrigTable!E527=\"\",\"\",ScriptText!$E$1&CHAR(10)&ScriptText!$C$1)","v":""},{"$f":"IF(OrigTable!F527=\"\",\"\",ScriptText!$B$1&CHAR(10)&ScriptText!$D$1)","v":""},{"$f":"IF(OrigTable!F527=\"\",\"\",TEXT(OrigTable!F527,\"00\"))","v":""},{"$f":"IF(OrigTable!F527=\"\",\"\",ScriptText!$E$1&CHAR(10)&ScriptText!$C$1)","v":""},{"$f":"IF(OrigTable!G527=\"\",\"\",ScriptText!$B$1&CHAR(10)&ScriptText!$D$1)","v":""},{"$f":"IF(OrigTable!G527=\"\",\"\",TEXT(OrigTable!G527,\"00\"))","v":""},{"$f":"IF(OrigTable!G527=\"\",\"\",ScriptText!$E$1&CHAR(10)&ScriptText!$C$1)","v":""},0]
["\n\n\n",{"$f":"IF(OrigTable!A528=\"\",\"\",ScriptText!$B$1&CHAR(10)&ScriptText!$D$1)","v":""},{"$f":"IF(OrigTable!A528=\"\",\"\",TEXT(OrigTable!A528,\"00\"))","v":""},{"$f":"IF(OrigTable!A528=\"\",\"\",ScriptText!$E$1&CHAR(10)&ScriptText!$C$1)","v":""},{"$f":"IF(OrigTable!B528=\"\",\"\",ScriptText!$B$1&CHAR(10)&ScriptText!$D$1)","v":""},{"$f":"IF(OrigTable!B528=\"\",\"\",TEXT(OrigTable!B528,\"00\"))","v":""},{"$f":"IF(OrigTable!B528=\"\",\"\",ScriptText!$E$1&CHAR(10)&ScriptText!C523)","v":""},{"$f":"IF(OrigTable!C528=\"\",\"\",ScriptText!$B$1&CHAR(10)&ScriptText!$D$1)","v":""},{"$f":"IF(OrigTable!C528=\"\",\"\",IF(LEN(OrigTable!C528)>255,LEFT(OrigTable!C528,250)&\". . .\",OrigTable!C528))","v":""},{"$f":"IF(OrigTable!C528=\"\",\"\",ScriptText!$E$1&CHAR(10)&ScriptText!$C$1)","v":""},{"$f":"IF(OrigTable!D528=\"\",\"\",ScriptText!$B$1&CHAR(10)&ScriptText!$D$1)","v":""},{"$f":"IF(OrigTable!D528=\"\",\"\",TEXT(OrigTable!D528,\"00\"))","v":""},{"$f":"IF(OrigTable!D528=\"\",\"\",ScriptText!$E$1&CHAR(10)&ScriptText!$C$1)","v":""},{"$f":"IF(OrigTable!E528=\"\",\"\",ScriptText!$B$1&CHAR(10)&ScriptText!$D$1)","v":""},{"$f":"IF(OrigTable!E528=\"\",\"\",TEXT(OrigTable!E528,\"00\"))","v":""},{"$f":"IF(OrigTable!E528=\"\",\"\",ScriptText!$E$1&CHAR(10)&ScriptText!$C$1)","v":""},{"$f":"IF(OrigTable!F528=\"\",\"\",ScriptText!$B$1&CHAR(10)&ScriptText!$D$1)","v":""},{"$f":"IF(OrigTable!F528=\"\",\"\",TEXT(OrigTable!F528,\"00\"))","v":""},{"$f":"IF(OrigTable!F528=\"\",\"\",ScriptText!$E$1&CHAR(10)&ScriptText!$C$1)","v":""},{"$f":"IF(OrigTable!G528=\"\",\"\",ScriptText!$B$1&CHAR(10)&ScriptText!$D$1)","v":""},{"$f":"IF(OrigTable!G528=\"\",\"\",TEXT(OrigTable!G528,\"00\"))","v":""},{"$f":"IF(OrigTable!G528=\"\",\"\",ScriptText!$E$1&CHAR(10)&ScriptText!$C$1)","v":""},0]
["\n\n\n",{"$f":"IF(OrigTable!A529=\"\",\"\",ScriptText!$B$1&CHAR(10)&ScriptText!$D$1)","v":""},{"$f":"IF(OrigTable!A529=\"\",\"\",TEXT(OrigTable!A529,\"00\"))","v":""},{"$f":"IF(OrigTable!A529=\"\",\"\",ScriptText!$E$1&CHAR(10)&ScriptText!$C$1)","v":""},{"$f":"IF(OrigTable!B529=\"\",\"\",ScriptText!$B$1&CHAR(10)&ScriptText!$D$1)","v":""},{"$f":"IF(OrigTable!B529=\"\",\"\",TEXT(OrigTable!B529,\"00\"))","v":""},{"$f":"IF(OrigTable!B529=\"\",\"\",ScriptText!$E$1&CHAR(10)&ScriptText!C524)","v":""},{"$f":"IF(OrigTable!C529=\"\",\"\",ScriptText!$B$1&CHAR(10)&ScriptText!$D$1)","v":""},{"$f":"IF(OrigTable!C529=\"\",\"\",IF(LEN(OrigTable!C529)>255,LEFT(OrigTable!C529,250)&\". . .\",OrigTable!C529))","v":""},{"$f":"IF(OrigTable!C529=\"\",\"\",ScriptText!$E$1&CHAR(10)&ScriptText!$C$1)","v":""},{"$f":"IF(OrigTable!D529=\"\",\"\",ScriptText!$B$1&CHAR(10)&ScriptText!$D$1)","v":""},{"$f":"IF(OrigTable!D529=\"\",\"\",TEXT(OrigTable!D529,\"00\"))","v":""},{"$f":"IF(OrigTable!D529=\"\",\"\",ScriptText!$E$1&CHAR(10)&ScriptText!$C$1)","v":""},{"$f":"IF(OrigTable!E529=\"\",\"\",ScriptText!$B$1&CHAR(10)&ScriptText!$D$1)","v":""},{"$f":"IF(OrigTable!E529=\"\",\"\",TEXT(OrigTable!E529,\"00\"))","v":""},{"$f":"IF(OrigTable!E529=\"\",\"\",ScriptText!$E$1&CHAR(10)&ScriptText!$C$1)","v":""},{"$f":"IF(OrigTable!F529=\"\",\"\",ScriptText!$B$1&CHAR(10)&ScriptText!$D$1)","v":""},{"$f":"IF(OrigTable!F529=\"\",\"\",TEXT(OrigTable!F529,\"00\"))","v":""},{"$f":"IF(OrigTable!F529=\"\",\"\",ScriptText!$E$1&CHAR(10)&ScriptText!$C$1)","v":""},{"$f":"IF(OrigTable!G529=\"\",\"\",ScriptText!$B$1&CHAR(10)&ScriptText!$D$1)","v":""},{"$f":"IF(OrigTable!G529=\"\",\"\",TEXT(OrigTable!G529,\"00\"))","v":""},{"$f":"IF(OrigTable!G529=\"\",\"\",ScriptText!$E$1&CHAR(10)&ScriptText!$C$1)","v":""},0]
["\n\n\n",{"$f":"IF(OrigTable!A530=\"\",\"\",ScriptText!$B$1&CHAR(10)&ScriptText!$D$1)","v":""},{"$f":"IF(OrigTable!A530=\"\",\"\",TEXT(OrigTable!A530,\"00\"))","v":""},{"$f":"IF(OrigTable!A530=\"\",\"\",ScriptText!$E$1&CHAR(10)&ScriptText!$C$1)","v":""},{"$f":"IF(OrigTable!B530=\"\",\"\",ScriptText!$B$1&CHAR(10)&ScriptText!$D$1)","v":""},{"$f":"IF(OrigTable!B530=\"\",\"\",TEXT(OrigTable!B530,\"00\"))","v":""},{"$f":"IF(OrigTable!B530=\"\",\"\",ScriptText!$E$1&CHAR(10)&ScriptText!C525)","v":""},{"$f":"IF(OrigTable!C530=\"\",\"\",ScriptText!$B$1&CHAR(10)&ScriptText!$D$1)","v":""},{"$f":"IF(OrigTable!C530=\"\",\"\",IF(LEN(OrigTable!C530)>255,LEFT(OrigTable!C530,250)&\". . .\",OrigTable!C530))","v":""},{"$f":"IF(OrigTable!C530=\"\",\"\",ScriptText!$E$1&CHAR(10)&ScriptText!$C$1)","v":""},{"$f":"IF(OrigTable!D530=\"\",\"\",ScriptText!$B$1&CHAR(10)&ScriptText!$D$1)","v":""},{"$f":"IF(OrigTable!D530=\"\",\"\",TEXT(OrigTable!D530,\"00\"))","v":""},{"$f":"IF(OrigTable!D530=\"\",\"\",ScriptText!$E$1&CHAR(10)&ScriptText!$C$1)","v":""},{"$f":"IF(OrigTable!E530=\"\",\"\",ScriptText!$B$1&CHAR(10)&ScriptText!$D$1)","v":""},{"$f":"IF(OrigTable!E530=\"\",\"\",TEXT(OrigTable!E530,\"00\"))","v":""},{"$f":"IF(OrigTable!E530=\"\",\"\",ScriptText!$E$1&CHAR(10)&ScriptText!$C$1)","v":""},{"$f":"IF(OrigTable!F530=\"\",\"\",ScriptText!$B$1&CHAR(10)&ScriptText!$D$1)","v":""},{"$f":"IF(OrigTable!F530=\"\",\"\",TEXT(OrigTable!F530,\"00\"))","v":""},{"$f":"IF(OrigTable!F530=\"\",\"\",ScriptText!$E$1&CHAR(10)&ScriptText!$C$1)","v":""},{"$f":"IF(OrigTable!G530=\"\",\"\",ScriptText!$B$1&CHAR(10)&ScriptText!$D$1)","v":""},{"$f":"IF(OrigTable!G530=\"\",\"\",TEXT(OrigTable!G530,\"00\"))","v":""},{"$f":"IF(OrigTable!G530=\"\",\"\",ScriptText!$E$1&CHAR(10)&ScriptText!$C$1)","v":""},0]
["\n\n\n",{"$f":"IF(OrigTable!A531=\"\",\"\",ScriptText!$B$1&CHAR(10)&ScriptText!$D$1)","v":""},{"$f":"IF(OrigTable!A531=\"\",\"\",TEXT(OrigTable!A531,\"00\"))","v":""},{"$f":"IF(OrigTable!A531=\"\",\"\",ScriptText!$E$1&CHAR(10)&ScriptText!$C$1)","v":""},{"$f":"IF(OrigTable!B531=\"\",\"\",ScriptText!$B$1&CHAR(10)&ScriptText!$D$1)","v":""},{"$f":"IF(OrigTable!B531=\"\",\"\",TEXT(OrigTable!B531,\"00\"))","v":""},{"$f":"IF(OrigTable!B531=\"\",\"\",ScriptText!$E$1&CHAR(10)&ScriptText!C526)","v":""},{"$f":"IF(OrigTable!C531=\"\",\"\",ScriptText!$B$1&CHAR(10)&ScriptText!$D$1)","v":""},{"$f":"IF(OrigTable!C531=\"\",\"\",IF(LEN(OrigTable!C531)>255,LEFT(OrigTable!C531,250)&\". . .\",OrigTable!C531))","v":""},{"$f":"IF(OrigTable!C531=\"\",\"\",ScriptText!$E$1&CHAR(10)&ScriptText!$C$1)","v":""},{"$f":"IF(OrigTable!D531=\"\",\"\",ScriptText!$B$1&CHAR(10)&ScriptText!$D$1)","v":""},{"$f":"IF(OrigTable!D531=\"\",\"\",TEXT(OrigTable!D531,\"00\"))","v":""},{"$f":"IF(OrigTable!D531=\"\",\"\",ScriptText!$E$1&CHAR(10)&ScriptText!$C$1)","v":""},{"$f":"IF(OrigTable!E531=\"\",\"\",ScriptText!$B$1&CHAR(10)&ScriptText!$D$1)","v":""},{"$f":"IF(OrigTable!E531=\"\",\"\",TEXT(OrigTable!E531,\"00\"))","v":""},{"$f":"IF(OrigTable!E531=\"\",\"\",ScriptText!$E$1&CHAR(10)&ScriptText!$C$1)","v":""},{"$f":"IF(OrigTable!F531=\"\",\"\",ScriptText!$B$1&CHAR(10)&ScriptText!$D$1)","v":""},{"$f":"IF(OrigTable!F531=\"\",\"\",TEXT(OrigTable!F531,\"00\"))","v":""},{"$f":"IF(OrigTable!F531=\"\",\"\",ScriptText!$E$1&CHAR(10)&ScriptText!$C$1)","v":""},{"$f":"IF(OrigTable!G531=\"\",\"\",ScriptText!$B$1&CHAR(10)&ScriptText!$D$1)","v":""},{"$f":"IF(OrigTable!G531=\"\",\"\",TEXT(OrigTable!G531,\"00\"))","v":""},{"$f":"IF(OrigTable!G531=\"\",\"\",ScriptText!$E$1&CHAR(10)&ScriptText!$C$1)","v":""},0]
["\n\n\n",{"$f":"IF(OrigTable!A532=\"\",\"\",ScriptText!$B$1&CHAR(10)&ScriptText!$D$1)","v":""},{"$f":"IF(OrigTable!A532=\"\",\"\",TEXT(OrigTable!A532,\"00\"))","v":""},{"$f":"IF(OrigTable!A532=\"\",\"\",ScriptText!$E$1&CHAR(10)&ScriptText!$C$1)","v":""},{"$f":"IF(OrigTable!B532=\"\",\"\",ScriptText!$B$1&CHAR(10)&ScriptText!$D$1)","v":""},{"$f":"IF(OrigTable!B532=\"\",\"\",TEXT(OrigTable!B532,\"00\"))","v":""},{"$f":"IF(OrigTable!B532=\"\",\"\",ScriptText!$E$1&CHAR(10)&ScriptText!C527)","v":""},{"$f":"IF(OrigTable!C532=\"\",\"\",ScriptText!$B$1&CHAR(10)&ScriptText!$D$1)","v":""},{"$f":"IF(OrigTable!C532=\"\",\"\",IF(LEN(OrigTable!C532)>255,LEFT(OrigTable!C532,250)&\". . .\",OrigTable!C532))","v":""},{"$f":"IF(OrigTable!C532=\"\",\"\",ScriptText!$E$1&CHAR(10)&ScriptText!$C$1)","v":""},{"$f":"IF(OrigTable!D532=\"\",\"\",ScriptText!$B$1&CHAR(10)&ScriptText!$D$1)","v":""},{"$f":"IF(OrigTable!D532=\"\",\"\",TEXT(OrigTable!D532,\"00\"))","v":""},{"$f":"IF(OrigTable!D532=\"\",\"\",ScriptText!$E$1&CHAR(10)&ScriptText!$C$1)","v":""},{"$f":"IF(OrigTable!E532=\"\",\"\",ScriptText!$B$1&CHAR(10)&ScriptText!$D$1)","v":""},{"$f":"IF(OrigTable!E532=\"\",\"\",TEXT(OrigTable!E532,\"00\"))","v":""},{"$f":"IF(OrigTable!E532=\"\",\"\",ScriptText!$E$1&CHAR(10)&ScriptText!$C$1)","v":""},{"$f":"IF(OrigTable!F532=\"\",\"\",ScriptText!$B$1&CHAR(10)&ScriptText!$D$1)","v":""},{"$f":"IF(OrigTable!F532=\"\",\"\",TEXT(OrigTable!F532,\"00\"))","v":""},{"$f":"IF(OrigTable!F532=\"\",\"\",ScriptText!$E$1&CHAR(10)&ScriptText!$C$1)","v":""},{"$f":"IF(OrigTable!G532=\"\",\"\",ScriptText!$B$1&CHAR(10)&ScriptText!$D$1)","v":""},{"$f":"IF(OrigTable!G532=\"\",\"\",TEXT(OrigTable!G532,\"00\"))","v":""},{"$f":"IF(OrigTable!G532=\"\",\"\",ScriptText!$E$1&CHAR(10)&ScriptText!$C$1)","v":""},0]
["\n\n\n",{"$f":"IF(OrigTable!A533=\"\",\"\",ScriptText!$B$1&CHAR(10)&ScriptText!$D$1)","v":""},{"$f":"IF(OrigTable!A533=\"\",\"\",TEXT(OrigTable!A533,\"00\"))","v":""},{"$f":"IF(OrigTable!A533=\"\",\"\",ScriptText!$E$1&CHAR(10)&ScriptText!$C$1)","v":""},{"$f":"IF(OrigTable!B533=\"\",\"\",ScriptText!$B$1&CHAR(10)&ScriptText!$D$1)","v":""},{"$f":"IF(OrigTable!B533=\"\",\"\",TEXT(OrigTable!B533,\"00\"))","v":""},{"$f":"IF(OrigTable!B533=\"\",\"\",ScriptText!$E$1&CHAR(10)&ScriptText!C528)","v":""},{"$f":"IF(OrigTable!C533=\"\",\"\",ScriptText!$B$1&CHAR(10)&ScriptText!$D$1)","v":""},{"$f":"IF(OrigTable!C533=\"\",\"\",IF(LEN(OrigTable!C533)>255,LEFT(OrigTable!C533,250)&\". . .\",OrigTable!C533))","v":""},{"$f":"IF(OrigTable!C533=\"\",\"\",ScriptText!$E$1&CHAR(10)&ScriptText!$C$1)","v":""},{"$f":"IF(OrigTable!D533=\"\",\"\",ScriptText!$B$1&CHAR(10)&ScriptText!$D$1)","v":""},{"$f":"IF(OrigTable!D533=\"\",\"\",TEXT(OrigTable!D533,\"00\"))","v":""},{"$f":"IF(OrigTable!D533=\"\",\"\",ScriptText!$E$1&CHAR(10)&ScriptText!$C$1)","v":""},{"$f":"IF(OrigTable!E533=\"\",\"\",ScriptText!$B$1&CHAR(10)&ScriptText!$D$1)","v":""},{"$f":"IF(OrigTable!E533=\"\",\"\",TEXT(OrigTable!E533,\"00\"))","v":""},{"$f":"IF(OrigTable!E533=\"\",\"\",ScriptText!$E$1&CHAR(10)&ScriptText!$C$1)","v":""},{"$f":"IF(OrigTable!F533=\"\",\"\",ScriptText!$B$1&CHAR(10)&ScriptText!$D$1)","v":""},{"$f":"IF(OrigTable!F533=\"\",\"\",TEXT(OrigTable!F533,\"00\"))","v":""},{"$f":"IF(OrigTable!F533=\"\",\"\",ScriptText!$E$1&CHAR(10)&ScriptText!$C$1)","v":""},{"$f":"IF(OrigTable!G533=\"\",\"\",ScriptText!$B$1&CHAR(10)&ScriptText!$D$1)","v":""},{"$f":"IF(OrigTable!G533=\"\",\"\",TEXT(OrigTable!G533,\"00\"))","v":""},{"$f":"IF(OrigTable!G533=\"\",\"\",ScriptText!$E$1&CHAR(10)&ScriptText!$C$1)","v":""},0]
["\n\n\n",{"$f":"IF(OrigTable!A534=\"\",\"\",ScriptText!$B$1&CHAR(10)&ScriptText!$D$1)","v":""},{"$f":"IF(OrigTable!A534=\"\",\"\",TEXT(OrigTable!A534,\"00\"))","v":""},{"$f":"IF(OrigTable!A534=\"\",\"\",ScriptText!$E$1&CHAR(10)&ScriptText!$C$1)","v":""},{"$f":"IF(OrigTable!B534=\"\",\"\",ScriptText!$B$1&CHAR(10)&ScriptText!$D$1)","v":""},{"$f":"IF(OrigTable!B534=\"\",\"\",TEXT(OrigTable!B534,\"00\"))","v":""},{"$f":"IF(OrigTable!B534=\"\",\"\",ScriptText!$E$1&CHAR(10)&ScriptText!C529)","v":""},{"$f":"IF(OrigTable!C534=\"\",\"\",ScriptText!$B$1&CHAR(10)&ScriptText!$D$1)","v":""},{"$f":"IF(OrigTable!C534=\"\",\"\",IF(LEN(OrigTable!C534)>255,LEFT(OrigTable!C534,250)&\". . .\",OrigTable!C534))","v":""},{"$f":"IF(OrigTable!C534=\"\",\"\",ScriptText!$E$1&CHAR(10)&ScriptText!$C$1)","v":""},{"$f":"IF(OrigTable!D534=\"\",\"\",ScriptText!$B$1&CHAR(10)&ScriptText!$D$1)","v":""},{"$f":"IF(OrigTable!D534=\"\",\"\",TEXT(OrigTable!D534,\"00\"))","v":""},{"$f":"IF(OrigTable!D534=\"\",\"\",ScriptText!$E$1&CHAR(10)&ScriptText!$C$1)","v":""},{"$f":"IF(OrigTable!E534=\"\",\"\",ScriptText!$B$1&CHAR(10)&ScriptText!$D$1)","v":""},{"$f":"IF(OrigTable!E534=\"\",\"\",TEXT(OrigTable!E534,\"00\"))","v":""},{"$f":"IF(OrigTable!E534=\"\",\"\",ScriptText!$E$1&CHAR(10)&ScriptText!$C$1)","v":""},{"$f":"IF(OrigTable!F534=\"\",\"\",ScriptText!$B$1&CHAR(10)&ScriptText!$D$1)","v":""},{"$f":"IF(OrigTable!F534=\"\",\"\",TEXT(OrigTable!F534,\"00\"))","v":""},{"$f":"IF(OrigTable!F534=\"\",\"\",ScriptText!$E$1&CHAR(10)&ScriptText!$C$1)","v":""},{"$f":"IF(OrigTable!G534=\"\",\"\",ScriptText!$B$1&CHAR(10)&ScriptText!$D$1)","v":""},{"$f":"IF(OrigTable!G534=\"\",\"\",TEXT(OrigTable!G534,\"00\"))","v":""},{"$f":"IF(OrigTable!G534=\"\",\"\",ScriptText!$E$1&CHAR(10)&ScriptText!$C$1)","v":""},0]
["\n\n\n",{"$f":"IF(OrigTable!A535=\"\",\"\",ScriptText!$B$1&CHAR(10)&ScriptText!$D$1)","v":""},{"$f":"IF(OrigTable!A535=\"\",\"\",TEXT(OrigTable!A535,\"00\"))","v":""},{"$f":"IF(OrigTable!A535=\"\",\"\",ScriptText!$E$1&CHAR(10)&ScriptText!$C$1)","v":""},{"$f":"IF(OrigTable!B535=\"\",\"\",ScriptText!$B$1&CHAR(10)&ScriptText!$D$1)","v":""},{"$f":"IF(OrigTable!B535=\"\",\"\",TEXT(OrigTable!B535,\"00\"))","v":""},{"$f":"IF(OrigTable!B535=\"\",\"\",ScriptText!$E$1&CHAR(10)&ScriptText!C530)","v":""},{"$f":"IF(OrigTable!C535=\"\",\"\",ScriptText!$B$1&CHAR(10)&ScriptText!$D$1)","v":""},{"$f":"IF(OrigTable!C535=\"\",\"\",IF(LEN(OrigTable!C535)>255,LEFT(OrigTable!C535,250)&\". . .\",OrigTable!C535))","v":""},{"$f":"IF(OrigTable!C535=\"\",\"\",ScriptText!$E$1&CHAR(10)&ScriptText!$C$1)","v":""},{"$f":"IF(OrigTable!D535=\"\",\"\",ScriptText!$B$1&CHAR(10)&ScriptText!$D$1)","v":""},{"$f":"IF(OrigTable!D535=\"\",\"\",TEXT(OrigTable!D535,\"00\"))","v":""},{"$f":"IF(OrigTable!D535=\"\",\"\",ScriptText!$E$1&CHAR(10)&ScriptText!$C$1)","v":""},{"$f":"IF(OrigTable!E535=\"\",\"\",ScriptText!$B$1&CHAR(10)&ScriptText!$D$1)","v":""},{"$f":"IF(OrigTable!E535=\"\",\"\",TEXT(OrigTable!E535,\"00\"))","v":""},{"$f":"IF(OrigTable!E535=\"\",\"\",ScriptText!$E$1&CHAR(10)&ScriptText!$C$1)","v":""},{"$f":"IF(OrigTable!F535=\"\",\"\",ScriptText!$B$1&CHAR(10)&ScriptText!$D$1)","v":""},{"$f":"IF(OrigTable!F535=\"\",\"\",TEXT(OrigTable!F535,\"00\"))","v":""},{"$f":"IF(OrigTable!F535=\"\",\"\",ScriptText!$E$1&CHAR(10)&ScriptText!$C$1)","v":""},{"$f":"IF(OrigTable!G535=\"\",\"\",ScriptText!$B$1&CHAR(10)&ScriptText!$D$1)","v":""},{"$f":"IF(OrigTable!G535=\"\",\"\",TEXT(OrigTable!G535,\"00\"))","v":""},{"$f":"IF(OrigTable!G535=\"\",\"\",ScriptText!$E$1&CHAR(10)&ScriptText!$C$1)","v":""},0]
["\n\n\n",{"$f":"IF(OrigTable!A536=\"\",\"\",ScriptText!$B$1&CHAR(10)&ScriptText!$D$1)","v":""},{"$f":"IF(OrigTable!A536=\"\",\"\",TEXT(OrigTable!A536,\"00\"))","v":""},{"$f":"IF(OrigTable!A536=\"\",\"\",ScriptText!$E$1&CHAR(10)&ScriptText!$C$1)","v":""},{"$f":"IF(OrigTable!B536=\"\",\"\",ScriptText!$B$1&CHAR(10)&ScriptText!$D$1)","v":""},{"$f":"IF(OrigTable!B536=\"\",\"\",TEXT(OrigTable!B536,\"00\"))","v":""},{"$f":"IF(OrigTable!B536=\"\",\"\",ScriptText!$E$1&CHAR(10)&ScriptText!C531)","v":""},{"$f":"IF(OrigTable!C536=\"\",\"\",ScriptText!$B$1&CHAR(10)&ScriptText!$D$1)","v":""},{"$f":"IF(OrigTable!C536=\"\",\"\",IF(LEN(OrigTable!C536)>255,LEFT(OrigTable!C536,250)&\". . .\",OrigTable!C536))","v":""},{"$f":"IF(OrigTable!C536=\"\",\"\",ScriptText!$E$1&CHAR(10)&ScriptText!$C$1)","v":""},{"$f":"IF(OrigTable!D536=\"\",\"\",ScriptText!$B$1&CHAR(10)&ScriptText!$D$1)","v":""},{"$f":"IF(OrigTable!D536=\"\",\"\",TEXT(OrigTable!D536,\"00\"))","v":""},{"$f":"IF(OrigTable!D536=\"\",\"\",ScriptText!$E$1&CHAR(10)&ScriptText!$C$1)","v":""},{"$f":"IF(OrigTable!E536=\"\",\"\",ScriptText!$B$1&CHAR(10)&ScriptText!$D$1)","v":""},{"$f":"IF(OrigTable!E536=\"\",\"\",TEXT(OrigTable!E536,\"00\"))","v":""},{"$f":"IF(OrigTable!E536=\"\",\"\",ScriptText!$E$1&CHAR(10)&ScriptText!$C$1)","v":""},{"$f":"IF(OrigTable!F536=\"\",\"\",ScriptText!$B$1&CHAR(10)&ScriptText!$D$1)","v":""},{"$f":"IF(OrigTable!F536=\"\",\"\",TEXT(OrigTable!F536,\"00\"))","v":""},{"$f":"IF(OrigTable!F536=\"\",\"\",ScriptText!$E$1&CHAR(10)&ScriptText!$C$1)","v":""},{"$f":"IF(OrigTable!G536=\"\",\"\",ScriptText!$B$1&CHAR(10)&ScriptText!$D$1)","v":""},{"$f":"IF(OrigTable!G536=\"\",\"\",TEXT(OrigTable!G536,\"00\"))","v":""},{"$f":"IF(OrigTable!G536=\"\",\"\",ScriptText!$E$1&CHAR(10)&ScriptText!$C$1)","v":""},0]
["\n\n\n",{"$f":"IF(OrigTable!A537=\"\",\"\",ScriptText!$B$1&CHAR(10)&ScriptText!$D$1)","v":""},{"$f":"IF(OrigTable!A537=\"\",\"\",TEXT(OrigTable!A537,\"00\"))","v":""},{"$f":"IF(OrigTable!A537=\"\",\"\",ScriptText!$E$1&CHAR(10)&ScriptText!$C$1)","v":""},{"$f":"IF(OrigTable!B537=\"\",\"\",ScriptText!$B$1&CHAR(10)&ScriptText!$D$1)","v":""},{"$f":"IF(OrigTable!B537=\"\",\"\",TEXT(OrigTable!B537,\"00\"))","v":""},{"$f":"IF(OrigTable!B537=\"\",\"\",ScriptText!$E$1&CHAR(10)&ScriptText!C532)","v":""},{"$f":"IF(OrigTable!C537=\"\",\"\",ScriptText!$B$1&CHAR(10)&ScriptText!$D$1)","v":""},{"$f":"IF(OrigTable!C537=\"\",\"\",IF(LEN(OrigTable!C537)>255,LEFT(OrigTable!C537,250)&\". . .\",OrigTable!C537))","v":""},{"$f":"IF(OrigTable!C537=\"\",\"\",ScriptText!$E$1&CHAR(10)&ScriptText!$C$1)","v":""},{"$f":"IF(OrigTable!D537=\"\",\"\",ScriptText!$B$1&CHAR(10)&ScriptText!$D$1)","v":""},{"$f":"IF(OrigTable!D537=\"\",\"\",TEXT(OrigTable!D537,\"00\"))","v":""},{"$f":"IF(OrigTable!D537=\"\",\"\",ScriptText!$E$1&CHAR(10)&ScriptText!$C$1)","v":""},{"$f":"IF(OrigTable!E537=\"\",\"\",ScriptText!$B$1&CHAR(10)&ScriptText!$D$1)","v":""},{"$f":"IF(OrigTable!E537=\"\",\"\",TEXT(OrigTable!E537,\"00\"))","v":""},{"$f":"IF(OrigTable!E537=\"\",\"\",ScriptText!$E$1&CHAR(10)&ScriptText!$C$1)","v":""},{"$f":"IF(OrigTable!F537=\"\",\"\",ScriptText!$B$1&CHAR(10)&ScriptText!$D$1)","v":""},{"$f":"IF(OrigTable!F537=\"\",\"\",TEXT(OrigTable!F537,\"00\"))","v":""},{"$f":"IF(OrigTable!F537=\"\",\"\",ScriptText!$E$1&CHAR(10)&ScriptText!$C$1)","v":""},{"$f":"IF(OrigTable!G537=\"\",\"\",ScriptText!$B$1&CHAR(10)&ScriptText!$D$1)","v":""},{"$f":"IF(OrigTable!G537=\"\",\"\",TEXT(OrigTable!G537,\"00\"))","v":""},{"$f":"IF(OrigTable!G537=\"\",\"\",ScriptText!$E$1&CHAR(10)&ScriptText!$C$1)","v":""},0]
["\n\n\n",{"$f":"IF(OrigTable!A538=\"\",\"\",ScriptText!$B$1&CHAR(10)&ScriptText!$D$1)","v":""},{"$f":"IF(OrigTable!A538=\"\",\"\",TEXT(OrigTable!A538,\"00\"))","v":""},{"$f":"IF(OrigTable!A538=\"\",\"\",ScriptText!$E$1&CHAR(10)&ScriptText!$C$1)","v":""},{"$f":"IF(OrigTable!B538=\"\",\"\",ScriptText!$B$1&CHAR(10)&ScriptText!$D$1)","v":""},{"$f":"IF(OrigTable!B538=\"\",\"\",TEXT(OrigTable!B538,\"00\"))","v":""},{"$f":"IF(OrigTable!B538=\"\",\"\",ScriptText!$E$1&CHAR(10)&ScriptText!C533)","v":""},{"$f":"IF(OrigTable!C538=\"\",\"\",ScriptText!$B$1&CHAR(10)&ScriptText!$D$1)","v":""},{"$f":"IF(OrigTable!C538=\"\",\"\",IF(LEN(OrigTable!C538)>255,LEFT(OrigTable!C538,250)&\". . .\",OrigTable!C538))","v":""},{"$f":"IF(OrigTable!C538=\"\",\"\",ScriptText!$E$1&CHAR(10)&ScriptText!$C$1)","v":""},{"$f":"IF(OrigTable!D538=\"\",\"\",ScriptText!$B$1&CHAR(10)&ScriptText!$D$1)","v":""},{"$f":"IF(OrigTable!D538=\"\",\"\",TEXT(OrigTable!D538,\"00\"))","v":""},{"$f":"IF(OrigTable!D538=\"\",\"\",ScriptText!$E$1&CHAR(10)&ScriptText!$C$1)","v":""},{"$f":"IF(OrigTable!E538=\"\",\"\",ScriptText!$B$1&CHAR(10)&ScriptText!$D$1)","v":""},{"$f":"IF(OrigTable!E538=\"\",\"\",TEXT(OrigTable!E538,\"00\"))","v":""},{"$f":"IF(OrigTable!E538=\"\",\"\",ScriptText!$E$1&CHAR(10)&ScriptText!$C$1)","v":""},{"$f":"IF(OrigTable!F538=\"\",\"\",ScriptText!$B$1&CHAR(10)&ScriptText!$D$1)","v":""},{"$f":"IF(OrigTable!F538=\"\",\"\",TEXT(OrigTable!F538,\"00\"))","v":""},{"$f":"IF(OrigTable!F538=\"\",\"\",ScriptText!$E$1&CHAR(10)&ScriptText!$C$1)","v":""},{"$f":"IF(OrigTable!G538=\"\",\"\",ScriptText!$B$1&CHAR(10)&ScriptText!$D$1)","v":""},{"$f":"IF(OrigTable!G538=\"\",\"\",TEXT(OrigTable!G538,\"00\"))","v":""},{"$f":"IF(OrigTable!G538=\"\",\"\",ScriptText!$E$1&CHAR(10)&ScriptText!$C$1)","v":""},0]
["\n\n\n",{"$f":"IF(OrigTable!A539=\"\",\"\",ScriptText!$B$1&CHAR(10)&ScriptText!$D$1)","v":""},{"$f":"IF(OrigTable!A539=\"\",\"\",TEXT(OrigTable!A539,\"00\"))","v":""},{"$f":"IF(OrigTable!A539=\"\",\"\",ScriptText!$E$1&CHAR(10)&ScriptText!$C$1)","v":""},{"$f":"IF(OrigTable!B539=\"\",\"\",ScriptText!$B$1&CHAR(10)&ScriptText!$D$1)","v":""},{"$f":"IF(OrigTable!B539=\"\",\"\",TEXT(OrigTable!B539,\"00\"))","v":""},{"$f":"IF(OrigTable!B539=\"\",\"\",ScriptText!$E$1&CHAR(10)&ScriptText!C534)","v":""},{"$f":"IF(OrigTable!C539=\"\",\"\",ScriptText!$B$1&CHAR(10)&ScriptText!$D$1)","v":""},{"$f":"IF(OrigTable!C539=\"\",\"\",IF(LEN(OrigTable!C539)>255,LEFT(OrigTable!C539,250)&\". . .\",OrigTable!C539))","v":""},{"$f":"IF(OrigTable!C539=\"\",\"\",ScriptText!$E$1&CHAR(10)&ScriptText!$C$1)","v":""},{"$f":"IF(OrigTable!D539=\"\",\"\",ScriptText!$B$1&CHAR(10)&ScriptText!$D$1)","v":""},{"$f":"IF(OrigTable!D539=\"\",\"\",TEXT(OrigTable!D539,\"00\"))","v":""},{"$f":"IF(OrigTable!D539=\"\",\"\",ScriptText!$E$1&CHAR(10)&ScriptText!$C$1)","v":""},{"$f":"IF(OrigTable!E539=\"\",\"\",ScriptText!$B$1&CHAR(10)&ScriptText!$D$1)","v":""},{"$f":"IF(OrigTable!E539=\"\",\"\",TEXT(OrigTable!E539,\"00\"))","v":""},{"$f":"IF(OrigTable!E539=\"\",\"\",ScriptText!$E$1&CHAR(10)&ScriptText!$C$1)","v":""},{"$f":"IF(OrigTable!F539=\"\",\"\",ScriptText!$B$1&CHAR(10)&ScriptText!$D$1)","v":""},{"$f":"IF(OrigTable!F539=\"\",\"\",TEXT(OrigTable!F539,\"00\"))","v":""},{"$f":"IF(OrigTable!F539=\"\",\"\",ScriptText!$E$1&CHAR(10)&ScriptText!$C$1)","v":""},{"$f":"IF(OrigTable!G539=\"\",\"\",ScriptText!$B$1&CHAR(10)&ScriptText!$D$1)","v":""},{"$f":"IF(OrigTable!G539=\"\",\"\",TEXT(OrigTable!G539,\"00\"))","v":""},{"$f":"IF(OrigTable!G539=\"\",\"\",ScriptText!$E$1&CHAR(10)&ScriptText!$C$1)","v":""},0]
["\n\n\n",{"$f":"IF(OrigTable!A540=\"\",\"\",ScriptText!$B$1&CHAR(10)&ScriptText!$D$1)","v":""},{"$f":"IF(OrigTable!A540=\"\",\"\",TEXT(OrigTable!A540,\"00\"))","v":""},{"$f":"IF(OrigTable!A540=\"\",\"\",ScriptText!$E$1&CHAR(10)&ScriptText!$C$1)","v":""},{"$f":"IF(OrigTable!B540=\"\",\"\",ScriptText!$B$1&CHAR(10)&ScriptText!$D$1)","v":""},{"$f":"IF(OrigTable!B540=\"\",\"\",TEXT(OrigTable!B540,\"00\"))","v":""},{"$f":"IF(OrigTable!B540=\"\",\"\",ScriptText!$E$1&CHAR(10)&ScriptText!C535)","v":""},{"$f":"IF(OrigTable!C540=\"\",\"\",ScriptText!$B$1&CHAR(10)&ScriptText!$D$1)","v":""},{"$f":"IF(OrigTable!C540=\"\",\"\",IF(LEN(OrigTable!C540)>255,LEFT(OrigTable!C540,250)&\". . .\",OrigTable!C540))","v":""},{"$f":"IF(OrigTable!C540=\"\",\"\",ScriptText!$E$1&CHAR(10)&ScriptText!$C$1)","v":""},{"$f":"IF(OrigTable!D540=\"\",\"\",ScriptText!$B$1&CHAR(10)&ScriptText!$D$1)","v":""},{"$f":"IF(OrigTable!D540=\"\",\"\",TEXT(OrigTable!D540,\"00\"))","v":""},{"$f":"IF(OrigTable!D540=\"\",\"\",ScriptText!$E$1&CHAR(10)&ScriptText!$C$1)","v":""},{"$f":"IF(OrigTable!E540=\"\",\"\",ScriptText!$B$1&CHAR(10)&ScriptText!$D$1)","v":""},{"$f":"IF(OrigTable!E540=\"\",\"\",TEXT(OrigTable!E540,\"00\"))","v":""},{"$f":"IF(OrigTable!E540=\"\",\"\",ScriptText!$E$1&CHAR(10)&ScriptText!$C$1)","v":""},{"$f":"IF(OrigTable!F540=\"\",\"\",ScriptText!$B$1&CHAR(10)&ScriptText!$D$1)","v":""},{"$f":"IF(OrigTable!F540=\"\",\"\",TEXT(OrigTable!F540,\"00\"))","v":""},{"$f":"IF(OrigTable!F540=\"\",\"\",ScriptText!$E$1&CHAR(10)&ScriptText!$C$1)","v":""},{"$f":"IF(OrigTable!G540=\"\",\"\",ScriptText!$B$1&CHAR(10)&ScriptText!$D$1)","v":""},{"$f":"IF(OrigTable!G540=\"\",\"\",TEXT(OrigTable!G540,\"00\"))","v":""},{"$f":"IF(OrigTable!G540=\"\",\"\",ScriptText!$E$1&CHAR(10)&ScriptText!$C$1)","v":""},0]
["\n\n\n",{"$f":"IF(OrigTable!A541=\"\",\"\",ScriptText!$B$1&CHAR(10)&ScriptText!$D$1)","v":""},{"$f":"IF(OrigTable!A541=\"\",\"\",TEXT(OrigTable!A541,\"00\"))","v":""},{"$f":"IF(OrigTable!A541=\"\",\"\",ScriptText!$E$1&CHAR(10)&ScriptText!$C$1)","v":""},{"$f":"IF(OrigTable!B541=\"\",\"\",ScriptText!$B$1&CHAR(10)&ScriptText!$D$1)","v":""},{"$f":"IF(OrigTable!B541=\"\",\"\",TEXT(OrigTable!B541,\"00\"))","v":""},{"$f":"IF(OrigTable!B541=\"\",\"\",ScriptText!$E$1&CHAR(10)&ScriptText!C536)","v":""},{"$f":"IF(OrigTable!C541=\"\",\"\",ScriptText!$B$1&CHAR(10)&ScriptText!$D$1)","v":""},{"$f":"IF(OrigTable!C541=\"\",\"\",IF(LEN(OrigTable!C541)>255,LEFT(OrigTable!C541,250)&\". . .\",OrigTable!C541))","v":""},{"$f":"IF(OrigTable!C541=\"\",\"\",ScriptText!$E$1&CHAR(10)&ScriptText!$C$1)","v":""},{"$f":"IF(OrigTable!D541=\"\",\"\",ScriptText!$B$1&CHAR(10)&ScriptText!$D$1)","v":""},{"$f":"IF(OrigTable!D541=\"\",\"\",TEXT(OrigTable!D541,\"00\"))","v":""},{"$f":"IF(OrigTable!D541=\"\",\"\",ScriptText!$E$1&CHAR(10)&ScriptText!$C$1)","v":""},{"$f":"IF(OrigTable!E541=\"\",\"\",ScriptText!$B$1&CHAR(10)&ScriptText!$D$1)","v":""},{"$f":"IF(OrigTable!E541=\"\",\"\",TEXT(OrigTable!E541,\"00\"))","v":""},{"$f":"IF(OrigTable!E541=\"\",\"\",ScriptText!$E$1&CHAR(10)&ScriptText!$C$1)","v":""},{"$f":"IF(OrigTable!F541=\"\",\"\",ScriptText!$B$1&CHAR(10)&ScriptText!$D$1)","v":""},{"$f":"IF(OrigTable!F541=\"\",\"\",TEXT(OrigTable!F541,\"00\"))","v":""},{"$f":"IF(OrigTable!F541=\"\",\"\",ScriptText!$E$1&CHAR(10)&ScriptText!$C$1)","v":""},{"$f":"IF(OrigTable!G541=\"\",\"\",ScriptText!$B$1&CHAR(10)&ScriptText!$D$1)","v":""},{"$f":"IF(OrigTable!G541=\"\",\"\",TEXT(OrigTable!G541,\"00\"))","v":""},{"$f":"IF(OrigTable!G541=\"\",\"\",ScriptText!$E$1&CHAR(10)&ScriptText!$C$1)","v":""},0]
["\n\n\n",{"$f":"IF(OrigTable!A542=\"\",\"\",ScriptText!$B$1&CHAR(10)&ScriptText!$D$1)","v":""},{"$f":"IF(OrigTable!A542=\"\",\"\",TEXT(OrigTable!A542,\"00\"))","v":""},{"$f":"IF(OrigTable!A542=\"\",\"\",ScriptText!$E$1&CHAR(10)&ScriptText!$C$1)","v":""},{"$f":"IF(OrigTable!B542=\"\",\"\",ScriptText!$B$1&CHAR(10)&ScriptText!$D$1)","v":""},{"$f":"IF(OrigTable!B542=\"\",\"\",TEXT(OrigTable!B542,\"00\"))","v":""},{"$f":"IF(OrigTable!B542=\"\",\"\",ScriptText!$E$1&CHAR(10)&ScriptText!C537)","v":""},{"$f":"IF(OrigTable!C542=\"\",\"\",ScriptText!$B$1&CHAR(10)&ScriptText!$D$1)","v":""},{"$f":"IF(OrigTable!C542=\"\",\"\",IF(LEN(OrigTable!C542)>255,LEFT(OrigTable!C542,250)&\". . .\",OrigTable!C542))","v":""},{"$f":"IF(OrigTable!C542=\"\",\"\",ScriptText!$E$1&CHAR(10)&ScriptText!$C$1)","v":""},{"$f":"IF(OrigTable!D542=\"\",\"\",ScriptText!$B$1&CHAR(10)&ScriptText!$D$1)","v":""},{"$f":"IF(OrigTable!D542=\"\",\"\",TEXT(OrigTable!D542,\"00\"))","v":""},{"$f":"IF(OrigTable!D542=\"\",\"\",ScriptText!$E$1&CHAR(10)&ScriptText!$C$1)","v":""},{"$f":"IF(OrigTable!E542=\"\",\"\",ScriptText!$B$1&CHAR(10)&ScriptText!$D$1)","v":""},{"$f":"IF(OrigTable!E542=\"\",\"\",TEXT(OrigTable!E542,\"00\"))","v":""},{"$f":"IF(OrigTable!E542=\"\",\"\",ScriptText!$E$1&CHAR(10)&ScriptText!$C$1)","v":""},{"$f":"IF(OrigTable!F542=\"\",\"\",ScriptText!$B$1&CHAR(10)&ScriptText!$D$1)","v":""},{"$f":"IF(OrigTable!F542=\"\",\"\",TEXT(OrigTable!F542,\"00\"))","v":""},{"$f":"IF(OrigTable!F542=\"\",\"\",ScriptText!$E$1&CHAR(10)&ScriptText!$C$1)","v":""},{"$f":"IF(OrigTable!G542=\"\",\"\",ScriptText!$B$1&CHAR(10)&ScriptText!$D$1)","v":""},{"$f":"IF(OrigTable!G542=\"\",\"\",TEXT(OrigTable!G542,\"00\"))","v":""},{"$f":"IF(OrigTable!G542=\"\",\"\",ScriptText!$E$1&CHAR(10)&ScriptText!$C$1)","v":""},0]
["\n\n\n",{"$f":"IF(OrigTable!A543=\"\",\"\",ScriptText!$B$1&CHAR(10)&ScriptText!$D$1)","v":""},{"$f":"IF(OrigTable!A543=\"\",\"\",TEXT(OrigTable!A543,\"00\"))","v":""},{"$f":"IF(OrigTable!A543=\"\",\"\",ScriptText!$E$1&CHAR(10)&ScriptText!$C$1)","v":""},{"$f":"IF(OrigTable!B543=\"\",\"\",ScriptText!$B$1&CHAR(10)&ScriptText!$D$1)","v":""},{"$f":"IF(OrigTable!B543=\"\",\"\",TEXT(OrigTable!B543,\"00\"))","v":""},{"$f":"IF(OrigTable!B543=\"\",\"\",ScriptText!$E$1&CHAR(10)&ScriptText!C538)","v":""},{"$f":"IF(OrigTable!C543=\"\",\"\",ScriptText!$B$1&CHAR(10)&ScriptText!$D$1)","v":""},{"$f":"IF(OrigTable!C543=\"\",\"\",IF(LEN(OrigTable!C543)>255,LEFT(OrigTable!C543,250)&\". . .\",OrigTable!C543))","v":""},{"$f":"IF(OrigTable!C543=\"\",\"\",ScriptText!$E$1&CHAR(10)&ScriptText!$C$1)","v":""},{"$f":"IF(OrigTable!D543=\"\",\"\",ScriptText!$B$1&CHAR(10)&ScriptText!$D$1)","v":""},{"$f":"IF(OrigTable!D543=\"\",\"\",TEXT(OrigTable!D543,\"00\"))","v":""},{"$f":"IF(OrigTable!D543=\"\",\"\",ScriptText!$E$1&CHAR(10)&ScriptText!$C$1)","v":""},{"$f":"IF(OrigTable!E543=\"\",\"\",ScriptText!$B$1&CHAR(10)&ScriptText!$D$1)","v":""},{"$f":"IF(OrigTable!E543=\"\",\"\",TEXT(OrigTable!E543,\"00\"))","v":""},{"$f":"IF(OrigTable!E543=\"\",\"\",ScriptText!$E$1&CHAR(10)&ScriptText!$C$1)","v":""},{"$f":"IF(OrigTable!F543=\"\",\"\",ScriptText!$B$1&CHAR(10)&ScriptText!$D$1)","v":""},{"$f":"IF(OrigTable!F543=\"\",\"\",TEXT(OrigTable!F543,\"00\"))","v":""},{"$f":"IF(OrigTable!F543=\"\",\"\",ScriptText!$E$1&CHAR(10)&ScriptText!$C$1)","v":""},{"$f":"IF(OrigTable!G543=\"\",\"\",ScriptText!$B$1&CHAR(10)&ScriptText!$D$1)","v":""},{"$f":"IF(OrigTable!G543=\"\",\"\",TEXT(OrigTable!G543,\"00\"))","v":""},{"$f":"IF(OrigTable!G543=\"\",\"\",ScriptText!$E$1&CHAR(10)&ScriptText!$C$1)","v":""},0]
["\n\n\n",{"$f":"IF(OrigTable!A544=\"\",\"\",ScriptText!$B$1&CHAR(10)&ScriptText!$D$1)","v":""},{"$f":"IF(OrigTable!A544=\"\",\"\",TEXT(OrigTable!A544,\"00\"))","v":""},{"$f":"IF(OrigTable!A544=\"\",\"\",ScriptText!$E$1&CHAR(10)&ScriptText!$C$1)","v":""},{"$f":"IF(OrigTable!B544=\"\",\"\",ScriptText!$B$1&CHAR(10)&ScriptText!$D$1)","v":""},{"$f":"IF(OrigTable!B544=\"\",\"\",TEXT(OrigTable!B544,\"00\"))","v":""},{"$f":"IF(OrigTable!B544=\"\",\"\",ScriptText!$E$1&CHAR(10)&ScriptText!C539)","v":""},{"$f":"IF(OrigTable!C544=\"\",\"\",ScriptText!$B$1&CHAR(10)&ScriptText!$D$1)","v":""},{"$f":"IF(OrigTable!C544=\"\",\"\",IF(LEN(OrigTable!C544)>255,LEFT(OrigTable!C544,250)&\". . .\",OrigTable!C544))","v":""},{"$f":"IF(OrigTable!C544=\"\",\"\",ScriptText!$E$1&CHAR(10)&ScriptText!$C$1)","v":""},{"$f":"IF(OrigTable!D544=\"\",\"\",ScriptText!$B$1&CHAR(10)&ScriptText!$D$1)","v":""},{"$f":"IF(OrigTable!D544=\"\",\"\",TEXT(OrigTable!D544,\"00\"))","v":""},{"$f":"IF(OrigTable!D544=\"\",\"\",ScriptText!$E$1&CHAR(10)&ScriptText!$C$1)","v":""},{"$f":"IF(OrigTable!E544=\"\",\"\",ScriptText!$B$1&CHAR(10)&ScriptText!$D$1)","v":""},{"$f":"IF(OrigTable!E544=\"\",\"\",TEXT(OrigTable!E544,\"00\"))","v":""},{"$f":"IF(OrigTable!E544=\"\",\"\",ScriptText!$E$1&CHAR(10)&ScriptText!$C$1)","v":""},{"$f":"IF(OrigTable!F544=\"\",\"\",ScriptText!$B$1&CHAR(10)&ScriptText!$D$1)","v":""},{"$f":"IF(OrigTable!F544=\"\",\"\",TEXT(OrigTable!F544,\"00\"))","v":""},{"$f":"IF(OrigTable!F544=\"\",\"\",ScriptText!$E$1&CHAR(10)&ScriptText!$C$1)","v":""},{"$f":"IF(OrigTable!G544=\"\",\"\",ScriptText!$B$1&CHAR(10)&ScriptText!$D$1)","v":""},{"$f":"IF(OrigTable!G544=\"\",\"\",TEXT(OrigTable!G544,\"00\"))","v":""},{"$f":"IF(OrigTable!G544=\"\",\"\",ScriptText!$E$1&CHAR(10)&ScriptText!$C$1)","v":""},0]
["\n\n\n",{"$f":"IF(OrigTable!A545=\"\",\"\",ScriptText!$B$1&CHAR(10)&ScriptText!$D$1)","v":""},{"$f":"IF(OrigTable!A545=\"\",\"\",TEXT(OrigTable!A545,\"00\"))","v":""},{"$f":"IF(OrigTable!A545=\"\",\"\",ScriptText!$E$1&CHAR(10)&ScriptText!$C$1)","v":""},{"$f":"IF(OrigTable!B545=\"\",\"\",ScriptText!$B$1&CHAR(10)&ScriptText!$D$1)","v":""},{"$f":"IF(OrigTable!B545=\"\",\"\",TEXT(OrigTable!B545,\"00\"))","v":""},{"$f":"IF(OrigTable!B545=\"\",\"\",ScriptText!$E$1&CHAR(10)&ScriptText!C540)","v":""},{"$f":"IF(OrigTable!C545=\"\",\"\",ScriptText!$B$1&CHAR(10)&ScriptText!$D$1)","v":""},{"$f":"IF(OrigTable!C545=\"\",\"\",IF(LEN(OrigTable!C545)>255,LEFT(OrigTable!C545,250)&\". . .\",OrigTable!C545))","v":""},{"$f":"IF(OrigTable!C545=\"\",\"\",ScriptText!$E$1&CHAR(10)&ScriptText!$C$1)","v":""},{"$f":"IF(OrigTable!D545=\"\",\"\",ScriptText!$B$1&CHAR(10)&ScriptText!$D$1)","v":""},{"$f":"IF(OrigTable!D545=\"\",\"\",TEXT(OrigTable!D545,\"00\"))","v":""},{"$f":"IF(OrigTable!D545=\"\",\"\",ScriptText!$E$1&CHAR(10)&ScriptText!$C$1)","v":""},{"$f":"IF(OrigTable!E545=\"\",\"\",ScriptText!$B$1&CHAR(10)&ScriptText!$D$1)","v":""},{"$f":"IF(OrigTable!E545=\"\",\"\",TEXT(OrigTable!E545,\"00\"))","v":""},{"$f":"IF(OrigTable!E545=\"\",\"\",ScriptText!$E$1&CHAR(10)&ScriptText!$C$1)","v":""},{"$f":"IF(OrigTable!F545=\"\",\"\",ScriptText!$B$1&CHAR(10)&ScriptText!$D$1)","v":""},{"$f":"IF(OrigTable!F545=\"\",\"\",TEXT(OrigTable!F545,\"00\"))","v":""},{"$f":"IF(OrigTable!F545=\"\",\"\",ScriptText!$E$1&CHAR(10)&ScriptText!$C$1)","v":""},{"$f":"IF(OrigTable!G545=\"\",\"\",ScriptText!$B$1&CHAR(10)&ScriptText!$D$1)","v":""},{"$f":"IF(OrigTable!G545=\"\",\"\",TEXT(OrigTable!G545,\"00\"))","v":""},{"$f":"IF(OrigTable!G545=\"\",\"\",ScriptText!$E$1&CHAR(10)&ScriptText!$C$1)","v":""},0]
["\n\n\n",{"$f":"IF(OrigTable!A546=\"\",\"\",ScriptText!$B$1&CHAR(10)&ScriptText!$D$1)","v":""},{"$f":"IF(OrigTable!A546=\"\",\"\",TEXT(OrigTable!A546,\"00\"))","v":""},{"$f":"IF(OrigTable!A546=\"\",\"\",ScriptText!$E$1&CHAR(10)&ScriptText!$C$1)","v":""},{"$f":"IF(OrigTable!B546=\"\",\"\",ScriptText!$B$1&CHAR(10)&ScriptText!$D$1)","v":""},{"$f":"IF(OrigTable!B546=\"\",\"\",TEXT(OrigTable!B546,\"00\"))","v":""},{"$f":"IF(OrigTable!B546=\"\",\"\",ScriptText!$E$1&CHAR(10)&ScriptText!C541)","v":""},{"$f":"IF(OrigTable!C546=\"\",\"\",ScriptText!$B$1&CHAR(10)&ScriptText!$D$1)","v":""},{"$f":"IF(OrigTable!C546=\"\",\"\",IF(LEN(OrigTable!C546)>255,LEFT(OrigTable!C546,250)&\". . .\",OrigTable!C546))","v":""},{"$f":"IF(OrigTable!C546=\"\",\"\",ScriptText!$E$1&CHAR(10)&ScriptText!$C$1)","v":""},{"$f":"IF(OrigTable!D546=\"\",\"\",ScriptText!$B$1&CHAR(10)&ScriptText!$D$1)","v":""},{"$f":"IF(OrigTable!D546=\"\",\"\",TEXT(OrigTable!D546,\"00\"))","v":""},{"$f":"IF(OrigTable!D546=\"\",\"\",ScriptText!$E$1&CHAR(10)&ScriptText!$C$1)","v":""},{"$f":"IF(OrigTable!E546=\"\",\"\",ScriptText!$B$1&CHAR(10)&ScriptText!$D$1)","v":""},{"$f":"IF(OrigTable!E546=\"\",\"\",TEXT(OrigTable!E546,\"00\"))","v":""},{"$f":"IF(OrigTable!E546=\"\",\"\",ScriptText!$E$1&CHAR(10)&ScriptText!$C$1)","v":""},{"$f":"IF(OrigTable!F546=\"\",\"\",ScriptText!$B$1&CHAR(10)&ScriptText!$D$1)","v":""},{"$f":"IF(OrigTable!F546=\"\",\"\",TEXT(OrigTable!F546,\"00\"))","v":""},{"$f":"IF(OrigTable!F546=\"\",\"\",ScriptText!$E$1&CHAR(10)&ScriptText!$C$1)","v":""},{"$f":"IF(OrigTable!G546=\"\",\"\",ScriptText!$B$1&CHAR(10)&ScriptText!$D$1)","v":""},{"$f":"IF(OrigTable!G546=\"\",\"\",TEXT(OrigTable!G546,\"00\"))","v":""},{"$f":"IF(OrigTable!G546=\"\",\"\",ScriptText!$E$1&CHAR(10)&ScriptText!$C$1)","v":""},0]
["\n\n\n",{"$f":"IF(OrigTable!A547=\"\",\"\",ScriptText!$B$1&CHAR(10)&ScriptText!$D$1)","v":""},{"$f":"IF(OrigTable!A547=\"\",\"\",TEXT(OrigTable!A547,\"00\"))","v":""},{"$f":"IF(OrigTable!A547=\"\",\"\",ScriptText!$E$1&CHAR(10)&ScriptText!$C$1)","v":""},{"$f":"IF(OrigTable!B547=\"\",\"\",ScriptText!$B$1&CHAR(10)&ScriptText!$D$1)","v":""},{"$f":"IF(OrigTable!B547=\"\",\"\",TEXT(OrigTable!B547,\"00\"))","v":""},{"$f":"IF(OrigTable!B547=\"\",\"\",ScriptText!$E$1&CHAR(10)&ScriptText!C542)","v":""},{"$f":"IF(OrigTable!C547=\"\",\"\",ScriptText!$B$1&CHAR(10)&ScriptText!$D$1)","v":""},{"$f":"IF(OrigTable!C547=\"\",\"\",IF(LEN(OrigTable!C547)>255,LEFT(OrigTable!C547,250)&\". . .\",OrigTable!C547))","v":""},{"$f":"IF(OrigTable!C547=\"\",\"\",ScriptText!$E$1&CHAR(10)&ScriptText!$C$1)","v":""},{"$f":"IF(OrigTable!D547=\"\",\"\",ScriptText!$B$1&CHAR(10)&ScriptText!$D$1)","v":""},{"$f":"IF(OrigTable!D547=\"\",\"\",TEXT(OrigTable!D547,\"00\"))","v":""},{"$f":"IF(OrigTable!D547=\"\",\"\",ScriptText!$E$1&CHAR(10)&ScriptText!$C$1)","v":""},{"$f":"IF(OrigTable!E547=\"\",\"\",ScriptText!$B$1&CHAR(10)&ScriptText!$D$1)","v":""},{"$f":"IF(OrigTable!E547=\"\",\"\",TEXT(OrigTable!E547,\"00\"))","v":""},{"$f":"IF(OrigTable!E547=\"\",\"\",ScriptText!$E$1&CHAR(10)&ScriptText!$C$1)","v":""},{"$f":"IF(OrigTable!F547=\"\",\"\",ScriptText!$B$1&CHAR(10)&ScriptText!$D$1)","v":""},{"$f":"IF(OrigTable!F547=\"\",\"\",TEXT(OrigTable!F547,\"00\"))","v":""},{"$f":"IF(OrigTable!F547=\"\",\"\",ScriptText!$E$1&CHAR(10)&ScriptText!$C$1)","v":""},{"$f":"IF(OrigTable!G547=\"\",\"\",ScriptText!$B$1&CHAR(10)&ScriptText!$D$1)","v":""},{"$f":"IF(OrigTable!G547=\"\",\"\",TEXT(OrigTable!G547,\"00\"))","v":""},{"$f":"IF(OrigTable!G547=\"\",\"\",ScriptText!$E$1&CHAR(10)&ScriptText!$C$1)","v":""},0]
["\n\n\n",{"$f":"IF(OrigTable!A548=\"\",\"\",ScriptText!$B$1&CHAR(10)&ScriptText!$D$1)","v":""},{"$f":"IF(OrigTable!A548=\"\",\"\",TEXT(OrigTable!A548,\"00\"))","v":""},{"$f":"IF(OrigTable!A548=\"\",\"\",ScriptText!$E$1&CHAR(10)&ScriptText!$C$1)","v":""},{"$f":"IF(OrigTable!B548=\"\",\"\",ScriptText!$B$1&CHAR(10)&ScriptText!$D$1)","v":""},{"$f":"IF(OrigTable!B548=\"\",\"\",TEXT(OrigTable!B548,\"00\"))","v":""},{"$f":"IF(OrigTable!B548=\"\",\"\",ScriptText!$E$1&CHAR(10)&ScriptText!C543)","v":""},{"$f":"IF(OrigTable!C548=\"\",\"\",ScriptText!$B$1&CHAR(10)&ScriptText!$D$1)","v":""},{"$f":"IF(OrigTable!C548=\"\",\"\",IF(LEN(OrigTable!C548)>255,LEFT(OrigTable!C548,250)&\". . .\",OrigTable!C548))","v":""},{"$f":"IF(OrigTable!C548=\"\",\"\",ScriptText!$E$1&CHAR(10)&ScriptText!$C$1)","v":""},{"$f":"IF(OrigTable!D548=\"\",\"\",ScriptText!$B$1&CHAR(10)&ScriptText!$D$1)","v":""},{"$f":"IF(OrigTable!D548=\"\",\"\",TEXT(OrigTable!D548,\"00\"))","v":""},{"$f":"IF(OrigTable!D548=\"\",\"\",ScriptText!$E$1&CHAR(10)&ScriptText!$C$1)","v":""},{"$f":"IF(OrigTable!E548=\"\",\"\",ScriptText!$B$1&CHAR(10)&ScriptText!$D$1)","v":""},{"$f":"IF(OrigTable!E548=\"\",\"\",TEXT(OrigTable!E548,\"00\"))","v":""},{"$f":"IF(OrigTable!E548=\"\",\"\",ScriptText!$E$1&CHAR(10)&ScriptText!$C$1)","v":""},{"$f":"IF(OrigTable!F548=\"\",\"\",ScriptText!$B$1&CHAR(10)&ScriptText!$D$1)","v":""},{"$f":"IF(OrigTable!F548=\"\",\"\",TEXT(OrigTable!F548,\"00\"))","v":""},{"$f":"IF(OrigTable!F548=\"\",\"\",ScriptText!$E$1&CHAR(10)&ScriptText!$C$1)","v":""},{"$f":"IF(OrigTable!G548=\"\",\"\",ScriptText!$B$1&CHAR(10)&ScriptText!$D$1)","v":""},{"$f":"IF(OrigTable!G548=\"\",\"\",TEXT(OrigTable!G548,\"00\"))","v":""},{"$f":"IF(OrigTable!G548=\"\",\"\",ScriptText!$E$1&CHAR(10)&ScriptText!$C$1)","v":""},0]
["\n\n\n",{"$f":"IF(OrigTable!A549=\"\",\"\",ScriptText!$B$1&CHAR(10)&ScriptText!$D$1)","v":""},{"$f":"IF(OrigTable!A549=\"\",\"\",TEXT(OrigTable!A549,\"00\"))","v":""},{"$f":"IF(OrigTable!A549=\"\",\"\",ScriptText!$E$1&CHAR(10)&ScriptText!$C$1)","v":""},{"$f":"IF(OrigTable!B549=\"\",\"\",ScriptText!$B$1&CHAR(10)&ScriptText!$D$1)","v":""},{"$f":"IF(OrigTable!B549=\"\",\"\",TEXT(OrigTable!B549,\"00\"))","v":""},{"$f":"IF(OrigTable!B549=\"\",\"\",ScriptText!$E$1&CHAR(10)&ScriptText!C544)","v":""},{"$f":"IF(OrigTable!C549=\"\",\"\",ScriptText!$B$1&CHAR(10)&ScriptText!$D$1)","v":""},{"$f":"IF(OrigTable!C549=\"\",\"\",IF(LEN(OrigTable!C549)>255,LEFT(OrigTable!C549,250)&\". . .\",OrigTable!C549))","v":""},{"$f":"IF(OrigTable!C549=\"\",\"\",ScriptText!$E$1&CHAR(10)&ScriptText!$C$1)","v":""},{"$f":"IF(OrigTable!D549=\"\",\"\",ScriptText!$B$1&CHAR(10)&ScriptText!$D$1)","v":""},{"$f":"IF(OrigTable!D549=\"\",\"\",TEXT(OrigTable!D549,\"00\"))","v":""},{"$f":"IF(OrigTable!D549=\"\",\"\",ScriptText!$E$1&CHAR(10)&ScriptText!$C$1)","v":""},{"$f":"IF(OrigTable!E549=\"\",\"\",ScriptText!$B$1&CHAR(10)&ScriptText!$D$1)","v":""},{"$f":"IF(OrigTable!E549=\"\",\"\",TEXT(OrigTable!E549,\"00\"))","v":""},{"$f":"IF(OrigTable!E549=\"\",\"\",ScriptText!$E$1&CHAR(10)&ScriptText!$C$1)","v":""},{"$f":"IF(OrigTable!F549=\"\",\"\",ScriptText!$B$1&CHAR(10)&ScriptText!$D$1)","v":""},{"$f":"IF(OrigTable!F549=\"\",\"\",TEXT(OrigTable!F549,\"00\"))","v":""},{"$f":"IF(OrigTable!F549=\"\",\"\",ScriptText!$E$1&CHAR(10)&ScriptText!$C$1)","v":""},{"$f":"IF(OrigTable!G549=\"\",\"\",ScriptText!$B$1&CHAR(10)&ScriptText!$D$1)","v":""},{"$f":"IF(OrigTable!G549=\"\",\"\",TEXT(OrigTable!G549,\"00\"))","v":""},{"$f":"IF(OrigTable!G549=\"\",\"\",ScriptText!$E$1&CHAR(10)&ScriptText!$C$1)","v":""},0]
["\n\n\n",{"$f":"IF(OrigTable!A550=\"\",\"\",ScriptText!$B$1&CHAR(10)&ScriptText!$D$1)","v":""},{"$f":"IF(OrigTable!A550=\"\",\"\",TEXT(OrigTable!A550,\"00\"))","v":""},{"$f":"IF(OrigTable!A550=\"\",\"\",ScriptText!$E$1&CHAR(10)&ScriptText!$C$1)","v":""},{"$f":"IF(OrigTable!B550=\"\",\"\",ScriptText!$B$1&CHAR(10)&ScriptText!$D$1)","v":""},{"$f":"IF(OrigTable!B550=\"\",\"\",TEXT(OrigTable!B550,\"00\"))","v":""},{"$f":"IF(OrigTable!B550=\"\",\"\",ScriptText!$E$1&CHAR(10)&ScriptText!C545)","v":""},{"$f":"IF(OrigTable!C550=\"\",\"\",ScriptText!$B$1&CHAR(10)&ScriptText!$D$1)","v":""},{"$f":"IF(OrigTable!C550=\"\",\"\",IF(LEN(OrigTable!C550)>255,LEFT(OrigTable!C550,250)&\". . .\",OrigTable!C550))","v":""},{"$f":"IF(OrigTable!C550=\"\",\"\",ScriptText!$E$1&CHAR(10)&ScriptText!$C$1)","v":""},{"$f":"IF(OrigTable!D550=\"\",\"\",ScriptText!$B$1&CHAR(10)&ScriptText!$D$1)","v":""},{"$f":"IF(OrigTable!D550=\"\",\"\",TEXT(OrigTable!D550,\"00\"))","v":""},{"$f":"IF(OrigTable!D550=\"\",\"\",ScriptText!$E$1&CHAR(10)&ScriptText!$C$1)","v":""},{"$f":"IF(OrigTable!E550=\"\",\"\",ScriptText!$B$1&CHAR(10)&ScriptText!$D$1)","v":""},{"$f":"IF(OrigTable!E550=\"\",\"\",TEXT(OrigTable!E550,\"00\"))","v":""},{"$f":"IF(OrigTable!E550=\"\",\"\",ScriptText!$E$1&CHAR(10)&ScriptText!$C$1)","v":""},{"$f":"IF(OrigTable!F550=\"\",\"\",ScriptText!$B$1&CHAR(10)&ScriptText!$D$1)","v":""},{"$f":"IF(OrigTable!F550=\"\",\"\",TEXT(OrigTable!F550,\"00\"))","v":""},{"$f":"IF(OrigTable!F550=\"\",\"\",ScriptText!$E$1&CHAR(10)&ScriptText!$C$1)","v":""},{"$f":"IF(OrigTable!G550=\"\",\"\",ScriptText!$B$1&CHAR(10)&ScriptText!$D$1)","v":""},{"$f":"IF(OrigTable!G550=\"\",\"\",TEXT(OrigTable!G550,\"00\"))","v":""},{"$f":"IF(OrigTable!G550=\"\",\"\",ScriptText!$E$1&CHAR(10)&ScriptText!$C$1)","v":""},0]
["\n\n\n",{"$f":"IF(OrigTable!A551=\"\",\"\",ScriptText!$B$1&CHAR(10)&ScriptText!$D$1)","v":""},{"$f":"IF(OrigTable!A551=\"\",\"\",TEXT(OrigTable!A551,\"00\"))","v":""},{"$f":"IF(OrigTable!A551=\"\",\"\",ScriptText!$E$1&CHAR(10)&ScriptText!$C$1)","v":""},{"$f":"IF(OrigTable!B551=\"\",\"\",ScriptText!$B$1&CHAR(10)&ScriptText!$D$1)","v":""},{"$f":"IF(OrigTable!B551=\"\",\"\",TEXT(OrigTable!B551,\"00\"))","v":""},{"$f":"IF(OrigTable!B551=\"\",\"\",ScriptText!$E$1&CHAR(10)&ScriptText!C546)","v":""},{"$f":"IF(OrigTable!C551=\"\",\"\",ScriptText!$B$1&CHAR(10)&ScriptText!$D$1)","v":""},{"$f":"IF(OrigTable!C551=\"\",\"\",IF(LEN(OrigTable!C551)>255,LEFT(OrigTable!C551,250)&\". . .\",OrigTable!C551))","v":""},{"$f":"IF(OrigTable!C551=\"\",\"\",ScriptText!$E$1&CHAR(10)&ScriptText!$C$1)","v":""},{"$f":"IF(OrigTable!D551=\"\",\"\",ScriptText!$B$1&CHAR(10)&ScriptText!$D$1)","v":""},{"$f":"IF(OrigTable!D551=\"\",\"\",TEXT(OrigTable!D551,\"00\"))","v":""},{"$f":"IF(OrigTable!D551=\"\",\"\",ScriptText!$E$1&CHAR(10)&ScriptText!$C$1)","v":""},{"$f":"IF(OrigTable!E551=\"\",\"\",ScriptText!$B$1&CHAR(10)&ScriptText!$D$1)","v":""},{"$f":"IF(OrigTable!E551=\"\",\"\",TEXT(OrigTable!E551,\"00\"))","v":""},{"$f":"IF(OrigTable!E551=\"\",\"\",ScriptText!$E$1&CHAR(10)&ScriptText!$C$1)","v":""},{"$f":"IF(OrigTable!F551=\"\",\"\",ScriptText!$B$1&CHAR(10)&ScriptText!$D$1)","v":""},{"$f":"IF(OrigTable!F551=\"\",\"\",TEXT(OrigTable!F551,\"00\"))","v":""},{"$f":"IF(OrigTable!F551=\"\",\"\",ScriptText!$E$1&CHAR(10)&ScriptText!$C$1)","v":""},{"$f":"IF(OrigTable!G551=\"\",\"\",ScriptText!$B$1&CHAR(10)&ScriptText!$D$1)","v":""},{"$f":"IF(OrigTable!G551=\"\",\"\",TEXT(OrigTable!G551,\"00\"))","v":""},{"$f":"IF(OrigTable!G551=\"\",\"\",ScriptText!$E$1&CHAR(10)&ScriptText!$C$1)","v":""},0]
["\n\n\n",{"$f":"IF(OrigTable!A552=\"\",\"\",ScriptText!$B$1&CHAR(10)&ScriptText!$D$1)","v":""},{"$f":"IF(OrigTable!A552=\"\",\"\",TEXT(OrigTable!A552,\"00\"))","v":""},{"$f":"IF(OrigTable!A552=\"\",\"\",ScriptText!$E$1&CHAR(10)&ScriptText!$C$1)","v":""},{"$f":"IF(OrigTable!B552=\"\",\"\",ScriptText!$B$1&CHAR(10)&ScriptText!$D$1)","v":""},{"$f":"IF(OrigTable!B552=\"\",\"\",TEXT(OrigTable!B552,\"00\"))","v":""},{"$f":"IF(OrigTable!B552=\"\",\"\",ScriptText!$E$1&CHAR(10)&ScriptText!C547)","v":""},{"$f":"IF(OrigTable!C552=\"\",\"\",ScriptText!$B$1&CHAR(10)&ScriptText!$D$1)","v":""},{"$f":"IF(OrigTable!C552=\"\",\"\",IF(LEN(OrigTable!C552)>255,LEFT(OrigTable!C552,250)&\". . .\",OrigTable!C552))","v":""},{"$f":"IF(OrigTable!C552=\"\",\"\",ScriptText!$E$1&CHAR(10)&ScriptText!$C$1)","v":""},{"$f":"IF(OrigTable!D552=\"\",\"\",ScriptText!$B$1&CHAR(10)&ScriptText!$D$1)","v":""},{"$f":"IF(OrigTable!D552=\"\",\"\",TEXT(OrigTable!D552,\"00\"))","v":""},{"$f":"IF(OrigTable!D552=\"\",\"\",ScriptText!$E$1&CHAR(10)&ScriptText!$C$1)","v":""},{"$f":"IF(OrigTable!E552=\"\",\"\",ScriptText!$B$1&CHAR(10)&ScriptText!$D$1)","v":""},{"$f":"IF(OrigTable!E552=\"\",\"\",TEXT(OrigTable!E552,\"00\"))","v":""},{"$f":"IF(OrigTable!E552=\"\",\"\",ScriptText!$E$1&CHAR(10)&ScriptText!$C$1)","v":""},{"$f":"IF(OrigTable!F552=\"\",\"\",ScriptText!$B$1&CHAR(10)&ScriptText!$D$1)","v":""},{"$f":"IF(OrigTable!F552=\"\",\"\",TEXT(OrigTable!F552,\"00\"))","v":""},{"$f":"IF(OrigTable!F552=\"\",\"\",ScriptText!$E$1&CHAR(10)&ScriptText!$C$1)","v":""},{"$f":"IF(OrigTable!G552=\"\",\"\",ScriptText!$B$1&CHAR(10)&ScriptText!$D$1)","v":""},{"$f":"IF(OrigTable!G552=\"\",\"\",TEXT(OrigTable!G552,\"00\"))","v":""},{"$f":"IF(OrigTable!G552=\"\",\"\",ScriptText!$E$1&CHAR(10)&ScriptText!$C$1)","v":""},0]
["\n\n\n",{"$f":"IF(OrigTable!A553=\"\",\"\",ScriptText!$B$1&CHAR(10)&ScriptText!$D$1)","v":""},{"$f":"IF(OrigTable!A553=\"\",\"\",TEXT(OrigTable!A553,\"00\"))","v":""},{"$f":"IF(OrigTable!A553=\"\",\"\",ScriptText!$E$1&CHAR(10)&ScriptText!$C$1)","v":""},{"$f":"IF(OrigTable!B553=\"\",\"\",ScriptText!$B$1&CHAR(10)&ScriptText!$D$1)","v":""},{"$f":"IF(OrigTable!B553=\"\",\"\",TEXT(OrigTable!B553,\"00\"))","v":""},{"$f":"IF(OrigTable!B553=\"\",\"\",ScriptText!$E$1&CHAR(10)&ScriptText!C548)","v":""},{"$f":"IF(OrigTable!C553=\"\",\"\",ScriptText!$B$1&CHAR(10)&ScriptText!$D$1)","v":""},{"$f":"IF(OrigTable!C553=\"\",\"\",IF(LEN(OrigTable!C553)>255,LEFT(OrigTable!C553,250)&\". . .\",OrigTable!C553))","v":""},{"$f":"IF(OrigTable!C553=\"\",\"\",ScriptText!$E$1&CHAR(10)&ScriptText!$C$1)","v":""},{"$f":"IF(OrigTable!D553=\"\",\"\",ScriptText!$B$1&CHAR(10)&ScriptText!$D$1)","v":""},{"$f":"IF(OrigTable!D553=\"\",\"\",TEXT(OrigTable!D553,\"00\"))","v":""},{"$f":"IF(OrigTable!D553=\"\",\"\",ScriptText!$E$1&CHAR(10)&ScriptText!$C$1)","v":""},{"$f":"IF(OrigTable!E553=\"\",\"\",ScriptText!$B$1&CHAR(10)&ScriptText!$D$1)","v":""},{"$f":"IF(OrigTable!E553=\"\",\"\",TEXT(OrigTable!E553,\"00\"))","v":""},{"$f":"IF(OrigTable!E553=\"\",\"\",ScriptText!$E$1&CHAR(10)&ScriptText!$C$1)","v":""},{"$f":"IF(OrigTable!F553=\"\",\"\",ScriptText!$B$1&CHAR(10)&ScriptText!$D$1)","v":""},{"$f":"IF(OrigTable!F553=\"\",\"\",TEXT(OrigTable!F553,\"00\"))","v":""},{"$f":"IF(OrigTable!F553=\"\",\"\",ScriptText!$E$1&CHAR(10)&ScriptText!$C$1)","v":""},{"$f":"IF(OrigTable!G553=\"\",\"\",ScriptText!$B$1&CHAR(10)&ScriptText!$D$1)","v":""},{"$f":"IF(OrigTable!G553=\"\",\"\",TEXT(OrigTable!G553,\"00\"))","v":""},{"$f":"IF(OrigTable!G553=\"\",\"\",ScriptText!$E$1&CHAR(10)&ScriptText!$C$1)","v":""},0]
["\n\n\n",{"$f":"IF(OrigTable!A554=\"\",\"\",ScriptText!$B$1&CHAR(10)&ScriptText!$D$1)","v":""},{"$f":"IF(OrigTable!A554=\"\",\"\",TEXT(OrigTable!A554,\"00\"))","v":""},{"$f":"IF(OrigTable!A554=\"\",\"\",ScriptText!$E$1&CHAR(10)&ScriptText!$C$1)","v":""},{"$f":"IF(OrigTable!B554=\"\",\"\",ScriptText!$B$1&CHAR(10)&ScriptText!$D$1)","v":""},{"$f":"IF(OrigTable!B554=\"\",\"\",TEXT(OrigTable!B554,\"00\"))","v":""},{"$f":"IF(OrigTable!B554=\"\",\"\",ScriptText!$E$1&CHAR(10)&ScriptText!C549)","v":""},{"$f":"IF(OrigTable!C554=\"\",\"\",ScriptText!$B$1&CHAR(10)&ScriptText!$D$1)","v":""},{"$f":"IF(OrigTable!C554=\"\",\"\",IF(LEN(OrigTable!C554)>255,LEFT(OrigTable!C554,250)&\". . .\",OrigTable!C554))","v":""},{"$f":"IF(OrigTable!C554=\"\",\"\",ScriptText!$E$1&CHAR(10)&ScriptText!$C$1)","v":""},{"$f":"IF(OrigTable!D554=\"\",\"\",ScriptText!$B$1&CHAR(10)&ScriptText!$D$1)","v":""},{"$f":"IF(OrigTable!D554=\"\",\"\",TEXT(OrigTable!D554,\"00\"))","v":""},{"$f":"IF(OrigTable!D554=\"\",\"\",ScriptText!$E$1&CHAR(10)&ScriptText!$C$1)","v":""},{"$f":"IF(OrigTable!E554=\"\",\"\",ScriptText!$B$1&CHAR(10)&ScriptText!$D$1)","v":""},{"$f":"IF(OrigTable!E554=\"\",\"\",TEXT(OrigTable!E554,\"00\"))","v":""},{"$f":"IF(OrigTable!E554=\"\",\"\",ScriptText!$E$1&CHAR(10)&ScriptText!$C$1)","v":""},{"$f":"IF(OrigTable!F554=\"\",\"\",ScriptText!$B$1&CHAR(10)&ScriptText!$D$1)","v":""},{"$f":"IF(OrigTable!F554=\"\",\"\",TEXT(OrigTable!F554,\"00\"))","v":""},{"$f":"IF(OrigTable!F554=\"\",\"\",ScriptText!$E$1&CHAR(10)&ScriptText!$C$1)","v":""},{"$f":"IF(OrigTable!G554=\"\",\"\",ScriptText!$B$1&CHAR(10)&ScriptText!$D$1)","v":""},{"$f":"IF(OrigTable!G554=\"\",\"\",TEXT(OrigTable!G554,\"00\"))","v":""},{"$f":"IF(OrigTable!G554=\"\",\"\",ScriptText!$E$1&CHAR(10)&ScriptText!$C$1)","v":""},0]
["\n\n\n",{"$f":"IF(OrigTable!A555=\"\",\"\",ScriptText!$B$1&CHAR(10)&ScriptText!$D$1)","v":""},{"$f":"IF(OrigTable!A555=\"\",\"\",TEXT(OrigTable!A555,\"00\"))","v":""},{"$f":"IF(OrigTable!A555=\"\",\"\",ScriptText!$E$1&CHAR(10)&ScriptText!$C$1)","v":""},{"$f":"IF(OrigTable!B555=\"\",\"\",ScriptText!$B$1&CHAR(10)&ScriptText!$D$1)","v":""},{"$f":"IF(OrigTable!B555=\"\",\"\",TEXT(OrigTable!B555,\"00\"))","v":""},{"$f":"IF(OrigTable!B555=\"\",\"\",ScriptText!$E$1&CHAR(10)&ScriptText!C550)","v":""},{"$f":"IF(OrigTable!C555=\"\",\"\",ScriptText!$B$1&CHAR(10)&ScriptText!$D$1)","v":""},{"$f":"IF(OrigTable!C555=\"\",\"\",IF(LEN(OrigTable!C555)>255,LEFT(OrigTable!C555,250)&\". . .\",OrigTable!C555))","v":""},{"$f":"IF(OrigTable!C555=\"\",\"\",ScriptText!$E$1&CHAR(10)&ScriptText!$C$1)","v":""},{"$f":"IF(OrigTable!D555=\"\",\"\",ScriptText!$B$1&CHAR(10)&ScriptText!$D$1)","v":""},{"$f":"IF(OrigTable!D555=\"\",\"\",TEXT(OrigTable!D555,\"00\"))","v":""},{"$f":"IF(OrigTable!D555=\"\",\"\",ScriptText!$E$1&CHAR(10)&ScriptText!$C$1)","v":""},{"$f":"IF(OrigTable!E555=\"\",\"\",ScriptText!$B$1&CHAR(10)&ScriptText!$D$1)","v":""},{"$f":"IF(OrigTable!E555=\"\",\"\",TEXT(OrigTable!E555,\"00\"))","v":""},{"$f":"IF(OrigTable!E555=\"\",\"\",ScriptText!$E$1&CHAR(10)&ScriptText!$C$1)","v":""},{"$f":"IF(OrigTable!F555=\"\",\"\",ScriptText!$B$1&CHAR(10)&ScriptText!$D$1)","v":""},{"$f":"IF(OrigTable!F555=\"\",\"\",TEXT(OrigTable!F555,\"00\"))","v":""},{"$f":"IF(OrigTable!F555=\"\",\"\",ScriptText!$E$1&CHAR(10)&ScriptText!$C$1)","v":""},{"$f":"IF(OrigTable!G555=\"\",\"\",ScriptText!$B$1&CHAR(10)&ScriptText!$D$1)","v":""},{"$f":"IF(OrigTable!G555=\"\",\"\",TEXT(OrigTable!G555,\"00\"))","v":""},{"$f":"IF(OrigTable!G555=\"\",\"\",ScriptText!$E$1&CHAR(10)&ScriptText!$C$1)","v":""},0]
["\n\n\n",{"$f":"IF(OrigTable!A556=\"\",\"\",ScriptText!$B$1&CHAR(10)&ScriptText!$D$1)","v":""},{"$f":"IF(OrigTable!A556=\"\",\"\",TEXT(OrigTable!A556,\"00\"))","v":""},{"$f":"IF(OrigTable!A556=\"\",\"\",ScriptText!$E$1&CHAR(10)&ScriptText!$C$1)","v":""},{"$f":"IF(OrigTable!B556=\"\",\"\",ScriptText!$B$1&CHAR(10)&ScriptText!$D$1)","v":""},{"$f":"IF(OrigTable!B556=\"\",\"\",TEXT(OrigTable!B556,\"00\"))","v":""},{"$f":"IF(OrigTable!B556=\"\",\"\",ScriptText!$E$1&CHAR(10)&ScriptText!C551)","v":""},{"$f":"IF(OrigTable!C556=\"\",\"\",ScriptText!$B$1&CHAR(10)&ScriptText!$D$1)","v":""},{"$f":"IF(OrigTable!C556=\"\",\"\",IF(LEN(OrigTable!C556)>255,LEFT(OrigTable!C556,250)&\". . .\",OrigTable!C556))","v":""},{"$f":"IF(OrigTable!C556=\"\",\"\",ScriptText!$E$1&CHAR(10)&ScriptText!$C$1)","v":""},{"$f":"IF(OrigTable!D556=\"\",\"\",ScriptText!$B$1&CHAR(10)&ScriptText!$D$1)","v":""},{"$f":"IF(OrigTable!D556=\"\",\"\",TEXT(OrigTable!D556,\"00\"))","v":""},{"$f":"IF(OrigTable!D556=\"\",\"\",ScriptText!$E$1&CHAR(10)&ScriptText!$C$1)","v":""},{"$f":"IF(OrigTable!E556=\"\",\"\",ScriptText!$B$1&CHAR(10)&ScriptText!$D$1)","v":""},{"$f":"IF(OrigTable!E556=\"\",\"\",TEXT(OrigTable!E556,\"00\"))","v":""},{"$f":"IF(OrigTable!E556=\"\",\"\",ScriptText!$E$1&CHAR(10)&ScriptText!$C$1)","v":""},{"$f":"IF(OrigTable!F556=\"\",\"\",ScriptText!$B$1&CHAR(10)&ScriptText!$D$1)","v":""},{"$f":"IF(OrigTable!F556=\"\",\"\",TEXT(OrigTable!F556,\"00\"))","v":""},{"$f":"IF(OrigTable!F556=\"\",\"\",ScriptText!$E$1&CHAR(10)&ScriptText!$C$1)","v":""},{"$f":"IF(OrigTable!G556=\"\",\"\",ScriptText!$B$1&CHAR(10)&ScriptText!$D$1)","v":""},{"$f":"IF(OrigTable!G556=\"\",\"\",TEXT(OrigTable!G556,\"00\"))","v":""},{"$f":"IF(OrigTable!G556=\"\",\"\",ScriptText!$E$1&CHAR(10)&ScriptText!$C$1)","v":""},0]
["\n\n\n",{"$f":"IF(OrigTable!A557=\"\",\"\",ScriptText!$B$1&CHAR(10)&ScriptText!$D$1)","v":""},{"$f":"IF(OrigTable!A557=\"\",\"\",TEXT(OrigTable!A557,\"00\"))","v":""},{"$f":"IF(OrigTable!A557=\"\",\"\",ScriptText!$E$1&CHAR(10)&ScriptText!$C$1)","v":""},{"$f":"IF(OrigTable!B557=\"\",\"\",ScriptText!$B$1&CHAR(10)&ScriptText!$D$1)","v":""},{"$f":"IF(OrigTable!B557=\"\",\"\",TEXT(OrigTable!B557,\"00\"))","v":""},{"$f":"IF(OrigTable!B557=\"\",\"\",ScriptText!$E$1&CHAR(10)&ScriptText!C552)","v":""},{"$f":"IF(OrigTable!C557=\"\",\"\",ScriptText!$B$1&CHAR(10)&ScriptText!$D$1)","v":""},{"$f":"IF(OrigTable!C557=\"\",\"\",IF(LEN(OrigTable!C557)>255,LEFT(OrigTable!C557,250)&\". . .\",OrigTable!C557))","v":""},{"$f":"IF(OrigTable!C557=\"\",\"\",ScriptText!$E$1&CHAR(10)&ScriptText!$C$1)","v":""},{"$f":"IF(OrigTable!D557=\"\",\"\",ScriptText!$B$1&CHAR(10)&ScriptText!$D$1)","v":""},{"$f":"IF(OrigTable!D557=\"\",\"\",TEXT(OrigTable!D557,\"00\"))","v":""},{"$f":"IF(OrigTable!D557=\"\",\"\",ScriptText!$E$1&CHAR(10)&ScriptText!$C$1)","v":""},{"$f":"IF(OrigTable!E557=\"\",\"\",ScriptText!$B$1&CHAR(10)&ScriptText!$D$1)","v":""},{"$f":"IF(OrigTable!E557=\"\",\"\",TEXT(OrigTable!E557,\"00\"))","v":""},{"$f":"IF(OrigTable!E557=\"\",\"\",ScriptText!$E$1&CHAR(10)&ScriptText!$C$1)","v":""},{"$f":"IF(OrigTable!F557=\"\",\"\",ScriptText!$B$1&CHAR(10)&ScriptText!$D$1)","v":""},{"$f":"IF(OrigTable!F557=\"\",\"\",TEXT(OrigTable!F557,\"00\"))","v":""},{"$f":"IF(OrigTable!F557=\"\",\"\",ScriptText!$E$1&CHAR(10)&ScriptText!$C$1)","v":""},{"$f":"IF(OrigTable!G557=\"\",\"\",ScriptText!$B$1&CHAR(10)&ScriptText!$D$1)","v":""},{"$f":"IF(OrigTable!G557=\"\",\"\",TEXT(OrigTable!G557,\"00\"))","v":""},{"$f":"IF(OrigTable!G557=\"\",\"\",ScriptText!$E$1&CHAR(10)&ScriptText!$C$1)","v":""},0]
["\n\n\n",{"$f":"IF(OrigTable!A558=\"\",\"\",ScriptText!$B$1&CHAR(10)&ScriptText!$D$1)","v":""},{"$f":"IF(OrigTable!A558=\"\",\"\",TEXT(OrigTable!A558,\"00\"))","v":""},{"$f":"IF(OrigTable!A558=\"\",\"\",ScriptText!$E$1&CHAR(10)&ScriptText!$C$1)","v":""},{"$f":"IF(OrigTable!B558=\"\",\"\",ScriptText!$B$1&CHAR(10)&ScriptText!$D$1)","v":""},{"$f":"IF(OrigTable!B558=\"\",\"\",TEXT(OrigTable!B558,\"00\"))","v":""},{"$f":"IF(OrigTable!B558=\"\",\"\",ScriptText!$E$1&CHAR(10)&ScriptText!C553)","v":""},{"$f":"IF(OrigTable!C558=\"\",\"\",ScriptText!$B$1&CHAR(10)&ScriptText!$D$1)","v":""},{"$f":"IF(OrigTable!C558=\"\",\"\",IF(LEN(OrigTable!C558)>255,LEFT(OrigTable!C558,250)&\". . .\",OrigTable!C558))","v":""},{"$f":"IF(OrigTable!C558=\"\",\"\",ScriptText!$E$1&CHAR(10)&ScriptText!$C$1)","v":""},{"$f":"IF(OrigTable!D558=\"\",\"\",ScriptText!$B$1&CHAR(10)&ScriptText!$D$1)","v":""},{"$f":"IF(OrigTable!D558=\"\",\"\",TEXT(OrigTable!D558,\"00\"))","v":""},{"$f":"IF(OrigTable!D558=\"\",\"\",ScriptText!$E$1&CHAR(10)&ScriptText!$C$1)","v":""},{"$f":"IF(OrigTable!E558=\"\",\"\",ScriptText!$B$1&CHAR(10)&ScriptText!$D$1)","v":""},{"$f":"IF(OrigTable!E558=\"\",\"\",TEXT(OrigTable!E558,\"00\"))","v":""},{"$f":"IF(OrigTable!E558=\"\",\"\",ScriptText!$E$1&CHAR(10)&ScriptText!$C$1)","v":""},{"$f":"IF(OrigTable!F558=\"\",\"\",ScriptText!$B$1&CHAR(10)&ScriptText!$D$1)","v":""},{"$f":"IF(OrigTable!F558=\"\",\"\",TEXT(OrigTable!F558,\"00\"))","v":""},{"$f":"IF(OrigTable!F558=\"\",\"\",ScriptText!$E$1&CHAR(10)&ScriptText!$C$1)","v":""},{"$f":"IF(OrigTable!G558=\"\",\"\",ScriptText!$B$1&CHAR(10)&ScriptText!$D$1)","v":""},{"$f":"IF(OrigTable!G558=\"\",\"\",TEXT(OrigTable!G558,\"00\"))","v":""},{"$f":"IF(OrigTable!G558=\"\",\"\",ScriptText!$E$1&CHAR(10)&ScriptText!$C$1)","v":""},0]
["\n\n\n",{"$f":"IF(OrigTable!A559=\"\",\"\",ScriptText!$B$1&CHAR(10)&ScriptText!$D$1)","v":""},{"$f":"IF(OrigTable!A559=\"\",\"\",TEXT(OrigTable!A559,\"00\"))","v":""},{"$f":"IF(OrigTable!A559=\"\",\"\",ScriptText!$E$1&CHAR(10)&ScriptText!$C$1)","v":""},{"$f":"IF(OrigTable!B559=\"\",\"\",ScriptText!$B$1&CHAR(10)&ScriptText!$D$1)","v":""},{"$f":"IF(OrigTable!B559=\"\",\"\",TEXT(OrigTable!B559,\"00\"))","v":""},{"$f":"IF(OrigTable!B559=\"\",\"\",ScriptText!$E$1&CHAR(10)&ScriptText!C554)","v":""},{"$f":"IF(OrigTable!C559=\"\",\"\",ScriptText!$B$1&CHAR(10)&ScriptText!$D$1)","v":""},{"$f":"IF(OrigTable!C559=\"\",\"\",IF(LEN(OrigTable!C559)>255,LEFT(OrigTable!C559,250)&\". . .\",OrigTable!C559))","v":""},{"$f":"IF(OrigTable!C559=\"\",\"\",ScriptText!$E$1&CHAR(10)&ScriptText!$C$1)","v":""},{"$f":"IF(OrigTable!D559=\"\",\"\",ScriptText!$B$1&CHAR(10)&ScriptText!$D$1)","v":""},{"$f":"IF(OrigTable!D559=\"\",\"\",TEXT(OrigTable!D559,\"00\"))","v":""},{"$f":"IF(OrigTable!D559=\"\",\"\",ScriptText!$E$1&CHAR(10)&ScriptText!$C$1)","v":""},{"$f":"IF(OrigTable!E559=\"\",\"\",ScriptText!$B$1&CHAR(10)&ScriptText!$D$1)","v":""},{"$f":"IF(OrigTable!E559=\"\",\"\",TEXT(OrigTable!E559,\"00\"))","v":""},{"$f":"IF(OrigTable!E559=\"\",\"\",ScriptText!$E$1&CHAR(10)&ScriptText!$C$1)","v":""},{"$f":"IF(OrigTable!F559=\"\",\"\",ScriptText!$B$1&CHAR(10)&ScriptText!$D$1)","v":""},{"$f":"IF(OrigTable!F559=\"\",\"\",TEXT(OrigTable!F559,\"00\"))","v":""},{"$f":"IF(OrigTable!F559=\"\",\"\",ScriptText!$E$1&CHAR(10)&ScriptText!$C$1)","v":""},{"$f":"IF(OrigTable!G559=\"\",\"\",ScriptText!$B$1&CHAR(10)&ScriptText!$D$1)","v":""},{"$f":"IF(OrigTable!G559=\"\",\"\",TEXT(OrigTable!G559,\"00\"))","v":""},{"$f":"IF(OrigTable!G559=\"\",\"\",ScriptText!$E$1&CHAR(10)&ScriptText!$C$1)","v":""},0]
["\n\n\n",{"$f":"IF(OrigTable!A560=\"\",\"\",ScriptText!$B$1&CHAR(10)&ScriptText!$D$1)","v":""},{"$f":"IF(OrigTable!A560=\"\",\"\",TEXT(OrigTable!A560,\"00\"))","v":""},{"$f":"IF(OrigTable!A560=\"\",\"\",ScriptText!$E$1&CHAR(10)&ScriptText!$C$1)","v":""},{"$f":"IF(OrigTable!B560=\"\",\"\",ScriptText!$B$1&CHAR(10)&ScriptText!$D$1)","v":""},{"$f":"IF(OrigTable!B560=\"\",\"\",TEXT(OrigTable!B560,\"00\"))","v":""},{"$f":"IF(OrigTable!B560=\"\",\"\",ScriptText!$E$1&CHAR(10)&ScriptText!C555)","v":""},{"$f":"IF(OrigTable!C560=\"\",\"\",ScriptText!$B$1&CHAR(10)&ScriptText!$D$1)","v":""},{"$f":"IF(OrigTable!C560=\"\",\"\",IF(LEN(OrigTable!C560)>255,LEFT(OrigTable!C560,250)&\". . .\",OrigTable!C560))","v":""},{"$f":"IF(OrigTable!C560=\"\",\"\",ScriptText!$E$1&CHAR(10)&ScriptText!$C$1)","v":""},{"$f":"IF(OrigTable!D560=\"\",\"\",ScriptText!$B$1&CHAR(10)&ScriptText!$D$1)","v":""},{"$f":"IF(OrigTable!D560=\"\",\"\",TEXT(OrigTable!D560,\"00\"))","v":""},{"$f":"IF(OrigTable!D560=\"\",\"\",ScriptText!$E$1&CHAR(10)&ScriptText!$C$1)","v":""},{"$f":"IF(OrigTable!E560=\"\",\"\",ScriptText!$B$1&CHAR(10)&ScriptText!$D$1)","v":""},{"$f":"IF(OrigTable!E560=\"\",\"\",TEXT(OrigTable!E560,\"00\"))","v":""},{"$f":"IF(OrigTable!E560=\"\",\"\",ScriptText!$E$1&CHAR(10)&ScriptText!$C$1)","v":""},{"$f":"IF(OrigTable!F560=\"\",\"\",ScriptText!$B$1&CHAR(10)&ScriptText!$D$1)","v":""},{"$f":"IF(OrigTable!F560=\"\",\"\",TEXT(OrigTable!F560,\"00\"))","v":""},{"$f":"IF(OrigTable!F560=\"\",\"\",ScriptText!$E$1&CHAR(10)&ScriptText!$C$1)","v":""},{"$f":"IF(OrigTable!G560=\"\",\"\",ScriptText!$B$1&CHAR(10)&ScriptText!$D$1)","v":""},{"$f":"IF(OrigTable!G560=\"\",\"\",TEXT(OrigTable!G560,\"00\"))","v":""},{"$f":"IF(OrigTable!G560=\"\",\"\",ScriptText!$E$1&CHAR(10)&ScriptText!$C$1)","v":""},0]
["\n\n\n",{"$f":"IF(OrigTable!A561=\"\",\"\",ScriptText!$B$1&CHAR(10)&ScriptText!$D$1)","v":""},{"$f":"IF(OrigTable!A561=\"\",\"\",TEXT(OrigTable!A561,\"00\"))","v":""},{"$f":"IF(OrigTable!A561=\"\",\"\",ScriptText!$E$1&CHAR(10)&ScriptText!$C$1)","v":""},{"$f":"IF(OrigTable!B561=\"\",\"\",ScriptText!$B$1&CHAR(10)&ScriptText!$D$1)","v":""},{"$f":"IF(OrigTable!B561=\"\",\"\",TEXT(OrigTable!B561,\"00\"))","v":""},{"$f":"IF(OrigTable!B561=\"\",\"\",ScriptText!$E$1&CHAR(10)&ScriptText!C556)","v":""},{"$f":"IF(OrigTable!C561=\"\",\"\",ScriptText!$B$1&CHAR(10)&ScriptText!$D$1)","v":""},{"$f":"IF(OrigTable!C561=\"\",\"\",IF(LEN(OrigTable!C561)>255,LEFT(OrigTable!C561,250)&\". . .\",OrigTable!C561))","v":""},{"$f":"IF(OrigTable!C561=\"\",\"\",ScriptText!$E$1&CHAR(10)&ScriptText!$C$1)","v":""},{"$f":"IF(OrigTable!D561=\"\",\"\",ScriptText!$B$1&CHAR(10)&ScriptText!$D$1)","v":""},{"$f":"IF(OrigTable!D561=\"\",\"\",TEXT(OrigTable!D561,\"00\"))","v":""},{"$f":"IF(OrigTable!D561=\"\",\"\",ScriptText!$E$1&CHAR(10)&ScriptText!$C$1)","v":""},{"$f":"IF(OrigTable!E561=\"\",\"\",ScriptText!$B$1&CHAR(10)&ScriptText!$D$1)","v":""},{"$f":"IF(OrigTable!E561=\"\",\"\",TEXT(OrigTable!E561,\"00\"))","v":""},{"$f":"IF(OrigTable!E561=\"\",\"\",ScriptText!$E$1&CHAR(10)&ScriptText!$C$1)","v":""},{"$f":"IF(OrigTable!F561=\"\",\"\",ScriptText!$B$1&CHAR(10)&ScriptText!$D$1)","v":""},{"$f":"IF(OrigTable!F561=\"\",\"\",TEXT(OrigTable!F561,\"00\"))","v":""},{"$f":"IF(OrigTable!F561=\"\",\"\",ScriptText!$E$1&CHAR(10)&ScriptText!$C$1)","v":""},{"$f":"IF(OrigTable!G561=\"\",\"\",ScriptText!$B$1&CHAR(10)&ScriptText!$D$1)","v":""},{"$f":"IF(OrigTable!G561=\"\",\"\",TEXT(OrigTable!G561,\"00\"))","v":""},{"$f":"IF(OrigTable!G561=\"\",\"\",ScriptText!$E$1&CHAR(10)&ScriptText!$C$1)","v":""},0]
["\n\n\n",{"$f":"IF(OrigTable!A562=\"\",\"\",ScriptText!$B$1&CHAR(10)&ScriptText!$D$1)","v":""},{"$f":"IF(OrigTable!A562=\"\",\"\",TEXT(OrigTable!A562,\"00\"))","v":""},{"$f":"IF(OrigTable!A562=\"\",\"\",ScriptText!$E$1&CHAR(10)&ScriptText!$C$1)","v":""},{"$f":"IF(OrigTable!B562=\"\",\"\",ScriptText!$B$1&CHAR(10)&ScriptText!$D$1)","v":""},{"$f":"IF(OrigTable!B562=\"\",\"\",TEXT(OrigTable!B562,\"00\"))","v":""},{"$f":"IF(OrigTable!B562=\"\",\"\",ScriptText!$E$1&CHAR(10)&ScriptText!C557)","v":""},{"$f":"IF(OrigTable!C562=\"\",\"\",ScriptText!$B$1&CHAR(10)&ScriptText!$D$1)","v":""},{"$f":"IF(OrigTable!C562=\"\",\"\",IF(LEN(OrigTable!C562)>255,LEFT(OrigTable!C562,250)&\". . .\",OrigTable!C562))","v":""},{"$f":"IF(OrigTable!C562=\"\",\"\",ScriptText!$E$1&CHAR(10)&ScriptText!$C$1)","v":""},{"$f":"IF(OrigTable!D562=\"\",\"\",ScriptText!$B$1&CHAR(10)&ScriptText!$D$1)","v":""},{"$f":"IF(OrigTable!D562=\"\",\"\",TEXT(OrigTable!D562,\"00\"))","v":""},{"$f":"IF(OrigTable!D562=\"\",\"\",ScriptText!$E$1&CHAR(10)&ScriptText!$C$1)","v":""},{"$f":"IF(OrigTable!E562=\"\",\"\",ScriptText!$B$1&CHAR(10)&ScriptText!$D$1)","v":""},{"$f":"IF(OrigTable!E562=\"\",\"\",TEXT(OrigTable!E562,\"00\"))","v":""},{"$f":"IF(OrigTable!E562=\"\",\"\",ScriptText!$E$1&CHAR(10)&ScriptText!$C$1)","v":""},{"$f":"IF(OrigTable!F562=\"\",\"\",ScriptText!$B$1&CHAR(10)&ScriptText!$D$1)","v":""},{"$f":"IF(OrigTable!F562=\"\",\"\",TEXT(OrigTable!F562,\"00\"))","v":""},{"$f":"IF(OrigTable!F562=\"\",\"\",ScriptText!$E$1&CHAR(10)&ScriptText!$C$1)","v":""},{"$f":"IF(OrigTable!G562=\"\",\"\",ScriptText!$B$1&CHAR(10)&ScriptText!$D$1)","v":""},{"$f":"IF(OrigTable!G562=\"\",\"\",TEXT(OrigTable!G562,\"00\"))","v":""},{"$f":"IF(OrigTable!G562=\"\",\"\",ScriptText!$E$1&CHAR(10)&ScriptText!$C$1)","v":""},0]
["\n\n\n",{"$f":"IF(OrigTable!A563=\"\",\"\",ScriptText!$B$1&CHAR(10)&ScriptText!$D$1)","v":""},{"$f":"IF(OrigTable!A563=\"\",\"\",TEXT(OrigTable!A563,\"00\"))","v":""},{"$f":"IF(OrigTable!A563=\"\",\"\",ScriptText!$E$1&CHAR(10)&ScriptText!$C$1)","v":""},{"$f":"IF(OrigTable!B563=\"\",\"\",ScriptText!$B$1&CHAR(10)&ScriptText!$D$1)","v":""},{"$f":"IF(OrigTable!B563=\"\",\"\",TEXT(OrigTable!B563,\"00\"))","v":""},{"$f":"IF(OrigTable!B563=\"\",\"\",ScriptText!$E$1&CHAR(10)&ScriptText!C558)","v":""},{"$f":"IF(OrigTable!C563=\"\",\"\",ScriptText!$B$1&CHAR(10)&ScriptText!$D$1)","v":""},{"$f":"IF(OrigTable!C563=\"\",\"\",IF(LEN(OrigTable!C563)>255,LEFT(OrigTable!C563,250)&\". . .\",OrigTable!C563))","v":""},{"$f":"IF(OrigTable!C563=\"\",\"\",ScriptText!$E$1&CHAR(10)&ScriptText!$C$1)","v":""},{"$f":"IF(OrigTable!D563=\"\",\"\",ScriptText!$B$1&CHAR(10)&ScriptText!$D$1)","v":""},{"$f":"IF(OrigTable!D563=\"\",\"\",TEXT(OrigTable!D563,\"00\"))","v":""},{"$f":"IF(OrigTable!D563=\"\",\"\",ScriptText!$E$1&CHAR(10)&ScriptText!$C$1)","v":""},{"$f":"IF(OrigTable!E563=\"\",\"\",ScriptText!$B$1&CHAR(10)&ScriptText!$D$1)","v":""},{"$f":"IF(OrigTable!E563=\"\",\"\",TEXT(OrigTable!E563,\"00\"))","v":""},{"$f":"IF(OrigTable!E563=\"\",\"\",ScriptText!$E$1&CHAR(10)&ScriptText!$C$1)","v":""},{"$f":"IF(OrigTable!F563=\"\",\"\",ScriptText!$B$1&CHAR(10)&ScriptText!$D$1)","v":""},{"$f":"IF(OrigTable!F563=\"\",\"\",TEXT(OrigTable!F563,\"00\"))","v":""},{"$f":"IF(OrigTable!F563=\"\",\"\",ScriptText!$E$1&CHAR(10)&ScriptText!$C$1)","v":""},{"$f":"IF(OrigTable!G563=\"\",\"\",ScriptText!$B$1&CHAR(10)&ScriptText!$D$1)","v":""},{"$f":"IF(OrigTable!G563=\"\",\"\",TEXT(OrigTable!G563,\"00\"))","v":""},{"$f":"IF(OrigTable!G563=\"\",\"\",ScriptText!$E$1&CHAR(10)&ScriptText!$C$1)","v":""},0]
["\n\n\n",{"$f":"IF(OrigTable!A564=\"\",\"\",ScriptText!$B$1&CHAR(10)&ScriptText!$D$1)","v":""},{"$f":"IF(OrigTable!A564=\"\",\"\",TEXT(OrigTable!A564,\"00\"))","v":""},{"$f":"IF(OrigTable!A564=\"\",\"\",ScriptText!$E$1&CHAR(10)&ScriptText!$C$1)","v":""},{"$f":"IF(OrigTable!B564=\"\",\"\",ScriptText!$B$1&CHAR(10)&ScriptText!$D$1)","v":""},{"$f":"IF(OrigTable!B564=\"\",\"\",TEXT(OrigTable!B564,\"00\"))","v":""},{"$f":"IF(OrigTable!B564=\"\",\"\",ScriptText!$E$1&CHAR(10)&ScriptText!C559)","v":""},{"$f":"IF(OrigTable!C564=\"\",\"\",ScriptText!$B$1&CHAR(10)&ScriptText!$D$1)","v":""},{"$f":"IF(OrigTable!C564=\"\",\"\",IF(LEN(OrigTable!C564)>255,LEFT(OrigTable!C564,250)&\". . .\",OrigTable!C564))","v":""},{"$f":"IF(OrigTable!C564=\"\",\"\",ScriptText!$E$1&CHAR(10)&ScriptText!$C$1)","v":""},{"$f":"IF(OrigTable!D564=\"\",\"\",ScriptText!$B$1&CHAR(10)&ScriptText!$D$1)","v":""},{"$f":"IF(OrigTable!D564=\"\",\"\",TEXT(OrigTable!D564,\"00\"))","v":""},{"$f":"IF(OrigTable!D564=\"\",\"\",ScriptText!$E$1&CHAR(10)&ScriptText!$C$1)","v":""},{"$f":"IF(OrigTable!E564=\"\",\"\",ScriptText!$B$1&CHAR(10)&ScriptText!$D$1)","v":""},{"$f":"IF(OrigTable!E564=\"\",\"\",TEXT(OrigTable!E564,\"00\"))","v":""},{"$f":"IF(OrigTable!E564=\"\",\"\",ScriptText!$E$1&CHAR(10)&ScriptText!$C$1)","v":""},{"$f":"IF(OrigTable!F564=\"\",\"\",ScriptText!$B$1&CHAR(10)&ScriptText!$D$1)","v":""},{"$f":"IF(OrigTable!F564=\"\",\"\",TEXT(OrigTable!F564,\"00\"))","v":""},{"$f":"IF(OrigTable!F564=\"\",\"\",ScriptText!$E$1&CHAR(10)&ScriptText!$C$1)","v":""},{"$f":"IF(OrigTable!G564=\"\",\"\",ScriptText!$B$1&CHAR(10)&ScriptText!$D$1)","v":""},{"$f":"IF(OrigTable!G564=\"\",\"\",TEXT(OrigTable!G564,\"00\"))","v":""},{"$f":"IF(OrigTable!G564=\"\",\"\",ScriptText!$E$1&CHAR(10)&ScriptText!$C$1)","v":""},0]
["\n\n\n",{"$f":"IF(OrigTable!A565=\"\",\"\",ScriptText!$B$1&CHAR(10)&ScriptText!$D$1)","v":""},{"$f":"IF(OrigTable!A565=\"\",\"\",TEXT(OrigTable!A565,\"00\"))","v":""},{"$f":"IF(OrigTable!A565=\"\",\"\",ScriptText!$E$1&CHAR(10)&ScriptText!$C$1)","v":""},{"$f":"IF(OrigTable!B565=\"\",\"\",ScriptText!$B$1&CHAR(10)&ScriptText!$D$1)","v":""},{"$f":"IF(OrigTable!B565=\"\",\"\",TEXT(OrigTable!B565,\"00\"))","v":""},{"$f":"IF(OrigTable!B565=\"\",\"\",ScriptText!$E$1&CHAR(10)&ScriptText!C560)","v":""},{"$f":"IF(OrigTable!C565=\"\",\"\",ScriptText!$B$1&CHAR(10)&ScriptText!$D$1)","v":""},{"$f":"IF(OrigTable!C565=\"\",\"\",IF(LEN(OrigTable!C565)>255,LEFT(OrigTable!C565,250)&\". . .\",OrigTable!C565))","v":""},{"$f":"IF(OrigTable!C565=\"\",\"\",ScriptText!$E$1&CHAR(10)&ScriptText!$C$1)","v":""},{"$f":"IF(OrigTable!D565=\"\",\"\",ScriptText!$B$1&CHAR(10)&ScriptText!$D$1)","v":""},{"$f":"IF(OrigTable!D565=\"\",\"\",TEXT(OrigTable!D565,\"00\"))","v":""},{"$f":"IF(OrigTable!D565=\"\",\"\",ScriptText!$E$1&CHAR(10)&ScriptText!$C$1)","v":""},{"$f":"IF(OrigTable!E565=\"\",\"\",ScriptText!$B$1&CHAR(10)&ScriptText!$D$1)","v":""},{"$f":"IF(OrigTable!E565=\"\",\"\",TEXT(OrigTable!E565,\"00\"))","v":""},{"$f":"IF(OrigTable!E565=\"\",\"\",ScriptText!$E$1&CHAR(10)&ScriptText!$C$1)","v":""},{"$f":"IF(OrigTable!F565=\"\",\"\",ScriptText!$B$1&CHAR(10)&ScriptText!$D$1)","v":""},{"$f":"IF(OrigTable!F565=\"\",\"\",TEXT(OrigTable!F565,\"00\"))","v":""},{"$f":"IF(OrigTable!F565=\"\",\"\",ScriptText!$E$1&CHAR(10)&ScriptText!$C$1)","v":""},{"$f":"IF(OrigTable!G565=\"\",\"\",ScriptText!$B$1&CHAR(10)&ScriptText!$D$1)","v":""},{"$f":"IF(OrigTable!G565=\"\",\"\",TEXT(OrigTable!G565,\"00\"))","v":""},{"$f":"IF(OrigTable!G565=\"\",\"\",ScriptText!$E$1&CHAR(10)&ScriptText!$C$1)","v":""},0]
["\n\n\n",{"$f":"IF(OrigTable!A566=\"\",\"\",ScriptText!$B$1&CHAR(10)&ScriptText!$D$1)","v":""},{"$f":"IF(OrigTable!A566=\"\",\"\",TEXT(OrigTable!A566,\"00\"))","v":""},{"$f":"IF(OrigTable!A566=\"\",\"\",ScriptText!$E$1&CHAR(10)&ScriptText!$C$1)","v":""},{"$f":"IF(OrigTable!B566=\"\",\"\",ScriptText!$B$1&CHAR(10)&ScriptText!$D$1)","v":""},{"$f":"IF(OrigTable!B566=\"\",\"\",TEXT(OrigTable!B566,\"00\"))","v":""},{"$f":"IF(OrigTable!B566=\"\",\"\",ScriptText!$E$1&CHAR(10)&ScriptText!C561)","v":""},{"$f":"IF(OrigTable!C566=\"\",\"\",ScriptText!$B$1&CHAR(10)&ScriptText!$D$1)","v":""},{"$f":"IF(OrigTable!C566=\"\",\"\",IF(LEN(OrigTable!C566)>255,LEFT(OrigTable!C566,250)&\". . .\",OrigTable!C566))","v":""},{"$f":"IF(OrigTable!C566=\"\",\"\",ScriptText!$E$1&CHAR(10)&ScriptText!$C$1)","v":""},{"$f":"IF(OrigTable!D566=\"\",\"\",ScriptText!$B$1&CHAR(10)&ScriptText!$D$1)","v":""},{"$f":"IF(OrigTable!D566=\"\",\"\",TEXT(OrigTable!D566,\"00\"))","v":""},{"$f":"IF(OrigTable!D566=\"\",\"\",ScriptText!$E$1&CHAR(10)&ScriptText!$C$1)","v":""},{"$f":"IF(OrigTable!E566=\"\",\"\",ScriptText!$B$1&CHAR(10)&ScriptText!$D$1)","v":""},{"$f":"IF(OrigTable!E566=\"\",\"\",TEXT(OrigTable!E566,\"00\"))","v":""},{"$f":"IF(OrigTable!E566=\"\",\"\",ScriptText!$E$1&CHAR(10)&ScriptText!$C$1)","v":""},{"$f":"IF(OrigTable!F566=\"\",\"\",ScriptText!$B$1&CHAR(10)&ScriptText!$D$1)","v":""},{"$f":"IF(OrigTable!F566=\"\",\"\",TEXT(OrigTable!F566,\"00\"))","v":""},{"$f":"IF(OrigTable!F566=\"\",\"\",ScriptText!$E$1&CHAR(10)&ScriptText!$C$1)","v":""},{"$f":"IF(OrigTable!G566=\"\",\"\",ScriptText!$B$1&CHAR(10)&ScriptText!$D$1)","v":""},{"$f":"IF(OrigTable!G566=\"\",\"\",TEXT(OrigTable!G566,\"00\"))","v":""},{"$f":"IF(OrigTable!G566=\"\",\"\",ScriptText!$E$1&CHAR(10)&ScriptText!$C$1)","v":""},0]
["\n\n\n",{"$f":"IF(OrigTable!A567=\"\",\"\",ScriptText!$B$1&CHAR(10)&ScriptText!$D$1)","v":""},{"$f":"IF(OrigTable!A567=\"\",\"\",TEXT(OrigTable!A567,\"00\"))","v":""},{"$f":"IF(OrigTable!A567=\"\",\"\",ScriptText!$E$1&CHAR(10)&ScriptText!$C$1)","v":""},{"$f":"IF(OrigTable!B567=\"\",\"\",ScriptText!$B$1&CHAR(10)&ScriptText!$D$1)","v":""},{"$f":"IF(OrigTable!B567=\"\",\"\",TEXT(OrigTable!B567,\"00\"))","v":""},{"$f":"IF(OrigTable!B567=\"\",\"\",ScriptText!$E$1&CHAR(10)&ScriptText!C562)","v":""},{"$f":"IF(OrigTable!C567=\"\",\"\",ScriptText!$B$1&CHAR(10)&ScriptText!$D$1)","v":""},{"$f":"IF(OrigTable!C567=\"\",\"\",IF(LEN(OrigTable!C567)>255,LEFT(OrigTable!C567,250)&\". . .\",OrigTable!C567))","v":""},{"$f":"IF(OrigTable!C567=\"\",\"\",ScriptText!$E$1&CHAR(10)&ScriptText!$C$1)","v":""},{"$f":"IF(OrigTable!D567=\"\",\"\",ScriptText!$B$1&CHAR(10)&ScriptText!$D$1)","v":""},{"$f":"IF(OrigTable!D567=\"\",\"\",TEXT(OrigTable!D567,\"00\"))","v":""},{"$f":"IF(OrigTable!D567=\"\",\"\",ScriptText!$E$1&CHAR(10)&ScriptText!$C$1)","v":""},{"$f":"IF(OrigTable!E567=\"\",\"\",ScriptText!$B$1&CHAR(10)&ScriptText!$D$1)","v":""},{"$f":"IF(OrigTable!E567=\"\",\"\",TEXT(OrigTable!E567,\"00\"))","v":""},{"$f":"IF(OrigTable!E567=\"\",\"\",ScriptText!$E$1&CHAR(10)&ScriptText!$C$1)","v":""},{"$f":"IF(OrigTable!F567=\"\",\"\",ScriptText!$B$1&CHAR(10)&ScriptText!$D$1)","v":""},{"$f":"IF(OrigTable!F567=\"\",\"\",TEXT(OrigTable!F567,\"00\"))","v":""},{"$f":"IF(OrigTable!F567=\"\",\"\",ScriptText!$E$1&CHAR(10)&ScriptText!$C$1)","v":""},{"$f":"IF(OrigTable!G567=\"\",\"\",ScriptText!$B$1&CHAR(10)&ScriptText!$D$1)","v":""},{"$f":"IF(OrigTable!G567=\"\",\"\",TEXT(OrigTable!G567,\"00\"))","v":""},{"$f":"IF(OrigTable!G567=\"\",\"\",ScriptText!$E$1&CHAR(10)&ScriptText!$C$1)","v":""},0]
["\n\n\n",{"$f":"IF(OrigTable!A568=\"\",\"\",ScriptText!$B$1&CHAR(10)&ScriptText!$D$1)","v":""},{"$f":"IF(OrigTable!A568=\"\",\"\",TEXT(OrigTable!A568,\"00\"))","v":""},{"$f":"IF(OrigTable!A568=\"\",\"\",ScriptText!$E$1&CHAR(10)&ScriptText!$C$1)","v":""},{"$f":"IF(OrigTable!B568=\"\",\"\",ScriptText!$B$1&CHAR(10)&ScriptText!$D$1)","v":""},{"$f":"IF(OrigTable!B568=\"\",\"\",TEXT(OrigTable!B568,\"00\"))","v":""},{"$f":"IF(OrigTable!B568=\"\",\"\",ScriptText!$E$1&CHAR(10)&ScriptText!C563)","v":""},{"$f":"IF(OrigTable!C568=\"\",\"\",ScriptText!$B$1&CHAR(10)&ScriptText!$D$1)","v":""},{"$f":"IF(OrigTable!C568=\"\",\"\",IF(LEN(OrigTable!C568)>255,LEFT(OrigTable!C568,250)&\". . .\",OrigTable!C568))","v":""},{"$f":"IF(OrigTable!C568=\"\",\"\",ScriptText!$E$1&CHAR(10)&ScriptText!$C$1)","v":""},{"$f":"IF(OrigTable!D568=\"\",\"\",ScriptText!$B$1&CHAR(10)&ScriptText!$D$1)","v":""},{"$f":"IF(OrigTable!D568=\"\",\"\",TEXT(OrigTable!D568,\"00\"))","v":""},{"$f":"IF(OrigTable!D568=\"\",\"\",ScriptText!$E$1&CHAR(10)&ScriptText!$C$1)","v":""},{"$f":"IF(OrigTable!E568=\"\",\"\",ScriptText!$B$1&CHAR(10)&ScriptText!$D$1)","v":""},{"$f":"IF(OrigTable!E568=\"\",\"\",TEXT(OrigTable!E568,\"00\"))","v":""},{"$f":"IF(OrigTable!E568=\"\",\"\",ScriptText!$E$1&CHAR(10)&ScriptText!$C$1)","v":""},{"$f":"IF(OrigTable!F568=\"\",\"\",ScriptText!$B$1&CHAR(10)&ScriptText!$D$1)","v":""},{"$f":"IF(OrigTable!F568=\"\",\"\",TEXT(OrigTable!F568,\"00\"))","v":""},{"$f":"IF(OrigTable!F568=\"\",\"\",ScriptText!$E$1&CHAR(10)&ScriptText!$C$1)","v":""},{"$f":"IF(OrigTable!G568=\"\",\"\",ScriptText!$B$1&CHAR(10)&ScriptText!$D$1)","v":""},{"$f":"IF(OrigTable!G568=\"\",\"\",TEXT(OrigTable!G568,\"00\"))","v":""},{"$f":"IF(OrigTable!G568=\"\",\"\",ScriptText!$E$1&CHAR(10)&ScriptText!$C$1)","v":""},0]
["\n\n\n",{"$f":"IF(OrigTable!A569=\"\",\"\",ScriptText!$B$1&CHAR(10)&ScriptText!$D$1)","v":""},{"$f":"IF(OrigTable!A569=\"\",\"\",TEXT(OrigTable!A569,\"00\"))","v":""},{"$f":"IF(OrigTable!A569=\"\",\"\",ScriptText!$E$1&CHAR(10)&ScriptText!$C$1)","v":""},{"$f":"IF(OrigTable!B569=\"\",\"\",ScriptText!$B$1&CHAR(10)&ScriptText!$D$1)","v":""},{"$f":"IF(OrigTable!B569=\"\",\"\",TEXT(OrigTable!B569,\"00\"))","v":""},{"$f":"IF(OrigTable!B569=\"\",\"\",ScriptText!$E$1&CHAR(10)&ScriptText!C564)","v":""},{"$f":"IF(OrigTable!C569=\"\",\"\",ScriptText!$B$1&CHAR(10)&ScriptText!$D$1)","v":""},{"$f":"IF(OrigTable!C569=\"\",\"\",IF(LEN(OrigTable!C569)>255,LEFT(OrigTable!C569,250)&\". . .\",OrigTable!C569))","v":""},{"$f":"IF(OrigTable!C569=\"\",\"\",ScriptText!$E$1&CHAR(10)&ScriptText!$C$1)","v":""},{"$f":"IF(OrigTable!D569=\"\",\"\",ScriptText!$B$1&CHAR(10)&ScriptText!$D$1)","v":""},{"$f":"IF(OrigTable!D569=\"\",\"\",TEXT(OrigTable!D569,\"00\"))","v":""},{"$f":"IF(OrigTable!D569=\"\",\"\",ScriptText!$E$1&CHAR(10)&ScriptText!$C$1)","v":""},{"$f":"IF(OrigTable!E569=\"\",\"\",ScriptText!$B$1&CHAR(10)&ScriptText!$D$1)","v":""},{"$f":"IF(OrigTable!E569=\"\",\"\",TEXT(OrigTable!E569,\"00\"))","v":""},{"$f":"IF(OrigTable!E569=\"\",\"\",ScriptText!$E$1&CHAR(10)&ScriptText!$C$1)","v":""},{"$f":"IF(OrigTable!F569=\"\",\"\",ScriptText!$B$1&CHAR(10)&ScriptText!$D$1)","v":""},{"$f":"IF(OrigTable!F569=\"\",\"\",TEXT(OrigTable!F569,\"00\"))","v":""},{"$f":"IF(OrigTable!F569=\"\",\"\",ScriptText!$E$1&CHAR(10)&ScriptText!$C$1)","v":""},{"$f":"IF(OrigTable!G569=\"\",\"\",ScriptText!$B$1&CHAR(10)&ScriptText!$D$1)","v":""},{"$f":"IF(OrigTable!G569=\"\",\"\",TEXT(OrigTable!G569,\"00\"))","v":""},{"$f":"IF(OrigTable!G569=\"\",\"\",ScriptText!$E$1&CHAR(10)&ScriptText!$C$1)","v":""},0]
["\n\n\n",{"$f":"IF(OrigTable!A570=\"\",\"\",ScriptText!$B$1&CHAR(10)&ScriptText!$D$1)","v":""},{"$f":"IF(OrigTable!A570=\"\",\"\",TEXT(OrigTable!A570,\"00\"))","v":""},{"$f":"IF(OrigTable!A570=\"\",\"\",ScriptText!$E$1&CHAR(10)&ScriptText!$C$1)","v":""},{"$f":"IF(OrigTable!B570=\"\",\"\",ScriptText!$B$1&CHAR(10)&ScriptText!$D$1)","v":""},{"$f":"IF(OrigTable!B570=\"\",\"\",TEXT(OrigTable!B570,\"00\"))","v":""},{"$f":"IF(OrigTable!B570=\"\",\"\",ScriptText!$E$1&CHAR(10)&ScriptText!C565)","v":""},{"$f":"IF(OrigTable!C570=\"\",\"\",ScriptText!$B$1&CHAR(10)&ScriptText!$D$1)","v":""},{"$f":"IF(OrigTable!C570=\"\",\"\",IF(LEN(OrigTable!C570)>255,LEFT(OrigTable!C570,250)&\". . .\",OrigTable!C570))","v":""},{"$f":"IF(OrigTable!C570=\"\",\"\",ScriptText!$E$1&CHAR(10)&ScriptText!$C$1)","v":""},{"$f":"IF(OrigTable!D570=\"\",\"\",ScriptText!$B$1&CHAR(10)&ScriptText!$D$1)","v":""},{"$f":"IF(OrigTable!D570=\"\",\"\",TEXT(OrigTable!D570,\"00\"))","v":""},{"$f":"IF(OrigTable!D570=\"\",\"\",ScriptText!$E$1&CHAR(10)&ScriptText!$C$1)","v":""},{"$f":"IF(OrigTable!E570=\"\",\"\",ScriptText!$B$1&CHAR(10)&ScriptText!$D$1)","v":""},{"$f":"IF(OrigTable!E570=\"\",\"\",TEXT(OrigTable!E570,\"00\"))","v":""},{"$f":"IF(OrigTable!E570=\"\",\"\",ScriptText!$E$1&CHAR(10)&ScriptText!$C$1)","v":""},{"$f":"IF(OrigTable!F570=\"\",\"\",ScriptText!$B$1&CHAR(10)&ScriptText!$D$1)","v":""},{"$f":"IF(OrigTable!F570=\"\",\"\",TEXT(OrigTable!F570,\"00\"))","v":""},{"$f":"IF(OrigTable!F570=\"\",\"\",ScriptText!$E$1&CHAR(10)&ScriptText!$C$1)","v":""},{"$f":"IF(OrigTable!G570=\"\",\"\",ScriptText!$B$1&CHAR(10)&ScriptText!$D$1)","v":""},{"$f":"IF(OrigTable!G570=\"\",\"\",TEXT(OrigTable!G570,\"00\"))","v":""},{"$f":"IF(OrigTable!G570=\"\",\"\",ScriptText!$E$1&CHAR(10)&ScriptText!$C$1)","v":""},0]
["\n\n\n",{"$f":"IF(OrigTable!A571=\"\",\"\",ScriptText!$B$1&CHAR(10)&ScriptText!$D$1)","v":""},{"$f":"IF(OrigTable!A571=\"\",\"\",TEXT(OrigTable!A571,\"00\"))","v":""},{"$f":"IF(OrigTable!A571=\"\",\"\",ScriptText!$E$1&CHAR(10)&ScriptText!$C$1)","v":""},{"$f":"IF(OrigTable!B571=\"\",\"\",ScriptText!$B$1&CHAR(10)&ScriptText!$D$1)","v":""},{"$f":"IF(OrigTable!B571=\"\",\"\",TEXT(OrigTable!B571,\"00\"))","v":""},{"$f":"IF(OrigTable!B571=\"\",\"\",ScriptText!$E$1&CHAR(10)&ScriptText!C566)","v":""},{"$f":"IF(OrigTable!C571=\"\",\"\",ScriptText!$B$1&CHAR(10)&ScriptText!$D$1)","v":""},{"$f":"IF(OrigTable!C571=\"\",\"\",IF(LEN(OrigTable!C571)>255,LEFT(OrigTable!C571,250)&\". . .\",OrigTable!C571))","v":""},{"$f":"IF(OrigTable!C571=\"\",\"\",ScriptText!$E$1&CHAR(10)&ScriptText!$C$1)","v":""},{"$f":"IF(OrigTable!D571=\"\",\"\",ScriptText!$B$1&CHAR(10)&ScriptText!$D$1)","v":""},{"$f":"IF(OrigTable!D571=\"\",\"\",TEXT(OrigTable!D571,\"00\"))","v":""},{"$f":"IF(OrigTable!D571=\"\",\"\",ScriptText!$E$1&CHAR(10)&ScriptText!$C$1)","v":""},{"$f":"IF(OrigTable!E571=\"\",\"\",ScriptText!$B$1&CHAR(10)&ScriptText!$D$1)","v":""},{"$f":"IF(OrigTable!E571=\"\",\"\",TEXT(OrigTable!E571,\"00\"))","v":""},{"$f":"IF(OrigTable!E571=\"\",\"\",ScriptText!$E$1&CHAR(10)&ScriptText!$C$1)","v":""},{"$f":"IF(OrigTable!F571=\"\",\"\",ScriptText!$B$1&CHAR(10)&ScriptText!$D$1)","v":""},{"$f":"IF(OrigTable!F571=\"\",\"\",TEXT(OrigTable!F571,\"00\"))","v":""},{"$f":"IF(OrigTable!F571=\"\",\"\",ScriptText!$E$1&CHAR(10)&ScriptText!$C$1)","v":""},{"$f":"IF(OrigTable!G571=\"\",\"\",ScriptText!$B$1&CHAR(10)&ScriptText!$D$1)","v":""},{"$f":"IF(OrigTable!G571=\"\",\"\",TEXT(OrigTable!G571,\"00\"))","v":""},{"$f":"IF(OrigTable!G571=\"\",\"\",ScriptText!$E$1&CHAR(10)&ScriptText!$C$1)","v":""},0]
["\n\n\n",{"$f":"IF(OrigTable!A572=\"\",\"\",ScriptText!$B$1&CHAR(10)&ScriptText!$D$1)","v":""},{"$f":"IF(OrigTable!A572=\"\",\"\",TEXT(OrigTable!A572,\"00\"))","v":""},{"$f":"IF(OrigTable!A572=\"\",\"\",ScriptText!$E$1&CHAR(10)&ScriptText!$C$1)","v":""},{"$f":"IF(OrigTable!B572=\"\",\"\",ScriptText!$B$1&CHAR(10)&ScriptText!$D$1)","v":""},{"$f":"IF(OrigTable!B572=\"\",\"\",TEXT(OrigTable!B572,\"00\"))","v":""},{"$f":"IF(OrigTable!B572=\"\",\"\",ScriptText!$E$1&CHAR(10)&ScriptText!C567)","v":""},{"$f":"IF(OrigTable!C572=\"\",\"\",ScriptText!$B$1&CHAR(10)&ScriptText!$D$1)","v":""},{"$f":"IF(OrigTable!C572=\"\",\"\",IF(LEN(OrigTable!C572)>255,LEFT(OrigTable!C572,250)&\". . .\",OrigTable!C572))","v":""},{"$f":"IF(OrigTable!C572=\"\",\"\",ScriptText!$E$1&CHAR(10)&ScriptText!$C$1)","v":""},{"$f":"IF(OrigTable!D572=\"\",\"\",ScriptText!$B$1&CHAR(10)&ScriptText!$D$1)","v":""},{"$f":"IF(OrigTable!D572=\"\",\"\",TEXT(OrigTable!D572,\"00\"))","v":""},{"$f":"IF(OrigTable!D572=\"\",\"\",ScriptText!$E$1&CHAR(10)&ScriptText!$C$1)","v":""},{"$f":"IF(OrigTable!E572=\"\",\"\",ScriptText!$B$1&CHAR(10)&ScriptText!$D$1)","v":""},{"$f":"IF(OrigTable!E572=\"\",\"\",TEXT(OrigTable!E572,\"00\"))","v":""},{"$f":"IF(OrigTable!E572=\"\",\"\",ScriptText!$E$1&CHAR(10)&ScriptText!$C$1)","v":""},{"$f":"IF(OrigTable!F572=\"\",\"\",ScriptText!$B$1&CHAR(10)&ScriptText!$D$1)","v":""},{"$f":"IF(OrigTable!F572=\"\",\"\",TEXT(OrigTable!F572,\"00\"))","v":""},{"$f":"IF(OrigTable!F572=\"\",\"\",ScriptText!$E$1&CHAR(10)&ScriptText!$C$1)","v":""},{"$f":"IF(OrigTable!G572=\"\",\"\",ScriptText!$B$1&CHAR(10)&ScriptText!$D$1)","v":""},{"$f":"IF(OrigTable!G572=\"\",\"\",TEXT(OrigTable!G572,\"00\"))","v":""},{"$f":"IF(OrigTable!G572=\"\",\"\",ScriptText!$E$1&CHAR(10)&ScriptText!$C$1)","v":""},0]
["\n\n\n",{"$f":"IF(OrigTable!A573=\"\",\"\",ScriptText!$B$1&CHAR(10)&ScriptText!$D$1)","v":""},{"$f":"IF(OrigTable!A573=\"\",\"\",TEXT(OrigTable!A573,\"00\"))","v":""},{"$f":"IF(OrigTable!A573=\"\",\"\",ScriptText!$E$1&CHAR(10)&ScriptText!$C$1)","v":""},{"$f":"IF(OrigTable!B573=\"\",\"\",ScriptText!$B$1&CHAR(10)&ScriptText!$D$1)","v":""},{"$f":"IF(OrigTable!B573=\"\",\"\",TEXT(OrigTable!B573,\"00\"))","v":""},{"$f":"IF(OrigTable!B573=\"\",\"\",ScriptText!$E$1&CHAR(10)&ScriptText!C568)","v":""},{"$f":"IF(OrigTable!C573=\"\",\"\",ScriptText!$B$1&CHAR(10)&ScriptText!$D$1)","v":""},{"$f":"IF(OrigTable!C573=\"\",\"\",IF(LEN(OrigTable!C573)>255,LEFT(OrigTable!C573,250)&\". . .\",OrigTable!C573))","v":""},{"$f":"IF(OrigTable!C573=\"\",\"\",ScriptText!$E$1&CHAR(10)&ScriptText!$C$1)","v":""},{"$f":"IF(OrigTable!D573=\"\",\"\",ScriptText!$B$1&CHAR(10)&ScriptText!$D$1)","v":""},{"$f":"IF(OrigTable!D573=\"\",\"\",TEXT(OrigTable!D573,\"00\"))","v":""},{"$f":"IF(OrigTable!D573=\"\",\"\",ScriptText!$E$1&CHAR(10)&ScriptText!$C$1)","v":""},{"$f":"IF(OrigTable!E573=\"\",\"\",ScriptText!$B$1&CHAR(10)&ScriptText!$D$1)","v":""},{"$f":"IF(OrigTable!E573=\"\",\"\",TEXT(OrigTable!E573,\"00\"))","v":""},{"$f":"IF(OrigTable!E573=\"\",\"\",ScriptText!$E$1&CHAR(10)&ScriptText!$C$1)","v":""},{"$f":"IF(OrigTable!F573=\"\",\"\",ScriptText!$B$1&CHAR(10)&ScriptText!$D$1)","v":""},{"$f":"IF(OrigTable!F573=\"\",\"\",TEXT(OrigTable!F573,\"00\"))","v":""},{"$f":"IF(OrigTable!F573=\"\",\"\",ScriptText!$E$1&CHAR(10)&ScriptText!$C$1)","v":""},{"$f":"IF(OrigTable!G573=\"\",\"\",ScriptText!$B$1&CHAR(10)&ScriptText!$D$1)","v":""},{"$f":"IF(OrigTable!G573=\"\",\"\",TEXT(OrigTable!G573,\"00\"))","v":""},{"$f":"IF(OrigTable!G573=\"\",\"\",ScriptText!$E$1&CHAR(10)&ScriptText!$C$1)","v":""},0]
["\n\n\n",{"$f":"IF(OrigTable!A574=\"\",\"\",ScriptText!$B$1&CHAR(10)&ScriptText!$D$1)","v":""},{"$f":"IF(OrigTable!A574=\"\",\"\",TEXT(OrigTable!A574,\"00\"))","v":""},{"$f":"IF(OrigTable!A574=\"\",\"\",ScriptText!$E$1&CHAR(10)&ScriptText!$C$1)","v":""},{"$f":"IF(OrigTable!B574=\"\",\"\",ScriptText!$B$1&CHAR(10)&ScriptText!$D$1)","v":""},{"$f":"IF(OrigTable!B574=\"\",\"\",TEXT(OrigTable!B574,\"00\"))","v":""},{"$f":"IF(OrigTable!B574=\"\",\"\",ScriptText!$E$1&CHAR(10)&ScriptText!C569)","v":""},{"$f":"IF(OrigTable!C574=\"\",\"\",ScriptText!$B$1&CHAR(10)&ScriptText!$D$1)","v":""},{"$f":"IF(OrigTable!C574=\"\",\"\",IF(LEN(OrigTable!C574)>255,LEFT(OrigTable!C574,250)&\". . .\",OrigTable!C574))","v":""},{"$f":"IF(OrigTable!C574=\"\",\"\",ScriptText!$E$1&CHAR(10)&ScriptText!$C$1)","v":""},{"$f":"IF(OrigTable!D574=\"\",\"\",ScriptText!$B$1&CHAR(10)&ScriptText!$D$1)","v":""},{"$f":"IF(OrigTable!D574=\"\",\"\",TEXT(OrigTable!D574,\"00\"))","v":""},{"$f":"IF(OrigTable!D574=\"\",\"\",ScriptText!$E$1&CHAR(10)&ScriptText!$C$1)","v":""},{"$f":"IF(OrigTable!E574=\"\",\"\",ScriptText!$B$1&CHAR(10)&ScriptText!$D$1)","v":""},{"$f":"IF(OrigTable!E574=\"\",\"\",TEXT(OrigTable!E574,\"00\"))","v":""},{"$f":"IF(OrigTable!E574=\"\",\"\",ScriptText!$E$1&CHAR(10)&ScriptText!$C$1)","v":""},{"$f":"IF(OrigTable!F574=\"\",\"\",ScriptText!$B$1&CHAR(10)&ScriptText!$D$1)","v":""},{"$f":"IF(OrigTable!F574=\"\",\"\",TEXT(OrigTable!F574,\"00\"))","v":""},{"$f":"IF(OrigTable!F574=\"\",\"\",ScriptText!$E$1&CHAR(10)&ScriptText!$C$1)","v":""},{"$f":"IF(OrigTable!G574=\"\",\"\",ScriptText!$B$1&CHAR(10)&ScriptText!$D$1)","v":""},{"$f":"IF(OrigTable!G574=\"\",\"\",TEXT(OrigTable!G574,\"00\"))","v":""},{"$f":"IF(OrigTable!G574=\"\",\"\",ScriptText!$E$1&CHAR(10)&ScriptText!$C$1)","v":""},0]
["\n\n\n",{"$f":"IF(OrigTable!A575=\"\",\"\",ScriptText!$B$1&CHAR(10)&ScriptText!$D$1)","v":""},{"$f":"IF(OrigTable!A575=\"\",\"\",TEXT(OrigTable!A575,\"00\"))","v":""},{"$f":"IF(OrigTable!A575=\"\",\"\",ScriptText!$E$1&CHAR(10)&ScriptText!$C$1)","v":""},{"$f":"IF(OrigTable!B575=\"\",\"\",ScriptText!$B$1&CHAR(10)&ScriptText!$D$1)","v":""},{"$f":"IF(OrigTable!B575=\"\",\"\",TEXT(OrigTable!B575,\"00\"))","v":""},{"$f":"IF(OrigTable!B575=\"\",\"\",ScriptText!$E$1&CHAR(10)&ScriptText!C570)","v":""},{"$f":"IF(OrigTable!C575=\"\",\"\",ScriptText!$B$1&CHAR(10)&ScriptText!$D$1)","v":""},{"$f":"IF(OrigTable!C575=\"\",\"\",IF(LEN(OrigTable!C575)>255,LEFT(OrigTable!C575,250)&\". . .\",OrigTable!C575))","v":""},{"$f":"IF(OrigTable!C575=\"\",\"\",ScriptText!$E$1&CHAR(10)&ScriptText!$C$1)","v":""},{"$f":"IF(OrigTable!D575=\"\",\"\",ScriptText!$B$1&CHAR(10)&ScriptText!$D$1)","v":""},{"$f":"IF(OrigTable!D575=\"\",\"\",TEXT(OrigTable!D575,\"00\"))","v":""},{"$f":"IF(OrigTable!D575=\"\",\"\",ScriptText!$E$1&CHAR(10)&ScriptText!$C$1)","v":""},{"$f":"IF(OrigTable!E575=\"\",\"\",ScriptText!$B$1&CHAR(10)&ScriptText!$D$1)","v":""},{"$f":"IF(OrigTable!E575=\"\",\"\",TEXT(OrigTable!E575,\"00\"))","v":""},{"$f":"IF(OrigTable!E575=\"\",\"\",ScriptText!$E$1&CHAR(10)&ScriptText!$C$1)","v":""},{"$f":"IF(OrigTable!F575=\"\",\"\",ScriptText!$B$1&CHAR(10)&ScriptText!$D$1)","v":""},{"$f":"IF(OrigTable!F575=\"\",\"\",TEXT(OrigTable!F575,\"00\"))","v":""},{"$f":"IF(OrigTable!F575=\"\",\"\",ScriptText!$E$1&CHAR(10)&ScriptText!$C$1)","v":""},{"$f":"IF(OrigTable!G575=\"\",\"\",ScriptText!$B$1&CHAR(10)&ScriptText!$D$1)","v":""},{"$f":"IF(OrigTable!G575=\"\",\"\",TEXT(OrigTable!G575,\"00\"))","v":""},{"$f":"IF(OrigTable!G575=\"\",\"\",ScriptText!$E$1&CHAR(10)&ScriptText!$C$1)","v":""},0]
["\n\n\n",{"$f":"IF(OrigTable!A576=\"\",\"\",ScriptText!$B$1&CHAR(10)&ScriptText!$D$1)","v":""},{"$f":"IF(OrigTable!A576=\"\",\"\",TEXT(OrigTable!A576,\"00\"))","v":""},{"$f":"IF(OrigTable!A576=\"\",\"\",ScriptText!$E$1&CHAR(10)&ScriptText!$C$1)","v":""},{"$f":"IF(OrigTable!B576=\"\",\"\",ScriptText!$B$1&CHAR(10)&ScriptText!$D$1)","v":""},{"$f":"IF(OrigTable!B576=\"\",\"\",TEXT(OrigTable!B576,\"00\"))","v":""},{"$f":"IF(OrigTable!B576=\"\",\"\",ScriptText!$E$1&CHAR(10)&ScriptText!C571)","v":""},{"$f":"IF(OrigTable!C576=\"\",\"\",ScriptText!$B$1&CHAR(10)&ScriptText!$D$1)","v":""},{"$f":"IF(OrigTable!C576=\"\",\"\",IF(LEN(OrigTable!C576)>255,LEFT(OrigTable!C576,250)&\". . .\",OrigTable!C576))","v":""},{"$f":"IF(OrigTable!C576=\"\",\"\",ScriptText!$E$1&CHAR(10)&ScriptText!$C$1)","v":""},{"$f":"IF(OrigTable!D576=\"\",\"\",ScriptText!$B$1&CHAR(10)&ScriptText!$D$1)","v":""},{"$f":"IF(OrigTable!D576=\"\",\"\",TEXT(OrigTable!D576,\"00\"))","v":""},{"$f":"IF(OrigTable!D576=\"\",\"\",ScriptText!$E$1&CHAR(10)&ScriptText!$C$1)","v":""},{"$f":"IF(OrigTable!E576=\"\",\"\",ScriptText!$B$1&CHAR(10)&ScriptText!$D$1)","v":""},{"$f":"IF(OrigTable!E576=\"\",\"\",TEXT(OrigTable!E576,\"00\"))","v":""},{"$f":"IF(OrigTable!E576=\"\",\"\",ScriptText!$E$1&CHAR(10)&ScriptText!$C$1)","v":""},{"$f":"IF(OrigTable!F576=\"\",\"\",ScriptText!$B$1&CHAR(10)&ScriptText!$D$1)","v":""},{"$f":"IF(OrigTable!F576=\"\",\"\",TEXT(OrigTable!F576,\"00\"))","v":""},{"$f":"IF(OrigTable!F576=\"\",\"\",ScriptText!$E$1&CHAR(10)&ScriptText!$C$1)","v":""},{"$f":"IF(OrigTable!G576=\"\",\"\",ScriptText!$B$1&CHAR(10)&ScriptText!$D$1)","v":""},{"$f":"IF(OrigTable!G576=\"\",\"\",TEXT(OrigTable!G576,\"00\"))","v":""},{"$f":"IF(OrigTable!G576=\"\",\"\",ScriptText!$E$1&CHAR(10)&ScriptText!$C$1)","v":""},0]
["\n\n\n",{"$f":"IF(OrigTable!A577=\"\",\"\",ScriptText!$B$1&CHAR(10)&ScriptText!$D$1)","v":""},{"$f":"IF(OrigTable!A577=\"\",\"\",TEXT(OrigTable!A577,\"00\"))","v":""},{"$f":"IF(OrigTable!A577=\"\",\"\",ScriptText!$E$1&CHAR(10)&ScriptText!$C$1)","v":""},{"$f":"IF(OrigTable!B577=\"\",\"\",ScriptText!$B$1&CHAR(10)&ScriptText!$D$1)","v":""},{"$f":"IF(OrigTable!B577=\"\",\"\",TEXT(OrigTable!B577,\"00\"))","v":""},{"$f":"IF(OrigTable!B577=\"\",\"\",ScriptText!$E$1&CHAR(10)&ScriptText!C572)","v":""},{"$f":"IF(OrigTable!C577=\"\",\"\",ScriptText!$B$1&CHAR(10)&ScriptText!$D$1)","v":""},{"$f":"IF(OrigTable!C577=\"\",\"\",IF(LEN(OrigTable!C577)>255,LEFT(OrigTable!C577,250)&\". . .\",OrigTable!C577))","v":""},{"$f":"IF(OrigTable!C577=\"\",\"\",ScriptText!$E$1&CHAR(10)&ScriptText!$C$1)","v":""},{"$f":"IF(OrigTable!D577=\"\",\"\",ScriptText!$B$1&CHAR(10)&ScriptText!$D$1)","v":""},{"$f":"IF(OrigTable!D577=\"\",\"\",TEXT(OrigTable!D577,\"00\"))","v":""},{"$f":"IF(OrigTable!D577=\"\",\"\",ScriptText!$E$1&CHAR(10)&ScriptText!$C$1)","v":""},{"$f":"IF(OrigTable!E577=\"\",\"\",ScriptText!$B$1&CHAR(10)&ScriptText!$D$1)","v":""},{"$f":"IF(OrigTable!E577=\"\",\"\",TEXT(OrigTable!E577,\"00\"))","v":""},{"$f":"IF(OrigTable!E577=\"\",\"\",ScriptText!$E$1&CHAR(10)&ScriptText!$C$1)","v":""},{"$f":"IF(OrigTable!F577=\"\",\"\",ScriptText!$B$1&CHAR(10)&ScriptText!$D$1)","v":""},{"$f":"IF(OrigTable!F577=\"\",\"\",TEXT(OrigTable!F577,\"00\"))","v":""},{"$f":"IF(OrigTable!F577=\"\",\"\",ScriptText!$E$1&CHAR(10)&ScriptText!$C$1)","v":""},{"$f":"IF(OrigTable!G577=\"\",\"\",ScriptText!$B$1&CHAR(10)&ScriptText!$D$1)","v":""},{"$f":"IF(OrigTable!G577=\"\",\"\",TEXT(OrigTable!G577,\"00\"))","v":""},{"$f":"IF(OrigTable!G577=\"\",\"\",ScriptText!$E$1&CHAR(10)&ScriptText!$C$1)","v":""},0]
["\n\n\n",{"$f":"IF(OrigTable!A578=\"\",\"\",ScriptText!$B$1&CHAR(10)&ScriptText!$D$1)","v":""},{"$f":"IF(OrigTable!A578=\"\",\"\",TEXT(OrigTable!A578,\"00\"))","v":""},{"$f":"IF(OrigTable!A578=\"\",\"\",ScriptText!$E$1&CHAR(10)&ScriptText!$C$1)","v":""},{"$f":"IF(OrigTable!B578=\"\",\"\",ScriptText!$B$1&CHAR(10)&ScriptText!$D$1)","v":""},{"$f":"IF(OrigTable!B578=\"\",\"\",TEXT(OrigTable!B578,\"00\"))","v":""},{"$f":"IF(OrigTable!B578=\"\",\"\",ScriptText!$E$1&CHAR(10)&ScriptText!C573)","v":""},{"$f":"IF(OrigTable!C578=\"\",\"\",ScriptText!$B$1&CHAR(10)&ScriptText!$D$1)","v":""},{"$f":"IF(OrigTable!C578=\"\",\"\",IF(LEN(OrigTable!C578)>255,LEFT(OrigTable!C578,250)&\". . .\",OrigTable!C578))","v":""},{"$f":"IF(OrigTable!C578=\"\",\"\",ScriptText!$E$1&CHAR(10)&ScriptText!$C$1)","v":""},{"$f":"IF(OrigTable!D578=\"\",\"\",ScriptText!$B$1&CHAR(10)&ScriptText!$D$1)","v":""},{"$f":"IF(OrigTable!D578=\"\",\"\",TEXT(OrigTable!D578,\"00\"))","v":""},{"$f":"IF(OrigTable!D578=\"\",\"\",ScriptText!$E$1&CHAR(10)&ScriptText!$C$1)","v":""},{"$f":"IF(OrigTable!E578=\"\",\"\",ScriptText!$B$1&CHAR(10)&ScriptText!$D$1)","v":""},{"$f":"IF(OrigTable!E578=\"\",\"\",TEXT(OrigTable!E578,\"00\"))","v":""},{"$f":"IF(OrigTable!E578=\"\",\"\",ScriptText!$E$1&CHAR(10)&ScriptText!$C$1)","v":""},{"$f":"IF(OrigTable!F578=\"\",\"\",ScriptText!$B$1&CHAR(10)&ScriptText!$D$1)","v":""},{"$f":"IF(OrigTable!F578=\"\",\"\",TEXT(OrigTable!F578,\"00\"))","v":""},{"$f":"IF(OrigTable!F578=\"\",\"\",ScriptText!$E$1&CHAR(10)&ScriptText!$C$1)","v":""},{"$f":"IF(OrigTable!G578=\"\",\"\",ScriptText!$B$1&CHAR(10)&ScriptText!$D$1)","v":""},{"$f":"IF(OrigTable!G578=\"\",\"\",TEXT(OrigTable!G578,\"00\"))","v":""},{"$f":"IF(OrigTable!G578=\"\",\"\",ScriptText!$E$1&CHAR(10)&ScriptText!$C$1)","v":""},0]
["\n\n\n",{"$f":"IF(OrigTable!A579=\"\",\"\",ScriptText!$B$1&CHAR(10)&ScriptText!$D$1)","v":""},{"$f":"IF(OrigTable!A579=\"\",\"\",TEXT(OrigTable!A579,\"00\"))","v":""},{"$f":"IF(OrigTable!A579=\"\",\"\",ScriptText!$E$1&CHAR(10)&ScriptText!$C$1)","v":""},{"$f":"IF(OrigTable!B579=\"\",\"\",ScriptText!$B$1&CHAR(10)&ScriptText!$D$1)","v":""},{"$f":"IF(OrigTable!B579=\"\",\"\",TEXT(OrigTable!B579,\"00\"))","v":""},{"$f":"IF(OrigTable!B579=\"\",\"\",ScriptText!$E$1&CHAR(10)&ScriptText!C574)","v":""},{"$f":"IF(OrigTable!C579=\"\",\"\",ScriptText!$B$1&CHAR(10)&ScriptText!$D$1)","v":""},{"$f":"IF(OrigTable!C579=\"\",\"\",IF(LEN(OrigTable!C579)>255,LEFT(OrigTable!C579,250)&\". . .\",OrigTable!C579))","v":""},{"$f":"IF(OrigTable!C579=\"\",\"\",ScriptText!$E$1&CHAR(10)&ScriptText!$C$1)","v":""},{"$f":"IF(OrigTable!D579=\"\",\"\",ScriptText!$B$1&CHAR(10)&ScriptText!$D$1)","v":""},{"$f":"IF(OrigTable!D579=\"\",\"\",TEXT(OrigTable!D579,\"00\"))","v":""},{"$f":"IF(OrigTable!D579=\"\",\"\",ScriptText!$E$1&CHAR(10)&ScriptText!$C$1)","v":""},{"$f":"IF(OrigTable!E579=\"\",\"\",ScriptText!$B$1&CHAR(10)&ScriptText!$D$1)","v":""},{"$f":"IF(OrigTable!E579=\"\",\"\",TEXT(OrigTable!E579,\"00\"))","v":""},{"$f":"IF(OrigTable!E579=\"\",\"\",ScriptText!$E$1&CHAR(10)&ScriptText!$C$1)","v":""},{"$f":"IF(OrigTable!F579=\"\",\"\",ScriptText!$B$1&CHAR(10)&ScriptText!$D$1)","v":""},{"$f":"IF(OrigTable!F579=\"\",\"\",TEXT(OrigTable!F579,\"00\"))","v":""},{"$f":"IF(OrigTable!F579=\"\",\"\",ScriptText!$E$1&CHAR(10)&ScriptText!$C$1)","v":""},{"$f":"IF(OrigTable!G579=\"\",\"\",ScriptText!$B$1&CHAR(10)&ScriptText!$D$1)","v":""},{"$f":"IF(OrigTable!G579=\"\",\"\",TEXT(OrigTable!G579,\"00\"))","v":""},{"$f":"IF(OrigTable!G579=\"\",\"\",ScriptText!$E$1&CHAR(10)&ScriptText!$C$1)","v":""},0]
["\n\n\n",{"$f":"IF(OrigTable!A580=\"\",\"\",ScriptText!$B$1&CHAR(10)&ScriptText!$D$1)","v":""},{"$f":"IF(OrigTable!A580=\"\",\"\",TEXT(OrigTable!A580,\"00\"))","v":""},{"$f":"IF(OrigTable!A580=\"\",\"\",ScriptText!$E$1&CHAR(10)&ScriptText!$C$1)","v":""},{"$f":"IF(OrigTable!B580=\"\",\"\",ScriptText!$B$1&CHAR(10)&ScriptText!$D$1)","v":""},{"$f":"IF(OrigTable!B580=\"\",\"\",TEXT(OrigTable!B580,\"00\"))","v":""},{"$f":"IF(OrigTable!B580=\"\",\"\",ScriptText!$E$1&CHAR(10)&ScriptText!C575)","v":""},{"$f":"IF(OrigTable!C580=\"\",\"\",ScriptText!$B$1&CHAR(10)&ScriptText!$D$1)","v":""},{"$f":"IF(OrigTable!C580=\"\",\"\",IF(LEN(OrigTable!C580)>255,LEFT(OrigTable!C580,250)&\". . .\",OrigTable!C580))","v":""},{"$f":"IF(OrigTable!C580=\"\",\"\",ScriptText!$E$1&CHAR(10)&ScriptText!$C$1)","v":""},{"$f":"IF(OrigTable!D580=\"\",\"\",ScriptText!$B$1&CHAR(10)&ScriptText!$D$1)","v":""},{"$f":"IF(OrigTable!D580=\"\",\"\",TEXT(OrigTable!D580,\"00\"))","v":""},{"$f":"IF(OrigTable!D580=\"\",\"\",ScriptText!$E$1&CHAR(10)&ScriptText!$C$1)","v":""},{"$f":"IF(OrigTable!E580=\"\",\"\",ScriptText!$B$1&CHAR(10)&ScriptText!$D$1)","v":""},{"$f":"IF(OrigTable!E580=\"\",\"\",TEXT(OrigTable!E580,\"00\"))","v":""},{"$f":"IF(OrigTable!E580=\"\",\"\",ScriptText!$E$1&CHAR(10)&ScriptText!$C$1)","v":""},{"$f":"IF(OrigTable!F580=\"\",\"\",ScriptText!$B$1&CHAR(10)&ScriptText!$D$1)","v":""},{"$f":"IF(OrigTable!F580=\"\",\"\",TEXT(OrigTable!F580,\"00\"))","v":""},{"$f":"IF(OrigTable!F580=\"\",\"\",ScriptText!$E$1&CHAR(10)&ScriptText!$C$1)","v":""},{"$f":"IF(OrigTable!G580=\"\",\"\",ScriptText!$B$1&CHAR(10)&ScriptText!$D$1)","v":""},{"$f":"IF(OrigTable!G580=\"\",\"\",TEXT(OrigTable!G580,\"00\"))","v":""},{"$f":"IF(OrigTable!G580=\"\",\"\",ScriptText!$E$1&CHAR(10)&ScriptText!$C$1)","v":""},0]
["\n\n\n",{"$f":"IF(OrigTable!A581=\"\",\"\",ScriptText!$B$1&CHAR(10)&ScriptText!$D$1)","v":""},{"$f":"IF(OrigTable!A581=\"\",\"\",TEXT(OrigTable!A581,\"00\"))","v":""},{"$f":"IF(OrigTable!A581=\"\",\"\",ScriptText!$E$1&CHAR(10)&ScriptText!$C$1)","v":""},{"$f":"IF(OrigTable!B581=\"\",\"\",ScriptText!$B$1&CHAR(10)&ScriptText!$D$1)","v":""},{"$f":"IF(OrigTable!B581=\"\",\"\",TEXT(OrigTable!B581,\"00\"))","v":""},{"$f":"IF(OrigTable!B581=\"\",\"\",ScriptText!$E$1&CHAR(10)&ScriptText!C576)","v":""},{"$f":"IF(OrigTable!C581=\"\",\"\",ScriptText!$B$1&CHAR(10)&ScriptText!$D$1)","v":""},{"$f":"IF(OrigTable!C581=\"\",\"\",IF(LEN(OrigTable!C581)>255,LEFT(OrigTable!C581,250)&\". . .\",OrigTable!C581))","v":""},{"$f":"IF(OrigTable!C581=\"\",\"\",ScriptText!$E$1&CHAR(10)&ScriptText!$C$1)","v":""},{"$f":"IF(OrigTable!D581=\"\",\"\",ScriptText!$B$1&CHAR(10)&ScriptText!$D$1)","v":""},{"$f":"IF(OrigTable!D581=\"\",\"\",TEXT(OrigTable!D581,\"00\"))","v":""},{"$f":"IF(OrigTable!D581=\"\",\"\",ScriptText!$E$1&CHAR(10)&ScriptText!$C$1)","v":""},{"$f":"IF(OrigTable!E581=\"\",\"\",ScriptText!$B$1&CHAR(10)&ScriptText!$D$1)","v":""},{"$f":"IF(OrigTable!E581=\"\",\"\",TEXT(OrigTable!E581,\"00\"))","v":""},{"$f":"IF(OrigTable!E581=\"\",\"\",ScriptText!$E$1&CHAR(10)&ScriptText!$C$1)","v":""},{"$f":"IF(OrigTable!F581=\"\",\"\",ScriptText!$B$1&CHAR(10)&ScriptText!$D$1)","v":""},{"$f":"IF(OrigTable!F581=\"\",\"\",TEXT(OrigTable!F581,\"00\"))","v":""},{"$f":"IF(OrigTable!F581=\"\",\"\",ScriptText!$E$1&CHAR(10)&ScriptText!$C$1)","v":""},{"$f":"IF(OrigTable!G581=\"\",\"\",ScriptText!$B$1&CHAR(10)&ScriptText!$D$1)","v":""},{"$f":"IF(OrigTable!G581=\"\",\"\",TEXT(OrigTable!G581,\"00\"))","v":""},{"$f":"IF(OrigTable!G581=\"\",\"\",ScriptText!$E$1&CHAR(10)&ScriptText!$C$1)","v":""},0]
["\n\n\n",{"$f":"IF(OrigTable!A582=\"\",\"\",ScriptText!$B$1&CHAR(10)&ScriptText!$D$1)","v":""},{"$f":"IF(OrigTable!A582=\"\",\"\",TEXT(OrigTable!A582,\"00\"))","v":""},{"$f":"IF(OrigTable!A582=\"\",\"\",ScriptText!$E$1&CHAR(10)&ScriptText!$C$1)","v":""},{"$f":"IF(OrigTable!B582=\"\",\"\",ScriptText!$B$1&CHAR(10)&ScriptText!$D$1)","v":""},{"$f":"IF(OrigTable!B582=\"\",\"\",TEXT(OrigTable!B582,\"00\"))","v":""},{"$f":"IF(OrigTable!B582=\"\",\"\",ScriptText!$E$1&CHAR(10)&ScriptText!C577)","v":""},{"$f":"IF(OrigTable!C582=\"\",\"\",ScriptText!$B$1&CHAR(10)&ScriptText!$D$1)","v":""},{"$f":"IF(OrigTable!C582=\"\",\"\",IF(LEN(OrigTable!C582)>255,LEFT(OrigTable!C582,250)&\". . .\",OrigTable!C582))","v":""},{"$f":"IF(OrigTable!C582=\"\",\"\",ScriptText!$E$1&CHAR(10)&ScriptText!$C$1)","v":""},{"$f":"IF(OrigTable!D582=\"\",\"\",ScriptText!$B$1&CHAR(10)&ScriptText!$D$1)","v":""},{"$f":"IF(OrigTable!D582=\"\",\"\",TEXT(OrigTable!D582,\"00\"))","v":""},{"$f":"IF(OrigTable!D582=\"\",\"\",ScriptText!$E$1&CHAR(10)&ScriptText!$C$1)","v":""},{"$f":"IF(OrigTable!E582=\"\",\"\",ScriptText!$B$1&CHAR(10)&ScriptText!$D$1)","v":""},{"$f":"IF(OrigTable!E582=\"\",\"\",TEXT(OrigTable!E582,\"00\"))","v":""},{"$f":"IF(OrigTable!E582=\"\",\"\",ScriptText!$E$1&CHAR(10)&ScriptText!$C$1)","v":""},{"$f":"IF(OrigTable!F582=\"\",\"\",ScriptText!$B$1&CHAR(10)&ScriptText!$D$1)","v":""},{"$f":"IF(OrigTable!F582=\"\",\"\",TEXT(OrigTable!F582,\"00\"))","v":""},{"$f":"IF(OrigTable!F582=\"\",\"\",ScriptText!$E$1&CHAR(10)&ScriptText!$C$1)","v":""},{"$f":"IF(OrigTable!G582=\"\",\"\",ScriptText!$B$1&CHAR(10)&ScriptText!$D$1)","v":""},{"$f":"IF(OrigTable!G582=\"\",\"\",TEXT(OrigTable!G582,\"00\"))","v":""},{"$f":"IF(OrigTable!G582=\"\",\"\",ScriptText!$E$1&CHAR(10)&ScriptText!$C$1)","v":""},{"$f":"IF(LEN(A582)>3,ROW(),0)","v":0}]
["\n\n\n",{"$f":"IF(OrigTable!A583=\"\",\"\",ScriptText!$B$1&CHAR(10)&ScriptText!$D$1)","v":""},{"$f":"IF(OrigTable!A583=\"\",\"\",TEXT(OrigTable!A583,\"00\"))","v":""},{"$f":"IF(OrigTable!A583=\"\",\"\",ScriptText!$E$1&CHAR(10)&ScriptText!$C$1)","v":""},{"$f":"IF(OrigTable!B583=\"\",\"\",ScriptText!$B$1&CHAR(10)&ScriptText!$D$1)","v":""},{"$f":"IF(OrigTable!B583=\"\",\"\",TEXT(OrigTable!B583,\"00\"))","v":""},{"$f":"IF(OrigTable!B583=\"\",\"\",ScriptText!$E$1&CHAR(10)&ScriptText!C578)","v":""},{"$f":"IF(OrigTable!C583=\"\",\"\",ScriptText!$B$1&CHAR(10)&ScriptText!$D$1)","v":""},{"$f":"IF(OrigTable!C583=\"\",\"\",IF(LEN(OrigTable!C583)>255,LEFT(OrigTable!C583,250)&\". . .\",OrigTable!C583))","v":""},{"$f":"IF(OrigTable!C583=\"\",\"\",ScriptText!$E$1&CHAR(10)&ScriptText!$C$1)","v":""},{"$f":"IF(OrigTable!D583=\"\",\"\",ScriptText!$B$1&CHAR(10)&ScriptText!$D$1)","v":""},{"$f":"IF(OrigTable!D583=\"\",\"\",TEXT(OrigTable!D583,\"00\"))","v":""},{"$f":"IF(OrigTable!D583=\"\",\"\",ScriptText!$E$1&CHAR(10)&ScriptText!$C$1)","v":""},{"$f":"IF(OrigTable!E583=\"\",\"\",ScriptText!$B$1&CHAR(10)&ScriptText!$D$1)","v":""},{"$f":"IF(OrigTable!E583=\"\",\"\",TEXT(OrigTable!E583,\"00\"))","v":""},{"$f":"IF(OrigTable!E583=\"\",\"\",ScriptText!$E$1&CHAR(10)&ScriptText!$C$1)","v":""},{"$f":"IF(OrigTable!F583=\"\",\"\",ScriptText!$B$1&CHAR(10)&ScriptText!$D$1)","v":""},{"$f":"IF(OrigTable!F583=\"\",\"\",TEXT(OrigTable!F583,\"00\"))","v":""},{"$f":"IF(OrigTable!F583=\"\",\"\",ScriptText!$E$1&CHAR(10)&ScriptText!$C$1)","v":""},{"$f":"IF(OrigTable!G583=\"\",\"\",ScriptText!$B$1&CHAR(10)&ScriptText!$D$1)","v":""},{"$f":"IF(OrigTable!G583=\"\",\"\",TEXT(OrigTable!G583,\"00\"))","v":""},{"$f":"IF(OrigTable!G583=\"\",\"\",ScriptText!$E$1&CHAR(10)&ScriptText!$C$1)","v":""},0]
["\n\n\n",{"$f":"IF(OrigTable!A584=\"\",\"\",ScriptText!$B$1&CHAR(10)&ScriptText!$D$1)","v":""},{"$f":"IF(OrigTable!A584=\"\",\"\",TEXT(OrigTable!A584,\"00\"))","v":""},{"$f":"IF(OrigTable!A584=\"\",\"\",ScriptText!$E$1&CHAR(10)&ScriptText!$C$1)","v":""},{"$f":"IF(OrigTable!B584=\"\",\"\",ScriptText!$B$1&CHAR(10)&ScriptText!$D$1)","v":""},{"$f":"IF(OrigTable!B584=\"\",\"\",TEXT(OrigTable!B584,\"00\"))","v":""},{"$f":"IF(OrigTable!B584=\"\",\"\",ScriptText!$E$1&CHAR(10)&ScriptText!C579)","v":""},{"$f":"IF(OrigTable!C584=\"\",\"\",ScriptText!$B$1&CHAR(10)&ScriptText!$D$1)","v":""},{"$f":"IF(OrigTable!C584=\"\",\"\",IF(LEN(OrigTable!C584)>255,LEFT(OrigTable!C584,250)&\". . .\",OrigTable!C584))","v":""},{"$f":"IF(OrigTable!C584=\"\",\"\",ScriptText!$E$1&CHAR(10)&ScriptText!$C$1)","v":""},{"$f":"IF(OrigTable!D584=\"\",\"\",ScriptText!$B$1&CHAR(10)&ScriptText!$D$1)","v":""},{"$f":"IF(OrigTable!D584=\"\",\"\",TEXT(OrigTable!D584,\"00\"))","v":""},{"$f":"IF(OrigTable!D584=\"\",\"\",ScriptText!$E$1&CHAR(10)&ScriptText!$C$1)","v":""},{"$f":"IF(OrigTable!E584=\"\",\"\",ScriptText!$B$1&CHAR(10)&ScriptText!$D$1)","v":""},{"$f":"IF(OrigTable!E584=\"\",\"\",TEXT(OrigTable!E584,\"00\"))","v":""},{"$f":"IF(OrigTable!E584=\"\",\"\",ScriptText!$E$1&CHAR(10)&ScriptText!$C$1)","v":""},{"$f":"IF(OrigTable!F584=\"\",\"\",ScriptText!$B$1&CHAR(10)&ScriptText!$D$1)","v":""},{"$f":"IF(OrigTable!F584=\"\",\"\",TEXT(OrigTable!F584,\"00\"))","v":""},{"$f":"IF(OrigTable!F584=\"\",\"\",ScriptText!$E$1&CHAR(10)&ScriptText!$C$1)","v":""},{"$f":"IF(OrigTable!G584=\"\",\"\",ScriptText!$B$1&CHAR(10)&ScriptText!$D$1)","v":""},{"$f":"IF(OrigTable!G584=\"\",\"\",TEXT(OrigTable!G584,\"00\"))","v":""},{"$f":"IF(OrigTable!G584=\"\",\"\",ScriptText!$E$1&CHAR(10)&ScriptText!$C$1)","v":""},0]
[{"$f":"_xlfn.TEXTJOIN(\"\",TRUE,B585:D585)&CHAR(10)&_xlfn.TEXTJOIN(\"\",TRUE,E585:G585)&CHAR(10)&_xlfn.TEXTJOIN(\"\",TRUE,H585:J585)&CHAR(10)&_xlfn.TEXTJOIN(\"\",TRUE,K585:M585)&_xlfn.TEXTJOIN(\"\",TRUE,N585:P585)&_xlfn.TEXTJOIN(\"\",TRUE,Q585:S585)&_xlfn.TEXTJOIN(\"\",TRUE,T585:V585)","v":"\n\n\n"},{"$f":"IF(OrigTable!A585=\"\",\"\",ScriptText!$B$1&CHAR(10)&ScriptText!$D$1)","v":""},{"$f":"IF(OrigTable!A585=\"\",\"\",TEXT(OrigTable!A585,\"00\"))","v":""},{"$f":"IF(OrigTable!A585=\"\",\"\",ScriptText!$E$1&CHAR(10)&ScriptText!$C$1)","v":""},{"$f":"IF(OrigTable!B585=\"\",\"\",ScriptText!$B$1&CHAR(10)&ScriptText!$D$1)","v":""},{"$f":"IF(OrigTable!B585=\"\",\"\",TEXT(OrigTable!B585,\"00\"))","v":""},{"$f":"IF(OrigTable!B585=\"\",\"\",ScriptText!$E$1&CHAR(10)&ScriptText!C580)","v":""},{"$f":"IF(OrigTable!C585=\"\",\"\",ScriptText!$B$1&CHAR(10)&ScriptText!$D$1)","v":""},{"$f":"IF(OrigTable!C585=\"\",\"\",IF(LEN(OrigTable!C585)>255,LEFT(OrigTable!C585,250)&\". . .\",OrigTable!C585))","v":""},{"$f":"IF(OrigTable!C585=\"\",\"\",ScriptText!$E$1&CHAR(10)&ScriptText!$C$1)","v":""},{"$f":"IF(OrigTable!D585=\"\",\"\",ScriptText!$B$1&CHAR(10)&ScriptText!$D$1)","v":""},{"$f":"IF(OrigTable!D585=\"\",\"\",TEXT(OrigTable!D585,\"00\"))","v":""},{"$f":"IF(OrigTable!D585=\"\",\"\",ScriptText!$E$1&CHAR(10)&ScriptText!$C$1)","v":""},{"$f":"IF(OrigTable!E585=\"\",\"\",ScriptText!$B$1&CHAR(10)&ScriptText!$D$1)","v":""},{"$f":"IF(OrigTable!E585=\"\",\"\",TEXT(OrigTable!E585,\"00\"))","v":""},{"$f":"IF(OrigTable!E585=\"\",\"\",ScriptText!$E$1&CHAR(10)&ScriptText!$C$1)","v":""},{"$f":"IF(OrigTable!F585=\"\",\"\",ScriptText!$B$1&CHAR(10)&ScriptText!$D$1)","v":""},{"$f":"IF(OrigTable!F585=\"\",\"\",TEXT(OrigTable!F585,\"00\"))","v":""},{"$f":"IF(OrigTable!F585=\"\",\"\",ScriptText!$E$1&CHAR(10)&ScriptText!$C$1)","v":""},{"$f":"IF(OrigTable!G585=\"\",\"\",ScriptText!$B$1&CHAR(10)&ScriptText!$D$1)","v":""},{"$f":"IF(OrigTable!G585=\"\",\"\",TEXT(OrigTable!G585,\"00\"))","v":""},{"$f":"IF(OrigTable!G585=\"\",\"\",ScriptText!$E$1&CHAR(10)&ScriptText!$C$1)","v":""},0]
["\n\n\n",{"$f":"IF(OrigTable!A586=\"\",\"\",ScriptText!$B$1&CHAR(10)&ScriptText!$D$1)","v":""},{"$f":"IF(OrigTable!A586=\"\",\"\",TEXT(OrigTable!A586,\"00\"))","v":""},{"$f":"IF(OrigTable!A586=\"\",\"\",ScriptText!$E$1&CHAR(10)&ScriptText!$C$1)","v":""},{"$f":"IF(OrigTable!B586=\"\",\"\",ScriptText!$B$1&CHAR(10)&ScriptText!$D$1)","v":""},{"$f":"IF(OrigTable!B586=\"\",\"\",TEXT(OrigTable!B586,\"00\"))","v":""},{"$f":"IF(OrigTable!B586=\"\",\"\",ScriptText!$E$1&CHAR(10)&ScriptText!C581)","v":""},{"$f":"IF(OrigTable!C586=\"\",\"\",ScriptText!$B$1&CHAR(10)&ScriptText!$D$1)","v":""},{"$f":"IF(OrigTable!C586=\"\",\"\",IF(LEN(OrigTable!C586)>255,LEFT(OrigTable!C586,250)&\". . .\",OrigTable!C586))","v":""},{"$f":"IF(OrigTable!C586=\"\",\"\",ScriptText!$E$1&CHAR(10)&ScriptText!$C$1)","v":""},{"$f":"IF(OrigTable!D586=\"\",\"\",ScriptText!$B$1&CHAR(10)&ScriptText!$D$1)","v":""},{"$f":"IF(OrigTable!D586=\"\",\"\",TEXT(OrigTable!D586,\"00\"))","v":""},{"$f":"IF(OrigTable!D586=\"\",\"\",ScriptText!$E$1&CHAR(10)&ScriptText!$C$1)","v":""},{"$f":"IF(OrigTable!E586=\"\",\"\",ScriptText!$B$1&CHAR(10)&ScriptText!$D$1)","v":""},{"$f":"IF(OrigTable!E586=\"\",\"\",TEXT(OrigTable!E586,\"00\"))","v":""},{"$f":"IF(OrigTable!E586=\"\",\"\",ScriptText!$E$1&CHAR(10)&ScriptText!$C$1)","v":""},{"$f":"IF(OrigTable!F586=\"\",\"\",ScriptText!$B$1&CHAR(10)&ScriptText!$D$1)","v":""},{"$f":"IF(OrigTable!F586=\"\",\"\",TEXT(OrigTable!F586,\"00\"))","v":""},{"$f":"IF(OrigTable!F586=\"\",\"\",ScriptText!$E$1&CHAR(10)&ScriptText!$C$1)","v":""},{"$f":"IF(OrigTable!G586=\"\",\"\",ScriptText!$B$1&CHAR(10)&ScriptText!$D$1)","v":""},{"$f":"IF(OrigTable!G586=\"\",\"\",TEXT(OrigTable!G586,\"00\"))","v":""},{"$f":"IF(OrigTable!G586=\"\",\"\",ScriptText!$E$1&CHAR(10)&ScriptText!$C$1)","v":""},0]
["\n\n\n",{"$f":"IF(OrigTable!A587=\"\",\"\",ScriptText!$B$1&CHAR(10)&ScriptText!$D$1)","v":""},{"$f":"IF(OrigTable!A587=\"\",\"\",TEXT(OrigTable!A587,\"00\"))","v":""},{"$f":"IF(OrigTable!A587=\"\",\"\",ScriptText!$E$1&CHAR(10)&ScriptText!$C$1)","v":""},{"$f":"IF(OrigTable!B587=\"\",\"\",ScriptText!$B$1&CHAR(10)&ScriptText!$D$1)","v":""},{"$f":"IF(OrigTable!B587=\"\",\"\",TEXT(OrigTable!B587,\"00\"))","v":""},{"$f":"IF(OrigTable!B587=\"\",\"\",ScriptText!$E$1&CHAR(10)&ScriptText!C582)","v":""},{"$f":"IF(OrigTable!C587=\"\",\"\",ScriptText!$B$1&CHAR(10)&ScriptText!$D$1)","v":""},{"$f":"IF(OrigTable!C587=\"\",\"\",IF(LEN(OrigTable!C587)>255,LEFT(OrigTable!C587,250)&\". . .\",OrigTable!C587))","v":""},{"$f":"IF(OrigTable!C587=\"\",\"\",ScriptText!$E$1&CHAR(10)&ScriptText!$C$1)","v":""},{"$f":"IF(OrigTable!D587=\"\",\"\",ScriptText!$B$1&CHAR(10)&ScriptText!$D$1)","v":""},{"$f":"IF(OrigTable!D587=\"\",\"\",TEXT(OrigTable!D587,\"00\"))","v":""},{"$f":"IF(OrigTable!D587=\"\",\"\",ScriptText!$E$1&CHAR(10)&ScriptText!$C$1)","v":""},{"$f":"IF(OrigTable!E587=\"\",\"\",ScriptText!$B$1&CHAR(10)&ScriptText!$D$1)","v":""},{"$f":"IF(OrigTable!E587=\"\",\"\",TEXT(OrigTable!E587,\"00\"))","v":""},{"$f":"IF(OrigTable!E587=\"\",\"\",ScriptText!$E$1&CHAR(10)&ScriptText!$C$1)","v":""},{"$f":"IF(OrigTable!F587=\"\",\"\",ScriptText!$B$1&CHAR(10)&ScriptText!$D$1)","v":""},{"$f":"IF(OrigTable!F587=\"\",\"\",TEXT(OrigTable!F587,\"00\"))","v":""},{"$f":"IF(OrigTable!F587=\"\",\"\",ScriptText!$E$1&CHAR(10)&ScriptText!$C$1)","v":""},{"$f":"IF(OrigTable!G587=\"\",\"\",ScriptText!$B$1&CHAR(10)&ScriptText!$D$1)","v":""},{"$f":"IF(OrigTable!G587=\"\",\"\",TEXT(OrigTable!G587,\"00\"))","v":""},{"$f":"IF(OrigTable!G587=\"\",\"\",ScriptText!$E$1&CHAR(10)&ScriptText!$C$1)","v":""},0]
["\n\n\n",{"$f":"IF(OrigTable!A588=\"\",\"\",ScriptText!$B$1&CHAR(10)&ScriptText!$D$1)","v":""},{"$f":"IF(OrigTable!A588=\"\",\"\",TEXT(OrigTable!A588,\"00\"))","v":""},{"$f":"IF(OrigTable!A588=\"\",\"\",ScriptText!$E$1&CHAR(10)&ScriptText!$C$1)","v":""},{"$f":"IF(OrigTable!B588=\"\",\"\",ScriptText!$B$1&CHAR(10)&ScriptText!$D$1)","v":""},{"$f":"IF(OrigTable!B588=\"\",\"\",TEXT(OrigTable!B588,\"00\"))","v":""},{"$f":"IF(OrigTable!B588=\"\",\"\",ScriptText!$E$1&CHAR(10)&ScriptText!C583)","v":""},{"$f":"IF(OrigTable!C588=\"\",\"\",ScriptText!$B$1&CHAR(10)&ScriptText!$D$1)","v":""},{"$f":"IF(OrigTable!C588=\"\",\"\",IF(LEN(OrigTable!C588)>255,LEFT(OrigTable!C588,250)&\". . .\",OrigTable!C588))","v":""},{"$f":"IF(OrigTable!C588=\"\",\"\",ScriptText!$E$1&CHAR(10)&ScriptText!$C$1)","v":""},{"$f":"IF(OrigTable!D588=\"\",\"\",ScriptText!$B$1&CHAR(10)&ScriptText!$D$1)","v":""},{"$f":"IF(OrigTable!D588=\"\",\"\",TEXT(OrigTable!D588,\"00\"))","v":""},{"$f":"IF(OrigTable!D588=\"\",\"\",ScriptText!$E$1&CHAR(10)&ScriptText!$C$1)","v":""},{"$f":"IF(OrigTable!E588=\"\",\"\",ScriptText!$B$1&CHAR(10)&ScriptText!$D$1)","v":""},{"$f":"IF(OrigTable!E588=\"\",\"\",TEXT(OrigTable!E588,\"00\"))","v":""},{"$f":"IF(OrigTable!E588=\"\",\"\",ScriptText!$E$1&CHAR(10)&ScriptText!$C$1)","v":""},{"$f":"IF(OrigTable!F588=\"\",\"\",ScriptText!$B$1&CHAR(10)&ScriptText!$D$1)","v":""},{"$f":"IF(OrigTable!F588=\"\",\"\",TEXT(OrigTable!F588,\"00\"))","v":""},{"$f":"IF(OrigTable!F588=\"\",\"\",ScriptText!$E$1&CHAR(10)&ScriptText!$C$1)","v":""},{"$f":"IF(OrigTable!G588=\"\",\"\",ScriptText!$B$1&CHAR(10)&ScriptText!$D$1)","v":""},{"$f":"IF(OrigTable!G588=\"\",\"\",TEXT(OrigTable!G588,\"00\"))","v":""},{"$f":"IF(OrigTable!G588=\"\",\"\",ScriptText!$E$1&CHAR(10)&ScriptText!$C$1)","v":""},0]
["\n\n\n",{"$f":"IF(OrigTable!A589=\"\",\"\",ScriptText!$B$1&CHAR(10)&ScriptText!$D$1)","v":""},{"$f":"IF(OrigTable!A589=\"\",\"\",TEXT(OrigTable!A589,\"00\"))","v":""},{"$f":"IF(OrigTable!A589=\"\",\"\",ScriptText!$E$1&CHAR(10)&ScriptText!$C$1)","v":""},{"$f":"IF(OrigTable!B589=\"\",\"\",ScriptText!$B$1&CHAR(10)&ScriptText!$D$1)","v":""},{"$f":"IF(OrigTable!B589=\"\",\"\",TEXT(OrigTable!B589,\"00\"))","v":""},{"$f":"IF(OrigTable!B589=\"\",\"\",ScriptText!$E$1&CHAR(10)&ScriptText!C584)","v":""},{"$f":"IF(OrigTable!C589=\"\",\"\",ScriptText!$B$1&CHAR(10)&ScriptText!$D$1)","v":""},{"$f":"IF(OrigTable!C589=\"\",\"\",IF(LEN(OrigTable!C589)>255,LEFT(OrigTable!C589,250)&\". . .\",OrigTable!C589))","v":""},{"$f":"IF(OrigTable!C589=\"\",\"\",ScriptText!$E$1&CHAR(10)&ScriptText!$C$1)","v":""},{"$f":"IF(OrigTable!D589=\"\",\"\",ScriptText!$B$1&CHAR(10)&ScriptText!$D$1)","v":""},{"$f":"IF(OrigTable!D589=\"\",\"\",TEXT(OrigTable!D589,\"00\"))","v":""},{"$f":"IF(OrigTable!D589=\"\",\"\",ScriptText!$E$1&CHAR(10)&ScriptText!$C$1)","v":""},{"$f":"IF(OrigTable!E589=\"\",\"\",ScriptText!$B$1&CHAR(10)&ScriptText!$D$1)","v":""},{"$f":"IF(OrigTable!E589=\"\",\"\",TEXT(OrigTable!E589,\"00\"))","v":""},{"$f":"IF(OrigTable!E589=\"\",\"\",ScriptText!$E$1&CHAR(10)&ScriptText!$C$1)","v":""},{"$f":"IF(OrigTable!F589=\"\",\"\",ScriptText!$B$1&CHAR(10)&ScriptText!$D$1)","v":""},{"$f":"IF(OrigTable!F589=\"\",\"\",TEXT(OrigTable!F589,\"00\"))","v":""},{"$f":"IF(OrigTable!F589=\"\",\"\",ScriptText!$E$1&CHAR(10)&ScriptText!$C$1)","v":""},{"$f":"IF(OrigTable!G589=\"\",\"\",ScriptText!$B$1&CHAR(10)&ScriptText!$D$1)","v":""},{"$f":"IF(OrigTable!G589=\"\",\"\",TEXT(OrigTable!G589,\"00\"))","v":""},{"$f":"IF(OrigTable!G589=\"\",\"\",ScriptText!$E$1&CHAR(10)&ScriptText!$C$1)","v":""},0]
["\n\n\n",{"$f":"IF(OrigTable!A590=\"\",\"\",ScriptText!$B$1&CHAR(10)&ScriptText!$D$1)","v":""},{"$f":"IF(OrigTable!A590=\"\",\"\",TEXT(OrigTable!A590,\"00\"))","v":""},{"$f":"IF(OrigTable!A590=\"\",\"\",ScriptText!$E$1&CHAR(10)&ScriptText!$C$1)","v":""},{"$f":"IF(OrigTable!B590=\"\",\"\",ScriptText!$B$1&CHAR(10)&ScriptText!$D$1)","v":""},{"$f":"IF(OrigTable!B590=\"\",\"\",TEXT(OrigTable!B590,\"00\"))","v":""},{"$f":"IF(OrigTable!B590=\"\",\"\",ScriptText!$E$1&CHAR(10)&ScriptText!C585)","v":""},{"$f":"IF(OrigTable!C590=\"\",\"\",ScriptText!$B$1&CHAR(10)&ScriptText!$D$1)","v":""},{"$f":"IF(OrigTable!C590=\"\",\"\",IF(LEN(OrigTable!C590)>255,LEFT(OrigTable!C590,250)&\". . .\",OrigTable!C590))","v":""},{"$f":"IF(OrigTable!C590=\"\",\"\",ScriptText!$E$1&CHAR(10)&ScriptText!$C$1)","v":""},{"$f":"IF(OrigTable!D590=\"\",\"\",ScriptText!$B$1&CHAR(10)&ScriptText!$D$1)","v":""},{"$f":"IF(OrigTable!D590=\"\",\"\",TEXT(OrigTable!D590,\"00\"))","v":""},{"$f":"IF(OrigTable!D590=\"\",\"\",ScriptText!$E$1&CHAR(10)&ScriptText!$C$1)","v":""},{"$f":"IF(OrigTable!E590=\"\",\"\",ScriptText!$B$1&CHAR(10)&ScriptText!$D$1)","v":""},{"$f":"IF(OrigTable!E590=\"\",\"\",TEXT(OrigTable!E590,\"00\"))","v":""},{"$f":"IF(OrigTable!E590=\"\",\"\",ScriptText!$E$1&CHAR(10)&ScriptText!$C$1)","v":""},{"$f":"IF(OrigTable!F590=\"\",\"\",ScriptText!$B$1&CHAR(10)&ScriptText!$D$1)","v":""},{"$f":"IF(OrigTable!F590=\"\",\"\",TEXT(OrigTable!F590,\"00\"))","v":""},{"$f":"IF(OrigTable!F590=\"\",\"\",ScriptText!$E$1&CHAR(10)&ScriptText!$C$1)","v":""},{"$f":"IF(OrigTable!G590=\"\",\"\",ScriptText!$B$1&CHAR(10)&ScriptText!$D$1)","v":""},{"$f":"IF(OrigTable!G590=\"\",\"\",TEXT(OrigTable!G590,\"00\"))","v":""},{"$f":"IF(OrigTable!G590=\"\",\"\",ScriptText!$E$1&CHAR(10)&ScriptText!$C$1)","v":""},0]
["\n\n\n",{"$f":"IF(OrigTable!A591=\"\",\"\",ScriptText!$B$1&CHAR(10)&ScriptText!$D$1)","v":""},{"$f":"IF(OrigTable!A591=\"\",\"\",TEXT(OrigTable!A591,\"00\"))","v":""},{"$f":"IF(OrigTable!A591=\"\",\"\",ScriptText!$E$1&CHAR(10)&ScriptText!$C$1)","v":""},{"$f":"IF(OrigTable!B591=\"\",\"\",ScriptText!$B$1&CHAR(10)&ScriptText!$D$1)","v":""},{"$f":"IF(OrigTable!B591=\"\",\"\",TEXT(OrigTable!B591,\"00\"))","v":""},{"$f":"IF(OrigTable!B591=\"\",\"\",ScriptText!$E$1&CHAR(10)&ScriptText!C586)","v":""},{"$f":"IF(OrigTable!C591=\"\",\"\",ScriptText!$B$1&CHAR(10)&ScriptText!$D$1)","v":""},{"$f":"IF(OrigTable!C591=\"\",\"\",IF(LEN(OrigTable!C591)>255,LEFT(OrigTable!C591,250)&\". . .\",OrigTable!C591))","v":""},{"$f":"IF(OrigTable!C591=\"\",\"\",ScriptText!$E$1&CHAR(10)&ScriptText!$C$1)","v":""},{"$f":"IF(OrigTable!D591=\"\",\"\",ScriptText!$B$1&CHAR(10)&ScriptText!$D$1)","v":""},{"$f":"IF(OrigTable!D591=\"\",\"\",TEXT(OrigTable!D591,\"00\"))","v":""},{"$f":"IF(OrigTable!D591=\"\",\"\",ScriptText!$E$1&CHAR(10)&ScriptText!$C$1)","v":""},{"$f":"IF(OrigTable!E591=\"\",\"\",ScriptText!$B$1&CHAR(10)&ScriptText!$D$1)","v":""},{"$f":"IF(OrigTable!E591=\"\",\"\",TEXT(OrigTable!E591,\"00\"))","v":""},{"$f":"IF(OrigTable!E591=\"\",\"\",ScriptText!$E$1&CHAR(10)&ScriptText!$C$1)","v":""},{"$f":"IF(OrigTable!F591=\"\",\"\",ScriptText!$B$1&CHAR(10)&ScriptText!$D$1)","v":""},{"$f":"IF(OrigTable!F591=\"\",\"\",TEXT(OrigTable!F591,\"00\"))","v":""},{"$f":"IF(OrigTable!F591=\"\",\"\",ScriptText!$E$1&CHAR(10)&ScriptText!$C$1)","v":""},{"$f":"IF(OrigTable!G591=\"\",\"\",ScriptText!$B$1&CHAR(10)&ScriptText!$D$1)","v":""},{"$f":"IF(OrigTable!G591=\"\",\"\",TEXT(OrigTable!G591,\"00\"))","v":""},{"$f":"IF(OrigTable!G591=\"\",\"\",ScriptText!$E$1&CHAR(10)&ScriptText!$C$1)","v":""},0]
["\n\n\n",{"$f":"IF(OrigTable!A592=\"\",\"\",ScriptText!$B$1&CHAR(10)&ScriptText!$D$1)","v":""},{"$f":"IF(OrigTable!A592=\"\",\"\",TEXT(OrigTable!A592,\"00\"))","v":""},{"$f":"IF(OrigTable!A592=\"\",\"\",ScriptText!$E$1&CHAR(10)&ScriptText!$C$1)","v":""},{"$f":"IF(OrigTable!B592=\"\",\"\",ScriptText!$B$1&CHAR(10)&ScriptText!$D$1)","v":""},{"$f":"IF(OrigTable!B592=\"\",\"\",TEXT(OrigTable!B592,\"00\"))","v":""},{"$f":"IF(OrigTable!B592=\"\",\"\",ScriptText!$E$1&CHAR(10)&ScriptText!C587)","v":""},{"$f":"IF(OrigTable!C592=\"\",\"\",ScriptText!$B$1&CHAR(10)&ScriptText!$D$1)","v":""},{"$f":"IF(OrigTable!C592=\"\",\"\",IF(LEN(OrigTable!C592)>255,LEFT(OrigTable!C592,250)&\". . .\",OrigTable!C592))","v":""},{"$f":"IF(OrigTable!C592=\"\",\"\",ScriptText!$E$1&CHAR(10)&ScriptText!$C$1)","v":""},{"$f":"IF(OrigTable!D592=\"\",\"\",ScriptText!$B$1&CHAR(10)&ScriptText!$D$1)","v":""},{"$f":"IF(OrigTable!D592=\"\",\"\",TEXT(OrigTable!D592,\"00\"))","v":""},{"$f":"IF(OrigTable!D592=\"\",\"\",ScriptText!$E$1&CHAR(10)&ScriptText!$C$1)","v":""},{"$f":"IF(OrigTable!E592=\"\",\"\",ScriptText!$B$1&CHAR(10)&ScriptText!$D$1)","v":""},{"$f":"IF(OrigTable!E592=\"\",\"\",TEXT(OrigTable!E592,\"00\"))","v":""},{"$f":"IF(OrigTable!E592=\"\",\"\",ScriptText!$E$1&CHAR(10)&ScriptText!$C$1)","v":""},{"$f":"IF(OrigTable!F592=\"\",\"\",ScriptText!$B$1&CHAR(10)&ScriptText!$D$1)","v":""},{"$f":"IF(OrigTable!F592=\"\",\"\",TEXT(OrigTable!F592,\"00\"))","v":""},{"$f":"IF(OrigTable!F592=\"\",\"\",ScriptText!$E$1&CHAR(10)&ScriptText!$C$1)","v":""},{"$f":"IF(OrigTable!G592=\"\",\"\",ScriptText!$B$1&CHAR(10)&ScriptText!$D$1)","v":""},{"$f":"IF(OrigTable!G592=\"\",\"\",TEXT(OrigTable!G592,\"00\"))","v":""},{"$f":"IF(OrigTable!G592=\"\",\"\",ScriptText!$E$1&CHAR(10)&ScriptText!$C$1)","v":""},0]
["\n\n\n",{"$f":"IF(OrigTable!A593=\"\",\"\",ScriptText!$B$1&CHAR(10)&ScriptText!$D$1)","v":""},{"$f":"IF(OrigTable!A593=\"\",\"\",TEXT(OrigTable!A593,\"00\"))","v":""},{"$f":"IF(OrigTable!A593=\"\",\"\",ScriptText!$E$1&CHAR(10)&ScriptText!$C$1)","v":""},{"$f":"IF(OrigTable!B593=\"\",\"\",ScriptText!$B$1&CHAR(10)&ScriptText!$D$1)","v":""},{"$f":"IF(OrigTable!B593=\"\",\"\",TEXT(OrigTable!B593,\"00\"))","v":""},{"$f":"IF(OrigTable!B593=\"\",\"\",ScriptText!$E$1&CHAR(10)&ScriptText!C588)","v":""},{"$f":"IF(OrigTable!C593=\"\",\"\",ScriptText!$B$1&CHAR(10)&ScriptText!$D$1)","v":""},{"$f":"IF(OrigTable!C593=\"\",\"\",IF(LEN(OrigTable!C593)>255,LEFT(OrigTable!C593,250)&\". . .\",OrigTable!C593))","v":""},{"$f":"IF(OrigTable!C593=\"\",\"\",ScriptText!$E$1&CHAR(10)&ScriptText!$C$1)","v":""},{"$f":"IF(OrigTable!D593=\"\",\"\",ScriptText!$B$1&CHAR(10)&ScriptText!$D$1)","v":""},{"$f":"IF(OrigTable!D593=\"\",\"\",TEXT(OrigTable!D593,\"00\"))","v":""},{"$f":"IF(OrigTable!D593=\"\",\"\",ScriptText!$E$1&CHAR(10)&ScriptText!$C$1)","v":""},{"$f":"IF(OrigTable!E593=\"\",\"\",ScriptText!$B$1&CHAR(10)&ScriptText!$D$1)","v":""},{"$f":"IF(OrigTable!E593=\"\",\"\",TEXT(OrigTable!E593,\"00\"))","v":""},{"$f":"IF(OrigTable!E593=\"\",\"\",ScriptText!$E$1&CHAR(10)&ScriptText!$C$1)","v":""},{"$f":"IF(OrigTable!F593=\"\",\"\",ScriptText!$B$1&CHAR(10)&ScriptText!$D$1)","v":""},{"$f":"IF(OrigTable!F593=\"\",\"\",TEXT(OrigTable!F593,\"00\"))","v":""},{"$f":"IF(OrigTable!F593=\"\",\"\",ScriptText!$E$1&CHAR(10)&ScriptText!$C$1)","v":""},{"$f":"IF(OrigTable!G593=\"\",\"\",ScriptText!$B$1&CHAR(10)&ScriptText!$D$1)","v":""},{"$f":"IF(OrigTable!G593=\"\",\"\",TEXT(OrigTable!G593,\"00\"))","v":""},{"$f":"IF(OrigTable!G593=\"\",\"\",ScriptText!$E$1&CHAR(10)&ScriptText!$C$1)","v":""},0]
["\n\n\n",{"$f":"IF(OrigTable!A594=\"\",\"\",ScriptText!$B$1&CHAR(10)&ScriptText!$D$1)","v":""},{"$f":"IF(OrigTable!A594=\"\",\"\",TEXT(OrigTable!A594,\"00\"))","v":""},{"$f":"IF(OrigTable!A594=\"\",\"\",ScriptText!$E$1&CHAR(10)&ScriptText!$C$1)","v":""},{"$f":"IF(OrigTable!B594=\"\",\"\",ScriptText!$B$1&CHAR(10)&ScriptText!$D$1)","v":""},{"$f":"IF(OrigTable!B594=\"\",\"\",TEXT(OrigTable!B594,\"00\"))","v":""},{"$f":"IF(OrigTable!B594=\"\",\"\",ScriptText!$E$1&CHAR(10)&ScriptText!C589)","v":""},{"$f":"IF(OrigTable!C594=\"\",\"\",ScriptText!$B$1&CHAR(10)&ScriptText!$D$1)","v":""},{"$f":"IF(OrigTable!C594=\"\",\"\",IF(LEN(OrigTable!C594)>255,LEFT(OrigTable!C594,250)&\". . .\",OrigTable!C594))","v":""},{"$f":"IF(OrigTable!C594=\"\",\"\",ScriptText!$E$1&CHAR(10)&ScriptText!$C$1)","v":""},{"$f":"IF(OrigTable!D594=\"\",\"\",ScriptText!$B$1&CHAR(10)&ScriptText!$D$1)","v":""},{"$f":"IF(OrigTable!D594=\"\",\"\",TEXT(OrigTable!D594,\"00\"))","v":""},{"$f":"IF(OrigTable!D594=\"\",\"\",ScriptText!$E$1&CHAR(10)&ScriptText!$C$1)","v":""},{"$f":"IF(OrigTable!E594=\"\",\"\",ScriptText!$B$1&CHAR(10)&ScriptText!$D$1)","v":""},{"$f":"IF(OrigTable!E594=\"\",\"\",TEXT(OrigTable!E594,\"00\"))","v":""},{"$f":"IF(OrigTable!E594=\"\",\"\",ScriptText!$E$1&CHAR(10)&ScriptText!$C$1)","v":""},{"$f":"IF(OrigTable!F594=\"\",\"\",ScriptText!$B$1&CHAR(10)&ScriptText!$D$1)","v":""},{"$f":"IF(OrigTable!F594=\"\",\"\",TEXT(OrigTable!F594,\"00\"))","v":""},{"$f":"IF(OrigTable!F594=\"\",\"\",ScriptText!$E$1&CHAR(10)&ScriptText!$C$1)","v":""},{"$f":"IF(OrigTable!G594=\"\",\"\",ScriptText!$B$1&CHAR(10)&ScriptText!$D$1)","v":""},{"$f":"IF(OrigTable!G594=\"\",\"\",TEXT(OrigTable!G594,\"00\"))","v":""},{"$f":"IF(OrigTable!G594=\"\",\"\",ScriptText!$E$1&CHAR(10)&ScriptText!$C$1)","v":""},0]
["\n\n\n",{"$f":"IF(OrigTable!A595=\"\",\"\",ScriptText!$B$1&CHAR(10)&ScriptText!$D$1)","v":""},{"$f":"IF(OrigTable!A595=\"\",\"\",TEXT(OrigTable!A595,\"00\"))","v":""},{"$f":"IF(OrigTable!A595=\"\",\"\",ScriptText!$E$1&CHAR(10)&ScriptText!$C$1)","v":""},{"$f":"IF(OrigTable!B595=\"\",\"\",ScriptText!$B$1&CHAR(10)&ScriptText!$D$1)","v":""},{"$f":"IF(OrigTable!B595=\"\",\"\",TEXT(OrigTable!B595,\"00\"))","v":""},{"$f":"IF(OrigTable!B595=\"\",\"\",ScriptText!$E$1&CHAR(10)&ScriptText!C590)","v":""},{"$f":"IF(OrigTable!C595=\"\",\"\",ScriptText!$B$1&CHAR(10)&ScriptText!$D$1)","v":""},{"$f":"IF(OrigTable!C595=\"\",\"\",IF(LEN(OrigTable!C595)>255,LEFT(OrigTable!C595,250)&\". . .\",OrigTable!C595))","v":""},{"$f":"IF(OrigTable!C595=\"\",\"\",ScriptText!$E$1&CHAR(10)&ScriptText!$C$1)","v":""},{"$f":"IF(OrigTable!D595=\"\",\"\",ScriptText!$B$1&CHAR(10)&ScriptText!$D$1)","v":""},{"$f":"IF(OrigTable!D595=\"\",\"\",TEXT(OrigTable!D595,\"00\"))","v":""},{"$f":"IF(OrigTable!D595=\"\",\"\",ScriptText!$E$1&CHAR(10)&ScriptText!$C$1)","v":""},{"$f":"IF(OrigTable!E595=\"\",\"\",ScriptText!$B$1&CHAR(10)&ScriptText!$D$1)","v":""},{"$f":"IF(OrigTable!E595=\"\",\"\",TEXT(OrigTable!E595,\"00\"))","v":""},{"$f":"IF(OrigTable!E595=\"\",\"\",ScriptText!$E$1&CHAR(10)&ScriptText!$C$1)","v":""},{"$f":"IF(OrigTable!F595=\"\",\"\",ScriptText!$B$1&CHAR(10)&ScriptText!$D$1)","v":""},{"$f":"IF(OrigTable!F595=\"\",\"\",TEXT(OrigTable!F595,\"00\"))","v":""},{"$f":"IF(OrigTable!F595=\"\",\"\",ScriptText!$E$1&CHAR(10)&ScriptText!$C$1)","v":""},{"$f":"IF(OrigTable!G595=\"\",\"\",ScriptText!$B$1&CHAR(10)&ScriptText!$D$1)","v":""},{"$f":"IF(OrigTable!G595=\"\",\"\",TEXT(OrigTable!G595,\"00\"))","v":""},{"$f":"IF(OrigTable!G595=\"\",\"\",ScriptText!$E$1&CHAR(10)&ScriptText!$C$1)","v":""},0]
["\n\n\n",{"$f":"IF(OrigTable!A596=\"\",\"\",ScriptText!$B$1&CHAR(10)&ScriptText!$D$1)","v":""},{"$f":"IF(OrigTable!A596=\"\",\"\",TEXT(OrigTable!A596,\"00\"))","v":""},{"$f":"IF(OrigTable!A596=\"\",\"\",ScriptText!$E$1&CHAR(10)&ScriptText!$C$1)","v":""},{"$f":"IF(OrigTable!B596=\"\",\"\",ScriptText!$B$1&CHAR(10)&ScriptText!$D$1)","v":""},{"$f":"IF(OrigTable!B596=\"\",\"\",TEXT(OrigTable!B596,\"00\"))","v":""},{"$f":"IF(OrigTable!B596=\"\",\"\",ScriptText!$E$1&CHAR(10)&ScriptText!C591)","v":""},{"$f":"IF(OrigTable!C596=\"\",\"\",ScriptText!$B$1&CHAR(10)&ScriptText!$D$1)","v":""},{"$f":"IF(OrigTable!C596=\"\",\"\",IF(LEN(OrigTable!C596)>255,LEFT(OrigTable!C596,250)&\". . .\",OrigTable!C596))","v":""},{"$f":"IF(OrigTable!C596=\"\",\"\",ScriptText!$E$1&CHAR(10)&ScriptText!$C$1)","v":""},{"$f":"IF(OrigTable!D596=\"\",\"\",ScriptText!$B$1&CHAR(10)&ScriptText!$D$1)","v":""},{"$f":"IF(OrigTable!D596=\"\",\"\",TEXT(OrigTable!D596,\"00\"))","v":""},{"$f":"IF(OrigTable!D596=\"\",\"\",ScriptText!$E$1&CHAR(10)&ScriptText!$C$1)","v":""},{"$f":"IF(OrigTable!E596=\"\",\"\",ScriptText!$B$1&CHAR(10)&ScriptText!$D$1)","v":""},{"$f":"IF(OrigTable!E596=\"\",\"\",TEXT(OrigTable!E596,\"00\"))","v":""},{"$f":"IF(OrigTable!E596=\"\",\"\",ScriptText!$E$1&CHAR(10)&ScriptText!$C$1)","v":""},{"$f":"IF(OrigTable!F596=\"\",\"\",ScriptText!$B$1&CHAR(10)&ScriptText!$D$1)","v":""},{"$f":"IF(OrigTable!F596=\"\",\"\",TEXT(OrigTable!F596,\"00\"))","v":""},{"$f":"IF(OrigTable!F596=\"\",\"\",ScriptText!$E$1&CHAR(10)&ScriptText!$C$1)","v":""},{"$f":"IF(OrigTable!G596=\"\",\"\",ScriptText!$B$1&CHAR(10)&ScriptText!$D$1)","v":""},{"$f":"IF(OrigTable!G596=\"\",\"\",TEXT(OrigTable!G596,\"00\"))","v":""},{"$f":"IF(OrigTable!G596=\"\",\"\",ScriptText!$E$1&CHAR(10)&ScriptText!$C$1)","v":""},0]
["\n\n\n",{"$f":"IF(OrigTable!A597=\"\",\"\",ScriptText!$B$1&CHAR(10)&ScriptText!$D$1)","v":""},{"$f":"IF(OrigTable!A597=\"\",\"\",TEXT(OrigTable!A597,\"00\"))","v":""},{"$f":"IF(OrigTable!A597=\"\",\"\",ScriptText!$E$1&CHAR(10)&ScriptText!$C$1)","v":""},{"$f":"IF(OrigTable!B597=\"\",\"\",ScriptText!$B$1&CHAR(10)&ScriptText!$D$1)","v":""},{"$f":"IF(OrigTable!B597=\"\",\"\",TEXT(OrigTable!B597,\"00\"))","v":""},{"$f":"IF(OrigTable!B597=\"\",\"\",ScriptText!$E$1&CHAR(10)&ScriptText!C592)","v":""},{"$f":"IF(OrigTable!C597=\"\",\"\",ScriptText!$B$1&CHAR(10)&ScriptText!$D$1)","v":""},{"$f":"IF(OrigTable!C597=\"\",\"\",IF(LEN(OrigTable!C597)>255,LEFT(OrigTable!C597,250)&\". . .\",OrigTable!C597))","v":""},{"$f":"IF(OrigTable!C597=\"\",\"\",ScriptText!$E$1&CHAR(10)&ScriptText!$C$1)","v":""},{"$f":"IF(OrigTable!D597=\"\",\"\",ScriptText!$B$1&CHAR(10)&ScriptText!$D$1)","v":""},{"$f":"IF(OrigTable!D597=\"\",\"\",TEXT(OrigTable!D597,\"00\"))","v":""},{"$f":"IF(OrigTable!D597=\"\",\"\",ScriptText!$E$1&CHAR(10)&ScriptText!$C$1)","v":""},{"$f":"IF(OrigTable!E597=\"\",\"\",ScriptText!$B$1&CHAR(10)&ScriptText!$D$1)","v":""},{"$f":"IF(OrigTable!E597=\"\",\"\",TEXT(OrigTable!E597,\"00\"))","v":""},{"$f":"IF(OrigTable!E597=\"\",\"\",ScriptText!$E$1&CHAR(10)&ScriptText!$C$1)","v":""},{"$f":"IF(OrigTable!F597=\"\",\"\",ScriptText!$B$1&CHAR(10)&ScriptText!$D$1)","v":""},{"$f":"IF(OrigTable!F597=\"\",\"\",TEXT(OrigTable!F597,\"00\"))","v":""},{"$f":"IF(OrigTable!F597=\"\",\"\",ScriptText!$E$1&CHAR(10)&ScriptText!$C$1)","v":""},{"$f":"IF(OrigTable!G597=\"\",\"\",ScriptText!$B$1&CHAR(10)&ScriptText!$D$1)","v":""},{"$f":"IF(OrigTable!G597=\"\",\"\",TEXT(OrigTable!G597,\"00\"))","v":""},{"$f":"IF(OrigTable!G597=\"\",\"\",ScriptText!$E$1&CHAR(10)&ScriptText!$C$1)","v":""},0]
["\n\n\n",{"$f":"IF(OrigTable!A598=\"\",\"\",ScriptText!$B$1&CHAR(10)&ScriptText!$D$1)","v":""},{"$f":"IF(OrigTable!A598=\"\",\"\",TEXT(OrigTable!A598,\"00\"))","v":""},{"$f":"IF(OrigTable!A598=\"\",\"\",ScriptText!$E$1&CHAR(10)&ScriptText!$C$1)","v":""},{"$f":"IF(OrigTable!B598=\"\",\"\",ScriptText!$B$1&CHAR(10)&ScriptText!$D$1)","v":""},{"$f":"IF(OrigTable!B598=\"\",\"\",TEXT(OrigTable!B598,\"00\"))","v":""},{"$f":"IF(OrigTable!B598=\"\",\"\",ScriptText!$E$1&CHAR(10)&ScriptText!C593)","v":""},{"$f":"IF(OrigTable!C598=\"\",\"\",ScriptText!$B$1&CHAR(10)&ScriptText!$D$1)","v":""},{"$f":"IF(OrigTable!C598=\"\",\"\",IF(LEN(OrigTable!C598)>255,LEFT(OrigTable!C598,250)&\". . .\",OrigTable!C598))","v":""},{"$f":"IF(OrigTable!C598=\"\",\"\",ScriptText!$E$1&CHAR(10)&ScriptText!$C$1)","v":""},{"$f":"IF(OrigTable!D598=\"\",\"\",ScriptText!$B$1&CHAR(10)&ScriptText!$D$1)","v":""},{"$f":"IF(OrigTable!D598=\"\",\"\",TEXT(OrigTable!D598,\"00\"))","v":""},{"$f":"IF(OrigTable!D598=\"\",\"\",ScriptText!$E$1&CHAR(10)&ScriptText!$C$1)","v":""},{"$f":"IF(OrigTable!E598=\"\",\"\",ScriptText!$B$1&CHAR(10)&ScriptText!$D$1)","v":""},{"$f":"IF(OrigTable!E598=\"\",\"\",TEXT(OrigTable!E598,\"00\"))","v":""},{"$f":"IF(OrigTable!E598=\"\",\"\",ScriptText!$E$1&CHAR(10)&ScriptText!$C$1)","v":""},{"$f":"IF(OrigTable!F598=\"\",\"\",ScriptText!$B$1&CHAR(10)&ScriptText!$D$1)","v":""},{"$f":"IF(OrigTable!F598=\"\",\"\",TEXT(OrigTable!F598,\"00\"))","v":""},{"$f":"IF(OrigTable!F598=\"\",\"\",ScriptText!$E$1&CHAR(10)&ScriptText!$C$1)","v":""},{"$f":"IF(OrigTable!G598=\"\",\"\",ScriptText!$B$1&CHAR(10)&ScriptText!$D$1)","v":""},{"$f":"IF(OrigTable!G598=\"\",\"\",TEXT(OrigTable!G598,\"00\"))","v":""},{"$f":"IF(OrigTable!G598=\"\",\"\",ScriptText!$E$1&CHAR(10)&ScriptText!$C$1)","v":""},0]
["\n\n\n",{"$f":"IF(OrigTable!A599=\"\",\"\",ScriptText!$B$1&CHAR(10)&ScriptText!$D$1)","v":""},{"$f":"IF(OrigTable!A599=\"\",\"\",TEXT(OrigTable!A599,\"00\"))","v":""},{"$f":"IF(OrigTable!A599=\"\",\"\",ScriptText!$E$1&CHAR(10)&ScriptText!$C$1)","v":""},{"$f":"IF(OrigTable!B599=\"\",\"\",ScriptText!$B$1&CHAR(10)&ScriptText!$D$1)","v":""},{"$f":"IF(OrigTable!B599=\"\",\"\",TEXT(OrigTable!B599,\"00\"))","v":""},{"$f":"IF(OrigTable!B599=\"\",\"\",ScriptText!$E$1&CHAR(10)&ScriptText!C594)","v":""},{"$f":"IF(OrigTable!C599=\"\",\"\",ScriptText!$B$1&CHAR(10)&ScriptText!$D$1)","v":""},{"$f":"IF(OrigTable!C599=\"\",\"\",IF(LEN(OrigTable!C599)>255,LEFT(OrigTable!C599,250)&\". . .\",OrigTable!C599))","v":""},{"$f":"IF(OrigTable!C599=\"\",\"\",ScriptText!$E$1&CHAR(10)&ScriptText!$C$1)","v":""},{"$f":"IF(OrigTable!D599=\"\",\"\",ScriptText!$B$1&CHAR(10)&ScriptText!$D$1)","v":""},{"$f":"IF(OrigTable!D599=\"\",\"\",TEXT(OrigTable!D599,\"00\"))","v":""},{"$f":"IF(OrigTable!D599=\"\",\"\",ScriptText!$E$1&CHAR(10)&ScriptText!$C$1)","v":""},{"$f":"IF(OrigTable!E599=\"\",\"\",ScriptText!$B$1&CHAR(10)&ScriptText!$D$1)","v":""},{"$f":"IF(OrigTable!E599=\"\",\"\",TEXT(OrigTable!E599,\"00\"))","v":""},{"$f":"IF(OrigTable!E599=\"\",\"\",ScriptText!$E$1&CHAR(10)&ScriptText!$C$1)","v":""},{"$f":"IF(OrigTable!F599=\"\",\"\",ScriptText!$B$1&CHAR(10)&ScriptText!$D$1)","v":""},{"$f":"IF(OrigTable!F599=\"\",\"\",TEXT(OrigTable!F599,\"00\"))","v":""},{"$f":"IF(OrigTable!F599=\"\",\"\",ScriptText!$E$1&CHAR(10)&ScriptText!$C$1)","v":""},{"$f":"IF(OrigTable!G599=\"\",\"\",ScriptText!$B$1&CHAR(10)&ScriptText!$D$1)","v":""},{"$f":"IF(OrigTable!G599=\"\",\"\",TEXT(OrigTable!G599,\"00\"))","v":""},{"$f":"IF(OrigTable!G599=\"\",\"\",ScriptText!$E$1&CHAR(10)&ScriptText!$C$1)","v":""},0]
["\n\n\n",{"$f":"IF(OrigTable!A600=\"\",\"\",ScriptText!$B$1&CHAR(10)&ScriptText!$D$1)","v":""},{"$f":"IF(OrigTable!A600=\"\",\"\",TEXT(OrigTable!A600,\"00\"))","v":""},{"$f":"IF(OrigTable!A600=\"\",\"\",ScriptText!$E$1&CHAR(10)&ScriptText!$C$1)","v":""},{"$f":"IF(OrigTable!B600=\"\",\"\",ScriptText!$B$1&CHAR(10)&ScriptText!$D$1)","v":""},{"$f":"IF(OrigTable!B600=\"\",\"\",TEXT(OrigTable!B600,\"00\"))","v":""},{"$f":"IF(OrigTable!B600=\"\",\"\",ScriptText!$E$1&CHAR(10)&ScriptText!C595)","v":""},{"$f":"IF(OrigTable!C600=\"\",\"\",ScriptText!$B$1&CHAR(10)&ScriptText!$D$1)","v":""},{"$f":"IF(OrigTable!C600=\"\",\"\",IF(LEN(OrigTable!C600)>255,LEFT(OrigTable!C600,250)&\". . .\",OrigTable!C600))","v":""},{"$f":"IF(OrigTable!C600=\"\",\"\",ScriptText!$E$1&CHAR(10)&ScriptText!$C$1)","v":""},{"$f":"IF(OrigTable!D600=\"\",\"\",ScriptText!$B$1&CHAR(10)&ScriptText!$D$1)","v":""},{"$f":"IF(OrigTable!D600=\"\",\"\",TEXT(OrigTable!D600,\"00\"))","v":""},{"$f":"IF(OrigTable!D600=\"\",\"\",ScriptText!$E$1&CHAR(10)&ScriptText!$C$1)","v":""},{"$f":"IF(OrigTable!E600=\"\",\"\",ScriptText!$B$1&CHAR(10)&ScriptText!$D$1)","v":""},{"$f":"IF(OrigTable!E600=\"\",\"\",TEXT(OrigTable!E600,\"00\"))","v":""},{"$f":"IF(OrigTable!E600=\"\",\"\",ScriptText!$E$1&CHAR(10)&ScriptText!$C$1)","v":""},{"$f":"IF(OrigTable!F600=\"\",\"\",ScriptText!$B$1&CHAR(10)&ScriptText!$D$1)","v":""},{"$f":"IF(OrigTable!F600=\"\",\"\",TEXT(OrigTable!F600,\"00\"))","v":""},{"$f":"IF(OrigTable!F600=\"\",\"\",ScriptText!$E$1&CHAR(10)&ScriptText!$C$1)","v":""},{"$f":"IF(OrigTable!G600=\"\",\"\",ScriptText!$B$1&CHAR(10)&ScriptText!$D$1)","v":""},{"$f":"IF(OrigTable!G600=\"\",\"\",TEXT(OrigTable!G600,\"00\"))","v":""},{"$f":"IF(OrigTable!G600=\"\",\"\",ScriptText!$E$1&CHAR(10)&ScriptText!$C$1)","v":""},0]
["\n\n\n",{"$f":"IF(OrigTable!A601=\"\",\"\",ScriptText!$B$1&CHAR(10)&ScriptText!$D$1)","v":""},{"$f":"IF(OrigTable!A601=\"\",\"\",TEXT(OrigTable!A601,\"00\"))","v":""},{"$f":"IF(OrigTable!A601=\"\",\"\",ScriptText!$E$1&CHAR(10)&ScriptText!$C$1)","v":""},{"$f":"IF(OrigTable!B601=\"\",\"\",ScriptText!$B$1&CHAR(10)&ScriptText!$D$1)","v":""},{"$f":"IF(OrigTable!B601=\"\",\"\",TEXT(OrigTable!B601,\"00\"))","v":""},{"$f":"IF(OrigTable!B601=\"\",\"\",ScriptText!$E$1&CHAR(10)&ScriptText!C596)","v":""},{"$f":"IF(OrigTable!C601=\"\",\"\",ScriptText!$B$1&CHAR(10)&ScriptText!$D$1)","v":""},{"$f":"IF(OrigTable!C601=\"\",\"\",IF(LEN(OrigTable!C601)>255,LEFT(OrigTable!C601,250)&\". . .\",OrigTable!C601))","v":""},{"$f":"IF(OrigTable!C601=\"\",\"\",ScriptText!$E$1&CHAR(10)&ScriptText!$C$1)","v":""},{"$f":"IF(OrigTable!D601=\"\",\"\",ScriptText!$B$1&CHAR(10)&ScriptText!$D$1)","v":""},{"$f":"IF(OrigTable!D601=\"\",\"\",TEXT(OrigTable!D601,\"00\"))","v":""},{"$f":"IF(OrigTable!D601=\"\",\"\",ScriptText!$E$1&CHAR(10)&ScriptText!$C$1)","v":""},{"$f":"IF(OrigTable!E601=\"\",\"\",ScriptText!$B$1&CHAR(10)&ScriptText!$D$1)","v":""},{"$f":"IF(OrigTable!E601=\"\",\"\",TEXT(OrigTable!E601,\"00\"))","v":""},{"$f":"IF(OrigTable!E601=\"\",\"\",ScriptText!$E$1&CHAR(10)&ScriptText!$C$1)","v":""},{"$f":"IF(OrigTable!F601=\"\",\"\",ScriptText!$B$1&CHAR(10)&ScriptText!$D$1)","v":""},{"$f":"IF(OrigTable!F601=\"\",\"\",TEXT(OrigTable!F601,\"00\"))","v":""},{"$f":"IF(OrigTable!F601=\"\",\"\",ScriptText!$E$1&CHAR(10)&ScriptText!$C$1)","v":""},{"$f":"IF(OrigTable!G601=\"\",\"\",ScriptText!$B$1&CHAR(10)&ScriptText!$D$1)","v":""},{"$f":"IF(OrigTable!G601=\"\",\"\",TEXT(OrigTable!G601,\"00\"))","v":""},{"$f":"IF(OrigTable!G601=\"\",\"\",ScriptText!$E$1&CHAR(10)&ScriptText!$C$1)","v":""},0]
["\n\n\n",{"$f":"IF(OrigTable!A602=\"\",\"\",ScriptText!$B$1&CHAR(10)&ScriptText!$D$1)","v":""},{"$f":"IF(OrigTable!A602=\"\",\"\",TEXT(OrigTable!A602,\"00\"))","v":""},{"$f":"IF(OrigTable!A602=\"\",\"\",ScriptText!$E$1&CHAR(10)&ScriptText!$C$1)","v":""},{"$f":"IF(OrigTable!B602=\"\",\"\",ScriptText!$B$1&CHAR(10)&ScriptText!$D$1)","v":""},{"$f":"IF(OrigTable!B602=\"\",\"\",TEXT(OrigTable!B602,\"00\"))","v":""},{"$f":"IF(OrigTable!B602=\"\",\"\",ScriptText!$E$1&CHAR(10)&ScriptText!C597)","v":""},{"$f":"IF(OrigTable!C602=\"\",\"\",ScriptText!$B$1&CHAR(10)&ScriptText!$D$1)","v":""},{"$f":"IF(OrigTable!C602=\"\",\"\",IF(LEN(OrigTable!C602)>255,LEFT(OrigTable!C602,250)&\". . .\",OrigTable!C602))","v":""},{"$f":"IF(OrigTable!C602=\"\",\"\",ScriptText!$E$1&CHAR(10)&ScriptText!$C$1)","v":""},{"$f":"IF(OrigTable!D602=\"\",\"\",ScriptText!$B$1&CHAR(10)&ScriptText!$D$1)","v":""},{"$f":"IF(OrigTable!D602=\"\",\"\",TEXT(OrigTable!D602,\"00\"))","v":""},{"$f":"IF(OrigTable!D602=\"\",\"\",ScriptText!$E$1&CHAR(10)&ScriptText!$C$1)","v":""},{"$f":"IF(OrigTable!E602=\"\",\"\",ScriptText!$B$1&CHAR(10)&ScriptText!$D$1)","v":""},{"$f":"IF(OrigTable!E602=\"\",\"\",TEXT(OrigTable!E602,\"00\"))","v":""},{"$f":"IF(OrigTable!E602=\"\",\"\",ScriptText!$E$1&CHAR(10)&ScriptText!$C$1)","v":""},{"$f":"IF(OrigTable!F602=\"\",\"\",ScriptText!$B$1&CHAR(10)&ScriptText!$D$1)","v":""},{"$f":"IF(OrigTable!F602=\"\",\"\",TEXT(OrigTable!F602,\"00\"))","v":""},{"$f":"IF(OrigTable!F602=\"\",\"\",ScriptText!$E$1&CHAR(10)&ScriptText!$C$1)","v":""},{"$f":"IF(OrigTable!G602=\"\",\"\",ScriptText!$B$1&CHAR(10)&ScriptText!$D$1)","v":""},{"$f":"IF(OrigTable!G602=\"\",\"\",TEXT(OrigTable!G602,\"00\"))","v":""},{"$f":"IF(OrigTable!G602=\"\",\"\",ScriptText!$E$1&CHAR(10)&ScriptText!$C$1)","v":""},0]
["\n\n\n",{"$f":"IF(OrigTable!A603=\"\",\"\",ScriptText!$B$1&CHAR(10)&ScriptText!$D$1)","v":""},{"$f":"IF(OrigTable!A603=\"\",\"\",TEXT(OrigTable!A603,\"00\"))","v":""},{"$f":"IF(OrigTable!A603=\"\",\"\",ScriptText!$E$1&CHAR(10)&ScriptText!$C$1)","v":""},{"$f":"IF(OrigTable!B603=\"\",\"\",ScriptText!$B$1&CHAR(10)&ScriptText!$D$1)","v":""},{"$f":"IF(OrigTable!B603=\"\",\"\",TEXT(OrigTable!B603,\"00\"))","v":""},{"$f":"IF(OrigTable!B603=\"\",\"\",ScriptText!$E$1&CHAR(10)&ScriptText!C598)","v":""},{"$f":"IF(OrigTable!C603=\"\",\"\",ScriptText!$B$1&CHAR(10)&ScriptText!$D$1)","v":""},{"$f":"IF(OrigTable!C603=\"\",\"\",IF(LEN(OrigTable!C603)>255,LEFT(OrigTable!C603,250)&\". . .\",OrigTable!C603))","v":""},{"$f":"IF(OrigTable!C603=\"\",\"\",ScriptText!$E$1&CHAR(10)&ScriptText!$C$1)","v":""},{"$f":"IF(OrigTable!D603=\"\",\"\",ScriptText!$B$1&CHAR(10)&ScriptText!$D$1)","v":""},{"$f":"IF(OrigTable!D603=\"\",\"\",TEXT(OrigTable!D603,\"00\"))","v":""},{"$f":"IF(OrigTable!D603=\"\",\"\",ScriptText!$E$1&CHAR(10)&ScriptText!$C$1)","v":""},{"$f":"IF(OrigTable!E603=\"\",\"\",ScriptText!$B$1&CHAR(10)&ScriptText!$D$1)","v":""},{"$f":"IF(OrigTable!E603=\"\",\"\",TEXT(OrigTable!E603,\"00\"))","v":""},{"$f":"IF(OrigTable!E603=\"\",\"\",ScriptText!$E$1&CHAR(10)&ScriptText!$C$1)","v":""},{"$f":"IF(OrigTable!F603=\"\",\"\",ScriptText!$B$1&CHAR(10)&ScriptText!$D$1)","v":""},{"$f":"IF(OrigTable!F603=\"\",\"\",TEXT(OrigTable!F603,\"00\"))","v":""},{"$f":"IF(OrigTable!F603=\"\",\"\",ScriptText!$E$1&CHAR(10)&ScriptText!$C$1)","v":""},{"$f":"IF(OrigTable!G603=\"\",\"\",ScriptText!$B$1&CHAR(10)&ScriptText!$D$1)","v":""},{"$f":"IF(OrigTable!G603=\"\",\"\",TEXT(OrigTable!G603,\"00\"))","v":""},{"$f":"IF(OrigTable!G603=\"\",\"\",ScriptText!$E$1&CHAR(10)&ScriptText!$C$1)","v":""},0]
["\n\n\n",{"$f":"IF(OrigTable!A604=\"\",\"\",ScriptText!$B$1&CHAR(10)&ScriptText!$D$1)","v":""},{"$f":"IF(OrigTable!A604=\"\",\"\",TEXT(OrigTable!A604,\"00\"))","v":""},{"$f":"IF(OrigTable!A604=\"\",\"\",ScriptText!$E$1&CHAR(10)&ScriptText!$C$1)","v":""},{"$f":"IF(OrigTable!B604=\"\",\"\",ScriptText!$B$1&CHAR(10)&ScriptText!$D$1)","v":""},{"$f":"IF(OrigTable!B604=\"\",\"\",TEXT(OrigTable!B604,\"00\"))","v":""},{"$f":"IF(OrigTable!B604=\"\",\"\",ScriptText!$E$1&CHAR(10)&ScriptText!C599)","v":""},{"$f":"IF(OrigTable!C604=\"\",\"\",ScriptText!$B$1&CHAR(10)&ScriptText!$D$1)","v":""},{"$f":"IF(OrigTable!C604=\"\",\"\",IF(LEN(OrigTable!C604)>255,LEFT(OrigTable!C604,250)&\". . .\",OrigTable!C604))","v":""},{"$f":"IF(OrigTable!C604=\"\",\"\",ScriptText!$E$1&CHAR(10)&ScriptText!$C$1)","v":""},{"$f":"IF(OrigTable!D604=\"\",\"\",ScriptText!$B$1&CHAR(10)&ScriptText!$D$1)","v":""},{"$f":"IF(OrigTable!D604=\"\",\"\",TEXT(OrigTable!D604,\"00\"))","v":""},{"$f":"IF(OrigTable!D604=\"\",\"\",ScriptText!$E$1&CHAR(10)&ScriptText!$C$1)","v":""},{"$f":"IF(OrigTable!E604=\"\",\"\",ScriptText!$B$1&CHAR(10)&ScriptText!$D$1)","v":""},{"$f":"IF(OrigTable!E604=\"\",\"\",TEXT(OrigTable!E604,\"00\"))","v":""},{"$f":"IF(OrigTable!E604=\"\",\"\",ScriptText!$E$1&CHAR(10)&ScriptText!$C$1)","v":""},{"$f":"IF(OrigTable!F604=\"\",\"\",ScriptText!$B$1&CHAR(10)&ScriptText!$D$1)","v":""},{"$f":"IF(OrigTable!F604=\"\",\"\",TEXT(OrigTable!F604,\"00\"))","v":""},{"$f":"IF(OrigTable!F604=\"\",\"\",ScriptText!$E$1&CHAR(10)&ScriptText!$C$1)","v":""},{"$f":"IF(OrigTable!G604=\"\",\"\",ScriptText!$B$1&CHAR(10)&ScriptText!$D$1)","v":""},{"$f":"IF(OrigTable!G604=\"\",\"\",TEXT(OrigTable!G604,\"00\"))","v":""},{"$f":"IF(OrigTable!G604=\"\",\"\",ScriptText!$E$1&CHAR(10)&ScriptText!$C$1)","v":""},0]
["\n\n\n",{"$f":"IF(OrigTable!A605=\"\",\"\",ScriptText!$B$1&CHAR(10)&ScriptText!$D$1)","v":""},{"$f":"IF(OrigTable!A605=\"\",\"\",TEXT(OrigTable!A605,\"00\"))","v":""},{"$f":"IF(OrigTable!A605=\"\",\"\",ScriptText!$E$1&CHAR(10)&ScriptText!$C$1)","v":""},{"$f":"IF(OrigTable!B605=\"\",\"\",ScriptText!$B$1&CHAR(10)&ScriptText!$D$1)","v":""},{"$f":"IF(OrigTable!B605=\"\",\"\",TEXT(OrigTable!B605,\"00\"))","v":""},{"$f":"IF(OrigTable!B605=\"\",\"\",ScriptText!$E$1&CHAR(10)&ScriptText!C600)","v":""},{"$f":"IF(OrigTable!C605=\"\",\"\",ScriptText!$B$1&CHAR(10)&ScriptText!$D$1)","v":""},{"$f":"IF(OrigTable!C605=\"\",\"\",IF(LEN(OrigTable!C605)>255,LEFT(OrigTable!C605,250)&\". . .\",OrigTable!C605))","v":""},{"$f":"IF(OrigTable!C605=\"\",\"\",ScriptText!$E$1&CHAR(10)&ScriptText!$C$1)","v":""},{"$f":"IF(OrigTable!D605=\"\",\"\",ScriptText!$B$1&CHAR(10)&ScriptText!$D$1)","v":""},{"$f":"IF(OrigTable!D605=\"\",\"\",TEXT(OrigTable!D605,\"00\"))","v":""},{"$f":"IF(OrigTable!D605=\"\",\"\",ScriptText!$E$1&CHAR(10)&ScriptText!$C$1)","v":""},{"$f":"IF(OrigTable!E605=\"\",\"\",ScriptText!$B$1&CHAR(10)&ScriptText!$D$1)","v":""},{"$f":"IF(OrigTable!E605=\"\",\"\",TEXT(OrigTable!E605,\"00\"))","v":""},{"$f":"IF(OrigTable!E605=\"\",\"\",ScriptText!$E$1&CHAR(10)&ScriptText!$C$1)","v":""},{"$f":"IF(OrigTable!F605=\"\",\"\",ScriptText!$B$1&CHAR(10)&ScriptText!$D$1)","v":""},{"$f":"IF(OrigTable!F605=\"\",\"\",TEXT(OrigTable!F605,\"00\"))","v":""},{"$f":"IF(OrigTable!F605=\"\",\"\",ScriptText!$E$1&CHAR(10)&ScriptText!$C$1)","v":""},{"$f":"IF(OrigTable!G605=\"\",\"\",ScriptText!$B$1&CHAR(10)&ScriptText!$D$1)","v":""},{"$f":"IF(OrigTable!G605=\"\",\"\",TEXT(OrigTable!G605,\"00\"))","v":""},{"$f":"IF(OrigTable!G605=\"\",\"\",ScriptText!$E$1&CHAR(10)&ScriptText!$C$1)","v":""},0]
["\n\n\n",{"$f":"IF(OrigTable!A606=\"\",\"\",ScriptText!$B$1&CHAR(10)&ScriptText!$D$1)","v":""},{"$f":"IF(OrigTable!A606=\"\",\"\",TEXT(OrigTable!A606,\"00\"))","v":""},{"$f":"IF(OrigTable!A606=\"\",\"\",ScriptText!$E$1&CHAR(10)&ScriptText!$C$1)","v":""},{"$f":"IF(OrigTable!B606=\"\",\"\",ScriptText!$B$1&CHAR(10)&ScriptText!$D$1)","v":""},{"$f":"IF(OrigTable!B606=\"\",\"\",TEXT(OrigTable!B606,\"00\"))","v":""},{"$f":"IF(OrigTable!B606=\"\",\"\",ScriptText!$E$1&CHAR(10)&ScriptText!C601)","v":""},{"$f":"IF(OrigTable!C606=\"\",\"\",ScriptText!$B$1&CHAR(10)&ScriptText!$D$1)","v":""},{"$f":"IF(OrigTable!C606=\"\",\"\",IF(LEN(OrigTable!C606)>255,LEFT(OrigTable!C606,250)&\". . .\",OrigTable!C606))","v":""},{"$f":"IF(OrigTable!C606=\"\",\"\",ScriptText!$E$1&CHAR(10)&ScriptText!$C$1)","v":""},{"$f":"IF(OrigTable!D606=\"\",\"\",ScriptText!$B$1&CHAR(10)&ScriptText!$D$1)","v":""},{"$f":"IF(OrigTable!D606=\"\",\"\",TEXT(OrigTable!D606,\"00\"))","v":""},{"$f":"IF(OrigTable!D606=\"\",\"\",ScriptText!$E$1&CHAR(10)&ScriptText!$C$1)","v":""},{"$f":"IF(OrigTable!E606=\"\",\"\",ScriptText!$B$1&CHAR(10)&ScriptText!$D$1)","v":""},{"$f":"IF(OrigTable!E606=\"\",\"\",TEXT(OrigTable!E606,\"00\"))","v":""},{"$f":"IF(OrigTable!E606=\"\",\"\",ScriptText!$E$1&CHAR(10)&ScriptText!$C$1)","v":""},{"$f":"IF(OrigTable!F606=\"\",\"\",ScriptText!$B$1&CHAR(10)&ScriptText!$D$1)","v":""},{"$f":"IF(OrigTable!F606=\"\",\"\",TEXT(OrigTable!F606,\"00\"))","v":""},{"$f":"IF(OrigTable!F606=\"\",\"\",ScriptText!$E$1&CHAR(10)&ScriptText!$C$1)","v":""},{"$f":"IF(OrigTable!G606=\"\",\"\",ScriptText!$B$1&CHAR(10)&ScriptText!$D$1)","v":""},{"$f":"IF(OrigTable!G606=\"\",\"\",TEXT(OrigTable!G606,\"00\"))","v":""},{"$f":"IF(OrigTable!G606=\"\",\"\",ScriptText!$E$1&CHAR(10)&ScriptText!$C$1)","v":""},0]
["\n\n\n",{"$f":"IF(OrigTable!A607=\"\",\"\",ScriptText!$B$1&CHAR(10)&ScriptText!$D$1)","v":""},{"$f":"IF(OrigTable!A607=\"\",\"\",TEXT(OrigTable!A607,\"00\"))","v":""},{"$f":"IF(OrigTable!A607=\"\",\"\",ScriptText!$E$1&CHAR(10)&ScriptText!$C$1)","v":""},{"$f":"IF(OrigTable!B607=\"\",\"\",ScriptText!$B$1&CHAR(10)&ScriptText!$D$1)","v":""},{"$f":"IF(OrigTable!B607=\"\",\"\",TEXT(OrigTable!B607,\"00\"))","v":""},{"$f":"IF(OrigTable!B607=\"\",\"\",ScriptText!$E$1&CHAR(10)&ScriptText!C602)","v":""},{"$f":"IF(OrigTable!C607=\"\",\"\",ScriptText!$B$1&CHAR(10)&ScriptText!$D$1)","v":""},{"$f":"IF(OrigTable!C607=\"\",\"\",IF(LEN(OrigTable!C607)>255,LEFT(OrigTable!C607,250)&\". . .\",OrigTable!C607))","v":""},{"$f":"IF(OrigTable!C607=\"\",\"\",ScriptText!$E$1&CHAR(10)&ScriptText!$C$1)","v":""},{"$f":"IF(OrigTable!D607=\"\",\"\",ScriptText!$B$1&CHAR(10)&ScriptText!$D$1)","v":""},{"$f":"IF(OrigTable!D607=\"\",\"\",TEXT(OrigTable!D607,\"00\"))","v":""},{"$f":"IF(OrigTable!D607=\"\",\"\",ScriptText!$E$1&CHAR(10)&ScriptText!$C$1)","v":""},{"$f":"IF(OrigTable!E607=\"\",\"\",ScriptText!$B$1&CHAR(10)&ScriptText!$D$1)","v":""},{"$f":"IF(OrigTable!E607=\"\",\"\",TEXT(OrigTable!E607,\"00\"))","v":""},{"$f":"IF(OrigTable!E607=\"\",\"\",ScriptText!$E$1&CHAR(10)&ScriptText!$C$1)","v":""},{"$f":"IF(OrigTable!F607=\"\",\"\",ScriptText!$B$1&CHAR(10)&ScriptText!$D$1)","v":""},{"$f":"IF(OrigTable!F607=\"\",\"\",TEXT(OrigTable!F607,\"00\"))","v":""},{"$f":"IF(OrigTable!F607=\"\",\"\",ScriptText!$E$1&CHAR(10)&ScriptText!$C$1)","v":""},{"$f":"IF(OrigTable!G607=\"\",\"\",ScriptText!$B$1&CHAR(10)&ScriptText!$D$1)","v":""},{"$f":"IF(OrigTable!G607=\"\",\"\",TEXT(OrigTable!G607,\"00\"))","v":""},{"$f":"IF(OrigTable!G607=\"\",\"\",ScriptText!$E$1&CHAR(10)&ScriptText!$C$1)","v":""},0]
["\n\n\n",{"$f":"IF(OrigTable!A608=\"\",\"\",ScriptText!$B$1&CHAR(10)&ScriptText!$D$1)","v":""},{"$f":"IF(OrigTable!A608=\"\",\"\",TEXT(OrigTable!A608,\"00\"))","v":""},{"$f":"IF(OrigTable!A608=\"\",\"\",ScriptText!$E$1&CHAR(10)&ScriptText!$C$1)","v":""},{"$f":"IF(OrigTable!B608=\"\",\"\",ScriptText!$B$1&CHAR(10)&ScriptText!$D$1)","v":""},{"$f":"IF(OrigTable!B608=\"\",\"\",TEXT(OrigTable!B608,\"00\"))","v":""},{"$f":"IF(OrigTable!B608=\"\",\"\",ScriptText!$E$1&CHAR(10)&ScriptText!C603)","v":""},{"$f":"IF(OrigTable!C608=\"\",\"\",ScriptText!$B$1&CHAR(10)&ScriptText!$D$1)","v":""},{"$f":"IF(OrigTable!C608=\"\",\"\",IF(LEN(OrigTable!C608)>255,LEFT(OrigTable!C608,250)&\". . .\",OrigTable!C608))","v":""},{"$f":"IF(OrigTable!C608=\"\",\"\",ScriptText!$E$1&CHAR(10)&ScriptText!$C$1)","v":""},{"$f":"IF(OrigTable!D608=\"\",\"\",ScriptText!$B$1&CHAR(10)&ScriptText!$D$1)","v":""},{"$f":"IF(OrigTable!D608=\"\",\"\",TEXT(OrigTable!D608,\"00\"))","v":""},{"$f":"IF(OrigTable!D608=\"\",\"\",ScriptText!$E$1&CHAR(10)&ScriptText!$C$1)","v":""},{"$f":"IF(OrigTable!E608=\"\",\"\",ScriptText!$B$1&CHAR(10)&ScriptText!$D$1)","v":""},{"$f":"IF(OrigTable!E608=\"\",\"\",TEXT(OrigTable!E608,\"00\"))","v":""},{"$f":"IF(OrigTable!E608=\"\",\"\",ScriptText!$E$1&CHAR(10)&ScriptText!$C$1)","v":""},{"$f":"IF(OrigTable!F608=\"\",\"\",ScriptText!$B$1&CHAR(10)&ScriptText!$D$1)","v":""},{"$f":"IF(OrigTable!F608=\"\",\"\",TEXT(OrigTable!F608,\"00\"))","v":""},{"$f":"IF(OrigTable!F608=\"\",\"\",ScriptText!$E$1&CHAR(10)&ScriptText!$C$1)","v":""},{"$f":"IF(OrigTable!G608=\"\",\"\",ScriptText!$B$1&CHAR(10)&ScriptText!$D$1)","v":""},{"$f":"IF(OrigTable!G608=\"\",\"\",TEXT(OrigTable!G608,\"00\"))","v":""},{"$f":"IF(OrigTable!G608=\"\",\"\",ScriptText!$E$1&CHAR(10)&ScriptText!$C$1)","v":""},0]
["\n\n\n",{"$f":"IF(OrigTable!A609=\"\",\"\",ScriptText!$B$1&CHAR(10)&ScriptText!$D$1)","v":""},{"$f":"IF(OrigTable!A609=\"\",\"\",TEXT(OrigTable!A609,\"00\"))","v":""},{"$f":"IF(OrigTable!A609=\"\",\"\",ScriptText!$E$1&CHAR(10)&ScriptText!$C$1)","v":""},{"$f":"IF(OrigTable!B609=\"\",\"\",ScriptText!$B$1&CHAR(10)&ScriptText!$D$1)","v":""},{"$f":"IF(OrigTable!B609=\"\",\"\",TEXT(OrigTable!B609,\"00\"))","v":""},{"$f":"IF(OrigTable!B609=\"\",\"\",ScriptText!$E$1&CHAR(10)&ScriptText!C604)","v":""},{"$f":"IF(OrigTable!C609=\"\",\"\",ScriptText!$B$1&CHAR(10)&ScriptText!$D$1)","v":""},{"$f":"IF(OrigTable!C609=\"\",\"\",IF(LEN(OrigTable!C609)>255,LEFT(OrigTable!C609,250)&\". . .\",OrigTable!C609))","v":""},{"$f":"IF(OrigTable!C609=\"\",\"\",ScriptText!$E$1&CHAR(10)&ScriptText!$C$1)","v":""},{"$f":"IF(OrigTable!D609=\"\",\"\",ScriptText!$B$1&CHAR(10)&ScriptText!$D$1)","v":""},{"$f":"IF(OrigTable!D609=\"\",\"\",TEXT(OrigTable!D609,\"00\"))","v":""},{"$f":"IF(OrigTable!D609=\"\",\"\",ScriptText!$E$1&CHAR(10)&ScriptText!$C$1)","v":""},{"$f":"IF(OrigTable!E609=\"\",\"\",ScriptText!$B$1&CHAR(10)&ScriptText!$D$1)","v":""},{"$f":"IF(OrigTable!E609=\"\",\"\",TEXT(OrigTable!E609,\"00\"))","v":""},{"$f":"IF(OrigTable!E609=\"\",\"\",ScriptText!$E$1&CHAR(10)&ScriptText!$C$1)","v":""},{"$f":"IF(OrigTable!F609=\"\",\"\",ScriptText!$B$1&CHAR(10)&ScriptText!$D$1)","v":""},{"$f":"IF(OrigTable!F609=\"\",\"\",TEXT(OrigTable!F609,\"00\"))","v":""},{"$f":"IF(OrigTable!F609=\"\",\"\",ScriptText!$E$1&CHAR(10)&ScriptText!$C$1)","v":""},{"$f":"IF(OrigTable!G609=\"\",\"\",ScriptText!$B$1&CHAR(10)&ScriptText!$D$1)","v":""},{"$f":"IF(OrigTable!G609=\"\",\"\",TEXT(OrigTable!G609,\"00\"))","v":""},{"$f":"IF(OrigTable!G609=\"\",\"\",ScriptText!$E$1&CHAR(10)&ScriptText!$C$1)","v":""},0]
["\n\n\n",{"$f":"IF(OrigTable!A610=\"\",\"\",ScriptText!$B$1&CHAR(10)&ScriptText!$D$1)","v":""},{"$f":"IF(OrigTable!A610=\"\",\"\",TEXT(OrigTable!A610,\"00\"))","v":""},{"$f":"IF(OrigTable!A610=\"\",\"\",ScriptText!$E$1&CHAR(10)&ScriptText!$C$1)","v":""},{"$f":"IF(OrigTable!B610=\"\",\"\",ScriptText!$B$1&CHAR(10)&ScriptText!$D$1)","v":""},{"$f":"IF(OrigTable!B610=\"\",\"\",TEXT(OrigTable!B610,\"00\"))","v":""},{"$f":"IF(OrigTable!B610=\"\",\"\",ScriptText!$E$1&CHAR(10)&ScriptText!C605)","v":""},{"$f":"IF(OrigTable!C610=\"\",\"\",ScriptText!$B$1&CHAR(10)&ScriptText!$D$1)","v":""},{"$f":"IF(OrigTable!C610=\"\",\"\",IF(LEN(OrigTable!C610)>255,LEFT(OrigTable!C610,250)&\". . .\",OrigTable!C610))","v":""},{"$f":"IF(OrigTable!C610=\"\",\"\",ScriptText!$E$1&CHAR(10)&ScriptText!$C$1)","v":""},{"$f":"IF(OrigTable!D610=\"\",\"\",ScriptText!$B$1&CHAR(10)&ScriptText!$D$1)","v":""},{"$f":"IF(OrigTable!D610=\"\",\"\",TEXT(OrigTable!D610,\"00\"))","v":""},{"$f":"IF(OrigTable!D610=\"\",\"\",ScriptText!$E$1&CHAR(10)&ScriptText!$C$1)","v":""},{"$f":"IF(OrigTable!E610=\"\",\"\",ScriptText!$B$1&CHAR(10)&ScriptText!$D$1)","v":""},{"$f":"IF(OrigTable!E610=\"\",\"\",TEXT(OrigTable!E610,\"00\"))","v":""},{"$f":"IF(OrigTable!E610=\"\",\"\",ScriptText!$E$1&CHAR(10)&ScriptText!$C$1)","v":""},{"$f":"IF(OrigTable!F610=\"\",\"\",ScriptText!$B$1&CHAR(10)&ScriptText!$D$1)","v":""},{"$f":"IF(OrigTable!F610=\"\",\"\",TEXT(OrigTable!F610,\"00\"))","v":""},{"$f":"IF(OrigTable!F610=\"\",\"\",ScriptText!$E$1&CHAR(10)&ScriptText!$C$1)","v":""},{"$f":"IF(OrigTable!G610=\"\",\"\",ScriptText!$B$1&CHAR(10)&ScriptText!$D$1)","v":""},{"$f":"IF(OrigTable!G610=\"\",\"\",TEXT(OrigTable!G610,\"00\"))","v":""},{"$f":"IF(OrigTable!G610=\"\",\"\",ScriptText!$E$1&CHAR(10)&ScriptText!$C$1)","v":""},0]
["\n\n\n",{"$f":"IF(OrigTable!A611=\"\",\"\",ScriptText!$B$1&CHAR(10)&ScriptText!$D$1)","v":""},{"$f":"IF(OrigTable!A611=\"\",\"\",TEXT(OrigTable!A611,\"00\"))","v":""},{"$f":"IF(OrigTable!A611=\"\",\"\",ScriptText!$E$1&CHAR(10)&ScriptText!$C$1)","v":""},{"$f":"IF(OrigTable!B611=\"\",\"\",ScriptText!$B$1&CHAR(10)&ScriptText!$D$1)","v":""},{"$f":"IF(OrigTable!B611=\"\",\"\",TEXT(OrigTable!B611,\"00\"))","v":""},{"$f":"IF(OrigTable!B611=\"\",\"\",ScriptText!$E$1&CHAR(10)&ScriptText!C606)","v":""},{"$f":"IF(OrigTable!C611=\"\",\"\",ScriptText!$B$1&CHAR(10)&ScriptText!$D$1)","v":""},{"$f":"IF(OrigTable!C611=\"\",\"\",IF(LEN(OrigTable!C611)>255,LEFT(OrigTable!C611,250)&\". . .\",OrigTable!C611))","v":""},{"$f":"IF(OrigTable!C611=\"\",\"\",ScriptText!$E$1&CHAR(10)&ScriptText!$C$1)","v":""},{"$f":"IF(OrigTable!D611=\"\",\"\",ScriptText!$B$1&CHAR(10)&ScriptText!$D$1)","v":""},{"$f":"IF(OrigTable!D611=\"\",\"\",TEXT(OrigTable!D611,\"00\"))","v":""},{"$f":"IF(OrigTable!D611=\"\",\"\",ScriptText!$E$1&CHAR(10)&ScriptText!$C$1)","v":""},{"$f":"IF(OrigTable!E611=\"\",\"\",ScriptText!$B$1&CHAR(10)&ScriptText!$D$1)","v":""},{"$f":"IF(OrigTable!E611=\"\",\"\",TEXT(OrigTable!E611,\"00\"))","v":""},{"$f":"IF(OrigTable!E611=\"\",\"\",ScriptText!$E$1&CHAR(10)&ScriptText!$C$1)","v":""},{"$f":"IF(OrigTable!F611=\"\",\"\",ScriptText!$B$1&CHAR(10)&ScriptText!$D$1)","v":""},{"$f":"IF(OrigTable!F611=\"\",\"\",TEXT(OrigTable!F611,\"00\"))","v":""},{"$f":"IF(OrigTable!F611=\"\",\"\",ScriptText!$E$1&CHAR(10)&ScriptText!$C$1)","v":""},{"$f":"IF(OrigTable!G611=\"\",\"\",ScriptText!$B$1&CHAR(10)&ScriptText!$D$1)","v":""},{"$f":"IF(OrigTable!G611=\"\",\"\",TEXT(OrigTable!G611,\"00\"))","v":""},{"$f":"IF(OrigTable!G611=\"\",\"\",ScriptText!$E$1&CHAR(10)&ScriptText!$C$1)","v":""},0]
["\n\n\n",{"$f":"IF(OrigTable!A612=\"\",\"\",ScriptText!$B$1&CHAR(10)&ScriptText!$D$1)","v":""},{"$f":"IF(OrigTable!A612=\"\",\"\",TEXT(OrigTable!A612,\"00\"))","v":""},{"$f":"IF(OrigTable!A612=\"\",\"\",ScriptText!$E$1&CHAR(10)&ScriptText!$C$1)","v":""},{"$f":"IF(OrigTable!B612=\"\",\"\",ScriptText!$B$1&CHAR(10)&ScriptText!$D$1)","v":""},{"$f":"IF(OrigTable!B612=\"\",\"\",TEXT(OrigTable!B612,\"00\"))","v":""},{"$f":"IF(OrigTable!B612=\"\",\"\",ScriptText!$E$1&CHAR(10)&ScriptText!C607)","v":""},{"$f":"IF(OrigTable!C612=\"\",\"\",ScriptText!$B$1&CHAR(10)&ScriptText!$D$1)","v":""},{"$f":"IF(OrigTable!C612=\"\",\"\",IF(LEN(OrigTable!C612)>255,LEFT(OrigTable!C612,250)&\". . .\",OrigTable!C612))","v":""},{"$f":"IF(OrigTable!C612=\"\",\"\",ScriptText!$E$1&CHAR(10)&ScriptText!$C$1)","v":""},{"$f":"IF(OrigTable!D612=\"\",\"\",ScriptText!$B$1&CHAR(10)&ScriptText!$D$1)","v":""},{"$f":"IF(OrigTable!D612=\"\",\"\",TEXT(OrigTable!D612,\"00\"))","v":""},{"$f":"IF(OrigTable!D612=\"\",\"\",ScriptText!$E$1&CHAR(10)&ScriptText!$C$1)","v":""},{"$f":"IF(OrigTable!E612=\"\",\"\",ScriptText!$B$1&CHAR(10)&ScriptText!$D$1)","v":""},{"$f":"IF(OrigTable!E612=\"\",\"\",TEXT(OrigTable!E612,\"00\"))","v":""},{"$f":"IF(OrigTable!E612=\"\",\"\",ScriptText!$E$1&CHAR(10)&ScriptText!$C$1)","v":""},{"$f":"IF(OrigTable!F612=\"\",\"\",ScriptText!$B$1&CHAR(10)&ScriptText!$D$1)","v":""},{"$f":"IF(OrigTable!F612=\"\",\"\",TEXT(OrigTable!F612,\"00\"))","v":""},{"$f":"IF(OrigTable!F612=\"\",\"\",ScriptText!$E$1&CHAR(10)&ScriptText!$C$1)","v":""},{"$f":"IF(OrigTable!G612=\"\",\"\",ScriptText!$B$1&CHAR(10)&ScriptText!$D$1)","v":""},{"$f":"IF(OrigTable!G612=\"\",\"\",TEXT(OrigTable!G612,\"00\"))","v":""},{"$f":"IF(OrigTable!G612=\"\",\"\",ScriptText!$E$1&CHAR(10)&ScriptText!$C$1)","v":""},0]
["\n\n\n",{"$f":"IF(OrigTable!A613=\"\",\"\",ScriptText!$B$1&CHAR(10)&ScriptText!$D$1)","v":""},{"$f":"IF(OrigTable!A613=\"\",\"\",TEXT(OrigTable!A613,\"00\"))","v":""},{"$f":"IF(OrigTable!A613=\"\",\"\",ScriptText!$E$1&CHAR(10)&ScriptText!$C$1)","v":""},{"$f":"IF(OrigTable!B613=\"\",\"\",ScriptText!$B$1&CHAR(10)&ScriptText!$D$1)","v":""},{"$f":"IF(OrigTable!B613=\"\",\"\",TEXT(OrigTable!B613,\"00\"))","v":""},{"$f":"IF(OrigTable!B613=\"\",\"\",ScriptText!$E$1&CHAR(10)&ScriptText!C608)","v":""},{"$f":"IF(OrigTable!C613=\"\",\"\",ScriptText!$B$1&CHAR(10)&ScriptText!$D$1)","v":""},{"$f":"IF(OrigTable!C613=\"\",\"\",IF(LEN(OrigTable!C613)>255,LEFT(OrigTable!C613,250)&\". . .\",OrigTable!C613))","v":""},{"$f":"IF(OrigTable!C613=\"\",\"\",ScriptText!$E$1&CHAR(10)&ScriptText!$C$1)","v":""},{"$f":"IF(OrigTable!D613=\"\",\"\",ScriptText!$B$1&CHAR(10)&ScriptText!$D$1)","v":""},{"$f":"IF(OrigTable!D613=\"\",\"\",TEXT(OrigTable!D613,\"00\"))","v":""},{"$f":"IF(OrigTable!D613=\"\",\"\",ScriptText!$E$1&CHAR(10)&ScriptText!$C$1)","v":""},{"$f":"IF(OrigTable!E613=\"\",\"\",ScriptText!$B$1&CHAR(10)&ScriptText!$D$1)","v":""},{"$f":"IF(OrigTable!E613=\"\",\"\",TEXT(OrigTable!E613,\"00\"))","v":""},{"$f":"IF(OrigTable!E613=\"\",\"\",ScriptText!$E$1&CHAR(10)&ScriptText!$C$1)","v":""},{"$f":"IF(OrigTable!F613=\"\",\"\",ScriptText!$B$1&CHAR(10)&ScriptText!$D$1)","v":""},{"$f":"IF(OrigTable!F613=\"\",\"\",TEXT(OrigTable!F613,\"00\"))","v":""},{"$f":"IF(OrigTable!F613=\"\",\"\",ScriptText!$E$1&CHAR(10)&ScriptText!$C$1)","v":""},{"$f":"IF(OrigTable!G613=\"\",\"\",ScriptText!$B$1&CHAR(10)&ScriptText!$D$1)","v":""},{"$f":"IF(OrigTable!G613=\"\",\"\",TEXT(OrigTable!G613,\"00\"))","v":""},{"$f":"IF(OrigTable!G613=\"\",\"\",ScriptText!$E$1&CHAR(10)&ScriptText!$C$1)","v":""},0]
["\n\n\n",{"$f":"IF(OrigTable!A614=\"\",\"\",ScriptText!$B$1&CHAR(10)&ScriptText!$D$1)","v":""},{"$f":"IF(OrigTable!A614=\"\",\"\",TEXT(OrigTable!A614,\"00\"))","v":""},{"$f":"IF(OrigTable!A614=\"\",\"\",ScriptText!$E$1&CHAR(10)&ScriptText!$C$1)","v":""},{"$f":"IF(OrigTable!B614=\"\",\"\",ScriptText!$B$1&CHAR(10)&ScriptText!$D$1)","v":""},{"$f":"IF(OrigTable!B614=\"\",\"\",TEXT(OrigTable!B614,\"00\"))","v":""},{"$f":"IF(OrigTable!B614=\"\",\"\",ScriptText!$E$1&CHAR(10)&ScriptText!C609)","v":""},{"$f":"IF(OrigTable!C614=\"\",\"\",ScriptText!$B$1&CHAR(10)&ScriptText!$D$1)","v":""},{"$f":"IF(OrigTable!C614=\"\",\"\",IF(LEN(OrigTable!C614)>255,LEFT(OrigTable!C614,250)&\". . .\",OrigTable!C614))","v":""},{"$f":"IF(OrigTable!C614=\"\",\"\",ScriptText!$E$1&CHAR(10)&ScriptText!$C$1)","v":""},{"$f":"IF(OrigTable!D614=\"\",\"\",ScriptText!$B$1&CHAR(10)&ScriptText!$D$1)","v":""},{"$f":"IF(OrigTable!D614=\"\",\"\",TEXT(OrigTable!D614,\"00\"))","v":""},{"$f":"IF(OrigTable!D614=\"\",\"\",ScriptText!$E$1&CHAR(10)&ScriptText!$C$1)","v":""},{"$f":"IF(OrigTable!E614=\"\",\"\",ScriptText!$B$1&CHAR(10)&ScriptText!$D$1)","v":""},{"$f":"IF(OrigTable!E614=\"\",\"\",TEXT(OrigTable!E614,\"00\"))","v":""},{"$f":"IF(OrigTable!E614=\"\",\"\",ScriptText!$E$1&CHAR(10)&ScriptText!$C$1)","v":""},{"$f":"IF(OrigTable!F614=\"\",\"\",ScriptText!$B$1&CHAR(10)&ScriptText!$D$1)","v":""},{"$f":"IF(OrigTable!F614=\"\",\"\",TEXT(OrigTable!F614,\"00\"))","v":""},{"$f":"IF(OrigTable!F614=\"\",\"\",ScriptText!$E$1&CHAR(10)&ScriptText!$C$1)","v":""},{"$f":"IF(OrigTable!G614=\"\",\"\",ScriptText!$B$1&CHAR(10)&ScriptText!$D$1)","v":""},{"$f":"IF(OrigTable!G614=\"\",\"\",TEXT(OrigTable!G614,\"00\"))","v":""},{"$f":"IF(OrigTable!G614=\"\",\"\",ScriptText!$E$1&CHAR(10)&ScriptText!$C$1)","v":""},0]
["\n\n\n",{"$f":"IF(OrigTable!A615=\"\",\"\",ScriptText!$B$1&CHAR(10)&ScriptText!$D$1)","v":""},{"$f":"IF(OrigTable!A615=\"\",\"\",TEXT(OrigTable!A615,\"00\"))","v":""},{"$f":"IF(OrigTable!A615=\"\",\"\",ScriptText!$E$1&CHAR(10)&ScriptText!$C$1)","v":""},{"$f":"IF(OrigTable!B615=\"\",\"\",ScriptText!$B$1&CHAR(10)&ScriptText!$D$1)","v":""},{"$f":"IF(OrigTable!B615=\"\",\"\",TEXT(OrigTable!B615,\"00\"))","v":""},{"$f":"IF(OrigTable!B615=\"\",\"\",ScriptText!$E$1&CHAR(10)&ScriptText!C610)","v":""},{"$f":"IF(OrigTable!C615=\"\",\"\",ScriptText!$B$1&CHAR(10)&ScriptText!$D$1)","v":""},{"$f":"IF(OrigTable!C615=\"\",\"\",IF(LEN(OrigTable!C615)>255,LEFT(OrigTable!C615,250)&\". . .\",OrigTable!C615))","v":""},{"$f":"IF(OrigTable!C615=\"\",\"\",ScriptText!$E$1&CHAR(10)&ScriptText!$C$1)","v":""},{"$f":"IF(OrigTable!D615=\"\",\"\",ScriptText!$B$1&CHAR(10)&ScriptText!$D$1)","v":""},{"$f":"IF(OrigTable!D615=\"\",\"\",TEXT(OrigTable!D615,\"00\"))","v":""},{"$f":"IF(OrigTable!D615=\"\",\"\",ScriptText!$E$1&CHAR(10)&ScriptText!$C$1)","v":""},{"$f":"IF(OrigTable!E615=\"\",\"\",ScriptText!$B$1&CHAR(10)&ScriptText!$D$1)","v":""},{"$f":"IF(OrigTable!E615=\"\",\"\",TEXT(OrigTable!E615,\"00\"))","v":""},{"$f":"IF(OrigTable!E615=\"\",\"\",ScriptText!$E$1&CHAR(10)&ScriptText!$C$1)","v":""},{"$f":"IF(OrigTable!F615=\"\",\"\",ScriptText!$B$1&CHAR(10)&ScriptText!$D$1)","v":""},{"$f":"IF(OrigTable!F615=\"\",\"\",TEXT(OrigTable!F615,\"00\"))","v":""},{"$f":"IF(OrigTable!F615=\"\",\"\",ScriptText!$E$1&CHAR(10)&ScriptText!$C$1)","v":""},{"$f":"IF(OrigTable!G615=\"\",\"\",ScriptText!$B$1&CHAR(10)&ScriptText!$D$1)","v":""},{"$f":"IF(OrigTable!G615=\"\",\"\",TEXT(OrigTable!G615,\"00\"))","v":""},{"$f":"IF(OrigTable!G615=\"\",\"\",ScriptText!$E$1&CHAR(10)&ScriptText!$C$1)","v":""},0]
["\n\n\n",{"$f":"IF(OrigTable!A616=\"\",\"\",ScriptText!$B$1&CHAR(10)&ScriptText!$D$1)","v":""},{"$f":"IF(OrigTable!A616=\"\",\"\",TEXT(OrigTable!A616,\"00\"))","v":""},{"$f":"IF(OrigTable!A616=\"\",\"\",ScriptText!$E$1&CHAR(10)&ScriptText!$C$1)","v":""},{"$f":"IF(OrigTable!B616=\"\",\"\",ScriptText!$B$1&CHAR(10)&ScriptText!$D$1)","v":""},{"$f":"IF(OrigTable!B616=\"\",\"\",TEXT(OrigTable!B616,\"00\"))","v":""},{"$f":"IF(OrigTable!B616=\"\",\"\",ScriptText!$E$1&CHAR(10)&ScriptText!C611)","v":""},{"$f":"IF(OrigTable!C616=\"\",\"\",ScriptText!$B$1&CHAR(10)&ScriptText!$D$1)","v":""},{"$f":"IF(OrigTable!C616=\"\",\"\",IF(LEN(OrigTable!C616)>255,LEFT(OrigTable!C616,250)&\". . .\",OrigTable!C616))","v":""},{"$f":"IF(OrigTable!C616=\"\",\"\",ScriptText!$E$1&CHAR(10)&ScriptText!$C$1)","v":""},{"$f":"IF(OrigTable!D616=\"\",\"\",ScriptText!$B$1&CHAR(10)&ScriptText!$D$1)","v":""},{"$f":"IF(OrigTable!D616=\"\",\"\",TEXT(OrigTable!D616,\"00\"))","v":""},{"$f":"IF(OrigTable!D616=\"\",\"\",ScriptText!$E$1&CHAR(10)&ScriptText!$C$1)","v":""},{"$f":"IF(OrigTable!E616=\"\",\"\",ScriptText!$B$1&CHAR(10)&ScriptText!$D$1)","v":""},{"$f":"IF(OrigTable!E616=\"\",\"\",TEXT(OrigTable!E616,\"00\"))","v":""},{"$f":"IF(OrigTable!E616=\"\",\"\",ScriptText!$E$1&CHAR(10)&ScriptText!$C$1)","v":""},{"$f":"IF(OrigTable!F616=\"\",\"\",ScriptText!$B$1&CHAR(10)&ScriptText!$D$1)","v":""},{"$f":"IF(OrigTable!F616=\"\",\"\",TEXT(OrigTable!F616,\"00\"))","v":""},{"$f":"IF(OrigTable!F616=\"\",\"\",ScriptText!$E$1&CHAR(10)&ScriptText!$C$1)","v":""},{"$f":"IF(OrigTable!G616=\"\",\"\",ScriptText!$B$1&CHAR(10)&ScriptText!$D$1)","v":""},{"$f":"IF(OrigTable!G616=\"\",\"\",TEXT(OrigTable!G616,\"00\"))","v":""},{"$f":"IF(OrigTable!G616=\"\",\"\",ScriptText!$E$1&CHAR(10)&ScriptText!$C$1)","v":""},0]
["\n\n\n",{"$f":"IF(OrigTable!A617=\"\",\"\",ScriptText!$B$1&CHAR(10)&ScriptText!$D$1)","v":""},{"$f":"IF(OrigTable!A617=\"\",\"\",TEXT(OrigTable!A617,\"00\"))","v":""},{"$f":"IF(OrigTable!A617=\"\",\"\",ScriptText!$E$1&CHAR(10)&ScriptText!$C$1)","v":""},{"$f":"IF(OrigTable!B617=\"\",\"\",ScriptText!$B$1&CHAR(10)&ScriptText!$D$1)","v":""},{"$f":"IF(OrigTable!B617=\"\",\"\",TEXT(OrigTable!B617,\"00\"))","v":""},{"$f":"IF(OrigTable!B617=\"\",\"\",ScriptText!$E$1&CHAR(10)&ScriptText!C612)","v":""},{"$f":"IF(OrigTable!C617=\"\",\"\",ScriptText!$B$1&CHAR(10)&ScriptText!$D$1)","v":""},{"$f":"IF(OrigTable!C617=\"\",\"\",IF(LEN(OrigTable!C617)>255,LEFT(OrigTable!C617,250)&\". . .\",OrigTable!C617))","v":""},{"$f":"IF(OrigTable!C617=\"\",\"\",ScriptText!$E$1&CHAR(10)&ScriptText!$C$1)","v":""},{"$f":"IF(OrigTable!D617=\"\",\"\",ScriptText!$B$1&CHAR(10)&ScriptText!$D$1)","v":""},{"$f":"IF(OrigTable!D617=\"\",\"\",TEXT(OrigTable!D617,\"00\"))","v":""},{"$f":"IF(OrigTable!D617=\"\",\"\",ScriptText!$E$1&CHAR(10)&ScriptText!$C$1)","v":""},{"$f":"IF(OrigTable!E617=\"\",\"\",ScriptText!$B$1&CHAR(10)&ScriptText!$D$1)","v":""},{"$f":"IF(OrigTable!E617=\"\",\"\",TEXT(OrigTable!E617,\"00\"))","v":""},{"$f":"IF(OrigTable!E617=\"\",\"\",ScriptText!$E$1&CHAR(10)&ScriptText!$C$1)","v":""},{"$f":"IF(OrigTable!F617=\"\",\"\",ScriptText!$B$1&CHAR(10)&ScriptText!$D$1)","v":""},{"$f":"IF(OrigTable!F617=\"\",\"\",TEXT(OrigTable!F617,\"00\"))","v":""},{"$f":"IF(OrigTable!F617=\"\",\"\",ScriptText!$E$1&CHAR(10)&ScriptText!$C$1)","v":""},{"$f":"IF(OrigTable!G617=\"\",\"\",ScriptText!$B$1&CHAR(10)&ScriptText!$D$1)","v":""},{"$f":"IF(OrigTable!G617=\"\",\"\",TEXT(OrigTable!G617,\"00\"))","v":""},{"$f":"IF(OrigTable!G617=\"\",\"\",ScriptText!$E$1&CHAR(10)&ScriptText!$C$1)","v":""},0]
["\n\n\n",{"$f":"IF(OrigTable!A618=\"\",\"\",ScriptText!$B$1&CHAR(10)&ScriptText!$D$1)","v":""},{"$f":"IF(OrigTable!A618=\"\",\"\",TEXT(OrigTable!A618,\"00\"))","v":""},{"$f":"IF(OrigTable!A618=\"\",\"\",ScriptText!$E$1&CHAR(10)&ScriptText!$C$1)","v":""},{"$f":"IF(OrigTable!B618=\"\",\"\",ScriptText!$B$1&CHAR(10)&ScriptText!$D$1)","v":""},{"$f":"IF(OrigTable!B618=\"\",\"\",TEXT(OrigTable!B618,\"00\"))","v":""},{"$f":"IF(OrigTable!B618=\"\",\"\",ScriptText!$E$1&CHAR(10)&ScriptText!C613)","v":""},{"$f":"IF(OrigTable!C618=\"\",\"\",ScriptText!$B$1&CHAR(10)&ScriptText!$D$1)","v":""},{"$f":"IF(OrigTable!C618=\"\",\"\",IF(LEN(OrigTable!C618)>255,LEFT(OrigTable!C618,250)&\". . .\",OrigTable!C618))","v":""},{"$f":"IF(OrigTable!C618=\"\",\"\",ScriptText!$E$1&CHAR(10)&ScriptText!$C$1)","v":""},{"$f":"IF(OrigTable!D618=\"\",\"\",ScriptText!$B$1&CHAR(10)&ScriptText!$D$1)","v":""},{"$f":"IF(OrigTable!D618=\"\",\"\",TEXT(OrigTable!D618,\"00\"))","v":""},{"$f":"IF(OrigTable!D618=\"\",\"\",ScriptText!$E$1&CHAR(10)&ScriptText!$C$1)","v":""},{"$f":"IF(OrigTable!E618=\"\",\"\",ScriptText!$B$1&CHAR(10)&ScriptText!$D$1)","v":""},{"$f":"IF(OrigTable!E618=\"\",\"\",TEXT(OrigTable!E618,\"00\"))","v":""},{"$f":"IF(OrigTable!E618=\"\",\"\",ScriptText!$E$1&CHAR(10)&ScriptText!$C$1)","v":""},{"$f":"IF(OrigTable!F618=\"\",\"\",ScriptText!$B$1&CHAR(10)&ScriptText!$D$1)","v":""},{"$f":"IF(OrigTable!F618=\"\",\"\",TEXT(OrigTable!F618,\"00\"))","v":""},{"$f":"IF(OrigTable!F618=\"\",\"\",ScriptText!$E$1&CHAR(10)&ScriptText!$C$1)","v":""},{"$f":"IF(OrigTable!G618=\"\",\"\",ScriptText!$B$1&CHAR(10)&ScriptText!$D$1)","v":""},{"$f":"IF(OrigTable!G618=\"\",\"\",TEXT(OrigTable!G618,\"00\"))","v":""},{"$f":"IF(OrigTable!G618=\"\",\"\",ScriptText!$E$1&CHAR(10)&ScriptText!$C$1)","v":""},0]
["\n\n\n",{"$f":"IF(OrigTable!A619=\"\",\"\",ScriptText!$B$1&CHAR(10)&ScriptText!$D$1)","v":""},{"$f":"IF(OrigTable!A619=\"\",\"\",TEXT(OrigTable!A619,\"00\"))","v":""},{"$f":"IF(OrigTable!A619=\"\",\"\",ScriptText!$E$1&CHAR(10)&ScriptText!$C$1)","v":""},{"$f":"IF(OrigTable!B619=\"\",\"\",ScriptText!$B$1&CHAR(10)&ScriptText!$D$1)","v":""},{"$f":"IF(OrigTable!B619=\"\",\"\",TEXT(OrigTable!B619,\"00\"))","v":""},{"$f":"IF(OrigTable!B619=\"\",\"\",ScriptText!$E$1&CHAR(10)&ScriptText!C614)","v":""},{"$f":"IF(OrigTable!C619=\"\",\"\",ScriptText!$B$1&CHAR(10)&ScriptText!$D$1)","v":""},{"$f":"IF(OrigTable!C619=\"\",\"\",IF(LEN(OrigTable!C619)>255,LEFT(OrigTable!C619,250)&\". . .\",OrigTable!C619))","v":""},{"$f":"IF(OrigTable!C619=\"\",\"\",ScriptText!$E$1&CHAR(10)&ScriptText!$C$1)","v":""},{"$f":"IF(OrigTable!D619=\"\",\"\",ScriptText!$B$1&CHAR(10)&ScriptText!$D$1)","v":""},{"$f":"IF(OrigTable!D619=\"\",\"\",TEXT(OrigTable!D619,\"00\"))","v":""},{"$f":"IF(OrigTable!D619=\"\",\"\",ScriptText!$E$1&CHAR(10)&ScriptText!$C$1)","v":""},{"$f":"IF(OrigTable!E619=\"\",\"\",ScriptText!$B$1&CHAR(10)&ScriptText!$D$1)","v":""},{"$f":"IF(OrigTable!E619=\"\",\"\",TEXT(OrigTable!E619,\"00\"))","v":""},{"$f":"IF(OrigTable!E619=\"\",\"\",ScriptText!$E$1&CHAR(10)&ScriptText!$C$1)","v":""},{"$f":"IF(OrigTable!F619=\"\",\"\",ScriptText!$B$1&CHAR(10)&ScriptText!$D$1)","v":""},{"$f":"IF(OrigTable!F619=\"\",\"\",TEXT(OrigTable!F619,\"00\"))","v":""},{"$f":"IF(OrigTable!F619=\"\",\"\",ScriptText!$E$1&CHAR(10)&ScriptText!$C$1)","v":""},{"$f":"IF(OrigTable!G619=\"\",\"\",ScriptText!$B$1&CHAR(10)&ScriptText!$D$1)","v":""},{"$f":"IF(OrigTable!G619=\"\",\"\",TEXT(OrigTable!G619,\"00\"))","v":""},{"$f":"IF(OrigTable!G619=\"\",\"\",ScriptText!$E$1&CHAR(10)&ScriptText!$C$1)","v":""},0]
["\n\n\n",{"$f":"IF(OrigTable!A620=\"\",\"\",ScriptText!$B$1&CHAR(10)&ScriptText!$D$1)","v":""},{"$f":"IF(OrigTable!A620=\"\",\"\",TEXT(OrigTable!A620,\"00\"))","v":""},{"$f":"IF(OrigTable!A620=\"\",\"\",ScriptText!$E$1&CHAR(10)&ScriptText!$C$1)","v":""},{"$f":"IF(OrigTable!B620=\"\",\"\",ScriptText!$B$1&CHAR(10)&ScriptText!$D$1)","v":""},{"$f":"IF(OrigTable!B620=\"\",\"\",TEXT(OrigTable!B620,\"00\"))","v":""},{"$f":"IF(OrigTable!B620=\"\",\"\",ScriptText!$E$1&CHAR(10)&ScriptText!C615)","v":""},{"$f":"IF(OrigTable!C620=\"\",\"\",ScriptText!$B$1&CHAR(10)&ScriptText!$D$1)","v":""},{"$f":"IF(OrigTable!C620=\"\",\"\",IF(LEN(OrigTable!C620)>255,LEFT(OrigTable!C620,250)&\". . .\",OrigTable!C620))","v":""},{"$f":"IF(OrigTable!C620=\"\",\"\",ScriptText!$E$1&CHAR(10)&ScriptText!$C$1)","v":""},{"$f":"IF(OrigTable!D620=\"\",\"\",ScriptText!$B$1&CHAR(10)&ScriptText!$D$1)","v":""},{"$f":"IF(OrigTable!D620=\"\",\"\",TEXT(OrigTable!D620,\"00\"))","v":""},{"$f":"IF(OrigTable!D620=\"\",\"\",ScriptText!$E$1&CHAR(10)&ScriptText!$C$1)","v":""},{"$f":"IF(OrigTable!E620=\"\",\"\",ScriptText!$B$1&CHAR(10)&ScriptText!$D$1)","v":""},{"$f":"IF(OrigTable!E620=\"\",\"\",TEXT(OrigTable!E620,\"00\"))","v":""},{"$f":"IF(OrigTable!E620=\"\",\"\",ScriptText!$E$1&CHAR(10)&ScriptText!$C$1)","v":""},{"$f":"IF(OrigTable!F620=\"\",\"\",ScriptText!$B$1&CHAR(10)&ScriptText!$D$1)","v":""},{"$f":"IF(OrigTable!F620=\"\",\"\",TEXT(OrigTable!F620,\"00\"))","v":""},{"$f":"IF(OrigTable!F620=\"\",\"\",ScriptText!$E$1&CHAR(10)&ScriptText!$C$1)","v":""},{"$f":"IF(OrigTable!G620=\"\",\"\",ScriptText!$B$1&CHAR(10)&ScriptText!$D$1)","v":""},{"$f":"IF(OrigTable!G620=\"\",\"\",TEXT(OrigTable!G620,\"00\"))","v":""},{"$f":"IF(OrigTable!G620=\"\",\"\",ScriptText!$E$1&CHAR(10)&ScriptText!$C$1)","v":""},0]
["\n\n\n",{"$f":"IF(OrigTable!A621=\"\",\"\",ScriptText!$B$1&CHAR(10)&ScriptText!$D$1)","v":""},{"$f":"IF(OrigTable!A621=\"\",\"\",TEXT(OrigTable!A621,\"00\"))","v":""},{"$f":"IF(OrigTable!A621=\"\",\"\",ScriptText!$E$1&CHAR(10)&ScriptText!$C$1)","v":""},{"$f":"IF(OrigTable!B621=\"\",\"\",ScriptText!$B$1&CHAR(10)&ScriptText!$D$1)","v":""},{"$f":"IF(OrigTable!B621=\"\",\"\",TEXT(OrigTable!B621,\"00\"))","v":""},{"$f":"IF(OrigTable!B621=\"\",\"\",ScriptText!$E$1&CHAR(10)&ScriptText!C616)","v":""},{"$f":"IF(OrigTable!C621=\"\",\"\",ScriptText!$B$1&CHAR(10)&ScriptText!$D$1)","v":""},{"$f":"IF(OrigTable!C621=\"\",\"\",IF(LEN(OrigTable!C621)>255,LEFT(OrigTable!C621,250)&\". . .\",OrigTable!C621))","v":""},{"$f":"IF(OrigTable!C621=\"\",\"\",ScriptText!$E$1&CHAR(10)&ScriptText!$C$1)","v":""},{"$f":"IF(OrigTable!D621=\"\",\"\",ScriptText!$B$1&CHAR(10)&ScriptText!$D$1)","v":""},{"$f":"IF(OrigTable!D621=\"\",\"\",TEXT(OrigTable!D621,\"00\"))","v":""},{"$f":"IF(OrigTable!D621=\"\",\"\",ScriptText!$E$1&CHAR(10)&ScriptText!$C$1)","v":""},{"$f":"IF(OrigTable!E621=\"\",\"\",ScriptText!$B$1&CHAR(10)&ScriptText!$D$1)","v":""},{"$f":"IF(OrigTable!E621=\"\",\"\",TEXT(OrigTable!E621,\"00\"))","v":""},{"$f":"IF(OrigTable!E621=\"\",\"\",ScriptText!$E$1&CHAR(10)&ScriptText!$C$1)","v":""},{"$f":"IF(OrigTable!F621=\"\",\"\",ScriptText!$B$1&CHAR(10)&ScriptText!$D$1)","v":""},{"$f":"IF(OrigTable!F621=\"\",\"\",TEXT(OrigTable!F621,\"00\"))","v":""},{"$f":"IF(OrigTable!F621=\"\",\"\",ScriptText!$E$1&CHAR(10)&ScriptText!$C$1)","v":""},{"$f":"IF(OrigTable!G621=\"\",\"\",ScriptText!$B$1&CHAR(10)&ScriptText!$D$1)","v":""},{"$f":"IF(OrigTable!G621=\"\",\"\",TEXT(OrigTable!G621,\"00\"))","v":""},{"$f":"IF(OrigTable!G621=\"\",\"\",ScriptText!$E$1&CHAR(10)&ScriptText!$C$1)","v":""},0]
["\n\n\n",{"$f":"IF(OrigTable!A622=\"\",\"\",ScriptText!$B$1&CHAR(10)&ScriptText!$D$1)","v":""},{"$f":"IF(OrigTable!A622=\"\",\"\",TEXT(OrigTable!A622,\"00\"))","v":""},{"$f":"IF(OrigTable!A622=\"\",\"\",ScriptText!$E$1&CHAR(10)&ScriptText!$C$1)","v":""},{"$f":"IF(OrigTable!B622=\"\",\"\",ScriptText!$B$1&CHAR(10)&ScriptText!$D$1)","v":""},{"$f":"IF(OrigTable!B622=\"\",\"\",TEXT(OrigTable!B622,\"00\"))","v":""},{"$f":"IF(OrigTable!B622=\"\",\"\",ScriptText!$E$1&CHAR(10)&ScriptText!C617)","v":""},{"$f":"IF(OrigTable!C622=\"\",\"\",ScriptText!$B$1&CHAR(10)&ScriptText!$D$1)","v":""},{"$f":"IF(OrigTable!C622=\"\",\"\",IF(LEN(OrigTable!C622)>255,LEFT(OrigTable!C622,250)&\". . .\",OrigTable!C622))","v":""},{"$f":"IF(OrigTable!C622=\"\",\"\",ScriptText!$E$1&CHAR(10)&ScriptText!$C$1)","v":""},{"$f":"IF(OrigTable!D622=\"\",\"\",ScriptText!$B$1&CHAR(10)&ScriptText!$D$1)","v":""},{"$f":"IF(OrigTable!D622=\"\",\"\",TEXT(OrigTable!D622,\"00\"))","v":""},{"$f":"IF(OrigTable!D622=\"\",\"\",ScriptText!$E$1&CHAR(10)&ScriptText!$C$1)","v":""},{"$f":"IF(OrigTable!E622=\"\",\"\",ScriptText!$B$1&CHAR(10)&ScriptText!$D$1)","v":""},{"$f":"IF(OrigTable!E622=\"\",\"\",TEXT(OrigTable!E622,\"00\"))","v":""},{"$f":"IF(OrigTable!E622=\"\",\"\",ScriptText!$E$1&CHAR(10)&ScriptText!$C$1)","v":""},{"$f":"IF(OrigTable!F622=\"\",\"\",ScriptText!$B$1&CHAR(10)&ScriptText!$D$1)","v":""},{"$f":"IF(OrigTable!F622=\"\",\"\",TEXT(OrigTable!F622,\"00\"))","v":""},{"$f":"IF(OrigTable!F622=\"\",\"\",ScriptText!$E$1&CHAR(10)&ScriptText!$C$1)","v":""},{"$f":"IF(OrigTable!G622=\"\",\"\",ScriptText!$B$1&CHAR(10)&ScriptText!$D$1)","v":""},{"$f":"IF(OrigTable!G622=\"\",\"\",TEXT(OrigTable!G622,\"00\"))","v":""},{"$f":"IF(OrigTable!G622=\"\",\"\",ScriptText!$E$1&CHAR(10)&ScriptText!$C$1)","v":""},0]
["\n\n\n",{"$f":"IF(OrigTable!A623=\"\",\"\",ScriptText!$B$1&CHAR(10)&ScriptText!$D$1)","v":""},{"$f":"IF(OrigTable!A623=\"\",\"\",TEXT(OrigTable!A623,\"00\"))","v":""},{"$f":"IF(OrigTable!A623=\"\",\"\",ScriptText!$E$1&CHAR(10)&ScriptText!$C$1)","v":""},{"$f":"IF(OrigTable!B623=\"\",\"\",ScriptText!$B$1&CHAR(10)&ScriptText!$D$1)","v":""},{"$f":"IF(OrigTable!B623=\"\",\"\",TEXT(OrigTable!B623,\"00\"))","v":""},{"$f":"IF(OrigTable!B623=\"\",\"\",ScriptText!$E$1&CHAR(10)&ScriptText!C618)","v":""},{"$f":"IF(OrigTable!C623=\"\",\"\",ScriptText!$B$1&CHAR(10)&ScriptText!$D$1)","v":""},{"$f":"IF(OrigTable!C623=\"\",\"\",IF(LEN(OrigTable!C623)>255,LEFT(OrigTable!C623,250)&\". . .\",OrigTable!C623))","v":""},{"$f":"IF(OrigTable!C623=\"\",\"\",ScriptText!$E$1&CHAR(10)&ScriptText!$C$1)","v":""},{"$f":"IF(OrigTable!D623=\"\",\"\",ScriptText!$B$1&CHAR(10)&ScriptText!$D$1)","v":""},{"$f":"IF(OrigTable!D623=\"\",\"\",TEXT(OrigTable!D623,\"00\"))","v":""},{"$f":"IF(OrigTable!D623=\"\",\"\",ScriptText!$E$1&CHAR(10)&ScriptText!$C$1)","v":""},{"$f":"IF(OrigTable!E623=\"\",\"\",ScriptText!$B$1&CHAR(10)&ScriptText!$D$1)","v":""},{"$f":"IF(OrigTable!E623=\"\",\"\",TEXT(OrigTable!E623,\"00\"))","v":""},{"$f":"IF(OrigTable!E623=\"\",\"\",ScriptText!$E$1&CHAR(10)&ScriptText!$C$1)","v":""},{"$f":"IF(OrigTable!F623=\"\",\"\",ScriptText!$B$1&CHAR(10)&ScriptText!$D$1)","v":""},{"$f":"IF(OrigTable!F623=\"\",\"\",TEXT(OrigTable!F623,\"00\"))","v":""},{"$f":"IF(OrigTable!F623=\"\",\"\",ScriptText!$E$1&CHAR(10)&ScriptText!$C$1)","v":""},{"$f":"IF(OrigTable!G623=\"\",\"\",ScriptText!$B$1&CHAR(10)&ScriptText!$D$1)","v":""},{"$f":"IF(OrigTable!G623=\"\",\"\",TEXT(OrigTable!G623,\"00\"))","v":""},{"$f":"IF(OrigTable!G623=\"\",\"\",ScriptText!$E$1&CHAR(10)&ScriptText!$C$1)","v":""},0]
["\n\n\n",{"$f":"IF(OrigTable!A624=\"\",\"\",ScriptText!$B$1&CHAR(10)&ScriptText!$D$1)","v":""},{"$f":"IF(OrigTable!A624=\"\",\"\",TEXT(OrigTable!A624,\"00\"))","v":""},{"$f":"IF(OrigTable!A624=\"\",\"\",ScriptText!$E$1&CHAR(10)&ScriptText!$C$1)","v":""},{"$f":"IF(OrigTable!B624=\"\",\"\",ScriptText!$B$1&CHAR(10)&ScriptText!$D$1)","v":""},{"$f":"IF(OrigTable!B624=\"\",\"\",TEXT(OrigTable!B624,\"00\"))","v":""},{"$f":"IF(OrigTable!B624=\"\",\"\",ScriptText!$E$1&CHAR(10)&ScriptText!C619)","v":""},{"$f":"IF(OrigTable!C624=\"\",\"\",ScriptText!$B$1&CHAR(10)&ScriptText!$D$1)","v":""},{"$f":"IF(OrigTable!C624=\"\",\"\",IF(LEN(OrigTable!C624)>255,LEFT(OrigTable!C624,250)&\". . .\",OrigTable!C624))","v":""},{"$f":"IF(OrigTable!C624=\"\",\"\",ScriptText!$E$1&CHAR(10)&ScriptText!$C$1)","v":""},{"$f":"IF(OrigTable!D624=\"\",\"\",ScriptText!$B$1&CHAR(10)&ScriptText!$D$1)","v":""},{"$f":"IF(OrigTable!D624=\"\",\"\",TEXT(OrigTable!D624,\"00\"))","v":""},{"$f":"IF(OrigTable!D624=\"\",\"\",ScriptText!$E$1&CHAR(10)&ScriptText!$C$1)","v":""},{"$f":"IF(OrigTable!E624=\"\",\"\",ScriptText!$B$1&CHAR(10)&ScriptText!$D$1)","v":""},{"$f":"IF(OrigTable!E624=\"\",\"\",TEXT(OrigTable!E624,\"00\"))","v":""},{"$f":"IF(OrigTable!E624=\"\",\"\",ScriptText!$E$1&CHAR(10)&ScriptText!$C$1)","v":""},{"$f":"IF(OrigTable!F624=\"\",\"\",ScriptText!$B$1&CHAR(10)&ScriptText!$D$1)","v":""},{"$f":"IF(OrigTable!F624=\"\",\"\",TEXT(OrigTable!F624,\"00\"))","v":""},{"$f":"IF(OrigTable!F624=\"\",\"\",ScriptText!$E$1&CHAR(10)&ScriptText!$C$1)","v":""},{"$f":"IF(OrigTable!G624=\"\",\"\",ScriptText!$B$1&CHAR(10)&ScriptText!$D$1)","v":""},{"$f":"IF(OrigTable!G624=\"\",\"\",TEXT(OrigTable!G624,\"00\"))","v":""},{"$f":"IF(OrigTable!G624=\"\",\"\",ScriptText!$E$1&CHAR(10)&ScriptText!$C$1)","v":""},0]
["\n\n\n",{"$f":"IF(OrigTable!A625=\"\",\"\",ScriptText!$B$1&CHAR(10)&ScriptText!$D$1)","v":""},{"$f":"IF(OrigTable!A625=\"\",\"\",TEXT(OrigTable!A625,\"00\"))","v":""},{"$f":"IF(OrigTable!A625=\"\",\"\",ScriptText!$E$1&CHAR(10)&ScriptText!$C$1)","v":""},{"$f":"IF(OrigTable!B625=\"\",\"\",ScriptText!$B$1&CHAR(10)&ScriptText!$D$1)","v":""},{"$f":"IF(OrigTable!B625=\"\",\"\",TEXT(OrigTable!B625,\"00\"))","v":""},{"$f":"IF(OrigTable!B625=\"\",\"\",ScriptText!$E$1&CHAR(10)&ScriptText!C620)","v":""},{"$f":"IF(OrigTable!C625=\"\",\"\",ScriptText!$B$1&CHAR(10)&ScriptText!$D$1)","v":""},{"$f":"IF(OrigTable!C625=\"\",\"\",IF(LEN(OrigTable!C625)>255,LEFT(OrigTable!C625,250)&\". . .\",OrigTable!C625))","v":""},{"$f":"IF(OrigTable!C625=\"\",\"\",ScriptText!$E$1&CHAR(10)&ScriptText!$C$1)","v":""},{"$f":"IF(OrigTable!D625=\"\",\"\",ScriptText!$B$1&CHAR(10)&ScriptText!$D$1)","v":""},{"$f":"IF(OrigTable!D625=\"\",\"\",TEXT(OrigTable!D625,\"00\"))","v":""},{"$f":"IF(OrigTable!D625=\"\",\"\",ScriptText!$E$1&CHAR(10)&ScriptText!$C$1)","v":""},{"$f":"IF(OrigTable!E625=\"\",\"\",ScriptText!$B$1&CHAR(10)&ScriptText!$D$1)","v":""},{"$f":"IF(OrigTable!E625=\"\",\"\",TEXT(OrigTable!E625,\"00\"))","v":""},{"$f":"IF(OrigTable!E625=\"\",\"\",ScriptText!$E$1&CHAR(10)&ScriptText!$C$1)","v":""},{"$f":"IF(OrigTable!F625=\"\",\"\",ScriptText!$B$1&CHAR(10)&ScriptText!$D$1)","v":""},{"$f":"IF(OrigTable!F625=\"\",\"\",TEXT(OrigTable!F625,\"00\"))","v":""},{"$f":"IF(OrigTable!F625=\"\",\"\",ScriptText!$E$1&CHAR(10)&ScriptText!$C$1)","v":""},{"$f":"IF(OrigTable!G625=\"\",\"\",ScriptText!$B$1&CHAR(10)&ScriptText!$D$1)","v":""},{"$f":"IF(OrigTable!G625=\"\",\"\",TEXT(OrigTable!G625,\"00\"))","v":""},{"$f":"IF(OrigTable!G625=\"\",\"\",ScriptText!$E$1&CHAR(10)&ScriptText!$C$1)","v":""},0]
["\n\n\n",{"$f":"IF(OrigTable!A626=\"\",\"\",ScriptText!$B$1&CHAR(10)&ScriptText!$D$1)","v":""},{"$f":"IF(OrigTable!A626=\"\",\"\",TEXT(OrigTable!A626,\"00\"))","v":""},{"$f":"IF(OrigTable!A626=\"\",\"\",ScriptText!$E$1&CHAR(10)&ScriptText!$C$1)","v":""},{"$f":"IF(OrigTable!B626=\"\",\"\",ScriptText!$B$1&CHAR(10)&ScriptText!$D$1)","v":""},{"$f":"IF(OrigTable!B626=\"\",\"\",TEXT(OrigTable!B626,\"00\"))","v":""},{"$f":"IF(OrigTable!B626=\"\",\"\",ScriptText!$E$1&CHAR(10)&ScriptText!C621)","v":""},{"$f":"IF(OrigTable!C626=\"\",\"\",ScriptText!$B$1&CHAR(10)&ScriptText!$D$1)","v":""},{"$f":"IF(OrigTable!C626=\"\",\"\",IF(LEN(OrigTable!C626)>255,LEFT(OrigTable!C626,250)&\". . .\",OrigTable!C626))","v":""},{"$f":"IF(OrigTable!C626=\"\",\"\",ScriptText!$E$1&CHAR(10)&ScriptText!$C$1)","v":""},{"$f":"IF(OrigTable!D626=\"\",\"\",ScriptText!$B$1&CHAR(10)&ScriptText!$D$1)","v":""},{"$f":"IF(OrigTable!D626=\"\",\"\",TEXT(OrigTable!D626,\"00\"))","v":""},{"$f":"IF(OrigTable!D626=\"\",\"\",ScriptText!$E$1&CHAR(10)&ScriptText!$C$1)","v":""},{"$f":"IF(OrigTable!E626=\"\",\"\",ScriptText!$B$1&CHAR(10)&ScriptText!$D$1)","v":""},{"$f":"IF(OrigTable!E626=\"\",\"\",TEXT(OrigTable!E626,\"00\"))","v":""},{"$f":"IF(OrigTable!E626=\"\",\"\",ScriptText!$E$1&CHAR(10)&ScriptText!$C$1)","v":""},{"$f":"IF(OrigTable!F626=\"\",\"\",ScriptText!$B$1&CHAR(10)&ScriptText!$D$1)","v":""},{"$f":"IF(OrigTable!F626=\"\",\"\",TEXT(OrigTable!F626,\"00\"))","v":""},{"$f":"IF(OrigTable!F626=\"\",\"\",ScriptText!$E$1&CHAR(10)&ScriptText!$C$1)","v":""},{"$f":"IF(OrigTable!G626=\"\",\"\",ScriptText!$B$1&CHAR(10)&ScriptText!$D$1)","v":""},{"$f":"IF(OrigTable!G626=\"\",\"\",TEXT(OrigTable!G626,\"00\"))","v":""},{"$f":"IF(OrigTable!G626=\"\",\"\",ScriptText!$E$1&CHAR(10)&ScriptText!$C$1)","v":""},0]
["\n\n\n",{"$f":"IF(OrigTable!A627=\"\",\"\",ScriptText!$B$1&CHAR(10)&ScriptText!$D$1)","v":""},{"$f":"IF(OrigTable!A627=\"\",\"\",TEXT(OrigTable!A627,\"00\"))","v":""},{"$f":"IF(OrigTable!A627=\"\",\"\",ScriptText!$E$1&CHAR(10)&ScriptText!$C$1)","v":""},{"$f":"IF(OrigTable!B627=\"\",\"\",ScriptText!$B$1&CHAR(10)&ScriptText!$D$1)","v":""},{"$f":"IF(OrigTable!B627=\"\",\"\",TEXT(OrigTable!B627,\"00\"))","v":""},{"$f":"IF(OrigTable!B627=\"\",\"\",ScriptText!$E$1&CHAR(10)&ScriptText!C622)","v":""},{"$f":"IF(OrigTable!C627=\"\",\"\",ScriptText!$B$1&CHAR(10)&ScriptText!$D$1)","v":""},{"$f":"IF(OrigTable!C627=\"\",\"\",IF(LEN(OrigTable!C627)>255,LEFT(OrigTable!C627,250)&\". . .\",OrigTable!C627))","v":""},{"$f":"IF(OrigTable!C627=\"\",\"\",ScriptText!$E$1&CHAR(10)&ScriptText!$C$1)","v":""},{"$f":"IF(OrigTable!D627=\"\",\"\",ScriptText!$B$1&CHAR(10)&ScriptText!$D$1)","v":""},{"$f":"IF(OrigTable!D627=\"\",\"\",TEXT(OrigTable!D627,\"00\"))","v":""},{"$f":"IF(OrigTable!D627=\"\",\"\",ScriptText!$E$1&CHAR(10)&ScriptText!$C$1)","v":""},{"$f":"IF(OrigTable!E627=\"\",\"\",ScriptText!$B$1&CHAR(10)&ScriptText!$D$1)","v":""},{"$f":"IF(OrigTable!E627=\"\",\"\",TEXT(OrigTable!E627,\"00\"))","v":""},{"$f":"IF(OrigTable!E627=\"\",\"\",ScriptText!$E$1&CHAR(10)&ScriptText!$C$1)","v":""},{"$f":"IF(OrigTable!F627=\"\",\"\",ScriptText!$B$1&CHAR(10)&ScriptText!$D$1)","v":""},{"$f":"IF(OrigTable!F627=\"\",\"\",TEXT(OrigTable!F627,\"00\"))","v":""},{"$f":"IF(OrigTable!F627=\"\",\"\",ScriptText!$E$1&CHAR(10)&ScriptText!$C$1)","v":""},{"$f":"IF(OrigTable!G627=\"\",\"\",ScriptText!$B$1&CHAR(10)&ScriptText!$D$1)","v":""},{"$f":"IF(OrigTable!G627=\"\",\"\",TEXT(OrigTable!G627,\"00\"))","v":""},{"$f":"IF(OrigTable!G627=\"\",\"\",ScriptText!$E$1&CHAR(10)&ScriptText!$C$1)","v":""},0]
["\n\n\n",{"$f":"IF(OrigTable!A628=\"\",\"\",ScriptText!$B$1&CHAR(10)&ScriptText!$D$1)","v":""},{"$f":"IF(OrigTable!A628=\"\",\"\",TEXT(OrigTable!A628,\"00\"))","v":""},{"$f":"IF(OrigTable!A628=\"\",\"\",ScriptText!$E$1&CHAR(10)&ScriptText!$C$1)","v":""},{"$f":"IF(OrigTable!B628=\"\",\"\",ScriptText!$B$1&CHAR(10)&ScriptText!$D$1)","v":""},{"$f":"IF(OrigTable!B628=\"\",\"\",TEXT(OrigTable!B628,\"00\"))","v":""},{"$f":"IF(OrigTable!B628=\"\",\"\",ScriptText!$E$1&CHAR(10)&ScriptText!C623)","v":""},{"$f":"IF(OrigTable!C628=\"\",\"\",ScriptText!$B$1&CHAR(10)&ScriptText!$D$1)","v":""},{"$f":"IF(OrigTable!C628=\"\",\"\",IF(LEN(OrigTable!C628)>255,LEFT(OrigTable!C628,250)&\". . .\",OrigTable!C628))","v":""},{"$f":"IF(OrigTable!C628=\"\",\"\",ScriptText!$E$1&CHAR(10)&ScriptText!$C$1)","v":""},{"$f":"IF(OrigTable!D628=\"\",\"\",ScriptText!$B$1&CHAR(10)&ScriptText!$D$1)","v":""},{"$f":"IF(OrigTable!D628=\"\",\"\",TEXT(OrigTable!D628,\"00\"))","v":""},{"$f":"IF(OrigTable!D628=\"\",\"\",ScriptText!$E$1&CHAR(10)&ScriptText!$C$1)","v":""},{"$f":"IF(OrigTable!E628=\"\",\"\",ScriptText!$B$1&CHAR(10)&ScriptText!$D$1)","v":""},{"$f":"IF(OrigTable!E628=\"\",\"\",TEXT(OrigTable!E628,\"00\"))","v":""},{"$f":"IF(OrigTable!E628=\"\",\"\",ScriptText!$E$1&CHAR(10)&ScriptText!$C$1)","v":""},{"$f":"IF(OrigTable!F628=\"\",\"\",ScriptText!$B$1&CHAR(10)&ScriptText!$D$1)","v":""},{"$f":"IF(OrigTable!F628=\"\",\"\",TEXT(OrigTable!F628,\"00\"))","v":""},{"$f":"IF(OrigTable!F628=\"\",\"\",ScriptText!$E$1&CHAR(10)&ScriptText!$C$1)","v":""},{"$f":"IF(OrigTable!G628=\"\",\"\",ScriptText!$B$1&CHAR(10)&ScriptText!$D$1)","v":""},{"$f":"IF(OrigTable!G628=\"\",\"\",TEXT(OrigTable!G628,\"00\"))","v":""},{"$f":"IF(OrigTable!G628=\"\",\"\",ScriptText!$E$1&CHAR(10)&ScriptText!$C$1)","v":""},0]
["\n\n\n",{"$f":"IF(OrigTable!A629=\"\",\"\",ScriptText!$B$1&CHAR(10)&ScriptText!$D$1)","v":""},{"$f":"IF(OrigTable!A629=\"\",\"\",TEXT(OrigTable!A629,\"00\"))","v":""},{"$f":"IF(OrigTable!A629=\"\",\"\",ScriptText!$E$1&CHAR(10)&ScriptText!$C$1)","v":""},{"$f":"IF(OrigTable!B629=\"\",\"\",ScriptText!$B$1&CHAR(10)&ScriptText!$D$1)","v":""},{"$f":"IF(OrigTable!B629=\"\",\"\",TEXT(OrigTable!B629,\"00\"))","v":""},{"$f":"IF(OrigTable!B629=\"\",\"\",ScriptText!$E$1&CHAR(10)&ScriptText!C624)","v":""},{"$f":"IF(OrigTable!C629=\"\",\"\",ScriptText!$B$1&CHAR(10)&ScriptText!$D$1)","v":""},{"$f":"IF(OrigTable!C629=\"\",\"\",IF(LEN(OrigTable!C629)>255,LEFT(OrigTable!C629,250)&\". . .\",OrigTable!C629))","v":""},{"$f":"IF(OrigTable!C629=\"\",\"\",ScriptText!$E$1&CHAR(10)&ScriptText!$C$1)","v":""},{"$f":"IF(OrigTable!D629=\"\",\"\",ScriptText!$B$1&CHAR(10)&ScriptText!$D$1)","v":""},{"$f":"IF(OrigTable!D629=\"\",\"\",TEXT(OrigTable!D629,\"00\"))","v":""},{"$f":"IF(OrigTable!D629=\"\",\"\",ScriptText!$E$1&CHAR(10)&ScriptText!$C$1)","v":""},{"$f":"IF(OrigTable!E629=\"\",\"\",ScriptText!$B$1&CHAR(10)&ScriptText!$D$1)","v":""},{"$f":"IF(OrigTable!E629=\"\",\"\",TEXT(OrigTable!E629,\"00\"))","v":""},{"$f":"IF(OrigTable!E629=\"\",\"\",ScriptText!$E$1&CHAR(10)&ScriptText!$C$1)","v":""},{"$f":"IF(OrigTable!F629=\"\",\"\",ScriptText!$B$1&CHAR(10)&ScriptText!$D$1)","v":""},{"$f":"IF(OrigTable!F629=\"\",\"\",TEXT(OrigTable!F629,\"00\"))","v":""},{"$f":"IF(OrigTable!F629=\"\",\"\",ScriptText!$E$1&CHAR(10)&ScriptText!$C$1)","v":""},{"$f":"IF(OrigTable!G629=\"\",\"\",ScriptText!$B$1&CHAR(10)&ScriptText!$D$1)","v":""},{"$f":"IF(OrigTable!G629=\"\",\"\",TEXT(OrigTable!G629,\"00\"))","v":""},{"$f":"IF(OrigTable!G629=\"\",\"\",ScriptText!$E$1&CHAR(10)&ScriptText!$C$1)","v":""},0]
["\n\n\n",{"$f":"IF(OrigTable!A630=\"\",\"\",ScriptText!$B$1&CHAR(10)&ScriptText!$D$1)","v":""},{"$f":"IF(OrigTable!A630=\"\",\"\",TEXT(OrigTable!A630,\"00\"))","v":""},{"$f":"IF(OrigTable!A630=\"\",\"\",ScriptText!$E$1&CHAR(10)&ScriptText!$C$1)","v":""},{"$f":"IF(OrigTable!B630=\"\",\"\",ScriptText!$B$1&CHAR(10)&ScriptText!$D$1)","v":""},{"$f":"IF(OrigTable!B630=\"\",\"\",TEXT(OrigTable!B630,\"00\"))","v":""},{"$f":"IF(OrigTable!B630=\"\",\"\",ScriptText!$E$1&CHAR(10)&ScriptText!C625)","v":""},{"$f":"IF(OrigTable!C630=\"\",\"\",ScriptText!$B$1&CHAR(10)&ScriptText!$D$1)","v":""},{"$f":"IF(OrigTable!C630=\"\",\"\",IF(LEN(OrigTable!C630)>255,LEFT(OrigTable!C630,250)&\". . .\",OrigTable!C630))","v":""},{"$f":"IF(OrigTable!C630=\"\",\"\",ScriptText!$E$1&CHAR(10)&ScriptText!$C$1)","v":""},{"$f":"IF(OrigTable!D630=\"\",\"\",ScriptText!$B$1&CHAR(10)&ScriptText!$D$1)","v":""},{"$f":"IF(OrigTable!D630=\"\",\"\",TEXT(OrigTable!D630,\"00\"))","v":""},{"$f":"IF(OrigTable!D630=\"\",\"\",ScriptText!$E$1&CHAR(10)&ScriptText!$C$1)","v":""},{"$f":"IF(OrigTable!E630=\"\",\"\",ScriptText!$B$1&CHAR(10)&ScriptText!$D$1)","v":""},{"$f":"IF(OrigTable!E630=\"\",\"\",TEXT(OrigTable!E630,\"00\"))","v":""},{"$f":"IF(OrigTable!E630=\"\",\"\",ScriptText!$E$1&CHAR(10)&ScriptText!$C$1)","v":""},{"$f":"IF(OrigTable!F630=\"\",\"\",ScriptText!$B$1&CHAR(10)&ScriptText!$D$1)","v":""},{"$f":"IF(OrigTable!F630=\"\",\"\",TEXT(OrigTable!F630,\"00\"))","v":""},{"$f":"IF(OrigTable!F630=\"\",\"\",ScriptText!$E$1&CHAR(10)&ScriptText!$C$1)","v":""},{"$f":"IF(OrigTable!G630=\"\",\"\",ScriptText!$B$1&CHAR(10)&ScriptText!$D$1)","v":""},{"$f":"IF(OrigTable!G630=\"\",\"\",TEXT(OrigTable!G630,\"00\"))","v":""},{"$f":"IF(OrigTable!G630=\"\",\"\",ScriptText!$E$1&CHAR(10)&ScriptText!$C$1)","v":""},0]
["\n\n\n",{"$f":"IF(OrigTable!A631=\"\",\"\",ScriptText!$B$1&CHAR(10)&ScriptText!$D$1)","v":""},{"$f":"IF(OrigTable!A631=\"\",\"\",TEXT(OrigTable!A631,\"00\"))","v":""},{"$f":"IF(OrigTable!A631=\"\",\"\",ScriptText!$E$1&CHAR(10)&ScriptText!$C$1)","v":""},{"$f":"IF(OrigTable!B631=\"\",\"\",ScriptText!$B$1&CHAR(10)&ScriptText!$D$1)","v":""},{"$f":"IF(OrigTable!B631=\"\",\"\",TEXT(OrigTable!B631,\"00\"))","v":""},{"$f":"IF(OrigTable!B631=\"\",\"\",ScriptText!$E$1&CHAR(10)&ScriptText!C626)","v":""},{"$f":"IF(OrigTable!C631=\"\",\"\",ScriptText!$B$1&CHAR(10)&ScriptText!$D$1)","v":""},{"$f":"IF(OrigTable!C631=\"\",\"\",IF(LEN(OrigTable!C631)>255,LEFT(OrigTable!C631,250)&\". . .\",OrigTable!C631))","v":""},{"$f":"IF(OrigTable!C631=\"\",\"\",ScriptText!$E$1&CHAR(10)&ScriptText!$C$1)","v":""},{"$f":"IF(OrigTable!D631=\"\",\"\",ScriptText!$B$1&CHAR(10)&ScriptText!$D$1)","v":""},{"$f":"IF(OrigTable!D631=\"\",\"\",TEXT(OrigTable!D631,\"00\"))","v":""},{"$f":"IF(OrigTable!D631=\"\",\"\",ScriptText!$E$1&CHAR(10)&ScriptText!$C$1)","v":""},{"$f":"IF(OrigTable!E631=\"\",\"\",ScriptText!$B$1&CHAR(10)&ScriptText!$D$1)","v":""},{"$f":"IF(OrigTable!E631=\"\",\"\",TEXT(OrigTable!E631,\"00\"))","v":""},{"$f":"IF(OrigTable!E631=\"\",\"\",ScriptText!$E$1&CHAR(10)&ScriptText!$C$1)","v":""},{"$f":"IF(OrigTable!F631=\"\",\"\",ScriptText!$B$1&CHAR(10)&ScriptText!$D$1)","v":""},{"$f":"IF(OrigTable!F631=\"\",\"\",TEXT(OrigTable!F631,\"00\"))","v":""},{"$f":"IF(OrigTable!F631=\"\",\"\",ScriptText!$E$1&CHAR(10)&ScriptText!$C$1)","v":""},{"$f":"IF(OrigTable!G631=\"\",\"\",ScriptText!$B$1&CHAR(10)&ScriptText!$D$1)","v":""},{"$f":"IF(OrigTable!G631=\"\",\"\",TEXT(OrigTable!G631,\"00\"))","v":""},{"$f":"IF(OrigTable!G631=\"\",\"\",ScriptText!$E$1&CHAR(10)&ScriptText!$C$1)","v":""},0]
["\n\n\n",{"$f":"IF(OrigTable!A632=\"\",\"\",ScriptText!$B$1&CHAR(10)&ScriptText!$D$1)","v":""},{"$f":"IF(OrigTable!A632=\"\",\"\",TEXT(OrigTable!A632,\"00\"))","v":""},{"$f":"IF(OrigTable!A632=\"\",\"\",ScriptText!$E$1&CHAR(10)&ScriptText!$C$1)","v":""},{"$f":"IF(OrigTable!B632=\"\",\"\",ScriptText!$B$1&CHAR(10)&ScriptText!$D$1)","v":""},{"$f":"IF(OrigTable!B632=\"\",\"\",TEXT(OrigTable!B632,\"00\"))","v":""},{"$f":"IF(OrigTable!B632=\"\",\"\",ScriptText!$E$1&CHAR(10)&ScriptText!C627)","v":""},{"$f":"IF(OrigTable!C632=\"\",\"\",ScriptText!$B$1&CHAR(10)&ScriptText!$D$1)","v":""},{"$f":"IF(OrigTable!C632=\"\",\"\",IF(LEN(OrigTable!C632)>255,LEFT(OrigTable!C632,250)&\". . .\",OrigTable!C632))","v":""},{"$f":"IF(OrigTable!C632=\"\",\"\",ScriptText!$E$1&CHAR(10)&ScriptText!$C$1)","v":""},{"$f":"IF(OrigTable!D632=\"\",\"\",ScriptText!$B$1&CHAR(10)&ScriptText!$D$1)","v":""},{"$f":"IF(OrigTable!D632=\"\",\"\",TEXT(OrigTable!D632,\"00\"))","v":""},{"$f":"IF(OrigTable!D632=\"\",\"\",ScriptText!$E$1&CHAR(10)&ScriptText!$C$1)","v":""},{"$f":"IF(OrigTable!E632=\"\",\"\",ScriptText!$B$1&CHAR(10)&ScriptText!$D$1)","v":""},{"$f":"IF(OrigTable!E632=\"\",\"\",TEXT(OrigTable!E632,\"00\"))","v":""},{"$f":"IF(OrigTable!E632=\"\",\"\",ScriptText!$E$1&CHAR(10)&ScriptText!$C$1)","v":""},{"$f":"IF(OrigTable!F632=\"\",\"\",ScriptText!$B$1&CHAR(10)&ScriptText!$D$1)","v":""},{"$f":"IF(OrigTable!F632=\"\",\"\",TEXT(OrigTable!F632,\"00\"))","v":""},{"$f":"IF(OrigTable!F632=\"\",\"\",ScriptText!$E$1&CHAR(10)&ScriptText!$C$1)","v":""},{"$f":"IF(OrigTable!G632=\"\",\"\",ScriptText!$B$1&CHAR(10)&ScriptText!$D$1)","v":""},{"$f":"IF(OrigTable!G632=\"\",\"\",TEXT(OrigTable!G632,\"00\"))","v":""},{"$f":"IF(OrigTable!G632=\"\",\"\",ScriptText!$E$1&CHAR(10)&ScriptText!$C$1)","v":""},0]
["\n\n\n",{"$f":"IF(OrigTable!A633=\"\",\"\",ScriptText!$B$1&CHAR(10)&ScriptText!$D$1)","v":""},{"$f":"IF(OrigTable!A633=\"\",\"\",TEXT(OrigTable!A633,\"00\"))","v":""},{"$f":"IF(OrigTable!A633=\"\",\"\",ScriptText!$E$1&CHAR(10)&ScriptText!$C$1)","v":""},{"$f":"IF(OrigTable!B633=\"\",\"\",ScriptText!$B$1&CHAR(10)&ScriptText!$D$1)","v":""},{"$f":"IF(OrigTable!B633=\"\",\"\",TEXT(OrigTable!B633,\"00\"))","v":""},{"$f":"IF(OrigTable!B633=\"\",\"\",ScriptText!$E$1&CHAR(10)&ScriptText!C628)","v":""},{"$f":"IF(OrigTable!C633=\"\",\"\",ScriptText!$B$1&CHAR(10)&ScriptText!$D$1)","v":""},{"$f":"IF(OrigTable!C633=\"\",\"\",IF(LEN(OrigTable!C633)>255,LEFT(OrigTable!C633,250)&\". . .\",OrigTable!C633))","v":""},{"$f":"IF(OrigTable!C633=\"\",\"\",ScriptText!$E$1&CHAR(10)&ScriptText!$C$1)","v":""},{"$f":"IF(OrigTable!D633=\"\",\"\",ScriptText!$B$1&CHAR(10)&ScriptText!$D$1)","v":""},{"$f":"IF(OrigTable!D633=\"\",\"\",TEXT(OrigTable!D633,\"00\"))","v":""},{"$f":"IF(OrigTable!D633=\"\",\"\",ScriptText!$E$1&CHAR(10)&ScriptText!$C$1)","v":""},{"$f":"IF(OrigTable!E633=\"\",\"\",ScriptText!$B$1&CHAR(10)&ScriptText!$D$1)","v":""},{"$f":"IF(OrigTable!E633=\"\",\"\",TEXT(OrigTable!E633,\"00\"))","v":""},{"$f":"IF(OrigTable!E633=\"\",\"\",ScriptText!$E$1&CHAR(10)&ScriptText!$C$1)","v":""},{"$f":"IF(OrigTable!F633=\"\",\"\",ScriptText!$B$1&CHAR(10)&ScriptText!$D$1)","v":""},{"$f":"IF(OrigTable!F633=\"\",\"\",TEXT(OrigTable!F633,\"00\"))","v":""},{"$f":"IF(OrigTable!F633=\"\",\"\",ScriptText!$E$1&CHAR(10)&ScriptText!$C$1)","v":""},{"$f":"IF(OrigTable!G633=\"\",\"\",ScriptText!$B$1&CHAR(10)&ScriptText!$D$1)","v":""},{"$f":"IF(OrigTable!G633=\"\",\"\",TEXT(OrigTable!G633,\"00\"))","v":""},{"$f":"IF(OrigTable!G633=\"\",\"\",ScriptText!$E$1&CHAR(10)&ScriptText!$C$1)","v":""},0]
["\n\n\n",{"$f":"IF(OrigTable!A634=\"\",\"\",ScriptText!$B$1&CHAR(10)&ScriptText!$D$1)","v":""},{"$f":"IF(OrigTable!A634=\"\",\"\",TEXT(OrigTable!A634,\"00\"))","v":""},{"$f":"IF(OrigTable!A634=\"\",\"\",ScriptText!$E$1&CHAR(10)&ScriptText!$C$1)","v":""},{"$f":"IF(OrigTable!B634=\"\",\"\",ScriptText!$B$1&CHAR(10)&ScriptText!$D$1)","v":""},{"$f":"IF(OrigTable!B634=\"\",\"\",TEXT(OrigTable!B634,\"00\"))","v":""},{"$f":"IF(OrigTable!B634=\"\",\"\",ScriptText!$E$1&CHAR(10)&ScriptText!C629)","v":""},{"$f":"IF(OrigTable!C634=\"\",\"\",ScriptText!$B$1&CHAR(10)&ScriptText!$D$1)","v":""},{"$f":"IF(OrigTable!C634=\"\",\"\",IF(LEN(OrigTable!C634)>255,LEFT(OrigTable!C634,250)&\". . .\",OrigTable!C634))","v":""},{"$f":"IF(OrigTable!C634=\"\",\"\",ScriptText!$E$1&CHAR(10)&ScriptText!$C$1)","v":""},{"$f":"IF(OrigTable!D634=\"\",\"\",ScriptText!$B$1&CHAR(10)&ScriptText!$D$1)","v":""},{"$f":"IF(OrigTable!D634=\"\",\"\",TEXT(OrigTable!D634,\"00\"))","v":""},{"$f":"IF(OrigTable!D634=\"\",\"\",ScriptText!$E$1&CHAR(10)&ScriptText!$C$1)","v":""},{"$f":"IF(OrigTable!E634=\"\",\"\",ScriptText!$B$1&CHAR(10)&ScriptText!$D$1)","v":""},{"$f":"IF(OrigTable!E634=\"\",\"\",TEXT(OrigTable!E634,\"00\"))","v":""},{"$f":"IF(OrigTable!E634=\"\",\"\",ScriptText!$E$1&CHAR(10)&ScriptText!$C$1)","v":""},{"$f":"IF(OrigTable!F634=\"\",\"\",ScriptText!$B$1&CHAR(10)&ScriptText!$D$1)","v":""},{"$f":"IF(OrigTable!F634=\"\",\"\",TEXT(OrigTable!F634,\"00\"))","v":""},{"$f":"IF(OrigTable!F634=\"\",\"\",ScriptText!$E$1&CHAR(10)&ScriptText!$C$1)","v":""},{"$f":"IF(OrigTable!G634=\"\",\"\",ScriptText!$B$1&CHAR(10)&ScriptText!$D$1)","v":""},{"$f":"IF(OrigTable!G634=\"\",\"\",TEXT(OrigTable!G634,\"00\"))","v":""},{"$f":"IF(OrigTable!G634=\"\",\"\",ScriptText!$E$1&CHAR(10)&ScriptText!$C$1)","v":""},0]
["\n\n\n",{"$f":"IF(OrigTable!A635=\"\",\"\",ScriptText!$B$1&CHAR(10)&ScriptText!$D$1)","v":""},{"$f":"IF(OrigTable!A635=\"\",\"\",TEXT(OrigTable!A635,\"00\"))","v":""},{"$f":"IF(OrigTable!A635=\"\",\"\",ScriptText!$E$1&CHAR(10)&ScriptText!$C$1)","v":""},{"$f":"IF(OrigTable!B635=\"\",\"\",ScriptText!$B$1&CHAR(10)&ScriptText!$D$1)","v":""},{"$f":"IF(OrigTable!B635=\"\",\"\",TEXT(OrigTable!B635,\"00\"))","v":""},{"$f":"IF(OrigTable!B635=\"\",\"\",ScriptText!$E$1&CHAR(10)&ScriptText!C630)","v":""},{"$f":"IF(OrigTable!C635=\"\",\"\",ScriptText!$B$1&CHAR(10)&ScriptText!$D$1)","v":""},{"$f":"IF(OrigTable!C635=\"\",\"\",IF(LEN(OrigTable!C635)>255,LEFT(OrigTable!C635,250)&\". . .\",OrigTable!C635))","v":""},{"$f":"IF(OrigTable!C635=\"\",\"\",ScriptText!$E$1&CHAR(10)&ScriptText!$C$1)","v":""},{"$f":"IF(OrigTable!D635=\"\",\"\",ScriptText!$B$1&CHAR(10)&ScriptText!$D$1)","v":""},{"$f":"IF(OrigTable!D635=\"\",\"\",TEXT(OrigTable!D635,\"00\"))","v":""},{"$f":"IF(OrigTable!D635=\"\",\"\",ScriptText!$E$1&CHAR(10)&ScriptText!$C$1)","v":""},{"$f":"IF(OrigTable!E635=\"\",\"\",ScriptText!$B$1&CHAR(10)&ScriptText!$D$1)","v":""},{"$f":"IF(OrigTable!E635=\"\",\"\",TEXT(OrigTable!E635,\"00\"))","v":""},{"$f":"IF(OrigTable!E635=\"\",\"\",ScriptText!$E$1&CHAR(10)&ScriptText!$C$1)","v":""},{"$f":"IF(OrigTable!F635=\"\",\"\",ScriptText!$B$1&CHAR(10)&ScriptText!$D$1)","v":""},{"$f":"IF(OrigTable!F635=\"\",\"\",TEXT(OrigTable!F635,\"00\"))","v":""},{"$f":"IF(OrigTable!F635=\"\",\"\",ScriptText!$E$1&CHAR(10)&ScriptText!$C$1)","v":""},{"$f":"IF(OrigTable!G635=\"\",\"\",ScriptText!$B$1&CHAR(10)&ScriptText!$D$1)","v":""},{"$f":"IF(OrigTable!G635=\"\",\"\",TEXT(OrigTable!G635,\"00\"))","v":""},{"$f":"IF(OrigTable!G635=\"\",\"\",ScriptText!$E$1&CHAR(10)&ScriptText!$C$1)","v":""},0]
["\n\n\n",{"$f":"IF(OrigTable!A636=\"\",\"\",ScriptText!$B$1&CHAR(10)&ScriptText!$D$1)","v":""},{"$f":"IF(OrigTable!A636=\"\",\"\",TEXT(OrigTable!A636,\"00\"))","v":""},{"$f":"IF(OrigTable!A636=\"\",\"\",ScriptText!$E$1&CHAR(10)&ScriptText!$C$1)","v":""},{"$f":"IF(OrigTable!B636=\"\",\"\",ScriptText!$B$1&CHAR(10)&ScriptText!$D$1)","v":""},{"$f":"IF(OrigTable!B636=\"\",\"\",TEXT(OrigTable!B636,\"00\"))","v":""},{"$f":"IF(OrigTable!B636=\"\",\"\",ScriptText!$E$1&CHAR(10)&ScriptText!C631)","v":""},{"$f":"IF(OrigTable!C636=\"\",\"\",ScriptText!$B$1&CHAR(10)&ScriptText!$D$1)","v":""},{"$f":"IF(OrigTable!C636=\"\",\"\",IF(LEN(OrigTable!C636)>255,LEFT(OrigTable!C636,250)&\". . .\",OrigTable!C636))","v":""},{"$f":"IF(OrigTable!C636=\"\",\"\",ScriptText!$E$1&CHAR(10)&ScriptText!$C$1)","v":""},{"$f":"IF(OrigTable!D636=\"\",\"\",ScriptText!$B$1&CHAR(10)&ScriptText!$D$1)","v":""},{"$f":"IF(OrigTable!D636=\"\",\"\",TEXT(OrigTable!D636,\"00\"))","v":""},{"$f":"IF(OrigTable!D636=\"\",\"\",ScriptText!$E$1&CHAR(10)&ScriptText!$C$1)","v":""},{"$f":"IF(OrigTable!E636=\"\",\"\",ScriptText!$B$1&CHAR(10)&ScriptText!$D$1)","v":""},{"$f":"IF(OrigTable!E636=\"\",\"\",TEXT(OrigTable!E636,\"00\"))","v":""},{"$f":"IF(OrigTable!E636=\"\",\"\",ScriptText!$E$1&CHAR(10)&ScriptText!$C$1)","v":""},{"$f":"IF(OrigTable!F636=\"\",\"\",ScriptText!$B$1&CHAR(10)&ScriptText!$D$1)","v":""},{"$f":"IF(OrigTable!F636=\"\",\"\",TEXT(OrigTable!F636,\"00\"))","v":""},{"$f":"IF(OrigTable!F636=\"\",\"\",ScriptText!$E$1&CHAR(10)&ScriptText!$C$1)","v":""},{"$f":"IF(OrigTable!G636=\"\",\"\",ScriptText!$B$1&CHAR(10)&ScriptText!$D$1)","v":""},{"$f":"IF(OrigTable!G636=\"\",\"\",TEXT(OrigTable!G636,\"00\"))","v":""},{"$f":"IF(OrigTable!G636=\"\",\"\",ScriptText!$E$1&CHAR(10)&ScriptText!$C$1)","v":""},0]
["\n\n\n",{"$f":"IF(OrigTable!A637=\"\",\"\",ScriptText!$B$1&CHAR(10)&ScriptText!$D$1)","v":""},{"$f":"IF(OrigTable!A637=\"\",\"\",TEXT(OrigTable!A637,\"00\"))","v":""},{"$f":"IF(OrigTable!A637=\"\",\"\",ScriptText!$E$1&CHAR(10)&ScriptText!$C$1)","v":""},{"$f":"IF(OrigTable!B637=\"\",\"\",ScriptText!$B$1&CHAR(10)&ScriptText!$D$1)","v":""},{"$f":"IF(OrigTable!B637=\"\",\"\",TEXT(OrigTable!B637,\"00\"))","v":""},{"$f":"IF(OrigTable!B637=\"\",\"\",ScriptText!$E$1&CHAR(10)&ScriptText!C632)","v":""},{"$f":"IF(OrigTable!C637=\"\",\"\",ScriptText!$B$1&CHAR(10)&ScriptText!$D$1)","v":""},{"$f":"IF(OrigTable!C637=\"\",\"\",IF(LEN(OrigTable!C637)>255,LEFT(OrigTable!C637,250)&\". . .\",OrigTable!C637))","v":""},{"$f":"IF(OrigTable!C637=\"\",\"\",ScriptText!$E$1&CHAR(10)&ScriptText!$C$1)","v":""},{"$f":"IF(OrigTable!D637=\"\",\"\",ScriptText!$B$1&CHAR(10)&ScriptText!$D$1)","v":""},{"$f":"IF(OrigTable!D637=\"\",\"\",TEXT(OrigTable!D637,\"00\"))","v":""},{"$f":"IF(OrigTable!D637=\"\",\"\",ScriptText!$E$1&CHAR(10)&ScriptText!$C$1)","v":""},{"$f":"IF(OrigTable!E637=\"\",\"\",ScriptText!$B$1&CHAR(10)&ScriptText!$D$1)","v":""},{"$f":"IF(OrigTable!E637=\"\",\"\",TEXT(OrigTable!E637,\"00\"))","v":""},{"$f":"IF(OrigTable!E637=\"\",\"\",ScriptText!$E$1&CHAR(10)&ScriptText!$C$1)","v":""},{"$f":"IF(OrigTable!F637=\"\",\"\",ScriptText!$B$1&CHAR(10)&ScriptText!$D$1)","v":""},{"$f":"IF(OrigTable!F637=\"\",\"\",TEXT(OrigTable!F637,\"00\"))","v":""},{"$f":"IF(OrigTable!F637=\"\",\"\",ScriptText!$E$1&CHAR(10)&ScriptText!$C$1)","v":""},{"$f":"IF(OrigTable!G637=\"\",\"\",ScriptText!$B$1&CHAR(10)&ScriptText!$D$1)","v":""},{"$f":"IF(OrigTable!G637=\"\",\"\",TEXT(OrigTable!G637,\"00\"))","v":""},{"$f":"IF(OrigTable!G637=\"\",\"\",ScriptText!$E$1&CHAR(10)&ScriptText!$C$1)","v":""},0]
["\n\n\n",{"$f":"IF(OrigTable!A638=\"\",\"\",ScriptText!$B$1&CHAR(10)&ScriptText!$D$1)","v":""},{"$f":"IF(OrigTable!A638=\"\",\"\",TEXT(OrigTable!A638,\"00\"))","v":""},{"$f":"IF(OrigTable!A638=\"\",\"\",ScriptText!$E$1&CHAR(10)&ScriptText!$C$1)","v":""},{"$f":"IF(OrigTable!B638=\"\",\"\",ScriptText!$B$1&CHAR(10)&ScriptText!$D$1)","v":""},{"$f":"IF(OrigTable!B638=\"\",\"\",TEXT(OrigTable!B638,\"00\"))","v":""},{"$f":"IF(OrigTable!B638=\"\",\"\",ScriptText!$E$1&CHAR(10)&ScriptText!C633)","v":""},{"$f":"IF(OrigTable!C638=\"\",\"\",ScriptText!$B$1&CHAR(10)&ScriptText!$D$1)","v":""},{"$f":"IF(OrigTable!C638=\"\",\"\",IF(LEN(OrigTable!C638)>255,LEFT(OrigTable!C638,250)&\". . .\",OrigTable!C638))","v":""},{"$f":"IF(OrigTable!C638=\"\",\"\",ScriptText!$E$1&CHAR(10)&ScriptText!$C$1)","v":""},{"$f":"IF(OrigTable!D638=\"\",\"\",ScriptText!$B$1&CHAR(10)&ScriptText!$D$1)","v":""},{"$f":"IF(OrigTable!D638=\"\",\"\",TEXT(OrigTable!D638,\"00\"))","v":""},{"$f":"IF(OrigTable!D638=\"\",\"\",ScriptText!$E$1&CHAR(10)&ScriptText!$C$1)","v":""},{"$f":"IF(OrigTable!E638=\"\",\"\",ScriptText!$B$1&CHAR(10)&ScriptText!$D$1)","v":""},{"$f":"IF(OrigTable!E638=\"\",\"\",TEXT(OrigTable!E638,\"00\"))","v":""},{"$f":"IF(OrigTable!E638=\"\",\"\",ScriptText!$E$1&CHAR(10)&ScriptText!$C$1)","v":""},{"$f":"IF(OrigTable!F638=\"\",\"\",ScriptText!$B$1&CHAR(10)&ScriptText!$D$1)","v":""},{"$f":"IF(OrigTable!F638=\"\",\"\",TEXT(OrigTable!F638,\"00\"))","v":""},{"$f":"IF(OrigTable!F638=\"\",\"\",ScriptText!$E$1&CHAR(10)&ScriptText!$C$1)","v":""},{"$f":"IF(OrigTable!G638=\"\",\"\",ScriptText!$B$1&CHAR(10)&ScriptText!$D$1)","v":""},{"$f":"IF(OrigTable!G638=\"\",\"\",TEXT(OrigTable!G638,\"00\"))","v":""},{"$f":"IF(OrigTable!G638=\"\",\"\",ScriptText!$E$1&CHAR(10)&ScriptText!$C$1)","v":""},0]
["\n\n\n",{"$f":"IF(OrigTable!A639=\"\",\"\",ScriptText!$B$1&CHAR(10)&ScriptText!$D$1)","v":""},{"$f":"IF(OrigTable!A639=\"\",\"\",TEXT(OrigTable!A639,\"00\"))","v":""},{"$f":"IF(OrigTable!A639=\"\",\"\",ScriptText!$E$1&CHAR(10)&ScriptText!$C$1)","v":""},{"$f":"IF(OrigTable!B639=\"\",\"\",ScriptText!$B$1&CHAR(10)&ScriptText!$D$1)","v":""},{"$f":"IF(OrigTable!B639=\"\",\"\",TEXT(OrigTable!B639,\"00\"))","v":""},{"$f":"IF(OrigTable!B639=\"\",\"\",ScriptText!$E$1&CHAR(10)&ScriptText!C634)","v":""},{"$f":"IF(OrigTable!C639=\"\",\"\",ScriptText!$B$1&CHAR(10)&ScriptText!$D$1)","v":""},{"$f":"IF(OrigTable!C639=\"\",\"\",IF(LEN(OrigTable!C639)>255,LEFT(OrigTable!C639,250)&\". . .\",OrigTable!C639))","v":""},{"$f":"IF(OrigTable!C639=\"\",\"\",ScriptText!$E$1&CHAR(10)&ScriptText!$C$1)","v":""},{"$f":"IF(OrigTable!D639=\"\",\"\",ScriptText!$B$1&CHAR(10)&ScriptText!$D$1)","v":""},{"$f":"IF(OrigTable!D639=\"\",\"\",TEXT(OrigTable!D639,\"00\"))","v":""},{"$f":"IF(OrigTable!D639=\"\",\"\",ScriptText!$E$1&CHAR(10)&ScriptText!$C$1)","v":""},{"$f":"IF(OrigTable!E639=\"\",\"\",ScriptText!$B$1&CHAR(10)&ScriptText!$D$1)","v":""},{"$f":"IF(OrigTable!E639=\"\",\"\",TEXT(OrigTable!E639,\"00\"))","v":""},{"$f":"IF(OrigTable!E639=\"\",\"\",ScriptText!$E$1&CHAR(10)&ScriptText!$C$1)","v":""},{"$f":"IF(OrigTable!F639=\"\",\"\",ScriptText!$B$1&CHAR(10)&ScriptText!$D$1)","v":""},{"$f":"IF(OrigTable!F639=\"\",\"\",TEXT(OrigTable!F639,\"00\"))","v":""},{"$f":"IF(OrigTable!F639=\"\",\"\",ScriptText!$E$1&CHAR(10)&ScriptText!$C$1)","v":""},{"$f":"IF(OrigTable!G639=\"\",\"\",ScriptText!$B$1&CHAR(10)&ScriptText!$D$1)","v":""},{"$f":"IF(OrigTable!G639=\"\",\"\",TEXT(OrigTable!G639,\"00\"))","v":""},{"$f":"IF(OrigTable!G639=\"\",\"\",ScriptText!$E$1&CHAR(10)&ScriptText!$C$1)","v":""},0]
["\n\n\n",{"$f":"IF(OrigTable!A640=\"\",\"\",ScriptText!$B$1&CHAR(10)&ScriptText!$D$1)","v":""},{"$f":"IF(OrigTable!A640=\"\",\"\",TEXT(OrigTable!A640,\"00\"))","v":""},{"$f":"IF(OrigTable!A640=\"\",\"\",ScriptText!$E$1&CHAR(10)&ScriptText!$C$1)","v":""},{"$f":"IF(OrigTable!B640=\"\",\"\",ScriptText!$B$1&CHAR(10)&ScriptText!$D$1)","v":""},{"$f":"IF(OrigTable!B640=\"\",\"\",TEXT(OrigTable!B640,\"00\"))","v":""},{"$f":"IF(OrigTable!B640=\"\",\"\",ScriptText!$E$1&CHAR(10)&ScriptText!C635)","v":""},{"$f":"IF(OrigTable!C640=\"\",\"\",ScriptText!$B$1&CHAR(10)&ScriptText!$D$1)","v":""},{"$f":"IF(OrigTable!C640=\"\",\"\",IF(LEN(OrigTable!C640)>255,LEFT(OrigTable!C640,250)&\". . .\",OrigTable!C640))","v":""},{"$f":"IF(OrigTable!C640=\"\",\"\",ScriptText!$E$1&CHAR(10)&ScriptText!$C$1)","v":""},{"$f":"IF(OrigTable!D640=\"\",\"\",ScriptText!$B$1&CHAR(10)&ScriptText!$D$1)","v":""},{"$f":"IF(OrigTable!D640=\"\",\"\",TEXT(OrigTable!D640,\"00\"))","v":""},{"$f":"IF(OrigTable!D640=\"\",\"\",ScriptText!$E$1&CHAR(10)&ScriptText!$C$1)","v":""},{"$f":"IF(OrigTable!E640=\"\",\"\",ScriptText!$B$1&CHAR(10)&ScriptText!$D$1)","v":""},{"$f":"IF(OrigTable!E640=\"\",\"\",TEXT(OrigTable!E640,\"00\"))","v":""},{"$f":"IF(OrigTable!E640=\"\",\"\",ScriptText!$E$1&CHAR(10)&ScriptText!$C$1)","v":""},{"$f":"IF(OrigTable!F640=\"\",\"\",ScriptText!$B$1&CHAR(10)&ScriptText!$D$1)","v":""},{"$f":"IF(OrigTable!F640=\"\",\"\",TEXT(OrigTable!F640,\"00\"))","v":""},{"$f":"IF(OrigTable!F640=\"\",\"\",ScriptText!$E$1&CHAR(10)&ScriptText!$C$1)","v":""},{"$f":"IF(OrigTable!G640=\"\",\"\",ScriptText!$B$1&CHAR(10)&ScriptText!$D$1)","v":""},{"$f":"IF(OrigTable!G640=\"\",\"\",TEXT(OrigTable!G640,\"00\"))","v":""},{"$f":"IF(OrigTable!G640=\"\",\"\",ScriptText!$E$1&CHAR(10)&ScriptText!$C$1)","v":""},0]
["\n\n\n",{"$f":"IF(OrigTable!A641=\"\",\"\",ScriptText!$B$1&CHAR(10)&ScriptText!$D$1)","v":""},{"$f":"IF(OrigTable!A641=\"\",\"\",TEXT(OrigTable!A641,\"00\"))","v":""},{"$f":"IF(OrigTable!A641=\"\",\"\",ScriptText!$E$1&CHAR(10)&ScriptText!$C$1)","v":""},{"$f":"IF(OrigTable!B641=\"\",\"\",ScriptText!$B$1&CHAR(10)&ScriptText!$D$1)","v":""},{"$f":"IF(OrigTable!B641=\"\",\"\",TEXT(OrigTable!B641,\"00\"))","v":""},{"$f":"IF(OrigTable!B641=\"\",\"\",ScriptText!$E$1&CHAR(10)&ScriptText!C636)","v":""},{"$f":"IF(OrigTable!C641=\"\",\"\",ScriptText!$B$1&CHAR(10)&ScriptText!$D$1)","v":""},{"$f":"IF(OrigTable!C641=\"\",\"\",IF(LEN(OrigTable!C641)>255,LEFT(OrigTable!C641,250)&\". . .\",OrigTable!C641))","v":""},{"$f":"IF(OrigTable!C641=\"\",\"\",ScriptText!$E$1&CHAR(10)&ScriptText!$C$1)","v":""},{"$f":"IF(OrigTable!D641=\"\",\"\",ScriptText!$B$1&CHAR(10)&ScriptText!$D$1)","v":""},{"$f":"IF(OrigTable!D641=\"\",\"\",TEXT(OrigTable!D641,\"00\"))","v":""},{"$f":"IF(OrigTable!D641=\"\",\"\",ScriptText!$E$1&CHAR(10)&ScriptText!$C$1)","v":""},{"$f":"IF(OrigTable!E641=\"\",\"\",ScriptText!$B$1&CHAR(10)&ScriptText!$D$1)","v":""},{"$f":"IF(OrigTable!E641=\"\",\"\",TEXT(OrigTable!E641,\"00\"))","v":""},{"$f":"IF(OrigTable!E641=\"\",\"\",ScriptText!$E$1&CHAR(10)&ScriptText!$C$1)","v":""},{"$f":"IF(OrigTable!F641=\"\",\"\",ScriptText!$B$1&CHAR(10)&ScriptText!$D$1)","v":""},{"$f":"IF(OrigTable!F641=\"\",\"\",TEXT(OrigTable!F641,\"00\"))","v":""},{"$f":"IF(OrigTable!F641=\"\",\"\",ScriptText!$E$1&CHAR(10)&ScriptText!$C$1)","v":""},{"$f":"IF(OrigTable!G641=\"\",\"\",ScriptText!$B$1&CHAR(10)&ScriptText!$D$1)","v":""},{"$f":"IF(OrigTable!G641=\"\",\"\",TEXT(OrigTable!G641,\"00\"))","v":""},{"$f":"IF(OrigTable!G641=\"\",\"\",ScriptText!$E$1&CHAR(10)&ScriptText!$C$1)","v":""},0]
["\n\n\n",{"$f":"IF(OrigTable!A642=\"\",\"\",ScriptText!$B$1&CHAR(10)&ScriptText!$D$1)","v":""},{"$f":"IF(OrigTable!A642=\"\",\"\",TEXT(OrigTable!A642,\"00\"))","v":""},{"$f":"IF(OrigTable!A642=\"\",\"\",ScriptText!$E$1&CHAR(10)&ScriptText!$C$1)","v":""},{"$f":"IF(OrigTable!B642=\"\",\"\",ScriptText!$B$1&CHAR(10)&ScriptText!$D$1)","v":""},{"$f":"IF(OrigTable!B642=\"\",\"\",TEXT(OrigTable!B642,\"00\"))","v":""},{"$f":"IF(OrigTable!B642=\"\",\"\",ScriptText!$E$1&CHAR(10)&ScriptText!C637)","v":""},{"$f":"IF(OrigTable!C642=\"\",\"\",ScriptText!$B$1&CHAR(10)&ScriptText!$D$1)","v":""},{"$f":"IF(OrigTable!C642=\"\",\"\",IF(LEN(OrigTable!C642)>255,LEFT(OrigTable!C642,250)&\". . .\",OrigTable!C642))","v":""},{"$f":"IF(OrigTable!C642=\"\",\"\",ScriptText!$E$1&CHAR(10)&ScriptText!$C$1)","v":""},{"$f":"IF(OrigTable!D642=\"\",\"\",ScriptText!$B$1&CHAR(10)&ScriptText!$D$1)","v":""},{"$f":"IF(OrigTable!D642=\"\",\"\",TEXT(OrigTable!D642,\"00\"))","v":""},{"$f":"IF(OrigTable!D642=\"\",\"\",ScriptText!$E$1&CHAR(10)&ScriptText!$C$1)","v":""},{"$f":"IF(OrigTable!E642=\"\",\"\",ScriptText!$B$1&CHAR(10)&ScriptText!$D$1)","v":""},{"$f":"IF(OrigTable!E642=\"\",\"\",TEXT(OrigTable!E642,\"00\"))","v":""},{"$f":"IF(OrigTable!E642=\"\",\"\",ScriptText!$E$1&CHAR(10)&ScriptText!$C$1)","v":""},{"$f":"IF(OrigTable!F642=\"\",\"\",ScriptText!$B$1&CHAR(10)&ScriptText!$D$1)","v":""},{"$f":"IF(OrigTable!F642=\"\",\"\",TEXT(OrigTable!F642,\"00\"))","v":""},{"$f":"IF(OrigTable!F642=\"\",\"\",ScriptText!$E$1&CHAR(10)&ScriptText!$C$1)","v":""},{"$f":"IF(OrigTable!G642=\"\",\"\",ScriptText!$B$1&CHAR(10)&ScriptText!$D$1)","v":""},{"$f":"IF(OrigTable!G642=\"\",\"\",TEXT(OrigTable!G642,\"00\"))","v":""},{"$f":"IF(OrigTable!G642=\"\",\"\",ScriptText!$E$1&CHAR(10)&ScriptText!$C$1)","v":""},0]
["\n\n\n",{"$f":"IF(OrigTable!A643=\"\",\"\",ScriptText!$B$1&CHAR(10)&ScriptText!$D$1)","v":""},{"$f":"IF(OrigTable!A643=\"\",\"\",TEXT(OrigTable!A643,\"00\"))","v":""},{"$f":"IF(OrigTable!A643=\"\",\"\",ScriptText!$E$1&CHAR(10)&ScriptText!$C$1)","v":""},{"$f":"IF(OrigTable!B643=\"\",\"\",ScriptText!$B$1&CHAR(10)&ScriptText!$D$1)","v":""},{"$f":"IF(OrigTable!B643=\"\",\"\",TEXT(OrigTable!B643,\"00\"))","v":""},{"$f":"IF(OrigTable!B643=\"\",\"\",ScriptText!$E$1&CHAR(10)&ScriptText!C638)","v":""},{"$f":"IF(OrigTable!C643=\"\",\"\",ScriptText!$B$1&CHAR(10)&ScriptText!$D$1)","v":""},{"$f":"IF(OrigTable!C643=\"\",\"\",IF(LEN(OrigTable!C643)>255,LEFT(OrigTable!C643,250)&\". . .\",OrigTable!C643))","v":""},{"$f":"IF(OrigTable!C643=\"\",\"\",ScriptText!$E$1&CHAR(10)&ScriptText!$C$1)","v":""},{"$f":"IF(OrigTable!D643=\"\",\"\",ScriptText!$B$1&CHAR(10)&ScriptText!$D$1)","v":""},{"$f":"IF(OrigTable!D643=\"\",\"\",TEXT(OrigTable!D643,\"00\"))","v":""},{"$f":"IF(OrigTable!D643=\"\",\"\",ScriptText!$E$1&CHAR(10)&ScriptText!$C$1)","v":""},{"$f":"IF(OrigTable!E643=\"\",\"\",ScriptText!$B$1&CHAR(10)&ScriptText!$D$1)","v":""},{"$f":"IF(OrigTable!E643=\"\",\"\",TEXT(OrigTable!E643,\"00\"))","v":""},{"$f":"IF(OrigTable!E643=\"\",\"\",ScriptText!$E$1&CHAR(10)&ScriptText!$C$1)","v":""},{"$f":"IF(OrigTable!F643=\"\",\"\",ScriptText!$B$1&CHAR(10)&ScriptText!$D$1)","v":""},{"$f":"IF(OrigTable!F643=\"\",\"\",TEXT(OrigTable!F643,\"00\"))","v":""},{"$f":"IF(OrigTable!F643=\"\",\"\",ScriptText!$E$1&CHAR(10)&ScriptText!$C$1)","v":""},{"$f":"IF(OrigTable!G643=\"\",\"\",ScriptText!$B$1&CHAR(10)&ScriptText!$D$1)","v":""},{"$f":"IF(OrigTable!G643=\"\",\"\",TEXT(OrigTable!G643,\"00\"))","v":""},{"$f":"IF(OrigTable!G643=\"\",\"\",ScriptText!$E$1&CHAR(10)&ScriptText!$C$1)","v":""},0]
["\n\n\n",{"$f":"IF(OrigTable!A644=\"\",\"\",ScriptText!$B$1&CHAR(10)&ScriptText!$D$1)","v":""},{"$f":"IF(OrigTable!A644=\"\",\"\",TEXT(OrigTable!A644,\"00\"))","v":""},{"$f":"IF(OrigTable!A644=\"\",\"\",ScriptText!$E$1&CHAR(10)&ScriptText!$C$1)","v":""},{"$f":"IF(OrigTable!B644=\"\",\"\",ScriptText!$B$1&CHAR(10)&ScriptText!$D$1)","v":""},{"$f":"IF(OrigTable!B644=\"\",\"\",TEXT(OrigTable!B644,\"00\"))","v":""},{"$f":"IF(OrigTable!B644=\"\",\"\",ScriptText!$E$1&CHAR(10)&ScriptText!C639)","v":""},{"$f":"IF(OrigTable!C644=\"\",\"\",ScriptText!$B$1&CHAR(10)&ScriptText!$D$1)","v":""},{"$f":"IF(OrigTable!C644=\"\",\"\",IF(LEN(OrigTable!C644)>255,LEFT(OrigTable!C644,250)&\". . .\",OrigTable!C644))","v":""},{"$f":"IF(OrigTable!C644=\"\",\"\",ScriptText!$E$1&CHAR(10)&ScriptText!$C$1)","v":""},{"$f":"IF(OrigTable!D644=\"\",\"\",ScriptText!$B$1&CHAR(10)&ScriptText!$D$1)","v":""},{"$f":"IF(OrigTable!D644=\"\",\"\",TEXT(OrigTable!D644,\"00\"))","v":""},{"$f":"IF(OrigTable!D644=\"\",\"\",ScriptText!$E$1&CHAR(10)&ScriptText!$C$1)","v":""},{"$f":"IF(OrigTable!E644=\"\",\"\",ScriptText!$B$1&CHAR(10)&ScriptText!$D$1)","v":""},{"$f":"IF(OrigTable!E644=\"\",\"\",TEXT(OrigTable!E644,\"00\"))","v":""},{"$f":"IF(OrigTable!E644=\"\",\"\",ScriptText!$E$1&CHAR(10)&ScriptText!$C$1)","v":""},{"$f":"IF(OrigTable!F644=\"\",\"\",ScriptText!$B$1&CHAR(10)&ScriptText!$D$1)","v":""},{"$f":"IF(OrigTable!F644=\"\",\"\",TEXT(OrigTable!F644,\"00\"))","v":""},{"$f":"IF(OrigTable!F644=\"\",\"\",ScriptText!$E$1&CHAR(10)&ScriptText!$C$1)","v":""},{"$f":"IF(OrigTable!G644=\"\",\"\",ScriptText!$B$1&CHAR(10)&ScriptText!$D$1)","v":""},{"$f":"IF(OrigTable!G644=\"\",\"\",TEXT(OrigTable!G644,\"00\"))","v":""},{"$f":"IF(OrigTable!G644=\"\",\"\",ScriptText!$E$1&CHAR(10)&ScriptText!$C$1)","v":""},0]
["\n\n\n",{"$f":"IF(OrigTable!A645=\"\",\"\",ScriptText!$B$1&CHAR(10)&ScriptText!$D$1)","v":""},{"$f":"IF(OrigTable!A645=\"\",\"\",TEXT(OrigTable!A645,\"00\"))","v":""},{"$f":"IF(OrigTable!A645=\"\",\"\",ScriptText!$E$1&CHAR(10)&ScriptText!$C$1)","v":""},{"$f":"IF(OrigTable!B645=\"\",\"\",ScriptText!$B$1&CHAR(10)&ScriptText!$D$1)","v":""},{"$f":"IF(OrigTable!B645=\"\",\"\",TEXT(OrigTable!B645,\"00\"))","v":""},{"$f":"IF(OrigTable!B645=\"\",\"\",ScriptText!$E$1&CHAR(10)&ScriptText!C640)","v":""},{"$f":"IF(OrigTable!C645=\"\",\"\",ScriptText!$B$1&CHAR(10)&ScriptText!$D$1)","v":""},{"$f":"IF(OrigTable!C645=\"\",\"\",IF(LEN(OrigTable!C645)>255,LEFT(OrigTable!C645,250)&\". . .\",OrigTable!C645))","v":""},{"$f":"IF(OrigTable!C645=\"\",\"\",ScriptText!$E$1&CHAR(10)&ScriptText!$C$1)","v":""},{"$f":"IF(OrigTable!D645=\"\",\"\",ScriptText!$B$1&CHAR(10)&ScriptText!$D$1)","v":""},{"$f":"IF(OrigTable!D645=\"\",\"\",TEXT(OrigTable!D645,\"00\"))","v":""},{"$f":"IF(OrigTable!D645=\"\",\"\",ScriptText!$E$1&CHAR(10)&ScriptText!$C$1)","v":""},{"$f":"IF(OrigTable!E645=\"\",\"\",ScriptText!$B$1&CHAR(10)&ScriptText!$D$1)","v":""},{"$f":"IF(OrigTable!E645=\"\",\"\",TEXT(OrigTable!E645,\"00\"))","v":""},{"$f":"IF(OrigTable!E645=\"\",\"\",ScriptText!$E$1&CHAR(10)&ScriptText!$C$1)","v":""},{"$f":"IF(OrigTable!F645=\"\",\"\",ScriptText!$B$1&CHAR(10)&ScriptText!$D$1)","v":""},{"$f":"IF(OrigTable!F645=\"\",\"\",TEXT(OrigTable!F645,\"00\"))","v":""},{"$f":"IF(OrigTable!F645=\"\",\"\",ScriptText!$E$1&CHAR(10)&ScriptText!$C$1)","v":""},{"$f":"IF(OrigTable!G645=\"\",\"\",ScriptText!$B$1&CHAR(10)&ScriptText!$D$1)","v":""},{"$f":"IF(OrigTable!G645=\"\",\"\",TEXT(OrigTable!G645,\"00\"))","v":""},{"$f":"IF(OrigTable!G645=\"\",\"\",ScriptText!$E$1&CHAR(10)&ScriptText!$C$1)","v":""},0]
["\n\n\n",{"$f":"IF(OrigTable!A646=\"\",\"\",ScriptText!$B$1&CHAR(10)&ScriptText!$D$1)","v":""},{"$f":"IF(OrigTable!A646=\"\",\"\",TEXT(OrigTable!A646,\"00\"))","v":""},{"$f":"IF(OrigTable!A646=\"\",\"\",ScriptText!$E$1&CHAR(10)&ScriptText!$C$1)","v":""},{"$f":"IF(OrigTable!B646=\"\",\"\",ScriptText!$B$1&CHAR(10)&ScriptText!$D$1)","v":""},{"$f":"IF(OrigTable!B646=\"\",\"\",TEXT(OrigTable!B646,\"00\"))","v":""},{"$f":"IF(OrigTable!B646=\"\",\"\",ScriptText!$E$1&CHAR(10)&ScriptText!C641)","v":""},{"$f":"IF(OrigTable!C646=\"\",\"\",ScriptText!$B$1&CHAR(10)&ScriptText!$D$1)","v":""},{"$f":"IF(OrigTable!C646=\"\",\"\",IF(LEN(OrigTable!C646)>255,LEFT(OrigTable!C646,250)&\". . .\",OrigTable!C646))","v":""},{"$f":"IF(OrigTable!C646=\"\",\"\",ScriptText!$E$1&CHAR(10)&ScriptText!$C$1)","v":""},{"$f":"IF(OrigTable!D646=\"\",\"\",ScriptText!$B$1&CHAR(10)&ScriptText!$D$1)","v":""},{"$f":"IF(OrigTable!D646=\"\",\"\",TEXT(OrigTable!D646,\"00\"))","v":""},{"$f":"IF(OrigTable!D646=\"\",\"\",ScriptText!$E$1&CHAR(10)&ScriptText!$C$1)","v":""},{"$f":"IF(OrigTable!E646=\"\",\"\",ScriptText!$B$1&CHAR(10)&ScriptText!$D$1)","v":""},{"$f":"IF(OrigTable!E646=\"\",\"\",TEXT(OrigTable!E646,\"00\"))","v":""},{"$f":"IF(OrigTable!E646=\"\",\"\",ScriptText!$E$1&CHAR(10)&ScriptText!$C$1)","v":""},{"$f":"IF(OrigTable!F646=\"\",\"\",ScriptText!$B$1&CHAR(10)&ScriptText!$D$1)","v":""},{"$f":"IF(OrigTable!F646=\"\",\"\",TEXT(OrigTable!F646,\"00\"))","v":""},{"$f":"IF(OrigTable!F646=\"\",\"\",ScriptText!$E$1&CHAR(10)&ScriptText!$C$1)","v":""},{"$f":"IF(OrigTable!G646=\"\",\"\",ScriptText!$B$1&CHAR(10)&ScriptText!$D$1)","v":""},{"$f":"IF(OrigTable!G646=\"\",\"\",TEXT(OrigTable!G646,\"00\"))","v":""},{"$f":"IF(OrigTable!G646=\"\",\"\",ScriptText!$E$1&CHAR(10)&ScriptText!$C$1)","v":""},{"$f":"IF(LEN(A646)>3,ROW(),0)","v":0}]
["\n\n\n",{"$f":"IF(OrigTable!A647=\"\",\"\",ScriptText!$B$1&CHAR(10)&ScriptText!$D$1)","v":""},{"$f":"IF(OrigTable!A647=\"\",\"\",TEXT(OrigTable!A647,\"00\"))","v":""},{"$f":"IF(OrigTable!A647=\"\",\"\",ScriptText!$E$1&CHAR(10)&ScriptText!$C$1)","v":""},{"$f":"IF(OrigTable!B647=\"\",\"\",ScriptText!$B$1&CHAR(10)&ScriptText!$D$1)","v":""},{"$f":"IF(OrigTable!B647=\"\",\"\",TEXT(OrigTable!B647,\"00\"))","v":""},{"$f":"IF(OrigTable!B647=\"\",\"\",ScriptText!$E$1&CHAR(10)&ScriptText!C642)","v":""},{"$f":"IF(OrigTable!C647=\"\",\"\",ScriptText!$B$1&CHAR(10)&ScriptText!$D$1)","v":""},{"$f":"IF(OrigTable!C647=\"\",\"\",IF(LEN(OrigTable!C647)>255,LEFT(OrigTable!C647,250)&\". . .\",OrigTable!C647))","v":""},{"$f":"IF(OrigTable!C647=\"\",\"\",ScriptText!$E$1&CHAR(10)&ScriptText!$C$1)","v":""},{"$f":"IF(OrigTable!D647=\"\",\"\",ScriptText!$B$1&CHAR(10)&ScriptText!$D$1)","v":""},{"$f":"IF(OrigTable!D647=\"\",\"\",TEXT(OrigTable!D647,\"00\"))","v":""},{"$f":"IF(OrigTable!D647=\"\",\"\",ScriptText!$E$1&CHAR(10)&ScriptText!$C$1)","v":""},{"$f":"IF(OrigTable!E647=\"\",\"\",ScriptText!$B$1&CHAR(10)&ScriptText!$D$1)","v":""},{"$f":"IF(OrigTable!E647=\"\",\"\",TEXT(OrigTable!E647,\"00\"))","v":""},{"$f":"IF(OrigTable!E647=\"\",\"\",ScriptText!$E$1&CHAR(10)&ScriptText!$C$1)","v":""},{"$f":"IF(OrigTable!F647=\"\",\"\",ScriptText!$B$1&CHAR(10)&ScriptText!$D$1)","v":""},{"$f":"IF(OrigTable!F647=\"\",\"\",TEXT(OrigTable!F647,\"00\"))","v":""},{"$f":"IF(OrigTable!F647=\"\",\"\",ScriptText!$E$1&CHAR(10)&ScriptText!$C$1)","v":""},{"$f":"IF(OrigTable!G647=\"\",\"\",ScriptText!$B$1&CHAR(10)&ScriptText!$D$1)","v":""},{"$f":"IF(OrigTable!G647=\"\",\"\",TEXT(OrigTable!G647,\"00\"))","v":""},{"$f":"IF(OrigTable!G647=\"\",\"\",ScriptText!$E$1&CHAR(10)&ScriptText!$C$1)","v":""},0]
["\n\n\n",{"$f":"IF(OrigTable!A648=\"\",\"\",ScriptText!$B$1&CHAR(10)&ScriptText!$D$1)","v":""},{"$f":"IF(OrigTable!A648=\"\",\"\",TEXT(OrigTable!A648,\"00\"))","v":""},{"$f":"IF(OrigTable!A648=\"\",\"\",ScriptText!$E$1&CHAR(10)&ScriptText!$C$1)","v":""},{"$f":"IF(OrigTable!B648=\"\",\"\",ScriptText!$B$1&CHAR(10)&ScriptText!$D$1)","v":""},{"$f":"IF(OrigTable!B648=\"\",\"\",TEXT(OrigTable!B648,\"00\"))","v":""},{"$f":"IF(OrigTable!B648=\"\",\"\",ScriptText!$E$1&CHAR(10)&ScriptText!C643)","v":""},{"$f":"IF(OrigTable!C648=\"\",\"\",ScriptText!$B$1&CHAR(10)&ScriptText!$D$1)","v":""},{"$f":"IF(OrigTable!C648=\"\",\"\",IF(LEN(OrigTable!C648)>255,LEFT(OrigTable!C648,250)&\". . .\",OrigTable!C648))","v":""},{"$f":"IF(OrigTable!C648=\"\",\"\",ScriptText!$E$1&CHAR(10)&ScriptText!$C$1)","v":""},{"$f":"IF(OrigTable!D648=\"\",\"\",ScriptText!$B$1&CHAR(10)&ScriptText!$D$1)","v":""},{"$f":"IF(OrigTable!D648=\"\",\"\",TEXT(OrigTable!D648,\"00\"))","v":""},{"$f":"IF(OrigTable!D648=\"\",\"\",ScriptText!$E$1&CHAR(10)&ScriptText!$C$1)","v":""},{"$f":"IF(OrigTable!E648=\"\",\"\",ScriptText!$B$1&CHAR(10)&ScriptText!$D$1)","v":""},{"$f":"IF(OrigTable!E648=\"\",\"\",TEXT(OrigTable!E648,\"00\"))","v":""},{"$f":"IF(OrigTable!E648=\"\",\"\",ScriptText!$E$1&CHAR(10)&ScriptText!$C$1)","v":""},{"$f":"IF(OrigTable!F648=\"\",\"\",ScriptText!$B$1&CHAR(10)&ScriptText!$D$1)","v":""},{"$f":"IF(OrigTable!F648=\"\",\"\",TEXT(OrigTable!F648,\"00\"))","v":""},{"$f":"IF(OrigTable!F648=\"\",\"\",ScriptText!$E$1&CHAR(10)&ScriptText!$C$1)","v":""},{"$f":"IF(OrigTable!G648=\"\",\"\",ScriptText!$B$1&CHAR(10)&ScriptText!$D$1)","v":""},{"$f":"IF(OrigTable!G648=\"\",\"\",TEXT(OrigTable!G648,\"00\"))","v":""},{"$f":"IF(OrigTable!G648=\"\",\"\",ScriptText!$E$1&CHAR(10)&ScriptText!$C$1)","v":""},0]
[{"$f":"_xlfn.TEXTJOIN(\"\",TRUE,B649:D649)&CHAR(10)&_xlfn.TEXTJOIN(\"\",TRUE,E649:G649)&CHAR(10)&_xlfn.TEXTJOIN(\"\",TRUE,H649:J649)&CHAR(10)&_xlfn.TEXTJOIN(\"\",TRUE,K649:M649)&_xlfn.TEXTJOIN(\"\",TRUE,N649:P649)&_xlfn.TEXTJOIN(\"\",TRUE,Q649:S649)&_xlfn.TEXTJOIN(\"\",TRUE,T649:V649)","v":"\n\n\n"},{"$f":"IF(OrigTable!A649=\"\",\"\",ScriptText!$B$1&CHAR(10)&ScriptText!$D$1)","v":""},{"$f":"IF(OrigTable!A649=\"\",\"\",TEXT(OrigTable!A649,\"00\"))","v":""},{"$f":"IF(OrigTable!A649=\"\",\"\",ScriptText!$E$1&CHAR(10)&ScriptText!$C$1)","v":""},{"$f":"IF(OrigTable!B649=\"\",\"\",ScriptText!$B$1&CHAR(10)&ScriptText!$D$1)","v":""},{"$f":"IF(OrigTable!B649=\"\",\"\",TEXT(OrigTable!B649,\"00\"))","v":""},{"$f":"IF(OrigTable!B649=\"\",\"\",ScriptText!$E$1&CHAR(10)&ScriptText!C644)","v":""},{"$f":"IF(OrigTable!C649=\"\",\"\",ScriptText!$B$1&CHAR(10)&ScriptText!$D$1)","v":""},{"$f":"IF(OrigTable!C649=\"\",\"\",IF(LEN(OrigTable!C649)>255,LEFT(OrigTable!C649,250)&\". . .\",OrigTable!C649))","v":""},{"$f":"IF(OrigTable!C649=\"\",\"\",ScriptText!$E$1&CHAR(10)&ScriptText!$C$1)","v":""},{"$f":"IF(OrigTable!D649=\"\",\"\",ScriptText!$B$1&CHAR(10)&ScriptText!$D$1)","v":""},{"$f":"IF(OrigTable!D649=\"\",\"\",TEXT(OrigTable!D649,\"00\"))","v":""},{"$f":"IF(OrigTable!D649=\"\",\"\",ScriptText!$E$1&CHAR(10)&ScriptText!$C$1)","v":""},{"$f":"IF(OrigTable!E649=\"\",\"\",ScriptText!$B$1&CHAR(10)&ScriptText!$D$1)","v":""},{"$f":"IF(OrigTable!E649=\"\",\"\",TEXT(OrigTable!E649,\"00\"))","v":""},{"$f":"IF(OrigTable!E649=\"\",\"\",ScriptText!$E$1&CHAR(10)&ScriptText!$C$1)","v":""},{"$f":"IF(OrigTable!F649=\"\",\"\",ScriptText!$B$1&CHAR(10)&ScriptText!$D$1)","v":""},{"$f":"IF(OrigTable!F649=\"\",\"\",TEXT(OrigTable!F649,\"00\"))","v":""},{"$f":"IF(OrigTable!F649=\"\",\"\",ScriptText!$E$1&CHAR(10)&ScriptText!$C$1)","v":""},{"$f":"IF(OrigTable!G649=\"\",\"\",ScriptText!$B$1&CHAR(10)&ScriptText!$D$1)","v":""},{"$f":"IF(OrigTable!G649=\"\",\"\",TEXT(OrigTable!G649,\"00\"))","v":""},{"$f":"IF(OrigTable!G649=\"\",\"\",ScriptText!$E$1&CHAR(10)&ScriptText!$C$1)","v":""},0]
["\n\n\n",{"$f":"IF(OrigTable!A650=\"\",\"\",ScriptText!$B$1&CHAR(10)&ScriptText!$D$1)","v":""},{"$f":"IF(OrigTable!A650=\"\",\"\",TEXT(OrigTable!A650,\"00\"))","v":""},{"$f":"IF(OrigTable!A650=\"\",\"\",ScriptText!$E$1&CHAR(10)&ScriptText!$C$1)","v":""},{"$f":"IF(OrigTable!B650=\"\",\"\",ScriptText!$B$1&CHAR(10)&ScriptText!$D$1)","v":""},{"$f":"IF(OrigTable!B650=\"\",\"\",TEXT(OrigTable!B650,\"00\"))","v":""},{"$f":"IF(OrigTable!B650=\"\",\"\",ScriptText!$E$1&CHAR(10)&ScriptText!C645)","v":""},{"$f":"IF(OrigTable!C650=\"\",\"\",ScriptText!$B$1&CHAR(10)&ScriptText!$D$1)","v":""},{"$f":"IF(OrigTable!C650=\"\",\"\",IF(LEN(OrigTable!C650)>255,LEFT(OrigTable!C650,250)&\". . .\",OrigTable!C650))","v":""},{"$f":"IF(OrigTable!C650=\"\",\"\",ScriptText!$E$1&CHAR(10)&ScriptText!$C$1)","v":""},{"$f":"IF(OrigTable!D650=\"\",\"\",ScriptText!$B$1&CHAR(10)&ScriptText!$D$1)","v":""},{"$f":"IF(OrigTable!D650=\"\",\"\",TEXT(OrigTable!D650,\"00\"))","v":""},{"$f":"IF(OrigTable!D650=\"\",\"\",ScriptText!$E$1&CHAR(10)&ScriptText!$C$1)","v":""},{"$f":"IF(OrigTable!E650=\"\",\"\",ScriptText!$B$1&CHAR(10)&ScriptText!$D$1)","v":""},{"$f":"IF(OrigTable!E650=\"\",\"\",TEXT(OrigTable!E650,\"00\"))","v":""},{"$f":"IF(OrigTable!E650=\"\",\"\",ScriptText!$E$1&CHAR(10)&ScriptText!$C$1)","v":""},{"$f":"IF(OrigTable!F650=\"\",\"\",ScriptText!$B$1&CHAR(10)&ScriptText!$D$1)","v":""},{"$f":"IF(OrigTable!F650=\"\",\"\",TEXT(OrigTable!F650,\"00\"))","v":""},{"$f":"IF(OrigTable!F650=\"\",\"\",ScriptText!$E$1&CHAR(10)&ScriptText!$C$1)","v":""},{"$f":"IF(OrigTable!G650=\"\",\"\",ScriptText!$B$1&CHAR(10)&ScriptText!$D$1)","v":""},{"$f":"IF(OrigTable!G650=\"\",\"\",TEXT(OrigTable!G650,\"00\"))","v":""},{"$f":"IF(OrigTable!G650=\"\",\"\",ScriptText!$E$1&CHAR(10)&ScriptText!$C$1)","v":""},0]
["\n\n\n",{"$f":"IF(OrigTable!A651=\"\",\"\",ScriptText!$B$1&CHAR(10)&ScriptText!$D$1)","v":""},{"$f":"IF(OrigTable!A651=\"\",\"\",TEXT(OrigTable!A651,\"00\"))","v":""},{"$f":"IF(OrigTable!A651=\"\",\"\",ScriptText!$E$1&CHAR(10)&ScriptText!$C$1)","v":""},{"$f":"IF(OrigTable!B651=\"\",\"\",ScriptText!$B$1&CHAR(10)&ScriptText!$D$1)","v":""},{"$f":"IF(OrigTable!B651=\"\",\"\",TEXT(OrigTable!B651,\"00\"))","v":""},{"$f":"IF(OrigTable!B651=\"\",\"\",ScriptText!$E$1&CHAR(10)&ScriptText!C646)","v":""},{"$f":"IF(OrigTable!C651=\"\",\"\",ScriptText!$B$1&CHAR(10)&ScriptText!$D$1)","v":""},{"$f":"IF(OrigTable!C651=\"\",\"\",IF(LEN(OrigTable!C651)>255,LEFT(OrigTable!C651,250)&\". . .\",OrigTable!C651))","v":""},{"$f":"IF(OrigTable!C651=\"\",\"\",ScriptText!$E$1&CHAR(10)&ScriptText!$C$1)","v":""},{"$f":"IF(OrigTable!D651=\"\",\"\",ScriptText!$B$1&CHAR(10)&ScriptText!$D$1)","v":""},{"$f":"IF(OrigTable!D651=\"\",\"\",TEXT(OrigTable!D651,\"00\"))","v":""},{"$f":"IF(OrigTable!D651=\"\",\"\",ScriptText!$E$1&CHAR(10)&ScriptText!$C$1)","v":""},{"$f":"IF(OrigTable!E651=\"\",\"\",ScriptText!$B$1&CHAR(10)&ScriptText!$D$1)","v":""},{"$f":"IF(OrigTable!E651=\"\",\"\",TEXT(OrigTable!E651,\"00\"))","v":""},{"$f":"IF(OrigTable!E651=\"\",\"\",ScriptText!$E$1&CHAR(10)&ScriptText!$C$1)","v":""},{"$f":"IF(OrigTable!F651=\"\",\"\",ScriptText!$B$1&CHAR(10)&ScriptText!$D$1)","v":""},{"$f":"IF(OrigTable!F651=\"\",\"\",TEXT(OrigTable!F651,\"00\"))","v":""},{"$f":"IF(OrigTable!F651=\"\",\"\",ScriptText!$E$1&CHAR(10)&ScriptText!$C$1)","v":""},{"$f":"IF(OrigTable!G651=\"\",\"\",ScriptText!$B$1&CHAR(10)&ScriptText!$D$1)","v":""},{"$f":"IF(OrigTable!G651=\"\",\"\",TEXT(OrigTable!G651,\"00\"))","v":""},{"$f":"IF(OrigTable!G651=\"\",\"\",ScriptText!$E$1&CHAR(10)&ScriptText!$C$1)","v":""},0]
["\n\n\n",{"$f":"IF(OrigTable!A652=\"\",\"\",ScriptText!$B$1&CHAR(10)&ScriptText!$D$1)","v":""},{"$f":"IF(OrigTable!A652=\"\",\"\",TEXT(OrigTable!A652,\"00\"))","v":""},{"$f":"IF(OrigTable!A652=\"\",\"\",ScriptText!$E$1&CHAR(10)&ScriptText!$C$1)","v":""},{"$f":"IF(OrigTable!B652=\"\",\"\",ScriptText!$B$1&CHAR(10)&ScriptText!$D$1)","v":""},{"$f":"IF(OrigTable!B652=\"\",\"\",TEXT(OrigTable!B652,\"00\"))","v":""},{"$f":"IF(OrigTable!B652=\"\",\"\",ScriptText!$E$1&CHAR(10)&ScriptText!C647)","v":""},{"$f":"IF(OrigTable!C652=\"\",\"\",ScriptText!$B$1&CHAR(10)&ScriptText!$D$1)","v":""},{"$f":"IF(OrigTable!C652=\"\",\"\",IF(LEN(OrigTable!C652)>255,LEFT(OrigTable!C652,250)&\". . .\",OrigTable!C652))","v":""},{"$f":"IF(OrigTable!C652=\"\",\"\",ScriptText!$E$1&CHAR(10)&ScriptText!$C$1)","v":""},{"$f":"IF(OrigTable!D652=\"\",\"\",ScriptText!$B$1&CHAR(10)&ScriptText!$D$1)","v":""},{"$f":"IF(OrigTable!D652=\"\",\"\",TEXT(OrigTable!D652,\"00\"))","v":""},{"$f":"IF(OrigTable!D652=\"\",\"\",ScriptText!$E$1&CHAR(10)&ScriptText!$C$1)","v":""},{"$f":"IF(OrigTable!E652=\"\",\"\",ScriptText!$B$1&CHAR(10)&ScriptText!$D$1)","v":""},{"$f":"IF(OrigTable!E652=\"\",\"\",TEXT(OrigTable!E652,\"00\"))","v":""},{"$f":"IF(OrigTable!E652=\"\",\"\",ScriptText!$E$1&CHAR(10)&ScriptText!$C$1)","v":""},{"$f":"IF(OrigTable!F652=\"\",\"\",ScriptText!$B$1&CHAR(10)&ScriptText!$D$1)","v":""},{"$f":"IF(OrigTable!F652=\"\",\"\",TEXT(OrigTable!F652,\"00\"))","v":""},{"$f":"IF(OrigTable!F652=\"\",\"\",ScriptText!$E$1&CHAR(10)&ScriptText!$C$1)","v":""},{"$f":"IF(OrigTable!G652=\"\",\"\",ScriptText!$B$1&CHAR(10)&ScriptText!$D$1)","v":""},{"$f":"IF(OrigTable!G652=\"\",\"\",TEXT(OrigTable!G652,\"00\"))","v":""},{"$f":"IF(OrigTable!G652=\"\",\"\",ScriptText!$E$1&CHAR(10)&ScriptText!$C$1)","v":""},0]
["\n\n\n",{"$f":"IF(OrigTable!A653=\"\",\"\",ScriptText!$B$1&CHAR(10)&ScriptText!$D$1)","v":""},{"$f":"IF(OrigTable!A653=\"\",\"\",TEXT(OrigTable!A653,\"00\"))","v":""},{"$f":"IF(OrigTable!A653=\"\",\"\",ScriptText!$E$1&CHAR(10)&ScriptText!$C$1)","v":""},{"$f":"IF(OrigTable!B653=\"\",\"\",ScriptText!$B$1&CHAR(10)&ScriptText!$D$1)","v":""},{"$f":"IF(OrigTable!B653=\"\",\"\",TEXT(OrigTable!B653,\"00\"))","v":""},{"$f":"IF(OrigTable!B653=\"\",\"\",ScriptText!$E$1&CHAR(10)&ScriptText!C648)","v":""},{"$f":"IF(OrigTable!C653=\"\",\"\",ScriptText!$B$1&CHAR(10)&ScriptText!$D$1)","v":""},{"$f":"IF(OrigTable!C653=\"\",\"\",IF(LEN(OrigTable!C653)>255,LEFT(OrigTable!C653,250)&\". . .\",OrigTable!C653))","v":""},{"$f":"IF(OrigTable!C653=\"\",\"\",ScriptText!$E$1&CHAR(10)&ScriptText!$C$1)","v":""},{"$f":"IF(OrigTable!D653=\"\",\"\",ScriptText!$B$1&CHAR(10)&ScriptText!$D$1)","v":""},{"$f":"IF(OrigTable!D653=\"\",\"\",TEXT(OrigTable!D653,\"00\"))","v":""},{"$f":"IF(OrigTable!D653=\"\",\"\",ScriptText!$E$1&CHAR(10)&ScriptText!$C$1)","v":""},{"$f":"IF(OrigTable!E653=\"\",\"\",ScriptText!$B$1&CHAR(10)&ScriptText!$D$1)","v":""},{"$f":"IF(OrigTable!E653=\"\",\"\",TEXT(OrigTable!E653,\"00\"))","v":""},{"$f":"IF(OrigTable!E653=\"\",\"\",ScriptText!$E$1&CHAR(10)&ScriptText!$C$1)","v":""},{"$f":"IF(OrigTable!F653=\"\",\"\",ScriptText!$B$1&CHAR(10)&ScriptText!$D$1)","v":""},{"$f":"IF(OrigTable!F653=\"\",\"\",TEXT(OrigTable!F653,\"00\"))","v":""},{"$f":"IF(OrigTable!F653=\"\",\"\",ScriptText!$E$1&CHAR(10)&ScriptText!$C$1)","v":""},{"$f":"IF(OrigTable!G653=\"\",\"\",ScriptText!$B$1&CHAR(10)&ScriptText!$D$1)","v":""},{"$f":"IF(OrigTable!G653=\"\",\"\",TEXT(OrigTable!G653,\"00\"))","v":""},{"$f":"IF(OrigTable!G653=\"\",\"\",ScriptText!$E$1&CHAR(10)&ScriptText!$C$1)","v":""},0]
["\n\n\n",{"$f":"IF(OrigTable!A654=\"\",\"\",ScriptText!$B$1&CHAR(10)&ScriptText!$D$1)","v":""},{"$f":"IF(OrigTable!A654=\"\",\"\",TEXT(OrigTable!A654,\"00\"))","v":""},{"$f":"IF(OrigTable!A654=\"\",\"\",ScriptText!$E$1&CHAR(10)&ScriptText!$C$1)","v":""},{"$f":"IF(OrigTable!B654=\"\",\"\",ScriptText!$B$1&CHAR(10)&ScriptText!$D$1)","v":""},{"$f":"IF(OrigTable!B654=\"\",\"\",TEXT(OrigTable!B654,\"00\"))","v":""},{"$f":"IF(OrigTable!B654=\"\",\"\",ScriptText!$E$1&CHAR(10)&ScriptText!C649)","v":""},{"$f":"IF(OrigTable!C654=\"\",\"\",ScriptText!$B$1&CHAR(10)&ScriptText!$D$1)","v":""},{"$f":"IF(OrigTable!C654=\"\",\"\",IF(LEN(OrigTable!C654)>255,LEFT(OrigTable!C654,250)&\". . .\",OrigTable!C654))","v":""},{"$f":"IF(OrigTable!C654=\"\",\"\",ScriptText!$E$1&CHAR(10)&ScriptText!$C$1)","v":""},{"$f":"IF(OrigTable!D654=\"\",\"\",ScriptText!$B$1&CHAR(10)&ScriptText!$D$1)","v":""},{"$f":"IF(OrigTable!D654=\"\",\"\",TEXT(OrigTable!D654,\"00\"))","v":""},{"$f":"IF(OrigTable!D654=\"\",\"\",ScriptText!$E$1&CHAR(10)&ScriptText!$C$1)","v":""},{"$f":"IF(OrigTable!E654=\"\",\"\",ScriptText!$B$1&CHAR(10)&ScriptText!$D$1)","v":""},{"$f":"IF(OrigTable!E654=\"\",\"\",TEXT(OrigTable!E654,\"00\"))","v":""},{"$f":"IF(OrigTable!E654=\"\",\"\",ScriptText!$E$1&CHAR(10)&ScriptText!$C$1)","v":""},{"$f":"IF(OrigTable!F654=\"\",\"\",ScriptText!$B$1&CHAR(10)&ScriptText!$D$1)","v":""},{"$f":"IF(OrigTable!F654=\"\",\"\",TEXT(OrigTable!F654,\"00\"))","v":""},{"$f":"IF(OrigTable!F654=\"\",\"\",ScriptText!$E$1&CHAR(10)&ScriptText!$C$1)","v":""},{"$f":"IF(OrigTable!G654=\"\",\"\",ScriptText!$B$1&CHAR(10)&ScriptText!$D$1)","v":""},{"$f":"IF(OrigTable!G654=\"\",\"\",TEXT(OrigTable!G654,\"00\"))","v":""},{"$f":"IF(OrigTable!G654=\"\",\"\",ScriptText!$E$1&CHAR(10)&ScriptText!$C$1)","v":""},0]
["\n\n\n",{"$f":"IF(OrigTable!A655=\"\",\"\",ScriptText!$B$1&CHAR(10)&ScriptText!$D$1)","v":""},{"$f":"IF(OrigTable!A655=\"\",\"\",TEXT(OrigTable!A655,\"00\"))","v":""},{"$f":"IF(OrigTable!A655=\"\",\"\",ScriptText!$E$1&CHAR(10)&ScriptText!$C$1)","v":""},{"$f":"IF(OrigTable!B655=\"\",\"\",ScriptText!$B$1&CHAR(10)&ScriptText!$D$1)","v":""},{"$f":"IF(OrigTable!B655=\"\",\"\",TEXT(OrigTable!B655,\"00\"))","v":""},{"$f":"IF(OrigTable!B655=\"\",\"\",ScriptText!$E$1&CHAR(10)&ScriptText!C650)","v":""},{"$f":"IF(OrigTable!C655=\"\",\"\",ScriptText!$B$1&CHAR(10)&ScriptText!$D$1)","v":""},{"$f":"IF(OrigTable!C655=\"\",\"\",IF(LEN(OrigTable!C655)>255,LEFT(OrigTable!C655,250)&\". . .\",OrigTable!C655))","v":""},{"$f":"IF(OrigTable!C655=\"\",\"\",ScriptText!$E$1&CHAR(10)&ScriptText!$C$1)","v":""},{"$f":"IF(OrigTable!D655=\"\",\"\",ScriptText!$B$1&CHAR(10)&ScriptText!$D$1)","v":""},{"$f":"IF(OrigTable!D655=\"\",\"\",TEXT(OrigTable!D655,\"00\"))","v":""},{"$f":"IF(OrigTable!D655=\"\",\"\",ScriptText!$E$1&CHAR(10)&ScriptText!$C$1)","v":""},{"$f":"IF(OrigTable!E655=\"\",\"\",ScriptText!$B$1&CHAR(10)&ScriptText!$D$1)","v":""},{"$f":"IF(OrigTable!E655=\"\",\"\",TEXT(OrigTable!E655,\"00\"))","v":""},{"$f":"IF(OrigTable!E655=\"\",\"\",ScriptText!$E$1&CHAR(10)&ScriptText!$C$1)","v":""},{"$f":"IF(OrigTable!F655=\"\",\"\",ScriptText!$B$1&CHAR(10)&ScriptText!$D$1)","v":""},{"$f":"IF(OrigTable!F655=\"\",\"\",TEXT(OrigTable!F655,\"00\"))","v":""},{"$f":"IF(OrigTable!F655=\"\",\"\",ScriptText!$E$1&CHAR(10)&ScriptText!$C$1)","v":""},{"$f":"IF(OrigTable!G655=\"\",\"\",ScriptText!$B$1&CHAR(10)&ScriptText!$D$1)","v":""},{"$f":"IF(OrigTable!G655=\"\",\"\",TEXT(OrigTable!G655,\"00\"))","v":""},{"$f":"IF(OrigTable!G655=\"\",\"\",ScriptText!$E$1&CHAR(10)&ScriptText!$C$1)","v":""},0]
["\n\n\n",{"$f":"IF(OrigTable!A656=\"\",\"\",ScriptText!$B$1&CHAR(10)&ScriptText!$D$1)","v":""},{"$f":"IF(OrigTable!A656=\"\",\"\",TEXT(OrigTable!A656,\"00\"))","v":""},{"$f":"IF(OrigTable!A656=\"\",\"\",ScriptText!$E$1&CHAR(10)&ScriptText!$C$1)","v":""},{"$f":"IF(OrigTable!B656=\"\",\"\",ScriptText!$B$1&CHAR(10)&ScriptText!$D$1)","v":""},{"$f":"IF(OrigTable!B656=\"\",\"\",TEXT(OrigTable!B656,\"00\"))","v":""},{"$f":"IF(OrigTable!B656=\"\",\"\",ScriptText!$E$1&CHAR(10)&ScriptText!C651)","v":""},{"$f":"IF(OrigTable!C656=\"\",\"\",ScriptText!$B$1&CHAR(10)&ScriptText!$D$1)","v":""},{"$f":"IF(OrigTable!C656=\"\",\"\",IF(LEN(OrigTable!C656)>255,LEFT(OrigTable!C656,250)&\". . .\",OrigTable!C656))","v":""},{"$f":"IF(OrigTable!C656=\"\",\"\",ScriptText!$E$1&CHAR(10)&ScriptText!$C$1)","v":""},{"$f":"IF(OrigTable!D656=\"\",\"\",ScriptText!$B$1&CHAR(10)&ScriptText!$D$1)","v":""},{"$f":"IF(OrigTable!D656=\"\",\"\",TEXT(OrigTable!D656,\"00\"))","v":""},{"$f":"IF(OrigTable!D656=\"\",\"\",ScriptText!$E$1&CHAR(10)&ScriptText!$C$1)","v":""},{"$f":"IF(OrigTable!E656=\"\",\"\",ScriptText!$B$1&CHAR(10)&ScriptText!$D$1)","v":""},{"$f":"IF(OrigTable!E656=\"\",\"\",TEXT(OrigTable!E656,\"00\"))","v":""},{"$f":"IF(OrigTable!E656=\"\",\"\",ScriptText!$E$1&CHAR(10)&ScriptText!$C$1)","v":""},{"$f":"IF(OrigTable!F656=\"\",\"\",ScriptText!$B$1&CHAR(10)&ScriptText!$D$1)","v":""},{"$f":"IF(OrigTable!F656=\"\",\"\",TEXT(OrigTable!F656,\"00\"))","v":""},{"$f":"IF(OrigTable!F656=\"\",\"\",ScriptText!$E$1&CHAR(10)&ScriptText!$C$1)","v":""},{"$f":"IF(OrigTable!G656=\"\",\"\",ScriptText!$B$1&CHAR(10)&ScriptText!$D$1)","v":""},{"$f":"IF(OrigTable!G656=\"\",\"\",TEXT(OrigTable!G656,\"00\"))","v":""},{"$f":"IF(OrigTable!G656=\"\",\"\",ScriptText!$E$1&CHAR(10)&ScriptText!$C$1)","v":""},0]
["\n\n\n",{"$f":"IF(OrigTable!A657=\"\",\"\",ScriptText!$B$1&CHAR(10)&ScriptText!$D$1)","v":""},{"$f":"IF(OrigTable!A657=\"\",\"\",TEXT(OrigTable!A657,\"00\"))","v":""},{"$f":"IF(OrigTable!A657=\"\",\"\",ScriptText!$E$1&CHAR(10)&ScriptText!$C$1)","v":""},{"$f":"IF(OrigTable!B657=\"\",\"\",ScriptText!$B$1&CHAR(10)&ScriptText!$D$1)","v":""},{"$f":"IF(OrigTable!B657=\"\",\"\",TEXT(OrigTable!B657,\"00\"))","v":""},{"$f":"IF(OrigTable!B657=\"\",\"\",ScriptText!$E$1&CHAR(10)&ScriptText!C652)","v":""},{"$f":"IF(OrigTable!C657=\"\",\"\",ScriptText!$B$1&CHAR(10)&ScriptText!$D$1)","v":""},{"$f":"IF(OrigTable!C657=\"\",\"\",IF(LEN(OrigTable!C657)>255,LEFT(OrigTable!C657,250)&\". . .\",OrigTable!C657))","v":""},{"$f":"IF(OrigTable!C657=\"\",\"\",ScriptText!$E$1&CHAR(10)&ScriptText!$C$1)","v":""},{"$f":"IF(OrigTable!D657=\"\",\"\",ScriptText!$B$1&CHAR(10)&ScriptText!$D$1)","v":""},{"$f":"IF(OrigTable!D657=\"\",\"\",TEXT(OrigTable!D657,\"00\"))","v":""},{"$f":"IF(OrigTable!D657=\"\",\"\",ScriptText!$E$1&CHAR(10)&ScriptText!$C$1)","v":""},{"$f":"IF(OrigTable!E657=\"\",\"\",ScriptText!$B$1&CHAR(10)&ScriptText!$D$1)","v":""},{"$f":"IF(OrigTable!E657=\"\",\"\",TEXT(OrigTable!E657,\"00\"))","v":""},{"$f":"IF(OrigTable!E657=\"\",\"\",ScriptText!$E$1&CHAR(10)&ScriptText!$C$1)","v":""},{"$f":"IF(OrigTable!F657=\"\",\"\",ScriptText!$B$1&CHAR(10)&ScriptText!$D$1)","v":""},{"$f":"IF(OrigTable!F657=\"\",\"\",TEXT(OrigTable!F657,\"00\"))","v":""},{"$f":"IF(OrigTable!F657=\"\",\"\",ScriptText!$E$1&CHAR(10)&ScriptText!$C$1)","v":""},{"$f":"IF(OrigTable!G657=\"\",\"\",ScriptText!$B$1&CHAR(10)&ScriptText!$D$1)","v":""},{"$f":"IF(OrigTable!G657=\"\",\"\",TEXT(OrigTable!G657,\"00\"))","v":""},{"$f":"IF(OrigTable!G657=\"\",\"\",ScriptText!$E$1&CHAR(10)&ScriptText!$C$1)","v":""},0]
["\n\n\n",{"$f":"IF(OrigTable!A658=\"\",\"\",ScriptText!$B$1&CHAR(10)&ScriptText!$D$1)","v":""},{"$f":"IF(OrigTable!A658=\"\",\"\",TEXT(OrigTable!A658,\"00\"))","v":""},{"$f":"IF(OrigTable!A658=\"\",\"\",ScriptText!$E$1&CHAR(10)&ScriptText!$C$1)","v":""},{"$f":"IF(OrigTable!B658=\"\",\"\",ScriptText!$B$1&CHAR(10)&ScriptText!$D$1)","v":""},{"$f":"IF(OrigTable!B658=\"\",\"\",TEXT(OrigTable!B658,\"00\"))","v":""},{"$f":"IF(OrigTable!B658=\"\",\"\",ScriptText!$E$1&CHAR(10)&ScriptText!C653)","v":""},{"$f":"IF(OrigTable!C658=\"\",\"\",ScriptText!$B$1&CHAR(10)&ScriptText!$D$1)","v":""},{"$f":"IF(OrigTable!C658=\"\",\"\",IF(LEN(OrigTable!C658)>255,LEFT(OrigTable!C658,250)&\". . .\",OrigTable!C658))","v":""},{"$f":"IF(OrigTable!C658=\"\",\"\",ScriptText!$E$1&CHAR(10)&ScriptText!$C$1)","v":""},{"$f":"IF(OrigTable!D658=\"\",\"\",ScriptText!$B$1&CHAR(10)&ScriptText!$D$1)","v":""},{"$f":"IF(OrigTable!D658=\"\",\"\",TEXT(OrigTable!D658,\"00\"))","v":""},{"$f":"IF(OrigTable!D658=\"\",\"\",ScriptText!$E$1&CHAR(10)&ScriptText!$C$1)","v":""},{"$f":"IF(OrigTable!E658=\"\",\"\",ScriptText!$B$1&CHAR(10)&ScriptText!$D$1)","v":""},{"$f":"IF(OrigTable!E658=\"\",\"\",TEXT(OrigTable!E658,\"00\"))","v":""},{"$f":"IF(OrigTable!E658=\"\",\"\",ScriptText!$E$1&CHAR(10)&ScriptText!$C$1)","v":""},{"$f":"IF(OrigTable!F658=\"\",\"\",ScriptText!$B$1&CHAR(10)&ScriptText!$D$1)","v":""},{"$f":"IF(OrigTable!F658=\"\",\"\",TEXT(OrigTable!F658,\"00\"))","v":""},{"$f":"IF(OrigTable!F658=\"\",\"\",ScriptText!$E$1&CHAR(10)&ScriptText!$C$1)","v":""},{"$f":"IF(OrigTable!G658=\"\",\"\",ScriptText!$B$1&CHAR(10)&ScriptText!$D$1)","v":""},{"$f":"IF(OrigTable!G658=\"\",\"\",TEXT(OrigTable!G658,\"00\"))","v":""},{"$f":"IF(OrigTable!G658=\"\",\"\",ScriptText!$E$1&CHAR(10)&ScriptText!$C$1)","v":""},0]
["\n\n\n",{"$f":"IF(OrigTable!A659=\"\",\"\",ScriptText!$B$1&CHAR(10)&ScriptText!$D$1)","v":""},{"$f":"IF(OrigTable!A659=\"\",\"\",TEXT(OrigTable!A659,\"00\"))","v":""},{"$f":"IF(OrigTable!A659=\"\",\"\",ScriptText!$E$1&CHAR(10)&ScriptText!$C$1)","v":""},{"$f":"IF(OrigTable!B659=\"\",\"\",ScriptText!$B$1&CHAR(10)&ScriptText!$D$1)","v":""},{"$f":"IF(OrigTable!B659=\"\",\"\",TEXT(OrigTable!B659,\"00\"))","v":""},{"$f":"IF(OrigTable!B659=\"\",\"\",ScriptText!$E$1&CHAR(10)&ScriptText!C654)","v":""},{"$f":"IF(OrigTable!C659=\"\",\"\",ScriptText!$B$1&CHAR(10)&ScriptText!$D$1)","v":""},{"$f":"IF(OrigTable!C659=\"\",\"\",IF(LEN(OrigTable!C659)>255,LEFT(OrigTable!C659,250)&\". . .\",OrigTable!C659))","v":""},{"$f":"IF(OrigTable!C659=\"\",\"\",ScriptText!$E$1&CHAR(10)&ScriptText!$C$1)","v":""},{"$f":"IF(OrigTable!D659=\"\",\"\",ScriptText!$B$1&CHAR(10)&ScriptText!$D$1)","v":""},{"$f":"IF(OrigTable!D659=\"\",\"\",TEXT(OrigTable!D659,\"00\"))","v":""},{"$f":"IF(OrigTable!D659=\"\",\"\",ScriptText!$E$1&CHAR(10)&ScriptText!$C$1)","v":""},{"$f":"IF(OrigTable!E659=\"\",\"\",ScriptText!$B$1&CHAR(10)&ScriptText!$D$1)","v":""},{"$f":"IF(OrigTable!E659=\"\",\"\",TEXT(OrigTable!E659,\"00\"))","v":""},{"$f":"IF(OrigTable!E659=\"\",\"\",ScriptText!$E$1&CHAR(10)&ScriptText!$C$1)","v":""},{"$f":"IF(OrigTable!F659=\"\",\"\",ScriptText!$B$1&CHAR(10)&ScriptText!$D$1)","v":""},{"$f":"IF(OrigTable!F659=\"\",\"\",TEXT(OrigTable!F659,\"00\"))","v":""},{"$f":"IF(OrigTable!F659=\"\",\"\",ScriptText!$E$1&CHAR(10)&ScriptText!$C$1)","v":""},{"$f":"IF(OrigTable!G659=\"\",\"\",ScriptText!$B$1&CHAR(10)&ScriptText!$D$1)","v":""},{"$f":"IF(OrigTable!G659=\"\",\"\",TEXT(OrigTable!G659,\"00\"))","v":""},{"$f":"IF(OrigTable!G659=\"\",\"\",ScriptText!$E$1&CHAR(10)&ScriptText!$C$1)","v":""},0]
["\n\n\n",{"$f":"IF(OrigTable!A660=\"\",\"\",ScriptText!$B$1&CHAR(10)&ScriptText!$D$1)","v":""},{"$f":"IF(OrigTable!A660=\"\",\"\",TEXT(OrigTable!A660,\"00\"))","v":""},{"$f":"IF(OrigTable!A660=\"\",\"\",ScriptText!$E$1&CHAR(10)&ScriptText!$C$1)","v":""},{"$f":"IF(OrigTable!B660=\"\",\"\",ScriptText!$B$1&CHAR(10)&ScriptText!$D$1)","v":""},{"$f":"IF(OrigTable!B660=\"\",\"\",TEXT(OrigTable!B660,\"00\"))","v":""},{"$f":"IF(OrigTable!B660=\"\",\"\",ScriptText!$E$1&CHAR(10)&ScriptText!C655)","v":""},{"$f":"IF(OrigTable!C660=\"\",\"\",ScriptText!$B$1&CHAR(10)&ScriptText!$D$1)","v":""},{"$f":"IF(OrigTable!C660=\"\",\"\",IF(LEN(OrigTable!C660)>255,LEFT(OrigTable!C660,250)&\". . .\",OrigTable!C660))","v":""},{"$f":"IF(OrigTable!C660=\"\",\"\",ScriptText!$E$1&CHAR(10)&ScriptText!$C$1)","v":""},{"$f":"IF(OrigTable!D660=\"\",\"\",ScriptText!$B$1&CHAR(10)&ScriptText!$D$1)","v":""},{"$f":"IF(OrigTable!D660=\"\",\"\",TEXT(OrigTable!D660,\"00\"))","v":""},{"$f":"IF(OrigTable!D660=\"\",\"\",ScriptText!$E$1&CHAR(10)&ScriptText!$C$1)","v":""},{"$f":"IF(OrigTable!E660=\"\",\"\",ScriptText!$B$1&CHAR(10)&ScriptText!$D$1)","v":""},{"$f":"IF(OrigTable!E660=\"\",\"\",TEXT(OrigTable!E660,\"00\"))","v":""},{"$f":"IF(OrigTable!E660=\"\",\"\",ScriptText!$E$1&CHAR(10)&ScriptText!$C$1)","v":""},{"$f":"IF(OrigTable!F660=\"\",\"\",ScriptText!$B$1&CHAR(10)&ScriptText!$D$1)","v":""},{"$f":"IF(OrigTable!F660=\"\",\"\",TEXT(OrigTable!F660,\"00\"))","v":""},{"$f":"IF(OrigTable!F660=\"\",\"\",ScriptText!$E$1&CHAR(10)&ScriptText!$C$1)","v":""},{"$f":"IF(OrigTable!G660=\"\",\"\",ScriptText!$B$1&CHAR(10)&ScriptText!$D$1)","v":""},{"$f":"IF(OrigTable!G660=\"\",\"\",TEXT(OrigTable!G660,\"00\"))","v":""},{"$f":"IF(OrigTable!G660=\"\",\"\",ScriptText!$E$1&CHAR(10)&ScriptText!$C$1)","v":""},0]
["\n\n\n",{"$f":"IF(OrigTable!A661=\"\",\"\",ScriptText!$B$1&CHAR(10)&ScriptText!$D$1)","v":""},{"$f":"IF(OrigTable!A661=\"\",\"\",TEXT(OrigTable!A661,\"00\"))","v":""},{"$f":"IF(OrigTable!A661=\"\",\"\",ScriptText!$E$1&CHAR(10)&ScriptText!$C$1)","v":""},{"$f":"IF(OrigTable!B661=\"\",\"\",ScriptText!$B$1&CHAR(10)&ScriptText!$D$1)","v":""},{"$f":"IF(OrigTable!B661=\"\",\"\",TEXT(OrigTable!B661,\"00\"))","v":""},{"$f":"IF(OrigTable!B661=\"\",\"\",ScriptText!$E$1&CHAR(10)&ScriptText!C656)","v":""},{"$f":"IF(OrigTable!C661=\"\",\"\",ScriptText!$B$1&CHAR(10)&ScriptText!$D$1)","v":""},{"$f":"IF(OrigTable!C661=\"\",\"\",IF(LEN(OrigTable!C661)>255,LEFT(OrigTable!C661,250)&\". . .\",OrigTable!C661))","v":""},{"$f":"IF(OrigTable!C661=\"\",\"\",ScriptText!$E$1&CHAR(10)&ScriptText!$C$1)","v":""},{"$f":"IF(OrigTable!D661=\"\",\"\",ScriptText!$B$1&CHAR(10)&ScriptText!$D$1)","v":""},{"$f":"IF(OrigTable!D661=\"\",\"\",TEXT(OrigTable!D661,\"00\"))","v":""},{"$f":"IF(OrigTable!D661=\"\",\"\",ScriptText!$E$1&CHAR(10)&ScriptText!$C$1)","v":""},{"$f":"IF(OrigTable!E661=\"\",\"\",ScriptText!$B$1&CHAR(10)&ScriptText!$D$1)","v":""},{"$f":"IF(OrigTable!E661=\"\",\"\",TEXT(OrigTable!E661,\"00\"))","v":""},{"$f":"IF(OrigTable!E661=\"\",\"\",ScriptText!$E$1&CHAR(10)&ScriptText!$C$1)","v":""},{"$f":"IF(OrigTable!F661=\"\",\"\",ScriptText!$B$1&CHAR(10)&ScriptText!$D$1)","v":""},{"$f":"IF(OrigTable!F661=\"\",\"\",TEXT(OrigTable!F661,\"00\"))","v":""},{"$f":"IF(OrigTable!F661=\"\",\"\",ScriptText!$E$1&CHAR(10)&ScriptText!$C$1)","v":""},{"$f":"IF(OrigTable!G661=\"\",\"\",ScriptText!$B$1&CHAR(10)&ScriptText!$D$1)","v":""},{"$f":"IF(OrigTable!G661=\"\",\"\",TEXT(OrigTable!G661,\"00\"))","v":""},{"$f":"IF(OrigTable!G661=\"\",\"\",ScriptText!$E$1&CHAR(10)&ScriptText!$C$1)","v":""},0]
["\n\n\n",{"$f":"IF(OrigTable!A662=\"\",\"\",ScriptText!$B$1&CHAR(10)&ScriptText!$D$1)","v":""},{"$f":"IF(OrigTable!A662=\"\",\"\",TEXT(OrigTable!A662,\"00\"))","v":""},{"$f":"IF(OrigTable!A662=\"\",\"\",ScriptText!$E$1&CHAR(10)&ScriptText!$C$1)","v":""},{"$f":"IF(OrigTable!B662=\"\",\"\",ScriptText!$B$1&CHAR(10)&ScriptText!$D$1)","v":""},{"$f":"IF(OrigTable!B662=\"\",\"\",TEXT(OrigTable!B662,\"00\"))","v":""},{"$f":"IF(OrigTable!B662=\"\",\"\",ScriptText!$E$1&CHAR(10)&ScriptText!C657)","v":""},{"$f":"IF(OrigTable!C662=\"\",\"\",ScriptText!$B$1&CHAR(10)&ScriptText!$D$1)","v":""},{"$f":"IF(OrigTable!C662=\"\",\"\",IF(LEN(OrigTable!C662)>255,LEFT(OrigTable!C662,250)&\". . .\",OrigTable!C662))","v":""},{"$f":"IF(OrigTable!C662=\"\",\"\",ScriptText!$E$1&CHAR(10)&ScriptText!$C$1)","v":""},{"$f":"IF(OrigTable!D662=\"\",\"\",ScriptText!$B$1&CHAR(10)&ScriptText!$D$1)","v":""},{"$f":"IF(OrigTable!D662=\"\",\"\",TEXT(OrigTable!D662,\"00\"))","v":""},{"$f":"IF(OrigTable!D662=\"\",\"\",ScriptText!$E$1&CHAR(10)&ScriptText!$C$1)","v":""},{"$f":"IF(OrigTable!E662=\"\",\"\",ScriptText!$B$1&CHAR(10)&ScriptText!$D$1)","v":""},{"$f":"IF(OrigTable!E662=\"\",\"\",TEXT(OrigTable!E662,\"00\"))","v":""},{"$f":"IF(OrigTable!E662=\"\",\"\",ScriptText!$E$1&CHAR(10)&ScriptText!$C$1)","v":""},{"$f":"IF(OrigTable!F662=\"\",\"\",ScriptText!$B$1&CHAR(10)&ScriptText!$D$1)","v":""},{"$f":"IF(OrigTable!F662=\"\",\"\",TEXT(OrigTable!F662,\"00\"))","v":""},{"$f":"IF(OrigTable!F662=\"\",\"\",ScriptText!$E$1&CHAR(10)&ScriptText!$C$1)","v":""},{"$f":"IF(OrigTable!G662=\"\",\"\",ScriptText!$B$1&CHAR(10)&ScriptText!$D$1)","v":""},{"$f":"IF(OrigTable!G662=\"\",\"\",TEXT(OrigTable!G662,\"00\"))","v":""},{"$f":"IF(OrigTable!G662=\"\",\"\",ScriptText!$E$1&CHAR(10)&ScriptText!$C$1)","v":""},0]
["\n\n\n",{"$f":"IF(OrigTable!A663=\"\",\"\",ScriptText!$B$1&CHAR(10)&ScriptText!$D$1)","v":""},{"$f":"IF(OrigTable!A663=\"\",\"\",TEXT(OrigTable!A663,\"00\"))","v":""},{"$f":"IF(OrigTable!A663=\"\",\"\",ScriptText!$E$1&CHAR(10)&ScriptText!$C$1)","v":""},{"$f":"IF(OrigTable!B663=\"\",\"\",ScriptText!$B$1&CHAR(10)&ScriptText!$D$1)","v":""},{"$f":"IF(OrigTable!B663=\"\",\"\",TEXT(OrigTable!B663,\"00\"))","v":""},{"$f":"IF(OrigTable!B663=\"\",\"\",ScriptText!$E$1&CHAR(10)&ScriptText!C658)","v":""},{"$f":"IF(OrigTable!C663=\"\",\"\",ScriptText!$B$1&CHAR(10)&ScriptText!$D$1)","v":""},{"$f":"IF(OrigTable!C663=\"\",\"\",IF(LEN(OrigTable!C663)>255,LEFT(OrigTable!C663,250)&\". . .\",OrigTable!C663))","v":""},{"$f":"IF(OrigTable!C663=\"\",\"\",ScriptText!$E$1&CHAR(10)&ScriptText!$C$1)","v":""},{"$f":"IF(OrigTable!D663=\"\",\"\",ScriptText!$B$1&CHAR(10)&ScriptText!$D$1)","v":""},{"$f":"IF(OrigTable!D663=\"\",\"\",TEXT(OrigTable!D663,\"00\"))","v":""},{"$f":"IF(OrigTable!D663=\"\",\"\",ScriptText!$E$1&CHAR(10)&ScriptText!$C$1)","v":""},{"$f":"IF(OrigTable!E663=\"\",\"\",ScriptText!$B$1&CHAR(10)&ScriptText!$D$1)","v":""},{"$f":"IF(OrigTable!E663=\"\",\"\",TEXT(OrigTable!E663,\"00\"))","v":""},{"$f":"IF(OrigTable!E663=\"\",\"\",ScriptText!$E$1&CHAR(10)&ScriptText!$C$1)","v":""},{"$f":"IF(OrigTable!F663=\"\",\"\",ScriptText!$B$1&CHAR(10)&ScriptText!$D$1)","v":""},{"$f":"IF(OrigTable!F663=\"\",\"\",TEXT(OrigTable!F663,\"00\"))","v":""},{"$f":"IF(OrigTable!F663=\"\",\"\",ScriptText!$E$1&CHAR(10)&ScriptText!$C$1)","v":""},{"$f":"IF(OrigTable!G663=\"\",\"\",ScriptText!$B$1&CHAR(10)&ScriptText!$D$1)","v":""},{"$f":"IF(OrigTable!G663=\"\",\"\",TEXT(OrigTable!G663,\"00\"))","v":""},{"$f":"IF(OrigTable!G663=\"\",\"\",ScriptText!$E$1&CHAR(10)&ScriptText!$C$1)","v":""},0]
["\n\n\n",{"$f":"IF(OrigTable!A664=\"\",\"\",ScriptText!$B$1&CHAR(10)&ScriptText!$D$1)","v":""},{"$f":"IF(OrigTable!A664=\"\",\"\",TEXT(OrigTable!A664,\"00\"))","v":""},{"$f":"IF(OrigTable!A664=\"\",\"\",ScriptText!$E$1&CHAR(10)&ScriptText!$C$1)","v":""},{"$f":"IF(OrigTable!B664=\"\",\"\",ScriptText!$B$1&CHAR(10)&ScriptText!$D$1)","v":""},{"$f":"IF(OrigTable!B664=\"\",\"\",TEXT(OrigTable!B664,\"00\"))","v":""},{"$f":"IF(OrigTable!B664=\"\",\"\",ScriptText!$E$1&CHAR(10)&ScriptText!C659)","v":""},{"$f":"IF(OrigTable!C664=\"\",\"\",ScriptText!$B$1&CHAR(10)&ScriptText!$D$1)","v":""},{"$f":"IF(OrigTable!C664=\"\",\"\",IF(LEN(OrigTable!C664)>255,LEFT(OrigTable!C664,250)&\". . .\",OrigTable!C664))","v":""},{"$f":"IF(OrigTable!C664=\"\",\"\",ScriptText!$E$1&CHAR(10)&ScriptText!$C$1)","v":""},{"$f":"IF(OrigTable!D664=\"\",\"\",ScriptText!$B$1&CHAR(10)&ScriptText!$D$1)","v":""},{"$f":"IF(OrigTable!D664=\"\",\"\",TEXT(OrigTable!D664,\"00\"))","v":""},{"$f":"IF(OrigTable!D664=\"\",\"\",ScriptText!$E$1&CHAR(10)&ScriptText!$C$1)","v":""},{"$f":"IF(OrigTable!E664=\"\",\"\",ScriptText!$B$1&CHAR(10)&ScriptText!$D$1)","v":""},{"$f":"IF(OrigTable!E664=\"\",\"\",TEXT(OrigTable!E664,\"00\"))","v":""},{"$f":"IF(OrigTable!E664=\"\",\"\",ScriptText!$E$1&CHAR(10)&ScriptText!$C$1)","v":""},{"$f":"IF(OrigTable!F664=\"\",\"\",ScriptText!$B$1&CHAR(10)&ScriptText!$D$1)","v":""},{"$f":"IF(OrigTable!F664=\"\",\"\",TEXT(OrigTable!F664,\"00\"))","v":""},{"$f":"IF(OrigTable!F664=\"\",\"\",ScriptText!$E$1&CHAR(10)&ScriptText!$C$1)","v":""},{"$f":"IF(OrigTable!G664=\"\",\"\",ScriptText!$B$1&CHAR(10)&ScriptText!$D$1)","v":""},{"$f":"IF(OrigTable!G664=\"\",\"\",TEXT(OrigTable!G664,\"00\"))","v":""},{"$f":"IF(OrigTable!G664=\"\",\"\",ScriptText!$E$1&CHAR(10)&ScriptText!$C$1)","v":""},0]
["\n\n\n",{"$f":"IF(OrigTable!A665=\"\",\"\",ScriptText!$B$1&CHAR(10)&ScriptText!$D$1)","v":""},{"$f":"IF(OrigTable!A665=\"\",\"\",TEXT(OrigTable!A665,\"00\"))","v":""},{"$f":"IF(OrigTable!A665=\"\",\"\",ScriptText!$E$1&CHAR(10)&ScriptText!$C$1)","v":""},{"$f":"IF(OrigTable!B665=\"\",\"\",ScriptText!$B$1&CHAR(10)&ScriptText!$D$1)","v":""},{"$f":"IF(OrigTable!B665=\"\",\"\",TEXT(OrigTable!B665,\"00\"))","v":""},{"$f":"IF(OrigTable!B665=\"\",\"\",ScriptText!$E$1&CHAR(10)&ScriptText!C660)","v":""},{"$f":"IF(OrigTable!C665=\"\",\"\",ScriptText!$B$1&CHAR(10)&ScriptText!$D$1)","v":""},{"$f":"IF(OrigTable!C665=\"\",\"\",IF(LEN(OrigTable!C665)>255,LEFT(OrigTable!C665,250)&\". . .\",OrigTable!C665))","v":""},{"$f":"IF(OrigTable!C665=\"\",\"\",ScriptText!$E$1&CHAR(10)&ScriptText!$C$1)","v":""},{"$f":"IF(OrigTable!D665=\"\",\"\",ScriptText!$B$1&CHAR(10)&ScriptText!$D$1)","v":""},{"$f":"IF(OrigTable!D665=\"\",\"\",TEXT(OrigTable!D665,\"00\"))","v":""},{"$f":"IF(OrigTable!D665=\"\",\"\",ScriptText!$E$1&CHAR(10)&ScriptText!$C$1)","v":""},{"$f":"IF(OrigTable!E665=\"\",\"\",ScriptText!$B$1&CHAR(10)&ScriptText!$D$1)","v":""},{"$f":"IF(OrigTable!E665=\"\",\"\",TEXT(OrigTable!E665,\"00\"))","v":""},{"$f":"IF(OrigTable!E665=\"\",\"\",ScriptText!$E$1&CHAR(10)&ScriptText!$C$1)","v":""},{"$f":"IF(OrigTable!F665=\"\",\"\",ScriptText!$B$1&CHAR(10)&ScriptText!$D$1)","v":""},{"$f":"IF(OrigTable!F665=\"\",\"\",TEXT(OrigTable!F665,\"00\"))","v":""},{"$f":"IF(OrigTable!F665=\"\",\"\",ScriptText!$E$1&CHAR(10)&ScriptText!$C$1)","v":""},{"$f":"IF(OrigTable!G665=\"\",\"\",ScriptText!$B$1&CHAR(10)&ScriptText!$D$1)","v":""},{"$f":"IF(OrigTable!G665=\"\",\"\",TEXT(OrigTable!G665,\"00\"))","v":""},{"$f":"IF(OrigTable!G665=\"\",\"\",ScriptText!$E$1&CHAR(10)&ScriptText!$C$1)","v":""},0]
["\n\n\n",{"$f":"IF(OrigTable!A666=\"\",\"\",ScriptText!$B$1&CHAR(10)&ScriptText!$D$1)","v":""},{"$f":"IF(OrigTable!A666=\"\",\"\",TEXT(OrigTable!A666,\"00\"))","v":""},{"$f":"IF(OrigTable!A666=\"\",\"\",ScriptText!$E$1&CHAR(10)&ScriptText!$C$1)","v":""},{"$f":"IF(OrigTable!B666=\"\",\"\",ScriptText!$B$1&CHAR(10)&ScriptText!$D$1)","v":""},{"$f":"IF(OrigTable!B666=\"\",\"\",TEXT(OrigTable!B666,\"00\"))","v":""},{"$f":"IF(OrigTable!B666=\"\",\"\",ScriptText!$E$1&CHAR(10)&ScriptText!C661)","v":""},{"$f":"IF(OrigTable!C666=\"\",\"\",ScriptText!$B$1&CHAR(10)&ScriptText!$D$1)","v":""},{"$f":"IF(OrigTable!C666=\"\",\"\",IF(LEN(OrigTable!C666)>255,LEFT(OrigTable!C666,250)&\". . .\",OrigTable!C666))","v":""},{"$f":"IF(OrigTable!C666=\"\",\"\",ScriptText!$E$1&CHAR(10)&ScriptText!$C$1)","v":""},{"$f":"IF(OrigTable!D666=\"\",\"\",ScriptText!$B$1&CHAR(10)&ScriptText!$D$1)","v":""},{"$f":"IF(OrigTable!D666=\"\",\"\",TEXT(OrigTable!D666,\"00\"))","v":""},{"$f":"IF(OrigTable!D666=\"\",\"\",ScriptText!$E$1&CHAR(10)&ScriptText!$C$1)","v":""},{"$f":"IF(OrigTable!E666=\"\",\"\",ScriptText!$B$1&CHAR(10)&ScriptText!$D$1)","v":""},{"$f":"IF(OrigTable!E666=\"\",\"\",TEXT(OrigTable!E666,\"00\"))","v":""},{"$f":"IF(OrigTable!E666=\"\",\"\",ScriptText!$E$1&CHAR(10)&ScriptText!$C$1)","v":""},{"$f":"IF(OrigTable!F666=\"\",\"\",ScriptText!$B$1&CHAR(10)&ScriptText!$D$1)","v":""},{"$f":"IF(OrigTable!F666=\"\",\"\",TEXT(OrigTable!F666,\"00\"))","v":""},{"$f":"IF(OrigTable!F666=\"\",\"\",ScriptText!$E$1&CHAR(10)&ScriptText!$C$1)","v":""},{"$f":"IF(OrigTable!G666=\"\",\"\",ScriptText!$B$1&CHAR(10)&ScriptText!$D$1)","v":""},{"$f":"IF(OrigTable!G666=\"\",\"\",TEXT(OrigTable!G666,\"00\"))","v":""},{"$f":"IF(OrigTable!G666=\"\",\"\",ScriptText!$E$1&CHAR(10)&ScriptText!$C$1)","v":""},0]
["\n\n\n",{"$f":"IF(OrigTable!A667=\"\",\"\",ScriptText!$B$1&CHAR(10)&ScriptText!$D$1)","v":""},{"$f":"IF(OrigTable!A667=\"\",\"\",TEXT(OrigTable!A667,\"00\"))","v":""},{"$f":"IF(OrigTable!A667=\"\",\"\",ScriptText!$E$1&CHAR(10)&ScriptText!$C$1)","v":""},{"$f":"IF(OrigTable!B667=\"\",\"\",ScriptText!$B$1&CHAR(10)&ScriptText!$D$1)","v":""},{"$f":"IF(OrigTable!B667=\"\",\"\",TEXT(OrigTable!B667,\"00\"))","v":""},{"$f":"IF(OrigTable!B667=\"\",\"\",ScriptText!$E$1&CHAR(10)&ScriptText!C662)","v":""},{"$f":"IF(OrigTable!C667=\"\",\"\",ScriptText!$B$1&CHAR(10)&ScriptText!$D$1)","v":""},{"$f":"IF(OrigTable!C667=\"\",\"\",IF(LEN(OrigTable!C667)>255,LEFT(OrigTable!C667,250)&\". . .\",OrigTable!C667))","v":""},{"$f":"IF(OrigTable!C667=\"\",\"\",ScriptText!$E$1&CHAR(10)&ScriptText!$C$1)","v":""},{"$f":"IF(OrigTable!D667=\"\",\"\",ScriptText!$B$1&CHAR(10)&ScriptText!$D$1)","v":""},{"$f":"IF(OrigTable!D667=\"\",\"\",TEXT(OrigTable!D667,\"00\"))","v":""},{"$f":"IF(OrigTable!D667=\"\",\"\",ScriptText!$E$1&CHAR(10)&ScriptText!$C$1)","v":""},{"$f":"IF(OrigTable!E667=\"\",\"\",ScriptText!$B$1&CHAR(10)&ScriptText!$D$1)","v":""},{"$f":"IF(OrigTable!E667=\"\",\"\",TEXT(OrigTable!E667,\"00\"))","v":""},{"$f":"IF(OrigTable!E667=\"\",\"\",ScriptText!$E$1&CHAR(10)&ScriptText!$C$1)","v":""},{"$f":"IF(OrigTable!F667=\"\",\"\",ScriptText!$B$1&CHAR(10)&ScriptText!$D$1)","v":""},{"$f":"IF(OrigTable!F667=\"\",\"\",TEXT(OrigTable!F667,\"00\"))","v":""},{"$f":"IF(OrigTable!F667=\"\",\"\",ScriptText!$E$1&CHAR(10)&ScriptText!$C$1)","v":""},{"$f":"IF(OrigTable!G667=\"\",\"\",ScriptText!$B$1&CHAR(10)&ScriptText!$D$1)","v":""},{"$f":"IF(OrigTable!G667=\"\",\"\",TEXT(OrigTable!G667,\"00\"))","v":""},{"$f":"IF(OrigTable!G667=\"\",\"\",ScriptText!$E$1&CHAR(10)&ScriptText!$C$1)","v":""},0]
["\n\n\n",{"$f":"IF(OrigTable!A668=\"\",\"\",ScriptText!$B$1&CHAR(10)&ScriptText!$D$1)","v":""},{"$f":"IF(OrigTable!A668=\"\",\"\",TEXT(OrigTable!A668,\"00\"))","v":""},{"$f":"IF(OrigTable!A668=\"\",\"\",ScriptText!$E$1&CHAR(10)&ScriptText!$C$1)","v":""},{"$f":"IF(OrigTable!B668=\"\",\"\",ScriptText!$B$1&CHAR(10)&ScriptText!$D$1)","v":""},{"$f":"IF(OrigTable!B668=\"\",\"\",TEXT(OrigTable!B668,\"00\"))","v":""},{"$f":"IF(OrigTable!B668=\"\",\"\",ScriptText!$E$1&CHAR(10)&ScriptText!C663)","v":""},{"$f":"IF(OrigTable!C668=\"\",\"\",ScriptText!$B$1&CHAR(10)&ScriptText!$D$1)","v":""},{"$f":"IF(OrigTable!C668=\"\",\"\",IF(LEN(OrigTable!C668)>255,LEFT(OrigTable!C668,250)&\". . .\",OrigTable!C668))","v":""},{"$f":"IF(OrigTable!C668=\"\",\"\",ScriptText!$E$1&CHAR(10)&ScriptText!$C$1)","v":""},{"$f":"IF(OrigTable!D668=\"\",\"\",ScriptText!$B$1&CHAR(10)&ScriptText!$D$1)","v":""},{"$f":"IF(OrigTable!D668=\"\",\"\",TEXT(OrigTable!D668,\"00\"))","v":""},{"$f":"IF(OrigTable!D668=\"\",\"\",ScriptText!$E$1&CHAR(10)&ScriptText!$C$1)","v":""},{"$f":"IF(OrigTable!E668=\"\",\"\",ScriptText!$B$1&CHAR(10)&ScriptText!$D$1)","v":""},{"$f":"IF(OrigTable!E668=\"\",\"\",TEXT(OrigTable!E668,\"00\"))","v":""},{"$f":"IF(OrigTable!E668=\"\",\"\",ScriptText!$E$1&CHAR(10)&ScriptText!$C$1)","v":""},{"$f":"IF(OrigTable!F668=\"\",\"\",ScriptText!$B$1&CHAR(10)&ScriptText!$D$1)","v":""},{"$f":"IF(OrigTable!F668=\"\",\"\",TEXT(OrigTable!F668,\"00\"))","v":""},{"$f":"IF(OrigTable!F668=\"\",\"\",ScriptText!$E$1&CHAR(10)&ScriptText!$C$1)","v":""},{"$f":"IF(OrigTable!G668=\"\",\"\",ScriptText!$B$1&CHAR(10)&ScriptText!$D$1)","v":""},{"$f":"IF(OrigTable!G668=\"\",\"\",TEXT(OrigTable!G668,\"00\"))","v":""},{"$f":"IF(OrigTable!G668=\"\",\"\",ScriptText!$E$1&CHAR(10)&ScriptText!$C$1)","v":""},0]
["\n\n\n",{"$f":"IF(OrigTable!A669=\"\",\"\",ScriptText!$B$1&CHAR(10)&ScriptText!$D$1)","v":""},{"$f":"IF(OrigTable!A669=\"\",\"\",TEXT(OrigTable!A669,\"00\"))","v":""},{"$f":"IF(OrigTable!A669=\"\",\"\",ScriptText!$E$1&CHAR(10)&ScriptText!$C$1)","v":""},{"$f":"IF(OrigTable!B669=\"\",\"\",ScriptText!$B$1&CHAR(10)&ScriptText!$D$1)","v":""},{"$f":"IF(OrigTable!B669=\"\",\"\",TEXT(OrigTable!B669,\"00\"))","v":""},{"$f":"IF(OrigTable!B669=\"\",\"\",ScriptText!$E$1&CHAR(10)&ScriptText!C664)","v":""},{"$f":"IF(OrigTable!C669=\"\",\"\",ScriptText!$B$1&CHAR(10)&ScriptText!$D$1)","v":""},{"$f":"IF(OrigTable!C669=\"\",\"\",IF(LEN(OrigTable!C669)>255,LEFT(OrigTable!C669,250)&\". . .\",OrigTable!C669))","v":""},{"$f":"IF(OrigTable!C669=\"\",\"\",ScriptText!$E$1&CHAR(10)&ScriptText!$C$1)","v":""},{"$f":"IF(OrigTable!D669=\"\",\"\",ScriptText!$B$1&CHAR(10)&ScriptText!$D$1)","v":""},{"$f":"IF(OrigTable!D669=\"\",\"\",TEXT(OrigTable!D669,\"00\"))","v":""},{"$f":"IF(OrigTable!D669=\"\",\"\",ScriptText!$E$1&CHAR(10)&ScriptText!$C$1)","v":""},{"$f":"IF(OrigTable!E669=\"\",\"\",ScriptText!$B$1&CHAR(10)&ScriptText!$D$1)","v":""},{"$f":"IF(OrigTable!E669=\"\",\"\",TEXT(OrigTable!E669,\"00\"))","v":""},{"$f":"IF(OrigTable!E669=\"\",\"\",ScriptText!$E$1&CHAR(10)&ScriptText!$C$1)","v":""},{"$f":"IF(OrigTable!F669=\"\",\"\",ScriptText!$B$1&CHAR(10)&ScriptText!$D$1)","v":""},{"$f":"IF(OrigTable!F669=\"\",\"\",TEXT(OrigTable!F669,\"00\"))","v":""},{"$f":"IF(OrigTable!F669=\"\",\"\",ScriptText!$E$1&CHAR(10)&ScriptText!$C$1)","v":""},{"$f":"IF(OrigTable!G669=\"\",\"\",ScriptText!$B$1&CHAR(10)&ScriptText!$D$1)","v":""},{"$f":"IF(OrigTable!G669=\"\",\"\",TEXT(OrigTable!G669,\"00\"))","v":""},{"$f":"IF(OrigTable!G669=\"\",\"\",ScriptText!$E$1&CHAR(10)&ScriptText!$C$1)","v":""},0]
["\n\n\n",{"$f":"IF(OrigTable!A670=\"\",\"\",ScriptText!$B$1&CHAR(10)&ScriptText!$D$1)","v":""},{"$f":"IF(OrigTable!A670=\"\",\"\",TEXT(OrigTable!A670,\"00\"))","v":""},{"$f":"IF(OrigTable!A670=\"\",\"\",ScriptText!$E$1&CHAR(10)&ScriptText!$C$1)","v":""},{"$f":"IF(OrigTable!B670=\"\",\"\",ScriptText!$B$1&CHAR(10)&ScriptText!$D$1)","v":""},{"$f":"IF(OrigTable!B670=\"\",\"\",TEXT(OrigTable!B670,\"00\"))","v":""},{"$f":"IF(OrigTable!B670=\"\",\"\",ScriptText!$E$1&CHAR(10)&ScriptText!C665)","v":""},{"$f":"IF(OrigTable!C670=\"\",\"\",ScriptText!$B$1&CHAR(10)&ScriptText!$D$1)","v":""},{"$f":"IF(OrigTable!C670=\"\",\"\",IF(LEN(OrigTable!C670)>255,LEFT(OrigTable!C670,250)&\". . .\",OrigTable!C670))","v":""},{"$f":"IF(OrigTable!C670=\"\",\"\",ScriptText!$E$1&CHAR(10)&ScriptText!$C$1)","v":""},{"$f":"IF(OrigTable!D670=\"\",\"\",ScriptText!$B$1&CHAR(10)&ScriptText!$D$1)","v":""},{"$f":"IF(OrigTable!D670=\"\",\"\",TEXT(OrigTable!D670,\"00\"))","v":""},{"$f":"IF(OrigTable!D670=\"\",\"\",ScriptText!$E$1&CHAR(10)&ScriptText!$C$1)","v":""},{"$f":"IF(OrigTable!E670=\"\",\"\",ScriptText!$B$1&CHAR(10)&ScriptText!$D$1)","v":""},{"$f":"IF(OrigTable!E670=\"\",\"\",TEXT(OrigTable!E670,\"00\"))","v":""},{"$f":"IF(OrigTable!E670=\"\",\"\",ScriptText!$E$1&CHAR(10)&ScriptText!$C$1)","v":""},{"$f":"IF(OrigTable!F670=\"\",\"\",ScriptText!$B$1&CHAR(10)&ScriptText!$D$1)","v":""},{"$f":"IF(OrigTable!F670=\"\",\"\",TEXT(OrigTable!F670,\"00\"))","v":""},{"$f":"IF(OrigTable!F670=\"\",\"\",ScriptText!$E$1&CHAR(10)&ScriptText!$C$1)","v":""},{"$f":"IF(OrigTable!G670=\"\",\"\",ScriptText!$B$1&CHAR(10)&ScriptText!$D$1)","v":""},{"$f":"IF(OrigTable!G670=\"\",\"\",TEXT(OrigTable!G670,\"00\"))","v":""},{"$f":"IF(OrigTable!G670=\"\",\"\",ScriptText!$E$1&CHAR(10)&ScriptText!$C$1)","v":""},0]
["\n\n\n",{"$f":"IF(OrigTable!A671=\"\",\"\",ScriptText!$B$1&CHAR(10)&ScriptText!$D$1)","v":""},{"$f":"IF(OrigTable!A671=\"\",\"\",TEXT(OrigTable!A671,\"00\"))","v":""},{"$f":"IF(OrigTable!A671=\"\",\"\",ScriptText!$E$1&CHAR(10)&ScriptText!$C$1)","v":""},{"$f":"IF(OrigTable!B671=\"\",\"\",ScriptText!$B$1&CHAR(10)&ScriptText!$D$1)","v":""},{"$f":"IF(OrigTable!B671=\"\",\"\",TEXT(OrigTable!B671,\"00\"))","v":""},{"$f":"IF(OrigTable!B671=\"\",\"\",ScriptText!$E$1&CHAR(10)&ScriptText!C666)","v":""},{"$f":"IF(OrigTable!C671=\"\",\"\",ScriptText!$B$1&CHAR(10)&ScriptText!$D$1)","v":""},{"$f":"IF(OrigTable!C671=\"\",\"\",IF(LEN(OrigTable!C671)>255,LEFT(OrigTable!C671,250)&\". . .\",OrigTable!C671))","v":""},{"$f":"IF(OrigTable!C671=\"\",\"\",ScriptText!$E$1&CHAR(10)&ScriptText!$C$1)","v":""},{"$f":"IF(OrigTable!D671=\"\",\"\",ScriptText!$B$1&CHAR(10)&ScriptText!$D$1)","v":""},{"$f":"IF(OrigTable!D671=\"\",\"\",TEXT(OrigTable!D671,\"00\"))","v":""},{"$f":"IF(OrigTable!D671=\"\",\"\",ScriptText!$E$1&CHAR(10)&ScriptText!$C$1)","v":""},{"$f":"IF(OrigTable!E671=\"\",\"\",ScriptText!$B$1&CHAR(10)&ScriptText!$D$1)","v":""},{"$f":"IF(OrigTable!E671=\"\",\"\",TEXT(OrigTable!E671,\"00\"))","v":""},{"$f":"IF(OrigTable!E671=\"\",\"\",ScriptText!$E$1&CHAR(10)&ScriptText!$C$1)","v":""},{"$f":"IF(OrigTable!F671=\"\",\"\",ScriptText!$B$1&CHAR(10)&ScriptText!$D$1)","v":""},{"$f":"IF(OrigTable!F671=\"\",\"\",TEXT(OrigTable!F671,\"00\"))","v":""},{"$f":"IF(OrigTable!F671=\"\",\"\",ScriptText!$E$1&CHAR(10)&ScriptText!$C$1)","v":""},{"$f":"IF(OrigTable!G671=\"\",\"\",ScriptText!$B$1&CHAR(10)&ScriptText!$D$1)","v":""},{"$f":"IF(OrigTable!G671=\"\",\"\",TEXT(OrigTable!G671,\"00\"))","v":""},{"$f":"IF(OrigTable!G671=\"\",\"\",ScriptText!$E$1&CHAR(10)&ScriptText!$C$1)","v":""},0]
["\n\n\n",{"$f":"IF(OrigTable!A672=\"\",\"\",ScriptText!$B$1&CHAR(10)&ScriptText!$D$1)","v":""},{"$f":"IF(OrigTable!A672=\"\",\"\",TEXT(OrigTable!A672,\"00\"))","v":""},{"$f":"IF(OrigTable!A672=\"\",\"\",ScriptText!$E$1&CHAR(10)&ScriptText!$C$1)","v":""},{"$f":"IF(OrigTable!B672=\"\",\"\",ScriptText!$B$1&CHAR(10)&ScriptText!$D$1)","v":""},{"$f":"IF(OrigTable!B672=\"\",\"\",TEXT(OrigTable!B672,\"00\"))","v":""},{"$f":"IF(OrigTable!B672=\"\",\"\",ScriptText!$E$1&CHAR(10)&ScriptText!C667)","v":""},{"$f":"IF(OrigTable!C672=\"\",\"\",ScriptText!$B$1&CHAR(10)&ScriptText!$D$1)","v":""},{"$f":"IF(OrigTable!C672=\"\",\"\",IF(LEN(OrigTable!C672)>255,LEFT(OrigTable!C672,250)&\". . .\",OrigTable!C672))","v":""},{"$f":"IF(OrigTable!C672=\"\",\"\",ScriptText!$E$1&CHAR(10)&ScriptText!$C$1)","v":""},{"$f":"IF(OrigTable!D672=\"\",\"\",ScriptText!$B$1&CHAR(10)&ScriptText!$D$1)","v":""},{"$f":"IF(OrigTable!D672=\"\",\"\",TEXT(OrigTable!D672,\"00\"))","v":""},{"$f":"IF(OrigTable!D672=\"\",\"\",ScriptText!$E$1&CHAR(10)&ScriptText!$C$1)","v":""},{"$f":"IF(OrigTable!E672=\"\",\"\",ScriptText!$B$1&CHAR(10)&ScriptText!$D$1)","v":""},{"$f":"IF(OrigTable!E672=\"\",\"\",TEXT(OrigTable!E672,\"00\"))","v":""},{"$f":"IF(OrigTable!E672=\"\",\"\",ScriptText!$E$1&CHAR(10)&ScriptText!$C$1)","v":""},{"$f":"IF(OrigTable!F672=\"\",\"\",ScriptText!$B$1&CHAR(10)&ScriptText!$D$1)","v":""},{"$f":"IF(OrigTable!F672=\"\",\"\",TEXT(OrigTable!F672,\"00\"))","v":""},{"$f":"IF(OrigTable!F672=\"\",\"\",ScriptText!$E$1&CHAR(10)&ScriptText!$C$1)","v":""},{"$f":"IF(OrigTable!G672=\"\",\"\",ScriptText!$B$1&CHAR(10)&ScriptText!$D$1)","v":""},{"$f":"IF(OrigTable!G672=\"\",\"\",TEXT(OrigTable!G672,\"00\"))","v":""},{"$f":"IF(OrigTable!G672=\"\",\"\",ScriptText!$E$1&CHAR(10)&ScriptText!$C$1)","v":""},0]
["\n\n\n",{"$f":"IF(OrigTable!A673=\"\",\"\",ScriptText!$B$1&CHAR(10)&ScriptText!$D$1)","v":""},{"$f":"IF(OrigTable!A673=\"\",\"\",TEXT(OrigTable!A673,\"00\"))","v":""},{"$f":"IF(OrigTable!A673=\"\",\"\",ScriptText!$E$1&CHAR(10)&ScriptText!$C$1)","v":""},{"$f":"IF(OrigTable!B673=\"\",\"\",ScriptText!$B$1&CHAR(10)&ScriptText!$D$1)","v":""},{"$f":"IF(OrigTable!B673=\"\",\"\",TEXT(OrigTable!B673,\"00\"))","v":""},{"$f":"IF(OrigTable!B673=\"\",\"\",ScriptText!$E$1&CHAR(10)&ScriptText!C668)","v":""},{"$f":"IF(OrigTable!C673=\"\",\"\",ScriptText!$B$1&CHAR(10)&ScriptText!$D$1)","v":""},{"$f":"IF(OrigTable!C673=\"\",\"\",IF(LEN(OrigTable!C673)>255,LEFT(OrigTable!C673,250)&\". . .\",OrigTable!C673))","v":""},{"$f":"IF(OrigTable!C673=\"\",\"\",ScriptText!$E$1&CHAR(10)&ScriptText!$C$1)","v":""},{"$f":"IF(OrigTable!D673=\"\",\"\",ScriptText!$B$1&CHAR(10)&ScriptText!$D$1)","v":""},{"$f":"IF(OrigTable!D673=\"\",\"\",TEXT(OrigTable!D673,\"00\"))","v":""},{"$f":"IF(OrigTable!D673=\"\",\"\",ScriptText!$E$1&CHAR(10)&ScriptText!$C$1)","v":""},{"$f":"IF(OrigTable!E673=\"\",\"\",ScriptText!$B$1&CHAR(10)&ScriptText!$D$1)","v":""},{"$f":"IF(OrigTable!E673=\"\",\"\",TEXT(OrigTable!E673,\"00\"))","v":""},{"$f":"IF(OrigTable!E673=\"\",\"\",ScriptText!$E$1&CHAR(10)&ScriptText!$C$1)","v":""},{"$f":"IF(OrigTable!F673=\"\",\"\",ScriptText!$B$1&CHAR(10)&ScriptText!$D$1)","v":""},{"$f":"IF(OrigTable!F673=\"\",\"\",TEXT(OrigTable!F673,\"00\"))","v":""},{"$f":"IF(OrigTable!F673=\"\",\"\",ScriptText!$E$1&CHAR(10)&ScriptText!$C$1)","v":""},{"$f":"IF(OrigTable!G673=\"\",\"\",ScriptText!$B$1&CHAR(10)&ScriptText!$D$1)","v":""},{"$f":"IF(OrigTable!G673=\"\",\"\",TEXT(OrigTable!G673,\"00\"))","v":""},{"$f":"IF(OrigTable!G673=\"\",\"\",ScriptText!$E$1&CHAR(10)&ScriptText!$C$1)","v":""},0]
["\n\n\n",{"$f":"IF(OrigTable!A674=\"\",\"\",ScriptText!$B$1&CHAR(10)&ScriptText!$D$1)","v":""},{"$f":"IF(OrigTable!A674=\"\",\"\",TEXT(OrigTable!A674,\"00\"))","v":""},{"$f":"IF(OrigTable!A674=\"\",\"\",ScriptText!$E$1&CHAR(10)&ScriptText!$C$1)","v":""},{"$f":"IF(OrigTable!B674=\"\",\"\",ScriptText!$B$1&CHAR(10)&ScriptText!$D$1)","v":""},{"$f":"IF(OrigTable!B674=\"\",\"\",TEXT(OrigTable!B674,\"00\"))","v":""},{"$f":"IF(OrigTable!B674=\"\",\"\",ScriptText!$E$1&CHAR(10)&ScriptText!C669)","v":""},{"$f":"IF(OrigTable!C674=\"\",\"\",ScriptText!$B$1&CHAR(10)&ScriptText!$D$1)","v":""},{"$f":"IF(OrigTable!C674=\"\",\"\",IF(LEN(OrigTable!C674)>255,LEFT(OrigTable!C674,250)&\". . .\",OrigTable!C674))","v":""},{"$f":"IF(OrigTable!C674=\"\",\"\",ScriptText!$E$1&CHAR(10)&ScriptText!$C$1)","v":""},{"$f":"IF(OrigTable!D674=\"\",\"\",ScriptText!$B$1&CHAR(10)&ScriptText!$D$1)","v":""},{"$f":"IF(OrigTable!D674=\"\",\"\",TEXT(OrigTable!D674,\"00\"))","v":""},{"$f":"IF(OrigTable!D674=\"\",\"\",ScriptText!$E$1&CHAR(10)&ScriptText!$C$1)","v":""},{"$f":"IF(OrigTable!E674=\"\",\"\",ScriptText!$B$1&CHAR(10)&ScriptText!$D$1)","v":""},{"$f":"IF(OrigTable!E674=\"\",\"\",TEXT(OrigTable!E674,\"00\"))","v":""},{"$f":"IF(OrigTable!E674=\"\",\"\",ScriptText!$E$1&CHAR(10)&ScriptText!$C$1)","v":""},{"$f":"IF(OrigTable!F674=\"\",\"\",ScriptText!$B$1&CHAR(10)&ScriptText!$D$1)","v":""},{"$f":"IF(OrigTable!F674=\"\",\"\",TEXT(OrigTable!F674,\"00\"))","v":""},{"$f":"IF(OrigTable!F674=\"\",\"\",ScriptText!$E$1&CHAR(10)&ScriptText!$C$1)","v":""},{"$f":"IF(OrigTable!G674=\"\",\"\",ScriptText!$B$1&CHAR(10)&ScriptText!$D$1)","v":""},{"$f":"IF(OrigTable!G674=\"\",\"\",TEXT(OrigTable!G674,\"00\"))","v":""},{"$f":"IF(OrigTable!G674=\"\",\"\",ScriptText!$E$1&CHAR(10)&ScriptText!$C$1)","v":""},0]
["\n\n\n",{"$f":"IF(OrigTable!A675=\"\",\"\",ScriptText!$B$1&CHAR(10)&ScriptText!$D$1)","v":""},{"$f":"IF(OrigTable!A675=\"\",\"\",TEXT(OrigTable!A675,\"00\"))","v":""},{"$f":"IF(OrigTable!A675=\"\",\"\",ScriptText!$E$1&CHAR(10)&ScriptText!$C$1)","v":""},{"$f":"IF(OrigTable!B675=\"\",\"\",ScriptText!$B$1&CHAR(10)&ScriptText!$D$1)","v":""},{"$f":"IF(OrigTable!B675=\"\",\"\",TEXT(OrigTable!B675,\"00\"))","v":""},{"$f":"IF(OrigTable!B675=\"\",\"\",ScriptText!$E$1&CHAR(10)&ScriptText!C670)","v":""},{"$f":"IF(OrigTable!C675=\"\",\"\",ScriptText!$B$1&CHAR(10)&ScriptText!$D$1)","v":""},{"$f":"IF(OrigTable!C675=\"\",\"\",IF(LEN(OrigTable!C675)>255,LEFT(OrigTable!C675,250)&\". . .\",OrigTable!C675))","v":""},{"$f":"IF(OrigTable!C675=\"\",\"\",ScriptText!$E$1&CHAR(10)&ScriptText!$C$1)","v":""},{"$f":"IF(OrigTable!D675=\"\",\"\",ScriptText!$B$1&CHAR(10)&ScriptText!$D$1)","v":""},{"$f":"IF(OrigTable!D675=\"\",\"\",TEXT(OrigTable!D675,\"00\"))","v":""},{"$f":"IF(OrigTable!D675=\"\",\"\",ScriptText!$E$1&CHAR(10)&ScriptText!$C$1)","v":""},{"$f":"IF(OrigTable!E675=\"\",\"\",ScriptText!$B$1&CHAR(10)&ScriptText!$D$1)","v":""},{"$f":"IF(OrigTable!E675=\"\",\"\",TEXT(OrigTable!E675,\"00\"))","v":""},{"$f":"IF(OrigTable!E675=\"\",\"\",ScriptText!$E$1&CHAR(10)&ScriptText!$C$1)","v":""},{"$f":"IF(OrigTable!F675=\"\",\"\",ScriptText!$B$1&CHAR(10)&ScriptText!$D$1)","v":""},{"$f":"IF(OrigTable!F675=\"\",\"\",TEXT(OrigTable!F675,\"00\"))","v":""},{"$f":"IF(OrigTable!F675=\"\",\"\",ScriptText!$E$1&CHAR(10)&ScriptText!$C$1)","v":""},{"$f":"IF(OrigTable!G675=\"\",\"\",ScriptText!$B$1&CHAR(10)&ScriptText!$D$1)","v":""},{"$f":"IF(OrigTable!G675=\"\",\"\",TEXT(OrigTable!G675,\"00\"))","v":""},{"$f":"IF(OrigTable!G675=\"\",\"\",ScriptText!$E$1&CHAR(10)&ScriptText!$C$1)","v":""},0]
["\n\n\n",{"$f":"IF(OrigTable!A676=\"\",\"\",ScriptText!$B$1&CHAR(10)&ScriptText!$D$1)","v":""},{"$f":"IF(OrigTable!A676=\"\",\"\",TEXT(OrigTable!A676,\"00\"))","v":""},{"$f":"IF(OrigTable!A676=\"\",\"\",ScriptText!$E$1&CHAR(10)&ScriptText!$C$1)","v":""},{"$f":"IF(OrigTable!B676=\"\",\"\",ScriptText!$B$1&CHAR(10)&ScriptText!$D$1)","v":""},{"$f":"IF(OrigTable!B676=\"\",\"\",TEXT(OrigTable!B676,\"00\"))","v":""},{"$f":"IF(OrigTable!B676=\"\",\"\",ScriptText!$E$1&CHAR(10)&ScriptText!C671)","v":""},{"$f":"IF(OrigTable!C676=\"\",\"\",ScriptText!$B$1&CHAR(10)&ScriptText!$D$1)","v":""},{"$f":"IF(OrigTable!C676=\"\",\"\",IF(LEN(OrigTable!C676)>255,LEFT(OrigTable!C676,250)&\". . .\",OrigTable!C676))","v":""},{"$f":"IF(OrigTable!C676=\"\",\"\",ScriptText!$E$1&CHAR(10)&ScriptText!$C$1)","v":""},{"$f":"IF(OrigTable!D676=\"\",\"\",ScriptText!$B$1&CHAR(10)&ScriptText!$D$1)","v":""},{"$f":"IF(OrigTable!D676=\"\",\"\",TEXT(OrigTable!D676,\"00\"))","v":""},{"$f":"IF(OrigTable!D676=\"\",\"\",ScriptText!$E$1&CHAR(10)&ScriptText!$C$1)","v":""},{"$f":"IF(OrigTable!E676=\"\",\"\",ScriptText!$B$1&CHAR(10)&ScriptText!$D$1)","v":""},{"$f":"IF(OrigTable!E676=\"\",\"\",TEXT(OrigTable!E676,\"00\"))","v":""},{"$f":"IF(OrigTable!E676=\"\",\"\",ScriptText!$E$1&CHAR(10)&ScriptText!$C$1)","v":""},{"$f":"IF(OrigTable!F676=\"\",\"\",ScriptText!$B$1&CHAR(10)&ScriptText!$D$1)","v":""},{"$f":"IF(OrigTable!F676=\"\",\"\",TEXT(OrigTable!F676,\"00\"))","v":""},{"$f":"IF(OrigTable!F676=\"\",\"\",ScriptText!$E$1&CHAR(10)&ScriptText!$C$1)","v":""},{"$f":"IF(OrigTable!G676=\"\",\"\",ScriptText!$B$1&CHAR(10)&ScriptText!$D$1)","v":""},{"$f":"IF(OrigTable!G676=\"\",\"\",TEXT(OrigTable!G676,\"00\"))","v":""},{"$f":"IF(OrigTable!G676=\"\",\"\",ScriptText!$E$1&CHAR(10)&ScriptText!$C$1)","v":""},0]
["\n\n\n",{"$f":"IF(OrigTable!A677=\"\",\"\",ScriptText!$B$1&CHAR(10)&ScriptText!$D$1)","v":""},{"$f":"IF(OrigTable!A677=\"\",\"\",TEXT(OrigTable!A677,\"00\"))","v":""},{"$f":"IF(OrigTable!A677=\"\",\"\",ScriptText!$E$1&CHAR(10)&ScriptText!$C$1)","v":""},{"$f":"IF(OrigTable!B677=\"\",\"\",ScriptText!$B$1&CHAR(10)&ScriptText!$D$1)","v":""},{"$f":"IF(OrigTable!B677=\"\",\"\",TEXT(OrigTable!B677,\"00\"))","v":""},{"$f":"IF(OrigTable!B677=\"\",\"\",ScriptText!$E$1&CHAR(10)&ScriptText!C672)","v":""},{"$f":"IF(OrigTable!C677=\"\",\"\",ScriptText!$B$1&CHAR(10)&ScriptText!$D$1)","v":""},{"$f":"IF(OrigTable!C677=\"\",\"\",IF(LEN(OrigTable!C677)>255,LEFT(OrigTable!C677,250)&\". . .\",OrigTable!C677))","v":""},{"$f":"IF(OrigTable!C677=\"\",\"\",ScriptText!$E$1&CHAR(10)&ScriptText!$C$1)","v":""},{"$f":"IF(OrigTable!D677=\"\",\"\",ScriptText!$B$1&CHAR(10)&ScriptText!$D$1)","v":""},{"$f":"IF(OrigTable!D677=\"\",\"\",TEXT(OrigTable!D677,\"00\"))","v":""},{"$f":"IF(OrigTable!D677=\"\",\"\",ScriptText!$E$1&CHAR(10)&ScriptText!$C$1)","v":""},{"$f":"IF(OrigTable!E677=\"\",\"\",ScriptText!$B$1&CHAR(10)&ScriptText!$D$1)","v":""},{"$f":"IF(OrigTable!E677=\"\",\"\",TEXT(OrigTable!E677,\"00\"))","v":""},{"$f":"IF(OrigTable!E677=\"\",\"\",ScriptText!$E$1&CHAR(10)&ScriptText!$C$1)","v":""},{"$f":"IF(OrigTable!F677=\"\",\"\",ScriptText!$B$1&CHAR(10)&ScriptText!$D$1)","v":""},{"$f":"IF(OrigTable!F677=\"\",\"\",TEXT(OrigTable!F677,\"00\"))","v":""},{"$f":"IF(OrigTable!F677=\"\",\"\",ScriptText!$E$1&CHAR(10)&ScriptText!$C$1)","v":""},{"$f":"IF(OrigTable!G677=\"\",\"\",ScriptText!$B$1&CHAR(10)&ScriptText!$D$1)","v":""},{"$f":"IF(OrigTable!G677=\"\",\"\",TEXT(OrigTable!G677,\"00\"))","v":""},{"$f":"IF(OrigTable!G677=\"\",\"\",ScriptText!$E$1&CHAR(10)&ScriptText!$C$1)","v":""},0]
["\n\n\n",{"$f":"IF(OrigTable!A678=\"\",\"\",ScriptText!$B$1&CHAR(10)&ScriptText!$D$1)","v":""},{"$f":"IF(OrigTable!A678=\"\",\"\",TEXT(OrigTable!A678,\"00\"))","v":""},{"$f":"IF(OrigTable!A678=\"\",\"\",ScriptText!$E$1&CHAR(10)&ScriptText!$C$1)","v":""},{"$f":"IF(OrigTable!B678=\"\",\"\",ScriptText!$B$1&CHAR(10)&ScriptText!$D$1)","v":""},{"$f":"IF(OrigTable!B678=\"\",\"\",TEXT(OrigTable!B678,\"00\"))","v":""},{"$f":"IF(OrigTable!B678=\"\",\"\",ScriptText!$E$1&CHAR(10)&ScriptText!C673)","v":""},{"$f":"IF(OrigTable!C678=\"\",\"\",ScriptText!$B$1&CHAR(10)&ScriptText!$D$1)","v":""},{"$f":"IF(OrigTable!C678=\"\",\"\",IF(LEN(OrigTable!C678)>255,LEFT(OrigTable!C678,250)&\". . .\",OrigTable!C678))","v":""},{"$f":"IF(OrigTable!C678=\"\",\"\",ScriptText!$E$1&CHAR(10)&ScriptText!$C$1)","v":""},{"$f":"IF(OrigTable!D678=\"\",\"\",ScriptText!$B$1&CHAR(10)&ScriptText!$D$1)","v":""},{"$f":"IF(OrigTable!D678=\"\",\"\",TEXT(OrigTable!D678,\"00\"))","v":""},{"$f":"IF(OrigTable!D678=\"\",\"\",ScriptText!$E$1&CHAR(10)&ScriptText!$C$1)","v":""},{"$f":"IF(OrigTable!E678=\"\",\"\",ScriptText!$B$1&CHAR(10)&ScriptText!$D$1)","v":""},{"$f":"IF(OrigTable!E678=\"\",\"\",TEXT(OrigTable!E678,\"00\"))","v":""},{"$f":"IF(OrigTable!E678=\"\",\"\",ScriptText!$E$1&CHAR(10)&ScriptText!$C$1)","v":""},{"$f":"IF(OrigTable!F678=\"\",\"\",ScriptText!$B$1&CHAR(10)&ScriptText!$D$1)","v":""},{"$f":"IF(OrigTable!F678=\"\",\"\",TEXT(OrigTable!F678,\"00\"))","v":""},{"$f":"IF(OrigTable!F678=\"\",\"\",ScriptText!$E$1&CHAR(10)&ScriptText!$C$1)","v":""},{"$f":"IF(OrigTable!G678=\"\",\"\",ScriptText!$B$1&CHAR(10)&ScriptText!$D$1)","v":""},{"$f":"IF(OrigTable!G678=\"\",\"\",TEXT(OrigTable!G678,\"00\"))","v":""},{"$f":"IF(OrigTable!G678=\"\",\"\",ScriptText!$E$1&CHAR(10)&ScriptText!$C$1)","v":""},0]
["\n\n\n",{"$f":"IF(OrigTable!A679=\"\",\"\",ScriptText!$B$1&CHAR(10)&ScriptText!$D$1)","v":""},{"$f":"IF(OrigTable!A679=\"\",\"\",TEXT(OrigTable!A679,\"00\"))","v":""},{"$f":"IF(OrigTable!A679=\"\",\"\",ScriptText!$E$1&CHAR(10)&ScriptText!$C$1)","v":""},{"$f":"IF(OrigTable!B679=\"\",\"\",ScriptText!$B$1&CHAR(10)&ScriptText!$D$1)","v":""},{"$f":"IF(OrigTable!B679=\"\",\"\",TEXT(OrigTable!B679,\"00\"))","v":""},{"$f":"IF(OrigTable!B679=\"\",\"\",ScriptText!$E$1&CHAR(10)&ScriptText!C674)","v":""},{"$f":"IF(OrigTable!C679=\"\",\"\",ScriptText!$B$1&CHAR(10)&ScriptText!$D$1)","v":""},{"$f":"IF(OrigTable!C679=\"\",\"\",IF(LEN(OrigTable!C679)>255,LEFT(OrigTable!C679,250)&\". . .\",OrigTable!C679))","v":""},{"$f":"IF(OrigTable!C679=\"\",\"\",ScriptText!$E$1&CHAR(10)&ScriptText!$C$1)","v":""},{"$f":"IF(OrigTable!D679=\"\",\"\",ScriptText!$B$1&CHAR(10)&ScriptText!$D$1)","v":""},{"$f":"IF(OrigTable!D679=\"\",\"\",TEXT(OrigTable!D679,\"00\"))","v":""},{"$f":"IF(OrigTable!D679=\"\",\"\",ScriptText!$E$1&CHAR(10)&ScriptText!$C$1)","v":""},{"$f":"IF(OrigTable!E679=\"\",\"\",ScriptText!$B$1&CHAR(10)&ScriptText!$D$1)","v":""},{"$f":"IF(OrigTable!E679=\"\",\"\",TEXT(OrigTable!E679,\"00\"))","v":""},{"$f":"IF(OrigTable!E679=\"\",\"\",ScriptText!$E$1&CHAR(10)&ScriptText!$C$1)","v":""},{"$f":"IF(OrigTable!F679=\"\",\"\",ScriptText!$B$1&CHAR(10)&ScriptText!$D$1)","v":""},{"$f":"IF(OrigTable!F679=\"\",\"\",TEXT(OrigTable!F679,\"00\"))","v":""},{"$f":"IF(OrigTable!F679=\"\",\"\",ScriptText!$E$1&CHAR(10)&ScriptText!$C$1)","v":""},{"$f":"IF(OrigTable!G679=\"\",\"\",ScriptText!$B$1&CHAR(10)&ScriptText!$D$1)","v":""},{"$f":"IF(OrigTable!G679=\"\",\"\",TEXT(OrigTable!G679,\"00\"))","v":""},{"$f":"IF(OrigTable!G679=\"\",\"\",ScriptText!$E$1&CHAR(10)&ScriptText!$C$1)","v":""},0]
["\n\n\n",{"$f":"IF(OrigTable!A680=\"\",\"\",ScriptText!$B$1&CHAR(10)&ScriptText!$D$1)","v":""},{"$f":"IF(OrigTable!A680=\"\",\"\",TEXT(OrigTable!A680,\"00\"))","v":""},{"$f":"IF(OrigTable!A680=\"\",\"\",ScriptText!$E$1&CHAR(10)&ScriptText!$C$1)","v":""},{"$f":"IF(OrigTable!B680=\"\",\"\",ScriptText!$B$1&CHAR(10)&ScriptText!$D$1)","v":""},{"$f":"IF(OrigTable!B680=\"\",\"\",TEXT(OrigTable!B680,\"00\"))","v":""},{"$f":"IF(OrigTable!B680=\"\",\"\",ScriptText!$E$1&CHAR(10)&ScriptText!C675)","v":""},{"$f":"IF(OrigTable!C680=\"\",\"\",ScriptText!$B$1&CHAR(10)&ScriptText!$D$1)","v":""},{"$f":"IF(OrigTable!C680=\"\",\"\",IF(LEN(OrigTable!C680)>255,LEFT(OrigTable!C680,250)&\". . .\",OrigTable!C680))","v":""},{"$f":"IF(OrigTable!C680=\"\",\"\",ScriptText!$E$1&CHAR(10)&ScriptText!$C$1)","v":""},{"$f":"IF(OrigTable!D680=\"\",\"\",ScriptText!$B$1&CHAR(10)&ScriptText!$D$1)","v":""},{"$f":"IF(OrigTable!D680=\"\",\"\",TEXT(OrigTable!D680,\"00\"))","v":""},{"$f":"IF(OrigTable!D680=\"\",\"\",ScriptText!$E$1&CHAR(10)&ScriptText!$C$1)","v":""},{"$f":"IF(OrigTable!E680=\"\",\"\",ScriptText!$B$1&CHAR(10)&ScriptText!$D$1)","v":""},{"$f":"IF(OrigTable!E680=\"\",\"\",TEXT(OrigTable!E680,\"00\"))","v":""},{"$f":"IF(OrigTable!E680=\"\",\"\",ScriptText!$E$1&CHAR(10)&ScriptText!$C$1)","v":""},{"$f":"IF(OrigTable!F680=\"\",\"\",ScriptText!$B$1&CHAR(10)&ScriptText!$D$1)","v":""},{"$f":"IF(OrigTable!F680=\"\",\"\",TEXT(OrigTable!F680,\"00\"))","v":""},{"$f":"IF(OrigTable!F680=\"\",\"\",ScriptText!$E$1&CHAR(10)&ScriptText!$C$1)","v":""},{"$f":"IF(OrigTable!G680=\"\",\"\",ScriptText!$B$1&CHAR(10)&ScriptText!$D$1)","v":""},{"$f":"IF(OrigTable!G680=\"\",\"\",TEXT(OrigTable!G680,\"00\"))","v":""},{"$f":"IF(OrigTable!G680=\"\",\"\",ScriptText!$E$1&CHAR(10)&ScriptText!$C$1)","v":""},0]
["\n\n\n",{"$f":"IF(OrigTable!A681=\"\",\"\",ScriptText!$B$1&CHAR(10)&ScriptText!$D$1)","v":""},{"$f":"IF(OrigTable!A681=\"\",\"\",TEXT(OrigTable!A681,\"00\"))","v":""},{"$f":"IF(OrigTable!A681=\"\",\"\",ScriptText!$E$1&CHAR(10)&ScriptText!$C$1)","v":""},{"$f":"IF(OrigTable!B681=\"\",\"\",ScriptText!$B$1&CHAR(10)&ScriptText!$D$1)","v":""},{"$f":"IF(OrigTable!B681=\"\",\"\",TEXT(OrigTable!B681,\"00\"))","v":""},{"$f":"IF(OrigTable!B681=\"\",\"\",ScriptText!$E$1&CHAR(10)&ScriptText!C676)","v":""},{"$f":"IF(OrigTable!C681=\"\",\"\",ScriptText!$B$1&CHAR(10)&ScriptText!$D$1)","v":""},{"$f":"IF(OrigTable!C681=\"\",\"\",IF(LEN(OrigTable!C681)>255,LEFT(OrigTable!C681,250)&\". . .\",OrigTable!C681))","v":""},{"$f":"IF(OrigTable!C681=\"\",\"\",ScriptText!$E$1&CHAR(10)&ScriptText!$C$1)","v":""},{"$f":"IF(OrigTable!D681=\"\",\"\",ScriptText!$B$1&CHAR(10)&ScriptText!$D$1)","v":""},{"$f":"IF(OrigTable!D681=\"\",\"\",TEXT(OrigTable!D681,\"00\"))","v":""},{"$f":"IF(OrigTable!D681=\"\",\"\",ScriptText!$E$1&CHAR(10)&ScriptText!$C$1)","v":""},{"$f":"IF(OrigTable!E681=\"\",\"\",ScriptText!$B$1&CHAR(10)&ScriptText!$D$1)","v":""},{"$f":"IF(OrigTable!E681=\"\",\"\",TEXT(OrigTable!E681,\"00\"))","v":""},{"$f":"IF(OrigTable!E681=\"\",\"\",ScriptText!$E$1&CHAR(10)&ScriptText!$C$1)","v":""},{"$f":"IF(OrigTable!F681=\"\",\"\",ScriptText!$B$1&CHAR(10)&ScriptText!$D$1)","v":""},{"$f":"IF(OrigTable!F681=\"\",\"\",TEXT(OrigTable!F681,\"00\"))","v":""},{"$f":"IF(OrigTable!F681=\"\",\"\",ScriptText!$E$1&CHAR(10)&ScriptText!$C$1)","v":""},{"$f":"IF(OrigTable!G681=\"\",\"\",ScriptText!$B$1&CHAR(10)&ScriptText!$D$1)","v":""},{"$f":"IF(OrigTable!G681=\"\",\"\",TEXT(OrigTable!G681,\"00\"))","v":""},{"$f":"IF(OrigTable!G681=\"\",\"\",ScriptText!$E$1&CHAR(10)&ScriptText!$C$1)","v":""},0]
["\n\n\n",{"$f":"IF(OrigTable!A682=\"\",\"\",ScriptText!$B$1&CHAR(10)&ScriptText!$D$1)","v":""},{"$f":"IF(OrigTable!A682=\"\",\"\",TEXT(OrigTable!A682,\"00\"))","v":""},{"$f":"IF(OrigTable!A682=\"\",\"\",ScriptText!$E$1&CHAR(10)&ScriptText!$C$1)","v":""},{"$f":"IF(OrigTable!B682=\"\",\"\",ScriptText!$B$1&CHAR(10)&ScriptText!$D$1)","v":""},{"$f":"IF(OrigTable!B682=\"\",\"\",TEXT(OrigTable!B682,\"00\"))","v":""},{"$f":"IF(OrigTable!B682=\"\",\"\",ScriptText!$E$1&CHAR(10)&ScriptText!C677)","v":""},{"$f":"IF(OrigTable!C682=\"\",\"\",ScriptText!$B$1&CHAR(10)&ScriptText!$D$1)","v":""},{"$f":"IF(OrigTable!C682=\"\",\"\",IF(LEN(OrigTable!C682)>255,LEFT(OrigTable!C682,250)&\". . .\",OrigTable!C682))","v":""},{"$f":"IF(OrigTable!C682=\"\",\"\",ScriptText!$E$1&CHAR(10)&ScriptText!$C$1)","v":""},{"$f":"IF(OrigTable!D682=\"\",\"\",ScriptText!$B$1&CHAR(10)&ScriptText!$D$1)","v":""},{"$f":"IF(OrigTable!D682=\"\",\"\",TEXT(OrigTable!D682,\"00\"))","v":""},{"$f":"IF(OrigTable!D682=\"\",\"\",ScriptText!$E$1&CHAR(10)&ScriptText!$C$1)","v":""},{"$f":"IF(OrigTable!E682=\"\",\"\",ScriptText!$B$1&CHAR(10)&ScriptText!$D$1)","v":""},{"$f":"IF(OrigTable!E682=\"\",\"\",TEXT(OrigTable!E682,\"00\"))","v":""},{"$f":"IF(OrigTable!E682=\"\",\"\",ScriptText!$E$1&CHAR(10)&ScriptText!$C$1)","v":""},{"$f":"IF(OrigTable!F682=\"\",\"\",ScriptText!$B$1&CHAR(10)&ScriptText!$D$1)","v":""},{"$f":"IF(OrigTable!F682=\"\",\"\",TEXT(OrigTable!F682,\"00\"))","v":""},{"$f":"IF(OrigTable!F682=\"\",\"\",ScriptText!$E$1&CHAR(10)&ScriptText!$C$1)","v":""},{"$f":"IF(OrigTable!G682=\"\",\"\",ScriptText!$B$1&CHAR(10)&ScriptText!$D$1)","v":""},{"$f":"IF(OrigTable!G682=\"\",\"\",TEXT(OrigTable!G682,\"00\"))","v":""},{"$f":"IF(OrigTable!G682=\"\",\"\",ScriptText!$E$1&CHAR(10)&ScriptText!$C$1)","v":""},0]
["\n\n\n",{"$f":"IF(OrigTable!A683=\"\",\"\",ScriptText!$B$1&CHAR(10)&ScriptText!$D$1)","v":""},{"$f":"IF(OrigTable!A683=\"\",\"\",TEXT(OrigTable!A683,\"00\"))","v":""},{"$f":"IF(OrigTable!A683=\"\",\"\",ScriptText!$E$1&CHAR(10)&ScriptText!$C$1)","v":""},{"$f":"IF(OrigTable!B683=\"\",\"\",ScriptText!$B$1&CHAR(10)&ScriptText!$D$1)","v":""},{"$f":"IF(OrigTable!B683=\"\",\"\",TEXT(OrigTable!B683,\"00\"))","v":""},{"$f":"IF(OrigTable!B683=\"\",\"\",ScriptText!$E$1&CHAR(10)&ScriptText!C678)","v":""},{"$f":"IF(OrigTable!C683=\"\",\"\",ScriptText!$B$1&CHAR(10)&ScriptText!$D$1)","v":""},{"$f":"IF(OrigTable!C683=\"\",\"\",IF(LEN(OrigTable!C683)>255,LEFT(OrigTable!C683,250)&\". . .\",OrigTable!C683))","v":""},{"$f":"IF(OrigTable!C683=\"\",\"\",ScriptText!$E$1&CHAR(10)&ScriptText!$C$1)","v":""},{"$f":"IF(OrigTable!D683=\"\",\"\",ScriptText!$B$1&CHAR(10)&ScriptText!$D$1)","v":""},{"$f":"IF(OrigTable!D683=\"\",\"\",TEXT(OrigTable!D683,\"00\"))","v":""},{"$f":"IF(OrigTable!D683=\"\",\"\",ScriptText!$E$1&CHAR(10)&ScriptText!$C$1)","v":""},{"$f":"IF(OrigTable!E683=\"\",\"\",ScriptText!$B$1&CHAR(10)&ScriptText!$D$1)","v":""},{"$f":"IF(OrigTable!E683=\"\",\"\",TEXT(OrigTable!E683,\"00\"))","v":""},{"$f":"IF(OrigTable!E683=\"\",\"\",ScriptText!$E$1&CHAR(10)&ScriptText!$C$1)","v":""},{"$f":"IF(OrigTable!F683=\"\",\"\",ScriptText!$B$1&CHAR(10)&ScriptText!$D$1)","v":""},{"$f":"IF(OrigTable!F683=\"\",\"\",TEXT(OrigTable!F683,\"00\"))","v":""},{"$f":"IF(OrigTable!F683=\"\",\"\",ScriptText!$E$1&CHAR(10)&ScriptText!$C$1)","v":""},{"$f":"IF(OrigTable!G683=\"\",\"\",ScriptText!$B$1&CHAR(10)&ScriptText!$D$1)","v":""},{"$f":"IF(OrigTable!G683=\"\",\"\",TEXT(OrigTable!G683,\"00\"))","v":""},{"$f":"IF(OrigTable!G683=\"\",\"\",ScriptText!$E$1&CHAR(10)&ScriptText!$C$1)","v":""},0]
["\n\n\n",{"$f":"IF(OrigTable!A684=\"\",\"\",ScriptText!$B$1&CHAR(10)&ScriptText!$D$1)","v":""},{"$f":"IF(OrigTable!A684=\"\",\"\",TEXT(OrigTable!A684,\"00\"))","v":""},{"$f":"IF(OrigTable!A684=\"\",\"\",ScriptText!$E$1&CHAR(10)&ScriptText!$C$1)","v":""},{"$f":"IF(OrigTable!B684=\"\",\"\",ScriptText!$B$1&CHAR(10)&ScriptText!$D$1)","v":""},{"$f":"IF(OrigTable!B684=\"\",\"\",TEXT(OrigTable!B684,\"00\"))","v":""},{"$f":"IF(OrigTable!B684=\"\",\"\",ScriptText!$E$1&CHAR(10)&ScriptText!C679)","v":""},{"$f":"IF(OrigTable!C684=\"\",\"\",ScriptText!$B$1&CHAR(10)&ScriptText!$D$1)","v":""},{"$f":"IF(OrigTable!C684=\"\",\"\",IF(LEN(OrigTable!C684)>255,LEFT(OrigTable!C684,250)&\". . .\",OrigTable!C684))","v":""},{"$f":"IF(OrigTable!C684=\"\",\"\",ScriptText!$E$1&CHAR(10)&ScriptText!$C$1)","v":""},{"$f":"IF(OrigTable!D684=\"\",\"\",ScriptText!$B$1&CHAR(10)&ScriptText!$D$1)","v":""},{"$f":"IF(OrigTable!D684=\"\",\"\",TEXT(OrigTable!D684,\"00\"))","v":""},{"$f":"IF(OrigTable!D684=\"\",\"\",ScriptText!$E$1&CHAR(10)&ScriptText!$C$1)","v":""},{"$f":"IF(OrigTable!E684=\"\",\"\",ScriptText!$B$1&CHAR(10)&ScriptText!$D$1)","v":""},{"$f":"IF(OrigTable!E684=\"\",\"\",TEXT(OrigTable!E684,\"00\"))","v":""},{"$f":"IF(OrigTable!E684=\"\",\"\",ScriptText!$E$1&CHAR(10)&ScriptText!$C$1)","v":""},{"$f":"IF(OrigTable!F684=\"\",\"\",ScriptText!$B$1&CHAR(10)&ScriptText!$D$1)","v":""},{"$f":"IF(OrigTable!F684=\"\",\"\",TEXT(OrigTable!F684,\"00\"))","v":""},{"$f":"IF(OrigTable!F684=\"\",\"\",ScriptText!$E$1&CHAR(10)&ScriptText!$C$1)","v":""},{"$f":"IF(OrigTable!G684=\"\",\"\",ScriptText!$B$1&CHAR(10)&ScriptText!$D$1)","v":""},{"$f":"IF(OrigTable!G684=\"\",\"\",TEXT(OrigTable!G684,\"00\"))","v":""},{"$f":"IF(OrigTable!G684=\"\",\"\",ScriptText!$E$1&CHAR(10)&ScriptText!$C$1)","v":""},0]
["\n\n\n",{"$f":"IF(OrigTable!A685=\"\",\"\",ScriptText!$B$1&CHAR(10)&ScriptText!$D$1)","v":""},{"$f":"IF(OrigTable!A685=\"\",\"\",TEXT(OrigTable!A685,\"00\"))","v":""},{"$f":"IF(OrigTable!A685=\"\",\"\",ScriptText!$E$1&CHAR(10)&ScriptText!$C$1)","v":""},{"$f":"IF(OrigTable!B685=\"\",\"\",ScriptText!$B$1&CHAR(10)&ScriptText!$D$1)","v":""},{"$f":"IF(OrigTable!B685=\"\",\"\",TEXT(OrigTable!B685,\"00\"))","v":""},{"$f":"IF(OrigTable!B685=\"\",\"\",ScriptText!$E$1&CHAR(10)&ScriptText!C680)","v":""},{"$f":"IF(OrigTable!C685=\"\",\"\",ScriptText!$B$1&CHAR(10)&ScriptText!$D$1)","v":""},{"$f":"IF(OrigTable!C685=\"\",\"\",IF(LEN(OrigTable!C685)>255,LEFT(OrigTable!C685,250)&\". . .\",OrigTable!C685))","v":""},{"$f":"IF(OrigTable!C685=\"\",\"\",ScriptText!$E$1&CHAR(10)&ScriptText!$C$1)","v":""},{"$f":"IF(OrigTable!D685=\"\",\"\",ScriptText!$B$1&CHAR(10)&ScriptText!$D$1)","v":""},{"$f":"IF(OrigTable!D685=\"\",\"\",TEXT(OrigTable!D685,\"00\"))","v":""},{"$f":"IF(OrigTable!D685=\"\",\"\",ScriptText!$E$1&CHAR(10)&ScriptText!$C$1)","v":""},{"$f":"IF(OrigTable!E685=\"\",\"\",ScriptText!$B$1&CHAR(10)&ScriptText!$D$1)","v":""},{"$f":"IF(OrigTable!E685=\"\",\"\",TEXT(OrigTable!E685,\"00\"))","v":""},{"$f":"IF(OrigTable!E685=\"\",\"\",ScriptText!$E$1&CHAR(10)&ScriptText!$C$1)","v":""},{"$f":"IF(OrigTable!F685=\"\",\"\",ScriptText!$B$1&CHAR(10)&ScriptText!$D$1)","v":""},{"$f":"IF(OrigTable!F685=\"\",\"\",TEXT(OrigTable!F685,\"00\"))","v":""},{"$f":"IF(OrigTable!F685=\"\",\"\",ScriptText!$E$1&CHAR(10)&ScriptText!$C$1)","v":""},{"$f":"IF(OrigTable!G685=\"\",\"\",ScriptText!$B$1&CHAR(10)&ScriptText!$D$1)","v":""},{"$f":"IF(OrigTable!G685=\"\",\"\",TEXT(OrigTable!G685,\"00\"))","v":""},{"$f":"IF(OrigTable!G685=\"\",\"\",ScriptText!$E$1&CHAR(10)&ScriptText!$C$1)","v":""},0]
["\n\n\n",{"$f":"IF(OrigTable!A686=\"\",\"\",ScriptText!$B$1&CHAR(10)&ScriptText!$D$1)","v":""},{"$f":"IF(OrigTable!A686=\"\",\"\",TEXT(OrigTable!A686,\"00\"))","v":""},{"$f":"IF(OrigTable!A686=\"\",\"\",ScriptText!$E$1&CHAR(10)&ScriptText!$C$1)","v":""},{"$f":"IF(OrigTable!B686=\"\",\"\",ScriptText!$B$1&CHAR(10)&ScriptText!$D$1)","v":""},{"$f":"IF(OrigTable!B686=\"\",\"\",TEXT(OrigTable!B686,\"00\"))","v":""},{"$f":"IF(OrigTable!B686=\"\",\"\",ScriptText!$E$1&CHAR(10)&ScriptText!C681)","v":""},{"$f":"IF(OrigTable!C686=\"\",\"\",ScriptText!$B$1&CHAR(10)&ScriptText!$D$1)","v":""},{"$f":"IF(OrigTable!C686=\"\",\"\",IF(LEN(OrigTable!C686)>255,LEFT(OrigTable!C686,250)&\". . .\",OrigTable!C686))","v":""},{"$f":"IF(OrigTable!C686=\"\",\"\",ScriptText!$E$1&CHAR(10)&ScriptText!$C$1)","v":""},{"$f":"IF(OrigTable!D686=\"\",\"\",ScriptText!$B$1&CHAR(10)&ScriptText!$D$1)","v":""},{"$f":"IF(OrigTable!D686=\"\",\"\",TEXT(OrigTable!D686,\"00\"))","v":""},{"$f":"IF(OrigTable!D686=\"\",\"\",ScriptText!$E$1&CHAR(10)&ScriptText!$C$1)","v":""},{"$f":"IF(OrigTable!E686=\"\",\"\",ScriptText!$B$1&CHAR(10)&ScriptText!$D$1)","v":""},{"$f":"IF(OrigTable!E686=\"\",\"\",TEXT(OrigTable!E686,\"00\"))","v":""},{"$f":"IF(OrigTable!E686=\"\",\"\",ScriptText!$E$1&CHAR(10)&ScriptText!$C$1)","v":""},{"$f":"IF(OrigTable!F686=\"\",\"\",ScriptText!$B$1&CHAR(10)&ScriptText!$D$1)","v":""},{"$f":"IF(OrigTable!F686=\"\",\"\",TEXT(OrigTable!F686,\"00\"))","v":""},{"$f":"IF(OrigTable!F686=\"\",\"\",ScriptText!$E$1&CHAR(10)&ScriptText!$C$1)","v":""},{"$f":"IF(OrigTable!G686=\"\",\"\",ScriptText!$B$1&CHAR(10)&ScriptText!$D$1)","v":""},{"$f":"IF(OrigTable!G686=\"\",\"\",TEXT(OrigTable!G686,\"00\"))","v":""},{"$f":"IF(OrigTable!G686=\"\",\"\",ScriptText!$E$1&CHAR(10)&ScriptText!$C$1)","v":""},0]
["\n\n\n",{"$f":"IF(OrigTable!A687=\"\",\"\",ScriptText!$B$1&CHAR(10)&ScriptText!$D$1)","v":""},{"$f":"IF(OrigTable!A687=\"\",\"\",TEXT(OrigTable!A687,\"00\"))","v":""},{"$f":"IF(OrigTable!A687=\"\",\"\",ScriptText!$E$1&CHAR(10)&ScriptText!$C$1)","v":""},{"$f":"IF(OrigTable!B687=\"\",\"\",ScriptText!$B$1&CHAR(10)&ScriptText!$D$1)","v":""},{"$f":"IF(OrigTable!B687=\"\",\"\",TEXT(OrigTable!B687,\"00\"))","v":""},{"$f":"IF(OrigTable!B687=\"\",\"\",ScriptText!$E$1&CHAR(10)&ScriptText!C682)","v":""},{"$f":"IF(OrigTable!C687=\"\",\"\",ScriptText!$B$1&CHAR(10)&ScriptText!$D$1)","v":""},{"$f":"IF(OrigTable!C687=\"\",\"\",IF(LEN(OrigTable!C687)>255,LEFT(OrigTable!C687,250)&\". . .\",OrigTable!C687))","v":""},{"$f":"IF(OrigTable!C687=\"\",\"\",ScriptText!$E$1&CHAR(10)&ScriptText!$C$1)","v":""},{"$f":"IF(OrigTable!D687=\"\",\"\",ScriptText!$B$1&CHAR(10)&ScriptText!$D$1)","v":""},{"$f":"IF(OrigTable!D687=\"\",\"\",TEXT(OrigTable!D687,\"00\"))","v":""},{"$f":"IF(OrigTable!D687=\"\",\"\",ScriptText!$E$1&CHAR(10)&ScriptText!$C$1)","v":""},{"$f":"IF(OrigTable!E687=\"\",\"\",ScriptText!$B$1&CHAR(10)&ScriptText!$D$1)","v":""},{"$f":"IF(OrigTable!E687=\"\",\"\",TEXT(OrigTable!E687,\"00\"))","v":""},{"$f":"IF(OrigTable!E687=\"\",\"\",ScriptText!$E$1&CHAR(10)&ScriptText!$C$1)","v":""},{"$f":"IF(OrigTable!F687=\"\",\"\",ScriptText!$B$1&CHAR(10)&ScriptText!$D$1)","v":""},{"$f":"IF(OrigTable!F687=\"\",\"\",TEXT(OrigTable!F687,\"00\"))","v":""},{"$f":"IF(OrigTable!F687=\"\",\"\",ScriptText!$E$1&CHAR(10)&ScriptText!$C$1)","v":""},{"$f":"IF(OrigTable!G687=\"\",\"\",ScriptText!$B$1&CHAR(10)&ScriptText!$D$1)","v":""},{"$f":"IF(OrigTable!G687=\"\",\"\",TEXT(OrigTable!G687,\"00\"))","v":""},{"$f":"IF(OrigTable!G687=\"\",\"\",ScriptText!$E$1&CHAR(10)&ScriptText!$C$1)","v":""},0]
["\n\n\n",{"$f":"IF(OrigTable!A688=\"\",\"\",ScriptText!$B$1&CHAR(10)&ScriptText!$D$1)","v":""},{"$f":"IF(OrigTable!A688=\"\",\"\",TEXT(OrigTable!A688,\"00\"))","v":""},{"$f":"IF(OrigTable!A688=\"\",\"\",ScriptText!$E$1&CHAR(10)&ScriptText!$C$1)","v":""},{"$f":"IF(OrigTable!B688=\"\",\"\",ScriptText!$B$1&CHAR(10)&ScriptText!$D$1)","v":""},{"$f":"IF(OrigTable!B688=\"\",\"\",TEXT(OrigTable!B688,\"00\"))","v":""},{"$f":"IF(OrigTable!B688=\"\",\"\",ScriptText!$E$1&CHAR(10)&ScriptText!C683)","v":""},{"$f":"IF(OrigTable!C688=\"\",\"\",ScriptText!$B$1&CHAR(10)&ScriptText!$D$1)","v":""},{"$f":"IF(OrigTable!C688=\"\",\"\",IF(LEN(OrigTable!C688)>255,LEFT(OrigTable!C688,250)&\". . .\",OrigTable!C688))","v":""},{"$f":"IF(OrigTable!C688=\"\",\"\",ScriptText!$E$1&CHAR(10)&ScriptText!$C$1)","v":""},{"$f":"IF(OrigTable!D688=\"\",\"\",ScriptText!$B$1&CHAR(10)&ScriptText!$D$1)","v":""},{"$f":"IF(OrigTable!D688=\"\",\"\",TEXT(OrigTable!D688,\"00\"))","v":""},{"$f":"IF(OrigTable!D688=\"\",\"\",ScriptText!$E$1&CHAR(10)&ScriptText!$C$1)","v":""},{"$f":"IF(OrigTable!E688=\"\",\"\",ScriptText!$B$1&CHAR(10)&ScriptText!$D$1)","v":""},{"$f":"IF(OrigTable!E688=\"\",\"\",TEXT(OrigTable!E688,\"00\"))","v":""},{"$f":"IF(OrigTable!E688=\"\",\"\",ScriptText!$E$1&CHAR(10)&ScriptText!$C$1)","v":""},{"$f":"IF(OrigTable!F688=\"\",\"\",ScriptText!$B$1&CHAR(10)&ScriptText!$D$1)","v":""},{"$f":"IF(OrigTable!F688=\"\",\"\",TEXT(OrigTable!F688,\"00\"))","v":""},{"$f":"IF(OrigTable!F688=\"\",\"\",ScriptText!$E$1&CHAR(10)&ScriptText!$C$1)","v":""},{"$f":"IF(OrigTable!G688=\"\",\"\",ScriptText!$B$1&CHAR(10)&ScriptText!$D$1)","v":""},{"$f":"IF(OrigTable!G688=\"\",\"\",TEXT(OrigTable!G688,\"00\"))","v":""},{"$f":"IF(OrigTable!G688=\"\",\"\",ScriptText!$E$1&CHAR(10)&ScriptText!$C$1)","v":""},0]
["\n\n\n",{"$f":"IF(OrigTable!A689=\"\",\"\",ScriptText!$B$1&CHAR(10)&ScriptText!$D$1)","v":""},{"$f":"IF(OrigTable!A689=\"\",\"\",TEXT(OrigTable!A689,\"00\"))","v":""},{"$f":"IF(OrigTable!A689=\"\",\"\",ScriptText!$E$1&CHAR(10)&ScriptText!$C$1)","v":""},{"$f":"IF(OrigTable!B689=\"\",\"\",ScriptText!$B$1&CHAR(10)&ScriptText!$D$1)","v":""},{"$f":"IF(OrigTable!B689=\"\",\"\",TEXT(OrigTable!B689,\"00\"))","v":""},{"$f":"IF(OrigTable!B689=\"\",\"\",ScriptText!$E$1&CHAR(10)&ScriptText!C684)","v":""},{"$f":"IF(OrigTable!C689=\"\",\"\",ScriptText!$B$1&CHAR(10)&ScriptText!$D$1)","v":""},{"$f":"IF(OrigTable!C689=\"\",\"\",IF(LEN(OrigTable!C689)>255,LEFT(OrigTable!C689,250)&\". . .\",OrigTable!C689))","v":""},{"$f":"IF(OrigTable!C689=\"\",\"\",ScriptText!$E$1&CHAR(10)&ScriptText!$C$1)","v":""},{"$f":"IF(OrigTable!D689=\"\",\"\",ScriptText!$B$1&CHAR(10)&ScriptText!$D$1)","v":""},{"$f":"IF(OrigTable!D689=\"\",\"\",TEXT(OrigTable!D689,\"00\"))","v":""},{"$f":"IF(OrigTable!D689=\"\",\"\",ScriptText!$E$1&CHAR(10)&ScriptText!$C$1)","v":""},{"$f":"IF(OrigTable!E689=\"\",\"\",ScriptText!$B$1&CHAR(10)&ScriptText!$D$1)","v":""},{"$f":"IF(OrigTable!E689=\"\",\"\",TEXT(OrigTable!E689,\"00\"))","v":""},{"$f":"IF(OrigTable!E689=\"\",\"\",ScriptText!$E$1&CHAR(10)&ScriptText!$C$1)","v":""},{"$f":"IF(OrigTable!F689=\"\",\"\",ScriptText!$B$1&CHAR(10)&ScriptText!$D$1)","v":""},{"$f":"IF(OrigTable!F689=\"\",\"\",TEXT(OrigTable!F689,\"00\"))","v":""},{"$f":"IF(OrigTable!F689=\"\",\"\",ScriptText!$E$1&CHAR(10)&ScriptText!$C$1)","v":""},{"$f":"IF(OrigTable!G689=\"\",\"\",ScriptText!$B$1&CHAR(10)&ScriptText!$D$1)","v":""},{"$f":"IF(OrigTable!G689=\"\",\"\",TEXT(OrigTable!G689,\"00\"))","v":""},{"$f":"IF(OrigTable!G689=\"\",\"\",ScriptText!$E$1&CHAR(10)&ScriptText!$C$1)","v":""},0]
["\n\n\n",{"$f":"IF(OrigTable!A690=\"\",\"\",ScriptText!$B$1&CHAR(10)&ScriptText!$D$1)","v":""},{"$f":"IF(OrigTable!A690=\"\",\"\",TEXT(OrigTable!A690,\"00\"))","v":""},{"$f":"IF(OrigTable!A690=\"\",\"\",ScriptText!$E$1&CHAR(10)&ScriptText!$C$1)","v":""},{"$f":"IF(OrigTable!B690=\"\",\"\",ScriptText!$B$1&CHAR(10)&ScriptText!$D$1)","v":""},{"$f":"IF(OrigTable!B690=\"\",\"\",TEXT(OrigTable!B690,\"00\"))","v":""},{"$f":"IF(OrigTable!B690=\"\",\"\",ScriptText!$E$1&CHAR(10)&ScriptText!C685)","v":""},{"$f":"IF(OrigTable!C690=\"\",\"\",ScriptText!$B$1&CHAR(10)&ScriptText!$D$1)","v":""},{"$f":"IF(OrigTable!C690=\"\",\"\",IF(LEN(OrigTable!C690)>255,LEFT(OrigTable!C690,250)&\". . .\",OrigTable!C690))","v":""},{"$f":"IF(OrigTable!C690=\"\",\"\",ScriptText!$E$1&CHAR(10)&ScriptText!$C$1)","v":""},{"$f":"IF(OrigTable!D690=\"\",\"\",ScriptText!$B$1&CHAR(10)&ScriptText!$D$1)","v":""},{"$f":"IF(OrigTable!D690=\"\",\"\",TEXT(OrigTable!D690,\"00\"))","v":""},{"$f":"IF(OrigTable!D690=\"\",\"\",ScriptText!$E$1&CHAR(10)&ScriptText!$C$1)","v":""},{"$f":"IF(OrigTable!E690=\"\",\"\",ScriptText!$B$1&CHAR(10)&ScriptText!$D$1)","v":""},{"$f":"IF(OrigTable!E690=\"\",\"\",TEXT(OrigTable!E690,\"00\"))","v":""},{"$f":"IF(OrigTable!E690=\"\",\"\",ScriptText!$E$1&CHAR(10)&ScriptText!$C$1)","v":""},{"$f":"IF(OrigTable!F690=\"\",\"\",ScriptText!$B$1&CHAR(10)&ScriptText!$D$1)","v":""},{"$f":"IF(OrigTable!F690=\"\",\"\",TEXT(OrigTable!F690,\"00\"))","v":""},{"$f":"IF(OrigTable!F690=\"\",\"\",ScriptText!$E$1&CHAR(10)&ScriptText!$C$1)","v":""},{"$f":"IF(OrigTable!G690=\"\",\"\",ScriptText!$B$1&CHAR(10)&ScriptText!$D$1)","v":""},{"$f":"IF(OrigTable!G690=\"\",\"\",TEXT(OrigTable!G690,\"00\"))","v":""},{"$f":"IF(OrigTable!G690=\"\",\"\",ScriptText!$E$1&CHAR(10)&ScriptText!$C$1)","v":""},0]
["\n\n\n",{"$f":"IF(OrigTable!A691=\"\",\"\",ScriptText!$B$1&CHAR(10)&ScriptText!$D$1)","v":""},{"$f":"IF(OrigTable!A691=\"\",\"\",TEXT(OrigTable!A691,\"00\"))","v":""},{"$f":"IF(OrigTable!A691=\"\",\"\",ScriptText!$E$1&CHAR(10)&ScriptText!$C$1)","v":""},{"$f":"IF(OrigTable!B691=\"\",\"\",ScriptText!$B$1&CHAR(10)&ScriptText!$D$1)","v":""},{"$f":"IF(OrigTable!B691=\"\",\"\",TEXT(OrigTable!B691,\"00\"))","v":""},{"$f":"IF(OrigTable!B691=\"\",\"\",ScriptText!$E$1&CHAR(10)&ScriptText!C686)","v":""},{"$f":"IF(OrigTable!C691=\"\",\"\",ScriptText!$B$1&CHAR(10)&ScriptText!$D$1)","v":""},{"$f":"IF(OrigTable!C691=\"\",\"\",IF(LEN(OrigTable!C691)>255,LEFT(OrigTable!C691,250)&\". . .\",OrigTable!C691))","v":""},{"$f":"IF(OrigTable!C691=\"\",\"\",ScriptText!$E$1&CHAR(10)&ScriptText!$C$1)","v":""},{"$f":"IF(OrigTable!D691=\"\",\"\",ScriptText!$B$1&CHAR(10)&ScriptText!$D$1)","v":""},{"$f":"IF(OrigTable!D691=\"\",\"\",TEXT(OrigTable!D691,\"00\"))","v":""},{"$f":"IF(OrigTable!D691=\"\",\"\",ScriptText!$E$1&CHAR(10)&ScriptText!$C$1)","v":""},{"$f":"IF(OrigTable!E691=\"\",\"\",ScriptText!$B$1&CHAR(10)&ScriptText!$D$1)","v":""},{"$f":"IF(OrigTable!E691=\"\",\"\",TEXT(OrigTable!E691,\"00\"))","v":""},{"$f":"IF(OrigTable!E691=\"\",\"\",ScriptText!$E$1&CHAR(10)&ScriptText!$C$1)","v":""},{"$f":"IF(OrigTable!F691=\"\",\"\",ScriptText!$B$1&CHAR(10)&ScriptText!$D$1)","v":""},{"$f":"IF(OrigTable!F691=\"\",\"\",TEXT(OrigTable!F691,\"00\"))","v":""},{"$f":"IF(OrigTable!F691=\"\",\"\",ScriptText!$E$1&CHAR(10)&ScriptText!$C$1)","v":""},{"$f":"IF(OrigTable!G691=\"\",\"\",ScriptText!$B$1&CHAR(10)&ScriptText!$D$1)","v":""},{"$f":"IF(OrigTable!G691=\"\",\"\",TEXT(OrigTable!G691,\"00\"))","v":""},{"$f":"IF(OrigTable!G691=\"\",\"\",ScriptText!$E$1&CHAR(10)&ScriptText!$C$1)","v":""},0]
["\n\n\n",{"$f":"IF(OrigTable!A692=\"\",\"\",ScriptText!$B$1&CHAR(10)&ScriptText!$D$1)","v":""},{"$f":"IF(OrigTable!A692=\"\",\"\",TEXT(OrigTable!A692,\"00\"))","v":""},{"$f":"IF(OrigTable!A692=\"\",\"\",ScriptText!$E$1&CHAR(10)&ScriptText!$C$1)","v":""},{"$f":"IF(OrigTable!B692=\"\",\"\",ScriptText!$B$1&CHAR(10)&ScriptText!$D$1)","v":""},{"$f":"IF(OrigTable!B692=\"\",\"\",TEXT(OrigTable!B692,\"00\"))","v":""},{"$f":"IF(OrigTable!B692=\"\",\"\",ScriptText!$E$1&CHAR(10)&ScriptText!C687)","v":""},{"$f":"IF(OrigTable!C692=\"\",\"\",ScriptText!$B$1&CHAR(10)&ScriptText!$D$1)","v":""},{"$f":"IF(OrigTable!C692=\"\",\"\",IF(LEN(OrigTable!C692)>255,LEFT(OrigTable!C692,250)&\". . .\",OrigTable!C692))","v":""},{"$f":"IF(OrigTable!C692=\"\",\"\",ScriptText!$E$1&CHAR(10)&ScriptText!$C$1)","v":""},{"$f":"IF(OrigTable!D692=\"\",\"\",ScriptText!$B$1&CHAR(10)&ScriptText!$D$1)","v":""},{"$f":"IF(OrigTable!D692=\"\",\"\",TEXT(OrigTable!D692,\"00\"))","v":""},{"$f":"IF(OrigTable!D692=\"\",\"\",ScriptText!$E$1&CHAR(10)&ScriptText!$C$1)","v":""},{"$f":"IF(OrigTable!E692=\"\",\"\",ScriptText!$B$1&CHAR(10)&ScriptText!$D$1)","v":""},{"$f":"IF(OrigTable!E692=\"\",\"\",TEXT(OrigTable!E692,\"00\"))","v":""},{"$f":"IF(OrigTable!E692=\"\",\"\",ScriptText!$E$1&CHAR(10)&ScriptText!$C$1)","v":""},{"$f":"IF(OrigTable!F692=\"\",\"\",ScriptText!$B$1&CHAR(10)&ScriptText!$D$1)","v":""},{"$f":"IF(OrigTable!F692=\"\",\"\",TEXT(OrigTable!F692,\"00\"))","v":""},{"$f":"IF(OrigTable!F692=\"\",\"\",ScriptText!$E$1&CHAR(10)&ScriptText!$C$1)","v":""},{"$f":"IF(OrigTable!G692=\"\",\"\",ScriptText!$B$1&CHAR(10)&ScriptText!$D$1)","v":""},{"$f":"IF(OrigTable!G692=\"\",\"\",TEXT(OrigTable!G692,\"00\"))","v":""},{"$f":"IF(OrigTable!G692=\"\",\"\",ScriptText!$E$1&CHAR(10)&ScriptText!$C$1)","v":""},0]
["\n\n\n",{"$f":"IF(OrigTable!A693=\"\",\"\",ScriptText!$B$1&CHAR(10)&ScriptText!$D$1)","v":""},{"$f":"IF(OrigTable!A693=\"\",\"\",TEXT(OrigTable!A693,\"00\"))","v":""},{"$f":"IF(OrigTable!A693=\"\",\"\",ScriptText!$E$1&CHAR(10)&ScriptText!$C$1)","v":""},{"$f":"IF(OrigTable!B693=\"\",\"\",ScriptText!$B$1&CHAR(10)&ScriptText!$D$1)","v":""},{"$f":"IF(OrigTable!B693=\"\",\"\",TEXT(OrigTable!B693,\"00\"))","v":""},{"$f":"IF(OrigTable!B693=\"\",\"\",ScriptText!$E$1&CHAR(10)&ScriptText!C688)","v":""},{"$f":"IF(OrigTable!C693=\"\",\"\",ScriptText!$B$1&CHAR(10)&ScriptText!$D$1)","v":""},{"$f":"IF(OrigTable!C693=\"\",\"\",IF(LEN(OrigTable!C693)>255,LEFT(OrigTable!C693,250)&\". . .\",OrigTable!C693))","v":""},{"$f":"IF(OrigTable!C693=\"\",\"\",ScriptText!$E$1&CHAR(10)&ScriptText!$C$1)","v":""},{"$f":"IF(OrigTable!D693=\"\",\"\",ScriptText!$B$1&CHAR(10)&ScriptText!$D$1)","v":""},{"$f":"IF(OrigTable!D693=\"\",\"\",TEXT(OrigTable!D693,\"00\"))","v":""},{"$f":"IF(OrigTable!D693=\"\",\"\",ScriptText!$E$1&CHAR(10)&ScriptText!$C$1)","v":""},{"$f":"IF(OrigTable!E693=\"\",\"\",ScriptText!$B$1&CHAR(10)&ScriptText!$D$1)","v":""},{"$f":"IF(OrigTable!E693=\"\",\"\",TEXT(OrigTable!E693,\"00\"))","v":""},{"$f":"IF(OrigTable!E693=\"\",\"\",ScriptText!$E$1&CHAR(10)&ScriptText!$C$1)","v":""},{"$f":"IF(OrigTable!F693=\"\",\"\",ScriptText!$B$1&CHAR(10)&ScriptText!$D$1)","v":""},{"$f":"IF(OrigTable!F693=\"\",\"\",TEXT(OrigTable!F693,\"00\"))","v":""},{"$f":"IF(OrigTable!F693=\"\",\"\",ScriptText!$E$1&CHAR(10)&ScriptText!$C$1)","v":""},{"$f":"IF(OrigTable!G693=\"\",\"\",ScriptText!$B$1&CHAR(10)&ScriptText!$D$1)","v":""},{"$f":"IF(OrigTable!G693=\"\",\"\",TEXT(OrigTable!G693,\"00\"))","v":""},{"$f":"IF(OrigTable!G693=\"\",\"\",ScriptText!$E$1&CHAR(10)&ScriptText!$C$1)","v":""},0]
["\n\n\n",{"$f":"IF(OrigTable!A694=\"\",\"\",ScriptText!$B$1&CHAR(10)&ScriptText!$D$1)","v":""},{"$f":"IF(OrigTable!A694=\"\",\"\",TEXT(OrigTable!A694,\"00\"))","v":""},{"$f":"IF(OrigTable!A694=\"\",\"\",ScriptText!$E$1&CHAR(10)&ScriptText!$C$1)","v":""},{"$f":"IF(OrigTable!B694=\"\",\"\",ScriptText!$B$1&CHAR(10)&ScriptText!$D$1)","v":""},{"$f":"IF(OrigTable!B694=\"\",\"\",TEXT(OrigTable!B694,\"00\"))","v":""},{"$f":"IF(OrigTable!B694=\"\",\"\",ScriptText!$E$1&CHAR(10)&ScriptText!C689)","v":""},{"$f":"IF(OrigTable!C694=\"\",\"\",ScriptText!$B$1&CHAR(10)&ScriptText!$D$1)","v":""},{"$f":"IF(OrigTable!C694=\"\",\"\",IF(LEN(OrigTable!C694)>255,LEFT(OrigTable!C694,250)&\". . .\",OrigTable!C694))","v":""},{"$f":"IF(OrigTable!C694=\"\",\"\",ScriptText!$E$1&CHAR(10)&ScriptText!$C$1)","v":""},{"$f":"IF(OrigTable!D694=\"\",\"\",ScriptText!$B$1&CHAR(10)&ScriptText!$D$1)","v":""},{"$f":"IF(OrigTable!D694=\"\",\"\",TEXT(OrigTable!D694,\"00\"))","v":""},{"$f":"IF(OrigTable!D694=\"\",\"\",ScriptText!$E$1&CHAR(10)&ScriptText!$C$1)","v":""},{"$f":"IF(OrigTable!E694=\"\",\"\",ScriptText!$B$1&CHAR(10)&ScriptText!$D$1)","v":""},{"$f":"IF(OrigTable!E694=\"\",\"\",TEXT(OrigTable!E694,\"00\"))","v":""},{"$f":"IF(OrigTable!E694=\"\",\"\",ScriptText!$E$1&CHAR(10)&ScriptText!$C$1)","v":""},{"$f":"IF(OrigTable!F694=\"\",\"\",ScriptText!$B$1&CHAR(10)&ScriptText!$D$1)","v":""},{"$f":"IF(OrigTable!F694=\"\",\"\",TEXT(OrigTable!F694,\"00\"))","v":""},{"$f":"IF(OrigTable!F694=\"\",\"\",ScriptText!$E$1&CHAR(10)&ScriptText!$C$1)","v":""},{"$f":"IF(OrigTable!G694=\"\",\"\",ScriptText!$B$1&CHAR(10)&ScriptText!$D$1)","v":""},{"$f":"IF(OrigTable!G694=\"\",\"\",TEXT(OrigTable!G694,\"00\"))","v":""},{"$f":"IF(OrigTable!G694=\"\",\"\",ScriptText!$E$1&CHAR(10)&ScriptText!$C$1)","v":""},0]
["\n\n\n",{"$f":"IF(OrigTable!A695=\"\",\"\",ScriptText!$B$1&CHAR(10)&ScriptText!$D$1)","v":""},{"$f":"IF(OrigTable!A695=\"\",\"\",TEXT(OrigTable!A695,\"00\"))","v":""},{"$f":"IF(OrigTable!A695=\"\",\"\",ScriptText!$E$1&CHAR(10)&ScriptText!$C$1)","v":""},{"$f":"IF(OrigTable!B695=\"\",\"\",ScriptText!$B$1&CHAR(10)&ScriptText!$D$1)","v":""},{"$f":"IF(OrigTable!B695=\"\",\"\",TEXT(OrigTable!B695,\"00\"))","v":""},{"$f":"IF(OrigTable!B695=\"\",\"\",ScriptText!$E$1&CHAR(10)&ScriptText!C690)","v":""},{"$f":"IF(OrigTable!C695=\"\",\"\",ScriptText!$B$1&CHAR(10)&ScriptText!$D$1)","v":""},{"$f":"IF(OrigTable!C695=\"\",\"\",IF(LEN(OrigTable!C695)>255,LEFT(OrigTable!C695,250)&\". . .\",OrigTable!C695))","v":""},{"$f":"IF(OrigTable!C695=\"\",\"\",ScriptText!$E$1&CHAR(10)&ScriptText!$C$1)","v":""},{"$f":"IF(OrigTable!D695=\"\",\"\",ScriptText!$B$1&CHAR(10)&ScriptText!$D$1)","v":""},{"$f":"IF(OrigTable!D695=\"\",\"\",TEXT(OrigTable!D695,\"00\"))","v":""},{"$f":"IF(OrigTable!D695=\"\",\"\",ScriptText!$E$1&CHAR(10)&ScriptText!$C$1)","v":""},{"$f":"IF(OrigTable!E695=\"\",\"\",ScriptText!$B$1&CHAR(10)&ScriptText!$D$1)","v":""},{"$f":"IF(OrigTable!E695=\"\",\"\",TEXT(OrigTable!E695,\"00\"))","v":""},{"$f":"IF(OrigTable!E695=\"\",\"\",ScriptText!$E$1&CHAR(10)&ScriptText!$C$1)","v":""},{"$f":"IF(OrigTable!F695=\"\",\"\",ScriptText!$B$1&CHAR(10)&ScriptText!$D$1)","v":""},{"$f":"IF(OrigTable!F695=\"\",\"\",TEXT(OrigTable!F695,\"00\"))","v":""},{"$f":"IF(OrigTable!F695=\"\",\"\",ScriptText!$E$1&CHAR(10)&ScriptText!$C$1)","v":""},{"$f":"IF(OrigTable!G695=\"\",\"\",ScriptText!$B$1&CHAR(10)&ScriptText!$D$1)","v":""},{"$f":"IF(OrigTable!G695=\"\",\"\",TEXT(OrigTable!G695,\"00\"))","v":""},{"$f":"IF(OrigTable!G695=\"\",\"\",ScriptText!$E$1&CHAR(10)&ScriptText!$C$1)","v":""},0]
["\n\n\n",{"$f":"IF(OrigTable!A696=\"\",\"\",ScriptText!$B$1&CHAR(10)&ScriptText!$D$1)","v":""},{"$f":"IF(OrigTable!A696=\"\",\"\",TEXT(OrigTable!A696,\"00\"))","v":""},{"$f":"IF(OrigTable!A696=\"\",\"\",ScriptText!$E$1&CHAR(10)&ScriptText!$C$1)","v":""},{"$f":"IF(OrigTable!B696=\"\",\"\",ScriptText!$B$1&CHAR(10)&ScriptText!$D$1)","v":""},{"$f":"IF(OrigTable!B696=\"\",\"\",TEXT(OrigTable!B696,\"00\"))","v":""},{"$f":"IF(OrigTable!B696=\"\",\"\",ScriptText!$E$1&CHAR(10)&ScriptText!C691)","v":""},{"$f":"IF(OrigTable!C696=\"\",\"\",ScriptText!$B$1&CHAR(10)&ScriptText!$D$1)","v":""},{"$f":"IF(OrigTable!C696=\"\",\"\",IF(LEN(OrigTable!C696)>255,LEFT(OrigTable!C696,250)&\". . .\",OrigTable!C696))","v":""},{"$f":"IF(OrigTable!C696=\"\",\"\",ScriptText!$E$1&CHAR(10)&ScriptText!$C$1)","v":""},{"$f":"IF(OrigTable!D696=\"\",\"\",ScriptText!$B$1&CHAR(10)&ScriptText!$D$1)","v":""},{"$f":"IF(OrigTable!D696=\"\",\"\",TEXT(OrigTable!D696,\"00\"))","v":""},{"$f":"IF(OrigTable!D696=\"\",\"\",ScriptText!$E$1&CHAR(10)&ScriptText!$C$1)","v":""},{"$f":"IF(OrigTable!E696=\"\",\"\",ScriptText!$B$1&CHAR(10)&ScriptText!$D$1)","v":""},{"$f":"IF(OrigTable!E696=\"\",\"\",TEXT(OrigTable!E696,\"00\"))","v":""},{"$f":"IF(OrigTable!E696=\"\",\"\",ScriptText!$E$1&CHAR(10)&ScriptText!$C$1)","v":""},{"$f":"IF(OrigTable!F696=\"\",\"\",ScriptText!$B$1&CHAR(10)&ScriptText!$D$1)","v":""},{"$f":"IF(OrigTable!F696=\"\",\"\",TEXT(OrigTable!F696,\"00\"))","v":""},{"$f":"IF(OrigTable!F696=\"\",\"\",ScriptText!$E$1&CHAR(10)&ScriptText!$C$1)","v":""},{"$f":"IF(OrigTable!G696=\"\",\"\",ScriptText!$B$1&CHAR(10)&ScriptText!$D$1)","v":""},{"$f":"IF(OrigTable!G696=\"\",\"\",TEXT(OrigTable!G696,\"00\"))","v":""},{"$f":"IF(OrigTable!G696=\"\",\"\",ScriptText!$E$1&CHAR(10)&ScriptText!$C$1)","v":""},0]
["\n\n\n",{"$f":"IF(OrigTable!A697=\"\",\"\",ScriptText!$B$1&CHAR(10)&ScriptText!$D$1)","v":""},{"$f":"IF(OrigTable!A697=\"\",\"\",TEXT(OrigTable!A697,\"00\"))","v":""},{"$f":"IF(OrigTable!A697=\"\",\"\",ScriptText!$E$1&CHAR(10)&ScriptText!$C$1)","v":""},{"$f":"IF(OrigTable!B697=\"\",\"\",ScriptText!$B$1&CHAR(10)&ScriptText!$D$1)","v":""},{"$f":"IF(OrigTable!B697=\"\",\"\",TEXT(OrigTable!B697,\"00\"))","v":""},{"$f":"IF(OrigTable!B697=\"\",\"\",ScriptText!$E$1&CHAR(10)&ScriptText!C692)","v":""},{"$f":"IF(OrigTable!C697=\"\",\"\",ScriptText!$B$1&CHAR(10)&ScriptText!$D$1)","v":""},{"$f":"IF(OrigTable!C697=\"\",\"\",IF(LEN(OrigTable!C697)>255,LEFT(OrigTable!C697,250)&\". . .\",OrigTable!C697))","v":""},{"$f":"IF(OrigTable!C697=\"\",\"\",ScriptText!$E$1&CHAR(10)&ScriptText!$C$1)","v":""},{"$f":"IF(OrigTable!D697=\"\",\"\",ScriptText!$B$1&CHAR(10)&ScriptText!$D$1)","v":""},{"$f":"IF(OrigTable!D697=\"\",\"\",TEXT(OrigTable!D697,\"00\"))","v":""},{"$f":"IF(OrigTable!D697=\"\",\"\",ScriptText!$E$1&CHAR(10)&ScriptText!$C$1)","v":""},{"$f":"IF(OrigTable!E697=\"\",\"\",ScriptText!$B$1&CHAR(10)&ScriptText!$D$1)","v":""},{"$f":"IF(OrigTable!E697=\"\",\"\",TEXT(OrigTable!E697,\"00\"))","v":""},{"$f":"IF(OrigTable!E697=\"\",\"\",ScriptText!$E$1&CHAR(10)&ScriptText!$C$1)","v":""},{"$f":"IF(OrigTable!F697=\"\",\"\",ScriptText!$B$1&CHAR(10)&ScriptText!$D$1)","v":""},{"$f":"IF(OrigTable!F697=\"\",\"\",TEXT(OrigTable!F697,\"00\"))","v":""},{"$f":"IF(OrigTable!F697=\"\",\"\",ScriptText!$E$1&CHAR(10)&ScriptText!$C$1)","v":""},{"$f":"IF(OrigTable!G697=\"\",\"\",ScriptText!$B$1&CHAR(10)&ScriptText!$D$1)","v":""},{"$f":"IF(OrigTable!G697=\"\",\"\",TEXT(OrigTable!G697,\"00\"))","v":""},{"$f":"IF(OrigTable!G697=\"\",\"\",ScriptText!$E$1&CHAR(10)&ScriptText!$C$1)","v":""},0]
["\n\n\n",{"$f":"IF(OrigTable!A698=\"\",\"\",ScriptText!$B$1&CHAR(10)&ScriptText!$D$1)","v":""},{"$f":"IF(OrigTable!A698=\"\",\"\",TEXT(OrigTable!A698,\"00\"))","v":""},{"$f":"IF(OrigTable!A698=\"\",\"\",ScriptText!$E$1&CHAR(10)&ScriptText!$C$1)","v":""},{"$f":"IF(OrigTable!B698=\"\",\"\",ScriptText!$B$1&CHAR(10)&ScriptText!$D$1)","v":""},{"$f":"IF(OrigTable!B698=\"\",\"\",TEXT(OrigTable!B698,\"00\"))","v":""},{"$f":"IF(OrigTable!B698=\"\",\"\",ScriptText!$E$1&CHAR(10)&ScriptText!C693)","v":""},{"$f":"IF(OrigTable!C698=\"\",\"\",ScriptText!$B$1&CHAR(10)&ScriptText!$D$1)","v":""},{"$f":"IF(OrigTable!C698=\"\",\"\",IF(LEN(OrigTable!C698)>255,LEFT(OrigTable!C698,250)&\". . .\",OrigTable!C698))","v":""},{"$f":"IF(OrigTable!C698=\"\",\"\",ScriptText!$E$1&CHAR(10)&ScriptText!$C$1)","v":""},{"$f":"IF(OrigTable!D698=\"\",\"\",ScriptText!$B$1&CHAR(10)&ScriptText!$D$1)","v":""},{"$f":"IF(OrigTable!D698=\"\",\"\",TEXT(OrigTable!D698,\"00\"))","v":""},{"$f":"IF(OrigTable!D698=\"\",\"\",ScriptText!$E$1&CHAR(10)&ScriptText!$C$1)","v":""},{"$f":"IF(OrigTable!E698=\"\",\"\",ScriptText!$B$1&CHAR(10)&ScriptText!$D$1)","v":""},{"$f":"IF(OrigTable!E698=\"\",\"\",TEXT(OrigTable!E698,\"00\"))","v":""},{"$f":"IF(OrigTable!E698=\"\",\"\",ScriptText!$E$1&CHAR(10)&ScriptText!$C$1)","v":""},{"$f":"IF(OrigTable!F698=\"\",\"\",ScriptText!$B$1&CHAR(10)&ScriptText!$D$1)","v":""},{"$f":"IF(OrigTable!F698=\"\",\"\",TEXT(OrigTable!F698,\"00\"))","v":""},{"$f":"IF(OrigTable!F698=\"\",\"\",ScriptText!$E$1&CHAR(10)&ScriptText!$C$1)","v":""},{"$f":"IF(OrigTable!G698=\"\",\"\",ScriptText!$B$1&CHAR(10)&ScriptText!$D$1)","v":""},{"$f":"IF(OrigTable!G698=\"\",\"\",TEXT(OrigTable!G698,\"00\"))","v":""},{"$f":"IF(OrigTable!G698=\"\",\"\",ScriptText!$E$1&CHAR(10)&ScriptText!$C$1)","v":""},0]
["\n\n\n",{"$f":"IF(OrigTable!A699=\"\",\"\",ScriptText!$B$1&CHAR(10)&ScriptText!$D$1)","v":""},{"$f":"IF(OrigTable!A699=\"\",\"\",TEXT(OrigTable!A699,\"00\"))","v":""},{"$f":"IF(OrigTable!A699=\"\",\"\",ScriptText!$E$1&CHAR(10)&ScriptText!$C$1)","v":""},{"$f":"IF(OrigTable!B699=\"\",\"\",ScriptText!$B$1&CHAR(10)&ScriptText!$D$1)","v":""},{"$f":"IF(OrigTable!B699=\"\",\"\",TEXT(OrigTable!B699,\"00\"))","v":""},{"$f":"IF(OrigTable!B699=\"\",\"\",ScriptText!$E$1&CHAR(10)&ScriptText!C694)","v":""},{"$f":"IF(OrigTable!C699=\"\",\"\",ScriptText!$B$1&CHAR(10)&ScriptText!$D$1)","v":""},{"$f":"IF(OrigTable!C699=\"\",\"\",IF(LEN(OrigTable!C699)>255,LEFT(OrigTable!C699,250)&\". . .\",OrigTable!C699))","v":""},{"$f":"IF(OrigTable!C699=\"\",\"\",ScriptText!$E$1&CHAR(10)&ScriptText!$C$1)","v":""},{"$f":"IF(OrigTable!D699=\"\",\"\",ScriptText!$B$1&CHAR(10)&ScriptText!$D$1)","v":""},{"$f":"IF(OrigTable!D699=\"\",\"\",TEXT(OrigTable!D699,\"00\"))","v":""},{"$f":"IF(OrigTable!D699=\"\",\"\",ScriptText!$E$1&CHAR(10)&ScriptText!$C$1)","v":""},{"$f":"IF(OrigTable!E699=\"\",\"\",ScriptText!$B$1&CHAR(10)&ScriptText!$D$1)","v":""},{"$f":"IF(OrigTable!E699=\"\",\"\",TEXT(OrigTable!E699,\"00\"))","v":""},{"$f":"IF(OrigTable!E699=\"\",\"\",ScriptText!$E$1&CHAR(10)&ScriptText!$C$1)","v":""},{"$f":"IF(OrigTable!F699=\"\",\"\",ScriptText!$B$1&CHAR(10)&ScriptText!$D$1)","v":""},{"$f":"IF(OrigTable!F699=\"\",\"\",TEXT(OrigTable!F699,\"00\"))","v":""},{"$f":"IF(OrigTable!F699=\"\",\"\",ScriptText!$E$1&CHAR(10)&ScriptText!$C$1)","v":""},{"$f":"IF(OrigTable!G699=\"\",\"\",ScriptText!$B$1&CHAR(10)&ScriptText!$D$1)","v":""},{"$f":"IF(OrigTable!G699=\"\",\"\",TEXT(OrigTable!G699,\"00\"))","v":""},{"$f":"IF(OrigTable!G699=\"\",\"\",ScriptText!$E$1&CHAR(10)&ScriptText!$C$1)","v":""},0]
["\n\n\n",{"$f":"IF(OrigTable!A700=\"\",\"\",ScriptText!$B$1&CHAR(10)&ScriptText!$D$1)","v":""},{"$f":"IF(OrigTable!A700=\"\",\"\",TEXT(OrigTable!A700,\"00\"))","v":""},{"$f":"IF(OrigTable!A700=\"\",\"\",ScriptText!$E$1&CHAR(10)&ScriptText!$C$1)","v":""},{"$f":"IF(OrigTable!B700=\"\",\"\",ScriptText!$B$1&CHAR(10)&ScriptText!$D$1)","v":""},{"$f":"IF(OrigTable!B700=\"\",\"\",TEXT(OrigTable!B700,\"00\"))","v":""},{"$f":"IF(OrigTable!B700=\"\",\"\",ScriptText!$E$1&CHAR(10)&ScriptText!C695)","v":""},{"$f":"IF(OrigTable!C700=\"\",\"\",ScriptText!$B$1&CHAR(10)&ScriptText!$D$1)","v":""},{"$f":"IF(OrigTable!C700=\"\",\"\",IF(LEN(OrigTable!C700)>255,LEFT(OrigTable!C700,250)&\". . .\",OrigTable!C700))","v":""},{"$f":"IF(OrigTable!C700=\"\",\"\",ScriptText!$E$1&CHAR(10)&ScriptText!$C$1)","v":""},{"$f":"IF(OrigTable!D700=\"\",\"\",ScriptText!$B$1&CHAR(10)&ScriptText!$D$1)","v":""},{"$f":"IF(OrigTable!D700=\"\",\"\",TEXT(OrigTable!D700,\"00\"))","v":""},{"$f":"IF(OrigTable!D700=\"\",\"\",ScriptText!$E$1&CHAR(10)&ScriptText!$C$1)","v":""},{"$f":"IF(OrigTable!E700=\"\",\"\",ScriptText!$B$1&CHAR(10)&ScriptText!$D$1)","v":""},{"$f":"IF(OrigTable!E700=\"\",\"\",TEXT(OrigTable!E700,\"00\"))","v":""},{"$f":"IF(OrigTable!E700=\"\",\"\",ScriptText!$E$1&CHAR(10)&ScriptText!$C$1)","v":""},{"$f":"IF(OrigTable!F700=\"\",\"\",ScriptText!$B$1&CHAR(10)&ScriptText!$D$1)","v":""},{"$f":"IF(OrigTable!F700=\"\",\"\",TEXT(OrigTable!F700,\"00\"))","v":""},{"$f":"IF(OrigTable!F700=\"\",\"\",ScriptText!$E$1&CHAR(10)&ScriptText!$C$1)","v":""},{"$f":"IF(OrigTable!G700=\"\",\"\",ScriptText!$B$1&CHAR(10)&ScriptText!$D$1)","v":""},{"$f":"IF(OrigTable!G700=\"\",\"\",TEXT(OrigTable!G700,\"00\"))","v":""},{"$f":"IF(OrigTable!G700=\"\",\"\",ScriptText!$E$1&CHAR(10)&ScriptText!$C$1)","v":""},0]
["\n\n\n",{"$f":"IF(OrigTable!A701=\"\",\"\",ScriptText!$B$1&CHAR(10)&ScriptText!$D$1)","v":""},{"$f":"IF(OrigTable!A701=\"\",\"\",TEXT(OrigTable!A701,\"00\"))","v":""},{"$f":"IF(OrigTable!A701=\"\",\"\",ScriptText!$E$1&CHAR(10)&ScriptText!$C$1)","v":""},{"$f":"IF(OrigTable!B701=\"\",\"\",ScriptText!$B$1&CHAR(10)&ScriptText!$D$1)","v":""},{"$f":"IF(OrigTable!B701=\"\",\"\",TEXT(OrigTable!B701,\"00\"))","v":""},{"$f":"IF(OrigTable!B701=\"\",\"\",ScriptText!$E$1&CHAR(10)&ScriptText!C696)","v":""},{"$f":"IF(OrigTable!C701=\"\",\"\",ScriptText!$B$1&CHAR(10)&ScriptText!$D$1)","v":""},{"$f":"IF(OrigTable!C701=\"\",\"\",IF(LEN(OrigTable!C701)>255,LEFT(OrigTable!C701,250)&\". . .\",OrigTable!C701))","v":""},{"$f":"IF(OrigTable!C701=\"\",\"\",ScriptText!$E$1&CHAR(10)&ScriptText!$C$1)","v":""},{"$f":"IF(OrigTable!D701=\"\",\"\",ScriptText!$B$1&CHAR(10)&ScriptText!$D$1)","v":""},{"$f":"IF(OrigTable!D701=\"\",\"\",TEXT(OrigTable!D701,\"00\"))","v":""},{"$f":"IF(OrigTable!D701=\"\",\"\",ScriptText!$E$1&CHAR(10)&ScriptText!$C$1)","v":""},{"$f":"IF(OrigTable!E701=\"\",\"\",ScriptText!$B$1&CHAR(10)&ScriptText!$D$1)","v":""},{"$f":"IF(OrigTable!E701=\"\",\"\",TEXT(OrigTable!E701,\"00\"))","v":""},{"$f":"IF(OrigTable!E701=\"\",\"\",ScriptText!$E$1&CHAR(10)&ScriptText!$C$1)","v":""},{"$f":"IF(OrigTable!F701=\"\",\"\",ScriptText!$B$1&CHAR(10)&ScriptText!$D$1)","v":""},{"$f":"IF(OrigTable!F701=\"\",\"\",TEXT(OrigTable!F701,\"00\"))","v":""},{"$f":"IF(OrigTable!F701=\"\",\"\",ScriptText!$E$1&CHAR(10)&ScriptText!$C$1)","v":""},{"$f":"IF(OrigTable!G701=\"\",\"\",ScriptText!$B$1&CHAR(10)&ScriptText!$D$1)","v":""},{"$f":"IF(OrigTable!G701=\"\",\"\",TEXT(OrigTable!G701,\"00\"))","v":""},{"$f":"IF(OrigTable!G701=\"\",\"\",ScriptText!$E$1&CHAR(10)&ScriptText!$C$1)","v":""},0]
["\n\n\n",{"$f":"IF(OrigTable!A702=\"\",\"\",ScriptText!$B$1&CHAR(10)&ScriptText!$D$1)","v":""},{"$f":"IF(OrigTable!A702=\"\",\"\",TEXT(OrigTable!A702,\"00\"))","v":""},{"$f":"IF(OrigTable!A702=\"\",\"\",ScriptText!$E$1&CHAR(10)&ScriptText!$C$1)","v":""},{"$f":"IF(OrigTable!B702=\"\",\"\",ScriptText!$B$1&CHAR(10)&ScriptText!$D$1)","v":""},{"$f":"IF(OrigTable!B702=\"\",\"\",TEXT(OrigTable!B702,\"00\"))","v":""},{"$f":"IF(OrigTable!B702=\"\",\"\",ScriptText!$E$1&CHAR(10)&ScriptText!C697)","v":""},{"$f":"IF(OrigTable!C702=\"\",\"\",ScriptText!$B$1&CHAR(10)&ScriptText!$D$1)","v":""},{"$f":"IF(OrigTable!C702=\"\",\"\",IF(LEN(OrigTable!C702)>255,LEFT(OrigTable!C702,250)&\". . .\",OrigTable!C702))","v":""},{"$f":"IF(OrigTable!C702=\"\",\"\",ScriptText!$E$1&CHAR(10)&ScriptText!$C$1)","v":""},{"$f":"IF(OrigTable!D702=\"\",\"\",ScriptText!$B$1&CHAR(10)&ScriptText!$D$1)","v":""},{"$f":"IF(OrigTable!D702=\"\",\"\",TEXT(OrigTable!D702,\"00\"))","v":""},{"$f":"IF(OrigTable!D702=\"\",\"\",ScriptText!$E$1&CHAR(10)&ScriptText!$C$1)","v":""},{"$f":"IF(OrigTable!E702=\"\",\"\",ScriptText!$B$1&CHAR(10)&ScriptText!$D$1)","v":""},{"$f":"IF(OrigTable!E702=\"\",\"\",TEXT(OrigTable!E702,\"00\"))","v":""},{"$f":"IF(OrigTable!E702=\"\",\"\",ScriptText!$E$1&CHAR(10)&ScriptText!$C$1)","v":""},{"$f":"IF(OrigTable!F702=\"\",\"\",ScriptText!$B$1&CHAR(10)&ScriptText!$D$1)","v":""},{"$f":"IF(OrigTable!F702=\"\",\"\",TEXT(OrigTable!F702,\"00\"))","v":""},{"$f":"IF(OrigTable!F702=\"\",\"\",ScriptText!$E$1&CHAR(10)&ScriptText!$C$1)","v":""},{"$f":"IF(OrigTable!G702=\"\",\"\",ScriptText!$B$1&CHAR(10)&ScriptText!$D$1)","v":""},{"$f":"IF(OrigTable!G702=\"\",\"\",TEXT(OrigTable!G702,\"00\"))","v":""},{"$f":"IF(OrigTable!G702=\"\",\"\",ScriptText!$E$1&CHAR(10)&ScriptText!$C$1)","v":""},0]
["\n\n\n",{"$f":"IF(OrigTable!A703=\"\",\"\",ScriptText!$B$1&CHAR(10)&ScriptText!$D$1)","v":""},{"$f":"IF(OrigTable!A703=\"\",\"\",TEXT(OrigTable!A703,\"00\"))","v":""},{"$f":"IF(OrigTable!A703=\"\",\"\",ScriptText!$E$1&CHAR(10)&ScriptText!$C$1)","v":""},{"$f":"IF(OrigTable!B703=\"\",\"\",ScriptText!$B$1&CHAR(10)&ScriptText!$D$1)","v":""},{"$f":"IF(OrigTable!B703=\"\",\"\",TEXT(OrigTable!B703,\"00\"))","v":""},{"$f":"IF(OrigTable!B703=\"\",\"\",ScriptText!$E$1&CHAR(10)&ScriptText!C698)","v":""},{"$f":"IF(OrigTable!C703=\"\",\"\",ScriptText!$B$1&CHAR(10)&ScriptText!$D$1)","v":""},{"$f":"IF(OrigTable!C703=\"\",\"\",IF(LEN(OrigTable!C703)>255,LEFT(OrigTable!C703,250)&\". . .\",OrigTable!C703))","v":""},{"$f":"IF(OrigTable!C703=\"\",\"\",ScriptText!$E$1&CHAR(10)&ScriptText!$C$1)","v":""},{"$f":"IF(OrigTable!D703=\"\",\"\",ScriptText!$B$1&CHAR(10)&ScriptText!$D$1)","v":""},{"$f":"IF(OrigTable!D703=\"\",\"\",TEXT(OrigTable!D703,\"00\"))","v":""},{"$f":"IF(OrigTable!D703=\"\",\"\",ScriptText!$E$1&CHAR(10)&ScriptText!$C$1)","v":""},{"$f":"IF(OrigTable!E703=\"\",\"\",ScriptText!$B$1&CHAR(10)&ScriptText!$D$1)","v":""},{"$f":"IF(OrigTable!E703=\"\",\"\",TEXT(OrigTable!E703,\"00\"))","v":""},{"$f":"IF(OrigTable!E703=\"\",\"\",ScriptText!$E$1&CHAR(10)&ScriptText!$C$1)","v":""},{"$f":"IF(OrigTable!F703=\"\",\"\",ScriptText!$B$1&CHAR(10)&ScriptText!$D$1)","v":""},{"$f":"IF(OrigTable!F703=\"\",\"\",TEXT(OrigTable!F703,\"00\"))","v":""},{"$f":"IF(OrigTable!F703=\"\",\"\",ScriptText!$E$1&CHAR(10)&ScriptText!$C$1)","v":""},{"$f":"IF(OrigTable!G703=\"\",\"\",ScriptText!$B$1&CHAR(10)&ScriptText!$D$1)","v":""},{"$f":"IF(OrigTable!G703=\"\",\"\",TEXT(OrigTable!G703,\"00\"))","v":""},{"$f":"IF(OrigTable!G703=\"\",\"\",ScriptText!$E$1&CHAR(10)&ScriptText!$C$1)","v":""},0]
["\n\n\n",{"$f":"IF(OrigTable!A704=\"\",\"\",ScriptText!$B$1&CHAR(10)&ScriptText!$D$1)","v":""},{"$f":"IF(OrigTable!A704=\"\",\"\",TEXT(OrigTable!A704,\"00\"))","v":""},{"$f":"IF(OrigTable!A704=\"\",\"\",ScriptText!$E$1&CHAR(10)&ScriptText!$C$1)","v":""},{"$f":"IF(OrigTable!B704=\"\",\"\",ScriptText!$B$1&CHAR(10)&ScriptText!$D$1)","v":""},{"$f":"IF(OrigTable!B704=\"\",\"\",TEXT(OrigTable!B704,\"00\"))","v":""},{"$f":"IF(OrigTable!B704=\"\",\"\",ScriptText!$E$1&CHAR(10)&ScriptText!C699)","v":""},{"$f":"IF(OrigTable!C704=\"\",\"\",ScriptText!$B$1&CHAR(10)&ScriptText!$D$1)","v":""},{"$f":"IF(OrigTable!C704=\"\",\"\",IF(LEN(OrigTable!C704)>255,LEFT(OrigTable!C704,250)&\". . .\",OrigTable!C704))","v":""},{"$f":"IF(OrigTable!C704=\"\",\"\",ScriptText!$E$1&CHAR(10)&ScriptText!$C$1)","v":""},{"$f":"IF(OrigTable!D704=\"\",\"\",ScriptText!$B$1&CHAR(10)&ScriptText!$D$1)","v":""},{"$f":"IF(OrigTable!D704=\"\",\"\",TEXT(OrigTable!D704,\"00\"))","v":""},{"$f":"IF(OrigTable!D704=\"\",\"\",ScriptText!$E$1&CHAR(10)&ScriptText!$C$1)","v":""},{"$f":"IF(OrigTable!E704=\"\",\"\",ScriptText!$B$1&CHAR(10)&ScriptText!$D$1)","v":""},{"$f":"IF(OrigTable!E704=\"\",\"\",TEXT(OrigTable!E704,\"00\"))","v":""},{"$f":"IF(OrigTable!E704=\"\",\"\",ScriptText!$E$1&CHAR(10)&ScriptText!$C$1)","v":""},{"$f":"IF(OrigTable!F704=\"\",\"\",ScriptText!$B$1&CHAR(10)&ScriptText!$D$1)","v":""},{"$f":"IF(OrigTable!F704=\"\",\"\",TEXT(OrigTable!F704,\"00\"))","v":""},{"$f":"IF(OrigTable!F704=\"\",\"\",ScriptText!$E$1&CHAR(10)&ScriptText!$C$1)","v":""},{"$f":"IF(OrigTable!G704=\"\",\"\",ScriptText!$B$1&CHAR(10)&ScriptText!$D$1)","v":""},{"$f":"IF(OrigTable!G704=\"\",\"\",TEXT(OrigTable!G704,\"00\"))","v":""},{"$f":"IF(OrigTable!G704=\"\",\"\",ScriptText!$E$1&CHAR(10)&ScriptText!$C$1)","v":""},0]
["\n\n\n",{"$f":"IF(OrigTable!A705=\"\",\"\",ScriptText!$B$1&CHAR(10)&ScriptText!$D$1)","v":""},{"$f":"IF(OrigTable!A705=\"\",\"\",TEXT(OrigTable!A705,\"00\"))","v":""},{"$f":"IF(OrigTable!A705=\"\",\"\",ScriptText!$E$1&CHAR(10)&ScriptText!$C$1)","v":""},{"$f":"IF(OrigTable!B705=\"\",\"\",ScriptText!$B$1&CHAR(10)&ScriptText!$D$1)","v":""},{"$f":"IF(OrigTable!B705=\"\",\"\",TEXT(OrigTable!B705,\"00\"))","v":""},{"$f":"IF(OrigTable!B705=\"\",\"\",ScriptText!$E$1&CHAR(10)&ScriptText!C700)","v":""},{"$f":"IF(OrigTable!C705=\"\",\"\",ScriptText!$B$1&CHAR(10)&ScriptText!$D$1)","v":""},{"$f":"IF(OrigTable!C705=\"\",\"\",IF(LEN(OrigTable!C705)>255,LEFT(OrigTable!C705,250)&\". . .\",OrigTable!C705))","v":""},{"$f":"IF(OrigTable!C705=\"\",\"\",ScriptText!$E$1&CHAR(10)&ScriptText!$C$1)","v":""},{"$f":"IF(OrigTable!D705=\"\",\"\",ScriptText!$B$1&CHAR(10)&ScriptText!$D$1)","v":""},{"$f":"IF(OrigTable!D705=\"\",\"\",TEXT(OrigTable!D705,\"00\"))","v":""},{"$f":"IF(OrigTable!D705=\"\",\"\",ScriptText!$E$1&CHAR(10)&ScriptText!$C$1)","v":""},{"$f":"IF(OrigTable!E705=\"\",\"\",ScriptText!$B$1&CHAR(10)&ScriptText!$D$1)","v":""},{"$f":"IF(OrigTable!E705=\"\",\"\",TEXT(OrigTable!E705,\"00\"))","v":""},{"$f":"IF(OrigTable!E705=\"\",\"\",ScriptText!$E$1&CHAR(10)&ScriptText!$C$1)","v":""},{"$f":"IF(OrigTable!F705=\"\",\"\",ScriptText!$B$1&CHAR(10)&ScriptText!$D$1)","v":""},{"$f":"IF(OrigTable!F705=\"\",\"\",TEXT(OrigTable!F705,\"00\"))","v":""},{"$f":"IF(OrigTable!F705=\"\",\"\",ScriptText!$E$1&CHAR(10)&ScriptText!$C$1)","v":""},{"$f":"IF(OrigTable!G705=\"\",\"\",ScriptText!$B$1&CHAR(10)&ScriptText!$D$1)","v":""},{"$f":"IF(OrigTable!G705=\"\",\"\",TEXT(OrigTable!G705,\"00\"))","v":""},{"$f":"IF(OrigTable!G705=\"\",\"\",ScriptText!$E$1&CHAR(10)&ScriptText!$C$1)","v":""},0]
["\n\n\n",{"$f":"IF(OrigTable!A706=\"\",\"\",ScriptText!$B$1&CHAR(10)&ScriptText!$D$1)","v":""},{"$f":"IF(OrigTable!A706=\"\",\"\",TEXT(OrigTable!A706,\"00\"))","v":""},{"$f":"IF(OrigTable!A706=\"\",\"\",ScriptText!$E$1&CHAR(10)&ScriptText!$C$1)","v":""},{"$f":"IF(OrigTable!B706=\"\",\"\",ScriptText!$B$1&CHAR(10)&ScriptText!$D$1)","v":""},{"$f":"IF(OrigTable!B706=\"\",\"\",TEXT(OrigTable!B706,\"00\"))","v":""},{"$f":"IF(OrigTable!B706=\"\",\"\",ScriptText!$E$1&CHAR(10)&ScriptText!C701)","v":""},{"$f":"IF(OrigTable!C706=\"\",\"\",ScriptText!$B$1&CHAR(10)&ScriptText!$D$1)","v":""},{"$f":"IF(OrigTable!C706=\"\",\"\",IF(LEN(OrigTable!C706)>255,LEFT(OrigTable!C706,250)&\". . .\",OrigTable!C706))","v":""},{"$f":"IF(OrigTable!C706=\"\",\"\",ScriptText!$E$1&CHAR(10)&ScriptText!$C$1)","v":""},{"$f":"IF(OrigTable!D706=\"\",\"\",ScriptText!$B$1&CHAR(10)&ScriptText!$D$1)","v":""},{"$f":"IF(OrigTable!D706=\"\",\"\",TEXT(OrigTable!D706,\"00\"))","v":""},{"$f":"IF(OrigTable!D706=\"\",\"\",ScriptText!$E$1&CHAR(10)&ScriptText!$C$1)","v":""},{"$f":"IF(OrigTable!E706=\"\",\"\",ScriptText!$B$1&CHAR(10)&ScriptText!$D$1)","v":""},{"$f":"IF(OrigTable!E706=\"\",\"\",TEXT(OrigTable!E706,\"00\"))","v":""},{"$f":"IF(OrigTable!E706=\"\",\"\",ScriptText!$E$1&CHAR(10)&ScriptText!$C$1)","v":""},{"$f":"IF(OrigTable!F706=\"\",\"\",ScriptText!$B$1&CHAR(10)&ScriptText!$D$1)","v":""},{"$f":"IF(OrigTable!F706=\"\",\"\",TEXT(OrigTable!F706,\"00\"))","v":""},{"$f":"IF(OrigTable!F706=\"\",\"\",ScriptText!$E$1&CHAR(10)&ScriptText!$C$1)","v":""},{"$f":"IF(OrigTable!G706=\"\",\"\",ScriptText!$B$1&CHAR(10)&ScriptText!$D$1)","v":""},{"$f":"IF(OrigTable!G706=\"\",\"\",TEXT(OrigTable!G706,\"00\"))","v":""},{"$f":"IF(OrigTable!G706=\"\",\"\",ScriptText!$E$1&CHAR(10)&ScriptText!$C$1)","v":""},0]
["\n\n\n",{"$f":"IF(OrigTable!A707=\"\",\"\",ScriptText!$B$1&CHAR(10)&ScriptText!$D$1)","v":""},{"$f":"IF(OrigTable!A707=\"\",\"\",TEXT(OrigTable!A707,\"00\"))","v":""},{"$f":"IF(OrigTable!A707=\"\",\"\",ScriptText!$E$1&CHAR(10)&ScriptText!$C$1)","v":""},{"$f":"IF(OrigTable!B707=\"\",\"\",ScriptText!$B$1&CHAR(10)&ScriptText!$D$1)","v":""},{"$f":"IF(OrigTable!B707=\"\",\"\",TEXT(OrigTable!B707,\"00\"))","v":""},{"$f":"IF(OrigTable!B707=\"\",\"\",ScriptText!$E$1&CHAR(10)&ScriptText!C702)","v":""},{"$f":"IF(OrigTable!C707=\"\",\"\",ScriptText!$B$1&CHAR(10)&ScriptText!$D$1)","v":""},{"$f":"IF(OrigTable!C707=\"\",\"\",IF(LEN(OrigTable!C707)>255,LEFT(OrigTable!C707,250)&\". . .\",OrigTable!C707))","v":""},{"$f":"IF(OrigTable!C707=\"\",\"\",ScriptText!$E$1&CHAR(10)&ScriptText!$C$1)","v":""},{"$f":"IF(OrigTable!D707=\"\",\"\",ScriptText!$B$1&CHAR(10)&ScriptText!$D$1)","v":""},{"$f":"IF(OrigTable!D707=\"\",\"\",TEXT(OrigTable!D707,\"00\"))","v":""},{"$f":"IF(OrigTable!D707=\"\",\"\",ScriptText!$E$1&CHAR(10)&ScriptText!$C$1)","v":""},{"$f":"IF(OrigTable!E707=\"\",\"\",ScriptText!$B$1&CHAR(10)&ScriptText!$D$1)","v":""},{"$f":"IF(OrigTable!E707=\"\",\"\",TEXT(OrigTable!E707,\"00\"))","v":""},{"$f":"IF(OrigTable!E707=\"\",\"\",ScriptText!$E$1&CHAR(10)&ScriptText!$C$1)","v":""},{"$f":"IF(OrigTable!F707=\"\",\"\",ScriptText!$B$1&CHAR(10)&ScriptText!$D$1)","v":""},{"$f":"IF(OrigTable!F707=\"\",\"\",TEXT(OrigTable!F707,\"00\"))","v":""},{"$f":"IF(OrigTable!F707=\"\",\"\",ScriptText!$E$1&CHAR(10)&ScriptText!$C$1)","v":""},{"$f":"IF(OrigTable!G707=\"\",\"\",ScriptText!$B$1&CHAR(10)&ScriptText!$D$1)","v":""},{"$f":"IF(OrigTable!G707=\"\",\"\",TEXT(OrigTable!G707,\"00\"))","v":""},{"$f":"IF(OrigTable!G707=\"\",\"\",ScriptText!$E$1&CHAR(10)&ScriptText!$C$1)","v":""},0]
["\n\n\n",{"$f":"IF(OrigTable!A708=\"\",\"\",ScriptText!$B$1&CHAR(10)&ScriptText!$D$1)","v":""},{"$f":"IF(OrigTable!A708=\"\",\"\",TEXT(OrigTable!A708,\"00\"))","v":""},{"$f":"IF(OrigTable!A708=\"\",\"\",ScriptText!$E$1&CHAR(10)&ScriptText!$C$1)","v":""},{"$f":"IF(OrigTable!B708=\"\",\"\",ScriptText!$B$1&CHAR(10)&ScriptText!$D$1)","v":""},{"$f":"IF(OrigTable!B708=\"\",\"\",TEXT(OrigTable!B708,\"00\"))","v":""},{"$f":"IF(OrigTable!B708=\"\",\"\",ScriptText!$E$1&CHAR(10)&ScriptText!C703)","v":""},{"$f":"IF(OrigTable!C708=\"\",\"\",ScriptText!$B$1&CHAR(10)&ScriptText!$D$1)","v":""},{"$f":"IF(OrigTable!C708=\"\",\"\",IF(LEN(OrigTable!C708)>255,LEFT(OrigTable!C708,250)&\". . .\",OrigTable!C708))","v":""},{"$f":"IF(OrigTable!C708=\"\",\"\",ScriptText!$E$1&CHAR(10)&ScriptText!$C$1)","v":""},{"$f":"IF(OrigTable!D708=\"\",\"\",ScriptText!$B$1&CHAR(10)&ScriptText!$D$1)","v":""},{"$f":"IF(OrigTable!D708=\"\",\"\",TEXT(OrigTable!D708,\"00\"))","v":""},{"$f":"IF(OrigTable!D708=\"\",\"\",ScriptText!$E$1&CHAR(10)&ScriptText!$C$1)","v":""},{"$f":"IF(OrigTable!E708=\"\",\"\",ScriptText!$B$1&CHAR(10)&ScriptText!$D$1)","v":""},{"$f":"IF(OrigTable!E708=\"\",\"\",TEXT(OrigTable!E708,\"00\"))","v":""},{"$f":"IF(OrigTable!E708=\"\",\"\",ScriptText!$E$1&CHAR(10)&ScriptText!$C$1)","v":""},{"$f":"IF(OrigTable!F708=\"\",\"\",ScriptText!$B$1&CHAR(10)&ScriptText!$D$1)","v":""},{"$f":"IF(OrigTable!F708=\"\",\"\",TEXT(OrigTable!F708,\"00\"))","v":""},{"$f":"IF(OrigTable!F708=\"\",\"\",ScriptText!$E$1&CHAR(10)&ScriptText!$C$1)","v":""},{"$f":"IF(OrigTable!G708=\"\",\"\",ScriptText!$B$1&CHAR(10)&ScriptText!$D$1)","v":""},{"$f":"IF(OrigTable!G708=\"\",\"\",TEXT(OrigTable!G708,\"00\"))","v":""},{"$f":"IF(OrigTable!G708=\"\",\"\",ScriptText!$E$1&CHAR(10)&ScriptText!$C$1)","v":""},0]
["\n\n\n",{"$f":"IF(OrigTable!A709=\"\",\"\",ScriptText!$B$1&CHAR(10)&ScriptText!$D$1)","v":""},{"$f":"IF(OrigTable!A709=\"\",\"\",TEXT(OrigTable!A709,\"00\"))","v":""},{"$f":"IF(OrigTable!A709=\"\",\"\",ScriptText!$E$1&CHAR(10)&ScriptText!$C$1)","v":""},{"$f":"IF(OrigTable!B709=\"\",\"\",ScriptText!$B$1&CHAR(10)&ScriptText!$D$1)","v":""},{"$f":"IF(OrigTable!B709=\"\",\"\",TEXT(OrigTable!B709,\"00\"))","v":""},{"$f":"IF(OrigTable!B709=\"\",\"\",ScriptText!$E$1&CHAR(10)&ScriptText!C704)","v":""},{"$f":"IF(OrigTable!C709=\"\",\"\",ScriptText!$B$1&CHAR(10)&ScriptText!$D$1)","v":""},{"$f":"IF(OrigTable!C709=\"\",\"\",IF(LEN(OrigTable!C709)>255,LEFT(OrigTable!C709,250)&\". . .\",OrigTable!C709))","v":""},{"$f":"IF(OrigTable!C709=\"\",\"\",ScriptText!$E$1&CHAR(10)&ScriptText!$C$1)","v":""},{"$f":"IF(OrigTable!D709=\"\",\"\",ScriptText!$B$1&CHAR(10)&ScriptText!$D$1)","v":""},{"$f":"IF(OrigTable!D709=\"\",\"\",TEXT(OrigTable!D709,\"00\"))","v":""},{"$f":"IF(OrigTable!D709=\"\",\"\",ScriptText!$E$1&CHAR(10)&ScriptText!$C$1)","v":""},{"$f":"IF(OrigTable!E709=\"\",\"\",ScriptText!$B$1&CHAR(10)&ScriptText!$D$1)","v":""},{"$f":"IF(OrigTable!E709=\"\",\"\",TEXT(OrigTable!E709,\"00\"))","v":""},{"$f":"IF(OrigTable!E709=\"\",\"\",ScriptText!$E$1&CHAR(10)&ScriptText!$C$1)","v":""},{"$f":"IF(OrigTable!F709=\"\",\"\",ScriptText!$B$1&CHAR(10)&ScriptText!$D$1)","v":""},{"$f":"IF(OrigTable!F709=\"\",\"\",TEXT(OrigTable!F709,\"00\"))","v":""},{"$f":"IF(OrigTable!F709=\"\",\"\",ScriptText!$E$1&CHAR(10)&ScriptText!$C$1)","v":""},{"$f":"IF(OrigTable!G709=\"\",\"\",ScriptText!$B$1&CHAR(10)&ScriptText!$D$1)","v":""},{"$f":"IF(OrigTable!G709=\"\",\"\",TEXT(OrigTable!G709,\"00\"))","v":""},{"$f":"IF(OrigTable!G709=\"\",\"\",ScriptText!$E$1&CHAR(10)&ScriptText!$C$1)","v":""},0]
["\n\n\n",{"$f":"IF(OrigTable!A710=\"\",\"\",ScriptText!$B$1&CHAR(10)&ScriptText!$D$1)","v":""},{"$f":"IF(OrigTable!A710=\"\",\"\",TEXT(OrigTable!A710,\"00\"))","v":""},{"$f":"IF(OrigTable!A710=\"\",\"\",ScriptText!$E$1&CHAR(10)&ScriptText!$C$1)","v":""},{"$f":"IF(OrigTable!B710=\"\",\"\",ScriptText!$B$1&CHAR(10)&ScriptText!$D$1)","v":""},{"$f":"IF(OrigTable!B710=\"\",\"\",TEXT(OrigTable!B710,\"00\"))","v":""},{"$f":"IF(OrigTable!B710=\"\",\"\",ScriptText!$E$1&CHAR(10)&ScriptText!C705)","v":""},{"$f":"IF(OrigTable!C710=\"\",\"\",ScriptText!$B$1&CHAR(10)&ScriptText!$D$1)","v":""},{"$f":"IF(OrigTable!C710=\"\",\"\",IF(LEN(OrigTable!C710)>255,LEFT(OrigTable!C710,250)&\". . .\",OrigTable!C710))","v":""},{"$f":"IF(OrigTable!C710=\"\",\"\",ScriptText!$E$1&CHAR(10)&ScriptText!$C$1)","v":""},{"$f":"IF(OrigTable!D710=\"\",\"\",ScriptText!$B$1&CHAR(10)&ScriptText!$D$1)","v":""},{"$f":"IF(OrigTable!D710=\"\",\"\",TEXT(OrigTable!D710,\"00\"))","v":""},{"$f":"IF(OrigTable!D710=\"\",\"\",ScriptText!$E$1&CHAR(10)&ScriptText!$C$1)","v":""},{"$f":"IF(OrigTable!E710=\"\",\"\",ScriptText!$B$1&CHAR(10)&ScriptText!$D$1)","v":""},{"$f":"IF(OrigTable!E710=\"\",\"\",TEXT(OrigTable!E710,\"00\"))","v":""},{"$f":"IF(OrigTable!E710=\"\",\"\",ScriptText!$E$1&CHAR(10)&ScriptText!$C$1)","v":""},{"$f":"IF(OrigTable!F710=\"\",\"\",ScriptText!$B$1&CHAR(10)&ScriptText!$D$1)","v":""},{"$f":"IF(OrigTable!F710=\"\",\"\",TEXT(OrigTable!F710,\"00\"))","v":""},{"$f":"IF(OrigTable!F710=\"\",\"\",ScriptText!$E$1&CHAR(10)&ScriptText!$C$1)","v":""},{"$f":"IF(OrigTable!G710=\"\",\"\",ScriptText!$B$1&CHAR(10)&ScriptText!$D$1)","v":""},{"$f":"IF(OrigTable!G710=\"\",\"\",TEXT(OrigTable!G710,\"00\"))","v":""},{"$f":"IF(OrigTable!G710=\"\",\"\",ScriptText!$E$1&CHAR(10)&ScriptText!$C$1)","v":""},{"$f":"IF(LEN(A710)>3,ROW(),0)","v":0}]
["\n\n\n",{"$f":"IF(OrigTable!A711=\"\",\"\",ScriptText!$B$1&CHAR(10)&ScriptText!$D$1)","v":""},{"$f":"IF(OrigTable!A711=\"\",\"\",TEXT(OrigTable!A711,\"00\"))","v":""},{"$f":"IF(OrigTable!A711=\"\",\"\",ScriptText!$E$1&CHAR(10)&ScriptText!$C$1)","v":""},{"$f":"IF(OrigTable!B711=\"\",\"\",ScriptText!$B$1&CHAR(10)&ScriptText!$D$1)","v":""},{"$f":"IF(OrigTable!B711=\"\",\"\",TEXT(OrigTable!B711,\"00\"))","v":""},{"$f":"IF(OrigTable!B711=\"\",\"\",ScriptText!$E$1&CHAR(10)&ScriptText!C706)","v":""},{"$f":"IF(OrigTable!C711=\"\",\"\",ScriptText!$B$1&CHAR(10)&ScriptText!$D$1)","v":""},{"$f":"IF(OrigTable!C711=\"\",\"\",IF(LEN(OrigTable!C711)>255,LEFT(OrigTable!C711,250)&\". . .\",OrigTable!C711))","v":""},{"$f":"IF(OrigTable!C711=\"\",\"\",ScriptText!$E$1&CHAR(10)&ScriptText!$C$1)","v":""},{"$f":"IF(OrigTable!D711=\"\",\"\",ScriptText!$B$1&CHAR(10)&ScriptText!$D$1)","v":""},{"$f":"IF(OrigTable!D711=\"\",\"\",TEXT(OrigTable!D711,\"00\"))","v":""},{"$f":"IF(OrigTable!D711=\"\",\"\",ScriptText!$E$1&CHAR(10)&ScriptText!$C$1)","v":""},{"$f":"IF(OrigTable!E711=\"\",\"\",ScriptText!$B$1&CHAR(10)&ScriptText!$D$1)","v":""},{"$f":"IF(OrigTable!E711=\"\",\"\",TEXT(OrigTable!E711,\"00\"))","v":""},{"$f":"IF(OrigTable!E711=\"\",\"\",ScriptText!$E$1&CHAR(10)&ScriptText!$C$1)","v":""},{"$f":"IF(OrigTable!F711=\"\",\"\",ScriptText!$B$1&CHAR(10)&ScriptText!$D$1)","v":""},{"$f":"IF(OrigTable!F711=\"\",\"\",TEXT(OrigTable!F711,\"00\"))","v":""},{"$f":"IF(OrigTable!F711=\"\",\"\",ScriptText!$E$1&CHAR(10)&ScriptText!$C$1)","v":""},{"$f":"IF(OrigTable!G711=\"\",\"\",ScriptText!$B$1&CHAR(10)&ScriptText!$D$1)","v":""},{"$f":"IF(OrigTable!G711=\"\",\"\",TEXT(OrigTable!G711,\"00\"))","v":""},{"$f":"IF(OrigTable!G711=\"\",\"\",ScriptText!$E$1&CHAR(10)&ScriptText!$C$1)","v":""},0]
["\n\n\n",{"$f":"IF(OrigTable!A712=\"\",\"\",ScriptText!$B$1&CHAR(10)&ScriptText!$D$1)","v":""},{"$f":"IF(OrigTable!A712=\"\",\"\",TEXT(OrigTable!A712,\"00\"))","v":""},{"$f":"IF(OrigTable!A712=\"\",\"\",ScriptText!$E$1&CHAR(10)&ScriptText!$C$1)","v":""},{"$f":"IF(OrigTable!B712=\"\",\"\",ScriptText!$B$1&CHAR(10)&ScriptText!$D$1)","v":""},{"$f":"IF(OrigTable!B712=\"\",\"\",TEXT(OrigTable!B712,\"00\"))","v":""},{"$f":"IF(OrigTable!B712=\"\",\"\",ScriptText!$E$1&CHAR(10)&ScriptText!C707)","v":""},{"$f":"IF(OrigTable!C712=\"\",\"\",ScriptText!$B$1&CHAR(10)&ScriptText!$D$1)","v":""},{"$f":"IF(OrigTable!C712=\"\",\"\",IF(LEN(OrigTable!C712)>255,LEFT(OrigTable!C712,250)&\". . .\",OrigTable!C712))","v":""},{"$f":"IF(OrigTable!C712=\"\",\"\",ScriptText!$E$1&CHAR(10)&ScriptText!$C$1)","v":""},{"$f":"IF(OrigTable!D712=\"\",\"\",ScriptText!$B$1&CHAR(10)&ScriptText!$D$1)","v":""},{"$f":"IF(OrigTable!D712=\"\",\"\",TEXT(OrigTable!D712,\"00\"))","v":""},{"$f":"IF(OrigTable!D712=\"\",\"\",ScriptText!$E$1&CHAR(10)&ScriptText!$C$1)","v":""},{"$f":"IF(OrigTable!E712=\"\",\"\",ScriptText!$B$1&CHAR(10)&ScriptText!$D$1)","v":""},{"$f":"IF(OrigTable!E712=\"\",\"\",TEXT(OrigTable!E712,\"00\"))","v":""},{"$f":"IF(OrigTable!E712=\"\",\"\",ScriptText!$E$1&CHAR(10)&ScriptText!$C$1)","v":""},{"$f":"IF(OrigTable!F712=\"\",\"\",ScriptText!$B$1&CHAR(10)&ScriptText!$D$1)","v":""},{"$f":"IF(OrigTable!F712=\"\",\"\",TEXT(OrigTable!F712,\"00\"))","v":""},{"$f":"IF(OrigTable!F712=\"\",\"\",ScriptText!$E$1&CHAR(10)&ScriptText!$C$1)","v":""},{"$f":"IF(OrigTable!G712=\"\",\"\",ScriptText!$B$1&CHAR(10)&ScriptText!$D$1)","v":""},{"$f":"IF(OrigTable!G712=\"\",\"\",TEXT(OrigTable!G712,\"00\"))","v":""},{"$f":"IF(OrigTable!G712=\"\",\"\",ScriptText!$E$1&CHAR(10)&ScriptText!$C$1)","v":""},0]
[{"$f":"_xlfn.TEXTJOIN(\"\",TRUE,B713:D713)&CHAR(10)&_xlfn.TEXTJOIN(\"\",TRUE,E713:G713)&CHAR(10)&_xlfn.TEXTJOIN(\"\",TRUE,H713:J713)&CHAR(10)&_xlfn.TEXTJOIN(\"\",TRUE,K713:M713)&_xlfn.TEXTJOIN(\"\",TRUE,N713:P713)&_xlfn.TEXTJOIN(\"\",TRUE,Q713:S713)&_xlfn.TEXTJOIN(\"\",TRUE,T713:V713)","v":"\n\n\n"},{"$f":"IF(OrigTable!A713=\"\",\"\",ScriptText!$B$1&CHAR(10)&ScriptText!$D$1)","v":""},{"$f":"IF(OrigTable!A713=\"\",\"\",TEXT(OrigTable!A713,\"00\"))","v":""},{"$f":"IF(OrigTable!A713=\"\",\"\",ScriptText!$E$1&CHAR(10)&ScriptText!$C$1)","v":""},{"$f":"IF(OrigTable!B713=\"\",\"\",ScriptText!$B$1&CHAR(10)&ScriptText!$D$1)","v":""},{"$f":"IF(OrigTable!B713=\"\",\"\",TEXT(OrigTable!B713,\"00\"))","v":""},{"$f":"IF(OrigTable!B713=\"\",\"\",ScriptText!$E$1&CHAR(10)&ScriptText!C708)","v":""},{"$f":"IF(OrigTable!C713=\"\",\"\",ScriptText!$B$1&CHAR(10)&ScriptText!$D$1)","v":""},{"$f":"IF(OrigTable!C713=\"\",\"\",IF(LEN(OrigTable!C713)>255,LEFT(OrigTable!C713,250)&\". . .\",OrigTable!C713))","v":""},{"$f":"IF(OrigTable!C713=\"\",\"\",ScriptText!$E$1&CHAR(10)&ScriptText!$C$1)","v":""},{"$f":"IF(OrigTable!D713=\"\",\"\",ScriptText!$B$1&CHAR(10)&ScriptText!$D$1)","v":""},{"$f":"IF(OrigTable!D713=\"\",\"\",TEXT(OrigTable!D713,\"00\"))","v":""},{"$f":"IF(OrigTable!D713=\"\",\"\",ScriptText!$E$1&CHAR(10)&ScriptText!$C$1)","v":""},{"$f":"IF(OrigTable!E713=\"\",\"\",ScriptText!$B$1&CHAR(10)&ScriptText!$D$1)","v":""},{"$f":"IF(OrigTable!E713=\"\",\"\",TEXT(OrigTable!E713,\"00\"))","v":""},{"$f":"IF(OrigTable!E713=\"\",\"\",ScriptText!$E$1&CHAR(10)&ScriptText!$C$1)","v":""},{"$f":"IF(OrigTable!F713=\"\",\"\",ScriptText!$B$1&CHAR(10)&ScriptText!$D$1)","v":""},{"$f":"IF(OrigTable!F713=\"\",\"\",TEXT(OrigTable!F713,\"00\"))","v":""},{"$f":"IF(OrigTable!F713=\"\",\"\",ScriptText!$E$1&CHAR(10)&ScriptText!$C$1)","v":""},{"$f":"IF(OrigTable!G713=\"\",\"\",ScriptText!$B$1&CHAR(10)&ScriptText!$D$1)","v":""},{"$f":"IF(OrigTable!G713=\"\",\"\",TEXT(OrigTable!G713,\"00\"))","v":""},{"$f":"IF(OrigTable!G713=\"\",\"\",ScriptText!$E$1&CHAR(10)&ScriptText!$C$1)","v":""},0]
["\n\n\n",{"$f":"IF(OrigTable!A714=\"\",\"\",ScriptText!$B$1&CHAR(10)&ScriptText!$D$1)","v":""},{"$f":"IF(OrigTable!A714=\"\",\"\",TEXT(OrigTable!A714,\"00\"))","v":""},{"$f":"IF(OrigTable!A714=\"\",\"\",ScriptText!$E$1&CHAR(10)&ScriptText!$C$1)","v":""},{"$f":"IF(OrigTable!B714=\"\",\"\",ScriptText!$B$1&CHAR(10)&ScriptText!$D$1)","v":""},{"$f":"IF(OrigTable!B714=\"\",\"\",TEXT(OrigTable!B714,\"00\"))","v":""},{"$f":"IF(OrigTable!B714=\"\",\"\",ScriptText!$E$1&CHAR(10)&ScriptText!C709)","v":""},{"$f":"IF(OrigTable!C714=\"\",\"\",ScriptText!$B$1&CHAR(10)&ScriptText!$D$1)","v":""},{"$f":"IF(OrigTable!C714=\"\",\"\",IF(LEN(OrigTable!C714)>255,LEFT(OrigTable!C714,250)&\". . .\",OrigTable!C714))","v":""},{"$f":"IF(OrigTable!C714=\"\",\"\",ScriptText!$E$1&CHAR(10)&ScriptText!$C$1)","v":""},{"$f":"IF(OrigTable!D714=\"\",\"\",ScriptText!$B$1&CHAR(10)&ScriptText!$D$1)","v":""},{"$f":"IF(OrigTable!D714=\"\",\"\",TEXT(OrigTable!D714,\"00\"))","v":""},{"$f":"IF(OrigTable!D714=\"\",\"\",ScriptText!$E$1&CHAR(10)&ScriptText!$C$1)","v":""},{"$f":"IF(OrigTable!E714=\"\",\"\",ScriptText!$B$1&CHAR(10)&ScriptText!$D$1)","v":""},{"$f":"IF(OrigTable!E714=\"\",\"\",TEXT(OrigTable!E714,\"00\"))","v":""},{"$f":"IF(OrigTable!E714=\"\",\"\",ScriptText!$E$1&CHAR(10)&ScriptText!$C$1)","v":""},{"$f":"IF(OrigTable!F714=\"\",\"\",ScriptText!$B$1&CHAR(10)&ScriptText!$D$1)","v":""},{"$f":"IF(OrigTable!F714=\"\",\"\",TEXT(OrigTable!F714,\"00\"))","v":""},{"$f":"IF(OrigTable!F714=\"\",\"\",ScriptText!$E$1&CHAR(10)&ScriptText!$C$1)","v":""},{"$f":"IF(OrigTable!G714=\"\",\"\",ScriptText!$B$1&CHAR(10)&ScriptText!$D$1)","v":""},{"$f":"IF(OrigTable!G714=\"\",\"\",TEXT(OrigTable!G714,\"00\"))","v":""},{"$f":"IF(OrigTable!G714=\"\",\"\",ScriptText!$E$1&CHAR(10)&ScriptText!$C$1)","v":""},0]
["\n\n\n",{"$f":"IF(OrigTable!A715=\"\",\"\",ScriptText!$B$1&CHAR(10)&ScriptText!$D$1)","v":""},{"$f":"IF(OrigTable!A715=\"\",\"\",TEXT(OrigTable!A715,\"00\"))","v":""},{"$f":"IF(OrigTable!A715=\"\",\"\",ScriptText!$E$1&CHAR(10)&ScriptText!$C$1)","v":""},{"$f":"IF(OrigTable!B715=\"\",\"\",ScriptText!$B$1&CHAR(10)&ScriptText!$D$1)","v":""},{"$f":"IF(OrigTable!B715=\"\",\"\",TEXT(OrigTable!B715,\"00\"))","v":""},{"$f":"IF(OrigTable!B715=\"\",\"\",ScriptText!$E$1&CHAR(10)&ScriptText!C710)","v":""},{"$f":"IF(OrigTable!C715=\"\",\"\",ScriptText!$B$1&CHAR(10)&ScriptText!$D$1)","v":""},{"$f":"IF(OrigTable!C715=\"\",\"\",IF(LEN(OrigTable!C715)>255,LEFT(OrigTable!C715,250)&\". . .\",OrigTable!C715))","v":""},{"$f":"IF(OrigTable!C715=\"\",\"\",ScriptText!$E$1&CHAR(10)&ScriptText!$C$1)","v":""},{"$f":"IF(OrigTable!D715=\"\",\"\",ScriptText!$B$1&CHAR(10)&ScriptText!$D$1)","v":""},{"$f":"IF(OrigTable!D715=\"\",\"\",TEXT(OrigTable!D715,\"00\"))","v":""},{"$f":"IF(OrigTable!D715=\"\",\"\",ScriptText!$E$1&CHAR(10)&ScriptText!$C$1)","v":""},{"$f":"IF(OrigTable!E715=\"\",\"\",ScriptText!$B$1&CHAR(10)&ScriptText!$D$1)","v":""},{"$f":"IF(OrigTable!E715=\"\",\"\",TEXT(OrigTable!E715,\"00\"))","v":""},{"$f":"IF(OrigTable!E715=\"\",\"\",ScriptText!$E$1&CHAR(10)&ScriptText!$C$1)","v":""},{"$f":"IF(OrigTable!F715=\"\",\"\",ScriptText!$B$1&CHAR(10)&ScriptText!$D$1)","v":""},{"$f":"IF(OrigTable!F715=\"\",\"\",TEXT(OrigTable!F715,\"00\"))","v":""},{"$f":"IF(OrigTable!F715=\"\",\"\",ScriptText!$E$1&CHAR(10)&ScriptText!$C$1)","v":""},{"$f":"IF(OrigTable!G715=\"\",\"\",ScriptText!$B$1&CHAR(10)&ScriptText!$D$1)","v":""},{"$f":"IF(OrigTable!G715=\"\",\"\",TEXT(OrigTable!G715,\"00\"))","v":""},{"$f":"IF(OrigTable!G715=\"\",\"\",ScriptText!$E$1&CHAR(10)&ScriptText!$C$1)","v":""},0]
["\n\n\n",{"$f":"IF(OrigTable!A716=\"\",\"\",ScriptText!$B$1&CHAR(10)&ScriptText!$D$1)","v":""},{"$f":"IF(OrigTable!A716=\"\",\"\",TEXT(OrigTable!A716,\"00\"))","v":""},{"$f":"IF(OrigTable!A716=\"\",\"\",ScriptText!$E$1&CHAR(10)&ScriptText!$C$1)","v":""},{"$f":"IF(OrigTable!B716=\"\",\"\",ScriptText!$B$1&CHAR(10)&ScriptText!$D$1)","v":""},{"$f":"IF(OrigTable!B716=\"\",\"\",TEXT(OrigTable!B716,\"00\"))","v":""},{"$f":"IF(OrigTable!B716=\"\",\"\",ScriptText!$E$1&CHAR(10)&ScriptText!C711)","v":""},{"$f":"IF(OrigTable!C716=\"\",\"\",ScriptText!$B$1&CHAR(10)&ScriptText!$D$1)","v":""},{"$f":"IF(OrigTable!C716=\"\",\"\",IF(LEN(OrigTable!C716)>255,LEFT(OrigTable!C716,250)&\". . .\",OrigTable!C716))","v":""},{"$f":"IF(OrigTable!C716=\"\",\"\",ScriptText!$E$1&CHAR(10)&ScriptText!$C$1)","v":""},{"$f":"IF(OrigTable!D716=\"\",\"\",ScriptText!$B$1&CHAR(10)&ScriptText!$D$1)","v":""},{"$f":"IF(OrigTable!D716=\"\",\"\",TEXT(OrigTable!D716,\"00\"))","v":""},{"$f":"IF(OrigTable!D716=\"\",\"\",ScriptText!$E$1&CHAR(10)&ScriptText!$C$1)","v":""},{"$f":"IF(OrigTable!E716=\"\",\"\",ScriptText!$B$1&CHAR(10)&ScriptText!$D$1)","v":""},{"$f":"IF(OrigTable!E716=\"\",\"\",TEXT(OrigTable!E716,\"00\"))","v":""},{"$f":"IF(OrigTable!E716=\"\",\"\",ScriptText!$E$1&CHAR(10)&ScriptText!$C$1)","v":""},{"$f":"IF(OrigTable!F716=\"\",\"\",ScriptText!$B$1&CHAR(10)&ScriptText!$D$1)","v":""},{"$f":"IF(OrigTable!F716=\"\",\"\",TEXT(OrigTable!F716,\"00\"))","v":""},{"$f":"IF(OrigTable!F716=\"\",\"\",ScriptText!$E$1&CHAR(10)&ScriptText!$C$1)","v":""},{"$f":"IF(OrigTable!G716=\"\",\"\",ScriptText!$B$1&CHAR(10)&ScriptText!$D$1)","v":""},{"$f":"IF(OrigTable!G716=\"\",\"\",TEXT(OrigTable!G716,\"00\"))","v":""},{"$f":"IF(OrigTable!G716=\"\",\"\",ScriptText!$E$1&CHAR(10)&ScriptText!$C$1)","v":""},0]
["\n\n\n",{"$f":"IF(OrigTable!A717=\"\",\"\",ScriptText!$B$1&CHAR(10)&ScriptText!$D$1)","v":""},{"$f":"IF(OrigTable!A717=\"\",\"\",TEXT(OrigTable!A717,\"00\"))","v":""},{"$f":"IF(OrigTable!A717=\"\",\"\",ScriptText!$E$1&CHAR(10)&ScriptText!$C$1)","v":""},{"$f":"IF(OrigTable!B717=\"\",\"\",ScriptText!$B$1&CHAR(10)&ScriptText!$D$1)","v":""},{"$f":"IF(OrigTable!B717=\"\",\"\",TEXT(OrigTable!B717,\"00\"))","v":""},{"$f":"IF(OrigTable!B717=\"\",\"\",ScriptText!$E$1&CHAR(10)&ScriptText!C712)","v":""},{"$f":"IF(OrigTable!C717=\"\",\"\",ScriptText!$B$1&CHAR(10)&ScriptText!$D$1)","v":""},{"$f":"IF(OrigTable!C717=\"\",\"\",IF(LEN(OrigTable!C717)>255,LEFT(OrigTable!C717,250)&\". . .\",OrigTable!C717))","v":""},{"$f":"IF(OrigTable!C717=\"\",\"\",ScriptText!$E$1&CHAR(10)&ScriptText!$C$1)","v":""},{"$f":"IF(OrigTable!D717=\"\",\"\",ScriptText!$B$1&CHAR(10)&ScriptText!$D$1)","v":""},{"$f":"IF(OrigTable!D717=\"\",\"\",TEXT(OrigTable!D717,\"00\"))","v":""},{"$f":"IF(OrigTable!D717=\"\",\"\",ScriptText!$E$1&CHAR(10)&ScriptText!$C$1)","v":""},{"$f":"IF(OrigTable!E717=\"\",\"\",ScriptText!$B$1&CHAR(10)&ScriptText!$D$1)","v":""},{"$f":"IF(OrigTable!E717=\"\",\"\",TEXT(OrigTable!E717,\"00\"))","v":""},{"$f":"IF(OrigTable!E717=\"\",\"\",ScriptText!$E$1&CHAR(10)&ScriptText!$C$1)","v":""},{"$f":"IF(OrigTable!F717=\"\",\"\",ScriptText!$B$1&CHAR(10)&ScriptText!$D$1)","v":""},{"$f":"IF(OrigTable!F717=\"\",\"\",TEXT(OrigTable!F717,\"00\"))","v":""},{"$f":"IF(OrigTable!F717=\"\",\"\",ScriptText!$E$1&CHAR(10)&ScriptText!$C$1)","v":""},{"$f":"IF(OrigTable!G717=\"\",\"\",ScriptText!$B$1&CHAR(10)&ScriptText!$D$1)","v":""},{"$f":"IF(OrigTable!G717=\"\",\"\",TEXT(OrigTable!G717,\"00\"))","v":""},{"$f":"IF(OrigTable!G717=\"\",\"\",ScriptText!$E$1&CHAR(10)&ScriptText!$C$1)","v":""},0]
["\n\n\n",{"$f":"IF(OrigTable!A718=\"\",\"\",ScriptText!$B$1&CHAR(10)&ScriptText!$D$1)","v":""},{"$f":"IF(OrigTable!A718=\"\",\"\",TEXT(OrigTable!A718,\"00\"))","v":""},{"$f":"IF(OrigTable!A718=\"\",\"\",ScriptText!$E$1&CHAR(10)&ScriptText!$C$1)","v":""},{"$f":"IF(OrigTable!B718=\"\",\"\",ScriptText!$B$1&CHAR(10)&ScriptText!$D$1)","v":""},{"$f":"IF(OrigTable!B718=\"\",\"\",TEXT(OrigTable!B718,\"00\"))","v":""},{"$f":"IF(OrigTable!B718=\"\",\"\",ScriptText!$E$1&CHAR(10)&ScriptText!C713)","v":""},{"$f":"IF(OrigTable!C718=\"\",\"\",ScriptText!$B$1&CHAR(10)&ScriptText!$D$1)","v":""},{"$f":"IF(OrigTable!C718=\"\",\"\",IF(LEN(OrigTable!C718)>255,LEFT(OrigTable!C718,250)&\". . .\",OrigTable!C718))","v":""},{"$f":"IF(OrigTable!C718=\"\",\"\",ScriptText!$E$1&CHAR(10)&ScriptText!$C$1)","v":""},{"$f":"IF(OrigTable!D718=\"\",\"\",ScriptText!$B$1&CHAR(10)&ScriptText!$D$1)","v":""},{"$f":"IF(OrigTable!D718=\"\",\"\",TEXT(OrigTable!D718,\"00\"))","v":""},{"$f":"IF(OrigTable!D718=\"\",\"\",ScriptText!$E$1&CHAR(10)&ScriptText!$C$1)","v":""},{"$f":"IF(OrigTable!E718=\"\",\"\",ScriptText!$B$1&CHAR(10)&ScriptText!$D$1)","v":""},{"$f":"IF(OrigTable!E718=\"\",\"\",TEXT(OrigTable!E718,\"00\"))","v":""},{"$f":"IF(OrigTable!E718=\"\",\"\",ScriptText!$E$1&CHAR(10)&ScriptText!$C$1)","v":""},{"$f":"IF(OrigTable!F718=\"\",\"\",ScriptText!$B$1&CHAR(10)&ScriptText!$D$1)","v":""},{"$f":"IF(OrigTable!F718=\"\",\"\",TEXT(OrigTable!F718,\"00\"))","v":""},{"$f":"IF(OrigTable!F718=\"\",\"\",ScriptText!$E$1&CHAR(10)&ScriptText!$C$1)","v":""},{"$f":"IF(OrigTable!G718=\"\",\"\",ScriptText!$B$1&CHAR(10)&ScriptText!$D$1)","v":""},{"$f":"IF(OrigTable!G718=\"\",\"\",TEXT(OrigTable!G718,\"00\"))","v":""},{"$f":"IF(OrigTable!G718=\"\",\"\",ScriptText!$E$1&CHAR(10)&ScriptText!$C$1)","v":""},0]
["\n\n\n",{"$f":"IF(OrigTable!A719=\"\",\"\",ScriptText!$B$1&CHAR(10)&ScriptText!$D$1)","v":""},{"$f":"IF(OrigTable!A719=\"\",\"\",TEXT(OrigTable!A719,\"00\"))","v":""},{"$f":"IF(OrigTable!A719=\"\",\"\",ScriptText!$E$1&CHAR(10)&ScriptText!$C$1)","v":""},{"$f":"IF(OrigTable!B719=\"\",\"\",ScriptText!$B$1&CHAR(10)&ScriptText!$D$1)","v":""},{"$f":"IF(OrigTable!B719=\"\",\"\",TEXT(OrigTable!B719,\"00\"))","v":""},{"$f":"IF(OrigTable!B719=\"\",\"\",ScriptText!$E$1&CHAR(10)&ScriptText!C714)","v":""},{"$f":"IF(OrigTable!C719=\"\",\"\",ScriptText!$B$1&CHAR(10)&ScriptText!$D$1)","v":""},{"$f":"IF(OrigTable!C719=\"\",\"\",IF(LEN(OrigTable!C719)>255,LEFT(OrigTable!C719,250)&\". . .\",OrigTable!C719))","v":""},{"$f":"IF(OrigTable!C719=\"\",\"\",ScriptText!$E$1&CHAR(10)&ScriptText!$C$1)","v":""},{"$f":"IF(OrigTable!D719=\"\",\"\",ScriptText!$B$1&CHAR(10)&ScriptText!$D$1)","v":""},{"$f":"IF(OrigTable!D719=\"\",\"\",TEXT(OrigTable!D719,\"00\"))","v":""},{"$f":"IF(OrigTable!D719=\"\",\"\",ScriptText!$E$1&CHAR(10)&ScriptText!$C$1)","v":""},{"$f":"IF(OrigTable!E719=\"\",\"\",ScriptText!$B$1&CHAR(10)&ScriptText!$D$1)","v":""},{"$f":"IF(OrigTable!E719=\"\",\"\",TEXT(OrigTable!E719,\"00\"))","v":""},{"$f":"IF(OrigTable!E719=\"\",\"\",ScriptText!$E$1&CHAR(10)&ScriptText!$C$1)","v":""},{"$f":"IF(OrigTable!F719=\"\",\"\",ScriptText!$B$1&CHAR(10)&ScriptText!$D$1)","v":""},{"$f":"IF(OrigTable!F719=\"\",\"\",TEXT(OrigTable!F719,\"00\"))","v":""},{"$f":"IF(OrigTable!F719=\"\",\"\",ScriptText!$E$1&CHAR(10)&ScriptText!$C$1)","v":""},{"$f":"IF(OrigTable!G719=\"\",\"\",ScriptText!$B$1&CHAR(10)&ScriptText!$D$1)","v":""},{"$f":"IF(OrigTable!G719=\"\",\"\",TEXT(OrigTable!G719,\"00\"))","v":""},{"$f":"IF(OrigTable!G719=\"\",\"\",ScriptText!$E$1&CHAR(10)&ScriptText!$C$1)","v":""},0]
["\n\n\n",{"$f":"IF(OrigTable!A720=\"\",\"\",ScriptText!$B$1&CHAR(10)&ScriptText!$D$1)","v":""},{"$f":"IF(OrigTable!A720=\"\",\"\",TEXT(OrigTable!A720,\"00\"))","v":""},{"$f":"IF(OrigTable!A720=\"\",\"\",ScriptText!$E$1&CHAR(10)&ScriptText!$C$1)","v":""},{"$f":"IF(OrigTable!B720=\"\",\"\",ScriptText!$B$1&CHAR(10)&ScriptText!$D$1)","v":""},{"$f":"IF(OrigTable!B720=\"\",\"\",TEXT(OrigTable!B720,\"00\"))","v":""},{"$f":"IF(OrigTable!B720=\"\",\"\",ScriptText!$E$1&CHAR(10)&ScriptText!C715)","v":""},{"$f":"IF(OrigTable!C720=\"\",\"\",ScriptText!$B$1&CHAR(10)&ScriptText!$D$1)","v":""},{"$f":"IF(OrigTable!C720=\"\",\"\",IF(LEN(OrigTable!C720)>255,LEFT(OrigTable!C720,250)&\". . .\",OrigTable!C720))","v":""},{"$f":"IF(OrigTable!C720=\"\",\"\",ScriptText!$E$1&CHAR(10)&ScriptText!$C$1)","v":""},{"$f":"IF(OrigTable!D720=\"\",\"\",ScriptText!$B$1&CHAR(10)&ScriptText!$D$1)","v":""},{"$f":"IF(OrigTable!D720=\"\",\"\",TEXT(OrigTable!D720,\"00\"))","v":""},{"$f":"IF(OrigTable!D720=\"\",\"\",ScriptText!$E$1&CHAR(10)&ScriptText!$C$1)","v":""},{"$f":"IF(OrigTable!E720=\"\",\"\",ScriptText!$B$1&CHAR(10)&ScriptText!$D$1)","v":""},{"$f":"IF(OrigTable!E720=\"\",\"\",TEXT(OrigTable!E720,\"00\"))","v":""},{"$f":"IF(OrigTable!E720=\"\",\"\",ScriptText!$E$1&CHAR(10)&ScriptText!$C$1)","v":""},{"$f":"IF(OrigTable!F720=\"\",\"\",ScriptText!$B$1&CHAR(10)&ScriptText!$D$1)","v":""},{"$f":"IF(OrigTable!F720=\"\",\"\",TEXT(OrigTable!F720,\"00\"))","v":""},{"$f":"IF(OrigTable!F720=\"\",\"\",ScriptText!$E$1&CHAR(10)&ScriptText!$C$1)","v":""},{"$f":"IF(OrigTable!G720=\"\",\"\",ScriptText!$B$1&CHAR(10)&ScriptText!$D$1)","v":""},{"$f":"IF(OrigTable!G720=\"\",\"\",TEXT(OrigTable!G720,\"00\"))","v":""},{"$f":"IF(OrigTable!G720=\"\",\"\",ScriptText!$E$1&CHAR(10)&ScriptText!$C$1)","v":""},0]
["\n\n\n",{"$f":"IF(OrigTable!A721=\"\",\"\",ScriptText!$B$1&CHAR(10)&ScriptText!$D$1)","v":""},{"$f":"IF(OrigTable!A721=\"\",\"\",TEXT(OrigTable!A721,\"00\"))","v":""},{"$f":"IF(OrigTable!A721=\"\",\"\",ScriptText!$E$1&CHAR(10)&ScriptText!$C$1)","v":""},{"$f":"IF(OrigTable!B721=\"\",\"\",ScriptText!$B$1&CHAR(10)&ScriptText!$D$1)","v":""},{"$f":"IF(OrigTable!B721=\"\",\"\",TEXT(OrigTable!B721,\"00\"))","v":""},{"$f":"IF(OrigTable!B721=\"\",\"\",ScriptText!$E$1&CHAR(10)&ScriptText!C716)","v":""},{"$f":"IF(OrigTable!C721=\"\",\"\",ScriptText!$B$1&CHAR(10)&ScriptText!$D$1)","v":""},{"$f":"IF(OrigTable!C721=\"\",\"\",IF(LEN(OrigTable!C721)>255,LEFT(OrigTable!C721,250)&\". . .\",OrigTable!C721))","v":""},{"$f":"IF(OrigTable!C721=\"\",\"\",ScriptText!$E$1&CHAR(10)&ScriptText!$C$1)","v":""},{"$f":"IF(OrigTable!D721=\"\",\"\",ScriptText!$B$1&CHAR(10)&ScriptText!$D$1)","v":""},{"$f":"IF(OrigTable!D721=\"\",\"\",TEXT(OrigTable!D721,\"00\"))","v":""},{"$f":"IF(OrigTable!D721=\"\",\"\",ScriptText!$E$1&CHAR(10)&ScriptText!$C$1)","v":""},{"$f":"IF(OrigTable!E721=\"\",\"\",ScriptText!$B$1&CHAR(10)&ScriptText!$D$1)","v":""},{"$f":"IF(OrigTable!E721=\"\",\"\",TEXT(OrigTable!E721,\"00\"))","v":""},{"$f":"IF(OrigTable!E721=\"\",\"\",ScriptText!$E$1&CHAR(10)&ScriptText!$C$1)","v":""},{"$f":"IF(OrigTable!F721=\"\",\"\",ScriptText!$B$1&CHAR(10)&ScriptText!$D$1)","v":""},{"$f":"IF(OrigTable!F721=\"\",\"\",TEXT(OrigTable!F721,\"00\"))","v":""},{"$f":"IF(OrigTable!F721=\"\",\"\",ScriptText!$E$1&CHAR(10)&ScriptText!$C$1)","v":""},{"$f":"IF(OrigTable!G721=\"\",\"\",ScriptText!$B$1&CHAR(10)&ScriptText!$D$1)","v":""},{"$f":"IF(OrigTable!G721=\"\",\"\",TEXT(OrigTable!G721,\"00\"))","v":""},{"$f":"IF(OrigTable!G721=\"\",\"\",ScriptText!$E$1&CHAR(10)&ScriptText!$C$1)","v":""},0]
["\n\n\n",{"$f":"IF(OrigTable!A722=\"\",\"\",ScriptText!$B$1&CHAR(10)&ScriptText!$D$1)","v":""},{"$f":"IF(OrigTable!A722=\"\",\"\",TEXT(OrigTable!A722,\"00\"))","v":""},{"$f":"IF(OrigTable!A722=\"\",\"\",ScriptText!$E$1&CHAR(10)&ScriptText!$C$1)","v":""},{"$f":"IF(OrigTable!B722=\"\",\"\",ScriptText!$B$1&CHAR(10)&ScriptText!$D$1)","v":""},{"$f":"IF(OrigTable!B722=\"\",\"\",TEXT(OrigTable!B722,\"00\"))","v":""},{"$f":"IF(OrigTable!B722=\"\",\"\",ScriptText!$E$1&CHAR(10)&ScriptText!C717)","v":""},{"$f":"IF(OrigTable!C722=\"\",\"\",ScriptText!$B$1&CHAR(10)&ScriptText!$D$1)","v":""},{"$f":"IF(OrigTable!C722=\"\",\"\",IF(LEN(OrigTable!C722)>255,LEFT(OrigTable!C722,250)&\". . .\",OrigTable!C722))","v":""},{"$f":"IF(OrigTable!C722=\"\",\"\",ScriptText!$E$1&CHAR(10)&ScriptText!$C$1)","v":""},{"$f":"IF(OrigTable!D722=\"\",\"\",ScriptText!$B$1&CHAR(10)&ScriptText!$D$1)","v":""},{"$f":"IF(OrigTable!D722=\"\",\"\",TEXT(OrigTable!D722,\"00\"))","v":""},{"$f":"IF(OrigTable!D722=\"\",\"\",ScriptText!$E$1&CHAR(10)&ScriptText!$C$1)","v":""},{"$f":"IF(OrigTable!E722=\"\",\"\",ScriptText!$B$1&CHAR(10)&ScriptText!$D$1)","v":""},{"$f":"IF(OrigTable!E722=\"\",\"\",TEXT(OrigTable!E722,\"00\"))","v":""},{"$f":"IF(OrigTable!E722=\"\",\"\",ScriptText!$E$1&CHAR(10)&ScriptText!$C$1)","v":""},{"$f":"IF(OrigTable!F722=\"\",\"\",ScriptText!$B$1&CHAR(10)&ScriptText!$D$1)","v":""},{"$f":"IF(OrigTable!F722=\"\",\"\",TEXT(OrigTable!F722,\"00\"))","v":""},{"$f":"IF(OrigTable!F722=\"\",\"\",ScriptText!$E$1&CHAR(10)&ScriptText!$C$1)","v":""},{"$f":"IF(OrigTable!G722=\"\",\"\",ScriptText!$B$1&CHAR(10)&ScriptText!$D$1)","v":""},{"$f":"IF(OrigTable!G722=\"\",\"\",TEXT(OrigTable!G722,\"00\"))","v":""},{"$f":"IF(OrigTable!G722=\"\",\"\",ScriptText!$E$1&CHAR(10)&ScriptText!$C$1)","v":""},0]
["\n\n\n",{"$f":"IF(OrigTable!A723=\"\",\"\",ScriptText!$B$1&CHAR(10)&ScriptText!$D$1)","v":""},{"$f":"IF(OrigTable!A723=\"\",\"\",TEXT(OrigTable!A723,\"00\"))","v":""},{"$f":"IF(OrigTable!A723=\"\",\"\",ScriptText!$E$1&CHAR(10)&ScriptText!$C$1)","v":""},{"$f":"IF(OrigTable!B723=\"\",\"\",ScriptText!$B$1&CHAR(10)&ScriptText!$D$1)","v":""},{"$f":"IF(OrigTable!B723=\"\",\"\",TEXT(OrigTable!B723,\"00\"))","v":""},{"$f":"IF(OrigTable!B723=\"\",\"\",ScriptText!$E$1&CHAR(10)&ScriptText!C718)","v":""},{"$f":"IF(OrigTable!C723=\"\",\"\",ScriptText!$B$1&CHAR(10)&ScriptText!$D$1)","v":""},{"$f":"IF(OrigTable!C723=\"\",\"\",IF(LEN(OrigTable!C723)>255,LEFT(OrigTable!C723,250)&\". . .\",OrigTable!C723))","v":""},{"$f":"IF(OrigTable!C723=\"\",\"\",ScriptText!$E$1&CHAR(10)&ScriptText!$C$1)","v":""},{"$f":"IF(OrigTable!D723=\"\",\"\",ScriptText!$B$1&CHAR(10)&ScriptText!$D$1)","v":""},{"$f":"IF(OrigTable!D723=\"\",\"\",TEXT(OrigTable!D723,\"00\"))","v":""},{"$f":"IF(OrigTable!D723=\"\",\"\",ScriptText!$E$1&CHAR(10)&ScriptText!$C$1)","v":""},{"$f":"IF(OrigTable!E723=\"\",\"\",ScriptText!$B$1&CHAR(10)&ScriptText!$D$1)","v":""},{"$f":"IF(OrigTable!E723=\"\",\"\",TEXT(OrigTable!E723,\"00\"))","v":""},{"$f":"IF(OrigTable!E723=\"\",\"\",ScriptText!$E$1&CHAR(10)&ScriptText!$C$1)","v":""},{"$f":"IF(OrigTable!F723=\"\",\"\",ScriptText!$B$1&CHAR(10)&ScriptText!$D$1)","v":""},{"$f":"IF(OrigTable!F723=\"\",\"\",TEXT(OrigTable!F723,\"00\"))","v":""},{"$f":"IF(OrigTable!F723=\"\",\"\",ScriptText!$E$1&CHAR(10)&ScriptText!$C$1)","v":""},{"$f":"IF(OrigTable!G723=\"\",\"\",ScriptText!$B$1&CHAR(10)&ScriptText!$D$1)","v":""},{"$f":"IF(OrigTable!G723=\"\",\"\",TEXT(OrigTable!G723,\"00\"))","v":""},{"$f":"IF(OrigTable!G723=\"\",\"\",ScriptText!$E$1&CHAR(10)&ScriptText!$C$1)","v":""},0]
["\n\n\n",{"$f":"IF(OrigTable!A724=\"\",\"\",ScriptText!$B$1&CHAR(10)&ScriptText!$D$1)","v":""},{"$f":"IF(OrigTable!A724=\"\",\"\",TEXT(OrigTable!A724,\"00\"))","v":""},{"$f":"IF(OrigTable!A724=\"\",\"\",ScriptText!$E$1&CHAR(10)&ScriptText!$C$1)","v":""},{"$f":"IF(OrigTable!B724=\"\",\"\",ScriptText!$B$1&CHAR(10)&ScriptText!$D$1)","v":""},{"$f":"IF(OrigTable!B724=\"\",\"\",TEXT(OrigTable!B724,\"00\"))","v":""},{"$f":"IF(OrigTable!B724=\"\",\"\",ScriptText!$E$1&CHAR(10)&ScriptText!C719)","v":""},{"$f":"IF(OrigTable!C724=\"\",\"\",ScriptText!$B$1&CHAR(10)&ScriptText!$D$1)","v":""},{"$f":"IF(OrigTable!C724=\"\",\"\",IF(LEN(OrigTable!C724)>255,LEFT(OrigTable!C724,250)&\". . .\",OrigTable!C724))","v":""},{"$f":"IF(OrigTable!C724=\"\",\"\",ScriptText!$E$1&CHAR(10)&ScriptText!$C$1)","v":""},{"$f":"IF(OrigTable!D724=\"\",\"\",ScriptText!$B$1&CHAR(10)&ScriptText!$D$1)","v":""},{"$f":"IF(OrigTable!D724=\"\",\"\",TEXT(OrigTable!D724,\"00\"))","v":""},{"$f":"IF(OrigTable!D724=\"\",\"\",ScriptText!$E$1&CHAR(10)&ScriptText!$C$1)","v":""},{"$f":"IF(OrigTable!E724=\"\",\"\",ScriptText!$B$1&CHAR(10)&ScriptText!$D$1)","v":""},{"$f":"IF(OrigTable!E724=\"\",\"\",TEXT(OrigTable!E724,\"00\"))","v":""},{"$f":"IF(OrigTable!E724=\"\",\"\",ScriptText!$E$1&CHAR(10)&ScriptText!$C$1)","v":""},{"$f":"IF(OrigTable!F724=\"\",\"\",ScriptText!$B$1&CHAR(10)&ScriptText!$D$1)","v":""},{"$f":"IF(OrigTable!F724=\"\",\"\",TEXT(OrigTable!F724,\"00\"))","v":""},{"$f":"IF(OrigTable!F724=\"\",\"\",ScriptText!$E$1&CHAR(10)&ScriptText!$C$1)","v":""},{"$f":"IF(OrigTable!G724=\"\",\"\",ScriptText!$B$1&CHAR(10)&ScriptText!$D$1)","v":""},{"$f":"IF(OrigTable!G724=\"\",\"\",TEXT(OrigTable!G724,\"00\"))","v":""},{"$f":"IF(OrigTable!G724=\"\",\"\",ScriptText!$E$1&CHAR(10)&ScriptText!$C$1)","v":""},0]
["\n\n\n",{"$f":"IF(OrigTable!A725=\"\",\"\",ScriptText!$B$1&CHAR(10)&ScriptText!$D$1)","v":""},{"$f":"IF(OrigTable!A725=\"\",\"\",TEXT(OrigTable!A725,\"00\"))","v":""},{"$f":"IF(OrigTable!A725=\"\",\"\",ScriptText!$E$1&CHAR(10)&ScriptText!$C$1)","v":""},{"$f":"IF(OrigTable!B725=\"\",\"\",ScriptText!$B$1&CHAR(10)&ScriptText!$D$1)","v":""},{"$f":"IF(OrigTable!B725=\"\",\"\",TEXT(OrigTable!B725,\"00\"))","v":""},{"$f":"IF(OrigTable!B725=\"\",\"\",ScriptText!$E$1&CHAR(10)&ScriptText!C720)","v":""},{"$f":"IF(OrigTable!C725=\"\",\"\",ScriptText!$B$1&CHAR(10)&ScriptText!$D$1)","v":""},{"$f":"IF(OrigTable!C725=\"\",\"\",IF(LEN(OrigTable!C725)>255,LEFT(OrigTable!C725,250)&\". . .\",OrigTable!C725))","v":""},{"$f":"IF(OrigTable!C725=\"\",\"\",ScriptText!$E$1&CHAR(10)&ScriptText!$C$1)","v":""},{"$f":"IF(OrigTable!D725=\"\",\"\",ScriptText!$B$1&CHAR(10)&ScriptText!$D$1)","v":""},{"$f":"IF(OrigTable!D725=\"\",\"\",TEXT(OrigTable!D725,\"00\"))","v":""},{"$f":"IF(OrigTable!D725=\"\",\"\",ScriptText!$E$1&CHAR(10)&ScriptText!$C$1)","v":""},{"$f":"IF(OrigTable!E725=\"\",\"\",ScriptText!$B$1&CHAR(10)&ScriptText!$D$1)","v":""},{"$f":"IF(OrigTable!E725=\"\",\"\",TEXT(OrigTable!E725,\"00\"))","v":""},{"$f":"IF(OrigTable!E725=\"\",\"\",ScriptText!$E$1&CHAR(10)&ScriptText!$C$1)","v":""},{"$f":"IF(OrigTable!F725=\"\",\"\",ScriptText!$B$1&CHAR(10)&ScriptText!$D$1)","v":""},{"$f":"IF(OrigTable!F725=\"\",\"\",TEXT(OrigTable!F725,\"00\"))","v":""},{"$f":"IF(OrigTable!F725=\"\",\"\",ScriptText!$E$1&CHAR(10)&ScriptText!$C$1)","v":""},{"$f":"IF(OrigTable!G725=\"\",\"\",ScriptText!$B$1&CHAR(10)&ScriptText!$D$1)","v":""},{"$f":"IF(OrigTable!G725=\"\",\"\",TEXT(OrigTable!G725,\"00\"))","v":""},{"$f":"IF(OrigTable!G725=\"\",\"\",ScriptText!$E$1&CHAR(10)&ScriptText!$C$1)","v":""},0]
["\n\n\n",{"$f":"IF(OrigTable!A726=\"\",\"\",ScriptText!$B$1&CHAR(10)&ScriptText!$D$1)","v":""},{"$f":"IF(OrigTable!A726=\"\",\"\",TEXT(OrigTable!A726,\"00\"))","v":""},{"$f":"IF(OrigTable!A726=\"\",\"\",ScriptText!$E$1&CHAR(10)&ScriptText!$C$1)","v":""},{"$f":"IF(OrigTable!B726=\"\",\"\",ScriptText!$B$1&CHAR(10)&ScriptText!$D$1)","v":""},{"$f":"IF(OrigTable!B726=\"\",\"\",TEXT(OrigTable!B726,\"00\"))","v":""},{"$f":"IF(OrigTable!B726=\"\",\"\",ScriptText!$E$1&CHAR(10)&ScriptText!C721)","v":""},{"$f":"IF(OrigTable!C726=\"\",\"\",ScriptText!$B$1&CHAR(10)&ScriptText!$D$1)","v":""},{"$f":"IF(OrigTable!C726=\"\",\"\",IF(LEN(OrigTable!C726)>255,LEFT(OrigTable!C726,250)&\". . .\",OrigTable!C726))","v":""},{"$f":"IF(OrigTable!C726=\"\",\"\",ScriptText!$E$1&CHAR(10)&ScriptText!$C$1)","v":""},{"$f":"IF(OrigTable!D726=\"\",\"\",ScriptText!$B$1&CHAR(10)&ScriptText!$D$1)","v":""},{"$f":"IF(OrigTable!D726=\"\",\"\",TEXT(OrigTable!D726,\"00\"))","v":""},{"$f":"IF(OrigTable!D726=\"\",\"\",ScriptText!$E$1&CHAR(10)&ScriptText!$C$1)","v":""},{"$f":"IF(OrigTable!E726=\"\",\"\",ScriptText!$B$1&CHAR(10)&ScriptText!$D$1)","v":""},{"$f":"IF(OrigTable!E726=\"\",\"\",TEXT(OrigTable!E726,\"00\"))","v":""},{"$f":"IF(OrigTable!E726=\"\",\"\",ScriptText!$E$1&CHAR(10)&ScriptText!$C$1)","v":""},{"$f":"IF(OrigTable!F726=\"\",\"\",ScriptText!$B$1&CHAR(10)&ScriptText!$D$1)","v":""},{"$f":"IF(OrigTable!F726=\"\",\"\",TEXT(OrigTable!F726,\"00\"))","v":""},{"$f":"IF(OrigTable!F726=\"\",\"\",ScriptText!$E$1&CHAR(10)&ScriptText!$C$1)","v":""},{"$f":"IF(OrigTable!G726=\"\",\"\",ScriptText!$B$1&CHAR(10)&ScriptText!$D$1)","v":""},{"$f":"IF(OrigTable!G726=\"\",\"\",TEXT(OrigTable!G726,\"00\"))","v":""},{"$f":"IF(OrigTable!G726=\"\",\"\",ScriptText!$E$1&CHAR(10)&ScriptText!$C$1)","v":""},0]
["\n\n\n",{"$f":"IF(OrigTable!A727=\"\",\"\",ScriptText!$B$1&CHAR(10)&ScriptText!$D$1)","v":""},{"$f":"IF(OrigTable!A727=\"\",\"\",TEXT(OrigTable!A727,\"00\"))","v":""},{"$f":"IF(OrigTable!A727=\"\",\"\",ScriptText!$E$1&CHAR(10)&ScriptText!$C$1)","v":""},{"$f":"IF(OrigTable!B727=\"\",\"\",ScriptText!$B$1&CHAR(10)&ScriptText!$D$1)","v":""},{"$f":"IF(OrigTable!B727=\"\",\"\",TEXT(OrigTable!B727,\"00\"))","v":""},{"$f":"IF(OrigTable!B727=\"\",\"\",ScriptText!$E$1&CHAR(10)&ScriptText!C722)","v":""},{"$f":"IF(OrigTable!C727=\"\",\"\",ScriptText!$B$1&CHAR(10)&ScriptText!$D$1)","v":""},{"$f":"IF(OrigTable!C727=\"\",\"\",IF(LEN(OrigTable!C727)>255,LEFT(OrigTable!C727,250)&\". . .\",OrigTable!C727))","v":""},{"$f":"IF(OrigTable!C727=\"\",\"\",ScriptText!$E$1&CHAR(10)&ScriptText!$C$1)","v":""},{"$f":"IF(OrigTable!D727=\"\",\"\",ScriptText!$B$1&CHAR(10)&ScriptText!$D$1)","v":""},{"$f":"IF(OrigTable!D727=\"\",\"\",TEXT(OrigTable!D727,\"00\"))","v":""},{"$f":"IF(OrigTable!D727=\"\",\"\",ScriptText!$E$1&CHAR(10)&ScriptText!$C$1)","v":""},{"$f":"IF(OrigTable!E727=\"\",\"\",ScriptText!$B$1&CHAR(10)&ScriptText!$D$1)","v":""},{"$f":"IF(OrigTable!E727=\"\",\"\",TEXT(OrigTable!E727,\"00\"))","v":""},{"$f":"IF(OrigTable!E727=\"\",\"\",ScriptText!$E$1&CHAR(10)&ScriptText!$C$1)","v":""},{"$f":"IF(OrigTable!F727=\"\",\"\",ScriptText!$B$1&CHAR(10)&ScriptText!$D$1)","v":""},{"$f":"IF(OrigTable!F727=\"\",\"\",TEXT(OrigTable!F727,\"00\"))","v":""},{"$f":"IF(OrigTable!F727=\"\",\"\",ScriptText!$E$1&CHAR(10)&ScriptText!$C$1)","v":""},{"$f":"IF(OrigTable!G727=\"\",\"\",ScriptText!$B$1&CHAR(10)&ScriptText!$D$1)","v":""},{"$f":"IF(OrigTable!G727=\"\",\"\",TEXT(OrigTable!G727,\"00\"))","v":""},{"$f":"IF(OrigTable!G727=\"\",\"\",ScriptText!$E$1&CHAR(10)&ScriptText!$C$1)","v":""},0]
["\n\n\n",{"$f":"IF(OrigTable!A728=\"\",\"\",ScriptText!$B$1&CHAR(10)&ScriptText!$D$1)","v":""},{"$f":"IF(OrigTable!A728=\"\",\"\",TEXT(OrigTable!A728,\"00\"))","v":""},{"$f":"IF(OrigTable!A728=\"\",\"\",ScriptText!$E$1&CHAR(10)&ScriptText!$C$1)","v":""},{"$f":"IF(OrigTable!B728=\"\",\"\",ScriptText!$B$1&CHAR(10)&ScriptText!$D$1)","v":""},{"$f":"IF(OrigTable!B728=\"\",\"\",TEXT(OrigTable!B728,\"00\"))","v":""},{"$f":"IF(OrigTable!B728=\"\",\"\",ScriptText!$E$1&CHAR(10)&ScriptText!C723)","v":""},{"$f":"IF(OrigTable!C728=\"\",\"\",ScriptText!$B$1&CHAR(10)&ScriptText!$D$1)","v":""},{"$f":"IF(OrigTable!C728=\"\",\"\",IF(LEN(OrigTable!C728)>255,LEFT(OrigTable!C728,250)&\". . .\",OrigTable!C728))","v":""},{"$f":"IF(OrigTable!C728=\"\",\"\",ScriptText!$E$1&CHAR(10)&ScriptText!$C$1)","v":""},{"$f":"IF(OrigTable!D728=\"\",\"\",ScriptText!$B$1&CHAR(10)&ScriptText!$D$1)","v":""},{"$f":"IF(OrigTable!D728=\"\",\"\",TEXT(OrigTable!D728,\"00\"))","v":""},{"$f":"IF(OrigTable!D728=\"\",\"\",ScriptText!$E$1&CHAR(10)&ScriptText!$C$1)","v":""},{"$f":"IF(OrigTable!E728=\"\",\"\",ScriptText!$B$1&CHAR(10)&ScriptText!$D$1)","v":""},{"$f":"IF(OrigTable!E728=\"\",\"\",TEXT(OrigTable!E728,\"00\"))","v":""},{"$f":"IF(OrigTable!E728=\"\",\"\",ScriptText!$E$1&CHAR(10)&ScriptText!$C$1)","v":""},{"$f":"IF(OrigTable!F728=\"\",\"\",ScriptText!$B$1&CHAR(10)&ScriptText!$D$1)","v":""},{"$f":"IF(OrigTable!F728=\"\",\"\",TEXT(OrigTable!F728,\"00\"))","v":""},{"$f":"IF(OrigTable!F728=\"\",\"\",ScriptText!$E$1&CHAR(10)&ScriptText!$C$1)","v":""},{"$f":"IF(OrigTable!G728=\"\",\"\",ScriptText!$B$1&CHAR(10)&ScriptText!$D$1)","v":""},{"$f":"IF(OrigTable!G728=\"\",\"\",TEXT(OrigTable!G728,\"00\"))","v":""},{"$f":"IF(OrigTable!G728=\"\",\"\",ScriptText!$E$1&CHAR(10)&ScriptText!$C$1)","v":""},0]
["\n\n\n",{"$f":"IF(OrigTable!A729=\"\",\"\",ScriptText!$B$1&CHAR(10)&ScriptText!$D$1)","v":""},{"$f":"IF(OrigTable!A729=\"\",\"\",TEXT(OrigTable!A729,\"00\"))","v":""},{"$f":"IF(OrigTable!A729=\"\",\"\",ScriptText!$E$1&CHAR(10)&ScriptText!$C$1)","v":""},{"$f":"IF(OrigTable!B729=\"\",\"\",ScriptText!$B$1&CHAR(10)&ScriptText!$D$1)","v":""},{"$f":"IF(OrigTable!B729=\"\",\"\",TEXT(OrigTable!B729,\"00\"))","v":""},{"$f":"IF(OrigTable!B729=\"\",\"\",ScriptText!$E$1&CHAR(10)&ScriptText!C724)","v":""},{"$f":"IF(OrigTable!C729=\"\",\"\",ScriptText!$B$1&CHAR(10)&ScriptText!$D$1)","v":""},{"$f":"IF(OrigTable!C729=\"\",\"\",IF(LEN(OrigTable!C729)>255,LEFT(OrigTable!C729,250)&\". . .\",OrigTable!C729))","v":""},{"$f":"IF(OrigTable!C729=\"\",\"\",ScriptText!$E$1&CHAR(10)&ScriptText!$C$1)","v":""},{"$f":"IF(OrigTable!D729=\"\",\"\",ScriptText!$B$1&CHAR(10)&ScriptText!$D$1)","v":""},{"$f":"IF(OrigTable!D729=\"\",\"\",TEXT(OrigTable!D729,\"00\"))","v":""},{"$f":"IF(OrigTable!D729=\"\",\"\",ScriptText!$E$1&CHAR(10)&ScriptText!$C$1)","v":""},{"$f":"IF(OrigTable!E729=\"\",\"\",ScriptText!$B$1&CHAR(10)&ScriptText!$D$1)","v":""},{"$f":"IF(OrigTable!E729=\"\",\"\",TEXT(OrigTable!E729,\"00\"))","v":""},{"$f":"IF(OrigTable!E729=\"\",\"\",ScriptText!$E$1&CHAR(10)&ScriptText!$C$1)","v":""},{"$f":"IF(OrigTable!F729=\"\",\"\",ScriptText!$B$1&CHAR(10)&ScriptText!$D$1)","v":""},{"$f":"IF(OrigTable!F729=\"\",\"\",TEXT(OrigTable!F729,\"00\"))","v":""},{"$f":"IF(OrigTable!F729=\"\",\"\",ScriptText!$E$1&CHAR(10)&ScriptText!$C$1)","v":""},{"$f":"IF(OrigTable!G729=\"\",\"\",ScriptText!$B$1&CHAR(10)&ScriptText!$D$1)","v":""},{"$f":"IF(OrigTable!G729=\"\",\"\",TEXT(OrigTable!G729,\"00\"))","v":""},{"$f":"IF(OrigTable!G729=\"\",\"\",ScriptText!$E$1&CHAR(10)&ScriptText!$C$1)","v":""},0]
["\n\n\n",{"$f":"IF(OrigTable!A730=\"\",\"\",ScriptText!$B$1&CHAR(10)&ScriptText!$D$1)","v":""},{"$f":"IF(OrigTable!A730=\"\",\"\",TEXT(OrigTable!A730,\"00\"))","v":""},{"$f":"IF(OrigTable!A730=\"\",\"\",ScriptText!$E$1&CHAR(10)&ScriptText!$C$1)","v":""},{"$f":"IF(OrigTable!B730=\"\",\"\",ScriptText!$B$1&CHAR(10)&ScriptText!$D$1)","v":""},{"$f":"IF(OrigTable!B730=\"\",\"\",TEXT(OrigTable!B730,\"00\"))","v":""},{"$f":"IF(OrigTable!B730=\"\",\"\",ScriptText!$E$1&CHAR(10)&ScriptText!C725)","v":""},{"$f":"IF(OrigTable!C730=\"\",\"\",ScriptText!$B$1&CHAR(10)&ScriptText!$D$1)","v":""},{"$f":"IF(OrigTable!C730=\"\",\"\",IF(LEN(OrigTable!C730)>255,LEFT(OrigTable!C730,250)&\". . .\",OrigTable!C730))","v":""},{"$f":"IF(OrigTable!C730=\"\",\"\",ScriptText!$E$1&CHAR(10)&ScriptText!$C$1)","v":""},{"$f":"IF(OrigTable!D730=\"\",\"\",ScriptText!$B$1&CHAR(10)&ScriptText!$D$1)","v":""},{"$f":"IF(OrigTable!D730=\"\",\"\",TEXT(OrigTable!D730,\"00\"))","v":""},{"$f":"IF(OrigTable!D730=\"\",\"\",ScriptText!$E$1&CHAR(10)&ScriptText!$C$1)","v":""},{"$f":"IF(OrigTable!E730=\"\",\"\",ScriptText!$B$1&CHAR(10)&ScriptText!$D$1)","v":""},{"$f":"IF(OrigTable!E730=\"\",\"\",TEXT(OrigTable!E730,\"00\"))","v":""},{"$f":"IF(OrigTable!E730=\"\",\"\",ScriptText!$E$1&CHAR(10)&ScriptText!$C$1)","v":""},{"$f":"IF(OrigTable!F730=\"\",\"\",ScriptText!$B$1&CHAR(10)&ScriptText!$D$1)","v":""},{"$f":"IF(OrigTable!F730=\"\",\"\",TEXT(OrigTable!F730,\"00\"))","v":""},{"$f":"IF(OrigTable!F730=\"\",\"\",ScriptText!$E$1&CHAR(10)&ScriptText!$C$1)","v":""},{"$f":"IF(OrigTable!G730=\"\",\"\",ScriptText!$B$1&CHAR(10)&ScriptText!$D$1)","v":""},{"$f":"IF(OrigTable!G730=\"\",\"\",TEXT(OrigTable!G730,\"00\"))","v":""},{"$f":"IF(OrigTable!G730=\"\",\"\",ScriptText!$E$1&CHAR(10)&ScriptText!$C$1)","v":""},0]
["\n\n\n",{"$f":"IF(OrigTable!A731=\"\",\"\",ScriptText!$B$1&CHAR(10)&ScriptText!$D$1)","v":""},{"$f":"IF(OrigTable!A731=\"\",\"\",TEXT(OrigTable!A731,\"00\"))","v":""},{"$f":"IF(OrigTable!A731=\"\",\"\",ScriptText!$E$1&CHAR(10)&ScriptText!$C$1)","v":""},{"$f":"IF(OrigTable!B731=\"\",\"\",ScriptText!$B$1&CHAR(10)&ScriptText!$D$1)","v":""},{"$f":"IF(OrigTable!B731=\"\",\"\",TEXT(OrigTable!B731,\"00\"))","v":""},{"$f":"IF(OrigTable!B731=\"\",\"\",ScriptText!$E$1&CHAR(10)&ScriptText!C726)","v":""},{"$f":"IF(OrigTable!C731=\"\",\"\",ScriptText!$B$1&CHAR(10)&ScriptText!$D$1)","v":""},{"$f":"IF(OrigTable!C731=\"\",\"\",IF(LEN(OrigTable!C731)>255,LEFT(OrigTable!C731,250)&\". . .\",OrigTable!C731))","v":""},{"$f":"IF(OrigTable!C731=\"\",\"\",ScriptText!$E$1&CHAR(10)&ScriptText!$C$1)","v":""},{"$f":"IF(OrigTable!D731=\"\",\"\",ScriptText!$B$1&CHAR(10)&ScriptText!$D$1)","v":""},{"$f":"IF(OrigTable!D731=\"\",\"\",TEXT(OrigTable!D731,\"00\"))","v":""},{"$f":"IF(OrigTable!D731=\"\",\"\",ScriptText!$E$1&CHAR(10)&ScriptText!$C$1)","v":""},{"$f":"IF(OrigTable!E731=\"\",\"\",ScriptText!$B$1&CHAR(10)&ScriptText!$D$1)","v":""},{"$f":"IF(OrigTable!E731=\"\",\"\",TEXT(OrigTable!E731,\"00\"))","v":""},{"$f":"IF(OrigTable!E731=\"\",\"\",ScriptText!$E$1&CHAR(10)&ScriptText!$C$1)","v":""},{"$f":"IF(OrigTable!F731=\"\",\"\",ScriptText!$B$1&CHAR(10)&ScriptText!$D$1)","v":""},{"$f":"IF(OrigTable!F731=\"\",\"\",TEXT(OrigTable!F731,\"00\"))","v":""},{"$f":"IF(OrigTable!F731=\"\",\"\",ScriptText!$E$1&CHAR(10)&ScriptText!$C$1)","v":""},{"$f":"IF(OrigTable!G731=\"\",\"\",ScriptText!$B$1&CHAR(10)&ScriptText!$D$1)","v":""},{"$f":"IF(OrigTable!G731=\"\",\"\",TEXT(OrigTable!G731,\"00\"))","v":""},{"$f":"IF(OrigTable!G731=\"\",\"\",ScriptText!$E$1&CHAR(10)&ScriptText!$C$1)","v":""},0]
["\n\n\n",{"$f":"IF(OrigTable!A732=\"\",\"\",ScriptText!$B$1&CHAR(10)&ScriptText!$D$1)","v":""},{"$f":"IF(OrigTable!A732=\"\",\"\",TEXT(OrigTable!A732,\"00\"))","v":""},{"$f":"IF(OrigTable!A732=\"\",\"\",ScriptText!$E$1&CHAR(10)&ScriptText!$C$1)","v":""},{"$f":"IF(OrigTable!B732=\"\",\"\",ScriptText!$B$1&CHAR(10)&ScriptText!$D$1)","v":""},{"$f":"IF(OrigTable!B732=\"\",\"\",TEXT(OrigTable!B732,\"00\"))","v":""},{"$f":"IF(OrigTable!B732=\"\",\"\",ScriptText!$E$1&CHAR(10)&ScriptText!C727)","v":""},{"$f":"IF(OrigTable!C732=\"\",\"\",ScriptText!$B$1&CHAR(10)&ScriptText!$D$1)","v":""},{"$f":"IF(OrigTable!C732=\"\",\"\",IF(LEN(OrigTable!C732)>255,LEFT(OrigTable!C732,250)&\". . .\",OrigTable!C732))","v":""},{"$f":"IF(OrigTable!C732=\"\",\"\",ScriptText!$E$1&CHAR(10)&ScriptText!$C$1)","v":""},{"$f":"IF(OrigTable!D732=\"\",\"\",ScriptText!$B$1&CHAR(10)&ScriptText!$D$1)","v":""},{"$f":"IF(OrigTable!D732=\"\",\"\",TEXT(OrigTable!D732,\"00\"))","v":""},{"$f":"IF(OrigTable!D732=\"\",\"\",ScriptText!$E$1&CHAR(10)&ScriptText!$C$1)","v":""},{"$f":"IF(OrigTable!E732=\"\",\"\",ScriptText!$B$1&CHAR(10)&ScriptText!$D$1)","v":""},{"$f":"IF(OrigTable!E732=\"\",\"\",TEXT(OrigTable!E732,\"00\"))","v":""},{"$f":"IF(OrigTable!E732=\"\",\"\",ScriptText!$E$1&CHAR(10)&ScriptText!$C$1)","v":""},{"$f":"IF(OrigTable!F732=\"\",\"\",ScriptText!$B$1&CHAR(10)&ScriptText!$D$1)","v":""},{"$f":"IF(OrigTable!F732=\"\",\"\",TEXT(OrigTable!F732,\"00\"))","v":""},{"$f":"IF(OrigTable!F732=\"\",\"\",ScriptText!$E$1&CHAR(10)&ScriptText!$C$1)","v":""},{"$f":"IF(OrigTable!G732=\"\",\"\",ScriptText!$B$1&CHAR(10)&ScriptText!$D$1)","v":""},{"$f":"IF(OrigTable!G732=\"\",\"\",TEXT(OrigTable!G732,\"00\"))","v":""},{"$f":"IF(OrigTable!G732=\"\",\"\",ScriptText!$E$1&CHAR(10)&ScriptText!$C$1)","v":""},0]
["\n\n\n",{"$f":"IF(OrigTable!A733=\"\",\"\",ScriptText!$B$1&CHAR(10)&ScriptText!$D$1)","v":""},{"$f":"IF(OrigTable!A733=\"\",\"\",TEXT(OrigTable!A733,\"00\"))","v":""},{"$f":"IF(OrigTable!A733=\"\",\"\",ScriptText!$E$1&CHAR(10)&ScriptText!$C$1)","v":""},{"$f":"IF(OrigTable!B733=\"\",\"\",ScriptText!$B$1&CHAR(10)&ScriptText!$D$1)","v":""},{"$f":"IF(OrigTable!B733=\"\",\"\",TEXT(OrigTable!B733,\"00\"))","v":""},{"$f":"IF(OrigTable!B733=\"\",\"\",ScriptText!$E$1&CHAR(10)&ScriptText!C728)","v":""},{"$f":"IF(OrigTable!C733=\"\",\"\",ScriptText!$B$1&CHAR(10)&ScriptText!$D$1)","v":""},{"$f":"IF(OrigTable!C733=\"\",\"\",IF(LEN(OrigTable!C733)>255,LEFT(OrigTable!C733,250)&\". . .\",OrigTable!C733))","v":""},{"$f":"IF(OrigTable!C733=\"\",\"\",ScriptText!$E$1&CHAR(10)&ScriptText!$C$1)","v":""},{"$f":"IF(OrigTable!D733=\"\",\"\",ScriptText!$B$1&CHAR(10)&ScriptText!$D$1)","v":""},{"$f":"IF(OrigTable!D733=\"\",\"\",TEXT(OrigTable!D733,\"00\"))","v":""},{"$f":"IF(OrigTable!D733=\"\",\"\",ScriptText!$E$1&CHAR(10)&ScriptText!$C$1)","v":""},{"$f":"IF(OrigTable!E733=\"\",\"\",ScriptText!$B$1&CHAR(10)&ScriptText!$D$1)","v":""},{"$f":"IF(OrigTable!E733=\"\",\"\",TEXT(OrigTable!E733,\"00\"))","v":""},{"$f":"IF(OrigTable!E733=\"\",\"\",ScriptText!$E$1&CHAR(10)&ScriptText!$C$1)","v":""},{"$f":"IF(OrigTable!F733=\"\",\"\",ScriptText!$B$1&CHAR(10)&ScriptText!$D$1)","v":""},{"$f":"IF(OrigTable!F733=\"\",\"\",TEXT(OrigTable!F733,\"00\"))","v":""},{"$f":"IF(OrigTable!F733=\"\",\"\",ScriptText!$E$1&CHAR(10)&ScriptText!$C$1)","v":""},{"$f":"IF(OrigTable!G733=\"\",\"\",ScriptText!$B$1&CHAR(10)&ScriptText!$D$1)","v":""},{"$f":"IF(OrigTable!G733=\"\",\"\",TEXT(OrigTable!G733,\"00\"))","v":""},{"$f":"IF(OrigTable!G733=\"\",\"\",ScriptText!$E$1&CHAR(10)&ScriptText!$C$1)","v":""},0]
["\n\n\n",{"$f":"IF(OrigTable!A734=\"\",\"\",ScriptText!$B$1&CHAR(10)&ScriptText!$D$1)","v":""},{"$f":"IF(OrigTable!A734=\"\",\"\",TEXT(OrigTable!A734,\"00\"))","v":""},{"$f":"IF(OrigTable!A734=\"\",\"\",ScriptText!$E$1&CHAR(10)&ScriptText!$C$1)","v":""},{"$f":"IF(OrigTable!B734=\"\",\"\",ScriptText!$B$1&CHAR(10)&ScriptText!$D$1)","v":""},{"$f":"IF(OrigTable!B734=\"\",\"\",TEXT(OrigTable!B734,\"00\"))","v":""},{"$f":"IF(OrigTable!B734=\"\",\"\",ScriptText!$E$1&CHAR(10)&ScriptText!C729)","v":""},{"$f":"IF(OrigTable!C734=\"\",\"\",ScriptText!$B$1&CHAR(10)&ScriptText!$D$1)","v":""},{"$f":"IF(OrigTable!C734=\"\",\"\",IF(LEN(OrigTable!C734)>255,LEFT(OrigTable!C734,250)&\". . .\",OrigTable!C734))","v":""},{"$f":"IF(OrigTable!C734=\"\",\"\",ScriptText!$E$1&CHAR(10)&ScriptText!$C$1)","v":""},{"$f":"IF(OrigTable!D734=\"\",\"\",ScriptText!$B$1&CHAR(10)&ScriptText!$D$1)","v":""},{"$f":"IF(OrigTable!D734=\"\",\"\",TEXT(OrigTable!D734,\"00\"))","v":""},{"$f":"IF(OrigTable!D734=\"\",\"\",ScriptText!$E$1&CHAR(10)&ScriptText!$C$1)","v":""},{"$f":"IF(OrigTable!E734=\"\",\"\",ScriptText!$B$1&CHAR(10)&ScriptText!$D$1)","v":""},{"$f":"IF(OrigTable!E734=\"\",\"\",TEXT(OrigTable!E734,\"00\"))","v":""},{"$f":"IF(OrigTable!E734=\"\",\"\",ScriptText!$E$1&CHAR(10)&ScriptText!$C$1)","v":""},{"$f":"IF(OrigTable!F734=\"\",\"\",ScriptText!$B$1&CHAR(10)&ScriptText!$D$1)","v":""},{"$f":"IF(OrigTable!F734=\"\",\"\",TEXT(OrigTable!F734,\"00\"))","v":""},{"$f":"IF(OrigTable!F734=\"\",\"\",ScriptText!$E$1&CHAR(10)&ScriptText!$C$1)","v":""},{"$f":"IF(OrigTable!G734=\"\",\"\",ScriptText!$B$1&CHAR(10)&ScriptText!$D$1)","v":""},{"$f":"IF(OrigTable!G734=\"\",\"\",TEXT(OrigTable!G734,\"00\"))","v":""},{"$f":"IF(OrigTable!G734=\"\",\"\",ScriptText!$E$1&CHAR(10)&ScriptText!$C$1)","v":""},0]
["\n\n\n",{"$f":"IF(OrigTable!A735=\"\",\"\",ScriptText!$B$1&CHAR(10)&ScriptText!$D$1)","v":""},{"$f":"IF(OrigTable!A735=\"\",\"\",TEXT(OrigTable!A735,\"00\"))","v":""},{"$f":"IF(OrigTable!A735=\"\",\"\",ScriptText!$E$1&CHAR(10)&ScriptText!$C$1)","v":""},{"$f":"IF(OrigTable!B735=\"\",\"\",ScriptText!$B$1&CHAR(10)&ScriptText!$D$1)","v":""},{"$f":"IF(OrigTable!B735=\"\",\"\",TEXT(OrigTable!B735,\"00\"))","v":""},{"$f":"IF(OrigTable!B735=\"\",\"\",ScriptText!$E$1&CHAR(10)&ScriptText!C730)","v":""},{"$f":"IF(OrigTable!C735=\"\",\"\",ScriptText!$B$1&CHAR(10)&ScriptText!$D$1)","v":""},{"$f":"IF(OrigTable!C735=\"\",\"\",IF(LEN(OrigTable!C735)>255,LEFT(OrigTable!C735,250)&\". . .\",OrigTable!C735))","v":""},{"$f":"IF(OrigTable!C735=\"\",\"\",ScriptText!$E$1&CHAR(10)&ScriptText!$C$1)","v":""},{"$f":"IF(OrigTable!D735=\"\",\"\",ScriptText!$B$1&CHAR(10)&ScriptText!$D$1)","v":""},{"$f":"IF(OrigTable!D735=\"\",\"\",TEXT(OrigTable!D735,\"00\"))","v":""},{"$f":"IF(OrigTable!D735=\"\",\"\",ScriptText!$E$1&CHAR(10)&ScriptText!$C$1)","v":""},{"$f":"IF(OrigTable!E735=\"\",\"\",ScriptText!$B$1&CHAR(10)&ScriptText!$D$1)","v":""},{"$f":"IF(OrigTable!E735=\"\",\"\",TEXT(OrigTable!E735,\"00\"))","v":""},{"$f":"IF(OrigTable!E735=\"\",\"\",ScriptText!$E$1&CHAR(10)&ScriptText!$C$1)","v":""},{"$f":"IF(OrigTable!F735=\"\",\"\",ScriptText!$B$1&CHAR(10)&ScriptText!$D$1)","v":""},{"$f":"IF(OrigTable!F735=\"\",\"\",TEXT(OrigTable!F735,\"00\"))","v":""},{"$f":"IF(OrigTable!F735=\"\",\"\",ScriptText!$E$1&CHAR(10)&ScriptText!$C$1)","v":""},{"$f":"IF(OrigTable!G735=\"\",\"\",ScriptText!$B$1&CHAR(10)&ScriptText!$D$1)","v":""},{"$f":"IF(OrigTable!G735=\"\",\"\",TEXT(OrigTable!G735,\"00\"))","v":""},{"$f":"IF(OrigTable!G735=\"\",\"\",ScriptText!$E$1&CHAR(10)&ScriptText!$C$1)","v":""},0]
["\n\n\n",{"$f":"IF(OrigTable!A736=\"\",\"\",ScriptText!$B$1&CHAR(10)&ScriptText!$D$1)","v":""},{"$f":"IF(OrigTable!A736=\"\",\"\",TEXT(OrigTable!A736,\"00\"))","v":""},{"$f":"IF(OrigTable!A736=\"\",\"\",ScriptText!$E$1&CHAR(10)&ScriptText!$C$1)","v":""},{"$f":"IF(OrigTable!B736=\"\",\"\",ScriptText!$B$1&CHAR(10)&ScriptText!$D$1)","v":""},{"$f":"IF(OrigTable!B736=\"\",\"\",TEXT(OrigTable!B736,\"00\"))","v":""},{"$f":"IF(OrigTable!B736=\"\",\"\",ScriptText!$E$1&CHAR(10)&ScriptText!C731)","v":""},{"$f":"IF(OrigTable!C736=\"\",\"\",ScriptText!$B$1&CHAR(10)&ScriptText!$D$1)","v":""},{"$f":"IF(OrigTable!C736=\"\",\"\",IF(LEN(OrigTable!C736)>255,LEFT(OrigTable!C736,250)&\". . .\",OrigTable!C736))","v":""},{"$f":"IF(OrigTable!C736=\"\",\"\",ScriptText!$E$1&CHAR(10)&ScriptText!$C$1)","v":""},{"$f":"IF(OrigTable!D736=\"\",\"\",ScriptText!$B$1&CHAR(10)&ScriptText!$D$1)","v":""},{"$f":"IF(OrigTable!D736=\"\",\"\",TEXT(OrigTable!D736,\"00\"))","v":""},{"$f":"IF(OrigTable!D736=\"\",\"\",ScriptText!$E$1&CHAR(10)&ScriptText!$C$1)","v":""},{"$f":"IF(OrigTable!E736=\"\",\"\",ScriptText!$B$1&CHAR(10)&ScriptText!$D$1)","v":""},{"$f":"IF(OrigTable!E736=\"\",\"\",TEXT(OrigTable!E736,\"00\"))","v":""},{"$f":"IF(OrigTable!E736=\"\",\"\",ScriptText!$E$1&CHAR(10)&ScriptText!$C$1)","v":""},{"$f":"IF(OrigTable!F736=\"\",\"\",ScriptText!$B$1&CHAR(10)&ScriptText!$D$1)","v":""},{"$f":"IF(OrigTable!F736=\"\",\"\",TEXT(OrigTable!F736,\"00\"))","v":""},{"$f":"IF(OrigTable!F736=\"\",\"\",ScriptText!$E$1&CHAR(10)&ScriptText!$C$1)","v":""},{"$f":"IF(OrigTable!G736=\"\",\"\",ScriptText!$B$1&CHAR(10)&ScriptText!$D$1)","v":""},{"$f":"IF(OrigTable!G736=\"\",\"\",TEXT(OrigTable!G736,\"00\"))","v":""},{"$f":"IF(OrigTable!G736=\"\",\"\",ScriptText!$E$1&CHAR(10)&ScriptText!$C$1)","v":""},0]
["\n\n\n",{"$f":"IF(OrigTable!A737=\"\",\"\",ScriptText!$B$1&CHAR(10)&ScriptText!$D$1)","v":""},{"$f":"IF(OrigTable!A737=\"\",\"\",TEXT(OrigTable!A737,\"00\"))","v":""},{"$f":"IF(OrigTable!A737=\"\",\"\",ScriptText!$E$1&CHAR(10)&ScriptText!$C$1)","v":""},{"$f":"IF(OrigTable!B737=\"\",\"\",ScriptText!$B$1&CHAR(10)&ScriptText!$D$1)","v":""},{"$f":"IF(OrigTable!B737=\"\",\"\",TEXT(OrigTable!B737,\"00\"))","v":""},{"$f":"IF(OrigTable!B737=\"\",\"\",ScriptText!$E$1&CHAR(10)&ScriptText!C732)","v":""},{"$f":"IF(OrigTable!C737=\"\",\"\",ScriptText!$B$1&CHAR(10)&ScriptText!$D$1)","v":""},{"$f":"IF(OrigTable!C737=\"\",\"\",IF(LEN(OrigTable!C737)>255,LEFT(OrigTable!C737,250)&\". . .\",OrigTable!C737))","v":""},{"$f":"IF(OrigTable!C737=\"\",\"\",ScriptText!$E$1&CHAR(10)&ScriptText!$C$1)","v":""},{"$f":"IF(OrigTable!D737=\"\",\"\",ScriptText!$B$1&CHAR(10)&ScriptText!$D$1)","v":""},{"$f":"IF(OrigTable!D737=\"\",\"\",TEXT(OrigTable!D737,\"00\"))","v":""},{"$f":"IF(OrigTable!D737=\"\",\"\",ScriptText!$E$1&CHAR(10)&ScriptText!$C$1)","v":""},{"$f":"IF(OrigTable!E737=\"\",\"\",ScriptText!$B$1&CHAR(10)&ScriptText!$D$1)","v":""},{"$f":"IF(OrigTable!E737=\"\",\"\",TEXT(OrigTable!E737,\"00\"))","v":""},{"$f":"IF(OrigTable!E737=\"\",\"\",ScriptText!$E$1&CHAR(10)&ScriptText!$C$1)","v":""},{"$f":"IF(OrigTable!F737=\"\",\"\",ScriptText!$B$1&CHAR(10)&ScriptText!$D$1)","v":""},{"$f":"IF(OrigTable!F737=\"\",\"\",TEXT(OrigTable!F737,\"00\"))","v":""},{"$f":"IF(OrigTable!F737=\"\",\"\",ScriptText!$E$1&CHAR(10)&ScriptText!$C$1)","v":""},{"$f":"IF(OrigTable!G737=\"\",\"\",ScriptText!$B$1&CHAR(10)&ScriptText!$D$1)","v":""},{"$f":"IF(OrigTable!G737=\"\",\"\",TEXT(OrigTable!G737,\"00\"))","v":""},{"$f":"IF(OrigTable!G737=\"\",\"\",ScriptText!$E$1&CHAR(10)&ScriptText!$C$1)","v":""},0]
["\n\n\n",{"$f":"IF(OrigTable!A738=\"\",\"\",ScriptText!$B$1&CHAR(10)&ScriptText!$D$1)","v":""},{"$f":"IF(OrigTable!A738=\"\",\"\",TEXT(OrigTable!A738,\"00\"))","v":""},{"$f":"IF(OrigTable!A738=\"\",\"\",ScriptText!$E$1&CHAR(10)&ScriptText!$C$1)","v":""},{"$f":"IF(OrigTable!B738=\"\",\"\",ScriptText!$B$1&CHAR(10)&ScriptText!$D$1)","v":""},{"$f":"IF(OrigTable!B738=\"\",\"\",TEXT(OrigTable!B738,\"00\"))","v":""},{"$f":"IF(OrigTable!B738=\"\",\"\",ScriptText!$E$1&CHAR(10)&ScriptText!C733)","v":""},{"$f":"IF(OrigTable!C738=\"\",\"\",ScriptText!$B$1&CHAR(10)&ScriptText!$D$1)","v":""},{"$f":"IF(OrigTable!C738=\"\",\"\",IF(LEN(OrigTable!C738)>255,LEFT(OrigTable!C738,250)&\". . .\",OrigTable!C738))","v":""},{"$f":"IF(OrigTable!C738=\"\",\"\",ScriptText!$E$1&CHAR(10)&ScriptText!$C$1)","v":""},{"$f":"IF(OrigTable!D738=\"\",\"\",ScriptText!$B$1&CHAR(10)&ScriptText!$D$1)","v":""},{"$f":"IF(OrigTable!D738=\"\",\"\",TEXT(OrigTable!D738,\"00\"))","v":""},{"$f":"IF(OrigTable!D738=\"\",\"\",ScriptText!$E$1&CHAR(10)&ScriptText!$C$1)","v":""},{"$f":"IF(OrigTable!E738=\"\",\"\",ScriptText!$B$1&CHAR(10)&ScriptText!$D$1)","v":""},{"$f":"IF(OrigTable!E738=\"\",\"\",TEXT(OrigTable!E738,\"00\"))","v":""},{"$f":"IF(OrigTable!E738=\"\",\"\",ScriptText!$E$1&CHAR(10)&ScriptText!$C$1)","v":""},{"$f":"IF(OrigTable!F738=\"\",\"\",ScriptText!$B$1&CHAR(10)&ScriptText!$D$1)","v":""},{"$f":"IF(OrigTable!F738=\"\",\"\",TEXT(OrigTable!F738,\"00\"))","v":""},{"$f":"IF(OrigTable!F738=\"\",\"\",ScriptText!$E$1&CHAR(10)&ScriptText!$C$1)","v":""},{"$f":"IF(OrigTable!G738=\"\",\"\",ScriptText!$B$1&CHAR(10)&ScriptText!$D$1)","v":""},{"$f":"IF(OrigTable!G738=\"\",\"\",TEXT(OrigTable!G738,\"00\"))","v":""},{"$f":"IF(OrigTable!G738=\"\",\"\",ScriptText!$E$1&CHAR(10)&ScriptText!$C$1)","v":""},0]
["\n\n\n",{"$f":"IF(OrigTable!A739=\"\",\"\",ScriptText!$B$1&CHAR(10)&ScriptText!$D$1)","v":""},{"$f":"IF(OrigTable!A739=\"\",\"\",TEXT(OrigTable!A739,\"00\"))","v":""},{"$f":"IF(OrigTable!A739=\"\",\"\",ScriptText!$E$1&CHAR(10)&ScriptText!$C$1)","v":""},{"$f":"IF(OrigTable!B739=\"\",\"\",ScriptText!$B$1&CHAR(10)&ScriptText!$D$1)","v":""},{"$f":"IF(OrigTable!B739=\"\",\"\",TEXT(OrigTable!B739,\"00\"))","v":""},{"$f":"IF(OrigTable!B739=\"\",\"\",ScriptText!$E$1&CHAR(10)&ScriptText!C734)","v":""},{"$f":"IF(OrigTable!C739=\"\",\"\",ScriptText!$B$1&CHAR(10)&ScriptText!$D$1)","v":""},{"$f":"IF(OrigTable!C739=\"\",\"\",IF(LEN(OrigTable!C739)>255,LEFT(OrigTable!C739,250)&\". . .\",OrigTable!C739))","v":""},{"$f":"IF(OrigTable!C739=\"\",\"\",ScriptText!$E$1&CHAR(10)&ScriptText!$C$1)","v":""},{"$f":"IF(OrigTable!D739=\"\",\"\",ScriptText!$B$1&CHAR(10)&ScriptText!$D$1)","v":""},{"$f":"IF(OrigTable!D739=\"\",\"\",TEXT(OrigTable!D739,\"00\"))","v":""},{"$f":"IF(OrigTable!D739=\"\",\"\",ScriptText!$E$1&CHAR(10)&ScriptText!$C$1)","v":""},{"$f":"IF(OrigTable!E739=\"\",\"\",ScriptText!$B$1&CHAR(10)&ScriptText!$D$1)","v":""},{"$f":"IF(OrigTable!E739=\"\",\"\",TEXT(OrigTable!E739,\"00\"))","v":""},{"$f":"IF(OrigTable!E739=\"\",\"\",ScriptText!$E$1&CHAR(10)&ScriptText!$C$1)","v":""},{"$f":"IF(OrigTable!F739=\"\",\"\",ScriptText!$B$1&CHAR(10)&ScriptText!$D$1)","v":""},{"$f":"IF(OrigTable!F739=\"\",\"\",TEXT(OrigTable!F739,\"00\"))","v":""},{"$f":"IF(OrigTable!F739=\"\",\"\",ScriptText!$E$1&CHAR(10)&ScriptText!$C$1)","v":""},{"$f":"IF(OrigTable!G739=\"\",\"\",ScriptText!$B$1&CHAR(10)&ScriptText!$D$1)","v":""},{"$f":"IF(OrigTable!G739=\"\",\"\",TEXT(OrigTable!G739,\"00\"))","v":""},{"$f":"IF(OrigTable!G739=\"\",\"\",ScriptText!$E$1&CHAR(10)&ScriptText!$C$1)","v":""},0]
["\n\n\n",{"$f":"IF(OrigTable!A740=\"\",\"\",ScriptText!$B$1&CHAR(10)&ScriptText!$D$1)","v":""},{"$f":"IF(OrigTable!A740=\"\",\"\",TEXT(OrigTable!A740,\"00\"))","v":""},{"$f":"IF(OrigTable!A740=\"\",\"\",ScriptText!$E$1&CHAR(10)&ScriptText!$C$1)","v":""},{"$f":"IF(OrigTable!B740=\"\",\"\",ScriptText!$B$1&CHAR(10)&ScriptText!$D$1)","v":""},{"$f":"IF(OrigTable!B740=\"\",\"\",TEXT(OrigTable!B740,\"00\"))","v":""},{"$f":"IF(OrigTable!B740=\"\",\"\",ScriptText!$E$1&CHAR(10)&ScriptText!C735)","v":""},{"$f":"IF(OrigTable!C740=\"\",\"\",ScriptText!$B$1&CHAR(10)&ScriptText!$D$1)","v":""},{"$f":"IF(OrigTable!C740=\"\",\"\",IF(LEN(OrigTable!C740)>255,LEFT(OrigTable!C740,250)&\". . .\",OrigTable!C740))","v":""},{"$f":"IF(OrigTable!C740=\"\",\"\",ScriptText!$E$1&CHAR(10)&ScriptText!$C$1)","v":""},{"$f":"IF(OrigTable!D740=\"\",\"\",ScriptText!$B$1&CHAR(10)&ScriptText!$D$1)","v":""},{"$f":"IF(OrigTable!D740=\"\",\"\",TEXT(OrigTable!D740,\"00\"))","v":""},{"$f":"IF(OrigTable!D740=\"\",\"\",ScriptText!$E$1&CHAR(10)&ScriptText!$C$1)","v":""},{"$f":"IF(OrigTable!E740=\"\",\"\",ScriptText!$B$1&CHAR(10)&ScriptText!$D$1)","v":""},{"$f":"IF(OrigTable!E740=\"\",\"\",TEXT(OrigTable!E740,\"00\"))","v":""},{"$f":"IF(OrigTable!E740=\"\",\"\",ScriptText!$E$1&CHAR(10)&ScriptText!$C$1)","v":""},{"$f":"IF(OrigTable!F740=\"\",\"\",ScriptText!$B$1&CHAR(10)&ScriptText!$D$1)","v":""},{"$f":"IF(OrigTable!F740=\"\",\"\",TEXT(OrigTable!F740,\"00\"))","v":""},{"$f":"IF(OrigTable!F740=\"\",\"\",ScriptText!$E$1&CHAR(10)&ScriptText!$C$1)","v":""},{"$f":"IF(OrigTable!G740=\"\",\"\",ScriptText!$B$1&CHAR(10)&ScriptText!$D$1)","v":""},{"$f":"IF(OrigTable!G740=\"\",\"\",TEXT(OrigTable!G740,\"00\"))","v":""},{"$f":"IF(OrigTable!G740=\"\",\"\",ScriptText!$E$1&CHAR(10)&ScriptText!$C$1)","v":""},0]
["\n\n\n",{"$f":"IF(OrigTable!A741=\"\",\"\",ScriptText!$B$1&CHAR(10)&ScriptText!$D$1)","v":""},{"$f":"IF(OrigTable!A741=\"\",\"\",TEXT(OrigTable!A741,\"00\"))","v":""},{"$f":"IF(OrigTable!A741=\"\",\"\",ScriptText!$E$1&CHAR(10)&ScriptText!$C$1)","v":""},{"$f":"IF(OrigTable!B741=\"\",\"\",ScriptText!$B$1&CHAR(10)&ScriptText!$D$1)","v":""},{"$f":"IF(OrigTable!B741=\"\",\"\",TEXT(OrigTable!B741,\"00\"))","v":""},{"$f":"IF(OrigTable!B741=\"\",\"\",ScriptText!$E$1&CHAR(10)&ScriptText!C736)","v":""},{"$f":"IF(OrigTable!C741=\"\",\"\",ScriptText!$B$1&CHAR(10)&ScriptText!$D$1)","v":""},{"$f":"IF(OrigTable!C741=\"\",\"\",IF(LEN(OrigTable!C741)>255,LEFT(OrigTable!C741,250)&\". . .\",OrigTable!C741))","v":""},{"$f":"IF(OrigTable!C741=\"\",\"\",ScriptText!$E$1&CHAR(10)&ScriptText!$C$1)","v":""},{"$f":"IF(OrigTable!D741=\"\",\"\",ScriptText!$B$1&CHAR(10)&ScriptText!$D$1)","v":""},{"$f":"IF(OrigTable!D741=\"\",\"\",TEXT(OrigTable!D741,\"00\"))","v":""},{"$f":"IF(OrigTable!D741=\"\",\"\",ScriptText!$E$1&CHAR(10)&ScriptText!$C$1)","v":""},{"$f":"IF(OrigTable!E741=\"\",\"\",ScriptText!$B$1&CHAR(10)&ScriptText!$D$1)","v":""},{"$f":"IF(OrigTable!E741=\"\",\"\",TEXT(OrigTable!E741,\"00\"))","v":""},{"$f":"IF(OrigTable!E741=\"\",\"\",ScriptText!$E$1&CHAR(10)&ScriptText!$C$1)","v":""},{"$f":"IF(OrigTable!F741=\"\",\"\",ScriptText!$B$1&CHAR(10)&ScriptText!$D$1)","v":""},{"$f":"IF(OrigTable!F741=\"\",\"\",TEXT(OrigTable!F741,\"00\"))","v":""},{"$f":"IF(OrigTable!F741=\"\",\"\",ScriptText!$E$1&CHAR(10)&ScriptText!$C$1)","v":""},{"$f":"IF(OrigTable!G741=\"\",\"\",ScriptText!$B$1&CHAR(10)&ScriptText!$D$1)","v":""},{"$f":"IF(OrigTable!G741=\"\",\"\",TEXT(OrigTable!G741,\"00\"))","v":""},{"$f":"IF(OrigTable!G741=\"\",\"\",ScriptText!$E$1&CHAR(10)&ScriptText!$C$1)","v":""},0]
["\n\n\n",{"$f":"IF(OrigTable!A742=\"\",\"\",ScriptText!$B$1&CHAR(10)&ScriptText!$D$1)","v":""},{"$f":"IF(OrigTable!A742=\"\",\"\",TEXT(OrigTable!A742,\"00\"))","v":""},{"$f":"IF(OrigTable!A742=\"\",\"\",ScriptText!$E$1&CHAR(10)&ScriptText!$C$1)","v":""},{"$f":"IF(OrigTable!B742=\"\",\"\",ScriptText!$B$1&CHAR(10)&ScriptText!$D$1)","v":""},{"$f":"IF(OrigTable!B742=\"\",\"\",TEXT(OrigTable!B742,\"00\"))","v":""},{"$f":"IF(OrigTable!B742=\"\",\"\",ScriptText!$E$1&CHAR(10)&ScriptText!C737)","v":""},{"$f":"IF(OrigTable!C742=\"\",\"\",ScriptText!$B$1&CHAR(10)&ScriptText!$D$1)","v":""},{"$f":"IF(OrigTable!C742=\"\",\"\",IF(LEN(OrigTable!C742)>255,LEFT(OrigTable!C742,250)&\". . .\",OrigTable!C742))","v":""},{"$f":"IF(OrigTable!C742=\"\",\"\",ScriptText!$E$1&CHAR(10)&ScriptText!$C$1)","v":""},{"$f":"IF(OrigTable!D742=\"\",\"\",ScriptText!$B$1&CHAR(10)&ScriptText!$D$1)","v":""},{"$f":"IF(OrigTable!D742=\"\",\"\",TEXT(OrigTable!D742,\"00\"))","v":""},{"$f":"IF(OrigTable!D742=\"\",\"\",ScriptText!$E$1&CHAR(10)&ScriptText!$C$1)","v":""},{"$f":"IF(OrigTable!E742=\"\",\"\",ScriptText!$B$1&CHAR(10)&ScriptText!$D$1)","v":""},{"$f":"IF(OrigTable!E742=\"\",\"\",TEXT(OrigTable!E742,\"00\"))","v":""},{"$f":"IF(OrigTable!E742=\"\",\"\",ScriptText!$E$1&CHAR(10)&ScriptText!$C$1)","v":""},{"$f":"IF(OrigTable!F742=\"\",\"\",ScriptText!$B$1&CHAR(10)&ScriptText!$D$1)","v":""},{"$f":"IF(OrigTable!F742=\"\",\"\",TEXT(OrigTable!F742,\"00\"))","v":""},{"$f":"IF(OrigTable!F742=\"\",\"\",ScriptText!$E$1&CHAR(10)&ScriptText!$C$1)","v":""},{"$f":"IF(OrigTable!G742=\"\",\"\",ScriptText!$B$1&CHAR(10)&ScriptText!$D$1)","v":""},{"$f":"IF(OrigTable!G742=\"\",\"\",TEXT(OrigTable!G742,\"00\"))","v":""},{"$f":"IF(OrigTable!G742=\"\",\"\",ScriptText!$E$1&CHAR(10)&ScriptText!$C$1)","v":""},0]
["\n\n\n",{"$f":"IF(OrigTable!A743=\"\",\"\",ScriptText!$B$1&CHAR(10)&ScriptText!$D$1)","v":""},{"$f":"IF(OrigTable!A743=\"\",\"\",TEXT(OrigTable!A743,\"00\"))","v":""},{"$f":"IF(OrigTable!A743=\"\",\"\",ScriptText!$E$1&CHAR(10)&ScriptText!$C$1)","v":""},{"$f":"IF(OrigTable!B743=\"\",\"\",ScriptText!$B$1&CHAR(10)&ScriptText!$D$1)","v":""},{"$f":"IF(OrigTable!B743=\"\",\"\",TEXT(OrigTable!B743,\"00\"))","v":""},{"$f":"IF(OrigTable!B743=\"\",\"\",ScriptText!$E$1&CHAR(10)&ScriptText!C738)","v":""},{"$f":"IF(OrigTable!C743=\"\",\"\",ScriptText!$B$1&CHAR(10)&ScriptText!$D$1)","v":""},{"$f":"IF(OrigTable!C743=\"\",\"\",IF(LEN(OrigTable!C743)>255,LEFT(OrigTable!C743,250)&\". . .\",OrigTable!C743))","v":""},{"$f":"IF(OrigTable!C743=\"\",\"\",ScriptText!$E$1&CHAR(10)&ScriptText!$C$1)","v":""},{"$f":"IF(OrigTable!D743=\"\",\"\",ScriptText!$B$1&CHAR(10)&ScriptText!$D$1)","v":""},{"$f":"IF(OrigTable!D743=\"\",\"\",TEXT(OrigTable!D743,\"00\"))","v":""},{"$f":"IF(OrigTable!D743=\"\",\"\",ScriptText!$E$1&CHAR(10)&ScriptText!$C$1)","v":""},{"$f":"IF(OrigTable!E743=\"\",\"\",ScriptText!$B$1&CHAR(10)&ScriptText!$D$1)","v":""},{"$f":"IF(OrigTable!E743=\"\",\"\",TEXT(OrigTable!E743,\"00\"))","v":""},{"$f":"IF(OrigTable!E743=\"\",\"\",ScriptText!$E$1&CHAR(10)&ScriptText!$C$1)","v":""},{"$f":"IF(OrigTable!F743=\"\",\"\",ScriptText!$B$1&CHAR(10)&ScriptText!$D$1)","v":""},{"$f":"IF(OrigTable!F743=\"\",\"\",TEXT(OrigTable!F743,\"00\"))","v":""},{"$f":"IF(OrigTable!F743=\"\",\"\",ScriptText!$E$1&CHAR(10)&ScriptText!$C$1)","v":""},{"$f":"IF(OrigTable!G743=\"\",\"\",ScriptText!$B$1&CHAR(10)&ScriptText!$D$1)","v":""},{"$f":"IF(OrigTable!G743=\"\",\"\",TEXT(OrigTable!G743,\"00\"))","v":""},{"$f":"IF(OrigTable!G743=\"\",\"\",ScriptText!$E$1&CHAR(10)&ScriptText!$C$1)","v":""},0]
["\n\n\n",{"$f":"IF(OrigTable!A744=\"\",\"\",ScriptText!$B$1&CHAR(10)&ScriptText!$D$1)","v":""},{"$f":"IF(OrigTable!A744=\"\",\"\",TEXT(OrigTable!A744,\"00\"))","v":""},{"$f":"IF(OrigTable!A744=\"\",\"\",ScriptText!$E$1&CHAR(10)&ScriptText!$C$1)","v":""},{"$f":"IF(OrigTable!B744=\"\",\"\",ScriptText!$B$1&CHAR(10)&ScriptText!$D$1)","v":""},{"$f":"IF(OrigTable!B744=\"\",\"\",TEXT(OrigTable!B744,\"00\"))","v":""},{"$f":"IF(OrigTable!B744=\"\",\"\",ScriptText!$E$1&CHAR(10)&ScriptText!C739)","v":""},{"$f":"IF(OrigTable!C744=\"\",\"\",ScriptText!$B$1&CHAR(10)&ScriptText!$D$1)","v":""},{"$f":"IF(OrigTable!C744=\"\",\"\",IF(LEN(OrigTable!C744)>255,LEFT(OrigTable!C744,250)&\". . .\",OrigTable!C744))","v":""},{"$f":"IF(OrigTable!C744=\"\",\"\",ScriptText!$E$1&CHAR(10)&ScriptText!$C$1)","v":""},{"$f":"IF(OrigTable!D744=\"\",\"\",ScriptText!$B$1&CHAR(10)&ScriptText!$D$1)","v":""},{"$f":"IF(OrigTable!D744=\"\",\"\",TEXT(OrigTable!D744,\"00\"))","v":""},{"$f":"IF(OrigTable!D744=\"\",\"\",ScriptText!$E$1&CHAR(10)&ScriptText!$C$1)","v":""},{"$f":"IF(OrigTable!E744=\"\",\"\",ScriptText!$B$1&CHAR(10)&ScriptText!$D$1)","v":""},{"$f":"IF(OrigTable!E744=\"\",\"\",TEXT(OrigTable!E744,\"00\"))","v":""},{"$f":"IF(OrigTable!E744=\"\",\"\",ScriptText!$E$1&CHAR(10)&ScriptText!$C$1)","v":""},{"$f":"IF(OrigTable!F744=\"\",\"\",ScriptText!$B$1&CHAR(10)&ScriptText!$D$1)","v":""},{"$f":"IF(OrigTable!F744=\"\",\"\",TEXT(OrigTable!F744,\"00\"))","v":""},{"$f":"IF(OrigTable!F744=\"\",\"\",ScriptText!$E$1&CHAR(10)&ScriptText!$C$1)","v":""},{"$f":"IF(OrigTable!G744=\"\",\"\",ScriptText!$B$1&CHAR(10)&ScriptText!$D$1)","v":""},{"$f":"IF(OrigTable!G744=\"\",\"\",TEXT(OrigTable!G744,\"00\"))","v":""},{"$f":"IF(OrigTable!G744=\"\",\"\",ScriptText!$E$1&CHAR(10)&ScriptText!$C$1)","v":""},0]
["\n\n\n",{"$f":"IF(OrigTable!A745=\"\",\"\",ScriptText!$B$1&CHAR(10)&ScriptText!$D$1)","v":""},{"$f":"IF(OrigTable!A745=\"\",\"\",TEXT(OrigTable!A745,\"00\"))","v":""},{"$f":"IF(OrigTable!A745=\"\",\"\",ScriptText!$E$1&CHAR(10)&ScriptText!$C$1)","v":""},{"$f":"IF(OrigTable!B745=\"\",\"\",ScriptText!$B$1&CHAR(10)&ScriptText!$D$1)","v":""},{"$f":"IF(OrigTable!B745=\"\",\"\",TEXT(OrigTable!B745,\"00\"))","v":""},{"$f":"IF(OrigTable!B745=\"\",\"\",ScriptText!$E$1&CHAR(10)&ScriptText!C740)","v":""},{"$f":"IF(OrigTable!C745=\"\",\"\",ScriptText!$B$1&CHAR(10)&ScriptText!$D$1)","v":""},{"$f":"IF(OrigTable!C745=\"\",\"\",IF(LEN(OrigTable!C745)>255,LEFT(OrigTable!C745,250)&\". . .\",OrigTable!C745))","v":""},{"$f":"IF(OrigTable!C745=\"\",\"\",ScriptText!$E$1&CHAR(10)&ScriptText!$C$1)","v":""},{"$f":"IF(OrigTable!D745=\"\",\"\",ScriptText!$B$1&CHAR(10)&ScriptText!$D$1)","v":""},{"$f":"IF(OrigTable!D745=\"\",\"\",TEXT(OrigTable!D745,\"00\"))","v":""},{"$f":"IF(OrigTable!D745=\"\",\"\",ScriptText!$E$1&CHAR(10)&ScriptText!$C$1)","v":""},{"$f":"IF(OrigTable!E745=\"\",\"\",ScriptText!$B$1&CHAR(10)&ScriptText!$D$1)","v":""},{"$f":"IF(OrigTable!E745=\"\",\"\",TEXT(OrigTable!E745,\"00\"))","v":""},{"$f":"IF(OrigTable!E745=\"\",\"\",ScriptText!$E$1&CHAR(10)&ScriptText!$C$1)","v":""},{"$f":"IF(OrigTable!F745=\"\",\"\",ScriptText!$B$1&CHAR(10)&ScriptText!$D$1)","v":""},{"$f":"IF(OrigTable!F745=\"\",\"\",TEXT(OrigTable!F745,\"00\"))","v":""},{"$f":"IF(OrigTable!F745=\"\",\"\",ScriptText!$E$1&CHAR(10)&ScriptText!$C$1)","v":""},{"$f":"IF(OrigTable!G745=\"\",\"\",ScriptText!$B$1&CHAR(10)&ScriptText!$D$1)","v":""},{"$f":"IF(OrigTable!G745=\"\",\"\",TEXT(OrigTable!G745,\"00\"))","v":""},{"$f":"IF(OrigTable!G745=\"\",\"\",ScriptText!$E$1&CHAR(10)&ScriptText!$C$1)","v":""},0]
["\n\n\n",{"$f":"IF(OrigTable!A746=\"\",\"\",ScriptText!$B$1&CHAR(10)&ScriptText!$D$1)","v":""},{"$f":"IF(OrigTable!A746=\"\",\"\",TEXT(OrigTable!A746,\"00\"))","v":""},{"$f":"IF(OrigTable!A746=\"\",\"\",ScriptText!$E$1&CHAR(10)&ScriptText!$C$1)","v":""},{"$f":"IF(OrigTable!B746=\"\",\"\",ScriptText!$B$1&CHAR(10)&ScriptText!$D$1)","v":""},{"$f":"IF(OrigTable!B746=\"\",\"\",TEXT(OrigTable!B746,\"00\"))","v":""},{"$f":"IF(OrigTable!B746=\"\",\"\",ScriptText!$E$1&CHAR(10)&ScriptText!C741)","v":""},{"$f":"IF(OrigTable!C746=\"\",\"\",ScriptText!$B$1&CHAR(10)&ScriptText!$D$1)","v":""},{"$f":"IF(OrigTable!C746=\"\",\"\",IF(LEN(OrigTable!C746)>255,LEFT(OrigTable!C746,250)&\". . .\",OrigTable!C746))","v":""},{"$f":"IF(OrigTable!C746=\"\",\"\",ScriptText!$E$1&CHAR(10)&ScriptText!$C$1)","v":""},{"$f":"IF(OrigTable!D746=\"\",\"\",ScriptText!$B$1&CHAR(10)&ScriptText!$D$1)","v":""},{"$f":"IF(OrigTable!D746=\"\",\"\",TEXT(OrigTable!D746,\"00\"))","v":""},{"$f":"IF(OrigTable!D746=\"\",\"\",ScriptText!$E$1&CHAR(10)&ScriptText!$C$1)","v":""},{"$f":"IF(OrigTable!E746=\"\",\"\",ScriptText!$B$1&CHAR(10)&ScriptText!$D$1)","v":""},{"$f":"IF(OrigTable!E746=\"\",\"\",TEXT(OrigTable!E746,\"00\"))","v":""},{"$f":"IF(OrigTable!E746=\"\",\"\",ScriptText!$E$1&CHAR(10)&ScriptText!$C$1)","v":""},{"$f":"IF(OrigTable!F746=\"\",\"\",ScriptText!$B$1&CHAR(10)&ScriptText!$D$1)","v":""},{"$f":"IF(OrigTable!F746=\"\",\"\",TEXT(OrigTable!F746,\"00\"))","v":""},{"$f":"IF(OrigTable!F746=\"\",\"\",ScriptText!$E$1&CHAR(10)&ScriptText!$C$1)","v":""},{"$f":"IF(OrigTable!G746=\"\",\"\",ScriptText!$B$1&CHAR(10)&ScriptText!$D$1)","v":""},{"$f":"IF(OrigTable!G746=\"\",\"\",TEXT(OrigTable!G746,\"00\"))","v":""},{"$f":"IF(OrigTable!G746=\"\",\"\",ScriptText!$E$1&CHAR(10)&ScriptText!$C$1)","v":""},0]
["\n\n\n",{"$f":"IF(OrigTable!A747=\"\",\"\",ScriptText!$B$1&CHAR(10)&ScriptText!$D$1)","v":""},{"$f":"IF(OrigTable!A747=\"\",\"\",TEXT(OrigTable!A747,\"00\"))","v":""},{"$f":"IF(OrigTable!A747=\"\",\"\",ScriptText!$E$1&CHAR(10)&ScriptText!$C$1)","v":""},{"$f":"IF(OrigTable!B747=\"\",\"\",ScriptText!$B$1&CHAR(10)&ScriptText!$D$1)","v":""},{"$f":"IF(OrigTable!B747=\"\",\"\",TEXT(OrigTable!B747,\"00\"))","v":""},{"$f":"IF(OrigTable!B747=\"\",\"\",ScriptText!$E$1&CHAR(10)&ScriptText!C742)","v":""},{"$f":"IF(OrigTable!C747=\"\",\"\",ScriptText!$B$1&CHAR(10)&ScriptText!$D$1)","v":""},{"$f":"IF(OrigTable!C747=\"\",\"\",IF(LEN(OrigTable!C747)>255,LEFT(OrigTable!C747,250)&\". . .\",OrigTable!C747))","v":""},{"$f":"IF(OrigTable!C747=\"\",\"\",ScriptText!$E$1&CHAR(10)&ScriptText!$C$1)","v":""},{"$f":"IF(OrigTable!D747=\"\",\"\",ScriptText!$B$1&CHAR(10)&ScriptText!$D$1)","v":""},{"$f":"IF(OrigTable!D747=\"\",\"\",TEXT(OrigTable!D747,\"00\"))","v":""},{"$f":"IF(OrigTable!D747=\"\",\"\",ScriptText!$E$1&CHAR(10)&ScriptText!$C$1)","v":""},{"$f":"IF(OrigTable!E747=\"\",\"\",ScriptText!$B$1&CHAR(10)&ScriptText!$D$1)","v":""},{"$f":"IF(OrigTable!E747=\"\",\"\",TEXT(OrigTable!E747,\"00\"))","v":""},{"$f":"IF(OrigTable!E747=\"\",\"\",ScriptText!$E$1&CHAR(10)&ScriptText!$C$1)","v":""},{"$f":"IF(OrigTable!F747=\"\",\"\",ScriptText!$B$1&CHAR(10)&ScriptText!$D$1)","v":""},{"$f":"IF(OrigTable!F747=\"\",\"\",TEXT(OrigTable!F747,\"00\"))","v":""},{"$f":"IF(OrigTable!F747=\"\",\"\",ScriptText!$E$1&CHAR(10)&ScriptText!$C$1)","v":""},{"$f":"IF(OrigTable!G747=\"\",\"\",ScriptText!$B$1&CHAR(10)&ScriptText!$D$1)","v":""},{"$f":"IF(OrigTable!G747=\"\",\"\",TEXT(OrigTable!G747,\"00\"))","v":""},{"$f":"IF(OrigTable!G747=\"\",\"\",ScriptText!$E$1&CHAR(10)&ScriptText!$C$1)","v":""},0]
["\n\n\n",{"$f":"IF(OrigTable!A748=\"\",\"\",ScriptText!$B$1&CHAR(10)&ScriptText!$D$1)","v":""},{"$f":"IF(OrigTable!A748=\"\",\"\",TEXT(OrigTable!A748,\"00\"))","v":""},{"$f":"IF(OrigTable!A748=\"\",\"\",ScriptText!$E$1&CHAR(10)&ScriptText!$C$1)","v":""},{"$f":"IF(OrigTable!B748=\"\",\"\",ScriptText!$B$1&CHAR(10)&ScriptText!$D$1)","v":""},{"$f":"IF(OrigTable!B748=\"\",\"\",TEXT(OrigTable!B748,\"00\"))","v":""},{"$f":"IF(OrigTable!B748=\"\",\"\",ScriptText!$E$1&CHAR(10)&ScriptText!C743)","v":""},{"$f":"IF(OrigTable!C748=\"\",\"\",ScriptText!$B$1&CHAR(10)&ScriptText!$D$1)","v":""},{"$f":"IF(OrigTable!C748=\"\",\"\",IF(LEN(OrigTable!C748)>255,LEFT(OrigTable!C748,250)&\". . .\",OrigTable!C748))","v":""},{"$f":"IF(OrigTable!C748=\"\",\"\",ScriptText!$E$1&CHAR(10)&ScriptText!$C$1)","v":""},{"$f":"IF(OrigTable!D748=\"\",\"\",ScriptText!$B$1&CHAR(10)&ScriptText!$D$1)","v":""},{"$f":"IF(OrigTable!D748=\"\",\"\",TEXT(OrigTable!D748,\"00\"))","v":""},{"$f":"IF(OrigTable!D748=\"\",\"\",ScriptText!$E$1&CHAR(10)&ScriptText!$C$1)","v":""},{"$f":"IF(OrigTable!E748=\"\",\"\",ScriptText!$B$1&CHAR(10)&ScriptText!$D$1)","v":""},{"$f":"IF(OrigTable!E748=\"\",\"\",TEXT(OrigTable!E748,\"00\"))","v":""},{"$f":"IF(OrigTable!E748=\"\",\"\",ScriptText!$E$1&CHAR(10)&ScriptText!$C$1)","v":""},{"$f":"IF(OrigTable!F748=\"\",\"\",ScriptText!$B$1&CHAR(10)&ScriptText!$D$1)","v":""},{"$f":"IF(OrigTable!F748=\"\",\"\",TEXT(OrigTable!F748,\"00\"))","v":""},{"$f":"IF(OrigTable!F748=\"\",\"\",ScriptText!$E$1&CHAR(10)&ScriptText!$C$1)","v":""},{"$f":"IF(OrigTable!G748=\"\",\"\",ScriptText!$B$1&CHAR(10)&ScriptText!$D$1)","v":""},{"$f":"IF(OrigTable!G748=\"\",\"\",TEXT(OrigTable!G748,\"00\"))","v":""},{"$f":"IF(OrigTable!G748=\"\",\"\",ScriptText!$E$1&CHAR(10)&ScriptText!$C$1)","v":""},0]
["\n\n\n",{"$f":"IF(OrigTable!A749=\"\",\"\",ScriptText!$B$1&CHAR(10)&ScriptText!$D$1)","v":""},{"$f":"IF(OrigTable!A749=\"\",\"\",TEXT(OrigTable!A749,\"00\"))","v":""},{"$f":"IF(OrigTable!A749=\"\",\"\",ScriptText!$E$1&CHAR(10)&ScriptText!$C$1)","v":""},{"$f":"IF(OrigTable!B749=\"\",\"\",ScriptText!$B$1&CHAR(10)&ScriptText!$D$1)","v":""},{"$f":"IF(OrigTable!B749=\"\",\"\",TEXT(OrigTable!B749,\"00\"))","v":""},{"$f":"IF(OrigTable!B749=\"\",\"\",ScriptText!$E$1&CHAR(10)&ScriptText!C744)","v":""},{"$f":"IF(OrigTable!C749=\"\",\"\",ScriptText!$B$1&CHAR(10)&ScriptText!$D$1)","v":""},{"$f":"IF(OrigTable!C749=\"\",\"\",IF(LEN(OrigTable!C749)>255,LEFT(OrigTable!C749,250)&\". . .\",OrigTable!C749))","v":""},{"$f":"IF(OrigTable!C749=\"\",\"\",ScriptText!$E$1&CHAR(10)&ScriptText!$C$1)","v":""},{"$f":"IF(OrigTable!D749=\"\",\"\",ScriptText!$B$1&CHAR(10)&ScriptText!$D$1)","v":""},{"$f":"IF(OrigTable!D749=\"\",\"\",TEXT(OrigTable!D749,\"00\"))","v":""},{"$f":"IF(OrigTable!D749=\"\",\"\",ScriptText!$E$1&CHAR(10)&ScriptText!$C$1)","v":""},{"$f":"IF(OrigTable!E749=\"\",\"\",ScriptText!$B$1&CHAR(10)&ScriptText!$D$1)","v":""},{"$f":"IF(OrigTable!E749=\"\",\"\",TEXT(OrigTable!E749,\"00\"))","v":""},{"$f":"IF(OrigTable!E749=\"\",\"\",ScriptText!$E$1&CHAR(10)&ScriptText!$C$1)","v":""},{"$f":"IF(OrigTable!F749=\"\",\"\",ScriptText!$B$1&CHAR(10)&ScriptText!$D$1)","v":""},{"$f":"IF(OrigTable!F749=\"\",\"\",TEXT(OrigTable!F749,\"00\"))","v":""},{"$f":"IF(OrigTable!F749=\"\",\"\",ScriptText!$E$1&CHAR(10)&ScriptText!$C$1)","v":""},{"$f":"IF(OrigTable!G749=\"\",\"\",ScriptText!$B$1&CHAR(10)&ScriptText!$D$1)","v":""},{"$f":"IF(OrigTable!G749=\"\",\"\",TEXT(OrigTable!G749,\"00\"))","v":""},{"$f":"IF(OrigTable!G749=\"\",\"\",ScriptText!$E$1&CHAR(10)&ScriptText!$C$1)","v":""},0]
["\n\n\n",{"$f":"IF(OrigTable!A750=\"\",\"\",ScriptText!$B$1&CHAR(10)&ScriptText!$D$1)","v":""},{"$f":"IF(OrigTable!A750=\"\",\"\",TEXT(OrigTable!A750,\"00\"))","v":""},{"$f":"IF(OrigTable!A750=\"\",\"\",ScriptText!$E$1&CHAR(10)&ScriptText!$C$1)","v":""},{"$f":"IF(OrigTable!B750=\"\",\"\",ScriptText!$B$1&CHAR(10)&ScriptText!$D$1)","v":""},{"$f":"IF(OrigTable!B750=\"\",\"\",TEXT(OrigTable!B750,\"00\"))","v":""},{"$f":"IF(OrigTable!B750=\"\",\"\",ScriptText!$E$1&CHAR(10)&ScriptText!C745)","v":""},{"$f":"IF(OrigTable!C750=\"\",\"\",ScriptText!$B$1&CHAR(10)&ScriptText!$D$1)","v":""},{"$f":"IF(OrigTable!C750=\"\",\"\",IF(LEN(OrigTable!C750)>255,LEFT(OrigTable!C750,250)&\". . .\",OrigTable!C750))","v":""},{"$f":"IF(OrigTable!C750=\"\",\"\",ScriptText!$E$1&CHAR(10)&ScriptText!$C$1)","v":""},{"$f":"IF(OrigTable!D750=\"\",\"\",ScriptText!$B$1&CHAR(10)&ScriptText!$D$1)","v":""},{"$f":"IF(OrigTable!D750=\"\",\"\",TEXT(OrigTable!D750,\"00\"))","v":""},{"$f":"IF(OrigTable!D750=\"\",\"\",ScriptText!$E$1&CHAR(10)&ScriptText!$C$1)","v":""},{"$f":"IF(OrigTable!E750=\"\",\"\",ScriptText!$B$1&CHAR(10)&ScriptText!$D$1)","v":""},{"$f":"IF(OrigTable!E750=\"\",\"\",TEXT(OrigTable!E750,\"00\"))","v":""},{"$f":"IF(OrigTable!E750=\"\",\"\",ScriptText!$E$1&CHAR(10)&ScriptText!$C$1)","v":""},{"$f":"IF(OrigTable!F750=\"\",\"\",ScriptText!$B$1&CHAR(10)&ScriptText!$D$1)","v":""},{"$f":"IF(OrigTable!F750=\"\",\"\",TEXT(OrigTable!F750,\"00\"))","v":""},{"$f":"IF(OrigTable!F750=\"\",\"\",ScriptText!$E$1&CHAR(10)&ScriptText!$C$1)","v":""},{"$f":"IF(OrigTable!G750=\"\",\"\",ScriptText!$B$1&CHAR(10)&ScriptText!$D$1)","v":""},{"$f":"IF(OrigTable!G750=\"\",\"\",TEXT(OrigTable!G750,\"00\"))","v":""},{"$f":"IF(OrigTable!G750=\"\",\"\",ScriptText!$E$1&CHAR(10)&ScriptText!$C$1)","v":""},0]
["\n\n\n",{"$f":"IF(OrigTable!A751=\"\",\"\",ScriptText!$B$1&CHAR(10)&ScriptText!$D$1)","v":""},{"$f":"IF(OrigTable!A751=\"\",\"\",TEXT(OrigTable!A751,\"00\"))","v":""},{"$f":"IF(OrigTable!A751=\"\",\"\",ScriptText!$E$1&CHAR(10)&ScriptText!$C$1)","v":""},{"$f":"IF(OrigTable!B751=\"\",\"\",ScriptText!$B$1&CHAR(10)&ScriptText!$D$1)","v":""},{"$f":"IF(OrigTable!B751=\"\",\"\",TEXT(OrigTable!B751,\"00\"))","v":""},{"$f":"IF(OrigTable!B751=\"\",\"\",ScriptText!$E$1&CHAR(10)&ScriptText!C746)","v":""},{"$f":"IF(OrigTable!C751=\"\",\"\",ScriptText!$B$1&CHAR(10)&ScriptText!$D$1)","v":""},{"$f":"IF(OrigTable!C751=\"\",\"\",IF(LEN(OrigTable!C751)>255,LEFT(OrigTable!C751,250)&\". . .\",OrigTable!C751))","v":""},{"$f":"IF(OrigTable!C751=\"\",\"\",ScriptText!$E$1&CHAR(10)&ScriptText!$C$1)","v":""},{"$f":"IF(OrigTable!D751=\"\",\"\",ScriptText!$B$1&CHAR(10)&ScriptText!$D$1)","v":""},{"$f":"IF(OrigTable!D751=\"\",\"\",TEXT(OrigTable!D751,\"00\"))","v":""},{"$f":"IF(OrigTable!D751=\"\",\"\",ScriptText!$E$1&CHAR(10)&ScriptText!$C$1)","v":""},{"$f":"IF(OrigTable!E751=\"\",\"\",ScriptText!$B$1&CHAR(10)&ScriptText!$D$1)","v":""},{"$f":"IF(OrigTable!E751=\"\",\"\",TEXT(OrigTable!E751,\"00\"))","v":""},{"$f":"IF(OrigTable!E751=\"\",\"\",ScriptText!$E$1&CHAR(10)&ScriptText!$C$1)","v":""},{"$f":"IF(OrigTable!F751=\"\",\"\",ScriptText!$B$1&CHAR(10)&ScriptText!$D$1)","v":""},{"$f":"IF(OrigTable!F751=\"\",\"\",TEXT(OrigTable!F751,\"00\"))","v":""},{"$f":"IF(OrigTable!F751=\"\",\"\",ScriptText!$E$1&CHAR(10)&ScriptText!$C$1)","v":""},{"$f":"IF(OrigTable!G751=\"\",\"\",ScriptText!$B$1&CHAR(10)&ScriptText!$D$1)","v":""},{"$f":"IF(OrigTable!G751=\"\",\"\",TEXT(OrigTable!G751,\"00\"))","v":""},{"$f":"IF(OrigTable!G751=\"\",\"\",ScriptText!$E$1&CHAR(10)&ScriptText!$C$1)","v":""},0]
["\n\n\n",{"$f":"IF(OrigTable!A752=\"\",\"\",ScriptText!$B$1&CHAR(10)&ScriptText!$D$1)","v":""},{"$f":"IF(OrigTable!A752=\"\",\"\",TEXT(OrigTable!A752,\"00\"))","v":""},{"$f":"IF(OrigTable!A752=\"\",\"\",ScriptText!$E$1&CHAR(10)&ScriptText!$C$1)","v":""},{"$f":"IF(OrigTable!B752=\"\",\"\",ScriptText!$B$1&CHAR(10)&ScriptText!$D$1)","v":""},{"$f":"IF(OrigTable!B752=\"\",\"\",TEXT(OrigTable!B752,\"00\"))","v":""},{"$f":"IF(OrigTable!B752=\"\",\"\",ScriptText!$E$1&CHAR(10)&ScriptText!C747)","v":""},{"$f":"IF(OrigTable!C752=\"\",\"\",ScriptText!$B$1&CHAR(10)&ScriptText!$D$1)","v":""},{"$f":"IF(OrigTable!C752=\"\",\"\",IF(LEN(OrigTable!C752)>255,LEFT(OrigTable!C752,250)&\". . .\",OrigTable!C752))","v":""},{"$f":"IF(OrigTable!C752=\"\",\"\",ScriptText!$E$1&CHAR(10)&ScriptText!$C$1)","v":""},{"$f":"IF(OrigTable!D752=\"\",\"\",ScriptText!$B$1&CHAR(10)&ScriptText!$D$1)","v":""},{"$f":"IF(OrigTable!D752=\"\",\"\",TEXT(OrigTable!D752,\"00\"))","v":""},{"$f":"IF(OrigTable!D752=\"\",\"\",ScriptText!$E$1&CHAR(10)&ScriptText!$C$1)","v":""},{"$f":"IF(OrigTable!E752=\"\",\"\",ScriptText!$B$1&CHAR(10)&ScriptText!$D$1)","v":""},{"$f":"IF(OrigTable!E752=\"\",\"\",TEXT(OrigTable!E752,\"00\"))","v":""},{"$f":"IF(OrigTable!E752=\"\",\"\",ScriptText!$E$1&CHAR(10)&ScriptText!$C$1)","v":""},{"$f":"IF(OrigTable!F752=\"\",\"\",ScriptText!$B$1&CHAR(10)&ScriptText!$D$1)","v":""},{"$f":"IF(OrigTable!F752=\"\",\"\",TEXT(OrigTable!F752,\"00\"))","v":""},{"$f":"IF(OrigTable!F752=\"\",\"\",ScriptText!$E$1&CHAR(10)&ScriptText!$C$1)","v":""},{"$f":"IF(OrigTable!G752=\"\",\"\",ScriptText!$B$1&CHAR(10)&ScriptText!$D$1)","v":""},{"$f":"IF(OrigTable!G752=\"\",\"\",TEXT(OrigTable!G752,\"00\"))","v":""},{"$f":"IF(OrigTable!G752=\"\",\"\",ScriptText!$E$1&CHAR(10)&ScriptText!$C$1)","v":""},0]
["\n\n\n",{"$f":"IF(OrigTable!A753=\"\",\"\",ScriptText!$B$1&CHAR(10)&ScriptText!$D$1)","v":""},{"$f":"IF(OrigTable!A753=\"\",\"\",TEXT(OrigTable!A753,\"00\"))","v":""},{"$f":"IF(OrigTable!A753=\"\",\"\",ScriptText!$E$1&CHAR(10)&ScriptText!$C$1)","v":""},{"$f":"IF(OrigTable!B753=\"\",\"\",ScriptText!$B$1&CHAR(10)&ScriptText!$D$1)","v":""},{"$f":"IF(OrigTable!B753=\"\",\"\",TEXT(OrigTable!B753,\"00\"))","v":""},{"$f":"IF(OrigTable!B753=\"\",\"\",ScriptText!$E$1&CHAR(10)&ScriptText!C748)","v":""},{"$f":"IF(OrigTable!C753=\"\",\"\",ScriptText!$B$1&CHAR(10)&ScriptText!$D$1)","v":""},{"$f":"IF(OrigTable!C753=\"\",\"\",IF(LEN(OrigTable!C753)>255,LEFT(OrigTable!C753,250)&\". . .\",OrigTable!C753))","v":""},{"$f":"IF(OrigTable!C753=\"\",\"\",ScriptText!$E$1&CHAR(10)&ScriptText!$C$1)","v":""},{"$f":"IF(OrigTable!D753=\"\",\"\",ScriptText!$B$1&CHAR(10)&ScriptText!$D$1)","v":""},{"$f":"IF(OrigTable!D753=\"\",\"\",TEXT(OrigTable!D753,\"00\"))","v":""},{"$f":"IF(OrigTable!D753=\"\",\"\",ScriptText!$E$1&CHAR(10)&ScriptText!$C$1)","v":""},{"$f":"IF(OrigTable!E753=\"\",\"\",ScriptText!$B$1&CHAR(10)&ScriptText!$D$1)","v":""},{"$f":"IF(OrigTable!E753=\"\",\"\",TEXT(OrigTable!E753,\"00\"))","v":""},{"$f":"IF(OrigTable!E753=\"\",\"\",ScriptText!$E$1&CHAR(10)&ScriptText!$C$1)","v":""},{"$f":"IF(OrigTable!F753=\"\",\"\",ScriptText!$B$1&CHAR(10)&ScriptText!$D$1)","v":""},{"$f":"IF(OrigTable!F753=\"\",\"\",TEXT(OrigTable!F753,\"00\"))","v":""},{"$f":"IF(OrigTable!F753=\"\",\"\",ScriptText!$E$1&CHAR(10)&ScriptText!$C$1)","v":""},{"$f":"IF(OrigTable!G753=\"\",\"\",ScriptText!$B$1&CHAR(10)&ScriptText!$D$1)","v":""},{"$f":"IF(OrigTable!G753=\"\",\"\",TEXT(OrigTable!G753,\"00\"))","v":""},{"$f":"IF(OrigTable!G753=\"\",\"\",ScriptText!$E$1&CHAR(10)&ScriptText!$C$1)","v":""},0]
["\n\n\n",{"$f":"IF(OrigTable!A754=\"\",\"\",ScriptText!$B$1&CHAR(10)&ScriptText!$D$1)","v":""},{"$f":"IF(OrigTable!A754=\"\",\"\",TEXT(OrigTable!A754,\"00\"))","v":""},{"$f":"IF(OrigTable!A754=\"\",\"\",ScriptText!$E$1&CHAR(10)&ScriptText!$C$1)","v":""},{"$f":"IF(OrigTable!B754=\"\",\"\",ScriptText!$B$1&CHAR(10)&ScriptText!$D$1)","v":""},{"$f":"IF(OrigTable!B754=\"\",\"\",TEXT(OrigTable!B754,\"00\"))","v":""},{"$f":"IF(OrigTable!B754=\"\",\"\",ScriptText!$E$1&CHAR(10)&ScriptText!C749)","v":""},{"$f":"IF(OrigTable!C754=\"\",\"\",ScriptText!$B$1&CHAR(10)&ScriptText!$D$1)","v":""},{"$f":"IF(OrigTable!C754=\"\",\"\",IF(LEN(OrigTable!C754)>255,LEFT(OrigTable!C754,250)&\". . .\",OrigTable!C754))","v":""},{"$f":"IF(OrigTable!C754=\"\",\"\",ScriptText!$E$1&CHAR(10)&ScriptText!$C$1)","v":""},{"$f":"IF(OrigTable!D754=\"\",\"\",ScriptText!$B$1&CHAR(10)&ScriptText!$D$1)","v":""},{"$f":"IF(OrigTable!D754=\"\",\"\",TEXT(OrigTable!D754,\"00\"))","v":""},{"$f":"IF(OrigTable!D754=\"\",\"\",ScriptText!$E$1&CHAR(10)&ScriptText!$C$1)","v":""},{"$f":"IF(OrigTable!E754=\"\",\"\",ScriptText!$B$1&CHAR(10)&ScriptText!$D$1)","v":""},{"$f":"IF(OrigTable!E754=\"\",\"\",TEXT(OrigTable!E754,\"00\"))","v":""},{"$f":"IF(OrigTable!E754=\"\",\"\",ScriptText!$E$1&CHAR(10)&ScriptText!$C$1)","v":""},{"$f":"IF(OrigTable!F754=\"\",\"\",ScriptText!$B$1&CHAR(10)&ScriptText!$D$1)","v":""},{"$f":"IF(OrigTable!F754=\"\",\"\",TEXT(OrigTable!F754,\"00\"))","v":""},{"$f":"IF(OrigTable!F754=\"\",\"\",ScriptText!$E$1&CHAR(10)&ScriptText!$C$1)","v":""},{"$f":"IF(OrigTable!G754=\"\",\"\",ScriptText!$B$1&CHAR(10)&ScriptText!$D$1)","v":""},{"$f":"IF(OrigTable!G754=\"\",\"\",TEXT(OrigTable!G754,\"00\"))","v":""},{"$f":"IF(OrigTable!G754=\"\",\"\",ScriptText!$E$1&CHAR(10)&ScriptText!$C$1)","v":""},0]
["\n\n\n",{"$f":"IF(OrigTable!A755=\"\",\"\",ScriptText!$B$1&CHAR(10)&ScriptText!$D$1)","v":""},{"$f":"IF(OrigTable!A755=\"\",\"\",TEXT(OrigTable!A755,\"00\"))","v":""},{"$f":"IF(OrigTable!A755=\"\",\"\",ScriptText!$E$1&CHAR(10)&ScriptText!$C$1)","v":""},{"$f":"IF(OrigTable!B755=\"\",\"\",ScriptText!$B$1&CHAR(10)&ScriptText!$D$1)","v":""},{"$f":"IF(OrigTable!B755=\"\",\"\",TEXT(OrigTable!B755,\"00\"))","v":""},{"$f":"IF(OrigTable!B755=\"\",\"\",ScriptText!$E$1&CHAR(10)&ScriptText!C750)","v":""},{"$f":"IF(OrigTable!C755=\"\",\"\",ScriptText!$B$1&CHAR(10)&ScriptText!$D$1)","v":""},{"$f":"IF(OrigTable!C755=\"\",\"\",IF(LEN(OrigTable!C755)>255,LEFT(OrigTable!C755,250)&\". . .\",OrigTable!C755))","v":""},{"$f":"IF(OrigTable!C755=\"\",\"\",ScriptText!$E$1&CHAR(10)&ScriptText!$C$1)","v":""},{"$f":"IF(OrigTable!D755=\"\",\"\",ScriptText!$B$1&CHAR(10)&ScriptText!$D$1)","v":""},{"$f":"IF(OrigTable!D755=\"\",\"\",TEXT(OrigTable!D755,\"00\"))","v":""},{"$f":"IF(OrigTable!D755=\"\",\"\",ScriptText!$E$1&CHAR(10)&ScriptText!$C$1)","v":""},{"$f":"IF(OrigTable!E755=\"\",\"\",ScriptText!$B$1&CHAR(10)&ScriptText!$D$1)","v":""},{"$f":"IF(OrigTable!E755=\"\",\"\",TEXT(OrigTable!E755,\"00\"))","v":""},{"$f":"IF(OrigTable!E755=\"\",\"\",ScriptText!$E$1&CHAR(10)&ScriptText!$C$1)","v":""},{"$f":"IF(OrigTable!F755=\"\",\"\",ScriptText!$B$1&CHAR(10)&ScriptText!$D$1)","v":""},{"$f":"IF(OrigTable!F755=\"\",\"\",TEXT(OrigTable!F755,\"00\"))","v":""},{"$f":"IF(OrigTable!F755=\"\",\"\",ScriptText!$E$1&CHAR(10)&ScriptText!$C$1)","v":""},{"$f":"IF(OrigTable!G755=\"\",\"\",ScriptText!$B$1&CHAR(10)&ScriptText!$D$1)","v":""},{"$f":"IF(OrigTable!G755=\"\",\"\",TEXT(OrigTable!G755,\"00\"))","v":""},{"$f":"IF(OrigTable!G755=\"\",\"\",ScriptText!$E$1&CHAR(10)&ScriptText!$C$1)","v":""},0]
["\n\n\n",{"$f":"IF(OrigTable!A756=\"\",\"\",ScriptText!$B$1&CHAR(10)&ScriptText!$D$1)","v":""},{"$f":"IF(OrigTable!A756=\"\",\"\",TEXT(OrigTable!A756,\"00\"))","v":""},{"$f":"IF(OrigTable!A756=\"\",\"\",ScriptText!$E$1&CHAR(10)&ScriptText!$C$1)","v":""},{"$f":"IF(OrigTable!B756=\"\",\"\",ScriptText!$B$1&CHAR(10)&ScriptText!$D$1)","v":""},{"$f":"IF(OrigTable!B756=\"\",\"\",TEXT(OrigTable!B756,\"00\"))","v":""},{"$f":"IF(OrigTable!B756=\"\",\"\",ScriptText!$E$1&CHAR(10)&ScriptText!C751)","v":""},{"$f":"IF(OrigTable!C756=\"\",\"\",ScriptText!$B$1&CHAR(10)&ScriptText!$D$1)","v":""},{"$f":"IF(OrigTable!C756=\"\",\"\",IF(LEN(OrigTable!C756)>255,LEFT(OrigTable!C756,250)&\". . .\",OrigTable!C756))","v":""},{"$f":"IF(OrigTable!C756=\"\",\"\",ScriptText!$E$1&CHAR(10)&ScriptText!$C$1)","v":""},{"$f":"IF(OrigTable!D756=\"\",\"\",ScriptText!$B$1&CHAR(10)&ScriptText!$D$1)","v":""},{"$f":"IF(OrigTable!D756=\"\",\"\",TEXT(OrigTable!D756,\"00\"))","v":""},{"$f":"IF(OrigTable!D756=\"\",\"\",ScriptText!$E$1&CHAR(10)&ScriptText!$C$1)","v":""},{"$f":"IF(OrigTable!E756=\"\",\"\",ScriptText!$B$1&CHAR(10)&ScriptText!$D$1)","v":""},{"$f":"IF(OrigTable!E756=\"\",\"\",TEXT(OrigTable!E756,\"00\"))","v":""},{"$f":"IF(OrigTable!E756=\"\",\"\",ScriptText!$E$1&CHAR(10)&ScriptText!$C$1)","v":""},{"$f":"IF(OrigTable!F756=\"\",\"\",ScriptText!$B$1&CHAR(10)&ScriptText!$D$1)","v":""},{"$f":"IF(OrigTable!F756=\"\",\"\",TEXT(OrigTable!F756,\"00\"))","v":""},{"$f":"IF(OrigTable!F756=\"\",\"\",ScriptText!$E$1&CHAR(10)&ScriptText!$C$1)","v":""},{"$f":"IF(OrigTable!G756=\"\",\"\",ScriptText!$B$1&CHAR(10)&ScriptText!$D$1)","v":""},{"$f":"IF(OrigTable!G756=\"\",\"\",TEXT(OrigTable!G756,\"00\"))","v":""},{"$f":"IF(OrigTable!G756=\"\",\"\",ScriptText!$E$1&CHAR(10)&ScriptText!$C$1)","v":""},0]
["\n\n\n",{"$f":"IF(OrigTable!A757=\"\",\"\",ScriptText!$B$1&CHAR(10)&ScriptText!$D$1)","v":""},{"$f":"IF(OrigTable!A757=\"\",\"\",TEXT(OrigTable!A757,\"00\"))","v":""},{"$f":"IF(OrigTable!A757=\"\",\"\",ScriptText!$E$1&CHAR(10)&ScriptText!$C$1)","v":""},{"$f":"IF(OrigTable!B757=\"\",\"\",ScriptText!$B$1&CHAR(10)&ScriptText!$D$1)","v":""},{"$f":"IF(OrigTable!B757=\"\",\"\",TEXT(OrigTable!B757,\"00\"))","v":""},{"$f":"IF(OrigTable!B757=\"\",\"\",ScriptText!$E$1&CHAR(10)&ScriptText!C752)","v":""},{"$f":"IF(OrigTable!C757=\"\",\"\",ScriptText!$B$1&CHAR(10)&ScriptText!$D$1)","v":""},{"$f":"IF(OrigTable!C757=\"\",\"\",IF(LEN(OrigTable!C757)>255,LEFT(OrigTable!C757,250)&\". . .\",OrigTable!C757))","v":""},{"$f":"IF(OrigTable!C757=\"\",\"\",ScriptText!$E$1&CHAR(10)&ScriptText!$C$1)","v":""},{"$f":"IF(OrigTable!D757=\"\",\"\",ScriptText!$B$1&CHAR(10)&ScriptText!$D$1)","v":""},{"$f":"IF(OrigTable!D757=\"\",\"\",TEXT(OrigTable!D757,\"00\"))","v":""},{"$f":"IF(OrigTable!D757=\"\",\"\",ScriptText!$E$1&CHAR(10)&ScriptText!$C$1)","v":""},{"$f":"IF(OrigTable!E757=\"\",\"\",ScriptText!$B$1&CHAR(10)&ScriptText!$D$1)","v":""},{"$f":"IF(OrigTable!E757=\"\",\"\",TEXT(OrigTable!E757,\"00\"))","v":""},{"$f":"IF(OrigTable!E757=\"\",\"\",ScriptText!$E$1&CHAR(10)&ScriptText!$C$1)","v":""},{"$f":"IF(OrigTable!F757=\"\",\"\",ScriptText!$B$1&CHAR(10)&ScriptText!$D$1)","v":""},{"$f":"IF(OrigTable!F757=\"\",\"\",TEXT(OrigTable!F757,\"00\"))","v":""},{"$f":"IF(OrigTable!F757=\"\",\"\",ScriptText!$E$1&CHAR(10)&ScriptText!$C$1)","v":""},{"$f":"IF(OrigTable!G757=\"\",\"\",ScriptText!$B$1&CHAR(10)&ScriptText!$D$1)","v":""},{"$f":"IF(OrigTable!G757=\"\",\"\",TEXT(OrigTable!G757,\"00\"))","v":""},{"$f":"IF(OrigTable!G757=\"\",\"\",ScriptText!$E$1&CHAR(10)&ScriptText!$C$1)","v":""},0]
["\n\n\n",{"$f":"IF(OrigTable!A758=\"\",\"\",ScriptText!$B$1&CHAR(10)&ScriptText!$D$1)","v":""},{"$f":"IF(OrigTable!A758=\"\",\"\",TEXT(OrigTable!A758,\"00\"))","v":""},{"$f":"IF(OrigTable!A758=\"\",\"\",ScriptText!$E$1&CHAR(10)&ScriptText!$C$1)","v":""},{"$f":"IF(OrigTable!B758=\"\",\"\",ScriptText!$B$1&CHAR(10)&ScriptText!$D$1)","v":""},{"$f":"IF(OrigTable!B758=\"\",\"\",TEXT(OrigTable!B758,\"00\"))","v":""},{"$f":"IF(OrigTable!B758=\"\",\"\",ScriptText!$E$1&CHAR(10)&ScriptText!C753)","v":""},{"$f":"IF(OrigTable!C758=\"\",\"\",ScriptText!$B$1&CHAR(10)&ScriptText!$D$1)","v":""},{"$f":"IF(OrigTable!C758=\"\",\"\",IF(LEN(OrigTable!C758)>255,LEFT(OrigTable!C758,250)&\". . .\",OrigTable!C758))","v":""},{"$f":"IF(OrigTable!C758=\"\",\"\",ScriptText!$E$1&CHAR(10)&ScriptText!$C$1)","v":""},{"$f":"IF(OrigTable!D758=\"\",\"\",ScriptText!$B$1&CHAR(10)&ScriptText!$D$1)","v":""},{"$f":"IF(OrigTable!D758=\"\",\"\",TEXT(OrigTable!D758,\"00\"))","v":""},{"$f":"IF(OrigTable!D758=\"\",\"\",ScriptText!$E$1&CHAR(10)&ScriptText!$C$1)","v":""},{"$f":"IF(OrigTable!E758=\"\",\"\",ScriptText!$B$1&CHAR(10)&ScriptText!$D$1)","v":""},{"$f":"IF(OrigTable!E758=\"\",\"\",TEXT(OrigTable!E758,\"00\"))","v":""},{"$f":"IF(OrigTable!E758=\"\",\"\",ScriptText!$E$1&CHAR(10)&ScriptText!$C$1)","v":""},{"$f":"IF(OrigTable!F758=\"\",\"\",ScriptText!$B$1&CHAR(10)&ScriptText!$D$1)","v":""},{"$f":"IF(OrigTable!F758=\"\",\"\",TEXT(OrigTable!F758,\"00\"))","v":""},{"$f":"IF(OrigTable!F758=\"\",\"\",ScriptText!$E$1&CHAR(10)&ScriptText!$C$1)","v":""},{"$f":"IF(OrigTable!G758=\"\",\"\",ScriptText!$B$1&CHAR(10)&ScriptText!$D$1)","v":""},{"$f":"IF(OrigTable!G758=\"\",\"\",TEXT(OrigTable!G758,\"00\"))","v":""},{"$f":"IF(OrigTable!G758=\"\",\"\",ScriptText!$E$1&CHAR(10)&ScriptText!$C$1)","v":""},0]
["\n\n\n",{"$f":"IF(OrigTable!A759=\"\",\"\",ScriptText!$B$1&CHAR(10)&ScriptText!$D$1)","v":""},{"$f":"IF(OrigTable!A759=\"\",\"\",TEXT(OrigTable!A759,\"00\"))","v":""},{"$f":"IF(OrigTable!A759=\"\",\"\",ScriptText!$E$1&CHAR(10)&ScriptText!$C$1)","v":""},{"$f":"IF(OrigTable!B759=\"\",\"\",ScriptText!$B$1&CHAR(10)&ScriptText!$D$1)","v":""},{"$f":"IF(OrigTable!B759=\"\",\"\",TEXT(OrigTable!B759,\"00\"))","v":""},{"$f":"IF(OrigTable!B759=\"\",\"\",ScriptText!$E$1&CHAR(10)&ScriptText!C754)","v":""},{"$f":"IF(OrigTable!C759=\"\",\"\",ScriptText!$B$1&CHAR(10)&ScriptText!$D$1)","v":""},{"$f":"IF(OrigTable!C759=\"\",\"\",IF(LEN(OrigTable!C759)>255,LEFT(OrigTable!C759,250)&\". . .\",OrigTable!C759))","v":""},{"$f":"IF(OrigTable!C759=\"\",\"\",ScriptText!$E$1&CHAR(10)&ScriptText!$C$1)","v":""},{"$f":"IF(OrigTable!D759=\"\",\"\",ScriptText!$B$1&CHAR(10)&ScriptText!$D$1)","v":""},{"$f":"IF(OrigTable!D759=\"\",\"\",TEXT(OrigTable!D759,\"00\"))","v":""},{"$f":"IF(OrigTable!D759=\"\",\"\",ScriptText!$E$1&CHAR(10)&ScriptText!$C$1)","v":""},{"$f":"IF(OrigTable!E759=\"\",\"\",ScriptText!$B$1&CHAR(10)&ScriptText!$D$1)","v":""},{"$f":"IF(OrigTable!E759=\"\",\"\",TEXT(OrigTable!E759,\"00\"))","v":""},{"$f":"IF(OrigTable!E759=\"\",\"\",ScriptText!$E$1&CHAR(10)&ScriptText!$C$1)","v":""},{"$f":"IF(OrigTable!F759=\"\",\"\",ScriptText!$B$1&CHAR(10)&ScriptText!$D$1)","v":""},{"$f":"IF(OrigTable!F759=\"\",\"\",TEXT(OrigTable!F759,\"00\"))","v":""},{"$f":"IF(OrigTable!F759=\"\",\"\",ScriptText!$E$1&CHAR(10)&ScriptText!$C$1)","v":""},{"$f":"IF(OrigTable!G759=\"\",\"\",ScriptText!$B$1&CHAR(10)&ScriptText!$D$1)","v":""},{"$f":"IF(OrigTable!G759=\"\",\"\",TEXT(OrigTable!G759,\"00\"))","v":""},{"$f":"IF(OrigTable!G759=\"\",\"\",ScriptText!$E$1&CHAR(10)&ScriptText!$C$1)","v":""},0]
["\n\n\n",{"$f":"IF(OrigTable!A760=\"\",\"\",ScriptText!$B$1&CHAR(10)&ScriptText!$D$1)","v":""},{"$f":"IF(OrigTable!A760=\"\",\"\",TEXT(OrigTable!A760,\"00\"))","v":""},{"$f":"IF(OrigTable!A760=\"\",\"\",ScriptText!$E$1&CHAR(10)&ScriptText!$C$1)","v":""},{"$f":"IF(OrigTable!B760=\"\",\"\",ScriptText!$B$1&CHAR(10)&ScriptText!$D$1)","v":""},{"$f":"IF(OrigTable!B760=\"\",\"\",TEXT(OrigTable!B760,\"00\"))","v":""},{"$f":"IF(OrigTable!B760=\"\",\"\",ScriptText!$E$1&CHAR(10)&ScriptText!C755)","v":""},{"$f":"IF(OrigTable!C760=\"\",\"\",ScriptText!$B$1&CHAR(10)&ScriptText!$D$1)","v":""},{"$f":"IF(OrigTable!C760=\"\",\"\",IF(LEN(OrigTable!C760)>255,LEFT(OrigTable!C760,250)&\". . .\",OrigTable!C760))","v":""},{"$f":"IF(OrigTable!C760=\"\",\"\",ScriptText!$E$1&CHAR(10)&ScriptText!$C$1)","v":""},{"$f":"IF(OrigTable!D760=\"\",\"\",ScriptText!$B$1&CHAR(10)&ScriptText!$D$1)","v":""},{"$f":"IF(OrigTable!D760=\"\",\"\",TEXT(OrigTable!D760,\"00\"))","v":""},{"$f":"IF(OrigTable!D760=\"\",\"\",ScriptText!$E$1&CHAR(10)&ScriptText!$C$1)","v":""},{"$f":"IF(OrigTable!E760=\"\",\"\",ScriptText!$B$1&CHAR(10)&ScriptText!$D$1)","v":""},{"$f":"IF(OrigTable!E760=\"\",\"\",TEXT(OrigTable!E760,\"00\"))","v":""},{"$f":"IF(OrigTable!E760=\"\",\"\",ScriptText!$E$1&CHAR(10)&ScriptText!$C$1)","v":""},{"$f":"IF(OrigTable!F760=\"\",\"\",ScriptText!$B$1&CHAR(10)&ScriptText!$D$1)","v":""},{"$f":"IF(OrigTable!F760=\"\",\"\",TEXT(OrigTable!F760,\"00\"))","v":""},{"$f":"IF(OrigTable!F760=\"\",\"\",ScriptText!$E$1&CHAR(10)&ScriptText!$C$1)","v":""},{"$f":"IF(OrigTable!G760=\"\",\"\",ScriptText!$B$1&CHAR(10)&ScriptText!$D$1)","v":""},{"$f":"IF(OrigTable!G760=\"\",\"\",TEXT(OrigTable!G760,\"00\"))","v":""},{"$f":"IF(OrigTable!G760=\"\",\"\",ScriptText!$E$1&CHAR(10)&ScriptText!$C$1)","v":""},0]
["\n\n\n",{"$f":"IF(OrigTable!A761=\"\",\"\",ScriptText!$B$1&CHAR(10)&ScriptText!$D$1)","v":""},{"$f":"IF(OrigTable!A761=\"\",\"\",TEXT(OrigTable!A761,\"00\"))","v":""},{"$f":"IF(OrigTable!A761=\"\",\"\",ScriptText!$E$1&CHAR(10)&ScriptText!$C$1)","v":""},{"$f":"IF(OrigTable!B761=\"\",\"\",ScriptText!$B$1&CHAR(10)&ScriptText!$D$1)","v":""},{"$f":"IF(OrigTable!B761=\"\",\"\",TEXT(OrigTable!B761,\"00\"))","v":""},{"$f":"IF(OrigTable!B761=\"\",\"\",ScriptText!$E$1&CHAR(10)&ScriptText!C756)","v":""},{"$f":"IF(OrigTable!C761=\"\",\"\",ScriptText!$B$1&CHAR(10)&ScriptText!$D$1)","v":""},{"$f":"IF(OrigTable!C761=\"\",\"\",IF(LEN(OrigTable!C761)>255,LEFT(OrigTable!C761,250)&\". . .\",OrigTable!C761))","v":""},{"$f":"IF(OrigTable!C761=\"\",\"\",ScriptText!$E$1&CHAR(10)&ScriptText!$C$1)","v":""},{"$f":"IF(OrigTable!D761=\"\",\"\",ScriptText!$B$1&CHAR(10)&ScriptText!$D$1)","v":""},{"$f":"IF(OrigTable!D761=\"\",\"\",TEXT(OrigTable!D761,\"00\"))","v":""},{"$f":"IF(OrigTable!D761=\"\",\"\",ScriptText!$E$1&CHAR(10)&ScriptText!$C$1)","v":""},{"$f":"IF(OrigTable!E761=\"\",\"\",ScriptText!$B$1&CHAR(10)&ScriptText!$D$1)","v":""},{"$f":"IF(OrigTable!E761=\"\",\"\",TEXT(OrigTable!E761,\"00\"))","v":""},{"$f":"IF(OrigTable!E761=\"\",\"\",ScriptText!$E$1&CHAR(10)&ScriptText!$C$1)","v":""},{"$f":"IF(OrigTable!F761=\"\",\"\",ScriptText!$B$1&CHAR(10)&ScriptText!$D$1)","v":""},{"$f":"IF(OrigTable!F761=\"\",\"\",TEXT(OrigTable!F761,\"00\"))","v":""},{"$f":"IF(OrigTable!F761=\"\",\"\",ScriptText!$E$1&CHAR(10)&ScriptText!$C$1)","v":""},{"$f":"IF(OrigTable!G761=\"\",\"\",ScriptText!$B$1&CHAR(10)&ScriptText!$D$1)","v":""},{"$f":"IF(OrigTable!G761=\"\",\"\",TEXT(OrigTable!G761,\"00\"))","v":""},{"$f":"IF(OrigTable!G761=\"\",\"\",ScriptText!$E$1&CHAR(10)&ScriptText!$C$1)","v":""},0]
["\n\n\n",{"$f":"IF(OrigTable!A762=\"\",\"\",ScriptText!$B$1&CHAR(10)&ScriptText!$D$1)","v":""},{"$f":"IF(OrigTable!A762=\"\",\"\",TEXT(OrigTable!A762,\"00\"))","v":""},{"$f":"IF(OrigTable!A762=\"\",\"\",ScriptText!$E$1&CHAR(10)&ScriptText!$C$1)","v":""},{"$f":"IF(OrigTable!B762=\"\",\"\",ScriptText!$B$1&CHAR(10)&ScriptText!$D$1)","v":""},{"$f":"IF(OrigTable!B762=\"\",\"\",TEXT(OrigTable!B762,\"00\"))","v":""},{"$f":"IF(OrigTable!B762=\"\",\"\",ScriptText!$E$1&CHAR(10)&ScriptText!C757)","v":""},{"$f":"IF(OrigTable!C762=\"\",\"\",ScriptText!$B$1&CHAR(10)&ScriptText!$D$1)","v":""},{"$f":"IF(OrigTable!C762=\"\",\"\",IF(LEN(OrigTable!C762)>255,LEFT(OrigTable!C762,250)&\". . .\",OrigTable!C762))","v":""},{"$f":"IF(OrigTable!C762=\"\",\"\",ScriptText!$E$1&CHAR(10)&ScriptText!$C$1)","v":""},{"$f":"IF(OrigTable!D762=\"\",\"\",ScriptText!$B$1&CHAR(10)&ScriptText!$D$1)","v":""},{"$f":"IF(OrigTable!D762=\"\",\"\",TEXT(OrigTable!D762,\"00\"))","v":""},{"$f":"IF(OrigTable!D762=\"\",\"\",ScriptText!$E$1&CHAR(10)&ScriptText!$C$1)","v":""},{"$f":"IF(OrigTable!E762=\"\",\"\",ScriptText!$B$1&CHAR(10)&ScriptText!$D$1)","v":""},{"$f":"IF(OrigTable!E762=\"\",\"\",TEXT(OrigTable!E762,\"00\"))","v":""},{"$f":"IF(OrigTable!E762=\"\",\"\",ScriptText!$E$1&CHAR(10)&ScriptText!$C$1)","v":""},{"$f":"IF(OrigTable!F762=\"\",\"\",ScriptText!$B$1&CHAR(10)&ScriptText!$D$1)","v":""},{"$f":"IF(OrigTable!F762=\"\",\"\",TEXT(OrigTable!F762,\"00\"))","v":""},{"$f":"IF(OrigTable!F762=\"\",\"\",ScriptText!$E$1&CHAR(10)&ScriptText!$C$1)","v":""},{"$f":"IF(OrigTable!G762=\"\",\"\",ScriptText!$B$1&CHAR(10)&ScriptText!$D$1)","v":""},{"$f":"IF(OrigTable!G762=\"\",\"\",TEXT(OrigTable!G762,\"00\"))","v":""},{"$f":"IF(OrigTable!G762=\"\",\"\",ScriptText!$E$1&CHAR(10)&ScriptText!$C$1)","v":""},0]
["\n\n\n",{"$f":"IF(OrigTable!A763=\"\",\"\",ScriptText!$B$1&CHAR(10)&ScriptText!$D$1)","v":""},{"$f":"IF(OrigTable!A763=\"\",\"\",TEXT(OrigTable!A763,\"00\"))","v":""},{"$f":"IF(OrigTable!A763=\"\",\"\",ScriptText!$E$1&CHAR(10)&ScriptText!$C$1)","v":""},{"$f":"IF(OrigTable!B763=\"\",\"\",ScriptText!$B$1&CHAR(10)&ScriptText!$D$1)","v":""},{"$f":"IF(OrigTable!B763=\"\",\"\",TEXT(OrigTable!B763,\"00\"))","v":""},{"$f":"IF(OrigTable!B763=\"\",\"\",ScriptText!$E$1&CHAR(10)&ScriptText!C758)","v":""},{"$f":"IF(OrigTable!C763=\"\",\"\",ScriptText!$B$1&CHAR(10)&ScriptText!$D$1)","v":""},{"$f":"IF(OrigTable!C763=\"\",\"\",IF(LEN(OrigTable!C763)>255,LEFT(OrigTable!C763,250)&\". . .\",OrigTable!C763))","v":""},{"$f":"IF(OrigTable!C763=\"\",\"\",ScriptText!$E$1&CHAR(10)&ScriptText!$C$1)","v":""},{"$f":"IF(OrigTable!D763=\"\",\"\",ScriptText!$B$1&CHAR(10)&ScriptText!$D$1)","v":""},{"$f":"IF(OrigTable!D763=\"\",\"\",TEXT(OrigTable!D763,\"00\"))","v":""},{"$f":"IF(OrigTable!D763=\"\",\"\",ScriptText!$E$1&CHAR(10)&ScriptText!$C$1)","v":""},{"$f":"IF(OrigTable!E763=\"\",\"\",ScriptText!$B$1&CHAR(10)&ScriptText!$D$1)","v":""},{"$f":"IF(OrigTable!E763=\"\",\"\",TEXT(OrigTable!E763,\"00\"))","v":""},{"$f":"IF(OrigTable!E763=\"\",\"\",ScriptText!$E$1&CHAR(10)&ScriptText!$C$1)","v":""},{"$f":"IF(OrigTable!F763=\"\",\"\",ScriptText!$B$1&CHAR(10)&ScriptText!$D$1)","v":""},{"$f":"IF(OrigTable!F763=\"\",\"\",TEXT(OrigTable!F763,\"00\"))","v":""},{"$f":"IF(OrigTable!F763=\"\",\"\",ScriptText!$E$1&CHAR(10)&ScriptText!$C$1)","v":""},{"$f":"IF(OrigTable!G763=\"\",\"\",ScriptText!$B$1&CHAR(10)&ScriptText!$D$1)","v":""},{"$f":"IF(OrigTable!G763=\"\",\"\",TEXT(OrigTable!G763,\"00\"))","v":""},{"$f":"IF(OrigTable!G763=\"\",\"\",ScriptText!$E$1&CHAR(10)&ScriptText!$C$1)","v":""},0]
["\n\n\n",{"$f":"IF(OrigTable!A764=\"\",\"\",ScriptText!$B$1&CHAR(10)&ScriptText!$D$1)","v":""},{"$f":"IF(OrigTable!A764=\"\",\"\",TEXT(OrigTable!A764,\"00\"))","v":""},{"$f":"IF(OrigTable!A764=\"\",\"\",ScriptText!$E$1&CHAR(10)&ScriptText!$C$1)","v":""},{"$f":"IF(OrigTable!B764=\"\",\"\",ScriptText!$B$1&CHAR(10)&ScriptText!$D$1)","v":""},{"$f":"IF(OrigTable!B764=\"\",\"\",TEXT(OrigTable!B764,\"00\"))","v":""},{"$f":"IF(OrigTable!B764=\"\",\"\",ScriptText!$E$1&CHAR(10)&ScriptText!C759)","v":""},{"$f":"IF(OrigTable!C764=\"\",\"\",ScriptText!$B$1&CHAR(10)&ScriptText!$D$1)","v":""},{"$f":"IF(OrigTable!C764=\"\",\"\",IF(LEN(OrigTable!C764)>255,LEFT(OrigTable!C764,250)&\". . .\",OrigTable!C764))","v":""},{"$f":"IF(OrigTable!C764=\"\",\"\",ScriptText!$E$1&CHAR(10)&ScriptText!$C$1)","v":""},{"$f":"IF(OrigTable!D764=\"\",\"\",ScriptText!$B$1&CHAR(10)&ScriptText!$D$1)","v":""},{"$f":"IF(OrigTable!D764=\"\",\"\",TEXT(OrigTable!D764,\"00\"))","v":""},{"$f":"IF(OrigTable!D764=\"\",\"\",ScriptText!$E$1&CHAR(10)&ScriptText!$C$1)","v":""},{"$f":"IF(OrigTable!E764=\"\",\"\",ScriptText!$B$1&CHAR(10)&ScriptText!$D$1)","v":""},{"$f":"IF(OrigTable!E764=\"\",\"\",TEXT(OrigTable!E764,\"00\"))","v":""},{"$f":"IF(OrigTable!E764=\"\",\"\",ScriptText!$E$1&CHAR(10)&ScriptText!$C$1)","v":""},{"$f":"IF(OrigTable!F764=\"\",\"\",ScriptText!$B$1&CHAR(10)&ScriptText!$D$1)","v":""},{"$f":"IF(OrigTable!F764=\"\",\"\",TEXT(OrigTable!F764,\"00\"))","v":""},{"$f":"IF(OrigTable!F764=\"\",\"\",ScriptText!$E$1&CHAR(10)&ScriptText!$C$1)","v":""},{"$f":"IF(OrigTable!G764=\"\",\"\",ScriptText!$B$1&CHAR(10)&ScriptText!$D$1)","v":""},{"$f":"IF(OrigTable!G764=\"\",\"\",TEXT(OrigTable!G764,\"00\"))","v":""},{"$f":"IF(OrigTable!G764=\"\",\"\",ScriptText!$E$1&CHAR(10)&ScriptText!$C$1)","v":""},0]
["\n\n\n",{"$f":"IF(OrigTable!A765=\"\",\"\",ScriptText!$B$1&CHAR(10)&ScriptText!$D$1)","v":""},{"$f":"IF(OrigTable!A765=\"\",\"\",TEXT(OrigTable!A765,\"00\"))","v":""},{"$f":"IF(OrigTable!A765=\"\",\"\",ScriptText!$E$1&CHAR(10)&ScriptText!$C$1)","v":""},{"$f":"IF(OrigTable!B765=\"\",\"\",ScriptText!$B$1&CHAR(10)&ScriptText!$D$1)","v":""},{"$f":"IF(OrigTable!B765=\"\",\"\",TEXT(OrigTable!B765,\"00\"))","v":""},{"$f":"IF(OrigTable!B765=\"\",\"\",ScriptText!$E$1&CHAR(10)&ScriptText!C760)","v":""},{"$f":"IF(OrigTable!C765=\"\",\"\",ScriptText!$B$1&CHAR(10)&ScriptText!$D$1)","v":""},{"$f":"IF(OrigTable!C765=\"\",\"\",IF(LEN(OrigTable!C765)>255,LEFT(OrigTable!C765,250)&\". . .\",OrigTable!C765))","v":""},{"$f":"IF(OrigTable!C765=\"\",\"\",ScriptText!$E$1&CHAR(10)&ScriptText!$C$1)","v":""},{"$f":"IF(OrigTable!D765=\"\",\"\",ScriptText!$B$1&CHAR(10)&ScriptText!$D$1)","v":""},{"$f":"IF(OrigTable!D765=\"\",\"\",TEXT(OrigTable!D765,\"00\"))","v":""},{"$f":"IF(OrigTable!D765=\"\",\"\",ScriptText!$E$1&CHAR(10)&ScriptText!$C$1)","v":""},{"$f":"IF(OrigTable!E765=\"\",\"\",ScriptText!$B$1&CHAR(10)&ScriptText!$D$1)","v":""},{"$f":"IF(OrigTable!E765=\"\",\"\",TEXT(OrigTable!E765,\"00\"))","v":""},{"$f":"IF(OrigTable!E765=\"\",\"\",ScriptText!$E$1&CHAR(10)&ScriptText!$C$1)","v":""},{"$f":"IF(OrigTable!F765=\"\",\"\",ScriptText!$B$1&CHAR(10)&ScriptText!$D$1)","v":""},{"$f":"IF(OrigTable!F765=\"\",\"\",TEXT(OrigTable!F765,\"00\"))","v":""},{"$f":"IF(OrigTable!F765=\"\",\"\",ScriptText!$E$1&CHAR(10)&ScriptText!$C$1)","v":""},{"$f":"IF(OrigTable!G765=\"\",\"\",ScriptText!$B$1&CHAR(10)&ScriptText!$D$1)","v":""},{"$f":"IF(OrigTable!G765=\"\",\"\",TEXT(OrigTable!G765,\"00\"))","v":""},{"$f":"IF(OrigTable!G765=\"\",\"\",ScriptText!$E$1&CHAR(10)&ScriptText!$C$1)","v":""},0]
["\n\n\n",{"$f":"IF(OrigTable!A766=\"\",\"\",ScriptText!$B$1&CHAR(10)&ScriptText!$D$1)","v":""},{"$f":"IF(OrigTable!A766=\"\",\"\",TEXT(OrigTable!A766,\"00\"))","v":""},{"$f":"IF(OrigTable!A766=\"\",\"\",ScriptText!$E$1&CHAR(10)&ScriptText!$C$1)","v":""},{"$f":"IF(OrigTable!B766=\"\",\"\",ScriptText!$B$1&CHAR(10)&ScriptText!$D$1)","v":""},{"$f":"IF(OrigTable!B766=\"\",\"\",TEXT(OrigTable!B766,\"00\"))","v":""},{"$f":"IF(OrigTable!B766=\"\",\"\",ScriptText!$E$1&CHAR(10)&ScriptText!C761)","v":""},{"$f":"IF(OrigTable!C766=\"\",\"\",ScriptText!$B$1&CHAR(10)&ScriptText!$D$1)","v":""},{"$f":"IF(OrigTable!C766=\"\",\"\",IF(LEN(OrigTable!C766)>255,LEFT(OrigTable!C766,250)&\". . .\",OrigTable!C766))","v":""},{"$f":"IF(OrigTable!C766=\"\",\"\",ScriptText!$E$1&CHAR(10)&ScriptText!$C$1)","v":""},{"$f":"IF(OrigTable!D766=\"\",\"\",ScriptText!$B$1&CHAR(10)&ScriptText!$D$1)","v":""},{"$f":"IF(OrigTable!D766=\"\",\"\",TEXT(OrigTable!D766,\"00\"))","v":""},{"$f":"IF(OrigTable!D766=\"\",\"\",ScriptText!$E$1&CHAR(10)&ScriptText!$C$1)","v":""},{"$f":"IF(OrigTable!E766=\"\",\"\",ScriptText!$B$1&CHAR(10)&ScriptText!$D$1)","v":""},{"$f":"IF(OrigTable!E766=\"\",\"\",TEXT(OrigTable!E766,\"00\"))","v":""},{"$f":"IF(OrigTable!E766=\"\",\"\",ScriptText!$E$1&CHAR(10)&ScriptText!$C$1)","v":""},{"$f":"IF(OrigTable!F766=\"\",\"\",ScriptText!$B$1&CHAR(10)&ScriptText!$D$1)","v":""},{"$f":"IF(OrigTable!F766=\"\",\"\",TEXT(OrigTable!F766,\"00\"))","v":""},{"$f":"IF(OrigTable!F766=\"\",\"\",ScriptText!$E$1&CHAR(10)&ScriptText!$C$1)","v":""},{"$f":"IF(OrigTable!G766=\"\",\"\",ScriptText!$B$1&CHAR(10)&ScriptText!$D$1)","v":""},{"$f":"IF(OrigTable!G766=\"\",\"\",TEXT(OrigTable!G766,\"00\"))","v":""},{"$f":"IF(OrigTable!G766=\"\",\"\",ScriptText!$E$1&CHAR(10)&ScriptText!$C$1)","v":""},0]
["\n\n\n",{"$f":"IF(OrigTable!A767=\"\",\"\",ScriptText!$B$1&CHAR(10)&ScriptText!$D$1)","v":""},{"$f":"IF(OrigTable!A767=\"\",\"\",TEXT(OrigTable!A767,\"00\"))","v":""},{"$f":"IF(OrigTable!A767=\"\",\"\",ScriptText!$E$1&CHAR(10)&ScriptText!$C$1)","v":""},{"$f":"IF(OrigTable!B767=\"\",\"\",ScriptText!$B$1&CHAR(10)&ScriptText!$D$1)","v":""},{"$f":"IF(OrigTable!B767=\"\",\"\",TEXT(OrigTable!B767,\"00\"))","v":""},{"$f":"IF(OrigTable!B767=\"\",\"\",ScriptText!$E$1&CHAR(10)&ScriptText!C762)","v":""},{"$f":"IF(OrigTable!C767=\"\",\"\",ScriptText!$B$1&CHAR(10)&ScriptText!$D$1)","v":""},{"$f":"IF(OrigTable!C767=\"\",\"\",IF(LEN(OrigTable!C767)>255,LEFT(OrigTable!C767,250)&\". . .\",OrigTable!C767))","v":""},{"$f":"IF(OrigTable!C767=\"\",\"\",ScriptText!$E$1&CHAR(10)&ScriptText!$C$1)","v":""},{"$f":"IF(OrigTable!D767=\"\",\"\",ScriptText!$B$1&CHAR(10)&ScriptText!$D$1)","v":""},{"$f":"IF(OrigTable!D767=\"\",\"\",TEXT(OrigTable!D767,\"00\"))","v":""},{"$f":"IF(OrigTable!D767=\"\",\"\",ScriptText!$E$1&CHAR(10)&ScriptText!$C$1)","v":""},{"$f":"IF(OrigTable!E767=\"\",\"\",ScriptText!$B$1&CHAR(10)&ScriptText!$D$1)","v":""},{"$f":"IF(OrigTable!E767=\"\",\"\",TEXT(OrigTable!E767,\"00\"))","v":""},{"$f":"IF(OrigTable!E767=\"\",\"\",ScriptText!$E$1&CHAR(10)&ScriptText!$C$1)","v":""},{"$f":"IF(OrigTable!F767=\"\",\"\",ScriptText!$B$1&CHAR(10)&ScriptText!$D$1)","v":""},{"$f":"IF(OrigTable!F767=\"\",\"\",TEXT(OrigTable!F767,\"00\"))","v":""},{"$f":"IF(OrigTable!F767=\"\",\"\",ScriptText!$E$1&CHAR(10)&ScriptText!$C$1)","v":""},{"$f":"IF(OrigTable!G767=\"\",\"\",ScriptText!$B$1&CHAR(10)&ScriptText!$D$1)","v":""},{"$f":"IF(OrigTable!G767=\"\",\"\",TEXT(OrigTable!G767,\"00\"))","v":""},{"$f":"IF(OrigTable!G767=\"\",\"\",ScriptText!$E$1&CHAR(10)&ScriptText!$C$1)","v":""},0]
["\n\n\n",{"$f":"IF(OrigTable!A768=\"\",\"\",ScriptText!$B$1&CHAR(10)&ScriptText!$D$1)","v":""},{"$f":"IF(OrigTable!A768=\"\",\"\",TEXT(OrigTable!A768,\"00\"))","v":""},{"$f":"IF(OrigTable!A768=\"\",\"\",ScriptText!$E$1&CHAR(10)&ScriptText!$C$1)","v":""},{"$f":"IF(OrigTable!B768=\"\",\"\",ScriptText!$B$1&CHAR(10)&ScriptText!$D$1)","v":""},{"$f":"IF(OrigTable!B768=\"\",\"\",TEXT(OrigTable!B768,\"00\"))","v":""},{"$f":"IF(OrigTable!B768=\"\",\"\",ScriptText!$E$1&CHAR(10)&ScriptText!C763)","v":""},{"$f":"IF(OrigTable!C768=\"\",\"\",ScriptText!$B$1&CHAR(10)&ScriptText!$D$1)","v":""},{"$f":"IF(OrigTable!C768=\"\",\"\",IF(LEN(OrigTable!C768)>255,LEFT(OrigTable!C768,250)&\". . .\",OrigTable!C768))","v":""},{"$f":"IF(OrigTable!C768=\"\",\"\",ScriptText!$E$1&CHAR(10)&ScriptText!$C$1)","v":""},{"$f":"IF(OrigTable!D768=\"\",\"\",ScriptText!$B$1&CHAR(10)&ScriptText!$D$1)","v":""},{"$f":"IF(OrigTable!D768=\"\",\"\",TEXT(OrigTable!D768,\"00\"))","v":""},{"$f":"IF(OrigTable!D768=\"\",\"\",ScriptText!$E$1&CHAR(10)&ScriptText!$C$1)","v":""},{"$f":"IF(OrigTable!E768=\"\",\"\",ScriptText!$B$1&CHAR(10)&ScriptText!$D$1)","v":""},{"$f":"IF(OrigTable!E768=\"\",\"\",TEXT(OrigTable!E768,\"00\"))","v":""},{"$f":"IF(OrigTable!E768=\"\",\"\",ScriptText!$E$1&CHAR(10)&ScriptText!$C$1)","v":""},{"$f":"IF(OrigTable!F768=\"\",\"\",ScriptText!$B$1&CHAR(10)&ScriptText!$D$1)","v":""},{"$f":"IF(OrigTable!F768=\"\",\"\",TEXT(OrigTable!F768,\"00\"))","v":""},{"$f":"IF(OrigTable!F768=\"\",\"\",ScriptText!$E$1&CHAR(10)&ScriptText!$C$1)","v":""},{"$f":"IF(OrigTable!G768=\"\",\"\",ScriptText!$B$1&CHAR(10)&ScriptText!$D$1)","v":""},{"$f":"IF(OrigTable!G768=\"\",\"\",TEXT(OrigTable!G768,\"00\"))","v":""},{"$f":"IF(OrigTable!G768=\"\",\"\",ScriptText!$E$1&CHAR(10)&ScriptText!$C$1)","v":""},0]
["\n\n\n",{"$f":"IF(OrigTable!A769=\"\",\"\",ScriptText!$B$1&CHAR(10)&ScriptText!$D$1)","v":""},{"$f":"IF(OrigTable!A769=\"\",\"\",TEXT(OrigTable!A769,\"00\"))","v":""},{"$f":"IF(OrigTable!A769=\"\",\"\",ScriptText!$E$1&CHAR(10)&ScriptText!$C$1)","v":""},{"$f":"IF(OrigTable!B769=\"\",\"\",ScriptText!$B$1&CHAR(10)&ScriptText!$D$1)","v":""},{"$f":"IF(OrigTable!B769=\"\",\"\",TEXT(OrigTable!B769,\"00\"))","v":""},{"$f":"IF(OrigTable!B769=\"\",\"\",ScriptText!$E$1&CHAR(10)&ScriptText!C764)","v":""},{"$f":"IF(OrigTable!C769=\"\",\"\",ScriptText!$B$1&CHAR(10)&ScriptText!$D$1)","v":""},{"$f":"IF(OrigTable!C769=\"\",\"\",IF(LEN(OrigTable!C769)>255,LEFT(OrigTable!C769,250)&\". . .\",OrigTable!C769))","v":""},{"$f":"IF(OrigTable!C769=\"\",\"\",ScriptText!$E$1&CHAR(10)&ScriptText!$C$1)","v":""},{"$f":"IF(OrigTable!D769=\"\",\"\",ScriptText!$B$1&CHAR(10)&ScriptText!$D$1)","v":""},{"$f":"IF(OrigTable!D769=\"\",\"\",TEXT(OrigTable!D769,\"00\"))","v":""},{"$f":"IF(OrigTable!D769=\"\",\"\",ScriptText!$E$1&CHAR(10)&ScriptText!$C$1)","v":""},{"$f":"IF(OrigTable!E769=\"\",\"\",ScriptText!$B$1&CHAR(10)&ScriptText!$D$1)","v":""},{"$f":"IF(OrigTable!E769=\"\",\"\",TEXT(OrigTable!E769,\"00\"))","v":""},{"$f":"IF(OrigTable!E769=\"\",\"\",ScriptText!$E$1&CHAR(10)&ScriptText!$C$1)","v":""},{"$f":"IF(OrigTable!F769=\"\",\"\",ScriptText!$B$1&CHAR(10)&ScriptText!$D$1)","v":""},{"$f":"IF(OrigTable!F769=\"\",\"\",TEXT(OrigTable!F769,\"00\"))","v":""},{"$f":"IF(OrigTable!F769=\"\",\"\",ScriptText!$E$1&CHAR(10)&ScriptText!$C$1)","v":""},{"$f":"IF(OrigTable!G769=\"\",\"\",ScriptText!$B$1&CHAR(10)&ScriptText!$D$1)","v":""},{"$f":"IF(OrigTable!G769=\"\",\"\",TEXT(OrigTable!G769,\"00\"))","v":""},{"$f":"IF(OrigTable!G769=\"\",\"\",ScriptText!$E$1&CHAR(10)&ScriptText!$C$1)","v":""},0]
["\n\n\n",{"$f":"IF(OrigTable!A770=\"\",\"\",ScriptText!$B$1&CHAR(10)&ScriptText!$D$1)","v":""},{"$f":"IF(OrigTable!A770=\"\",\"\",TEXT(OrigTable!A770,\"00\"))","v":""},{"$f":"IF(OrigTable!A770=\"\",\"\",ScriptText!$E$1&CHAR(10)&ScriptText!$C$1)","v":""},{"$f":"IF(OrigTable!B770=\"\",\"\",ScriptText!$B$1&CHAR(10)&ScriptText!$D$1)","v":""},{"$f":"IF(OrigTable!B770=\"\",\"\",TEXT(OrigTable!B770,\"00\"))","v":""},{"$f":"IF(OrigTable!B770=\"\",\"\",ScriptText!$E$1&CHAR(10)&ScriptText!C765)","v":""},{"$f":"IF(OrigTable!C770=\"\",\"\",ScriptText!$B$1&CHAR(10)&ScriptText!$D$1)","v":""},{"$f":"IF(OrigTable!C770=\"\",\"\",IF(LEN(OrigTable!C770)>255,LEFT(OrigTable!C770,250)&\". . .\",OrigTable!C770))","v":""},{"$f":"IF(OrigTable!C770=\"\",\"\",ScriptText!$E$1&CHAR(10)&ScriptText!$C$1)","v":""},{"$f":"IF(OrigTable!D770=\"\",\"\",ScriptText!$B$1&CHAR(10)&ScriptText!$D$1)","v":""},{"$f":"IF(OrigTable!D770=\"\",\"\",TEXT(OrigTable!D770,\"00\"))","v":""},{"$f":"IF(OrigTable!D770=\"\",\"\",ScriptText!$E$1&CHAR(10)&ScriptText!$C$1)","v":""},{"$f":"IF(OrigTable!E770=\"\",\"\",ScriptText!$B$1&CHAR(10)&ScriptText!$D$1)","v":""},{"$f":"IF(OrigTable!E770=\"\",\"\",TEXT(OrigTable!E770,\"00\"))","v":""},{"$f":"IF(OrigTable!E770=\"\",\"\",ScriptText!$E$1&CHAR(10)&ScriptText!$C$1)","v":""},{"$f":"IF(OrigTable!F770=\"\",\"\",ScriptText!$B$1&CHAR(10)&ScriptText!$D$1)","v":""},{"$f":"IF(OrigTable!F770=\"\",\"\",TEXT(OrigTable!F770,\"00\"))","v":""},{"$f":"IF(OrigTable!F770=\"\",\"\",ScriptText!$E$1&CHAR(10)&ScriptText!$C$1)","v":""},{"$f":"IF(OrigTable!G770=\"\",\"\",ScriptText!$B$1&CHAR(10)&ScriptText!$D$1)","v":""},{"$f":"IF(OrigTable!G770=\"\",\"\",TEXT(OrigTable!G770,\"00\"))","v":""},{"$f":"IF(OrigTable!G770=\"\",\"\",ScriptText!$E$1&CHAR(10)&ScriptText!$C$1)","v":""},0]
["\n\n\n",{"$f":"IF(OrigTable!A771=\"\",\"\",ScriptText!$B$1&CHAR(10)&ScriptText!$D$1)","v":""},{"$f":"IF(OrigTable!A771=\"\",\"\",TEXT(OrigTable!A771,\"00\"))","v":""},{"$f":"IF(OrigTable!A771=\"\",\"\",ScriptText!$E$1&CHAR(10)&ScriptText!$C$1)","v":""},{"$f":"IF(OrigTable!B771=\"\",\"\",ScriptText!$B$1&CHAR(10)&ScriptText!$D$1)","v":""},{"$f":"IF(OrigTable!B771=\"\",\"\",TEXT(OrigTable!B771,\"00\"))","v":""},{"$f":"IF(OrigTable!B771=\"\",\"\",ScriptText!$E$1&CHAR(10)&ScriptText!C766)","v":""},{"$f":"IF(OrigTable!C771=\"\",\"\",ScriptText!$B$1&CHAR(10)&ScriptText!$D$1)","v":""},{"$f":"IF(OrigTable!C771=\"\",\"\",IF(LEN(OrigTable!C771)>255,LEFT(OrigTable!C771,250)&\". . .\",OrigTable!C771))","v":""},{"$f":"IF(OrigTable!C771=\"\",\"\",ScriptText!$E$1&CHAR(10)&ScriptText!$C$1)","v":""},{"$f":"IF(OrigTable!D771=\"\",\"\",ScriptText!$B$1&CHAR(10)&ScriptText!$D$1)","v":""},{"$f":"IF(OrigTable!D771=\"\",\"\",TEXT(OrigTable!D771,\"00\"))","v":""},{"$f":"IF(OrigTable!D771=\"\",\"\",ScriptText!$E$1&CHAR(10)&ScriptText!$C$1)","v":""},{"$f":"IF(OrigTable!E771=\"\",\"\",ScriptText!$B$1&CHAR(10)&ScriptText!$D$1)","v":""},{"$f":"IF(OrigTable!E771=\"\",\"\",TEXT(OrigTable!E771,\"00\"))","v":""},{"$f":"IF(OrigTable!E771=\"\",\"\",ScriptText!$E$1&CHAR(10)&ScriptText!$C$1)","v":""},{"$f":"IF(OrigTable!F771=\"\",\"\",ScriptText!$B$1&CHAR(10)&ScriptText!$D$1)","v":""},{"$f":"IF(OrigTable!F771=\"\",\"\",TEXT(OrigTable!F771,\"00\"))","v":""},{"$f":"IF(OrigTable!F771=\"\",\"\",ScriptText!$E$1&CHAR(10)&ScriptText!$C$1)","v":""},{"$f":"IF(OrigTable!G771=\"\",\"\",ScriptText!$B$1&CHAR(10)&ScriptText!$D$1)","v":""},{"$f":"IF(OrigTable!G771=\"\",\"\",TEXT(OrigTable!G771,\"00\"))","v":""},{"$f":"IF(OrigTable!G771=\"\",\"\",ScriptText!$E$1&CHAR(10)&ScriptText!$C$1)","v":""},0]
["\n\n\n",{"$f":"IF(OrigTable!A772=\"\",\"\",ScriptText!$B$1&CHAR(10)&ScriptText!$D$1)","v":""},{"$f":"IF(OrigTable!A772=\"\",\"\",TEXT(OrigTable!A772,\"00\"))","v":""},{"$f":"IF(OrigTable!A772=\"\",\"\",ScriptText!$E$1&CHAR(10)&ScriptText!$C$1)","v":""},{"$f":"IF(OrigTable!B772=\"\",\"\",ScriptText!$B$1&CHAR(10)&ScriptText!$D$1)","v":""},{"$f":"IF(OrigTable!B772=\"\",\"\",TEXT(OrigTable!B772,\"00\"))","v":""},{"$f":"IF(OrigTable!B772=\"\",\"\",ScriptText!$E$1&CHAR(10)&ScriptText!C767)","v":""},{"$f":"IF(OrigTable!C772=\"\",\"\",ScriptText!$B$1&CHAR(10)&ScriptText!$D$1)","v":""},{"$f":"IF(OrigTable!C772=\"\",\"\",IF(LEN(OrigTable!C772)>255,LEFT(OrigTable!C772,250)&\". . .\",OrigTable!C772))","v":""},{"$f":"IF(OrigTable!C772=\"\",\"\",ScriptText!$E$1&CHAR(10)&ScriptText!$C$1)","v":""},{"$f":"IF(OrigTable!D772=\"\",\"\",ScriptText!$B$1&CHAR(10)&ScriptText!$D$1)","v":""},{"$f":"IF(OrigTable!D772=\"\",\"\",TEXT(OrigTable!D772,\"00\"))","v":""},{"$f":"IF(OrigTable!D772=\"\",\"\",ScriptText!$E$1&CHAR(10)&ScriptText!$C$1)","v":""},{"$f":"IF(OrigTable!E772=\"\",\"\",ScriptText!$B$1&CHAR(10)&ScriptText!$D$1)","v":""},{"$f":"IF(OrigTable!E772=\"\",\"\",TEXT(OrigTable!E772,\"00\"))","v":""},{"$f":"IF(OrigTable!E772=\"\",\"\",ScriptText!$E$1&CHAR(10)&ScriptText!$C$1)","v":""},{"$f":"IF(OrigTable!F772=\"\",\"\",ScriptText!$B$1&CHAR(10)&ScriptText!$D$1)","v":""},{"$f":"IF(OrigTable!F772=\"\",\"\",TEXT(OrigTable!F772,\"00\"))","v":""},{"$f":"IF(OrigTable!F772=\"\",\"\",ScriptText!$E$1&CHAR(10)&ScriptText!$C$1)","v":""},{"$f":"IF(OrigTable!G772=\"\",\"\",ScriptText!$B$1&CHAR(10)&ScriptText!$D$1)","v":""},{"$f":"IF(OrigTable!G772=\"\",\"\",TEXT(OrigTable!G772,\"00\"))","v":""},{"$f":"IF(OrigTable!G772=\"\",\"\",ScriptText!$E$1&CHAR(10)&ScriptText!$C$1)","v":""},0]
["\n\n\n",{"$f":"IF(OrigTable!A773=\"\",\"\",ScriptText!$B$1&CHAR(10)&ScriptText!$D$1)","v":""},{"$f":"IF(OrigTable!A773=\"\",\"\",TEXT(OrigTable!A773,\"00\"))","v":""},{"$f":"IF(OrigTable!A773=\"\",\"\",ScriptText!$E$1&CHAR(10)&ScriptText!$C$1)","v":""},{"$f":"IF(OrigTable!B773=\"\",\"\",ScriptText!$B$1&CHAR(10)&ScriptText!$D$1)","v":""},{"$f":"IF(OrigTable!B773=\"\",\"\",TEXT(OrigTable!B773,\"00\"))","v":""},{"$f":"IF(OrigTable!B773=\"\",\"\",ScriptText!$E$1&CHAR(10)&ScriptText!C768)","v":""},{"$f":"IF(OrigTable!C773=\"\",\"\",ScriptText!$B$1&CHAR(10)&ScriptText!$D$1)","v":""},{"$f":"IF(OrigTable!C773=\"\",\"\",IF(LEN(OrigTable!C773)>255,LEFT(OrigTable!C773,250)&\". . .\",OrigTable!C773))","v":""},{"$f":"IF(OrigTable!C773=\"\",\"\",ScriptText!$E$1&CHAR(10)&ScriptText!$C$1)","v":""},{"$f":"IF(OrigTable!D773=\"\",\"\",ScriptText!$B$1&CHAR(10)&ScriptText!$D$1)","v":""},{"$f":"IF(OrigTable!D773=\"\",\"\",TEXT(OrigTable!D773,\"00\"))","v":""},{"$f":"IF(OrigTable!D773=\"\",\"\",ScriptText!$E$1&CHAR(10)&ScriptText!$C$1)","v":""},{"$f":"IF(OrigTable!E773=\"\",\"\",ScriptText!$B$1&CHAR(10)&ScriptText!$D$1)","v":""},{"$f":"IF(OrigTable!E773=\"\",\"\",TEXT(OrigTable!E773,\"00\"))","v":""},{"$f":"IF(OrigTable!E773=\"\",\"\",ScriptText!$E$1&CHAR(10)&ScriptText!$C$1)","v":""},{"$f":"IF(OrigTable!F773=\"\",\"\",ScriptText!$B$1&CHAR(10)&ScriptText!$D$1)","v":""},{"$f":"IF(OrigTable!F773=\"\",\"\",TEXT(OrigTable!F773,\"00\"))","v":""},{"$f":"IF(OrigTable!F773=\"\",\"\",ScriptText!$E$1&CHAR(10)&ScriptText!$C$1)","v":""},{"$f":"IF(OrigTable!G773=\"\",\"\",ScriptText!$B$1&CHAR(10)&ScriptText!$D$1)","v":""},{"$f":"IF(OrigTable!G773=\"\",\"\",TEXT(OrigTable!G773,\"00\"))","v":""},{"$f":"IF(OrigTable!G773=\"\",\"\",ScriptText!$E$1&CHAR(10)&ScriptText!$C$1)","v":""},0]
["\n\n\n",{"$f":"IF(OrigTable!A774=\"\",\"\",ScriptText!$B$1&CHAR(10)&ScriptText!$D$1)","v":""},{"$f":"IF(OrigTable!A774=\"\",\"\",TEXT(OrigTable!A774,\"00\"))","v":""},{"$f":"IF(OrigTable!A774=\"\",\"\",ScriptText!$E$1&CHAR(10)&ScriptText!$C$1)","v":""},{"$f":"IF(OrigTable!B774=\"\",\"\",ScriptText!$B$1&CHAR(10)&ScriptText!$D$1)","v":""},{"$f":"IF(OrigTable!B774=\"\",\"\",TEXT(OrigTable!B774,\"00\"))","v":""},{"$f":"IF(OrigTable!B774=\"\",\"\",ScriptText!$E$1&CHAR(10)&ScriptText!C769)","v":""},{"$f":"IF(OrigTable!C774=\"\",\"\",ScriptText!$B$1&CHAR(10)&ScriptText!$D$1)","v":""},{"$f":"IF(OrigTable!C774=\"\",\"\",IF(LEN(OrigTable!C774)>255,LEFT(OrigTable!C774,250)&\". . .\",OrigTable!C774))","v":""},{"$f":"IF(OrigTable!C774=\"\",\"\",ScriptText!$E$1&CHAR(10)&ScriptText!$C$1)","v":""},{"$f":"IF(OrigTable!D774=\"\",\"\",ScriptText!$B$1&CHAR(10)&ScriptText!$D$1)","v":""},{"$f":"IF(OrigTable!D774=\"\",\"\",TEXT(OrigTable!D774,\"00\"))","v":""},{"$f":"IF(OrigTable!D774=\"\",\"\",ScriptText!$E$1&CHAR(10)&ScriptText!$C$1)","v":""},{"$f":"IF(OrigTable!E774=\"\",\"\",ScriptText!$B$1&CHAR(10)&ScriptText!$D$1)","v":""},{"$f":"IF(OrigTable!E774=\"\",\"\",TEXT(OrigTable!E774,\"00\"))","v":""},{"$f":"IF(OrigTable!E774=\"\",\"\",ScriptText!$E$1&CHAR(10)&ScriptText!$C$1)","v":""},{"$f":"IF(OrigTable!F774=\"\",\"\",ScriptText!$B$1&CHAR(10)&ScriptText!$D$1)","v":""},{"$f":"IF(OrigTable!F774=\"\",\"\",TEXT(OrigTable!F774,\"00\"))","v":""},{"$f":"IF(OrigTable!F774=\"\",\"\",ScriptText!$E$1&CHAR(10)&ScriptText!$C$1)","v":""},{"$f":"IF(OrigTable!G774=\"\",\"\",ScriptText!$B$1&CHAR(10)&ScriptText!$D$1)","v":""},{"$f":"IF(OrigTable!G774=\"\",\"\",TEXT(OrigTable!G774,\"00\"))","v":""},{"$f":"IF(OrigTable!G774=\"\",\"\",ScriptText!$E$1&CHAR(10)&ScriptText!$C$1)","v":""},{"$f":"IF(LEN(A774)>3,ROW(),0)","v":0}]
["\n\n\n",{"$f":"IF(OrigTable!A775=\"\",\"\",ScriptText!$B$1&CHAR(10)&ScriptText!$D$1)","v":""},{"$f":"IF(OrigTable!A775=\"\",\"\",TEXT(OrigTable!A775,\"00\"))","v":""},{"$f":"IF(OrigTable!A775=\"\",\"\",ScriptText!$E$1&CHAR(10)&ScriptText!$C$1)","v":""},{"$f":"IF(OrigTable!B775=\"\",\"\",ScriptText!$B$1&CHAR(10)&ScriptText!$D$1)","v":""},{"$f":"IF(OrigTable!B775=\"\",\"\",TEXT(OrigTable!B775,\"00\"))","v":""},{"$f":"IF(OrigTable!B775=\"\",\"\",ScriptText!$E$1&CHAR(10)&ScriptText!C770)","v":""},{"$f":"IF(OrigTable!C775=\"\",\"\",ScriptText!$B$1&CHAR(10)&ScriptText!$D$1)","v":""},{"$f":"IF(OrigTable!C775=\"\",\"\",IF(LEN(OrigTable!C775)>255,LEFT(OrigTable!C775,250)&\". . .\",OrigTable!C775))","v":""},{"$f":"IF(OrigTable!C775=\"\",\"\",ScriptText!$E$1&CHAR(10)&ScriptText!$C$1)","v":""},{"$f":"IF(OrigTable!D775=\"\",\"\",ScriptText!$B$1&CHAR(10)&ScriptText!$D$1)","v":""},{"$f":"IF(OrigTable!D775=\"\",\"\",TEXT(OrigTable!D775,\"00\"))","v":""},{"$f":"IF(OrigTable!D775=\"\",\"\",ScriptText!$E$1&CHAR(10)&ScriptText!$C$1)","v":""},{"$f":"IF(OrigTable!E775=\"\",\"\",ScriptText!$B$1&CHAR(10)&ScriptText!$D$1)","v":""},{"$f":"IF(OrigTable!E775=\"\",\"\",TEXT(OrigTable!E775,\"00\"))","v":""},{"$f":"IF(OrigTable!E775=\"\",\"\",ScriptText!$E$1&CHAR(10)&ScriptText!$C$1)","v":""},{"$f":"IF(OrigTable!F775=\"\",\"\",ScriptText!$B$1&CHAR(10)&ScriptText!$D$1)","v":""},{"$f":"IF(OrigTable!F775=\"\",\"\",TEXT(OrigTable!F775,\"00\"))","v":""},{"$f":"IF(OrigTable!F775=\"\",\"\",ScriptText!$E$1&CHAR(10)&ScriptText!$C$1)","v":""},{"$f":"IF(OrigTable!G775=\"\",\"\",ScriptText!$B$1&CHAR(10)&ScriptText!$D$1)","v":""},{"$f":"IF(OrigTable!G775=\"\",\"\",TEXT(OrigTable!G775,\"00\"))","v":""},{"$f":"IF(OrigTable!G775=\"\",\"\",ScriptText!$E$1&CHAR(10)&ScriptText!$C$1)","v":""},0]
["\n\n\n",{"$f":"IF(OrigTable!A776=\"\",\"\",ScriptText!$B$1&CHAR(10)&ScriptText!$D$1)","v":""},{"$f":"IF(OrigTable!A776=\"\",\"\",TEXT(OrigTable!A776,\"00\"))","v":""},{"$f":"IF(OrigTable!A776=\"\",\"\",ScriptText!$E$1&CHAR(10)&ScriptText!$C$1)","v":""},{"$f":"IF(OrigTable!B776=\"\",\"\",ScriptText!$B$1&CHAR(10)&ScriptText!$D$1)","v":""},{"$f":"IF(OrigTable!B776=\"\",\"\",TEXT(OrigTable!B776,\"00\"))","v":""},{"$f":"IF(OrigTable!B776=\"\",\"\",ScriptText!$E$1&CHAR(10)&ScriptText!C771)","v":""},{"$f":"IF(OrigTable!C776=\"\",\"\",ScriptText!$B$1&CHAR(10)&ScriptText!$D$1)","v":""},{"$f":"IF(OrigTable!C776=\"\",\"\",IF(LEN(OrigTable!C776)>255,LEFT(OrigTable!C776,250)&\". . .\",OrigTable!C776))","v":""},{"$f":"IF(OrigTable!C776=\"\",\"\",ScriptText!$E$1&CHAR(10)&ScriptText!$C$1)","v":""},{"$f":"IF(OrigTable!D776=\"\",\"\",ScriptText!$B$1&CHAR(10)&ScriptText!$D$1)","v":""},{"$f":"IF(OrigTable!D776=\"\",\"\",TEXT(OrigTable!D776,\"00\"))","v":""},{"$f":"IF(OrigTable!D776=\"\",\"\",ScriptText!$E$1&CHAR(10)&ScriptText!$C$1)","v":""},{"$f":"IF(OrigTable!E776=\"\",\"\",ScriptText!$B$1&CHAR(10)&ScriptText!$D$1)","v":""},{"$f":"IF(OrigTable!E776=\"\",\"\",TEXT(OrigTable!E776,\"00\"))","v":""},{"$f":"IF(OrigTable!E776=\"\",\"\",ScriptText!$E$1&CHAR(10)&ScriptText!$C$1)","v":""},{"$f":"IF(OrigTable!F776=\"\",\"\",ScriptText!$B$1&CHAR(10)&ScriptText!$D$1)","v":""},{"$f":"IF(OrigTable!F776=\"\",\"\",TEXT(OrigTable!F776,\"00\"))","v":""},{"$f":"IF(OrigTable!F776=\"\",\"\",ScriptText!$E$1&CHAR(10)&ScriptText!$C$1)","v":""},{"$f":"IF(OrigTable!G776=\"\",\"\",ScriptText!$B$1&CHAR(10)&ScriptText!$D$1)","v":""},{"$f":"IF(OrigTable!G776=\"\",\"\",TEXT(OrigTable!G776,\"00\"))","v":""},{"$f":"IF(OrigTable!G776=\"\",\"\",ScriptText!$E$1&CHAR(10)&ScriptText!$C$1)","v":""},0]
[{"$f":"_xlfn.TEXTJOIN(\"\",TRUE,B777:D777)&CHAR(10)&_xlfn.TEXTJOIN(\"\",TRUE,E777:G777)&CHAR(10)&_xlfn.TEXTJOIN(\"\",TRUE,H777:J777)&CHAR(10)&_xlfn.TEXTJOIN(\"\",TRUE,K777:M777)&_xlfn.TEXTJOIN(\"\",TRUE,N777:P777)&_xlfn.TEXTJOIN(\"\",TRUE,Q777:S777)&_xlfn.TEXTJOIN(\"\",TRUE,T777:V777)","v":"\n\n\n"},{"$f":"IF(OrigTable!A777=\"\",\"\",ScriptText!$B$1&CHAR(10)&ScriptText!$D$1)","v":""},{"$f":"IF(OrigTable!A777=\"\",\"\",TEXT(OrigTable!A777,\"00\"))","v":""},{"$f":"IF(OrigTable!A777=\"\",\"\",ScriptText!$E$1&CHAR(10)&ScriptText!$C$1)","v":""},{"$f":"IF(OrigTable!B777=\"\",\"\",ScriptText!$B$1&CHAR(10)&ScriptText!$D$1)","v":""},{"$f":"IF(OrigTable!B777=\"\",\"\",TEXT(OrigTable!B777,\"00\"))","v":""},{"$f":"IF(OrigTable!B777=\"\",\"\",ScriptText!$E$1&CHAR(10)&ScriptText!C772)","v":""},{"$f":"IF(OrigTable!C777=\"\",\"\",ScriptText!$B$1&CHAR(10)&ScriptText!$D$1)","v":""},{"$f":"IF(OrigTable!C777=\"\",\"\",IF(LEN(OrigTable!C777)>255,LEFT(OrigTable!C777,250)&\". . .\",OrigTable!C777))","v":""},{"$f":"IF(OrigTable!C777=\"\",\"\",ScriptText!$E$1&CHAR(10)&ScriptText!$C$1)","v":""},{"$f":"IF(OrigTable!D777=\"\",\"\",ScriptText!$B$1&CHAR(10)&ScriptText!$D$1)","v":""},{"$f":"IF(OrigTable!D777=\"\",\"\",TEXT(OrigTable!D777,\"00\"))","v":""},{"$f":"IF(OrigTable!D777=\"\",\"\",ScriptText!$E$1&CHAR(10)&ScriptText!$C$1)","v":""},{"$f":"IF(OrigTable!E777=\"\",\"\",ScriptText!$B$1&CHAR(10)&ScriptText!$D$1)","v":""},{"$f":"IF(OrigTable!E777=\"\",\"\",TEXT(OrigTable!E777,\"00\"))","v":""},{"$f":"IF(OrigTable!E777=\"\",\"\",ScriptText!$E$1&CHAR(10)&ScriptText!$C$1)","v":""},{"$f":"IF(OrigTable!F777=\"\",\"\",ScriptText!$B$1&CHAR(10)&ScriptText!$D$1)","v":""},{"$f":"IF(OrigTable!F777=\"\",\"\",TEXT(OrigTable!F777,\"00\"))","v":""},{"$f":"IF(OrigTable!F777=\"\",\"\",ScriptText!$E$1&CHAR(10)&ScriptText!$C$1)","v":""},{"$f":"IF(OrigTable!G777=\"\",\"\",ScriptText!$B$1&CHAR(10)&ScriptText!$D$1)","v":""},{"$f":"IF(OrigTable!G777=\"\",\"\",TEXT(OrigTable!G777,\"00\"))","v":""},{"$f":"IF(OrigTable!G777=\"\",\"\",ScriptText!$E$1&CHAR(10)&ScriptText!$C$1)","v":""},0]
["\n\n\n",{"$f":"IF(OrigTable!A778=\"\",\"\",ScriptText!$B$1&CHAR(10)&ScriptText!$D$1)","v":""},{"$f":"IF(OrigTable!A778=\"\",\"\",TEXT(OrigTable!A778,\"00\"))","v":""},{"$f":"IF(OrigTable!A778=\"\",\"\",ScriptText!$E$1&CHAR(10)&ScriptText!$C$1)","v":""},{"$f":"IF(OrigTable!B778=\"\",\"\",ScriptText!$B$1&CHAR(10)&ScriptText!$D$1)","v":""},{"$f":"IF(OrigTable!B778=\"\",\"\",TEXT(OrigTable!B778,\"00\"))","v":""},{"$f":"IF(OrigTable!B778=\"\",\"\",ScriptText!$E$1&CHAR(10)&ScriptText!C773)","v":""},{"$f":"IF(OrigTable!C778=\"\",\"\",ScriptText!$B$1&CHAR(10)&ScriptText!$D$1)","v":""},{"$f":"IF(OrigTable!C778=\"\",\"\",IF(LEN(OrigTable!C778)>255,LEFT(OrigTable!C778,250)&\". . .\",OrigTable!C778))","v":""},{"$f":"IF(OrigTable!C778=\"\",\"\",ScriptText!$E$1&CHAR(10)&ScriptText!$C$1)","v":""},{"$f":"IF(OrigTable!D778=\"\",\"\",ScriptText!$B$1&CHAR(10)&ScriptText!$D$1)","v":""},{"$f":"IF(OrigTable!D778=\"\",\"\",TEXT(OrigTable!D778,\"00\"))","v":""},{"$f":"IF(OrigTable!D778=\"\",\"\",ScriptText!$E$1&CHAR(10)&ScriptText!$C$1)","v":""},{"$f":"IF(OrigTable!E778=\"\",\"\",ScriptText!$B$1&CHAR(10)&ScriptText!$D$1)","v":""},{"$f":"IF(OrigTable!E778=\"\",\"\",TEXT(OrigTable!E778,\"00\"))","v":""},{"$f":"IF(OrigTable!E778=\"\",\"\",ScriptText!$E$1&CHAR(10)&ScriptText!$C$1)","v":""},{"$f":"IF(OrigTable!F778=\"\",\"\",ScriptText!$B$1&CHAR(10)&ScriptText!$D$1)","v":""},{"$f":"IF(OrigTable!F778=\"\",\"\",TEXT(OrigTable!F778,\"00\"))","v":""},{"$f":"IF(OrigTable!F778=\"\",\"\",ScriptText!$E$1&CHAR(10)&ScriptText!$C$1)","v":""},{"$f":"IF(OrigTable!G778=\"\",\"\",ScriptText!$B$1&CHAR(10)&ScriptText!$D$1)","v":""},{"$f":"IF(OrigTable!G778=\"\",\"\",TEXT(OrigTable!G778,\"00\"))","v":""},{"$f":"IF(OrigTable!G778=\"\",\"\",ScriptText!$E$1&CHAR(10)&ScriptText!$C$1)","v":""},0]
["\n\n\n",{"$f":"IF(OrigTable!A779=\"\",\"\",ScriptText!$B$1&CHAR(10)&ScriptText!$D$1)","v":""},{"$f":"IF(OrigTable!A779=\"\",\"\",TEXT(OrigTable!A779,\"00\"))","v":""},{"$f":"IF(OrigTable!A779=\"\",\"\",ScriptText!$E$1&CHAR(10)&ScriptText!$C$1)","v":""},{"$f":"IF(OrigTable!B779=\"\",\"\",ScriptText!$B$1&CHAR(10)&ScriptText!$D$1)","v":""},{"$f":"IF(OrigTable!B779=\"\",\"\",TEXT(OrigTable!B779,\"00\"))","v":""},{"$f":"IF(OrigTable!B779=\"\",\"\",ScriptText!$E$1&CHAR(10)&ScriptText!C774)","v":""},{"$f":"IF(OrigTable!C779=\"\",\"\",ScriptText!$B$1&CHAR(10)&ScriptText!$D$1)","v":""},{"$f":"IF(OrigTable!C779=\"\",\"\",IF(LEN(OrigTable!C779)>255,LEFT(OrigTable!C779,250)&\". . .\",OrigTable!C779))","v":""},{"$f":"IF(OrigTable!C779=\"\",\"\",ScriptText!$E$1&CHAR(10)&ScriptText!$C$1)","v":""},{"$f":"IF(OrigTable!D779=\"\",\"\",ScriptText!$B$1&CHAR(10)&ScriptText!$D$1)","v":""},{"$f":"IF(OrigTable!D779=\"\",\"\",TEXT(OrigTable!D779,\"00\"))","v":""},{"$f":"IF(OrigTable!D779=\"\",\"\",ScriptText!$E$1&CHAR(10)&ScriptText!$C$1)","v":""},{"$f":"IF(OrigTable!E779=\"\",\"\",ScriptText!$B$1&CHAR(10)&ScriptText!$D$1)","v":""},{"$f":"IF(OrigTable!E779=\"\",\"\",TEXT(OrigTable!E779,\"00\"))","v":""},{"$f":"IF(OrigTable!E779=\"\",\"\",ScriptText!$E$1&CHAR(10)&ScriptText!$C$1)","v":""},{"$f":"IF(OrigTable!F779=\"\",\"\",ScriptText!$B$1&CHAR(10)&ScriptText!$D$1)","v":""},{"$f":"IF(OrigTable!F779=\"\",\"\",TEXT(OrigTable!F779,\"00\"))","v":""},{"$f":"IF(OrigTable!F779=\"\",\"\",ScriptText!$E$1&CHAR(10)&ScriptText!$C$1)","v":""},{"$f":"IF(OrigTable!G779=\"\",\"\",ScriptText!$B$1&CHAR(10)&ScriptText!$D$1)","v":""},{"$f":"IF(OrigTable!G779=\"\",\"\",TEXT(OrigTable!G779,\"00\"))","v":""},{"$f":"IF(OrigTable!G779=\"\",\"\",ScriptText!$E$1&CHAR(10)&ScriptText!$C$1)","v":""},0]
["\n\n\n",{"$f":"IF(OrigTable!A780=\"\",\"\",ScriptText!$B$1&CHAR(10)&ScriptText!$D$1)","v":""},{"$f":"IF(OrigTable!A780=\"\",\"\",TEXT(OrigTable!A780,\"00\"))","v":""},{"$f":"IF(OrigTable!A780=\"\",\"\",ScriptText!$E$1&CHAR(10)&ScriptText!$C$1)","v":""},{"$f":"IF(OrigTable!B780=\"\",\"\",ScriptText!$B$1&CHAR(10)&ScriptText!$D$1)","v":""},{"$f":"IF(OrigTable!B780=\"\",\"\",TEXT(OrigTable!B780,\"00\"))","v":""},{"$f":"IF(OrigTable!B780=\"\",\"\",ScriptText!$E$1&CHAR(10)&ScriptText!C775)","v":""},{"$f":"IF(OrigTable!C780=\"\",\"\",ScriptText!$B$1&CHAR(10)&ScriptText!$D$1)","v":""},{"$f":"IF(OrigTable!C780=\"\",\"\",IF(LEN(OrigTable!C780)>255,LEFT(OrigTable!C780,250)&\". . .\",OrigTable!C780))","v":""},{"$f":"IF(OrigTable!C780=\"\",\"\",ScriptText!$E$1&CHAR(10)&ScriptText!$C$1)","v":""},{"$f":"IF(OrigTable!D780=\"\",\"\",ScriptText!$B$1&CHAR(10)&ScriptText!$D$1)","v":""},{"$f":"IF(OrigTable!D780=\"\",\"\",TEXT(OrigTable!D780,\"00\"))","v":""},{"$f":"IF(OrigTable!D780=\"\",\"\",ScriptText!$E$1&CHAR(10)&ScriptText!$C$1)","v":""},{"$f":"IF(OrigTable!E780=\"\",\"\",ScriptText!$B$1&CHAR(10)&ScriptText!$D$1)","v":""},{"$f":"IF(OrigTable!E780=\"\",\"\",TEXT(OrigTable!E780,\"00\"))","v":""},{"$f":"IF(OrigTable!E780=\"\",\"\",ScriptText!$E$1&CHAR(10)&ScriptText!$C$1)","v":""},{"$f":"IF(OrigTable!F780=\"\",\"\",ScriptText!$B$1&CHAR(10)&ScriptText!$D$1)","v":""},{"$f":"IF(OrigTable!F780=\"\",\"\",TEXT(OrigTable!F780,\"00\"))","v":""},{"$f":"IF(OrigTable!F780=\"\",\"\",ScriptText!$E$1&CHAR(10)&ScriptText!$C$1)","v":""},{"$f":"IF(OrigTable!G780=\"\",\"\",ScriptText!$B$1&CHAR(10)&ScriptText!$D$1)","v":""},{"$f":"IF(OrigTable!G780=\"\",\"\",TEXT(OrigTable!G780,\"00\"))","v":""},{"$f":"IF(OrigTable!G780=\"\",\"\",ScriptText!$E$1&CHAR(10)&ScriptText!$C$1)","v":""},0]
["\n\n\n",{"$f":"IF(OrigTable!A781=\"\",\"\",ScriptText!$B$1&CHAR(10)&ScriptText!$D$1)","v":""},{"$f":"IF(OrigTable!A781=\"\",\"\",TEXT(OrigTable!A781,\"00\"))","v":""},{"$f":"IF(OrigTable!A781=\"\",\"\",ScriptText!$E$1&CHAR(10)&ScriptText!$C$1)","v":""},{"$f":"IF(OrigTable!B781=\"\",\"\",ScriptText!$B$1&CHAR(10)&ScriptText!$D$1)","v":""},{"$f":"IF(OrigTable!B781=\"\",\"\",TEXT(OrigTable!B781,\"00\"))","v":""},{"$f":"IF(OrigTable!B781=\"\",\"\",ScriptText!$E$1&CHAR(10)&ScriptText!C776)","v":""},{"$f":"IF(OrigTable!C781=\"\",\"\",ScriptText!$B$1&CHAR(10)&ScriptText!$D$1)","v":""},{"$f":"IF(OrigTable!C781=\"\",\"\",IF(LEN(OrigTable!C781)>255,LEFT(OrigTable!C781,250)&\". . .\",OrigTable!C781))","v":""},{"$f":"IF(OrigTable!C781=\"\",\"\",ScriptText!$E$1&CHAR(10)&ScriptText!$C$1)","v":""},{"$f":"IF(OrigTable!D781=\"\",\"\",ScriptText!$B$1&CHAR(10)&ScriptText!$D$1)","v":""},{"$f":"IF(OrigTable!D781=\"\",\"\",TEXT(OrigTable!D781,\"00\"))","v":""},{"$f":"IF(OrigTable!D781=\"\",\"\",ScriptText!$E$1&CHAR(10)&ScriptText!$C$1)","v":""},{"$f":"IF(OrigTable!E781=\"\",\"\",ScriptText!$B$1&CHAR(10)&ScriptText!$D$1)","v":""},{"$f":"IF(OrigTable!E781=\"\",\"\",TEXT(OrigTable!E781,\"00\"))","v":""},{"$f":"IF(OrigTable!E781=\"\",\"\",ScriptText!$E$1&CHAR(10)&ScriptText!$C$1)","v":""},{"$f":"IF(OrigTable!F781=\"\",\"\",ScriptText!$B$1&CHAR(10)&ScriptText!$D$1)","v":""},{"$f":"IF(OrigTable!F781=\"\",\"\",TEXT(OrigTable!F781,\"00\"))","v":""},{"$f":"IF(OrigTable!F781=\"\",\"\",ScriptText!$E$1&CHAR(10)&ScriptText!$C$1)","v":""},{"$f":"IF(OrigTable!G781=\"\",\"\",ScriptText!$B$1&CHAR(10)&ScriptText!$D$1)","v":""},{"$f":"IF(OrigTable!G781=\"\",\"\",TEXT(OrigTable!G781,\"00\"))","v":""},{"$f":"IF(OrigTable!G781=\"\",\"\",ScriptText!$E$1&CHAR(10)&ScriptText!$C$1)","v":""},0]
["\n\n\n",{"$f":"IF(OrigTable!A782=\"\",\"\",ScriptText!$B$1&CHAR(10)&ScriptText!$D$1)","v":""},{"$f":"IF(OrigTable!A782=\"\",\"\",TEXT(OrigTable!A782,\"00\"))","v":""},{"$f":"IF(OrigTable!A782=\"\",\"\",ScriptText!$E$1&CHAR(10)&ScriptText!$C$1)","v":""},{"$f":"IF(OrigTable!B782=\"\",\"\",ScriptText!$B$1&CHAR(10)&ScriptText!$D$1)","v":""},{"$f":"IF(OrigTable!B782=\"\",\"\",TEXT(OrigTable!B782,\"00\"))","v":""},{"$f":"IF(OrigTable!B782=\"\",\"\",ScriptText!$E$1&CHAR(10)&ScriptText!C777)","v":""},{"$f":"IF(OrigTable!C782=\"\",\"\",ScriptText!$B$1&CHAR(10)&ScriptText!$D$1)","v":""},{"$f":"IF(OrigTable!C782=\"\",\"\",IF(LEN(OrigTable!C782)>255,LEFT(OrigTable!C782,250)&\". . .\",OrigTable!C782))","v":""},{"$f":"IF(OrigTable!C782=\"\",\"\",ScriptText!$E$1&CHAR(10)&ScriptText!$C$1)","v":""},{"$f":"IF(OrigTable!D782=\"\",\"\",ScriptText!$B$1&CHAR(10)&ScriptText!$D$1)","v":""},{"$f":"IF(OrigTable!D782=\"\",\"\",TEXT(OrigTable!D782,\"00\"))","v":""},{"$f":"IF(OrigTable!D782=\"\",\"\",ScriptText!$E$1&CHAR(10)&ScriptText!$C$1)","v":""},{"$f":"IF(OrigTable!E782=\"\",\"\",ScriptText!$B$1&CHAR(10)&ScriptText!$D$1)","v":""},{"$f":"IF(OrigTable!E782=\"\",\"\",TEXT(OrigTable!E782,\"00\"))","v":""},{"$f":"IF(OrigTable!E782=\"\",\"\",ScriptText!$E$1&CHAR(10)&ScriptText!$C$1)","v":""},{"$f":"IF(OrigTable!F782=\"\",\"\",ScriptText!$B$1&CHAR(10)&ScriptText!$D$1)","v":""},{"$f":"IF(OrigTable!F782=\"\",\"\",TEXT(OrigTable!F782,\"00\"))","v":""},{"$f":"IF(OrigTable!F782=\"\",\"\",ScriptText!$E$1&CHAR(10)&ScriptText!$C$1)","v":""},{"$f":"IF(OrigTable!G782=\"\",\"\",ScriptText!$B$1&CHAR(10)&ScriptText!$D$1)","v":""},{"$f":"IF(OrigTable!G782=\"\",\"\",TEXT(OrigTable!G782,\"00\"))","v":""},{"$f":"IF(OrigTable!G782=\"\",\"\",ScriptText!$E$1&CHAR(10)&ScriptText!$C$1)","v":""},0]
["\n\n\n",{"$f":"IF(OrigTable!A783=\"\",\"\",ScriptText!$B$1&CHAR(10)&ScriptText!$D$1)","v":""},{"$f":"IF(OrigTable!A783=\"\",\"\",TEXT(OrigTable!A783,\"00\"))","v":""},{"$f":"IF(OrigTable!A783=\"\",\"\",ScriptText!$E$1&CHAR(10)&ScriptText!$C$1)","v":""},{"$f":"IF(OrigTable!B783=\"\",\"\",ScriptText!$B$1&CHAR(10)&ScriptText!$D$1)","v":""},{"$f":"IF(OrigTable!B783=\"\",\"\",TEXT(OrigTable!B783,\"00\"))","v":""},{"$f":"IF(OrigTable!B783=\"\",\"\",ScriptText!$E$1&CHAR(10)&ScriptText!C778)","v":""},{"$f":"IF(OrigTable!C783=\"\",\"\",ScriptText!$B$1&CHAR(10)&ScriptText!$D$1)","v":""},{"$f":"IF(OrigTable!C783=\"\",\"\",IF(LEN(OrigTable!C783)>255,LEFT(OrigTable!C783,250)&\". . .\",OrigTable!C783))","v":""},{"$f":"IF(OrigTable!C783=\"\",\"\",ScriptText!$E$1&CHAR(10)&ScriptText!$C$1)","v":""},{"$f":"IF(OrigTable!D783=\"\",\"\",ScriptText!$B$1&CHAR(10)&ScriptText!$D$1)","v":""},{"$f":"IF(OrigTable!D783=\"\",\"\",TEXT(OrigTable!D783,\"00\"))","v":""},{"$f":"IF(OrigTable!D783=\"\",\"\",ScriptText!$E$1&CHAR(10)&ScriptText!$C$1)","v":""},{"$f":"IF(OrigTable!E783=\"\",\"\",ScriptText!$B$1&CHAR(10)&ScriptText!$D$1)","v":""},{"$f":"IF(OrigTable!E783=\"\",\"\",TEXT(OrigTable!E783,\"00\"))","v":""},{"$f":"IF(OrigTable!E783=\"\",\"\",ScriptText!$E$1&CHAR(10)&ScriptText!$C$1)","v":""},{"$f":"IF(OrigTable!F783=\"\",\"\",ScriptText!$B$1&CHAR(10)&ScriptText!$D$1)","v":""},{"$f":"IF(OrigTable!F783=\"\",\"\",TEXT(OrigTable!F783,\"00\"))","v":""},{"$f":"IF(OrigTable!F783=\"\",\"\",ScriptText!$E$1&CHAR(10)&ScriptText!$C$1)","v":""},{"$f":"IF(OrigTable!G783=\"\",\"\",ScriptText!$B$1&CHAR(10)&ScriptText!$D$1)","v":""},{"$f":"IF(OrigTable!G783=\"\",\"\",TEXT(OrigTable!G783,\"00\"))","v":""},{"$f":"IF(OrigTable!G783=\"\",\"\",ScriptText!$E$1&CHAR(10)&ScriptText!$C$1)","v":""},0]
["\n\n\n",{"$f":"IF(OrigTable!A784=\"\",\"\",ScriptText!$B$1&CHAR(10)&ScriptText!$D$1)","v":""},{"$f":"IF(OrigTable!A784=\"\",\"\",TEXT(OrigTable!A784,\"00\"))","v":""},{"$f":"IF(OrigTable!A784=\"\",\"\",ScriptText!$E$1&CHAR(10)&ScriptText!$C$1)","v":""},{"$f":"IF(OrigTable!B784=\"\",\"\",ScriptText!$B$1&CHAR(10)&ScriptText!$D$1)","v":""},{"$f":"IF(OrigTable!B784=\"\",\"\",TEXT(OrigTable!B784,\"00\"))","v":""},{"$f":"IF(OrigTable!B784=\"\",\"\",ScriptText!$E$1&CHAR(10)&ScriptText!C779)","v":""},{"$f":"IF(OrigTable!C784=\"\",\"\",ScriptText!$B$1&CHAR(10)&ScriptText!$D$1)","v":""},{"$f":"IF(OrigTable!C784=\"\",\"\",IF(LEN(OrigTable!C784)>255,LEFT(OrigTable!C784,250)&\". . .\",OrigTable!C784))","v":""},{"$f":"IF(OrigTable!C784=\"\",\"\",ScriptText!$E$1&CHAR(10)&ScriptText!$C$1)","v":""},{"$f":"IF(OrigTable!D784=\"\",\"\",ScriptText!$B$1&CHAR(10)&ScriptText!$D$1)","v":""},{"$f":"IF(OrigTable!D784=\"\",\"\",TEXT(OrigTable!D784,\"00\"))","v":""},{"$f":"IF(OrigTable!D784=\"\",\"\",ScriptText!$E$1&CHAR(10)&ScriptText!$C$1)","v":""},{"$f":"IF(OrigTable!E784=\"\",\"\",ScriptText!$B$1&CHAR(10)&ScriptText!$D$1)","v":""},{"$f":"IF(OrigTable!E784=\"\",\"\",TEXT(OrigTable!E784,\"00\"))","v":""},{"$f":"IF(OrigTable!E784=\"\",\"\",ScriptText!$E$1&CHAR(10)&ScriptText!$C$1)","v":""},{"$f":"IF(OrigTable!F784=\"\",\"\",ScriptText!$B$1&CHAR(10)&ScriptText!$D$1)","v":""},{"$f":"IF(OrigTable!F784=\"\",\"\",TEXT(OrigTable!F784,\"00\"))","v":""},{"$f":"IF(OrigTable!F784=\"\",\"\",ScriptText!$E$1&CHAR(10)&ScriptText!$C$1)","v":""},{"$f":"IF(OrigTable!G784=\"\",\"\",ScriptText!$B$1&CHAR(10)&ScriptText!$D$1)","v":""},{"$f":"IF(OrigTable!G784=\"\",\"\",TEXT(OrigTable!G784,\"00\"))","v":""},{"$f":"IF(OrigTable!G784=\"\",\"\",ScriptText!$E$1&CHAR(10)&ScriptText!$C$1)","v":""},0]
["\n\n\n",{"$f":"IF(OrigTable!A785=\"\",\"\",ScriptText!$B$1&CHAR(10)&ScriptText!$D$1)","v":""},{"$f":"IF(OrigTable!A785=\"\",\"\",TEXT(OrigTable!A785,\"00\"))","v":""},{"$f":"IF(OrigTable!A785=\"\",\"\",ScriptText!$E$1&CHAR(10)&ScriptText!$C$1)","v":""},{"$f":"IF(OrigTable!B785=\"\",\"\",ScriptText!$B$1&CHAR(10)&ScriptText!$D$1)","v":""},{"$f":"IF(OrigTable!B785=\"\",\"\",TEXT(OrigTable!B785,\"00\"))","v":""},{"$f":"IF(OrigTable!B785=\"\",\"\",ScriptText!$E$1&CHAR(10)&ScriptText!C780)","v":""},{"$f":"IF(OrigTable!C785=\"\",\"\",ScriptText!$B$1&CHAR(10)&ScriptText!$D$1)","v":""},{"$f":"IF(OrigTable!C785=\"\",\"\",IF(LEN(OrigTable!C785)>255,LEFT(OrigTable!C785,250)&\". . .\",OrigTable!C785))","v":""},{"$f":"IF(OrigTable!C785=\"\",\"\",ScriptText!$E$1&CHAR(10)&ScriptText!$C$1)","v":""},{"$f":"IF(OrigTable!D785=\"\",\"\",ScriptText!$B$1&CHAR(10)&ScriptText!$D$1)","v":""},{"$f":"IF(OrigTable!D785=\"\",\"\",TEXT(OrigTable!D785,\"00\"))","v":""},{"$f":"IF(OrigTable!D785=\"\",\"\",ScriptText!$E$1&CHAR(10)&ScriptText!$C$1)","v":""},{"$f":"IF(OrigTable!E785=\"\",\"\",ScriptText!$B$1&CHAR(10)&ScriptText!$D$1)","v":""},{"$f":"IF(OrigTable!E785=\"\",\"\",TEXT(OrigTable!E785,\"00\"))","v":""},{"$f":"IF(OrigTable!E785=\"\",\"\",ScriptText!$E$1&CHAR(10)&ScriptText!$C$1)","v":""},{"$f":"IF(OrigTable!F785=\"\",\"\",ScriptText!$B$1&CHAR(10)&ScriptText!$D$1)","v":""},{"$f":"IF(OrigTable!F785=\"\",\"\",TEXT(OrigTable!F785,\"00\"))","v":""},{"$f":"IF(OrigTable!F785=\"\",\"\",ScriptText!$E$1&CHAR(10)&ScriptText!$C$1)","v":""},{"$f":"IF(OrigTable!G785=\"\",\"\",ScriptText!$B$1&CHAR(10)&ScriptText!$D$1)","v":""},{"$f":"IF(OrigTable!G785=\"\",\"\",TEXT(OrigTable!G785,\"00\"))","v":""},{"$f":"IF(OrigTable!G785=\"\",\"\",ScriptText!$E$1&CHAR(10)&ScriptText!$C$1)","v":""},0]
["\n\n\n",{"$f":"IF(OrigTable!A786=\"\",\"\",ScriptText!$B$1&CHAR(10)&ScriptText!$D$1)","v":""},{"$f":"IF(OrigTable!A786=\"\",\"\",TEXT(OrigTable!A786,\"00\"))","v":""},{"$f":"IF(OrigTable!A786=\"\",\"\",ScriptText!$E$1&CHAR(10)&ScriptText!$C$1)","v":""},{"$f":"IF(OrigTable!B786=\"\",\"\",ScriptText!$B$1&CHAR(10)&ScriptText!$D$1)","v":""},{"$f":"IF(OrigTable!B786=\"\",\"\",TEXT(OrigTable!B786,\"00\"))","v":""},{"$f":"IF(OrigTable!B786=\"\",\"\",ScriptText!$E$1&CHAR(10)&ScriptText!C781)","v":""},{"$f":"IF(OrigTable!C786=\"\",\"\",ScriptText!$B$1&CHAR(10)&ScriptText!$D$1)","v":""},{"$f":"IF(OrigTable!C786=\"\",\"\",IF(LEN(OrigTable!C786)>255,LEFT(OrigTable!C786,250)&\". . .\",OrigTable!C786))","v":""},{"$f":"IF(OrigTable!C786=\"\",\"\",ScriptText!$E$1&CHAR(10)&ScriptText!$C$1)","v":""},{"$f":"IF(OrigTable!D786=\"\",\"\",ScriptText!$B$1&CHAR(10)&ScriptText!$D$1)","v":""},{"$f":"IF(OrigTable!D786=\"\",\"\",TEXT(OrigTable!D786,\"00\"))","v":""},{"$f":"IF(OrigTable!D786=\"\",\"\",ScriptText!$E$1&CHAR(10)&ScriptText!$C$1)","v":""},{"$f":"IF(OrigTable!E786=\"\",\"\",ScriptText!$B$1&CHAR(10)&ScriptText!$D$1)","v":""},{"$f":"IF(OrigTable!E786=\"\",\"\",TEXT(OrigTable!E786,\"00\"))","v":""},{"$f":"IF(OrigTable!E786=\"\",\"\",ScriptText!$E$1&CHAR(10)&ScriptText!$C$1)","v":""},{"$f":"IF(OrigTable!F786=\"\",\"\",ScriptText!$B$1&CHAR(10)&ScriptText!$D$1)","v":""},{"$f":"IF(OrigTable!F786=\"\",\"\",TEXT(OrigTable!F786,\"00\"))","v":""},{"$f":"IF(OrigTable!F786=\"\",\"\",ScriptText!$E$1&CHAR(10)&ScriptText!$C$1)","v":""},{"$f":"IF(OrigTable!G786=\"\",\"\",ScriptText!$B$1&CHAR(10)&ScriptText!$D$1)","v":""},{"$f":"IF(OrigTable!G786=\"\",\"\",TEXT(OrigTable!G786,\"00\"))","v":""},{"$f":"IF(OrigTable!G786=\"\",\"\",ScriptText!$E$1&CHAR(10)&ScriptText!$C$1)","v":""},0]
["\n\n\n",{"$f":"IF(OrigTable!A787=\"\",\"\",ScriptText!$B$1&CHAR(10)&ScriptText!$D$1)","v":""},{"$f":"IF(OrigTable!A787=\"\",\"\",TEXT(OrigTable!A787,\"00\"))","v":""},{"$f":"IF(OrigTable!A787=\"\",\"\",ScriptText!$E$1&CHAR(10)&ScriptText!$C$1)","v":""},{"$f":"IF(OrigTable!B787=\"\",\"\",ScriptText!$B$1&CHAR(10)&ScriptText!$D$1)","v":""},{"$f":"IF(OrigTable!B787=\"\",\"\",TEXT(OrigTable!B787,\"00\"))","v":""},{"$f":"IF(OrigTable!B787=\"\",\"\",ScriptText!$E$1&CHAR(10)&ScriptText!C782)","v":""},{"$f":"IF(OrigTable!C787=\"\",\"\",ScriptText!$B$1&CHAR(10)&ScriptText!$D$1)","v":""},{"$f":"IF(OrigTable!C787=\"\",\"\",IF(LEN(OrigTable!C787)>255,LEFT(OrigTable!C787,250)&\". . .\",OrigTable!C787))","v":""},{"$f":"IF(OrigTable!C787=\"\",\"\",ScriptText!$E$1&CHAR(10)&ScriptText!$C$1)","v":""},{"$f":"IF(OrigTable!D787=\"\",\"\",ScriptText!$B$1&CHAR(10)&ScriptText!$D$1)","v":""},{"$f":"IF(OrigTable!D787=\"\",\"\",TEXT(OrigTable!D787,\"00\"))","v":""},{"$f":"IF(OrigTable!D787=\"\",\"\",ScriptText!$E$1&CHAR(10)&ScriptText!$C$1)","v":""},{"$f":"IF(OrigTable!E787=\"\",\"\",ScriptText!$B$1&CHAR(10)&ScriptText!$D$1)","v":""},{"$f":"IF(OrigTable!E787=\"\",\"\",TEXT(OrigTable!E787,\"00\"))","v":""},{"$f":"IF(OrigTable!E787=\"\",\"\",ScriptText!$E$1&CHAR(10)&ScriptText!$C$1)","v":""},{"$f":"IF(OrigTable!F787=\"\",\"\",ScriptText!$B$1&CHAR(10)&ScriptText!$D$1)","v":""},{"$f":"IF(OrigTable!F787=\"\",\"\",TEXT(OrigTable!F787,\"00\"))","v":""},{"$f":"IF(OrigTable!F787=\"\",\"\",ScriptText!$E$1&CHAR(10)&ScriptText!$C$1)","v":""},{"$f":"IF(OrigTable!G787=\"\",\"\",ScriptText!$B$1&CHAR(10)&ScriptText!$D$1)","v":""},{"$f":"IF(OrigTable!G787=\"\",\"\",TEXT(OrigTable!G787,\"00\"))","v":""},{"$f":"IF(OrigTable!G787=\"\",\"\",ScriptText!$E$1&CHAR(10)&ScriptText!$C$1)","v":""},0]
["\n\n\n",{"$f":"IF(OrigTable!A788=\"\",\"\",ScriptText!$B$1&CHAR(10)&ScriptText!$D$1)","v":""},{"$f":"IF(OrigTable!A788=\"\",\"\",TEXT(OrigTable!A788,\"00\"))","v":""},{"$f":"IF(OrigTable!A788=\"\",\"\",ScriptText!$E$1&CHAR(10)&ScriptText!$C$1)","v":""},{"$f":"IF(OrigTable!B788=\"\",\"\",ScriptText!$B$1&CHAR(10)&ScriptText!$D$1)","v":""},{"$f":"IF(OrigTable!B788=\"\",\"\",TEXT(OrigTable!B788,\"00\"))","v":""},{"$f":"IF(OrigTable!B788=\"\",\"\",ScriptText!$E$1&CHAR(10)&ScriptText!C783)","v":""},{"$f":"IF(OrigTable!C788=\"\",\"\",ScriptText!$B$1&CHAR(10)&ScriptText!$D$1)","v":""},{"$f":"IF(OrigTable!C788=\"\",\"\",IF(LEN(OrigTable!C788)>255,LEFT(OrigTable!C788,250)&\". . .\",OrigTable!C788))","v":""},{"$f":"IF(OrigTable!C788=\"\",\"\",ScriptText!$E$1&CHAR(10)&ScriptText!$C$1)","v":""},{"$f":"IF(OrigTable!D788=\"\",\"\",ScriptText!$B$1&CHAR(10)&ScriptText!$D$1)","v":""},{"$f":"IF(OrigTable!D788=\"\",\"\",TEXT(OrigTable!D788,\"00\"))","v":""},{"$f":"IF(OrigTable!D788=\"\",\"\",ScriptText!$E$1&CHAR(10)&ScriptText!$C$1)","v":""},{"$f":"IF(OrigTable!E788=\"\",\"\",ScriptText!$B$1&CHAR(10)&ScriptText!$D$1)","v":""},{"$f":"IF(OrigTable!E788=\"\",\"\",TEXT(OrigTable!E788,\"00\"))","v":""},{"$f":"IF(OrigTable!E788=\"\",\"\",ScriptText!$E$1&CHAR(10)&ScriptText!$C$1)","v":""},{"$f":"IF(OrigTable!F788=\"\",\"\",ScriptText!$B$1&CHAR(10)&ScriptText!$D$1)","v":""},{"$f":"IF(OrigTable!F788=\"\",\"\",TEXT(OrigTable!F788,\"00\"))","v":""},{"$f":"IF(OrigTable!F788=\"\",\"\",ScriptText!$E$1&CHAR(10)&ScriptText!$C$1)","v":""},{"$f":"IF(OrigTable!G788=\"\",\"\",ScriptText!$B$1&CHAR(10)&ScriptText!$D$1)","v":""},{"$f":"IF(OrigTable!G788=\"\",\"\",TEXT(OrigTable!G788,\"00\"))","v":""},{"$f":"IF(OrigTable!G788=\"\",\"\",ScriptText!$E$1&CHAR(10)&ScriptText!$C$1)","v":""},0]
["\n\n\n",{"$f":"IF(OrigTable!A789=\"\",\"\",ScriptText!$B$1&CHAR(10)&ScriptText!$D$1)","v":""},{"$f":"IF(OrigTable!A789=\"\",\"\",TEXT(OrigTable!A789,\"00\"))","v":""},{"$f":"IF(OrigTable!A789=\"\",\"\",ScriptText!$E$1&CHAR(10)&ScriptText!$C$1)","v":""},{"$f":"IF(OrigTable!B789=\"\",\"\",ScriptText!$B$1&CHAR(10)&ScriptText!$D$1)","v":""},{"$f":"IF(OrigTable!B789=\"\",\"\",TEXT(OrigTable!B789,\"00\"))","v":""},{"$f":"IF(OrigTable!B789=\"\",\"\",ScriptText!$E$1&CHAR(10)&ScriptText!C784)","v":""},{"$f":"IF(OrigTable!C789=\"\",\"\",ScriptText!$B$1&CHAR(10)&ScriptText!$D$1)","v":""},{"$f":"IF(OrigTable!C789=\"\",\"\",IF(LEN(OrigTable!C789)>255,LEFT(OrigTable!C789,250)&\". . .\",OrigTable!C789))","v":""},{"$f":"IF(OrigTable!C789=\"\",\"\",ScriptText!$E$1&CHAR(10)&ScriptText!$C$1)","v":""},{"$f":"IF(OrigTable!D789=\"\",\"\",ScriptText!$B$1&CHAR(10)&ScriptText!$D$1)","v":""},{"$f":"IF(OrigTable!D789=\"\",\"\",TEXT(OrigTable!D789,\"00\"))","v":""},{"$f":"IF(OrigTable!D789=\"\",\"\",ScriptText!$E$1&CHAR(10)&ScriptText!$C$1)","v":""},{"$f":"IF(OrigTable!E789=\"\",\"\",ScriptText!$B$1&CHAR(10)&ScriptText!$D$1)","v":""},{"$f":"IF(OrigTable!E789=\"\",\"\",TEXT(OrigTable!E789,\"00\"))","v":""},{"$f":"IF(OrigTable!E789=\"\",\"\",ScriptText!$E$1&CHAR(10)&ScriptText!$C$1)","v":""},{"$f":"IF(OrigTable!F789=\"\",\"\",ScriptText!$B$1&CHAR(10)&ScriptText!$D$1)","v":""},{"$f":"IF(OrigTable!F789=\"\",\"\",TEXT(OrigTable!F789,\"00\"))","v":""},{"$f":"IF(OrigTable!F789=\"\",\"\",ScriptText!$E$1&CHAR(10)&ScriptText!$C$1)","v":""},{"$f":"IF(OrigTable!G789=\"\",\"\",ScriptText!$B$1&CHAR(10)&ScriptText!$D$1)","v":""},{"$f":"IF(OrigTable!G789=\"\",\"\",TEXT(OrigTable!G789,\"00\"))","v":""},{"$f":"IF(OrigTable!G789=\"\",\"\",ScriptText!$E$1&CHAR(10)&ScriptText!$C$1)","v":""},0]
["\n\n\n",{"$f":"IF(OrigTable!A790=\"\",\"\",ScriptText!$B$1&CHAR(10)&ScriptText!$D$1)","v":""},{"$f":"IF(OrigTable!A790=\"\",\"\",TEXT(OrigTable!A790,\"00\"))","v":""},{"$f":"IF(OrigTable!A790=\"\",\"\",ScriptText!$E$1&CHAR(10)&ScriptText!$C$1)","v":""},{"$f":"IF(OrigTable!B790=\"\",\"\",ScriptText!$B$1&CHAR(10)&ScriptText!$D$1)","v":""},{"$f":"IF(OrigTable!B790=\"\",\"\",TEXT(OrigTable!B790,\"00\"))","v":""},{"$f":"IF(OrigTable!B790=\"\",\"\",ScriptText!$E$1&CHAR(10)&ScriptText!C785)","v":""},{"$f":"IF(OrigTable!C790=\"\",\"\",ScriptText!$B$1&CHAR(10)&ScriptText!$D$1)","v":""},{"$f":"IF(OrigTable!C790=\"\",\"\",IF(LEN(OrigTable!C790)>255,LEFT(OrigTable!C790,250)&\". . .\",OrigTable!C790))","v":""},{"$f":"IF(OrigTable!C790=\"\",\"\",ScriptText!$E$1&CHAR(10)&ScriptText!$C$1)","v":""},{"$f":"IF(OrigTable!D790=\"\",\"\",ScriptText!$B$1&CHAR(10)&ScriptText!$D$1)","v":""},{"$f":"IF(OrigTable!D790=\"\",\"\",TEXT(OrigTable!D790,\"00\"))","v":""},{"$f":"IF(OrigTable!D790=\"\",\"\",ScriptText!$E$1&CHAR(10)&ScriptText!$C$1)","v":""},{"$f":"IF(OrigTable!E790=\"\",\"\",ScriptText!$B$1&CHAR(10)&ScriptText!$D$1)","v":""},{"$f":"IF(OrigTable!E790=\"\",\"\",TEXT(OrigTable!E790,\"00\"))","v":""},{"$f":"IF(OrigTable!E790=\"\",\"\",ScriptText!$E$1&CHAR(10)&ScriptText!$C$1)","v":""},{"$f":"IF(OrigTable!F790=\"\",\"\",ScriptText!$B$1&CHAR(10)&ScriptText!$D$1)","v":""},{"$f":"IF(OrigTable!F790=\"\",\"\",TEXT(OrigTable!F790,\"00\"))","v":""},{"$f":"IF(OrigTable!F790=\"\",\"\",ScriptText!$E$1&CHAR(10)&ScriptText!$C$1)","v":""},{"$f":"IF(OrigTable!G790=\"\",\"\",ScriptText!$B$1&CHAR(10)&ScriptText!$D$1)","v":""},{"$f":"IF(OrigTable!G790=\"\",\"\",TEXT(OrigTable!G790,\"00\"))","v":""},{"$f":"IF(OrigTable!G790=\"\",\"\",ScriptText!$E$1&CHAR(10)&ScriptText!$C$1)","v":""},0]
["\n\n\n",{"$f":"IF(OrigTable!A791=\"\",\"\",ScriptText!$B$1&CHAR(10)&ScriptText!$D$1)","v":""},{"$f":"IF(OrigTable!A791=\"\",\"\",TEXT(OrigTable!A791,\"00\"))","v":""},{"$f":"IF(OrigTable!A791=\"\",\"\",ScriptText!$E$1&CHAR(10)&ScriptText!$C$1)","v":""},{"$f":"IF(OrigTable!B791=\"\",\"\",ScriptText!$B$1&CHAR(10)&ScriptText!$D$1)","v":""},{"$f":"IF(OrigTable!B791=\"\",\"\",TEXT(OrigTable!B791,\"00\"))","v":""},{"$f":"IF(OrigTable!B791=\"\",\"\",ScriptText!$E$1&CHAR(10)&ScriptText!C786)","v":""},{"$f":"IF(OrigTable!C791=\"\",\"\",ScriptText!$B$1&CHAR(10)&ScriptText!$D$1)","v":""},{"$f":"IF(OrigTable!C791=\"\",\"\",IF(LEN(OrigTable!C791)>255,LEFT(OrigTable!C791,250)&\". . .\",OrigTable!C791))","v":""},{"$f":"IF(OrigTable!C791=\"\",\"\",ScriptText!$E$1&CHAR(10)&ScriptText!$C$1)","v":""},{"$f":"IF(OrigTable!D791=\"\",\"\",ScriptText!$B$1&CHAR(10)&ScriptText!$D$1)","v":""},{"$f":"IF(OrigTable!D791=\"\",\"\",TEXT(OrigTable!D791,\"00\"))","v":""},{"$f":"IF(OrigTable!D791=\"\",\"\",ScriptText!$E$1&CHAR(10)&ScriptText!$C$1)","v":""},{"$f":"IF(OrigTable!E791=\"\",\"\",ScriptText!$B$1&CHAR(10)&ScriptText!$D$1)","v":""},{"$f":"IF(OrigTable!E791=\"\",\"\",TEXT(OrigTable!E791,\"00\"))","v":""},{"$f":"IF(OrigTable!E791=\"\",\"\",ScriptText!$E$1&CHAR(10)&ScriptText!$C$1)","v":""},{"$f":"IF(OrigTable!F791=\"\",\"\",ScriptText!$B$1&CHAR(10)&ScriptText!$D$1)","v":""},{"$f":"IF(OrigTable!F791=\"\",\"\",TEXT(OrigTable!F791,\"00\"))","v":""},{"$f":"IF(OrigTable!F791=\"\",\"\",ScriptText!$E$1&CHAR(10)&ScriptText!$C$1)","v":""},{"$f":"IF(OrigTable!G791=\"\",\"\",ScriptText!$B$1&CHAR(10)&ScriptText!$D$1)","v":""},{"$f":"IF(OrigTable!G791=\"\",\"\",TEXT(OrigTable!G791,\"00\"))","v":""},{"$f":"IF(OrigTable!G791=\"\",\"\",ScriptText!$E$1&CHAR(10)&ScriptText!$C$1)","v":""},0]
["\n\n\n",{"$f":"IF(OrigTable!A792=\"\",\"\",ScriptText!$B$1&CHAR(10)&ScriptText!$D$1)","v":""},{"$f":"IF(OrigTable!A792=\"\",\"\",TEXT(OrigTable!A792,\"00\"))","v":""},{"$f":"IF(OrigTable!A792=\"\",\"\",ScriptText!$E$1&CHAR(10)&ScriptText!$C$1)","v":""},{"$f":"IF(OrigTable!B792=\"\",\"\",ScriptText!$B$1&CHAR(10)&ScriptText!$D$1)","v":""},{"$f":"IF(OrigTable!B792=\"\",\"\",TEXT(OrigTable!B792,\"00\"))","v":""},{"$f":"IF(OrigTable!B792=\"\",\"\",ScriptText!$E$1&CHAR(10)&ScriptText!C787)","v":""},{"$f":"IF(OrigTable!C792=\"\",\"\",ScriptText!$B$1&CHAR(10)&ScriptText!$D$1)","v":""},{"$f":"IF(OrigTable!C792=\"\",\"\",IF(LEN(OrigTable!C792)>255,LEFT(OrigTable!C792,250)&\". . .\",OrigTable!C792))","v":""},{"$f":"IF(OrigTable!C792=\"\",\"\",ScriptText!$E$1&CHAR(10)&ScriptText!$C$1)","v":""},{"$f":"IF(OrigTable!D792=\"\",\"\",ScriptText!$B$1&CHAR(10)&ScriptText!$D$1)","v":""},{"$f":"IF(OrigTable!D792=\"\",\"\",TEXT(OrigTable!D792,\"00\"))","v":""},{"$f":"IF(OrigTable!D792=\"\",\"\",ScriptText!$E$1&CHAR(10)&ScriptText!$C$1)","v":""},{"$f":"IF(OrigTable!E792=\"\",\"\",ScriptText!$B$1&CHAR(10)&ScriptText!$D$1)","v":""},{"$f":"IF(OrigTable!E792=\"\",\"\",TEXT(OrigTable!E792,\"00\"))","v":""},{"$f":"IF(OrigTable!E792=\"\",\"\",ScriptText!$E$1&CHAR(10)&ScriptText!$C$1)","v":""},{"$f":"IF(OrigTable!F792=\"\",\"\",ScriptText!$B$1&CHAR(10)&ScriptText!$D$1)","v":""},{"$f":"IF(OrigTable!F792=\"\",\"\",TEXT(OrigTable!F792,\"00\"))","v":""},{"$f":"IF(OrigTable!F792=\"\",\"\",ScriptText!$E$1&CHAR(10)&ScriptText!$C$1)","v":""},{"$f":"IF(OrigTable!G792=\"\",\"\",ScriptText!$B$1&CHAR(10)&ScriptText!$D$1)","v":""},{"$f":"IF(OrigTable!G792=\"\",\"\",TEXT(OrigTable!G792,\"00\"))","v":""},{"$f":"IF(OrigTable!G792=\"\",\"\",ScriptText!$E$1&CHAR(10)&ScriptText!$C$1)","v":""},0]
["\n\n\n",{"$f":"IF(OrigTable!A793=\"\",\"\",ScriptText!$B$1&CHAR(10)&ScriptText!$D$1)","v":""},{"$f":"IF(OrigTable!A793=\"\",\"\",TEXT(OrigTable!A793,\"00\"))","v":""},{"$f":"IF(OrigTable!A793=\"\",\"\",ScriptText!$E$1&CHAR(10)&ScriptText!$C$1)","v":""},{"$f":"IF(OrigTable!B793=\"\",\"\",ScriptText!$B$1&CHAR(10)&ScriptText!$D$1)","v":""},{"$f":"IF(OrigTable!B793=\"\",\"\",TEXT(OrigTable!B793,\"00\"))","v":""},{"$f":"IF(OrigTable!B793=\"\",\"\",ScriptText!$E$1&CHAR(10)&ScriptText!C788)","v":""},{"$f":"IF(OrigTable!C793=\"\",\"\",ScriptText!$B$1&CHAR(10)&ScriptText!$D$1)","v":""},{"$f":"IF(OrigTable!C793=\"\",\"\",IF(LEN(OrigTable!C793)>255,LEFT(OrigTable!C793,250)&\". . .\",OrigTable!C793))","v":""},{"$f":"IF(OrigTable!C793=\"\",\"\",ScriptText!$E$1&CHAR(10)&ScriptText!$C$1)","v":""},{"$f":"IF(OrigTable!D793=\"\",\"\",ScriptText!$B$1&CHAR(10)&ScriptText!$D$1)","v":""},{"$f":"IF(OrigTable!D793=\"\",\"\",TEXT(OrigTable!D793,\"00\"))","v":""},{"$f":"IF(OrigTable!D793=\"\",\"\",ScriptText!$E$1&CHAR(10)&ScriptText!$C$1)","v":""},{"$f":"IF(OrigTable!E793=\"\",\"\",ScriptText!$B$1&CHAR(10)&ScriptText!$D$1)","v":""},{"$f":"IF(OrigTable!E793=\"\",\"\",TEXT(OrigTable!E793,\"00\"))","v":""},{"$f":"IF(OrigTable!E793=\"\",\"\",ScriptText!$E$1&CHAR(10)&ScriptText!$C$1)","v":""},{"$f":"IF(OrigTable!F793=\"\",\"\",ScriptText!$B$1&CHAR(10)&ScriptText!$D$1)","v":""},{"$f":"IF(OrigTable!F793=\"\",\"\",TEXT(OrigTable!F793,\"00\"))","v":""},{"$f":"IF(OrigTable!F793=\"\",\"\",ScriptText!$E$1&CHAR(10)&ScriptText!$C$1)","v":""},{"$f":"IF(OrigTable!G793=\"\",\"\",ScriptText!$B$1&CHAR(10)&ScriptText!$D$1)","v":""},{"$f":"IF(OrigTable!G793=\"\",\"\",TEXT(OrigTable!G793,\"00\"))","v":""},{"$f":"IF(OrigTable!G793=\"\",\"\",ScriptText!$E$1&CHAR(10)&ScriptText!$C$1)","v":""},0]
["\n\n\n",{"$f":"IF(OrigTable!A794=\"\",\"\",ScriptText!$B$1&CHAR(10)&ScriptText!$D$1)","v":""},{"$f":"IF(OrigTable!A794=\"\",\"\",TEXT(OrigTable!A794,\"00\"))","v":""},{"$f":"IF(OrigTable!A794=\"\",\"\",ScriptText!$E$1&CHAR(10)&ScriptText!$C$1)","v":""},{"$f":"IF(OrigTable!B794=\"\",\"\",ScriptText!$B$1&CHAR(10)&ScriptText!$D$1)","v":""},{"$f":"IF(OrigTable!B794=\"\",\"\",TEXT(OrigTable!B794,\"00\"))","v":""},{"$f":"IF(OrigTable!B794=\"\",\"\",ScriptText!$E$1&CHAR(10)&ScriptText!C789)","v":""},{"$f":"IF(OrigTable!C794=\"\",\"\",ScriptText!$B$1&CHAR(10)&ScriptText!$D$1)","v":""},{"$f":"IF(OrigTable!C794=\"\",\"\",IF(LEN(OrigTable!C794)>255,LEFT(OrigTable!C794,250)&\". . .\",OrigTable!C794))","v":""},{"$f":"IF(OrigTable!C794=\"\",\"\",ScriptText!$E$1&CHAR(10)&ScriptText!$C$1)","v":""},{"$f":"IF(OrigTable!D794=\"\",\"\",ScriptText!$B$1&CHAR(10)&ScriptText!$D$1)","v":""},{"$f":"IF(OrigTable!D794=\"\",\"\",TEXT(OrigTable!D794,\"00\"))","v":""},{"$f":"IF(OrigTable!D794=\"\",\"\",ScriptText!$E$1&CHAR(10)&ScriptText!$C$1)","v":""},{"$f":"IF(OrigTable!E794=\"\",\"\",ScriptText!$B$1&CHAR(10)&ScriptText!$D$1)","v":""},{"$f":"IF(OrigTable!E794=\"\",\"\",TEXT(OrigTable!E794,\"00\"))","v":""},{"$f":"IF(OrigTable!E794=\"\",\"\",ScriptText!$E$1&CHAR(10)&ScriptText!$C$1)","v":""},{"$f":"IF(OrigTable!F794=\"\",\"\",ScriptText!$B$1&CHAR(10)&ScriptText!$D$1)","v":""},{"$f":"IF(OrigTable!F794=\"\",\"\",TEXT(OrigTable!F794,\"00\"))","v":""},{"$f":"IF(OrigTable!F794=\"\",\"\",ScriptText!$E$1&CHAR(10)&ScriptText!$C$1)","v":""},{"$f":"IF(OrigTable!G794=\"\",\"\",ScriptText!$B$1&CHAR(10)&ScriptText!$D$1)","v":""},{"$f":"IF(OrigTable!G794=\"\",\"\",TEXT(OrigTable!G794,\"00\"))","v":""},{"$f":"IF(OrigTable!G794=\"\",\"\",ScriptText!$E$1&CHAR(10)&ScriptText!$C$1)","v":""},0]
["\n\n\n",{"$f":"IF(OrigTable!A795=\"\",\"\",ScriptText!$B$1&CHAR(10)&ScriptText!$D$1)","v":""},{"$f":"IF(OrigTable!A795=\"\",\"\",TEXT(OrigTable!A795,\"00\"))","v":""},{"$f":"IF(OrigTable!A795=\"\",\"\",ScriptText!$E$1&CHAR(10)&ScriptText!$C$1)","v":""},{"$f":"IF(OrigTable!B795=\"\",\"\",ScriptText!$B$1&CHAR(10)&ScriptText!$D$1)","v":""},{"$f":"IF(OrigTable!B795=\"\",\"\",TEXT(OrigTable!B795,\"00\"))","v":""},{"$f":"IF(OrigTable!B795=\"\",\"\",ScriptText!$E$1&CHAR(10)&ScriptText!C790)","v":""},{"$f":"IF(OrigTable!C795=\"\",\"\",ScriptText!$B$1&CHAR(10)&ScriptText!$D$1)","v":""},{"$f":"IF(OrigTable!C795=\"\",\"\",IF(LEN(OrigTable!C795)>255,LEFT(OrigTable!C795,250)&\". . .\",OrigTable!C795))","v":""},{"$f":"IF(OrigTable!C795=\"\",\"\",ScriptText!$E$1&CHAR(10)&ScriptText!$C$1)","v":""},{"$f":"IF(OrigTable!D795=\"\",\"\",ScriptText!$B$1&CHAR(10)&ScriptText!$D$1)","v":""},{"$f":"IF(OrigTable!D795=\"\",\"\",TEXT(OrigTable!D795,\"00\"))","v":""},{"$f":"IF(OrigTable!D795=\"\",\"\",ScriptText!$E$1&CHAR(10)&ScriptText!$C$1)","v":""},{"$f":"IF(OrigTable!E795=\"\",\"\",ScriptText!$B$1&CHAR(10)&ScriptText!$D$1)","v":""},{"$f":"IF(OrigTable!E795=\"\",\"\",TEXT(OrigTable!E795,\"00\"))","v":""},{"$f":"IF(OrigTable!E795=\"\",\"\",ScriptText!$E$1&CHAR(10)&ScriptText!$C$1)","v":""},{"$f":"IF(OrigTable!F795=\"\",\"\",ScriptText!$B$1&CHAR(10)&ScriptText!$D$1)","v":""},{"$f":"IF(OrigTable!F795=\"\",\"\",TEXT(OrigTable!F795,\"00\"))","v":""},{"$f":"IF(OrigTable!F795=\"\",\"\",ScriptText!$E$1&CHAR(10)&ScriptText!$C$1)","v":""},{"$f":"IF(OrigTable!G795=\"\",\"\",ScriptText!$B$1&CHAR(10)&ScriptText!$D$1)","v":""},{"$f":"IF(OrigTable!G795=\"\",\"\",TEXT(OrigTable!G795,\"00\"))","v":""},{"$f":"IF(OrigTable!G795=\"\",\"\",ScriptText!$E$1&CHAR(10)&ScriptText!$C$1)","v":""},0]
["\n\n\n",{"$f":"IF(OrigTable!A796=\"\",\"\",ScriptText!$B$1&CHAR(10)&ScriptText!$D$1)","v":""},{"$f":"IF(OrigTable!A796=\"\",\"\",TEXT(OrigTable!A796,\"00\"))","v":""},{"$f":"IF(OrigTable!A796=\"\",\"\",ScriptText!$E$1&CHAR(10)&ScriptText!$C$1)","v":""},{"$f":"IF(OrigTable!B796=\"\",\"\",ScriptText!$B$1&CHAR(10)&ScriptText!$D$1)","v":""},{"$f":"IF(OrigTable!B796=\"\",\"\",TEXT(OrigTable!B796,\"00\"))","v":""},{"$f":"IF(OrigTable!B796=\"\",\"\",ScriptText!$E$1&CHAR(10)&ScriptText!C791)","v":""},{"$f":"IF(OrigTable!C796=\"\",\"\",ScriptText!$B$1&CHAR(10)&ScriptText!$D$1)","v":""},{"$f":"IF(OrigTable!C796=\"\",\"\",IF(LEN(OrigTable!C796)>255,LEFT(OrigTable!C796,250)&\". . .\",OrigTable!C796))","v":""},{"$f":"IF(OrigTable!C796=\"\",\"\",ScriptText!$E$1&CHAR(10)&ScriptText!$C$1)","v":""},{"$f":"IF(OrigTable!D796=\"\",\"\",ScriptText!$B$1&CHAR(10)&ScriptText!$D$1)","v":""},{"$f":"IF(OrigTable!D796=\"\",\"\",TEXT(OrigTable!D796,\"00\"))","v":""},{"$f":"IF(OrigTable!D796=\"\",\"\",ScriptText!$E$1&CHAR(10)&ScriptText!$C$1)","v":""},{"$f":"IF(OrigTable!E796=\"\",\"\",ScriptText!$B$1&CHAR(10)&ScriptText!$D$1)","v":""},{"$f":"IF(OrigTable!E796=\"\",\"\",TEXT(OrigTable!E796,\"00\"))","v":""},{"$f":"IF(OrigTable!E796=\"\",\"\",ScriptText!$E$1&CHAR(10)&ScriptText!$C$1)","v":""},{"$f":"IF(OrigTable!F796=\"\",\"\",ScriptText!$B$1&CHAR(10)&ScriptText!$D$1)","v":""},{"$f":"IF(OrigTable!F796=\"\",\"\",TEXT(OrigTable!F796,\"00\"))","v":""},{"$f":"IF(OrigTable!F796=\"\",\"\",ScriptText!$E$1&CHAR(10)&ScriptText!$C$1)","v":""},{"$f":"IF(OrigTable!G796=\"\",\"\",ScriptText!$B$1&CHAR(10)&ScriptText!$D$1)","v":""},{"$f":"IF(OrigTable!G796=\"\",\"\",TEXT(OrigTable!G796,\"00\"))","v":""},{"$f":"IF(OrigTable!G796=\"\",\"\",ScriptText!$E$1&CHAR(10)&ScriptText!$C$1)","v":""},0]
["\n\n\n",{"$f":"IF(OrigTable!A797=\"\",\"\",ScriptText!$B$1&CHAR(10)&ScriptText!$D$1)","v":""},{"$f":"IF(OrigTable!A797=\"\",\"\",TEXT(OrigTable!A797,\"00\"))","v":""},{"$f":"IF(OrigTable!A797=\"\",\"\",ScriptText!$E$1&CHAR(10)&ScriptText!$C$1)","v":""},{"$f":"IF(OrigTable!B797=\"\",\"\",ScriptText!$B$1&CHAR(10)&ScriptText!$D$1)","v":""},{"$f":"IF(OrigTable!B797=\"\",\"\",TEXT(OrigTable!B797,\"00\"))","v":""},{"$f":"IF(OrigTable!B797=\"\",\"\",ScriptText!$E$1&CHAR(10)&ScriptText!C792)","v":""},{"$f":"IF(OrigTable!C797=\"\",\"\",ScriptText!$B$1&CHAR(10)&ScriptText!$D$1)","v":""},{"$f":"IF(OrigTable!C797=\"\",\"\",IF(LEN(OrigTable!C797)>255,LEFT(OrigTable!C797,250)&\". . .\",OrigTable!C797))","v":""},{"$f":"IF(OrigTable!C797=\"\",\"\",ScriptText!$E$1&CHAR(10)&ScriptText!$C$1)","v":""},{"$f":"IF(OrigTable!D797=\"\",\"\",ScriptText!$B$1&CHAR(10)&ScriptText!$D$1)","v":""},{"$f":"IF(OrigTable!D797=\"\",\"\",TEXT(OrigTable!D797,\"00\"))","v":""},{"$f":"IF(OrigTable!D797=\"\",\"\",ScriptText!$E$1&CHAR(10)&ScriptText!$C$1)","v":""},{"$f":"IF(OrigTable!E797=\"\",\"\",ScriptText!$B$1&CHAR(10)&ScriptText!$D$1)","v":""},{"$f":"IF(OrigTable!E797=\"\",\"\",TEXT(OrigTable!E797,\"00\"))","v":""},{"$f":"IF(OrigTable!E797=\"\",\"\",ScriptText!$E$1&CHAR(10)&ScriptText!$C$1)","v":""},{"$f":"IF(OrigTable!F797=\"\",\"\",ScriptText!$B$1&CHAR(10)&ScriptText!$D$1)","v":""},{"$f":"IF(OrigTable!F797=\"\",\"\",TEXT(OrigTable!F797,\"00\"))","v":""},{"$f":"IF(OrigTable!F797=\"\",\"\",ScriptText!$E$1&CHAR(10)&ScriptText!$C$1)","v":""},{"$f":"IF(OrigTable!G797=\"\",\"\",ScriptText!$B$1&CHAR(10)&ScriptText!$D$1)","v":""},{"$f":"IF(OrigTable!G797=\"\",\"\",TEXT(OrigTable!G797,\"00\"))","v":""},{"$f":"IF(OrigTable!G797=\"\",\"\",ScriptText!$E$1&CHAR(10)&ScriptText!$C$1)","v":""},0]
["\n\n\n",{"$f":"IF(OrigTable!A798=\"\",\"\",ScriptText!$B$1&CHAR(10)&ScriptText!$D$1)","v":""},{"$f":"IF(OrigTable!A798=\"\",\"\",TEXT(OrigTable!A798,\"00\"))","v":""},{"$f":"IF(OrigTable!A798=\"\",\"\",ScriptText!$E$1&CHAR(10)&ScriptText!$C$1)","v":""},{"$f":"IF(OrigTable!B798=\"\",\"\",ScriptText!$B$1&CHAR(10)&ScriptText!$D$1)","v":""},{"$f":"IF(OrigTable!B798=\"\",\"\",TEXT(OrigTable!B798,\"00\"))","v":""},{"$f":"IF(OrigTable!B798=\"\",\"\",ScriptText!$E$1&CHAR(10)&ScriptText!C793)","v":""},{"$f":"IF(OrigTable!C798=\"\",\"\",ScriptText!$B$1&CHAR(10)&ScriptText!$D$1)","v":""},{"$f":"IF(OrigTable!C798=\"\",\"\",IF(LEN(OrigTable!C798)>255,LEFT(OrigTable!C798,250)&\". . .\",OrigTable!C798))","v":""},{"$f":"IF(OrigTable!C798=\"\",\"\",ScriptText!$E$1&CHAR(10)&ScriptText!$C$1)","v":""},{"$f":"IF(OrigTable!D798=\"\",\"\",ScriptText!$B$1&CHAR(10)&ScriptText!$D$1)","v":""},{"$f":"IF(OrigTable!D798=\"\",\"\",TEXT(OrigTable!D798,\"00\"))","v":""},{"$f":"IF(OrigTable!D798=\"\",\"\",ScriptText!$E$1&CHAR(10)&ScriptText!$C$1)","v":""},{"$f":"IF(OrigTable!E798=\"\",\"\",ScriptText!$B$1&CHAR(10)&ScriptText!$D$1)","v":""},{"$f":"IF(OrigTable!E798=\"\",\"\",TEXT(OrigTable!E798,\"00\"))","v":""},{"$f":"IF(OrigTable!E798=\"\",\"\",ScriptText!$E$1&CHAR(10)&ScriptText!$C$1)","v":""},{"$f":"IF(OrigTable!F798=\"\",\"\",ScriptText!$B$1&CHAR(10)&ScriptText!$D$1)","v":""},{"$f":"IF(OrigTable!F798=\"\",\"\",TEXT(OrigTable!F798,\"00\"))","v":""},{"$f":"IF(OrigTable!F798=\"\",\"\",ScriptText!$E$1&CHAR(10)&ScriptText!$C$1)","v":""},{"$f":"IF(OrigTable!G798=\"\",\"\",ScriptText!$B$1&CHAR(10)&ScriptText!$D$1)","v":""},{"$f":"IF(OrigTable!G798=\"\",\"\",TEXT(OrigTable!G798,\"00\"))","v":""},{"$f":"IF(OrigTable!G798=\"\",\"\",ScriptText!$E$1&CHAR(10)&ScriptText!$C$1)","v":""},0]
["\n\n\n",{"$f":"IF(OrigTable!A799=\"\",\"\",ScriptText!$B$1&CHAR(10)&ScriptText!$D$1)","v":""},{"$f":"IF(OrigTable!A799=\"\",\"\",TEXT(OrigTable!A799,\"00\"))","v":""},{"$f":"IF(OrigTable!A799=\"\",\"\",ScriptText!$E$1&CHAR(10)&ScriptText!$C$1)","v":""},{"$f":"IF(OrigTable!B799=\"\",\"\",ScriptText!$B$1&CHAR(10)&ScriptText!$D$1)","v":""},{"$f":"IF(OrigTable!B799=\"\",\"\",TEXT(OrigTable!B799,\"00\"))","v":""},{"$f":"IF(OrigTable!B799=\"\",\"\",ScriptText!$E$1&CHAR(10)&ScriptText!C794)","v":""},{"$f":"IF(OrigTable!C799=\"\",\"\",ScriptText!$B$1&CHAR(10)&ScriptText!$D$1)","v":""},{"$f":"IF(OrigTable!C799=\"\",\"\",IF(LEN(OrigTable!C799)>255,LEFT(OrigTable!C799,250)&\". . .\",OrigTable!C799))","v":""},{"$f":"IF(OrigTable!C799=\"\",\"\",ScriptText!$E$1&CHAR(10)&ScriptText!$C$1)","v":""},{"$f":"IF(OrigTable!D799=\"\",\"\",ScriptText!$B$1&CHAR(10)&ScriptText!$D$1)","v":""},{"$f":"IF(OrigTable!D799=\"\",\"\",TEXT(OrigTable!D799,\"00\"))","v":""},{"$f":"IF(OrigTable!D799=\"\",\"\",ScriptText!$E$1&CHAR(10)&ScriptText!$C$1)","v":""},{"$f":"IF(OrigTable!E799=\"\",\"\",ScriptText!$B$1&CHAR(10)&ScriptText!$D$1)","v":""},{"$f":"IF(OrigTable!E799=\"\",\"\",TEXT(OrigTable!E799,\"00\"))","v":""},{"$f":"IF(OrigTable!E799=\"\",\"\",ScriptText!$E$1&CHAR(10)&ScriptText!$C$1)","v":""},{"$f":"IF(OrigTable!F799=\"\",\"\",ScriptText!$B$1&CHAR(10)&ScriptText!$D$1)","v":""},{"$f":"IF(OrigTable!F799=\"\",\"\",TEXT(OrigTable!F799,\"00\"))","v":""},{"$f":"IF(OrigTable!F799=\"\",\"\",ScriptText!$E$1&CHAR(10)&ScriptText!$C$1)","v":""},{"$f":"IF(OrigTable!G799=\"\",\"\",ScriptText!$B$1&CHAR(10)&ScriptText!$D$1)","v":""},{"$f":"IF(OrigTable!G799=\"\",\"\",TEXT(OrigTable!G799,\"00\"))","v":""},{"$f":"IF(OrigTable!G799=\"\",\"\",ScriptText!$E$1&CHAR(10)&ScriptText!$C$1)","v":""},0]
["\n\n\n",{"$f":"IF(OrigTable!A800=\"\",\"\",ScriptText!$B$1&CHAR(10)&ScriptText!$D$1)","v":""},{"$f":"IF(OrigTable!A800=\"\",\"\",TEXT(OrigTable!A800,\"00\"))","v":""},{"$f":"IF(OrigTable!A800=\"\",\"\",ScriptText!$E$1&CHAR(10)&ScriptText!$C$1)","v":""},{"$f":"IF(OrigTable!B800=\"\",\"\",ScriptText!$B$1&CHAR(10)&ScriptText!$D$1)","v":""},{"$f":"IF(OrigTable!B800=\"\",\"\",TEXT(OrigTable!B800,\"00\"))","v":""},{"$f":"IF(OrigTable!B800=\"\",\"\",ScriptText!$E$1&CHAR(10)&ScriptText!C795)","v":""},{"$f":"IF(OrigTable!C800=\"\",\"\",ScriptText!$B$1&CHAR(10)&ScriptText!$D$1)","v":""},{"$f":"IF(OrigTable!C800=\"\",\"\",IF(LEN(OrigTable!C800)>255,LEFT(OrigTable!C800,250)&\". . .\",OrigTable!C800))","v":""},{"$f":"IF(OrigTable!C800=\"\",\"\",ScriptText!$E$1&CHAR(10)&ScriptText!$C$1)","v":""},{"$f":"IF(OrigTable!D800=\"\",\"\",ScriptText!$B$1&CHAR(10)&ScriptText!$D$1)","v":""},{"$f":"IF(OrigTable!D800=\"\",\"\",TEXT(OrigTable!D800,\"00\"))","v":""},{"$f":"IF(OrigTable!D800=\"\",\"\",ScriptText!$E$1&CHAR(10)&ScriptText!$C$1)","v":""},{"$f":"IF(OrigTable!E800=\"\",\"\",ScriptText!$B$1&CHAR(10)&ScriptText!$D$1)","v":""},{"$f":"IF(OrigTable!E800=\"\",\"\",TEXT(OrigTable!E800,\"00\"))","v":""},{"$f":"IF(OrigTable!E800=\"\",\"\",ScriptText!$E$1&CHAR(10)&ScriptText!$C$1)","v":""},{"$f":"IF(OrigTable!F800=\"\",\"\",ScriptText!$B$1&CHAR(10)&ScriptText!$D$1)","v":""},{"$f":"IF(OrigTable!F800=\"\",\"\",TEXT(OrigTable!F800,\"00\"))","v":""},{"$f":"IF(OrigTable!F800=\"\",\"\",ScriptText!$E$1&CHAR(10)&ScriptText!$C$1)","v":""},{"$f":"IF(OrigTable!G800=\"\",\"\",ScriptText!$B$1&CHAR(10)&ScriptText!$D$1)","v":""},{"$f":"IF(OrigTable!G800=\"\",\"\",TEXT(OrigTable!G800,\"00\"))","v":""},{"$f":"IF(OrigTable!G800=\"\",\"\",ScriptText!$E$1&CHAR(10)&ScriptText!$C$1)","v":""},0]
["\n\n\n",{"$f":"IF(OrigTable!A801=\"\",\"\",ScriptText!$B$1&CHAR(10)&ScriptText!$D$1)","v":""},{"$f":"IF(OrigTable!A801=\"\",\"\",TEXT(OrigTable!A801,\"00\"))","v":""},{"$f":"IF(OrigTable!A801=\"\",\"\",ScriptText!$E$1&CHAR(10)&ScriptText!$C$1)","v":""},{"$f":"IF(OrigTable!B801=\"\",\"\",ScriptText!$B$1&CHAR(10)&ScriptText!$D$1)","v":""},{"$f":"IF(OrigTable!B801=\"\",\"\",TEXT(OrigTable!B801,\"00\"))","v":""},{"$f":"IF(OrigTable!B801=\"\",\"\",ScriptText!$E$1&CHAR(10)&ScriptText!C796)","v":""},{"$f":"IF(OrigTable!C801=\"\",\"\",ScriptText!$B$1&CHAR(10)&ScriptText!$D$1)","v":""},{"$f":"IF(OrigTable!C801=\"\",\"\",IF(LEN(OrigTable!C801)>255,LEFT(OrigTable!C801,250)&\". . .\",OrigTable!C801))","v":""},{"$f":"IF(OrigTable!C801=\"\",\"\",ScriptText!$E$1&CHAR(10)&ScriptText!$C$1)","v":""},{"$f":"IF(OrigTable!D801=\"\",\"\",ScriptText!$B$1&CHAR(10)&ScriptText!$D$1)","v":""},{"$f":"IF(OrigTable!D801=\"\",\"\",TEXT(OrigTable!D801,\"00\"))","v":""},{"$f":"IF(OrigTable!D801=\"\",\"\",ScriptText!$E$1&CHAR(10)&ScriptText!$C$1)","v":""},{"$f":"IF(OrigTable!E801=\"\",\"\",ScriptText!$B$1&CHAR(10)&ScriptText!$D$1)","v":""},{"$f":"IF(OrigTable!E801=\"\",\"\",TEXT(OrigTable!E801,\"00\"))","v":""},{"$f":"IF(OrigTable!E801=\"\",\"\",ScriptText!$E$1&CHAR(10)&ScriptText!$C$1)","v":""},{"$f":"IF(OrigTable!F801=\"\",\"\",ScriptText!$B$1&CHAR(10)&ScriptText!$D$1)","v":""},{"$f":"IF(OrigTable!F801=\"\",\"\",TEXT(OrigTable!F801,\"00\"))","v":""},{"$f":"IF(OrigTable!F801=\"\",\"\",ScriptText!$E$1&CHAR(10)&ScriptText!$C$1)","v":""},{"$f":"IF(OrigTable!G801=\"\",\"\",ScriptText!$B$1&CHAR(10)&ScriptText!$D$1)","v":""},{"$f":"IF(OrigTable!G801=\"\",\"\",TEXT(OrigTable!G801,\"00\"))","v":""},{"$f":"IF(OrigTable!G801=\"\",\"\",ScriptText!$E$1&CHAR(10)&ScriptText!$C$1)","v":""},0]
["\n\n\n",{"$f":"IF(OrigTable!A802=\"\",\"\",ScriptText!$B$1&CHAR(10)&ScriptText!$D$1)","v":""},{"$f":"IF(OrigTable!A802=\"\",\"\",TEXT(OrigTable!A802,\"00\"))","v":""},{"$f":"IF(OrigTable!A802=\"\",\"\",ScriptText!$E$1&CHAR(10)&ScriptText!$C$1)","v":""},{"$f":"IF(OrigTable!B802=\"\",\"\",ScriptText!$B$1&CHAR(10)&ScriptText!$D$1)","v":""},{"$f":"IF(OrigTable!B802=\"\",\"\",TEXT(OrigTable!B802,\"00\"))","v":""},{"$f":"IF(OrigTable!B802=\"\",\"\",ScriptText!$E$1&CHAR(10)&ScriptText!C797)","v":""},{"$f":"IF(OrigTable!C802=\"\",\"\",ScriptText!$B$1&CHAR(10)&ScriptText!$D$1)","v":""},{"$f":"IF(OrigTable!C802=\"\",\"\",IF(LEN(OrigTable!C802)>255,LEFT(OrigTable!C802,250)&\". . .\",OrigTable!C802))","v":""},{"$f":"IF(OrigTable!C802=\"\",\"\",ScriptText!$E$1&CHAR(10)&ScriptText!$C$1)","v":""},{"$f":"IF(OrigTable!D802=\"\",\"\",ScriptText!$B$1&CHAR(10)&ScriptText!$D$1)","v":""},{"$f":"IF(OrigTable!D802=\"\",\"\",TEXT(OrigTable!D802,\"00\"))","v":""},{"$f":"IF(OrigTable!D802=\"\",\"\",ScriptText!$E$1&CHAR(10)&ScriptText!$C$1)","v":""},{"$f":"IF(OrigTable!E802=\"\",\"\",ScriptText!$B$1&CHAR(10)&ScriptText!$D$1)","v":""},{"$f":"IF(OrigTable!E802=\"\",\"\",TEXT(OrigTable!E802,\"00\"))","v":""},{"$f":"IF(OrigTable!E802=\"\",\"\",ScriptText!$E$1&CHAR(10)&ScriptText!$C$1)","v":""},{"$f":"IF(OrigTable!F802=\"\",\"\",ScriptText!$B$1&CHAR(10)&ScriptText!$D$1)","v":""},{"$f":"IF(OrigTable!F802=\"\",\"\",TEXT(OrigTable!F802,\"00\"))","v":""},{"$f":"IF(OrigTable!F802=\"\",\"\",ScriptText!$E$1&CHAR(10)&ScriptText!$C$1)","v":""},{"$f":"IF(OrigTable!G802=\"\",\"\",ScriptText!$B$1&CHAR(10)&ScriptText!$D$1)","v":""},{"$f":"IF(OrigTable!G802=\"\",\"\",TEXT(OrigTable!G802,\"00\"))","v":""},{"$f":"IF(OrigTable!G802=\"\",\"\",ScriptText!$E$1&CHAR(10)&ScriptText!$C$1)","v":""},0]
["\n\n\n",{"$f":"IF(OrigTable!A803=\"\",\"\",ScriptText!$B$1&CHAR(10)&ScriptText!$D$1)","v":""},{"$f":"IF(OrigTable!A803=\"\",\"\",TEXT(OrigTable!A803,\"00\"))","v":""},{"$f":"IF(OrigTable!A803=\"\",\"\",ScriptText!$E$1&CHAR(10)&ScriptText!$C$1)","v":""},{"$f":"IF(OrigTable!B803=\"\",\"\",ScriptText!$B$1&CHAR(10)&ScriptText!$D$1)","v":""},{"$f":"IF(OrigTable!B803=\"\",\"\",TEXT(OrigTable!B803,\"00\"))","v":""},{"$f":"IF(OrigTable!B803=\"\",\"\",ScriptText!$E$1&CHAR(10)&ScriptText!C798)","v":""},{"$f":"IF(OrigTable!C803=\"\",\"\",ScriptText!$B$1&CHAR(10)&ScriptText!$D$1)","v":""},{"$f":"IF(OrigTable!C803=\"\",\"\",IF(LEN(OrigTable!C803)>255,LEFT(OrigTable!C803,250)&\". . .\",OrigTable!C803))","v":""},{"$f":"IF(OrigTable!C803=\"\",\"\",ScriptText!$E$1&CHAR(10)&ScriptText!$C$1)","v":""},{"$f":"IF(OrigTable!D803=\"\",\"\",ScriptText!$B$1&CHAR(10)&ScriptText!$D$1)","v":""},{"$f":"IF(OrigTable!D803=\"\",\"\",TEXT(OrigTable!D803,\"00\"))","v":""},{"$f":"IF(OrigTable!D803=\"\",\"\",ScriptText!$E$1&CHAR(10)&ScriptText!$C$1)","v":""},{"$f":"IF(OrigTable!E803=\"\",\"\",ScriptText!$B$1&CHAR(10)&ScriptText!$D$1)","v":""},{"$f":"IF(OrigTable!E803=\"\",\"\",TEXT(OrigTable!E803,\"00\"))","v":""},{"$f":"IF(OrigTable!E803=\"\",\"\",ScriptText!$E$1&CHAR(10)&ScriptText!$C$1)","v":""},{"$f":"IF(OrigTable!F803=\"\",\"\",ScriptText!$B$1&CHAR(10)&ScriptText!$D$1)","v":""},{"$f":"IF(OrigTable!F803=\"\",\"\",TEXT(OrigTable!F803,\"00\"))","v":""},{"$f":"IF(OrigTable!F803=\"\",\"\",ScriptText!$E$1&CHAR(10)&ScriptText!$C$1)","v":""},{"$f":"IF(OrigTable!G803=\"\",\"\",ScriptText!$B$1&CHAR(10)&ScriptText!$D$1)","v":""},{"$f":"IF(OrigTable!G803=\"\",\"\",TEXT(OrigTable!G803,\"00\"))","v":""},{"$f":"IF(OrigTable!G803=\"\",\"\",ScriptText!$E$1&CHAR(10)&ScriptText!$C$1)","v":""},0]
["\n\n\n",{"$f":"IF(OrigTable!A804=\"\",\"\",ScriptText!$B$1&CHAR(10)&ScriptText!$D$1)","v":""},{"$f":"IF(OrigTable!A804=\"\",\"\",TEXT(OrigTable!A804,\"00\"))","v":""},{"$f":"IF(OrigTable!A804=\"\",\"\",ScriptText!$E$1&CHAR(10)&ScriptText!$C$1)","v":""},{"$f":"IF(OrigTable!B804=\"\",\"\",ScriptText!$B$1&CHAR(10)&ScriptText!$D$1)","v":""},{"$f":"IF(OrigTable!B804=\"\",\"\",TEXT(OrigTable!B804,\"00\"))","v":""},{"$f":"IF(OrigTable!B804=\"\",\"\",ScriptText!$E$1&CHAR(10)&ScriptText!C799)","v":""},{"$f":"IF(OrigTable!C804=\"\",\"\",ScriptText!$B$1&CHAR(10)&ScriptText!$D$1)","v":""},{"$f":"IF(OrigTable!C804=\"\",\"\",IF(LEN(OrigTable!C804)>255,LEFT(OrigTable!C804,250)&\". . .\",OrigTable!C804))","v":""},{"$f":"IF(OrigTable!C804=\"\",\"\",ScriptText!$E$1&CHAR(10)&ScriptText!$C$1)","v":""},{"$f":"IF(OrigTable!D804=\"\",\"\",ScriptText!$B$1&CHAR(10)&ScriptText!$D$1)","v":""},{"$f":"IF(OrigTable!D804=\"\",\"\",TEXT(OrigTable!D804,\"00\"))","v":""},{"$f":"IF(OrigTable!D804=\"\",\"\",ScriptText!$E$1&CHAR(10)&ScriptText!$C$1)","v":""},{"$f":"IF(OrigTable!E804=\"\",\"\",ScriptText!$B$1&CHAR(10)&ScriptText!$D$1)","v":""},{"$f":"IF(OrigTable!E804=\"\",\"\",TEXT(OrigTable!E804,\"00\"))","v":""},{"$f":"IF(OrigTable!E804=\"\",\"\",ScriptText!$E$1&CHAR(10)&ScriptText!$C$1)","v":""},{"$f":"IF(OrigTable!F804=\"\",\"\",ScriptText!$B$1&CHAR(10)&ScriptText!$D$1)","v":""},{"$f":"IF(OrigTable!F804=\"\",\"\",TEXT(OrigTable!F804,\"00\"))","v":""},{"$f":"IF(OrigTable!F804=\"\",\"\",ScriptText!$E$1&CHAR(10)&ScriptText!$C$1)","v":""},{"$f":"IF(OrigTable!G804=\"\",\"\",ScriptText!$B$1&CHAR(10)&ScriptText!$D$1)","v":""},{"$f":"IF(OrigTable!G804=\"\",\"\",TEXT(OrigTable!G804,\"00\"))","v":""},{"$f":"IF(OrigTable!G804=\"\",\"\",ScriptText!$E$1&CHAR(10)&ScriptText!$C$1)","v":""},0]
["\n\n\n",{"$f":"IF(OrigTable!A805=\"\",\"\",ScriptText!$B$1&CHAR(10)&ScriptText!$D$1)","v":""},{"$f":"IF(OrigTable!A805=\"\",\"\",TEXT(OrigTable!A805,\"00\"))","v":""},{"$f":"IF(OrigTable!A805=\"\",\"\",ScriptText!$E$1&CHAR(10)&ScriptText!$C$1)","v":""},{"$f":"IF(OrigTable!B805=\"\",\"\",ScriptText!$B$1&CHAR(10)&ScriptText!$D$1)","v":""},{"$f":"IF(OrigTable!B805=\"\",\"\",TEXT(OrigTable!B805,\"00\"))","v":""},{"$f":"IF(OrigTable!B805=\"\",\"\",ScriptText!$E$1&CHAR(10)&ScriptText!C800)","v":""},{"$f":"IF(OrigTable!C805=\"\",\"\",ScriptText!$B$1&CHAR(10)&ScriptText!$D$1)","v":""},{"$f":"IF(OrigTable!C805=\"\",\"\",IF(LEN(OrigTable!C805)>255,LEFT(OrigTable!C805,250)&\". . .\",OrigTable!C805))","v":""},{"$f":"IF(OrigTable!C805=\"\",\"\",ScriptText!$E$1&CHAR(10)&ScriptText!$C$1)","v":""},{"$f":"IF(OrigTable!D805=\"\",\"\",ScriptText!$B$1&CHAR(10)&ScriptText!$D$1)","v":""},{"$f":"IF(OrigTable!D805=\"\",\"\",TEXT(OrigTable!D805,\"00\"))","v":""},{"$f":"IF(OrigTable!D805=\"\",\"\",ScriptText!$E$1&CHAR(10)&ScriptText!$C$1)","v":""},{"$f":"IF(OrigTable!E805=\"\",\"\",ScriptText!$B$1&CHAR(10)&ScriptText!$D$1)","v":""},{"$f":"IF(OrigTable!E805=\"\",\"\",TEXT(OrigTable!E805,\"00\"))","v":""},{"$f":"IF(OrigTable!E805=\"\",\"\",ScriptText!$E$1&CHAR(10)&ScriptText!$C$1)","v":""},{"$f":"IF(OrigTable!F805=\"\",\"\",ScriptText!$B$1&CHAR(10)&ScriptText!$D$1)","v":""},{"$f":"IF(OrigTable!F805=\"\",\"\",TEXT(OrigTable!F805,\"00\"))","v":""},{"$f":"IF(OrigTable!F805=\"\",\"\",ScriptText!$E$1&CHAR(10)&ScriptText!$C$1)","v":""},{"$f":"IF(OrigTable!G805=\"\",\"\",ScriptText!$B$1&CHAR(10)&ScriptText!$D$1)","v":""},{"$f":"IF(OrigTable!G805=\"\",\"\",TEXT(OrigTable!G805,\"00\"))","v":""},{"$f":"IF(OrigTable!G805=\"\",\"\",ScriptText!$E$1&CHAR(10)&ScriptText!$C$1)","v":""},0]
["\n\n\n",{"$f":"IF(OrigTable!A806=\"\",\"\",ScriptText!$B$1&CHAR(10)&ScriptText!$D$1)","v":""},{"$f":"IF(OrigTable!A806=\"\",\"\",TEXT(OrigTable!A806,\"00\"))","v":""},{"$f":"IF(OrigTable!A806=\"\",\"\",ScriptText!$E$1&CHAR(10)&ScriptText!$C$1)","v":""},{"$f":"IF(OrigTable!B806=\"\",\"\",ScriptText!$B$1&CHAR(10)&ScriptText!$D$1)","v":""},{"$f":"IF(OrigTable!B806=\"\",\"\",TEXT(OrigTable!B806,\"00\"))","v":""},{"$f":"IF(OrigTable!B806=\"\",\"\",ScriptText!$E$1&CHAR(10)&ScriptText!C801)","v":""},{"$f":"IF(OrigTable!C806=\"\",\"\",ScriptText!$B$1&CHAR(10)&ScriptText!$D$1)","v":""},{"$f":"IF(OrigTable!C806=\"\",\"\",IF(LEN(OrigTable!C806)>255,LEFT(OrigTable!C806,250)&\". . .\",OrigTable!C806))","v":""},{"$f":"IF(OrigTable!C806=\"\",\"\",ScriptText!$E$1&CHAR(10)&ScriptText!$C$1)","v":""},{"$f":"IF(OrigTable!D806=\"\",\"\",ScriptText!$B$1&CHAR(10)&ScriptText!$D$1)","v":""},{"$f":"IF(OrigTable!D806=\"\",\"\",TEXT(OrigTable!D806,\"00\"))","v":""},{"$f":"IF(OrigTable!D806=\"\",\"\",ScriptText!$E$1&CHAR(10)&ScriptText!$C$1)","v":""},{"$f":"IF(OrigTable!E806=\"\",\"\",ScriptText!$B$1&CHAR(10)&ScriptText!$D$1)","v":""},{"$f":"IF(OrigTable!E806=\"\",\"\",TEXT(OrigTable!E806,\"00\"))","v":""},{"$f":"IF(OrigTable!E806=\"\",\"\",ScriptText!$E$1&CHAR(10)&ScriptText!$C$1)","v":""},{"$f":"IF(OrigTable!F806=\"\",\"\",ScriptText!$B$1&CHAR(10)&ScriptText!$D$1)","v":""},{"$f":"IF(OrigTable!F806=\"\",\"\",TEXT(OrigTable!F806,\"00\"))","v":""},{"$f":"IF(OrigTable!F806=\"\",\"\",ScriptText!$E$1&CHAR(10)&ScriptText!$C$1)","v":""},{"$f":"IF(OrigTable!G806=\"\",\"\",ScriptText!$B$1&CHAR(10)&ScriptText!$D$1)","v":""},{"$f":"IF(OrigTable!G806=\"\",\"\",TEXT(OrigTable!G806,\"00\"))","v":""},{"$f":"IF(OrigTable!G806=\"\",\"\",ScriptText!$E$1&CHAR(10)&ScriptText!$C$1)","v":""},0]
["\n\n\n",{"$f":"IF(OrigTable!A807=\"\",\"\",ScriptText!$B$1&CHAR(10)&ScriptText!$D$1)","v":""},{"$f":"IF(OrigTable!A807=\"\",\"\",TEXT(OrigTable!A807,\"00\"))","v":""},{"$f":"IF(OrigTable!A807=\"\",\"\",ScriptText!$E$1&CHAR(10)&ScriptText!$C$1)","v":""},{"$f":"IF(OrigTable!B807=\"\",\"\",ScriptText!$B$1&CHAR(10)&ScriptText!$D$1)","v":""},{"$f":"IF(OrigTable!B807=\"\",\"\",TEXT(OrigTable!B807,\"00\"))","v":""},{"$f":"IF(OrigTable!B807=\"\",\"\",ScriptText!$E$1&CHAR(10)&ScriptText!C802)","v":""},{"$f":"IF(OrigTable!C807=\"\",\"\",ScriptText!$B$1&CHAR(10)&ScriptText!$D$1)","v":""},{"$f":"IF(OrigTable!C807=\"\",\"\",IF(LEN(OrigTable!C807)>255,LEFT(OrigTable!C807,250)&\". . .\",OrigTable!C807))","v":""},{"$f":"IF(OrigTable!C807=\"\",\"\",ScriptText!$E$1&CHAR(10)&ScriptText!$C$1)","v":""},{"$f":"IF(OrigTable!D807=\"\",\"\",ScriptText!$B$1&CHAR(10)&ScriptText!$D$1)","v":""},{"$f":"IF(OrigTable!D807=\"\",\"\",TEXT(OrigTable!D807,\"00\"))","v":""},{"$f":"IF(OrigTable!D807=\"\",\"\",ScriptText!$E$1&CHAR(10)&ScriptText!$C$1)","v":""},{"$f":"IF(OrigTable!E807=\"\",\"\",ScriptText!$B$1&CHAR(10)&ScriptText!$D$1)","v":""},{"$f":"IF(OrigTable!E807=\"\",\"\",TEXT(OrigTable!E807,\"00\"))","v":""},{"$f":"IF(OrigTable!E807=\"\",\"\",ScriptText!$E$1&CHAR(10)&ScriptText!$C$1)","v":""},{"$f":"IF(OrigTable!F807=\"\",\"\",ScriptText!$B$1&CHAR(10)&ScriptText!$D$1)","v":""},{"$f":"IF(OrigTable!F807=\"\",\"\",TEXT(OrigTable!F807,\"00\"))","v":""},{"$f":"IF(OrigTable!F807=\"\",\"\",ScriptText!$E$1&CHAR(10)&ScriptText!$C$1)","v":""},{"$f":"IF(OrigTable!G807=\"\",\"\",ScriptText!$B$1&CHAR(10)&ScriptText!$D$1)","v":""},{"$f":"IF(OrigTable!G807=\"\",\"\",TEXT(OrigTable!G807,\"00\"))","v":""},{"$f":"IF(OrigTable!G807=\"\",\"\",ScriptText!$E$1&CHAR(10)&ScriptText!$C$1)","v":""},0]
["\n\n\n",{"$f":"IF(OrigTable!A808=\"\",\"\",ScriptText!$B$1&CHAR(10)&ScriptText!$D$1)","v":""},{"$f":"IF(OrigTable!A808=\"\",\"\",TEXT(OrigTable!A808,\"00\"))","v":""},{"$f":"IF(OrigTable!A808=\"\",\"\",ScriptText!$E$1&CHAR(10)&ScriptText!$C$1)","v":""},{"$f":"IF(OrigTable!B808=\"\",\"\",ScriptText!$B$1&CHAR(10)&ScriptText!$D$1)","v":""},{"$f":"IF(OrigTable!B808=\"\",\"\",TEXT(OrigTable!B808,\"00\"))","v":""},{"$f":"IF(OrigTable!B808=\"\",\"\",ScriptText!$E$1&CHAR(10)&ScriptText!C803)","v":""},{"$f":"IF(OrigTable!C808=\"\",\"\",ScriptText!$B$1&CHAR(10)&ScriptText!$D$1)","v":""},{"$f":"IF(OrigTable!C808=\"\",\"\",IF(LEN(OrigTable!C808)>255,LEFT(OrigTable!C808,250)&\". . .\",OrigTable!C808))","v":""},{"$f":"IF(OrigTable!C808=\"\",\"\",ScriptText!$E$1&CHAR(10)&ScriptText!$C$1)","v":""},{"$f":"IF(OrigTable!D808=\"\",\"\",ScriptText!$B$1&CHAR(10)&ScriptText!$D$1)","v":""},{"$f":"IF(OrigTable!D808=\"\",\"\",TEXT(OrigTable!D808,\"00\"))","v":""},{"$f":"IF(OrigTable!D808=\"\",\"\",ScriptText!$E$1&CHAR(10)&ScriptText!$C$1)","v":""},{"$f":"IF(OrigTable!E808=\"\",\"\",ScriptText!$B$1&CHAR(10)&ScriptText!$D$1)","v":""},{"$f":"IF(OrigTable!E808=\"\",\"\",TEXT(OrigTable!E808,\"00\"))","v":""},{"$f":"IF(OrigTable!E808=\"\",\"\",ScriptText!$E$1&CHAR(10)&ScriptText!$C$1)","v":""},{"$f":"IF(OrigTable!F808=\"\",\"\",ScriptText!$B$1&CHAR(10)&ScriptText!$D$1)","v":""},{"$f":"IF(OrigTable!F808=\"\",\"\",TEXT(OrigTable!F808,\"00\"))","v":""},{"$f":"IF(OrigTable!F808=\"\",\"\",ScriptText!$E$1&CHAR(10)&ScriptText!$C$1)","v":""},{"$f":"IF(OrigTable!G808=\"\",\"\",ScriptText!$B$1&CHAR(10)&ScriptText!$D$1)","v":""},{"$f":"IF(OrigTable!G808=\"\",\"\",TEXT(OrigTable!G808,\"00\"))","v":""},{"$f":"IF(OrigTable!G808=\"\",\"\",ScriptText!$E$1&CHAR(10)&ScriptText!$C$1)","v":""},0]
["\n\n\n",{"$f":"IF(OrigTable!A809=\"\",\"\",ScriptText!$B$1&CHAR(10)&ScriptText!$D$1)","v":""},{"$f":"IF(OrigTable!A809=\"\",\"\",TEXT(OrigTable!A809,\"00\"))","v":""},{"$f":"IF(OrigTable!A809=\"\",\"\",ScriptText!$E$1&CHAR(10)&ScriptText!$C$1)","v":""},{"$f":"IF(OrigTable!B809=\"\",\"\",ScriptText!$B$1&CHAR(10)&ScriptText!$D$1)","v":""},{"$f":"IF(OrigTable!B809=\"\",\"\",TEXT(OrigTable!B809,\"00\"))","v":""},{"$f":"IF(OrigTable!B809=\"\",\"\",ScriptText!$E$1&CHAR(10)&ScriptText!C804)","v":""},{"$f":"IF(OrigTable!C809=\"\",\"\",ScriptText!$B$1&CHAR(10)&ScriptText!$D$1)","v":""},{"$f":"IF(OrigTable!C809=\"\",\"\",IF(LEN(OrigTable!C809)>255,LEFT(OrigTable!C809,250)&\". . .\",OrigTable!C809))","v":""},{"$f":"IF(OrigTable!C809=\"\",\"\",ScriptText!$E$1&CHAR(10)&ScriptText!$C$1)","v":""},{"$f":"IF(OrigTable!D809=\"\",\"\",ScriptText!$B$1&CHAR(10)&ScriptText!$D$1)","v":""},{"$f":"IF(OrigTable!D809=\"\",\"\",TEXT(OrigTable!D809,\"00\"))","v":""},{"$f":"IF(OrigTable!D809=\"\",\"\",ScriptText!$E$1&CHAR(10)&ScriptText!$C$1)","v":""},{"$f":"IF(OrigTable!E809=\"\",\"\",ScriptText!$B$1&CHAR(10)&ScriptText!$D$1)","v":""},{"$f":"IF(OrigTable!E809=\"\",\"\",TEXT(OrigTable!E809,\"00\"))","v":""},{"$f":"IF(OrigTable!E809=\"\",\"\",ScriptText!$E$1&CHAR(10)&ScriptText!$C$1)","v":""},{"$f":"IF(OrigTable!F809=\"\",\"\",ScriptText!$B$1&CHAR(10)&ScriptText!$D$1)","v":""},{"$f":"IF(OrigTable!F809=\"\",\"\",TEXT(OrigTable!F809,\"00\"))","v":""},{"$f":"IF(OrigTable!F809=\"\",\"\",ScriptText!$E$1&CHAR(10)&ScriptText!$C$1)","v":""},{"$f":"IF(OrigTable!G809=\"\",\"\",ScriptText!$B$1&CHAR(10)&ScriptText!$D$1)","v":""},{"$f":"IF(OrigTable!G809=\"\",\"\",TEXT(OrigTable!G809,\"00\"))","v":""},{"$f":"IF(OrigTable!G809=\"\",\"\",ScriptText!$E$1&CHAR(10)&ScriptText!$C$1)","v":""},0]
["\n\n\n",{"$f":"IF(OrigTable!A810=\"\",\"\",ScriptText!$B$1&CHAR(10)&ScriptText!$D$1)","v":""},{"$f":"IF(OrigTable!A810=\"\",\"\",TEXT(OrigTable!A810,\"00\"))","v":""},{"$f":"IF(OrigTable!A810=\"\",\"\",ScriptText!$E$1&CHAR(10)&ScriptText!$C$1)","v":""},{"$f":"IF(OrigTable!B810=\"\",\"\",ScriptText!$B$1&CHAR(10)&ScriptText!$D$1)","v":""},{"$f":"IF(OrigTable!B810=\"\",\"\",TEXT(OrigTable!B810,\"00\"))","v":""},{"$f":"IF(OrigTable!B810=\"\",\"\",ScriptText!$E$1&CHAR(10)&ScriptText!C805)","v":""},{"$f":"IF(OrigTable!C810=\"\",\"\",ScriptText!$B$1&CHAR(10)&ScriptText!$D$1)","v":""},{"$f":"IF(OrigTable!C810=\"\",\"\",IF(LEN(OrigTable!C810)>255,LEFT(OrigTable!C810,250)&\". . .\",OrigTable!C810))","v":""},{"$f":"IF(OrigTable!C810=\"\",\"\",ScriptText!$E$1&CHAR(10)&ScriptText!$C$1)","v":""},{"$f":"IF(OrigTable!D810=\"\",\"\",ScriptText!$B$1&CHAR(10)&ScriptText!$D$1)","v":""},{"$f":"IF(OrigTable!D810=\"\",\"\",TEXT(OrigTable!D810,\"00\"))","v":""},{"$f":"IF(OrigTable!D810=\"\",\"\",ScriptText!$E$1&CHAR(10)&ScriptText!$C$1)","v":""},{"$f":"IF(OrigTable!E810=\"\",\"\",ScriptText!$B$1&CHAR(10)&ScriptText!$D$1)","v":""},{"$f":"IF(OrigTable!E810=\"\",\"\",TEXT(OrigTable!E810,\"00\"))","v":""},{"$f":"IF(OrigTable!E810=\"\",\"\",ScriptText!$E$1&CHAR(10)&ScriptText!$C$1)","v":""},{"$f":"IF(OrigTable!F810=\"\",\"\",ScriptText!$B$1&CHAR(10)&ScriptText!$D$1)","v":""},{"$f":"IF(OrigTable!F810=\"\",\"\",TEXT(OrigTable!F810,\"00\"))","v":""},{"$f":"IF(OrigTable!F810=\"\",\"\",ScriptText!$E$1&CHAR(10)&ScriptText!$C$1)","v":""},{"$f":"IF(OrigTable!G810=\"\",\"\",ScriptText!$B$1&CHAR(10)&ScriptText!$D$1)","v":""},{"$f":"IF(OrigTable!G810=\"\",\"\",TEXT(OrigTable!G810,\"00\"))","v":""},{"$f":"IF(OrigTable!G810=\"\",\"\",ScriptText!$E$1&CHAR(10)&ScriptText!$C$1)","v":""},0]
["\n\n\n",{"$f":"IF(OrigTable!A811=\"\",\"\",ScriptText!$B$1&CHAR(10)&ScriptText!$D$1)","v":""},{"$f":"IF(OrigTable!A811=\"\",\"\",TEXT(OrigTable!A811,\"00\"))","v":""},{"$f":"IF(OrigTable!A811=\"\",\"\",ScriptText!$E$1&CHAR(10)&ScriptText!$C$1)","v":""},{"$f":"IF(OrigTable!B811=\"\",\"\",ScriptText!$B$1&CHAR(10)&ScriptText!$D$1)","v":""},{"$f":"IF(OrigTable!B811=\"\",\"\",TEXT(OrigTable!B811,\"00\"))","v":""},{"$f":"IF(OrigTable!B811=\"\",\"\",ScriptText!$E$1&CHAR(10)&ScriptText!C806)","v":""},{"$f":"IF(OrigTable!C811=\"\",\"\",ScriptText!$B$1&CHAR(10)&ScriptText!$D$1)","v":""},{"$f":"IF(OrigTable!C811=\"\",\"\",IF(LEN(OrigTable!C811)>255,LEFT(OrigTable!C811,250)&\". . .\",OrigTable!C811))","v":""},{"$f":"IF(OrigTable!C811=\"\",\"\",ScriptText!$E$1&CHAR(10)&ScriptText!$C$1)","v":""},{"$f":"IF(OrigTable!D811=\"\",\"\",ScriptText!$B$1&CHAR(10)&ScriptText!$D$1)","v":""},{"$f":"IF(OrigTable!D811=\"\",\"\",TEXT(OrigTable!D811,\"00\"))","v":""},{"$f":"IF(OrigTable!D811=\"\",\"\",ScriptText!$E$1&CHAR(10)&ScriptText!$C$1)","v":""},{"$f":"IF(OrigTable!E811=\"\",\"\",ScriptText!$B$1&CHAR(10)&ScriptText!$D$1)","v":""},{"$f":"IF(OrigTable!E811=\"\",\"\",TEXT(OrigTable!E811,\"00\"))","v":""},{"$f":"IF(OrigTable!E811=\"\",\"\",ScriptText!$E$1&CHAR(10)&ScriptText!$C$1)","v":""},{"$f":"IF(OrigTable!F811=\"\",\"\",ScriptText!$B$1&CHAR(10)&ScriptText!$D$1)","v":""},{"$f":"IF(OrigTable!F811=\"\",\"\",TEXT(OrigTable!F811,\"00\"))","v":""},{"$f":"IF(OrigTable!F811=\"\",\"\",ScriptText!$E$1&CHAR(10)&ScriptText!$C$1)","v":""},{"$f":"IF(OrigTable!G811=\"\",\"\",ScriptText!$B$1&CHAR(10)&ScriptText!$D$1)","v":""},{"$f":"IF(OrigTable!G811=\"\",\"\",TEXT(OrigTable!G811,\"00\"))","v":""},{"$f":"IF(OrigTable!G811=\"\",\"\",ScriptText!$E$1&CHAR(10)&ScriptText!$C$1)","v":""},0]
["\n\n\n",{"$f":"IF(OrigTable!A812=\"\",\"\",ScriptText!$B$1&CHAR(10)&ScriptText!$D$1)","v":""},{"$f":"IF(OrigTable!A812=\"\",\"\",TEXT(OrigTable!A812,\"00\"))","v":""},{"$f":"IF(OrigTable!A812=\"\",\"\",ScriptText!$E$1&CHAR(10)&ScriptText!$C$1)","v":""},{"$f":"IF(OrigTable!B812=\"\",\"\",ScriptText!$B$1&CHAR(10)&ScriptText!$D$1)","v":""},{"$f":"IF(OrigTable!B812=\"\",\"\",TEXT(OrigTable!B812,\"00\"))","v":""},{"$f":"IF(OrigTable!B812=\"\",\"\",ScriptText!$E$1&CHAR(10)&ScriptText!C807)","v":""},{"$f":"IF(OrigTable!C812=\"\",\"\",ScriptText!$B$1&CHAR(10)&ScriptText!$D$1)","v":""},{"$f":"IF(OrigTable!C812=\"\",\"\",IF(LEN(OrigTable!C812)>255,LEFT(OrigTable!C812,250)&\". . .\",OrigTable!C812))","v":""},{"$f":"IF(OrigTable!C812=\"\",\"\",ScriptText!$E$1&CHAR(10)&ScriptText!$C$1)","v":""},{"$f":"IF(OrigTable!D812=\"\",\"\",ScriptText!$B$1&CHAR(10)&ScriptText!$D$1)","v":""},{"$f":"IF(OrigTable!D812=\"\",\"\",TEXT(OrigTable!D812,\"00\"))","v":""},{"$f":"IF(OrigTable!D812=\"\",\"\",ScriptText!$E$1&CHAR(10)&ScriptText!$C$1)","v":""},{"$f":"IF(OrigTable!E812=\"\",\"\",ScriptText!$B$1&CHAR(10)&ScriptText!$D$1)","v":""},{"$f":"IF(OrigTable!E812=\"\",\"\",TEXT(OrigTable!E812,\"00\"))","v":""},{"$f":"IF(OrigTable!E812=\"\",\"\",ScriptText!$E$1&CHAR(10)&ScriptText!$C$1)","v":""},{"$f":"IF(OrigTable!F812=\"\",\"\",ScriptText!$B$1&CHAR(10)&ScriptText!$D$1)","v":""},{"$f":"IF(OrigTable!F812=\"\",\"\",TEXT(OrigTable!F812,\"00\"))","v":""},{"$f":"IF(OrigTable!F812=\"\",\"\",ScriptText!$E$1&CHAR(10)&ScriptText!$C$1)","v":""},{"$f":"IF(OrigTable!G812=\"\",\"\",ScriptText!$B$1&CHAR(10)&ScriptText!$D$1)","v":""},{"$f":"IF(OrigTable!G812=\"\",\"\",TEXT(OrigTable!G812,\"00\"))","v":""},{"$f":"IF(OrigTable!G812=\"\",\"\",ScriptText!$E$1&CHAR(10)&ScriptText!$C$1)","v":""},0]
["\n\n\n",{"$f":"IF(OrigTable!A813=\"\",\"\",ScriptText!$B$1&CHAR(10)&ScriptText!$D$1)","v":""},{"$f":"IF(OrigTable!A813=\"\",\"\",TEXT(OrigTable!A813,\"00\"))","v":""},{"$f":"IF(OrigTable!A813=\"\",\"\",ScriptText!$E$1&CHAR(10)&ScriptText!$C$1)","v":""},{"$f":"IF(OrigTable!B813=\"\",\"\",ScriptText!$B$1&CHAR(10)&ScriptText!$D$1)","v":""},{"$f":"IF(OrigTable!B813=\"\",\"\",TEXT(OrigTable!B813,\"00\"))","v":""},{"$f":"IF(OrigTable!B813=\"\",\"\",ScriptText!$E$1&CHAR(10)&ScriptText!C808)","v":""},{"$f":"IF(OrigTable!C813=\"\",\"\",ScriptText!$B$1&CHAR(10)&ScriptText!$D$1)","v":""},{"$f":"IF(OrigTable!C813=\"\",\"\",IF(LEN(OrigTable!C813)>255,LEFT(OrigTable!C813,250)&\". . .\",OrigTable!C813))","v":""},{"$f":"IF(OrigTable!C813=\"\",\"\",ScriptText!$E$1&CHAR(10)&ScriptText!$C$1)","v":""},{"$f":"IF(OrigTable!D813=\"\",\"\",ScriptText!$B$1&CHAR(10)&ScriptText!$D$1)","v":""},{"$f":"IF(OrigTable!D813=\"\",\"\",TEXT(OrigTable!D813,\"00\"))","v":""},{"$f":"IF(OrigTable!D813=\"\",\"\",ScriptText!$E$1&CHAR(10)&ScriptText!$C$1)","v":""},{"$f":"IF(OrigTable!E813=\"\",\"\",ScriptText!$B$1&CHAR(10)&ScriptText!$D$1)","v":""},{"$f":"IF(OrigTable!E813=\"\",\"\",TEXT(OrigTable!E813,\"00\"))","v":""},{"$f":"IF(OrigTable!E813=\"\",\"\",ScriptText!$E$1&CHAR(10)&ScriptText!$C$1)","v":""},{"$f":"IF(OrigTable!F813=\"\",\"\",ScriptText!$B$1&CHAR(10)&ScriptText!$D$1)","v":""},{"$f":"IF(OrigTable!F813=\"\",\"\",TEXT(OrigTable!F813,\"00\"))","v":""},{"$f":"IF(OrigTable!F813=\"\",\"\",ScriptText!$E$1&CHAR(10)&ScriptText!$C$1)","v":""},{"$f":"IF(OrigTable!G813=\"\",\"\",ScriptText!$B$1&CHAR(10)&ScriptText!$D$1)","v":""},{"$f":"IF(OrigTable!G813=\"\",\"\",TEXT(OrigTable!G813,\"00\"))","v":""},{"$f":"IF(OrigTable!G813=\"\",\"\",ScriptText!$E$1&CHAR(10)&ScriptText!$C$1)","v":""},0]
["\n\n\n",{"$f":"IF(OrigTable!A814=\"\",\"\",ScriptText!$B$1&CHAR(10)&ScriptText!$D$1)","v":""},{"$f":"IF(OrigTable!A814=\"\",\"\",TEXT(OrigTable!A814,\"00\"))","v":""},{"$f":"IF(OrigTable!A814=\"\",\"\",ScriptText!$E$1&CHAR(10)&ScriptText!$C$1)","v":""},{"$f":"IF(OrigTable!B814=\"\",\"\",ScriptText!$B$1&CHAR(10)&ScriptText!$D$1)","v":""},{"$f":"IF(OrigTable!B814=\"\",\"\",TEXT(OrigTable!B814,\"00\"))","v":""},{"$f":"IF(OrigTable!B814=\"\",\"\",ScriptText!$E$1&CHAR(10)&ScriptText!C809)","v":""},{"$f":"IF(OrigTable!C814=\"\",\"\",ScriptText!$B$1&CHAR(10)&ScriptText!$D$1)","v":""},{"$f":"IF(OrigTable!C814=\"\",\"\",IF(LEN(OrigTable!C814)>255,LEFT(OrigTable!C814,250)&\". . .\",OrigTable!C814))","v":""},{"$f":"IF(OrigTable!C814=\"\",\"\",ScriptText!$E$1&CHAR(10)&ScriptText!$C$1)","v":""},{"$f":"IF(OrigTable!D814=\"\",\"\",ScriptText!$B$1&CHAR(10)&ScriptText!$D$1)","v":""},{"$f":"IF(OrigTable!D814=\"\",\"\",TEXT(OrigTable!D814,\"00\"))","v":""},{"$f":"IF(OrigTable!D814=\"\",\"\",ScriptText!$E$1&CHAR(10)&ScriptText!$C$1)","v":""},{"$f":"IF(OrigTable!E814=\"\",\"\",ScriptText!$B$1&CHAR(10)&ScriptText!$D$1)","v":""},{"$f":"IF(OrigTable!E814=\"\",\"\",TEXT(OrigTable!E814,\"00\"))","v":""},{"$f":"IF(OrigTable!E814=\"\",\"\",ScriptText!$E$1&CHAR(10)&ScriptText!$C$1)","v":""},{"$f":"IF(OrigTable!F814=\"\",\"\",ScriptText!$B$1&CHAR(10)&ScriptText!$D$1)","v":""},{"$f":"IF(OrigTable!F814=\"\",\"\",TEXT(OrigTable!F814,\"00\"))","v":""},{"$f":"IF(OrigTable!F814=\"\",\"\",ScriptText!$E$1&CHAR(10)&ScriptText!$C$1)","v":""},{"$f":"IF(OrigTable!G814=\"\",\"\",ScriptText!$B$1&CHAR(10)&ScriptText!$D$1)","v":""},{"$f":"IF(OrigTable!G814=\"\",\"\",TEXT(OrigTable!G814,\"00\"))","v":""},{"$f":"IF(OrigTable!G814=\"\",\"\",ScriptText!$E$1&CHAR(10)&ScriptText!$C$1)","v":""},0]
["\n\n\n",{"$f":"IF(OrigTable!A815=\"\",\"\",ScriptText!$B$1&CHAR(10)&ScriptText!$D$1)","v":""},{"$f":"IF(OrigTable!A815=\"\",\"\",TEXT(OrigTable!A815,\"00\"))","v":""},{"$f":"IF(OrigTable!A815=\"\",\"\",ScriptText!$E$1&CHAR(10)&ScriptText!$C$1)","v":""},{"$f":"IF(OrigTable!B815=\"\",\"\",ScriptText!$B$1&CHAR(10)&ScriptText!$D$1)","v":""},{"$f":"IF(OrigTable!B815=\"\",\"\",TEXT(OrigTable!B815,\"00\"))","v":""},{"$f":"IF(OrigTable!B815=\"\",\"\",ScriptText!$E$1&CHAR(10)&ScriptText!C810)","v":""},{"$f":"IF(OrigTable!C815=\"\",\"\",ScriptText!$B$1&CHAR(10)&ScriptText!$D$1)","v":""},{"$f":"IF(OrigTable!C815=\"\",\"\",IF(LEN(OrigTable!C815)>255,LEFT(OrigTable!C815,250)&\". . .\",OrigTable!C815))","v":""},{"$f":"IF(OrigTable!C815=\"\",\"\",ScriptText!$E$1&CHAR(10)&ScriptText!$C$1)","v":""},{"$f":"IF(OrigTable!D815=\"\",\"\",ScriptText!$B$1&CHAR(10)&ScriptText!$D$1)","v":""},{"$f":"IF(OrigTable!D815=\"\",\"\",TEXT(OrigTable!D815,\"00\"))","v":""},{"$f":"IF(OrigTable!D815=\"\",\"\",ScriptText!$E$1&CHAR(10)&ScriptText!$C$1)","v":""},{"$f":"IF(OrigTable!E815=\"\",\"\",ScriptText!$B$1&CHAR(10)&ScriptText!$D$1)","v":""},{"$f":"IF(OrigTable!E815=\"\",\"\",TEXT(OrigTable!E815,\"00\"))","v":""},{"$f":"IF(OrigTable!E815=\"\",\"\",ScriptText!$E$1&CHAR(10)&ScriptText!$C$1)","v":""},{"$f":"IF(OrigTable!F815=\"\",\"\",ScriptText!$B$1&CHAR(10)&ScriptText!$D$1)","v":""},{"$f":"IF(OrigTable!F815=\"\",\"\",TEXT(OrigTable!F815,\"00\"))","v":""},{"$f":"IF(OrigTable!F815=\"\",\"\",ScriptText!$E$1&CHAR(10)&ScriptText!$C$1)","v":""},{"$f":"IF(OrigTable!G815=\"\",\"\",ScriptText!$B$1&CHAR(10)&ScriptText!$D$1)","v":""},{"$f":"IF(OrigTable!G815=\"\",\"\",TEXT(OrigTable!G815,\"00\"))","v":""},{"$f":"IF(OrigTable!G815=\"\",\"\",ScriptText!$E$1&CHAR(10)&ScriptText!$C$1)","v":""},0]
["\n\n\n",{"$f":"IF(OrigTable!A816=\"\",\"\",ScriptText!$B$1&CHAR(10)&ScriptText!$D$1)","v":""},{"$f":"IF(OrigTable!A816=\"\",\"\",TEXT(OrigTable!A816,\"00\"))","v":""},{"$f":"IF(OrigTable!A816=\"\",\"\",ScriptText!$E$1&CHAR(10)&ScriptText!$C$1)","v":""},{"$f":"IF(OrigTable!B816=\"\",\"\",ScriptText!$B$1&CHAR(10)&ScriptText!$D$1)","v":""},{"$f":"IF(OrigTable!B816=\"\",\"\",TEXT(OrigTable!B816,\"00\"))","v":""},{"$f":"IF(OrigTable!B816=\"\",\"\",ScriptText!$E$1&CHAR(10)&ScriptText!C811)","v":""},{"$f":"IF(OrigTable!C816=\"\",\"\",ScriptText!$B$1&CHAR(10)&ScriptText!$D$1)","v":""},{"$f":"IF(OrigTable!C816=\"\",\"\",IF(LEN(OrigTable!C816)>255,LEFT(OrigTable!C816,250)&\". . .\",OrigTable!C816))","v":""},{"$f":"IF(OrigTable!C816=\"\",\"\",ScriptText!$E$1&CHAR(10)&ScriptText!$C$1)","v":""},{"$f":"IF(OrigTable!D816=\"\",\"\",ScriptText!$B$1&CHAR(10)&ScriptText!$D$1)","v":""},{"$f":"IF(OrigTable!D816=\"\",\"\",TEXT(OrigTable!D816,\"00\"))","v":""},{"$f":"IF(OrigTable!D816=\"\",\"\",ScriptText!$E$1&CHAR(10)&ScriptText!$C$1)","v":""},{"$f":"IF(OrigTable!E816=\"\",\"\",ScriptText!$B$1&CHAR(10)&ScriptText!$D$1)","v":""},{"$f":"IF(OrigTable!E816=\"\",\"\",TEXT(OrigTable!E816,\"00\"))","v":""},{"$f":"IF(OrigTable!E816=\"\",\"\",ScriptText!$E$1&CHAR(10)&ScriptText!$C$1)","v":""},{"$f":"IF(OrigTable!F816=\"\",\"\",ScriptText!$B$1&CHAR(10)&ScriptText!$D$1)","v":""},{"$f":"IF(OrigTable!F816=\"\",\"\",TEXT(OrigTable!F816,\"00\"))","v":""},{"$f":"IF(OrigTable!F816=\"\",\"\",ScriptText!$E$1&CHAR(10)&ScriptText!$C$1)","v":""},{"$f":"IF(OrigTable!G816=\"\",\"\",ScriptText!$B$1&CHAR(10)&ScriptText!$D$1)","v":""},{"$f":"IF(OrigTable!G816=\"\",\"\",TEXT(OrigTable!G816,\"00\"))","v":""},{"$f":"IF(OrigTable!G816=\"\",\"\",ScriptText!$E$1&CHAR(10)&ScriptText!$C$1)","v":""},0]
["\n\n\n",{"$f":"IF(OrigTable!A817=\"\",\"\",ScriptText!$B$1&CHAR(10)&ScriptText!$D$1)","v":""},{"$f":"IF(OrigTable!A817=\"\",\"\",TEXT(OrigTable!A817,\"00\"))","v":""},{"$f":"IF(OrigTable!A817=\"\",\"\",ScriptText!$E$1&CHAR(10)&ScriptText!$C$1)","v":""},{"$f":"IF(OrigTable!B817=\"\",\"\",ScriptText!$B$1&CHAR(10)&ScriptText!$D$1)","v":""},{"$f":"IF(OrigTable!B817=\"\",\"\",TEXT(OrigTable!B817,\"00\"))","v":""},{"$f":"IF(OrigTable!B817=\"\",\"\",ScriptText!$E$1&CHAR(10)&ScriptText!C812)","v":""},{"$f":"IF(OrigTable!C817=\"\",\"\",ScriptText!$B$1&CHAR(10)&ScriptText!$D$1)","v":""},{"$f":"IF(OrigTable!C817=\"\",\"\",IF(LEN(OrigTable!C817)>255,LEFT(OrigTable!C817,250)&\". . .\",OrigTable!C817))","v":""},{"$f":"IF(OrigTable!C817=\"\",\"\",ScriptText!$E$1&CHAR(10)&ScriptText!$C$1)","v":""},{"$f":"IF(OrigTable!D817=\"\",\"\",ScriptText!$B$1&CHAR(10)&ScriptText!$D$1)","v":""},{"$f":"IF(OrigTable!D817=\"\",\"\",TEXT(OrigTable!D817,\"00\"))","v":""},{"$f":"IF(OrigTable!D817=\"\",\"\",ScriptText!$E$1&CHAR(10)&ScriptText!$C$1)","v":""},{"$f":"IF(OrigTable!E817=\"\",\"\",ScriptText!$B$1&CHAR(10)&ScriptText!$D$1)","v":""},{"$f":"IF(OrigTable!E817=\"\",\"\",TEXT(OrigTable!E817,\"00\"))","v":""},{"$f":"IF(OrigTable!E817=\"\",\"\",ScriptText!$E$1&CHAR(10)&ScriptText!$C$1)","v":""},{"$f":"IF(OrigTable!F817=\"\",\"\",ScriptText!$B$1&CHAR(10)&ScriptText!$D$1)","v":""},{"$f":"IF(OrigTable!F817=\"\",\"\",TEXT(OrigTable!F817,\"00\"))","v":""},{"$f":"IF(OrigTable!F817=\"\",\"\",ScriptText!$E$1&CHAR(10)&ScriptText!$C$1)","v":""},{"$f":"IF(OrigTable!G817=\"\",\"\",ScriptText!$B$1&CHAR(10)&ScriptText!$D$1)","v":""},{"$f":"IF(OrigTable!G817=\"\",\"\",TEXT(OrigTable!G817,\"00\"))","v":""},{"$f":"IF(OrigTable!G817=\"\",\"\",ScriptText!$E$1&CHAR(10)&ScriptText!$C$1)","v":""},0]
["\n\n\n",{"$f":"IF(OrigTable!A818=\"\",\"\",ScriptText!$B$1&CHAR(10)&ScriptText!$D$1)","v":""},{"$f":"IF(OrigTable!A818=\"\",\"\",TEXT(OrigTable!A818,\"00\"))","v":""},{"$f":"IF(OrigTable!A818=\"\",\"\",ScriptText!$E$1&CHAR(10)&ScriptText!$C$1)","v":""},{"$f":"IF(OrigTable!B818=\"\",\"\",ScriptText!$B$1&CHAR(10)&ScriptText!$D$1)","v":""},{"$f":"IF(OrigTable!B818=\"\",\"\",TEXT(OrigTable!B818,\"00\"))","v":""},{"$f":"IF(OrigTable!B818=\"\",\"\",ScriptText!$E$1&CHAR(10)&ScriptText!C813)","v":""},{"$f":"IF(OrigTable!C818=\"\",\"\",ScriptText!$B$1&CHAR(10)&ScriptText!$D$1)","v":""},{"$f":"IF(OrigTable!C818=\"\",\"\",IF(LEN(OrigTable!C818)>255,LEFT(OrigTable!C818,250)&\". . .\",OrigTable!C818))","v":""},{"$f":"IF(OrigTable!C818=\"\",\"\",ScriptText!$E$1&CHAR(10)&ScriptText!$C$1)","v":""},{"$f":"IF(OrigTable!D818=\"\",\"\",ScriptText!$B$1&CHAR(10)&ScriptText!$D$1)","v":""},{"$f":"IF(OrigTable!D818=\"\",\"\",TEXT(OrigTable!D818,\"00\"))","v":""},{"$f":"IF(OrigTable!D818=\"\",\"\",ScriptText!$E$1&CHAR(10)&ScriptText!$C$1)","v":""},{"$f":"IF(OrigTable!E818=\"\",\"\",ScriptText!$B$1&CHAR(10)&ScriptText!$D$1)","v":""},{"$f":"IF(OrigTable!E818=\"\",\"\",TEXT(OrigTable!E818,\"00\"))","v":""},{"$f":"IF(OrigTable!E818=\"\",\"\",ScriptText!$E$1&CHAR(10)&ScriptText!$C$1)","v":""},{"$f":"IF(OrigTable!F818=\"\",\"\",ScriptText!$B$1&CHAR(10)&ScriptText!$D$1)","v":""},{"$f":"IF(OrigTable!F818=\"\",\"\",TEXT(OrigTable!F818,\"00\"))","v":""},{"$f":"IF(OrigTable!F818=\"\",\"\",ScriptText!$E$1&CHAR(10)&ScriptText!$C$1)","v":""},{"$f":"IF(OrigTable!G818=\"\",\"\",ScriptText!$B$1&CHAR(10)&ScriptText!$D$1)","v":""},{"$f":"IF(OrigTable!G818=\"\",\"\",TEXT(OrigTable!G818,\"00\"))","v":""},{"$f":"IF(OrigTable!G818=\"\",\"\",ScriptText!$E$1&CHAR(10)&ScriptText!$C$1)","v":""},0]
["\n\n\n",{"$f":"IF(OrigTable!A819=\"\",\"\",ScriptText!$B$1&CHAR(10)&ScriptText!$D$1)","v":""},{"$f":"IF(OrigTable!A819=\"\",\"\",TEXT(OrigTable!A819,\"00\"))","v":""},{"$f":"IF(OrigTable!A819=\"\",\"\",ScriptText!$E$1&CHAR(10)&ScriptText!$C$1)","v":""},{"$f":"IF(OrigTable!B819=\"\",\"\",ScriptText!$B$1&CHAR(10)&ScriptText!$D$1)","v":""},{"$f":"IF(OrigTable!B819=\"\",\"\",TEXT(OrigTable!B819,\"00\"))","v":""},{"$f":"IF(OrigTable!B819=\"\",\"\",ScriptText!$E$1&CHAR(10)&ScriptText!C814)","v":""},{"$f":"IF(OrigTable!C819=\"\",\"\",ScriptText!$B$1&CHAR(10)&ScriptText!$D$1)","v":""},{"$f":"IF(OrigTable!C819=\"\",\"\",IF(LEN(OrigTable!C819)>255,LEFT(OrigTable!C819,250)&\". . .\",OrigTable!C819))","v":""},{"$f":"IF(OrigTable!C819=\"\",\"\",ScriptText!$E$1&CHAR(10)&ScriptText!$C$1)","v":""},{"$f":"IF(OrigTable!D819=\"\",\"\",ScriptText!$B$1&CHAR(10)&ScriptText!$D$1)","v":""},{"$f":"IF(OrigTable!D819=\"\",\"\",TEXT(OrigTable!D819,\"00\"))","v":""},{"$f":"IF(OrigTable!D819=\"\",\"\",ScriptText!$E$1&CHAR(10)&ScriptText!$C$1)","v":""},{"$f":"IF(OrigTable!E819=\"\",\"\",ScriptText!$B$1&CHAR(10)&ScriptText!$D$1)","v":""},{"$f":"IF(OrigTable!E819=\"\",\"\",TEXT(OrigTable!E819,\"00\"))","v":""},{"$f":"IF(OrigTable!E819=\"\",\"\",ScriptText!$E$1&CHAR(10)&ScriptText!$C$1)","v":""},{"$f":"IF(OrigTable!F819=\"\",\"\",ScriptText!$B$1&CHAR(10)&ScriptText!$D$1)","v":""},{"$f":"IF(OrigTable!F819=\"\",\"\",TEXT(OrigTable!F819,\"00\"))","v":""},{"$f":"IF(OrigTable!F819=\"\",\"\",ScriptText!$E$1&CHAR(10)&ScriptText!$C$1)","v":""},{"$f":"IF(OrigTable!G819=\"\",\"\",ScriptText!$B$1&CHAR(10)&ScriptText!$D$1)","v":""},{"$f":"IF(OrigTable!G819=\"\",\"\",TEXT(OrigTable!G819,\"00\"))","v":""},{"$f":"IF(OrigTable!G819=\"\",\"\",ScriptText!$E$1&CHAR(10)&ScriptText!$C$1)","v":""},0]
["\n\n\n",{"$f":"IF(OrigTable!A820=\"\",\"\",ScriptText!$B$1&CHAR(10)&ScriptText!$D$1)","v":""},{"$f":"IF(OrigTable!A820=\"\",\"\",TEXT(OrigTable!A820,\"00\"))","v":""},{"$f":"IF(OrigTable!A820=\"\",\"\",ScriptText!$E$1&CHAR(10)&ScriptText!$C$1)","v":""},{"$f":"IF(OrigTable!B820=\"\",\"\",ScriptText!$B$1&CHAR(10)&ScriptText!$D$1)","v":""},{"$f":"IF(OrigTable!B820=\"\",\"\",TEXT(OrigTable!B820,\"00\"))","v":""},{"$f":"IF(OrigTable!B820=\"\",\"\",ScriptText!$E$1&CHAR(10)&ScriptText!C815)","v":""},{"$f":"IF(OrigTable!C820=\"\",\"\",ScriptText!$B$1&CHAR(10)&ScriptText!$D$1)","v":""},{"$f":"IF(OrigTable!C820=\"\",\"\",IF(LEN(OrigTable!C820)>255,LEFT(OrigTable!C820,250)&\". . .\",OrigTable!C820))","v":""},{"$f":"IF(OrigTable!C820=\"\",\"\",ScriptText!$E$1&CHAR(10)&ScriptText!$C$1)","v":""},{"$f":"IF(OrigTable!D820=\"\",\"\",ScriptText!$B$1&CHAR(10)&ScriptText!$D$1)","v":""},{"$f":"IF(OrigTable!D820=\"\",\"\",TEXT(OrigTable!D820,\"00\"))","v":""},{"$f":"IF(OrigTable!D820=\"\",\"\",ScriptText!$E$1&CHAR(10)&ScriptText!$C$1)","v":""},{"$f":"IF(OrigTable!E820=\"\",\"\",ScriptText!$B$1&CHAR(10)&ScriptText!$D$1)","v":""},{"$f":"IF(OrigTable!E820=\"\",\"\",TEXT(OrigTable!E820,\"00\"))","v":""},{"$f":"IF(OrigTable!E820=\"\",\"\",ScriptText!$E$1&CHAR(10)&ScriptText!$C$1)","v":""},{"$f":"IF(OrigTable!F820=\"\",\"\",ScriptText!$B$1&CHAR(10)&ScriptText!$D$1)","v":""},{"$f":"IF(OrigTable!F820=\"\",\"\",TEXT(OrigTable!F820,\"00\"))","v":""},{"$f":"IF(OrigTable!F820=\"\",\"\",ScriptText!$E$1&CHAR(10)&ScriptText!$C$1)","v":""},{"$f":"IF(OrigTable!G820=\"\",\"\",ScriptText!$B$1&CHAR(10)&ScriptText!$D$1)","v":""},{"$f":"IF(OrigTable!G820=\"\",\"\",TEXT(OrigTable!G820,\"00\"))","v":""},{"$f":"IF(OrigTable!G820=\"\",\"\",ScriptText!$E$1&CHAR(10)&ScriptText!$C$1)","v":""},0]
["\n\n\n",{"$f":"IF(OrigTable!A821=\"\",\"\",ScriptText!$B$1&CHAR(10)&ScriptText!$D$1)","v":""},{"$f":"IF(OrigTable!A821=\"\",\"\",TEXT(OrigTable!A821,\"00\"))","v":""},{"$f":"IF(OrigTable!A821=\"\",\"\",ScriptText!$E$1&CHAR(10)&ScriptText!$C$1)","v":""},{"$f":"IF(OrigTable!B821=\"\",\"\",ScriptText!$B$1&CHAR(10)&ScriptText!$D$1)","v":""},{"$f":"IF(OrigTable!B821=\"\",\"\",TEXT(OrigTable!B821,\"00\"))","v":""},{"$f":"IF(OrigTable!B821=\"\",\"\",ScriptText!$E$1&CHAR(10)&ScriptText!C816)","v":""},{"$f":"IF(OrigTable!C821=\"\",\"\",ScriptText!$B$1&CHAR(10)&ScriptText!$D$1)","v":""},{"$f":"IF(OrigTable!C821=\"\",\"\",IF(LEN(OrigTable!C821)>255,LEFT(OrigTable!C821,250)&\". . .\",OrigTable!C821))","v":""},{"$f":"IF(OrigTable!C821=\"\",\"\",ScriptText!$E$1&CHAR(10)&ScriptText!$C$1)","v":""},{"$f":"IF(OrigTable!D821=\"\",\"\",ScriptText!$B$1&CHAR(10)&ScriptText!$D$1)","v":""},{"$f":"IF(OrigTable!D821=\"\",\"\",TEXT(OrigTable!D821,\"00\"))","v":""},{"$f":"IF(OrigTable!D821=\"\",\"\",ScriptText!$E$1&CHAR(10)&ScriptText!$C$1)","v":""},{"$f":"IF(OrigTable!E821=\"\",\"\",ScriptText!$B$1&CHAR(10)&ScriptText!$D$1)","v":""},{"$f":"IF(OrigTable!E821=\"\",\"\",TEXT(OrigTable!E821,\"00\"))","v":""},{"$f":"IF(OrigTable!E821=\"\",\"\",ScriptText!$E$1&CHAR(10)&ScriptText!$C$1)","v":""},{"$f":"IF(OrigTable!F821=\"\",\"\",ScriptText!$B$1&CHAR(10)&ScriptText!$D$1)","v":""},{"$f":"IF(OrigTable!F821=\"\",\"\",TEXT(OrigTable!F821,\"00\"))","v":""},{"$f":"IF(OrigTable!F821=\"\",\"\",ScriptText!$E$1&CHAR(10)&ScriptText!$C$1)","v":""},{"$f":"IF(OrigTable!G821=\"\",\"\",ScriptText!$B$1&CHAR(10)&ScriptText!$D$1)","v":""},{"$f":"IF(OrigTable!G821=\"\",\"\",TEXT(OrigTable!G821,\"00\"))","v":""},{"$f":"IF(OrigTable!G821=\"\",\"\",ScriptText!$E$1&CHAR(10)&ScriptText!$C$1)","v":""},0]
["\n\n\n",{"$f":"IF(OrigTable!A822=\"\",\"\",ScriptText!$B$1&CHAR(10)&ScriptText!$D$1)","v":""},{"$f":"IF(OrigTable!A822=\"\",\"\",TEXT(OrigTable!A822,\"00\"))","v":""},{"$f":"IF(OrigTable!A822=\"\",\"\",ScriptText!$E$1&CHAR(10)&ScriptText!$C$1)","v":""},{"$f":"IF(OrigTable!B822=\"\",\"\",ScriptText!$B$1&CHAR(10)&ScriptText!$D$1)","v":""},{"$f":"IF(OrigTable!B822=\"\",\"\",TEXT(OrigTable!B822,\"00\"))","v":""},{"$f":"IF(OrigTable!B822=\"\",\"\",ScriptText!$E$1&CHAR(10)&ScriptText!C817)","v":""},{"$f":"IF(OrigTable!C822=\"\",\"\",ScriptText!$B$1&CHAR(10)&ScriptText!$D$1)","v":""},{"$f":"IF(OrigTable!C822=\"\",\"\",IF(LEN(OrigTable!C822)>255,LEFT(OrigTable!C822,250)&\". . .\",OrigTable!C822))","v":""},{"$f":"IF(OrigTable!C822=\"\",\"\",ScriptText!$E$1&CHAR(10)&ScriptText!$C$1)","v":""},{"$f":"IF(OrigTable!D822=\"\",\"\",ScriptText!$B$1&CHAR(10)&ScriptText!$D$1)","v":""},{"$f":"IF(OrigTable!D822=\"\",\"\",TEXT(OrigTable!D822,\"00\"))","v":""},{"$f":"IF(OrigTable!D822=\"\",\"\",ScriptText!$E$1&CHAR(10)&ScriptText!$C$1)","v":""},{"$f":"IF(OrigTable!E822=\"\",\"\",ScriptText!$B$1&CHAR(10)&ScriptText!$D$1)","v":""},{"$f":"IF(OrigTable!E822=\"\",\"\",TEXT(OrigTable!E822,\"00\"))","v":""},{"$f":"IF(OrigTable!E822=\"\",\"\",ScriptText!$E$1&CHAR(10)&ScriptText!$C$1)","v":""},{"$f":"IF(OrigTable!F822=\"\",\"\",ScriptText!$B$1&CHAR(10)&ScriptText!$D$1)","v":""},{"$f":"IF(OrigTable!F822=\"\",\"\",TEXT(OrigTable!F822,\"00\"))","v":""},{"$f":"IF(OrigTable!F822=\"\",\"\",ScriptText!$E$1&CHAR(10)&ScriptText!$C$1)","v":""},{"$f":"IF(OrigTable!G822=\"\",\"\",ScriptText!$B$1&CHAR(10)&ScriptText!$D$1)","v":""},{"$f":"IF(OrigTable!G822=\"\",\"\",TEXT(OrigTable!G822,\"00\"))","v":""},{"$f":"IF(OrigTable!G822=\"\",\"\",ScriptText!$E$1&CHAR(10)&ScriptText!$C$1)","v":""},0]
["\n\n\n",{"$f":"IF(OrigTable!A823=\"\",\"\",ScriptText!$B$1&CHAR(10)&ScriptText!$D$1)","v":""},{"$f":"IF(OrigTable!A823=\"\",\"\",TEXT(OrigTable!A823,\"00\"))","v":""},{"$f":"IF(OrigTable!A823=\"\",\"\",ScriptText!$E$1&CHAR(10)&ScriptText!$C$1)","v":""},{"$f":"IF(OrigTable!B823=\"\",\"\",ScriptText!$B$1&CHAR(10)&ScriptText!$D$1)","v":""},{"$f":"IF(OrigTable!B823=\"\",\"\",TEXT(OrigTable!B823,\"00\"))","v":""},{"$f":"IF(OrigTable!B823=\"\",\"\",ScriptText!$E$1&CHAR(10)&ScriptText!C818)","v":""},{"$f":"IF(OrigTable!C823=\"\",\"\",ScriptText!$B$1&CHAR(10)&ScriptText!$D$1)","v":""},{"$f":"IF(OrigTable!C823=\"\",\"\",IF(LEN(OrigTable!C823)>255,LEFT(OrigTable!C823,250)&\". . .\",OrigTable!C823))","v":""},{"$f":"IF(OrigTable!C823=\"\",\"\",ScriptText!$E$1&CHAR(10)&ScriptText!$C$1)","v":""},{"$f":"IF(OrigTable!D823=\"\",\"\",ScriptText!$B$1&CHAR(10)&ScriptText!$D$1)","v":""},{"$f":"IF(OrigTable!D823=\"\",\"\",TEXT(OrigTable!D823,\"00\"))","v":""},{"$f":"IF(OrigTable!D823=\"\",\"\",ScriptText!$E$1&CHAR(10)&ScriptText!$C$1)","v":""},{"$f":"IF(OrigTable!E823=\"\",\"\",ScriptText!$B$1&CHAR(10)&ScriptText!$D$1)","v":""},{"$f":"IF(OrigTable!E823=\"\",\"\",TEXT(OrigTable!E823,\"00\"))","v":""},{"$f":"IF(OrigTable!E823=\"\",\"\",ScriptText!$E$1&CHAR(10)&ScriptText!$C$1)","v":""},{"$f":"IF(OrigTable!F823=\"\",\"\",ScriptText!$B$1&CHAR(10)&ScriptText!$D$1)","v":""},{"$f":"IF(OrigTable!F823=\"\",\"\",TEXT(OrigTable!F823,\"00\"))","v":""},{"$f":"IF(OrigTable!F823=\"\",\"\",ScriptText!$E$1&CHAR(10)&ScriptText!$C$1)","v":""},{"$f":"IF(OrigTable!G823=\"\",\"\",ScriptText!$B$1&CHAR(10)&ScriptText!$D$1)","v":""},{"$f":"IF(OrigTable!G823=\"\",\"\",TEXT(OrigTable!G823,\"00\"))","v":""},{"$f":"IF(OrigTable!G823=\"\",\"\",ScriptText!$E$1&CHAR(10)&ScriptText!$C$1)","v":""},0]
["\n\n\n",{"$f":"IF(OrigTable!A824=\"\",\"\",ScriptText!$B$1&CHAR(10)&ScriptText!$D$1)","v":""},{"$f":"IF(OrigTable!A824=\"\",\"\",TEXT(OrigTable!A824,\"00\"))","v":""},{"$f":"IF(OrigTable!A824=\"\",\"\",ScriptText!$E$1&CHAR(10)&ScriptText!$C$1)","v":""},{"$f":"IF(OrigTable!B824=\"\",\"\",ScriptText!$B$1&CHAR(10)&ScriptText!$D$1)","v":""},{"$f":"IF(OrigTable!B824=\"\",\"\",TEXT(OrigTable!B824,\"00\"))","v":""},{"$f":"IF(OrigTable!B824=\"\",\"\",ScriptText!$E$1&CHAR(10)&ScriptText!C819)","v":""},{"$f":"IF(OrigTable!C824=\"\",\"\",ScriptText!$B$1&CHAR(10)&ScriptText!$D$1)","v":""},{"$f":"IF(OrigTable!C824=\"\",\"\",IF(LEN(OrigTable!C824)>255,LEFT(OrigTable!C824,250)&\". . .\",OrigTable!C824))","v":""},{"$f":"IF(OrigTable!C824=\"\",\"\",ScriptText!$E$1&CHAR(10)&ScriptText!$C$1)","v":""},{"$f":"IF(OrigTable!D824=\"\",\"\",ScriptText!$B$1&CHAR(10)&ScriptText!$D$1)","v":""},{"$f":"IF(OrigTable!D824=\"\",\"\",TEXT(OrigTable!D824,\"00\"))","v":""},{"$f":"IF(OrigTable!D824=\"\",\"\",ScriptText!$E$1&CHAR(10)&ScriptText!$C$1)","v":""},{"$f":"IF(OrigTable!E824=\"\",\"\",ScriptText!$B$1&CHAR(10)&ScriptText!$D$1)","v":""},{"$f":"IF(OrigTable!E824=\"\",\"\",TEXT(OrigTable!E824,\"00\"))","v":""},{"$f":"IF(OrigTable!E824=\"\",\"\",ScriptText!$E$1&CHAR(10)&ScriptText!$C$1)","v":""},{"$f":"IF(OrigTable!F824=\"\",\"\",ScriptText!$B$1&CHAR(10)&ScriptText!$D$1)","v":""},{"$f":"IF(OrigTable!F824=\"\",\"\",TEXT(OrigTable!F824,\"00\"))","v":""},{"$f":"IF(OrigTable!F824=\"\",\"\",ScriptText!$E$1&CHAR(10)&ScriptText!$C$1)","v":""},{"$f":"IF(OrigTable!G824=\"\",\"\",ScriptText!$B$1&CHAR(10)&ScriptText!$D$1)","v":""},{"$f":"IF(OrigTable!G824=\"\",\"\",TEXT(OrigTable!G824,\"00\"))","v":""},{"$f":"IF(OrigTable!G824=\"\",\"\",ScriptText!$E$1&CHAR(10)&ScriptText!$C$1)","v":""},0]
["\n\n\n",{"$f":"IF(OrigTable!A825=\"\",\"\",ScriptText!$B$1&CHAR(10)&ScriptText!$D$1)","v":""},{"$f":"IF(OrigTable!A825=\"\",\"\",TEXT(OrigTable!A825,\"00\"))","v":""},{"$f":"IF(OrigTable!A825=\"\",\"\",ScriptText!$E$1&CHAR(10)&ScriptText!$C$1)","v":""},{"$f":"IF(OrigTable!B825=\"\",\"\",ScriptText!$B$1&CHAR(10)&ScriptText!$D$1)","v":""},{"$f":"IF(OrigTable!B825=\"\",\"\",TEXT(OrigTable!B825,\"00\"))","v":""},{"$f":"IF(OrigTable!B825=\"\",\"\",ScriptText!$E$1&CHAR(10)&ScriptText!C820)","v":""},{"$f":"IF(OrigTable!C825=\"\",\"\",ScriptText!$B$1&CHAR(10)&ScriptText!$D$1)","v":""},{"$f":"IF(OrigTable!C825=\"\",\"\",IF(LEN(OrigTable!C825)>255,LEFT(OrigTable!C825,250)&\". . .\",OrigTable!C825))","v":""},{"$f":"IF(OrigTable!C825=\"\",\"\",ScriptText!$E$1&CHAR(10)&ScriptText!$C$1)","v":""},{"$f":"IF(OrigTable!D825=\"\",\"\",ScriptText!$B$1&CHAR(10)&ScriptText!$D$1)","v":""},{"$f":"IF(OrigTable!D825=\"\",\"\",TEXT(OrigTable!D825,\"00\"))","v":""},{"$f":"IF(OrigTable!D825=\"\",\"\",ScriptText!$E$1&CHAR(10)&ScriptText!$C$1)","v":""},{"$f":"IF(OrigTable!E825=\"\",\"\",ScriptText!$B$1&CHAR(10)&ScriptText!$D$1)","v":""},{"$f":"IF(OrigTable!E825=\"\",\"\",TEXT(OrigTable!E825,\"00\"))","v":""},{"$f":"IF(OrigTable!E825=\"\",\"\",ScriptText!$E$1&CHAR(10)&ScriptText!$C$1)","v":""},{"$f":"IF(OrigTable!F825=\"\",\"\",ScriptText!$B$1&CHAR(10)&ScriptText!$D$1)","v":""},{"$f":"IF(OrigTable!F825=\"\",\"\",TEXT(OrigTable!F825,\"00\"))","v":""},{"$f":"IF(OrigTable!F825=\"\",\"\",ScriptText!$E$1&CHAR(10)&ScriptText!$C$1)","v":""},{"$f":"IF(OrigTable!G825=\"\",\"\",ScriptText!$B$1&CHAR(10)&ScriptText!$D$1)","v":""},{"$f":"IF(OrigTable!G825=\"\",\"\",TEXT(OrigTable!G825,\"00\"))","v":""},{"$f":"IF(OrigTable!G825=\"\",\"\",ScriptText!$E$1&CHAR(10)&ScriptText!$C$1)","v":""},0]
["\n\n\n",{"$f":"IF(OrigTable!A826=\"\",\"\",ScriptText!$B$1&CHAR(10)&ScriptText!$D$1)","v":""},{"$f":"IF(OrigTable!A826=\"\",\"\",TEXT(OrigTable!A826,\"00\"))","v":""},{"$f":"IF(OrigTable!A826=\"\",\"\",ScriptText!$E$1&CHAR(10)&ScriptText!$C$1)","v":""},{"$f":"IF(OrigTable!B826=\"\",\"\",ScriptText!$B$1&CHAR(10)&ScriptText!$D$1)","v":""},{"$f":"IF(OrigTable!B826=\"\",\"\",TEXT(OrigTable!B826,\"00\"))","v":""},{"$f":"IF(OrigTable!B826=\"\",\"\",ScriptText!$E$1&CHAR(10)&ScriptText!C821)","v":""},{"$f":"IF(OrigTable!C826=\"\",\"\",ScriptText!$B$1&CHAR(10)&ScriptText!$D$1)","v":""},{"$f":"IF(OrigTable!C826=\"\",\"\",IF(LEN(OrigTable!C826)>255,LEFT(OrigTable!C826,250)&\". . .\",OrigTable!C826))","v":""},{"$f":"IF(OrigTable!C826=\"\",\"\",ScriptText!$E$1&CHAR(10)&ScriptText!$C$1)","v":""},{"$f":"IF(OrigTable!D826=\"\",\"\",ScriptText!$B$1&CHAR(10)&ScriptText!$D$1)","v":""},{"$f":"IF(OrigTable!D826=\"\",\"\",TEXT(OrigTable!D826,\"00\"))","v":""},{"$f":"IF(OrigTable!D826=\"\",\"\",ScriptText!$E$1&CHAR(10)&ScriptText!$C$1)","v":""},{"$f":"IF(OrigTable!E826=\"\",\"\",ScriptText!$B$1&CHAR(10)&ScriptText!$D$1)","v":""},{"$f":"IF(OrigTable!E826=\"\",\"\",TEXT(OrigTable!E826,\"00\"))","v":""},{"$f":"IF(OrigTable!E826=\"\",\"\",ScriptText!$E$1&CHAR(10)&ScriptText!$C$1)","v":""},{"$f":"IF(OrigTable!F826=\"\",\"\",ScriptText!$B$1&CHAR(10)&ScriptText!$D$1)","v":""},{"$f":"IF(OrigTable!F826=\"\",\"\",TEXT(OrigTable!F826,\"00\"))","v":""},{"$f":"IF(OrigTable!F826=\"\",\"\",ScriptText!$E$1&CHAR(10)&ScriptText!$C$1)","v":""},{"$f":"IF(OrigTable!G826=\"\",\"\",ScriptText!$B$1&CHAR(10)&ScriptText!$D$1)","v":""},{"$f":"IF(OrigTable!G826=\"\",\"\",TEXT(OrigTable!G826,\"00\"))","v":""},{"$f":"IF(OrigTable!G826=\"\",\"\",ScriptText!$E$1&CHAR(10)&ScriptText!$C$1)","v":""},0]
["\n\n\n",{"$f":"IF(OrigTable!A827=\"\",\"\",ScriptText!$B$1&CHAR(10)&ScriptText!$D$1)","v":""},{"$f":"IF(OrigTable!A827=\"\",\"\",TEXT(OrigTable!A827,\"00\"))","v":""},{"$f":"IF(OrigTable!A827=\"\",\"\",ScriptText!$E$1&CHAR(10)&ScriptText!$C$1)","v":""},{"$f":"IF(OrigTable!B827=\"\",\"\",ScriptText!$B$1&CHAR(10)&ScriptText!$D$1)","v":""},{"$f":"IF(OrigTable!B827=\"\",\"\",TEXT(OrigTable!B827,\"00\"))","v":""},{"$f":"IF(OrigTable!B827=\"\",\"\",ScriptText!$E$1&CHAR(10)&ScriptText!C822)","v":""},{"$f":"IF(OrigTable!C827=\"\",\"\",ScriptText!$B$1&CHAR(10)&ScriptText!$D$1)","v":""},{"$f":"IF(OrigTable!C827=\"\",\"\",IF(LEN(OrigTable!C827)>255,LEFT(OrigTable!C827,250)&\". . .\",OrigTable!C827))","v":""},{"$f":"IF(OrigTable!C827=\"\",\"\",ScriptText!$E$1&CHAR(10)&ScriptText!$C$1)","v":""},{"$f":"IF(OrigTable!D827=\"\",\"\",ScriptText!$B$1&CHAR(10)&ScriptText!$D$1)","v":""},{"$f":"IF(OrigTable!D827=\"\",\"\",TEXT(OrigTable!D827,\"00\"))","v":""},{"$f":"IF(OrigTable!D827=\"\",\"\",ScriptText!$E$1&CHAR(10)&ScriptText!$C$1)","v":""},{"$f":"IF(OrigTable!E827=\"\",\"\",ScriptText!$B$1&CHAR(10)&ScriptText!$D$1)","v":""},{"$f":"IF(OrigTable!E827=\"\",\"\",TEXT(OrigTable!E827,\"00\"))","v":""},{"$f":"IF(OrigTable!E827=\"\",\"\",ScriptText!$E$1&CHAR(10)&ScriptText!$C$1)","v":""},{"$f":"IF(OrigTable!F827=\"\",\"\",ScriptText!$B$1&CHAR(10)&ScriptText!$D$1)","v":""},{"$f":"IF(OrigTable!F827=\"\",\"\",TEXT(OrigTable!F827,\"00\"))","v":""},{"$f":"IF(OrigTable!F827=\"\",\"\",ScriptText!$E$1&CHAR(10)&ScriptText!$C$1)","v":""},{"$f":"IF(OrigTable!G827=\"\",\"\",ScriptText!$B$1&CHAR(10)&ScriptText!$D$1)","v":""},{"$f":"IF(OrigTable!G827=\"\",\"\",TEXT(OrigTable!G827,\"00\"))","v":""},{"$f":"IF(OrigTable!G827=\"\",\"\",ScriptText!$E$1&CHAR(10)&ScriptText!$C$1)","v":""},0]
["\n\n\n",{"$f":"IF(OrigTable!A828=\"\",\"\",ScriptText!$B$1&CHAR(10)&ScriptText!$D$1)","v":""},{"$f":"IF(OrigTable!A828=\"\",\"\",TEXT(OrigTable!A828,\"00\"))","v":""},{"$f":"IF(OrigTable!A828=\"\",\"\",ScriptText!$E$1&CHAR(10)&ScriptText!$C$1)","v":""},{"$f":"IF(OrigTable!B828=\"\",\"\",ScriptText!$B$1&CHAR(10)&ScriptText!$D$1)","v":""},{"$f":"IF(OrigTable!B828=\"\",\"\",TEXT(OrigTable!B828,\"00\"))","v":""},{"$f":"IF(OrigTable!B828=\"\",\"\",ScriptText!$E$1&CHAR(10)&ScriptText!C823)","v":""},{"$f":"IF(OrigTable!C828=\"\",\"\",ScriptText!$B$1&CHAR(10)&ScriptText!$D$1)","v":""},{"$f":"IF(OrigTable!C828=\"\",\"\",IF(LEN(OrigTable!C828)>255,LEFT(OrigTable!C828,250)&\". . .\",OrigTable!C828))","v":""},{"$f":"IF(OrigTable!C828=\"\",\"\",ScriptText!$E$1&CHAR(10)&ScriptText!$C$1)","v":""},{"$f":"IF(OrigTable!D828=\"\",\"\",ScriptText!$B$1&CHAR(10)&ScriptText!$D$1)","v":""},{"$f":"IF(OrigTable!D828=\"\",\"\",TEXT(OrigTable!D828,\"00\"))","v":""},{"$f":"IF(OrigTable!D828=\"\",\"\",ScriptText!$E$1&CHAR(10)&ScriptText!$C$1)","v":""},{"$f":"IF(OrigTable!E828=\"\",\"\",ScriptText!$B$1&CHAR(10)&ScriptText!$D$1)","v":""},{"$f":"IF(OrigTable!E828=\"\",\"\",TEXT(OrigTable!E828,\"00\"))","v":""},{"$f":"IF(OrigTable!E828=\"\",\"\",ScriptText!$E$1&CHAR(10)&ScriptText!$C$1)","v":""},{"$f":"IF(OrigTable!F828=\"\",\"\",ScriptText!$B$1&CHAR(10)&ScriptText!$D$1)","v":""},{"$f":"IF(OrigTable!F828=\"\",\"\",TEXT(OrigTable!F828,\"00\"))","v":""},{"$f":"IF(OrigTable!F828=\"\",\"\",ScriptText!$E$1&CHAR(10)&ScriptText!$C$1)","v":""},{"$f":"IF(OrigTable!G828=\"\",\"\",ScriptText!$B$1&CHAR(10)&ScriptText!$D$1)","v":""},{"$f":"IF(OrigTable!G828=\"\",\"\",TEXT(OrigTable!G828,\"00\"))","v":""},{"$f":"IF(OrigTable!G828=\"\",\"\",ScriptText!$E$1&CHAR(10)&ScriptText!$C$1)","v":""},0]
["\n\n\n",{"$f":"IF(OrigTable!A829=\"\",\"\",ScriptText!$B$1&CHAR(10)&ScriptText!$D$1)","v":""},{"$f":"IF(OrigTable!A829=\"\",\"\",TEXT(OrigTable!A829,\"00\"))","v":""},{"$f":"IF(OrigTable!A829=\"\",\"\",ScriptText!$E$1&CHAR(10)&ScriptText!$C$1)","v":""},{"$f":"IF(OrigTable!B829=\"\",\"\",ScriptText!$B$1&CHAR(10)&ScriptText!$D$1)","v":""},{"$f":"IF(OrigTable!B829=\"\",\"\",TEXT(OrigTable!B829,\"00\"))","v":""},{"$f":"IF(OrigTable!B829=\"\",\"\",ScriptText!$E$1&CHAR(10)&ScriptText!C824)","v":""},{"$f":"IF(OrigTable!C829=\"\",\"\",ScriptText!$B$1&CHAR(10)&ScriptText!$D$1)","v":""},{"$f":"IF(OrigTable!C829=\"\",\"\",IF(LEN(OrigTable!C829)>255,LEFT(OrigTable!C829,250)&\". . .\",OrigTable!C829))","v":""},{"$f":"IF(OrigTable!C829=\"\",\"\",ScriptText!$E$1&CHAR(10)&ScriptText!$C$1)","v":""},{"$f":"IF(OrigTable!D829=\"\",\"\",ScriptText!$B$1&CHAR(10)&ScriptText!$D$1)","v":""},{"$f":"IF(OrigTable!D829=\"\",\"\",TEXT(OrigTable!D829,\"00\"))","v":""},{"$f":"IF(OrigTable!D829=\"\",\"\",ScriptText!$E$1&CHAR(10)&ScriptText!$C$1)","v":""},{"$f":"IF(OrigTable!E829=\"\",\"\",ScriptText!$B$1&CHAR(10)&ScriptText!$D$1)","v":""},{"$f":"IF(OrigTable!E829=\"\",\"\",TEXT(OrigTable!E829,\"00\"))","v":""},{"$f":"IF(OrigTable!E829=\"\",\"\",ScriptText!$E$1&CHAR(10)&ScriptText!$C$1)","v":""},{"$f":"IF(OrigTable!F829=\"\",\"\",ScriptText!$B$1&CHAR(10)&ScriptText!$D$1)","v":""},{"$f":"IF(OrigTable!F829=\"\",\"\",TEXT(OrigTable!F829,\"00\"))","v":""},{"$f":"IF(OrigTable!F829=\"\",\"\",ScriptText!$E$1&CHAR(10)&ScriptText!$C$1)","v":""},{"$f":"IF(OrigTable!G829=\"\",\"\",ScriptText!$B$1&CHAR(10)&ScriptText!$D$1)","v":""},{"$f":"IF(OrigTable!G829=\"\",\"\",TEXT(OrigTable!G829,\"00\"))","v":""},{"$f":"IF(OrigTable!G829=\"\",\"\",ScriptText!$E$1&CHAR(10)&ScriptText!$C$1)","v":""},0]
["\n\n\n",{"$f":"IF(OrigTable!A830=\"\",\"\",ScriptText!$B$1&CHAR(10)&ScriptText!$D$1)","v":""},{"$f":"IF(OrigTable!A830=\"\",\"\",TEXT(OrigTable!A830,\"00\"))","v":""},{"$f":"IF(OrigTable!A830=\"\",\"\",ScriptText!$E$1&CHAR(10)&ScriptText!$C$1)","v":""},{"$f":"IF(OrigTable!B830=\"\",\"\",ScriptText!$B$1&CHAR(10)&ScriptText!$D$1)","v":""},{"$f":"IF(OrigTable!B830=\"\",\"\",TEXT(OrigTable!B830,\"00\"))","v":""},{"$f":"IF(OrigTable!B830=\"\",\"\",ScriptText!$E$1&CHAR(10)&ScriptText!C825)","v":""},{"$f":"IF(OrigTable!C830=\"\",\"\",ScriptText!$B$1&CHAR(10)&ScriptText!$D$1)","v":""},{"$f":"IF(OrigTable!C830=\"\",\"\",IF(LEN(OrigTable!C830)>255,LEFT(OrigTable!C830,250)&\". . .\",OrigTable!C830))","v":""},{"$f":"IF(OrigTable!C830=\"\",\"\",ScriptText!$E$1&CHAR(10)&ScriptText!$C$1)","v":""},{"$f":"IF(OrigTable!D830=\"\",\"\",ScriptText!$B$1&CHAR(10)&ScriptText!$D$1)","v":""},{"$f":"IF(OrigTable!D830=\"\",\"\",TEXT(OrigTable!D830,\"00\"))","v":""},{"$f":"IF(OrigTable!D830=\"\",\"\",ScriptText!$E$1&CHAR(10)&ScriptText!$C$1)","v":""},{"$f":"IF(OrigTable!E830=\"\",\"\",ScriptText!$B$1&CHAR(10)&ScriptText!$D$1)","v":""},{"$f":"IF(OrigTable!E830=\"\",\"\",TEXT(OrigTable!E830,\"00\"))","v":""},{"$f":"IF(OrigTable!E830=\"\",\"\",ScriptText!$E$1&CHAR(10)&ScriptText!$C$1)","v":""},{"$f":"IF(OrigTable!F830=\"\",\"\",ScriptText!$B$1&CHAR(10)&ScriptText!$D$1)","v":""},{"$f":"IF(OrigTable!F830=\"\",\"\",TEXT(OrigTable!F830,\"00\"))","v":""},{"$f":"IF(OrigTable!F830=\"\",\"\",ScriptText!$E$1&CHAR(10)&ScriptText!$C$1)","v":""},{"$f":"IF(OrigTable!G830=\"\",\"\",ScriptText!$B$1&CHAR(10)&ScriptText!$D$1)","v":""},{"$f":"IF(OrigTable!G830=\"\",\"\",TEXT(OrigTable!G830,\"00\"))","v":""},{"$f":"IF(OrigTable!G830=\"\",\"\",ScriptText!$E$1&CHAR(10)&ScriptText!$C$1)","v":""},0]
["\n\n\n",{"$f":"IF(OrigTable!A831=\"\",\"\",ScriptText!$B$1&CHAR(10)&ScriptText!$D$1)","v":""},{"$f":"IF(OrigTable!A831=\"\",\"\",TEXT(OrigTable!A831,\"00\"))","v":""},{"$f":"IF(OrigTable!A831=\"\",\"\",ScriptText!$E$1&CHAR(10)&ScriptText!$C$1)","v":""},{"$f":"IF(OrigTable!B831=\"\",\"\",ScriptText!$B$1&CHAR(10)&ScriptText!$D$1)","v":""},{"$f":"IF(OrigTable!B831=\"\",\"\",TEXT(OrigTable!B831,\"00\"))","v":""},{"$f":"IF(OrigTable!B831=\"\",\"\",ScriptText!$E$1&CHAR(10)&ScriptText!C826)","v":""},{"$f":"IF(OrigTable!C831=\"\",\"\",ScriptText!$B$1&CHAR(10)&ScriptText!$D$1)","v":""},{"$f":"IF(OrigTable!C831=\"\",\"\",IF(LEN(OrigTable!C831)>255,LEFT(OrigTable!C831,250)&\". . .\",OrigTable!C831))","v":""},{"$f":"IF(OrigTable!C831=\"\",\"\",ScriptText!$E$1&CHAR(10)&ScriptText!$C$1)","v":""},{"$f":"IF(OrigTable!D831=\"\",\"\",ScriptText!$B$1&CHAR(10)&ScriptText!$D$1)","v":""},{"$f":"IF(OrigTable!D831=\"\",\"\",TEXT(OrigTable!D831,\"00\"))","v":""},{"$f":"IF(OrigTable!D831=\"\",\"\",ScriptText!$E$1&CHAR(10)&ScriptText!$C$1)","v":""},{"$f":"IF(OrigTable!E831=\"\",\"\",ScriptText!$B$1&CHAR(10)&ScriptText!$D$1)","v":""},{"$f":"IF(OrigTable!E831=\"\",\"\",TEXT(OrigTable!E831,\"00\"))","v":""},{"$f":"IF(OrigTable!E831=\"\",\"\",ScriptText!$E$1&CHAR(10)&ScriptText!$C$1)","v":""},{"$f":"IF(OrigTable!F831=\"\",\"\",ScriptText!$B$1&CHAR(10)&ScriptText!$D$1)","v":""},{"$f":"IF(OrigTable!F831=\"\",\"\",TEXT(OrigTable!F831,\"00\"))","v":""},{"$f":"IF(OrigTable!F831=\"\",\"\",ScriptText!$E$1&CHAR(10)&ScriptText!$C$1)","v":""},{"$f":"IF(OrigTable!G831=\"\",\"\",ScriptText!$B$1&CHAR(10)&ScriptText!$D$1)","v":""},{"$f":"IF(OrigTable!G831=\"\",\"\",TEXT(OrigTable!G831,\"00\"))","v":""},{"$f":"IF(OrigTable!G831=\"\",\"\",ScriptText!$E$1&CHAR(10)&ScriptText!$C$1)","v":""},0]
["\n\n\n",{"$f":"IF(OrigTable!A832=\"\",\"\",ScriptText!$B$1&CHAR(10)&ScriptText!$D$1)","v":""},{"$f":"IF(OrigTable!A832=\"\",\"\",TEXT(OrigTable!A832,\"00\"))","v":""},{"$f":"IF(OrigTable!A832=\"\",\"\",ScriptText!$E$1&CHAR(10)&ScriptText!$C$1)","v":""},{"$f":"IF(OrigTable!B832=\"\",\"\",ScriptText!$B$1&CHAR(10)&ScriptText!$D$1)","v":""},{"$f":"IF(OrigTable!B832=\"\",\"\",TEXT(OrigTable!B832,\"00\"))","v":""},{"$f":"IF(OrigTable!B832=\"\",\"\",ScriptText!$E$1&CHAR(10)&ScriptText!C827)","v":""},{"$f":"IF(OrigTable!C832=\"\",\"\",ScriptText!$B$1&CHAR(10)&ScriptText!$D$1)","v":""},{"$f":"IF(OrigTable!C832=\"\",\"\",IF(LEN(OrigTable!C832)>255,LEFT(OrigTable!C832,250)&\". . .\",OrigTable!C832))","v":""},{"$f":"IF(OrigTable!C832=\"\",\"\",ScriptText!$E$1&CHAR(10)&ScriptText!$C$1)","v":""},{"$f":"IF(OrigTable!D832=\"\",\"\",ScriptText!$B$1&CHAR(10)&ScriptText!$D$1)","v":""},{"$f":"IF(OrigTable!D832=\"\",\"\",TEXT(OrigTable!D832,\"00\"))","v":""},{"$f":"IF(OrigTable!D832=\"\",\"\",ScriptText!$E$1&CHAR(10)&ScriptText!$C$1)","v":""},{"$f":"IF(OrigTable!E832=\"\",\"\",ScriptText!$B$1&CHAR(10)&ScriptText!$D$1)","v":""},{"$f":"IF(OrigTable!E832=\"\",\"\",TEXT(OrigTable!E832,\"00\"))","v":""},{"$f":"IF(OrigTable!E832=\"\",\"\",ScriptText!$E$1&CHAR(10)&ScriptText!$C$1)","v":""},{"$f":"IF(OrigTable!F832=\"\",\"\",ScriptText!$B$1&CHAR(10)&ScriptText!$D$1)","v":""},{"$f":"IF(OrigTable!F832=\"\",\"\",TEXT(OrigTable!F832,\"00\"))","v":""},{"$f":"IF(OrigTable!F832=\"\",\"\",ScriptText!$E$1&CHAR(10)&ScriptText!$C$1)","v":""},{"$f":"IF(OrigTable!G832=\"\",\"\",ScriptText!$B$1&CHAR(10)&ScriptText!$D$1)","v":""},{"$f":"IF(OrigTable!G832=\"\",\"\",TEXT(OrigTable!G832,\"00\"))","v":""},{"$f":"IF(OrigTable!G832=\"\",\"\",ScriptText!$E$1&CHAR(10)&ScriptText!$C$1)","v":""},0]
["\n\n\n",{"$f":"IF(OrigTable!A833=\"\",\"\",ScriptText!$B$1&CHAR(10)&ScriptText!$D$1)","v":""},{"$f":"IF(OrigTable!A833=\"\",\"\",TEXT(OrigTable!A833,\"00\"))","v":""},{"$f":"IF(OrigTable!A833=\"\",\"\",ScriptText!$E$1&CHAR(10)&ScriptText!$C$1)","v":""},{"$f":"IF(OrigTable!B833=\"\",\"\",ScriptText!$B$1&CHAR(10)&ScriptText!$D$1)","v":""},{"$f":"IF(OrigTable!B833=\"\",\"\",TEXT(OrigTable!B833,\"00\"))","v":""},{"$f":"IF(OrigTable!B833=\"\",\"\",ScriptText!$E$1&CHAR(10)&ScriptText!C828)","v":""},{"$f":"IF(OrigTable!C833=\"\",\"\",ScriptText!$B$1&CHAR(10)&ScriptText!$D$1)","v":""},{"$f":"IF(OrigTable!C833=\"\",\"\",IF(LEN(OrigTable!C833)>255,LEFT(OrigTable!C833,250)&\". . .\",OrigTable!C833))","v":""},{"$f":"IF(OrigTable!C833=\"\",\"\",ScriptText!$E$1&CHAR(10)&ScriptText!$C$1)","v":""},{"$f":"IF(OrigTable!D833=\"\",\"\",ScriptText!$B$1&CHAR(10)&ScriptText!$D$1)","v":""},{"$f":"IF(OrigTable!D833=\"\",\"\",TEXT(OrigTable!D833,\"00\"))","v":""},{"$f":"IF(OrigTable!D833=\"\",\"\",ScriptText!$E$1&CHAR(10)&ScriptText!$C$1)","v":""},{"$f":"IF(OrigTable!E833=\"\",\"\",ScriptText!$B$1&CHAR(10)&ScriptText!$D$1)","v":""},{"$f":"IF(OrigTable!E833=\"\",\"\",TEXT(OrigTable!E833,\"00\"))","v":""},{"$f":"IF(OrigTable!E833=\"\",\"\",ScriptText!$E$1&CHAR(10)&ScriptText!$C$1)","v":""},{"$f":"IF(OrigTable!F833=\"\",\"\",ScriptText!$B$1&CHAR(10)&ScriptText!$D$1)","v":""},{"$f":"IF(OrigTable!F833=\"\",\"\",TEXT(OrigTable!F833,\"00\"))","v":""},{"$f":"IF(OrigTable!F833=\"\",\"\",ScriptText!$E$1&CHAR(10)&ScriptText!$C$1)","v":""},{"$f":"IF(OrigTable!G833=\"\",\"\",ScriptText!$B$1&CHAR(10)&ScriptText!$D$1)","v":""},{"$f":"IF(OrigTable!G833=\"\",\"\",TEXT(OrigTable!G833,\"00\"))","v":""},{"$f":"IF(OrigTable!G833=\"\",\"\",ScriptText!$E$1&CHAR(10)&ScriptText!$C$1)","v":""},0]
["\n\n\n",{"$f":"IF(OrigTable!A834=\"\",\"\",ScriptText!$B$1&CHAR(10)&ScriptText!$D$1)","v":""},{"$f":"IF(OrigTable!A834=\"\",\"\",TEXT(OrigTable!A834,\"00\"))","v":""},{"$f":"IF(OrigTable!A834=\"\",\"\",ScriptText!$E$1&CHAR(10)&ScriptText!$C$1)","v":""},{"$f":"IF(OrigTable!B834=\"\",\"\",ScriptText!$B$1&CHAR(10)&ScriptText!$D$1)","v":""},{"$f":"IF(OrigTable!B834=\"\",\"\",TEXT(OrigTable!B834,\"00\"))","v":""},{"$f":"IF(OrigTable!B834=\"\",\"\",ScriptText!$E$1&CHAR(10)&ScriptText!C829)","v":""},{"$f":"IF(OrigTable!C834=\"\",\"\",ScriptText!$B$1&CHAR(10)&ScriptText!$D$1)","v":""},{"$f":"IF(OrigTable!C834=\"\",\"\",IF(LEN(OrigTable!C834)>255,LEFT(OrigTable!C834,250)&\". . .\",OrigTable!C834))","v":""},{"$f":"IF(OrigTable!C834=\"\",\"\",ScriptText!$E$1&CHAR(10)&ScriptText!$C$1)","v":""},{"$f":"IF(OrigTable!D834=\"\",\"\",ScriptText!$B$1&CHAR(10)&ScriptText!$D$1)","v":""},{"$f":"IF(OrigTable!D834=\"\",\"\",TEXT(OrigTable!D834,\"00\"))","v":""},{"$f":"IF(OrigTable!D834=\"\",\"\",ScriptText!$E$1&CHAR(10)&ScriptText!$C$1)","v":""},{"$f":"IF(OrigTable!E834=\"\",\"\",ScriptText!$B$1&CHAR(10)&ScriptText!$D$1)","v":""},{"$f":"IF(OrigTable!E834=\"\",\"\",TEXT(OrigTable!E834,\"00\"))","v":""},{"$f":"IF(OrigTable!E834=\"\",\"\",ScriptText!$E$1&CHAR(10)&ScriptText!$C$1)","v":""},{"$f":"IF(OrigTable!F834=\"\",\"\",ScriptText!$B$1&CHAR(10)&ScriptText!$D$1)","v":""},{"$f":"IF(OrigTable!F834=\"\",\"\",TEXT(OrigTable!F834,\"00\"))","v":""},{"$f":"IF(OrigTable!F834=\"\",\"\",ScriptText!$E$1&CHAR(10)&ScriptText!$C$1)","v":""},{"$f":"IF(OrigTable!G834=\"\",\"\",ScriptText!$B$1&CHAR(10)&ScriptText!$D$1)","v":""},{"$f":"IF(OrigTable!G834=\"\",\"\",TEXT(OrigTable!G834,\"00\"))","v":""},{"$f":"IF(OrigTable!G834=\"\",\"\",ScriptText!$E$1&CHAR(10)&ScriptText!$C$1)","v":""},0]
["\n\n\n",{"$f":"IF(OrigTable!A835=\"\",\"\",ScriptText!$B$1&CHAR(10)&ScriptText!$D$1)","v":""},{"$f":"IF(OrigTable!A835=\"\",\"\",TEXT(OrigTable!A835,\"00\"))","v":""},{"$f":"IF(OrigTable!A835=\"\",\"\",ScriptText!$E$1&CHAR(10)&ScriptText!$C$1)","v":""},{"$f":"IF(OrigTable!B835=\"\",\"\",ScriptText!$B$1&CHAR(10)&ScriptText!$D$1)","v":""},{"$f":"IF(OrigTable!B835=\"\",\"\",TEXT(OrigTable!B835,\"00\"))","v":""},{"$f":"IF(OrigTable!B835=\"\",\"\",ScriptText!$E$1&CHAR(10)&ScriptText!C830)","v":""},{"$f":"IF(OrigTable!C835=\"\",\"\",ScriptText!$B$1&CHAR(10)&ScriptText!$D$1)","v":""},{"$f":"IF(OrigTable!C835=\"\",\"\",IF(LEN(OrigTable!C835)>255,LEFT(OrigTable!C835,250)&\". . .\",OrigTable!C835))","v":""},{"$f":"IF(OrigTable!C835=\"\",\"\",ScriptText!$E$1&CHAR(10)&ScriptText!$C$1)","v":""},{"$f":"IF(OrigTable!D835=\"\",\"\",ScriptText!$B$1&CHAR(10)&ScriptText!$D$1)","v":""},{"$f":"IF(OrigTable!D835=\"\",\"\",TEXT(OrigTable!D835,\"00\"))","v":""},{"$f":"IF(OrigTable!D835=\"\",\"\",ScriptText!$E$1&CHAR(10)&ScriptText!$C$1)","v":""},{"$f":"IF(OrigTable!E835=\"\",\"\",ScriptText!$B$1&CHAR(10)&ScriptText!$D$1)","v":""},{"$f":"IF(OrigTable!E835=\"\",\"\",TEXT(OrigTable!E835,\"00\"))","v":""},{"$f":"IF(OrigTable!E835=\"\",\"\",ScriptText!$E$1&CHAR(10)&ScriptText!$C$1)","v":""},{"$f":"IF(OrigTable!F835=\"\",\"\",ScriptText!$B$1&CHAR(10)&ScriptText!$D$1)","v":""},{"$f":"IF(OrigTable!F835=\"\",\"\",TEXT(OrigTable!F835,\"00\"))","v":""},{"$f":"IF(OrigTable!F835=\"\",\"\",ScriptText!$E$1&CHAR(10)&ScriptText!$C$1)","v":""},{"$f":"IF(OrigTable!G835=\"\",\"\",ScriptText!$B$1&CHAR(10)&ScriptText!$D$1)","v":""},{"$f":"IF(OrigTable!G835=\"\",\"\",TEXT(OrigTable!G835,\"00\"))","v":""},{"$f":"IF(OrigTable!G835=\"\",\"\",ScriptText!$E$1&CHAR(10)&ScriptText!$C$1)","v":""},0]
["\n\n\n",{"$f":"IF(OrigTable!A836=\"\",\"\",ScriptText!$B$1&CHAR(10)&ScriptText!$D$1)","v":""},{"$f":"IF(OrigTable!A836=\"\",\"\",TEXT(OrigTable!A836,\"00\"))","v":""},{"$f":"IF(OrigTable!A836=\"\",\"\",ScriptText!$E$1&CHAR(10)&ScriptText!$C$1)","v":""},{"$f":"IF(OrigTable!B836=\"\",\"\",ScriptText!$B$1&CHAR(10)&ScriptText!$D$1)","v":""},{"$f":"IF(OrigTable!B836=\"\",\"\",TEXT(OrigTable!B836,\"00\"))","v":""},{"$f":"IF(OrigTable!B836=\"\",\"\",ScriptText!$E$1&CHAR(10)&ScriptText!C831)","v":""},{"$f":"IF(OrigTable!C836=\"\",\"\",ScriptText!$B$1&CHAR(10)&ScriptText!$D$1)","v":""},{"$f":"IF(OrigTable!C836=\"\",\"\",IF(LEN(OrigTable!C836)>255,LEFT(OrigTable!C836,250)&\". . .\",OrigTable!C836))","v":""},{"$f":"IF(OrigTable!C836=\"\",\"\",ScriptText!$E$1&CHAR(10)&ScriptText!$C$1)","v":""},{"$f":"IF(OrigTable!D836=\"\",\"\",ScriptText!$B$1&CHAR(10)&ScriptText!$D$1)","v":""},{"$f":"IF(OrigTable!D836=\"\",\"\",TEXT(OrigTable!D836,\"00\"))","v":""},{"$f":"IF(OrigTable!D836=\"\",\"\",ScriptText!$E$1&CHAR(10)&ScriptText!$C$1)","v":""},{"$f":"IF(OrigTable!E836=\"\",\"\",ScriptText!$B$1&CHAR(10)&ScriptText!$D$1)","v":""},{"$f":"IF(OrigTable!E836=\"\",\"\",TEXT(OrigTable!E836,\"00\"))","v":""},{"$f":"IF(OrigTable!E836=\"\",\"\",ScriptText!$E$1&CHAR(10)&ScriptText!$C$1)","v":""},{"$f":"IF(OrigTable!F836=\"\",\"\",ScriptText!$B$1&CHAR(10)&ScriptText!$D$1)","v":""},{"$f":"IF(OrigTable!F836=\"\",\"\",TEXT(OrigTable!F836,\"00\"))","v":""},{"$f":"IF(OrigTable!F836=\"\",\"\",ScriptText!$E$1&CHAR(10)&ScriptText!$C$1)","v":""},{"$f":"IF(OrigTable!G836=\"\",\"\",ScriptText!$B$1&CHAR(10)&ScriptText!$D$1)","v":""},{"$f":"IF(OrigTable!G836=\"\",\"\",TEXT(OrigTable!G836,\"00\"))","v":""},{"$f":"IF(OrigTable!G836=\"\",\"\",ScriptText!$E$1&CHAR(10)&ScriptText!$C$1)","v":""},0]
["\n\n\n",{"$f":"IF(OrigTable!A837=\"\",\"\",ScriptText!$B$1&CHAR(10)&ScriptText!$D$1)","v":""},{"$f":"IF(OrigTable!A837=\"\",\"\",TEXT(OrigTable!A837,\"00\"))","v":""},{"$f":"IF(OrigTable!A837=\"\",\"\",ScriptText!$E$1&CHAR(10)&ScriptText!$C$1)","v":""},{"$f":"IF(OrigTable!B837=\"\",\"\",ScriptText!$B$1&CHAR(10)&ScriptText!$D$1)","v":""},{"$f":"IF(OrigTable!B837=\"\",\"\",TEXT(OrigTable!B837,\"00\"))","v":""},{"$f":"IF(OrigTable!B837=\"\",\"\",ScriptText!$E$1&CHAR(10)&ScriptText!C832)","v":""},{"$f":"IF(OrigTable!C837=\"\",\"\",ScriptText!$B$1&CHAR(10)&ScriptText!$D$1)","v":""},{"$f":"IF(OrigTable!C837=\"\",\"\",IF(LEN(OrigTable!C837)>255,LEFT(OrigTable!C837,250)&\". . .\",OrigTable!C837))","v":""},{"$f":"IF(OrigTable!C837=\"\",\"\",ScriptText!$E$1&CHAR(10)&ScriptText!$C$1)","v":""},{"$f":"IF(OrigTable!D837=\"\",\"\",ScriptText!$B$1&CHAR(10)&ScriptText!$D$1)","v":""},{"$f":"IF(OrigTable!D837=\"\",\"\",TEXT(OrigTable!D837,\"00\"))","v":""},{"$f":"IF(OrigTable!D837=\"\",\"\",ScriptText!$E$1&CHAR(10)&ScriptText!$C$1)","v":""},{"$f":"IF(OrigTable!E837=\"\",\"\",ScriptText!$B$1&CHAR(10)&ScriptText!$D$1)","v":""},{"$f":"IF(OrigTable!E837=\"\",\"\",TEXT(OrigTable!E837,\"00\"))","v":""},{"$f":"IF(OrigTable!E837=\"\",\"\",ScriptText!$E$1&CHAR(10)&ScriptText!$C$1)","v":""},{"$f":"IF(OrigTable!F837=\"\",\"\",ScriptText!$B$1&CHAR(10)&ScriptText!$D$1)","v":""},{"$f":"IF(OrigTable!F837=\"\",\"\",TEXT(OrigTable!F837,\"00\"))","v":""},{"$f":"IF(OrigTable!F837=\"\",\"\",ScriptText!$E$1&CHAR(10)&ScriptText!$C$1)","v":""},{"$f":"IF(OrigTable!G837=\"\",\"\",ScriptText!$B$1&CHAR(10)&ScriptText!$D$1)","v":""},{"$f":"IF(OrigTable!G837=\"\",\"\",TEXT(OrigTable!G837,\"00\"))","v":""},{"$f":"IF(OrigTable!G837=\"\",\"\",ScriptText!$E$1&CHAR(10)&ScriptText!$C$1)","v":""},0]
["\n\n\n",{"$f":"IF(OrigTable!A838=\"\",\"\",ScriptText!$B$1&CHAR(10)&ScriptText!$D$1)","v":""},{"$f":"IF(OrigTable!A838=\"\",\"\",TEXT(OrigTable!A838,\"00\"))","v":""},{"$f":"IF(OrigTable!A838=\"\",\"\",ScriptText!$E$1&CHAR(10)&ScriptText!$C$1)","v":""},{"$f":"IF(OrigTable!B838=\"\",\"\",ScriptText!$B$1&CHAR(10)&ScriptText!$D$1)","v":""},{"$f":"IF(OrigTable!B838=\"\",\"\",TEXT(OrigTable!B838,\"00\"))","v":""},{"$f":"IF(OrigTable!B838=\"\",\"\",ScriptText!$E$1&CHAR(10)&ScriptText!C833)","v":""},{"$f":"IF(OrigTable!C838=\"\",\"\",ScriptText!$B$1&CHAR(10)&ScriptText!$D$1)","v":""},{"$f":"IF(OrigTable!C838=\"\",\"\",IF(LEN(OrigTable!C838)>255,LEFT(OrigTable!C838,250)&\". . .\",OrigTable!C838))","v":""},{"$f":"IF(OrigTable!C838=\"\",\"\",ScriptText!$E$1&CHAR(10)&ScriptText!$C$1)","v":""},{"$f":"IF(OrigTable!D838=\"\",\"\",ScriptText!$B$1&CHAR(10)&ScriptText!$D$1)","v":""},{"$f":"IF(OrigTable!D838=\"\",\"\",TEXT(OrigTable!D838,\"00\"))","v":""},{"$f":"IF(OrigTable!D838=\"\",\"\",ScriptText!$E$1&CHAR(10)&ScriptText!$C$1)","v":""},{"$f":"IF(OrigTable!E838=\"\",\"\",ScriptText!$B$1&CHAR(10)&ScriptText!$D$1)","v":""},{"$f":"IF(OrigTable!E838=\"\",\"\",TEXT(OrigTable!E838,\"00\"))","v":""},{"$f":"IF(OrigTable!E838=\"\",\"\",ScriptText!$E$1&CHAR(10)&ScriptText!$C$1)","v":""},{"$f":"IF(OrigTable!F838=\"\",\"\",ScriptText!$B$1&CHAR(10)&ScriptText!$D$1)","v":""},{"$f":"IF(OrigTable!F838=\"\",\"\",TEXT(OrigTable!F838,\"00\"))","v":""},{"$f":"IF(OrigTable!F838=\"\",\"\",ScriptText!$E$1&CHAR(10)&ScriptText!$C$1)","v":""},{"$f":"IF(OrigTable!G838=\"\",\"\",ScriptText!$B$1&CHAR(10)&ScriptText!$D$1)","v":""},{"$f":"IF(OrigTable!G838=\"\",\"\",TEXT(OrigTable!G838,\"00\"))","v":""},{"$f":"IF(OrigTable!G838=\"\",\"\",ScriptText!$E$1&CHAR(10)&ScriptText!$C$1)","v":""},{"$f":"IF(LEN(A838)>3,ROW(),0)","v":0}]
["\n\n\n",{"$f":"IF(OrigTable!A839=\"\",\"\",ScriptText!$B$1&CHAR(10)&ScriptText!$D$1)","v":""},{"$f":"IF(OrigTable!A839=\"\",\"\",TEXT(OrigTable!A839,\"00\"))","v":""},{"$f":"IF(OrigTable!A839=\"\",\"\",ScriptText!$E$1&CHAR(10)&ScriptText!$C$1)","v":""},{"$f":"IF(OrigTable!B839=\"\",\"\",ScriptText!$B$1&CHAR(10)&ScriptText!$D$1)","v":""},{"$f":"IF(OrigTable!B839=\"\",\"\",TEXT(OrigTable!B839,\"00\"))","v":""},{"$f":"IF(OrigTable!B839=\"\",\"\",ScriptText!$E$1&CHAR(10)&ScriptText!C834)","v":""},{"$f":"IF(OrigTable!C839=\"\",\"\",ScriptText!$B$1&CHAR(10)&ScriptText!$D$1)","v":""},{"$f":"IF(OrigTable!C839=\"\",\"\",IF(LEN(OrigTable!C839)>255,LEFT(OrigTable!C839,250)&\". . .\",OrigTable!C839))","v":""},{"$f":"IF(OrigTable!C839=\"\",\"\",ScriptText!$E$1&CHAR(10)&ScriptText!$C$1)","v":""},{"$f":"IF(OrigTable!D839=\"\",\"\",ScriptText!$B$1&CHAR(10)&ScriptText!$D$1)","v":""},{"$f":"IF(OrigTable!D839=\"\",\"\",TEXT(OrigTable!D839,\"00\"))","v":""},{"$f":"IF(OrigTable!D839=\"\",\"\",ScriptText!$E$1&CHAR(10)&ScriptText!$C$1)","v":""},{"$f":"IF(OrigTable!E839=\"\",\"\",ScriptText!$B$1&CHAR(10)&ScriptText!$D$1)","v":""},{"$f":"IF(OrigTable!E839=\"\",\"\",TEXT(OrigTable!E839,\"00\"))","v":""},{"$f":"IF(OrigTable!E839=\"\",\"\",ScriptText!$E$1&CHAR(10)&ScriptText!$C$1)","v":""},{"$f":"IF(OrigTable!F839=\"\",\"\",ScriptText!$B$1&CHAR(10)&ScriptText!$D$1)","v":""},{"$f":"IF(OrigTable!F839=\"\",\"\",TEXT(OrigTable!F839,\"00\"))","v":""},{"$f":"IF(OrigTable!F839=\"\",\"\",ScriptText!$E$1&CHAR(10)&ScriptText!$C$1)","v":""},{"$f":"IF(OrigTable!G839=\"\",\"\",ScriptText!$B$1&CHAR(10)&ScriptText!$D$1)","v":""},{"$f":"IF(OrigTable!G839=\"\",\"\",TEXT(OrigTable!G839,\"00\"))","v":""},{"$f":"IF(OrigTable!G839=\"\",\"\",ScriptText!$E$1&CHAR(10)&ScriptText!$C$1)","v":""},0]
["\n\n\n",{"$f":"IF(OrigTable!A840=\"\",\"\",ScriptText!$B$1&CHAR(10)&ScriptText!$D$1)","v":""},{"$f":"IF(OrigTable!A840=\"\",\"\",TEXT(OrigTable!A840,\"00\"))","v":""},{"$f":"IF(OrigTable!A840=\"\",\"\",ScriptText!$E$1&CHAR(10)&ScriptText!$C$1)","v":""},{"$f":"IF(OrigTable!B840=\"\",\"\",ScriptText!$B$1&CHAR(10)&ScriptText!$D$1)","v":""},{"$f":"IF(OrigTable!B840=\"\",\"\",TEXT(OrigTable!B840,\"00\"))","v":""},{"$f":"IF(OrigTable!B840=\"\",\"\",ScriptText!$E$1&CHAR(10)&ScriptText!C835)","v":""},{"$f":"IF(OrigTable!C840=\"\",\"\",ScriptText!$B$1&CHAR(10)&ScriptText!$D$1)","v":""},{"$f":"IF(OrigTable!C840=\"\",\"\",IF(LEN(OrigTable!C840)>255,LEFT(OrigTable!C840,250)&\". . .\",OrigTable!C840))","v":""},{"$f":"IF(OrigTable!C840=\"\",\"\",ScriptText!$E$1&CHAR(10)&ScriptText!$C$1)","v":""},{"$f":"IF(OrigTable!D840=\"\",\"\",ScriptText!$B$1&CHAR(10)&ScriptText!$D$1)","v":""},{"$f":"IF(OrigTable!D840=\"\",\"\",TEXT(OrigTable!D840,\"00\"))","v":""},{"$f":"IF(OrigTable!D840=\"\",\"\",ScriptText!$E$1&CHAR(10)&ScriptText!$C$1)","v":""},{"$f":"IF(OrigTable!E840=\"\",\"\",ScriptText!$B$1&CHAR(10)&ScriptText!$D$1)","v":""},{"$f":"IF(OrigTable!E840=\"\",\"\",TEXT(OrigTable!E840,\"00\"))","v":""},{"$f":"IF(OrigTable!E840=\"\",\"\",ScriptText!$E$1&CHAR(10)&ScriptText!$C$1)","v":""},{"$f":"IF(OrigTable!F840=\"\",\"\",ScriptText!$B$1&CHAR(10)&ScriptText!$D$1)","v":""},{"$f":"IF(OrigTable!F840=\"\",\"\",TEXT(OrigTable!F840,\"00\"))","v":""},{"$f":"IF(OrigTable!F840=\"\",\"\",ScriptText!$E$1&CHAR(10)&ScriptText!$C$1)","v":""},{"$f":"IF(OrigTable!G840=\"\",\"\",ScriptText!$B$1&CHAR(10)&ScriptText!$D$1)","v":""},{"$f":"IF(OrigTable!G840=\"\",\"\",TEXT(OrigTable!G840,\"00\"))","v":""},{"$f":"IF(OrigTable!G840=\"\",\"\",ScriptText!$E$1&CHAR(10)&ScriptText!$C$1)","v":""},0]
[{"$f":"_xlfn.TEXTJOIN(\"\",TRUE,B841:D841)&CHAR(10)&_xlfn.TEXTJOIN(\"\",TRUE,E841:G841)&CHAR(10)&_xlfn.TEXTJOIN(\"\",TRUE,H841:J841)&CHAR(10)&_xlfn.TEXTJOIN(\"\",TRUE,K841:M841)&_xlfn.TEXTJOIN(\"\",TRUE,N841:P841)&_xlfn.TEXTJOIN(\"\",TRUE,Q841:S841)&_xlfn.TEXTJOIN(\"\",TRUE,T841:V841)","v":"\n\n\n"},{"$f":"IF(OrigTable!A841=\"\",\"\",ScriptText!$B$1&CHAR(10)&ScriptText!$D$1)","v":""},{"$f":"IF(OrigTable!A841=\"\",\"\",TEXT(OrigTable!A841,\"00\"))","v":""},{"$f":"IF(OrigTable!A841=\"\",\"\",ScriptText!$E$1&CHAR(10)&ScriptText!$C$1)","v":""},{"$f":"IF(OrigTable!B841=\"\",\"\",ScriptText!$B$1&CHAR(10)&ScriptText!$D$1)","v":""},{"$f":"IF(OrigTable!B841=\"\",\"\",TEXT(OrigTable!B841,\"00\"))","v":""},{"$f":"IF(OrigTable!B841=\"\",\"\",ScriptText!$E$1&CHAR(10)&ScriptText!C836)","v":""},{"$f":"IF(OrigTable!C841=\"\",\"\",ScriptText!$B$1&CHAR(10)&ScriptText!$D$1)","v":""},{"$f":"IF(OrigTable!C841=\"\",\"\",IF(LEN(OrigTable!C841)>255,LEFT(OrigTable!C841,250)&\". . .\",OrigTable!C841))","v":""},{"$f":"IF(OrigTable!C841=\"\",\"\",ScriptText!$E$1&CHAR(10)&ScriptText!$C$1)","v":""},{"$f":"IF(OrigTable!D841=\"\",\"\",ScriptText!$B$1&CHAR(10)&ScriptText!$D$1)","v":""},{"$f":"IF(OrigTable!D841=\"\",\"\",TEXT(OrigTable!D841,\"00\"))","v":""},{"$f":"IF(OrigTable!D841=\"\",\"\",ScriptText!$E$1&CHAR(10)&ScriptText!$C$1)","v":""},{"$f":"IF(OrigTable!E841=\"\",\"\",ScriptText!$B$1&CHAR(10)&ScriptText!$D$1)","v":""},{"$f":"IF(OrigTable!E841=\"\",\"\",TEXT(OrigTable!E841,\"00\"))","v":""},{"$f":"IF(OrigTable!E841=\"\",\"\",ScriptText!$E$1&CHAR(10)&ScriptText!$C$1)","v":""},{"$f":"IF(OrigTable!F841=\"\",\"\",ScriptText!$B$1&CHAR(10)&ScriptText!$D$1)","v":""},{"$f":"IF(OrigTable!F841=\"\",\"\",TEXT(OrigTable!F841,\"00\"))","v":""},{"$f":"IF(OrigTable!F841=\"\",\"\",ScriptText!$E$1&CHAR(10)&ScriptText!$C$1)","v":""},{"$f":"IF(OrigTable!G841=\"\",\"\",ScriptText!$B$1&CHAR(10)&ScriptText!$D$1)","v":""},{"$f":"IF(OrigTable!G841=\"\",\"\",TEXT(OrigTable!G841,\"00\"))","v":""},{"$f":"IF(OrigTable!G841=\"\",\"\",ScriptText!$E$1&CHAR(10)&ScriptText!$C$1)","v":""},0]
["\n\n\n",{"$f":"IF(OrigTable!A842=\"\",\"\",ScriptText!$B$1&CHAR(10)&ScriptText!$D$1)","v":""},{"$f":"IF(OrigTable!A842=\"\",\"\",TEXT(OrigTable!A842,\"00\"))","v":""},{"$f":"IF(OrigTable!A842=\"\",\"\",ScriptText!$E$1&CHAR(10)&ScriptText!$C$1)","v":""},{"$f":"IF(OrigTable!B842=\"\",\"\",ScriptText!$B$1&CHAR(10)&ScriptText!$D$1)","v":""},{"$f":"IF(OrigTable!B842=\"\",\"\",TEXT(OrigTable!B842,\"00\"))","v":""},{"$f":"IF(OrigTable!B842=\"\",\"\",ScriptText!$E$1&CHAR(10)&ScriptText!C837)","v":""},{"$f":"IF(OrigTable!C842=\"\",\"\",ScriptText!$B$1&CHAR(10)&ScriptText!$D$1)","v":""},{"$f":"IF(OrigTable!C842=\"\",\"\",IF(LEN(OrigTable!C842)>255,LEFT(OrigTable!C842,250)&\". . .\",OrigTable!C842))","v":""},{"$f":"IF(OrigTable!C842=\"\",\"\",ScriptText!$E$1&CHAR(10)&ScriptText!$C$1)","v":""},{"$f":"IF(OrigTable!D842=\"\",\"\",ScriptText!$B$1&CHAR(10)&ScriptText!$D$1)","v":""},{"$f":"IF(OrigTable!D842=\"\",\"\",TEXT(OrigTable!D842,\"00\"))","v":""},{"$f":"IF(OrigTable!D842=\"\",\"\",ScriptText!$E$1&CHAR(10)&ScriptText!$C$1)","v":""},{"$f":"IF(OrigTable!E842=\"\",\"\",ScriptText!$B$1&CHAR(10)&ScriptText!$D$1)","v":""},{"$f":"IF(OrigTable!E842=\"\",\"\",TEXT(OrigTable!E842,\"00\"))","v":""},{"$f":"IF(OrigTable!E842=\"\",\"\",ScriptText!$E$1&CHAR(10)&ScriptText!$C$1)","v":""},{"$f":"IF(OrigTable!F842=\"\",\"\",ScriptText!$B$1&CHAR(10)&ScriptText!$D$1)","v":""},{"$f":"IF(OrigTable!F842=\"\",\"\",TEXT(OrigTable!F842,\"00\"))","v":""},{"$f":"IF(OrigTable!F842=\"\",\"\",ScriptText!$E$1&CHAR(10)&ScriptText!$C$1)","v":""},{"$f":"IF(OrigTable!G842=\"\",\"\",ScriptText!$B$1&CHAR(10)&ScriptText!$D$1)","v":""},{"$f":"IF(OrigTable!G842=\"\",\"\",TEXT(OrigTable!G842,\"00\"))","v":""},{"$f":"IF(OrigTable!G842=\"\",\"\",ScriptText!$E$1&CHAR(10)&ScriptText!$C$1)","v":""},0]
["\n\n\n",{"$f":"IF(OrigTable!A843=\"\",\"\",ScriptText!$B$1&CHAR(10)&ScriptText!$D$1)","v":""},{"$f":"IF(OrigTable!A843=\"\",\"\",TEXT(OrigTable!A843,\"00\"))","v":""},{"$f":"IF(OrigTable!A843=\"\",\"\",ScriptText!$E$1&CHAR(10)&ScriptText!$C$1)","v":""},{"$f":"IF(OrigTable!B843=\"\",\"\",ScriptText!$B$1&CHAR(10)&ScriptText!$D$1)","v":""},{"$f":"IF(OrigTable!B843=\"\",\"\",TEXT(OrigTable!B843,\"00\"))","v":""},{"$f":"IF(OrigTable!B843=\"\",\"\",ScriptText!$E$1&CHAR(10)&ScriptText!C838)","v":""},{"$f":"IF(OrigTable!C843=\"\",\"\",ScriptText!$B$1&CHAR(10)&ScriptText!$D$1)","v":""},{"$f":"IF(OrigTable!C843=\"\",\"\",IF(LEN(OrigTable!C843)>255,LEFT(OrigTable!C843,250)&\". . .\",OrigTable!C843))","v":""},{"$f":"IF(OrigTable!C843=\"\",\"\",ScriptText!$E$1&CHAR(10)&ScriptText!$C$1)","v":""},{"$f":"IF(OrigTable!D843=\"\",\"\",ScriptText!$B$1&CHAR(10)&ScriptText!$D$1)","v":""},{"$f":"IF(OrigTable!D843=\"\",\"\",TEXT(OrigTable!D843,\"00\"))","v":""},{"$f":"IF(OrigTable!D843=\"\",\"\",ScriptText!$E$1&CHAR(10)&ScriptText!$C$1)","v":""},{"$f":"IF(OrigTable!E843=\"\",\"\",ScriptText!$B$1&CHAR(10)&ScriptText!$D$1)","v":""},{"$f":"IF(OrigTable!E843=\"\",\"\",TEXT(OrigTable!E843,\"00\"))","v":""},{"$f":"IF(OrigTable!E843=\"\",\"\",ScriptText!$E$1&CHAR(10)&ScriptText!$C$1)","v":""},{"$f":"IF(OrigTable!F843=\"\",\"\",ScriptText!$B$1&CHAR(10)&ScriptText!$D$1)","v":""},{"$f":"IF(OrigTable!F843=\"\",\"\",TEXT(OrigTable!F843,\"00\"))","v":""},{"$f":"IF(OrigTable!F843=\"\",\"\",ScriptText!$E$1&CHAR(10)&ScriptText!$C$1)","v":""},{"$f":"IF(OrigTable!G843=\"\",\"\",ScriptText!$B$1&CHAR(10)&ScriptText!$D$1)","v":""},{"$f":"IF(OrigTable!G843=\"\",\"\",TEXT(OrigTable!G843,\"00\"))","v":""},{"$f":"IF(OrigTable!G843=\"\",\"\",ScriptText!$E$1&CHAR(10)&ScriptText!$C$1)","v":""},0]
["\n\n\n",{"$f":"IF(OrigTable!A844=\"\",\"\",ScriptText!$B$1&CHAR(10)&ScriptText!$D$1)","v":""},{"$f":"IF(OrigTable!A844=\"\",\"\",TEXT(OrigTable!A844,\"00\"))","v":""},{"$f":"IF(OrigTable!A844=\"\",\"\",ScriptText!$E$1&CHAR(10)&ScriptText!$C$1)","v":""},{"$f":"IF(OrigTable!B844=\"\",\"\",ScriptText!$B$1&CHAR(10)&ScriptText!$D$1)","v":""},{"$f":"IF(OrigTable!B844=\"\",\"\",TEXT(OrigTable!B844,\"00\"))","v":""},{"$f":"IF(OrigTable!B844=\"\",\"\",ScriptText!$E$1&CHAR(10)&ScriptText!C839)","v":""},{"$f":"IF(OrigTable!C844=\"\",\"\",ScriptText!$B$1&CHAR(10)&ScriptText!$D$1)","v":""},{"$f":"IF(OrigTable!C844=\"\",\"\",IF(LEN(OrigTable!C844)>255,LEFT(OrigTable!C844,250)&\". . .\",OrigTable!C844))","v":""},{"$f":"IF(OrigTable!C844=\"\",\"\",ScriptText!$E$1&CHAR(10)&ScriptText!$C$1)","v":""},{"$f":"IF(OrigTable!D844=\"\",\"\",ScriptText!$B$1&CHAR(10)&ScriptText!$D$1)","v":""},{"$f":"IF(OrigTable!D844=\"\",\"\",TEXT(OrigTable!D844,\"00\"))","v":""},{"$f":"IF(OrigTable!D844=\"\",\"\",ScriptText!$E$1&CHAR(10)&ScriptText!$C$1)","v":""},{"$f":"IF(OrigTable!E844=\"\",\"\",ScriptText!$B$1&CHAR(10)&ScriptText!$D$1)","v":""},{"$f":"IF(OrigTable!E844=\"\",\"\",TEXT(OrigTable!E844,\"00\"))","v":""},{"$f":"IF(OrigTable!E844=\"\",\"\",ScriptText!$E$1&CHAR(10)&ScriptText!$C$1)","v":""},{"$f":"IF(OrigTable!F844=\"\",\"\",ScriptText!$B$1&CHAR(10)&ScriptText!$D$1)","v":""},{"$f":"IF(OrigTable!F844=\"\",\"\",TEXT(OrigTable!F844,\"00\"))","v":""},{"$f":"IF(OrigTable!F844=\"\",\"\",ScriptText!$E$1&CHAR(10)&ScriptText!$C$1)","v":""},{"$f":"IF(OrigTable!G844=\"\",\"\",ScriptText!$B$1&CHAR(10)&ScriptText!$D$1)","v":""},{"$f":"IF(OrigTable!G844=\"\",\"\",TEXT(OrigTable!G844,\"00\"))","v":""},{"$f":"IF(OrigTable!G844=\"\",\"\",ScriptText!$E$1&CHAR(10)&ScriptText!$C$1)","v":""},0]
["\n\n\n",{"$f":"IF(OrigTable!A845=\"\",\"\",ScriptText!$B$1&CHAR(10)&ScriptText!$D$1)","v":""},{"$f":"IF(OrigTable!A845=\"\",\"\",TEXT(OrigTable!A845,\"00\"))","v":""},{"$f":"IF(OrigTable!A845=\"\",\"\",ScriptText!$E$1&CHAR(10)&ScriptText!$C$1)","v":""},{"$f":"IF(OrigTable!B845=\"\",\"\",ScriptText!$B$1&CHAR(10)&ScriptText!$D$1)","v":""},{"$f":"IF(OrigTable!B845=\"\",\"\",TEXT(OrigTable!B845,\"00\"))","v":""},{"$f":"IF(OrigTable!B845=\"\",\"\",ScriptText!$E$1&CHAR(10)&ScriptText!C840)","v":""},{"$f":"IF(OrigTable!C845=\"\",\"\",ScriptText!$B$1&CHAR(10)&ScriptText!$D$1)","v":""},{"$f":"IF(OrigTable!C845=\"\",\"\",IF(LEN(OrigTable!C845)>255,LEFT(OrigTable!C845,250)&\". . .\",OrigTable!C845))","v":""},{"$f":"IF(OrigTable!C845=\"\",\"\",ScriptText!$E$1&CHAR(10)&ScriptText!$C$1)","v":""},{"$f":"IF(OrigTable!D845=\"\",\"\",ScriptText!$B$1&CHAR(10)&ScriptText!$D$1)","v":""},{"$f":"IF(OrigTable!D845=\"\",\"\",TEXT(OrigTable!D845,\"00\"))","v":""},{"$f":"IF(OrigTable!D845=\"\",\"\",ScriptText!$E$1&CHAR(10)&ScriptText!$C$1)","v":""},{"$f":"IF(OrigTable!E845=\"\",\"\",ScriptText!$B$1&CHAR(10)&ScriptText!$D$1)","v":""},{"$f":"IF(OrigTable!E845=\"\",\"\",TEXT(OrigTable!E845,\"00\"))","v":""},{"$f":"IF(OrigTable!E845=\"\",\"\",ScriptText!$E$1&CHAR(10)&ScriptText!$C$1)","v":""},{"$f":"IF(OrigTable!F845=\"\",\"\",ScriptText!$B$1&CHAR(10)&ScriptText!$D$1)","v":""},{"$f":"IF(OrigTable!F845=\"\",\"\",TEXT(OrigTable!F845,\"00\"))","v":""},{"$f":"IF(OrigTable!F845=\"\",\"\",ScriptText!$E$1&CHAR(10)&ScriptText!$C$1)","v":""},{"$f":"IF(OrigTable!G845=\"\",\"\",ScriptText!$B$1&CHAR(10)&ScriptText!$D$1)","v":""},{"$f":"IF(OrigTable!G845=\"\",\"\",TEXT(OrigTable!G845,\"00\"))","v":""},{"$f":"IF(OrigTable!G845=\"\",\"\",ScriptText!$E$1&CHAR(10)&ScriptText!$C$1)","v":""},0]
["\n\n\n",{"$f":"IF(OrigTable!A846=\"\",\"\",ScriptText!$B$1&CHAR(10)&ScriptText!$D$1)","v":""},{"$f":"IF(OrigTable!A846=\"\",\"\",TEXT(OrigTable!A846,\"00\"))","v":""},{"$f":"IF(OrigTable!A846=\"\",\"\",ScriptText!$E$1&CHAR(10)&ScriptText!$C$1)","v":""},{"$f":"IF(OrigTable!B846=\"\",\"\",ScriptText!$B$1&CHAR(10)&ScriptText!$D$1)","v":""},{"$f":"IF(OrigTable!B846=\"\",\"\",TEXT(OrigTable!B846,\"00\"))","v":""},{"$f":"IF(OrigTable!B846=\"\",\"\",ScriptText!$E$1&CHAR(10)&ScriptText!C841)","v":""},{"$f":"IF(OrigTable!C846=\"\",\"\",ScriptText!$B$1&CHAR(10)&ScriptText!$D$1)","v":""},{"$f":"IF(OrigTable!C846=\"\",\"\",IF(LEN(OrigTable!C846)>255,LEFT(OrigTable!C846,250)&\". . .\",OrigTable!C846))","v":""},{"$f":"IF(OrigTable!C846=\"\",\"\",ScriptText!$E$1&CHAR(10)&ScriptText!$C$1)","v":""},{"$f":"IF(OrigTable!D846=\"\",\"\",ScriptText!$B$1&CHAR(10)&ScriptText!$D$1)","v":""},{"$f":"IF(OrigTable!D846=\"\",\"\",TEXT(OrigTable!D846,\"00\"))","v":""},{"$f":"IF(OrigTable!D846=\"\",\"\",ScriptText!$E$1&CHAR(10)&ScriptText!$C$1)","v":""},{"$f":"IF(OrigTable!E846=\"\",\"\",ScriptText!$B$1&CHAR(10)&ScriptText!$D$1)","v":""},{"$f":"IF(OrigTable!E846=\"\",\"\",TEXT(OrigTable!E846,\"00\"))","v":""},{"$f":"IF(OrigTable!E846=\"\",\"\",ScriptText!$E$1&CHAR(10)&ScriptText!$C$1)","v":""},{"$f":"IF(OrigTable!F846=\"\",\"\",ScriptText!$B$1&CHAR(10)&ScriptText!$D$1)","v":""},{"$f":"IF(OrigTable!F846=\"\",\"\",TEXT(OrigTable!F846,\"00\"))","v":""},{"$f":"IF(OrigTable!F846=\"\",\"\",ScriptText!$E$1&CHAR(10)&ScriptText!$C$1)","v":""},{"$f":"IF(OrigTable!G846=\"\",\"\",ScriptText!$B$1&CHAR(10)&ScriptText!$D$1)","v":""},{"$f":"IF(OrigTable!G846=\"\",\"\",TEXT(OrigTable!G846,\"00\"))","v":""},{"$f":"IF(OrigTable!G846=\"\",\"\",ScriptText!$E$1&CHAR(10)&ScriptText!$C$1)","v":""},0]
["\n\n\n",{"$f":"IF(OrigTable!A847=\"\",\"\",ScriptText!$B$1&CHAR(10)&ScriptText!$D$1)","v":""},{"$f":"IF(OrigTable!A847=\"\",\"\",TEXT(OrigTable!A847,\"00\"))","v":""},{"$f":"IF(OrigTable!A847=\"\",\"\",ScriptText!$E$1&CHAR(10)&ScriptText!$C$1)","v":""},{"$f":"IF(OrigTable!B847=\"\",\"\",ScriptText!$B$1&CHAR(10)&ScriptText!$D$1)","v":""},{"$f":"IF(OrigTable!B847=\"\",\"\",TEXT(OrigTable!B847,\"00\"))","v":""},{"$f":"IF(OrigTable!B847=\"\",\"\",ScriptText!$E$1&CHAR(10)&ScriptText!C842)","v":""},{"$f":"IF(OrigTable!C847=\"\",\"\",ScriptText!$B$1&CHAR(10)&ScriptText!$D$1)","v":""},{"$f":"IF(OrigTable!C847=\"\",\"\",IF(LEN(OrigTable!C847)>255,LEFT(OrigTable!C847,250)&\". . .\",OrigTable!C847))","v":""},{"$f":"IF(OrigTable!C847=\"\",\"\",ScriptText!$E$1&CHAR(10)&ScriptText!$C$1)","v":""},{"$f":"IF(OrigTable!D847=\"\",\"\",ScriptText!$B$1&CHAR(10)&ScriptText!$D$1)","v":""},{"$f":"IF(OrigTable!D847=\"\",\"\",TEXT(OrigTable!D847,\"00\"))","v":""},{"$f":"IF(OrigTable!D847=\"\",\"\",ScriptText!$E$1&CHAR(10)&ScriptText!$C$1)","v":""},{"$f":"IF(OrigTable!E847=\"\",\"\",ScriptText!$B$1&CHAR(10)&ScriptText!$D$1)","v":""},{"$f":"IF(OrigTable!E847=\"\",\"\",TEXT(OrigTable!E847,\"00\"))","v":""},{"$f":"IF(OrigTable!E847=\"\",\"\",ScriptText!$E$1&CHAR(10)&ScriptText!$C$1)","v":""},{"$f":"IF(OrigTable!F847=\"\",\"\",ScriptText!$B$1&CHAR(10)&ScriptText!$D$1)","v":""},{"$f":"IF(OrigTable!F847=\"\",\"\",TEXT(OrigTable!F847,\"00\"))","v":""},{"$f":"IF(OrigTable!F847=\"\",\"\",ScriptText!$E$1&CHAR(10)&ScriptText!$C$1)","v":""},{"$f":"IF(OrigTable!G847=\"\",\"\",ScriptText!$B$1&CHAR(10)&ScriptText!$D$1)","v":""},{"$f":"IF(OrigTable!G847=\"\",\"\",TEXT(OrigTable!G847,\"00\"))","v":""},{"$f":"IF(OrigTable!G847=\"\",\"\",ScriptText!$E$1&CHAR(10)&ScriptText!$C$1)","v":""},0]
["\n\n\n",{"$f":"IF(OrigTable!A848=\"\",\"\",ScriptText!$B$1&CHAR(10)&ScriptText!$D$1)","v":""},{"$f":"IF(OrigTable!A848=\"\",\"\",TEXT(OrigTable!A848,\"00\"))","v":""},{"$f":"IF(OrigTable!A848=\"\",\"\",ScriptText!$E$1&CHAR(10)&ScriptText!$C$1)","v":""},{"$f":"IF(OrigTable!B848=\"\",\"\",ScriptText!$B$1&CHAR(10)&ScriptText!$D$1)","v":""},{"$f":"IF(OrigTable!B848=\"\",\"\",TEXT(OrigTable!B848,\"00\"))","v":""},{"$f":"IF(OrigTable!B848=\"\",\"\",ScriptText!$E$1&CHAR(10)&ScriptText!C843)","v":""},{"$f":"IF(OrigTable!C848=\"\",\"\",ScriptText!$B$1&CHAR(10)&ScriptText!$D$1)","v":""},{"$f":"IF(OrigTable!C848=\"\",\"\",IF(LEN(OrigTable!C848)>255,LEFT(OrigTable!C848,250)&\". . .\",OrigTable!C848))","v":""},{"$f":"IF(OrigTable!C848=\"\",\"\",ScriptText!$E$1&CHAR(10)&ScriptText!$C$1)","v":""},{"$f":"IF(OrigTable!D848=\"\",\"\",ScriptText!$B$1&CHAR(10)&ScriptText!$D$1)","v":""},{"$f":"IF(OrigTable!D848=\"\",\"\",TEXT(OrigTable!D848,\"00\"))","v":""},{"$f":"IF(OrigTable!D848=\"\",\"\",ScriptText!$E$1&CHAR(10)&ScriptText!$C$1)","v":""},{"$f":"IF(OrigTable!E848=\"\",\"\",ScriptText!$B$1&CHAR(10)&ScriptText!$D$1)","v":""},{"$f":"IF(OrigTable!E848=\"\",\"\",TEXT(OrigTable!E848,\"00\"))","v":""},{"$f":"IF(OrigTable!E848=\"\",\"\",ScriptText!$E$1&CHAR(10)&ScriptText!$C$1)","v":""},{"$f":"IF(OrigTable!F848=\"\",\"\",ScriptText!$B$1&CHAR(10)&ScriptText!$D$1)","v":""},{"$f":"IF(OrigTable!F848=\"\",\"\",TEXT(OrigTable!F848,\"00\"))","v":""},{"$f":"IF(OrigTable!F848=\"\",\"\",ScriptText!$E$1&CHAR(10)&ScriptText!$C$1)","v":""},{"$f":"IF(OrigTable!G848=\"\",\"\",ScriptText!$B$1&CHAR(10)&ScriptText!$D$1)","v":""},{"$f":"IF(OrigTable!G848=\"\",\"\",TEXT(OrigTable!G848,\"00\"))","v":""},{"$f":"IF(OrigTable!G848=\"\",\"\",ScriptText!$E$1&CHAR(10)&ScriptText!$C$1)","v":""},0]
["\n\n\n",{"$f":"IF(OrigTable!A849=\"\",\"\",ScriptText!$B$1&CHAR(10)&ScriptText!$D$1)","v":""},{"$f":"IF(OrigTable!A849=\"\",\"\",TEXT(OrigTable!A849,\"00\"))","v":""},{"$f":"IF(OrigTable!A849=\"\",\"\",ScriptText!$E$1&CHAR(10)&ScriptText!$C$1)","v":""},{"$f":"IF(OrigTable!B849=\"\",\"\",ScriptText!$B$1&CHAR(10)&ScriptText!$D$1)","v":""},{"$f":"IF(OrigTable!B849=\"\",\"\",TEXT(OrigTable!B849,\"00\"))","v":""},{"$f":"IF(OrigTable!B849=\"\",\"\",ScriptText!$E$1&CHAR(10)&ScriptText!C844)","v":""},{"$f":"IF(OrigTable!C849=\"\",\"\",ScriptText!$B$1&CHAR(10)&ScriptText!$D$1)","v":""},{"$f":"IF(OrigTable!C849=\"\",\"\",IF(LEN(OrigTable!C849)>255,LEFT(OrigTable!C849,250)&\". . .\",OrigTable!C849))","v":""},{"$f":"IF(OrigTable!C849=\"\",\"\",ScriptText!$E$1&CHAR(10)&ScriptText!$C$1)","v":""},{"$f":"IF(OrigTable!D849=\"\",\"\",ScriptText!$B$1&CHAR(10)&ScriptText!$D$1)","v":""},{"$f":"IF(OrigTable!D849=\"\",\"\",TEXT(OrigTable!D849,\"00\"))","v":""},{"$f":"IF(OrigTable!D849=\"\",\"\",ScriptText!$E$1&CHAR(10)&ScriptText!$C$1)","v":""},{"$f":"IF(OrigTable!E849=\"\",\"\",ScriptText!$B$1&CHAR(10)&ScriptText!$D$1)","v":""},{"$f":"IF(OrigTable!E849=\"\",\"\",TEXT(OrigTable!E849,\"00\"))","v":""},{"$f":"IF(OrigTable!E849=\"\",\"\",ScriptText!$E$1&CHAR(10)&ScriptText!$C$1)","v":""},{"$f":"IF(OrigTable!F849=\"\",\"\",ScriptText!$B$1&CHAR(10)&ScriptText!$D$1)","v":""},{"$f":"IF(OrigTable!F849=\"\",\"\",TEXT(OrigTable!F849,\"00\"))","v":""},{"$f":"IF(OrigTable!F849=\"\",\"\",ScriptText!$E$1&CHAR(10)&ScriptText!$C$1)","v":""},{"$f":"IF(OrigTable!G849=\"\",\"\",ScriptText!$B$1&CHAR(10)&ScriptText!$D$1)","v":""},{"$f":"IF(OrigTable!G849=\"\",\"\",TEXT(OrigTable!G849,\"00\"))","v":""},{"$f":"IF(OrigTable!G849=\"\",\"\",ScriptText!$E$1&CHAR(10)&ScriptText!$C$1)","v":""},0]
["\n\n\n",{"$f":"IF(OrigTable!A850=\"\",\"\",ScriptText!$B$1&CHAR(10)&ScriptText!$D$1)","v":""},{"$f":"IF(OrigTable!A850=\"\",\"\",TEXT(OrigTable!A850,\"00\"))","v":""},{"$f":"IF(OrigTable!A850=\"\",\"\",ScriptText!$E$1&CHAR(10)&ScriptText!$C$1)","v":""},{"$f":"IF(OrigTable!B850=\"\",\"\",ScriptText!$B$1&CHAR(10)&ScriptText!$D$1)","v":""},{"$f":"IF(OrigTable!B850=\"\",\"\",TEXT(OrigTable!B850,\"00\"))","v":""},{"$f":"IF(OrigTable!B850=\"\",\"\",ScriptText!$E$1&CHAR(10)&ScriptText!C845)","v":""},{"$f":"IF(OrigTable!C850=\"\",\"\",ScriptText!$B$1&CHAR(10)&ScriptText!$D$1)","v":""},{"$f":"IF(OrigTable!C850=\"\",\"\",IF(LEN(OrigTable!C850)>255,LEFT(OrigTable!C850,250)&\". . .\",OrigTable!C850))","v":""},{"$f":"IF(OrigTable!C850=\"\",\"\",ScriptText!$E$1&CHAR(10)&ScriptText!$C$1)","v":""},{"$f":"IF(OrigTable!D850=\"\",\"\",ScriptText!$B$1&CHAR(10)&ScriptText!$D$1)","v":""},{"$f":"IF(OrigTable!D850=\"\",\"\",TEXT(OrigTable!D850,\"00\"))","v":""},{"$f":"IF(OrigTable!D850=\"\",\"\",ScriptText!$E$1&CHAR(10)&ScriptText!$C$1)","v":""},{"$f":"IF(OrigTable!E850=\"\",\"\",ScriptText!$B$1&CHAR(10)&ScriptText!$D$1)","v":""},{"$f":"IF(OrigTable!E850=\"\",\"\",TEXT(OrigTable!E850,\"00\"))","v":""},{"$f":"IF(OrigTable!E850=\"\",\"\",ScriptText!$E$1&CHAR(10)&ScriptText!$C$1)","v":""},{"$f":"IF(OrigTable!F850=\"\",\"\",ScriptText!$B$1&CHAR(10)&ScriptText!$D$1)","v":""},{"$f":"IF(OrigTable!F850=\"\",\"\",TEXT(OrigTable!F850,\"00\"))","v":""},{"$f":"IF(OrigTable!F850=\"\",\"\",ScriptText!$E$1&CHAR(10)&ScriptText!$C$1)","v":""},{"$f":"IF(OrigTable!G850=\"\",\"\",ScriptText!$B$1&CHAR(10)&ScriptText!$D$1)","v":""},{"$f":"IF(OrigTable!G850=\"\",\"\",TEXT(OrigTable!G850,\"00\"))","v":""},{"$f":"IF(OrigTable!G850=\"\",\"\",ScriptText!$E$1&CHAR(10)&ScriptText!$C$1)","v":""},0]
["\n\n\n",{"$f":"IF(OrigTable!A851=\"\",\"\",ScriptText!$B$1&CHAR(10)&ScriptText!$D$1)","v":""},{"$f":"IF(OrigTable!A851=\"\",\"\",TEXT(OrigTable!A851,\"00\"))","v":""},{"$f":"IF(OrigTable!A851=\"\",\"\",ScriptText!$E$1&CHAR(10)&ScriptText!$C$1)","v":""},{"$f":"IF(OrigTable!B851=\"\",\"\",ScriptText!$B$1&CHAR(10)&ScriptText!$D$1)","v":""},{"$f":"IF(OrigTable!B851=\"\",\"\",TEXT(OrigTable!B851,\"00\"))","v":""},{"$f":"IF(OrigTable!B851=\"\",\"\",ScriptText!$E$1&CHAR(10)&ScriptText!C846)","v":""},{"$f":"IF(OrigTable!C851=\"\",\"\",ScriptText!$B$1&CHAR(10)&ScriptText!$D$1)","v":""},{"$f":"IF(OrigTable!C851=\"\",\"\",IF(LEN(OrigTable!C851)>255,LEFT(OrigTable!C851,250)&\". . .\",OrigTable!C851))","v":""},{"$f":"IF(OrigTable!C851=\"\",\"\",ScriptText!$E$1&CHAR(10)&ScriptText!$C$1)","v":""},{"$f":"IF(OrigTable!D851=\"\",\"\",ScriptText!$B$1&CHAR(10)&ScriptText!$D$1)","v":""},{"$f":"IF(OrigTable!D851=\"\",\"\",TEXT(OrigTable!D851,\"00\"))","v":""},{"$f":"IF(OrigTable!D851=\"\",\"\",ScriptText!$E$1&CHAR(10)&ScriptText!$C$1)","v":""},{"$f":"IF(OrigTable!E851=\"\",\"\",ScriptText!$B$1&CHAR(10)&ScriptText!$D$1)","v":""},{"$f":"IF(OrigTable!E851=\"\",\"\",TEXT(OrigTable!E851,\"00\"))","v":""},{"$f":"IF(OrigTable!E851=\"\",\"\",ScriptText!$E$1&CHAR(10)&ScriptText!$C$1)","v":""},{"$f":"IF(OrigTable!F851=\"\",\"\",ScriptText!$B$1&CHAR(10)&ScriptText!$D$1)","v":""},{"$f":"IF(OrigTable!F851=\"\",\"\",TEXT(OrigTable!F851,\"00\"))","v":""},{"$f":"IF(OrigTable!F851=\"\",\"\",ScriptText!$E$1&CHAR(10)&ScriptText!$C$1)","v":""},{"$f":"IF(OrigTable!G851=\"\",\"\",ScriptText!$B$1&CHAR(10)&ScriptText!$D$1)","v":""},{"$f":"IF(OrigTable!G851=\"\",\"\",TEXT(OrigTable!G851,\"00\"))","v":""},{"$f":"IF(OrigTable!G851=\"\",\"\",ScriptText!$E$1&CHAR(10)&ScriptText!$C$1)","v":""},0]
["\n\n\n",{"$f":"IF(OrigTable!A852=\"\",\"\",ScriptText!$B$1&CHAR(10)&ScriptText!$D$1)","v":""},{"$f":"IF(OrigTable!A852=\"\",\"\",TEXT(OrigTable!A852,\"00\"))","v":""},{"$f":"IF(OrigTable!A852=\"\",\"\",ScriptText!$E$1&CHAR(10)&ScriptText!$C$1)","v":""},{"$f":"IF(OrigTable!B852=\"\",\"\",ScriptText!$B$1&CHAR(10)&ScriptText!$D$1)","v":""},{"$f":"IF(OrigTable!B852=\"\",\"\",TEXT(OrigTable!B852,\"00\"))","v":""},{"$f":"IF(OrigTable!B852=\"\",\"\",ScriptText!$E$1&CHAR(10)&ScriptText!C847)","v":""},{"$f":"IF(OrigTable!C852=\"\",\"\",ScriptText!$B$1&CHAR(10)&ScriptText!$D$1)","v":""},{"$f":"IF(OrigTable!C852=\"\",\"\",IF(LEN(OrigTable!C852)>255,LEFT(OrigTable!C852,250)&\". . .\",OrigTable!C852))","v":""},{"$f":"IF(OrigTable!C852=\"\",\"\",ScriptText!$E$1&CHAR(10)&ScriptText!$C$1)","v":""},{"$f":"IF(OrigTable!D852=\"\",\"\",ScriptText!$B$1&CHAR(10)&ScriptText!$D$1)","v":""},{"$f":"IF(OrigTable!D852=\"\",\"\",TEXT(OrigTable!D852,\"00\"))","v":""},{"$f":"IF(OrigTable!D852=\"\",\"\",ScriptText!$E$1&CHAR(10)&ScriptText!$C$1)","v":""},{"$f":"IF(OrigTable!E852=\"\",\"\",ScriptText!$B$1&CHAR(10)&ScriptText!$D$1)","v":""},{"$f":"IF(OrigTable!E852=\"\",\"\",TEXT(OrigTable!E852,\"00\"))","v":""},{"$f":"IF(OrigTable!E852=\"\",\"\",ScriptText!$E$1&CHAR(10)&ScriptText!$C$1)","v":""},{"$f":"IF(OrigTable!F852=\"\",\"\",ScriptText!$B$1&CHAR(10)&ScriptText!$D$1)","v":""},{"$f":"IF(OrigTable!F852=\"\",\"\",TEXT(OrigTable!F852,\"00\"))","v":""},{"$f":"IF(OrigTable!F852=\"\",\"\",ScriptText!$E$1&CHAR(10)&ScriptText!$C$1)","v":""},{"$f":"IF(OrigTable!G852=\"\",\"\",ScriptText!$B$1&CHAR(10)&ScriptText!$D$1)","v":""},{"$f":"IF(OrigTable!G852=\"\",\"\",TEXT(OrigTable!G852,\"00\"))","v":""},{"$f":"IF(OrigTable!G852=\"\",\"\",ScriptText!$E$1&CHAR(10)&ScriptText!$C$1)","v":""},0]
["\n\n\n",{"$f":"IF(OrigTable!A853=\"\",\"\",ScriptText!$B$1&CHAR(10)&ScriptText!$D$1)","v":""},{"$f":"IF(OrigTable!A853=\"\",\"\",TEXT(OrigTable!A853,\"00\"))","v":""},{"$f":"IF(OrigTable!A853=\"\",\"\",ScriptText!$E$1&CHAR(10)&ScriptText!$C$1)","v":""},{"$f":"IF(OrigTable!B853=\"\",\"\",ScriptText!$B$1&CHAR(10)&ScriptText!$D$1)","v":""},{"$f":"IF(OrigTable!B853=\"\",\"\",TEXT(OrigTable!B853,\"00\"))","v":""},{"$f":"IF(OrigTable!B853=\"\",\"\",ScriptText!$E$1&CHAR(10)&ScriptText!C848)","v":""},{"$f":"IF(OrigTable!C853=\"\",\"\",ScriptText!$B$1&CHAR(10)&ScriptText!$D$1)","v":""},{"$f":"IF(OrigTable!C853=\"\",\"\",IF(LEN(OrigTable!C853)>255,LEFT(OrigTable!C853,250)&\". . .\",OrigTable!C853))","v":""},{"$f":"IF(OrigTable!C853=\"\",\"\",ScriptText!$E$1&CHAR(10)&ScriptText!$C$1)","v":""},{"$f":"IF(OrigTable!D853=\"\",\"\",ScriptText!$B$1&CHAR(10)&ScriptText!$D$1)","v":""},{"$f":"IF(OrigTable!D853=\"\",\"\",TEXT(OrigTable!D853,\"00\"))","v":""},{"$f":"IF(OrigTable!D853=\"\",\"\",ScriptText!$E$1&CHAR(10)&ScriptText!$C$1)","v":""},{"$f":"IF(OrigTable!E853=\"\",\"\",ScriptText!$B$1&CHAR(10)&ScriptText!$D$1)","v":""},{"$f":"IF(OrigTable!E853=\"\",\"\",TEXT(OrigTable!E853,\"00\"))","v":""},{"$f":"IF(OrigTable!E853=\"\",\"\",ScriptText!$E$1&CHAR(10)&ScriptText!$C$1)","v":""},{"$f":"IF(OrigTable!F853=\"\",\"\",ScriptText!$B$1&CHAR(10)&ScriptText!$D$1)","v":""},{"$f":"IF(OrigTable!F853=\"\",\"\",TEXT(OrigTable!F853,\"00\"))","v":""},{"$f":"IF(OrigTable!F853=\"\",\"\",ScriptText!$E$1&CHAR(10)&ScriptText!$C$1)","v":""},{"$f":"IF(OrigTable!G853=\"\",\"\",ScriptText!$B$1&CHAR(10)&ScriptText!$D$1)","v":""},{"$f":"IF(OrigTable!G853=\"\",\"\",TEXT(OrigTable!G853,\"00\"))","v":""},{"$f":"IF(OrigTable!G853=\"\",\"\",ScriptText!$E$1&CHAR(10)&ScriptText!$C$1)","v":""},0]
["\n\n\n",{"$f":"IF(OrigTable!A854=\"\",\"\",ScriptText!$B$1&CHAR(10)&ScriptText!$D$1)","v":""},{"$f":"IF(OrigTable!A854=\"\",\"\",TEXT(OrigTable!A854,\"00\"))","v":""},{"$f":"IF(OrigTable!A854=\"\",\"\",ScriptText!$E$1&CHAR(10)&ScriptText!$C$1)","v":""},{"$f":"IF(OrigTable!B854=\"\",\"\",ScriptText!$B$1&CHAR(10)&ScriptText!$D$1)","v":""},{"$f":"IF(OrigTable!B854=\"\",\"\",TEXT(OrigTable!B854,\"00\"))","v":""},{"$f":"IF(OrigTable!B854=\"\",\"\",ScriptText!$E$1&CHAR(10)&ScriptText!C849)","v":""},{"$f":"IF(OrigTable!C854=\"\",\"\",ScriptText!$B$1&CHAR(10)&ScriptText!$D$1)","v":""},{"$f":"IF(OrigTable!C854=\"\",\"\",IF(LEN(OrigTable!C854)>255,LEFT(OrigTable!C854,250)&\". . .\",OrigTable!C854))","v":""},{"$f":"IF(OrigTable!C854=\"\",\"\",ScriptText!$E$1&CHAR(10)&ScriptText!$C$1)","v":""},{"$f":"IF(OrigTable!D854=\"\",\"\",ScriptText!$B$1&CHAR(10)&ScriptText!$D$1)","v":""},{"$f":"IF(OrigTable!D854=\"\",\"\",TEXT(OrigTable!D854,\"00\"))","v":""},{"$f":"IF(OrigTable!D854=\"\",\"\",ScriptText!$E$1&CHAR(10)&ScriptText!$C$1)","v":""},{"$f":"IF(OrigTable!E854=\"\",\"\",ScriptText!$B$1&CHAR(10)&ScriptText!$D$1)","v":""},{"$f":"IF(OrigTable!E854=\"\",\"\",TEXT(OrigTable!E854,\"00\"))","v":""},{"$f":"IF(OrigTable!E854=\"\",\"\",ScriptText!$E$1&CHAR(10)&ScriptText!$C$1)","v":""},{"$f":"IF(OrigTable!F854=\"\",\"\",ScriptText!$B$1&CHAR(10)&ScriptText!$D$1)","v":""},{"$f":"IF(OrigTable!F854=\"\",\"\",TEXT(OrigTable!F854,\"00\"))","v":""},{"$f":"IF(OrigTable!F854=\"\",\"\",ScriptText!$E$1&CHAR(10)&ScriptText!$C$1)","v":""},{"$f":"IF(OrigTable!G854=\"\",\"\",ScriptText!$B$1&CHAR(10)&ScriptText!$D$1)","v":""},{"$f":"IF(OrigTable!G854=\"\",\"\",TEXT(OrigTable!G854,\"00\"))","v":""},{"$f":"IF(OrigTable!G854=\"\",\"\",ScriptText!$E$1&CHAR(10)&ScriptText!$C$1)","v":""},0]
["\n\n\n",{"$f":"IF(OrigTable!A855=\"\",\"\",ScriptText!$B$1&CHAR(10)&ScriptText!$D$1)","v":""},{"$f":"IF(OrigTable!A855=\"\",\"\",TEXT(OrigTable!A855,\"00\"))","v":""},{"$f":"IF(OrigTable!A855=\"\",\"\",ScriptText!$E$1&CHAR(10)&ScriptText!$C$1)","v":""},{"$f":"IF(OrigTable!B855=\"\",\"\",ScriptText!$B$1&CHAR(10)&ScriptText!$D$1)","v":""},{"$f":"IF(OrigTable!B855=\"\",\"\",TEXT(OrigTable!B855,\"00\"))","v":""},{"$f":"IF(OrigTable!B855=\"\",\"\",ScriptText!$E$1&CHAR(10)&ScriptText!C850)","v":""},{"$f":"IF(OrigTable!C855=\"\",\"\",ScriptText!$B$1&CHAR(10)&ScriptText!$D$1)","v":""},{"$f":"IF(OrigTable!C855=\"\",\"\",IF(LEN(OrigTable!C855)>255,LEFT(OrigTable!C855,250)&\". . .\",OrigTable!C855))","v":""},{"$f":"IF(OrigTable!C855=\"\",\"\",ScriptText!$E$1&CHAR(10)&ScriptText!$C$1)","v":""},{"$f":"IF(OrigTable!D855=\"\",\"\",ScriptText!$B$1&CHAR(10)&ScriptText!$D$1)","v":""},{"$f":"IF(OrigTable!D855=\"\",\"\",TEXT(OrigTable!D855,\"00\"))","v":""},{"$f":"IF(OrigTable!D855=\"\",\"\",ScriptText!$E$1&CHAR(10)&ScriptText!$C$1)","v":""},{"$f":"IF(OrigTable!E855=\"\",\"\",ScriptText!$B$1&CHAR(10)&ScriptText!$D$1)","v":""},{"$f":"IF(OrigTable!E855=\"\",\"\",TEXT(OrigTable!E855,\"00\"))","v":""},{"$f":"IF(OrigTable!E855=\"\",\"\",ScriptText!$E$1&CHAR(10)&ScriptText!$C$1)","v":""},{"$f":"IF(OrigTable!F855=\"\",\"\",ScriptText!$B$1&CHAR(10)&ScriptText!$D$1)","v":""},{"$f":"IF(OrigTable!F855=\"\",\"\",TEXT(OrigTable!F855,\"00\"))","v":""},{"$f":"IF(OrigTable!F855=\"\",\"\",ScriptText!$E$1&CHAR(10)&ScriptText!$C$1)","v":""},{"$f":"IF(OrigTable!G855=\"\",\"\",ScriptText!$B$1&CHAR(10)&ScriptText!$D$1)","v":""},{"$f":"IF(OrigTable!G855=\"\",\"\",TEXT(OrigTable!G855,\"00\"))","v":""},{"$f":"IF(OrigTable!G855=\"\",\"\",ScriptText!$E$1&CHAR(10)&ScriptText!$C$1)","v":""},0]
["\n\n\n",{"$f":"IF(OrigTable!A856=\"\",\"\",ScriptText!$B$1&CHAR(10)&ScriptText!$D$1)","v":""},{"$f":"IF(OrigTable!A856=\"\",\"\",TEXT(OrigTable!A856,\"00\"))","v":""},{"$f":"IF(OrigTable!A856=\"\",\"\",ScriptText!$E$1&CHAR(10)&ScriptText!$C$1)","v":""},{"$f":"IF(OrigTable!B856=\"\",\"\",ScriptText!$B$1&CHAR(10)&ScriptText!$D$1)","v":""},{"$f":"IF(OrigTable!B856=\"\",\"\",TEXT(OrigTable!B856,\"00\"))","v":""},{"$f":"IF(OrigTable!B856=\"\",\"\",ScriptText!$E$1&CHAR(10)&ScriptText!C851)","v":""},{"$f":"IF(OrigTable!C856=\"\",\"\",ScriptText!$B$1&CHAR(10)&ScriptText!$D$1)","v":""},{"$f":"IF(OrigTable!C856=\"\",\"\",IF(LEN(OrigTable!C856)>255,LEFT(OrigTable!C856,250)&\". . .\",OrigTable!C856))","v":""},{"$f":"IF(OrigTable!C856=\"\",\"\",ScriptText!$E$1&CHAR(10)&ScriptText!$C$1)","v":""},{"$f":"IF(OrigTable!D856=\"\",\"\",ScriptText!$B$1&CHAR(10)&ScriptText!$D$1)","v":""},{"$f":"IF(OrigTable!D856=\"\",\"\",TEXT(OrigTable!D856,\"00\"))","v":""},{"$f":"IF(OrigTable!D856=\"\",\"\",ScriptText!$E$1&CHAR(10)&ScriptText!$C$1)","v":""},{"$f":"IF(OrigTable!E856=\"\",\"\",ScriptText!$B$1&CHAR(10)&ScriptText!$D$1)","v":""},{"$f":"IF(OrigTable!E856=\"\",\"\",TEXT(OrigTable!E856,\"00\"))","v":""},{"$f":"IF(OrigTable!E856=\"\",\"\",ScriptText!$E$1&CHAR(10)&ScriptText!$C$1)","v":""},{"$f":"IF(OrigTable!F856=\"\",\"\",ScriptText!$B$1&CHAR(10)&ScriptText!$D$1)","v":""},{"$f":"IF(OrigTable!F856=\"\",\"\",TEXT(OrigTable!F856,\"00\"))","v":""},{"$f":"IF(OrigTable!F856=\"\",\"\",ScriptText!$E$1&CHAR(10)&ScriptText!$C$1)","v":""},{"$f":"IF(OrigTable!G856=\"\",\"\",ScriptText!$B$1&CHAR(10)&ScriptText!$D$1)","v":""},{"$f":"IF(OrigTable!G856=\"\",\"\",TEXT(OrigTable!G856,\"00\"))","v":""},{"$f":"IF(OrigTable!G856=\"\",\"\",ScriptText!$E$1&CHAR(10)&ScriptText!$C$1)","v":""},0]
["\n\n\n",{"$f":"IF(OrigTable!A857=\"\",\"\",ScriptText!$B$1&CHAR(10)&ScriptText!$D$1)","v":""},{"$f":"IF(OrigTable!A857=\"\",\"\",TEXT(OrigTable!A857,\"00\"))","v":""},{"$f":"IF(OrigTable!A857=\"\",\"\",ScriptText!$E$1&CHAR(10)&ScriptText!$C$1)","v":""},{"$f":"IF(OrigTable!B857=\"\",\"\",ScriptText!$B$1&CHAR(10)&ScriptText!$D$1)","v":""},{"$f":"IF(OrigTable!B857=\"\",\"\",TEXT(OrigTable!B857,\"00\"))","v":""},{"$f":"IF(OrigTable!B857=\"\",\"\",ScriptText!$E$1&CHAR(10)&ScriptText!C852)","v":""},{"$f":"IF(OrigTable!C857=\"\",\"\",ScriptText!$B$1&CHAR(10)&ScriptText!$D$1)","v":""},{"$f":"IF(OrigTable!C857=\"\",\"\",IF(LEN(OrigTable!C857)>255,LEFT(OrigTable!C857,250)&\". . .\",OrigTable!C857))","v":""},{"$f":"IF(OrigTable!C857=\"\",\"\",ScriptText!$E$1&CHAR(10)&ScriptText!$C$1)","v":""},{"$f":"IF(OrigTable!D857=\"\",\"\",ScriptText!$B$1&CHAR(10)&ScriptText!$D$1)","v":""},{"$f":"IF(OrigTable!D857=\"\",\"\",TEXT(OrigTable!D857,\"00\"))","v":""},{"$f":"IF(OrigTable!D857=\"\",\"\",ScriptText!$E$1&CHAR(10)&ScriptText!$C$1)","v":""},{"$f":"IF(OrigTable!E857=\"\",\"\",ScriptText!$B$1&CHAR(10)&ScriptText!$D$1)","v":""},{"$f":"IF(OrigTable!E857=\"\",\"\",TEXT(OrigTable!E857,\"00\"))","v":""},{"$f":"IF(OrigTable!E857=\"\",\"\",ScriptText!$E$1&CHAR(10)&ScriptText!$C$1)","v":""},{"$f":"IF(OrigTable!F857=\"\",\"\",ScriptText!$B$1&CHAR(10)&ScriptText!$D$1)","v":""},{"$f":"IF(OrigTable!F857=\"\",\"\",TEXT(OrigTable!F857,\"00\"))","v":""},{"$f":"IF(OrigTable!F857=\"\",\"\",ScriptText!$E$1&CHAR(10)&ScriptText!$C$1)","v":""},{"$f":"IF(OrigTable!G857=\"\",\"\",ScriptText!$B$1&CHAR(10)&ScriptText!$D$1)","v":""},{"$f":"IF(OrigTable!G857=\"\",\"\",TEXT(OrigTable!G857,\"00\"))","v":""},{"$f":"IF(OrigTable!G857=\"\",\"\",ScriptText!$E$1&CHAR(10)&ScriptText!$C$1)","v":""},0]
["\n\n\n",{"$f":"IF(OrigTable!A858=\"\",\"\",ScriptText!$B$1&CHAR(10)&ScriptText!$D$1)","v":""},{"$f":"IF(OrigTable!A858=\"\",\"\",TEXT(OrigTable!A858,\"00\"))","v":""},{"$f":"IF(OrigTable!A858=\"\",\"\",ScriptText!$E$1&CHAR(10)&ScriptText!$C$1)","v":""},{"$f":"IF(OrigTable!B858=\"\",\"\",ScriptText!$B$1&CHAR(10)&ScriptText!$D$1)","v":""},{"$f":"IF(OrigTable!B858=\"\",\"\",TEXT(OrigTable!B858,\"00\"))","v":""},{"$f":"IF(OrigTable!B858=\"\",\"\",ScriptText!$E$1&CHAR(10)&ScriptText!C853)","v":""},{"$f":"IF(OrigTable!C858=\"\",\"\",ScriptText!$B$1&CHAR(10)&ScriptText!$D$1)","v":""},{"$f":"IF(OrigTable!C858=\"\",\"\",IF(LEN(OrigTable!C858)>255,LEFT(OrigTable!C858,250)&\". . .\",OrigTable!C858))","v":""},{"$f":"IF(OrigTable!C858=\"\",\"\",ScriptText!$E$1&CHAR(10)&ScriptText!$C$1)","v":""},{"$f":"IF(OrigTable!D858=\"\",\"\",ScriptText!$B$1&CHAR(10)&ScriptText!$D$1)","v":""},{"$f":"IF(OrigTable!D858=\"\",\"\",TEXT(OrigTable!D858,\"00\"))","v":""},{"$f":"IF(OrigTable!D858=\"\",\"\",ScriptText!$E$1&CHAR(10)&ScriptText!$C$1)","v":""},{"$f":"IF(OrigTable!E858=\"\",\"\",ScriptText!$B$1&CHAR(10)&ScriptText!$D$1)","v":""},{"$f":"IF(OrigTable!E858=\"\",\"\",TEXT(OrigTable!E858,\"00\"))","v":""},{"$f":"IF(OrigTable!E858=\"\",\"\",ScriptText!$E$1&CHAR(10)&ScriptText!$C$1)","v":""},{"$f":"IF(OrigTable!F858=\"\",\"\",ScriptText!$B$1&CHAR(10)&ScriptText!$D$1)","v":""},{"$f":"IF(OrigTable!F858=\"\",\"\",TEXT(OrigTable!F858,\"00\"))","v":""},{"$f":"IF(OrigTable!F858=\"\",\"\",ScriptText!$E$1&CHAR(10)&ScriptText!$C$1)","v":""},{"$f":"IF(OrigTable!G858=\"\",\"\",ScriptText!$B$1&CHAR(10)&ScriptText!$D$1)","v":""},{"$f":"IF(OrigTable!G858=\"\",\"\",TEXT(OrigTable!G858,\"00\"))","v":""},{"$f":"IF(OrigTable!G858=\"\",\"\",ScriptText!$E$1&CHAR(10)&ScriptText!$C$1)","v":""},0]
["\n\n\n",{"$f":"IF(OrigTable!A859=\"\",\"\",ScriptText!$B$1&CHAR(10)&ScriptText!$D$1)","v":""},{"$f":"IF(OrigTable!A859=\"\",\"\",TEXT(OrigTable!A859,\"00\"))","v":""},{"$f":"IF(OrigTable!A859=\"\",\"\",ScriptText!$E$1&CHAR(10)&ScriptText!$C$1)","v":""},{"$f":"IF(OrigTable!B859=\"\",\"\",ScriptText!$B$1&CHAR(10)&ScriptText!$D$1)","v":""},{"$f":"IF(OrigTable!B859=\"\",\"\",TEXT(OrigTable!B859,\"00\"))","v":""},{"$f":"IF(OrigTable!B859=\"\",\"\",ScriptText!$E$1&CHAR(10)&ScriptText!C854)","v":""},{"$f":"IF(OrigTable!C859=\"\",\"\",ScriptText!$B$1&CHAR(10)&ScriptText!$D$1)","v":""},{"$f":"IF(OrigTable!C859=\"\",\"\",IF(LEN(OrigTable!C859)>255,LEFT(OrigTable!C859,250)&\". . .\",OrigTable!C859))","v":""},{"$f":"IF(OrigTable!C859=\"\",\"\",ScriptText!$E$1&CHAR(10)&ScriptText!$C$1)","v":""},{"$f":"IF(OrigTable!D859=\"\",\"\",ScriptText!$B$1&CHAR(10)&ScriptText!$D$1)","v":""},{"$f":"IF(OrigTable!D859=\"\",\"\",TEXT(OrigTable!D859,\"00\"))","v":""},{"$f":"IF(OrigTable!D859=\"\",\"\",ScriptText!$E$1&CHAR(10)&ScriptText!$C$1)","v":""},{"$f":"IF(OrigTable!E859=\"\",\"\",ScriptText!$B$1&CHAR(10)&ScriptText!$D$1)","v":""},{"$f":"IF(OrigTable!E859=\"\",\"\",TEXT(OrigTable!E859,\"00\"))","v":""},{"$f":"IF(OrigTable!E859=\"\",\"\",ScriptText!$E$1&CHAR(10)&ScriptText!$C$1)","v":""},{"$f":"IF(OrigTable!F859=\"\",\"\",ScriptText!$B$1&CHAR(10)&ScriptText!$D$1)","v":""},{"$f":"IF(OrigTable!F859=\"\",\"\",TEXT(OrigTable!F859,\"00\"))","v":""},{"$f":"IF(OrigTable!F859=\"\",\"\",ScriptText!$E$1&CHAR(10)&ScriptText!$C$1)","v":""},{"$f":"IF(OrigTable!G859=\"\",\"\",ScriptText!$B$1&CHAR(10)&ScriptText!$D$1)","v":""},{"$f":"IF(OrigTable!G859=\"\",\"\",TEXT(OrigTable!G859,\"00\"))","v":""},{"$f":"IF(OrigTable!G859=\"\",\"\",ScriptText!$E$1&CHAR(10)&ScriptText!$C$1)","v":""},0]
["\n\n\n",{"$f":"IF(OrigTable!A860=\"\",\"\",ScriptText!$B$1&CHAR(10)&ScriptText!$D$1)","v":""},{"$f":"IF(OrigTable!A860=\"\",\"\",TEXT(OrigTable!A860,\"00\"))","v":""},{"$f":"IF(OrigTable!A860=\"\",\"\",ScriptText!$E$1&CHAR(10)&ScriptText!$C$1)","v":""},{"$f":"IF(OrigTable!B860=\"\",\"\",ScriptText!$B$1&CHAR(10)&ScriptText!$D$1)","v":""},{"$f":"IF(OrigTable!B860=\"\",\"\",TEXT(OrigTable!B860,\"00\"))","v":""},{"$f":"IF(OrigTable!B860=\"\",\"\",ScriptText!$E$1&CHAR(10)&ScriptText!C855)","v":""},{"$f":"IF(OrigTable!C860=\"\",\"\",ScriptText!$B$1&CHAR(10)&ScriptText!$D$1)","v":""},{"$f":"IF(OrigTable!C860=\"\",\"\",IF(LEN(OrigTable!C860)>255,LEFT(OrigTable!C860,250)&\". . .\",OrigTable!C860))","v":""},{"$f":"IF(OrigTable!C860=\"\",\"\",ScriptText!$E$1&CHAR(10)&ScriptText!$C$1)","v":""},{"$f":"IF(OrigTable!D860=\"\",\"\",ScriptText!$B$1&CHAR(10)&ScriptText!$D$1)","v":""},{"$f":"IF(OrigTable!D860=\"\",\"\",TEXT(OrigTable!D860,\"00\"))","v":""},{"$f":"IF(OrigTable!D860=\"\",\"\",ScriptText!$E$1&CHAR(10)&ScriptText!$C$1)","v":""},{"$f":"IF(OrigTable!E860=\"\",\"\",ScriptText!$B$1&CHAR(10)&ScriptText!$D$1)","v":""},{"$f":"IF(OrigTable!E860=\"\",\"\",TEXT(OrigTable!E860,\"00\"))","v":""},{"$f":"IF(OrigTable!E860=\"\",\"\",ScriptText!$E$1&CHAR(10)&ScriptText!$C$1)","v":""},{"$f":"IF(OrigTable!F860=\"\",\"\",ScriptText!$B$1&CHAR(10)&ScriptText!$D$1)","v":""},{"$f":"IF(OrigTable!F860=\"\",\"\",TEXT(OrigTable!F860,\"00\"))","v":""},{"$f":"IF(OrigTable!F860=\"\",\"\",ScriptText!$E$1&CHAR(10)&ScriptText!$C$1)","v":""},{"$f":"IF(OrigTable!G860=\"\",\"\",ScriptText!$B$1&CHAR(10)&ScriptText!$D$1)","v":""},{"$f":"IF(OrigTable!G860=\"\",\"\",TEXT(OrigTable!G860,\"00\"))","v":""},{"$f":"IF(OrigTable!G860=\"\",\"\",ScriptText!$E$1&CHAR(10)&ScriptText!$C$1)","v":""},0]
["\n\n\n",{"$f":"IF(OrigTable!A861=\"\",\"\",ScriptText!$B$1&CHAR(10)&ScriptText!$D$1)","v":""},{"$f":"IF(OrigTable!A861=\"\",\"\",TEXT(OrigTable!A861,\"00\"))","v":""},{"$f":"IF(OrigTable!A861=\"\",\"\",ScriptText!$E$1&CHAR(10)&ScriptText!$C$1)","v":""},{"$f":"IF(OrigTable!B861=\"\",\"\",ScriptText!$B$1&CHAR(10)&ScriptText!$D$1)","v":""},{"$f":"IF(OrigTable!B861=\"\",\"\",TEXT(OrigTable!B861,\"00\"))","v":""},{"$f":"IF(OrigTable!B861=\"\",\"\",ScriptText!$E$1&CHAR(10)&ScriptText!C856)","v":""},{"$f":"IF(OrigTable!C861=\"\",\"\",ScriptText!$B$1&CHAR(10)&ScriptText!$D$1)","v":""},{"$f":"IF(OrigTable!C861=\"\",\"\",IF(LEN(OrigTable!C861)>255,LEFT(OrigTable!C861,250)&\". . .\",OrigTable!C861))","v":""},{"$f":"IF(OrigTable!C861=\"\",\"\",ScriptText!$E$1&CHAR(10)&ScriptText!$C$1)","v":""},{"$f":"IF(OrigTable!D861=\"\",\"\",ScriptText!$B$1&CHAR(10)&ScriptText!$D$1)","v":""},{"$f":"IF(OrigTable!D861=\"\",\"\",TEXT(OrigTable!D861,\"00\"))","v":""},{"$f":"IF(OrigTable!D861=\"\",\"\",ScriptText!$E$1&CHAR(10)&ScriptText!$C$1)","v":""},{"$f":"IF(OrigTable!E861=\"\",\"\",ScriptText!$B$1&CHAR(10)&ScriptText!$D$1)","v":""},{"$f":"IF(OrigTable!E861=\"\",\"\",TEXT(OrigTable!E861,\"00\"))","v":""},{"$f":"IF(OrigTable!E861=\"\",\"\",ScriptText!$E$1&CHAR(10)&ScriptText!$C$1)","v":""},{"$f":"IF(OrigTable!F861=\"\",\"\",ScriptText!$B$1&CHAR(10)&ScriptText!$D$1)","v":""},{"$f":"IF(OrigTable!F861=\"\",\"\",TEXT(OrigTable!F861,\"00\"))","v":""},{"$f":"IF(OrigTable!F861=\"\",\"\",ScriptText!$E$1&CHAR(10)&ScriptText!$C$1)","v":""},{"$f":"IF(OrigTable!G861=\"\",\"\",ScriptText!$B$1&CHAR(10)&ScriptText!$D$1)","v":""},{"$f":"IF(OrigTable!G861=\"\",\"\",TEXT(OrigTable!G861,\"00\"))","v":""},{"$f":"IF(OrigTable!G861=\"\",\"\",ScriptText!$E$1&CHAR(10)&ScriptText!$C$1)","v":""},0]
["\n\n\n",{"$f":"IF(OrigTable!A862=\"\",\"\",ScriptText!$B$1&CHAR(10)&ScriptText!$D$1)","v":""},{"$f":"IF(OrigTable!A862=\"\",\"\",TEXT(OrigTable!A862,\"00\"))","v":""},{"$f":"IF(OrigTable!A862=\"\",\"\",ScriptText!$E$1&CHAR(10)&ScriptText!$C$1)","v":""},{"$f":"IF(OrigTable!B862=\"\",\"\",ScriptText!$B$1&CHAR(10)&ScriptText!$D$1)","v":""},{"$f":"IF(OrigTable!B862=\"\",\"\",TEXT(OrigTable!B862,\"00\"))","v":""},{"$f":"IF(OrigTable!B862=\"\",\"\",ScriptText!$E$1&CHAR(10)&ScriptText!C857)","v":""},{"$f":"IF(OrigTable!C862=\"\",\"\",ScriptText!$B$1&CHAR(10)&ScriptText!$D$1)","v":""},{"$f":"IF(OrigTable!C862=\"\",\"\",IF(LEN(OrigTable!C862)>255,LEFT(OrigTable!C862,250)&\". . .\",OrigTable!C862))","v":""},{"$f":"IF(OrigTable!C862=\"\",\"\",ScriptText!$E$1&CHAR(10)&ScriptText!$C$1)","v":""},{"$f":"IF(OrigTable!D862=\"\",\"\",ScriptText!$B$1&CHAR(10)&ScriptText!$D$1)","v":""},{"$f":"IF(OrigTable!D862=\"\",\"\",TEXT(OrigTable!D862,\"00\"))","v":""},{"$f":"IF(OrigTable!D862=\"\",\"\",ScriptText!$E$1&CHAR(10)&ScriptText!$C$1)","v":""},{"$f":"IF(OrigTable!E862=\"\",\"\",ScriptText!$B$1&CHAR(10)&ScriptText!$D$1)","v":""},{"$f":"IF(OrigTable!E862=\"\",\"\",TEXT(OrigTable!E862,\"00\"))","v":""},{"$f":"IF(OrigTable!E862=\"\",\"\",ScriptText!$E$1&CHAR(10)&ScriptText!$C$1)","v":""},{"$f":"IF(OrigTable!F862=\"\",\"\",ScriptText!$B$1&CHAR(10)&ScriptText!$D$1)","v":""},{"$f":"IF(OrigTable!F862=\"\",\"\",TEXT(OrigTable!F862,\"00\"))","v":""},{"$f":"IF(OrigTable!F862=\"\",\"\",ScriptText!$E$1&CHAR(10)&ScriptText!$C$1)","v":""},{"$f":"IF(OrigTable!G862=\"\",\"\",ScriptText!$B$1&CHAR(10)&ScriptText!$D$1)","v":""},{"$f":"IF(OrigTable!G862=\"\",\"\",TEXT(OrigTable!G862,\"00\"))","v":""},{"$f":"IF(OrigTable!G862=\"\",\"\",ScriptText!$E$1&CHAR(10)&ScriptText!$C$1)","v":""},0]
["\n\n\n",{"$f":"IF(OrigTable!A863=\"\",\"\",ScriptText!$B$1&CHAR(10)&ScriptText!$D$1)","v":""},{"$f":"IF(OrigTable!A863=\"\",\"\",TEXT(OrigTable!A863,\"00\"))","v":""},{"$f":"IF(OrigTable!A863=\"\",\"\",ScriptText!$E$1&CHAR(10)&ScriptText!$C$1)","v":""},{"$f":"IF(OrigTable!B863=\"\",\"\",ScriptText!$B$1&CHAR(10)&ScriptText!$D$1)","v":""},{"$f":"IF(OrigTable!B863=\"\",\"\",TEXT(OrigTable!B863,\"00\"))","v":""},{"$f":"IF(OrigTable!B863=\"\",\"\",ScriptText!$E$1&CHAR(10)&ScriptText!C858)","v":""},{"$f":"IF(OrigTable!C863=\"\",\"\",ScriptText!$B$1&CHAR(10)&ScriptText!$D$1)","v":""},{"$f":"IF(OrigTable!C863=\"\",\"\",IF(LEN(OrigTable!C863)>255,LEFT(OrigTable!C863,250)&\". . .\",OrigTable!C863))","v":""},{"$f":"IF(OrigTable!C863=\"\",\"\",ScriptText!$E$1&CHAR(10)&ScriptText!$C$1)","v":""},{"$f":"IF(OrigTable!D863=\"\",\"\",ScriptText!$B$1&CHAR(10)&ScriptText!$D$1)","v":""},{"$f":"IF(OrigTable!D863=\"\",\"\",TEXT(OrigTable!D863,\"00\"))","v":""},{"$f":"IF(OrigTable!D863=\"\",\"\",ScriptText!$E$1&CHAR(10)&ScriptText!$C$1)","v":""},{"$f":"IF(OrigTable!E863=\"\",\"\",ScriptText!$B$1&CHAR(10)&ScriptText!$D$1)","v":""},{"$f":"IF(OrigTable!E863=\"\",\"\",TEXT(OrigTable!E863,\"00\"))","v":""},{"$f":"IF(OrigTable!E863=\"\",\"\",ScriptText!$E$1&CHAR(10)&ScriptText!$C$1)","v":""},{"$f":"IF(OrigTable!F863=\"\",\"\",ScriptText!$B$1&CHAR(10)&ScriptText!$D$1)","v":""},{"$f":"IF(OrigTable!F863=\"\",\"\",TEXT(OrigTable!F863,\"00\"))","v":""},{"$f":"IF(OrigTable!F863=\"\",\"\",ScriptText!$E$1&CHAR(10)&ScriptText!$C$1)","v":""},{"$f":"IF(OrigTable!G863=\"\",\"\",ScriptText!$B$1&CHAR(10)&ScriptText!$D$1)","v":""},{"$f":"IF(OrigTable!G863=\"\",\"\",TEXT(OrigTable!G863,\"00\"))","v":""},{"$f":"IF(OrigTable!G863=\"\",\"\",ScriptText!$E$1&CHAR(10)&ScriptText!$C$1)","v":""},0]
["\n\n\n",{"$f":"IF(OrigTable!A864=\"\",\"\",ScriptText!$B$1&CHAR(10)&ScriptText!$D$1)","v":""},{"$f":"IF(OrigTable!A864=\"\",\"\",TEXT(OrigTable!A864,\"00\"))","v":""},{"$f":"IF(OrigTable!A864=\"\",\"\",ScriptText!$E$1&CHAR(10)&ScriptText!$C$1)","v":""},{"$f":"IF(OrigTable!B864=\"\",\"\",ScriptText!$B$1&CHAR(10)&ScriptText!$D$1)","v":""},{"$f":"IF(OrigTable!B864=\"\",\"\",TEXT(OrigTable!B864,\"00\"))","v":""},{"$f":"IF(OrigTable!B864=\"\",\"\",ScriptText!$E$1&CHAR(10)&ScriptText!C859)","v":""},{"$f":"IF(OrigTable!C864=\"\",\"\",ScriptText!$B$1&CHAR(10)&ScriptText!$D$1)","v":""},{"$f":"IF(OrigTable!C864=\"\",\"\",IF(LEN(OrigTable!C864)>255,LEFT(OrigTable!C864,250)&\". . .\",OrigTable!C864))","v":""},{"$f":"IF(OrigTable!C864=\"\",\"\",ScriptText!$E$1&CHAR(10)&ScriptText!$C$1)","v":""},{"$f":"IF(OrigTable!D864=\"\",\"\",ScriptText!$B$1&CHAR(10)&ScriptText!$D$1)","v":""},{"$f":"IF(OrigTable!D864=\"\",\"\",TEXT(OrigTable!D864,\"00\"))","v":""},{"$f":"IF(OrigTable!D864=\"\",\"\",ScriptText!$E$1&CHAR(10)&ScriptText!$C$1)","v":""},{"$f":"IF(OrigTable!E864=\"\",\"\",ScriptText!$B$1&CHAR(10)&ScriptText!$D$1)","v":""},{"$f":"IF(OrigTable!E864=\"\",\"\",TEXT(OrigTable!E864,\"00\"))","v":""},{"$f":"IF(OrigTable!E864=\"\",\"\",ScriptText!$E$1&CHAR(10)&ScriptText!$C$1)","v":""},{"$f":"IF(OrigTable!F864=\"\",\"\",ScriptText!$B$1&CHAR(10)&ScriptText!$D$1)","v":""},{"$f":"IF(OrigTable!F864=\"\",\"\",TEXT(OrigTable!F864,\"00\"))","v":""},{"$f":"IF(OrigTable!F864=\"\",\"\",ScriptText!$E$1&CHAR(10)&ScriptText!$C$1)","v":""},{"$f":"IF(OrigTable!G864=\"\",\"\",ScriptText!$B$1&CHAR(10)&ScriptText!$D$1)","v":""},{"$f":"IF(OrigTable!G864=\"\",\"\",TEXT(OrigTable!G864,\"00\"))","v":""},{"$f":"IF(OrigTable!G864=\"\",\"\",ScriptText!$E$1&CHAR(10)&ScriptText!$C$1)","v":""},0]
["\n\n\n",{"$f":"IF(OrigTable!A865=\"\",\"\",ScriptText!$B$1&CHAR(10)&ScriptText!$D$1)","v":""},{"$f":"IF(OrigTable!A865=\"\",\"\",TEXT(OrigTable!A865,\"00\"))","v":""},{"$f":"IF(OrigTable!A865=\"\",\"\",ScriptText!$E$1&CHAR(10)&ScriptText!$C$1)","v":""},{"$f":"IF(OrigTable!B865=\"\",\"\",ScriptText!$B$1&CHAR(10)&ScriptText!$D$1)","v":""},{"$f":"IF(OrigTable!B865=\"\",\"\",TEXT(OrigTable!B865,\"00\"))","v":""},{"$f":"IF(OrigTable!B865=\"\",\"\",ScriptText!$E$1&CHAR(10)&ScriptText!C860)","v":""},{"$f":"IF(OrigTable!C865=\"\",\"\",ScriptText!$B$1&CHAR(10)&ScriptText!$D$1)","v":""},{"$f":"IF(OrigTable!C865=\"\",\"\",IF(LEN(OrigTable!C865)>255,LEFT(OrigTable!C865,250)&\". . .\",OrigTable!C865))","v":""},{"$f":"IF(OrigTable!C865=\"\",\"\",ScriptText!$E$1&CHAR(10)&ScriptText!$C$1)","v":""},{"$f":"IF(OrigTable!D865=\"\",\"\",ScriptText!$B$1&CHAR(10)&ScriptText!$D$1)","v":""},{"$f":"IF(OrigTable!D865=\"\",\"\",TEXT(OrigTable!D865,\"00\"))","v":""},{"$f":"IF(OrigTable!D865=\"\",\"\",ScriptText!$E$1&CHAR(10)&ScriptText!$C$1)","v":""},{"$f":"IF(OrigTable!E865=\"\",\"\",ScriptText!$B$1&CHAR(10)&ScriptText!$D$1)","v":""},{"$f":"IF(OrigTable!E865=\"\",\"\",TEXT(OrigTable!E865,\"00\"))","v":""},{"$f":"IF(OrigTable!E865=\"\",\"\",ScriptText!$E$1&CHAR(10)&ScriptText!$C$1)","v":""},{"$f":"IF(OrigTable!F865=\"\",\"\",ScriptText!$B$1&CHAR(10)&ScriptText!$D$1)","v":""},{"$f":"IF(OrigTable!F865=\"\",\"\",TEXT(OrigTable!F865,\"00\"))","v":""},{"$f":"IF(OrigTable!F865=\"\",\"\",ScriptText!$E$1&CHAR(10)&ScriptText!$C$1)","v":""},{"$f":"IF(OrigTable!G865=\"\",\"\",ScriptText!$B$1&CHAR(10)&ScriptText!$D$1)","v":""},{"$f":"IF(OrigTable!G865=\"\",\"\",TEXT(OrigTable!G865,\"00\"))","v":""},{"$f":"IF(OrigTable!G865=\"\",\"\",ScriptText!$E$1&CHAR(10)&ScriptText!$C$1)","v":""},0]
["\n\n\n",{"$f":"IF(OrigTable!A866=\"\",\"\",ScriptText!$B$1&CHAR(10)&ScriptText!$D$1)","v":""},{"$f":"IF(OrigTable!A866=\"\",\"\",TEXT(OrigTable!A866,\"00\"))","v":""},{"$f":"IF(OrigTable!A866=\"\",\"\",ScriptText!$E$1&CHAR(10)&ScriptText!$C$1)","v":""},{"$f":"IF(OrigTable!B866=\"\",\"\",ScriptText!$B$1&CHAR(10)&ScriptText!$D$1)","v":""},{"$f":"IF(OrigTable!B866=\"\",\"\",TEXT(OrigTable!B866,\"00\"))","v":""},{"$f":"IF(OrigTable!B866=\"\",\"\",ScriptText!$E$1&CHAR(10)&ScriptText!C861)","v":""},{"$f":"IF(OrigTable!C866=\"\",\"\",ScriptText!$B$1&CHAR(10)&ScriptText!$D$1)","v":""},{"$f":"IF(OrigTable!C866=\"\",\"\",IF(LEN(OrigTable!C866)>255,LEFT(OrigTable!C866,250)&\". . .\",OrigTable!C866))","v":""},{"$f":"IF(OrigTable!C866=\"\",\"\",ScriptText!$E$1&CHAR(10)&ScriptText!$C$1)","v":""},{"$f":"IF(OrigTable!D866=\"\",\"\",ScriptText!$B$1&CHAR(10)&ScriptText!$D$1)","v":""},{"$f":"IF(OrigTable!D866=\"\",\"\",TEXT(OrigTable!D866,\"00\"))","v":""},{"$f":"IF(OrigTable!D866=\"\",\"\",ScriptText!$E$1&CHAR(10)&ScriptText!$C$1)","v":""},{"$f":"IF(OrigTable!E866=\"\",\"\",ScriptText!$B$1&CHAR(10)&ScriptText!$D$1)","v":""},{"$f":"IF(OrigTable!E866=\"\",\"\",TEXT(OrigTable!E866,\"00\"))","v":""},{"$f":"IF(OrigTable!E866=\"\",\"\",ScriptText!$E$1&CHAR(10)&ScriptText!$C$1)","v":""},{"$f":"IF(OrigTable!F866=\"\",\"\",ScriptText!$B$1&CHAR(10)&ScriptText!$D$1)","v":""},{"$f":"IF(OrigTable!F866=\"\",\"\",TEXT(OrigTable!F866,\"00\"))","v":""},{"$f":"IF(OrigTable!F866=\"\",\"\",ScriptText!$E$1&CHAR(10)&ScriptText!$C$1)","v":""},{"$f":"IF(OrigTable!G866=\"\",\"\",ScriptText!$B$1&CHAR(10)&ScriptText!$D$1)","v":""},{"$f":"IF(OrigTable!G866=\"\",\"\",TEXT(OrigTable!G866,\"00\"))","v":""},{"$f":"IF(OrigTable!G866=\"\",\"\",ScriptText!$E$1&CHAR(10)&ScriptText!$C$1)","v":""},0]
["\n\n\n",{"$f":"IF(OrigTable!A867=\"\",\"\",ScriptText!$B$1&CHAR(10)&ScriptText!$D$1)","v":""},{"$f":"IF(OrigTable!A867=\"\",\"\",TEXT(OrigTable!A867,\"00\"))","v":""},{"$f":"IF(OrigTable!A867=\"\",\"\",ScriptText!$E$1&CHAR(10)&ScriptText!$C$1)","v":""},{"$f":"IF(OrigTable!B867=\"\",\"\",ScriptText!$B$1&CHAR(10)&ScriptText!$D$1)","v":""},{"$f":"IF(OrigTable!B867=\"\",\"\",TEXT(OrigTable!B867,\"00\"))","v":""},{"$f":"IF(OrigTable!B867=\"\",\"\",ScriptText!$E$1&CHAR(10)&ScriptText!C862)","v":""},{"$f":"IF(OrigTable!C867=\"\",\"\",ScriptText!$B$1&CHAR(10)&ScriptText!$D$1)","v":""},{"$f":"IF(OrigTable!C867=\"\",\"\",IF(LEN(OrigTable!C867)>255,LEFT(OrigTable!C867,250)&\". . .\",OrigTable!C867))","v":""},{"$f":"IF(OrigTable!C867=\"\",\"\",ScriptText!$E$1&CHAR(10)&ScriptText!$C$1)","v":""},{"$f":"IF(OrigTable!D867=\"\",\"\",ScriptText!$B$1&CHAR(10)&ScriptText!$D$1)","v":""},{"$f":"IF(OrigTable!D867=\"\",\"\",TEXT(OrigTable!D867,\"00\"))","v":""},{"$f":"IF(OrigTable!D867=\"\",\"\",ScriptText!$E$1&CHAR(10)&ScriptText!$C$1)","v":""},{"$f":"IF(OrigTable!E867=\"\",\"\",ScriptText!$B$1&CHAR(10)&ScriptText!$D$1)","v":""},{"$f":"IF(OrigTable!E867=\"\",\"\",TEXT(OrigTable!E867,\"00\"))","v":""},{"$f":"IF(OrigTable!E867=\"\",\"\",ScriptText!$E$1&CHAR(10)&ScriptText!$C$1)","v":""},{"$f":"IF(OrigTable!F867=\"\",\"\",ScriptText!$B$1&CHAR(10)&ScriptText!$D$1)","v":""},{"$f":"IF(OrigTable!F867=\"\",\"\",TEXT(OrigTable!F867,\"00\"))","v":""},{"$f":"IF(OrigTable!F867=\"\",\"\",ScriptText!$E$1&CHAR(10)&ScriptText!$C$1)","v":""},{"$f":"IF(OrigTable!G867=\"\",\"\",ScriptText!$B$1&CHAR(10)&ScriptText!$D$1)","v":""},{"$f":"IF(OrigTable!G867=\"\",\"\",TEXT(OrigTable!G867,\"00\"))","v":""},{"$f":"IF(OrigTable!G867=\"\",\"\",ScriptText!$E$1&CHAR(10)&ScriptText!$C$1)","v":""},0]
["\n\n\n",{"$f":"IF(OrigTable!A868=\"\",\"\",ScriptText!$B$1&CHAR(10)&ScriptText!$D$1)","v":""},{"$f":"IF(OrigTable!A868=\"\",\"\",TEXT(OrigTable!A868,\"00\"))","v":""},{"$f":"IF(OrigTable!A868=\"\",\"\",ScriptText!$E$1&CHAR(10)&ScriptText!$C$1)","v":""},{"$f":"IF(OrigTable!B868=\"\",\"\",ScriptText!$B$1&CHAR(10)&ScriptText!$D$1)","v":""},{"$f":"IF(OrigTable!B868=\"\",\"\",TEXT(OrigTable!B868,\"00\"))","v":""},{"$f":"IF(OrigTable!B868=\"\",\"\",ScriptText!$E$1&CHAR(10)&ScriptText!C863)","v":""},{"$f":"IF(OrigTable!C868=\"\",\"\",ScriptText!$B$1&CHAR(10)&ScriptText!$D$1)","v":""},{"$f":"IF(OrigTable!C868=\"\",\"\",IF(LEN(OrigTable!C868)>255,LEFT(OrigTable!C868,250)&\". . .\",OrigTable!C868))","v":""},{"$f":"IF(OrigTable!C868=\"\",\"\",ScriptText!$E$1&CHAR(10)&ScriptText!$C$1)","v":""},{"$f":"IF(OrigTable!D868=\"\",\"\",ScriptText!$B$1&CHAR(10)&ScriptText!$D$1)","v":""},{"$f":"IF(OrigTable!D868=\"\",\"\",TEXT(OrigTable!D868,\"00\"))","v":""},{"$f":"IF(OrigTable!D868=\"\",\"\",ScriptText!$E$1&CHAR(10)&ScriptText!$C$1)","v":""},{"$f":"IF(OrigTable!E868=\"\",\"\",ScriptText!$B$1&CHAR(10)&ScriptText!$D$1)","v":""},{"$f":"IF(OrigTable!E868=\"\",\"\",TEXT(OrigTable!E868,\"00\"))","v":""},{"$f":"IF(OrigTable!E868=\"\",\"\",ScriptText!$E$1&CHAR(10)&ScriptText!$C$1)","v":""},{"$f":"IF(OrigTable!F868=\"\",\"\",ScriptText!$B$1&CHAR(10)&ScriptText!$D$1)","v":""},{"$f":"IF(OrigTable!F868=\"\",\"\",TEXT(OrigTable!F868,\"00\"))","v":""},{"$f":"IF(OrigTable!F868=\"\",\"\",ScriptText!$E$1&CHAR(10)&ScriptText!$C$1)","v":""},{"$f":"IF(OrigTable!G868=\"\",\"\",ScriptText!$B$1&CHAR(10)&ScriptText!$D$1)","v":""},{"$f":"IF(OrigTable!G868=\"\",\"\",TEXT(OrigTable!G868,\"00\"))","v":""},{"$f":"IF(OrigTable!G868=\"\",\"\",ScriptText!$E$1&CHAR(10)&ScriptText!$C$1)","v":""},0]
["\n\n\n",{"$f":"IF(OrigTable!A869=\"\",\"\",ScriptText!$B$1&CHAR(10)&ScriptText!$D$1)","v":""},{"$f":"IF(OrigTable!A869=\"\",\"\",TEXT(OrigTable!A869,\"00\"))","v":""},{"$f":"IF(OrigTable!A869=\"\",\"\",ScriptText!$E$1&CHAR(10)&ScriptText!$C$1)","v":""},{"$f":"IF(OrigTable!B869=\"\",\"\",ScriptText!$B$1&CHAR(10)&ScriptText!$D$1)","v":""},{"$f":"IF(OrigTable!B869=\"\",\"\",TEXT(OrigTable!B869,\"00\"))","v":""},{"$f":"IF(OrigTable!B869=\"\",\"\",ScriptText!$E$1&CHAR(10)&ScriptText!C864)","v":""},{"$f":"IF(OrigTable!C869=\"\",\"\",ScriptText!$B$1&CHAR(10)&ScriptText!$D$1)","v":""},{"$f":"IF(OrigTable!C869=\"\",\"\",IF(LEN(OrigTable!C869)>255,LEFT(OrigTable!C869,250)&\". . .\",OrigTable!C869))","v":""},{"$f":"IF(OrigTable!C869=\"\",\"\",ScriptText!$E$1&CHAR(10)&ScriptText!$C$1)","v":""},{"$f":"IF(OrigTable!D869=\"\",\"\",ScriptText!$B$1&CHAR(10)&ScriptText!$D$1)","v":""},{"$f":"IF(OrigTable!D869=\"\",\"\",TEXT(OrigTable!D869,\"00\"))","v":""},{"$f":"IF(OrigTable!D869=\"\",\"\",ScriptText!$E$1&CHAR(10)&ScriptText!$C$1)","v":""},{"$f":"IF(OrigTable!E869=\"\",\"\",ScriptText!$B$1&CHAR(10)&ScriptText!$D$1)","v":""},{"$f":"IF(OrigTable!E869=\"\",\"\",TEXT(OrigTable!E869,\"00\"))","v":""},{"$f":"IF(OrigTable!E869=\"\",\"\",ScriptText!$E$1&CHAR(10)&ScriptText!$C$1)","v":""},{"$f":"IF(OrigTable!F869=\"\",\"\",ScriptText!$B$1&CHAR(10)&ScriptText!$D$1)","v":""},{"$f":"IF(OrigTable!F869=\"\",\"\",TEXT(OrigTable!F869,\"00\"))","v":""},{"$f":"IF(OrigTable!F869=\"\",\"\",ScriptText!$E$1&CHAR(10)&ScriptText!$C$1)","v":""},{"$f":"IF(OrigTable!G869=\"\",\"\",ScriptText!$B$1&CHAR(10)&ScriptText!$D$1)","v":""},{"$f":"IF(OrigTable!G869=\"\",\"\",TEXT(OrigTable!G869,\"00\"))","v":""},{"$f":"IF(OrigTable!G869=\"\",\"\",ScriptText!$E$1&CHAR(10)&ScriptText!$C$1)","v":""},0]
["\n\n\n",{"$f":"IF(OrigTable!A870=\"\",\"\",ScriptText!$B$1&CHAR(10)&ScriptText!$D$1)","v":""},{"$f":"IF(OrigTable!A870=\"\",\"\",TEXT(OrigTable!A870,\"00\"))","v":""},{"$f":"IF(OrigTable!A870=\"\",\"\",ScriptText!$E$1&CHAR(10)&ScriptText!$C$1)","v":""},{"$f":"IF(OrigTable!B870=\"\",\"\",ScriptText!$B$1&CHAR(10)&ScriptText!$D$1)","v":""},{"$f":"IF(OrigTable!B870=\"\",\"\",TEXT(OrigTable!B870,\"00\"))","v":""},{"$f":"IF(OrigTable!B870=\"\",\"\",ScriptText!$E$1&CHAR(10)&ScriptText!C865)","v":""},{"$f":"IF(OrigTable!C870=\"\",\"\",ScriptText!$B$1&CHAR(10)&ScriptText!$D$1)","v":""},{"$f":"IF(OrigTable!C870=\"\",\"\",IF(LEN(OrigTable!C870)>255,LEFT(OrigTable!C870,250)&\". . .\",OrigTable!C870))","v":""},{"$f":"IF(OrigTable!C870=\"\",\"\",ScriptText!$E$1&CHAR(10)&ScriptText!$C$1)","v":""},{"$f":"IF(OrigTable!D870=\"\",\"\",ScriptText!$B$1&CHAR(10)&ScriptText!$D$1)","v":""},{"$f":"IF(OrigTable!D870=\"\",\"\",TEXT(OrigTable!D870,\"00\"))","v":""},{"$f":"IF(OrigTable!D870=\"\",\"\",ScriptText!$E$1&CHAR(10)&ScriptText!$C$1)","v":""},{"$f":"IF(OrigTable!E870=\"\",\"\",ScriptText!$B$1&CHAR(10)&ScriptText!$D$1)","v":""},{"$f":"IF(OrigTable!E870=\"\",\"\",TEXT(OrigTable!E870,\"00\"))","v":""},{"$f":"IF(OrigTable!E870=\"\",\"\",ScriptText!$E$1&CHAR(10)&ScriptText!$C$1)","v":""},{"$f":"IF(OrigTable!F870=\"\",\"\",ScriptText!$B$1&CHAR(10)&ScriptText!$D$1)","v":""},{"$f":"IF(OrigTable!F870=\"\",\"\",TEXT(OrigTable!F870,\"00\"))","v":""},{"$f":"IF(OrigTable!F870=\"\",\"\",ScriptText!$E$1&CHAR(10)&ScriptText!$C$1)","v":""},{"$f":"IF(OrigTable!G870=\"\",\"\",ScriptText!$B$1&CHAR(10)&ScriptText!$D$1)","v":""},{"$f":"IF(OrigTable!G870=\"\",\"\",TEXT(OrigTable!G870,\"00\"))","v":""},{"$f":"IF(OrigTable!G870=\"\",\"\",ScriptText!$E$1&CHAR(10)&ScriptText!$C$1)","v":""},0]
["\n\n\n",{"$f":"IF(OrigTable!A871=\"\",\"\",ScriptText!$B$1&CHAR(10)&ScriptText!$D$1)","v":""},{"$f":"IF(OrigTable!A871=\"\",\"\",TEXT(OrigTable!A871,\"00\"))","v":""},{"$f":"IF(OrigTable!A871=\"\",\"\",ScriptText!$E$1&CHAR(10)&ScriptText!$C$1)","v":""},{"$f":"IF(OrigTable!B871=\"\",\"\",ScriptText!$B$1&CHAR(10)&ScriptText!$D$1)","v":""},{"$f":"IF(OrigTable!B871=\"\",\"\",TEXT(OrigTable!B871,\"00\"))","v":""},{"$f":"IF(OrigTable!B871=\"\",\"\",ScriptText!$E$1&CHAR(10)&ScriptText!C866)","v":""},{"$f":"IF(OrigTable!C871=\"\",\"\",ScriptText!$B$1&CHAR(10)&ScriptText!$D$1)","v":""},{"$f":"IF(OrigTable!C871=\"\",\"\",IF(LEN(OrigTable!C871)>255,LEFT(OrigTable!C871,250)&\". . .\",OrigTable!C871))","v":""},{"$f":"IF(OrigTable!C871=\"\",\"\",ScriptText!$E$1&CHAR(10)&ScriptText!$C$1)","v":""},{"$f":"IF(OrigTable!D871=\"\",\"\",ScriptText!$B$1&CHAR(10)&ScriptText!$D$1)","v":""},{"$f":"IF(OrigTable!D871=\"\",\"\",TEXT(OrigTable!D871,\"00\"))","v":""},{"$f":"IF(OrigTable!D871=\"\",\"\",ScriptText!$E$1&CHAR(10)&ScriptText!$C$1)","v":""},{"$f":"IF(OrigTable!E871=\"\",\"\",ScriptText!$B$1&CHAR(10)&ScriptText!$D$1)","v":""},{"$f":"IF(OrigTable!E871=\"\",\"\",TEXT(OrigTable!E871,\"00\"))","v":""},{"$f":"IF(OrigTable!E871=\"\",\"\",ScriptText!$E$1&CHAR(10)&ScriptText!$C$1)","v":""},{"$f":"IF(OrigTable!F871=\"\",\"\",ScriptText!$B$1&CHAR(10)&ScriptText!$D$1)","v":""},{"$f":"IF(OrigTable!F871=\"\",\"\",TEXT(OrigTable!F871,\"00\"))","v":""},{"$f":"IF(OrigTable!F871=\"\",\"\",ScriptText!$E$1&CHAR(10)&ScriptText!$C$1)","v":""},{"$f":"IF(OrigTable!G871=\"\",\"\",ScriptText!$B$1&CHAR(10)&ScriptText!$D$1)","v":""},{"$f":"IF(OrigTable!G871=\"\",\"\",TEXT(OrigTable!G871,\"00\"))","v":""},{"$f":"IF(OrigTable!G871=\"\",\"\",ScriptText!$E$1&CHAR(10)&ScriptText!$C$1)","v":""},0]
["\n\n\n",{"$f":"IF(OrigTable!A872=\"\",\"\",ScriptText!$B$1&CHAR(10)&ScriptText!$D$1)","v":""},{"$f":"IF(OrigTable!A872=\"\",\"\",TEXT(OrigTable!A872,\"00\"))","v":""},{"$f":"IF(OrigTable!A872=\"\",\"\",ScriptText!$E$1&CHAR(10)&ScriptText!$C$1)","v":""},{"$f":"IF(OrigTable!B872=\"\",\"\",ScriptText!$B$1&CHAR(10)&ScriptText!$D$1)","v":""},{"$f":"IF(OrigTable!B872=\"\",\"\",TEXT(OrigTable!B872,\"00\"))","v":""},{"$f":"IF(OrigTable!B872=\"\",\"\",ScriptText!$E$1&CHAR(10)&ScriptText!C867)","v":""},{"$f":"IF(OrigTable!C872=\"\",\"\",ScriptText!$B$1&CHAR(10)&ScriptText!$D$1)","v":""},{"$f":"IF(OrigTable!C872=\"\",\"\",IF(LEN(OrigTable!C872)>255,LEFT(OrigTable!C872,250)&\". . .\",OrigTable!C872))","v":""},{"$f":"IF(OrigTable!C872=\"\",\"\",ScriptText!$E$1&CHAR(10)&ScriptText!$C$1)","v":""},{"$f":"IF(OrigTable!D872=\"\",\"\",ScriptText!$B$1&CHAR(10)&ScriptText!$D$1)","v":""},{"$f":"IF(OrigTable!D872=\"\",\"\",TEXT(OrigTable!D872,\"00\"))","v":""},{"$f":"IF(OrigTable!D872=\"\",\"\",ScriptText!$E$1&CHAR(10)&ScriptText!$C$1)","v":""},{"$f":"IF(OrigTable!E872=\"\",\"\",ScriptText!$B$1&CHAR(10)&ScriptText!$D$1)","v":""},{"$f":"IF(OrigTable!E872=\"\",\"\",TEXT(OrigTable!E872,\"00\"))","v":""},{"$f":"IF(OrigTable!E872=\"\",\"\",ScriptText!$E$1&CHAR(10)&ScriptText!$C$1)","v":""},{"$f":"IF(OrigTable!F872=\"\",\"\",ScriptText!$B$1&CHAR(10)&ScriptText!$D$1)","v":""},{"$f":"IF(OrigTable!F872=\"\",\"\",TEXT(OrigTable!F872,\"00\"))","v":""},{"$f":"IF(OrigTable!F872=\"\",\"\",ScriptText!$E$1&CHAR(10)&ScriptText!$C$1)","v":""},{"$f":"IF(OrigTable!G872=\"\",\"\",ScriptText!$B$1&CHAR(10)&ScriptText!$D$1)","v":""},{"$f":"IF(OrigTable!G872=\"\",\"\",TEXT(OrigTable!G872,\"00\"))","v":""},{"$f":"IF(OrigTable!G872=\"\",\"\",ScriptText!$E$1&CHAR(10)&ScriptText!$C$1)","v":""},0]
["\n\n\n",{"$f":"IF(OrigTable!A873=\"\",\"\",ScriptText!$B$1&CHAR(10)&ScriptText!$D$1)","v":""},{"$f":"IF(OrigTable!A873=\"\",\"\",TEXT(OrigTable!A873,\"00\"))","v":""},{"$f":"IF(OrigTable!A873=\"\",\"\",ScriptText!$E$1&CHAR(10)&ScriptText!$C$1)","v":""},{"$f":"IF(OrigTable!B873=\"\",\"\",ScriptText!$B$1&CHAR(10)&ScriptText!$D$1)","v":""},{"$f":"IF(OrigTable!B873=\"\",\"\",TEXT(OrigTable!B873,\"00\"))","v":""},{"$f":"IF(OrigTable!B873=\"\",\"\",ScriptText!$E$1&CHAR(10)&ScriptText!C868)","v":""},{"$f":"IF(OrigTable!C873=\"\",\"\",ScriptText!$B$1&CHAR(10)&ScriptText!$D$1)","v":""},{"$f":"IF(OrigTable!C873=\"\",\"\",IF(LEN(OrigTable!C873)>255,LEFT(OrigTable!C873,250)&\". . .\",OrigTable!C873))","v":""},{"$f":"IF(OrigTable!C873=\"\",\"\",ScriptText!$E$1&CHAR(10)&ScriptText!$C$1)","v":""},{"$f":"IF(OrigTable!D873=\"\",\"\",ScriptText!$B$1&CHAR(10)&ScriptText!$D$1)","v":""},{"$f":"IF(OrigTable!D873=\"\",\"\",TEXT(OrigTable!D873,\"00\"))","v":""},{"$f":"IF(OrigTable!D873=\"\",\"\",ScriptText!$E$1&CHAR(10)&ScriptText!$C$1)","v":""},{"$f":"IF(OrigTable!E873=\"\",\"\",ScriptText!$B$1&CHAR(10)&ScriptText!$D$1)","v":""},{"$f":"IF(OrigTable!E873=\"\",\"\",TEXT(OrigTable!E873,\"00\"))","v":""},{"$f":"IF(OrigTable!E873=\"\",\"\",ScriptText!$E$1&CHAR(10)&ScriptText!$C$1)","v":""},{"$f":"IF(OrigTable!F873=\"\",\"\",ScriptText!$B$1&CHAR(10)&ScriptText!$D$1)","v":""},{"$f":"IF(OrigTable!F873=\"\",\"\",TEXT(OrigTable!F873,\"00\"))","v":""},{"$f":"IF(OrigTable!F873=\"\",\"\",ScriptText!$E$1&CHAR(10)&ScriptText!$C$1)","v":""},{"$f":"IF(OrigTable!G873=\"\",\"\",ScriptText!$B$1&CHAR(10)&ScriptText!$D$1)","v":""},{"$f":"IF(OrigTable!G873=\"\",\"\",TEXT(OrigTable!G873,\"00\"))","v":""},{"$f":"IF(OrigTable!G873=\"\",\"\",ScriptText!$E$1&CHAR(10)&ScriptText!$C$1)","v":""},0]
["\n\n\n",{"$f":"IF(OrigTable!A874=\"\",\"\",ScriptText!$B$1&CHAR(10)&ScriptText!$D$1)","v":""},{"$f":"IF(OrigTable!A874=\"\",\"\",TEXT(OrigTable!A874,\"00\"))","v":""},{"$f":"IF(OrigTable!A874=\"\",\"\",ScriptText!$E$1&CHAR(10)&ScriptText!$C$1)","v":""},{"$f":"IF(OrigTable!B874=\"\",\"\",ScriptText!$B$1&CHAR(10)&ScriptText!$D$1)","v":""},{"$f":"IF(OrigTable!B874=\"\",\"\",TEXT(OrigTable!B874,\"00\"))","v":""},{"$f":"IF(OrigTable!B874=\"\",\"\",ScriptText!$E$1&CHAR(10)&ScriptText!C869)","v":""},{"$f":"IF(OrigTable!C874=\"\",\"\",ScriptText!$B$1&CHAR(10)&ScriptText!$D$1)","v":""},{"$f":"IF(OrigTable!C874=\"\",\"\",IF(LEN(OrigTable!C874)>255,LEFT(OrigTable!C874,250)&\". . .\",OrigTable!C874))","v":""},{"$f":"IF(OrigTable!C874=\"\",\"\",ScriptText!$E$1&CHAR(10)&ScriptText!$C$1)","v":""},{"$f":"IF(OrigTable!D874=\"\",\"\",ScriptText!$B$1&CHAR(10)&ScriptText!$D$1)","v":""},{"$f":"IF(OrigTable!D874=\"\",\"\",TEXT(OrigTable!D874,\"00\"))","v":""},{"$f":"IF(OrigTable!D874=\"\",\"\",ScriptText!$E$1&CHAR(10)&ScriptText!$C$1)","v":""},{"$f":"IF(OrigTable!E874=\"\",\"\",ScriptText!$B$1&CHAR(10)&ScriptText!$D$1)","v":""},{"$f":"IF(OrigTable!E874=\"\",\"\",TEXT(OrigTable!E874,\"00\"))","v":""},{"$f":"IF(OrigTable!E874=\"\",\"\",ScriptText!$E$1&CHAR(10)&ScriptText!$C$1)","v":""},{"$f":"IF(OrigTable!F874=\"\",\"\",ScriptText!$B$1&CHAR(10)&ScriptText!$D$1)","v":""},{"$f":"IF(OrigTable!F874=\"\",\"\",TEXT(OrigTable!F874,\"00\"))","v":""},{"$f":"IF(OrigTable!F874=\"\",\"\",ScriptText!$E$1&CHAR(10)&ScriptText!$C$1)","v":""},{"$f":"IF(OrigTable!G874=\"\",\"\",ScriptText!$B$1&CHAR(10)&ScriptText!$D$1)","v":""},{"$f":"IF(OrigTable!G874=\"\",\"\",TEXT(OrigTable!G874,\"00\"))","v":""},{"$f":"IF(OrigTable!G874=\"\",\"\",ScriptText!$E$1&CHAR(10)&ScriptText!$C$1)","v":""},0]
["\n\n\n",{"$f":"IF(OrigTable!A875=\"\",\"\",ScriptText!$B$1&CHAR(10)&ScriptText!$D$1)","v":""},{"$f":"IF(OrigTable!A875=\"\",\"\",TEXT(OrigTable!A875,\"00\"))","v":""},{"$f":"IF(OrigTable!A875=\"\",\"\",ScriptText!$E$1&CHAR(10)&ScriptText!$C$1)","v":""},{"$f":"IF(OrigTable!B875=\"\",\"\",ScriptText!$B$1&CHAR(10)&ScriptText!$D$1)","v":""},{"$f":"IF(OrigTable!B875=\"\",\"\",TEXT(OrigTable!B875,\"00\"))","v":""},{"$f":"IF(OrigTable!B875=\"\",\"\",ScriptText!$E$1&CHAR(10)&ScriptText!C870)","v":""},{"$f":"IF(OrigTable!C875=\"\",\"\",ScriptText!$B$1&CHAR(10)&ScriptText!$D$1)","v":""},{"$f":"IF(OrigTable!C875=\"\",\"\",IF(LEN(OrigTable!C875)>255,LEFT(OrigTable!C875,250)&\". . .\",OrigTable!C875))","v":""},{"$f":"IF(OrigTable!C875=\"\",\"\",ScriptText!$E$1&CHAR(10)&ScriptText!$C$1)","v":""},{"$f":"IF(OrigTable!D875=\"\",\"\",ScriptText!$B$1&CHAR(10)&ScriptText!$D$1)","v":""},{"$f":"IF(OrigTable!D875=\"\",\"\",TEXT(OrigTable!D875,\"00\"))","v":""},{"$f":"IF(OrigTable!D875=\"\",\"\",ScriptText!$E$1&CHAR(10)&ScriptText!$C$1)","v":""},{"$f":"IF(OrigTable!E875=\"\",\"\",ScriptText!$B$1&CHAR(10)&ScriptText!$D$1)","v":""},{"$f":"IF(OrigTable!E875=\"\",\"\",TEXT(OrigTable!E875,\"00\"))","v":""},{"$f":"IF(OrigTable!E875=\"\",\"\",ScriptText!$E$1&CHAR(10)&ScriptText!$C$1)","v":""},{"$f":"IF(OrigTable!F875=\"\",\"\",ScriptText!$B$1&CHAR(10)&ScriptText!$D$1)","v":""},{"$f":"IF(OrigTable!F875=\"\",\"\",TEXT(OrigTable!F875,\"00\"))","v":""},{"$f":"IF(OrigTable!F875=\"\",\"\",ScriptText!$E$1&CHAR(10)&ScriptText!$C$1)","v":""},{"$f":"IF(OrigTable!G875=\"\",\"\",ScriptText!$B$1&CHAR(10)&ScriptText!$D$1)","v":""},{"$f":"IF(OrigTable!G875=\"\",\"\",TEXT(OrigTable!G875,\"00\"))","v":""},{"$f":"IF(OrigTable!G875=\"\",\"\",ScriptText!$E$1&CHAR(10)&ScriptText!$C$1)","v":""},0]
["\n\n\n",{"$f":"IF(OrigTable!A876=\"\",\"\",ScriptText!$B$1&CHAR(10)&ScriptText!$D$1)","v":""},{"$f":"IF(OrigTable!A876=\"\",\"\",TEXT(OrigTable!A876,\"00\"))","v":""},{"$f":"IF(OrigTable!A876=\"\",\"\",ScriptText!$E$1&CHAR(10)&ScriptText!$C$1)","v":""},{"$f":"IF(OrigTable!B876=\"\",\"\",ScriptText!$B$1&CHAR(10)&ScriptText!$D$1)","v":""},{"$f":"IF(OrigTable!B876=\"\",\"\",TEXT(OrigTable!B876,\"00\"))","v":""},{"$f":"IF(OrigTable!B876=\"\",\"\",ScriptText!$E$1&CHAR(10)&ScriptText!C871)","v":""},{"$f":"IF(OrigTable!C876=\"\",\"\",ScriptText!$B$1&CHAR(10)&ScriptText!$D$1)","v":""},{"$f":"IF(OrigTable!C876=\"\",\"\",IF(LEN(OrigTable!C876)>255,LEFT(OrigTable!C876,250)&\". . .\",OrigTable!C876))","v":""},{"$f":"IF(OrigTable!C876=\"\",\"\",ScriptText!$E$1&CHAR(10)&ScriptText!$C$1)","v":""},{"$f":"IF(OrigTable!D876=\"\",\"\",ScriptText!$B$1&CHAR(10)&ScriptText!$D$1)","v":""},{"$f":"IF(OrigTable!D876=\"\",\"\",TEXT(OrigTable!D876,\"00\"))","v":""},{"$f":"IF(OrigTable!D876=\"\",\"\",ScriptText!$E$1&CHAR(10)&ScriptText!$C$1)","v":""},{"$f":"IF(OrigTable!E876=\"\",\"\",ScriptText!$B$1&CHAR(10)&ScriptText!$D$1)","v":""},{"$f":"IF(OrigTable!E876=\"\",\"\",TEXT(OrigTable!E876,\"00\"))","v":""},{"$f":"IF(OrigTable!E876=\"\",\"\",ScriptText!$E$1&CHAR(10)&ScriptText!$C$1)","v":""},{"$f":"IF(OrigTable!F876=\"\",\"\",ScriptText!$B$1&CHAR(10)&ScriptText!$D$1)","v":""},{"$f":"IF(OrigTable!F876=\"\",\"\",TEXT(OrigTable!F876,\"00\"))","v":""},{"$f":"IF(OrigTable!F876=\"\",\"\",ScriptText!$E$1&CHAR(10)&ScriptText!$C$1)","v":""},{"$f":"IF(OrigTable!G876=\"\",\"\",ScriptText!$B$1&CHAR(10)&ScriptText!$D$1)","v":""},{"$f":"IF(OrigTable!G876=\"\",\"\",TEXT(OrigTable!G876,\"00\"))","v":""},{"$f":"IF(OrigTable!G876=\"\",\"\",ScriptText!$E$1&CHAR(10)&ScriptText!$C$1)","v":""},0]
["\n\n\n",{"$f":"IF(OrigTable!A877=\"\",\"\",ScriptText!$B$1&CHAR(10)&ScriptText!$D$1)","v":""},{"$f":"IF(OrigTable!A877=\"\",\"\",TEXT(OrigTable!A877,\"00\"))","v":""},{"$f":"IF(OrigTable!A877=\"\",\"\",ScriptText!$E$1&CHAR(10)&ScriptText!$C$1)","v":""},{"$f":"IF(OrigTable!B877=\"\",\"\",ScriptText!$B$1&CHAR(10)&ScriptText!$D$1)","v":""},{"$f":"IF(OrigTable!B877=\"\",\"\",TEXT(OrigTable!B877,\"00\"))","v":""},{"$f":"IF(OrigTable!B877=\"\",\"\",ScriptText!$E$1&CHAR(10)&ScriptText!C872)","v":""},{"$f":"IF(OrigTable!C877=\"\",\"\",ScriptText!$B$1&CHAR(10)&ScriptText!$D$1)","v":""},{"$f":"IF(OrigTable!C877=\"\",\"\",IF(LEN(OrigTable!C877)>255,LEFT(OrigTable!C877,250)&\". . .\",OrigTable!C877))","v":""},{"$f":"IF(OrigTable!C877=\"\",\"\",ScriptText!$E$1&CHAR(10)&ScriptText!$C$1)","v":""},{"$f":"IF(OrigTable!D877=\"\",\"\",ScriptText!$B$1&CHAR(10)&ScriptText!$D$1)","v":""},{"$f":"IF(OrigTable!D877=\"\",\"\",TEXT(OrigTable!D877,\"00\"))","v":""},{"$f":"IF(OrigTable!D877=\"\",\"\",ScriptText!$E$1&CHAR(10)&ScriptText!$C$1)","v":""},{"$f":"IF(OrigTable!E877=\"\",\"\",ScriptText!$B$1&CHAR(10)&ScriptText!$D$1)","v":""},{"$f":"IF(OrigTable!E877=\"\",\"\",TEXT(OrigTable!E877,\"00\"))","v":""},{"$f":"IF(OrigTable!E877=\"\",\"\",ScriptText!$E$1&CHAR(10)&ScriptText!$C$1)","v":""},{"$f":"IF(OrigTable!F877=\"\",\"\",ScriptText!$B$1&CHAR(10)&ScriptText!$D$1)","v":""},{"$f":"IF(OrigTable!F877=\"\",\"\",TEXT(OrigTable!F877,\"00\"))","v":""},{"$f":"IF(OrigTable!F877=\"\",\"\",ScriptText!$E$1&CHAR(10)&ScriptText!$C$1)","v":""},{"$f":"IF(OrigTable!G877=\"\",\"\",ScriptText!$B$1&CHAR(10)&ScriptText!$D$1)","v":""},{"$f":"IF(OrigTable!G877=\"\",\"\",TEXT(OrigTable!G877,\"00\"))","v":""},{"$f":"IF(OrigTable!G877=\"\",\"\",ScriptText!$E$1&CHAR(10)&ScriptText!$C$1)","v":""},0]
["\n\n\n",{"$f":"IF(OrigTable!A878=\"\",\"\",ScriptText!$B$1&CHAR(10)&ScriptText!$D$1)","v":""},{"$f":"IF(OrigTable!A878=\"\",\"\",TEXT(OrigTable!A878,\"00\"))","v":""},{"$f":"IF(OrigTable!A878=\"\",\"\",ScriptText!$E$1&CHAR(10)&ScriptText!$C$1)","v":""},{"$f":"IF(OrigTable!B878=\"\",\"\",ScriptText!$B$1&CHAR(10)&ScriptText!$D$1)","v":""},{"$f":"IF(OrigTable!B878=\"\",\"\",TEXT(OrigTable!B878,\"00\"))","v":""},{"$f":"IF(OrigTable!B878=\"\",\"\",ScriptText!$E$1&CHAR(10)&ScriptText!C873)","v":""},{"$f":"IF(OrigTable!C878=\"\",\"\",ScriptText!$B$1&CHAR(10)&ScriptText!$D$1)","v":""},{"$f":"IF(OrigTable!C878=\"\",\"\",IF(LEN(OrigTable!C878)>255,LEFT(OrigTable!C878,250)&\". . .\",OrigTable!C878))","v":""},{"$f":"IF(OrigTable!C878=\"\",\"\",ScriptText!$E$1&CHAR(10)&ScriptText!$C$1)","v":""},{"$f":"IF(OrigTable!D878=\"\",\"\",ScriptText!$B$1&CHAR(10)&ScriptText!$D$1)","v":""},{"$f":"IF(OrigTable!D878=\"\",\"\",TEXT(OrigTable!D878,\"00\"))","v":""},{"$f":"IF(OrigTable!D878=\"\",\"\",ScriptText!$E$1&CHAR(10)&ScriptText!$C$1)","v":""},{"$f":"IF(OrigTable!E878=\"\",\"\",ScriptText!$B$1&CHAR(10)&ScriptText!$D$1)","v":""},{"$f":"IF(OrigTable!E878=\"\",\"\",TEXT(OrigTable!E878,\"00\"))","v":""},{"$f":"IF(OrigTable!E878=\"\",\"\",ScriptText!$E$1&CHAR(10)&ScriptText!$C$1)","v":""},{"$f":"IF(OrigTable!F878=\"\",\"\",ScriptText!$B$1&CHAR(10)&ScriptText!$D$1)","v":""},{"$f":"IF(OrigTable!F878=\"\",\"\",TEXT(OrigTable!F878,\"00\"))","v":""},{"$f":"IF(OrigTable!F878=\"\",\"\",ScriptText!$E$1&CHAR(10)&ScriptText!$C$1)","v":""},{"$f":"IF(OrigTable!G878=\"\",\"\",ScriptText!$B$1&CHAR(10)&ScriptText!$D$1)","v":""},{"$f":"IF(OrigTable!G878=\"\",\"\",TEXT(OrigTable!G878,\"00\"))","v":""},{"$f":"IF(OrigTable!G878=\"\",\"\",ScriptText!$E$1&CHAR(10)&ScriptText!$C$1)","v":""},0]
["\n\n\n",{"$f":"IF(OrigTable!A879=\"\",\"\",ScriptText!$B$1&CHAR(10)&ScriptText!$D$1)","v":""},{"$f":"IF(OrigTable!A879=\"\",\"\",TEXT(OrigTable!A879,\"00\"))","v":""},{"$f":"IF(OrigTable!A879=\"\",\"\",ScriptText!$E$1&CHAR(10)&ScriptText!$C$1)","v":""},{"$f":"IF(OrigTable!B879=\"\",\"\",ScriptText!$B$1&CHAR(10)&ScriptText!$D$1)","v":""},{"$f":"IF(OrigTable!B879=\"\",\"\",TEXT(OrigTable!B879,\"00\"))","v":""},{"$f":"IF(OrigTable!B879=\"\",\"\",ScriptText!$E$1&CHAR(10)&ScriptText!C874)","v":""},{"$f":"IF(OrigTable!C879=\"\",\"\",ScriptText!$B$1&CHAR(10)&ScriptText!$D$1)","v":""},{"$f":"IF(OrigTable!C879=\"\",\"\",IF(LEN(OrigTable!C879)>255,LEFT(OrigTable!C879,250)&\". . .\",OrigTable!C879))","v":""},{"$f":"IF(OrigTable!C879=\"\",\"\",ScriptText!$E$1&CHAR(10)&ScriptText!$C$1)","v":""},{"$f":"IF(OrigTable!D879=\"\",\"\",ScriptText!$B$1&CHAR(10)&ScriptText!$D$1)","v":""},{"$f":"IF(OrigTable!D879=\"\",\"\",TEXT(OrigTable!D879,\"00\"))","v":""},{"$f":"IF(OrigTable!D879=\"\",\"\",ScriptText!$E$1&CHAR(10)&ScriptText!$C$1)","v":""},{"$f":"IF(OrigTable!E879=\"\",\"\",ScriptText!$B$1&CHAR(10)&ScriptText!$D$1)","v":""},{"$f":"IF(OrigTable!E879=\"\",\"\",TEXT(OrigTable!E879,\"00\"))","v":""},{"$f":"IF(OrigTable!E879=\"\",\"\",ScriptText!$E$1&CHAR(10)&ScriptText!$C$1)","v":""},{"$f":"IF(OrigTable!F879=\"\",\"\",ScriptText!$B$1&CHAR(10)&ScriptText!$D$1)","v":""},{"$f":"IF(OrigTable!F879=\"\",\"\",TEXT(OrigTable!F879,\"00\"))","v":""},{"$f":"IF(OrigTable!F879=\"\",\"\",ScriptText!$E$1&CHAR(10)&ScriptText!$C$1)","v":""},{"$f":"IF(OrigTable!G879=\"\",\"\",ScriptText!$B$1&CHAR(10)&ScriptText!$D$1)","v":""},{"$f":"IF(OrigTable!G879=\"\",\"\",TEXT(OrigTable!G879,\"00\"))","v":""},{"$f":"IF(OrigTable!G879=\"\",\"\",ScriptText!$E$1&CHAR(10)&ScriptText!$C$1)","v":""},0]
["\n\n\n",{"$f":"IF(OrigTable!A880=\"\",\"\",ScriptText!$B$1&CHAR(10)&ScriptText!$D$1)","v":""},{"$f":"IF(OrigTable!A880=\"\",\"\",TEXT(OrigTable!A880,\"00\"))","v":""},{"$f":"IF(OrigTable!A880=\"\",\"\",ScriptText!$E$1&CHAR(10)&ScriptText!$C$1)","v":""},{"$f":"IF(OrigTable!B880=\"\",\"\",ScriptText!$B$1&CHAR(10)&ScriptText!$D$1)","v":""},{"$f":"IF(OrigTable!B880=\"\",\"\",TEXT(OrigTable!B880,\"00\"))","v":""},{"$f":"IF(OrigTable!B880=\"\",\"\",ScriptText!$E$1&CHAR(10)&ScriptText!C875)","v":""},{"$f":"IF(OrigTable!C880=\"\",\"\",ScriptText!$B$1&CHAR(10)&ScriptText!$D$1)","v":""},{"$f":"IF(OrigTable!C880=\"\",\"\",IF(LEN(OrigTable!C880)>255,LEFT(OrigTable!C880,250)&\". . .\",OrigTable!C880))","v":""},{"$f":"IF(OrigTable!C880=\"\",\"\",ScriptText!$E$1&CHAR(10)&ScriptText!$C$1)","v":""},{"$f":"IF(OrigTable!D880=\"\",\"\",ScriptText!$B$1&CHAR(10)&ScriptText!$D$1)","v":""},{"$f":"IF(OrigTable!D880=\"\",\"\",TEXT(OrigTable!D880,\"00\"))","v":""},{"$f":"IF(OrigTable!D880=\"\",\"\",ScriptText!$E$1&CHAR(10)&ScriptText!$C$1)","v":""},{"$f":"IF(OrigTable!E880=\"\",\"\",ScriptText!$B$1&CHAR(10)&ScriptText!$D$1)","v":""},{"$f":"IF(OrigTable!E880=\"\",\"\",TEXT(OrigTable!E880,\"00\"))","v":""},{"$f":"IF(OrigTable!E880=\"\",\"\",ScriptText!$E$1&CHAR(10)&ScriptText!$C$1)","v":""},{"$f":"IF(OrigTable!F880=\"\",\"\",ScriptText!$B$1&CHAR(10)&ScriptText!$D$1)","v":""},{"$f":"IF(OrigTable!F880=\"\",\"\",TEXT(OrigTable!F880,\"00\"))","v":""},{"$f":"IF(OrigTable!F880=\"\",\"\",ScriptText!$E$1&CHAR(10)&ScriptText!$C$1)","v":""},{"$f":"IF(OrigTable!G880=\"\",\"\",ScriptText!$B$1&CHAR(10)&ScriptText!$D$1)","v":""},{"$f":"IF(OrigTable!G880=\"\",\"\",TEXT(OrigTable!G880,\"00\"))","v":""},{"$f":"IF(OrigTable!G880=\"\",\"\",ScriptText!$E$1&CHAR(10)&ScriptText!$C$1)","v":""},0]
["\n\n\n",{"$f":"IF(OrigTable!A881=\"\",\"\",ScriptText!$B$1&CHAR(10)&ScriptText!$D$1)","v":""},{"$f":"IF(OrigTable!A881=\"\",\"\",TEXT(OrigTable!A881,\"00\"))","v":""},{"$f":"IF(OrigTable!A881=\"\",\"\",ScriptText!$E$1&CHAR(10)&ScriptText!$C$1)","v":""},{"$f":"IF(OrigTable!B881=\"\",\"\",ScriptText!$B$1&CHAR(10)&ScriptText!$D$1)","v":""},{"$f":"IF(OrigTable!B881=\"\",\"\",TEXT(OrigTable!B881,\"00\"))","v":""},{"$f":"IF(OrigTable!B881=\"\",\"\",ScriptText!$E$1&CHAR(10)&ScriptText!C876)","v":""},{"$f":"IF(OrigTable!C881=\"\",\"\",ScriptText!$B$1&CHAR(10)&ScriptText!$D$1)","v":""},{"$f":"IF(OrigTable!C881=\"\",\"\",IF(LEN(OrigTable!C881)>255,LEFT(OrigTable!C881,250)&\". . .\",OrigTable!C881))","v":""},{"$f":"IF(OrigTable!C881=\"\",\"\",ScriptText!$E$1&CHAR(10)&ScriptText!$C$1)","v":""},{"$f":"IF(OrigTable!D881=\"\",\"\",ScriptText!$B$1&CHAR(10)&ScriptText!$D$1)","v":""},{"$f":"IF(OrigTable!D881=\"\",\"\",TEXT(OrigTable!D881,\"00\"))","v":""},{"$f":"IF(OrigTable!D881=\"\",\"\",ScriptText!$E$1&CHAR(10)&ScriptText!$C$1)","v":""},{"$f":"IF(OrigTable!E881=\"\",\"\",ScriptText!$B$1&CHAR(10)&ScriptText!$D$1)","v":""},{"$f":"IF(OrigTable!E881=\"\",\"\",TEXT(OrigTable!E881,\"00\"))","v":""},{"$f":"IF(OrigTable!E881=\"\",\"\",ScriptText!$E$1&CHAR(10)&ScriptText!$C$1)","v":""},{"$f":"IF(OrigTable!F881=\"\",\"\",ScriptText!$B$1&CHAR(10)&ScriptText!$D$1)","v":""},{"$f":"IF(OrigTable!F881=\"\",\"\",TEXT(OrigTable!F881,\"00\"))","v":""},{"$f":"IF(OrigTable!F881=\"\",\"\",ScriptText!$E$1&CHAR(10)&ScriptText!$C$1)","v":""},{"$f":"IF(OrigTable!G881=\"\",\"\",ScriptText!$B$1&CHAR(10)&ScriptText!$D$1)","v":""},{"$f":"IF(OrigTable!G881=\"\",\"\",TEXT(OrigTable!G881,\"00\"))","v":""},{"$f":"IF(OrigTable!G881=\"\",\"\",ScriptText!$E$1&CHAR(10)&ScriptText!$C$1)","v":""},0]
["\n\n\n",{"$f":"IF(OrigTable!A882=\"\",\"\",ScriptText!$B$1&CHAR(10)&ScriptText!$D$1)","v":""},{"$f":"IF(OrigTable!A882=\"\",\"\",TEXT(OrigTable!A882,\"00\"))","v":""},{"$f":"IF(OrigTable!A882=\"\",\"\",ScriptText!$E$1&CHAR(10)&ScriptText!$C$1)","v":""},{"$f":"IF(OrigTable!B882=\"\",\"\",ScriptText!$B$1&CHAR(10)&ScriptText!$D$1)","v":""},{"$f":"IF(OrigTable!B882=\"\",\"\",TEXT(OrigTable!B882,\"00\"))","v":""},{"$f":"IF(OrigTable!B882=\"\",\"\",ScriptText!$E$1&CHAR(10)&ScriptText!C877)","v":""},{"$f":"IF(OrigTable!C882=\"\",\"\",ScriptText!$B$1&CHAR(10)&ScriptText!$D$1)","v":""},{"$f":"IF(OrigTable!C882=\"\",\"\",IF(LEN(OrigTable!C882)>255,LEFT(OrigTable!C882,250)&\". . .\",OrigTable!C882))","v":""},{"$f":"IF(OrigTable!C882=\"\",\"\",ScriptText!$E$1&CHAR(10)&ScriptText!$C$1)","v":""},{"$f":"IF(OrigTable!D882=\"\",\"\",ScriptText!$B$1&CHAR(10)&ScriptText!$D$1)","v":""},{"$f":"IF(OrigTable!D882=\"\",\"\",TEXT(OrigTable!D882,\"00\"))","v":""},{"$f":"IF(OrigTable!D882=\"\",\"\",ScriptText!$E$1&CHAR(10)&ScriptText!$C$1)","v":""},{"$f":"IF(OrigTable!E882=\"\",\"\",ScriptText!$B$1&CHAR(10)&ScriptText!$D$1)","v":""},{"$f":"IF(OrigTable!E882=\"\",\"\",TEXT(OrigTable!E882,\"00\"))","v":""},{"$f":"IF(OrigTable!E882=\"\",\"\",ScriptText!$E$1&CHAR(10)&ScriptText!$C$1)","v":""},{"$f":"IF(OrigTable!F882=\"\",\"\",ScriptText!$B$1&CHAR(10)&ScriptText!$D$1)","v":""},{"$f":"IF(OrigTable!F882=\"\",\"\",TEXT(OrigTable!F882,\"00\"))","v":""},{"$f":"IF(OrigTable!F882=\"\",\"\",ScriptText!$E$1&CHAR(10)&ScriptText!$C$1)","v":""},{"$f":"IF(OrigTable!G882=\"\",\"\",ScriptText!$B$1&CHAR(10)&ScriptText!$D$1)","v":""},{"$f":"IF(OrigTable!G882=\"\",\"\",TEXT(OrigTable!G882,\"00\"))","v":""},{"$f":"IF(OrigTable!G882=\"\",\"\",ScriptText!$E$1&CHAR(10)&ScriptText!$C$1)","v":""},0]
["\n\n\n",{"$f":"IF(OrigTable!A883=\"\",\"\",ScriptText!$B$1&CHAR(10)&ScriptText!$D$1)","v":""},{"$f":"IF(OrigTable!A883=\"\",\"\",TEXT(OrigTable!A883,\"00\"))","v":""},{"$f":"IF(OrigTable!A883=\"\",\"\",ScriptText!$E$1&CHAR(10)&ScriptText!$C$1)","v":""},{"$f":"IF(OrigTable!B883=\"\",\"\",ScriptText!$B$1&CHAR(10)&ScriptText!$D$1)","v":""},{"$f":"IF(OrigTable!B883=\"\",\"\",TEXT(OrigTable!B883,\"00\"))","v":""},{"$f":"IF(OrigTable!B883=\"\",\"\",ScriptText!$E$1&CHAR(10)&ScriptText!C878)","v":""},{"$f":"IF(OrigTable!C883=\"\",\"\",ScriptText!$B$1&CHAR(10)&ScriptText!$D$1)","v":""},{"$f":"IF(OrigTable!C883=\"\",\"\",IF(LEN(OrigTable!C883)>255,LEFT(OrigTable!C883,250)&\". . .\",OrigTable!C883))","v":""},{"$f":"IF(OrigTable!C883=\"\",\"\",ScriptText!$E$1&CHAR(10)&ScriptText!$C$1)","v":""},{"$f":"IF(OrigTable!D883=\"\",\"\",ScriptText!$B$1&CHAR(10)&ScriptText!$D$1)","v":""},{"$f":"IF(OrigTable!D883=\"\",\"\",TEXT(OrigTable!D883,\"00\"))","v":""},{"$f":"IF(OrigTable!D883=\"\",\"\",ScriptText!$E$1&CHAR(10)&ScriptText!$C$1)","v":""},{"$f":"IF(OrigTable!E883=\"\",\"\",ScriptText!$B$1&CHAR(10)&ScriptText!$D$1)","v":""},{"$f":"IF(OrigTable!E883=\"\",\"\",TEXT(OrigTable!E883,\"00\"))","v":""},{"$f":"IF(OrigTable!E883=\"\",\"\",ScriptText!$E$1&CHAR(10)&ScriptText!$C$1)","v":""},{"$f":"IF(OrigTable!F883=\"\",\"\",ScriptText!$B$1&CHAR(10)&ScriptText!$D$1)","v":""},{"$f":"IF(OrigTable!F883=\"\",\"\",TEXT(OrigTable!F883,\"00\"))","v":""},{"$f":"IF(OrigTable!F883=\"\",\"\",ScriptText!$E$1&CHAR(10)&ScriptText!$C$1)","v":""},{"$f":"IF(OrigTable!G883=\"\",\"\",ScriptText!$B$1&CHAR(10)&ScriptText!$D$1)","v":""},{"$f":"IF(OrigTable!G883=\"\",\"\",TEXT(OrigTable!G883,\"00\"))","v":""},{"$f":"IF(OrigTable!G883=\"\",\"\",ScriptText!$E$1&CHAR(10)&ScriptText!$C$1)","v":""},0]
["\n\n\n",{"$f":"IF(OrigTable!A884=\"\",\"\",ScriptText!$B$1&CHAR(10)&ScriptText!$D$1)","v":""},{"$f":"IF(OrigTable!A884=\"\",\"\",TEXT(OrigTable!A884,\"00\"))","v":""},{"$f":"IF(OrigTable!A884=\"\",\"\",ScriptText!$E$1&CHAR(10)&ScriptText!$C$1)","v":""},{"$f":"IF(OrigTable!B884=\"\",\"\",ScriptText!$B$1&CHAR(10)&ScriptText!$D$1)","v":""},{"$f":"IF(OrigTable!B884=\"\",\"\",TEXT(OrigTable!B884,\"00\"))","v":""},{"$f":"IF(OrigTable!B884=\"\",\"\",ScriptText!$E$1&CHAR(10)&ScriptText!C879)","v":""},{"$f":"IF(OrigTable!C884=\"\",\"\",ScriptText!$B$1&CHAR(10)&ScriptText!$D$1)","v":""},{"$f":"IF(OrigTable!C884=\"\",\"\",IF(LEN(OrigTable!C884)>255,LEFT(OrigTable!C884,250)&\". . .\",OrigTable!C884))","v":""},{"$f":"IF(OrigTable!C884=\"\",\"\",ScriptText!$E$1&CHAR(10)&ScriptText!$C$1)","v":""},{"$f":"IF(OrigTable!D884=\"\",\"\",ScriptText!$B$1&CHAR(10)&ScriptText!$D$1)","v":""},{"$f":"IF(OrigTable!D884=\"\",\"\",TEXT(OrigTable!D884,\"00\"))","v":""},{"$f":"IF(OrigTable!D884=\"\",\"\",ScriptText!$E$1&CHAR(10)&ScriptText!$C$1)","v":""},{"$f":"IF(OrigTable!E884=\"\",\"\",ScriptText!$B$1&CHAR(10)&ScriptText!$D$1)","v":""},{"$f":"IF(OrigTable!E884=\"\",\"\",TEXT(OrigTable!E884,\"00\"))","v":""},{"$f":"IF(OrigTable!E884=\"\",\"\",ScriptText!$E$1&CHAR(10)&ScriptText!$C$1)","v":""},{"$f":"IF(OrigTable!F884=\"\",\"\",ScriptText!$B$1&CHAR(10)&ScriptText!$D$1)","v":""},{"$f":"IF(OrigTable!F884=\"\",\"\",TEXT(OrigTable!F884,\"00\"))","v":""},{"$f":"IF(OrigTable!F884=\"\",\"\",ScriptText!$E$1&CHAR(10)&ScriptText!$C$1)","v":""},{"$f":"IF(OrigTable!G884=\"\",\"\",ScriptText!$B$1&CHAR(10)&ScriptText!$D$1)","v":""},{"$f":"IF(OrigTable!G884=\"\",\"\",TEXT(OrigTable!G884,\"00\"))","v":""},{"$f":"IF(OrigTable!G884=\"\",\"\",ScriptText!$E$1&CHAR(10)&ScriptText!$C$1)","v":""},0]
["\n\n\n",{"$f":"IF(OrigTable!A885=\"\",\"\",ScriptText!$B$1&CHAR(10)&ScriptText!$D$1)","v":""},{"$f":"IF(OrigTable!A885=\"\",\"\",TEXT(OrigTable!A885,\"00\"))","v":""},{"$f":"IF(OrigTable!A885=\"\",\"\",ScriptText!$E$1&CHAR(10)&ScriptText!$C$1)","v":""},{"$f":"IF(OrigTable!B885=\"\",\"\",ScriptText!$B$1&CHAR(10)&ScriptText!$D$1)","v":""},{"$f":"IF(OrigTable!B885=\"\",\"\",TEXT(OrigTable!B885,\"00\"))","v":""},{"$f":"IF(OrigTable!B885=\"\",\"\",ScriptText!$E$1&CHAR(10)&ScriptText!C880)","v":""},{"$f":"IF(OrigTable!C885=\"\",\"\",ScriptText!$B$1&CHAR(10)&ScriptText!$D$1)","v":""},{"$f":"IF(OrigTable!C885=\"\",\"\",IF(LEN(OrigTable!C885)>255,LEFT(OrigTable!C885,250)&\". . .\",OrigTable!C885))","v":""},{"$f":"IF(OrigTable!C885=\"\",\"\",ScriptText!$E$1&CHAR(10)&ScriptText!$C$1)","v":""},{"$f":"IF(OrigTable!D885=\"\",\"\",ScriptText!$B$1&CHAR(10)&ScriptText!$D$1)","v":""},{"$f":"IF(OrigTable!D885=\"\",\"\",TEXT(OrigTable!D885,\"00\"))","v":""},{"$f":"IF(OrigTable!D885=\"\",\"\",ScriptText!$E$1&CHAR(10)&ScriptText!$C$1)","v":""},{"$f":"IF(OrigTable!E885=\"\",\"\",ScriptText!$B$1&CHAR(10)&ScriptText!$D$1)","v":""},{"$f":"IF(OrigTable!E885=\"\",\"\",TEXT(OrigTable!E885,\"00\"))","v":""},{"$f":"IF(OrigTable!E885=\"\",\"\",ScriptText!$E$1&CHAR(10)&ScriptText!$C$1)","v":""},{"$f":"IF(OrigTable!F885=\"\",\"\",ScriptText!$B$1&CHAR(10)&ScriptText!$D$1)","v":""},{"$f":"IF(OrigTable!F885=\"\",\"\",TEXT(OrigTable!F885,\"00\"))","v":""},{"$f":"IF(OrigTable!F885=\"\",\"\",ScriptText!$E$1&CHAR(10)&ScriptText!$C$1)","v":""},{"$f":"IF(OrigTable!G885=\"\",\"\",ScriptText!$B$1&CHAR(10)&ScriptText!$D$1)","v":""},{"$f":"IF(OrigTable!G885=\"\",\"\",TEXT(OrigTable!G885,\"00\"))","v":""},{"$f":"IF(OrigTable!G885=\"\",\"\",ScriptText!$E$1&CHAR(10)&ScriptText!$C$1)","v":""},0]
["\n\n\n",{"$f":"IF(OrigTable!A886=\"\",\"\",ScriptText!$B$1&CHAR(10)&ScriptText!$D$1)","v":""},{"$f":"IF(OrigTable!A886=\"\",\"\",TEXT(OrigTable!A886,\"00\"))","v":""},{"$f":"IF(OrigTable!A886=\"\",\"\",ScriptText!$E$1&CHAR(10)&ScriptText!$C$1)","v":""},{"$f":"IF(OrigTable!B886=\"\",\"\",ScriptText!$B$1&CHAR(10)&ScriptText!$D$1)","v":""},{"$f":"IF(OrigTable!B886=\"\",\"\",TEXT(OrigTable!B886,\"00\"))","v":""},{"$f":"IF(OrigTable!B886=\"\",\"\",ScriptText!$E$1&CHAR(10)&ScriptText!C881)","v":""},{"$f":"IF(OrigTable!C886=\"\",\"\",ScriptText!$B$1&CHAR(10)&ScriptText!$D$1)","v":""},{"$f":"IF(OrigTable!C886=\"\",\"\",IF(LEN(OrigTable!C886)>255,LEFT(OrigTable!C886,250)&\". . .\",OrigTable!C886))","v":""},{"$f":"IF(OrigTable!C886=\"\",\"\",ScriptText!$E$1&CHAR(10)&ScriptText!$C$1)","v":""},{"$f":"IF(OrigTable!D886=\"\",\"\",ScriptText!$B$1&CHAR(10)&ScriptText!$D$1)","v":""},{"$f":"IF(OrigTable!D886=\"\",\"\",TEXT(OrigTable!D886,\"00\"))","v":""},{"$f":"IF(OrigTable!D886=\"\",\"\",ScriptText!$E$1&CHAR(10)&ScriptText!$C$1)","v":""},{"$f":"IF(OrigTable!E886=\"\",\"\",ScriptText!$B$1&CHAR(10)&ScriptText!$D$1)","v":""},{"$f":"IF(OrigTable!E886=\"\",\"\",TEXT(OrigTable!E886,\"00\"))","v":""},{"$f":"IF(OrigTable!E886=\"\",\"\",ScriptText!$E$1&CHAR(10)&ScriptText!$C$1)","v":""},{"$f":"IF(OrigTable!F886=\"\",\"\",ScriptText!$B$1&CHAR(10)&ScriptText!$D$1)","v":""},{"$f":"IF(OrigTable!F886=\"\",\"\",TEXT(OrigTable!F886,\"00\"))","v":""},{"$f":"IF(OrigTable!F886=\"\",\"\",ScriptText!$E$1&CHAR(10)&ScriptText!$C$1)","v":""},{"$f":"IF(OrigTable!G886=\"\",\"\",ScriptText!$B$1&CHAR(10)&ScriptText!$D$1)","v":""},{"$f":"IF(OrigTable!G886=\"\",\"\",TEXT(OrigTable!G886,\"00\"))","v":""},{"$f":"IF(OrigTable!G886=\"\",\"\",ScriptText!$E$1&CHAR(10)&ScriptText!$C$1)","v":""},0]
["\n\n\n",{"$f":"IF(OrigTable!A887=\"\",\"\",ScriptText!$B$1&CHAR(10)&ScriptText!$D$1)","v":""},{"$f":"IF(OrigTable!A887=\"\",\"\",TEXT(OrigTable!A887,\"00\"))","v":""},{"$f":"IF(OrigTable!A887=\"\",\"\",ScriptText!$E$1&CHAR(10)&ScriptText!$C$1)","v":""},{"$f":"IF(OrigTable!B887=\"\",\"\",ScriptText!$B$1&CHAR(10)&ScriptText!$D$1)","v":""},{"$f":"IF(OrigTable!B887=\"\",\"\",TEXT(OrigTable!B887,\"00\"))","v":""},{"$f":"IF(OrigTable!B887=\"\",\"\",ScriptText!$E$1&CHAR(10)&ScriptText!C882)","v":""},{"$f":"IF(OrigTable!C887=\"\",\"\",ScriptText!$B$1&CHAR(10)&ScriptText!$D$1)","v":""},{"$f":"IF(OrigTable!C887=\"\",\"\",IF(LEN(OrigTable!C887)>255,LEFT(OrigTable!C887,250)&\". . .\",OrigTable!C887))","v":""},{"$f":"IF(OrigTable!C887=\"\",\"\",ScriptText!$E$1&CHAR(10)&ScriptText!$C$1)","v":""},{"$f":"IF(OrigTable!D887=\"\",\"\",ScriptText!$B$1&CHAR(10)&ScriptText!$D$1)","v":""},{"$f":"IF(OrigTable!D887=\"\",\"\",TEXT(OrigTable!D887,\"00\"))","v":""},{"$f":"IF(OrigTable!D887=\"\",\"\",ScriptText!$E$1&CHAR(10)&ScriptText!$C$1)","v":""},{"$f":"IF(OrigTable!E887=\"\",\"\",ScriptText!$B$1&CHAR(10)&ScriptText!$D$1)","v":""},{"$f":"IF(OrigTable!E887=\"\",\"\",TEXT(OrigTable!E887,\"00\"))","v":""},{"$f":"IF(OrigTable!E887=\"\",\"\",ScriptText!$E$1&CHAR(10)&ScriptText!$C$1)","v":""},{"$f":"IF(OrigTable!F887=\"\",\"\",ScriptText!$B$1&CHAR(10)&ScriptText!$D$1)","v":""},{"$f":"IF(OrigTable!F887=\"\",\"\",TEXT(OrigTable!F887,\"00\"))","v":""},{"$f":"IF(OrigTable!F887=\"\",\"\",ScriptText!$E$1&CHAR(10)&ScriptText!$C$1)","v":""},{"$f":"IF(OrigTable!G887=\"\",\"\",ScriptText!$B$1&CHAR(10)&ScriptText!$D$1)","v":""},{"$f":"IF(OrigTable!G887=\"\",\"\",TEXT(OrigTable!G887,\"00\"))","v":""},{"$f":"IF(OrigTable!G887=\"\",\"\",ScriptText!$E$1&CHAR(10)&ScriptText!$C$1)","v":""},0]
["\n\n\n",{"$f":"IF(OrigTable!A888=\"\",\"\",ScriptText!$B$1&CHAR(10)&ScriptText!$D$1)","v":""},{"$f":"IF(OrigTable!A888=\"\",\"\",TEXT(OrigTable!A888,\"00\"))","v":""},{"$f":"IF(OrigTable!A888=\"\",\"\",ScriptText!$E$1&CHAR(10)&ScriptText!$C$1)","v":""},{"$f":"IF(OrigTable!B888=\"\",\"\",ScriptText!$B$1&CHAR(10)&ScriptText!$D$1)","v":""},{"$f":"IF(OrigTable!B888=\"\",\"\",TEXT(OrigTable!B888,\"00\"))","v":""},{"$f":"IF(OrigTable!B888=\"\",\"\",ScriptText!$E$1&CHAR(10)&ScriptText!C883)","v":""},{"$f":"IF(OrigTable!C888=\"\",\"\",ScriptText!$B$1&CHAR(10)&ScriptText!$D$1)","v":""},{"$f":"IF(OrigTable!C888=\"\",\"\",IF(LEN(OrigTable!C888)>255,LEFT(OrigTable!C888,250)&\". . .\",OrigTable!C888))","v":""},{"$f":"IF(OrigTable!C888=\"\",\"\",ScriptText!$E$1&CHAR(10)&ScriptText!$C$1)","v":""},{"$f":"IF(OrigTable!D888=\"\",\"\",ScriptText!$B$1&CHAR(10)&ScriptText!$D$1)","v":""},{"$f":"IF(OrigTable!D888=\"\",\"\",TEXT(OrigTable!D888,\"00\"))","v":""},{"$f":"IF(OrigTable!D888=\"\",\"\",ScriptText!$E$1&CHAR(10)&ScriptText!$C$1)","v":""},{"$f":"IF(OrigTable!E888=\"\",\"\",ScriptText!$B$1&CHAR(10)&ScriptText!$D$1)","v":""},{"$f":"IF(OrigTable!E888=\"\",\"\",TEXT(OrigTable!E888,\"00\"))","v":""},{"$f":"IF(OrigTable!E888=\"\",\"\",ScriptText!$E$1&CHAR(10)&ScriptText!$C$1)","v":""},{"$f":"IF(OrigTable!F888=\"\",\"\",ScriptText!$B$1&CHAR(10)&ScriptText!$D$1)","v":""},{"$f":"IF(OrigTable!F888=\"\",\"\",TEXT(OrigTable!F888,\"00\"))","v":""},{"$f":"IF(OrigTable!F888=\"\",\"\",ScriptText!$E$1&CHAR(10)&ScriptText!$C$1)","v":""},{"$f":"IF(OrigTable!G888=\"\",\"\",ScriptText!$B$1&CHAR(10)&ScriptText!$D$1)","v":""},{"$f":"IF(OrigTable!G888=\"\",\"\",TEXT(OrigTable!G888,\"00\"))","v":""},{"$f":"IF(OrigTable!G888=\"\",\"\",ScriptText!$E$1&CHAR(10)&ScriptText!$C$1)","v":""},0]
["\n\n\n",{"$f":"IF(OrigTable!A889=\"\",\"\",ScriptText!$B$1&CHAR(10)&ScriptText!$D$1)","v":""},{"$f":"IF(OrigTable!A889=\"\",\"\",TEXT(OrigTable!A889,\"00\"))","v":""},{"$f":"IF(OrigTable!A889=\"\",\"\",ScriptText!$E$1&CHAR(10)&ScriptText!$C$1)","v":""},{"$f":"IF(OrigTable!B889=\"\",\"\",ScriptText!$B$1&CHAR(10)&ScriptText!$D$1)","v":""},{"$f":"IF(OrigTable!B889=\"\",\"\",TEXT(OrigTable!B889,\"00\"))","v":""},{"$f":"IF(OrigTable!B889=\"\",\"\",ScriptText!$E$1&CHAR(10)&ScriptText!C884)","v":""},{"$f":"IF(OrigTable!C889=\"\",\"\",ScriptText!$B$1&CHAR(10)&ScriptText!$D$1)","v":""},{"$f":"IF(OrigTable!C889=\"\",\"\",IF(LEN(OrigTable!C889)>255,LEFT(OrigTable!C889,250)&\". . .\",OrigTable!C889))","v":""},{"$f":"IF(OrigTable!C889=\"\",\"\",ScriptText!$E$1&CHAR(10)&ScriptText!$C$1)","v":""},{"$f":"IF(OrigTable!D889=\"\",\"\",ScriptText!$B$1&CHAR(10)&ScriptText!$D$1)","v":""},{"$f":"IF(OrigTable!D889=\"\",\"\",TEXT(OrigTable!D889,\"00\"))","v":""},{"$f":"IF(OrigTable!D889=\"\",\"\",ScriptText!$E$1&CHAR(10)&ScriptText!$C$1)","v":""},{"$f":"IF(OrigTable!E889=\"\",\"\",ScriptText!$B$1&CHAR(10)&ScriptText!$D$1)","v":""},{"$f":"IF(OrigTable!E889=\"\",\"\",TEXT(OrigTable!E889,\"00\"))","v":""},{"$f":"IF(OrigTable!E889=\"\",\"\",ScriptText!$E$1&CHAR(10)&ScriptText!$C$1)","v":""},{"$f":"IF(OrigTable!F889=\"\",\"\",ScriptText!$B$1&CHAR(10)&ScriptText!$D$1)","v":""},{"$f":"IF(OrigTable!F889=\"\",\"\",TEXT(OrigTable!F889,\"00\"))","v":""},{"$f":"IF(OrigTable!F889=\"\",\"\",ScriptText!$E$1&CHAR(10)&ScriptText!$C$1)","v":""},{"$f":"IF(OrigTable!G889=\"\",\"\",ScriptText!$B$1&CHAR(10)&ScriptText!$D$1)","v":""},{"$f":"IF(OrigTable!G889=\"\",\"\",TEXT(OrigTable!G889,\"00\"))","v":""},{"$f":"IF(OrigTable!G889=\"\",\"\",ScriptText!$E$1&CHAR(10)&ScriptText!$C$1)","v":""},0]
["\n\n\n",{"$f":"IF(OrigTable!A890=\"\",\"\",ScriptText!$B$1&CHAR(10)&ScriptText!$D$1)","v":""},{"$f":"IF(OrigTable!A890=\"\",\"\",TEXT(OrigTable!A890,\"00\"))","v":""},{"$f":"IF(OrigTable!A890=\"\",\"\",ScriptText!$E$1&CHAR(10)&ScriptText!$C$1)","v":""},{"$f":"IF(OrigTable!B890=\"\",\"\",ScriptText!$B$1&CHAR(10)&ScriptText!$D$1)","v":""},{"$f":"IF(OrigTable!B890=\"\",\"\",TEXT(OrigTable!B890,\"00\"))","v":""},{"$f":"IF(OrigTable!B890=\"\",\"\",ScriptText!$E$1&CHAR(10)&ScriptText!C885)","v":""},{"$f":"IF(OrigTable!C890=\"\",\"\",ScriptText!$B$1&CHAR(10)&ScriptText!$D$1)","v":""},{"$f":"IF(OrigTable!C890=\"\",\"\",IF(LEN(OrigTable!C890)>255,LEFT(OrigTable!C890,250)&\". . .\",OrigTable!C890))","v":""},{"$f":"IF(OrigTable!C890=\"\",\"\",ScriptText!$E$1&CHAR(10)&ScriptText!$C$1)","v":""},{"$f":"IF(OrigTable!D890=\"\",\"\",ScriptText!$B$1&CHAR(10)&ScriptText!$D$1)","v":""},{"$f":"IF(OrigTable!D890=\"\",\"\",TEXT(OrigTable!D890,\"00\"))","v":""},{"$f":"IF(OrigTable!D890=\"\",\"\",ScriptText!$E$1&CHAR(10)&ScriptText!$C$1)","v":""},{"$f":"IF(OrigTable!E890=\"\",\"\",ScriptText!$B$1&CHAR(10)&ScriptText!$D$1)","v":""},{"$f":"IF(OrigTable!E890=\"\",\"\",TEXT(OrigTable!E890,\"00\"))","v":""},{"$f":"IF(OrigTable!E890=\"\",\"\",ScriptText!$E$1&CHAR(10)&ScriptText!$C$1)","v":""},{"$f":"IF(OrigTable!F890=\"\",\"\",ScriptText!$B$1&CHAR(10)&ScriptText!$D$1)","v":""},{"$f":"IF(OrigTable!F890=\"\",\"\",TEXT(OrigTable!F890,\"00\"))","v":""},{"$f":"IF(OrigTable!F890=\"\",\"\",ScriptText!$E$1&CHAR(10)&ScriptText!$C$1)","v":""},{"$f":"IF(OrigTable!G890=\"\",\"\",ScriptText!$B$1&CHAR(10)&ScriptText!$D$1)","v":""},{"$f":"IF(OrigTable!G890=\"\",\"\",TEXT(OrigTable!G890,\"00\"))","v":""},{"$f":"IF(OrigTable!G890=\"\",\"\",ScriptText!$E$1&CHAR(10)&ScriptText!$C$1)","v":""},0]
["\n\n\n",{"$f":"IF(OrigTable!A891=\"\",\"\",ScriptText!$B$1&CHAR(10)&ScriptText!$D$1)","v":""},{"$f":"IF(OrigTable!A891=\"\",\"\",TEXT(OrigTable!A891,\"00\"))","v":""},{"$f":"IF(OrigTable!A891=\"\",\"\",ScriptText!$E$1&CHAR(10)&ScriptText!$C$1)","v":""},{"$f":"IF(OrigTable!B891=\"\",\"\",ScriptText!$B$1&CHAR(10)&ScriptText!$D$1)","v":""},{"$f":"IF(OrigTable!B891=\"\",\"\",TEXT(OrigTable!B891,\"00\"))","v":""},{"$f":"IF(OrigTable!B891=\"\",\"\",ScriptText!$E$1&CHAR(10)&ScriptText!C886)","v":""},{"$f":"IF(OrigTable!C891=\"\",\"\",ScriptText!$B$1&CHAR(10)&ScriptText!$D$1)","v":""},{"$f":"IF(OrigTable!C891=\"\",\"\",IF(LEN(OrigTable!C891)>255,LEFT(OrigTable!C891,250)&\". . .\",OrigTable!C891))","v":""},{"$f":"IF(OrigTable!C891=\"\",\"\",ScriptText!$E$1&CHAR(10)&ScriptText!$C$1)","v":""},{"$f":"IF(OrigTable!D891=\"\",\"\",ScriptText!$B$1&CHAR(10)&ScriptText!$D$1)","v":""},{"$f":"IF(OrigTable!D891=\"\",\"\",TEXT(OrigTable!D891,\"00\"))","v":""},{"$f":"IF(OrigTable!D891=\"\",\"\",ScriptText!$E$1&CHAR(10)&ScriptText!$C$1)","v":""},{"$f":"IF(OrigTable!E891=\"\",\"\",ScriptText!$B$1&CHAR(10)&ScriptText!$D$1)","v":""},{"$f":"IF(OrigTable!E891=\"\",\"\",TEXT(OrigTable!E891,\"00\"))","v":""},{"$f":"IF(OrigTable!E891=\"\",\"\",ScriptText!$E$1&CHAR(10)&ScriptText!$C$1)","v":""},{"$f":"IF(OrigTable!F891=\"\",\"\",ScriptText!$B$1&CHAR(10)&ScriptText!$D$1)","v":""},{"$f":"IF(OrigTable!F891=\"\",\"\",TEXT(OrigTable!F891,\"00\"))","v":""},{"$f":"IF(OrigTable!F891=\"\",\"\",ScriptText!$E$1&CHAR(10)&ScriptText!$C$1)","v":""},{"$f":"IF(OrigTable!G891=\"\",\"\",ScriptText!$B$1&CHAR(10)&ScriptText!$D$1)","v":""},{"$f":"IF(OrigTable!G891=\"\",\"\",TEXT(OrigTable!G891,\"00\"))","v":""},{"$f":"IF(OrigTable!G891=\"\",\"\",ScriptText!$E$1&CHAR(10)&ScriptText!$C$1)","v":""},0]
["\n\n\n",{"$f":"IF(OrigTable!A892=\"\",\"\",ScriptText!$B$1&CHAR(10)&ScriptText!$D$1)","v":""},{"$f":"IF(OrigTable!A892=\"\",\"\",TEXT(OrigTable!A892,\"00\"))","v":""},{"$f":"IF(OrigTable!A892=\"\",\"\",ScriptText!$E$1&CHAR(10)&ScriptText!$C$1)","v":""},{"$f":"IF(OrigTable!B892=\"\",\"\",ScriptText!$B$1&CHAR(10)&ScriptText!$D$1)","v":""},{"$f":"IF(OrigTable!B892=\"\",\"\",TEXT(OrigTable!B892,\"00\"))","v":""},{"$f":"IF(OrigTable!B892=\"\",\"\",ScriptText!$E$1&CHAR(10)&ScriptText!C887)","v":""},{"$f":"IF(OrigTable!C892=\"\",\"\",ScriptText!$B$1&CHAR(10)&ScriptText!$D$1)","v":""},{"$f":"IF(OrigTable!C892=\"\",\"\",IF(LEN(OrigTable!C892)>255,LEFT(OrigTable!C892,250)&\". . .\",OrigTable!C892))","v":""},{"$f":"IF(OrigTable!C892=\"\",\"\",ScriptText!$E$1&CHAR(10)&ScriptText!$C$1)","v":""},{"$f":"IF(OrigTable!D892=\"\",\"\",ScriptText!$B$1&CHAR(10)&ScriptText!$D$1)","v":""},{"$f":"IF(OrigTable!D892=\"\",\"\",TEXT(OrigTable!D892,\"00\"))","v":""},{"$f":"IF(OrigTable!D892=\"\",\"\",ScriptText!$E$1&CHAR(10)&ScriptText!$C$1)","v":""},{"$f":"IF(OrigTable!E892=\"\",\"\",ScriptText!$B$1&CHAR(10)&ScriptText!$D$1)","v":""},{"$f":"IF(OrigTable!E892=\"\",\"\",TEXT(OrigTable!E892,\"00\"))","v":""},{"$f":"IF(OrigTable!E892=\"\",\"\",ScriptText!$E$1&CHAR(10)&ScriptText!$C$1)","v":""},{"$f":"IF(OrigTable!F892=\"\",\"\",ScriptText!$B$1&CHAR(10)&ScriptText!$D$1)","v":""},{"$f":"IF(OrigTable!F892=\"\",\"\",TEXT(OrigTable!F892,\"00\"))","v":""},{"$f":"IF(OrigTable!F892=\"\",\"\",ScriptText!$E$1&CHAR(10)&ScriptText!$C$1)","v":""},{"$f":"IF(OrigTable!G892=\"\",\"\",ScriptText!$B$1&CHAR(10)&ScriptText!$D$1)","v":""},{"$f":"IF(OrigTable!G892=\"\",\"\",TEXT(OrigTable!G892,\"00\"))","v":""},{"$f":"IF(OrigTable!G892=\"\",\"\",ScriptText!$E$1&CHAR(10)&ScriptText!$C$1)","v":""},0]
["\n\n\n",{"$f":"IF(OrigTable!A893=\"\",\"\",ScriptText!$B$1&CHAR(10)&ScriptText!$D$1)","v":""},{"$f":"IF(OrigTable!A893=\"\",\"\",TEXT(OrigTable!A893,\"00\"))","v":""},{"$f":"IF(OrigTable!A893=\"\",\"\",ScriptText!$E$1&CHAR(10)&ScriptText!$C$1)","v":""},{"$f":"IF(OrigTable!B893=\"\",\"\",ScriptText!$B$1&CHAR(10)&ScriptText!$D$1)","v":""},{"$f":"IF(OrigTable!B893=\"\",\"\",TEXT(OrigTable!B893,\"00\"))","v":""},{"$f":"IF(OrigTable!B893=\"\",\"\",ScriptText!$E$1&CHAR(10)&ScriptText!C888)","v":""},{"$f":"IF(OrigTable!C893=\"\",\"\",ScriptText!$B$1&CHAR(10)&ScriptText!$D$1)","v":""},{"$f":"IF(OrigTable!C893=\"\",\"\",IF(LEN(OrigTable!C893)>255,LEFT(OrigTable!C893,250)&\". . .\",OrigTable!C893))","v":""},{"$f":"IF(OrigTable!C893=\"\",\"\",ScriptText!$E$1&CHAR(10)&ScriptText!$C$1)","v":""},{"$f":"IF(OrigTable!D893=\"\",\"\",ScriptText!$B$1&CHAR(10)&ScriptText!$D$1)","v":""},{"$f":"IF(OrigTable!D893=\"\",\"\",TEXT(OrigTable!D893,\"00\"))","v":""},{"$f":"IF(OrigTable!D893=\"\",\"\",ScriptText!$E$1&CHAR(10)&ScriptText!$C$1)","v":""},{"$f":"IF(OrigTable!E893=\"\",\"\",ScriptText!$B$1&CHAR(10)&ScriptText!$D$1)","v":""},{"$f":"IF(OrigTable!E893=\"\",\"\",TEXT(OrigTable!E893,\"00\"))","v":""},{"$f":"IF(OrigTable!E893=\"\",\"\",ScriptText!$E$1&CHAR(10)&ScriptText!$C$1)","v":""},{"$f":"IF(OrigTable!F893=\"\",\"\",ScriptText!$B$1&CHAR(10)&ScriptText!$D$1)","v":""},{"$f":"IF(OrigTable!F893=\"\",\"\",TEXT(OrigTable!F893,\"00\"))","v":""},{"$f":"IF(OrigTable!F893=\"\",\"\",ScriptText!$E$1&CHAR(10)&ScriptText!$C$1)","v":""},{"$f":"IF(OrigTable!G893=\"\",\"\",ScriptText!$B$1&CHAR(10)&ScriptText!$D$1)","v":""},{"$f":"IF(OrigTable!G893=\"\",\"\",TEXT(OrigTable!G893,\"00\"))","v":""},{"$f":"IF(OrigTable!G893=\"\",\"\",ScriptText!$E$1&CHAR(10)&ScriptText!$C$1)","v":""},0]
["\n\n\n",{"$f":"IF(OrigTable!A894=\"\",\"\",ScriptText!$B$1&CHAR(10)&ScriptText!$D$1)","v":""},{"$f":"IF(OrigTable!A894=\"\",\"\",TEXT(OrigTable!A894,\"00\"))","v":""},{"$f":"IF(OrigTable!A894=\"\",\"\",ScriptText!$E$1&CHAR(10)&ScriptText!$C$1)","v":""},{"$f":"IF(OrigTable!B894=\"\",\"\",ScriptText!$B$1&CHAR(10)&ScriptText!$D$1)","v":""},{"$f":"IF(OrigTable!B894=\"\",\"\",TEXT(OrigTable!B894,\"00\"))","v":""},{"$f":"IF(OrigTable!B894=\"\",\"\",ScriptText!$E$1&CHAR(10)&ScriptText!C889)","v":""},{"$f":"IF(OrigTable!C894=\"\",\"\",ScriptText!$B$1&CHAR(10)&ScriptText!$D$1)","v":""},{"$f":"IF(OrigTable!C894=\"\",\"\",IF(LEN(OrigTable!C894)>255,LEFT(OrigTable!C894,250)&\". . .\",OrigTable!C894))","v":""},{"$f":"IF(OrigTable!C894=\"\",\"\",ScriptText!$E$1&CHAR(10)&ScriptText!$C$1)","v":""},{"$f":"IF(OrigTable!D894=\"\",\"\",ScriptText!$B$1&CHAR(10)&ScriptText!$D$1)","v":""},{"$f":"IF(OrigTable!D894=\"\",\"\",TEXT(OrigTable!D894,\"00\"))","v":""},{"$f":"IF(OrigTable!D894=\"\",\"\",ScriptText!$E$1&CHAR(10)&ScriptText!$C$1)","v":""},{"$f":"IF(OrigTable!E894=\"\",\"\",ScriptText!$B$1&CHAR(10)&ScriptText!$D$1)","v":""},{"$f":"IF(OrigTable!E894=\"\",\"\",TEXT(OrigTable!E894,\"00\"))","v":""},{"$f":"IF(OrigTable!E894=\"\",\"\",ScriptText!$E$1&CHAR(10)&ScriptText!$C$1)","v":""},{"$f":"IF(OrigTable!F894=\"\",\"\",ScriptText!$B$1&CHAR(10)&ScriptText!$D$1)","v":""},{"$f":"IF(OrigTable!F894=\"\",\"\",TEXT(OrigTable!F894,\"00\"))","v":""},{"$f":"IF(OrigTable!F894=\"\",\"\",ScriptText!$E$1&CHAR(10)&ScriptText!$C$1)","v":""},{"$f":"IF(OrigTable!G894=\"\",\"\",ScriptText!$B$1&CHAR(10)&ScriptText!$D$1)","v":""},{"$f":"IF(OrigTable!G894=\"\",\"\",TEXT(OrigTable!G894,\"00\"))","v":""},{"$f":"IF(OrigTable!G894=\"\",\"\",ScriptText!$E$1&CHAR(10)&ScriptText!$C$1)","v":""},0]
["\n\n\n",{"$f":"IF(OrigTable!A895=\"\",\"\",ScriptText!$B$1&CHAR(10)&ScriptText!$D$1)","v":""},{"$f":"IF(OrigTable!A895=\"\",\"\",TEXT(OrigTable!A895,\"00\"))","v":""},{"$f":"IF(OrigTable!A895=\"\",\"\",ScriptText!$E$1&CHAR(10)&ScriptText!$C$1)","v":""},{"$f":"IF(OrigTable!B895=\"\",\"\",ScriptText!$B$1&CHAR(10)&ScriptText!$D$1)","v":""},{"$f":"IF(OrigTable!B895=\"\",\"\",TEXT(OrigTable!B895,\"00\"))","v":""},{"$f":"IF(OrigTable!B895=\"\",\"\",ScriptText!$E$1&CHAR(10)&ScriptText!C890)","v":""},{"$f":"IF(OrigTable!C895=\"\",\"\",ScriptText!$B$1&CHAR(10)&ScriptText!$D$1)","v":""},{"$f":"IF(OrigTable!C895=\"\",\"\",IF(LEN(OrigTable!C895)>255,LEFT(OrigTable!C895,250)&\". . .\",OrigTable!C895))","v":""},{"$f":"IF(OrigTable!C895=\"\",\"\",ScriptText!$E$1&CHAR(10)&ScriptText!$C$1)","v":""},{"$f":"IF(OrigTable!D895=\"\",\"\",ScriptText!$B$1&CHAR(10)&ScriptText!$D$1)","v":""},{"$f":"IF(OrigTable!D895=\"\",\"\",TEXT(OrigTable!D895,\"00\"))","v":""},{"$f":"IF(OrigTable!D895=\"\",\"\",ScriptText!$E$1&CHAR(10)&ScriptText!$C$1)","v":""},{"$f":"IF(OrigTable!E895=\"\",\"\",ScriptText!$B$1&CHAR(10)&ScriptText!$D$1)","v":""},{"$f":"IF(OrigTable!E895=\"\",\"\",TEXT(OrigTable!E895,\"00\"))","v":""},{"$f":"IF(OrigTable!E895=\"\",\"\",ScriptText!$E$1&CHAR(10)&ScriptText!$C$1)","v":""},{"$f":"IF(OrigTable!F895=\"\",\"\",ScriptText!$B$1&CHAR(10)&ScriptText!$D$1)","v":""},{"$f":"IF(OrigTable!F895=\"\",\"\",TEXT(OrigTable!F895,\"00\"))","v":""},{"$f":"IF(OrigTable!F895=\"\",\"\",ScriptText!$E$1&CHAR(10)&ScriptText!$C$1)","v":""},{"$f":"IF(OrigTable!G895=\"\",\"\",ScriptText!$B$1&CHAR(10)&ScriptText!$D$1)","v":""},{"$f":"IF(OrigTable!G895=\"\",\"\",TEXT(OrigTable!G895,\"00\"))","v":""},{"$f":"IF(OrigTable!G895=\"\",\"\",ScriptText!$E$1&CHAR(10)&ScriptText!$C$1)","v":""},0]
["\n\n\n",{"$f":"IF(OrigTable!A896=\"\",\"\",ScriptText!$B$1&CHAR(10)&ScriptText!$D$1)","v":""},{"$f":"IF(OrigTable!A896=\"\",\"\",TEXT(OrigTable!A896,\"00\"))","v":""},{"$f":"IF(OrigTable!A896=\"\",\"\",ScriptText!$E$1&CHAR(10)&ScriptText!$C$1)","v":""},{"$f":"IF(OrigTable!B896=\"\",\"\",ScriptText!$B$1&CHAR(10)&ScriptText!$D$1)","v":""},{"$f":"IF(OrigTable!B896=\"\",\"\",TEXT(OrigTable!B896,\"00\"))","v":""},{"$f":"IF(OrigTable!B896=\"\",\"\",ScriptText!$E$1&CHAR(10)&ScriptText!C891)","v":""},{"$f":"IF(OrigTable!C896=\"\",\"\",ScriptText!$B$1&CHAR(10)&ScriptText!$D$1)","v":""},{"$f":"IF(OrigTable!C896=\"\",\"\",IF(LEN(OrigTable!C896)>255,LEFT(OrigTable!C896,250)&\". . .\",OrigTable!C896))","v":""},{"$f":"IF(OrigTable!C896=\"\",\"\",ScriptText!$E$1&CHAR(10)&ScriptText!$C$1)","v":""},{"$f":"IF(OrigTable!D896=\"\",\"\",ScriptText!$B$1&CHAR(10)&ScriptText!$D$1)","v":""},{"$f":"IF(OrigTable!D896=\"\",\"\",TEXT(OrigTable!D896,\"00\"))","v":""},{"$f":"IF(OrigTable!D896=\"\",\"\",ScriptText!$E$1&CHAR(10)&ScriptText!$C$1)","v":""},{"$f":"IF(OrigTable!E896=\"\",\"\",ScriptText!$B$1&CHAR(10)&ScriptText!$D$1)","v":""},{"$f":"IF(OrigTable!E896=\"\",\"\",TEXT(OrigTable!E896,\"00\"))","v":""},{"$f":"IF(OrigTable!E896=\"\",\"\",ScriptText!$E$1&CHAR(10)&ScriptText!$C$1)","v":""},{"$f":"IF(OrigTable!F896=\"\",\"\",ScriptText!$B$1&CHAR(10)&ScriptText!$D$1)","v":""},{"$f":"IF(OrigTable!F896=\"\",\"\",TEXT(OrigTable!F896,\"00\"))","v":""},{"$f":"IF(OrigTable!F896=\"\",\"\",ScriptText!$E$1&CHAR(10)&ScriptText!$C$1)","v":""},{"$f":"IF(OrigTable!G896=\"\",\"\",ScriptText!$B$1&CHAR(10)&ScriptText!$D$1)","v":""},{"$f":"IF(OrigTable!G896=\"\",\"\",TEXT(OrigTable!G896,\"00\"))","v":""},{"$f":"IF(OrigTable!G896=\"\",\"\",ScriptText!$E$1&CHAR(10)&ScriptText!$C$1)","v":""},0]
["\n\n\n",{"$f":"IF(OrigTable!A897=\"\",\"\",ScriptText!$B$1&CHAR(10)&ScriptText!$D$1)","v":""},{"$f":"IF(OrigTable!A897=\"\",\"\",TEXT(OrigTable!A897,\"00\"))","v":""},{"$f":"IF(OrigTable!A897=\"\",\"\",ScriptText!$E$1&CHAR(10)&ScriptText!$C$1)","v":""},{"$f":"IF(OrigTable!B897=\"\",\"\",ScriptText!$B$1&CHAR(10)&ScriptText!$D$1)","v":""},{"$f":"IF(OrigTable!B897=\"\",\"\",TEXT(OrigTable!B897,\"00\"))","v":""},{"$f":"IF(OrigTable!B897=\"\",\"\",ScriptText!$E$1&CHAR(10)&ScriptText!C892)","v":""},{"$f":"IF(OrigTable!C897=\"\",\"\",ScriptText!$B$1&CHAR(10)&ScriptText!$D$1)","v":""},{"$f":"IF(OrigTable!C897=\"\",\"\",IF(LEN(OrigTable!C897)>255,LEFT(OrigTable!C897,250)&\". . .\",OrigTable!C897))","v":""},{"$f":"IF(OrigTable!C897=\"\",\"\",ScriptText!$E$1&CHAR(10)&ScriptText!$C$1)","v":""},{"$f":"IF(OrigTable!D897=\"\",\"\",ScriptText!$B$1&CHAR(10)&ScriptText!$D$1)","v":""},{"$f":"IF(OrigTable!D897=\"\",\"\",TEXT(OrigTable!D897,\"00\"))","v":""},{"$f":"IF(OrigTable!D897=\"\",\"\",ScriptText!$E$1&CHAR(10)&ScriptText!$C$1)","v":""},{"$f":"IF(OrigTable!E897=\"\",\"\",ScriptText!$B$1&CHAR(10)&ScriptText!$D$1)","v":""},{"$f":"IF(OrigTable!E897=\"\",\"\",TEXT(OrigTable!E897,\"00\"))","v":""},{"$f":"IF(OrigTable!E897=\"\",\"\",ScriptText!$E$1&CHAR(10)&ScriptText!$C$1)","v":""},{"$f":"IF(OrigTable!F897=\"\",\"\",ScriptText!$B$1&CHAR(10)&ScriptText!$D$1)","v":""},{"$f":"IF(OrigTable!F897=\"\",\"\",TEXT(OrigTable!F897,\"00\"))","v":""},{"$f":"IF(OrigTable!F897=\"\",\"\",ScriptText!$E$1&CHAR(10)&ScriptText!$C$1)","v":""},{"$f":"IF(OrigTable!G897=\"\",\"\",ScriptText!$B$1&CHAR(10)&ScriptText!$D$1)","v":""},{"$f":"IF(OrigTable!G897=\"\",\"\",TEXT(OrigTable!G897,\"00\"))","v":""},{"$f":"IF(OrigTable!G897=\"\",\"\",ScriptText!$E$1&CHAR(10)&ScriptText!$C$1)","v":""},0]
["\n\n\n",{"$f":"IF(OrigTable!A898=\"\",\"\",ScriptText!$B$1&CHAR(10)&ScriptText!$D$1)","v":""},{"$f":"IF(OrigTable!A898=\"\",\"\",TEXT(OrigTable!A898,\"00\"))","v":""},{"$f":"IF(OrigTable!A898=\"\",\"\",ScriptText!$E$1&CHAR(10)&ScriptText!$C$1)","v":""},{"$f":"IF(OrigTable!B898=\"\",\"\",ScriptText!$B$1&CHAR(10)&ScriptText!$D$1)","v":""},{"$f":"IF(OrigTable!B898=\"\",\"\",TEXT(OrigTable!B898,\"00\"))","v":""},{"$f":"IF(OrigTable!B898=\"\",\"\",ScriptText!$E$1&CHAR(10)&ScriptText!C893)","v":""},{"$f":"IF(OrigTable!C898=\"\",\"\",ScriptText!$B$1&CHAR(10)&ScriptText!$D$1)","v":""},{"$f":"IF(OrigTable!C898=\"\",\"\",IF(LEN(OrigTable!C898)>255,LEFT(OrigTable!C898,250)&\". . .\",OrigTable!C898))","v":""},{"$f":"IF(OrigTable!C898=\"\",\"\",ScriptText!$E$1&CHAR(10)&ScriptText!$C$1)","v":""},{"$f":"IF(OrigTable!D898=\"\",\"\",ScriptText!$B$1&CHAR(10)&ScriptText!$D$1)","v":""},{"$f":"IF(OrigTable!D898=\"\",\"\",TEXT(OrigTable!D898,\"00\"))","v":""},{"$f":"IF(OrigTable!D898=\"\",\"\",ScriptText!$E$1&CHAR(10)&ScriptText!$C$1)","v":""},{"$f":"IF(OrigTable!E898=\"\",\"\",ScriptText!$B$1&CHAR(10)&ScriptText!$D$1)","v":""},{"$f":"IF(OrigTable!E898=\"\",\"\",TEXT(OrigTable!E898,\"00\"))","v":""},{"$f":"IF(OrigTable!E898=\"\",\"\",ScriptText!$E$1&CHAR(10)&ScriptText!$C$1)","v":""},{"$f":"IF(OrigTable!F898=\"\",\"\",ScriptText!$B$1&CHAR(10)&ScriptText!$D$1)","v":""},{"$f":"IF(OrigTable!F898=\"\",\"\",TEXT(OrigTable!F898,\"00\"))","v":""},{"$f":"IF(OrigTable!F898=\"\",\"\",ScriptText!$E$1&CHAR(10)&ScriptText!$C$1)","v":""},{"$f":"IF(OrigTable!G898=\"\",\"\",ScriptText!$B$1&CHAR(10)&ScriptText!$D$1)","v":""},{"$f":"IF(OrigTable!G898=\"\",\"\",TEXT(OrigTable!G898,\"00\"))","v":""},{"$f":"IF(OrigTable!G898=\"\",\"\",ScriptText!$E$1&CHAR(10)&ScriptText!$C$1)","v":""},0]
["\n\n\n",{"$f":"IF(OrigTable!A899=\"\",\"\",ScriptText!$B$1&CHAR(10)&ScriptText!$D$1)","v":""},{"$f":"IF(OrigTable!A899=\"\",\"\",TEXT(OrigTable!A899,\"00\"))","v":""},{"$f":"IF(OrigTable!A899=\"\",\"\",ScriptText!$E$1&CHAR(10)&ScriptText!$C$1)","v":""},{"$f":"IF(OrigTable!B899=\"\",\"\",ScriptText!$B$1&CHAR(10)&ScriptText!$D$1)","v":""},{"$f":"IF(OrigTable!B899=\"\",\"\",TEXT(OrigTable!B899,\"00\"))","v":""},{"$f":"IF(OrigTable!B899=\"\",\"\",ScriptText!$E$1&CHAR(10)&ScriptText!C894)","v":""},{"$f":"IF(OrigTable!C899=\"\",\"\",ScriptText!$B$1&CHAR(10)&ScriptText!$D$1)","v":""},{"$f":"IF(OrigTable!C899=\"\",\"\",IF(LEN(OrigTable!C899)>255,LEFT(OrigTable!C899,250)&\". . .\",OrigTable!C899))","v":""},{"$f":"IF(OrigTable!C899=\"\",\"\",ScriptText!$E$1&CHAR(10)&ScriptText!$C$1)","v":""},{"$f":"IF(OrigTable!D899=\"\",\"\",ScriptText!$B$1&CHAR(10)&ScriptText!$D$1)","v":""},{"$f":"IF(OrigTable!D899=\"\",\"\",TEXT(OrigTable!D899,\"00\"))","v":""},{"$f":"IF(OrigTable!D899=\"\",\"\",ScriptText!$E$1&CHAR(10)&ScriptText!$C$1)","v":""},{"$f":"IF(OrigTable!E899=\"\",\"\",ScriptText!$B$1&CHAR(10)&ScriptText!$D$1)","v":""},{"$f":"IF(OrigTable!E899=\"\",\"\",TEXT(OrigTable!E899,\"00\"))","v":""},{"$f":"IF(OrigTable!E899=\"\",\"\",ScriptText!$E$1&CHAR(10)&ScriptText!$C$1)","v":""},{"$f":"IF(OrigTable!F899=\"\",\"\",ScriptText!$B$1&CHAR(10)&ScriptText!$D$1)","v":""},{"$f":"IF(OrigTable!F899=\"\",\"\",TEXT(OrigTable!F899,\"00\"))","v":""},{"$f":"IF(OrigTable!F899=\"\",\"\",ScriptText!$E$1&CHAR(10)&ScriptText!$C$1)","v":""},{"$f":"IF(OrigTable!G899=\"\",\"\",ScriptText!$B$1&CHAR(10)&ScriptText!$D$1)","v":""},{"$f":"IF(OrigTable!G899=\"\",\"\",TEXT(OrigTable!G899,\"00\"))","v":""},{"$f":"IF(OrigTable!G899=\"\",\"\",ScriptText!$E$1&CHAR(10)&ScriptText!$C$1)","v":""},0]
["\n\n\n",{"$f":"IF(OrigTable!A900=\"\",\"\",ScriptText!$B$1&CHAR(10)&ScriptText!$D$1)","v":""},{"$f":"IF(OrigTable!A900=\"\",\"\",TEXT(OrigTable!A900,\"00\"))","v":""},{"$f":"IF(OrigTable!A900=\"\",\"\",ScriptText!$E$1&CHAR(10)&ScriptText!$C$1)","v":""},{"$f":"IF(OrigTable!B900=\"\",\"\",ScriptText!$B$1&CHAR(10)&ScriptText!$D$1)","v":""},{"$f":"IF(OrigTable!B900=\"\",\"\",TEXT(OrigTable!B900,\"00\"))","v":""},{"$f":"IF(OrigTable!B900=\"\",\"\",ScriptText!$E$1&CHAR(10)&ScriptText!C895)","v":""},{"$f":"IF(OrigTable!C900=\"\",\"\",ScriptText!$B$1&CHAR(10)&ScriptText!$D$1)","v":""},{"$f":"IF(OrigTable!C900=\"\",\"\",IF(LEN(OrigTable!C900)>255,LEFT(OrigTable!C900,250)&\". . .\",OrigTable!C900))","v":""},{"$f":"IF(OrigTable!C900=\"\",\"\",ScriptText!$E$1&CHAR(10)&ScriptText!$C$1)","v":""},{"$f":"IF(OrigTable!D900=\"\",\"\",ScriptText!$B$1&CHAR(10)&ScriptText!$D$1)","v":""},{"$f":"IF(OrigTable!D900=\"\",\"\",TEXT(OrigTable!D900,\"00\"))","v":""},{"$f":"IF(OrigTable!D900=\"\",\"\",ScriptText!$E$1&CHAR(10)&ScriptText!$C$1)","v":""},{"$f":"IF(OrigTable!E900=\"\",\"\",ScriptText!$B$1&CHAR(10)&ScriptText!$D$1)","v":""},{"$f":"IF(OrigTable!E900=\"\",\"\",TEXT(OrigTable!E900,\"00\"))","v":""},{"$f":"IF(OrigTable!E900=\"\",\"\",ScriptText!$E$1&CHAR(10)&ScriptText!$C$1)","v":""},{"$f":"IF(OrigTable!F900=\"\",\"\",ScriptText!$B$1&CHAR(10)&ScriptText!$D$1)","v":""},{"$f":"IF(OrigTable!F900=\"\",\"\",TEXT(OrigTable!F900,\"00\"))","v":""},{"$f":"IF(OrigTable!F900=\"\",\"\",ScriptText!$E$1&CHAR(10)&ScriptText!$C$1)","v":""},{"$f":"IF(OrigTable!G900=\"\",\"\",ScriptText!$B$1&CHAR(10)&ScriptText!$D$1)","v":""},{"$f":"IF(OrigTable!G900=\"\",\"\",TEXT(OrigTable!G900,\"00\"))","v":""},{"$f":"IF(OrigTable!G900=\"\",\"\",ScriptText!$E$1&CHAR(10)&ScriptText!$C$1)","v":""},0]
["\n\n\n",{"$f":"IF(OrigTable!A901=\"\",\"\",ScriptText!$B$1&CHAR(10)&ScriptText!$D$1)","v":""},{"$f":"IF(OrigTable!A901=\"\",\"\",TEXT(OrigTable!A901,\"00\"))","v":""},{"$f":"IF(OrigTable!A901=\"\",\"\",ScriptText!$E$1&CHAR(10)&ScriptText!$C$1)","v":""},{"$f":"IF(OrigTable!B901=\"\",\"\",ScriptText!$B$1&CHAR(10)&ScriptText!$D$1)","v":""},{"$f":"IF(OrigTable!B901=\"\",\"\",TEXT(OrigTable!B901,\"00\"))","v":""},{"$f":"IF(OrigTable!B901=\"\",\"\",ScriptText!$E$1&CHAR(10)&ScriptText!C896)","v":""},{"$f":"IF(OrigTable!C901=\"\",\"\",ScriptText!$B$1&CHAR(10)&ScriptText!$D$1)","v":""},{"$f":"IF(OrigTable!C901=\"\",\"\",IF(LEN(OrigTable!C901)>255,LEFT(OrigTable!C901,250)&\". . .\",OrigTable!C901))","v":""},{"$f":"IF(OrigTable!C901=\"\",\"\",ScriptText!$E$1&CHAR(10)&ScriptText!$C$1)","v":""},{"$f":"IF(OrigTable!D901=\"\",\"\",ScriptText!$B$1&CHAR(10)&ScriptText!$D$1)","v":""},{"$f":"IF(OrigTable!D901=\"\",\"\",TEXT(OrigTable!D901,\"00\"))","v":""},{"$f":"IF(OrigTable!D901=\"\",\"\",ScriptText!$E$1&CHAR(10)&ScriptText!$C$1)","v":""},{"$f":"IF(OrigTable!E901=\"\",\"\",ScriptText!$B$1&CHAR(10)&ScriptText!$D$1)","v":""},{"$f":"IF(OrigTable!E901=\"\",\"\",TEXT(OrigTable!E901,\"00\"))","v":""},{"$f":"IF(OrigTable!E901=\"\",\"\",ScriptText!$E$1&CHAR(10)&ScriptText!$C$1)","v":""},{"$f":"IF(OrigTable!F901=\"\",\"\",ScriptText!$B$1&CHAR(10)&ScriptText!$D$1)","v":""},{"$f":"IF(OrigTable!F901=\"\",\"\",TEXT(OrigTable!F901,\"00\"))","v":""},{"$f":"IF(OrigTable!F901=\"\",\"\",ScriptText!$E$1&CHAR(10)&ScriptText!$C$1)","v":""},{"$f":"IF(OrigTable!G901=\"\",\"\",ScriptText!$B$1&CHAR(10)&ScriptText!$D$1)","v":""},{"$f":"IF(OrigTable!G901=\"\",\"\",TEXT(OrigTable!G901,\"00\"))","v":""},{"$f":"IF(OrigTable!G901=\"\",\"\",ScriptText!$E$1&CHAR(10)&ScriptText!$C$1)","v":""},0]
["\n\n\n",{"$f":"IF(OrigTable!A902=\"\",\"\",ScriptText!$B$1&CHAR(10)&ScriptText!$D$1)","v":""},{"$f":"IF(OrigTable!A902=\"\",\"\",TEXT(OrigTable!A902,\"00\"))","v":""},{"$f":"IF(OrigTable!A902=\"\",\"\",ScriptText!$E$1&CHAR(10)&ScriptText!$C$1)","v":""},{"$f":"IF(OrigTable!B902=\"\",\"\",ScriptText!$B$1&CHAR(10)&ScriptText!$D$1)","v":""},{"$f":"IF(OrigTable!B902=\"\",\"\",TEXT(OrigTable!B902,\"00\"))","v":""},{"$f":"IF(OrigTable!B902=\"\",\"\",ScriptText!$E$1&CHAR(10)&ScriptText!C897)","v":""},{"$f":"IF(OrigTable!C902=\"\",\"\",ScriptText!$B$1&CHAR(10)&ScriptText!$D$1)","v":""},{"$f":"IF(OrigTable!C902=\"\",\"\",IF(LEN(OrigTable!C902)>255,LEFT(OrigTable!C902,250)&\". . .\",OrigTable!C902))","v":""},{"$f":"IF(OrigTable!C902=\"\",\"\",ScriptText!$E$1&CHAR(10)&ScriptText!$C$1)","v":""},{"$f":"IF(OrigTable!D902=\"\",\"\",ScriptText!$B$1&CHAR(10)&ScriptText!$D$1)","v":""},{"$f":"IF(OrigTable!D902=\"\",\"\",TEXT(OrigTable!D902,\"00\"))","v":""},{"$f":"IF(OrigTable!D902=\"\",\"\",ScriptText!$E$1&CHAR(10)&ScriptText!$C$1)","v":""},{"$f":"IF(OrigTable!E902=\"\",\"\",ScriptText!$B$1&CHAR(10)&ScriptText!$D$1)","v":""},{"$f":"IF(OrigTable!E902=\"\",\"\",TEXT(OrigTable!E902,\"00\"))","v":""},{"$f":"IF(OrigTable!E902=\"\",\"\",ScriptText!$E$1&CHAR(10)&ScriptText!$C$1)","v":""},{"$f":"IF(OrigTable!F902=\"\",\"\",ScriptText!$B$1&CHAR(10)&ScriptText!$D$1)","v":""},{"$f":"IF(OrigTable!F902=\"\",\"\",TEXT(OrigTable!F902,\"00\"))","v":""},{"$f":"IF(OrigTable!F902=\"\",\"\",ScriptText!$E$1&CHAR(10)&ScriptText!$C$1)","v":""},{"$f":"IF(OrigTable!G902=\"\",\"\",ScriptText!$B$1&CHAR(10)&ScriptText!$D$1)","v":""},{"$f":"IF(OrigTable!G902=\"\",\"\",TEXT(OrigTable!G902,\"00\"))","v":""},{"$f":"IF(OrigTable!G902=\"\",\"\",ScriptText!$E$1&CHAR(10)&ScriptText!$C$1)","v":""},{"$f":"IF(LEN(A902)>3,ROW(),0)","v":0}]
["\n\n\n",{"$f":"IF(OrigTable!A903=\"\",\"\",ScriptText!$B$1&CHAR(10)&ScriptText!$D$1)","v":""},{"$f":"IF(OrigTable!A903=\"\",\"\",TEXT(OrigTable!A903,\"00\"))","v":""},{"$f":"IF(OrigTable!A903=\"\",\"\",ScriptText!$E$1&CHAR(10)&ScriptText!$C$1)","v":""},{"$f":"IF(OrigTable!B903=\"\",\"\",ScriptText!$B$1&CHAR(10)&ScriptText!$D$1)","v":""},{"$f":"IF(OrigTable!B903=\"\",\"\",TEXT(OrigTable!B903,\"00\"))","v":""},{"$f":"IF(OrigTable!B903=\"\",\"\",ScriptText!$E$1&CHAR(10)&ScriptText!C898)","v":""},{"$f":"IF(OrigTable!C903=\"\",\"\",ScriptText!$B$1&CHAR(10)&ScriptText!$D$1)","v":""},{"$f":"IF(OrigTable!C903=\"\",\"\",IF(LEN(OrigTable!C903)>255,LEFT(OrigTable!C903,250)&\". . .\",OrigTable!C903))","v":""},{"$f":"IF(OrigTable!C903=\"\",\"\",ScriptText!$E$1&CHAR(10)&ScriptText!$C$1)","v":""},{"$f":"IF(OrigTable!D903=\"\",\"\",ScriptText!$B$1&CHAR(10)&ScriptText!$D$1)","v":""},{"$f":"IF(OrigTable!D903=\"\",\"\",TEXT(OrigTable!D903,\"00\"))","v":""},{"$f":"IF(OrigTable!D903=\"\",\"\",ScriptText!$E$1&CHAR(10)&ScriptText!$C$1)","v":""},{"$f":"IF(OrigTable!E903=\"\",\"\",ScriptText!$B$1&CHAR(10)&ScriptText!$D$1)","v":""},{"$f":"IF(OrigTable!E903=\"\",\"\",TEXT(OrigTable!E903,\"00\"))","v":""},{"$f":"IF(OrigTable!E903=\"\",\"\",ScriptText!$E$1&CHAR(10)&ScriptText!$C$1)","v":""},{"$f":"IF(OrigTable!F903=\"\",\"\",ScriptText!$B$1&CHAR(10)&ScriptText!$D$1)","v":""},{"$f":"IF(OrigTable!F903=\"\",\"\",TEXT(OrigTable!F903,\"00\"))","v":""},{"$f":"IF(OrigTable!F903=\"\",\"\",ScriptText!$E$1&CHAR(10)&ScriptText!$C$1)","v":""},{"$f":"IF(OrigTable!G903=\"\",\"\",ScriptText!$B$1&CHAR(10)&ScriptText!$D$1)","v":""},{"$f":"IF(OrigTable!G903=\"\",\"\",TEXT(OrigTable!G903,\"00\"))","v":""},{"$f":"IF(OrigTable!G903=\"\",\"\",ScriptText!$E$1&CHAR(10)&ScriptText!$C$1)","v":""},0]
["\n\n\n",{"$f":"IF(OrigTable!A904=\"\",\"\",ScriptText!$B$1&CHAR(10)&ScriptText!$D$1)","v":""},{"$f":"IF(OrigTable!A904=\"\",\"\",TEXT(OrigTable!A904,\"00\"))","v":""},{"$f":"IF(OrigTable!A904=\"\",\"\",ScriptText!$E$1&CHAR(10)&ScriptText!$C$1)","v":""},{"$f":"IF(OrigTable!B904=\"\",\"\",ScriptText!$B$1&CHAR(10)&ScriptText!$D$1)","v":""},{"$f":"IF(OrigTable!B904=\"\",\"\",TEXT(OrigTable!B904,\"00\"))","v":""},{"$f":"IF(OrigTable!B904=\"\",\"\",ScriptText!$E$1&CHAR(10)&ScriptText!C899)","v":""},{"$f":"IF(OrigTable!C904=\"\",\"\",ScriptText!$B$1&CHAR(10)&ScriptText!$D$1)","v":""},{"$f":"IF(OrigTable!C904=\"\",\"\",IF(LEN(OrigTable!C904)>255,LEFT(OrigTable!C904,250)&\". . .\",OrigTable!C904))","v":""},{"$f":"IF(OrigTable!C904=\"\",\"\",ScriptText!$E$1&CHAR(10)&ScriptText!$C$1)","v":""},{"$f":"IF(OrigTable!D904=\"\",\"\",ScriptText!$B$1&CHAR(10)&ScriptText!$D$1)","v":""},{"$f":"IF(OrigTable!D904=\"\",\"\",TEXT(OrigTable!D904,\"00\"))","v":""},{"$f":"IF(OrigTable!D904=\"\",\"\",ScriptText!$E$1&CHAR(10)&ScriptText!$C$1)","v":""},{"$f":"IF(OrigTable!E904=\"\",\"\",ScriptText!$B$1&CHAR(10)&ScriptText!$D$1)","v":""},{"$f":"IF(OrigTable!E904=\"\",\"\",TEXT(OrigTable!E904,\"00\"))","v":""},{"$f":"IF(OrigTable!E904=\"\",\"\",ScriptText!$E$1&CHAR(10)&ScriptText!$C$1)","v":""},{"$f":"IF(OrigTable!F904=\"\",\"\",ScriptText!$B$1&CHAR(10)&ScriptText!$D$1)","v":""},{"$f":"IF(OrigTable!F904=\"\",\"\",TEXT(OrigTable!F904,\"00\"))","v":""},{"$f":"IF(OrigTable!F904=\"\",\"\",ScriptText!$E$1&CHAR(10)&ScriptText!$C$1)","v":""},{"$f":"IF(OrigTable!G904=\"\",\"\",ScriptText!$B$1&CHAR(10)&ScriptText!$D$1)","v":""},{"$f":"IF(OrigTable!G904=\"\",\"\",TEXT(OrigTable!G904,\"00\"))","v":""},{"$f":"IF(OrigTable!G904=\"\",\"\",ScriptText!$E$1&CHAR(10)&ScriptText!$C$1)","v":""},0]
[{"$f":"_xlfn.TEXTJOIN(\"\",TRUE,B905:D905)&CHAR(10)&_xlfn.TEXTJOIN(\"\",TRUE,E905:G905)&CHAR(10)&_xlfn.TEXTJOIN(\"\",TRUE,H905:J905)&CHAR(10)&_xlfn.TEXTJOIN(\"\",TRUE,K905:M905)&_xlfn.TEXTJOIN(\"\",TRUE,N905:P905)&_xlfn.TEXTJOIN(\"\",TRUE,Q905:S905)&_xlfn.TEXTJOIN(\"\",TRUE,T905:V905)","v":"\n\n\n"},{"$f":"IF(OrigTable!A905=\"\",\"\",ScriptText!$B$1&CHAR(10)&ScriptText!$D$1)","v":""},{"$f":"IF(OrigTable!A905=\"\",\"\",TEXT(OrigTable!A905,\"00\"))","v":""},{"$f":"IF(OrigTable!A905=\"\",\"\",ScriptText!$E$1&CHAR(10)&ScriptText!$C$1)","v":""},{"$f":"IF(OrigTable!B905=\"\",\"\",ScriptText!$B$1&CHAR(10)&ScriptText!$D$1)","v":""},{"$f":"IF(OrigTable!B905=\"\",\"\",TEXT(OrigTable!B905,\"00\"))","v":""},{"$f":"IF(OrigTable!B905=\"\",\"\",ScriptText!$E$1&CHAR(10)&ScriptText!C900)","v":""},{"$f":"IF(OrigTable!C905=\"\",\"\",ScriptText!$B$1&CHAR(10)&ScriptText!$D$1)","v":""},{"$f":"IF(OrigTable!C905=\"\",\"\",IF(LEN(OrigTable!C905)>255,LEFT(OrigTable!C905,250)&\". . .\",OrigTable!C905))","v":""},{"$f":"IF(OrigTable!C905=\"\",\"\",ScriptText!$E$1&CHAR(10)&ScriptText!$C$1)","v":""},{"$f":"IF(OrigTable!D905=\"\",\"\",ScriptText!$B$1&CHAR(10)&ScriptText!$D$1)","v":""},{"$f":"IF(OrigTable!D905=\"\",\"\",TEXT(OrigTable!D905,\"00\"))","v":""},{"$f":"IF(OrigTable!D905=\"\",\"\",ScriptText!$E$1&CHAR(10)&ScriptText!$C$1)","v":""},{"$f":"IF(OrigTable!E905=\"\",\"\",ScriptText!$B$1&CHAR(10)&ScriptText!$D$1)","v":""},{"$f":"IF(OrigTable!E905=\"\",\"\",TEXT(OrigTable!E905,\"00\"))","v":""},{"$f":"IF(OrigTable!E905=\"\",\"\",ScriptText!$E$1&CHAR(10)&ScriptText!$C$1)","v":""},{"$f":"IF(OrigTable!F905=\"\",\"\",ScriptText!$B$1&CHAR(10)&ScriptText!$D$1)","v":""},{"$f":"IF(OrigTable!F905=\"\",\"\",TEXT(OrigTable!F905,\"00\"))","v":""},{"$f":"IF(OrigTable!F905=\"\",\"\",ScriptText!$E$1&CHAR(10)&ScriptText!$C$1)","v":""},{"$f":"IF(OrigTable!G905=\"\",\"\",ScriptText!$B$1&CHAR(10)&ScriptText!$D$1)","v":""},{"$f":"IF(OrigTable!G905=\"\",\"\",TEXT(OrigTable!G905,\"00\"))","v":""},{"$f":"IF(OrigTable!G905=\"\",\"\",ScriptText!$E$1&CHAR(10)&ScriptText!$C$1)","v":""},0]
["\n\n\n",{"$f":"IF(OrigTable!A906=\"\",\"\",ScriptText!$B$1&CHAR(10)&ScriptText!$D$1)","v":""},{"$f":"IF(OrigTable!A906=\"\",\"\",TEXT(OrigTable!A906,\"00\"))","v":""},{"$f":"IF(OrigTable!A906=\"\",\"\",ScriptText!$E$1&CHAR(10)&ScriptText!$C$1)","v":""},{"$f":"IF(OrigTable!B906=\"\",\"\",ScriptText!$B$1&CHAR(10)&ScriptText!$D$1)","v":""},{"$f":"IF(OrigTable!B906=\"\",\"\",TEXT(OrigTable!B906,\"00\"))","v":""},{"$f":"IF(OrigTable!B906=\"\",\"\",ScriptText!$E$1&CHAR(10)&ScriptText!C901)","v":""},{"$f":"IF(OrigTable!C906=\"\",\"\",ScriptText!$B$1&CHAR(10)&ScriptText!$D$1)","v":""},{"$f":"IF(OrigTable!C906=\"\",\"\",IF(LEN(OrigTable!C906)>255,LEFT(OrigTable!C906,250)&\". . .\",OrigTable!C906))","v":""},{"$f":"IF(OrigTable!C906=\"\",\"\",ScriptText!$E$1&CHAR(10)&ScriptText!$C$1)","v":""},{"$f":"IF(OrigTable!D906=\"\",\"\",ScriptText!$B$1&CHAR(10)&ScriptText!$D$1)","v":""},{"$f":"IF(OrigTable!D906=\"\",\"\",TEXT(OrigTable!D906,\"00\"))","v":""},{"$f":"IF(OrigTable!D906=\"\",\"\",ScriptText!$E$1&CHAR(10)&ScriptText!$C$1)","v":""},{"$f":"IF(OrigTable!E906=\"\",\"\",ScriptText!$B$1&CHAR(10)&ScriptText!$D$1)","v":""},{"$f":"IF(OrigTable!E906=\"\",\"\",TEXT(OrigTable!E906,\"00\"))","v":""},{"$f":"IF(OrigTable!E906=\"\",\"\",ScriptText!$E$1&CHAR(10)&ScriptText!$C$1)","v":""},{"$f":"IF(OrigTable!F906=\"\",\"\",ScriptText!$B$1&CHAR(10)&ScriptText!$D$1)","v":""},{"$f":"IF(OrigTable!F906=\"\",\"\",TEXT(OrigTable!F906,\"00\"))","v":""},{"$f":"IF(OrigTable!F906=\"\",\"\",ScriptText!$E$1&CHAR(10)&ScriptText!$C$1)","v":""},{"$f":"IF(OrigTable!G906=\"\",\"\",ScriptText!$B$1&CHAR(10)&ScriptText!$D$1)","v":""},{"$f":"IF(OrigTable!G906=\"\",\"\",TEXT(OrigTable!G906,\"00\"))","v":""},{"$f":"IF(OrigTable!G906=\"\",\"\",ScriptText!$E$1&CHAR(10)&ScriptText!$C$1)","v":""},0]
["\n\n\n",{"$f":"IF(OrigTable!A907=\"\",\"\",ScriptText!$B$1&CHAR(10)&ScriptText!$D$1)","v":""},{"$f":"IF(OrigTable!A907=\"\",\"\",TEXT(OrigTable!A907,\"00\"))","v":""},{"$f":"IF(OrigTable!A907=\"\",\"\",ScriptText!$E$1&CHAR(10)&ScriptText!$C$1)","v":""},{"$f":"IF(OrigTable!B907=\"\",\"\",ScriptText!$B$1&CHAR(10)&ScriptText!$D$1)","v":""},{"$f":"IF(OrigTable!B907=\"\",\"\",TEXT(OrigTable!B907,\"00\"))","v":""},{"$f":"IF(OrigTable!B907=\"\",\"\",ScriptText!$E$1&CHAR(10)&ScriptText!C902)","v":""},{"$f":"IF(OrigTable!C907=\"\",\"\",ScriptText!$B$1&CHAR(10)&ScriptText!$D$1)","v":""},{"$f":"IF(OrigTable!C907=\"\",\"\",IF(LEN(OrigTable!C907)>255,LEFT(OrigTable!C907,250)&\". . .\",OrigTable!C907))","v":""},{"$f":"IF(OrigTable!C907=\"\",\"\",ScriptText!$E$1&CHAR(10)&ScriptText!$C$1)","v":""},{"$f":"IF(OrigTable!D907=\"\",\"\",ScriptText!$B$1&CHAR(10)&ScriptText!$D$1)","v":""},{"$f":"IF(OrigTable!D907=\"\",\"\",TEXT(OrigTable!D907,\"00\"))","v":""},{"$f":"IF(OrigTable!D907=\"\",\"\",ScriptText!$E$1&CHAR(10)&ScriptText!$C$1)","v":""},{"$f":"IF(OrigTable!E907=\"\",\"\",ScriptText!$B$1&CHAR(10)&ScriptText!$D$1)","v":""},{"$f":"IF(OrigTable!E907=\"\",\"\",TEXT(OrigTable!E907,\"00\"))","v":""},{"$f":"IF(OrigTable!E907=\"\",\"\",ScriptText!$E$1&CHAR(10)&ScriptText!$C$1)","v":""},{"$f":"IF(OrigTable!F907=\"\",\"\",ScriptText!$B$1&CHAR(10)&ScriptText!$D$1)","v":""},{"$f":"IF(OrigTable!F907=\"\",\"\",TEXT(OrigTable!F907,\"00\"))","v":""},{"$f":"IF(OrigTable!F907=\"\",\"\",ScriptText!$E$1&CHAR(10)&ScriptText!$C$1)","v":""},{"$f":"IF(OrigTable!G907=\"\",\"\",ScriptText!$B$1&CHAR(10)&ScriptText!$D$1)","v":""},{"$f":"IF(OrigTable!G907=\"\",\"\",TEXT(OrigTable!G907,\"00\"))","v":""},{"$f":"IF(OrigTable!G907=\"\",\"\",ScriptText!$E$1&CHAR(10)&ScriptText!$C$1)","v":""},0]
["\n\n\n",{"$f":"IF(OrigTable!A908=\"\",\"\",ScriptText!$B$1&CHAR(10)&ScriptText!$D$1)","v":""},{"$f":"IF(OrigTable!A908=\"\",\"\",TEXT(OrigTable!A908,\"00\"))","v":""},{"$f":"IF(OrigTable!A908=\"\",\"\",ScriptText!$E$1&CHAR(10)&ScriptText!$C$1)","v":""},{"$f":"IF(OrigTable!B908=\"\",\"\",ScriptText!$B$1&CHAR(10)&ScriptText!$D$1)","v":""},{"$f":"IF(OrigTable!B908=\"\",\"\",TEXT(OrigTable!B908,\"00\"))","v":""},{"$f":"IF(OrigTable!B908=\"\",\"\",ScriptText!$E$1&CHAR(10)&ScriptText!C903)","v":""},{"$f":"IF(OrigTable!C908=\"\",\"\",ScriptText!$B$1&CHAR(10)&ScriptText!$D$1)","v":""},{"$f":"IF(OrigTable!C908=\"\",\"\",IF(LEN(OrigTable!C908)>255,LEFT(OrigTable!C908,250)&\". . .\",OrigTable!C908))","v":""},{"$f":"IF(OrigTable!C908=\"\",\"\",ScriptText!$E$1&CHAR(10)&ScriptText!$C$1)","v":""},{"$f":"IF(OrigTable!D908=\"\",\"\",ScriptText!$B$1&CHAR(10)&ScriptText!$D$1)","v":""},{"$f":"IF(OrigTable!D908=\"\",\"\",TEXT(OrigTable!D908,\"00\"))","v":""},{"$f":"IF(OrigTable!D908=\"\",\"\",ScriptText!$E$1&CHAR(10)&ScriptText!$C$1)","v":""},{"$f":"IF(OrigTable!E908=\"\",\"\",ScriptText!$B$1&CHAR(10)&ScriptText!$D$1)","v":""},{"$f":"IF(OrigTable!E908=\"\",\"\",TEXT(OrigTable!E908,\"00\"))","v":""},{"$f":"IF(OrigTable!E908=\"\",\"\",ScriptText!$E$1&CHAR(10)&ScriptText!$C$1)","v":""},{"$f":"IF(OrigTable!F908=\"\",\"\",ScriptText!$B$1&CHAR(10)&ScriptText!$D$1)","v":""},{"$f":"IF(OrigTable!F908=\"\",\"\",TEXT(OrigTable!F908,\"00\"))","v":""},{"$f":"IF(OrigTable!F908=\"\",\"\",ScriptText!$E$1&CHAR(10)&ScriptText!$C$1)","v":""},{"$f":"IF(OrigTable!G908=\"\",\"\",ScriptText!$B$1&CHAR(10)&ScriptText!$D$1)","v":""},{"$f":"IF(OrigTable!G908=\"\",\"\",TEXT(OrigTable!G908,\"00\"))","v":""},{"$f":"IF(OrigTable!G908=\"\",\"\",ScriptText!$E$1&CHAR(10)&ScriptText!$C$1)","v":""},0]
["\n\n\n",{"$f":"IF(OrigTable!A909=\"\",\"\",ScriptText!$B$1&CHAR(10)&ScriptText!$D$1)","v":""},{"$f":"IF(OrigTable!A909=\"\",\"\",TEXT(OrigTable!A909,\"00\"))","v":""},{"$f":"IF(OrigTable!A909=\"\",\"\",ScriptText!$E$1&CHAR(10)&ScriptText!$C$1)","v":""},{"$f":"IF(OrigTable!B909=\"\",\"\",ScriptText!$B$1&CHAR(10)&ScriptText!$D$1)","v":""},{"$f":"IF(OrigTable!B909=\"\",\"\",TEXT(OrigTable!B909,\"00\"))","v":""},{"$f":"IF(OrigTable!B909=\"\",\"\",ScriptText!$E$1&CHAR(10)&ScriptText!C904)","v":""},{"$f":"IF(OrigTable!C909=\"\",\"\",ScriptText!$B$1&CHAR(10)&ScriptText!$D$1)","v":""},{"$f":"IF(OrigTable!C909=\"\",\"\",IF(LEN(OrigTable!C909)>255,LEFT(OrigTable!C909,250)&\". . .\",OrigTable!C909))","v":""},{"$f":"IF(OrigTable!C909=\"\",\"\",ScriptText!$E$1&CHAR(10)&ScriptText!$C$1)","v":""},{"$f":"IF(OrigTable!D909=\"\",\"\",ScriptText!$B$1&CHAR(10)&ScriptText!$D$1)","v":""},{"$f":"IF(OrigTable!D909=\"\",\"\",TEXT(OrigTable!D909,\"00\"))","v":""},{"$f":"IF(OrigTable!D909=\"\",\"\",ScriptText!$E$1&CHAR(10)&ScriptText!$C$1)","v":""},{"$f":"IF(OrigTable!E909=\"\",\"\",ScriptText!$B$1&CHAR(10)&ScriptText!$D$1)","v":""},{"$f":"IF(OrigTable!E909=\"\",\"\",TEXT(OrigTable!E909,\"00\"))","v":""},{"$f":"IF(OrigTable!E909=\"\",\"\",ScriptText!$E$1&CHAR(10)&ScriptText!$C$1)","v":""},{"$f":"IF(OrigTable!F909=\"\",\"\",ScriptText!$B$1&CHAR(10)&ScriptText!$D$1)","v":""},{"$f":"IF(OrigTable!F909=\"\",\"\",TEXT(OrigTable!F909,\"00\"))","v":""},{"$f":"IF(OrigTable!F909=\"\",\"\",ScriptText!$E$1&CHAR(10)&ScriptText!$C$1)","v":""},{"$f":"IF(OrigTable!G909=\"\",\"\",ScriptText!$B$1&CHAR(10)&ScriptText!$D$1)","v":""},{"$f":"IF(OrigTable!G909=\"\",\"\",TEXT(OrigTable!G909,\"00\"))","v":""},{"$f":"IF(OrigTable!G909=\"\",\"\",ScriptText!$E$1&CHAR(10)&ScriptText!$C$1)","v":""},0]
["\n\n\n",{"$f":"IF(OrigTable!A910=\"\",\"\",ScriptText!$B$1&CHAR(10)&ScriptText!$D$1)","v":""},{"$f":"IF(OrigTable!A910=\"\",\"\",TEXT(OrigTable!A910,\"00\"))","v":""},{"$f":"IF(OrigTable!A910=\"\",\"\",ScriptText!$E$1&CHAR(10)&ScriptText!$C$1)","v":""},{"$f":"IF(OrigTable!B910=\"\",\"\",ScriptText!$B$1&CHAR(10)&ScriptText!$D$1)","v":""},{"$f":"IF(OrigTable!B910=\"\",\"\",TEXT(OrigTable!B910,\"00\"))","v":""},{"$f":"IF(OrigTable!B910=\"\",\"\",ScriptText!$E$1&CHAR(10)&ScriptText!C905)","v":""},{"$f":"IF(OrigTable!C910=\"\",\"\",ScriptText!$B$1&CHAR(10)&ScriptText!$D$1)","v":""},{"$f":"IF(OrigTable!C910=\"\",\"\",IF(LEN(OrigTable!C910)>255,LEFT(OrigTable!C910,250)&\". . .\",OrigTable!C910))","v":""},{"$f":"IF(OrigTable!C910=\"\",\"\",ScriptText!$E$1&CHAR(10)&ScriptText!$C$1)","v":""},{"$f":"IF(OrigTable!D910=\"\",\"\",ScriptText!$B$1&CHAR(10)&ScriptText!$D$1)","v":""},{"$f":"IF(OrigTable!D910=\"\",\"\",TEXT(OrigTable!D910,\"00\"))","v":""},{"$f":"IF(OrigTable!D910=\"\",\"\",ScriptText!$E$1&CHAR(10)&ScriptText!$C$1)","v":""},{"$f":"IF(OrigTable!E910=\"\",\"\",ScriptText!$B$1&CHAR(10)&ScriptText!$D$1)","v":""},{"$f":"IF(OrigTable!E910=\"\",\"\",TEXT(OrigTable!E910,\"00\"))","v":""},{"$f":"IF(OrigTable!E910=\"\",\"\",ScriptText!$E$1&CHAR(10)&ScriptText!$C$1)","v":""},{"$f":"IF(OrigTable!F910=\"\",\"\",ScriptText!$B$1&CHAR(10)&ScriptText!$D$1)","v":""},{"$f":"IF(OrigTable!F910=\"\",\"\",TEXT(OrigTable!F910,\"00\"))","v":""},{"$f":"IF(OrigTable!F910=\"\",\"\",ScriptText!$E$1&CHAR(10)&ScriptText!$C$1)","v":""},{"$f":"IF(OrigTable!G910=\"\",\"\",ScriptText!$B$1&CHAR(10)&ScriptText!$D$1)","v":""},{"$f":"IF(OrigTable!G910=\"\",\"\",TEXT(OrigTable!G910,\"00\"))","v":""},{"$f":"IF(OrigTable!G910=\"\",\"\",ScriptText!$E$1&CHAR(10)&ScriptText!$C$1)","v":""},0]
["\n\n\n",{"$f":"IF(OrigTable!A911=\"\",\"\",ScriptText!$B$1&CHAR(10)&ScriptText!$D$1)","v":""},{"$f":"IF(OrigTable!A911=\"\",\"\",TEXT(OrigTable!A911,\"00\"))","v":""},{"$f":"IF(OrigTable!A911=\"\",\"\",ScriptText!$E$1&CHAR(10)&ScriptText!$C$1)","v":""},{"$f":"IF(OrigTable!B911=\"\",\"\",ScriptText!$B$1&CHAR(10)&ScriptText!$D$1)","v":""},{"$f":"IF(OrigTable!B911=\"\",\"\",TEXT(OrigTable!B911,\"00\"))","v":""},{"$f":"IF(OrigTable!B911=\"\",\"\",ScriptText!$E$1&CHAR(10)&ScriptText!C906)","v":""},{"$f":"IF(OrigTable!C911=\"\",\"\",ScriptText!$B$1&CHAR(10)&ScriptText!$D$1)","v":""},{"$f":"IF(OrigTable!C911=\"\",\"\",IF(LEN(OrigTable!C911)>255,LEFT(OrigTable!C911,250)&\". . .\",OrigTable!C911))","v":""},{"$f":"IF(OrigTable!C911=\"\",\"\",ScriptText!$E$1&CHAR(10)&ScriptText!$C$1)","v":""},{"$f":"IF(OrigTable!D911=\"\",\"\",ScriptText!$B$1&CHAR(10)&ScriptText!$D$1)","v":""},{"$f":"IF(OrigTable!D911=\"\",\"\",TEXT(OrigTable!D911,\"00\"))","v":""},{"$f":"IF(OrigTable!D911=\"\",\"\",ScriptText!$E$1&CHAR(10)&ScriptText!$C$1)","v":""},{"$f":"IF(OrigTable!E911=\"\",\"\",ScriptText!$B$1&CHAR(10)&ScriptText!$D$1)","v":""},{"$f":"IF(OrigTable!E911=\"\",\"\",TEXT(OrigTable!E911,\"00\"))","v":""},{"$f":"IF(OrigTable!E911=\"\",\"\",ScriptText!$E$1&CHAR(10)&ScriptText!$C$1)","v":""},{"$f":"IF(OrigTable!F911=\"\",\"\",ScriptText!$B$1&CHAR(10)&ScriptText!$D$1)","v":""},{"$f":"IF(OrigTable!F911=\"\",\"\",TEXT(OrigTable!F911,\"00\"))","v":""},{"$f":"IF(OrigTable!F911=\"\",\"\",ScriptText!$E$1&CHAR(10)&ScriptText!$C$1)","v":""},{"$f":"IF(OrigTable!G911=\"\",\"\",ScriptText!$B$1&CHAR(10)&ScriptText!$D$1)","v":""},{"$f":"IF(OrigTable!G911=\"\",\"\",TEXT(OrigTable!G911,\"00\"))","v":""},{"$f":"IF(OrigTable!G911=\"\",\"\",ScriptText!$E$1&CHAR(10)&ScriptText!$C$1)","v":""},0]
["\n\n\n",{"$f":"IF(OrigTable!A912=\"\",\"\",ScriptText!$B$1&CHAR(10)&ScriptText!$D$1)","v":""},{"$f":"IF(OrigTable!A912=\"\",\"\",TEXT(OrigTable!A912,\"00\"))","v":""},{"$f":"IF(OrigTable!A912=\"\",\"\",ScriptText!$E$1&CHAR(10)&ScriptText!$C$1)","v":""},{"$f":"IF(OrigTable!B912=\"\",\"\",ScriptText!$B$1&CHAR(10)&ScriptText!$D$1)","v":""},{"$f":"IF(OrigTable!B912=\"\",\"\",TEXT(OrigTable!B912,\"00\"))","v":""},{"$f":"IF(OrigTable!B912=\"\",\"\",ScriptText!$E$1&CHAR(10)&ScriptText!C907)","v":""},{"$f":"IF(OrigTable!C912=\"\",\"\",ScriptText!$B$1&CHAR(10)&ScriptText!$D$1)","v":""},{"$f":"IF(OrigTable!C912=\"\",\"\",IF(LEN(OrigTable!C912)>255,LEFT(OrigTable!C912,250)&\". . .\",OrigTable!C912))","v":""},{"$f":"IF(OrigTable!C912=\"\",\"\",ScriptText!$E$1&CHAR(10)&ScriptText!$C$1)","v":""},{"$f":"IF(OrigTable!D912=\"\",\"\",ScriptText!$B$1&CHAR(10)&ScriptText!$D$1)","v":""},{"$f":"IF(OrigTable!D912=\"\",\"\",TEXT(OrigTable!D912,\"00\"))","v":""},{"$f":"IF(OrigTable!D912=\"\",\"\",ScriptText!$E$1&CHAR(10)&ScriptText!$C$1)","v":""},{"$f":"IF(OrigTable!E912=\"\",\"\",ScriptText!$B$1&CHAR(10)&ScriptText!$D$1)","v":""},{"$f":"IF(OrigTable!E912=\"\",\"\",TEXT(OrigTable!E912,\"00\"))","v":""},{"$f":"IF(OrigTable!E912=\"\",\"\",ScriptText!$E$1&CHAR(10)&ScriptText!$C$1)","v":""},{"$f":"IF(OrigTable!F912=\"\",\"\",ScriptText!$B$1&CHAR(10)&ScriptText!$D$1)","v":""},{"$f":"IF(OrigTable!F912=\"\",\"\",TEXT(OrigTable!F912,\"00\"))","v":""},{"$f":"IF(OrigTable!F912=\"\",\"\",ScriptText!$E$1&CHAR(10)&ScriptText!$C$1)","v":""},{"$f":"IF(OrigTable!G912=\"\",\"\",ScriptText!$B$1&CHAR(10)&ScriptText!$D$1)","v":""},{"$f":"IF(OrigTable!G912=\"\",\"\",TEXT(OrigTable!G912,\"00\"))","v":""},{"$f":"IF(OrigTable!G912=\"\",\"\",ScriptText!$E$1&CHAR(10)&ScriptText!$C$1)","v":""},0]
["\n\n\n",{"$f":"IF(OrigTable!A913=\"\",\"\",ScriptText!$B$1&CHAR(10)&ScriptText!$D$1)","v":""},{"$f":"IF(OrigTable!A913=\"\",\"\",TEXT(OrigTable!A913,\"00\"))","v":""},{"$f":"IF(OrigTable!A913=\"\",\"\",ScriptText!$E$1&CHAR(10)&ScriptText!$C$1)","v":""},{"$f":"IF(OrigTable!B913=\"\",\"\",ScriptText!$B$1&CHAR(10)&ScriptText!$D$1)","v":""},{"$f":"IF(OrigTable!B913=\"\",\"\",TEXT(OrigTable!B913,\"00\"))","v":""},{"$f":"IF(OrigTable!B913=\"\",\"\",ScriptText!$E$1&CHAR(10)&ScriptText!C908)","v":""},{"$f":"IF(OrigTable!C913=\"\",\"\",ScriptText!$B$1&CHAR(10)&ScriptText!$D$1)","v":""},{"$f":"IF(OrigTable!C913=\"\",\"\",IF(LEN(OrigTable!C913)>255,LEFT(OrigTable!C913,250)&\". . .\",OrigTable!C913))","v":""},{"$f":"IF(OrigTable!C913=\"\",\"\",ScriptText!$E$1&CHAR(10)&ScriptText!$C$1)","v":""},{"$f":"IF(OrigTable!D913=\"\",\"\",ScriptText!$B$1&CHAR(10)&ScriptText!$D$1)","v":""},{"$f":"IF(OrigTable!D913=\"\",\"\",TEXT(OrigTable!D913,\"00\"))","v":""},{"$f":"IF(OrigTable!D913=\"\",\"\",ScriptText!$E$1&CHAR(10)&ScriptText!$C$1)","v":""},{"$f":"IF(OrigTable!E913=\"\",\"\",ScriptText!$B$1&CHAR(10)&ScriptText!$D$1)","v":""},{"$f":"IF(OrigTable!E913=\"\",\"\",TEXT(OrigTable!E913,\"00\"))","v":""},{"$f":"IF(OrigTable!E913=\"\",\"\",ScriptText!$E$1&CHAR(10)&ScriptText!$C$1)","v":""},{"$f":"IF(OrigTable!F913=\"\",\"\",ScriptText!$B$1&CHAR(10)&ScriptText!$D$1)","v":""},{"$f":"IF(OrigTable!F913=\"\",\"\",TEXT(OrigTable!F913,\"00\"))","v":""},{"$f":"IF(OrigTable!F913=\"\",\"\",ScriptText!$E$1&CHAR(10)&ScriptText!$C$1)","v":""},{"$f":"IF(OrigTable!G913=\"\",\"\",ScriptText!$B$1&CHAR(10)&ScriptText!$D$1)","v":""},{"$f":"IF(OrigTable!G913=\"\",\"\",TEXT(OrigTable!G913,\"00\"))","v":""},{"$f":"IF(OrigTable!G913=\"\",\"\",ScriptText!$E$1&CHAR(10)&ScriptText!$C$1)","v":""},0]
["\n\n\n",{"$f":"IF(OrigTable!A914=\"\",\"\",ScriptText!$B$1&CHAR(10)&ScriptText!$D$1)","v":""},{"$f":"IF(OrigTable!A914=\"\",\"\",TEXT(OrigTable!A914,\"00\"))","v":""},{"$f":"IF(OrigTable!A914=\"\",\"\",ScriptText!$E$1&CHAR(10)&ScriptText!$C$1)","v":""},{"$f":"IF(OrigTable!B914=\"\",\"\",ScriptText!$B$1&CHAR(10)&ScriptText!$D$1)","v":""},{"$f":"IF(OrigTable!B914=\"\",\"\",TEXT(OrigTable!B914,\"00\"))","v":""},{"$f":"IF(OrigTable!B914=\"\",\"\",ScriptText!$E$1&CHAR(10)&ScriptText!C909)","v":""},{"$f":"IF(OrigTable!C914=\"\",\"\",ScriptText!$B$1&CHAR(10)&ScriptText!$D$1)","v":""},{"$f":"IF(OrigTable!C914=\"\",\"\",IF(LEN(OrigTable!C914)>255,LEFT(OrigTable!C914,250)&\". . .\",OrigTable!C914))","v":""},{"$f":"IF(OrigTable!C914=\"\",\"\",ScriptText!$E$1&CHAR(10)&ScriptText!$C$1)","v":""},{"$f":"IF(OrigTable!D914=\"\",\"\",ScriptText!$B$1&CHAR(10)&ScriptText!$D$1)","v":""},{"$f":"IF(OrigTable!D914=\"\",\"\",TEXT(OrigTable!D914,\"00\"))","v":""},{"$f":"IF(OrigTable!D914=\"\",\"\",ScriptText!$E$1&CHAR(10)&ScriptText!$C$1)","v":""},{"$f":"IF(OrigTable!E914=\"\",\"\",ScriptText!$B$1&CHAR(10)&ScriptText!$D$1)","v":""},{"$f":"IF(OrigTable!E914=\"\",\"\",TEXT(OrigTable!E914,\"00\"))","v":""},{"$f":"IF(OrigTable!E914=\"\",\"\",ScriptText!$E$1&CHAR(10)&ScriptText!$C$1)","v":""},{"$f":"IF(OrigTable!F914=\"\",\"\",ScriptText!$B$1&CHAR(10)&ScriptText!$D$1)","v":""},{"$f":"IF(OrigTable!F914=\"\",\"\",TEXT(OrigTable!F914,\"00\"))","v":""},{"$f":"IF(OrigTable!F914=\"\",\"\",ScriptText!$E$1&CHAR(10)&ScriptText!$C$1)","v":""},{"$f":"IF(OrigTable!G914=\"\",\"\",ScriptText!$B$1&CHAR(10)&ScriptText!$D$1)","v":""},{"$f":"IF(OrigTable!G914=\"\",\"\",TEXT(OrigTable!G914,\"00\"))","v":""},{"$f":"IF(OrigTable!G914=\"\",\"\",ScriptText!$E$1&CHAR(10)&ScriptText!$C$1)","v":""},0]
["\n\n\n",{"$f":"IF(OrigTable!A915=\"\",\"\",ScriptText!$B$1&CHAR(10)&ScriptText!$D$1)","v":""},{"$f":"IF(OrigTable!A915=\"\",\"\",TEXT(OrigTable!A915,\"00\"))","v":""},{"$f":"IF(OrigTable!A915=\"\",\"\",ScriptText!$E$1&CHAR(10)&ScriptText!$C$1)","v":""},{"$f":"IF(OrigTable!B915=\"\",\"\",ScriptText!$B$1&CHAR(10)&ScriptText!$D$1)","v":""},{"$f":"IF(OrigTable!B915=\"\",\"\",TEXT(OrigTable!B915,\"00\"))","v":""},{"$f":"IF(OrigTable!B915=\"\",\"\",ScriptText!$E$1&CHAR(10)&ScriptText!C910)","v":""},{"$f":"IF(OrigTable!C915=\"\",\"\",ScriptText!$B$1&CHAR(10)&ScriptText!$D$1)","v":""},{"$f":"IF(OrigTable!C915=\"\",\"\",IF(LEN(OrigTable!C915)>255,LEFT(OrigTable!C915,250)&\". . .\",OrigTable!C915))","v":""},{"$f":"IF(OrigTable!C915=\"\",\"\",ScriptText!$E$1&CHAR(10)&ScriptText!$C$1)","v":""},{"$f":"IF(OrigTable!D915=\"\",\"\",ScriptText!$B$1&CHAR(10)&ScriptText!$D$1)","v":""},{"$f":"IF(OrigTable!D915=\"\",\"\",TEXT(OrigTable!D915,\"00\"))","v":""},{"$f":"IF(OrigTable!D915=\"\",\"\",ScriptText!$E$1&CHAR(10)&ScriptText!$C$1)","v":""},{"$f":"IF(OrigTable!E915=\"\",\"\",ScriptText!$B$1&CHAR(10)&ScriptText!$D$1)","v":""},{"$f":"IF(OrigTable!E915=\"\",\"\",TEXT(OrigTable!E915,\"00\"))","v":""},{"$f":"IF(OrigTable!E915=\"\",\"\",ScriptText!$E$1&CHAR(10)&ScriptText!$C$1)","v":""},{"$f":"IF(OrigTable!F915=\"\",\"\",ScriptText!$B$1&CHAR(10)&ScriptText!$D$1)","v":""},{"$f":"IF(OrigTable!F915=\"\",\"\",TEXT(OrigTable!F915,\"00\"))","v":""},{"$f":"IF(OrigTable!F915=\"\",\"\",ScriptText!$E$1&CHAR(10)&ScriptText!$C$1)","v":""},{"$f":"IF(OrigTable!G915=\"\",\"\",ScriptText!$B$1&CHAR(10)&ScriptText!$D$1)","v":""},{"$f":"IF(OrigTable!G915=\"\",\"\",TEXT(OrigTable!G915,\"00\"))","v":""},{"$f":"IF(OrigTable!G915=\"\",\"\",ScriptText!$E$1&CHAR(10)&ScriptText!$C$1)","v":""},0]
["\n\n\n",{"$f":"IF(OrigTable!A916=\"\",\"\",ScriptText!$B$1&CHAR(10)&ScriptText!$D$1)","v":""},{"$f":"IF(OrigTable!A916=\"\",\"\",TEXT(OrigTable!A916,\"00\"))","v":""},{"$f":"IF(OrigTable!A916=\"\",\"\",ScriptText!$E$1&CHAR(10)&ScriptText!$C$1)","v":""},{"$f":"IF(OrigTable!B916=\"\",\"\",ScriptText!$B$1&CHAR(10)&ScriptText!$D$1)","v":""},{"$f":"IF(OrigTable!B916=\"\",\"\",TEXT(OrigTable!B916,\"00\"))","v":""},{"$f":"IF(OrigTable!B916=\"\",\"\",ScriptText!$E$1&CHAR(10)&ScriptText!C911)","v":""},{"$f":"IF(OrigTable!C916=\"\",\"\",ScriptText!$B$1&CHAR(10)&ScriptText!$D$1)","v":""},{"$f":"IF(OrigTable!C916=\"\",\"\",IF(LEN(OrigTable!C916)>255,LEFT(OrigTable!C916,250)&\". . .\",OrigTable!C916))","v":""},{"$f":"IF(OrigTable!C916=\"\",\"\",ScriptText!$E$1&CHAR(10)&ScriptText!$C$1)","v":""},{"$f":"IF(OrigTable!D916=\"\",\"\",ScriptText!$B$1&CHAR(10)&ScriptText!$D$1)","v":""},{"$f":"IF(OrigTable!D916=\"\",\"\",TEXT(OrigTable!D916,\"00\"))","v":""},{"$f":"IF(OrigTable!D916=\"\",\"\",ScriptText!$E$1&CHAR(10)&ScriptText!$C$1)","v":""},{"$f":"IF(OrigTable!E916=\"\",\"\",ScriptText!$B$1&CHAR(10)&ScriptText!$D$1)","v":""},{"$f":"IF(OrigTable!E916=\"\",\"\",TEXT(OrigTable!E916,\"00\"))","v":""},{"$f":"IF(OrigTable!E916=\"\",\"\",ScriptText!$E$1&CHAR(10)&ScriptText!$C$1)","v":""},{"$f":"IF(OrigTable!F916=\"\",\"\",ScriptText!$B$1&CHAR(10)&ScriptText!$D$1)","v":""},{"$f":"IF(OrigTable!F916=\"\",\"\",TEXT(OrigTable!F916,\"00\"))","v":""},{"$f":"IF(OrigTable!F916=\"\",\"\",ScriptText!$E$1&CHAR(10)&ScriptText!$C$1)","v":""},{"$f":"IF(OrigTable!G916=\"\",\"\",ScriptText!$B$1&CHAR(10)&ScriptText!$D$1)","v":""},{"$f":"IF(OrigTable!G916=\"\",\"\",TEXT(OrigTable!G916,\"00\"))","v":""},{"$f":"IF(OrigTable!G916=\"\",\"\",ScriptText!$E$1&CHAR(10)&ScriptText!$C$1)","v":""},0]
["\n\n\n",{"$f":"IF(OrigTable!A917=\"\",\"\",ScriptText!$B$1&CHAR(10)&ScriptText!$D$1)","v":""},{"$f":"IF(OrigTable!A917=\"\",\"\",TEXT(OrigTable!A917,\"00\"))","v":""},{"$f":"IF(OrigTable!A917=\"\",\"\",ScriptText!$E$1&CHAR(10)&ScriptText!$C$1)","v":""},{"$f":"IF(OrigTable!B917=\"\",\"\",ScriptText!$B$1&CHAR(10)&ScriptText!$D$1)","v":""},{"$f":"IF(OrigTable!B917=\"\",\"\",TEXT(OrigTable!B917,\"00\"))","v":""},{"$f":"IF(OrigTable!B917=\"\",\"\",ScriptText!$E$1&CHAR(10)&ScriptText!C912)","v":""},{"$f":"IF(OrigTable!C917=\"\",\"\",ScriptText!$B$1&CHAR(10)&ScriptText!$D$1)","v":""},{"$f":"IF(OrigTable!C917=\"\",\"\",IF(LEN(OrigTable!C917)>255,LEFT(OrigTable!C917,250)&\". . .\",OrigTable!C917))","v":""},{"$f":"IF(OrigTable!C917=\"\",\"\",ScriptText!$E$1&CHAR(10)&ScriptText!$C$1)","v":""},{"$f":"IF(OrigTable!D917=\"\",\"\",ScriptText!$B$1&CHAR(10)&ScriptText!$D$1)","v":""},{"$f":"IF(OrigTable!D917=\"\",\"\",TEXT(OrigTable!D917,\"00\"))","v":""},{"$f":"IF(OrigTable!D917=\"\",\"\",ScriptText!$E$1&CHAR(10)&ScriptText!$C$1)","v":""},{"$f":"IF(OrigTable!E917=\"\",\"\",ScriptText!$B$1&CHAR(10)&ScriptText!$D$1)","v":""},{"$f":"IF(OrigTable!E917=\"\",\"\",TEXT(OrigTable!E917,\"00\"))","v":""},{"$f":"IF(OrigTable!E917=\"\",\"\",ScriptText!$E$1&CHAR(10)&ScriptText!$C$1)","v":""},{"$f":"IF(OrigTable!F917=\"\",\"\",ScriptText!$B$1&CHAR(10)&ScriptText!$D$1)","v":""},{"$f":"IF(OrigTable!F917=\"\",\"\",TEXT(OrigTable!F917,\"00\"))","v":""},{"$f":"IF(OrigTable!F917=\"\",\"\",ScriptText!$E$1&CHAR(10)&ScriptText!$C$1)","v":""},{"$f":"IF(OrigTable!G917=\"\",\"\",ScriptText!$B$1&CHAR(10)&ScriptText!$D$1)","v":""},{"$f":"IF(OrigTable!G917=\"\",\"\",TEXT(OrigTable!G917,\"00\"))","v":""},{"$f":"IF(OrigTable!G917=\"\",\"\",ScriptText!$E$1&CHAR(10)&ScriptText!$C$1)","v":""},0]
["\n\n\n",{"$f":"IF(OrigTable!A918=\"\",\"\",ScriptText!$B$1&CHAR(10)&ScriptText!$D$1)","v":""},{"$f":"IF(OrigTable!A918=\"\",\"\",TEXT(OrigTable!A918,\"00\"))","v":""},{"$f":"IF(OrigTable!A918=\"\",\"\",ScriptText!$E$1&CHAR(10)&ScriptText!$C$1)","v":""},{"$f":"IF(OrigTable!B918=\"\",\"\",ScriptText!$B$1&CHAR(10)&ScriptText!$D$1)","v":""},{"$f":"IF(OrigTable!B918=\"\",\"\",TEXT(OrigTable!B918,\"00\"))","v":""},{"$f":"IF(OrigTable!B918=\"\",\"\",ScriptText!$E$1&CHAR(10)&ScriptText!C913)","v":""},{"$f":"IF(OrigTable!C918=\"\",\"\",ScriptText!$B$1&CHAR(10)&ScriptText!$D$1)","v":""},{"$f":"IF(OrigTable!C918=\"\",\"\",IF(LEN(OrigTable!C918)>255,LEFT(OrigTable!C918,250)&\". . .\",OrigTable!C918))","v":""},{"$f":"IF(OrigTable!C918=\"\",\"\",ScriptText!$E$1&CHAR(10)&ScriptText!$C$1)","v":""},{"$f":"IF(OrigTable!D918=\"\",\"\",ScriptText!$B$1&CHAR(10)&ScriptText!$D$1)","v":""},{"$f":"IF(OrigTable!D918=\"\",\"\",TEXT(OrigTable!D918,\"00\"))","v":""},{"$f":"IF(OrigTable!D918=\"\",\"\",ScriptText!$E$1&CHAR(10)&ScriptText!$C$1)","v":""},{"$f":"IF(OrigTable!E918=\"\",\"\",ScriptText!$B$1&CHAR(10)&ScriptText!$D$1)","v":""},{"$f":"IF(OrigTable!E918=\"\",\"\",TEXT(OrigTable!E918,\"00\"))","v":""},{"$f":"IF(OrigTable!E918=\"\",\"\",ScriptText!$E$1&CHAR(10)&ScriptText!$C$1)","v":""},{"$f":"IF(OrigTable!F918=\"\",\"\",ScriptText!$B$1&CHAR(10)&ScriptText!$D$1)","v":""},{"$f":"IF(OrigTable!F918=\"\",\"\",TEXT(OrigTable!F918,\"00\"))","v":""},{"$f":"IF(OrigTable!F918=\"\",\"\",ScriptText!$E$1&CHAR(10)&ScriptText!$C$1)","v":""},{"$f":"IF(OrigTable!G918=\"\",\"\",ScriptText!$B$1&CHAR(10)&ScriptText!$D$1)","v":""},{"$f":"IF(OrigTable!G918=\"\",\"\",TEXT(OrigTable!G918,\"00\"))","v":""},{"$f":"IF(OrigTable!G918=\"\",\"\",ScriptText!$E$1&CHAR(10)&ScriptText!$C$1)","v":""},0]
["\n\n\n",{"$f":"IF(OrigTable!A919=\"\",\"\",ScriptText!$B$1&CHAR(10)&ScriptText!$D$1)","v":""},{"$f":"IF(OrigTable!A919=\"\",\"\",TEXT(OrigTable!A919,\"00\"))","v":""},{"$f":"IF(OrigTable!A919=\"\",\"\",ScriptText!$E$1&CHAR(10)&ScriptText!$C$1)","v":""},{"$f":"IF(OrigTable!B919=\"\",\"\",ScriptText!$B$1&CHAR(10)&ScriptText!$D$1)","v":""},{"$f":"IF(OrigTable!B919=\"\",\"\",TEXT(OrigTable!B919,\"00\"))","v":""},{"$f":"IF(OrigTable!B919=\"\",\"\",ScriptText!$E$1&CHAR(10)&ScriptText!C914)","v":""},{"$f":"IF(OrigTable!C919=\"\",\"\",ScriptText!$B$1&CHAR(10)&ScriptText!$D$1)","v":""},{"$f":"IF(OrigTable!C919=\"\",\"\",IF(LEN(OrigTable!C919)>255,LEFT(OrigTable!C919,250)&\". . .\",OrigTable!C919))","v":""},{"$f":"IF(OrigTable!C919=\"\",\"\",ScriptText!$E$1&CHAR(10)&ScriptText!$C$1)","v":""},{"$f":"IF(OrigTable!D919=\"\",\"\",ScriptText!$B$1&CHAR(10)&ScriptText!$D$1)","v":""},{"$f":"IF(OrigTable!D919=\"\",\"\",TEXT(OrigTable!D919,\"00\"))","v":""},{"$f":"IF(OrigTable!D919=\"\",\"\",ScriptText!$E$1&CHAR(10)&ScriptText!$C$1)","v":""},{"$f":"IF(OrigTable!E919=\"\",\"\",ScriptText!$B$1&CHAR(10)&ScriptText!$D$1)","v":""},{"$f":"IF(OrigTable!E919=\"\",\"\",TEXT(OrigTable!E919,\"00\"))","v":""},{"$f":"IF(OrigTable!E919=\"\",\"\",ScriptText!$E$1&CHAR(10)&ScriptText!$C$1)","v":""},{"$f":"IF(OrigTable!F919=\"\",\"\",ScriptText!$B$1&CHAR(10)&ScriptText!$D$1)","v":""},{"$f":"IF(OrigTable!F919=\"\",\"\",TEXT(OrigTable!F919,\"00\"))","v":""},{"$f":"IF(OrigTable!F919=\"\",\"\",ScriptText!$E$1&CHAR(10)&ScriptText!$C$1)","v":""},{"$f":"IF(OrigTable!G919=\"\",\"\",ScriptText!$B$1&CHAR(10)&ScriptText!$D$1)","v":""},{"$f":"IF(OrigTable!G919=\"\",\"\",TEXT(OrigTable!G919,\"00\"))","v":""},{"$f":"IF(OrigTable!G919=\"\",\"\",ScriptText!$E$1&CHAR(10)&ScriptText!$C$1)","v":""},0]
["\n\n\n",{"$f":"IF(OrigTable!A920=\"\",\"\",ScriptText!$B$1&CHAR(10)&ScriptText!$D$1)","v":""},{"$f":"IF(OrigTable!A920=\"\",\"\",TEXT(OrigTable!A920,\"00\"))","v":""},{"$f":"IF(OrigTable!A920=\"\",\"\",ScriptText!$E$1&CHAR(10)&ScriptText!$C$1)","v":""},{"$f":"IF(OrigTable!B920=\"\",\"\",ScriptText!$B$1&CHAR(10)&ScriptText!$D$1)","v":""},{"$f":"IF(OrigTable!B920=\"\",\"\",TEXT(OrigTable!B920,\"00\"))","v":""},{"$f":"IF(OrigTable!B920=\"\",\"\",ScriptText!$E$1&CHAR(10)&ScriptText!C915)","v":""},{"$f":"IF(OrigTable!C920=\"\",\"\",ScriptText!$B$1&CHAR(10)&ScriptText!$D$1)","v":""},{"$f":"IF(OrigTable!C920=\"\",\"\",IF(LEN(OrigTable!C920)>255,LEFT(OrigTable!C920,250)&\". . .\",OrigTable!C920))","v":""},{"$f":"IF(OrigTable!C920=\"\",\"\",ScriptText!$E$1&CHAR(10)&ScriptText!$C$1)","v":""},{"$f":"IF(OrigTable!D920=\"\",\"\",ScriptText!$B$1&CHAR(10)&ScriptText!$D$1)","v":""},{"$f":"IF(OrigTable!D920=\"\",\"\",TEXT(OrigTable!D920,\"00\"))","v":""},{"$f":"IF(OrigTable!D920=\"\",\"\",ScriptText!$E$1&CHAR(10)&ScriptText!$C$1)","v":""},{"$f":"IF(OrigTable!E920=\"\",\"\",ScriptText!$B$1&CHAR(10)&ScriptText!$D$1)","v":""},{"$f":"IF(OrigTable!E920=\"\",\"\",TEXT(OrigTable!E920,\"00\"))","v":""},{"$f":"IF(OrigTable!E920=\"\",\"\",ScriptText!$E$1&CHAR(10)&ScriptText!$C$1)","v":""},{"$f":"IF(OrigTable!F920=\"\",\"\",ScriptText!$B$1&CHAR(10)&ScriptText!$D$1)","v":""},{"$f":"IF(OrigTable!F920=\"\",\"\",TEXT(OrigTable!F920,\"00\"))","v":""},{"$f":"IF(OrigTable!F920=\"\",\"\",ScriptText!$E$1&CHAR(10)&ScriptText!$C$1)","v":""},{"$f":"IF(OrigTable!G920=\"\",\"\",ScriptText!$B$1&CHAR(10)&ScriptText!$D$1)","v":""},{"$f":"IF(OrigTable!G920=\"\",\"\",TEXT(OrigTable!G920,\"00\"))","v":""},{"$f":"IF(OrigTable!G920=\"\",\"\",ScriptText!$E$1&CHAR(10)&ScriptText!$C$1)","v":""},0]
["\n\n\n",{"$f":"IF(OrigTable!A921=\"\",\"\",ScriptText!$B$1&CHAR(10)&ScriptText!$D$1)","v":""},{"$f":"IF(OrigTable!A921=\"\",\"\",TEXT(OrigTable!A921,\"00\"))","v":""},{"$f":"IF(OrigTable!A921=\"\",\"\",ScriptText!$E$1&CHAR(10)&ScriptText!$C$1)","v":""},{"$f":"IF(OrigTable!B921=\"\",\"\",ScriptText!$B$1&CHAR(10)&ScriptText!$D$1)","v":""},{"$f":"IF(OrigTable!B921=\"\",\"\",TEXT(OrigTable!B921,\"00\"))","v":""},{"$f":"IF(OrigTable!B921=\"\",\"\",ScriptText!$E$1&CHAR(10)&ScriptText!C916)","v":""},{"$f":"IF(OrigTable!C921=\"\",\"\",ScriptText!$B$1&CHAR(10)&ScriptText!$D$1)","v":""},{"$f":"IF(OrigTable!C921=\"\",\"\",IF(LEN(OrigTable!C921)>255,LEFT(OrigTable!C921,250)&\". . .\",OrigTable!C921))","v":""},{"$f":"IF(OrigTable!C921=\"\",\"\",ScriptText!$E$1&CHAR(10)&ScriptText!$C$1)","v":""},{"$f":"IF(OrigTable!D921=\"\",\"\",ScriptText!$B$1&CHAR(10)&ScriptText!$D$1)","v":""},{"$f":"IF(OrigTable!D921=\"\",\"\",TEXT(OrigTable!D921,\"00\"))","v":""},{"$f":"IF(OrigTable!D921=\"\",\"\",ScriptText!$E$1&CHAR(10)&ScriptText!$C$1)","v":""},{"$f":"IF(OrigTable!E921=\"\",\"\",ScriptText!$B$1&CHAR(10)&ScriptText!$D$1)","v":""},{"$f":"IF(OrigTable!E921=\"\",\"\",TEXT(OrigTable!E921,\"00\"))","v":""},{"$f":"IF(OrigTable!E921=\"\",\"\",ScriptText!$E$1&CHAR(10)&ScriptText!$C$1)","v":""},{"$f":"IF(OrigTable!F921=\"\",\"\",ScriptText!$B$1&CHAR(10)&ScriptText!$D$1)","v":""},{"$f":"IF(OrigTable!F921=\"\",\"\",TEXT(OrigTable!F921,\"00\"))","v":""},{"$f":"IF(OrigTable!F921=\"\",\"\",ScriptText!$E$1&CHAR(10)&ScriptText!$C$1)","v":""},{"$f":"IF(OrigTable!G921=\"\",\"\",ScriptText!$B$1&CHAR(10)&ScriptText!$D$1)","v":""},{"$f":"IF(OrigTable!G921=\"\",\"\",TEXT(OrigTable!G921,\"00\"))","v":""},{"$f":"IF(OrigTable!G921=\"\",\"\",ScriptText!$E$1&CHAR(10)&ScriptText!$C$1)","v":""},0]
["\n\n\n",{"$f":"IF(OrigTable!A922=\"\",\"\",ScriptText!$B$1&CHAR(10)&ScriptText!$D$1)","v":""},{"$f":"IF(OrigTable!A922=\"\",\"\",TEXT(OrigTable!A922,\"00\"))","v":""},{"$f":"IF(OrigTable!A922=\"\",\"\",ScriptText!$E$1&CHAR(10)&ScriptText!$C$1)","v":""},{"$f":"IF(OrigTable!B922=\"\",\"\",ScriptText!$B$1&CHAR(10)&ScriptText!$D$1)","v":""},{"$f":"IF(OrigTable!B922=\"\",\"\",TEXT(OrigTable!B922,\"00\"))","v":""},{"$f":"IF(OrigTable!B922=\"\",\"\",ScriptText!$E$1&CHAR(10)&ScriptText!C917)","v":""},{"$f":"IF(OrigTable!C922=\"\",\"\",ScriptText!$B$1&CHAR(10)&ScriptText!$D$1)","v":""},{"$f":"IF(OrigTable!C922=\"\",\"\",IF(LEN(OrigTable!C922)>255,LEFT(OrigTable!C922,250)&\". . .\",OrigTable!C922))","v":""},{"$f":"IF(OrigTable!C922=\"\",\"\",ScriptText!$E$1&CHAR(10)&ScriptText!$C$1)","v":""},{"$f":"IF(OrigTable!D922=\"\",\"\",ScriptText!$B$1&CHAR(10)&ScriptText!$D$1)","v":""},{"$f":"IF(OrigTable!D922=\"\",\"\",TEXT(OrigTable!D922,\"00\"))","v":""},{"$f":"IF(OrigTable!D922=\"\",\"\",ScriptText!$E$1&CHAR(10)&ScriptText!$C$1)","v":""},{"$f":"IF(OrigTable!E922=\"\",\"\",ScriptText!$B$1&CHAR(10)&ScriptText!$D$1)","v":""},{"$f":"IF(OrigTable!E922=\"\",\"\",TEXT(OrigTable!E922,\"00\"))","v":""},{"$f":"IF(OrigTable!E922=\"\",\"\",ScriptText!$E$1&CHAR(10)&ScriptText!$C$1)","v":""},{"$f":"IF(OrigTable!F922=\"\",\"\",ScriptText!$B$1&CHAR(10)&ScriptText!$D$1)","v":""},{"$f":"IF(OrigTable!F922=\"\",\"\",TEXT(OrigTable!F922,\"00\"))","v":""},{"$f":"IF(OrigTable!F922=\"\",\"\",ScriptText!$E$1&CHAR(10)&ScriptText!$C$1)","v":""},{"$f":"IF(OrigTable!G922=\"\",\"\",ScriptText!$B$1&CHAR(10)&ScriptText!$D$1)","v":""},{"$f":"IF(OrigTable!G922=\"\",\"\",TEXT(OrigTable!G922,\"00\"))","v":""},{"$f":"IF(OrigTable!G922=\"\",\"\",ScriptText!$E$1&CHAR(10)&ScriptText!$C$1)","v":""},0]
["\n\n\n",{"$f":"IF(OrigTable!A923=\"\",\"\",ScriptText!$B$1&CHAR(10)&ScriptText!$D$1)","v":""},{"$f":"IF(OrigTable!A923=\"\",\"\",TEXT(OrigTable!A923,\"00\"))","v":""},{"$f":"IF(OrigTable!A923=\"\",\"\",ScriptText!$E$1&CHAR(10)&ScriptText!$C$1)","v":""},{"$f":"IF(OrigTable!B923=\"\",\"\",ScriptText!$B$1&CHAR(10)&ScriptText!$D$1)","v":""},{"$f":"IF(OrigTable!B923=\"\",\"\",TEXT(OrigTable!B923,\"00\"))","v":""},{"$f":"IF(OrigTable!B923=\"\",\"\",ScriptText!$E$1&CHAR(10)&ScriptText!C918)","v":""},{"$f":"IF(OrigTable!C923=\"\",\"\",ScriptText!$B$1&CHAR(10)&ScriptText!$D$1)","v":""},{"$f":"IF(OrigTable!C923=\"\",\"\",IF(LEN(OrigTable!C923)>255,LEFT(OrigTable!C923,250)&\". . .\",OrigTable!C923))","v":""},{"$f":"IF(OrigTable!C923=\"\",\"\",ScriptText!$E$1&CHAR(10)&ScriptText!$C$1)","v":""},{"$f":"IF(OrigTable!D923=\"\",\"\",ScriptText!$B$1&CHAR(10)&ScriptText!$D$1)","v":""},{"$f":"IF(OrigTable!D923=\"\",\"\",TEXT(OrigTable!D923,\"00\"))","v":""},{"$f":"IF(OrigTable!D923=\"\",\"\",ScriptText!$E$1&CHAR(10)&ScriptText!$C$1)","v":""},{"$f":"IF(OrigTable!E923=\"\",\"\",ScriptText!$B$1&CHAR(10)&ScriptText!$D$1)","v":""},{"$f":"IF(OrigTable!E923=\"\",\"\",TEXT(OrigTable!E923,\"00\"))","v":""},{"$f":"IF(OrigTable!E923=\"\",\"\",ScriptText!$E$1&CHAR(10)&ScriptText!$C$1)","v":""},{"$f":"IF(OrigTable!F923=\"\",\"\",ScriptText!$B$1&CHAR(10)&ScriptText!$D$1)","v":""},{"$f":"IF(OrigTable!F923=\"\",\"\",TEXT(OrigTable!F923,\"00\"))","v":""},{"$f":"IF(OrigTable!F923=\"\",\"\",ScriptText!$E$1&CHAR(10)&ScriptText!$C$1)","v":""},{"$f":"IF(OrigTable!G923=\"\",\"\",ScriptText!$B$1&CHAR(10)&ScriptText!$D$1)","v":""},{"$f":"IF(OrigTable!G923=\"\",\"\",TEXT(OrigTable!G923,\"00\"))","v":""},{"$f":"IF(OrigTable!G923=\"\",\"\",ScriptText!$E$1&CHAR(10)&ScriptText!$C$1)","v":""},0]
["\n\n\n",{"$f":"IF(OrigTable!A924=\"\",\"\",ScriptText!$B$1&CHAR(10)&ScriptText!$D$1)","v":""},{"$f":"IF(OrigTable!A924=\"\",\"\",TEXT(OrigTable!A924,\"00\"))","v":""},{"$f":"IF(OrigTable!A924=\"\",\"\",ScriptText!$E$1&CHAR(10)&ScriptText!$C$1)","v":""},{"$f":"IF(OrigTable!B924=\"\",\"\",ScriptText!$B$1&CHAR(10)&ScriptText!$D$1)","v":""},{"$f":"IF(OrigTable!B924=\"\",\"\",TEXT(OrigTable!B924,\"00\"))","v":""},{"$f":"IF(OrigTable!B924=\"\",\"\",ScriptText!$E$1&CHAR(10)&ScriptText!C919)","v":""},{"$f":"IF(OrigTable!C924=\"\",\"\",ScriptText!$B$1&CHAR(10)&ScriptText!$D$1)","v":""},{"$f":"IF(OrigTable!C924=\"\",\"\",IF(LEN(OrigTable!C924)>255,LEFT(OrigTable!C924,250)&\". . .\",OrigTable!C924))","v":""},{"$f":"IF(OrigTable!C924=\"\",\"\",ScriptText!$E$1&CHAR(10)&ScriptText!$C$1)","v":""},{"$f":"IF(OrigTable!D924=\"\",\"\",ScriptText!$B$1&CHAR(10)&ScriptText!$D$1)","v":""},{"$f":"IF(OrigTable!D924=\"\",\"\",TEXT(OrigTable!D924,\"00\"))","v":""},{"$f":"IF(OrigTable!D924=\"\",\"\",ScriptText!$E$1&CHAR(10)&ScriptText!$C$1)","v":""},{"$f":"IF(OrigTable!E924=\"\",\"\",ScriptText!$B$1&CHAR(10)&ScriptText!$D$1)","v":""},{"$f":"IF(OrigTable!E924=\"\",\"\",TEXT(OrigTable!E924,\"00\"))","v":""},{"$f":"IF(OrigTable!E924=\"\",\"\",ScriptText!$E$1&CHAR(10)&ScriptText!$C$1)","v":""},{"$f":"IF(OrigTable!F924=\"\",\"\",ScriptText!$B$1&CHAR(10)&ScriptText!$D$1)","v":""},{"$f":"IF(OrigTable!F924=\"\",\"\",TEXT(OrigTable!F924,\"00\"))","v":""},{"$f":"IF(OrigTable!F924=\"\",\"\",ScriptText!$E$1&CHAR(10)&ScriptText!$C$1)","v":""},{"$f":"IF(OrigTable!G924=\"\",\"\",ScriptText!$B$1&CHAR(10)&ScriptText!$D$1)","v":""},{"$f":"IF(OrigTable!G924=\"\",\"\",TEXT(OrigTable!G924,\"00\"))","v":""},{"$f":"IF(OrigTable!G924=\"\",\"\",ScriptText!$E$1&CHAR(10)&ScriptText!$C$1)","v":""},0]
["\n\n\n",{"$f":"IF(OrigTable!A925=\"\",\"\",ScriptText!$B$1&CHAR(10)&ScriptText!$D$1)","v":""},{"$f":"IF(OrigTable!A925=\"\",\"\",TEXT(OrigTable!A925,\"00\"))","v":""},{"$f":"IF(OrigTable!A925=\"\",\"\",ScriptText!$E$1&CHAR(10)&ScriptText!$C$1)","v":""},{"$f":"IF(OrigTable!B925=\"\",\"\",ScriptText!$B$1&CHAR(10)&ScriptText!$D$1)","v":""},{"$f":"IF(OrigTable!B925=\"\",\"\",TEXT(OrigTable!B925,\"00\"))","v":""},{"$f":"IF(OrigTable!B925=\"\",\"\",ScriptText!$E$1&CHAR(10)&ScriptText!C920)","v":""},{"$f":"IF(OrigTable!C925=\"\",\"\",ScriptText!$B$1&CHAR(10)&ScriptText!$D$1)","v":""},{"$f":"IF(OrigTable!C925=\"\",\"\",IF(LEN(OrigTable!C925)>255,LEFT(OrigTable!C925,250)&\". . .\",OrigTable!C925))","v":""},{"$f":"IF(OrigTable!C925=\"\",\"\",ScriptText!$E$1&CHAR(10)&ScriptText!$C$1)","v":""},{"$f":"IF(OrigTable!D925=\"\",\"\",ScriptText!$B$1&CHAR(10)&ScriptText!$D$1)","v":""},{"$f":"IF(OrigTable!D925=\"\",\"\",TEXT(OrigTable!D925,\"00\"))","v":""},{"$f":"IF(OrigTable!D925=\"\",\"\",ScriptText!$E$1&CHAR(10)&ScriptText!$C$1)","v":""},{"$f":"IF(OrigTable!E925=\"\",\"\",ScriptText!$B$1&CHAR(10)&ScriptText!$D$1)","v":""},{"$f":"IF(OrigTable!E925=\"\",\"\",TEXT(OrigTable!E925,\"00\"))","v":""},{"$f":"IF(OrigTable!E925=\"\",\"\",ScriptText!$E$1&CHAR(10)&ScriptText!$C$1)","v":""},{"$f":"IF(OrigTable!F925=\"\",\"\",ScriptText!$B$1&CHAR(10)&ScriptText!$D$1)","v":""},{"$f":"IF(OrigTable!F925=\"\",\"\",TEXT(OrigTable!F925,\"00\"))","v":""},{"$f":"IF(OrigTable!F925=\"\",\"\",ScriptText!$E$1&CHAR(10)&ScriptText!$C$1)","v":""},{"$f":"IF(OrigTable!G925=\"\",\"\",ScriptText!$B$1&CHAR(10)&ScriptText!$D$1)","v":""},{"$f":"IF(OrigTable!G925=\"\",\"\",TEXT(OrigTable!G925,\"00\"))","v":""},{"$f":"IF(OrigTable!G925=\"\",\"\",ScriptText!$E$1&CHAR(10)&ScriptText!$C$1)","v":""},0]
["\n\n\n",{"$f":"IF(OrigTable!A926=\"\",\"\",ScriptText!$B$1&CHAR(10)&ScriptText!$D$1)","v":""},{"$f":"IF(OrigTable!A926=\"\",\"\",TEXT(OrigTable!A926,\"00\"))","v":""},{"$f":"IF(OrigTable!A926=\"\",\"\",ScriptText!$E$1&CHAR(10)&ScriptText!$C$1)","v":""},{"$f":"IF(OrigTable!B926=\"\",\"\",ScriptText!$B$1&CHAR(10)&ScriptText!$D$1)","v":""},{"$f":"IF(OrigTable!B926=\"\",\"\",TEXT(OrigTable!B926,\"00\"))","v":""},{"$f":"IF(OrigTable!B926=\"\",\"\",ScriptText!$E$1&CHAR(10)&ScriptText!C921)","v":""},{"$f":"IF(OrigTable!C926=\"\",\"\",ScriptText!$B$1&CHAR(10)&ScriptText!$D$1)","v":""},{"$f":"IF(OrigTable!C926=\"\",\"\",IF(LEN(OrigTable!C926)>255,LEFT(OrigTable!C926,250)&\". . .\",OrigTable!C926))","v":""},{"$f":"IF(OrigTable!C926=\"\",\"\",ScriptText!$E$1&CHAR(10)&ScriptText!$C$1)","v":""},{"$f":"IF(OrigTable!D926=\"\",\"\",ScriptText!$B$1&CHAR(10)&ScriptText!$D$1)","v":""},{"$f":"IF(OrigTable!D926=\"\",\"\",TEXT(OrigTable!D926,\"00\"))","v":""},{"$f":"IF(OrigTable!D926=\"\",\"\",ScriptText!$E$1&CHAR(10)&ScriptText!$C$1)","v":""},{"$f":"IF(OrigTable!E926=\"\",\"\",ScriptText!$B$1&CHAR(10)&ScriptText!$D$1)","v":""},{"$f":"IF(OrigTable!E926=\"\",\"\",TEXT(OrigTable!E926,\"00\"))","v":""},{"$f":"IF(OrigTable!E926=\"\",\"\",ScriptText!$E$1&CHAR(10)&ScriptText!$C$1)","v":""},{"$f":"IF(OrigTable!F926=\"\",\"\",ScriptText!$B$1&CHAR(10)&ScriptText!$D$1)","v":""},{"$f":"IF(OrigTable!F926=\"\",\"\",TEXT(OrigTable!F926,\"00\"))","v":""},{"$f":"IF(OrigTable!F926=\"\",\"\",ScriptText!$E$1&CHAR(10)&ScriptText!$C$1)","v":""},{"$f":"IF(OrigTable!G926=\"\",\"\",ScriptText!$B$1&CHAR(10)&ScriptText!$D$1)","v":""},{"$f":"IF(OrigTable!G926=\"\",\"\",TEXT(OrigTable!G926,\"00\"))","v":""},{"$f":"IF(OrigTable!G926=\"\",\"\",ScriptText!$E$1&CHAR(10)&ScriptText!$C$1)","v":""},0]
["\n\n\n",{"$f":"IF(OrigTable!A927=\"\",\"\",ScriptText!$B$1&CHAR(10)&ScriptText!$D$1)","v":""},{"$f":"IF(OrigTable!A927=\"\",\"\",TEXT(OrigTable!A927,\"00\"))","v":""},{"$f":"IF(OrigTable!A927=\"\",\"\",ScriptText!$E$1&CHAR(10)&ScriptText!$C$1)","v":""},{"$f":"IF(OrigTable!B927=\"\",\"\",ScriptText!$B$1&CHAR(10)&ScriptText!$D$1)","v":""},{"$f":"IF(OrigTable!B927=\"\",\"\",TEXT(OrigTable!B927,\"00\"))","v":""},{"$f":"IF(OrigTable!B927=\"\",\"\",ScriptText!$E$1&CHAR(10)&ScriptText!C922)","v":""},{"$f":"IF(OrigTable!C927=\"\",\"\",ScriptText!$B$1&CHAR(10)&ScriptText!$D$1)","v":""},{"$f":"IF(OrigTable!C927=\"\",\"\",IF(LEN(OrigTable!C927)>255,LEFT(OrigTable!C927,250)&\". . .\",OrigTable!C927))","v":""},{"$f":"IF(OrigTable!C927=\"\",\"\",ScriptText!$E$1&CHAR(10)&ScriptText!$C$1)","v":""},{"$f":"IF(OrigTable!D927=\"\",\"\",ScriptText!$B$1&CHAR(10)&ScriptText!$D$1)","v":""},{"$f":"IF(OrigTable!D927=\"\",\"\",TEXT(OrigTable!D927,\"00\"))","v":""},{"$f":"IF(OrigTable!D927=\"\",\"\",ScriptText!$E$1&CHAR(10)&ScriptText!$C$1)","v":""},{"$f":"IF(OrigTable!E927=\"\",\"\",ScriptText!$B$1&CHAR(10)&ScriptText!$D$1)","v":""},{"$f":"IF(OrigTable!E927=\"\",\"\",TEXT(OrigTable!E927,\"00\"))","v":""},{"$f":"IF(OrigTable!E927=\"\",\"\",ScriptText!$E$1&CHAR(10)&ScriptText!$C$1)","v":""},{"$f":"IF(OrigTable!F927=\"\",\"\",ScriptText!$B$1&CHAR(10)&ScriptText!$D$1)","v":""},{"$f":"IF(OrigTable!F927=\"\",\"\",TEXT(OrigTable!F927,\"00\"))","v":""},{"$f":"IF(OrigTable!F927=\"\",\"\",ScriptText!$E$1&CHAR(10)&ScriptText!$C$1)","v":""},{"$f":"IF(OrigTable!G927=\"\",\"\",ScriptText!$B$1&CHAR(10)&ScriptText!$D$1)","v":""},{"$f":"IF(OrigTable!G927=\"\",\"\",TEXT(OrigTable!G927,\"00\"))","v":""},{"$f":"IF(OrigTable!G927=\"\",\"\",ScriptText!$E$1&CHAR(10)&ScriptText!$C$1)","v":""},0]
["\n\n\n",{"$f":"IF(OrigTable!A928=\"\",\"\",ScriptText!$B$1&CHAR(10)&ScriptText!$D$1)","v":""},{"$f":"IF(OrigTable!A928=\"\",\"\",TEXT(OrigTable!A928,\"00\"))","v":""},{"$f":"IF(OrigTable!A928=\"\",\"\",ScriptText!$E$1&CHAR(10)&ScriptText!$C$1)","v":""},{"$f":"IF(OrigTable!B928=\"\",\"\",ScriptText!$B$1&CHAR(10)&ScriptText!$D$1)","v":""},{"$f":"IF(OrigTable!B928=\"\",\"\",TEXT(OrigTable!B928,\"00\"))","v":""},{"$f":"IF(OrigTable!B928=\"\",\"\",ScriptText!$E$1&CHAR(10)&ScriptText!C923)","v":""},{"$f":"IF(OrigTable!C928=\"\",\"\",ScriptText!$B$1&CHAR(10)&ScriptText!$D$1)","v":""},{"$f":"IF(OrigTable!C928=\"\",\"\",IF(LEN(OrigTable!C928)>255,LEFT(OrigTable!C928,250)&\". . .\",OrigTable!C928))","v":""},{"$f":"IF(OrigTable!C928=\"\",\"\",ScriptText!$E$1&CHAR(10)&ScriptText!$C$1)","v":""},{"$f":"IF(OrigTable!D928=\"\",\"\",ScriptText!$B$1&CHAR(10)&ScriptText!$D$1)","v":""},{"$f":"IF(OrigTable!D928=\"\",\"\",TEXT(OrigTable!D928,\"00\"))","v":""},{"$f":"IF(OrigTable!D928=\"\",\"\",ScriptText!$E$1&CHAR(10)&ScriptText!$C$1)","v":""},{"$f":"IF(OrigTable!E928=\"\",\"\",ScriptText!$B$1&CHAR(10)&ScriptText!$D$1)","v":""},{"$f":"IF(OrigTable!E928=\"\",\"\",TEXT(OrigTable!E928,\"00\"))","v":""},{"$f":"IF(OrigTable!E928=\"\",\"\",ScriptText!$E$1&CHAR(10)&ScriptText!$C$1)","v":""},{"$f":"IF(OrigTable!F928=\"\",\"\",ScriptText!$B$1&CHAR(10)&ScriptText!$D$1)","v":""},{"$f":"IF(OrigTable!F928=\"\",\"\",TEXT(OrigTable!F928,\"00\"))","v":""},{"$f":"IF(OrigTable!F928=\"\",\"\",ScriptText!$E$1&CHAR(10)&ScriptText!$C$1)","v":""},{"$f":"IF(OrigTable!G928=\"\",\"\",ScriptText!$B$1&CHAR(10)&ScriptText!$D$1)","v":""},{"$f":"IF(OrigTable!G928=\"\",\"\",TEXT(OrigTable!G928,\"00\"))","v":""},{"$f":"IF(OrigTable!G928=\"\",\"\",ScriptText!$E$1&CHAR(10)&ScriptText!$C$1)","v":""},0]
["\n\n\n",{"$f":"IF(OrigTable!A929=\"\",\"\",ScriptText!$B$1&CHAR(10)&ScriptText!$D$1)","v":""},{"$f":"IF(OrigTable!A929=\"\",\"\",TEXT(OrigTable!A929,\"00\"))","v":""},{"$f":"IF(OrigTable!A929=\"\",\"\",ScriptText!$E$1&CHAR(10)&ScriptText!$C$1)","v":""},{"$f":"IF(OrigTable!B929=\"\",\"\",ScriptText!$B$1&CHAR(10)&ScriptText!$D$1)","v":""},{"$f":"IF(OrigTable!B929=\"\",\"\",TEXT(OrigTable!B929,\"00\"))","v":""},{"$f":"IF(OrigTable!B929=\"\",\"\",ScriptText!$E$1&CHAR(10)&ScriptText!C924)","v":""},{"$f":"IF(OrigTable!C929=\"\",\"\",ScriptText!$B$1&CHAR(10)&ScriptText!$D$1)","v":""},{"$f":"IF(OrigTable!C929=\"\",\"\",IF(LEN(OrigTable!C929)>255,LEFT(OrigTable!C929,250)&\". . .\",OrigTable!C929))","v":""},{"$f":"IF(OrigTable!C929=\"\",\"\",ScriptText!$E$1&CHAR(10)&ScriptText!$C$1)","v":""},{"$f":"IF(OrigTable!D929=\"\",\"\",ScriptText!$B$1&CHAR(10)&ScriptText!$D$1)","v":""},{"$f":"IF(OrigTable!D929=\"\",\"\",TEXT(OrigTable!D929,\"00\"))","v":""},{"$f":"IF(OrigTable!D929=\"\",\"\",ScriptText!$E$1&CHAR(10)&ScriptText!$C$1)","v":""},{"$f":"IF(OrigTable!E929=\"\",\"\",ScriptText!$B$1&CHAR(10)&ScriptText!$D$1)","v":""},{"$f":"IF(OrigTable!E929=\"\",\"\",TEXT(OrigTable!E929,\"00\"))","v":""},{"$f":"IF(OrigTable!E929=\"\",\"\",ScriptText!$E$1&CHAR(10)&ScriptText!$C$1)","v":""},{"$f":"IF(OrigTable!F929=\"\",\"\",ScriptText!$B$1&CHAR(10)&ScriptText!$D$1)","v":""},{"$f":"IF(OrigTable!F929=\"\",\"\",TEXT(OrigTable!F929,\"00\"))","v":""},{"$f":"IF(OrigTable!F929=\"\",\"\",ScriptText!$E$1&CHAR(10)&ScriptText!$C$1)","v":""},{"$f":"IF(OrigTable!G929=\"\",\"\",ScriptText!$B$1&CHAR(10)&ScriptText!$D$1)","v":""},{"$f":"IF(OrigTable!G929=\"\",\"\",TEXT(OrigTable!G929,\"00\"))","v":""},{"$f":"IF(OrigTable!G929=\"\",\"\",ScriptText!$E$1&CHAR(10)&ScriptText!$C$1)","v":""},0]
["\n\n\n",{"$f":"IF(OrigTable!A930=\"\",\"\",ScriptText!$B$1&CHAR(10)&ScriptText!$D$1)","v":""},{"$f":"IF(OrigTable!A930=\"\",\"\",TEXT(OrigTable!A930,\"00\"))","v":""},{"$f":"IF(OrigTable!A930=\"\",\"\",ScriptText!$E$1&CHAR(10)&ScriptText!$C$1)","v":""},{"$f":"IF(OrigTable!B930=\"\",\"\",ScriptText!$B$1&CHAR(10)&ScriptText!$D$1)","v":""},{"$f":"IF(OrigTable!B930=\"\",\"\",TEXT(OrigTable!B930,\"00\"))","v":""},{"$f":"IF(OrigTable!B930=\"\",\"\",ScriptText!$E$1&CHAR(10)&ScriptText!C925)","v":""},{"$f":"IF(OrigTable!C930=\"\",\"\",ScriptText!$B$1&CHAR(10)&ScriptText!$D$1)","v":""},{"$f":"IF(OrigTable!C930=\"\",\"\",IF(LEN(OrigTable!C930)>255,LEFT(OrigTable!C930,250)&\". . .\",OrigTable!C930))","v":""},{"$f":"IF(OrigTable!C930=\"\",\"\",ScriptText!$E$1&CHAR(10)&ScriptText!$C$1)","v":""},{"$f":"IF(OrigTable!D930=\"\",\"\",ScriptText!$B$1&CHAR(10)&ScriptText!$D$1)","v":""},{"$f":"IF(OrigTable!D930=\"\",\"\",TEXT(OrigTable!D930,\"00\"))","v":""},{"$f":"IF(OrigTable!D930=\"\",\"\",ScriptText!$E$1&CHAR(10)&ScriptText!$C$1)","v":""},{"$f":"IF(OrigTable!E930=\"\",\"\",ScriptText!$B$1&CHAR(10)&ScriptText!$D$1)","v":""},{"$f":"IF(OrigTable!E930=\"\",\"\",TEXT(OrigTable!E930,\"00\"))","v":""},{"$f":"IF(OrigTable!E930=\"\",\"\",ScriptText!$E$1&CHAR(10)&ScriptText!$C$1)","v":""},{"$f":"IF(OrigTable!F930=\"\",\"\",ScriptText!$B$1&CHAR(10)&ScriptText!$D$1)","v":""},{"$f":"IF(OrigTable!F930=\"\",\"\",TEXT(OrigTable!F930,\"00\"))","v":""},{"$f":"IF(OrigTable!F930=\"\",\"\",ScriptText!$E$1&CHAR(10)&ScriptText!$C$1)","v":""},{"$f":"IF(OrigTable!G930=\"\",\"\",ScriptText!$B$1&CHAR(10)&ScriptText!$D$1)","v":""},{"$f":"IF(OrigTable!G930=\"\",\"\",TEXT(OrigTable!G930,\"00\"))","v":""},{"$f":"IF(OrigTable!G930=\"\",\"\",ScriptText!$E$1&CHAR(10)&ScriptText!$C$1)","v":""},0]
["\n\n\n",{"$f":"IF(OrigTable!A931=\"\",\"\",ScriptText!$B$1&CHAR(10)&ScriptText!$D$1)","v":""},{"$f":"IF(OrigTable!A931=\"\",\"\",TEXT(OrigTable!A931,\"00\"))","v":""},{"$f":"IF(OrigTable!A931=\"\",\"\",ScriptText!$E$1&CHAR(10)&ScriptText!$C$1)","v":""},{"$f":"IF(OrigTable!B931=\"\",\"\",ScriptText!$B$1&CHAR(10)&ScriptText!$D$1)","v":""},{"$f":"IF(OrigTable!B931=\"\",\"\",TEXT(OrigTable!B931,\"00\"))","v":""},{"$f":"IF(OrigTable!B931=\"\",\"\",ScriptText!$E$1&CHAR(10)&ScriptText!C926)","v":""},{"$f":"IF(OrigTable!C931=\"\",\"\",ScriptText!$B$1&CHAR(10)&ScriptText!$D$1)","v":""},{"$f":"IF(OrigTable!C931=\"\",\"\",IF(LEN(OrigTable!C931)>255,LEFT(OrigTable!C931,250)&\". . .\",OrigTable!C931))","v":""},{"$f":"IF(OrigTable!C931=\"\",\"\",ScriptText!$E$1&CHAR(10)&ScriptText!$C$1)","v":""},{"$f":"IF(OrigTable!D931=\"\",\"\",ScriptText!$B$1&CHAR(10)&ScriptText!$D$1)","v":""},{"$f":"IF(OrigTable!D931=\"\",\"\",TEXT(OrigTable!D931,\"00\"))","v":""},{"$f":"IF(OrigTable!D931=\"\",\"\",ScriptText!$E$1&CHAR(10)&ScriptText!$C$1)","v":""},{"$f":"IF(OrigTable!E931=\"\",\"\",ScriptText!$B$1&CHAR(10)&ScriptText!$D$1)","v":""},{"$f":"IF(OrigTable!E931=\"\",\"\",TEXT(OrigTable!E931,\"00\"))","v":""},{"$f":"IF(OrigTable!E931=\"\",\"\",ScriptText!$E$1&CHAR(10)&ScriptText!$C$1)","v":""},{"$f":"IF(OrigTable!F931=\"\",\"\",ScriptText!$B$1&CHAR(10)&ScriptText!$D$1)","v":""},{"$f":"IF(OrigTable!F931=\"\",\"\",TEXT(OrigTable!F931,\"00\"))","v":""},{"$f":"IF(OrigTable!F931=\"\",\"\",ScriptText!$E$1&CHAR(10)&ScriptText!$C$1)","v":""},{"$f":"IF(OrigTable!G931=\"\",\"\",ScriptText!$B$1&CHAR(10)&ScriptText!$D$1)","v":""},{"$f":"IF(OrigTable!G931=\"\",\"\",TEXT(OrigTable!G931,\"00\"))","v":""},{"$f":"IF(OrigTable!G931=\"\",\"\",ScriptText!$E$1&CHAR(10)&ScriptText!$C$1)","v":""},0]
["\n\n\n",{"$f":"IF(OrigTable!A932=\"\",\"\",ScriptText!$B$1&CHAR(10)&ScriptText!$D$1)","v":""},{"$f":"IF(OrigTable!A932=\"\",\"\",TEXT(OrigTable!A932,\"00\"))","v":""},{"$f":"IF(OrigTable!A932=\"\",\"\",ScriptText!$E$1&CHAR(10)&ScriptText!$C$1)","v":""},{"$f":"IF(OrigTable!B932=\"\",\"\",ScriptText!$B$1&CHAR(10)&ScriptText!$D$1)","v":""},{"$f":"IF(OrigTable!B932=\"\",\"\",TEXT(OrigTable!B932,\"00\"))","v":""},{"$f":"IF(OrigTable!B932=\"\",\"\",ScriptText!$E$1&CHAR(10)&ScriptText!C927)","v":""},{"$f":"IF(OrigTable!C932=\"\",\"\",ScriptText!$B$1&CHAR(10)&ScriptText!$D$1)","v":""},{"$f":"IF(OrigTable!C932=\"\",\"\",IF(LEN(OrigTable!C932)>255,LEFT(OrigTable!C932,250)&\". . .\",OrigTable!C932))","v":""},{"$f":"IF(OrigTable!C932=\"\",\"\",ScriptText!$E$1&CHAR(10)&ScriptText!$C$1)","v":""},{"$f":"IF(OrigTable!D932=\"\",\"\",ScriptText!$B$1&CHAR(10)&ScriptText!$D$1)","v":""},{"$f":"IF(OrigTable!D932=\"\",\"\",TEXT(OrigTable!D932,\"00\"))","v":""},{"$f":"IF(OrigTable!D932=\"\",\"\",ScriptText!$E$1&CHAR(10)&ScriptText!$C$1)","v":""},{"$f":"IF(OrigTable!E932=\"\",\"\",ScriptText!$B$1&CHAR(10)&ScriptText!$D$1)","v":""},{"$f":"IF(OrigTable!E932=\"\",\"\",TEXT(OrigTable!E932,\"00\"))","v":""},{"$f":"IF(OrigTable!E932=\"\",\"\",ScriptText!$E$1&CHAR(10)&ScriptText!$C$1)","v":""},{"$f":"IF(OrigTable!F932=\"\",\"\",ScriptText!$B$1&CHAR(10)&ScriptText!$D$1)","v":""},{"$f":"IF(OrigTable!F932=\"\",\"\",TEXT(OrigTable!F932,\"00\"))","v":""},{"$f":"IF(OrigTable!F932=\"\",\"\",ScriptText!$E$1&CHAR(10)&ScriptText!$C$1)","v":""},{"$f":"IF(OrigTable!G932=\"\",\"\",ScriptText!$B$1&CHAR(10)&ScriptText!$D$1)","v":""},{"$f":"IF(OrigTable!G932=\"\",\"\",TEXT(OrigTable!G932,\"00\"))","v":""},{"$f":"IF(OrigTable!G932=\"\",\"\",ScriptText!$E$1&CHAR(10)&ScriptText!$C$1)","v":""},0]
["\n\n\n",{"$f":"IF(OrigTable!A933=\"\",\"\",ScriptText!$B$1&CHAR(10)&ScriptText!$D$1)","v":""},{"$f":"IF(OrigTable!A933=\"\",\"\",TEXT(OrigTable!A933,\"00\"))","v":""},{"$f":"IF(OrigTable!A933=\"\",\"\",ScriptText!$E$1&CHAR(10)&ScriptText!$C$1)","v":""},{"$f":"IF(OrigTable!B933=\"\",\"\",ScriptText!$B$1&CHAR(10)&ScriptText!$D$1)","v":""},{"$f":"IF(OrigTable!B933=\"\",\"\",TEXT(OrigTable!B933,\"00\"))","v":""},{"$f":"IF(OrigTable!B933=\"\",\"\",ScriptText!$E$1&CHAR(10)&ScriptText!C928)","v":""},{"$f":"IF(OrigTable!C933=\"\",\"\",ScriptText!$B$1&CHAR(10)&ScriptText!$D$1)","v":""},{"$f":"IF(OrigTable!C933=\"\",\"\",IF(LEN(OrigTable!C933)>255,LEFT(OrigTable!C933,250)&\". . .\",OrigTable!C933))","v":""},{"$f":"IF(OrigTable!C933=\"\",\"\",ScriptText!$E$1&CHAR(10)&ScriptText!$C$1)","v":""},{"$f":"IF(OrigTable!D933=\"\",\"\",ScriptText!$B$1&CHAR(10)&ScriptText!$D$1)","v":""},{"$f":"IF(OrigTable!D933=\"\",\"\",TEXT(OrigTable!D933,\"00\"))","v":""},{"$f":"IF(OrigTable!D933=\"\",\"\",ScriptText!$E$1&CHAR(10)&ScriptText!$C$1)","v":""},{"$f":"IF(OrigTable!E933=\"\",\"\",ScriptText!$B$1&CHAR(10)&ScriptText!$D$1)","v":""},{"$f":"IF(OrigTable!E933=\"\",\"\",TEXT(OrigTable!E933,\"00\"))","v":""},{"$f":"IF(OrigTable!E933=\"\",\"\",ScriptText!$E$1&CHAR(10)&ScriptText!$C$1)","v":""},{"$f":"IF(OrigTable!F933=\"\",\"\",ScriptText!$B$1&CHAR(10)&ScriptText!$D$1)","v":""},{"$f":"IF(OrigTable!F933=\"\",\"\",TEXT(OrigTable!F933,\"00\"))","v":""},{"$f":"IF(OrigTable!F933=\"\",\"\",ScriptText!$E$1&CHAR(10)&ScriptText!$C$1)","v":""},{"$f":"IF(OrigTable!G933=\"\",\"\",ScriptText!$B$1&CHAR(10)&ScriptText!$D$1)","v":""},{"$f":"IF(OrigTable!G933=\"\",\"\",TEXT(OrigTable!G933,\"00\"))","v":""},{"$f":"IF(OrigTable!G933=\"\",\"\",ScriptText!$E$1&CHAR(10)&ScriptText!$C$1)","v":""},0]
["\n\n\n",{"$f":"IF(OrigTable!A934=\"\",\"\",ScriptText!$B$1&CHAR(10)&ScriptText!$D$1)","v":""},{"$f":"IF(OrigTable!A934=\"\",\"\",TEXT(OrigTable!A934,\"00\"))","v":""},{"$f":"IF(OrigTable!A934=\"\",\"\",ScriptText!$E$1&CHAR(10)&ScriptText!$C$1)","v":""},{"$f":"IF(OrigTable!B934=\"\",\"\",ScriptText!$B$1&CHAR(10)&ScriptText!$D$1)","v":""},{"$f":"IF(OrigTable!B934=\"\",\"\",TEXT(OrigTable!B934,\"00\"))","v":""},{"$f":"IF(OrigTable!B934=\"\",\"\",ScriptText!$E$1&CHAR(10)&ScriptText!C929)","v":""},{"$f":"IF(OrigTable!C934=\"\",\"\",ScriptText!$B$1&CHAR(10)&ScriptText!$D$1)","v":""},{"$f":"IF(OrigTable!C934=\"\",\"\",IF(LEN(OrigTable!C934)>255,LEFT(OrigTable!C934,250)&\". . .\",OrigTable!C934))","v":""},{"$f":"IF(OrigTable!C934=\"\",\"\",ScriptText!$E$1&CHAR(10)&ScriptText!$C$1)","v":""},{"$f":"IF(OrigTable!D934=\"\",\"\",ScriptText!$B$1&CHAR(10)&ScriptText!$D$1)","v":""},{"$f":"IF(OrigTable!D934=\"\",\"\",TEXT(OrigTable!D934,\"00\"))","v":""},{"$f":"IF(OrigTable!D934=\"\",\"\",ScriptText!$E$1&CHAR(10)&ScriptText!$C$1)","v":""},{"$f":"IF(OrigTable!E934=\"\",\"\",ScriptText!$B$1&CHAR(10)&ScriptText!$D$1)","v":""},{"$f":"IF(OrigTable!E934=\"\",\"\",TEXT(OrigTable!E934,\"00\"))","v":""},{"$f":"IF(OrigTable!E934=\"\",\"\",ScriptText!$E$1&CHAR(10)&ScriptText!$C$1)","v":""},{"$f":"IF(OrigTable!F934=\"\",\"\",ScriptText!$B$1&CHAR(10)&ScriptText!$D$1)","v":""},{"$f":"IF(OrigTable!F934=\"\",\"\",TEXT(OrigTable!F934,\"00\"))","v":""},{"$f":"IF(OrigTable!F934=\"\",\"\",ScriptText!$E$1&CHAR(10)&ScriptText!$C$1)","v":""},{"$f":"IF(OrigTable!G934=\"\",\"\",ScriptText!$B$1&CHAR(10)&ScriptText!$D$1)","v":""},{"$f":"IF(OrigTable!G934=\"\",\"\",TEXT(OrigTable!G934,\"00\"))","v":""},{"$f":"IF(OrigTable!G934=\"\",\"\",ScriptText!$E$1&CHAR(10)&ScriptText!$C$1)","v":""},0]
["\n\n\n",{"$f":"IF(OrigTable!A935=\"\",\"\",ScriptText!$B$1&CHAR(10)&ScriptText!$D$1)","v":""},{"$f":"IF(OrigTable!A935=\"\",\"\",TEXT(OrigTable!A935,\"00\"))","v":""},{"$f":"IF(OrigTable!A935=\"\",\"\",ScriptText!$E$1&CHAR(10)&ScriptText!$C$1)","v":""},{"$f":"IF(OrigTable!B935=\"\",\"\",ScriptText!$B$1&CHAR(10)&ScriptText!$D$1)","v":""},{"$f":"IF(OrigTable!B935=\"\",\"\",TEXT(OrigTable!B935,\"00\"))","v":""},{"$f":"IF(OrigTable!B935=\"\",\"\",ScriptText!$E$1&CHAR(10)&ScriptText!C930)","v":""},{"$f":"IF(OrigTable!C935=\"\",\"\",ScriptText!$B$1&CHAR(10)&ScriptText!$D$1)","v":""},{"$f":"IF(OrigTable!C935=\"\",\"\",IF(LEN(OrigTable!C935)>255,LEFT(OrigTable!C935,250)&\". . .\",OrigTable!C935))","v":""},{"$f":"IF(OrigTable!C935=\"\",\"\",ScriptText!$E$1&CHAR(10)&ScriptText!$C$1)","v":""},{"$f":"IF(OrigTable!D935=\"\",\"\",ScriptText!$B$1&CHAR(10)&ScriptText!$D$1)","v":""},{"$f":"IF(OrigTable!D935=\"\",\"\",TEXT(OrigTable!D935,\"00\"))","v":""},{"$f":"IF(OrigTable!D935=\"\",\"\",ScriptText!$E$1&CHAR(10)&ScriptText!$C$1)","v":""},{"$f":"IF(OrigTable!E935=\"\",\"\",ScriptText!$B$1&CHAR(10)&ScriptText!$D$1)","v":""},{"$f":"IF(OrigTable!E935=\"\",\"\",TEXT(OrigTable!E935,\"00\"))","v":""},{"$f":"IF(OrigTable!E935=\"\",\"\",ScriptText!$E$1&CHAR(10)&ScriptText!$C$1)","v":""},{"$f":"IF(OrigTable!F935=\"\",\"\",ScriptText!$B$1&CHAR(10)&ScriptText!$D$1)","v":""},{"$f":"IF(OrigTable!F935=\"\",\"\",TEXT(OrigTable!F935,\"00\"))","v":""},{"$f":"IF(OrigTable!F935=\"\",\"\",ScriptText!$E$1&CHAR(10)&ScriptText!$C$1)","v":""},{"$f":"IF(OrigTable!G935=\"\",\"\",ScriptText!$B$1&CHAR(10)&ScriptText!$D$1)","v":""},{"$f":"IF(OrigTable!G935=\"\",\"\",TEXT(OrigTable!G935,\"00\"))","v":""},{"$f":"IF(OrigTable!G935=\"\",\"\",ScriptText!$E$1&CHAR(10)&ScriptText!$C$1)","v":""},0]
["\n\n\n",{"$f":"IF(OrigTable!A936=\"\",\"\",ScriptText!$B$1&CHAR(10)&ScriptText!$D$1)","v":""},{"$f":"IF(OrigTable!A936=\"\",\"\",TEXT(OrigTable!A936,\"00\"))","v":""},{"$f":"IF(OrigTable!A936=\"\",\"\",ScriptText!$E$1&CHAR(10)&ScriptText!$C$1)","v":""},{"$f":"IF(OrigTable!B936=\"\",\"\",ScriptText!$B$1&CHAR(10)&ScriptText!$D$1)","v":""},{"$f":"IF(OrigTable!B936=\"\",\"\",TEXT(OrigTable!B936,\"00\"))","v":""},{"$f":"IF(OrigTable!B936=\"\",\"\",ScriptText!$E$1&CHAR(10)&ScriptText!C931)","v":""},{"$f":"IF(OrigTable!C936=\"\",\"\",ScriptText!$B$1&CHAR(10)&ScriptText!$D$1)","v":""},{"$f":"IF(OrigTable!C936=\"\",\"\",IF(LEN(OrigTable!C936)>255,LEFT(OrigTable!C936,250)&\". . .\",OrigTable!C936))","v":""},{"$f":"IF(OrigTable!C936=\"\",\"\",ScriptText!$E$1&CHAR(10)&ScriptText!$C$1)","v":""},{"$f":"IF(OrigTable!D936=\"\",\"\",ScriptText!$B$1&CHAR(10)&ScriptText!$D$1)","v":""},{"$f":"IF(OrigTable!D936=\"\",\"\",TEXT(OrigTable!D936,\"00\"))","v":""},{"$f":"IF(OrigTable!D936=\"\",\"\",ScriptText!$E$1&CHAR(10)&ScriptText!$C$1)","v":""},{"$f":"IF(OrigTable!E936=\"\",\"\",ScriptText!$B$1&CHAR(10)&ScriptText!$D$1)","v":""},{"$f":"IF(OrigTable!E936=\"\",\"\",TEXT(OrigTable!E936,\"00\"))","v":""},{"$f":"IF(OrigTable!E936=\"\",\"\",ScriptText!$E$1&CHAR(10)&ScriptText!$C$1)","v":""},{"$f":"IF(OrigTable!F936=\"\",\"\",ScriptText!$B$1&CHAR(10)&ScriptText!$D$1)","v":""},{"$f":"IF(OrigTable!F936=\"\",\"\",TEXT(OrigTable!F936,\"00\"))","v":""},{"$f":"IF(OrigTable!F936=\"\",\"\",ScriptText!$E$1&CHAR(10)&ScriptText!$C$1)","v":""},{"$f":"IF(OrigTable!G936=\"\",\"\",ScriptText!$B$1&CHAR(10)&ScriptText!$D$1)","v":""},{"$f":"IF(OrigTable!G936=\"\",\"\",TEXT(OrigTable!G936,\"00\"))","v":""},{"$f":"IF(OrigTable!G936=\"\",\"\",ScriptText!$E$1&CHAR(10)&ScriptText!$C$1)","v":""},0]
["\n\n\n",{"$f":"IF(OrigTable!A937=\"\",\"\",ScriptText!$B$1&CHAR(10)&ScriptText!$D$1)","v":""},{"$f":"IF(OrigTable!A937=\"\",\"\",TEXT(OrigTable!A937,\"00\"))","v":""},{"$f":"IF(OrigTable!A937=\"\",\"\",ScriptText!$E$1&CHAR(10)&ScriptText!$C$1)","v":""},{"$f":"IF(OrigTable!B937=\"\",\"\",ScriptText!$B$1&CHAR(10)&ScriptText!$D$1)","v":""},{"$f":"IF(OrigTable!B937=\"\",\"\",TEXT(OrigTable!B937,\"00\"))","v":""},{"$f":"IF(OrigTable!B937=\"\",\"\",ScriptText!$E$1&CHAR(10)&ScriptText!C932)","v":""},{"$f":"IF(OrigTable!C937=\"\",\"\",ScriptText!$B$1&CHAR(10)&ScriptText!$D$1)","v":""},{"$f":"IF(OrigTable!C937=\"\",\"\",IF(LEN(OrigTable!C937)>255,LEFT(OrigTable!C937,250)&\". . .\",OrigTable!C937))","v":""},{"$f":"IF(OrigTable!C937=\"\",\"\",ScriptText!$E$1&CHAR(10)&ScriptText!$C$1)","v":""},{"$f":"IF(OrigTable!D937=\"\",\"\",ScriptText!$B$1&CHAR(10)&ScriptText!$D$1)","v":""},{"$f":"IF(OrigTable!D937=\"\",\"\",TEXT(OrigTable!D937,\"00\"))","v":""},{"$f":"IF(OrigTable!D937=\"\",\"\",ScriptText!$E$1&CHAR(10)&ScriptText!$C$1)","v":""},{"$f":"IF(OrigTable!E937=\"\",\"\",ScriptText!$B$1&CHAR(10)&ScriptText!$D$1)","v":""},{"$f":"IF(OrigTable!E937=\"\",\"\",TEXT(OrigTable!E937,\"00\"))","v":""},{"$f":"IF(OrigTable!E937=\"\",\"\",ScriptText!$E$1&CHAR(10)&ScriptText!$C$1)","v":""},{"$f":"IF(OrigTable!F937=\"\",\"\",ScriptText!$B$1&CHAR(10)&ScriptText!$D$1)","v":""},{"$f":"IF(OrigTable!F937=\"\",\"\",TEXT(OrigTable!F937,\"00\"))","v":""},{"$f":"IF(OrigTable!F937=\"\",\"\",ScriptText!$E$1&CHAR(10)&ScriptText!$C$1)","v":""},{"$f":"IF(OrigTable!G937=\"\",\"\",ScriptText!$B$1&CHAR(10)&ScriptText!$D$1)","v":""},{"$f":"IF(OrigTable!G937=\"\",\"\",TEXT(OrigTable!G937,\"00\"))","v":""},{"$f":"IF(OrigTable!G937=\"\",\"\",ScriptText!$E$1&CHAR(10)&ScriptText!$C$1)","v":""},0]
["\n\n\n",{"$f":"IF(OrigTable!A938=\"\",\"\",ScriptText!$B$1&CHAR(10)&ScriptText!$D$1)","v":""},{"$f":"IF(OrigTable!A938=\"\",\"\",TEXT(OrigTable!A938,\"00\"))","v":""},{"$f":"IF(OrigTable!A938=\"\",\"\",ScriptText!$E$1&CHAR(10)&ScriptText!$C$1)","v":""},{"$f":"IF(OrigTable!B938=\"\",\"\",ScriptText!$B$1&CHAR(10)&ScriptText!$D$1)","v":""},{"$f":"IF(OrigTable!B938=\"\",\"\",TEXT(OrigTable!B938,\"00\"))","v":""},{"$f":"IF(OrigTable!B938=\"\",\"\",ScriptText!$E$1&CHAR(10)&ScriptText!C933)","v":""},{"$f":"IF(OrigTable!C938=\"\",\"\",ScriptText!$B$1&CHAR(10)&ScriptText!$D$1)","v":""},{"$f":"IF(OrigTable!C938=\"\",\"\",IF(LEN(OrigTable!C938)>255,LEFT(OrigTable!C938,250)&\". . .\",OrigTable!C938))","v":""},{"$f":"IF(OrigTable!C938=\"\",\"\",ScriptText!$E$1&CHAR(10)&ScriptText!$C$1)","v":""},{"$f":"IF(OrigTable!D938=\"\",\"\",ScriptText!$B$1&CHAR(10)&ScriptText!$D$1)","v":""},{"$f":"IF(OrigTable!D938=\"\",\"\",TEXT(OrigTable!D938,\"00\"))","v":""},{"$f":"IF(OrigTable!D938=\"\",\"\",ScriptText!$E$1&CHAR(10)&ScriptText!$C$1)","v":""},{"$f":"IF(OrigTable!E938=\"\",\"\",ScriptText!$B$1&CHAR(10)&ScriptText!$D$1)","v":""},{"$f":"IF(OrigTable!E938=\"\",\"\",TEXT(OrigTable!E938,\"00\"))","v":""},{"$f":"IF(OrigTable!E938=\"\",\"\",ScriptText!$E$1&CHAR(10)&ScriptText!$C$1)","v":""},{"$f":"IF(OrigTable!F938=\"\",\"\",ScriptText!$B$1&CHAR(10)&ScriptText!$D$1)","v":""},{"$f":"IF(OrigTable!F938=\"\",\"\",TEXT(OrigTable!F938,\"00\"))","v":""},{"$f":"IF(OrigTable!F938=\"\",\"\",ScriptText!$E$1&CHAR(10)&ScriptText!$C$1)","v":""},{"$f":"IF(OrigTable!G938=\"\",\"\",ScriptText!$B$1&CHAR(10)&ScriptText!$D$1)","v":""},{"$f":"IF(OrigTable!G938=\"\",\"\",TEXT(OrigTable!G938,\"00\"))","v":""},{"$f":"IF(OrigTable!G938=\"\",\"\",ScriptText!$E$1&CHAR(10)&ScriptText!$C$1)","v":""},0]
["\n\n\n",{"$f":"IF(OrigTable!A939=\"\",\"\",ScriptText!$B$1&CHAR(10)&ScriptText!$D$1)","v":""},{"$f":"IF(OrigTable!A939=\"\",\"\",TEXT(OrigTable!A939,\"00\"))","v":""},{"$f":"IF(OrigTable!A939=\"\",\"\",ScriptText!$E$1&CHAR(10)&ScriptText!$C$1)","v":""},{"$f":"IF(OrigTable!B939=\"\",\"\",ScriptText!$B$1&CHAR(10)&ScriptText!$D$1)","v":""},{"$f":"IF(OrigTable!B939=\"\",\"\",TEXT(OrigTable!B939,\"00\"))","v":""},{"$f":"IF(OrigTable!B939=\"\",\"\",ScriptText!$E$1&CHAR(10)&ScriptText!C934)","v":""},{"$f":"IF(OrigTable!C939=\"\",\"\",ScriptText!$B$1&CHAR(10)&ScriptText!$D$1)","v":""},{"$f":"IF(OrigTable!C939=\"\",\"\",IF(LEN(OrigTable!C939)>255,LEFT(OrigTable!C939,250)&\". . .\",OrigTable!C939))","v":""},{"$f":"IF(OrigTable!C939=\"\",\"\",ScriptText!$E$1&CHAR(10)&ScriptText!$C$1)","v":""},{"$f":"IF(OrigTable!D939=\"\",\"\",ScriptText!$B$1&CHAR(10)&ScriptText!$D$1)","v":""},{"$f":"IF(OrigTable!D939=\"\",\"\",TEXT(OrigTable!D939,\"00\"))","v":""},{"$f":"IF(OrigTable!D939=\"\",\"\",ScriptText!$E$1&CHAR(10)&ScriptText!$C$1)","v":""},{"$f":"IF(OrigTable!E939=\"\",\"\",ScriptText!$B$1&CHAR(10)&ScriptText!$D$1)","v":""},{"$f":"IF(OrigTable!E939=\"\",\"\",TEXT(OrigTable!E939,\"00\"))","v":""},{"$f":"IF(OrigTable!E939=\"\",\"\",ScriptText!$E$1&CHAR(10)&ScriptText!$C$1)","v":""},{"$f":"IF(OrigTable!F939=\"\",\"\",ScriptText!$B$1&CHAR(10)&ScriptText!$D$1)","v":""},{"$f":"IF(OrigTable!F939=\"\",\"\",TEXT(OrigTable!F939,\"00\"))","v":""},{"$f":"IF(OrigTable!F939=\"\",\"\",ScriptText!$E$1&CHAR(10)&ScriptText!$C$1)","v":""},{"$f":"IF(OrigTable!G939=\"\",\"\",ScriptText!$B$1&CHAR(10)&ScriptText!$D$1)","v":""},{"$f":"IF(OrigTable!G939=\"\",\"\",TEXT(OrigTable!G939,\"00\"))","v":""},{"$f":"IF(OrigTable!G939=\"\",\"\",ScriptText!$E$1&CHAR(10)&ScriptText!$C$1)","v":""},0]
["\n\n\n",{"$f":"IF(OrigTable!A940=\"\",\"\",ScriptText!$B$1&CHAR(10)&ScriptText!$D$1)","v":""},{"$f":"IF(OrigTable!A940=\"\",\"\",TEXT(OrigTable!A940,\"00\"))","v":""},{"$f":"IF(OrigTable!A940=\"\",\"\",ScriptText!$E$1&CHAR(10)&ScriptText!$C$1)","v":""},{"$f":"IF(OrigTable!B940=\"\",\"\",ScriptText!$B$1&CHAR(10)&ScriptText!$D$1)","v":""},{"$f":"IF(OrigTable!B940=\"\",\"\",TEXT(OrigTable!B940,\"00\"))","v":""},{"$f":"IF(OrigTable!B940=\"\",\"\",ScriptText!$E$1&CHAR(10)&ScriptText!C935)","v":""},{"$f":"IF(OrigTable!C940=\"\",\"\",ScriptText!$B$1&CHAR(10)&ScriptText!$D$1)","v":""},{"$f":"IF(OrigTable!C940=\"\",\"\",IF(LEN(OrigTable!C940)>255,LEFT(OrigTable!C940,250)&\". . .\",OrigTable!C940))","v":""},{"$f":"IF(OrigTable!C940=\"\",\"\",ScriptText!$E$1&CHAR(10)&ScriptText!$C$1)","v":""},{"$f":"IF(OrigTable!D940=\"\",\"\",ScriptText!$B$1&CHAR(10)&ScriptText!$D$1)","v":""},{"$f":"IF(OrigTable!D940=\"\",\"\",TEXT(OrigTable!D940,\"00\"))","v":""},{"$f":"IF(OrigTable!D940=\"\",\"\",ScriptText!$E$1&CHAR(10)&ScriptText!$C$1)","v":""},{"$f":"IF(OrigTable!E940=\"\",\"\",ScriptText!$B$1&CHAR(10)&ScriptText!$D$1)","v":""},{"$f":"IF(OrigTable!E940=\"\",\"\",TEXT(OrigTable!E940,\"00\"))","v":""},{"$f":"IF(OrigTable!E940=\"\",\"\",ScriptText!$E$1&CHAR(10)&ScriptText!$C$1)","v":""},{"$f":"IF(OrigTable!F940=\"\",\"\",ScriptText!$B$1&CHAR(10)&ScriptText!$D$1)","v":""},{"$f":"IF(OrigTable!F940=\"\",\"\",TEXT(OrigTable!F940,\"00\"))","v":""},{"$f":"IF(OrigTable!F940=\"\",\"\",ScriptText!$E$1&CHAR(10)&ScriptText!$C$1)","v":""},{"$f":"IF(OrigTable!G940=\"\",\"\",ScriptText!$B$1&CHAR(10)&ScriptText!$D$1)","v":""},{"$f":"IF(OrigTable!G940=\"\",\"\",TEXT(OrigTable!G940,\"00\"))","v":""},{"$f":"IF(OrigTable!G940=\"\",\"\",ScriptText!$E$1&CHAR(10)&ScriptText!$C$1)","v":""},0]
["\n\n\n",{"$f":"IF(OrigTable!A941=\"\",\"\",ScriptText!$B$1&CHAR(10)&ScriptText!$D$1)","v":""},{"$f":"IF(OrigTable!A941=\"\",\"\",TEXT(OrigTable!A941,\"00\"))","v":""},{"$f":"IF(OrigTable!A941=\"\",\"\",ScriptText!$E$1&CHAR(10)&ScriptText!$C$1)","v":""},{"$f":"IF(OrigTable!B941=\"\",\"\",ScriptText!$B$1&CHAR(10)&ScriptText!$D$1)","v":""},{"$f":"IF(OrigTable!B941=\"\",\"\",TEXT(OrigTable!B941,\"00\"))","v":""},{"$f":"IF(OrigTable!B941=\"\",\"\",ScriptText!$E$1&CHAR(10)&ScriptText!C936)","v":""},{"$f":"IF(OrigTable!C941=\"\",\"\",ScriptText!$B$1&CHAR(10)&ScriptText!$D$1)","v":""},{"$f":"IF(OrigTable!C941=\"\",\"\",IF(LEN(OrigTable!C941)>255,LEFT(OrigTable!C941,250)&\". . .\",OrigTable!C941))","v":""},{"$f":"IF(OrigTable!C941=\"\",\"\",ScriptText!$E$1&CHAR(10)&ScriptText!$C$1)","v":""},{"$f":"IF(OrigTable!D941=\"\",\"\",ScriptText!$B$1&CHAR(10)&ScriptText!$D$1)","v":""},{"$f":"IF(OrigTable!D941=\"\",\"\",TEXT(OrigTable!D941,\"00\"))","v":""},{"$f":"IF(OrigTable!D941=\"\",\"\",ScriptText!$E$1&CHAR(10)&ScriptText!$C$1)","v":""},{"$f":"IF(OrigTable!E941=\"\",\"\",ScriptText!$B$1&CHAR(10)&ScriptText!$D$1)","v":""},{"$f":"IF(OrigTable!E941=\"\",\"\",TEXT(OrigTable!E941,\"00\"))","v":""},{"$f":"IF(OrigTable!E941=\"\",\"\",ScriptText!$E$1&CHAR(10)&ScriptText!$C$1)","v":""},{"$f":"IF(OrigTable!F941=\"\",\"\",ScriptText!$B$1&CHAR(10)&ScriptText!$D$1)","v":""},{"$f":"IF(OrigTable!F941=\"\",\"\",TEXT(OrigTable!F941,\"00\"))","v":""},{"$f":"IF(OrigTable!F941=\"\",\"\",ScriptText!$E$1&CHAR(10)&ScriptText!$C$1)","v":""},{"$f":"IF(OrigTable!G941=\"\",\"\",ScriptText!$B$1&CHAR(10)&ScriptText!$D$1)","v":""},{"$f":"IF(OrigTable!G941=\"\",\"\",TEXT(OrigTable!G941,\"00\"))","v":""},{"$f":"IF(OrigTable!G941=\"\",\"\",ScriptText!$E$1&CHAR(10)&ScriptText!$C$1)","v":""},0]
["\n\n\n",{"$f":"IF(OrigTable!A942=\"\",\"\",ScriptText!$B$1&CHAR(10)&ScriptText!$D$1)","v":""},{"$f":"IF(OrigTable!A942=\"\",\"\",TEXT(OrigTable!A942,\"00\"))","v":""},{"$f":"IF(OrigTable!A942=\"\",\"\",ScriptText!$E$1&CHAR(10)&ScriptText!$C$1)","v":""},{"$f":"IF(OrigTable!B942=\"\",\"\",ScriptText!$B$1&CHAR(10)&ScriptText!$D$1)","v":""},{"$f":"IF(OrigTable!B942=\"\",\"\",TEXT(OrigTable!B942,\"00\"))","v":""},{"$f":"IF(OrigTable!B942=\"\",\"\",ScriptText!$E$1&CHAR(10)&ScriptText!C937)","v":""},{"$f":"IF(OrigTable!C942=\"\",\"\",ScriptText!$B$1&CHAR(10)&ScriptText!$D$1)","v":""},{"$f":"IF(OrigTable!C942=\"\",\"\",IF(LEN(OrigTable!C942)>255,LEFT(OrigTable!C942,250)&\". . .\",OrigTable!C942))","v":""},{"$f":"IF(OrigTable!C942=\"\",\"\",ScriptText!$E$1&CHAR(10)&ScriptText!$C$1)","v":""},{"$f":"IF(OrigTable!D942=\"\",\"\",ScriptText!$B$1&CHAR(10)&ScriptText!$D$1)","v":""},{"$f":"IF(OrigTable!D942=\"\",\"\",TEXT(OrigTable!D942,\"00\"))","v":""},{"$f":"IF(OrigTable!D942=\"\",\"\",ScriptText!$E$1&CHAR(10)&ScriptText!$C$1)","v":""},{"$f":"IF(OrigTable!E942=\"\",\"\",ScriptText!$B$1&CHAR(10)&ScriptText!$D$1)","v":""},{"$f":"IF(OrigTable!E942=\"\",\"\",TEXT(OrigTable!E942,\"00\"))","v":""},{"$f":"IF(OrigTable!E942=\"\",\"\",ScriptText!$E$1&CHAR(10)&ScriptText!$C$1)","v":""},{"$f":"IF(OrigTable!F942=\"\",\"\",ScriptText!$B$1&CHAR(10)&ScriptText!$D$1)","v":""},{"$f":"IF(OrigTable!F942=\"\",\"\",TEXT(OrigTable!F942,\"00\"))","v":""},{"$f":"IF(OrigTable!F942=\"\",\"\",ScriptText!$E$1&CHAR(10)&ScriptText!$C$1)","v":""},{"$f":"IF(OrigTable!G942=\"\",\"\",ScriptText!$B$1&CHAR(10)&ScriptText!$D$1)","v":""},{"$f":"IF(OrigTable!G942=\"\",\"\",TEXT(OrigTable!G942,\"00\"))","v":""},{"$f":"IF(OrigTable!G942=\"\",\"\",ScriptText!$E$1&CHAR(10)&ScriptText!$C$1)","v":""},0]
["\n\n\n",{"$f":"IF(OrigTable!A943=\"\",\"\",ScriptText!$B$1&CHAR(10)&ScriptText!$D$1)","v":""},{"$f":"IF(OrigTable!A943=\"\",\"\",TEXT(OrigTable!A943,\"00\"))","v":""},{"$f":"IF(OrigTable!A943=\"\",\"\",ScriptText!$E$1&CHAR(10)&ScriptText!$C$1)","v":""},{"$f":"IF(OrigTable!B943=\"\",\"\",ScriptText!$B$1&CHAR(10)&ScriptText!$D$1)","v":""},{"$f":"IF(OrigTable!B943=\"\",\"\",TEXT(OrigTable!B943,\"00\"))","v":""},{"$f":"IF(OrigTable!B943=\"\",\"\",ScriptText!$E$1&CHAR(10)&ScriptText!C938)","v":""},{"$f":"IF(OrigTable!C943=\"\",\"\",ScriptText!$B$1&CHAR(10)&ScriptText!$D$1)","v":""},{"$f":"IF(OrigTable!C943=\"\",\"\",IF(LEN(OrigTable!C943)>255,LEFT(OrigTable!C943,250)&\". . .\",OrigTable!C943))","v":""},{"$f":"IF(OrigTable!C943=\"\",\"\",ScriptText!$E$1&CHAR(10)&ScriptText!$C$1)","v":""},{"$f":"IF(OrigTable!D943=\"\",\"\",ScriptText!$B$1&CHAR(10)&ScriptText!$D$1)","v":""},{"$f":"IF(OrigTable!D943=\"\",\"\",TEXT(OrigTable!D943,\"00\"))","v":""},{"$f":"IF(OrigTable!D943=\"\",\"\",ScriptText!$E$1&CHAR(10)&ScriptText!$C$1)","v":""},{"$f":"IF(OrigTable!E943=\"\",\"\",ScriptText!$B$1&CHAR(10)&ScriptText!$D$1)","v":""},{"$f":"IF(OrigTable!E943=\"\",\"\",TEXT(OrigTable!E943,\"00\"))","v":""},{"$f":"IF(OrigTable!E943=\"\",\"\",ScriptText!$E$1&CHAR(10)&ScriptText!$C$1)","v":""},{"$f":"IF(OrigTable!F943=\"\",\"\",ScriptText!$B$1&CHAR(10)&ScriptText!$D$1)","v":""},{"$f":"IF(OrigTable!F943=\"\",\"\",TEXT(OrigTable!F943,\"00\"))","v":""},{"$f":"IF(OrigTable!F943=\"\",\"\",ScriptText!$E$1&CHAR(10)&ScriptText!$C$1)","v":""},{"$f":"IF(OrigTable!G943=\"\",\"\",ScriptText!$B$1&CHAR(10)&ScriptText!$D$1)","v":""},{"$f":"IF(OrigTable!G943=\"\",\"\",TEXT(OrigTable!G943,\"00\"))","v":""},{"$f":"IF(OrigTable!G943=\"\",\"\",ScriptText!$E$1&CHAR(10)&ScriptText!$C$1)","v":""},0]
["\n\n\n",{"$f":"IF(OrigTable!A944=\"\",\"\",ScriptText!$B$1&CHAR(10)&ScriptText!$D$1)","v":""},{"$f":"IF(OrigTable!A944=\"\",\"\",TEXT(OrigTable!A944,\"00\"))","v":""},{"$f":"IF(OrigTable!A944=\"\",\"\",ScriptText!$E$1&CHAR(10)&ScriptText!$C$1)","v":""},{"$f":"IF(OrigTable!B944=\"\",\"\",ScriptText!$B$1&CHAR(10)&ScriptText!$D$1)","v":""},{"$f":"IF(OrigTable!B944=\"\",\"\",TEXT(OrigTable!B944,\"00\"))","v":""},{"$f":"IF(OrigTable!B944=\"\",\"\",ScriptText!$E$1&CHAR(10)&ScriptText!C939)","v":""},{"$f":"IF(OrigTable!C944=\"\",\"\",ScriptText!$B$1&CHAR(10)&ScriptText!$D$1)","v":""},{"$f":"IF(OrigTable!C944=\"\",\"\",IF(LEN(OrigTable!C944)>255,LEFT(OrigTable!C944,250)&\". . .\",OrigTable!C944))","v":""},{"$f":"IF(OrigTable!C944=\"\",\"\",ScriptText!$E$1&CHAR(10)&ScriptText!$C$1)","v":""},{"$f":"IF(OrigTable!D944=\"\",\"\",ScriptText!$B$1&CHAR(10)&ScriptText!$D$1)","v":""},{"$f":"IF(OrigTable!D944=\"\",\"\",TEXT(OrigTable!D944,\"00\"))","v":""},{"$f":"IF(OrigTable!D944=\"\",\"\",ScriptText!$E$1&CHAR(10)&ScriptText!$C$1)","v":""},{"$f":"IF(OrigTable!E944=\"\",\"\",ScriptText!$B$1&CHAR(10)&ScriptText!$D$1)","v":""},{"$f":"IF(OrigTable!E944=\"\",\"\",TEXT(OrigTable!E944,\"00\"))","v":""},{"$f":"IF(OrigTable!E944=\"\",\"\",ScriptText!$E$1&CHAR(10)&ScriptText!$C$1)","v":""},{"$f":"IF(OrigTable!F944=\"\",\"\",ScriptText!$B$1&CHAR(10)&ScriptText!$D$1)","v":""},{"$f":"IF(OrigTable!F944=\"\",\"\",TEXT(OrigTable!F944,\"00\"))","v":""},{"$f":"IF(OrigTable!F944=\"\",\"\",ScriptText!$E$1&CHAR(10)&ScriptText!$C$1)","v":""},{"$f":"IF(OrigTable!G944=\"\",\"\",ScriptText!$B$1&CHAR(10)&ScriptText!$D$1)","v":""},{"$f":"IF(OrigTable!G944=\"\",\"\",TEXT(OrigTable!G944,\"00\"))","v":""},{"$f":"IF(OrigTable!G944=\"\",\"\",ScriptText!$E$1&CHAR(10)&ScriptText!$C$1)","v":""},0]
["\n\n\n",{"$f":"IF(OrigTable!A945=\"\",\"\",ScriptText!$B$1&CHAR(10)&ScriptText!$D$1)","v":""},{"$f":"IF(OrigTable!A945=\"\",\"\",TEXT(OrigTable!A945,\"00\"))","v":""},{"$f":"IF(OrigTable!A945=\"\",\"\",ScriptText!$E$1&CHAR(10)&ScriptText!$C$1)","v":""},{"$f":"IF(OrigTable!B945=\"\",\"\",ScriptText!$B$1&CHAR(10)&ScriptText!$D$1)","v":""},{"$f":"IF(OrigTable!B945=\"\",\"\",TEXT(OrigTable!B945,\"00\"))","v":""},{"$f":"IF(OrigTable!B945=\"\",\"\",ScriptText!$E$1&CHAR(10)&ScriptText!C940)","v":""},{"$f":"IF(OrigTable!C945=\"\",\"\",ScriptText!$B$1&CHAR(10)&ScriptText!$D$1)","v":""},{"$f":"IF(OrigTable!C945=\"\",\"\",IF(LEN(OrigTable!C945)>255,LEFT(OrigTable!C945,250)&\". . .\",OrigTable!C945))","v":""},{"$f":"IF(OrigTable!C945=\"\",\"\",ScriptText!$E$1&CHAR(10)&ScriptText!$C$1)","v":""},{"$f":"IF(OrigTable!D945=\"\",\"\",ScriptText!$B$1&CHAR(10)&ScriptText!$D$1)","v":""},{"$f":"IF(OrigTable!D945=\"\",\"\",TEXT(OrigTable!D945,\"00\"))","v":""},{"$f":"IF(OrigTable!D945=\"\",\"\",ScriptText!$E$1&CHAR(10)&ScriptText!$C$1)","v":""},{"$f":"IF(OrigTable!E945=\"\",\"\",ScriptText!$B$1&CHAR(10)&ScriptText!$D$1)","v":""},{"$f":"IF(OrigTable!E945=\"\",\"\",TEXT(OrigTable!E945,\"00\"))","v":""},{"$f":"IF(OrigTable!E945=\"\",\"\",ScriptText!$E$1&CHAR(10)&ScriptText!$C$1)","v":""},{"$f":"IF(OrigTable!F945=\"\",\"\",ScriptText!$B$1&CHAR(10)&ScriptText!$D$1)","v":""},{"$f":"IF(OrigTable!F945=\"\",\"\",TEXT(OrigTable!F945,\"00\"))","v":""},{"$f":"IF(OrigTable!F945=\"\",\"\",ScriptText!$E$1&CHAR(10)&ScriptText!$C$1)","v":""},{"$f":"IF(OrigTable!G945=\"\",\"\",ScriptText!$B$1&CHAR(10)&ScriptText!$D$1)","v":""},{"$f":"IF(OrigTable!G945=\"\",\"\",TEXT(OrigTable!G945,\"00\"))","v":""},{"$f":"IF(OrigTable!G945=\"\",\"\",ScriptText!$E$1&CHAR(10)&ScriptText!$C$1)","v":""},0]
["\n\n\n",{"$f":"IF(OrigTable!A946=\"\",\"\",ScriptText!$B$1&CHAR(10)&ScriptText!$D$1)","v":""},{"$f":"IF(OrigTable!A946=\"\",\"\",TEXT(OrigTable!A946,\"00\"))","v":""},{"$f":"IF(OrigTable!A946=\"\",\"\",ScriptText!$E$1&CHAR(10)&ScriptText!$C$1)","v":""},{"$f":"IF(OrigTable!B946=\"\",\"\",ScriptText!$B$1&CHAR(10)&ScriptText!$D$1)","v":""},{"$f":"IF(OrigTable!B946=\"\",\"\",TEXT(OrigTable!B946,\"00\"))","v":""},{"$f":"IF(OrigTable!B946=\"\",\"\",ScriptText!$E$1&CHAR(10)&ScriptText!C941)","v":""},{"$f":"IF(OrigTable!C946=\"\",\"\",ScriptText!$B$1&CHAR(10)&ScriptText!$D$1)","v":""},{"$f":"IF(OrigTable!C946=\"\",\"\",IF(LEN(OrigTable!C946)>255,LEFT(OrigTable!C946,250)&\". . .\",OrigTable!C946))","v":""},{"$f":"IF(OrigTable!C946=\"\",\"\",ScriptText!$E$1&CHAR(10)&ScriptText!$C$1)","v":""},{"$f":"IF(OrigTable!D946=\"\",\"\",ScriptText!$B$1&CHAR(10)&ScriptText!$D$1)","v":""},{"$f":"IF(OrigTable!D946=\"\",\"\",TEXT(OrigTable!D946,\"00\"))","v":""},{"$f":"IF(OrigTable!D946=\"\",\"\",ScriptText!$E$1&CHAR(10)&ScriptText!$C$1)","v":""},{"$f":"IF(OrigTable!E946=\"\",\"\",ScriptText!$B$1&CHAR(10)&ScriptText!$D$1)","v":""},{"$f":"IF(OrigTable!E946=\"\",\"\",TEXT(OrigTable!E946,\"00\"))","v":""},{"$f":"IF(OrigTable!E946=\"\",\"\",ScriptText!$E$1&CHAR(10)&ScriptText!$C$1)","v":""},{"$f":"IF(OrigTable!F946=\"\",\"\",ScriptText!$B$1&CHAR(10)&ScriptText!$D$1)","v":""},{"$f":"IF(OrigTable!F946=\"\",\"\",TEXT(OrigTable!F946,\"00\"))","v":""},{"$f":"IF(OrigTable!F946=\"\",\"\",ScriptText!$E$1&CHAR(10)&ScriptText!$C$1)","v":""},{"$f":"IF(OrigTable!G946=\"\",\"\",ScriptText!$B$1&CHAR(10)&ScriptText!$D$1)","v":""},{"$f":"IF(OrigTable!G946=\"\",\"\",TEXT(OrigTable!G946,\"00\"))","v":""},{"$f":"IF(OrigTable!G946=\"\",\"\",ScriptText!$E$1&CHAR(10)&ScriptText!$C$1)","v":""},0]
["\n\n\n",{"$f":"IF(OrigTable!A947=\"\",\"\",ScriptText!$B$1&CHAR(10)&ScriptText!$D$1)","v":""},{"$f":"IF(OrigTable!A947=\"\",\"\",TEXT(OrigTable!A947,\"00\"))","v":""},{"$f":"IF(OrigTable!A947=\"\",\"\",ScriptText!$E$1&CHAR(10)&ScriptText!$C$1)","v":""},{"$f":"IF(OrigTable!B947=\"\",\"\",ScriptText!$B$1&CHAR(10)&ScriptText!$D$1)","v":""},{"$f":"IF(OrigTable!B947=\"\",\"\",TEXT(OrigTable!B947,\"00\"))","v":""},{"$f":"IF(OrigTable!B947=\"\",\"\",ScriptText!$E$1&CHAR(10)&ScriptText!C942)","v":""},{"$f":"IF(OrigTable!C947=\"\",\"\",ScriptText!$B$1&CHAR(10)&ScriptText!$D$1)","v":""},{"$f":"IF(OrigTable!C947=\"\",\"\",IF(LEN(OrigTable!C947)>255,LEFT(OrigTable!C947,250)&\". . .\",OrigTable!C947))","v":""},{"$f":"IF(OrigTable!C947=\"\",\"\",ScriptText!$E$1&CHAR(10)&ScriptText!$C$1)","v":""},{"$f":"IF(OrigTable!D947=\"\",\"\",ScriptText!$B$1&CHAR(10)&ScriptText!$D$1)","v":""},{"$f":"IF(OrigTable!D947=\"\",\"\",TEXT(OrigTable!D947,\"00\"))","v":""},{"$f":"IF(OrigTable!D947=\"\",\"\",ScriptText!$E$1&CHAR(10)&ScriptText!$C$1)","v":""},{"$f":"IF(OrigTable!E947=\"\",\"\",ScriptText!$B$1&CHAR(10)&ScriptText!$D$1)","v":""},{"$f":"IF(OrigTable!E947=\"\",\"\",TEXT(OrigTable!E947,\"00\"))","v":""},{"$f":"IF(OrigTable!E947=\"\",\"\",ScriptText!$E$1&CHAR(10)&ScriptText!$C$1)","v":""},{"$f":"IF(OrigTable!F947=\"\",\"\",ScriptText!$B$1&CHAR(10)&ScriptText!$D$1)","v":""},{"$f":"IF(OrigTable!F947=\"\",\"\",TEXT(OrigTable!F947,\"00\"))","v":""},{"$f":"IF(OrigTable!F947=\"\",\"\",ScriptText!$E$1&CHAR(10)&ScriptText!$C$1)","v":""},{"$f":"IF(OrigTable!G947=\"\",\"\",ScriptText!$B$1&CHAR(10)&ScriptText!$D$1)","v":""},{"$f":"IF(OrigTable!G947=\"\",\"\",TEXT(OrigTable!G947,\"00\"))","v":""},{"$f":"IF(OrigTable!G947=\"\",\"\",ScriptText!$E$1&CHAR(10)&ScriptText!$C$1)","v":""},0]
["\n\n\n",{"$f":"IF(OrigTable!A948=\"\",\"\",ScriptText!$B$1&CHAR(10)&ScriptText!$D$1)","v":""},{"$f":"IF(OrigTable!A948=\"\",\"\",TEXT(OrigTable!A948,\"00\"))","v":""},{"$f":"IF(OrigTable!A948=\"\",\"\",ScriptText!$E$1&CHAR(10)&ScriptText!$C$1)","v":""},{"$f":"IF(OrigTable!B948=\"\",\"\",ScriptText!$B$1&CHAR(10)&ScriptText!$D$1)","v":""},{"$f":"IF(OrigTable!B948=\"\",\"\",TEXT(OrigTable!B948,\"00\"))","v":""},{"$f":"IF(OrigTable!B948=\"\",\"\",ScriptText!$E$1&CHAR(10)&ScriptText!C943)","v":""},{"$f":"IF(OrigTable!C948=\"\",\"\",ScriptText!$B$1&CHAR(10)&ScriptText!$D$1)","v":""},{"$f":"IF(OrigTable!C948=\"\",\"\",IF(LEN(OrigTable!C948)>255,LEFT(OrigTable!C948,250)&\". . .\",OrigTable!C948))","v":""},{"$f":"IF(OrigTable!C948=\"\",\"\",ScriptText!$E$1&CHAR(10)&ScriptText!$C$1)","v":""},{"$f":"IF(OrigTable!D948=\"\",\"\",ScriptText!$B$1&CHAR(10)&ScriptText!$D$1)","v":""},{"$f":"IF(OrigTable!D948=\"\",\"\",TEXT(OrigTable!D948,\"00\"))","v":""},{"$f":"IF(OrigTable!D948=\"\",\"\",ScriptText!$E$1&CHAR(10)&ScriptText!$C$1)","v":""},{"$f":"IF(OrigTable!E948=\"\",\"\",ScriptText!$B$1&CHAR(10)&ScriptText!$D$1)","v":""},{"$f":"IF(OrigTable!E948=\"\",\"\",TEXT(OrigTable!E948,\"00\"))","v":""},{"$f":"IF(OrigTable!E948=\"\",\"\",ScriptText!$E$1&CHAR(10)&ScriptText!$C$1)","v":""},{"$f":"IF(OrigTable!F948=\"\",\"\",ScriptText!$B$1&CHAR(10)&ScriptText!$D$1)","v":""},{"$f":"IF(OrigTable!F948=\"\",\"\",TEXT(OrigTable!F948,\"00\"))","v":""},{"$f":"IF(OrigTable!F948=\"\",\"\",ScriptText!$E$1&CHAR(10)&ScriptText!$C$1)","v":""},{"$f":"IF(OrigTable!G948=\"\",\"\",ScriptText!$B$1&CHAR(10)&ScriptText!$D$1)","v":""},{"$f":"IF(OrigTable!G948=\"\",\"\",TEXT(OrigTable!G948,\"00\"))","v":""},{"$f":"IF(OrigTable!G948=\"\",\"\",ScriptText!$E$1&CHAR(10)&ScriptText!$C$1)","v":""},0]
["\n\n\n",{"$f":"IF(OrigTable!A949=\"\",\"\",ScriptText!$B$1&CHAR(10)&ScriptText!$D$1)","v":""},{"$f":"IF(OrigTable!A949=\"\",\"\",TEXT(OrigTable!A949,\"00\"))","v":""},{"$f":"IF(OrigTable!A949=\"\",\"\",ScriptText!$E$1&CHAR(10)&ScriptText!$C$1)","v":""},{"$f":"IF(OrigTable!B949=\"\",\"\",ScriptText!$B$1&CHAR(10)&ScriptText!$D$1)","v":""},{"$f":"IF(OrigTable!B949=\"\",\"\",TEXT(OrigTable!B949,\"00\"))","v":""},{"$f":"IF(OrigTable!B949=\"\",\"\",ScriptText!$E$1&CHAR(10)&ScriptText!C944)","v":""},{"$f":"IF(OrigTable!C949=\"\",\"\",ScriptText!$B$1&CHAR(10)&ScriptText!$D$1)","v":""},{"$f":"IF(OrigTable!C949=\"\",\"\",IF(LEN(OrigTable!C949)>255,LEFT(OrigTable!C949,250)&\". . .\",OrigTable!C949))","v":""},{"$f":"IF(OrigTable!C949=\"\",\"\",ScriptText!$E$1&CHAR(10)&ScriptText!$C$1)","v":""},{"$f":"IF(OrigTable!D949=\"\",\"\",ScriptText!$B$1&CHAR(10)&ScriptText!$D$1)","v":""},{"$f":"IF(OrigTable!D949=\"\",\"\",TEXT(OrigTable!D949,\"00\"))","v":""},{"$f":"IF(OrigTable!D949=\"\",\"\",ScriptText!$E$1&CHAR(10)&ScriptText!$C$1)","v":""},{"$f":"IF(OrigTable!E949=\"\",\"\",ScriptText!$B$1&CHAR(10)&ScriptText!$D$1)","v":""},{"$f":"IF(OrigTable!E949=\"\",\"\",TEXT(OrigTable!E949,\"00\"))","v":""},{"$f":"IF(OrigTable!E949=\"\",\"\",ScriptText!$E$1&CHAR(10)&ScriptText!$C$1)","v":""},{"$f":"IF(OrigTable!F949=\"\",\"\",ScriptText!$B$1&CHAR(10)&ScriptText!$D$1)","v":""},{"$f":"IF(OrigTable!F949=\"\",\"\",TEXT(OrigTable!F949,\"00\"))","v":""},{"$f":"IF(OrigTable!F949=\"\",\"\",ScriptText!$E$1&CHAR(10)&ScriptText!$C$1)","v":""},{"$f":"IF(OrigTable!G949=\"\",\"\",ScriptText!$B$1&CHAR(10)&ScriptText!$D$1)","v":""},{"$f":"IF(OrigTable!G949=\"\",\"\",TEXT(OrigTable!G949,\"00\"))","v":""},{"$f":"IF(OrigTable!G949=\"\",\"\",ScriptText!$E$1&CHAR(10)&ScriptText!$C$1)","v":""},0]
["\n\n\n",{"$f":"IF(OrigTable!A950=\"\",\"\",ScriptText!$B$1&CHAR(10)&ScriptText!$D$1)","v":""},{"$f":"IF(OrigTable!A950=\"\",\"\",TEXT(OrigTable!A950,\"00\"))","v":""},{"$f":"IF(OrigTable!A950=\"\",\"\",ScriptText!$E$1&CHAR(10)&ScriptText!$C$1)","v":""},{"$f":"IF(OrigTable!B950=\"\",\"\",ScriptText!$B$1&CHAR(10)&ScriptText!$D$1)","v":""},{"$f":"IF(OrigTable!B950=\"\",\"\",TEXT(OrigTable!B950,\"00\"))","v":""},{"$f":"IF(OrigTable!B950=\"\",\"\",ScriptText!$E$1&CHAR(10)&ScriptText!C945)","v":""},{"$f":"IF(OrigTable!C950=\"\",\"\",ScriptText!$B$1&CHAR(10)&ScriptText!$D$1)","v":""},{"$f":"IF(OrigTable!C950=\"\",\"\",IF(LEN(OrigTable!C950)>255,LEFT(OrigTable!C950,250)&\". . .\",OrigTable!C950))","v":""},{"$f":"IF(OrigTable!C950=\"\",\"\",ScriptText!$E$1&CHAR(10)&ScriptText!$C$1)","v":""},{"$f":"IF(OrigTable!D950=\"\",\"\",ScriptText!$B$1&CHAR(10)&ScriptText!$D$1)","v":""},{"$f":"IF(OrigTable!D950=\"\",\"\",TEXT(OrigTable!D950,\"00\"))","v":""},{"$f":"IF(OrigTable!D950=\"\",\"\",ScriptText!$E$1&CHAR(10)&ScriptText!$C$1)","v":""},{"$f":"IF(OrigTable!E950=\"\",\"\",ScriptText!$B$1&CHAR(10)&ScriptText!$D$1)","v":""},{"$f":"IF(OrigTable!E950=\"\",\"\",TEXT(OrigTable!E950,\"00\"))","v":""},{"$f":"IF(OrigTable!E950=\"\",\"\",ScriptText!$E$1&CHAR(10)&ScriptText!$C$1)","v":""},{"$f":"IF(OrigTable!F950=\"\",\"\",ScriptText!$B$1&CHAR(10)&ScriptText!$D$1)","v":""},{"$f":"IF(OrigTable!F950=\"\",\"\",TEXT(OrigTable!F950,\"00\"))","v":""},{"$f":"IF(OrigTable!F950=\"\",\"\",ScriptText!$E$1&CHAR(10)&ScriptText!$C$1)","v":""},{"$f":"IF(OrigTable!G950=\"\",\"\",ScriptText!$B$1&CHAR(10)&ScriptText!$D$1)","v":""},{"$f":"IF(OrigTable!G950=\"\",\"\",TEXT(OrigTable!G950,\"00\"))","v":""},{"$f":"IF(OrigTable!G950=\"\",\"\",ScriptText!$E$1&CHAR(10)&ScriptText!$C$1)","v":""},0]
["\n\n\n",{"$f":"IF(OrigTable!A951=\"\",\"\",ScriptText!$B$1&CHAR(10)&ScriptText!$D$1)","v":""},{"$f":"IF(OrigTable!A951=\"\",\"\",TEXT(OrigTable!A951,\"00\"))","v":""},{"$f":"IF(OrigTable!A951=\"\",\"\",ScriptText!$E$1&CHAR(10)&ScriptText!$C$1)","v":""},{"$f":"IF(OrigTable!B951=\"\",\"\",ScriptText!$B$1&CHAR(10)&ScriptText!$D$1)","v":""},{"$f":"IF(OrigTable!B951=\"\",\"\",TEXT(OrigTable!B951,\"00\"))","v":""},{"$f":"IF(OrigTable!B951=\"\",\"\",ScriptText!$E$1&CHAR(10)&ScriptText!C946)","v":""},{"$f":"IF(OrigTable!C951=\"\",\"\",ScriptText!$B$1&CHAR(10)&ScriptText!$D$1)","v":""},{"$f":"IF(OrigTable!C951=\"\",\"\",IF(LEN(OrigTable!C951)>255,LEFT(OrigTable!C951,250)&\". . .\",OrigTable!C951))","v":""},{"$f":"IF(OrigTable!C951=\"\",\"\",ScriptText!$E$1&CHAR(10)&ScriptText!$C$1)","v":""},{"$f":"IF(OrigTable!D951=\"\",\"\",ScriptText!$B$1&CHAR(10)&ScriptText!$D$1)","v":""},{"$f":"IF(OrigTable!D951=\"\",\"\",TEXT(OrigTable!D951,\"00\"))","v":""},{"$f":"IF(OrigTable!D951=\"\",\"\",ScriptText!$E$1&CHAR(10)&ScriptText!$C$1)","v":""},{"$f":"IF(OrigTable!E951=\"\",\"\",ScriptText!$B$1&CHAR(10)&ScriptText!$D$1)","v":""},{"$f":"IF(OrigTable!E951=\"\",\"\",TEXT(OrigTable!E951,\"00\"))","v":""},{"$f":"IF(OrigTable!E951=\"\",\"\",ScriptText!$E$1&CHAR(10)&ScriptText!$C$1)","v":""},{"$f":"IF(OrigTable!F951=\"\",\"\",ScriptText!$B$1&CHAR(10)&ScriptText!$D$1)","v":""},{"$f":"IF(OrigTable!F951=\"\",\"\",TEXT(OrigTable!F951,\"00\"))","v":""},{"$f":"IF(OrigTable!F951=\"\",\"\",ScriptText!$E$1&CHAR(10)&ScriptText!$C$1)","v":""},{"$f":"IF(OrigTable!G951=\"\",\"\",ScriptText!$B$1&CHAR(10)&ScriptText!$D$1)","v":""},{"$f":"IF(OrigTable!G951=\"\",\"\",TEXT(OrigTable!G951,\"00\"))","v":""},{"$f":"IF(OrigTable!G951=\"\",\"\",ScriptText!$E$1&CHAR(10)&ScriptText!$C$1)","v":""},0]
["\n\n\n",{"$f":"IF(OrigTable!A952=\"\",\"\",ScriptText!$B$1&CHAR(10)&ScriptText!$D$1)","v":""},{"$f":"IF(OrigTable!A952=\"\",\"\",TEXT(OrigTable!A952,\"00\"))","v":""},{"$f":"IF(OrigTable!A952=\"\",\"\",ScriptText!$E$1&CHAR(10)&ScriptText!$C$1)","v":""},{"$f":"IF(OrigTable!B952=\"\",\"\",ScriptText!$B$1&CHAR(10)&ScriptText!$D$1)","v":""},{"$f":"IF(OrigTable!B952=\"\",\"\",TEXT(OrigTable!B952,\"00\"))","v":""},{"$f":"IF(OrigTable!B952=\"\",\"\",ScriptText!$E$1&CHAR(10)&ScriptText!C947)","v":""},{"$f":"IF(OrigTable!C952=\"\",\"\",ScriptText!$B$1&CHAR(10)&ScriptText!$D$1)","v":""},{"$f":"IF(OrigTable!C952=\"\",\"\",IF(LEN(OrigTable!C952)>255,LEFT(OrigTable!C952,250)&\". . .\",OrigTable!C952))","v":""},{"$f":"IF(OrigTable!C952=\"\",\"\",ScriptText!$E$1&CHAR(10)&ScriptText!$C$1)","v":""},{"$f":"IF(OrigTable!D952=\"\",\"\",ScriptText!$B$1&CHAR(10)&ScriptText!$D$1)","v":""},{"$f":"IF(OrigTable!D952=\"\",\"\",TEXT(OrigTable!D952,\"00\"))","v":""},{"$f":"IF(OrigTable!D952=\"\",\"\",ScriptText!$E$1&CHAR(10)&ScriptText!$C$1)","v":""},{"$f":"IF(OrigTable!E952=\"\",\"\",ScriptText!$B$1&CHAR(10)&ScriptText!$D$1)","v":""},{"$f":"IF(OrigTable!E952=\"\",\"\",TEXT(OrigTable!E952,\"00\"))","v":""},{"$f":"IF(OrigTable!E952=\"\",\"\",ScriptText!$E$1&CHAR(10)&ScriptText!$C$1)","v":""},{"$f":"IF(OrigTable!F952=\"\",\"\",ScriptText!$B$1&CHAR(10)&ScriptText!$D$1)","v":""},{"$f":"IF(OrigTable!F952=\"\",\"\",TEXT(OrigTable!F952,\"00\"))","v":""},{"$f":"IF(OrigTable!F952=\"\",\"\",ScriptText!$E$1&CHAR(10)&ScriptText!$C$1)","v":""},{"$f":"IF(OrigTable!G952=\"\",\"\",ScriptText!$B$1&CHAR(10)&ScriptText!$D$1)","v":""},{"$f":"IF(OrigTable!G952=\"\",\"\",TEXT(OrigTable!G952,\"00\"))","v":""},{"$f":"IF(OrigTable!G952=\"\",\"\",ScriptText!$E$1&CHAR(10)&ScriptText!$C$1)","v":""},0]
["\n\n\n",{"$f":"IF(OrigTable!A953=\"\",\"\",ScriptText!$B$1&CHAR(10)&ScriptText!$D$1)","v":""},{"$f":"IF(OrigTable!A953=\"\",\"\",TEXT(OrigTable!A953,\"00\"))","v":""},{"$f":"IF(OrigTable!A953=\"\",\"\",ScriptText!$E$1&CHAR(10)&ScriptText!$C$1)","v":""},{"$f":"IF(OrigTable!B953=\"\",\"\",ScriptText!$B$1&CHAR(10)&ScriptText!$D$1)","v":""},{"$f":"IF(OrigTable!B953=\"\",\"\",TEXT(OrigTable!B953,\"00\"))","v":""},{"$f":"IF(OrigTable!B953=\"\",\"\",ScriptText!$E$1&CHAR(10)&ScriptText!C948)","v":""},{"$f":"IF(OrigTable!C953=\"\",\"\",ScriptText!$B$1&CHAR(10)&ScriptText!$D$1)","v":""},{"$f":"IF(OrigTable!C953=\"\",\"\",IF(LEN(OrigTable!C953)>255,LEFT(OrigTable!C953,250)&\". . .\",OrigTable!C953))","v":""},{"$f":"IF(OrigTable!C953=\"\",\"\",ScriptText!$E$1&CHAR(10)&ScriptText!$C$1)","v":""},{"$f":"IF(OrigTable!D953=\"\",\"\",ScriptText!$B$1&CHAR(10)&ScriptText!$D$1)","v":""},{"$f":"IF(OrigTable!D953=\"\",\"\",TEXT(OrigTable!D953,\"00\"))","v":""},{"$f":"IF(OrigTable!D953=\"\",\"\",ScriptText!$E$1&CHAR(10)&ScriptText!$C$1)","v":""},{"$f":"IF(OrigTable!E953=\"\",\"\",ScriptText!$B$1&CHAR(10)&ScriptText!$D$1)","v":""},{"$f":"IF(OrigTable!E953=\"\",\"\",TEXT(OrigTable!E953,\"00\"))","v":""},{"$f":"IF(OrigTable!E953=\"\",\"\",ScriptText!$E$1&CHAR(10)&ScriptText!$C$1)","v":""},{"$f":"IF(OrigTable!F953=\"\",\"\",ScriptText!$B$1&CHAR(10)&ScriptText!$D$1)","v":""},{"$f":"IF(OrigTable!F953=\"\",\"\",TEXT(OrigTable!F953,\"00\"))","v":""},{"$f":"IF(OrigTable!F953=\"\",\"\",ScriptText!$E$1&CHAR(10)&ScriptText!$C$1)","v":""},{"$f":"IF(OrigTable!G953=\"\",\"\",ScriptText!$B$1&CHAR(10)&ScriptText!$D$1)","v":""},{"$f":"IF(OrigTable!G953=\"\",\"\",TEXT(OrigTable!G953,\"00\"))","v":""},{"$f":"IF(OrigTable!G953=\"\",\"\",ScriptText!$E$1&CHAR(10)&ScriptText!$C$1)","v":""},0]
["\n\n\n",{"$f":"IF(OrigTable!A954=\"\",\"\",ScriptText!$B$1&CHAR(10)&ScriptText!$D$1)","v":""},{"$f":"IF(OrigTable!A954=\"\",\"\",TEXT(OrigTable!A954,\"00\"))","v":""},{"$f":"IF(OrigTable!A954=\"\",\"\",ScriptText!$E$1&CHAR(10)&ScriptText!$C$1)","v":""},{"$f":"IF(OrigTable!B954=\"\",\"\",ScriptText!$B$1&CHAR(10)&ScriptText!$D$1)","v":""},{"$f":"IF(OrigTable!B954=\"\",\"\",TEXT(OrigTable!B954,\"00\"))","v":""},{"$f":"IF(OrigTable!B954=\"\",\"\",ScriptText!$E$1&CHAR(10)&ScriptText!C949)","v":""},{"$f":"IF(OrigTable!C954=\"\",\"\",ScriptText!$B$1&CHAR(10)&ScriptText!$D$1)","v":""},{"$f":"IF(OrigTable!C954=\"\",\"\",IF(LEN(OrigTable!C954)>255,LEFT(OrigTable!C954,250)&\". . .\",OrigTable!C954))","v":""},{"$f":"IF(OrigTable!C954=\"\",\"\",ScriptText!$E$1&CHAR(10)&ScriptText!$C$1)","v":""},{"$f":"IF(OrigTable!D954=\"\",\"\",ScriptText!$B$1&CHAR(10)&ScriptText!$D$1)","v":""},{"$f":"IF(OrigTable!D954=\"\",\"\",TEXT(OrigTable!D954,\"00\"))","v":""},{"$f":"IF(OrigTable!D954=\"\",\"\",ScriptText!$E$1&CHAR(10)&ScriptText!$C$1)","v":""},{"$f":"IF(OrigTable!E954=\"\",\"\",ScriptText!$B$1&CHAR(10)&ScriptText!$D$1)","v":""},{"$f":"IF(OrigTable!E954=\"\",\"\",TEXT(OrigTable!E954,\"00\"))","v":""},{"$f":"IF(OrigTable!E954=\"\",\"\",ScriptText!$E$1&CHAR(10)&ScriptText!$C$1)","v":""},{"$f":"IF(OrigTable!F954=\"\",\"\",ScriptText!$B$1&CHAR(10)&ScriptText!$D$1)","v":""},{"$f":"IF(OrigTable!F954=\"\",\"\",TEXT(OrigTable!F954,\"00\"))","v":""},{"$f":"IF(OrigTable!F954=\"\",\"\",ScriptText!$E$1&CHAR(10)&ScriptText!$C$1)","v":""},{"$f":"IF(OrigTable!G954=\"\",\"\",ScriptText!$B$1&CHAR(10)&ScriptText!$D$1)","v":""},{"$f":"IF(OrigTable!G954=\"\",\"\",TEXT(OrigTable!G954,\"00\"))","v":""},{"$f":"IF(OrigTable!G954=\"\",\"\",ScriptText!$E$1&CHAR(10)&ScriptText!$C$1)","v":""},0]
["\n\n\n",{"$f":"IF(OrigTable!A955=\"\",\"\",ScriptText!$B$1&CHAR(10)&ScriptText!$D$1)","v":""},{"$f":"IF(OrigTable!A955=\"\",\"\",TEXT(OrigTable!A955,\"00\"))","v":""},{"$f":"IF(OrigTable!A955=\"\",\"\",ScriptText!$E$1&CHAR(10)&ScriptText!$C$1)","v":""},{"$f":"IF(OrigTable!B955=\"\",\"\",ScriptText!$B$1&CHAR(10)&ScriptText!$D$1)","v":""},{"$f":"IF(OrigTable!B955=\"\",\"\",TEXT(OrigTable!B955,\"00\"))","v":""},{"$f":"IF(OrigTable!B955=\"\",\"\",ScriptText!$E$1&CHAR(10)&ScriptText!C950)","v":""},{"$f":"IF(OrigTable!C955=\"\",\"\",ScriptText!$B$1&CHAR(10)&ScriptText!$D$1)","v":""},{"$f":"IF(OrigTable!C955=\"\",\"\",IF(LEN(OrigTable!C955)>255,LEFT(OrigTable!C955,250)&\". . .\",OrigTable!C955))","v":""},{"$f":"IF(OrigTable!C955=\"\",\"\",ScriptText!$E$1&CHAR(10)&ScriptText!$C$1)","v":""},{"$f":"IF(OrigTable!D955=\"\",\"\",ScriptText!$B$1&CHAR(10)&ScriptText!$D$1)","v":""},{"$f":"IF(OrigTable!D955=\"\",\"\",TEXT(OrigTable!D955,\"00\"))","v":""},{"$f":"IF(OrigTable!D955=\"\",\"\",ScriptText!$E$1&CHAR(10)&ScriptText!$C$1)","v":""},{"$f":"IF(OrigTable!E955=\"\",\"\",ScriptText!$B$1&CHAR(10)&ScriptText!$D$1)","v":""},{"$f":"IF(OrigTable!E955=\"\",\"\",TEXT(OrigTable!E955,\"00\"))","v":""},{"$f":"IF(OrigTable!E955=\"\",\"\",ScriptText!$E$1&CHAR(10)&ScriptText!$C$1)","v":""},{"$f":"IF(OrigTable!F955=\"\",\"\",ScriptText!$B$1&CHAR(10)&ScriptText!$D$1)","v":""},{"$f":"IF(OrigTable!F955=\"\",\"\",TEXT(OrigTable!F955,\"00\"))","v":""},{"$f":"IF(OrigTable!F955=\"\",\"\",ScriptText!$E$1&CHAR(10)&ScriptText!$C$1)","v":""},{"$f":"IF(OrigTable!G955=\"\",\"\",ScriptText!$B$1&CHAR(10)&ScriptText!$D$1)","v":""},{"$f":"IF(OrigTable!G955=\"\",\"\",TEXT(OrigTable!G955,\"00\"))","v":""},{"$f":"IF(OrigTable!G955=\"\",\"\",ScriptText!$E$1&CHAR(10)&ScriptText!$C$1)","v":""},0]
["\n\n\n",{"$f":"IF(OrigTable!A956=\"\",\"\",ScriptText!$B$1&CHAR(10)&ScriptText!$D$1)","v":""},{"$f":"IF(OrigTable!A956=\"\",\"\",TEXT(OrigTable!A956,\"00\"))","v":""},{"$f":"IF(OrigTable!A956=\"\",\"\",ScriptText!$E$1&CHAR(10)&ScriptText!$C$1)","v":""},{"$f":"IF(OrigTable!B956=\"\",\"\",ScriptText!$B$1&CHAR(10)&ScriptText!$D$1)","v":""},{"$f":"IF(OrigTable!B956=\"\",\"\",TEXT(OrigTable!B956,\"00\"))","v":""},{"$f":"IF(OrigTable!B956=\"\",\"\",ScriptText!$E$1&CHAR(10)&ScriptText!C951)","v":""},{"$f":"IF(OrigTable!C956=\"\",\"\",ScriptText!$B$1&CHAR(10)&ScriptText!$D$1)","v":""},{"$f":"IF(OrigTable!C956=\"\",\"\",IF(LEN(OrigTable!C956)>255,LEFT(OrigTable!C956,250)&\". . .\",OrigTable!C956))","v":""},{"$f":"IF(OrigTable!C956=\"\",\"\",ScriptText!$E$1&CHAR(10)&ScriptText!$C$1)","v":""},{"$f":"IF(OrigTable!D956=\"\",\"\",ScriptText!$B$1&CHAR(10)&ScriptText!$D$1)","v":""},{"$f":"IF(OrigTable!D956=\"\",\"\",TEXT(OrigTable!D956,\"00\"))","v":""},{"$f":"IF(OrigTable!D956=\"\",\"\",ScriptText!$E$1&CHAR(10)&ScriptText!$C$1)","v":""},{"$f":"IF(OrigTable!E956=\"\",\"\",ScriptText!$B$1&CHAR(10)&ScriptText!$D$1)","v":""},{"$f":"IF(OrigTable!E956=\"\",\"\",TEXT(OrigTable!E956,\"00\"))","v":""},{"$f":"IF(OrigTable!E956=\"\",\"\",ScriptText!$E$1&CHAR(10)&ScriptText!$C$1)","v":""},{"$f":"IF(OrigTable!F956=\"\",\"\",ScriptText!$B$1&CHAR(10)&ScriptText!$D$1)","v":""},{"$f":"IF(OrigTable!F956=\"\",\"\",TEXT(OrigTable!F956,\"00\"))","v":""},{"$f":"IF(OrigTable!F956=\"\",\"\",ScriptText!$E$1&CHAR(10)&ScriptText!$C$1)","v":""},{"$f":"IF(OrigTable!G956=\"\",\"\",ScriptText!$B$1&CHAR(10)&ScriptText!$D$1)","v":""},{"$f":"IF(OrigTable!G956=\"\",\"\",TEXT(OrigTable!G956,\"00\"))","v":""},{"$f":"IF(OrigTable!G956=\"\",\"\",ScriptText!$E$1&CHAR(10)&ScriptText!$C$1)","v":""},0]
["\n\n\n",{"$f":"IF(OrigTable!A957=\"\",\"\",ScriptText!$B$1&CHAR(10)&ScriptText!$D$1)","v":""},{"$f":"IF(OrigTable!A957=\"\",\"\",TEXT(OrigTable!A957,\"00\"))","v":""},{"$f":"IF(OrigTable!A957=\"\",\"\",ScriptText!$E$1&CHAR(10)&ScriptText!$C$1)","v":""},{"$f":"IF(OrigTable!B957=\"\",\"\",ScriptText!$B$1&CHAR(10)&ScriptText!$D$1)","v":""},{"$f":"IF(OrigTable!B957=\"\",\"\",TEXT(OrigTable!B957,\"00\"))","v":""},{"$f":"IF(OrigTable!B957=\"\",\"\",ScriptText!$E$1&CHAR(10)&ScriptText!C952)","v":""},{"$f":"IF(OrigTable!C957=\"\",\"\",ScriptText!$B$1&CHAR(10)&ScriptText!$D$1)","v":""},{"$f":"IF(OrigTable!C957=\"\",\"\",IF(LEN(OrigTable!C957)>255,LEFT(OrigTable!C957,250)&\". . .\",OrigTable!C957))","v":""},{"$f":"IF(OrigTable!C957=\"\",\"\",ScriptText!$E$1&CHAR(10)&ScriptText!$C$1)","v":""},{"$f":"IF(OrigTable!D957=\"\",\"\",ScriptText!$B$1&CHAR(10)&ScriptText!$D$1)","v":""},{"$f":"IF(OrigTable!D957=\"\",\"\",TEXT(OrigTable!D957,\"00\"))","v":""},{"$f":"IF(OrigTable!D957=\"\",\"\",ScriptText!$E$1&CHAR(10)&ScriptText!$C$1)","v":""},{"$f":"IF(OrigTable!E957=\"\",\"\",ScriptText!$B$1&CHAR(10)&ScriptText!$D$1)","v":""},{"$f":"IF(OrigTable!E957=\"\",\"\",TEXT(OrigTable!E957,\"00\"))","v":""},{"$f":"IF(OrigTable!E957=\"\",\"\",ScriptText!$E$1&CHAR(10)&ScriptText!$C$1)","v":""},{"$f":"IF(OrigTable!F957=\"\",\"\",ScriptText!$B$1&CHAR(10)&ScriptText!$D$1)","v":""},{"$f":"IF(OrigTable!F957=\"\",\"\",TEXT(OrigTable!F957,\"00\"))","v":""},{"$f":"IF(OrigTable!F957=\"\",\"\",ScriptText!$E$1&CHAR(10)&ScriptText!$C$1)","v":""},{"$f":"IF(OrigTable!G957=\"\",\"\",ScriptText!$B$1&CHAR(10)&ScriptText!$D$1)","v":""},{"$f":"IF(OrigTable!G957=\"\",\"\",TEXT(OrigTable!G957,\"00\"))","v":""},{"$f":"IF(OrigTable!G957=\"\",\"\",ScriptText!$E$1&CHAR(10)&ScriptText!$C$1)","v":""},0]
["\n\n\n",{"$f":"IF(OrigTable!A958=\"\",\"\",ScriptText!$B$1&CHAR(10)&ScriptText!$D$1)","v":""},{"$f":"IF(OrigTable!A958=\"\",\"\",TEXT(OrigTable!A958,\"00\"))","v":""},{"$f":"IF(OrigTable!A958=\"\",\"\",ScriptText!$E$1&CHAR(10)&ScriptText!$C$1)","v":""},{"$f":"IF(OrigTable!B958=\"\",\"\",ScriptText!$B$1&CHAR(10)&ScriptText!$D$1)","v":""},{"$f":"IF(OrigTable!B958=\"\",\"\",TEXT(OrigTable!B958,\"00\"))","v":""},{"$f":"IF(OrigTable!B958=\"\",\"\",ScriptText!$E$1&CHAR(10)&ScriptText!C953)","v":""},{"$f":"IF(OrigTable!C958=\"\",\"\",ScriptText!$B$1&CHAR(10)&ScriptText!$D$1)","v":""},{"$f":"IF(OrigTable!C958=\"\",\"\",IF(LEN(OrigTable!C958)>255,LEFT(OrigTable!C958,250)&\". . .\",OrigTable!C958))","v":""},{"$f":"IF(OrigTable!C958=\"\",\"\",ScriptText!$E$1&CHAR(10)&ScriptText!$C$1)","v":""},{"$f":"IF(OrigTable!D958=\"\",\"\",ScriptText!$B$1&CHAR(10)&ScriptText!$D$1)","v":""},{"$f":"IF(OrigTable!D958=\"\",\"\",TEXT(OrigTable!D958,\"00\"))","v":""},{"$f":"IF(OrigTable!D958=\"\",\"\",ScriptText!$E$1&CHAR(10)&ScriptText!$C$1)","v":""},{"$f":"IF(OrigTable!E958=\"\",\"\",ScriptText!$B$1&CHAR(10)&ScriptText!$D$1)","v":""},{"$f":"IF(OrigTable!E958=\"\",\"\",TEXT(OrigTable!E958,\"00\"))","v":""},{"$f":"IF(OrigTable!E958=\"\",\"\",ScriptText!$E$1&CHAR(10)&ScriptText!$C$1)","v":""},{"$f":"IF(OrigTable!F958=\"\",\"\",ScriptText!$B$1&CHAR(10)&ScriptText!$D$1)","v":""},{"$f":"IF(OrigTable!F958=\"\",\"\",TEXT(OrigTable!F958,\"00\"))","v":""},{"$f":"IF(OrigTable!F958=\"\",\"\",ScriptText!$E$1&CHAR(10)&ScriptText!$C$1)","v":""},{"$f":"IF(OrigTable!G958=\"\",\"\",ScriptText!$B$1&CHAR(10)&ScriptText!$D$1)","v":""},{"$f":"IF(OrigTable!G958=\"\",\"\",TEXT(OrigTable!G958,\"00\"))","v":""},{"$f":"IF(OrigTable!G958=\"\",\"\",ScriptText!$E$1&CHAR(10)&ScriptText!$C$1)","v":""},0]
["\n\n\n",{"$f":"IF(OrigTable!A959=\"\",\"\",ScriptText!$B$1&CHAR(10)&ScriptText!$D$1)","v":""},{"$f":"IF(OrigTable!A959=\"\",\"\",TEXT(OrigTable!A959,\"00\"))","v":""},{"$f":"IF(OrigTable!A959=\"\",\"\",ScriptText!$E$1&CHAR(10)&ScriptText!$C$1)","v":""},{"$f":"IF(OrigTable!B959=\"\",\"\",ScriptText!$B$1&CHAR(10)&ScriptText!$D$1)","v":""},{"$f":"IF(OrigTable!B959=\"\",\"\",TEXT(OrigTable!B959,\"00\"))","v":""},{"$f":"IF(OrigTable!B959=\"\",\"\",ScriptText!$E$1&CHAR(10)&ScriptText!C954)","v":""},{"$f":"IF(OrigTable!C959=\"\",\"\",ScriptText!$B$1&CHAR(10)&ScriptText!$D$1)","v":""},{"$f":"IF(OrigTable!C959=\"\",\"\",IF(LEN(OrigTable!C959)>255,LEFT(OrigTable!C959,250)&\". . .\",OrigTable!C959))","v":""},{"$f":"IF(OrigTable!C959=\"\",\"\",ScriptText!$E$1&CHAR(10)&ScriptText!$C$1)","v":""},{"$f":"IF(OrigTable!D959=\"\",\"\",ScriptText!$B$1&CHAR(10)&ScriptText!$D$1)","v":""},{"$f":"IF(OrigTable!D959=\"\",\"\",TEXT(OrigTable!D959,\"00\"))","v":""},{"$f":"IF(OrigTable!D959=\"\",\"\",ScriptText!$E$1&CHAR(10)&ScriptText!$C$1)","v":""},{"$f":"IF(OrigTable!E959=\"\",\"\",ScriptText!$B$1&CHAR(10)&ScriptText!$D$1)","v":""},{"$f":"IF(OrigTable!E959=\"\",\"\",TEXT(OrigTable!E959,\"00\"))","v":""},{"$f":"IF(OrigTable!E959=\"\",\"\",ScriptText!$E$1&CHAR(10)&ScriptText!$C$1)","v":""},{"$f":"IF(OrigTable!F959=\"\",\"\",ScriptText!$B$1&CHAR(10)&ScriptText!$D$1)","v":""},{"$f":"IF(OrigTable!F959=\"\",\"\",TEXT(OrigTable!F959,\"00\"))","v":""},{"$f":"IF(OrigTable!F959=\"\",\"\",ScriptText!$E$1&CHAR(10)&ScriptText!$C$1)","v":""},{"$f":"IF(OrigTable!G959=\"\",\"\",ScriptText!$B$1&CHAR(10)&ScriptText!$D$1)","v":""},{"$f":"IF(OrigTable!G959=\"\",\"\",TEXT(OrigTable!G959,\"00\"))","v":""},{"$f":"IF(OrigTable!G959=\"\",\"\",ScriptText!$E$1&CHAR(10)&ScriptText!$C$1)","v":""},0]
["\n\n\n",{"$f":"IF(OrigTable!A960=\"\",\"\",ScriptText!$B$1&CHAR(10)&ScriptText!$D$1)","v":""},{"$f":"IF(OrigTable!A960=\"\",\"\",TEXT(OrigTable!A960,\"00\"))","v":""},{"$f":"IF(OrigTable!A960=\"\",\"\",ScriptText!$E$1&CHAR(10)&ScriptText!$C$1)","v":""},{"$f":"IF(OrigTable!B960=\"\",\"\",ScriptText!$B$1&CHAR(10)&ScriptText!$D$1)","v":""},{"$f":"IF(OrigTable!B960=\"\",\"\",TEXT(OrigTable!B960,\"00\"))","v":""},{"$f":"IF(OrigTable!B960=\"\",\"\",ScriptText!$E$1&CHAR(10)&ScriptText!C955)","v":""},{"$f":"IF(OrigTable!C960=\"\",\"\",ScriptText!$B$1&CHAR(10)&ScriptText!$D$1)","v":""},{"$f":"IF(OrigTable!C960=\"\",\"\",IF(LEN(OrigTable!C960)>255,LEFT(OrigTable!C960,250)&\". . .\",OrigTable!C960))","v":""},{"$f":"IF(OrigTable!C960=\"\",\"\",ScriptText!$E$1&CHAR(10)&ScriptText!$C$1)","v":""},{"$f":"IF(OrigTable!D960=\"\",\"\",ScriptText!$B$1&CHAR(10)&ScriptText!$D$1)","v":""},{"$f":"IF(OrigTable!D960=\"\",\"\",TEXT(OrigTable!D960,\"00\"))","v":""},{"$f":"IF(OrigTable!D960=\"\",\"\",ScriptText!$E$1&CHAR(10)&ScriptText!$C$1)","v":""},{"$f":"IF(OrigTable!E960=\"\",\"\",ScriptText!$B$1&CHAR(10)&ScriptText!$D$1)","v":""},{"$f":"IF(OrigTable!E960=\"\",\"\",TEXT(OrigTable!E960,\"00\"))","v":""},{"$f":"IF(OrigTable!E960=\"\",\"\",ScriptText!$E$1&CHAR(10)&ScriptText!$C$1)","v":""},{"$f":"IF(OrigTable!F960=\"\",\"\",ScriptText!$B$1&CHAR(10)&ScriptText!$D$1)","v":""},{"$f":"IF(OrigTable!F960=\"\",\"\",TEXT(OrigTable!F960,\"00\"))","v":""},{"$f":"IF(OrigTable!F960=\"\",\"\",ScriptText!$E$1&CHAR(10)&ScriptText!$C$1)","v":""},{"$f":"IF(OrigTable!G960=\"\",\"\",ScriptText!$B$1&CHAR(10)&ScriptText!$D$1)","v":""},{"$f":"IF(OrigTable!G960=\"\",\"\",TEXT(OrigTable!G960,\"00\"))","v":""},{"$f":"IF(OrigTable!G960=\"\",\"\",ScriptText!$E$1&CHAR(10)&ScriptText!$C$1)","v":""},0]
["\n\n\n",{"$f":"IF(OrigTable!A961=\"\",\"\",ScriptText!$B$1&CHAR(10)&ScriptText!$D$1)","v":""},{"$f":"IF(OrigTable!A961=\"\",\"\",TEXT(OrigTable!A961,\"00\"))","v":""},{"$f":"IF(OrigTable!A961=\"\",\"\",ScriptText!$E$1&CHAR(10)&ScriptText!$C$1)","v":""},{"$f":"IF(OrigTable!B961=\"\",\"\",ScriptText!$B$1&CHAR(10)&ScriptText!$D$1)","v":""},{"$f":"IF(OrigTable!B961=\"\",\"\",TEXT(OrigTable!B961,\"00\"))","v":""},{"$f":"IF(OrigTable!B961=\"\",\"\",ScriptText!$E$1&CHAR(10)&ScriptText!C956)","v":""},{"$f":"IF(OrigTable!C961=\"\",\"\",ScriptText!$B$1&CHAR(10)&ScriptText!$D$1)","v":""},{"$f":"IF(OrigTable!C961=\"\",\"\",IF(LEN(OrigTable!C961)>255,LEFT(OrigTable!C961,250)&\". . .\",OrigTable!C961))","v":""},{"$f":"IF(OrigTable!C961=\"\",\"\",ScriptText!$E$1&CHAR(10)&ScriptText!$C$1)","v":""},{"$f":"IF(OrigTable!D961=\"\",\"\",ScriptText!$B$1&CHAR(10)&ScriptText!$D$1)","v":""},{"$f":"IF(OrigTable!D961=\"\",\"\",TEXT(OrigTable!D961,\"00\"))","v":""},{"$f":"IF(OrigTable!D961=\"\",\"\",ScriptText!$E$1&CHAR(10)&ScriptText!$C$1)","v":""},{"$f":"IF(OrigTable!E961=\"\",\"\",ScriptText!$B$1&CHAR(10)&ScriptText!$D$1)","v":""},{"$f":"IF(OrigTable!E961=\"\",\"\",TEXT(OrigTable!E961,\"00\"))","v":""},{"$f":"IF(OrigTable!E961=\"\",\"\",ScriptText!$E$1&CHAR(10)&ScriptText!$C$1)","v":""},{"$f":"IF(OrigTable!F961=\"\",\"\",ScriptText!$B$1&CHAR(10)&ScriptText!$D$1)","v":""},{"$f":"IF(OrigTable!F961=\"\",\"\",TEXT(OrigTable!F961,\"00\"))","v":""},{"$f":"IF(OrigTable!F961=\"\",\"\",ScriptText!$E$1&CHAR(10)&ScriptText!$C$1)","v":""},{"$f":"IF(OrigTable!G961=\"\",\"\",ScriptText!$B$1&CHAR(10)&ScriptText!$D$1)","v":""},{"$f":"IF(OrigTable!G961=\"\",\"\",TEXT(OrigTable!G961,\"00\"))","v":""},{"$f":"IF(OrigTable!G961=\"\",\"\",ScriptText!$E$1&CHAR(10)&ScriptText!$C$1)","v":""},0]
["\n\n\n",{"$f":"IF(OrigTable!A962=\"\",\"\",ScriptText!$B$1&CHAR(10)&ScriptText!$D$1)","v":""},{"$f":"IF(OrigTable!A962=\"\",\"\",TEXT(OrigTable!A962,\"00\"))","v":""},{"$f":"IF(OrigTable!A962=\"\",\"\",ScriptText!$E$1&CHAR(10)&ScriptText!$C$1)","v":""},{"$f":"IF(OrigTable!B962=\"\",\"\",ScriptText!$B$1&CHAR(10)&ScriptText!$D$1)","v":""},{"$f":"IF(OrigTable!B962=\"\",\"\",TEXT(OrigTable!B962,\"00\"))","v":""},{"$f":"IF(OrigTable!B962=\"\",\"\",ScriptText!$E$1&CHAR(10)&ScriptText!C957)","v":""},{"$f":"IF(OrigTable!C962=\"\",\"\",ScriptText!$B$1&CHAR(10)&ScriptText!$D$1)","v":""},{"$f":"IF(OrigTable!C962=\"\",\"\",IF(LEN(OrigTable!C962)>255,LEFT(OrigTable!C962,250)&\". . .\",OrigTable!C962))","v":""},{"$f":"IF(OrigTable!C962=\"\",\"\",ScriptText!$E$1&CHAR(10)&ScriptText!$C$1)","v":""},{"$f":"IF(OrigTable!D962=\"\",\"\",ScriptText!$B$1&CHAR(10)&ScriptText!$D$1)","v":""},{"$f":"IF(OrigTable!D962=\"\",\"\",TEXT(OrigTable!D962,\"00\"))","v":""},{"$f":"IF(OrigTable!D962=\"\",\"\",ScriptText!$E$1&CHAR(10)&ScriptText!$C$1)","v":""},{"$f":"IF(OrigTable!E962=\"\",\"\",ScriptText!$B$1&CHAR(10)&ScriptText!$D$1)","v":""},{"$f":"IF(OrigTable!E962=\"\",\"\",TEXT(OrigTable!E962,\"00\"))","v":""},{"$f":"IF(OrigTable!E962=\"\",\"\",ScriptText!$E$1&CHAR(10)&ScriptText!$C$1)","v":""},{"$f":"IF(OrigTable!F962=\"\",\"\",ScriptText!$B$1&CHAR(10)&ScriptText!$D$1)","v":""},{"$f":"IF(OrigTable!F962=\"\",\"\",TEXT(OrigTable!F962,\"00\"))","v":""},{"$f":"IF(OrigTable!F962=\"\",\"\",ScriptText!$E$1&CHAR(10)&ScriptText!$C$1)","v":""},{"$f":"IF(OrigTable!G962=\"\",\"\",ScriptText!$B$1&CHAR(10)&ScriptText!$D$1)","v":""},{"$f":"IF(OrigTable!G962=\"\",\"\",TEXT(OrigTable!G962,\"00\"))","v":""},{"$f":"IF(OrigTable!G962=\"\",\"\",ScriptText!$E$1&CHAR(10)&ScriptText!$C$1)","v":""},0]
["\n\n\n",{"$f":"IF(OrigTable!A963=\"\",\"\",ScriptText!$B$1&CHAR(10)&ScriptText!$D$1)","v":""},{"$f":"IF(OrigTable!A963=\"\",\"\",TEXT(OrigTable!A963,\"00\"))","v":""},{"$f":"IF(OrigTable!A963=\"\",\"\",ScriptText!$E$1&CHAR(10)&ScriptText!$C$1)","v":""},{"$f":"IF(OrigTable!B963=\"\",\"\",ScriptText!$B$1&CHAR(10)&ScriptText!$D$1)","v":""},{"$f":"IF(OrigTable!B963=\"\",\"\",TEXT(OrigTable!B963,\"00\"))","v":""},{"$f":"IF(OrigTable!B963=\"\",\"\",ScriptText!$E$1&CHAR(10)&ScriptText!C958)","v":""},{"$f":"IF(OrigTable!C963=\"\",\"\",ScriptText!$B$1&CHAR(10)&ScriptText!$D$1)","v":""},{"$f":"IF(OrigTable!C963=\"\",\"\",IF(LEN(OrigTable!C963)>255,LEFT(OrigTable!C963,250)&\". . .\",OrigTable!C963))","v":""},{"$f":"IF(OrigTable!C963=\"\",\"\",ScriptText!$E$1&CHAR(10)&ScriptText!$C$1)","v":""},{"$f":"IF(OrigTable!D963=\"\",\"\",ScriptText!$B$1&CHAR(10)&ScriptText!$D$1)","v":""},{"$f":"IF(OrigTable!D963=\"\",\"\",TEXT(OrigTable!D963,\"00\"))","v":""},{"$f":"IF(OrigTable!D963=\"\",\"\",ScriptText!$E$1&CHAR(10)&ScriptText!$C$1)","v":""},{"$f":"IF(OrigTable!E963=\"\",\"\",ScriptText!$B$1&CHAR(10)&ScriptText!$D$1)","v":""},{"$f":"IF(OrigTable!E963=\"\",\"\",TEXT(OrigTable!E963,\"00\"))","v":""},{"$f":"IF(OrigTable!E963=\"\",\"\",ScriptText!$E$1&CHAR(10)&ScriptText!$C$1)","v":""},{"$f":"IF(OrigTable!F963=\"\",\"\",ScriptText!$B$1&CHAR(10)&ScriptText!$D$1)","v":""},{"$f":"IF(OrigTable!F963=\"\",\"\",TEXT(OrigTable!F963,\"00\"))","v":""},{"$f":"IF(OrigTable!F963=\"\",\"\",ScriptText!$E$1&CHAR(10)&ScriptText!$C$1)","v":""},{"$f":"IF(OrigTable!G963=\"\",\"\",ScriptText!$B$1&CHAR(10)&ScriptText!$D$1)","v":""},{"$f":"IF(OrigTable!G963=\"\",\"\",TEXT(OrigTable!G963,\"00\"))","v":""},{"$f":"IF(OrigTable!G963=\"\",\"\",ScriptText!$E$1&CHAR(10)&ScriptText!$C$1)","v":""},0]
["\n\n\n",{"$f":"IF(OrigTable!A964=\"\",\"\",ScriptText!$B$1&CHAR(10)&ScriptText!$D$1)","v":""},{"$f":"IF(OrigTable!A964=\"\",\"\",TEXT(OrigTable!A964,\"00\"))","v":""},{"$f":"IF(OrigTable!A964=\"\",\"\",ScriptText!$E$1&CHAR(10)&ScriptText!$C$1)","v":""},{"$f":"IF(OrigTable!B964=\"\",\"\",ScriptText!$B$1&CHAR(10)&ScriptText!$D$1)","v":""},{"$f":"IF(OrigTable!B964=\"\",\"\",TEXT(OrigTable!B964,\"00\"))","v":""},{"$f":"IF(OrigTable!B964=\"\",\"\",ScriptText!$E$1&CHAR(10)&ScriptText!C959)","v":""},{"$f":"IF(OrigTable!C964=\"\",\"\",ScriptText!$B$1&CHAR(10)&ScriptText!$D$1)","v":""},{"$f":"IF(OrigTable!C964=\"\",\"\",IF(LEN(OrigTable!C964)>255,LEFT(OrigTable!C964,250)&\". . .\",OrigTable!C964))","v":""},{"$f":"IF(OrigTable!C964=\"\",\"\",ScriptText!$E$1&CHAR(10)&ScriptText!$C$1)","v":""},{"$f":"IF(OrigTable!D964=\"\",\"\",ScriptText!$B$1&CHAR(10)&ScriptText!$D$1)","v":""},{"$f":"IF(OrigTable!D964=\"\",\"\",TEXT(OrigTable!D964,\"00\"))","v":""},{"$f":"IF(OrigTable!D964=\"\",\"\",ScriptText!$E$1&CHAR(10)&ScriptText!$C$1)","v":""},{"$f":"IF(OrigTable!E964=\"\",\"\",ScriptText!$B$1&CHAR(10)&ScriptText!$D$1)","v":""},{"$f":"IF(OrigTable!E964=\"\",\"\",TEXT(OrigTable!E964,\"00\"))","v":""},{"$f":"IF(OrigTable!E964=\"\",\"\",ScriptText!$E$1&CHAR(10)&ScriptText!$C$1)","v":""},{"$f":"IF(OrigTable!F964=\"\",\"\",ScriptText!$B$1&CHAR(10)&ScriptText!$D$1)","v":""},{"$f":"IF(OrigTable!F964=\"\",\"\",TEXT(OrigTable!F964,\"00\"))","v":""},{"$f":"IF(OrigTable!F964=\"\",\"\",ScriptText!$E$1&CHAR(10)&ScriptText!$C$1)","v":""},{"$f":"IF(OrigTable!G964=\"\",\"\",ScriptText!$B$1&CHAR(10)&ScriptText!$D$1)","v":""},{"$f":"IF(OrigTable!G964=\"\",\"\",TEXT(OrigTable!G964,\"00\"))","v":""},{"$f":"IF(OrigTable!G964=\"\",\"\",ScriptText!$E$1&CHAR(10)&ScriptText!$C$1)","v":""},0]
["\n\n\n",{"$f":"IF(OrigTable!A965=\"\",\"\",ScriptText!$B$1&CHAR(10)&ScriptText!$D$1)","v":""},{"$f":"IF(OrigTable!A965=\"\",\"\",TEXT(OrigTable!A965,\"00\"))","v":""},{"$f":"IF(OrigTable!A965=\"\",\"\",ScriptText!$E$1&CHAR(10)&ScriptText!$C$1)","v":""},{"$f":"IF(OrigTable!B965=\"\",\"\",ScriptText!$B$1&CHAR(10)&ScriptText!$D$1)","v":""},{"$f":"IF(OrigTable!B965=\"\",\"\",TEXT(OrigTable!B965,\"00\"))","v":""},{"$f":"IF(OrigTable!B965=\"\",\"\",ScriptText!$E$1&CHAR(10)&ScriptText!C960)","v":""},{"$f":"IF(OrigTable!C965=\"\",\"\",ScriptText!$B$1&CHAR(10)&ScriptText!$D$1)","v":""},{"$f":"IF(OrigTable!C965=\"\",\"\",IF(LEN(OrigTable!C965)>255,LEFT(OrigTable!C965,250)&\". . .\",OrigTable!C965))","v":""},{"$f":"IF(OrigTable!C965=\"\",\"\",ScriptText!$E$1&CHAR(10)&ScriptText!$C$1)","v":""},{"$f":"IF(OrigTable!D965=\"\",\"\",ScriptText!$B$1&CHAR(10)&ScriptText!$D$1)","v":""},{"$f":"IF(OrigTable!D965=\"\",\"\",TEXT(OrigTable!D965,\"00\"))","v":""},{"$f":"IF(OrigTable!D965=\"\",\"\",ScriptText!$E$1&CHAR(10)&ScriptText!$C$1)","v":""},{"$f":"IF(OrigTable!E965=\"\",\"\",ScriptText!$B$1&CHAR(10)&ScriptText!$D$1)","v":""},{"$f":"IF(OrigTable!E965=\"\",\"\",TEXT(OrigTable!E965,\"00\"))","v":""},{"$f":"IF(OrigTable!E965=\"\",\"\",ScriptText!$E$1&CHAR(10)&ScriptText!$C$1)","v":""},{"$f":"IF(OrigTable!F965=\"\",\"\",ScriptText!$B$1&CHAR(10)&ScriptText!$D$1)","v":""},{"$f":"IF(OrigTable!F965=\"\",\"\",TEXT(OrigTable!F965,\"00\"))","v":""},{"$f":"IF(OrigTable!F965=\"\",\"\",ScriptText!$E$1&CHAR(10)&ScriptText!$C$1)","v":""},{"$f":"IF(OrigTable!G965=\"\",\"\",ScriptText!$B$1&CHAR(10)&ScriptText!$D$1)","v":""},{"$f":"IF(OrigTable!G965=\"\",\"\",TEXT(OrigTable!G965,\"00\"))","v":""},{"$f":"IF(OrigTable!G965=\"\",\"\",ScriptText!$E$1&CHAR(10)&ScriptText!$C$1)","v":""},0]
["\n\n\n",{"$f":"IF(OrigTable!A966=\"\",\"\",ScriptText!$B$1&CHAR(10)&ScriptText!$D$1)","v":""},{"$f":"IF(OrigTable!A966=\"\",\"\",TEXT(OrigTable!A966,\"00\"))","v":""},{"$f":"IF(OrigTable!A966=\"\",\"\",ScriptText!$E$1&CHAR(10)&ScriptText!$C$1)","v":""},{"$f":"IF(OrigTable!B966=\"\",\"\",ScriptText!$B$1&CHAR(10)&ScriptText!$D$1)","v":""},{"$f":"IF(OrigTable!B966=\"\",\"\",TEXT(OrigTable!B966,\"00\"))","v":""},{"$f":"IF(OrigTable!B966=\"\",\"\",ScriptText!$E$1&CHAR(10)&ScriptText!C961)","v":""},{"$f":"IF(OrigTable!C966=\"\",\"\",ScriptText!$B$1&CHAR(10)&ScriptText!$D$1)","v":""},{"$f":"IF(OrigTable!C966=\"\",\"\",IF(LEN(OrigTable!C966)>255,LEFT(OrigTable!C966,250)&\". . .\",OrigTable!C966))","v":""},{"$f":"IF(OrigTable!C966=\"\",\"\",ScriptText!$E$1&CHAR(10)&ScriptText!$C$1)","v":""},{"$f":"IF(OrigTable!D966=\"\",\"\",ScriptText!$B$1&CHAR(10)&ScriptText!$D$1)","v":""},{"$f":"IF(OrigTable!D966=\"\",\"\",TEXT(OrigTable!D966,\"00\"))","v":""},{"$f":"IF(OrigTable!D966=\"\",\"\",ScriptText!$E$1&CHAR(10)&ScriptText!$C$1)","v":""},{"$f":"IF(OrigTable!E966=\"\",\"\",ScriptText!$B$1&CHAR(10)&ScriptText!$D$1)","v":""},{"$f":"IF(OrigTable!E966=\"\",\"\",TEXT(OrigTable!E966,\"00\"))","v":""},{"$f":"IF(OrigTable!E966=\"\",\"\",ScriptText!$E$1&CHAR(10)&ScriptText!$C$1)","v":""},{"$f":"IF(OrigTable!F966=\"\",\"\",ScriptText!$B$1&CHAR(10)&ScriptText!$D$1)","v":""},{"$f":"IF(OrigTable!F966=\"\",\"\",TEXT(OrigTable!F966,\"00\"))","v":""},{"$f":"IF(OrigTable!F966=\"\",\"\",ScriptText!$E$1&CHAR(10)&ScriptText!$C$1)","v":""},{"$f":"IF(OrigTable!G966=\"\",\"\",ScriptText!$B$1&CHAR(10)&ScriptText!$D$1)","v":""},{"$f":"IF(OrigTable!G966=\"\",\"\",TEXT(OrigTable!G966,\"00\"))","v":""},{"$f":"IF(OrigTable!G966=\"\",\"\",ScriptText!$E$1&CHAR(10)&ScriptText!$C$1)","v":""},{"$f":"IF(LEN(A966)>3,ROW(),0)","v":0}]
["\n\n\n",{"$f":"IF(OrigTable!A967=\"\",\"\",ScriptText!$B$1&CHAR(10)&ScriptText!$D$1)","v":""},{"$f":"IF(OrigTable!A967=\"\",\"\",TEXT(OrigTable!A967,\"00\"))","v":""},{"$f":"IF(OrigTable!A967=\"\",\"\",ScriptText!$E$1&CHAR(10)&ScriptText!$C$1)","v":""},{"$f":"IF(OrigTable!B967=\"\",\"\",ScriptText!$B$1&CHAR(10)&ScriptText!$D$1)","v":""},{"$f":"IF(OrigTable!B967=\"\",\"\",TEXT(OrigTable!B967,\"00\"))","v":""},{"$f":"IF(OrigTable!B967=\"\",\"\",ScriptText!$E$1&CHAR(10)&ScriptText!C962)","v":""},{"$f":"IF(OrigTable!C967=\"\",\"\",ScriptText!$B$1&CHAR(10)&ScriptText!$D$1)","v":""},{"$f":"IF(OrigTable!C967=\"\",\"\",IF(LEN(OrigTable!C967)>255,LEFT(OrigTable!C967,250)&\". . .\",OrigTable!C967))","v":""},{"$f":"IF(OrigTable!C967=\"\",\"\",ScriptText!$E$1&CHAR(10)&ScriptText!$C$1)","v":""},{"$f":"IF(OrigTable!D967=\"\",\"\",ScriptText!$B$1&CHAR(10)&ScriptText!$D$1)","v":""},{"$f":"IF(OrigTable!D967=\"\",\"\",TEXT(OrigTable!D967,\"00\"))","v":""},{"$f":"IF(OrigTable!D967=\"\",\"\",ScriptText!$E$1&CHAR(10)&ScriptText!$C$1)","v":""},{"$f":"IF(OrigTable!E967=\"\",\"\",ScriptText!$B$1&CHAR(10)&ScriptText!$D$1)","v":""},{"$f":"IF(OrigTable!E967=\"\",\"\",TEXT(OrigTable!E967,\"00\"))","v":""},{"$f":"IF(OrigTable!E967=\"\",\"\",ScriptText!$E$1&CHAR(10)&ScriptText!$C$1)","v":""},{"$f":"IF(OrigTable!F967=\"\",\"\",ScriptText!$B$1&CHAR(10)&ScriptText!$D$1)","v":""},{"$f":"IF(OrigTable!F967=\"\",\"\",TEXT(OrigTable!F967,\"00\"))","v":""},{"$f":"IF(OrigTable!F967=\"\",\"\",ScriptText!$E$1&CHAR(10)&ScriptText!$C$1)","v":""},{"$f":"IF(OrigTable!G967=\"\",\"\",ScriptText!$B$1&CHAR(10)&ScriptText!$D$1)","v":""},{"$f":"IF(OrigTable!G967=\"\",\"\",TEXT(OrigTable!G967,\"00\"))","v":""},{"$f":"IF(OrigTable!G967=\"\",\"\",ScriptText!$E$1&CHAR(10)&ScriptText!$C$1)","v":""},0]
["\n\n\n",{"$f":"IF(OrigTable!A968=\"\",\"\",ScriptText!$B$1&CHAR(10)&ScriptText!$D$1)","v":""},{"$f":"IF(OrigTable!A968=\"\",\"\",TEXT(OrigTable!A968,\"00\"))","v":""},{"$f":"IF(OrigTable!A968=\"\",\"\",ScriptText!$E$1&CHAR(10)&ScriptText!$C$1)","v":""},{"$f":"IF(OrigTable!B968=\"\",\"\",ScriptText!$B$1&CHAR(10)&ScriptText!$D$1)","v":""},{"$f":"IF(OrigTable!B968=\"\",\"\",TEXT(OrigTable!B968,\"00\"))","v":""},{"$f":"IF(OrigTable!B968=\"\",\"\",ScriptText!$E$1&CHAR(10)&ScriptText!C963)","v":""},{"$f":"IF(OrigTable!C968=\"\",\"\",ScriptText!$B$1&CHAR(10)&ScriptText!$D$1)","v":""},{"$f":"IF(OrigTable!C968=\"\",\"\",IF(LEN(OrigTable!C968)>255,LEFT(OrigTable!C968,250)&\". . .\",OrigTable!C968))","v":""},{"$f":"IF(OrigTable!C968=\"\",\"\",ScriptText!$E$1&CHAR(10)&ScriptText!$C$1)","v":""},{"$f":"IF(OrigTable!D968=\"\",\"\",ScriptText!$B$1&CHAR(10)&ScriptText!$D$1)","v":""},{"$f":"IF(OrigTable!D968=\"\",\"\",TEXT(OrigTable!D968,\"00\"))","v":""},{"$f":"IF(OrigTable!D968=\"\",\"\",ScriptText!$E$1&CHAR(10)&ScriptText!$C$1)","v":""},{"$f":"IF(OrigTable!E968=\"\",\"\",ScriptText!$B$1&CHAR(10)&ScriptText!$D$1)","v":""},{"$f":"IF(OrigTable!E968=\"\",\"\",TEXT(OrigTable!E968,\"00\"))","v":""},{"$f":"IF(OrigTable!E968=\"\",\"\",ScriptText!$E$1&CHAR(10)&ScriptText!$C$1)","v":""},{"$f":"IF(OrigTable!F968=\"\",\"\",ScriptText!$B$1&CHAR(10)&ScriptText!$D$1)","v":""},{"$f":"IF(OrigTable!F968=\"\",\"\",TEXT(OrigTable!F968,\"00\"))","v":""},{"$f":"IF(OrigTable!F968=\"\",\"\",ScriptText!$E$1&CHAR(10)&ScriptText!$C$1)","v":""},{"$f":"IF(OrigTable!G968=\"\",\"\",ScriptText!$B$1&CHAR(10)&ScriptText!$D$1)","v":""},{"$f":"IF(OrigTable!G968=\"\",\"\",TEXT(OrigTable!G968,\"00\"))","v":""},{"$f":"IF(OrigTable!G968=\"\",\"\",ScriptText!$E$1&CHAR(10)&ScriptText!$C$1)","v":""},0]
[{"$f":"_xlfn.TEXTJOIN(\"\",TRUE,B969:D969)&CHAR(10)&_xlfn.TEXTJOIN(\"\",TRUE,E969:G969)&CHAR(10)&_xlfn.TEXTJOIN(\"\",TRUE,H969:J969)&CHAR(10)&_xlfn.TEXTJOIN(\"\",TRUE,K969:M969)&_xlfn.TEXTJOIN(\"\",TRUE,N969:P969)&_xlfn.TEXTJOIN(\"\",TRUE,Q969:S969)&_xlfn.TEXTJOIN(\"\",TRUE,T969:V969)","v":"\n\n\n"},{"$f":"IF(OrigTable!A969=\"\",\"\",ScriptText!$B$1&CHAR(10)&ScriptText!$D$1)","v":""},{"$f":"IF(OrigTable!A969=\"\",\"\",TEXT(OrigTable!A969,\"00\"))","v":""},{"$f":"IF(OrigTable!A969=\"\",\"\",ScriptText!$E$1&CHAR(10)&ScriptText!$C$1)","v":""},{"$f":"IF(OrigTable!B969=\"\",\"\",ScriptText!$B$1&CHAR(10)&ScriptText!$D$1)","v":""},{"$f":"IF(OrigTable!B969=\"\",\"\",TEXT(OrigTable!B969,\"00\"))","v":""},{"$f":"IF(OrigTable!B969=\"\",\"\",ScriptText!$E$1&CHAR(10)&ScriptText!C964)","v":""},{"$f":"IF(OrigTable!C969=\"\",\"\",ScriptText!$B$1&CHAR(10)&ScriptText!$D$1)","v":""},{"$f":"IF(OrigTable!C969=\"\",\"\",IF(LEN(OrigTable!C969)>255,LEFT(OrigTable!C969,250)&\". . .\",OrigTable!C969))","v":""},{"$f":"IF(OrigTable!C969=\"\",\"\",ScriptText!$E$1&CHAR(10)&ScriptText!$C$1)","v":""},{"$f":"IF(OrigTable!D969=\"\",\"\",ScriptText!$B$1&CHAR(10)&ScriptText!$D$1)","v":""},{"$f":"IF(OrigTable!D969=\"\",\"\",TEXT(OrigTable!D969,\"00\"))","v":""},{"$f":"IF(OrigTable!D969=\"\",\"\",ScriptText!$E$1&CHAR(10)&ScriptText!$C$1)","v":""},{"$f":"IF(OrigTable!E969=\"\",\"\",ScriptText!$B$1&CHAR(10)&ScriptText!$D$1)","v":""},{"$f":"IF(OrigTable!E969=\"\",\"\",TEXT(OrigTable!E969,\"00\"))","v":""},{"$f":"IF(OrigTable!E969=\"\",\"\",ScriptText!$E$1&CHAR(10)&ScriptText!$C$1)","v":""},{"$f":"IF(OrigTable!F969=\"\",\"\",ScriptText!$B$1&CHAR(10)&ScriptText!$D$1)","v":""},{"$f":"IF(OrigTable!F969=\"\",\"\",TEXT(OrigTable!F969,\"00\"))","v":""},{"$f":"IF(OrigTable!F969=\"\",\"\",ScriptText!$E$1&CHAR(10)&ScriptText!$C$1)","v":""},{"$f":"IF(OrigTable!G969=\"\",\"\",ScriptText!$B$1&CHAR(10)&ScriptText!$D$1)","v":""},{"$f":"IF(OrigTable!G969=\"\",\"\",TEXT(OrigTable!G969,\"00\"))","v":""},{"$f":"IF(OrigTable!G969=\"\",\"\",ScriptText!$E$1&CHAR(10)&ScriptText!$C$1)","v":""},0]
["\n\n\n",{"$f":"IF(OrigTable!A970=\"\",\"\",ScriptText!$B$1&CHAR(10)&ScriptText!$D$1)","v":""},{"$f":"IF(OrigTable!A970=\"\",\"\",TEXT(OrigTable!A970,\"00\"))","v":""},{"$f":"IF(OrigTable!A970=\"\",\"\",ScriptText!$E$1&CHAR(10)&ScriptText!$C$1)","v":""},{"$f":"IF(OrigTable!B970=\"\",\"\",ScriptText!$B$1&CHAR(10)&ScriptText!$D$1)","v":""},{"$f":"IF(OrigTable!B970=\"\",\"\",TEXT(OrigTable!B970,\"00\"))","v":""},{"$f":"IF(OrigTable!B970=\"\",\"\",ScriptText!$E$1&CHAR(10)&ScriptText!C965)","v":""},{"$f":"IF(OrigTable!C970=\"\",\"\",ScriptText!$B$1&CHAR(10)&ScriptText!$D$1)","v":""},{"$f":"IF(OrigTable!C970=\"\",\"\",IF(LEN(OrigTable!C970)>255,LEFT(OrigTable!C970,250)&\". . .\",OrigTable!C970))","v":""},{"$f":"IF(OrigTable!C970=\"\",\"\",ScriptText!$E$1&CHAR(10)&ScriptText!$C$1)","v":""},{"$f":"IF(OrigTable!D970=\"\",\"\",ScriptText!$B$1&CHAR(10)&ScriptText!$D$1)","v":""},{"$f":"IF(OrigTable!D970=\"\",\"\",TEXT(OrigTable!D970,\"00\"))","v":""},{"$f":"IF(OrigTable!D970=\"\",\"\",ScriptText!$E$1&CHAR(10)&ScriptText!$C$1)","v":""},{"$f":"IF(OrigTable!E970=\"\",\"\",ScriptText!$B$1&CHAR(10)&ScriptText!$D$1)","v":""},{"$f":"IF(OrigTable!E970=\"\",\"\",TEXT(OrigTable!E970,\"00\"))","v":""},{"$f":"IF(OrigTable!E970=\"\",\"\",ScriptText!$E$1&CHAR(10)&ScriptText!$C$1)","v":""},{"$f":"IF(OrigTable!F970=\"\",\"\",ScriptText!$B$1&CHAR(10)&ScriptText!$D$1)","v":""},{"$f":"IF(OrigTable!F970=\"\",\"\",TEXT(OrigTable!F970,\"00\"))","v":""},{"$f":"IF(OrigTable!F970=\"\",\"\",ScriptText!$E$1&CHAR(10)&ScriptText!$C$1)","v":""},{"$f":"IF(OrigTable!G970=\"\",\"\",ScriptText!$B$1&CHAR(10)&ScriptText!$D$1)","v":""},{"$f":"IF(OrigTable!G970=\"\",\"\",TEXT(OrigTable!G970,\"00\"))","v":""},{"$f":"IF(OrigTable!G970=\"\",\"\",ScriptText!$E$1&CHAR(10)&ScriptText!$C$1)","v":""},0]
["\n\n\n",{"$f":"IF(OrigTable!A971=\"\",\"\",ScriptText!$B$1&CHAR(10)&ScriptText!$D$1)","v":""},{"$f":"IF(OrigTable!A971=\"\",\"\",TEXT(OrigTable!A971,\"00\"))","v":""},{"$f":"IF(OrigTable!A971=\"\",\"\",ScriptText!$E$1&CHAR(10)&ScriptText!$C$1)","v":""},{"$f":"IF(OrigTable!B971=\"\",\"\",ScriptText!$B$1&CHAR(10)&ScriptText!$D$1)","v":""},{"$f":"IF(OrigTable!B971=\"\",\"\",TEXT(OrigTable!B971,\"00\"))","v":""},{"$f":"IF(OrigTable!B971=\"\",\"\",ScriptText!$E$1&CHAR(10)&ScriptText!C966)","v":""},{"$f":"IF(OrigTable!C971=\"\",\"\",ScriptText!$B$1&CHAR(10)&ScriptText!$D$1)","v":""},{"$f":"IF(OrigTable!C971=\"\",\"\",IF(LEN(OrigTable!C971)>255,LEFT(OrigTable!C971,250)&\". . .\",OrigTable!C971))","v":""},{"$f":"IF(OrigTable!C971=\"\",\"\",ScriptText!$E$1&CHAR(10)&ScriptText!$C$1)","v":""},{"$f":"IF(OrigTable!D971=\"\",\"\",ScriptText!$B$1&CHAR(10)&ScriptText!$D$1)","v":""},{"$f":"IF(OrigTable!D971=\"\",\"\",TEXT(OrigTable!D971,\"00\"))","v":""},{"$f":"IF(OrigTable!D971=\"\",\"\",ScriptText!$E$1&CHAR(10)&ScriptText!$C$1)","v":""},{"$f":"IF(OrigTable!E971=\"\",\"\",ScriptText!$B$1&CHAR(10)&ScriptText!$D$1)","v":""},{"$f":"IF(OrigTable!E971=\"\",\"\",TEXT(OrigTable!E971,\"00\"))","v":""},{"$f":"IF(OrigTable!E971=\"\",\"\",ScriptText!$E$1&CHAR(10)&ScriptText!$C$1)","v":""},{"$f":"IF(OrigTable!F971=\"\",\"\",ScriptText!$B$1&CHAR(10)&ScriptText!$D$1)","v":""},{"$f":"IF(OrigTable!F971=\"\",\"\",TEXT(OrigTable!F971,\"00\"))","v":""},{"$f":"IF(OrigTable!F971=\"\",\"\",ScriptText!$E$1&CHAR(10)&ScriptText!$C$1)","v":""},{"$f":"IF(OrigTable!G971=\"\",\"\",ScriptText!$B$1&CHAR(10)&ScriptText!$D$1)","v":""},{"$f":"IF(OrigTable!G971=\"\",\"\",TEXT(OrigTable!G971,\"00\"))","v":""},{"$f":"IF(OrigTable!G971=\"\",\"\",ScriptText!$E$1&CHAR(10)&ScriptText!$C$1)","v":""},0]
["\n\n\n",{"$f":"IF(OrigTable!A972=\"\",\"\",ScriptText!$B$1&CHAR(10)&ScriptText!$D$1)","v":""},{"$f":"IF(OrigTable!A972=\"\",\"\",TEXT(OrigTable!A972,\"00\"))","v":""},{"$f":"IF(OrigTable!A972=\"\",\"\",ScriptText!$E$1&CHAR(10)&ScriptText!$C$1)","v":""},{"$f":"IF(OrigTable!B972=\"\",\"\",ScriptText!$B$1&CHAR(10)&ScriptText!$D$1)","v":""},{"$f":"IF(OrigTable!B972=\"\",\"\",TEXT(OrigTable!B972,\"00\"))","v":""},{"$f":"IF(OrigTable!B972=\"\",\"\",ScriptText!$E$1&CHAR(10)&ScriptText!C967)","v":""},{"$f":"IF(OrigTable!C972=\"\",\"\",ScriptText!$B$1&CHAR(10)&ScriptText!$D$1)","v":""},{"$f":"IF(OrigTable!C972=\"\",\"\",IF(LEN(OrigTable!C972)>255,LEFT(OrigTable!C972,250)&\". . .\",OrigTable!C972))","v":""},{"$f":"IF(OrigTable!C972=\"\",\"\",ScriptText!$E$1&CHAR(10)&ScriptText!$C$1)","v":""},{"$f":"IF(OrigTable!D972=\"\",\"\",ScriptText!$B$1&CHAR(10)&ScriptText!$D$1)","v":""},{"$f":"IF(OrigTable!D972=\"\",\"\",TEXT(OrigTable!D972,\"00\"))","v":""},{"$f":"IF(OrigTable!D972=\"\",\"\",ScriptText!$E$1&CHAR(10)&ScriptText!$C$1)","v":""},{"$f":"IF(OrigTable!E972=\"\",\"\",ScriptText!$B$1&CHAR(10)&ScriptText!$D$1)","v":""},{"$f":"IF(OrigTable!E972=\"\",\"\",TEXT(OrigTable!E972,\"00\"))","v":""},{"$f":"IF(OrigTable!E972=\"\",\"\",ScriptText!$E$1&CHAR(10)&ScriptText!$C$1)","v":""},{"$f":"IF(OrigTable!F972=\"\",\"\",ScriptText!$B$1&CHAR(10)&ScriptText!$D$1)","v":""},{"$f":"IF(OrigTable!F972=\"\",\"\",TEXT(OrigTable!F972,\"00\"))","v":""},{"$f":"IF(OrigTable!F972=\"\",\"\",ScriptText!$E$1&CHAR(10)&ScriptText!$C$1)","v":""},{"$f":"IF(OrigTable!G972=\"\",\"\",ScriptText!$B$1&CHAR(10)&ScriptText!$D$1)","v":""},{"$f":"IF(OrigTable!G972=\"\",\"\",TEXT(OrigTable!G972,\"00\"))","v":""},{"$f":"IF(OrigTable!G972=\"\",\"\",ScriptText!$E$1&CHAR(10)&ScriptText!$C$1)","v":""},0]
["\n\n\n",{"$f":"IF(OrigTable!A973=\"\",\"\",ScriptText!$B$1&CHAR(10)&ScriptText!$D$1)","v":""},{"$f":"IF(OrigTable!A973=\"\",\"\",TEXT(OrigTable!A973,\"00\"))","v":""},{"$f":"IF(OrigTable!A973=\"\",\"\",ScriptText!$E$1&CHAR(10)&ScriptText!$C$1)","v":""},{"$f":"IF(OrigTable!B973=\"\",\"\",ScriptText!$B$1&CHAR(10)&ScriptText!$D$1)","v":""},{"$f":"IF(OrigTable!B973=\"\",\"\",TEXT(OrigTable!B973,\"00\"))","v":""},{"$f":"IF(OrigTable!B973=\"\",\"\",ScriptText!$E$1&CHAR(10)&ScriptText!C968)","v":""},{"$f":"IF(OrigTable!C973=\"\",\"\",ScriptText!$B$1&CHAR(10)&ScriptText!$D$1)","v":""},{"$f":"IF(OrigTable!C973=\"\",\"\",IF(LEN(OrigTable!C973)>255,LEFT(OrigTable!C973,250)&\". . .\",OrigTable!C973))","v":""},{"$f":"IF(OrigTable!C973=\"\",\"\",ScriptText!$E$1&CHAR(10)&ScriptText!$C$1)","v":""},{"$f":"IF(OrigTable!D973=\"\",\"\",ScriptText!$B$1&CHAR(10)&ScriptText!$D$1)","v":""},{"$f":"IF(OrigTable!D973=\"\",\"\",TEXT(OrigTable!D973,\"00\"))","v":""},{"$f":"IF(OrigTable!D973=\"\",\"\",ScriptText!$E$1&CHAR(10)&ScriptText!$C$1)","v":""},{"$f":"IF(OrigTable!E973=\"\",\"\",ScriptText!$B$1&CHAR(10)&ScriptText!$D$1)","v":""},{"$f":"IF(OrigTable!E973=\"\",\"\",TEXT(OrigTable!E973,\"00\"))","v":""},{"$f":"IF(OrigTable!E973=\"\",\"\",ScriptText!$E$1&CHAR(10)&ScriptText!$C$1)","v":""},{"$f":"IF(OrigTable!F973=\"\",\"\",ScriptText!$B$1&CHAR(10)&ScriptText!$D$1)","v":""},{"$f":"IF(OrigTable!F973=\"\",\"\",TEXT(OrigTable!F973,\"00\"))","v":""},{"$f":"IF(OrigTable!F973=\"\",\"\",ScriptText!$E$1&CHAR(10)&ScriptText!$C$1)","v":""},{"$f":"IF(OrigTable!G973=\"\",\"\",ScriptText!$B$1&CHAR(10)&ScriptText!$D$1)","v":""},{"$f":"IF(OrigTable!G973=\"\",\"\",TEXT(OrigTable!G973,\"00\"))","v":""},{"$f":"IF(OrigTable!G973=\"\",\"\",ScriptText!$E$1&CHAR(10)&ScriptText!$C$1)","v":""},0]
["\n\n\n",{"$f":"IF(OrigTable!A974=\"\",\"\",ScriptText!$B$1&CHAR(10)&ScriptText!$D$1)","v":""},{"$f":"IF(OrigTable!A974=\"\",\"\",TEXT(OrigTable!A974,\"00\"))","v":""},{"$f":"IF(OrigTable!A974=\"\",\"\",ScriptText!$E$1&CHAR(10)&ScriptText!$C$1)","v":""},{"$f":"IF(OrigTable!B974=\"\",\"\",ScriptText!$B$1&CHAR(10)&ScriptText!$D$1)","v":""},{"$f":"IF(OrigTable!B974=\"\",\"\",TEXT(OrigTable!B974,\"00\"))","v":""},{"$f":"IF(OrigTable!B974=\"\",\"\",ScriptText!$E$1&CHAR(10)&ScriptText!C969)","v":""},{"$f":"IF(OrigTable!C974=\"\",\"\",ScriptText!$B$1&CHAR(10)&ScriptText!$D$1)","v":""},{"$f":"IF(OrigTable!C974=\"\",\"\",IF(LEN(OrigTable!C974)>255,LEFT(OrigTable!C974,250)&\". . .\",OrigTable!C974))","v":""},{"$f":"IF(OrigTable!C974=\"\",\"\",ScriptText!$E$1&CHAR(10)&ScriptText!$C$1)","v":""},{"$f":"IF(OrigTable!D974=\"\",\"\",ScriptText!$B$1&CHAR(10)&ScriptText!$D$1)","v":""},{"$f":"IF(OrigTable!D974=\"\",\"\",TEXT(OrigTable!D974,\"00\"))","v":""},{"$f":"IF(OrigTable!D974=\"\",\"\",ScriptText!$E$1&CHAR(10)&ScriptText!$C$1)","v":""},{"$f":"IF(OrigTable!E974=\"\",\"\",ScriptText!$B$1&CHAR(10)&ScriptText!$D$1)","v":""},{"$f":"IF(OrigTable!E974=\"\",\"\",TEXT(OrigTable!E974,\"00\"))","v":""},{"$f":"IF(OrigTable!E974=\"\",\"\",ScriptText!$E$1&CHAR(10)&ScriptText!$C$1)","v":""},{"$f":"IF(OrigTable!F974=\"\",\"\",ScriptText!$B$1&CHAR(10)&ScriptText!$D$1)","v":""},{"$f":"IF(OrigTable!F974=\"\",\"\",TEXT(OrigTable!F974,\"00\"))","v":""},{"$f":"IF(OrigTable!F974=\"\",\"\",ScriptText!$E$1&CHAR(10)&ScriptText!$C$1)","v":""},{"$f":"IF(OrigTable!G974=\"\",\"\",ScriptText!$B$1&CHAR(10)&ScriptText!$D$1)","v":""},{"$f":"IF(OrigTable!G974=\"\",\"\",TEXT(OrigTable!G974,\"00\"))","v":""},{"$f":"IF(OrigTable!G974=\"\",\"\",ScriptText!$E$1&CHAR(10)&ScriptText!$C$1)","v":""},0]
["\n\n\n",{"$f":"IF(OrigTable!A975=\"\",\"\",ScriptText!$B$1&CHAR(10)&ScriptText!$D$1)","v":""},{"$f":"IF(OrigTable!A975=\"\",\"\",TEXT(OrigTable!A975,\"00\"))","v":""},{"$f":"IF(OrigTable!A975=\"\",\"\",ScriptText!$E$1&CHAR(10)&ScriptText!$C$1)","v":""},{"$f":"IF(OrigTable!B975=\"\",\"\",ScriptText!$B$1&CHAR(10)&ScriptText!$D$1)","v":""},{"$f":"IF(OrigTable!B975=\"\",\"\",TEXT(OrigTable!B975,\"00\"))","v":""},{"$f":"IF(OrigTable!B975=\"\",\"\",ScriptText!$E$1&CHAR(10)&ScriptText!C970)","v":""},{"$f":"IF(OrigTable!C975=\"\",\"\",ScriptText!$B$1&CHAR(10)&ScriptText!$D$1)","v":""},{"$f":"IF(OrigTable!C975=\"\",\"\",IF(LEN(OrigTable!C975)>255,LEFT(OrigTable!C975,250)&\". . .\",OrigTable!C975))","v":""},{"$f":"IF(OrigTable!C975=\"\",\"\",ScriptText!$E$1&CHAR(10)&ScriptText!$C$1)","v":""},{"$f":"IF(OrigTable!D975=\"\",\"\",ScriptText!$B$1&CHAR(10)&ScriptText!$D$1)","v":""},{"$f":"IF(OrigTable!D975=\"\",\"\",TEXT(OrigTable!D975,\"00\"))","v":""},{"$f":"IF(OrigTable!D975=\"\",\"\",ScriptText!$E$1&CHAR(10)&ScriptText!$C$1)","v":""},{"$f":"IF(OrigTable!E975=\"\",\"\",ScriptText!$B$1&CHAR(10)&ScriptText!$D$1)","v":""},{"$f":"IF(OrigTable!E975=\"\",\"\",TEXT(OrigTable!E975,\"00\"))","v":""},{"$f":"IF(OrigTable!E975=\"\",\"\",ScriptText!$E$1&CHAR(10)&ScriptText!$C$1)","v":""},{"$f":"IF(OrigTable!F975=\"\",\"\",ScriptText!$B$1&CHAR(10)&ScriptText!$D$1)","v":""},{"$f":"IF(OrigTable!F975=\"\",\"\",TEXT(OrigTable!F975,\"00\"))","v":""},{"$f":"IF(OrigTable!F975=\"\",\"\",ScriptText!$E$1&CHAR(10)&ScriptText!$C$1)","v":""},{"$f":"IF(OrigTable!G975=\"\",\"\",ScriptText!$B$1&CHAR(10)&ScriptText!$D$1)","v":""},{"$f":"IF(OrigTable!G975=\"\",\"\",TEXT(OrigTable!G975,\"00\"))","v":""},{"$f":"IF(OrigTable!G975=\"\",\"\",ScriptText!$E$1&CHAR(10)&ScriptText!$C$1)","v":""},0]
["\n\n\n",{"$f":"IF(OrigTable!A976=\"\",\"\",ScriptText!$B$1&CHAR(10)&ScriptText!$D$1)","v":""},{"$f":"IF(OrigTable!A976=\"\",\"\",TEXT(OrigTable!A976,\"00\"))","v":""},{"$f":"IF(OrigTable!A976=\"\",\"\",ScriptText!$E$1&CHAR(10)&ScriptText!$C$1)","v":""},{"$f":"IF(OrigTable!B976=\"\",\"\",ScriptText!$B$1&CHAR(10)&ScriptText!$D$1)","v":""},{"$f":"IF(OrigTable!B976=\"\",\"\",TEXT(OrigTable!B976,\"00\"))","v":""},{"$f":"IF(OrigTable!B976=\"\",\"\",ScriptText!$E$1&CHAR(10)&ScriptText!C971)","v":""},{"$f":"IF(OrigTable!C976=\"\",\"\",ScriptText!$B$1&CHAR(10)&ScriptText!$D$1)","v":""},{"$f":"IF(OrigTable!C976=\"\",\"\",IF(LEN(OrigTable!C976)>255,LEFT(OrigTable!C976,250)&\". . .\",OrigTable!C976))","v":""},{"$f":"IF(OrigTable!C976=\"\",\"\",ScriptText!$E$1&CHAR(10)&ScriptText!$C$1)","v":""},{"$f":"IF(OrigTable!D976=\"\",\"\",ScriptText!$B$1&CHAR(10)&ScriptText!$D$1)","v":""},{"$f":"IF(OrigTable!D976=\"\",\"\",TEXT(OrigTable!D976,\"00\"))","v":""},{"$f":"IF(OrigTable!D976=\"\",\"\",ScriptText!$E$1&CHAR(10)&ScriptText!$C$1)","v":""},{"$f":"IF(OrigTable!E976=\"\",\"\",ScriptText!$B$1&CHAR(10)&ScriptText!$D$1)","v":""},{"$f":"IF(OrigTable!E976=\"\",\"\",TEXT(OrigTable!E976,\"00\"))","v":""},{"$f":"IF(OrigTable!E976=\"\",\"\",ScriptText!$E$1&CHAR(10)&ScriptText!$C$1)","v":""},{"$f":"IF(OrigTable!F976=\"\",\"\",ScriptText!$B$1&CHAR(10)&ScriptText!$D$1)","v":""},{"$f":"IF(OrigTable!F976=\"\",\"\",TEXT(OrigTable!F976,\"00\"))","v":""},{"$f":"IF(OrigTable!F976=\"\",\"\",ScriptText!$E$1&CHAR(10)&ScriptText!$C$1)","v":""},{"$f":"IF(OrigTable!G976=\"\",\"\",ScriptText!$B$1&CHAR(10)&ScriptText!$D$1)","v":""},{"$f":"IF(OrigTable!G976=\"\",\"\",TEXT(OrigTable!G976,\"00\"))","v":""},{"$f":"IF(OrigTable!G976=\"\",\"\",ScriptText!$E$1&CHAR(10)&ScriptText!$C$1)","v":""},0]
["\n\n\n",{"$f":"IF(OrigTable!A977=\"\",\"\",ScriptText!$B$1&CHAR(10)&ScriptText!$D$1)","v":""},{"$f":"IF(OrigTable!A977=\"\",\"\",TEXT(OrigTable!A977,\"00\"))","v":""},{"$f":"IF(OrigTable!A977=\"\",\"\",ScriptText!$E$1&CHAR(10)&ScriptText!$C$1)","v":""},{"$f":"IF(OrigTable!B977=\"\",\"\",ScriptText!$B$1&CHAR(10)&ScriptText!$D$1)","v":""},{"$f":"IF(OrigTable!B977=\"\",\"\",TEXT(OrigTable!B977,\"00\"))","v":""},{"$f":"IF(OrigTable!B977=\"\",\"\",ScriptText!$E$1&CHAR(10)&ScriptText!C972)","v":""},{"$f":"IF(OrigTable!C977=\"\",\"\",ScriptText!$B$1&CHAR(10)&ScriptText!$D$1)","v":""},{"$f":"IF(OrigTable!C977=\"\",\"\",IF(LEN(OrigTable!C977)>255,LEFT(OrigTable!C977,250)&\". . .\",OrigTable!C977))","v":""},{"$f":"IF(OrigTable!C977=\"\",\"\",ScriptText!$E$1&CHAR(10)&ScriptText!$C$1)","v":""},{"$f":"IF(OrigTable!D977=\"\",\"\",ScriptText!$B$1&CHAR(10)&ScriptText!$D$1)","v":""},{"$f":"IF(OrigTable!D977=\"\",\"\",TEXT(OrigTable!D977,\"00\"))","v":""},{"$f":"IF(OrigTable!D977=\"\",\"\",ScriptText!$E$1&CHAR(10)&ScriptText!$C$1)","v":""},{"$f":"IF(OrigTable!E977=\"\",\"\",ScriptText!$B$1&CHAR(10)&ScriptText!$D$1)","v":""},{"$f":"IF(OrigTable!E977=\"\",\"\",TEXT(OrigTable!E977,\"00\"))","v":""},{"$f":"IF(OrigTable!E977=\"\",\"\",ScriptText!$E$1&CHAR(10)&ScriptText!$C$1)","v":""},{"$f":"IF(OrigTable!F977=\"\",\"\",ScriptText!$B$1&CHAR(10)&ScriptText!$D$1)","v":""},{"$f":"IF(OrigTable!F977=\"\",\"\",TEXT(OrigTable!F977,\"00\"))","v":""},{"$f":"IF(OrigTable!F977=\"\",\"\",ScriptText!$E$1&CHAR(10)&ScriptText!$C$1)","v":""},{"$f":"IF(OrigTable!G977=\"\",\"\",ScriptText!$B$1&CHAR(10)&ScriptText!$D$1)","v":""},{"$f":"IF(OrigTable!G977=\"\",\"\",TEXT(OrigTable!G977,\"00\"))","v":""},{"$f":"IF(OrigTable!G977=\"\",\"\",ScriptText!$E$1&CHAR(10)&ScriptText!$C$1)","v":""},0]
["\n\n\n",{"$f":"IF(OrigTable!A978=\"\",\"\",ScriptText!$B$1&CHAR(10)&ScriptText!$D$1)","v":""},{"$f":"IF(OrigTable!A978=\"\",\"\",TEXT(OrigTable!A978,\"00\"))","v":""},{"$f":"IF(OrigTable!A978=\"\",\"\",ScriptText!$E$1&CHAR(10)&ScriptText!$C$1)","v":""},{"$f":"IF(OrigTable!B978=\"\",\"\",ScriptText!$B$1&CHAR(10)&ScriptText!$D$1)","v":""},{"$f":"IF(OrigTable!B978=\"\",\"\",TEXT(OrigTable!B978,\"00\"))","v":""},{"$f":"IF(OrigTable!B978=\"\",\"\",ScriptText!$E$1&CHAR(10)&ScriptText!C973)","v":""},{"$f":"IF(OrigTable!C978=\"\",\"\",ScriptText!$B$1&CHAR(10)&ScriptText!$D$1)","v":""},{"$f":"IF(OrigTable!C978=\"\",\"\",IF(LEN(OrigTable!C978)>255,LEFT(OrigTable!C978,250)&\". . .\",OrigTable!C978))","v":""},{"$f":"IF(OrigTable!C978=\"\",\"\",ScriptText!$E$1&CHAR(10)&ScriptText!$C$1)","v":""},{"$f":"IF(OrigTable!D978=\"\",\"\",ScriptText!$B$1&CHAR(10)&ScriptText!$D$1)","v":""},{"$f":"IF(OrigTable!D978=\"\",\"\",TEXT(OrigTable!D978,\"00\"))","v":""},{"$f":"IF(OrigTable!D978=\"\",\"\",ScriptText!$E$1&CHAR(10)&ScriptText!$C$1)","v":""},{"$f":"IF(OrigTable!E978=\"\",\"\",ScriptText!$B$1&CHAR(10)&ScriptText!$D$1)","v":""},{"$f":"IF(OrigTable!E978=\"\",\"\",TEXT(OrigTable!E978,\"00\"))","v":""},{"$f":"IF(OrigTable!E978=\"\",\"\",ScriptText!$E$1&CHAR(10)&ScriptText!$C$1)","v":""},{"$f":"IF(OrigTable!F978=\"\",\"\",ScriptText!$B$1&CHAR(10)&ScriptText!$D$1)","v":""},{"$f":"IF(OrigTable!F978=\"\",\"\",TEXT(OrigTable!F978,\"00\"))","v":""},{"$f":"IF(OrigTable!F978=\"\",\"\",ScriptText!$E$1&CHAR(10)&ScriptText!$C$1)","v":""},{"$f":"IF(OrigTable!G978=\"\",\"\",ScriptText!$B$1&CHAR(10)&ScriptText!$D$1)","v":""},{"$f":"IF(OrigTable!G978=\"\",\"\",TEXT(OrigTable!G978,\"00\"))","v":""},{"$f":"IF(OrigTable!G978=\"\",\"\",ScriptText!$E$1&CHAR(10)&ScriptText!$C$1)","v":""},0]
["\n\n\n",{"$f":"IF(OrigTable!A979=\"\",\"\",ScriptText!$B$1&CHAR(10)&ScriptText!$D$1)","v":""},{"$f":"IF(OrigTable!A979=\"\",\"\",TEXT(OrigTable!A979,\"00\"))","v":""},{"$f":"IF(OrigTable!A979=\"\",\"\",ScriptText!$E$1&CHAR(10)&ScriptText!$C$1)","v":""},{"$f":"IF(OrigTable!B979=\"\",\"\",ScriptText!$B$1&CHAR(10)&ScriptText!$D$1)","v":""},{"$f":"IF(OrigTable!B979=\"\",\"\",TEXT(OrigTable!B979,\"00\"))","v":""},{"$f":"IF(OrigTable!B979=\"\",\"\",ScriptText!$E$1&CHAR(10)&ScriptText!C974)","v":""},{"$f":"IF(OrigTable!C979=\"\",\"\",ScriptText!$B$1&CHAR(10)&ScriptText!$D$1)","v":""},{"$f":"IF(OrigTable!C979=\"\",\"\",IF(LEN(OrigTable!C979)>255,LEFT(OrigTable!C979,250)&\". . .\",OrigTable!C979))","v":""},{"$f":"IF(OrigTable!C979=\"\",\"\",ScriptText!$E$1&CHAR(10)&ScriptText!$C$1)","v":""},{"$f":"IF(OrigTable!D979=\"\",\"\",ScriptText!$B$1&CHAR(10)&ScriptText!$D$1)","v":""},{"$f":"IF(OrigTable!D979=\"\",\"\",TEXT(OrigTable!D979,\"00\"))","v":""},{"$f":"IF(OrigTable!D979=\"\",\"\",ScriptText!$E$1&CHAR(10)&ScriptText!$C$1)","v":""},{"$f":"IF(OrigTable!E979=\"\",\"\",ScriptText!$B$1&CHAR(10)&ScriptText!$D$1)","v":""},{"$f":"IF(OrigTable!E979=\"\",\"\",TEXT(OrigTable!E979,\"00\"))","v":""},{"$f":"IF(OrigTable!E979=\"\",\"\",ScriptText!$E$1&CHAR(10)&ScriptText!$C$1)","v":""},{"$f":"IF(OrigTable!F979=\"\",\"\",ScriptText!$B$1&CHAR(10)&ScriptText!$D$1)","v":""},{"$f":"IF(OrigTable!F979=\"\",\"\",TEXT(OrigTable!F979,\"00\"))","v":""},{"$f":"IF(OrigTable!F979=\"\",\"\",ScriptText!$E$1&CHAR(10)&ScriptText!$C$1)","v":""},{"$f":"IF(OrigTable!G979=\"\",\"\",ScriptText!$B$1&CHAR(10)&ScriptText!$D$1)","v":""},{"$f":"IF(OrigTable!G979=\"\",\"\",TEXT(OrigTable!G979,\"00\"))","v":""},{"$f":"IF(OrigTable!G979=\"\",\"\",ScriptText!$E$1&CHAR(10)&ScriptText!$C$1)","v":""},0]
["\n\n\n",{"$f":"IF(OrigTable!A980=\"\",\"\",ScriptText!$B$1&CHAR(10)&ScriptText!$D$1)","v":""},{"$f":"IF(OrigTable!A980=\"\",\"\",TEXT(OrigTable!A980,\"00\"))","v":""},{"$f":"IF(OrigTable!A980=\"\",\"\",ScriptText!$E$1&CHAR(10)&ScriptText!$C$1)","v":""},{"$f":"IF(OrigTable!B980=\"\",\"\",ScriptText!$B$1&CHAR(10)&ScriptText!$D$1)","v":""},{"$f":"IF(OrigTable!B980=\"\",\"\",TEXT(OrigTable!B980,\"00\"))","v":""},{"$f":"IF(OrigTable!B980=\"\",\"\",ScriptText!$E$1&CHAR(10)&ScriptText!C975)","v":""},{"$f":"IF(OrigTable!C980=\"\",\"\",ScriptText!$B$1&CHAR(10)&ScriptText!$D$1)","v":""},{"$f":"IF(OrigTable!C980=\"\",\"\",IF(LEN(OrigTable!C980)>255,LEFT(OrigTable!C980,250)&\". . .\",OrigTable!C980))","v":""},{"$f":"IF(OrigTable!C980=\"\",\"\",ScriptText!$E$1&CHAR(10)&ScriptText!$C$1)","v":""},{"$f":"IF(OrigTable!D980=\"\",\"\",ScriptText!$B$1&CHAR(10)&ScriptText!$D$1)","v":""},{"$f":"IF(OrigTable!D980=\"\",\"\",TEXT(OrigTable!D980,\"00\"))","v":""},{"$f":"IF(OrigTable!D980=\"\",\"\",ScriptText!$E$1&CHAR(10)&ScriptText!$C$1)","v":""},{"$f":"IF(OrigTable!E980=\"\",\"\",ScriptText!$B$1&CHAR(10)&ScriptText!$D$1)","v":""},{"$f":"IF(OrigTable!E980=\"\",\"\",TEXT(OrigTable!E980,\"00\"))","v":""},{"$f":"IF(OrigTable!E980=\"\",\"\",ScriptText!$E$1&CHAR(10)&ScriptText!$C$1)","v":""},{"$f":"IF(OrigTable!F980=\"\",\"\",ScriptText!$B$1&CHAR(10)&ScriptText!$D$1)","v":""},{"$f":"IF(OrigTable!F980=\"\",\"\",TEXT(OrigTable!F980,\"00\"))","v":""},{"$f":"IF(OrigTable!F980=\"\",\"\",ScriptText!$E$1&CHAR(10)&ScriptText!$C$1)","v":""},{"$f":"IF(OrigTable!G980=\"\",\"\",ScriptText!$B$1&CHAR(10)&ScriptText!$D$1)","v":""},{"$f":"IF(OrigTable!G980=\"\",\"\",TEXT(OrigTable!G980,\"00\"))","v":""},{"$f":"IF(OrigTable!G980=\"\",\"\",ScriptText!$E$1&CHAR(10)&ScriptText!$C$1)","v":""},0]
["\n\n\n",{"$f":"IF(OrigTable!A981=\"\",\"\",ScriptText!$B$1&CHAR(10)&ScriptText!$D$1)","v":""},{"$f":"IF(OrigTable!A981=\"\",\"\",TEXT(OrigTable!A981,\"00\"))","v":""},{"$f":"IF(OrigTable!A981=\"\",\"\",ScriptText!$E$1&CHAR(10)&ScriptText!$C$1)","v":""},{"$f":"IF(OrigTable!B981=\"\",\"\",ScriptText!$B$1&CHAR(10)&ScriptText!$D$1)","v":""},{"$f":"IF(OrigTable!B981=\"\",\"\",TEXT(OrigTable!B981,\"00\"))","v":""},{"$f":"IF(OrigTable!B981=\"\",\"\",ScriptText!$E$1&CHAR(10)&ScriptText!C976)","v":""},{"$f":"IF(OrigTable!C981=\"\",\"\",ScriptText!$B$1&CHAR(10)&ScriptText!$D$1)","v":""},{"$f":"IF(OrigTable!C981=\"\",\"\",IF(LEN(OrigTable!C981)>255,LEFT(OrigTable!C981,250)&\". . .\",OrigTable!C981))","v":""},{"$f":"IF(OrigTable!C981=\"\",\"\",ScriptText!$E$1&CHAR(10)&ScriptText!$C$1)","v":""},{"$f":"IF(OrigTable!D981=\"\",\"\",ScriptText!$B$1&CHAR(10)&ScriptText!$D$1)","v":""},{"$f":"IF(OrigTable!D981=\"\",\"\",TEXT(OrigTable!D981,\"00\"))","v":""},{"$f":"IF(OrigTable!D981=\"\",\"\",ScriptText!$E$1&CHAR(10)&ScriptText!$C$1)","v":""},{"$f":"IF(OrigTable!E981=\"\",\"\",ScriptText!$B$1&CHAR(10)&ScriptText!$D$1)","v":""},{"$f":"IF(OrigTable!E981=\"\",\"\",TEXT(OrigTable!E981,\"00\"))","v":""},{"$f":"IF(OrigTable!E981=\"\",\"\",ScriptText!$E$1&CHAR(10)&ScriptText!$C$1)","v":""},{"$f":"IF(OrigTable!F981=\"\",\"\",ScriptText!$B$1&CHAR(10)&ScriptText!$D$1)","v":""},{"$f":"IF(OrigTable!F981=\"\",\"\",TEXT(OrigTable!F981,\"00\"))","v":""},{"$f":"IF(OrigTable!F981=\"\",\"\",ScriptText!$E$1&CHAR(10)&ScriptText!$C$1)","v":""},{"$f":"IF(OrigTable!G981=\"\",\"\",ScriptText!$B$1&CHAR(10)&ScriptText!$D$1)","v":""},{"$f":"IF(OrigTable!G981=\"\",\"\",TEXT(OrigTable!G981,\"00\"))","v":""},{"$f":"IF(OrigTable!G981=\"\",\"\",ScriptText!$E$1&CHAR(10)&ScriptText!$C$1)","v":""},0]
["\n\n\n",{"$f":"IF(OrigTable!A982=\"\",\"\",ScriptText!$B$1&CHAR(10)&ScriptText!$D$1)","v":""},{"$f":"IF(OrigTable!A982=\"\",\"\",TEXT(OrigTable!A982,\"00\"))","v":""},{"$f":"IF(OrigTable!A982=\"\",\"\",ScriptText!$E$1&CHAR(10)&ScriptText!$C$1)","v":""},{"$f":"IF(OrigTable!B982=\"\",\"\",ScriptText!$B$1&CHAR(10)&ScriptText!$D$1)","v":""},{"$f":"IF(OrigTable!B982=\"\",\"\",TEXT(OrigTable!B982,\"00\"))","v":""},{"$f":"IF(OrigTable!B982=\"\",\"\",ScriptText!$E$1&CHAR(10)&ScriptText!C977)","v":""},{"$f":"IF(OrigTable!C982=\"\",\"\",ScriptText!$B$1&CHAR(10)&ScriptText!$D$1)","v":""},{"$f":"IF(OrigTable!C982=\"\",\"\",IF(LEN(OrigTable!C982)>255,LEFT(OrigTable!C982,250)&\". . .\",OrigTable!C982))","v":""},{"$f":"IF(OrigTable!C982=\"\",\"\",ScriptText!$E$1&CHAR(10)&ScriptText!$C$1)","v":""},{"$f":"IF(OrigTable!D982=\"\",\"\",ScriptText!$B$1&CHAR(10)&ScriptText!$D$1)","v":""},{"$f":"IF(OrigTable!D982=\"\",\"\",TEXT(OrigTable!D982,\"00\"))","v":""},{"$f":"IF(OrigTable!D982=\"\",\"\",ScriptText!$E$1&CHAR(10)&ScriptText!$C$1)","v":""},{"$f":"IF(OrigTable!E982=\"\",\"\",ScriptText!$B$1&CHAR(10)&ScriptText!$D$1)","v":""},{"$f":"IF(OrigTable!E982=\"\",\"\",TEXT(OrigTable!E982,\"00\"))","v":""},{"$f":"IF(OrigTable!E982=\"\",\"\",ScriptText!$E$1&CHAR(10)&ScriptText!$C$1)","v":""},{"$f":"IF(OrigTable!F982=\"\",\"\",ScriptText!$B$1&CHAR(10)&ScriptText!$D$1)","v":""},{"$f":"IF(OrigTable!F982=\"\",\"\",TEXT(OrigTable!F982,\"00\"))","v":""},{"$f":"IF(OrigTable!F982=\"\",\"\",ScriptText!$E$1&CHAR(10)&ScriptText!$C$1)","v":""},{"$f":"IF(OrigTable!G982=\"\",\"\",ScriptText!$B$1&CHAR(10)&ScriptText!$D$1)","v":""},{"$f":"IF(OrigTable!G982=\"\",\"\",TEXT(OrigTable!G982,\"00\"))","v":""},{"$f":"IF(OrigTable!G982=\"\",\"\",ScriptText!$E$1&CHAR(10)&ScriptText!$C$1)","v":""},0]
["\n\n\n",{"$f":"IF(OrigTable!A983=\"\",\"\",ScriptText!$B$1&CHAR(10)&ScriptText!$D$1)","v":""},{"$f":"IF(OrigTable!A983=\"\",\"\",TEXT(OrigTable!A983,\"00\"))","v":""},{"$f":"IF(OrigTable!A983=\"\",\"\",ScriptText!$E$1&CHAR(10)&ScriptText!$C$1)","v":""},{"$f":"IF(OrigTable!B983=\"\",\"\",ScriptText!$B$1&CHAR(10)&ScriptText!$D$1)","v":""},{"$f":"IF(OrigTable!B983=\"\",\"\",TEXT(OrigTable!B983,\"00\"))","v":""},{"$f":"IF(OrigTable!B983=\"\",\"\",ScriptText!$E$1&CHAR(10)&ScriptText!C978)","v":""},{"$f":"IF(OrigTable!C983=\"\",\"\",ScriptText!$B$1&CHAR(10)&ScriptText!$D$1)","v":""},{"$f":"IF(OrigTable!C983=\"\",\"\",IF(LEN(OrigTable!C983)>255,LEFT(OrigTable!C983,250)&\". . .\",OrigTable!C983))","v":""},{"$f":"IF(OrigTable!C983=\"\",\"\",ScriptText!$E$1&CHAR(10)&ScriptText!$C$1)","v":""},{"$f":"IF(OrigTable!D983=\"\",\"\",ScriptText!$B$1&CHAR(10)&ScriptText!$D$1)","v":""},{"$f":"IF(OrigTable!D983=\"\",\"\",TEXT(OrigTable!D983,\"00\"))","v":""},{"$f":"IF(OrigTable!D983=\"\",\"\",ScriptText!$E$1&CHAR(10)&ScriptText!$C$1)","v":""},{"$f":"IF(OrigTable!E983=\"\",\"\",ScriptText!$B$1&CHAR(10)&ScriptText!$D$1)","v":""},{"$f":"IF(OrigTable!E983=\"\",\"\",TEXT(OrigTable!E983,\"00\"))","v":""},{"$f":"IF(OrigTable!E983=\"\",\"\",ScriptText!$E$1&CHAR(10)&ScriptText!$C$1)","v":""},{"$f":"IF(OrigTable!F983=\"\",\"\",ScriptText!$B$1&CHAR(10)&ScriptText!$D$1)","v":""},{"$f":"IF(OrigTable!F983=\"\",\"\",TEXT(OrigTable!F983,\"00\"))","v":""},{"$f":"IF(OrigTable!F983=\"\",\"\",ScriptText!$E$1&CHAR(10)&ScriptText!$C$1)","v":""},{"$f":"IF(OrigTable!G983=\"\",\"\",ScriptText!$B$1&CHAR(10)&ScriptText!$D$1)","v":""},{"$f":"IF(OrigTable!G983=\"\",\"\",TEXT(OrigTable!G983,\"00\"))","v":""},{"$f":"IF(OrigTable!G983=\"\",\"\",ScriptText!$E$1&CHAR(10)&ScriptText!$C$1)","v":""},0]
["\n\n\n",{"$f":"IF(OrigTable!A984=\"\",\"\",ScriptText!$B$1&CHAR(10)&ScriptText!$D$1)","v":""},{"$f":"IF(OrigTable!A984=\"\",\"\",TEXT(OrigTable!A984,\"00\"))","v":""},{"$f":"IF(OrigTable!A984=\"\",\"\",ScriptText!$E$1&CHAR(10)&ScriptText!$C$1)","v":""},{"$f":"IF(OrigTable!B984=\"\",\"\",ScriptText!$B$1&CHAR(10)&ScriptText!$D$1)","v":""},{"$f":"IF(OrigTable!B984=\"\",\"\",TEXT(OrigTable!B984,\"00\"))","v":""},{"$f":"IF(OrigTable!B984=\"\",\"\",ScriptText!$E$1&CHAR(10)&ScriptText!C979)","v":""},{"$f":"IF(OrigTable!C984=\"\",\"\",ScriptText!$B$1&CHAR(10)&ScriptText!$D$1)","v":""},{"$f":"IF(OrigTable!C984=\"\",\"\",IF(LEN(OrigTable!C984)>255,LEFT(OrigTable!C984,250)&\". . .\",OrigTable!C984))","v":""},{"$f":"IF(OrigTable!C984=\"\",\"\",ScriptText!$E$1&CHAR(10)&ScriptText!$C$1)","v":""},{"$f":"IF(OrigTable!D984=\"\",\"\",ScriptText!$B$1&CHAR(10)&ScriptText!$D$1)","v":""},{"$f":"IF(OrigTable!D984=\"\",\"\",TEXT(OrigTable!D984,\"00\"))","v":""},{"$f":"IF(OrigTable!D984=\"\",\"\",ScriptText!$E$1&CHAR(10)&ScriptText!$C$1)","v":""},{"$f":"IF(OrigTable!E984=\"\",\"\",ScriptText!$B$1&CHAR(10)&ScriptText!$D$1)","v":""},{"$f":"IF(OrigTable!E984=\"\",\"\",TEXT(OrigTable!E984,\"00\"))","v":""},{"$f":"IF(OrigTable!E984=\"\",\"\",ScriptText!$E$1&CHAR(10)&ScriptText!$C$1)","v":""},{"$f":"IF(OrigTable!F984=\"\",\"\",ScriptText!$B$1&CHAR(10)&ScriptText!$D$1)","v":""},{"$f":"IF(OrigTable!F984=\"\",\"\",TEXT(OrigTable!F984,\"00\"))","v":""},{"$f":"IF(OrigTable!F984=\"\",\"\",ScriptText!$E$1&CHAR(10)&ScriptText!$C$1)","v":""},{"$f":"IF(OrigTable!G984=\"\",\"\",ScriptText!$B$1&CHAR(10)&ScriptText!$D$1)","v":""},{"$f":"IF(OrigTable!G984=\"\",\"\",TEXT(OrigTable!G984,\"00\"))","v":""},{"$f":"IF(OrigTable!G984=\"\",\"\",ScriptText!$E$1&CHAR(10)&ScriptText!$C$1)","v":""},0]
["\n\n\n",{"$f":"IF(OrigTable!A985=\"\",\"\",ScriptText!$B$1&CHAR(10)&ScriptText!$D$1)","v":""},{"$f":"IF(OrigTable!A985=\"\",\"\",TEXT(OrigTable!A985,\"00\"))","v":""},{"$f":"IF(OrigTable!A985=\"\",\"\",ScriptText!$E$1&CHAR(10)&ScriptText!$C$1)","v":""},{"$f":"IF(OrigTable!B985=\"\",\"\",ScriptText!$B$1&CHAR(10)&ScriptText!$D$1)","v":""},{"$f":"IF(OrigTable!B985=\"\",\"\",TEXT(OrigTable!B985,\"00\"))","v":""},{"$f":"IF(OrigTable!B985=\"\",\"\",ScriptText!$E$1&CHAR(10)&ScriptText!C980)","v":""},{"$f":"IF(OrigTable!C985=\"\",\"\",ScriptText!$B$1&CHAR(10)&ScriptText!$D$1)","v":""},{"$f":"IF(OrigTable!C985=\"\",\"\",IF(LEN(OrigTable!C985)>255,LEFT(OrigTable!C985,250)&\". . .\",OrigTable!C985))","v":""},{"$f":"IF(OrigTable!C985=\"\",\"\",ScriptText!$E$1&CHAR(10)&ScriptText!$C$1)","v":""},{"$f":"IF(OrigTable!D985=\"\",\"\",ScriptText!$B$1&CHAR(10)&ScriptText!$D$1)","v":""},{"$f":"IF(OrigTable!D985=\"\",\"\",TEXT(OrigTable!D985,\"00\"))","v":""},{"$f":"IF(OrigTable!D985=\"\",\"\",ScriptText!$E$1&CHAR(10)&ScriptText!$C$1)","v":""},{"$f":"IF(OrigTable!E985=\"\",\"\",ScriptText!$B$1&CHAR(10)&ScriptText!$D$1)","v":""},{"$f":"IF(OrigTable!E985=\"\",\"\",TEXT(OrigTable!E985,\"00\"))","v":""},{"$f":"IF(OrigTable!E985=\"\",\"\",ScriptText!$E$1&CHAR(10)&ScriptText!$C$1)","v":""},{"$f":"IF(OrigTable!F985=\"\",\"\",ScriptText!$B$1&CHAR(10)&ScriptText!$D$1)","v":""},{"$f":"IF(OrigTable!F985=\"\",\"\",TEXT(OrigTable!F985,\"00\"))","v":""},{"$f":"IF(OrigTable!F985=\"\",\"\",ScriptText!$E$1&CHAR(10)&ScriptText!$C$1)","v":""},{"$f":"IF(OrigTable!G985=\"\",\"\",ScriptText!$B$1&CHAR(10)&ScriptText!$D$1)","v":""},{"$f":"IF(OrigTable!G985=\"\",\"\",TEXT(OrigTable!G985,\"00\"))","v":""},{"$f":"IF(OrigTable!G985=\"\",\"\",ScriptText!$E$1&CHAR(10)&ScriptText!$C$1)","v":""},0]
["\n\n\n",{"$f":"IF(OrigTable!A986=\"\",\"\",ScriptText!$B$1&CHAR(10)&ScriptText!$D$1)","v":""},{"$f":"IF(OrigTable!A986=\"\",\"\",TEXT(OrigTable!A986,\"00\"))","v":""},{"$f":"IF(OrigTable!A986=\"\",\"\",ScriptText!$E$1&CHAR(10)&ScriptText!$C$1)","v":""},{"$f":"IF(OrigTable!B986=\"\",\"\",ScriptText!$B$1&CHAR(10)&ScriptText!$D$1)","v":""},{"$f":"IF(OrigTable!B986=\"\",\"\",TEXT(OrigTable!B986,\"00\"))","v":""},{"$f":"IF(OrigTable!B986=\"\",\"\",ScriptText!$E$1&CHAR(10)&ScriptText!C981)","v":""},{"$f":"IF(OrigTable!C986=\"\",\"\",ScriptText!$B$1&CHAR(10)&ScriptText!$D$1)","v":""},{"$f":"IF(OrigTable!C986=\"\",\"\",IF(LEN(OrigTable!C986)>255,LEFT(OrigTable!C986,250)&\". . .\",OrigTable!C986))","v":""},{"$f":"IF(OrigTable!C986=\"\",\"\",ScriptText!$E$1&CHAR(10)&ScriptText!$C$1)","v":""},{"$f":"IF(OrigTable!D986=\"\",\"\",ScriptText!$B$1&CHAR(10)&ScriptText!$D$1)","v":""},{"$f":"IF(OrigTable!D986=\"\",\"\",TEXT(OrigTable!D986,\"00\"))","v":""},{"$f":"IF(OrigTable!D986=\"\",\"\",ScriptText!$E$1&CHAR(10)&ScriptText!$C$1)","v":""},{"$f":"IF(OrigTable!E986=\"\",\"\",ScriptText!$B$1&CHAR(10)&ScriptText!$D$1)","v":""},{"$f":"IF(OrigTable!E986=\"\",\"\",TEXT(OrigTable!E986,\"00\"))","v":""},{"$f":"IF(OrigTable!E986=\"\",\"\",ScriptText!$E$1&CHAR(10)&ScriptText!$C$1)","v":""},{"$f":"IF(OrigTable!F986=\"\",\"\",ScriptText!$B$1&CHAR(10)&ScriptText!$D$1)","v":""},{"$f":"IF(OrigTable!F986=\"\",\"\",TEXT(OrigTable!F986,\"00\"))","v":""},{"$f":"IF(OrigTable!F986=\"\",\"\",ScriptText!$E$1&CHAR(10)&ScriptText!$C$1)","v":""},{"$f":"IF(OrigTable!G986=\"\",\"\",ScriptText!$B$1&CHAR(10)&ScriptText!$D$1)","v":""},{"$f":"IF(OrigTable!G986=\"\",\"\",TEXT(OrigTable!G986,\"00\"))","v":""},{"$f":"IF(OrigTable!G986=\"\",\"\",ScriptText!$E$1&CHAR(10)&ScriptText!$C$1)","v":""},0]
["\n\n\n",{"$f":"IF(OrigTable!A987=\"\",\"\",ScriptText!$B$1&CHAR(10)&ScriptText!$D$1)","v":""},{"$f":"IF(OrigTable!A987=\"\",\"\",TEXT(OrigTable!A987,\"00\"))","v":""},{"$f":"IF(OrigTable!A987=\"\",\"\",ScriptText!$E$1&CHAR(10)&ScriptText!$C$1)","v":""},{"$f":"IF(OrigTable!B987=\"\",\"\",ScriptText!$B$1&CHAR(10)&ScriptText!$D$1)","v":""},{"$f":"IF(OrigTable!B987=\"\",\"\",TEXT(OrigTable!B987,\"00\"))","v":""},{"$f":"IF(OrigTable!B987=\"\",\"\",ScriptText!$E$1&CHAR(10)&ScriptText!C982)","v":""},{"$f":"IF(OrigTable!C987=\"\",\"\",ScriptText!$B$1&CHAR(10)&ScriptText!$D$1)","v":""},{"$f":"IF(OrigTable!C987=\"\",\"\",IF(LEN(OrigTable!C987)>255,LEFT(OrigTable!C987,250)&\". . .\",OrigTable!C987))","v":""},{"$f":"IF(OrigTable!C987=\"\",\"\",ScriptText!$E$1&CHAR(10)&ScriptText!$C$1)","v":""},{"$f":"IF(OrigTable!D987=\"\",\"\",ScriptText!$B$1&CHAR(10)&ScriptText!$D$1)","v":""},{"$f":"IF(OrigTable!D987=\"\",\"\",TEXT(OrigTable!D987,\"00\"))","v":""},{"$f":"IF(OrigTable!D987=\"\",\"\",ScriptText!$E$1&CHAR(10)&ScriptText!$C$1)","v":""},{"$f":"IF(OrigTable!E987=\"\",\"\",ScriptText!$B$1&CHAR(10)&ScriptText!$D$1)","v":""},{"$f":"IF(OrigTable!E987=\"\",\"\",TEXT(OrigTable!E987,\"00\"))","v":""},{"$f":"IF(OrigTable!E987=\"\",\"\",ScriptText!$E$1&CHAR(10)&ScriptText!$C$1)","v":""},{"$f":"IF(OrigTable!F987=\"\",\"\",ScriptText!$B$1&CHAR(10)&ScriptText!$D$1)","v":""},{"$f":"IF(OrigTable!F987=\"\",\"\",TEXT(OrigTable!F987,\"00\"))","v":""},{"$f":"IF(OrigTable!F987=\"\",\"\",ScriptText!$E$1&CHAR(10)&ScriptText!$C$1)","v":""},{"$f":"IF(OrigTable!G987=\"\",\"\",ScriptText!$B$1&CHAR(10)&ScriptText!$D$1)","v":""},{"$f":"IF(OrigTable!G987=\"\",\"\",TEXT(OrigTable!G987,\"00\"))","v":""},{"$f":"IF(OrigTable!G987=\"\",\"\",ScriptText!$E$1&CHAR(10)&ScriptText!$C$1)","v":""},0]
["\n\n\n",{"$f":"IF(OrigTable!A988=\"\",\"\",ScriptText!$B$1&CHAR(10)&ScriptText!$D$1)","v":""},{"$f":"IF(OrigTable!A988=\"\",\"\",TEXT(OrigTable!A988,\"00\"))","v":""},{"$f":"IF(OrigTable!A988=\"\",\"\",ScriptText!$E$1&CHAR(10)&ScriptText!$C$1)","v":""},{"$f":"IF(OrigTable!B988=\"\",\"\",ScriptText!$B$1&CHAR(10)&ScriptText!$D$1)","v":""},{"$f":"IF(OrigTable!B988=\"\",\"\",TEXT(OrigTable!B988,\"00\"))","v":""},{"$f":"IF(OrigTable!B988=\"\",\"\",ScriptText!$E$1&CHAR(10)&ScriptText!C983)","v":""},{"$f":"IF(OrigTable!C988=\"\",\"\",ScriptText!$B$1&CHAR(10)&ScriptText!$D$1)","v":""},{"$f":"IF(OrigTable!C988=\"\",\"\",IF(LEN(OrigTable!C988)>255,LEFT(OrigTable!C988,250)&\". . .\",OrigTable!C988))","v":""},{"$f":"IF(OrigTable!C988=\"\",\"\",ScriptText!$E$1&CHAR(10)&ScriptText!$C$1)","v":""},{"$f":"IF(OrigTable!D988=\"\",\"\",ScriptText!$B$1&CHAR(10)&ScriptText!$D$1)","v":""},{"$f":"IF(OrigTable!D988=\"\",\"\",TEXT(OrigTable!D988,\"00\"))","v":""},{"$f":"IF(OrigTable!D988=\"\",\"\",ScriptText!$E$1&CHAR(10)&ScriptText!$C$1)","v":""},{"$f":"IF(OrigTable!E988=\"\",\"\",ScriptText!$B$1&CHAR(10)&ScriptText!$D$1)","v":""},{"$f":"IF(OrigTable!E988=\"\",\"\",TEXT(OrigTable!E988,\"00\"))","v":""},{"$f":"IF(OrigTable!E988=\"\",\"\",ScriptText!$E$1&CHAR(10)&ScriptText!$C$1)","v":""},{"$f":"IF(OrigTable!F988=\"\",\"\",ScriptText!$B$1&CHAR(10)&ScriptText!$D$1)","v":""},{"$f":"IF(OrigTable!F988=\"\",\"\",TEXT(OrigTable!F988,\"00\"))","v":""},{"$f":"IF(OrigTable!F988=\"\",\"\",ScriptText!$E$1&CHAR(10)&ScriptText!$C$1)","v":""},{"$f":"IF(OrigTable!G988=\"\",\"\",ScriptText!$B$1&CHAR(10)&ScriptText!$D$1)","v":""},{"$f":"IF(OrigTable!G988=\"\",\"\",TEXT(OrigTable!G988,\"00\"))","v":""},{"$f":"IF(OrigTable!G988=\"\",\"\",ScriptText!$E$1&CHAR(10)&ScriptText!$C$1)","v":""},0]
["\n\n\n",{"$f":"IF(OrigTable!A989=\"\",\"\",ScriptText!$B$1&CHAR(10)&ScriptText!$D$1)","v":""},{"$f":"IF(OrigTable!A989=\"\",\"\",TEXT(OrigTable!A989,\"00\"))","v":""},{"$f":"IF(OrigTable!A989=\"\",\"\",ScriptText!$E$1&CHAR(10)&ScriptText!$C$1)","v":""},{"$f":"IF(OrigTable!B989=\"\",\"\",ScriptText!$B$1&CHAR(10)&ScriptText!$D$1)","v":""},{"$f":"IF(OrigTable!B989=\"\",\"\",TEXT(OrigTable!B989,\"00\"))","v":""},{"$f":"IF(OrigTable!B989=\"\",\"\",ScriptText!$E$1&CHAR(10)&ScriptText!C984)","v":""},{"$f":"IF(OrigTable!C989=\"\",\"\",ScriptText!$B$1&CHAR(10)&ScriptText!$D$1)","v":""},{"$f":"IF(OrigTable!C989=\"\",\"\",IF(LEN(OrigTable!C989)>255,LEFT(OrigTable!C989,250)&\". . .\",OrigTable!C989))","v":""},{"$f":"IF(OrigTable!C989=\"\",\"\",ScriptText!$E$1&CHAR(10)&ScriptText!$C$1)","v":""},{"$f":"IF(OrigTable!D989=\"\",\"\",ScriptText!$B$1&CHAR(10)&ScriptText!$D$1)","v":""},{"$f":"IF(OrigTable!D989=\"\",\"\",TEXT(OrigTable!D989,\"00\"))","v":""},{"$f":"IF(OrigTable!D989=\"\",\"\",ScriptText!$E$1&CHAR(10)&ScriptText!$C$1)","v":""},{"$f":"IF(OrigTable!E989=\"\",\"\",ScriptText!$B$1&CHAR(10)&ScriptText!$D$1)","v":""},{"$f":"IF(OrigTable!E989=\"\",\"\",TEXT(OrigTable!E989,\"00\"))","v":""},{"$f":"IF(OrigTable!E989=\"\",\"\",ScriptText!$E$1&CHAR(10)&ScriptText!$C$1)","v":""},{"$f":"IF(OrigTable!F989=\"\",\"\",ScriptText!$B$1&CHAR(10)&ScriptText!$D$1)","v":""},{"$f":"IF(OrigTable!F989=\"\",\"\",TEXT(OrigTable!F989,\"00\"))","v":""},{"$f":"IF(OrigTable!F989=\"\",\"\",ScriptText!$E$1&CHAR(10)&ScriptText!$C$1)","v":""},{"$f":"IF(OrigTable!G989=\"\",\"\",ScriptText!$B$1&CHAR(10)&ScriptText!$D$1)","v":""},{"$f":"IF(OrigTable!G989=\"\",\"\",TEXT(OrigTable!G989,\"00\"))","v":""},{"$f":"IF(OrigTable!G989=\"\",\"\",ScriptText!$E$1&CHAR(10)&ScriptText!$C$1)","v":""},0]
["\n\n\n",{"$f":"IF(OrigTable!A990=\"\",\"\",ScriptText!$B$1&CHAR(10)&ScriptText!$D$1)","v":""},{"$f":"IF(OrigTable!A990=\"\",\"\",TEXT(OrigTable!A990,\"00\"))","v":""},{"$f":"IF(OrigTable!A990=\"\",\"\",ScriptText!$E$1&CHAR(10)&ScriptText!$C$1)","v":""},{"$f":"IF(OrigTable!B990=\"\",\"\",ScriptText!$B$1&CHAR(10)&ScriptText!$D$1)","v":""},{"$f":"IF(OrigTable!B990=\"\",\"\",TEXT(OrigTable!B990,\"00\"))","v":""},{"$f":"IF(OrigTable!B990=\"\",\"\",ScriptText!$E$1&CHAR(10)&ScriptText!C985)","v":""},{"$f":"IF(OrigTable!C990=\"\",\"\",ScriptText!$B$1&CHAR(10)&ScriptText!$D$1)","v":""},{"$f":"IF(OrigTable!C990=\"\",\"\",IF(LEN(OrigTable!C990)>255,LEFT(OrigTable!C990,250)&\". . .\",OrigTable!C990))","v":""},{"$f":"IF(OrigTable!C990=\"\",\"\",ScriptText!$E$1&CHAR(10)&ScriptText!$C$1)","v":""},{"$f":"IF(OrigTable!D990=\"\",\"\",ScriptText!$B$1&CHAR(10)&ScriptText!$D$1)","v":""},{"$f":"IF(OrigTable!D990=\"\",\"\",TEXT(OrigTable!D990,\"00\"))","v":""},{"$f":"IF(OrigTable!D990=\"\",\"\",ScriptText!$E$1&CHAR(10)&ScriptText!$C$1)","v":""},{"$f":"IF(OrigTable!E990=\"\",\"\",ScriptText!$B$1&CHAR(10)&ScriptText!$D$1)","v":""},{"$f":"IF(OrigTable!E990=\"\",\"\",TEXT(OrigTable!E990,\"00\"))","v":""},{"$f":"IF(OrigTable!E990=\"\",\"\",ScriptText!$E$1&CHAR(10)&ScriptText!$C$1)","v":""},{"$f":"IF(OrigTable!F990=\"\",\"\",ScriptText!$B$1&CHAR(10)&ScriptText!$D$1)","v":""},{"$f":"IF(OrigTable!F990=\"\",\"\",TEXT(OrigTable!F990,\"00\"))","v":""},{"$f":"IF(OrigTable!F990=\"\",\"\",ScriptText!$E$1&CHAR(10)&ScriptText!$C$1)","v":""},{"$f":"IF(OrigTable!G990=\"\",\"\",ScriptText!$B$1&CHAR(10)&ScriptText!$D$1)","v":""},{"$f":"IF(OrigTable!G990=\"\",\"\",TEXT(OrigTable!G990,\"00\"))","v":""},{"$f":"IF(OrigTable!G990=\"\",\"\",ScriptText!$E$1&CHAR(10)&ScriptText!$C$1)","v":""},0]
["\n\n\n",{"$f":"IF(OrigTable!A991=\"\",\"\",ScriptText!$B$1&CHAR(10)&ScriptText!$D$1)","v":""},{"$f":"IF(OrigTable!A991=\"\",\"\",TEXT(OrigTable!A991,\"00\"))","v":""},{"$f":"IF(OrigTable!A991=\"\",\"\",ScriptText!$E$1&CHAR(10)&ScriptText!$C$1)","v":""},{"$f":"IF(OrigTable!B991=\"\",\"\",ScriptText!$B$1&CHAR(10)&ScriptText!$D$1)","v":""},{"$f":"IF(OrigTable!B991=\"\",\"\",TEXT(OrigTable!B991,\"00\"))","v":""},{"$f":"IF(OrigTable!B991=\"\",\"\",ScriptText!$E$1&CHAR(10)&ScriptText!C986)","v":""},{"$f":"IF(OrigTable!C991=\"\",\"\",ScriptText!$B$1&CHAR(10)&ScriptText!$D$1)","v":""},{"$f":"IF(OrigTable!C991=\"\",\"\",IF(LEN(OrigTable!C991)>255,LEFT(OrigTable!C991,250)&\". . .\",OrigTable!C991))","v":""},{"$f":"IF(OrigTable!C991=\"\",\"\",ScriptText!$E$1&CHAR(10)&ScriptText!$C$1)","v":""},{"$f":"IF(OrigTable!D991=\"\",\"\",ScriptText!$B$1&CHAR(10)&ScriptText!$D$1)","v":""},{"$f":"IF(OrigTable!D991=\"\",\"\",TEXT(OrigTable!D991,\"00\"))","v":""},{"$f":"IF(OrigTable!D991=\"\",\"\",ScriptText!$E$1&CHAR(10)&ScriptText!$C$1)","v":""},{"$f":"IF(OrigTable!E991=\"\",\"\",ScriptText!$B$1&CHAR(10)&ScriptText!$D$1)","v":""},{"$f":"IF(OrigTable!E991=\"\",\"\",TEXT(OrigTable!E991,\"00\"))","v":""},{"$f":"IF(OrigTable!E991=\"\",\"\",ScriptText!$E$1&CHAR(10)&ScriptText!$C$1)","v":""},{"$f":"IF(OrigTable!F991=\"\",\"\",ScriptText!$B$1&CHAR(10)&ScriptText!$D$1)","v":""},{"$f":"IF(OrigTable!F991=\"\",\"\",TEXT(OrigTable!F991,\"00\"))","v":""},{"$f":"IF(OrigTable!F991=\"\",\"\",ScriptText!$E$1&CHAR(10)&ScriptText!$C$1)","v":""},{"$f":"IF(OrigTable!G991=\"\",\"\",ScriptText!$B$1&CHAR(10)&ScriptText!$D$1)","v":""},{"$f":"IF(OrigTable!G991=\"\",\"\",TEXT(OrigTable!G991,\"00\"))","v":""},{"$f":"IF(OrigTable!G991=\"\",\"\",ScriptText!$E$1&CHAR(10)&ScriptText!$C$1)","v":""},0]
["\n\n\n",{"$f":"IF(OrigTable!A992=\"\",\"\",ScriptText!$B$1&CHAR(10)&ScriptText!$D$1)","v":""},{"$f":"IF(OrigTable!A992=\"\",\"\",TEXT(OrigTable!A992,\"00\"))","v":""},{"$f":"IF(OrigTable!A992=\"\",\"\",ScriptText!$E$1&CHAR(10)&ScriptText!$C$1)","v":""},{"$f":"IF(OrigTable!B992=\"\",\"\",ScriptText!$B$1&CHAR(10)&ScriptText!$D$1)","v":""},{"$f":"IF(OrigTable!B992=\"\",\"\",TEXT(OrigTable!B992,\"00\"))","v":""},{"$f":"IF(OrigTable!B992=\"\",\"\",ScriptText!$E$1&CHAR(10)&ScriptText!C987)","v":""},{"$f":"IF(OrigTable!C992=\"\",\"\",ScriptText!$B$1&CHAR(10)&ScriptText!$D$1)","v":""},{"$f":"IF(OrigTable!C992=\"\",\"\",IF(LEN(OrigTable!C992)>255,LEFT(OrigTable!C992,250)&\". . .\",OrigTable!C992))","v":""},{"$f":"IF(OrigTable!C992=\"\",\"\",ScriptText!$E$1&CHAR(10)&ScriptText!$C$1)","v":""},{"$f":"IF(OrigTable!D992=\"\",\"\",ScriptText!$B$1&CHAR(10)&ScriptText!$D$1)","v":""},{"$f":"IF(OrigTable!D992=\"\",\"\",TEXT(OrigTable!D992,\"00\"))","v":""},{"$f":"IF(OrigTable!D992=\"\",\"\",ScriptText!$E$1&CHAR(10)&ScriptText!$C$1)","v":""},{"$f":"IF(OrigTable!E992=\"\",\"\",ScriptText!$B$1&CHAR(10)&ScriptText!$D$1)","v":""},{"$f":"IF(OrigTable!E992=\"\",\"\",TEXT(OrigTable!E992,\"00\"))","v":""},{"$f":"IF(OrigTable!E992=\"\",\"\",ScriptText!$E$1&CHAR(10)&ScriptText!$C$1)","v":""},{"$f":"IF(OrigTable!F992=\"\",\"\",ScriptText!$B$1&CHAR(10)&ScriptText!$D$1)","v":""},{"$f":"IF(OrigTable!F992=\"\",\"\",TEXT(OrigTable!F992,\"00\"))","v":""},{"$f":"IF(OrigTable!F992=\"\",\"\",ScriptText!$E$1&CHAR(10)&ScriptText!$C$1)","v":""},{"$f":"IF(OrigTable!G992=\"\",\"\",ScriptText!$B$1&CHAR(10)&ScriptText!$D$1)","v":""},{"$f":"IF(OrigTable!G992=\"\",\"\",TEXT(OrigTable!G992,\"00\"))","v":""},{"$f":"IF(OrigTable!G992=\"\",\"\",ScriptText!$E$1&CHAR(10)&ScriptText!$C$1)","v":""},0]
["\n\n\n",{"$f":"IF(OrigTable!A993=\"\",\"\",ScriptText!$B$1&CHAR(10)&ScriptText!$D$1)","v":""},{"$f":"IF(OrigTable!A993=\"\",\"\",TEXT(OrigTable!A993,\"00\"))","v":""},{"$f":"IF(OrigTable!A993=\"\",\"\",ScriptText!$E$1&CHAR(10)&ScriptText!$C$1)","v":""},{"$f":"IF(OrigTable!B993=\"\",\"\",ScriptText!$B$1&CHAR(10)&ScriptText!$D$1)","v":""},{"$f":"IF(OrigTable!B993=\"\",\"\",TEXT(OrigTable!B993,\"00\"))","v":""},{"$f":"IF(OrigTable!B993=\"\",\"\",ScriptText!$E$1&CHAR(10)&ScriptText!C988)","v":""},{"$f":"IF(OrigTable!C993=\"\",\"\",ScriptText!$B$1&CHAR(10)&ScriptText!$D$1)","v":""},{"$f":"IF(OrigTable!C993=\"\",\"\",IF(LEN(OrigTable!C993)>255,LEFT(OrigTable!C993,250)&\". . .\",OrigTable!C993))","v":""},{"$f":"IF(OrigTable!C993=\"\",\"\",ScriptText!$E$1&CHAR(10)&ScriptText!$C$1)","v":""},{"$f":"IF(OrigTable!D993=\"\",\"\",ScriptText!$B$1&CHAR(10)&ScriptText!$D$1)","v":""},{"$f":"IF(OrigTable!D993=\"\",\"\",TEXT(OrigTable!D993,\"00\"))","v":""},{"$f":"IF(OrigTable!D993=\"\",\"\",ScriptText!$E$1&CHAR(10)&ScriptText!$C$1)","v":""},{"$f":"IF(OrigTable!E993=\"\",\"\",ScriptText!$B$1&CHAR(10)&ScriptText!$D$1)","v":""},{"$f":"IF(OrigTable!E993=\"\",\"\",TEXT(OrigTable!E993,\"00\"))","v":""},{"$f":"IF(OrigTable!E993=\"\",\"\",ScriptText!$E$1&CHAR(10)&ScriptText!$C$1)","v":""},{"$f":"IF(OrigTable!F993=\"\",\"\",ScriptText!$B$1&CHAR(10)&ScriptText!$D$1)","v":""},{"$f":"IF(OrigTable!F993=\"\",\"\",TEXT(OrigTable!F993,\"00\"))","v":""},{"$f":"IF(OrigTable!F993=\"\",\"\",ScriptText!$E$1&CHAR(10)&ScriptText!$C$1)","v":""},{"$f":"IF(OrigTable!G993=\"\",\"\",ScriptText!$B$1&CHAR(10)&ScriptText!$D$1)","v":""},{"$f":"IF(OrigTable!G993=\"\",\"\",TEXT(OrigTable!G993,\"00\"))","v":""},{"$f":"IF(OrigTable!G993=\"\",\"\",ScriptText!$E$1&CHAR(10)&ScriptText!$C$1)","v":""},0]
["\n\n\n",{"$f":"IF(OrigTable!A994=\"\",\"\",ScriptText!$B$1&CHAR(10)&ScriptText!$D$1)","v":""},{"$f":"IF(OrigTable!A994=\"\",\"\",TEXT(OrigTable!A994,\"00\"))","v":""},{"$f":"IF(OrigTable!A994=\"\",\"\",ScriptText!$E$1&CHAR(10)&ScriptText!$C$1)","v":""},{"$f":"IF(OrigTable!B994=\"\",\"\",ScriptText!$B$1&CHAR(10)&ScriptText!$D$1)","v":""},{"$f":"IF(OrigTable!B994=\"\",\"\",TEXT(OrigTable!B994,\"00\"))","v":""},{"$f":"IF(OrigTable!B994=\"\",\"\",ScriptText!$E$1&CHAR(10)&ScriptText!C989)","v":""},{"$f":"IF(OrigTable!C994=\"\",\"\",ScriptText!$B$1&CHAR(10)&ScriptText!$D$1)","v":""},{"$f":"IF(OrigTable!C994=\"\",\"\",IF(LEN(OrigTable!C994)>255,LEFT(OrigTable!C994,250)&\". . .\",OrigTable!C994))","v":""},{"$f":"IF(OrigTable!C994=\"\",\"\",ScriptText!$E$1&CHAR(10)&ScriptText!$C$1)","v":""},{"$f":"IF(OrigTable!D994=\"\",\"\",ScriptText!$B$1&CHAR(10)&ScriptText!$D$1)","v":""},{"$f":"IF(OrigTable!D994=\"\",\"\",TEXT(OrigTable!D994,\"00\"))","v":""},{"$f":"IF(OrigTable!D994=\"\",\"\",ScriptText!$E$1&CHAR(10)&ScriptText!$C$1)","v":""},{"$f":"IF(OrigTable!E994=\"\",\"\",ScriptText!$B$1&CHAR(10)&ScriptText!$D$1)","v":""},{"$f":"IF(OrigTable!E994=\"\",\"\",TEXT(OrigTable!E994,\"00\"))","v":""},{"$f":"IF(OrigTable!E994=\"\",\"\",ScriptText!$E$1&CHAR(10)&ScriptText!$C$1)","v":""},{"$f":"IF(OrigTable!F994=\"\",\"\",ScriptText!$B$1&CHAR(10)&ScriptText!$D$1)","v":""},{"$f":"IF(OrigTable!F994=\"\",\"\",TEXT(OrigTable!F994,\"00\"))","v":""},{"$f":"IF(OrigTable!F994=\"\",\"\",ScriptText!$E$1&CHAR(10)&ScriptText!$C$1)","v":""},{"$f":"IF(OrigTable!G994=\"\",\"\",ScriptText!$B$1&CHAR(10)&ScriptText!$D$1)","v":""},{"$f":"IF(OrigTable!G994=\"\",\"\",TEXT(OrigTable!G994,\"00\"))","v":""},{"$f":"IF(OrigTable!G994=\"\",\"\",ScriptText!$E$1&CHAR(10)&ScriptText!$C$1)","v":""},0]
["\n\n\n",{"$f":"IF(OrigTable!A995=\"\",\"\",ScriptText!$B$1&CHAR(10)&ScriptText!$D$1)","v":""},{"$f":"IF(OrigTable!A995=\"\",\"\",TEXT(OrigTable!A995,\"00\"))","v":""},{"$f":"IF(OrigTable!A995=\"\",\"\",ScriptText!$E$1&CHAR(10)&ScriptText!$C$1)","v":""},{"$f":"IF(OrigTable!B995=\"\",\"\",ScriptText!$B$1&CHAR(10)&ScriptText!$D$1)","v":""},{"$f":"IF(OrigTable!B995=\"\",\"\",TEXT(OrigTable!B995,\"00\"))","v":""},{"$f":"IF(OrigTable!B995=\"\",\"\",ScriptText!$E$1&CHAR(10)&ScriptText!C990)","v":""},{"$f":"IF(OrigTable!C995=\"\",\"\",ScriptText!$B$1&CHAR(10)&ScriptText!$D$1)","v":""},{"$f":"IF(OrigTable!C995=\"\",\"\",IF(LEN(OrigTable!C995)>255,LEFT(OrigTable!C995,250)&\". . .\",OrigTable!C995))","v":""},{"$f":"IF(OrigTable!C995=\"\",\"\",ScriptText!$E$1&CHAR(10)&ScriptText!$C$1)","v":""},{"$f":"IF(OrigTable!D995=\"\",\"\",ScriptText!$B$1&CHAR(10)&ScriptText!$D$1)","v":""},{"$f":"IF(OrigTable!D995=\"\",\"\",TEXT(OrigTable!D995,\"00\"))","v":""},{"$f":"IF(OrigTable!D995=\"\",\"\",ScriptText!$E$1&CHAR(10)&ScriptText!$C$1)","v":""},{"$f":"IF(OrigTable!E995=\"\",\"\",ScriptText!$B$1&CHAR(10)&ScriptText!$D$1)","v":""},{"$f":"IF(OrigTable!E995=\"\",\"\",TEXT(OrigTable!E995,\"00\"))","v":""},{"$f":"IF(OrigTable!E995=\"\",\"\",ScriptText!$E$1&CHAR(10)&ScriptText!$C$1)","v":""},{"$f":"IF(OrigTable!F995=\"\",\"\",ScriptText!$B$1&CHAR(10)&ScriptText!$D$1)","v":""},{"$f":"IF(OrigTable!F995=\"\",\"\",TEXT(OrigTable!F995,\"00\"))","v":""},{"$f":"IF(OrigTable!F995=\"\",\"\",ScriptText!$E$1&CHAR(10)&ScriptText!$C$1)","v":""},{"$f":"IF(OrigTable!G995=\"\",\"\",ScriptText!$B$1&CHAR(10)&ScriptText!$D$1)","v":""},{"$f":"IF(OrigTable!G995=\"\",\"\",TEXT(OrigTable!G995,\"00\"))","v":""},{"$f":"IF(OrigTable!G995=\"\",\"\",ScriptText!$E$1&CHAR(10)&ScriptText!$C$1)","v":""},0]
["\n\n\n",{"$f":"IF(OrigTable!A996=\"\",\"\",ScriptText!$B$1&CHAR(10)&ScriptText!$D$1)","v":""},{"$f":"IF(OrigTable!A996=\"\",\"\",TEXT(OrigTable!A996,\"00\"))","v":""},{"$f":"IF(OrigTable!A996=\"\",\"\",ScriptText!$E$1&CHAR(10)&ScriptText!$C$1)","v":""},{"$f":"IF(OrigTable!B996=\"\",\"\",ScriptText!$B$1&CHAR(10)&ScriptText!$D$1)","v":""},{"$f":"IF(OrigTable!B996=\"\",\"\",TEXT(OrigTable!B996,\"00\"))","v":""},{"$f":"IF(OrigTable!B996=\"\",\"\",ScriptText!$E$1&CHAR(10)&ScriptText!C991)","v":""},{"$f":"IF(OrigTable!C996=\"\",\"\",ScriptText!$B$1&CHAR(10)&ScriptText!$D$1)","v":""},{"$f":"IF(OrigTable!C996=\"\",\"\",IF(LEN(OrigTable!C996)>255,LEFT(OrigTable!C996,250)&\". . .\",OrigTable!C996))","v":""},{"$f":"IF(OrigTable!C996=\"\",\"\",ScriptText!$E$1&CHAR(10)&ScriptText!$C$1)","v":""},{"$f":"IF(OrigTable!D996=\"\",\"\",ScriptText!$B$1&CHAR(10)&ScriptText!$D$1)","v":""},{"$f":"IF(OrigTable!D996=\"\",\"\",TEXT(OrigTable!D996,\"00\"))","v":""},{"$f":"IF(OrigTable!D996=\"\",\"\",ScriptText!$E$1&CHAR(10)&ScriptText!$C$1)","v":""},{"$f":"IF(OrigTable!E996=\"\",\"\",ScriptText!$B$1&CHAR(10)&ScriptText!$D$1)","v":""},{"$f":"IF(OrigTable!E996=\"\",\"\",TEXT(OrigTable!E996,\"00\"))","v":""},{"$f":"IF(OrigTable!E996=\"\",\"\",ScriptText!$E$1&CHAR(10)&ScriptText!$C$1)","v":""},{"$f":"IF(OrigTable!F996=\"\",\"\",ScriptText!$B$1&CHAR(10)&ScriptText!$D$1)","v":""},{"$f":"IF(OrigTable!F996=\"\",\"\",TEXT(OrigTable!F996,\"00\"))","v":""},{"$f":"IF(OrigTable!F996=\"\",\"\",ScriptText!$E$1&CHAR(10)&ScriptText!$C$1)","v":""},{"$f":"IF(OrigTable!G996=\"\",\"\",ScriptText!$B$1&CHAR(10)&ScriptText!$D$1)","v":""},{"$f":"IF(OrigTable!G996=\"\",\"\",TEXT(OrigTable!G996,\"00\"))","v":""},{"$f":"IF(OrigTable!G996=\"\",\"\",ScriptText!$E$1&CHAR(10)&ScriptText!$C$1)","v":""},0]
["\n\n\n",{"$f":"IF(OrigTable!A997=\"\",\"\",ScriptText!$B$1&CHAR(10)&ScriptText!$D$1)","v":""},{"$f":"IF(OrigTable!A997=\"\",\"\",TEXT(OrigTable!A997,\"00\"))","v":""},{"$f":"IF(OrigTable!A997=\"\",\"\",ScriptText!$E$1&CHAR(10)&ScriptText!$C$1)","v":""},{"$f":"IF(OrigTable!B997=\"\",\"\",ScriptText!$B$1&CHAR(10)&ScriptText!$D$1)","v":""},{"$f":"IF(OrigTable!B997=\"\",\"\",TEXT(OrigTable!B997,\"00\"))","v":""},{"$f":"IF(OrigTable!B997=\"\",\"\",ScriptText!$E$1&CHAR(10)&ScriptText!C992)","v":""},{"$f":"IF(OrigTable!C997=\"\",\"\",ScriptText!$B$1&CHAR(10)&ScriptText!$D$1)","v":""},{"$f":"IF(OrigTable!C997=\"\",\"\",IF(LEN(OrigTable!C997)>255,LEFT(OrigTable!C997,250)&\". . .\",OrigTable!C997))","v":""},{"$f":"IF(OrigTable!C997=\"\",\"\",ScriptText!$E$1&CHAR(10)&ScriptText!$C$1)","v":""},{"$f":"IF(OrigTable!D997=\"\",\"\",ScriptText!$B$1&CHAR(10)&ScriptText!$D$1)","v":""},{"$f":"IF(OrigTable!D997=\"\",\"\",TEXT(OrigTable!D997,\"00\"))","v":""},{"$f":"IF(OrigTable!D997=\"\",\"\",ScriptText!$E$1&CHAR(10)&ScriptText!$C$1)","v":""},{"$f":"IF(OrigTable!E997=\"\",\"\",ScriptText!$B$1&CHAR(10)&ScriptText!$D$1)","v":""},{"$f":"IF(OrigTable!E997=\"\",\"\",TEXT(OrigTable!E997,\"00\"))","v":""},{"$f":"IF(OrigTable!E997=\"\",\"\",ScriptText!$E$1&CHAR(10)&ScriptText!$C$1)","v":""},{"$f":"IF(OrigTable!F997=\"\",\"\",ScriptText!$B$1&CHAR(10)&ScriptText!$D$1)","v":""},{"$f":"IF(OrigTable!F997=\"\",\"\",TEXT(OrigTable!F997,\"00\"))","v":""},{"$f":"IF(OrigTable!F997=\"\",\"\",ScriptText!$E$1&CHAR(10)&ScriptText!$C$1)","v":""},{"$f":"IF(OrigTable!G997=\"\",\"\",ScriptText!$B$1&CHAR(10)&ScriptText!$D$1)","v":""},{"$f":"IF(OrigTable!G997=\"\",\"\",TEXT(OrigTable!G997,\"00\"))","v":""},{"$f":"IF(OrigTable!G997=\"\",\"\",ScriptText!$E$1&CHAR(10)&ScriptText!$C$1)","v":""},0]
["\n\n\n",{"$f":"IF(OrigTable!A998=\"\",\"\",ScriptText!$B$1&CHAR(10)&ScriptText!$D$1)","v":""},{"$f":"IF(OrigTable!A998=\"\",\"\",TEXT(OrigTable!A998,\"00\"))","v":""},{"$f":"IF(OrigTable!A998=\"\",\"\",ScriptText!$E$1&CHAR(10)&ScriptText!$C$1)","v":""},{"$f":"IF(OrigTable!B998=\"\",\"\",ScriptText!$B$1&CHAR(10)&ScriptText!$D$1)","v":""},{"$f":"IF(OrigTable!B998=\"\",\"\",TEXT(OrigTable!B998,\"00\"))","v":""},{"$f":"IF(OrigTable!B998=\"\",\"\",ScriptText!$E$1&CHAR(10)&ScriptText!C993)","v":""},{"$f":"IF(OrigTable!C998=\"\",\"\",ScriptText!$B$1&CHAR(10)&ScriptText!$D$1)","v":""},{"$f":"IF(OrigTable!C998=\"\",\"\",IF(LEN(OrigTable!C998)>255,LEFT(OrigTable!C998,250)&\". . .\",OrigTable!C998))","v":""},{"$f":"IF(OrigTable!C998=\"\",\"\",ScriptText!$E$1&CHAR(10)&ScriptText!$C$1)","v":""},{"$f":"IF(OrigTable!D998=\"\",\"\",ScriptText!$B$1&CHAR(10)&ScriptText!$D$1)","v":""},{"$f":"IF(OrigTable!D998=\"\",\"\",TEXT(OrigTable!D998,\"00\"))","v":""},{"$f":"IF(OrigTable!D998=\"\",\"\",ScriptText!$E$1&CHAR(10)&ScriptText!$C$1)","v":""},{"$f":"IF(OrigTable!E998=\"\",\"\",ScriptText!$B$1&CHAR(10)&ScriptText!$D$1)","v":""},{"$f":"IF(OrigTable!E998=\"\",\"\",TEXT(OrigTable!E998,\"00\"))","v":""},{"$f":"IF(OrigTable!E998=\"\",\"\",ScriptText!$E$1&CHAR(10)&ScriptText!$C$1)","v":""},{"$f":"IF(OrigTable!F998=\"\",\"\",ScriptText!$B$1&CHAR(10)&ScriptText!$D$1)","v":""},{"$f":"IF(OrigTable!F998=\"\",\"\",TEXT(OrigTable!F998,\"00\"))","v":""},{"$f":"IF(OrigTable!F998=\"\",\"\",ScriptText!$E$1&CHAR(10)&ScriptText!$C$1)","v":""},{"$f":"IF(OrigTable!G998=\"\",\"\",ScriptText!$B$1&CHAR(10)&ScriptText!$D$1)","v":""},{"$f":"IF(OrigTable!G998=\"\",\"\",TEXT(OrigTable!G998,\"00\"))","v":""},{"$f":"IF(OrigTable!G998=\"\",\"\",ScriptText!$E$1&CHAR(10)&ScriptText!$C$1)","v":""},0]
["\n\n\n",{"$f":"IF(OrigTable!A999=\"\",\"\",ScriptText!$B$1&CHAR(10)&ScriptText!$D$1)","v":""},{"$f":"IF(OrigTable!A999=\"\",\"\",TEXT(OrigTable!A999,\"00\"))","v":""},{"$f":"IF(OrigTable!A999=\"\",\"\",ScriptText!$E$1&CHAR(10)&ScriptText!$C$1)","v":""},{"$f":"IF(OrigTable!B999=\"\",\"\",ScriptText!$B$1&CHAR(10)&ScriptText!$D$1)","v":""},{"$f":"IF(OrigTable!B999=\"\",\"\",TEXT(OrigTable!B999,\"00\"))","v":""},{"$f":"IF(OrigTable!B999=\"\",\"\",ScriptText!$E$1&CHAR(10)&ScriptText!C994)","v":""},{"$f":"IF(OrigTable!C999=\"\",\"\",ScriptText!$B$1&CHAR(10)&ScriptText!$D$1)","v":""},{"$f":"IF(OrigTable!C999=\"\",\"\",IF(LEN(OrigTable!C999)>255,LEFT(OrigTable!C999,250)&\". . .\",OrigTable!C999))","v":""},{"$f":"IF(OrigTable!C999=\"\",\"\",ScriptText!$E$1&CHAR(10)&ScriptText!$C$1)","v":""},{"$f":"IF(OrigTable!D999=\"\",\"\",ScriptText!$B$1&CHAR(10)&ScriptText!$D$1)","v":""},{"$f":"IF(OrigTable!D999=\"\",\"\",TEXT(OrigTable!D999,\"00\"))","v":""},{"$f":"IF(OrigTable!D999=\"\",\"\",ScriptText!$E$1&CHAR(10)&ScriptText!$C$1)","v":""},{"$f":"IF(OrigTable!E999=\"\",\"\",ScriptText!$B$1&CHAR(10)&ScriptText!$D$1)","v":""},{"$f":"IF(OrigTable!E999=\"\",\"\",TEXT(OrigTable!E999,\"00\"))","v":""},{"$f":"IF(OrigTable!E999=\"\",\"\",ScriptText!$E$1&CHAR(10)&ScriptText!$C$1)","v":""},{"$f":"IF(OrigTable!F999=\"\",\"\",ScriptText!$B$1&CHAR(10)&ScriptText!$D$1)","v":""},{"$f":"IF(OrigTable!F999=\"\",\"\",TEXT(OrigTable!F999,\"00\"))","v":""},{"$f":"IF(OrigTable!F999=\"\",\"\",ScriptText!$E$1&CHAR(10)&ScriptText!$C$1)","v":""},{"$f":"IF(OrigTable!G999=\"\",\"\",ScriptText!$B$1&CHAR(10)&ScriptText!$D$1)","v":""},{"$f":"IF(OrigTable!G999=\"\",\"\",TEXT(OrigTable!G999,\"00\"))","v":""},{"$f":"IF(OrigTable!G999=\"\",\"\",ScriptText!$E$1&CHAR(10)&ScriptText!$C$1)","v":""},0]
["\n\n\n",{"$f":"IF(OrigTable!A1000=\"\",\"\",ScriptText!$B$1&CHAR(10)&ScriptText!$D$1)","v":""},{"$f":"IF(OrigTable!A1000=\"\",\"\",TEXT(OrigTable!A1000,\"00\"))","v":""},{"$f":"IF(OrigTable!A1000=\"\",\"\",ScriptText!$E$1&CHAR(10)&ScriptText!$C$1)","v":""},{"$f":"IF(OrigTable!B1000=\"\",\"\",ScriptText!$B$1&CHAR(10)&ScriptText!$D$1)","v":""},{"$f":"IF(OrigTable!B1000=\"\",\"\",TEXT(OrigTable!B1000,\"00\"))","v":""},{"$f":"IF(OrigTable!B1000=\"\",\"\",ScriptText!$E$1&CHAR(10)&ScriptText!C995)","v":""},{"$f":"IF(OrigTable!C1000=\"\",\"\",ScriptText!$B$1&CHAR(10)&ScriptText!$D$1)","v":""},{"$f":"IF(OrigTable!C1000=\"\",\"\",IF(LEN(OrigTable!C1000)>255,LEFT(OrigTable!C1000,250)&\". . .\",OrigTable!C1000))","v":""},{"$f":"IF(OrigTable!C1000=\"\",\"\",ScriptText!$E$1&CHAR(10)&ScriptText!$C$1)","v":""},{"$f":"IF(OrigTable!D1000=\"\",\"\",ScriptText!$B$1&CHAR(10)&ScriptText!$D$1)","v":""},{"$f":"IF(OrigTable!D1000=\"\",\"\",TEXT(OrigTable!D1000,\"00\"))","v":""},{"$f":"IF(OrigTable!D1000=\"\",\"\",ScriptText!$E$1&CHAR(10)&ScriptText!$C$1)","v":""},{"$f":"IF(OrigTable!E1000=\"\",\"\",ScriptText!$B$1&CHAR(10)&ScriptText!$D$1)","v":""},{"$f":"IF(OrigTable!E1000=\"\",\"\",TEXT(OrigTable!E1000,\"00\"))","v":""},{"$f":"IF(OrigTable!E1000=\"\",\"\",ScriptText!$E$1&CHAR(10)&ScriptText!$C$1)","v":""},{"$f":"IF(OrigTable!F1000=\"\",\"\",ScriptText!$B$1&CHAR(10)&ScriptText!$D$1)","v":""},{"$f":"IF(OrigTable!F1000=\"\",\"\",TEXT(OrigTable!F1000,\"00\"))","v":""},{"$f":"IF(OrigTable!F1000=\"\",\"\",ScriptText!$E$1&CHAR(10)&ScriptText!$C$1)","v":""},{"$f":"IF(OrigTable!G1000=\"\",\"\",ScriptText!$B$1&CHAR(10)&ScriptText!$D$1)","v":""},{"$f":"IF(OrigTable!G1000=\"\",\"\",TEXT(OrigTable!G1000,\"00\"))","v":""},{"$f":"IF(OrigTable!G1000=\"\",\"\",ScriptText!$E$1&CHAR(10)&ScriptText!$C$1)","v":""},0]
["\n\n\n",{"$f":"IF(OrigTable!A1001=\"\",\"\",ScriptText!$B$1&CHAR(10)&ScriptText!$D$1)","v":""},{"$f":"IF(OrigTable!A1001=\"\",\"\",TEXT(OrigTable!A1001,\"00\"))","v":""},{"$f":"IF(OrigTable!A1001=\"\",\"\",ScriptText!$E$1&CHAR(10)&ScriptText!$C$1)","v":""},{"$f":"IF(OrigTable!B1001=\"\",\"\",ScriptText!$B$1&CHAR(10)&ScriptText!$D$1)","v":""},{"$f":"IF(OrigTable!B1001=\"\",\"\",TEXT(OrigTable!B1001,\"00\"))","v":""},{"$f":"IF(OrigTable!B1001=\"\",\"\",ScriptText!$E$1&CHAR(10)&ScriptText!C996)","v":""},{"$f":"IF(OrigTable!C1001=\"\",\"\",ScriptText!$B$1&CHAR(10)&ScriptText!$D$1)","v":""},{"$f":"IF(OrigTable!C1001=\"\",\"\",IF(LEN(OrigTable!C1001)>255,LEFT(OrigTable!C1001,250)&\". . .\",OrigTable!C1001))","v":""},{"$f":"IF(OrigTable!C1001=\"\",\"\",ScriptText!$E$1&CHAR(10)&ScriptText!$C$1)","v":""},{"$f":"IF(OrigTable!D1001=\"\",\"\",ScriptText!$B$1&CHAR(10)&ScriptText!$D$1)","v":""},{"$f":"IF(OrigTable!D1001=\"\",\"\",TEXT(OrigTable!D1001,\"00\"))","v":""},{"$f":"IF(OrigTable!D1001=\"\",\"\",ScriptText!$E$1&CHAR(10)&ScriptText!$C$1)","v":""},{"$f":"IF(OrigTable!E1001=\"\",\"\",ScriptText!$B$1&CHAR(10)&ScriptText!$D$1)","v":""},{"$f":"IF(OrigTable!E1001=\"\",\"\",TEXT(OrigTable!E1001,\"00\"))","v":""},{"$f":"IF(OrigTable!E1001=\"\",\"\",ScriptText!$E$1&CHAR(10)&ScriptText!$C$1)","v":""},{"$f":"IF(OrigTable!F1001=\"\",\"\",ScriptText!$B$1&CHAR(10)&ScriptText!$D$1)","v":""},{"$f":"IF(OrigTable!F1001=\"\",\"\",TEXT(OrigTable!F1001,\"00\"))","v":""},{"$f":"IF(OrigTable!F1001=\"\",\"\",ScriptText!$E$1&CHAR(10)&ScriptText!$C$1)","v":""},{"$f":"IF(OrigTable!G1001=\"\",\"\",ScriptText!$B$1&CHAR(10)&ScriptText!$D$1)","v":""},{"$f":"IF(OrigTable!G1001=\"\",\"\",TEXT(OrigTable!G1001,\"00\"))","v":""},{"$f":"IF(OrigTable!G1001=\"\",\"\",ScriptText!$E$1&CHAR(10)&ScriptText!$C$1)","v":""},0]
["\n\n\n",{"$f":"IF(OrigTable!A1002=\"\",\"\",ScriptText!$B$1&CHAR(10)&ScriptText!$D$1)","v":""},{"$f":"IF(OrigTable!A1002=\"\",\"\",TEXT(OrigTable!A1002,\"00\"))","v":""},{"$f":"IF(OrigTable!A1002=\"\",\"\",ScriptText!$E$1&CHAR(10)&ScriptText!$C$1)","v":""},{"$f":"IF(OrigTable!B1002=\"\",\"\",ScriptText!$B$1&CHAR(10)&ScriptText!$D$1)","v":""},{"$f":"IF(OrigTable!B1002=\"\",\"\",TEXT(OrigTable!B1002,\"00\"))","v":""},{"$f":"IF(OrigTable!B1002=\"\",\"\",ScriptText!$E$1&CHAR(10)&ScriptText!C997)","v":""},{"$f":"IF(OrigTable!C1002=\"\",\"\",ScriptText!$B$1&CHAR(10)&ScriptText!$D$1)","v":""},{"$f":"IF(OrigTable!C1002=\"\",\"\",IF(LEN(OrigTable!C1002)>255,LEFT(OrigTable!C1002,250)&\". . .\",OrigTable!C1002))","v":""},{"$f":"IF(OrigTable!C1002=\"\",\"\",ScriptText!$E$1&CHAR(10)&ScriptText!$C$1)","v":""},{"$f":"IF(OrigTable!D1002=\"\",\"\",ScriptText!$B$1&CHAR(10)&ScriptText!$D$1)","v":""},{"$f":"IF(OrigTable!D1002=\"\",\"\",TEXT(OrigTable!D1002,\"00\"))","v":""},{"$f":"IF(OrigTable!D1002=\"\",\"\",ScriptText!$E$1&CHAR(10)&ScriptText!$C$1)","v":""},{"$f":"IF(OrigTable!E1002=\"\",\"\",ScriptText!$B$1&CHAR(10)&ScriptText!$D$1)","v":""},{"$f":"IF(OrigTable!E1002=\"\",\"\",TEXT(OrigTable!E1002,\"00\"))","v":""},{"$f":"IF(OrigTable!E1002=\"\",\"\",ScriptText!$E$1&CHAR(10)&ScriptText!$C$1)","v":""},{"$f":"IF(OrigTable!F1002=\"\",\"\",ScriptText!$B$1&CHAR(10)&ScriptText!$D$1)","v":""},{"$f":"IF(OrigTable!F1002=\"\",\"\",TEXT(OrigTable!F1002,\"00\"))","v":""},{"$f":"IF(OrigTable!F1002=\"\",\"\",ScriptText!$E$1&CHAR(10)&ScriptText!$C$1)","v":""},{"$f":"IF(OrigTable!G1002=\"\",\"\",ScriptText!$B$1&CHAR(10)&ScriptText!$D$1)","v":""},{"$f":"IF(OrigTable!G1002=\"\",\"\",TEXT(OrigTable!G1002,\"00\"))","v":""},{"$f":"IF(OrigTable!G1002=\"\",\"\",ScriptText!$E$1&CHAR(10)&ScriptText!$C$1)","v":""},0]
["\n\n\n",{"$f":"IF(OrigTable!A1003=\"\",\"\",ScriptText!$B$1&CHAR(10)&ScriptText!$D$1)","v":""},{"$f":"IF(OrigTable!A1003=\"\",\"\",TEXT(OrigTable!A1003,\"00\"))","v":""},{"$f":"IF(OrigTable!A1003=\"\",\"\",ScriptText!$E$1&CHAR(10)&ScriptText!$C$1)","v":""},{"$f":"IF(OrigTable!B1003=\"\",\"\",ScriptText!$B$1&CHAR(10)&ScriptText!$D$1)","v":""},{"$f":"IF(OrigTable!B1003=\"\",\"\",TEXT(OrigTable!B1003,\"00\"))","v":""},{"$f":"IF(OrigTable!B1003=\"\",\"\",ScriptText!$E$1&CHAR(10)&ScriptText!C998)","v":""},{"$f":"IF(OrigTable!C1003=\"\",\"\",ScriptText!$B$1&CHAR(10)&ScriptText!$D$1)","v":""},{"$f":"IF(OrigTable!C1003=\"\",\"\",IF(LEN(OrigTable!C1003)>255,LEFT(OrigTable!C1003,250)&\". . .\",OrigTable!C1003))","v":""},{"$f":"IF(OrigTable!C1003=\"\",\"\",ScriptText!$E$1&CHAR(10)&ScriptText!$C$1)","v":""},{"$f":"IF(OrigTable!D1003=\"\",\"\",ScriptText!$B$1&CHAR(10)&ScriptText!$D$1)","v":""},{"$f":"IF(OrigTable!D1003=\"\",\"\",TEXT(OrigTable!D1003,\"00\"))","v":""},{"$f":"IF(OrigTable!D1003=\"\",\"\",ScriptText!$E$1&CHAR(10)&ScriptText!$C$1)","v":""},{"$f":"IF(OrigTable!E1003=\"\",\"\",ScriptText!$B$1&CHAR(10)&ScriptText!$D$1)","v":""},{"$f":"IF(OrigTable!E1003=\"\",\"\",TEXT(OrigTable!E1003,\"00\"))","v":""},{"$f":"IF(OrigTable!E1003=\"\",\"\",ScriptText!$E$1&CHAR(10)&ScriptText!$C$1)","v":""},{"$f":"IF(OrigTable!F1003=\"\",\"\",ScriptText!$B$1&CHAR(10)&ScriptText!$D$1)","v":""},{"$f":"IF(OrigTable!F1003=\"\",\"\",TEXT(OrigTable!F1003,\"00\"))","v":""},{"$f":"IF(OrigTable!F1003=\"\",\"\",ScriptText!$E$1&CHAR(10)&ScriptText!$C$1)","v":""},{"$f":"IF(OrigTable!G1003=\"\",\"\",ScriptText!$B$1&CHAR(10)&ScriptText!$D$1)","v":""},{"$f":"IF(OrigTable!G1003=\"\",\"\",TEXT(OrigTable!G1003,\"00\"))","v":""},{"$f":"IF(OrigTable!G1003=\"\",\"\",ScriptText!$E$1&CHAR(10)&ScriptText!$C$1)","v":""},0]
["\n\n\n",{"$f":"IF(OrigTable!A1004=\"\",\"\",ScriptText!$B$1&CHAR(10)&ScriptText!$D$1)","v":""},{"$f":"IF(OrigTable!A1004=\"\",\"\",TEXT(OrigTable!A1004,\"00\"))","v":""},{"$f":"IF(OrigTable!A1004=\"\",\"\",ScriptText!$E$1&CHAR(10)&ScriptText!$C$1)","v":""},{"$f":"IF(OrigTable!B1004=\"\",\"\",ScriptText!$B$1&CHAR(10)&ScriptText!$D$1)","v":""},{"$f":"IF(OrigTable!B1004=\"\",\"\",TEXT(OrigTable!B1004,\"00\"))","v":""},{"$f":"IF(OrigTable!B1004=\"\",\"\",ScriptText!$E$1&CHAR(10)&ScriptText!C999)","v":""},{"$f":"IF(OrigTable!C1004=\"\",\"\",ScriptText!$B$1&CHAR(10)&ScriptText!$D$1)","v":""},{"$f":"IF(OrigTable!C1004=\"\",\"\",IF(LEN(OrigTable!C1004)>255,LEFT(OrigTable!C1004,250)&\". . .\",OrigTable!C1004))","v":""},{"$f":"IF(OrigTable!C1004=\"\",\"\",ScriptText!$E$1&CHAR(10)&ScriptText!$C$1)","v":""},{"$f":"IF(OrigTable!D1004=\"\",\"\",ScriptText!$B$1&CHAR(10)&ScriptText!$D$1)","v":""},{"$f":"IF(OrigTable!D1004=\"\",\"\",TEXT(OrigTable!D1004,\"00\"))","v":""},{"$f":"IF(OrigTable!D1004=\"\",\"\",ScriptText!$E$1&CHAR(10)&ScriptText!$C$1)","v":""},{"$f":"IF(OrigTable!E1004=\"\",\"\",ScriptText!$B$1&CHAR(10)&ScriptText!$D$1)","v":""},{"$f":"IF(OrigTable!E1004=\"\",\"\",TEXT(OrigTable!E1004,\"00\"))","v":""},{"$f":"IF(OrigTable!E1004=\"\",\"\",ScriptText!$E$1&CHAR(10)&ScriptText!$C$1)","v":""},{"$f":"IF(OrigTable!F1004=\"\",\"\",ScriptText!$B$1&CHAR(10)&ScriptText!$D$1)","v":""},{"$f":"IF(OrigTable!F1004=\"\",\"\",TEXT(OrigTable!F1004,\"00\"))","v":""},{"$f":"IF(OrigTable!F1004=\"\",\"\",ScriptText!$E$1&CHAR(10)&ScriptText!$C$1)","v":""},{"$f":"IF(OrigTable!G1004=\"\",\"\",ScriptText!$B$1&CHAR(10)&ScriptText!$D$1)","v":""},{"$f":"IF(OrigTable!G1004=\"\",\"\",TEXT(OrigTable!G1004,\"00\"))","v":""},{"$f":"IF(OrigTable!G1004=\"\",\"\",ScriptText!$E$1&CHAR(10)&ScriptText!$C$1)","v":""},0]
["\n\n\n",{"$f":"IF(OrigTable!A1005=\"\",\"\",ScriptText!$B$1&CHAR(10)&ScriptText!$D$1)","v":""},{"$f":"IF(OrigTable!A1005=\"\",\"\",TEXT(OrigTable!A1005,\"00\"))","v":""},{"$f":"IF(OrigTable!A1005=\"\",\"\",ScriptText!$E$1&CHAR(10)&ScriptText!$C$1)","v":""},{"$f":"IF(OrigTable!B1005=\"\",\"\",ScriptText!$B$1&CHAR(10)&ScriptText!$D$1)","v":""},{"$f":"IF(OrigTable!B1005=\"\",\"\",TEXT(OrigTable!B1005,\"00\"))","v":""},{"$f":"IF(OrigTable!B1005=\"\",\"\",ScriptText!$E$1&CHAR(10)&ScriptText!C1000)","v":""},{"$f":"IF(OrigTable!C1005=\"\",\"\",ScriptText!$B$1&CHAR(10)&ScriptText!$D$1)","v":""},{"$f":"IF(OrigTable!C1005=\"\",\"\",IF(LEN(OrigTable!C1005)>255,LEFT(OrigTable!C1005,250)&\". . .\",OrigTable!C1005))","v":""},{"$f":"IF(OrigTable!C1005=\"\",\"\",ScriptText!$E$1&CHAR(10)&ScriptText!$C$1)","v":""},{"$f":"IF(OrigTable!D1005=\"\",\"\",ScriptText!$B$1&CHAR(10)&ScriptText!$D$1)","v":""},{"$f":"IF(OrigTable!D1005=\"\",\"\",TEXT(OrigTable!D1005,\"00\"))","v":""},{"$f":"IF(OrigTable!D1005=\"\",\"\",ScriptText!$E$1&CHAR(10)&ScriptText!$C$1)","v":""},{"$f":"IF(OrigTable!E1005=\"\",\"\",ScriptText!$B$1&CHAR(10)&ScriptText!$D$1)","v":""},{"$f":"IF(OrigTable!E1005=\"\",\"\",TEXT(OrigTable!E1005,\"00\"))","v":""},{"$f":"IF(OrigTable!E1005=\"\",\"\",ScriptText!$E$1&CHAR(10)&ScriptText!$C$1)","v":""},{"$f":"IF(OrigTable!F1005=\"\",\"\",ScriptText!$B$1&CHAR(10)&ScriptText!$D$1)","v":""},{"$f":"IF(OrigTable!F1005=\"\",\"\",TEXT(OrigTable!F1005,\"00\"))","v":""},{"$f":"IF(OrigTable!F1005=\"\",\"\",ScriptText!$E$1&CHAR(10)&ScriptText!$C$1)","v":""},{"$f":"IF(OrigTable!G1005=\"\",\"\",ScriptText!$B$1&CHAR(10)&ScriptText!$D$1)","v":""},{"$f":"IF(OrigTable!G1005=\"\",\"\",TEXT(OrigTable!G1005,\"00\"))","v":""},{"$f":"IF(OrigTable!G1005=\"\",\"\",ScriptText!$E$1&CHAR(10)&ScriptText!$C$1)","v":""},0]
["\n\n\n",{"$f":"IF(OrigTable!A1006=\"\",\"\",ScriptText!$B$1&CHAR(10)&ScriptText!$D$1)","v":""},{"$f":"IF(OrigTable!A1006=\"\",\"\",TEXT(OrigTable!A1006,\"00\"))","v":""},{"$f":"IF(OrigTable!A1006=\"\",\"\",ScriptText!$E$1&CHAR(10)&ScriptText!$C$1)","v":""},{"$f":"IF(OrigTable!B1006=\"\",\"\",ScriptText!$B$1&CHAR(10)&ScriptText!$D$1)","v":""},{"$f":"IF(OrigTable!B1006=\"\",\"\",TEXT(OrigTable!B1006,\"00\"))","v":""},{"$f":"IF(OrigTable!B1006=\"\",\"\",ScriptText!$E$1&CHAR(10)&ScriptText!C1001)","v":""},{"$f":"IF(OrigTable!C1006=\"\",\"\",ScriptText!$B$1&CHAR(10)&ScriptText!$D$1)","v":""},{"$f":"IF(OrigTable!C1006=\"\",\"\",IF(LEN(OrigTable!C1006)>255,LEFT(OrigTable!C1006,250)&\". . .\",OrigTable!C1006))","v":""},{"$f":"IF(OrigTable!C1006=\"\",\"\",ScriptText!$E$1&CHAR(10)&ScriptText!$C$1)","v":""},{"$f":"IF(OrigTable!D1006=\"\",\"\",ScriptText!$B$1&CHAR(10)&ScriptText!$D$1)","v":""},{"$f":"IF(OrigTable!D1006=\"\",\"\",TEXT(OrigTable!D1006,\"00\"))","v":""},{"$f":"IF(OrigTable!D1006=\"\",\"\",ScriptText!$E$1&CHAR(10)&ScriptText!$C$1)","v":""},{"$f":"IF(OrigTable!E1006=\"\",\"\",ScriptText!$B$1&CHAR(10)&ScriptText!$D$1)","v":""},{"$f":"IF(OrigTable!E1006=\"\",\"\",TEXT(OrigTable!E1006,\"00\"))","v":""},{"$f":"IF(OrigTable!E1006=\"\",\"\",ScriptText!$E$1&CHAR(10)&ScriptText!$C$1)","v":""},{"$f":"IF(OrigTable!F1006=\"\",\"\",ScriptText!$B$1&CHAR(10)&ScriptText!$D$1)","v":""},{"$f":"IF(OrigTable!F1006=\"\",\"\",TEXT(OrigTable!F1006,\"00\"))","v":""},{"$f":"IF(OrigTable!F1006=\"\",\"\",ScriptText!$E$1&CHAR(10)&ScriptText!$C$1)","v":""},{"$f":"IF(OrigTable!G1006=\"\",\"\",ScriptText!$B$1&CHAR(10)&ScriptText!$D$1)","v":""},{"$f":"IF(OrigTable!G1006=\"\",\"\",TEXT(OrigTable!G1006,\"00\"))","v":""},{"$f":"IF(OrigTable!G1006=\"\",\"\",ScriptText!$E$1&CHAR(10)&ScriptText!$C$1)","v":""},0]
["\n\n\n",{"$f":"IF(OrigTable!A1007=\"\",\"\",ScriptText!$B$1&CHAR(10)&ScriptText!$D$1)","v":""},{"$f":"IF(OrigTable!A1007=\"\",\"\",TEXT(OrigTable!A1007,\"00\"))","v":""},{"$f":"IF(OrigTable!A1007=\"\",\"\",ScriptText!$E$1&CHAR(10)&ScriptText!$C$1)","v":""},{"$f":"IF(OrigTable!B1007=\"\",\"\",ScriptText!$B$1&CHAR(10)&ScriptText!$D$1)","v":""},{"$f":"IF(OrigTable!B1007=\"\",\"\",TEXT(OrigTable!B1007,\"00\"))","v":""},{"$f":"IF(OrigTable!B1007=\"\",\"\",ScriptText!$E$1&CHAR(10)&ScriptText!C1002)","v":""},{"$f":"IF(OrigTable!C1007=\"\",\"\",ScriptText!$B$1&CHAR(10)&ScriptText!$D$1)","v":""},{"$f":"IF(OrigTable!C1007=\"\",\"\",IF(LEN(OrigTable!C1007)>255,LEFT(OrigTable!C1007,250)&\". . .\",OrigTable!C1007))","v":""},{"$f":"IF(OrigTable!C1007=\"\",\"\",ScriptText!$E$1&CHAR(10)&ScriptText!$C$1)","v":""},{"$f":"IF(OrigTable!D1007=\"\",\"\",ScriptText!$B$1&CHAR(10)&ScriptText!$D$1)","v":""},{"$f":"IF(OrigTable!D1007=\"\",\"\",TEXT(OrigTable!D1007,\"00\"))","v":""},{"$f":"IF(OrigTable!D1007=\"\",\"\",ScriptText!$E$1&CHAR(10)&ScriptText!$C$1)","v":""},{"$f":"IF(OrigTable!E1007=\"\",\"\",ScriptText!$B$1&CHAR(10)&ScriptText!$D$1)","v":""},{"$f":"IF(OrigTable!E1007=\"\",\"\",TEXT(OrigTable!E1007,\"00\"))","v":""},{"$f":"IF(OrigTable!E1007=\"\",\"\",ScriptText!$E$1&CHAR(10)&ScriptText!$C$1)","v":""},{"$f":"IF(OrigTable!F1007=\"\",\"\",ScriptText!$B$1&CHAR(10)&ScriptText!$D$1)","v":""},{"$f":"IF(OrigTable!F1007=\"\",\"\",TEXT(OrigTable!F1007,\"00\"))","v":""},{"$f":"IF(OrigTable!F1007=\"\",\"\",ScriptText!$E$1&CHAR(10)&ScriptText!$C$1)","v":""},{"$f":"IF(OrigTable!G1007=\"\",\"\",ScriptText!$B$1&CHAR(10)&ScriptText!$D$1)","v":""},{"$f":"IF(OrigTable!G1007=\"\",\"\",TEXT(OrigTable!G1007,\"00\"))","v":""},{"$f":"IF(OrigTable!G1007=\"\",\"\",ScriptText!$E$1&CHAR(10)&ScriptText!$C$1)","v":""},0]
["\n\n\n",{"$f":"IF(OrigTable!A1008=\"\",\"\",ScriptText!$B$1&CHAR(10)&ScriptText!$D$1)","v":""},{"$f":"IF(OrigTable!A1008=\"\",\"\",TEXT(OrigTable!A1008,\"00\"))","v":""},{"$f":"IF(OrigTable!A1008=\"\",\"\",ScriptText!$E$1&CHAR(10)&ScriptText!$C$1)","v":""},{"$f":"IF(OrigTable!B1008=\"\",\"\",ScriptText!$B$1&CHAR(10)&ScriptText!$D$1)","v":""},{"$f":"IF(OrigTable!B1008=\"\",\"\",TEXT(OrigTable!B1008,\"00\"))","v":""},{"$f":"IF(OrigTable!B1008=\"\",\"\",ScriptText!$E$1&CHAR(10)&ScriptText!C1003)","v":""},{"$f":"IF(OrigTable!C1008=\"\",\"\",ScriptText!$B$1&CHAR(10)&ScriptText!$D$1)","v":""},{"$f":"IF(OrigTable!C1008=\"\",\"\",IF(LEN(OrigTable!C1008)>255,LEFT(OrigTable!C1008,250)&\". . .\",OrigTable!C1008))","v":""},{"$f":"IF(OrigTable!C1008=\"\",\"\",ScriptText!$E$1&CHAR(10)&ScriptText!$C$1)","v":""},{"$f":"IF(OrigTable!D1008=\"\",\"\",ScriptText!$B$1&CHAR(10)&ScriptText!$D$1)","v":""},{"$f":"IF(OrigTable!D1008=\"\",\"\",TEXT(OrigTable!D1008,\"00\"))","v":""},{"$f":"IF(OrigTable!D1008=\"\",\"\",ScriptText!$E$1&CHAR(10)&ScriptText!$C$1)","v":""},{"$f":"IF(OrigTable!E1008=\"\",\"\",ScriptText!$B$1&CHAR(10)&ScriptText!$D$1)","v":""},{"$f":"IF(OrigTable!E1008=\"\",\"\",TEXT(OrigTable!E1008,\"00\"))","v":""},{"$f":"IF(OrigTable!E1008=\"\",\"\",ScriptText!$E$1&CHAR(10)&ScriptText!$C$1)","v":""},{"$f":"IF(OrigTable!F1008=\"\",\"\",ScriptText!$B$1&CHAR(10)&ScriptText!$D$1)","v":""},{"$f":"IF(OrigTable!F1008=\"\",\"\",TEXT(OrigTable!F1008,\"00\"))","v":""},{"$f":"IF(OrigTable!F1008=\"\",\"\",ScriptText!$E$1&CHAR(10)&ScriptText!$C$1)","v":""},{"$f":"IF(OrigTable!G1008=\"\",\"\",ScriptText!$B$1&CHAR(10)&ScriptText!$D$1)","v":""},{"$f":"IF(OrigTable!G1008=\"\",\"\",TEXT(OrigTable!G1008,\"00\"))","v":""},{"$f":"IF(OrigTable!G1008=\"\",\"\",ScriptText!$E$1&CHAR(10)&ScriptText!$C$1)","v":""},0]
["\n\n\n",{"$f":"IF(OrigTable!A1009=\"\",\"\",ScriptText!$B$1&CHAR(10)&ScriptText!$D$1)","v":""},{"$f":"IF(OrigTable!A1009=\"\",\"\",TEXT(OrigTable!A1009,\"00\"))","v":""},{"$f":"IF(OrigTable!A1009=\"\",\"\",ScriptText!$E$1&CHAR(10)&ScriptText!$C$1)","v":""},{"$f":"IF(OrigTable!B1009=\"\",\"\",ScriptText!$B$1&CHAR(10)&ScriptText!$D$1)","v":""},{"$f":"IF(OrigTable!B1009=\"\",\"\",TEXT(OrigTable!B1009,\"00\"))","v":""},{"$f":"IF(OrigTable!B1009=\"\",\"\",ScriptText!$E$1&CHAR(10)&ScriptText!C1004)","v":""},{"$f":"IF(OrigTable!C1009=\"\",\"\",ScriptText!$B$1&CHAR(10)&ScriptText!$D$1)","v":""},{"$f":"IF(OrigTable!C1009=\"\",\"\",IF(LEN(OrigTable!C1009)>255,LEFT(OrigTable!C1009,250)&\". . .\",OrigTable!C1009))","v":""},{"$f":"IF(OrigTable!C1009=\"\",\"\",ScriptText!$E$1&CHAR(10)&ScriptText!$C$1)","v":""},{"$f":"IF(OrigTable!D1009=\"\",\"\",ScriptText!$B$1&CHAR(10)&ScriptText!$D$1)","v":""},{"$f":"IF(OrigTable!D1009=\"\",\"\",TEXT(OrigTable!D1009,\"00\"))","v":""},{"$f":"IF(OrigTable!D1009=\"\",\"\",ScriptText!$E$1&CHAR(10)&ScriptText!$C$1)","v":""},{"$f":"IF(OrigTable!E1009=\"\",\"\",ScriptText!$B$1&CHAR(10)&ScriptText!$D$1)","v":""},{"$f":"IF(OrigTable!E1009=\"\",\"\",TEXT(OrigTable!E1009,\"00\"))","v":""},{"$f":"IF(OrigTable!E1009=\"\",\"\",ScriptText!$E$1&CHAR(10)&ScriptText!$C$1)","v":""},{"$f":"IF(OrigTable!F1009=\"\",\"\",ScriptText!$B$1&CHAR(10)&ScriptText!$D$1)","v":""},{"$f":"IF(OrigTable!F1009=\"\",\"\",TEXT(OrigTable!F1009,\"00\"))","v":""},{"$f":"IF(OrigTable!F1009=\"\",\"\",ScriptText!$E$1&CHAR(10)&ScriptText!$C$1)","v":""},{"$f":"IF(OrigTable!G1009=\"\",\"\",ScriptText!$B$1&CHAR(10)&ScriptText!$D$1)","v":""},{"$f":"IF(OrigTable!G1009=\"\",\"\",TEXT(OrigTable!G1009,\"00\"))","v":""},{"$f":"IF(OrigTable!G1009=\"\",\"\",ScriptText!$E$1&CHAR(10)&ScriptText!$C$1)","v":""},0]
["\n\n\n",{"$f":"IF(OrigTable!A1010=\"\",\"\",ScriptText!$B$1&CHAR(10)&ScriptText!$D$1)","v":""},{"$f":"IF(OrigTable!A1010=\"\",\"\",TEXT(OrigTable!A1010,\"00\"))","v":""},{"$f":"IF(OrigTable!A1010=\"\",\"\",ScriptText!$E$1&CHAR(10)&ScriptText!$C$1)","v":""},{"$f":"IF(OrigTable!B1010=\"\",\"\",ScriptText!$B$1&CHAR(10)&ScriptText!$D$1)","v":""},{"$f":"IF(OrigTable!B1010=\"\",\"\",TEXT(OrigTable!B1010,\"00\"))","v":""},{"$f":"IF(OrigTable!B1010=\"\",\"\",ScriptText!$E$1&CHAR(10)&ScriptText!C1005)","v":""},{"$f":"IF(OrigTable!C1010=\"\",\"\",ScriptText!$B$1&CHAR(10)&ScriptText!$D$1)","v":""},{"$f":"IF(OrigTable!C1010=\"\",\"\",IF(LEN(OrigTable!C1010)>255,LEFT(OrigTable!C1010,250)&\". . .\",OrigTable!C1010))","v":""},{"$f":"IF(OrigTable!C1010=\"\",\"\",ScriptText!$E$1&CHAR(10)&ScriptText!$C$1)","v":""},{"$f":"IF(OrigTable!D1010=\"\",\"\",ScriptText!$B$1&CHAR(10)&ScriptText!$D$1)","v":""},{"$f":"IF(OrigTable!D1010=\"\",\"\",TEXT(OrigTable!D1010,\"00\"))","v":""},{"$f":"IF(OrigTable!D1010=\"\",\"\",ScriptText!$E$1&CHAR(10)&ScriptText!$C$1)","v":""},{"$f":"IF(OrigTable!E1010=\"\",\"\",ScriptText!$B$1&CHAR(10)&ScriptText!$D$1)","v":""},{"$f":"IF(OrigTable!E1010=\"\",\"\",TEXT(OrigTable!E1010,\"00\"))","v":""},{"$f":"IF(OrigTable!E1010=\"\",\"\",ScriptText!$E$1&CHAR(10)&ScriptText!$C$1)","v":""},{"$f":"IF(OrigTable!F1010=\"\",\"\",ScriptText!$B$1&CHAR(10)&ScriptText!$D$1)","v":""},{"$f":"IF(OrigTable!F1010=\"\",\"\",TEXT(OrigTable!F1010,\"00\"))","v":""},{"$f":"IF(OrigTable!F1010=\"\",\"\",ScriptText!$E$1&CHAR(10)&ScriptText!$C$1)","v":""},{"$f":"IF(OrigTable!G1010=\"\",\"\",ScriptText!$B$1&CHAR(10)&ScriptText!$D$1)","v":""},{"$f":"IF(OrigTable!G1010=\"\",\"\",TEXT(OrigTable!G1010,\"00\"))","v":""},{"$f":"IF(OrigTable!G1010=\"\",\"\",ScriptText!$E$1&CHAR(10)&ScriptText!$C$1)","v":""},0]
["\n\n\n",{"$f":"IF(OrigTable!A1011=\"\",\"\",ScriptText!$B$1&CHAR(10)&ScriptText!$D$1)","v":""},{"$f":"IF(OrigTable!A1011=\"\",\"\",TEXT(OrigTable!A1011,\"00\"))","v":""},{"$f":"IF(OrigTable!A1011=\"\",\"\",ScriptText!$E$1&CHAR(10)&ScriptText!$C$1)","v":""},{"$f":"IF(OrigTable!B1011=\"\",\"\",ScriptText!$B$1&CHAR(10)&ScriptText!$D$1)","v":""},{"$f":"IF(OrigTable!B1011=\"\",\"\",TEXT(OrigTable!B1011,\"00\"))","v":""},{"$f":"IF(OrigTable!B1011=\"\",\"\",ScriptText!$E$1&CHAR(10)&ScriptText!C1006)","v":""},{"$f":"IF(OrigTable!C1011=\"\",\"\",ScriptText!$B$1&CHAR(10)&ScriptText!$D$1)","v":""},{"$f":"IF(OrigTable!C1011=\"\",\"\",IF(LEN(OrigTable!C1011)>255,LEFT(OrigTable!C1011,250)&\". . .\",OrigTable!C1011))","v":""},{"$f":"IF(OrigTable!C1011=\"\",\"\",ScriptText!$E$1&CHAR(10)&ScriptText!$C$1)","v":""},{"$f":"IF(OrigTable!D1011=\"\",\"\",ScriptText!$B$1&CHAR(10)&ScriptText!$D$1)","v":""},{"$f":"IF(OrigTable!D1011=\"\",\"\",TEXT(OrigTable!D1011,\"00\"))","v":""},{"$f":"IF(OrigTable!D1011=\"\",\"\",ScriptText!$E$1&CHAR(10)&ScriptText!$C$1)","v":""},{"$f":"IF(OrigTable!E1011=\"\",\"\",ScriptText!$B$1&CHAR(10)&ScriptText!$D$1)","v":""},{"$f":"IF(OrigTable!E1011=\"\",\"\",TEXT(OrigTable!E1011,\"00\"))","v":""},{"$f":"IF(OrigTable!E1011=\"\",\"\",ScriptText!$E$1&CHAR(10)&ScriptText!$C$1)","v":""},{"$f":"IF(OrigTable!F1011=\"\",\"\",ScriptText!$B$1&CHAR(10)&ScriptText!$D$1)","v":""},{"$f":"IF(OrigTable!F1011=\"\",\"\",TEXT(OrigTable!F1011,\"00\"))","v":""},{"$f":"IF(OrigTable!F1011=\"\",\"\",ScriptText!$E$1&CHAR(10)&ScriptText!$C$1)","v":""},{"$f":"IF(OrigTable!G1011=\"\",\"\",ScriptText!$B$1&CHAR(10)&ScriptText!$D$1)","v":""},{"$f":"IF(OrigTable!G1011=\"\",\"\",TEXT(OrigTable!G1011,\"00\"))","v":""},{"$f":"IF(OrigTable!G1011=\"\",\"\",ScriptText!$E$1&CHAR(10)&ScriptText!$C$1)","v":""},0]
["\n\n\n",{"$f":"IF(OrigTable!A1012=\"\",\"\",ScriptText!$B$1&CHAR(10)&ScriptText!$D$1)","v":""},{"$f":"IF(OrigTable!A1012=\"\",\"\",TEXT(OrigTable!A1012,\"00\"))","v":""},{"$f":"IF(OrigTable!A1012=\"\",\"\",ScriptText!$E$1&CHAR(10)&ScriptText!$C$1)","v":""},{"$f":"IF(OrigTable!B1012=\"\",\"\",ScriptText!$B$1&CHAR(10)&ScriptText!$D$1)","v":""},{"$f":"IF(OrigTable!B1012=\"\",\"\",TEXT(OrigTable!B1012,\"00\"))","v":""},{"$f":"IF(OrigTable!B1012=\"\",\"\",ScriptText!$E$1&CHAR(10)&ScriptText!C1007)","v":""},{"$f":"IF(OrigTable!C1012=\"\",\"\",ScriptText!$B$1&CHAR(10)&ScriptText!$D$1)","v":""},{"$f":"IF(OrigTable!C1012=\"\",\"\",IF(LEN(OrigTable!C1012)>255,LEFT(OrigTable!C1012,250)&\". . .\",OrigTable!C1012))","v":""},{"$f":"IF(OrigTable!C1012=\"\",\"\",ScriptText!$E$1&CHAR(10)&ScriptText!$C$1)","v":""},{"$f":"IF(OrigTable!D1012=\"\",\"\",ScriptText!$B$1&CHAR(10)&ScriptText!$D$1)","v":""},{"$f":"IF(OrigTable!D1012=\"\",\"\",TEXT(OrigTable!D1012,\"00\"))","v":""},{"$f":"IF(OrigTable!D1012=\"\",\"\",ScriptText!$E$1&CHAR(10)&ScriptText!$C$1)","v":""},{"$f":"IF(OrigTable!E1012=\"\",\"\",ScriptText!$B$1&CHAR(10)&ScriptText!$D$1)","v":""},{"$f":"IF(OrigTable!E1012=\"\",\"\",TEXT(OrigTable!E1012,\"00\"))","v":""},{"$f":"IF(OrigTable!E1012=\"\",\"\",ScriptText!$E$1&CHAR(10)&ScriptText!$C$1)","v":""},{"$f":"IF(OrigTable!F1012=\"\",\"\",ScriptText!$B$1&CHAR(10)&ScriptText!$D$1)","v":""},{"$f":"IF(OrigTable!F1012=\"\",\"\",TEXT(OrigTable!F1012,\"00\"))","v":""},{"$f":"IF(OrigTable!F1012=\"\",\"\",ScriptText!$E$1&CHAR(10)&ScriptText!$C$1)","v":""},{"$f":"IF(OrigTable!G1012=\"\",\"\",ScriptText!$B$1&CHAR(10)&ScriptText!$D$1)","v":""},{"$f":"IF(OrigTable!G1012=\"\",\"\",TEXT(OrigTable!G1012,\"00\"))","v":""},{"$f":"IF(OrigTable!G1012=\"\",\"\",ScriptText!$E$1&CHAR(10)&ScriptText!$C$1)","v":""},0]
["\n\n\n",{"$f":"IF(OrigTable!A1013=\"\",\"\",ScriptText!$B$1&CHAR(10)&ScriptText!$D$1)","v":""},{"$f":"IF(OrigTable!A1013=\"\",\"\",TEXT(OrigTable!A1013,\"00\"))","v":""},{"$f":"IF(OrigTable!A1013=\"\",\"\",ScriptText!$E$1&CHAR(10)&ScriptText!$C$1)","v":""},{"$f":"IF(OrigTable!B1013=\"\",\"\",ScriptText!$B$1&CHAR(10)&ScriptText!$D$1)","v":""},{"$f":"IF(OrigTable!B1013=\"\",\"\",TEXT(OrigTable!B1013,\"00\"))","v":""},{"$f":"IF(OrigTable!B1013=\"\",\"\",ScriptText!$E$1&CHAR(10)&ScriptText!C1008)","v":""},{"$f":"IF(OrigTable!C1013=\"\",\"\",ScriptText!$B$1&CHAR(10)&ScriptText!$D$1)","v":""},{"$f":"IF(OrigTable!C1013=\"\",\"\",IF(LEN(OrigTable!C1013)>255,LEFT(OrigTable!C1013,250)&\". . .\",OrigTable!C1013))","v":""},{"$f":"IF(OrigTable!C1013=\"\",\"\",ScriptText!$E$1&CHAR(10)&ScriptText!$C$1)","v":""},{"$f":"IF(OrigTable!D1013=\"\",\"\",ScriptText!$B$1&CHAR(10)&ScriptText!$D$1)","v":""},{"$f":"IF(OrigTable!D1013=\"\",\"\",TEXT(OrigTable!D1013,\"00\"))","v":""},{"$f":"IF(OrigTable!D1013=\"\",\"\",ScriptText!$E$1&CHAR(10)&ScriptText!$C$1)","v":""},{"$f":"IF(OrigTable!E1013=\"\",\"\",ScriptText!$B$1&CHAR(10)&ScriptText!$D$1)","v":""},{"$f":"IF(OrigTable!E1013=\"\",\"\",TEXT(OrigTable!E1013,\"00\"))","v":""},{"$f":"IF(OrigTable!E1013=\"\",\"\",ScriptText!$E$1&CHAR(10)&ScriptText!$C$1)","v":""},{"$f":"IF(OrigTable!F1013=\"\",\"\",ScriptText!$B$1&CHAR(10)&ScriptText!$D$1)","v":""},{"$f":"IF(OrigTable!F1013=\"\",\"\",TEXT(OrigTable!F1013,\"00\"))","v":""},{"$f":"IF(OrigTable!F1013=\"\",\"\",ScriptText!$E$1&CHAR(10)&ScriptText!$C$1)","v":""},{"$f":"IF(OrigTable!G1013=\"\",\"\",ScriptText!$B$1&CHAR(10)&ScriptText!$D$1)","v":""},{"$f":"IF(OrigTable!G1013=\"\",\"\",TEXT(OrigTable!G1013,\"00\"))","v":""},{"$f":"IF(OrigTable!G1013=\"\",\"\",ScriptText!$E$1&CHAR(10)&ScriptText!$C$1)","v":""},0]
["\n\n\n",{"$f":"IF(OrigTable!A1014=\"\",\"\",ScriptText!$B$1&CHAR(10)&ScriptText!$D$1)","v":""},{"$f":"IF(OrigTable!A1014=\"\",\"\",TEXT(OrigTable!A1014,\"00\"))","v":""},{"$f":"IF(OrigTable!A1014=\"\",\"\",ScriptText!$E$1&CHAR(10)&ScriptText!$C$1)","v":""},{"$f":"IF(OrigTable!B1014=\"\",\"\",ScriptText!$B$1&CHAR(10)&ScriptText!$D$1)","v":""},{"$f":"IF(OrigTable!B1014=\"\",\"\",TEXT(OrigTable!B1014,\"00\"))","v":""},{"$f":"IF(OrigTable!B1014=\"\",\"\",ScriptText!$E$1&CHAR(10)&ScriptText!C1009)","v":""},{"$f":"IF(OrigTable!C1014=\"\",\"\",ScriptText!$B$1&CHAR(10)&ScriptText!$D$1)","v":""},{"$f":"IF(OrigTable!C1014=\"\",\"\",IF(LEN(OrigTable!C1014)>255,LEFT(OrigTable!C1014,250)&\". . .\",OrigTable!C1014))","v":""},{"$f":"IF(OrigTable!C1014=\"\",\"\",ScriptText!$E$1&CHAR(10)&ScriptText!$C$1)","v":""},{"$f":"IF(OrigTable!D1014=\"\",\"\",ScriptText!$B$1&CHAR(10)&ScriptText!$D$1)","v":""},{"$f":"IF(OrigTable!D1014=\"\",\"\",TEXT(OrigTable!D1014,\"00\"))","v":""},{"$f":"IF(OrigTable!D1014=\"\",\"\",ScriptText!$E$1&CHAR(10)&ScriptText!$C$1)","v":""},{"$f":"IF(OrigTable!E1014=\"\",\"\",ScriptText!$B$1&CHAR(10)&ScriptText!$D$1)","v":""},{"$f":"IF(OrigTable!E1014=\"\",\"\",TEXT(OrigTable!E1014,\"00\"))","v":""},{"$f":"IF(OrigTable!E1014=\"\",\"\",ScriptText!$E$1&CHAR(10)&ScriptText!$C$1)","v":""},{"$f":"IF(OrigTable!F1014=\"\",\"\",ScriptText!$B$1&CHAR(10)&ScriptText!$D$1)","v":""},{"$f":"IF(OrigTable!F1014=\"\",\"\",TEXT(OrigTable!F1014,\"00\"))","v":""},{"$f":"IF(OrigTable!F1014=\"\",\"\",ScriptText!$E$1&CHAR(10)&ScriptText!$C$1)","v":""},{"$f":"IF(OrigTable!G1014=\"\",\"\",ScriptText!$B$1&CHAR(10)&ScriptText!$D$1)","v":""},{"$f":"IF(OrigTable!G1014=\"\",\"\",TEXT(OrigTable!G1014,\"00\"))","v":""},{"$f":"IF(OrigTable!G1014=\"\",\"\",ScriptText!$E$1&CHAR(10)&ScriptText!$C$1)","v":""},0]
["\n\n\n",{"$f":"IF(OrigTable!A1015=\"\",\"\",ScriptText!$B$1&CHAR(10)&ScriptText!$D$1)","v":""},{"$f":"IF(OrigTable!A1015=\"\",\"\",TEXT(OrigTable!A1015,\"00\"))","v":""},{"$f":"IF(OrigTable!A1015=\"\",\"\",ScriptText!$E$1&CHAR(10)&ScriptText!$C$1)","v":""},{"$f":"IF(OrigTable!B1015=\"\",\"\",ScriptText!$B$1&CHAR(10)&ScriptText!$D$1)","v":""},{"$f":"IF(OrigTable!B1015=\"\",\"\",TEXT(OrigTable!B1015,\"00\"))","v":""},{"$f":"IF(OrigTable!B1015=\"\",\"\",ScriptText!$E$1&CHAR(10)&ScriptText!C1010)","v":""},{"$f":"IF(OrigTable!C1015=\"\",\"\",ScriptText!$B$1&CHAR(10)&ScriptText!$D$1)","v":""},{"$f":"IF(OrigTable!C1015=\"\",\"\",IF(LEN(OrigTable!C1015)>255,LEFT(OrigTable!C1015,250)&\". . .\",OrigTable!C1015))","v":""},{"$f":"IF(OrigTable!C1015=\"\",\"\",ScriptText!$E$1&CHAR(10)&ScriptText!$C$1)","v":""},{"$f":"IF(OrigTable!D1015=\"\",\"\",ScriptText!$B$1&CHAR(10)&ScriptText!$D$1)","v":""},{"$f":"IF(OrigTable!D1015=\"\",\"\",TEXT(OrigTable!D1015,\"00\"))","v":""},{"$f":"IF(OrigTable!D1015=\"\",\"\",ScriptText!$E$1&CHAR(10)&ScriptText!$C$1)","v":""},{"$f":"IF(OrigTable!E1015=\"\",\"\",ScriptText!$B$1&CHAR(10)&ScriptText!$D$1)","v":""},{"$f":"IF(OrigTable!E1015=\"\",\"\",TEXT(OrigTable!E1015,\"00\"))","v":""},{"$f":"IF(OrigTable!E1015=\"\",\"\",ScriptText!$E$1&CHAR(10)&ScriptText!$C$1)","v":""},{"$f":"IF(OrigTable!F1015=\"\",\"\",ScriptText!$B$1&CHAR(10)&ScriptText!$D$1)","v":""},{"$f":"IF(OrigTable!F1015=\"\",\"\",TEXT(OrigTable!F1015,\"00\"))","v":""},{"$f":"IF(OrigTable!F1015=\"\",\"\",ScriptText!$E$1&CHAR(10)&ScriptText!$C$1)","v":""},{"$f":"IF(OrigTable!G1015=\"\",\"\",ScriptText!$B$1&CHAR(10)&ScriptText!$D$1)","v":""},{"$f":"IF(OrigTable!G1015=\"\",\"\",TEXT(OrigTable!G1015,\"00\"))","v":""},{"$f":"IF(OrigTable!G1015=\"\",\"\",ScriptText!$E$1&CHAR(10)&ScriptText!$C$1)","v":""},0]
["\n\n\n",{"$f":"IF(OrigTable!A1016=\"\",\"\",ScriptText!$B$1&CHAR(10)&ScriptText!$D$1)","v":""},{"$f":"IF(OrigTable!A1016=\"\",\"\",TEXT(OrigTable!A1016,\"00\"))","v":""},{"$f":"IF(OrigTable!A1016=\"\",\"\",ScriptText!$E$1&CHAR(10)&ScriptText!$C$1)","v":""},{"$f":"IF(OrigTable!B1016=\"\",\"\",ScriptText!$B$1&CHAR(10)&ScriptText!$D$1)","v":""},{"$f":"IF(OrigTable!B1016=\"\",\"\",TEXT(OrigTable!B1016,\"00\"))","v":""},{"$f":"IF(OrigTable!B1016=\"\",\"\",ScriptText!$E$1&CHAR(10)&ScriptText!C1011)","v":""},{"$f":"IF(OrigTable!C1016=\"\",\"\",ScriptText!$B$1&CHAR(10)&ScriptText!$D$1)","v":""},{"$f":"IF(OrigTable!C1016=\"\",\"\",IF(LEN(OrigTable!C1016)>255,LEFT(OrigTable!C1016,250)&\". . .\",OrigTable!C1016))","v":""},{"$f":"IF(OrigTable!C1016=\"\",\"\",ScriptText!$E$1&CHAR(10)&ScriptText!$C$1)","v":""},{"$f":"IF(OrigTable!D1016=\"\",\"\",ScriptText!$B$1&CHAR(10)&ScriptText!$D$1)","v":""},{"$f":"IF(OrigTable!D1016=\"\",\"\",TEXT(OrigTable!D1016,\"00\"))","v":""},{"$f":"IF(OrigTable!D1016=\"\",\"\",ScriptText!$E$1&CHAR(10)&ScriptText!$C$1)","v":""},{"$f":"IF(OrigTable!E1016=\"\",\"\",ScriptText!$B$1&CHAR(10)&ScriptText!$D$1)","v":""},{"$f":"IF(OrigTable!E1016=\"\",\"\",TEXT(OrigTable!E1016,\"00\"))","v":""},{"$f":"IF(OrigTable!E1016=\"\",\"\",ScriptText!$E$1&CHAR(10)&ScriptText!$C$1)","v":""},{"$f":"IF(OrigTable!F1016=\"\",\"\",ScriptText!$B$1&CHAR(10)&ScriptText!$D$1)","v":""},{"$f":"IF(OrigTable!F1016=\"\",\"\",TEXT(OrigTable!F1016,\"00\"))","v":""},{"$f":"IF(OrigTable!F1016=\"\",\"\",ScriptText!$E$1&CHAR(10)&ScriptText!$C$1)","v":""},{"$f":"IF(OrigTable!G1016=\"\",\"\",ScriptText!$B$1&CHAR(10)&ScriptText!$D$1)","v":""},{"$f":"IF(OrigTable!G1016=\"\",\"\",TEXT(OrigTable!G1016,\"00\"))","v":""},{"$f":"IF(OrigTable!G1016=\"\",\"\",ScriptText!$E$1&CHAR(10)&ScriptText!$C$1)","v":""},0]
["\n\n\n",{"$f":"IF(OrigTable!A1017=\"\",\"\",ScriptText!$B$1&CHAR(10)&ScriptText!$D$1)","v":""},{"$f":"IF(OrigTable!A1017=\"\",\"\",TEXT(OrigTable!A1017,\"00\"))","v":""},{"$f":"IF(OrigTable!A1017=\"\",\"\",ScriptText!$E$1&CHAR(10)&ScriptText!$C$1)","v":""},{"$f":"IF(OrigTable!B1017=\"\",\"\",ScriptText!$B$1&CHAR(10)&ScriptText!$D$1)","v":""},{"$f":"IF(OrigTable!B1017=\"\",\"\",TEXT(OrigTable!B1017,\"00\"))","v":""},{"$f":"IF(OrigTable!B1017=\"\",\"\",ScriptText!$E$1&CHAR(10)&ScriptText!C1012)","v":""},{"$f":"IF(OrigTable!C1017=\"\",\"\",ScriptText!$B$1&CHAR(10)&ScriptText!$D$1)","v":""},{"$f":"IF(OrigTable!C1017=\"\",\"\",IF(LEN(OrigTable!C1017)>255,LEFT(OrigTable!C1017,250)&\". . .\",OrigTable!C1017))","v":""},{"$f":"IF(OrigTable!C1017=\"\",\"\",ScriptText!$E$1&CHAR(10)&ScriptText!$C$1)","v":""},{"$f":"IF(OrigTable!D1017=\"\",\"\",ScriptText!$B$1&CHAR(10)&ScriptText!$D$1)","v":""},{"$f":"IF(OrigTable!D1017=\"\",\"\",TEXT(OrigTable!D1017,\"00\"))","v":""},{"$f":"IF(OrigTable!D1017=\"\",\"\",ScriptText!$E$1&CHAR(10)&ScriptText!$C$1)","v":""},{"$f":"IF(OrigTable!E1017=\"\",\"\",ScriptText!$B$1&CHAR(10)&ScriptText!$D$1)","v":""},{"$f":"IF(OrigTable!E1017=\"\",\"\",TEXT(OrigTable!E1017,\"00\"))","v":""},{"$f":"IF(OrigTable!E1017=\"\",\"\",ScriptText!$E$1&CHAR(10)&ScriptText!$C$1)","v":""},{"$f":"IF(OrigTable!F1017=\"\",\"\",ScriptText!$B$1&CHAR(10)&ScriptText!$D$1)","v":""},{"$f":"IF(OrigTable!F1017=\"\",\"\",TEXT(OrigTable!F1017,\"00\"))","v":""},{"$f":"IF(OrigTable!F1017=\"\",\"\",ScriptText!$E$1&CHAR(10)&ScriptText!$C$1)","v":""},{"$f":"IF(OrigTable!G1017=\"\",\"\",ScriptText!$B$1&CHAR(10)&ScriptText!$D$1)","v":""},{"$f":"IF(OrigTable!G1017=\"\",\"\",TEXT(OrigTable!G1017,\"00\"))","v":""},{"$f":"IF(OrigTable!G1017=\"\",\"\",ScriptText!$E$1&CHAR(10)&ScriptText!$C$1)","v":""},0]
["\n\n\n",{"$f":"IF(OrigTable!A1018=\"\",\"\",ScriptText!$B$1&CHAR(10)&ScriptText!$D$1)","v":""},{"$f":"IF(OrigTable!A1018=\"\",\"\",TEXT(OrigTable!A1018,\"00\"))","v":""},{"$f":"IF(OrigTable!A1018=\"\",\"\",ScriptText!$E$1&CHAR(10)&ScriptText!$C$1)","v":""},{"$f":"IF(OrigTable!B1018=\"\",\"\",ScriptText!$B$1&CHAR(10)&ScriptText!$D$1)","v":""},{"$f":"IF(OrigTable!B1018=\"\",\"\",TEXT(OrigTable!B1018,\"00\"))","v":""},{"$f":"IF(OrigTable!B1018=\"\",\"\",ScriptText!$E$1&CHAR(10)&ScriptText!C1013)","v":""},{"$f":"IF(OrigTable!C1018=\"\",\"\",ScriptText!$B$1&CHAR(10)&ScriptText!$D$1)","v":""},{"$f":"IF(OrigTable!C1018=\"\",\"\",IF(LEN(OrigTable!C1018)>255,LEFT(OrigTable!C1018,250)&\". . .\",OrigTable!C1018))","v":""},{"$f":"IF(OrigTable!C1018=\"\",\"\",ScriptText!$E$1&CHAR(10)&ScriptText!$C$1)","v":""},{"$f":"IF(OrigTable!D1018=\"\",\"\",ScriptText!$B$1&CHAR(10)&ScriptText!$D$1)","v":""},{"$f":"IF(OrigTable!D1018=\"\",\"\",TEXT(OrigTable!D1018,\"00\"))","v":""},{"$f":"IF(OrigTable!D1018=\"\",\"\",ScriptText!$E$1&CHAR(10)&ScriptText!$C$1)","v":""},{"$f":"IF(OrigTable!E1018=\"\",\"\",ScriptText!$B$1&CHAR(10)&ScriptText!$D$1)","v":""},{"$f":"IF(OrigTable!E1018=\"\",\"\",TEXT(OrigTable!E1018,\"00\"))","v":""},{"$f":"IF(OrigTable!E1018=\"\",\"\",ScriptText!$E$1&CHAR(10)&ScriptText!$C$1)","v":""},{"$f":"IF(OrigTable!F1018=\"\",\"\",ScriptText!$B$1&CHAR(10)&ScriptText!$D$1)","v":""},{"$f":"IF(OrigTable!F1018=\"\",\"\",TEXT(OrigTable!F1018,\"00\"))","v":""},{"$f":"IF(OrigTable!F1018=\"\",\"\",ScriptText!$E$1&CHAR(10)&ScriptText!$C$1)","v":""},{"$f":"IF(OrigTable!G1018=\"\",\"\",ScriptText!$B$1&CHAR(10)&ScriptText!$D$1)","v":""},{"$f":"IF(OrigTable!G1018=\"\",\"\",TEXT(OrigTable!G1018,\"00\"))","v":""},{"$f":"IF(OrigTable!G1018=\"\",\"\",ScriptText!$E$1&CHAR(10)&ScriptText!$C$1)","v":""},0]
["\n\n\n",{"$f":"IF(OrigTable!A1019=\"\",\"\",ScriptText!$B$1&CHAR(10)&ScriptText!$D$1)","v":""},{"$f":"IF(OrigTable!A1019=\"\",\"\",TEXT(OrigTable!A1019,\"00\"))","v":""},{"$f":"IF(OrigTable!A1019=\"\",\"\",ScriptText!$E$1&CHAR(10)&ScriptText!$C$1)","v":""},{"$f":"IF(OrigTable!B1019=\"\",\"\",ScriptText!$B$1&CHAR(10)&ScriptText!$D$1)","v":""},{"$f":"IF(OrigTable!B1019=\"\",\"\",TEXT(OrigTable!B1019,\"00\"))","v":""},{"$f":"IF(OrigTable!B1019=\"\",\"\",ScriptText!$E$1&CHAR(10)&ScriptText!C1014)","v":""},{"$f":"IF(OrigTable!C1019=\"\",\"\",ScriptText!$B$1&CHAR(10)&ScriptText!$D$1)","v":""},{"$f":"IF(OrigTable!C1019=\"\",\"\",IF(LEN(OrigTable!C1019)>255,LEFT(OrigTable!C1019,250)&\". . .\",OrigTable!C1019))","v":""},{"$f":"IF(OrigTable!C1019=\"\",\"\",ScriptText!$E$1&CHAR(10)&ScriptText!$C$1)","v":""},{"$f":"IF(OrigTable!D1019=\"\",\"\",ScriptText!$B$1&CHAR(10)&ScriptText!$D$1)","v":""},{"$f":"IF(OrigTable!D1019=\"\",\"\",TEXT(OrigTable!D1019,\"00\"))","v":""},{"$f":"IF(OrigTable!D1019=\"\",\"\",ScriptText!$E$1&CHAR(10)&ScriptText!$C$1)","v":""},{"$f":"IF(OrigTable!E1019=\"\",\"\",ScriptText!$B$1&CHAR(10)&ScriptText!$D$1)","v":""},{"$f":"IF(OrigTable!E1019=\"\",\"\",TEXT(OrigTable!E1019,\"00\"))","v":""},{"$f":"IF(OrigTable!E1019=\"\",\"\",ScriptText!$E$1&CHAR(10)&ScriptText!$C$1)","v":""},{"$f":"IF(OrigTable!F1019=\"\",\"\",ScriptText!$B$1&CHAR(10)&ScriptText!$D$1)","v":""},{"$f":"IF(OrigTable!F1019=\"\",\"\",TEXT(OrigTable!F1019,\"00\"))","v":""},{"$f":"IF(OrigTable!F1019=\"\",\"\",ScriptText!$E$1&CHAR(10)&ScriptText!$C$1)","v":""},{"$f":"IF(OrigTable!G1019=\"\",\"\",ScriptText!$B$1&CHAR(10)&ScriptText!$D$1)","v":""},{"$f":"IF(OrigTable!G1019=\"\",\"\",TEXT(OrigTable!G1019,\"00\"))","v":""},{"$f":"IF(OrigTable!G1019=\"\",\"\",ScriptText!$E$1&CHAR(10)&ScriptText!$C$1)","v":""},0]
["\n\n\n",{"$f":"IF(OrigTable!A1020=\"\",\"\",ScriptText!$B$1&CHAR(10)&ScriptText!$D$1)","v":""},{"$f":"IF(OrigTable!A1020=\"\",\"\",TEXT(OrigTable!A1020,\"00\"))","v":""},{"$f":"IF(OrigTable!A1020=\"\",\"\",ScriptText!$E$1&CHAR(10)&ScriptText!$C$1)","v":""},{"$f":"IF(OrigTable!B1020=\"\",\"\",ScriptText!$B$1&CHAR(10)&ScriptText!$D$1)","v":""},{"$f":"IF(OrigTable!B1020=\"\",\"\",TEXT(OrigTable!B1020,\"00\"))","v":""},{"$f":"IF(OrigTable!B1020=\"\",\"\",ScriptText!$E$1&CHAR(10)&ScriptText!C1015)","v":""},{"$f":"IF(OrigTable!C1020=\"\",\"\",ScriptText!$B$1&CHAR(10)&ScriptText!$D$1)","v":""},{"$f":"IF(OrigTable!C1020=\"\",\"\",IF(LEN(OrigTable!C1020)>255,LEFT(OrigTable!C1020,250)&\". . .\",OrigTable!C1020))","v":""},{"$f":"IF(OrigTable!C1020=\"\",\"\",ScriptText!$E$1&CHAR(10)&ScriptText!$C$1)","v":""},{"$f":"IF(OrigTable!D1020=\"\",\"\",ScriptText!$B$1&CHAR(10)&ScriptText!$D$1)","v":""},{"$f":"IF(OrigTable!D1020=\"\",\"\",TEXT(OrigTable!D1020,\"00\"))","v":""},{"$f":"IF(OrigTable!D1020=\"\",\"\",ScriptText!$E$1&CHAR(10)&ScriptText!$C$1)","v":""},{"$f":"IF(OrigTable!E1020=\"\",\"\",ScriptText!$B$1&CHAR(10)&ScriptText!$D$1)","v":""},{"$f":"IF(OrigTable!E1020=\"\",\"\",TEXT(OrigTable!E1020,\"00\"))","v":""},{"$f":"IF(OrigTable!E1020=\"\",\"\",ScriptText!$E$1&CHAR(10)&ScriptText!$C$1)","v":""},{"$f":"IF(OrigTable!F1020=\"\",\"\",ScriptText!$B$1&CHAR(10)&ScriptText!$D$1)","v":""},{"$f":"IF(OrigTable!F1020=\"\",\"\",TEXT(OrigTable!F1020,\"00\"))","v":""},{"$f":"IF(OrigTable!F1020=\"\",\"\",ScriptText!$E$1&CHAR(10)&ScriptText!$C$1)","v":""},{"$f":"IF(OrigTable!G1020=\"\",\"\",ScriptText!$B$1&CHAR(10)&ScriptText!$D$1)","v":""},{"$f":"IF(OrigTable!G1020=\"\",\"\",TEXT(OrigTable!G1020,\"00\"))","v":""},{"$f":"IF(OrigTable!G1020=\"\",\"\",ScriptText!$E$1&CHAR(10)&ScriptText!$C$1)","v":""},0]
["\n\n\n",{"$f":"IF(OrigTable!A1021=\"\",\"\",ScriptText!$B$1&CHAR(10)&ScriptText!$D$1)","v":""},{"$f":"IF(OrigTable!A1021=\"\",\"\",TEXT(OrigTable!A1021,\"00\"))","v":""},{"$f":"IF(OrigTable!A1021=\"\",\"\",ScriptText!$E$1&CHAR(10)&ScriptText!$C$1)","v":""},{"$f":"IF(OrigTable!B1021=\"\",\"\",ScriptText!$B$1&CHAR(10)&ScriptText!$D$1)","v":""},{"$f":"IF(OrigTable!B1021=\"\",\"\",TEXT(OrigTable!B1021,\"00\"))","v":""},{"$f":"IF(OrigTable!B1021=\"\",\"\",ScriptText!$E$1&CHAR(10)&ScriptText!C1016)","v":""},{"$f":"IF(OrigTable!C1021=\"\",\"\",ScriptText!$B$1&CHAR(10)&ScriptText!$D$1)","v":""},{"$f":"IF(OrigTable!C1021=\"\",\"\",IF(LEN(OrigTable!C1021)>255,LEFT(OrigTable!C1021,250)&\". . .\",OrigTable!C1021))","v":""},{"$f":"IF(OrigTable!C1021=\"\",\"\",ScriptText!$E$1&CHAR(10)&ScriptText!$C$1)","v":""},{"$f":"IF(OrigTable!D1021=\"\",\"\",ScriptText!$B$1&CHAR(10)&ScriptText!$D$1)","v":""},{"$f":"IF(OrigTable!D1021=\"\",\"\",TEXT(OrigTable!D1021,\"00\"))","v":""},{"$f":"IF(OrigTable!D1021=\"\",\"\",ScriptText!$E$1&CHAR(10)&ScriptText!$C$1)","v":""},{"$f":"IF(OrigTable!E1021=\"\",\"\",ScriptText!$B$1&CHAR(10)&ScriptText!$D$1)","v":""},{"$f":"IF(OrigTable!E1021=\"\",\"\",TEXT(OrigTable!E1021,\"00\"))","v":""},{"$f":"IF(OrigTable!E1021=\"\",\"\",ScriptText!$E$1&CHAR(10)&ScriptText!$C$1)","v":""},{"$f":"IF(OrigTable!F1021=\"\",\"\",ScriptText!$B$1&CHAR(10)&ScriptText!$D$1)","v":""},{"$f":"IF(OrigTable!F1021=\"\",\"\",TEXT(OrigTable!F1021,\"00\"))","v":""},{"$f":"IF(OrigTable!F1021=\"\",\"\",ScriptText!$E$1&CHAR(10)&ScriptText!$C$1)","v":""},{"$f":"IF(OrigTable!G1021=\"\",\"\",ScriptText!$B$1&CHAR(10)&ScriptText!$D$1)","v":""},{"$f":"IF(OrigTable!G1021=\"\",\"\",TEXT(OrigTable!G1021,\"00\"))","v":""},{"$f":"IF(OrigTable!G1021=\"\",\"\",ScriptText!$E$1&CHAR(10)&ScriptText!$C$1)","v":""},0]
["\n\n\n",{"$f":"IF(OrigTable!A1022=\"\",\"\",ScriptText!$B$1&CHAR(10)&ScriptText!$D$1)","v":""},{"$f":"IF(OrigTable!A1022=\"\",\"\",TEXT(OrigTable!A1022,\"00\"))","v":""},{"$f":"IF(OrigTable!A1022=\"\",\"\",ScriptText!$E$1&CHAR(10)&ScriptText!$C$1)","v":""},{"$f":"IF(OrigTable!B1022=\"\",\"\",ScriptText!$B$1&CHAR(10)&ScriptText!$D$1)","v":""},{"$f":"IF(OrigTable!B1022=\"\",\"\",TEXT(OrigTable!B1022,\"00\"))","v":""},{"$f":"IF(OrigTable!B1022=\"\",\"\",ScriptText!$E$1&CHAR(10)&ScriptText!C1017)","v":""},{"$f":"IF(OrigTable!C1022=\"\",\"\",ScriptText!$B$1&CHAR(10)&ScriptText!$D$1)","v":""},{"$f":"IF(OrigTable!C1022=\"\",\"\",IF(LEN(OrigTable!C1022)>255,LEFT(OrigTable!C1022,250)&\". . .\",OrigTable!C1022))","v":""},{"$f":"IF(OrigTable!C1022=\"\",\"\",ScriptText!$E$1&CHAR(10)&ScriptText!$C$1)","v":""},{"$f":"IF(OrigTable!D1022=\"\",\"\",ScriptText!$B$1&CHAR(10)&ScriptText!$D$1)","v":""},{"$f":"IF(OrigTable!D1022=\"\",\"\",TEXT(OrigTable!D1022,\"00\"))","v":""},{"$f":"IF(OrigTable!D1022=\"\",\"\",ScriptText!$E$1&CHAR(10)&ScriptText!$C$1)","v":""},{"$f":"IF(OrigTable!E1022=\"\",\"\",ScriptText!$B$1&CHAR(10)&ScriptText!$D$1)","v":""},{"$f":"IF(OrigTable!E1022=\"\",\"\",TEXT(OrigTable!E1022,\"00\"))","v":""},{"$f":"IF(OrigTable!E1022=\"\",\"\",ScriptText!$E$1&CHAR(10)&ScriptText!$C$1)","v":""},{"$f":"IF(OrigTable!F1022=\"\",\"\",ScriptText!$B$1&CHAR(10)&ScriptText!$D$1)","v":""},{"$f":"IF(OrigTable!F1022=\"\",\"\",TEXT(OrigTable!F1022,\"00\"))","v":""},{"$f":"IF(OrigTable!F1022=\"\",\"\",ScriptText!$E$1&CHAR(10)&ScriptText!$C$1)","v":""},{"$f":"IF(OrigTable!G1022=\"\",\"\",ScriptText!$B$1&CHAR(10)&ScriptText!$D$1)","v":""},{"$f":"IF(OrigTable!G1022=\"\",\"\",TEXT(OrigTable!G1022,\"00\"))","v":""},{"$f":"IF(OrigTable!G1022=\"\",\"\",ScriptText!$E$1&CHAR(10)&ScriptText!$C$1)","v":""},0]
["\n\n\n",{"$f":"IF(OrigTable!A1023=\"\",\"\",ScriptText!$B$1&CHAR(10)&ScriptText!$D$1)","v":""},{"$f":"IF(OrigTable!A1023=\"\",\"\",TEXT(OrigTable!A1023,\"00\"))","v":""},{"$f":"IF(OrigTable!A1023=\"\",\"\",ScriptText!$E$1&CHAR(10)&ScriptText!$C$1)","v":""},{"$f":"IF(OrigTable!B1023=\"\",\"\",ScriptText!$B$1&CHAR(10)&ScriptText!$D$1)","v":""},{"$f":"IF(OrigTable!B1023=\"\",\"\",TEXT(OrigTable!B1023,\"00\"))","v":""},{"$f":"IF(OrigTable!B1023=\"\",\"\",ScriptText!$E$1&CHAR(10)&ScriptText!C1018)","v":""},{"$f":"IF(OrigTable!C1023=\"\",\"\",ScriptText!$B$1&CHAR(10)&ScriptText!$D$1)","v":""},{"$f":"IF(OrigTable!C1023=\"\",\"\",IF(LEN(OrigTable!C1023)>255,LEFT(OrigTable!C1023,250)&\". . .\",OrigTable!C1023))","v":""},{"$f":"IF(OrigTable!C1023=\"\",\"\",ScriptText!$E$1&CHAR(10)&ScriptText!$C$1)","v":""},{"$f":"IF(OrigTable!D1023=\"\",\"\",ScriptText!$B$1&CHAR(10)&ScriptText!$D$1)","v":""},{"$f":"IF(OrigTable!D1023=\"\",\"\",TEXT(OrigTable!D1023,\"00\"))","v":""},{"$f":"IF(OrigTable!D1023=\"\",\"\",ScriptText!$E$1&CHAR(10)&ScriptText!$C$1)","v":""},{"$f":"IF(OrigTable!E1023=\"\",\"\",ScriptText!$B$1&CHAR(10)&ScriptText!$D$1)","v":""},{"$f":"IF(OrigTable!E1023=\"\",\"\",TEXT(OrigTable!E1023,\"00\"))","v":""},{"$f":"IF(OrigTable!E1023=\"\",\"\",ScriptText!$E$1&CHAR(10)&ScriptText!$C$1)","v":""},{"$f":"IF(OrigTable!F1023=\"\",\"\",ScriptText!$B$1&CHAR(10)&ScriptText!$D$1)","v":""},{"$f":"IF(OrigTable!F1023=\"\",\"\",TEXT(OrigTable!F1023,\"00\"))","v":""},{"$f":"IF(OrigTable!F1023=\"\",\"\",ScriptText!$E$1&CHAR(10)&ScriptText!$C$1)","v":""},{"$f":"IF(OrigTable!G1023=\"\",\"\",ScriptText!$B$1&CHAR(10)&ScriptText!$D$1)","v":""},{"$f":"IF(OrigTable!G1023=\"\",\"\",TEXT(OrigTable!G1023,\"00\"))","v":""},{"$f":"IF(OrigTable!G1023=\"\",\"\",ScriptText!$E$1&CHAR(10)&ScriptText!$C$1)","v":""},0]
["\n\n\n",{"$f":"IF(OrigTable!A1024=\"\",\"\",ScriptText!$B$1&CHAR(10)&ScriptText!$D$1)","v":""},{"$f":"IF(OrigTable!A1024=\"\",\"\",TEXT(OrigTable!A1024,\"00\"))","v":""},{"$f":"IF(OrigTable!A1024=\"\",\"\",ScriptText!$E$1&CHAR(10)&ScriptText!$C$1)","v":""},{"$f":"IF(OrigTable!B1024=\"\",\"\",ScriptText!$B$1&CHAR(10)&ScriptText!$D$1)","v":""},{"$f":"IF(OrigTable!B1024=\"\",\"\",TEXT(OrigTable!B1024,\"00\"))","v":""},{"$f":"IF(OrigTable!B1024=\"\",\"\",ScriptText!$E$1&CHAR(10)&ScriptText!C1019)","v":""},{"$f":"IF(OrigTable!C1024=\"\",\"\",ScriptText!$B$1&CHAR(10)&ScriptText!$D$1)","v":""},{"$f":"IF(OrigTable!C1024=\"\",\"\",IF(LEN(OrigTable!C1024)>255,LEFT(OrigTable!C1024,250)&\". . .\",OrigTable!C1024))","v":""},{"$f":"IF(OrigTable!C1024=\"\",\"\",ScriptText!$E$1&CHAR(10)&ScriptText!$C$1)","v":""},{"$f":"IF(OrigTable!D1024=\"\",\"\",ScriptText!$B$1&CHAR(10)&ScriptText!$D$1)","v":""},{"$f":"IF(OrigTable!D1024=\"\",\"\",TEXT(OrigTable!D1024,\"00\"))","v":""},{"$f":"IF(OrigTable!D1024=\"\",\"\",ScriptText!$E$1&CHAR(10)&ScriptText!$C$1)","v":""},{"$f":"IF(OrigTable!E1024=\"\",\"\",ScriptText!$B$1&CHAR(10)&ScriptText!$D$1)","v":""},{"$f":"IF(OrigTable!E1024=\"\",\"\",TEXT(OrigTable!E1024,\"00\"))","v":""},{"$f":"IF(OrigTable!E1024=\"\",\"\",ScriptText!$E$1&CHAR(10)&ScriptText!$C$1)","v":""},{"$f":"IF(OrigTable!F1024=\"\",\"\",ScriptText!$B$1&CHAR(10)&ScriptText!$D$1)","v":""},{"$f":"IF(OrigTable!F1024=\"\",\"\",TEXT(OrigTable!F1024,\"00\"))","v":""},{"$f":"IF(OrigTable!F1024=\"\",\"\",ScriptText!$E$1&CHAR(10)&ScriptText!$C$1)","v":""},{"$f":"IF(OrigTable!G1024=\"\",\"\",ScriptText!$B$1&CHAR(10)&ScriptText!$D$1)","v":""},{"$f":"IF(OrigTable!G1024=\"\",\"\",TEXT(OrigTable!G1024,\"00\"))","v":""},{"$f":"IF(OrigTable!G1024=\"\",\"\",ScriptText!$E$1&CHAR(10)&ScriptText!$C$1)","v":""},0]
["\n\n\n",{"$f":"IF(OrigTable!A1025=\"\",\"\",ScriptText!$B$1&CHAR(10)&ScriptText!$D$1)","v":""},{"$f":"IF(OrigTable!A1025=\"\",\"\",TEXT(OrigTable!A1025,\"00\"))","v":""},{"$f":"IF(OrigTable!A1025=\"\",\"\",ScriptText!$E$1&CHAR(10)&ScriptText!$C$1)","v":""},{"$f":"IF(OrigTable!B1025=\"\",\"\",ScriptText!$B$1&CHAR(10)&ScriptText!$D$1)","v":""},{"$f":"IF(OrigTable!B1025=\"\",\"\",TEXT(OrigTable!B1025,\"00\"))","v":""},{"$f":"IF(OrigTable!B1025=\"\",\"\",ScriptText!$E$1&CHAR(10)&ScriptText!C1020)","v":""},{"$f":"IF(OrigTable!C1025=\"\",\"\",ScriptText!$B$1&CHAR(10)&ScriptText!$D$1)","v":""},{"$f":"IF(OrigTable!C1025=\"\",\"\",IF(LEN(OrigTable!C1025)>255,LEFT(OrigTable!C1025,250)&\". . .\",OrigTable!C1025))","v":""},{"$f":"IF(OrigTable!C1025=\"\",\"\",ScriptText!$E$1&CHAR(10)&ScriptText!$C$1)","v":""},{"$f":"IF(OrigTable!D1025=\"\",\"\",ScriptText!$B$1&CHAR(10)&ScriptText!$D$1)","v":""},{"$f":"IF(OrigTable!D1025=\"\",\"\",TEXT(OrigTable!D1025,\"00\"))","v":""},{"$f":"IF(OrigTable!D1025=\"\",\"\",ScriptText!$E$1&CHAR(10)&ScriptText!$C$1)","v":""},{"$f":"IF(OrigTable!E1025=\"\",\"\",ScriptText!$B$1&CHAR(10)&ScriptText!$D$1)","v":""},{"$f":"IF(OrigTable!E1025=\"\",\"\",TEXT(OrigTable!E1025,\"00\"))","v":""},{"$f":"IF(OrigTable!E1025=\"\",\"\",ScriptText!$E$1&CHAR(10)&ScriptText!$C$1)","v":""},{"$f":"IF(OrigTable!F1025=\"\",\"\",ScriptText!$B$1&CHAR(10)&ScriptText!$D$1)","v":""},{"$f":"IF(OrigTable!F1025=\"\",\"\",TEXT(OrigTable!F1025,\"00\"))","v":""},{"$f":"IF(OrigTable!F1025=\"\",\"\",ScriptText!$E$1&CHAR(10)&ScriptText!$C$1)","v":""},{"$f":"IF(OrigTable!G1025=\"\",\"\",ScriptText!$B$1&CHAR(10)&ScriptText!$D$1)","v":""},{"$f":"IF(OrigTable!G1025=\"\",\"\",TEXT(OrigTable!G1025,\"00\"))","v":""},{"$f":"IF(OrigTable!G1025=\"\",\"\",ScriptText!$E$1&CHAR(10)&ScriptText!$C$1)","v":""},0]
["\n\n\n",{"$f":"IF(OrigTable!A1026=\"\",\"\",ScriptText!$B$1&CHAR(10)&ScriptText!$D$1)","v":""},{"$f":"IF(OrigTable!A1026=\"\",\"\",TEXT(OrigTable!A1026,\"00\"))","v":""},{"$f":"IF(OrigTable!A1026=\"\",\"\",ScriptText!$E$1&CHAR(10)&ScriptText!$C$1)","v":""},{"$f":"IF(OrigTable!B1026=\"\",\"\",ScriptText!$B$1&CHAR(10)&ScriptText!$D$1)","v":""},{"$f":"IF(OrigTable!B1026=\"\",\"\",TEXT(OrigTable!B1026,\"00\"))","v":""},{"$f":"IF(OrigTable!B1026=\"\",\"\",ScriptText!$E$1&CHAR(10)&ScriptText!C1021)","v":""},{"$f":"IF(OrigTable!C1026=\"\",\"\",ScriptText!$B$1&CHAR(10)&ScriptText!$D$1)","v":""},{"$f":"IF(OrigTable!C1026=\"\",\"\",IF(LEN(OrigTable!C1026)>255,LEFT(OrigTable!C1026,250)&\". . .\",OrigTable!C1026))","v":""},{"$f":"IF(OrigTable!C1026=\"\",\"\",ScriptText!$E$1&CHAR(10)&ScriptText!$C$1)","v":""},{"$f":"IF(OrigTable!D1026=\"\",\"\",ScriptText!$B$1&CHAR(10)&ScriptText!$D$1)","v":""},{"$f":"IF(OrigTable!D1026=\"\",\"\",TEXT(OrigTable!D1026,\"00\"))","v":""},{"$f":"IF(OrigTable!D1026=\"\",\"\",ScriptText!$E$1&CHAR(10)&ScriptText!$C$1)","v":""},{"$f":"IF(OrigTable!E1026=\"\",\"\",ScriptText!$B$1&CHAR(10)&ScriptText!$D$1)","v":""},{"$f":"IF(OrigTable!E1026=\"\",\"\",TEXT(OrigTable!E1026,\"00\"))","v":""},{"$f":"IF(OrigTable!E1026=\"\",\"\",ScriptText!$E$1&CHAR(10)&ScriptText!$C$1)","v":""},{"$f":"IF(OrigTable!F1026=\"\",\"\",ScriptText!$B$1&CHAR(10)&ScriptText!$D$1)","v":""},{"$f":"IF(OrigTable!F1026=\"\",\"\",TEXT(OrigTable!F1026,\"00\"))","v":""},{"$f":"IF(OrigTable!F1026=\"\",\"\",ScriptText!$E$1&CHAR(10)&ScriptText!$C$1)","v":""},{"$f":"IF(OrigTable!G1026=\"\",\"\",ScriptText!$B$1&CHAR(10)&ScriptText!$D$1)","v":""},{"$f":"IF(OrigTable!G1026=\"\",\"\",TEXT(OrigTable!G1026,\"00\"))","v":""},{"$f":"IF(OrigTable!G1026=\"\",\"\",ScriptText!$E$1&CHAR(10)&ScriptText!$C$1)","v":""},0]
["\n\n\n",{"$f":"IF(OrigTable!A1027=\"\",\"\",ScriptText!$B$1&CHAR(10)&ScriptText!$D$1)","v":""},{"$f":"IF(OrigTable!A1027=\"\",\"\",TEXT(OrigTable!A1027,\"00\"))","v":""},{"$f":"IF(OrigTable!A1027=\"\",\"\",ScriptText!$E$1&CHAR(10)&ScriptText!$C$1)","v":""},{"$f":"IF(OrigTable!B1027=\"\",\"\",ScriptText!$B$1&CHAR(10)&ScriptText!$D$1)","v":""},{"$f":"IF(OrigTable!B1027=\"\",\"\",TEXT(OrigTable!B1027,\"00\"))","v":""},{"$f":"IF(OrigTable!B1027=\"\",\"\",ScriptText!$E$1&CHAR(10)&ScriptText!C1022)","v":""},{"$f":"IF(OrigTable!C1027=\"\",\"\",ScriptText!$B$1&CHAR(10)&ScriptText!$D$1)","v":""},{"$f":"IF(OrigTable!C1027=\"\",\"\",IF(LEN(OrigTable!C1027)>255,LEFT(OrigTable!C1027,250)&\". . .\",OrigTable!C1027))","v":""},{"$f":"IF(OrigTable!C1027=\"\",\"\",ScriptText!$E$1&CHAR(10)&ScriptText!$C$1)","v":""},{"$f":"IF(OrigTable!D1027=\"\",\"\",ScriptText!$B$1&CHAR(10)&ScriptText!$D$1)","v":""},{"$f":"IF(OrigTable!D1027=\"\",\"\",TEXT(OrigTable!D1027,\"00\"))","v":""},{"$f":"IF(OrigTable!D1027=\"\",\"\",ScriptText!$E$1&CHAR(10)&ScriptText!$C$1)","v":""},{"$f":"IF(OrigTable!E1027=\"\",\"\",ScriptText!$B$1&CHAR(10)&ScriptText!$D$1)","v":""},{"$f":"IF(OrigTable!E1027=\"\",\"\",TEXT(OrigTable!E1027,\"00\"))","v":""},{"$f":"IF(OrigTable!E1027=\"\",\"\",ScriptText!$E$1&CHAR(10)&ScriptText!$C$1)","v":""},{"$f":"IF(OrigTable!F1027=\"\",\"\",ScriptText!$B$1&CHAR(10)&ScriptText!$D$1)","v":""},{"$f":"IF(OrigTable!F1027=\"\",\"\",TEXT(OrigTable!F1027,\"00\"))","v":""},{"$f":"IF(OrigTable!F1027=\"\",\"\",ScriptText!$E$1&CHAR(10)&ScriptText!$C$1)","v":""},{"$f":"IF(OrigTable!G1027=\"\",\"\",ScriptText!$B$1&CHAR(10)&ScriptText!$D$1)","v":""},{"$f":"IF(OrigTable!G1027=\"\",\"\",TEXT(OrigTable!G1027,\"00\"))","v":""},{"$f":"IF(OrigTable!G1027=\"\",\"\",ScriptText!$E$1&CHAR(10)&ScriptText!$C$1)","v":""},0]
["\n\n\n",{"$f":"IF(OrigTable!A1028=\"\",\"\",ScriptText!$B$1&CHAR(10)&ScriptText!$D$1)","v":""},{"$f":"IF(OrigTable!A1028=\"\",\"\",TEXT(OrigTable!A1028,\"00\"))","v":""},{"$f":"IF(OrigTable!A1028=\"\",\"\",ScriptText!$E$1&CHAR(10)&ScriptText!$C$1)","v":""},{"$f":"IF(OrigTable!B1028=\"\",\"\",ScriptText!$B$1&CHAR(10)&ScriptText!$D$1)","v":""},{"$f":"IF(OrigTable!B1028=\"\",\"\",TEXT(OrigTable!B1028,\"00\"))","v":""},{"$f":"IF(OrigTable!B1028=\"\",\"\",ScriptText!$E$1&CHAR(10)&ScriptText!C1023)","v":""},{"$f":"IF(OrigTable!C1028=\"\",\"\",ScriptText!$B$1&CHAR(10)&ScriptText!$D$1)","v":""},{"$f":"IF(OrigTable!C1028=\"\",\"\",IF(LEN(OrigTable!C1028)>255,LEFT(OrigTable!C1028,250)&\". . .\",OrigTable!C1028))","v":""},{"$f":"IF(OrigTable!C1028=\"\",\"\",ScriptText!$E$1&CHAR(10)&ScriptText!$C$1)","v":""},{"$f":"IF(OrigTable!D1028=\"\",\"\",ScriptText!$B$1&CHAR(10)&ScriptText!$D$1)","v":""},{"$f":"IF(OrigTable!D1028=\"\",\"\",TEXT(OrigTable!D1028,\"00\"))","v":""},{"$f":"IF(OrigTable!D1028=\"\",\"\",ScriptText!$E$1&CHAR(10)&ScriptText!$C$1)","v":""},{"$f":"IF(OrigTable!E1028=\"\",\"\",ScriptText!$B$1&CHAR(10)&ScriptText!$D$1)","v":""},{"$f":"IF(OrigTable!E1028=\"\",\"\",TEXT(OrigTable!E1028,\"00\"))","v":""},{"$f":"IF(OrigTable!E1028=\"\",\"\",ScriptText!$E$1&CHAR(10)&ScriptText!$C$1)","v":""},{"$f":"IF(OrigTable!F1028=\"\",\"\",ScriptText!$B$1&CHAR(10)&ScriptText!$D$1)","v":""},{"$f":"IF(OrigTable!F1028=\"\",\"\",TEXT(OrigTable!F1028,\"00\"))","v":""},{"$f":"IF(OrigTable!F1028=\"\",\"\",ScriptText!$E$1&CHAR(10)&ScriptText!$C$1)","v":""},{"$f":"IF(OrigTable!G1028=\"\",\"\",ScriptText!$B$1&CHAR(10)&ScriptText!$D$1)","v":""},{"$f":"IF(OrigTable!G1028=\"\",\"\",TEXT(OrigTable!G1028,\"00\"))","v":""},{"$f":"IF(OrigTable!G1028=\"\",\"\",ScriptText!$E$1&CHAR(10)&ScriptText!$C$1)","v":""},0]
["\n\n\n",{"$f":"IF(OrigTable!A1029=\"\",\"\",ScriptText!$B$1&CHAR(10)&ScriptText!$D$1)","v":""},{"$f":"IF(OrigTable!A1029=\"\",\"\",TEXT(OrigTable!A1029,\"00\"))","v":""},{"$f":"IF(OrigTable!A1029=\"\",\"\",ScriptText!$E$1&CHAR(10)&ScriptText!$C$1)","v":""},{"$f":"IF(OrigTable!B1029=\"\",\"\",ScriptText!$B$1&CHAR(10)&ScriptText!$D$1)","v":""},{"$f":"IF(OrigTable!B1029=\"\",\"\",TEXT(OrigTable!B1029,\"00\"))","v":""},{"$f":"IF(OrigTable!B1029=\"\",\"\",ScriptText!$E$1&CHAR(10)&ScriptText!C1024)","v":""},{"$f":"IF(OrigTable!C1029=\"\",\"\",ScriptText!$B$1&CHAR(10)&ScriptText!$D$1)","v":""},{"$f":"IF(OrigTable!C1029=\"\",\"\",IF(LEN(OrigTable!C1029)>255,LEFT(OrigTable!C1029,250)&\". . .\",OrigTable!C1029))","v":""},{"$f":"IF(OrigTable!C1029=\"\",\"\",ScriptText!$E$1&CHAR(10)&ScriptText!$C$1)","v":""},{"$f":"IF(OrigTable!D1029=\"\",\"\",ScriptText!$B$1&CHAR(10)&ScriptText!$D$1)","v":""},{"$f":"IF(OrigTable!D1029=\"\",\"\",TEXT(OrigTable!D1029,\"00\"))","v":""},{"$f":"IF(OrigTable!D1029=\"\",\"\",ScriptText!$E$1&CHAR(10)&ScriptText!$C$1)","v":""},{"$f":"IF(OrigTable!E1029=\"\",\"\",ScriptText!$B$1&CHAR(10)&ScriptText!$D$1)","v":""},{"$f":"IF(OrigTable!E1029=\"\",\"\",TEXT(OrigTable!E1029,\"00\"))","v":""},{"$f":"IF(OrigTable!E1029=\"\",\"\",ScriptText!$E$1&CHAR(10)&ScriptText!$C$1)","v":""},{"$f":"IF(OrigTable!F1029=\"\",\"\",ScriptText!$B$1&CHAR(10)&ScriptText!$D$1)","v":""},{"$f":"IF(OrigTable!F1029=\"\",\"\",TEXT(OrigTable!F1029,\"00\"))","v":""},{"$f":"IF(OrigTable!F1029=\"\",\"\",ScriptText!$E$1&CHAR(10)&ScriptText!$C$1)","v":""},{"$f":"IF(OrigTable!G1029=\"\",\"\",ScriptText!$B$1&CHAR(10)&ScriptText!$D$1)","v":""},{"$f":"IF(OrigTable!G1029=\"\",\"\",TEXT(OrigTable!G1029,\"00\"))","v":""},{"$f":"IF(OrigTable!G1029=\"\",\"\",ScriptText!$E$1&CHAR(10)&ScriptText!$C$1)","v":""},0]
["\n\n\n",{"$f":"IF(OrigTable!A1030=\"\",\"\",ScriptText!$B$1&CHAR(10)&ScriptText!$D$1)","v":""},{"$f":"IF(OrigTable!A1030=\"\",\"\",TEXT(OrigTable!A1030,\"00\"))","v":""},{"$f":"IF(OrigTable!A1030=\"\",\"\",ScriptText!$E$1&CHAR(10)&ScriptText!$C$1)","v":""},{"$f":"IF(OrigTable!B1030=\"\",\"\",ScriptText!$B$1&CHAR(10)&ScriptText!$D$1)","v":""},{"$f":"IF(OrigTable!B1030=\"\",\"\",TEXT(OrigTable!B1030,\"00\"))","v":""},{"$f":"IF(OrigTable!B1030=\"\",\"\",ScriptText!$E$1&CHAR(10)&ScriptText!C1025)","v":""},{"$f":"IF(OrigTable!C1030=\"\",\"\",ScriptText!$B$1&CHAR(10)&ScriptText!$D$1)","v":""},{"$f":"IF(OrigTable!C1030=\"\",\"\",IF(LEN(OrigTable!C1030)>255,LEFT(OrigTable!C1030,250)&\". . .\",OrigTable!C1030))","v":""},{"$f":"IF(OrigTable!C1030=\"\",\"\",ScriptText!$E$1&CHAR(10)&ScriptText!$C$1)","v":""},{"$f":"IF(OrigTable!D1030=\"\",\"\",ScriptText!$B$1&CHAR(10)&ScriptText!$D$1)","v":""},{"$f":"IF(OrigTable!D1030=\"\",\"\",TEXT(OrigTable!D1030,\"00\"))","v":""},{"$f":"IF(OrigTable!D1030=\"\",\"\",ScriptText!$E$1&CHAR(10)&ScriptText!$C$1)","v":""},{"$f":"IF(OrigTable!E1030=\"\",\"\",ScriptText!$B$1&CHAR(10)&ScriptText!$D$1)","v":""},{"$f":"IF(OrigTable!E1030=\"\",\"\",TEXT(OrigTable!E1030,\"00\"))","v":""},{"$f":"IF(OrigTable!E1030=\"\",\"\",ScriptText!$E$1&CHAR(10)&ScriptText!$C$1)","v":""},{"$f":"IF(OrigTable!F1030=\"\",\"\",ScriptText!$B$1&CHAR(10)&ScriptText!$D$1)","v":""},{"$f":"IF(OrigTable!F1030=\"\",\"\",TEXT(OrigTable!F1030,\"00\"))","v":""},{"$f":"IF(OrigTable!F1030=\"\",\"\",ScriptText!$E$1&CHAR(10)&ScriptText!$C$1)","v":""},{"$f":"IF(OrigTable!G1030=\"\",\"\",ScriptText!$B$1&CHAR(10)&ScriptText!$D$1)","v":""},{"$f":"IF(OrigTable!G1030=\"\",\"\",TEXT(OrigTable!G1030,\"00\"))","v":""},{"$f":"IF(OrigTable!G1030=\"\",\"\",ScriptText!$E$1&CHAR(10)&ScriptText!$C$1)","v":""},{"$f":"IF(LEN(A1030)>3,ROW(),0)","v":0}]
["\n\n\n",{"$f":"IF(OrigTable!A1031=\"\",\"\",ScriptText!$B$1&CHAR(10)&ScriptText!$D$1)","v":""},{"$f":"IF(OrigTable!A1031=\"\",\"\",TEXT(OrigTable!A1031,\"00\"))","v":""},{"$f":"IF(OrigTable!A1031=\"\",\"\",ScriptText!$E$1&CHAR(10)&ScriptText!$C$1)","v":""},{"$f":"IF(OrigTable!B1031=\"\",\"\",ScriptText!$B$1&CHAR(10)&ScriptText!$D$1)","v":""},{"$f":"IF(OrigTable!B1031=\"\",\"\",TEXT(OrigTable!B1031,\"00\"))","v":""},{"$f":"IF(OrigTable!B1031=\"\",\"\",ScriptText!$E$1&CHAR(10)&ScriptText!C1026)","v":""},{"$f":"IF(OrigTable!C1031=\"\",\"\",ScriptText!$B$1&CHAR(10)&ScriptText!$D$1)","v":""},{"$f":"IF(OrigTable!C1031=\"\",\"\",IF(LEN(OrigTable!C1031)>255,LEFT(OrigTable!C1031,250)&\". . .\",OrigTable!C1031))","v":""},{"$f":"IF(OrigTable!C1031=\"\",\"\",ScriptText!$E$1&CHAR(10)&ScriptText!$C$1)","v":""},{"$f":"IF(OrigTable!D1031=\"\",\"\",ScriptText!$B$1&CHAR(10)&ScriptText!$D$1)","v":""},{"$f":"IF(OrigTable!D1031=\"\",\"\",TEXT(OrigTable!D1031,\"00\"))","v":""},{"$f":"IF(OrigTable!D1031=\"\",\"\",ScriptText!$E$1&CHAR(10)&ScriptText!$C$1)","v":""},{"$f":"IF(OrigTable!E1031=\"\",\"\",ScriptText!$B$1&CHAR(10)&ScriptText!$D$1)","v":""},{"$f":"IF(OrigTable!E1031=\"\",\"\",TEXT(OrigTable!E1031,\"00\"))","v":""},{"$f":"IF(OrigTable!E1031=\"\",\"\",ScriptText!$E$1&CHAR(10)&ScriptText!$C$1)","v":""},{"$f":"IF(OrigTable!F1031=\"\",\"\",ScriptText!$B$1&CHAR(10)&ScriptText!$D$1)","v":""},{"$f":"IF(OrigTable!F1031=\"\",\"\",TEXT(OrigTable!F1031,\"00\"))","v":""},{"$f":"IF(OrigTable!F1031=\"\",\"\",ScriptText!$E$1&CHAR(10)&ScriptText!$C$1)","v":""},{"$f":"IF(OrigTable!G1031=\"\",\"\",ScriptText!$B$1&CHAR(10)&ScriptText!$D$1)","v":""},{"$f":"IF(OrigTable!G1031=\"\",\"\",TEXT(OrigTable!G1031,\"00\"))","v":""},{"$f":"IF(OrigTable!G1031=\"\",\"\",ScriptText!$E$1&CHAR(10)&ScriptText!$C$1)","v":""},0]
["\n\n\n",{"$f":"IF(OrigTable!A1032=\"\",\"\",ScriptText!$B$1&CHAR(10)&ScriptText!$D$1)","v":""},{"$f":"IF(OrigTable!A1032=\"\",\"\",TEXT(OrigTable!A1032,\"00\"))","v":""},{"$f":"IF(OrigTable!A1032=\"\",\"\",ScriptText!$E$1&CHAR(10)&ScriptText!$C$1)","v":""},{"$f":"IF(OrigTable!B1032=\"\",\"\",ScriptText!$B$1&CHAR(10)&ScriptText!$D$1)","v":""},{"$f":"IF(OrigTable!B1032=\"\",\"\",TEXT(OrigTable!B1032,\"00\"))","v":""},{"$f":"IF(OrigTable!B1032=\"\",\"\",ScriptText!$E$1&CHAR(10)&ScriptText!C1027)","v":""},{"$f":"IF(OrigTable!C1032=\"\",\"\",ScriptText!$B$1&CHAR(10)&ScriptText!$D$1)","v":""},{"$f":"IF(OrigTable!C1032=\"\",\"\",IF(LEN(OrigTable!C1032)>255,LEFT(OrigTable!C1032,250)&\". . .\",OrigTable!C1032))","v":""},{"$f":"IF(OrigTable!C1032=\"\",\"\",ScriptText!$E$1&CHAR(10)&ScriptText!$C$1)","v":""},{"$f":"IF(OrigTable!D1032=\"\",\"\",ScriptText!$B$1&CHAR(10)&ScriptText!$D$1)","v":""},{"$f":"IF(OrigTable!D1032=\"\",\"\",TEXT(OrigTable!D1032,\"00\"))","v":""},{"$f":"IF(OrigTable!D1032=\"\",\"\",ScriptText!$E$1&CHAR(10)&ScriptText!$C$1)","v":""},{"$f":"IF(OrigTable!E1032=\"\",\"\",ScriptText!$B$1&CHAR(10)&ScriptText!$D$1)","v":""},{"$f":"IF(OrigTable!E1032=\"\",\"\",TEXT(OrigTable!E1032,\"00\"))","v":""},{"$f":"IF(OrigTable!E1032=\"\",\"\",ScriptText!$E$1&CHAR(10)&ScriptText!$C$1)","v":""},{"$f":"IF(OrigTable!F1032=\"\",\"\",ScriptText!$B$1&CHAR(10)&ScriptText!$D$1)","v":""},{"$f":"IF(OrigTable!F1032=\"\",\"\",TEXT(OrigTable!F1032,\"00\"))","v":""},{"$f":"IF(OrigTable!F1032=\"\",\"\",ScriptText!$E$1&CHAR(10)&ScriptText!$C$1)","v":""},{"$f":"IF(OrigTable!G1032=\"\",\"\",ScriptText!$B$1&CHAR(10)&ScriptText!$D$1)","v":""},{"$f":"IF(OrigTable!G1032=\"\",\"\",TEXT(OrigTable!G1032,\"00\"))","v":""},{"$f":"IF(OrigTable!G1032=\"\",\"\",ScriptText!$E$1&CHAR(10)&ScriptText!$C$1)","v":""},0]
[{"$f":"_xlfn.TEXTJOIN(\"\",TRUE,B1033:D1033)&CHAR(10)&_xlfn.TEXTJOIN(\"\",TRUE,E1033:G1033)&CHAR(10)&_xlfn.TEXTJOIN(\"\",TRUE,H1033:J1033)&CHAR(10)&_xlfn.TEXTJOIN(\"\",TRUE,K1033:M1033)&_xlfn.TEXTJOIN(\"\",TRUE,N1033:P1033)&_xlfn.TEXTJOIN(\"\",TRUE,Q1033:S1033)&_xlfn.TEXTJOIN(\"\",TRUE,T1033:V1033)","v":"\n\n\n"},{"$f":"IF(OrigTable!A1033=\"\",\"\",ScriptText!$B$1&CHAR(10)&ScriptText!$D$1)","v":""},{"$f":"IF(OrigTable!A1033=\"\",\"\",TEXT(OrigTable!A1033,\"00\"))","v":""},{"$f":"IF(OrigTable!A1033=\"\",\"\",ScriptText!$E$1&CHAR(10)&ScriptText!$C$1)","v":""},{"$f":"IF(OrigTable!B1033=\"\",\"\",ScriptText!$B$1&CHAR(10)&ScriptText!$D$1)","v":""},{"$f":"IF(OrigTable!B1033=\"\",\"\",TEXT(OrigTable!B1033,\"00\"))","v":""},{"$f":"IF(OrigTable!B1033=\"\",\"\",ScriptText!$E$1&CHAR(10)&ScriptText!C1028)","v":""},{"$f":"IF(OrigTable!C1033=\"\",\"\",ScriptText!$B$1&CHAR(10)&ScriptText!$D$1)","v":""},{"$f":"IF(OrigTable!C1033=\"\",\"\",IF(LEN(OrigTable!C1033)>255,LEFT(OrigTable!C1033,250)&\". . .\",OrigTable!C1033))","v":""},{"$f":"IF(OrigTable!C1033=\"\",\"\",ScriptText!$E$1&CHAR(10)&ScriptText!$C$1)","v":""},{"$f":"IF(OrigTable!D1033=\"\",\"\",ScriptText!$B$1&CHAR(10)&ScriptText!$D$1)","v":""},{"$f":"IF(OrigTable!D1033=\"\",\"\",TEXT(OrigTable!D1033,\"00\"))","v":""},{"$f":"IF(OrigTable!D1033=\"\",\"\",ScriptText!$E$1&CHAR(10)&ScriptText!$C$1)","v":""},{"$f":"IF(OrigTable!E1033=\"\",\"\",ScriptText!$B$1&CHAR(10)&ScriptText!$D$1)","v":""},{"$f":"IF(OrigTable!E1033=\"\",\"\",TEXT(OrigTable!E1033,\"00\"))","v":""},{"$f":"IF(OrigTable!E1033=\"\",\"\",ScriptText!$E$1&CHAR(10)&ScriptText!$C$1)","v":""},{"$f":"IF(OrigTable!F1033=\"\",\"\",ScriptText!$B$1&CHAR(10)&ScriptText!$D$1)","v":""},{"$f":"IF(OrigTable!F1033=\"\",\"\",TEXT(OrigTable!F1033,\"00\"))","v":""},{"$f":"IF(OrigTable!F1033=\"\",\"\",ScriptText!$E$1&CHAR(10)&ScriptText!$C$1)","v":""},{"$f":"IF(OrigTable!G1033=\"\",\"\",ScriptText!$B$1&CHAR(10)&ScriptText!$D$1)","v":""},{"$f":"IF(OrigTable!G1033=\"\",\"\",TEXT(OrigTable!G1033,\"00\"))","v":""},{"$f":"IF(OrigTable!G1033=\"\",\"\",ScriptText!$E$1&CHAR(10)&ScriptText!$C$1)","v":""},0]
["\n\n\n",{"$f":"IF(OrigTable!A1034=\"\",\"\",ScriptText!$B$1&CHAR(10)&ScriptText!$D$1)","v":""},{"$f":"IF(OrigTable!A1034=\"\",\"\",TEXT(OrigTable!A1034,\"00\"))","v":""},{"$f":"IF(OrigTable!A1034=\"\",\"\",ScriptText!$E$1&CHAR(10)&ScriptText!$C$1)","v":""},{"$f":"IF(OrigTable!B1034=\"\",\"\",ScriptText!$B$1&CHAR(10)&ScriptText!$D$1)","v":""},{"$f":"IF(OrigTable!B1034=\"\",\"\",TEXT(OrigTable!B1034,\"00\"))","v":""},{"$f":"IF(OrigTable!B1034=\"\",\"\",ScriptText!$E$1&CHAR(10)&ScriptText!C1029)","v":""},{"$f":"IF(OrigTable!C1034=\"\",\"\",ScriptText!$B$1&CHAR(10)&ScriptText!$D$1)","v":""},{"$f":"IF(OrigTable!C1034=\"\",\"\",IF(LEN(OrigTable!C1034)>255,LEFT(OrigTable!C1034,250)&\". . .\",OrigTable!C1034))","v":""},{"$f":"IF(OrigTable!C1034=\"\",\"\",ScriptText!$E$1&CHAR(10)&ScriptText!$C$1)","v":""},{"$f":"IF(OrigTable!D1034=\"\",\"\",ScriptText!$B$1&CHAR(10)&ScriptText!$D$1)","v":""},{"$f":"IF(OrigTable!D1034=\"\",\"\",TEXT(OrigTable!D1034,\"00\"))","v":""},{"$f":"IF(OrigTable!D1034=\"\",\"\",ScriptText!$E$1&CHAR(10)&ScriptText!$C$1)","v":""},{"$f":"IF(OrigTable!E1034=\"\",\"\",ScriptText!$B$1&CHAR(10)&ScriptText!$D$1)","v":""},{"$f":"IF(OrigTable!E1034=\"\",\"\",TEXT(OrigTable!E1034,\"00\"))","v":""},{"$f":"IF(OrigTable!E1034=\"\",\"\",ScriptText!$E$1&CHAR(10)&ScriptText!$C$1)","v":""},{"$f":"IF(OrigTable!F1034=\"\",\"\",ScriptText!$B$1&CHAR(10)&ScriptText!$D$1)","v":""},{"$f":"IF(OrigTable!F1034=\"\",\"\",TEXT(OrigTable!F1034,\"00\"))","v":""},{"$f":"IF(OrigTable!F1034=\"\",\"\",ScriptText!$E$1&CHAR(10)&ScriptText!$C$1)","v":""},{"$f":"IF(OrigTable!G1034=\"\",\"\",ScriptText!$B$1&CHAR(10)&ScriptText!$D$1)","v":""},{"$f":"IF(OrigTable!G1034=\"\",\"\",TEXT(OrigTable!G1034,\"00\"))","v":""},{"$f":"IF(OrigTable!G1034=\"\",\"\",ScriptText!$E$1&CHAR(10)&ScriptText!$C$1)","v":""},0]
["\n\n\n",{"$f":"IF(OrigTable!A1035=\"\",\"\",ScriptText!$B$1&CHAR(10)&ScriptText!$D$1)","v":""},{"$f":"IF(OrigTable!A1035=\"\",\"\",TEXT(OrigTable!A1035,\"00\"))","v":""},{"$f":"IF(OrigTable!A1035=\"\",\"\",ScriptText!$E$1&CHAR(10)&ScriptText!$C$1)","v":""},{"$f":"IF(OrigTable!B1035=\"\",\"\",ScriptText!$B$1&CHAR(10)&ScriptText!$D$1)","v":""},{"$f":"IF(OrigTable!B1035=\"\",\"\",TEXT(OrigTable!B1035,\"00\"))","v":""},{"$f":"IF(OrigTable!B1035=\"\",\"\",ScriptText!$E$1&CHAR(10)&ScriptText!C1030)","v":""},{"$f":"IF(OrigTable!C1035=\"\",\"\",ScriptText!$B$1&CHAR(10)&ScriptText!$D$1)","v":""},{"$f":"IF(OrigTable!C1035=\"\",\"\",IF(LEN(OrigTable!C1035)>255,LEFT(OrigTable!C1035,250)&\". . .\",OrigTable!C1035))","v":""},{"$f":"IF(OrigTable!C1035=\"\",\"\",ScriptText!$E$1&CHAR(10)&ScriptText!$C$1)","v":""},{"$f":"IF(OrigTable!D1035=\"\",\"\",ScriptText!$B$1&CHAR(10)&ScriptText!$D$1)","v":""},{"$f":"IF(OrigTable!D1035=\"\",\"\",TEXT(OrigTable!D1035,\"00\"))","v":""},{"$f":"IF(OrigTable!D1035=\"\",\"\",ScriptText!$E$1&CHAR(10)&ScriptText!$C$1)","v":""},{"$f":"IF(OrigTable!E1035=\"\",\"\",ScriptText!$B$1&CHAR(10)&ScriptText!$D$1)","v":""},{"$f":"IF(OrigTable!E1035=\"\",\"\",TEXT(OrigTable!E1035,\"00\"))","v":""},{"$f":"IF(OrigTable!E1035=\"\",\"\",ScriptText!$E$1&CHAR(10)&ScriptText!$C$1)","v":""},{"$f":"IF(OrigTable!F1035=\"\",\"\",ScriptText!$B$1&CHAR(10)&ScriptText!$D$1)","v":""},{"$f":"IF(OrigTable!F1035=\"\",\"\",TEXT(OrigTable!F1035,\"00\"))","v":""},{"$f":"IF(OrigTable!F1035=\"\",\"\",ScriptText!$E$1&CHAR(10)&ScriptText!$C$1)","v":""},{"$f":"IF(OrigTable!G1035=\"\",\"\",ScriptText!$B$1&CHAR(10)&ScriptText!$D$1)","v":""},{"$f":"IF(OrigTable!G1035=\"\",\"\",TEXT(OrigTable!G1035,\"00\"))","v":""},{"$f":"IF(OrigTable!G1035=\"\",\"\",ScriptText!$E$1&CHAR(10)&ScriptText!$C$1)","v":""},0]
["\n\n\n",{"$f":"IF(OrigTable!A1036=\"\",\"\",ScriptText!$B$1&CHAR(10)&ScriptText!$D$1)","v":""},{"$f":"IF(OrigTable!A1036=\"\",\"\",TEXT(OrigTable!A1036,\"00\"))","v":""},{"$f":"IF(OrigTable!A1036=\"\",\"\",ScriptText!$E$1&CHAR(10)&ScriptText!$C$1)","v":""},{"$f":"IF(OrigTable!B1036=\"\",\"\",ScriptText!$B$1&CHAR(10)&ScriptText!$D$1)","v":""},{"$f":"IF(OrigTable!B1036=\"\",\"\",TEXT(OrigTable!B1036,\"00\"))","v":""},{"$f":"IF(OrigTable!B1036=\"\",\"\",ScriptText!$E$1&CHAR(10)&ScriptText!C1031)","v":""},{"$f":"IF(OrigTable!C1036=\"\",\"\",ScriptText!$B$1&CHAR(10)&ScriptText!$D$1)","v":""},{"$f":"IF(OrigTable!C1036=\"\",\"\",IF(LEN(OrigTable!C1036)>255,LEFT(OrigTable!C1036,250)&\". . .\",OrigTable!C1036))","v":""},{"$f":"IF(OrigTable!C1036=\"\",\"\",ScriptText!$E$1&CHAR(10)&ScriptText!$C$1)","v":""},{"$f":"IF(OrigTable!D1036=\"\",\"\",ScriptText!$B$1&CHAR(10)&ScriptText!$D$1)","v":""},{"$f":"IF(OrigTable!D1036=\"\",\"\",TEXT(OrigTable!D1036,\"00\"))","v":""},{"$f":"IF(OrigTable!D1036=\"\",\"\",ScriptText!$E$1&CHAR(10)&ScriptText!$C$1)","v":""},{"$f":"IF(OrigTable!E1036=\"\",\"\",ScriptText!$B$1&CHAR(10)&ScriptText!$D$1)","v":""},{"$f":"IF(OrigTable!E1036=\"\",\"\",TEXT(OrigTable!E1036,\"00\"))","v":""},{"$f":"IF(OrigTable!E1036=\"\",\"\",ScriptText!$E$1&CHAR(10)&ScriptText!$C$1)","v":""},{"$f":"IF(OrigTable!F1036=\"\",\"\",ScriptText!$B$1&CHAR(10)&ScriptText!$D$1)","v":""},{"$f":"IF(OrigTable!F1036=\"\",\"\",TEXT(OrigTable!F1036,\"00\"))","v":""},{"$f":"IF(OrigTable!F1036=\"\",\"\",ScriptText!$E$1&CHAR(10)&ScriptText!$C$1)","v":""},{"$f":"IF(OrigTable!G1036=\"\",\"\",ScriptText!$B$1&CHAR(10)&ScriptText!$D$1)","v":""},{"$f":"IF(OrigTable!G1036=\"\",\"\",TEXT(OrigTable!G1036,\"00\"))","v":""},{"$f":"IF(OrigTable!G1036=\"\",\"\",ScriptText!$E$1&CHAR(10)&ScriptText!$C$1)","v":""},0]
["\n\n\n",{"$f":"IF(OrigTable!A1037=\"\",\"\",ScriptText!$B$1&CHAR(10)&ScriptText!$D$1)","v":""},{"$f":"IF(OrigTable!A1037=\"\",\"\",TEXT(OrigTable!A1037,\"00\"))","v":""},{"$f":"IF(OrigTable!A1037=\"\",\"\",ScriptText!$E$1&CHAR(10)&ScriptText!$C$1)","v":""},{"$f":"IF(OrigTable!B1037=\"\",\"\",ScriptText!$B$1&CHAR(10)&ScriptText!$D$1)","v":""},{"$f":"IF(OrigTable!B1037=\"\",\"\",TEXT(OrigTable!B1037,\"00\"))","v":""},{"$f":"IF(OrigTable!B1037=\"\",\"\",ScriptText!$E$1&CHAR(10)&ScriptText!C1032)","v":""},{"$f":"IF(OrigTable!C1037=\"\",\"\",ScriptText!$B$1&CHAR(10)&ScriptText!$D$1)","v":""},{"$f":"IF(OrigTable!C1037=\"\",\"\",IF(LEN(OrigTable!C1037)>255,LEFT(OrigTable!C1037,250)&\". . .\",OrigTable!C1037))","v":""},{"$f":"IF(OrigTable!C1037=\"\",\"\",ScriptText!$E$1&CHAR(10)&ScriptText!$C$1)","v":""},{"$f":"IF(OrigTable!D1037=\"\",\"\",ScriptText!$B$1&CHAR(10)&ScriptText!$D$1)","v":""},{"$f":"IF(OrigTable!D1037=\"\",\"\",TEXT(OrigTable!D1037,\"00\"))","v":""},{"$f":"IF(OrigTable!D1037=\"\",\"\",ScriptText!$E$1&CHAR(10)&ScriptText!$C$1)","v":""},{"$f":"IF(OrigTable!E1037=\"\",\"\",ScriptText!$B$1&CHAR(10)&ScriptText!$D$1)","v":""},{"$f":"IF(OrigTable!E1037=\"\",\"\",TEXT(OrigTable!E1037,\"00\"))","v":""},{"$f":"IF(OrigTable!E1037=\"\",\"\",ScriptText!$E$1&CHAR(10)&ScriptText!$C$1)","v":""},{"$f":"IF(OrigTable!F1037=\"\",\"\",ScriptText!$B$1&CHAR(10)&ScriptText!$D$1)","v":""},{"$f":"IF(OrigTable!F1037=\"\",\"\",TEXT(OrigTable!F1037,\"00\"))","v":""},{"$f":"IF(OrigTable!F1037=\"\",\"\",ScriptText!$E$1&CHAR(10)&ScriptText!$C$1)","v":""},{"$f":"IF(OrigTable!G1037=\"\",\"\",ScriptText!$B$1&CHAR(10)&ScriptText!$D$1)","v":""},{"$f":"IF(OrigTable!G1037=\"\",\"\",TEXT(OrigTable!G1037,\"00\"))","v":""},{"$f":"IF(OrigTable!G1037=\"\",\"\",ScriptText!$E$1&CHAR(10)&ScriptText!$C$1)","v":""},0]
["\n\n\n",{"$f":"IF(OrigTable!A1038=\"\",\"\",ScriptText!$B$1&CHAR(10)&ScriptText!$D$1)","v":""},{"$f":"IF(OrigTable!A1038=\"\",\"\",TEXT(OrigTable!A1038,\"00\"))","v":""},{"$f":"IF(OrigTable!A1038=\"\",\"\",ScriptText!$E$1&CHAR(10)&ScriptText!$C$1)","v":""},{"$f":"IF(OrigTable!B1038=\"\",\"\",ScriptText!$B$1&CHAR(10)&ScriptText!$D$1)","v":""},{"$f":"IF(OrigTable!B1038=\"\",\"\",TEXT(OrigTable!B1038,\"00\"))","v":""},{"$f":"IF(OrigTable!B1038=\"\",\"\",ScriptText!$E$1&CHAR(10)&ScriptText!C1033)","v":""},{"$f":"IF(OrigTable!C1038=\"\",\"\",ScriptText!$B$1&CHAR(10)&ScriptText!$D$1)","v":""},{"$f":"IF(OrigTable!C1038=\"\",\"\",IF(LEN(OrigTable!C1038)>255,LEFT(OrigTable!C1038,250)&\". . .\",OrigTable!C1038))","v":""},{"$f":"IF(OrigTable!C1038=\"\",\"\",ScriptText!$E$1&CHAR(10)&ScriptText!$C$1)","v":""},{"$f":"IF(OrigTable!D1038=\"\",\"\",ScriptText!$B$1&CHAR(10)&ScriptText!$D$1)","v":""},{"$f":"IF(OrigTable!D1038=\"\",\"\",TEXT(OrigTable!D1038,\"00\"))","v":""},{"$f":"IF(OrigTable!D1038=\"\",\"\",ScriptText!$E$1&CHAR(10)&ScriptText!$C$1)","v":""},{"$f":"IF(OrigTable!E1038=\"\",\"\",ScriptText!$B$1&CHAR(10)&ScriptText!$D$1)","v":""},{"$f":"IF(OrigTable!E1038=\"\",\"\",TEXT(OrigTable!E1038,\"00\"))","v":""},{"$f":"IF(OrigTable!E1038=\"\",\"\",ScriptText!$E$1&CHAR(10)&ScriptText!$C$1)","v":""},{"$f":"IF(OrigTable!F1038=\"\",\"\",ScriptText!$B$1&CHAR(10)&ScriptText!$D$1)","v":""},{"$f":"IF(OrigTable!F1038=\"\",\"\",TEXT(OrigTable!F1038,\"00\"))","v":""},{"$f":"IF(OrigTable!F1038=\"\",\"\",ScriptText!$E$1&CHAR(10)&ScriptText!$C$1)","v":""},{"$f":"IF(OrigTable!G1038=\"\",\"\",ScriptText!$B$1&CHAR(10)&ScriptText!$D$1)","v":""},{"$f":"IF(OrigTable!G1038=\"\",\"\",TEXT(OrigTable!G1038,\"00\"))","v":""},{"$f":"IF(OrigTable!G1038=\"\",\"\",ScriptText!$E$1&CHAR(10)&ScriptText!$C$1)","v":""},0]
["\n\n\n",{"$f":"IF(OrigTable!A1039=\"\",\"\",ScriptText!$B$1&CHAR(10)&ScriptText!$D$1)","v":""},{"$f":"IF(OrigTable!A1039=\"\",\"\",TEXT(OrigTable!A1039,\"00\"))","v":""},{"$f":"IF(OrigTable!A1039=\"\",\"\",ScriptText!$E$1&CHAR(10)&ScriptText!$C$1)","v":""},{"$f":"IF(OrigTable!B1039=\"\",\"\",ScriptText!$B$1&CHAR(10)&ScriptText!$D$1)","v":""},{"$f":"IF(OrigTable!B1039=\"\",\"\",TEXT(OrigTable!B1039,\"00\"))","v":""},{"$f":"IF(OrigTable!B1039=\"\",\"\",ScriptText!$E$1&CHAR(10)&ScriptText!C1034)","v":""},{"$f":"IF(OrigTable!C1039=\"\",\"\",ScriptText!$B$1&CHAR(10)&ScriptText!$D$1)","v":""},{"$f":"IF(OrigTable!C1039=\"\",\"\",IF(LEN(OrigTable!C1039)>255,LEFT(OrigTable!C1039,250)&\". . .\",OrigTable!C1039))","v":""},{"$f":"IF(OrigTable!C1039=\"\",\"\",ScriptText!$E$1&CHAR(10)&ScriptText!$C$1)","v":""},{"$f":"IF(OrigTable!D1039=\"\",\"\",ScriptText!$B$1&CHAR(10)&ScriptText!$D$1)","v":""},{"$f":"IF(OrigTable!D1039=\"\",\"\",TEXT(OrigTable!D1039,\"00\"))","v":""},{"$f":"IF(OrigTable!D1039=\"\",\"\",ScriptText!$E$1&CHAR(10)&ScriptText!$C$1)","v":""},{"$f":"IF(OrigTable!E1039=\"\",\"\",ScriptText!$B$1&CHAR(10)&ScriptText!$D$1)","v":""},{"$f":"IF(OrigTable!E1039=\"\",\"\",TEXT(OrigTable!E1039,\"00\"))","v":""},{"$f":"IF(OrigTable!E1039=\"\",\"\",ScriptText!$E$1&CHAR(10)&ScriptText!$C$1)","v":""},{"$f":"IF(OrigTable!F1039=\"\",\"\",ScriptText!$B$1&CHAR(10)&ScriptText!$D$1)","v":""},{"$f":"IF(OrigTable!F1039=\"\",\"\",TEXT(OrigTable!F1039,\"00\"))","v":""},{"$f":"IF(OrigTable!F1039=\"\",\"\",ScriptText!$E$1&CHAR(10)&ScriptText!$C$1)","v":""},{"$f":"IF(OrigTable!G1039=\"\",\"\",ScriptText!$B$1&CHAR(10)&ScriptText!$D$1)","v":""},{"$f":"IF(OrigTable!G1039=\"\",\"\",TEXT(OrigTable!G1039,\"00\"))","v":""},{"$f":"IF(OrigTable!G1039=\"\",\"\",ScriptText!$E$1&CHAR(10)&ScriptText!$C$1)","v":""},0]
["\n\n\n",{"$f":"IF(OrigTable!A1040=\"\",\"\",ScriptText!$B$1&CHAR(10)&ScriptText!$D$1)","v":""},{"$f":"IF(OrigTable!A1040=\"\",\"\",TEXT(OrigTable!A1040,\"00\"))","v":""},{"$f":"IF(OrigTable!A1040=\"\",\"\",ScriptText!$E$1&CHAR(10)&ScriptText!$C$1)","v":""},{"$f":"IF(OrigTable!B1040=\"\",\"\",ScriptText!$B$1&CHAR(10)&ScriptText!$D$1)","v":""},{"$f":"IF(OrigTable!B1040=\"\",\"\",TEXT(OrigTable!B1040,\"00\"))","v":""},{"$f":"IF(OrigTable!B1040=\"\",\"\",ScriptText!$E$1&CHAR(10)&ScriptText!C1035)","v":""},{"$f":"IF(OrigTable!C1040=\"\",\"\",ScriptText!$B$1&CHAR(10)&ScriptText!$D$1)","v":""},{"$f":"IF(OrigTable!C1040=\"\",\"\",IF(LEN(OrigTable!C1040)>255,LEFT(OrigTable!C1040,250)&\". . .\",OrigTable!C1040))","v":""},{"$f":"IF(OrigTable!C1040=\"\",\"\",ScriptText!$E$1&CHAR(10)&ScriptText!$C$1)","v":""},{"$f":"IF(OrigTable!D1040=\"\",\"\",ScriptText!$B$1&CHAR(10)&ScriptText!$D$1)","v":""},{"$f":"IF(OrigTable!D1040=\"\",\"\",TEXT(OrigTable!D1040,\"00\"))","v":""},{"$f":"IF(OrigTable!D1040=\"\",\"\",ScriptText!$E$1&CHAR(10)&ScriptText!$C$1)","v":""},{"$f":"IF(OrigTable!E1040=\"\",\"\",ScriptText!$B$1&CHAR(10)&ScriptText!$D$1)","v":""},{"$f":"IF(OrigTable!E1040=\"\",\"\",TEXT(OrigTable!E1040,\"00\"))","v":""},{"$f":"IF(OrigTable!E1040=\"\",\"\",ScriptText!$E$1&CHAR(10)&ScriptText!$C$1)","v":""},{"$f":"IF(OrigTable!F1040=\"\",\"\",ScriptText!$B$1&CHAR(10)&ScriptText!$D$1)","v":""},{"$f":"IF(OrigTable!F1040=\"\",\"\",TEXT(OrigTable!F1040,\"00\"))","v":""},{"$f":"IF(OrigTable!F1040=\"\",\"\",ScriptText!$E$1&CHAR(10)&ScriptText!$C$1)","v":""},{"$f":"IF(OrigTable!G1040=\"\",\"\",ScriptText!$B$1&CHAR(10)&ScriptText!$D$1)","v":""},{"$f":"IF(OrigTable!G1040=\"\",\"\",TEXT(OrigTable!G1040,\"00\"))","v":""},{"$f":"IF(OrigTable!G1040=\"\",\"\",ScriptText!$E$1&CHAR(10)&ScriptText!$C$1)","v":""},0]
["\n\n\n",{"$f":"IF(OrigTable!A1041=\"\",\"\",ScriptText!$B$1&CHAR(10)&ScriptText!$D$1)","v":""},{"$f":"IF(OrigTable!A1041=\"\",\"\",TEXT(OrigTable!A1041,\"00\"))","v":""},{"$f":"IF(OrigTable!A1041=\"\",\"\",ScriptText!$E$1&CHAR(10)&ScriptText!$C$1)","v":""},{"$f":"IF(OrigTable!B1041=\"\",\"\",ScriptText!$B$1&CHAR(10)&ScriptText!$D$1)","v":""},{"$f":"IF(OrigTable!B1041=\"\",\"\",TEXT(OrigTable!B1041,\"00\"))","v":""},{"$f":"IF(OrigTable!B1041=\"\",\"\",ScriptText!$E$1&CHAR(10)&ScriptText!C1036)","v":""},{"$f":"IF(OrigTable!C1041=\"\",\"\",ScriptText!$B$1&CHAR(10)&ScriptText!$D$1)","v":""},{"$f":"IF(OrigTable!C1041=\"\",\"\",IF(LEN(OrigTable!C1041)>255,LEFT(OrigTable!C1041,250)&\". . .\",OrigTable!C1041))","v":""},{"$f":"IF(OrigTable!C1041=\"\",\"\",ScriptText!$E$1&CHAR(10)&ScriptText!$C$1)","v":""},{"$f":"IF(OrigTable!D1041=\"\",\"\",ScriptText!$B$1&CHAR(10)&ScriptText!$D$1)","v":""},{"$f":"IF(OrigTable!D1041=\"\",\"\",TEXT(OrigTable!D1041,\"00\"))","v":""},{"$f":"IF(OrigTable!D1041=\"\",\"\",ScriptText!$E$1&CHAR(10)&ScriptText!$C$1)","v":""},{"$f":"IF(OrigTable!E1041=\"\",\"\",ScriptText!$B$1&CHAR(10)&ScriptText!$D$1)","v":""},{"$f":"IF(OrigTable!E1041=\"\",\"\",TEXT(OrigTable!E1041,\"00\"))","v":""},{"$f":"IF(OrigTable!E1041=\"\",\"\",ScriptText!$E$1&CHAR(10)&ScriptText!$C$1)","v":""},{"$f":"IF(OrigTable!F1041=\"\",\"\",ScriptText!$B$1&CHAR(10)&ScriptText!$D$1)","v":""},{"$f":"IF(OrigTable!F1041=\"\",\"\",TEXT(OrigTable!F1041,\"00\"))","v":""},{"$f":"IF(OrigTable!F1041=\"\",\"\",ScriptText!$E$1&CHAR(10)&ScriptText!$C$1)","v":""},{"$f":"IF(OrigTable!G1041=\"\",\"\",ScriptText!$B$1&CHAR(10)&ScriptText!$D$1)","v":""},{"$f":"IF(OrigTable!G1041=\"\",\"\",TEXT(OrigTable!G1041,\"00\"))","v":""},{"$f":"IF(OrigTable!G1041=\"\",\"\",ScriptText!$E$1&CHAR(10)&ScriptText!$C$1)","v":""},0]
["\n\n\n",{"$f":"IF(OrigTable!A1042=\"\",\"\",ScriptText!$B$1&CHAR(10)&ScriptText!$D$1)","v":""},{"$f":"IF(OrigTable!A1042=\"\",\"\",TEXT(OrigTable!A1042,\"00\"))","v":""},{"$f":"IF(OrigTable!A1042=\"\",\"\",ScriptText!$E$1&CHAR(10)&ScriptText!$C$1)","v":""},{"$f":"IF(OrigTable!B1042=\"\",\"\",ScriptText!$B$1&CHAR(10)&ScriptText!$D$1)","v":""},{"$f":"IF(OrigTable!B1042=\"\",\"\",TEXT(OrigTable!B1042,\"00\"))","v":""},{"$f":"IF(OrigTable!B1042=\"\",\"\",ScriptText!$E$1&CHAR(10)&ScriptText!C1037)","v":""},{"$f":"IF(OrigTable!C1042=\"\",\"\",ScriptText!$B$1&CHAR(10)&ScriptText!$D$1)","v":""},{"$f":"IF(OrigTable!C1042=\"\",\"\",IF(LEN(OrigTable!C1042)>255,LEFT(OrigTable!C1042,250)&\". . .\",OrigTable!C1042))","v":""},{"$f":"IF(OrigTable!C1042=\"\",\"\",ScriptText!$E$1&CHAR(10)&ScriptText!$C$1)","v":""},{"$f":"IF(OrigTable!D1042=\"\",\"\",ScriptText!$B$1&CHAR(10)&ScriptText!$D$1)","v":""},{"$f":"IF(OrigTable!D1042=\"\",\"\",TEXT(OrigTable!D1042,\"00\"))","v":""},{"$f":"IF(OrigTable!D1042=\"\",\"\",ScriptText!$E$1&CHAR(10)&ScriptText!$C$1)","v":""},{"$f":"IF(OrigTable!E1042=\"\",\"\",ScriptText!$B$1&CHAR(10)&ScriptText!$D$1)","v":""},{"$f":"IF(OrigTable!E1042=\"\",\"\",TEXT(OrigTable!E1042,\"00\"))","v":""},{"$f":"IF(OrigTable!E1042=\"\",\"\",ScriptText!$E$1&CHAR(10)&ScriptText!$C$1)","v":""},{"$f":"IF(OrigTable!F1042=\"\",\"\",ScriptText!$B$1&CHAR(10)&ScriptText!$D$1)","v":""},{"$f":"IF(OrigTable!F1042=\"\",\"\",TEXT(OrigTable!F1042,\"00\"))","v":""},{"$f":"IF(OrigTable!F1042=\"\",\"\",ScriptText!$E$1&CHAR(10)&ScriptText!$C$1)","v":""},{"$f":"IF(OrigTable!G1042=\"\",\"\",ScriptText!$B$1&CHAR(10)&ScriptText!$D$1)","v":""},{"$f":"IF(OrigTable!G1042=\"\",\"\",TEXT(OrigTable!G1042,\"00\"))","v":""},{"$f":"IF(OrigTable!G1042=\"\",\"\",ScriptText!$E$1&CHAR(10)&ScriptText!$C$1)","v":""},0]
["\n\n\n",{"$f":"IF(OrigTable!A1043=\"\",\"\",ScriptText!$B$1&CHAR(10)&ScriptText!$D$1)","v":""},{"$f":"IF(OrigTable!A1043=\"\",\"\",TEXT(OrigTable!A1043,\"00\"))","v":""},{"$f":"IF(OrigTable!A1043=\"\",\"\",ScriptText!$E$1&CHAR(10)&ScriptText!$C$1)","v":""},{"$f":"IF(OrigTable!B1043=\"\",\"\",ScriptText!$B$1&CHAR(10)&ScriptText!$D$1)","v":""},{"$f":"IF(OrigTable!B1043=\"\",\"\",TEXT(OrigTable!B1043,\"00\"))","v":""},{"$f":"IF(OrigTable!B1043=\"\",\"\",ScriptText!$E$1&CHAR(10)&ScriptText!C1038)","v":""},{"$f":"IF(OrigTable!C1043=\"\",\"\",ScriptText!$B$1&CHAR(10)&ScriptText!$D$1)","v":""},{"$f":"IF(OrigTable!C1043=\"\",\"\",IF(LEN(OrigTable!C1043)>255,LEFT(OrigTable!C1043,250)&\". . .\",OrigTable!C1043))","v":""},{"$f":"IF(OrigTable!C1043=\"\",\"\",ScriptText!$E$1&CHAR(10)&ScriptText!$C$1)","v":""},{"$f":"IF(OrigTable!D1043=\"\",\"\",ScriptText!$B$1&CHAR(10)&ScriptText!$D$1)","v":""},{"$f":"IF(OrigTable!D1043=\"\",\"\",TEXT(OrigTable!D1043,\"00\"))","v":""},{"$f":"IF(OrigTable!D1043=\"\",\"\",ScriptText!$E$1&CHAR(10)&ScriptText!$C$1)","v":""},{"$f":"IF(OrigTable!E1043=\"\",\"\",ScriptText!$B$1&CHAR(10)&ScriptText!$D$1)","v":""},{"$f":"IF(OrigTable!E1043=\"\",\"\",TEXT(OrigTable!E1043,\"00\"))","v":""},{"$f":"IF(OrigTable!E1043=\"\",\"\",ScriptText!$E$1&CHAR(10)&ScriptText!$C$1)","v":""},{"$f":"IF(OrigTable!F1043=\"\",\"\",ScriptText!$B$1&CHAR(10)&ScriptText!$D$1)","v":""},{"$f":"IF(OrigTable!F1043=\"\",\"\",TEXT(OrigTable!F1043,\"00\"))","v":""},{"$f":"IF(OrigTable!F1043=\"\",\"\",ScriptText!$E$1&CHAR(10)&ScriptText!$C$1)","v":""},{"$f":"IF(OrigTable!G1043=\"\",\"\",ScriptText!$B$1&CHAR(10)&ScriptText!$D$1)","v":""},{"$f":"IF(OrigTable!G1043=\"\",\"\",TEXT(OrigTable!G1043,\"00\"))","v":""},{"$f":"IF(OrigTable!G1043=\"\",\"\",ScriptText!$E$1&CHAR(10)&ScriptText!$C$1)","v":""},0]
["\n\n\n",{"$f":"IF(OrigTable!A1044=\"\",\"\",ScriptText!$B$1&CHAR(10)&ScriptText!$D$1)","v":""},{"$f":"IF(OrigTable!A1044=\"\",\"\",TEXT(OrigTable!A1044,\"00\"))","v":""},{"$f":"IF(OrigTable!A1044=\"\",\"\",ScriptText!$E$1&CHAR(10)&ScriptText!$C$1)","v":""},{"$f":"IF(OrigTable!B1044=\"\",\"\",ScriptText!$B$1&CHAR(10)&ScriptText!$D$1)","v":""},{"$f":"IF(OrigTable!B1044=\"\",\"\",TEXT(OrigTable!B1044,\"00\"))","v":""},{"$f":"IF(OrigTable!B1044=\"\",\"\",ScriptText!$E$1&CHAR(10)&ScriptText!C1039)","v":""},{"$f":"IF(OrigTable!C1044=\"\",\"\",ScriptText!$B$1&CHAR(10)&ScriptText!$D$1)","v":""},{"$f":"IF(OrigTable!C1044=\"\",\"\",IF(LEN(OrigTable!C1044)>255,LEFT(OrigTable!C1044,250)&\". . .\",OrigTable!C1044))","v":""},{"$f":"IF(OrigTable!C1044=\"\",\"\",ScriptText!$E$1&CHAR(10)&ScriptText!$C$1)","v":""},{"$f":"IF(OrigTable!D1044=\"\",\"\",ScriptText!$B$1&CHAR(10)&ScriptText!$D$1)","v":""},{"$f":"IF(OrigTable!D1044=\"\",\"\",TEXT(OrigTable!D1044,\"00\"))","v":""},{"$f":"IF(OrigTable!D1044=\"\",\"\",ScriptText!$E$1&CHAR(10)&ScriptText!$C$1)","v":""},{"$f":"IF(OrigTable!E1044=\"\",\"\",ScriptText!$B$1&CHAR(10)&ScriptText!$D$1)","v":""},{"$f":"IF(OrigTable!E1044=\"\",\"\",TEXT(OrigTable!E1044,\"00\"))","v":""},{"$f":"IF(OrigTable!E1044=\"\",\"\",ScriptText!$E$1&CHAR(10)&ScriptText!$C$1)","v":""},{"$f":"IF(OrigTable!F1044=\"\",\"\",ScriptText!$B$1&CHAR(10)&ScriptText!$D$1)","v":""},{"$f":"IF(OrigTable!F1044=\"\",\"\",TEXT(OrigTable!F1044,\"00\"))","v":""},{"$f":"IF(OrigTable!F1044=\"\",\"\",ScriptText!$E$1&CHAR(10)&ScriptText!$C$1)","v":""},{"$f":"IF(OrigTable!G1044=\"\",\"\",ScriptText!$B$1&CHAR(10)&ScriptText!$D$1)","v":""},{"$f":"IF(OrigTable!G1044=\"\",\"\",TEXT(OrigTable!G1044,\"00\"))","v":""},{"$f":"IF(OrigTable!G1044=\"\",\"\",ScriptText!$E$1&CHAR(10)&ScriptText!$C$1)","v":""},0]
["\n\n\n",{"$f":"IF(OrigTable!A1045=\"\",\"\",ScriptText!$B$1&CHAR(10)&ScriptText!$D$1)","v":""},{"$f":"IF(OrigTable!A1045=\"\",\"\",TEXT(OrigTable!A1045,\"00\"))","v":""},{"$f":"IF(OrigTable!A1045=\"\",\"\",ScriptText!$E$1&CHAR(10)&ScriptText!$C$1)","v":""},{"$f":"IF(OrigTable!B1045=\"\",\"\",ScriptText!$B$1&CHAR(10)&ScriptText!$D$1)","v":""},{"$f":"IF(OrigTable!B1045=\"\",\"\",TEXT(OrigTable!B1045,\"00\"))","v":""},{"$f":"IF(OrigTable!B1045=\"\",\"\",ScriptText!$E$1&CHAR(10)&ScriptText!C1040)","v":""},{"$f":"IF(OrigTable!C1045=\"\",\"\",ScriptText!$B$1&CHAR(10)&ScriptText!$D$1)","v":""},{"$f":"IF(OrigTable!C1045=\"\",\"\",IF(LEN(OrigTable!C1045)>255,LEFT(OrigTable!C1045,250)&\". . .\",OrigTable!C1045))","v":""},{"$f":"IF(OrigTable!C1045=\"\",\"\",ScriptText!$E$1&CHAR(10)&ScriptText!$C$1)","v":""},{"$f":"IF(OrigTable!D1045=\"\",\"\",ScriptText!$B$1&CHAR(10)&ScriptText!$D$1)","v":""},{"$f":"IF(OrigTable!D1045=\"\",\"\",TEXT(OrigTable!D1045,\"00\"))","v":""},{"$f":"IF(OrigTable!D1045=\"\",\"\",ScriptText!$E$1&CHAR(10)&ScriptText!$C$1)","v":""},{"$f":"IF(OrigTable!E1045=\"\",\"\",ScriptText!$B$1&CHAR(10)&ScriptText!$D$1)","v":""},{"$f":"IF(OrigTable!E1045=\"\",\"\",TEXT(OrigTable!E1045,\"00\"))","v":""},{"$f":"IF(OrigTable!E1045=\"\",\"\",ScriptText!$E$1&CHAR(10)&ScriptText!$C$1)","v":""},{"$f":"IF(OrigTable!F1045=\"\",\"\",ScriptText!$B$1&CHAR(10)&ScriptText!$D$1)","v":""},{"$f":"IF(OrigTable!F1045=\"\",\"\",TEXT(OrigTable!F1045,\"00\"))","v":""},{"$f":"IF(OrigTable!F1045=\"\",\"\",ScriptText!$E$1&CHAR(10)&ScriptText!$C$1)","v":""},{"$f":"IF(OrigTable!G1045=\"\",\"\",ScriptText!$B$1&CHAR(10)&ScriptText!$D$1)","v":""},{"$f":"IF(OrigTable!G1045=\"\",\"\",TEXT(OrigTable!G1045,\"00\"))","v":""},{"$f":"IF(OrigTable!G1045=\"\",\"\",ScriptText!$E$1&CHAR(10)&ScriptText!$C$1)","v":""},0]
["\n\n\n",{"$f":"IF(OrigTable!A1046=\"\",\"\",ScriptText!$B$1&CHAR(10)&ScriptText!$D$1)","v":""},{"$f":"IF(OrigTable!A1046=\"\",\"\",TEXT(OrigTable!A1046,\"00\"))","v":""},{"$f":"IF(OrigTable!A1046=\"\",\"\",ScriptText!$E$1&CHAR(10)&ScriptText!$C$1)","v":""},{"$f":"IF(OrigTable!B1046=\"\",\"\",ScriptText!$B$1&CHAR(10)&ScriptText!$D$1)","v":""},{"$f":"IF(OrigTable!B1046=\"\",\"\",TEXT(OrigTable!B1046,\"00\"))","v":""},{"$f":"IF(OrigTable!B1046=\"\",\"\",ScriptText!$E$1&CHAR(10)&ScriptText!C1041)","v":""},{"$f":"IF(OrigTable!C1046=\"\",\"\",ScriptText!$B$1&CHAR(10)&ScriptText!$D$1)","v":""},{"$f":"IF(OrigTable!C1046=\"\",\"\",IF(LEN(OrigTable!C1046)>255,LEFT(OrigTable!C1046,250)&\". . .\",OrigTable!C1046))","v":""},{"$f":"IF(OrigTable!C1046=\"\",\"\",ScriptText!$E$1&CHAR(10)&ScriptText!$C$1)","v":""},{"$f":"IF(OrigTable!D1046=\"\",\"\",ScriptText!$B$1&CHAR(10)&ScriptText!$D$1)","v":""},{"$f":"IF(OrigTable!D1046=\"\",\"\",TEXT(OrigTable!D1046,\"00\"))","v":""},{"$f":"IF(OrigTable!D1046=\"\",\"\",ScriptText!$E$1&CHAR(10)&ScriptText!$C$1)","v":""},{"$f":"IF(OrigTable!E1046=\"\",\"\",ScriptText!$B$1&CHAR(10)&ScriptText!$D$1)","v":""},{"$f":"IF(OrigTable!E1046=\"\",\"\",TEXT(OrigTable!E1046,\"00\"))","v":""},{"$f":"IF(OrigTable!E1046=\"\",\"\",ScriptText!$E$1&CHAR(10)&ScriptText!$C$1)","v":""},{"$f":"IF(OrigTable!F1046=\"\",\"\",ScriptText!$B$1&CHAR(10)&ScriptText!$D$1)","v":""},{"$f":"IF(OrigTable!F1046=\"\",\"\",TEXT(OrigTable!F1046,\"00\"))","v":""},{"$f":"IF(OrigTable!F1046=\"\",\"\",ScriptText!$E$1&CHAR(10)&ScriptText!$C$1)","v":""},{"$f":"IF(OrigTable!G1046=\"\",\"\",ScriptText!$B$1&CHAR(10)&ScriptText!$D$1)","v":""},{"$f":"IF(OrigTable!G1046=\"\",\"\",TEXT(OrigTable!G1046,\"00\"))","v":""},{"$f":"IF(OrigTable!G1046=\"\",\"\",ScriptText!$E$1&CHAR(10)&ScriptText!$C$1)","v":""},0]
["\n\n\n",{"$f":"IF(OrigTable!A1047=\"\",\"\",ScriptText!$B$1&CHAR(10)&ScriptText!$D$1)","v":""},{"$f":"IF(OrigTable!A1047=\"\",\"\",TEXT(OrigTable!A1047,\"00\"))","v":""},{"$f":"IF(OrigTable!A1047=\"\",\"\",ScriptText!$E$1&CHAR(10)&ScriptText!$C$1)","v":""},{"$f":"IF(OrigTable!B1047=\"\",\"\",ScriptText!$B$1&CHAR(10)&ScriptText!$D$1)","v":""},{"$f":"IF(OrigTable!B1047=\"\",\"\",TEXT(OrigTable!B1047,\"00\"))","v":""},{"$f":"IF(OrigTable!B1047=\"\",\"\",ScriptText!$E$1&CHAR(10)&ScriptText!C1042)","v":""},{"$f":"IF(OrigTable!C1047=\"\",\"\",ScriptText!$B$1&CHAR(10)&ScriptText!$D$1)","v":""},{"$f":"IF(OrigTable!C1047=\"\",\"\",IF(LEN(OrigTable!C1047)>255,LEFT(OrigTable!C1047,250)&\". . .\",OrigTable!C1047))","v":""},{"$f":"IF(OrigTable!C1047=\"\",\"\",ScriptText!$E$1&CHAR(10)&ScriptText!$C$1)","v":""},{"$f":"IF(OrigTable!D1047=\"\",\"\",ScriptText!$B$1&CHAR(10)&ScriptText!$D$1)","v":""},{"$f":"IF(OrigTable!D1047=\"\",\"\",TEXT(OrigTable!D1047,\"00\"))","v":""},{"$f":"IF(OrigTable!D1047=\"\",\"\",ScriptText!$E$1&CHAR(10)&ScriptText!$C$1)","v":""},{"$f":"IF(OrigTable!E1047=\"\",\"\",ScriptText!$B$1&CHAR(10)&ScriptText!$D$1)","v":""},{"$f":"IF(OrigTable!E1047=\"\",\"\",TEXT(OrigTable!E1047,\"00\"))","v":""},{"$f":"IF(OrigTable!E1047=\"\",\"\",ScriptText!$E$1&CHAR(10)&ScriptText!$C$1)","v":""},{"$f":"IF(OrigTable!F1047=\"\",\"\",ScriptText!$B$1&CHAR(10)&ScriptText!$D$1)","v":""},{"$f":"IF(OrigTable!F1047=\"\",\"\",TEXT(OrigTable!F1047,\"00\"))","v":""},{"$f":"IF(OrigTable!F1047=\"\",\"\",ScriptText!$E$1&CHAR(10)&ScriptText!$C$1)","v":""},{"$f":"IF(OrigTable!G1047=\"\",\"\",ScriptText!$B$1&CHAR(10)&ScriptText!$D$1)","v":""},{"$f":"IF(OrigTable!G1047=\"\",\"\",TEXT(OrigTable!G1047,\"00\"))","v":""},{"$f":"IF(OrigTable!G1047=\"\",\"\",ScriptText!$E$1&CHAR(10)&ScriptText!$C$1)","v":""},0]
["\n\n\n",{"$f":"IF(OrigTable!A1048=\"\",\"\",ScriptText!$B$1&CHAR(10)&ScriptText!$D$1)","v":""},{"$f":"IF(OrigTable!A1048=\"\",\"\",TEXT(OrigTable!A1048,\"00\"))","v":""},{"$f":"IF(OrigTable!A1048=\"\",\"\",ScriptText!$E$1&CHAR(10)&ScriptText!$C$1)","v":""},{"$f":"IF(OrigTable!B1048=\"\",\"\",ScriptText!$B$1&CHAR(10)&ScriptText!$D$1)","v":""},{"$f":"IF(OrigTable!B1048=\"\",\"\",TEXT(OrigTable!B1048,\"00\"))","v":""},{"$f":"IF(OrigTable!B1048=\"\",\"\",ScriptText!$E$1&CHAR(10)&ScriptText!C1043)","v":""},{"$f":"IF(OrigTable!C1048=\"\",\"\",ScriptText!$B$1&CHAR(10)&ScriptText!$D$1)","v":""},{"$f":"IF(OrigTable!C1048=\"\",\"\",IF(LEN(OrigTable!C1048)>255,LEFT(OrigTable!C1048,250)&\". . .\",OrigTable!C1048))","v":""},{"$f":"IF(OrigTable!C1048=\"\",\"\",ScriptText!$E$1&CHAR(10)&ScriptText!$C$1)","v":""},{"$f":"IF(OrigTable!D1048=\"\",\"\",ScriptText!$B$1&CHAR(10)&ScriptText!$D$1)","v":""},{"$f":"IF(OrigTable!D1048=\"\",\"\",TEXT(OrigTable!D1048,\"00\"))","v":""},{"$f":"IF(OrigTable!D1048=\"\",\"\",ScriptText!$E$1&CHAR(10)&ScriptText!$C$1)","v":""},{"$f":"IF(OrigTable!E1048=\"\",\"\",ScriptText!$B$1&CHAR(10)&ScriptText!$D$1)","v":""},{"$f":"IF(OrigTable!E1048=\"\",\"\",TEXT(OrigTable!E1048,\"00\"))","v":""},{"$f":"IF(OrigTable!E1048=\"\",\"\",ScriptText!$E$1&CHAR(10)&ScriptText!$C$1)","v":""},{"$f":"IF(OrigTable!F1048=\"\",\"\",ScriptText!$B$1&CHAR(10)&ScriptText!$D$1)","v":""},{"$f":"IF(OrigTable!F1048=\"\",\"\",TEXT(OrigTable!F1048,\"00\"))","v":""},{"$f":"IF(OrigTable!F1048=\"\",\"\",ScriptText!$E$1&CHAR(10)&ScriptText!$C$1)","v":""},{"$f":"IF(OrigTable!G1048=\"\",\"\",ScriptText!$B$1&CHAR(10)&ScriptText!$D$1)","v":""},{"$f":"IF(OrigTable!G1048=\"\",\"\",TEXT(OrigTable!G1048,\"00\"))","v":""},{"$f":"IF(OrigTable!G1048=\"\",\"\",ScriptText!$E$1&CHAR(10)&ScriptText!$C$1)","v":""},0]
["\n\n\n",{"$f":"IF(OrigTable!A1049=\"\",\"\",ScriptText!$B$1&CHAR(10)&ScriptText!$D$1)","v":""},{"$f":"IF(OrigTable!A1049=\"\",\"\",TEXT(OrigTable!A1049,\"00\"))","v":""},{"$f":"IF(OrigTable!A1049=\"\",\"\",ScriptText!$E$1&CHAR(10)&ScriptText!$C$1)","v":""},{"$f":"IF(OrigTable!B1049=\"\",\"\",ScriptText!$B$1&CHAR(10)&ScriptText!$D$1)","v":""},{"$f":"IF(OrigTable!B1049=\"\",\"\",TEXT(OrigTable!B1049,\"00\"))","v":""},{"$f":"IF(OrigTable!B1049=\"\",\"\",ScriptText!$E$1&CHAR(10)&ScriptText!C1044)","v":""},{"$f":"IF(OrigTable!C1049=\"\",\"\",ScriptText!$B$1&CHAR(10)&ScriptText!$D$1)","v":""},{"$f":"IF(OrigTable!C1049=\"\",\"\",IF(LEN(OrigTable!C1049)>255,LEFT(OrigTable!C1049,250)&\". . .\",OrigTable!C1049))","v":""},{"$f":"IF(OrigTable!C1049=\"\",\"\",ScriptText!$E$1&CHAR(10)&ScriptText!$C$1)","v":""},{"$f":"IF(OrigTable!D1049=\"\",\"\",ScriptText!$B$1&CHAR(10)&ScriptText!$D$1)","v":""},{"$f":"IF(OrigTable!D1049=\"\",\"\",TEXT(OrigTable!D1049,\"00\"))","v":""},{"$f":"IF(OrigTable!D1049=\"\",\"\",ScriptText!$E$1&CHAR(10)&ScriptText!$C$1)","v":""},{"$f":"IF(OrigTable!E1049=\"\",\"\",ScriptText!$B$1&CHAR(10)&ScriptText!$D$1)","v":""},{"$f":"IF(OrigTable!E1049=\"\",\"\",TEXT(OrigTable!E1049,\"00\"))","v":""},{"$f":"IF(OrigTable!E1049=\"\",\"\",ScriptText!$E$1&CHAR(10)&ScriptText!$C$1)","v":""},{"$f":"IF(OrigTable!F1049=\"\",\"\",ScriptText!$B$1&CHAR(10)&ScriptText!$D$1)","v":""},{"$f":"IF(OrigTable!F1049=\"\",\"\",TEXT(OrigTable!F1049,\"00\"))","v":""},{"$f":"IF(OrigTable!F1049=\"\",\"\",ScriptText!$E$1&CHAR(10)&ScriptText!$C$1)","v":""},{"$f":"IF(OrigTable!G1049=\"\",\"\",ScriptText!$B$1&CHAR(10)&ScriptText!$D$1)","v":""},{"$f":"IF(OrigTable!G1049=\"\",\"\",TEXT(OrigTable!G1049,\"00\"))","v":""},{"$f":"IF(OrigTable!G1049=\"\",\"\",ScriptText!$E$1&CHAR(10)&ScriptText!$C$1)","v":""},0]
["\n\n\n",{"$f":"IF(OrigTable!A1050=\"\",\"\",ScriptText!$B$1&CHAR(10)&ScriptText!$D$1)","v":""},{"$f":"IF(OrigTable!A1050=\"\",\"\",TEXT(OrigTable!A1050,\"00\"))","v":""},{"$f":"IF(OrigTable!A1050=\"\",\"\",ScriptText!$E$1&CHAR(10)&ScriptText!$C$1)","v":""},{"$f":"IF(OrigTable!B1050=\"\",\"\",ScriptText!$B$1&CHAR(10)&ScriptText!$D$1)","v":""},{"$f":"IF(OrigTable!B1050=\"\",\"\",TEXT(OrigTable!B1050,\"00\"))","v":""},{"$f":"IF(OrigTable!B1050=\"\",\"\",ScriptText!$E$1&CHAR(10)&ScriptText!C1045)","v":""},{"$f":"IF(OrigTable!C1050=\"\",\"\",ScriptText!$B$1&CHAR(10)&ScriptText!$D$1)","v":""},{"$f":"IF(OrigTable!C1050=\"\",\"\",IF(LEN(OrigTable!C1050)>255,LEFT(OrigTable!C1050,250)&\". . .\",OrigTable!C1050))","v":""},{"$f":"IF(OrigTable!C1050=\"\",\"\",ScriptText!$E$1&CHAR(10)&ScriptText!$C$1)","v":""},{"$f":"IF(OrigTable!D1050=\"\",\"\",ScriptText!$B$1&CHAR(10)&ScriptText!$D$1)","v":""},{"$f":"IF(OrigTable!D1050=\"\",\"\",TEXT(OrigTable!D1050,\"00\"))","v":""},{"$f":"IF(OrigTable!D1050=\"\",\"\",ScriptText!$E$1&CHAR(10)&ScriptText!$C$1)","v":""},{"$f":"IF(OrigTable!E1050=\"\",\"\",ScriptText!$B$1&CHAR(10)&ScriptText!$D$1)","v":""},{"$f":"IF(OrigTable!E1050=\"\",\"\",TEXT(OrigTable!E1050,\"00\"))","v":""},{"$f":"IF(OrigTable!E1050=\"\",\"\",ScriptText!$E$1&CHAR(10)&ScriptText!$C$1)","v":""},{"$f":"IF(OrigTable!F1050=\"\",\"\",ScriptText!$B$1&CHAR(10)&ScriptText!$D$1)","v":""},{"$f":"IF(OrigTable!F1050=\"\",\"\",TEXT(OrigTable!F1050,\"00\"))","v":""},{"$f":"IF(OrigTable!F1050=\"\",\"\",ScriptText!$E$1&CHAR(10)&ScriptText!$C$1)","v":""},{"$f":"IF(OrigTable!G1050=\"\",\"\",ScriptText!$B$1&CHAR(10)&ScriptText!$D$1)","v":""},{"$f":"IF(OrigTable!G1050=\"\",\"\",TEXT(OrigTable!G1050,\"00\"))","v":""},{"$f":"IF(OrigTable!G1050=\"\",\"\",ScriptText!$E$1&CHAR(10)&ScriptText!$C$1)","v":""},0]
["\n\n\n",{"$f":"IF(OrigTable!A1051=\"\",\"\",ScriptText!$B$1&CHAR(10)&ScriptText!$D$1)","v":""},{"$f":"IF(OrigTable!A1051=\"\",\"\",TEXT(OrigTable!A1051,\"00\"))","v":""},{"$f":"IF(OrigTable!A1051=\"\",\"\",ScriptText!$E$1&CHAR(10)&ScriptText!$C$1)","v":""},{"$f":"IF(OrigTable!B1051=\"\",\"\",ScriptText!$B$1&CHAR(10)&ScriptText!$D$1)","v":""},{"$f":"IF(OrigTable!B1051=\"\",\"\",TEXT(OrigTable!B1051,\"00\"))","v":""},{"$f":"IF(OrigTable!B1051=\"\",\"\",ScriptText!$E$1&CHAR(10)&ScriptText!C1046)","v":""},{"$f":"IF(OrigTable!C1051=\"\",\"\",ScriptText!$B$1&CHAR(10)&ScriptText!$D$1)","v":""},{"$f":"IF(OrigTable!C1051=\"\",\"\",IF(LEN(OrigTable!C1051)>255,LEFT(OrigTable!C1051,250)&\". . .\",OrigTable!C1051))","v":""},{"$f":"IF(OrigTable!C1051=\"\",\"\",ScriptText!$E$1&CHAR(10)&ScriptText!$C$1)","v":""},{"$f":"IF(OrigTable!D1051=\"\",\"\",ScriptText!$B$1&CHAR(10)&ScriptText!$D$1)","v":""},{"$f":"IF(OrigTable!D1051=\"\",\"\",TEXT(OrigTable!D1051,\"00\"))","v":""},{"$f":"IF(OrigTable!D1051=\"\",\"\",ScriptText!$E$1&CHAR(10)&ScriptText!$C$1)","v":""},{"$f":"IF(OrigTable!E1051=\"\",\"\",ScriptText!$B$1&CHAR(10)&ScriptText!$D$1)","v":""},{"$f":"IF(OrigTable!E1051=\"\",\"\",TEXT(OrigTable!E1051,\"00\"))","v":""},{"$f":"IF(OrigTable!E1051=\"\",\"\",ScriptText!$E$1&CHAR(10)&ScriptText!$C$1)","v":""},{"$f":"IF(OrigTable!F1051=\"\",\"\",ScriptText!$B$1&CHAR(10)&ScriptText!$D$1)","v":""},{"$f":"IF(OrigTable!F1051=\"\",\"\",TEXT(OrigTable!F1051,\"00\"))","v":""},{"$f":"IF(OrigTable!F1051=\"\",\"\",ScriptText!$E$1&CHAR(10)&ScriptText!$C$1)","v":""},{"$f":"IF(OrigTable!G1051=\"\",\"\",ScriptText!$B$1&CHAR(10)&ScriptText!$D$1)","v":""},{"$f":"IF(OrigTable!G1051=\"\",\"\",TEXT(OrigTable!G1051,\"00\"))","v":""},{"$f":"IF(OrigTable!G1051=\"\",\"\",ScriptText!$E$1&CHAR(10)&ScriptText!$C$1)","v":""},0]
["\n\n\n",{"$f":"IF(OrigTable!A1052=\"\",\"\",ScriptText!$B$1&CHAR(10)&ScriptText!$D$1)","v":""},{"$f":"IF(OrigTable!A1052=\"\",\"\",TEXT(OrigTable!A1052,\"00\"))","v":""},{"$f":"IF(OrigTable!A1052=\"\",\"\",ScriptText!$E$1&CHAR(10)&ScriptText!$C$1)","v":""},{"$f":"IF(OrigTable!B1052=\"\",\"\",ScriptText!$B$1&CHAR(10)&ScriptText!$D$1)","v":""},{"$f":"IF(OrigTable!B1052=\"\",\"\",TEXT(OrigTable!B1052,\"00\"))","v":""},{"$f":"IF(OrigTable!B1052=\"\",\"\",ScriptText!$E$1&CHAR(10)&ScriptText!C1047)","v":""},{"$f":"IF(OrigTable!C1052=\"\",\"\",ScriptText!$B$1&CHAR(10)&ScriptText!$D$1)","v":""},{"$f":"IF(OrigTable!C1052=\"\",\"\",IF(LEN(OrigTable!C1052)>255,LEFT(OrigTable!C1052,250)&\". . .\",OrigTable!C1052))","v":""},{"$f":"IF(OrigTable!C1052=\"\",\"\",ScriptText!$E$1&CHAR(10)&ScriptText!$C$1)","v":""},{"$f":"IF(OrigTable!D1052=\"\",\"\",ScriptText!$B$1&CHAR(10)&ScriptText!$D$1)","v":""},{"$f":"IF(OrigTable!D1052=\"\",\"\",TEXT(OrigTable!D1052,\"00\"))","v":""},{"$f":"IF(OrigTable!D1052=\"\",\"\",ScriptText!$E$1&CHAR(10)&ScriptText!$C$1)","v":""},{"$f":"IF(OrigTable!E1052=\"\",\"\",ScriptText!$B$1&CHAR(10)&ScriptText!$D$1)","v":""},{"$f":"IF(OrigTable!E1052=\"\",\"\",TEXT(OrigTable!E1052,\"00\"))","v":""},{"$f":"IF(OrigTable!E1052=\"\",\"\",ScriptText!$E$1&CHAR(10)&ScriptText!$C$1)","v":""},{"$f":"IF(OrigTable!F1052=\"\",\"\",ScriptText!$B$1&CHAR(10)&ScriptText!$D$1)","v":""},{"$f":"IF(OrigTable!F1052=\"\",\"\",TEXT(OrigTable!F1052,\"00\"))","v":""},{"$f":"IF(OrigTable!F1052=\"\",\"\",ScriptText!$E$1&CHAR(10)&ScriptText!$C$1)","v":""},{"$f":"IF(OrigTable!G1052=\"\",\"\",ScriptText!$B$1&CHAR(10)&ScriptText!$D$1)","v":""},{"$f":"IF(OrigTable!G1052=\"\",\"\",TEXT(OrigTable!G1052,\"00\"))","v":""},{"$f":"IF(OrigTable!G1052=\"\",\"\",ScriptText!$E$1&CHAR(10)&ScriptText!$C$1)","v":""},0]
["\n\n\n",{"$f":"IF(OrigTable!A1053=\"\",\"\",ScriptText!$B$1&CHAR(10)&ScriptText!$D$1)","v":""},{"$f":"IF(OrigTable!A1053=\"\",\"\",TEXT(OrigTable!A1053,\"00\"))","v":""},{"$f":"IF(OrigTable!A1053=\"\",\"\",ScriptText!$E$1&CHAR(10)&ScriptText!$C$1)","v":""},{"$f":"IF(OrigTable!B1053=\"\",\"\",ScriptText!$B$1&CHAR(10)&ScriptText!$D$1)","v":""},{"$f":"IF(OrigTable!B1053=\"\",\"\",TEXT(OrigTable!B1053,\"00\"))","v":""},{"$f":"IF(OrigTable!B1053=\"\",\"\",ScriptText!$E$1&CHAR(10)&ScriptText!C1048)","v":""},{"$f":"IF(OrigTable!C1053=\"\",\"\",ScriptText!$B$1&CHAR(10)&ScriptText!$D$1)","v":""},{"$f":"IF(OrigTable!C1053=\"\",\"\",IF(LEN(OrigTable!C1053)>255,LEFT(OrigTable!C1053,250)&\". . .\",OrigTable!C1053))","v":""},{"$f":"IF(OrigTable!C1053=\"\",\"\",ScriptText!$E$1&CHAR(10)&ScriptText!$C$1)","v":""},{"$f":"IF(OrigTable!D1053=\"\",\"\",ScriptText!$B$1&CHAR(10)&ScriptText!$D$1)","v":""},{"$f":"IF(OrigTable!D1053=\"\",\"\",TEXT(OrigTable!D1053,\"00\"))","v":""},{"$f":"IF(OrigTable!D1053=\"\",\"\",ScriptText!$E$1&CHAR(10)&ScriptText!$C$1)","v":""},{"$f":"IF(OrigTable!E1053=\"\",\"\",ScriptText!$B$1&CHAR(10)&ScriptText!$D$1)","v":""},{"$f":"IF(OrigTable!E1053=\"\",\"\",TEXT(OrigTable!E1053,\"00\"))","v":""},{"$f":"IF(OrigTable!E1053=\"\",\"\",ScriptText!$E$1&CHAR(10)&ScriptText!$C$1)","v":""},{"$f":"IF(OrigTable!F1053=\"\",\"\",ScriptText!$B$1&CHAR(10)&ScriptText!$D$1)","v":""},{"$f":"IF(OrigTable!F1053=\"\",\"\",TEXT(OrigTable!F1053,\"00\"))","v":""},{"$f":"IF(OrigTable!F1053=\"\",\"\",ScriptText!$E$1&CHAR(10)&ScriptText!$C$1)","v":""},{"$f":"IF(OrigTable!G1053=\"\",\"\",ScriptText!$B$1&CHAR(10)&ScriptText!$D$1)","v":""},{"$f":"IF(OrigTable!G1053=\"\",\"\",TEXT(OrigTable!G1053,\"00\"))","v":""},{"$f":"IF(OrigTable!G1053=\"\",\"\",ScriptText!$E$1&CHAR(10)&ScriptText!$C$1)","v":""},0]
["\n\n\n",{"$f":"IF(OrigTable!A1054=\"\",\"\",ScriptText!$B$1&CHAR(10)&ScriptText!$D$1)","v":""},{"$f":"IF(OrigTable!A1054=\"\",\"\",TEXT(OrigTable!A1054,\"00\"))","v":""},{"$f":"IF(OrigTable!A1054=\"\",\"\",ScriptText!$E$1&CHAR(10)&ScriptText!$C$1)","v":""},{"$f":"IF(OrigTable!B1054=\"\",\"\",ScriptText!$B$1&CHAR(10)&ScriptText!$D$1)","v":""},{"$f":"IF(OrigTable!B1054=\"\",\"\",TEXT(OrigTable!B1054,\"00\"))","v":""},{"$f":"IF(OrigTable!B1054=\"\",\"\",ScriptText!$E$1&CHAR(10)&ScriptText!C1049)","v":""},{"$f":"IF(OrigTable!C1054=\"\",\"\",ScriptText!$B$1&CHAR(10)&ScriptText!$D$1)","v":""},{"$f":"IF(OrigTable!C1054=\"\",\"\",IF(LEN(OrigTable!C1054)>255,LEFT(OrigTable!C1054,250)&\". . .\",OrigTable!C1054))","v":""},{"$f":"IF(OrigTable!C1054=\"\",\"\",ScriptText!$E$1&CHAR(10)&ScriptText!$C$1)","v":""},{"$f":"IF(OrigTable!D1054=\"\",\"\",ScriptText!$B$1&CHAR(10)&ScriptText!$D$1)","v":""},{"$f":"IF(OrigTable!D1054=\"\",\"\",TEXT(OrigTable!D1054,\"00\"))","v":""},{"$f":"IF(OrigTable!D1054=\"\",\"\",ScriptText!$E$1&CHAR(10)&ScriptText!$C$1)","v":""},{"$f":"IF(OrigTable!E1054=\"\",\"\",ScriptText!$B$1&CHAR(10)&ScriptText!$D$1)","v":""},{"$f":"IF(OrigTable!E1054=\"\",\"\",TEXT(OrigTable!E1054,\"00\"))","v":""},{"$f":"IF(OrigTable!E1054=\"\",\"\",ScriptText!$E$1&CHAR(10)&ScriptText!$C$1)","v":""},{"$f":"IF(OrigTable!F1054=\"\",\"\",ScriptText!$B$1&CHAR(10)&ScriptText!$D$1)","v":""},{"$f":"IF(OrigTable!F1054=\"\",\"\",TEXT(OrigTable!F1054,\"00\"))","v":""},{"$f":"IF(OrigTable!F1054=\"\",\"\",ScriptText!$E$1&CHAR(10)&ScriptText!$C$1)","v":""},{"$f":"IF(OrigTable!G1054=\"\",\"\",ScriptText!$B$1&CHAR(10)&ScriptText!$D$1)","v":""},{"$f":"IF(OrigTable!G1054=\"\",\"\",TEXT(OrigTable!G1054,\"00\"))","v":""},{"$f":"IF(OrigTable!G1054=\"\",\"\",ScriptText!$E$1&CHAR(10)&ScriptText!$C$1)","v":""},0]
["\n\n\n",{"$f":"IF(OrigTable!A1055=\"\",\"\",ScriptText!$B$1&CHAR(10)&ScriptText!$D$1)","v":""},{"$f":"IF(OrigTable!A1055=\"\",\"\",TEXT(OrigTable!A1055,\"00\"))","v":""},{"$f":"IF(OrigTable!A1055=\"\",\"\",ScriptText!$E$1&CHAR(10)&ScriptText!$C$1)","v":""},{"$f":"IF(OrigTable!B1055=\"\",\"\",ScriptText!$B$1&CHAR(10)&ScriptText!$D$1)","v":""},{"$f":"IF(OrigTable!B1055=\"\",\"\",TEXT(OrigTable!B1055,\"00\"))","v":""},{"$f":"IF(OrigTable!B1055=\"\",\"\",ScriptText!$E$1&CHAR(10)&ScriptText!C1050)","v":""},{"$f":"IF(OrigTable!C1055=\"\",\"\",ScriptText!$B$1&CHAR(10)&ScriptText!$D$1)","v":""},{"$f":"IF(OrigTable!C1055=\"\",\"\",IF(LEN(OrigTable!C1055)>255,LEFT(OrigTable!C1055,250)&\". . .\",OrigTable!C1055))","v":""},{"$f":"IF(OrigTable!C1055=\"\",\"\",ScriptText!$E$1&CHAR(10)&ScriptText!$C$1)","v":""},{"$f":"IF(OrigTable!D1055=\"\",\"\",ScriptText!$B$1&CHAR(10)&ScriptText!$D$1)","v":""},{"$f":"IF(OrigTable!D1055=\"\",\"\",TEXT(OrigTable!D1055,\"00\"))","v":""},{"$f":"IF(OrigTable!D1055=\"\",\"\",ScriptText!$E$1&CHAR(10)&ScriptText!$C$1)","v":""},{"$f":"IF(OrigTable!E1055=\"\",\"\",ScriptText!$B$1&CHAR(10)&ScriptText!$D$1)","v":""},{"$f":"IF(OrigTable!E1055=\"\",\"\",TEXT(OrigTable!E1055,\"00\"))","v":""},{"$f":"IF(OrigTable!E1055=\"\",\"\",ScriptText!$E$1&CHAR(10)&ScriptText!$C$1)","v":""},{"$f":"IF(OrigTable!F1055=\"\",\"\",ScriptText!$B$1&CHAR(10)&ScriptText!$D$1)","v":""},{"$f":"IF(OrigTable!F1055=\"\",\"\",TEXT(OrigTable!F1055,\"00\"))","v":""},{"$f":"IF(OrigTable!F1055=\"\",\"\",ScriptText!$E$1&CHAR(10)&ScriptText!$C$1)","v":""},{"$f":"IF(OrigTable!G1055=\"\",\"\",ScriptText!$B$1&CHAR(10)&ScriptText!$D$1)","v":""},{"$f":"IF(OrigTable!G1055=\"\",\"\",TEXT(OrigTable!G1055,\"00\"))","v":""},{"$f":"IF(OrigTable!G1055=\"\",\"\",ScriptText!$E$1&CHAR(10)&ScriptText!$C$1)","v":""},0]
["\n\n\n",{"$f":"IF(OrigTable!A1056=\"\",\"\",ScriptText!$B$1&CHAR(10)&ScriptText!$D$1)","v":""},{"$f":"IF(OrigTable!A1056=\"\",\"\",TEXT(OrigTable!A1056,\"00\"))","v":""},{"$f":"IF(OrigTable!A1056=\"\",\"\",ScriptText!$E$1&CHAR(10)&ScriptText!$C$1)","v":""},{"$f":"IF(OrigTable!B1056=\"\",\"\",ScriptText!$B$1&CHAR(10)&ScriptText!$D$1)","v":""},{"$f":"IF(OrigTable!B1056=\"\",\"\",TEXT(OrigTable!B1056,\"00\"))","v":""},{"$f":"IF(OrigTable!B1056=\"\",\"\",ScriptText!$E$1&CHAR(10)&ScriptText!C1051)","v":""},{"$f":"IF(OrigTable!C1056=\"\",\"\",ScriptText!$B$1&CHAR(10)&ScriptText!$D$1)","v":""},{"$f":"IF(OrigTable!C1056=\"\",\"\",IF(LEN(OrigTable!C1056)>255,LEFT(OrigTable!C1056,250)&\". . .\",OrigTable!C1056))","v":""},{"$f":"IF(OrigTable!C1056=\"\",\"\",ScriptText!$E$1&CHAR(10)&ScriptText!$C$1)","v":""},{"$f":"IF(OrigTable!D1056=\"\",\"\",ScriptText!$B$1&CHAR(10)&ScriptText!$D$1)","v":""},{"$f":"IF(OrigTable!D1056=\"\",\"\",TEXT(OrigTable!D1056,\"00\"))","v":""},{"$f":"IF(OrigTable!D1056=\"\",\"\",ScriptText!$E$1&CHAR(10)&ScriptText!$C$1)","v":""},{"$f":"IF(OrigTable!E1056=\"\",\"\",ScriptText!$B$1&CHAR(10)&ScriptText!$D$1)","v":""},{"$f":"IF(OrigTable!E1056=\"\",\"\",TEXT(OrigTable!E1056,\"00\"))","v":""},{"$f":"IF(OrigTable!E1056=\"\",\"\",ScriptText!$E$1&CHAR(10)&ScriptText!$C$1)","v":""},{"$f":"IF(OrigTable!F1056=\"\",\"\",ScriptText!$B$1&CHAR(10)&ScriptText!$D$1)","v":""},{"$f":"IF(OrigTable!F1056=\"\",\"\",TEXT(OrigTable!F1056,\"00\"))","v":""},{"$f":"IF(OrigTable!F1056=\"\",\"\",ScriptText!$E$1&CHAR(10)&ScriptText!$C$1)","v":""},{"$f":"IF(OrigTable!G1056=\"\",\"\",ScriptText!$B$1&CHAR(10)&ScriptText!$D$1)","v":""},{"$f":"IF(OrigTable!G1056=\"\",\"\",TEXT(OrigTable!G1056,\"00\"))","v":""},{"$f":"IF(OrigTable!G1056=\"\",\"\",ScriptText!$E$1&CHAR(10)&ScriptText!$C$1)","v":""},0]
["\n\n\n",{"$f":"IF(OrigTable!A1057=\"\",\"\",ScriptText!$B$1&CHAR(10)&ScriptText!$D$1)","v":""},{"$f":"IF(OrigTable!A1057=\"\",\"\",TEXT(OrigTable!A1057,\"00\"))","v":""},{"$f":"IF(OrigTable!A1057=\"\",\"\",ScriptText!$E$1&CHAR(10)&ScriptText!$C$1)","v":""},{"$f":"IF(OrigTable!B1057=\"\",\"\",ScriptText!$B$1&CHAR(10)&ScriptText!$D$1)","v":""},{"$f":"IF(OrigTable!B1057=\"\",\"\",TEXT(OrigTable!B1057,\"00\"))","v":""},{"$f":"IF(OrigTable!B1057=\"\",\"\",ScriptText!$E$1&CHAR(10)&ScriptText!C1052)","v":""},{"$f":"IF(OrigTable!C1057=\"\",\"\",ScriptText!$B$1&CHAR(10)&ScriptText!$D$1)","v":""},{"$f":"IF(OrigTable!C1057=\"\",\"\",IF(LEN(OrigTable!C1057)>255,LEFT(OrigTable!C1057,250)&\". . .\",OrigTable!C1057))","v":""},{"$f":"IF(OrigTable!C1057=\"\",\"\",ScriptText!$E$1&CHAR(10)&ScriptText!$C$1)","v":""},{"$f":"IF(OrigTable!D1057=\"\",\"\",ScriptText!$B$1&CHAR(10)&ScriptText!$D$1)","v":""},{"$f":"IF(OrigTable!D1057=\"\",\"\",TEXT(OrigTable!D1057,\"00\"))","v":""},{"$f":"IF(OrigTable!D1057=\"\",\"\",ScriptText!$E$1&CHAR(10)&ScriptText!$C$1)","v":""},{"$f":"IF(OrigTable!E1057=\"\",\"\",ScriptText!$B$1&CHAR(10)&ScriptText!$D$1)","v":""},{"$f":"IF(OrigTable!E1057=\"\",\"\",TEXT(OrigTable!E1057,\"00\"))","v":""},{"$f":"IF(OrigTable!E1057=\"\",\"\",ScriptText!$E$1&CHAR(10)&ScriptText!$C$1)","v":""},{"$f":"IF(OrigTable!F1057=\"\",\"\",ScriptText!$B$1&CHAR(10)&ScriptText!$D$1)","v":""},{"$f":"IF(OrigTable!F1057=\"\",\"\",TEXT(OrigTable!F1057,\"00\"))","v":""},{"$f":"IF(OrigTable!F1057=\"\",\"\",ScriptText!$E$1&CHAR(10)&ScriptText!$C$1)","v":""},{"$f":"IF(OrigTable!G1057=\"\",\"\",ScriptText!$B$1&CHAR(10)&ScriptText!$D$1)","v":""},{"$f":"IF(OrigTable!G1057=\"\",\"\",TEXT(OrigTable!G1057,\"00\"))","v":""},{"$f":"IF(OrigTable!G1057=\"\",\"\",ScriptText!$E$1&CHAR(10)&ScriptText!$C$1)","v":""},0]
["\n\n\n",{"$f":"IF(OrigTable!A1058=\"\",\"\",ScriptText!$B$1&CHAR(10)&ScriptText!$D$1)","v":""},{"$f":"IF(OrigTable!A1058=\"\",\"\",TEXT(OrigTable!A1058,\"00\"))","v":""},{"$f":"IF(OrigTable!A1058=\"\",\"\",ScriptText!$E$1&CHAR(10)&ScriptText!$C$1)","v":""},{"$f":"IF(OrigTable!B1058=\"\",\"\",ScriptText!$B$1&CHAR(10)&ScriptText!$D$1)","v":""},{"$f":"IF(OrigTable!B1058=\"\",\"\",TEXT(OrigTable!B1058,\"00\"))","v":""},{"$f":"IF(OrigTable!B1058=\"\",\"\",ScriptText!$E$1&CHAR(10)&ScriptText!C1053)","v":""},{"$f":"IF(OrigTable!C1058=\"\",\"\",ScriptText!$B$1&CHAR(10)&ScriptText!$D$1)","v":""},{"$f":"IF(OrigTable!C1058=\"\",\"\",IF(LEN(OrigTable!C1058)>255,LEFT(OrigTable!C1058,250)&\". . .\",OrigTable!C1058))","v":""},{"$f":"IF(OrigTable!C1058=\"\",\"\",ScriptText!$E$1&CHAR(10)&ScriptText!$C$1)","v":""},{"$f":"IF(OrigTable!D1058=\"\",\"\",ScriptText!$B$1&CHAR(10)&ScriptText!$D$1)","v":""},{"$f":"IF(OrigTable!D1058=\"\",\"\",TEXT(OrigTable!D1058,\"00\"))","v":""},{"$f":"IF(OrigTable!D1058=\"\",\"\",ScriptText!$E$1&CHAR(10)&ScriptText!$C$1)","v":""},{"$f":"IF(OrigTable!E1058=\"\",\"\",ScriptText!$B$1&CHAR(10)&ScriptText!$D$1)","v":""},{"$f":"IF(OrigTable!E1058=\"\",\"\",TEXT(OrigTable!E1058,\"00\"))","v":""},{"$f":"IF(OrigTable!E1058=\"\",\"\",ScriptText!$E$1&CHAR(10)&ScriptText!$C$1)","v":""},{"$f":"IF(OrigTable!F1058=\"\",\"\",ScriptText!$B$1&CHAR(10)&ScriptText!$D$1)","v":""},{"$f":"IF(OrigTable!F1058=\"\",\"\",TEXT(OrigTable!F1058,\"00\"))","v":""},{"$f":"IF(OrigTable!F1058=\"\",\"\",ScriptText!$E$1&CHAR(10)&ScriptText!$C$1)","v":""},{"$f":"IF(OrigTable!G1058=\"\",\"\",ScriptText!$B$1&CHAR(10)&ScriptText!$D$1)","v":""},{"$f":"IF(OrigTable!G1058=\"\",\"\",TEXT(OrigTable!G1058,\"00\"))","v":""},{"$f":"IF(OrigTable!G1058=\"\",\"\",ScriptText!$E$1&CHAR(10)&ScriptText!$C$1)","v":""},0]
["\n\n\n",{"$f":"IF(OrigTable!A1059=\"\",\"\",ScriptText!$B$1&CHAR(10)&ScriptText!$D$1)","v":""},{"$f":"IF(OrigTable!A1059=\"\",\"\",TEXT(OrigTable!A1059,\"00\"))","v":""},{"$f":"IF(OrigTable!A1059=\"\",\"\",ScriptText!$E$1&CHAR(10)&ScriptText!$C$1)","v":""},{"$f":"IF(OrigTable!B1059=\"\",\"\",ScriptText!$B$1&CHAR(10)&ScriptText!$D$1)","v":""},{"$f":"IF(OrigTable!B1059=\"\",\"\",TEXT(OrigTable!B1059,\"00\"))","v":""},{"$f":"IF(OrigTable!B1059=\"\",\"\",ScriptText!$E$1&CHAR(10)&ScriptText!C1054)","v":""},{"$f":"IF(OrigTable!C1059=\"\",\"\",ScriptText!$B$1&CHAR(10)&ScriptText!$D$1)","v":""},{"$f":"IF(OrigTable!C1059=\"\",\"\",IF(LEN(OrigTable!C1059)>255,LEFT(OrigTable!C1059,250)&\". . .\",OrigTable!C1059))","v":""},{"$f":"IF(OrigTable!C1059=\"\",\"\",ScriptText!$E$1&CHAR(10)&ScriptText!$C$1)","v":""},{"$f":"IF(OrigTable!D1059=\"\",\"\",ScriptText!$B$1&CHAR(10)&ScriptText!$D$1)","v":""},{"$f":"IF(OrigTable!D1059=\"\",\"\",TEXT(OrigTable!D1059,\"00\"))","v":""},{"$f":"IF(OrigTable!D1059=\"\",\"\",ScriptText!$E$1&CHAR(10)&ScriptText!$C$1)","v":""},{"$f":"IF(OrigTable!E1059=\"\",\"\",ScriptText!$B$1&CHAR(10)&ScriptText!$D$1)","v":""},{"$f":"IF(OrigTable!E1059=\"\",\"\",TEXT(OrigTable!E1059,\"00\"))","v":""},{"$f":"IF(OrigTable!E1059=\"\",\"\",ScriptText!$E$1&CHAR(10)&ScriptText!$C$1)","v":""},{"$f":"IF(OrigTable!F1059=\"\",\"\",ScriptText!$B$1&CHAR(10)&ScriptText!$D$1)","v":""},{"$f":"IF(OrigTable!F1059=\"\",\"\",TEXT(OrigTable!F1059,\"00\"))","v":""},{"$f":"IF(OrigTable!F1059=\"\",\"\",ScriptText!$E$1&CHAR(10)&ScriptText!$C$1)","v":""},{"$f":"IF(OrigTable!G1059=\"\",\"\",ScriptText!$B$1&CHAR(10)&ScriptText!$D$1)","v":""},{"$f":"IF(OrigTable!G1059=\"\",\"\",TEXT(OrigTable!G1059,\"00\"))","v":""},{"$f":"IF(OrigTable!G1059=\"\",\"\",ScriptText!$E$1&CHAR(10)&ScriptText!$C$1)","v":""},0]
["\n\n\n",{"$f":"IF(OrigTable!A1060=\"\",\"\",ScriptText!$B$1&CHAR(10)&ScriptText!$D$1)","v":""},{"$f":"IF(OrigTable!A1060=\"\",\"\",TEXT(OrigTable!A1060,\"00\"))","v":""},{"$f":"IF(OrigTable!A1060=\"\",\"\",ScriptText!$E$1&CHAR(10)&ScriptText!$C$1)","v":""},{"$f":"IF(OrigTable!B1060=\"\",\"\",ScriptText!$B$1&CHAR(10)&ScriptText!$D$1)","v":""},{"$f":"IF(OrigTable!B1060=\"\",\"\",TEXT(OrigTable!B1060,\"00\"))","v":""},{"$f":"IF(OrigTable!B1060=\"\",\"\",ScriptText!$E$1&CHAR(10)&ScriptText!C1055)","v":""},{"$f":"IF(OrigTable!C1060=\"\",\"\",ScriptText!$B$1&CHAR(10)&ScriptText!$D$1)","v":""},{"$f":"IF(OrigTable!C1060=\"\",\"\",IF(LEN(OrigTable!C1060)>255,LEFT(OrigTable!C1060,250)&\". . .\",OrigTable!C1060))","v":""},{"$f":"IF(OrigTable!C1060=\"\",\"\",ScriptText!$E$1&CHAR(10)&ScriptText!$C$1)","v":""},{"$f":"IF(OrigTable!D1060=\"\",\"\",ScriptText!$B$1&CHAR(10)&ScriptText!$D$1)","v":""},{"$f":"IF(OrigTable!D1060=\"\",\"\",TEXT(OrigTable!D1060,\"00\"))","v":""},{"$f":"IF(OrigTable!D1060=\"\",\"\",ScriptText!$E$1&CHAR(10)&ScriptText!$C$1)","v":""},{"$f":"IF(OrigTable!E1060=\"\",\"\",ScriptText!$B$1&CHAR(10)&ScriptText!$D$1)","v":""},{"$f":"IF(OrigTable!E1060=\"\",\"\",TEXT(OrigTable!E1060,\"00\"))","v":""},{"$f":"IF(OrigTable!E1060=\"\",\"\",ScriptText!$E$1&CHAR(10)&ScriptText!$C$1)","v":""},{"$f":"IF(OrigTable!F1060=\"\",\"\",ScriptText!$B$1&CHAR(10)&ScriptText!$D$1)","v":""},{"$f":"IF(OrigTable!F1060=\"\",\"\",TEXT(OrigTable!F1060,\"00\"))","v":""},{"$f":"IF(OrigTable!F1060=\"\",\"\",ScriptText!$E$1&CHAR(10)&ScriptText!$C$1)","v":""},{"$f":"IF(OrigTable!G1060=\"\",\"\",ScriptText!$B$1&CHAR(10)&ScriptText!$D$1)","v":""},{"$f":"IF(OrigTable!G1060=\"\",\"\",TEXT(OrigTable!G1060,\"00\"))","v":""},{"$f":"IF(OrigTable!G1060=\"\",\"\",ScriptText!$E$1&CHAR(10)&ScriptText!$C$1)","v":""},0]
["\n\n\n",{"$f":"IF(OrigTable!A1061=\"\",\"\",ScriptText!$B$1&CHAR(10)&ScriptText!$D$1)","v":""},{"$f":"IF(OrigTable!A1061=\"\",\"\",TEXT(OrigTable!A1061,\"00\"))","v":""},{"$f":"IF(OrigTable!A1061=\"\",\"\",ScriptText!$E$1&CHAR(10)&ScriptText!$C$1)","v":""},{"$f":"IF(OrigTable!B1061=\"\",\"\",ScriptText!$B$1&CHAR(10)&ScriptText!$D$1)","v":""},{"$f":"IF(OrigTable!B1061=\"\",\"\",TEXT(OrigTable!B1061,\"00\"))","v":""},{"$f":"IF(OrigTable!B1061=\"\",\"\",ScriptText!$E$1&CHAR(10)&ScriptText!C1056)","v":""},{"$f":"IF(OrigTable!C1061=\"\",\"\",ScriptText!$B$1&CHAR(10)&ScriptText!$D$1)","v":""},{"$f":"IF(OrigTable!C1061=\"\",\"\",IF(LEN(OrigTable!C1061)>255,LEFT(OrigTable!C1061,250)&\". . .\",OrigTable!C1061))","v":""},{"$f":"IF(OrigTable!C1061=\"\",\"\",ScriptText!$E$1&CHAR(10)&ScriptText!$C$1)","v":""},{"$f":"IF(OrigTable!D1061=\"\",\"\",ScriptText!$B$1&CHAR(10)&ScriptText!$D$1)","v":""},{"$f":"IF(OrigTable!D1061=\"\",\"\",TEXT(OrigTable!D1061,\"00\"))","v":""},{"$f":"IF(OrigTable!D1061=\"\",\"\",ScriptText!$E$1&CHAR(10)&ScriptText!$C$1)","v":""},{"$f":"IF(OrigTable!E1061=\"\",\"\",ScriptText!$B$1&CHAR(10)&ScriptText!$D$1)","v":""},{"$f":"IF(OrigTable!E1061=\"\",\"\",TEXT(OrigTable!E1061,\"00\"))","v":""},{"$f":"IF(OrigTable!E1061=\"\",\"\",ScriptText!$E$1&CHAR(10)&ScriptText!$C$1)","v":""},{"$f":"IF(OrigTable!F1061=\"\",\"\",ScriptText!$B$1&CHAR(10)&ScriptText!$D$1)","v":""},{"$f":"IF(OrigTable!F1061=\"\",\"\",TEXT(OrigTable!F1061,\"00\"))","v":""},{"$f":"IF(OrigTable!F1061=\"\",\"\",ScriptText!$E$1&CHAR(10)&ScriptText!$C$1)","v":""},{"$f":"IF(OrigTable!G1061=\"\",\"\",ScriptText!$B$1&CHAR(10)&ScriptText!$D$1)","v":""},{"$f":"IF(OrigTable!G1061=\"\",\"\",TEXT(OrigTable!G1061,\"00\"))","v":""},{"$f":"IF(OrigTable!G1061=\"\",\"\",ScriptText!$E$1&CHAR(10)&ScriptText!$C$1)","v":""},0]
["\n\n\n",{"$f":"IF(OrigTable!A1062=\"\",\"\",ScriptText!$B$1&CHAR(10)&ScriptText!$D$1)","v":""},{"$f":"IF(OrigTable!A1062=\"\",\"\",TEXT(OrigTable!A1062,\"00\"))","v":""},{"$f":"IF(OrigTable!A1062=\"\",\"\",ScriptText!$E$1&CHAR(10)&ScriptText!$C$1)","v":""},{"$f":"IF(OrigTable!B1062=\"\",\"\",ScriptText!$B$1&CHAR(10)&ScriptText!$D$1)","v":""},{"$f":"IF(OrigTable!B1062=\"\",\"\",TEXT(OrigTable!B1062,\"00\"))","v":""},{"$f":"IF(OrigTable!B1062=\"\",\"\",ScriptText!$E$1&CHAR(10)&ScriptText!C1057)","v":""},{"$f":"IF(OrigTable!C1062=\"\",\"\",ScriptText!$B$1&CHAR(10)&ScriptText!$D$1)","v":""},{"$f":"IF(OrigTable!C1062=\"\",\"\",IF(LEN(OrigTable!C1062)>255,LEFT(OrigTable!C1062,250)&\". . .\",OrigTable!C1062))","v":""},{"$f":"IF(OrigTable!C1062=\"\",\"\",ScriptText!$E$1&CHAR(10)&ScriptText!$C$1)","v":""},{"$f":"IF(OrigTable!D1062=\"\",\"\",ScriptText!$B$1&CHAR(10)&ScriptText!$D$1)","v":""},{"$f":"IF(OrigTable!D1062=\"\",\"\",TEXT(OrigTable!D1062,\"00\"))","v":""},{"$f":"IF(OrigTable!D1062=\"\",\"\",ScriptText!$E$1&CHAR(10)&ScriptText!$C$1)","v":""},{"$f":"IF(OrigTable!E1062=\"\",\"\",ScriptText!$B$1&CHAR(10)&ScriptText!$D$1)","v":""},{"$f":"IF(OrigTable!E1062=\"\",\"\",TEXT(OrigTable!E1062,\"00\"))","v":""},{"$f":"IF(OrigTable!E1062=\"\",\"\",ScriptText!$E$1&CHAR(10)&ScriptText!$C$1)","v":""},{"$f":"IF(OrigTable!F1062=\"\",\"\",ScriptText!$B$1&CHAR(10)&ScriptText!$D$1)","v":""},{"$f":"IF(OrigTable!F1062=\"\",\"\",TEXT(OrigTable!F1062,\"00\"))","v":""},{"$f":"IF(OrigTable!F1062=\"\",\"\",ScriptText!$E$1&CHAR(10)&ScriptText!$C$1)","v":""},{"$f":"IF(OrigTable!G1062=\"\",\"\",ScriptText!$B$1&CHAR(10)&ScriptText!$D$1)","v":""},{"$f":"IF(OrigTable!G1062=\"\",\"\",TEXT(OrigTable!G1062,\"00\"))","v":""},{"$f":"IF(OrigTable!G1062=\"\",\"\",ScriptText!$E$1&CHAR(10)&ScriptText!$C$1)","v":""},0]
["\n\n\n",{"$f":"IF(OrigTable!A1063=\"\",\"\",ScriptText!$B$1&CHAR(10)&ScriptText!$D$1)","v":""},{"$f":"IF(OrigTable!A1063=\"\",\"\",TEXT(OrigTable!A1063,\"00\"))","v":""},{"$f":"IF(OrigTable!A1063=\"\",\"\",ScriptText!$E$1&CHAR(10)&ScriptText!$C$1)","v":""},{"$f":"IF(OrigTable!B1063=\"\",\"\",ScriptText!$B$1&CHAR(10)&ScriptText!$D$1)","v":""},{"$f":"IF(OrigTable!B1063=\"\",\"\",TEXT(OrigTable!B1063,\"00\"))","v":""},{"$f":"IF(OrigTable!B1063=\"\",\"\",ScriptText!$E$1&CHAR(10)&ScriptText!C1058)","v":""},{"$f":"IF(OrigTable!C1063=\"\",\"\",ScriptText!$B$1&CHAR(10)&ScriptText!$D$1)","v":""},{"$f":"IF(OrigTable!C1063=\"\",\"\",IF(LEN(OrigTable!C1063)>255,LEFT(OrigTable!C1063,250)&\". . .\",OrigTable!C1063))","v":""},{"$f":"IF(OrigTable!C1063=\"\",\"\",ScriptText!$E$1&CHAR(10)&ScriptText!$C$1)","v":""},{"$f":"IF(OrigTable!D1063=\"\",\"\",ScriptText!$B$1&CHAR(10)&ScriptText!$D$1)","v":""},{"$f":"IF(OrigTable!D1063=\"\",\"\",TEXT(OrigTable!D1063,\"00\"))","v":""},{"$f":"IF(OrigTable!D1063=\"\",\"\",ScriptText!$E$1&CHAR(10)&ScriptText!$C$1)","v":""},{"$f":"IF(OrigTable!E1063=\"\",\"\",ScriptText!$B$1&CHAR(10)&ScriptText!$D$1)","v":""},{"$f":"IF(OrigTable!E1063=\"\",\"\",TEXT(OrigTable!E1063,\"00\"))","v":""},{"$f":"IF(OrigTable!E1063=\"\",\"\",ScriptText!$E$1&CHAR(10)&ScriptText!$C$1)","v":""},{"$f":"IF(OrigTable!F1063=\"\",\"\",ScriptText!$B$1&CHAR(10)&ScriptText!$D$1)","v":""},{"$f":"IF(OrigTable!F1063=\"\",\"\",TEXT(OrigTable!F1063,\"00\"))","v":""},{"$f":"IF(OrigTable!F1063=\"\",\"\",ScriptText!$E$1&CHAR(10)&ScriptText!$C$1)","v":""},{"$f":"IF(OrigTable!G1063=\"\",\"\",ScriptText!$B$1&CHAR(10)&ScriptText!$D$1)","v":""},{"$f":"IF(OrigTable!G1063=\"\",\"\",TEXT(OrigTable!G1063,\"00\"))","v":""},{"$f":"IF(OrigTable!G1063=\"\",\"\",ScriptText!$E$1&CHAR(10)&ScriptText!$C$1)","v":""},0]
["\n\n\n",{"$f":"IF(OrigTable!A1064=\"\",\"\",ScriptText!$B$1&CHAR(10)&ScriptText!$D$1)","v":""},{"$f":"IF(OrigTable!A1064=\"\",\"\",TEXT(OrigTable!A1064,\"00\"))","v":""},{"$f":"IF(OrigTable!A1064=\"\",\"\",ScriptText!$E$1&CHAR(10)&ScriptText!$C$1)","v":""},{"$f":"IF(OrigTable!B1064=\"\",\"\",ScriptText!$B$1&CHAR(10)&ScriptText!$D$1)","v":""},{"$f":"IF(OrigTable!B1064=\"\",\"\",TEXT(OrigTable!B1064,\"00\"))","v":""},{"$f":"IF(OrigTable!B1064=\"\",\"\",ScriptText!$E$1&CHAR(10)&ScriptText!C1059)","v":""},{"$f":"IF(OrigTable!C1064=\"\",\"\",ScriptText!$B$1&CHAR(10)&ScriptText!$D$1)","v":""},{"$f":"IF(OrigTable!C1064=\"\",\"\",IF(LEN(OrigTable!C1064)>255,LEFT(OrigTable!C1064,250)&\". . .\",OrigTable!C1064))","v":""},{"$f":"IF(OrigTable!C1064=\"\",\"\",ScriptText!$E$1&CHAR(10)&ScriptText!$C$1)","v":""},{"$f":"IF(OrigTable!D1064=\"\",\"\",ScriptText!$B$1&CHAR(10)&ScriptText!$D$1)","v":""},{"$f":"IF(OrigTable!D1064=\"\",\"\",TEXT(OrigTable!D1064,\"00\"))","v":""},{"$f":"IF(OrigTable!D1064=\"\",\"\",ScriptText!$E$1&CHAR(10)&ScriptText!$C$1)","v":""},{"$f":"IF(OrigTable!E1064=\"\",\"\",ScriptText!$B$1&CHAR(10)&ScriptText!$D$1)","v":""},{"$f":"IF(OrigTable!E1064=\"\",\"\",TEXT(OrigTable!E1064,\"00\"))","v":""},{"$f":"IF(OrigTable!E1064=\"\",\"\",ScriptText!$E$1&CHAR(10)&ScriptText!$C$1)","v":""},{"$f":"IF(OrigTable!F1064=\"\",\"\",ScriptText!$B$1&CHAR(10)&ScriptText!$D$1)","v":""},{"$f":"IF(OrigTable!F1064=\"\",\"\",TEXT(OrigTable!F1064,\"00\"))","v":""},{"$f":"IF(OrigTable!F1064=\"\",\"\",ScriptText!$E$1&CHAR(10)&ScriptText!$C$1)","v":""},{"$f":"IF(OrigTable!G1064=\"\",\"\",ScriptText!$B$1&CHAR(10)&ScriptText!$D$1)","v":""},{"$f":"IF(OrigTable!G1064=\"\",\"\",TEXT(OrigTable!G1064,\"00\"))","v":""},{"$f":"IF(OrigTable!G1064=\"\",\"\",ScriptText!$E$1&CHAR(10)&ScriptText!$C$1)","v":""},0]
["\n\n\n",{"$f":"IF(OrigTable!A1065=\"\",\"\",ScriptText!$B$1&CHAR(10)&ScriptText!$D$1)","v":""},{"$f":"IF(OrigTable!A1065=\"\",\"\",TEXT(OrigTable!A1065,\"00\"))","v":""},{"$f":"IF(OrigTable!A1065=\"\",\"\",ScriptText!$E$1&CHAR(10)&ScriptText!$C$1)","v":""},{"$f":"IF(OrigTable!B1065=\"\",\"\",ScriptText!$B$1&CHAR(10)&ScriptText!$D$1)","v":""},{"$f":"IF(OrigTable!B1065=\"\",\"\",TEXT(OrigTable!B1065,\"00\"))","v":""},{"$f":"IF(OrigTable!B1065=\"\",\"\",ScriptText!$E$1&CHAR(10)&ScriptText!C1060)","v":""},{"$f":"IF(OrigTable!C1065=\"\",\"\",ScriptText!$B$1&CHAR(10)&ScriptText!$D$1)","v":""},{"$f":"IF(OrigTable!C1065=\"\",\"\",IF(LEN(OrigTable!C1065)>255,LEFT(OrigTable!C1065,250)&\". . .\",OrigTable!C1065))","v":""},{"$f":"IF(OrigTable!C1065=\"\",\"\",ScriptText!$E$1&CHAR(10)&ScriptText!$C$1)","v":""},{"$f":"IF(OrigTable!D1065=\"\",\"\",ScriptText!$B$1&CHAR(10)&ScriptText!$D$1)","v":""},{"$f":"IF(OrigTable!D1065=\"\",\"\",TEXT(OrigTable!D1065,\"00\"))","v":""},{"$f":"IF(OrigTable!D1065=\"\",\"\",ScriptText!$E$1&CHAR(10)&ScriptText!$C$1)","v":""},{"$f":"IF(OrigTable!E1065=\"\",\"\",ScriptText!$B$1&CHAR(10)&ScriptText!$D$1)","v":""},{"$f":"IF(OrigTable!E1065=\"\",\"\",TEXT(OrigTable!E1065,\"00\"))","v":""},{"$f":"IF(OrigTable!E1065=\"\",\"\",ScriptText!$E$1&CHAR(10)&ScriptText!$C$1)","v":""},{"$f":"IF(OrigTable!F1065=\"\",\"\",ScriptText!$B$1&CHAR(10)&ScriptText!$D$1)","v":""},{"$f":"IF(OrigTable!F1065=\"\",\"\",TEXT(OrigTable!F1065,\"00\"))","v":""},{"$f":"IF(OrigTable!F1065=\"\",\"\",ScriptText!$E$1&CHAR(10)&ScriptText!$C$1)","v":""},{"$f":"IF(OrigTable!G1065=\"\",\"\",ScriptText!$B$1&CHAR(10)&ScriptText!$D$1)","v":""},{"$f":"IF(OrigTable!G1065=\"\",\"\",TEXT(OrigTable!G1065,\"00\"))","v":""},{"$f":"IF(OrigTable!G1065=\"\",\"\",ScriptText!$E$1&CHAR(10)&ScriptText!$C$1)","v":""},0]
["\n\n\n",{"$f":"IF(OrigTable!A1066=\"\",\"\",ScriptText!$B$1&CHAR(10)&ScriptText!$D$1)","v":""},{"$f":"IF(OrigTable!A1066=\"\",\"\",TEXT(OrigTable!A1066,\"00\"))","v":""},{"$f":"IF(OrigTable!A1066=\"\",\"\",ScriptText!$E$1&CHAR(10)&ScriptText!$C$1)","v":""},{"$f":"IF(OrigTable!B1066=\"\",\"\",ScriptText!$B$1&CHAR(10)&ScriptText!$D$1)","v":""},{"$f":"IF(OrigTable!B1066=\"\",\"\",TEXT(OrigTable!B1066,\"00\"))","v":""},{"$f":"IF(OrigTable!B1066=\"\",\"\",ScriptText!$E$1&CHAR(10)&ScriptText!C1061)","v":""},{"$f":"IF(OrigTable!C1066=\"\",\"\",ScriptText!$B$1&CHAR(10)&ScriptText!$D$1)","v":""},{"$f":"IF(OrigTable!C1066=\"\",\"\",IF(LEN(OrigTable!C1066)>255,LEFT(OrigTable!C1066,250)&\". . .\",OrigTable!C1066))","v":""},{"$f":"IF(OrigTable!C1066=\"\",\"\",ScriptText!$E$1&CHAR(10)&ScriptText!$C$1)","v":""},{"$f":"IF(OrigTable!D1066=\"\",\"\",ScriptText!$B$1&CHAR(10)&ScriptText!$D$1)","v":""},{"$f":"IF(OrigTable!D1066=\"\",\"\",TEXT(OrigTable!D1066,\"00\"))","v":""},{"$f":"IF(OrigTable!D1066=\"\",\"\",ScriptText!$E$1&CHAR(10)&ScriptText!$C$1)","v":""},{"$f":"IF(OrigTable!E1066=\"\",\"\",ScriptText!$B$1&CHAR(10)&ScriptText!$D$1)","v":""},{"$f":"IF(OrigTable!E1066=\"\",\"\",TEXT(OrigTable!E1066,\"00\"))","v":""},{"$f":"IF(OrigTable!E1066=\"\",\"\",ScriptText!$E$1&CHAR(10)&ScriptText!$C$1)","v":""},{"$f":"IF(OrigTable!F1066=\"\",\"\",ScriptText!$B$1&CHAR(10)&ScriptText!$D$1)","v":""},{"$f":"IF(OrigTable!F1066=\"\",\"\",TEXT(OrigTable!F1066,\"00\"))","v":""},{"$f":"IF(OrigTable!F1066=\"\",\"\",ScriptText!$E$1&CHAR(10)&ScriptText!$C$1)","v":""},{"$f":"IF(OrigTable!G1066=\"\",\"\",ScriptText!$B$1&CHAR(10)&ScriptText!$D$1)","v":""},{"$f":"IF(OrigTable!G1066=\"\",\"\",TEXT(OrigTable!G1066,\"00\"))","v":""},{"$f":"IF(OrigTable!G1066=\"\",\"\",ScriptText!$E$1&CHAR(10)&ScriptText!$C$1)","v":""},0]
["\n\n\n",{"$f":"IF(OrigTable!A1067=\"\",\"\",ScriptText!$B$1&CHAR(10)&ScriptText!$D$1)","v":""},{"$f":"IF(OrigTable!A1067=\"\",\"\",TEXT(OrigTable!A1067,\"00\"))","v":""},{"$f":"IF(OrigTable!A1067=\"\",\"\",ScriptText!$E$1&CHAR(10)&ScriptText!$C$1)","v":""},{"$f":"IF(OrigTable!B1067=\"\",\"\",ScriptText!$B$1&CHAR(10)&ScriptText!$D$1)","v":""},{"$f":"IF(OrigTable!B1067=\"\",\"\",TEXT(OrigTable!B1067,\"00\"))","v":""},{"$f":"IF(OrigTable!B1067=\"\",\"\",ScriptText!$E$1&CHAR(10)&ScriptText!C1062)","v":""},{"$f":"IF(OrigTable!C1067=\"\",\"\",ScriptText!$B$1&CHAR(10)&ScriptText!$D$1)","v":""},{"$f":"IF(OrigTable!C1067=\"\",\"\",IF(LEN(OrigTable!C1067)>255,LEFT(OrigTable!C1067,250)&\". . .\",OrigTable!C1067))","v":""},{"$f":"IF(OrigTable!C1067=\"\",\"\",ScriptText!$E$1&CHAR(10)&ScriptText!$C$1)","v":""},{"$f":"IF(OrigTable!D1067=\"\",\"\",ScriptText!$B$1&CHAR(10)&ScriptText!$D$1)","v":""},{"$f":"IF(OrigTable!D1067=\"\",\"\",TEXT(OrigTable!D1067,\"00\"))","v":""},{"$f":"IF(OrigTable!D1067=\"\",\"\",ScriptText!$E$1&CHAR(10)&ScriptText!$C$1)","v":""},{"$f":"IF(OrigTable!E1067=\"\",\"\",ScriptText!$B$1&CHAR(10)&ScriptText!$D$1)","v":""},{"$f":"IF(OrigTable!E1067=\"\",\"\",TEXT(OrigTable!E1067,\"00\"))","v":""},{"$f":"IF(OrigTable!E1067=\"\",\"\",ScriptText!$E$1&CHAR(10)&ScriptText!$C$1)","v":""},{"$f":"IF(OrigTable!F1067=\"\",\"\",ScriptText!$B$1&CHAR(10)&ScriptText!$D$1)","v":""},{"$f":"IF(OrigTable!F1067=\"\",\"\",TEXT(OrigTable!F1067,\"00\"))","v":""},{"$f":"IF(OrigTable!F1067=\"\",\"\",ScriptText!$E$1&CHAR(10)&ScriptText!$C$1)","v":""},{"$f":"IF(OrigTable!G1067=\"\",\"\",ScriptText!$B$1&CHAR(10)&ScriptText!$D$1)","v":""},{"$f":"IF(OrigTable!G1067=\"\",\"\",TEXT(OrigTable!G1067,\"00\"))","v":""},{"$f":"IF(OrigTable!G1067=\"\",\"\",ScriptText!$E$1&CHAR(10)&ScriptText!$C$1)","v":""},0]
["\n\n\n",{"$f":"IF(OrigTable!A1068=\"\",\"\",ScriptText!$B$1&CHAR(10)&ScriptText!$D$1)","v":""},{"$f":"IF(OrigTable!A1068=\"\",\"\",TEXT(OrigTable!A1068,\"00\"))","v":""},{"$f":"IF(OrigTable!A1068=\"\",\"\",ScriptText!$E$1&CHAR(10)&ScriptText!$C$1)","v":""},{"$f":"IF(OrigTable!B1068=\"\",\"\",ScriptText!$B$1&CHAR(10)&ScriptText!$D$1)","v":""},{"$f":"IF(OrigTable!B1068=\"\",\"\",TEXT(OrigTable!B1068,\"00\"))","v":""},{"$f":"IF(OrigTable!B1068=\"\",\"\",ScriptText!$E$1&CHAR(10)&ScriptText!C1063)","v":""},{"$f":"IF(OrigTable!C1068=\"\",\"\",ScriptText!$B$1&CHAR(10)&ScriptText!$D$1)","v":""},{"$f":"IF(OrigTable!C1068=\"\",\"\",IF(LEN(OrigTable!C1068)>255,LEFT(OrigTable!C1068,250)&\". . .\",OrigTable!C1068))","v":""},{"$f":"IF(OrigTable!C1068=\"\",\"\",ScriptText!$E$1&CHAR(10)&ScriptText!$C$1)","v":""},{"$f":"IF(OrigTable!D1068=\"\",\"\",ScriptText!$B$1&CHAR(10)&ScriptText!$D$1)","v":""},{"$f":"IF(OrigTable!D1068=\"\",\"\",TEXT(OrigTable!D1068,\"00\"))","v":""},{"$f":"IF(OrigTable!D1068=\"\",\"\",ScriptText!$E$1&CHAR(10)&ScriptText!$C$1)","v":""},{"$f":"IF(OrigTable!E1068=\"\",\"\",ScriptText!$B$1&CHAR(10)&ScriptText!$D$1)","v":""},{"$f":"IF(OrigTable!E1068=\"\",\"\",TEXT(OrigTable!E1068,\"00\"))","v":""},{"$f":"IF(OrigTable!E1068=\"\",\"\",ScriptText!$E$1&CHAR(10)&ScriptText!$C$1)","v":""},{"$f":"IF(OrigTable!F1068=\"\",\"\",ScriptText!$B$1&CHAR(10)&ScriptText!$D$1)","v":""},{"$f":"IF(OrigTable!F1068=\"\",\"\",TEXT(OrigTable!F1068,\"00\"))","v":""},{"$f":"IF(OrigTable!F1068=\"\",\"\",ScriptText!$E$1&CHAR(10)&ScriptText!$C$1)","v":""},{"$f":"IF(OrigTable!G1068=\"\",\"\",ScriptText!$B$1&CHAR(10)&ScriptText!$D$1)","v":""},{"$f":"IF(OrigTable!G1068=\"\",\"\",TEXT(OrigTable!G1068,\"00\"))","v":""},{"$f":"IF(OrigTable!G1068=\"\",\"\",ScriptText!$E$1&CHAR(10)&ScriptText!$C$1)","v":""},0]
["\n\n\n",{"$f":"IF(OrigTable!A1069=\"\",\"\",ScriptText!$B$1&CHAR(10)&ScriptText!$D$1)","v":""},{"$f":"IF(OrigTable!A1069=\"\",\"\",TEXT(OrigTable!A1069,\"00\"))","v":""},{"$f":"IF(OrigTable!A1069=\"\",\"\",ScriptText!$E$1&CHAR(10)&ScriptText!$C$1)","v":""},{"$f":"IF(OrigTable!B1069=\"\",\"\",ScriptText!$B$1&CHAR(10)&ScriptText!$D$1)","v":""},{"$f":"IF(OrigTable!B1069=\"\",\"\",TEXT(OrigTable!B1069,\"00\"))","v":""},{"$f":"IF(OrigTable!B1069=\"\",\"\",ScriptText!$E$1&CHAR(10)&ScriptText!C1064)","v":""},{"$f":"IF(OrigTable!C1069=\"\",\"\",ScriptText!$B$1&CHAR(10)&ScriptText!$D$1)","v":""},{"$f":"IF(OrigTable!C1069=\"\",\"\",IF(LEN(OrigTable!C1069)>255,LEFT(OrigTable!C1069,250)&\". . .\",OrigTable!C1069))","v":""},{"$f":"IF(OrigTable!C1069=\"\",\"\",ScriptText!$E$1&CHAR(10)&ScriptText!$C$1)","v":""},{"$f":"IF(OrigTable!D1069=\"\",\"\",ScriptText!$B$1&CHAR(10)&ScriptText!$D$1)","v":""},{"$f":"IF(OrigTable!D1069=\"\",\"\",TEXT(OrigTable!D1069,\"00\"))","v":""},{"$f":"IF(OrigTable!D1069=\"\",\"\",ScriptText!$E$1&CHAR(10)&ScriptText!$C$1)","v":""},{"$f":"IF(OrigTable!E1069=\"\",\"\",ScriptText!$B$1&CHAR(10)&ScriptText!$D$1)","v":""},{"$f":"IF(OrigTable!E1069=\"\",\"\",TEXT(OrigTable!E1069,\"00\"))","v":""},{"$f":"IF(OrigTable!E1069=\"\",\"\",ScriptText!$E$1&CHAR(10)&ScriptText!$C$1)","v":""},{"$f":"IF(OrigTable!F1069=\"\",\"\",ScriptText!$B$1&CHAR(10)&ScriptText!$D$1)","v":""},{"$f":"IF(OrigTable!F1069=\"\",\"\",TEXT(OrigTable!F1069,\"00\"))","v":""},{"$f":"IF(OrigTable!F1069=\"\",\"\",ScriptText!$E$1&CHAR(10)&ScriptText!$C$1)","v":""},{"$f":"IF(OrigTable!G1069=\"\",\"\",ScriptText!$B$1&CHAR(10)&ScriptText!$D$1)","v":""},{"$f":"IF(OrigTable!G1069=\"\",\"\",TEXT(OrigTable!G1069,\"00\"))","v":""},{"$f":"IF(OrigTable!G1069=\"\",\"\",ScriptText!$E$1&CHAR(10)&ScriptText!$C$1)","v":""},0]
["\n\n\n",{"$f":"IF(OrigTable!A1070=\"\",\"\",ScriptText!$B$1&CHAR(10)&ScriptText!$D$1)","v":""},{"$f":"IF(OrigTable!A1070=\"\",\"\",TEXT(OrigTable!A1070,\"00\"))","v":""},{"$f":"IF(OrigTable!A1070=\"\",\"\",ScriptText!$E$1&CHAR(10)&ScriptText!$C$1)","v":""},{"$f":"IF(OrigTable!B1070=\"\",\"\",ScriptText!$B$1&CHAR(10)&ScriptText!$D$1)","v":""},{"$f":"IF(OrigTable!B1070=\"\",\"\",TEXT(OrigTable!B1070,\"00\"))","v":""},{"$f":"IF(OrigTable!B1070=\"\",\"\",ScriptText!$E$1&CHAR(10)&ScriptText!C1065)","v":""},{"$f":"IF(OrigTable!C1070=\"\",\"\",ScriptText!$B$1&CHAR(10)&ScriptText!$D$1)","v":""},{"$f":"IF(OrigTable!C1070=\"\",\"\",IF(LEN(OrigTable!C1070)>255,LEFT(OrigTable!C1070,250)&\". . .\",OrigTable!C1070))","v":""},{"$f":"IF(OrigTable!C1070=\"\",\"\",ScriptText!$E$1&CHAR(10)&ScriptText!$C$1)","v":""},{"$f":"IF(OrigTable!D1070=\"\",\"\",ScriptText!$B$1&CHAR(10)&ScriptText!$D$1)","v":""},{"$f":"IF(OrigTable!D1070=\"\",\"\",TEXT(OrigTable!D1070,\"00\"))","v":""},{"$f":"IF(OrigTable!D1070=\"\",\"\",ScriptText!$E$1&CHAR(10)&ScriptText!$C$1)","v":""},{"$f":"IF(OrigTable!E1070=\"\",\"\",ScriptText!$B$1&CHAR(10)&ScriptText!$D$1)","v":""},{"$f":"IF(OrigTable!E1070=\"\",\"\",TEXT(OrigTable!E1070,\"00\"))","v":""},{"$f":"IF(OrigTable!E1070=\"\",\"\",ScriptText!$E$1&CHAR(10)&ScriptText!$C$1)","v":""},{"$f":"IF(OrigTable!F1070=\"\",\"\",ScriptText!$B$1&CHAR(10)&ScriptText!$D$1)","v":""},{"$f":"IF(OrigTable!F1070=\"\",\"\",TEXT(OrigTable!F1070,\"00\"))","v":""},{"$f":"IF(OrigTable!F1070=\"\",\"\",ScriptText!$E$1&CHAR(10)&ScriptText!$C$1)","v":""},{"$f":"IF(OrigTable!G1070=\"\",\"\",ScriptText!$B$1&CHAR(10)&ScriptText!$D$1)","v":""},{"$f":"IF(OrigTable!G1070=\"\",\"\",TEXT(OrigTable!G1070,\"00\"))","v":""},{"$f":"IF(OrigTable!G1070=\"\",\"\",ScriptText!$E$1&CHAR(10)&ScriptText!$C$1)","v":""},0]
["\n\n\n",{"$f":"IF(OrigTable!A1071=\"\",\"\",ScriptText!$B$1&CHAR(10)&ScriptText!$D$1)","v":""},{"$f":"IF(OrigTable!A1071=\"\",\"\",TEXT(OrigTable!A1071,\"00\"))","v":""},{"$f":"IF(OrigTable!A1071=\"\",\"\",ScriptText!$E$1&CHAR(10)&ScriptText!$C$1)","v":""},{"$f":"IF(OrigTable!B1071=\"\",\"\",ScriptText!$B$1&CHAR(10)&ScriptText!$D$1)","v":""},{"$f":"IF(OrigTable!B1071=\"\",\"\",TEXT(OrigTable!B1071,\"00\"))","v":""},{"$f":"IF(OrigTable!B1071=\"\",\"\",ScriptText!$E$1&CHAR(10)&ScriptText!C1066)","v":""},{"$f":"IF(OrigTable!C1071=\"\",\"\",ScriptText!$B$1&CHAR(10)&ScriptText!$D$1)","v":""},{"$f":"IF(OrigTable!C1071=\"\",\"\",IF(LEN(OrigTable!C1071)>255,LEFT(OrigTable!C1071,250)&\". . .\",OrigTable!C1071))","v":""},{"$f":"IF(OrigTable!C1071=\"\",\"\",ScriptText!$E$1&CHAR(10)&ScriptText!$C$1)","v":""},{"$f":"IF(OrigTable!D1071=\"\",\"\",ScriptText!$B$1&CHAR(10)&ScriptText!$D$1)","v":""},{"$f":"IF(OrigTable!D1071=\"\",\"\",TEXT(OrigTable!D1071,\"00\"))","v":""},{"$f":"IF(OrigTable!D1071=\"\",\"\",ScriptText!$E$1&CHAR(10)&ScriptText!$C$1)","v":""},{"$f":"IF(OrigTable!E1071=\"\",\"\",ScriptText!$B$1&CHAR(10)&ScriptText!$D$1)","v":""},{"$f":"IF(OrigTable!E1071=\"\",\"\",TEXT(OrigTable!E1071,\"00\"))","v":""},{"$f":"IF(OrigTable!E1071=\"\",\"\",ScriptText!$E$1&CHAR(10)&ScriptText!$C$1)","v":""},{"$f":"IF(OrigTable!F1071=\"\",\"\",ScriptText!$B$1&CHAR(10)&ScriptText!$D$1)","v":""},{"$f":"IF(OrigTable!F1071=\"\",\"\",TEXT(OrigTable!F1071,\"00\"))","v":""},{"$f":"IF(OrigTable!F1071=\"\",\"\",ScriptText!$E$1&CHAR(10)&ScriptText!$C$1)","v":""},{"$f":"IF(OrigTable!G1071=\"\",\"\",ScriptText!$B$1&CHAR(10)&ScriptText!$D$1)","v":""},{"$f":"IF(OrigTable!G1071=\"\",\"\",TEXT(OrigTable!G1071,\"00\"))","v":""},{"$f":"IF(OrigTable!G1071=\"\",\"\",ScriptText!$E$1&CHAR(10)&ScriptText!$C$1)","v":""},0]
["\n\n\n",{"$f":"IF(OrigTable!A1072=\"\",\"\",ScriptText!$B$1&CHAR(10)&ScriptText!$D$1)","v":""},{"$f":"IF(OrigTable!A1072=\"\",\"\",TEXT(OrigTable!A1072,\"00\"))","v":""},{"$f":"IF(OrigTable!A1072=\"\",\"\",ScriptText!$E$1&CHAR(10)&ScriptText!$C$1)","v":""},{"$f":"IF(OrigTable!B1072=\"\",\"\",ScriptText!$B$1&CHAR(10)&ScriptText!$D$1)","v":""},{"$f":"IF(OrigTable!B1072=\"\",\"\",TEXT(OrigTable!B1072,\"00\"))","v":""},{"$f":"IF(OrigTable!B1072=\"\",\"\",ScriptText!$E$1&CHAR(10)&ScriptText!C1067)","v":""},{"$f":"IF(OrigTable!C1072=\"\",\"\",ScriptText!$B$1&CHAR(10)&ScriptText!$D$1)","v":""},{"$f":"IF(OrigTable!C1072=\"\",\"\",IF(LEN(OrigTable!C1072)>255,LEFT(OrigTable!C1072,250)&\". . .\",OrigTable!C1072))","v":""},{"$f":"IF(OrigTable!C1072=\"\",\"\",ScriptText!$E$1&CHAR(10)&ScriptText!$C$1)","v":""},{"$f":"IF(OrigTable!D1072=\"\",\"\",ScriptText!$B$1&CHAR(10)&ScriptText!$D$1)","v":""},{"$f":"IF(OrigTable!D1072=\"\",\"\",TEXT(OrigTable!D1072,\"00\"))","v":""},{"$f":"IF(OrigTable!D1072=\"\",\"\",ScriptText!$E$1&CHAR(10)&ScriptText!$C$1)","v":""},{"$f":"IF(OrigTable!E1072=\"\",\"\",ScriptText!$B$1&CHAR(10)&ScriptText!$D$1)","v":""},{"$f":"IF(OrigTable!E1072=\"\",\"\",TEXT(OrigTable!E1072,\"00\"))","v":""},{"$f":"IF(OrigTable!E1072=\"\",\"\",ScriptText!$E$1&CHAR(10)&ScriptText!$C$1)","v":""},{"$f":"IF(OrigTable!F1072=\"\",\"\",ScriptText!$B$1&CHAR(10)&ScriptText!$D$1)","v":""},{"$f":"IF(OrigTable!F1072=\"\",\"\",TEXT(OrigTable!F1072,\"00\"))","v":""},{"$f":"IF(OrigTable!F1072=\"\",\"\",ScriptText!$E$1&CHAR(10)&ScriptText!$C$1)","v":""},{"$f":"IF(OrigTable!G1072=\"\",\"\",ScriptText!$B$1&CHAR(10)&ScriptText!$D$1)","v":""},{"$f":"IF(OrigTable!G1072=\"\",\"\",TEXT(OrigTable!G1072,\"00\"))","v":""},{"$f":"IF(OrigTable!G1072=\"\",\"\",ScriptText!$E$1&CHAR(10)&ScriptText!$C$1)","v":""},0]
["\n\n\n",{"$f":"IF(OrigTable!A1073=\"\",\"\",ScriptText!$B$1&CHAR(10)&ScriptText!$D$1)","v":""},{"$f":"IF(OrigTable!A1073=\"\",\"\",TEXT(OrigTable!A1073,\"00\"))","v":""},{"$f":"IF(OrigTable!A1073=\"\",\"\",ScriptText!$E$1&CHAR(10)&ScriptText!$C$1)","v":""},{"$f":"IF(OrigTable!B1073=\"\",\"\",ScriptText!$B$1&CHAR(10)&ScriptText!$D$1)","v":""},{"$f":"IF(OrigTable!B1073=\"\",\"\",TEXT(OrigTable!B1073,\"00\"))","v":""},{"$f":"IF(OrigTable!B1073=\"\",\"\",ScriptText!$E$1&CHAR(10)&ScriptText!C1068)","v":""},{"$f":"IF(OrigTable!C1073=\"\",\"\",ScriptText!$B$1&CHAR(10)&ScriptText!$D$1)","v":""},{"$f":"IF(OrigTable!C1073=\"\",\"\",IF(LEN(OrigTable!C1073)>255,LEFT(OrigTable!C1073,250)&\". . .\",OrigTable!C1073))","v":""},{"$f":"IF(OrigTable!C1073=\"\",\"\",ScriptText!$E$1&CHAR(10)&ScriptText!$C$1)","v":""},{"$f":"IF(OrigTable!D1073=\"\",\"\",ScriptText!$B$1&CHAR(10)&ScriptText!$D$1)","v":""},{"$f":"IF(OrigTable!D1073=\"\",\"\",TEXT(OrigTable!D1073,\"00\"))","v":""},{"$f":"IF(OrigTable!D1073=\"\",\"\",ScriptText!$E$1&CHAR(10)&ScriptText!$C$1)","v":""},{"$f":"IF(OrigTable!E1073=\"\",\"\",ScriptText!$B$1&CHAR(10)&ScriptText!$D$1)","v":""},{"$f":"IF(OrigTable!E1073=\"\",\"\",TEXT(OrigTable!E1073,\"00\"))","v":""},{"$f":"IF(OrigTable!E1073=\"\",\"\",ScriptText!$E$1&CHAR(10)&ScriptText!$C$1)","v":""},{"$f":"IF(OrigTable!F1073=\"\",\"\",ScriptText!$B$1&CHAR(10)&ScriptText!$D$1)","v":""},{"$f":"IF(OrigTable!F1073=\"\",\"\",TEXT(OrigTable!F1073,\"00\"))","v":""},{"$f":"IF(OrigTable!F1073=\"\",\"\",ScriptText!$E$1&CHAR(10)&ScriptText!$C$1)","v":""},{"$f":"IF(OrigTable!G1073=\"\",\"\",ScriptText!$B$1&CHAR(10)&ScriptText!$D$1)","v":""},{"$f":"IF(OrigTable!G1073=\"\",\"\",TEXT(OrigTable!G1073,\"00\"))","v":""},{"$f":"IF(OrigTable!G1073=\"\",\"\",ScriptText!$E$1&CHAR(10)&ScriptText!$C$1)","v":""},0]
["\n\n\n",{"$f":"IF(OrigTable!A1074=\"\",\"\",ScriptText!$B$1&CHAR(10)&ScriptText!$D$1)","v":""},{"$f":"IF(OrigTable!A1074=\"\",\"\",TEXT(OrigTable!A1074,\"00\"))","v":""},{"$f":"IF(OrigTable!A1074=\"\",\"\",ScriptText!$E$1&CHAR(10)&ScriptText!$C$1)","v":""},{"$f":"IF(OrigTable!B1074=\"\",\"\",ScriptText!$B$1&CHAR(10)&ScriptText!$D$1)","v":""},{"$f":"IF(OrigTable!B1074=\"\",\"\",TEXT(OrigTable!B1074,\"00\"))","v":""},{"$f":"IF(OrigTable!B1074=\"\",\"\",ScriptText!$E$1&CHAR(10)&ScriptText!C1069)","v":""},{"$f":"IF(OrigTable!C1074=\"\",\"\",ScriptText!$B$1&CHAR(10)&ScriptText!$D$1)","v":""},{"$f":"IF(OrigTable!C1074=\"\",\"\",IF(LEN(OrigTable!C1074)>255,LEFT(OrigTable!C1074,250)&\". . .\",OrigTable!C1074))","v":""},{"$f":"IF(OrigTable!C1074=\"\",\"\",ScriptText!$E$1&CHAR(10)&ScriptText!$C$1)","v":""},{"$f":"IF(OrigTable!D1074=\"\",\"\",ScriptText!$B$1&CHAR(10)&ScriptText!$D$1)","v":""},{"$f":"IF(OrigTable!D1074=\"\",\"\",TEXT(OrigTable!D1074,\"00\"))","v":""},{"$f":"IF(OrigTable!D1074=\"\",\"\",ScriptText!$E$1&CHAR(10)&ScriptText!$C$1)","v":""},{"$f":"IF(OrigTable!E1074=\"\",\"\",ScriptText!$B$1&CHAR(10)&ScriptText!$D$1)","v":""},{"$f":"IF(OrigTable!E1074=\"\",\"\",TEXT(OrigTable!E1074,\"00\"))","v":""},{"$f":"IF(OrigTable!E1074=\"\",\"\",ScriptText!$E$1&CHAR(10)&ScriptText!$C$1)","v":""},{"$f":"IF(OrigTable!F1074=\"\",\"\",ScriptText!$B$1&CHAR(10)&ScriptText!$D$1)","v":""},{"$f":"IF(OrigTable!F1074=\"\",\"\",TEXT(OrigTable!F1074,\"00\"))","v":""},{"$f":"IF(OrigTable!F1074=\"\",\"\",ScriptText!$E$1&CHAR(10)&ScriptText!$C$1)","v":""},{"$f":"IF(OrigTable!G1074=\"\",\"\",ScriptText!$B$1&CHAR(10)&ScriptText!$D$1)","v":""},{"$f":"IF(OrigTable!G1074=\"\",\"\",TEXT(OrigTable!G1074,\"00\"))","v":""},{"$f":"IF(OrigTable!G1074=\"\",\"\",ScriptText!$E$1&CHAR(10)&ScriptText!$C$1)","v":""},0]
["\n\n\n",{"$f":"IF(OrigTable!A1075=\"\",\"\",ScriptText!$B$1&CHAR(10)&ScriptText!$D$1)","v":""},{"$f":"IF(OrigTable!A1075=\"\",\"\",TEXT(OrigTable!A1075,\"00\"))","v":""},{"$f":"IF(OrigTable!A1075=\"\",\"\",ScriptText!$E$1&CHAR(10)&ScriptText!$C$1)","v":""},{"$f":"IF(OrigTable!B1075=\"\",\"\",ScriptText!$B$1&CHAR(10)&ScriptText!$D$1)","v":""},{"$f":"IF(OrigTable!B1075=\"\",\"\",TEXT(OrigTable!B1075,\"00\"))","v":""},{"$f":"IF(OrigTable!B1075=\"\",\"\",ScriptText!$E$1&CHAR(10)&ScriptText!C1070)","v":""},{"$f":"IF(OrigTable!C1075=\"\",\"\",ScriptText!$B$1&CHAR(10)&ScriptText!$D$1)","v":""},{"$f":"IF(OrigTable!C1075=\"\",\"\",IF(LEN(OrigTable!C1075)>255,LEFT(OrigTable!C1075,250)&\". . .\",OrigTable!C1075))","v":""},{"$f":"IF(OrigTable!C1075=\"\",\"\",ScriptText!$E$1&CHAR(10)&ScriptText!$C$1)","v":""},{"$f":"IF(OrigTable!D1075=\"\",\"\",ScriptText!$B$1&CHAR(10)&ScriptText!$D$1)","v":""},{"$f":"IF(OrigTable!D1075=\"\",\"\",TEXT(OrigTable!D1075,\"00\"))","v":""},{"$f":"IF(OrigTable!D1075=\"\",\"\",ScriptText!$E$1&CHAR(10)&ScriptText!$C$1)","v":""},{"$f":"IF(OrigTable!E1075=\"\",\"\",ScriptText!$B$1&CHAR(10)&ScriptText!$D$1)","v":""},{"$f":"IF(OrigTable!E1075=\"\",\"\",TEXT(OrigTable!E1075,\"00\"))","v":""},{"$f":"IF(OrigTable!E1075=\"\",\"\",ScriptText!$E$1&CHAR(10)&ScriptText!$C$1)","v":""},{"$f":"IF(OrigTable!F1075=\"\",\"\",ScriptText!$B$1&CHAR(10)&ScriptText!$D$1)","v":""},{"$f":"IF(OrigTable!F1075=\"\",\"\",TEXT(OrigTable!F1075,\"00\"))","v":""},{"$f":"IF(OrigTable!F1075=\"\",\"\",ScriptText!$E$1&CHAR(10)&ScriptText!$C$1)","v":""},{"$f":"IF(OrigTable!G1075=\"\",\"\",ScriptText!$B$1&CHAR(10)&ScriptText!$D$1)","v":""},{"$f":"IF(OrigTable!G1075=\"\",\"\",TEXT(OrigTable!G1075,\"00\"))","v":""},{"$f":"IF(OrigTable!G1075=\"\",\"\",ScriptText!$E$1&CHAR(10)&ScriptText!$C$1)","v":""},0]
["\n\n\n",{"$f":"IF(OrigTable!A1076=\"\",\"\",ScriptText!$B$1&CHAR(10)&ScriptText!$D$1)","v":""},{"$f":"IF(OrigTable!A1076=\"\",\"\",TEXT(OrigTable!A1076,\"00\"))","v":""},{"$f":"IF(OrigTable!A1076=\"\",\"\",ScriptText!$E$1&CHAR(10)&ScriptText!$C$1)","v":""},{"$f":"IF(OrigTable!B1076=\"\",\"\",ScriptText!$B$1&CHAR(10)&ScriptText!$D$1)","v":""},{"$f":"IF(OrigTable!B1076=\"\",\"\",TEXT(OrigTable!B1076,\"00\"))","v":""},{"$f":"IF(OrigTable!B1076=\"\",\"\",ScriptText!$E$1&CHAR(10)&ScriptText!C1071)","v":""},{"$f":"IF(OrigTable!C1076=\"\",\"\",ScriptText!$B$1&CHAR(10)&ScriptText!$D$1)","v":""},{"$f":"IF(OrigTable!C1076=\"\",\"\",IF(LEN(OrigTable!C1076)>255,LEFT(OrigTable!C1076,250)&\". . .\",OrigTable!C1076))","v":""},{"$f":"IF(OrigTable!C1076=\"\",\"\",ScriptText!$E$1&CHAR(10)&ScriptText!$C$1)","v":""},{"$f":"IF(OrigTable!D1076=\"\",\"\",ScriptText!$B$1&CHAR(10)&ScriptText!$D$1)","v":""},{"$f":"IF(OrigTable!D1076=\"\",\"\",TEXT(OrigTable!D1076,\"00\"))","v":""},{"$f":"IF(OrigTable!D1076=\"\",\"\",ScriptText!$E$1&CHAR(10)&ScriptText!$C$1)","v":""},{"$f":"IF(OrigTable!E1076=\"\",\"\",ScriptText!$B$1&CHAR(10)&ScriptText!$D$1)","v":""},{"$f":"IF(OrigTable!E1076=\"\",\"\",TEXT(OrigTable!E1076,\"00\"))","v":""},{"$f":"IF(OrigTable!E1076=\"\",\"\",ScriptText!$E$1&CHAR(10)&ScriptText!$C$1)","v":""},{"$f":"IF(OrigTable!F1076=\"\",\"\",ScriptText!$B$1&CHAR(10)&ScriptText!$D$1)","v":""},{"$f":"IF(OrigTable!F1076=\"\",\"\",TEXT(OrigTable!F1076,\"00\"))","v":""},{"$f":"IF(OrigTable!F1076=\"\",\"\",ScriptText!$E$1&CHAR(10)&ScriptText!$C$1)","v":""},{"$f":"IF(OrigTable!G1076=\"\",\"\",ScriptText!$B$1&CHAR(10)&ScriptText!$D$1)","v":""},{"$f":"IF(OrigTable!G1076=\"\",\"\",TEXT(OrigTable!G1076,\"00\"))","v":""},{"$f":"IF(OrigTable!G1076=\"\",\"\",ScriptText!$E$1&CHAR(10)&ScriptText!$C$1)","v":""},0]
["\n\n\n",{"$f":"IF(OrigTable!A1077=\"\",\"\",ScriptText!$B$1&CHAR(10)&ScriptText!$D$1)","v":""},{"$f":"IF(OrigTable!A1077=\"\",\"\",TEXT(OrigTable!A1077,\"00\"))","v":""},{"$f":"IF(OrigTable!A1077=\"\",\"\",ScriptText!$E$1&CHAR(10)&ScriptText!$C$1)","v":""},{"$f":"IF(OrigTable!B1077=\"\",\"\",ScriptText!$B$1&CHAR(10)&ScriptText!$D$1)","v":""},{"$f":"IF(OrigTable!B1077=\"\",\"\",TEXT(OrigTable!B1077,\"00\"))","v":""},{"$f":"IF(OrigTable!B1077=\"\",\"\",ScriptText!$E$1&CHAR(10)&ScriptText!C1072)","v":""},{"$f":"IF(OrigTable!C1077=\"\",\"\",ScriptText!$B$1&CHAR(10)&ScriptText!$D$1)","v":""},{"$f":"IF(OrigTable!C1077=\"\",\"\",IF(LEN(OrigTable!C1077)>255,LEFT(OrigTable!C1077,250)&\". . .\",OrigTable!C1077))","v":""},{"$f":"IF(OrigTable!C1077=\"\",\"\",ScriptText!$E$1&CHAR(10)&ScriptText!$C$1)","v":""},{"$f":"IF(OrigTable!D1077=\"\",\"\",ScriptText!$B$1&CHAR(10)&ScriptText!$D$1)","v":""},{"$f":"IF(OrigTable!D1077=\"\",\"\",TEXT(OrigTable!D1077,\"00\"))","v":""},{"$f":"IF(OrigTable!D1077=\"\",\"\",ScriptText!$E$1&CHAR(10)&ScriptText!$C$1)","v":""},{"$f":"IF(OrigTable!E1077=\"\",\"\",ScriptText!$B$1&CHAR(10)&ScriptText!$D$1)","v":""},{"$f":"IF(OrigTable!E1077=\"\",\"\",TEXT(OrigTable!E1077,\"00\"))","v":""},{"$f":"IF(OrigTable!E1077=\"\",\"\",ScriptText!$E$1&CHAR(10)&ScriptText!$C$1)","v":""},{"$f":"IF(OrigTable!F1077=\"\",\"\",ScriptText!$B$1&CHAR(10)&ScriptText!$D$1)","v":""},{"$f":"IF(OrigTable!F1077=\"\",\"\",TEXT(OrigTable!F1077,\"00\"))","v":""},{"$f":"IF(OrigTable!F1077=\"\",\"\",ScriptText!$E$1&CHAR(10)&ScriptText!$C$1)","v":""},{"$f":"IF(OrigTable!G1077=\"\",\"\",ScriptText!$B$1&CHAR(10)&ScriptText!$D$1)","v":""},{"$f":"IF(OrigTable!G1077=\"\",\"\",TEXT(OrigTable!G1077,\"00\"))","v":""},{"$f":"IF(OrigTable!G1077=\"\",\"\",ScriptText!$E$1&CHAR(10)&ScriptText!$C$1)","v":""},0]
["\n\n\n",{"$f":"IF(OrigTable!A1078=\"\",\"\",ScriptText!$B$1&CHAR(10)&ScriptText!$D$1)","v":""},{"$f":"IF(OrigTable!A1078=\"\",\"\",TEXT(OrigTable!A1078,\"00\"))","v":""},{"$f":"IF(OrigTable!A1078=\"\",\"\",ScriptText!$E$1&CHAR(10)&ScriptText!$C$1)","v":""},{"$f":"IF(OrigTable!B1078=\"\",\"\",ScriptText!$B$1&CHAR(10)&ScriptText!$D$1)","v":""},{"$f":"IF(OrigTable!B1078=\"\",\"\",TEXT(OrigTable!B1078,\"00\"))","v":""},{"$f":"IF(OrigTable!B1078=\"\",\"\",ScriptText!$E$1&CHAR(10)&ScriptText!C1073)","v":""},{"$f":"IF(OrigTable!C1078=\"\",\"\",ScriptText!$B$1&CHAR(10)&ScriptText!$D$1)","v":""},{"$f":"IF(OrigTable!C1078=\"\",\"\",IF(LEN(OrigTable!C1078)>255,LEFT(OrigTable!C1078,250)&\". . .\",OrigTable!C1078))","v":""},{"$f":"IF(OrigTable!C1078=\"\",\"\",ScriptText!$E$1&CHAR(10)&ScriptText!$C$1)","v":""},{"$f":"IF(OrigTable!D1078=\"\",\"\",ScriptText!$B$1&CHAR(10)&ScriptText!$D$1)","v":""},{"$f":"IF(OrigTable!D1078=\"\",\"\",TEXT(OrigTable!D1078,\"00\"))","v":""},{"$f":"IF(OrigTable!D1078=\"\",\"\",ScriptText!$E$1&CHAR(10)&ScriptText!$C$1)","v":""},{"$f":"IF(OrigTable!E1078=\"\",\"\",ScriptText!$B$1&CHAR(10)&ScriptText!$D$1)","v":""},{"$f":"IF(OrigTable!E1078=\"\",\"\",TEXT(OrigTable!E1078,\"00\"))","v":""},{"$f":"IF(OrigTable!E1078=\"\",\"\",ScriptText!$E$1&CHAR(10)&ScriptText!$C$1)","v":""},{"$f":"IF(OrigTable!F1078=\"\",\"\",ScriptText!$B$1&CHAR(10)&ScriptText!$D$1)","v":""},{"$f":"IF(OrigTable!F1078=\"\",\"\",TEXT(OrigTable!F1078,\"00\"))","v":""},{"$f":"IF(OrigTable!F1078=\"\",\"\",ScriptText!$E$1&CHAR(10)&ScriptText!$C$1)","v":""},{"$f":"IF(OrigTable!G1078=\"\",\"\",ScriptText!$B$1&CHAR(10)&ScriptText!$D$1)","v":""},{"$f":"IF(OrigTable!G1078=\"\",\"\",TEXT(OrigTable!G1078,\"00\"))","v":""},{"$f":"IF(OrigTable!G1078=\"\",\"\",ScriptText!$E$1&CHAR(10)&ScriptText!$C$1)","v":""},0]
["\n\n\n",{"$f":"IF(OrigTable!A1079=\"\",\"\",ScriptText!$B$1&CHAR(10)&ScriptText!$D$1)","v":""},{"$f":"IF(OrigTable!A1079=\"\",\"\",TEXT(OrigTable!A1079,\"00\"))","v":""},{"$f":"IF(OrigTable!A1079=\"\",\"\",ScriptText!$E$1&CHAR(10)&ScriptText!$C$1)","v":""},{"$f":"IF(OrigTable!B1079=\"\",\"\",ScriptText!$B$1&CHAR(10)&ScriptText!$D$1)","v":""},{"$f":"IF(OrigTable!B1079=\"\",\"\",TEXT(OrigTable!B1079,\"00\"))","v":""},{"$f":"IF(OrigTable!B1079=\"\",\"\",ScriptText!$E$1&CHAR(10)&ScriptText!C1074)","v":""},{"$f":"IF(OrigTable!C1079=\"\",\"\",ScriptText!$B$1&CHAR(10)&ScriptText!$D$1)","v":""},{"$f":"IF(OrigTable!C1079=\"\",\"\",IF(LEN(OrigTable!C1079)>255,LEFT(OrigTable!C1079,250)&\". . .\",OrigTable!C1079))","v":""},{"$f":"IF(OrigTable!C1079=\"\",\"\",ScriptText!$E$1&CHAR(10)&ScriptText!$C$1)","v":""},{"$f":"IF(OrigTable!D1079=\"\",\"\",ScriptText!$B$1&CHAR(10)&ScriptText!$D$1)","v":""},{"$f":"IF(OrigTable!D1079=\"\",\"\",TEXT(OrigTable!D1079,\"00\"))","v":""},{"$f":"IF(OrigTable!D1079=\"\",\"\",ScriptText!$E$1&CHAR(10)&ScriptText!$C$1)","v":""},{"$f":"IF(OrigTable!E1079=\"\",\"\",ScriptText!$B$1&CHAR(10)&ScriptText!$D$1)","v":""},{"$f":"IF(OrigTable!E1079=\"\",\"\",TEXT(OrigTable!E1079,\"00\"))","v":""},{"$f":"IF(OrigTable!E1079=\"\",\"\",ScriptText!$E$1&CHAR(10)&ScriptText!$C$1)","v":""},{"$f":"IF(OrigTable!F1079=\"\",\"\",ScriptText!$B$1&CHAR(10)&ScriptText!$D$1)","v":""},{"$f":"IF(OrigTable!F1079=\"\",\"\",TEXT(OrigTable!F1079,\"00\"))","v":""},{"$f":"IF(OrigTable!F1079=\"\",\"\",ScriptText!$E$1&CHAR(10)&ScriptText!$C$1)","v":""},{"$f":"IF(OrigTable!G1079=\"\",\"\",ScriptText!$B$1&CHAR(10)&ScriptText!$D$1)","v":""},{"$f":"IF(OrigTable!G1079=\"\",\"\",TEXT(OrigTable!G1079,\"00\"))","v":""},{"$f":"IF(OrigTable!G1079=\"\",\"\",ScriptText!$E$1&CHAR(10)&ScriptText!$C$1)","v":""},0]
["\n\n\n",{"$f":"IF(OrigTable!A1080=\"\",\"\",ScriptText!$B$1&CHAR(10)&ScriptText!$D$1)","v":""},{"$f":"IF(OrigTable!A1080=\"\",\"\",TEXT(OrigTable!A1080,\"00\"))","v":""},{"$f":"IF(OrigTable!A1080=\"\",\"\",ScriptText!$E$1&CHAR(10)&ScriptText!$C$1)","v":""},{"$f":"IF(OrigTable!B1080=\"\",\"\",ScriptText!$B$1&CHAR(10)&ScriptText!$D$1)","v":""},{"$f":"IF(OrigTable!B1080=\"\",\"\",TEXT(OrigTable!B1080,\"00\"))","v":""},{"$f":"IF(OrigTable!B1080=\"\",\"\",ScriptText!$E$1&CHAR(10)&ScriptText!C1075)","v":""},{"$f":"IF(OrigTable!C1080=\"\",\"\",ScriptText!$B$1&CHAR(10)&ScriptText!$D$1)","v":""},{"$f":"IF(OrigTable!C1080=\"\",\"\",IF(LEN(OrigTable!C1080)>255,LEFT(OrigTable!C1080,250)&\". . .\",OrigTable!C1080))","v":""},{"$f":"IF(OrigTable!C1080=\"\",\"\",ScriptText!$E$1&CHAR(10)&ScriptText!$C$1)","v":""},{"$f":"IF(OrigTable!D1080=\"\",\"\",ScriptText!$B$1&CHAR(10)&ScriptText!$D$1)","v":""},{"$f":"IF(OrigTable!D1080=\"\",\"\",TEXT(OrigTable!D1080,\"00\"))","v":""},{"$f":"IF(OrigTable!D1080=\"\",\"\",ScriptText!$E$1&CHAR(10)&ScriptText!$C$1)","v":""},{"$f":"IF(OrigTable!E1080=\"\",\"\",ScriptText!$B$1&CHAR(10)&ScriptText!$D$1)","v":""},{"$f":"IF(OrigTable!E1080=\"\",\"\",TEXT(OrigTable!E1080,\"00\"))","v":""},{"$f":"IF(OrigTable!E1080=\"\",\"\",ScriptText!$E$1&CHAR(10)&ScriptText!$C$1)","v":""},{"$f":"IF(OrigTable!F1080=\"\",\"\",ScriptText!$B$1&CHAR(10)&ScriptText!$D$1)","v":""},{"$f":"IF(OrigTable!F1080=\"\",\"\",TEXT(OrigTable!F1080,\"00\"))","v":""},{"$f":"IF(OrigTable!F1080=\"\",\"\",ScriptText!$E$1&CHAR(10)&ScriptText!$C$1)","v":""},{"$f":"IF(OrigTable!G1080=\"\",\"\",ScriptText!$B$1&CHAR(10)&ScriptText!$D$1)","v":""},{"$f":"IF(OrigTable!G1080=\"\",\"\",TEXT(OrigTable!G1080,\"00\"))","v":""},{"$f":"IF(OrigTable!G1080=\"\",\"\",ScriptText!$E$1&CHAR(10)&ScriptText!$C$1)","v":""},0]
["\n\n\n",{"$f":"IF(OrigTable!A1081=\"\",\"\",ScriptText!$B$1&CHAR(10)&ScriptText!$D$1)","v":""},{"$f":"IF(OrigTable!A1081=\"\",\"\",TEXT(OrigTable!A1081,\"00\"))","v":""},{"$f":"IF(OrigTable!A1081=\"\",\"\",ScriptText!$E$1&CHAR(10)&ScriptText!$C$1)","v":""},{"$f":"IF(OrigTable!B1081=\"\",\"\",ScriptText!$B$1&CHAR(10)&ScriptText!$D$1)","v":""},{"$f":"IF(OrigTable!B1081=\"\",\"\",TEXT(OrigTable!B1081,\"00\"))","v":""},{"$f":"IF(OrigTable!B1081=\"\",\"\",ScriptText!$E$1&CHAR(10)&ScriptText!C1076)","v":""},{"$f":"IF(OrigTable!C1081=\"\",\"\",ScriptText!$B$1&CHAR(10)&ScriptText!$D$1)","v":""},{"$f":"IF(OrigTable!C1081=\"\",\"\",IF(LEN(OrigTable!C1081)>255,LEFT(OrigTable!C1081,250)&\". . .\",OrigTable!C1081))","v":""},{"$f":"IF(OrigTable!C1081=\"\",\"\",ScriptText!$E$1&CHAR(10)&ScriptText!$C$1)","v":""},{"$f":"IF(OrigTable!D1081=\"\",\"\",ScriptText!$B$1&CHAR(10)&ScriptText!$D$1)","v":""},{"$f":"IF(OrigTable!D1081=\"\",\"\",TEXT(OrigTable!D1081,\"00\"))","v":""},{"$f":"IF(OrigTable!D1081=\"\",\"\",ScriptText!$E$1&CHAR(10)&ScriptText!$C$1)","v":""},{"$f":"IF(OrigTable!E1081=\"\",\"\",ScriptText!$B$1&CHAR(10)&ScriptText!$D$1)","v":""},{"$f":"IF(OrigTable!E1081=\"\",\"\",TEXT(OrigTable!E1081,\"00\"))","v":""},{"$f":"IF(OrigTable!E1081=\"\",\"\",ScriptText!$E$1&CHAR(10)&ScriptText!$C$1)","v":""},{"$f":"IF(OrigTable!F1081=\"\",\"\",ScriptText!$B$1&CHAR(10)&ScriptText!$D$1)","v":""},{"$f":"IF(OrigTable!F1081=\"\",\"\",TEXT(OrigTable!F1081,\"00\"))","v":""},{"$f":"IF(OrigTable!F1081=\"\",\"\",ScriptText!$E$1&CHAR(10)&ScriptText!$C$1)","v":""},{"$f":"IF(OrigTable!G1081=\"\",\"\",ScriptText!$B$1&CHAR(10)&ScriptText!$D$1)","v":""},{"$f":"IF(OrigTable!G1081=\"\",\"\",TEXT(OrigTable!G1081,\"00\"))","v":""},{"$f":"IF(OrigTable!G1081=\"\",\"\",ScriptText!$E$1&CHAR(10)&ScriptText!$C$1)","v":""},0]
["\n\n\n",{"$f":"IF(OrigTable!A1082=\"\",\"\",ScriptText!$B$1&CHAR(10)&ScriptText!$D$1)","v":""},{"$f":"IF(OrigTable!A1082=\"\",\"\",TEXT(OrigTable!A1082,\"00\"))","v":""},{"$f":"IF(OrigTable!A1082=\"\",\"\",ScriptText!$E$1&CHAR(10)&ScriptText!$C$1)","v":""},{"$f":"IF(OrigTable!B1082=\"\",\"\",ScriptText!$B$1&CHAR(10)&ScriptText!$D$1)","v":""},{"$f":"IF(OrigTable!B1082=\"\",\"\",TEXT(OrigTable!B1082,\"00\"))","v":""},{"$f":"IF(OrigTable!B1082=\"\",\"\",ScriptText!$E$1&CHAR(10)&ScriptText!C1077)","v":""},{"$f":"IF(OrigTable!C1082=\"\",\"\",ScriptText!$B$1&CHAR(10)&ScriptText!$D$1)","v":""},{"$f":"IF(OrigTable!C1082=\"\",\"\",IF(LEN(OrigTable!C1082)>255,LEFT(OrigTable!C1082,250)&\". . .\",OrigTable!C1082))","v":""},{"$f":"IF(OrigTable!C1082=\"\",\"\",ScriptText!$E$1&CHAR(10)&ScriptText!$C$1)","v":""},{"$f":"IF(OrigTable!D1082=\"\",\"\",ScriptText!$B$1&CHAR(10)&ScriptText!$D$1)","v":""},{"$f":"IF(OrigTable!D1082=\"\",\"\",TEXT(OrigTable!D1082,\"00\"))","v":""},{"$f":"IF(OrigTable!D1082=\"\",\"\",ScriptText!$E$1&CHAR(10)&ScriptText!$C$1)","v":""},{"$f":"IF(OrigTable!E1082=\"\",\"\",ScriptText!$B$1&CHAR(10)&ScriptText!$D$1)","v":""},{"$f":"IF(OrigTable!E1082=\"\",\"\",TEXT(OrigTable!E1082,\"00\"))","v":""},{"$f":"IF(OrigTable!E1082=\"\",\"\",ScriptText!$E$1&CHAR(10)&ScriptText!$C$1)","v":""},{"$f":"IF(OrigTable!F1082=\"\",\"\",ScriptText!$B$1&CHAR(10)&ScriptText!$D$1)","v":""},{"$f":"IF(OrigTable!F1082=\"\",\"\",TEXT(OrigTable!F1082,\"00\"))","v":""},{"$f":"IF(OrigTable!F1082=\"\",\"\",ScriptText!$E$1&CHAR(10)&ScriptText!$C$1)","v":""},{"$f":"IF(OrigTable!G1082=\"\",\"\",ScriptText!$B$1&CHAR(10)&ScriptText!$D$1)","v":""},{"$f":"IF(OrigTable!G1082=\"\",\"\",TEXT(OrigTable!G1082,\"00\"))","v":""},{"$f":"IF(OrigTable!G1082=\"\",\"\",ScriptText!$E$1&CHAR(10)&ScriptText!$C$1)","v":""},0]
["\n\n\n",{"$f":"IF(OrigTable!A1083=\"\",\"\",ScriptText!$B$1&CHAR(10)&ScriptText!$D$1)","v":""},{"$f":"IF(OrigTable!A1083=\"\",\"\",TEXT(OrigTable!A1083,\"00\"))","v":""},{"$f":"IF(OrigTable!A1083=\"\",\"\",ScriptText!$E$1&CHAR(10)&ScriptText!$C$1)","v":""},{"$f":"IF(OrigTable!B1083=\"\",\"\",ScriptText!$B$1&CHAR(10)&ScriptText!$D$1)","v":""},{"$f":"IF(OrigTable!B1083=\"\",\"\",TEXT(OrigTable!B1083,\"00\"))","v":""},{"$f":"IF(OrigTable!B1083=\"\",\"\",ScriptText!$E$1&CHAR(10)&ScriptText!C1078)","v":""},{"$f":"IF(OrigTable!C1083=\"\",\"\",ScriptText!$B$1&CHAR(10)&ScriptText!$D$1)","v":""},{"$f":"IF(OrigTable!C1083=\"\",\"\",IF(LEN(OrigTable!C1083)>255,LEFT(OrigTable!C1083,250)&\". . .\",OrigTable!C1083))","v":""},{"$f":"IF(OrigTable!C1083=\"\",\"\",ScriptText!$E$1&CHAR(10)&ScriptText!$C$1)","v":""},{"$f":"IF(OrigTable!D1083=\"\",\"\",ScriptText!$B$1&CHAR(10)&ScriptText!$D$1)","v":""},{"$f":"IF(OrigTable!D1083=\"\",\"\",TEXT(OrigTable!D1083,\"00\"))","v":""},{"$f":"IF(OrigTable!D1083=\"\",\"\",ScriptText!$E$1&CHAR(10)&ScriptText!$C$1)","v":""},{"$f":"IF(OrigTable!E1083=\"\",\"\",ScriptText!$B$1&CHAR(10)&ScriptText!$D$1)","v":""},{"$f":"IF(OrigTable!E1083=\"\",\"\",TEXT(OrigTable!E1083,\"00\"))","v":""},{"$f":"IF(OrigTable!E1083=\"\",\"\",ScriptText!$E$1&CHAR(10)&ScriptText!$C$1)","v":""},{"$f":"IF(OrigTable!F1083=\"\",\"\",ScriptText!$B$1&CHAR(10)&ScriptText!$D$1)","v":""},{"$f":"IF(OrigTable!F1083=\"\",\"\",TEXT(OrigTable!F1083,\"00\"))","v":""},{"$f":"IF(OrigTable!F1083=\"\",\"\",ScriptText!$E$1&CHAR(10)&ScriptText!$C$1)","v":""},{"$f":"IF(OrigTable!G1083=\"\",\"\",ScriptText!$B$1&CHAR(10)&ScriptText!$D$1)","v":""},{"$f":"IF(OrigTable!G1083=\"\",\"\",TEXT(OrigTable!G1083,\"00\"))","v":""},{"$f":"IF(OrigTable!G1083=\"\",\"\",ScriptText!$E$1&CHAR(10)&ScriptText!$C$1)","v":""},0]
["\n\n\n",{"$f":"IF(OrigTable!A1084=\"\",\"\",ScriptText!$B$1&CHAR(10)&ScriptText!$D$1)","v":""},{"$f":"IF(OrigTable!A1084=\"\",\"\",TEXT(OrigTable!A1084,\"00\"))","v":""},{"$f":"IF(OrigTable!A1084=\"\",\"\",ScriptText!$E$1&CHAR(10)&ScriptText!$C$1)","v":""},{"$f":"IF(OrigTable!B1084=\"\",\"\",ScriptText!$B$1&CHAR(10)&ScriptText!$D$1)","v":""},{"$f":"IF(OrigTable!B1084=\"\",\"\",TEXT(OrigTable!B1084,\"00\"))","v":""},{"$f":"IF(OrigTable!B1084=\"\",\"\",ScriptText!$E$1&CHAR(10)&ScriptText!C1079)","v":""},{"$f":"IF(OrigTable!C1084=\"\",\"\",ScriptText!$B$1&CHAR(10)&ScriptText!$D$1)","v":""},{"$f":"IF(OrigTable!C1084=\"\",\"\",IF(LEN(OrigTable!C1084)>255,LEFT(OrigTable!C1084,250)&\". . .\",OrigTable!C1084))","v":""},{"$f":"IF(OrigTable!C1084=\"\",\"\",ScriptText!$E$1&CHAR(10)&ScriptText!$C$1)","v":""},{"$f":"IF(OrigTable!D1084=\"\",\"\",ScriptText!$B$1&CHAR(10)&ScriptText!$D$1)","v":""},{"$f":"IF(OrigTable!D1084=\"\",\"\",TEXT(OrigTable!D1084,\"00\"))","v":""},{"$f":"IF(OrigTable!D1084=\"\",\"\",ScriptText!$E$1&CHAR(10)&ScriptText!$C$1)","v":""},{"$f":"IF(OrigTable!E1084=\"\",\"\",ScriptText!$B$1&CHAR(10)&ScriptText!$D$1)","v":""},{"$f":"IF(OrigTable!E1084=\"\",\"\",TEXT(OrigTable!E1084,\"00\"))","v":""},{"$f":"IF(OrigTable!E1084=\"\",\"\",ScriptText!$E$1&CHAR(10)&ScriptText!$C$1)","v":""},{"$f":"IF(OrigTable!F1084=\"\",\"\",ScriptText!$B$1&CHAR(10)&ScriptText!$D$1)","v":""},{"$f":"IF(OrigTable!F1084=\"\",\"\",TEXT(OrigTable!F1084,\"00\"))","v":""},{"$f":"IF(OrigTable!F1084=\"\",\"\",ScriptText!$E$1&CHAR(10)&ScriptText!$C$1)","v":""},{"$f":"IF(OrigTable!G1084=\"\",\"\",ScriptText!$B$1&CHAR(10)&ScriptText!$D$1)","v":""},{"$f":"IF(OrigTable!G1084=\"\",\"\",TEXT(OrigTable!G1084,\"00\"))","v":""},{"$f":"IF(OrigTable!G1084=\"\",\"\",ScriptText!$E$1&CHAR(10)&ScriptText!$C$1)","v":""},0]
["\n\n\n",{"$f":"IF(OrigTable!A1085=\"\",\"\",ScriptText!$B$1&CHAR(10)&ScriptText!$D$1)","v":""},{"$f":"IF(OrigTable!A1085=\"\",\"\",TEXT(OrigTable!A1085,\"00\"))","v":""},{"$f":"IF(OrigTable!A1085=\"\",\"\",ScriptText!$E$1&CHAR(10)&ScriptText!$C$1)","v":""},{"$f":"IF(OrigTable!B1085=\"\",\"\",ScriptText!$B$1&CHAR(10)&ScriptText!$D$1)","v":""},{"$f":"IF(OrigTable!B1085=\"\",\"\",TEXT(OrigTable!B1085,\"00\"))","v":""},{"$f":"IF(OrigTable!B1085=\"\",\"\",ScriptText!$E$1&CHAR(10)&ScriptText!C1080)","v":""},{"$f":"IF(OrigTable!C1085=\"\",\"\",ScriptText!$B$1&CHAR(10)&ScriptText!$D$1)","v":""},{"$f":"IF(OrigTable!C1085=\"\",\"\",IF(LEN(OrigTable!C1085)>255,LEFT(OrigTable!C1085,250)&\". . .\",OrigTable!C1085))","v":""},{"$f":"IF(OrigTable!C1085=\"\",\"\",ScriptText!$E$1&CHAR(10)&ScriptText!$C$1)","v":""},{"$f":"IF(OrigTable!D1085=\"\",\"\",ScriptText!$B$1&CHAR(10)&ScriptText!$D$1)","v":""},{"$f":"IF(OrigTable!D1085=\"\",\"\",TEXT(OrigTable!D1085,\"00\"))","v":""},{"$f":"IF(OrigTable!D1085=\"\",\"\",ScriptText!$E$1&CHAR(10)&ScriptText!$C$1)","v":""},{"$f":"IF(OrigTable!E1085=\"\",\"\",ScriptText!$B$1&CHAR(10)&ScriptText!$D$1)","v":""},{"$f":"IF(OrigTable!E1085=\"\",\"\",TEXT(OrigTable!E1085,\"00\"))","v":""},{"$f":"IF(OrigTable!E1085=\"\",\"\",ScriptText!$E$1&CHAR(10)&ScriptText!$C$1)","v":""},{"$f":"IF(OrigTable!F1085=\"\",\"\",ScriptText!$B$1&CHAR(10)&ScriptText!$D$1)","v":""},{"$f":"IF(OrigTable!F1085=\"\",\"\",TEXT(OrigTable!F1085,\"00\"))","v":""},{"$f":"IF(OrigTable!F1085=\"\",\"\",ScriptText!$E$1&CHAR(10)&ScriptText!$C$1)","v":""},{"$f":"IF(OrigTable!G1085=\"\",\"\",ScriptText!$B$1&CHAR(10)&ScriptText!$D$1)","v":""},{"$f":"IF(OrigTable!G1085=\"\",\"\",TEXT(OrigTable!G1085,\"00\"))","v":""},{"$f":"IF(OrigTable!G1085=\"\",\"\",ScriptText!$E$1&CHAR(10)&ScriptText!$C$1)","v":""},0]
["\n\n\n",{"$f":"IF(OrigTable!A1086=\"\",\"\",ScriptText!$B$1&CHAR(10)&ScriptText!$D$1)","v":""},{"$f":"IF(OrigTable!A1086=\"\",\"\",TEXT(OrigTable!A1086,\"00\"))","v":""},{"$f":"IF(OrigTable!A1086=\"\",\"\",ScriptText!$E$1&CHAR(10)&ScriptText!$C$1)","v":""},{"$f":"IF(OrigTable!B1086=\"\",\"\",ScriptText!$B$1&CHAR(10)&ScriptText!$D$1)","v":""},{"$f":"IF(OrigTable!B1086=\"\",\"\",TEXT(OrigTable!B1086,\"00\"))","v":""},{"$f":"IF(OrigTable!B1086=\"\",\"\",ScriptText!$E$1&CHAR(10)&ScriptText!C1081)","v":""},{"$f":"IF(OrigTable!C1086=\"\",\"\",ScriptText!$B$1&CHAR(10)&ScriptText!$D$1)","v":""},{"$f":"IF(OrigTable!C1086=\"\",\"\",IF(LEN(OrigTable!C1086)>255,LEFT(OrigTable!C1086,250)&\". . .\",OrigTable!C1086))","v":""},{"$f":"IF(OrigTable!C1086=\"\",\"\",ScriptText!$E$1&CHAR(10)&ScriptText!$C$1)","v":""},{"$f":"IF(OrigTable!D1086=\"\",\"\",ScriptText!$B$1&CHAR(10)&ScriptText!$D$1)","v":""},{"$f":"IF(OrigTable!D1086=\"\",\"\",TEXT(OrigTable!D1086,\"00\"))","v":""},{"$f":"IF(OrigTable!D1086=\"\",\"\",ScriptText!$E$1&CHAR(10)&ScriptText!$C$1)","v":""},{"$f":"IF(OrigTable!E1086=\"\",\"\",ScriptText!$B$1&CHAR(10)&ScriptText!$D$1)","v":""},{"$f":"IF(OrigTable!E1086=\"\",\"\",TEXT(OrigTable!E1086,\"00\"))","v":""},{"$f":"IF(OrigTable!E1086=\"\",\"\",ScriptText!$E$1&CHAR(10)&ScriptText!$C$1)","v":""},{"$f":"IF(OrigTable!F1086=\"\",\"\",ScriptText!$B$1&CHAR(10)&ScriptText!$D$1)","v":""},{"$f":"IF(OrigTable!F1086=\"\",\"\",TEXT(OrigTable!F1086,\"00\"))","v":""},{"$f":"IF(OrigTable!F1086=\"\",\"\",ScriptText!$E$1&CHAR(10)&ScriptText!$C$1)","v":""},{"$f":"IF(OrigTable!G1086=\"\",\"\",ScriptText!$B$1&CHAR(10)&ScriptText!$D$1)","v":""},{"$f":"IF(OrigTable!G1086=\"\",\"\",TEXT(OrigTable!G1086,\"00\"))","v":""},{"$f":"IF(OrigTable!G1086=\"\",\"\",ScriptText!$E$1&CHAR(10)&ScriptText!$C$1)","v":""},0]
["\n\n\n",{"$f":"IF(OrigTable!A1087=\"\",\"\",ScriptText!$B$1&CHAR(10)&ScriptText!$D$1)","v":""},{"$f":"IF(OrigTable!A1087=\"\",\"\",TEXT(OrigTable!A1087,\"00\"))","v":""},{"$f":"IF(OrigTable!A1087=\"\",\"\",ScriptText!$E$1&CHAR(10)&ScriptText!$C$1)","v":""},{"$f":"IF(OrigTable!B1087=\"\",\"\",ScriptText!$B$1&CHAR(10)&ScriptText!$D$1)","v":""},{"$f":"IF(OrigTable!B1087=\"\",\"\",TEXT(OrigTable!B1087,\"00\"))","v":""},{"$f":"IF(OrigTable!B1087=\"\",\"\",ScriptText!$E$1&CHAR(10)&ScriptText!C1082)","v":""},{"$f":"IF(OrigTable!C1087=\"\",\"\",ScriptText!$B$1&CHAR(10)&ScriptText!$D$1)","v":""},{"$f":"IF(OrigTable!C1087=\"\",\"\",IF(LEN(OrigTable!C1087)>255,LEFT(OrigTable!C1087,250)&\". . .\",OrigTable!C1087))","v":""},{"$f":"IF(OrigTable!C1087=\"\",\"\",ScriptText!$E$1&CHAR(10)&ScriptText!$C$1)","v":""},{"$f":"IF(OrigTable!D1087=\"\",\"\",ScriptText!$B$1&CHAR(10)&ScriptText!$D$1)","v":""},{"$f":"IF(OrigTable!D1087=\"\",\"\",TEXT(OrigTable!D1087,\"00\"))","v":""},{"$f":"IF(OrigTable!D1087=\"\",\"\",ScriptText!$E$1&CHAR(10)&ScriptText!$C$1)","v":""},{"$f":"IF(OrigTable!E1087=\"\",\"\",ScriptText!$B$1&CHAR(10)&ScriptText!$D$1)","v":""},{"$f":"IF(OrigTable!E1087=\"\",\"\",TEXT(OrigTable!E1087,\"00\"))","v":""},{"$f":"IF(OrigTable!E1087=\"\",\"\",ScriptText!$E$1&CHAR(10)&ScriptText!$C$1)","v":""},{"$f":"IF(OrigTable!F1087=\"\",\"\",ScriptText!$B$1&CHAR(10)&ScriptText!$D$1)","v":""},{"$f":"IF(OrigTable!F1087=\"\",\"\",TEXT(OrigTable!F1087,\"00\"))","v":""},{"$f":"IF(OrigTable!F1087=\"\",\"\",ScriptText!$E$1&CHAR(10)&ScriptText!$C$1)","v":""},{"$f":"IF(OrigTable!G1087=\"\",\"\",ScriptText!$B$1&CHAR(10)&ScriptText!$D$1)","v":""},{"$f":"IF(OrigTable!G1087=\"\",\"\",TEXT(OrigTable!G1087,\"00\"))","v":""},{"$f":"IF(OrigTable!G1087=\"\",\"\",ScriptText!$E$1&CHAR(10)&ScriptText!$C$1)","v":""},0]
["\n\n\n",{"$f":"IF(OrigTable!A1088=\"\",\"\",ScriptText!$B$1&CHAR(10)&ScriptText!$D$1)","v":""},{"$f":"IF(OrigTable!A1088=\"\",\"\",TEXT(OrigTable!A1088,\"00\"))","v":""},{"$f":"IF(OrigTable!A1088=\"\",\"\",ScriptText!$E$1&CHAR(10)&ScriptText!$C$1)","v":""},{"$f":"IF(OrigTable!B1088=\"\",\"\",ScriptText!$B$1&CHAR(10)&ScriptText!$D$1)","v":""},{"$f":"IF(OrigTable!B1088=\"\",\"\",TEXT(OrigTable!B1088,\"00\"))","v":""},{"$f":"IF(OrigTable!B1088=\"\",\"\",ScriptText!$E$1&CHAR(10)&ScriptText!C1083)","v":""},{"$f":"IF(OrigTable!C1088=\"\",\"\",ScriptText!$B$1&CHAR(10)&ScriptText!$D$1)","v":""},{"$f":"IF(OrigTable!C1088=\"\",\"\",IF(LEN(OrigTable!C1088)>255,LEFT(OrigTable!C1088,250)&\". . .\",OrigTable!C1088))","v":""},{"$f":"IF(OrigTable!C1088=\"\",\"\",ScriptText!$E$1&CHAR(10)&ScriptText!$C$1)","v":""},{"$f":"IF(OrigTable!D1088=\"\",\"\",ScriptText!$B$1&CHAR(10)&ScriptText!$D$1)","v":""},{"$f":"IF(OrigTable!D1088=\"\",\"\",TEXT(OrigTable!D1088,\"00\"))","v":""},{"$f":"IF(OrigTable!D1088=\"\",\"\",ScriptText!$E$1&CHAR(10)&ScriptText!$C$1)","v":""},{"$f":"IF(OrigTable!E1088=\"\",\"\",ScriptText!$B$1&CHAR(10)&ScriptText!$D$1)","v":""},{"$f":"IF(OrigTable!E1088=\"\",\"\",TEXT(OrigTable!E1088,\"00\"))","v":""},{"$f":"IF(OrigTable!E1088=\"\",\"\",ScriptText!$E$1&CHAR(10)&ScriptText!$C$1)","v":""},{"$f":"IF(OrigTable!F1088=\"\",\"\",ScriptText!$B$1&CHAR(10)&ScriptText!$D$1)","v":""},{"$f":"IF(OrigTable!F1088=\"\",\"\",TEXT(OrigTable!F1088,\"00\"))","v":""},{"$f":"IF(OrigTable!F1088=\"\",\"\",ScriptText!$E$1&CHAR(10)&ScriptText!$C$1)","v":""},{"$f":"IF(OrigTable!G1088=\"\",\"\",ScriptText!$B$1&CHAR(10)&ScriptText!$D$1)","v":""},{"$f":"IF(OrigTable!G1088=\"\",\"\",TEXT(OrigTable!G1088,\"00\"))","v":""},{"$f":"IF(OrigTable!G1088=\"\",\"\",ScriptText!$E$1&CHAR(10)&ScriptText!$C$1)","v":""},0]
["\n\n\n",{"$f":"IF(OrigTable!A1089=\"\",\"\",ScriptText!$B$1&CHAR(10)&ScriptText!$D$1)","v":""},{"$f":"IF(OrigTable!A1089=\"\",\"\",TEXT(OrigTable!A1089,\"00\"))","v":""},{"$f":"IF(OrigTable!A1089=\"\",\"\",ScriptText!$E$1&CHAR(10)&ScriptText!$C$1)","v":""},{"$f":"IF(OrigTable!B1089=\"\",\"\",ScriptText!$B$1&CHAR(10)&ScriptText!$D$1)","v":""},{"$f":"IF(OrigTable!B1089=\"\",\"\",TEXT(OrigTable!B1089,\"00\"))","v":""},{"$f":"IF(OrigTable!B1089=\"\",\"\",ScriptText!$E$1&CHAR(10)&ScriptText!C1084)","v":""},{"$f":"IF(OrigTable!C1089=\"\",\"\",ScriptText!$B$1&CHAR(10)&ScriptText!$D$1)","v":""},{"$f":"IF(OrigTable!C1089=\"\",\"\",IF(LEN(OrigTable!C1089)>255,LEFT(OrigTable!C1089,250)&\". . .\",OrigTable!C1089))","v":""},{"$f":"IF(OrigTable!C1089=\"\",\"\",ScriptText!$E$1&CHAR(10)&ScriptText!$C$1)","v":""},{"$f":"IF(OrigTable!D1089=\"\",\"\",ScriptText!$B$1&CHAR(10)&ScriptText!$D$1)","v":""},{"$f":"IF(OrigTable!D1089=\"\",\"\",TEXT(OrigTable!D1089,\"00\"))","v":""},{"$f":"IF(OrigTable!D1089=\"\",\"\",ScriptText!$E$1&CHAR(10)&ScriptText!$C$1)","v":""},{"$f":"IF(OrigTable!E1089=\"\",\"\",ScriptText!$B$1&CHAR(10)&ScriptText!$D$1)","v":""},{"$f":"IF(OrigTable!E1089=\"\",\"\",TEXT(OrigTable!E1089,\"00\"))","v":""},{"$f":"IF(OrigTable!E1089=\"\",\"\",ScriptText!$E$1&CHAR(10)&ScriptText!$C$1)","v":""},{"$f":"IF(OrigTable!F1089=\"\",\"\",ScriptText!$B$1&CHAR(10)&ScriptText!$D$1)","v":""},{"$f":"IF(OrigTable!F1089=\"\",\"\",TEXT(OrigTable!F1089,\"00\"))","v":""},{"$f":"IF(OrigTable!F1089=\"\",\"\",ScriptText!$E$1&CHAR(10)&ScriptText!$C$1)","v":""},{"$f":"IF(OrigTable!G1089=\"\",\"\",ScriptText!$B$1&CHAR(10)&ScriptText!$D$1)","v":""},{"$f":"IF(OrigTable!G1089=\"\",\"\",TEXT(OrigTable!G1089,\"00\"))","v":""},{"$f":"IF(OrigTable!G1089=\"\",\"\",ScriptText!$E$1&CHAR(10)&ScriptText!$C$1)","v":""},0]
["\n\n\n",{"$f":"IF(OrigTable!A1090=\"\",\"\",ScriptText!$B$1&CHAR(10)&ScriptText!$D$1)","v":""},{"$f":"IF(OrigTable!A1090=\"\",\"\",TEXT(OrigTable!A1090,\"00\"))","v":""},{"$f":"IF(OrigTable!A1090=\"\",\"\",ScriptText!$E$1&CHAR(10)&ScriptText!$C$1)","v":""},{"$f":"IF(OrigTable!B1090=\"\",\"\",ScriptText!$B$1&CHAR(10)&ScriptText!$D$1)","v":""},{"$f":"IF(OrigTable!B1090=\"\",\"\",TEXT(OrigTable!B1090,\"00\"))","v":""},{"$f":"IF(OrigTable!B1090=\"\",\"\",ScriptText!$E$1&CHAR(10)&ScriptText!C1085)","v":""},{"$f":"IF(OrigTable!C1090=\"\",\"\",ScriptText!$B$1&CHAR(10)&ScriptText!$D$1)","v":""},{"$f":"IF(OrigTable!C1090=\"\",\"\",IF(LEN(OrigTable!C1090)>255,LEFT(OrigTable!C1090,250)&\". . .\",OrigTable!C1090))","v":""},{"$f":"IF(OrigTable!C1090=\"\",\"\",ScriptText!$E$1&CHAR(10)&ScriptText!$C$1)","v":""},{"$f":"IF(OrigTable!D1090=\"\",\"\",ScriptText!$B$1&CHAR(10)&ScriptText!$D$1)","v":""},{"$f":"IF(OrigTable!D1090=\"\",\"\",TEXT(OrigTable!D1090,\"00\"))","v":""},{"$f":"IF(OrigTable!D1090=\"\",\"\",ScriptText!$E$1&CHAR(10)&ScriptText!$C$1)","v":""},{"$f":"IF(OrigTable!E1090=\"\",\"\",ScriptText!$B$1&CHAR(10)&ScriptText!$D$1)","v":""},{"$f":"IF(OrigTable!E1090=\"\",\"\",TEXT(OrigTable!E1090,\"00\"))","v":""},{"$f":"IF(OrigTable!E1090=\"\",\"\",ScriptText!$E$1&CHAR(10)&ScriptText!$C$1)","v":""},{"$f":"IF(OrigTable!F1090=\"\",\"\",ScriptText!$B$1&CHAR(10)&ScriptText!$D$1)","v":""},{"$f":"IF(OrigTable!F1090=\"\",\"\",TEXT(OrigTable!F1090,\"00\"))","v":""},{"$f":"IF(OrigTable!F1090=\"\",\"\",ScriptText!$E$1&CHAR(10)&ScriptText!$C$1)","v":""},{"$f":"IF(OrigTable!G1090=\"\",\"\",ScriptText!$B$1&CHAR(10)&ScriptText!$D$1)","v":""},{"$f":"IF(OrigTable!G1090=\"\",\"\",TEXT(OrigTable!G1090,\"00\"))","v":""},{"$f":"IF(OrigTable!G1090=\"\",\"\",ScriptText!$E$1&CHAR(10)&ScriptText!$C$1)","v":""},0]
["\n\n\n",{"$f":"IF(OrigTable!A1091=\"\",\"\",ScriptText!$B$1&CHAR(10)&ScriptText!$D$1)","v":""},{"$f":"IF(OrigTable!A1091=\"\",\"\",TEXT(OrigTable!A1091,\"00\"))","v":""},{"$f":"IF(OrigTable!A1091=\"\",\"\",ScriptText!$E$1&CHAR(10)&ScriptText!$C$1)","v":""},{"$f":"IF(OrigTable!B1091=\"\",\"\",ScriptText!$B$1&CHAR(10)&ScriptText!$D$1)","v":""},{"$f":"IF(OrigTable!B1091=\"\",\"\",TEXT(OrigTable!B1091,\"00\"))","v":""},{"$f":"IF(OrigTable!B1091=\"\",\"\",ScriptText!$E$1&CHAR(10)&ScriptText!C1086)","v":""},{"$f":"IF(OrigTable!C1091=\"\",\"\",ScriptText!$B$1&CHAR(10)&ScriptText!$D$1)","v":""},{"$f":"IF(OrigTable!C1091=\"\",\"\",IF(LEN(OrigTable!C1091)>255,LEFT(OrigTable!C1091,250)&\". . .\",OrigTable!C1091))","v":""},{"$f":"IF(OrigTable!C1091=\"\",\"\",ScriptText!$E$1&CHAR(10)&ScriptText!$C$1)","v":""},{"$f":"IF(OrigTable!D1091=\"\",\"\",ScriptText!$B$1&CHAR(10)&ScriptText!$D$1)","v":""},{"$f":"IF(OrigTable!D1091=\"\",\"\",TEXT(OrigTable!D1091,\"00\"))","v":""},{"$f":"IF(OrigTable!D1091=\"\",\"\",ScriptText!$E$1&CHAR(10)&ScriptText!$C$1)","v":""},{"$f":"IF(OrigTable!E1091=\"\",\"\",ScriptText!$B$1&CHAR(10)&ScriptText!$D$1)","v":""},{"$f":"IF(OrigTable!E1091=\"\",\"\",TEXT(OrigTable!E1091,\"00\"))","v":""},{"$f":"IF(OrigTable!E1091=\"\",\"\",ScriptText!$E$1&CHAR(10)&ScriptText!$C$1)","v":""},{"$f":"IF(OrigTable!F1091=\"\",\"\",ScriptText!$B$1&CHAR(10)&ScriptText!$D$1)","v":""},{"$f":"IF(OrigTable!F1091=\"\",\"\",TEXT(OrigTable!F1091,\"00\"))","v":""},{"$f":"IF(OrigTable!F1091=\"\",\"\",ScriptText!$E$1&CHAR(10)&ScriptText!$C$1)","v":""},{"$f":"IF(OrigTable!G1091=\"\",\"\",ScriptText!$B$1&CHAR(10)&ScriptText!$D$1)","v":""},{"$f":"IF(OrigTable!G1091=\"\",\"\",TEXT(OrigTable!G1091,\"00\"))","v":""},{"$f":"IF(OrigTable!G1091=\"\",\"\",ScriptText!$E$1&CHAR(10)&ScriptText!$C$1)","v":""},0]
["\n\n\n",{"$f":"IF(OrigTable!A1092=\"\",\"\",ScriptText!$B$1&CHAR(10)&ScriptText!$D$1)","v":""},{"$f":"IF(OrigTable!A1092=\"\",\"\",TEXT(OrigTable!A1092,\"00\"))","v":""},{"$f":"IF(OrigTable!A1092=\"\",\"\",ScriptText!$E$1&CHAR(10)&ScriptText!$C$1)","v":""},{"$f":"IF(OrigTable!B1092=\"\",\"\",ScriptText!$B$1&CHAR(10)&ScriptText!$D$1)","v":""},{"$f":"IF(OrigTable!B1092=\"\",\"\",TEXT(OrigTable!B1092,\"00\"))","v":""},{"$f":"IF(OrigTable!B1092=\"\",\"\",ScriptText!$E$1&CHAR(10)&ScriptText!C1087)","v":""},{"$f":"IF(OrigTable!C1092=\"\",\"\",ScriptText!$B$1&CHAR(10)&ScriptText!$D$1)","v":""},{"$f":"IF(OrigTable!C1092=\"\",\"\",IF(LEN(OrigTable!C1092)>255,LEFT(OrigTable!C1092,250)&\". . .\",OrigTable!C1092))","v":""},{"$f":"IF(OrigTable!C1092=\"\",\"\",ScriptText!$E$1&CHAR(10)&ScriptText!$C$1)","v":""},{"$f":"IF(OrigTable!D1092=\"\",\"\",ScriptText!$B$1&CHAR(10)&ScriptText!$D$1)","v":""},{"$f":"IF(OrigTable!D1092=\"\",\"\",TEXT(OrigTable!D1092,\"00\"))","v":""},{"$f":"IF(OrigTable!D1092=\"\",\"\",ScriptText!$E$1&CHAR(10)&ScriptText!$C$1)","v":""},{"$f":"IF(OrigTable!E1092=\"\",\"\",ScriptText!$B$1&CHAR(10)&ScriptText!$D$1)","v":""},{"$f":"IF(OrigTable!E1092=\"\",\"\",TEXT(OrigTable!E1092,\"00\"))","v":""},{"$f":"IF(OrigTable!E1092=\"\",\"\",ScriptText!$E$1&CHAR(10)&ScriptText!$C$1)","v":""},{"$f":"IF(OrigTable!F1092=\"\",\"\",ScriptText!$B$1&CHAR(10)&ScriptText!$D$1)","v":""},{"$f":"IF(OrigTable!F1092=\"\",\"\",TEXT(OrigTable!F1092,\"00\"))","v":""},{"$f":"IF(OrigTable!F1092=\"\",\"\",ScriptText!$E$1&CHAR(10)&ScriptText!$C$1)","v":""},{"$f":"IF(OrigTable!G1092=\"\",\"\",ScriptText!$B$1&CHAR(10)&ScriptText!$D$1)","v":""},{"$f":"IF(OrigTable!G1092=\"\",\"\",TEXT(OrigTable!G1092,\"00\"))","v":""},{"$f":"IF(OrigTable!G1092=\"\",\"\",ScriptText!$E$1&CHAR(10)&ScriptText!$C$1)","v":""},0]
["\n\n\n",{"$f":"IF(OrigTable!A1093=\"\",\"\",ScriptText!$B$1&CHAR(10)&ScriptText!$D$1)","v":""},{"$f":"IF(OrigTable!A1093=\"\",\"\",TEXT(OrigTable!A1093,\"00\"))","v":""},{"$f":"IF(OrigTable!A1093=\"\",\"\",ScriptText!$E$1&CHAR(10)&ScriptText!$C$1)","v":""},{"$f":"IF(OrigTable!B1093=\"\",\"\",ScriptText!$B$1&CHAR(10)&ScriptText!$D$1)","v":""},{"$f":"IF(OrigTable!B1093=\"\",\"\",TEXT(OrigTable!B1093,\"00\"))","v":""},{"$f":"IF(OrigTable!B1093=\"\",\"\",ScriptText!$E$1&CHAR(10)&ScriptText!C1088)","v":""},{"$f":"IF(OrigTable!C1093=\"\",\"\",ScriptText!$B$1&CHAR(10)&ScriptText!$D$1)","v":""},{"$f":"IF(OrigTable!C1093=\"\",\"\",IF(LEN(OrigTable!C1093)>255,LEFT(OrigTable!C1093,250)&\". . .\",OrigTable!C1093))","v":""},{"$f":"IF(OrigTable!C1093=\"\",\"\",ScriptText!$E$1&CHAR(10)&ScriptText!$C$1)","v":""},{"$f":"IF(OrigTable!D1093=\"\",\"\",ScriptText!$B$1&CHAR(10)&ScriptText!$D$1)","v":""},{"$f":"IF(OrigTable!D1093=\"\",\"\",TEXT(OrigTable!D1093,\"00\"))","v":""},{"$f":"IF(OrigTable!D1093=\"\",\"\",ScriptText!$E$1&CHAR(10)&ScriptText!$C$1)","v":""},{"$f":"IF(OrigTable!E1093=\"\",\"\",ScriptText!$B$1&CHAR(10)&ScriptText!$D$1)","v":""},{"$f":"IF(OrigTable!E1093=\"\",\"\",TEXT(OrigTable!E1093,\"00\"))","v":""},{"$f":"IF(OrigTable!E1093=\"\",\"\",ScriptText!$E$1&CHAR(10)&ScriptText!$C$1)","v":""},{"$f":"IF(OrigTable!F1093=\"\",\"\",ScriptText!$B$1&CHAR(10)&ScriptText!$D$1)","v":""},{"$f":"IF(OrigTable!F1093=\"\",\"\",TEXT(OrigTable!F1093,\"00\"))","v":""},{"$f":"IF(OrigTable!F1093=\"\",\"\",ScriptText!$E$1&CHAR(10)&ScriptText!$C$1)","v":""},{"$f":"IF(OrigTable!G1093=\"\",\"\",ScriptText!$B$1&CHAR(10)&ScriptText!$D$1)","v":""},{"$f":"IF(OrigTable!G1093=\"\",\"\",TEXT(OrigTable!G1093,\"00\"))","v":""},{"$f":"IF(OrigTable!G1093=\"\",\"\",ScriptText!$E$1&CHAR(10)&ScriptText!$C$1)","v":""},0]
["\n\n\n",{"$f":"IF(OrigTable!A1094=\"\",\"\",ScriptText!$B$1&CHAR(10)&ScriptText!$D$1)","v":""},{"$f":"IF(OrigTable!A1094=\"\",\"\",TEXT(OrigTable!A1094,\"00\"))","v":""},{"$f":"IF(OrigTable!A1094=\"\",\"\",ScriptText!$E$1&CHAR(10)&ScriptText!$C$1)","v":""},{"$f":"IF(OrigTable!B1094=\"\",\"\",ScriptText!$B$1&CHAR(10)&ScriptText!$D$1)","v":""},{"$f":"IF(OrigTable!B1094=\"\",\"\",TEXT(OrigTable!B1094,\"00\"))","v":""},{"$f":"IF(OrigTable!B1094=\"\",\"\",ScriptText!$E$1&CHAR(10)&ScriptText!C1089)","v":""},{"$f":"IF(OrigTable!C1094=\"\",\"\",ScriptText!$B$1&CHAR(10)&ScriptText!$D$1)","v":""},{"$f":"IF(OrigTable!C1094=\"\",\"\",IF(LEN(OrigTable!C1094)>255,LEFT(OrigTable!C1094,250)&\". . .\",OrigTable!C1094))","v":""},{"$f":"IF(OrigTable!C1094=\"\",\"\",ScriptText!$E$1&CHAR(10)&ScriptText!$C$1)","v":""},{"$f":"IF(OrigTable!D1094=\"\",\"\",ScriptText!$B$1&CHAR(10)&ScriptText!$D$1)","v":""},{"$f":"IF(OrigTable!D1094=\"\",\"\",TEXT(OrigTable!D1094,\"00\"))","v":""},{"$f":"IF(OrigTable!D1094=\"\",\"\",ScriptText!$E$1&CHAR(10)&ScriptText!$C$1)","v":""},{"$f":"IF(OrigTable!E1094=\"\",\"\",ScriptText!$B$1&CHAR(10)&ScriptText!$D$1)","v":""},{"$f":"IF(OrigTable!E1094=\"\",\"\",TEXT(OrigTable!E1094,\"00\"))","v":""},{"$f":"IF(OrigTable!E1094=\"\",\"\",ScriptText!$E$1&CHAR(10)&ScriptText!$C$1)","v":""},{"$f":"IF(OrigTable!F1094=\"\",\"\",ScriptText!$B$1&CHAR(10)&ScriptText!$D$1)","v":""},{"$f":"IF(OrigTable!F1094=\"\",\"\",TEXT(OrigTable!F1094,\"00\"))","v":""},{"$f":"IF(OrigTable!F1094=\"\",\"\",ScriptText!$E$1&CHAR(10)&ScriptText!$C$1)","v":""},{"$f":"IF(OrigTable!G1094=\"\",\"\",ScriptText!$B$1&CHAR(10)&ScriptText!$D$1)","v":""},{"$f":"IF(OrigTable!G1094=\"\",\"\",TEXT(OrigTable!G1094,\"00\"))","v":""},{"$f":"IF(OrigTable!G1094=\"\",\"\",ScriptText!$E$1&CHAR(10)&ScriptText!$C$1)","v":""},{"$f":"IF(LEN(A1094)>3,ROW(),0)","v":0}]
["\n\n\n",{"$f":"IF(OrigTable!A1095=\"\",\"\",ScriptText!$B$1&CHAR(10)&ScriptText!$D$1)","v":""},{"$f":"IF(OrigTable!A1095=\"\",\"\",TEXT(OrigTable!A1095,\"00\"))","v":""},{"$f":"IF(OrigTable!A1095=\"\",\"\",ScriptText!$E$1&CHAR(10)&ScriptText!$C$1)","v":""},{"$f":"IF(OrigTable!B1095=\"\",\"\",ScriptText!$B$1&CHAR(10)&ScriptText!$D$1)","v":""},{"$f":"IF(OrigTable!B1095=\"\",\"\",TEXT(OrigTable!B1095,\"00\"))","v":""},{"$f":"IF(OrigTable!B1095=\"\",\"\",ScriptText!$E$1&CHAR(10)&ScriptText!C1090)","v":""},{"$f":"IF(OrigTable!C1095=\"\",\"\",ScriptText!$B$1&CHAR(10)&ScriptText!$D$1)","v":""},{"$f":"IF(OrigTable!C1095=\"\",\"\",IF(LEN(OrigTable!C1095)>255,LEFT(OrigTable!C1095,250)&\". . .\",OrigTable!C1095))","v":""},{"$f":"IF(OrigTable!C1095=\"\",\"\",ScriptText!$E$1&CHAR(10)&ScriptText!$C$1)","v":""},{"$f":"IF(OrigTable!D1095=\"\",\"\",ScriptText!$B$1&CHAR(10)&ScriptText!$D$1)","v":""},{"$f":"IF(OrigTable!D1095=\"\",\"\",TEXT(OrigTable!D1095,\"00\"))","v":""},{"$f":"IF(OrigTable!D1095=\"\",\"\",ScriptText!$E$1&CHAR(10)&ScriptText!$C$1)","v":""},{"$f":"IF(OrigTable!E1095=\"\",\"\",ScriptText!$B$1&CHAR(10)&ScriptText!$D$1)","v":""},{"$f":"IF(OrigTable!E1095=\"\",\"\",TEXT(OrigTable!E1095,\"00\"))","v":""},{"$f":"IF(OrigTable!E1095=\"\",\"\",ScriptText!$E$1&CHAR(10)&ScriptText!$C$1)","v":""},{"$f":"IF(OrigTable!F1095=\"\",\"\",ScriptText!$B$1&CHAR(10)&ScriptText!$D$1)","v":""},{"$f":"IF(OrigTable!F1095=\"\",\"\",TEXT(OrigTable!F1095,\"00\"))","v":""},{"$f":"IF(OrigTable!F1095=\"\",\"\",ScriptText!$E$1&CHAR(10)&ScriptText!$C$1)","v":""},{"$f":"IF(OrigTable!G1095=\"\",\"\",ScriptText!$B$1&CHAR(10)&ScriptText!$D$1)","v":""},{"$f":"IF(OrigTable!G1095=\"\",\"\",TEXT(OrigTable!G1095,\"00\"))","v":""},{"$f":"IF(OrigTable!G1095=\"\",\"\",ScriptText!$E$1&CHAR(10)&ScriptText!$C$1)","v":""},0]
["\n\n\n",{"$f":"IF(OrigTable!A1096=\"\",\"\",ScriptText!$B$1&CHAR(10)&ScriptText!$D$1)","v":""},{"$f":"IF(OrigTable!A1096=\"\",\"\",TEXT(OrigTable!A1096,\"00\"))","v":""},{"$f":"IF(OrigTable!A1096=\"\",\"\",ScriptText!$E$1&CHAR(10)&ScriptText!$C$1)","v":""},{"$f":"IF(OrigTable!B1096=\"\",\"\",ScriptText!$B$1&CHAR(10)&ScriptText!$D$1)","v":""},{"$f":"IF(OrigTable!B1096=\"\",\"\",TEXT(OrigTable!B1096,\"00\"))","v":""},{"$f":"IF(OrigTable!B1096=\"\",\"\",ScriptText!$E$1&CHAR(10)&ScriptText!C1091)","v":""},{"$f":"IF(OrigTable!C1096=\"\",\"\",ScriptText!$B$1&CHAR(10)&ScriptText!$D$1)","v":""},{"$f":"IF(OrigTable!C1096=\"\",\"\",IF(LEN(OrigTable!C1096)>255,LEFT(OrigTable!C1096,250)&\". . .\",OrigTable!C1096))","v":""},{"$f":"IF(OrigTable!C1096=\"\",\"\",ScriptText!$E$1&CHAR(10)&ScriptText!$C$1)","v":""},{"$f":"IF(OrigTable!D1096=\"\",\"\",ScriptText!$B$1&CHAR(10)&ScriptText!$D$1)","v":""},{"$f":"IF(OrigTable!D1096=\"\",\"\",TEXT(OrigTable!D1096,\"00\"))","v":""},{"$f":"IF(OrigTable!D1096=\"\",\"\",ScriptText!$E$1&CHAR(10)&ScriptText!$C$1)","v":""},{"$f":"IF(OrigTable!E1096=\"\",\"\",ScriptText!$B$1&CHAR(10)&ScriptText!$D$1)","v":""},{"$f":"IF(OrigTable!E1096=\"\",\"\",TEXT(OrigTable!E1096,\"00\"))","v":""},{"$f":"IF(OrigTable!E1096=\"\",\"\",ScriptText!$E$1&CHAR(10)&ScriptText!$C$1)","v":""},{"$f":"IF(OrigTable!F1096=\"\",\"\",ScriptText!$B$1&CHAR(10)&ScriptText!$D$1)","v":""},{"$f":"IF(OrigTable!F1096=\"\",\"\",TEXT(OrigTable!F1096,\"00\"))","v":""},{"$f":"IF(OrigTable!F1096=\"\",\"\",ScriptText!$E$1&CHAR(10)&ScriptText!$C$1)","v":""},{"$f":"IF(OrigTable!G1096=\"\",\"\",ScriptText!$B$1&CHAR(10)&ScriptText!$D$1)","v":""},{"$f":"IF(OrigTable!G1096=\"\",\"\",TEXT(OrigTable!G1096,\"00\"))","v":""},{"$f":"IF(OrigTable!G1096=\"\",\"\",ScriptText!$E$1&CHAR(10)&ScriptText!$C$1)","v":""},0]
[{"$f":"_xlfn.TEXTJOIN(\"\",TRUE,B1097:D1097)&CHAR(10)&_xlfn.TEXTJOIN(\"\",TRUE,E1097:G1097)&CHAR(10)&_xlfn.TEXTJOIN(\"\",TRUE,H1097:J1097)&CHAR(10)&_xlfn.TEXTJOIN(\"\",TRUE,K1097:M1097)&_xlfn.TEXTJOIN(\"\",TRUE,N1097:P1097)&_xlfn.TEXTJOIN(\"\",TRUE,Q1097:S1097)&_xlfn.TEXTJOIN(\"\",TRUE,T1097:V1097)","v":"\n\n\n"},{"$f":"IF(OrigTable!A1097=\"\",\"\",ScriptText!$B$1&CHAR(10)&ScriptText!$D$1)","v":""},{"$f":"IF(OrigTable!A1097=\"\",\"\",TEXT(OrigTable!A1097,\"00\"))","v":""},{"$f":"IF(OrigTable!A1097=\"\",\"\",ScriptText!$E$1&CHAR(10)&ScriptText!$C$1)","v":""},{"$f":"IF(OrigTable!B1097=\"\",\"\",ScriptText!$B$1&CHAR(10)&ScriptText!$D$1)","v":""},{"$f":"IF(OrigTable!B1097=\"\",\"\",TEXT(OrigTable!B1097,\"00\"))","v":""},{"$f":"IF(OrigTable!B1097=\"\",\"\",ScriptText!$E$1&CHAR(10)&ScriptText!C1092)","v":""},{"$f":"IF(OrigTable!C1097=\"\",\"\",ScriptText!$B$1&CHAR(10)&ScriptText!$D$1)","v":""},{"$f":"IF(OrigTable!C1097=\"\",\"\",IF(LEN(OrigTable!C1097)>255,LEFT(OrigTable!C1097,250)&\". . .\",OrigTable!C1097))","v":""},{"$f":"IF(OrigTable!C1097=\"\",\"\",ScriptText!$E$1&CHAR(10)&ScriptText!$C$1)","v":""},{"$f":"IF(OrigTable!D1097=\"\",\"\",ScriptText!$B$1&CHAR(10)&ScriptText!$D$1)","v":""},{"$f":"IF(OrigTable!D1097=\"\",\"\",TEXT(OrigTable!D1097,\"00\"))","v":""},{"$f":"IF(OrigTable!D1097=\"\",\"\",ScriptText!$E$1&CHAR(10)&ScriptText!$C$1)","v":""},{"$f":"IF(OrigTable!E1097=\"\",\"\",ScriptText!$B$1&CHAR(10)&ScriptText!$D$1)","v":""},{"$f":"IF(OrigTable!E1097=\"\",\"\",TEXT(OrigTable!E1097,\"00\"))","v":""},{"$f":"IF(OrigTable!E1097=\"\",\"\",ScriptText!$E$1&CHAR(10)&ScriptText!$C$1)","v":""},{"$f":"IF(OrigTable!F1097=\"\",\"\",ScriptText!$B$1&CHAR(10)&ScriptText!$D$1)","v":""},{"$f":"IF(OrigTable!F1097=\"\",\"\",TEXT(OrigTable!F1097,\"00\"))","v":""},{"$f":"IF(OrigTable!F1097=\"\",\"\",ScriptText!$E$1&CHAR(10)&ScriptText!$C$1)","v":""},{"$f":"IF(OrigTable!G1097=\"\",\"\",ScriptText!$B$1&CHAR(10)&ScriptText!$D$1)","v":""},{"$f":"IF(OrigTable!G1097=\"\",\"\",TEXT(OrigTable!G1097,\"00\"))","v":""},{"$f":"IF(OrigTable!G1097=\"\",\"\",ScriptText!$E$1&CHAR(10)&ScriptText!$C$1)","v":""},0]
["\n\n\n",{"$f":"IF(OrigTable!A1098=\"\",\"\",ScriptText!$B$1&CHAR(10)&ScriptText!$D$1)","v":""},{"$f":"IF(OrigTable!A1098=\"\",\"\",TEXT(OrigTable!A1098,\"00\"))","v":""},{"$f":"IF(OrigTable!A1098=\"\",\"\",ScriptText!$E$1&CHAR(10)&ScriptText!$C$1)","v":""},{"$f":"IF(OrigTable!B1098=\"\",\"\",ScriptText!$B$1&CHAR(10)&ScriptText!$D$1)","v":""},{"$f":"IF(OrigTable!B1098=\"\",\"\",TEXT(OrigTable!B1098,\"00\"))","v":""},{"$f":"IF(OrigTable!B1098=\"\",\"\",ScriptText!$E$1&CHAR(10)&ScriptText!C1093)","v":""},{"$f":"IF(OrigTable!C1098=\"\",\"\",ScriptText!$B$1&CHAR(10)&ScriptText!$D$1)","v":""},{"$f":"IF(OrigTable!C1098=\"\",\"\",IF(LEN(OrigTable!C1098)>255,LEFT(OrigTable!C1098,250)&\". . .\",OrigTable!C1098))","v":""},{"$f":"IF(OrigTable!C1098=\"\",\"\",ScriptText!$E$1&CHAR(10)&ScriptText!$C$1)","v":""},{"$f":"IF(OrigTable!D1098=\"\",\"\",ScriptText!$B$1&CHAR(10)&ScriptText!$D$1)","v":""},{"$f":"IF(OrigTable!D1098=\"\",\"\",TEXT(OrigTable!D1098,\"00\"))","v":""},{"$f":"IF(OrigTable!D1098=\"\",\"\",ScriptText!$E$1&CHAR(10)&ScriptText!$C$1)","v":""},{"$f":"IF(OrigTable!E1098=\"\",\"\",ScriptText!$B$1&CHAR(10)&ScriptText!$D$1)","v":""},{"$f":"IF(OrigTable!E1098=\"\",\"\",TEXT(OrigTable!E1098,\"00\"))","v":""},{"$f":"IF(OrigTable!E1098=\"\",\"\",ScriptText!$E$1&CHAR(10)&ScriptText!$C$1)","v":""},{"$f":"IF(OrigTable!F1098=\"\",\"\",ScriptText!$B$1&CHAR(10)&ScriptText!$D$1)","v":""},{"$f":"IF(OrigTable!F1098=\"\",\"\",TEXT(OrigTable!F1098,\"00\"))","v":""},{"$f":"IF(OrigTable!F1098=\"\",\"\",ScriptText!$E$1&CHAR(10)&ScriptText!$C$1)","v":""},{"$f":"IF(OrigTable!G1098=\"\",\"\",ScriptText!$B$1&CHAR(10)&ScriptText!$D$1)","v":""},{"$f":"IF(OrigTable!G1098=\"\",\"\",TEXT(OrigTable!G1098,\"00\"))","v":""},{"$f":"IF(OrigTable!G1098=\"\",\"\",ScriptText!$E$1&CHAR(10)&ScriptText!$C$1)","v":""},0]
["\n\n\n",{"$f":"IF(OrigTable!A1099=\"\",\"\",ScriptText!$B$1&CHAR(10)&ScriptText!$D$1)","v":""},{"$f":"IF(OrigTable!A1099=\"\",\"\",TEXT(OrigTable!A1099,\"00\"))","v":""},{"$f":"IF(OrigTable!A1099=\"\",\"\",ScriptText!$E$1&CHAR(10)&ScriptText!$C$1)","v":""},{"$f":"IF(OrigTable!B1099=\"\",\"\",ScriptText!$B$1&CHAR(10)&ScriptText!$D$1)","v":""},{"$f":"IF(OrigTable!B1099=\"\",\"\",TEXT(OrigTable!B1099,\"00\"))","v":""},{"$f":"IF(OrigTable!B1099=\"\",\"\",ScriptText!$E$1&CHAR(10)&ScriptText!C1094)","v":""},{"$f":"IF(OrigTable!C1099=\"\",\"\",ScriptText!$B$1&CHAR(10)&ScriptText!$D$1)","v":""},{"$f":"IF(OrigTable!C1099=\"\",\"\",IF(LEN(OrigTable!C1099)>255,LEFT(OrigTable!C1099,250)&\". . .\",OrigTable!C1099))","v":""},{"$f":"IF(OrigTable!C1099=\"\",\"\",ScriptText!$E$1&CHAR(10)&ScriptText!$C$1)","v":""},{"$f":"IF(OrigTable!D1099=\"\",\"\",ScriptText!$B$1&CHAR(10)&ScriptText!$D$1)","v":""},{"$f":"IF(OrigTable!D1099=\"\",\"\",TEXT(OrigTable!D1099,\"00\"))","v":""},{"$f":"IF(OrigTable!D1099=\"\",\"\",ScriptText!$E$1&CHAR(10)&ScriptText!$C$1)","v":""},{"$f":"IF(OrigTable!E1099=\"\",\"\",ScriptText!$B$1&CHAR(10)&ScriptText!$D$1)","v":""},{"$f":"IF(OrigTable!E1099=\"\",\"\",TEXT(OrigTable!E1099,\"00\"))","v":""},{"$f":"IF(OrigTable!E1099=\"\",\"\",ScriptText!$E$1&CHAR(10)&ScriptText!$C$1)","v":""},{"$f":"IF(OrigTable!F1099=\"\",\"\",ScriptText!$B$1&CHAR(10)&ScriptText!$D$1)","v":""},{"$f":"IF(OrigTable!F1099=\"\",\"\",TEXT(OrigTable!F1099,\"00\"))","v":""},{"$f":"IF(OrigTable!F1099=\"\",\"\",ScriptText!$E$1&CHAR(10)&ScriptText!$C$1)","v":""},{"$f":"IF(OrigTable!G1099=\"\",\"\",ScriptText!$B$1&CHAR(10)&ScriptText!$D$1)","v":""},{"$f":"IF(OrigTable!G1099=\"\",\"\",TEXT(OrigTable!G1099,\"00\"))","v":""},{"$f":"IF(OrigTable!G1099=\"\",\"\",ScriptText!$E$1&CHAR(10)&ScriptText!$C$1)","v":""},0]
["\n\n\n",{"$f":"IF(OrigTable!A1100=\"\",\"\",ScriptText!$B$1&CHAR(10)&ScriptText!$D$1)","v":""},{"$f":"IF(OrigTable!A1100=\"\",\"\",TEXT(OrigTable!A1100,\"00\"))","v":""},{"$f":"IF(OrigTable!A1100=\"\",\"\",ScriptText!$E$1&CHAR(10)&ScriptText!$C$1)","v":""},{"$f":"IF(OrigTable!B1100=\"\",\"\",ScriptText!$B$1&CHAR(10)&ScriptText!$D$1)","v":""},{"$f":"IF(OrigTable!B1100=\"\",\"\",TEXT(OrigTable!B1100,\"00\"))","v":""},{"$f":"IF(OrigTable!B1100=\"\",\"\",ScriptText!$E$1&CHAR(10)&ScriptText!C1095)","v":""},{"$f":"IF(OrigTable!C1100=\"\",\"\",ScriptText!$B$1&CHAR(10)&ScriptText!$D$1)","v":""},{"$f":"IF(OrigTable!C1100=\"\",\"\",IF(LEN(OrigTable!C1100)>255,LEFT(OrigTable!C1100,250)&\". . .\",OrigTable!C1100))","v":""},{"$f":"IF(OrigTable!C1100=\"\",\"\",ScriptText!$E$1&CHAR(10)&ScriptText!$C$1)","v":""},{"$f":"IF(OrigTable!D1100=\"\",\"\",ScriptText!$B$1&CHAR(10)&ScriptText!$D$1)","v":""},{"$f":"IF(OrigTable!D1100=\"\",\"\",TEXT(OrigTable!D1100,\"00\"))","v":""},{"$f":"IF(OrigTable!D1100=\"\",\"\",ScriptText!$E$1&CHAR(10)&ScriptText!$C$1)","v":""},{"$f":"IF(OrigTable!E1100=\"\",\"\",ScriptText!$B$1&CHAR(10)&ScriptText!$D$1)","v":""},{"$f":"IF(OrigTable!E1100=\"\",\"\",TEXT(OrigTable!E1100,\"00\"))","v":""},{"$f":"IF(OrigTable!E1100=\"\",\"\",ScriptText!$E$1&CHAR(10)&ScriptText!$C$1)","v":""},{"$f":"IF(OrigTable!F1100=\"\",\"\",ScriptText!$B$1&CHAR(10)&ScriptText!$D$1)","v":""},{"$f":"IF(OrigTable!F1100=\"\",\"\",TEXT(OrigTable!F1100,\"00\"))","v":""},{"$f":"IF(OrigTable!F1100=\"\",\"\",ScriptText!$E$1&CHAR(10)&ScriptText!$C$1)","v":""},{"$f":"IF(OrigTable!G1100=\"\",\"\",ScriptText!$B$1&CHAR(10)&ScriptText!$D$1)","v":""},{"$f":"IF(OrigTable!G1100=\"\",\"\",TEXT(OrigTable!G1100,\"00\"))","v":""},{"$f":"IF(OrigTable!G1100=\"\",\"\",ScriptText!$E$1&CHAR(10)&ScriptText!$C$1)","v":""},0]
["\n\n\n",{"$f":"IF(OrigTable!A1101=\"\",\"\",ScriptText!$B$1&CHAR(10)&ScriptText!$D$1)","v":""},{"$f":"IF(OrigTable!A1101=\"\",\"\",TEXT(OrigTable!A1101,\"00\"))","v":""},{"$f":"IF(OrigTable!A1101=\"\",\"\",ScriptText!$E$1&CHAR(10)&ScriptText!$C$1)","v":""},{"$f":"IF(OrigTable!B1101=\"\",\"\",ScriptText!$B$1&CHAR(10)&ScriptText!$D$1)","v":""},{"$f":"IF(OrigTable!B1101=\"\",\"\",TEXT(OrigTable!B1101,\"00\"))","v":""},{"$f":"IF(OrigTable!B1101=\"\",\"\",ScriptText!$E$1&CHAR(10)&ScriptText!C1096)","v":""},{"$f":"IF(OrigTable!C1101=\"\",\"\",ScriptText!$B$1&CHAR(10)&ScriptText!$D$1)","v":""},{"$f":"IF(OrigTable!C1101=\"\",\"\",IF(LEN(OrigTable!C1101)>255,LEFT(OrigTable!C1101,250)&\". . .\",OrigTable!C1101))","v":""},{"$f":"IF(OrigTable!C1101=\"\",\"\",ScriptText!$E$1&CHAR(10)&ScriptText!$C$1)","v":""},{"$f":"IF(OrigTable!D1101=\"\",\"\",ScriptText!$B$1&CHAR(10)&ScriptText!$D$1)","v":""},{"$f":"IF(OrigTable!D1101=\"\",\"\",TEXT(OrigTable!D1101,\"00\"))","v":""},{"$f":"IF(OrigTable!D1101=\"\",\"\",ScriptText!$E$1&CHAR(10)&ScriptText!$C$1)","v":""},{"$f":"IF(OrigTable!E1101=\"\",\"\",ScriptText!$B$1&CHAR(10)&ScriptText!$D$1)","v":""},{"$f":"IF(OrigTable!E1101=\"\",\"\",TEXT(OrigTable!E1101,\"00\"))","v":""},{"$f":"IF(OrigTable!E1101=\"\",\"\",ScriptText!$E$1&CHAR(10)&ScriptText!$C$1)","v":""},{"$f":"IF(OrigTable!F1101=\"\",\"\",ScriptText!$B$1&CHAR(10)&ScriptText!$D$1)","v":""},{"$f":"IF(OrigTable!F1101=\"\",\"\",TEXT(OrigTable!F1101,\"00\"))","v":""},{"$f":"IF(OrigTable!F1101=\"\",\"\",ScriptText!$E$1&CHAR(10)&ScriptText!$C$1)","v":""},{"$f":"IF(OrigTable!G1101=\"\",\"\",ScriptText!$B$1&CHAR(10)&ScriptText!$D$1)","v":""},{"$f":"IF(OrigTable!G1101=\"\",\"\",TEXT(OrigTable!G1101,\"00\"))","v":""},{"$f":"IF(OrigTable!G1101=\"\",\"\",ScriptText!$E$1&CHAR(10)&ScriptText!$C$1)","v":""},0]
["\n\n\n",{"$f":"IF(OrigTable!A1102=\"\",\"\",ScriptText!$B$1&CHAR(10)&ScriptText!$D$1)","v":""},{"$f":"IF(OrigTable!A1102=\"\",\"\",TEXT(OrigTable!A1102,\"00\"))","v":""},{"$f":"IF(OrigTable!A1102=\"\",\"\",ScriptText!$E$1&CHAR(10)&ScriptText!$C$1)","v":""},{"$f":"IF(OrigTable!B1102=\"\",\"\",ScriptText!$B$1&CHAR(10)&ScriptText!$D$1)","v":""},{"$f":"IF(OrigTable!B1102=\"\",\"\",TEXT(OrigTable!B1102,\"00\"))","v":""},{"$f":"IF(OrigTable!B1102=\"\",\"\",ScriptText!$E$1&CHAR(10)&ScriptText!C1097)","v":""},{"$f":"IF(OrigTable!C1102=\"\",\"\",ScriptText!$B$1&CHAR(10)&ScriptText!$D$1)","v":""},{"$f":"IF(OrigTable!C1102=\"\",\"\",IF(LEN(OrigTable!C1102)>255,LEFT(OrigTable!C1102,250)&\". . .\",OrigTable!C1102))","v":""},{"$f":"IF(OrigTable!C1102=\"\",\"\",ScriptText!$E$1&CHAR(10)&ScriptText!$C$1)","v":""},{"$f":"IF(OrigTable!D1102=\"\",\"\",ScriptText!$B$1&CHAR(10)&ScriptText!$D$1)","v":""},{"$f":"IF(OrigTable!D1102=\"\",\"\",TEXT(OrigTable!D1102,\"00\"))","v":""},{"$f":"IF(OrigTable!D1102=\"\",\"\",ScriptText!$E$1&CHAR(10)&ScriptText!$C$1)","v":""},{"$f":"IF(OrigTable!E1102=\"\",\"\",ScriptText!$B$1&CHAR(10)&ScriptText!$D$1)","v":""},{"$f":"IF(OrigTable!E1102=\"\",\"\",TEXT(OrigTable!E1102,\"00\"))","v":""},{"$f":"IF(OrigTable!E1102=\"\",\"\",ScriptText!$E$1&CHAR(10)&ScriptText!$C$1)","v":""},{"$f":"IF(OrigTable!F1102=\"\",\"\",ScriptText!$B$1&CHAR(10)&ScriptText!$D$1)","v":""},{"$f":"IF(OrigTable!F1102=\"\",\"\",TEXT(OrigTable!F1102,\"00\"))","v":""},{"$f":"IF(OrigTable!F1102=\"\",\"\",ScriptText!$E$1&CHAR(10)&ScriptText!$C$1)","v":""},{"$f":"IF(OrigTable!G1102=\"\",\"\",ScriptText!$B$1&CHAR(10)&ScriptText!$D$1)","v":""},{"$f":"IF(OrigTable!G1102=\"\",\"\",TEXT(OrigTable!G1102,\"00\"))","v":""},{"$f":"IF(OrigTable!G1102=\"\",\"\",ScriptText!$E$1&CHAR(10)&ScriptText!$C$1)","v":""},0]
["\n\n\n",{"$f":"IF(OrigTable!A1103=\"\",\"\",ScriptText!$B$1&CHAR(10)&ScriptText!$D$1)","v":""},{"$f":"IF(OrigTable!A1103=\"\",\"\",TEXT(OrigTable!A1103,\"00\"))","v":""},{"$f":"IF(OrigTable!A1103=\"\",\"\",ScriptText!$E$1&CHAR(10)&ScriptText!$C$1)","v":""},{"$f":"IF(OrigTable!B1103=\"\",\"\",ScriptText!$B$1&CHAR(10)&ScriptText!$D$1)","v":""},{"$f":"IF(OrigTable!B1103=\"\",\"\",TEXT(OrigTable!B1103,\"00\"))","v":""},{"$f":"IF(OrigTable!B1103=\"\",\"\",ScriptText!$E$1&CHAR(10)&ScriptText!C1098)","v":""},{"$f":"IF(OrigTable!C1103=\"\",\"\",ScriptText!$B$1&CHAR(10)&ScriptText!$D$1)","v":""},{"$f":"IF(OrigTable!C1103=\"\",\"\",IF(LEN(OrigTable!C1103)>255,LEFT(OrigTable!C1103,250)&\". . .\",OrigTable!C1103))","v":""},{"$f":"IF(OrigTable!C1103=\"\",\"\",ScriptText!$E$1&CHAR(10)&ScriptText!$C$1)","v":""},{"$f":"IF(OrigTable!D1103=\"\",\"\",ScriptText!$B$1&CHAR(10)&ScriptText!$D$1)","v":""},{"$f":"IF(OrigTable!D1103=\"\",\"\",TEXT(OrigTable!D1103,\"00\"))","v":""},{"$f":"IF(OrigTable!D1103=\"\",\"\",ScriptText!$E$1&CHAR(10)&ScriptText!$C$1)","v":""},{"$f":"IF(OrigTable!E1103=\"\",\"\",ScriptText!$B$1&CHAR(10)&ScriptText!$D$1)","v":""},{"$f":"IF(OrigTable!E1103=\"\",\"\",TEXT(OrigTable!E1103,\"00\"))","v":""},{"$f":"IF(OrigTable!E1103=\"\",\"\",ScriptText!$E$1&CHAR(10)&ScriptText!$C$1)","v":""},{"$f":"IF(OrigTable!F1103=\"\",\"\",ScriptText!$B$1&CHAR(10)&ScriptText!$D$1)","v":""},{"$f":"IF(OrigTable!F1103=\"\",\"\",TEXT(OrigTable!F1103,\"00\"))","v":""},{"$f":"IF(OrigTable!F1103=\"\",\"\",ScriptText!$E$1&CHAR(10)&ScriptText!$C$1)","v":""},{"$f":"IF(OrigTable!G1103=\"\",\"\",ScriptText!$B$1&CHAR(10)&ScriptText!$D$1)","v":""},{"$f":"IF(OrigTable!G1103=\"\",\"\",TEXT(OrigTable!G1103,\"00\"))","v":""},{"$f":"IF(OrigTable!G1103=\"\",\"\",ScriptText!$E$1&CHAR(10)&ScriptText!$C$1)","v":""},0]
["\n\n\n",{"$f":"IF(OrigTable!A1104=\"\",\"\",ScriptText!$B$1&CHAR(10)&ScriptText!$D$1)","v":""},{"$f":"IF(OrigTable!A1104=\"\",\"\",TEXT(OrigTable!A1104,\"00\"))","v":""},{"$f":"IF(OrigTable!A1104=\"\",\"\",ScriptText!$E$1&CHAR(10)&ScriptText!$C$1)","v":""},{"$f":"IF(OrigTable!B1104=\"\",\"\",ScriptText!$B$1&CHAR(10)&ScriptText!$D$1)","v":""},{"$f":"IF(OrigTable!B1104=\"\",\"\",TEXT(OrigTable!B1104,\"00\"))","v":""},{"$f":"IF(OrigTable!B1104=\"\",\"\",ScriptText!$E$1&CHAR(10)&ScriptText!C1099)","v":""},{"$f":"IF(OrigTable!C1104=\"\",\"\",ScriptText!$B$1&CHAR(10)&ScriptText!$D$1)","v":""},{"$f":"IF(OrigTable!C1104=\"\",\"\",IF(LEN(OrigTable!C1104)>255,LEFT(OrigTable!C1104,250)&\". . .\",OrigTable!C1104))","v":""},{"$f":"IF(OrigTable!C1104=\"\",\"\",ScriptText!$E$1&CHAR(10)&ScriptText!$C$1)","v":""},{"$f":"IF(OrigTable!D1104=\"\",\"\",ScriptText!$B$1&CHAR(10)&ScriptText!$D$1)","v":""},{"$f":"IF(OrigTable!D1104=\"\",\"\",TEXT(OrigTable!D1104,\"00\"))","v":""},{"$f":"IF(OrigTable!D1104=\"\",\"\",ScriptText!$E$1&CHAR(10)&ScriptText!$C$1)","v":""},{"$f":"IF(OrigTable!E1104=\"\",\"\",ScriptText!$B$1&CHAR(10)&ScriptText!$D$1)","v":""},{"$f":"IF(OrigTable!E1104=\"\",\"\",TEXT(OrigTable!E1104,\"00\"))","v":""},{"$f":"IF(OrigTable!E1104=\"\",\"\",ScriptText!$E$1&CHAR(10)&ScriptText!$C$1)","v":""},{"$f":"IF(OrigTable!F1104=\"\",\"\",ScriptText!$B$1&CHAR(10)&ScriptText!$D$1)","v":""},{"$f":"IF(OrigTable!F1104=\"\",\"\",TEXT(OrigTable!F1104,\"00\"))","v":""},{"$f":"IF(OrigTable!F1104=\"\",\"\",ScriptText!$E$1&CHAR(10)&ScriptText!$C$1)","v":""},{"$f":"IF(OrigTable!G1104=\"\",\"\",ScriptText!$B$1&CHAR(10)&ScriptText!$D$1)","v":""},{"$f":"IF(OrigTable!G1104=\"\",\"\",TEXT(OrigTable!G1104,\"00\"))","v":""},{"$f":"IF(OrigTable!G1104=\"\",\"\",ScriptText!$E$1&CHAR(10)&ScriptText!$C$1)","v":""},0]
["\n\n\n",{"$f":"IF(OrigTable!A1105=\"\",\"\",ScriptText!$B$1&CHAR(10)&ScriptText!$D$1)","v":""},{"$f":"IF(OrigTable!A1105=\"\",\"\",TEXT(OrigTable!A1105,\"00\"))","v":""},{"$f":"IF(OrigTable!A1105=\"\",\"\",ScriptText!$E$1&CHAR(10)&ScriptText!$C$1)","v":""},{"$f":"IF(OrigTable!B1105=\"\",\"\",ScriptText!$B$1&CHAR(10)&ScriptText!$D$1)","v":""},{"$f":"IF(OrigTable!B1105=\"\",\"\",TEXT(OrigTable!B1105,\"00\"))","v":""},{"$f":"IF(OrigTable!B1105=\"\",\"\",ScriptText!$E$1&CHAR(10)&ScriptText!C1100)","v":""},{"$f":"IF(OrigTable!C1105=\"\",\"\",ScriptText!$B$1&CHAR(10)&ScriptText!$D$1)","v":""},{"$f":"IF(OrigTable!C1105=\"\",\"\",IF(LEN(OrigTable!C1105)>255,LEFT(OrigTable!C1105,250)&\". . .\",OrigTable!C1105))","v":""},{"$f":"IF(OrigTable!C1105=\"\",\"\",ScriptText!$E$1&CHAR(10)&ScriptText!$C$1)","v":""},{"$f":"IF(OrigTable!D1105=\"\",\"\",ScriptText!$B$1&CHAR(10)&ScriptText!$D$1)","v":""},{"$f":"IF(OrigTable!D1105=\"\",\"\",TEXT(OrigTable!D1105,\"00\"))","v":""},{"$f":"IF(OrigTable!D1105=\"\",\"\",ScriptText!$E$1&CHAR(10)&ScriptText!$C$1)","v":""},{"$f":"IF(OrigTable!E1105=\"\",\"\",ScriptText!$B$1&CHAR(10)&ScriptText!$D$1)","v":""},{"$f":"IF(OrigTable!E1105=\"\",\"\",TEXT(OrigTable!E1105,\"00\"))","v":""},{"$f":"IF(OrigTable!E1105=\"\",\"\",ScriptText!$E$1&CHAR(10)&ScriptText!$C$1)","v":""},{"$f":"IF(OrigTable!F1105=\"\",\"\",ScriptText!$B$1&CHAR(10)&ScriptText!$D$1)","v":""},{"$f":"IF(OrigTable!F1105=\"\",\"\",TEXT(OrigTable!F1105,\"00\"))","v":""},{"$f":"IF(OrigTable!F1105=\"\",\"\",ScriptText!$E$1&CHAR(10)&ScriptText!$C$1)","v":""},{"$f":"IF(OrigTable!G1105=\"\",\"\",ScriptText!$B$1&CHAR(10)&ScriptText!$D$1)","v":""},{"$f":"IF(OrigTable!G1105=\"\",\"\",TEXT(OrigTable!G1105,\"00\"))","v":""},{"$f":"IF(OrigTable!G1105=\"\",\"\",ScriptText!$E$1&CHAR(10)&ScriptText!$C$1)","v":""},0]
["\n\n\n",{"$f":"IF(OrigTable!A1106=\"\",\"\",ScriptText!$B$1&CHAR(10)&ScriptText!$D$1)","v":""},{"$f":"IF(OrigTable!A1106=\"\",\"\",TEXT(OrigTable!A1106,\"00\"))","v":""},{"$f":"IF(OrigTable!A1106=\"\",\"\",ScriptText!$E$1&CHAR(10)&ScriptText!$C$1)","v":""},{"$f":"IF(OrigTable!B1106=\"\",\"\",ScriptText!$B$1&CHAR(10)&ScriptText!$D$1)","v":""},{"$f":"IF(OrigTable!B1106=\"\",\"\",TEXT(OrigTable!B1106,\"00\"))","v":""},{"$f":"IF(OrigTable!B1106=\"\",\"\",ScriptText!$E$1&CHAR(10)&ScriptText!C1101)","v":""},{"$f":"IF(OrigTable!C1106=\"\",\"\",ScriptText!$B$1&CHAR(10)&ScriptText!$D$1)","v":""},{"$f":"IF(OrigTable!C1106=\"\",\"\",IF(LEN(OrigTable!C1106)>255,LEFT(OrigTable!C1106,250)&\". . .\",OrigTable!C1106))","v":""},{"$f":"IF(OrigTable!C1106=\"\",\"\",ScriptText!$E$1&CHAR(10)&ScriptText!$C$1)","v":""},{"$f":"IF(OrigTable!D1106=\"\",\"\",ScriptText!$B$1&CHAR(10)&ScriptText!$D$1)","v":""},{"$f":"IF(OrigTable!D1106=\"\",\"\",TEXT(OrigTable!D1106,\"00\"))","v":""},{"$f":"IF(OrigTable!D1106=\"\",\"\",ScriptText!$E$1&CHAR(10)&ScriptText!$C$1)","v":""},{"$f":"IF(OrigTable!E1106=\"\",\"\",ScriptText!$B$1&CHAR(10)&ScriptText!$D$1)","v":""},{"$f":"IF(OrigTable!E1106=\"\",\"\",TEXT(OrigTable!E1106,\"00\"))","v":""},{"$f":"IF(OrigTable!E1106=\"\",\"\",ScriptText!$E$1&CHAR(10)&ScriptText!$C$1)","v":""},{"$f":"IF(OrigTable!F1106=\"\",\"\",ScriptText!$B$1&CHAR(10)&ScriptText!$D$1)","v":""},{"$f":"IF(OrigTable!F1106=\"\",\"\",TEXT(OrigTable!F1106,\"00\"))","v":""},{"$f":"IF(OrigTable!F1106=\"\",\"\",ScriptText!$E$1&CHAR(10)&ScriptText!$C$1)","v":""},{"$f":"IF(OrigTable!G1106=\"\",\"\",ScriptText!$B$1&CHAR(10)&ScriptText!$D$1)","v":""},{"$f":"IF(OrigTable!G1106=\"\",\"\",TEXT(OrigTable!G1106,\"00\"))","v":""},{"$f":"IF(OrigTable!G1106=\"\",\"\",ScriptText!$E$1&CHAR(10)&ScriptText!$C$1)","v":""},0]
["\n\n\n",{"$f":"IF(OrigTable!A1107=\"\",\"\",ScriptText!$B$1&CHAR(10)&ScriptText!$D$1)","v":""},{"$f":"IF(OrigTable!A1107=\"\",\"\",TEXT(OrigTable!A1107,\"00\"))","v":""},{"$f":"IF(OrigTable!A1107=\"\",\"\",ScriptText!$E$1&CHAR(10)&ScriptText!$C$1)","v":""},{"$f":"IF(OrigTable!B1107=\"\",\"\",ScriptText!$B$1&CHAR(10)&ScriptText!$D$1)","v":""},{"$f":"IF(OrigTable!B1107=\"\",\"\",TEXT(OrigTable!B1107,\"00\"))","v":""},{"$f":"IF(OrigTable!B1107=\"\",\"\",ScriptText!$E$1&CHAR(10)&ScriptText!C1102)","v":""},{"$f":"IF(OrigTable!C1107=\"\",\"\",ScriptText!$B$1&CHAR(10)&ScriptText!$D$1)","v":""},{"$f":"IF(OrigTable!C1107=\"\",\"\",IF(LEN(OrigTable!C1107)>255,LEFT(OrigTable!C1107,250)&\". . .\",OrigTable!C1107))","v":""},{"$f":"IF(OrigTable!C1107=\"\",\"\",ScriptText!$E$1&CHAR(10)&ScriptText!$C$1)","v":""},{"$f":"IF(OrigTable!D1107=\"\",\"\",ScriptText!$B$1&CHAR(10)&ScriptText!$D$1)","v":""},{"$f":"IF(OrigTable!D1107=\"\",\"\",TEXT(OrigTable!D1107,\"00\"))","v":""},{"$f":"IF(OrigTable!D1107=\"\",\"\",ScriptText!$E$1&CHAR(10)&ScriptText!$C$1)","v":""},{"$f":"IF(OrigTable!E1107=\"\",\"\",ScriptText!$B$1&CHAR(10)&ScriptText!$D$1)","v":""},{"$f":"IF(OrigTable!E1107=\"\",\"\",TEXT(OrigTable!E1107,\"00\"))","v":""},{"$f":"IF(OrigTable!E1107=\"\",\"\",ScriptText!$E$1&CHAR(10)&ScriptText!$C$1)","v":""},{"$f":"IF(OrigTable!F1107=\"\",\"\",ScriptText!$B$1&CHAR(10)&ScriptText!$D$1)","v":""},{"$f":"IF(OrigTable!F1107=\"\",\"\",TEXT(OrigTable!F1107,\"00\"))","v":""},{"$f":"IF(OrigTable!F1107=\"\",\"\",ScriptText!$E$1&CHAR(10)&ScriptText!$C$1)","v":""},{"$f":"IF(OrigTable!G1107=\"\",\"\",ScriptText!$B$1&CHAR(10)&ScriptText!$D$1)","v":""},{"$f":"IF(OrigTable!G1107=\"\",\"\",TEXT(OrigTable!G1107,\"00\"))","v":""},{"$f":"IF(OrigTable!G1107=\"\",\"\",ScriptText!$E$1&CHAR(10)&ScriptText!$C$1)","v":""},0]
["\n\n\n",{"$f":"IF(OrigTable!A1108=\"\",\"\",ScriptText!$B$1&CHAR(10)&ScriptText!$D$1)","v":""},{"$f":"IF(OrigTable!A1108=\"\",\"\",TEXT(OrigTable!A1108,\"00\"))","v":""},{"$f":"IF(OrigTable!A1108=\"\",\"\",ScriptText!$E$1&CHAR(10)&ScriptText!$C$1)","v":""},{"$f":"IF(OrigTable!B1108=\"\",\"\",ScriptText!$B$1&CHAR(10)&ScriptText!$D$1)","v":""},{"$f":"IF(OrigTable!B1108=\"\",\"\",TEXT(OrigTable!B1108,\"00\"))","v":""},{"$f":"IF(OrigTable!B1108=\"\",\"\",ScriptText!$E$1&CHAR(10)&ScriptText!C1103)","v":""},{"$f":"IF(OrigTable!C1108=\"\",\"\",ScriptText!$B$1&CHAR(10)&ScriptText!$D$1)","v":""},{"$f":"IF(OrigTable!C1108=\"\",\"\",IF(LEN(OrigTable!C1108)>255,LEFT(OrigTable!C1108,250)&\". . .\",OrigTable!C1108))","v":""},{"$f":"IF(OrigTable!C1108=\"\",\"\",ScriptText!$E$1&CHAR(10)&ScriptText!$C$1)","v":""},{"$f":"IF(OrigTable!D1108=\"\",\"\",ScriptText!$B$1&CHAR(10)&ScriptText!$D$1)","v":""},{"$f":"IF(OrigTable!D1108=\"\",\"\",TEXT(OrigTable!D1108,\"00\"))","v":""},{"$f":"IF(OrigTable!D1108=\"\",\"\",ScriptText!$E$1&CHAR(10)&ScriptText!$C$1)","v":""},{"$f":"IF(OrigTable!E1108=\"\",\"\",ScriptText!$B$1&CHAR(10)&ScriptText!$D$1)","v":""},{"$f":"IF(OrigTable!E1108=\"\",\"\",TEXT(OrigTable!E1108,\"00\"))","v":""},{"$f":"IF(OrigTable!E1108=\"\",\"\",ScriptText!$E$1&CHAR(10)&ScriptText!$C$1)","v":""},{"$f":"IF(OrigTable!F1108=\"\",\"\",ScriptText!$B$1&CHAR(10)&ScriptText!$D$1)","v":""},{"$f":"IF(OrigTable!F1108=\"\",\"\",TEXT(OrigTable!F1108,\"00\"))","v":""},{"$f":"IF(OrigTable!F1108=\"\",\"\",ScriptText!$E$1&CHAR(10)&ScriptText!$C$1)","v":""},{"$f":"IF(OrigTable!G1108=\"\",\"\",ScriptText!$B$1&CHAR(10)&ScriptText!$D$1)","v":""},{"$f":"IF(OrigTable!G1108=\"\",\"\",TEXT(OrigTable!G1108,\"00\"))","v":""},{"$f":"IF(OrigTable!G1108=\"\",\"\",ScriptText!$E$1&CHAR(10)&ScriptText!$C$1)","v":""},0]
["\n\n\n",{"$f":"IF(OrigTable!A1109=\"\",\"\",ScriptText!$B$1&CHAR(10)&ScriptText!$D$1)","v":""},{"$f":"IF(OrigTable!A1109=\"\",\"\",TEXT(OrigTable!A1109,\"00\"))","v":""},{"$f":"IF(OrigTable!A1109=\"\",\"\",ScriptText!$E$1&CHAR(10)&ScriptText!$C$1)","v":""},{"$f":"IF(OrigTable!B1109=\"\",\"\",ScriptText!$B$1&CHAR(10)&ScriptText!$D$1)","v":""},{"$f":"IF(OrigTable!B1109=\"\",\"\",TEXT(OrigTable!B1109,\"00\"))","v":""},{"$f":"IF(OrigTable!B1109=\"\",\"\",ScriptText!$E$1&CHAR(10)&ScriptText!C1104)","v":""},{"$f":"IF(OrigTable!C1109=\"\",\"\",ScriptText!$B$1&CHAR(10)&ScriptText!$D$1)","v":""},{"$f":"IF(OrigTable!C1109=\"\",\"\",IF(LEN(OrigTable!C1109)>255,LEFT(OrigTable!C1109,250)&\". . .\",OrigTable!C1109))","v":""},{"$f":"IF(OrigTable!C1109=\"\",\"\",ScriptText!$E$1&CHAR(10)&ScriptText!$C$1)","v":""},{"$f":"IF(OrigTable!D1109=\"\",\"\",ScriptText!$B$1&CHAR(10)&ScriptText!$D$1)","v":""},{"$f":"IF(OrigTable!D1109=\"\",\"\",TEXT(OrigTable!D1109,\"00\"))","v":""},{"$f":"IF(OrigTable!D1109=\"\",\"\",ScriptText!$E$1&CHAR(10)&ScriptText!$C$1)","v":""},{"$f":"IF(OrigTable!E1109=\"\",\"\",ScriptText!$B$1&CHAR(10)&ScriptText!$D$1)","v":""},{"$f":"IF(OrigTable!E1109=\"\",\"\",TEXT(OrigTable!E1109,\"00\"))","v":""},{"$f":"IF(OrigTable!E1109=\"\",\"\",ScriptText!$E$1&CHAR(10)&ScriptText!$C$1)","v":""},{"$f":"IF(OrigTable!F1109=\"\",\"\",ScriptText!$B$1&CHAR(10)&ScriptText!$D$1)","v":""},{"$f":"IF(OrigTable!F1109=\"\",\"\",TEXT(OrigTable!F1109,\"00\"))","v":""},{"$f":"IF(OrigTable!F1109=\"\",\"\",ScriptText!$E$1&CHAR(10)&ScriptText!$C$1)","v":""},{"$f":"IF(OrigTable!G1109=\"\",\"\",ScriptText!$B$1&CHAR(10)&ScriptText!$D$1)","v":""},{"$f":"IF(OrigTable!G1109=\"\",\"\",TEXT(OrigTable!G1109,\"00\"))","v":""},{"$f":"IF(OrigTable!G1109=\"\",\"\",ScriptText!$E$1&CHAR(10)&ScriptText!$C$1)","v":""},0]
["\n\n\n",{"$f":"IF(OrigTable!A1110=\"\",\"\",ScriptText!$B$1&CHAR(10)&ScriptText!$D$1)","v":""},{"$f":"IF(OrigTable!A1110=\"\",\"\",TEXT(OrigTable!A1110,\"00\"))","v":""},{"$f":"IF(OrigTable!A1110=\"\",\"\",ScriptText!$E$1&CHAR(10)&ScriptText!$C$1)","v":""},{"$f":"IF(OrigTable!B1110=\"\",\"\",ScriptText!$B$1&CHAR(10)&ScriptText!$D$1)","v":""},{"$f":"IF(OrigTable!B1110=\"\",\"\",TEXT(OrigTable!B1110,\"00\"))","v":""},{"$f":"IF(OrigTable!B1110=\"\",\"\",ScriptText!$E$1&CHAR(10)&ScriptText!C1105)","v":""},{"$f":"IF(OrigTable!C1110=\"\",\"\",ScriptText!$B$1&CHAR(10)&ScriptText!$D$1)","v":""},{"$f":"IF(OrigTable!C1110=\"\",\"\",IF(LEN(OrigTable!C1110)>255,LEFT(OrigTable!C1110,250)&\". . .\",OrigTable!C1110))","v":""},{"$f":"IF(OrigTable!C1110=\"\",\"\",ScriptText!$E$1&CHAR(10)&ScriptText!$C$1)","v":""},{"$f":"IF(OrigTable!D1110=\"\",\"\",ScriptText!$B$1&CHAR(10)&ScriptText!$D$1)","v":""},{"$f":"IF(OrigTable!D1110=\"\",\"\",TEXT(OrigTable!D1110,\"00\"))","v":""},{"$f":"IF(OrigTable!D1110=\"\",\"\",ScriptText!$E$1&CHAR(10)&ScriptText!$C$1)","v":""},{"$f":"IF(OrigTable!E1110=\"\",\"\",ScriptText!$B$1&CHAR(10)&ScriptText!$D$1)","v":""},{"$f":"IF(OrigTable!E1110=\"\",\"\",TEXT(OrigTable!E1110,\"00\"))","v":""},{"$f":"IF(OrigTable!E1110=\"\",\"\",ScriptText!$E$1&CHAR(10)&ScriptText!$C$1)","v":""},{"$f":"IF(OrigTable!F1110=\"\",\"\",ScriptText!$B$1&CHAR(10)&ScriptText!$D$1)","v":""},{"$f":"IF(OrigTable!F1110=\"\",\"\",TEXT(OrigTable!F1110,\"00\"))","v":""},{"$f":"IF(OrigTable!F1110=\"\",\"\",ScriptText!$E$1&CHAR(10)&ScriptText!$C$1)","v":""},{"$f":"IF(OrigTable!G1110=\"\",\"\",ScriptText!$B$1&CHAR(10)&ScriptText!$D$1)","v":""},{"$f":"IF(OrigTable!G1110=\"\",\"\",TEXT(OrigTable!G1110,\"00\"))","v":""},{"$f":"IF(OrigTable!G1110=\"\",\"\",ScriptText!$E$1&CHAR(10)&ScriptText!$C$1)","v":""},0]
["\n\n\n",{"$f":"IF(OrigTable!A1111=\"\",\"\",ScriptText!$B$1&CHAR(10)&ScriptText!$D$1)","v":""},{"$f":"IF(OrigTable!A1111=\"\",\"\",TEXT(OrigTable!A1111,\"00\"))","v":""},{"$f":"IF(OrigTable!A1111=\"\",\"\",ScriptText!$E$1&CHAR(10)&ScriptText!$C$1)","v":""},{"$f":"IF(OrigTable!B1111=\"\",\"\",ScriptText!$B$1&CHAR(10)&ScriptText!$D$1)","v":""},{"$f":"IF(OrigTable!B1111=\"\",\"\",TEXT(OrigTable!B1111,\"00\"))","v":""},{"$f":"IF(OrigTable!B1111=\"\",\"\",ScriptText!$E$1&CHAR(10)&ScriptText!C1106)","v":""},{"$f":"IF(OrigTable!C1111=\"\",\"\",ScriptText!$B$1&CHAR(10)&ScriptText!$D$1)","v":""},{"$f":"IF(OrigTable!C1111=\"\",\"\",IF(LEN(OrigTable!C1111)>255,LEFT(OrigTable!C1111,250)&\". . .\",OrigTable!C1111))","v":""},{"$f":"IF(OrigTable!C1111=\"\",\"\",ScriptText!$E$1&CHAR(10)&ScriptText!$C$1)","v":""},{"$f":"IF(OrigTable!D1111=\"\",\"\",ScriptText!$B$1&CHAR(10)&ScriptText!$D$1)","v":""},{"$f":"IF(OrigTable!D1111=\"\",\"\",TEXT(OrigTable!D1111,\"00\"))","v":""},{"$f":"IF(OrigTable!D1111=\"\",\"\",ScriptText!$E$1&CHAR(10)&ScriptText!$C$1)","v":""},{"$f":"IF(OrigTable!E1111=\"\",\"\",ScriptText!$B$1&CHAR(10)&ScriptText!$D$1)","v":""},{"$f":"IF(OrigTable!E1111=\"\",\"\",TEXT(OrigTable!E1111,\"00\"))","v":""},{"$f":"IF(OrigTable!E1111=\"\",\"\",ScriptText!$E$1&CHAR(10)&ScriptText!$C$1)","v":""},{"$f":"IF(OrigTable!F1111=\"\",\"\",ScriptText!$B$1&CHAR(10)&ScriptText!$D$1)","v":""},{"$f":"IF(OrigTable!F1111=\"\",\"\",TEXT(OrigTable!F1111,\"00\"))","v":""},{"$f":"IF(OrigTable!F1111=\"\",\"\",ScriptText!$E$1&CHAR(10)&ScriptText!$C$1)","v":""},{"$f":"IF(OrigTable!G1111=\"\",\"\",ScriptText!$B$1&CHAR(10)&ScriptText!$D$1)","v":""},{"$f":"IF(OrigTable!G1111=\"\",\"\",TEXT(OrigTable!G1111,\"00\"))","v":""},{"$f":"IF(OrigTable!G1111=\"\",\"\",ScriptText!$E$1&CHAR(10)&ScriptText!$C$1)","v":""},0]
["\n\n\n",{"$f":"IF(OrigTable!A1112=\"\",\"\",ScriptText!$B$1&CHAR(10)&ScriptText!$D$1)","v":""},{"$f":"IF(OrigTable!A1112=\"\",\"\",TEXT(OrigTable!A1112,\"00\"))","v":""},{"$f":"IF(OrigTable!A1112=\"\",\"\",ScriptText!$E$1&CHAR(10)&ScriptText!$C$1)","v":""},{"$f":"IF(OrigTable!B1112=\"\",\"\",ScriptText!$B$1&CHAR(10)&ScriptText!$D$1)","v":""},{"$f":"IF(OrigTable!B1112=\"\",\"\",TEXT(OrigTable!B1112,\"00\"))","v":""},{"$f":"IF(OrigTable!B1112=\"\",\"\",ScriptText!$E$1&CHAR(10)&ScriptText!C1107)","v":""},{"$f":"IF(OrigTable!C1112=\"\",\"\",ScriptText!$B$1&CHAR(10)&ScriptText!$D$1)","v":""},{"$f":"IF(OrigTable!C1112=\"\",\"\",IF(LEN(OrigTable!C1112)>255,LEFT(OrigTable!C1112,250)&\". . .\",OrigTable!C1112))","v":""},{"$f":"IF(OrigTable!C1112=\"\",\"\",ScriptText!$E$1&CHAR(10)&ScriptText!$C$1)","v":""},{"$f":"IF(OrigTable!D1112=\"\",\"\",ScriptText!$B$1&CHAR(10)&ScriptText!$D$1)","v":""},{"$f":"IF(OrigTable!D1112=\"\",\"\",TEXT(OrigTable!D1112,\"00\"))","v":""},{"$f":"IF(OrigTable!D1112=\"\",\"\",ScriptText!$E$1&CHAR(10)&ScriptText!$C$1)","v":""},{"$f":"IF(OrigTable!E1112=\"\",\"\",ScriptText!$B$1&CHAR(10)&ScriptText!$D$1)","v":""},{"$f":"IF(OrigTable!E1112=\"\",\"\",TEXT(OrigTable!E1112,\"00\"))","v":""},{"$f":"IF(OrigTable!E1112=\"\",\"\",ScriptText!$E$1&CHAR(10)&ScriptText!$C$1)","v":""},{"$f":"IF(OrigTable!F1112=\"\",\"\",ScriptText!$B$1&CHAR(10)&ScriptText!$D$1)","v":""},{"$f":"IF(OrigTable!F1112=\"\",\"\",TEXT(OrigTable!F1112,\"00\"))","v":""},{"$f":"IF(OrigTable!F1112=\"\",\"\",ScriptText!$E$1&CHAR(10)&ScriptText!$C$1)","v":""},{"$f":"IF(OrigTable!G1112=\"\",\"\",ScriptText!$B$1&CHAR(10)&ScriptText!$D$1)","v":""},{"$f":"IF(OrigTable!G1112=\"\",\"\",TEXT(OrigTable!G1112,\"00\"))","v":""},{"$f":"IF(OrigTable!G1112=\"\",\"\",ScriptText!$E$1&CHAR(10)&ScriptText!$C$1)","v":""},0]
["\n\n\n",{"$f":"IF(OrigTable!A1113=\"\",\"\",ScriptText!$B$1&CHAR(10)&ScriptText!$D$1)","v":""},{"$f":"IF(OrigTable!A1113=\"\",\"\",TEXT(OrigTable!A1113,\"00\"))","v":""},{"$f":"IF(OrigTable!A1113=\"\",\"\",ScriptText!$E$1&CHAR(10)&ScriptText!$C$1)","v":""},{"$f":"IF(OrigTable!B1113=\"\",\"\",ScriptText!$B$1&CHAR(10)&ScriptText!$D$1)","v":""},{"$f":"IF(OrigTable!B1113=\"\",\"\",TEXT(OrigTable!B1113,\"00\"))","v":""},{"$f":"IF(OrigTable!B1113=\"\",\"\",ScriptText!$E$1&CHAR(10)&ScriptText!C1108)","v":""},{"$f":"IF(OrigTable!C1113=\"\",\"\",ScriptText!$B$1&CHAR(10)&ScriptText!$D$1)","v":""},{"$f":"IF(OrigTable!C1113=\"\",\"\",IF(LEN(OrigTable!C1113)>255,LEFT(OrigTable!C1113,250)&\". . .\",OrigTable!C1113))","v":""},{"$f":"IF(OrigTable!C1113=\"\",\"\",ScriptText!$E$1&CHAR(10)&ScriptText!$C$1)","v":""},{"$f":"IF(OrigTable!D1113=\"\",\"\",ScriptText!$B$1&CHAR(10)&ScriptText!$D$1)","v":""},{"$f":"IF(OrigTable!D1113=\"\",\"\",TEXT(OrigTable!D1113,\"00\"))","v":""},{"$f":"IF(OrigTable!D1113=\"\",\"\",ScriptText!$E$1&CHAR(10)&ScriptText!$C$1)","v":""},{"$f":"IF(OrigTable!E1113=\"\",\"\",ScriptText!$B$1&CHAR(10)&ScriptText!$D$1)","v":""},{"$f":"IF(OrigTable!E1113=\"\",\"\",TEXT(OrigTable!E1113,\"00\"))","v":""},{"$f":"IF(OrigTable!E1113=\"\",\"\",ScriptText!$E$1&CHAR(10)&ScriptText!$C$1)","v":""},{"$f":"IF(OrigTable!F1113=\"\",\"\",ScriptText!$B$1&CHAR(10)&ScriptText!$D$1)","v":""},{"$f":"IF(OrigTable!F1113=\"\",\"\",TEXT(OrigTable!F1113,\"00\"))","v":""},{"$f":"IF(OrigTable!F1113=\"\",\"\",ScriptText!$E$1&CHAR(10)&ScriptText!$C$1)","v":""},{"$f":"IF(OrigTable!G1113=\"\",\"\",ScriptText!$B$1&CHAR(10)&ScriptText!$D$1)","v":""},{"$f":"IF(OrigTable!G1113=\"\",\"\",TEXT(OrigTable!G1113,\"00\"))","v":""},{"$f":"IF(OrigTable!G1113=\"\",\"\",ScriptText!$E$1&CHAR(10)&ScriptText!$C$1)","v":""},0]
["\n\n\n",{"$f":"IF(OrigTable!A1114=\"\",\"\",ScriptText!$B$1&CHAR(10)&ScriptText!$D$1)","v":""},{"$f":"IF(OrigTable!A1114=\"\",\"\",TEXT(OrigTable!A1114,\"00\"))","v":""},{"$f":"IF(OrigTable!A1114=\"\",\"\",ScriptText!$E$1&CHAR(10)&ScriptText!$C$1)","v":""},{"$f":"IF(OrigTable!B1114=\"\",\"\",ScriptText!$B$1&CHAR(10)&ScriptText!$D$1)","v":""},{"$f":"IF(OrigTable!B1114=\"\",\"\",TEXT(OrigTable!B1114,\"00\"))","v":""},{"$f":"IF(OrigTable!B1114=\"\",\"\",ScriptText!$E$1&CHAR(10)&ScriptText!C1109)","v":""},{"$f":"IF(OrigTable!C1114=\"\",\"\",ScriptText!$B$1&CHAR(10)&ScriptText!$D$1)","v":""},{"$f":"IF(OrigTable!C1114=\"\",\"\",IF(LEN(OrigTable!C1114)>255,LEFT(OrigTable!C1114,250)&\". . .\",OrigTable!C1114))","v":""},{"$f":"IF(OrigTable!C1114=\"\",\"\",ScriptText!$E$1&CHAR(10)&ScriptText!$C$1)","v":""},{"$f":"IF(OrigTable!D1114=\"\",\"\",ScriptText!$B$1&CHAR(10)&ScriptText!$D$1)","v":""},{"$f":"IF(OrigTable!D1114=\"\",\"\",TEXT(OrigTable!D1114,\"00\"))","v":""},{"$f":"IF(OrigTable!D1114=\"\",\"\",ScriptText!$E$1&CHAR(10)&ScriptText!$C$1)","v":""},{"$f":"IF(OrigTable!E1114=\"\",\"\",ScriptText!$B$1&CHAR(10)&ScriptText!$D$1)","v":""},{"$f":"IF(OrigTable!E1114=\"\",\"\",TEXT(OrigTable!E1114,\"00\"))","v":""},{"$f":"IF(OrigTable!E1114=\"\",\"\",ScriptText!$E$1&CHAR(10)&ScriptText!$C$1)","v":""},{"$f":"IF(OrigTable!F1114=\"\",\"\",ScriptText!$B$1&CHAR(10)&ScriptText!$D$1)","v":""},{"$f":"IF(OrigTable!F1114=\"\",\"\",TEXT(OrigTable!F1114,\"00\"))","v":""},{"$f":"IF(OrigTable!F1114=\"\",\"\",ScriptText!$E$1&CHAR(10)&ScriptText!$C$1)","v":""},{"$f":"IF(OrigTable!G1114=\"\",\"\",ScriptText!$B$1&CHAR(10)&ScriptText!$D$1)","v":""},{"$f":"IF(OrigTable!G1114=\"\",\"\",TEXT(OrigTable!G1114,\"00\"))","v":""},{"$f":"IF(OrigTable!G1114=\"\",\"\",ScriptText!$E$1&CHAR(10)&ScriptText!$C$1)","v":""},0]
["\n\n\n",{"$f":"IF(OrigTable!A1115=\"\",\"\",ScriptText!$B$1&CHAR(10)&ScriptText!$D$1)","v":""},{"$f":"IF(OrigTable!A1115=\"\",\"\",TEXT(OrigTable!A1115,\"00\"))","v":""},{"$f":"IF(OrigTable!A1115=\"\",\"\",ScriptText!$E$1&CHAR(10)&ScriptText!$C$1)","v":""},{"$f":"IF(OrigTable!B1115=\"\",\"\",ScriptText!$B$1&CHAR(10)&ScriptText!$D$1)","v":""},{"$f":"IF(OrigTable!B1115=\"\",\"\",TEXT(OrigTable!B1115,\"00\"))","v":""},{"$f":"IF(OrigTable!B1115=\"\",\"\",ScriptText!$E$1&CHAR(10)&ScriptText!C1110)","v":""},{"$f":"IF(OrigTable!C1115=\"\",\"\",ScriptText!$B$1&CHAR(10)&ScriptText!$D$1)","v":""},{"$f":"IF(OrigTable!C1115=\"\",\"\",IF(LEN(OrigTable!C1115)>255,LEFT(OrigTable!C1115,250)&\". . .\",OrigTable!C1115))","v":""},{"$f":"IF(OrigTable!C1115=\"\",\"\",ScriptText!$E$1&CHAR(10)&ScriptText!$C$1)","v":""},{"$f":"IF(OrigTable!D1115=\"\",\"\",ScriptText!$B$1&CHAR(10)&ScriptText!$D$1)","v":""},{"$f":"IF(OrigTable!D1115=\"\",\"\",TEXT(OrigTable!D1115,\"00\"))","v":""},{"$f":"IF(OrigTable!D1115=\"\",\"\",ScriptText!$E$1&CHAR(10)&ScriptText!$C$1)","v":""},{"$f":"IF(OrigTable!E1115=\"\",\"\",ScriptText!$B$1&CHAR(10)&ScriptText!$D$1)","v":""},{"$f":"IF(OrigTable!E1115=\"\",\"\",TEXT(OrigTable!E1115,\"00\"))","v":""},{"$f":"IF(OrigTable!E1115=\"\",\"\",ScriptText!$E$1&CHAR(10)&ScriptText!$C$1)","v":""},{"$f":"IF(OrigTable!F1115=\"\",\"\",ScriptText!$B$1&CHAR(10)&ScriptText!$D$1)","v":""},{"$f":"IF(OrigTable!F1115=\"\",\"\",TEXT(OrigTable!F1115,\"00\"))","v":""},{"$f":"IF(OrigTable!F1115=\"\",\"\",ScriptText!$E$1&CHAR(10)&ScriptText!$C$1)","v":""},{"$f":"IF(OrigTable!G1115=\"\",\"\",ScriptText!$B$1&CHAR(10)&ScriptText!$D$1)","v":""},{"$f":"IF(OrigTable!G1115=\"\",\"\",TEXT(OrigTable!G1115,\"00\"))","v":""},{"$f":"IF(OrigTable!G1115=\"\",\"\",ScriptText!$E$1&CHAR(10)&ScriptText!$C$1)","v":""},0]
["\n\n\n",{"$f":"IF(OrigTable!A1116=\"\",\"\",ScriptText!$B$1&CHAR(10)&ScriptText!$D$1)","v":""},{"$f":"IF(OrigTable!A1116=\"\",\"\",TEXT(OrigTable!A1116,\"00\"))","v":""},{"$f":"IF(OrigTable!A1116=\"\",\"\",ScriptText!$E$1&CHAR(10)&ScriptText!$C$1)","v":""},{"$f":"IF(OrigTable!B1116=\"\",\"\",ScriptText!$B$1&CHAR(10)&ScriptText!$D$1)","v":""},{"$f":"IF(OrigTable!B1116=\"\",\"\",TEXT(OrigTable!B1116,\"00\"))","v":""},{"$f":"IF(OrigTable!B1116=\"\",\"\",ScriptText!$E$1&CHAR(10)&ScriptText!C1111)","v":""},{"$f":"IF(OrigTable!C1116=\"\",\"\",ScriptText!$B$1&CHAR(10)&ScriptText!$D$1)","v":""},{"$f":"IF(OrigTable!C1116=\"\",\"\",IF(LEN(OrigTable!C1116)>255,LEFT(OrigTable!C1116,250)&\". . .\",OrigTable!C1116))","v":""},{"$f":"IF(OrigTable!C1116=\"\",\"\",ScriptText!$E$1&CHAR(10)&ScriptText!$C$1)","v":""},{"$f":"IF(OrigTable!D1116=\"\",\"\",ScriptText!$B$1&CHAR(10)&ScriptText!$D$1)","v":""},{"$f":"IF(OrigTable!D1116=\"\",\"\",TEXT(OrigTable!D1116,\"00\"))","v":""},{"$f":"IF(OrigTable!D1116=\"\",\"\",ScriptText!$E$1&CHAR(10)&ScriptText!$C$1)","v":""},{"$f":"IF(OrigTable!E1116=\"\",\"\",ScriptText!$B$1&CHAR(10)&ScriptText!$D$1)","v":""},{"$f":"IF(OrigTable!E1116=\"\",\"\",TEXT(OrigTable!E1116,\"00\"))","v":""},{"$f":"IF(OrigTable!E1116=\"\",\"\",ScriptText!$E$1&CHAR(10)&ScriptText!$C$1)","v":""},{"$f":"IF(OrigTable!F1116=\"\",\"\",ScriptText!$B$1&CHAR(10)&ScriptText!$D$1)","v":""},{"$f":"IF(OrigTable!F1116=\"\",\"\",TEXT(OrigTable!F1116,\"00\"))","v":""},{"$f":"IF(OrigTable!F1116=\"\",\"\",ScriptText!$E$1&CHAR(10)&ScriptText!$C$1)","v":""},{"$f":"IF(OrigTable!G1116=\"\",\"\",ScriptText!$B$1&CHAR(10)&ScriptText!$D$1)","v":""},{"$f":"IF(OrigTable!G1116=\"\",\"\",TEXT(OrigTable!G1116,\"00\"))","v":""},{"$f":"IF(OrigTable!G1116=\"\",\"\",ScriptText!$E$1&CHAR(10)&ScriptText!$C$1)","v":""},0]
["\n\n\n",{"$f":"IF(OrigTable!A1117=\"\",\"\",ScriptText!$B$1&CHAR(10)&ScriptText!$D$1)","v":""},{"$f":"IF(OrigTable!A1117=\"\",\"\",TEXT(OrigTable!A1117,\"00\"))","v":""},{"$f":"IF(OrigTable!A1117=\"\",\"\",ScriptText!$E$1&CHAR(10)&ScriptText!$C$1)","v":""},{"$f":"IF(OrigTable!B1117=\"\",\"\",ScriptText!$B$1&CHAR(10)&ScriptText!$D$1)","v":""},{"$f":"IF(OrigTable!B1117=\"\",\"\",TEXT(OrigTable!B1117,\"00\"))","v":""},{"$f":"IF(OrigTable!B1117=\"\",\"\",ScriptText!$E$1&CHAR(10)&ScriptText!C1112)","v":""},{"$f":"IF(OrigTable!C1117=\"\",\"\",ScriptText!$B$1&CHAR(10)&ScriptText!$D$1)","v":""},{"$f":"IF(OrigTable!C1117=\"\",\"\",IF(LEN(OrigTable!C1117)>255,LEFT(OrigTable!C1117,250)&\". . .\",OrigTable!C1117))","v":""},{"$f":"IF(OrigTable!C1117=\"\",\"\",ScriptText!$E$1&CHAR(10)&ScriptText!$C$1)","v":""},{"$f":"IF(OrigTable!D1117=\"\",\"\",ScriptText!$B$1&CHAR(10)&ScriptText!$D$1)","v":""},{"$f":"IF(OrigTable!D1117=\"\",\"\",TEXT(OrigTable!D1117,\"00\"))","v":""},{"$f":"IF(OrigTable!D1117=\"\",\"\",ScriptText!$E$1&CHAR(10)&ScriptText!$C$1)","v":""},{"$f":"IF(OrigTable!E1117=\"\",\"\",ScriptText!$B$1&CHAR(10)&ScriptText!$D$1)","v":""},{"$f":"IF(OrigTable!E1117=\"\",\"\",TEXT(OrigTable!E1117,\"00\"))","v":""},{"$f":"IF(OrigTable!E1117=\"\",\"\",ScriptText!$E$1&CHAR(10)&ScriptText!$C$1)","v":""},{"$f":"IF(OrigTable!F1117=\"\",\"\",ScriptText!$B$1&CHAR(10)&ScriptText!$D$1)","v":""},{"$f":"IF(OrigTable!F1117=\"\",\"\",TEXT(OrigTable!F1117,\"00\"))","v":""},{"$f":"IF(OrigTable!F1117=\"\",\"\",ScriptText!$E$1&CHAR(10)&ScriptText!$C$1)","v":""},{"$f":"IF(OrigTable!G1117=\"\",\"\",ScriptText!$B$1&CHAR(10)&ScriptText!$D$1)","v":""},{"$f":"IF(OrigTable!G1117=\"\",\"\",TEXT(OrigTable!G1117,\"00\"))","v":""},{"$f":"IF(OrigTable!G1117=\"\",\"\",ScriptText!$E$1&CHAR(10)&ScriptText!$C$1)","v":""},0]
["\n\n\n",{"$f":"IF(OrigTable!A1118=\"\",\"\",ScriptText!$B$1&CHAR(10)&ScriptText!$D$1)","v":""},{"$f":"IF(OrigTable!A1118=\"\",\"\",TEXT(OrigTable!A1118,\"00\"))","v":""},{"$f":"IF(OrigTable!A1118=\"\",\"\",ScriptText!$E$1&CHAR(10)&ScriptText!$C$1)","v":""},{"$f":"IF(OrigTable!B1118=\"\",\"\",ScriptText!$B$1&CHAR(10)&ScriptText!$D$1)","v":""},{"$f":"IF(OrigTable!B1118=\"\",\"\",TEXT(OrigTable!B1118,\"00\"))","v":""},{"$f":"IF(OrigTable!B1118=\"\",\"\",ScriptText!$E$1&CHAR(10)&ScriptText!C1113)","v":""},{"$f":"IF(OrigTable!C1118=\"\",\"\",ScriptText!$B$1&CHAR(10)&ScriptText!$D$1)","v":""},{"$f":"IF(OrigTable!C1118=\"\",\"\",IF(LEN(OrigTable!C1118)>255,LEFT(OrigTable!C1118,250)&\". . .\",OrigTable!C1118))","v":""},{"$f":"IF(OrigTable!C1118=\"\",\"\",ScriptText!$E$1&CHAR(10)&ScriptText!$C$1)","v":""},{"$f":"IF(OrigTable!D1118=\"\",\"\",ScriptText!$B$1&CHAR(10)&ScriptText!$D$1)","v":""},{"$f":"IF(OrigTable!D1118=\"\",\"\",TEXT(OrigTable!D1118,\"00\"))","v":""},{"$f":"IF(OrigTable!D1118=\"\",\"\",ScriptText!$E$1&CHAR(10)&ScriptText!$C$1)","v":""},{"$f":"IF(OrigTable!E1118=\"\",\"\",ScriptText!$B$1&CHAR(10)&ScriptText!$D$1)","v":""},{"$f":"IF(OrigTable!E1118=\"\",\"\",TEXT(OrigTable!E1118,\"00\"))","v":""},{"$f":"IF(OrigTable!E1118=\"\",\"\",ScriptText!$E$1&CHAR(10)&ScriptText!$C$1)","v":""},{"$f":"IF(OrigTable!F1118=\"\",\"\",ScriptText!$B$1&CHAR(10)&ScriptText!$D$1)","v":""},{"$f":"IF(OrigTable!F1118=\"\",\"\",TEXT(OrigTable!F1118,\"00\"))","v":""},{"$f":"IF(OrigTable!F1118=\"\",\"\",ScriptText!$E$1&CHAR(10)&ScriptText!$C$1)","v":""},{"$f":"IF(OrigTable!G1118=\"\",\"\",ScriptText!$B$1&CHAR(10)&ScriptText!$D$1)","v":""},{"$f":"IF(OrigTable!G1118=\"\",\"\",TEXT(OrigTable!G1118,\"00\"))","v":""},{"$f":"IF(OrigTable!G1118=\"\",\"\",ScriptText!$E$1&CHAR(10)&ScriptText!$C$1)","v":""},0]
["\n\n\n",{"$f":"IF(OrigTable!A1119=\"\",\"\",ScriptText!$B$1&CHAR(10)&ScriptText!$D$1)","v":""},{"$f":"IF(OrigTable!A1119=\"\",\"\",TEXT(OrigTable!A1119,\"00\"))","v":""},{"$f":"IF(OrigTable!A1119=\"\",\"\",ScriptText!$E$1&CHAR(10)&ScriptText!$C$1)","v":""},{"$f":"IF(OrigTable!B1119=\"\",\"\",ScriptText!$B$1&CHAR(10)&ScriptText!$D$1)","v":""},{"$f":"IF(OrigTable!B1119=\"\",\"\",TEXT(OrigTable!B1119,\"00\"))","v":""},{"$f":"IF(OrigTable!B1119=\"\",\"\",ScriptText!$E$1&CHAR(10)&ScriptText!C1114)","v":""},{"$f":"IF(OrigTable!C1119=\"\",\"\",ScriptText!$B$1&CHAR(10)&ScriptText!$D$1)","v":""},{"$f":"IF(OrigTable!C1119=\"\",\"\",IF(LEN(OrigTable!C1119)>255,LEFT(OrigTable!C1119,250)&\". . .\",OrigTable!C1119))","v":""},{"$f":"IF(OrigTable!C1119=\"\",\"\",ScriptText!$E$1&CHAR(10)&ScriptText!$C$1)","v":""},{"$f":"IF(OrigTable!D1119=\"\",\"\",ScriptText!$B$1&CHAR(10)&ScriptText!$D$1)","v":""},{"$f":"IF(OrigTable!D1119=\"\",\"\",TEXT(OrigTable!D1119,\"00\"))","v":""},{"$f":"IF(OrigTable!D1119=\"\",\"\",ScriptText!$E$1&CHAR(10)&ScriptText!$C$1)","v":""},{"$f":"IF(OrigTable!E1119=\"\",\"\",ScriptText!$B$1&CHAR(10)&ScriptText!$D$1)","v":""},{"$f":"IF(OrigTable!E1119=\"\",\"\",TEXT(OrigTable!E1119,\"00\"))","v":""},{"$f":"IF(OrigTable!E1119=\"\",\"\",ScriptText!$E$1&CHAR(10)&ScriptText!$C$1)","v":""},{"$f":"IF(OrigTable!F1119=\"\",\"\",ScriptText!$B$1&CHAR(10)&ScriptText!$D$1)","v":""},{"$f":"IF(OrigTable!F1119=\"\",\"\",TEXT(OrigTable!F1119,\"00\"))","v":""},{"$f":"IF(OrigTable!F1119=\"\",\"\",ScriptText!$E$1&CHAR(10)&ScriptText!$C$1)","v":""},{"$f":"IF(OrigTable!G1119=\"\",\"\",ScriptText!$B$1&CHAR(10)&ScriptText!$D$1)","v":""},{"$f":"IF(OrigTable!G1119=\"\",\"\",TEXT(OrigTable!G1119,\"00\"))","v":""},{"$f":"IF(OrigTable!G1119=\"\",\"\",ScriptText!$E$1&CHAR(10)&ScriptText!$C$1)","v":""},0]
["\n\n\n",{"$f":"IF(OrigTable!A1120=\"\",\"\",ScriptText!$B$1&CHAR(10)&ScriptText!$D$1)","v":""},{"$f":"IF(OrigTable!A1120=\"\",\"\",TEXT(OrigTable!A1120,\"00\"))","v":""},{"$f":"IF(OrigTable!A1120=\"\",\"\",ScriptText!$E$1&CHAR(10)&ScriptText!$C$1)","v":""},{"$f":"IF(OrigTable!B1120=\"\",\"\",ScriptText!$B$1&CHAR(10)&ScriptText!$D$1)","v":""},{"$f":"IF(OrigTable!B1120=\"\",\"\",TEXT(OrigTable!B1120,\"00\"))","v":""},{"$f":"IF(OrigTable!B1120=\"\",\"\",ScriptText!$E$1&CHAR(10)&ScriptText!C1115)","v":""},{"$f":"IF(OrigTable!C1120=\"\",\"\",ScriptText!$B$1&CHAR(10)&ScriptText!$D$1)","v":""},{"$f":"IF(OrigTable!C1120=\"\",\"\",IF(LEN(OrigTable!C1120)>255,LEFT(OrigTable!C1120,250)&\". . .\",OrigTable!C1120))","v":""},{"$f":"IF(OrigTable!C1120=\"\",\"\",ScriptText!$E$1&CHAR(10)&ScriptText!$C$1)","v":""},{"$f":"IF(OrigTable!D1120=\"\",\"\",ScriptText!$B$1&CHAR(10)&ScriptText!$D$1)","v":""},{"$f":"IF(OrigTable!D1120=\"\",\"\",TEXT(OrigTable!D1120,\"00\"))","v":""},{"$f":"IF(OrigTable!D1120=\"\",\"\",ScriptText!$E$1&CHAR(10)&ScriptText!$C$1)","v":""},{"$f":"IF(OrigTable!E1120=\"\",\"\",ScriptText!$B$1&CHAR(10)&ScriptText!$D$1)","v":""},{"$f":"IF(OrigTable!E1120=\"\",\"\",TEXT(OrigTable!E1120,\"00\"))","v":""},{"$f":"IF(OrigTable!E1120=\"\",\"\",ScriptText!$E$1&CHAR(10)&ScriptText!$C$1)","v":""},{"$f":"IF(OrigTable!F1120=\"\",\"\",ScriptText!$B$1&CHAR(10)&ScriptText!$D$1)","v":""},{"$f":"IF(OrigTable!F1120=\"\",\"\",TEXT(OrigTable!F1120,\"00\"))","v":""},{"$f":"IF(OrigTable!F1120=\"\",\"\",ScriptText!$E$1&CHAR(10)&ScriptText!$C$1)","v":""},{"$f":"IF(OrigTable!G1120=\"\",\"\",ScriptText!$B$1&CHAR(10)&ScriptText!$D$1)","v":""},{"$f":"IF(OrigTable!G1120=\"\",\"\",TEXT(OrigTable!G1120,\"00\"))","v":""},{"$f":"IF(OrigTable!G1120=\"\",\"\",ScriptText!$E$1&CHAR(10)&ScriptText!$C$1)","v":""},0]
["\n\n\n",{"$f":"IF(OrigTable!A1121=\"\",\"\",ScriptText!$B$1&CHAR(10)&ScriptText!$D$1)","v":""},{"$f":"IF(OrigTable!A1121=\"\",\"\",TEXT(OrigTable!A1121,\"00\"))","v":""},{"$f":"IF(OrigTable!A1121=\"\",\"\",ScriptText!$E$1&CHAR(10)&ScriptText!$C$1)","v":""},{"$f":"IF(OrigTable!B1121=\"\",\"\",ScriptText!$B$1&CHAR(10)&ScriptText!$D$1)","v":""},{"$f":"IF(OrigTable!B1121=\"\",\"\",TEXT(OrigTable!B1121,\"00\"))","v":""},{"$f":"IF(OrigTable!B1121=\"\",\"\",ScriptText!$E$1&CHAR(10)&ScriptText!C1116)","v":""},{"$f":"IF(OrigTable!C1121=\"\",\"\",ScriptText!$B$1&CHAR(10)&ScriptText!$D$1)","v":""},{"$f":"IF(OrigTable!C1121=\"\",\"\",IF(LEN(OrigTable!C1121)>255,LEFT(OrigTable!C1121,250)&\". . .\",OrigTable!C1121))","v":""},{"$f":"IF(OrigTable!C1121=\"\",\"\",ScriptText!$E$1&CHAR(10)&ScriptText!$C$1)","v":""},{"$f":"IF(OrigTable!D1121=\"\",\"\",ScriptText!$B$1&CHAR(10)&ScriptText!$D$1)","v":""},{"$f":"IF(OrigTable!D1121=\"\",\"\",TEXT(OrigTable!D1121,\"00\"))","v":""},{"$f":"IF(OrigTable!D1121=\"\",\"\",ScriptText!$E$1&CHAR(10)&ScriptText!$C$1)","v":""},{"$f":"IF(OrigTable!E1121=\"\",\"\",ScriptText!$B$1&CHAR(10)&ScriptText!$D$1)","v":""},{"$f":"IF(OrigTable!E1121=\"\",\"\",TEXT(OrigTable!E1121,\"00\"))","v":""},{"$f":"IF(OrigTable!E1121=\"\",\"\",ScriptText!$E$1&CHAR(10)&ScriptText!$C$1)","v":""},{"$f":"IF(OrigTable!F1121=\"\",\"\",ScriptText!$B$1&CHAR(10)&ScriptText!$D$1)","v":""},{"$f":"IF(OrigTable!F1121=\"\",\"\",TEXT(OrigTable!F1121,\"00\"))","v":""},{"$f":"IF(OrigTable!F1121=\"\",\"\",ScriptText!$E$1&CHAR(10)&ScriptText!$C$1)","v":""},{"$f":"IF(OrigTable!G1121=\"\",\"\",ScriptText!$B$1&CHAR(10)&ScriptText!$D$1)","v":""},{"$f":"IF(OrigTable!G1121=\"\",\"\",TEXT(OrigTable!G1121,\"00\"))","v":""},{"$f":"IF(OrigTable!G1121=\"\",\"\",ScriptText!$E$1&CHAR(10)&ScriptText!$C$1)","v":""},0]
["\n\n\n",{"$f":"IF(OrigTable!A1122=\"\",\"\",ScriptText!$B$1&CHAR(10)&ScriptText!$D$1)","v":""},{"$f":"IF(OrigTable!A1122=\"\",\"\",TEXT(OrigTable!A1122,\"00\"))","v":""},{"$f":"IF(OrigTable!A1122=\"\",\"\",ScriptText!$E$1&CHAR(10)&ScriptText!$C$1)","v":""},{"$f":"IF(OrigTable!B1122=\"\",\"\",ScriptText!$B$1&CHAR(10)&ScriptText!$D$1)","v":""},{"$f":"IF(OrigTable!B1122=\"\",\"\",TEXT(OrigTable!B1122,\"00\"))","v":""},{"$f":"IF(OrigTable!B1122=\"\",\"\",ScriptText!$E$1&CHAR(10)&ScriptText!C1117)","v":""},{"$f":"IF(OrigTable!C1122=\"\",\"\",ScriptText!$B$1&CHAR(10)&ScriptText!$D$1)","v":""},{"$f":"IF(OrigTable!C1122=\"\",\"\",IF(LEN(OrigTable!C1122)>255,LEFT(OrigTable!C1122,250)&\". . .\",OrigTable!C1122))","v":""},{"$f":"IF(OrigTable!C1122=\"\",\"\",ScriptText!$E$1&CHAR(10)&ScriptText!$C$1)","v":""},{"$f":"IF(OrigTable!D1122=\"\",\"\",ScriptText!$B$1&CHAR(10)&ScriptText!$D$1)","v":""},{"$f":"IF(OrigTable!D1122=\"\",\"\",TEXT(OrigTable!D1122,\"00\"))","v":""},{"$f":"IF(OrigTable!D1122=\"\",\"\",ScriptText!$E$1&CHAR(10)&ScriptText!$C$1)","v":""},{"$f":"IF(OrigTable!E1122=\"\",\"\",ScriptText!$B$1&CHAR(10)&ScriptText!$D$1)","v":""},{"$f":"IF(OrigTable!E1122=\"\",\"\",TEXT(OrigTable!E1122,\"00\"))","v":""},{"$f":"IF(OrigTable!E1122=\"\",\"\",ScriptText!$E$1&CHAR(10)&ScriptText!$C$1)","v":""},{"$f":"IF(OrigTable!F1122=\"\",\"\",ScriptText!$B$1&CHAR(10)&ScriptText!$D$1)","v":""},{"$f":"IF(OrigTable!F1122=\"\",\"\",TEXT(OrigTable!F1122,\"00\"))","v":""},{"$f":"IF(OrigTable!F1122=\"\",\"\",ScriptText!$E$1&CHAR(10)&ScriptText!$C$1)","v":""},{"$f":"IF(OrigTable!G1122=\"\",\"\",ScriptText!$B$1&CHAR(10)&ScriptText!$D$1)","v":""},{"$f":"IF(OrigTable!G1122=\"\",\"\",TEXT(OrigTable!G1122,\"00\"))","v":""},{"$f":"IF(OrigTable!G1122=\"\",\"\",ScriptText!$E$1&CHAR(10)&ScriptText!$C$1)","v":""},0]
["\n\n\n",{"$f":"IF(OrigTable!A1123=\"\",\"\",ScriptText!$B$1&CHAR(10)&ScriptText!$D$1)","v":""},{"$f":"IF(OrigTable!A1123=\"\",\"\",TEXT(OrigTable!A1123,\"00\"))","v":""},{"$f":"IF(OrigTable!A1123=\"\",\"\",ScriptText!$E$1&CHAR(10)&ScriptText!$C$1)","v":""},{"$f":"IF(OrigTable!B1123=\"\",\"\",ScriptText!$B$1&CHAR(10)&ScriptText!$D$1)","v":""},{"$f":"IF(OrigTable!B1123=\"\",\"\",TEXT(OrigTable!B1123,\"00\"))","v":""},{"$f":"IF(OrigTable!B1123=\"\",\"\",ScriptText!$E$1&CHAR(10)&ScriptText!C1118)","v":""},{"$f":"IF(OrigTable!C1123=\"\",\"\",ScriptText!$B$1&CHAR(10)&ScriptText!$D$1)","v":""},{"$f":"IF(OrigTable!C1123=\"\",\"\",IF(LEN(OrigTable!C1123)>255,LEFT(OrigTable!C1123,250)&\". . .\",OrigTable!C1123))","v":""},{"$f":"IF(OrigTable!C1123=\"\",\"\",ScriptText!$E$1&CHAR(10)&ScriptText!$C$1)","v":""},{"$f":"IF(OrigTable!D1123=\"\",\"\",ScriptText!$B$1&CHAR(10)&ScriptText!$D$1)","v":""},{"$f":"IF(OrigTable!D1123=\"\",\"\",TEXT(OrigTable!D1123,\"00\"))","v":""},{"$f":"IF(OrigTable!D1123=\"\",\"\",ScriptText!$E$1&CHAR(10)&ScriptText!$C$1)","v":""},{"$f":"IF(OrigTable!E1123=\"\",\"\",ScriptText!$B$1&CHAR(10)&ScriptText!$D$1)","v":""},{"$f":"IF(OrigTable!E1123=\"\",\"\",TEXT(OrigTable!E1123,\"00\"))","v":""},{"$f":"IF(OrigTable!E1123=\"\",\"\",ScriptText!$E$1&CHAR(10)&ScriptText!$C$1)","v":""},{"$f":"IF(OrigTable!F1123=\"\",\"\",ScriptText!$B$1&CHAR(10)&ScriptText!$D$1)","v":""},{"$f":"IF(OrigTable!F1123=\"\",\"\",TEXT(OrigTable!F1123,\"00\"))","v":""},{"$f":"IF(OrigTable!F1123=\"\",\"\",ScriptText!$E$1&CHAR(10)&ScriptText!$C$1)","v":""},{"$f":"IF(OrigTable!G1123=\"\",\"\",ScriptText!$B$1&CHAR(10)&ScriptText!$D$1)","v":""},{"$f":"IF(OrigTable!G1123=\"\",\"\",TEXT(OrigTable!G1123,\"00\"))","v":""},{"$f":"IF(OrigTable!G1123=\"\",\"\",ScriptText!$E$1&CHAR(10)&ScriptText!$C$1)","v":""},0]
["\n\n\n",{"$f":"IF(OrigTable!A1124=\"\",\"\",ScriptText!$B$1&CHAR(10)&ScriptText!$D$1)","v":""},{"$f":"IF(OrigTable!A1124=\"\",\"\",TEXT(OrigTable!A1124,\"00\"))","v":""},{"$f":"IF(OrigTable!A1124=\"\",\"\",ScriptText!$E$1&CHAR(10)&ScriptText!$C$1)","v":""},{"$f":"IF(OrigTable!B1124=\"\",\"\",ScriptText!$B$1&CHAR(10)&ScriptText!$D$1)","v":""},{"$f":"IF(OrigTable!B1124=\"\",\"\",TEXT(OrigTable!B1124,\"00\"))","v":""},{"$f":"IF(OrigTable!B1124=\"\",\"\",ScriptText!$E$1&CHAR(10)&ScriptText!C1119)","v":""},{"$f":"IF(OrigTable!C1124=\"\",\"\",ScriptText!$B$1&CHAR(10)&ScriptText!$D$1)","v":""},{"$f":"IF(OrigTable!C1124=\"\",\"\",IF(LEN(OrigTable!C1124)>255,LEFT(OrigTable!C1124,250)&\". . .\",OrigTable!C1124))","v":""},{"$f":"IF(OrigTable!C1124=\"\",\"\",ScriptText!$E$1&CHAR(10)&ScriptText!$C$1)","v":""},{"$f":"IF(OrigTable!D1124=\"\",\"\",ScriptText!$B$1&CHAR(10)&ScriptText!$D$1)","v":""},{"$f":"IF(OrigTable!D1124=\"\",\"\",TEXT(OrigTable!D1124,\"00\"))","v":""},{"$f":"IF(OrigTable!D1124=\"\",\"\",ScriptText!$E$1&CHAR(10)&ScriptText!$C$1)","v":""},{"$f":"IF(OrigTable!E1124=\"\",\"\",ScriptText!$B$1&CHAR(10)&ScriptText!$D$1)","v":""},{"$f":"IF(OrigTable!E1124=\"\",\"\",TEXT(OrigTable!E1124,\"00\"))","v":""},{"$f":"IF(OrigTable!E1124=\"\",\"\",ScriptText!$E$1&CHAR(10)&ScriptText!$C$1)","v":""},{"$f":"IF(OrigTable!F1124=\"\",\"\",ScriptText!$B$1&CHAR(10)&ScriptText!$D$1)","v":""},{"$f":"IF(OrigTable!F1124=\"\",\"\",TEXT(OrigTable!F1124,\"00\"))","v":""},{"$f":"IF(OrigTable!F1124=\"\",\"\",ScriptText!$E$1&CHAR(10)&ScriptText!$C$1)","v":""},{"$f":"IF(OrigTable!G1124=\"\",\"\",ScriptText!$B$1&CHAR(10)&ScriptText!$D$1)","v":""},{"$f":"IF(OrigTable!G1124=\"\",\"\",TEXT(OrigTable!G1124,\"00\"))","v":""},{"$f":"IF(OrigTable!G1124=\"\",\"\",ScriptText!$E$1&CHAR(10)&ScriptText!$C$1)","v":""},0]
["\n\n\n",{"$f":"IF(OrigTable!A1125=\"\",\"\",ScriptText!$B$1&CHAR(10)&ScriptText!$D$1)","v":""},{"$f":"IF(OrigTable!A1125=\"\",\"\",TEXT(OrigTable!A1125,\"00\"))","v":""},{"$f":"IF(OrigTable!A1125=\"\",\"\",ScriptText!$E$1&CHAR(10)&ScriptText!$C$1)","v":""},{"$f":"IF(OrigTable!B1125=\"\",\"\",ScriptText!$B$1&CHAR(10)&ScriptText!$D$1)","v":""},{"$f":"IF(OrigTable!B1125=\"\",\"\",TEXT(OrigTable!B1125,\"00\"))","v":""},{"$f":"IF(OrigTable!B1125=\"\",\"\",ScriptText!$E$1&CHAR(10)&ScriptText!C1120)","v":""},{"$f":"IF(OrigTable!C1125=\"\",\"\",ScriptText!$B$1&CHAR(10)&ScriptText!$D$1)","v":""},{"$f":"IF(OrigTable!C1125=\"\",\"\",IF(LEN(OrigTable!C1125)>255,LEFT(OrigTable!C1125,250)&\". . .\",OrigTable!C1125))","v":""},{"$f":"IF(OrigTable!C1125=\"\",\"\",ScriptText!$E$1&CHAR(10)&ScriptText!$C$1)","v":""},{"$f":"IF(OrigTable!D1125=\"\",\"\",ScriptText!$B$1&CHAR(10)&ScriptText!$D$1)","v":""},{"$f":"IF(OrigTable!D1125=\"\",\"\",TEXT(OrigTable!D1125,\"00\"))","v":""},{"$f":"IF(OrigTable!D1125=\"\",\"\",ScriptText!$E$1&CHAR(10)&ScriptText!$C$1)","v":""},{"$f":"IF(OrigTable!E1125=\"\",\"\",ScriptText!$B$1&CHAR(10)&ScriptText!$D$1)","v":""},{"$f":"IF(OrigTable!E1125=\"\",\"\",TEXT(OrigTable!E1125,\"00\"))","v":""},{"$f":"IF(OrigTable!E1125=\"\",\"\",ScriptText!$E$1&CHAR(10)&ScriptText!$C$1)","v":""},{"$f":"IF(OrigTable!F1125=\"\",\"\",ScriptText!$B$1&CHAR(10)&ScriptText!$D$1)","v":""},{"$f":"IF(OrigTable!F1125=\"\",\"\",TEXT(OrigTable!F1125,\"00\"))","v":""},{"$f":"IF(OrigTable!F1125=\"\",\"\",ScriptText!$E$1&CHAR(10)&ScriptText!$C$1)","v":""},{"$f":"IF(OrigTable!G1125=\"\",\"\",ScriptText!$B$1&CHAR(10)&ScriptText!$D$1)","v":""},{"$f":"IF(OrigTable!G1125=\"\",\"\",TEXT(OrigTable!G1125,\"00\"))","v":""},{"$f":"IF(OrigTable!G1125=\"\",\"\",ScriptText!$E$1&CHAR(10)&ScriptText!$C$1)","v":""},0]
["\n\n\n",{"$f":"IF(OrigTable!A1126=\"\",\"\",ScriptText!$B$1&CHAR(10)&ScriptText!$D$1)","v":""},{"$f":"IF(OrigTable!A1126=\"\",\"\",TEXT(OrigTable!A1126,\"00\"))","v":""},{"$f":"IF(OrigTable!A1126=\"\",\"\",ScriptText!$E$1&CHAR(10)&ScriptText!$C$1)","v":""},{"$f":"IF(OrigTable!B1126=\"\",\"\",ScriptText!$B$1&CHAR(10)&ScriptText!$D$1)","v":""},{"$f":"IF(OrigTable!B1126=\"\",\"\",TEXT(OrigTable!B1126,\"00\"))","v":""},{"$f":"IF(OrigTable!B1126=\"\",\"\",ScriptText!$E$1&CHAR(10)&ScriptText!C1121)","v":""},{"$f":"IF(OrigTable!C1126=\"\",\"\",ScriptText!$B$1&CHAR(10)&ScriptText!$D$1)","v":""},{"$f":"IF(OrigTable!C1126=\"\",\"\",IF(LEN(OrigTable!C1126)>255,LEFT(OrigTable!C1126,250)&\". . .\",OrigTable!C1126))","v":""},{"$f":"IF(OrigTable!C1126=\"\",\"\",ScriptText!$E$1&CHAR(10)&ScriptText!$C$1)","v":""},{"$f":"IF(OrigTable!D1126=\"\",\"\",ScriptText!$B$1&CHAR(10)&ScriptText!$D$1)","v":""},{"$f":"IF(OrigTable!D1126=\"\",\"\",TEXT(OrigTable!D1126,\"00\"))","v":""},{"$f":"IF(OrigTable!D1126=\"\",\"\",ScriptText!$E$1&CHAR(10)&ScriptText!$C$1)","v":""},{"$f":"IF(OrigTable!E1126=\"\",\"\",ScriptText!$B$1&CHAR(10)&ScriptText!$D$1)","v":""},{"$f":"IF(OrigTable!E1126=\"\",\"\",TEXT(OrigTable!E1126,\"00\"))","v":""},{"$f":"IF(OrigTable!E1126=\"\",\"\",ScriptText!$E$1&CHAR(10)&ScriptText!$C$1)","v":""},{"$f":"IF(OrigTable!F1126=\"\",\"\",ScriptText!$B$1&CHAR(10)&ScriptText!$D$1)","v":""},{"$f":"IF(OrigTable!F1126=\"\",\"\",TEXT(OrigTable!F1126,\"00\"))","v":""},{"$f":"IF(OrigTable!F1126=\"\",\"\",ScriptText!$E$1&CHAR(10)&ScriptText!$C$1)","v":""},{"$f":"IF(OrigTable!G1126=\"\",\"\",ScriptText!$B$1&CHAR(10)&ScriptText!$D$1)","v":""},{"$f":"IF(OrigTable!G1126=\"\",\"\",TEXT(OrigTable!G1126,\"00\"))","v":""},{"$f":"IF(OrigTable!G1126=\"\",\"\",ScriptText!$E$1&CHAR(10)&ScriptText!$C$1)","v":""},0]
["\n\n\n",{"$f":"IF(OrigTable!A1127=\"\",\"\",ScriptText!$B$1&CHAR(10)&ScriptText!$D$1)","v":""},{"$f":"IF(OrigTable!A1127=\"\",\"\",TEXT(OrigTable!A1127,\"00\"))","v":""},{"$f":"IF(OrigTable!A1127=\"\",\"\",ScriptText!$E$1&CHAR(10)&ScriptText!$C$1)","v":""},{"$f":"IF(OrigTable!B1127=\"\",\"\",ScriptText!$B$1&CHAR(10)&ScriptText!$D$1)","v":""},{"$f":"IF(OrigTable!B1127=\"\",\"\",TEXT(OrigTable!B1127,\"00\"))","v":""},{"$f":"IF(OrigTable!B1127=\"\",\"\",ScriptText!$E$1&CHAR(10)&ScriptText!C1122)","v":""},{"$f":"IF(OrigTable!C1127=\"\",\"\",ScriptText!$B$1&CHAR(10)&ScriptText!$D$1)","v":""},{"$f":"IF(OrigTable!C1127=\"\",\"\",IF(LEN(OrigTable!C1127)>255,LEFT(OrigTable!C1127,250)&\". . .\",OrigTable!C1127))","v":""},{"$f":"IF(OrigTable!C1127=\"\",\"\",ScriptText!$E$1&CHAR(10)&ScriptText!$C$1)","v":""},{"$f":"IF(OrigTable!D1127=\"\",\"\",ScriptText!$B$1&CHAR(10)&ScriptText!$D$1)","v":""},{"$f":"IF(OrigTable!D1127=\"\",\"\",TEXT(OrigTable!D1127,\"00\"))","v":""},{"$f":"IF(OrigTable!D1127=\"\",\"\",ScriptText!$E$1&CHAR(10)&ScriptText!$C$1)","v":""},{"$f":"IF(OrigTable!E1127=\"\",\"\",ScriptText!$B$1&CHAR(10)&ScriptText!$D$1)","v":""},{"$f":"IF(OrigTable!E1127=\"\",\"\",TEXT(OrigTable!E1127,\"00\"))","v":""},{"$f":"IF(OrigTable!E1127=\"\",\"\",ScriptText!$E$1&CHAR(10)&ScriptText!$C$1)","v":""},{"$f":"IF(OrigTable!F1127=\"\",\"\",ScriptText!$B$1&CHAR(10)&ScriptText!$D$1)","v":""},{"$f":"IF(OrigTable!F1127=\"\",\"\",TEXT(OrigTable!F1127,\"00\"))","v":""},{"$f":"IF(OrigTable!F1127=\"\",\"\",ScriptText!$E$1&CHAR(10)&ScriptText!$C$1)","v":""},{"$f":"IF(OrigTable!G1127=\"\",\"\",ScriptText!$B$1&CHAR(10)&ScriptText!$D$1)","v":""},{"$f":"IF(OrigTable!G1127=\"\",\"\",TEXT(OrigTable!G1127,\"00\"))","v":""},{"$f":"IF(OrigTable!G1127=\"\",\"\",ScriptText!$E$1&CHAR(10)&ScriptText!$C$1)","v":""},0]
["\n\n\n",{"$f":"IF(OrigTable!A1128=\"\",\"\",ScriptText!$B$1&CHAR(10)&ScriptText!$D$1)","v":""},{"$f":"IF(OrigTable!A1128=\"\",\"\",TEXT(OrigTable!A1128,\"00\"))","v":""},{"$f":"IF(OrigTable!A1128=\"\",\"\",ScriptText!$E$1&CHAR(10)&ScriptText!$C$1)","v":""},{"$f":"IF(OrigTable!B1128=\"\",\"\",ScriptText!$B$1&CHAR(10)&ScriptText!$D$1)","v":""},{"$f":"IF(OrigTable!B1128=\"\",\"\",TEXT(OrigTable!B1128,\"00\"))","v":""},{"$f":"IF(OrigTable!B1128=\"\",\"\",ScriptText!$E$1&CHAR(10)&ScriptText!C1123)","v":""},{"$f":"IF(OrigTable!C1128=\"\",\"\",ScriptText!$B$1&CHAR(10)&ScriptText!$D$1)","v":""},{"$f":"IF(OrigTable!C1128=\"\",\"\",IF(LEN(OrigTable!C1128)>255,LEFT(OrigTable!C1128,250)&\". . .\",OrigTable!C1128))","v":""},{"$f":"IF(OrigTable!C1128=\"\",\"\",ScriptText!$E$1&CHAR(10)&ScriptText!$C$1)","v":""},{"$f":"IF(OrigTable!D1128=\"\",\"\",ScriptText!$B$1&CHAR(10)&ScriptText!$D$1)","v":""},{"$f":"IF(OrigTable!D1128=\"\",\"\",TEXT(OrigTable!D1128,\"00\"))","v":""},{"$f":"IF(OrigTable!D1128=\"\",\"\",ScriptText!$E$1&CHAR(10)&ScriptText!$C$1)","v":""},{"$f":"IF(OrigTable!E1128=\"\",\"\",ScriptText!$B$1&CHAR(10)&ScriptText!$D$1)","v":""},{"$f":"IF(OrigTable!E1128=\"\",\"\",TEXT(OrigTable!E1128,\"00\"))","v":""},{"$f":"IF(OrigTable!E1128=\"\",\"\",ScriptText!$E$1&CHAR(10)&ScriptText!$C$1)","v":""},{"$f":"IF(OrigTable!F1128=\"\",\"\",ScriptText!$B$1&CHAR(10)&ScriptText!$D$1)","v":""},{"$f":"IF(OrigTable!F1128=\"\",\"\",TEXT(OrigTable!F1128,\"00\"))","v":""},{"$f":"IF(OrigTable!F1128=\"\",\"\",ScriptText!$E$1&CHAR(10)&ScriptText!$C$1)","v":""},{"$f":"IF(OrigTable!G1128=\"\",\"\",ScriptText!$B$1&CHAR(10)&ScriptText!$D$1)","v":""},{"$f":"IF(OrigTable!G1128=\"\",\"\",TEXT(OrigTable!G1128,\"00\"))","v":""},{"$f":"IF(OrigTable!G1128=\"\",\"\",ScriptText!$E$1&CHAR(10)&ScriptText!$C$1)","v":""},0]
["\n\n\n",{"$f":"IF(OrigTable!A1129=\"\",\"\",ScriptText!$B$1&CHAR(10)&ScriptText!$D$1)","v":""},{"$f":"IF(OrigTable!A1129=\"\",\"\",TEXT(OrigTable!A1129,\"00\"))","v":""},{"$f":"IF(OrigTable!A1129=\"\",\"\",ScriptText!$E$1&CHAR(10)&ScriptText!$C$1)","v":""},{"$f":"IF(OrigTable!B1129=\"\",\"\",ScriptText!$B$1&CHAR(10)&ScriptText!$D$1)","v":""},{"$f":"IF(OrigTable!B1129=\"\",\"\",TEXT(OrigTable!B1129,\"00\"))","v":""},{"$f":"IF(OrigTable!B1129=\"\",\"\",ScriptText!$E$1&CHAR(10)&ScriptText!C1124)","v":""},{"$f":"IF(OrigTable!C1129=\"\",\"\",ScriptText!$B$1&CHAR(10)&ScriptText!$D$1)","v":""},{"$f":"IF(OrigTable!C1129=\"\",\"\",IF(LEN(OrigTable!C1129)>255,LEFT(OrigTable!C1129,250)&\". . .\",OrigTable!C1129))","v":""},{"$f":"IF(OrigTable!C1129=\"\",\"\",ScriptText!$E$1&CHAR(10)&ScriptText!$C$1)","v":""},{"$f":"IF(OrigTable!D1129=\"\",\"\",ScriptText!$B$1&CHAR(10)&ScriptText!$D$1)","v":""},{"$f":"IF(OrigTable!D1129=\"\",\"\",TEXT(OrigTable!D1129,\"00\"))","v":""},{"$f":"IF(OrigTable!D1129=\"\",\"\",ScriptText!$E$1&CHAR(10)&ScriptText!$C$1)","v":""},{"$f":"IF(OrigTable!E1129=\"\",\"\",ScriptText!$B$1&CHAR(10)&ScriptText!$D$1)","v":""},{"$f":"IF(OrigTable!E1129=\"\",\"\",TEXT(OrigTable!E1129,\"00\"))","v":""},{"$f":"IF(OrigTable!E1129=\"\",\"\",ScriptText!$E$1&CHAR(10)&ScriptText!$C$1)","v":""},{"$f":"IF(OrigTable!F1129=\"\",\"\",ScriptText!$B$1&CHAR(10)&ScriptText!$D$1)","v":""},{"$f":"IF(OrigTable!F1129=\"\",\"\",TEXT(OrigTable!F1129,\"00\"))","v":""},{"$f":"IF(OrigTable!F1129=\"\",\"\",ScriptText!$E$1&CHAR(10)&ScriptText!$C$1)","v":""},{"$f":"IF(OrigTable!G1129=\"\",\"\",ScriptText!$B$1&CHAR(10)&ScriptText!$D$1)","v":""},{"$f":"IF(OrigTable!G1129=\"\",\"\",TEXT(OrigTable!G1129,\"00\"))","v":""},{"$f":"IF(OrigTable!G1129=\"\",\"\",ScriptText!$E$1&CHAR(10)&ScriptText!$C$1)","v":""},0]
["\n\n\n",{"$f":"IF(OrigTable!A1130=\"\",\"\",ScriptText!$B$1&CHAR(10)&ScriptText!$D$1)","v":""},{"$f":"IF(OrigTable!A1130=\"\",\"\",TEXT(OrigTable!A1130,\"00\"))","v":""},{"$f":"IF(OrigTable!A1130=\"\",\"\",ScriptText!$E$1&CHAR(10)&ScriptText!$C$1)","v":""},{"$f":"IF(OrigTable!B1130=\"\",\"\",ScriptText!$B$1&CHAR(10)&ScriptText!$D$1)","v":""},{"$f":"IF(OrigTable!B1130=\"\",\"\",TEXT(OrigTable!B1130,\"00\"))","v":""},{"$f":"IF(OrigTable!B1130=\"\",\"\",ScriptText!$E$1&CHAR(10)&ScriptText!C1125)","v":""},{"$f":"IF(OrigTable!C1130=\"\",\"\",ScriptText!$B$1&CHAR(10)&ScriptText!$D$1)","v":""},{"$f":"IF(OrigTable!C1130=\"\",\"\",IF(LEN(OrigTable!C1130)>255,LEFT(OrigTable!C1130,250)&\". . .\",OrigTable!C1130))","v":""},{"$f":"IF(OrigTable!C1130=\"\",\"\",ScriptText!$E$1&CHAR(10)&ScriptText!$C$1)","v":""},{"$f":"IF(OrigTable!D1130=\"\",\"\",ScriptText!$B$1&CHAR(10)&ScriptText!$D$1)","v":""},{"$f":"IF(OrigTable!D1130=\"\",\"\",TEXT(OrigTable!D1130,\"00\"))","v":""},{"$f":"IF(OrigTable!D1130=\"\",\"\",ScriptText!$E$1&CHAR(10)&ScriptText!$C$1)","v":""},{"$f":"IF(OrigTable!E1130=\"\",\"\",ScriptText!$B$1&CHAR(10)&ScriptText!$D$1)","v":""},{"$f":"IF(OrigTable!E1130=\"\",\"\",TEXT(OrigTable!E1130,\"00\"))","v":""},{"$f":"IF(OrigTable!E1130=\"\",\"\",ScriptText!$E$1&CHAR(10)&ScriptText!$C$1)","v":""},{"$f":"IF(OrigTable!F1130=\"\",\"\",ScriptText!$B$1&CHAR(10)&ScriptText!$D$1)","v":""},{"$f":"IF(OrigTable!F1130=\"\",\"\",TEXT(OrigTable!F1130,\"00\"))","v":""},{"$f":"IF(OrigTable!F1130=\"\",\"\",ScriptText!$E$1&CHAR(10)&ScriptText!$C$1)","v":""},{"$f":"IF(OrigTable!G1130=\"\",\"\",ScriptText!$B$1&CHAR(10)&ScriptText!$D$1)","v":""},{"$f":"IF(OrigTable!G1130=\"\",\"\",TEXT(OrigTable!G1130,\"00\"))","v":""},{"$f":"IF(OrigTable!G1130=\"\",\"\",ScriptText!$E$1&CHAR(10)&ScriptText!$C$1)","v":""},0]
["\n\n\n",{"$f":"IF(OrigTable!A1131=\"\",\"\",ScriptText!$B$1&CHAR(10)&ScriptText!$D$1)","v":""},{"$f":"IF(OrigTable!A1131=\"\",\"\",TEXT(OrigTable!A1131,\"00\"))","v":""},{"$f":"IF(OrigTable!A1131=\"\",\"\",ScriptText!$E$1&CHAR(10)&ScriptText!$C$1)","v":""},{"$f":"IF(OrigTable!B1131=\"\",\"\",ScriptText!$B$1&CHAR(10)&ScriptText!$D$1)","v":""},{"$f":"IF(OrigTable!B1131=\"\",\"\",TEXT(OrigTable!B1131,\"00\"))","v":""},{"$f":"IF(OrigTable!B1131=\"\",\"\",ScriptText!$E$1&CHAR(10)&ScriptText!C1126)","v":""},{"$f":"IF(OrigTable!C1131=\"\",\"\",ScriptText!$B$1&CHAR(10)&ScriptText!$D$1)","v":""},{"$f":"IF(OrigTable!C1131=\"\",\"\",IF(LEN(OrigTable!C1131)>255,LEFT(OrigTable!C1131,250)&\". . .\",OrigTable!C1131))","v":""},{"$f":"IF(OrigTable!C1131=\"\",\"\",ScriptText!$E$1&CHAR(10)&ScriptText!$C$1)","v":""},{"$f":"IF(OrigTable!D1131=\"\",\"\",ScriptText!$B$1&CHAR(10)&ScriptText!$D$1)","v":""},{"$f":"IF(OrigTable!D1131=\"\",\"\",TEXT(OrigTable!D1131,\"00\"))","v":""},{"$f":"IF(OrigTable!D1131=\"\",\"\",ScriptText!$E$1&CHAR(10)&ScriptText!$C$1)","v":""},{"$f":"IF(OrigTable!E1131=\"\",\"\",ScriptText!$B$1&CHAR(10)&ScriptText!$D$1)","v":""},{"$f":"IF(OrigTable!E1131=\"\",\"\",TEXT(OrigTable!E1131,\"00\"))","v":""},{"$f":"IF(OrigTable!E1131=\"\",\"\",ScriptText!$E$1&CHAR(10)&ScriptText!$C$1)","v":""},{"$f":"IF(OrigTable!F1131=\"\",\"\",ScriptText!$B$1&CHAR(10)&ScriptText!$D$1)","v":""},{"$f":"IF(OrigTable!F1131=\"\",\"\",TEXT(OrigTable!F1131,\"00\"))","v":""},{"$f":"IF(OrigTable!F1131=\"\",\"\",ScriptText!$E$1&CHAR(10)&ScriptText!$C$1)","v":""},{"$f":"IF(OrigTable!G1131=\"\",\"\",ScriptText!$B$1&CHAR(10)&ScriptText!$D$1)","v":""},{"$f":"IF(OrigTable!G1131=\"\",\"\",TEXT(OrigTable!G1131,\"00\"))","v":""},{"$f":"IF(OrigTable!G1131=\"\",\"\",ScriptText!$E$1&CHAR(10)&ScriptText!$C$1)","v":""},0]
["\n\n\n",{"$f":"IF(OrigTable!A1132=\"\",\"\",ScriptText!$B$1&CHAR(10)&ScriptText!$D$1)","v":""},{"$f":"IF(OrigTable!A1132=\"\",\"\",TEXT(OrigTable!A1132,\"00\"))","v":""},{"$f":"IF(OrigTable!A1132=\"\",\"\",ScriptText!$E$1&CHAR(10)&ScriptText!$C$1)","v":""},{"$f":"IF(OrigTable!B1132=\"\",\"\",ScriptText!$B$1&CHAR(10)&ScriptText!$D$1)","v":""},{"$f":"IF(OrigTable!B1132=\"\",\"\",TEXT(OrigTable!B1132,\"00\"))","v":""},{"$f":"IF(OrigTable!B1132=\"\",\"\",ScriptText!$E$1&CHAR(10)&ScriptText!C1127)","v":""},{"$f":"IF(OrigTable!C1132=\"\",\"\",ScriptText!$B$1&CHAR(10)&ScriptText!$D$1)","v":""},{"$f":"IF(OrigTable!C1132=\"\",\"\",IF(LEN(OrigTable!C1132)>255,LEFT(OrigTable!C1132,250)&\". . .\",OrigTable!C1132))","v":""},{"$f":"IF(OrigTable!C1132=\"\",\"\",ScriptText!$E$1&CHAR(10)&ScriptText!$C$1)","v":""},{"$f":"IF(OrigTable!D1132=\"\",\"\",ScriptText!$B$1&CHAR(10)&ScriptText!$D$1)","v":""},{"$f":"IF(OrigTable!D1132=\"\",\"\",TEXT(OrigTable!D1132,\"00\"))","v":""},{"$f":"IF(OrigTable!D1132=\"\",\"\",ScriptText!$E$1&CHAR(10)&ScriptText!$C$1)","v":""},{"$f":"IF(OrigTable!E1132=\"\",\"\",ScriptText!$B$1&CHAR(10)&ScriptText!$D$1)","v":""},{"$f":"IF(OrigTable!E1132=\"\",\"\",TEXT(OrigTable!E1132,\"00\"))","v":""},{"$f":"IF(OrigTable!E1132=\"\",\"\",ScriptText!$E$1&CHAR(10)&ScriptText!$C$1)","v":""},{"$f":"IF(OrigTable!F1132=\"\",\"\",ScriptText!$B$1&CHAR(10)&ScriptText!$D$1)","v":""},{"$f":"IF(OrigTable!F1132=\"\",\"\",TEXT(OrigTable!F1132,\"00\"))","v":""},{"$f":"IF(OrigTable!F1132=\"\",\"\",ScriptText!$E$1&CHAR(10)&ScriptText!$C$1)","v":""},{"$f":"IF(OrigTable!G1132=\"\",\"\",ScriptText!$B$1&CHAR(10)&ScriptText!$D$1)","v":""},{"$f":"IF(OrigTable!G1132=\"\",\"\",TEXT(OrigTable!G1132,\"00\"))","v":""},{"$f":"IF(OrigTable!G1132=\"\",\"\",ScriptText!$E$1&CHAR(10)&ScriptText!$C$1)","v":""},0]
["\n\n\n",{"$f":"IF(OrigTable!A1133=\"\",\"\",ScriptText!$B$1&CHAR(10)&ScriptText!$D$1)","v":""},{"$f":"IF(OrigTable!A1133=\"\",\"\",TEXT(OrigTable!A1133,\"00\"))","v":""},{"$f":"IF(OrigTable!A1133=\"\",\"\",ScriptText!$E$1&CHAR(10)&ScriptText!$C$1)","v":""},{"$f":"IF(OrigTable!B1133=\"\",\"\",ScriptText!$B$1&CHAR(10)&ScriptText!$D$1)","v":""},{"$f":"IF(OrigTable!B1133=\"\",\"\",TEXT(OrigTable!B1133,\"00\"))","v":""},{"$f":"IF(OrigTable!B1133=\"\",\"\",ScriptText!$E$1&CHAR(10)&ScriptText!C1128)","v":""},{"$f":"IF(OrigTable!C1133=\"\",\"\",ScriptText!$B$1&CHAR(10)&ScriptText!$D$1)","v":""},{"$f":"IF(OrigTable!C1133=\"\",\"\",IF(LEN(OrigTable!C1133)>255,LEFT(OrigTable!C1133,250)&\". . .\",OrigTable!C1133))","v":""},{"$f":"IF(OrigTable!C1133=\"\",\"\",ScriptText!$E$1&CHAR(10)&ScriptText!$C$1)","v":""},{"$f":"IF(OrigTable!D1133=\"\",\"\",ScriptText!$B$1&CHAR(10)&ScriptText!$D$1)","v":""},{"$f":"IF(OrigTable!D1133=\"\",\"\",TEXT(OrigTable!D1133,\"00\"))","v":""},{"$f":"IF(OrigTable!D1133=\"\",\"\",ScriptText!$E$1&CHAR(10)&ScriptText!$C$1)","v":""},{"$f":"IF(OrigTable!E1133=\"\",\"\",ScriptText!$B$1&CHAR(10)&ScriptText!$D$1)","v":""},{"$f":"IF(OrigTable!E1133=\"\",\"\",TEXT(OrigTable!E1133,\"00\"))","v":""},{"$f":"IF(OrigTable!E1133=\"\",\"\",ScriptText!$E$1&CHAR(10)&ScriptText!$C$1)","v":""},{"$f":"IF(OrigTable!F1133=\"\",\"\",ScriptText!$B$1&CHAR(10)&ScriptText!$D$1)","v":""},{"$f":"IF(OrigTable!F1133=\"\",\"\",TEXT(OrigTable!F1133,\"00\"))","v":""},{"$f":"IF(OrigTable!F1133=\"\",\"\",ScriptText!$E$1&CHAR(10)&ScriptText!$C$1)","v":""},{"$f":"IF(OrigTable!G1133=\"\",\"\",ScriptText!$B$1&CHAR(10)&ScriptText!$D$1)","v":""},{"$f":"IF(OrigTable!G1133=\"\",\"\",TEXT(OrigTable!G1133,\"00\"))","v":""},{"$f":"IF(OrigTable!G1133=\"\",\"\",ScriptText!$E$1&CHAR(10)&ScriptText!$C$1)","v":""},0]
["\n\n\n",{"$f":"IF(OrigTable!A1134=\"\",\"\",ScriptText!$B$1&CHAR(10)&ScriptText!$D$1)","v":""},{"$f":"IF(OrigTable!A1134=\"\",\"\",TEXT(OrigTable!A1134,\"00\"))","v":""},{"$f":"IF(OrigTable!A1134=\"\",\"\",ScriptText!$E$1&CHAR(10)&ScriptText!$C$1)","v":""},{"$f":"IF(OrigTable!B1134=\"\",\"\",ScriptText!$B$1&CHAR(10)&ScriptText!$D$1)","v":""},{"$f":"IF(OrigTable!B1134=\"\",\"\",TEXT(OrigTable!B1134,\"00\"))","v":""},{"$f":"IF(OrigTable!B1134=\"\",\"\",ScriptText!$E$1&CHAR(10)&ScriptText!C1129)","v":""},{"$f":"IF(OrigTable!C1134=\"\",\"\",ScriptText!$B$1&CHAR(10)&ScriptText!$D$1)","v":""},{"$f":"IF(OrigTable!C1134=\"\",\"\",IF(LEN(OrigTable!C1134)>255,LEFT(OrigTable!C1134,250)&\". . .\",OrigTable!C1134))","v":""},{"$f":"IF(OrigTable!C1134=\"\",\"\",ScriptText!$E$1&CHAR(10)&ScriptText!$C$1)","v":""},{"$f":"IF(OrigTable!D1134=\"\",\"\",ScriptText!$B$1&CHAR(10)&ScriptText!$D$1)","v":""},{"$f":"IF(OrigTable!D1134=\"\",\"\",TEXT(OrigTable!D1134,\"00\"))","v":""},{"$f":"IF(OrigTable!D1134=\"\",\"\",ScriptText!$E$1&CHAR(10)&ScriptText!$C$1)","v":""},{"$f":"IF(OrigTable!E1134=\"\",\"\",ScriptText!$B$1&CHAR(10)&ScriptText!$D$1)","v":""},{"$f":"IF(OrigTable!E1134=\"\",\"\",TEXT(OrigTable!E1134,\"00\"))","v":""},{"$f":"IF(OrigTable!E1134=\"\",\"\",ScriptText!$E$1&CHAR(10)&ScriptText!$C$1)","v":""},{"$f":"IF(OrigTable!F1134=\"\",\"\",ScriptText!$B$1&CHAR(10)&ScriptText!$D$1)","v":""},{"$f":"IF(OrigTable!F1134=\"\",\"\",TEXT(OrigTable!F1134,\"00\"))","v":""},{"$f":"IF(OrigTable!F1134=\"\",\"\",ScriptText!$E$1&CHAR(10)&ScriptText!$C$1)","v":""},{"$f":"IF(OrigTable!G1134=\"\",\"\",ScriptText!$B$1&CHAR(10)&ScriptText!$D$1)","v":""},{"$f":"IF(OrigTable!G1134=\"\",\"\",TEXT(OrigTable!G1134,\"00\"))","v":""},{"$f":"IF(OrigTable!G1134=\"\",\"\",ScriptText!$E$1&CHAR(10)&ScriptText!$C$1)","v":""},0]
["\n\n\n",{"$f":"IF(OrigTable!A1135=\"\",\"\",ScriptText!$B$1&CHAR(10)&ScriptText!$D$1)","v":""},{"$f":"IF(OrigTable!A1135=\"\",\"\",TEXT(OrigTable!A1135,\"00\"))","v":""},{"$f":"IF(OrigTable!A1135=\"\",\"\",ScriptText!$E$1&CHAR(10)&ScriptText!$C$1)","v":""},{"$f":"IF(OrigTable!B1135=\"\",\"\",ScriptText!$B$1&CHAR(10)&ScriptText!$D$1)","v":""},{"$f":"IF(OrigTable!B1135=\"\",\"\",TEXT(OrigTable!B1135,\"00\"))","v":""},{"$f":"IF(OrigTable!B1135=\"\",\"\",ScriptText!$E$1&CHAR(10)&ScriptText!C1130)","v":""},{"$f":"IF(OrigTable!C1135=\"\",\"\",ScriptText!$B$1&CHAR(10)&ScriptText!$D$1)","v":""},{"$f":"IF(OrigTable!C1135=\"\",\"\",IF(LEN(OrigTable!C1135)>255,LEFT(OrigTable!C1135,250)&\". . .\",OrigTable!C1135))","v":""},{"$f":"IF(OrigTable!C1135=\"\",\"\",ScriptText!$E$1&CHAR(10)&ScriptText!$C$1)","v":""},{"$f":"IF(OrigTable!D1135=\"\",\"\",ScriptText!$B$1&CHAR(10)&ScriptText!$D$1)","v":""},{"$f":"IF(OrigTable!D1135=\"\",\"\",TEXT(OrigTable!D1135,\"00\"))","v":""},{"$f":"IF(OrigTable!D1135=\"\",\"\",ScriptText!$E$1&CHAR(10)&ScriptText!$C$1)","v":""},{"$f":"IF(OrigTable!E1135=\"\",\"\",ScriptText!$B$1&CHAR(10)&ScriptText!$D$1)","v":""},{"$f":"IF(OrigTable!E1135=\"\",\"\",TEXT(OrigTable!E1135,\"00\"))","v":""},{"$f":"IF(OrigTable!E1135=\"\",\"\",ScriptText!$E$1&CHAR(10)&ScriptText!$C$1)","v":""},{"$f":"IF(OrigTable!F1135=\"\",\"\",ScriptText!$B$1&CHAR(10)&ScriptText!$D$1)","v":""},{"$f":"IF(OrigTable!F1135=\"\",\"\",TEXT(OrigTable!F1135,\"00\"))","v":""},{"$f":"IF(OrigTable!F1135=\"\",\"\",ScriptText!$E$1&CHAR(10)&ScriptText!$C$1)","v":""},{"$f":"IF(OrigTable!G1135=\"\",\"\",ScriptText!$B$1&CHAR(10)&ScriptText!$D$1)","v":""},{"$f":"IF(OrigTable!G1135=\"\",\"\",TEXT(OrigTable!G1135,\"00\"))","v":""},{"$f":"IF(OrigTable!G1135=\"\",\"\",ScriptText!$E$1&CHAR(10)&ScriptText!$C$1)","v":""},0]
["\n\n\n",{"$f":"IF(OrigTable!A1136=\"\",\"\",ScriptText!$B$1&CHAR(10)&ScriptText!$D$1)","v":""},{"$f":"IF(OrigTable!A1136=\"\",\"\",TEXT(OrigTable!A1136,\"00\"))","v":""},{"$f":"IF(OrigTable!A1136=\"\",\"\",ScriptText!$E$1&CHAR(10)&ScriptText!$C$1)","v":""},{"$f":"IF(OrigTable!B1136=\"\",\"\",ScriptText!$B$1&CHAR(10)&ScriptText!$D$1)","v":""},{"$f":"IF(OrigTable!B1136=\"\",\"\",TEXT(OrigTable!B1136,\"00\"))","v":""},{"$f":"IF(OrigTable!B1136=\"\",\"\",ScriptText!$E$1&CHAR(10)&ScriptText!C1131)","v":""},{"$f":"IF(OrigTable!C1136=\"\",\"\",ScriptText!$B$1&CHAR(10)&ScriptText!$D$1)","v":""},{"$f":"IF(OrigTable!C1136=\"\",\"\",IF(LEN(OrigTable!C1136)>255,LEFT(OrigTable!C1136,250)&\". . .\",OrigTable!C1136))","v":""},{"$f":"IF(OrigTable!C1136=\"\",\"\",ScriptText!$E$1&CHAR(10)&ScriptText!$C$1)","v":""},{"$f":"IF(OrigTable!D1136=\"\",\"\",ScriptText!$B$1&CHAR(10)&ScriptText!$D$1)","v":""},{"$f":"IF(OrigTable!D1136=\"\",\"\",TEXT(OrigTable!D1136,\"00\"))","v":""},{"$f":"IF(OrigTable!D1136=\"\",\"\",ScriptText!$E$1&CHAR(10)&ScriptText!$C$1)","v":""},{"$f":"IF(OrigTable!E1136=\"\",\"\",ScriptText!$B$1&CHAR(10)&ScriptText!$D$1)","v":""},{"$f":"IF(OrigTable!E1136=\"\",\"\",TEXT(OrigTable!E1136,\"00\"))","v":""},{"$f":"IF(OrigTable!E1136=\"\",\"\",ScriptText!$E$1&CHAR(10)&ScriptText!$C$1)","v":""},{"$f":"IF(OrigTable!F1136=\"\",\"\",ScriptText!$B$1&CHAR(10)&ScriptText!$D$1)","v":""},{"$f":"IF(OrigTable!F1136=\"\",\"\",TEXT(OrigTable!F1136,\"00\"))","v":""},{"$f":"IF(OrigTable!F1136=\"\",\"\",ScriptText!$E$1&CHAR(10)&ScriptText!$C$1)","v":""},{"$f":"IF(OrigTable!G1136=\"\",\"\",ScriptText!$B$1&CHAR(10)&ScriptText!$D$1)","v":""},{"$f":"IF(OrigTable!G1136=\"\",\"\",TEXT(OrigTable!G1136,\"00\"))","v":""},{"$f":"IF(OrigTable!G1136=\"\",\"\",ScriptText!$E$1&CHAR(10)&ScriptText!$C$1)","v":""},0]
["\n\n\n",{"$f":"IF(OrigTable!A1137=\"\",\"\",ScriptText!$B$1&CHAR(10)&ScriptText!$D$1)","v":""},{"$f":"IF(OrigTable!A1137=\"\",\"\",TEXT(OrigTable!A1137,\"00\"))","v":""},{"$f":"IF(OrigTable!A1137=\"\",\"\",ScriptText!$E$1&CHAR(10)&ScriptText!$C$1)","v":""},{"$f":"IF(OrigTable!B1137=\"\",\"\",ScriptText!$B$1&CHAR(10)&ScriptText!$D$1)","v":""},{"$f":"IF(OrigTable!B1137=\"\",\"\",TEXT(OrigTable!B1137,\"00\"))","v":""},{"$f":"IF(OrigTable!B1137=\"\",\"\",ScriptText!$E$1&CHAR(10)&ScriptText!C1132)","v":""},{"$f":"IF(OrigTable!C1137=\"\",\"\",ScriptText!$B$1&CHAR(10)&ScriptText!$D$1)","v":""},{"$f":"IF(OrigTable!C1137=\"\",\"\",IF(LEN(OrigTable!C1137)>255,LEFT(OrigTable!C1137,250)&\". . .\",OrigTable!C1137))","v":""},{"$f":"IF(OrigTable!C1137=\"\",\"\",ScriptText!$E$1&CHAR(10)&ScriptText!$C$1)","v":""},{"$f":"IF(OrigTable!D1137=\"\",\"\",ScriptText!$B$1&CHAR(10)&ScriptText!$D$1)","v":""},{"$f":"IF(OrigTable!D1137=\"\",\"\",TEXT(OrigTable!D1137,\"00\"))","v":""},{"$f":"IF(OrigTable!D1137=\"\",\"\",ScriptText!$E$1&CHAR(10)&ScriptText!$C$1)","v":""},{"$f":"IF(OrigTable!E1137=\"\",\"\",ScriptText!$B$1&CHAR(10)&ScriptText!$D$1)","v":""},{"$f":"IF(OrigTable!E1137=\"\",\"\",TEXT(OrigTable!E1137,\"00\"))","v":""},{"$f":"IF(OrigTable!E1137=\"\",\"\",ScriptText!$E$1&CHAR(10)&ScriptText!$C$1)","v":""},{"$f":"IF(OrigTable!F1137=\"\",\"\",ScriptText!$B$1&CHAR(10)&ScriptText!$D$1)","v":""},{"$f":"IF(OrigTable!F1137=\"\",\"\",TEXT(OrigTable!F1137,\"00\"))","v":""},{"$f":"IF(OrigTable!F1137=\"\",\"\",ScriptText!$E$1&CHAR(10)&ScriptText!$C$1)","v":""},{"$f":"IF(OrigTable!G1137=\"\",\"\",ScriptText!$B$1&CHAR(10)&ScriptText!$D$1)","v":""},{"$f":"IF(OrigTable!G1137=\"\",\"\",TEXT(OrigTable!G1137,\"00\"))","v":""},{"$f":"IF(OrigTable!G1137=\"\",\"\",ScriptText!$E$1&CHAR(10)&ScriptText!$C$1)","v":""},0]
["\n\n\n",{"$f":"IF(OrigTable!A1138=\"\",\"\",ScriptText!$B$1&CHAR(10)&ScriptText!$D$1)","v":""},{"$f":"IF(OrigTable!A1138=\"\",\"\",TEXT(OrigTable!A1138,\"00\"))","v":""},{"$f":"IF(OrigTable!A1138=\"\",\"\",ScriptText!$E$1&CHAR(10)&ScriptText!$C$1)","v":""},{"$f":"IF(OrigTable!B1138=\"\",\"\",ScriptText!$B$1&CHAR(10)&ScriptText!$D$1)","v":""},{"$f":"IF(OrigTable!B1138=\"\",\"\",TEXT(OrigTable!B1138,\"00\"))","v":""},{"$f":"IF(OrigTable!B1138=\"\",\"\",ScriptText!$E$1&CHAR(10)&ScriptText!C1133)","v":""},{"$f":"IF(OrigTable!C1138=\"\",\"\",ScriptText!$B$1&CHAR(10)&ScriptText!$D$1)","v":""},{"$f":"IF(OrigTable!C1138=\"\",\"\",IF(LEN(OrigTable!C1138)>255,LEFT(OrigTable!C1138,250)&\". . .\",OrigTable!C1138))","v":""},{"$f":"IF(OrigTable!C1138=\"\",\"\",ScriptText!$E$1&CHAR(10)&ScriptText!$C$1)","v":""},{"$f":"IF(OrigTable!D1138=\"\",\"\",ScriptText!$B$1&CHAR(10)&ScriptText!$D$1)","v":""},{"$f":"IF(OrigTable!D1138=\"\",\"\",TEXT(OrigTable!D1138,\"00\"))","v":""},{"$f":"IF(OrigTable!D1138=\"\",\"\",ScriptText!$E$1&CHAR(10)&ScriptText!$C$1)","v":""},{"$f":"IF(OrigTable!E1138=\"\",\"\",ScriptText!$B$1&CHAR(10)&ScriptText!$D$1)","v":""},{"$f":"IF(OrigTable!E1138=\"\",\"\",TEXT(OrigTable!E1138,\"00\"))","v":""},{"$f":"IF(OrigTable!E1138=\"\",\"\",ScriptText!$E$1&CHAR(10)&ScriptText!$C$1)","v":""},{"$f":"IF(OrigTable!F1138=\"\",\"\",ScriptText!$B$1&CHAR(10)&ScriptText!$D$1)","v":""},{"$f":"IF(OrigTable!F1138=\"\",\"\",TEXT(OrigTable!F1138,\"00\"))","v":""},{"$f":"IF(OrigTable!F1138=\"\",\"\",ScriptText!$E$1&CHAR(10)&ScriptText!$C$1)","v":""},{"$f":"IF(OrigTable!G1138=\"\",\"\",ScriptText!$B$1&CHAR(10)&ScriptText!$D$1)","v":""},{"$f":"IF(OrigTable!G1138=\"\",\"\",TEXT(OrigTable!G1138,\"00\"))","v":""},{"$f":"IF(OrigTable!G1138=\"\",\"\",ScriptText!$E$1&CHAR(10)&ScriptText!$C$1)","v":""},0]
["\n\n\n",{"$f":"IF(OrigTable!A1139=\"\",\"\",ScriptText!$B$1&CHAR(10)&ScriptText!$D$1)","v":""},{"$f":"IF(OrigTable!A1139=\"\",\"\",TEXT(OrigTable!A1139,\"00\"))","v":""},{"$f":"IF(OrigTable!A1139=\"\",\"\",ScriptText!$E$1&CHAR(10)&ScriptText!$C$1)","v":""},{"$f":"IF(OrigTable!B1139=\"\",\"\",ScriptText!$B$1&CHAR(10)&ScriptText!$D$1)","v":""},{"$f":"IF(OrigTable!B1139=\"\",\"\",TEXT(OrigTable!B1139,\"00\"))","v":""},{"$f":"IF(OrigTable!B1139=\"\",\"\",ScriptText!$E$1&CHAR(10)&ScriptText!C1134)","v":""},{"$f":"IF(OrigTable!C1139=\"\",\"\",ScriptText!$B$1&CHAR(10)&ScriptText!$D$1)","v":""},{"$f":"IF(OrigTable!C1139=\"\",\"\",IF(LEN(OrigTable!C1139)>255,LEFT(OrigTable!C1139,250)&\". . .\",OrigTable!C1139))","v":""},{"$f":"IF(OrigTable!C1139=\"\",\"\",ScriptText!$E$1&CHAR(10)&ScriptText!$C$1)","v":""},{"$f":"IF(OrigTable!D1139=\"\",\"\",ScriptText!$B$1&CHAR(10)&ScriptText!$D$1)","v":""},{"$f":"IF(OrigTable!D1139=\"\",\"\",TEXT(OrigTable!D1139,\"00\"))","v":""},{"$f":"IF(OrigTable!D1139=\"\",\"\",ScriptText!$E$1&CHAR(10)&ScriptText!$C$1)","v":""},{"$f":"IF(OrigTable!E1139=\"\",\"\",ScriptText!$B$1&CHAR(10)&ScriptText!$D$1)","v":""},{"$f":"IF(OrigTable!E1139=\"\",\"\",TEXT(OrigTable!E1139,\"00\"))","v":""},{"$f":"IF(OrigTable!E1139=\"\",\"\",ScriptText!$E$1&CHAR(10)&ScriptText!$C$1)","v":""},{"$f":"IF(OrigTable!F1139=\"\",\"\",ScriptText!$B$1&CHAR(10)&ScriptText!$D$1)","v":""},{"$f":"IF(OrigTable!F1139=\"\",\"\",TEXT(OrigTable!F1139,\"00\"))","v":""},{"$f":"IF(OrigTable!F1139=\"\",\"\",ScriptText!$E$1&CHAR(10)&ScriptText!$C$1)","v":""},{"$f":"IF(OrigTable!G1139=\"\",\"\",ScriptText!$B$1&CHAR(10)&ScriptText!$D$1)","v":""},{"$f":"IF(OrigTable!G1139=\"\",\"\",TEXT(OrigTable!G1139,\"00\"))","v":""},{"$f":"IF(OrigTable!G1139=\"\",\"\",ScriptText!$E$1&CHAR(10)&ScriptText!$C$1)","v":""},0]
["\n\n\n",{"$f":"IF(OrigTable!A1140=\"\",\"\",ScriptText!$B$1&CHAR(10)&ScriptText!$D$1)","v":""},{"$f":"IF(OrigTable!A1140=\"\",\"\",TEXT(OrigTable!A1140,\"00\"))","v":""},{"$f":"IF(OrigTable!A1140=\"\",\"\",ScriptText!$E$1&CHAR(10)&ScriptText!$C$1)","v":""},{"$f":"IF(OrigTable!B1140=\"\",\"\",ScriptText!$B$1&CHAR(10)&ScriptText!$D$1)","v":""},{"$f":"IF(OrigTable!B1140=\"\",\"\",TEXT(OrigTable!B1140,\"00\"))","v":""},{"$f":"IF(OrigTable!B1140=\"\",\"\",ScriptText!$E$1&CHAR(10)&ScriptText!C1135)","v":""},{"$f":"IF(OrigTable!C1140=\"\",\"\",ScriptText!$B$1&CHAR(10)&ScriptText!$D$1)","v":""},{"$f":"IF(OrigTable!C1140=\"\",\"\",IF(LEN(OrigTable!C1140)>255,LEFT(OrigTable!C1140,250)&\". . .\",OrigTable!C1140))","v":""},{"$f":"IF(OrigTable!C1140=\"\",\"\",ScriptText!$E$1&CHAR(10)&ScriptText!$C$1)","v":""},{"$f":"IF(OrigTable!D1140=\"\",\"\",ScriptText!$B$1&CHAR(10)&ScriptText!$D$1)","v":""},{"$f":"IF(OrigTable!D1140=\"\",\"\",TEXT(OrigTable!D1140,\"00\"))","v":""},{"$f":"IF(OrigTable!D1140=\"\",\"\",ScriptText!$E$1&CHAR(10)&ScriptText!$C$1)","v":""},{"$f":"IF(OrigTable!E1140=\"\",\"\",ScriptText!$B$1&CHAR(10)&ScriptText!$D$1)","v":""},{"$f":"IF(OrigTable!E1140=\"\",\"\",TEXT(OrigTable!E1140,\"00\"))","v":""},{"$f":"IF(OrigTable!E1140=\"\",\"\",ScriptText!$E$1&CHAR(10)&ScriptText!$C$1)","v":""},{"$f":"IF(OrigTable!F1140=\"\",\"\",ScriptText!$B$1&CHAR(10)&ScriptText!$D$1)","v":""},{"$f":"IF(OrigTable!F1140=\"\",\"\",TEXT(OrigTable!F1140,\"00\"))","v":""},{"$f":"IF(OrigTable!F1140=\"\",\"\",ScriptText!$E$1&CHAR(10)&ScriptText!$C$1)","v":""},{"$f":"IF(OrigTable!G1140=\"\",\"\",ScriptText!$B$1&CHAR(10)&ScriptText!$D$1)","v":""},{"$f":"IF(OrigTable!G1140=\"\",\"\",TEXT(OrigTable!G1140,\"00\"))","v":""},{"$f":"IF(OrigTable!G1140=\"\",\"\",ScriptText!$E$1&CHAR(10)&ScriptText!$C$1)","v":""},0]
["\n\n\n",{"$f":"IF(OrigTable!A1141=\"\",\"\",ScriptText!$B$1&CHAR(10)&ScriptText!$D$1)","v":""},{"$f":"IF(OrigTable!A1141=\"\",\"\",TEXT(OrigTable!A1141,\"00\"))","v":""},{"$f":"IF(OrigTable!A1141=\"\",\"\",ScriptText!$E$1&CHAR(10)&ScriptText!$C$1)","v":""},{"$f":"IF(OrigTable!B1141=\"\",\"\",ScriptText!$B$1&CHAR(10)&ScriptText!$D$1)","v":""},{"$f":"IF(OrigTable!B1141=\"\",\"\",TEXT(OrigTable!B1141,\"00\"))","v":""},{"$f":"IF(OrigTable!B1141=\"\",\"\",ScriptText!$E$1&CHAR(10)&ScriptText!C1136)","v":""},{"$f":"IF(OrigTable!C1141=\"\",\"\",ScriptText!$B$1&CHAR(10)&ScriptText!$D$1)","v":""},{"$f":"IF(OrigTable!C1141=\"\",\"\",IF(LEN(OrigTable!C1141)>255,LEFT(OrigTable!C1141,250)&\". . .\",OrigTable!C1141))","v":""},{"$f":"IF(OrigTable!C1141=\"\",\"\",ScriptText!$E$1&CHAR(10)&ScriptText!$C$1)","v":""},{"$f":"IF(OrigTable!D1141=\"\",\"\",ScriptText!$B$1&CHAR(10)&ScriptText!$D$1)","v":""},{"$f":"IF(OrigTable!D1141=\"\",\"\",TEXT(OrigTable!D1141,\"00\"))","v":""},{"$f":"IF(OrigTable!D1141=\"\",\"\",ScriptText!$E$1&CHAR(10)&ScriptText!$C$1)","v":""},{"$f":"IF(OrigTable!E1141=\"\",\"\",ScriptText!$B$1&CHAR(10)&ScriptText!$D$1)","v":""},{"$f":"IF(OrigTable!E1141=\"\",\"\",TEXT(OrigTable!E1141,\"00\"))","v":""},{"$f":"IF(OrigTable!E1141=\"\",\"\",ScriptText!$E$1&CHAR(10)&ScriptText!$C$1)","v":""},{"$f":"IF(OrigTable!F1141=\"\",\"\",ScriptText!$B$1&CHAR(10)&ScriptText!$D$1)","v":""},{"$f":"IF(OrigTable!F1141=\"\",\"\",TEXT(OrigTable!F1141,\"00\"))","v":""},{"$f":"IF(OrigTable!F1141=\"\",\"\",ScriptText!$E$1&CHAR(10)&ScriptText!$C$1)","v":""},{"$f":"IF(OrigTable!G1141=\"\",\"\",ScriptText!$B$1&CHAR(10)&ScriptText!$D$1)","v":""},{"$f":"IF(OrigTable!G1141=\"\",\"\",TEXT(OrigTable!G1141,\"00\"))","v":""},{"$f":"IF(OrigTable!G1141=\"\",\"\",ScriptText!$E$1&CHAR(10)&ScriptText!$C$1)","v":""},0]
["\n\n\n",{"$f":"IF(OrigTable!A1142=\"\",\"\",ScriptText!$B$1&CHAR(10)&ScriptText!$D$1)","v":""},{"$f":"IF(OrigTable!A1142=\"\",\"\",TEXT(OrigTable!A1142,\"00\"))","v":""},{"$f":"IF(OrigTable!A1142=\"\",\"\",ScriptText!$E$1&CHAR(10)&ScriptText!$C$1)","v":""},{"$f":"IF(OrigTable!B1142=\"\",\"\",ScriptText!$B$1&CHAR(10)&ScriptText!$D$1)","v":""},{"$f":"IF(OrigTable!B1142=\"\",\"\",TEXT(OrigTable!B1142,\"00\"))","v":""},{"$f":"IF(OrigTable!B1142=\"\",\"\",ScriptText!$E$1&CHAR(10)&ScriptText!C1137)","v":""},{"$f":"IF(OrigTable!C1142=\"\",\"\",ScriptText!$B$1&CHAR(10)&ScriptText!$D$1)","v":""},{"$f":"IF(OrigTable!C1142=\"\",\"\",IF(LEN(OrigTable!C1142)>255,LEFT(OrigTable!C1142,250)&\". . .\",OrigTable!C1142))","v":""},{"$f":"IF(OrigTable!C1142=\"\",\"\",ScriptText!$E$1&CHAR(10)&ScriptText!$C$1)","v":""},{"$f":"IF(OrigTable!D1142=\"\",\"\",ScriptText!$B$1&CHAR(10)&ScriptText!$D$1)","v":""},{"$f":"IF(OrigTable!D1142=\"\",\"\",TEXT(OrigTable!D1142,\"00\"))","v":""},{"$f":"IF(OrigTable!D1142=\"\",\"\",ScriptText!$E$1&CHAR(10)&ScriptText!$C$1)","v":""},{"$f":"IF(OrigTable!E1142=\"\",\"\",ScriptText!$B$1&CHAR(10)&ScriptText!$D$1)","v":""},{"$f":"IF(OrigTable!E1142=\"\",\"\",TEXT(OrigTable!E1142,\"00\"))","v":""},{"$f":"IF(OrigTable!E1142=\"\",\"\",ScriptText!$E$1&CHAR(10)&ScriptText!$C$1)","v":""},{"$f":"IF(OrigTable!F1142=\"\",\"\",ScriptText!$B$1&CHAR(10)&ScriptText!$D$1)","v":""},{"$f":"IF(OrigTable!F1142=\"\",\"\",TEXT(OrigTable!F1142,\"00\"))","v":""},{"$f":"IF(OrigTable!F1142=\"\",\"\",ScriptText!$E$1&CHAR(10)&ScriptText!$C$1)","v":""},{"$f":"IF(OrigTable!G1142=\"\",\"\",ScriptText!$B$1&CHAR(10)&ScriptText!$D$1)","v":""},{"$f":"IF(OrigTable!G1142=\"\",\"\",TEXT(OrigTable!G1142,\"00\"))","v":""},{"$f":"IF(OrigTable!G1142=\"\",\"\",ScriptText!$E$1&CHAR(10)&ScriptText!$C$1)","v":""},0]
["\n\n\n",{"$f":"IF(OrigTable!A1143=\"\",\"\",ScriptText!$B$1&CHAR(10)&ScriptText!$D$1)","v":""},{"$f":"IF(OrigTable!A1143=\"\",\"\",TEXT(OrigTable!A1143,\"00\"))","v":""},{"$f":"IF(OrigTable!A1143=\"\",\"\",ScriptText!$E$1&CHAR(10)&ScriptText!$C$1)","v":""},{"$f":"IF(OrigTable!B1143=\"\",\"\",ScriptText!$B$1&CHAR(10)&ScriptText!$D$1)","v":""},{"$f":"IF(OrigTable!B1143=\"\",\"\",TEXT(OrigTable!B1143,\"00\"))","v":""},{"$f":"IF(OrigTable!B1143=\"\",\"\",ScriptText!$E$1&CHAR(10)&ScriptText!C1138)","v":""},{"$f":"IF(OrigTable!C1143=\"\",\"\",ScriptText!$B$1&CHAR(10)&ScriptText!$D$1)","v":""},{"$f":"IF(OrigTable!C1143=\"\",\"\",IF(LEN(OrigTable!C1143)>255,LEFT(OrigTable!C1143,250)&\". . .\",OrigTable!C1143))","v":""},{"$f":"IF(OrigTable!C1143=\"\",\"\",ScriptText!$E$1&CHAR(10)&ScriptText!$C$1)","v":""},{"$f":"IF(OrigTable!D1143=\"\",\"\",ScriptText!$B$1&CHAR(10)&ScriptText!$D$1)","v":""},{"$f":"IF(OrigTable!D1143=\"\",\"\",TEXT(OrigTable!D1143,\"00\"))","v":""},{"$f":"IF(OrigTable!D1143=\"\",\"\",ScriptText!$E$1&CHAR(10)&ScriptText!$C$1)","v":""},{"$f":"IF(OrigTable!E1143=\"\",\"\",ScriptText!$B$1&CHAR(10)&ScriptText!$D$1)","v":""},{"$f":"IF(OrigTable!E1143=\"\",\"\",TEXT(OrigTable!E1143,\"00\"))","v":""},{"$f":"IF(OrigTable!E1143=\"\",\"\",ScriptText!$E$1&CHAR(10)&ScriptText!$C$1)","v":""},{"$f":"IF(OrigTable!F1143=\"\",\"\",ScriptText!$B$1&CHAR(10)&ScriptText!$D$1)","v":""},{"$f":"IF(OrigTable!F1143=\"\",\"\",TEXT(OrigTable!F1143,\"00\"))","v":""},{"$f":"IF(OrigTable!F1143=\"\",\"\",ScriptText!$E$1&CHAR(10)&ScriptText!$C$1)","v":""},{"$f":"IF(OrigTable!G1143=\"\",\"\",ScriptText!$B$1&CHAR(10)&ScriptText!$D$1)","v":""},{"$f":"IF(OrigTable!G1143=\"\",\"\",TEXT(OrigTable!G1143,\"00\"))","v":""},{"$f":"IF(OrigTable!G1143=\"\",\"\",ScriptText!$E$1&CHAR(10)&ScriptText!$C$1)","v":""},0]
["\n\n\n",{"$f":"IF(OrigTable!A1144=\"\",\"\",ScriptText!$B$1&CHAR(10)&ScriptText!$D$1)","v":""},{"$f":"IF(OrigTable!A1144=\"\",\"\",TEXT(OrigTable!A1144,\"00\"))","v":""},{"$f":"IF(OrigTable!A1144=\"\",\"\",ScriptText!$E$1&CHAR(10)&ScriptText!$C$1)","v":""},{"$f":"IF(OrigTable!B1144=\"\",\"\",ScriptText!$B$1&CHAR(10)&ScriptText!$D$1)","v":""},{"$f":"IF(OrigTable!B1144=\"\",\"\",TEXT(OrigTable!B1144,\"00\"))","v":""},{"$f":"IF(OrigTable!B1144=\"\",\"\",ScriptText!$E$1&CHAR(10)&ScriptText!C1139)","v":""},{"$f":"IF(OrigTable!C1144=\"\",\"\",ScriptText!$B$1&CHAR(10)&ScriptText!$D$1)","v":""},{"$f":"IF(OrigTable!C1144=\"\",\"\",IF(LEN(OrigTable!C1144)>255,LEFT(OrigTable!C1144,250)&\". . .\",OrigTable!C1144))","v":""},{"$f":"IF(OrigTable!C1144=\"\",\"\",ScriptText!$E$1&CHAR(10)&ScriptText!$C$1)","v":""},{"$f":"IF(OrigTable!D1144=\"\",\"\",ScriptText!$B$1&CHAR(10)&ScriptText!$D$1)","v":""},{"$f":"IF(OrigTable!D1144=\"\",\"\",TEXT(OrigTable!D1144,\"00\"))","v":""},{"$f":"IF(OrigTable!D1144=\"\",\"\",ScriptText!$E$1&CHAR(10)&ScriptText!$C$1)","v":""},{"$f":"IF(OrigTable!E1144=\"\",\"\",ScriptText!$B$1&CHAR(10)&ScriptText!$D$1)","v":""},{"$f":"IF(OrigTable!E1144=\"\",\"\",TEXT(OrigTable!E1144,\"00\"))","v":""},{"$f":"IF(OrigTable!E1144=\"\",\"\",ScriptText!$E$1&CHAR(10)&ScriptText!$C$1)","v":""},{"$f":"IF(OrigTable!F1144=\"\",\"\",ScriptText!$B$1&CHAR(10)&ScriptText!$D$1)","v":""},{"$f":"IF(OrigTable!F1144=\"\",\"\",TEXT(OrigTable!F1144,\"00\"))","v":""},{"$f":"IF(OrigTable!F1144=\"\",\"\",ScriptText!$E$1&CHAR(10)&ScriptText!$C$1)","v":""},{"$f":"IF(OrigTable!G1144=\"\",\"\",ScriptText!$B$1&CHAR(10)&ScriptText!$D$1)","v":""},{"$f":"IF(OrigTable!G1144=\"\",\"\",TEXT(OrigTable!G1144,\"00\"))","v":""},{"$f":"IF(OrigTable!G1144=\"\",\"\",ScriptText!$E$1&CHAR(10)&ScriptText!$C$1)","v":""},0]
["\n\n\n",{"$f":"IF(OrigTable!A1145=\"\",\"\",ScriptText!$B$1&CHAR(10)&ScriptText!$D$1)","v":""},{"$f":"IF(OrigTable!A1145=\"\",\"\",TEXT(OrigTable!A1145,\"00\"))","v":""},{"$f":"IF(OrigTable!A1145=\"\",\"\",ScriptText!$E$1&CHAR(10)&ScriptText!$C$1)","v":""},{"$f":"IF(OrigTable!B1145=\"\",\"\",ScriptText!$B$1&CHAR(10)&ScriptText!$D$1)","v":""},{"$f":"IF(OrigTable!B1145=\"\",\"\",TEXT(OrigTable!B1145,\"00\"))","v":""},{"$f":"IF(OrigTable!B1145=\"\",\"\",ScriptText!$E$1&CHAR(10)&ScriptText!C1140)","v":""},{"$f":"IF(OrigTable!C1145=\"\",\"\",ScriptText!$B$1&CHAR(10)&ScriptText!$D$1)","v":""},{"$f":"IF(OrigTable!C1145=\"\",\"\",IF(LEN(OrigTable!C1145)>255,LEFT(OrigTable!C1145,250)&\". . .\",OrigTable!C1145))","v":""},{"$f":"IF(OrigTable!C1145=\"\",\"\",ScriptText!$E$1&CHAR(10)&ScriptText!$C$1)","v":""},{"$f":"IF(OrigTable!D1145=\"\",\"\",ScriptText!$B$1&CHAR(10)&ScriptText!$D$1)","v":""},{"$f":"IF(OrigTable!D1145=\"\",\"\",TEXT(OrigTable!D1145,\"00\"))","v":""},{"$f":"IF(OrigTable!D1145=\"\",\"\",ScriptText!$E$1&CHAR(10)&ScriptText!$C$1)","v":""},{"$f":"IF(OrigTable!E1145=\"\",\"\",ScriptText!$B$1&CHAR(10)&ScriptText!$D$1)","v":""},{"$f":"IF(OrigTable!E1145=\"\",\"\",TEXT(OrigTable!E1145,\"00\"))","v":""},{"$f":"IF(OrigTable!E1145=\"\",\"\",ScriptText!$E$1&CHAR(10)&ScriptText!$C$1)","v":""},{"$f":"IF(OrigTable!F1145=\"\",\"\",ScriptText!$B$1&CHAR(10)&ScriptText!$D$1)","v":""},{"$f":"IF(OrigTable!F1145=\"\",\"\",TEXT(OrigTable!F1145,\"00\"))","v":""},{"$f":"IF(OrigTable!F1145=\"\",\"\",ScriptText!$E$1&CHAR(10)&ScriptText!$C$1)","v":""},{"$f":"IF(OrigTable!G1145=\"\",\"\",ScriptText!$B$1&CHAR(10)&ScriptText!$D$1)","v":""},{"$f":"IF(OrigTable!G1145=\"\",\"\",TEXT(OrigTable!G1145,\"00\"))","v":""},{"$f":"IF(OrigTable!G1145=\"\",\"\",ScriptText!$E$1&CHAR(10)&ScriptText!$C$1)","v":""},0]
["\n\n\n",{"$f":"IF(OrigTable!A1146=\"\",\"\",ScriptText!$B$1&CHAR(10)&ScriptText!$D$1)","v":""},{"$f":"IF(OrigTable!A1146=\"\",\"\",TEXT(OrigTable!A1146,\"00\"))","v":""},{"$f":"IF(OrigTable!A1146=\"\",\"\",ScriptText!$E$1&CHAR(10)&ScriptText!$C$1)","v":""},{"$f":"IF(OrigTable!B1146=\"\",\"\",ScriptText!$B$1&CHAR(10)&ScriptText!$D$1)","v":""},{"$f":"IF(OrigTable!B1146=\"\",\"\",TEXT(OrigTable!B1146,\"00\"))","v":""},{"$f":"IF(OrigTable!B1146=\"\",\"\",ScriptText!$E$1&CHAR(10)&ScriptText!C1141)","v":""},{"$f":"IF(OrigTable!C1146=\"\",\"\",ScriptText!$B$1&CHAR(10)&ScriptText!$D$1)","v":""},{"$f":"IF(OrigTable!C1146=\"\",\"\",IF(LEN(OrigTable!C1146)>255,LEFT(OrigTable!C1146,250)&\". . .\",OrigTable!C1146))","v":""},{"$f":"IF(OrigTable!C1146=\"\",\"\",ScriptText!$E$1&CHAR(10)&ScriptText!$C$1)","v":""},{"$f":"IF(OrigTable!D1146=\"\",\"\",ScriptText!$B$1&CHAR(10)&ScriptText!$D$1)","v":""},{"$f":"IF(OrigTable!D1146=\"\",\"\",TEXT(OrigTable!D1146,\"00\"))","v":""},{"$f":"IF(OrigTable!D1146=\"\",\"\",ScriptText!$E$1&CHAR(10)&ScriptText!$C$1)","v":""},{"$f":"IF(OrigTable!E1146=\"\",\"\",ScriptText!$B$1&CHAR(10)&ScriptText!$D$1)","v":""},{"$f":"IF(OrigTable!E1146=\"\",\"\",TEXT(OrigTable!E1146,\"00\"))","v":""},{"$f":"IF(OrigTable!E1146=\"\",\"\",ScriptText!$E$1&CHAR(10)&ScriptText!$C$1)","v":""},{"$f":"IF(OrigTable!F1146=\"\",\"\",ScriptText!$B$1&CHAR(10)&ScriptText!$D$1)","v":""},{"$f":"IF(OrigTable!F1146=\"\",\"\",TEXT(OrigTable!F1146,\"00\"))","v":""},{"$f":"IF(OrigTable!F1146=\"\",\"\",ScriptText!$E$1&CHAR(10)&ScriptText!$C$1)","v":""},{"$f":"IF(OrigTable!G1146=\"\",\"\",ScriptText!$B$1&CHAR(10)&ScriptText!$D$1)","v":""},{"$f":"IF(OrigTable!G1146=\"\",\"\",TEXT(OrigTable!G1146,\"00\"))","v":""},{"$f":"IF(OrigTable!G1146=\"\",\"\",ScriptText!$E$1&CHAR(10)&ScriptText!$C$1)","v":""},0]
["\n\n\n",{"$f":"IF(OrigTable!A1147=\"\",\"\",ScriptText!$B$1&CHAR(10)&ScriptText!$D$1)","v":""},{"$f":"IF(OrigTable!A1147=\"\",\"\",TEXT(OrigTable!A1147,\"00\"))","v":""},{"$f":"IF(OrigTable!A1147=\"\",\"\",ScriptText!$E$1&CHAR(10)&ScriptText!$C$1)","v":""},{"$f":"IF(OrigTable!B1147=\"\",\"\",ScriptText!$B$1&CHAR(10)&ScriptText!$D$1)","v":""},{"$f":"IF(OrigTable!B1147=\"\",\"\",TEXT(OrigTable!B1147,\"00\"))","v":""},{"$f":"IF(OrigTable!B1147=\"\",\"\",ScriptText!$E$1&CHAR(10)&ScriptText!C1142)","v":""},{"$f":"IF(OrigTable!C1147=\"\",\"\",ScriptText!$B$1&CHAR(10)&ScriptText!$D$1)","v":""},{"$f":"IF(OrigTable!C1147=\"\",\"\",IF(LEN(OrigTable!C1147)>255,LEFT(OrigTable!C1147,250)&\". . .\",OrigTable!C1147))","v":""},{"$f":"IF(OrigTable!C1147=\"\",\"\",ScriptText!$E$1&CHAR(10)&ScriptText!$C$1)","v":""},{"$f":"IF(OrigTable!D1147=\"\",\"\",ScriptText!$B$1&CHAR(10)&ScriptText!$D$1)","v":""},{"$f":"IF(OrigTable!D1147=\"\",\"\",TEXT(OrigTable!D1147,\"00\"))","v":""},{"$f":"IF(OrigTable!D1147=\"\",\"\",ScriptText!$E$1&CHAR(10)&ScriptText!$C$1)","v":""},{"$f":"IF(OrigTable!E1147=\"\",\"\",ScriptText!$B$1&CHAR(10)&ScriptText!$D$1)","v":""},{"$f":"IF(OrigTable!E1147=\"\",\"\",TEXT(OrigTable!E1147,\"00\"))","v":""},{"$f":"IF(OrigTable!E1147=\"\",\"\",ScriptText!$E$1&CHAR(10)&ScriptText!$C$1)","v":""},{"$f":"IF(OrigTable!F1147=\"\",\"\",ScriptText!$B$1&CHAR(10)&ScriptText!$D$1)","v":""},{"$f":"IF(OrigTable!F1147=\"\",\"\",TEXT(OrigTable!F1147,\"00\"))","v":""},{"$f":"IF(OrigTable!F1147=\"\",\"\",ScriptText!$E$1&CHAR(10)&ScriptText!$C$1)","v":""},{"$f":"IF(OrigTable!G1147=\"\",\"\",ScriptText!$B$1&CHAR(10)&ScriptText!$D$1)","v":""},{"$f":"IF(OrigTable!G1147=\"\",\"\",TEXT(OrigTable!G1147,\"00\"))","v":""},{"$f":"IF(OrigTable!G1147=\"\",\"\",ScriptText!$E$1&CHAR(10)&ScriptText!$C$1)","v":""},0]
["\n\n\n",{"$f":"IF(OrigTable!A1148=\"\",\"\",ScriptText!$B$1&CHAR(10)&ScriptText!$D$1)","v":""},{"$f":"IF(OrigTable!A1148=\"\",\"\",TEXT(OrigTable!A1148,\"00\"))","v":""},{"$f":"IF(OrigTable!A1148=\"\",\"\",ScriptText!$E$1&CHAR(10)&ScriptText!$C$1)","v":""},{"$f":"IF(OrigTable!B1148=\"\",\"\",ScriptText!$B$1&CHAR(10)&ScriptText!$D$1)","v":""},{"$f":"IF(OrigTable!B1148=\"\",\"\",TEXT(OrigTable!B1148,\"00\"))","v":""},{"$f":"IF(OrigTable!B1148=\"\",\"\",ScriptText!$E$1&CHAR(10)&ScriptText!C1143)","v":""},{"$f":"IF(OrigTable!C1148=\"\",\"\",ScriptText!$B$1&CHAR(10)&ScriptText!$D$1)","v":""},{"$f":"IF(OrigTable!C1148=\"\",\"\",IF(LEN(OrigTable!C1148)>255,LEFT(OrigTable!C1148,250)&\". . .\",OrigTable!C1148))","v":""},{"$f":"IF(OrigTable!C1148=\"\",\"\",ScriptText!$E$1&CHAR(10)&ScriptText!$C$1)","v":""},{"$f":"IF(OrigTable!D1148=\"\",\"\",ScriptText!$B$1&CHAR(10)&ScriptText!$D$1)","v":""},{"$f":"IF(OrigTable!D1148=\"\",\"\",TEXT(OrigTable!D1148,\"00\"))","v":""},{"$f":"IF(OrigTable!D1148=\"\",\"\",ScriptText!$E$1&CHAR(10)&ScriptText!$C$1)","v":""},{"$f":"IF(OrigTable!E1148=\"\",\"\",ScriptText!$B$1&CHAR(10)&ScriptText!$D$1)","v":""},{"$f":"IF(OrigTable!E1148=\"\",\"\",TEXT(OrigTable!E1148,\"00\"))","v":""},{"$f":"IF(OrigTable!E1148=\"\",\"\",ScriptText!$E$1&CHAR(10)&ScriptText!$C$1)","v":""},{"$f":"IF(OrigTable!F1148=\"\",\"\",ScriptText!$B$1&CHAR(10)&ScriptText!$D$1)","v":""},{"$f":"IF(OrigTable!F1148=\"\",\"\",TEXT(OrigTable!F1148,\"00\"))","v":""},{"$f":"IF(OrigTable!F1148=\"\",\"\",ScriptText!$E$1&CHAR(10)&ScriptText!$C$1)","v":""},{"$f":"IF(OrigTable!G1148=\"\",\"\",ScriptText!$B$1&CHAR(10)&ScriptText!$D$1)","v":""},{"$f":"IF(OrigTable!G1148=\"\",\"\",TEXT(OrigTable!G1148,\"00\"))","v":""},{"$f":"IF(OrigTable!G1148=\"\",\"\",ScriptText!$E$1&CHAR(10)&ScriptText!$C$1)","v":""},0]
["\n\n\n",{"$f":"IF(OrigTable!A1149=\"\",\"\",ScriptText!$B$1&CHAR(10)&ScriptText!$D$1)","v":""},{"$f":"IF(OrigTable!A1149=\"\",\"\",TEXT(OrigTable!A1149,\"00\"))","v":""},{"$f":"IF(OrigTable!A1149=\"\",\"\",ScriptText!$E$1&CHAR(10)&ScriptText!$C$1)","v":""},{"$f":"IF(OrigTable!B1149=\"\",\"\",ScriptText!$B$1&CHAR(10)&ScriptText!$D$1)","v":""},{"$f":"IF(OrigTable!B1149=\"\",\"\",TEXT(OrigTable!B1149,\"00\"))","v":""},{"$f":"IF(OrigTable!B1149=\"\",\"\",ScriptText!$E$1&CHAR(10)&ScriptText!C1144)","v":""},{"$f":"IF(OrigTable!C1149=\"\",\"\",ScriptText!$B$1&CHAR(10)&ScriptText!$D$1)","v":""},{"$f":"IF(OrigTable!C1149=\"\",\"\",IF(LEN(OrigTable!C1149)>255,LEFT(OrigTable!C1149,250)&\". . .\",OrigTable!C1149))","v":""},{"$f":"IF(OrigTable!C1149=\"\",\"\",ScriptText!$E$1&CHAR(10)&ScriptText!$C$1)","v":""},{"$f":"IF(OrigTable!D1149=\"\",\"\",ScriptText!$B$1&CHAR(10)&ScriptText!$D$1)","v":""},{"$f":"IF(OrigTable!D1149=\"\",\"\",TEXT(OrigTable!D1149,\"00\"))","v":""},{"$f":"IF(OrigTable!D1149=\"\",\"\",ScriptText!$E$1&CHAR(10)&ScriptText!$C$1)","v":""},{"$f":"IF(OrigTable!E1149=\"\",\"\",ScriptText!$B$1&CHAR(10)&ScriptText!$D$1)","v":""},{"$f":"IF(OrigTable!E1149=\"\",\"\",TEXT(OrigTable!E1149,\"00\"))","v":""},{"$f":"IF(OrigTable!E1149=\"\",\"\",ScriptText!$E$1&CHAR(10)&ScriptText!$C$1)","v":""},{"$f":"IF(OrigTable!F1149=\"\",\"\",ScriptText!$B$1&CHAR(10)&ScriptText!$D$1)","v":""},{"$f":"IF(OrigTable!F1149=\"\",\"\",TEXT(OrigTable!F1149,\"00\"))","v":""},{"$f":"IF(OrigTable!F1149=\"\",\"\",ScriptText!$E$1&CHAR(10)&ScriptText!$C$1)","v":""},{"$f":"IF(OrigTable!G1149=\"\",\"\",ScriptText!$B$1&CHAR(10)&ScriptText!$D$1)","v":""},{"$f":"IF(OrigTable!G1149=\"\",\"\",TEXT(OrigTable!G1149,\"00\"))","v":""},{"$f":"IF(OrigTable!G1149=\"\",\"\",ScriptText!$E$1&CHAR(10)&ScriptText!$C$1)","v":""},0]
["\n\n\n",{"$f":"IF(OrigTable!A1150=\"\",\"\",ScriptText!$B$1&CHAR(10)&ScriptText!$D$1)","v":""},{"$f":"IF(OrigTable!A1150=\"\",\"\",TEXT(OrigTable!A1150,\"00\"))","v":""},{"$f":"IF(OrigTable!A1150=\"\",\"\",ScriptText!$E$1&CHAR(10)&ScriptText!$C$1)","v":""},{"$f":"IF(OrigTable!B1150=\"\",\"\",ScriptText!$B$1&CHAR(10)&ScriptText!$D$1)","v":""},{"$f":"IF(OrigTable!B1150=\"\",\"\",TEXT(OrigTable!B1150,\"00\"))","v":""},{"$f":"IF(OrigTable!B1150=\"\",\"\",ScriptText!$E$1&CHAR(10)&ScriptText!C1145)","v":""},{"$f":"IF(OrigTable!C1150=\"\",\"\",ScriptText!$B$1&CHAR(10)&ScriptText!$D$1)","v":""},{"$f":"IF(OrigTable!C1150=\"\",\"\",IF(LEN(OrigTable!C1150)>255,LEFT(OrigTable!C1150,250)&\". . .\",OrigTable!C1150))","v":""},{"$f":"IF(OrigTable!C1150=\"\",\"\",ScriptText!$E$1&CHAR(10)&ScriptText!$C$1)","v":""},{"$f":"IF(OrigTable!D1150=\"\",\"\",ScriptText!$B$1&CHAR(10)&ScriptText!$D$1)","v":""},{"$f":"IF(OrigTable!D1150=\"\",\"\",TEXT(OrigTable!D1150,\"00\"))","v":""},{"$f":"IF(OrigTable!D1150=\"\",\"\",ScriptText!$E$1&CHAR(10)&ScriptText!$C$1)","v":""},{"$f":"IF(OrigTable!E1150=\"\",\"\",ScriptText!$B$1&CHAR(10)&ScriptText!$D$1)","v":""},{"$f":"IF(OrigTable!E1150=\"\",\"\",TEXT(OrigTable!E1150,\"00\"))","v":""},{"$f":"IF(OrigTable!E1150=\"\",\"\",ScriptText!$E$1&CHAR(10)&ScriptText!$C$1)","v":""},{"$f":"IF(OrigTable!F1150=\"\",\"\",ScriptText!$B$1&CHAR(10)&ScriptText!$D$1)","v":""},{"$f":"IF(OrigTable!F1150=\"\",\"\",TEXT(OrigTable!F1150,\"00\"))","v":""},{"$f":"IF(OrigTable!F1150=\"\",\"\",ScriptText!$E$1&CHAR(10)&ScriptText!$C$1)","v":""},{"$f":"IF(OrigTable!G1150=\"\",\"\",ScriptText!$B$1&CHAR(10)&ScriptText!$D$1)","v":""},{"$f":"IF(OrigTable!G1150=\"\",\"\",TEXT(OrigTable!G1150,\"00\"))","v":""},{"$f":"IF(OrigTable!G1150=\"\",\"\",ScriptText!$E$1&CHAR(10)&ScriptText!$C$1)","v":""},0]
["\n\n\n",{"$f":"IF(OrigTable!A1151=\"\",\"\",ScriptText!$B$1&CHAR(10)&ScriptText!$D$1)","v":""},{"$f":"IF(OrigTable!A1151=\"\",\"\",TEXT(OrigTable!A1151,\"00\"))","v":""},{"$f":"IF(OrigTable!A1151=\"\",\"\",ScriptText!$E$1&CHAR(10)&ScriptText!$C$1)","v":""},{"$f":"IF(OrigTable!B1151=\"\",\"\",ScriptText!$B$1&CHAR(10)&ScriptText!$D$1)","v":""},{"$f":"IF(OrigTable!B1151=\"\",\"\",TEXT(OrigTable!B1151,\"00\"))","v":""},{"$f":"IF(OrigTable!B1151=\"\",\"\",ScriptText!$E$1&CHAR(10)&ScriptText!C1146)","v":""},{"$f":"IF(OrigTable!C1151=\"\",\"\",ScriptText!$B$1&CHAR(10)&ScriptText!$D$1)","v":""},{"$f":"IF(OrigTable!C1151=\"\",\"\",IF(LEN(OrigTable!C1151)>255,LEFT(OrigTable!C1151,250)&\". . .\",OrigTable!C1151))","v":""},{"$f":"IF(OrigTable!C1151=\"\",\"\",ScriptText!$E$1&CHAR(10)&ScriptText!$C$1)","v":""},{"$f":"IF(OrigTable!D1151=\"\",\"\",ScriptText!$B$1&CHAR(10)&ScriptText!$D$1)","v":""},{"$f":"IF(OrigTable!D1151=\"\",\"\",TEXT(OrigTable!D1151,\"00\"))","v":""},{"$f":"IF(OrigTable!D1151=\"\",\"\",ScriptText!$E$1&CHAR(10)&ScriptText!$C$1)","v":""},{"$f":"IF(OrigTable!E1151=\"\",\"\",ScriptText!$B$1&CHAR(10)&ScriptText!$D$1)","v":""},{"$f":"IF(OrigTable!E1151=\"\",\"\",TEXT(OrigTable!E1151,\"00\"))","v":""},{"$f":"IF(OrigTable!E1151=\"\",\"\",ScriptText!$E$1&CHAR(10)&ScriptText!$C$1)","v":""},{"$f":"IF(OrigTable!F1151=\"\",\"\",ScriptText!$B$1&CHAR(10)&ScriptText!$D$1)","v":""},{"$f":"IF(OrigTable!F1151=\"\",\"\",TEXT(OrigTable!F1151,\"00\"))","v":""},{"$f":"IF(OrigTable!F1151=\"\",\"\",ScriptText!$E$1&CHAR(10)&ScriptText!$C$1)","v":""},{"$f":"IF(OrigTable!G1151=\"\",\"\",ScriptText!$B$1&CHAR(10)&ScriptText!$D$1)","v":""},{"$f":"IF(OrigTable!G1151=\"\",\"\",TEXT(OrigTable!G1151,\"00\"))","v":""},{"$f":"IF(OrigTable!G1151=\"\",\"\",ScriptText!$E$1&CHAR(10)&ScriptText!$C$1)","v":""},0]
["\n\n\n",{"$f":"IF(OrigTable!A1152=\"\",\"\",ScriptText!$B$1&CHAR(10)&ScriptText!$D$1)","v":""},{"$f":"IF(OrigTable!A1152=\"\",\"\",TEXT(OrigTable!A1152,\"00\"))","v":""},{"$f":"IF(OrigTable!A1152=\"\",\"\",ScriptText!$E$1&CHAR(10)&ScriptText!$C$1)","v":""},{"$f":"IF(OrigTable!B1152=\"\",\"\",ScriptText!$B$1&CHAR(10)&ScriptText!$D$1)","v":""},{"$f":"IF(OrigTable!B1152=\"\",\"\",TEXT(OrigTable!B1152,\"00\"))","v":""},{"$f":"IF(OrigTable!B1152=\"\",\"\",ScriptText!$E$1&CHAR(10)&ScriptText!C1147)","v":""},{"$f":"IF(OrigTable!C1152=\"\",\"\",ScriptText!$B$1&CHAR(10)&ScriptText!$D$1)","v":""},{"$f":"IF(OrigTable!C1152=\"\",\"\",IF(LEN(OrigTable!C1152)>255,LEFT(OrigTable!C1152,250)&\". . .\",OrigTable!C1152))","v":""},{"$f":"IF(OrigTable!C1152=\"\",\"\",ScriptText!$E$1&CHAR(10)&ScriptText!$C$1)","v":""},{"$f":"IF(OrigTable!D1152=\"\",\"\",ScriptText!$B$1&CHAR(10)&ScriptText!$D$1)","v":""},{"$f":"IF(OrigTable!D1152=\"\",\"\",TEXT(OrigTable!D1152,\"00\"))","v":""},{"$f":"IF(OrigTable!D1152=\"\",\"\",ScriptText!$E$1&CHAR(10)&ScriptText!$C$1)","v":""},{"$f":"IF(OrigTable!E1152=\"\",\"\",ScriptText!$B$1&CHAR(10)&ScriptText!$D$1)","v":""},{"$f":"IF(OrigTable!E1152=\"\",\"\",TEXT(OrigTable!E1152,\"00\"))","v":""},{"$f":"IF(OrigTable!E1152=\"\",\"\",ScriptText!$E$1&CHAR(10)&ScriptText!$C$1)","v":""},{"$f":"IF(OrigTable!F1152=\"\",\"\",ScriptText!$B$1&CHAR(10)&ScriptText!$D$1)","v":""},{"$f":"IF(OrigTable!F1152=\"\",\"\",TEXT(OrigTable!F1152,\"00\"))","v":""},{"$f":"IF(OrigTable!F1152=\"\",\"\",ScriptText!$E$1&CHAR(10)&ScriptText!$C$1)","v":""},{"$f":"IF(OrigTable!G1152=\"\",\"\",ScriptText!$B$1&CHAR(10)&ScriptText!$D$1)","v":""},{"$f":"IF(OrigTable!G1152=\"\",\"\",TEXT(OrigTable!G1152,\"00\"))","v":""},{"$f":"IF(OrigTable!G1152=\"\",\"\",ScriptText!$E$1&CHAR(10)&ScriptText!$C$1)","v":""},0]
["\n\n\n",{"$f":"IF(OrigTable!A1153=\"\",\"\",ScriptText!$B$1&CHAR(10)&ScriptText!$D$1)","v":""},{"$f":"IF(OrigTable!A1153=\"\",\"\",TEXT(OrigTable!A1153,\"00\"))","v":""},{"$f":"IF(OrigTable!A1153=\"\",\"\",ScriptText!$E$1&CHAR(10)&ScriptText!$C$1)","v":""},{"$f":"IF(OrigTable!B1153=\"\",\"\",ScriptText!$B$1&CHAR(10)&ScriptText!$D$1)","v":""},{"$f":"IF(OrigTable!B1153=\"\",\"\",TEXT(OrigTable!B1153,\"00\"))","v":""},{"$f":"IF(OrigTable!B1153=\"\",\"\",ScriptText!$E$1&CHAR(10)&ScriptText!C1148)","v":""},{"$f":"IF(OrigTable!C1153=\"\",\"\",ScriptText!$B$1&CHAR(10)&ScriptText!$D$1)","v":""},{"$f":"IF(OrigTable!C1153=\"\",\"\",IF(LEN(OrigTable!C1153)>255,LEFT(OrigTable!C1153,250)&\". . .\",OrigTable!C1153))","v":""},{"$f":"IF(OrigTable!C1153=\"\",\"\",ScriptText!$E$1&CHAR(10)&ScriptText!$C$1)","v":""},{"$f":"IF(OrigTable!D1153=\"\",\"\",ScriptText!$B$1&CHAR(10)&ScriptText!$D$1)","v":""},{"$f":"IF(OrigTable!D1153=\"\",\"\",TEXT(OrigTable!D1153,\"00\"))","v":""},{"$f":"IF(OrigTable!D1153=\"\",\"\",ScriptText!$E$1&CHAR(10)&ScriptText!$C$1)","v":""},{"$f":"IF(OrigTable!E1153=\"\",\"\",ScriptText!$B$1&CHAR(10)&ScriptText!$D$1)","v":""},{"$f":"IF(OrigTable!E1153=\"\",\"\",TEXT(OrigTable!E1153,\"00\"))","v":""},{"$f":"IF(OrigTable!E1153=\"\",\"\",ScriptText!$E$1&CHAR(10)&ScriptText!$C$1)","v":""},{"$f":"IF(OrigTable!F1153=\"\",\"\",ScriptText!$B$1&CHAR(10)&ScriptText!$D$1)","v":""},{"$f":"IF(OrigTable!F1153=\"\",\"\",TEXT(OrigTable!F1153,\"00\"))","v":""},{"$f":"IF(OrigTable!F1153=\"\",\"\",ScriptText!$E$1&CHAR(10)&ScriptText!$C$1)","v":""},{"$f":"IF(OrigTable!G1153=\"\",\"\",ScriptText!$B$1&CHAR(10)&ScriptText!$D$1)","v":""},{"$f":"IF(OrigTable!G1153=\"\",\"\",TEXT(OrigTable!G1153,\"00\"))","v":""},{"$f":"IF(OrigTable!G1153=\"\",\"\",ScriptText!$E$1&CHAR(10)&ScriptText!$C$1)","v":""},0]
["\n\n\n",{"$f":"IF(OrigTable!A1154=\"\",\"\",ScriptText!$B$1&CHAR(10)&ScriptText!$D$1)","v":""},{"$f":"IF(OrigTable!A1154=\"\",\"\",TEXT(OrigTable!A1154,\"00\"))","v":""},{"$f":"IF(OrigTable!A1154=\"\",\"\",ScriptText!$E$1&CHAR(10)&ScriptText!$C$1)","v":""},{"$f":"IF(OrigTable!B1154=\"\",\"\",ScriptText!$B$1&CHAR(10)&ScriptText!$D$1)","v":""},{"$f":"IF(OrigTable!B1154=\"\",\"\",TEXT(OrigTable!B1154,\"00\"))","v":""},{"$f":"IF(OrigTable!B1154=\"\",\"\",ScriptText!$E$1&CHAR(10)&ScriptText!C1149)","v":""},{"$f":"IF(OrigTable!C1154=\"\",\"\",ScriptText!$B$1&CHAR(10)&ScriptText!$D$1)","v":""},{"$f":"IF(OrigTable!C1154=\"\",\"\",IF(LEN(OrigTable!C1154)>255,LEFT(OrigTable!C1154,250)&\". . .\",OrigTable!C1154))","v":""},{"$f":"IF(OrigTable!C1154=\"\",\"\",ScriptText!$E$1&CHAR(10)&ScriptText!$C$1)","v":""},{"$f":"IF(OrigTable!D1154=\"\",\"\",ScriptText!$B$1&CHAR(10)&ScriptText!$D$1)","v":""},{"$f":"IF(OrigTable!D1154=\"\",\"\",TEXT(OrigTable!D1154,\"00\"))","v":""},{"$f":"IF(OrigTable!D1154=\"\",\"\",ScriptText!$E$1&CHAR(10)&ScriptText!$C$1)","v":""},{"$f":"IF(OrigTable!E1154=\"\",\"\",ScriptText!$B$1&CHAR(10)&ScriptText!$D$1)","v":""},{"$f":"IF(OrigTable!E1154=\"\",\"\",TEXT(OrigTable!E1154,\"00\"))","v":""},{"$f":"IF(OrigTable!E1154=\"\",\"\",ScriptText!$E$1&CHAR(10)&ScriptText!$C$1)","v":""},{"$f":"IF(OrigTable!F1154=\"\",\"\",ScriptText!$B$1&CHAR(10)&ScriptText!$D$1)","v":""},{"$f":"IF(OrigTable!F1154=\"\",\"\",TEXT(OrigTable!F1154,\"00\"))","v":""},{"$f":"IF(OrigTable!F1154=\"\",\"\",ScriptText!$E$1&CHAR(10)&ScriptText!$C$1)","v":""},{"$f":"IF(OrigTable!G1154=\"\",\"\",ScriptText!$B$1&CHAR(10)&ScriptText!$D$1)","v":""},{"$f":"IF(OrigTable!G1154=\"\",\"\",TEXT(OrigTable!G1154,\"00\"))","v":""},{"$f":"IF(OrigTable!G1154=\"\",\"\",ScriptText!$E$1&CHAR(10)&ScriptText!$C$1)","v":""},0]
["\n\n\n",{"$f":"IF(OrigTable!A1155=\"\",\"\",ScriptText!$B$1&CHAR(10)&ScriptText!$D$1)","v":""},{"$f":"IF(OrigTable!A1155=\"\",\"\",TEXT(OrigTable!A1155,\"00\"))","v":""},{"$f":"IF(OrigTable!A1155=\"\",\"\",ScriptText!$E$1&CHAR(10)&ScriptText!$C$1)","v":""},{"$f":"IF(OrigTable!B1155=\"\",\"\",ScriptText!$B$1&CHAR(10)&ScriptText!$D$1)","v":""},{"$f":"IF(OrigTable!B1155=\"\",\"\",TEXT(OrigTable!B1155,\"00\"))","v":""},{"$f":"IF(OrigTable!B1155=\"\",\"\",ScriptText!$E$1&CHAR(10)&ScriptText!C1150)","v":""},{"$f":"IF(OrigTable!C1155=\"\",\"\",ScriptText!$B$1&CHAR(10)&ScriptText!$D$1)","v":""},{"$f":"IF(OrigTable!C1155=\"\",\"\",IF(LEN(OrigTable!C1155)>255,LEFT(OrigTable!C1155,250)&\". . .\",OrigTable!C1155))","v":""},{"$f":"IF(OrigTable!C1155=\"\",\"\",ScriptText!$E$1&CHAR(10)&ScriptText!$C$1)","v":""},{"$f":"IF(OrigTable!D1155=\"\",\"\",ScriptText!$B$1&CHAR(10)&ScriptText!$D$1)","v":""},{"$f":"IF(OrigTable!D1155=\"\",\"\",TEXT(OrigTable!D1155,\"00\"))","v":""},{"$f":"IF(OrigTable!D1155=\"\",\"\",ScriptText!$E$1&CHAR(10)&ScriptText!$C$1)","v":""},{"$f":"IF(OrigTable!E1155=\"\",\"\",ScriptText!$B$1&CHAR(10)&ScriptText!$D$1)","v":""},{"$f":"IF(OrigTable!E1155=\"\",\"\",TEXT(OrigTable!E1155,\"00\"))","v":""},{"$f":"IF(OrigTable!E1155=\"\",\"\",ScriptText!$E$1&CHAR(10)&ScriptText!$C$1)","v":""},{"$f":"IF(OrigTable!F1155=\"\",\"\",ScriptText!$B$1&CHAR(10)&ScriptText!$D$1)","v":""},{"$f":"IF(OrigTable!F1155=\"\",\"\",TEXT(OrigTable!F1155,\"00\"))","v":""},{"$f":"IF(OrigTable!F1155=\"\",\"\",ScriptText!$E$1&CHAR(10)&ScriptText!$C$1)","v":""},{"$f":"IF(OrigTable!G1155=\"\",\"\",ScriptText!$B$1&CHAR(10)&ScriptText!$D$1)","v":""},{"$f":"IF(OrigTable!G1155=\"\",\"\",TEXT(OrigTable!G1155,\"00\"))","v":""},{"$f":"IF(OrigTable!G1155=\"\",\"\",ScriptText!$E$1&CHAR(10)&ScriptText!$C$1)","v":""},0]
["\n\n\n",{"$f":"IF(OrigTable!A1156=\"\",\"\",ScriptText!$B$1&CHAR(10)&ScriptText!$D$1)","v":""},{"$f":"IF(OrigTable!A1156=\"\",\"\",TEXT(OrigTable!A1156,\"00\"))","v":""},{"$f":"IF(OrigTable!A1156=\"\",\"\",ScriptText!$E$1&CHAR(10)&ScriptText!$C$1)","v":""},{"$f":"IF(OrigTable!B1156=\"\",\"\",ScriptText!$B$1&CHAR(10)&ScriptText!$D$1)","v":""},{"$f":"IF(OrigTable!B1156=\"\",\"\",TEXT(OrigTable!B1156,\"00\"))","v":""},{"$f":"IF(OrigTable!B1156=\"\",\"\",ScriptText!$E$1&CHAR(10)&ScriptText!C1151)","v":""},{"$f":"IF(OrigTable!C1156=\"\",\"\",ScriptText!$B$1&CHAR(10)&ScriptText!$D$1)","v":""},{"$f":"IF(OrigTable!C1156=\"\",\"\",IF(LEN(OrigTable!C1156)>255,LEFT(OrigTable!C1156,250)&\". . .\",OrigTable!C1156))","v":""},{"$f":"IF(OrigTable!C1156=\"\",\"\",ScriptText!$E$1&CHAR(10)&ScriptText!$C$1)","v":""},{"$f":"IF(OrigTable!D1156=\"\",\"\",ScriptText!$B$1&CHAR(10)&ScriptText!$D$1)","v":""},{"$f":"IF(OrigTable!D1156=\"\",\"\",TEXT(OrigTable!D1156,\"00\"))","v":""},{"$f":"IF(OrigTable!D1156=\"\",\"\",ScriptText!$E$1&CHAR(10)&ScriptText!$C$1)","v":""},{"$f":"IF(OrigTable!E1156=\"\",\"\",ScriptText!$B$1&CHAR(10)&ScriptText!$D$1)","v":""},{"$f":"IF(OrigTable!E1156=\"\",\"\",TEXT(OrigTable!E1156,\"00\"))","v":""},{"$f":"IF(OrigTable!E1156=\"\",\"\",ScriptText!$E$1&CHAR(10)&ScriptText!$C$1)","v":""},{"$f":"IF(OrigTable!F1156=\"\",\"\",ScriptText!$B$1&CHAR(10)&ScriptText!$D$1)","v":""},{"$f":"IF(OrigTable!F1156=\"\",\"\",TEXT(OrigTable!F1156,\"00\"))","v":""},{"$f":"IF(OrigTable!F1156=\"\",\"\",ScriptText!$E$1&CHAR(10)&ScriptText!$C$1)","v":""},{"$f":"IF(OrigTable!G1156=\"\",\"\",ScriptText!$B$1&CHAR(10)&ScriptText!$D$1)","v":""},{"$f":"IF(OrigTable!G1156=\"\",\"\",TEXT(OrigTable!G1156,\"00\"))","v":""},{"$f":"IF(OrigTable!G1156=\"\",\"\",ScriptText!$E$1&CHAR(10)&ScriptText!$C$1)","v":""},0]
["\n\n\n",{"$f":"IF(OrigTable!A1157=\"\",\"\",ScriptText!$B$1&CHAR(10)&ScriptText!$D$1)","v":""},{"$f":"IF(OrigTable!A1157=\"\",\"\",TEXT(OrigTable!A1157,\"00\"))","v":""},{"$f":"IF(OrigTable!A1157=\"\",\"\",ScriptText!$E$1&CHAR(10)&ScriptText!$C$1)","v":""},{"$f":"IF(OrigTable!B1157=\"\",\"\",ScriptText!$B$1&CHAR(10)&ScriptText!$D$1)","v":""},{"$f":"IF(OrigTable!B1157=\"\",\"\",TEXT(OrigTable!B1157,\"00\"))","v":""},{"$f":"IF(OrigTable!B1157=\"\",\"\",ScriptText!$E$1&CHAR(10)&ScriptText!C1152)","v":""},{"$f":"IF(OrigTable!C1157=\"\",\"\",ScriptText!$B$1&CHAR(10)&ScriptText!$D$1)","v":""},{"$f":"IF(OrigTable!C1157=\"\",\"\",IF(LEN(OrigTable!C1157)>255,LEFT(OrigTable!C1157,250)&\". . .\",OrigTable!C1157))","v":""},{"$f":"IF(OrigTable!C1157=\"\",\"\",ScriptText!$E$1&CHAR(10)&ScriptText!$C$1)","v":""},{"$f":"IF(OrigTable!D1157=\"\",\"\",ScriptText!$B$1&CHAR(10)&ScriptText!$D$1)","v":""},{"$f":"IF(OrigTable!D1157=\"\",\"\",TEXT(OrigTable!D1157,\"00\"))","v":""},{"$f":"IF(OrigTable!D1157=\"\",\"\",ScriptText!$E$1&CHAR(10)&ScriptText!$C$1)","v":""},{"$f":"IF(OrigTable!E1157=\"\",\"\",ScriptText!$B$1&CHAR(10)&ScriptText!$D$1)","v":""},{"$f":"IF(OrigTable!E1157=\"\",\"\",TEXT(OrigTable!E1157,\"00\"))","v":""},{"$f":"IF(OrigTable!E1157=\"\",\"\",ScriptText!$E$1&CHAR(10)&ScriptText!$C$1)","v":""},{"$f":"IF(OrigTable!F1157=\"\",\"\",ScriptText!$B$1&CHAR(10)&ScriptText!$D$1)","v":""},{"$f":"IF(OrigTable!F1157=\"\",\"\",TEXT(OrigTable!F1157,\"00\"))","v":""},{"$f":"IF(OrigTable!F1157=\"\",\"\",ScriptText!$E$1&CHAR(10)&ScriptText!$C$1)","v":""},{"$f":"IF(OrigTable!G1157=\"\",\"\",ScriptText!$B$1&CHAR(10)&ScriptText!$D$1)","v":""},{"$f":"IF(OrigTable!G1157=\"\",\"\",TEXT(OrigTable!G1157,\"00\"))","v":""},{"$f":"IF(OrigTable!G1157=\"\",\"\",ScriptText!$E$1&CHAR(10)&ScriptText!$C$1)","v":""},0]
["\n\n\n",{"$f":"IF(OrigTable!A1158=\"\",\"\",ScriptText!$B$1&CHAR(10)&ScriptText!$D$1)","v":""},{"$f":"IF(OrigTable!A1158=\"\",\"\",TEXT(OrigTable!A1158,\"00\"))","v":""},{"$f":"IF(OrigTable!A1158=\"\",\"\",ScriptText!$E$1&CHAR(10)&ScriptText!$C$1)","v":""},{"$f":"IF(OrigTable!B1158=\"\",\"\",ScriptText!$B$1&CHAR(10)&ScriptText!$D$1)","v":""},{"$f":"IF(OrigTable!B1158=\"\",\"\",TEXT(OrigTable!B1158,\"00\"))","v":""},{"$f":"IF(OrigTable!B1158=\"\",\"\",ScriptText!$E$1&CHAR(10)&ScriptText!C1153)","v":""},{"$f":"IF(OrigTable!C1158=\"\",\"\",ScriptText!$B$1&CHAR(10)&ScriptText!$D$1)","v":""},{"$f":"IF(OrigTable!C1158=\"\",\"\",IF(LEN(OrigTable!C1158)>255,LEFT(OrigTable!C1158,250)&\". . .\",OrigTable!C1158))","v":""},{"$f":"IF(OrigTable!C1158=\"\",\"\",ScriptText!$E$1&CHAR(10)&ScriptText!$C$1)","v":""},{"$f":"IF(OrigTable!D1158=\"\",\"\",ScriptText!$B$1&CHAR(10)&ScriptText!$D$1)","v":""},{"$f":"IF(OrigTable!D1158=\"\",\"\",TEXT(OrigTable!D1158,\"00\"))","v":""},{"$f":"IF(OrigTable!D1158=\"\",\"\",ScriptText!$E$1&CHAR(10)&ScriptText!$C$1)","v":""},{"$f":"IF(OrigTable!E1158=\"\",\"\",ScriptText!$B$1&CHAR(10)&ScriptText!$D$1)","v":""},{"$f":"IF(OrigTable!E1158=\"\",\"\",TEXT(OrigTable!E1158,\"00\"))","v":""},{"$f":"IF(OrigTable!E1158=\"\",\"\",ScriptText!$E$1&CHAR(10)&ScriptText!$C$1)","v":""},{"$f":"IF(OrigTable!F1158=\"\",\"\",ScriptText!$B$1&CHAR(10)&ScriptText!$D$1)","v":""},{"$f":"IF(OrigTable!F1158=\"\",\"\",TEXT(OrigTable!F1158,\"00\"))","v":""},{"$f":"IF(OrigTable!F1158=\"\",\"\",ScriptText!$E$1&CHAR(10)&ScriptText!$C$1)","v":""},{"$f":"IF(OrigTable!G1158=\"\",\"\",ScriptText!$B$1&CHAR(10)&ScriptText!$D$1)","v":""},{"$f":"IF(OrigTable!G1158=\"\",\"\",TEXT(OrigTable!G1158,\"00\"))","v":""},{"$f":"IF(OrigTable!G1158=\"\",\"\",ScriptText!$E$1&CHAR(10)&ScriptText!$C$1)","v":""},{"$f":"IF(LEN(A1158)>3,ROW(),0)","v":0}]
["\n\n\n",{"$f":"IF(OrigTable!A1159=\"\",\"\",ScriptText!$B$1&CHAR(10)&ScriptText!$D$1)","v":""},{"$f":"IF(OrigTable!A1159=\"\",\"\",TEXT(OrigTable!A1159,\"00\"))","v":""},{"$f":"IF(OrigTable!A1159=\"\",\"\",ScriptText!$E$1&CHAR(10)&ScriptText!$C$1)","v":""},{"$f":"IF(OrigTable!B1159=\"\",\"\",ScriptText!$B$1&CHAR(10)&ScriptText!$D$1)","v":""},{"$f":"IF(OrigTable!B1159=\"\",\"\",TEXT(OrigTable!B1159,\"00\"))","v":""},{"$f":"IF(OrigTable!B1159=\"\",\"\",ScriptText!$E$1&CHAR(10)&ScriptText!C1154)","v":""},{"$f":"IF(OrigTable!C1159=\"\",\"\",ScriptText!$B$1&CHAR(10)&ScriptText!$D$1)","v":""},{"$f":"IF(OrigTable!C1159=\"\",\"\",IF(LEN(OrigTable!C1159)>255,LEFT(OrigTable!C1159,250)&\". . .\",OrigTable!C1159))","v":""},{"$f":"IF(OrigTable!C1159=\"\",\"\",ScriptText!$E$1&CHAR(10)&ScriptText!$C$1)","v":""},{"$f":"IF(OrigTable!D1159=\"\",\"\",ScriptText!$B$1&CHAR(10)&ScriptText!$D$1)","v":""},{"$f":"IF(OrigTable!D1159=\"\",\"\",TEXT(OrigTable!D1159,\"00\"))","v":""},{"$f":"IF(OrigTable!D1159=\"\",\"\",ScriptText!$E$1&CHAR(10)&ScriptText!$C$1)","v":""},{"$f":"IF(OrigTable!E1159=\"\",\"\",ScriptText!$B$1&CHAR(10)&ScriptText!$D$1)","v":""},{"$f":"IF(OrigTable!E1159=\"\",\"\",TEXT(OrigTable!E1159,\"00\"))","v":""},{"$f":"IF(OrigTable!E1159=\"\",\"\",ScriptText!$E$1&CHAR(10)&ScriptText!$C$1)","v":""},{"$f":"IF(OrigTable!F1159=\"\",\"\",ScriptText!$B$1&CHAR(10)&ScriptText!$D$1)","v":""},{"$f":"IF(OrigTable!F1159=\"\",\"\",TEXT(OrigTable!F1159,\"00\"))","v":""},{"$f":"IF(OrigTable!F1159=\"\",\"\",ScriptText!$E$1&CHAR(10)&ScriptText!$C$1)","v":""},{"$f":"IF(OrigTable!G1159=\"\",\"\",ScriptText!$B$1&CHAR(10)&ScriptText!$D$1)","v":""},{"$f":"IF(OrigTable!G1159=\"\",\"\",TEXT(OrigTable!G1159,\"00\"))","v":""},{"$f":"IF(OrigTable!G1159=\"\",\"\",ScriptText!$E$1&CHAR(10)&ScriptText!$C$1)","v":""},0]
["\n\n\n",{"$f":"IF(OrigTable!A1160=\"\",\"\",ScriptText!$B$1&CHAR(10)&ScriptText!$D$1)","v":""},{"$f":"IF(OrigTable!A1160=\"\",\"\",TEXT(OrigTable!A1160,\"00\"))","v":""},{"$f":"IF(OrigTable!A1160=\"\",\"\",ScriptText!$E$1&CHAR(10)&ScriptText!$C$1)","v":""},{"$f":"IF(OrigTable!B1160=\"\",\"\",ScriptText!$B$1&CHAR(10)&ScriptText!$D$1)","v":""},{"$f":"IF(OrigTable!B1160=\"\",\"\",TEXT(OrigTable!B1160,\"00\"))","v":""},{"$f":"IF(OrigTable!B1160=\"\",\"\",ScriptText!$E$1&CHAR(10)&ScriptText!C1155)","v":""},{"$f":"IF(OrigTable!C1160=\"\",\"\",ScriptText!$B$1&CHAR(10)&ScriptText!$D$1)","v":""},{"$f":"IF(OrigTable!C1160=\"\",\"\",IF(LEN(OrigTable!C1160)>255,LEFT(OrigTable!C1160,250)&\". . .\",OrigTable!C1160))","v":""},{"$f":"IF(OrigTable!C1160=\"\",\"\",ScriptText!$E$1&CHAR(10)&ScriptText!$C$1)","v":""},{"$f":"IF(OrigTable!D1160=\"\",\"\",ScriptText!$B$1&CHAR(10)&ScriptText!$D$1)","v":""},{"$f":"IF(OrigTable!D1160=\"\",\"\",TEXT(OrigTable!D1160,\"00\"))","v":""},{"$f":"IF(OrigTable!D1160=\"\",\"\",ScriptText!$E$1&CHAR(10)&ScriptText!$C$1)","v":""},{"$f":"IF(OrigTable!E1160=\"\",\"\",ScriptText!$B$1&CHAR(10)&ScriptText!$D$1)","v":""},{"$f":"IF(OrigTable!E1160=\"\",\"\",TEXT(OrigTable!E1160,\"00\"))","v":""},{"$f":"IF(OrigTable!E1160=\"\",\"\",ScriptText!$E$1&CHAR(10)&ScriptText!$C$1)","v":""},{"$f":"IF(OrigTable!F1160=\"\",\"\",ScriptText!$B$1&CHAR(10)&ScriptText!$D$1)","v":""},{"$f":"IF(OrigTable!F1160=\"\",\"\",TEXT(OrigTable!F1160,\"00\"))","v":""},{"$f":"IF(OrigTable!F1160=\"\",\"\",ScriptText!$E$1&CHAR(10)&ScriptText!$C$1)","v":""},{"$f":"IF(OrigTable!G1160=\"\",\"\",ScriptText!$B$1&CHAR(10)&ScriptText!$D$1)","v":""},{"$f":"IF(OrigTable!G1160=\"\",\"\",TEXT(OrigTable!G1160,\"00\"))","v":""},{"$f":"IF(OrigTable!G1160=\"\",\"\",ScriptText!$E$1&CHAR(10)&ScriptText!$C$1)","v":""},0]
[{"$f":"_xlfn.TEXTJOIN(\"\",TRUE,B1161:D1161)&CHAR(10)&_xlfn.TEXTJOIN(\"\",TRUE,E1161:G1161)&CHAR(10)&_xlfn.TEXTJOIN(\"\",TRUE,H1161:J1161)&CHAR(10)&_xlfn.TEXTJOIN(\"\",TRUE,K1161:M1161)&_xlfn.TEXTJOIN(\"\",TRUE,N1161:P1161)&_xlfn.TEXTJOIN(\"\",TRUE,Q1161:S1161)&_xlfn.TEXTJOIN(\"\",TRUE,T1161:V1161)","v":"\n\n\n"},{"$f":"IF(OrigTable!A1161=\"\",\"\",ScriptText!$B$1&CHAR(10)&ScriptText!$D$1)","v":""},{"$f":"IF(OrigTable!A1161=\"\",\"\",TEXT(OrigTable!A1161,\"00\"))","v":""},{"$f":"IF(OrigTable!A1161=\"\",\"\",ScriptText!$E$1&CHAR(10)&ScriptText!$C$1)","v":""},{"$f":"IF(OrigTable!B1161=\"\",\"\",ScriptText!$B$1&CHAR(10)&ScriptText!$D$1)","v":""},{"$f":"IF(OrigTable!B1161=\"\",\"\",TEXT(OrigTable!B1161,\"00\"))","v":""},{"$f":"IF(OrigTable!B1161=\"\",\"\",ScriptText!$E$1&CHAR(10)&ScriptText!C1156)","v":""},{"$f":"IF(OrigTable!C1161=\"\",\"\",ScriptText!$B$1&CHAR(10)&ScriptText!$D$1)","v":""},{"$f":"IF(OrigTable!C1161=\"\",\"\",IF(LEN(OrigTable!C1161)>255,LEFT(OrigTable!C1161,250)&\". . .\",OrigTable!C1161))","v":""},{"$f":"IF(OrigTable!C1161=\"\",\"\",ScriptText!$E$1&CHAR(10)&ScriptText!$C$1)","v":""},{"$f":"IF(OrigTable!D1161=\"\",\"\",ScriptText!$B$1&CHAR(10)&ScriptText!$D$1)","v":""},{"$f":"IF(OrigTable!D1161=\"\",\"\",TEXT(OrigTable!D1161,\"00\"))","v":""},{"$f":"IF(OrigTable!D1161=\"\",\"\",ScriptText!$E$1&CHAR(10)&ScriptText!$C$1)","v":""},{"$f":"IF(OrigTable!E1161=\"\",\"\",ScriptText!$B$1&CHAR(10)&ScriptText!$D$1)","v":""},{"$f":"IF(OrigTable!E1161=\"\",\"\",TEXT(OrigTable!E1161,\"00\"))","v":""},{"$f":"IF(OrigTable!E1161=\"\",\"\",ScriptText!$E$1&CHAR(10)&ScriptText!$C$1)","v":""},{"$f":"IF(OrigTable!F1161=\"\",\"\",ScriptText!$B$1&CHAR(10)&ScriptText!$D$1)","v":""},{"$f":"IF(OrigTable!F1161=\"\",\"\",TEXT(OrigTable!F1161,\"00\"))","v":""},{"$f":"IF(OrigTable!F1161=\"\",\"\",ScriptText!$E$1&CHAR(10)&ScriptText!$C$1)","v":""},{"$f":"IF(OrigTable!G1161=\"\",\"\",ScriptText!$B$1&CHAR(10)&ScriptText!$D$1)","v":""},{"$f":"IF(OrigTable!G1161=\"\",\"\",TEXT(OrigTable!G1161,\"00\"))","v":""},{"$f":"IF(OrigTable!G1161=\"\",\"\",ScriptText!$E$1&CHAR(10)&ScriptText!$C$1)","v":""},0]
["\n\n\n",{"$f":"IF(OrigTable!A1162=\"\",\"\",ScriptText!$B$1&CHAR(10)&ScriptText!$D$1)","v":""},{"$f":"IF(OrigTable!A1162=\"\",\"\",TEXT(OrigTable!A1162,\"00\"))","v":""},{"$f":"IF(OrigTable!A1162=\"\",\"\",ScriptText!$E$1&CHAR(10)&ScriptText!$C$1)","v":""},{"$f":"IF(OrigTable!B1162=\"\",\"\",ScriptText!$B$1&CHAR(10)&ScriptText!$D$1)","v":""},{"$f":"IF(OrigTable!B1162=\"\",\"\",TEXT(OrigTable!B1162,\"00\"))","v":""},{"$f":"IF(OrigTable!B1162=\"\",\"\",ScriptText!$E$1&CHAR(10)&ScriptText!C1157)","v":""},{"$f":"IF(OrigTable!C1162=\"\",\"\",ScriptText!$B$1&CHAR(10)&ScriptText!$D$1)","v":""},{"$f":"IF(OrigTable!C1162=\"\",\"\",IF(LEN(OrigTable!C1162)>255,LEFT(OrigTable!C1162,250)&\". . .\",OrigTable!C1162))","v":""},{"$f":"IF(OrigTable!C1162=\"\",\"\",ScriptText!$E$1&CHAR(10)&ScriptText!$C$1)","v":""},{"$f":"IF(OrigTable!D1162=\"\",\"\",ScriptText!$B$1&CHAR(10)&ScriptText!$D$1)","v":""},{"$f":"IF(OrigTable!D1162=\"\",\"\",TEXT(OrigTable!D1162,\"00\"))","v":""},{"$f":"IF(OrigTable!D1162=\"\",\"\",ScriptText!$E$1&CHAR(10)&ScriptText!$C$1)","v":""},{"$f":"IF(OrigTable!E1162=\"\",\"\",ScriptText!$B$1&CHAR(10)&ScriptText!$D$1)","v":""},{"$f":"IF(OrigTable!E1162=\"\",\"\",TEXT(OrigTable!E1162,\"00\"))","v":""},{"$f":"IF(OrigTable!E1162=\"\",\"\",ScriptText!$E$1&CHAR(10)&ScriptText!$C$1)","v":""},{"$f":"IF(OrigTable!F1162=\"\",\"\",ScriptText!$B$1&CHAR(10)&ScriptText!$D$1)","v":""},{"$f":"IF(OrigTable!F1162=\"\",\"\",TEXT(OrigTable!F1162,\"00\"))","v":""},{"$f":"IF(OrigTable!F1162=\"\",\"\",ScriptText!$E$1&CHAR(10)&ScriptText!$C$1)","v":""},{"$f":"IF(OrigTable!G1162=\"\",\"\",ScriptText!$B$1&CHAR(10)&ScriptText!$D$1)","v":""},{"$f":"IF(OrigTable!G1162=\"\",\"\",TEXT(OrigTable!G1162,\"00\"))","v":""},{"$f":"IF(OrigTable!G1162=\"\",\"\",ScriptText!$E$1&CHAR(10)&ScriptText!$C$1)","v":""},0]
["\n\n\n",{"$f":"IF(OrigTable!A1163=\"\",\"\",ScriptText!$B$1&CHAR(10)&ScriptText!$D$1)","v":""},{"$f":"IF(OrigTable!A1163=\"\",\"\",TEXT(OrigTable!A1163,\"00\"))","v":""},{"$f":"IF(OrigTable!A1163=\"\",\"\",ScriptText!$E$1&CHAR(10)&ScriptText!$C$1)","v":""},{"$f":"IF(OrigTable!B1163=\"\",\"\",ScriptText!$B$1&CHAR(10)&ScriptText!$D$1)","v":""},{"$f":"IF(OrigTable!B1163=\"\",\"\",TEXT(OrigTable!B1163,\"00\"))","v":""},{"$f":"IF(OrigTable!B1163=\"\",\"\",ScriptText!$E$1&CHAR(10)&ScriptText!C1158)","v":""},{"$f":"IF(OrigTable!C1163=\"\",\"\",ScriptText!$B$1&CHAR(10)&ScriptText!$D$1)","v":""},{"$f":"IF(OrigTable!C1163=\"\",\"\",IF(LEN(OrigTable!C1163)>255,LEFT(OrigTable!C1163,250)&\". . .\",OrigTable!C1163))","v":""},{"$f":"IF(OrigTable!C1163=\"\",\"\",ScriptText!$E$1&CHAR(10)&ScriptText!$C$1)","v":""},{"$f":"IF(OrigTable!D1163=\"\",\"\",ScriptText!$B$1&CHAR(10)&ScriptText!$D$1)","v":""},{"$f":"IF(OrigTable!D1163=\"\",\"\",TEXT(OrigTable!D1163,\"00\"))","v":""},{"$f":"IF(OrigTable!D1163=\"\",\"\",ScriptText!$E$1&CHAR(10)&ScriptText!$C$1)","v":""},{"$f":"IF(OrigTable!E1163=\"\",\"\",ScriptText!$B$1&CHAR(10)&ScriptText!$D$1)","v":""},{"$f":"IF(OrigTable!E1163=\"\",\"\",TEXT(OrigTable!E1163,\"00\"))","v":""},{"$f":"IF(OrigTable!E1163=\"\",\"\",ScriptText!$E$1&CHAR(10)&ScriptText!$C$1)","v":""},{"$f":"IF(OrigTable!F1163=\"\",\"\",ScriptText!$B$1&CHAR(10)&ScriptText!$D$1)","v":""},{"$f":"IF(OrigTable!F1163=\"\",\"\",TEXT(OrigTable!F1163,\"00\"))","v":""},{"$f":"IF(OrigTable!F1163=\"\",\"\",ScriptText!$E$1&CHAR(10)&ScriptText!$C$1)","v":""},{"$f":"IF(OrigTable!G1163=\"\",\"\",ScriptText!$B$1&CHAR(10)&ScriptText!$D$1)","v":""},{"$f":"IF(OrigTable!G1163=\"\",\"\",TEXT(OrigTable!G1163,\"00\"))","v":""},{"$f":"IF(OrigTable!G1163=\"\",\"\",ScriptText!$E$1&CHAR(10)&ScriptText!$C$1)","v":""},0]
["\n\n\n",{"$f":"IF(OrigTable!A1164=\"\",\"\",ScriptText!$B$1&CHAR(10)&ScriptText!$D$1)","v":""},{"$f":"IF(OrigTable!A1164=\"\",\"\",TEXT(OrigTable!A1164,\"00\"))","v":""},{"$f":"IF(OrigTable!A1164=\"\",\"\",ScriptText!$E$1&CHAR(10)&ScriptText!$C$1)","v":""},{"$f":"IF(OrigTable!B1164=\"\",\"\",ScriptText!$B$1&CHAR(10)&ScriptText!$D$1)","v":""},{"$f":"IF(OrigTable!B1164=\"\",\"\",TEXT(OrigTable!B1164,\"00\"))","v":""},{"$f":"IF(OrigTable!B1164=\"\",\"\",ScriptText!$E$1&CHAR(10)&ScriptText!C1159)","v":""},{"$f":"IF(OrigTable!C1164=\"\",\"\",ScriptText!$B$1&CHAR(10)&ScriptText!$D$1)","v":""},{"$f":"IF(OrigTable!C1164=\"\",\"\",IF(LEN(OrigTable!C1164)>255,LEFT(OrigTable!C1164,250)&\". . .\",OrigTable!C1164))","v":""},{"$f":"IF(OrigTable!C1164=\"\",\"\",ScriptText!$E$1&CHAR(10)&ScriptText!$C$1)","v":""},{"$f":"IF(OrigTable!D1164=\"\",\"\",ScriptText!$B$1&CHAR(10)&ScriptText!$D$1)","v":""},{"$f":"IF(OrigTable!D1164=\"\",\"\",TEXT(OrigTable!D1164,\"00\"))","v":""},{"$f":"IF(OrigTable!D1164=\"\",\"\",ScriptText!$E$1&CHAR(10)&ScriptText!$C$1)","v":""},{"$f":"IF(OrigTable!E1164=\"\",\"\",ScriptText!$B$1&CHAR(10)&ScriptText!$D$1)","v":""},{"$f":"IF(OrigTable!E1164=\"\",\"\",TEXT(OrigTable!E1164,\"00\"))","v":""},{"$f":"IF(OrigTable!E1164=\"\",\"\",ScriptText!$E$1&CHAR(10)&ScriptText!$C$1)","v":""},{"$f":"IF(OrigTable!F1164=\"\",\"\",ScriptText!$B$1&CHAR(10)&ScriptText!$D$1)","v":""},{"$f":"IF(OrigTable!F1164=\"\",\"\",TEXT(OrigTable!F1164,\"00\"))","v":""},{"$f":"IF(OrigTable!F1164=\"\",\"\",ScriptText!$E$1&CHAR(10)&ScriptText!$C$1)","v":""},{"$f":"IF(OrigTable!G1164=\"\",\"\",ScriptText!$B$1&CHAR(10)&ScriptText!$D$1)","v":""},{"$f":"IF(OrigTable!G1164=\"\",\"\",TEXT(OrigTable!G1164,\"00\"))","v":""},{"$f":"IF(OrigTable!G1164=\"\",\"\",ScriptText!$E$1&CHAR(10)&ScriptText!$C$1)","v":""},0]
["\n\n\n",{"$f":"IF(OrigTable!A1165=\"\",\"\",ScriptText!$B$1&CHAR(10)&ScriptText!$D$1)","v":""},{"$f":"IF(OrigTable!A1165=\"\",\"\",TEXT(OrigTable!A1165,\"00\"))","v":""},{"$f":"IF(OrigTable!A1165=\"\",\"\",ScriptText!$E$1&CHAR(10)&ScriptText!$C$1)","v":""},{"$f":"IF(OrigTable!B1165=\"\",\"\",ScriptText!$B$1&CHAR(10)&ScriptText!$D$1)","v":""},{"$f":"IF(OrigTable!B1165=\"\",\"\",TEXT(OrigTable!B1165,\"00\"))","v":""},{"$f":"IF(OrigTable!B1165=\"\",\"\",ScriptText!$E$1&CHAR(10)&ScriptText!C1160)","v":""},{"$f":"IF(OrigTable!C1165=\"\",\"\",ScriptText!$B$1&CHAR(10)&ScriptText!$D$1)","v":""},{"$f":"IF(OrigTable!C1165=\"\",\"\",IF(LEN(OrigTable!C1165)>255,LEFT(OrigTable!C1165,250)&\". . .\",OrigTable!C1165))","v":""},{"$f":"IF(OrigTable!C1165=\"\",\"\",ScriptText!$E$1&CHAR(10)&ScriptText!$C$1)","v":""},{"$f":"IF(OrigTable!D1165=\"\",\"\",ScriptText!$B$1&CHAR(10)&ScriptText!$D$1)","v":""},{"$f":"IF(OrigTable!D1165=\"\",\"\",TEXT(OrigTable!D1165,\"00\"))","v":""},{"$f":"IF(OrigTable!D1165=\"\",\"\",ScriptText!$E$1&CHAR(10)&ScriptText!$C$1)","v":""},{"$f":"IF(OrigTable!E1165=\"\",\"\",ScriptText!$B$1&CHAR(10)&ScriptText!$D$1)","v":""},{"$f":"IF(OrigTable!E1165=\"\",\"\",TEXT(OrigTable!E1165,\"00\"))","v":""},{"$f":"IF(OrigTable!E1165=\"\",\"\",ScriptText!$E$1&CHAR(10)&ScriptText!$C$1)","v":""},{"$f":"IF(OrigTable!F1165=\"\",\"\",ScriptText!$B$1&CHAR(10)&ScriptText!$D$1)","v":""},{"$f":"IF(OrigTable!F1165=\"\",\"\",TEXT(OrigTable!F1165,\"00\"))","v":""},{"$f":"IF(OrigTable!F1165=\"\",\"\",ScriptText!$E$1&CHAR(10)&ScriptText!$C$1)","v":""},{"$f":"IF(OrigTable!G1165=\"\",\"\",ScriptText!$B$1&CHAR(10)&ScriptText!$D$1)","v":""},{"$f":"IF(OrigTable!G1165=\"\",\"\",TEXT(OrigTable!G1165,\"00\"))","v":""},{"$f":"IF(OrigTable!G1165=\"\",\"\",ScriptText!$E$1&CHAR(10)&ScriptText!$C$1)","v":""},0]
["\n\n\n",{"$f":"IF(OrigTable!A1166=\"\",\"\",ScriptText!$B$1&CHAR(10)&ScriptText!$D$1)","v":""},{"$f":"IF(OrigTable!A1166=\"\",\"\",TEXT(OrigTable!A1166,\"00\"))","v":""},{"$f":"IF(OrigTable!A1166=\"\",\"\",ScriptText!$E$1&CHAR(10)&ScriptText!$C$1)","v":""},{"$f":"IF(OrigTable!B1166=\"\",\"\",ScriptText!$B$1&CHAR(10)&ScriptText!$D$1)","v":""},{"$f":"IF(OrigTable!B1166=\"\",\"\",TEXT(OrigTable!B1166,\"00\"))","v":""},{"$f":"IF(OrigTable!B1166=\"\",\"\",ScriptText!$E$1&CHAR(10)&ScriptText!C1161)","v":""},{"$f":"IF(OrigTable!C1166=\"\",\"\",ScriptText!$B$1&CHAR(10)&ScriptText!$D$1)","v":""},{"$f":"IF(OrigTable!C1166=\"\",\"\",IF(LEN(OrigTable!C1166)>255,LEFT(OrigTable!C1166,250)&\". . .\",OrigTable!C1166))","v":""},{"$f":"IF(OrigTable!C1166=\"\",\"\",ScriptText!$E$1&CHAR(10)&ScriptText!$C$1)","v":""},{"$f":"IF(OrigTable!D1166=\"\",\"\",ScriptText!$B$1&CHAR(10)&ScriptText!$D$1)","v":""},{"$f":"IF(OrigTable!D1166=\"\",\"\",TEXT(OrigTable!D1166,\"00\"))","v":""},{"$f":"IF(OrigTable!D1166=\"\",\"\",ScriptText!$E$1&CHAR(10)&ScriptText!$C$1)","v":""},{"$f":"IF(OrigTable!E1166=\"\",\"\",ScriptText!$B$1&CHAR(10)&ScriptText!$D$1)","v":""},{"$f":"IF(OrigTable!E1166=\"\",\"\",TEXT(OrigTable!E1166,\"00\"))","v":""},{"$f":"IF(OrigTable!E1166=\"\",\"\",ScriptText!$E$1&CHAR(10)&ScriptText!$C$1)","v":""},{"$f":"IF(OrigTable!F1166=\"\",\"\",ScriptText!$B$1&CHAR(10)&ScriptText!$D$1)","v":""},{"$f":"IF(OrigTable!F1166=\"\",\"\",TEXT(OrigTable!F1166,\"00\"))","v":""},{"$f":"IF(OrigTable!F1166=\"\",\"\",ScriptText!$E$1&CHAR(10)&ScriptText!$C$1)","v":""},{"$f":"IF(OrigTable!G1166=\"\",\"\",ScriptText!$B$1&CHAR(10)&ScriptText!$D$1)","v":""},{"$f":"IF(OrigTable!G1166=\"\",\"\",TEXT(OrigTable!G1166,\"00\"))","v":""},{"$f":"IF(OrigTable!G1166=\"\",\"\",ScriptText!$E$1&CHAR(10)&ScriptText!$C$1)","v":""},0]
["\n\n\n",{"$f":"IF(OrigTable!A1167=\"\",\"\",ScriptText!$B$1&CHAR(10)&ScriptText!$D$1)","v":""},{"$f":"IF(OrigTable!A1167=\"\",\"\",TEXT(OrigTable!A1167,\"00\"))","v":""},{"$f":"IF(OrigTable!A1167=\"\",\"\",ScriptText!$E$1&CHAR(10)&ScriptText!$C$1)","v":""},{"$f":"IF(OrigTable!B1167=\"\",\"\",ScriptText!$B$1&CHAR(10)&ScriptText!$D$1)","v":""},{"$f":"IF(OrigTable!B1167=\"\",\"\",TEXT(OrigTable!B1167,\"00\"))","v":""},{"$f":"IF(OrigTable!B1167=\"\",\"\",ScriptText!$E$1&CHAR(10)&ScriptText!C1162)","v":""},{"$f":"IF(OrigTable!C1167=\"\",\"\",ScriptText!$B$1&CHAR(10)&ScriptText!$D$1)","v":""},{"$f":"IF(OrigTable!C1167=\"\",\"\",IF(LEN(OrigTable!C1167)>255,LEFT(OrigTable!C1167,250)&\". . .\",OrigTable!C1167))","v":""},{"$f":"IF(OrigTable!C1167=\"\",\"\",ScriptText!$E$1&CHAR(10)&ScriptText!$C$1)","v":""},{"$f":"IF(OrigTable!D1167=\"\",\"\",ScriptText!$B$1&CHAR(10)&ScriptText!$D$1)","v":""},{"$f":"IF(OrigTable!D1167=\"\",\"\",TEXT(OrigTable!D1167,\"00\"))","v":""},{"$f":"IF(OrigTable!D1167=\"\",\"\",ScriptText!$E$1&CHAR(10)&ScriptText!$C$1)","v":""},{"$f":"IF(OrigTable!E1167=\"\",\"\",ScriptText!$B$1&CHAR(10)&ScriptText!$D$1)","v":""},{"$f":"IF(OrigTable!E1167=\"\",\"\",TEXT(OrigTable!E1167,\"00\"))","v":""},{"$f":"IF(OrigTable!E1167=\"\",\"\",ScriptText!$E$1&CHAR(10)&ScriptText!$C$1)","v":""},{"$f":"IF(OrigTable!F1167=\"\",\"\",ScriptText!$B$1&CHAR(10)&ScriptText!$D$1)","v":""},{"$f":"IF(OrigTable!F1167=\"\",\"\",TEXT(OrigTable!F1167,\"00\"))","v":""},{"$f":"IF(OrigTable!F1167=\"\",\"\",ScriptText!$E$1&CHAR(10)&ScriptText!$C$1)","v":""},{"$f":"IF(OrigTable!G1167=\"\",\"\",ScriptText!$B$1&CHAR(10)&ScriptText!$D$1)","v":""},{"$f":"IF(OrigTable!G1167=\"\",\"\",TEXT(OrigTable!G1167,\"00\"))","v":""},{"$f":"IF(OrigTable!G1167=\"\",\"\",ScriptText!$E$1&CHAR(10)&ScriptText!$C$1)","v":""},0]
["\n\n\n",{"$f":"IF(OrigTable!A1168=\"\",\"\",ScriptText!$B$1&CHAR(10)&ScriptText!$D$1)","v":""},{"$f":"IF(OrigTable!A1168=\"\",\"\",TEXT(OrigTable!A1168,\"00\"))","v":""},{"$f":"IF(OrigTable!A1168=\"\",\"\",ScriptText!$E$1&CHAR(10)&ScriptText!$C$1)","v":""},{"$f":"IF(OrigTable!B1168=\"\",\"\",ScriptText!$B$1&CHAR(10)&ScriptText!$D$1)","v":""},{"$f":"IF(OrigTable!B1168=\"\",\"\",TEXT(OrigTable!B1168,\"00\"))","v":""},{"$f":"IF(OrigTable!B1168=\"\",\"\",ScriptText!$E$1&CHAR(10)&ScriptText!C1163)","v":""},{"$f":"IF(OrigTable!C1168=\"\",\"\",ScriptText!$B$1&CHAR(10)&ScriptText!$D$1)","v":""},{"$f":"IF(OrigTable!C1168=\"\",\"\",IF(LEN(OrigTable!C1168)>255,LEFT(OrigTable!C1168,250)&\". . .\",OrigTable!C1168))","v":""},{"$f":"IF(OrigTable!C1168=\"\",\"\",ScriptText!$E$1&CHAR(10)&ScriptText!$C$1)","v":""},{"$f":"IF(OrigTable!D1168=\"\",\"\",ScriptText!$B$1&CHAR(10)&ScriptText!$D$1)","v":""},{"$f":"IF(OrigTable!D1168=\"\",\"\",TEXT(OrigTable!D1168,\"00\"))","v":""},{"$f":"IF(OrigTable!D1168=\"\",\"\",ScriptText!$E$1&CHAR(10)&ScriptText!$C$1)","v":""},{"$f":"IF(OrigTable!E1168=\"\",\"\",ScriptText!$B$1&CHAR(10)&ScriptText!$D$1)","v":""},{"$f":"IF(OrigTable!E1168=\"\",\"\",TEXT(OrigTable!E1168,\"00\"))","v":""},{"$f":"IF(OrigTable!E1168=\"\",\"\",ScriptText!$E$1&CHAR(10)&ScriptText!$C$1)","v":""},{"$f":"IF(OrigTable!F1168=\"\",\"\",ScriptText!$B$1&CHAR(10)&ScriptText!$D$1)","v":""},{"$f":"IF(OrigTable!F1168=\"\",\"\",TEXT(OrigTable!F1168,\"00\"))","v":""},{"$f":"IF(OrigTable!F1168=\"\",\"\",ScriptText!$E$1&CHAR(10)&ScriptText!$C$1)","v":""},{"$f":"IF(OrigTable!G1168=\"\",\"\",ScriptText!$B$1&CHAR(10)&ScriptText!$D$1)","v":""},{"$f":"IF(OrigTable!G1168=\"\",\"\",TEXT(OrigTable!G1168,\"00\"))","v":""},{"$f":"IF(OrigTable!G1168=\"\",\"\",ScriptText!$E$1&CHAR(10)&ScriptText!$C$1)","v":""},0]
["\n\n\n",{"$f":"IF(OrigTable!A1169=\"\",\"\",ScriptText!$B$1&CHAR(10)&ScriptText!$D$1)","v":""},{"$f":"IF(OrigTable!A1169=\"\",\"\",TEXT(OrigTable!A1169,\"00\"))","v":""},{"$f":"IF(OrigTable!A1169=\"\",\"\",ScriptText!$E$1&CHAR(10)&ScriptText!$C$1)","v":""},{"$f":"IF(OrigTable!B1169=\"\",\"\",ScriptText!$B$1&CHAR(10)&ScriptText!$D$1)","v":""},{"$f":"IF(OrigTable!B1169=\"\",\"\",TEXT(OrigTable!B1169,\"00\"))","v":""},{"$f":"IF(OrigTable!B1169=\"\",\"\",ScriptText!$E$1&CHAR(10)&ScriptText!C1164)","v":""},{"$f":"IF(OrigTable!C1169=\"\",\"\",ScriptText!$B$1&CHAR(10)&ScriptText!$D$1)","v":""},{"$f":"IF(OrigTable!C1169=\"\",\"\",IF(LEN(OrigTable!C1169)>255,LEFT(OrigTable!C1169,250)&\". . .\",OrigTable!C1169))","v":""},{"$f":"IF(OrigTable!C1169=\"\",\"\",ScriptText!$E$1&CHAR(10)&ScriptText!$C$1)","v":""},{"$f":"IF(OrigTable!D1169=\"\",\"\",ScriptText!$B$1&CHAR(10)&ScriptText!$D$1)","v":""},{"$f":"IF(OrigTable!D1169=\"\",\"\",TEXT(OrigTable!D1169,\"00\"))","v":""},{"$f":"IF(OrigTable!D1169=\"\",\"\",ScriptText!$E$1&CHAR(10)&ScriptText!$C$1)","v":""},{"$f":"IF(OrigTable!E1169=\"\",\"\",ScriptText!$B$1&CHAR(10)&ScriptText!$D$1)","v":""},{"$f":"IF(OrigTable!E1169=\"\",\"\",TEXT(OrigTable!E1169,\"00\"))","v":""},{"$f":"IF(OrigTable!E1169=\"\",\"\",ScriptText!$E$1&CHAR(10)&ScriptText!$C$1)","v":""},{"$f":"IF(OrigTable!F1169=\"\",\"\",ScriptText!$B$1&CHAR(10)&ScriptText!$D$1)","v":""},{"$f":"IF(OrigTable!F1169=\"\",\"\",TEXT(OrigTable!F1169,\"00\"))","v":""},{"$f":"IF(OrigTable!F1169=\"\",\"\",ScriptText!$E$1&CHAR(10)&ScriptText!$C$1)","v":""},{"$f":"IF(OrigTable!G1169=\"\",\"\",ScriptText!$B$1&CHAR(10)&ScriptText!$D$1)","v":""},{"$f":"IF(OrigTable!G1169=\"\",\"\",TEXT(OrigTable!G1169,\"00\"))","v":""},{"$f":"IF(OrigTable!G1169=\"\",\"\",ScriptText!$E$1&CHAR(10)&ScriptText!$C$1)","v":""},0]
["\n\n\n",{"$f":"IF(OrigTable!A1170=\"\",\"\",ScriptText!$B$1&CHAR(10)&ScriptText!$D$1)","v":""},{"$f":"IF(OrigTable!A1170=\"\",\"\",TEXT(OrigTable!A1170,\"00\"))","v":""},{"$f":"IF(OrigTable!A1170=\"\",\"\",ScriptText!$E$1&CHAR(10)&ScriptText!$C$1)","v":""},{"$f":"IF(OrigTable!B1170=\"\",\"\",ScriptText!$B$1&CHAR(10)&ScriptText!$D$1)","v":""},{"$f":"IF(OrigTable!B1170=\"\",\"\",TEXT(OrigTable!B1170,\"00\"))","v":""},{"$f":"IF(OrigTable!B1170=\"\",\"\",ScriptText!$E$1&CHAR(10)&ScriptText!C1165)","v":""},{"$f":"IF(OrigTable!C1170=\"\",\"\",ScriptText!$B$1&CHAR(10)&ScriptText!$D$1)","v":""},{"$f":"IF(OrigTable!C1170=\"\",\"\",IF(LEN(OrigTable!C1170)>255,LEFT(OrigTable!C1170,250)&\". . .\",OrigTable!C1170))","v":""},{"$f":"IF(OrigTable!C1170=\"\",\"\",ScriptText!$E$1&CHAR(10)&ScriptText!$C$1)","v":""},{"$f":"IF(OrigTable!D1170=\"\",\"\",ScriptText!$B$1&CHAR(10)&ScriptText!$D$1)","v":""},{"$f":"IF(OrigTable!D1170=\"\",\"\",TEXT(OrigTable!D1170,\"00\"))","v":""},{"$f":"IF(OrigTable!D1170=\"\",\"\",ScriptText!$E$1&CHAR(10)&ScriptText!$C$1)","v":""},{"$f":"IF(OrigTable!E1170=\"\",\"\",ScriptText!$B$1&CHAR(10)&ScriptText!$D$1)","v":""},{"$f":"IF(OrigTable!E1170=\"\",\"\",TEXT(OrigTable!E1170,\"00\"))","v":""},{"$f":"IF(OrigTable!E1170=\"\",\"\",ScriptText!$E$1&CHAR(10)&ScriptText!$C$1)","v":""},{"$f":"IF(OrigTable!F1170=\"\",\"\",ScriptText!$B$1&CHAR(10)&ScriptText!$D$1)","v":""},{"$f":"IF(OrigTable!F1170=\"\",\"\",TEXT(OrigTable!F1170,\"00\"))","v":""},{"$f":"IF(OrigTable!F1170=\"\",\"\",ScriptText!$E$1&CHAR(10)&ScriptText!$C$1)","v":""},{"$f":"IF(OrigTable!G1170=\"\",\"\",ScriptText!$B$1&CHAR(10)&ScriptText!$D$1)","v":""},{"$f":"IF(OrigTable!G1170=\"\",\"\",TEXT(OrigTable!G1170,\"00\"))","v":""},{"$f":"IF(OrigTable!G1170=\"\",\"\",ScriptText!$E$1&CHAR(10)&ScriptText!$C$1)","v":""},0]
["\n\n\n",{"$f":"IF(OrigTable!A1171=\"\",\"\",ScriptText!$B$1&CHAR(10)&ScriptText!$D$1)","v":""},{"$f":"IF(OrigTable!A1171=\"\",\"\",TEXT(OrigTable!A1171,\"00\"))","v":""},{"$f":"IF(OrigTable!A1171=\"\",\"\",ScriptText!$E$1&CHAR(10)&ScriptText!$C$1)","v":""},{"$f":"IF(OrigTable!B1171=\"\",\"\",ScriptText!$B$1&CHAR(10)&ScriptText!$D$1)","v":""},{"$f":"IF(OrigTable!B1171=\"\",\"\",TEXT(OrigTable!B1171,\"00\"))","v":""},{"$f":"IF(OrigTable!B1171=\"\",\"\",ScriptText!$E$1&CHAR(10)&ScriptText!C1166)","v":""},{"$f":"IF(OrigTable!C1171=\"\",\"\",ScriptText!$B$1&CHAR(10)&ScriptText!$D$1)","v":""},{"$f":"IF(OrigTable!C1171=\"\",\"\",IF(LEN(OrigTable!C1171)>255,LEFT(OrigTable!C1171,250)&\". . .\",OrigTable!C1171))","v":""},{"$f":"IF(OrigTable!C1171=\"\",\"\",ScriptText!$E$1&CHAR(10)&ScriptText!$C$1)","v":""},{"$f":"IF(OrigTable!D1171=\"\",\"\",ScriptText!$B$1&CHAR(10)&ScriptText!$D$1)","v":""},{"$f":"IF(OrigTable!D1171=\"\",\"\",TEXT(OrigTable!D1171,\"00\"))","v":""},{"$f":"IF(OrigTable!D1171=\"\",\"\",ScriptText!$E$1&CHAR(10)&ScriptText!$C$1)","v":""},{"$f":"IF(OrigTable!E1171=\"\",\"\",ScriptText!$B$1&CHAR(10)&ScriptText!$D$1)","v":""},{"$f":"IF(OrigTable!E1171=\"\",\"\",TEXT(OrigTable!E1171,\"00\"))","v":""},{"$f":"IF(OrigTable!E1171=\"\",\"\",ScriptText!$E$1&CHAR(10)&ScriptText!$C$1)","v":""},{"$f":"IF(OrigTable!F1171=\"\",\"\",ScriptText!$B$1&CHAR(10)&ScriptText!$D$1)","v":""},{"$f":"IF(OrigTable!F1171=\"\",\"\",TEXT(OrigTable!F1171,\"00\"))","v":""},{"$f":"IF(OrigTable!F1171=\"\",\"\",ScriptText!$E$1&CHAR(10)&ScriptText!$C$1)","v":""},{"$f":"IF(OrigTable!G1171=\"\",\"\",ScriptText!$B$1&CHAR(10)&ScriptText!$D$1)","v":""},{"$f":"IF(OrigTable!G1171=\"\",\"\",TEXT(OrigTable!G1171,\"00\"))","v":""},{"$f":"IF(OrigTable!G1171=\"\",\"\",ScriptText!$E$1&CHAR(10)&ScriptText!$C$1)","v":""},0]
["\n\n\n",{"$f":"IF(OrigTable!A1172=\"\",\"\",ScriptText!$B$1&CHAR(10)&ScriptText!$D$1)","v":""},{"$f":"IF(OrigTable!A1172=\"\",\"\",TEXT(OrigTable!A1172,\"00\"))","v":""},{"$f":"IF(OrigTable!A1172=\"\",\"\",ScriptText!$E$1&CHAR(10)&ScriptText!$C$1)","v":""},{"$f":"IF(OrigTable!B1172=\"\",\"\",ScriptText!$B$1&CHAR(10)&ScriptText!$D$1)","v":""},{"$f":"IF(OrigTable!B1172=\"\",\"\",TEXT(OrigTable!B1172,\"00\"))","v":""},{"$f":"IF(OrigTable!B1172=\"\",\"\",ScriptText!$E$1&CHAR(10)&ScriptText!C1167)","v":""},{"$f":"IF(OrigTable!C1172=\"\",\"\",ScriptText!$B$1&CHAR(10)&ScriptText!$D$1)","v":""},{"$f":"IF(OrigTable!C1172=\"\",\"\",IF(LEN(OrigTable!C1172)>255,LEFT(OrigTable!C1172,250)&\". . .\",OrigTable!C1172))","v":""},{"$f":"IF(OrigTable!C1172=\"\",\"\",ScriptText!$E$1&CHAR(10)&ScriptText!$C$1)","v":""},{"$f":"IF(OrigTable!D1172=\"\",\"\",ScriptText!$B$1&CHAR(10)&ScriptText!$D$1)","v":""},{"$f":"IF(OrigTable!D1172=\"\",\"\",TEXT(OrigTable!D1172,\"00\"))","v":""},{"$f":"IF(OrigTable!D1172=\"\",\"\",ScriptText!$E$1&CHAR(10)&ScriptText!$C$1)","v":""},{"$f":"IF(OrigTable!E1172=\"\",\"\",ScriptText!$B$1&CHAR(10)&ScriptText!$D$1)","v":""},{"$f":"IF(OrigTable!E1172=\"\",\"\",TEXT(OrigTable!E1172,\"00\"))","v":""},{"$f":"IF(OrigTable!E1172=\"\",\"\",ScriptText!$E$1&CHAR(10)&ScriptText!$C$1)","v":""},{"$f":"IF(OrigTable!F1172=\"\",\"\",ScriptText!$B$1&CHAR(10)&ScriptText!$D$1)","v":""},{"$f":"IF(OrigTable!F1172=\"\",\"\",TEXT(OrigTable!F1172,\"00\"))","v":""},{"$f":"IF(OrigTable!F1172=\"\",\"\",ScriptText!$E$1&CHAR(10)&ScriptText!$C$1)","v":""},{"$f":"IF(OrigTable!G1172=\"\",\"\",ScriptText!$B$1&CHAR(10)&ScriptText!$D$1)","v":""},{"$f":"IF(OrigTable!G1172=\"\",\"\",TEXT(OrigTable!G1172,\"00\"))","v":""},{"$f":"IF(OrigTable!G1172=\"\",\"\",ScriptText!$E$1&CHAR(10)&ScriptText!$C$1)","v":""},0]
["\n\n\n",{"$f":"IF(OrigTable!A1173=\"\",\"\",ScriptText!$B$1&CHAR(10)&ScriptText!$D$1)","v":""},{"$f":"IF(OrigTable!A1173=\"\",\"\",TEXT(OrigTable!A1173,\"00\"))","v":""},{"$f":"IF(OrigTable!A1173=\"\",\"\",ScriptText!$E$1&CHAR(10)&ScriptText!$C$1)","v":""},{"$f":"IF(OrigTable!B1173=\"\",\"\",ScriptText!$B$1&CHAR(10)&ScriptText!$D$1)","v":""},{"$f":"IF(OrigTable!B1173=\"\",\"\",TEXT(OrigTable!B1173,\"00\"))","v":""},{"$f":"IF(OrigTable!B1173=\"\",\"\",ScriptText!$E$1&CHAR(10)&ScriptText!C1168)","v":""},{"$f":"IF(OrigTable!C1173=\"\",\"\",ScriptText!$B$1&CHAR(10)&ScriptText!$D$1)","v":""},{"$f":"IF(OrigTable!C1173=\"\",\"\",IF(LEN(OrigTable!C1173)>255,LEFT(OrigTable!C1173,250)&\". . .\",OrigTable!C1173))","v":""},{"$f":"IF(OrigTable!C1173=\"\",\"\",ScriptText!$E$1&CHAR(10)&ScriptText!$C$1)","v":""},{"$f":"IF(OrigTable!D1173=\"\",\"\",ScriptText!$B$1&CHAR(10)&ScriptText!$D$1)","v":""},{"$f":"IF(OrigTable!D1173=\"\",\"\",TEXT(OrigTable!D1173,\"00\"))","v":""},{"$f":"IF(OrigTable!D1173=\"\",\"\",ScriptText!$E$1&CHAR(10)&ScriptText!$C$1)","v":""},{"$f":"IF(OrigTable!E1173=\"\",\"\",ScriptText!$B$1&CHAR(10)&ScriptText!$D$1)","v":""},{"$f":"IF(OrigTable!E1173=\"\",\"\",TEXT(OrigTable!E1173,\"00\"))","v":""},{"$f":"IF(OrigTable!E1173=\"\",\"\",ScriptText!$E$1&CHAR(10)&ScriptText!$C$1)","v":""},{"$f":"IF(OrigTable!F1173=\"\",\"\",ScriptText!$B$1&CHAR(10)&ScriptText!$D$1)","v":""},{"$f":"IF(OrigTable!F1173=\"\",\"\",TEXT(OrigTable!F1173,\"00\"))","v":""},{"$f":"IF(OrigTable!F1173=\"\",\"\",ScriptText!$E$1&CHAR(10)&ScriptText!$C$1)","v":""},{"$f":"IF(OrigTable!G1173=\"\",\"\",ScriptText!$B$1&CHAR(10)&ScriptText!$D$1)","v":""},{"$f":"IF(OrigTable!G1173=\"\",\"\",TEXT(OrigTable!G1173,\"00\"))","v":""},{"$f":"IF(OrigTable!G1173=\"\",\"\",ScriptText!$E$1&CHAR(10)&ScriptText!$C$1)","v":""},0]
["\n\n\n",{"$f":"IF(OrigTable!A1174=\"\",\"\",ScriptText!$B$1&CHAR(10)&ScriptText!$D$1)","v":""},{"$f":"IF(OrigTable!A1174=\"\",\"\",TEXT(OrigTable!A1174,\"00\"))","v":""},{"$f":"IF(OrigTable!A1174=\"\",\"\",ScriptText!$E$1&CHAR(10)&ScriptText!$C$1)","v":""},{"$f":"IF(OrigTable!B1174=\"\",\"\",ScriptText!$B$1&CHAR(10)&ScriptText!$D$1)","v":""},{"$f":"IF(OrigTable!B1174=\"\",\"\",TEXT(OrigTable!B1174,\"00\"))","v":""},{"$f":"IF(OrigTable!B1174=\"\",\"\",ScriptText!$E$1&CHAR(10)&ScriptText!C1169)","v":""},{"$f":"IF(OrigTable!C1174=\"\",\"\",ScriptText!$B$1&CHAR(10)&ScriptText!$D$1)","v":""},{"$f":"IF(OrigTable!C1174=\"\",\"\",IF(LEN(OrigTable!C1174)>255,LEFT(OrigTable!C1174,250)&\". . .\",OrigTable!C1174))","v":""},{"$f":"IF(OrigTable!C1174=\"\",\"\",ScriptText!$E$1&CHAR(10)&ScriptText!$C$1)","v":""},{"$f":"IF(OrigTable!D1174=\"\",\"\",ScriptText!$B$1&CHAR(10)&ScriptText!$D$1)","v":""},{"$f":"IF(OrigTable!D1174=\"\",\"\",TEXT(OrigTable!D1174,\"00\"))","v":""},{"$f":"IF(OrigTable!D1174=\"\",\"\",ScriptText!$E$1&CHAR(10)&ScriptText!$C$1)","v":""},{"$f":"IF(OrigTable!E1174=\"\",\"\",ScriptText!$B$1&CHAR(10)&ScriptText!$D$1)","v":""},{"$f":"IF(OrigTable!E1174=\"\",\"\",TEXT(OrigTable!E1174,\"00\"))","v":""},{"$f":"IF(OrigTable!E1174=\"\",\"\",ScriptText!$E$1&CHAR(10)&ScriptText!$C$1)","v":""},{"$f":"IF(OrigTable!F1174=\"\",\"\",ScriptText!$B$1&CHAR(10)&ScriptText!$D$1)","v":""},{"$f":"IF(OrigTable!F1174=\"\",\"\",TEXT(OrigTable!F1174,\"00\"))","v":""},{"$f":"IF(OrigTable!F1174=\"\",\"\",ScriptText!$E$1&CHAR(10)&ScriptText!$C$1)","v":""},{"$f":"IF(OrigTable!G1174=\"\",\"\",ScriptText!$B$1&CHAR(10)&ScriptText!$D$1)","v":""},{"$f":"IF(OrigTable!G1174=\"\",\"\",TEXT(OrigTable!G1174,\"00\"))","v":""},{"$f":"IF(OrigTable!G1174=\"\",\"\",ScriptText!$E$1&CHAR(10)&ScriptText!$C$1)","v":""},0]
["\n\n\n",{"$f":"IF(OrigTable!A1175=\"\",\"\",ScriptText!$B$1&CHAR(10)&ScriptText!$D$1)","v":""},{"$f":"IF(OrigTable!A1175=\"\",\"\",TEXT(OrigTable!A1175,\"00\"))","v":""},{"$f":"IF(OrigTable!A1175=\"\",\"\",ScriptText!$E$1&CHAR(10)&ScriptText!$C$1)","v":""},{"$f":"IF(OrigTable!B1175=\"\",\"\",ScriptText!$B$1&CHAR(10)&ScriptText!$D$1)","v":""},{"$f":"IF(OrigTable!B1175=\"\",\"\",TEXT(OrigTable!B1175,\"00\"))","v":""},{"$f":"IF(OrigTable!B1175=\"\",\"\",ScriptText!$E$1&CHAR(10)&ScriptText!C1170)","v":""},{"$f":"IF(OrigTable!C1175=\"\",\"\",ScriptText!$B$1&CHAR(10)&ScriptText!$D$1)","v":""},{"$f":"IF(OrigTable!C1175=\"\",\"\",IF(LEN(OrigTable!C1175)>255,LEFT(OrigTable!C1175,250)&\". . .\",OrigTable!C1175))","v":""},{"$f":"IF(OrigTable!C1175=\"\",\"\",ScriptText!$E$1&CHAR(10)&ScriptText!$C$1)","v":""},{"$f":"IF(OrigTable!D1175=\"\",\"\",ScriptText!$B$1&CHAR(10)&ScriptText!$D$1)","v":""},{"$f":"IF(OrigTable!D1175=\"\",\"\",TEXT(OrigTable!D1175,\"00\"))","v":""},{"$f":"IF(OrigTable!D1175=\"\",\"\",ScriptText!$E$1&CHAR(10)&ScriptText!$C$1)","v":""},{"$f":"IF(OrigTable!E1175=\"\",\"\",ScriptText!$B$1&CHAR(10)&ScriptText!$D$1)","v":""},{"$f":"IF(OrigTable!E1175=\"\",\"\",TEXT(OrigTable!E1175,\"00\"))","v":""},{"$f":"IF(OrigTable!E1175=\"\",\"\",ScriptText!$E$1&CHAR(10)&ScriptText!$C$1)","v":""},{"$f":"IF(OrigTable!F1175=\"\",\"\",ScriptText!$B$1&CHAR(10)&ScriptText!$D$1)","v":""},{"$f":"IF(OrigTable!F1175=\"\",\"\",TEXT(OrigTable!F1175,\"00\"))","v":""},{"$f":"IF(OrigTable!F1175=\"\",\"\",ScriptText!$E$1&CHAR(10)&ScriptText!$C$1)","v":""},{"$f":"IF(OrigTable!G1175=\"\",\"\",ScriptText!$B$1&CHAR(10)&ScriptText!$D$1)","v":""},{"$f":"IF(OrigTable!G1175=\"\",\"\",TEXT(OrigTable!G1175,\"00\"))","v":""},{"$f":"IF(OrigTable!G1175=\"\",\"\",ScriptText!$E$1&CHAR(10)&ScriptText!$C$1)","v":""},0]
["\n\n\n",{"$f":"IF(OrigTable!A1176=\"\",\"\",ScriptText!$B$1&CHAR(10)&ScriptText!$D$1)","v":""},{"$f":"IF(OrigTable!A1176=\"\",\"\",TEXT(OrigTable!A1176,\"00\"))","v":""},{"$f":"IF(OrigTable!A1176=\"\",\"\",ScriptText!$E$1&CHAR(10)&ScriptText!$C$1)","v":""},{"$f":"IF(OrigTable!B1176=\"\",\"\",ScriptText!$B$1&CHAR(10)&ScriptText!$D$1)","v":""},{"$f":"IF(OrigTable!B1176=\"\",\"\",TEXT(OrigTable!B1176,\"00\"))","v":""},{"$f":"IF(OrigTable!B1176=\"\",\"\",ScriptText!$E$1&CHAR(10)&ScriptText!C1171)","v":""},{"$f":"IF(OrigTable!C1176=\"\",\"\",ScriptText!$B$1&CHAR(10)&ScriptText!$D$1)","v":""},{"$f":"IF(OrigTable!C1176=\"\",\"\",IF(LEN(OrigTable!C1176)>255,LEFT(OrigTable!C1176,250)&\". . .\",OrigTable!C1176))","v":""},{"$f":"IF(OrigTable!C1176=\"\",\"\",ScriptText!$E$1&CHAR(10)&ScriptText!$C$1)","v":""},{"$f":"IF(OrigTable!D1176=\"\",\"\",ScriptText!$B$1&CHAR(10)&ScriptText!$D$1)","v":""},{"$f":"IF(OrigTable!D1176=\"\",\"\",TEXT(OrigTable!D1176,\"00\"))","v":""},{"$f":"IF(OrigTable!D1176=\"\",\"\",ScriptText!$E$1&CHAR(10)&ScriptText!$C$1)","v":""},{"$f":"IF(OrigTable!E1176=\"\",\"\",ScriptText!$B$1&CHAR(10)&ScriptText!$D$1)","v":""},{"$f":"IF(OrigTable!E1176=\"\",\"\",TEXT(OrigTable!E1176,\"00\"))","v":""},{"$f":"IF(OrigTable!E1176=\"\",\"\",ScriptText!$E$1&CHAR(10)&ScriptText!$C$1)","v":""},{"$f":"IF(OrigTable!F1176=\"\",\"\",ScriptText!$B$1&CHAR(10)&ScriptText!$D$1)","v":""},{"$f":"IF(OrigTable!F1176=\"\",\"\",TEXT(OrigTable!F1176,\"00\"))","v":""},{"$f":"IF(OrigTable!F1176=\"\",\"\",ScriptText!$E$1&CHAR(10)&ScriptText!$C$1)","v":""},{"$f":"IF(OrigTable!G1176=\"\",\"\",ScriptText!$B$1&CHAR(10)&ScriptText!$D$1)","v":""},{"$f":"IF(OrigTable!G1176=\"\",\"\",TEXT(OrigTable!G1176,\"00\"))","v":""},{"$f":"IF(OrigTable!G1176=\"\",\"\",ScriptText!$E$1&CHAR(10)&ScriptText!$C$1)","v":""},0]
["\n\n\n",{"$f":"IF(OrigTable!A1177=\"\",\"\",ScriptText!$B$1&CHAR(10)&ScriptText!$D$1)","v":""},{"$f":"IF(OrigTable!A1177=\"\",\"\",TEXT(OrigTable!A1177,\"00\"))","v":""},{"$f":"IF(OrigTable!A1177=\"\",\"\",ScriptText!$E$1&CHAR(10)&ScriptText!$C$1)","v":""},{"$f":"IF(OrigTable!B1177=\"\",\"\",ScriptText!$B$1&CHAR(10)&ScriptText!$D$1)","v":""},{"$f":"IF(OrigTable!B1177=\"\",\"\",TEXT(OrigTable!B1177,\"00\"))","v":""},{"$f":"IF(OrigTable!B1177=\"\",\"\",ScriptText!$E$1&CHAR(10)&ScriptText!C1172)","v":""},{"$f":"IF(OrigTable!C1177=\"\",\"\",ScriptText!$B$1&CHAR(10)&ScriptText!$D$1)","v":""},{"$f":"IF(OrigTable!C1177=\"\",\"\",IF(LEN(OrigTable!C1177)>255,LEFT(OrigTable!C1177,250)&\". . .\",OrigTable!C1177))","v":""},{"$f":"IF(OrigTable!C1177=\"\",\"\",ScriptText!$E$1&CHAR(10)&ScriptText!$C$1)","v":""},{"$f":"IF(OrigTable!D1177=\"\",\"\",ScriptText!$B$1&CHAR(10)&ScriptText!$D$1)","v":""},{"$f":"IF(OrigTable!D1177=\"\",\"\",TEXT(OrigTable!D1177,\"00\"))","v":""},{"$f":"IF(OrigTable!D1177=\"\",\"\",ScriptText!$E$1&CHAR(10)&ScriptText!$C$1)","v":""},{"$f":"IF(OrigTable!E1177=\"\",\"\",ScriptText!$B$1&CHAR(10)&ScriptText!$D$1)","v":""},{"$f":"IF(OrigTable!E1177=\"\",\"\",TEXT(OrigTable!E1177,\"00\"))","v":""},{"$f":"IF(OrigTable!E1177=\"\",\"\",ScriptText!$E$1&CHAR(10)&ScriptText!$C$1)","v":""},{"$f":"IF(OrigTable!F1177=\"\",\"\",ScriptText!$B$1&CHAR(10)&ScriptText!$D$1)","v":""},{"$f":"IF(OrigTable!F1177=\"\",\"\",TEXT(OrigTable!F1177,\"00\"))","v":""},{"$f":"IF(OrigTable!F1177=\"\",\"\",ScriptText!$E$1&CHAR(10)&ScriptText!$C$1)","v":""},{"$f":"IF(OrigTable!G1177=\"\",\"\",ScriptText!$B$1&CHAR(10)&ScriptText!$D$1)","v":""},{"$f":"IF(OrigTable!G1177=\"\",\"\",TEXT(OrigTable!G1177,\"00\"))","v":""},{"$f":"IF(OrigTable!G1177=\"\",\"\",ScriptText!$E$1&CHAR(10)&ScriptText!$C$1)","v":""},0]
["\n\n\n",{"$f":"IF(OrigTable!A1178=\"\",\"\",ScriptText!$B$1&CHAR(10)&ScriptText!$D$1)","v":""},{"$f":"IF(OrigTable!A1178=\"\",\"\",TEXT(OrigTable!A1178,\"00\"))","v":""},{"$f":"IF(OrigTable!A1178=\"\",\"\",ScriptText!$E$1&CHAR(10)&ScriptText!$C$1)","v":""},{"$f":"IF(OrigTable!B1178=\"\",\"\",ScriptText!$B$1&CHAR(10)&ScriptText!$D$1)","v":""},{"$f":"IF(OrigTable!B1178=\"\",\"\",TEXT(OrigTable!B1178,\"00\"))","v":""},{"$f":"IF(OrigTable!B1178=\"\",\"\",ScriptText!$E$1&CHAR(10)&ScriptText!C1173)","v":""},{"$f":"IF(OrigTable!C1178=\"\",\"\",ScriptText!$B$1&CHAR(10)&ScriptText!$D$1)","v":""},{"$f":"IF(OrigTable!C1178=\"\",\"\",IF(LEN(OrigTable!C1178)>255,LEFT(OrigTable!C1178,250)&\". . .\",OrigTable!C1178))","v":""},{"$f":"IF(OrigTable!C1178=\"\",\"\",ScriptText!$E$1&CHAR(10)&ScriptText!$C$1)","v":""},{"$f":"IF(OrigTable!D1178=\"\",\"\",ScriptText!$B$1&CHAR(10)&ScriptText!$D$1)","v":""},{"$f":"IF(OrigTable!D1178=\"\",\"\",TEXT(OrigTable!D1178,\"00\"))","v":""},{"$f":"IF(OrigTable!D1178=\"\",\"\",ScriptText!$E$1&CHAR(10)&ScriptText!$C$1)","v":""},{"$f":"IF(OrigTable!E1178=\"\",\"\",ScriptText!$B$1&CHAR(10)&ScriptText!$D$1)","v":""},{"$f":"IF(OrigTable!E1178=\"\",\"\",TEXT(OrigTable!E1178,\"00\"))","v":""},{"$f":"IF(OrigTable!E1178=\"\",\"\",ScriptText!$E$1&CHAR(10)&ScriptText!$C$1)","v":""},{"$f":"IF(OrigTable!F1178=\"\",\"\",ScriptText!$B$1&CHAR(10)&ScriptText!$D$1)","v":""},{"$f":"IF(OrigTable!F1178=\"\",\"\",TEXT(OrigTable!F1178,\"00\"))","v":""},{"$f":"IF(OrigTable!F1178=\"\",\"\",ScriptText!$E$1&CHAR(10)&ScriptText!$C$1)","v":""},{"$f":"IF(OrigTable!G1178=\"\",\"\",ScriptText!$B$1&CHAR(10)&ScriptText!$D$1)","v":""},{"$f":"IF(OrigTable!G1178=\"\",\"\",TEXT(OrigTable!G1178,\"00\"))","v":""},{"$f":"IF(OrigTable!G1178=\"\",\"\",ScriptText!$E$1&CHAR(10)&ScriptText!$C$1)","v":""},0]
["\n\n\n",{"$f":"IF(OrigTable!A1179=\"\",\"\",ScriptText!$B$1&CHAR(10)&ScriptText!$D$1)","v":""},{"$f":"IF(OrigTable!A1179=\"\",\"\",TEXT(OrigTable!A1179,\"00\"))","v":""},{"$f":"IF(OrigTable!A1179=\"\",\"\",ScriptText!$E$1&CHAR(10)&ScriptText!$C$1)","v":""},{"$f":"IF(OrigTable!B1179=\"\",\"\",ScriptText!$B$1&CHAR(10)&ScriptText!$D$1)","v":""},{"$f":"IF(OrigTable!B1179=\"\",\"\",TEXT(OrigTable!B1179,\"00\"))","v":""},{"$f":"IF(OrigTable!B1179=\"\",\"\",ScriptText!$E$1&CHAR(10)&ScriptText!C1174)","v":""},{"$f":"IF(OrigTable!C1179=\"\",\"\",ScriptText!$B$1&CHAR(10)&ScriptText!$D$1)","v":""},{"$f":"IF(OrigTable!C1179=\"\",\"\",IF(LEN(OrigTable!C1179)>255,LEFT(OrigTable!C1179,250)&\". . .\",OrigTable!C1179))","v":""},{"$f":"IF(OrigTable!C1179=\"\",\"\",ScriptText!$E$1&CHAR(10)&ScriptText!$C$1)","v":""},{"$f":"IF(OrigTable!D1179=\"\",\"\",ScriptText!$B$1&CHAR(10)&ScriptText!$D$1)","v":""},{"$f":"IF(OrigTable!D1179=\"\",\"\",TEXT(OrigTable!D1179,\"00\"))","v":""},{"$f":"IF(OrigTable!D1179=\"\",\"\",ScriptText!$E$1&CHAR(10)&ScriptText!$C$1)","v":""},{"$f":"IF(OrigTable!E1179=\"\",\"\",ScriptText!$B$1&CHAR(10)&ScriptText!$D$1)","v":""},{"$f":"IF(OrigTable!E1179=\"\",\"\",TEXT(OrigTable!E1179,\"00\"))","v":""},{"$f":"IF(OrigTable!E1179=\"\",\"\",ScriptText!$E$1&CHAR(10)&ScriptText!$C$1)","v":""},{"$f":"IF(OrigTable!F1179=\"\",\"\",ScriptText!$B$1&CHAR(10)&ScriptText!$D$1)","v":""},{"$f":"IF(OrigTable!F1179=\"\",\"\",TEXT(OrigTable!F1179,\"00\"))","v":""},{"$f":"IF(OrigTable!F1179=\"\",\"\",ScriptText!$E$1&CHAR(10)&ScriptText!$C$1)","v":""},{"$f":"IF(OrigTable!G1179=\"\",\"\",ScriptText!$B$1&CHAR(10)&ScriptText!$D$1)","v":""},{"$f":"IF(OrigTable!G1179=\"\",\"\",TEXT(OrigTable!G1179,\"00\"))","v":""},{"$f":"IF(OrigTable!G1179=\"\",\"\",ScriptText!$E$1&CHAR(10)&ScriptText!$C$1)","v":""},0]
["\n\n\n",{"$f":"IF(OrigTable!A1180=\"\",\"\",ScriptText!$B$1&CHAR(10)&ScriptText!$D$1)","v":""},{"$f":"IF(OrigTable!A1180=\"\",\"\",TEXT(OrigTable!A1180,\"00\"))","v":""},{"$f":"IF(OrigTable!A1180=\"\",\"\",ScriptText!$E$1&CHAR(10)&ScriptText!$C$1)","v":""},{"$f":"IF(OrigTable!B1180=\"\",\"\",ScriptText!$B$1&CHAR(10)&ScriptText!$D$1)","v":""},{"$f":"IF(OrigTable!B1180=\"\",\"\",TEXT(OrigTable!B1180,\"00\"))","v":""},{"$f":"IF(OrigTable!B1180=\"\",\"\",ScriptText!$E$1&CHAR(10)&ScriptText!C1175)","v":""},{"$f":"IF(OrigTable!C1180=\"\",\"\",ScriptText!$B$1&CHAR(10)&ScriptText!$D$1)","v":""},{"$f":"IF(OrigTable!C1180=\"\",\"\",IF(LEN(OrigTable!C1180)>255,LEFT(OrigTable!C1180,250)&\". . .\",OrigTable!C1180))","v":""},{"$f":"IF(OrigTable!C1180=\"\",\"\",ScriptText!$E$1&CHAR(10)&ScriptText!$C$1)","v":""},{"$f":"IF(OrigTable!D1180=\"\",\"\",ScriptText!$B$1&CHAR(10)&ScriptText!$D$1)","v":""},{"$f":"IF(OrigTable!D1180=\"\",\"\",TEXT(OrigTable!D1180,\"00\"))","v":""},{"$f":"IF(OrigTable!D1180=\"\",\"\",ScriptText!$E$1&CHAR(10)&ScriptText!$C$1)","v":""},{"$f":"IF(OrigTable!E1180=\"\",\"\",ScriptText!$B$1&CHAR(10)&ScriptText!$D$1)","v":""},{"$f":"IF(OrigTable!E1180=\"\",\"\",TEXT(OrigTable!E1180,\"00\"))","v":""},{"$f":"IF(OrigTable!E1180=\"\",\"\",ScriptText!$E$1&CHAR(10)&ScriptText!$C$1)","v":""},{"$f":"IF(OrigTable!F1180=\"\",\"\",ScriptText!$B$1&CHAR(10)&ScriptText!$D$1)","v":""},{"$f":"IF(OrigTable!F1180=\"\",\"\",TEXT(OrigTable!F1180,\"00\"))","v":""},{"$f":"IF(OrigTable!F1180=\"\",\"\",ScriptText!$E$1&CHAR(10)&ScriptText!$C$1)","v":""},{"$f":"IF(OrigTable!G1180=\"\",\"\",ScriptText!$B$1&CHAR(10)&ScriptText!$D$1)","v":""},{"$f":"IF(OrigTable!G1180=\"\",\"\",TEXT(OrigTable!G1180,\"00\"))","v":""},{"$f":"IF(OrigTable!G1180=\"\",\"\",ScriptText!$E$1&CHAR(10)&ScriptText!$C$1)","v":""},0]
["\n\n\n",{"$f":"IF(OrigTable!A1181=\"\",\"\",ScriptText!$B$1&CHAR(10)&ScriptText!$D$1)","v":""},{"$f":"IF(OrigTable!A1181=\"\",\"\",TEXT(OrigTable!A1181,\"00\"))","v":""},{"$f":"IF(OrigTable!A1181=\"\",\"\",ScriptText!$E$1&CHAR(10)&ScriptText!$C$1)","v":""},{"$f":"IF(OrigTable!B1181=\"\",\"\",ScriptText!$B$1&CHAR(10)&ScriptText!$D$1)","v":""},{"$f":"IF(OrigTable!B1181=\"\",\"\",TEXT(OrigTable!B1181,\"00\"))","v":""},{"$f":"IF(OrigTable!B1181=\"\",\"\",ScriptText!$E$1&CHAR(10)&ScriptText!C1176)","v":""},{"$f":"IF(OrigTable!C1181=\"\",\"\",ScriptText!$B$1&CHAR(10)&ScriptText!$D$1)","v":""},{"$f":"IF(OrigTable!C1181=\"\",\"\",IF(LEN(OrigTable!C1181)>255,LEFT(OrigTable!C1181,250)&\". . .\",OrigTable!C1181))","v":""},{"$f":"IF(OrigTable!C1181=\"\",\"\",ScriptText!$E$1&CHAR(10)&ScriptText!$C$1)","v":""},{"$f":"IF(OrigTable!D1181=\"\",\"\",ScriptText!$B$1&CHAR(10)&ScriptText!$D$1)","v":""},{"$f":"IF(OrigTable!D1181=\"\",\"\",TEXT(OrigTable!D1181,\"00\"))","v":""},{"$f":"IF(OrigTable!D1181=\"\",\"\",ScriptText!$E$1&CHAR(10)&ScriptText!$C$1)","v":""},{"$f":"IF(OrigTable!E1181=\"\",\"\",ScriptText!$B$1&CHAR(10)&ScriptText!$D$1)","v":""},{"$f":"IF(OrigTable!E1181=\"\",\"\",TEXT(OrigTable!E1181,\"00\"))","v":""},{"$f":"IF(OrigTable!E1181=\"\",\"\",ScriptText!$E$1&CHAR(10)&ScriptText!$C$1)","v":""},{"$f":"IF(OrigTable!F1181=\"\",\"\",ScriptText!$B$1&CHAR(10)&ScriptText!$D$1)","v":""},{"$f":"IF(OrigTable!F1181=\"\",\"\",TEXT(OrigTable!F1181,\"00\"))","v":""},{"$f":"IF(OrigTable!F1181=\"\",\"\",ScriptText!$E$1&CHAR(10)&ScriptText!$C$1)","v":""},{"$f":"IF(OrigTable!G1181=\"\",\"\",ScriptText!$B$1&CHAR(10)&ScriptText!$D$1)","v":""},{"$f":"IF(OrigTable!G1181=\"\",\"\",TEXT(OrigTable!G1181,\"00\"))","v":""},{"$f":"IF(OrigTable!G1181=\"\",\"\",ScriptText!$E$1&CHAR(10)&ScriptText!$C$1)","v":""},0]
["\n\n\n",{"$f":"IF(OrigTable!A1182=\"\",\"\",ScriptText!$B$1&CHAR(10)&ScriptText!$D$1)","v":""},{"$f":"IF(OrigTable!A1182=\"\",\"\",TEXT(OrigTable!A1182,\"00\"))","v":""},{"$f":"IF(OrigTable!A1182=\"\",\"\",ScriptText!$E$1&CHAR(10)&ScriptText!$C$1)","v":""},{"$f":"IF(OrigTable!B1182=\"\",\"\",ScriptText!$B$1&CHAR(10)&ScriptText!$D$1)","v":""},{"$f":"IF(OrigTable!B1182=\"\",\"\",TEXT(OrigTable!B1182,\"00\"))","v":""},{"$f":"IF(OrigTable!B1182=\"\",\"\",ScriptText!$E$1&CHAR(10)&ScriptText!C1177)","v":""},{"$f":"IF(OrigTable!C1182=\"\",\"\",ScriptText!$B$1&CHAR(10)&ScriptText!$D$1)","v":""},{"$f":"IF(OrigTable!C1182=\"\",\"\",IF(LEN(OrigTable!C1182)>255,LEFT(OrigTable!C1182,250)&\". . .\",OrigTable!C1182))","v":""},{"$f":"IF(OrigTable!C1182=\"\",\"\",ScriptText!$E$1&CHAR(10)&ScriptText!$C$1)","v":""},{"$f":"IF(OrigTable!D1182=\"\",\"\",ScriptText!$B$1&CHAR(10)&ScriptText!$D$1)","v":""},{"$f":"IF(OrigTable!D1182=\"\",\"\",TEXT(OrigTable!D1182,\"00\"))","v":""},{"$f":"IF(OrigTable!D1182=\"\",\"\",ScriptText!$E$1&CHAR(10)&ScriptText!$C$1)","v":""},{"$f":"IF(OrigTable!E1182=\"\",\"\",ScriptText!$B$1&CHAR(10)&ScriptText!$D$1)","v":""},{"$f":"IF(OrigTable!E1182=\"\",\"\",TEXT(OrigTable!E1182,\"00\"))","v":""},{"$f":"IF(OrigTable!E1182=\"\",\"\",ScriptText!$E$1&CHAR(10)&ScriptText!$C$1)","v":""},{"$f":"IF(OrigTable!F1182=\"\",\"\",ScriptText!$B$1&CHAR(10)&ScriptText!$D$1)","v":""},{"$f":"IF(OrigTable!F1182=\"\",\"\",TEXT(OrigTable!F1182,\"00\"))","v":""},{"$f":"IF(OrigTable!F1182=\"\",\"\",ScriptText!$E$1&CHAR(10)&ScriptText!$C$1)","v":""},{"$f":"IF(OrigTable!G1182=\"\",\"\",ScriptText!$B$1&CHAR(10)&ScriptText!$D$1)","v":""},{"$f":"IF(OrigTable!G1182=\"\",\"\",TEXT(OrigTable!G1182,\"00\"))","v":""},{"$f":"IF(OrigTable!G1182=\"\",\"\",ScriptText!$E$1&CHAR(10)&ScriptText!$C$1)","v":""},0]
["\n\n\n",{"$f":"IF(OrigTable!A1183=\"\",\"\",ScriptText!$B$1&CHAR(10)&ScriptText!$D$1)","v":""},{"$f":"IF(OrigTable!A1183=\"\",\"\",TEXT(OrigTable!A1183,\"00\"))","v":""},{"$f":"IF(OrigTable!A1183=\"\",\"\",ScriptText!$E$1&CHAR(10)&ScriptText!$C$1)","v":""},{"$f":"IF(OrigTable!B1183=\"\",\"\",ScriptText!$B$1&CHAR(10)&ScriptText!$D$1)","v":""},{"$f":"IF(OrigTable!B1183=\"\",\"\",TEXT(OrigTable!B1183,\"00\"))","v":""},{"$f":"IF(OrigTable!B1183=\"\",\"\",ScriptText!$E$1&CHAR(10)&ScriptText!C1178)","v":""},{"$f":"IF(OrigTable!C1183=\"\",\"\",ScriptText!$B$1&CHAR(10)&ScriptText!$D$1)","v":""},{"$f":"IF(OrigTable!C1183=\"\",\"\",IF(LEN(OrigTable!C1183)>255,LEFT(OrigTable!C1183,250)&\". . .\",OrigTable!C1183))","v":""},{"$f":"IF(OrigTable!C1183=\"\",\"\",ScriptText!$E$1&CHAR(10)&ScriptText!$C$1)","v":""},{"$f":"IF(OrigTable!D1183=\"\",\"\",ScriptText!$B$1&CHAR(10)&ScriptText!$D$1)","v":""},{"$f":"IF(OrigTable!D1183=\"\",\"\",TEXT(OrigTable!D1183,\"00\"))","v":""},{"$f":"IF(OrigTable!D1183=\"\",\"\",ScriptText!$E$1&CHAR(10)&ScriptText!$C$1)","v":""},{"$f":"IF(OrigTable!E1183=\"\",\"\",ScriptText!$B$1&CHAR(10)&ScriptText!$D$1)","v":""},{"$f":"IF(OrigTable!E1183=\"\",\"\",TEXT(OrigTable!E1183,\"00\"))","v":""},{"$f":"IF(OrigTable!E1183=\"\",\"\",ScriptText!$E$1&CHAR(10)&ScriptText!$C$1)","v":""},{"$f":"IF(OrigTable!F1183=\"\",\"\",ScriptText!$B$1&CHAR(10)&ScriptText!$D$1)","v":""},{"$f":"IF(OrigTable!F1183=\"\",\"\",TEXT(OrigTable!F1183,\"00\"))","v":""},{"$f":"IF(OrigTable!F1183=\"\",\"\",ScriptText!$E$1&CHAR(10)&ScriptText!$C$1)","v":""},{"$f":"IF(OrigTable!G1183=\"\",\"\",ScriptText!$B$1&CHAR(10)&ScriptText!$D$1)","v":""},{"$f":"IF(OrigTable!G1183=\"\",\"\",TEXT(OrigTable!G1183,\"00\"))","v":""},{"$f":"IF(OrigTable!G1183=\"\",\"\",ScriptText!$E$1&CHAR(10)&ScriptText!$C$1)","v":""},0]
["\n\n\n",{"$f":"IF(OrigTable!A1184=\"\",\"\",ScriptText!$B$1&CHAR(10)&ScriptText!$D$1)","v":""},{"$f":"IF(OrigTable!A1184=\"\",\"\",TEXT(OrigTable!A1184,\"00\"))","v":""},{"$f":"IF(OrigTable!A1184=\"\",\"\",ScriptText!$E$1&CHAR(10)&ScriptText!$C$1)","v":""},{"$f":"IF(OrigTable!B1184=\"\",\"\",ScriptText!$B$1&CHAR(10)&ScriptText!$D$1)","v":""},{"$f":"IF(OrigTable!B1184=\"\",\"\",TEXT(OrigTable!B1184,\"00\"))","v":""},{"$f":"IF(OrigTable!B1184=\"\",\"\",ScriptText!$E$1&CHAR(10)&ScriptText!C1179)","v":""},{"$f":"IF(OrigTable!C1184=\"\",\"\",ScriptText!$B$1&CHAR(10)&ScriptText!$D$1)","v":""},{"$f":"IF(OrigTable!C1184=\"\",\"\",IF(LEN(OrigTable!C1184)>255,LEFT(OrigTable!C1184,250)&\". . .\",OrigTable!C1184))","v":""},{"$f":"IF(OrigTable!C1184=\"\",\"\",ScriptText!$E$1&CHAR(10)&ScriptText!$C$1)","v":""},{"$f":"IF(OrigTable!D1184=\"\",\"\",ScriptText!$B$1&CHAR(10)&ScriptText!$D$1)","v":""},{"$f":"IF(OrigTable!D1184=\"\",\"\",TEXT(OrigTable!D1184,\"00\"))","v":""},{"$f":"IF(OrigTable!D1184=\"\",\"\",ScriptText!$E$1&CHAR(10)&ScriptText!$C$1)","v":""},{"$f":"IF(OrigTable!E1184=\"\",\"\",ScriptText!$B$1&CHAR(10)&ScriptText!$D$1)","v":""},{"$f":"IF(OrigTable!E1184=\"\",\"\",TEXT(OrigTable!E1184,\"00\"))","v":""},{"$f":"IF(OrigTable!E1184=\"\",\"\",ScriptText!$E$1&CHAR(10)&ScriptText!$C$1)","v":""},{"$f":"IF(OrigTable!F1184=\"\",\"\",ScriptText!$B$1&CHAR(10)&ScriptText!$D$1)","v":""},{"$f":"IF(OrigTable!F1184=\"\",\"\",TEXT(OrigTable!F1184,\"00\"))","v":""},{"$f":"IF(OrigTable!F1184=\"\",\"\",ScriptText!$E$1&CHAR(10)&ScriptText!$C$1)","v":""},{"$f":"IF(OrigTable!G1184=\"\",\"\",ScriptText!$B$1&CHAR(10)&ScriptText!$D$1)","v":""},{"$f":"IF(OrigTable!G1184=\"\",\"\",TEXT(OrigTable!G1184,\"00\"))","v":""},{"$f":"IF(OrigTable!G1184=\"\",\"\",ScriptText!$E$1&CHAR(10)&ScriptText!$C$1)","v":""},0]
["\n\n\n",{"$f":"IF(OrigTable!A1185=\"\",\"\",ScriptText!$B$1&CHAR(10)&ScriptText!$D$1)","v":""},{"$f":"IF(OrigTable!A1185=\"\",\"\",TEXT(OrigTable!A1185,\"00\"))","v":""},{"$f":"IF(OrigTable!A1185=\"\",\"\",ScriptText!$E$1&CHAR(10)&ScriptText!$C$1)","v":""},{"$f":"IF(OrigTable!B1185=\"\",\"\",ScriptText!$B$1&CHAR(10)&ScriptText!$D$1)","v":""},{"$f":"IF(OrigTable!B1185=\"\",\"\",TEXT(OrigTable!B1185,\"00\"))","v":""},{"$f":"IF(OrigTable!B1185=\"\",\"\",ScriptText!$E$1&CHAR(10)&ScriptText!C1180)","v":""},{"$f":"IF(OrigTable!C1185=\"\",\"\",ScriptText!$B$1&CHAR(10)&ScriptText!$D$1)","v":""},{"$f":"IF(OrigTable!C1185=\"\",\"\",IF(LEN(OrigTable!C1185)>255,LEFT(OrigTable!C1185,250)&\". . .\",OrigTable!C1185))","v":""},{"$f":"IF(OrigTable!C1185=\"\",\"\",ScriptText!$E$1&CHAR(10)&ScriptText!$C$1)","v":""},{"$f":"IF(OrigTable!D1185=\"\",\"\",ScriptText!$B$1&CHAR(10)&ScriptText!$D$1)","v":""},{"$f":"IF(OrigTable!D1185=\"\",\"\",TEXT(OrigTable!D1185,\"00\"))","v":""},{"$f":"IF(OrigTable!D1185=\"\",\"\",ScriptText!$E$1&CHAR(10)&ScriptText!$C$1)","v":""},{"$f":"IF(OrigTable!E1185=\"\",\"\",ScriptText!$B$1&CHAR(10)&ScriptText!$D$1)","v":""},{"$f":"IF(OrigTable!E1185=\"\",\"\",TEXT(OrigTable!E1185,\"00\"))","v":""},{"$f":"IF(OrigTable!E1185=\"\",\"\",ScriptText!$E$1&CHAR(10)&ScriptText!$C$1)","v":""},{"$f":"IF(OrigTable!F1185=\"\",\"\",ScriptText!$B$1&CHAR(10)&ScriptText!$D$1)","v":""},{"$f":"IF(OrigTable!F1185=\"\",\"\",TEXT(OrigTable!F1185,\"00\"))","v":""},{"$f":"IF(OrigTable!F1185=\"\",\"\",ScriptText!$E$1&CHAR(10)&ScriptText!$C$1)","v":""},{"$f":"IF(OrigTable!G1185=\"\",\"\",ScriptText!$B$1&CHAR(10)&ScriptText!$D$1)","v":""},{"$f":"IF(OrigTable!G1185=\"\",\"\",TEXT(OrigTable!G1185,\"00\"))","v":""},{"$f":"IF(OrigTable!G1185=\"\",\"\",ScriptText!$E$1&CHAR(10)&ScriptText!$C$1)","v":""},0]
["\n\n\n",{"$f":"IF(OrigTable!A1186=\"\",\"\",ScriptText!$B$1&CHAR(10)&ScriptText!$D$1)","v":""},{"$f":"IF(OrigTable!A1186=\"\",\"\",TEXT(OrigTable!A1186,\"00\"))","v":""},{"$f":"IF(OrigTable!A1186=\"\",\"\",ScriptText!$E$1&CHAR(10)&ScriptText!$C$1)","v":""},{"$f":"IF(OrigTable!B1186=\"\",\"\",ScriptText!$B$1&CHAR(10)&ScriptText!$D$1)","v":""},{"$f":"IF(OrigTable!B1186=\"\",\"\",TEXT(OrigTable!B1186,\"00\"))","v":""},{"$f":"IF(OrigTable!B1186=\"\",\"\",ScriptText!$E$1&CHAR(10)&ScriptText!C1181)","v":""},{"$f":"IF(OrigTable!C1186=\"\",\"\",ScriptText!$B$1&CHAR(10)&ScriptText!$D$1)","v":""},{"$f":"IF(OrigTable!C1186=\"\",\"\",IF(LEN(OrigTable!C1186)>255,LEFT(OrigTable!C1186,250)&\". . .\",OrigTable!C1186))","v":""},{"$f":"IF(OrigTable!C1186=\"\",\"\",ScriptText!$E$1&CHAR(10)&ScriptText!$C$1)","v":""},{"$f":"IF(OrigTable!D1186=\"\",\"\",ScriptText!$B$1&CHAR(10)&ScriptText!$D$1)","v":""},{"$f":"IF(OrigTable!D1186=\"\",\"\",TEXT(OrigTable!D1186,\"00\"))","v":""},{"$f":"IF(OrigTable!D1186=\"\",\"\",ScriptText!$E$1&CHAR(10)&ScriptText!$C$1)","v":""},{"$f":"IF(OrigTable!E1186=\"\",\"\",ScriptText!$B$1&CHAR(10)&ScriptText!$D$1)","v":""},{"$f":"IF(OrigTable!E1186=\"\",\"\",TEXT(OrigTable!E1186,\"00\"))","v":""},{"$f":"IF(OrigTable!E1186=\"\",\"\",ScriptText!$E$1&CHAR(10)&ScriptText!$C$1)","v":""},{"$f":"IF(OrigTable!F1186=\"\",\"\",ScriptText!$B$1&CHAR(10)&ScriptText!$D$1)","v":""},{"$f":"IF(OrigTable!F1186=\"\",\"\",TEXT(OrigTable!F1186,\"00\"))","v":""},{"$f":"IF(OrigTable!F1186=\"\",\"\",ScriptText!$E$1&CHAR(10)&ScriptText!$C$1)","v":""},{"$f":"IF(OrigTable!G1186=\"\",\"\",ScriptText!$B$1&CHAR(10)&ScriptText!$D$1)","v":""},{"$f":"IF(OrigTable!G1186=\"\",\"\",TEXT(OrigTable!G1186,\"00\"))","v":""},{"$f":"IF(OrigTable!G1186=\"\",\"\",ScriptText!$E$1&CHAR(10)&ScriptText!$C$1)","v":""},0]
["\n\n\n",{"$f":"IF(OrigTable!A1187=\"\",\"\",ScriptText!$B$1&CHAR(10)&ScriptText!$D$1)","v":""},{"$f":"IF(OrigTable!A1187=\"\",\"\",TEXT(OrigTable!A1187,\"00\"))","v":""},{"$f":"IF(OrigTable!A1187=\"\",\"\",ScriptText!$E$1&CHAR(10)&ScriptText!$C$1)","v":""},{"$f":"IF(OrigTable!B1187=\"\",\"\",ScriptText!$B$1&CHAR(10)&ScriptText!$D$1)","v":""},{"$f":"IF(OrigTable!B1187=\"\",\"\",TEXT(OrigTable!B1187,\"00\"))","v":""},{"$f":"IF(OrigTable!B1187=\"\",\"\",ScriptText!$E$1&CHAR(10)&ScriptText!C1182)","v":""},{"$f":"IF(OrigTable!C1187=\"\",\"\",ScriptText!$B$1&CHAR(10)&ScriptText!$D$1)","v":""},{"$f":"IF(OrigTable!C1187=\"\",\"\",IF(LEN(OrigTable!C1187)>255,LEFT(OrigTable!C1187,250)&\". . .\",OrigTable!C1187))","v":""},{"$f":"IF(OrigTable!C1187=\"\",\"\",ScriptText!$E$1&CHAR(10)&ScriptText!$C$1)","v":""},{"$f":"IF(OrigTable!D1187=\"\",\"\",ScriptText!$B$1&CHAR(10)&ScriptText!$D$1)","v":""},{"$f":"IF(OrigTable!D1187=\"\",\"\",TEXT(OrigTable!D1187,\"00\"))","v":""},{"$f":"IF(OrigTable!D1187=\"\",\"\",ScriptText!$E$1&CHAR(10)&ScriptText!$C$1)","v":""},{"$f":"IF(OrigTable!E1187=\"\",\"\",ScriptText!$B$1&CHAR(10)&ScriptText!$D$1)","v":""},{"$f":"IF(OrigTable!E1187=\"\",\"\",TEXT(OrigTable!E1187,\"00\"))","v":""},{"$f":"IF(OrigTable!E1187=\"\",\"\",ScriptText!$E$1&CHAR(10)&ScriptText!$C$1)","v":""},{"$f":"IF(OrigTable!F1187=\"\",\"\",ScriptText!$B$1&CHAR(10)&ScriptText!$D$1)","v":""},{"$f":"IF(OrigTable!F1187=\"\",\"\",TEXT(OrigTable!F1187,\"00\"))","v":""},{"$f":"IF(OrigTable!F1187=\"\",\"\",ScriptText!$E$1&CHAR(10)&ScriptText!$C$1)","v":""},{"$f":"IF(OrigTable!G1187=\"\",\"\",ScriptText!$B$1&CHAR(10)&ScriptText!$D$1)","v":""},{"$f":"IF(OrigTable!G1187=\"\",\"\",TEXT(OrigTable!G1187,\"00\"))","v":""},{"$f":"IF(OrigTable!G1187=\"\",\"\",ScriptText!$E$1&CHAR(10)&ScriptText!$C$1)","v":""},0]
["\n\n\n",{"$f":"IF(OrigTable!A1188=\"\",\"\",ScriptText!$B$1&CHAR(10)&ScriptText!$D$1)","v":""},{"$f":"IF(OrigTable!A1188=\"\",\"\",TEXT(OrigTable!A1188,\"00\"))","v":""},{"$f":"IF(OrigTable!A1188=\"\",\"\",ScriptText!$E$1&CHAR(10)&ScriptText!$C$1)","v":""},{"$f":"IF(OrigTable!B1188=\"\",\"\",ScriptText!$B$1&CHAR(10)&ScriptText!$D$1)","v":""},{"$f":"IF(OrigTable!B1188=\"\",\"\",TEXT(OrigTable!B1188,\"00\"))","v":""},{"$f":"IF(OrigTable!B1188=\"\",\"\",ScriptText!$E$1&CHAR(10)&ScriptText!C1183)","v":""},{"$f":"IF(OrigTable!C1188=\"\",\"\",ScriptText!$B$1&CHAR(10)&ScriptText!$D$1)","v":""},{"$f":"IF(OrigTable!C1188=\"\",\"\",IF(LEN(OrigTable!C1188)>255,LEFT(OrigTable!C1188,250)&\". . .\",OrigTable!C1188))","v":""},{"$f":"IF(OrigTable!C1188=\"\",\"\",ScriptText!$E$1&CHAR(10)&ScriptText!$C$1)","v":""},{"$f":"IF(OrigTable!D1188=\"\",\"\",ScriptText!$B$1&CHAR(10)&ScriptText!$D$1)","v":""},{"$f":"IF(OrigTable!D1188=\"\",\"\",TEXT(OrigTable!D1188,\"00\"))","v":""},{"$f":"IF(OrigTable!D1188=\"\",\"\",ScriptText!$E$1&CHAR(10)&ScriptText!$C$1)","v":""},{"$f":"IF(OrigTable!E1188=\"\",\"\",ScriptText!$B$1&CHAR(10)&ScriptText!$D$1)","v":""},{"$f":"IF(OrigTable!E1188=\"\",\"\",TEXT(OrigTable!E1188,\"00\"))","v":""},{"$f":"IF(OrigTable!E1188=\"\",\"\",ScriptText!$E$1&CHAR(10)&ScriptText!$C$1)","v":""},{"$f":"IF(OrigTable!F1188=\"\",\"\",ScriptText!$B$1&CHAR(10)&ScriptText!$D$1)","v":""},{"$f":"IF(OrigTable!F1188=\"\",\"\",TEXT(OrigTable!F1188,\"00\"))","v":""},{"$f":"IF(OrigTable!F1188=\"\",\"\",ScriptText!$E$1&CHAR(10)&ScriptText!$C$1)","v":""},{"$f":"IF(OrigTable!G1188=\"\",\"\",ScriptText!$B$1&CHAR(10)&ScriptText!$D$1)","v":""},{"$f":"IF(OrigTable!G1188=\"\",\"\",TEXT(OrigTable!G1188,\"00\"))","v":""},{"$f":"IF(OrigTable!G1188=\"\",\"\",ScriptText!$E$1&CHAR(10)&ScriptText!$C$1)","v":""},0]
["\n\n\n",{"$f":"IF(OrigTable!A1189=\"\",\"\",ScriptText!$B$1&CHAR(10)&ScriptText!$D$1)","v":""},{"$f":"IF(OrigTable!A1189=\"\",\"\",TEXT(OrigTable!A1189,\"00\"))","v":""},{"$f":"IF(OrigTable!A1189=\"\",\"\",ScriptText!$E$1&CHAR(10)&ScriptText!$C$1)","v":""},{"$f":"IF(OrigTable!B1189=\"\",\"\",ScriptText!$B$1&CHAR(10)&ScriptText!$D$1)","v":""},{"$f":"IF(OrigTable!B1189=\"\",\"\",TEXT(OrigTable!B1189,\"00\"))","v":""},{"$f":"IF(OrigTable!B1189=\"\",\"\",ScriptText!$E$1&CHAR(10)&ScriptText!C1184)","v":""},{"$f":"IF(OrigTable!C1189=\"\",\"\",ScriptText!$B$1&CHAR(10)&ScriptText!$D$1)","v":""},{"$f":"IF(OrigTable!C1189=\"\",\"\",IF(LEN(OrigTable!C1189)>255,LEFT(OrigTable!C1189,250)&\". . .\",OrigTable!C1189))","v":""},{"$f":"IF(OrigTable!C1189=\"\",\"\",ScriptText!$E$1&CHAR(10)&ScriptText!$C$1)","v":""},{"$f":"IF(OrigTable!D1189=\"\",\"\",ScriptText!$B$1&CHAR(10)&ScriptText!$D$1)","v":""},{"$f":"IF(OrigTable!D1189=\"\",\"\",TEXT(OrigTable!D1189,\"00\"))","v":""},{"$f":"IF(OrigTable!D1189=\"\",\"\",ScriptText!$E$1&CHAR(10)&ScriptText!$C$1)","v":""},{"$f":"IF(OrigTable!E1189=\"\",\"\",ScriptText!$B$1&CHAR(10)&ScriptText!$D$1)","v":""},{"$f":"IF(OrigTable!E1189=\"\",\"\",TEXT(OrigTable!E1189,\"00\"))","v":""},{"$f":"IF(OrigTable!E1189=\"\",\"\",ScriptText!$E$1&CHAR(10)&ScriptText!$C$1)","v":""},{"$f":"IF(OrigTable!F1189=\"\",\"\",ScriptText!$B$1&CHAR(10)&ScriptText!$D$1)","v":""},{"$f":"IF(OrigTable!F1189=\"\",\"\",TEXT(OrigTable!F1189,\"00\"))","v":""},{"$f":"IF(OrigTable!F1189=\"\",\"\",ScriptText!$E$1&CHAR(10)&ScriptText!$C$1)","v":""},{"$f":"IF(OrigTable!G1189=\"\",\"\",ScriptText!$B$1&CHAR(10)&ScriptText!$D$1)","v":""},{"$f":"IF(OrigTable!G1189=\"\",\"\",TEXT(OrigTable!G1189,\"00\"))","v":""},{"$f":"IF(OrigTable!G1189=\"\",\"\",ScriptText!$E$1&CHAR(10)&ScriptText!$C$1)","v":""},0]
["\n\n\n",{"$f":"IF(OrigTable!A1190=\"\",\"\",ScriptText!$B$1&CHAR(10)&ScriptText!$D$1)","v":""},{"$f":"IF(OrigTable!A1190=\"\",\"\",TEXT(OrigTable!A1190,\"00\"))","v":""},{"$f":"IF(OrigTable!A1190=\"\",\"\",ScriptText!$E$1&CHAR(10)&ScriptText!$C$1)","v":""},{"$f":"IF(OrigTable!B1190=\"\",\"\",ScriptText!$B$1&CHAR(10)&ScriptText!$D$1)","v":""},{"$f":"IF(OrigTable!B1190=\"\",\"\",TEXT(OrigTable!B1190,\"00\"))","v":""},{"$f":"IF(OrigTable!B1190=\"\",\"\",ScriptText!$E$1&CHAR(10)&ScriptText!C1185)","v":""},{"$f":"IF(OrigTable!C1190=\"\",\"\",ScriptText!$B$1&CHAR(10)&ScriptText!$D$1)","v":""},{"$f":"IF(OrigTable!C1190=\"\",\"\",IF(LEN(OrigTable!C1190)>255,LEFT(OrigTable!C1190,250)&\". . .\",OrigTable!C1190))","v":""},{"$f":"IF(OrigTable!C1190=\"\",\"\",ScriptText!$E$1&CHAR(10)&ScriptText!$C$1)","v":""},{"$f":"IF(OrigTable!D1190=\"\",\"\",ScriptText!$B$1&CHAR(10)&ScriptText!$D$1)","v":""},{"$f":"IF(OrigTable!D1190=\"\",\"\",TEXT(OrigTable!D1190,\"00\"))","v":""},{"$f":"IF(OrigTable!D1190=\"\",\"\",ScriptText!$E$1&CHAR(10)&ScriptText!$C$1)","v":""},{"$f":"IF(OrigTable!E1190=\"\",\"\",ScriptText!$B$1&CHAR(10)&ScriptText!$D$1)","v":""},{"$f":"IF(OrigTable!E1190=\"\",\"\",TEXT(OrigTable!E1190,\"00\"))","v":""},{"$f":"IF(OrigTable!E1190=\"\",\"\",ScriptText!$E$1&CHAR(10)&ScriptText!$C$1)","v":""},{"$f":"IF(OrigTable!F1190=\"\",\"\",ScriptText!$B$1&CHAR(10)&ScriptText!$D$1)","v":""},{"$f":"IF(OrigTable!F1190=\"\",\"\",TEXT(OrigTable!F1190,\"00\"))","v":""},{"$f":"IF(OrigTable!F1190=\"\",\"\",ScriptText!$E$1&CHAR(10)&ScriptText!$C$1)","v":""},{"$f":"IF(OrigTable!G1190=\"\",\"\",ScriptText!$B$1&CHAR(10)&ScriptText!$D$1)","v":""},{"$f":"IF(OrigTable!G1190=\"\",\"\",TEXT(OrigTable!G1190,\"00\"))","v":""},{"$f":"IF(OrigTable!G1190=\"\",\"\",ScriptText!$E$1&CHAR(10)&ScriptText!$C$1)","v":""},0]
["\n\n\n",{"$f":"IF(OrigTable!A1191=\"\",\"\",ScriptText!$B$1&CHAR(10)&ScriptText!$D$1)","v":""},{"$f":"IF(OrigTable!A1191=\"\",\"\",TEXT(OrigTable!A1191,\"00\"))","v":""},{"$f":"IF(OrigTable!A1191=\"\",\"\",ScriptText!$E$1&CHAR(10)&ScriptText!$C$1)","v":""},{"$f":"IF(OrigTable!B1191=\"\",\"\",ScriptText!$B$1&CHAR(10)&ScriptText!$D$1)","v":""},{"$f":"IF(OrigTable!B1191=\"\",\"\",TEXT(OrigTable!B1191,\"00\"))","v":""},{"$f":"IF(OrigTable!B1191=\"\",\"\",ScriptText!$E$1&CHAR(10)&ScriptText!C1186)","v":""},{"$f":"IF(OrigTable!C1191=\"\",\"\",ScriptText!$B$1&CHAR(10)&ScriptText!$D$1)","v":""},{"$f":"IF(OrigTable!C1191=\"\",\"\",IF(LEN(OrigTable!C1191)>255,LEFT(OrigTable!C1191,250)&\". . .\",OrigTable!C1191))","v":""},{"$f":"IF(OrigTable!C1191=\"\",\"\",ScriptText!$E$1&CHAR(10)&ScriptText!$C$1)","v":""},{"$f":"IF(OrigTable!D1191=\"\",\"\",ScriptText!$B$1&CHAR(10)&ScriptText!$D$1)","v":""},{"$f":"IF(OrigTable!D1191=\"\",\"\",TEXT(OrigTable!D1191,\"00\"))","v":""},{"$f":"IF(OrigTable!D1191=\"\",\"\",ScriptText!$E$1&CHAR(10)&ScriptText!$C$1)","v":""},{"$f":"IF(OrigTable!E1191=\"\",\"\",ScriptText!$B$1&CHAR(10)&ScriptText!$D$1)","v":""},{"$f":"IF(OrigTable!E1191=\"\",\"\",TEXT(OrigTable!E1191,\"00\"))","v":""},{"$f":"IF(OrigTable!E1191=\"\",\"\",ScriptText!$E$1&CHAR(10)&ScriptText!$C$1)","v":""},{"$f":"IF(OrigTable!F1191=\"\",\"\",ScriptText!$B$1&CHAR(10)&ScriptText!$D$1)","v":""},{"$f":"IF(OrigTable!F1191=\"\",\"\",TEXT(OrigTable!F1191,\"00\"))","v":""},{"$f":"IF(OrigTable!F1191=\"\",\"\",ScriptText!$E$1&CHAR(10)&ScriptText!$C$1)","v":""},{"$f":"IF(OrigTable!G1191=\"\",\"\",ScriptText!$B$1&CHAR(10)&ScriptText!$D$1)","v":""},{"$f":"IF(OrigTable!G1191=\"\",\"\",TEXT(OrigTable!G1191,\"00\"))","v":""},{"$f":"IF(OrigTable!G1191=\"\",\"\",ScriptText!$E$1&CHAR(10)&ScriptText!$C$1)","v":""},0]
["\n\n\n",{"$f":"IF(OrigTable!A1192=\"\",\"\",ScriptText!$B$1&CHAR(10)&ScriptText!$D$1)","v":""},{"$f":"IF(OrigTable!A1192=\"\",\"\",TEXT(OrigTable!A1192,\"00\"))","v":""},{"$f":"IF(OrigTable!A1192=\"\",\"\",ScriptText!$E$1&CHAR(10)&ScriptText!$C$1)","v":""},{"$f":"IF(OrigTable!B1192=\"\",\"\",ScriptText!$B$1&CHAR(10)&ScriptText!$D$1)","v":""},{"$f":"IF(OrigTable!B1192=\"\",\"\",TEXT(OrigTable!B1192,\"00\"))","v":""},{"$f":"IF(OrigTable!B1192=\"\",\"\",ScriptText!$E$1&CHAR(10)&ScriptText!C1187)","v":""},{"$f":"IF(OrigTable!C1192=\"\",\"\",ScriptText!$B$1&CHAR(10)&ScriptText!$D$1)","v":""},{"$f":"IF(OrigTable!C1192=\"\",\"\",IF(LEN(OrigTable!C1192)>255,LEFT(OrigTable!C1192,250)&\". . .\",OrigTable!C1192))","v":""},{"$f":"IF(OrigTable!C1192=\"\",\"\",ScriptText!$E$1&CHAR(10)&ScriptText!$C$1)","v":""},{"$f":"IF(OrigTable!D1192=\"\",\"\",ScriptText!$B$1&CHAR(10)&ScriptText!$D$1)","v":""},{"$f":"IF(OrigTable!D1192=\"\",\"\",TEXT(OrigTable!D1192,\"00\"))","v":""},{"$f":"IF(OrigTable!D1192=\"\",\"\",ScriptText!$E$1&CHAR(10)&ScriptText!$C$1)","v":""},{"$f":"IF(OrigTable!E1192=\"\",\"\",ScriptText!$B$1&CHAR(10)&ScriptText!$D$1)","v":""},{"$f":"IF(OrigTable!E1192=\"\",\"\",TEXT(OrigTable!E1192,\"00\"))","v":""},{"$f":"IF(OrigTable!E1192=\"\",\"\",ScriptText!$E$1&CHAR(10)&ScriptText!$C$1)","v":""},{"$f":"IF(OrigTable!F1192=\"\",\"\",ScriptText!$B$1&CHAR(10)&ScriptText!$D$1)","v":""},{"$f":"IF(OrigTable!F1192=\"\",\"\",TEXT(OrigTable!F1192,\"00\"))","v":""},{"$f":"IF(OrigTable!F1192=\"\",\"\",ScriptText!$E$1&CHAR(10)&ScriptText!$C$1)","v":""},{"$f":"IF(OrigTable!G1192=\"\",\"\",ScriptText!$B$1&CHAR(10)&ScriptText!$D$1)","v":""},{"$f":"IF(OrigTable!G1192=\"\",\"\",TEXT(OrigTable!G1192,\"00\"))","v":""},{"$f":"IF(OrigTable!G1192=\"\",\"\",ScriptText!$E$1&CHAR(10)&ScriptText!$C$1)","v":""},0]
["\n\n\n",{"$f":"IF(OrigTable!A1193=\"\",\"\",ScriptText!$B$1&CHAR(10)&ScriptText!$D$1)","v":""},{"$f":"IF(OrigTable!A1193=\"\",\"\",TEXT(OrigTable!A1193,\"00\"))","v":""},{"$f":"IF(OrigTable!A1193=\"\",\"\",ScriptText!$E$1&CHAR(10)&ScriptText!$C$1)","v":""},{"$f":"IF(OrigTable!B1193=\"\",\"\",ScriptText!$B$1&CHAR(10)&ScriptText!$D$1)","v":""},{"$f":"IF(OrigTable!B1193=\"\",\"\",TEXT(OrigTable!B1193,\"00\"))","v":""},{"$f":"IF(OrigTable!B1193=\"\",\"\",ScriptText!$E$1&CHAR(10)&ScriptText!C1188)","v":""},{"$f":"IF(OrigTable!C1193=\"\",\"\",ScriptText!$B$1&CHAR(10)&ScriptText!$D$1)","v":""},{"$f":"IF(OrigTable!C1193=\"\",\"\",IF(LEN(OrigTable!C1193)>255,LEFT(OrigTable!C1193,250)&\". . .\",OrigTable!C1193))","v":""},{"$f":"IF(OrigTable!C1193=\"\",\"\",ScriptText!$E$1&CHAR(10)&ScriptText!$C$1)","v":""},{"$f":"IF(OrigTable!D1193=\"\",\"\",ScriptText!$B$1&CHAR(10)&ScriptText!$D$1)","v":""},{"$f":"IF(OrigTable!D1193=\"\",\"\",TEXT(OrigTable!D1193,\"00\"))","v":""},{"$f":"IF(OrigTable!D1193=\"\",\"\",ScriptText!$E$1&CHAR(10)&ScriptText!$C$1)","v":""},{"$f":"IF(OrigTable!E1193=\"\",\"\",ScriptText!$B$1&CHAR(10)&ScriptText!$D$1)","v":""},{"$f":"IF(OrigTable!E1193=\"\",\"\",TEXT(OrigTable!E1193,\"00\"))","v":""},{"$f":"IF(OrigTable!E1193=\"\",\"\",ScriptText!$E$1&CHAR(10)&ScriptText!$C$1)","v":""},{"$f":"IF(OrigTable!F1193=\"\",\"\",ScriptText!$B$1&CHAR(10)&ScriptText!$D$1)","v":""},{"$f":"IF(OrigTable!F1193=\"\",\"\",TEXT(OrigTable!F1193,\"00\"))","v":""},{"$f":"IF(OrigTable!F1193=\"\",\"\",ScriptText!$E$1&CHAR(10)&ScriptText!$C$1)","v":""},{"$f":"IF(OrigTable!G1193=\"\",\"\",ScriptText!$B$1&CHAR(10)&ScriptText!$D$1)","v":""},{"$f":"IF(OrigTable!G1193=\"\",\"\",TEXT(OrigTable!G1193,\"00\"))","v":""},{"$f":"IF(OrigTable!G1193=\"\",\"\",ScriptText!$E$1&CHAR(10)&ScriptText!$C$1)","v":""},0]
["\n\n\n",{"$f":"IF(OrigTable!A1194=\"\",\"\",ScriptText!$B$1&CHAR(10)&ScriptText!$D$1)","v":""},{"$f":"IF(OrigTable!A1194=\"\",\"\",TEXT(OrigTable!A1194,\"00\"))","v":""},{"$f":"IF(OrigTable!A1194=\"\",\"\",ScriptText!$E$1&CHAR(10)&ScriptText!$C$1)","v":""},{"$f":"IF(OrigTable!B1194=\"\",\"\",ScriptText!$B$1&CHAR(10)&ScriptText!$D$1)","v":""},{"$f":"IF(OrigTable!B1194=\"\",\"\",TEXT(OrigTable!B1194,\"00\"))","v":""},{"$f":"IF(OrigTable!B1194=\"\",\"\",ScriptText!$E$1&CHAR(10)&ScriptText!C1189)","v":""},{"$f":"IF(OrigTable!C1194=\"\",\"\",ScriptText!$B$1&CHAR(10)&ScriptText!$D$1)","v":""},{"$f":"IF(OrigTable!C1194=\"\",\"\",IF(LEN(OrigTable!C1194)>255,LEFT(OrigTable!C1194,250)&\". . .\",OrigTable!C1194))","v":""},{"$f":"IF(OrigTable!C1194=\"\",\"\",ScriptText!$E$1&CHAR(10)&ScriptText!$C$1)","v":""},{"$f":"IF(OrigTable!D1194=\"\",\"\",ScriptText!$B$1&CHAR(10)&ScriptText!$D$1)","v":""},{"$f":"IF(OrigTable!D1194=\"\",\"\",TEXT(OrigTable!D1194,\"00\"))","v":""},{"$f":"IF(OrigTable!D1194=\"\",\"\",ScriptText!$E$1&CHAR(10)&ScriptText!$C$1)","v":""},{"$f":"IF(OrigTable!E1194=\"\",\"\",ScriptText!$B$1&CHAR(10)&ScriptText!$D$1)","v":""},{"$f":"IF(OrigTable!E1194=\"\",\"\",TEXT(OrigTable!E1194,\"00\"))","v":""},{"$f":"IF(OrigTable!E1194=\"\",\"\",ScriptText!$E$1&CHAR(10)&ScriptText!$C$1)","v":""},{"$f":"IF(OrigTable!F1194=\"\",\"\",ScriptText!$B$1&CHAR(10)&ScriptText!$D$1)","v":""},{"$f":"IF(OrigTable!F1194=\"\",\"\",TEXT(OrigTable!F1194,\"00\"))","v":""},{"$f":"IF(OrigTable!F1194=\"\",\"\",ScriptText!$E$1&CHAR(10)&ScriptText!$C$1)","v":""},{"$f":"IF(OrigTable!G1194=\"\",\"\",ScriptText!$B$1&CHAR(10)&ScriptText!$D$1)","v":""},{"$f":"IF(OrigTable!G1194=\"\",\"\",TEXT(OrigTable!G1194,\"00\"))","v":""},{"$f":"IF(OrigTable!G1194=\"\",\"\",ScriptText!$E$1&CHAR(10)&ScriptText!$C$1)","v":""},0]
["\n\n\n",{"$f":"IF(OrigTable!A1195=\"\",\"\",ScriptText!$B$1&CHAR(10)&ScriptText!$D$1)","v":""},{"$f":"IF(OrigTable!A1195=\"\",\"\",TEXT(OrigTable!A1195,\"00\"))","v":""},{"$f":"IF(OrigTable!A1195=\"\",\"\",ScriptText!$E$1&CHAR(10)&ScriptText!$C$1)","v":""},{"$f":"IF(OrigTable!B1195=\"\",\"\",ScriptText!$B$1&CHAR(10)&ScriptText!$D$1)","v":""},{"$f":"IF(OrigTable!B1195=\"\",\"\",TEXT(OrigTable!B1195,\"00\"))","v":""},{"$f":"IF(OrigTable!B1195=\"\",\"\",ScriptText!$E$1&CHAR(10)&ScriptText!C1190)","v":""},{"$f":"IF(OrigTable!C1195=\"\",\"\",ScriptText!$B$1&CHAR(10)&ScriptText!$D$1)","v":""},{"$f":"IF(OrigTable!C1195=\"\",\"\",IF(LEN(OrigTable!C1195)>255,LEFT(OrigTable!C1195,250)&\". . .\",OrigTable!C1195))","v":""},{"$f":"IF(OrigTable!C1195=\"\",\"\",ScriptText!$E$1&CHAR(10)&ScriptText!$C$1)","v":""},{"$f":"IF(OrigTable!D1195=\"\",\"\",ScriptText!$B$1&CHAR(10)&ScriptText!$D$1)","v":""},{"$f":"IF(OrigTable!D1195=\"\",\"\",TEXT(OrigTable!D1195,\"00\"))","v":""},{"$f":"IF(OrigTable!D1195=\"\",\"\",ScriptText!$E$1&CHAR(10)&ScriptText!$C$1)","v":""},{"$f":"IF(OrigTable!E1195=\"\",\"\",ScriptText!$B$1&CHAR(10)&ScriptText!$D$1)","v":""},{"$f":"IF(OrigTable!E1195=\"\",\"\",TEXT(OrigTable!E1195,\"00\"))","v":""},{"$f":"IF(OrigTable!E1195=\"\",\"\",ScriptText!$E$1&CHAR(10)&ScriptText!$C$1)","v":""},{"$f":"IF(OrigTable!F1195=\"\",\"\",ScriptText!$B$1&CHAR(10)&ScriptText!$D$1)","v":""},{"$f":"IF(OrigTable!F1195=\"\",\"\",TEXT(OrigTable!F1195,\"00\"))","v":""},{"$f":"IF(OrigTable!F1195=\"\",\"\",ScriptText!$E$1&CHAR(10)&ScriptText!$C$1)","v":""},{"$f":"IF(OrigTable!G1195=\"\",\"\",ScriptText!$B$1&CHAR(10)&ScriptText!$D$1)","v":""},{"$f":"IF(OrigTable!G1195=\"\",\"\",TEXT(OrigTable!G1195,\"00\"))","v":""},{"$f":"IF(OrigTable!G1195=\"\",\"\",ScriptText!$E$1&CHAR(10)&ScriptText!$C$1)","v":""},0]
["\n\n\n",{"$f":"IF(OrigTable!A1196=\"\",\"\",ScriptText!$B$1&CHAR(10)&ScriptText!$D$1)","v":""},{"$f":"IF(OrigTable!A1196=\"\",\"\",TEXT(OrigTable!A1196,\"00\"))","v":""},{"$f":"IF(OrigTable!A1196=\"\",\"\",ScriptText!$E$1&CHAR(10)&ScriptText!$C$1)","v":""},{"$f":"IF(OrigTable!B1196=\"\",\"\",ScriptText!$B$1&CHAR(10)&ScriptText!$D$1)","v":""},{"$f":"IF(OrigTable!B1196=\"\",\"\",TEXT(OrigTable!B1196,\"00\"))","v":""},{"$f":"IF(OrigTable!B1196=\"\",\"\",ScriptText!$E$1&CHAR(10)&ScriptText!C1191)","v":""},{"$f":"IF(OrigTable!C1196=\"\",\"\",ScriptText!$B$1&CHAR(10)&ScriptText!$D$1)","v":""},{"$f":"IF(OrigTable!C1196=\"\",\"\",IF(LEN(OrigTable!C1196)>255,LEFT(OrigTable!C1196,250)&\". . .\",OrigTable!C1196))","v":""},{"$f":"IF(OrigTable!C1196=\"\",\"\",ScriptText!$E$1&CHAR(10)&ScriptText!$C$1)","v":""},{"$f":"IF(OrigTable!D1196=\"\",\"\",ScriptText!$B$1&CHAR(10)&ScriptText!$D$1)","v":""},{"$f":"IF(OrigTable!D1196=\"\",\"\",TEXT(OrigTable!D1196,\"00\"))","v":""},{"$f":"IF(OrigTable!D1196=\"\",\"\",ScriptText!$E$1&CHAR(10)&ScriptText!$C$1)","v":""},{"$f":"IF(OrigTable!E1196=\"\",\"\",ScriptText!$B$1&CHAR(10)&ScriptText!$D$1)","v":""},{"$f":"IF(OrigTable!E1196=\"\",\"\",TEXT(OrigTable!E1196,\"00\"))","v":""},{"$f":"IF(OrigTable!E1196=\"\",\"\",ScriptText!$E$1&CHAR(10)&ScriptText!$C$1)","v":""},{"$f":"IF(OrigTable!F1196=\"\",\"\",ScriptText!$B$1&CHAR(10)&ScriptText!$D$1)","v":""},{"$f":"IF(OrigTable!F1196=\"\",\"\",TEXT(OrigTable!F1196,\"00\"))","v":""},{"$f":"IF(OrigTable!F1196=\"\",\"\",ScriptText!$E$1&CHAR(10)&ScriptText!$C$1)","v":""},{"$f":"IF(OrigTable!G1196=\"\",\"\",ScriptText!$B$1&CHAR(10)&ScriptText!$D$1)","v":""},{"$f":"IF(OrigTable!G1196=\"\",\"\",TEXT(OrigTable!G1196,\"00\"))","v":""},{"$f":"IF(OrigTable!G1196=\"\",\"\",ScriptText!$E$1&CHAR(10)&ScriptText!$C$1)","v":""},0]
["\n\n\n",{"$f":"IF(OrigTable!A1197=\"\",\"\",ScriptText!$B$1&CHAR(10)&ScriptText!$D$1)","v":""},{"$f":"IF(OrigTable!A1197=\"\",\"\",TEXT(OrigTable!A1197,\"00\"))","v":""},{"$f":"IF(OrigTable!A1197=\"\",\"\",ScriptText!$E$1&CHAR(10)&ScriptText!$C$1)","v":""},{"$f":"IF(OrigTable!B1197=\"\",\"\",ScriptText!$B$1&CHAR(10)&ScriptText!$D$1)","v":""},{"$f":"IF(OrigTable!B1197=\"\",\"\",TEXT(OrigTable!B1197,\"00\"))","v":""},{"$f":"IF(OrigTable!B1197=\"\",\"\",ScriptText!$E$1&CHAR(10)&ScriptText!C1192)","v":""},{"$f":"IF(OrigTable!C1197=\"\",\"\",ScriptText!$B$1&CHAR(10)&ScriptText!$D$1)","v":""},{"$f":"IF(OrigTable!C1197=\"\",\"\",IF(LEN(OrigTable!C1197)>255,LEFT(OrigTable!C1197,250)&\". . .\",OrigTable!C1197))","v":""},{"$f":"IF(OrigTable!C1197=\"\",\"\",ScriptText!$E$1&CHAR(10)&ScriptText!$C$1)","v":""},{"$f":"IF(OrigTable!D1197=\"\",\"\",ScriptText!$B$1&CHAR(10)&ScriptText!$D$1)","v":""},{"$f":"IF(OrigTable!D1197=\"\",\"\",TEXT(OrigTable!D1197,\"00\"))","v":""},{"$f":"IF(OrigTable!D1197=\"\",\"\",ScriptText!$E$1&CHAR(10)&ScriptText!$C$1)","v":""},{"$f":"IF(OrigTable!E1197=\"\",\"\",ScriptText!$B$1&CHAR(10)&ScriptText!$D$1)","v":""},{"$f":"IF(OrigTable!E1197=\"\",\"\",TEXT(OrigTable!E1197,\"00\"))","v":""},{"$f":"IF(OrigTable!E1197=\"\",\"\",ScriptText!$E$1&CHAR(10)&ScriptText!$C$1)","v":""},{"$f":"IF(OrigTable!F1197=\"\",\"\",ScriptText!$B$1&CHAR(10)&ScriptText!$D$1)","v":""},{"$f":"IF(OrigTable!F1197=\"\",\"\",TEXT(OrigTable!F1197,\"00\"))","v":""},{"$f":"IF(OrigTable!F1197=\"\",\"\",ScriptText!$E$1&CHAR(10)&ScriptText!$C$1)","v":""},{"$f":"IF(OrigTable!G1197=\"\",\"\",ScriptText!$B$1&CHAR(10)&ScriptText!$D$1)","v":""},{"$f":"IF(OrigTable!G1197=\"\",\"\",TEXT(OrigTable!G1197,\"00\"))","v":""},{"$f":"IF(OrigTable!G1197=\"\",\"\",ScriptText!$E$1&CHAR(10)&ScriptText!$C$1)","v":""},0]
["\n\n\n",{"$f":"IF(OrigTable!A1198=\"\",\"\",ScriptText!$B$1&CHAR(10)&ScriptText!$D$1)","v":""},{"$f":"IF(OrigTable!A1198=\"\",\"\",TEXT(OrigTable!A1198,\"00\"))","v":""},{"$f":"IF(OrigTable!A1198=\"\",\"\",ScriptText!$E$1&CHAR(10)&ScriptText!$C$1)","v":""},{"$f":"IF(OrigTable!B1198=\"\",\"\",ScriptText!$B$1&CHAR(10)&ScriptText!$D$1)","v":""},{"$f":"IF(OrigTable!B1198=\"\",\"\",TEXT(OrigTable!B1198,\"00\"))","v":""},{"$f":"IF(OrigTable!B1198=\"\",\"\",ScriptText!$E$1&CHAR(10)&ScriptText!C1193)","v":""},{"$f":"IF(OrigTable!C1198=\"\",\"\",ScriptText!$B$1&CHAR(10)&ScriptText!$D$1)","v":""},{"$f":"IF(OrigTable!C1198=\"\",\"\",IF(LEN(OrigTable!C1198)>255,LEFT(OrigTable!C1198,250)&\". . .\",OrigTable!C1198))","v":""},{"$f":"IF(OrigTable!C1198=\"\",\"\",ScriptText!$E$1&CHAR(10)&ScriptText!$C$1)","v":""},{"$f":"IF(OrigTable!D1198=\"\",\"\",ScriptText!$B$1&CHAR(10)&ScriptText!$D$1)","v":""},{"$f":"IF(OrigTable!D1198=\"\",\"\",TEXT(OrigTable!D1198,\"00\"))","v":""},{"$f":"IF(OrigTable!D1198=\"\",\"\",ScriptText!$E$1&CHAR(10)&ScriptText!$C$1)","v":""},{"$f":"IF(OrigTable!E1198=\"\",\"\",ScriptText!$B$1&CHAR(10)&ScriptText!$D$1)","v":""},{"$f":"IF(OrigTable!E1198=\"\",\"\",TEXT(OrigTable!E1198,\"00\"))","v":""},{"$f":"IF(OrigTable!E1198=\"\",\"\",ScriptText!$E$1&CHAR(10)&ScriptText!$C$1)","v":""},{"$f":"IF(OrigTable!F1198=\"\",\"\",ScriptText!$B$1&CHAR(10)&ScriptText!$D$1)","v":""},{"$f":"IF(OrigTable!F1198=\"\",\"\",TEXT(OrigTable!F1198,\"00\"))","v":""},{"$f":"IF(OrigTable!F1198=\"\",\"\",ScriptText!$E$1&CHAR(10)&ScriptText!$C$1)","v":""},{"$f":"IF(OrigTable!G1198=\"\",\"\",ScriptText!$B$1&CHAR(10)&ScriptText!$D$1)","v":""},{"$f":"IF(OrigTable!G1198=\"\",\"\",TEXT(OrigTable!G1198,\"00\"))","v":""},{"$f":"IF(OrigTable!G1198=\"\",\"\",ScriptText!$E$1&CHAR(10)&ScriptText!$C$1)","v":""},0]
["\n\n\n",{"$f":"IF(OrigTable!A1199=\"\",\"\",ScriptText!$B$1&CHAR(10)&ScriptText!$D$1)","v":""},{"$f":"IF(OrigTable!A1199=\"\",\"\",TEXT(OrigTable!A1199,\"00\"))","v":""},{"$f":"IF(OrigTable!A1199=\"\",\"\",ScriptText!$E$1&CHAR(10)&ScriptText!$C$1)","v":""},{"$f":"IF(OrigTable!B1199=\"\",\"\",ScriptText!$B$1&CHAR(10)&ScriptText!$D$1)","v":""},{"$f":"IF(OrigTable!B1199=\"\",\"\",TEXT(OrigTable!B1199,\"00\"))","v":""},{"$f":"IF(OrigTable!B1199=\"\",\"\",ScriptText!$E$1&CHAR(10)&ScriptText!C1194)","v":""},{"$f":"IF(OrigTable!C1199=\"\",\"\",ScriptText!$B$1&CHAR(10)&ScriptText!$D$1)","v":""},{"$f":"IF(OrigTable!C1199=\"\",\"\",IF(LEN(OrigTable!C1199)>255,LEFT(OrigTable!C1199,250)&\". . .\",OrigTable!C1199))","v":""},{"$f":"IF(OrigTable!C1199=\"\",\"\",ScriptText!$E$1&CHAR(10)&ScriptText!$C$1)","v":""},{"$f":"IF(OrigTable!D1199=\"\",\"\",ScriptText!$B$1&CHAR(10)&ScriptText!$D$1)","v":""},{"$f":"IF(OrigTable!D1199=\"\",\"\",TEXT(OrigTable!D1199,\"00\"))","v":""},{"$f":"IF(OrigTable!D1199=\"\",\"\",ScriptText!$E$1&CHAR(10)&ScriptText!$C$1)","v":""},{"$f":"IF(OrigTable!E1199=\"\",\"\",ScriptText!$B$1&CHAR(10)&ScriptText!$D$1)","v":""},{"$f":"IF(OrigTable!E1199=\"\",\"\",TEXT(OrigTable!E1199,\"00\"))","v":""},{"$f":"IF(OrigTable!E1199=\"\",\"\",ScriptText!$E$1&CHAR(10)&ScriptText!$C$1)","v":""},{"$f":"IF(OrigTable!F1199=\"\",\"\",ScriptText!$B$1&CHAR(10)&ScriptText!$D$1)","v":""},{"$f":"IF(OrigTable!F1199=\"\",\"\",TEXT(OrigTable!F1199,\"00\"))","v":""},{"$f":"IF(OrigTable!F1199=\"\",\"\",ScriptText!$E$1&CHAR(10)&ScriptText!$C$1)","v":""},{"$f":"IF(OrigTable!G1199=\"\",\"\",ScriptText!$B$1&CHAR(10)&ScriptText!$D$1)","v":""},{"$f":"IF(OrigTable!G1199=\"\",\"\",TEXT(OrigTable!G1199,\"00\"))","v":""},{"$f":"IF(OrigTable!G1199=\"\",\"\",ScriptText!$E$1&CHAR(10)&ScriptText!$C$1)","v":""},0]
["\n\n\n",{"$f":"IF(OrigTable!A1200=\"\",\"\",ScriptText!$B$1&CHAR(10)&ScriptText!$D$1)","v":""},{"$f":"IF(OrigTable!A1200=\"\",\"\",TEXT(OrigTable!A1200,\"00\"))","v":""},{"$f":"IF(OrigTable!A1200=\"\",\"\",ScriptText!$E$1&CHAR(10)&ScriptText!$C$1)","v":""},{"$f":"IF(OrigTable!B1200=\"\",\"\",ScriptText!$B$1&CHAR(10)&ScriptText!$D$1)","v":""},{"$f":"IF(OrigTable!B1200=\"\",\"\",TEXT(OrigTable!B1200,\"00\"))","v":""},{"$f":"IF(OrigTable!B1200=\"\",\"\",ScriptText!$E$1&CHAR(10)&ScriptText!C1195)","v":""},{"$f":"IF(OrigTable!C1200=\"\",\"\",ScriptText!$B$1&CHAR(10)&ScriptText!$D$1)","v":""},{"$f":"IF(OrigTable!C1200=\"\",\"\",IF(LEN(OrigTable!C1200)>255,LEFT(OrigTable!C1200,250)&\". . .\",OrigTable!C1200))","v":""},{"$f":"IF(OrigTable!C1200=\"\",\"\",ScriptText!$E$1&CHAR(10)&ScriptText!$C$1)","v":""},{"$f":"IF(OrigTable!D1200=\"\",\"\",ScriptText!$B$1&CHAR(10)&ScriptText!$D$1)","v":""},{"$f":"IF(OrigTable!D1200=\"\",\"\",TEXT(OrigTable!D1200,\"00\"))","v":""},{"$f":"IF(OrigTable!D1200=\"\",\"\",ScriptText!$E$1&CHAR(10)&ScriptText!$C$1)","v":""},{"$f":"IF(OrigTable!E1200=\"\",\"\",ScriptText!$B$1&CHAR(10)&ScriptText!$D$1)","v":""},{"$f":"IF(OrigTable!E1200=\"\",\"\",TEXT(OrigTable!E1200,\"00\"))","v":""},{"$f":"IF(OrigTable!E1200=\"\",\"\",ScriptText!$E$1&CHAR(10)&ScriptText!$C$1)","v":""},{"$f":"IF(OrigTable!F1200=\"\",\"\",ScriptText!$B$1&CHAR(10)&ScriptText!$D$1)","v":""},{"$f":"IF(OrigTable!F1200=\"\",\"\",TEXT(OrigTable!F1200,\"00\"))","v":""},{"$f":"IF(OrigTable!F1200=\"\",\"\",ScriptText!$E$1&CHAR(10)&ScriptText!$C$1)","v":""},{"$f":"IF(OrigTable!G1200=\"\",\"\",ScriptText!$B$1&CHAR(10)&ScriptText!$D$1)","v":""},{"$f":"IF(OrigTable!G1200=\"\",\"\",TEXT(OrigTable!G1200,\"00\"))","v":""},{"$f":"IF(OrigTable!G1200=\"\",\"\",ScriptText!$E$1&CHAR(10)&ScriptText!$C$1)","v":""},0]
["\n\n\n",{"$f":"IF(OrigTable!A1201=\"\",\"\",ScriptText!$B$1&CHAR(10)&ScriptText!$D$1)","v":""},{"$f":"IF(OrigTable!A1201=\"\",\"\",TEXT(OrigTable!A1201,\"00\"))","v":""},{"$f":"IF(OrigTable!A1201=\"\",\"\",ScriptText!$E$1&CHAR(10)&ScriptText!$C$1)","v":""},{"$f":"IF(OrigTable!B1201=\"\",\"\",ScriptText!$B$1&CHAR(10)&ScriptText!$D$1)","v":""},{"$f":"IF(OrigTable!B1201=\"\",\"\",TEXT(OrigTable!B1201,\"00\"))","v":""},{"$f":"IF(OrigTable!B1201=\"\",\"\",ScriptText!$E$1&CHAR(10)&ScriptText!C1196)","v":""},{"$f":"IF(OrigTable!C1201=\"\",\"\",ScriptText!$B$1&CHAR(10)&ScriptText!$D$1)","v":""},{"$f":"IF(OrigTable!C1201=\"\",\"\",IF(LEN(OrigTable!C1201)>255,LEFT(OrigTable!C1201,250)&\". . .\",OrigTable!C1201))","v":""},{"$f":"IF(OrigTable!C1201=\"\",\"\",ScriptText!$E$1&CHAR(10)&ScriptText!$C$1)","v":""},{"$f":"IF(OrigTable!D1201=\"\",\"\",ScriptText!$B$1&CHAR(10)&ScriptText!$D$1)","v":""},{"$f":"IF(OrigTable!D1201=\"\",\"\",TEXT(OrigTable!D1201,\"00\"))","v":""},{"$f":"IF(OrigTable!D1201=\"\",\"\",ScriptText!$E$1&CHAR(10)&ScriptText!$C$1)","v":""},{"$f":"IF(OrigTable!E1201=\"\",\"\",ScriptText!$B$1&CHAR(10)&ScriptText!$D$1)","v":""},{"$f":"IF(OrigTable!E1201=\"\",\"\",TEXT(OrigTable!E1201,\"00\"))","v":""},{"$f":"IF(OrigTable!E1201=\"\",\"\",ScriptText!$E$1&CHAR(10)&ScriptText!$C$1)","v":""},{"$f":"IF(OrigTable!F1201=\"\",\"\",ScriptText!$B$1&CHAR(10)&ScriptText!$D$1)","v":""},{"$f":"IF(OrigTable!F1201=\"\",\"\",TEXT(OrigTable!F1201,\"00\"))","v":""},{"$f":"IF(OrigTable!F1201=\"\",\"\",ScriptText!$E$1&CHAR(10)&ScriptText!$C$1)","v":""},{"$f":"IF(OrigTable!G1201=\"\",\"\",ScriptText!$B$1&CHAR(10)&ScriptText!$D$1)","v":""},{"$f":"IF(OrigTable!G1201=\"\",\"\",TEXT(OrigTable!G1201,\"00\"))","v":""},{"$f":"IF(OrigTable!G1201=\"\",\"\",ScriptText!$E$1&CHAR(10)&ScriptText!$C$1)","v":""},0]
["\n\n\n",{"$f":"IF(OrigTable!A1202=\"\",\"\",ScriptText!$B$1&CHAR(10)&ScriptText!$D$1)","v":""},{"$f":"IF(OrigTable!A1202=\"\",\"\",TEXT(OrigTable!A1202,\"00\"))","v":""},{"$f":"IF(OrigTable!A1202=\"\",\"\",ScriptText!$E$1&CHAR(10)&ScriptText!$C$1)","v":""},{"$f":"IF(OrigTable!B1202=\"\",\"\",ScriptText!$B$1&CHAR(10)&ScriptText!$D$1)","v":""},{"$f":"IF(OrigTable!B1202=\"\",\"\",TEXT(OrigTable!B1202,\"00\"))","v":""},{"$f":"IF(OrigTable!B1202=\"\",\"\",ScriptText!$E$1&CHAR(10)&ScriptText!C1197)","v":""},{"$f":"IF(OrigTable!C1202=\"\",\"\",ScriptText!$B$1&CHAR(10)&ScriptText!$D$1)","v":""},{"$f":"IF(OrigTable!C1202=\"\",\"\",IF(LEN(OrigTable!C1202)>255,LEFT(OrigTable!C1202,250)&\". . .\",OrigTable!C1202))","v":""},{"$f":"IF(OrigTable!C1202=\"\",\"\",ScriptText!$E$1&CHAR(10)&ScriptText!$C$1)","v":""},{"$f":"IF(OrigTable!D1202=\"\",\"\",ScriptText!$B$1&CHAR(10)&ScriptText!$D$1)","v":""},{"$f":"IF(OrigTable!D1202=\"\",\"\",TEXT(OrigTable!D1202,\"00\"))","v":""},{"$f":"IF(OrigTable!D1202=\"\",\"\",ScriptText!$E$1&CHAR(10)&ScriptText!$C$1)","v":""},{"$f":"IF(OrigTable!E1202=\"\",\"\",ScriptText!$B$1&CHAR(10)&ScriptText!$D$1)","v":""},{"$f":"IF(OrigTable!E1202=\"\",\"\",TEXT(OrigTable!E1202,\"00\"))","v":""},{"$f":"IF(OrigTable!E1202=\"\",\"\",ScriptText!$E$1&CHAR(10)&ScriptText!$C$1)","v":""},{"$f":"IF(OrigTable!F1202=\"\",\"\",ScriptText!$B$1&CHAR(10)&ScriptText!$D$1)","v":""},{"$f":"IF(OrigTable!F1202=\"\",\"\",TEXT(OrigTable!F1202,\"00\"))","v":""},{"$f":"IF(OrigTable!F1202=\"\",\"\",ScriptText!$E$1&CHAR(10)&ScriptText!$C$1)","v":""},{"$f":"IF(OrigTable!G1202=\"\",\"\",ScriptText!$B$1&CHAR(10)&ScriptText!$D$1)","v":""},{"$f":"IF(OrigTable!G1202=\"\",\"\",TEXT(OrigTable!G1202,\"00\"))","v":""},{"$f":"IF(OrigTable!G1202=\"\",\"\",ScriptText!$E$1&CHAR(10)&ScriptText!$C$1)","v":""},0]
["\n\n\n",{"$f":"IF(OrigTable!A1203=\"\",\"\",ScriptText!$B$1&CHAR(10)&ScriptText!$D$1)","v":""},{"$f":"IF(OrigTable!A1203=\"\",\"\",TEXT(OrigTable!A1203,\"00\"))","v":""},{"$f":"IF(OrigTable!A1203=\"\",\"\",ScriptText!$E$1&CHAR(10)&ScriptText!$C$1)","v":""},{"$f":"IF(OrigTable!B1203=\"\",\"\",ScriptText!$B$1&CHAR(10)&ScriptText!$D$1)","v":""},{"$f":"IF(OrigTable!B1203=\"\",\"\",TEXT(OrigTable!B1203,\"00\"))","v":""},{"$f":"IF(OrigTable!B1203=\"\",\"\",ScriptText!$E$1&CHAR(10)&ScriptText!C1198)","v":""},{"$f":"IF(OrigTable!C1203=\"\",\"\",ScriptText!$B$1&CHAR(10)&ScriptText!$D$1)","v":""},{"$f":"IF(OrigTable!C1203=\"\",\"\",IF(LEN(OrigTable!C1203)>255,LEFT(OrigTable!C1203,250)&\". . .\",OrigTable!C1203))","v":""},{"$f":"IF(OrigTable!C1203=\"\",\"\",ScriptText!$E$1&CHAR(10)&ScriptText!$C$1)","v":""},{"$f":"IF(OrigTable!D1203=\"\",\"\",ScriptText!$B$1&CHAR(10)&ScriptText!$D$1)","v":""},{"$f":"IF(OrigTable!D1203=\"\",\"\",TEXT(OrigTable!D1203,\"00\"))","v":""},{"$f":"IF(OrigTable!D1203=\"\",\"\",ScriptText!$E$1&CHAR(10)&ScriptText!$C$1)","v":""},{"$f":"IF(OrigTable!E1203=\"\",\"\",ScriptText!$B$1&CHAR(10)&ScriptText!$D$1)","v":""},{"$f":"IF(OrigTable!E1203=\"\",\"\",TEXT(OrigTable!E1203,\"00\"))","v":""},{"$f":"IF(OrigTable!E1203=\"\",\"\",ScriptText!$E$1&CHAR(10)&ScriptText!$C$1)","v":""},{"$f":"IF(OrigTable!F1203=\"\",\"\",ScriptText!$B$1&CHAR(10)&ScriptText!$D$1)","v":""},{"$f":"IF(OrigTable!F1203=\"\",\"\",TEXT(OrigTable!F1203,\"00\"))","v":""},{"$f":"IF(OrigTable!F1203=\"\",\"\",ScriptText!$E$1&CHAR(10)&ScriptText!$C$1)","v":""},{"$f":"IF(OrigTable!G1203=\"\",\"\",ScriptText!$B$1&CHAR(10)&ScriptText!$D$1)","v":""},{"$f":"IF(OrigTable!G1203=\"\",\"\",TEXT(OrigTable!G1203,\"00\"))","v":""},{"$f":"IF(OrigTable!G1203=\"\",\"\",ScriptText!$E$1&CHAR(10)&ScriptText!$C$1)","v":""},0]
["\n\n\n",{"$f":"IF(OrigTable!A1204=\"\",\"\",ScriptText!$B$1&CHAR(10)&ScriptText!$D$1)","v":""},{"$f":"IF(OrigTable!A1204=\"\",\"\",TEXT(OrigTable!A1204,\"00\"))","v":""},{"$f":"IF(OrigTable!A1204=\"\",\"\",ScriptText!$E$1&CHAR(10)&ScriptText!$C$1)","v":""},{"$f":"IF(OrigTable!B1204=\"\",\"\",ScriptText!$B$1&CHAR(10)&ScriptText!$D$1)","v":""},{"$f":"IF(OrigTable!B1204=\"\",\"\",TEXT(OrigTable!B1204,\"00\"))","v":""},{"$f":"IF(OrigTable!B1204=\"\",\"\",ScriptText!$E$1&CHAR(10)&ScriptText!C1199)","v":""},{"$f":"IF(OrigTable!C1204=\"\",\"\",ScriptText!$B$1&CHAR(10)&ScriptText!$D$1)","v":""},{"$f":"IF(OrigTable!C1204=\"\",\"\",IF(LEN(OrigTable!C1204)>255,LEFT(OrigTable!C1204,250)&\". . .\",OrigTable!C1204))","v":""},{"$f":"IF(OrigTable!C1204=\"\",\"\",ScriptText!$E$1&CHAR(10)&ScriptText!$C$1)","v":""},{"$f":"IF(OrigTable!D1204=\"\",\"\",ScriptText!$B$1&CHAR(10)&ScriptText!$D$1)","v":""},{"$f":"IF(OrigTable!D1204=\"\",\"\",TEXT(OrigTable!D1204,\"00\"))","v":""},{"$f":"IF(OrigTable!D1204=\"\",\"\",ScriptText!$E$1&CHAR(10)&ScriptText!$C$1)","v":""},{"$f":"IF(OrigTable!E1204=\"\",\"\",ScriptText!$B$1&CHAR(10)&ScriptText!$D$1)","v":""},{"$f":"IF(OrigTable!E1204=\"\",\"\",TEXT(OrigTable!E1204,\"00\"))","v":""},{"$f":"IF(OrigTable!E1204=\"\",\"\",ScriptText!$E$1&CHAR(10)&ScriptText!$C$1)","v":""},{"$f":"IF(OrigTable!F1204=\"\",\"\",ScriptText!$B$1&CHAR(10)&ScriptText!$D$1)","v":""},{"$f":"IF(OrigTable!F1204=\"\",\"\",TEXT(OrigTable!F1204,\"00\"))","v":""},{"$f":"IF(OrigTable!F1204=\"\",\"\",ScriptText!$E$1&CHAR(10)&ScriptText!$C$1)","v":""},{"$f":"IF(OrigTable!G1204=\"\",\"\",ScriptText!$B$1&CHAR(10)&ScriptText!$D$1)","v":""},{"$f":"IF(OrigTable!G1204=\"\",\"\",TEXT(OrigTable!G1204,\"00\"))","v":""},{"$f":"IF(OrigTable!G1204=\"\",\"\",ScriptText!$E$1&CHAR(10)&ScriptText!$C$1)","v":""},0]
["\n\n\n",{"$f":"IF(OrigTable!A1205=\"\",\"\",ScriptText!$B$1&CHAR(10)&ScriptText!$D$1)","v":""},{"$f":"IF(OrigTable!A1205=\"\",\"\",TEXT(OrigTable!A1205,\"00\"))","v":""},{"$f":"IF(OrigTable!A1205=\"\",\"\",ScriptText!$E$1&CHAR(10)&ScriptText!$C$1)","v":""},{"$f":"IF(OrigTable!B1205=\"\",\"\",ScriptText!$B$1&CHAR(10)&ScriptText!$D$1)","v":""},{"$f":"IF(OrigTable!B1205=\"\",\"\",TEXT(OrigTable!B1205,\"00\"))","v":""},{"$f":"IF(OrigTable!B1205=\"\",\"\",ScriptText!$E$1&CHAR(10)&ScriptText!C1200)","v":""},{"$f":"IF(OrigTable!C1205=\"\",\"\",ScriptText!$B$1&CHAR(10)&ScriptText!$D$1)","v":""},{"$f":"IF(OrigTable!C1205=\"\",\"\",IF(LEN(OrigTable!C1205)>255,LEFT(OrigTable!C1205,250)&\". . .\",OrigTable!C1205))","v":""},{"$f":"IF(OrigTable!C1205=\"\",\"\",ScriptText!$E$1&CHAR(10)&ScriptText!$C$1)","v":""},{"$f":"IF(OrigTable!D1205=\"\",\"\",ScriptText!$B$1&CHAR(10)&ScriptText!$D$1)","v":""},{"$f":"IF(OrigTable!D1205=\"\",\"\",TEXT(OrigTable!D1205,\"00\"))","v":""},{"$f":"IF(OrigTable!D1205=\"\",\"\",ScriptText!$E$1&CHAR(10)&ScriptText!$C$1)","v":""},{"$f":"IF(OrigTable!E1205=\"\",\"\",ScriptText!$B$1&CHAR(10)&ScriptText!$D$1)","v":""},{"$f":"IF(OrigTable!E1205=\"\",\"\",TEXT(OrigTable!E1205,\"00\"))","v":""},{"$f":"IF(OrigTable!E1205=\"\",\"\",ScriptText!$E$1&CHAR(10)&ScriptText!$C$1)","v":""},{"$f":"IF(OrigTable!F1205=\"\",\"\",ScriptText!$B$1&CHAR(10)&ScriptText!$D$1)","v":""},{"$f":"IF(OrigTable!F1205=\"\",\"\",TEXT(OrigTable!F1205,\"00\"))","v":""},{"$f":"IF(OrigTable!F1205=\"\",\"\",ScriptText!$E$1&CHAR(10)&ScriptText!$C$1)","v":""},{"$f":"IF(OrigTable!G1205=\"\",\"\",ScriptText!$B$1&CHAR(10)&ScriptText!$D$1)","v":""},{"$f":"IF(OrigTable!G1205=\"\",\"\",TEXT(OrigTable!G1205,\"00\"))","v":""},{"$f":"IF(OrigTable!G1205=\"\",\"\",ScriptText!$E$1&CHAR(10)&ScriptText!$C$1)","v":""},0]
["\n\n\n",{"$f":"IF(OrigTable!A1206=\"\",\"\",ScriptText!$B$1&CHAR(10)&ScriptText!$D$1)","v":""},{"$f":"IF(OrigTable!A1206=\"\",\"\",TEXT(OrigTable!A1206,\"00\"))","v":""},{"$f":"IF(OrigTable!A1206=\"\",\"\",ScriptText!$E$1&CHAR(10)&ScriptText!$C$1)","v":""},{"$f":"IF(OrigTable!B1206=\"\",\"\",ScriptText!$B$1&CHAR(10)&ScriptText!$D$1)","v":""},{"$f":"IF(OrigTable!B1206=\"\",\"\",TEXT(OrigTable!B1206,\"00\"))","v":""},{"$f":"IF(OrigTable!B1206=\"\",\"\",ScriptText!$E$1&CHAR(10)&ScriptText!C1201)","v":""},{"$f":"IF(OrigTable!C1206=\"\",\"\",ScriptText!$B$1&CHAR(10)&ScriptText!$D$1)","v":""},{"$f":"IF(OrigTable!C1206=\"\",\"\",IF(LEN(OrigTable!C1206)>255,LEFT(OrigTable!C1206,250)&\". . .\",OrigTable!C1206))","v":""},{"$f":"IF(OrigTable!C1206=\"\",\"\",ScriptText!$E$1&CHAR(10)&ScriptText!$C$1)","v":""},{"$f":"IF(OrigTable!D1206=\"\",\"\",ScriptText!$B$1&CHAR(10)&ScriptText!$D$1)","v":""},{"$f":"IF(OrigTable!D1206=\"\",\"\",TEXT(OrigTable!D1206,\"00\"))","v":""},{"$f":"IF(OrigTable!D1206=\"\",\"\",ScriptText!$E$1&CHAR(10)&ScriptText!$C$1)","v":""},{"$f":"IF(OrigTable!E1206=\"\",\"\",ScriptText!$B$1&CHAR(10)&ScriptText!$D$1)","v":""},{"$f":"IF(OrigTable!E1206=\"\",\"\",TEXT(OrigTable!E1206,\"00\"))","v":""},{"$f":"IF(OrigTable!E1206=\"\",\"\",ScriptText!$E$1&CHAR(10)&ScriptText!$C$1)","v":""},{"$f":"IF(OrigTable!F1206=\"\",\"\",ScriptText!$B$1&CHAR(10)&ScriptText!$D$1)","v":""},{"$f":"IF(OrigTable!F1206=\"\",\"\",TEXT(OrigTable!F1206,\"00\"))","v":""},{"$f":"IF(OrigTable!F1206=\"\",\"\",ScriptText!$E$1&CHAR(10)&ScriptText!$C$1)","v":""},{"$f":"IF(OrigTable!G1206=\"\",\"\",ScriptText!$B$1&CHAR(10)&ScriptText!$D$1)","v":""},{"$f":"IF(OrigTable!G1206=\"\",\"\",TEXT(OrigTable!G1206,\"00\"))","v":""},{"$f":"IF(OrigTable!G1206=\"\",\"\",ScriptText!$E$1&CHAR(10)&ScriptText!$C$1)","v":""},0]
["\n\n\n",{"$f":"IF(OrigTable!A1207=\"\",\"\",ScriptText!$B$1&CHAR(10)&ScriptText!$D$1)","v":""},{"$f":"IF(OrigTable!A1207=\"\",\"\",TEXT(OrigTable!A1207,\"00\"))","v":""},{"$f":"IF(OrigTable!A1207=\"\",\"\",ScriptText!$E$1&CHAR(10)&ScriptText!$C$1)","v":""},{"$f":"IF(OrigTable!B1207=\"\",\"\",ScriptText!$B$1&CHAR(10)&ScriptText!$D$1)","v":""},{"$f":"IF(OrigTable!B1207=\"\",\"\",TEXT(OrigTable!B1207,\"00\"))","v":""},{"$f":"IF(OrigTable!B1207=\"\",\"\",ScriptText!$E$1&CHAR(10)&ScriptText!C1202)","v":""},{"$f":"IF(OrigTable!C1207=\"\",\"\",ScriptText!$B$1&CHAR(10)&ScriptText!$D$1)","v":""},{"$f":"IF(OrigTable!C1207=\"\",\"\",IF(LEN(OrigTable!C1207)>255,LEFT(OrigTable!C1207,250)&\". . .\",OrigTable!C1207))","v":""},{"$f":"IF(OrigTable!C1207=\"\",\"\",ScriptText!$E$1&CHAR(10)&ScriptText!$C$1)","v":""},{"$f":"IF(OrigTable!D1207=\"\",\"\",ScriptText!$B$1&CHAR(10)&ScriptText!$D$1)","v":""},{"$f":"IF(OrigTable!D1207=\"\",\"\",TEXT(OrigTable!D1207,\"00\"))","v":""},{"$f":"IF(OrigTable!D1207=\"\",\"\",ScriptText!$E$1&CHAR(10)&ScriptText!$C$1)","v":""},{"$f":"IF(OrigTable!E1207=\"\",\"\",ScriptText!$B$1&CHAR(10)&ScriptText!$D$1)","v":""},{"$f":"IF(OrigTable!E1207=\"\",\"\",TEXT(OrigTable!E1207,\"00\"))","v":""},{"$f":"IF(OrigTable!E1207=\"\",\"\",ScriptText!$E$1&CHAR(10)&ScriptText!$C$1)","v":""},{"$f":"IF(OrigTable!F1207=\"\",\"\",ScriptText!$B$1&CHAR(10)&ScriptText!$D$1)","v":""},{"$f":"IF(OrigTable!F1207=\"\",\"\",TEXT(OrigTable!F1207,\"00\"))","v":""},{"$f":"IF(OrigTable!F1207=\"\",\"\",ScriptText!$E$1&CHAR(10)&ScriptText!$C$1)","v":""},{"$f":"IF(OrigTable!G1207=\"\",\"\",ScriptText!$B$1&CHAR(10)&ScriptText!$D$1)","v":""},{"$f":"IF(OrigTable!G1207=\"\",\"\",TEXT(OrigTable!G1207,\"00\"))","v":""},{"$f":"IF(OrigTable!G1207=\"\",\"\",ScriptText!$E$1&CHAR(10)&ScriptText!$C$1)","v":""},0]
["\n\n\n",{"$f":"IF(OrigTable!A1208=\"\",\"\",ScriptText!$B$1&CHAR(10)&ScriptText!$D$1)","v":""},{"$f":"IF(OrigTable!A1208=\"\",\"\",TEXT(OrigTable!A1208,\"00\"))","v":""},{"$f":"IF(OrigTable!A1208=\"\",\"\",ScriptText!$E$1&CHAR(10)&ScriptText!$C$1)","v":""},{"$f":"IF(OrigTable!B1208=\"\",\"\",ScriptText!$B$1&CHAR(10)&ScriptText!$D$1)","v":""},{"$f":"IF(OrigTable!B1208=\"\",\"\",TEXT(OrigTable!B1208,\"00\"))","v":""},{"$f":"IF(OrigTable!B1208=\"\",\"\",ScriptText!$E$1&CHAR(10)&ScriptText!C1203)","v":""},{"$f":"IF(OrigTable!C1208=\"\",\"\",ScriptText!$B$1&CHAR(10)&ScriptText!$D$1)","v":""},{"$f":"IF(OrigTable!C1208=\"\",\"\",IF(LEN(OrigTable!C1208)>255,LEFT(OrigTable!C1208,250)&\". . .\",OrigTable!C1208))","v":""},{"$f":"IF(OrigTable!C1208=\"\",\"\",ScriptText!$E$1&CHAR(10)&ScriptText!$C$1)","v":""},{"$f":"IF(OrigTable!D1208=\"\",\"\",ScriptText!$B$1&CHAR(10)&ScriptText!$D$1)","v":""},{"$f":"IF(OrigTable!D1208=\"\",\"\",TEXT(OrigTable!D1208,\"00\"))","v":""},{"$f":"IF(OrigTable!D1208=\"\",\"\",ScriptText!$E$1&CHAR(10)&ScriptText!$C$1)","v":""},{"$f":"IF(OrigTable!E1208=\"\",\"\",ScriptText!$B$1&CHAR(10)&ScriptText!$D$1)","v":""},{"$f":"IF(OrigTable!E1208=\"\",\"\",TEXT(OrigTable!E1208,\"00\"))","v":""},{"$f":"IF(OrigTable!E1208=\"\",\"\",ScriptText!$E$1&CHAR(10)&ScriptText!$C$1)","v":""},{"$f":"IF(OrigTable!F1208=\"\",\"\",ScriptText!$B$1&CHAR(10)&ScriptText!$D$1)","v":""},{"$f":"IF(OrigTable!F1208=\"\",\"\",TEXT(OrigTable!F1208,\"00\"))","v":""},{"$f":"IF(OrigTable!F1208=\"\",\"\",ScriptText!$E$1&CHAR(10)&ScriptText!$C$1)","v":""},{"$f":"IF(OrigTable!G1208=\"\",\"\",ScriptText!$B$1&CHAR(10)&ScriptText!$D$1)","v":""},{"$f":"IF(OrigTable!G1208=\"\",\"\",TEXT(OrigTable!G1208,\"00\"))","v":""},{"$f":"IF(OrigTable!G1208=\"\",\"\",ScriptText!$E$1&CHAR(10)&ScriptText!$C$1)","v":""},0]
["\n\n\n",{"$f":"IF(OrigTable!A1209=\"\",\"\",ScriptText!$B$1&CHAR(10)&ScriptText!$D$1)","v":""},{"$f":"IF(OrigTable!A1209=\"\",\"\",TEXT(OrigTable!A1209,\"00\"))","v":""},{"$f":"IF(OrigTable!A1209=\"\",\"\",ScriptText!$E$1&CHAR(10)&ScriptText!$C$1)","v":""},{"$f":"IF(OrigTable!B1209=\"\",\"\",ScriptText!$B$1&CHAR(10)&ScriptText!$D$1)","v":""},{"$f":"IF(OrigTable!B1209=\"\",\"\",TEXT(OrigTable!B1209,\"00\"))","v":""},{"$f":"IF(OrigTable!B1209=\"\",\"\",ScriptText!$E$1&CHAR(10)&ScriptText!C1204)","v":""},{"$f":"IF(OrigTable!C1209=\"\",\"\",ScriptText!$B$1&CHAR(10)&ScriptText!$D$1)","v":""},{"$f":"IF(OrigTable!C1209=\"\",\"\",IF(LEN(OrigTable!C1209)>255,LEFT(OrigTable!C1209,250)&\". . .\",OrigTable!C1209))","v":""},{"$f":"IF(OrigTable!C1209=\"\",\"\",ScriptText!$E$1&CHAR(10)&ScriptText!$C$1)","v":""},{"$f":"IF(OrigTable!D1209=\"\",\"\",ScriptText!$B$1&CHAR(10)&ScriptText!$D$1)","v":""},{"$f":"IF(OrigTable!D1209=\"\",\"\",TEXT(OrigTable!D1209,\"00\"))","v":""},{"$f":"IF(OrigTable!D1209=\"\",\"\",ScriptText!$E$1&CHAR(10)&ScriptText!$C$1)","v":""},{"$f":"IF(OrigTable!E1209=\"\",\"\",ScriptText!$B$1&CHAR(10)&ScriptText!$D$1)","v":""},{"$f":"IF(OrigTable!E1209=\"\",\"\",TEXT(OrigTable!E1209,\"00\"))","v":""},{"$f":"IF(OrigTable!E1209=\"\",\"\",ScriptText!$E$1&CHAR(10)&ScriptText!$C$1)","v":""},{"$f":"IF(OrigTable!F1209=\"\",\"\",ScriptText!$B$1&CHAR(10)&ScriptText!$D$1)","v":""},{"$f":"IF(OrigTable!F1209=\"\",\"\",TEXT(OrigTable!F1209,\"00\"))","v":""},{"$f":"IF(OrigTable!F1209=\"\",\"\",ScriptText!$E$1&CHAR(10)&ScriptText!$C$1)","v":""},{"$f":"IF(OrigTable!G1209=\"\",\"\",ScriptText!$B$1&CHAR(10)&ScriptText!$D$1)","v":""},{"$f":"IF(OrigTable!G1209=\"\",\"\",TEXT(OrigTable!G1209,\"00\"))","v":""},{"$f":"IF(OrigTable!G1209=\"\",\"\",ScriptText!$E$1&CHAR(10)&ScriptText!$C$1)","v":""},0]
["\n\n\n",{"$f":"IF(OrigTable!A1210=\"\",\"\",ScriptText!$B$1&CHAR(10)&ScriptText!$D$1)","v":""},{"$f":"IF(OrigTable!A1210=\"\",\"\",TEXT(OrigTable!A1210,\"00\"))","v":""},{"$f":"IF(OrigTable!A1210=\"\",\"\",ScriptText!$E$1&CHAR(10)&ScriptText!$C$1)","v":""},{"$f":"IF(OrigTable!B1210=\"\",\"\",ScriptText!$B$1&CHAR(10)&ScriptText!$D$1)","v":""},{"$f":"IF(OrigTable!B1210=\"\",\"\",TEXT(OrigTable!B1210,\"00\"))","v":""},{"$f":"IF(OrigTable!B1210=\"\",\"\",ScriptText!$E$1&CHAR(10)&ScriptText!C1205)","v":""},{"$f":"IF(OrigTable!C1210=\"\",\"\",ScriptText!$B$1&CHAR(10)&ScriptText!$D$1)","v":""},{"$f":"IF(OrigTable!C1210=\"\",\"\",IF(LEN(OrigTable!C1210)>255,LEFT(OrigTable!C1210,250)&\". . .\",OrigTable!C1210))","v":""},{"$f":"IF(OrigTable!C1210=\"\",\"\",ScriptText!$E$1&CHAR(10)&ScriptText!$C$1)","v":""},{"$f":"IF(OrigTable!D1210=\"\",\"\",ScriptText!$B$1&CHAR(10)&ScriptText!$D$1)","v":""},{"$f":"IF(OrigTable!D1210=\"\",\"\",TEXT(OrigTable!D1210,\"00\"))","v":""},{"$f":"IF(OrigTable!D1210=\"\",\"\",ScriptText!$E$1&CHAR(10)&ScriptText!$C$1)","v":""},{"$f":"IF(OrigTable!E1210=\"\",\"\",ScriptText!$B$1&CHAR(10)&ScriptText!$D$1)","v":""},{"$f":"IF(OrigTable!E1210=\"\",\"\",TEXT(OrigTable!E1210,\"00\"))","v":""},{"$f":"IF(OrigTable!E1210=\"\",\"\",ScriptText!$E$1&CHAR(10)&ScriptText!$C$1)","v":""},{"$f":"IF(OrigTable!F1210=\"\",\"\",ScriptText!$B$1&CHAR(10)&ScriptText!$D$1)","v":""},{"$f":"IF(OrigTable!F1210=\"\",\"\",TEXT(OrigTable!F1210,\"00\"))","v":""},{"$f":"IF(OrigTable!F1210=\"\",\"\",ScriptText!$E$1&CHAR(10)&ScriptText!$C$1)","v":""},{"$f":"IF(OrigTable!G1210=\"\",\"\",ScriptText!$B$1&CHAR(10)&ScriptText!$D$1)","v":""},{"$f":"IF(OrigTable!G1210=\"\",\"\",TEXT(OrigTable!G1210,\"00\"))","v":""},{"$f":"IF(OrigTable!G1210=\"\",\"\",ScriptText!$E$1&CHAR(10)&ScriptText!$C$1)","v":""},0]
["\n\n\n",{"$f":"IF(OrigTable!A1211=\"\",\"\",ScriptText!$B$1&CHAR(10)&ScriptText!$D$1)","v":""},{"$f":"IF(OrigTable!A1211=\"\",\"\",TEXT(OrigTable!A1211,\"00\"))","v":""},{"$f":"IF(OrigTable!A1211=\"\",\"\",ScriptText!$E$1&CHAR(10)&ScriptText!$C$1)","v":""},{"$f":"IF(OrigTable!B1211=\"\",\"\",ScriptText!$B$1&CHAR(10)&ScriptText!$D$1)","v":""},{"$f":"IF(OrigTable!B1211=\"\",\"\",TEXT(OrigTable!B1211,\"00\"))","v":""},{"$f":"IF(OrigTable!B1211=\"\",\"\",ScriptText!$E$1&CHAR(10)&ScriptText!C1206)","v":""},{"$f":"IF(OrigTable!C1211=\"\",\"\",ScriptText!$B$1&CHAR(10)&ScriptText!$D$1)","v":""},{"$f":"IF(OrigTable!C1211=\"\",\"\",IF(LEN(OrigTable!C1211)>255,LEFT(OrigTable!C1211,250)&\". . .\",OrigTable!C1211))","v":""},{"$f":"IF(OrigTable!C1211=\"\",\"\",ScriptText!$E$1&CHAR(10)&ScriptText!$C$1)","v":""},{"$f":"IF(OrigTable!D1211=\"\",\"\",ScriptText!$B$1&CHAR(10)&ScriptText!$D$1)","v":""},{"$f":"IF(OrigTable!D1211=\"\",\"\",TEXT(OrigTable!D1211,\"00\"))","v":""},{"$f":"IF(OrigTable!D1211=\"\",\"\",ScriptText!$E$1&CHAR(10)&ScriptText!$C$1)","v":""},{"$f":"IF(OrigTable!E1211=\"\",\"\",ScriptText!$B$1&CHAR(10)&ScriptText!$D$1)","v":""},{"$f":"IF(OrigTable!E1211=\"\",\"\",TEXT(OrigTable!E1211,\"00\"))","v":""},{"$f":"IF(OrigTable!E1211=\"\",\"\",ScriptText!$E$1&CHAR(10)&ScriptText!$C$1)","v":""},{"$f":"IF(OrigTable!F1211=\"\",\"\",ScriptText!$B$1&CHAR(10)&ScriptText!$D$1)","v":""},{"$f":"IF(OrigTable!F1211=\"\",\"\",TEXT(OrigTable!F1211,\"00\"))","v":""},{"$f":"IF(OrigTable!F1211=\"\",\"\",ScriptText!$E$1&CHAR(10)&ScriptText!$C$1)","v":""},{"$f":"IF(OrigTable!G1211=\"\",\"\",ScriptText!$B$1&CHAR(10)&ScriptText!$D$1)","v":""},{"$f":"IF(OrigTable!G1211=\"\",\"\",TEXT(OrigTable!G1211,\"00\"))","v":""},{"$f":"IF(OrigTable!G1211=\"\",\"\",ScriptText!$E$1&CHAR(10)&ScriptText!$C$1)","v":""},0]
["\n\n\n",{"$f":"IF(OrigTable!A1212=\"\",\"\",ScriptText!$B$1&CHAR(10)&ScriptText!$D$1)","v":""},{"$f":"IF(OrigTable!A1212=\"\",\"\",TEXT(OrigTable!A1212,\"00\"))","v":""},{"$f":"IF(OrigTable!A1212=\"\",\"\",ScriptText!$E$1&CHAR(10)&ScriptText!$C$1)","v":""},{"$f":"IF(OrigTable!B1212=\"\",\"\",ScriptText!$B$1&CHAR(10)&ScriptText!$D$1)","v":""},{"$f":"IF(OrigTable!B1212=\"\",\"\",TEXT(OrigTable!B1212,\"00\"))","v":""},{"$f":"IF(OrigTable!B1212=\"\",\"\",ScriptText!$E$1&CHAR(10)&ScriptText!C1207)","v":""},{"$f":"IF(OrigTable!C1212=\"\",\"\",ScriptText!$B$1&CHAR(10)&ScriptText!$D$1)","v":""},{"$f":"IF(OrigTable!C1212=\"\",\"\",IF(LEN(OrigTable!C1212)>255,LEFT(OrigTable!C1212,250)&\". . .\",OrigTable!C1212))","v":""},{"$f":"IF(OrigTable!C1212=\"\",\"\",ScriptText!$E$1&CHAR(10)&ScriptText!$C$1)","v":""},{"$f":"IF(OrigTable!D1212=\"\",\"\",ScriptText!$B$1&CHAR(10)&ScriptText!$D$1)","v":""},{"$f":"IF(OrigTable!D1212=\"\",\"\",TEXT(OrigTable!D1212,\"00\"))","v":""},{"$f":"IF(OrigTable!D1212=\"\",\"\",ScriptText!$E$1&CHAR(10)&ScriptText!$C$1)","v":""},{"$f":"IF(OrigTable!E1212=\"\",\"\",ScriptText!$B$1&CHAR(10)&ScriptText!$D$1)","v":""},{"$f":"IF(OrigTable!E1212=\"\",\"\",TEXT(OrigTable!E1212,\"00\"))","v":""},{"$f":"IF(OrigTable!E1212=\"\",\"\",ScriptText!$E$1&CHAR(10)&ScriptText!$C$1)","v":""},{"$f":"IF(OrigTable!F1212=\"\",\"\",ScriptText!$B$1&CHAR(10)&ScriptText!$D$1)","v":""},{"$f":"IF(OrigTable!F1212=\"\",\"\",TEXT(OrigTable!F1212,\"00\"))","v":""},{"$f":"IF(OrigTable!F1212=\"\",\"\",ScriptText!$E$1&CHAR(10)&ScriptText!$C$1)","v":""},{"$f":"IF(OrigTable!G1212=\"\",\"\",ScriptText!$B$1&CHAR(10)&ScriptText!$D$1)","v":""},{"$f":"IF(OrigTable!G1212=\"\",\"\",TEXT(OrigTable!G1212,\"00\"))","v":""},{"$f":"IF(OrigTable!G1212=\"\",\"\",ScriptText!$E$1&CHAR(10)&ScriptText!$C$1)","v":""},0]
["\n\n\n",{"$f":"IF(OrigTable!A1213=\"\",\"\",ScriptText!$B$1&CHAR(10)&ScriptText!$D$1)","v":""},{"$f":"IF(OrigTable!A1213=\"\",\"\",TEXT(OrigTable!A1213,\"00\"))","v":""},{"$f":"IF(OrigTable!A1213=\"\",\"\",ScriptText!$E$1&CHAR(10)&ScriptText!$C$1)","v":""},{"$f":"IF(OrigTable!B1213=\"\",\"\",ScriptText!$B$1&CHAR(10)&ScriptText!$D$1)","v":""},{"$f":"IF(OrigTable!B1213=\"\",\"\",TEXT(OrigTable!B1213,\"00\"))","v":""},{"$f":"IF(OrigTable!B1213=\"\",\"\",ScriptText!$E$1&CHAR(10)&ScriptText!C1208)","v":""},{"$f":"IF(OrigTable!C1213=\"\",\"\",ScriptText!$B$1&CHAR(10)&ScriptText!$D$1)","v":""},{"$f":"IF(OrigTable!C1213=\"\",\"\",IF(LEN(OrigTable!C1213)>255,LEFT(OrigTable!C1213,250)&\". . .\",OrigTable!C1213))","v":""},{"$f":"IF(OrigTable!C1213=\"\",\"\",ScriptText!$E$1&CHAR(10)&ScriptText!$C$1)","v":""},{"$f":"IF(OrigTable!D1213=\"\",\"\",ScriptText!$B$1&CHAR(10)&ScriptText!$D$1)","v":""},{"$f":"IF(OrigTable!D1213=\"\",\"\",TEXT(OrigTable!D1213,\"00\"))","v":""},{"$f":"IF(OrigTable!D1213=\"\",\"\",ScriptText!$E$1&CHAR(10)&ScriptText!$C$1)","v":""},{"$f":"IF(OrigTable!E1213=\"\",\"\",ScriptText!$B$1&CHAR(10)&ScriptText!$D$1)","v":""},{"$f":"IF(OrigTable!E1213=\"\",\"\",TEXT(OrigTable!E1213,\"00\"))","v":""},{"$f":"IF(OrigTable!E1213=\"\",\"\",ScriptText!$E$1&CHAR(10)&ScriptText!$C$1)","v":""},{"$f":"IF(OrigTable!F1213=\"\",\"\",ScriptText!$B$1&CHAR(10)&ScriptText!$D$1)","v":""},{"$f":"IF(OrigTable!F1213=\"\",\"\",TEXT(OrigTable!F1213,\"00\"))","v":""},{"$f":"IF(OrigTable!F1213=\"\",\"\",ScriptText!$E$1&CHAR(10)&ScriptText!$C$1)","v":""},{"$f":"IF(OrigTable!G1213=\"\",\"\",ScriptText!$B$1&CHAR(10)&ScriptText!$D$1)","v":""},{"$f":"IF(OrigTable!G1213=\"\",\"\",TEXT(OrigTable!G1213,\"00\"))","v":""},{"$f":"IF(OrigTable!G1213=\"\",\"\",ScriptText!$E$1&CHAR(10)&ScriptText!$C$1)","v":""},0]
["\n\n\n",{"$f":"IF(OrigTable!A1214=\"\",\"\",ScriptText!$B$1&CHAR(10)&ScriptText!$D$1)","v":""},{"$f":"IF(OrigTable!A1214=\"\",\"\",TEXT(OrigTable!A1214,\"00\"))","v":""},{"$f":"IF(OrigTable!A1214=\"\",\"\",ScriptText!$E$1&CHAR(10)&ScriptText!$C$1)","v":""},{"$f":"IF(OrigTable!B1214=\"\",\"\",ScriptText!$B$1&CHAR(10)&ScriptText!$D$1)","v":""},{"$f":"IF(OrigTable!B1214=\"\",\"\",TEXT(OrigTable!B1214,\"00\"))","v":""},{"$f":"IF(OrigTable!B1214=\"\",\"\",ScriptText!$E$1&CHAR(10)&ScriptText!C1209)","v":""},{"$f":"IF(OrigTable!C1214=\"\",\"\",ScriptText!$B$1&CHAR(10)&ScriptText!$D$1)","v":""},{"$f":"IF(OrigTable!C1214=\"\",\"\",IF(LEN(OrigTable!C1214)>255,LEFT(OrigTable!C1214,250)&\". . .\",OrigTable!C1214))","v":""},{"$f":"IF(OrigTable!C1214=\"\",\"\",ScriptText!$E$1&CHAR(10)&ScriptText!$C$1)","v":""},{"$f":"IF(OrigTable!D1214=\"\",\"\",ScriptText!$B$1&CHAR(10)&ScriptText!$D$1)","v":""},{"$f":"IF(OrigTable!D1214=\"\",\"\",TEXT(OrigTable!D1214,\"00\"))","v":""},{"$f":"IF(OrigTable!D1214=\"\",\"\",ScriptText!$E$1&CHAR(10)&ScriptText!$C$1)","v":""},{"$f":"IF(OrigTable!E1214=\"\",\"\",ScriptText!$B$1&CHAR(10)&ScriptText!$D$1)","v":""},{"$f":"IF(OrigTable!E1214=\"\",\"\",TEXT(OrigTable!E1214,\"00\"))","v":""},{"$f":"IF(OrigTable!E1214=\"\",\"\",ScriptText!$E$1&CHAR(10)&ScriptText!$C$1)","v":""},{"$f":"IF(OrigTable!F1214=\"\",\"\",ScriptText!$B$1&CHAR(10)&ScriptText!$D$1)","v":""},{"$f":"IF(OrigTable!F1214=\"\",\"\",TEXT(OrigTable!F1214,\"00\"))","v":""},{"$f":"IF(OrigTable!F1214=\"\",\"\",ScriptText!$E$1&CHAR(10)&ScriptText!$C$1)","v":""},{"$f":"IF(OrigTable!G1214=\"\",\"\",ScriptText!$B$1&CHAR(10)&ScriptText!$D$1)","v":""},{"$f":"IF(OrigTable!G1214=\"\",\"\",TEXT(OrigTable!G1214,\"00\"))","v":""},{"$f":"IF(OrigTable!G1214=\"\",\"\",ScriptText!$E$1&CHAR(10)&ScriptText!$C$1)","v":""},0]
["\n\n\n",{"$f":"IF(OrigTable!A1215=\"\",\"\",ScriptText!$B$1&CHAR(10)&ScriptText!$D$1)","v":""},{"$f":"IF(OrigTable!A1215=\"\",\"\",TEXT(OrigTable!A1215,\"00\"))","v":""},{"$f":"IF(OrigTable!A1215=\"\",\"\",ScriptText!$E$1&CHAR(10)&ScriptText!$C$1)","v":""},{"$f":"IF(OrigTable!B1215=\"\",\"\",ScriptText!$B$1&CHAR(10)&ScriptText!$D$1)","v":""},{"$f":"IF(OrigTable!B1215=\"\",\"\",TEXT(OrigTable!B1215,\"00\"))","v":""},{"$f":"IF(OrigTable!B1215=\"\",\"\",ScriptText!$E$1&CHAR(10)&ScriptText!C1210)","v":""},{"$f":"IF(OrigTable!C1215=\"\",\"\",ScriptText!$B$1&CHAR(10)&ScriptText!$D$1)","v":""},{"$f":"IF(OrigTable!C1215=\"\",\"\",IF(LEN(OrigTable!C1215)>255,LEFT(OrigTable!C1215,250)&\". . .\",OrigTable!C1215))","v":""},{"$f":"IF(OrigTable!C1215=\"\",\"\",ScriptText!$E$1&CHAR(10)&ScriptText!$C$1)","v":""},{"$f":"IF(OrigTable!D1215=\"\",\"\",ScriptText!$B$1&CHAR(10)&ScriptText!$D$1)","v":""},{"$f":"IF(OrigTable!D1215=\"\",\"\",TEXT(OrigTable!D1215,\"00\"))","v":""},{"$f":"IF(OrigTable!D1215=\"\",\"\",ScriptText!$E$1&CHAR(10)&ScriptText!$C$1)","v":""},{"$f":"IF(OrigTable!E1215=\"\",\"\",ScriptText!$B$1&CHAR(10)&ScriptText!$D$1)","v":""},{"$f":"IF(OrigTable!E1215=\"\",\"\",TEXT(OrigTable!E1215,\"00\"))","v":""},{"$f":"IF(OrigTable!E1215=\"\",\"\",ScriptText!$E$1&CHAR(10)&ScriptText!$C$1)","v":""},{"$f":"IF(OrigTable!F1215=\"\",\"\",ScriptText!$B$1&CHAR(10)&ScriptText!$D$1)","v":""},{"$f":"IF(OrigTable!F1215=\"\",\"\",TEXT(OrigTable!F1215,\"00\"))","v":""},{"$f":"IF(OrigTable!F1215=\"\",\"\",ScriptText!$E$1&CHAR(10)&ScriptText!$C$1)","v":""},{"$f":"IF(OrigTable!G1215=\"\",\"\",ScriptText!$B$1&CHAR(10)&ScriptText!$D$1)","v":""},{"$f":"IF(OrigTable!G1215=\"\",\"\",TEXT(OrigTable!G1215,\"00\"))","v":""},{"$f":"IF(OrigTable!G1215=\"\",\"\",ScriptText!$E$1&CHAR(10)&ScriptText!$C$1)","v":""},0]
["\n\n\n",{"$f":"IF(OrigTable!A1216=\"\",\"\",ScriptText!$B$1&CHAR(10)&ScriptText!$D$1)","v":""},{"$f":"IF(OrigTable!A1216=\"\",\"\",TEXT(OrigTable!A1216,\"00\"))","v":""},{"$f":"IF(OrigTable!A1216=\"\",\"\",ScriptText!$E$1&CHAR(10)&ScriptText!$C$1)","v":""},{"$f":"IF(OrigTable!B1216=\"\",\"\",ScriptText!$B$1&CHAR(10)&ScriptText!$D$1)","v":""},{"$f":"IF(OrigTable!B1216=\"\",\"\",TEXT(OrigTable!B1216,\"00\"))","v":""},{"$f":"IF(OrigTable!B1216=\"\",\"\",ScriptText!$E$1&CHAR(10)&ScriptText!C1211)","v":""},{"$f":"IF(OrigTable!C1216=\"\",\"\",ScriptText!$B$1&CHAR(10)&ScriptText!$D$1)","v":""},{"$f":"IF(OrigTable!C1216=\"\",\"\",IF(LEN(OrigTable!C1216)>255,LEFT(OrigTable!C1216,250)&\". . .\",OrigTable!C1216))","v":""},{"$f":"IF(OrigTable!C1216=\"\",\"\",ScriptText!$E$1&CHAR(10)&ScriptText!$C$1)","v":""},{"$f":"IF(OrigTable!D1216=\"\",\"\",ScriptText!$B$1&CHAR(10)&ScriptText!$D$1)","v":""},{"$f":"IF(OrigTable!D1216=\"\",\"\",TEXT(OrigTable!D1216,\"00\"))","v":""},{"$f":"IF(OrigTable!D1216=\"\",\"\",ScriptText!$E$1&CHAR(10)&ScriptText!$C$1)","v":""},{"$f":"IF(OrigTable!E1216=\"\",\"\",ScriptText!$B$1&CHAR(10)&ScriptText!$D$1)","v":""},{"$f":"IF(OrigTable!E1216=\"\",\"\",TEXT(OrigTable!E1216,\"00\"))","v":""},{"$f":"IF(OrigTable!E1216=\"\",\"\",ScriptText!$E$1&CHAR(10)&ScriptText!$C$1)","v":""},{"$f":"IF(OrigTable!F1216=\"\",\"\",ScriptText!$B$1&CHAR(10)&ScriptText!$D$1)","v":""},{"$f":"IF(OrigTable!F1216=\"\",\"\",TEXT(OrigTable!F1216,\"00\"))","v":""},{"$f":"IF(OrigTable!F1216=\"\",\"\",ScriptText!$E$1&CHAR(10)&ScriptText!$C$1)","v":""},{"$f":"IF(OrigTable!G1216=\"\",\"\",ScriptText!$B$1&CHAR(10)&ScriptText!$D$1)","v":""},{"$f":"IF(OrigTable!G1216=\"\",\"\",TEXT(OrigTable!G1216,\"00\"))","v":""},{"$f":"IF(OrigTable!G1216=\"\",\"\",ScriptText!$E$1&CHAR(10)&ScriptText!$C$1)","v":""},0]
["\n\n\n",{"$f":"IF(OrigTable!A1217=\"\",\"\",ScriptText!$B$1&CHAR(10)&ScriptText!$D$1)","v":""},{"$f":"IF(OrigTable!A1217=\"\",\"\",TEXT(OrigTable!A1217,\"00\"))","v":""},{"$f":"IF(OrigTable!A1217=\"\",\"\",ScriptText!$E$1&CHAR(10)&ScriptText!$C$1)","v":""},{"$f":"IF(OrigTable!B1217=\"\",\"\",ScriptText!$B$1&CHAR(10)&ScriptText!$D$1)","v":""},{"$f":"IF(OrigTable!B1217=\"\",\"\",TEXT(OrigTable!B1217,\"00\"))","v":""},{"$f":"IF(OrigTable!B1217=\"\",\"\",ScriptText!$E$1&CHAR(10)&ScriptText!C1212)","v":""},{"$f":"IF(OrigTable!C1217=\"\",\"\",ScriptText!$B$1&CHAR(10)&ScriptText!$D$1)","v":""},{"$f":"IF(OrigTable!C1217=\"\",\"\",IF(LEN(OrigTable!C1217)>255,LEFT(OrigTable!C1217,250)&\". . .\",OrigTable!C1217))","v":""},{"$f":"IF(OrigTable!C1217=\"\",\"\",ScriptText!$E$1&CHAR(10)&ScriptText!$C$1)","v":""},{"$f":"IF(OrigTable!D1217=\"\",\"\",ScriptText!$B$1&CHAR(10)&ScriptText!$D$1)","v":""},{"$f":"IF(OrigTable!D1217=\"\",\"\",TEXT(OrigTable!D1217,\"00\"))","v":""},{"$f":"IF(OrigTable!D1217=\"\",\"\",ScriptText!$E$1&CHAR(10)&ScriptText!$C$1)","v":""},{"$f":"IF(OrigTable!E1217=\"\",\"\",ScriptText!$B$1&CHAR(10)&ScriptText!$D$1)","v":""},{"$f":"IF(OrigTable!E1217=\"\",\"\",TEXT(OrigTable!E1217,\"00\"))","v":""},{"$f":"IF(OrigTable!E1217=\"\",\"\",ScriptText!$E$1&CHAR(10)&ScriptText!$C$1)","v":""},{"$f":"IF(OrigTable!F1217=\"\",\"\",ScriptText!$B$1&CHAR(10)&ScriptText!$D$1)","v":""},{"$f":"IF(OrigTable!F1217=\"\",\"\",TEXT(OrigTable!F1217,\"00\"))","v":""},{"$f":"IF(OrigTable!F1217=\"\",\"\",ScriptText!$E$1&CHAR(10)&ScriptText!$C$1)","v":""},{"$f":"IF(OrigTable!G1217=\"\",\"\",ScriptText!$B$1&CHAR(10)&ScriptText!$D$1)","v":""},{"$f":"IF(OrigTable!G1217=\"\",\"\",TEXT(OrigTable!G1217,\"00\"))","v":""},{"$f":"IF(OrigTable!G1217=\"\",\"\",ScriptText!$E$1&CHAR(10)&ScriptText!$C$1)","v":""},0]
["\n\n\n",{"$f":"IF(OrigTable!A1218=\"\",\"\",ScriptText!$B$1&CHAR(10)&ScriptText!$D$1)","v":""},{"$f":"IF(OrigTable!A1218=\"\",\"\",TEXT(OrigTable!A1218,\"00\"))","v":""},{"$f":"IF(OrigTable!A1218=\"\",\"\",ScriptText!$E$1&CHAR(10)&ScriptText!$C$1)","v":""},{"$f":"IF(OrigTable!B1218=\"\",\"\",ScriptText!$B$1&CHAR(10)&ScriptText!$D$1)","v":""},{"$f":"IF(OrigTable!B1218=\"\",\"\",TEXT(OrigTable!B1218,\"00\"))","v":""},{"$f":"IF(OrigTable!B1218=\"\",\"\",ScriptText!$E$1&CHAR(10)&ScriptText!C1213)","v":""},{"$f":"IF(OrigTable!C1218=\"\",\"\",ScriptText!$B$1&CHAR(10)&ScriptText!$D$1)","v":""},{"$f":"IF(OrigTable!C1218=\"\",\"\",IF(LEN(OrigTable!C1218)>255,LEFT(OrigTable!C1218,250)&\". . .\",OrigTable!C1218))","v":""},{"$f":"IF(OrigTable!C1218=\"\",\"\",ScriptText!$E$1&CHAR(10)&ScriptText!$C$1)","v":""},{"$f":"IF(OrigTable!D1218=\"\",\"\",ScriptText!$B$1&CHAR(10)&ScriptText!$D$1)","v":""},{"$f":"IF(OrigTable!D1218=\"\",\"\",TEXT(OrigTable!D1218,\"00\"))","v":""},{"$f":"IF(OrigTable!D1218=\"\",\"\",ScriptText!$E$1&CHAR(10)&ScriptText!$C$1)","v":""},{"$f":"IF(OrigTable!E1218=\"\",\"\",ScriptText!$B$1&CHAR(10)&ScriptText!$D$1)","v":""},{"$f":"IF(OrigTable!E1218=\"\",\"\",TEXT(OrigTable!E1218,\"00\"))","v":""},{"$f":"IF(OrigTable!E1218=\"\",\"\",ScriptText!$E$1&CHAR(10)&ScriptText!$C$1)","v":""},{"$f":"IF(OrigTable!F1218=\"\",\"\",ScriptText!$B$1&CHAR(10)&ScriptText!$D$1)","v":""},{"$f":"IF(OrigTable!F1218=\"\",\"\",TEXT(OrigTable!F1218,\"00\"))","v":""},{"$f":"IF(OrigTable!F1218=\"\",\"\",ScriptText!$E$1&CHAR(10)&ScriptText!$C$1)","v":""},{"$f":"IF(OrigTable!G1218=\"\",\"\",ScriptText!$B$1&CHAR(10)&ScriptText!$D$1)","v":""},{"$f":"IF(OrigTable!G1218=\"\",\"\",TEXT(OrigTable!G1218,\"00\"))","v":""},{"$f":"IF(OrigTable!G1218=\"\",\"\",ScriptText!$E$1&CHAR(10)&ScriptText!$C$1)","v":""},0]
["\n\n\n",{"$f":"IF(OrigTable!A1219=\"\",\"\",ScriptText!$B$1&CHAR(10)&ScriptText!$D$1)","v":""},{"$f":"IF(OrigTable!A1219=\"\",\"\",TEXT(OrigTable!A1219,\"00\"))","v":""},{"$f":"IF(OrigTable!A1219=\"\",\"\",ScriptText!$E$1&CHAR(10)&ScriptText!$C$1)","v":""},{"$f":"IF(OrigTable!B1219=\"\",\"\",ScriptText!$B$1&CHAR(10)&ScriptText!$D$1)","v":""},{"$f":"IF(OrigTable!B1219=\"\",\"\",TEXT(OrigTable!B1219,\"00\"))","v":""},{"$f":"IF(OrigTable!B1219=\"\",\"\",ScriptText!$E$1&CHAR(10)&ScriptText!C1214)","v":""},{"$f":"IF(OrigTable!C1219=\"\",\"\",ScriptText!$B$1&CHAR(10)&ScriptText!$D$1)","v":""},{"$f":"IF(OrigTable!C1219=\"\",\"\",IF(LEN(OrigTable!C1219)>255,LEFT(OrigTable!C1219,250)&\". . .\",OrigTable!C1219))","v":""},{"$f":"IF(OrigTable!C1219=\"\",\"\",ScriptText!$E$1&CHAR(10)&ScriptText!$C$1)","v":""},{"$f":"IF(OrigTable!D1219=\"\",\"\",ScriptText!$B$1&CHAR(10)&ScriptText!$D$1)","v":""},{"$f":"IF(OrigTable!D1219=\"\",\"\",TEXT(OrigTable!D1219,\"00\"))","v":""},{"$f":"IF(OrigTable!D1219=\"\",\"\",ScriptText!$E$1&CHAR(10)&ScriptText!$C$1)","v":""},{"$f":"IF(OrigTable!E1219=\"\",\"\",ScriptText!$B$1&CHAR(10)&ScriptText!$D$1)","v":""},{"$f":"IF(OrigTable!E1219=\"\",\"\",TEXT(OrigTable!E1219,\"00\"))","v":""},{"$f":"IF(OrigTable!E1219=\"\",\"\",ScriptText!$E$1&CHAR(10)&ScriptText!$C$1)","v":""},{"$f":"IF(OrigTable!F1219=\"\",\"\",ScriptText!$B$1&CHAR(10)&ScriptText!$D$1)","v":""},{"$f":"IF(OrigTable!F1219=\"\",\"\",TEXT(OrigTable!F1219,\"00\"))","v":""},{"$f":"IF(OrigTable!F1219=\"\",\"\",ScriptText!$E$1&CHAR(10)&ScriptText!$C$1)","v":""},{"$f":"IF(OrigTable!G1219=\"\",\"\",ScriptText!$B$1&CHAR(10)&ScriptText!$D$1)","v":""},{"$f":"IF(OrigTable!G1219=\"\",\"\",TEXT(OrigTable!G1219,\"00\"))","v":""},{"$f":"IF(OrigTable!G1219=\"\",\"\",ScriptText!$E$1&CHAR(10)&ScriptText!$C$1)","v":""},0]
["\n\n\n",{"$f":"IF(OrigTable!A1220=\"\",\"\",ScriptText!$B$1&CHAR(10)&ScriptText!$D$1)","v":""},{"$f":"IF(OrigTable!A1220=\"\",\"\",TEXT(OrigTable!A1220,\"00\"))","v":""},{"$f":"IF(OrigTable!A1220=\"\",\"\",ScriptText!$E$1&CHAR(10)&ScriptText!$C$1)","v":""},{"$f":"IF(OrigTable!B1220=\"\",\"\",ScriptText!$B$1&CHAR(10)&ScriptText!$D$1)","v":""},{"$f":"IF(OrigTable!B1220=\"\",\"\",TEXT(OrigTable!B1220,\"00\"))","v":""},{"$f":"IF(OrigTable!B1220=\"\",\"\",ScriptText!$E$1&CHAR(10)&ScriptText!C1215)","v":""},{"$f":"IF(OrigTable!C1220=\"\",\"\",ScriptText!$B$1&CHAR(10)&ScriptText!$D$1)","v":""},{"$f":"IF(OrigTable!C1220=\"\",\"\",IF(LEN(OrigTable!C1220)>255,LEFT(OrigTable!C1220,250)&\". . .\",OrigTable!C1220))","v":""},{"$f":"IF(OrigTable!C1220=\"\",\"\",ScriptText!$E$1&CHAR(10)&ScriptText!$C$1)","v":""},{"$f":"IF(OrigTable!D1220=\"\",\"\",ScriptText!$B$1&CHAR(10)&ScriptText!$D$1)","v":""},{"$f":"IF(OrigTable!D1220=\"\",\"\",TEXT(OrigTable!D1220,\"00\"))","v":""},{"$f":"IF(OrigTable!D1220=\"\",\"\",ScriptText!$E$1&CHAR(10)&ScriptText!$C$1)","v":""},{"$f":"IF(OrigTable!E1220=\"\",\"\",ScriptText!$B$1&CHAR(10)&ScriptText!$D$1)","v":""},{"$f":"IF(OrigTable!E1220=\"\",\"\",TEXT(OrigTable!E1220,\"00\"))","v":""},{"$f":"IF(OrigTable!E1220=\"\",\"\",ScriptText!$E$1&CHAR(10)&ScriptText!$C$1)","v":""},{"$f":"IF(OrigTable!F1220=\"\",\"\",ScriptText!$B$1&CHAR(10)&ScriptText!$D$1)","v":""},{"$f":"IF(OrigTable!F1220=\"\",\"\",TEXT(OrigTable!F1220,\"00\"))","v":""},{"$f":"IF(OrigTable!F1220=\"\",\"\",ScriptText!$E$1&CHAR(10)&ScriptText!$C$1)","v":""},{"$f":"IF(OrigTable!G1220=\"\",\"\",ScriptText!$B$1&CHAR(10)&ScriptText!$D$1)","v":""},{"$f":"IF(OrigTable!G1220=\"\",\"\",TEXT(OrigTable!G1220,\"00\"))","v":""},{"$f":"IF(OrigTable!G1220=\"\",\"\",ScriptText!$E$1&CHAR(10)&ScriptText!$C$1)","v":""},0]
["\n\n\n",{"$f":"IF(OrigTable!A1221=\"\",\"\",ScriptText!$B$1&CHAR(10)&ScriptText!$D$1)","v":""},{"$f":"IF(OrigTable!A1221=\"\",\"\",TEXT(OrigTable!A1221,\"00\"))","v":""},{"$f":"IF(OrigTable!A1221=\"\",\"\",ScriptText!$E$1&CHAR(10)&ScriptText!$C$1)","v":""},{"$f":"IF(OrigTable!B1221=\"\",\"\",ScriptText!$B$1&CHAR(10)&ScriptText!$D$1)","v":""},{"$f":"IF(OrigTable!B1221=\"\",\"\",TEXT(OrigTable!B1221,\"00\"))","v":""},{"$f":"IF(OrigTable!B1221=\"\",\"\",ScriptText!$E$1&CHAR(10)&ScriptText!C1216)","v":""},{"$f":"IF(OrigTable!C1221=\"\",\"\",ScriptText!$B$1&CHAR(10)&ScriptText!$D$1)","v":""},{"$f":"IF(OrigTable!C1221=\"\",\"\",IF(LEN(OrigTable!C1221)>255,LEFT(OrigTable!C1221,250)&\". . .\",OrigTable!C1221))","v":""},{"$f":"IF(OrigTable!C1221=\"\",\"\",ScriptText!$E$1&CHAR(10)&ScriptText!$C$1)","v":""},{"$f":"IF(OrigTable!D1221=\"\",\"\",ScriptText!$B$1&CHAR(10)&ScriptText!$D$1)","v":""},{"$f":"IF(OrigTable!D1221=\"\",\"\",TEXT(OrigTable!D1221,\"00\"))","v":""},{"$f":"IF(OrigTable!D1221=\"\",\"\",ScriptText!$E$1&CHAR(10)&ScriptText!$C$1)","v":""},{"$f":"IF(OrigTable!E1221=\"\",\"\",ScriptText!$B$1&CHAR(10)&ScriptText!$D$1)","v":""},{"$f":"IF(OrigTable!E1221=\"\",\"\",TEXT(OrigTable!E1221,\"00\"))","v":""},{"$f":"IF(OrigTable!E1221=\"\",\"\",ScriptText!$E$1&CHAR(10)&ScriptText!$C$1)","v":""},{"$f":"IF(OrigTable!F1221=\"\",\"\",ScriptText!$B$1&CHAR(10)&ScriptText!$D$1)","v":""},{"$f":"IF(OrigTable!F1221=\"\",\"\",TEXT(OrigTable!F1221,\"00\"))","v":""},{"$f":"IF(OrigTable!F1221=\"\",\"\",ScriptText!$E$1&CHAR(10)&ScriptText!$C$1)","v":""},{"$f":"IF(OrigTable!G1221=\"\",\"\",ScriptText!$B$1&CHAR(10)&ScriptText!$D$1)","v":""},{"$f":"IF(OrigTable!G1221=\"\",\"\",TEXT(OrigTable!G1221,\"00\"))","v":""},{"$f":"IF(OrigTable!G1221=\"\",\"\",ScriptText!$E$1&CHAR(10)&ScriptText!$C$1)","v":""},0]
["\n\n\n",{"$f":"IF(OrigTable!A1222=\"\",\"\",ScriptText!$B$1&CHAR(10)&ScriptText!$D$1)","v":""},{"$f":"IF(OrigTable!A1222=\"\",\"\",TEXT(OrigTable!A1222,\"00\"))","v":""},{"$f":"IF(OrigTable!A1222=\"\",\"\",ScriptText!$E$1&CHAR(10)&ScriptText!$C$1)","v":""},{"$f":"IF(OrigTable!B1222=\"\",\"\",ScriptText!$B$1&CHAR(10)&ScriptText!$D$1)","v":""},{"$f":"IF(OrigTable!B1222=\"\",\"\",TEXT(OrigTable!B1222,\"00\"))","v":""},{"$f":"IF(OrigTable!B1222=\"\",\"\",ScriptText!$E$1&CHAR(10)&ScriptText!C1217)","v":""},{"$f":"IF(OrigTable!C1222=\"\",\"\",ScriptText!$B$1&CHAR(10)&ScriptText!$D$1)","v":""},{"$f":"IF(OrigTable!C1222=\"\",\"\",IF(LEN(OrigTable!C1222)>255,LEFT(OrigTable!C1222,250)&\". . .\",OrigTable!C1222))","v":""},{"$f":"IF(OrigTable!C1222=\"\",\"\",ScriptText!$E$1&CHAR(10)&ScriptText!$C$1)","v":""},{"$f":"IF(OrigTable!D1222=\"\",\"\",ScriptText!$B$1&CHAR(10)&ScriptText!$D$1)","v":""},{"$f":"IF(OrigTable!D1222=\"\",\"\",TEXT(OrigTable!D1222,\"00\"))","v":""},{"$f":"IF(OrigTable!D1222=\"\",\"\",ScriptText!$E$1&CHAR(10)&ScriptText!$C$1)","v":""},{"$f":"IF(OrigTable!E1222=\"\",\"\",ScriptText!$B$1&CHAR(10)&ScriptText!$D$1)","v":""},{"$f":"IF(OrigTable!E1222=\"\",\"\",TEXT(OrigTable!E1222,\"00\"))","v":""},{"$f":"IF(OrigTable!E1222=\"\",\"\",ScriptText!$E$1&CHAR(10)&ScriptText!$C$1)","v":""},{"$f":"IF(OrigTable!F1222=\"\",\"\",ScriptText!$B$1&CHAR(10)&ScriptText!$D$1)","v":""},{"$f":"IF(OrigTable!F1222=\"\",\"\",TEXT(OrigTable!F1222,\"00\"))","v":""},{"$f":"IF(OrigTable!F1222=\"\",\"\",ScriptText!$E$1&CHAR(10)&ScriptText!$C$1)","v":""},{"$f":"IF(OrigTable!G1222=\"\",\"\",ScriptText!$B$1&CHAR(10)&ScriptText!$D$1)","v":""},{"$f":"IF(OrigTable!G1222=\"\",\"\",TEXT(OrigTable!G1222,\"00\"))","v":""},{"$f":"IF(OrigTable!G1222=\"\",\"\",ScriptText!$E$1&CHAR(10)&ScriptText!$C$1)","v":""},{"$f":"IF(LEN(A1222)>3,ROW(),0)","v":0}]
["\n\n\n",{"$f":"IF(OrigTable!A1223=\"\",\"\",ScriptText!$B$1&CHAR(10)&ScriptText!$D$1)","v":""},{"$f":"IF(OrigTable!A1223=\"\",\"\",TEXT(OrigTable!A1223,\"00\"))","v":""},{"$f":"IF(OrigTable!A1223=\"\",\"\",ScriptText!$E$1&CHAR(10)&ScriptText!$C$1)","v":""},{"$f":"IF(OrigTable!B1223=\"\",\"\",ScriptText!$B$1&CHAR(10)&ScriptText!$D$1)","v":""},{"$f":"IF(OrigTable!B1223=\"\",\"\",TEXT(OrigTable!B1223,\"00\"))","v":""},{"$f":"IF(OrigTable!B1223=\"\",\"\",ScriptText!$E$1&CHAR(10)&ScriptText!C1218)","v":""},{"$f":"IF(OrigTable!C1223=\"\",\"\",ScriptText!$B$1&CHAR(10)&ScriptText!$D$1)","v":""},{"$f":"IF(OrigTable!C1223=\"\",\"\",IF(LEN(OrigTable!C1223)>255,LEFT(OrigTable!C1223,250)&\". . .\",OrigTable!C1223))","v":""},{"$f":"IF(OrigTable!C1223=\"\",\"\",ScriptText!$E$1&CHAR(10)&ScriptText!$C$1)","v":""},{"$f":"IF(OrigTable!D1223=\"\",\"\",ScriptText!$B$1&CHAR(10)&ScriptText!$D$1)","v":""},{"$f":"IF(OrigTable!D1223=\"\",\"\",TEXT(OrigTable!D1223,\"00\"))","v":""},{"$f":"IF(OrigTable!D1223=\"\",\"\",ScriptText!$E$1&CHAR(10)&ScriptText!$C$1)","v":""},{"$f":"IF(OrigTable!E1223=\"\",\"\",ScriptText!$B$1&CHAR(10)&ScriptText!$D$1)","v":""},{"$f":"IF(OrigTable!E1223=\"\",\"\",TEXT(OrigTable!E1223,\"00\"))","v":""},{"$f":"IF(OrigTable!E1223=\"\",\"\",ScriptText!$E$1&CHAR(10)&ScriptText!$C$1)","v":""},{"$f":"IF(OrigTable!F1223=\"\",\"\",ScriptText!$B$1&CHAR(10)&ScriptText!$D$1)","v":""},{"$f":"IF(OrigTable!F1223=\"\",\"\",TEXT(OrigTable!F1223,\"00\"))","v":""},{"$f":"IF(OrigTable!F1223=\"\",\"\",ScriptText!$E$1&CHAR(10)&ScriptText!$C$1)","v":""},{"$f":"IF(OrigTable!G1223=\"\",\"\",ScriptText!$B$1&CHAR(10)&ScriptText!$D$1)","v":""},{"$f":"IF(OrigTable!G1223=\"\",\"\",TEXT(OrigTable!G1223,\"00\"))","v":""},{"$f":"IF(OrigTable!G1223=\"\",\"\",ScriptText!$E$1&CHAR(10)&ScriptText!$C$1)","v":""},0]
["\n\n\n",{"$f":"IF(OrigTable!A1224=\"\",\"\",ScriptText!$B$1&CHAR(10)&ScriptText!$D$1)","v":""},{"$f":"IF(OrigTable!A1224=\"\",\"\",TEXT(OrigTable!A1224,\"00\"))","v":""},{"$f":"IF(OrigTable!A1224=\"\",\"\",ScriptText!$E$1&CHAR(10)&ScriptText!$C$1)","v":""},{"$f":"IF(OrigTable!B1224=\"\",\"\",ScriptText!$B$1&CHAR(10)&ScriptText!$D$1)","v":""},{"$f":"IF(OrigTable!B1224=\"\",\"\",TEXT(OrigTable!B1224,\"00\"))","v":""},{"$f":"IF(OrigTable!B1224=\"\",\"\",ScriptText!$E$1&CHAR(10)&ScriptText!C1219)","v":""},{"$f":"IF(OrigTable!C1224=\"\",\"\",ScriptText!$B$1&CHAR(10)&ScriptText!$D$1)","v":""},{"$f":"IF(OrigTable!C1224=\"\",\"\",IF(LEN(OrigTable!C1224)>255,LEFT(OrigTable!C1224,250)&\". . .\",OrigTable!C1224))","v":""},{"$f":"IF(OrigTable!C1224=\"\",\"\",ScriptText!$E$1&CHAR(10)&ScriptText!$C$1)","v":""},{"$f":"IF(OrigTable!D1224=\"\",\"\",ScriptText!$B$1&CHAR(10)&ScriptText!$D$1)","v":""},{"$f":"IF(OrigTable!D1224=\"\",\"\",TEXT(OrigTable!D1224,\"00\"))","v":""},{"$f":"IF(OrigTable!D1224=\"\",\"\",ScriptText!$E$1&CHAR(10)&ScriptText!$C$1)","v":""},{"$f":"IF(OrigTable!E1224=\"\",\"\",ScriptText!$B$1&CHAR(10)&ScriptText!$D$1)","v":""},{"$f":"IF(OrigTable!E1224=\"\",\"\",TEXT(OrigTable!E1224,\"00\"))","v":""},{"$f":"IF(OrigTable!E1224=\"\",\"\",ScriptText!$E$1&CHAR(10)&ScriptText!$C$1)","v":""},{"$f":"IF(OrigTable!F1224=\"\",\"\",ScriptText!$B$1&CHAR(10)&ScriptText!$D$1)","v":""},{"$f":"IF(OrigTable!F1224=\"\",\"\",TEXT(OrigTable!F1224,\"00\"))","v":""},{"$f":"IF(OrigTable!F1224=\"\",\"\",ScriptText!$E$1&CHAR(10)&ScriptText!$C$1)","v":""},{"$f":"IF(OrigTable!G1224=\"\",\"\",ScriptText!$B$1&CHAR(10)&ScriptText!$D$1)","v":""},{"$f":"IF(OrigTable!G1224=\"\",\"\",TEXT(OrigTable!G1224,\"00\"))","v":""},{"$f":"IF(OrigTable!G1224=\"\",\"\",ScriptText!$E$1&CHAR(10)&ScriptText!$C$1)","v":""},0]
[{"$f":"_xlfn.TEXTJOIN(\"\",TRUE,B1225:D1225)&CHAR(10)&_xlfn.TEXTJOIN(\"\",TRUE,E1225:G1225)&CHAR(10)&_xlfn.TEXTJOIN(\"\",TRUE,H1225:J1225)&CHAR(10)&_xlfn.TEXTJOIN(\"\",TRUE,K1225:M1225)&_xlfn.TEXTJOIN(\"\",TRUE,N1225:P1225)&_xlfn.TEXTJOIN(\"\",TRUE,Q1225:S1225)&_xlfn.TEXTJOIN(\"\",TRUE,T1225:V1225)","v":"\n\n\n"},{"$f":"IF(OrigTable!A1225=\"\",\"\",ScriptText!$B$1&CHAR(10)&ScriptText!$D$1)","v":""},{"$f":"IF(OrigTable!A1225=\"\",\"\",TEXT(OrigTable!A1225,\"00\"))","v":""},{"$f":"IF(OrigTable!A1225=\"\",\"\",ScriptText!$E$1&CHAR(10)&ScriptText!$C$1)","v":""},{"$f":"IF(OrigTable!B1225=\"\",\"\",ScriptText!$B$1&CHAR(10)&ScriptText!$D$1)","v":""},{"$f":"IF(OrigTable!B1225=\"\",\"\",TEXT(OrigTable!B1225,\"00\"))","v":""},{"$f":"IF(OrigTable!B1225=\"\",\"\",ScriptText!$E$1&CHAR(10)&ScriptText!C1220)","v":""},{"$f":"IF(OrigTable!C1225=\"\",\"\",ScriptText!$B$1&CHAR(10)&ScriptText!$D$1)","v":""},{"$f":"IF(OrigTable!C1225=\"\",\"\",IF(LEN(OrigTable!C1225)>255,LEFT(OrigTable!C1225,250)&\". . .\",OrigTable!C1225))","v":""},{"$f":"IF(OrigTable!C1225=\"\",\"\",ScriptText!$E$1&CHAR(10)&ScriptText!$C$1)","v":""},{"$f":"IF(OrigTable!D1225=\"\",\"\",ScriptText!$B$1&CHAR(10)&ScriptText!$D$1)","v":""},{"$f":"IF(OrigTable!D1225=\"\",\"\",TEXT(OrigTable!D1225,\"00\"))","v":""},{"$f":"IF(OrigTable!D1225=\"\",\"\",ScriptText!$E$1&CHAR(10)&ScriptText!$C$1)","v":""},{"$f":"IF(OrigTable!E1225=\"\",\"\",ScriptText!$B$1&CHAR(10)&ScriptText!$D$1)","v":""},{"$f":"IF(OrigTable!E1225=\"\",\"\",TEXT(OrigTable!E1225,\"00\"))","v":""},{"$f":"IF(OrigTable!E1225=\"\",\"\",ScriptText!$E$1&CHAR(10)&ScriptText!$C$1)","v":""},{"$f":"IF(OrigTable!F1225=\"\",\"\",ScriptText!$B$1&CHAR(10)&ScriptText!$D$1)","v":""},{"$f":"IF(OrigTable!F1225=\"\",\"\",TEXT(OrigTable!F1225,\"00\"))","v":""},{"$f":"IF(OrigTable!F1225=\"\",\"\",ScriptText!$E$1&CHAR(10)&ScriptText!$C$1)","v":""},{"$f":"IF(OrigTable!G1225=\"\",\"\",ScriptText!$B$1&CHAR(10)&ScriptText!$D$1)","v":""},{"$f":"IF(OrigTable!G1225=\"\",\"\",TEXT(OrigTable!G1225,\"00\"))","v":""},{"$f":"IF(OrigTable!G1225=\"\",\"\",ScriptText!$E$1&CHAR(10)&ScriptText!$C$1)","v":""},0]
["\n\n\n",{"$f":"IF(OrigTable!A1226=\"\",\"\",ScriptText!$B$1&CHAR(10)&ScriptText!$D$1)","v":""},{"$f":"IF(OrigTable!A1226=\"\",\"\",TEXT(OrigTable!A1226,\"00\"))","v":""},{"$f":"IF(OrigTable!A1226=\"\",\"\",ScriptText!$E$1&CHAR(10)&ScriptText!$C$1)","v":""},{"$f":"IF(OrigTable!B1226=\"\",\"\",ScriptText!$B$1&CHAR(10)&ScriptText!$D$1)","v":""},{"$f":"IF(OrigTable!B1226=\"\",\"\",TEXT(OrigTable!B1226,\"00\"))","v":""},{"$f":"IF(OrigTable!B1226=\"\",\"\",ScriptText!$E$1&CHAR(10)&ScriptText!C1221)","v":""},{"$f":"IF(OrigTable!C1226=\"\",\"\",ScriptText!$B$1&CHAR(10)&ScriptText!$D$1)","v":""},{"$f":"IF(OrigTable!C1226=\"\",\"\",IF(LEN(OrigTable!C1226)>255,LEFT(OrigTable!C1226,250)&\". . .\",OrigTable!C1226))","v":""},{"$f":"IF(OrigTable!C1226=\"\",\"\",ScriptText!$E$1&CHAR(10)&ScriptText!$C$1)","v":""},{"$f":"IF(OrigTable!D1226=\"\",\"\",ScriptText!$B$1&CHAR(10)&ScriptText!$D$1)","v":""},{"$f":"IF(OrigTable!D1226=\"\",\"\",TEXT(OrigTable!D1226,\"00\"))","v":""},{"$f":"IF(OrigTable!D1226=\"\",\"\",ScriptText!$E$1&CHAR(10)&ScriptText!$C$1)","v":""},{"$f":"IF(OrigTable!E1226=\"\",\"\",ScriptText!$B$1&CHAR(10)&ScriptText!$D$1)","v":""},{"$f":"IF(OrigTable!E1226=\"\",\"\",TEXT(OrigTable!E1226,\"00\"))","v":""},{"$f":"IF(OrigTable!E1226=\"\",\"\",ScriptText!$E$1&CHAR(10)&ScriptText!$C$1)","v":""},{"$f":"IF(OrigTable!F1226=\"\",\"\",ScriptText!$B$1&CHAR(10)&ScriptText!$D$1)","v":""},{"$f":"IF(OrigTable!F1226=\"\",\"\",TEXT(OrigTable!F1226,\"00\"))","v":""},{"$f":"IF(OrigTable!F1226=\"\",\"\",ScriptText!$E$1&CHAR(10)&ScriptText!$C$1)","v":""},{"$f":"IF(OrigTable!G1226=\"\",\"\",ScriptText!$B$1&CHAR(10)&ScriptText!$D$1)","v":""},{"$f":"IF(OrigTable!G1226=\"\",\"\",TEXT(OrigTable!G1226,\"00\"))","v":""},{"$f":"IF(OrigTable!G1226=\"\",\"\",ScriptText!$E$1&CHAR(10)&ScriptText!$C$1)","v":""},0]
["\n\n\n",{"$f":"IF(OrigTable!A1227=\"\",\"\",ScriptText!$B$1&CHAR(10)&ScriptText!$D$1)","v":""},{"$f":"IF(OrigTable!A1227=\"\",\"\",TEXT(OrigTable!A1227,\"00\"))","v":""},{"$f":"IF(OrigTable!A1227=\"\",\"\",ScriptText!$E$1&CHAR(10)&ScriptText!$C$1)","v":""},{"$f":"IF(OrigTable!B1227=\"\",\"\",ScriptText!$B$1&CHAR(10)&ScriptText!$D$1)","v":""},{"$f":"IF(OrigTable!B1227=\"\",\"\",TEXT(OrigTable!B1227,\"00\"))","v":""},{"$f":"IF(OrigTable!B1227=\"\",\"\",ScriptText!$E$1&CHAR(10)&ScriptText!C1222)","v":""},{"$f":"IF(OrigTable!C1227=\"\",\"\",ScriptText!$B$1&CHAR(10)&ScriptText!$D$1)","v":""},{"$f":"IF(OrigTable!C1227=\"\",\"\",IF(LEN(OrigTable!C1227)>255,LEFT(OrigTable!C1227,250)&\". . .\",OrigTable!C1227))","v":""},{"$f":"IF(OrigTable!C1227=\"\",\"\",ScriptText!$E$1&CHAR(10)&ScriptText!$C$1)","v":""},{"$f":"IF(OrigTable!D1227=\"\",\"\",ScriptText!$B$1&CHAR(10)&ScriptText!$D$1)","v":""},{"$f":"IF(OrigTable!D1227=\"\",\"\",TEXT(OrigTable!D1227,\"00\"))","v":""},{"$f":"IF(OrigTable!D1227=\"\",\"\",ScriptText!$E$1&CHAR(10)&ScriptText!$C$1)","v":""},{"$f":"IF(OrigTable!E1227=\"\",\"\",ScriptText!$B$1&CHAR(10)&ScriptText!$D$1)","v":""},{"$f":"IF(OrigTable!E1227=\"\",\"\",TEXT(OrigTable!E1227,\"00\"))","v":""},{"$f":"IF(OrigTable!E1227=\"\",\"\",ScriptText!$E$1&CHAR(10)&ScriptText!$C$1)","v":""},{"$f":"IF(OrigTable!F1227=\"\",\"\",ScriptText!$B$1&CHAR(10)&ScriptText!$D$1)","v":""},{"$f":"IF(OrigTable!F1227=\"\",\"\",TEXT(OrigTable!F1227,\"00\"))","v":""},{"$f":"IF(OrigTable!F1227=\"\",\"\",ScriptText!$E$1&CHAR(10)&ScriptText!$C$1)","v":""},{"$f":"IF(OrigTable!G1227=\"\",\"\",ScriptText!$B$1&CHAR(10)&ScriptText!$D$1)","v":""},{"$f":"IF(OrigTable!G1227=\"\",\"\",TEXT(OrigTable!G1227,\"00\"))","v":""},{"$f":"IF(OrigTable!G1227=\"\",\"\",ScriptText!$E$1&CHAR(10)&ScriptText!$C$1)","v":""},0]
["\n\n\n",{"$f":"IF(OrigTable!A1228=\"\",\"\",ScriptText!$B$1&CHAR(10)&ScriptText!$D$1)","v":""},{"$f":"IF(OrigTable!A1228=\"\",\"\",TEXT(OrigTable!A1228,\"00\"))","v":""},{"$f":"IF(OrigTable!A1228=\"\",\"\",ScriptText!$E$1&CHAR(10)&ScriptText!$C$1)","v":""},{"$f":"IF(OrigTable!B1228=\"\",\"\",ScriptText!$B$1&CHAR(10)&ScriptText!$D$1)","v":""},{"$f":"IF(OrigTable!B1228=\"\",\"\",TEXT(OrigTable!B1228,\"00\"))","v":""},{"$f":"IF(OrigTable!B1228=\"\",\"\",ScriptText!$E$1&CHAR(10)&ScriptText!C1223)","v":""},{"$f":"IF(OrigTable!C1228=\"\",\"\",ScriptText!$B$1&CHAR(10)&ScriptText!$D$1)","v":""},{"$f":"IF(OrigTable!C1228=\"\",\"\",IF(LEN(OrigTable!C1228)>255,LEFT(OrigTable!C1228,250)&\". . .\",OrigTable!C1228))","v":""},{"$f":"IF(OrigTable!C1228=\"\",\"\",ScriptText!$E$1&CHAR(10)&ScriptText!$C$1)","v":""},{"$f":"IF(OrigTable!D1228=\"\",\"\",ScriptText!$B$1&CHAR(10)&ScriptText!$D$1)","v":""},{"$f":"IF(OrigTable!D1228=\"\",\"\",TEXT(OrigTable!D1228,\"00\"))","v":""},{"$f":"IF(OrigTable!D1228=\"\",\"\",ScriptText!$E$1&CHAR(10)&ScriptText!$C$1)","v":""},{"$f":"IF(OrigTable!E1228=\"\",\"\",ScriptText!$B$1&CHAR(10)&ScriptText!$D$1)","v":""},{"$f":"IF(OrigTable!E1228=\"\",\"\",TEXT(OrigTable!E1228,\"00\"))","v":""},{"$f":"IF(OrigTable!E1228=\"\",\"\",ScriptText!$E$1&CHAR(10)&ScriptText!$C$1)","v":""},{"$f":"IF(OrigTable!F1228=\"\",\"\",ScriptText!$B$1&CHAR(10)&ScriptText!$D$1)","v":""},{"$f":"IF(OrigTable!F1228=\"\",\"\",TEXT(OrigTable!F1228,\"00\"))","v":""},{"$f":"IF(OrigTable!F1228=\"\",\"\",ScriptText!$E$1&CHAR(10)&ScriptText!$C$1)","v":""},{"$f":"IF(OrigTable!G1228=\"\",\"\",ScriptText!$B$1&CHAR(10)&ScriptText!$D$1)","v":""},{"$f":"IF(OrigTable!G1228=\"\",\"\",TEXT(OrigTable!G1228,\"00\"))","v":""},{"$f":"IF(OrigTable!G1228=\"\",\"\",ScriptText!$E$1&CHAR(10)&ScriptText!$C$1)","v":""},0]
["\n\n\n",{"$f":"IF(OrigTable!A1229=\"\",\"\",ScriptText!$B$1&CHAR(10)&ScriptText!$D$1)","v":""},{"$f":"IF(OrigTable!A1229=\"\",\"\",TEXT(OrigTable!A1229,\"00\"))","v":""},{"$f":"IF(OrigTable!A1229=\"\",\"\",ScriptText!$E$1&CHAR(10)&ScriptText!$C$1)","v":""},{"$f":"IF(OrigTable!B1229=\"\",\"\",ScriptText!$B$1&CHAR(10)&ScriptText!$D$1)","v":""},{"$f":"IF(OrigTable!B1229=\"\",\"\",TEXT(OrigTable!B1229,\"00\"))","v":""},{"$f":"IF(OrigTable!B1229=\"\",\"\",ScriptText!$E$1&CHAR(10)&ScriptText!C1224)","v":""},{"$f":"IF(OrigTable!C1229=\"\",\"\",ScriptText!$B$1&CHAR(10)&ScriptText!$D$1)","v":""},{"$f":"IF(OrigTable!C1229=\"\",\"\",IF(LEN(OrigTable!C1229)>255,LEFT(OrigTable!C1229,250)&\". . .\",OrigTable!C1229))","v":""},{"$f":"IF(OrigTable!C1229=\"\",\"\",ScriptText!$E$1&CHAR(10)&ScriptText!$C$1)","v":""},{"$f":"IF(OrigTable!D1229=\"\",\"\",ScriptText!$B$1&CHAR(10)&ScriptText!$D$1)","v":""},{"$f":"IF(OrigTable!D1229=\"\",\"\",TEXT(OrigTable!D1229,\"00\"))","v":""},{"$f":"IF(OrigTable!D1229=\"\",\"\",ScriptText!$E$1&CHAR(10)&ScriptText!$C$1)","v":""},{"$f":"IF(OrigTable!E1229=\"\",\"\",ScriptText!$B$1&CHAR(10)&ScriptText!$D$1)","v":""},{"$f":"IF(OrigTable!E1229=\"\",\"\",TEXT(OrigTable!E1229,\"00\"))","v":""},{"$f":"IF(OrigTable!E1229=\"\",\"\",ScriptText!$E$1&CHAR(10)&ScriptText!$C$1)","v":""},{"$f":"IF(OrigTable!F1229=\"\",\"\",ScriptText!$B$1&CHAR(10)&ScriptText!$D$1)","v":""},{"$f":"IF(OrigTable!F1229=\"\",\"\",TEXT(OrigTable!F1229,\"00\"))","v":""},{"$f":"IF(OrigTable!F1229=\"\",\"\",ScriptText!$E$1&CHAR(10)&ScriptText!$C$1)","v":""},{"$f":"IF(OrigTable!G1229=\"\",\"\",ScriptText!$B$1&CHAR(10)&ScriptText!$D$1)","v":""},{"$f":"IF(OrigTable!G1229=\"\",\"\",TEXT(OrigTable!G1229,\"00\"))","v":""},{"$f":"IF(OrigTable!G1229=\"\",\"\",ScriptText!$E$1&CHAR(10)&ScriptText!$C$1)","v":""},0]
["\n\n\n",{"$f":"IF(OrigTable!A1230=\"\",\"\",ScriptText!$B$1&CHAR(10)&ScriptText!$D$1)","v":""},{"$f":"IF(OrigTable!A1230=\"\",\"\",TEXT(OrigTable!A1230,\"00\"))","v":""},{"$f":"IF(OrigTable!A1230=\"\",\"\",ScriptText!$E$1&CHAR(10)&ScriptText!$C$1)","v":""},{"$f":"IF(OrigTable!B1230=\"\",\"\",ScriptText!$B$1&CHAR(10)&ScriptText!$D$1)","v":""},{"$f":"IF(OrigTable!B1230=\"\",\"\",TEXT(OrigTable!B1230,\"00\"))","v":""},{"$f":"IF(OrigTable!B1230=\"\",\"\",ScriptText!$E$1&CHAR(10)&ScriptText!C1225)","v":""},{"$f":"IF(OrigTable!C1230=\"\",\"\",ScriptText!$B$1&CHAR(10)&ScriptText!$D$1)","v":""},{"$f":"IF(OrigTable!C1230=\"\",\"\",IF(LEN(OrigTable!C1230)>255,LEFT(OrigTable!C1230,250)&\". . .\",OrigTable!C1230))","v":""},{"$f":"IF(OrigTable!C1230=\"\",\"\",ScriptText!$E$1&CHAR(10)&ScriptText!$C$1)","v":""},{"$f":"IF(OrigTable!D1230=\"\",\"\",ScriptText!$B$1&CHAR(10)&ScriptText!$D$1)","v":""},{"$f":"IF(OrigTable!D1230=\"\",\"\",TEXT(OrigTable!D1230,\"00\"))","v":""},{"$f":"IF(OrigTable!D1230=\"\",\"\",ScriptText!$E$1&CHAR(10)&ScriptText!$C$1)","v":""},{"$f":"IF(OrigTable!E1230=\"\",\"\",ScriptText!$B$1&CHAR(10)&ScriptText!$D$1)","v":""},{"$f":"IF(OrigTable!E1230=\"\",\"\",TEXT(OrigTable!E1230,\"00\"))","v":""},{"$f":"IF(OrigTable!E1230=\"\",\"\",ScriptText!$E$1&CHAR(10)&ScriptText!$C$1)","v":""},{"$f":"IF(OrigTable!F1230=\"\",\"\",ScriptText!$B$1&CHAR(10)&ScriptText!$D$1)","v":""},{"$f":"IF(OrigTable!F1230=\"\",\"\",TEXT(OrigTable!F1230,\"00\"))","v":""},{"$f":"IF(OrigTable!F1230=\"\",\"\",ScriptText!$E$1&CHAR(10)&ScriptText!$C$1)","v":""},{"$f":"IF(OrigTable!G1230=\"\",\"\",ScriptText!$B$1&CHAR(10)&ScriptText!$D$1)","v":""},{"$f":"IF(OrigTable!G1230=\"\",\"\",TEXT(OrigTable!G1230,\"00\"))","v":""},{"$f":"IF(OrigTable!G1230=\"\",\"\",ScriptText!$E$1&CHAR(10)&ScriptText!$C$1)","v":""},0]
["\n\n\n",{"$f":"IF(OrigTable!A1231=\"\",\"\",ScriptText!$B$1&CHAR(10)&ScriptText!$D$1)","v":""},{"$f":"IF(OrigTable!A1231=\"\",\"\",TEXT(OrigTable!A1231,\"00\"))","v":""},{"$f":"IF(OrigTable!A1231=\"\",\"\",ScriptText!$E$1&CHAR(10)&ScriptText!$C$1)","v":""},{"$f":"IF(OrigTable!B1231=\"\",\"\",ScriptText!$B$1&CHAR(10)&ScriptText!$D$1)","v":""},{"$f":"IF(OrigTable!B1231=\"\",\"\",TEXT(OrigTable!B1231,\"00\"))","v":""},{"$f":"IF(OrigTable!B1231=\"\",\"\",ScriptText!$E$1&CHAR(10)&ScriptText!C1226)","v":""},{"$f":"IF(OrigTable!C1231=\"\",\"\",ScriptText!$B$1&CHAR(10)&ScriptText!$D$1)","v":""},{"$f":"IF(OrigTable!C1231=\"\",\"\",IF(LEN(OrigTable!C1231)>255,LEFT(OrigTable!C1231,250)&\". . .\",OrigTable!C1231))","v":""},{"$f":"IF(OrigTable!C1231=\"\",\"\",ScriptText!$E$1&CHAR(10)&ScriptText!$C$1)","v":""},{"$f":"IF(OrigTable!D1231=\"\",\"\",ScriptText!$B$1&CHAR(10)&ScriptText!$D$1)","v":""},{"$f":"IF(OrigTable!D1231=\"\",\"\",TEXT(OrigTable!D1231,\"00\"))","v":""},{"$f":"IF(OrigTable!D1231=\"\",\"\",ScriptText!$E$1&CHAR(10)&ScriptText!$C$1)","v":""},{"$f":"IF(OrigTable!E1231=\"\",\"\",ScriptText!$B$1&CHAR(10)&ScriptText!$D$1)","v":""},{"$f":"IF(OrigTable!E1231=\"\",\"\",TEXT(OrigTable!E1231,\"00\"))","v":""},{"$f":"IF(OrigTable!E1231=\"\",\"\",ScriptText!$E$1&CHAR(10)&ScriptText!$C$1)","v":""},{"$f":"IF(OrigTable!F1231=\"\",\"\",ScriptText!$B$1&CHAR(10)&ScriptText!$D$1)","v":""},{"$f":"IF(OrigTable!F1231=\"\",\"\",TEXT(OrigTable!F1231,\"00\"))","v":""},{"$f":"IF(OrigTable!F1231=\"\",\"\",ScriptText!$E$1&CHAR(10)&ScriptText!$C$1)","v":""},{"$f":"IF(OrigTable!G1231=\"\",\"\",ScriptText!$B$1&CHAR(10)&ScriptText!$D$1)","v":""},{"$f":"IF(OrigTable!G1231=\"\",\"\",TEXT(OrigTable!G1231,\"00\"))","v":""},{"$f":"IF(OrigTable!G1231=\"\",\"\",ScriptText!$E$1&CHAR(10)&ScriptText!$C$1)","v":""},0]
["\n\n\n",{"$f":"IF(OrigTable!A1232=\"\",\"\",ScriptText!$B$1&CHAR(10)&ScriptText!$D$1)","v":""},{"$f":"IF(OrigTable!A1232=\"\",\"\",TEXT(OrigTable!A1232,\"00\"))","v":""},{"$f":"IF(OrigTable!A1232=\"\",\"\",ScriptText!$E$1&CHAR(10)&ScriptText!$C$1)","v":""},{"$f":"IF(OrigTable!B1232=\"\",\"\",ScriptText!$B$1&CHAR(10)&ScriptText!$D$1)","v":""},{"$f":"IF(OrigTable!B1232=\"\",\"\",TEXT(OrigTable!B1232,\"00\"))","v":""},{"$f":"IF(OrigTable!B1232=\"\",\"\",ScriptText!$E$1&CHAR(10)&ScriptText!C1227)","v":""},{"$f":"IF(OrigTable!C1232=\"\",\"\",ScriptText!$B$1&CHAR(10)&ScriptText!$D$1)","v":""},{"$f":"IF(OrigTable!C1232=\"\",\"\",IF(LEN(OrigTable!C1232)>255,LEFT(OrigTable!C1232,250)&\". . .\",OrigTable!C1232))","v":""},{"$f":"IF(OrigTable!C1232=\"\",\"\",ScriptText!$E$1&CHAR(10)&ScriptText!$C$1)","v":""},{"$f":"IF(OrigTable!D1232=\"\",\"\",ScriptText!$B$1&CHAR(10)&ScriptText!$D$1)","v":""},{"$f":"IF(OrigTable!D1232=\"\",\"\",TEXT(OrigTable!D1232,\"00\"))","v":""},{"$f":"IF(OrigTable!D1232=\"\",\"\",ScriptText!$E$1&CHAR(10)&ScriptText!$C$1)","v":""},{"$f":"IF(OrigTable!E1232=\"\",\"\",ScriptText!$B$1&CHAR(10)&ScriptText!$D$1)","v":""},{"$f":"IF(OrigTable!E1232=\"\",\"\",TEXT(OrigTable!E1232,\"00\"))","v":""},{"$f":"IF(OrigTable!E1232=\"\",\"\",ScriptText!$E$1&CHAR(10)&ScriptText!$C$1)","v":""},{"$f":"IF(OrigTable!F1232=\"\",\"\",ScriptText!$B$1&CHAR(10)&ScriptText!$D$1)","v":""},{"$f":"IF(OrigTable!F1232=\"\",\"\",TEXT(OrigTable!F1232,\"00\"))","v":""},{"$f":"IF(OrigTable!F1232=\"\",\"\",ScriptText!$E$1&CHAR(10)&ScriptText!$C$1)","v":""},{"$f":"IF(OrigTable!G1232=\"\",\"\",ScriptText!$B$1&CHAR(10)&ScriptText!$D$1)","v":""},{"$f":"IF(OrigTable!G1232=\"\",\"\",TEXT(OrigTable!G1232,\"00\"))","v":""},{"$f":"IF(OrigTable!G1232=\"\",\"\",ScriptText!$E$1&CHAR(10)&ScriptText!$C$1)","v":""},0]
["\n\n\n",{"$f":"IF(OrigTable!A1233=\"\",\"\",ScriptText!$B$1&CHAR(10)&ScriptText!$D$1)","v":""},{"$f":"IF(OrigTable!A1233=\"\",\"\",TEXT(OrigTable!A1233,\"00\"))","v":""},{"$f":"IF(OrigTable!A1233=\"\",\"\",ScriptText!$E$1&CHAR(10)&ScriptText!$C$1)","v":""},{"$f":"IF(OrigTable!B1233=\"\",\"\",ScriptText!$B$1&CHAR(10)&ScriptText!$D$1)","v":""},{"$f":"IF(OrigTable!B1233=\"\",\"\",TEXT(OrigTable!B1233,\"00\"))","v":""},{"$f":"IF(OrigTable!B1233=\"\",\"\",ScriptText!$E$1&CHAR(10)&ScriptText!C1228)","v":""},{"$f":"IF(OrigTable!C1233=\"\",\"\",ScriptText!$B$1&CHAR(10)&ScriptText!$D$1)","v":""},{"$f":"IF(OrigTable!C1233=\"\",\"\",IF(LEN(OrigTable!C1233)>255,LEFT(OrigTable!C1233,250)&\". . .\",OrigTable!C1233))","v":""},{"$f":"IF(OrigTable!C1233=\"\",\"\",ScriptText!$E$1&CHAR(10)&ScriptText!$C$1)","v":""},{"$f":"IF(OrigTable!D1233=\"\",\"\",ScriptText!$B$1&CHAR(10)&ScriptText!$D$1)","v":""},{"$f":"IF(OrigTable!D1233=\"\",\"\",TEXT(OrigTable!D1233,\"00\"))","v":""},{"$f":"IF(OrigTable!D1233=\"\",\"\",ScriptText!$E$1&CHAR(10)&ScriptText!$C$1)","v":""},{"$f":"IF(OrigTable!E1233=\"\",\"\",ScriptText!$B$1&CHAR(10)&ScriptText!$D$1)","v":""},{"$f":"IF(OrigTable!E1233=\"\",\"\",TEXT(OrigTable!E1233,\"00\"))","v":""},{"$f":"IF(OrigTable!E1233=\"\",\"\",ScriptText!$E$1&CHAR(10)&ScriptText!$C$1)","v":""},{"$f":"IF(OrigTable!F1233=\"\",\"\",ScriptText!$B$1&CHAR(10)&ScriptText!$D$1)","v":""},{"$f":"IF(OrigTable!F1233=\"\",\"\",TEXT(OrigTable!F1233,\"00\"))","v":""},{"$f":"IF(OrigTable!F1233=\"\",\"\",ScriptText!$E$1&CHAR(10)&ScriptText!$C$1)","v":""},{"$f":"IF(OrigTable!G1233=\"\",\"\",ScriptText!$B$1&CHAR(10)&ScriptText!$D$1)","v":""},{"$f":"IF(OrigTable!G1233=\"\",\"\",TEXT(OrigTable!G1233,\"00\"))","v":""},{"$f":"IF(OrigTable!G1233=\"\",\"\",ScriptText!$E$1&CHAR(10)&ScriptText!$C$1)","v":""},0]
["\n\n\n",{"$f":"IF(OrigTable!A1234=\"\",\"\",ScriptText!$B$1&CHAR(10)&ScriptText!$D$1)","v":""},{"$f":"IF(OrigTable!A1234=\"\",\"\",TEXT(OrigTable!A1234,\"00\"))","v":""},{"$f":"IF(OrigTable!A1234=\"\",\"\",ScriptText!$E$1&CHAR(10)&ScriptText!$C$1)","v":""},{"$f":"IF(OrigTable!B1234=\"\",\"\",ScriptText!$B$1&CHAR(10)&ScriptText!$D$1)","v":""},{"$f":"IF(OrigTable!B1234=\"\",\"\",TEXT(OrigTable!B1234,\"00\"))","v":""},{"$f":"IF(OrigTable!B1234=\"\",\"\",ScriptText!$E$1&CHAR(10)&ScriptText!C1229)","v":""},{"$f":"IF(OrigTable!C1234=\"\",\"\",ScriptText!$B$1&CHAR(10)&ScriptText!$D$1)","v":""},{"$f":"IF(OrigTable!C1234=\"\",\"\",IF(LEN(OrigTable!C1234)>255,LEFT(OrigTable!C1234,250)&\". . .\",OrigTable!C1234))","v":""},{"$f":"IF(OrigTable!C1234=\"\",\"\",ScriptText!$E$1&CHAR(10)&ScriptText!$C$1)","v":""},{"$f":"IF(OrigTable!D1234=\"\",\"\",ScriptText!$B$1&CHAR(10)&ScriptText!$D$1)","v":""},{"$f":"IF(OrigTable!D1234=\"\",\"\",TEXT(OrigTable!D1234,\"00\"))","v":""},{"$f":"IF(OrigTable!D1234=\"\",\"\",ScriptText!$E$1&CHAR(10)&ScriptText!$C$1)","v":""},{"$f":"IF(OrigTable!E1234=\"\",\"\",ScriptText!$B$1&CHAR(10)&ScriptText!$D$1)","v":""},{"$f":"IF(OrigTable!E1234=\"\",\"\",TEXT(OrigTable!E1234,\"00\"))","v":""},{"$f":"IF(OrigTable!E1234=\"\",\"\",ScriptText!$E$1&CHAR(10)&ScriptText!$C$1)","v":""},{"$f":"IF(OrigTable!F1234=\"\",\"\",ScriptText!$B$1&CHAR(10)&ScriptText!$D$1)","v":""},{"$f":"IF(OrigTable!F1234=\"\",\"\",TEXT(OrigTable!F1234,\"00\"))","v":""},{"$f":"IF(OrigTable!F1234=\"\",\"\",ScriptText!$E$1&CHAR(10)&ScriptText!$C$1)","v":""},{"$f":"IF(OrigTable!G1234=\"\",\"\",ScriptText!$B$1&CHAR(10)&ScriptText!$D$1)","v":""},{"$f":"IF(OrigTable!G1234=\"\",\"\",TEXT(OrigTable!G1234,\"00\"))","v":""},{"$f":"IF(OrigTable!G1234=\"\",\"\",ScriptText!$E$1&CHAR(10)&ScriptText!$C$1)","v":""},0]
["\n\n\n",{"$f":"IF(OrigTable!A1235=\"\",\"\",ScriptText!$B$1&CHAR(10)&ScriptText!$D$1)","v":""},{"$f":"IF(OrigTable!A1235=\"\",\"\",TEXT(OrigTable!A1235,\"00\"))","v":""},{"$f":"IF(OrigTable!A1235=\"\",\"\",ScriptText!$E$1&CHAR(10)&ScriptText!$C$1)","v":""},{"$f":"IF(OrigTable!B1235=\"\",\"\",ScriptText!$B$1&CHAR(10)&ScriptText!$D$1)","v":""},{"$f":"IF(OrigTable!B1235=\"\",\"\",TEXT(OrigTable!B1235,\"00\"))","v":""},{"$f":"IF(OrigTable!B1235=\"\",\"\",ScriptText!$E$1&CHAR(10)&ScriptText!C1230)","v":""},{"$f":"IF(OrigTable!C1235=\"\",\"\",ScriptText!$B$1&CHAR(10)&ScriptText!$D$1)","v":""},{"$f":"IF(OrigTable!C1235=\"\",\"\",IF(LEN(OrigTable!C1235)>255,LEFT(OrigTable!C1235,250)&\". . .\",OrigTable!C1235))","v":""},{"$f":"IF(OrigTable!C1235=\"\",\"\",ScriptText!$E$1&CHAR(10)&ScriptText!$C$1)","v":""},{"$f":"IF(OrigTable!D1235=\"\",\"\",ScriptText!$B$1&CHAR(10)&ScriptText!$D$1)","v":""},{"$f":"IF(OrigTable!D1235=\"\",\"\",TEXT(OrigTable!D1235,\"00\"))","v":""},{"$f":"IF(OrigTable!D1235=\"\",\"\",ScriptText!$E$1&CHAR(10)&ScriptText!$C$1)","v":""},{"$f":"IF(OrigTable!E1235=\"\",\"\",ScriptText!$B$1&CHAR(10)&ScriptText!$D$1)","v":""},{"$f":"IF(OrigTable!E1235=\"\",\"\",TEXT(OrigTable!E1235,\"00\"))","v":""},{"$f":"IF(OrigTable!E1235=\"\",\"\",ScriptText!$E$1&CHAR(10)&ScriptText!$C$1)","v":""},{"$f":"IF(OrigTable!F1235=\"\",\"\",ScriptText!$B$1&CHAR(10)&ScriptText!$D$1)","v":""},{"$f":"IF(OrigTable!F1235=\"\",\"\",TEXT(OrigTable!F1235,\"00\"))","v":""},{"$f":"IF(OrigTable!F1235=\"\",\"\",ScriptText!$E$1&CHAR(10)&ScriptText!$C$1)","v":""},{"$f":"IF(OrigTable!G1235=\"\",\"\",ScriptText!$B$1&CHAR(10)&ScriptText!$D$1)","v":""},{"$f":"IF(OrigTable!G1235=\"\",\"\",TEXT(OrigTable!G1235,\"00\"))","v":""},{"$f":"IF(OrigTable!G1235=\"\",\"\",ScriptText!$E$1&CHAR(10)&ScriptText!$C$1)","v":""},0]
["\n\n\n",{"$f":"IF(OrigTable!A1236=\"\",\"\",ScriptText!$B$1&CHAR(10)&ScriptText!$D$1)","v":""},{"$f":"IF(OrigTable!A1236=\"\",\"\",TEXT(OrigTable!A1236,\"00\"))","v":""},{"$f":"IF(OrigTable!A1236=\"\",\"\",ScriptText!$E$1&CHAR(10)&ScriptText!$C$1)","v":""},{"$f":"IF(OrigTable!B1236=\"\",\"\",ScriptText!$B$1&CHAR(10)&ScriptText!$D$1)","v":""},{"$f":"IF(OrigTable!B1236=\"\",\"\",TEXT(OrigTable!B1236,\"00\"))","v":""},{"$f":"IF(OrigTable!B1236=\"\",\"\",ScriptText!$E$1&CHAR(10)&ScriptText!C1231)","v":""},{"$f":"IF(OrigTable!C1236=\"\",\"\",ScriptText!$B$1&CHAR(10)&ScriptText!$D$1)","v":""},{"$f":"IF(OrigTable!C1236=\"\",\"\",IF(LEN(OrigTable!C1236)>255,LEFT(OrigTable!C1236,250)&\". . .\",OrigTable!C1236))","v":""},{"$f":"IF(OrigTable!C1236=\"\",\"\",ScriptText!$E$1&CHAR(10)&ScriptText!$C$1)","v":""},{"$f":"IF(OrigTable!D1236=\"\",\"\",ScriptText!$B$1&CHAR(10)&ScriptText!$D$1)","v":""},{"$f":"IF(OrigTable!D1236=\"\",\"\",TEXT(OrigTable!D1236,\"00\"))","v":""},{"$f":"IF(OrigTable!D1236=\"\",\"\",ScriptText!$E$1&CHAR(10)&ScriptText!$C$1)","v":""},{"$f":"IF(OrigTable!E1236=\"\",\"\",ScriptText!$B$1&CHAR(10)&ScriptText!$D$1)","v":""},{"$f":"IF(OrigTable!E1236=\"\",\"\",TEXT(OrigTable!E1236,\"00\"))","v":""},{"$f":"IF(OrigTable!E1236=\"\",\"\",ScriptText!$E$1&CHAR(10)&ScriptText!$C$1)","v":""},{"$f":"IF(OrigTable!F1236=\"\",\"\",ScriptText!$B$1&CHAR(10)&ScriptText!$D$1)","v":""},{"$f":"IF(OrigTable!F1236=\"\",\"\",TEXT(OrigTable!F1236,\"00\"))","v":""},{"$f":"IF(OrigTable!F1236=\"\",\"\",ScriptText!$E$1&CHAR(10)&ScriptText!$C$1)","v":""},{"$f":"IF(OrigTable!G1236=\"\",\"\",ScriptText!$B$1&CHAR(10)&ScriptText!$D$1)","v":""},{"$f":"IF(OrigTable!G1236=\"\",\"\",TEXT(OrigTable!G1236,\"00\"))","v":""},{"$f":"IF(OrigTable!G1236=\"\",\"\",ScriptText!$E$1&CHAR(10)&ScriptText!$C$1)","v":""},0]
["\n\n\n",{"$f":"IF(OrigTable!A1237=\"\",\"\",ScriptText!$B$1&CHAR(10)&ScriptText!$D$1)","v":""},{"$f":"IF(OrigTable!A1237=\"\",\"\",TEXT(OrigTable!A1237,\"00\"))","v":""},{"$f":"IF(OrigTable!A1237=\"\",\"\",ScriptText!$E$1&CHAR(10)&ScriptText!$C$1)","v":""},{"$f":"IF(OrigTable!B1237=\"\",\"\",ScriptText!$B$1&CHAR(10)&ScriptText!$D$1)","v":""},{"$f":"IF(OrigTable!B1237=\"\",\"\",TEXT(OrigTable!B1237,\"00\"))","v":""},{"$f":"IF(OrigTable!B1237=\"\",\"\",ScriptText!$E$1&CHAR(10)&ScriptText!C1232)","v":""},{"$f":"IF(OrigTable!C1237=\"\",\"\",ScriptText!$B$1&CHAR(10)&ScriptText!$D$1)","v":""},{"$f":"IF(OrigTable!C1237=\"\",\"\",IF(LEN(OrigTable!C1237)>255,LEFT(OrigTable!C1237,250)&\". . .\",OrigTable!C1237))","v":""},{"$f":"IF(OrigTable!C1237=\"\",\"\",ScriptText!$E$1&CHAR(10)&ScriptText!$C$1)","v":""},{"$f":"IF(OrigTable!D1237=\"\",\"\",ScriptText!$B$1&CHAR(10)&ScriptText!$D$1)","v":""},{"$f":"IF(OrigTable!D1237=\"\",\"\",TEXT(OrigTable!D1237,\"00\"))","v":""},{"$f":"IF(OrigTable!D1237=\"\",\"\",ScriptText!$E$1&CHAR(10)&ScriptText!$C$1)","v":""},{"$f":"IF(OrigTable!E1237=\"\",\"\",ScriptText!$B$1&CHAR(10)&ScriptText!$D$1)","v":""},{"$f":"IF(OrigTable!E1237=\"\",\"\",TEXT(OrigTable!E1237,\"00\"))","v":""},{"$f":"IF(OrigTable!E1237=\"\",\"\",ScriptText!$E$1&CHAR(10)&ScriptText!$C$1)","v":""},{"$f":"IF(OrigTable!F1237=\"\",\"\",ScriptText!$B$1&CHAR(10)&ScriptText!$D$1)","v":""},{"$f":"IF(OrigTable!F1237=\"\",\"\",TEXT(OrigTable!F1237,\"00\"))","v":""},{"$f":"IF(OrigTable!F1237=\"\",\"\",ScriptText!$E$1&CHAR(10)&ScriptText!$C$1)","v":""},{"$f":"IF(OrigTable!G1237=\"\",\"\",ScriptText!$B$1&CHAR(10)&ScriptText!$D$1)","v":""},{"$f":"IF(OrigTable!G1237=\"\",\"\",TEXT(OrigTable!G1237,\"00\"))","v":""},{"$f":"IF(OrigTable!G1237=\"\",\"\",ScriptText!$E$1&CHAR(10)&ScriptText!$C$1)","v":""},0]
["\n\n\n",{"$f":"IF(OrigTable!A1238=\"\",\"\",ScriptText!$B$1&CHAR(10)&ScriptText!$D$1)","v":""},{"$f":"IF(OrigTable!A1238=\"\",\"\",TEXT(OrigTable!A1238,\"00\"))","v":""},{"$f":"IF(OrigTable!A1238=\"\",\"\",ScriptText!$E$1&CHAR(10)&ScriptText!$C$1)","v":""},{"$f":"IF(OrigTable!B1238=\"\",\"\",ScriptText!$B$1&CHAR(10)&ScriptText!$D$1)","v":""},{"$f":"IF(OrigTable!B1238=\"\",\"\",TEXT(OrigTable!B1238,\"00\"))","v":""},{"$f":"IF(OrigTable!B1238=\"\",\"\",ScriptText!$E$1&CHAR(10)&ScriptText!C1233)","v":""},{"$f":"IF(OrigTable!C1238=\"\",\"\",ScriptText!$B$1&CHAR(10)&ScriptText!$D$1)","v":""},{"$f":"IF(OrigTable!C1238=\"\",\"\",IF(LEN(OrigTable!C1238)>255,LEFT(OrigTable!C1238,250)&\". . .\",OrigTable!C1238))","v":""},{"$f":"IF(OrigTable!C1238=\"\",\"\",ScriptText!$E$1&CHAR(10)&ScriptText!$C$1)","v":""},{"$f":"IF(OrigTable!D1238=\"\",\"\",ScriptText!$B$1&CHAR(10)&ScriptText!$D$1)","v":""},{"$f":"IF(OrigTable!D1238=\"\",\"\",TEXT(OrigTable!D1238,\"00\"))","v":""},{"$f":"IF(OrigTable!D1238=\"\",\"\",ScriptText!$E$1&CHAR(10)&ScriptText!$C$1)","v":""},{"$f":"IF(OrigTable!E1238=\"\",\"\",ScriptText!$B$1&CHAR(10)&ScriptText!$D$1)","v":""},{"$f":"IF(OrigTable!E1238=\"\",\"\",TEXT(OrigTable!E1238,\"00\"))","v":""},{"$f":"IF(OrigTable!E1238=\"\",\"\",ScriptText!$E$1&CHAR(10)&ScriptText!$C$1)","v":""},{"$f":"IF(OrigTable!F1238=\"\",\"\",ScriptText!$B$1&CHAR(10)&ScriptText!$D$1)","v":""},{"$f":"IF(OrigTable!F1238=\"\",\"\",TEXT(OrigTable!F1238,\"00\"))","v":""},{"$f":"IF(OrigTable!F1238=\"\",\"\",ScriptText!$E$1&CHAR(10)&ScriptText!$C$1)","v":""},{"$f":"IF(OrigTable!G1238=\"\",\"\",ScriptText!$B$1&CHAR(10)&ScriptText!$D$1)","v":""},{"$f":"IF(OrigTable!G1238=\"\",\"\",TEXT(OrigTable!G1238,\"00\"))","v":""},{"$f":"IF(OrigTable!G1238=\"\",\"\",ScriptText!$E$1&CHAR(10)&ScriptText!$C$1)","v":""},0]
["\n\n\n",{"$f":"IF(OrigTable!A1239=\"\",\"\",ScriptText!$B$1&CHAR(10)&ScriptText!$D$1)","v":""},{"$f":"IF(OrigTable!A1239=\"\",\"\",TEXT(OrigTable!A1239,\"00\"))","v":""},{"$f":"IF(OrigTable!A1239=\"\",\"\",ScriptText!$E$1&CHAR(10)&ScriptText!$C$1)","v":""},{"$f":"IF(OrigTable!B1239=\"\",\"\",ScriptText!$B$1&CHAR(10)&ScriptText!$D$1)","v":""},{"$f":"IF(OrigTable!B1239=\"\",\"\",TEXT(OrigTable!B1239,\"00\"))","v":""},{"$f":"IF(OrigTable!B1239=\"\",\"\",ScriptText!$E$1&CHAR(10)&ScriptText!C1234)","v":""},{"$f":"IF(OrigTable!C1239=\"\",\"\",ScriptText!$B$1&CHAR(10)&ScriptText!$D$1)","v":""},{"$f":"IF(OrigTable!C1239=\"\",\"\",IF(LEN(OrigTable!C1239)>255,LEFT(OrigTable!C1239,250)&\". . .\",OrigTable!C1239))","v":""},{"$f":"IF(OrigTable!C1239=\"\",\"\",ScriptText!$E$1&CHAR(10)&ScriptText!$C$1)","v":""},{"$f":"IF(OrigTable!D1239=\"\",\"\",ScriptText!$B$1&CHAR(10)&ScriptText!$D$1)","v":""},{"$f":"IF(OrigTable!D1239=\"\",\"\",TEXT(OrigTable!D1239,\"00\"))","v":""},{"$f":"IF(OrigTable!D1239=\"\",\"\",ScriptText!$E$1&CHAR(10)&ScriptText!$C$1)","v":""},{"$f":"IF(OrigTable!E1239=\"\",\"\",ScriptText!$B$1&CHAR(10)&ScriptText!$D$1)","v":""},{"$f":"IF(OrigTable!E1239=\"\",\"\",TEXT(OrigTable!E1239,\"00\"))","v":""},{"$f":"IF(OrigTable!E1239=\"\",\"\",ScriptText!$E$1&CHAR(10)&ScriptText!$C$1)","v":""},{"$f":"IF(OrigTable!F1239=\"\",\"\",ScriptText!$B$1&CHAR(10)&ScriptText!$D$1)","v":""},{"$f":"IF(OrigTable!F1239=\"\",\"\",TEXT(OrigTable!F1239,\"00\"))","v":""},{"$f":"IF(OrigTable!F1239=\"\",\"\",ScriptText!$E$1&CHAR(10)&ScriptText!$C$1)","v":""},{"$f":"IF(OrigTable!G1239=\"\",\"\",ScriptText!$B$1&CHAR(10)&ScriptText!$D$1)","v":""},{"$f":"IF(OrigTable!G1239=\"\",\"\",TEXT(OrigTable!G1239,\"00\"))","v":""},{"$f":"IF(OrigTable!G1239=\"\",\"\",ScriptText!$E$1&CHAR(10)&ScriptText!$C$1)","v":""},0]
["\n\n\n",{"$f":"IF(OrigTable!A1240=\"\",\"\",ScriptText!$B$1&CHAR(10)&ScriptText!$D$1)","v":""},{"$f":"IF(OrigTable!A1240=\"\",\"\",TEXT(OrigTable!A1240,\"00\"))","v":""},{"$f":"IF(OrigTable!A1240=\"\",\"\",ScriptText!$E$1&CHAR(10)&ScriptText!$C$1)","v":""},{"$f":"IF(OrigTable!B1240=\"\",\"\",ScriptText!$B$1&CHAR(10)&ScriptText!$D$1)","v":""},{"$f":"IF(OrigTable!B1240=\"\",\"\",TEXT(OrigTable!B1240,\"00\"))","v":""},{"$f":"IF(OrigTable!B1240=\"\",\"\",ScriptText!$E$1&CHAR(10)&ScriptText!C1235)","v":""},{"$f":"IF(OrigTable!C1240=\"\",\"\",ScriptText!$B$1&CHAR(10)&ScriptText!$D$1)","v":""},{"$f":"IF(OrigTable!C1240=\"\",\"\",IF(LEN(OrigTable!C1240)>255,LEFT(OrigTable!C1240,250)&\". . .\",OrigTable!C1240))","v":""},{"$f":"IF(OrigTable!C1240=\"\",\"\",ScriptText!$E$1&CHAR(10)&ScriptText!$C$1)","v":""},{"$f":"IF(OrigTable!D1240=\"\",\"\",ScriptText!$B$1&CHAR(10)&ScriptText!$D$1)","v":""},{"$f":"IF(OrigTable!D1240=\"\",\"\",TEXT(OrigTable!D1240,\"00\"))","v":""},{"$f":"IF(OrigTable!D1240=\"\",\"\",ScriptText!$E$1&CHAR(10)&ScriptText!$C$1)","v":""},{"$f":"IF(OrigTable!E1240=\"\",\"\",ScriptText!$B$1&CHAR(10)&ScriptText!$D$1)","v":""},{"$f":"IF(OrigTable!E1240=\"\",\"\",TEXT(OrigTable!E1240,\"00\"))","v":""},{"$f":"IF(OrigTable!E1240=\"\",\"\",ScriptText!$E$1&CHAR(10)&ScriptText!$C$1)","v":""},{"$f":"IF(OrigTable!F1240=\"\",\"\",ScriptText!$B$1&CHAR(10)&ScriptText!$D$1)","v":""},{"$f":"IF(OrigTable!F1240=\"\",\"\",TEXT(OrigTable!F1240,\"00\"))","v":""},{"$f":"IF(OrigTable!F1240=\"\",\"\",ScriptText!$E$1&CHAR(10)&ScriptText!$C$1)","v":""},{"$f":"IF(OrigTable!G1240=\"\",\"\",ScriptText!$B$1&CHAR(10)&ScriptText!$D$1)","v":""},{"$f":"IF(OrigTable!G1240=\"\",\"\",TEXT(OrigTable!G1240,\"00\"))","v":""},{"$f":"IF(OrigTable!G1240=\"\",\"\",ScriptText!$E$1&CHAR(10)&ScriptText!$C$1)","v":""},0]
["\n\n\n",{"$f":"IF(OrigTable!A1241=\"\",\"\",ScriptText!$B$1&CHAR(10)&ScriptText!$D$1)","v":""},{"$f":"IF(OrigTable!A1241=\"\",\"\",TEXT(OrigTable!A1241,\"00\"))","v":""},{"$f":"IF(OrigTable!A1241=\"\",\"\",ScriptText!$E$1&CHAR(10)&ScriptText!$C$1)","v":""},{"$f":"IF(OrigTable!B1241=\"\",\"\",ScriptText!$B$1&CHAR(10)&ScriptText!$D$1)","v":""},{"$f":"IF(OrigTable!B1241=\"\",\"\",TEXT(OrigTable!B1241,\"00\"))","v":""},{"$f":"IF(OrigTable!B1241=\"\",\"\",ScriptText!$E$1&CHAR(10)&ScriptText!C1236)","v":""},{"$f":"IF(OrigTable!C1241=\"\",\"\",ScriptText!$B$1&CHAR(10)&ScriptText!$D$1)","v":""},{"$f":"IF(OrigTable!C1241=\"\",\"\",IF(LEN(OrigTable!C1241)>255,LEFT(OrigTable!C1241,250)&\". . .\",OrigTable!C1241))","v":""},{"$f":"IF(OrigTable!C1241=\"\",\"\",ScriptText!$E$1&CHAR(10)&ScriptText!$C$1)","v":""},{"$f":"IF(OrigTable!D1241=\"\",\"\",ScriptText!$B$1&CHAR(10)&ScriptText!$D$1)","v":""},{"$f":"IF(OrigTable!D1241=\"\",\"\",TEXT(OrigTable!D1241,\"00\"))","v":""},{"$f":"IF(OrigTable!D1241=\"\",\"\",ScriptText!$E$1&CHAR(10)&ScriptText!$C$1)","v":""},{"$f":"IF(OrigTable!E1241=\"\",\"\",ScriptText!$B$1&CHAR(10)&ScriptText!$D$1)","v":""},{"$f":"IF(OrigTable!E1241=\"\",\"\",TEXT(OrigTable!E1241,\"00\"))","v":""},{"$f":"IF(OrigTable!E1241=\"\",\"\",ScriptText!$E$1&CHAR(10)&ScriptText!$C$1)","v":""},{"$f":"IF(OrigTable!F1241=\"\",\"\",ScriptText!$B$1&CHAR(10)&ScriptText!$D$1)","v":""},{"$f":"IF(OrigTable!F1241=\"\",\"\",TEXT(OrigTable!F1241,\"00\"))","v":""},{"$f":"IF(OrigTable!F1241=\"\",\"\",ScriptText!$E$1&CHAR(10)&ScriptText!$C$1)","v":""},{"$f":"IF(OrigTable!G1241=\"\",\"\",ScriptText!$B$1&CHAR(10)&ScriptText!$D$1)","v":""},{"$f":"IF(OrigTable!G1241=\"\",\"\",TEXT(OrigTable!G1241,\"00\"))","v":""},{"$f":"IF(OrigTable!G1241=\"\",\"\",ScriptText!$E$1&CHAR(10)&ScriptText!$C$1)","v":""},0]
["\n\n\n",{"$f":"IF(OrigTable!A1242=\"\",\"\",ScriptText!$B$1&CHAR(10)&ScriptText!$D$1)","v":""},{"$f":"IF(OrigTable!A1242=\"\",\"\",TEXT(OrigTable!A1242,\"00\"))","v":""},{"$f":"IF(OrigTable!A1242=\"\",\"\",ScriptText!$E$1&CHAR(10)&ScriptText!$C$1)","v":""},{"$f":"IF(OrigTable!B1242=\"\",\"\",ScriptText!$B$1&CHAR(10)&ScriptText!$D$1)","v":""},{"$f":"IF(OrigTable!B1242=\"\",\"\",TEXT(OrigTable!B1242,\"00\"))","v":""},{"$f":"IF(OrigTable!B1242=\"\",\"\",ScriptText!$E$1&CHAR(10)&ScriptText!C1237)","v":""},{"$f":"IF(OrigTable!C1242=\"\",\"\",ScriptText!$B$1&CHAR(10)&ScriptText!$D$1)","v":""},{"$f":"IF(OrigTable!C1242=\"\",\"\",IF(LEN(OrigTable!C1242)>255,LEFT(OrigTable!C1242,250)&\". . .\",OrigTable!C1242))","v":""},{"$f":"IF(OrigTable!C1242=\"\",\"\",ScriptText!$E$1&CHAR(10)&ScriptText!$C$1)","v":""},{"$f":"IF(OrigTable!D1242=\"\",\"\",ScriptText!$B$1&CHAR(10)&ScriptText!$D$1)","v":""},{"$f":"IF(OrigTable!D1242=\"\",\"\",TEXT(OrigTable!D1242,\"00\"))","v":""},{"$f":"IF(OrigTable!D1242=\"\",\"\",ScriptText!$E$1&CHAR(10)&ScriptText!$C$1)","v":""},{"$f":"IF(OrigTable!E1242=\"\",\"\",ScriptText!$B$1&CHAR(10)&ScriptText!$D$1)","v":""},{"$f":"IF(OrigTable!E1242=\"\",\"\",TEXT(OrigTable!E1242,\"00\"))","v":""},{"$f":"IF(OrigTable!E1242=\"\",\"\",ScriptText!$E$1&CHAR(10)&ScriptText!$C$1)","v":""},{"$f":"IF(OrigTable!F1242=\"\",\"\",ScriptText!$B$1&CHAR(10)&ScriptText!$D$1)","v":""},{"$f":"IF(OrigTable!F1242=\"\",\"\",TEXT(OrigTable!F1242,\"00\"))","v":""},{"$f":"IF(OrigTable!F1242=\"\",\"\",ScriptText!$E$1&CHAR(10)&ScriptText!$C$1)","v":""},{"$f":"IF(OrigTable!G1242=\"\",\"\",ScriptText!$B$1&CHAR(10)&ScriptText!$D$1)","v":""},{"$f":"IF(OrigTable!G1242=\"\",\"\",TEXT(OrigTable!G1242,\"00\"))","v":""},{"$f":"IF(OrigTable!G1242=\"\",\"\",ScriptText!$E$1&CHAR(10)&ScriptText!$C$1)","v":""},0]
["\n\n\n",{"$f":"IF(OrigTable!A1243=\"\",\"\",ScriptText!$B$1&CHAR(10)&ScriptText!$D$1)","v":""},{"$f":"IF(OrigTable!A1243=\"\",\"\",TEXT(OrigTable!A1243,\"00\"))","v":""},{"$f":"IF(OrigTable!A1243=\"\",\"\",ScriptText!$E$1&CHAR(10)&ScriptText!$C$1)","v":""},{"$f":"IF(OrigTable!B1243=\"\",\"\",ScriptText!$B$1&CHAR(10)&ScriptText!$D$1)","v":""},{"$f":"IF(OrigTable!B1243=\"\",\"\",TEXT(OrigTable!B1243,\"00\"))","v":""},{"$f":"IF(OrigTable!B1243=\"\",\"\",ScriptText!$E$1&CHAR(10)&ScriptText!C1238)","v":""},{"$f":"IF(OrigTable!C1243=\"\",\"\",ScriptText!$B$1&CHAR(10)&ScriptText!$D$1)","v":""},{"$f":"IF(OrigTable!C1243=\"\",\"\",IF(LEN(OrigTable!C1243)>255,LEFT(OrigTable!C1243,250)&\". . .\",OrigTable!C1243))","v":""},{"$f":"IF(OrigTable!C1243=\"\",\"\",ScriptText!$E$1&CHAR(10)&ScriptText!$C$1)","v":""},{"$f":"IF(OrigTable!D1243=\"\",\"\",ScriptText!$B$1&CHAR(10)&ScriptText!$D$1)","v":""},{"$f":"IF(OrigTable!D1243=\"\",\"\",TEXT(OrigTable!D1243,\"00\"))","v":""},{"$f":"IF(OrigTable!D1243=\"\",\"\",ScriptText!$E$1&CHAR(10)&ScriptText!$C$1)","v":""},{"$f":"IF(OrigTable!E1243=\"\",\"\",ScriptText!$B$1&CHAR(10)&ScriptText!$D$1)","v":""},{"$f":"IF(OrigTable!E1243=\"\",\"\",TEXT(OrigTable!E1243,\"00\"))","v":""},{"$f":"IF(OrigTable!E1243=\"\",\"\",ScriptText!$E$1&CHAR(10)&ScriptText!$C$1)","v":""},{"$f":"IF(OrigTable!F1243=\"\",\"\",ScriptText!$B$1&CHAR(10)&ScriptText!$D$1)","v":""},{"$f":"IF(OrigTable!F1243=\"\",\"\",TEXT(OrigTable!F1243,\"00\"))","v":""},{"$f":"IF(OrigTable!F1243=\"\",\"\",ScriptText!$E$1&CHAR(10)&ScriptText!$C$1)","v":""},{"$f":"IF(OrigTable!G1243=\"\",\"\",ScriptText!$B$1&CHAR(10)&ScriptText!$D$1)","v":""},{"$f":"IF(OrigTable!G1243=\"\",\"\",TEXT(OrigTable!G1243,\"00\"))","v":""},{"$f":"IF(OrigTable!G1243=\"\",\"\",ScriptText!$E$1&CHAR(10)&ScriptText!$C$1)","v":""},0]
["\n\n\n",{"$f":"IF(OrigTable!A1244=\"\",\"\",ScriptText!$B$1&CHAR(10)&ScriptText!$D$1)","v":""},{"$f":"IF(OrigTable!A1244=\"\",\"\",TEXT(OrigTable!A1244,\"00\"))","v":""},{"$f":"IF(OrigTable!A1244=\"\",\"\",ScriptText!$E$1&CHAR(10)&ScriptText!$C$1)","v":""},{"$f":"IF(OrigTable!B1244=\"\",\"\",ScriptText!$B$1&CHAR(10)&ScriptText!$D$1)","v":""},{"$f":"IF(OrigTable!B1244=\"\",\"\",TEXT(OrigTable!B1244,\"00\"))","v":""},{"$f":"IF(OrigTable!B1244=\"\",\"\",ScriptText!$E$1&CHAR(10)&ScriptText!C1239)","v":""},{"$f":"IF(OrigTable!C1244=\"\",\"\",ScriptText!$B$1&CHAR(10)&ScriptText!$D$1)","v":""},{"$f":"IF(OrigTable!C1244=\"\",\"\",IF(LEN(OrigTable!C1244)>255,LEFT(OrigTable!C1244,250)&\". . .\",OrigTable!C1244))","v":""},{"$f":"IF(OrigTable!C1244=\"\",\"\",ScriptText!$E$1&CHAR(10)&ScriptText!$C$1)","v":""},{"$f":"IF(OrigTable!D1244=\"\",\"\",ScriptText!$B$1&CHAR(10)&ScriptText!$D$1)","v":""},{"$f":"IF(OrigTable!D1244=\"\",\"\",TEXT(OrigTable!D1244,\"00\"))","v":""},{"$f":"IF(OrigTable!D1244=\"\",\"\",ScriptText!$E$1&CHAR(10)&ScriptText!$C$1)","v":""},{"$f":"IF(OrigTable!E1244=\"\",\"\",ScriptText!$B$1&CHAR(10)&ScriptText!$D$1)","v":""},{"$f":"IF(OrigTable!E1244=\"\",\"\",TEXT(OrigTable!E1244,\"00\"))","v":""},{"$f":"IF(OrigTable!E1244=\"\",\"\",ScriptText!$E$1&CHAR(10)&ScriptText!$C$1)","v":""},{"$f":"IF(OrigTable!F1244=\"\",\"\",ScriptText!$B$1&CHAR(10)&ScriptText!$D$1)","v":""},{"$f":"IF(OrigTable!F1244=\"\",\"\",TEXT(OrigTable!F1244,\"00\"))","v":""},{"$f":"IF(OrigTable!F1244=\"\",\"\",ScriptText!$E$1&CHAR(10)&ScriptText!$C$1)","v":""},{"$f":"IF(OrigTable!G1244=\"\",\"\",ScriptText!$B$1&CHAR(10)&ScriptText!$D$1)","v":""},{"$f":"IF(OrigTable!G1244=\"\",\"\",TEXT(OrigTable!G1244,\"00\"))","v":""},{"$f":"IF(OrigTable!G1244=\"\",\"\",ScriptText!$E$1&CHAR(10)&ScriptText!$C$1)","v":""},0]
["\n\n\n",{"$f":"IF(OrigTable!A1245=\"\",\"\",ScriptText!$B$1&CHAR(10)&ScriptText!$D$1)","v":""},{"$f":"IF(OrigTable!A1245=\"\",\"\",TEXT(OrigTable!A1245,\"00\"))","v":""},{"$f":"IF(OrigTable!A1245=\"\",\"\",ScriptText!$E$1&CHAR(10)&ScriptText!$C$1)","v":""},{"$f":"IF(OrigTable!B1245=\"\",\"\",ScriptText!$B$1&CHAR(10)&ScriptText!$D$1)","v":""},{"$f":"IF(OrigTable!B1245=\"\",\"\",TEXT(OrigTable!B1245,\"00\"))","v":""},{"$f":"IF(OrigTable!B1245=\"\",\"\",ScriptText!$E$1&CHAR(10)&ScriptText!C1240)","v":""},{"$f":"IF(OrigTable!C1245=\"\",\"\",ScriptText!$B$1&CHAR(10)&ScriptText!$D$1)","v":""},{"$f":"IF(OrigTable!C1245=\"\",\"\",IF(LEN(OrigTable!C1245)>255,LEFT(OrigTable!C1245,250)&\". . .\",OrigTable!C1245))","v":""},{"$f":"IF(OrigTable!C1245=\"\",\"\",ScriptText!$E$1&CHAR(10)&ScriptText!$C$1)","v":""},{"$f":"IF(OrigTable!D1245=\"\",\"\",ScriptText!$B$1&CHAR(10)&ScriptText!$D$1)","v":""},{"$f":"IF(OrigTable!D1245=\"\",\"\",TEXT(OrigTable!D1245,\"00\"))","v":""},{"$f":"IF(OrigTable!D1245=\"\",\"\",ScriptText!$E$1&CHAR(10)&ScriptText!$C$1)","v":""},{"$f":"IF(OrigTable!E1245=\"\",\"\",ScriptText!$B$1&CHAR(10)&ScriptText!$D$1)","v":""},{"$f":"IF(OrigTable!E1245=\"\",\"\",TEXT(OrigTable!E1245,\"00\"))","v":""},{"$f":"IF(OrigTable!E1245=\"\",\"\",ScriptText!$E$1&CHAR(10)&ScriptText!$C$1)","v":""},{"$f":"IF(OrigTable!F1245=\"\",\"\",ScriptText!$B$1&CHAR(10)&ScriptText!$D$1)","v":""},{"$f":"IF(OrigTable!F1245=\"\",\"\",TEXT(OrigTable!F1245,\"00\"))","v":""},{"$f":"IF(OrigTable!F1245=\"\",\"\",ScriptText!$E$1&CHAR(10)&ScriptText!$C$1)","v":""},{"$f":"IF(OrigTable!G1245=\"\",\"\",ScriptText!$B$1&CHAR(10)&ScriptText!$D$1)","v":""},{"$f":"IF(OrigTable!G1245=\"\",\"\",TEXT(OrigTable!G1245,\"00\"))","v":""},{"$f":"IF(OrigTable!G1245=\"\",\"\",ScriptText!$E$1&CHAR(10)&ScriptText!$C$1)","v":""},0]
["\n\n\n",{"$f":"IF(OrigTable!A1246=\"\",\"\",ScriptText!$B$1&CHAR(10)&ScriptText!$D$1)","v":""},{"$f":"IF(OrigTable!A1246=\"\",\"\",TEXT(OrigTable!A1246,\"00\"))","v":""},{"$f":"IF(OrigTable!A1246=\"\",\"\",ScriptText!$E$1&CHAR(10)&ScriptText!$C$1)","v":""},{"$f":"IF(OrigTable!B1246=\"\",\"\",ScriptText!$B$1&CHAR(10)&ScriptText!$D$1)","v":""},{"$f":"IF(OrigTable!B1246=\"\",\"\",TEXT(OrigTable!B1246,\"00\"))","v":""},{"$f":"IF(OrigTable!B1246=\"\",\"\",ScriptText!$E$1&CHAR(10)&ScriptText!C1241)","v":""},{"$f":"IF(OrigTable!C1246=\"\",\"\",ScriptText!$B$1&CHAR(10)&ScriptText!$D$1)","v":""},{"$f":"IF(OrigTable!C1246=\"\",\"\",IF(LEN(OrigTable!C1246)>255,LEFT(OrigTable!C1246,250)&\". . .\",OrigTable!C1246))","v":""},{"$f":"IF(OrigTable!C1246=\"\",\"\",ScriptText!$E$1&CHAR(10)&ScriptText!$C$1)","v":""},{"$f":"IF(OrigTable!D1246=\"\",\"\",ScriptText!$B$1&CHAR(10)&ScriptText!$D$1)","v":""},{"$f":"IF(OrigTable!D1246=\"\",\"\",TEXT(OrigTable!D1246,\"00\"))","v":""},{"$f":"IF(OrigTable!D1246=\"\",\"\",ScriptText!$E$1&CHAR(10)&ScriptText!$C$1)","v":""},{"$f":"IF(OrigTable!E1246=\"\",\"\",ScriptText!$B$1&CHAR(10)&ScriptText!$D$1)","v":""},{"$f":"IF(OrigTable!E1246=\"\",\"\",TEXT(OrigTable!E1246,\"00\"))","v":""},{"$f":"IF(OrigTable!E1246=\"\",\"\",ScriptText!$E$1&CHAR(10)&ScriptText!$C$1)","v":""},{"$f":"IF(OrigTable!F1246=\"\",\"\",ScriptText!$B$1&CHAR(10)&ScriptText!$D$1)","v":""},{"$f":"IF(OrigTable!F1246=\"\",\"\",TEXT(OrigTable!F1246,\"00\"))","v":""},{"$f":"IF(OrigTable!F1246=\"\",\"\",ScriptText!$E$1&CHAR(10)&ScriptText!$C$1)","v":""},{"$f":"IF(OrigTable!G1246=\"\",\"\",ScriptText!$B$1&CHAR(10)&ScriptText!$D$1)","v":""},{"$f":"IF(OrigTable!G1246=\"\",\"\",TEXT(OrigTable!G1246,\"00\"))","v":""},{"$f":"IF(OrigTable!G1246=\"\",\"\",ScriptText!$E$1&CHAR(10)&ScriptText!$C$1)","v":""},0]
["\n\n\n",{"$f":"IF(OrigTable!A1247=\"\",\"\",ScriptText!$B$1&CHAR(10)&ScriptText!$D$1)","v":""},{"$f":"IF(OrigTable!A1247=\"\",\"\",TEXT(OrigTable!A1247,\"00\"))","v":""},{"$f":"IF(OrigTable!A1247=\"\",\"\",ScriptText!$E$1&CHAR(10)&ScriptText!$C$1)","v":""},{"$f":"IF(OrigTable!B1247=\"\",\"\",ScriptText!$B$1&CHAR(10)&ScriptText!$D$1)","v":""},{"$f":"IF(OrigTable!B1247=\"\",\"\",TEXT(OrigTable!B1247,\"00\"))","v":""},{"$f":"IF(OrigTable!B1247=\"\",\"\",ScriptText!$E$1&CHAR(10)&ScriptText!C1242)","v":""},{"$f":"IF(OrigTable!C1247=\"\",\"\",ScriptText!$B$1&CHAR(10)&ScriptText!$D$1)","v":""},{"$f":"IF(OrigTable!C1247=\"\",\"\",IF(LEN(OrigTable!C1247)>255,LEFT(OrigTable!C1247,250)&\". . .\",OrigTable!C1247))","v":""},{"$f":"IF(OrigTable!C1247=\"\",\"\",ScriptText!$E$1&CHAR(10)&ScriptText!$C$1)","v":""},{"$f":"IF(OrigTable!D1247=\"\",\"\",ScriptText!$B$1&CHAR(10)&ScriptText!$D$1)","v":""},{"$f":"IF(OrigTable!D1247=\"\",\"\",TEXT(OrigTable!D1247,\"00\"))","v":""},{"$f":"IF(OrigTable!D1247=\"\",\"\",ScriptText!$E$1&CHAR(10)&ScriptText!$C$1)","v":""},{"$f":"IF(OrigTable!E1247=\"\",\"\",ScriptText!$B$1&CHAR(10)&ScriptText!$D$1)","v":""},{"$f":"IF(OrigTable!E1247=\"\",\"\",TEXT(OrigTable!E1247,\"00\"))","v":""},{"$f":"IF(OrigTable!E1247=\"\",\"\",ScriptText!$E$1&CHAR(10)&ScriptText!$C$1)","v":""},{"$f":"IF(OrigTable!F1247=\"\",\"\",ScriptText!$B$1&CHAR(10)&ScriptText!$D$1)","v":""},{"$f":"IF(OrigTable!F1247=\"\",\"\",TEXT(OrigTable!F1247,\"00\"))","v":""},{"$f":"IF(OrigTable!F1247=\"\",\"\",ScriptText!$E$1&CHAR(10)&ScriptText!$C$1)","v":""},{"$f":"IF(OrigTable!G1247=\"\",\"\",ScriptText!$B$1&CHAR(10)&ScriptText!$D$1)","v":""},{"$f":"IF(OrigTable!G1247=\"\",\"\",TEXT(OrigTable!G1247,\"00\"))","v":""},{"$f":"IF(OrigTable!G1247=\"\",\"\",ScriptText!$E$1&CHAR(10)&ScriptText!$C$1)","v":""},0]
["\n\n\n",{"$f":"IF(OrigTable!A1248=\"\",\"\",ScriptText!$B$1&CHAR(10)&ScriptText!$D$1)","v":""},{"$f":"IF(OrigTable!A1248=\"\",\"\",TEXT(OrigTable!A1248,\"00\"))","v":""},{"$f":"IF(OrigTable!A1248=\"\",\"\",ScriptText!$E$1&CHAR(10)&ScriptText!$C$1)","v":""},{"$f":"IF(OrigTable!B1248=\"\",\"\",ScriptText!$B$1&CHAR(10)&ScriptText!$D$1)","v":""},{"$f":"IF(OrigTable!B1248=\"\",\"\",TEXT(OrigTable!B1248,\"00\"))","v":""},{"$f":"IF(OrigTable!B1248=\"\",\"\",ScriptText!$E$1&CHAR(10)&ScriptText!C1243)","v":""},{"$f":"IF(OrigTable!C1248=\"\",\"\",ScriptText!$B$1&CHAR(10)&ScriptText!$D$1)","v":""},{"$f":"IF(OrigTable!C1248=\"\",\"\",IF(LEN(OrigTable!C1248)>255,LEFT(OrigTable!C1248,250)&\". . .\",OrigTable!C1248))","v":""},{"$f":"IF(OrigTable!C1248=\"\",\"\",ScriptText!$E$1&CHAR(10)&ScriptText!$C$1)","v":""},{"$f":"IF(OrigTable!D1248=\"\",\"\",ScriptText!$B$1&CHAR(10)&ScriptText!$D$1)","v":""},{"$f":"IF(OrigTable!D1248=\"\",\"\",TEXT(OrigTable!D1248,\"00\"))","v":""},{"$f":"IF(OrigTable!D1248=\"\",\"\",ScriptText!$E$1&CHAR(10)&ScriptText!$C$1)","v":""},{"$f":"IF(OrigTable!E1248=\"\",\"\",ScriptText!$B$1&CHAR(10)&ScriptText!$D$1)","v":""},{"$f":"IF(OrigTable!E1248=\"\",\"\",TEXT(OrigTable!E1248,\"00\"))","v":""},{"$f":"IF(OrigTable!E1248=\"\",\"\",ScriptText!$E$1&CHAR(10)&ScriptText!$C$1)","v":""},{"$f":"IF(OrigTable!F1248=\"\",\"\",ScriptText!$B$1&CHAR(10)&ScriptText!$D$1)","v":""},{"$f":"IF(OrigTable!F1248=\"\",\"\",TEXT(OrigTable!F1248,\"00\"))","v":""},{"$f":"IF(OrigTable!F1248=\"\",\"\",ScriptText!$E$1&CHAR(10)&ScriptText!$C$1)","v":""},{"$f":"IF(OrigTable!G1248=\"\",\"\",ScriptText!$B$1&CHAR(10)&ScriptText!$D$1)","v":""},{"$f":"IF(OrigTable!G1248=\"\",\"\",TEXT(OrigTable!G1248,\"00\"))","v":""},{"$f":"IF(OrigTable!G1248=\"\",\"\",ScriptText!$E$1&CHAR(10)&ScriptText!$C$1)","v":""},0]
["\n\n\n",{"$f":"IF(OrigTable!A1249=\"\",\"\",ScriptText!$B$1&CHAR(10)&ScriptText!$D$1)","v":""},{"$f":"IF(OrigTable!A1249=\"\",\"\",TEXT(OrigTable!A1249,\"00\"))","v":""},{"$f":"IF(OrigTable!A1249=\"\",\"\",ScriptText!$E$1&CHAR(10)&ScriptText!$C$1)","v":""},{"$f":"IF(OrigTable!B1249=\"\",\"\",ScriptText!$B$1&CHAR(10)&ScriptText!$D$1)","v":""},{"$f":"IF(OrigTable!B1249=\"\",\"\",TEXT(OrigTable!B1249,\"00\"))","v":""},{"$f":"IF(OrigTable!B1249=\"\",\"\",ScriptText!$E$1&CHAR(10)&ScriptText!C1244)","v":""},{"$f":"IF(OrigTable!C1249=\"\",\"\",ScriptText!$B$1&CHAR(10)&ScriptText!$D$1)","v":""},{"$f":"IF(OrigTable!C1249=\"\",\"\",IF(LEN(OrigTable!C1249)>255,LEFT(OrigTable!C1249,250)&\". . .\",OrigTable!C1249))","v":""},{"$f":"IF(OrigTable!C1249=\"\",\"\",ScriptText!$E$1&CHAR(10)&ScriptText!$C$1)","v":""},{"$f":"IF(OrigTable!D1249=\"\",\"\",ScriptText!$B$1&CHAR(10)&ScriptText!$D$1)","v":""},{"$f":"IF(OrigTable!D1249=\"\",\"\",TEXT(OrigTable!D1249,\"00\"))","v":""},{"$f":"IF(OrigTable!D1249=\"\",\"\",ScriptText!$E$1&CHAR(10)&ScriptText!$C$1)","v":""},{"$f":"IF(OrigTable!E1249=\"\",\"\",ScriptText!$B$1&CHAR(10)&ScriptText!$D$1)","v":""},{"$f":"IF(OrigTable!E1249=\"\",\"\",TEXT(OrigTable!E1249,\"00\"))","v":""},{"$f":"IF(OrigTable!E1249=\"\",\"\",ScriptText!$E$1&CHAR(10)&ScriptText!$C$1)","v":""},{"$f":"IF(OrigTable!F1249=\"\",\"\",ScriptText!$B$1&CHAR(10)&ScriptText!$D$1)","v":""},{"$f":"IF(OrigTable!F1249=\"\",\"\",TEXT(OrigTable!F1249,\"00\"))","v":""},{"$f":"IF(OrigTable!F1249=\"\",\"\",ScriptText!$E$1&CHAR(10)&ScriptText!$C$1)","v":""},{"$f":"IF(OrigTable!G1249=\"\",\"\",ScriptText!$B$1&CHAR(10)&ScriptText!$D$1)","v":""},{"$f":"IF(OrigTable!G1249=\"\",\"\",TEXT(OrigTable!G1249,\"00\"))","v":""},{"$f":"IF(OrigTable!G1249=\"\",\"\",ScriptText!$E$1&CHAR(10)&ScriptText!$C$1)","v":""},0]
["\n\n\n",{"$f":"IF(OrigTable!A1250=\"\",\"\",ScriptText!$B$1&CHAR(10)&ScriptText!$D$1)","v":""},{"$f":"IF(OrigTable!A1250=\"\",\"\",TEXT(OrigTable!A1250,\"00\"))","v":""},{"$f":"IF(OrigTable!A1250=\"\",\"\",ScriptText!$E$1&CHAR(10)&ScriptText!$C$1)","v":""},{"$f":"IF(OrigTable!B1250=\"\",\"\",ScriptText!$B$1&CHAR(10)&ScriptText!$D$1)","v":""},{"$f":"IF(OrigTable!B1250=\"\",\"\",TEXT(OrigTable!B1250,\"00\"))","v":""},{"$f":"IF(OrigTable!B1250=\"\",\"\",ScriptText!$E$1&CHAR(10)&ScriptText!C1245)","v":""},{"$f":"IF(OrigTable!C1250=\"\",\"\",ScriptText!$B$1&CHAR(10)&ScriptText!$D$1)","v":""},{"$f":"IF(OrigTable!C1250=\"\",\"\",IF(LEN(OrigTable!C1250)>255,LEFT(OrigTable!C1250,250)&\". . .\",OrigTable!C1250))","v":""},{"$f":"IF(OrigTable!C1250=\"\",\"\",ScriptText!$E$1&CHAR(10)&ScriptText!$C$1)","v":""},{"$f":"IF(OrigTable!D1250=\"\",\"\",ScriptText!$B$1&CHAR(10)&ScriptText!$D$1)","v":""},{"$f":"IF(OrigTable!D1250=\"\",\"\",TEXT(OrigTable!D1250,\"00\"))","v":""},{"$f":"IF(OrigTable!D1250=\"\",\"\",ScriptText!$E$1&CHAR(10)&ScriptText!$C$1)","v":""},{"$f":"IF(OrigTable!E1250=\"\",\"\",ScriptText!$B$1&CHAR(10)&ScriptText!$D$1)","v":""},{"$f":"IF(OrigTable!E1250=\"\",\"\",TEXT(OrigTable!E1250,\"00\"))","v":""},{"$f":"IF(OrigTable!E1250=\"\",\"\",ScriptText!$E$1&CHAR(10)&ScriptText!$C$1)","v":""},{"$f":"IF(OrigTable!F1250=\"\",\"\",ScriptText!$B$1&CHAR(10)&ScriptText!$D$1)","v":""},{"$f":"IF(OrigTable!F1250=\"\",\"\",TEXT(OrigTable!F1250,\"00\"))","v":""},{"$f":"IF(OrigTable!F1250=\"\",\"\",ScriptText!$E$1&CHAR(10)&ScriptText!$C$1)","v":""},{"$f":"IF(OrigTable!G1250=\"\",\"\",ScriptText!$B$1&CHAR(10)&ScriptText!$D$1)","v":""},{"$f":"IF(OrigTable!G1250=\"\",\"\",TEXT(OrigTable!G1250,\"00\"))","v":""},{"$f":"IF(OrigTable!G1250=\"\",\"\",ScriptText!$E$1&CHAR(10)&ScriptText!$C$1)","v":""},0]
["\n\n\n",{"$f":"IF(OrigTable!A1251=\"\",\"\",ScriptText!$B$1&CHAR(10)&ScriptText!$D$1)","v":""},{"$f":"IF(OrigTable!A1251=\"\",\"\",TEXT(OrigTable!A1251,\"00\"))","v":""},{"$f":"IF(OrigTable!A1251=\"\",\"\",ScriptText!$E$1&CHAR(10)&ScriptText!$C$1)","v":""},{"$f":"IF(OrigTable!B1251=\"\",\"\",ScriptText!$B$1&CHAR(10)&ScriptText!$D$1)","v":""},{"$f":"IF(OrigTable!B1251=\"\",\"\",TEXT(OrigTable!B1251,\"00\"))","v":""},{"$f":"IF(OrigTable!B1251=\"\",\"\",ScriptText!$E$1&CHAR(10)&ScriptText!C1246)","v":""},{"$f":"IF(OrigTable!C1251=\"\",\"\",ScriptText!$B$1&CHAR(10)&ScriptText!$D$1)","v":""},{"$f":"IF(OrigTable!C1251=\"\",\"\",IF(LEN(OrigTable!C1251)>255,LEFT(OrigTable!C1251,250)&\". . .\",OrigTable!C1251))","v":""},{"$f":"IF(OrigTable!C1251=\"\",\"\",ScriptText!$E$1&CHAR(10)&ScriptText!$C$1)","v":""},{"$f":"IF(OrigTable!D1251=\"\",\"\",ScriptText!$B$1&CHAR(10)&ScriptText!$D$1)","v":""},{"$f":"IF(OrigTable!D1251=\"\",\"\",TEXT(OrigTable!D1251,\"00\"))","v":""},{"$f":"IF(OrigTable!D1251=\"\",\"\",ScriptText!$E$1&CHAR(10)&ScriptText!$C$1)","v":""},{"$f":"IF(OrigTable!E1251=\"\",\"\",ScriptText!$B$1&CHAR(10)&ScriptText!$D$1)","v":""},{"$f":"IF(OrigTable!E1251=\"\",\"\",TEXT(OrigTable!E1251,\"00\"))","v":""},{"$f":"IF(OrigTable!E1251=\"\",\"\",ScriptText!$E$1&CHAR(10)&ScriptText!$C$1)","v":""},{"$f":"IF(OrigTable!F1251=\"\",\"\",ScriptText!$B$1&CHAR(10)&ScriptText!$D$1)","v":""},{"$f":"IF(OrigTable!F1251=\"\",\"\",TEXT(OrigTable!F1251,\"00\"))","v":""},{"$f":"IF(OrigTable!F1251=\"\",\"\",ScriptText!$E$1&CHAR(10)&ScriptText!$C$1)","v":""},{"$f":"IF(OrigTable!G1251=\"\",\"\",ScriptText!$B$1&CHAR(10)&ScriptText!$D$1)","v":""},{"$f":"IF(OrigTable!G1251=\"\",\"\",TEXT(OrigTable!G1251,\"00\"))","v":""},{"$f":"IF(OrigTable!G1251=\"\",\"\",ScriptText!$E$1&CHAR(10)&ScriptText!$C$1)","v":""},0]
["\n\n\n",{"$f":"IF(OrigTable!A1252=\"\",\"\",ScriptText!$B$1&CHAR(10)&ScriptText!$D$1)","v":""},{"$f":"IF(OrigTable!A1252=\"\",\"\",TEXT(OrigTable!A1252,\"00\"))","v":""},{"$f":"IF(OrigTable!A1252=\"\",\"\",ScriptText!$E$1&CHAR(10)&ScriptText!$C$1)","v":""},{"$f":"IF(OrigTable!B1252=\"\",\"\",ScriptText!$B$1&CHAR(10)&ScriptText!$D$1)","v":""},{"$f":"IF(OrigTable!B1252=\"\",\"\",TEXT(OrigTable!B1252,\"00\"))","v":""},{"$f":"IF(OrigTable!B1252=\"\",\"\",ScriptText!$E$1&CHAR(10)&ScriptText!C1247)","v":""},{"$f":"IF(OrigTable!C1252=\"\",\"\",ScriptText!$B$1&CHAR(10)&ScriptText!$D$1)","v":""},{"$f":"IF(OrigTable!C1252=\"\",\"\",IF(LEN(OrigTable!C1252)>255,LEFT(OrigTable!C1252,250)&\". . .\",OrigTable!C1252))","v":""},{"$f":"IF(OrigTable!C1252=\"\",\"\",ScriptText!$E$1&CHAR(10)&ScriptText!$C$1)","v":""},{"$f":"IF(OrigTable!D1252=\"\",\"\",ScriptText!$B$1&CHAR(10)&ScriptText!$D$1)","v":""},{"$f":"IF(OrigTable!D1252=\"\",\"\",TEXT(OrigTable!D1252,\"00\"))","v":""},{"$f":"IF(OrigTable!D1252=\"\",\"\",ScriptText!$E$1&CHAR(10)&ScriptText!$C$1)","v":""},{"$f":"IF(OrigTable!E1252=\"\",\"\",ScriptText!$B$1&CHAR(10)&ScriptText!$D$1)","v":""},{"$f":"IF(OrigTable!E1252=\"\",\"\",TEXT(OrigTable!E1252,\"00\"))","v":""},{"$f":"IF(OrigTable!E1252=\"\",\"\",ScriptText!$E$1&CHAR(10)&ScriptText!$C$1)","v":""},{"$f":"IF(OrigTable!F1252=\"\",\"\",ScriptText!$B$1&CHAR(10)&ScriptText!$D$1)","v":""},{"$f":"IF(OrigTable!F1252=\"\",\"\",TEXT(OrigTable!F1252,\"00\"))","v":""},{"$f":"IF(OrigTable!F1252=\"\",\"\",ScriptText!$E$1&CHAR(10)&ScriptText!$C$1)","v":""},{"$f":"IF(OrigTable!G1252=\"\",\"\",ScriptText!$B$1&CHAR(10)&ScriptText!$D$1)","v":""},{"$f":"IF(OrigTable!G1252=\"\",\"\",TEXT(OrigTable!G1252,\"00\"))","v":""},{"$f":"IF(OrigTable!G1252=\"\",\"\",ScriptText!$E$1&CHAR(10)&ScriptText!$C$1)","v":""},0]
["\n\n\n",{"$f":"IF(OrigTable!A1253=\"\",\"\",ScriptText!$B$1&CHAR(10)&ScriptText!$D$1)","v":""},{"$f":"IF(OrigTable!A1253=\"\",\"\",TEXT(OrigTable!A1253,\"00\"))","v":""},{"$f":"IF(OrigTable!A1253=\"\",\"\",ScriptText!$E$1&CHAR(10)&ScriptText!$C$1)","v":""},{"$f":"IF(OrigTable!B1253=\"\",\"\",ScriptText!$B$1&CHAR(10)&ScriptText!$D$1)","v":""},{"$f":"IF(OrigTable!B1253=\"\",\"\",TEXT(OrigTable!B1253,\"00\"))","v":""},{"$f":"IF(OrigTable!B1253=\"\",\"\",ScriptText!$E$1&CHAR(10)&ScriptText!C1248)","v":""},{"$f":"IF(OrigTable!C1253=\"\",\"\",ScriptText!$B$1&CHAR(10)&ScriptText!$D$1)","v":""},{"$f":"IF(OrigTable!C1253=\"\",\"\",IF(LEN(OrigTable!C1253)>255,LEFT(OrigTable!C1253,250)&\". . .\",OrigTable!C1253))","v":""},{"$f":"IF(OrigTable!C1253=\"\",\"\",ScriptText!$E$1&CHAR(10)&ScriptText!$C$1)","v":""},{"$f":"IF(OrigTable!D1253=\"\",\"\",ScriptText!$B$1&CHAR(10)&ScriptText!$D$1)","v":""},{"$f":"IF(OrigTable!D1253=\"\",\"\",TEXT(OrigTable!D1253,\"00\"))","v":""},{"$f":"IF(OrigTable!D1253=\"\",\"\",ScriptText!$E$1&CHAR(10)&ScriptText!$C$1)","v":""},{"$f":"IF(OrigTable!E1253=\"\",\"\",ScriptText!$B$1&CHAR(10)&ScriptText!$D$1)","v":""},{"$f":"IF(OrigTable!E1253=\"\",\"\",TEXT(OrigTable!E1253,\"00\"))","v":""},{"$f":"IF(OrigTable!E1253=\"\",\"\",ScriptText!$E$1&CHAR(10)&ScriptText!$C$1)","v":""},{"$f":"IF(OrigTable!F1253=\"\",\"\",ScriptText!$B$1&CHAR(10)&ScriptText!$D$1)","v":""},{"$f":"IF(OrigTable!F1253=\"\",\"\",TEXT(OrigTable!F1253,\"00\"))","v":""},{"$f":"IF(OrigTable!F1253=\"\",\"\",ScriptText!$E$1&CHAR(10)&ScriptText!$C$1)","v":""},{"$f":"IF(OrigTable!G1253=\"\",\"\",ScriptText!$B$1&CHAR(10)&ScriptText!$D$1)","v":""},{"$f":"IF(OrigTable!G1253=\"\",\"\",TEXT(OrigTable!G1253,\"00\"))","v":""},{"$f":"IF(OrigTable!G1253=\"\",\"\",ScriptText!$E$1&CHAR(10)&ScriptText!$C$1)","v":""},0]
["\n\n\n",{"$f":"IF(OrigTable!A1254=\"\",\"\",ScriptText!$B$1&CHAR(10)&ScriptText!$D$1)","v":""},{"$f":"IF(OrigTable!A1254=\"\",\"\",TEXT(OrigTable!A1254,\"00\"))","v":""},{"$f":"IF(OrigTable!A1254=\"\",\"\",ScriptText!$E$1&CHAR(10)&ScriptText!$C$1)","v":""},{"$f":"IF(OrigTable!B1254=\"\",\"\",ScriptText!$B$1&CHAR(10)&ScriptText!$D$1)","v":""},{"$f":"IF(OrigTable!B1254=\"\",\"\",TEXT(OrigTable!B1254,\"00\"))","v":""},{"$f":"IF(OrigTable!B1254=\"\",\"\",ScriptText!$E$1&CHAR(10)&ScriptText!C1249)","v":""},{"$f":"IF(OrigTable!C1254=\"\",\"\",ScriptText!$B$1&CHAR(10)&ScriptText!$D$1)","v":""},{"$f":"IF(OrigTable!C1254=\"\",\"\",IF(LEN(OrigTable!C1254)>255,LEFT(OrigTable!C1254,250)&\". . .\",OrigTable!C1254))","v":""},{"$f":"IF(OrigTable!C1254=\"\",\"\",ScriptText!$E$1&CHAR(10)&ScriptText!$C$1)","v":""},{"$f":"IF(OrigTable!D1254=\"\",\"\",ScriptText!$B$1&CHAR(10)&ScriptText!$D$1)","v":""},{"$f":"IF(OrigTable!D1254=\"\",\"\",TEXT(OrigTable!D1254,\"00\"))","v":""},{"$f":"IF(OrigTable!D1254=\"\",\"\",ScriptText!$E$1&CHAR(10)&ScriptText!$C$1)","v":""},{"$f":"IF(OrigTable!E1254=\"\",\"\",ScriptText!$B$1&CHAR(10)&ScriptText!$D$1)","v":""},{"$f":"IF(OrigTable!E1254=\"\",\"\",TEXT(OrigTable!E1254,\"00\"))","v":""},{"$f":"IF(OrigTable!E1254=\"\",\"\",ScriptText!$E$1&CHAR(10)&ScriptText!$C$1)","v":""},{"$f":"IF(OrigTable!F1254=\"\",\"\",ScriptText!$B$1&CHAR(10)&ScriptText!$D$1)","v":""},{"$f":"IF(OrigTable!F1254=\"\",\"\",TEXT(OrigTable!F1254,\"00\"))","v":""},{"$f":"IF(OrigTable!F1254=\"\",\"\",ScriptText!$E$1&CHAR(10)&ScriptText!$C$1)","v":""},{"$f":"IF(OrigTable!G1254=\"\",\"\",ScriptText!$B$1&CHAR(10)&ScriptText!$D$1)","v":""},{"$f":"IF(OrigTable!G1254=\"\",\"\",TEXT(OrigTable!G1254,\"00\"))","v":""},{"$f":"IF(OrigTable!G1254=\"\",\"\",ScriptText!$E$1&CHAR(10)&ScriptText!$C$1)","v":""},0]
["\n\n\n",{"$f":"IF(OrigTable!A1255=\"\",\"\",ScriptText!$B$1&CHAR(10)&ScriptText!$D$1)","v":""},{"$f":"IF(OrigTable!A1255=\"\",\"\",TEXT(OrigTable!A1255,\"00\"))","v":""},{"$f":"IF(OrigTable!A1255=\"\",\"\",ScriptText!$E$1&CHAR(10)&ScriptText!$C$1)","v":""},{"$f":"IF(OrigTable!B1255=\"\",\"\",ScriptText!$B$1&CHAR(10)&ScriptText!$D$1)","v":""},{"$f":"IF(OrigTable!B1255=\"\",\"\",TEXT(OrigTable!B1255,\"00\"))","v":""},{"$f":"IF(OrigTable!B1255=\"\",\"\",ScriptText!$E$1&CHAR(10)&ScriptText!C1250)","v":""},{"$f":"IF(OrigTable!C1255=\"\",\"\",ScriptText!$B$1&CHAR(10)&ScriptText!$D$1)","v":""},{"$f":"IF(OrigTable!C1255=\"\",\"\",IF(LEN(OrigTable!C1255)>255,LEFT(OrigTable!C1255,250)&\". . .\",OrigTable!C1255))","v":""},{"$f":"IF(OrigTable!C1255=\"\",\"\",ScriptText!$E$1&CHAR(10)&ScriptText!$C$1)","v":""},{"$f":"IF(OrigTable!D1255=\"\",\"\",ScriptText!$B$1&CHAR(10)&ScriptText!$D$1)","v":""},{"$f":"IF(OrigTable!D1255=\"\",\"\",TEXT(OrigTable!D1255,\"00\"))","v":""},{"$f":"IF(OrigTable!D1255=\"\",\"\",ScriptText!$E$1&CHAR(10)&ScriptText!$C$1)","v":""},{"$f":"IF(OrigTable!E1255=\"\",\"\",ScriptText!$B$1&CHAR(10)&ScriptText!$D$1)","v":""},{"$f":"IF(OrigTable!E1255=\"\",\"\",TEXT(OrigTable!E1255,\"00\"))","v":""},{"$f":"IF(OrigTable!E1255=\"\",\"\",ScriptText!$E$1&CHAR(10)&ScriptText!$C$1)","v":""},{"$f":"IF(OrigTable!F1255=\"\",\"\",ScriptText!$B$1&CHAR(10)&ScriptText!$D$1)","v":""},{"$f":"IF(OrigTable!F1255=\"\",\"\",TEXT(OrigTable!F1255,\"00\"))","v":""},{"$f":"IF(OrigTable!F1255=\"\",\"\",ScriptText!$E$1&CHAR(10)&ScriptText!$C$1)","v":""},{"$f":"IF(OrigTable!G1255=\"\",\"\",ScriptText!$B$1&CHAR(10)&ScriptText!$D$1)","v":""},{"$f":"IF(OrigTable!G1255=\"\",\"\",TEXT(OrigTable!G1255,\"00\"))","v":""},{"$f":"IF(OrigTable!G1255=\"\",\"\",ScriptText!$E$1&CHAR(10)&ScriptText!$C$1)","v":""},0]
["\n\n\n",{"$f":"IF(OrigTable!A1256=\"\",\"\",ScriptText!$B$1&CHAR(10)&ScriptText!$D$1)","v":""},{"$f":"IF(OrigTable!A1256=\"\",\"\",TEXT(OrigTable!A1256,\"00\"))","v":""},{"$f":"IF(OrigTable!A1256=\"\",\"\",ScriptText!$E$1&CHAR(10)&ScriptText!$C$1)","v":""},{"$f":"IF(OrigTable!B1256=\"\",\"\",ScriptText!$B$1&CHAR(10)&ScriptText!$D$1)","v":""},{"$f":"IF(OrigTable!B1256=\"\",\"\",TEXT(OrigTable!B1256,\"00\"))","v":""},{"$f":"IF(OrigTable!B1256=\"\",\"\",ScriptText!$E$1&CHAR(10)&ScriptText!C1251)","v":""},{"$f":"IF(OrigTable!C1256=\"\",\"\",ScriptText!$B$1&CHAR(10)&ScriptText!$D$1)","v":""},{"$f":"IF(OrigTable!C1256=\"\",\"\",IF(LEN(OrigTable!C1256)>255,LEFT(OrigTable!C1256,250)&\". . .\",OrigTable!C1256))","v":""},{"$f":"IF(OrigTable!C1256=\"\",\"\",ScriptText!$E$1&CHAR(10)&ScriptText!$C$1)","v":""},{"$f":"IF(OrigTable!D1256=\"\",\"\",ScriptText!$B$1&CHAR(10)&ScriptText!$D$1)","v":""},{"$f":"IF(OrigTable!D1256=\"\",\"\",TEXT(OrigTable!D1256,\"00\"))","v":""},{"$f":"IF(OrigTable!D1256=\"\",\"\",ScriptText!$E$1&CHAR(10)&ScriptText!$C$1)","v":""},{"$f":"IF(OrigTable!E1256=\"\",\"\",ScriptText!$B$1&CHAR(10)&ScriptText!$D$1)","v":""},{"$f":"IF(OrigTable!E1256=\"\",\"\",TEXT(OrigTable!E1256,\"00\"))","v":""},{"$f":"IF(OrigTable!E1256=\"\",\"\",ScriptText!$E$1&CHAR(10)&ScriptText!$C$1)","v":""},{"$f":"IF(OrigTable!F1256=\"\",\"\",ScriptText!$B$1&CHAR(10)&ScriptText!$D$1)","v":""},{"$f":"IF(OrigTable!F1256=\"\",\"\",TEXT(OrigTable!F1256,\"00\"))","v":""},{"$f":"IF(OrigTable!F1256=\"\",\"\",ScriptText!$E$1&CHAR(10)&ScriptText!$C$1)","v":""},{"$f":"IF(OrigTable!G1256=\"\",\"\",ScriptText!$B$1&CHAR(10)&ScriptText!$D$1)","v":""},{"$f":"IF(OrigTable!G1256=\"\",\"\",TEXT(OrigTable!G1256,\"00\"))","v":""},{"$f":"IF(OrigTable!G1256=\"\",\"\",ScriptText!$E$1&CHAR(10)&ScriptText!$C$1)","v":""},0]
["\n\n\n",{"$f":"IF(OrigTable!A1257=\"\",\"\",ScriptText!$B$1&CHAR(10)&ScriptText!$D$1)","v":""},{"$f":"IF(OrigTable!A1257=\"\",\"\",TEXT(OrigTable!A1257,\"00\"))","v":""},{"$f":"IF(OrigTable!A1257=\"\",\"\",ScriptText!$E$1&CHAR(10)&ScriptText!$C$1)","v":""},{"$f":"IF(OrigTable!B1257=\"\",\"\",ScriptText!$B$1&CHAR(10)&ScriptText!$D$1)","v":""},{"$f":"IF(OrigTable!B1257=\"\",\"\",TEXT(OrigTable!B1257,\"00\"))","v":""},{"$f":"IF(OrigTable!B1257=\"\",\"\",ScriptText!$E$1&CHAR(10)&ScriptText!C1252)","v":""},{"$f":"IF(OrigTable!C1257=\"\",\"\",ScriptText!$B$1&CHAR(10)&ScriptText!$D$1)","v":""},{"$f":"IF(OrigTable!C1257=\"\",\"\",IF(LEN(OrigTable!C1257)>255,LEFT(OrigTable!C1257,250)&\". . .\",OrigTable!C1257))","v":""},{"$f":"IF(OrigTable!C1257=\"\",\"\",ScriptText!$E$1&CHAR(10)&ScriptText!$C$1)","v":""},{"$f":"IF(OrigTable!D1257=\"\",\"\",ScriptText!$B$1&CHAR(10)&ScriptText!$D$1)","v":""},{"$f":"IF(OrigTable!D1257=\"\",\"\",TEXT(OrigTable!D1257,\"00\"))","v":""},{"$f":"IF(OrigTable!D1257=\"\",\"\",ScriptText!$E$1&CHAR(10)&ScriptText!$C$1)","v":""},{"$f":"IF(OrigTable!E1257=\"\",\"\",ScriptText!$B$1&CHAR(10)&ScriptText!$D$1)","v":""},{"$f":"IF(OrigTable!E1257=\"\",\"\",TEXT(OrigTable!E1257,\"00\"))","v":""},{"$f":"IF(OrigTable!E1257=\"\",\"\",ScriptText!$E$1&CHAR(10)&ScriptText!$C$1)","v":""},{"$f":"IF(OrigTable!F1257=\"\",\"\",ScriptText!$B$1&CHAR(10)&ScriptText!$D$1)","v":""},{"$f":"IF(OrigTable!F1257=\"\",\"\",TEXT(OrigTable!F1257,\"00\"))","v":""},{"$f":"IF(OrigTable!F1257=\"\",\"\",ScriptText!$E$1&CHAR(10)&ScriptText!$C$1)","v":""},{"$f":"IF(OrigTable!G1257=\"\",\"\",ScriptText!$B$1&CHAR(10)&ScriptText!$D$1)","v":""},{"$f":"IF(OrigTable!G1257=\"\",\"\",TEXT(OrigTable!G1257,\"00\"))","v":""},{"$f":"IF(OrigTable!G1257=\"\",\"\",ScriptText!$E$1&CHAR(10)&ScriptText!$C$1)","v":""},0]
["\n\n\n",{"$f":"IF(OrigTable!A1258=\"\",\"\",ScriptText!$B$1&CHAR(10)&ScriptText!$D$1)","v":""},{"$f":"IF(OrigTable!A1258=\"\",\"\",TEXT(OrigTable!A1258,\"00\"))","v":""},{"$f":"IF(OrigTable!A1258=\"\",\"\",ScriptText!$E$1&CHAR(10)&ScriptText!$C$1)","v":""},{"$f":"IF(OrigTable!B1258=\"\",\"\",ScriptText!$B$1&CHAR(10)&ScriptText!$D$1)","v":""},{"$f":"IF(OrigTable!B1258=\"\",\"\",TEXT(OrigTable!B1258,\"00\"))","v":""},{"$f":"IF(OrigTable!B1258=\"\",\"\",ScriptText!$E$1&CHAR(10)&ScriptText!C1253)","v":""},{"$f":"IF(OrigTable!C1258=\"\",\"\",ScriptText!$B$1&CHAR(10)&ScriptText!$D$1)","v":""},{"$f":"IF(OrigTable!C1258=\"\",\"\",IF(LEN(OrigTable!C1258)>255,LEFT(OrigTable!C1258,250)&\". . .\",OrigTable!C1258))","v":""},{"$f":"IF(OrigTable!C1258=\"\",\"\",ScriptText!$E$1&CHAR(10)&ScriptText!$C$1)","v":""},{"$f":"IF(OrigTable!D1258=\"\",\"\",ScriptText!$B$1&CHAR(10)&ScriptText!$D$1)","v":""},{"$f":"IF(OrigTable!D1258=\"\",\"\",TEXT(OrigTable!D1258,\"00\"))","v":""},{"$f":"IF(OrigTable!D1258=\"\",\"\",ScriptText!$E$1&CHAR(10)&ScriptText!$C$1)","v":""},{"$f":"IF(OrigTable!E1258=\"\",\"\",ScriptText!$B$1&CHAR(10)&ScriptText!$D$1)","v":""},{"$f":"IF(OrigTable!E1258=\"\",\"\",TEXT(OrigTable!E1258,\"00\"))","v":""},{"$f":"IF(OrigTable!E1258=\"\",\"\",ScriptText!$E$1&CHAR(10)&ScriptText!$C$1)","v":""},{"$f":"IF(OrigTable!F1258=\"\",\"\",ScriptText!$B$1&CHAR(10)&ScriptText!$D$1)","v":""},{"$f":"IF(OrigTable!F1258=\"\",\"\",TEXT(OrigTable!F1258,\"00\"))","v":""},{"$f":"IF(OrigTable!F1258=\"\",\"\",ScriptText!$E$1&CHAR(10)&ScriptText!$C$1)","v":""},{"$f":"IF(OrigTable!G1258=\"\",\"\",ScriptText!$B$1&CHAR(10)&ScriptText!$D$1)","v":""},{"$f":"IF(OrigTable!G1258=\"\",\"\",TEXT(OrigTable!G1258,\"00\"))","v":""},{"$f":"IF(OrigTable!G1258=\"\",\"\",ScriptText!$E$1&CHAR(10)&ScriptText!$C$1)","v":""},0]
["\n\n\n",{"$f":"IF(OrigTable!A1259=\"\",\"\",ScriptText!$B$1&CHAR(10)&ScriptText!$D$1)","v":""},{"$f":"IF(OrigTable!A1259=\"\",\"\",TEXT(OrigTable!A1259,\"00\"))","v":""},{"$f":"IF(OrigTable!A1259=\"\",\"\",ScriptText!$E$1&CHAR(10)&ScriptText!$C$1)","v":""},{"$f":"IF(OrigTable!B1259=\"\",\"\",ScriptText!$B$1&CHAR(10)&ScriptText!$D$1)","v":""},{"$f":"IF(OrigTable!B1259=\"\",\"\",TEXT(OrigTable!B1259,\"00\"))","v":""},{"$f":"IF(OrigTable!B1259=\"\",\"\",ScriptText!$E$1&CHAR(10)&ScriptText!C1254)","v":""},{"$f":"IF(OrigTable!C1259=\"\",\"\",ScriptText!$B$1&CHAR(10)&ScriptText!$D$1)","v":""},{"$f":"IF(OrigTable!C1259=\"\",\"\",IF(LEN(OrigTable!C1259)>255,LEFT(OrigTable!C1259,250)&\". . .\",OrigTable!C1259))","v":""},{"$f":"IF(OrigTable!C1259=\"\",\"\",ScriptText!$E$1&CHAR(10)&ScriptText!$C$1)","v":""},{"$f":"IF(OrigTable!D1259=\"\",\"\",ScriptText!$B$1&CHAR(10)&ScriptText!$D$1)","v":""},{"$f":"IF(OrigTable!D1259=\"\",\"\",TEXT(OrigTable!D1259,\"00\"))","v":""},{"$f":"IF(OrigTable!D1259=\"\",\"\",ScriptText!$E$1&CHAR(10)&ScriptText!$C$1)","v":""},{"$f":"IF(OrigTable!E1259=\"\",\"\",ScriptText!$B$1&CHAR(10)&ScriptText!$D$1)","v":""},{"$f":"IF(OrigTable!E1259=\"\",\"\",TEXT(OrigTable!E1259,\"00\"))","v":""},{"$f":"IF(OrigTable!E1259=\"\",\"\",ScriptText!$E$1&CHAR(10)&ScriptText!$C$1)","v":""},{"$f":"IF(OrigTable!F1259=\"\",\"\",ScriptText!$B$1&CHAR(10)&ScriptText!$D$1)","v":""},{"$f":"IF(OrigTable!F1259=\"\",\"\",TEXT(OrigTable!F1259,\"00\"))","v":""},{"$f":"IF(OrigTable!F1259=\"\",\"\",ScriptText!$E$1&CHAR(10)&ScriptText!$C$1)","v":""},{"$f":"IF(OrigTable!G1259=\"\",\"\",ScriptText!$B$1&CHAR(10)&ScriptText!$D$1)","v":""},{"$f":"IF(OrigTable!G1259=\"\",\"\",TEXT(OrigTable!G1259,\"00\"))","v":""},{"$f":"IF(OrigTable!G1259=\"\",\"\",ScriptText!$E$1&CHAR(10)&ScriptText!$C$1)","v":""},0]
["\n\n\n",{"$f":"IF(OrigTable!A1260=\"\",\"\",ScriptText!$B$1&CHAR(10)&ScriptText!$D$1)","v":""},{"$f":"IF(OrigTable!A1260=\"\",\"\",TEXT(OrigTable!A1260,\"00\"))","v":""},{"$f":"IF(OrigTable!A1260=\"\",\"\",ScriptText!$E$1&CHAR(10)&ScriptText!$C$1)","v":""},{"$f":"IF(OrigTable!B1260=\"\",\"\",ScriptText!$B$1&CHAR(10)&ScriptText!$D$1)","v":""},{"$f":"IF(OrigTable!B1260=\"\",\"\",TEXT(OrigTable!B1260,\"00\"))","v":""},{"$f":"IF(OrigTable!B1260=\"\",\"\",ScriptText!$E$1&CHAR(10)&ScriptText!C1255)","v":""},{"$f":"IF(OrigTable!C1260=\"\",\"\",ScriptText!$B$1&CHAR(10)&ScriptText!$D$1)","v":""},{"$f":"IF(OrigTable!C1260=\"\",\"\",IF(LEN(OrigTable!C1260)>255,LEFT(OrigTable!C1260,250)&\". . .\",OrigTable!C1260))","v":""},{"$f":"IF(OrigTable!C1260=\"\",\"\",ScriptText!$E$1&CHAR(10)&ScriptText!$C$1)","v":""},{"$f":"IF(OrigTable!D1260=\"\",\"\",ScriptText!$B$1&CHAR(10)&ScriptText!$D$1)","v":""},{"$f":"IF(OrigTable!D1260=\"\",\"\",TEXT(OrigTable!D1260,\"00\"))","v":""},{"$f":"IF(OrigTable!D1260=\"\",\"\",ScriptText!$E$1&CHAR(10)&ScriptText!$C$1)","v":""},{"$f":"IF(OrigTable!E1260=\"\",\"\",ScriptText!$B$1&CHAR(10)&ScriptText!$D$1)","v":""},{"$f":"IF(OrigTable!E1260=\"\",\"\",TEXT(OrigTable!E1260,\"00\"))","v":""},{"$f":"IF(OrigTable!E1260=\"\",\"\",ScriptText!$E$1&CHAR(10)&ScriptText!$C$1)","v":""},{"$f":"IF(OrigTable!F1260=\"\",\"\",ScriptText!$B$1&CHAR(10)&ScriptText!$D$1)","v":""},{"$f":"IF(OrigTable!F1260=\"\",\"\",TEXT(OrigTable!F1260,\"00\"))","v":""},{"$f":"IF(OrigTable!F1260=\"\",\"\",ScriptText!$E$1&CHAR(10)&ScriptText!$C$1)","v":""},{"$f":"IF(OrigTable!G1260=\"\",\"\",ScriptText!$B$1&CHAR(10)&ScriptText!$D$1)","v":""},{"$f":"IF(OrigTable!G1260=\"\",\"\",TEXT(OrigTable!G1260,\"00\"))","v":""},{"$f":"IF(OrigTable!G1260=\"\",\"\",ScriptText!$E$1&CHAR(10)&ScriptText!$C$1)","v":""},0]
["\n\n\n",{"$f":"IF(OrigTable!A1261=\"\",\"\",ScriptText!$B$1&CHAR(10)&ScriptText!$D$1)","v":""},{"$f":"IF(OrigTable!A1261=\"\",\"\",TEXT(OrigTable!A1261,\"00\"))","v":""},{"$f":"IF(OrigTable!A1261=\"\",\"\",ScriptText!$E$1&CHAR(10)&ScriptText!$C$1)","v":""},{"$f":"IF(OrigTable!B1261=\"\",\"\",ScriptText!$B$1&CHAR(10)&ScriptText!$D$1)","v":""},{"$f":"IF(OrigTable!B1261=\"\",\"\",TEXT(OrigTable!B1261,\"00\"))","v":""},{"$f":"IF(OrigTable!B1261=\"\",\"\",ScriptText!$E$1&CHAR(10)&ScriptText!C1256)","v":""},{"$f":"IF(OrigTable!C1261=\"\",\"\",ScriptText!$B$1&CHAR(10)&ScriptText!$D$1)","v":""},{"$f":"IF(OrigTable!C1261=\"\",\"\",IF(LEN(OrigTable!C1261)>255,LEFT(OrigTable!C1261,250)&\". . .\",OrigTable!C1261))","v":""},{"$f":"IF(OrigTable!C1261=\"\",\"\",ScriptText!$E$1&CHAR(10)&ScriptText!$C$1)","v":""},{"$f":"IF(OrigTable!D1261=\"\",\"\",ScriptText!$B$1&CHAR(10)&ScriptText!$D$1)","v":""},{"$f":"IF(OrigTable!D1261=\"\",\"\",TEXT(OrigTable!D1261,\"00\"))","v":""},{"$f":"IF(OrigTable!D1261=\"\",\"\",ScriptText!$E$1&CHAR(10)&ScriptText!$C$1)","v":""},{"$f":"IF(OrigTable!E1261=\"\",\"\",ScriptText!$B$1&CHAR(10)&ScriptText!$D$1)","v":""},{"$f":"IF(OrigTable!E1261=\"\",\"\",TEXT(OrigTable!E1261,\"00\"))","v":""},{"$f":"IF(OrigTable!E1261=\"\",\"\",ScriptText!$E$1&CHAR(10)&ScriptText!$C$1)","v":""},{"$f":"IF(OrigTable!F1261=\"\",\"\",ScriptText!$B$1&CHAR(10)&ScriptText!$D$1)","v":""},{"$f":"IF(OrigTable!F1261=\"\",\"\",TEXT(OrigTable!F1261,\"00\"))","v":""},{"$f":"IF(OrigTable!F1261=\"\",\"\",ScriptText!$E$1&CHAR(10)&ScriptText!$C$1)","v":""},{"$f":"IF(OrigTable!G1261=\"\",\"\",ScriptText!$B$1&CHAR(10)&ScriptText!$D$1)","v":""},{"$f":"IF(OrigTable!G1261=\"\",\"\",TEXT(OrigTable!G1261,\"00\"))","v":""},{"$f":"IF(OrigTable!G1261=\"\",\"\",ScriptText!$E$1&CHAR(10)&ScriptText!$C$1)","v":""},0]
["\n\n\n",{"$f":"IF(OrigTable!A1262=\"\",\"\",ScriptText!$B$1&CHAR(10)&ScriptText!$D$1)","v":""},{"$f":"IF(OrigTable!A1262=\"\",\"\",TEXT(OrigTable!A1262,\"00\"))","v":""},{"$f":"IF(OrigTable!A1262=\"\",\"\",ScriptText!$E$1&CHAR(10)&ScriptText!$C$1)","v":""},{"$f":"IF(OrigTable!B1262=\"\",\"\",ScriptText!$B$1&CHAR(10)&ScriptText!$D$1)","v":""},{"$f":"IF(OrigTable!B1262=\"\",\"\",TEXT(OrigTable!B1262,\"00\"))","v":""},{"$f":"IF(OrigTable!B1262=\"\",\"\",ScriptText!$E$1&CHAR(10)&ScriptText!C1257)","v":""},{"$f":"IF(OrigTable!C1262=\"\",\"\",ScriptText!$B$1&CHAR(10)&ScriptText!$D$1)","v":""},{"$f":"IF(OrigTable!C1262=\"\",\"\",IF(LEN(OrigTable!C1262)>255,LEFT(OrigTable!C1262,250)&\". . .\",OrigTable!C1262))","v":""},{"$f":"IF(OrigTable!C1262=\"\",\"\",ScriptText!$E$1&CHAR(10)&ScriptText!$C$1)","v":""},{"$f":"IF(OrigTable!D1262=\"\",\"\",ScriptText!$B$1&CHAR(10)&ScriptText!$D$1)","v":""},{"$f":"IF(OrigTable!D1262=\"\",\"\",TEXT(OrigTable!D1262,\"00\"))","v":""},{"$f":"IF(OrigTable!D1262=\"\",\"\",ScriptText!$E$1&CHAR(10)&ScriptText!$C$1)","v":""},{"$f":"IF(OrigTable!E1262=\"\",\"\",ScriptText!$B$1&CHAR(10)&ScriptText!$D$1)","v":""},{"$f":"IF(OrigTable!E1262=\"\",\"\",TEXT(OrigTable!E1262,\"00\"))","v":""},{"$f":"IF(OrigTable!E1262=\"\",\"\",ScriptText!$E$1&CHAR(10)&ScriptText!$C$1)","v":""},{"$f":"IF(OrigTable!F1262=\"\",\"\",ScriptText!$B$1&CHAR(10)&ScriptText!$D$1)","v":""},{"$f":"IF(OrigTable!F1262=\"\",\"\",TEXT(OrigTable!F1262,\"00\"))","v":""},{"$f":"IF(OrigTable!F1262=\"\",\"\",ScriptText!$E$1&CHAR(10)&ScriptText!$C$1)","v":""},{"$f":"IF(OrigTable!G1262=\"\",\"\",ScriptText!$B$1&CHAR(10)&ScriptText!$D$1)","v":""},{"$f":"IF(OrigTable!G1262=\"\",\"\",TEXT(OrigTable!G1262,\"00\"))","v":""},{"$f":"IF(OrigTable!G1262=\"\",\"\",ScriptText!$E$1&CHAR(10)&ScriptText!$C$1)","v":""},0]
["\n\n\n",{"$f":"IF(OrigTable!A1263=\"\",\"\",ScriptText!$B$1&CHAR(10)&ScriptText!$D$1)","v":""},{"$f":"IF(OrigTable!A1263=\"\",\"\",TEXT(OrigTable!A1263,\"00\"))","v":""},{"$f":"IF(OrigTable!A1263=\"\",\"\",ScriptText!$E$1&CHAR(10)&ScriptText!$C$1)","v":""},{"$f":"IF(OrigTable!B1263=\"\",\"\",ScriptText!$B$1&CHAR(10)&ScriptText!$D$1)","v":""},{"$f":"IF(OrigTable!B1263=\"\",\"\",TEXT(OrigTable!B1263,\"00\"))","v":""},{"$f":"IF(OrigTable!B1263=\"\",\"\",ScriptText!$E$1&CHAR(10)&ScriptText!C1258)","v":""},{"$f":"IF(OrigTable!C1263=\"\",\"\",ScriptText!$B$1&CHAR(10)&ScriptText!$D$1)","v":""},{"$f":"IF(OrigTable!C1263=\"\",\"\",IF(LEN(OrigTable!C1263)>255,LEFT(OrigTable!C1263,250)&\". . .\",OrigTable!C1263))","v":""},{"$f":"IF(OrigTable!C1263=\"\",\"\",ScriptText!$E$1&CHAR(10)&ScriptText!$C$1)","v":""},{"$f":"IF(OrigTable!D1263=\"\",\"\",ScriptText!$B$1&CHAR(10)&ScriptText!$D$1)","v":""},{"$f":"IF(OrigTable!D1263=\"\",\"\",TEXT(OrigTable!D1263,\"00\"))","v":""},{"$f":"IF(OrigTable!D1263=\"\",\"\",ScriptText!$E$1&CHAR(10)&ScriptText!$C$1)","v":""},{"$f":"IF(OrigTable!E1263=\"\",\"\",ScriptText!$B$1&CHAR(10)&ScriptText!$D$1)","v":""},{"$f":"IF(OrigTable!E1263=\"\",\"\",TEXT(OrigTable!E1263,\"00\"))","v":""},{"$f":"IF(OrigTable!E1263=\"\",\"\",ScriptText!$E$1&CHAR(10)&ScriptText!$C$1)","v":""},{"$f":"IF(OrigTable!F1263=\"\",\"\",ScriptText!$B$1&CHAR(10)&ScriptText!$D$1)","v":""},{"$f":"IF(OrigTable!F1263=\"\",\"\",TEXT(OrigTable!F1263,\"00\"))","v":""},{"$f":"IF(OrigTable!F1263=\"\",\"\",ScriptText!$E$1&CHAR(10)&ScriptText!$C$1)","v":""},{"$f":"IF(OrigTable!G1263=\"\",\"\",ScriptText!$B$1&CHAR(10)&ScriptText!$D$1)","v":""},{"$f":"IF(OrigTable!G1263=\"\",\"\",TEXT(OrigTable!G1263,\"00\"))","v":""},{"$f":"IF(OrigTable!G1263=\"\",\"\",ScriptText!$E$1&CHAR(10)&ScriptText!$C$1)","v":""},0]
["\n\n\n",{"$f":"IF(OrigTable!A1264=\"\",\"\",ScriptText!$B$1&CHAR(10)&ScriptText!$D$1)","v":""},{"$f":"IF(OrigTable!A1264=\"\",\"\",TEXT(OrigTable!A1264,\"00\"))","v":""},{"$f":"IF(OrigTable!A1264=\"\",\"\",ScriptText!$E$1&CHAR(10)&ScriptText!$C$1)","v":""},{"$f":"IF(OrigTable!B1264=\"\",\"\",ScriptText!$B$1&CHAR(10)&ScriptText!$D$1)","v":""},{"$f":"IF(OrigTable!B1264=\"\",\"\",TEXT(OrigTable!B1264,\"00\"))","v":""},{"$f":"IF(OrigTable!B1264=\"\",\"\",ScriptText!$E$1&CHAR(10)&ScriptText!C1259)","v":""},{"$f":"IF(OrigTable!C1264=\"\",\"\",ScriptText!$B$1&CHAR(10)&ScriptText!$D$1)","v":""},{"$f":"IF(OrigTable!C1264=\"\",\"\",IF(LEN(OrigTable!C1264)>255,LEFT(OrigTable!C1264,250)&\". . .\",OrigTable!C1264))","v":""},{"$f":"IF(OrigTable!C1264=\"\",\"\",ScriptText!$E$1&CHAR(10)&ScriptText!$C$1)","v":""},{"$f":"IF(OrigTable!D1264=\"\",\"\",ScriptText!$B$1&CHAR(10)&ScriptText!$D$1)","v":""},{"$f":"IF(OrigTable!D1264=\"\",\"\",TEXT(OrigTable!D1264,\"00\"))","v":""},{"$f":"IF(OrigTable!D1264=\"\",\"\",ScriptText!$E$1&CHAR(10)&ScriptText!$C$1)","v":""},{"$f":"IF(OrigTable!E1264=\"\",\"\",ScriptText!$B$1&CHAR(10)&ScriptText!$D$1)","v":""},{"$f":"IF(OrigTable!E1264=\"\",\"\",TEXT(OrigTable!E1264,\"00\"))","v":""},{"$f":"IF(OrigTable!E1264=\"\",\"\",ScriptText!$E$1&CHAR(10)&ScriptText!$C$1)","v":""},{"$f":"IF(OrigTable!F1264=\"\",\"\",ScriptText!$B$1&CHAR(10)&ScriptText!$D$1)","v":""},{"$f":"IF(OrigTable!F1264=\"\",\"\",TEXT(OrigTable!F1264,\"00\"))","v":""},{"$f":"IF(OrigTable!F1264=\"\",\"\",ScriptText!$E$1&CHAR(10)&ScriptText!$C$1)","v":""},{"$f":"IF(OrigTable!G1264=\"\",\"\",ScriptText!$B$1&CHAR(10)&ScriptText!$D$1)","v":""},{"$f":"IF(OrigTable!G1264=\"\",\"\",TEXT(OrigTable!G1264,\"00\"))","v":""},{"$f":"IF(OrigTable!G1264=\"\",\"\",ScriptText!$E$1&CHAR(10)&ScriptText!$C$1)","v":""},0]
["\n\n\n",{"$f":"IF(OrigTable!A1265=\"\",\"\",ScriptText!$B$1&CHAR(10)&ScriptText!$D$1)","v":""},{"$f":"IF(OrigTable!A1265=\"\",\"\",TEXT(OrigTable!A1265,\"00\"))","v":""},{"$f":"IF(OrigTable!A1265=\"\",\"\",ScriptText!$E$1&CHAR(10)&ScriptText!$C$1)","v":""},{"$f":"IF(OrigTable!B1265=\"\",\"\",ScriptText!$B$1&CHAR(10)&ScriptText!$D$1)","v":""},{"$f":"IF(OrigTable!B1265=\"\",\"\",TEXT(OrigTable!B1265,\"00\"))","v":""},{"$f":"IF(OrigTable!B1265=\"\",\"\",ScriptText!$E$1&CHAR(10)&ScriptText!C1260)","v":""},{"$f":"IF(OrigTable!C1265=\"\",\"\",ScriptText!$B$1&CHAR(10)&ScriptText!$D$1)","v":""},{"$f":"IF(OrigTable!C1265=\"\",\"\",IF(LEN(OrigTable!C1265)>255,LEFT(OrigTable!C1265,250)&\". . .\",OrigTable!C1265))","v":""},{"$f":"IF(OrigTable!C1265=\"\",\"\",ScriptText!$E$1&CHAR(10)&ScriptText!$C$1)","v":""},{"$f":"IF(OrigTable!D1265=\"\",\"\",ScriptText!$B$1&CHAR(10)&ScriptText!$D$1)","v":""},{"$f":"IF(OrigTable!D1265=\"\",\"\",TEXT(OrigTable!D1265,\"00\"))","v":""},{"$f":"IF(OrigTable!D1265=\"\",\"\",ScriptText!$E$1&CHAR(10)&ScriptText!$C$1)","v":""},{"$f":"IF(OrigTable!E1265=\"\",\"\",ScriptText!$B$1&CHAR(10)&ScriptText!$D$1)","v":""},{"$f":"IF(OrigTable!E1265=\"\",\"\",TEXT(OrigTable!E1265,\"00\"))","v":""},{"$f":"IF(OrigTable!E1265=\"\",\"\",ScriptText!$E$1&CHAR(10)&ScriptText!$C$1)","v":""},{"$f":"IF(OrigTable!F1265=\"\",\"\",ScriptText!$B$1&CHAR(10)&ScriptText!$D$1)","v":""},{"$f":"IF(OrigTable!F1265=\"\",\"\",TEXT(OrigTable!F1265,\"00\"))","v":""},{"$f":"IF(OrigTable!F1265=\"\",\"\",ScriptText!$E$1&CHAR(10)&ScriptText!$C$1)","v":""},{"$f":"IF(OrigTable!G1265=\"\",\"\",ScriptText!$B$1&CHAR(10)&ScriptText!$D$1)","v":""},{"$f":"IF(OrigTable!G1265=\"\",\"\",TEXT(OrigTable!G1265,\"00\"))","v":""},{"$f":"IF(OrigTable!G1265=\"\",\"\",ScriptText!$E$1&CHAR(10)&ScriptText!$C$1)","v":""},0]
["\n\n\n",{"$f":"IF(OrigTable!A1266=\"\",\"\",ScriptText!$B$1&CHAR(10)&ScriptText!$D$1)","v":""},{"$f":"IF(OrigTable!A1266=\"\",\"\",TEXT(OrigTable!A1266,\"00\"))","v":""},{"$f":"IF(OrigTable!A1266=\"\",\"\",ScriptText!$E$1&CHAR(10)&ScriptText!$C$1)","v":""},{"$f":"IF(OrigTable!B1266=\"\",\"\",ScriptText!$B$1&CHAR(10)&ScriptText!$D$1)","v":""},{"$f":"IF(OrigTable!B1266=\"\",\"\",TEXT(OrigTable!B1266,\"00\"))","v":""},{"$f":"IF(OrigTable!B1266=\"\",\"\",ScriptText!$E$1&CHAR(10)&ScriptText!C1261)","v":""},{"$f":"IF(OrigTable!C1266=\"\",\"\",ScriptText!$B$1&CHAR(10)&ScriptText!$D$1)","v":""},{"$f":"IF(OrigTable!C1266=\"\",\"\",IF(LEN(OrigTable!C1266)>255,LEFT(OrigTable!C1266,250)&\". . .\",OrigTable!C1266))","v":""},{"$f":"IF(OrigTable!C1266=\"\",\"\",ScriptText!$E$1&CHAR(10)&ScriptText!$C$1)","v":""},{"$f":"IF(OrigTable!D1266=\"\",\"\",ScriptText!$B$1&CHAR(10)&ScriptText!$D$1)","v":""},{"$f":"IF(OrigTable!D1266=\"\",\"\",TEXT(OrigTable!D1266,\"00\"))","v":""},{"$f":"IF(OrigTable!D1266=\"\",\"\",ScriptText!$E$1&CHAR(10)&ScriptText!$C$1)","v":""},{"$f":"IF(OrigTable!E1266=\"\",\"\",ScriptText!$B$1&CHAR(10)&ScriptText!$D$1)","v":""},{"$f":"IF(OrigTable!E1266=\"\",\"\",TEXT(OrigTable!E1266,\"00\"))","v":""},{"$f":"IF(OrigTable!E1266=\"\",\"\",ScriptText!$E$1&CHAR(10)&ScriptText!$C$1)","v":""},{"$f":"IF(OrigTable!F1266=\"\",\"\",ScriptText!$B$1&CHAR(10)&ScriptText!$D$1)","v":""},{"$f":"IF(OrigTable!F1266=\"\",\"\",TEXT(OrigTable!F1266,\"00\"))","v":""},{"$f":"IF(OrigTable!F1266=\"\",\"\",ScriptText!$E$1&CHAR(10)&ScriptText!$C$1)","v":""},{"$f":"IF(OrigTable!G1266=\"\",\"\",ScriptText!$B$1&CHAR(10)&ScriptText!$D$1)","v":""},{"$f":"IF(OrigTable!G1266=\"\",\"\",TEXT(OrigTable!G1266,\"00\"))","v":""},{"$f":"IF(OrigTable!G1266=\"\",\"\",ScriptText!$E$1&CHAR(10)&ScriptText!$C$1)","v":""},0]
["\n\n\n",{"$f":"IF(OrigTable!A1267=\"\",\"\",ScriptText!$B$1&CHAR(10)&ScriptText!$D$1)","v":""},{"$f":"IF(OrigTable!A1267=\"\",\"\",TEXT(OrigTable!A1267,\"00\"))","v":""},{"$f":"IF(OrigTable!A1267=\"\",\"\",ScriptText!$E$1&CHAR(10)&ScriptText!$C$1)","v":""},{"$f":"IF(OrigTable!B1267=\"\",\"\",ScriptText!$B$1&CHAR(10)&ScriptText!$D$1)","v":""},{"$f":"IF(OrigTable!B1267=\"\",\"\",TEXT(OrigTable!B1267,\"00\"))","v":""},{"$f":"IF(OrigTable!B1267=\"\",\"\",ScriptText!$E$1&CHAR(10)&ScriptText!C1262)","v":""},{"$f":"IF(OrigTable!C1267=\"\",\"\",ScriptText!$B$1&CHAR(10)&ScriptText!$D$1)","v":""},{"$f":"IF(OrigTable!C1267=\"\",\"\",IF(LEN(OrigTable!C1267)>255,LEFT(OrigTable!C1267,250)&\". . .\",OrigTable!C1267))","v":""},{"$f":"IF(OrigTable!C1267=\"\",\"\",ScriptText!$E$1&CHAR(10)&ScriptText!$C$1)","v":""},{"$f":"IF(OrigTable!D1267=\"\",\"\",ScriptText!$B$1&CHAR(10)&ScriptText!$D$1)","v":""},{"$f":"IF(OrigTable!D1267=\"\",\"\",TEXT(OrigTable!D1267,\"00\"))","v":""},{"$f":"IF(OrigTable!D1267=\"\",\"\",ScriptText!$E$1&CHAR(10)&ScriptText!$C$1)","v":""},{"$f":"IF(OrigTable!E1267=\"\",\"\",ScriptText!$B$1&CHAR(10)&ScriptText!$D$1)","v":""},{"$f":"IF(OrigTable!E1267=\"\",\"\",TEXT(OrigTable!E1267,\"00\"))","v":""},{"$f":"IF(OrigTable!E1267=\"\",\"\",ScriptText!$E$1&CHAR(10)&ScriptText!$C$1)","v":""},{"$f":"IF(OrigTable!F1267=\"\",\"\",ScriptText!$B$1&CHAR(10)&ScriptText!$D$1)","v":""},{"$f":"IF(OrigTable!F1267=\"\",\"\",TEXT(OrigTable!F1267,\"00\"))","v":""},{"$f":"IF(OrigTable!F1267=\"\",\"\",ScriptText!$E$1&CHAR(10)&ScriptText!$C$1)","v":""},{"$f":"IF(OrigTable!G1267=\"\",\"\",ScriptText!$B$1&CHAR(10)&ScriptText!$D$1)","v":""},{"$f":"IF(OrigTable!G1267=\"\",\"\",TEXT(OrigTable!G1267,\"00\"))","v":""},{"$f":"IF(OrigTable!G1267=\"\",\"\",ScriptText!$E$1&CHAR(10)&ScriptText!$C$1)","v":""},0]
["\n\n\n",{"$f":"IF(OrigTable!A1268=\"\",\"\",ScriptText!$B$1&CHAR(10)&ScriptText!$D$1)","v":""},{"$f":"IF(OrigTable!A1268=\"\",\"\",TEXT(OrigTable!A1268,\"00\"))","v":""},{"$f":"IF(OrigTable!A1268=\"\",\"\",ScriptText!$E$1&CHAR(10)&ScriptText!$C$1)","v":""},{"$f":"IF(OrigTable!B1268=\"\",\"\",ScriptText!$B$1&CHAR(10)&ScriptText!$D$1)","v":""},{"$f":"IF(OrigTable!B1268=\"\",\"\",TEXT(OrigTable!B1268,\"00\"))","v":""},{"$f":"IF(OrigTable!B1268=\"\",\"\",ScriptText!$E$1&CHAR(10)&ScriptText!C1263)","v":""},{"$f":"IF(OrigTable!C1268=\"\",\"\",ScriptText!$B$1&CHAR(10)&ScriptText!$D$1)","v":""},{"$f":"IF(OrigTable!C1268=\"\",\"\",IF(LEN(OrigTable!C1268)>255,LEFT(OrigTable!C1268,250)&\". . .\",OrigTable!C1268))","v":""},{"$f":"IF(OrigTable!C1268=\"\",\"\",ScriptText!$E$1&CHAR(10)&ScriptText!$C$1)","v":""},{"$f":"IF(OrigTable!D1268=\"\",\"\",ScriptText!$B$1&CHAR(10)&ScriptText!$D$1)","v":""},{"$f":"IF(OrigTable!D1268=\"\",\"\",TEXT(OrigTable!D1268,\"00\"))","v":""},{"$f":"IF(OrigTable!D1268=\"\",\"\",ScriptText!$E$1&CHAR(10)&ScriptText!$C$1)","v":""},{"$f":"IF(OrigTable!E1268=\"\",\"\",ScriptText!$B$1&CHAR(10)&ScriptText!$D$1)","v":""},{"$f":"IF(OrigTable!E1268=\"\",\"\",TEXT(OrigTable!E1268,\"00\"))","v":""},{"$f":"IF(OrigTable!E1268=\"\",\"\",ScriptText!$E$1&CHAR(10)&ScriptText!$C$1)","v":""},{"$f":"IF(OrigTable!F1268=\"\",\"\",ScriptText!$B$1&CHAR(10)&ScriptText!$D$1)","v":""},{"$f":"IF(OrigTable!F1268=\"\",\"\",TEXT(OrigTable!F1268,\"00\"))","v":""},{"$f":"IF(OrigTable!F1268=\"\",\"\",ScriptText!$E$1&CHAR(10)&ScriptText!$C$1)","v":""},{"$f":"IF(OrigTable!G1268=\"\",\"\",ScriptText!$B$1&CHAR(10)&ScriptText!$D$1)","v":""},{"$f":"IF(OrigTable!G1268=\"\",\"\",TEXT(OrigTable!G1268,\"00\"))","v":""},{"$f":"IF(OrigTable!G1268=\"\",\"\",ScriptText!$E$1&CHAR(10)&ScriptText!$C$1)","v":""},0]
["\n\n\n",{"$f":"IF(OrigTable!A1269=\"\",\"\",ScriptText!$B$1&CHAR(10)&ScriptText!$D$1)","v":""},{"$f":"IF(OrigTable!A1269=\"\",\"\",TEXT(OrigTable!A1269,\"00\"))","v":""},{"$f":"IF(OrigTable!A1269=\"\",\"\",ScriptText!$E$1&CHAR(10)&ScriptText!$C$1)","v":""},{"$f":"IF(OrigTable!B1269=\"\",\"\",ScriptText!$B$1&CHAR(10)&ScriptText!$D$1)","v":""},{"$f":"IF(OrigTable!B1269=\"\",\"\",TEXT(OrigTable!B1269,\"00\"))","v":""},{"$f":"IF(OrigTable!B1269=\"\",\"\",ScriptText!$E$1&CHAR(10)&ScriptText!C1264)","v":""},{"$f":"IF(OrigTable!C1269=\"\",\"\",ScriptText!$B$1&CHAR(10)&ScriptText!$D$1)","v":""},{"$f":"IF(OrigTable!C1269=\"\",\"\",IF(LEN(OrigTable!C1269)>255,LEFT(OrigTable!C1269,250)&\". . .\",OrigTable!C1269))","v":""},{"$f":"IF(OrigTable!C1269=\"\",\"\",ScriptText!$E$1&CHAR(10)&ScriptText!$C$1)","v":""},{"$f":"IF(OrigTable!D1269=\"\",\"\",ScriptText!$B$1&CHAR(10)&ScriptText!$D$1)","v":""},{"$f":"IF(OrigTable!D1269=\"\",\"\",TEXT(OrigTable!D1269,\"00\"))","v":""},{"$f":"IF(OrigTable!D1269=\"\",\"\",ScriptText!$E$1&CHAR(10)&ScriptText!$C$1)","v":""},{"$f":"IF(OrigTable!E1269=\"\",\"\",ScriptText!$B$1&CHAR(10)&ScriptText!$D$1)","v":""},{"$f":"IF(OrigTable!E1269=\"\",\"\",TEXT(OrigTable!E1269,\"00\"))","v":""},{"$f":"IF(OrigTable!E1269=\"\",\"\",ScriptText!$E$1&CHAR(10)&ScriptText!$C$1)","v":""},{"$f":"IF(OrigTable!F1269=\"\",\"\",ScriptText!$B$1&CHAR(10)&ScriptText!$D$1)","v":""},{"$f":"IF(OrigTable!F1269=\"\",\"\",TEXT(OrigTable!F1269,\"00\"))","v":""},{"$f":"IF(OrigTable!F1269=\"\",\"\",ScriptText!$E$1&CHAR(10)&ScriptText!$C$1)","v":""},{"$f":"IF(OrigTable!G1269=\"\",\"\",ScriptText!$B$1&CHAR(10)&ScriptText!$D$1)","v":""},{"$f":"IF(OrigTable!G1269=\"\",\"\",TEXT(OrigTable!G1269,\"00\"))","v":""},{"$f":"IF(OrigTable!G1269=\"\",\"\",ScriptText!$E$1&CHAR(10)&ScriptText!$C$1)","v":""},0]
["\n\n\n",{"$f":"IF(OrigTable!A1270=\"\",\"\",ScriptText!$B$1&CHAR(10)&ScriptText!$D$1)","v":""},{"$f":"IF(OrigTable!A1270=\"\",\"\",TEXT(OrigTable!A1270,\"00\"))","v":""},{"$f":"IF(OrigTable!A1270=\"\",\"\",ScriptText!$E$1&CHAR(10)&ScriptText!$C$1)","v":""},{"$f":"IF(OrigTable!B1270=\"\",\"\",ScriptText!$B$1&CHAR(10)&ScriptText!$D$1)","v":""},{"$f":"IF(OrigTable!B1270=\"\",\"\",TEXT(OrigTable!B1270,\"00\"))","v":""},{"$f":"IF(OrigTable!B1270=\"\",\"\",ScriptText!$E$1&CHAR(10)&ScriptText!C1265)","v":""},{"$f":"IF(OrigTable!C1270=\"\",\"\",ScriptText!$B$1&CHAR(10)&ScriptText!$D$1)","v":""},{"$f":"IF(OrigTable!C1270=\"\",\"\",IF(LEN(OrigTable!C1270)>255,LEFT(OrigTable!C1270,250)&\". . .\",OrigTable!C1270))","v":""},{"$f":"IF(OrigTable!C1270=\"\",\"\",ScriptText!$E$1&CHAR(10)&ScriptText!$C$1)","v":""},{"$f":"IF(OrigTable!D1270=\"\",\"\",ScriptText!$B$1&CHAR(10)&ScriptText!$D$1)","v":""},{"$f":"IF(OrigTable!D1270=\"\",\"\",TEXT(OrigTable!D1270,\"00\"))","v":""},{"$f":"IF(OrigTable!D1270=\"\",\"\",ScriptText!$E$1&CHAR(10)&ScriptText!$C$1)","v":""},{"$f":"IF(OrigTable!E1270=\"\",\"\",ScriptText!$B$1&CHAR(10)&ScriptText!$D$1)","v":""},{"$f":"IF(OrigTable!E1270=\"\",\"\",TEXT(OrigTable!E1270,\"00\"))","v":""},{"$f":"IF(OrigTable!E1270=\"\",\"\",ScriptText!$E$1&CHAR(10)&ScriptText!$C$1)","v":""},{"$f":"IF(OrigTable!F1270=\"\",\"\",ScriptText!$B$1&CHAR(10)&ScriptText!$D$1)","v":""},{"$f":"IF(OrigTable!F1270=\"\",\"\",TEXT(OrigTable!F1270,\"00\"))","v":""},{"$f":"IF(OrigTable!F1270=\"\",\"\",ScriptText!$E$1&CHAR(10)&ScriptText!$C$1)","v":""},{"$f":"IF(OrigTable!G1270=\"\",\"\",ScriptText!$B$1&CHAR(10)&ScriptText!$D$1)","v":""},{"$f":"IF(OrigTable!G1270=\"\",\"\",TEXT(OrigTable!G1270,\"00\"))","v":""},{"$f":"IF(OrigTable!G1270=\"\",\"\",ScriptText!$E$1&CHAR(10)&ScriptText!$C$1)","v":""},0]
["\n\n\n",{"$f":"IF(OrigTable!A1271=\"\",\"\",ScriptText!$B$1&CHAR(10)&ScriptText!$D$1)","v":""},{"$f":"IF(OrigTable!A1271=\"\",\"\",TEXT(OrigTable!A1271,\"00\"))","v":""},{"$f":"IF(OrigTable!A1271=\"\",\"\",ScriptText!$E$1&CHAR(10)&ScriptText!$C$1)","v":""},{"$f":"IF(OrigTable!B1271=\"\",\"\",ScriptText!$B$1&CHAR(10)&ScriptText!$D$1)","v":""},{"$f":"IF(OrigTable!B1271=\"\",\"\",TEXT(OrigTable!B1271,\"00\"))","v":""},{"$f":"IF(OrigTable!B1271=\"\",\"\",ScriptText!$E$1&CHAR(10)&ScriptText!C1266)","v":""},{"$f":"IF(OrigTable!C1271=\"\",\"\",ScriptText!$B$1&CHAR(10)&ScriptText!$D$1)","v":""},{"$f":"IF(OrigTable!C1271=\"\",\"\",IF(LEN(OrigTable!C1271)>255,LEFT(OrigTable!C1271,250)&\". . .\",OrigTable!C1271))","v":""},{"$f":"IF(OrigTable!C1271=\"\",\"\",ScriptText!$E$1&CHAR(10)&ScriptText!$C$1)","v":""},{"$f":"IF(OrigTable!D1271=\"\",\"\",ScriptText!$B$1&CHAR(10)&ScriptText!$D$1)","v":""},{"$f":"IF(OrigTable!D1271=\"\",\"\",TEXT(OrigTable!D1271,\"00\"))","v":""},{"$f":"IF(OrigTable!D1271=\"\",\"\",ScriptText!$E$1&CHAR(10)&ScriptText!$C$1)","v":""},{"$f":"IF(OrigTable!E1271=\"\",\"\",ScriptText!$B$1&CHAR(10)&ScriptText!$D$1)","v":""},{"$f":"IF(OrigTable!E1271=\"\",\"\",TEXT(OrigTable!E1271,\"00\"))","v":""},{"$f":"IF(OrigTable!E1271=\"\",\"\",ScriptText!$E$1&CHAR(10)&ScriptText!$C$1)","v":""},{"$f":"IF(OrigTable!F1271=\"\",\"\",ScriptText!$B$1&CHAR(10)&ScriptText!$D$1)","v":""},{"$f":"IF(OrigTable!F1271=\"\",\"\",TEXT(OrigTable!F1271,\"00\"))","v":""},{"$f":"IF(OrigTable!F1271=\"\",\"\",ScriptText!$E$1&CHAR(10)&ScriptText!$C$1)","v":""},{"$f":"IF(OrigTable!G1271=\"\",\"\",ScriptText!$B$1&CHAR(10)&ScriptText!$D$1)","v":""},{"$f":"IF(OrigTable!G1271=\"\",\"\",TEXT(OrigTable!G1271,\"00\"))","v":""},{"$f":"IF(OrigTable!G1271=\"\",\"\",ScriptText!$E$1&CHAR(10)&ScriptText!$C$1)","v":""},0]
["\n\n\n",{"$f":"IF(OrigTable!A1272=\"\",\"\",ScriptText!$B$1&CHAR(10)&ScriptText!$D$1)","v":""},{"$f":"IF(OrigTable!A1272=\"\",\"\",TEXT(OrigTable!A1272,\"00\"))","v":""},{"$f":"IF(OrigTable!A1272=\"\",\"\",ScriptText!$E$1&CHAR(10)&ScriptText!$C$1)","v":""},{"$f":"IF(OrigTable!B1272=\"\",\"\",ScriptText!$B$1&CHAR(10)&ScriptText!$D$1)","v":""},{"$f":"IF(OrigTable!B1272=\"\",\"\",TEXT(OrigTable!B1272,\"00\"))","v":""},{"$f":"IF(OrigTable!B1272=\"\",\"\",ScriptText!$E$1&CHAR(10)&ScriptText!C1267)","v":""},{"$f":"IF(OrigTable!C1272=\"\",\"\",ScriptText!$B$1&CHAR(10)&ScriptText!$D$1)","v":""},{"$f":"IF(OrigTable!C1272=\"\",\"\",IF(LEN(OrigTable!C1272)>255,LEFT(OrigTable!C1272,250)&\". . .\",OrigTable!C1272))","v":""},{"$f":"IF(OrigTable!C1272=\"\",\"\",ScriptText!$E$1&CHAR(10)&ScriptText!$C$1)","v":""},{"$f":"IF(OrigTable!D1272=\"\",\"\",ScriptText!$B$1&CHAR(10)&ScriptText!$D$1)","v":""},{"$f":"IF(OrigTable!D1272=\"\",\"\",TEXT(OrigTable!D1272,\"00\"))","v":""},{"$f":"IF(OrigTable!D1272=\"\",\"\",ScriptText!$E$1&CHAR(10)&ScriptText!$C$1)","v":""},{"$f":"IF(OrigTable!E1272=\"\",\"\",ScriptText!$B$1&CHAR(10)&ScriptText!$D$1)","v":""},{"$f":"IF(OrigTable!E1272=\"\",\"\",TEXT(OrigTable!E1272,\"00\"))","v":""},{"$f":"IF(OrigTable!E1272=\"\",\"\",ScriptText!$E$1&CHAR(10)&ScriptText!$C$1)","v":""},{"$f":"IF(OrigTable!F1272=\"\",\"\",ScriptText!$B$1&CHAR(10)&ScriptText!$D$1)","v":""},{"$f":"IF(OrigTable!F1272=\"\",\"\",TEXT(OrigTable!F1272,\"00\"))","v":""},{"$f":"IF(OrigTable!F1272=\"\",\"\",ScriptText!$E$1&CHAR(10)&ScriptText!$C$1)","v":""},{"$f":"IF(OrigTable!G1272=\"\",\"\",ScriptText!$B$1&CHAR(10)&ScriptText!$D$1)","v":""},{"$f":"IF(OrigTable!G1272=\"\",\"\",TEXT(OrigTable!G1272,\"00\"))","v":""},{"$f":"IF(OrigTable!G1272=\"\",\"\",ScriptText!$E$1&CHAR(10)&ScriptText!$C$1)","v":""},0]
["\n\n\n",{"$f":"IF(OrigTable!A1273=\"\",\"\",ScriptText!$B$1&CHAR(10)&ScriptText!$D$1)","v":""},{"$f":"IF(OrigTable!A1273=\"\",\"\",TEXT(OrigTable!A1273,\"00\"))","v":""},{"$f":"IF(OrigTable!A1273=\"\",\"\",ScriptText!$E$1&CHAR(10)&ScriptText!$C$1)","v":""},{"$f":"IF(OrigTable!B1273=\"\",\"\",ScriptText!$B$1&CHAR(10)&ScriptText!$D$1)","v":""},{"$f":"IF(OrigTable!B1273=\"\",\"\",TEXT(OrigTable!B1273,\"00\"))","v":""},{"$f":"IF(OrigTable!B1273=\"\",\"\",ScriptText!$E$1&CHAR(10)&ScriptText!C1268)","v":""},{"$f":"IF(OrigTable!C1273=\"\",\"\",ScriptText!$B$1&CHAR(10)&ScriptText!$D$1)","v":""},{"$f":"IF(OrigTable!C1273=\"\",\"\",IF(LEN(OrigTable!C1273)>255,LEFT(OrigTable!C1273,250)&\". . .\",OrigTable!C1273))","v":""},{"$f":"IF(OrigTable!C1273=\"\",\"\",ScriptText!$E$1&CHAR(10)&ScriptText!$C$1)","v":""},{"$f":"IF(OrigTable!D1273=\"\",\"\",ScriptText!$B$1&CHAR(10)&ScriptText!$D$1)","v":""},{"$f":"IF(OrigTable!D1273=\"\",\"\",TEXT(OrigTable!D1273,\"00\"))","v":""},{"$f":"IF(OrigTable!D1273=\"\",\"\",ScriptText!$E$1&CHAR(10)&ScriptText!$C$1)","v":""},{"$f":"IF(OrigTable!E1273=\"\",\"\",ScriptText!$B$1&CHAR(10)&ScriptText!$D$1)","v":""},{"$f":"IF(OrigTable!E1273=\"\",\"\",TEXT(OrigTable!E1273,\"00\"))","v":""},{"$f":"IF(OrigTable!E1273=\"\",\"\",ScriptText!$E$1&CHAR(10)&ScriptText!$C$1)","v":""},{"$f":"IF(OrigTable!F1273=\"\",\"\",ScriptText!$B$1&CHAR(10)&ScriptText!$D$1)","v":""},{"$f":"IF(OrigTable!F1273=\"\",\"\",TEXT(OrigTable!F1273,\"00\"))","v":""},{"$f":"IF(OrigTable!F1273=\"\",\"\",ScriptText!$E$1&CHAR(10)&ScriptText!$C$1)","v":""},{"$f":"IF(OrigTable!G1273=\"\",\"\",ScriptText!$B$1&CHAR(10)&ScriptText!$D$1)","v":""},{"$f":"IF(OrigTable!G1273=\"\",\"\",TEXT(OrigTable!G1273,\"00\"))","v":""},{"$f":"IF(OrigTable!G1273=\"\",\"\",ScriptText!$E$1&CHAR(10)&ScriptText!$C$1)","v":""},0]
["\n\n\n",{"$f":"IF(OrigTable!A1274=\"\",\"\",ScriptText!$B$1&CHAR(10)&ScriptText!$D$1)","v":""},{"$f":"IF(OrigTable!A1274=\"\",\"\",TEXT(OrigTable!A1274,\"00\"))","v":""},{"$f":"IF(OrigTable!A1274=\"\",\"\",ScriptText!$E$1&CHAR(10)&ScriptText!$C$1)","v":""},{"$f":"IF(OrigTable!B1274=\"\",\"\",ScriptText!$B$1&CHAR(10)&ScriptText!$D$1)","v":""},{"$f":"IF(OrigTable!B1274=\"\",\"\",TEXT(OrigTable!B1274,\"00\"))","v":""},{"$f":"IF(OrigTable!B1274=\"\",\"\",ScriptText!$E$1&CHAR(10)&ScriptText!C1269)","v":""},{"$f":"IF(OrigTable!C1274=\"\",\"\",ScriptText!$B$1&CHAR(10)&ScriptText!$D$1)","v":""},{"$f":"IF(OrigTable!C1274=\"\",\"\",IF(LEN(OrigTable!C1274)>255,LEFT(OrigTable!C1274,250)&\". . .\",OrigTable!C1274))","v":""},{"$f":"IF(OrigTable!C1274=\"\",\"\",ScriptText!$E$1&CHAR(10)&ScriptText!$C$1)","v":""},{"$f":"IF(OrigTable!D1274=\"\",\"\",ScriptText!$B$1&CHAR(10)&ScriptText!$D$1)","v":""},{"$f":"IF(OrigTable!D1274=\"\",\"\",TEXT(OrigTable!D1274,\"00\"))","v":""},{"$f":"IF(OrigTable!D1274=\"\",\"\",ScriptText!$E$1&CHAR(10)&ScriptText!$C$1)","v":""},{"$f":"IF(OrigTable!E1274=\"\",\"\",ScriptText!$B$1&CHAR(10)&ScriptText!$D$1)","v":""},{"$f":"IF(OrigTable!E1274=\"\",\"\",TEXT(OrigTable!E1274,\"00\"))","v":""},{"$f":"IF(OrigTable!E1274=\"\",\"\",ScriptText!$E$1&CHAR(10)&ScriptText!$C$1)","v":""},{"$f":"IF(OrigTable!F1274=\"\",\"\",ScriptText!$B$1&CHAR(10)&ScriptText!$D$1)","v":""},{"$f":"IF(OrigTable!F1274=\"\",\"\",TEXT(OrigTable!F1274,\"00\"))","v":""},{"$f":"IF(OrigTable!F1274=\"\",\"\",ScriptText!$E$1&CHAR(10)&ScriptText!$C$1)","v":""},{"$f":"IF(OrigTable!G1274=\"\",\"\",ScriptText!$B$1&CHAR(10)&ScriptText!$D$1)","v":""},{"$f":"IF(OrigTable!G1274=\"\",\"\",TEXT(OrigTable!G1274,\"00\"))","v":""},{"$f":"IF(OrigTable!G1274=\"\",\"\",ScriptText!$E$1&CHAR(10)&ScriptText!$C$1)","v":""},0]
["\n\n\n",{"$f":"IF(OrigTable!A1275=\"\",\"\",ScriptText!$B$1&CHAR(10)&ScriptText!$D$1)","v":""},{"$f":"IF(OrigTable!A1275=\"\",\"\",TEXT(OrigTable!A1275,\"00\"))","v":""},{"$f":"IF(OrigTable!A1275=\"\",\"\",ScriptText!$E$1&CHAR(10)&ScriptText!$C$1)","v":""},{"$f":"IF(OrigTable!B1275=\"\",\"\",ScriptText!$B$1&CHAR(10)&ScriptText!$D$1)","v":""},{"$f":"IF(OrigTable!B1275=\"\",\"\",TEXT(OrigTable!B1275,\"00\"))","v":""},{"$f":"IF(OrigTable!B1275=\"\",\"\",ScriptText!$E$1&CHAR(10)&ScriptText!C1270)","v":""},{"$f":"IF(OrigTable!C1275=\"\",\"\",ScriptText!$B$1&CHAR(10)&ScriptText!$D$1)","v":""},{"$f":"IF(OrigTable!C1275=\"\",\"\",IF(LEN(OrigTable!C1275)>255,LEFT(OrigTable!C1275,250)&\". . .\",OrigTable!C1275))","v":""},{"$f":"IF(OrigTable!C1275=\"\",\"\",ScriptText!$E$1&CHAR(10)&ScriptText!$C$1)","v":""},{"$f":"IF(OrigTable!D1275=\"\",\"\",ScriptText!$B$1&CHAR(10)&ScriptText!$D$1)","v":""},{"$f":"IF(OrigTable!D1275=\"\",\"\",TEXT(OrigTable!D1275,\"00\"))","v":""},{"$f":"IF(OrigTable!D1275=\"\",\"\",ScriptText!$E$1&CHAR(10)&ScriptText!$C$1)","v":""},{"$f":"IF(OrigTable!E1275=\"\",\"\",ScriptText!$B$1&CHAR(10)&ScriptText!$D$1)","v":""},{"$f":"IF(OrigTable!E1275=\"\",\"\",TEXT(OrigTable!E1275,\"00\"))","v":""},{"$f":"IF(OrigTable!E1275=\"\",\"\",ScriptText!$E$1&CHAR(10)&ScriptText!$C$1)","v":""},{"$f":"IF(OrigTable!F1275=\"\",\"\",ScriptText!$B$1&CHAR(10)&ScriptText!$D$1)","v":""},{"$f":"IF(OrigTable!F1275=\"\",\"\",TEXT(OrigTable!F1275,\"00\"))","v":""},{"$f":"IF(OrigTable!F1275=\"\",\"\",ScriptText!$E$1&CHAR(10)&ScriptText!$C$1)","v":""},{"$f":"IF(OrigTable!G1275=\"\",\"\",ScriptText!$B$1&CHAR(10)&ScriptText!$D$1)","v":""},{"$f":"IF(OrigTable!G1275=\"\",\"\",TEXT(OrigTable!G1275,\"00\"))","v":""},{"$f":"IF(OrigTable!G1275=\"\",\"\",ScriptText!$E$1&CHAR(10)&ScriptText!$C$1)","v":""},0]
["\n\n\n",{"$f":"IF(OrigTable!A1276=\"\",\"\",ScriptText!$B$1&CHAR(10)&ScriptText!$D$1)","v":""},{"$f":"IF(OrigTable!A1276=\"\",\"\",TEXT(OrigTable!A1276,\"00\"))","v":""},{"$f":"IF(OrigTable!A1276=\"\",\"\",ScriptText!$E$1&CHAR(10)&ScriptText!$C$1)","v":""},{"$f":"IF(OrigTable!B1276=\"\",\"\",ScriptText!$B$1&CHAR(10)&ScriptText!$D$1)","v":""},{"$f":"IF(OrigTable!B1276=\"\",\"\",TEXT(OrigTable!B1276,\"00\"))","v":""},{"$f":"IF(OrigTable!B1276=\"\",\"\",ScriptText!$E$1&CHAR(10)&ScriptText!C1271)","v":""},{"$f":"IF(OrigTable!C1276=\"\",\"\",ScriptText!$B$1&CHAR(10)&ScriptText!$D$1)","v":""},{"$f":"IF(OrigTable!C1276=\"\",\"\",IF(LEN(OrigTable!C1276)>255,LEFT(OrigTable!C1276,250)&\". . .\",OrigTable!C1276))","v":""},{"$f":"IF(OrigTable!C1276=\"\",\"\",ScriptText!$E$1&CHAR(10)&ScriptText!$C$1)","v":""},{"$f":"IF(OrigTable!D1276=\"\",\"\",ScriptText!$B$1&CHAR(10)&ScriptText!$D$1)","v":""},{"$f":"IF(OrigTable!D1276=\"\",\"\",TEXT(OrigTable!D1276,\"00\"))","v":""},{"$f":"IF(OrigTable!D1276=\"\",\"\",ScriptText!$E$1&CHAR(10)&ScriptText!$C$1)","v":""},{"$f":"IF(OrigTable!E1276=\"\",\"\",ScriptText!$B$1&CHAR(10)&ScriptText!$D$1)","v":""},{"$f":"IF(OrigTable!E1276=\"\",\"\",TEXT(OrigTable!E1276,\"00\"))","v":""},{"$f":"IF(OrigTable!E1276=\"\",\"\",ScriptText!$E$1&CHAR(10)&ScriptText!$C$1)","v":""},{"$f":"IF(OrigTable!F1276=\"\",\"\",ScriptText!$B$1&CHAR(10)&ScriptText!$D$1)","v":""},{"$f":"IF(OrigTable!F1276=\"\",\"\",TEXT(OrigTable!F1276,\"00\"))","v":""},{"$f":"IF(OrigTable!F1276=\"\",\"\",ScriptText!$E$1&CHAR(10)&ScriptText!$C$1)","v":""},{"$f":"IF(OrigTable!G1276=\"\",\"\",ScriptText!$B$1&CHAR(10)&ScriptText!$D$1)","v":""},{"$f":"IF(OrigTable!G1276=\"\",\"\",TEXT(OrigTable!G1276,\"00\"))","v":""},{"$f":"IF(OrigTable!G1276=\"\",\"\",ScriptText!$E$1&CHAR(10)&ScriptText!$C$1)","v":""},0]
["\n\n\n",{"$f":"IF(OrigTable!A1277=\"\",\"\",ScriptText!$B$1&CHAR(10)&ScriptText!$D$1)","v":""},{"$f":"IF(OrigTable!A1277=\"\",\"\",TEXT(OrigTable!A1277,\"00\"))","v":""},{"$f":"IF(OrigTable!A1277=\"\",\"\",ScriptText!$E$1&CHAR(10)&ScriptText!$C$1)","v":""},{"$f":"IF(OrigTable!B1277=\"\",\"\",ScriptText!$B$1&CHAR(10)&ScriptText!$D$1)","v":""},{"$f":"IF(OrigTable!B1277=\"\",\"\",TEXT(OrigTable!B1277,\"00\"))","v":""},{"$f":"IF(OrigTable!B1277=\"\",\"\",ScriptText!$E$1&CHAR(10)&ScriptText!C1272)","v":""},{"$f":"IF(OrigTable!C1277=\"\",\"\",ScriptText!$B$1&CHAR(10)&ScriptText!$D$1)","v":""},{"$f":"IF(OrigTable!C1277=\"\",\"\",IF(LEN(OrigTable!C1277)>255,LEFT(OrigTable!C1277,250)&\". . .\",OrigTable!C1277))","v":""},{"$f":"IF(OrigTable!C1277=\"\",\"\",ScriptText!$E$1&CHAR(10)&ScriptText!$C$1)","v":""},{"$f":"IF(OrigTable!D1277=\"\",\"\",ScriptText!$B$1&CHAR(10)&ScriptText!$D$1)","v":""},{"$f":"IF(OrigTable!D1277=\"\",\"\",TEXT(OrigTable!D1277,\"00\"))","v":""},{"$f":"IF(OrigTable!D1277=\"\",\"\",ScriptText!$E$1&CHAR(10)&ScriptText!$C$1)","v":""},{"$f":"IF(OrigTable!E1277=\"\",\"\",ScriptText!$B$1&CHAR(10)&ScriptText!$D$1)","v":""},{"$f":"IF(OrigTable!E1277=\"\",\"\",TEXT(OrigTable!E1277,\"00\"))","v":""},{"$f":"IF(OrigTable!E1277=\"\",\"\",ScriptText!$E$1&CHAR(10)&ScriptText!$C$1)","v":""},{"$f":"IF(OrigTable!F1277=\"\",\"\",ScriptText!$B$1&CHAR(10)&ScriptText!$D$1)","v":""},{"$f":"IF(OrigTable!F1277=\"\",\"\",TEXT(OrigTable!F1277,\"00\"))","v":""},{"$f":"IF(OrigTable!F1277=\"\",\"\",ScriptText!$E$1&CHAR(10)&ScriptText!$C$1)","v":""},{"$f":"IF(OrigTable!G1277=\"\",\"\",ScriptText!$B$1&CHAR(10)&ScriptText!$D$1)","v":""},{"$f":"IF(OrigTable!G1277=\"\",\"\",TEXT(OrigTable!G1277,\"00\"))","v":""},{"$f":"IF(OrigTable!G1277=\"\",\"\",ScriptText!$E$1&CHAR(10)&ScriptText!$C$1)","v":""},0]
["\n\n\n",{"$f":"IF(OrigTable!A1278=\"\",\"\",ScriptText!$B$1&CHAR(10)&ScriptText!$D$1)","v":""},{"$f":"IF(OrigTable!A1278=\"\",\"\",TEXT(OrigTable!A1278,\"00\"))","v":""},{"$f":"IF(OrigTable!A1278=\"\",\"\",ScriptText!$E$1&CHAR(10)&ScriptText!$C$1)","v":""},{"$f":"IF(OrigTable!B1278=\"\",\"\",ScriptText!$B$1&CHAR(10)&ScriptText!$D$1)","v":""},{"$f":"IF(OrigTable!B1278=\"\",\"\",TEXT(OrigTable!B1278,\"00\"))","v":""},{"$f":"IF(OrigTable!B1278=\"\",\"\",ScriptText!$E$1&CHAR(10)&ScriptText!C1273)","v":""},{"$f":"IF(OrigTable!C1278=\"\",\"\",ScriptText!$B$1&CHAR(10)&ScriptText!$D$1)","v":""},{"$f":"IF(OrigTable!C1278=\"\",\"\",IF(LEN(OrigTable!C1278)>255,LEFT(OrigTable!C1278,250)&\". . .\",OrigTable!C1278))","v":""},{"$f":"IF(OrigTable!C1278=\"\",\"\",ScriptText!$E$1&CHAR(10)&ScriptText!$C$1)","v":""},{"$f":"IF(OrigTable!D1278=\"\",\"\",ScriptText!$B$1&CHAR(10)&ScriptText!$D$1)","v":""},{"$f":"IF(OrigTable!D1278=\"\",\"\",TEXT(OrigTable!D1278,\"00\"))","v":""},{"$f":"IF(OrigTable!D1278=\"\",\"\",ScriptText!$E$1&CHAR(10)&ScriptText!$C$1)","v":""},{"$f":"IF(OrigTable!E1278=\"\",\"\",ScriptText!$B$1&CHAR(10)&ScriptText!$D$1)","v":""},{"$f":"IF(OrigTable!E1278=\"\",\"\",TEXT(OrigTable!E1278,\"00\"))","v":""},{"$f":"IF(OrigTable!E1278=\"\",\"\",ScriptText!$E$1&CHAR(10)&ScriptText!$C$1)","v":""},{"$f":"IF(OrigTable!F1278=\"\",\"\",ScriptText!$B$1&CHAR(10)&ScriptText!$D$1)","v":""},{"$f":"IF(OrigTable!F1278=\"\",\"\",TEXT(OrigTable!F1278,\"00\"))","v":""},{"$f":"IF(OrigTable!F1278=\"\",\"\",ScriptText!$E$1&CHAR(10)&ScriptText!$C$1)","v":""},{"$f":"IF(OrigTable!G1278=\"\",\"\",ScriptText!$B$1&CHAR(10)&ScriptText!$D$1)","v":""},{"$f":"IF(OrigTable!G1278=\"\",\"\",TEXT(OrigTable!G1278,\"00\"))","v":""},{"$f":"IF(OrigTable!G1278=\"\",\"\",ScriptText!$E$1&CHAR(10)&ScriptText!$C$1)","v":""},0]
["\n\n\n",{"$f":"IF(OrigTable!A1279=\"\",\"\",ScriptText!$B$1&CHAR(10)&ScriptText!$D$1)","v":""},{"$f":"IF(OrigTable!A1279=\"\",\"\",TEXT(OrigTable!A1279,\"00\"))","v":""},{"$f":"IF(OrigTable!A1279=\"\",\"\",ScriptText!$E$1&CHAR(10)&ScriptText!$C$1)","v":""},{"$f":"IF(OrigTable!B1279=\"\",\"\",ScriptText!$B$1&CHAR(10)&ScriptText!$D$1)","v":""},{"$f":"IF(OrigTable!B1279=\"\",\"\",TEXT(OrigTable!B1279,\"00\"))","v":""},{"$f":"IF(OrigTable!B1279=\"\",\"\",ScriptText!$E$1&CHAR(10)&ScriptText!C1274)","v":""},{"$f":"IF(OrigTable!C1279=\"\",\"\",ScriptText!$B$1&CHAR(10)&ScriptText!$D$1)","v":""},{"$f":"IF(OrigTable!C1279=\"\",\"\",IF(LEN(OrigTable!C1279)>255,LEFT(OrigTable!C1279,250)&\". . .\",OrigTable!C1279))","v":""},{"$f":"IF(OrigTable!C1279=\"\",\"\",ScriptText!$E$1&CHAR(10)&ScriptText!$C$1)","v":""},{"$f":"IF(OrigTable!D1279=\"\",\"\",ScriptText!$B$1&CHAR(10)&ScriptText!$D$1)","v":""},{"$f":"IF(OrigTable!D1279=\"\",\"\",TEXT(OrigTable!D1279,\"00\"))","v":""},{"$f":"IF(OrigTable!D1279=\"\",\"\",ScriptText!$E$1&CHAR(10)&ScriptText!$C$1)","v":""},{"$f":"IF(OrigTable!E1279=\"\",\"\",ScriptText!$B$1&CHAR(10)&ScriptText!$D$1)","v":""},{"$f":"IF(OrigTable!E1279=\"\",\"\",TEXT(OrigTable!E1279,\"00\"))","v":""},{"$f":"IF(OrigTable!E1279=\"\",\"\",ScriptText!$E$1&CHAR(10)&ScriptText!$C$1)","v":""},{"$f":"IF(OrigTable!F1279=\"\",\"\",ScriptText!$B$1&CHAR(10)&ScriptText!$D$1)","v":""},{"$f":"IF(OrigTable!F1279=\"\",\"\",TEXT(OrigTable!F1279,\"00\"))","v":""},{"$f":"IF(OrigTable!F1279=\"\",\"\",ScriptText!$E$1&CHAR(10)&ScriptText!$C$1)","v":""},{"$f":"IF(OrigTable!G1279=\"\",\"\",ScriptText!$B$1&CHAR(10)&ScriptText!$D$1)","v":""},{"$f":"IF(OrigTable!G1279=\"\",\"\",TEXT(OrigTable!G1279,\"00\"))","v":""},{"$f":"IF(OrigTable!G1279=\"\",\"\",ScriptText!$E$1&CHAR(10)&ScriptText!$C$1)","v":""},0]
["\n\n\n",{"$f":"IF(OrigTable!A1280=\"\",\"\",ScriptText!$B$1&CHAR(10)&ScriptText!$D$1)","v":""},{"$f":"IF(OrigTable!A1280=\"\",\"\",TEXT(OrigTable!A1280,\"00\"))","v":""},{"$f":"IF(OrigTable!A1280=\"\",\"\",ScriptText!$E$1&CHAR(10)&ScriptText!$C$1)","v":""},{"$f":"IF(OrigTable!B1280=\"\",\"\",ScriptText!$B$1&CHAR(10)&ScriptText!$D$1)","v":""},{"$f":"IF(OrigTable!B1280=\"\",\"\",TEXT(OrigTable!B1280,\"00\"))","v":""},{"$f":"IF(OrigTable!B1280=\"\",\"\",ScriptText!$E$1&CHAR(10)&ScriptText!C1275)","v":""},{"$f":"IF(OrigTable!C1280=\"\",\"\",ScriptText!$B$1&CHAR(10)&ScriptText!$D$1)","v":""},{"$f":"IF(OrigTable!C1280=\"\",\"\",IF(LEN(OrigTable!C1280)>255,LEFT(OrigTable!C1280,250)&\". . .\",OrigTable!C1280))","v":""},{"$f":"IF(OrigTable!C1280=\"\",\"\",ScriptText!$E$1&CHAR(10)&ScriptText!$C$1)","v":""},{"$f":"IF(OrigTable!D1280=\"\",\"\",ScriptText!$B$1&CHAR(10)&ScriptText!$D$1)","v":""},{"$f":"IF(OrigTable!D1280=\"\",\"\",TEXT(OrigTable!D1280,\"00\"))","v":""},{"$f":"IF(OrigTable!D1280=\"\",\"\",ScriptText!$E$1&CHAR(10)&ScriptText!$C$1)","v":""},{"$f":"IF(OrigTable!E1280=\"\",\"\",ScriptText!$B$1&CHAR(10)&ScriptText!$D$1)","v":""},{"$f":"IF(OrigTable!E1280=\"\",\"\",TEXT(OrigTable!E1280,\"00\"))","v":""},{"$f":"IF(OrigTable!E1280=\"\",\"\",ScriptText!$E$1&CHAR(10)&ScriptText!$C$1)","v":""},{"$f":"IF(OrigTable!F1280=\"\",\"\",ScriptText!$B$1&CHAR(10)&ScriptText!$D$1)","v":""},{"$f":"IF(OrigTable!F1280=\"\",\"\",TEXT(OrigTable!F1280,\"00\"))","v":""},{"$f":"IF(OrigTable!F1280=\"\",\"\",ScriptText!$E$1&CHAR(10)&ScriptText!$C$1)","v":""},{"$f":"IF(OrigTable!G1280=\"\",\"\",ScriptText!$B$1&CHAR(10)&ScriptText!$D$1)","v":""},{"$f":"IF(OrigTable!G1280=\"\",\"\",TEXT(OrigTable!G1280,\"00\"))","v":""},{"$f":"IF(OrigTable!G1280=\"\",\"\",ScriptText!$E$1&CHAR(10)&ScriptText!$C$1)","v":""},0]
["\n\n\n",{"$f":"IF(OrigTable!A1281=\"\",\"\",ScriptText!$B$1&CHAR(10)&ScriptText!$D$1)","v":""},{"$f":"IF(OrigTable!A1281=\"\",\"\",TEXT(OrigTable!A1281,\"00\"))","v":""},{"$f":"IF(OrigTable!A1281=\"\",\"\",ScriptText!$E$1&CHAR(10)&ScriptText!$C$1)","v":""},{"$f":"IF(OrigTable!B1281=\"\",\"\",ScriptText!$B$1&CHAR(10)&ScriptText!$D$1)","v":""},{"$f":"IF(OrigTable!B1281=\"\",\"\",TEXT(OrigTable!B1281,\"00\"))","v":""},{"$f":"IF(OrigTable!B1281=\"\",\"\",ScriptText!$E$1&CHAR(10)&ScriptText!C1276)","v":""},{"$f":"IF(OrigTable!C1281=\"\",\"\",ScriptText!$B$1&CHAR(10)&ScriptText!$D$1)","v":""},{"$f":"IF(OrigTable!C1281=\"\",\"\",IF(LEN(OrigTable!C1281)>255,LEFT(OrigTable!C1281,250)&\". . .\",OrigTable!C1281))","v":""},{"$f":"IF(OrigTable!C1281=\"\",\"\",ScriptText!$E$1&CHAR(10)&ScriptText!$C$1)","v":""},{"$f":"IF(OrigTable!D1281=\"\",\"\",ScriptText!$B$1&CHAR(10)&ScriptText!$D$1)","v":""},{"$f":"IF(OrigTable!D1281=\"\",\"\",TEXT(OrigTable!D1281,\"00\"))","v":""},{"$f":"IF(OrigTable!D1281=\"\",\"\",ScriptText!$E$1&CHAR(10)&ScriptText!$C$1)","v":""},{"$f":"IF(OrigTable!E1281=\"\",\"\",ScriptText!$B$1&CHAR(10)&ScriptText!$D$1)","v":""},{"$f":"IF(OrigTable!E1281=\"\",\"\",TEXT(OrigTable!E1281,\"00\"))","v":""},{"$f":"IF(OrigTable!E1281=\"\",\"\",ScriptText!$E$1&CHAR(10)&ScriptText!$C$1)","v":""},{"$f":"IF(OrigTable!F1281=\"\",\"\",ScriptText!$B$1&CHAR(10)&ScriptText!$D$1)","v":""},{"$f":"IF(OrigTable!F1281=\"\",\"\",TEXT(OrigTable!F1281,\"00\"))","v":""},{"$f":"IF(OrigTable!F1281=\"\",\"\",ScriptText!$E$1&CHAR(10)&ScriptText!$C$1)","v":""},{"$f":"IF(OrigTable!G1281=\"\",\"\",ScriptText!$B$1&CHAR(10)&ScriptText!$D$1)","v":""},{"$f":"IF(OrigTable!G1281=\"\",\"\",TEXT(OrigTable!G1281,\"00\"))","v":""},{"$f":"IF(OrigTable!G1281=\"\",\"\",ScriptText!$E$1&CHAR(10)&ScriptText!$C$1)","v":""},0]
["\n\n\n",{"$f":"IF(OrigTable!A1282=\"\",\"\",ScriptText!$B$1&CHAR(10)&ScriptText!$D$1)","v":""},{"$f":"IF(OrigTable!A1282=\"\",\"\",TEXT(OrigTable!A1282,\"00\"))","v":""},{"$f":"IF(OrigTable!A1282=\"\",\"\",ScriptText!$E$1&CHAR(10)&ScriptText!$C$1)","v":""},{"$f":"IF(OrigTable!B1282=\"\",\"\",ScriptText!$B$1&CHAR(10)&ScriptText!$D$1)","v":""},{"$f":"IF(OrigTable!B1282=\"\",\"\",TEXT(OrigTable!B1282,\"00\"))","v":""},{"$f":"IF(OrigTable!B1282=\"\",\"\",ScriptText!$E$1&CHAR(10)&ScriptText!C1277)","v":""},{"$f":"IF(OrigTable!C1282=\"\",\"\",ScriptText!$B$1&CHAR(10)&ScriptText!$D$1)","v":""},{"$f":"IF(OrigTable!C1282=\"\",\"\",IF(LEN(OrigTable!C1282)>255,LEFT(OrigTable!C1282,250)&\". . .\",OrigTable!C1282))","v":""},{"$f":"IF(OrigTable!C1282=\"\",\"\",ScriptText!$E$1&CHAR(10)&ScriptText!$C$1)","v":""},{"$f":"IF(OrigTable!D1282=\"\",\"\",ScriptText!$B$1&CHAR(10)&ScriptText!$D$1)","v":""},{"$f":"IF(OrigTable!D1282=\"\",\"\",TEXT(OrigTable!D1282,\"00\"))","v":""},{"$f":"IF(OrigTable!D1282=\"\",\"\",ScriptText!$E$1&CHAR(10)&ScriptText!$C$1)","v":""},{"$f":"IF(OrigTable!E1282=\"\",\"\",ScriptText!$B$1&CHAR(10)&ScriptText!$D$1)","v":""},{"$f":"IF(OrigTable!E1282=\"\",\"\",TEXT(OrigTable!E1282,\"00\"))","v":""},{"$f":"IF(OrigTable!E1282=\"\",\"\",ScriptText!$E$1&CHAR(10)&ScriptText!$C$1)","v":""},{"$f":"IF(OrigTable!F1282=\"\",\"\",ScriptText!$B$1&CHAR(10)&ScriptText!$D$1)","v":""},{"$f":"IF(OrigTable!F1282=\"\",\"\",TEXT(OrigTable!F1282,\"00\"))","v":""},{"$f":"IF(OrigTable!F1282=\"\",\"\",ScriptText!$E$1&CHAR(10)&ScriptText!$C$1)","v":""},{"$f":"IF(OrigTable!G1282=\"\",\"\",ScriptText!$B$1&CHAR(10)&ScriptText!$D$1)","v":""},{"$f":"IF(OrigTable!G1282=\"\",\"\",TEXT(OrigTable!G1282,\"00\"))","v":""},{"$f":"IF(OrigTable!G1282=\"\",\"\",ScriptText!$E$1&CHAR(10)&ScriptText!$C$1)","v":""},0]
["\n\n\n",{"$f":"IF(OrigTable!A1283=\"\",\"\",ScriptText!$B$1&CHAR(10)&ScriptText!$D$1)","v":""},{"$f":"IF(OrigTable!A1283=\"\",\"\",TEXT(OrigTable!A1283,\"00\"))","v":""},{"$f":"IF(OrigTable!A1283=\"\",\"\",ScriptText!$E$1&CHAR(10)&ScriptText!$C$1)","v":""},{"$f":"IF(OrigTable!B1283=\"\",\"\",ScriptText!$B$1&CHAR(10)&ScriptText!$D$1)","v":""},{"$f":"IF(OrigTable!B1283=\"\",\"\",TEXT(OrigTable!B1283,\"00\"))","v":""},{"$f":"IF(OrigTable!B1283=\"\",\"\",ScriptText!$E$1&CHAR(10)&ScriptText!C1278)","v":""},{"$f":"IF(OrigTable!C1283=\"\",\"\",ScriptText!$B$1&CHAR(10)&ScriptText!$D$1)","v":""},{"$f":"IF(OrigTable!C1283=\"\",\"\",IF(LEN(OrigTable!C1283)>255,LEFT(OrigTable!C1283,250)&\". . .\",OrigTable!C1283))","v":""},{"$f":"IF(OrigTable!C1283=\"\",\"\",ScriptText!$E$1&CHAR(10)&ScriptText!$C$1)","v":""},{"$f":"IF(OrigTable!D1283=\"\",\"\",ScriptText!$B$1&CHAR(10)&ScriptText!$D$1)","v":""},{"$f":"IF(OrigTable!D1283=\"\",\"\",TEXT(OrigTable!D1283,\"00\"))","v":""},{"$f":"IF(OrigTable!D1283=\"\",\"\",ScriptText!$E$1&CHAR(10)&ScriptText!$C$1)","v":""},{"$f":"IF(OrigTable!E1283=\"\",\"\",ScriptText!$B$1&CHAR(10)&ScriptText!$D$1)","v":""},{"$f":"IF(OrigTable!E1283=\"\",\"\",TEXT(OrigTable!E1283,\"00\"))","v":""},{"$f":"IF(OrigTable!E1283=\"\",\"\",ScriptText!$E$1&CHAR(10)&ScriptText!$C$1)","v":""},{"$f":"IF(OrigTable!F1283=\"\",\"\",ScriptText!$B$1&CHAR(10)&ScriptText!$D$1)","v":""},{"$f":"IF(OrigTable!F1283=\"\",\"\",TEXT(OrigTable!F1283,\"00\"))","v":""},{"$f":"IF(OrigTable!F1283=\"\",\"\",ScriptText!$E$1&CHAR(10)&ScriptText!$C$1)","v":""},{"$f":"IF(OrigTable!G1283=\"\",\"\",ScriptText!$B$1&CHAR(10)&ScriptText!$D$1)","v":""},{"$f":"IF(OrigTable!G1283=\"\",\"\",TEXT(OrigTable!G1283,\"00\"))","v":""},{"$f":"IF(OrigTable!G1283=\"\",\"\",ScriptText!$E$1&CHAR(10)&ScriptText!$C$1)","v":""},0]
["\n\n\n",{"$f":"IF(OrigTable!A1284=\"\",\"\",ScriptText!$B$1&CHAR(10)&ScriptText!$D$1)","v":""},{"$f":"IF(OrigTable!A1284=\"\",\"\",TEXT(OrigTable!A1284,\"00\"))","v":""},{"$f":"IF(OrigTable!A1284=\"\",\"\",ScriptText!$E$1&CHAR(10)&ScriptText!$C$1)","v":""},{"$f":"IF(OrigTable!B1284=\"\",\"\",ScriptText!$B$1&CHAR(10)&ScriptText!$D$1)","v":""},{"$f":"IF(OrigTable!B1284=\"\",\"\",TEXT(OrigTable!B1284,\"00\"))","v":""},{"$f":"IF(OrigTable!B1284=\"\",\"\",ScriptText!$E$1&CHAR(10)&ScriptText!C1279)","v":""},{"$f":"IF(OrigTable!C1284=\"\",\"\",ScriptText!$B$1&CHAR(10)&ScriptText!$D$1)","v":""},{"$f":"IF(OrigTable!C1284=\"\",\"\",IF(LEN(OrigTable!C1284)>255,LEFT(OrigTable!C1284,250)&\". . .\",OrigTable!C1284))","v":""},{"$f":"IF(OrigTable!C1284=\"\",\"\",ScriptText!$E$1&CHAR(10)&ScriptText!$C$1)","v":""},{"$f":"IF(OrigTable!D1284=\"\",\"\",ScriptText!$B$1&CHAR(10)&ScriptText!$D$1)","v":""},{"$f":"IF(OrigTable!D1284=\"\",\"\",TEXT(OrigTable!D1284,\"00\"))","v":""},{"$f":"IF(OrigTable!D1284=\"\",\"\",ScriptText!$E$1&CHAR(10)&ScriptText!$C$1)","v":""},{"$f":"IF(OrigTable!E1284=\"\",\"\",ScriptText!$B$1&CHAR(10)&ScriptText!$D$1)","v":""},{"$f":"IF(OrigTable!E1284=\"\",\"\",TEXT(OrigTable!E1284,\"00\"))","v":""},{"$f":"IF(OrigTable!E1284=\"\",\"\",ScriptText!$E$1&CHAR(10)&ScriptText!$C$1)","v":""},{"$f":"IF(OrigTable!F1284=\"\",\"\",ScriptText!$B$1&CHAR(10)&ScriptText!$D$1)","v":""},{"$f":"IF(OrigTable!F1284=\"\",\"\",TEXT(OrigTable!F1284,\"00\"))","v":""},{"$f":"IF(OrigTable!F1284=\"\",\"\",ScriptText!$E$1&CHAR(10)&ScriptText!$C$1)","v":""},{"$f":"IF(OrigTable!G1284=\"\",\"\",ScriptText!$B$1&CHAR(10)&ScriptText!$D$1)","v":""},{"$f":"IF(OrigTable!G1284=\"\",\"\",TEXT(OrigTable!G1284,\"00\"))","v":""},{"$f":"IF(OrigTable!G1284=\"\",\"\",ScriptText!$E$1&CHAR(10)&ScriptText!$C$1)","v":""},0]
["\n\n\n",{"$f":"IF(OrigTable!A1285=\"\",\"\",ScriptText!$B$1&CHAR(10)&ScriptText!$D$1)","v":""},{"$f":"IF(OrigTable!A1285=\"\",\"\",TEXT(OrigTable!A1285,\"00\"))","v":""},{"$f":"IF(OrigTable!A1285=\"\",\"\",ScriptText!$E$1&CHAR(10)&ScriptText!$C$1)","v":""},{"$f":"IF(OrigTable!B1285=\"\",\"\",ScriptText!$B$1&CHAR(10)&ScriptText!$D$1)","v":""},{"$f":"IF(OrigTable!B1285=\"\",\"\",TEXT(OrigTable!B1285,\"00\"))","v":""},{"$f":"IF(OrigTable!B1285=\"\",\"\",ScriptText!$E$1&CHAR(10)&ScriptText!C1280)","v":""},{"$f":"IF(OrigTable!C1285=\"\",\"\",ScriptText!$B$1&CHAR(10)&ScriptText!$D$1)","v":""},{"$f":"IF(OrigTable!C1285=\"\",\"\",IF(LEN(OrigTable!C1285)>255,LEFT(OrigTable!C1285,250)&\". . .\",OrigTable!C1285))","v":""},{"$f":"IF(OrigTable!C1285=\"\",\"\",ScriptText!$E$1&CHAR(10)&ScriptText!$C$1)","v":""},{"$f":"IF(OrigTable!D1285=\"\",\"\",ScriptText!$B$1&CHAR(10)&ScriptText!$D$1)","v":""},{"$f":"IF(OrigTable!D1285=\"\",\"\",TEXT(OrigTable!D1285,\"00\"))","v":""},{"$f":"IF(OrigTable!D1285=\"\",\"\",ScriptText!$E$1&CHAR(10)&ScriptText!$C$1)","v":""},{"$f":"IF(OrigTable!E1285=\"\",\"\",ScriptText!$B$1&CHAR(10)&ScriptText!$D$1)","v":""},{"$f":"IF(OrigTable!E1285=\"\",\"\",TEXT(OrigTable!E1285,\"00\"))","v":""},{"$f":"IF(OrigTable!E1285=\"\",\"\",ScriptText!$E$1&CHAR(10)&ScriptText!$C$1)","v":""},{"$f":"IF(OrigTable!F1285=\"\",\"\",ScriptText!$B$1&CHAR(10)&ScriptText!$D$1)","v":""},{"$f":"IF(OrigTable!F1285=\"\",\"\",TEXT(OrigTable!F1285,\"00\"))","v":""},{"$f":"IF(OrigTable!F1285=\"\",\"\",ScriptText!$E$1&CHAR(10)&ScriptText!$C$1)","v":""},{"$f":"IF(OrigTable!G1285=\"\",\"\",ScriptText!$B$1&CHAR(10)&ScriptText!$D$1)","v":""},{"$f":"IF(OrigTable!G1285=\"\",\"\",TEXT(OrigTable!G1285,\"00\"))","v":""},{"$f":"IF(OrigTable!G1285=\"\",\"\",ScriptText!$E$1&CHAR(10)&ScriptText!$C$1)","v":""},0]
["\n\n\n",{"$f":"IF(OrigTable!A1286=\"\",\"\",ScriptText!$B$1&CHAR(10)&ScriptText!$D$1)","v":""},{"$f":"IF(OrigTable!A1286=\"\",\"\",TEXT(OrigTable!A1286,\"00\"))","v":""},{"$f":"IF(OrigTable!A1286=\"\",\"\",ScriptText!$E$1&CHAR(10)&ScriptText!$C$1)","v":""},{"$f":"IF(OrigTable!B1286=\"\",\"\",ScriptText!$B$1&CHAR(10)&ScriptText!$D$1)","v":""},{"$f":"IF(OrigTable!B1286=\"\",\"\",TEXT(OrigTable!B1286,\"00\"))","v":""},{"$f":"IF(OrigTable!B1286=\"\",\"\",ScriptText!$E$1&CHAR(10)&ScriptText!C1281)","v":""},{"$f":"IF(OrigTable!C1286=\"\",\"\",ScriptText!$B$1&CHAR(10)&ScriptText!$D$1)","v":""},{"$f":"IF(OrigTable!C1286=\"\",\"\",IF(LEN(OrigTable!C1286)>255,LEFT(OrigTable!C1286,250)&\". . .\",OrigTable!C1286))","v":""},{"$f":"IF(OrigTable!C1286=\"\",\"\",ScriptText!$E$1&CHAR(10)&ScriptText!$C$1)","v":""},{"$f":"IF(OrigTable!D1286=\"\",\"\",ScriptText!$B$1&CHAR(10)&ScriptText!$D$1)","v":""},{"$f":"IF(OrigTable!D1286=\"\",\"\",TEXT(OrigTable!D1286,\"00\"))","v":""},{"$f":"IF(OrigTable!D1286=\"\",\"\",ScriptText!$E$1&CHAR(10)&ScriptText!$C$1)","v":""},{"$f":"IF(OrigTable!E1286=\"\",\"\",ScriptText!$B$1&CHAR(10)&ScriptText!$D$1)","v":""},{"$f":"IF(OrigTable!E1286=\"\",\"\",TEXT(OrigTable!E1286,\"00\"))","v":""},{"$f":"IF(OrigTable!E1286=\"\",\"\",ScriptText!$E$1&CHAR(10)&ScriptText!$C$1)","v":""},{"$f":"IF(OrigTable!F1286=\"\",\"\",ScriptText!$B$1&CHAR(10)&ScriptText!$D$1)","v":""},{"$f":"IF(OrigTable!F1286=\"\",\"\",TEXT(OrigTable!F1286,\"00\"))","v":""},{"$f":"IF(OrigTable!F1286=\"\",\"\",ScriptText!$E$1&CHAR(10)&ScriptText!$C$1)","v":""},{"$f":"IF(OrigTable!G1286=\"\",\"\",ScriptText!$B$1&CHAR(10)&ScriptText!$D$1)","v":""},{"$f":"IF(OrigTable!G1286=\"\",\"\",TEXT(OrigTable!G1286,\"00\"))","v":""},{"$f":"IF(OrigTable!G1286=\"\",\"\",ScriptText!$E$1&CHAR(10)&ScriptText!$C$1)","v":""},{"$f":"IF(LEN(A1286)>3,ROW(),0)","v":0}]
["\n\n\n",{"$f":"IF(OrigTable!A1287=\"\",\"\",ScriptText!$B$1&CHAR(10)&ScriptText!$D$1)","v":""},{"$f":"IF(OrigTable!A1287=\"\",\"\",TEXT(OrigTable!A1287,\"00\"))","v":""},{"$f":"IF(OrigTable!A1287=\"\",\"\",ScriptText!$E$1&CHAR(10)&ScriptText!$C$1)","v":""},{"$f":"IF(OrigTable!B1287=\"\",\"\",ScriptText!$B$1&CHAR(10)&ScriptText!$D$1)","v":""},{"$f":"IF(OrigTable!B1287=\"\",\"\",TEXT(OrigTable!B1287,\"00\"))","v":""},{"$f":"IF(OrigTable!B1287=\"\",\"\",ScriptText!$E$1&CHAR(10)&ScriptText!C1282)","v":""},{"$f":"IF(OrigTable!C1287=\"\",\"\",ScriptText!$B$1&CHAR(10)&ScriptText!$D$1)","v":""},{"$f":"IF(OrigTable!C1287=\"\",\"\",IF(LEN(OrigTable!C1287)>255,LEFT(OrigTable!C1287,250)&\". . .\",OrigTable!C1287))","v":""},{"$f":"IF(OrigTable!C1287=\"\",\"\",ScriptText!$E$1&CHAR(10)&ScriptText!$C$1)","v":""},{"$f":"IF(OrigTable!D1287=\"\",\"\",ScriptText!$B$1&CHAR(10)&ScriptText!$D$1)","v":""},{"$f":"IF(OrigTable!D1287=\"\",\"\",TEXT(OrigTable!D1287,\"00\"))","v":""},{"$f":"IF(OrigTable!D1287=\"\",\"\",ScriptText!$E$1&CHAR(10)&ScriptText!$C$1)","v":""},{"$f":"IF(OrigTable!E1287=\"\",\"\",ScriptText!$B$1&CHAR(10)&ScriptText!$D$1)","v":""},{"$f":"IF(OrigTable!E1287=\"\",\"\",TEXT(OrigTable!E1287,\"00\"))","v":""},{"$f":"IF(OrigTable!E1287=\"\",\"\",ScriptText!$E$1&CHAR(10)&ScriptText!$C$1)","v":""},{"$f":"IF(OrigTable!F1287=\"\",\"\",ScriptText!$B$1&CHAR(10)&ScriptText!$D$1)","v":""},{"$f":"IF(OrigTable!F1287=\"\",\"\",TEXT(OrigTable!F1287,\"00\"))","v":""},{"$f":"IF(OrigTable!F1287=\"\",\"\",ScriptText!$E$1&CHAR(10)&ScriptText!$C$1)","v":""},{"$f":"IF(OrigTable!G1287=\"\",\"\",ScriptText!$B$1&CHAR(10)&ScriptText!$D$1)","v":""},{"$f":"IF(OrigTable!G1287=\"\",\"\",TEXT(OrigTable!G1287,\"00\"))","v":""},{"$f":"IF(OrigTable!G1287=\"\",\"\",ScriptText!$E$1&CHAR(10)&ScriptText!$C$1)","v":""},0]
["\n\n\n",{"$f":"IF(OrigTable!A1288=\"\",\"\",ScriptText!$B$1&CHAR(10)&ScriptText!$D$1)","v":""},{"$f":"IF(OrigTable!A1288=\"\",\"\",TEXT(OrigTable!A1288,\"00\"))","v":""},{"$f":"IF(OrigTable!A1288=\"\",\"\",ScriptText!$E$1&CHAR(10)&ScriptText!$C$1)","v":""},{"$f":"IF(OrigTable!B1288=\"\",\"\",ScriptText!$B$1&CHAR(10)&ScriptText!$D$1)","v":""},{"$f":"IF(OrigTable!B1288=\"\",\"\",TEXT(OrigTable!B1288,\"00\"))","v":""},{"$f":"IF(OrigTable!B1288=\"\",\"\",ScriptText!$E$1&CHAR(10)&ScriptText!C1283)","v":""},{"$f":"IF(OrigTable!C1288=\"\",\"\",ScriptText!$B$1&CHAR(10)&ScriptText!$D$1)","v":""},{"$f":"IF(OrigTable!C1288=\"\",\"\",IF(LEN(OrigTable!C1288)>255,LEFT(OrigTable!C1288,250)&\". . .\",OrigTable!C1288))","v":""},{"$f":"IF(OrigTable!C1288=\"\",\"\",ScriptText!$E$1&CHAR(10)&ScriptText!$C$1)","v":""},{"$f":"IF(OrigTable!D1288=\"\",\"\",ScriptText!$B$1&CHAR(10)&ScriptText!$D$1)","v":""},{"$f":"IF(OrigTable!D1288=\"\",\"\",TEXT(OrigTable!D1288,\"00\"))","v":""},{"$f":"IF(OrigTable!D1288=\"\",\"\",ScriptText!$E$1&CHAR(10)&ScriptText!$C$1)","v":""},{"$f":"IF(OrigTable!E1288=\"\",\"\",ScriptText!$B$1&CHAR(10)&ScriptText!$D$1)","v":""},{"$f":"IF(OrigTable!E1288=\"\",\"\",TEXT(OrigTable!E1288,\"00\"))","v":""},{"$f":"IF(OrigTable!E1288=\"\",\"\",ScriptText!$E$1&CHAR(10)&ScriptText!$C$1)","v":""},{"$f":"IF(OrigTable!F1288=\"\",\"\",ScriptText!$B$1&CHAR(10)&ScriptText!$D$1)","v":""},{"$f":"IF(OrigTable!F1288=\"\",\"\",TEXT(OrigTable!F1288,\"00\"))","v":""},{"$f":"IF(OrigTable!F1288=\"\",\"\",ScriptText!$E$1&CHAR(10)&ScriptText!$C$1)","v":""},{"$f":"IF(OrigTable!G1288=\"\",\"\",ScriptText!$B$1&CHAR(10)&ScriptText!$D$1)","v":""},{"$f":"IF(OrigTable!G1288=\"\",\"\",TEXT(OrigTable!G1288,\"00\"))","v":""},{"$f":"IF(OrigTable!G1288=\"\",\"\",ScriptText!$E$1&CHAR(10)&ScriptText!$C$1)","v":""},0]
[{"$f":"_xlfn.TEXTJOIN(\"\",TRUE,B1289:D1289)&CHAR(10)&_xlfn.TEXTJOIN(\"\",TRUE,E1289:G1289)&CHAR(10)&_xlfn.TEXTJOIN(\"\",TRUE,H1289:J1289)&CHAR(10)&_xlfn.TEXTJOIN(\"\",TRUE,K1289:M1289)&_xlfn.TEXTJOIN(\"\",TRUE,N1289:P1289)&_xlfn.TEXTJOIN(\"\",TRUE,Q1289:S1289)&_xlfn.TEXTJOIN(\"\",TRUE,T1289:V1289)","v":"\n\n\n"},{"$f":"IF(OrigTable!A1289=\"\",\"\",ScriptText!$B$1&CHAR(10)&ScriptText!$D$1)","v":""},{"$f":"IF(OrigTable!A1289=\"\",\"\",TEXT(OrigTable!A1289,\"00\"))","v":""},{"$f":"IF(OrigTable!A1289=\"\",\"\",ScriptText!$E$1&CHAR(10)&ScriptText!$C$1)","v":""},{"$f":"IF(OrigTable!B1289=\"\",\"\",ScriptText!$B$1&CHAR(10)&ScriptText!$D$1)","v":""},{"$f":"IF(OrigTable!B1289=\"\",\"\",TEXT(OrigTable!B1289,\"00\"))","v":""},{"$f":"IF(OrigTable!B1289=\"\",\"\",ScriptText!$E$1&CHAR(10)&ScriptText!C1284)","v":""},{"$f":"IF(OrigTable!C1289=\"\",\"\",ScriptText!$B$1&CHAR(10)&ScriptText!$D$1)","v":""},{"$f":"IF(OrigTable!C1289=\"\",\"\",IF(LEN(OrigTable!C1289)>255,LEFT(OrigTable!C1289,250)&\". . .\",OrigTable!C1289))","v":""},{"$f":"IF(OrigTable!C1289=\"\",\"\",ScriptText!$E$1&CHAR(10)&ScriptText!$C$1)","v":""},{"$f":"IF(OrigTable!D1289=\"\",\"\",ScriptText!$B$1&CHAR(10)&ScriptText!$D$1)","v":""},{"$f":"IF(OrigTable!D1289=\"\",\"\",TEXT(OrigTable!D1289,\"00\"))","v":""},{"$f":"IF(OrigTable!D1289=\"\",\"\",ScriptText!$E$1&CHAR(10)&ScriptText!$C$1)","v":""},{"$f":"IF(OrigTable!E1289=\"\",\"\",ScriptText!$B$1&CHAR(10)&ScriptText!$D$1)","v":""},{"$f":"IF(OrigTable!E1289=\"\",\"\",TEXT(OrigTable!E1289,\"00\"))","v":""},{"$f":"IF(OrigTable!E1289=\"\",\"\",ScriptText!$E$1&CHAR(10)&ScriptText!$C$1)","v":""},{"$f":"IF(OrigTable!F1289=\"\",\"\",ScriptText!$B$1&CHAR(10)&ScriptText!$D$1)","v":""},{"$f":"IF(OrigTable!F1289=\"\",\"\",TEXT(OrigTable!F1289,\"00\"))","v":""},{"$f":"IF(OrigTable!F1289=\"\",\"\",ScriptText!$E$1&CHAR(10)&ScriptText!$C$1)","v":""},{"$f":"IF(OrigTable!G1289=\"\",\"\",ScriptText!$B$1&CHAR(10)&ScriptText!$D$1)","v":""},{"$f":"IF(OrigTable!G1289=\"\",\"\",TEXT(OrigTable!G1289,\"00\"))","v":""},{"$f":"IF(OrigTable!G1289=\"\",\"\",ScriptText!$E$1&CHAR(10)&ScriptText!$C$1)","v":""},0]
["\n\n\n",{"$f":"IF(OrigTable!A1290=\"\",\"\",ScriptText!$B$1&CHAR(10)&ScriptText!$D$1)","v":""},{"$f":"IF(OrigTable!A1290=\"\",\"\",TEXT(OrigTable!A1290,\"00\"))","v":""},{"$f":"IF(OrigTable!A1290=\"\",\"\",ScriptText!$E$1&CHAR(10)&ScriptText!$C$1)","v":""},{"$f":"IF(OrigTable!B1290=\"\",\"\",ScriptText!$B$1&CHAR(10)&ScriptText!$D$1)","v":""},{"$f":"IF(OrigTable!B1290=\"\",\"\",TEXT(OrigTable!B1290,\"00\"))","v":""},{"$f":"IF(OrigTable!B1290=\"\",\"\",ScriptText!$E$1&CHAR(10)&ScriptText!C1285)","v":""},{"$f":"IF(OrigTable!C1290=\"\",\"\",ScriptText!$B$1&CHAR(10)&ScriptText!$D$1)","v":""},{"$f":"IF(OrigTable!C1290=\"\",\"\",IF(LEN(OrigTable!C1290)>255,LEFT(OrigTable!C1290,250)&\". . .\",OrigTable!C1290))","v":""},{"$f":"IF(OrigTable!C1290=\"\",\"\",ScriptText!$E$1&CHAR(10)&ScriptText!$C$1)","v":""},{"$f":"IF(OrigTable!D1290=\"\",\"\",ScriptText!$B$1&CHAR(10)&ScriptText!$D$1)","v":""},{"$f":"IF(OrigTable!D1290=\"\",\"\",TEXT(OrigTable!D1290,\"00\"))","v":""},{"$f":"IF(OrigTable!D1290=\"\",\"\",ScriptText!$E$1&CHAR(10)&ScriptText!$C$1)","v":""},{"$f":"IF(OrigTable!E1290=\"\",\"\",ScriptText!$B$1&CHAR(10)&ScriptText!$D$1)","v":""},{"$f":"IF(OrigTable!E1290=\"\",\"\",TEXT(OrigTable!E1290,\"00\"))","v":""},{"$f":"IF(OrigTable!E1290=\"\",\"\",ScriptText!$E$1&CHAR(10)&ScriptText!$C$1)","v":""},{"$f":"IF(OrigTable!F1290=\"\",\"\",ScriptText!$B$1&CHAR(10)&ScriptText!$D$1)","v":""},{"$f":"IF(OrigTable!F1290=\"\",\"\",TEXT(OrigTable!F1290,\"00\"))","v":""},{"$f":"IF(OrigTable!F1290=\"\",\"\",ScriptText!$E$1&CHAR(10)&ScriptText!$C$1)","v":""},{"$f":"IF(OrigTable!G1290=\"\",\"\",ScriptText!$B$1&CHAR(10)&ScriptText!$D$1)","v":""},{"$f":"IF(OrigTable!G1290=\"\",\"\",TEXT(OrigTable!G1290,\"00\"))","v":""},{"$f":"IF(OrigTable!G1290=\"\",\"\",ScriptText!$E$1&CHAR(10)&ScriptText!$C$1)","v":""},0]
["\n\n\n",{"$f":"IF(OrigTable!A1291=\"\",\"\",ScriptText!$B$1&CHAR(10)&ScriptText!$D$1)","v":""},{"$f":"IF(OrigTable!A1291=\"\",\"\",TEXT(OrigTable!A1291,\"00\"))","v":""},{"$f":"IF(OrigTable!A1291=\"\",\"\",ScriptText!$E$1&CHAR(10)&ScriptText!$C$1)","v":""},{"$f":"IF(OrigTable!B1291=\"\",\"\",ScriptText!$B$1&CHAR(10)&ScriptText!$D$1)","v":""},{"$f":"IF(OrigTable!B1291=\"\",\"\",TEXT(OrigTable!B1291,\"00\"))","v":""},{"$f":"IF(OrigTable!B1291=\"\",\"\",ScriptText!$E$1&CHAR(10)&ScriptText!C1286)","v":""},{"$f":"IF(OrigTable!C1291=\"\",\"\",ScriptText!$B$1&CHAR(10)&ScriptText!$D$1)","v":""},{"$f":"IF(OrigTable!C1291=\"\",\"\",IF(LEN(OrigTable!C1291)>255,LEFT(OrigTable!C1291,250)&\". . .\",OrigTable!C1291))","v":""},{"$f":"IF(OrigTable!C1291=\"\",\"\",ScriptText!$E$1&CHAR(10)&ScriptText!$C$1)","v":""},{"$f":"IF(OrigTable!D1291=\"\",\"\",ScriptText!$B$1&CHAR(10)&ScriptText!$D$1)","v":""},{"$f":"IF(OrigTable!D1291=\"\",\"\",TEXT(OrigTable!D1291,\"00\"))","v":""},{"$f":"IF(OrigTable!D1291=\"\",\"\",ScriptText!$E$1&CHAR(10)&ScriptText!$C$1)","v":""},{"$f":"IF(OrigTable!E1291=\"\",\"\",ScriptText!$B$1&CHAR(10)&ScriptText!$D$1)","v":""},{"$f":"IF(OrigTable!E1291=\"\",\"\",TEXT(OrigTable!E1291,\"00\"))","v":""},{"$f":"IF(OrigTable!E1291=\"\",\"\",ScriptText!$E$1&CHAR(10)&ScriptText!$C$1)","v":""},{"$f":"IF(OrigTable!F1291=\"\",\"\",ScriptText!$B$1&CHAR(10)&ScriptText!$D$1)","v":""},{"$f":"IF(OrigTable!F1291=\"\",\"\",TEXT(OrigTable!F1291,\"00\"))","v":""},{"$f":"IF(OrigTable!F1291=\"\",\"\",ScriptText!$E$1&CHAR(10)&ScriptText!$C$1)","v":""},{"$f":"IF(OrigTable!G1291=\"\",\"\",ScriptText!$B$1&CHAR(10)&ScriptText!$D$1)","v":""},{"$f":"IF(OrigTable!G1291=\"\",\"\",TEXT(OrigTable!G1291,\"00\"))","v":""},{"$f":"IF(OrigTable!G1291=\"\",\"\",ScriptText!$E$1&CHAR(10)&ScriptText!$C$1)","v":""},0]
["\n\n\n",{"$f":"IF(OrigTable!A1292=\"\",\"\",ScriptText!$B$1&CHAR(10)&ScriptText!$D$1)","v":""},{"$f":"IF(OrigTable!A1292=\"\",\"\",TEXT(OrigTable!A1292,\"00\"))","v":""},{"$f":"IF(OrigTable!A1292=\"\",\"\",ScriptText!$E$1&CHAR(10)&ScriptText!$C$1)","v":""},{"$f":"IF(OrigTable!B1292=\"\",\"\",ScriptText!$B$1&CHAR(10)&ScriptText!$D$1)","v":""},{"$f":"IF(OrigTable!B1292=\"\",\"\",TEXT(OrigTable!B1292,\"00\"))","v":""},{"$f":"IF(OrigTable!B1292=\"\",\"\",ScriptText!$E$1&CHAR(10)&ScriptText!C1287)","v":""},{"$f":"IF(OrigTable!C1292=\"\",\"\",ScriptText!$B$1&CHAR(10)&ScriptText!$D$1)","v":""},{"$f":"IF(OrigTable!C1292=\"\",\"\",IF(LEN(OrigTable!C1292)>255,LEFT(OrigTable!C1292,250)&\". . .\",OrigTable!C1292))","v":""},{"$f":"IF(OrigTable!C1292=\"\",\"\",ScriptText!$E$1&CHAR(10)&ScriptText!$C$1)","v":""},{"$f":"IF(OrigTable!D1292=\"\",\"\",ScriptText!$B$1&CHAR(10)&ScriptText!$D$1)","v":""},{"$f":"IF(OrigTable!D1292=\"\",\"\",TEXT(OrigTable!D1292,\"00\"))","v":""},{"$f":"IF(OrigTable!D1292=\"\",\"\",ScriptText!$E$1&CHAR(10)&ScriptText!$C$1)","v":""},{"$f":"IF(OrigTable!E1292=\"\",\"\",ScriptText!$B$1&CHAR(10)&ScriptText!$D$1)","v":""},{"$f":"IF(OrigTable!E1292=\"\",\"\",TEXT(OrigTable!E1292,\"00\"))","v":""},{"$f":"IF(OrigTable!E1292=\"\",\"\",ScriptText!$E$1&CHAR(10)&ScriptText!$C$1)","v":""},{"$f":"IF(OrigTable!F1292=\"\",\"\",ScriptText!$B$1&CHAR(10)&ScriptText!$D$1)","v":""},{"$f":"IF(OrigTable!F1292=\"\",\"\",TEXT(OrigTable!F1292,\"00\"))","v":""},{"$f":"IF(OrigTable!F1292=\"\",\"\",ScriptText!$E$1&CHAR(10)&ScriptText!$C$1)","v":""},{"$f":"IF(OrigTable!G1292=\"\",\"\",ScriptText!$B$1&CHAR(10)&ScriptText!$D$1)","v":""},{"$f":"IF(OrigTable!G1292=\"\",\"\",TEXT(OrigTable!G1292,\"00\"))","v":""},{"$f":"IF(OrigTable!G1292=\"\",\"\",ScriptText!$E$1&CHAR(10)&ScriptText!$C$1)","v":""},0]
["\n\n\n",{"$f":"IF(OrigTable!A1293=\"\",\"\",ScriptText!$B$1&CHAR(10)&ScriptText!$D$1)","v":""},{"$f":"IF(OrigTable!A1293=\"\",\"\",TEXT(OrigTable!A1293,\"00\"))","v":""},{"$f":"IF(OrigTable!A1293=\"\",\"\",ScriptText!$E$1&CHAR(10)&ScriptText!$C$1)","v":""},{"$f":"IF(OrigTable!B1293=\"\",\"\",ScriptText!$B$1&CHAR(10)&ScriptText!$D$1)","v":""},{"$f":"IF(OrigTable!B1293=\"\",\"\",TEXT(OrigTable!B1293,\"00\"))","v":""},{"$f":"IF(OrigTable!B1293=\"\",\"\",ScriptText!$E$1&CHAR(10)&ScriptText!C1288)","v":""},{"$f":"IF(OrigTable!C1293=\"\",\"\",ScriptText!$B$1&CHAR(10)&ScriptText!$D$1)","v":""},{"$f":"IF(OrigTable!C1293=\"\",\"\",IF(LEN(OrigTable!C1293)>255,LEFT(OrigTable!C1293,250)&\". . .\",OrigTable!C1293))","v":""},{"$f":"IF(OrigTable!C1293=\"\",\"\",ScriptText!$E$1&CHAR(10)&ScriptText!$C$1)","v":""},{"$f":"IF(OrigTable!D1293=\"\",\"\",ScriptText!$B$1&CHAR(10)&ScriptText!$D$1)","v":""},{"$f":"IF(OrigTable!D1293=\"\",\"\",TEXT(OrigTable!D1293,\"00\"))","v":""},{"$f":"IF(OrigTable!D1293=\"\",\"\",ScriptText!$E$1&CHAR(10)&ScriptText!$C$1)","v":""},{"$f":"IF(OrigTable!E1293=\"\",\"\",ScriptText!$B$1&CHAR(10)&ScriptText!$D$1)","v":""},{"$f":"IF(OrigTable!E1293=\"\",\"\",TEXT(OrigTable!E1293,\"00\"))","v":""},{"$f":"IF(OrigTable!E1293=\"\",\"\",ScriptText!$E$1&CHAR(10)&ScriptText!$C$1)","v":""},{"$f":"IF(OrigTable!F1293=\"\",\"\",ScriptText!$B$1&CHAR(10)&ScriptText!$D$1)","v":""},{"$f":"IF(OrigTable!F1293=\"\",\"\",TEXT(OrigTable!F1293,\"00\"))","v":""},{"$f":"IF(OrigTable!F1293=\"\",\"\",ScriptText!$E$1&CHAR(10)&ScriptText!$C$1)","v":""},{"$f":"IF(OrigTable!G1293=\"\",\"\",ScriptText!$B$1&CHAR(10)&ScriptText!$D$1)","v":""},{"$f":"IF(OrigTable!G1293=\"\",\"\",TEXT(OrigTable!G1293,\"00\"))","v":""},{"$f":"IF(OrigTable!G1293=\"\",\"\",ScriptText!$E$1&CHAR(10)&ScriptText!$C$1)","v":""},0]
["\n\n\n",{"$f":"IF(OrigTable!A1294=\"\",\"\",ScriptText!$B$1&CHAR(10)&ScriptText!$D$1)","v":""},{"$f":"IF(OrigTable!A1294=\"\",\"\",TEXT(OrigTable!A1294,\"00\"))","v":""},{"$f":"IF(OrigTable!A1294=\"\",\"\",ScriptText!$E$1&CHAR(10)&ScriptText!$C$1)","v":""},{"$f":"IF(OrigTable!B1294=\"\",\"\",ScriptText!$B$1&CHAR(10)&ScriptText!$D$1)","v":""},{"$f":"IF(OrigTable!B1294=\"\",\"\",TEXT(OrigTable!B1294,\"00\"))","v":""},{"$f":"IF(OrigTable!B1294=\"\",\"\",ScriptText!$E$1&CHAR(10)&ScriptText!C1289)","v":""},{"$f":"IF(OrigTable!C1294=\"\",\"\",ScriptText!$B$1&CHAR(10)&ScriptText!$D$1)","v":""},{"$f":"IF(OrigTable!C1294=\"\",\"\",IF(LEN(OrigTable!C1294)>255,LEFT(OrigTable!C1294,250)&\". . .\",OrigTable!C1294))","v":""},{"$f":"IF(OrigTable!C1294=\"\",\"\",ScriptText!$E$1&CHAR(10)&ScriptText!$C$1)","v":""},{"$f":"IF(OrigTable!D1294=\"\",\"\",ScriptText!$B$1&CHAR(10)&ScriptText!$D$1)","v":""},{"$f":"IF(OrigTable!D1294=\"\",\"\",TEXT(OrigTable!D1294,\"00\"))","v":""},{"$f":"IF(OrigTable!D1294=\"\",\"\",ScriptText!$E$1&CHAR(10)&ScriptText!$C$1)","v":""},{"$f":"IF(OrigTable!E1294=\"\",\"\",ScriptText!$B$1&CHAR(10)&ScriptText!$D$1)","v":""},{"$f":"IF(OrigTable!E1294=\"\",\"\",TEXT(OrigTable!E1294,\"00\"))","v":""},{"$f":"IF(OrigTable!E1294=\"\",\"\",ScriptText!$E$1&CHAR(10)&ScriptText!$C$1)","v":""},{"$f":"IF(OrigTable!F1294=\"\",\"\",ScriptText!$B$1&CHAR(10)&ScriptText!$D$1)","v":""},{"$f":"IF(OrigTable!F1294=\"\",\"\",TEXT(OrigTable!F1294,\"00\"))","v":""},{"$f":"IF(OrigTable!F1294=\"\",\"\",ScriptText!$E$1&CHAR(10)&ScriptText!$C$1)","v":""},{"$f":"IF(OrigTable!G1294=\"\",\"\",ScriptText!$B$1&CHAR(10)&ScriptText!$D$1)","v":""},{"$f":"IF(OrigTable!G1294=\"\",\"\",TEXT(OrigTable!G1294,\"00\"))","v":""},{"$f":"IF(OrigTable!G1294=\"\",\"\",ScriptText!$E$1&CHAR(10)&ScriptText!$C$1)","v":""},0]
["\n\n\n",{"$f":"IF(OrigTable!A1295=\"\",\"\",ScriptText!$B$1&CHAR(10)&ScriptText!$D$1)","v":""},{"$f":"IF(OrigTable!A1295=\"\",\"\",TEXT(OrigTable!A1295,\"00\"))","v":""},{"$f":"IF(OrigTable!A1295=\"\",\"\",ScriptText!$E$1&CHAR(10)&ScriptText!$C$1)","v":""},{"$f":"IF(OrigTable!B1295=\"\",\"\",ScriptText!$B$1&CHAR(10)&ScriptText!$D$1)","v":""},{"$f":"IF(OrigTable!B1295=\"\",\"\",TEXT(OrigTable!B1295,\"00\"))","v":""},{"$f":"IF(OrigTable!B1295=\"\",\"\",ScriptText!$E$1&CHAR(10)&ScriptText!C1290)","v":""},{"$f":"IF(OrigTable!C1295=\"\",\"\",ScriptText!$B$1&CHAR(10)&ScriptText!$D$1)","v":""},{"$f":"IF(OrigTable!C1295=\"\",\"\",IF(LEN(OrigTable!C1295)>255,LEFT(OrigTable!C1295,250)&\". . .\",OrigTable!C1295))","v":""},{"$f":"IF(OrigTable!C1295=\"\",\"\",ScriptText!$E$1&CHAR(10)&ScriptText!$C$1)","v":""},{"$f":"IF(OrigTable!D1295=\"\",\"\",ScriptText!$B$1&CHAR(10)&ScriptText!$D$1)","v":""},{"$f":"IF(OrigTable!D1295=\"\",\"\",TEXT(OrigTable!D1295,\"00\"))","v":""},{"$f":"IF(OrigTable!D1295=\"\",\"\",ScriptText!$E$1&CHAR(10)&ScriptText!$C$1)","v":""},{"$f":"IF(OrigTable!E1295=\"\",\"\",ScriptText!$B$1&CHAR(10)&ScriptText!$D$1)","v":""},{"$f":"IF(OrigTable!E1295=\"\",\"\",TEXT(OrigTable!E1295,\"00\"))","v":""},{"$f":"IF(OrigTable!E1295=\"\",\"\",ScriptText!$E$1&CHAR(10)&ScriptText!$C$1)","v":""},{"$f":"IF(OrigTable!F1295=\"\",\"\",ScriptText!$B$1&CHAR(10)&ScriptText!$D$1)","v":""},{"$f":"IF(OrigTable!F1295=\"\",\"\",TEXT(OrigTable!F1295,\"00\"))","v":""},{"$f":"IF(OrigTable!F1295=\"\",\"\",ScriptText!$E$1&CHAR(10)&ScriptText!$C$1)","v":""},{"$f":"IF(OrigTable!G1295=\"\",\"\",ScriptText!$B$1&CHAR(10)&ScriptText!$D$1)","v":""},{"$f":"IF(OrigTable!G1295=\"\",\"\",TEXT(OrigTable!G1295,\"00\"))","v":""},{"$f":"IF(OrigTable!G1295=\"\",\"\",ScriptText!$E$1&CHAR(10)&ScriptText!$C$1)","v":""},0]
["\n\n\n",{"$f":"IF(OrigTable!A1296=\"\",\"\",ScriptText!$B$1&CHAR(10)&ScriptText!$D$1)","v":""},{"$f":"IF(OrigTable!A1296=\"\",\"\",TEXT(OrigTable!A1296,\"00\"))","v":""},{"$f":"IF(OrigTable!A1296=\"\",\"\",ScriptText!$E$1&CHAR(10)&ScriptText!$C$1)","v":""},{"$f":"IF(OrigTable!B1296=\"\",\"\",ScriptText!$B$1&CHAR(10)&ScriptText!$D$1)","v":""},{"$f":"IF(OrigTable!B1296=\"\",\"\",TEXT(OrigTable!B1296,\"00\"))","v":""},{"$f":"IF(OrigTable!B1296=\"\",\"\",ScriptText!$E$1&CHAR(10)&ScriptText!C1291)","v":""},{"$f":"IF(OrigTable!C1296=\"\",\"\",ScriptText!$B$1&CHAR(10)&ScriptText!$D$1)","v":""},{"$f":"IF(OrigTable!C1296=\"\",\"\",IF(LEN(OrigTable!C1296)>255,LEFT(OrigTable!C1296,250)&\". . .\",OrigTable!C1296))","v":""},{"$f":"IF(OrigTable!C1296=\"\",\"\",ScriptText!$E$1&CHAR(10)&ScriptText!$C$1)","v":""},{"$f":"IF(OrigTable!D1296=\"\",\"\",ScriptText!$B$1&CHAR(10)&ScriptText!$D$1)","v":""},{"$f":"IF(OrigTable!D1296=\"\",\"\",TEXT(OrigTable!D1296,\"00\"))","v":""},{"$f":"IF(OrigTable!D1296=\"\",\"\",ScriptText!$E$1&CHAR(10)&ScriptText!$C$1)","v":""},{"$f":"IF(OrigTable!E1296=\"\",\"\",ScriptText!$B$1&CHAR(10)&ScriptText!$D$1)","v":""},{"$f":"IF(OrigTable!E1296=\"\",\"\",TEXT(OrigTable!E1296,\"00\"))","v":""},{"$f":"IF(OrigTable!E1296=\"\",\"\",ScriptText!$E$1&CHAR(10)&ScriptText!$C$1)","v":""},{"$f":"IF(OrigTable!F1296=\"\",\"\",ScriptText!$B$1&CHAR(10)&ScriptText!$D$1)","v":""},{"$f":"IF(OrigTable!F1296=\"\",\"\",TEXT(OrigTable!F1296,\"00\"))","v":""},{"$f":"IF(OrigTable!F1296=\"\",\"\",ScriptText!$E$1&CHAR(10)&ScriptText!$C$1)","v":""},{"$f":"IF(OrigTable!G1296=\"\",\"\",ScriptText!$B$1&CHAR(10)&ScriptText!$D$1)","v":""},{"$f":"IF(OrigTable!G1296=\"\",\"\",TEXT(OrigTable!G1296,\"00\"))","v":""},{"$f":"IF(OrigTable!G1296=\"\",\"\",ScriptText!$E$1&CHAR(10)&ScriptText!$C$1)","v":""},0]
["\n\n\n",{"$f":"IF(OrigTable!A1297=\"\",\"\",ScriptText!$B$1&CHAR(10)&ScriptText!$D$1)","v":""},{"$f":"IF(OrigTable!A1297=\"\",\"\",TEXT(OrigTable!A1297,\"00\"))","v":""},{"$f":"IF(OrigTable!A1297=\"\",\"\",ScriptText!$E$1&CHAR(10)&ScriptText!$C$1)","v":""},{"$f":"IF(OrigTable!B1297=\"\",\"\",ScriptText!$B$1&CHAR(10)&ScriptText!$D$1)","v":""},{"$f":"IF(OrigTable!B1297=\"\",\"\",TEXT(OrigTable!B1297,\"00\"))","v":""},{"$f":"IF(OrigTable!B1297=\"\",\"\",ScriptText!$E$1&CHAR(10)&ScriptText!C1292)","v":""},{"$f":"IF(OrigTable!C1297=\"\",\"\",ScriptText!$B$1&CHAR(10)&ScriptText!$D$1)","v":""},{"$f":"IF(OrigTable!C1297=\"\",\"\",IF(LEN(OrigTable!C1297)>255,LEFT(OrigTable!C1297,250)&\". . .\",OrigTable!C1297))","v":""},{"$f":"IF(OrigTable!C1297=\"\",\"\",ScriptText!$E$1&CHAR(10)&ScriptText!$C$1)","v":""},{"$f":"IF(OrigTable!D1297=\"\",\"\",ScriptText!$B$1&CHAR(10)&ScriptText!$D$1)","v":""},{"$f":"IF(OrigTable!D1297=\"\",\"\",TEXT(OrigTable!D1297,\"00\"))","v":""},{"$f":"IF(OrigTable!D1297=\"\",\"\",ScriptText!$E$1&CHAR(10)&ScriptText!$C$1)","v":""},{"$f":"IF(OrigTable!E1297=\"\",\"\",ScriptText!$B$1&CHAR(10)&ScriptText!$D$1)","v":""},{"$f":"IF(OrigTable!E1297=\"\",\"\",TEXT(OrigTable!E1297,\"00\"))","v":""},{"$f":"IF(OrigTable!E1297=\"\",\"\",ScriptText!$E$1&CHAR(10)&ScriptText!$C$1)","v":""},{"$f":"IF(OrigTable!F1297=\"\",\"\",ScriptText!$B$1&CHAR(10)&ScriptText!$D$1)","v":""},{"$f":"IF(OrigTable!F1297=\"\",\"\",TEXT(OrigTable!F1297,\"00\"))","v":""},{"$f":"IF(OrigTable!F1297=\"\",\"\",ScriptText!$E$1&CHAR(10)&ScriptText!$C$1)","v":""},{"$f":"IF(OrigTable!G1297=\"\",\"\",ScriptText!$B$1&CHAR(10)&ScriptText!$D$1)","v":""},{"$f":"IF(OrigTable!G1297=\"\",\"\",TEXT(OrigTable!G1297,\"00\"))","v":""},{"$f":"IF(OrigTable!G1297=\"\",\"\",ScriptText!$E$1&CHAR(10)&ScriptText!$C$1)","v":""},0]
["\n\n\n",{"$f":"IF(OrigTable!A1298=\"\",\"\",ScriptText!$B$1&CHAR(10)&ScriptText!$D$1)","v":""},{"$f":"IF(OrigTable!A1298=\"\",\"\",TEXT(OrigTable!A1298,\"00\"))","v":""},{"$f":"IF(OrigTable!A1298=\"\",\"\",ScriptText!$E$1&CHAR(10)&ScriptText!$C$1)","v":""},{"$f":"IF(OrigTable!B1298=\"\",\"\",ScriptText!$B$1&CHAR(10)&ScriptText!$D$1)","v":""},{"$f":"IF(OrigTable!B1298=\"\",\"\",TEXT(OrigTable!B1298,\"00\"))","v":""},{"$f":"IF(OrigTable!B1298=\"\",\"\",ScriptText!$E$1&CHAR(10)&ScriptText!C1293)","v":""},{"$f":"IF(OrigTable!C1298=\"\",\"\",ScriptText!$B$1&CHAR(10)&ScriptText!$D$1)","v":""},{"$f":"IF(OrigTable!C1298=\"\",\"\",IF(LEN(OrigTable!C1298)>255,LEFT(OrigTable!C1298,250)&\". . .\",OrigTable!C1298))","v":""},{"$f":"IF(OrigTable!C1298=\"\",\"\",ScriptText!$E$1&CHAR(10)&ScriptText!$C$1)","v":""},{"$f":"IF(OrigTable!D1298=\"\",\"\",ScriptText!$B$1&CHAR(10)&ScriptText!$D$1)","v":""},{"$f":"IF(OrigTable!D1298=\"\",\"\",TEXT(OrigTable!D1298,\"00\"))","v":""},{"$f":"IF(OrigTable!D1298=\"\",\"\",ScriptText!$E$1&CHAR(10)&ScriptText!$C$1)","v":""},{"$f":"IF(OrigTable!E1298=\"\",\"\",ScriptText!$B$1&CHAR(10)&ScriptText!$D$1)","v":""},{"$f":"IF(OrigTable!E1298=\"\",\"\",TEXT(OrigTable!E1298,\"00\"))","v":""},{"$f":"IF(OrigTable!E1298=\"\",\"\",ScriptText!$E$1&CHAR(10)&ScriptText!$C$1)","v":""},{"$f":"IF(OrigTable!F1298=\"\",\"\",ScriptText!$B$1&CHAR(10)&ScriptText!$D$1)","v":""},{"$f":"IF(OrigTable!F1298=\"\",\"\",TEXT(OrigTable!F1298,\"00\"))","v":""},{"$f":"IF(OrigTable!F1298=\"\",\"\",ScriptText!$E$1&CHAR(10)&ScriptText!$C$1)","v":""},{"$f":"IF(OrigTable!G1298=\"\",\"\",ScriptText!$B$1&CHAR(10)&ScriptText!$D$1)","v":""},{"$f":"IF(OrigTable!G1298=\"\",\"\",TEXT(OrigTable!G1298,\"00\"))","v":""},{"$f":"IF(OrigTable!G1298=\"\",\"\",ScriptText!$E$1&CHAR(10)&ScriptText!$C$1)","v":""},0]
["\n\n\n",{"$f":"IF(OrigTable!A1299=\"\",\"\",ScriptText!$B$1&CHAR(10)&ScriptText!$D$1)","v":""},{"$f":"IF(OrigTable!A1299=\"\",\"\",TEXT(OrigTable!A1299,\"00\"))","v":""},{"$f":"IF(OrigTable!A1299=\"\",\"\",ScriptText!$E$1&CHAR(10)&ScriptText!$C$1)","v":""},{"$f":"IF(OrigTable!B1299=\"\",\"\",ScriptText!$B$1&CHAR(10)&ScriptText!$D$1)","v":""},{"$f":"IF(OrigTable!B1299=\"\",\"\",TEXT(OrigTable!B1299,\"00\"))","v":""},{"$f":"IF(OrigTable!B1299=\"\",\"\",ScriptText!$E$1&CHAR(10)&ScriptText!C1294)","v":""},{"$f":"IF(OrigTable!C1299=\"\",\"\",ScriptText!$B$1&CHAR(10)&ScriptText!$D$1)","v":""},{"$f":"IF(OrigTable!C1299=\"\",\"\",IF(LEN(OrigTable!C1299)>255,LEFT(OrigTable!C1299,250)&\". . .\",OrigTable!C1299))","v":""},{"$f":"IF(OrigTable!C1299=\"\",\"\",ScriptText!$E$1&CHAR(10)&ScriptText!$C$1)","v":""},{"$f":"IF(OrigTable!D1299=\"\",\"\",ScriptText!$B$1&CHAR(10)&ScriptText!$D$1)","v":""},{"$f":"IF(OrigTable!D1299=\"\",\"\",TEXT(OrigTable!D1299,\"00\"))","v":""},{"$f":"IF(OrigTable!D1299=\"\",\"\",ScriptText!$E$1&CHAR(10)&ScriptText!$C$1)","v":""},{"$f":"IF(OrigTable!E1299=\"\",\"\",ScriptText!$B$1&CHAR(10)&ScriptText!$D$1)","v":""},{"$f":"IF(OrigTable!E1299=\"\",\"\",TEXT(OrigTable!E1299,\"00\"))","v":""},{"$f":"IF(OrigTable!E1299=\"\",\"\",ScriptText!$E$1&CHAR(10)&ScriptText!$C$1)","v":""},{"$f":"IF(OrigTable!F1299=\"\",\"\",ScriptText!$B$1&CHAR(10)&ScriptText!$D$1)","v":""},{"$f":"IF(OrigTable!F1299=\"\",\"\",TEXT(OrigTable!F1299,\"00\"))","v":""},{"$f":"IF(OrigTable!F1299=\"\",\"\",ScriptText!$E$1&CHAR(10)&ScriptText!$C$1)","v":""},{"$f":"IF(OrigTable!G1299=\"\",\"\",ScriptText!$B$1&CHAR(10)&ScriptText!$D$1)","v":""},{"$f":"IF(OrigTable!G1299=\"\",\"\",TEXT(OrigTable!G1299,\"00\"))","v":""},{"$f":"IF(OrigTable!G1299=\"\",\"\",ScriptText!$E$1&CHAR(10)&ScriptText!$C$1)","v":""},0]
["\n\n\n",{"$f":"IF(OrigTable!A1300=\"\",\"\",ScriptText!$B$1&CHAR(10)&ScriptText!$D$1)","v":""},{"$f":"IF(OrigTable!A1300=\"\",\"\",TEXT(OrigTable!A1300,\"00\"))","v":""},{"$f":"IF(OrigTable!A1300=\"\",\"\",ScriptText!$E$1&CHAR(10)&ScriptText!$C$1)","v":""},{"$f":"IF(OrigTable!B1300=\"\",\"\",ScriptText!$B$1&CHAR(10)&ScriptText!$D$1)","v":""},{"$f":"IF(OrigTable!B1300=\"\",\"\",TEXT(OrigTable!B1300,\"00\"))","v":""},{"$f":"IF(OrigTable!B1300=\"\",\"\",ScriptText!$E$1&CHAR(10)&ScriptText!C1295)","v":""},{"$f":"IF(OrigTable!C1300=\"\",\"\",ScriptText!$B$1&CHAR(10)&ScriptText!$D$1)","v":""},{"$f":"IF(OrigTable!C1300=\"\",\"\",IF(LEN(OrigTable!C1300)>255,LEFT(OrigTable!C1300,250)&\". . .\",OrigTable!C1300))","v":""},{"$f":"IF(OrigTable!C1300=\"\",\"\",ScriptText!$E$1&CHAR(10)&ScriptText!$C$1)","v":""},{"$f":"IF(OrigTable!D1300=\"\",\"\",ScriptText!$B$1&CHAR(10)&ScriptText!$D$1)","v":""},{"$f":"IF(OrigTable!D1300=\"\",\"\",TEXT(OrigTable!D1300,\"00\"))","v":""},{"$f":"IF(OrigTable!D1300=\"\",\"\",ScriptText!$E$1&CHAR(10)&ScriptText!$C$1)","v":""},{"$f":"IF(OrigTable!E1300=\"\",\"\",ScriptText!$B$1&CHAR(10)&ScriptText!$D$1)","v":""},{"$f":"IF(OrigTable!E1300=\"\",\"\",TEXT(OrigTable!E1300,\"00\"))","v":""},{"$f":"IF(OrigTable!E1300=\"\",\"\",ScriptText!$E$1&CHAR(10)&ScriptText!$C$1)","v":""},{"$f":"IF(OrigTable!F1300=\"\",\"\",ScriptText!$B$1&CHAR(10)&ScriptText!$D$1)","v":""},{"$f":"IF(OrigTable!F1300=\"\",\"\",TEXT(OrigTable!F1300,\"00\"))","v":""},{"$f":"IF(OrigTable!F1300=\"\",\"\",ScriptText!$E$1&CHAR(10)&ScriptText!$C$1)","v":""},{"$f":"IF(OrigTable!G1300=\"\",\"\",ScriptText!$B$1&CHAR(10)&ScriptText!$D$1)","v":""},{"$f":"IF(OrigTable!G1300=\"\",\"\",TEXT(OrigTable!G1300,\"00\"))","v":""},{"$f":"IF(OrigTable!G1300=\"\",\"\",ScriptText!$E$1&CHAR(10)&ScriptText!$C$1)","v":""},0]
["\n\n\n",{"$f":"IF(OrigTable!A1301=\"\",\"\",ScriptText!$B$1&CHAR(10)&ScriptText!$D$1)","v":""},{"$f":"IF(OrigTable!A1301=\"\",\"\",TEXT(OrigTable!A1301,\"00\"))","v":""},{"$f":"IF(OrigTable!A1301=\"\",\"\",ScriptText!$E$1&CHAR(10)&ScriptText!$C$1)","v":""},{"$f":"IF(OrigTable!B1301=\"\",\"\",ScriptText!$B$1&CHAR(10)&ScriptText!$D$1)","v":""},{"$f":"IF(OrigTable!B1301=\"\",\"\",TEXT(OrigTable!B1301,\"00\"))","v":""},{"$f":"IF(OrigTable!B1301=\"\",\"\",ScriptText!$E$1&CHAR(10)&ScriptText!C1296)","v":""},{"$f":"IF(OrigTable!C1301=\"\",\"\",ScriptText!$B$1&CHAR(10)&ScriptText!$D$1)","v":""},{"$f":"IF(OrigTable!C1301=\"\",\"\",IF(LEN(OrigTable!C1301)>255,LEFT(OrigTable!C1301,250)&\". . .\",OrigTable!C1301))","v":""},{"$f":"IF(OrigTable!C1301=\"\",\"\",ScriptText!$E$1&CHAR(10)&ScriptText!$C$1)","v":""},{"$f":"IF(OrigTable!D1301=\"\",\"\",ScriptText!$B$1&CHAR(10)&ScriptText!$D$1)","v":""},{"$f":"IF(OrigTable!D1301=\"\",\"\",TEXT(OrigTable!D1301,\"00\"))","v":""},{"$f":"IF(OrigTable!D1301=\"\",\"\",ScriptText!$E$1&CHAR(10)&ScriptText!$C$1)","v":""},{"$f":"IF(OrigTable!E1301=\"\",\"\",ScriptText!$B$1&CHAR(10)&ScriptText!$D$1)","v":""},{"$f":"IF(OrigTable!E1301=\"\",\"\",TEXT(OrigTable!E1301,\"00\"))","v":""},{"$f":"IF(OrigTable!E1301=\"\",\"\",ScriptText!$E$1&CHAR(10)&ScriptText!$C$1)","v":""},{"$f":"IF(OrigTable!F1301=\"\",\"\",ScriptText!$B$1&CHAR(10)&ScriptText!$D$1)","v":""},{"$f":"IF(OrigTable!F1301=\"\",\"\",TEXT(OrigTable!F1301,\"00\"))","v":""},{"$f":"IF(OrigTable!F1301=\"\",\"\",ScriptText!$E$1&CHAR(10)&ScriptText!$C$1)","v":""},{"$f":"IF(OrigTable!G1301=\"\",\"\",ScriptText!$B$1&CHAR(10)&ScriptText!$D$1)","v":""},{"$f":"IF(OrigTable!G1301=\"\",\"\",TEXT(OrigTable!G1301,\"00\"))","v":""},{"$f":"IF(OrigTable!G1301=\"\",\"\",ScriptText!$E$1&CHAR(10)&ScriptText!$C$1)","v":""},0]
["\n\n\n",{"$f":"IF(OrigTable!A1302=\"\",\"\",ScriptText!$B$1&CHAR(10)&ScriptText!$D$1)","v":""},{"$f":"IF(OrigTable!A1302=\"\",\"\",TEXT(OrigTable!A1302,\"00\"))","v":""},{"$f":"IF(OrigTable!A1302=\"\",\"\",ScriptText!$E$1&CHAR(10)&ScriptText!$C$1)","v":""},{"$f":"IF(OrigTable!B1302=\"\",\"\",ScriptText!$B$1&CHAR(10)&ScriptText!$D$1)","v":""},{"$f":"IF(OrigTable!B1302=\"\",\"\",TEXT(OrigTable!B1302,\"00\"))","v":""},{"$f":"IF(OrigTable!B1302=\"\",\"\",ScriptText!$E$1&CHAR(10)&ScriptText!C1297)","v":""},{"$f":"IF(OrigTable!C1302=\"\",\"\",ScriptText!$B$1&CHAR(10)&ScriptText!$D$1)","v":""},{"$f":"IF(OrigTable!C1302=\"\",\"\",IF(LEN(OrigTable!C1302)>255,LEFT(OrigTable!C1302,250)&\". . .\",OrigTable!C1302))","v":""},{"$f":"IF(OrigTable!C1302=\"\",\"\",ScriptText!$E$1&CHAR(10)&ScriptText!$C$1)","v":""},{"$f":"IF(OrigTable!D1302=\"\",\"\",ScriptText!$B$1&CHAR(10)&ScriptText!$D$1)","v":""},{"$f":"IF(OrigTable!D1302=\"\",\"\",TEXT(OrigTable!D1302,\"00\"))","v":""},{"$f":"IF(OrigTable!D1302=\"\",\"\",ScriptText!$E$1&CHAR(10)&ScriptText!$C$1)","v":""},{"$f":"IF(OrigTable!E1302=\"\",\"\",ScriptText!$B$1&CHAR(10)&ScriptText!$D$1)","v":""},{"$f":"IF(OrigTable!E1302=\"\",\"\",TEXT(OrigTable!E1302,\"00\"))","v":""},{"$f":"IF(OrigTable!E1302=\"\",\"\",ScriptText!$E$1&CHAR(10)&ScriptText!$C$1)","v":""},{"$f":"IF(OrigTable!F1302=\"\",\"\",ScriptText!$B$1&CHAR(10)&ScriptText!$D$1)","v":""},{"$f":"IF(OrigTable!F1302=\"\",\"\",TEXT(OrigTable!F1302,\"00\"))","v":""},{"$f":"IF(OrigTable!F1302=\"\",\"\",ScriptText!$E$1&CHAR(10)&ScriptText!$C$1)","v":""},{"$f":"IF(OrigTable!G1302=\"\",\"\",ScriptText!$B$1&CHAR(10)&ScriptText!$D$1)","v":""},{"$f":"IF(OrigTable!G1302=\"\",\"\",TEXT(OrigTable!G1302,\"00\"))","v":""},{"$f":"IF(OrigTable!G1302=\"\",\"\",ScriptText!$E$1&CHAR(10)&ScriptText!$C$1)","v":""},0]
["\n\n\n",{"$f":"IF(OrigTable!A1303=\"\",\"\",ScriptText!$B$1&CHAR(10)&ScriptText!$D$1)","v":""},{"$f":"IF(OrigTable!A1303=\"\",\"\",TEXT(OrigTable!A1303,\"00\"))","v":""},{"$f":"IF(OrigTable!A1303=\"\",\"\",ScriptText!$E$1&CHAR(10)&ScriptText!$C$1)","v":""},{"$f":"IF(OrigTable!B1303=\"\",\"\",ScriptText!$B$1&CHAR(10)&ScriptText!$D$1)","v":""},{"$f":"IF(OrigTable!B1303=\"\",\"\",TEXT(OrigTable!B1303,\"00\"))","v":""},{"$f":"IF(OrigTable!B1303=\"\",\"\",ScriptText!$E$1&CHAR(10)&ScriptText!C1298)","v":""},{"$f":"IF(OrigTable!C1303=\"\",\"\",ScriptText!$B$1&CHAR(10)&ScriptText!$D$1)","v":""},{"$f":"IF(OrigTable!C1303=\"\",\"\",IF(LEN(OrigTable!C1303)>255,LEFT(OrigTable!C1303,250)&\". . .\",OrigTable!C1303))","v":""},{"$f":"IF(OrigTable!C1303=\"\",\"\",ScriptText!$E$1&CHAR(10)&ScriptText!$C$1)","v":""},{"$f":"IF(OrigTable!D1303=\"\",\"\",ScriptText!$B$1&CHAR(10)&ScriptText!$D$1)","v":""},{"$f":"IF(OrigTable!D1303=\"\",\"\",TEXT(OrigTable!D1303,\"00\"))","v":""},{"$f":"IF(OrigTable!D1303=\"\",\"\",ScriptText!$E$1&CHAR(10)&ScriptText!$C$1)","v":""},{"$f":"IF(OrigTable!E1303=\"\",\"\",ScriptText!$B$1&CHAR(10)&ScriptText!$D$1)","v":""},{"$f":"IF(OrigTable!E1303=\"\",\"\",TEXT(OrigTable!E1303,\"00\"))","v":""},{"$f":"IF(OrigTable!E1303=\"\",\"\",ScriptText!$E$1&CHAR(10)&ScriptText!$C$1)","v":""},{"$f":"IF(OrigTable!F1303=\"\",\"\",ScriptText!$B$1&CHAR(10)&ScriptText!$D$1)","v":""},{"$f":"IF(OrigTable!F1303=\"\",\"\",TEXT(OrigTable!F1303,\"00\"))","v":""},{"$f":"IF(OrigTable!F1303=\"\",\"\",ScriptText!$E$1&CHAR(10)&ScriptText!$C$1)","v":""},{"$f":"IF(OrigTable!G1303=\"\",\"\",ScriptText!$B$1&CHAR(10)&ScriptText!$D$1)","v":""},{"$f":"IF(OrigTable!G1303=\"\",\"\",TEXT(OrigTable!G1303,\"00\"))","v":""},{"$f":"IF(OrigTable!G1303=\"\",\"\",ScriptText!$E$1&CHAR(10)&ScriptText!$C$1)","v":""},0]
["\n\n\n",{"$f":"IF(OrigTable!A1304=\"\",\"\",ScriptText!$B$1&CHAR(10)&ScriptText!$D$1)","v":""},{"$f":"IF(OrigTable!A1304=\"\",\"\",TEXT(OrigTable!A1304,\"00\"))","v":""},{"$f":"IF(OrigTable!A1304=\"\",\"\",ScriptText!$E$1&CHAR(10)&ScriptText!$C$1)","v":""},{"$f":"IF(OrigTable!B1304=\"\",\"\",ScriptText!$B$1&CHAR(10)&ScriptText!$D$1)","v":""},{"$f":"IF(OrigTable!B1304=\"\",\"\",TEXT(OrigTable!B1304,\"00\"))","v":""},{"$f":"IF(OrigTable!B1304=\"\",\"\",ScriptText!$E$1&CHAR(10)&ScriptText!C1299)","v":""},{"$f":"IF(OrigTable!C1304=\"\",\"\",ScriptText!$B$1&CHAR(10)&ScriptText!$D$1)","v":""},{"$f":"IF(OrigTable!C1304=\"\",\"\",IF(LEN(OrigTable!C1304)>255,LEFT(OrigTable!C1304,250)&\". . .\",OrigTable!C1304))","v":""},{"$f":"IF(OrigTable!C1304=\"\",\"\",ScriptText!$E$1&CHAR(10)&ScriptText!$C$1)","v":""},{"$f":"IF(OrigTable!D1304=\"\",\"\",ScriptText!$B$1&CHAR(10)&ScriptText!$D$1)","v":""},{"$f":"IF(OrigTable!D1304=\"\",\"\",TEXT(OrigTable!D1304,\"00\"))","v":""},{"$f":"IF(OrigTable!D1304=\"\",\"\",ScriptText!$E$1&CHAR(10)&ScriptText!$C$1)","v":""},{"$f":"IF(OrigTable!E1304=\"\",\"\",ScriptText!$B$1&CHAR(10)&ScriptText!$D$1)","v":""},{"$f":"IF(OrigTable!E1304=\"\",\"\",TEXT(OrigTable!E1304,\"00\"))","v":""},{"$f":"IF(OrigTable!E1304=\"\",\"\",ScriptText!$E$1&CHAR(10)&ScriptText!$C$1)","v":""},{"$f":"IF(OrigTable!F1304=\"\",\"\",ScriptText!$B$1&CHAR(10)&ScriptText!$D$1)","v":""},{"$f":"IF(OrigTable!F1304=\"\",\"\",TEXT(OrigTable!F1304,\"00\"))","v":""},{"$f":"IF(OrigTable!F1304=\"\",\"\",ScriptText!$E$1&CHAR(10)&ScriptText!$C$1)","v":""},{"$f":"IF(OrigTable!G1304=\"\",\"\",ScriptText!$B$1&CHAR(10)&ScriptText!$D$1)","v":""},{"$f":"IF(OrigTable!G1304=\"\",\"\",TEXT(OrigTable!G1304,\"00\"))","v":""},{"$f":"IF(OrigTable!G1304=\"\",\"\",ScriptText!$E$1&CHAR(10)&ScriptText!$C$1)","v":""},0]
["\n\n\n",{"$f":"IF(OrigTable!A1305=\"\",\"\",ScriptText!$B$1&CHAR(10)&ScriptText!$D$1)","v":""},{"$f":"IF(OrigTable!A1305=\"\",\"\",TEXT(OrigTable!A1305,\"00\"))","v":""},{"$f":"IF(OrigTable!A1305=\"\",\"\",ScriptText!$E$1&CHAR(10)&ScriptText!$C$1)","v":""},{"$f":"IF(OrigTable!B1305=\"\",\"\",ScriptText!$B$1&CHAR(10)&ScriptText!$D$1)","v":""},{"$f":"IF(OrigTable!B1305=\"\",\"\",TEXT(OrigTable!B1305,\"00\"))","v":""},{"$f":"IF(OrigTable!B1305=\"\",\"\",ScriptText!$E$1&CHAR(10)&ScriptText!C1300)","v":""},{"$f":"IF(OrigTable!C1305=\"\",\"\",ScriptText!$B$1&CHAR(10)&ScriptText!$D$1)","v":""},{"$f":"IF(OrigTable!C1305=\"\",\"\",IF(LEN(OrigTable!C1305)>255,LEFT(OrigTable!C1305,250)&\". . .\",OrigTable!C1305))","v":""},{"$f":"IF(OrigTable!C1305=\"\",\"\",ScriptText!$E$1&CHAR(10)&ScriptText!$C$1)","v":""},{"$f":"IF(OrigTable!D1305=\"\",\"\",ScriptText!$B$1&CHAR(10)&ScriptText!$D$1)","v":""},{"$f":"IF(OrigTable!D1305=\"\",\"\",TEXT(OrigTable!D1305,\"00\"))","v":""},{"$f":"IF(OrigTable!D1305=\"\",\"\",ScriptText!$E$1&CHAR(10)&ScriptText!$C$1)","v":""},{"$f":"IF(OrigTable!E1305=\"\",\"\",ScriptText!$B$1&CHAR(10)&ScriptText!$D$1)","v":""},{"$f":"IF(OrigTable!E1305=\"\",\"\",TEXT(OrigTable!E1305,\"00\"))","v":""},{"$f":"IF(OrigTable!E1305=\"\",\"\",ScriptText!$E$1&CHAR(10)&ScriptText!$C$1)","v":""},{"$f":"IF(OrigTable!F1305=\"\",\"\",ScriptText!$B$1&CHAR(10)&ScriptText!$D$1)","v":""},{"$f":"IF(OrigTable!F1305=\"\",\"\",TEXT(OrigTable!F1305,\"00\"))","v":""},{"$f":"IF(OrigTable!F1305=\"\",\"\",ScriptText!$E$1&CHAR(10)&ScriptText!$C$1)","v":""},{"$f":"IF(OrigTable!G1305=\"\",\"\",ScriptText!$B$1&CHAR(10)&ScriptText!$D$1)","v":""},{"$f":"IF(OrigTable!G1305=\"\",\"\",TEXT(OrigTable!G1305,\"00\"))","v":""},{"$f":"IF(OrigTable!G1305=\"\",\"\",ScriptText!$E$1&CHAR(10)&ScriptText!$C$1)","v":""},0]
["\n\n\n",{"$f":"IF(OrigTable!A1306=\"\",\"\",ScriptText!$B$1&CHAR(10)&ScriptText!$D$1)","v":""},{"$f":"IF(OrigTable!A1306=\"\",\"\",TEXT(OrigTable!A1306,\"00\"))","v":""},{"$f":"IF(OrigTable!A1306=\"\",\"\",ScriptText!$E$1&CHAR(10)&ScriptText!$C$1)","v":""},{"$f":"IF(OrigTable!B1306=\"\",\"\",ScriptText!$B$1&CHAR(10)&ScriptText!$D$1)","v":""},{"$f":"IF(OrigTable!B1306=\"\",\"\",TEXT(OrigTable!B1306,\"00\"))","v":""},{"$f":"IF(OrigTable!B1306=\"\",\"\",ScriptText!$E$1&CHAR(10)&ScriptText!C1301)","v":""},{"$f":"IF(OrigTable!C1306=\"\",\"\",ScriptText!$B$1&CHAR(10)&ScriptText!$D$1)","v":""},{"$f":"IF(OrigTable!C1306=\"\",\"\",IF(LEN(OrigTable!C1306)>255,LEFT(OrigTable!C1306,250)&\". . .\",OrigTable!C1306))","v":""},{"$f":"IF(OrigTable!C1306=\"\",\"\",ScriptText!$E$1&CHAR(10)&ScriptText!$C$1)","v":""},{"$f":"IF(OrigTable!D1306=\"\",\"\",ScriptText!$B$1&CHAR(10)&ScriptText!$D$1)","v":""},{"$f":"IF(OrigTable!D1306=\"\",\"\",TEXT(OrigTable!D1306,\"00\"))","v":""},{"$f":"IF(OrigTable!D1306=\"\",\"\",ScriptText!$E$1&CHAR(10)&ScriptText!$C$1)","v":""},{"$f":"IF(OrigTable!E1306=\"\",\"\",ScriptText!$B$1&CHAR(10)&ScriptText!$D$1)","v":""},{"$f":"IF(OrigTable!E1306=\"\",\"\",TEXT(OrigTable!E1306,\"00\"))","v":""},{"$f":"IF(OrigTable!E1306=\"\",\"\",ScriptText!$E$1&CHAR(10)&ScriptText!$C$1)","v":""},{"$f":"IF(OrigTable!F1306=\"\",\"\",ScriptText!$B$1&CHAR(10)&ScriptText!$D$1)","v":""},{"$f":"IF(OrigTable!F1306=\"\",\"\",TEXT(OrigTable!F1306,\"00\"))","v":""},{"$f":"IF(OrigTable!F1306=\"\",\"\",ScriptText!$E$1&CHAR(10)&ScriptText!$C$1)","v":""},{"$f":"IF(OrigTable!G1306=\"\",\"\",ScriptText!$B$1&CHAR(10)&ScriptText!$D$1)","v":""},{"$f":"IF(OrigTable!G1306=\"\",\"\",TEXT(OrigTable!G1306,\"00\"))","v":""},{"$f":"IF(OrigTable!G1306=\"\",\"\",ScriptText!$E$1&CHAR(10)&ScriptText!$C$1)","v":""},0]
["\n\n\n",{"$f":"IF(OrigTable!A1307=\"\",\"\",ScriptText!$B$1&CHAR(10)&ScriptText!$D$1)","v":""},{"$f":"IF(OrigTable!A1307=\"\",\"\",TEXT(OrigTable!A1307,\"00\"))","v":""},{"$f":"IF(OrigTable!A1307=\"\",\"\",ScriptText!$E$1&CHAR(10)&ScriptText!$C$1)","v":""},{"$f":"IF(OrigTable!B1307=\"\",\"\",ScriptText!$B$1&CHAR(10)&ScriptText!$D$1)","v":""},{"$f":"IF(OrigTable!B1307=\"\",\"\",TEXT(OrigTable!B1307,\"00\"))","v":""},{"$f":"IF(OrigTable!B1307=\"\",\"\",ScriptText!$E$1&CHAR(10)&ScriptText!C1302)","v":""},{"$f":"IF(OrigTable!C1307=\"\",\"\",ScriptText!$B$1&CHAR(10)&ScriptText!$D$1)","v":""},{"$f":"IF(OrigTable!C1307=\"\",\"\",IF(LEN(OrigTable!C1307)>255,LEFT(OrigTable!C1307,250)&\". . .\",OrigTable!C1307))","v":""},{"$f":"IF(OrigTable!C1307=\"\",\"\",ScriptText!$E$1&CHAR(10)&ScriptText!$C$1)","v":""},{"$f":"IF(OrigTable!D1307=\"\",\"\",ScriptText!$B$1&CHAR(10)&ScriptText!$D$1)","v":""},{"$f":"IF(OrigTable!D1307=\"\",\"\",TEXT(OrigTable!D1307,\"00\"))","v":""},{"$f":"IF(OrigTable!D1307=\"\",\"\",ScriptText!$E$1&CHAR(10)&ScriptText!$C$1)","v":""},{"$f":"IF(OrigTable!E1307=\"\",\"\",ScriptText!$B$1&CHAR(10)&ScriptText!$D$1)","v":""},{"$f":"IF(OrigTable!E1307=\"\",\"\",TEXT(OrigTable!E1307,\"00\"))","v":""},{"$f":"IF(OrigTable!E1307=\"\",\"\",ScriptText!$E$1&CHAR(10)&ScriptText!$C$1)","v":""},{"$f":"IF(OrigTable!F1307=\"\",\"\",ScriptText!$B$1&CHAR(10)&ScriptText!$D$1)","v":""},{"$f":"IF(OrigTable!F1307=\"\",\"\",TEXT(OrigTable!F1307,\"00\"))","v":""},{"$f":"IF(OrigTable!F1307=\"\",\"\",ScriptText!$E$1&CHAR(10)&ScriptText!$C$1)","v":""},{"$f":"IF(OrigTable!G1307=\"\",\"\",ScriptText!$B$1&CHAR(10)&ScriptText!$D$1)","v":""},{"$f":"IF(OrigTable!G1307=\"\",\"\",TEXT(OrigTable!G1307,\"00\"))","v":""},{"$f":"IF(OrigTable!G1307=\"\",\"\",ScriptText!$E$1&CHAR(10)&ScriptText!$C$1)","v":""},0]
["\n\n\n",{"$f":"IF(OrigTable!A1308=\"\",\"\",ScriptText!$B$1&CHAR(10)&ScriptText!$D$1)","v":""},{"$f":"IF(OrigTable!A1308=\"\",\"\",TEXT(OrigTable!A1308,\"00\"))","v":""},{"$f":"IF(OrigTable!A1308=\"\",\"\",ScriptText!$E$1&CHAR(10)&ScriptText!$C$1)","v":""},{"$f":"IF(OrigTable!B1308=\"\",\"\",ScriptText!$B$1&CHAR(10)&ScriptText!$D$1)","v":""},{"$f":"IF(OrigTable!B1308=\"\",\"\",TEXT(OrigTable!B1308,\"00\"))","v":""},{"$f":"IF(OrigTable!B1308=\"\",\"\",ScriptText!$E$1&CHAR(10)&ScriptText!C1303)","v":""},{"$f":"IF(OrigTable!C1308=\"\",\"\",ScriptText!$B$1&CHAR(10)&ScriptText!$D$1)","v":""},{"$f":"IF(OrigTable!C1308=\"\",\"\",IF(LEN(OrigTable!C1308)>255,LEFT(OrigTable!C1308,250)&\". . .\",OrigTable!C1308))","v":""},{"$f":"IF(OrigTable!C1308=\"\",\"\",ScriptText!$E$1&CHAR(10)&ScriptText!$C$1)","v":""},{"$f":"IF(OrigTable!D1308=\"\",\"\",ScriptText!$B$1&CHAR(10)&ScriptText!$D$1)","v":""},{"$f":"IF(OrigTable!D1308=\"\",\"\",TEXT(OrigTable!D1308,\"00\"))","v":""},{"$f":"IF(OrigTable!D1308=\"\",\"\",ScriptText!$E$1&CHAR(10)&ScriptText!$C$1)","v":""},{"$f":"IF(OrigTable!E1308=\"\",\"\",ScriptText!$B$1&CHAR(10)&ScriptText!$D$1)","v":""},{"$f":"IF(OrigTable!E1308=\"\",\"\",TEXT(OrigTable!E1308,\"00\"))","v":""},{"$f":"IF(OrigTable!E1308=\"\",\"\",ScriptText!$E$1&CHAR(10)&ScriptText!$C$1)","v":""},{"$f":"IF(OrigTable!F1308=\"\",\"\",ScriptText!$B$1&CHAR(10)&ScriptText!$D$1)","v":""},{"$f":"IF(OrigTable!F1308=\"\",\"\",TEXT(OrigTable!F1308,\"00\"))","v":""},{"$f":"IF(OrigTable!F1308=\"\",\"\",ScriptText!$E$1&CHAR(10)&ScriptText!$C$1)","v":""},{"$f":"IF(OrigTable!G1308=\"\",\"\",ScriptText!$B$1&CHAR(10)&ScriptText!$D$1)","v":""},{"$f":"IF(OrigTable!G1308=\"\",\"\",TEXT(OrigTable!G1308,\"00\"))","v":""},{"$f":"IF(OrigTable!G1308=\"\",\"\",ScriptText!$E$1&CHAR(10)&ScriptText!$C$1)","v":""},0]
["\n\n\n",{"$f":"IF(OrigTable!A1309=\"\",\"\",ScriptText!$B$1&CHAR(10)&ScriptText!$D$1)","v":""},{"$f":"IF(OrigTable!A1309=\"\",\"\",TEXT(OrigTable!A1309,\"00\"))","v":""},{"$f":"IF(OrigTable!A1309=\"\",\"\",ScriptText!$E$1&CHAR(10)&ScriptText!$C$1)","v":""},{"$f":"IF(OrigTable!B1309=\"\",\"\",ScriptText!$B$1&CHAR(10)&ScriptText!$D$1)","v":""},{"$f":"IF(OrigTable!B1309=\"\",\"\",TEXT(OrigTable!B1309,\"00\"))","v":""},{"$f":"IF(OrigTable!B1309=\"\",\"\",ScriptText!$E$1&CHAR(10)&ScriptText!C1304)","v":""},{"$f":"IF(OrigTable!C1309=\"\",\"\",ScriptText!$B$1&CHAR(10)&ScriptText!$D$1)","v":""},{"$f":"IF(OrigTable!C1309=\"\",\"\",IF(LEN(OrigTable!C1309)>255,LEFT(OrigTable!C1309,250)&\". . .\",OrigTable!C1309))","v":""},{"$f":"IF(OrigTable!C1309=\"\",\"\",ScriptText!$E$1&CHAR(10)&ScriptText!$C$1)","v":""},{"$f":"IF(OrigTable!D1309=\"\",\"\",ScriptText!$B$1&CHAR(10)&ScriptText!$D$1)","v":""},{"$f":"IF(OrigTable!D1309=\"\",\"\",TEXT(OrigTable!D1309,\"00\"))","v":""},{"$f":"IF(OrigTable!D1309=\"\",\"\",ScriptText!$E$1&CHAR(10)&ScriptText!$C$1)","v":""},{"$f":"IF(OrigTable!E1309=\"\",\"\",ScriptText!$B$1&CHAR(10)&ScriptText!$D$1)","v":""},{"$f":"IF(OrigTable!E1309=\"\",\"\",TEXT(OrigTable!E1309,\"00\"))","v":""},{"$f":"IF(OrigTable!E1309=\"\",\"\",ScriptText!$E$1&CHAR(10)&ScriptText!$C$1)","v":""},{"$f":"IF(OrigTable!F1309=\"\",\"\",ScriptText!$B$1&CHAR(10)&ScriptText!$D$1)","v":""},{"$f":"IF(OrigTable!F1309=\"\",\"\",TEXT(OrigTable!F1309,\"00\"))","v":""},{"$f":"IF(OrigTable!F1309=\"\",\"\",ScriptText!$E$1&CHAR(10)&ScriptText!$C$1)","v":""},{"$f":"IF(OrigTable!G1309=\"\",\"\",ScriptText!$B$1&CHAR(10)&ScriptText!$D$1)","v":""},{"$f":"IF(OrigTable!G1309=\"\",\"\",TEXT(OrigTable!G1309,\"00\"))","v":""},{"$f":"IF(OrigTable!G1309=\"\",\"\",ScriptText!$E$1&CHAR(10)&ScriptText!$C$1)","v":""},0]
["\n\n\n",{"$f":"IF(OrigTable!A1310=\"\",\"\",ScriptText!$B$1&CHAR(10)&ScriptText!$D$1)","v":""},{"$f":"IF(OrigTable!A1310=\"\",\"\",TEXT(OrigTable!A1310,\"00\"))","v":""},{"$f":"IF(OrigTable!A1310=\"\",\"\",ScriptText!$E$1&CHAR(10)&ScriptText!$C$1)","v":""},{"$f":"IF(OrigTable!B1310=\"\",\"\",ScriptText!$B$1&CHAR(10)&ScriptText!$D$1)","v":""},{"$f":"IF(OrigTable!B1310=\"\",\"\",TEXT(OrigTable!B1310,\"00\"))","v":""},{"$f":"IF(OrigTable!B1310=\"\",\"\",ScriptText!$E$1&CHAR(10)&ScriptText!C1305)","v":""},{"$f":"IF(OrigTable!C1310=\"\",\"\",ScriptText!$B$1&CHAR(10)&ScriptText!$D$1)","v":""},{"$f":"IF(OrigTable!C1310=\"\",\"\",IF(LEN(OrigTable!C1310)>255,LEFT(OrigTable!C1310,250)&\". . .\",OrigTable!C1310))","v":""},{"$f":"IF(OrigTable!C1310=\"\",\"\",ScriptText!$E$1&CHAR(10)&ScriptText!$C$1)","v":""},{"$f":"IF(OrigTable!D1310=\"\",\"\",ScriptText!$B$1&CHAR(10)&ScriptText!$D$1)","v":""},{"$f":"IF(OrigTable!D1310=\"\",\"\",TEXT(OrigTable!D1310,\"00\"))","v":""},{"$f":"IF(OrigTable!D1310=\"\",\"\",ScriptText!$E$1&CHAR(10)&ScriptText!$C$1)","v":""},{"$f":"IF(OrigTable!E1310=\"\",\"\",ScriptText!$B$1&CHAR(10)&ScriptText!$D$1)","v":""},{"$f":"IF(OrigTable!E1310=\"\",\"\",TEXT(OrigTable!E1310,\"00\"))","v":""},{"$f":"IF(OrigTable!E1310=\"\",\"\",ScriptText!$E$1&CHAR(10)&ScriptText!$C$1)","v":""},{"$f":"IF(OrigTable!F1310=\"\",\"\",ScriptText!$B$1&CHAR(10)&ScriptText!$D$1)","v":""},{"$f":"IF(OrigTable!F1310=\"\",\"\",TEXT(OrigTable!F1310,\"00\"))","v":""},{"$f":"IF(OrigTable!F1310=\"\",\"\",ScriptText!$E$1&CHAR(10)&ScriptText!$C$1)","v":""},{"$f":"IF(OrigTable!G1310=\"\",\"\",ScriptText!$B$1&CHAR(10)&ScriptText!$D$1)","v":""},{"$f":"IF(OrigTable!G1310=\"\",\"\",TEXT(OrigTable!G1310,\"00\"))","v":""},{"$f":"IF(OrigTable!G1310=\"\",\"\",ScriptText!$E$1&CHAR(10)&ScriptText!$C$1)","v":""},0]
["\n\n\n",{"$f":"IF(OrigTable!A1311=\"\",\"\",ScriptText!$B$1&CHAR(10)&ScriptText!$D$1)","v":""},{"$f":"IF(OrigTable!A1311=\"\",\"\",TEXT(OrigTable!A1311,\"00\"))","v":""},{"$f":"IF(OrigTable!A1311=\"\",\"\",ScriptText!$E$1&CHAR(10)&ScriptText!$C$1)","v":""},{"$f":"IF(OrigTable!B1311=\"\",\"\",ScriptText!$B$1&CHAR(10)&ScriptText!$D$1)","v":""},{"$f":"IF(OrigTable!B1311=\"\",\"\",TEXT(OrigTable!B1311,\"00\"))","v":""},{"$f":"IF(OrigTable!B1311=\"\",\"\",ScriptText!$E$1&CHAR(10)&ScriptText!C1306)","v":""},{"$f":"IF(OrigTable!C1311=\"\",\"\",ScriptText!$B$1&CHAR(10)&ScriptText!$D$1)","v":""},{"$f":"IF(OrigTable!C1311=\"\",\"\",IF(LEN(OrigTable!C1311)>255,LEFT(OrigTable!C1311,250)&\". . .\",OrigTable!C1311))","v":""},{"$f":"IF(OrigTable!C1311=\"\",\"\",ScriptText!$E$1&CHAR(10)&ScriptText!$C$1)","v":""},{"$f":"IF(OrigTable!D1311=\"\",\"\",ScriptText!$B$1&CHAR(10)&ScriptText!$D$1)","v":""},{"$f":"IF(OrigTable!D1311=\"\",\"\",TEXT(OrigTable!D1311,\"00\"))","v":""},{"$f":"IF(OrigTable!D1311=\"\",\"\",ScriptText!$E$1&CHAR(10)&ScriptText!$C$1)","v":""},{"$f":"IF(OrigTable!E1311=\"\",\"\",ScriptText!$B$1&CHAR(10)&ScriptText!$D$1)","v":""},{"$f":"IF(OrigTable!E1311=\"\",\"\",TEXT(OrigTable!E1311,\"00\"))","v":""},{"$f":"IF(OrigTable!E1311=\"\",\"\",ScriptText!$E$1&CHAR(10)&ScriptText!$C$1)","v":""},{"$f":"IF(OrigTable!F1311=\"\",\"\",ScriptText!$B$1&CHAR(10)&ScriptText!$D$1)","v":""},{"$f":"IF(OrigTable!F1311=\"\",\"\",TEXT(OrigTable!F1311,\"00\"))","v":""},{"$f":"IF(OrigTable!F1311=\"\",\"\",ScriptText!$E$1&CHAR(10)&ScriptText!$C$1)","v":""},{"$f":"IF(OrigTable!G1311=\"\",\"\",ScriptText!$B$1&CHAR(10)&ScriptText!$D$1)","v":""},{"$f":"IF(OrigTable!G1311=\"\",\"\",TEXT(OrigTable!G1311,\"00\"))","v":""},{"$f":"IF(OrigTable!G1311=\"\",\"\",ScriptText!$E$1&CHAR(10)&ScriptText!$C$1)","v":""},0]
["\n\n\n",{"$f":"IF(OrigTable!A1312=\"\",\"\",ScriptText!$B$1&CHAR(10)&ScriptText!$D$1)","v":""},{"$f":"IF(OrigTable!A1312=\"\",\"\",TEXT(OrigTable!A1312,\"00\"))","v":""},{"$f":"IF(OrigTable!A1312=\"\",\"\",ScriptText!$E$1&CHAR(10)&ScriptText!$C$1)","v":""},{"$f":"IF(OrigTable!B1312=\"\",\"\",ScriptText!$B$1&CHAR(10)&ScriptText!$D$1)","v":""},{"$f":"IF(OrigTable!B1312=\"\",\"\",TEXT(OrigTable!B1312,\"00\"))","v":""},{"$f":"IF(OrigTable!B1312=\"\",\"\",ScriptText!$E$1&CHAR(10)&ScriptText!C1307)","v":""},{"$f":"IF(OrigTable!C1312=\"\",\"\",ScriptText!$B$1&CHAR(10)&ScriptText!$D$1)","v":""},{"$f":"IF(OrigTable!C1312=\"\",\"\",IF(LEN(OrigTable!C1312)>255,LEFT(OrigTable!C1312,250)&\". . .\",OrigTable!C1312))","v":""},{"$f":"IF(OrigTable!C1312=\"\",\"\",ScriptText!$E$1&CHAR(10)&ScriptText!$C$1)","v":""},{"$f":"IF(OrigTable!D1312=\"\",\"\",ScriptText!$B$1&CHAR(10)&ScriptText!$D$1)","v":""},{"$f":"IF(OrigTable!D1312=\"\",\"\",TEXT(OrigTable!D1312,\"00\"))","v":""},{"$f":"IF(OrigTable!D1312=\"\",\"\",ScriptText!$E$1&CHAR(10)&ScriptText!$C$1)","v":""},{"$f":"IF(OrigTable!E1312=\"\",\"\",ScriptText!$B$1&CHAR(10)&ScriptText!$D$1)","v":""},{"$f":"IF(OrigTable!E1312=\"\",\"\",TEXT(OrigTable!E1312,\"00\"))","v":""},{"$f":"IF(OrigTable!E1312=\"\",\"\",ScriptText!$E$1&CHAR(10)&ScriptText!$C$1)","v":""},{"$f":"IF(OrigTable!F1312=\"\",\"\",ScriptText!$B$1&CHAR(10)&ScriptText!$D$1)","v":""},{"$f":"IF(OrigTable!F1312=\"\",\"\",TEXT(OrigTable!F1312,\"00\"))","v":""},{"$f":"IF(OrigTable!F1312=\"\",\"\",ScriptText!$E$1&CHAR(10)&ScriptText!$C$1)","v":""},{"$f":"IF(OrigTable!G1312=\"\",\"\",ScriptText!$B$1&CHAR(10)&ScriptText!$D$1)","v":""},{"$f":"IF(OrigTable!G1312=\"\",\"\",TEXT(OrigTable!G1312,\"00\"))","v":""},{"$f":"IF(OrigTable!G1312=\"\",\"\",ScriptText!$E$1&CHAR(10)&ScriptText!$C$1)","v":""},0]
["\n\n\n",{"$f":"IF(OrigTable!A1313=\"\",\"\",ScriptText!$B$1&CHAR(10)&ScriptText!$D$1)","v":""},{"$f":"IF(OrigTable!A1313=\"\",\"\",TEXT(OrigTable!A1313,\"00\"))","v":""},{"$f":"IF(OrigTable!A1313=\"\",\"\",ScriptText!$E$1&CHAR(10)&ScriptText!$C$1)","v":""},{"$f":"IF(OrigTable!B1313=\"\",\"\",ScriptText!$B$1&CHAR(10)&ScriptText!$D$1)","v":""},{"$f":"IF(OrigTable!B1313=\"\",\"\",TEXT(OrigTable!B1313,\"00\"))","v":""},{"$f":"IF(OrigTable!B1313=\"\",\"\",ScriptText!$E$1&CHAR(10)&ScriptText!C1308)","v":""},{"$f":"IF(OrigTable!C1313=\"\",\"\",ScriptText!$B$1&CHAR(10)&ScriptText!$D$1)","v":""},{"$f":"IF(OrigTable!C1313=\"\",\"\",IF(LEN(OrigTable!C1313)>255,LEFT(OrigTable!C1313,250)&\". . .\",OrigTable!C1313))","v":""},{"$f":"IF(OrigTable!C1313=\"\",\"\",ScriptText!$E$1&CHAR(10)&ScriptText!$C$1)","v":""},{"$f":"IF(OrigTable!D1313=\"\",\"\",ScriptText!$B$1&CHAR(10)&ScriptText!$D$1)","v":""},{"$f":"IF(OrigTable!D1313=\"\",\"\",TEXT(OrigTable!D1313,\"00\"))","v":""},{"$f":"IF(OrigTable!D1313=\"\",\"\",ScriptText!$E$1&CHAR(10)&ScriptText!$C$1)","v":""},{"$f":"IF(OrigTable!E1313=\"\",\"\",ScriptText!$B$1&CHAR(10)&ScriptText!$D$1)","v":""},{"$f":"IF(OrigTable!E1313=\"\",\"\",TEXT(OrigTable!E1313,\"00\"))","v":""},{"$f":"IF(OrigTable!E1313=\"\",\"\",ScriptText!$E$1&CHAR(10)&ScriptText!$C$1)","v":""},{"$f":"IF(OrigTable!F1313=\"\",\"\",ScriptText!$B$1&CHAR(10)&ScriptText!$D$1)","v":""},{"$f":"IF(OrigTable!F1313=\"\",\"\",TEXT(OrigTable!F1313,\"00\"))","v":""},{"$f":"IF(OrigTable!F1313=\"\",\"\",ScriptText!$E$1&CHAR(10)&ScriptText!$C$1)","v":""},{"$f":"IF(OrigTable!G1313=\"\",\"\",ScriptText!$B$1&CHAR(10)&ScriptText!$D$1)","v":""},{"$f":"IF(OrigTable!G1313=\"\",\"\",TEXT(OrigTable!G1313,\"00\"))","v":""},{"$f":"IF(OrigTable!G1313=\"\",\"\",ScriptText!$E$1&CHAR(10)&ScriptText!$C$1)","v":""},0]
["\n\n\n",{"$f":"IF(OrigTable!A1314=\"\",\"\",ScriptText!$B$1&CHAR(10)&ScriptText!$D$1)","v":""},{"$f":"IF(OrigTable!A1314=\"\",\"\",TEXT(OrigTable!A1314,\"00\"))","v":""},{"$f":"IF(OrigTable!A1314=\"\",\"\",ScriptText!$E$1&CHAR(10)&ScriptText!$C$1)","v":""},{"$f":"IF(OrigTable!B1314=\"\",\"\",ScriptText!$B$1&CHAR(10)&ScriptText!$D$1)","v":""},{"$f":"IF(OrigTable!B1314=\"\",\"\",TEXT(OrigTable!B1314,\"00\"))","v":""},{"$f":"IF(OrigTable!B1314=\"\",\"\",ScriptText!$E$1&CHAR(10)&ScriptText!C1309)","v":""},{"$f":"IF(OrigTable!C1314=\"\",\"\",ScriptText!$B$1&CHAR(10)&ScriptText!$D$1)","v":""},{"$f":"IF(OrigTable!C1314=\"\",\"\",IF(LEN(OrigTable!C1314)>255,LEFT(OrigTable!C1314,250)&\". . .\",OrigTable!C1314))","v":""},{"$f":"IF(OrigTable!C1314=\"\",\"\",ScriptText!$E$1&CHAR(10)&ScriptText!$C$1)","v":""},{"$f":"IF(OrigTable!D1314=\"\",\"\",ScriptText!$B$1&CHAR(10)&ScriptText!$D$1)","v":""},{"$f":"IF(OrigTable!D1314=\"\",\"\",TEXT(OrigTable!D1314,\"00\"))","v":""},{"$f":"IF(OrigTable!D1314=\"\",\"\",ScriptText!$E$1&CHAR(10)&ScriptText!$C$1)","v":""},{"$f":"IF(OrigTable!E1314=\"\",\"\",ScriptText!$B$1&CHAR(10)&ScriptText!$D$1)","v":""},{"$f":"IF(OrigTable!E1314=\"\",\"\",TEXT(OrigTable!E1314,\"00\"))","v":""},{"$f":"IF(OrigTable!E1314=\"\",\"\",ScriptText!$E$1&CHAR(10)&ScriptText!$C$1)","v":""},{"$f":"IF(OrigTable!F1314=\"\",\"\",ScriptText!$B$1&CHAR(10)&ScriptText!$D$1)","v":""},{"$f":"IF(OrigTable!F1314=\"\",\"\",TEXT(OrigTable!F1314,\"00\"))","v":""},{"$f":"IF(OrigTable!F1314=\"\",\"\",ScriptText!$E$1&CHAR(10)&ScriptText!$C$1)","v":""},{"$f":"IF(OrigTable!G1314=\"\",\"\",ScriptText!$B$1&CHAR(10)&ScriptText!$D$1)","v":""},{"$f":"IF(OrigTable!G1314=\"\",\"\",TEXT(OrigTable!G1314,\"00\"))","v":""},{"$f":"IF(OrigTable!G1314=\"\",\"\",ScriptText!$E$1&CHAR(10)&ScriptText!$C$1)","v":""},0]
["\n\n\n",{"$f":"IF(OrigTable!A1315=\"\",\"\",ScriptText!$B$1&CHAR(10)&ScriptText!$D$1)","v":""},{"$f":"IF(OrigTable!A1315=\"\",\"\",TEXT(OrigTable!A1315,\"00\"))","v":""},{"$f":"IF(OrigTable!A1315=\"\",\"\",ScriptText!$E$1&CHAR(10)&ScriptText!$C$1)","v":""},{"$f":"IF(OrigTable!B1315=\"\",\"\",ScriptText!$B$1&CHAR(10)&ScriptText!$D$1)","v":""},{"$f":"IF(OrigTable!B1315=\"\",\"\",TEXT(OrigTable!B1315,\"00\"))","v":""},{"$f":"IF(OrigTable!B1315=\"\",\"\",ScriptText!$E$1&CHAR(10)&ScriptText!C1310)","v":""},{"$f":"IF(OrigTable!C1315=\"\",\"\",ScriptText!$B$1&CHAR(10)&ScriptText!$D$1)","v":""},{"$f":"IF(OrigTable!C1315=\"\",\"\",IF(LEN(OrigTable!C1315)>255,LEFT(OrigTable!C1315,250)&\". . .\",OrigTable!C1315))","v":""},{"$f":"IF(OrigTable!C1315=\"\",\"\",ScriptText!$E$1&CHAR(10)&ScriptText!$C$1)","v":""},{"$f":"IF(OrigTable!D1315=\"\",\"\",ScriptText!$B$1&CHAR(10)&ScriptText!$D$1)","v":""},{"$f":"IF(OrigTable!D1315=\"\",\"\",TEXT(OrigTable!D1315,\"00\"))","v":""},{"$f":"IF(OrigTable!D1315=\"\",\"\",ScriptText!$E$1&CHAR(10)&ScriptText!$C$1)","v":""},{"$f":"IF(OrigTable!E1315=\"\",\"\",ScriptText!$B$1&CHAR(10)&ScriptText!$D$1)","v":""},{"$f":"IF(OrigTable!E1315=\"\",\"\",TEXT(OrigTable!E1315,\"00\"))","v":""},{"$f":"IF(OrigTable!E1315=\"\",\"\",ScriptText!$E$1&CHAR(10)&ScriptText!$C$1)","v":""},{"$f":"IF(OrigTable!F1315=\"\",\"\",ScriptText!$B$1&CHAR(10)&ScriptText!$D$1)","v":""},{"$f":"IF(OrigTable!F1315=\"\",\"\",TEXT(OrigTable!F1315,\"00\"))","v":""},{"$f":"IF(OrigTable!F1315=\"\",\"\",ScriptText!$E$1&CHAR(10)&ScriptText!$C$1)","v":""},{"$f":"IF(OrigTable!G1315=\"\",\"\",ScriptText!$B$1&CHAR(10)&ScriptText!$D$1)","v":""},{"$f":"IF(OrigTable!G1315=\"\",\"\",TEXT(OrigTable!G1315,\"00\"))","v":""},{"$f":"IF(OrigTable!G1315=\"\",\"\",ScriptText!$E$1&CHAR(10)&ScriptText!$C$1)","v":""},0]
["\n\n\n",{"$f":"IF(OrigTable!A1316=\"\",\"\",ScriptText!$B$1&CHAR(10)&ScriptText!$D$1)","v":""},{"$f":"IF(OrigTable!A1316=\"\",\"\",TEXT(OrigTable!A1316,\"00\"))","v":""},{"$f":"IF(OrigTable!A1316=\"\",\"\",ScriptText!$E$1&CHAR(10)&ScriptText!$C$1)","v":""},{"$f":"IF(OrigTable!B1316=\"\",\"\",ScriptText!$B$1&CHAR(10)&ScriptText!$D$1)","v":""},{"$f":"IF(OrigTable!B1316=\"\",\"\",TEXT(OrigTable!B1316,\"00\"))","v":""},{"$f":"IF(OrigTable!B1316=\"\",\"\",ScriptText!$E$1&CHAR(10)&ScriptText!C1311)","v":""},{"$f":"IF(OrigTable!C1316=\"\",\"\",ScriptText!$B$1&CHAR(10)&ScriptText!$D$1)","v":""},{"$f":"IF(OrigTable!C1316=\"\",\"\",IF(LEN(OrigTable!C1316)>255,LEFT(OrigTable!C1316,250)&\". . .\",OrigTable!C1316))","v":""},{"$f":"IF(OrigTable!C1316=\"\",\"\",ScriptText!$E$1&CHAR(10)&ScriptText!$C$1)","v":""},{"$f":"IF(OrigTable!D1316=\"\",\"\",ScriptText!$B$1&CHAR(10)&ScriptText!$D$1)","v":""},{"$f":"IF(OrigTable!D1316=\"\",\"\",TEXT(OrigTable!D1316,\"00\"))","v":""},{"$f":"IF(OrigTable!D1316=\"\",\"\",ScriptText!$E$1&CHAR(10)&ScriptText!$C$1)","v":""},{"$f":"IF(OrigTable!E1316=\"\",\"\",ScriptText!$B$1&CHAR(10)&ScriptText!$D$1)","v":""},{"$f":"IF(OrigTable!E1316=\"\",\"\",TEXT(OrigTable!E1316,\"00\"))","v":""},{"$f":"IF(OrigTable!E1316=\"\",\"\",ScriptText!$E$1&CHAR(10)&ScriptText!$C$1)","v":""},{"$f":"IF(OrigTable!F1316=\"\",\"\",ScriptText!$B$1&CHAR(10)&ScriptText!$D$1)","v":""},{"$f":"IF(OrigTable!F1316=\"\",\"\",TEXT(OrigTable!F1316,\"00\"))","v":""},{"$f":"IF(OrigTable!F1316=\"\",\"\",ScriptText!$E$1&CHAR(10)&ScriptText!$C$1)","v":""},{"$f":"IF(OrigTable!G1316=\"\",\"\",ScriptText!$B$1&CHAR(10)&ScriptText!$D$1)","v":""},{"$f":"IF(OrigTable!G1316=\"\",\"\",TEXT(OrigTable!G1316,\"00\"))","v":""},{"$f":"IF(OrigTable!G1316=\"\",\"\",ScriptText!$E$1&CHAR(10)&ScriptText!$C$1)","v":""},0]
["\n\n\n",{"$f":"IF(OrigTable!A1317=\"\",\"\",ScriptText!$B$1&CHAR(10)&ScriptText!$D$1)","v":""},{"$f":"IF(OrigTable!A1317=\"\",\"\",TEXT(OrigTable!A1317,\"00\"))","v":""},{"$f":"IF(OrigTable!A1317=\"\",\"\",ScriptText!$E$1&CHAR(10)&ScriptText!$C$1)","v":""},{"$f":"IF(OrigTable!B1317=\"\",\"\",ScriptText!$B$1&CHAR(10)&ScriptText!$D$1)","v":""},{"$f":"IF(OrigTable!B1317=\"\",\"\",TEXT(OrigTable!B1317,\"00\"))","v":""},{"$f":"IF(OrigTable!B1317=\"\",\"\",ScriptText!$E$1&CHAR(10)&ScriptText!C1312)","v":""},{"$f":"IF(OrigTable!C1317=\"\",\"\",ScriptText!$B$1&CHAR(10)&ScriptText!$D$1)","v":""},{"$f":"IF(OrigTable!C1317=\"\",\"\",IF(LEN(OrigTable!C1317)>255,LEFT(OrigTable!C1317,250)&\". . .\",OrigTable!C1317))","v":""},{"$f":"IF(OrigTable!C1317=\"\",\"\",ScriptText!$E$1&CHAR(10)&ScriptText!$C$1)","v":""},{"$f":"IF(OrigTable!D1317=\"\",\"\",ScriptText!$B$1&CHAR(10)&ScriptText!$D$1)","v":""},{"$f":"IF(OrigTable!D1317=\"\",\"\",TEXT(OrigTable!D1317,\"00\"))","v":""},{"$f":"IF(OrigTable!D1317=\"\",\"\",ScriptText!$E$1&CHAR(10)&ScriptText!$C$1)","v":""},{"$f":"IF(OrigTable!E1317=\"\",\"\",ScriptText!$B$1&CHAR(10)&ScriptText!$D$1)","v":""},{"$f":"IF(OrigTable!E1317=\"\",\"\",TEXT(OrigTable!E1317,\"00\"))","v":""},{"$f":"IF(OrigTable!E1317=\"\",\"\",ScriptText!$E$1&CHAR(10)&ScriptText!$C$1)","v":""},{"$f":"IF(OrigTable!F1317=\"\",\"\",ScriptText!$B$1&CHAR(10)&ScriptText!$D$1)","v":""},{"$f":"IF(OrigTable!F1317=\"\",\"\",TEXT(OrigTable!F1317,\"00\"))","v":""},{"$f":"IF(OrigTable!F1317=\"\",\"\",ScriptText!$E$1&CHAR(10)&ScriptText!$C$1)","v":""},{"$f":"IF(OrigTable!G1317=\"\",\"\",ScriptText!$B$1&CHAR(10)&ScriptText!$D$1)","v":""},{"$f":"IF(OrigTable!G1317=\"\",\"\",TEXT(OrigTable!G1317,\"00\"))","v":""},{"$f":"IF(OrigTable!G1317=\"\",\"\",ScriptText!$E$1&CHAR(10)&ScriptText!$C$1)","v":""},0]
["\n\n\n",{"$f":"IF(OrigTable!A1318=\"\",\"\",ScriptText!$B$1&CHAR(10)&ScriptText!$D$1)","v":""},{"$f":"IF(OrigTable!A1318=\"\",\"\",TEXT(OrigTable!A1318,\"00\"))","v":""},{"$f":"IF(OrigTable!A1318=\"\",\"\",ScriptText!$E$1&CHAR(10)&ScriptText!$C$1)","v":""},{"$f":"IF(OrigTable!B1318=\"\",\"\",ScriptText!$B$1&CHAR(10)&ScriptText!$D$1)","v":""},{"$f":"IF(OrigTable!B1318=\"\",\"\",TEXT(OrigTable!B1318,\"00\"))","v":""},{"$f":"IF(OrigTable!B1318=\"\",\"\",ScriptText!$E$1&CHAR(10)&ScriptText!C1313)","v":""},{"$f":"IF(OrigTable!C1318=\"\",\"\",ScriptText!$B$1&CHAR(10)&ScriptText!$D$1)","v":""},{"$f":"IF(OrigTable!C1318=\"\",\"\",IF(LEN(OrigTable!C1318)>255,LEFT(OrigTable!C1318,250)&\". . .\",OrigTable!C1318))","v":""},{"$f":"IF(OrigTable!C1318=\"\",\"\",ScriptText!$E$1&CHAR(10)&ScriptText!$C$1)","v":""},{"$f":"IF(OrigTable!D1318=\"\",\"\",ScriptText!$B$1&CHAR(10)&ScriptText!$D$1)","v":""},{"$f":"IF(OrigTable!D1318=\"\",\"\",TEXT(OrigTable!D1318,\"00\"))","v":""},{"$f":"IF(OrigTable!D1318=\"\",\"\",ScriptText!$E$1&CHAR(10)&ScriptText!$C$1)","v":""},{"$f":"IF(OrigTable!E1318=\"\",\"\",ScriptText!$B$1&CHAR(10)&ScriptText!$D$1)","v":""},{"$f":"IF(OrigTable!E1318=\"\",\"\",TEXT(OrigTable!E1318,\"00\"))","v":""},{"$f":"IF(OrigTable!E1318=\"\",\"\",ScriptText!$E$1&CHAR(10)&ScriptText!$C$1)","v":""},{"$f":"IF(OrigTable!F1318=\"\",\"\",ScriptText!$B$1&CHAR(10)&ScriptText!$D$1)","v":""},{"$f":"IF(OrigTable!F1318=\"\",\"\",TEXT(OrigTable!F1318,\"00\"))","v":""},{"$f":"IF(OrigTable!F1318=\"\",\"\",ScriptText!$E$1&CHAR(10)&ScriptText!$C$1)","v":""},{"$f":"IF(OrigTable!G1318=\"\",\"\",ScriptText!$B$1&CHAR(10)&ScriptText!$D$1)","v":""},{"$f":"IF(OrigTable!G1318=\"\",\"\",TEXT(OrigTable!G1318,\"00\"))","v":""},{"$f":"IF(OrigTable!G1318=\"\",\"\",ScriptText!$E$1&CHAR(10)&ScriptText!$C$1)","v":""},0]
["\n\n\n",{"$f":"IF(OrigTable!A1319=\"\",\"\",ScriptText!$B$1&CHAR(10)&ScriptText!$D$1)","v":""},{"$f":"IF(OrigTable!A1319=\"\",\"\",TEXT(OrigTable!A1319,\"00\"))","v":""},{"$f":"IF(OrigTable!A1319=\"\",\"\",ScriptText!$E$1&CHAR(10)&ScriptText!$C$1)","v":""},{"$f":"IF(OrigTable!B1319=\"\",\"\",ScriptText!$B$1&CHAR(10)&ScriptText!$D$1)","v":""},{"$f":"IF(OrigTable!B1319=\"\",\"\",TEXT(OrigTable!B1319,\"00\"))","v":""},{"$f":"IF(OrigTable!B1319=\"\",\"\",ScriptText!$E$1&CHAR(10)&ScriptText!C1314)","v":""},{"$f":"IF(OrigTable!C1319=\"\",\"\",ScriptText!$B$1&CHAR(10)&ScriptText!$D$1)","v":""},{"$f":"IF(OrigTable!C1319=\"\",\"\",IF(LEN(OrigTable!C1319)>255,LEFT(OrigTable!C1319,250)&\". . .\",OrigTable!C1319))","v":""},{"$f":"IF(OrigTable!C1319=\"\",\"\",ScriptText!$E$1&CHAR(10)&ScriptText!$C$1)","v":""},{"$f":"IF(OrigTable!D1319=\"\",\"\",ScriptText!$B$1&CHAR(10)&ScriptText!$D$1)","v":""},{"$f":"IF(OrigTable!D1319=\"\",\"\",TEXT(OrigTable!D1319,\"00\"))","v":""},{"$f":"IF(OrigTable!D1319=\"\",\"\",ScriptText!$E$1&CHAR(10)&ScriptText!$C$1)","v":""},{"$f":"IF(OrigTable!E1319=\"\",\"\",ScriptText!$B$1&CHAR(10)&ScriptText!$D$1)","v":""},{"$f":"IF(OrigTable!E1319=\"\",\"\",TEXT(OrigTable!E1319,\"00\"))","v":""},{"$f":"IF(OrigTable!E1319=\"\",\"\",ScriptText!$E$1&CHAR(10)&ScriptText!$C$1)","v":""},{"$f":"IF(OrigTable!F1319=\"\",\"\",ScriptText!$B$1&CHAR(10)&ScriptText!$D$1)","v":""},{"$f":"IF(OrigTable!F1319=\"\",\"\",TEXT(OrigTable!F1319,\"00\"))","v":""},{"$f":"IF(OrigTable!F1319=\"\",\"\",ScriptText!$E$1&CHAR(10)&ScriptText!$C$1)","v":""},{"$f":"IF(OrigTable!G1319=\"\",\"\",ScriptText!$B$1&CHAR(10)&ScriptText!$D$1)","v":""},{"$f":"IF(OrigTable!G1319=\"\",\"\",TEXT(OrigTable!G1319,\"00\"))","v":""},{"$f":"IF(OrigTable!G1319=\"\",\"\",ScriptText!$E$1&CHAR(10)&ScriptText!$C$1)","v":""},0]
["\n\n\n",{"$f":"IF(OrigTable!A1320=\"\",\"\",ScriptText!$B$1&CHAR(10)&ScriptText!$D$1)","v":""},{"$f":"IF(OrigTable!A1320=\"\",\"\",TEXT(OrigTable!A1320,\"00\"))","v":""},{"$f":"IF(OrigTable!A1320=\"\",\"\",ScriptText!$E$1&CHAR(10)&ScriptText!$C$1)","v":""},{"$f":"IF(OrigTable!B1320=\"\",\"\",ScriptText!$B$1&CHAR(10)&ScriptText!$D$1)","v":""},{"$f":"IF(OrigTable!B1320=\"\",\"\",TEXT(OrigTable!B1320,\"00\"))","v":""},{"$f":"IF(OrigTable!B1320=\"\",\"\",ScriptText!$E$1&CHAR(10)&ScriptText!C1315)","v":""},{"$f":"IF(OrigTable!C1320=\"\",\"\",ScriptText!$B$1&CHAR(10)&ScriptText!$D$1)","v":""},{"$f":"IF(OrigTable!C1320=\"\",\"\",IF(LEN(OrigTable!C1320)>255,LEFT(OrigTable!C1320,250)&\". . .\",OrigTable!C1320))","v":""},{"$f":"IF(OrigTable!C1320=\"\",\"\",ScriptText!$E$1&CHAR(10)&ScriptText!$C$1)","v":""},{"$f":"IF(OrigTable!D1320=\"\",\"\",ScriptText!$B$1&CHAR(10)&ScriptText!$D$1)","v":""},{"$f":"IF(OrigTable!D1320=\"\",\"\",TEXT(OrigTable!D1320,\"00\"))","v":""},{"$f":"IF(OrigTable!D1320=\"\",\"\",ScriptText!$E$1&CHAR(10)&ScriptText!$C$1)","v":""},{"$f":"IF(OrigTable!E1320=\"\",\"\",ScriptText!$B$1&CHAR(10)&ScriptText!$D$1)","v":""},{"$f":"IF(OrigTable!E1320=\"\",\"\",TEXT(OrigTable!E1320,\"00\"))","v":""},{"$f":"IF(OrigTable!E1320=\"\",\"\",ScriptText!$E$1&CHAR(10)&ScriptText!$C$1)","v":""},{"$f":"IF(OrigTable!F1320=\"\",\"\",ScriptText!$B$1&CHAR(10)&ScriptText!$D$1)","v":""},{"$f":"IF(OrigTable!F1320=\"\",\"\",TEXT(OrigTable!F1320,\"00\"))","v":""},{"$f":"IF(OrigTable!F1320=\"\",\"\",ScriptText!$E$1&CHAR(10)&ScriptText!$C$1)","v":""},{"$f":"IF(OrigTable!G1320=\"\",\"\",ScriptText!$B$1&CHAR(10)&ScriptText!$D$1)","v":""},{"$f":"IF(OrigTable!G1320=\"\",\"\",TEXT(OrigTable!G1320,\"00\"))","v":""},{"$f":"IF(OrigTable!G1320=\"\",\"\",ScriptText!$E$1&CHAR(10)&ScriptText!$C$1)","v":""},0]
["\n\n\n",{"$f":"IF(OrigTable!A1321=\"\",\"\",ScriptText!$B$1&CHAR(10)&ScriptText!$D$1)","v":""},{"$f":"IF(OrigTable!A1321=\"\",\"\",TEXT(OrigTable!A1321,\"00\"))","v":""},{"$f":"IF(OrigTable!A1321=\"\",\"\",ScriptText!$E$1&CHAR(10)&ScriptText!$C$1)","v":""},{"$f":"IF(OrigTable!B1321=\"\",\"\",ScriptText!$B$1&CHAR(10)&ScriptText!$D$1)","v":""},{"$f":"IF(OrigTable!B1321=\"\",\"\",TEXT(OrigTable!B1321,\"00\"))","v":""},{"$f":"IF(OrigTable!B1321=\"\",\"\",ScriptText!$E$1&CHAR(10)&ScriptText!C1316)","v":""},{"$f":"IF(OrigTable!C1321=\"\",\"\",ScriptText!$B$1&CHAR(10)&ScriptText!$D$1)","v":""},{"$f":"IF(OrigTable!C1321=\"\",\"\",IF(LEN(OrigTable!C1321)>255,LEFT(OrigTable!C1321,250)&\". . .\",OrigTable!C1321))","v":""},{"$f":"IF(OrigTable!C1321=\"\",\"\",ScriptText!$E$1&CHAR(10)&ScriptText!$C$1)","v":""},{"$f":"IF(OrigTable!D1321=\"\",\"\",ScriptText!$B$1&CHAR(10)&ScriptText!$D$1)","v":""},{"$f":"IF(OrigTable!D1321=\"\",\"\",TEXT(OrigTable!D1321,\"00\"))","v":""},{"$f":"IF(OrigTable!D1321=\"\",\"\",ScriptText!$E$1&CHAR(10)&ScriptText!$C$1)","v":""},{"$f":"IF(OrigTable!E1321=\"\",\"\",ScriptText!$B$1&CHAR(10)&ScriptText!$D$1)","v":""},{"$f":"IF(OrigTable!E1321=\"\",\"\",TEXT(OrigTable!E1321,\"00\"))","v":""},{"$f":"IF(OrigTable!E1321=\"\",\"\",ScriptText!$E$1&CHAR(10)&ScriptText!$C$1)","v":""},{"$f":"IF(OrigTable!F1321=\"\",\"\",ScriptText!$B$1&CHAR(10)&ScriptText!$D$1)","v":""},{"$f":"IF(OrigTable!F1321=\"\",\"\",TEXT(OrigTable!F1321,\"00\"))","v":""},{"$f":"IF(OrigTable!F1321=\"\",\"\",ScriptText!$E$1&CHAR(10)&ScriptText!$C$1)","v":""},{"$f":"IF(OrigTable!G1321=\"\",\"\",ScriptText!$B$1&CHAR(10)&ScriptText!$D$1)","v":""},{"$f":"IF(OrigTable!G1321=\"\",\"\",TEXT(OrigTable!G1321,\"00\"))","v":""},{"$f":"IF(OrigTable!G1321=\"\",\"\",ScriptText!$E$1&CHAR(10)&ScriptText!$C$1)","v":""},0]
["\n\n\n",{"$f":"IF(OrigTable!A1322=\"\",\"\",ScriptText!$B$1&CHAR(10)&ScriptText!$D$1)","v":""},{"$f":"IF(OrigTable!A1322=\"\",\"\",TEXT(OrigTable!A1322,\"00\"))","v":""},{"$f":"IF(OrigTable!A1322=\"\",\"\",ScriptText!$E$1&CHAR(10)&ScriptText!$C$1)","v":""},{"$f":"IF(OrigTable!B1322=\"\",\"\",ScriptText!$B$1&CHAR(10)&ScriptText!$D$1)","v":""},{"$f":"IF(OrigTable!B1322=\"\",\"\",TEXT(OrigTable!B1322,\"00\"))","v":""},{"$f":"IF(OrigTable!B1322=\"\",\"\",ScriptText!$E$1&CHAR(10)&ScriptText!C1317)","v":""},{"$f":"IF(OrigTable!C1322=\"\",\"\",ScriptText!$B$1&CHAR(10)&ScriptText!$D$1)","v":""},{"$f":"IF(OrigTable!C1322=\"\",\"\",IF(LEN(OrigTable!C1322)>255,LEFT(OrigTable!C1322,250)&\". . .\",OrigTable!C1322))","v":""},{"$f":"IF(OrigTable!C1322=\"\",\"\",ScriptText!$E$1&CHAR(10)&ScriptText!$C$1)","v":""},{"$f":"IF(OrigTable!D1322=\"\",\"\",ScriptText!$B$1&CHAR(10)&ScriptText!$D$1)","v":""},{"$f":"IF(OrigTable!D1322=\"\",\"\",TEXT(OrigTable!D1322,\"00\"))","v":""},{"$f":"IF(OrigTable!D1322=\"\",\"\",ScriptText!$E$1&CHAR(10)&ScriptText!$C$1)","v":""},{"$f":"IF(OrigTable!E1322=\"\",\"\",ScriptText!$B$1&CHAR(10)&ScriptText!$D$1)","v":""},{"$f":"IF(OrigTable!E1322=\"\",\"\",TEXT(OrigTable!E1322,\"00\"))","v":""},{"$f":"IF(OrigTable!E1322=\"\",\"\",ScriptText!$E$1&CHAR(10)&ScriptText!$C$1)","v":""},{"$f":"IF(OrigTable!F1322=\"\",\"\",ScriptText!$B$1&CHAR(10)&ScriptText!$D$1)","v":""},{"$f":"IF(OrigTable!F1322=\"\",\"\",TEXT(OrigTable!F1322,\"00\"))","v":""},{"$f":"IF(OrigTable!F1322=\"\",\"\",ScriptText!$E$1&CHAR(10)&ScriptText!$C$1)","v":""},{"$f":"IF(OrigTable!G1322=\"\",\"\",ScriptText!$B$1&CHAR(10)&ScriptText!$D$1)","v":""},{"$f":"IF(OrigTable!G1322=\"\",\"\",TEXT(OrigTable!G1322,\"00\"))","v":""},{"$f":"IF(OrigTable!G1322=\"\",\"\",ScriptText!$E$1&CHAR(10)&ScriptText!$C$1)","v":""},0]
["\n\n\n",{"$f":"IF(OrigTable!A1323=\"\",\"\",ScriptText!$B$1&CHAR(10)&ScriptText!$D$1)","v":""},{"$f":"IF(OrigTable!A1323=\"\",\"\",TEXT(OrigTable!A1323,\"00\"))","v":""},{"$f":"IF(OrigTable!A1323=\"\",\"\",ScriptText!$E$1&CHAR(10)&ScriptText!$C$1)","v":""},{"$f":"IF(OrigTable!B1323=\"\",\"\",ScriptText!$B$1&CHAR(10)&ScriptText!$D$1)","v":""},{"$f":"IF(OrigTable!B1323=\"\",\"\",TEXT(OrigTable!B1323,\"00\"))","v":""},{"$f":"IF(OrigTable!B1323=\"\",\"\",ScriptText!$E$1&CHAR(10)&ScriptText!C1318)","v":""},{"$f":"IF(OrigTable!C1323=\"\",\"\",ScriptText!$B$1&CHAR(10)&ScriptText!$D$1)","v":""},{"$f":"IF(OrigTable!C1323=\"\",\"\",IF(LEN(OrigTable!C1323)>255,LEFT(OrigTable!C1323,250)&\". . .\",OrigTable!C1323))","v":""},{"$f":"IF(OrigTable!C1323=\"\",\"\",ScriptText!$E$1&CHAR(10)&ScriptText!$C$1)","v":""},{"$f":"IF(OrigTable!D1323=\"\",\"\",ScriptText!$B$1&CHAR(10)&ScriptText!$D$1)","v":""},{"$f":"IF(OrigTable!D1323=\"\",\"\",TEXT(OrigTable!D1323,\"00\"))","v":""},{"$f":"IF(OrigTable!D1323=\"\",\"\",ScriptText!$E$1&CHAR(10)&ScriptText!$C$1)","v":""},{"$f":"IF(OrigTable!E1323=\"\",\"\",ScriptText!$B$1&CHAR(10)&ScriptText!$D$1)","v":""},{"$f":"IF(OrigTable!E1323=\"\",\"\",TEXT(OrigTable!E1323,\"00\"))","v":""},{"$f":"IF(OrigTable!E1323=\"\",\"\",ScriptText!$E$1&CHAR(10)&ScriptText!$C$1)","v":""},{"$f":"IF(OrigTable!F1323=\"\",\"\",ScriptText!$B$1&CHAR(10)&ScriptText!$D$1)","v":""},{"$f":"IF(OrigTable!F1323=\"\",\"\",TEXT(OrigTable!F1323,\"00\"))","v":""},{"$f":"IF(OrigTable!F1323=\"\",\"\",ScriptText!$E$1&CHAR(10)&ScriptText!$C$1)","v":""},{"$f":"IF(OrigTable!G1323=\"\",\"\",ScriptText!$B$1&CHAR(10)&ScriptText!$D$1)","v":""},{"$f":"IF(OrigTable!G1323=\"\",\"\",TEXT(OrigTable!G1323,\"00\"))","v":""},{"$f":"IF(OrigTable!G1323=\"\",\"\",ScriptText!$E$1&CHAR(10)&ScriptText!$C$1)","v":""},0]
["\n\n\n",{"$f":"IF(OrigTable!A1324=\"\",\"\",ScriptText!$B$1&CHAR(10)&ScriptText!$D$1)","v":""},{"$f":"IF(OrigTable!A1324=\"\",\"\",TEXT(OrigTable!A1324,\"00\"))","v":""},{"$f":"IF(OrigTable!A1324=\"\",\"\",ScriptText!$E$1&CHAR(10)&ScriptText!$C$1)","v":""},{"$f":"IF(OrigTable!B1324=\"\",\"\",ScriptText!$B$1&CHAR(10)&ScriptText!$D$1)","v":""},{"$f":"IF(OrigTable!B1324=\"\",\"\",TEXT(OrigTable!B1324,\"00\"))","v":""},{"$f":"IF(OrigTable!B1324=\"\",\"\",ScriptText!$E$1&CHAR(10)&ScriptText!C1319)","v":""},{"$f":"IF(OrigTable!C1324=\"\",\"\",ScriptText!$B$1&CHAR(10)&ScriptText!$D$1)","v":""},{"$f":"IF(OrigTable!C1324=\"\",\"\",IF(LEN(OrigTable!C1324)>255,LEFT(OrigTable!C1324,250)&\". . .\",OrigTable!C1324))","v":""},{"$f":"IF(OrigTable!C1324=\"\",\"\",ScriptText!$E$1&CHAR(10)&ScriptText!$C$1)","v":""},{"$f":"IF(OrigTable!D1324=\"\",\"\",ScriptText!$B$1&CHAR(10)&ScriptText!$D$1)","v":""},{"$f":"IF(OrigTable!D1324=\"\",\"\",TEXT(OrigTable!D1324,\"00\"))","v":""},{"$f":"IF(OrigTable!D1324=\"\",\"\",ScriptText!$E$1&CHAR(10)&ScriptText!$C$1)","v":""},{"$f":"IF(OrigTable!E1324=\"\",\"\",ScriptText!$B$1&CHAR(10)&ScriptText!$D$1)","v":""},{"$f":"IF(OrigTable!E1324=\"\",\"\",TEXT(OrigTable!E1324,\"00\"))","v":""},{"$f":"IF(OrigTable!E1324=\"\",\"\",ScriptText!$E$1&CHAR(10)&ScriptText!$C$1)","v":""},{"$f":"IF(OrigTable!F1324=\"\",\"\",ScriptText!$B$1&CHAR(10)&ScriptText!$D$1)","v":""},{"$f":"IF(OrigTable!F1324=\"\",\"\",TEXT(OrigTable!F1324,\"00\"))","v":""},{"$f":"IF(OrigTable!F1324=\"\",\"\",ScriptText!$E$1&CHAR(10)&ScriptText!$C$1)","v":""},{"$f":"IF(OrigTable!G1324=\"\",\"\",ScriptText!$B$1&CHAR(10)&ScriptText!$D$1)","v":""},{"$f":"IF(OrigTable!G1324=\"\",\"\",TEXT(OrigTable!G1324,\"00\"))","v":""},{"$f":"IF(OrigTable!G1324=\"\",\"\",ScriptText!$E$1&CHAR(10)&ScriptText!$C$1)","v":""},0]
["\n\n\n",{"$f":"IF(OrigTable!A1325=\"\",\"\",ScriptText!$B$1&CHAR(10)&ScriptText!$D$1)","v":""},{"$f":"IF(OrigTable!A1325=\"\",\"\",TEXT(OrigTable!A1325,\"00\"))","v":""},{"$f":"IF(OrigTable!A1325=\"\",\"\",ScriptText!$E$1&CHAR(10)&ScriptText!$C$1)","v":""},{"$f":"IF(OrigTable!B1325=\"\",\"\",ScriptText!$B$1&CHAR(10)&ScriptText!$D$1)","v":""},{"$f":"IF(OrigTable!B1325=\"\",\"\",TEXT(OrigTable!B1325,\"00\"))","v":""},{"$f":"IF(OrigTable!B1325=\"\",\"\",ScriptText!$E$1&CHAR(10)&ScriptText!C1320)","v":""},{"$f":"IF(OrigTable!C1325=\"\",\"\",ScriptText!$B$1&CHAR(10)&ScriptText!$D$1)","v":""},{"$f":"IF(OrigTable!C1325=\"\",\"\",IF(LEN(OrigTable!C1325)>255,LEFT(OrigTable!C1325,250)&\". . .\",OrigTable!C1325))","v":""},{"$f":"IF(OrigTable!C1325=\"\",\"\",ScriptText!$E$1&CHAR(10)&ScriptText!$C$1)","v":""},{"$f":"IF(OrigTable!D1325=\"\",\"\",ScriptText!$B$1&CHAR(10)&ScriptText!$D$1)","v":""},{"$f":"IF(OrigTable!D1325=\"\",\"\",TEXT(OrigTable!D1325,\"00\"))","v":""},{"$f":"IF(OrigTable!D1325=\"\",\"\",ScriptText!$E$1&CHAR(10)&ScriptText!$C$1)","v":""},{"$f":"IF(OrigTable!E1325=\"\",\"\",ScriptText!$B$1&CHAR(10)&ScriptText!$D$1)","v":""},{"$f":"IF(OrigTable!E1325=\"\",\"\",TEXT(OrigTable!E1325,\"00\"))","v":""},{"$f":"IF(OrigTable!E1325=\"\",\"\",ScriptText!$E$1&CHAR(10)&ScriptText!$C$1)","v":""},{"$f":"IF(OrigTable!F1325=\"\",\"\",ScriptText!$B$1&CHAR(10)&ScriptText!$D$1)","v":""},{"$f":"IF(OrigTable!F1325=\"\",\"\",TEXT(OrigTable!F1325,\"00\"))","v":""},{"$f":"IF(OrigTable!F1325=\"\",\"\",ScriptText!$E$1&CHAR(10)&ScriptText!$C$1)","v":""},{"$f":"IF(OrigTable!G1325=\"\",\"\",ScriptText!$B$1&CHAR(10)&ScriptText!$D$1)","v":""},{"$f":"IF(OrigTable!G1325=\"\",\"\",TEXT(OrigTable!G1325,\"00\"))","v":""},{"$f":"IF(OrigTable!G1325=\"\",\"\",ScriptText!$E$1&CHAR(10)&ScriptText!$C$1)","v":""},0]
["\n\n\n",{"$f":"IF(OrigTable!A1326=\"\",\"\",ScriptText!$B$1&CHAR(10)&ScriptText!$D$1)","v":""},{"$f":"IF(OrigTable!A1326=\"\",\"\",TEXT(OrigTable!A1326,\"00\"))","v":""},{"$f":"IF(OrigTable!A1326=\"\",\"\",ScriptText!$E$1&CHAR(10)&ScriptText!$C$1)","v":""},{"$f":"IF(OrigTable!B1326=\"\",\"\",ScriptText!$B$1&CHAR(10)&ScriptText!$D$1)","v":""},{"$f":"IF(OrigTable!B1326=\"\",\"\",TEXT(OrigTable!B1326,\"00\"))","v":""},{"$f":"IF(OrigTable!B1326=\"\",\"\",ScriptText!$E$1&CHAR(10)&ScriptText!C1321)","v":""},{"$f":"IF(OrigTable!C1326=\"\",\"\",ScriptText!$B$1&CHAR(10)&ScriptText!$D$1)","v":""},{"$f":"IF(OrigTable!C1326=\"\",\"\",IF(LEN(OrigTable!C1326)>255,LEFT(OrigTable!C1326,250)&\". . .\",OrigTable!C1326))","v":""},{"$f":"IF(OrigTable!C1326=\"\",\"\",ScriptText!$E$1&CHAR(10)&ScriptText!$C$1)","v":""},{"$f":"IF(OrigTable!D1326=\"\",\"\",ScriptText!$B$1&CHAR(10)&ScriptText!$D$1)","v":""},{"$f":"IF(OrigTable!D1326=\"\",\"\",TEXT(OrigTable!D1326,\"00\"))","v":""},{"$f":"IF(OrigTable!D1326=\"\",\"\",ScriptText!$E$1&CHAR(10)&ScriptText!$C$1)","v":""},{"$f":"IF(OrigTable!E1326=\"\",\"\",ScriptText!$B$1&CHAR(10)&ScriptText!$D$1)","v":""},{"$f":"IF(OrigTable!E1326=\"\",\"\",TEXT(OrigTable!E1326,\"00\"))","v":""},{"$f":"IF(OrigTable!E1326=\"\",\"\",ScriptText!$E$1&CHAR(10)&ScriptText!$C$1)","v":""},{"$f":"IF(OrigTable!F1326=\"\",\"\",ScriptText!$B$1&CHAR(10)&ScriptText!$D$1)","v":""},{"$f":"IF(OrigTable!F1326=\"\",\"\",TEXT(OrigTable!F1326,\"00\"))","v":""},{"$f":"IF(OrigTable!F1326=\"\",\"\",ScriptText!$E$1&CHAR(10)&ScriptText!$C$1)","v":""},{"$f":"IF(OrigTable!G1326=\"\",\"\",ScriptText!$B$1&CHAR(10)&ScriptText!$D$1)","v":""},{"$f":"IF(OrigTable!G1326=\"\",\"\",TEXT(OrigTable!G1326,\"00\"))","v":""},{"$f":"IF(OrigTable!G1326=\"\",\"\",ScriptText!$E$1&CHAR(10)&ScriptText!$C$1)","v":""},0]
["\n\n\n",{"$f":"IF(OrigTable!A1327=\"\",\"\",ScriptText!$B$1&CHAR(10)&ScriptText!$D$1)","v":""},{"$f":"IF(OrigTable!A1327=\"\",\"\",TEXT(OrigTable!A1327,\"00\"))","v":""},{"$f":"IF(OrigTable!A1327=\"\",\"\",ScriptText!$E$1&CHAR(10)&ScriptText!$C$1)","v":""},{"$f":"IF(OrigTable!B1327=\"\",\"\",ScriptText!$B$1&CHAR(10)&ScriptText!$D$1)","v":""},{"$f":"IF(OrigTable!B1327=\"\",\"\",TEXT(OrigTable!B1327,\"00\"))","v":""},{"$f":"IF(OrigTable!B1327=\"\",\"\",ScriptText!$E$1&CHAR(10)&ScriptText!C1322)","v":""},{"$f":"IF(OrigTable!C1327=\"\",\"\",ScriptText!$B$1&CHAR(10)&ScriptText!$D$1)","v":""},{"$f":"IF(OrigTable!C1327=\"\",\"\",IF(LEN(OrigTable!C1327)>255,LEFT(OrigTable!C1327,250)&\". . .\",OrigTable!C1327))","v":""},{"$f":"IF(OrigTable!C1327=\"\",\"\",ScriptText!$E$1&CHAR(10)&ScriptText!$C$1)","v":""},{"$f":"IF(OrigTable!D1327=\"\",\"\",ScriptText!$B$1&CHAR(10)&ScriptText!$D$1)","v":""},{"$f":"IF(OrigTable!D1327=\"\",\"\",TEXT(OrigTable!D1327,\"00\"))","v":""},{"$f":"IF(OrigTable!D1327=\"\",\"\",ScriptText!$E$1&CHAR(10)&ScriptText!$C$1)","v":""},{"$f":"IF(OrigTable!E1327=\"\",\"\",ScriptText!$B$1&CHAR(10)&ScriptText!$D$1)","v":""},{"$f":"IF(OrigTable!E1327=\"\",\"\",TEXT(OrigTable!E1327,\"00\"))","v":""},{"$f":"IF(OrigTable!E1327=\"\",\"\",ScriptText!$E$1&CHAR(10)&ScriptText!$C$1)","v":""},{"$f":"IF(OrigTable!F1327=\"\",\"\",ScriptText!$B$1&CHAR(10)&ScriptText!$D$1)","v":""},{"$f":"IF(OrigTable!F1327=\"\",\"\",TEXT(OrigTable!F1327,\"00\"))","v":""},{"$f":"IF(OrigTable!F1327=\"\",\"\",ScriptText!$E$1&CHAR(10)&ScriptText!$C$1)","v":""},{"$f":"IF(OrigTable!G1327=\"\",\"\",ScriptText!$B$1&CHAR(10)&ScriptText!$D$1)","v":""},{"$f":"IF(OrigTable!G1327=\"\",\"\",TEXT(OrigTable!G1327,\"00\"))","v":""},{"$f":"IF(OrigTable!G1327=\"\",\"\",ScriptText!$E$1&CHAR(10)&ScriptText!$C$1)","v":""},0]
["\n\n\n",{"$f":"IF(OrigTable!A1328=\"\",\"\",ScriptText!$B$1&CHAR(10)&ScriptText!$D$1)","v":""},{"$f":"IF(OrigTable!A1328=\"\",\"\",TEXT(OrigTable!A1328,\"00\"))","v":""},{"$f":"IF(OrigTable!A1328=\"\",\"\",ScriptText!$E$1&CHAR(10)&ScriptText!$C$1)","v":""},{"$f":"IF(OrigTable!B1328=\"\",\"\",ScriptText!$B$1&CHAR(10)&ScriptText!$D$1)","v":""},{"$f":"IF(OrigTable!B1328=\"\",\"\",TEXT(OrigTable!B1328,\"00\"))","v":""},{"$f":"IF(OrigTable!B1328=\"\",\"\",ScriptText!$E$1&CHAR(10)&ScriptText!C1323)","v":""},{"$f":"IF(OrigTable!C1328=\"\",\"\",ScriptText!$B$1&CHAR(10)&ScriptText!$D$1)","v":""},{"$f":"IF(OrigTable!C1328=\"\",\"\",IF(LEN(OrigTable!C1328)>255,LEFT(OrigTable!C1328,250)&\". . .\",OrigTable!C1328))","v":""},{"$f":"IF(OrigTable!C1328=\"\",\"\",ScriptText!$E$1&CHAR(10)&ScriptText!$C$1)","v":""},{"$f":"IF(OrigTable!D1328=\"\",\"\",ScriptText!$B$1&CHAR(10)&ScriptText!$D$1)","v":""},{"$f":"IF(OrigTable!D1328=\"\",\"\",TEXT(OrigTable!D1328,\"00\"))","v":""},{"$f":"IF(OrigTable!D1328=\"\",\"\",ScriptText!$E$1&CHAR(10)&ScriptText!$C$1)","v":""},{"$f":"IF(OrigTable!E1328=\"\",\"\",ScriptText!$B$1&CHAR(10)&ScriptText!$D$1)","v":""},{"$f":"IF(OrigTable!E1328=\"\",\"\",TEXT(OrigTable!E1328,\"00\"))","v":""},{"$f":"IF(OrigTable!E1328=\"\",\"\",ScriptText!$E$1&CHAR(10)&ScriptText!$C$1)","v":""},{"$f":"IF(OrigTable!F1328=\"\",\"\",ScriptText!$B$1&CHAR(10)&ScriptText!$D$1)","v":""},{"$f":"IF(OrigTable!F1328=\"\",\"\",TEXT(OrigTable!F1328,\"00\"))","v":""},{"$f":"IF(OrigTable!F1328=\"\",\"\",ScriptText!$E$1&CHAR(10)&ScriptText!$C$1)","v":""},{"$f":"IF(OrigTable!G1328=\"\",\"\",ScriptText!$B$1&CHAR(10)&ScriptText!$D$1)","v":""},{"$f":"IF(OrigTable!G1328=\"\",\"\",TEXT(OrigTable!G1328,\"00\"))","v":""},{"$f":"IF(OrigTable!G1328=\"\",\"\",ScriptText!$E$1&CHAR(10)&ScriptText!$C$1)","v":""},0]
["\n\n\n",{"$f":"IF(OrigTable!A1329=\"\",\"\",ScriptText!$B$1&CHAR(10)&ScriptText!$D$1)","v":""},{"$f":"IF(OrigTable!A1329=\"\",\"\",TEXT(OrigTable!A1329,\"00\"))","v":""},{"$f":"IF(OrigTable!A1329=\"\",\"\",ScriptText!$E$1&CHAR(10)&ScriptText!$C$1)","v":""},{"$f":"IF(OrigTable!B1329=\"\",\"\",ScriptText!$B$1&CHAR(10)&ScriptText!$D$1)","v":""},{"$f":"IF(OrigTable!B1329=\"\",\"\",TEXT(OrigTable!B1329,\"00\"))","v":""},{"$f":"IF(OrigTable!B1329=\"\",\"\",ScriptText!$E$1&CHAR(10)&ScriptText!C1324)","v":""},{"$f":"IF(OrigTable!C1329=\"\",\"\",ScriptText!$B$1&CHAR(10)&ScriptText!$D$1)","v":""},{"$f":"IF(OrigTable!C1329=\"\",\"\",IF(LEN(OrigTable!C1329)>255,LEFT(OrigTable!C1329,250)&\". . .\",OrigTable!C1329))","v":""},{"$f":"IF(OrigTable!C1329=\"\",\"\",ScriptText!$E$1&CHAR(10)&ScriptText!$C$1)","v":""},{"$f":"IF(OrigTable!D1329=\"\",\"\",ScriptText!$B$1&CHAR(10)&ScriptText!$D$1)","v":""},{"$f":"IF(OrigTable!D1329=\"\",\"\",TEXT(OrigTable!D1329,\"00\"))","v":""},{"$f":"IF(OrigTable!D1329=\"\",\"\",ScriptText!$E$1&CHAR(10)&ScriptText!$C$1)","v":""},{"$f":"IF(OrigTable!E1329=\"\",\"\",ScriptText!$B$1&CHAR(10)&ScriptText!$D$1)","v":""},{"$f":"IF(OrigTable!E1329=\"\",\"\",TEXT(OrigTable!E1329,\"00\"))","v":""},{"$f":"IF(OrigTable!E1329=\"\",\"\",ScriptText!$E$1&CHAR(10)&ScriptText!$C$1)","v":""},{"$f":"IF(OrigTable!F1329=\"\",\"\",ScriptText!$B$1&CHAR(10)&ScriptText!$D$1)","v":""},{"$f":"IF(OrigTable!F1329=\"\",\"\",TEXT(OrigTable!F1329,\"00\"))","v":""},{"$f":"IF(OrigTable!F1329=\"\",\"\",ScriptText!$E$1&CHAR(10)&ScriptText!$C$1)","v":""},{"$f":"IF(OrigTable!G1329=\"\",\"\",ScriptText!$B$1&CHAR(10)&ScriptText!$D$1)","v":""},{"$f":"IF(OrigTable!G1329=\"\",\"\",TEXT(OrigTable!G1329,\"00\"))","v":""},{"$f":"IF(OrigTable!G1329=\"\",\"\",ScriptText!$E$1&CHAR(10)&ScriptText!$C$1)","v":""},0]
["\n\n\n",{"$f":"IF(OrigTable!A1330=\"\",\"\",ScriptText!$B$1&CHAR(10)&ScriptText!$D$1)","v":""},{"$f":"IF(OrigTable!A1330=\"\",\"\",TEXT(OrigTable!A1330,\"00\"))","v":""},{"$f":"IF(OrigTable!A1330=\"\",\"\",ScriptText!$E$1&CHAR(10)&ScriptText!$C$1)","v":""},{"$f":"IF(OrigTable!B1330=\"\",\"\",ScriptText!$B$1&CHAR(10)&ScriptText!$D$1)","v":""},{"$f":"IF(OrigTable!B1330=\"\",\"\",TEXT(OrigTable!B1330,\"00\"))","v":""},{"$f":"IF(OrigTable!B1330=\"\",\"\",ScriptText!$E$1&CHAR(10)&ScriptText!C1325)","v":""},{"$f":"IF(OrigTable!C1330=\"\",\"\",ScriptText!$B$1&CHAR(10)&ScriptText!$D$1)","v":""},{"$f":"IF(OrigTable!C1330=\"\",\"\",IF(LEN(OrigTable!C1330)>255,LEFT(OrigTable!C1330,250)&\". . .\",OrigTable!C1330))","v":""},{"$f":"IF(OrigTable!C1330=\"\",\"\",ScriptText!$E$1&CHAR(10)&ScriptText!$C$1)","v":""},{"$f":"IF(OrigTable!D1330=\"\",\"\",ScriptText!$B$1&CHAR(10)&ScriptText!$D$1)","v":""},{"$f":"IF(OrigTable!D1330=\"\",\"\",TEXT(OrigTable!D1330,\"00\"))","v":""},{"$f":"IF(OrigTable!D1330=\"\",\"\",ScriptText!$E$1&CHAR(10)&ScriptText!$C$1)","v":""},{"$f":"IF(OrigTable!E1330=\"\",\"\",ScriptText!$B$1&CHAR(10)&ScriptText!$D$1)","v":""},{"$f":"IF(OrigTable!E1330=\"\",\"\",TEXT(OrigTable!E1330,\"00\"))","v":""},{"$f":"IF(OrigTable!E1330=\"\",\"\",ScriptText!$E$1&CHAR(10)&ScriptText!$C$1)","v":""},{"$f":"IF(OrigTable!F1330=\"\",\"\",ScriptText!$B$1&CHAR(10)&ScriptText!$D$1)","v":""},{"$f":"IF(OrigTable!F1330=\"\",\"\",TEXT(OrigTable!F1330,\"00\"))","v":""},{"$f":"IF(OrigTable!F1330=\"\",\"\",ScriptText!$E$1&CHAR(10)&ScriptText!$C$1)","v":""},{"$f":"IF(OrigTable!G1330=\"\",\"\",ScriptText!$B$1&CHAR(10)&ScriptText!$D$1)","v":""},{"$f":"IF(OrigTable!G1330=\"\",\"\",TEXT(OrigTable!G1330,\"00\"))","v":""},{"$f":"IF(OrigTable!G1330=\"\",\"\",ScriptText!$E$1&CHAR(10)&ScriptText!$C$1)","v":""},0]
["\n\n\n",{"$f":"IF(OrigTable!A1331=\"\",\"\",ScriptText!$B$1&CHAR(10)&ScriptText!$D$1)","v":""},{"$f":"IF(OrigTable!A1331=\"\",\"\",TEXT(OrigTable!A1331,\"00\"))","v":""},{"$f":"IF(OrigTable!A1331=\"\",\"\",ScriptText!$E$1&CHAR(10)&ScriptText!$C$1)","v":""},{"$f":"IF(OrigTable!B1331=\"\",\"\",ScriptText!$B$1&CHAR(10)&ScriptText!$D$1)","v":""},{"$f":"IF(OrigTable!B1331=\"\",\"\",TEXT(OrigTable!B1331,\"00\"))","v":""},{"$f":"IF(OrigTable!B1331=\"\",\"\",ScriptText!$E$1&CHAR(10)&ScriptText!C1326)","v":""},{"$f":"IF(OrigTable!C1331=\"\",\"\",ScriptText!$B$1&CHAR(10)&ScriptText!$D$1)","v":""},{"$f":"IF(OrigTable!C1331=\"\",\"\",IF(LEN(OrigTable!C1331)>255,LEFT(OrigTable!C1331,250)&\". . .\",OrigTable!C1331))","v":""},{"$f":"IF(OrigTable!C1331=\"\",\"\",ScriptText!$E$1&CHAR(10)&ScriptText!$C$1)","v":""},{"$f":"IF(OrigTable!D1331=\"\",\"\",ScriptText!$B$1&CHAR(10)&ScriptText!$D$1)","v":""},{"$f":"IF(OrigTable!D1331=\"\",\"\",TEXT(OrigTable!D1331,\"00\"))","v":""},{"$f":"IF(OrigTable!D1331=\"\",\"\",ScriptText!$E$1&CHAR(10)&ScriptText!$C$1)","v":""},{"$f":"IF(OrigTable!E1331=\"\",\"\",ScriptText!$B$1&CHAR(10)&ScriptText!$D$1)","v":""},{"$f":"IF(OrigTable!E1331=\"\",\"\",TEXT(OrigTable!E1331,\"00\"))","v":""},{"$f":"IF(OrigTable!E1331=\"\",\"\",ScriptText!$E$1&CHAR(10)&ScriptText!$C$1)","v":""},{"$f":"IF(OrigTable!F1331=\"\",\"\",ScriptText!$B$1&CHAR(10)&ScriptText!$D$1)","v":""},{"$f":"IF(OrigTable!F1331=\"\",\"\",TEXT(OrigTable!F1331,\"00\"))","v":""},{"$f":"IF(OrigTable!F1331=\"\",\"\",ScriptText!$E$1&CHAR(10)&ScriptText!$C$1)","v":""},{"$f":"IF(OrigTable!G1331=\"\",\"\",ScriptText!$B$1&CHAR(10)&ScriptText!$D$1)","v":""},{"$f":"IF(OrigTable!G1331=\"\",\"\",TEXT(OrigTable!G1331,\"00\"))","v":""},{"$f":"IF(OrigTable!G1331=\"\",\"\",ScriptText!$E$1&CHAR(10)&ScriptText!$C$1)","v":""},0]
["\n\n\n",{"$f":"IF(OrigTable!A1332=\"\",\"\",ScriptText!$B$1&CHAR(10)&ScriptText!$D$1)","v":""},{"$f":"IF(OrigTable!A1332=\"\",\"\",TEXT(OrigTable!A1332,\"00\"))","v":""},{"$f":"IF(OrigTable!A1332=\"\",\"\",ScriptText!$E$1&CHAR(10)&ScriptText!$C$1)","v":""},{"$f":"IF(OrigTable!B1332=\"\",\"\",ScriptText!$B$1&CHAR(10)&ScriptText!$D$1)","v":""},{"$f":"IF(OrigTable!B1332=\"\",\"\",TEXT(OrigTable!B1332,\"00\"))","v":""},{"$f":"IF(OrigTable!B1332=\"\",\"\",ScriptText!$E$1&CHAR(10)&ScriptText!C1327)","v":""},{"$f":"IF(OrigTable!C1332=\"\",\"\",ScriptText!$B$1&CHAR(10)&ScriptText!$D$1)","v":""},{"$f":"IF(OrigTable!C1332=\"\",\"\",IF(LEN(OrigTable!C1332)>255,LEFT(OrigTable!C1332,250)&\". . .\",OrigTable!C1332))","v":""},{"$f":"IF(OrigTable!C1332=\"\",\"\",ScriptText!$E$1&CHAR(10)&ScriptText!$C$1)","v":""},{"$f":"IF(OrigTable!D1332=\"\",\"\",ScriptText!$B$1&CHAR(10)&ScriptText!$D$1)","v":""},{"$f":"IF(OrigTable!D1332=\"\",\"\",TEXT(OrigTable!D1332,\"00\"))","v":""},{"$f":"IF(OrigTable!D1332=\"\",\"\",ScriptText!$E$1&CHAR(10)&ScriptText!$C$1)","v":""},{"$f":"IF(OrigTable!E1332=\"\",\"\",ScriptText!$B$1&CHAR(10)&ScriptText!$D$1)","v":""},{"$f":"IF(OrigTable!E1332=\"\",\"\",TEXT(OrigTable!E1332,\"00\"))","v":""},{"$f":"IF(OrigTable!E1332=\"\",\"\",ScriptText!$E$1&CHAR(10)&ScriptText!$C$1)","v":""},{"$f":"IF(OrigTable!F1332=\"\",\"\",ScriptText!$B$1&CHAR(10)&ScriptText!$D$1)","v":""},{"$f":"IF(OrigTable!F1332=\"\",\"\",TEXT(OrigTable!F1332,\"00\"))","v":""},{"$f":"IF(OrigTable!F1332=\"\",\"\",ScriptText!$E$1&CHAR(10)&ScriptText!$C$1)","v":""},{"$f":"IF(OrigTable!G1332=\"\",\"\",ScriptText!$B$1&CHAR(10)&ScriptText!$D$1)","v":""},{"$f":"IF(OrigTable!G1332=\"\",\"\",TEXT(OrigTable!G1332,\"00\"))","v":""},{"$f":"IF(OrigTable!G1332=\"\",\"\",ScriptText!$E$1&CHAR(10)&ScriptText!$C$1)","v":""},0]
["\n\n\n",{"$f":"IF(OrigTable!A1333=\"\",\"\",ScriptText!$B$1&CHAR(10)&ScriptText!$D$1)","v":""},{"$f":"IF(OrigTable!A1333=\"\",\"\",TEXT(OrigTable!A1333,\"00\"))","v":""},{"$f":"IF(OrigTable!A1333=\"\",\"\",ScriptText!$E$1&CHAR(10)&ScriptText!$C$1)","v":""},{"$f":"IF(OrigTable!B1333=\"\",\"\",ScriptText!$B$1&CHAR(10)&ScriptText!$D$1)","v":""},{"$f":"IF(OrigTable!B1333=\"\",\"\",TEXT(OrigTable!B1333,\"00\"))","v":""},{"$f":"IF(OrigTable!B1333=\"\",\"\",ScriptText!$E$1&CHAR(10)&ScriptText!C1328)","v":""},{"$f":"IF(OrigTable!C1333=\"\",\"\",ScriptText!$B$1&CHAR(10)&ScriptText!$D$1)","v":""},{"$f":"IF(OrigTable!C1333=\"\",\"\",IF(LEN(OrigTable!C1333)>255,LEFT(OrigTable!C1333,250)&\". . .\",OrigTable!C1333))","v":""},{"$f":"IF(OrigTable!C1333=\"\",\"\",ScriptText!$E$1&CHAR(10)&ScriptText!$C$1)","v":""},{"$f":"IF(OrigTable!D1333=\"\",\"\",ScriptText!$B$1&CHAR(10)&ScriptText!$D$1)","v":""},{"$f":"IF(OrigTable!D1333=\"\",\"\",TEXT(OrigTable!D1333,\"00\"))","v":""},{"$f":"IF(OrigTable!D1333=\"\",\"\",ScriptText!$E$1&CHAR(10)&ScriptText!$C$1)","v":""},{"$f":"IF(OrigTable!E1333=\"\",\"\",ScriptText!$B$1&CHAR(10)&ScriptText!$D$1)","v":""},{"$f":"IF(OrigTable!E1333=\"\",\"\",TEXT(OrigTable!E1333,\"00\"))","v":""},{"$f":"IF(OrigTable!E1333=\"\",\"\",ScriptText!$E$1&CHAR(10)&ScriptText!$C$1)","v":""},{"$f":"IF(OrigTable!F1333=\"\",\"\",ScriptText!$B$1&CHAR(10)&ScriptText!$D$1)","v":""},{"$f":"IF(OrigTable!F1333=\"\",\"\",TEXT(OrigTable!F1333,\"00\"))","v":""},{"$f":"IF(OrigTable!F1333=\"\",\"\",ScriptText!$E$1&CHAR(10)&ScriptText!$C$1)","v":""},{"$f":"IF(OrigTable!G1333=\"\",\"\",ScriptText!$B$1&CHAR(10)&ScriptText!$D$1)","v":""},{"$f":"IF(OrigTable!G1333=\"\",\"\",TEXT(OrigTable!G1333,\"00\"))","v":""},{"$f":"IF(OrigTable!G1333=\"\",\"\",ScriptText!$E$1&CHAR(10)&ScriptText!$C$1)","v":""},0]
["\n\n\n",{"$f":"IF(OrigTable!A1334=\"\",\"\",ScriptText!$B$1&CHAR(10)&ScriptText!$D$1)","v":""},{"$f":"IF(OrigTable!A1334=\"\",\"\",TEXT(OrigTable!A1334,\"00\"))","v":""},{"$f":"IF(OrigTable!A1334=\"\",\"\",ScriptText!$E$1&CHAR(10)&ScriptText!$C$1)","v":""},{"$f":"IF(OrigTable!B1334=\"\",\"\",ScriptText!$B$1&CHAR(10)&ScriptText!$D$1)","v":""},{"$f":"IF(OrigTable!B1334=\"\",\"\",TEXT(OrigTable!B1334,\"00\"))","v":""},{"$f":"IF(OrigTable!B1334=\"\",\"\",ScriptText!$E$1&CHAR(10)&ScriptText!C1329)","v":""},{"$f":"IF(OrigTable!C1334=\"\",\"\",ScriptText!$B$1&CHAR(10)&ScriptText!$D$1)","v":""},{"$f":"IF(OrigTable!C1334=\"\",\"\",IF(LEN(OrigTable!C1334)>255,LEFT(OrigTable!C1334,250)&\". . .\",OrigTable!C1334))","v":""},{"$f":"IF(OrigTable!C1334=\"\",\"\",ScriptText!$E$1&CHAR(10)&ScriptText!$C$1)","v":""},{"$f":"IF(OrigTable!D1334=\"\",\"\",ScriptText!$B$1&CHAR(10)&ScriptText!$D$1)","v":""},{"$f":"IF(OrigTable!D1334=\"\",\"\",TEXT(OrigTable!D1334,\"00\"))","v":""},{"$f":"IF(OrigTable!D1334=\"\",\"\",ScriptText!$E$1&CHAR(10)&ScriptText!$C$1)","v":""},{"$f":"IF(OrigTable!E1334=\"\",\"\",ScriptText!$B$1&CHAR(10)&ScriptText!$D$1)","v":""},{"$f":"IF(OrigTable!E1334=\"\",\"\",TEXT(OrigTable!E1334,\"00\"))","v":""},{"$f":"IF(OrigTable!E1334=\"\",\"\",ScriptText!$E$1&CHAR(10)&ScriptText!$C$1)","v":""},{"$f":"IF(OrigTable!F1334=\"\",\"\",ScriptText!$B$1&CHAR(10)&ScriptText!$D$1)","v":""},{"$f":"IF(OrigTable!F1334=\"\",\"\",TEXT(OrigTable!F1334,\"00\"))","v":""},{"$f":"IF(OrigTable!F1334=\"\",\"\",ScriptText!$E$1&CHAR(10)&ScriptText!$C$1)","v":""},{"$f":"IF(OrigTable!G1334=\"\",\"\",ScriptText!$B$1&CHAR(10)&ScriptText!$D$1)","v":""},{"$f":"IF(OrigTable!G1334=\"\",\"\",TEXT(OrigTable!G1334,\"00\"))","v":""},{"$f":"IF(OrigTable!G1334=\"\",\"\",ScriptText!$E$1&CHAR(10)&ScriptText!$C$1)","v":""},0]
["\n\n\n",{"$f":"IF(OrigTable!A1335=\"\",\"\",ScriptText!$B$1&CHAR(10)&ScriptText!$D$1)","v":""},{"$f":"IF(OrigTable!A1335=\"\",\"\",TEXT(OrigTable!A1335,\"00\"))","v":""},{"$f":"IF(OrigTable!A1335=\"\",\"\",ScriptText!$E$1&CHAR(10)&ScriptText!$C$1)","v":""},{"$f":"IF(OrigTable!B1335=\"\",\"\",ScriptText!$B$1&CHAR(10)&ScriptText!$D$1)","v":""},{"$f":"IF(OrigTable!B1335=\"\",\"\",TEXT(OrigTable!B1335,\"00\"))","v":""},{"$f":"IF(OrigTable!B1335=\"\",\"\",ScriptText!$E$1&CHAR(10)&ScriptText!C1330)","v":""},{"$f":"IF(OrigTable!C1335=\"\",\"\",ScriptText!$B$1&CHAR(10)&ScriptText!$D$1)","v":""},{"$f":"IF(OrigTable!C1335=\"\",\"\",IF(LEN(OrigTable!C1335)>255,LEFT(OrigTable!C1335,250)&\". . .\",OrigTable!C1335))","v":""},{"$f":"IF(OrigTable!C1335=\"\",\"\",ScriptText!$E$1&CHAR(10)&ScriptText!$C$1)","v":""},{"$f":"IF(OrigTable!D1335=\"\",\"\",ScriptText!$B$1&CHAR(10)&ScriptText!$D$1)","v":""},{"$f":"IF(OrigTable!D1335=\"\",\"\",TEXT(OrigTable!D1335,\"00\"))","v":""},{"$f":"IF(OrigTable!D1335=\"\",\"\",ScriptText!$E$1&CHAR(10)&ScriptText!$C$1)","v":""},{"$f":"IF(OrigTable!E1335=\"\",\"\",ScriptText!$B$1&CHAR(10)&ScriptText!$D$1)","v":""},{"$f":"IF(OrigTable!E1335=\"\",\"\",TEXT(OrigTable!E1335,\"00\"))","v":""},{"$f":"IF(OrigTable!E1335=\"\",\"\",ScriptText!$E$1&CHAR(10)&ScriptText!$C$1)","v":""},{"$f":"IF(OrigTable!F1335=\"\",\"\",ScriptText!$B$1&CHAR(10)&ScriptText!$D$1)","v":""},{"$f":"IF(OrigTable!F1335=\"\",\"\",TEXT(OrigTable!F1335,\"00\"))","v":""},{"$f":"IF(OrigTable!F1335=\"\",\"\",ScriptText!$E$1&CHAR(10)&ScriptText!$C$1)","v":""},{"$f":"IF(OrigTable!G1335=\"\",\"\",ScriptText!$B$1&CHAR(10)&ScriptText!$D$1)","v":""},{"$f":"IF(OrigTable!G1335=\"\",\"\",TEXT(OrigTable!G1335,\"00\"))","v":""},{"$f":"IF(OrigTable!G1335=\"\",\"\",ScriptText!$E$1&CHAR(10)&ScriptText!$C$1)","v":""},0]
["\n\n\n",{"$f":"IF(OrigTable!A1336=\"\",\"\",ScriptText!$B$1&CHAR(10)&ScriptText!$D$1)","v":""},{"$f":"IF(OrigTable!A1336=\"\",\"\",TEXT(OrigTable!A1336,\"00\"))","v":""},{"$f":"IF(OrigTable!A1336=\"\",\"\",ScriptText!$E$1&CHAR(10)&ScriptText!$C$1)","v":""},{"$f":"IF(OrigTable!B1336=\"\",\"\",ScriptText!$B$1&CHAR(10)&ScriptText!$D$1)","v":""},{"$f":"IF(OrigTable!B1336=\"\",\"\",TEXT(OrigTable!B1336,\"00\"))","v":""},{"$f":"IF(OrigTable!B1336=\"\",\"\",ScriptText!$E$1&CHAR(10)&ScriptText!C1331)","v":""},{"$f":"IF(OrigTable!C1336=\"\",\"\",ScriptText!$B$1&CHAR(10)&ScriptText!$D$1)","v":""},{"$f":"IF(OrigTable!C1336=\"\",\"\",IF(LEN(OrigTable!C1336)>255,LEFT(OrigTable!C1336,250)&\". . .\",OrigTable!C1336))","v":""},{"$f":"IF(OrigTable!C1336=\"\",\"\",ScriptText!$E$1&CHAR(10)&ScriptText!$C$1)","v":""},{"$f":"IF(OrigTable!D1336=\"\",\"\",ScriptText!$B$1&CHAR(10)&ScriptText!$D$1)","v":""},{"$f":"IF(OrigTable!D1336=\"\",\"\",TEXT(OrigTable!D1336,\"00\"))","v":""},{"$f":"IF(OrigTable!D1336=\"\",\"\",ScriptText!$E$1&CHAR(10)&ScriptText!$C$1)","v":""},{"$f":"IF(OrigTable!E1336=\"\",\"\",ScriptText!$B$1&CHAR(10)&ScriptText!$D$1)","v":""},{"$f":"IF(OrigTable!E1336=\"\",\"\",TEXT(OrigTable!E1336,\"00\"))","v":""},{"$f":"IF(OrigTable!E1336=\"\",\"\",ScriptText!$E$1&CHAR(10)&ScriptText!$C$1)","v":""},{"$f":"IF(OrigTable!F1336=\"\",\"\",ScriptText!$B$1&CHAR(10)&ScriptText!$D$1)","v":""},{"$f":"IF(OrigTable!F1336=\"\",\"\",TEXT(OrigTable!F1336,\"00\"))","v":""},{"$f":"IF(OrigTable!F1336=\"\",\"\",ScriptText!$E$1&CHAR(10)&ScriptText!$C$1)","v":""},{"$f":"IF(OrigTable!G1336=\"\",\"\",ScriptText!$B$1&CHAR(10)&ScriptText!$D$1)","v":""},{"$f":"IF(OrigTable!G1336=\"\",\"\",TEXT(OrigTable!G1336,\"00\"))","v":""},{"$f":"IF(OrigTable!G1336=\"\",\"\",ScriptText!$E$1&CHAR(10)&ScriptText!$C$1)","v":""},0]
["\n\n\n",{"$f":"IF(OrigTable!A1337=\"\",\"\",ScriptText!$B$1&CHAR(10)&ScriptText!$D$1)","v":""},{"$f":"IF(OrigTable!A1337=\"\",\"\",TEXT(OrigTable!A1337,\"00\"))","v":""},{"$f":"IF(OrigTable!A1337=\"\",\"\",ScriptText!$E$1&CHAR(10)&ScriptText!$C$1)","v":""},{"$f":"IF(OrigTable!B1337=\"\",\"\",ScriptText!$B$1&CHAR(10)&ScriptText!$D$1)","v":""},{"$f":"IF(OrigTable!B1337=\"\",\"\",TEXT(OrigTable!B1337,\"00\"))","v":""},{"$f":"IF(OrigTable!B1337=\"\",\"\",ScriptText!$E$1&CHAR(10)&ScriptText!C1332)","v":""},{"$f":"IF(OrigTable!C1337=\"\",\"\",ScriptText!$B$1&CHAR(10)&ScriptText!$D$1)","v":""},{"$f":"IF(OrigTable!C1337=\"\",\"\",IF(LEN(OrigTable!C1337)>255,LEFT(OrigTable!C1337,250)&\". . .\",OrigTable!C1337))","v":""},{"$f":"IF(OrigTable!C1337=\"\",\"\",ScriptText!$E$1&CHAR(10)&ScriptText!$C$1)","v":""},{"$f":"IF(OrigTable!D1337=\"\",\"\",ScriptText!$B$1&CHAR(10)&ScriptText!$D$1)","v":""},{"$f":"IF(OrigTable!D1337=\"\",\"\",TEXT(OrigTable!D1337,\"00\"))","v":""},{"$f":"IF(OrigTable!D1337=\"\",\"\",ScriptText!$E$1&CHAR(10)&ScriptText!$C$1)","v":""},{"$f":"IF(OrigTable!E1337=\"\",\"\",ScriptText!$B$1&CHAR(10)&ScriptText!$D$1)","v":""},{"$f":"IF(OrigTable!E1337=\"\",\"\",TEXT(OrigTable!E1337,\"00\"))","v":""},{"$f":"IF(OrigTable!E1337=\"\",\"\",ScriptText!$E$1&CHAR(10)&ScriptText!$C$1)","v":""},{"$f":"IF(OrigTable!F1337=\"\",\"\",ScriptText!$B$1&CHAR(10)&ScriptText!$D$1)","v":""},{"$f":"IF(OrigTable!F1337=\"\",\"\",TEXT(OrigTable!F1337,\"00\"))","v":""},{"$f":"IF(OrigTable!F1337=\"\",\"\",ScriptText!$E$1&CHAR(10)&ScriptText!$C$1)","v":""},{"$f":"IF(OrigTable!G1337=\"\",\"\",ScriptText!$B$1&CHAR(10)&ScriptText!$D$1)","v":""},{"$f":"IF(OrigTable!G1337=\"\",\"\",TEXT(OrigTable!G1337,\"00\"))","v":""},{"$f":"IF(OrigTable!G1337=\"\",\"\",ScriptText!$E$1&CHAR(10)&ScriptText!$C$1)","v":""},0]
["\n\n\n",{"$f":"IF(OrigTable!A1338=\"\",\"\",ScriptText!$B$1&CHAR(10)&ScriptText!$D$1)","v":""},{"$f":"IF(OrigTable!A1338=\"\",\"\",TEXT(OrigTable!A1338,\"00\"))","v":""},{"$f":"IF(OrigTable!A1338=\"\",\"\",ScriptText!$E$1&CHAR(10)&ScriptText!$C$1)","v":""},{"$f":"IF(OrigTable!B1338=\"\",\"\",ScriptText!$B$1&CHAR(10)&ScriptText!$D$1)","v":""},{"$f":"IF(OrigTable!B1338=\"\",\"\",TEXT(OrigTable!B1338,\"00\"))","v":""},{"$f":"IF(OrigTable!B1338=\"\",\"\",ScriptText!$E$1&CHAR(10)&ScriptText!C1333)","v":""},{"$f":"IF(OrigTable!C1338=\"\",\"\",ScriptText!$B$1&CHAR(10)&ScriptText!$D$1)","v":""},{"$f":"IF(OrigTable!C1338=\"\",\"\",IF(LEN(OrigTable!C1338)>255,LEFT(OrigTable!C1338,250)&\". . .\",OrigTable!C1338))","v":""},{"$f":"IF(OrigTable!C1338=\"\",\"\",ScriptText!$E$1&CHAR(10)&ScriptText!$C$1)","v":""},{"$f":"IF(OrigTable!D1338=\"\",\"\",ScriptText!$B$1&CHAR(10)&ScriptText!$D$1)","v":""},{"$f":"IF(OrigTable!D1338=\"\",\"\",TEXT(OrigTable!D1338,\"00\"))","v":""},{"$f":"IF(OrigTable!D1338=\"\",\"\",ScriptText!$E$1&CHAR(10)&ScriptText!$C$1)","v":""},{"$f":"IF(OrigTable!E1338=\"\",\"\",ScriptText!$B$1&CHAR(10)&ScriptText!$D$1)","v":""},{"$f":"IF(OrigTable!E1338=\"\",\"\",TEXT(OrigTable!E1338,\"00\"))","v":""},{"$f":"IF(OrigTable!E1338=\"\",\"\",ScriptText!$E$1&CHAR(10)&ScriptText!$C$1)","v":""},{"$f":"IF(OrigTable!F1338=\"\",\"\",ScriptText!$B$1&CHAR(10)&ScriptText!$D$1)","v":""},{"$f":"IF(OrigTable!F1338=\"\",\"\",TEXT(OrigTable!F1338,\"00\"))","v":""},{"$f":"IF(OrigTable!F1338=\"\",\"\",ScriptText!$E$1&CHAR(10)&ScriptText!$C$1)","v":""},{"$f":"IF(OrigTable!G1338=\"\",\"\",ScriptText!$B$1&CHAR(10)&ScriptText!$D$1)","v":""},{"$f":"IF(OrigTable!G1338=\"\",\"\",TEXT(OrigTable!G1338,\"00\"))","v":""},{"$f":"IF(OrigTable!G1338=\"\",\"\",ScriptText!$E$1&CHAR(10)&ScriptText!$C$1)","v":""},0]
["\n\n\n",{"$f":"IF(OrigTable!A1339=\"\",\"\",ScriptText!$B$1&CHAR(10)&ScriptText!$D$1)","v":""},{"$f":"IF(OrigTable!A1339=\"\",\"\",TEXT(OrigTable!A1339,\"00\"))","v":""},{"$f":"IF(OrigTable!A1339=\"\",\"\",ScriptText!$E$1&CHAR(10)&ScriptText!$C$1)","v":""},{"$f":"IF(OrigTable!B1339=\"\",\"\",ScriptText!$B$1&CHAR(10)&ScriptText!$D$1)","v":""},{"$f":"IF(OrigTable!B1339=\"\",\"\",TEXT(OrigTable!B1339,\"00\"))","v":""},{"$f":"IF(OrigTable!B1339=\"\",\"\",ScriptText!$E$1&CHAR(10)&ScriptText!C1334)","v":""},{"$f":"IF(OrigTable!C1339=\"\",\"\",ScriptText!$B$1&CHAR(10)&ScriptText!$D$1)","v":""},{"$f":"IF(OrigTable!C1339=\"\",\"\",IF(LEN(OrigTable!C1339)>255,LEFT(OrigTable!C1339,250)&\". . .\",OrigTable!C1339))","v":""},{"$f":"IF(OrigTable!C1339=\"\",\"\",ScriptText!$E$1&CHAR(10)&ScriptText!$C$1)","v":""},{"$f":"IF(OrigTable!D1339=\"\",\"\",ScriptText!$B$1&CHAR(10)&ScriptText!$D$1)","v":""},{"$f":"IF(OrigTable!D1339=\"\",\"\",TEXT(OrigTable!D1339,\"00\"))","v":""},{"$f":"IF(OrigTable!D1339=\"\",\"\",ScriptText!$E$1&CHAR(10)&ScriptText!$C$1)","v":""},{"$f":"IF(OrigTable!E1339=\"\",\"\",ScriptText!$B$1&CHAR(10)&ScriptText!$D$1)","v":""},{"$f":"IF(OrigTable!E1339=\"\",\"\",TEXT(OrigTable!E1339,\"00\"))","v":""},{"$f":"IF(OrigTable!E1339=\"\",\"\",ScriptText!$E$1&CHAR(10)&ScriptText!$C$1)","v":""},{"$f":"IF(OrigTable!F1339=\"\",\"\",ScriptText!$B$1&CHAR(10)&ScriptText!$D$1)","v":""},{"$f":"IF(OrigTable!F1339=\"\",\"\",TEXT(OrigTable!F1339,\"00\"))","v":""},{"$f":"IF(OrigTable!F1339=\"\",\"\",ScriptText!$E$1&CHAR(10)&ScriptText!$C$1)","v":""},{"$f":"IF(OrigTable!G1339=\"\",\"\",ScriptText!$B$1&CHAR(10)&ScriptText!$D$1)","v":""},{"$f":"IF(OrigTable!G1339=\"\",\"\",TEXT(OrigTable!G1339,\"00\"))","v":""},{"$f":"IF(OrigTable!G1339=\"\",\"\",ScriptText!$E$1&CHAR(10)&ScriptText!$C$1)","v":""},0]
["\n\n\n",{"$f":"IF(OrigTable!A1340=\"\",\"\",ScriptText!$B$1&CHAR(10)&ScriptText!$D$1)","v":""},{"$f":"IF(OrigTable!A1340=\"\",\"\",TEXT(OrigTable!A1340,\"00\"))","v":""},{"$f":"IF(OrigTable!A1340=\"\",\"\",ScriptText!$E$1&CHAR(10)&ScriptText!$C$1)","v":""},{"$f":"IF(OrigTable!B1340=\"\",\"\",ScriptText!$B$1&CHAR(10)&ScriptText!$D$1)","v":""},{"$f":"IF(OrigTable!B1340=\"\",\"\",TEXT(OrigTable!B1340,\"00\"))","v":""},{"$f":"IF(OrigTable!B1340=\"\",\"\",ScriptText!$E$1&CHAR(10)&ScriptText!C1335)","v":""},{"$f":"IF(OrigTable!C1340=\"\",\"\",ScriptText!$B$1&CHAR(10)&ScriptText!$D$1)","v":""},{"$f":"IF(OrigTable!C1340=\"\",\"\",IF(LEN(OrigTable!C1340)>255,LEFT(OrigTable!C1340,250)&\". . .\",OrigTable!C1340))","v":""},{"$f":"IF(OrigTable!C1340=\"\",\"\",ScriptText!$E$1&CHAR(10)&ScriptText!$C$1)","v":""},{"$f":"IF(OrigTable!D1340=\"\",\"\",ScriptText!$B$1&CHAR(10)&ScriptText!$D$1)","v":""},{"$f":"IF(OrigTable!D1340=\"\",\"\",TEXT(OrigTable!D1340,\"00\"))","v":""},{"$f":"IF(OrigTable!D1340=\"\",\"\",ScriptText!$E$1&CHAR(10)&ScriptText!$C$1)","v":""},{"$f":"IF(OrigTable!E1340=\"\",\"\",ScriptText!$B$1&CHAR(10)&ScriptText!$D$1)","v":""},{"$f":"IF(OrigTable!E1340=\"\",\"\",TEXT(OrigTable!E1340,\"00\"))","v":""},{"$f":"IF(OrigTable!E1340=\"\",\"\",ScriptText!$E$1&CHAR(10)&ScriptText!$C$1)","v":""},{"$f":"IF(OrigTable!F1340=\"\",\"\",ScriptText!$B$1&CHAR(10)&ScriptText!$D$1)","v":""},{"$f":"IF(OrigTable!F1340=\"\",\"\",TEXT(OrigTable!F1340,\"00\"))","v":""},{"$f":"IF(OrigTable!F1340=\"\",\"\",ScriptText!$E$1&CHAR(10)&ScriptText!$C$1)","v":""},{"$f":"IF(OrigTable!G1340=\"\",\"\",ScriptText!$B$1&CHAR(10)&ScriptText!$D$1)","v":""},{"$f":"IF(OrigTable!G1340=\"\",\"\",TEXT(OrigTable!G1340,\"00\"))","v":""},{"$f":"IF(OrigTable!G1340=\"\",\"\",ScriptText!$E$1&CHAR(10)&ScriptText!$C$1)","v":""},0]
["\n\n\n",{"$f":"IF(OrigTable!A1341=\"\",\"\",ScriptText!$B$1&CHAR(10)&ScriptText!$D$1)","v":""},{"$f":"IF(OrigTable!A1341=\"\",\"\",TEXT(OrigTable!A1341,\"00\"))","v":""},{"$f":"IF(OrigTable!A1341=\"\",\"\",ScriptText!$E$1&CHAR(10)&ScriptText!$C$1)","v":""},{"$f":"IF(OrigTable!B1341=\"\",\"\",ScriptText!$B$1&CHAR(10)&ScriptText!$D$1)","v":""},{"$f":"IF(OrigTable!B1341=\"\",\"\",TEXT(OrigTable!B1341,\"00\"))","v":""},{"$f":"IF(OrigTable!B1341=\"\",\"\",ScriptText!$E$1&CHAR(10)&ScriptText!C1336)","v":""},{"$f":"IF(OrigTable!C1341=\"\",\"\",ScriptText!$B$1&CHAR(10)&ScriptText!$D$1)","v":""},{"$f":"IF(OrigTable!C1341=\"\",\"\",IF(LEN(OrigTable!C1341)>255,LEFT(OrigTable!C1341,250)&\". . .\",OrigTable!C1341))","v":""},{"$f":"IF(OrigTable!C1341=\"\",\"\",ScriptText!$E$1&CHAR(10)&ScriptText!$C$1)","v":""},{"$f":"IF(OrigTable!D1341=\"\",\"\",ScriptText!$B$1&CHAR(10)&ScriptText!$D$1)","v":""},{"$f":"IF(OrigTable!D1341=\"\",\"\",TEXT(OrigTable!D1341,\"00\"))","v":""},{"$f":"IF(OrigTable!D1341=\"\",\"\",ScriptText!$E$1&CHAR(10)&ScriptText!$C$1)","v":""},{"$f":"IF(OrigTable!E1341=\"\",\"\",ScriptText!$B$1&CHAR(10)&ScriptText!$D$1)","v":""},{"$f":"IF(OrigTable!E1341=\"\",\"\",TEXT(OrigTable!E1341,\"00\"))","v":""},{"$f":"IF(OrigTable!E1341=\"\",\"\",ScriptText!$E$1&CHAR(10)&ScriptText!$C$1)","v":""},{"$f":"IF(OrigTable!F1341=\"\",\"\",ScriptText!$B$1&CHAR(10)&ScriptText!$D$1)","v":""},{"$f":"IF(OrigTable!F1341=\"\",\"\",TEXT(OrigTable!F1341,\"00\"))","v":""},{"$f":"IF(OrigTable!F1341=\"\",\"\",ScriptText!$E$1&CHAR(10)&ScriptText!$C$1)","v":""},{"$f":"IF(OrigTable!G1341=\"\",\"\",ScriptText!$B$1&CHAR(10)&ScriptText!$D$1)","v":""},{"$f":"IF(OrigTable!G1341=\"\",\"\",TEXT(OrigTable!G1341,\"00\"))","v":""},{"$f":"IF(OrigTable!G1341=\"\",\"\",ScriptText!$E$1&CHAR(10)&ScriptText!$C$1)","v":""},0]
["\n\n\n",{"$f":"IF(OrigTable!A1342=\"\",\"\",ScriptText!$B$1&CHAR(10)&ScriptText!$D$1)","v":""},{"$f":"IF(OrigTable!A1342=\"\",\"\",TEXT(OrigTable!A1342,\"00\"))","v":""},{"$f":"IF(OrigTable!A1342=\"\",\"\",ScriptText!$E$1&CHAR(10)&ScriptText!$C$1)","v":""},{"$f":"IF(OrigTable!B1342=\"\",\"\",ScriptText!$B$1&CHAR(10)&ScriptText!$D$1)","v":""},{"$f":"IF(OrigTable!B1342=\"\",\"\",TEXT(OrigTable!B1342,\"00\"))","v":""},{"$f":"IF(OrigTable!B1342=\"\",\"\",ScriptText!$E$1&CHAR(10)&ScriptText!C1337)","v":""},{"$f":"IF(OrigTable!C1342=\"\",\"\",ScriptText!$B$1&CHAR(10)&ScriptText!$D$1)","v":""},{"$f":"IF(OrigTable!C1342=\"\",\"\",IF(LEN(OrigTable!C1342)>255,LEFT(OrigTable!C1342,250)&\". . .\",OrigTable!C1342))","v":""},{"$f":"IF(OrigTable!C1342=\"\",\"\",ScriptText!$E$1&CHAR(10)&ScriptText!$C$1)","v":""},{"$f":"IF(OrigTable!D1342=\"\",\"\",ScriptText!$B$1&CHAR(10)&ScriptText!$D$1)","v":""},{"$f":"IF(OrigTable!D1342=\"\",\"\",TEXT(OrigTable!D1342,\"00\"))","v":""},{"$f":"IF(OrigTable!D1342=\"\",\"\",ScriptText!$E$1&CHAR(10)&ScriptText!$C$1)","v":""},{"$f":"IF(OrigTable!E1342=\"\",\"\",ScriptText!$B$1&CHAR(10)&ScriptText!$D$1)","v":""},{"$f":"IF(OrigTable!E1342=\"\",\"\",TEXT(OrigTable!E1342,\"00\"))","v":""},{"$f":"IF(OrigTable!E1342=\"\",\"\",ScriptText!$E$1&CHAR(10)&ScriptText!$C$1)","v":""},{"$f":"IF(OrigTable!F1342=\"\",\"\",ScriptText!$B$1&CHAR(10)&ScriptText!$D$1)","v":""},{"$f":"IF(OrigTable!F1342=\"\",\"\",TEXT(OrigTable!F1342,\"00\"))","v":""},{"$f":"IF(OrigTable!F1342=\"\",\"\",ScriptText!$E$1&CHAR(10)&ScriptText!$C$1)","v":""},{"$f":"IF(OrigTable!G1342=\"\",\"\",ScriptText!$B$1&CHAR(10)&ScriptText!$D$1)","v":""},{"$f":"IF(OrigTable!G1342=\"\",\"\",TEXT(OrigTable!G1342,\"00\"))","v":""},{"$f":"IF(OrigTable!G1342=\"\",\"\",ScriptText!$E$1&CHAR(10)&ScriptText!$C$1)","v":""},0]
["\n\n\n",{"$f":"IF(OrigTable!A1343=\"\",\"\",ScriptText!$B$1&CHAR(10)&ScriptText!$D$1)","v":""},{"$f":"IF(OrigTable!A1343=\"\",\"\",TEXT(OrigTable!A1343,\"00\"))","v":""},{"$f":"IF(OrigTable!A1343=\"\",\"\",ScriptText!$E$1&CHAR(10)&ScriptText!$C$1)","v":""},{"$f":"IF(OrigTable!B1343=\"\",\"\",ScriptText!$B$1&CHAR(10)&ScriptText!$D$1)","v":""},{"$f":"IF(OrigTable!B1343=\"\",\"\",TEXT(OrigTable!B1343,\"00\"))","v":""},{"$f":"IF(OrigTable!B1343=\"\",\"\",ScriptText!$E$1&CHAR(10)&ScriptText!C1338)","v":""},{"$f":"IF(OrigTable!C1343=\"\",\"\",ScriptText!$B$1&CHAR(10)&ScriptText!$D$1)","v":""},{"$f":"IF(OrigTable!C1343=\"\",\"\",IF(LEN(OrigTable!C1343)>255,LEFT(OrigTable!C1343,250)&\". . .\",OrigTable!C1343))","v":""},{"$f":"IF(OrigTable!C1343=\"\",\"\",ScriptText!$E$1&CHAR(10)&ScriptText!$C$1)","v":""},{"$f":"IF(OrigTable!D1343=\"\",\"\",ScriptText!$B$1&CHAR(10)&ScriptText!$D$1)","v":""},{"$f":"IF(OrigTable!D1343=\"\",\"\",TEXT(OrigTable!D1343,\"00\"))","v":""},{"$f":"IF(OrigTable!D1343=\"\",\"\",ScriptText!$E$1&CHAR(10)&ScriptText!$C$1)","v":""},{"$f":"IF(OrigTable!E1343=\"\",\"\",ScriptText!$B$1&CHAR(10)&ScriptText!$D$1)","v":""},{"$f":"IF(OrigTable!E1343=\"\",\"\",TEXT(OrigTable!E1343,\"00\"))","v":""},{"$f":"IF(OrigTable!E1343=\"\",\"\",ScriptText!$E$1&CHAR(10)&ScriptText!$C$1)","v":""},{"$f":"IF(OrigTable!F1343=\"\",\"\",ScriptText!$B$1&CHAR(10)&ScriptText!$D$1)","v":""},{"$f":"IF(OrigTable!F1343=\"\",\"\",TEXT(OrigTable!F1343,\"00\"))","v":""},{"$f":"IF(OrigTable!F1343=\"\",\"\",ScriptText!$E$1&CHAR(10)&ScriptText!$C$1)","v":""},{"$f":"IF(OrigTable!G1343=\"\",\"\",ScriptText!$B$1&CHAR(10)&ScriptText!$D$1)","v":""},{"$f":"IF(OrigTable!G1343=\"\",\"\",TEXT(OrigTable!G1343,\"00\"))","v":""},{"$f":"IF(OrigTable!G1343=\"\",\"\",ScriptText!$E$1&CHAR(10)&ScriptText!$C$1)","v":""},0]
["\n\n\n",{"$f":"IF(OrigTable!A1344=\"\",\"\",ScriptText!$B$1&CHAR(10)&ScriptText!$D$1)","v":""},{"$f":"IF(OrigTable!A1344=\"\",\"\",TEXT(OrigTable!A1344,\"00\"))","v":""},{"$f":"IF(OrigTable!A1344=\"\",\"\",ScriptText!$E$1&CHAR(10)&ScriptText!$C$1)","v":""},{"$f":"IF(OrigTable!B1344=\"\",\"\",ScriptText!$B$1&CHAR(10)&ScriptText!$D$1)","v":""},{"$f":"IF(OrigTable!B1344=\"\",\"\",TEXT(OrigTable!B1344,\"00\"))","v":""},{"$f":"IF(OrigTable!B1344=\"\",\"\",ScriptText!$E$1&CHAR(10)&ScriptText!C1339)","v":""},{"$f":"IF(OrigTable!C1344=\"\",\"\",ScriptText!$B$1&CHAR(10)&ScriptText!$D$1)","v":""},{"$f":"IF(OrigTable!C1344=\"\",\"\",IF(LEN(OrigTable!C1344)>255,LEFT(OrigTable!C1344,250)&\". . .\",OrigTable!C1344))","v":""},{"$f":"IF(OrigTable!C1344=\"\",\"\",ScriptText!$E$1&CHAR(10)&ScriptText!$C$1)","v":""},{"$f":"IF(OrigTable!D1344=\"\",\"\",ScriptText!$B$1&CHAR(10)&ScriptText!$D$1)","v":""},{"$f":"IF(OrigTable!D1344=\"\",\"\",TEXT(OrigTable!D1344,\"00\"))","v":""},{"$f":"IF(OrigTable!D1344=\"\",\"\",ScriptText!$E$1&CHAR(10)&ScriptText!$C$1)","v":""},{"$f":"IF(OrigTable!E1344=\"\",\"\",ScriptText!$B$1&CHAR(10)&ScriptText!$D$1)","v":""},{"$f":"IF(OrigTable!E1344=\"\",\"\",TEXT(OrigTable!E1344,\"00\"))","v":""},{"$f":"IF(OrigTable!E1344=\"\",\"\",ScriptText!$E$1&CHAR(10)&ScriptText!$C$1)","v":""},{"$f":"IF(OrigTable!F1344=\"\",\"\",ScriptText!$B$1&CHAR(10)&ScriptText!$D$1)","v":""},{"$f":"IF(OrigTable!F1344=\"\",\"\",TEXT(OrigTable!F1344,\"00\"))","v":""},{"$f":"IF(OrigTable!F1344=\"\",\"\",ScriptText!$E$1&CHAR(10)&ScriptText!$C$1)","v":""},{"$f":"IF(OrigTable!G1344=\"\",\"\",ScriptText!$B$1&CHAR(10)&ScriptText!$D$1)","v":""},{"$f":"IF(OrigTable!G1344=\"\",\"\",TEXT(OrigTable!G1344,\"00\"))","v":""},{"$f":"IF(OrigTable!G1344=\"\",\"\",ScriptText!$E$1&CHAR(10)&ScriptText!$C$1)","v":""},0]
["\n\n\n",{"$f":"IF(OrigTable!A1345=\"\",\"\",ScriptText!$B$1&CHAR(10)&ScriptText!$D$1)","v":""},{"$f":"IF(OrigTable!A1345=\"\",\"\",TEXT(OrigTable!A1345,\"00\"))","v":""},{"$f":"IF(OrigTable!A1345=\"\",\"\",ScriptText!$E$1&CHAR(10)&ScriptText!$C$1)","v":""},{"$f":"IF(OrigTable!B1345=\"\",\"\",ScriptText!$B$1&CHAR(10)&ScriptText!$D$1)","v":""},{"$f":"IF(OrigTable!B1345=\"\",\"\",TEXT(OrigTable!B1345,\"00\"))","v":""},{"$f":"IF(OrigTable!B1345=\"\",\"\",ScriptText!$E$1&CHAR(10)&ScriptText!C1340)","v":""},{"$f":"IF(OrigTable!C1345=\"\",\"\",ScriptText!$B$1&CHAR(10)&ScriptText!$D$1)","v":""},{"$f":"IF(OrigTable!C1345=\"\",\"\",IF(LEN(OrigTable!C1345)>255,LEFT(OrigTable!C1345,250)&\". . .\",OrigTable!C1345))","v":""},{"$f":"IF(OrigTable!C1345=\"\",\"\",ScriptText!$E$1&CHAR(10)&ScriptText!$C$1)","v":""},{"$f":"IF(OrigTable!D1345=\"\",\"\",ScriptText!$B$1&CHAR(10)&ScriptText!$D$1)","v":""},{"$f":"IF(OrigTable!D1345=\"\",\"\",TEXT(OrigTable!D1345,\"00\"))","v":""},{"$f":"IF(OrigTable!D1345=\"\",\"\",ScriptText!$E$1&CHAR(10)&ScriptText!$C$1)","v":""},{"$f":"IF(OrigTable!E1345=\"\",\"\",ScriptText!$B$1&CHAR(10)&ScriptText!$D$1)","v":""},{"$f":"IF(OrigTable!E1345=\"\",\"\",TEXT(OrigTable!E1345,\"00\"))","v":""},{"$f":"IF(OrigTable!E1345=\"\",\"\",ScriptText!$E$1&CHAR(10)&ScriptText!$C$1)","v":""},{"$f":"IF(OrigTable!F1345=\"\",\"\",ScriptText!$B$1&CHAR(10)&ScriptText!$D$1)","v":""},{"$f":"IF(OrigTable!F1345=\"\",\"\",TEXT(OrigTable!F1345,\"00\"))","v":""},{"$f":"IF(OrigTable!F1345=\"\",\"\",ScriptText!$E$1&CHAR(10)&ScriptText!$C$1)","v":""},{"$f":"IF(OrigTable!G1345=\"\",\"\",ScriptText!$B$1&CHAR(10)&ScriptText!$D$1)","v":""},{"$f":"IF(OrigTable!G1345=\"\",\"\",TEXT(OrigTable!G1345,\"00\"))","v":""},{"$f":"IF(OrigTable!G1345=\"\",\"\",ScriptText!$E$1&CHAR(10)&ScriptText!$C$1)","v":""},0]
["\n\n\n",{"$f":"IF(OrigTable!A1346=\"\",\"\",ScriptText!$B$1&CHAR(10)&ScriptText!$D$1)","v":""},{"$f":"IF(OrigTable!A1346=\"\",\"\",TEXT(OrigTable!A1346,\"00\"))","v":""},{"$f":"IF(OrigTable!A1346=\"\",\"\",ScriptText!$E$1&CHAR(10)&ScriptText!$C$1)","v":""},{"$f":"IF(OrigTable!B1346=\"\",\"\",ScriptText!$B$1&CHAR(10)&ScriptText!$D$1)","v":""},{"$f":"IF(OrigTable!B1346=\"\",\"\",TEXT(OrigTable!B1346,\"00\"))","v":""},{"$f":"IF(OrigTable!B1346=\"\",\"\",ScriptText!$E$1&CHAR(10)&ScriptText!C1341)","v":""},{"$f":"IF(OrigTable!C1346=\"\",\"\",ScriptText!$B$1&CHAR(10)&ScriptText!$D$1)","v":""},{"$f":"IF(OrigTable!C1346=\"\",\"\",IF(LEN(OrigTable!C1346)>255,LEFT(OrigTable!C1346,250)&\". . .\",OrigTable!C1346))","v":""},{"$f":"IF(OrigTable!C1346=\"\",\"\",ScriptText!$E$1&CHAR(10)&ScriptText!$C$1)","v":""},{"$f":"IF(OrigTable!D1346=\"\",\"\",ScriptText!$B$1&CHAR(10)&ScriptText!$D$1)","v":""},{"$f":"IF(OrigTable!D1346=\"\",\"\",TEXT(OrigTable!D1346,\"00\"))","v":""},{"$f":"IF(OrigTable!D1346=\"\",\"\",ScriptText!$E$1&CHAR(10)&ScriptText!$C$1)","v":""},{"$f":"IF(OrigTable!E1346=\"\",\"\",ScriptText!$B$1&CHAR(10)&ScriptText!$D$1)","v":""},{"$f":"IF(OrigTable!E1346=\"\",\"\",TEXT(OrigTable!E1346,\"00\"))","v":""},{"$f":"IF(OrigTable!E1346=\"\",\"\",ScriptText!$E$1&CHAR(10)&ScriptText!$C$1)","v":""},{"$f":"IF(OrigTable!F1346=\"\",\"\",ScriptText!$B$1&CHAR(10)&ScriptText!$D$1)","v":""},{"$f":"IF(OrigTable!F1346=\"\",\"\",TEXT(OrigTable!F1346,\"00\"))","v":""},{"$f":"IF(OrigTable!F1346=\"\",\"\",ScriptText!$E$1&CHAR(10)&ScriptText!$C$1)","v":""},{"$f":"IF(OrigTable!G1346=\"\",\"\",ScriptText!$B$1&CHAR(10)&ScriptText!$D$1)","v":""},{"$f":"IF(OrigTable!G1346=\"\",\"\",TEXT(OrigTable!G1346,\"00\"))","v":""},{"$f":"IF(OrigTable!G1346=\"\",\"\",ScriptText!$E$1&CHAR(10)&ScriptText!$C$1)","v":""},0]
["\n\n\n",{"$f":"IF(OrigTable!A1347=\"\",\"\",ScriptText!$B$1&CHAR(10)&ScriptText!$D$1)","v":""},{"$f":"IF(OrigTable!A1347=\"\",\"\",TEXT(OrigTable!A1347,\"00\"))","v":""},{"$f":"IF(OrigTable!A1347=\"\",\"\",ScriptText!$E$1&CHAR(10)&ScriptText!$C$1)","v":""},{"$f":"IF(OrigTable!B1347=\"\",\"\",ScriptText!$B$1&CHAR(10)&ScriptText!$D$1)","v":""},{"$f":"IF(OrigTable!B1347=\"\",\"\",TEXT(OrigTable!B1347,\"00\"))","v":""},{"$f":"IF(OrigTable!B1347=\"\",\"\",ScriptText!$E$1&CHAR(10)&ScriptText!C1342)","v":""},{"$f":"IF(OrigTable!C1347=\"\",\"\",ScriptText!$B$1&CHAR(10)&ScriptText!$D$1)","v":""},{"$f":"IF(OrigTable!C1347=\"\",\"\",IF(LEN(OrigTable!C1347)>255,LEFT(OrigTable!C1347,250)&\". . .\",OrigTable!C1347))","v":""},{"$f":"IF(OrigTable!C1347=\"\",\"\",ScriptText!$E$1&CHAR(10)&ScriptText!$C$1)","v":""},{"$f":"IF(OrigTable!D1347=\"\",\"\",ScriptText!$B$1&CHAR(10)&ScriptText!$D$1)","v":""},{"$f":"IF(OrigTable!D1347=\"\",\"\",TEXT(OrigTable!D1347,\"00\"))","v":""},{"$f":"IF(OrigTable!D1347=\"\",\"\",ScriptText!$E$1&CHAR(10)&ScriptText!$C$1)","v":""},{"$f":"IF(OrigTable!E1347=\"\",\"\",ScriptText!$B$1&CHAR(10)&ScriptText!$D$1)","v":""},{"$f":"IF(OrigTable!E1347=\"\",\"\",TEXT(OrigTable!E1347,\"00\"))","v":""},{"$f":"IF(OrigTable!E1347=\"\",\"\",ScriptText!$E$1&CHAR(10)&ScriptText!$C$1)","v":""},{"$f":"IF(OrigTable!F1347=\"\",\"\",ScriptText!$B$1&CHAR(10)&ScriptText!$D$1)","v":""},{"$f":"IF(OrigTable!F1347=\"\",\"\",TEXT(OrigTable!F1347,\"00\"))","v":""},{"$f":"IF(OrigTable!F1347=\"\",\"\",ScriptText!$E$1&CHAR(10)&ScriptText!$C$1)","v":""},{"$f":"IF(OrigTable!G1347=\"\",\"\",ScriptText!$B$1&CHAR(10)&ScriptText!$D$1)","v":""},{"$f":"IF(OrigTable!G1347=\"\",\"\",TEXT(OrigTable!G1347,\"00\"))","v":""},{"$f":"IF(OrigTable!G1347=\"\",\"\",ScriptText!$E$1&CHAR(10)&ScriptText!$C$1)","v":""},0]
["\n\n\n",{"$f":"IF(OrigTable!A1348=\"\",\"\",ScriptText!$B$1&CHAR(10)&ScriptText!$D$1)","v":""},{"$f":"IF(OrigTable!A1348=\"\",\"\",TEXT(OrigTable!A1348,\"00\"))","v":""},{"$f":"IF(OrigTable!A1348=\"\",\"\",ScriptText!$E$1&CHAR(10)&ScriptText!$C$1)","v":""},{"$f":"IF(OrigTable!B1348=\"\",\"\",ScriptText!$B$1&CHAR(10)&ScriptText!$D$1)","v":""},{"$f":"IF(OrigTable!B1348=\"\",\"\",TEXT(OrigTable!B1348,\"00\"))","v":""},{"$f":"IF(OrigTable!B1348=\"\",\"\",ScriptText!$E$1&CHAR(10)&ScriptText!C1343)","v":""},{"$f":"IF(OrigTable!C1348=\"\",\"\",ScriptText!$B$1&CHAR(10)&ScriptText!$D$1)","v":""},{"$f":"IF(OrigTable!C1348=\"\",\"\",IF(LEN(OrigTable!C1348)>255,LEFT(OrigTable!C1348,250)&\". . .\",OrigTable!C1348))","v":""},{"$f":"IF(OrigTable!C1348=\"\",\"\",ScriptText!$E$1&CHAR(10)&ScriptText!$C$1)","v":""},{"$f":"IF(OrigTable!D1348=\"\",\"\",ScriptText!$B$1&CHAR(10)&ScriptText!$D$1)","v":""},{"$f":"IF(OrigTable!D1348=\"\",\"\",TEXT(OrigTable!D1348,\"00\"))","v":""},{"$f":"IF(OrigTable!D1348=\"\",\"\",ScriptText!$E$1&CHAR(10)&ScriptText!$C$1)","v":""},{"$f":"IF(OrigTable!E1348=\"\",\"\",ScriptText!$B$1&CHAR(10)&ScriptText!$D$1)","v":""},{"$f":"IF(OrigTable!E1348=\"\",\"\",TEXT(OrigTable!E1348,\"00\"))","v":""},{"$f":"IF(OrigTable!E1348=\"\",\"\",ScriptText!$E$1&CHAR(10)&ScriptText!$C$1)","v":""},{"$f":"IF(OrigTable!F1348=\"\",\"\",ScriptText!$B$1&CHAR(10)&ScriptText!$D$1)","v":""},{"$f":"IF(OrigTable!F1348=\"\",\"\",TEXT(OrigTable!F1348,\"00\"))","v":""},{"$f":"IF(OrigTable!F1348=\"\",\"\",ScriptText!$E$1&CHAR(10)&ScriptText!$C$1)","v":""},{"$f":"IF(OrigTable!G1348=\"\",\"\",ScriptText!$B$1&CHAR(10)&ScriptText!$D$1)","v":""},{"$f":"IF(OrigTable!G1348=\"\",\"\",TEXT(OrigTable!G1348,\"00\"))","v":""},{"$f":"IF(OrigTable!G1348=\"\",\"\",ScriptText!$E$1&CHAR(10)&ScriptText!$C$1)","v":""},0]
["\n\n\n",{"$f":"IF(OrigTable!A1349=\"\",\"\",ScriptText!$B$1&CHAR(10)&ScriptText!$D$1)","v":""},{"$f":"IF(OrigTable!A1349=\"\",\"\",TEXT(OrigTable!A1349,\"00\"))","v":""},{"$f":"IF(OrigTable!A1349=\"\",\"\",ScriptText!$E$1&CHAR(10)&ScriptText!$C$1)","v":""},{"$f":"IF(OrigTable!B1349=\"\",\"\",ScriptText!$B$1&CHAR(10)&ScriptText!$D$1)","v":""},{"$f":"IF(OrigTable!B1349=\"\",\"\",TEXT(OrigTable!B1349,\"00\"))","v":""},{"$f":"IF(OrigTable!B1349=\"\",\"\",ScriptText!$E$1&CHAR(10)&ScriptText!C1344)","v":""},{"$f":"IF(OrigTable!C1349=\"\",\"\",ScriptText!$B$1&CHAR(10)&ScriptText!$D$1)","v":""},{"$f":"IF(OrigTable!C1349=\"\",\"\",IF(LEN(OrigTable!C1349)>255,LEFT(OrigTable!C1349,250)&\". . .\",OrigTable!C1349))","v":""},{"$f":"IF(OrigTable!C1349=\"\",\"\",ScriptText!$E$1&CHAR(10)&ScriptText!$C$1)","v":""},{"$f":"IF(OrigTable!D1349=\"\",\"\",ScriptText!$B$1&CHAR(10)&ScriptText!$D$1)","v":""},{"$f":"IF(OrigTable!D1349=\"\",\"\",TEXT(OrigTable!D1349,\"00\"))","v":""},{"$f":"IF(OrigTable!D1349=\"\",\"\",ScriptText!$E$1&CHAR(10)&ScriptText!$C$1)","v":""},{"$f":"IF(OrigTable!E1349=\"\",\"\",ScriptText!$B$1&CHAR(10)&ScriptText!$D$1)","v":""},{"$f":"IF(OrigTable!E1349=\"\",\"\",TEXT(OrigTable!E1349,\"00\"))","v":""},{"$f":"IF(OrigTable!E1349=\"\",\"\",ScriptText!$E$1&CHAR(10)&ScriptText!$C$1)","v":""},{"$f":"IF(OrigTable!F1349=\"\",\"\",ScriptText!$B$1&CHAR(10)&ScriptText!$D$1)","v":""},{"$f":"IF(OrigTable!F1349=\"\",\"\",TEXT(OrigTable!F1349,\"00\"))","v":""},{"$f":"IF(OrigTable!F1349=\"\",\"\",ScriptText!$E$1&CHAR(10)&ScriptText!$C$1)","v":""},{"$f":"IF(OrigTable!G1349=\"\",\"\",ScriptText!$B$1&CHAR(10)&ScriptText!$D$1)","v":""},{"$f":"IF(OrigTable!G1349=\"\",\"\",TEXT(OrigTable!G1349,\"00\"))","v":""},{"$f":"IF(OrigTable!G1349=\"\",\"\",ScriptText!$E$1&CHAR(10)&ScriptText!$C$1)","v":""},0]
["\n\n\n",{"$f":"IF(OrigTable!A1350=\"\",\"\",ScriptText!$B$1&CHAR(10)&ScriptText!$D$1)","v":""},{"$f":"IF(OrigTable!A1350=\"\",\"\",TEXT(OrigTable!A1350,\"00\"))","v":""},{"$f":"IF(OrigTable!A1350=\"\",\"\",ScriptText!$E$1&CHAR(10)&ScriptText!$C$1)","v":""},{"$f":"IF(OrigTable!B1350=\"\",\"\",ScriptText!$B$1&CHAR(10)&ScriptText!$D$1)","v":""},{"$f":"IF(OrigTable!B1350=\"\",\"\",TEXT(OrigTable!B1350,\"00\"))","v":""},{"$f":"IF(OrigTable!B1350=\"\",\"\",ScriptText!$E$1&CHAR(10)&ScriptText!C1345)","v":""},{"$f":"IF(OrigTable!C1350=\"\",\"\",ScriptText!$B$1&CHAR(10)&ScriptText!$D$1)","v":""},{"$f":"IF(OrigTable!C1350=\"\",\"\",IF(LEN(OrigTable!C1350)>255,LEFT(OrigTable!C1350,250)&\". . .\",OrigTable!C1350))","v":""},{"$f":"IF(OrigTable!C1350=\"\",\"\",ScriptText!$E$1&CHAR(10)&ScriptText!$C$1)","v":""},{"$f":"IF(OrigTable!D1350=\"\",\"\",ScriptText!$B$1&CHAR(10)&ScriptText!$D$1)","v":""},{"$f":"IF(OrigTable!D1350=\"\",\"\",TEXT(OrigTable!D1350,\"00\"))","v":""},{"$f":"IF(OrigTable!D1350=\"\",\"\",ScriptText!$E$1&CHAR(10)&ScriptText!$C$1)","v":""},{"$f":"IF(OrigTable!E1350=\"\",\"\",ScriptText!$B$1&CHAR(10)&ScriptText!$D$1)","v":""},{"$f":"IF(OrigTable!E1350=\"\",\"\",TEXT(OrigTable!E1350,\"00\"))","v":""},{"$f":"IF(OrigTable!E1350=\"\",\"\",ScriptText!$E$1&CHAR(10)&ScriptText!$C$1)","v":""},{"$f":"IF(OrigTable!F1350=\"\",\"\",ScriptText!$B$1&CHAR(10)&ScriptText!$D$1)","v":""},{"$f":"IF(OrigTable!F1350=\"\",\"\",TEXT(OrigTable!F1350,\"00\"))","v":""},{"$f":"IF(OrigTable!F1350=\"\",\"\",ScriptText!$E$1&CHAR(10)&ScriptText!$C$1)","v":""},{"$f":"IF(OrigTable!G1350=\"\",\"\",ScriptText!$B$1&CHAR(10)&ScriptText!$D$1)","v":""},{"$f":"IF(OrigTable!G1350=\"\",\"\",TEXT(OrigTable!G1350,\"00\"))","v":""},{"$f":"IF(OrigTable!G1350=\"\",\"\",ScriptText!$E$1&CHAR(10)&ScriptText!$C$1)","v":""},{"$f":"IF(LEN(A1350)>3,ROW(),0)","v":0}]
["\n\n\n",{"$f":"IF(OrigTable!A1351=\"\",\"\",ScriptText!$B$1&CHAR(10)&ScriptText!$D$1)","v":""},{"$f":"IF(OrigTable!A1351=\"\",\"\",TEXT(OrigTable!A1351,\"00\"))","v":""},{"$f":"IF(OrigTable!A1351=\"\",\"\",ScriptText!$E$1&CHAR(10)&ScriptText!$C$1)","v":""},{"$f":"IF(OrigTable!B1351=\"\",\"\",ScriptText!$B$1&CHAR(10)&ScriptText!$D$1)","v":""},{"$f":"IF(OrigTable!B1351=\"\",\"\",TEXT(OrigTable!B1351,\"00\"))","v":""},{"$f":"IF(OrigTable!B1351=\"\",\"\",ScriptText!$E$1&CHAR(10)&ScriptText!C1346)","v":""},{"$f":"IF(OrigTable!C1351=\"\",\"\",ScriptText!$B$1&CHAR(10)&ScriptText!$D$1)","v":""},{"$f":"IF(OrigTable!C1351=\"\",\"\",IF(LEN(OrigTable!C1351)>255,LEFT(OrigTable!C1351,250)&\". . .\",OrigTable!C1351))","v":""},{"$f":"IF(OrigTable!C1351=\"\",\"\",ScriptText!$E$1&CHAR(10)&ScriptText!$C$1)","v":""},{"$f":"IF(OrigTable!D1351=\"\",\"\",ScriptText!$B$1&CHAR(10)&ScriptText!$D$1)","v":""},{"$f":"IF(OrigTable!D1351=\"\",\"\",TEXT(OrigTable!D1351,\"00\"))","v":""},{"$f":"IF(OrigTable!D1351=\"\",\"\",ScriptText!$E$1&CHAR(10)&ScriptText!$C$1)","v":""},{"$f":"IF(OrigTable!E1351=\"\",\"\",ScriptText!$B$1&CHAR(10)&ScriptText!$D$1)","v":""},{"$f":"IF(OrigTable!E1351=\"\",\"\",TEXT(OrigTable!E1351,\"00\"))","v":""},{"$f":"IF(OrigTable!E1351=\"\",\"\",ScriptText!$E$1&CHAR(10)&ScriptText!$C$1)","v":""},{"$f":"IF(OrigTable!F1351=\"\",\"\",ScriptText!$B$1&CHAR(10)&ScriptText!$D$1)","v":""},{"$f":"IF(OrigTable!F1351=\"\",\"\",TEXT(OrigTable!F1351,\"00\"))","v":""},{"$f":"IF(OrigTable!F1351=\"\",\"\",ScriptText!$E$1&CHAR(10)&ScriptText!$C$1)","v":""},{"$f":"IF(OrigTable!G1351=\"\",\"\",ScriptText!$B$1&CHAR(10)&ScriptText!$D$1)","v":""},{"$f":"IF(OrigTable!G1351=\"\",\"\",TEXT(OrigTable!G1351,\"00\"))","v":""},{"$f":"IF(OrigTable!G1351=\"\",\"\",ScriptText!$E$1&CHAR(10)&ScriptText!$C$1)","v":""},0]
["\n\n\n",{"$f":"IF(OrigTable!A1352=\"\",\"\",ScriptText!$B$1&CHAR(10)&ScriptText!$D$1)","v":""},{"$f":"IF(OrigTable!A1352=\"\",\"\",TEXT(OrigTable!A1352,\"00\"))","v":""},{"$f":"IF(OrigTable!A1352=\"\",\"\",ScriptText!$E$1&CHAR(10)&ScriptText!$C$1)","v":""},{"$f":"IF(OrigTable!B1352=\"\",\"\",ScriptText!$B$1&CHAR(10)&ScriptText!$D$1)","v":""},{"$f":"IF(OrigTable!B1352=\"\",\"\",TEXT(OrigTable!B1352,\"00\"))","v":""},{"$f":"IF(OrigTable!B1352=\"\",\"\",ScriptText!$E$1&CHAR(10)&ScriptText!C1347)","v":""},{"$f":"IF(OrigTable!C1352=\"\",\"\",ScriptText!$B$1&CHAR(10)&ScriptText!$D$1)","v":""},{"$f":"IF(OrigTable!C1352=\"\",\"\",IF(LEN(OrigTable!C1352)>255,LEFT(OrigTable!C1352,250)&\". . .\",OrigTable!C1352))","v":""},{"$f":"IF(OrigTable!C1352=\"\",\"\",ScriptText!$E$1&CHAR(10)&ScriptText!$C$1)","v":""},{"$f":"IF(OrigTable!D1352=\"\",\"\",ScriptText!$B$1&CHAR(10)&ScriptText!$D$1)","v":""},{"$f":"IF(OrigTable!D1352=\"\",\"\",TEXT(OrigTable!D1352,\"00\"))","v":""},{"$f":"IF(OrigTable!D1352=\"\",\"\",ScriptText!$E$1&CHAR(10)&ScriptText!$C$1)","v":""},{"$f":"IF(OrigTable!E1352=\"\",\"\",ScriptText!$B$1&CHAR(10)&ScriptText!$D$1)","v":""},{"$f":"IF(OrigTable!E1352=\"\",\"\",TEXT(OrigTable!E1352,\"00\"))","v":""},{"$f":"IF(OrigTable!E1352=\"\",\"\",ScriptText!$E$1&CHAR(10)&ScriptText!$C$1)","v":""},{"$f":"IF(OrigTable!F1352=\"\",\"\",ScriptText!$B$1&CHAR(10)&ScriptText!$D$1)","v":""},{"$f":"IF(OrigTable!F1352=\"\",\"\",TEXT(OrigTable!F1352,\"00\"))","v":""},{"$f":"IF(OrigTable!F1352=\"\",\"\",ScriptText!$E$1&CHAR(10)&ScriptText!$C$1)","v":""},{"$f":"IF(OrigTable!G1352=\"\",\"\",ScriptText!$B$1&CHAR(10)&ScriptText!$D$1)","v":""},{"$f":"IF(OrigTable!G1352=\"\",\"\",TEXT(OrigTable!G1352,\"00\"))","v":""},{"$f":"IF(OrigTable!G1352=\"\",\"\",ScriptText!$E$1&CHAR(10)&ScriptText!$C$1)","v":""},0]
[{"$f":"_xlfn.TEXTJOIN(\"\",TRUE,B1353:D1353)&CHAR(10)&_xlfn.TEXTJOIN(\"\",TRUE,E1353:G1353)&CHAR(10)&_xlfn.TEXTJOIN(\"\",TRUE,H1353:J1353)&CHAR(10)&_xlfn.TEXTJOIN(\"\",TRUE,K1353:M1353)&_xlfn.TEXTJOIN(\"\",TRUE,N1353:P1353)&_xlfn.TEXTJOIN(\"\",TRUE,Q1353:S1353)&_xlfn.TEXTJOIN(\"\",TRUE,T1353:V1353)","v":"\n\n\n"},{"$f":"IF(OrigTable!A1353=\"\",\"\",ScriptText!$B$1&CHAR(10)&ScriptText!$D$1)","v":""},{"$f":"IF(OrigTable!A1353=\"\",\"\",TEXT(OrigTable!A1353,\"00\"))","v":""},{"$f":"IF(OrigTable!A1353=\"\",\"\",ScriptText!$E$1&CHAR(10)&ScriptText!$C$1)","v":""},{"$f":"IF(OrigTable!B1353=\"\",\"\",ScriptText!$B$1&CHAR(10)&ScriptText!$D$1)","v":""},{"$f":"IF(OrigTable!B1353=\"\",\"\",TEXT(OrigTable!B1353,\"00\"))","v":""},{"$f":"IF(OrigTable!B1353=\"\",\"\",ScriptText!$E$1&CHAR(10)&ScriptText!C1348)","v":""},{"$f":"IF(OrigTable!C1353=\"\",\"\",ScriptText!$B$1&CHAR(10)&ScriptText!$D$1)","v":""},{"$f":"IF(OrigTable!C1353=\"\",\"\",IF(LEN(OrigTable!C1353)>255,LEFT(OrigTable!C1353,250)&\". . .\",OrigTable!C1353))","v":""},{"$f":"IF(OrigTable!C1353=\"\",\"\",ScriptText!$E$1&CHAR(10)&ScriptText!$C$1)","v":""},{"$f":"IF(OrigTable!D1353=\"\",\"\",ScriptText!$B$1&CHAR(10)&ScriptText!$D$1)","v":""},{"$f":"IF(OrigTable!D1353=\"\",\"\",TEXT(OrigTable!D1353,\"00\"))","v":""},{"$f":"IF(OrigTable!D1353=\"\",\"\",ScriptText!$E$1&CHAR(10)&ScriptText!$C$1)","v":""},{"$f":"IF(OrigTable!E1353=\"\",\"\",ScriptText!$B$1&CHAR(10)&ScriptText!$D$1)","v":""},{"$f":"IF(OrigTable!E1353=\"\",\"\",TEXT(OrigTable!E1353,\"00\"))","v":""},{"$f":"IF(OrigTable!E1353=\"\",\"\",ScriptText!$E$1&CHAR(10)&ScriptText!$C$1)","v":""},{"$f":"IF(OrigTable!F1353=\"\",\"\",ScriptText!$B$1&CHAR(10)&ScriptText!$D$1)","v":""},{"$f":"IF(OrigTable!F1353=\"\",\"\",TEXT(OrigTable!F1353,\"00\"))","v":""},{"$f":"IF(OrigTable!F1353=\"\",\"\",ScriptText!$E$1&CHAR(10)&ScriptText!$C$1)","v":""},{"$f":"IF(OrigTable!G1353=\"\",\"\",ScriptText!$B$1&CHAR(10)&ScriptText!$D$1)","v":""},{"$f":"IF(OrigTable!G1353=\"\",\"\",TEXT(OrigTable!G1353,\"00\"))","v":""},{"$f":"IF(OrigTable!G1353=\"\",\"\",ScriptText!$E$1&CHAR(10)&ScriptText!$C$1)","v":""},0]
["\n\n\n",{"$f":"IF(OrigTable!A1354=\"\",\"\",ScriptText!$B$1&CHAR(10)&ScriptText!$D$1)","v":""},{"$f":"IF(OrigTable!A1354=\"\",\"\",TEXT(OrigTable!A1354,\"00\"))","v":""},{"$f":"IF(OrigTable!A1354=\"\",\"\",ScriptText!$E$1&CHAR(10)&ScriptText!$C$1)","v":""},{"$f":"IF(OrigTable!B1354=\"\",\"\",ScriptText!$B$1&CHAR(10)&ScriptText!$D$1)","v":""},{"$f":"IF(OrigTable!B1354=\"\",\"\",TEXT(OrigTable!B1354,\"00\"))","v":""},{"$f":"IF(OrigTable!B1354=\"\",\"\",ScriptText!$E$1&CHAR(10)&ScriptText!C1349)","v":""},{"$f":"IF(OrigTable!C1354=\"\",\"\",ScriptText!$B$1&CHAR(10)&ScriptText!$D$1)","v":""},{"$f":"IF(OrigTable!C1354=\"\",\"\",IF(LEN(OrigTable!C1354)>255,LEFT(OrigTable!C1354,250)&\". . .\",OrigTable!C1354))","v":""},{"$f":"IF(OrigTable!C1354=\"\",\"\",ScriptText!$E$1&CHAR(10)&ScriptText!$C$1)","v":""},{"$f":"IF(OrigTable!D1354=\"\",\"\",ScriptText!$B$1&CHAR(10)&ScriptText!$D$1)","v":""},{"$f":"IF(OrigTable!D1354=\"\",\"\",TEXT(OrigTable!D1354,\"00\"))","v":""},{"$f":"IF(OrigTable!D1354=\"\",\"\",ScriptText!$E$1&CHAR(10)&ScriptText!$C$1)","v":""},{"$f":"IF(OrigTable!E1354=\"\",\"\",ScriptText!$B$1&CHAR(10)&ScriptText!$D$1)","v":""},{"$f":"IF(OrigTable!E1354=\"\",\"\",TEXT(OrigTable!E1354,\"00\"))","v":""},{"$f":"IF(OrigTable!E1354=\"\",\"\",ScriptText!$E$1&CHAR(10)&ScriptText!$C$1)","v":""},{"$f":"IF(OrigTable!F1354=\"\",\"\",ScriptText!$B$1&CHAR(10)&ScriptText!$D$1)","v":""},{"$f":"IF(OrigTable!F1354=\"\",\"\",TEXT(OrigTable!F1354,\"00\"))","v":""},{"$f":"IF(OrigTable!F1354=\"\",\"\",ScriptText!$E$1&CHAR(10)&ScriptText!$C$1)","v":""},{"$f":"IF(OrigTable!G1354=\"\",\"\",ScriptText!$B$1&CHAR(10)&ScriptText!$D$1)","v":""},{"$f":"IF(OrigTable!G1354=\"\",\"\",TEXT(OrigTable!G1354,\"00\"))","v":""},{"$f":"IF(OrigTable!G1354=\"\",\"\",ScriptText!$E$1&CHAR(10)&ScriptText!$C$1)","v":""},0]
["\n\n\n",{"$f":"IF(OrigTable!A1355=\"\",\"\",ScriptText!$B$1&CHAR(10)&ScriptText!$D$1)","v":""},{"$f":"IF(OrigTable!A1355=\"\",\"\",TEXT(OrigTable!A1355,\"00\"))","v":""},{"$f":"IF(OrigTable!A1355=\"\",\"\",ScriptText!$E$1&CHAR(10)&ScriptText!$C$1)","v":""},{"$f":"IF(OrigTable!B1355=\"\",\"\",ScriptText!$B$1&CHAR(10)&ScriptText!$D$1)","v":""},{"$f":"IF(OrigTable!B1355=\"\",\"\",TEXT(OrigTable!B1355,\"00\"))","v":""},{"$f":"IF(OrigTable!B1355=\"\",\"\",ScriptText!$E$1&CHAR(10)&ScriptText!C1350)","v":""},{"$f":"IF(OrigTable!C1355=\"\",\"\",ScriptText!$B$1&CHAR(10)&ScriptText!$D$1)","v":""},{"$f":"IF(OrigTable!C1355=\"\",\"\",IF(LEN(OrigTable!C1355)>255,LEFT(OrigTable!C1355,250)&\". . .\",OrigTable!C1355))","v":""},{"$f":"IF(OrigTable!C1355=\"\",\"\",ScriptText!$E$1&CHAR(10)&ScriptText!$C$1)","v":""},{"$f":"IF(OrigTable!D1355=\"\",\"\",ScriptText!$B$1&CHAR(10)&ScriptText!$D$1)","v":""},{"$f":"IF(OrigTable!D1355=\"\",\"\",TEXT(OrigTable!D1355,\"00\"))","v":""},{"$f":"IF(OrigTable!D1355=\"\",\"\",ScriptText!$E$1&CHAR(10)&ScriptText!$C$1)","v":""},{"$f":"IF(OrigTable!E1355=\"\",\"\",ScriptText!$B$1&CHAR(10)&ScriptText!$D$1)","v":""},{"$f":"IF(OrigTable!E1355=\"\",\"\",TEXT(OrigTable!E1355,\"00\"))","v":""},{"$f":"IF(OrigTable!E1355=\"\",\"\",ScriptText!$E$1&CHAR(10)&ScriptText!$C$1)","v":""},{"$f":"IF(OrigTable!F1355=\"\",\"\",ScriptText!$B$1&CHAR(10)&ScriptText!$D$1)","v":""},{"$f":"IF(OrigTable!F1355=\"\",\"\",TEXT(OrigTable!F1355,\"00\"))","v":""},{"$f":"IF(OrigTable!F1355=\"\",\"\",ScriptText!$E$1&CHAR(10)&ScriptText!$C$1)","v":""},{"$f":"IF(OrigTable!G1355=\"\",\"\",ScriptText!$B$1&CHAR(10)&ScriptText!$D$1)","v":""},{"$f":"IF(OrigTable!G1355=\"\",\"\",TEXT(OrigTable!G1355,\"00\"))","v":""},{"$f":"IF(OrigTable!G1355=\"\",\"\",ScriptText!$E$1&CHAR(10)&ScriptText!$C$1)","v":""},0]
["\n\n\n",{"$f":"IF(OrigTable!A1356=\"\",\"\",ScriptText!$B$1&CHAR(10)&ScriptText!$D$1)","v":""},{"$f":"IF(OrigTable!A1356=\"\",\"\",TEXT(OrigTable!A1356,\"00\"))","v":""},{"$f":"IF(OrigTable!A1356=\"\",\"\",ScriptText!$E$1&CHAR(10)&ScriptText!$C$1)","v":""},{"$f":"IF(OrigTable!B1356=\"\",\"\",ScriptText!$B$1&CHAR(10)&ScriptText!$D$1)","v":""},{"$f":"IF(OrigTable!B1356=\"\",\"\",TEXT(OrigTable!B1356,\"00\"))","v":""},{"$f":"IF(OrigTable!B1356=\"\",\"\",ScriptText!$E$1&CHAR(10)&ScriptText!C1351)","v":""},{"$f":"IF(OrigTable!C1356=\"\",\"\",ScriptText!$B$1&CHAR(10)&ScriptText!$D$1)","v":""},{"$f":"IF(OrigTable!C1356=\"\",\"\",IF(LEN(OrigTable!C1356)>255,LEFT(OrigTable!C1356,250)&\". . .\",OrigTable!C1356))","v":""},{"$f":"IF(OrigTable!C1356=\"\",\"\",ScriptText!$E$1&CHAR(10)&ScriptText!$C$1)","v":""},{"$f":"IF(OrigTable!D1356=\"\",\"\",ScriptText!$B$1&CHAR(10)&ScriptText!$D$1)","v":""},{"$f":"IF(OrigTable!D1356=\"\",\"\",TEXT(OrigTable!D1356,\"00\"))","v":""},{"$f":"IF(OrigTable!D1356=\"\",\"\",ScriptText!$E$1&CHAR(10)&ScriptText!$C$1)","v":""},{"$f":"IF(OrigTable!E1356=\"\",\"\",ScriptText!$B$1&CHAR(10)&ScriptText!$D$1)","v":""},{"$f":"IF(OrigTable!E1356=\"\",\"\",TEXT(OrigTable!E1356,\"00\"))","v":""},{"$f":"IF(OrigTable!E1356=\"\",\"\",ScriptText!$E$1&CHAR(10)&ScriptText!$C$1)","v":""},{"$f":"IF(OrigTable!F1356=\"\",\"\",ScriptText!$B$1&CHAR(10)&ScriptText!$D$1)","v":""},{"$f":"IF(OrigTable!F1356=\"\",\"\",TEXT(OrigTable!F1356,\"00\"))","v":""},{"$f":"IF(OrigTable!F1356=\"\",\"\",ScriptText!$E$1&CHAR(10)&ScriptText!$C$1)","v":""},{"$f":"IF(OrigTable!G1356=\"\",\"\",ScriptText!$B$1&CHAR(10)&ScriptText!$D$1)","v":""},{"$f":"IF(OrigTable!G1356=\"\",\"\",TEXT(OrigTable!G1356,\"00\"))","v":""},{"$f":"IF(OrigTable!G1356=\"\",\"\",ScriptText!$E$1&CHAR(10)&ScriptText!$C$1)","v":""},0]
["\n\n\n",{"$f":"IF(OrigTable!A1357=\"\",\"\",ScriptText!$B$1&CHAR(10)&ScriptText!$D$1)","v":""},{"$f":"IF(OrigTable!A1357=\"\",\"\",TEXT(OrigTable!A1357,\"00\"))","v":""},{"$f":"IF(OrigTable!A1357=\"\",\"\",ScriptText!$E$1&CHAR(10)&ScriptText!$C$1)","v":""},{"$f":"IF(OrigTable!B1357=\"\",\"\",ScriptText!$B$1&CHAR(10)&ScriptText!$D$1)","v":""},{"$f":"IF(OrigTable!B1357=\"\",\"\",TEXT(OrigTable!B1357,\"00\"))","v":""},{"$f":"IF(OrigTable!B1357=\"\",\"\",ScriptText!$E$1&CHAR(10)&ScriptText!C1352)","v":""},{"$f":"IF(OrigTable!C1357=\"\",\"\",ScriptText!$B$1&CHAR(10)&ScriptText!$D$1)","v":""},{"$f":"IF(OrigTable!C1357=\"\",\"\",IF(LEN(OrigTable!C1357)>255,LEFT(OrigTable!C1357,250)&\". . .\",OrigTable!C1357))","v":""},{"$f":"IF(OrigTable!C1357=\"\",\"\",ScriptText!$E$1&CHAR(10)&ScriptText!$C$1)","v":""},{"$f":"IF(OrigTable!D1357=\"\",\"\",ScriptText!$B$1&CHAR(10)&ScriptText!$D$1)","v":""},{"$f":"IF(OrigTable!D1357=\"\",\"\",TEXT(OrigTable!D1357,\"00\"))","v":""},{"$f":"IF(OrigTable!D1357=\"\",\"\",ScriptText!$E$1&CHAR(10)&ScriptText!$C$1)","v":""},{"$f":"IF(OrigTable!E1357=\"\",\"\",ScriptText!$B$1&CHAR(10)&ScriptText!$D$1)","v":""},{"$f":"IF(OrigTable!E1357=\"\",\"\",TEXT(OrigTable!E1357,\"00\"))","v":""},{"$f":"IF(OrigTable!E1357=\"\",\"\",ScriptText!$E$1&CHAR(10)&ScriptText!$C$1)","v":""},{"$f":"IF(OrigTable!F1357=\"\",\"\",ScriptText!$B$1&CHAR(10)&ScriptText!$D$1)","v":""},{"$f":"IF(OrigTable!F1357=\"\",\"\",TEXT(OrigTable!F1357,\"00\"))","v":""},{"$f":"IF(OrigTable!F1357=\"\",\"\",ScriptText!$E$1&CHAR(10)&ScriptText!$C$1)","v":""},{"$f":"IF(OrigTable!G1357=\"\",\"\",ScriptText!$B$1&CHAR(10)&ScriptText!$D$1)","v":""},{"$f":"IF(OrigTable!G1357=\"\",\"\",TEXT(OrigTable!G1357,\"00\"))","v":""},{"$f":"IF(OrigTable!G1357=\"\",\"\",ScriptText!$E$1&CHAR(10)&ScriptText!$C$1)","v":""},0]
["\n\n\n",{"$f":"IF(OrigTable!A1358=\"\",\"\",ScriptText!$B$1&CHAR(10)&ScriptText!$D$1)","v":""},{"$f":"IF(OrigTable!A1358=\"\",\"\",TEXT(OrigTable!A1358,\"00\"))","v":""},{"$f":"IF(OrigTable!A1358=\"\",\"\",ScriptText!$E$1&CHAR(10)&ScriptText!$C$1)","v":""},{"$f":"IF(OrigTable!B1358=\"\",\"\",ScriptText!$B$1&CHAR(10)&ScriptText!$D$1)","v":""},{"$f":"IF(OrigTable!B1358=\"\",\"\",TEXT(OrigTable!B1358,\"00\"))","v":""},{"$f":"IF(OrigTable!B1358=\"\",\"\",ScriptText!$E$1&CHAR(10)&ScriptText!C1353)","v":""},{"$f":"IF(OrigTable!C1358=\"\",\"\",ScriptText!$B$1&CHAR(10)&ScriptText!$D$1)","v":""},{"$f":"IF(OrigTable!C1358=\"\",\"\",IF(LEN(OrigTable!C1358)>255,LEFT(OrigTable!C1358,250)&\". . .\",OrigTable!C1358))","v":""},{"$f":"IF(OrigTable!C1358=\"\",\"\",ScriptText!$E$1&CHAR(10)&ScriptText!$C$1)","v":""},{"$f":"IF(OrigTable!D1358=\"\",\"\",ScriptText!$B$1&CHAR(10)&ScriptText!$D$1)","v":""},{"$f":"IF(OrigTable!D1358=\"\",\"\",TEXT(OrigTable!D1358,\"00\"))","v":""},{"$f":"IF(OrigTable!D1358=\"\",\"\",ScriptText!$E$1&CHAR(10)&ScriptText!$C$1)","v":""},{"$f":"IF(OrigTable!E1358=\"\",\"\",ScriptText!$B$1&CHAR(10)&ScriptText!$D$1)","v":""},{"$f":"IF(OrigTable!E1358=\"\",\"\",TEXT(OrigTable!E1358,\"00\"))","v":""},{"$f":"IF(OrigTable!E1358=\"\",\"\",ScriptText!$E$1&CHAR(10)&ScriptText!$C$1)","v":""},{"$f":"IF(OrigTable!F1358=\"\",\"\",ScriptText!$B$1&CHAR(10)&ScriptText!$D$1)","v":""},{"$f":"IF(OrigTable!F1358=\"\",\"\",TEXT(OrigTable!F1358,\"00\"))","v":""},{"$f":"IF(OrigTable!F1358=\"\",\"\",ScriptText!$E$1&CHAR(10)&ScriptText!$C$1)","v":""},{"$f":"IF(OrigTable!G1358=\"\",\"\",ScriptText!$B$1&CHAR(10)&ScriptText!$D$1)","v":""},{"$f":"IF(OrigTable!G1358=\"\",\"\",TEXT(OrigTable!G1358,\"00\"))","v":""},{"$f":"IF(OrigTable!G1358=\"\",\"\",ScriptText!$E$1&CHAR(10)&ScriptText!$C$1)","v":""},0]
["\n\n\n",{"$f":"IF(OrigTable!A1359=\"\",\"\",ScriptText!$B$1&CHAR(10)&ScriptText!$D$1)","v":""},{"$f":"IF(OrigTable!A1359=\"\",\"\",TEXT(OrigTable!A1359,\"00\"))","v":""},{"$f":"IF(OrigTable!A1359=\"\",\"\",ScriptText!$E$1&CHAR(10)&ScriptText!$C$1)","v":""},{"$f":"IF(OrigTable!B1359=\"\",\"\",ScriptText!$B$1&CHAR(10)&ScriptText!$D$1)","v":""},{"$f":"IF(OrigTable!B1359=\"\",\"\",TEXT(OrigTable!B1359,\"00\"))","v":""},{"$f":"IF(OrigTable!B1359=\"\",\"\",ScriptText!$E$1&CHAR(10)&ScriptText!C1354)","v":""},{"$f":"IF(OrigTable!C1359=\"\",\"\",ScriptText!$B$1&CHAR(10)&ScriptText!$D$1)","v":""},{"$f":"IF(OrigTable!C1359=\"\",\"\",IF(LEN(OrigTable!C1359)>255,LEFT(OrigTable!C1359,250)&\". . .\",OrigTable!C1359))","v":""},{"$f":"IF(OrigTable!C1359=\"\",\"\",ScriptText!$E$1&CHAR(10)&ScriptText!$C$1)","v":""},{"$f":"IF(OrigTable!D1359=\"\",\"\",ScriptText!$B$1&CHAR(10)&ScriptText!$D$1)","v":""},{"$f":"IF(OrigTable!D1359=\"\",\"\",TEXT(OrigTable!D1359,\"00\"))","v":""},{"$f":"IF(OrigTable!D1359=\"\",\"\",ScriptText!$E$1&CHAR(10)&ScriptText!$C$1)","v":""},{"$f":"IF(OrigTable!E1359=\"\",\"\",ScriptText!$B$1&CHAR(10)&ScriptText!$D$1)","v":""},{"$f":"IF(OrigTable!E1359=\"\",\"\",TEXT(OrigTable!E1359,\"00\"))","v":""},{"$f":"IF(OrigTable!E1359=\"\",\"\",ScriptText!$E$1&CHAR(10)&ScriptText!$C$1)","v":""},{"$f":"IF(OrigTable!F1359=\"\",\"\",ScriptText!$B$1&CHAR(10)&ScriptText!$D$1)","v":""},{"$f":"IF(OrigTable!F1359=\"\",\"\",TEXT(OrigTable!F1359,\"00\"))","v":""},{"$f":"IF(OrigTable!F1359=\"\",\"\",ScriptText!$E$1&CHAR(10)&ScriptText!$C$1)","v":""},{"$f":"IF(OrigTable!G1359=\"\",\"\",ScriptText!$B$1&CHAR(10)&ScriptText!$D$1)","v":""},{"$f":"IF(OrigTable!G1359=\"\",\"\",TEXT(OrigTable!G1359,\"00\"))","v":""},{"$f":"IF(OrigTable!G1359=\"\",\"\",ScriptText!$E$1&CHAR(10)&ScriptText!$C$1)","v":""},0]
["\n\n\n",{"$f":"IF(OrigTable!A1360=\"\",\"\",ScriptText!$B$1&CHAR(10)&ScriptText!$D$1)","v":""},{"$f":"IF(OrigTable!A1360=\"\",\"\",TEXT(OrigTable!A1360,\"00\"))","v":""},{"$f":"IF(OrigTable!A1360=\"\",\"\",ScriptText!$E$1&CHAR(10)&ScriptText!$C$1)","v":""},{"$f":"IF(OrigTable!B1360=\"\",\"\",ScriptText!$B$1&CHAR(10)&ScriptText!$D$1)","v":""},{"$f":"IF(OrigTable!B1360=\"\",\"\",TEXT(OrigTable!B1360,\"00\"))","v":""},{"$f":"IF(OrigTable!B1360=\"\",\"\",ScriptText!$E$1&CHAR(10)&ScriptText!C1355)","v":""},{"$f":"IF(OrigTable!C1360=\"\",\"\",ScriptText!$B$1&CHAR(10)&ScriptText!$D$1)","v":""},{"$f":"IF(OrigTable!C1360=\"\",\"\",IF(LEN(OrigTable!C1360)>255,LEFT(OrigTable!C1360,250)&\". . .\",OrigTable!C1360))","v":""},{"$f":"IF(OrigTable!C1360=\"\",\"\",ScriptText!$E$1&CHAR(10)&ScriptText!$C$1)","v":""},{"$f":"IF(OrigTable!D1360=\"\",\"\",ScriptText!$B$1&CHAR(10)&ScriptText!$D$1)","v":""},{"$f":"IF(OrigTable!D1360=\"\",\"\",TEXT(OrigTable!D1360,\"00\"))","v":""},{"$f":"IF(OrigTable!D1360=\"\",\"\",ScriptText!$E$1&CHAR(10)&ScriptText!$C$1)","v":""},{"$f":"IF(OrigTable!E1360=\"\",\"\",ScriptText!$B$1&CHAR(10)&ScriptText!$D$1)","v":""},{"$f":"IF(OrigTable!E1360=\"\",\"\",TEXT(OrigTable!E1360,\"00\"))","v":""},{"$f":"IF(OrigTable!E1360=\"\",\"\",ScriptText!$E$1&CHAR(10)&ScriptText!$C$1)","v":""},{"$f":"IF(OrigTable!F1360=\"\",\"\",ScriptText!$B$1&CHAR(10)&ScriptText!$D$1)","v":""},{"$f":"IF(OrigTable!F1360=\"\",\"\",TEXT(OrigTable!F1360,\"00\"))","v":""},{"$f":"IF(OrigTable!F1360=\"\",\"\",ScriptText!$E$1&CHAR(10)&ScriptText!$C$1)","v":""},{"$f":"IF(OrigTable!G1360=\"\",\"\",ScriptText!$B$1&CHAR(10)&ScriptText!$D$1)","v":""},{"$f":"IF(OrigTable!G1360=\"\",\"\",TEXT(OrigTable!G1360,\"00\"))","v":""},{"$f":"IF(OrigTable!G1360=\"\",\"\",ScriptText!$E$1&CHAR(10)&ScriptText!$C$1)","v":""},0]
["\n\n\n",{"$f":"IF(OrigTable!A1361=\"\",\"\",ScriptText!$B$1&CHAR(10)&ScriptText!$D$1)","v":""},{"$f":"IF(OrigTable!A1361=\"\",\"\",TEXT(OrigTable!A1361,\"00\"))","v":""},{"$f":"IF(OrigTable!A1361=\"\",\"\",ScriptText!$E$1&CHAR(10)&ScriptText!$C$1)","v":""},{"$f":"IF(OrigTable!B1361=\"\",\"\",ScriptText!$B$1&CHAR(10)&ScriptText!$D$1)","v":""},{"$f":"IF(OrigTable!B1361=\"\",\"\",TEXT(OrigTable!B1361,\"00\"))","v":""},{"$f":"IF(OrigTable!B1361=\"\",\"\",ScriptText!$E$1&CHAR(10)&ScriptText!C1356)","v":""},{"$f":"IF(OrigTable!C1361=\"\",\"\",ScriptText!$B$1&CHAR(10)&ScriptText!$D$1)","v":""},{"$f":"IF(OrigTable!C1361=\"\",\"\",IF(LEN(OrigTable!C1361)>255,LEFT(OrigTable!C1361,250)&\". . .\",OrigTable!C1361))","v":""},{"$f":"IF(OrigTable!C1361=\"\",\"\",ScriptText!$E$1&CHAR(10)&ScriptText!$C$1)","v":""},{"$f":"IF(OrigTable!D1361=\"\",\"\",ScriptText!$B$1&CHAR(10)&ScriptText!$D$1)","v":""},{"$f":"IF(OrigTable!D1361=\"\",\"\",TEXT(OrigTable!D1361,\"00\"))","v":""},{"$f":"IF(OrigTable!D1361=\"\",\"\",ScriptText!$E$1&CHAR(10)&ScriptText!$C$1)","v":""},{"$f":"IF(OrigTable!E1361=\"\",\"\",ScriptText!$B$1&CHAR(10)&ScriptText!$D$1)","v":""},{"$f":"IF(OrigTable!E1361=\"\",\"\",TEXT(OrigTable!E1361,\"00\"))","v":""},{"$f":"IF(OrigTable!E1361=\"\",\"\",ScriptText!$E$1&CHAR(10)&ScriptText!$C$1)","v":""},{"$f":"IF(OrigTable!F1361=\"\",\"\",ScriptText!$B$1&CHAR(10)&ScriptText!$D$1)","v":""},{"$f":"IF(OrigTable!F1361=\"\",\"\",TEXT(OrigTable!F1361,\"00\"))","v":""},{"$f":"IF(OrigTable!F1361=\"\",\"\",ScriptText!$E$1&CHAR(10)&ScriptText!$C$1)","v":""},{"$f":"IF(OrigTable!G1361=\"\",\"\",ScriptText!$B$1&CHAR(10)&ScriptText!$D$1)","v":""},{"$f":"IF(OrigTable!G1361=\"\",\"\",TEXT(OrigTable!G1361,\"00\"))","v":""},{"$f":"IF(OrigTable!G1361=\"\",\"\",ScriptText!$E$1&CHAR(10)&ScriptText!$C$1)","v":""},0]
["\n\n\n",{"$f":"IF(OrigTable!A1362=\"\",\"\",ScriptText!$B$1&CHAR(10)&ScriptText!$D$1)","v":""},{"$f":"IF(OrigTable!A1362=\"\",\"\",TEXT(OrigTable!A1362,\"00\"))","v":""},{"$f":"IF(OrigTable!A1362=\"\",\"\",ScriptText!$E$1&CHAR(10)&ScriptText!$C$1)","v":""},{"$f":"IF(OrigTable!B1362=\"\",\"\",ScriptText!$B$1&CHAR(10)&ScriptText!$D$1)","v":""},{"$f":"IF(OrigTable!B1362=\"\",\"\",TEXT(OrigTable!B1362,\"00\"))","v":""},{"$f":"IF(OrigTable!B1362=\"\",\"\",ScriptText!$E$1&CHAR(10)&ScriptText!C1357)","v":""},{"$f":"IF(OrigTable!C1362=\"\",\"\",ScriptText!$B$1&CHAR(10)&ScriptText!$D$1)","v":""},{"$f":"IF(OrigTable!C1362=\"\",\"\",IF(LEN(OrigTable!C1362)>255,LEFT(OrigTable!C1362,250)&\". . .\",OrigTable!C1362))","v":""},{"$f":"IF(OrigTable!C1362=\"\",\"\",ScriptText!$E$1&CHAR(10)&ScriptText!$C$1)","v":""},{"$f":"IF(OrigTable!D1362=\"\",\"\",ScriptText!$B$1&CHAR(10)&ScriptText!$D$1)","v":""},{"$f":"IF(OrigTable!D1362=\"\",\"\",TEXT(OrigTable!D1362,\"00\"))","v":""},{"$f":"IF(OrigTable!D1362=\"\",\"\",ScriptText!$E$1&CHAR(10)&ScriptText!$C$1)","v":""},{"$f":"IF(OrigTable!E1362=\"\",\"\",ScriptText!$B$1&CHAR(10)&ScriptText!$D$1)","v":""},{"$f":"IF(OrigTable!E1362=\"\",\"\",TEXT(OrigTable!E1362,\"00\"))","v":""},{"$f":"IF(OrigTable!E1362=\"\",\"\",ScriptText!$E$1&CHAR(10)&ScriptText!$C$1)","v":""},{"$f":"IF(OrigTable!F1362=\"\",\"\",ScriptText!$B$1&CHAR(10)&ScriptText!$D$1)","v":""},{"$f":"IF(OrigTable!F1362=\"\",\"\",TEXT(OrigTable!F1362,\"00\"))","v":""},{"$f":"IF(OrigTable!F1362=\"\",\"\",ScriptText!$E$1&CHAR(10)&ScriptText!$C$1)","v":""},{"$f":"IF(OrigTable!G1362=\"\",\"\",ScriptText!$B$1&CHAR(10)&ScriptText!$D$1)","v":""},{"$f":"IF(OrigTable!G1362=\"\",\"\",TEXT(OrigTable!G1362,\"00\"))","v":""},{"$f":"IF(OrigTable!G1362=\"\",\"\",ScriptText!$E$1&CHAR(10)&ScriptText!$C$1)","v":""},0]
["\n\n\n",{"$f":"IF(OrigTable!A1363=\"\",\"\",ScriptText!$B$1&CHAR(10)&ScriptText!$D$1)","v":""},{"$f":"IF(OrigTable!A1363=\"\",\"\",TEXT(OrigTable!A1363,\"00\"))","v":""},{"$f":"IF(OrigTable!A1363=\"\",\"\",ScriptText!$E$1&CHAR(10)&ScriptText!$C$1)","v":""},{"$f":"IF(OrigTable!B1363=\"\",\"\",ScriptText!$B$1&CHAR(10)&ScriptText!$D$1)","v":""},{"$f":"IF(OrigTable!B1363=\"\",\"\",TEXT(OrigTable!B1363,\"00\"))","v":""},{"$f":"IF(OrigTable!B1363=\"\",\"\",ScriptText!$E$1&CHAR(10)&ScriptText!C1358)","v":""},{"$f":"IF(OrigTable!C1363=\"\",\"\",ScriptText!$B$1&CHAR(10)&ScriptText!$D$1)","v":""},{"$f":"IF(OrigTable!C1363=\"\",\"\",IF(LEN(OrigTable!C1363)>255,LEFT(OrigTable!C1363,250)&\". . .\",OrigTable!C1363))","v":""},{"$f":"IF(OrigTable!C1363=\"\",\"\",ScriptText!$E$1&CHAR(10)&ScriptText!$C$1)","v":""},{"$f":"IF(OrigTable!D1363=\"\",\"\",ScriptText!$B$1&CHAR(10)&ScriptText!$D$1)","v":""},{"$f":"IF(OrigTable!D1363=\"\",\"\",TEXT(OrigTable!D1363,\"00\"))","v":""},{"$f":"IF(OrigTable!D1363=\"\",\"\",ScriptText!$E$1&CHAR(10)&ScriptText!$C$1)","v":""},{"$f":"IF(OrigTable!E1363=\"\",\"\",ScriptText!$B$1&CHAR(10)&ScriptText!$D$1)","v":""},{"$f":"IF(OrigTable!E1363=\"\",\"\",TEXT(OrigTable!E1363,\"00\"))","v":""},{"$f":"IF(OrigTable!E1363=\"\",\"\",ScriptText!$E$1&CHAR(10)&ScriptText!$C$1)","v":""},{"$f":"IF(OrigTable!F1363=\"\",\"\",ScriptText!$B$1&CHAR(10)&ScriptText!$D$1)","v":""},{"$f":"IF(OrigTable!F1363=\"\",\"\",TEXT(OrigTable!F1363,\"00\"))","v":""},{"$f":"IF(OrigTable!F1363=\"\",\"\",ScriptText!$E$1&CHAR(10)&ScriptText!$C$1)","v":""},{"$f":"IF(OrigTable!G1363=\"\",\"\",ScriptText!$B$1&CHAR(10)&ScriptText!$D$1)","v":""},{"$f":"IF(OrigTable!G1363=\"\",\"\",TEXT(OrigTable!G1363,\"00\"))","v":""},{"$f":"IF(OrigTable!G1363=\"\",\"\",ScriptText!$E$1&CHAR(10)&ScriptText!$C$1)","v":""},0]
["\n\n\n",{"$f":"IF(OrigTable!A1364=\"\",\"\",ScriptText!$B$1&CHAR(10)&ScriptText!$D$1)","v":""},{"$f":"IF(OrigTable!A1364=\"\",\"\",TEXT(OrigTable!A1364,\"00\"))","v":""},{"$f":"IF(OrigTable!A1364=\"\",\"\",ScriptText!$E$1&CHAR(10)&ScriptText!$C$1)","v":""},{"$f":"IF(OrigTable!B1364=\"\",\"\",ScriptText!$B$1&CHAR(10)&ScriptText!$D$1)","v":""},{"$f":"IF(OrigTable!B1364=\"\",\"\",TEXT(OrigTable!B1364,\"00\"))","v":""},{"$f":"IF(OrigTable!B1364=\"\",\"\",ScriptText!$E$1&CHAR(10)&ScriptText!C1359)","v":""},{"$f":"IF(OrigTable!C1364=\"\",\"\",ScriptText!$B$1&CHAR(10)&ScriptText!$D$1)","v":""},{"$f":"IF(OrigTable!C1364=\"\",\"\",IF(LEN(OrigTable!C1364)>255,LEFT(OrigTable!C1364,250)&\". . .\",OrigTable!C1364))","v":""},{"$f":"IF(OrigTable!C1364=\"\",\"\",ScriptText!$E$1&CHAR(10)&ScriptText!$C$1)","v":""},{"$f":"IF(OrigTable!D1364=\"\",\"\",ScriptText!$B$1&CHAR(10)&ScriptText!$D$1)","v":""},{"$f":"IF(OrigTable!D1364=\"\",\"\",TEXT(OrigTable!D1364,\"00\"))","v":""},{"$f":"IF(OrigTable!D1364=\"\",\"\",ScriptText!$E$1&CHAR(10)&ScriptText!$C$1)","v":""},{"$f":"IF(OrigTable!E1364=\"\",\"\",ScriptText!$B$1&CHAR(10)&ScriptText!$D$1)","v":""},{"$f":"IF(OrigTable!E1364=\"\",\"\",TEXT(OrigTable!E1364,\"00\"))","v":""},{"$f":"IF(OrigTable!E1364=\"\",\"\",ScriptText!$E$1&CHAR(10)&ScriptText!$C$1)","v":""},{"$f":"IF(OrigTable!F1364=\"\",\"\",ScriptText!$B$1&CHAR(10)&ScriptText!$D$1)","v":""},{"$f":"IF(OrigTable!F1364=\"\",\"\",TEXT(OrigTable!F1364,\"00\"))","v":""},{"$f":"IF(OrigTable!F1364=\"\",\"\",ScriptText!$E$1&CHAR(10)&ScriptText!$C$1)","v":""},{"$f":"IF(OrigTable!G1364=\"\",\"\",ScriptText!$B$1&CHAR(10)&ScriptText!$D$1)","v":""},{"$f":"IF(OrigTable!G1364=\"\",\"\",TEXT(OrigTable!G1364,\"00\"))","v":""},{"$f":"IF(OrigTable!G1364=\"\",\"\",ScriptText!$E$1&CHAR(10)&ScriptText!$C$1)","v":""},0]
["\n\n\n",{"$f":"IF(OrigTable!A1365=\"\",\"\",ScriptText!$B$1&CHAR(10)&ScriptText!$D$1)","v":""},{"$f":"IF(OrigTable!A1365=\"\",\"\",TEXT(OrigTable!A1365,\"00\"))","v":""},{"$f":"IF(OrigTable!A1365=\"\",\"\",ScriptText!$E$1&CHAR(10)&ScriptText!$C$1)","v":""},{"$f":"IF(OrigTable!B1365=\"\",\"\",ScriptText!$B$1&CHAR(10)&ScriptText!$D$1)","v":""},{"$f":"IF(OrigTable!B1365=\"\",\"\",TEXT(OrigTable!B1365,\"00\"))","v":""},{"$f":"IF(OrigTable!B1365=\"\",\"\",ScriptText!$E$1&CHAR(10)&ScriptText!C1360)","v":""},{"$f":"IF(OrigTable!C1365=\"\",\"\",ScriptText!$B$1&CHAR(10)&ScriptText!$D$1)","v":""},{"$f":"IF(OrigTable!C1365=\"\",\"\",IF(LEN(OrigTable!C1365)>255,LEFT(OrigTable!C1365,250)&\". . .\",OrigTable!C1365))","v":""},{"$f":"IF(OrigTable!C1365=\"\",\"\",ScriptText!$E$1&CHAR(10)&ScriptText!$C$1)","v":""},{"$f":"IF(OrigTable!D1365=\"\",\"\",ScriptText!$B$1&CHAR(10)&ScriptText!$D$1)","v":""},{"$f":"IF(OrigTable!D1365=\"\",\"\",TEXT(OrigTable!D1365,\"00\"))","v":""},{"$f":"IF(OrigTable!D1365=\"\",\"\",ScriptText!$E$1&CHAR(10)&ScriptText!$C$1)","v":""},{"$f":"IF(OrigTable!E1365=\"\",\"\",ScriptText!$B$1&CHAR(10)&ScriptText!$D$1)","v":""},{"$f":"IF(OrigTable!E1365=\"\",\"\",TEXT(OrigTable!E1365,\"00\"))","v":""},{"$f":"IF(OrigTable!E1365=\"\",\"\",ScriptText!$E$1&CHAR(10)&ScriptText!$C$1)","v":""},{"$f":"IF(OrigTable!F1365=\"\",\"\",ScriptText!$B$1&CHAR(10)&ScriptText!$D$1)","v":""},{"$f":"IF(OrigTable!F1365=\"\",\"\",TEXT(OrigTable!F1365,\"00\"))","v":""},{"$f":"IF(OrigTable!F1365=\"\",\"\",ScriptText!$E$1&CHAR(10)&ScriptText!$C$1)","v":""},{"$f":"IF(OrigTable!G1365=\"\",\"\",ScriptText!$B$1&CHAR(10)&ScriptText!$D$1)","v":""},{"$f":"IF(OrigTable!G1365=\"\",\"\",TEXT(OrigTable!G1365,\"00\"))","v":""},{"$f":"IF(OrigTable!G1365=\"\",\"\",ScriptText!$E$1&CHAR(10)&ScriptText!$C$1)","v":""},0]
["\n\n\n",{"$f":"IF(OrigTable!A1366=\"\",\"\",ScriptText!$B$1&CHAR(10)&ScriptText!$D$1)","v":""},{"$f":"IF(OrigTable!A1366=\"\",\"\",TEXT(OrigTable!A1366,\"00\"))","v":""},{"$f":"IF(OrigTable!A1366=\"\",\"\",ScriptText!$E$1&CHAR(10)&ScriptText!$C$1)","v":""},{"$f":"IF(OrigTable!B1366=\"\",\"\",ScriptText!$B$1&CHAR(10)&ScriptText!$D$1)","v":""},{"$f":"IF(OrigTable!B1366=\"\",\"\",TEXT(OrigTable!B1366,\"00\"))","v":""},{"$f":"IF(OrigTable!B1366=\"\",\"\",ScriptText!$E$1&CHAR(10)&ScriptText!C1361)","v":""},{"$f":"IF(OrigTable!C1366=\"\",\"\",ScriptText!$B$1&CHAR(10)&ScriptText!$D$1)","v":""},{"$f":"IF(OrigTable!C1366=\"\",\"\",IF(LEN(OrigTable!C1366)>255,LEFT(OrigTable!C1366,250)&\". . .\",OrigTable!C1366))","v":""},{"$f":"IF(OrigTable!C1366=\"\",\"\",ScriptText!$E$1&CHAR(10)&ScriptText!$C$1)","v":""},{"$f":"IF(OrigTable!D1366=\"\",\"\",ScriptText!$B$1&CHAR(10)&ScriptText!$D$1)","v":""},{"$f":"IF(OrigTable!D1366=\"\",\"\",TEXT(OrigTable!D1366,\"00\"))","v":""},{"$f":"IF(OrigTable!D1366=\"\",\"\",ScriptText!$E$1&CHAR(10)&ScriptText!$C$1)","v":""},{"$f":"IF(OrigTable!E1366=\"\",\"\",ScriptText!$B$1&CHAR(10)&ScriptText!$D$1)","v":""},{"$f":"IF(OrigTable!E1366=\"\",\"\",TEXT(OrigTable!E1366,\"00\"))","v":""},{"$f":"IF(OrigTable!E1366=\"\",\"\",ScriptText!$E$1&CHAR(10)&ScriptText!$C$1)","v":""},{"$f":"IF(OrigTable!F1366=\"\",\"\",ScriptText!$B$1&CHAR(10)&ScriptText!$D$1)","v":""},{"$f":"IF(OrigTable!F1366=\"\",\"\",TEXT(OrigTable!F1366,\"00\"))","v":""},{"$f":"IF(OrigTable!F1366=\"\",\"\",ScriptText!$E$1&CHAR(10)&ScriptText!$C$1)","v":""},{"$f":"IF(OrigTable!G1366=\"\",\"\",ScriptText!$B$1&CHAR(10)&ScriptText!$D$1)","v":""},{"$f":"IF(OrigTable!G1366=\"\",\"\",TEXT(OrigTable!G1366,\"00\"))","v":""},{"$f":"IF(OrigTable!G1366=\"\",\"\",ScriptText!$E$1&CHAR(10)&ScriptText!$C$1)","v":""},0]
["\n\n\n",{"$f":"IF(OrigTable!A1367=\"\",\"\",ScriptText!$B$1&CHAR(10)&ScriptText!$D$1)","v":""},{"$f":"IF(OrigTable!A1367=\"\",\"\",TEXT(OrigTable!A1367,\"00\"))","v":""},{"$f":"IF(OrigTable!A1367=\"\",\"\",ScriptText!$E$1&CHAR(10)&ScriptText!$C$1)","v":""},{"$f":"IF(OrigTable!B1367=\"\",\"\",ScriptText!$B$1&CHAR(10)&ScriptText!$D$1)","v":""},{"$f":"IF(OrigTable!B1367=\"\",\"\",TEXT(OrigTable!B1367,\"00\"))","v":""},{"$f":"IF(OrigTable!B1367=\"\",\"\",ScriptText!$E$1&CHAR(10)&ScriptText!C1362)","v":""},{"$f":"IF(OrigTable!C1367=\"\",\"\",ScriptText!$B$1&CHAR(10)&ScriptText!$D$1)","v":""},{"$f":"IF(OrigTable!C1367=\"\",\"\",IF(LEN(OrigTable!C1367)>255,LEFT(OrigTable!C1367,250)&\". . .\",OrigTable!C1367))","v":""},{"$f":"IF(OrigTable!C1367=\"\",\"\",ScriptText!$E$1&CHAR(10)&ScriptText!$C$1)","v":""},{"$f":"IF(OrigTable!D1367=\"\",\"\",ScriptText!$B$1&CHAR(10)&ScriptText!$D$1)","v":""},{"$f":"IF(OrigTable!D1367=\"\",\"\",TEXT(OrigTable!D1367,\"00\"))","v":""},{"$f":"IF(OrigTable!D1367=\"\",\"\",ScriptText!$E$1&CHAR(10)&ScriptText!$C$1)","v":""},{"$f":"IF(OrigTable!E1367=\"\",\"\",ScriptText!$B$1&CHAR(10)&ScriptText!$D$1)","v":""},{"$f":"IF(OrigTable!E1367=\"\",\"\",TEXT(OrigTable!E1367,\"00\"))","v":""},{"$f":"IF(OrigTable!E1367=\"\",\"\",ScriptText!$E$1&CHAR(10)&ScriptText!$C$1)","v":""},{"$f":"IF(OrigTable!F1367=\"\",\"\",ScriptText!$B$1&CHAR(10)&ScriptText!$D$1)","v":""},{"$f":"IF(OrigTable!F1367=\"\",\"\",TEXT(OrigTable!F1367,\"00\"))","v":""},{"$f":"IF(OrigTable!F1367=\"\",\"\",ScriptText!$E$1&CHAR(10)&ScriptText!$C$1)","v":""},{"$f":"IF(OrigTable!G1367=\"\",\"\",ScriptText!$B$1&CHAR(10)&ScriptText!$D$1)","v":""},{"$f":"IF(OrigTable!G1367=\"\",\"\",TEXT(OrigTable!G1367,\"00\"))","v":""},{"$f":"IF(OrigTable!G1367=\"\",\"\",ScriptText!$E$1&CHAR(10)&ScriptText!$C$1)","v":""},0]
["\n\n\n",{"$f":"IF(OrigTable!A1368=\"\",\"\",ScriptText!$B$1&CHAR(10)&ScriptText!$D$1)","v":""},{"$f":"IF(OrigTable!A1368=\"\",\"\",TEXT(OrigTable!A1368,\"00\"))","v":""},{"$f":"IF(OrigTable!A1368=\"\",\"\",ScriptText!$E$1&CHAR(10)&ScriptText!$C$1)","v":""},{"$f":"IF(OrigTable!B1368=\"\",\"\",ScriptText!$B$1&CHAR(10)&ScriptText!$D$1)","v":""},{"$f":"IF(OrigTable!B1368=\"\",\"\",TEXT(OrigTable!B1368,\"00\"))","v":""},{"$f":"IF(OrigTable!B1368=\"\",\"\",ScriptText!$E$1&CHAR(10)&ScriptText!C1363)","v":""},{"$f":"IF(OrigTable!C1368=\"\",\"\",ScriptText!$B$1&CHAR(10)&ScriptText!$D$1)","v":""},{"$f":"IF(OrigTable!C1368=\"\",\"\",IF(LEN(OrigTable!C1368)>255,LEFT(OrigTable!C1368,250)&\". . .\",OrigTable!C1368))","v":""},{"$f":"IF(OrigTable!C1368=\"\",\"\",ScriptText!$E$1&CHAR(10)&ScriptText!$C$1)","v":""},{"$f":"IF(OrigTable!D1368=\"\",\"\",ScriptText!$B$1&CHAR(10)&ScriptText!$D$1)","v":""},{"$f":"IF(OrigTable!D1368=\"\",\"\",TEXT(OrigTable!D1368,\"00\"))","v":""},{"$f":"IF(OrigTable!D1368=\"\",\"\",ScriptText!$E$1&CHAR(10)&ScriptText!$C$1)","v":""},{"$f":"IF(OrigTable!E1368=\"\",\"\",ScriptText!$B$1&CHAR(10)&ScriptText!$D$1)","v":""},{"$f":"IF(OrigTable!E1368=\"\",\"\",TEXT(OrigTable!E1368,\"00\"))","v":""},{"$f":"IF(OrigTable!E1368=\"\",\"\",ScriptText!$E$1&CHAR(10)&ScriptText!$C$1)","v":""},{"$f":"IF(OrigTable!F1368=\"\",\"\",ScriptText!$B$1&CHAR(10)&ScriptText!$D$1)","v":""},{"$f":"IF(OrigTable!F1368=\"\",\"\",TEXT(OrigTable!F1368,\"00\"))","v":""},{"$f":"IF(OrigTable!F1368=\"\",\"\",ScriptText!$E$1&CHAR(10)&ScriptText!$C$1)","v":""},{"$f":"IF(OrigTable!G1368=\"\",\"\",ScriptText!$B$1&CHAR(10)&ScriptText!$D$1)","v":""},{"$f":"IF(OrigTable!G1368=\"\",\"\",TEXT(OrigTable!G1368,\"00\"))","v":""},{"$f":"IF(OrigTable!G1368=\"\",\"\",ScriptText!$E$1&CHAR(10)&ScriptText!$C$1)","v":""},0]
["\n\n\n",{"$f":"IF(OrigTable!A1369=\"\",\"\",ScriptText!$B$1&CHAR(10)&ScriptText!$D$1)","v":""},{"$f":"IF(OrigTable!A1369=\"\",\"\",TEXT(OrigTable!A1369,\"00\"))","v":""},{"$f":"IF(OrigTable!A1369=\"\",\"\",ScriptText!$E$1&CHAR(10)&ScriptText!$C$1)","v":""},{"$f":"IF(OrigTable!B1369=\"\",\"\",ScriptText!$B$1&CHAR(10)&ScriptText!$D$1)","v":""},{"$f":"IF(OrigTable!B1369=\"\",\"\",TEXT(OrigTable!B1369,\"00\"))","v":""},{"$f":"IF(OrigTable!B1369=\"\",\"\",ScriptText!$E$1&CHAR(10)&ScriptText!C1364)","v":""},{"$f":"IF(OrigTable!C1369=\"\",\"\",ScriptText!$B$1&CHAR(10)&ScriptText!$D$1)","v":""},{"$f":"IF(OrigTable!C1369=\"\",\"\",IF(LEN(OrigTable!C1369)>255,LEFT(OrigTable!C1369,250)&\". . .\",OrigTable!C1369))","v":""},{"$f":"IF(OrigTable!C1369=\"\",\"\",ScriptText!$E$1&CHAR(10)&ScriptText!$C$1)","v":""},{"$f":"IF(OrigTable!D1369=\"\",\"\",ScriptText!$B$1&CHAR(10)&ScriptText!$D$1)","v":""},{"$f":"IF(OrigTable!D1369=\"\",\"\",TEXT(OrigTable!D1369,\"00\"))","v":""},{"$f":"IF(OrigTable!D1369=\"\",\"\",ScriptText!$E$1&CHAR(10)&ScriptText!$C$1)","v":""},{"$f":"IF(OrigTable!E1369=\"\",\"\",ScriptText!$B$1&CHAR(10)&ScriptText!$D$1)","v":""},{"$f":"IF(OrigTable!E1369=\"\",\"\",TEXT(OrigTable!E1369,\"00\"))","v":""},{"$f":"IF(OrigTable!E1369=\"\",\"\",ScriptText!$E$1&CHAR(10)&ScriptText!$C$1)","v":""},{"$f":"IF(OrigTable!F1369=\"\",\"\",ScriptText!$B$1&CHAR(10)&ScriptText!$D$1)","v":""},{"$f":"IF(OrigTable!F1369=\"\",\"\",TEXT(OrigTable!F1369,\"00\"))","v":""},{"$f":"IF(OrigTable!F1369=\"\",\"\",ScriptText!$E$1&CHAR(10)&ScriptText!$C$1)","v":""},{"$f":"IF(OrigTable!G1369=\"\",\"\",ScriptText!$B$1&CHAR(10)&ScriptText!$D$1)","v":""},{"$f":"IF(OrigTable!G1369=\"\",\"\",TEXT(OrigTable!G1369,\"00\"))","v":""},{"$f":"IF(OrigTable!G1369=\"\",\"\",ScriptText!$E$1&CHAR(10)&ScriptText!$C$1)","v":""},0]
["\n\n\n",{"$f":"IF(OrigTable!A1370=\"\",\"\",ScriptText!$B$1&CHAR(10)&ScriptText!$D$1)","v":""},{"$f":"IF(OrigTable!A1370=\"\",\"\",TEXT(OrigTable!A1370,\"00\"))","v":""},{"$f":"IF(OrigTable!A1370=\"\",\"\",ScriptText!$E$1&CHAR(10)&ScriptText!$C$1)","v":""},{"$f":"IF(OrigTable!B1370=\"\",\"\",ScriptText!$B$1&CHAR(10)&ScriptText!$D$1)","v":""},{"$f":"IF(OrigTable!B1370=\"\",\"\",TEXT(OrigTable!B1370,\"00\"))","v":""},{"$f":"IF(OrigTable!B1370=\"\",\"\",ScriptText!$E$1&CHAR(10)&ScriptText!C1365)","v":""},{"$f":"IF(OrigTable!C1370=\"\",\"\",ScriptText!$B$1&CHAR(10)&ScriptText!$D$1)","v":""},{"$f":"IF(OrigTable!C1370=\"\",\"\",IF(LEN(OrigTable!C1370)>255,LEFT(OrigTable!C1370,250)&\". . .\",OrigTable!C1370))","v":""},{"$f":"IF(OrigTable!C1370=\"\",\"\",ScriptText!$E$1&CHAR(10)&ScriptText!$C$1)","v":""},{"$f":"IF(OrigTable!D1370=\"\",\"\",ScriptText!$B$1&CHAR(10)&ScriptText!$D$1)","v":""},{"$f":"IF(OrigTable!D1370=\"\",\"\",TEXT(OrigTable!D1370,\"00\"))","v":""},{"$f":"IF(OrigTable!D1370=\"\",\"\",ScriptText!$E$1&CHAR(10)&ScriptText!$C$1)","v":""},{"$f":"IF(OrigTable!E1370=\"\",\"\",ScriptText!$B$1&CHAR(10)&ScriptText!$D$1)","v":""},{"$f":"IF(OrigTable!E1370=\"\",\"\",TEXT(OrigTable!E1370,\"00\"))","v":""},{"$f":"IF(OrigTable!E1370=\"\",\"\",ScriptText!$E$1&CHAR(10)&ScriptText!$C$1)","v":""},{"$f":"IF(OrigTable!F1370=\"\",\"\",ScriptText!$B$1&CHAR(10)&ScriptText!$D$1)","v":""},{"$f":"IF(OrigTable!F1370=\"\",\"\",TEXT(OrigTable!F1370,\"00\"))","v":""},{"$f":"IF(OrigTable!F1370=\"\",\"\",ScriptText!$E$1&CHAR(10)&ScriptText!$C$1)","v":""},{"$f":"IF(OrigTable!G1370=\"\",\"\",ScriptText!$B$1&CHAR(10)&ScriptText!$D$1)","v":""},{"$f":"IF(OrigTable!G1370=\"\",\"\",TEXT(OrigTable!G1370,\"00\"))","v":""},{"$f":"IF(OrigTable!G1370=\"\",\"\",ScriptText!$E$1&CHAR(10)&ScriptText!$C$1)","v":""},0]
["\n\n\n",{"$f":"IF(OrigTable!A1371=\"\",\"\",ScriptText!$B$1&CHAR(10)&ScriptText!$D$1)","v":""},{"$f":"IF(OrigTable!A1371=\"\",\"\",TEXT(OrigTable!A1371,\"00\"))","v":""},{"$f":"IF(OrigTable!A1371=\"\",\"\",ScriptText!$E$1&CHAR(10)&ScriptText!$C$1)","v":""},{"$f":"IF(OrigTable!B1371=\"\",\"\",ScriptText!$B$1&CHAR(10)&ScriptText!$D$1)","v":""},{"$f":"IF(OrigTable!B1371=\"\",\"\",TEXT(OrigTable!B1371,\"00\"))","v":""},{"$f":"IF(OrigTable!B1371=\"\",\"\",ScriptText!$E$1&CHAR(10)&ScriptText!C1366)","v":""},{"$f":"IF(OrigTable!C1371=\"\",\"\",ScriptText!$B$1&CHAR(10)&ScriptText!$D$1)","v":""},{"$f":"IF(OrigTable!C1371=\"\",\"\",IF(LEN(OrigTable!C1371)>255,LEFT(OrigTable!C1371,250)&\". . .\",OrigTable!C1371))","v":""},{"$f":"IF(OrigTable!C1371=\"\",\"\",ScriptText!$E$1&CHAR(10)&ScriptText!$C$1)","v":""},{"$f":"IF(OrigTable!D1371=\"\",\"\",ScriptText!$B$1&CHAR(10)&ScriptText!$D$1)","v":""},{"$f":"IF(OrigTable!D1371=\"\",\"\",TEXT(OrigTable!D1371,\"00\"))","v":""},{"$f":"IF(OrigTable!D1371=\"\",\"\",ScriptText!$E$1&CHAR(10)&ScriptText!$C$1)","v":""},{"$f":"IF(OrigTable!E1371=\"\",\"\",ScriptText!$B$1&CHAR(10)&ScriptText!$D$1)","v":""},{"$f":"IF(OrigTable!E1371=\"\",\"\",TEXT(OrigTable!E1371,\"00\"))","v":""},{"$f":"IF(OrigTable!E1371=\"\",\"\",ScriptText!$E$1&CHAR(10)&ScriptText!$C$1)","v":""},{"$f":"IF(OrigTable!F1371=\"\",\"\",ScriptText!$B$1&CHAR(10)&ScriptText!$D$1)","v":""},{"$f":"IF(OrigTable!F1371=\"\",\"\",TEXT(OrigTable!F1371,\"00\"))","v":""},{"$f":"IF(OrigTable!F1371=\"\",\"\",ScriptText!$E$1&CHAR(10)&ScriptText!$C$1)","v":""},{"$f":"IF(OrigTable!G1371=\"\",\"\",ScriptText!$B$1&CHAR(10)&ScriptText!$D$1)","v":""},{"$f":"IF(OrigTable!G1371=\"\",\"\",TEXT(OrigTable!G1371,\"00\"))","v":""},{"$f":"IF(OrigTable!G1371=\"\",\"\",ScriptText!$E$1&CHAR(10)&ScriptText!$C$1)","v":""},0]
["\n\n\n",{"$f":"IF(OrigTable!A1372=\"\",\"\",ScriptText!$B$1&CHAR(10)&ScriptText!$D$1)","v":""},{"$f":"IF(OrigTable!A1372=\"\",\"\",TEXT(OrigTable!A1372,\"00\"))","v":""},{"$f":"IF(OrigTable!A1372=\"\",\"\",ScriptText!$E$1&CHAR(10)&ScriptText!$C$1)","v":""},{"$f":"IF(OrigTable!B1372=\"\",\"\",ScriptText!$B$1&CHAR(10)&ScriptText!$D$1)","v":""},{"$f":"IF(OrigTable!B1372=\"\",\"\",TEXT(OrigTable!B1372,\"00\"))","v":""},{"$f":"IF(OrigTable!B1372=\"\",\"\",ScriptText!$E$1&CHAR(10)&ScriptText!C1367)","v":""},{"$f":"IF(OrigTable!C1372=\"\",\"\",ScriptText!$B$1&CHAR(10)&ScriptText!$D$1)","v":""},{"$f":"IF(OrigTable!C1372=\"\",\"\",IF(LEN(OrigTable!C1372)>255,LEFT(OrigTable!C1372,250)&\". . .\",OrigTable!C1372))","v":""},{"$f":"IF(OrigTable!C1372=\"\",\"\",ScriptText!$E$1&CHAR(10)&ScriptText!$C$1)","v":""},{"$f":"IF(OrigTable!D1372=\"\",\"\",ScriptText!$B$1&CHAR(10)&ScriptText!$D$1)","v":""},{"$f":"IF(OrigTable!D1372=\"\",\"\",TEXT(OrigTable!D1372,\"00\"))","v":""},{"$f":"IF(OrigTable!D1372=\"\",\"\",ScriptText!$E$1&CHAR(10)&ScriptText!$C$1)","v":""},{"$f":"IF(OrigTable!E1372=\"\",\"\",ScriptText!$B$1&CHAR(10)&ScriptText!$D$1)","v":""},{"$f":"IF(OrigTable!E1372=\"\",\"\",TEXT(OrigTable!E1372,\"00\"))","v":""},{"$f":"IF(OrigTable!E1372=\"\",\"\",ScriptText!$E$1&CHAR(10)&ScriptText!$C$1)","v":""},{"$f":"IF(OrigTable!F1372=\"\",\"\",ScriptText!$B$1&CHAR(10)&ScriptText!$D$1)","v":""},{"$f":"IF(OrigTable!F1372=\"\",\"\",TEXT(OrigTable!F1372,\"00\"))","v":""},{"$f":"IF(OrigTable!F1372=\"\",\"\",ScriptText!$E$1&CHAR(10)&ScriptText!$C$1)","v":""},{"$f":"IF(OrigTable!G1372=\"\",\"\",ScriptText!$B$1&CHAR(10)&ScriptText!$D$1)","v":""},{"$f":"IF(OrigTable!G1372=\"\",\"\",TEXT(OrigTable!G1372,\"00\"))","v":""},{"$f":"IF(OrigTable!G1372=\"\",\"\",ScriptText!$E$1&CHAR(10)&ScriptText!$C$1)","v":""},0]
["\n\n\n",{"$f":"IF(OrigTable!A1373=\"\",\"\",ScriptText!$B$1&CHAR(10)&ScriptText!$D$1)","v":""},{"$f":"IF(OrigTable!A1373=\"\",\"\",TEXT(OrigTable!A1373,\"00\"))","v":""},{"$f":"IF(OrigTable!A1373=\"\",\"\",ScriptText!$E$1&CHAR(10)&ScriptText!$C$1)","v":""},{"$f":"IF(OrigTable!B1373=\"\",\"\",ScriptText!$B$1&CHAR(10)&ScriptText!$D$1)","v":""},{"$f":"IF(OrigTable!B1373=\"\",\"\",TEXT(OrigTable!B1373,\"00\"))","v":""},{"$f":"IF(OrigTable!B1373=\"\",\"\",ScriptText!$E$1&CHAR(10)&ScriptText!C1368)","v":""},{"$f":"IF(OrigTable!C1373=\"\",\"\",ScriptText!$B$1&CHAR(10)&ScriptText!$D$1)","v":""},{"$f":"IF(OrigTable!C1373=\"\",\"\",IF(LEN(OrigTable!C1373)>255,LEFT(OrigTable!C1373,250)&\". . .\",OrigTable!C1373))","v":""},{"$f":"IF(OrigTable!C1373=\"\",\"\",ScriptText!$E$1&CHAR(10)&ScriptText!$C$1)","v":""},{"$f":"IF(OrigTable!D1373=\"\",\"\",ScriptText!$B$1&CHAR(10)&ScriptText!$D$1)","v":""},{"$f":"IF(OrigTable!D1373=\"\",\"\",TEXT(OrigTable!D1373,\"00\"))","v":""},{"$f":"IF(OrigTable!D1373=\"\",\"\",ScriptText!$E$1&CHAR(10)&ScriptText!$C$1)","v":""},{"$f":"IF(OrigTable!E1373=\"\",\"\",ScriptText!$B$1&CHAR(10)&ScriptText!$D$1)","v":""},{"$f":"IF(OrigTable!E1373=\"\",\"\",TEXT(OrigTable!E1373,\"00\"))","v":""},{"$f":"IF(OrigTable!E1373=\"\",\"\",ScriptText!$E$1&CHAR(10)&ScriptText!$C$1)","v":""},{"$f":"IF(OrigTable!F1373=\"\",\"\",ScriptText!$B$1&CHAR(10)&ScriptText!$D$1)","v":""},{"$f":"IF(OrigTable!F1373=\"\",\"\",TEXT(OrigTable!F1373,\"00\"))","v":""},{"$f":"IF(OrigTable!F1373=\"\",\"\",ScriptText!$E$1&CHAR(10)&ScriptText!$C$1)","v":""},{"$f":"IF(OrigTable!G1373=\"\",\"\",ScriptText!$B$1&CHAR(10)&ScriptText!$D$1)","v":""},{"$f":"IF(OrigTable!G1373=\"\",\"\",TEXT(OrigTable!G1373,\"00\"))","v":""},{"$f":"IF(OrigTable!G1373=\"\",\"\",ScriptText!$E$1&CHAR(10)&ScriptText!$C$1)","v":""},0]
["\n\n\n",{"$f":"IF(OrigTable!A1374=\"\",\"\",ScriptText!$B$1&CHAR(10)&ScriptText!$D$1)","v":""},{"$f":"IF(OrigTable!A1374=\"\",\"\",TEXT(OrigTable!A1374,\"00\"))","v":""},{"$f":"IF(OrigTable!A1374=\"\",\"\",ScriptText!$E$1&CHAR(10)&ScriptText!$C$1)","v":""},{"$f":"IF(OrigTable!B1374=\"\",\"\",ScriptText!$B$1&CHAR(10)&ScriptText!$D$1)","v":""},{"$f":"IF(OrigTable!B1374=\"\",\"\",TEXT(OrigTable!B1374,\"00\"))","v":""},{"$f":"IF(OrigTable!B1374=\"\",\"\",ScriptText!$E$1&CHAR(10)&ScriptText!C1369)","v":""},{"$f":"IF(OrigTable!C1374=\"\",\"\",ScriptText!$B$1&CHAR(10)&ScriptText!$D$1)","v":""},{"$f":"IF(OrigTable!C1374=\"\",\"\",IF(LEN(OrigTable!C1374)>255,LEFT(OrigTable!C1374,250)&\". . .\",OrigTable!C1374))","v":""},{"$f":"IF(OrigTable!C1374=\"\",\"\",ScriptText!$E$1&CHAR(10)&ScriptText!$C$1)","v":""},{"$f":"IF(OrigTable!D1374=\"\",\"\",ScriptText!$B$1&CHAR(10)&ScriptText!$D$1)","v":""},{"$f":"IF(OrigTable!D1374=\"\",\"\",TEXT(OrigTable!D1374,\"00\"))","v":""},{"$f":"IF(OrigTable!D1374=\"\",\"\",ScriptText!$E$1&CHAR(10)&ScriptText!$C$1)","v":""},{"$f":"IF(OrigTable!E1374=\"\",\"\",ScriptText!$B$1&CHAR(10)&ScriptText!$D$1)","v":""},{"$f":"IF(OrigTable!E1374=\"\",\"\",TEXT(OrigTable!E1374,\"00\"))","v":""},{"$f":"IF(OrigTable!E1374=\"\",\"\",ScriptText!$E$1&CHAR(10)&ScriptText!$C$1)","v":""},{"$f":"IF(OrigTable!F1374=\"\",\"\",ScriptText!$B$1&CHAR(10)&ScriptText!$D$1)","v":""},{"$f":"IF(OrigTable!F1374=\"\",\"\",TEXT(OrigTable!F1374,\"00\"))","v":""},{"$f":"IF(OrigTable!F1374=\"\",\"\",ScriptText!$E$1&CHAR(10)&ScriptText!$C$1)","v":""},{"$f":"IF(OrigTable!G1374=\"\",\"\",ScriptText!$B$1&CHAR(10)&ScriptText!$D$1)","v":""},{"$f":"IF(OrigTable!G1374=\"\",\"\",TEXT(OrigTable!G1374,\"00\"))","v":""},{"$f":"IF(OrigTable!G1374=\"\",\"\",ScriptText!$E$1&CHAR(10)&ScriptText!$C$1)","v":""},0]
["\n\n\n",{"$f":"IF(OrigTable!A1375=\"\",\"\",ScriptText!$B$1&CHAR(10)&ScriptText!$D$1)","v":""},{"$f":"IF(OrigTable!A1375=\"\",\"\",TEXT(OrigTable!A1375,\"00\"))","v":""},{"$f":"IF(OrigTable!A1375=\"\",\"\",ScriptText!$E$1&CHAR(10)&ScriptText!$C$1)","v":""},{"$f":"IF(OrigTable!B1375=\"\",\"\",ScriptText!$B$1&CHAR(10)&ScriptText!$D$1)","v":""},{"$f":"IF(OrigTable!B1375=\"\",\"\",TEXT(OrigTable!B1375,\"00\"))","v":""},{"$f":"IF(OrigTable!B1375=\"\",\"\",ScriptText!$E$1&CHAR(10)&ScriptText!C1370)","v":""},{"$f":"IF(OrigTable!C1375=\"\",\"\",ScriptText!$B$1&CHAR(10)&ScriptText!$D$1)","v":""},{"$f":"IF(OrigTable!C1375=\"\",\"\",IF(LEN(OrigTable!C1375)>255,LEFT(OrigTable!C1375,250)&\". . .\",OrigTable!C1375))","v":""},{"$f":"IF(OrigTable!C1375=\"\",\"\",ScriptText!$E$1&CHAR(10)&ScriptText!$C$1)","v":""},{"$f":"IF(OrigTable!D1375=\"\",\"\",ScriptText!$B$1&CHAR(10)&ScriptText!$D$1)","v":""},{"$f":"IF(OrigTable!D1375=\"\",\"\",TEXT(OrigTable!D1375,\"00\"))","v":""},{"$f":"IF(OrigTable!D1375=\"\",\"\",ScriptText!$E$1&CHAR(10)&ScriptText!$C$1)","v":""},{"$f":"IF(OrigTable!E1375=\"\",\"\",ScriptText!$B$1&CHAR(10)&ScriptText!$D$1)","v":""},{"$f":"IF(OrigTable!E1375=\"\",\"\",TEXT(OrigTable!E1375,\"00\"))","v":""},{"$f":"IF(OrigTable!E1375=\"\",\"\",ScriptText!$E$1&CHAR(10)&ScriptText!$C$1)","v":""},{"$f":"IF(OrigTable!F1375=\"\",\"\",ScriptText!$B$1&CHAR(10)&ScriptText!$D$1)","v":""},{"$f":"IF(OrigTable!F1375=\"\",\"\",TEXT(OrigTable!F1375,\"00\"))","v":""},{"$f":"IF(OrigTable!F1375=\"\",\"\",ScriptText!$E$1&CHAR(10)&ScriptText!$C$1)","v":""},{"$f":"IF(OrigTable!G1375=\"\",\"\",ScriptText!$B$1&CHAR(10)&ScriptText!$D$1)","v":""},{"$f":"IF(OrigTable!G1375=\"\",\"\",TEXT(OrigTable!G1375,\"00\"))","v":""},{"$f":"IF(OrigTable!G1375=\"\",\"\",ScriptText!$E$1&CHAR(10)&ScriptText!$C$1)","v":""},0]
["\n\n\n",{"$f":"IF(OrigTable!A1376=\"\",\"\",ScriptText!$B$1&CHAR(10)&ScriptText!$D$1)","v":""},{"$f":"IF(OrigTable!A1376=\"\",\"\",TEXT(OrigTable!A1376,\"00\"))","v":""},{"$f":"IF(OrigTable!A1376=\"\",\"\",ScriptText!$E$1&CHAR(10)&ScriptText!$C$1)","v":""},{"$f":"IF(OrigTable!B1376=\"\",\"\",ScriptText!$B$1&CHAR(10)&ScriptText!$D$1)","v":""},{"$f":"IF(OrigTable!B1376=\"\",\"\",TEXT(OrigTable!B1376,\"00\"))","v":""},{"$f":"IF(OrigTable!B1376=\"\",\"\",ScriptText!$E$1&CHAR(10)&ScriptText!C1371)","v":""},{"$f":"IF(OrigTable!C1376=\"\",\"\",ScriptText!$B$1&CHAR(10)&ScriptText!$D$1)","v":""},{"$f":"IF(OrigTable!C1376=\"\",\"\",IF(LEN(OrigTable!C1376)>255,LEFT(OrigTable!C1376,250)&\". . .\",OrigTable!C1376))","v":""},{"$f":"IF(OrigTable!C1376=\"\",\"\",ScriptText!$E$1&CHAR(10)&ScriptText!$C$1)","v":""},{"$f":"IF(OrigTable!D1376=\"\",\"\",ScriptText!$B$1&CHAR(10)&ScriptText!$D$1)","v":""},{"$f":"IF(OrigTable!D1376=\"\",\"\",TEXT(OrigTable!D1376,\"00\"))","v":""},{"$f":"IF(OrigTable!D1376=\"\",\"\",ScriptText!$E$1&CHAR(10)&ScriptText!$C$1)","v":""},{"$f":"IF(OrigTable!E1376=\"\",\"\",ScriptText!$B$1&CHAR(10)&ScriptText!$D$1)","v":""},{"$f":"IF(OrigTable!E1376=\"\",\"\",TEXT(OrigTable!E1376,\"00\"))","v":""},{"$f":"IF(OrigTable!E1376=\"\",\"\",ScriptText!$E$1&CHAR(10)&ScriptText!$C$1)","v":""},{"$f":"IF(OrigTable!F1376=\"\",\"\",ScriptText!$B$1&CHAR(10)&ScriptText!$D$1)","v":""},{"$f":"IF(OrigTable!F1376=\"\",\"\",TEXT(OrigTable!F1376,\"00\"))","v":""},{"$f":"IF(OrigTable!F1376=\"\",\"\",ScriptText!$E$1&CHAR(10)&ScriptText!$C$1)","v":""},{"$f":"IF(OrigTable!G1376=\"\",\"\",ScriptText!$B$1&CHAR(10)&ScriptText!$D$1)","v":""},{"$f":"IF(OrigTable!G1376=\"\",\"\",TEXT(OrigTable!G1376,\"00\"))","v":""},{"$f":"IF(OrigTable!G1376=\"\",\"\",ScriptText!$E$1&CHAR(10)&ScriptText!$C$1)","v":""},0]
["\n\n\n",{"$f":"IF(OrigTable!A1377=\"\",\"\",ScriptText!$B$1&CHAR(10)&ScriptText!$D$1)","v":""},{"$f":"IF(OrigTable!A1377=\"\",\"\",TEXT(OrigTable!A1377,\"00\"))","v":""},{"$f":"IF(OrigTable!A1377=\"\",\"\",ScriptText!$E$1&CHAR(10)&ScriptText!$C$1)","v":""},{"$f":"IF(OrigTable!B1377=\"\",\"\",ScriptText!$B$1&CHAR(10)&ScriptText!$D$1)","v":""},{"$f":"IF(OrigTable!B1377=\"\",\"\",TEXT(OrigTable!B1377,\"00\"))","v":""},{"$f":"IF(OrigTable!B1377=\"\",\"\",ScriptText!$E$1&CHAR(10)&ScriptText!C1372)","v":""},{"$f":"IF(OrigTable!C1377=\"\",\"\",ScriptText!$B$1&CHAR(10)&ScriptText!$D$1)","v":""},{"$f":"IF(OrigTable!C1377=\"\",\"\",IF(LEN(OrigTable!C1377)>255,LEFT(OrigTable!C1377,250)&\". . .\",OrigTable!C1377))","v":""},{"$f":"IF(OrigTable!C1377=\"\",\"\",ScriptText!$E$1&CHAR(10)&ScriptText!$C$1)","v":""},{"$f":"IF(OrigTable!D1377=\"\",\"\",ScriptText!$B$1&CHAR(10)&ScriptText!$D$1)","v":""},{"$f":"IF(OrigTable!D1377=\"\",\"\",TEXT(OrigTable!D1377,\"00\"))","v":""},{"$f":"IF(OrigTable!D1377=\"\",\"\",ScriptText!$E$1&CHAR(10)&ScriptText!$C$1)","v":""},{"$f":"IF(OrigTable!E1377=\"\",\"\",ScriptText!$B$1&CHAR(10)&ScriptText!$D$1)","v":""},{"$f":"IF(OrigTable!E1377=\"\",\"\",TEXT(OrigTable!E1377,\"00\"))","v":""},{"$f":"IF(OrigTable!E1377=\"\",\"\",ScriptText!$E$1&CHAR(10)&ScriptText!$C$1)","v":""},{"$f":"IF(OrigTable!F1377=\"\",\"\",ScriptText!$B$1&CHAR(10)&ScriptText!$D$1)","v":""},{"$f":"IF(OrigTable!F1377=\"\",\"\",TEXT(OrigTable!F1377,\"00\"))","v":""},{"$f":"IF(OrigTable!F1377=\"\",\"\",ScriptText!$E$1&CHAR(10)&ScriptText!$C$1)","v":""},{"$f":"IF(OrigTable!G1377=\"\",\"\",ScriptText!$B$1&CHAR(10)&ScriptText!$D$1)","v":""},{"$f":"IF(OrigTable!G1377=\"\",\"\",TEXT(OrigTable!G1377,\"00\"))","v":""},{"$f":"IF(OrigTable!G1377=\"\",\"\",ScriptText!$E$1&CHAR(10)&ScriptText!$C$1)","v":""},0]
["\n\n\n",{"$f":"IF(OrigTable!A1378=\"\",\"\",ScriptText!$B$1&CHAR(10)&ScriptText!$D$1)","v":""},{"$f":"IF(OrigTable!A1378=\"\",\"\",TEXT(OrigTable!A1378,\"00\"))","v":""},{"$f":"IF(OrigTable!A1378=\"\",\"\",ScriptText!$E$1&CHAR(10)&ScriptText!$C$1)","v":""},{"$f":"IF(OrigTable!B1378=\"\",\"\",ScriptText!$B$1&CHAR(10)&ScriptText!$D$1)","v":""},{"$f":"IF(OrigTable!B1378=\"\",\"\",TEXT(OrigTable!B1378,\"00\"))","v":""},{"$f":"IF(OrigTable!B1378=\"\",\"\",ScriptText!$E$1&CHAR(10)&ScriptText!C1373)","v":""},{"$f":"IF(OrigTable!C1378=\"\",\"\",ScriptText!$B$1&CHAR(10)&ScriptText!$D$1)","v":""},{"$f":"IF(OrigTable!C1378=\"\",\"\",IF(LEN(OrigTable!C1378)>255,LEFT(OrigTable!C1378,250)&\". . .\",OrigTable!C1378))","v":""},{"$f":"IF(OrigTable!C1378=\"\",\"\",ScriptText!$E$1&CHAR(10)&ScriptText!$C$1)","v":""},{"$f":"IF(OrigTable!D1378=\"\",\"\",ScriptText!$B$1&CHAR(10)&ScriptText!$D$1)","v":""},{"$f":"IF(OrigTable!D1378=\"\",\"\",TEXT(OrigTable!D1378,\"00\"))","v":""},{"$f":"IF(OrigTable!D1378=\"\",\"\",ScriptText!$E$1&CHAR(10)&ScriptText!$C$1)","v":""},{"$f":"IF(OrigTable!E1378=\"\",\"\",ScriptText!$B$1&CHAR(10)&ScriptText!$D$1)","v":""},{"$f":"IF(OrigTable!E1378=\"\",\"\",TEXT(OrigTable!E1378,\"00\"))","v":""},{"$f":"IF(OrigTable!E1378=\"\",\"\",ScriptText!$E$1&CHAR(10)&ScriptText!$C$1)","v":""},{"$f":"IF(OrigTable!F1378=\"\",\"\",ScriptText!$B$1&CHAR(10)&ScriptText!$D$1)","v":""},{"$f":"IF(OrigTable!F1378=\"\",\"\",TEXT(OrigTable!F1378,\"00\"))","v":""},{"$f":"IF(OrigTable!F1378=\"\",\"\",ScriptText!$E$1&CHAR(10)&ScriptText!$C$1)","v":""},{"$f":"IF(OrigTable!G1378=\"\",\"\",ScriptText!$B$1&CHAR(10)&ScriptText!$D$1)","v":""},{"$f":"IF(OrigTable!G1378=\"\",\"\",TEXT(OrigTable!G1378,\"00\"))","v":""},{"$f":"IF(OrigTable!G1378=\"\",\"\",ScriptText!$E$1&CHAR(10)&ScriptText!$C$1)","v":""},0]
["\n\n\n",{"$f":"IF(OrigTable!A1379=\"\",\"\",ScriptText!$B$1&CHAR(10)&ScriptText!$D$1)","v":""},{"$f":"IF(OrigTable!A1379=\"\",\"\",TEXT(OrigTable!A1379,\"00\"))","v":""},{"$f":"IF(OrigTable!A1379=\"\",\"\",ScriptText!$E$1&CHAR(10)&ScriptText!$C$1)","v":""},{"$f":"IF(OrigTable!B1379=\"\",\"\",ScriptText!$B$1&CHAR(10)&ScriptText!$D$1)","v":""},{"$f":"IF(OrigTable!B1379=\"\",\"\",TEXT(OrigTable!B1379,\"00\"))","v":""},{"$f":"IF(OrigTable!B1379=\"\",\"\",ScriptText!$E$1&CHAR(10)&ScriptText!C1374)","v":""},{"$f":"IF(OrigTable!C1379=\"\",\"\",ScriptText!$B$1&CHAR(10)&ScriptText!$D$1)","v":""},{"$f":"IF(OrigTable!C1379=\"\",\"\",IF(LEN(OrigTable!C1379)>255,LEFT(OrigTable!C1379,250)&\". . .\",OrigTable!C1379))","v":""},{"$f":"IF(OrigTable!C1379=\"\",\"\",ScriptText!$E$1&CHAR(10)&ScriptText!$C$1)","v":""},{"$f":"IF(OrigTable!D1379=\"\",\"\",ScriptText!$B$1&CHAR(10)&ScriptText!$D$1)","v":""},{"$f":"IF(OrigTable!D1379=\"\",\"\",TEXT(OrigTable!D1379,\"00\"))","v":""},{"$f":"IF(OrigTable!D1379=\"\",\"\",ScriptText!$E$1&CHAR(10)&ScriptText!$C$1)","v":""},{"$f":"IF(OrigTable!E1379=\"\",\"\",ScriptText!$B$1&CHAR(10)&ScriptText!$D$1)","v":""},{"$f":"IF(OrigTable!E1379=\"\",\"\",TEXT(OrigTable!E1379,\"00\"))","v":""},{"$f":"IF(OrigTable!E1379=\"\",\"\",ScriptText!$E$1&CHAR(10)&ScriptText!$C$1)","v":""},{"$f":"IF(OrigTable!F1379=\"\",\"\",ScriptText!$B$1&CHAR(10)&ScriptText!$D$1)","v":""},{"$f":"IF(OrigTable!F1379=\"\",\"\",TEXT(OrigTable!F1379,\"00\"))","v":""},{"$f":"IF(OrigTable!F1379=\"\",\"\",ScriptText!$E$1&CHAR(10)&ScriptText!$C$1)","v":""},{"$f":"IF(OrigTable!G1379=\"\",\"\",ScriptText!$B$1&CHAR(10)&ScriptText!$D$1)","v":""},{"$f":"IF(OrigTable!G1379=\"\",\"\",TEXT(OrigTable!G1379,\"00\"))","v":""},{"$f":"IF(OrigTable!G1379=\"\",\"\",ScriptText!$E$1&CHAR(10)&ScriptText!$C$1)","v":""},0]
["\n\n\n",{"$f":"IF(OrigTable!A1380=\"\",\"\",ScriptText!$B$1&CHAR(10)&ScriptText!$D$1)","v":""},{"$f":"IF(OrigTable!A1380=\"\",\"\",TEXT(OrigTable!A1380,\"00\"))","v":""},{"$f":"IF(OrigTable!A1380=\"\",\"\",ScriptText!$E$1&CHAR(10)&ScriptText!$C$1)","v":""},{"$f":"IF(OrigTable!B1380=\"\",\"\",ScriptText!$B$1&CHAR(10)&ScriptText!$D$1)","v":""},{"$f":"IF(OrigTable!B1380=\"\",\"\",TEXT(OrigTable!B1380,\"00\"))","v":""},{"$f":"IF(OrigTable!B1380=\"\",\"\",ScriptText!$E$1&CHAR(10)&ScriptText!C1375)","v":""},{"$f":"IF(OrigTable!C1380=\"\",\"\",ScriptText!$B$1&CHAR(10)&ScriptText!$D$1)","v":""},{"$f":"IF(OrigTable!C1380=\"\",\"\",IF(LEN(OrigTable!C1380)>255,LEFT(OrigTable!C1380,250)&\". . .\",OrigTable!C1380))","v":""},{"$f":"IF(OrigTable!C1380=\"\",\"\",ScriptText!$E$1&CHAR(10)&ScriptText!$C$1)","v":""},{"$f":"IF(OrigTable!D1380=\"\",\"\",ScriptText!$B$1&CHAR(10)&ScriptText!$D$1)","v":""},{"$f":"IF(OrigTable!D1380=\"\",\"\",TEXT(OrigTable!D1380,\"00\"))","v":""},{"$f":"IF(OrigTable!D1380=\"\",\"\",ScriptText!$E$1&CHAR(10)&ScriptText!$C$1)","v":""},{"$f":"IF(OrigTable!E1380=\"\",\"\",ScriptText!$B$1&CHAR(10)&ScriptText!$D$1)","v":""},{"$f":"IF(OrigTable!E1380=\"\",\"\",TEXT(OrigTable!E1380,\"00\"))","v":""},{"$f":"IF(OrigTable!E1380=\"\",\"\",ScriptText!$E$1&CHAR(10)&ScriptText!$C$1)","v":""},{"$f":"IF(OrigTable!F1380=\"\",\"\",ScriptText!$B$1&CHAR(10)&ScriptText!$D$1)","v":""},{"$f":"IF(OrigTable!F1380=\"\",\"\",TEXT(OrigTable!F1380,\"00\"))","v":""},{"$f":"IF(OrigTable!F1380=\"\",\"\",ScriptText!$E$1&CHAR(10)&ScriptText!$C$1)","v":""},{"$f":"IF(OrigTable!G1380=\"\",\"\",ScriptText!$B$1&CHAR(10)&ScriptText!$D$1)","v":""},{"$f":"IF(OrigTable!G1380=\"\",\"\",TEXT(OrigTable!G1380,\"00\"))","v":""},{"$f":"IF(OrigTable!G1380=\"\",\"\",ScriptText!$E$1&CHAR(10)&ScriptText!$C$1)","v":""},0]
["\n\n\n",{"$f":"IF(OrigTable!A1381=\"\",\"\",ScriptText!$B$1&CHAR(10)&ScriptText!$D$1)","v":""},{"$f":"IF(OrigTable!A1381=\"\",\"\",TEXT(OrigTable!A1381,\"00\"))","v":""},{"$f":"IF(OrigTable!A1381=\"\",\"\",ScriptText!$E$1&CHAR(10)&ScriptText!$C$1)","v":""},{"$f":"IF(OrigTable!B1381=\"\",\"\",ScriptText!$B$1&CHAR(10)&ScriptText!$D$1)","v":""},{"$f":"IF(OrigTable!B1381=\"\",\"\",TEXT(OrigTable!B1381,\"00\"))","v":""},{"$f":"IF(OrigTable!B1381=\"\",\"\",ScriptText!$E$1&CHAR(10)&ScriptText!C1376)","v":""},{"$f":"IF(OrigTable!C1381=\"\",\"\",ScriptText!$B$1&CHAR(10)&ScriptText!$D$1)","v":""},{"$f":"IF(OrigTable!C1381=\"\",\"\",IF(LEN(OrigTable!C1381)>255,LEFT(OrigTable!C1381,250)&\". . .\",OrigTable!C1381))","v":""},{"$f":"IF(OrigTable!C1381=\"\",\"\",ScriptText!$E$1&CHAR(10)&ScriptText!$C$1)","v":""},{"$f":"IF(OrigTable!D1381=\"\",\"\",ScriptText!$B$1&CHAR(10)&ScriptText!$D$1)","v":""},{"$f":"IF(OrigTable!D1381=\"\",\"\",TEXT(OrigTable!D1381,\"00\"))","v":""},{"$f":"IF(OrigTable!D1381=\"\",\"\",ScriptText!$E$1&CHAR(10)&ScriptText!$C$1)","v":""},{"$f":"IF(OrigTable!E1381=\"\",\"\",ScriptText!$B$1&CHAR(10)&ScriptText!$D$1)","v":""},{"$f":"IF(OrigTable!E1381=\"\",\"\",TEXT(OrigTable!E1381,\"00\"))","v":""},{"$f":"IF(OrigTable!E1381=\"\",\"\",ScriptText!$E$1&CHAR(10)&ScriptText!$C$1)","v":""},{"$f":"IF(OrigTable!F1381=\"\",\"\",ScriptText!$B$1&CHAR(10)&ScriptText!$D$1)","v":""},{"$f":"IF(OrigTable!F1381=\"\",\"\",TEXT(OrigTable!F1381,\"00\"))","v":""},{"$f":"IF(OrigTable!F1381=\"\",\"\",ScriptText!$E$1&CHAR(10)&ScriptText!$C$1)","v":""},{"$f":"IF(OrigTable!G1381=\"\",\"\",ScriptText!$B$1&CHAR(10)&ScriptText!$D$1)","v":""},{"$f":"IF(OrigTable!G1381=\"\",\"\",TEXT(OrigTable!G1381,\"00\"))","v":""},{"$f":"IF(OrigTable!G1381=\"\",\"\",ScriptText!$E$1&CHAR(10)&ScriptText!$C$1)","v":""},0]
["\n\n\n",{"$f":"IF(OrigTable!A1382=\"\",\"\",ScriptText!$B$1&CHAR(10)&ScriptText!$D$1)","v":""},{"$f":"IF(OrigTable!A1382=\"\",\"\",TEXT(OrigTable!A1382,\"00\"))","v":""},{"$f":"IF(OrigTable!A1382=\"\",\"\",ScriptText!$E$1&CHAR(10)&ScriptText!$C$1)","v":""},{"$f":"IF(OrigTable!B1382=\"\",\"\",ScriptText!$B$1&CHAR(10)&ScriptText!$D$1)","v":""},{"$f":"IF(OrigTable!B1382=\"\",\"\",TEXT(OrigTable!B1382,\"00\"))","v":""},{"$f":"IF(OrigTable!B1382=\"\",\"\",ScriptText!$E$1&CHAR(10)&ScriptText!C1377)","v":""},{"$f":"IF(OrigTable!C1382=\"\",\"\",ScriptText!$B$1&CHAR(10)&ScriptText!$D$1)","v":""},{"$f":"IF(OrigTable!C1382=\"\",\"\",IF(LEN(OrigTable!C1382)>255,LEFT(OrigTable!C1382,250)&\". . .\",OrigTable!C1382))","v":""},{"$f":"IF(OrigTable!C1382=\"\",\"\",ScriptText!$E$1&CHAR(10)&ScriptText!$C$1)","v":""},{"$f":"IF(OrigTable!D1382=\"\",\"\",ScriptText!$B$1&CHAR(10)&ScriptText!$D$1)","v":""},{"$f":"IF(OrigTable!D1382=\"\",\"\",TEXT(OrigTable!D1382,\"00\"))","v":""},{"$f":"IF(OrigTable!D1382=\"\",\"\",ScriptText!$E$1&CHAR(10)&ScriptText!$C$1)","v":""},{"$f":"IF(OrigTable!E1382=\"\",\"\",ScriptText!$B$1&CHAR(10)&ScriptText!$D$1)","v":""},{"$f":"IF(OrigTable!E1382=\"\",\"\",TEXT(OrigTable!E1382,\"00\"))","v":""},{"$f":"IF(OrigTable!E1382=\"\",\"\",ScriptText!$E$1&CHAR(10)&ScriptText!$C$1)","v":""},{"$f":"IF(OrigTable!F1382=\"\",\"\",ScriptText!$B$1&CHAR(10)&ScriptText!$D$1)","v":""},{"$f":"IF(OrigTable!F1382=\"\",\"\",TEXT(OrigTable!F1382,\"00\"))","v":""},{"$f":"IF(OrigTable!F1382=\"\",\"\",ScriptText!$E$1&CHAR(10)&ScriptText!$C$1)","v":""},{"$f":"IF(OrigTable!G1382=\"\",\"\",ScriptText!$B$1&CHAR(10)&ScriptText!$D$1)","v":""},{"$f":"IF(OrigTable!G1382=\"\",\"\",TEXT(OrigTable!G1382,\"00\"))","v":""},{"$f":"IF(OrigTable!G1382=\"\",\"\",ScriptText!$E$1&CHAR(10)&ScriptText!$C$1)","v":""},0]
["\n\n\n",{"$f":"IF(OrigTable!A1383=\"\",\"\",ScriptText!$B$1&CHAR(10)&ScriptText!$D$1)","v":""},{"$f":"IF(OrigTable!A1383=\"\",\"\",TEXT(OrigTable!A1383,\"00\"))","v":""},{"$f":"IF(OrigTable!A1383=\"\",\"\",ScriptText!$E$1&CHAR(10)&ScriptText!$C$1)","v":""},{"$f":"IF(OrigTable!B1383=\"\",\"\",ScriptText!$B$1&CHAR(10)&ScriptText!$D$1)","v":""},{"$f":"IF(OrigTable!B1383=\"\",\"\",TEXT(OrigTable!B1383,\"00\"))","v":""},{"$f":"IF(OrigTable!B1383=\"\",\"\",ScriptText!$E$1&CHAR(10)&ScriptText!C1378)","v":""},{"$f":"IF(OrigTable!C1383=\"\",\"\",ScriptText!$B$1&CHAR(10)&ScriptText!$D$1)","v":""},{"$f":"IF(OrigTable!C1383=\"\",\"\",IF(LEN(OrigTable!C1383)>255,LEFT(OrigTable!C1383,250)&\". . .\",OrigTable!C1383))","v":""},{"$f":"IF(OrigTable!C1383=\"\",\"\",ScriptText!$E$1&CHAR(10)&ScriptText!$C$1)","v":""},{"$f":"IF(OrigTable!D1383=\"\",\"\",ScriptText!$B$1&CHAR(10)&ScriptText!$D$1)","v":""},{"$f":"IF(OrigTable!D1383=\"\",\"\",TEXT(OrigTable!D1383,\"00\"))","v":""},{"$f":"IF(OrigTable!D1383=\"\",\"\",ScriptText!$E$1&CHAR(10)&ScriptText!$C$1)","v":""},{"$f":"IF(OrigTable!E1383=\"\",\"\",ScriptText!$B$1&CHAR(10)&ScriptText!$D$1)","v":""},{"$f":"IF(OrigTable!E1383=\"\",\"\",TEXT(OrigTable!E1383,\"00\"))","v":""},{"$f":"IF(OrigTable!E1383=\"\",\"\",ScriptText!$E$1&CHAR(10)&ScriptText!$C$1)","v":""},{"$f":"IF(OrigTable!F1383=\"\",\"\",ScriptText!$B$1&CHAR(10)&ScriptText!$D$1)","v":""},{"$f":"IF(OrigTable!F1383=\"\",\"\",TEXT(OrigTable!F1383,\"00\"))","v":""},{"$f":"IF(OrigTable!F1383=\"\",\"\",ScriptText!$E$1&CHAR(10)&ScriptText!$C$1)","v":""},{"$f":"IF(OrigTable!G1383=\"\",\"\",ScriptText!$B$1&CHAR(10)&ScriptText!$D$1)","v":""},{"$f":"IF(OrigTable!G1383=\"\",\"\",TEXT(OrigTable!G1383,\"00\"))","v":""},{"$f":"IF(OrigTable!G1383=\"\",\"\",ScriptText!$E$1&CHAR(10)&ScriptText!$C$1)","v":""},0]
["\n\n\n",{"$f":"IF(OrigTable!A1384=\"\",\"\",ScriptText!$B$1&CHAR(10)&ScriptText!$D$1)","v":""},{"$f":"IF(OrigTable!A1384=\"\",\"\",TEXT(OrigTable!A1384,\"00\"))","v":""},{"$f":"IF(OrigTable!A1384=\"\",\"\",ScriptText!$E$1&CHAR(10)&ScriptText!$C$1)","v":""},{"$f":"IF(OrigTable!B1384=\"\",\"\",ScriptText!$B$1&CHAR(10)&ScriptText!$D$1)","v":""},{"$f":"IF(OrigTable!B1384=\"\",\"\",TEXT(OrigTable!B1384,\"00\"))","v":""},{"$f":"IF(OrigTable!B1384=\"\",\"\",ScriptText!$E$1&CHAR(10)&ScriptText!C1379)","v":""},{"$f":"IF(OrigTable!C1384=\"\",\"\",ScriptText!$B$1&CHAR(10)&ScriptText!$D$1)","v":""},{"$f":"IF(OrigTable!C1384=\"\",\"\",IF(LEN(OrigTable!C1384)>255,LEFT(OrigTable!C1384,250)&\". . .\",OrigTable!C1384))","v":""},{"$f":"IF(OrigTable!C1384=\"\",\"\",ScriptText!$E$1&CHAR(10)&ScriptText!$C$1)","v":""},{"$f":"IF(OrigTable!D1384=\"\",\"\",ScriptText!$B$1&CHAR(10)&ScriptText!$D$1)","v":""},{"$f":"IF(OrigTable!D1384=\"\",\"\",TEXT(OrigTable!D1384,\"00\"))","v":""},{"$f":"IF(OrigTable!D1384=\"\",\"\",ScriptText!$E$1&CHAR(10)&ScriptText!$C$1)","v":""},{"$f":"IF(OrigTable!E1384=\"\",\"\",ScriptText!$B$1&CHAR(10)&ScriptText!$D$1)","v":""},{"$f":"IF(OrigTable!E1384=\"\",\"\",TEXT(OrigTable!E1384,\"00\"))","v":""},{"$f":"IF(OrigTable!E1384=\"\",\"\",ScriptText!$E$1&CHAR(10)&ScriptText!$C$1)","v":""},{"$f":"IF(OrigTable!F1384=\"\",\"\",ScriptText!$B$1&CHAR(10)&ScriptText!$D$1)","v":""},{"$f":"IF(OrigTable!F1384=\"\",\"\",TEXT(OrigTable!F1384,\"00\"))","v":""},{"$f":"IF(OrigTable!F1384=\"\",\"\",ScriptText!$E$1&CHAR(10)&ScriptText!$C$1)","v":""},{"$f":"IF(OrigTable!G1384=\"\",\"\",ScriptText!$B$1&CHAR(10)&ScriptText!$D$1)","v":""},{"$f":"IF(OrigTable!G1384=\"\",\"\",TEXT(OrigTable!G1384,\"00\"))","v":""},{"$f":"IF(OrigTable!G1384=\"\",\"\",ScriptText!$E$1&CHAR(10)&ScriptText!$C$1)","v":""},0]
["\n\n\n",{"$f":"IF(OrigTable!A1385=\"\",\"\",ScriptText!$B$1&CHAR(10)&ScriptText!$D$1)","v":""},{"$f":"IF(OrigTable!A1385=\"\",\"\",TEXT(OrigTable!A1385,\"00\"))","v":""},{"$f":"IF(OrigTable!A1385=\"\",\"\",ScriptText!$E$1&CHAR(10)&ScriptText!$C$1)","v":""},{"$f":"IF(OrigTable!B1385=\"\",\"\",ScriptText!$B$1&CHAR(10)&ScriptText!$D$1)","v":""},{"$f":"IF(OrigTable!B1385=\"\",\"\",TEXT(OrigTable!B1385,\"00\"))","v":""},{"$f":"IF(OrigTable!B1385=\"\",\"\",ScriptText!$E$1&CHAR(10)&ScriptText!C1380)","v":""},{"$f":"IF(OrigTable!C1385=\"\",\"\",ScriptText!$B$1&CHAR(10)&ScriptText!$D$1)","v":""},{"$f":"IF(OrigTable!C1385=\"\",\"\",IF(LEN(OrigTable!C1385)>255,LEFT(OrigTable!C1385,250)&\". . .\",OrigTable!C1385))","v":""},{"$f":"IF(OrigTable!C1385=\"\",\"\",ScriptText!$E$1&CHAR(10)&ScriptText!$C$1)","v":""},{"$f":"IF(OrigTable!D1385=\"\",\"\",ScriptText!$B$1&CHAR(10)&ScriptText!$D$1)","v":""},{"$f":"IF(OrigTable!D1385=\"\",\"\",TEXT(OrigTable!D1385,\"00\"))","v":""},{"$f":"IF(OrigTable!D1385=\"\",\"\",ScriptText!$E$1&CHAR(10)&ScriptText!$C$1)","v":""},{"$f":"IF(OrigTable!E1385=\"\",\"\",ScriptText!$B$1&CHAR(10)&ScriptText!$D$1)","v":""},{"$f":"IF(OrigTable!E1385=\"\",\"\",TEXT(OrigTable!E1385,\"00\"))","v":""},{"$f":"IF(OrigTable!E1385=\"\",\"\",ScriptText!$E$1&CHAR(10)&ScriptText!$C$1)","v":""},{"$f":"IF(OrigTable!F1385=\"\",\"\",ScriptText!$B$1&CHAR(10)&ScriptText!$D$1)","v":""},{"$f":"IF(OrigTable!F1385=\"\",\"\",TEXT(OrigTable!F1385,\"00\"))","v":""},{"$f":"IF(OrigTable!F1385=\"\",\"\",ScriptText!$E$1&CHAR(10)&ScriptText!$C$1)","v":""},{"$f":"IF(OrigTable!G1385=\"\",\"\",ScriptText!$B$1&CHAR(10)&ScriptText!$D$1)","v":""},{"$f":"IF(OrigTable!G1385=\"\",\"\",TEXT(OrigTable!G1385,\"00\"))","v":""},{"$f":"IF(OrigTable!G1385=\"\",\"\",ScriptText!$E$1&CHAR(10)&ScriptText!$C$1)","v":""},0]
["\n\n\n",{"$f":"IF(OrigTable!A1386=\"\",\"\",ScriptText!$B$1&CHAR(10)&ScriptText!$D$1)","v":""},{"$f":"IF(OrigTable!A1386=\"\",\"\",TEXT(OrigTable!A1386,\"00\"))","v":""},{"$f":"IF(OrigTable!A1386=\"\",\"\",ScriptText!$E$1&CHAR(10)&ScriptText!$C$1)","v":""},{"$f":"IF(OrigTable!B1386=\"\",\"\",ScriptText!$B$1&CHAR(10)&ScriptText!$D$1)","v":""},{"$f":"IF(OrigTable!B1386=\"\",\"\",TEXT(OrigTable!B1386,\"00\"))","v":""},{"$f":"IF(OrigTable!B1386=\"\",\"\",ScriptText!$E$1&CHAR(10)&ScriptText!C1381)","v":""},{"$f":"IF(OrigTable!C1386=\"\",\"\",ScriptText!$B$1&CHAR(10)&ScriptText!$D$1)","v":""},{"$f":"IF(OrigTable!C1386=\"\",\"\",IF(LEN(OrigTable!C1386)>255,LEFT(OrigTable!C1386,250)&\". . .\",OrigTable!C1386))","v":""},{"$f":"IF(OrigTable!C1386=\"\",\"\",ScriptText!$E$1&CHAR(10)&ScriptText!$C$1)","v":""},{"$f":"IF(OrigTable!D1386=\"\",\"\",ScriptText!$B$1&CHAR(10)&ScriptText!$D$1)","v":""},{"$f":"IF(OrigTable!D1386=\"\",\"\",TEXT(OrigTable!D1386,\"00\"))","v":""},{"$f":"IF(OrigTable!D1386=\"\",\"\",ScriptText!$E$1&CHAR(10)&ScriptText!$C$1)","v":""},{"$f":"IF(OrigTable!E1386=\"\",\"\",ScriptText!$B$1&CHAR(10)&ScriptText!$D$1)","v":""},{"$f":"IF(OrigTable!E1386=\"\",\"\",TEXT(OrigTable!E1386,\"00\"))","v":""},{"$f":"IF(OrigTable!E1386=\"\",\"\",ScriptText!$E$1&CHAR(10)&ScriptText!$C$1)","v":""},{"$f":"IF(OrigTable!F1386=\"\",\"\",ScriptText!$B$1&CHAR(10)&ScriptText!$D$1)","v":""},{"$f":"IF(OrigTable!F1386=\"\",\"\",TEXT(OrigTable!F1386,\"00\"))","v":""},{"$f":"IF(OrigTable!F1386=\"\",\"\",ScriptText!$E$1&CHAR(10)&ScriptText!$C$1)","v":""},{"$f":"IF(OrigTable!G1386=\"\",\"\",ScriptText!$B$1&CHAR(10)&ScriptText!$D$1)","v":""},{"$f":"IF(OrigTable!G1386=\"\",\"\",TEXT(OrigTable!G1386,\"00\"))","v":""},{"$f":"IF(OrigTable!G1386=\"\",\"\",ScriptText!$E$1&CHAR(10)&ScriptText!$C$1)","v":""},0]
["\n\n\n",{"$f":"IF(OrigTable!A1387=\"\",\"\",ScriptText!$B$1&CHAR(10)&ScriptText!$D$1)","v":""},{"$f":"IF(OrigTable!A1387=\"\",\"\",TEXT(OrigTable!A1387,\"00\"))","v":""},{"$f":"IF(OrigTable!A1387=\"\",\"\",ScriptText!$E$1&CHAR(10)&ScriptText!$C$1)","v":""},{"$f":"IF(OrigTable!B1387=\"\",\"\",ScriptText!$B$1&CHAR(10)&ScriptText!$D$1)","v":""},{"$f":"IF(OrigTable!B1387=\"\",\"\",TEXT(OrigTable!B1387,\"00\"))","v":""},{"$f":"IF(OrigTable!B1387=\"\",\"\",ScriptText!$E$1&CHAR(10)&ScriptText!C1382)","v":""},{"$f":"IF(OrigTable!C1387=\"\",\"\",ScriptText!$B$1&CHAR(10)&ScriptText!$D$1)","v":""},{"$f":"IF(OrigTable!C1387=\"\",\"\",IF(LEN(OrigTable!C1387)>255,LEFT(OrigTable!C1387,250)&\". . .\",OrigTable!C1387))","v":""},{"$f":"IF(OrigTable!C1387=\"\",\"\",ScriptText!$E$1&CHAR(10)&ScriptText!$C$1)","v":""},{"$f":"IF(OrigTable!D1387=\"\",\"\",ScriptText!$B$1&CHAR(10)&ScriptText!$D$1)","v":""},{"$f":"IF(OrigTable!D1387=\"\",\"\",TEXT(OrigTable!D1387,\"00\"))","v":""},{"$f":"IF(OrigTable!D1387=\"\",\"\",ScriptText!$E$1&CHAR(10)&ScriptText!$C$1)","v":""},{"$f":"IF(OrigTable!E1387=\"\",\"\",ScriptText!$B$1&CHAR(10)&ScriptText!$D$1)","v":""},{"$f":"IF(OrigTable!E1387=\"\",\"\",TEXT(OrigTable!E1387,\"00\"))","v":""},{"$f":"IF(OrigTable!E1387=\"\",\"\",ScriptText!$E$1&CHAR(10)&ScriptText!$C$1)","v":""},{"$f":"IF(OrigTable!F1387=\"\",\"\",ScriptText!$B$1&CHAR(10)&ScriptText!$D$1)","v":""},{"$f":"IF(OrigTable!F1387=\"\",\"\",TEXT(OrigTable!F1387,\"00\"))","v":""},{"$f":"IF(OrigTable!F1387=\"\",\"\",ScriptText!$E$1&CHAR(10)&ScriptText!$C$1)","v":""},{"$f":"IF(OrigTable!G1387=\"\",\"\",ScriptText!$B$1&CHAR(10)&ScriptText!$D$1)","v":""},{"$f":"IF(OrigTable!G1387=\"\",\"\",TEXT(OrigTable!G1387,\"00\"))","v":""},{"$f":"IF(OrigTable!G1387=\"\",\"\",ScriptText!$E$1&CHAR(10)&ScriptText!$C$1)","v":""},0]
["\n\n\n",{"$f":"IF(OrigTable!A1388=\"\",\"\",ScriptText!$B$1&CHAR(10)&ScriptText!$D$1)","v":""},{"$f":"IF(OrigTable!A1388=\"\",\"\",TEXT(OrigTable!A1388,\"00\"))","v":""},{"$f":"IF(OrigTable!A1388=\"\",\"\",ScriptText!$E$1&CHAR(10)&ScriptText!$C$1)","v":""},{"$f":"IF(OrigTable!B1388=\"\",\"\",ScriptText!$B$1&CHAR(10)&ScriptText!$D$1)","v":""},{"$f":"IF(OrigTable!B1388=\"\",\"\",TEXT(OrigTable!B1388,\"00\"))","v":""},{"$f":"IF(OrigTable!B1388=\"\",\"\",ScriptText!$E$1&CHAR(10)&ScriptText!C1383)","v":""},{"$f":"IF(OrigTable!C1388=\"\",\"\",ScriptText!$B$1&CHAR(10)&ScriptText!$D$1)","v":""},{"$f":"IF(OrigTable!C1388=\"\",\"\",IF(LEN(OrigTable!C1388)>255,LEFT(OrigTable!C1388,250)&\". . .\",OrigTable!C1388))","v":""},{"$f":"IF(OrigTable!C1388=\"\",\"\",ScriptText!$E$1&CHAR(10)&ScriptText!$C$1)","v":""},{"$f":"IF(OrigTable!D1388=\"\",\"\",ScriptText!$B$1&CHAR(10)&ScriptText!$D$1)","v":""},{"$f":"IF(OrigTable!D1388=\"\",\"\",TEXT(OrigTable!D1388,\"00\"))","v":""},{"$f":"IF(OrigTable!D1388=\"\",\"\",ScriptText!$E$1&CHAR(10)&ScriptText!$C$1)","v":""},{"$f":"IF(OrigTable!E1388=\"\",\"\",ScriptText!$B$1&CHAR(10)&ScriptText!$D$1)","v":""},{"$f":"IF(OrigTable!E1388=\"\",\"\",TEXT(OrigTable!E1388,\"00\"))","v":""},{"$f":"IF(OrigTable!E1388=\"\",\"\",ScriptText!$E$1&CHAR(10)&ScriptText!$C$1)","v":""},{"$f":"IF(OrigTable!F1388=\"\",\"\",ScriptText!$B$1&CHAR(10)&ScriptText!$D$1)","v":""},{"$f":"IF(OrigTable!F1388=\"\",\"\",TEXT(OrigTable!F1388,\"00\"))","v":""},{"$f":"IF(OrigTable!F1388=\"\",\"\",ScriptText!$E$1&CHAR(10)&ScriptText!$C$1)","v":""},{"$f":"IF(OrigTable!G1388=\"\",\"\",ScriptText!$B$1&CHAR(10)&ScriptText!$D$1)","v":""},{"$f":"IF(OrigTable!G1388=\"\",\"\",TEXT(OrigTable!G1388,\"00\"))","v":""},{"$f":"IF(OrigTable!G1388=\"\",\"\",ScriptText!$E$1&CHAR(10)&ScriptText!$C$1)","v":""},0]
["\n\n\n",{"$f":"IF(OrigTable!A1389=\"\",\"\",ScriptText!$B$1&CHAR(10)&ScriptText!$D$1)","v":""},{"$f":"IF(OrigTable!A1389=\"\",\"\",TEXT(OrigTable!A1389,\"00\"))","v":""},{"$f":"IF(OrigTable!A1389=\"\",\"\",ScriptText!$E$1&CHAR(10)&ScriptText!$C$1)","v":""},{"$f":"IF(OrigTable!B1389=\"\",\"\",ScriptText!$B$1&CHAR(10)&ScriptText!$D$1)","v":""},{"$f":"IF(OrigTable!B1389=\"\",\"\",TEXT(OrigTable!B1389,\"00\"))","v":""},{"$f":"IF(OrigTable!B1389=\"\",\"\",ScriptText!$E$1&CHAR(10)&ScriptText!C1384)","v":""},{"$f":"IF(OrigTable!C1389=\"\",\"\",ScriptText!$B$1&CHAR(10)&ScriptText!$D$1)","v":""},{"$f":"IF(OrigTable!C1389=\"\",\"\",IF(LEN(OrigTable!C1389)>255,LEFT(OrigTable!C1389,250)&\". . .\",OrigTable!C1389))","v":""},{"$f":"IF(OrigTable!C1389=\"\",\"\",ScriptText!$E$1&CHAR(10)&ScriptText!$C$1)","v":""},{"$f":"IF(OrigTable!D1389=\"\",\"\",ScriptText!$B$1&CHAR(10)&ScriptText!$D$1)","v":""},{"$f":"IF(OrigTable!D1389=\"\",\"\",TEXT(OrigTable!D1389,\"00\"))","v":""},{"$f":"IF(OrigTable!D1389=\"\",\"\",ScriptText!$E$1&CHAR(10)&ScriptText!$C$1)","v":""},{"$f":"IF(OrigTable!E1389=\"\",\"\",ScriptText!$B$1&CHAR(10)&ScriptText!$D$1)","v":""},{"$f":"IF(OrigTable!E1389=\"\",\"\",TEXT(OrigTable!E1389,\"00\"))","v":""},{"$f":"IF(OrigTable!E1389=\"\",\"\",ScriptText!$E$1&CHAR(10)&ScriptText!$C$1)","v":""},{"$f":"IF(OrigTable!F1389=\"\",\"\",ScriptText!$B$1&CHAR(10)&ScriptText!$D$1)","v":""},{"$f":"IF(OrigTable!F1389=\"\",\"\",TEXT(OrigTable!F1389,\"00\"))","v":""},{"$f":"IF(OrigTable!F1389=\"\",\"\",ScriptText!$E$1&CHAR(10)&ScriptText!$C$1)","v":""},{"$f":"IF(OrigTable!G1389=\"\",\"\",ScriptText!$B$1&CHAR(10)&ScriptText!$D$1)","v":""},{"$f":"IF(OrigTable!G1389=\"\",\"\",TEXT(OrigTable!G1389,\"00\"))","v":""},{"$f":"IF(OrigTable!G1389=\"\",\"\",ScriptText!$E$1&CHAR(10)&ScriptText!$C$1)","v":""},0]
["\n\n\n",{"$f":"IF(OrigTable!A1390=\"\",\"\",ScriptText!$B$1&CHAR(10)&ScriptText!$D$1)","v":""},{"$f":"IF(OrigTable!A1390=\"\",\"\",TEXT(OrigTable!A1390,\"00\"))","v":""},{"$f":"IF(OrigTable!A1390=\"\",\"\",ScriptText!$E$1&CHAR(10)&ScriptText!$C$1)","v":""},{"$f":"IF(OrigTable!B1390=\"\",\"\",ScriptText!$B$1&CHAR(10)&ScriptText!$D$1)","v":""},{"$f":"IF(OrigTable!B1390=\"\",\"\",TEXT(OrigTable!B1390,\"00\"))","v":""},{"$f":"IF(OrigTable!B1390=\"\",\"\",ScriptText!$E$1&CHAR(10)&ScriptText!C1385)","v":""},{"$f":"IF(OrigTable!C1390=\"\",\"\",ScriptText!$B$1&CHAR(10)&ScriptText!$D$1)","v":""},{"$f":"IF(OrigTable!C1390=\"\",\"\",IF(LEN(OrigTable!C1390)>255,LEFT(OrigTable!C1390,250)&\". . .\",OrigTable!C1390))","v":""},{"$f":"IF(OrigTable!C1390=\"\",\"\",ScriptText!$E$1&CHAR(10)&ScriptText!$C$1)","v":""},{"$f":"IF(OrigTable!D1390=\"\",\"\",ScriptText!$B$1&CHAR(10)&ScriptText!$D$1)","v":""},{"$f":"IF(OrigTable!D1390=\"\",\"\",TEXT(OrigTable!D1390,\"00\"))","v":""},{"$f":"IF(OrigTable!D1390=\"\",\"\",ScriptText!$E$1&CHAR(10)&ScriptText!$C$1)","v":""},{"$f":"IF(OrigTable!E1390=\"\",\"\",ScriptText!$B$1&CHAR(10)&ScriptText!$D$1)","v":""},{"$f":"IF(OrigTable!E1390=\"\",\"\",TEXT(OrigTable!E1390,\"00\"))","v":""},{"$f":"IF(OrigTable!E1390=\"\",\"\",ScriptText!$E$1&CHAR(10)&ScriptText!$C$1)","v":""},{"$f":"IF(OrigTable!F1390=\"\",\"\",ScriptText!$B$1&CHAR(10)&ScriptText!$D$1)","v":""},{"$f":"IF(OrigTable!F1390=\"\",\"\",TEXT(OrigTable!F1390,\"00\"))","v":""},{"$f":"IF(OrigTable!F1390=\"\",\"\",ScriptText!$E$1&CHAR(10)&ScriptText!$C$1)","v":""},{"$f":"IF(OrigTable!G1390=\"\",\"\",ScriptText!$B$1&CHAR(10)&ScriptText!$D$1)","v":""},{"$f":"IF(OrigTable!G1390=\"\",\"\",TEXT(OrigTable!G1390,\"00\"))","v":""},{"$f":"IF(OrigTable!G1390=\"\",\"\",ScriptText!$E$1&CHAR(10)&ScriptText!$C$1)","v":""},0]
["\n\n\n",{"$f":"IF(OrigTable!A1391=\"\",\"\",ScriptText!$B$1&CHAR(10)&ScriptText!$D$1)","v":""},{"$f":"IF(OrigTable!A1391=\"\",\"\",TEXT(OrigTable!A1391,\"00\"))","v":""},{"$f":"IF(OrigTable!A1391=\"\",\"\",ScriptText!$E$1&CHAR(10)&ScriptText!$C$1)","v":""},{"$f":"IF(OrigTable!B1391=\"\",\"\",ScriptText!$B$1&CHAR(10)&ScriptText!$D$1)","v":""},{"$f":"IF(OrigTable!B1391=\"\",\"\",TEXT(OrigTable!B1391,\"00\"))","v":""},{"$f":"IF(OrigTable!B1391=\"\",\"\",ScriptText!$E$1&CHAR(10)&ScriptText!C1386)","v":""},{"$f":"IF(OrigTable!C1391=\"\",\"\",ScriptText!$B$1&CHAR(10)&ScriptText!$D$1)","v":""},{"$f":"IF(OrigTable!C1391=\"\",\"\",IF(LEN(OrigTable!C1391)>255,LEFT(OrigTable!C1391,250)&\". . .\",OrigTable!C1391))","v":""},{"$f":"IF(OrigTable!C1391=\"\",\"\",ScriptText!$E$1&CHAR(10)&ScriptText!$C$1)","v":""},{"$f":"IF(OrigTable!D1391=\"\",\"\",ScriptText!$B$1&CHAR(10)&ScriptText!$D$1)","v":""},{"$f":"IF(OrigTable!D1391=\"\",\"\",TEXT(OrigTable!D1391,\"00\"))","v":""},{"$f":"IF(OrigTable!D1391=\"\",\"\",ScriptText!$E$1&CHAR(10)&ScriptText!$C$1)","v":""},{"$f":"IF(OrigTable!E1391=\"\",\"\",ScriptText!$B$1&CHAR(10)&ScriptText!$D$1)","v":""},{"$f":"IF(OrigTable!E1391=\"\",\"\",TEXT(OrigTable!E1391,\"00\"))","v":""},{"$f":"IF(OrigTable!E1391=\"\",\"\",ScriptText!$E$1&CHAR(10)&ScriptText!$C$1)","v":""},{"$f":"IF(OrigTable!F1391=\"\",\"\",ScriptText!$B$1&CHAR(10)&ScriptText!$D$1)","v":""},{"$f":"IF(OrigTable!F1391=\"\",\"\",TEXT(OrigTable!F1391,\"00\"))","v":""},{"$f":"IF(OrigTable!F1391=\"\",\"\",ScriptText!$E$1&CHAR(10)&ScriptText!$C$1)","v":""},{"$f":"IF(OrigTable!G1391=\"\",\"\",ScriptText!$B$1&CHAR(10)&ScriptText!$D$1)","v":""},{"$f":"IF(OrigTable!G1391=\"\",\"\",TEXT(OrigTable!G1391,\"00\"))","v":""},{"$f":"IF(OrigTable!G1391=\"\",\"\",ScriptText!$E$1&CHAR(10)&ScriptText!$C$1)","v":""},0]
["\n\n\n",{"$f":"IF(OrigTable!A1392=\"\",\"\",ScriptText!$B$1&CHAR(10)&ScriptText!$D$1)","v":""},{"$f":"IF(OrigTable!A1392=\"\",\"\",TEXT(OrigTable!A1392,\"00\"))","v":""},{"$f":"IF(OrigTable!A1392=\"\",\"\",ScriptText!$E$1&CHAR(10)&ScriptText!$C$1)","v":""},{"$f":"IF(OrigTable!B1392=\"\",\"\",ScriptText!$B$1&CHAR(10)&ScriptText!$D$1)","v":""},{"$f":"IF(OrigTable!B1392=\"\",\"\",TEXT(OrigTable!B1392,\"00\"))","v":""},{"$f":"IF(OrigTable!B1392=\"\",\"\",ScriptText!$E$1&CHAR(10)&ScriptText!C1387)","v":""},{"$f":"IF(OrigTable!C1392=\"\",\"\",ScriptText!$B$1&CHAR(10)&ScriptText!$D$1)","v":""},{"$f":"IF(OrigTable!C1392=\"\",\"\",IF(LEN(OrigTable!C1392)>255,LEFT(OrigTable!C1392,250)&\". . .\",OrigTable!C1392))","v":""},{"$f":"IF(OrigTable!C1392=\"\",\"\",ScriptText!$E$1&CHAR(10)&ScriptText!$C$1)","v":""},{"$f":"IF(OrigTable!D1392=\"\",\"\",ScriptText!$B$1&CHAR(10)&ScriptText!$D$1)","v":""},{"$f":"IF(OrigTable!D1392=\"\",\"\",TEXT(OrigTable!D1392,\"00\"))","v":""},{"$f":"IF(OrigTable!D1392=\"\",\"\",ScriptText!$E$1&CHAR(10)&ScriptText!$C$1)","v":""},{"$f":"IF(OrigTable!E1392=\"\",\"\",ScriptText!$B$1&CHAR(10)&ScriptText!$D$1)","v":""},{"$f":"IF(OrigTable!E1392=\"\",\"\",TEXT(OrigTable!E1392,\"00\"))","v":""},{"$f":"IF(OrigTable!E1392=\"\",\"\",ScriptText!$E$1&CHAR(10)&ScriptText!$C$1)","v":""},{"$f":"IF(OrigTable!F1392=\"\",\"\",ScriptText!$B$1&CHAR(10)&ScriptText!$D$1)","v":""},{"$f":"IF(OrigTable!F1392=\"\",\"\",TEXT(OrigTable!F1392,\"00\"))","v":""},{"$f":"IF(OrigTable!F1392=\"\",\"\",ScriptText!$E$1&CHAR(10)&ScriptText!$C$1)","v":""},{"$f":"IF(OrigTable!G1392=\"\",\"\",ScriptText!$B$1&CHAR(10)&ScriptText!$D$1)","v":""},{"$f":"IF(OrigTable!G1392=\"\",\"\",TEXT(OrigTable!G1392,\"00\"))","v":""},{"$f":"IF(OrigTable!G1392=\"\",\"\",ScriptText!$E$1&CHAR(10)&ScriptText!$C$1)","v":""},0]
["\n\n\n",{"$f":"IF(OrigTable!A1393=\"\",\"\",ScriptText!$B$1&CHAR(10)&ScriptText!$D$1)","v":""},{"$f":"IF(OrigTable!A1393=\"\",\"\",TEXT(OrigTable!A1393,\"00\"))","v":""},{"$f":"IF(OrigTable!A1393=\"\",\"\",ScriptText!$E$1&CHAR(10)&ScriptText!$C$1)","v":""},{"$f":"IF(OrigTable!B1393=\"\",\"\",ScriptText!$B$1&CHAR(10)&ScriptText!$D$1)","v":""},{"$f":"IF(OrigTable!B1393=\"\",\"\",TEXT(OrigTable!B1393,\"00\"))","v":""},{"$f":"IF(OrigTable!B1393=\"\",\"\",ScriptText!$E$1&CHAR(10)&ScriptText!C1388)","v":""},{"$f":"IF(OrigTable!C1393=\"\",\"\",ScriptText!$B$1&CHAR(10)&ScriptText!$D$1)","v":""},{"$f":"IF(OrigTable!C1393=\"\",\"\",IF(LEN(OrigTable!C1393)>255,LEFT(OrigTable!C1393,250)&\". . .\",OrigTable!C1393))","v":""},{"$f":"IF(OrigTable!C1393=\"\",\"\",ScriptText!$E$1&CHAR(10)&ScriptText!$C$1)","v":""},{"$f":"IF(OrigTable!D1393=\"\",\"\",ScriptText!$B$1&CHAR(10)&ScriptText!$D$1)","v":""},{"$f":"IF(OrigTable!D1393=\"\",\"\",TEXT(OrigTable!D1393,\"00\"))","v":""},{"$f":"IF(OrigTable!D1393=\"\",\"\",ScriptText!$E$1&CHAR(10)&ScriptText!$C$1)","v":""},{"$f":"IF(OrigTable!E1393=\"\",\"\",ScriptText!$B$1&CHAR(10)&ScriptText!$D$1)","v":""},{"$f":"IF(OrigTable!E1393=\"\",\"\",TEXT(OrigTable!E1393,\"00\"))","v":""},{"$f":"IF(OrigTable!E1393=\"\",\"\",ScriptText!$E$1&CHAR(10)&ScriptText!$C$1)","v":""},{"$f":"IF(OrigTable!F1393=\"\",\"\",ScriptText!$B$1&CHAR(10)&ScriptText!$D$1)","v":""},{"$f":"IF(OrigTable!F1393=\"\",\"\",TEXT(OrigTable!F1393,\"00\"))","v":""},{"$f":"IF(OrigTable!F1393=\"\",\"\",ScriptText!$E$1&CHAR(10)&ScriptText!$C$1)","v":""},{"$f":"IF(OrigTable!G1393=\"\",\"\",ScriptText!$B$1&CHAR(10)&ScriptText!$D$1)","v":""},{"$f":"IF(OrigTable!G1393=\"\",\"\",TEXT(OrigTable!G1393,\"00\"))","v":""},{"$f":"IF(OrigTable!G1393=\"\",\"\",ScriptText!$E$1&CHAR(10)&ScriptText!$C$1)","v":""},0]
["\n\n\n",{"$f":"IF(OrigTable!A1394=\"\",\"\",ScriptText!$B$1&CHAR(10)&ScriptText!$D$1)","v":""},{"$f":"IF(OrigTable!A1394=\"\",\"\",TEXT(OrigTable!A1394,\"00\"))","v":""},{"$f":"IF(OrigTable!A1394=\"\",\"\",ScriptText!$E$1&CHAR(10)&ScriptText!$C$1)","v":""},{"$f":"IF(OrigTable!B1394=\"\",\"\",ScriptText!$B$1&CHAR(10)&ScriptText!$D$1)","v":""},{"$f":"IF(OrigTable!B1394=\"\",\"\",TEXT(OrigTable!B1394,\"00\"))","v":""},{"$f":"IF(OrigTable!B1394=\"\",\"\",ScriptText!$E$1&CHAR(10)&ScriptText!C1389)","v":""},{"$f":"IF(OrigTable!C1394=\"\",\"\",ScriptText!$B$1&CHAR(10)&ScriptText!$D$1)","v":""},{"$f":"IF(OrigTable!C1394=\"\",\"\",IF(LEN(OrigTable!C1394)>255,LEFT(OrigTable!C1394,250)&\". . .\",OrigTable!C1394))","v":""},{"$f":"IF(OrigTable!C1394=\"\",\"\",ScriptText!$E$1&CHAR(10)&ScriptText!$C$1)","v":""},{"$f":"IF(OrigTable!D1394=\"\",\"\",ScriptText!$B$1&CHAR(10)&ScriptText!$D$1)","v":""},{"$f":"IF(OrigTable!D1394=\"\",\"\",TEXT(OrigTable!D1394,\"00\"))","v":""},{"$f":"IF(OrigTable!D1394=\"\",\"\",ScriptText!$E$1&CHAR(10)&ScriptText!$C$1)","v":""},{"$f":"IF(OrigTable!E1394=\"\",\"\",ScriptText!$B$1&CHAR(10)&ScriptText!$D$1)","v":""},{"$f":"IF(OrigTable!E1394=\"\",\"\",TEXT(OrigTable!E1394,\"00\"))","v":""},{"$f":"IF(OrigTable!E1394=\"\",\"\",ScriptText!$E$1&CHAR(10)&ScriptText!$C$1)","v":""},{"$f":"IF(OrigTable!F1394=\"\",\"\",ScriptText!$B$1&CHAR(10)&ScriptText!$D$1)","v":""},{"$f":"IF(OrigTable!F1394=\"\",\"\",TEXT(OrigTable!F1394,\"00\"))","v":""},{"$f":"IF(OrigTable!F1394=\"\",\"\",ScriptText!$E$1&CHAR(10)&ScriptText!$C$1)","v":""},{"$f":"IF(OrigTable!G1394=\"\",\"\",ScriptText!$B$1&CHAR(10)&ScriptText!$D$1)","v":""},{"$f":"IF(OrigTable!G1394=\"\",\"\",TEXT(OrigTable!G1394,\"00\"))","v":""},{"$f":"IF(OrigTable!G1394=\"\",\"\",ScriptText!$E$1&CHAR(10)&ScriptText!$C$1)","v":""},0]
["\n\n\n",{"$f":"IF(OrigTable!A1395=\"\",\"\",ScriptText!$B$1&CHAR(10)&ScriptText!$D$1)","v":""},{"$f":"IF(OrigTable!A1395=\"\",\"\",TEXT(OrigTable!A1395,\"00\"))","v":""},{"$f":"IF(OrigTable!A1395=\"\",\"\",ScriptText!$E$1&CHAR(10)&ScriptText!$C$1)","v":""},{"$f":"IF(OrigTable!B1395=\"\",\"\",ScriptText!$B$1&CHAR(10)&ScriptText!$D$1)","v":""},{"$f":"IF(OrigTable!B1395=\"\",\"\",TEXT(OrigTable!B1395,\"00\"))","v":""},{"$f":"IF(OrigTable!B1395=\"\",\"\",ScriptText!$E$1&CHAR(10)&ScriptText!C1390)","v":""},{"$f":"IF(OrigTable!C1395=\"\",\"\",ScriptText!$B$1&CHAR(10)&ScriptText!$D$1)","v":""},{"$f":"IF(OrigTable!C1395=\"\",\"\",IF(LEN(OrigTable!C1395)>255,LEFT(OrigTable!C1395,250)&\". . .\",OrigTable!C1395))","v":""},{"$f":"IF(OrigTable!C1395=\"\",\"\",ScriptText!$E$1&CHAR(10)&ScriptText!$C$1)","v":""},{"$f":"IF(OrigTable!D1395=\"\",\"\",ScriptText!$B$1&CHAR(10)&ScriptText!$D$1)","v":""},{"$f":"IF(OrigTable!D1395=\"\",\"\",TEXT(OrigTable!D1395,\"00\"))","v":""},{"$f":"IF(OrigTable!D1395=\"\",\"\",ScriptText!$E$1&CHAR(10)&ScriptText!$C$1)","v":""},{"$f":"IF(OrigTable!E1395=\"\",\"\",ScriptText!$B$1&CHAR(10)&ScriptText!$D$1)","v":""},{"$f":"IF(OrigTable!E1395=\"\",\"\",TEXT(OrigTable!E1395,\"00\"))","v":""},{"$f":"IF(OrigTable!E1395=\"\",\"\",ScriptText!$E$1&CHAR(10)&ScriptText!$C$1)","v":""},{"$f":"IF(OrigTable!F1395=\"\",\"\",ScriptText!$B$1&CHAR(10)&ScriptText!$D$1)","v":""},{"$f":"IF(OrigTable!F1395=\"\",\"\",TEXT(OrigTable!F1395,\"00\"))","v":""},{"$f":"IF(OrigTable!F1395=\"\",\"\",ScriptText!$E$1&CHAR(10)&ScriptText!$C$1)","v":""},{"$f":"IF(OrigTable!G1395=\"\",\"\",ScriptText!$B$1&CHAR(10)&ScriptText!$D$1)","v":""},{"$f":"IF(OrigTable!G1395=\"\",\"\",TEXT(OrigTable!G1395,\"00\"))","v":""},{"$f":"IF(OrigTable!G1395=\"\",\"\",ScriptText!$E$1&CHAR(10)&ScriptText!$C$1)","v":""},0]
["\n\n\n",{"$f":"IF(OrigTable!A1396=\"\",\"\",ScriptText!$B$1&CHAR(10)&ScriptText!$D$1)","v":""},{"$f":"IF(OrigTable!A1396=\"\",\"\",TEXT(OrigTable!A1396,\"00\"))","v":""},{"$f":"IF(OrigTable!A1396=\"\",\"\",ScriptText!$E$1&CHAR(10)&ScriptText!$C$1)","v":""},{"$f":"IF(OrigTable!B1396=\"\",\"\",ScriptText!$B$1&CHAR(10)&ScriptText!$D$1)","v":""},{"$f":"IF(OrigTable!B1396=\"\",\"\",TEXT(OrigTable!B1396,\"00\"))","v":""},{"$f":"IF(OrigTable!B1396=\"\",\"\",ScriptText!$E$1&CHAR(10)&ScriptText!C1391)","v":""},{"$f":"IF(OrigTable!C1396=\"\",\"\",ScriptText!$B$1&CHAR(10)&ScriptText!$D$1)","v":""},{"$f":"IF(OrigTable!C1396=\"\",\"\",IF(LEN(OrigTable!C1396)>255,LEFT(OrigTable!C1396,250)&\". . .\",OrigTable!C1396))","v":""},{"$f":"IF(OrigTable!C1396=\"\",\"\",ScriptText!$E$1&CHAR(10)&ScriptText!$C$1)","v":""},{"$f":"IF(OrigTable!D1396=\"\",\"\",ScriptText!$B$1&CHAR(10)&ScriptText!$D$1)","v":""},{"$f":"IF(OrigTable!D1396=\"\",\"\",TEXT(OrigTable!D1396,\"00\"))","v":""},{"$f":"IF(OrigTable!D1396=\"\",\"\",ScriptText!$E$1&CHAR(10)&ScriptText!$C$1)","v":""},{"$f":"IF(OrigTable!E1396=\"\",\"\",ScriptText!$B$1&CHAR(10)&ScriptText!$D$1)","v":""},{"$f":"IF(OrigTable!E1396=\"\",\"\",TEXT(OrigTable!E1396,\"00\"))","v":""},{"$f":"IF(OrigTable!E1396=\"\",\"\",ScriptText!$E$1&CHAR(10)&ScriptText!$C$1)","v":""},{"$f":"IF(OrigTable!F1396=\"\",\"\",ScriptText!$B$1&CHAR(10)&ScriptText!$D$1)","v":""},{"$f":"IF(OrigTable!F1396=\"\",\"\",TEXT(OrigTable!F1396,\"00\"))","v":""},{"$f":"IF(OrigTable!F1396=\"\",\"\",ScriptText!$E$1&CHAR(10)&ScriptText!$C$1)","v":""},{"$f":"IF(OrigTable!G1396=\"\",\"\",ScriptText!$B$1&CHAR(10)&ScriptText!$D$1)","v":""},{"$f":"IF(OrigTable!G1396=\"\",\"\",TEXT(OrigTable!G1396,\"00\"))","v":""},{"$f":"IF(OrigTable!G1396=\"\",\"\",ScriptText!$E$1&CHAR(10)&ScriptText!$C$1)","v":""},0]
["\n\n\n",{"$f":"IF(OrigTable!A1397=\"\",\"\",ScriptText!$B$1&CHAR(10)&ScriptText!$D$1)","v":""},{"$f":"IF(OrigTable!A1397=\"\",\"\",TEXT(OrigTable!A1397,\"00\"))","v":""},{"$f":"IF(OrigTable!A1397=\"\",\"\",ScriptText!$E$1&CHAR(10)&ScriptText!$C$1)","v":""},{"$f":"IF(OrigTable!B1397=\"\",\"\",ScriptText!$B$1&CHAR(10)&ScriptText!$D$1)","v":""},{"$f":"IF(OrigTable!B1397=\"\",\"\",TEXT(OrigTable!B1397,\"00\"))","v":""},{"$f":"IF(OrigTable!B1397=\"\",\"\",ScriptText!$E$1&CHAR(10)&ScriptText!C1392)","v":""},{"$f":"IF(OrigTable!C1397=\"\",\"\",ScriptText!$B$1&CHAR(10)&ScriptText!$D$1)","v":""},{"$f":"IF(OrigTable!C1397=\"\",\"\",IF(LEN(OrigTable!C1397)>255,LEFT(OrigTable!C1397,250)&\". . .\",OrigTable!C1397))","v":""},{"$f":"IF(OrigTable!C1397=\"\",\"\",ScriptText!$E$1&CHAR(10)&ScriptText!$C$1)","v":""},{"$f":"IF(OrigTable!D1397=\"\",\"\",ScriptText!$B$1&CHAR(10)&ScriptText!$D$1)","v":""},{"$f":"IF(OrigTable!D1397=\"\",\"\",TEXT(OrigTable!D1397,\"00\"))","v":""},{"$f":"IF(OrigTable!D1397=\"\",\"\",ScriptText!$E$1&CHAR(10)&ScriptText!$C$1)","v":""},{"$f":"IF(OrigTable!E1397=\"\",\"\",ScriptText!$B$1&CHAR(10)&ScriptText!$D$1)","v":""},{"$f":"IF(OrigTable!E1397=\"\",\"\",TEXT(OrigTable!E1397,\"00\"))","v":""},{"$f":"IF(OrigTable!E1397=\"\",\"\",ScriptText!$E$1&CHAR(10)&ScriptText!$C$1)","v":""},{"$f":"IF(OrigTable!F1397=\"\",\"\",ScriptText!$B$1&CHAR(10)&ScriptText!$D$1)","v":""},{"$f":"IF(OrigTable!F1397=\"\",\"\",TEXT(OrigTable!F1397,\"00\"))","v":""},{"$f":"IF(OrigTable!F1397=\"\",\"\",ScriptText!$E$1&CHAR(10)&ScriptText!$C$1)","v":""},{"$f":"IF(OrigTable!G1397=\"\",\"\",ScriptText!$B$1&CHAR(10)&ScriptText!$D$1)","v":""},{"$f":"IF(OrigTable!G1397=\"\",\"\",TEXT(OrigTable!G1397,\"00\"))","v":""},{"$f":"IF(OrigTable!G1397=\"\",\"\",ScriptText!$E$1&CHAR(10)&ScriptText!$C$1)","v":""},0]
["\n\n\n",{"$f":"IF(OrigTable!A1398=\"\",\"\",ScriptText!$B$1&CHAR(10)&ScriptText!$D$1)","v":""},{"$f":"IF(OrigTable!A1398=\"\",\"\",TEXT(OrigTable!A1398,\"00\"))","v":""},{"$f":"IF(OrigTable!A1398=\"\",\"\",ScriptText!$E$1&CHAR(10)&ScriptText!$C$1)","v":""},{"$f":"IF(OrigTable!B1398=\"\",\"\",ScriptText!$B$1&CHAR(10)&ScriptText!$D$1)","v":""},{"$f":"IF(OrigTable!B1398=\"\",\"\",TEXT(OrigTable!B1398,\"00\"))","v":""},{"$f":"IF(OrigTable!B1398=\"\",\"\",ScriptText!$E$1&CHAR(10)&ScriptText!C1393)","v":""},{"$f":"IF(OrigTable!C1398=\"\",\"\",ScriptText!$B$1&CHAR(10)&ScriptText!$D$1)","v":""},{"$f":"IF(OrigTable!C1398=\"\",\"\",IF(LEN(OrigTable!C1398)>255,LEFT(OrigTable!C1398,250)&\". . .\",OrigTable!C1398))","v":""},{"$f":"IF(OrigTable!C1398=\"\",\"\",ScriptText!$E$1&CHAR(10)&ScriptText!$C$1)","v":""},{"$f":"IF(OrigTable!D1398=\"\",\"\",ScriptText!$B$1&CHAR(10)&ScriptText!$D$1)","v":""},{"$f":"IF(OrigTable!D1398=\"\",\"\",TEXT(OrigTable!D1398,\"00\"))","v":""},{"$f":"IF(OrigTable!D1398=\"\",\"\",ScriptText!$E$1&CHAR(10)&ScriptText!$C$1)","v":""},{"$f":"IF(OrigTable!E1398=\"\",\"\",ScriptText!$B$1&CHAR(10)&ScriptText!$D$1)","v":""},{"$f":"IF(OrigTable!E1398=\"\",\"\",TEXT(OrigTable!E1398,\"00\"))","v":""},{"$f":"IF(OrigTable!E1398=\"\",\"\",ScriptText!$E$1&CHAR(10)&ScriptText!$C$1)","v":""},{"$f":"IF(OrigTable!F1398=\"\",\"\",ScriptText!$B$1&CHAR(10)&ScriptText!$D$1)","v":""},{"$f":"IF(OrigTable!F1398=\"\",\"\",TEXT(OrigTable!F1398,\"00\"))","v":""},{"$f":"IF(OrigTable!F1398=\"\",\"\",ScriptText!$E$1&CHAR(10)&ScriptText!$C$1)","v":""},{"$f":"IF(OrigTable!G1398=\"\",\"\",ScriptText!$B$1&CHAR(10)&ScriptText!$D$1)","v":""},{"$f":"IF(OrigTable!G1398=\"\",\"\",TEXT(OrigTable!G1398,\"00\"))","v":""},{"$f":"IF(OrigTable!G1398=\"\",\"\",ScriptText!$E$1&CHAR(10)&ScriptText!$C$1)","v":""},0]
["\n\n\n",{"$f":"IF(OrigTable!A1399=\"\",\"\",ScriptText!$B$1&CHAR(10)&ScriptText!$D$1)","v":""},{"$f":"IF(OrigTable!A1399=\"\",\"\",TEXT(OrigTable!A1399,\"00\"))","v":""},{"$f":"IF(OrigTable!A1399=\"\",\"\",ScriptText!$E$1&CHAR(10)&ScriptText!$C$1)","v":""},{"$f":"IF(OrigTable!B1399=\"\",\"\",ScriptText!$B$1&CHAR(10)&ScriptText!$D$1)","v":""},{"$f":"IF(OrigTable!B1399=\"\",\"\",TEXT(OrigTable!B1399,\"00\"))","v":""},{"$f":"IF(OrigTable!B1399=\"\",\"\",ScriptText!$E$1&CHAR(10)&ScriptText!C1394)","v":""},{"$f":"IF(OrigTable!C1399=\"\",\"\",ScriptText!$B$1&CHAR(10)&ScriptText!$D$1)","v":""},{"$f":"IF(OrigTable!C1399=\"\",\"\",IF(LEN(OrigTable!C1399)>255,LEFT(OrigTable!C1399,250)&\". . .\",OrigTable!C1399))","v":""},{"$f":"IF(OrigTable!C1399=\"\",\"\",ScriptText!$E$1&CHAR(10)&ScriptText!$C$1)","v":""},{"$f":"IF(OrigTable!D1399=\"\",\"\",ScriptText!$B$1&CHAR(10)&ScriptText!$D$1)","v":""},{"$f":"IF(OrigTable!D1399=\"\",\"\",TEXT(OrigTable!D1399,\"00\"))","v":""},{"$f":"IF(OrigTable!D1399=\"\",\"\",ScriptText!$E$1&CHAR(10)&ScriptText!$C$1)","v":""},{"$f":"IF(OrigTable!E1399=\"\",\"\",ScriptText!$B$1&CHAR(10)&ScriptText!$D$1)","v":""},{"$f":"IF(OrigTable!E1399=\"\",\"\",TEXT(OrigTable!E1399,\"00\"))","v":""},{"$f":"IF(OrigTable!E1399=\"\",\"\",ScriptText!$E$1&CHAR(10)&ScriptText!$C$1)","v":""},{"$f":"IF(OrigTable!F1399=\"\",\"\",ScriptText!$B$1&CHAR(10)&ScriptText!$D$1)","v":""},{"$f":"IF(OrigTable!F1399=\"\",\"\",TEXT(OrigTable!F1399,\"00\"))","v":""},{"$f":"IF(OrigTable!F1399=\"\",\"\",ScriptText!$E$1&CHAR(10)&ScriptText!$C$1)","v":""},{"$f":"IF(OrigTable!G1399=\"\",\"\",ScriptText!$B$1&CHAR(10)&ScriptText!$D$1)","v":""},{"$f":"IF(OrigTable!G1399=\"\",\"\",TEXT(OrigTable!G1399,\"00\"))","v":""},{"$f":"IF(OrigTable!G1399=\"\",\"\",ScriptText!$E$1&CHAR(10)&ScriptText!$C$1)","v":""},0]
["\n\n\n",{"$f":"IF(OrigTable!A1400=\"\",\"\",ScriptText!$B$1&CHAR(10)&ScriptText!$D$1)","v":""},{"$f":"IF(OrigTable!A1400=\"\",\"\",TEXT(OrigTable!A1400,\"00\"))","v":""},{"$f":"IF(OrigTable!A1400=\"\",\"\",ScriptText!$E$1&CHAR(10)&ScriptText!$C$1)","v":""},{"$f":"IF(OrigTable!B1400=\"\",\"\",ScriptText!$B$1&CHAR(10)&ScriptText!$D$1)","v":""},{"$f":"IF(OrigTable!B1400=\"\",\"\",TEXT(OrigTable!B1400,\"00\"))","v":""},{"$f":"IF(OrigTable!B1400=\"\",\"\",ScriptText!$E$1&CHAR(10)&ScriptText!C1395)","v":""},{"$f":"IF(OrigTable!C1400=\"\",\"\",ScriptText!$B$1&CHAR(10)&ScriptText!$D$1)","v":""},{"$f":"IF(OrigTable!C1400=\"\",\"\",IF(LEN(OrigTable!C1400)>255,LEFT(OrigTable!C1400,250)&\". . .\",OrigTable!C1400))","v":""},{"$f":"IF(OrigTable!C1400=\"\",\"\",ScriptText!$E$1&CHAR(10)&ScriptText!$C$1)","v":""},{"$f":"IF(OrigTable!D1400=\"\",\"\",ScriptText!$B$1&CHAR(10)&ScriptText!$D$1)","v":""},{"$f":"IF(OrigTable!D1400=\"\",\"\",TEXT(OrigTable!D1400,\"00\"))","v":""},{"$f":"IF(OrigTable!D1400=\"\",\"\",ScriptText!$E$1&CHAR(10)&ScriptText!$C$1)","v":""},{"$f":"IF(OrigTable!E1400=\"\",\"\",ScriptText!$B$1&CHAR(10)&ScriptText!$D$1)","v":""},{"$f":"IF(OrigTable!E1400=\"\",\"\",TEXT(OrigTable!E1400,\"00\"))","v":""},{"$f":"IF(OrigTable!E1400=\"\",\"\",ScriptText!$E$1&CHAR(10)&ScriptText!$C$1)","v":""},{"$f":"IF(OrigTable!F1400=\"\",\"\",ScriptText!$B$1&CHAR(10)&ScriptText!$D$1)","v":""},{"$f":"IF(OrigTable!F1400=\"\",\"\",TEXT(OrigTable!F1400,\"00\"))","v":""},{"$f":"IF(OrigTable!F1400=\"\",\"\",ScriptText!$E$1&CHAR(10)&ScriptText!$C$1)","v":""},{"$f":"IF(OrigTable!G1400=\"\",\"\",ScriptText!$B$1&CHAR(10)&ScriptText!$D$1)","v":""},{"$f":"IF(OrigTable!G1400=\"\",\"\",TEXT(OrigTable!G1400,\"00\"))","v":""},{"$f":"IF(OrigTable!G1400=\"\",\"\",ScriptText!$E$1&CHAR(10)&ScriptText!$C$1)","v":""},0]
["\n\n\n",{"$f":"IF(OrigTable!A1401=\"\",\"\",ScriptText!$B$1&CHAR(10)&ScriptText!$D$1)","v":""},{"$f":"IF(OrigTable!A1401=\"\",\"\",TEXT(OrigTable!A1401,\"00\"))","v":""},{"$f":"IF(OrigTable!A1401=\"\",\"\",ScriptText!$E$1&CHAR(10)&ScriptText!$C$1)","v":""},{"$f":"IF(OrigTable!B1401=\"\",\"\",ScriptText!$B$1&CHAR(10)&ScriptText!$D$1)","v":""},{"$f":"IF(OrigTable!B1401=\"\",\"\",TEXT(OrigTable!B1401,\"00\"))","v":""},{"$f":"IF(OrigTable!B1401=\"\",\"\",ScriptText!$E$1&CHAR(10)&ScriptText!C1396)","v":""},{"$f":"IF(OrigTable!C1401=\"\",\"\",ScriptText!$B$1&CHAR(10)&ScriptText!$D$1)","v":""},{"$f":"IF(OrigTable!C1401=\"\",\"\",IF(LEN(OrigTable!C1401)>255,LEFT(OrigTable!C1401,250)&\". . .\",OrigTable!C1401))","v":""},{"$f":"IF(OrigTable!C1401=\"\",\"\",ScriptText!$E$1&CHAR(10)&ScriptText!$C$1)","v":""},{"$f":"IF(OrigTable!D1401=\"\",\"\",ScriptText!$B$1&CHAR(10)&ScriptText!$D$1)","v":""},{"$f":"IF(OrigTable!D1401=\"\",\"\",TEXT(OrigTable!D1401,\"00\"))","v":""},{"$f":"IF(OrigTable!D1401=\"\",\"\",ScriptText!$E$1&CHAR(10)&ScriptText!$C$1)","v":""},{"$f":"IF(OrigTable!E1401=\"\",\"\",ScriptText!$B$1&CHAR(10)&ScriptText!$D$1)","v":""},{"$f":"IF(OrigTable!E1401=\"\",\"\",TEXT(OrigTable!E1401,\"00\"))","v":""},{"$f":"IF(OrigTable!E1401=\"\",\"\",ScriptText!$E$1&CHAR(10)&ScriptText!$C$1)","v":""},{"$f":"IF(OrigTable!F1401=\"\",\"\",ScriptText!$B$1&CHAR(10)&ScriptText!$D$1)","v":""},{"$f":"IF(OrigTable!F1401=\"\",\"\",TEXT(OrigTable!F1401,\"00\"))","v":""},{"$f":"IF(OrigTable!F1401=\"\",\"\",ScriptText!$E$1&CHAR(10)&ScriptText!$C$1)","v":""},{"$f":"IF(OrigTable!G1401=\"\",\"\",ScriptText!$B$1&CHAR(10)&ScriptText!$D$1)","v":""},{"$f":"IF(OrigTable!G1401=\"\",\"\",TEXT(OrigTable!G1401,\"00\"))","v":""},{"$f":"IF(OrigTable!G1401=\"\",\"\",ScriptText!$E$1&CHAR(10)&ScriptText!$C$1)","v":""},0]
["\n\n\n",{"$f":"IF(OrigTable!A1402=\"\",\"\",ScriptText!$B$1&CHAR(10)&ScriptText!$D$1)","v":""},{"$f":"IF(OrigTable!A1402=\"\",\"\",TEXT(OrigTable!A1402,\"00\"))","v":""},{"$f":"IF(OrigTable!A1402=\"\",\"\",ScriptText!$E$1&CHAR(10)&ScriptText!$C$1)","v":""},{"$f":"IF(OrigTable!B1402=\"\",\"\",ScriptText!$B$1&CHAR(10)&ScriptText!$D$1)","v":""},{"$f":"IF(OrigTable!B1402=\"\",\"\",TEXT(OrigTable!B1402,\"00\"))","v":""},{"$f":"IF(OrigTable!B1402=\"\",\"\",ScriptText!$E$1&CHAR(10)&ScriptText!C1397)","v":""},{"$f":"IF(OrigTable!C1402=\"\",\"\",ScriptText!$B$1&CHAR(10)&ScriptText!$D$1)","v":""},{"$f":"IF(OrigTable!C1402=\"\",\"\",IF(LEN(OrigTable!C1402)>255,LEFT(OrigTable!C1402,250)&\". . .\",OrigTable!C1402))","v":""},{"$f":"IF(OrigTable!C1402=\"\",\"\",ScriptText!$E$1&CHAR(10)&ScriptText!$C$1)","v":""},{"$f":"IF(OrigTable!D1402=\"\",\"\",ScriptText!$B$1&CHAR(10)&ScriptText!$D$1)","v":""},{"$f":"IF(OrigTable!D1402=\"\",\"\",TEXT(OrigTable!D1402,\"00\"))","v":""},{"$f":"IF(OrigTable!D1402=\"\",\"\",ScriptText!$E$1&CHAR(10)&ScriptText!$C$1)","v":""},{"$f":"IF(OrigTable!E1402=\"\",\"\",ScriptText!$B$1&CHAR(10)&ScriptText!$D$1)","v":""},{"$f":"IF(OrigTable!E1402=\"\",\"\",TEXT(OrigTable!E1402,\"00\"))","v":""},{"$f":"IF(OrigTable!E1402=\"\",\"\",ScriptText!$E$1&CHAR(10)&ScriptText!$C$1)","v":""},{"$f":"IF(OrigTable!F1402=\"\",\"\",ScriptText!$B$1&CHAR(10)&ScriptText!$D$1)","v":""},{"$f":"IF(OrigTable!F1402=\"\",\"\",TEXT(OrigTable!F1402,\"00\"))","v":""},{"$f":"IF(OrigTable!F1402=\"\",\"\",ScriptText!$E$1&CHAR(10)&ScriptText!$C$1)","v":""},{"$f":"IF(OrigTable!G1402=\"\",\"\",ScriptText!$B$1&CHAR(10)&ScriptText!$D$1)","v":""},{"$f":"IF(OrigTable!G1402=\"\",\"\",TEXT(OrigTable!G1402,\"00\"))","v":""},{"$f":"IF(OrigTable!G1402=\"\",\"\",ScriptText!$E$1&CHAR(10)&ScriptText!$C$1)","v":""},0]
["\n\n\n",{"$f":"IF(OrigTable!A1403=\"\",\"\",ScriptText!$B$1&CHAR(10)&ScriptText!$D$1)","v":""},{"$f":"IF(OrigTable!A1403=\"\",\"\",TEXT(OrigTable!A1403,\"00\"))","v":""},{"$f":"IF(OrigTable!A1403=\"\",\"\",ScriptText!$E$1&CHAR(10)&ScriptText!$C$1)","v":""},{"$f":"IF(OrigTable!B1403=\"\",\"\",ScriptText!$B$1&CHAR(10)&ScriptText!$D$1)","v":""},{"$f":"IF(OrigTable!B1403=\"\",\"\",TEXT(OrigTable!B1403,\"00\"))","v":""},{"$f":"IF(OrigTable!B1403=\"\",\"\",ScriptText!$E$1&CHAR(10)&ScriptText!C1398)","v":""},{"$f":"IF(OrigTable!C1403=\"\",\"\",ScriptText!$B$1&CHAR(10)&ScriptText!$D$1)","v":""},{"$f":"IF(OrigTable!C1403=\"\",\"\",IF(LEN(OrigTable!C1403)>255,LEFT(OrigTable!C1403,250)&\". . .\",OrigTable!C1403))","v":""},{"$f":"IF(OrigTable!C1403=\"\",\"\",ScriptText!$E$1&CHAR(10)&ScriptText!$C$1)","v":""},{"$f":"IF(OrigTable!D1403=\"\",\"\",ScriptText!$B$1&CHAR(10)&ScriptText!$D$1)","v":""},{"$f":"IF(OrigTable!D1403=\"\",\"\",TEXT(OrigTable!D1403,\"00\"))","v":""},{"$f":"IF(OrigTable!D1403=\"\",\"\",ScriptText!$E$1&CHAR(10)&ScriptText!$C$1)","v":""},{"$f":"IF(OrigTable!E1403=\"\",\"\",ScriptText!$B$1&CHAR(10)&ScriptText!$D$1)","v":""},{"$f":"IF(OrigTable!E1403=\"\",\"\",TEXT(OrigTable!E1403,\"00\"))","v":""},{"$f":"IF(OrigTable!E1403=\"\",\"\",ScriptText!$E$1&CHAR(10)&ScriptText!$C$1)","v":""},{"$f":"IF(OrigTable!F1403=\"\",\"\",ScriptText!$B$1&CHAR(10)&ScriptText!$D$1)","v":""},{"$f":"IF(OrigTable!F1403=\"\",\"\",TEXT(OrigTable!F1403,\"00\"))","v":""},{"$f":"IF(OrigTable!F1403=\"\",\"\",ScriptText!$E$1&CHAR(10)&ScriptText!$C$1)","v":""},{"$f":"IF(OrigTable!G1403=\"\",\"\",ScriptText!$B$1&CHAR(10)&ScriptText!$D$1)","v":""},{"$f":"IF(OrigTable!G1403=\"\",\"\",TEXT(OrigTable!G1403,\"00\"))","v":""},{"$f":"IF(OrigTable!G1403=\"\",\"\",ScriptText!$E$1&CHAR(10)&ScriptText!$C$1)","v":""},0]
["\n\n\n",{"$f":"IF(OrigTable!A1404=\"\",\"\",ScriptText!$B$1&CHAR(10)&ScriptText!$D$1)","v":""},{"$f":"IF(OrigTable!A1404=\"\",\"\",TEXT(OrigTable!A1404,\"00\"))","v":""},{"$f":"IF(OrigTable!A1404=\"\",\"\",ScriptText!$E$1&CHAR(10)&ScriptText!$C$1)","v":""},{"$f":"IF(OrigTable!B1404=\"\",\"\",ScriptText!$B$1&CHAR(10)&ScriptText!$D$1)","v":""},{"$f":"IF(OrigTable!B1404=\"\",\"\",TEXT(OrigTable!B1404,\"00\"))","v":""},{"$f":"IF(OrigTable!B1404=\"\",\"\",ScriptText!$E$1&CHAR(10)&ScriptText!C1399)","v":""},{"$f":"IF(OrigTable!C1404=\"\",\"\",ScriptText!$B$1&CHAR(10)&ScriptText!$D$1)","v":""},{"$f":"IF(OrigTable!C1404=\"\",\"\",IF(LEN(OrigTable!C1404)>255,LEFT(OrigTable!C1404,250)&\". . .\",OrigTable!C1404))","v":""},{"$f":"IF(OrigTable!C1404=\"\",\"\",ScriptText!$E$1&CHAR(10)&ScriptText!$C$1)","v":""},{"$f":"IF(OrigTable!D1404=\"\",\"\",ScriptText!$B$1&CHAR(10)&ScriptText!$D$1)","v":""},{"$f":"IF(OrigTable!D1404=\"\",\"\",TEXT(OrigTable!D1404,\"00\"))","v":""},{"$f":"IF(OrigTable!D1404=\"\",\"\",ScriptText!$E$1&CHAR(10)&ScriptText!$C$1)","v":""},{"$f":"IF(OrigTable!E1404=\"\",\"\",ScriptText!$B$1&CHAR(10)&ScriptText!$D$1)","v":""},{"$f":"IF(OrigTable!E1404=\"\",\"\",TEXT(OrigTable!E1404,\"00\"))","v":""},{"$f":"IF(OrigTable!E1404=\"\",\"\",ScriptText!$E$1&CHAR(10)&ScriptText!$C$1)","v":""},{"$f":"IF(OrigTable!F1404=\"\",\"\",ScriptText!$B$1&CHAR(10)&ScriptText!$D$1)","v":""},{"$f":"IF(OrigTable!F1404=\"\",\"\",TEXT(OrigTable!F1404,\"00\"))","v":""},{"$f":"IF(OrigTable!F1404=\"\",\"\",ScriptText!$E$1&CHAR(10)&ScriptText!$C$1)","v":""},{"$f":"IF(OrigTable!G1404=\"\",\"\",ScriptText!$B$1&CHAR(10)&ScriptText!$D$1)","v":""},{"$f":"IF(OrigTable!G1404=\"\",\"\",TEXT(OrigTable!G1404,\"00\"))","v":""},{"$f":"IF(OrigTable!G1404=\"\",\"\",ScriptText!$E$1&CHAR(10)&ScriptText!$C$1)","v":""},0]
["\n\n\n",{"$f":"IF(OrigTable!A1405=\"\",\"\",ScriptText!$B$1&CHAR(10)&ScriptText!$D$1)","v":""},{"$f":"IF(OrigTable!A1405=\"\",\"\",TEXT(OrigTable!A1405,\"00\"))","v":""},{"$f":"IF(OrigTable!A1405=\"\",\"\",ScriptText!$E$1&CHAR(10)&ScriptText!$C$1)","v":""},{"$f":"IF(OrigTable!B1405=\"\",\"\",ScriptText!$B$1&CHAR(10)&ScriptText!$D$1)","v":""},{"$f":"IF(OrigTable!B1405=\"\",\"\",TEXT(OrigTable!B1405,\"00\"))","v":""},{"$f":"IF(OrigTable!B1405=\"\",\"\",ScriptText!$E$1&CHAR(10)&ScriptText!C1400)","v":""},{"$f":"IF(OrigTable!C1405=\"\",\"\",ScriptText!$B$1&CHAR(10)&ScriptText!$D$1)","v":""},{"$f":"IF(OrigTable!C1405=\"\",\"\",IF(LEN(OrigTable!C1405)>255,LEFT(OrigTable!C1405,250)&\". . .\",OrigTable!C1405))","v":""},{"$f":"IF(OrigTable!C1405=\"\",\"\",ScriptText!$E$1&CHAR(10)&ScriptText!$C$1)","v":""},{"$f":"IF(OrigTable!D1405=\"\",\"\",ScriptText!$B$1&CHAR(10)&ScriptText!$D$1)","v":""},{"$f":"IF(OrigTable!D1405=\"\",\"\",TEXT(OrigTable!D1405,\"00\"))","v":""},{"$f":"IF(OrigTable!D1405=\"\",\"\",ScriptText!$E$1&CHAR(10)&ScriptText!$C$1)","v":""},{"$f":"IF(OrigTable!E1405=\"\",\"\",ScriptText!$B$1&CHAR(10)&ScriptText!$D$1)","v":""},{"$f":"IF(OrigTable!E1405=\"\",\"\",TEXT(OrigTable!E1405,\"00\"))","v":""},{"$f":"IF(OrigTable!E1405=\"\",\"\",ScriptText!$E$1&CHAR(10)&ScriptText!$C$1)","v":""},{"$f":"IF(OrigTable!F1405=\"\",\"\",ScriptText!$B$1&CHAR(10)&ScriptText!$D$1)","v":""},{"$f":"IF(OrigTable!F1405=\"\",\"\",TEXT(OrigTable!F1405,\"00\"))","v":""},{"$f":"IF(OrigTable!F1405=\"\",\"\",ScriptText!$E$1&CHAR(10)&ScriptText!$C$1)","v":""},{"$f":"IF(OrigTable!G1405=\"\",\"\",ScriptText!$B$1&CHAR(10)&ScriptText!$D$1)","v":""},{"$f":"IF(OrigTable!G1405=\"\",\"\",TEXT(OrigTable!G1405,\"00\"))","v":""},{"$f":"IF(OrigTable!G1405=\"\",\"\",ScriptText!$E$1&CHAR(10)&ScriptText!$C$1)","v":""},0]
["\n\n\n",{"$f":"IF(OrigTable!A1406=\"\",\"\",ScriptText!$B$1&CHAR(10)&ScriptText!$D$1)","v":""},{"$f":"IF(OrigTable!A1406=\"\",\"\",TEXT(OrigTable!A1406,\"00\"))","v":""},{"$f":"IF(OrigTable!A1406=\"\",\"\",ScriptText!$E$1&CHAR(10)&ScriptText!$C$1)","v":""},{"$f":"IF(OrigTable!B1406=\"\",\"\",ScriptText!$B$1&CHAR(10)&ScriptText!$D$1)","v":""},{"$f":"IF(OrigTable!B1406=\"\",\"\",TEXT(OrigTable!B1406,\"00\"))","v":""},{"$f":"IF(OrigTable!B1406=\"\",\"\",ScriptText!$E$1&CHAR(10)&ScriptText!C1401)","v":""},{"$f":"IF(OrigTable!C1406=\"\",\"\",ScriptText!$B$1&CHAR(10)&ScriptText!$D$1)","v":""},{"$f":"IF(OrigTable!C1406=\"\",\"\",IF(LEN(OrigTable!C1406)>255,LEFT(OrigTable!C1406,250)&\". . .\",OrigTable!C1406))","v":""},{"$f":"IF(OrigTable!C1406=\"\",\"\",ScriptText!$E$1&CHAR(10)&ScriptText!$C$1)","v":""},{"$f":"IF(OrigTable!D1406=\"\",\"\",ScriptText!$B$1&CHAR(10)&ScriptText!$D$1)","v":""},{"$f":"IF(OrigTable!D1406=\"\",\"\",TEXT(OrigTable!D1406,\"00\"))","v":""},{"$f":"IF(OrigTable!D1406=\"\",\"\",ScriptText!$E$1&CHAR(10)&ScriptText!$C$1)","v":""},{"$f":"IF(OrigTable!E1406=\"\",\"\",ScriptText!$B$1&CHAR(10)&ScriptText!$D$1)","v":""},{"$f":"IF(OrigTable!E1406=\"\",\"\",TEXT(OrigTable!E1406,\"00\"))","v":""},{"$f":"IF(OrigTable!E1406=\"\",\"\",ScriptText!$E$1&CHAR(10)&ScriptText!$C$1)","v":""},{"$f":"IF(OrigTable!F1406=\"\",\"\",ScriptText!$B$1&CHAR(10)&ScriptText!$D$1)","v":""},{"$f":"IF(OrigTable!F1406=\"\",\"\",TEXT(OrigTable!F1406,\"00\"))","v":""},{"$f":"IF(OrigTable!F1406=\"\",\"\",ScriptText!$E$1&CHAR(10)&ScriptText!$C$1)","v":""},{"$f":"IF(OrigTable!G1406=\"\",\"\",ScriptText!$B$1&CHAR(10)&ScriptText!$D$1)","v":""},{"$f":"IF(OrigTable!G1406=\"\",\"\",TEXT(OrigTable!G1406,\"00\"))","v":""},{"$f":"IF(OrigTable!G1406=\"\",\"\",ScriptText!$E$1&CHAR(10)&ScriptText!$C$1)","v":""},0]
["\n\n\n",{"$f":"IF(OrigTable!A1407=\"\",\"\",ScriptText!$B$1&CHAR(10)&ScriptText!$D$1)","v":""},{"$f":"IF(OrigTable!A1407=\"\",\"\",TEXT(OrigTable!A1407,\"00\"))","v":""},{"$f":"IF(OrigTable!A1407=\"\",\"\",ScriptText!$E$1&CHAR(10)&ScriptText!$C$1)","v":""},{"$f":"IF(OrigTable!B1407=\"\",\"\",ScriptText!$B$1&CHAR(10)&ScriptText!$D$1)","v":""},{"$f":"IF(OrigTable!B1407=\"\",\"\",TEXT(OrigTable!B1407,\"00\"))","v":""},{"$f":"IF(OrigTable!B1407=\"\",\"\",ScriptText!$E$1&CHAR(10)&ScriptText!C1402)","v":""},{"$f":"IF(OrigTable!C1407=\"\",\"\",ScriptText!$B$1&CHAR(10)&ScriptText!$D$1)","v":""},{"$f":"IF(OrigTable!C1407=\"\",\"\",IF(LEN(OrigTable!C1407)>255,LEFT(OrigTable!C1407,250)&\". . .\",OrigTable!C1407))","v":""},{"$f":"IF(OrigTable!C1407=\"\",\"\",ScriptText!$E$1&CHAR(10)&ScriptText!$C$1)","v":""},{"$f":"IF(OrigTable!D1407=\"\",\"\",ScriptText!$B$1&CHAR(10)&ScriptText!$D$1)","v":""},{"$f":"IF(OrigTable!D1407=\"\",\"\",TEXT(OrigTable!D1407,\"00\"))","v":""},{"$f":"IF(OrigTable!D1407=\"\",\"\",ScriptText!$E$1&CHAR(10)&ScriptText!$C$1)","v":""},{"$f":"IF(OrigTable!E1407=\"\",\"\",ScriptText!$B$1&CHAR(10)&ScriptText!$D$1)","v":""},{"$f":"IF(OrigTable!E1407=\"\",\"\",TEXT(OrigTable!E1407,\"00\"))","v":""},{"$f":"IF(OrigTable!E1407=\"\",\"\",ScriptText!$E$1&CHAR(10)&ScriptText!$C$1)","v":""},{"$f":"IF(OrigTable!F1407=\"\",\"\",ScriptText!$B$1&CHAR(10)&ScriptText!$D$1)","v":""},{"$f":"IF(OrigTable!F1407=\"\",\"\",TEXT(OrigTable!F1407,\"00\"))","v":""},{"$f":"IF(OrigTable!F1407=\"\",\"\",ScriptText!$E$1&CHAR(10)&ScriptText!$C$1)","v":""},{"$f":"IF(OrigTable!G1407=\"\",\"\",ScriptText!$B$1&CHAR(10)&ScriptText!$D$1)","v":""},{"$f":"IF(OrigTable!G1407=\"\",\"\",TEXT(OrigTable!G1407,\"00\"))","v":""},{"$f":"IF(OrigTable!G1407=\"\",\"\",ScriptText!$E$1&CHAR(10)&ScriptText!$C$1)","v":""},0]
["\n\n\n",{"$f":"IF(OrigTable!A1408=\"\",\"\",ScriptText!$B$1&CHAR(10)&ScriptText!$D$1)","v":""},{"$f":"IF(OrigTable!A1408=\"\",\"\",TEXT(OrigTable!A1408,\"00\"))","v":""},{"$f":"IF(OrigTable!A1408=\"\",\"\",ScriptText!$E$1&CHAR(10)&ScriptText!$C$1)","v":""},{"$f":"IF(OrigTable!B1408=\"\",\"\",ScriptText!$B$1&CHAR(10)&ScriptText!$D$1)","v":""},{"$f":"IF(OrigTable!B1408=\"\",\"\",TEXT(OrigTable!B1408,\"00\"))","v":""},{"$f":"IF(OrigTable!B1408=\"\",\"\",ScriptText!$E$1&CHAR(10)&ScriptText!C1403)","v":""},{"$f":"IF(OrigTable!C1408=\"\",\"\",ScriptText!$B$1&CHAR(10)&ScriptText!$D$1)","v":""},{"$f":"IF(OrigTable!C1408=\"\",\"\",IF(LEN(OrigTable!C1408)>255,LEFT(OrigTable!C1408,250)&\". . .\",OrigTable!C1408))","v":""},{"$f":"IF(OrigTable!C1408=\"\",\"\",ScriptText!$E$1&CHAR(10)&ScriptText!$C$1)","v":""},{"$f":"IF(OrigTable!D1408=\"\",\"\",ScriptText!$B$1&CHAR(10)&ScriptText!$D$1)","v":""},{"$f":"IF(OrigTable!D1408=\"\",\"\",TEXT(OrigTable!D1408,\"00\"))","v":""},{"$f":"IF(OrigTable!D1408=\"\",\"\",ScriptText!$E$1&CHAR(10)&ScriptText!$C$1)","v":""},{"$f":"IF(OrigTable!E1408=\"\",\"\",ScriptText!$B$1&CHAR(10)&ScriptText!$D$1)","v":""},{"$f":"IF(OrigTable!E1408=\"\",\"\",TEXT(OrigTable!E1408,\"00\"))","v":""},{"$f":"IF(OrigTable!E1408=\"\",\"\",ScriptText!$E$1&CHAR(10)&ScriptText!$C$1)","v":""},{"$f":"IF(OrigTable!F1408=\"\",\"\",ScriptText!$B$1&CHAR(10)&ScriptText!$D$1)","v":""},{"$f":"IF(OrigTable!F1408=\"\",\"\",TEXT(OrigTable!F1408,\"00\"))","v":""},{"$f":"IF(OrigTable!F1408=\"\",\"\",ScriptText!$E$1&CHAR(10)&ScriptText!$C$1)","v":""},{"$f":"IF(OrigTable!G1408=\"\",\"\",ScriptText!$B$1&CHAR(10)&ScriptText!$D$1)","v":""},{"$f":"IF(OrigTable!G1408=\"\",\"\",TEXT(OrigTable!G1408,\"00\"))","v":""},{"$f":"IF(OrigTable!G1408=\"\",\"\",ScriptText!$E$1&CHAR(10)&ScriptText!$C$1)","v":""},0]
["\n\n\n",{"$f":"IF(OrigTable!A1409=\"\",\"\",ScriptText!$B$1&CHAR(10)&ScriptText!$D$1)","v":""},{"$f":"IF(OrigTable!A1409=\"\",\"\",TEXT(OrigTable!A1409,\"00\"))","v":""},{"$f":"IF(OrigTable!A1409=\"\",\"\",ScriptText!$E$1&CHAR(10)&ScriptText!$C$1)","v":""},{"$f":"IF(OrigTable!B1409=\"\",\"\",ScriptText!$B$1&CHAR(10)&ScriptText!$D$1)","v":""},{"$f":"IF(OrigTable!B1409=\"\",\"\",TEXT(OrigTable!B1409,\"00\"))","v":""},{"$f":"IF(OrigTable!B1409=\"\",\"\",ScriptText!$E$1&CHAR(10)&ScriptText!C1404)","v":""},{"$f":"IF(OrigTable!C1409=\"\",\"\",ScriptText!$B$1&CHAR(10)&ScriptText!$D$1)","v":""},{"$f":"IF(OrigTable!C1409=\"\",\"\",IF(LEN(OrigTable!C1409)>255,LEFT(OrigTable!C1409,250)&\". . .\",OrigTable!C1409))","v":""},{"$f":"IF(OrigTable!C1409=\"\",\"\",ScriptText!$E$1&CHAR(10)&ScriptText!$C$1)","v":""},{"$f":"IF(OrigTable!D1409=\"\",\"\",ScriptText!$B$1&CHAR(10)&ScriptText!$D$1)","v":""},{"$f":"IF(OrigTable!D1409=\"\",\"\",TEXT(OrigTable!D1409,\"00\"))","v":""},{"$f":"IF(OrigTable!D1409=\"\",\"\",ScriptText!$E$1&CHAR(10)&ScriptText!$C$1)","v":""},{"$f":"IF(OrigTable!E1409=\"\",\"\",ScriptText!$B$1&CHAR(10)&ScriptText!$D$1)","v":""},{"$f":"IF(OrigTable!E1409=\"\",\"\",TEXT(OrigTable!E1409,\"00\"))","v":""},{"$f":"IF(OrigTable!E1409=\"\",\"\",ScriptText!$E$1&CHAR(10)&ScriptText!$C$1)","v":""},{"$f":"IF(OrigTable!F1409=\"\",\"\",ScriptText!$B$1&CHAR(10)&ScriptText!$D$1)","v":""},{"$f":"IF(OrigTable!F1409=\"\",\"\",TEXT(OrigTable!F1409,\"00\"))","v":""},{"$f":"IF(OrigTable!F1409=\"\",\"\",ScriptText!$E$1&CHAR(10)&ScriptText!$C$1)","v":""},{"$f":"IF(OrigTable!G1409=\"\",\"\",ScriptText!$B$1&CHAR(10)&ScriptText!$D$1)","v":""},{"$f":"IF(OrigTable!G1409=\"\",\"\",TEXT(OrigTable!G1409,\"00\"))","v":""},{"$f":"IF(OrigTable!G1409=\"\",\"\",ScriptText!$E$1&CHAR(10)&ScriptText!$C$1)","v":""},0]
["\n\n\n",{"$f":"IF(OrigTable!A1410=\"\",\"\",ScriptText!$B$1&CHAR(10)&ScriptText!$D$1)","v":""},{"$f":"IF(OrigTable!A1410=\"\",\"\",TEXT(OrigTable!A1410,\"00\"))","v":""},{"$f":"IF(OrigTable!A1410=\"\",\"\",ScriptText!$E$1&CHAR(10)&ScriptText!$C$1)","v":""},{"$f":"IF(OrigTable!B1410=\"\",\"\",ScriptText!$B$1&CHAR(10)&ScriptText!$D$1)","v":""},{"$f":"IF(OrigTable!B1410=\"\",\"\",TEXT(OrigTable!B1410,\"00\"))","v":""},{"$f":"IF(OrigTable!B1410=\"\",\"\",ScriptText!$E$1&CHAR(10)&ScriptText!C1405)","v":""},{"$f":"IF(OrigTable!C1410=\"\",\"\",ScriptText!$B$1&CHAR(10)&ScriptText!$D$1)","v":""},{"$f":"IF(OrigTable!C1410=\"\",\"\",IF(LEN(OrigTable!C1410)>255,LEFT(OrigTable!C1410,250)&\". . .\",OrigTable!C1410))","v":""},{"$f":"IF(OrigTable!C1410=\"\",\"\",ScriptText!$E$1&CHAR(10)&ScriptText!$C$1)","v":""},{"$f":"IF(OrigTable!D1410=\"\",\"\",ScriptText!$B$1&CHAR(10)&ScriptText!$D$1)","v":""},{"$f":"IF(OrigTable!D1410=\"\",\"\",TEXT(OrigTable!D1410,\"00\"))","v":""},{"$f":"IF(OrigTable!D1410=\"\",\"\",ScriptText!$E$1&CHAR(10)&ScriptText!$C$1)","v":""},{"$f":"IF(OrigTable!E1410=\"\",\"\",ScriptText!$B$1&CHAR(10)&ScriptText!$D$1)","v":""},{"$f":"IF(OrigTable!E1410=\"\",\"\",TEXT(OrigTable!E1410,\"00\"))","v":""},{"$f":"IF(OrigTable!E1410=\"\",\"\",ScriptText!$E$1&CHAR(10)&ScriptText!$C$1)","v":""},{"$f":"IF(OrigTable!F1410=\"\",\"\",ScriptText!$B$1&CHAR(10)&ScriptText!$D$1)","v":""},{"$f":"IF(OrigTable!F1410=\"\",\"\",TEXT(OrigTable!F1410,\"00\"))","v":""},{"$f":"IF(OrigTable!F1410=\"\",\"\",ScriptText!$E$1&CHAR(10)&ScriptText!$C$1)","v":""},{"$f":"IF(OrigTable!G1410=\"\",\"\",ScriptText!$B$1&CHAR(10)&ScriptText!$D$1)","v":""},{"$f":"IF(OrigTable!G1410=\"\",\"\",TEXT(OrigTable!G1410,\"00\"))","v":""},{"$f":"IF(OrigTable!G1410=\"\",\"\",ScriptText!$E$1&CHAR(10)&ScriptText!$C$1)","v":""},0]
["\n\n\n",{"$f":"IF(OrigTable!A1411=\"\",\"\",ScriptText!$B$1&CHAR(10)&ScriptText!$D$1)","v":""},{"$f":"IF(OrigTable!A1411=\"\",\"\",TEXT(OrigTable!A1411,\"00\"))","v":""},{"$f":"IF(OrigTable!A1411=\"\",\"\",ScriptText!$E$1&CHAR(10)&ScriptText!$C$1)","v":""},{"$f":"IF(OrigTable!B1411=\"\",\"\",ScriptText!$B$1&CHAR(10)&ScriptText!$D$1)","v":""},{"$f":"IF(OrigTable!B1411=\"\",\"\",TEXT(OrigTable!B1411,\"00\"))","v":""},{"$f":"IF(OrigTable!B1411=\"\",\"\",ScriptText!$E$1&CHAR(10)&ScriptText!C1406)","v":""},{"$f":"IF(OrigTable!C1411=\"\",\"\",ScriptText!$B$1&CHAR(10)&ScriptText!$D$1)","v":""},{"$f":"IF(OrigTable!C1411=\"\",\"\",IF(LEN(OrigTable!C1411)>255,LEFT(OrigTable!C1411,250)&\". . .\",OrigTable!C1411))","v":""},{"$f":"IF(OrigTable!C1411=\"\",\"\",ScriptText!$E$1&CHAR(10)&ScriptText!$C$1)","v":""},{"$f":"IF(OrigTable!D1411=\"\",\"\",ScriptText!$B$1&CHAR(10)&ScriptText!$D$1)","v":""},{"$f":"IF(OrigTable!D1411=\"\",\"\",TEXT(OrigTable!D1411,\"00\"))","v":""},{"$f":"IF(OrigTable!D1411=\"\",\"\",ScriptText!$E$1&CHAR(10)&ScriptText!$C$1)","v":""},{"$f":"IF(OrigTable!E1411=\"\",\"\",ScriptText!$B$1&CHAR(10)&ScriptText!$D$1)","v":""},{"$f":"IF(OrigTable!E1411=\"\",\"\",TEXT(OrigTable!E1411,\"00\"))","v":""},{"$f":"IF(OrigTable!E1411=\"\",\"\",ScriptText!$E$1&CHAR(10)&ScriptText!$C$1)","v":""},{"$f":"IF(OrigTable!F1411=\"\",\"\",ScriptText!$B$1&CHAR(10)&ScriptText!$D$1)","v":""},{"$f":"IF(OrigTable!F1411=\"\",\"\",TEXT(OrigTable!F1411,\"00\"))","v":""},{"$f":"IF(OrigTable!F1411=\"\",\"\",ScriptText!$E$1&CHAR(10)&ScriptText!$C$1)","v":""},{"$f":"IF(OrigTable!G1411=\"\",\"\",ScriptText!$B$1&CHAR(10)&ScriptText!$D$1)","v":""},{"$f":"IF(OrigTable!G1411=\"\",\"\",TEXT(OrigTable!G1411,\"00\"))","v":""},{"$f":"IF(OrigTable!G1411=\"\",\"\",ScriptText!$E$1&CHAR(10)&ScriptText!$C$1)","v":""},0]
["\n\n\n",{"$f":"IF(OrigTable!A1412=\"\",\"\",ScriptText!$B$1&CHAR(10)&ScriptText!$D$1)","v":""},{"$f":"IF(OrigTable!A1412=\"\",\"\",TEXT(OrigTable!A1412,\"00\"))","v":""},{"$f":"IF(OrigTable!A1412=\"\",\"\",ScriptText!$E$1&CHAR(10)&ScriptText!$C$1)","v":""},{"$f":"IF(OrigTable!B1412=\"\",\"\",ScriptText!$B$1&CHAR(10)&ScriptText!$D$1)","v":""},{"$f":"IF(OrigTable!B1412=\"\",\"\",TEXT(OrigTable!B1412,\"00\"))","v":""},{"$f":"IF(OrigTable!B1412=\"\",\"\",ScriptText!$E$1&CHAR(10)&ScriptText!C1407)","v":""},{"$f":"IF(OrigTable!C1412=\"\",\"\",ScriptText!$B$1&CHAR(10)&ScriptText!$D$1)","v":""},{"$f":"IF(OrigTable!C1412=\"\",\"\",IF(LEN(OrigTable!C1412)>255,LEFT(OrigTable!C1412,250)&\". . .\",OrigTable!C1412))","v":""},{"$f":"IF(OrigTable!C1412=\"\",\"\",ScriptText!$E$1&CHAR(10)&ScriptText!$C$1)","v":""},{"$f":"IF(OrigTable!D1412=\"\",\"\",ScriptText!$B$1&CHAR(10)&ScriptText!$D$1)","v":""},{"$f":"IF(OrigTable!D1412=\"\",\"\",TEXT(OrigTable!D1412,\"00\"))","v":""},{"$f":"IF(OrigTable!D1412=\"\",\"\",ScriptText!$E$1&CHAR(10)&ScriptText!$C$1)","v":""},{"$f":"IF(OrigTable!E1412=\"\",\"\",ScriptText!$B$1&CHAR(10)&ScriptText!$D$1)","v":""},{"$f":"IF(OrigTable!E1412=\"\",\"\",TEXT(OrigTable!E1412,\"00\"))","v":""},{"$f":"IF(OrigTable!E1412=\"\",\"\",ScriptText!$E$1&CHAR(10)&ScriptText!$C$1)","v":""},{"$f":"IF(OrigTable!F1412=\"\",\"\",ScriptText!$B$1&CHAR(10)&ScriptText!$D$1)","v":""},{"$f":"IF(OrigTable!F1412=\"\",\"\",TEXT(OrigTable!F1412,\"00\"))","v":""},{"$f":"IF(OrigTable!F1412=\"\",\"\",ScriptText!$E$1&CHAR(10)&ScriptText!$C$1)","v":""},{"$f":"IF(OrigTable!G1412=\"\",\"\",ScriptText!$B$1&CHAR(10)&ScriptText!$D$1)","v":""},{"$f":"IF(OrigTable!G1412=\"\",\"\",TEXT(OrigTable!G1412,\"00\"))","v":""},{"$f":"IF(OrigTable!G1412=\"\",\"\",ScriptText!$E$1&CHAR(10)&ScriptText!$C$1)","v":""},0]
["\n\n\n",{"$f":"IF(OrigTable!A1413=\"\",\"\",ScriptText!$B$1&CHAR(10)&ScriptText!$D$1)","v":""},{"$f":"IF(OrigTable!A1413=\"\",\"\",TEXT(OrigTable!A1413,\"00\"))","v":""},{"$f":"IF(OrigTable!A1413=\"\",\"\",ScriptText!$E$1&CHAR(10)&ScriptText!$C$1)","v":""},{"$f":"IF(OrigTable!B1413=\"\",\"\",ScriptText!$B$1&CHAR(10)&ScriptText!$D$1)","v":""},{"$f":"IF(OrigTable!B1413=\"\",\"\",TEXT(OrigTable!B1413,\"00\"))","v":""},{"$f":"IF(OrigTable!B1413=\"\",\"\",ScriptText!$E$1&CHAR(10)&ScriptText!C1408)","v":""},{"$f":"IF(OrigTable!C1413=\"\",\"\",ScriptText!$B$1&CHAR(10)&ScriptText!$D$1)","v":""},{"$f":"IF(OrigTable!C1413=\"\",\"\",IF(LEN(OrigTable!C1413)>255,LEFT(OrigTable!C1413,250)&\". . .\",OrigTable!C1413))","v":""},{"$f":"IF(OrigTable!C1413=\"\",\"\",ScriptText!$E$1&CHAR(10)&ScriptText!$C$1)","v":""},{"$f":"IF(OrigTable!D1413=\"\",\"\",ScriptText!$B$1&CHAR(10)&ScriptText!$D$1)","v":""},{"$f":"IF(OrigTable!D1413=\"\",\"\",TEXT(OrigTable!D1413,\"00\"))","v":""},{"$f":"IF(OrigTable!D1413=\"\",\"\",ScriptText!$E$1&CHAR(10)&ScriptText!$C$1)","v":""},{"$f":"IF(OrigTable!E1413=\"\",\"\",ScriptText!$B$1&CHAR(10)&ScriptText!$D$1)","v":""},{"$f":"IF(OrigTable!E1413=\"\",\"\",TEXT(OrigTable!E1413,\"00\"))","v":""},{"$f":"IF(OrigTable!E1413=\"\",\"\",ScriptText!$E$1&CHAR(10)&ScriptText!$C$1)","v":""},{"$f":"IF(OrigTable!F1413=\"\",\"\",ScriptText!$B$1&CHAR(10)&ScriptText!$D$1)","v":""},{"$f":"IF(OrigTable!F1413=\"\",\"\",TEXT(OrigTable!F1413,\"00\"))","v":""},{"$f":"IF(OrigTable!F1413=\"\",\"\",ScriptText!$E$1&CHAR(10)&ScriptText!$C$1)","v":""},{"$f":"IF(OrigTable!G1413=\"\",\"\",ScriptText!$B$1&CHAR(10)&ScriptText!$D$1)","v":""},{"$f":"IF(OrigTable!G1413=\"\",\"\",TEXT(OrigTable!G1413,\"00\"))","v":""},{"$f":"IF(OrigTable!G1413=\"\",\"\",ScriptText!$E$1&CHAR(10)&ScriptText!$C$1)","v":""},0]
["\n\n\n",{"$f":"IF(OrigTable!A1414=\"\",\"\",ScriptText!$B$1&CHAR(10)&ScriptText!$D$1)","v":""},{"$f":"IF(OrigTable!A1414=\"\",\"\",TEXT(OrigTable!A1414,\"00\"))","v":""},{"$f":"IF(OrigTable!A1414=\"\",\"\",ScriptText!$E$1&CHAR(10)&ScriptText!$C$1)","v":""},{"$f":"IF(OrigTable!B1414=\"\",\"\",ScriptText!$B$1&CHAR(10)&ScriptText!$D$1)","v":""},{"$f":"IF(OrigTable!B1414=\"\",\"\",TEXT(OrigTable!B1414,\"00\"))","v":""},{"$f":"IF(OrigTable!B1414=\"\",\"\",ScriptText!$E$1&CHAR(10)&ScriptText!C1409)","v":""},{"$f":"IF(OrigTable!C1414=\"\",\"\",ScriptText!$B$1&CHAR(10)&ScriptText!$D$1)","v":""},{"$f":"IF(OrigTable!C1414=\"\",\"\",IF(LEN(OrigTable!C1414)>255,LEFT(OrigTable!C1414,250)&\". . .\",OrigTable!C1414))","v":""},{"$f":"IF(OrigTable!C1414=\"\",\"\",ScriptText!$E$1&CHAR(10)&ScriptText!$C$1)","v":""},{"$f":"IF(OrigTable!D1414=\"\",\"\",ScriptText!$B$1&CHAR(10)&ScriptText!$D$1)","v":""},{"$f":"IF(OrigTable!D1414=\"\",\"\",TEXT(OrigTable!D1414,\"00\"))","v":""},{"$f":"IF(OrigTable!D1414=\"\",\"\",ScriptText!$E$1&CHAR(10)&ScriptText!$C$1)","v":""},{"$f":"IF(OrigTable!E1414=\"\",\"\",ScriptText!$B$1&CHAR(10)&ScriptText!$D$1)","v":""},{"$f":"IF(OrigTable!E1414=\"\",\"\",TEXT(OrigTable!E1414,\"00\"))","v":""},{"$f":"IF(OrigTable!E1414=\"\",\"\",ScriptText!$E$1&CHAR(10)&ScriptText!$C$1)","v":""},{"$f":"IF(OrigTable!F1414=\"\",\"\",ScriptText!$B$1&CHAR(10)&ScriptText!$D$1)","v":""},{"$f":"IF(OrigTable!F1414=\"\",\"\",TEXT(OrigTable!F1414,\"00\"))","v":""},{"$f":"IF(OrigTable!F1414=\"\",\"\",ScriptText!$E$1&CHAR(10)&ScriptText!$C$1)","v":""},{"$f":"IF(OrigTable!G1414=\"\",\"\",ScriptText!$B$1&CHAR(10)&ScriptText!$D$1)","v":""},{"$f":"IF(OrigTable!G1414=\"\",\"\",TEXT(OrigTable!G1414,\"00\"))","v":""},{"$f":"IF(OrigTable!G1414=\"\",\"\",ScriptText!$E$1&CHAR(10)&ScriptText!$C$1)","v":""},{"$f":"IF(LEN(A1414)>3,ROW(),0)","v":0}]
["\n\n\n",{"$f":"IF(OrigTable!A1415=\"\",\"\",ScriptText!$B$1&CHAR(10)&ScriptText!$D$1)","v":""},{"$f":"IF(OrigTable!A1415=\"\",\"\",TEXT(OrigTable!A1415,\"00\"))","v":""},{"$f":"IF(OrigTable!A1415=\"\",\"\",ScriptText!$E$1&CHAR(10)&ScriptText!$C$1)","v":""},{"$f":"IF(OrigTable!B1415=\"\",\"\",ScriptText!$B$1&CHAR(10)&ScriptText!$D$1)","v":""},{"$f":"IF(OrigTable!B1415=\"\",\"\",TEXT(OrigTable!B1415,\"00\"))","v":""},{"$f":"IF(OrigTable!B1415=\"\",\"\",ScriptText!$E$1&CHAR(10)&ScriptText!C1410)","v":""},{"$f":"IF(OrigTable!C1415=\"\",\"\",ScriptText!$B$1&CHAR(10)&ScriptText!$D$1)","v":""},{"$f":"IF(OrigTable!C1415=\"\",\"\",IF(LEN(OrigTable!C1415)>255,LEFT(OrigTable!C1415,250)&\". . .\",OrigTable!C1415))","v":""},{"$f":"IF(OrigTable!C1415=\"\",\"\",ScriptText!$E$1&CHAR(10)&ScriptText!$C$1)","v":""},{"$f":"IF(OrigTable!D1415=\"\",\"\",ScriptText!$B$1&CHAR(10)&ScriptText!$D$1)","v":""},{"$f":"IF(OrigTable!D1415=\"\",\"\",TEXT(OrigTable!D1415,\"00\"))","v":""},{"$f":"IF(OrigTable!D1415=\"\",\"\",ScriptText!$E$1&CHAR(10)&ScriptText!$C$1)","v":""},{"$f":"IF(OrigTable!E1415=\"\",\"\",ScriptText!$B$1&CHAR(10)&ScriptText!$D$1)","v":""},{"$f":"IF(OrigTable!E1415=\"\",\"\",TEXT(OrigTable!E1415,\"00\"))","v":""},{"$f":"IF(OrigTable!E1415=\"\",\"\",ScriptText!$E$1&CHAR(10)&ScriptText!$C$1)","v":""},{"$f":"IF(OrigTable!F1415=\"\",\"\",ScriptText!$B$1&CHAR(10)&ScriptText!$D$1)","v":""},{"$f":"IF(OrigTable!F1415=\"\",\"\",TEXT(OrigTable!F1415,\"00\"))","v":""},{"$f":"IF(OrigTable!F1415=\"\",\"\",ScriptText!$E$1&CHAR(10)&ScriptText!$C$1)","v":""},{"$f":"IF(OrigTable!G1415=\"\",\"\",ScriptText!$B$1&CHAR(10)&ScriptText!$D$1)","v":""},{"$f":"IF(OrigTable!G1415=\"\",\"\",TEXT(OrigTable!G1415,\"00\"))","v":""},{"$f":"IF(OrigTable!G1415=\"\",\"\",ScriptText!$E$1&CHAR(10)&ScriptText!$C$1)","v":""},0]
["\n\n\n",{"$f":"IF(OrigTable!A1416=\"\",\"\",ScriptText!$B$1&CHAR(10)&ScriptText!$D$1)","v":""},{"$f":"IF(OrigTable!A1416=\"\",\"\",TEXT(OrigTable!A1416,\"00\"))","v":""},{"$f":"IF(OrigTable!A1416=\"\",\"\",ScriptText!$E$1&CHAR(10)&ScriptText!$C$1)","v":""},{"$f":"IF(OrigTable!B1416=\"\",\"\",ScriptText!$B$1&CHAR(10)&ScriptText!$D$1)","v":""},{"$f":"IF(OrigTable!B1416=\"\",\"\",TEXT(OrigTable!B1416,\"00\"))","v":""},{"$f":"IF(OrigTable!B1416=\"\",\"\",ScriptText!$E$1&CHAR(10)&ScriptText!C1411)","v":""},{"$f":"IF(OrigTable!C1416=\"\",\"\",ScriptText!$B$1&CHAR(10)&ScriptText!$D$1)","v":""},{"$f":"IF(OrigTable!C1416=\"\",\"\",IF(LEN(OrigTable!C1416)>255,LEFT(OrigTable!C1416,250)&\". . .\",OrigTable!C1416))","v":""},{"$f":"IF(OrigTable!C1416=\"\",\"\",ScriptText!$E$1&CHAR(10)&ScriptText!$C$1)","v":""},{"$f":"IF(OrigTable!D1416=\"\",\"\",ScriptText!$B$1&CHAR(10)&ScriptText!$D$1)","v":""},{"$f":"IF(OrigTable!D1416=\"\",\"\",TEXT(OrigTable!D1416,\"00\"))","v":""},{"$f":"IF(OrigTable!D1416=\"\",\"\",ScriptText!$E$1&CHAR(10)&ScriptText!$C$1)","v":""},{"$f":"IF(OrigTable!E1416=\"\",\"\",ScriptText!$B$1&CHAR(10)&ScriptText!$D$1)","v":""},{"$f":"IF(OrigTable!E1416=\"\",\"\",TEXT(OrigTable!E1416,\"00\"))","v":""},{"$f":"IF(OrigTable!E1416=\"\",\"\",ScriptText!$E$1&CHAR(10)&ScriptText!$C$1)","v":""},{"$f":"IF(OrigTable!F1416=\"\",\"\",ScriptText!$B$1&CHAR(10)&ScriptText!$D$1)","v":""},{"$f":"IF(OrigTable!F1416=\"\",\"\",TEXT(OrigTable!F1416,\"00\"))","v":""},{"$f":"IF(OrigTable!F1416=\"\",\"\",ScriptText!$E$1&CHAR(10)&ScriptText!$C$1)","v":""},{"$f":"IF(OrigTable!G1416=\"\",\"\",ScriptText!$B$1&CHAR(10)&ScriptText!$D$1)","v":""},{"$f":"IF(OrigTable!G1416=\"\",\"\",TEXT(OrigTable!G1416,\"00\"))","v":""},{"$f":"IF(OrigTable!G1416=\"\",\"\",ScriptText!$E$1&CHAR(10)&ScriptText!$C$1)","v":""},0]
[{"$f":"_xlfn.TEXTJOIN(\"\",TRUE,B1417:D1417)&CHAR(10)&_xlfn.TEXTJOIN(\"\",TRUE,E1417:G1417)&CHAR(10)&_xlfn.TEXTJOIN(\"\",TRUE,H1417:J1417)&CHAR(10)&_xlfn.TEXTJOIN(\"\",TRUE,K1417:M1417)&_xlfn.TEXTJOIN(\"\",TRUE,N1417:P1417)&_xlfn.TEXTJOIN(\"\",TRUE,Q1417:S1417)&_xlfn.TEXTJOIN(\"\",TRUE,T1417:V1417)","v":"\n\n\n"},{"$f":"IF(OrigTable!A1417=\"\",\"\",ScriptText!$B$1&CHAR(10)&ScriptText!$D$1)","v":""},{"$f":"IF(OrigTable!A1417=\"\",\"\",TEXT(OrigTable!A1417,\"00\"))","v":""},{"$f":"IF(OrigTable!A1417=\"\",\"\",ScriptText!$E$1&CHAR(10)&ScriptText!$C$1)","v":""},{"$f":"IF(OrigTable!B1417=\"\",\"\",ScriptText!$B$1&CHAR(10)&ScriptText!$D$1)","v":""},{"$f":"IF(OrigTable!B1417=\"\",\"\",TEXT(OrigTable!B1417,\"00\"))","v":""},{"$f":"IF(OrigTable!B1417=\"\",\"\",ScriptText!$E$1&CHAR(10)&ScriptText!C1412)","v":""},{"$f":"IF(OrigTable!C1417=\"\",\"\",ScriptText!$B$1&CHAR(10)&ScriptText!$D$1)","v":""},{"$f":"IF(OrigTable!C1417=\"\",\"\",IF(LEN(OrigTable!C1417)>255,LEFT(OrigTable!C1417,250)&\". . .\",OrigTable!C1417))","v":""},{"$f":"IF(OrigTable!C1417=\"\",\"\",ScriptText!$E$1&CHAR(10)&ScriptText!$C$1)","v":""},{"$f":"IF(OrigTable!D1417=\"\",\"\",ScriptText!$B$1&CHAR(10)&ScriptText!$D$1)","v":""},{"$f":"IF(OrigTable!D1417=\"\",\"\",TEXT(OrigTable!D1417,\"00\"))","v":""},{"$f":"IF(OrigTable!D1417=\"\",\"\",ScriptText!$E$1&CHAR(10)&ScriptText!$C$1)","v":""},{"$f":"IF(OrigTable!E1417=\"\",\"\",ScriptText!$B$1&CHAR(10)&ScriptText!$D$1)","v":""},{"$f":"IF(OrigTable!E1417=\"\",\"\",TEXT(OrigTable!E1417,\"00\"))","v":""},{"$f":"IF(OrigTable!E1417=\"\",\"\",ScriptText!$E$1&CHAR(10)&ScriptText!$C$1)","v":""},{"$f":"IF(OrigTable!F1417=\"\",\"\",ScriptText!$B$1&CHAR(10)&ScriptText!$D$1)","v":""},{"$f":"IF(OrigTable!F1417=\"\",\"\",TEXT(OrigTable!F1417,\"00\"))","v":""},{"$f":"IF(OrigTable!F1417=\"\",\"\",ScriptText!$E$1&CHAR(10)&ScriptText!$C$1)","v":""},{"$f":"IF(OrigTable!G1417=\"\",\"\",ScriptText!$B$1&CHAR(10)&ScriptText!$D$1)","v":""},{"$f":"IF(OrigTable!G1417=\"\",\"\",TEXT(OrigTable!G1417,\"00\"))","v":""},{"$f":"IF(OrigTable!G1417=\"\",\"\",ScriptText!$E$1&CHAR(10)&ScriptText!$C$1)","v":""},0]
["\n\n\n",{"$f":"IF(OrigTable!A1418=\"\",\"\",ScriptText!$B$1&CHAR(10)&ScriptText!$D$1)","v":""},{"$f":"IF(OrigTable!A1418=\"\",\"\",TEXT(OrigTable!A1418,\"00\"))","v":""},{"$f":"IF(OrigTable!A1418=\"\",\"\",ScriptText!$E$1&CHAR(10)&ScriptText!$C$1)","v":""},{"$f":"IF(OrigTable!B1418=\"\",\"\",ScriptText!$B$1&CHAR(10)&ScriptText!$D$1)","v":""},{"$f":"IF(OrigTable!B1418=\"\",\"\",TEXT(OrigTable!B1418,\"00\"))","v":""},{"$f":"IF(OrigTable!B1418=\"\",\"\",ScriptText!$E$1&CHAR(10)&ScriptText!C1413)","v":""},{"$f":"IF(OrigTable!C1418=\"\",\"\",ScriptText!$B$1&CHAR(10)&ScriptText!$D$1)","v":""},{"$f":"IF(OrigTable!C1418=\"\",\"\",IF(LEN(OrigTable!C1418)>255,LEFT(OrigTable!C1418,250)&\". . .\",OrigTable!C1418))","v":""},{"$f":"IF(OrigTable!C1418=\"\",\"\",ScriptText!$E$1&CHAR(10)&ScriptText!$C$1)","v":""},{"$f":"IF(OrigTable!D1418=\"\",\"\",ScriptText!$B$1&CHAR(10)&ScriptText!$D$1)","v":""},{"$f":"IF(OrigTable!D1418=\"\",\"\",TEXT(OrigTable!D1418,\"00\"))","v":""},{"$f":"IF(OrigTable!D1418=\"\",\"\",ScriptText!$E$1&CHAR(10)&ScriptText!$C$1)","v":""},{"$f":"IF(OrigTable!E1418=\"\",\"\",ScriptText!$B$1&CHAR(10)&ScriptText!$D$1)","v":""},{"$f":"IF(OrigTable!E1418=\"\",\"\",TEXT(OrigTable!E1418,\"00\"))","v":""},{"$f":"IF(OrigTable!E1418=\"\",\"\",ScriptText!$E$1&CHAR(10)&ScriptText!$C$1)","v":""},{"$f":"IF(OrigTable!F1418=\"\",\"\",ScriptText!$B$1&CHAR(10)&ScriptText!$D$1)","v":""},{"$f":"IF(OrigTable!F1418=\"\",\"\",TEXT(OrigTable!F1418,\"00\"))","v":""},{"$f":"IF(OrigTable!F1418=\"\",\"\",ScriptText!$E$1&CHAR(10)&ScriptText!$C$1)","v":""},{"$f":"IF(OrigTable!G1418=\"\",\"\",ScriptText!$B$1&CHAR(10)&ScriptText!$D$1)","v":""},{"$f":"IF(OrigTable!G1418=\"\",\"\",TEXT(OrigTable!G1418,\"00\"))","v":""},{"$f":"IF(OrigTable!G1418=\"\",\"\",ScriptText!$E$1&CHAR(10)&ScriptText!$C$1)","v":""},0]
["\n\n\n",{"$f":"IF(OrigTable!A1419=\"\",\"\",ScriptText!$B$1&CHAR(10)&ScriptText!$D$1)","v":""},{"$f":"IF(OrigTable!A1419=\"\",\"\",TEXT(OrigTable!A1419,\"00\"))","v":""},{"$f":"IF(OrigTable!A1419=\"\",\"\",ScriptText!$E$1&CHAR(10)&ScriptText!$C$1)","v":""},{"$f":"IF(OrigTable!B1419=\"\",\"\",ScriptText!$B$1&CHAR(10)&ScriptText!$D$1)","v":""},{"$f":"IF(OrigTable!B1419=\"\",\"\",TEXT(OrigTable!B1419,\"00\"))","v":""},{"$f":"IF(OrigTable!B1419=\"\",\"\",ScriptText!$E$1&CHAR(10)&ScriptText!C1414)","v":""},{"$f":"IF(OrigTable!C1419=\"\",\"\",ScriptText!$B$1&CHAR(10)&ScriptText!$D$1)","v":""},{"$f":"IF(OrigTable!C1419=\"\",\"\",IF(LEN(OrigTable!C1419)>255,LEFT(OrigTable!C1419,250)&\". . .\",OrigTable!C1419))","v":""},{"$f":"IF(OrigTable!C1419=\"\",\"\",ScriptText!$E$1&CHAR(10)&ScriptText!$C$1)","v":""},{"$f":"IF(OrigTable!D1419=\"\",\"\",ScriptText!$B$1&CHAR(10)&ScriptText!$D$1)","v":""},{"$f":"IF(OrigTable!D1419=\"\",\"\",TEXT(OrigTable!D1419,\"00\"))","v":""},{"$f":"IF(OrigTable!D1419=\"\",\"\",ScriptText!$E$1&CHAR(10)&ScriptText!$C$1)","v":""},{"$f":"IF(OrigTable!E1419=\"\",\"\",ScriptText!$B$1&CHAR(10)&ScriptText!$D$1)","v":""},{"$f":"IF(OrigTable!E1419=\"\",\"\",TEXT(OrigTable!E1419,\"00\"))","v":""},{"$f":"IF(OrigTable!E1419=\"\",\"\",ScriptText!$E$1&CHAR(10)&ScriptText!$C$1)","v":""},{"$f":"IF(OrigTable!F1419=\"\",\"\",ScriptText!$B$1&CHAR(10)&ScriptText!$D$1)","v":""},{"$f":"IF(OrigTable!F1419=\"\",\"\",TEXT(OrigTable!F1419,\"00\"))","v":""},{"$f":"IF(OrigTable!F1419=\"\",\"\",ScriptText!$E$1&CHAR(10)&ScriptText!$C$1)","v":""},{"$f":"IF(OrigTable!G1419=\"\",\"\",ScriptText!$B$1&CHAR(10)&ScriptText!$D$1)","v":""},{"$f":"IF(OrigTable!G1419=\"\",\"\",TEXT(OrigTable!G1419,\"00\"))","v":""},{"$f":"IF(OrigTable!G1419=\"\",\"\",ScriptText!$E$1&CHAR(10)&ScriptText!$C$1)","v":""},0]
["\n\n\n",{"$f":"IF(OrigTable!A1420=\"\",\"\",ScriptText!$B$1&CHAR(10)&ScriptText!$D$1)","v":""},{"$f":"IF(OrigTable!A1420=\"\",\"\",TEXT(OrigTable!A1420,\"00\"))","v":""},{"$f":"IF(OrigTable!A1420=\"\",\"\",ScriptText!$E$1&CHAR(10)&ScriptText!$C$1)","v":""},{"$f":"IF(OrigTable!B1420=\"\",\"\",ScriptText!$B$1&CHAR(10)&ScriptText!$D$1)","v":""},{"$f":"IF(OrigTable!B1420=\"\",\"\",TEXT(OrigTable!B1420,\"00\"))","v":""},{"$f":"IF(OrigTable!B1420=\"\",\"\",ScriptText!$E$1&CHAR(10)&ScriptText!C1415)","v":""},{"$f":"IF(OrigTable!C1420=\"\",\"\",ScriptText!$B$1&CHAR(10)&ScriptText!$D$1)","v":""},{"$f":"IF(OrigTable!C1420=\"\",\"\",IF(LEN(OrigTable!C1420)>255,LEFT(OrigTable!C1420,250)&\". . .\",OrigTable!C1420))","v":""},{"$f":"IF(OrigTable!C1420=\"\",\"\",ScriptText!$E$1&CHAR(10)&ScriptText!$C$1)","v":""},{"$f":"IF(OrigTable!D1420=\"\",\"\",ScriptText!$B$1&CHAR(10)&ScriptText!$D$1)","v":""},{"$f":"IF(OrigTable!D1420=\"\",\"\",TEXT(OrigTable!D1420,\"00\"))","v":""},{"$f":"IF(OrigTable!D1420=\"\",\"\",ScriptText!$E$1&CHAR(10)&ScriptText!$C$1)","v":""},{"$f":"IF(OrigTable!E1420=\"\",\"\",ScriptText!$B$1&CHAR(10)&ScriptText!$D$1)","v":""},{"$f":"IF(OrigTable!E1420=\"\",\"\",TEXT(OrigTable!E1420,\"00\"))","v":""},{"$f":"IF(OrigTable!E1420=\"\",\"\",ScriptText!$E$1&CHAR(10)&ScriptText!$C$1)","v":""},{"$f":"IF(OrigTable!F1420=\"\",\"\",ScriptText!$B$1&CHAR(10)&ScriptText!$D$1)","v":""},{"$f":"IF(OrigTable!F1420=\"\",\"\",TEXT(OrigTable!F1420,\"00\"))","v":""},{"$f":"IF(OrigTable!F1420=\"\",\"\",ScriptText!$E$1&CHAR(10)&ScriptText!$C$1)","v":""},{"$f":"IF(OrigTable!G1420=\"\",\"\",ScriptText!$B$1&CHAR(10)&ScriptText!$D$1)","v":""},{"$f":"IF(OrigTable!G1420=\"\",\"\",TEXT(OrigTable!G1420,\"00\"))","v":""},{"$f":"IF(OrigTable!G1420=\"\",\"\",ScriptText!$E$1&CHAR(10)&ScriptText!$C$1)","v":""},0]
["\n\n\n",{"$f":"IF(OrigTable!A1421=\"\",\"\",ScriptText!$B$1&CHAR(10)&ScriptText!$D$1)","v":""},{"$f":"IF(OrigTable!A1421=\"\",\"\",TEXT(OrigTable!A1421,\"00\"))","v":""},{"$f":"IF(OrigTable!A1421=\"\",\"\",ScriptText!$E$1&CHAR(10)&ScriptText!$C$1)","v":""},{"$f":"IF(OrigTable!B1421=\"\",\"\",ScriptText!$B$1&CHAR(10)&ScriptText!$D$1)","v":""},{"$f":"IF(OrigTable!B1421=\"\",\"\",TEXT(OrigTable!B1421,\"00\"))","v":""},{"$f":"IF(OrigTable!B1421=\"\",\"\",ScriptText!$E$1&CHAR(10)&ScriptText!C1416)","v":""},{"$f":"IF(OrigTable!C1421=\"\",\"\",ScriptText!$B$1&CHAR(10)&ScriptText!$D$1)","v":""},{"$f":"IF(OrigTable!C1421=\"\",\"\",IF(LEN(OrigTable!C1421)>255,LEFT(OrigTable!C1421,250)&\". . .\",OrigTable!C1421))","v":""},{"$f":"IF(OrigTable!C1421=\"\",\"\",ScriptText!$E$1&CHAR(10)&ScriptText!$C$1)","v":""},{"$f":"IF(OrigTable!D1421=\"\",\"\",ScriptText!$B$1&CHAR(10)&ScriptText!$D$1)","v":""},{"$f":"IF(OrigTable!D1421=\"\",\"\",TEXT(OrigTable!D1421,\"00\"))","v":""},{"$f":"IF(OrigTable!D1421=\"\",\"\",ScriptText!$E$1&CHAR(10)&ScriptText!$C$1)","v":""},{"$f":"IF(OrigTable!E1421=\"\",\"\",ScriptText!$B$1&CHAR(10)&ScriptText!$D$1)","v":""},{"$f":"IF(OrigTable!E1421=\"\",\"\",TEXT(OrigTable!E1421,\"00\"))","v":""},{"$f":"IF(OrigTable!E1421=\"\",\"\",ScriptText!$E$1&CHAR(10)&ScriptText!$C$1)","v":""},{"$f":"IF(OrigTable!F1421=\"\",\"\",ScriptText!$B$1&CHAR(10)&ScriptText!$D$1)","v":""},{"$f":"IF(OrigTable!F1421=\"\",\"\",TEXT(OrigTable!F1421,\"00\"))","v":""},{"$f":"IF(OrigTable!F1421=\"\",\"\",ScriptText!$E$1&CHAR(10)&ScriptText!$C$1)","v":""},{"$f":"IF(OrigTable!G1421=\"\",\"\",ScriptText!$B$1&CHAR(10)&ScriptText!$D$1)","v":""},{"$f":"IF(OrigTable!G1421=\"\",\"\",TEXT(OrigTable!G1421,\"00\"))","v":""},{"$f":"IF(OrigTable!G1421=\"\",\"\",ScriptText!$E$1&CHAR(10)&ScriptText!$C$1)","v":""},0]
["\n\n\n",{"$f":"IF(OrigTable!A1422=\"\",\"\",ScriptText!$B$1&CHAR(10)&ScriptText!$D$1)","v":""},{"$f":"IF(OrigTable!A1422=\"\",\"\",TEXT(OrigTable!A1422,\"00\"))","v":""},{"$f":"IF(OrigTable!A1422=\"\",\"\",ScriptText!$E$1&CHAR(10)&ScriptText!$C$1)","v":""},{"$f":"IF(OrigTable!B1422=\"\",\"\",ScriptText!$B$1&CHAR(10)&ScriptText!$D$1)","v":""},{"$f":"IF(OrigTable!B1422=\"\",\"\",TEXT(OrigTable!B1422,\"00\"))","v":""},{"$f":"IF(OrigTable!B1422=\"\",\"\",ScriptText!$E$1&CHAR(10)&ScriptText!C1417)","v":""},{"$f":"IF(OrigTable!C1422=\"\",\"\",ScriptText!$B$1&CHAR(10)&ScriptText!$D$1)","v":""},{"$f":"IF(OrigTable!C1422=\"\",\"\",IF(LEN(OrigTable!C1422)>255,LEFT(OrigTable!C1422,250)&\". . .\",OrigTable!C1422))","v":""},{"$f":"IF(OrigTable!C1422=\"\",\"\",ScriptText!$E$1&CHAR(10)&ScriptText!$C$1)","v":""},{"$f":"IF(OrigTable!D1422=\"\",\"\",ScriptText!$B$1&CHAR(10)&ScriptText!$D$1)","v":""},{"$f":"IF(OrigTable!D1422=\"\",\"\",TEXT(OrigTable!D1422,\"00\"))","v":""},{"$f":"IF(OrigTable!D1422=\"\",\"\",ScriptText!$E$1&CHAR(10)&ScriptText!$C$1)","v":""},{"$f":"IF(OrigTable!E1422=\"\",\"\",ScriptText!$B$1&CHAR(10)&ScriptText!$D$1)","v":""},{"$f":"IF(OrigTable!E1422=\"\",\"\",TEXT(OrigTable!E1422,\"00\"))","v":""},{"$f":"IF(OrigTable!E1422=\"\",\"\",ScriptText!$E$1&CHAR(10)&ScriptText!$C$1)","v":""},{"$f":"IF(OrigTable!F1422=\"\",\"\",ScriptText!$B$1&CHAR(10)&ScriptText!$D$1)","v":""},{"$f":"IF(OrigTable!F1422=\"\",\"\",TEXT(OrigTable!F1422,\"00\"))","v":""},{"$f":"IF(OrigTable!F1422=\"\",\"\",ScriptText!$E$1&CHAR(10)&ScriptText!$C$1)","v":""},{"$f":"IF(OrigTable!G1422=\"\",\"\",ScriptText!$B$1&CHAR(10)&ScriptText!$D$1)","v":""},{"$f":"IF(OrigTable!G1422=\"\",\"\",TEXT(OrigTable!G1422,\"00\"))","v":""},{"$f":"IF(OrigTable!G1422=\"\",\"\",ScriptText!$E$1&CHAR(10)&ScriptText!$C$1)","v":""},0]
["\n\n\n",{"$f":"IF(OrigTable!A1423=\"\",\"\",ScriptText!$B$1&CHAR(10)&ScriptText!$D$1)","v":""},{"$f":"IF(OrigTable!A1423=\"\",\"\",TEXT(OrigTable!A1423,\"00\"))","v":""},{"$f":"IF(OrigTable!A1423=\"\",\"\",ScriptText!$E$1&CHAR(10)&ScriptText!$C$1)","v":""},{"$f":"IF(OrigTable!B1423=\"\",\"\",ScriptText!$B$1&CHAR(10)&ScriptText!$D$1)","v":""},{"$f":"IF(OrigTable!B1423=\"\",\"\",TEXT(OrigTable!B1423,\"00\"))","v":""},{"$f":"IF(OrigTable!B1423=\"\",\"\",ScriptText!$E$1&CHAR(10)&ScriptText!C1418)","v":""},{"$f":"IF(OrigTable!C1423=\"\",\"\",ScriptText!$B$1&CHAR(10)&ScriptText!$D$1)","v":""},{"$f":"IF(OrigTable!C1423=\"\",\"\",IF(LEN(OrigTable!C1423)>255,LEFT(OrigTable!C1423,250)&\". . .\",OrigTable!C1423))","v":""},{"$f":"IF(OrigTable!C1423=\"\",\"\",ScriptText!$E$1&CHAR(10)&ScriptText!$C$1)","v":""},{"$f":"IF(OrigTable!D1423=\"\",\"\",ScriptText!$B$1&CHAR(10)&ScriptText!$D$1)","v":""},{"$f":"IF(OrigTable!D1423=\"\",\"\",TEXT(OrigTable!D1423,\"00\"))","v":""},{"$f":"IF(OrigTable!D1423=\"\",\"\",ScriptText!$E$1&CHAR(10)&ScriptText!$C$1)","v":""},{"$f":"IF(OrigTable!E1423=\"\",\"\",ScriptText!$B$1&CHAR(10)&ScriptText!$D$1)","v":""},{"$f":"IF(OrigTable!E1423=\"\",\"\",TEXT(OrigTable!E1423,\"00\"))","v":""},{"$f":"IF(OrigTable!E1423=\"\",\"\",ScriptText!$E$1&CHAR(10)&ScriptText!$C$1)","v":""},{"$f":"IF(OrigTable!F1423=\"\",\"\",ScriptText!$B$1&CHAR(10)&ScriptText!$D$1)","v":""},{"$f":"IF(OrigTable!F1423=\"\",\"\",TEXT(OrigTable!F1423,\"00\"))","v":""},{"$f":"IF(OrigTable!F1423=\"\",\"\",ScriptText!$E$1&CHAR(10)&ScriptText!$C$1)","v":""},{"$f":"IF(OrigTable!G1423=\"\",\"\",ScriptText!$B$1&CHAR(10)&ScriptText!$D$1)","v":""},{"$f":"IF(OrigTable!G1423=\"\",\"\",TEXT(OrigTable!G1423,\"00\"))","v":""},{"$f":"IF(OrigTable!G1423=\"\",\"\",ScriptText!$E$1&CHAR(10)&ScriptText!$C$1)","v":""},0]
["\n\n\n",{"$f":"IF(OrigTable!A1424=\"\",\"\",ScriptText!$B$1&CHAR(10)&ScriptText!$D$1)","v":""},{"$f":"IF(OrigTable!A1424=\"\",\"\",TEXT(OrigTable!A1424,\"00\"))","v":""},{"$f":"IF(OrigTable!A1424=\"\",\"\",ScriptText!$E$1&CHAR(10)&ScriptText!$C$1)","v":""},{"$f":"IF(OrigTable!B1424=\"\",\"\",ScriptText!$B$1&CHAR(10)&ScriptText!$D$1)","v":""},{"$f":"IF(OrigTable!B1424=\"\",\"\",TEXT(OrigTable!B1424,\"00\"))","v":""},{"$f":"IF(OrigTable!B1424=\"\",\"\",ScriptText!$E$1&CHAR(10)&ScriptText!C1419)","v":""},{"$f":"IF(OrigTable!C1424=\"\",\"\",ScriptText!$B$1&CHAR(10)&ScriptText!$D$1)","v":""},{"$f":"IF(OrigTable!C1424=\"\",\"\",IF(LEN(OrigTable!C1424)>255,LEFT(OrigTable!C1424,250)&\". . .\",OrigTable!C1424))","v":""},{"$f":"IF(OrigTable!C1424=\"\",\"\",ScriptText!$E$1&CHAR(10)&ScriptText!$C$1)","v":""},{"$f":"IF(OrigTable!D1424=\"\",\"\",ScriptText!$B$1&CHAR(10)&ScriptText!$D$1)","v":""},{"$f":"IF(OrigTable!D1424=\"\",\"\",TEXT(OrigTable!D1424,\"00\"))","v":""},{"$f":"IF(OrigTable!D1424=\"\",\"\",ScriptText!$E$1&CHAR(10)&ScriptText!$C$1)","v":""},{"$f":"IF(OrigTable!E1424=\"\",\"\",ScriptText!$B$1&CHAR(10)&ScriptText!$D$1)","v":""},{"$f":"IF(OrigTable!E1424=\"\",\"\",TEXT(OrigTable!E1424,\"00\"))","v":""},{"$f":"IF(OrigTable!E1424=\"\",\"\",ScriptText!$E$1&CHAR(10)&ScriptText!$C$1)","v":""},{"$f":"IF(OrigTable!F1424=\"\",\"\",ScriptText!$B$1&CHAR(10)&ScriptText!$D$1)","v":""},{"$f":"IF(OrigTable!F1424=\"\",\"\",TEXT(OrigTable!F1424,\"00\"))","v":""},{"$f":"IF(OrigTable!F1424=\"\",\"\",ScriptText!$E$1&CHAR(10)&ScriptText!$C$1)","v":""},{"$f":"IF(OrigTable!G1424=\"\",\"\",ScriptText!$B$1&CHAR(10)&ScriptText!$D$1)","v":""},{"$f":"IF(OrigTable!G1424=\"\",\"\",TEXT(OrigTable!G1424,\"00\"))","v":""},{"$f":"IF(OrigTable!G1424=\"\",\"\",ScriptText!$E$1&CHAR(10)&ScriptText!$C$1)","v":""},0]
["\n\n\n",{"$f":"IF(OrigTable!A1425=\"\",\"\",ScriptText!$B$1&CHAR(10)&ScriptText!$D$1)","v":""},{"$f":"IF(OrigTable!A1425=\"\",\"\",TEXT(OrigTable!A1425,\"00\"))","v":""},{"$f":"IF(OrigTable!A1425=\"\",\"\",ScriptText!$E$1&CHAR(10)&ScriptText!$C$1)","v":""},{"$f":"IF(OrigTable!B1425=\"\",\"\",ScriptText!$B$1&CHAR(10)&ScriptText!$D$1)","v":""},{"$f":"IF(OrigTable!B1425=\"\",\"\",TEXT(OrigTable!B1425,\"00\"))","v":""},{"$f":"IF(OrigTable!B1425=\"\",\"\",ScriptText!$E$1&CHAR(10)&ScriptText!C1420)","v":""},{"$f":"IF(OrigTable!C1425=\"\",\"\",ScriptText!$B$1&CHAR(10)&ScriptText!$D$1)","v":""},{"$f":"IF(OrigTable!C1425=\"\",\"\",IF(LEN(OrigTable!C1425)>255,LEFT(OrigTable!C1425,250)&\". . .\",OrigTable!C1425))","v":""},{"$f":"IF(OrigTable!C1425=\"\",\"\",ScriptText!$E$1&CHAR(10)&ScriptText!$C$1)","v":""},{"$f":"IF(OrigTable!D1425=\"\",\"\",ScriptText!$B$1&CHAR(10)&ScriptText!$D$1)","v":""},{"$f":"IF(OrigTable!D1425=\"\",\"\",TEXT(OrigTable!D1425,\"00\"))","v":""},{"$f":"IF(OrigTable!D1425=\"\",\"\",ScriptText!$E$1&CHAR(10)&ScriptText!$C$1)","v":""},{"$f":"IF(OrigTable!E1425=\"\",\"\",ScriptText!$B$1&CHAR(10)&ScriptText!$D$1)","v":""},{"$f":"IF(OrigTable!E1425=\"\",\"\",TEXT(OrigTable!E1425,\"00\"))","v":""},{"$f":"IF(OrigTable!E1425=\"\",\"\",ScriptText!$E$1&CHAR(10)&ScriptText!$C$1)","v":""},{"$f":"IF(OrigTable!F1425=\"\",\"\",ScriptText!$B$1&CHAR(10)&ScriptText!$D$1)","v":""},{"$f":"IF(OrigTable!F1425=\"\",\"\",TEXT(OrigTable!F1425,\"00\"))","v":""},{"$f":"IF(OrigTable!F1425=\"\",\"\",ScriptText!$E$1&CHAR(10)&ScriptText!$C$1)","v":""},{"$f":"IF(OrigTable!G1425=\"\",\"\",ScriptText!$B$1&CHAR(10)&ScriptText!$D$1)","v":""},{"$f":"IF(OrigTable!G1425=\"\",\"\",TEXT(OrigTable!G1425,\"00\"))","v":""},{"$f":"IF(OrigTable!G1425=\"\",\"\",ScriptText!$E$1&CHAR(10)&ScriptText!$C$1)","v":""},0]
["\n\n\n",{"$f":"IF(OrigTable!A1426=\"\",\"\",ScriptText!$B$1&CHAR(10)&ScriptText!$D$1)","v":""},{"$f":"IF(OrigTable!A1426=\"\",\"\",TEXT(OrigTable!A1426,\"00\"))","v":""},{"$f":"IF(OrigTable!A1426=\"\",\"\",ScriptText!$E$1&CHAR(10)&ScriptText!$C$1)","v":""},{"$f":"IF(OrigTable!B1426=\"\",\"\",ScriptText!$B$1&CHAR(10)&ScriptText!$D$1)","v":""},{"$f":"IF(OrigTable!B1426=\"\",\"\",TEXT(OrigTable!B1426,\"00\"))","v":""},{"$f":"IF(OrigTable!B1426=\"\",\"\",ScriptText!$E$1&CHAR(10)&ScriptText!C1421)","v":""},{"$f":"IF(OrigTable!C1426=\"\",\"\",ScriptText!$B$1&CHAR(10)&ScriptText!$D$1)","v":""},{"$f":"IF(OrigTable!C1426=\"\",\"\",IF(LEN(OrigTable!C1426)>255,LEFT(OrigTable!C1426,250)&\". . .\",OrigTable!C1426))","v":""},{"$f":"IF(OrigTable!C1426=\"\",\"\",ScriptText!$E$1&CHAR(10)&ScriptText!$C$1)","v":""},{"$f":"IF(OrigTable!D1426=\"\",\"\",ScriptText!$B$1&CHAR(10)&ScriptText!$D$1)","v":""},{"$f":"IF(OrigTable!D1426=\"\",\"\",TEXT(OrigTable!D1426,\"00\"))","v":""},{"$f":"IF(OrigTable!D1426=\"\",\"\",ScriptText!$E$1&CHAR(10)&ScriptText!$C$1)","v":""},{"$f":"IF(OrigTable!E1426=\"\",\"\",ScriptText!$B$1&CHAR(10)&ScriptText!$D$1)","v":""},{"$f":"IF(OrigTable!E1426=\"\",\"\",TEXT(OrigTable!E1426,\"00\"))","v":""},{"$f":"IF(OrigTable!E1426=\"\",\"\",ScriptText!$E$1&CHAR(10)&ScriptText!$C$1)","v":""},{"$f":"IF(OrigTable!F1426=\"\",\"\",ScriptText!$B$1&CHAR(10)&ScriptText!$D$1)","v":""},{"$f":"IF(OrigTable!F1426=\"\",\"\",TEXT(OrigTable!F1426,\"00\"))","v":""},{"$f":"IF(OrigTable!F1426=\"\",\"\",ScriptText!$E$1&CHAR(10)&ScriptText!$C$1)","v":""},{"$f":"IF(OrigTable!G1426=\"\",\"\",ScriptText!$B$1&CHAR(10)&ScriptText!$D$1)","v":""},{"$f":"IF(OrigTable!G1426=\"\",\"\",TEXT(OrigTable!G1426,\"00\"))","v":""},{"$f":"IF(OrigTable!G1426=\"\",\"\",ScriptText!$E$1&CHAR(10)&ScriptText!$C$1)","v":""},0]
["\n\n\n",{"$f":"IF(OrigTable!A1427=\"\",\"\",ScriptText!$B$1&CHAR(10)&ScriptText!$D$1)","v":""},{"$f":"IF(OrigTable!A1427=\"\",\"\",TEXT(OrigTable!A1427,\"00\"))","v":""},{"$f":"IF(OrigTable!A1427=\"\",\"\",ScriptText!$E$1&CHAR(10)&ScriptText!$C$1)","v":""},{"$f":"IF(OrigTable!B1427=\"\",\"\",ScriptText!$B$1&CHAR(10)&ScriptText!$D$1)","v":""},{"$f":"IF(OrigTable!B1427=\"\",\"\",TEXT(OrigTable!B1427,\"00\"))","v":""},{"$f":"IF(OrigTable!B1427=\"\",\"\",ScriptText!$E$1&CHAR(10)&ScriptText!C1422)","v":""},{"$f":"IF(OrigTable!C1427=\"\",\"\",ScriptText!$B$1&CHAR(10)&ScriptText!$D$1)","v":""},{"$f":"IF(OrigTable!C1427=\"\",\"\",IF(LEN(OrigTable!C1427)>255,LEFT(OrigTable!C1427,250)&\". . .\",OrigTable!C1427))","v":""},{"$f":"IF(OrigTable!C1427=\"\",\"\",ScriptText!$E$1&CHAR(10)&ScriptText!$C$1)","v":""},{"$f":"IF(OrigTable!D1427=\"\",\"\",ScriptText!$B$1&CHAR(10)&ScriptText!$D$1)","v":""},{"$f":"IF(OrigTable!D1427=\"\",\"\",TEXT(OrigTable!D1427,\"00\"))","v":""},{"$f":"IF(OrigTable!D1427=\"\",\"\",ScriptText!$E$1&CHAR(10)&ScriptText!$C$1)","v":""},{"$f":"IF(OrigTable!E1427=\"\",\"\",ScriptText!$B$1&CHAR(10)&ScriptText!$D$1)","v":""},{"$f":"IF(OrigTable!E1427=\"\",\"\",TEXT(OrigTable!E1427,\"00\"))","v":""},{"$f":"IF(OrigTable!E1427=\"\",\"\",ScriptText!$E$1&CHAR(10)&ScriptText!$C$1)","v":""},{"$f":"IF(OrigTable!F1427=\"\",\"\",ScriptText!$B$1&CHAR(10)&ScriptText!$D$1)","v":""},{"$f":"IF(OrigTable!F1427=\"\",\"\",TEXT(OrigTable!F1427,\"00\"))","v":""},{"$f":"IF(OrigTable!F1427=\"\",\"\",ScriptText!$E$1&CHAR(10)&ScriptText!$C$1)","v":""},{"$f":"IF(OrigTable!G1427=\"\",\"\",ScriptText!$B$1&CHAR(10)&ScriptText!$D$1)","v":""},{"$f":"IF(OrigTable!G1427=\"\",\"\",TEXT(OrigTable!G1427,\"00\"))","v":""},{"$f":"IF(OrigTable!G1427=\"\",\"\",ScriptText!$E$1&CHAR(10)&ScriptText!$C$1)","v":""},0]
["\n\n\n",{"$f":"IF(OrigTable!A1428=\"\",\"\",ScriptText!$B$1&CHAR(10)&ScriptText!$D$1)","v":""},{"$f":"IF(OrigTable!A1428=\"\",\"\",TEXT(OrigTable!A1428,\"00\"))","v":""},{"$f":"IF(OrigTable!A1428=\"\",\"\",ScriptText!$E$1&CHAR(10)&ScriptText!$C$1)","v":""},{"$f":"IF(OrigTable!B1428=\"\",\"\",ScriptText!$B$1&CHAR(10)&ScriptText!$D$1)","v":""},{"$f":"IF(OrigTable!B1428=\"\",\"\",TEXT(OrigTable!B1428,\"00\"))","v":""},{"$f":"IF(OrigTable!B1428=\"\",\"\",ScriptText!$E$1&CHAR(10)&ScriptText!C1423)","v":""},{"$f":"IF(OrigTable!C1428=\"\",\"\",ScriptText!$B$1&CHAR(10)&ScriptText!$D$1)","v":""},{"$f":"IF(OrigTable!C1428=\"\",\"\",IF(LEN(OrigTable!C1428)>255,LEFT(OrigTable!C1428,250)&\". . .\",OrigTable!C1428))","v":""},{"$f":"IF(OrigTable!C1428=\"\",\"\",ScriptText!$E$1&CHAR(10)&ScriptText!$C$1)","v":""},{"$f":"IF(OrigTable!D1428=\"\",\"\",ScriptText!$B$1&CHAR(10)&ScriptText!$D$1)","v":""},{"$f":"IF(OrigTable!D1428=\"\",\"\",TEXT(OrigTable!D1428,\"00\"))","v":""},{"$f":"IF(OrigTable!D1428=\"\",\"\",ScriptText!$E$1&CHAR(10)&ScriptText!$C$1)","v":""},{"$f":"IF(OrigTable!E1428=\"\",\"\",ScriptText!$B$1&CHAR(10)&ScriptText!$D$1)","v":""},{"$f":"IF(OrigTable!E1428=\"\",\"\",TEXT(OrigTable!E1428,\"00\"))","v":""},{"$f":"IF(OrigTable!E1428=\"\",\"\",ScriptText!$E$1&CHAR(10)&ScriptText!$C$1)","v":""},{"$f":"IF(OrigTable!F1428=\"\",\"\",ScriptText!$B$1&CHAR(10)&ScriptText!$D$1)","v":""},{"$f":"IF(OrigTable!F1428=\"\",\"\",TEXT(OrigTable!F1428,\"00\"))","v":""},{"$f":"IF(OrigTable!F1428=\"\",\"\",ScriptText!$E$1&CHAR(10)&ScriptText!$C$1)","v":""},{"$f":"IF(OrigTable!G1428=\"\",\"\",ScriptText!$B$1&CHAR(10)&ScriptText!$D$1)","v":""},{"$f":"IF(OrigTable!G1428=\"\",\"\",TEXT(OrigTable!G1428,\"00\"))","v":""},{"$f":"IF(OrigTable!G1428=\"\",\"\",ScriptText!$E$1&CHAR(10)&ScriptText!$C$1)","v":""},0]
["\n\n\n",{"$f":"IF(OrigTable!A1429=\"\",\"\",ScriptText!$B$1&CHAR(10)&ScriptText!$D$1)","v":""},{"$f":"IF(OrigTable!A1429=\"\",\"\",TEXT(OrigTable!A1429,\"00\"))","v":""},{"$f":"IF(OrigTable!A1429=\"\",\"\",ScriptText!$E$1&CHAR(10)&ScriptText!$C$1)","v":""},{"$f":"IF(OrigTable!B1429=\"\",\"\",ScriptText!$B$1&CHAR(10)&ScriptText!$D$1)","v":""},{"$f":"IF(OrigTable!B1429=\"\",\"\",TEXT(OrigTable!B1429,\"00\"))","v":""},{"$f":"IF(OrigTable!B1429=\"\",\"\",ScriptText!$E$1&CHAR(10)&ScriptText!C1424)","v":""},{"$f":"IF(OrigTable!C1429=\"\",\"\",ScriptText!$B$1&CHAR(10)&ScriptText!$D$1)","v":""},{"$f":"IF(OrigTable!C1429=\"\",\"\",IF(LEN(OrigTable!C1429)>255,LEFT(OrigTable!C1429,250)&\". . .\",OrigTable!C1429))","v":""},{"$f":"IF(OrigTable!C1429=\"\",\"\",ScriptText!$E$1&CHAR(10)&ScriptText!$C$1)","v":""},{"$f":"IF(OrigTable!D1429=\"\",\"\",ScriptText!$B$1&CHAR(10)&ScriptText!$D$1)","v":""},{"$f":"IF(OrigTable!D1429=\"\",\"\",TEXT(OrigTable!D1429,\"00\"))","v":""},{"$f":"IF(OrigTable!D1429=\"\",\"\",ScriptText!$E$1&CHAR(10)&ScriptText!$C$1)","v":""},{"$f":"IF(OrigTable!E1429=\"\",\"\",ScriptText!$B$1&CHAR(10)&ScriptText!$D$1)","v":""},{"$f":"IF(OrigTable!E1429=\"\",\"\",TEXT(OrigTable!E1429,\"00\"))","v":""},{"$f":"IF(OrigTable!E1429=\"\",\"\",ScriptText!$E$1&CHAR(10)&ScriptText!$C$1)","v":""},{"$f":"IF(OrigTable!F1429=\"\",\"\",ScriptText!$B$1&CHAR(10)&ScriptText!$D$1)","v":""},{"$f":"IF(OrigTable!F1429=\"\",\"\",TEXT(OrigTable!F1429,\"00\"))","v":""},{"$f":"IF(OrigTable!F1429=\"\",\"\",ScriptText!$E$1&CHAR(10)&ScriptText!$C$1)","v":""},{"$f":"IF(OrigTable!G1429=\"\",\"\",ScriptText!$B$1&CHAR(10)&ScriptText!$D$1)","v":""},{"$f":"IF(OrigTable!G1429=\"\",\"\",TEXT(OrigTable!G1429,\"00\"))","v":""},{"$f":"IF(OrigTable!G1429=\"\",\"\",ScriptText!$E$1&CHAR(10)&ScriptText!$C$1)","v":""},0]
["\n\n\n",{"$f":"IF(OrigTable!A1430=\"\",\"\",ScriptText!$B$1&CHAR(10)&ScriptText!$D$1)","v":""},{"$f":"IF(OrigTable!A1430=\"\",\"\",TEXT(OrigTable!A1430,\"00\"))","v":""},{"$f":"IF(OrigTable!A1430=\"\",\"\",ScriptText!$E$1&CHAR(10)&ScriptText!$C$1)","v":""},{"$f":"IF(OrigTable!B1430=\"\",\"\",ScriptText!$B$1&CHAR(10)&ScriptText!$D$1)","v":""},{"$f":"IF(OrigTable!B1430=\"\",\"\",TEXT(OrigTable!B1430,\"00\"))","v":""},{"$f":"IF(OrigTable!B1430=\"\",\"\",ScriptText!$E$1&CHAR(10)&ScriptText!C1425)","v":""},{"$f":"IF(OrigTable!C1430=\"\",\"\",ScriptText!$B$1&CHAR(10)&ScriptText!$D$1)","v":""},{"$f":"IF(OrigTable!C1430=\"\",\"\",IF(LEN(OrigTable!C1430)>255,LEFT(OrigTable!C1430,250)&\". . .\",OrigTable!C1430))","v":""},{"$f":"IF(OrigTable!C1430=\"\",\"\",ScriptText!$E$1&CHAR(10)&ScriptText!$C$1)","v":""},{"$f":"IF(OrigTable!D1430=\"\",\"\",ScriptText!$B$1&CHAR(10)&ScriptText!$D$1)","v":""},{"$f":"IF(OrigTable!D1430=\"\",\"\",TEXT(OrigTable!D1430,\"00\"))","v":""},{"$f":"IF(OrigTable!D1430=\"\",\"\",ScriptText!$E$1&CHAR(10)&ScriptText!$C$1)","v":""},{"$f":"IF(OrigTable!E1430=\"\",\"\",ScriptText!$B$1&CHAR(10)&ScriptText!$D$1)","v":""},{"$f":"IF(OrigTable!E1430=\"\",\"\",TEXT(OrigTable!E1430,\"00\"))","v":""},{"$f":"IF(OrigTable!E1430=\"\",\"\",ScriptText!$E$1&CHAR(10)&ScriptText!$C$1)","v":""},{"$f":"IF(OrigTable!F1430=\"\",\"\",ScriptText!$B$1&CHAR(10)&ScriptText!$D$1)","v":""},{"$f":"IF(OrigTable!F1430=\"\",\"\",TEXT(OrigTable!F1430,\"00\"))","v":""},{"$f":"IF(OrigTable!F1430=\"\",\"\",ScriptText!$E$1&CHAR(10)&ScriptText!$C$1)","v":""},{"$f":"IF(OrigTable!G1430=\"\",\"\",ScriptText!$B$1&CHAR(10)&ScriptText!$D$1)","v":""},{"$f":"IF(OrigTable!G1430=\"\",\"\",TEXT(OrigTable!G1430,\"00\"))","v":""},{"$f":"IF(OrigTable!G1430=\"\",\"\",ScriptText!$E$1&CHAR(10)&ScriptText!$C$1)","v":""},0]
["\n\n\n",{"$f":"IF(OrigTable!A1431=\"\",\"\",ScriptText!$B$1&CHAR(10)&ScriptText!$D$1)","v":""},{"$f":"IF(OrigTable!A1431=\"\",\"\",TEXT(OrigTable!A1431,\"00\"))","v":""},{"$f":"IF(OrigTable!A1431=\"\",\"\",ScriptText!$E$1&CHAR(10)&ScriptText!$C$1)","v":""},{"$f":"IF(OrigTable!B1431=\"\",\"\",ScriptText!$B$1&CHAR(10)&ScriptText!$D$1)","v":""},{"$f":"IF(OrigTable!B1431=\"\",\"\",TEXT(OrigTable!B1431,\"00\"))","v":""},{"$f":"IF(OrigTable!B1431=\"\",\"\",ScriptText!$E$1&CHAR(10)&ScriptText!C1426)","v":""},{"$f":"IF(OrigTable!C1431=\"\",\"\",ScriptText!$B$1&CHAR(10)&ScriptText!$D$1)","v":""},{"$f":"IF(OrigTable!C1431=\"\",\"\",IF(LEN(OrigTable!C1431)>255,LEFT(OrigTable!C1431,250)&\". . .\",OrigTable!C1431))","v":""},{"$f":"IF(OrigTable!C1431=\"\",\"\",ScriptText!$E$1&CHAR(10)&ScriptText!$C$1)","v":""},{"$f":"IF(OrigTable!D1431=\"\",\"\",ScriptText!$B$1&CHAR(10)&ScriptText!$D$1)","v":""},{"$f":"IF(OrigTable!D1431=\"\",\"\",TEXT(OrigTable!D1431,\"00\"))","v":""},{"$f":"IF(OrigTable!D1431=\"\",\"\",ScriptText!$E$1&CHAR(10)&ScriptText!$C$1)","v":""},{"$f":"IF(OrigTable!E1431=\"\",\"\",ScriptText!$B$1&CHAR(10)&ScriptText!$D$1)","v":""},{"$f":"IF(OrigTable!E1431=\"\",\"\",TEXT(OrigTable!E1431,\"00\"))","v":""},{"$f":"IF(OrigTable!E1431=\"\",\"\",ScriptText!$E$1&CHAR(10)&ScriptText!$C$1)","v":""},{"$f":"IF(OrigTable!F1431=\"\",\"\",ScriptText!$B$1&CHAR(10)&ScriptText!$D$1)","v":""},{"$f":"IF(OrigTable!F1431=\"\",\"\",TEXT(OrigTable!F1431,\"00\"))","v":""},{"$f":"IF(OrigTable!F1431=\"\",\"\",ScriptText!$E$1&CHAR(10)&ScriptText!$C$1)","v":""},{"$f":"IF(OrigTable!G1431=\"\",\"\",ScriptText!$B$1&CHAR(10)&ScriptText!$D$1)","v":""},{"$f":"IF(OrigTable!G1431=\"\",\"\",TEXT(OrigTable!G1431,\"00\"))","v":""},{"$f":"IF(OrigTable!G1431=\"\",\"\",ScriptText!$E$1&CHAR(10)&ScriptText!$C$1)","v":""},0]
["\n\n\n",{"$f":"IF(OrigTable!A1432=\"\",\"\",ScriptText!$B$1&CHAR(10)&ScriptText!$D$1)","v":""},{"$f":"IF(OrigTable!A1432=\"\",\"\",TEXT(OrigTable!A1432,\"00\"))","v":""},{"$f":"IF(OrigTable!A1432=\"\",\"\",ScriptText!$E$1&CHAR(10)&ScriptText!$C$1)","v":""},{"$f":"IF(OrigTable!B1432=\"\",\"\",ScriptText!$B$1&CHAR(10)&ScriptText!$D$1)","v":""},{"$f":"IF(OrigTable!B1432=\"\",\"\",TEXT(OrigTable!B1432,\"00\"))","v":""},{"$f":"IF(OrigTable!B1432=\"\",\"\",ScriptText!$E$1&CHAR(10)&ScriptText!C1427)","v":""},{"$f":"IF(OrigTable!C1432=\"\",\"\",ScriptText!$B$1&CHAR(10)&ScriptText!$D$1)","v":""},{"$f":"IF(OrigTable!C1432=\"\",\"\",IF(LEN(OrigTable!C1432)>255,LEFT(OrigTable!C1432,250)&\". . .\",OrigTable!C1432))","v":""},{"$f":"IF(OrigTable!C1432=\"\",\"\",ScriptText!$E$1&CHAR(10)&ScriptText!$C$1)","v":""},{"$f":"IF(OrigTable!D1432=\"\",\"\",ScriptText!$B$1&CHAR(10)&ScriptText!$D$1)","v":""},{"$f":"IF(OrigTable!D1432=\"\",\"\",TEXT(OrigTable!D1432,\"00\"))","v":""},{"$f":"IF(OrigTable!D1432=\"\",\"\",ScriptText!$E$1&CHAR(10)&ScriptText!$C$1)","v":""},{"$f":"IF(OrigTable!E1432=\"\",\"\",ScriptText!$B$1&CHAR(10)&ScriptText!$D$1)","v":""},{"$f":"IF(OrigTable!E1432=\"\",\"\",TEXT(OrigTable!E1432,\"00\"))","v":""},{"$f":"IF(OrigTable!E1432=\"\",\"\",ScriptText!$E$1&CHAR(10)&ScriptText!$C$1)","v":""},{"$f":"IF(OrigTable!F1432=\"\",\"\",ScriptText!$B$1&CHAR(10)&ScriptText!$D$1)","v":""},{"$f":"IF(OrigTable!F1432=\"\",\"\",TEXT(OrigTable!F1432,\"00\"))","v":""},{"$f":"IF(OrigTable!F1432=\"\",\"\",ScriptText!$E$1&CHAR(10)&ScriptText!$C$1)","v":""},{"$f":"IF(OrigTable!G1432=\"\",\"\",ScriptText!$B$1&CHAR(10)&ScriptText!$D$1)","v":""},{"$f":"IF(OrigTable!G1432=\"\",\"\",TEXT(OrigTable!G1432,\"00\"))","v":""},{"$f":"IF(OrigTable!G1432=\"\",\"\",ScriptText!$E$1&CHAR(10)&ScriptText!$C$1)","v":""},0]
["\n\n\n",{"$f":"IF(OrigTable!A1433=\"\",\"\",ScriptText!$B$1&CHAR(10)&ScriptText!$D$1)","v":""},{"$f":"IF(OrigTable!A1433=\"\",\"\",TEXT(OrigTable!A1433,\"00\"))","v":""},{"$f":"IF(OrigTable!A1433=\"\",\"\",ScriptText!$E$1&CHAR(10)&ScriptText!$C$1)","v":""},{"$f":"IF(OrigTable!B1433=\"\",\"\",ScriptText!$B$1&CHAR(10)&ScriptText!$D$1)","v":""},{"$f":"IF(OrigTable!B1433=\"\",\"\",TEXT(OrigTable!B1433,\"00\"))","v":""},{"$f":"IF(OrigTable!B1433=\"\",\"\",ScriptText!$E$1&CHAR(10)&ScriptText!C1428)","v":""},{"$f":"IF(OrigTable!C1433=\"\",\"\",ScriptText!$B$1&CHAR(10)&ScriptText!$D$1)","v":""},{"$f":"IF(OrigTable!C1433=\"\",\"\",IF(LEN(OrigTable!C1433)>255,LEFT(OrigTable!C1433,250)&\". . .\",OrigTable!C1433))","v":""},{"$f":"IF(OrigTable!C1433=\"\",\"\",ScriptText!$E$1&CHAR(10)&ScriptText!$C$1)","v":""},{"$f":"IF(OrigTable!D1433=\"\",\"\",ScriptText!$B$1&CHAR(10)&ScriptText!$D$1)","v":""},{"$f":"IF(OrigTable!D1433=\"\",\"\",TEXT(OrigTable!D1433,\"00\"))","v":""},{"$f":"IF(OrigTable!D1433=\"\",\"\",ScriptText!$E$1&CHAR(10)&ScriptText!$C$1)","v":""},{"$f":"IF(OrigTable!E1433=\"\",\"\",ScriptText!$B$1&CHAR(10)&ScriptText!$D$1)","v":""},{"$f":"IF(OrigTable!E1433=\"\",\"\",TEXT(OrigTable!E1433,\"00\"))","v":""},{"$f":"IF(OrigTable!E1433=\"\",\"\",ScriptText!$E$1&CHAR(10)&ScriptText!$C$1)","v":""},{"$f":"IF(OrigTable!F1433=\"\",\"\",ScriptText!$B$1&CHAR(10)&ScriptText!$D$1)","v":""},{"$f":"IF(OrigTable!F1433=\"\",\"\",TEXT(OrigTable!F1433,\"00\"))","v":""},{"$f":"IF(OrigTable!F1433=\"\",\"\",ScriptText!$E$1&CHAR(10)&ScriptText!$C$1)","v":""},{"$f":"IF(OrigTable!G1433=\"\",\"\",ScriptText!$B$1&CHAR(10)&ScriptText!$D$1)","v":""},{"$f":"IF(OrigTable!G1433=\"\",\"\",TEXT(OrigTable!G1433,\"00\"))","v":""},{"$f":"IF(OrigTable!G1433=\"\",\"\",ScriptText!$E$1&CHAR(10)&ScriptText!$C$1)","v":""},0]
["\n\n\n",{"$f":"IF(OrigTable!A1434=\"\",\"\",ScriptText!$B$1&CHAR(10)&ScriptText!$D$1)","v":""},{"$f":"IF(OrigTable!A1434=\"\",\"\",TEXT(OrigTable!A1434,\"00\"))","v":""},{"$f":"IF(OrigTable!A1434=\"\",\"\",ScriptText!$E$1&CHAR(10)&ScriptText!$C$1)","v":""},{"$f":"IF(OrigTable!B1434=\"\",\"\",ScriptText!$B$1&CHAR(10)&ScriptText!$D$1)","v":""},{"$f":"IF(OrigTable!B1434=\"\",\"\",TEXT(OrigTable!B1434,\"00\"))","v":""},{"$f":"IF(OrigTable!B1434=\"\",\"\",ScriptText!$E$1&CHAR(10)&ScriptText!C1429)","v":""},{"$f":"IF(OrigTable!C1434=\"\",\"\",ScriptText!$B$1&CHAR(10)&ScriptText!$D$1)","v":""},{"$f":"IF(OrigTable!C1434=\"\",\"\",IF(LEN(OrigTable!C1434)>255,LEFT(OrigTable!C1434,250)&\". . .\",OrigTable!C1434))","v":""},{"$f":"IF(OrigTable!C1434=\"\",\"\",ScriptText!$E$1&CHAR(10)&ScriptText!$C$1)","v":""},{"$f":"IF(OrigTable!D1434=\"\",\"\",ScriptText!$B$1&CHAR(10)&ScriptText!$D$1)","v":""},{"$f":"IF(OrigTable!D1434=\"\",\"\",TEXT(OrigTable!D1434,\"00\"))","v":""},{"$f":"IF(OrigTable!D1434=\"\",\"\",ScriptText!$E$1&CHAR(10)&ScriptText!$C$1)","v":""},{"$f":"IF(OrigTable!E1434=\"\",\"\",ScriptText!$B$1&CHAR(10)&ScriptText!$D$1)","v":""},{"$f":"IF(OrigTable!E1434=\"\",\"\",TEXT(OrigTable!E1434,\"00\"))","v":""},{"$f":"IF(OrigTable!E1434=\"\",\"\",ScriptText!$E$1&CHAR(10)&ScriptText!$C$1)","v":""},{"$f":"IF(OrigTable!F1434=\"\",\"\",ScriptText!$B$1&CHAR(10)&ScriptText!$D$1)","v":""},{"$f":"IF(OrigTable!F1434=\"\",\"\",TEXT(OrigTable!F1434,\"00\"))","v":""},{"$f":"IF(OrigTable!F1434=\"\",\"\",ScriptText!$E$1&CHAR(10)&ScriptText!$C$1)","v":""},{"$f":"IF(OrigTable!G1434=\"\",\"\",ScriptText!$B$1&CHAR(10)&ScriptText!$D$1)","v":""},{"$f":"IF(OrigTable!G1434=\"\",\"\",TEXT(OrigTable!G1434,\"00\"))","v":""},{"$f":"IF(OrigTable!G1434=\"\",\"\",ScriptText!$E$1&CHAR(10)&ScriptText!$C$1)","v":""},0]
["\n\n\n",{"$f":"IF(OrigTable!A1435=\"\",\"\",ScriptText!$B$1&CHAR(10)&ScriptText!$D$1)","v":""},{"$f":"IF(OrigTable!A1435=\"\",\"\",TEXT(OrigTable!A1435,\"00\"))","v":""},{"$f":"IF(OrigTable!A1435=\"\",\"\",ScriptText!$E$1&CHAR(10)&ScriptText!$C$1)","v":""},{"$f":"IF(OrigTable!B1435=\"\",\"\",ScriptText!$B$1&CHAR(10)&ScriptText!$D$1)","v":""},{"$f":"IF(OrigTable!B1435=\"\",\"\",TEXT(OrigTable!B1435,\"00\"))","v":""},{"$f":"IF(OrigTable!B1435=\"\",\"\",ScriptText!$E$1&CHAR(10)&ScriptText!C1430)","v":""},{"$f":"IF(OrigTable!C1435=\"\",\"\",ScriptText!$B$1&CHAR(10)&ScriptText!$D$1)","v":""},{"$f":"IF(OrigTable!C1435=\"\",\"\",IF(LEN(OrigTable!C1435)>255,LEFT(OrigTable!C1435,250)&\". . .\",OrigTable!C1435))","v":""},{"$f":"IF(OrigTable!C1435=\"\",\"\",ScriptText!$E$1&CHAR(10)&ScriptText!$C$1)","v":""},{"$f":"IF(OrigTable!D1435=\"\",\"\",ScriptText!$B$1&CHAR(10)&ScriptText!$D$1)","v":""},{"$f":"IF(OrigTable!D1435=\"\",\"\",TEXT(OrigTable!D1435,\"00\"))","v":""},{"$f":"IF(OrigTable!D1435=\"\",\"\",ScriptText!$E$1&CHAR(10)&ScriptText!$C$1)","v":""},{"$f":"IF(OrigTable!E1435=\"\",\"\",ScriptText!$B$1&CHAR(10)&ScriptText!$D$1)","v":""},{"$f":"IF(OrigTable!E1435=\"\",\"\",TEXT(OrigTable!E1435,\"00\"))","v":""},{"$f":"IF(OrigTable!E1435=\"\",\"\",ScriptText!$E$1&CHAR(10)&ScriptText!$C$1)","v":""},{"$f":"IF(OrigTable!F1435=\"\",\"\",ScriptText!$B$1&CHAR(10)&ScriptText!$D$1)","v":""},{"$f":"IF(OrigTable!F1435=\"\",\"\",TEXT(OrigTable!F1435,\"00\"))","v":""},{"$f":"IF(OrigTable!F1435=\"\",\"\",ScriptText!$E$1&CHAR(10)&ScriptText!$C$1)","v":""},{"$f":"IF(OrigTable!G1435=\"\",\"\",ScriptText!$B$1&CHAR(10)&ScriptText!$D$1)","v":""},{"$f":"IF(OrigTable!G1435=\"\",\"\",TEXT(OrigTable!G1435,\"00\"))","v":""},{"$f":"IF(OrigTable!G1435=\"\",\"\",ScriptText!$E$1&CHAR(10)&ScriptText!$C$1)","v":""},0]
["\n\n\n",{"$f":"IF(OrigTable!A1436=\"\",\"\",ScriptText!$B$1&CHAR(10)&ScriptText!$D$1)","v":""},{"$f":"IF(OrigTable!A1436=\"\",\"\",TEXT(OrigTable!A1436,\"00\"))","v":""},{"$f":"IF(OrigTable!A1436=\"\",\"\",ScriptText!$E$1&CHAR(10)&ScriptText!$C$1)","v":""},{"$f":"IF(OrigTable!B1436=\"\",\"\",ScriptText!$B$1&CHAR(10)&ScriptText!$D$1)","v":""},{"$f":"IF(OrigTable!B1436=\"\",\"\",TEXT(OrigTable!B1436,\"00\"))","v":""},{"$f":"IF(OrigTable!B1436=\"\",\"\",ScriptText!$E$1&CHAR(10)&ScriptText!C1431)","v":""},{"$f":"IF(OrigTable!C1436=\"\",\"\",ScriptText!$B$1&CHAR(10)&ScriptText!$D$1)","v":""},{"$f":"IF(OrigTable!C1436=\"\",\"\",IF(LEN(OrigTable!C1436)>255,LEFT(OrigTable!C1436,250)&\". . .\",OrigTable!C1436))","v":""},{"$f":"IF(OrigTable!C1436=\"\",\"\",ScriptText!$E$1&CHAR(10)&ScriptText!$C$1)","v":""},{"$f":"IF(OrigTable!D1436=\"\",\"\",ScriptText!$B$1&CHAR(10)&ScriptText!$D$1)","v":""},{"$f":"IF(OrigTable!D1436=\"\",\"\",TEXT(OrigTable!D1436,\"00\"))","v":""},{"$f":"IF(OrigTable!D1436=\"\",\"\",ScriptText!$E$1&CHAR(10)&ScriptText!$C$1)","v":""},{"$f":"IF(OrigTable!E1436=\"\",\"\",ScriptText!$B$1&CHAR(10)&ScriptText!$D$1)","v":""},{"$f":"IF(OrigTable!E1436=\"\",\"\",TEXT(OrigTable!E1436,\"00\"))","v":""},{"$f":"IF(OrigTable!E1436=\"\",\"\",ScriptText!$E$1&CHAR(10)&ScriptText!$C$1)","v":""},{"$f":"IF(OrigTable!F1436=\"\",\"\",ScriptText!$B$1&CHAR(10)&ScriptText!$D$1)","v":""},{"$f":"IF(OrigTable!F1436=\"\",\"\",TEXT(OrigTable!F1436,\"00\"))","v":""},{"$f":"IF(OrigTable!F1436=\"\",\"\",ScriptText!$E$1&CHAR(10)&ScriptText!$C$1)","v":""},{"$f":"IF(OrigTable!G1436=\"\",\"\",ScriptText!$B$1&CHAR(10)&ScriptText!$D$1)","v":""},{"$f":"IF(OrigTable!G1436=\"\",\"\",TEXT(OrigTable!G1436,\"00\"))","v":""},{"$f":"IF(OrigTable!G1436=\"\",\"\",ScriptText!$E$1&CHAR(10)&ScriptText!$C$1)","v":""},0]
["\n\n\n",{"$f":"IF(OrigTable!A1437=\"\",\"\",ScriptText!$B$1&CHAR(10)&ScriptText!$D$1)","v":""},{"$f":"IF(OrigTable!A1437=\"\",\"\",TEXT(OrigTable!A1437,\"00\"))","v":""},{"$f":"IF(OrigTable!A1437=\"\",\"\",ScriptText!$E$1&CHAR(10)&ScriptText!$C$1)","v":""},{"$f":"IF(OrigTable!B1437=\"\",\"\",ScriptText!$B$1&CHAR(10)&ScriptText!$D$1)","v":""},{"$f":"IF(OrigTable!B1437=\"\",\"\",TEXT(OrigTable!B1437,\"00\"))","v":""},{"$f":"IF(OrigTable!B1437=\"\",\"\",ScriptText!$E$1&CHAR(10)&ScriptText!C1432)","v":""},{"$f":"IF(OrigTable!C1437=\"\",\"\",ScriptText!$B$1&CHAR(10)&ScriptText!$D$1)","v":""},{"$f":"IF(OrigTable!C1437=\"\",\"\",IF(LEN(OrigTable!C1437)>255,LEFT(OrigTable!C1437,250)&\". . .\",OrigTable!C1437))","v":""},{"$f":"IF(OrigTable!C1437=\"\",\"\",ScriptText!$E$1&CHAR(10)&ScriptText!$C$1)","v":""},{"$f":"IF(OrigTable!D1437=\"\",\"\",ScriptText!$B$1&CHAR(10)&ScriptText!$D$1)","v":""},{"$f":"IF(OrigTable!D1437=\"\",\"\",TEXT(OrigTable!D1437,\"00\"))","v":""},{"$f":"IF(OrigTable!D1437=\"\",\"\",ScriptText!$E$1&CHAR(10)&ScriptText!$C$1)","v":""},{"$f":"IF(OrigTable!E1437=\"\",\"\",ScriptText!$B$1&CHAR(10)&ScriptText!$D$1)","v":""},{"$f":"IF(OrigTable!E1437=\"\",\"\",TEXT(OrigTable!E1437,\"00\"))","v":""},{"$f":"IF(OrigTable!E1437=\"\",\"\",ScriptText!$E$1&CHAR(10)&ScriptText!$C$1)","v":""},{"$f":"IF(OrigTable!F1437=\"\",\"\",ScriptText!$B$1&CHAR(10)&ScriptText!$D$1)","v":""},{"$f":"IF(OrigTable!F1437=\"\",\"\",TEXT(OrigTable!F1437,\"00\"))","v":""},{"$f":"IF(OrigTable!F1437=\"\",\"\",ScriptText!$E$1&CHAR(10)&ScriptText!$C$1)","v":""},{"$f":"IF(OrigTable!G1437=\"\",\"\",ScriptText!$B$1&CHAR(10)&ScriptText!$D$1)","v":""},{"$f":"IF(OrigTable!G1437=\"\",\"\",TEXT(OrigTable!G1437,\"00\"))","v":""},{"$f":"IF(OrigTable!G1437=\"\",\"\",ScriptText!$E$1&CHAR(10)&ScriptText!$C$1)","v":""},0]
["\n\n\n",{"$f":"IF(OrigTable!A1438=\"\",\"\",ScriptText!$B$1&CHAR(10)&ScriptText!$D$1)","v":""},{"$f":"IF(OrigTable!A1438=\"\",\"\",TEXT(OrigTable!A1438,\"00\"))","v":""},{"$f":"IF(OrigTable!A1438=\"\",\"\",ScriptText!$E$1&CHAR(10)&ScriptText!$C$1)","v":""},{"$f":"IF(OrigTable!B1438=\"\",\"\",ScriptText!$B$1&CHAR(10)&ScriptText!$D$1)","v":""},{"$f":"IF(OrigTable!B1438=\"\",\"\",TEXT(OrigTable!B1438,\"00\"))","v":""},{"$f":"IF(OrigTable!B1438=\"\",\"\",ScriptText!$E$1&CHAR(10)&ScriptText!C1433)","v":""},{"$f":"IF(OrigTable!C1438=\"\",\"\",ScriptText!$B$1&CHAR(10)&ScriptText!$D$1)","v":""},{"$f":"IF(OrigTable!C1438=\"\",\"\",IF(LEN(OrigTable!C1438)>255,LEFT(OrigTable!C1438,250)&\". . .\",OrigTable!C1438))","v":""},{"$f":"IF(OrigTable!C1438=\"\",\"\",ScriptText!$E$1&CHAR(10)&ScriptText!$C$1)","v":""},{"$f":"IF(OrigTable!D1438=\"\",\"\",ScriptText!$B$1&CHAR(10)&ScriptText!$D$1)","v":""},{"$f":"IF(OrigTable!D1438=\"\",\"\",TEXT(OrigTable!D1438,\"00\"))","v":""},{"$f":"IF(OrigTable!D1438=\"\",\"\",ScriptText!$E$1&CHAR(10)&ScriptText!$C$1)","v":""},{"$f":"IF(OrigTable!E1438=\"\",\"\",ScriptText!$B$1&CHAR(10)&ScriptText!$D$1)","v":""},{"$f":"IF(OrigTable!E1438=\"\",\"\",TEXT(OrigTable!E1438,\"00\"))","v":""},{"$f":"IF(OrigTable!E1438=\"\",\"\",ScriptText!$E$1&CHAR(10)&ScriptText!$C$1)","v":""},{"$f":"IF(OrigTable!F1438=\"\",\"\",ScriptText!$B$1&CHAR(10)&ScriptText!$D$1)","v":""},{"$f":"IF(OrigTable!F1438=\"\",\"\",TEXT(OrigTable!F1438,\"00\"))","v":""},{"$f":"IF(OrigTable!F1438=\"\",\"\",ScriptText!$E$1&CHAR(10)&ScriptText!$C$1)","v":""},{"$f":"IF(OrigTable!G1438=\"\",\"\",ScriptText!$B$1&CHAR(10)&ScriptText!$D$1)","v":""},{"$f":"IF(OrigTable!G1438=\"\",\"\",TEXT(OrigTable!G1438,\"00\"))","v":""},{"$f":"IF(OrigTable!G1438=\"\",\"\",ScriptText!$E$1&CHAR(10)&ScriptText!$C$1)","v":""},0]
["\n\n\n",{"$f":"IF(OrigTable!A1439=\"\",\"\",ScriptText!$B$1&CHAR(10)&ScriptText!$D$1)","v":""},{"$f":"IF(OrigTable!A1439=\"\",\"\",TEXT(OrigTable!A1439,\"00\"))","v":""},{"$f":"IF(OrigTable!A1439=\"\",\"\",ScriptText!$E$1&CHAR(10)&ScriptText!$C$1)","v":""},{"$f":"IF(OrigTable!B1439=\"\",\"\",ScriptText!$B$1&CHAR(10)&ScriptText!$D$1)","v":""},{"$f":"IF(OrigTable!B1439=\"\",\"\",TEXT(OrigTable!B1439,\"00\"))","v":""},{"$f":"IF(OrigTable!B1439=\"\",\"\",ScriptText!$E$1&CHAR(10)&ScriptText!C1434)","v":""},{"$f":"IF(OrigTable!C1439=\"\",\"\",ScriptText!$B$1&CHAR(10)&ScriptText!$D$1)","v":""},{"$f":"IF(OrigTable!C1439=\"\",\"\",IF(LEN(OrigTable!C1439)>255,LEFT(OrigTable!C1439,250)&\". . .\",OrigTable!C1439))","v":""},{"$f":"IF(OrigTable!C1439=\"\",\"\",ScriptText!$E$1&CHAR(10)&ScriptText!$C$1)","v":""},{"$f":"IF(OrigTable!D1439=\"\",\"\",ScriptText!$B$1&CHAR(10)&ScriptText!$D$1)","v":""},{"$f":"IF(OrigTable!D1439=\"\",\"\",TEXT(OrigTable!D1439,\"00\"))","v":""},{"$f":"IF(OrigTable!D1439=\"\",\"\",ScriptText!$E$1&CHAR(10)&ScriptText!$C$1)","v":""},{"$f":"IF(OrigTable!E1439=\"\",\"\",ScriptText!$B$1&CHAR(10)&ScriptText!$D$1)","v":""},{"$f":"IF(OrigTable!E1439=\"\",\"\",TEXT(OrigTable!E1439,\"00\"))","v":""},{"$f":"IF(OrigTable!E1439=\"\",\"\",ScriptText!$E$1&CHAR(10)&ScriptText!$C$1)","v":""},{"$f":"IF(OrigTable!F1439=\"\",\"\",ScriptText!$B$1&CHAR(10)&ScriptText!$D$1)","v":""},{"$f":"IF(OrigTable!F1439=\"\",\"\",TEXT(OrigTable!F1439,\"00\"))","v":""},{"$f":"IF(OrigTable!F1439=\"\",\"\",ScriptText!$E$1&CHAR(10)&ScriptText!$C$1)","v":""},{"$f":"IF(OrigTable!G1439=\"\",\"\",ScriptText!$B$1&CHAR(10)&ScriptText!$D$1)","v":""},{"$f":"IF(OrigTable!G1439=\"\",\"\",TEXT(OrigTable!G1439,\"00\"))","v":""},{"$f":"IF(OrigTable!G1439=\"\",\"\",ScriptText!$E$1&CHAR(10)&ScriptText!$C$1)","v":""},0]
["\n\n\n",{"$f":"IF(OrigTable!A1440=\"\",\"\",ScriptText!$B$1&CHAR(10)&ScriptText!$D$1)","v":""},{"$f":"IF(OrigTable!A1440=\"\",\"\",TEXT(OrigTable!A1440,\"00\"))","v":""},{"$f":"IF(OrigTable!A1440=\"\",\"\",ScriptText!$E$1&CHAR(10)&ScriptText!$C$1)","v":""},{"$f":"IF(OrigTable!B1440=\"\",\"\",ScriptText!$B$1&CHAR(10)&ScriptText!$D$1)","v":""},{"$f":"IF(OrigTable!B1440=\"\",\"\",TEXT(OrigTable!B1440,\"00\"))","v":""},{"$f":"IF(OrigTable!B1440=\"\",\"\",ScriptText!$E$1&CHAR(10)&ScriptText!C1435)","v":""},{"$f":"IF(OrigTable!C1440=\"\",\"\",ScriptText!$B$1&CHAR(10)&ScriptText!$D$1)","v":""},{"$f":"IF(OrigTable!C1440=\"\",\"\",IF(LEN(OrigTable!C1440)>255,LEFT(OrigTable!C1440,250)&\". . .\",OrigTable!C1440))","v":""},{"$f":"IF(OrigTable!C1440=\"\",\"\",ScriptText!$E$1&CHAR(10)&ScriptText!$C$1)","v":""},{"$f":"IF(OrigTable!D1440=\"\",\"\",ScriptText!$B$1&CHAR(10)&ScriptText!$D$1)","v":""},{"$f":"IF(OrigTable!D1440=\"\",\"\",TEXT(OrigTable!D1440,\"00\"))","v":""},{"$f":"IF(OrigTable!D1440=\"\",\"\",ScriptText!$E$1&CHAR(10)&ScriptText!$C$1)","v":""},{"$f":"IF(OrigTable!E1440=\"\",\"\",ScriptText!$B$1&CHAR(10)&ScriptText!$D$1)","v":""},{"$f":"IF(OrigTable!E1440=\"\",\"\",TEXT(OrigTable!E1440,\"00\"))","v":""},{"$f":"IF(OrigTable!E1440=\"\",\"\",ScriptText!$E$1&CHAR(10)&ScriptText!$C$1)","v":""},{"$f":"IF(OrigTable!F1440=\"\",\"\",ScriptText!$B$1&CHAR(10)&ScriptText!$D$1)","v":""},{"$f":"IF(OrigTable!F1440=\"\",\"\",TEXT(OrigTable!F1440,\"00\"))","v":""},{"$f":"IF(OrigTable!F1440=\"\",\"\",ScriptText!$E$1&CHAR(10)&ScriptText!$C$1)","v":""},{"$f":"IF(OrigTable!G1440=\"\",\"\",ScriptText!$B$1&CHAR(10)&ScriptText!$D$1)","v":""},{"$f":"IF(OrigTable!G1440=\"\",\"\",TEXT(OrigTable!G1440,\"00\"))","v":""},{"$f":"IF(OrigTable!G1440=\"\",\"\",ScriptText!$E$1&CHAR(10)&ScriptText!$C$1)","v":""},0]
["\n\n\n",{"$f":"IF(OrigTable!A1441=\"\",\"\",ScriptText!$B$1&CHAR(10)&ScriptText!$D$1)","v":""},{"$f":"IF(OrigTable!A1441=\"\",\"\",TEXT(OrigTable!A1441,\"00\"))","v":""},{"$f":"IF(OrigTable!A1441=\"\",\"\",ScriptText!$E$1&CHAR(10)&ScriptText!$C$1)","v":""},{"$f":"IF(OrigTable!B1441=\"\",\"\",ScriptText!$B$1&CHAR(10)&ScriptText!$D$1)","v":""},{"$f":"IF(OrigTable!B1441=\"\",\"\",TEXT(OrigTable!B1441,\"00\"))","v":""},{"$f":"IF(OrigTable!B1441=\"\",\"\",ScriptText!$E$1&CHAR(10)&ScriptText!C1436)","v":""},{"$f":"IF(OrigTable!C1441=\"\",\"\",ScriptText!$B$1&CHAR(10)&ScriptText!$D$1)","v":""},{"$f":"IF(OrigTable!C1441=\"\",\"\",IF(LEN(OrigTable!C1441)>255,LEFT(OrigTable!C1441,250)&\". . .\",OrigTable!C1441))","v":""},{"$f":"IF(OrigTable!C1441=\"\",\"\",ScriptText!$E$1&CHAR(10)&ScriptText!$C$1)","v":""},{"$f":"IF(OrigTable!D1441=\"\",\"\",ScriptText!$B$1&CHAR(10)&ScriptText!$D$1)","v":""},{"$f":"IF(OrigTable!D1441=\"\",\"\",TEXT(OrigTable!D1441,\"00\"))","v":""},{"$f":"IF(OrigTable!D1441=\"\",\"\",ScriptText!$E$1&CHAR(10)&ScriptText!$C$1)","v":""},{"$f":"IF(OrigTable!E1441=\"\",\"\",ScriptText!$B$1&CHAR(10)&ScriptText!$D$1)","v":""},{"$f":"IF(OrigTable!E1441=\"\",\"\",TEXT(OrigTable!E1441,\"00\"))","v":""},{"$f":"IF(OrigTable!E1441=\"\",\"\",ScriptText!$E$1&CHAR(10)&ScriptText!$C$1)","v":""},{"$f":"IF(OrigTable!F1441=\"\",\"\",ScriptText!$B$1&CHAR(10)&ScriptText!$D$1)","v":""},{"$f":"IF(OrigTable!F1441=\"\",\"\",TEXT(OrigTable!F1441,\"00\"))","v":""},{"$f":"IF(OrigTable!F1441=\"\",\"\",ScriptText!$E$1&CHAR(10)&ScriptText!$C$1)","v":""},{"$f":"IF(OrigTable!G1441=\"\",\"\",ScriptText!$B$1&CHAR(10)&ScriptText!$D$1)","v":""},{"$f":"IF(OrigTable!G1441=\"\",\"\",TEXT(OrigTable!G1441,\"00\"))","v":""},{"$f":"IF(OrigTable!G1441=\"\",\"\",ScriptText!$E$1&CHAR(10)&ScriptText!$C$1)","v":""},0]
["\n\n\n",{"$f":"IF(OrigTable!A1442=\"\",\"\",ScriptText!$B$1&CHAR(10)&ScriptText!$D$1)","v":""},{"$f":"IF(OrigTable!A1442=\"\",\"\",TEXT(OrigTable!A1442,\"00\"))","v":""},{"$f":"IF(OrigTable!A1442=\"\",\"\",ScriptText!$E$1&CHAR(10)&ScriptText!$C$1)","v":""},{"$f":"IF(OrigTable!B1442=\"\",\"\",ScriptText!$B$1&CHAR(10)&ScriptText!$D$1)","v":""},{"$f":"IF(OrigTable!B1442=\"\",\"\",TEXT(OrigTable!B1442,\"00\"))","v":""},{"$f":"IF(OrigTable!B1442=\"\",\"\",ScriptText!$E$1&CHAR(10)&ScriptText!C1437)","v":""},{"$f":"IF(OrigTable!C1442=\"\",\"\",ScriptText!$B$1&CHAR(10)&ScriptText!$D$1)","v":""},{"$f":"IF(OrigTable!C1442=\"\",\"\",IF(LEN(OrigTable!C1442)>255,LEFT(OrigTable!C1442,250)&\". . .\",OrigTable!C1442))","v":""},{"$f":"IF(OrigTable!C1442=\"\",\"\",ScriptText!$E$1&CHAR(10)&ScriptText!$C$1)","v":""},{"$f":"IF(OrigTable!D1442=\"\",\"\",ScriptText!$B$1&CHAR(10)&ScriptText!$D$1)","v":""},{"$f":"IF(OrigTable!D1442=\"\",\"\",TEXT(OrigTable!D1442,\"00\"))","v":""},{"$f":"IF(OrigTable!D1442=\"\",\"\",ScriptText!$E$1&CHAR(10)&ScriptText!$C$1)","v":""},{"$f":"IF(OrigTable!E1442=\"\",\"\",ScriptText!$B$1&CHAR(10)&ScriptText!$D$1)","v":""},{"$f":"IF(OrigTable!E1442=\"\",\"\",TEXT(OrigTable!E1442,\"00\"))","v":""},{"$f":"IF(OrigTable!E1442=\"\",\"\",ScriptText!$E$1&CHAR(10)&ScriptText!$C$1)","v":""},{"$f":"IF(OrigTable!F1442=\"\",\"\",ScriptText!$B$1&CHAR(10)&ScriptText!$D$1)","v":""},{"$f":"IF(OrigTable!F1442=\"\",\"\",TEXT(OrigTable!F1442,\"00\"))","v":""},{"$f":"IF(OrigTable!F1442=\"\",\"\",ScriptText!$E$1&CHAR(10)&ScriptText!$C$1)","v":""},{"$f":"IF(OrigTable!G1442=\"\",\"\",ScriptText!$B$1&CHAR(10)&ScriptText!$D$1)","v":""},{"$f":"IF(OrigTable!G1442=\"\",\"\",TEXT(OrigTable!G1442,\"00\"))","v":""},{"$f":"IF(OrigTable!G1442=\"\",\"\",ScriptText!$E$1&CHAR(10)&ScriptText!$C$1)","v":""},0]
["\n\n\n",{"$f":"IF(OrigTable!A1443=\"\",\"\",ScriptText!$B$1&CHAR(10)&ScriptText!$D$1)","v":""},{"$f":"IF(OrigTable!A1443=\"\",\"\",TEXT(OrigTable!A1443,\"00\"))","v":""},{"$f":"IF(OrigTable!A1443=\"\",\"\",ScriptText!$E$1&CHAR(10)&ScriptText!$C$1)","v":""},{"$f":"IF(OrigTable!B1443=\"\",\"\",ScriptText!$B$1&CHAR(10)&ScriptText!$D$1)","v":""},{"$f":"IF(OrigTable!B1443=\"\",\"\",TEXT(OrigTable!B1443,\"00\"))","v":""},{"$f":"IF(OrigTable!B1443=\"\",\"\",ScriptText!$E$1&CHAR(10)&ScriptText!C1438)","v":""},{"$f":"IF(OrigTable!C1443=\"\",\"\",ScriptText!$B$1&CHAR(10)&ScriptText!$D$1)","v":""},{"$f":"IF(OrigTable!C1443=\"\",\"\",IF(LEN(OrigTable!C1443)>255,LEFT(OrigTable!C1443,250)&\". . .\",OrigTable!C1443))","v":""},{"$f":"IF(OrigTable!C1443=\"\",\"\",ScriptText!$E$1&CHAR(10)&ScriptText!$C$1)","v":""},{"$f":"IF(OrigTable!D1443=\"\",\"\",ScriptText!$B$1&CHAR(10)&ScriptText!$D$1)","v":""},{"$f":"IF(OrigTable!D1443=\"\",\"\",TEXT(OrigTable!D1443,\"00\"))","v":""},{"$f":"IF(OrigTable!D1443=\"\",\"\",ScriptText!$E$1&CHAR(10)&ScriptText!$C$1)","v":""},{"$f":"IF(OrigTable!E1443=\"\",\"\",ScriptText!$B$1&CHAR(10)&ScriptText!$D$1)","v":""},{"$f":"IF(OrigTable!E1443=\"\",\"\",TEXT(OrigTable!E1443,\"00\"))","v":""},{"$f":"IF(OrigTable!E1443=\"\",\"\",ScriptText!$E$1&CHAR(10)&ScriptText!$C$1)","v":""},{"$f":"IF(OrigTable!F1443=\"\",\"\",ScriptText!$B$1&CHAR(10)&ScriptText!$D$1)","v":""},{"$f":"IF(OrigTable!F1443=\"\",\"\",TEXT(OrigTable!F1443,\"00\"))","v":""},{"$f":"IF(OrigTable!F1443=\"\",\"\",ScriptText!$E$1&CHAR(10)&ScriptText!$C$1)","v":""},{"$f":"IF(OrigTable!G1443=\"\",\"\",ScriptText!$B$1&CHAR(10)&ScriptText!$D$1)","v":""},{"$f":"IF(OrigTable!G1443=\"\",\"\",TEXT(OrigTable!G1443,\"00\"))","v":""},{"$f":"IF(OrigTable!G1443=\"\",\"\",ScriptText!$E$1&CHAR(10)&ScriptText!$C$1)","v":""},0]
["\n\n\n",{"$f":"IF(OrigTable!A1444=\"\",\"\",ScriptText!$B$1&CHAR(10)&ScriptText!$D$1)","v":""},{"$f":"IF(OrigTable!A1444=\"\",\"\",TEXT(OrigTable!A1444,\"00\"))","v":""},{"$f":"IF(OrigTable!A1444=\"\",\"\",ScriptText!$E$1&CHAR(10)&ScriptText!$C$1)","v":""},{"$f":"IF(OrigTable!B1444=\"\",\"\",ScriptText!$B$1&CHAR(10)&ScriptText!$D$1)","v":""},{"$f":"IF(OrigTable!B1444=\"\",\"\",TEXT(OrigTable!B1444,\"00\"))","v":""},{"$f":"IF(OrigTable!B1444=\"\",\"\",ScriptText!$E$1&CHAR(10)&ScriptText!C1439)","v":""},{"$f":"IF(OrigTable!C1444=\"\",\"\",ScriptText!$B$1&CHAR(10)&ScriptText!$D$1)","v":""},{"$f":"IF(OrigTable!C1444=\"\",\"\",IF(LEN(OrigTable!C1444)>255,LEFT(OrigTable!C1444,250)&\". . .\",OrigTable!C1444))","v":""},{"$f":"IF(OrigTable!C1444=\"\",\"\",ScriptText!$E$1&CHAR(10)&ScriptText!$C$1)","v":""},{"$f":"IF(OrigTable!D1444=\"\",\"\",ScriptText!$B$1&CHAR(10)&ScriptText!$D$1)","v":""},{"$f":"IF(OrigTable!D1444=\"\",\"\",TEXT(OrigTable!D1444,\"00\"))","v":""},{"$f":"IF(OrigTable!D1444=\"\",\"\",ScriptText!$E$1&CHAR(10)&ScriptText!$C$1)","v":""},{"$f":"IF(OrigTable!E1444=\"\",\"\",ScriptText!$B$1&CHAR(10)&ScriptText!$D$1)","v":""},{"$f":"IF(OrigTable!E1444=\"\",\"\",TEXT(OrigTable!E1444,\"00\"))","v":""},{"$f":"IF(OrigTable!E1444=\"\",\"\",ScriptText!$E$1&CHAR(10)&ScriptText!$C$1)","v":""},{"$f":"IF(OrigTable!F1444=\"\",\"\",ScriptText!$B$1&CHAR(10)&ScriptText!$D$1)","v":""},{"$f":"IF(OrigTable!F1444=\"\",\"\",TEXT(OrigTable!F1444,\"00\"))","v":""},{"$f":"IF(OrigTable!F1444=\"\",\"\",ScriptText!$E$1&CHAR(10)&ScriptText!$C$1)","v":""},{"$f":"IF(OrigTable!G1444=\"\",\"\",ScriptText!$B$1&CHAR(10)&ScriptText!$D$1)","v":""},{"$f":"IF(OrigTable!G1444=\"\",\"\",TEXT(OrigTable!G1444,\"00\"))","v":""},{"$f":"IF(OrigTable!G1444=\"\",\"\",ScriptText!$E$1&CHAR(10)&ScriptText!$C$1)","v":""},0]
["\n\n\n",{"$f":"IF(OrigTable!A1445=\"\",\"\",ScriptText!$B$1&CHAR(10)&ScriptText!$D$1)","v":""},{"$f":"IF(OrigTable!A1445=\"\",\"\",TEXT(OrigTable!A1445,\"00\"))","v":""},{"$f":"IF(OrigTable!A1445=\"\",\"\",ScriptText!$E$1&CHAR(10)&ScriptText!$C$1)","v":""},{"$f":"IF(OrigTable!B1445=\"\",\"\",ScriptText!$B$1&CHAR(10)&ScriptText!$D$1)","v":""},{"$f":"IF(OrigTable!B1445=\"\",\"\",TEXT(OrigTable!B1445,\"00\"))","v":""},{"$f":"IF(OrigTable!B1445=\"\",\"\",ScriptText!$E$1&CHAR(10)&ScriptText!C1440)","v":""},{"$f":"IF(OrigTable!C1445=\"\",\"\",ScriptText!$B$1&CHAR(10)&ScriptText!$D$1)","v":""},{"$f":"IF(OrigTable!C1445=\"\",\"\",IF(LEN(OrigTable!C1445)>255,LEFT(OrigTable!C1445,250)&\". . .\",OrigTable!C1445))","v":""},{"$f":"IF(OrigTable!C1445=\"\",\"\",ScriptText!$E$1&CHAR(10)&ScriptText!$C$1)","v":""},{"$f":"IF(OrigTable!D1445=\"\",\"\",ScriptText!$B$1&CHAR(10)&ScriptText!$D$1)","v":""},{"$f":"IF(OrigTable!D1445=\"\",\"\",TEXT(OrigTable!D1445,\"00\"))","v":""},{"$f":"IF(OrigTable!D1445=\"\",\"\",ScriptText!$E$1&CHAR(10)&ScriptText!$C$1)","v":""},{"$f":"IF(OrigTable!E1445=\"\",\"\",ScriptText!$B$1&CHAR(10)&ScriptText!$D$1)","v":""},{"$f":"IF(OrigTable!E1445=\"\",\"\",TEXT(OrigTable!E1445,\"00\"))","v":""},{"$f":"IF(OrigTable!E1445=\"\",\"\",ScriptText!$E$1&CHAR(10)&ScriptText!$C$1)","v":""},{"$f":"IF(OrigTable!F1445=\"\",\"\",ScriptText!$B$1&CHAR(10)&ScriptText!$D$1)","v":""},{"$f":"IF(OrigTable!F1445=\"\",\"\",TEXT(OrigTable!F1445,\"00\"))","v":""},{"$f":"IF(OrigTable!F1445=\"\",\"\",ScriptText!$E$1&CHAR(10)&ScriptText!$C$1)","v":""},{"$f":"IF(OrigTable!G1445=\"\",\"\",ScriptText!$B$1&CHAR(10)&ScriptText!$D$1)","v":""},{"$f":"IF(OrigTable!G1445=\"\",\"\",TEXT(OrigTable!G1445,\"00\"))","v":""},{"$f":"IF(OrigTable!G1445=\"\",\"\",ScriptText!$E$1&CHAR(10)&ScriptText!$C$1)","v":""},0]
["\n\n\n",{"$f":"IF(OrigTable!A1446=\"\",\"\",ScriptText!$B$1&CHAR(10)&ScriptText!$D$1)","v":""},{"$f":"IF(OrigTable!A1446=\"\",\"\",TEXT(OrigTable!A1446,\"00\"))","v":""},{"$f":"IF(OrigTable!A1446=\"\",\"\",ScriptText!$E$1&CHAR(10)&ScriptText!$C$1)","v":""},{"$f":"IF(OrigTable!B1446=\"\",\"\",ScriptText!$B$1&CHAR(10)&ScriptText!$D$1)","v":""},{"$f":"IF(OrigTable!B1446=\"\",\"\",TEXT(OrigTable!B1446,\"00\"))","v":""},{"$f":"IF(OrigTable!B1446=\"\",\"\",ScriptText!$E$1&CHAR(10)&ScriptText!C1441)","v":""},{"$f":"IF(OrigTable!C1446=\"\",\"\",ScriptText!$B$1&CHAR(10)&ScriptText!$D$1)","v":""},{"$f":"IF(OrigTable!C1446=\"\",\"\",IF(LEN(OrigTable!C1446)>255,LEFT(OrigTable!C1446,250)&\". . .\",OrigTable!C1446))","v":""},{"$f":"IF(OrigTable!C1446=\"\",\"\",ScriptText!$E$1&CHAR(10)&ScriptText!$C$1)","v":""},{"$f":"IF(OrigTable!D1446=\"\",\"\",ScriptText!$B$1&CHAR(10)&ScriptText!$D$1)","v":""},{"$f":"IF(OrigTable!D1446=\"\",\"\",TEXT(OrigTable!D1446,\"00\"))","v":""},{"$f":"IF(OrigTable!D1446=\"\",\"\",ScriptText!$E$1&CHAR(10)&ScriptText!$C$1)","v":""},{"$f":"IF(OrigTable!E1446=\"\",\"\",ScriptText!$B$1&CHAR(10)&ScriptText!$D$1)","v":""},{"$f":"IF(OrigTable!E1446=\"\",\"\",TEXT(OrigTable!E1446,\"00\"))","v":""},{"$f":"IF(OrigTable!E1446=\"\",\"\",ScriptText!$E$1&CHAR(10)&ScriptText!$C$1)","v":""},{"$f":"IF(OrigTable!F1446=\"\",\"\",ScriptText!$B$1&CHAR(10)&ScriptText!$D$1)","v":""},{"$f":"IF(OrigTable!F1446=\"\",\"\",TEXT(OrigTable!F1446,\"00\"))","v":""},{"$f":"IF(OrigTable!F1446=\"\",\"\",ScriptText!$E$1&CHAR(10)&ScriptText!$C$1)","v":""},{"$f":"IF(OrigTable!G1446=\"\",\"\",ScriptText!$B$1&CHAR(10)&ScriptText!$D$1)","v":""},{"$f":"IF(OrigTable!G1446=\"\",\"\",TEXT(OrigTable!G1446,\"00\"))","v":""},{"$f":"IF(OrigTable!G1446=\"\",\"\",ScriptText!$E$1&CHAR(10)&ScriptText!$C$1)","v":""},0]
["\n\n\n",{"$f":"IF(OrigTable!A1447=\"\",\"\",ScriptText!$B$1&CHAR(10)&ScriptText!$D$1)","v":""},{"$f":"IF(OrigTable!A1447=\"\",\"\",TEXT(OrigTable!A1447,\"00\"))","v":""},{"$f":"IF(OrigTable!A1447=\"\",\"\",ScriptText!$E$1&CHAR(10)&ScriptText!$C$1)","v":""},{"$f":"IF(OrigTable!B1447=\"\",\"\",ScriptText!$B$1&CHAR(10)&ScriptText!$D$1)","v":""},{"$f":"IF(OrigTable!B1447=\"\",\"\",TEXT(OrigTable!B1447,\"00\"))","v":""},{"$f":"IF(OrigTable!B1447=\"\",\"\",ScriptText!$E$1&CHAR(10)&ScriptText!C1442)","v":""},{"$f":"IF(OrigTable!C1447=\"\",\"\",ScriptText!$B$1&CHAR(10)&ScriptText!$D$1)","v":""},{"$f":"IF(OrigTable!C1447=\"\",\"\",IF(LEN(OrigTable!C1447)>255,LEFT(OrigTable!C1447,250)&\". . .\",OrigTable!C1447))","v":""},{"$f":"IF(OrigTable!C1447=\"\",\"\",ScriptText!$E$1&CHAR(10)&ScriptText!$C$1)","v":""},{"$f":"IF(OrigTable!D1447=\"\",\"\",ScriptText!$B$1&CHAR(10)&ScriptText!$D$1)","v":""},{"$f":"IF(OrigTable!D1447=\"\",\"\",TEXT(OrigTable!D1447,\"00\"))","v":""},{"$f":"IF(OrigTable!D1447=\"\",\"\",ScriptText!$E$1&CHAR(10)&ScriptText!$C$1)","v":""},{"$f":"IF(OrigTable!E1447=\"\",\"\",ScriptText!$B$1&CHAR(10)&ScriptText!$D$1)","v":""},{"$f":"IF(OrigTable!E1447=\"\",\"\",TEXT(OrigTable!E1447,\"00\"))","v":""},{"$f":"IF(OrigTable!E1447=\"\",\"\",ScriptText!$E$1&CHAR(10)&ScriptText!$C$1)","v":""},{"$f":"IF(OrigTable!F1447=\"\",\"\",ScriptText!$B$1&CHAR(10)&ScriptText!$D$1)","v":""},{"$f":"IF(OrigTable!F1447=\"\",\"\",TEXT(OrigTable!F1447,\"00\"))","v":""},{"$f":"IF(OrigTable!F1447=\"\",\"\",ScriptText!$E$1&CHAR(10)&ScriptText!$C$1)","v":""},{"$f":"IF(OrigTable!G1447=\"\",\"\",ScriptText!$B$1&CHAR(10)&ScriptText!$D$1)","v":""},{"$f":"IF(OrigTable!G1447=\"\",\"\",TEXT(OrigTable!G1447,\"00\"))","v":""},{"$f":"IF(OrigTable!G1447=\"\",\"\",ScriptText!$E$1&CHAR(10)&ScriptText!$C$1)","v":""},0]
["\n\n\n",{"$f":"IF(OrigTable!A1448=\"\",\"\",ScriptText!$B$1&CHAR(10)&ScriptText!$D$1)","v":""},{"$f":"IF(OrigTable!A1448=\"\",\"\",TEXT(OrigTable!A1448,\"00\"))","v":""},{"$f":"IF(OrigTable!A1448=\"\",\"\",ScriptText!$E$1&CHAR(10)&ScriptText!$C$1)","v":""},{"$f":"IF(OrigTable!B1448=\"\",\"\",ScriptText!$B$1&CHAR(10)&ScriptText!$D$1)","v":""},{"$f":"IF(OrigTable!B1448=\"\",\"\",TEXT(OrigTable!B1448,\"00\"))","v":""},{"$f":"IF(OrigTable!B1448=\"\",\"\",ScriptText!$E$1&CHAR(10)&ScriptText!C1443)","v":""},{"$f":"IF(OrigTable!C1448=\"\",\"\",ScriptText!$B$1&CHAR(10)&ScriptText!$D$1)","v":""},{"$f":"IF(OrigTable!C1448=\"\",\"\",IF(LEN(OrigTable!C1448)>255,LEFT(OrigTable!C1448,250)&\". . .\",OrigTable!C1448))","v":""},{"$f":"IF(OrigTable!C1448=\"\",\"\",ScriptText!$E$1&CHAR(10)&ScriptText!$C$1)","v":""},{"$f":"IF(OrigTable!D1448=\"\",\"\",ScriptText!$B$1&CHAR(10)&ScriptText!$D$1)","v":""},{"$f":"IF(OrigTable!D1448=\"\",\"\",TEXT(OrigTable!D1448,\"00\"))","v":""},{"$f":"IF(OrigTable!D1448=\"\",\"\",ScriptText!$E$1&CHAR(10)&ScriptText!$C$1)","v":""},{"$f":"IF(OrigTable!E1448=\"\",\"\",ScriptText!$B$1&CHAR(10)&ScriptText!$D$1)","v":""},{"$f":"IF(OrigTable!E1448=\"\",\"\",TEXT(OrigTable!E1448,\"00\"))","v":""},{"$f":"IF(OrigTable!E1448=\"\",\"\",ScriptText!$E$1&CHAR(10)&ScriptText!$C$1)","v":""},{"$f":"IF(OrigTable!F1448=\"\",\"\",ScriptText!$B$1&CHAR(10)&ScriptText!$D$1)","v":""},{"$f":"IF(OrigTable!F1448=\"\",\"\",TEXT(OrigTable!F1448,\"00\"))","v":""},{"$f":"IF(OrigTable!F1448=\"\",\"\",ScriptText!$E$1&CHAR(10)&ScriptText!$C$1)","v":""},{"$f":"IF(OrigTable!G1448=\"\",\"\",ScriptText!$B$1&CHAR(10)&ScriptText!$D$1)","v":""},{"$f":"IF(OrigTable!G1448=\"\",\"\",TEXT(OrigTable!G1448,\"00\"))","v":""},{"$f":"IF(OrigTable!G1448=\"\",\"\",ScriptText!$E$1&CHAR(10)&ScriptText!$C$1)","v":""},0]
["\n\n\n",{"$f":"IF(OrigTable!A1449=\"\",\"\",ScriptText!$B$1&CHAR(10)&ScriptText!$D$1)","v":""},{"$f":"IF(OrigTable!A1449=\"\",\"\",TEXT(OrigTable!A1449,\"00\"))","v":""},{"$f":"IF(OrigTable!A1449=\"\",\"\",ScriptText!$E$1&CHAR(10)&ScriptText!$C$1)","v":""},{"$f":"IF(OrigTable!B1449=\"\",\"\",ScriptText!$B$1&CHAR(10)&ScriptText!$D$1)","v":""},{"$f":"IF(OrigTable!B1449=\"\",\"\",TEXT(OrigTable!B1449,\"00\"))","v":""},{"$f":"IF(OrigTable!B1449=\"\",\"\",ScriptText!$E$1&CHAR(10)&ScriptText!C1444)","v":""},{"$f":"IF(OrigTable!C1449=\"\",\"\",ScriptText!$B$1&CHAR(10)&ScriptText!$D$1)","v":""},{"$f":"IF(OrigTable!C1449=\"\",\"\",IF(LEN(OrigTable!C1449)>255,LEFT(OrigTable!C1449,250)&\". . .\",OrigTable!C1449))","v":""},{"$f":"IF(OrigTable!C1449=\"\",\"\",ScriptText!$E$1&CHAR(10)&ScriptText!$C$1)","v":""},{"$f":"IF(OrigTable!D1449=\"\",\"\",ScriptText!$B$1&CHAR(10)&ScriptText!$D$1)","v":""},{"$f":"IF(OrigTable!D1449=\"\",\"\",TEXT(OrigTable!D1449,\"00\"))","v":""},{"$f":"IF(OrigTable!D1449=\"\",\"\",ScriptText!$E$1&CHAR(10)&ScriptText!$C$1)","v":""},{"$f":"IF(OrigTable!E1449=\"\",\"\",ScriptText!$B$1&CHAR(10)&ScriptText!$D$1)","v":""},{"$f":"IF(OrigTable!E1449=\"\",\"\",TEXT(OrigTable!E1449,\"00\"))","v":""},{"$f":"IF(OrigTable!E1449=\"\",\"\",ScriptText!$E$1&CHAR(10)&ScriptText!$C$1)","v":""},{"$f":"IF(OrigTable!F1449=\"\",\"\",ScriptText!$B$1&CHAR(10)&ScriptText!$D$1)","v":""},{"$f":"IF(OrigTable!F1449=\"\",\"\",TEXT(OrigTable!F1449,\"00\"))","v":""},{"$f":"IF(OrigTable!F1449=\"\",\"\",ScriptText!$E$1&CHAR(10)&ScriptText!$C$1)","v":""},{"$f":"IF(OrigTable!G1449=\"\",\"\",ScriptText!$B$1&CHAR(10)&ScriptText!$D$1)","v":""},{"$f":"IF(OrigTable!G1449=\"\",\"\",TEXT(OrigTable!G1449,\"00\"))","v":""},{"$f":"IF(OrigTable!G1449=\"\",\"\",ScriptText!$E$1&CHAR(10)&ScriptText!$C$1)","v":""},0]
["\n\n\n",{"$f":"IF(OrigTable!A1450=\"\",\"\",ScriptText!$B$1&CHAR(10)&ScriptText!$D$1)","v":""},{"$f":"IF(OrigTable!A1450=\"\",\"\",TEXT(OrigTable!A1450,\"00\"))","v":""},{"$f":"IF(OrigTable!A1450=\"\",\"\",ScriptText!$E$1&CHAR(10)&ScriptText!$C$1)","v":""},{"$f":"IF(OrigTable!B1450=\"\",\"\",ScriptText!$B$1&CHAR(10)&ScriptText!$D$1)","v":""},{"$f":"IF(OrigTable!B1450=\"\",\"\",TEXT(OrigTable!B1450,\"00\"))","v":""},{"$f":"IF(OrigTable!B1450=\"\",\"\",ScriptText!$E$1&CHAR(10)&ScriptText!C1445)","v":""},{"$f":"IF(OrigTable!C1450=\"\",\"\",ScriptText!$B$1&CHAR(10)&ScriptText!$D$1)","v":""},{"$f":"IF(OrigTable!C1450=\"\",\"\",IF(LEN(OrigTable!C1450)>255,LEFT(OrigTable!C1450,250)&\". . .\",OrigTable!C1450))","v":""},{"$f":"IF(OrigTable!C1450=\"\",\"\",ScriptText!$E$1&CHAR(10)&ScriptText!$C$1)","v":""},{"$f":"IF(OrigTable!D1450=\"\",\"\",ScriptText!$B$1&CHAR(10)&ScriptText!$D$1)","v":""},{"$f":"IF(OrigTable!D1450=\"\",\"\",TEXT(OrigTable!D1450,\"00\"))","v":""},{"$f":"IF(OrigTable!D1450=\"\",\"\",ScriptText!$E$1&CHAR(10)&ScriptText!$C$1)","v":""},{"$f":"IF(OrigTable!E1450=\"\",\"\",ScriptText!$B$1&CHAR(10)&ScriptText!$D$1)","v":""},{"$f":"IF(OrigTable!E1450=\"\",\"\",TEXT(OrigTable!E1450,\"00\"))","v":""},{"$f":"IF(OrigTable!E1450=\"\",\"\",ScriptText!$E$1&CHAR(10)&ScriptText!$C$1)","v":""},{"$f":"IF(OrigTable!F1450=\"\",\"\",ScriptText!$B$1&CHAR(10)&ScriptText!$D$1)","v":""},{"$f":"IF(OrigTable!F1450=\"\",\"\",TEXT(OrigTable!F1450,\"00\"))","v":""},{"$f":"IF(OrigTable!F1450=\"\",\"\",ScriptText!$E$1&CHAR(10)&ScriptText!$C$1)","v":""},{"$f":"IF(OrigTable!G1450=\"\",\"\",ScriptText!$B$1&CHAR(10)&ScriptText!$D$1)","v":""},{"$f":"IF(OrigTable!G1450=\"\",\"\",TEXT(OrigTable!G1450,\"00\"))","v":""},{"$f":"IF(OrigTable!G1450=\"\",\"\",ScriptText!$E$1&CHAR(10)&ScriptText!$C$1)","v":""},0]
["\n\n\n",{"$f":"IF(OrigTable!A1451=\"\",\"\",ScriptText!$B$1&CHAR(10)&ScriptText!$D$1)","v":""},{"$f":"IF(OrigTable!A1451=\"\",\"\",TEXT(OrigTable!A1451,\"00\"))","v":""},{"$f":"IF(OrigTable!A1451=\"\",\"\",ScriptText!$E$1&CHAR(10)&ScriptText!$C$1)","v":""},{"$f":"IF(OrigTable!B1451=\"\",\"\",ScriptText!$B$1&CHAR(10)&ScriptText!$D$1)","v":""},{"$f":"IF(OrigTable!B1451=\"\",\"\",TEXT(OrigTable!B1451,\"00\"))","v":""},{"$f":"IF(OrigTable!B1451=\"\",\"\",ScriptText!$E$1&CHAR(10)&ScriptText!C1446)","v":""},{"$f":"IF(OrigTable!C1451=\"\",\"\",ScriptText!$B$1&CHAR(10)&ScriptText!$D$1)","v":""},{"$f":"IF(OrigTable!C1451=\"\",\"\",IF(LEN(OrigTable!C1451)>255,LEFT(OrigTable!C1451,250)&\". . .\",OrigTable!C1451))","v":""},{"$f":"IF(OrigTable!C1451=\"\",\"\",ScriptText!$E$1&CHAR(10)&ScriptText!$C$1)","v":""},{"$f":"IF(OrigTable!D1451=\"\",\"\",ScriptText!$B$1&CHAR(10)&ScriptText!$D$1)","v":""},{"$f":"IF(OrigTable!D1451=\"\",\"\",TEXT(OrigTable!D1451,\"00\"))","v":""},{"$f":"IF(OrigTable!D1451=\"\",\"\",ScriptText!$E$1&CHAR(10)&ScriptText!$C$1)","v":""},{"$f":"IF(OrigTable!E1451=\"\",\"\",ScriptText!$B$1&CHAR(10)&ScriptText!$D$1)","v":""},{"$f":"IF(OrigTable!E1451=\"\",\"\",TEXT(OrigTable!E1451,\"00\"))","v":""},{"$f":"IF(OrigTable!E1451=\"\",\"\",ScriptText!$E$1&CHAR(10)&ScriptText!$C$1)","v":""},{"$f":"IF(OrigTable!F1451=\"\",\"\",ScriptText!$B$1&CHAR(10)&ScriptText!$D$1)","v":""},{"$f":"IF(OrigTable!F1451=\"\",\"\",TEXT(OrigTable!F1451,\"00\"))","v":""},{"$f":"IF(OrigTable!F1451=\"\",\"\",ScriptText!$E$1&CHAR(10)&ScriptText!$C$1)","v":""},{"$f":"IF(OrigTable!G1451=\"\",\"\",ScriptText!$B$1&CHAR(10)&ScriptText!$D$1)","v":""},{"$f":"IF(OrigTable!G1451=\"\",\"\",TEXT(OrigTable!G1451,\"00\"))","v":""},{"$f":"IF(OrigTable!G1451=\"\",\"\",ScriptText!$E$1&CHAR(10)&ScriptText!$C$1)","v":""},0]
["\n\n\n",{"$f":"IF(OrigTable!A1452=\"\",\"\",ScriptText!$B$1&CHAR(10)&ScriptText!$D$1)","v":""},{"$f":"IF(OrigTable!A1452=\"\",\"\",TEXT(OrigTable!A1452,\"00\"))","v":""},{"$f":"IF(OrigTable!A1452=\"\",\"\",ScriptText!$E$1&CHAR(10)&ScriptText!$C$1)","v":""},{"$f":"IF(OrigTable!B1452=\"\",\"\",ScriptText!$B$1&CHAR(10)&ScriptText!$D$1)","v":""},{"$f":"IF(OrigTable!B1452=\"\",\"\",TEXT(OrigTable!B1452,\"00\"))","v":""},{"$f":"IF(OrigTable!B1452=\"\",\"\",ScriptText!$E$1&CHAR(10)&ScriptText!C1447)","v":""},{"$f":"IF(OrigTable!C1452=\"\",\"\",ScriptText!$B$1&CHAR(10)&ScriptText!$D$1)","v":""},{"$f":"IF(OrigTable!C1452=\"\",\"\",IF(LEN(OrigTable!C1452)>255,LEFT(OrigTable!C1452,250)&\". . .\",OrigTable!C1452))","v":""},{"$f":"IF(OrigTable!C1452=\"\",\"\",ScriptText!$E$1&CHAR(10)&ScriptText!$C$1)","v":""},{"$f":"IF(OrigTable!D1452=\"\",\"\",ScriptText!$B$1&CHAR(10)&ScriptText!$D$1)","v":""},{"$f":"IF(OrigTable!D1452=\"\",\"\",TEXT(OrigTable!D1452,\"00\"))","v":""},{"$f":"IF(OrigTable!D1452=\"\",\"\",ScriptText!$E$1&CHAR(10)&ScriptText!$C$1)","v":""},{"$f":"IF(OrigTable!E1452=\"\",\"\",ScriptText!$B$1&CHAR(10)&ScriptText!$D$1)","v":""},{"$f":"IF(OrigTable!E1452=\"\",\"\",TEXT(OrigTable!E1452,\"00\"))","v":""},{"$f":"IF(OrigTable!E1452=\"\",\"\",ScriptText!$E$1&CHAR(10)&ScriptText!$C$1)","v":""},{"$f":"IF(OrigTable!F1452=\"\",\"\",ScriptText!$B$1&CHAR(10)&ScriptText!$D$1)","v":""},{"$f":"IF(OrigTable!F1452=\"\",\"\",TEXT(OrigTable!F1452,\"00\"))","v":""},{"$f":"IF(OrigTable!F1452=\"\",\"\",ScriptText!$E$1&CHAR(10)&ScriptText!$C$1)","v":""},{"$f":"IF(OrigTable!G1452=\"\",\"\",ScriptText!$B$1&CHAR(10)&ScriptText!$D$1)","v":""},{"$f":"IF(OrigTable!G1452=\"\",\"\",TEXT(OrigTable!G1452,\"00\"))","v":""},{"$f":"IF(OrigTable!G1452=\"\",\"\",ScriptText!$E$1&CHAR(10)&ScriptText!$C$1)","v":""},0]
["\n\n\n",{"$f":"IF(OrigTable!A1453=\"\",\"\",ScriptText!$B$1&CHAR(10)&ScriptText!$D$1)","v":""},{"$f":"IF(OrigTable!A1453=\"\",\"\",TEXT(OrigTable!A1453,\"00\"))","v":""},{"$f":"IF(OrigTable!A1453=\"\",\"\",ScriptText!$E$1&CHAR(10)&ScriptText!$C$1)","v":""},{"$f":"IF(OrigTable!B1453=\"\",\"\",ScriptText!$B$1&CHAR(10)&ScriptText!$D$1)","v":""},{"$f":"IF(OrigTable!B1453=\"\",\"\",TEXT(OrigTable!B1453,\"00\"))","v":""},{"$f":"IF(OrigTable!B1453=\"\",\"\",ScriptText!$E$1&CHAR(10)&ScriptText!C1448)","v":""},{"$f":"IF(OrigTable!C1453=\"\",\"\",ScriptText!$B$1&CHAR(10)&ScriptText!$D$1)","v":""},{"$f":"IF(OrigTable!C1453=\"\",\"\",IF(LEN(OrigTable!C1453)>255,LEFT(OrigTable!C1453,250)&\". . .\",OrigTable!C1453))","v":""},{"$f":"IF(OrigTable!C1453=\"\",\"\",ScriptText!$E$1&CHAR(10)&ScriptText!$C$1)","v":""},{"$f":"IF(OrigTable!D1453=\"\",\"\",ScriptText!$B$1&CHAR(10)&ScriptText!$D$1)","v":""},{"$f":"IF(OrigTable!D1453=\"\",\"\",TEXT(OrigTable!D1453,\"00\"))","v":""},{"$f":"IF(OrigTable!D1453=\"\",\"\",ScriptText!$E$1&CHAR(10)&ScriptText!$C$1)","v":""},{"$f":"IF(OrigTable!E1453=\"\",\"\",ScriptText!$B$1&CHAR(10)&ScriptText!$D$1)","v":""},{"$f":"IF(OrigTable!E1453=\"\",\"\",TEXT(OrigTable!E1453,\"00\"))","v":""},{"$f":"IF(OrigTable!E1453=\"\",\"\",ScriptText!$E$1&CHAR(10)&ScriptText!$C$1)","v":""},{"$f":"IF(OrigTable!F1453=\"\",\"\",ScriptText!$B$1&CHAR(10)&ScriptText!$D$1)","v":""},{"$f":"IF(OrigTable!F1453=\"\",\"\",TEXT(OrigTable!F1453,\"00\"))","v":""},{"$f":"IF(OrigTable!F1453=\"\",\"\",ScriptText!$E$1&CHAR(10)&ScriptText!$C$1)","v":""},{"$f":"IF(OrigTable!G1453=\"\",\"\",ScriptText!$B$1&CHAR(10)&ScriptText!$D$1)","v":""},{"$f":"IF(OrigTable!G1453=\"\",\"\",TEXT(OrigTable!G1453,\"00\"))","v":""},{"$f":"IF(OrigTable!G1453=\"\",\"\",ScriptText!$E$1&CHAR(10)&ScriptText!$C$1)","v":""},0]
["\n\n\n",{"$f":"IF(OrigTable!A1454=\"\",\"\",ScriptText!$B$1&CHAR(10)&ScriptText!$D$1)","v":""},{"$f":"IF(OrigTable!A1454=\"\",\"\",TEXT(OrigTable!A1454,\"00\"))","v":""},{"$f":"IF(OrigTable!A1454=\"\",\"\",ScriptText!$E$1&CHAR(10)&ScriptText!$C$1)","v":""},{"$f":"IF(OrigTable!B1454=\"\",\"\",ScriptText!$B$1&CHAR(10)&ScriptText!$D$1)","v":""},{"$f":"IF(OrigTable!B1454=\"\",\"\",TEXT(OrigTable!B1454,\"00\"))","v":""},{"$f":"IF(OrigTable!B1454=\"\",\"\",ScriptText!$E$1&CHAR(10)&ScriptText!C1449)","v":""},{"$f":"IF(OrigTable!C1454=\"\",\"\",ScriptText!$B$1&CHAR(10)&ScriptText!$D$1)","v":""},{"$f":"IF(OrigTable!C1454=\"\",\"\",IF(LEN(OrigTable!C1454)>255,LEFT(OrigTable!C1454,250)&\". . .\",OrigTable!C1454))","v":""},{"$f":"IF(OrigTable!C1454=\"\",\"\",ScriptText!$E$1&CHAR(10)&ScriptText!$C$1)","v":""},{"$f":"IF(OrigTable!D1454=\"\",\"\",ScriptText!$B$1&CHAR(10)&ScriptText!$D$1)","v":""},{"$f":"IF(OrigTable!D1454=\"\",\"\",TEXT(OrigTable!D1454,\"00\"))","v":""},{"$f":"IF(OrigTable!D1454=\"\",\"\",ScriptText!$E$1&CHAR(10)&ScriptText!$C$1)","v":""},{"$f":"IF(OrigTable!E1454=\"\",\"\",ScriptText!$B$1&CHAR(10)&ScriptText!$D$1)","v":""},{"$f":"IF(OrigTable!E1454=\"\",\"\",TEXT(OrigTable!E1454,\"00\"))","v":""},{"$f":"IF(OrigTable!E1454=\"\",\"\",ScriptText!$E$1&CHAR(10)&ScriptText!$C$1)","v":""},{"$f":"IF(OrigTable!F1454=\"\",\"\",ScriptText!$B$1&CHAR(10)&ScriptText!$D$1)","v":""},{"$f":"IF(OrigTable!F1454=\"\",\"\",TEXT(OrigTable!F1454,\"00\"))","v":""},{"$f":"IF(OrigTable!F1454=\"\",\"\",ScriptText!$E$1&CHAR(10)&ScriptText!$C$1)","v":""},{"$f":"IF(OrigTable!G1454=\"\",\"\",ScriptText!$B$1&CHAR(10)&ScriptText!$D$1)","v":""},{"$f":"IF(OrigTable!G1454=\"\",\"\",TEXT(OrigTable!G1454,\"00\"))","v":""},{"$f":"IF(OrigTable!G1454=\"\",\"\",ScriptText!$E$1&CHAR(10)&ScriptText!$C$1)","v":""},0]
["\n\n\n",{"$f":"IF(OrigTable!A1455=\"\",\"\",ScriptText!$B$1&CHAR(10)&ScriptText!$D$1)","v":""},{"$f":"IF(OrigTable!A1455=\"\",\"\",TEXT(OrigTable!A1455,\"00\"))","v":""},{"$f":"IF(OrigTable!A1455=\"\",\"\",ScriptText!$E$1&CHAR(10)&ScriptText!$C$1)","v":""},{"$f":"IF(OrigTable!B1455=\"\",\"\",ScriptText!$B$1&CHAR(10)&ScriptText!$D$1)","v":""},{"$f":"IF(OrigTable!B1455=\"\",\"\",TEXT(OrigTable!B1455,\"00\"))","v":""},{"$f":"IF(OrigTable!B1455=\"\",\"\",ScriptText!$E$1&CHAR(10)&ScriptText!C1450)","v":""},{"$f":"IF(OrigTable!C1455=\"\",\"\",ScriptText!$B$1&CHAR(10)&ScriptText!$D$1)","v":""},{"$f":"IF(OrigTable!C1455=\"\",\"\",IF(LEN(OrigTable!C1455)>255,LEFT(OrigTable!C1455,250)&\". . .\",OrigTable!C1455))","v":""},{"$f":"IF(OrigTable!C1455=\"\",\"\",ScriptText!$E$1&CHAR(10)&ScriptText!$C$1)","v":""},{"$f":"IF(OrigTable!D1455=\"\",\"\",ScriptText!$B$1&CHAR(10)&ScriptText!$D$1)","v":""},{"$f":"IF(OrigTable!D1455=\"\",\"\",TEXT(OrigTable!D1455,\"00\"))","v":""},{"$f":"IF(OrigTable!D1455=\"\",\"\",ScriptText!$E$1&CHAR(10)&ScriptText!$C$1)","v":""},{"$f":"IF(OrigTable!E1455=\"\",\"\",ScriptText!$B$1&CHAR(10)&ScriptText!$D$1)","v":""},{"$f":"IF(OrigTable!E1455=\"\",\"\",TEXT(OrigTable!E1455,\"00\"))","v":""},{"$f":"IF(OrigTable!E1455=\"\",\"\",ScriptText!$E$1&CHAR(10)&ScriptText!$C$1)","v":""},{"$f":"IF(OrigTable!F1455=\"\",\"\",ScriptText!$B$1&CHAR(10)&ScriptText!$D$1)","v":""},{"$f":"IF(OrigTable!F1455=\"\",\"\",TEXT(OrigTable!F1455,\"00\"))","v":""},{"$f":"IF(OrigTable!F1455=\"\",\"\",ScriptText!$E$1&CHAR(10)&ScriptText!$C$1)","v":""},{"$f":"IF(OrigTable!G1455=\"\",\"\",ScriptText!$B$1&CHAR(10)&ScriptText!$D$1)","v":""},{"$f":"IF(OrigTable!G1455=\"\",\"\",TEXT(OrigTable!G1455,\"00\"))","v":""},{"$f":"IF(OrigTable!G1455=\"\",\"\",ScriptText!$E$1&CHAR(10)&ScriptText!$C$1)","v":""},0]
["\n\n\n",{"$f":"IF(OrigTable!A1456=\"\",\"\",ScriptText!$B$1&CHAR(10)&ScriptText!$D$1)","v":""},{"$f":"IF(OrigTable!A1456=\"\",\"\",TEXT(OrigTable!A1456,\"00\"))","v":""},{"$f":"IF(OrigTable!A1456=\"\",\"\",ScriptText!$E$1&CHAR(10)&ScriptText!$C$1)","v":""},{"$f":"IF(OrigTable!B1456=\"\",\"\",ScriptText!$B$1&CHAR(10)&ScriptText!$D$1)","v":""},{"$f":"IF(OrigTable!B1456=\"\",\"\",TEXT(OrigTable!B1456,\"00\"))","v":""},{"$f":"IF(OrigTable!B1456=\"\",\"\",ScriptText!$E$1&CHAR(10)&ScriptText!C1451)","v":""},{"$f":"IF(OrigTable!C1456=\"\",\"\",ScriptText!$B$1&CHAR(10)&ScriptText!$D$1)","v":""},{"$f":"IF(OrigTable!C1456=\"\",\"\",IF(LEN(OrigTable!C1456)>255,LEFT(OrigTable!C1456,250)&\". . .\",OrigTable!C1456))","v":""},{"$f":"IF(OrigTable!C1456=\"\",\"\",ScriptText!$E$1&CHAR(10)&ScriptText!$C$1)","v":""},{"$f":"IF(OrigTable!D1456=\"\",\"\",ScriptText!$B$1&CHAR(10)&ScriptText!$D$1)","v":""},{"$f":"IF(OrigTable!D1456=\"\",\"\",TEXT(OrigTable!D1456,\"00\"))","v":""},{"$f":"IF(OrigTable!D1456=\"\",\"\",ScriptText!$E$1&CHAR(10)&ScriptText!$C$1)","v":""},{"$f":"IF(OrigTable!E1456=\"\",\"\",ScriptText!$B$1&CHAR(10)&ScriptText!$D$1)","v":""},{"$f":"IF(OrigTable!E1456=\"\",\"\",TEXT(OrigTable!E1456,\"00\"))","v":""},{"$f":"IF(OrigTable!E1456=\"\",\"\",ScriptText!$E$1&CHAR(10)&ScriptText!$C$1)","v":""},{"$f":"IF(OrigTable!F1456=\"\",\"\",ScriptText!$B$1&CHAR(10)&ScriptText!$D$1)","v":""},{"$f":"IF(OrigTable!F1456=\"\",\"\",TEXT(OrigTable!F1456,\"00\"))","v":""},{"$f":"IF(OrigTable!F1456=\"\",\"\",ScriptText!$E$1&CHAR(10)&ScriptText!$C$1)","v":""},{"$f":"IF(OrigTable!G1456=\"\",\"\",ScriptText!$B$1&CHAR(10)&ScriptText!$D$1)","v":""},{"$f":"IF(OrigTable!G1456=\"\",\"\",TEXT(OrigTable!G1456,\"00\"))","v":""},{"$f":"IF(OrigTable!G1456=\"\",\"\",ScriptText!$E$1&CHAR(10)&ScriptText!$C$1)","v":""},0]
["\n\n\n",{"$f":"IF(OrigTable!A1457=\"\",\"\",ScriptText!$B$1&CHAR(10)&ScriptText!$D$1)","v":""},{"$f":"IF(OrigTable!A1457=\"\",\"\",TEXT(OrigTable!A1457,\"00\"))","v":""},{"$f":"IF(OrigTable!A1457=\"\",\"\",ScriptText!$E$1&CHAR(10)&ScriptText!$C$1)","v":""},{"$f":"IF(OrigTable!B1457=\"\",\"\",ScriptText!$B$1&CHAR(10)&ScriptText!$D$1)","v":""},{"$f":"IF(OrigTable!B1457=\"\",\"\",TEXT(OrigTable!B1457,\"00\"))","v":""},{"$f":"IF(OrigTable!B1457=\"\",\"\",ScriptText!$E$1&CHAR(10)&ScriptText!C1452)","v":""},{"$f":"IF(OrigTable!C1457=\"\",\"\",ScriptText!$B$1&CHAR(10)&ScriptText!$D$1)","v":""},{"$f":"IF(OrigTable!C1457=\"\",\"\",IF(LEN(OrigTable!C1457)>255,LEFT(OrigTable!C1457,250)&\". . .\",OrigTable!C1457))","v":""},{"$f":"IF(OrigTable!C1457=\"\",\"\",ScriptText!$E$1&CHAR(10)&ScriptText!$C$1)","v":""},{"$f":"IF(OrigTable!D1457=\"\",\"\",ScriptText!$B$1&CHAR(10)&ScriptText!$D$1)","v":""},{"$f":"IF(OrigTable!D1457=\"\",\"\",TEXT(OrigTable!D1457,\"00\"))","v":""},{"$f":"IF(OrigTable!D1457=\"\",\"\",ScriptText!$E$1&CHAR(10)&ScriptText!$C$1)","v":""},{"$f":"IF(OrigTable!E1457=\"\",\"\",ScriptText!$B$1&CHAR(10)&ScriptText!$D$1)","v":""},{"$f":"IF(OrigTable!E1457=\"\",\"\",TEXT(OrigTable!E1457,\"00\"))","v":""},{"$f":"IF(OrigTable!E1457=\"\",\"\",ScriptText!$E$1&CHAR(10)&ScriptText!$C$1)","v":""},{"$f":"IF(OrigTable!F1457=\"\",\"\",ScriptText!$B$1&CHAR(10)&ScriptText!$D$1)","v":""},{"$f":"IF(OrigTable!F1457=\"\",\"\",TEXT(OrigTable!F1457,\"00\"))","v":""},{"$f":"IF(OrigTable!F1457=\"\",\"\",ScriptText!$E$1&CHAR(10)&ScriptText!$C$1)","v":""},{"$f":"IF(OrigTable!G1457=\"\",\"\",ScriptText!$B$1&CHAR(10)&ScriptText!$D$1)","v":""},{"$f":"IF(OrigTable!G1457=\"\",\"\",TEXT(OrigTable!G1457,\"00\"))","v":""},{"$f":"IF(OrigTable!G1457=\"\",\"\",ScriptText!$E$1&CHAR(10)&ScriptText!$C$1)","v":""},0]
["\n\n\n",{"$f":"IF(OrigTable!A1458=\"\",\"\",ScriptText!$B$1&CHAR(10)&ScriptText!$D$1)","v":""},{"$f":"IF(OrigTable!A1458=\"\",\"\",TEXT(OrigTable!A1458,\"00\"))","v":""},{"$f":"IF(OrigTable!A1458=\"\",\"\",ScriptText!$E$1&CHAR(10)&ScriptText!$C$1)","v":""},{"$f":"IF(OrigTable!B1458=\"\",\"\",ScriptText!$B$1&CHAR(10)&ScriptText!$D$1)","v":""},{"$f":"IF(OrigTable!B1458=\"\",\"\",TEXT(OrigTable!B1458,\"00\"))","v":""},{"$f":"IF(OrigTable!B1458=\"\",\"\",ScriptText!$E$1&CHAR(10)&ScriptText!C1453)","v":""},{"$f":"IF(OrigTable!C1458=\"\",\"\",ScriptText!$B$1&CHAR(10)&ScriptText!$D$1)","v":""},{"$f":"IF(OrigTable!C1458=\"\",\"\",IF(LEN(OrigTable!C1458)>255,LEFT(OrigTable!C1458,250)&\". . .\",OrigTable!C1458))","v":""},{"$f":"IF(OrigTable!C1458=\"\",\"\",ScriptText!$E$1&CHAR(10)&ScriptText!$C$1)","v":""},{"$f":"IF(OrigTable!D1458=\"\",\"\",ScriptText!$B$1&CHAR(10)&ScriptText!$D$1)","v":""},{"$f":"IF(OrigTable!D1458=\"\",\"\",TEXT(OrigTable!D1458,\"00\"))","v":""},{"$f":"IF(OrigTable!D1458=\"\",\"\",ScriptText!$E$1&CHAR(10)&ScriptText!$C$1)","v":""},{"$f":"IF(OrigTable!E1458=\"\",\"\",ScriptText!$B$1&CHAR(10)&ScriptText!$D$1)","v":""},{"$f":"IF(OrigTable!E1458=\"\",\"\",TEXT(OrigTable!E1458,\"00\"))","v":""},{"$f":"IF(OrigTable!E1458=\"\",\"\",ScriptText!$E$1&CHAR(10)&ScriptText!$C$1)","v":""},{"$f":"IF(OrigTable!F1458=\"\",\"\",ScriptText!$B$1&CHAR(10)&ScriptText!$D$1)","v":""},{"$f":"IF(OrigTable!F1458=\"\",\"\",TEXT(OrigTable!F1458,\"00\"))","v":""},{"$f":"IF(OrigTable!F1458=\"\",\"\",ScriptText!$E$1&CHAR(10)&ScriptText!$C$1)","v":""},{"$f":"IF(OrigTable!G1458=\"\",\"\",ScriptText!$B$1&CHAR(10)&ScriptText!$D$1)","v":""},{"$f":"IF(OrigTable!G1458=\"\",\"\",TEXT(OrigTable!G1458,\"00\"))","v":""},{"$f":"IF(OrigTable!G1458=\"\",\"\",ScriptText!$E$1&CHAR(10)&ScriptText!$C$1)","v":""},0]
["\n\n\n",{"$f":"IF(OrigTable!A1459=\"\",\"\",ScriptText!$B$1&CHAR(10)&ScriptText!$D$1)","v":""},{"$f":"IF(OrigTable!A1459=\"\",\"\",TEXT(OrigTable!A1459,\"00\"))","v":""},{"$f":"IF(OrigTable!A1459=\"\",\"\",ScriptText!$E$1&CHAR(10)&ScriptText!$C$1)","v":""},{"$f":"IF(OrigTable!B1459=\"\",\"\",ScriptText!$B$1&CHAR(10)&ScriptText!$D$1)","v":""},{"$f":"IF(OrigTable!B1459=\"\",\"\",TEXT(OrigTable!B1459,\"00\"))","v":""},{"$f":"IF(OrigTable!B1459=\"\",\"\",ScriptText!$E$1&CHAR(10)&ScriptText!C1454)","v":""},{"$f":"IF(OrigTable!C1459=\"\",\"\",ScriptText!$B$1&CHAR(10)&ScriptText!$D$1)","v":""},{"$f":"IF(OrigTable!C1459=\"\",\"\",IF(LEN(OrigTable!C1459)>255,LEFT(OrigTable!C1459,250)&\". . .\",OrigTable!C1459))","v":""},{"$f":"IF(OrigTable!C1459=\"\",\"\",ScriptText!$E$1&CHAR(10)&ScriptText!$C$1)","v":""},{"$f":"IF(OrigTable!D1459=\"\",\"\",ScriptText!$B$1&CHAR(10)&ScriptText!$D$1)","v":""},{"$f":"IF(OrigTable!D1459=\"\",\"\",TEXT(OrigTable!D1459,\"00\"))","v":""},{"$f":"IF(OrigTable!D1459=\"\",\"\",ScriptText!$E$1&CHAR(10)&ScriptText!$C$1)","v":""},{"$f":"IF(OrigTable!E1459=\"\",\"\",ScriptText!$B$1&CHAR(10)&ScriptText!$D$1)","v":""},{"$f":"IF(OrigTable!E1459=\"\",\"\",TEXT(OrigTable!E1459,\"00\"))","v":""},{"$f":"IF(OrigTable!E1459=\"\",\"\",ScriptText!$E$1&CHAR(10)&ScriptText!$C$1)","v":""},{"$f":"IF(OrigTable!F1459=\"\",\"\",ScriptText!$B$1&CHAR(10)&ScriptText!$D$1)","v":""},{"$f":"IF(OrigTable!F1459=\"\",\"\",TEXT(OrigTable!F1459,\"00\"))","v":""},{"$f":"IF(OrigTable!F1459=\"\",\"\",ScriptText!$E$1&CHAR(10)&ScriptText!$C$1)","v":""},{"$f":"IF(OrigTable!G1459=\"\",\"\",ScriptText!$B$1&CHAR(10)&ScriptText!$D$1)","v":""},{"$f":"IF(OrigTable!G1459=\"\",\"\",TEXT(OrigTable!G1459,\"00\"))","v":""},{"$f":"IF(OrigTable!G1459=\"\",\"\",ScriptText!$E$1&CHAR(10)&ScriptText!$C$1)","v":""},0]
["\n\n\n",{"$f":"IF(OrigTable!A1460=\"\",\"\",ScriptText!$B$1&CHAR(10)&ScriptText!$D$1)","v":""},{"$f":"IF(OrigTable!A1460=\"\",\"\",TEXT(OrigTable!A1460,\"00\"))","v":""},{"$f":"IF(OrigTable!A1460=\"\",\"\",ScriptText!$E$1&CHAR(10)&ScriptText!$C$1)","v":""},{"$f":"IF(OrigTable!B1460=\"\",\"\",ScriptText!$B$1&CHAR(10)&ScriptText!$D$1)","v":""},{"$f":"IF(OrigTable!B1460=\"\",\"\",TEXT(OrigTable!B1460,\"00\"))","v":""},{"$f":"IF(OrigTable!B1460=\"\",\"\",ScriptText!$E$1&CHAR(10)&ScriptText!C1455)","v":""},{"$f":"IF(OrigTable!C1460=\"\",\"\",ScriptText!$B$1&CHAR(10)&ScriptText!$D$1)","v":""},{"$f":"IF(OrigTable!C1460=\"\",\"\",IF(LEN(OrigTable!C1460)>255,LEFT(OrigTable!C1460,250)&\". . .\",OrigTable!C1460))","v":""},{"$f":"IF(OrigTable!C1460=\"\",\"\",ScriptText!$E$1&CHAR(10)&ScriptText!$C$1)","v":""},{"$f":"IF(OrigTable!D1460=\"\",\"\",ScriptText!$B$1&CHAR(10)&ScriptText!$D$1)","v":""},{"$f":"IF(OrigTable!D1460=\"\",\"\",TEXT(OrigTable!D1460,\"00\"))","v":""},{"$f":"IF(OrigTable!D1460=\"\",\"\",ScriptText!$E$1&CHAR(10)&ScriptText!$C$1)","v":""},{"$f":"IF(OrigTable!E1460=\"\",\"\",ScriptText!$B$1&CHAR(10)&ScriptText!$D$1)","v":""},{"$f":"IF(OrigTable!E1460=\"\",\"\",TEXT(OrigTable!E1460,\"00\"))","v":""},{"$f":"IF(OrigTable!E1460=\"\",\"\",ScriptText!$E$1&CHAR(10)&ScriptText!$C$1)","v":""},{"$f":"IF(OrigTable!F1460=\"\",\"\",ScriptText!$B$1&CHAR(10)&ScriptText!$D$1)","v":""},{"$f":"IF(OrigTable!F1460=\"\",\"\",TEXT(OrigTable!F1460,\"00\"))","v":""},{"$f":"IF(OrigTable!F1460=\"\",\"\",ScriptText!$E$1&CHAR(10)&ScriptText!$C$1)","v":""},{"$f":"IF(OrigTable!G1460=\"\",\"\",ScriptText!$B$1&CHAR(10)&ScriptText!$D$1)","v":""},{"$f":"IF(OrigTable!G1460=\"\",\"\",TEXT(OrigTable!G1460,\"00\"))","v":""},{"$f":"IF(OrigTable!G1460=\"\",\"\",ScriptText!$E$1&CHAR(10)&ScriptText!$C$1)","v":""},0]
["\n\n\n",{"$f":"IF(OrigTable!A1461=\"\",\"\",ScriptText!$B$1&CHAR(10)&ScriptText!$D$1)","v":""},{"$f":"IF(OrigTable!A1461=\"\",\"\",TEXT(OrigTable!A1461,\"00\"))","v":""},{"$f":"IF(OrigTable!A1461=\"\",\"\",ScriptText!$E$1&CHAR(10)&ScriptText!$C$1)","v":""},{"$f":"IF(OrigTable!B1461=\"\",\"\",ScriptText!$B$1&CHAR(10)&ScriptText!$D$1)","v":""},{"$f":"IF(OrigTable!B1461=\"\",\"\",TEXT(OrigTable!B1461,\"00\"))","v":""},{"$f":"IF(OrigTable!B1461=\"\",\"\",ScriptText!$E$1&CHAR(10)&ScriptText!C1456)","v":""},{"$f":"IF(OrigTable!C1461=\"\",\"\",ScriptText!$B$1&CHAR(10)&ScriptText!$D$1)","v":""},{"$f":"IF(OrigTable!C1461=\"\",\"\",IF(LEN(OrigTable!C1461)>255,LEFT(OrigTable!C1461,250)&\". . .\",OrigTable!C1461))","v":""},{"$f":"IF(OrigTable!C1461=\"\",\"\",ScriptText!$E$1&CHAR(10)&ScriptText!$C$1)","v":""},{"$f":"IF(OrigTable!D1461=\"\",\"\",ScriptText!$B$1&CHAR(10)&ScriptText!$D$1)","v":""},{"$f":"IF(OrigTable!D1461=\"\",\"\",TEXT(OrigTable!D1461,\"00\"))","v":""},{"$f":"IF(OrigTable!D1461=\"\",\"\",ScriptText!$E$1&CHAR(10)&ScriptText!$C$1)","v":""},{"$f":"IF(OrigTable!E1461=\"\",\"\",ScriptText!$B$1&CHAR(10)&ScriptText!$D$1)","v":""},{"$f":"IF(OrigTable!E1461=\"\",\"\",TEXT(OrigTable!E1461,\"00\"))","v":""},{"$f":"IF(OrigTable!E1461=\"\",\"\",ScriptText!$E$1&CHAR(10)&ScriptText!$C$1)","v":""},{"$f":"IF(OrigTable!F1461=\"\",\"\",ScriptText!$B$1&CHAR(10)&ScriptText!$D$1)","v":""},{"$f":"IF(OrigTable!F1461=\"\",\"\",TEXT(OrigTable!F1461,\"00\"))","v":""},{"$f":"IF(OrigTable!F1461=\"\",\"\",ScriptText!$E$1&CHAR(10)&ScriptText!$C$1)","v":""},{"$f":"IF(OrigTable!G1461=\"\",\"\",ScriptText!$B$1&CHAR(10)&ScriptText!$D$1)","v":""},{"$f":"IF(OrigTable!G1461=\"\",\"\",TEXT(OrigTable!G1461,\"00\"))","v":""},{"$f":"IF(OrigTable!G1461=\"\",\"\",ScriptText!$E$1&CHAR(10)&ScriptText!$C$1)","v":""},0]
["\n\n\n",{"$f":"IF(OrigTable!A1462=\"\",\"\",ScriptText!$B$1&CHAR(10)&ScriptText!$D$1)","v":""},{"$f":"IF(OrigTable!A1462=\"\",\"\",TEXT(OrigTable!A1462,\"00\"))","v":""},{"$f":"IF(OrigTable!A1462=\"\",\"\",ScriptText!$E$1&CHAR(10)&ScriptText!$C$1)","v":""},{"$f":"IF(OrigTable!B1462=\"\",\"\",ScriptText!$B$1&CHAR(10)&ScriptText!$D$1)","v":""},{"$f":"IF(OrigTable!B1462=\"\",\"\",TEXT(OrigTable!B1462,\"00\"))","v":""},{"$f":"IF(OrigTable!B1462=\"\",\"\",ScriptText!$E$1&CHAR(10)&ScriptText!C1457)","v":""},{"$f":"IF(OrigTable!C1462=\"\",\"\",ScriptText!$B$1&CHAR(10)&ScriptText!$D$1)","v":""},{"$f":"IF(OrigTable!C1462=\"\",\"\",IF(LEN(OrigTable!C1462)>255,LEFT(OrigTable!C1462,250)&\". . .\",OrigTable!C1462))","v":""},{"$f":"IF(OrigTable!C1462=\"\",\"\",ScriptText!$E$1&CHAR(10)&ScriptText!$C$1)","v":""},{"$f":"IF(OrigTable!D1462=\"\",\"\",ScriptText!$B$1&CHAR(10)&ScriptText!$D$1)","v":""},{"$f":"IF(OrigTable!D1462=\"\",\"\",TEXT(OrigTable!D1462,\"00\"))","v":""},{"$f":"IF(OrigTable!D1462=\"\",\"\",ScriptText!$E$1&CHAR(10)&ScriptText!$C$1)","v":""},{"$f":"IF(OrigTable!E1462=\"\",\"\",ScriptText!$B$1&CHAR(10)&ScriptText!$D$1)","v":""},{"$f":"IF(OrigTable!E1462=\"\",\"\",TEXT(OrigTable!E1462,\"00\"))","v":""},{"$f":"IF(OrigTable!E1462=\"\",\"\",ScriptText!$E$1&CHAR(10)&ScriptText!$C$1)","v":""},{"$f":"IF(OrigTable!F1462=\"\",\"\",ScriptText!$B$1&CHAR(10)&ScriptText!$D$1)","v":""},{"$f":"IF(OrigTable!F1462=\"\",\"\",TEXT(OrigTable!F1462,\"00\"))","v":""},{"$f":"IF(OrigTable!F1462=\"\",\"\",ScriptText!$E$1&CHAR(10)&ScriptText!$C$1)","v":""},{"$f":"IF(OrigTable!G1462=\"\",\"\",ScriptText!$B$1&CHAR(10)&ScriptText!$D$1)","v":""},{"$f":"IF(OrigTable!G1462=\"\",\"\",TEXT(OrigTable!G1462,\"00\"))","v":""},{"$f":"IF(OrigTable!G1462=\"\",\"\",ScriptText!$E$1&CHAR(10)&ScriptText!$C$1)","v":""},0]
["\n\n\n",{"$f":"IF(OrigTable!A1463=\"\",\"\",ScriptText!$B$1&CHAR(10)&ScriptText!$D$1)","v":""},{"$f":"IF(OrigTable!A1463=\"\",\"\",TEXT(OrigTable!A1463,\"00\"))","v":""},{"$f":"IF(OrigTable!A1463=\"\",\"\",ScriptText!$E$1&CHAR(10)&ScriptText!$C$1)","v":""},{"$f":"IF(OrigTable!B1463=\"\",\"\",ScriptText!$B$1&CHAR(10)&ScriptText!$D$1)","v":""},{"$f":"IF(OrigTable!B1463=\"\",\"\",TEXT(OrigTable!B1463,\"00\"))","v":""},{"$f":"IF(OrigTable!B1463=\"\",\"\",ScriptText!$E$1&CHAR(10)&ScriptText!C1458)","v":""},{"$f":"IF(OrigTable!C1463=\"\",\"\",ScriptText!$B$1&CHAR(10)&ScriptText!$D$1)","v":""},{"$f":"IF(OrigTable!C1463=\"\",\"\",IF(LEN(OrigTable!C1463)>255,LEFT(OrigTable!C1463,250)&\". . .\",OrigTable!C1463))","v":""},{"$f":"IF(OrigTable!C1463=\"\",\"\",ScriptText!$E$1&CHAR(10)&ScriptText!$C$1)","v":""},{"$f":"IF(OrigTable!D1463=\"\",\"\",ScriptText!$B$1&CHAR(10)&ScriptText!$D$1)","v":""},{"$f":"IF(OrigTable!D1463=\"\",\"\",TEXT(OrigTable!D1463,\"00\"))","v":""},{"$f":"IF(OrigTable!D1463=\"\",\"\",ScriptText!$E$1&CHAR(10)&ScriptText!$C$1)","v":""},{"$f":"IF(OrigTable!E1463=\"\",\"\",ScriptText!$B$1&CHAR(10)&ScriptText!$D$1)","v":""},{"$f":"IF(OrigTable!E1463=\"\",\"\",TEXT(OrigTable!E1463,\"00\"))","v":""},{"$f":"IF(OrigTable!E1463=\"\",\"\",ScriptText!$E$1&CHAR(10)&ScriptText!$C$1)","v":""},{"$f":"IF(OrigTable!F1463=\"\",\"\",ScriptText!$B$1&CHAR(10)&ScriptText!$D$1)","v":""},{"$f":"IF(OrigTable!F1463=\"\",\"\",TEXT(OrigTable!F1463,\"00\"))","v":""},{"$f":"IF(OrigTable!F1463=\"\",\"\",ScriptText!$E$1&CHAR(10)&ScriptText!$C$1)","v":""},{"$f":"IF(OrigTable!G1463=\"\",\"\",ScriptText!$B$1&CHAR(10)&ScriptText!$D$1)","v":""},{"$f":"IF(OrigTable!G1463=\"\",\"\",TEXT(OrigTable!G1463,\"00\"))","v":""},{"$f":"IF(OrigTable!G1463=\"\",\"\",ScriptText!$E$1&CHAR(10)&ScriptText!$C$1)","v":""},0]
["\n\n\n",{"$f":"IF(OrigTable!A1464=\"\",\"\",ScriptText!$B$1&CHAR(10)&ScriptText!$D$1)","v":""},{"$f":"IF(OrigTable!A1464=\"\",\"\",TEXT(OrigTable!A1464,\"00\"))","v":""},{"$f":"IF(OrigTable!A1464=\"\",\"\",ScriptText!$E$1&CHAR(10)&ScriptText!$C$1)","v":""},{"$f":"IF(OrigTable!B1464=\"\",\"\",ScriptText!$B$1&CHAR(10)&ScriptText!$D$1)","v":""},{"$f":"IF(OrigTable!B1464=\"\",\"\",TEXT(OrigTable!B1464,\"00\"))","v":""},{"$f":"IF(OrigTable!B1464=\"\",\"\",ScriptText!$E$1&CHAR(10)&ScriptText!C1459)","v":""},{"$f":"IF(OrigTable!C1464=\"\",\"\",ScriptText!$B$1&CHAR(10)&ScriptText!$D$1)","v":""},{"$f":"IF(OrigTable!C1464=\"\",\"\",IF(LEN(OrigTable!C1464)>255,LEFT(OrigTable!C1464,250)&\". . .\",OrigTable!C1464))","v":""},{"$f":"IF(OrigTable!C1464=\"\",\"\",ScriptText!$E$1&CHAR(10)&ScriptText!$C$1)","v":""},{"$f":"IF(OrigTable!D1464=\"\",\"\",ScriptText!$B$1&CHAR(10)&ScriptText!$D$1)","v":""},{"$f":"IF(OrigTable!D1464=\"\",\"\",TEXT(OrigTable!D1464,\"00\"))","v":""},{"$f":"IF(OrigTable!D1464=\"\",\"\",ScriptText!$E$1&CHAR(10)&ScriptText!$C$1)","v":""},{"$f":"IF(OrigTable!E1464=\"\",\"\",ScriptText!$B$1&CHAR(10)&ScriptText!$D$1)","v":""},{"$f":"IF(OrigTable!E1464=\"\",\"\",TEXT(OrigTable!E1464,\"00\"))","v":""},{"$f":"IF(OrigTable!E1464=\"\",\"\",ScriptText!$E$1&CHAR(10)&ScriptText!$C$1)","v":""},{"$f":"IF(OrigTable!F1464=\"\",\"\",ScriptText!$B$1&CHAR(10)&ScriptText!$D$1)","v":""},{"$f":"IF(OrigTable!F1464=\"\",\"\",TEXT(OrigTable!F1464,\"00\"))","v":""},{"$f":"IF(OrigTable!F1464=\"\",\"\",ScriptText!$E$1&CHAR(10)&ScriptText!$C$1)","v":""},{"$f":"IF(OrigTable!G1464=\"\",\"\",ScriptText!$B$1&CHAR(10)&ScriptText!$D$1)","v":""},{"$f":"IF(OrigTable!G1464=\"\",\"\",TEXT(OrigTable!G1464,\"00\"))","v":""},{"$f":"IF(OrigTable!G1464=\"\",\"\",ScriptText!$E$1&CHAR(10)&ScriptText!$C$1)","v":""},0]
["\n\n\n",{"$f":"IF(OrigTable!A1465=\"\",\"\",ScriptText!$B$1&CHAR(10)&ScriptText!$D$1)","v":""},{"$f":"IF(OrigTable!A1465=\"\",\"\",TEXT(OrigTable!A1465,\"00\"))","v":""},{"$f":"IF(OrigTable!A1465=\"\",\"\",ScriptText!$E$1&CHAR(10)&ScriptText!$C$1)","v":""},{"$f":"IF(OrigTable!B1465=\"\",\"\",ScriptText!$B$1&CHAR(10)&ScriptText!$D$1)","v":""},{"$f":"IF(OrigTable!B1465=\"\",\"\",TEXT(OrigTable!B1465,\"00\"))","v":""},{"$f":"IF(OrigTable!B1465=\"\",\"\",ScriptText!$E$1&CHAR(10)&ScriptText!C1460)","v":""},{"$f":"IF(OrigTable!C1465=\"\",\"\",ScriptText!$B$1&CHAR(10)&ScriptText!$D$1)","v":""},{"$f":"IF(OrigTable!C1465=\"\",\"\",IF(LEN(OrigTable!C1465)>255,LEFT(OrigTable!C1465,250)&\". . .\",OrigTable!C1465))","v":""},{"$f":"IF(OrigTable!C1465=\"\",\"\",ScriptText!$E$1&CHAR(10)&ScriptText!$C$1)","v":""},{"$f":"IF(OrigTable!D1465=\"\",\"\",ScriptText!$B$1&CHAR(10)&ScriptText!$D$1)","v":""},{"$f":"IF(OrigTable!D1465=\"\",\"\",TEXT(OrigTable!D1465,\"00\"))","v":""},{"$f":"IF(OrigTable!D1465=\"\",\"\",ScriptText!$E$1&CHAR(10)&ScriptText!$C$1)","v":""},{"$f":"IF(OrigTable!E1465=\"\",\"\",ScriptText!$B$1&CHAR(10)&ScriptText!$D$1)","v":""},{"$f":"IF(OrigTable!E1465=\"\",\"\",TEXT(OrigTable!E1465,\"00\"))","v":""},{"$f":"IF(OrigTable!E1465=\"\",\"\",ScriptText!$E$1&CHAR(10)&ScriptText!$C$1)","v":""},{"$f":"IF(OrigTable!F1465=\"\",\"\",ScriptText!$B$1&CHAR(10)&ScriptText!$D$1)","v":""},{"$f":"IF(OrigTable!F1465=\"\",\"\",TEXT(OrigTable!F1465,\"00\"))","v":""},{"$f":"IF(OrigTable!F1465=\"\",\"\",ScriptText!$E$1&CHAR(10)&ScriptText!$C$1)","v":""},{"$f":"IF(OrigTable!G1465=\"\",\"\",ScriptText!$B$1&CHAR(10)&ScriptText!$D$1)","v":""},{"$f":"IF(OrigTable!G1465=\"\",\"\",TEXT(OrigTable!G1465,\"00\"))","v":""},{"$f":"IF(OrigTable!G1465=\"\",\"\",ScriptText!$E$1&CHAR(10)&ScriptText!$C$1)","v":""},0]
["\n\n\n",{"$f":"IF(OrigTable!A1466=\"\",\"\",ScriptText!$B$1&CHAR(10)&ScriptText!$D$1)","v":""},{"$f":"IF(OrigTable!A1466=\"\",\"\",TEXT(OrigTable!A1466,\"00\"))","v":""},{"$f":"IF(OrigTable!A1466=\"\",\"\",ScriptText!$E$1&CHAR(10)&ScriptText!$C$1)","v":""},{"$f":"IF(OrigTable!B1466=\"\",\"\",ScriptText!$B$1&CHAR(10)&ScriptText!$D$1)","v":""},{"$f":"IF(OrigTable!B1466=\"\",\"\",TEXT(OrigTable!B1466,\"00\"))","v":""},{"$f":"IF(OrigTable!B1466=\"\",\"\",ScriptText!$E$1&CHAR(10)&ScriptText!C1461)","v":""},{"$f":"IF(OrigTable!C1466=\"\",\"\",ScriptText!$B$1&CHAR(10)&ScriptText!$D$1)","v":""},{"$f":"IF(OrigTable!C1466=\"\",\"\",IF(LEN(OrigTable!C1466)>255,LEFT(OrigTable!C1466,250)&\". . .\",OrigTable!C1466))","v":""},{"$f":"IF(OrigTable!C1466=\"\",\"\",ScriptText!$E$1&CHAR(10)&ScriptText!$C$1)","v":""},{"$f":"IF(OrigTable!D1466=\"\",\"\",ScriptText!$B$1&CHAR(10)&ScriptText!$D$1)","v":""},{"$f":"IF(OrigTable!D1466=\"\",\"\",TEXT(OrigTable!D1466,\"00\"))","v":""},{"$f":"IF(OrigTable!D1466=\"\",\"\",ScriptText!$E$1&CHAR(10)&ScriptText!$C$1)","v":""},{"$f":"IF(OrigTable!E1466=\"\",\"\",ScriptText!$B$1&CHAR(10)&ScriptText!$D$1)","v":""},{"$f":"IF(OrigTable!E1466=\"\",\"\",TEXT(OrigTable!E1466,\"00\"))","v":""},{"$f":"IF(OrigTable!E1466=\"\",\"\",ScriptText!$E$1&CHAR(10)&ScriptText!$C$1)","v":""},{"$f":"IF(OrigTable!F1466=\"\",\"\",ScriptText!$B$1&CHAR(10)&ScriptText!$D$1)","v":""},{"$f":"IF(OrigTable!F1466=\"\",\"\",TEXT(OrigTable!F1466,\"00\"))","v":""},{"$f":"IF(OrigTable!F1466=\"\",\"\",ScriptText!$E$1&CHAR(10)&ScriptText!$C$1)","v":""},{"$f":"IF(OrigTable!G1466=\"\",\"\",ScriptText!$B$1&CHAR(10)&ScriptText!$D$1)","v":""},{"$f":"IF(OrigTable!G1466=\"\",\"\",TEXT(OrigTable!G1466,\"00\"))","v":""},{"$f":"IF(OrigTable!G1466=\"\",\"\",ScriptText!$E$1&CHAR(10)&ScriptText!$C$1)","v":""},0]
["\n\n\n",{"$f":"IF(OrigTable!A1467=\"\",\"\",ScriptText!$B$1&CHAR(10)&ScriptText!$D$1)","v":""},{"$f":"IF(OrigTable!A1467=\"\",\"\",TEXT(OrigTable!A1467,\"00\"))","v":""},{"$f":"IF(OrigTable!A1467=\"\",\"\",ScriptText!$E$1&CHAR(10)&ScriptText!$C$1)","v":""},{"$f":"IF(OrigTable!B1467=\"\",\"\",ScriptText!$B$1&CHAR(10)&ScriptText!$D$1)","v":""},{"$f":"IF(OrigTable!B1467=\"\",\"\",TEXT(OrigTable!B1467,\"00\"))","v":""},{"$f":"IF(OrigTable!B1467=\"\",\"\",ScriptText!$E$1&CHAR(10)&ScriptText!C1462)","v":""},{"$f":"IF(OrigTable!C1467=\"\",\"\",ScriptText!$B$1&CHAR(10)&ScriptText!$D$1)","v":""},{"$f":"IF(OrigTable!C1467=\"\",\"\",IF(LEN(OrigTable!C1467)>255,LEFT(OrigTable!C1467,250)&\". . .\",OrigTable!C1467))","v":""},{"$f":"IF(OrigTable!C1467=\"\",\"\",ScriptText!$E$1&CHAR(10)&ScriptText!$C$1)","v":""},{"$f":"IF(OrigTable!D1467=\"\",\"\",ScriptText!$B$1&CHAR(10)&ScriptText!$D$1)","v":""},{"$f":"IF(OrigTable!D1467=\"\",\"\",TEXT(OrigTable!D1467,\"00\"))","v":""},{"$f":"IF(OrigTable!D1467=\"\",\"\",ScriptText!$E$1&CHAR(10)&ScriptText!$C$1)","v":""},{"$f":"IF(OrigTable!E1467=\"\",\"\",ScriptText!$B$1&CHAR(10)&ScriptText!$D$1)","v":""},{"$f":"IF(OrigTable!E1467=\"\",\"\",TEXT(OrigTable!E1467,\"00\"))","v":""},{"$f":"IF(OrigTable!E1467=\"\",\"\",ScriptText!$E$1&CHAR(10)&ScriptText!$C$1)","v":""},{"$f":"IF(OrigTable!F1467=\"\",\"\",ScriptText!$B$1&CHAR(10)&ScriptText!$D$1)","v":""},{"$f":"IF(OrigTable!F1467=\"\",\"\",TEXT(OrigTable!F1467,\"00\"))","v":""},{"$f":"IF(OrigTable!F1467=\"\",\"\",ScriptText!$E$1&CHAR(10)&ScriptText!$C$1)","v":""},{"$f":"IF(OrigTable!G1467=\"\",\"\",ScriptText!$B$1&CHAR(10)&ScriptText!$D$1)","v":""},{"$f":"IF(OrigTable!G1467=\"\",\"\",TEXT(OrigTable!G1467,\"00\"))","v":""},{"$f":"IF(OrigTable!G1467=\"\",\"\",ScriptText!$E$1&CHAR(10)&ScriptText!$C$1)","v":""},0]
["\n\n\n",{"$f":"IF(OrigTable!A1468=\"\",\"\",ScriptText!$B$1&CHAR(10)&ScriptText!$D$1)","v":""},{"$f":"IF(OrigTable!A1468=\"\",\"\",TEXT(OrigTable!A1468,\"00\"))","v":""},{"$f":"IF(OrigTable!A1468=\"\",\"\",ScriptText!$E$1&CHAR(10)&ScriptText!$C$1)","v":""},{"$f":"IF(OrigTable!B1468=\"\",\"\",ScriptText!$B$1&CHAR(10)&ScriptText!$D$1)","v":""},{"$f":"IF(OrigTable!B1468=\"\",\"\",TEXT(OrigTable!B1468,\"00\"))","v":""},{"$f":"IF(OrigTable!B1468=\"\",\"\",ScriptText!$E$1&CHAR(10)&ScriptText!C1463)","v":""},{"$f":"IF(OrigTable!C1468=\"\",\"\",ScriptText!$B$1&CHAR(10)&ScriptText!$D$1)","v":""},{"$f":"IF(OrigTable!C1468=\"\",\"\",IF(LEN(OrigTable!C1468)>255,LEFT(OrigTable!C1468,250)&\". . .\",OrigTable!C1468))","v":""},{"$f":"IF(OrigTable!C1468=\"\",\"\",ScriptText!$E$1&CHAR(10)&ScriptText!$C$1)","v":""},{"$f":"IF(OrigTable!D1468=\"\",\"\",ScriptText!$B$1&CHAR(10)&ScriptText!$D$1)","v":""},{"$f":"IF(OrigTable!D1468=\"\",\"\",TEXT(OrigTable!D1468,\"00\"))","v":""},{"$f":"IF(OrigTable!D1468=\"\",\"\",ScriptText!$E$1&CHAR(10)&ScriptText!$C$1)","v":""},{"$f":"IF(OrigTable!E1468=\"\",\"\",ScriptText!$B$1&CHAR(10)&ScriptText!$D$1)","v":""},{"$f":"IF(OrigTable!E1468=\"\",\"\",TEXT(OrigTable!E1468,\"00\"))","v":""},{"$f":"IF(OrigTable!E1468=\"\",\"\",ScriptText!$E$1&CHAR(10)&ScriptText!$C$1)","v":""},{"$f":"IF(OrigTable!F1468=\"\",\"\",ScriptText!$B$1&CHAR(10)&ScriptText!$D$1)","v":""},{"$f":"IF(OrigTable!F1468=\"\",\"\",TEXT(OrigTable!F1468,\"00\"))","v":""},{"$f":"IF(OrigTable!F1468=\"\",\"\",ScriptText!$E$1&CHAR(10)&ScriptText!$C$1)","v":""},{"$f":"IF(OrigTable!G1468=\"\",\"\",ScriptText!$B$1&CHAR(10)&ScriptText!$D$1)","v":""},{"$f":"IF(OrigTable!G1468=\"\",\"\",TEXT(OrigTable!G1468,\"00\"))","v":""},{"$f":"IF(OrigTable!G1468=\"\",\"\",ScriptText!$E$1&CHAR(10)&ScriptText!$C$1)","v":""},0]
["\n\n\n",{"$f":"IF(OrigTable!A1469=\"\",\"\",ScriptText!$B$1&CHAR(10)&ScriptText!$D$1)","v":""},{"$f":"IF(OrigTable!A1469=\"\",\"\",TEXT(OrigTable!A1469,\"00\"))","v":""},{"$f":"IF(OrigTable!A1469=\"\",\"\",ScriptText!$E$1&CHAR(10)&ScriptText!$C$1)","v":""},{"$f":"IF(OrigTable!B1469=\"\",\"\",ScriptText!$B$1&CHAR(10)&ScriptText!$D$1)","v":""},{"$f":"IF(OrigTable!B1469=\"\",\"\",TEXT(OrigTable!B1469,\"00\"))","v":""},{"$f":"IF(OrigTable!B1469=\"\",\"\",ScriptText!$E$1&CHAR(10)&ScriptText!C1464)","v":""},{"$f":"IF(OrigTable!C1469=\"\",\"\",ScriptText!$B$1&CHAR(10)&ScriptText!$D$1)","v":""},{"$f":"IF(OrigTable!C1469=\"\",\"\",IF(LEN(OrigTable!C1469)>255,LEFT(OrigTable!C1469,250)&\". . .\",OrigTable!C1469))","v":""},{"$f":"IF(OrigTable!C1469=\"\",\"\",ScriptText!$E$1&CHAR(10)&ScriptText!$C$1)","v":""},{"$f":"IF(OrigTable!D1469=\"\",\"\",ScriptText!$B$1&CHAR(10)&ScriptText!$D$1)","v":""},{"$f":"IF(OrigTable!D1469=\"\",\"\",TEXT(OrigTable!D1469,\"00\"))","v":""},{"$f":"IF(OrigTable!D1469=\"\",\"\",ScriptText!$E$1&CHAR(10)&ScriptText!$C$1)","v":""},{"$f":"IF(OrigTable!E1469=\"\",\"\",ScriptText!$B$1&CHAR(10)&ScriptText!$D$1)","v":""},{"$f":"IF(OrigTable!E1469=\"\",\"\",TEXT(OrigTable!E1469,\"00\"))","v":""},{"$f":"IF(OrigTable!E1469=\"\",\"\",ScriptText!$E$1&CHAR(10)&ScriptText!$C$1)","v":""},{"$f":"IF(OrigTable!F1469=\"\",\"\",ScriptText!$B$1&CHAR(10)&ScriptText!$D$1)","v":""},{"$f":"IF(OrigTable!F1469=\"\",\"\",TEXT(OrigTable!F1469,\"00\"))","v":""},{"$f":"IF(OrigTable!F1469=\"\",\"\",ScriptText!$E$1&CHAR(10)&ScriptText!$C$1)","v":""},{"$f":"IF(OrigTable!G1469=\"\",\"\",ScriptText!$B$1&CHAR(10)&ScriptText!$D$1)","v":""},{"$f":"IF(OrigTable!G1469=\"\",\"\",TEXT(OrigTable!G1469,\"00\"))","v":""},{"$f":"IF(OrigTable!G1469=\"\",\"\",ScriptText!$E$1&CHAR(10)&ScriptText!$C$1)","v":""},0]
["\n\n\n",{"$f":"IF(OrigTable!A1470=\"\",\"\",ScriptText!$B$1&CHAR(10)&ScriptText!$D$1)","v":""},{"$f":"IF(OrigTable!A1470=\"\",\"\",TEXT(OrigTable!A1470,\"00\"))","v":""},{"$f":"IF(OrigTable!A1470=\"\",\"\",ScriptText!$E$1&CHAR(10)&ScriptText!$C$1)","v":""},{"$f":"IF(OrigTable!B1470=\"\",\"\",ScriptText!$B$1&CHAR(10)&ScriptText!$D$1)","v":""},{"$f":"IF(OrigTable!B1470=\"\",\"\",TEXT(OrigTable!B1470,\"00\"))","v":""},{"$f":"IF(OrigTable!B1470=\"\",\"\",ScriptText!$E$1&CHAR(10)&ScriptText!C1465)","v":""},{"$f":"IF(OrigTable!C1470=\"\",\"\",ScriptText!$B$1&CHAR(10)&ScriptText!$D$1)","v":""},{"$f":"IF(OrigTable!C1470=\"\",\"\",IF(LEN(OrigTable!C1470)>255,LEFT(OrigTable!C1470,250)&\". . .\",OrigTable!C1470))","v":""},{"$f":"IF(OrigTable!C1470=\"\",\"\",ScriptText!$E$1&CHAR(10)&ScriptText!$C$1)","v":""},{"$f":"IF(OrigTable!D1470=\"\",\"\",ScriptText!$B$1&CHAR(10)&ScriptText!$D$1)","v":""},{"$f":"IF(OrigTable!D1470=\"\",\"\",TEXT(OrigTable!D1470,\"00\"))","v":""},{"$f":"IF(OrigTable!D1470=\"\",\"\",ScriptText!$E$1&CHAR(10)&ScriptText!$C$1)","v":""},{"$f":"IF(OrigTable!E1470=\"\",\"\",ScriptText!$B$1&CHAR(10)&ScriptText!$D$1)","v":""},{"$f":"IF(OrigTable!E1470=\"\",\"\",TEXT(OrigTable!E1470,\"00\"))","v":""},{"$f":"IF(OrigTable!E1470=\"\",\"\",ScriptText!$E$1&CHAR(10)&ScriptText!$C$1)","v":""},{"$f":"IF(OrigTable!F1470=\"\",\"\",ScriptText!$B$1&CHAR(10)&ScriptText!$D$1)","v":""},{"$f":"IF(OrigTable!F1470=\"\",\"\",TEXT(OrigTable!F1470,\"00\"))","v":""},{"$f":"IF(OrigTable!F1470=\"\",\"\",ScriptText!$E$1&CHAR(10)&ScriptText!$C$1)","v":""},{"$f":"IF(OrigTable!G1470=\"\",\"\",ScriptText!$B$1&CHAR(10)&ScriptText!$D$1)","v":""},{"$f":"IF(OrigTable!G1470=\"\",\"\",TEXT(OrigTable!G1470,\"00\"))","v":""},{"$f":"IF(OrigTable!G1470=\"\",\"\",ScriptText!$E$1&CHAR(10)&ScriptText!$C$1)","v":""},0]
["\n\n\n",{"$f":"IF(OrigTable!A1471=\"\",\"\",ScriptText!$B$1&CHAR(10)&ScriptText!$D$1)","v":""},{"$f":"IF(OrigTable!A1471=\"\",\"\",TEXT(OrigTable!A1471,\"00\"))","v":""},{"$f":"IF(OrigTable!A1471=\"\",\"\",ScriptText!$E$1&CHAR(10)&ScriptText!$C$1)","v":""},{"$f":"IF(OrigTable!B1471=\"\",\"\",ScriptText!$B$1&CHAR(10)&ScriptText!$D$1)","v":""},{"$f":"IF(OrigTable!B1471=\"\",\"\",TEXT(OrigTable!B1471,\"00\"))","v":""},{"$f":"IF(OrigTable!B1471=\"\",\"\",ScriptText!$E$1&CHAR(10)&ScriptText!C1466)","v":""},{"$f":"IF(OrigTable!C1471=\"\",\"\",ScriptText!$B$1&CHAR(10)&ScriptText!$D$1)","v":""},{"$f":"IF(OrigTable!C1471=\"\",\"\",IF(LEN(OrigTable!C1471)>255,LEFT(OrigTable!C1471,250)&\". . .\",OrigTable!C1471))","v":""},{"$f":"IF(OrigTable!C1471=\"\",\"\",ScriptText!$E$1&CHAR(10)&ScriptText!$C$1)","v":""},{"$f":"IF(OrigTable!D1471=\"\",\"\",ScriptText!$B$1&CHAR(10)&ScriptText!$D$1)","v":""},{"$f":"IF(OrigTable!D1471=\"\",\"\",TEXT(OrigTable!D1471,\"00\"))","v":""},{"$f":"IF(OrigTable!D1471=\"\",\"\",ScriptText!$E$1&CHAR(10)&ScriptText!$C$1)","v":""},{"$f":"IF(OrigTable!E1471=\"\",\"\",ScriptText!$B$1&CHAR(10)&ScriptText!$D$1)","v":""},{"$f":"IF(OrigTable!E1471=\"\",\"\",TEXT(OrigTable!E1471,\"00\"))","v":""},{"$f":"IF(OrigTable!E1471=\"\",\"\",ScriptText!$E$1&CHAR(10)&ScriptText!$C$1)","v":""},{"$f":"IF(OrigTable!F1471=\"\",\"\",ScriptText!$B$1&CHAR(10)&ScriptText!$D$1)","v":""},{"$f":"IF(OrigTable!F1471=\"\",\"\",TEXT(OrigTable!F1471,\"00\"))","v":""},{"$f":"IF(OrigTable!F1471=\"\",\"\",ScriptText!$E$1&CHAR(10)&ScriptText!$C$1)","v":""},{"$f":"IF(OrigTable!G1471=\"\",\"\",ScriptText!$B$1&CHAR(10)&ScriptText!$D$1)","v":""},{"$f":"IF(OrigTable!G1471=\"\",\"\",TEXT(OrigTable!G1471,\"00\"))","v":""},{"$f":"IF(OrigTable!G1471=\"\",\"\",ScriptText!$E$1&CHAR(10)&ScriptText!$C$1)","v":""},0]
["\n\n\n",{"$f":"IF(OrigTable!A1472=\"\",\"\",ScriptText!$B$1&CHAR(10)&ScriptText!$D$1)","v":""},{"$f":"IF(OrigTable!A1472=\"\",\"\",TEXT(OrigTable!A1472,\"00\"))","v":""},{"$f":"IF(OrigTable!A1472=\"\",\"\",ScriptText!$E$1&CHAR(10)&ScriptText!$C$1)","v":""},{"$f":"IF(OrigTable!B1472=\"\",\"\",ScriptText!$B$1&CHAR(10)&ScriptText!$D$1)","v":""},{"$f":"IF(OrigTable!B1472=\"\",\"\",TEXT(OrigTable!B1472,\"00\"))","v":""},{"$f":"IF(OrigTable!B1472=\"\",\"\",ScriptText!$E$1&CHAR(10)&ScriptText!C1467)","v":""},{"$f":"IF(OrigTable!C1472=\"\",\"\",ScriptText!$B$1&CHAR(10)&ScriptText!$D$1)","v":""},{"$f":"IF(OrigTable!C1472=\"\",\"\",IF(LEN(OrigTable!C1472)>255,LEFT(OrigTable!C1472,250)&\". . .\",OrigTable!C1472))","v":""},{"$f":"IF(OrigTable!C1472=\"\",\"\",ScriptText!$E$1&CHAR(10)&ScriptText!$C$1)","v":""},{"$f":"IF(OrigTable!D1472=\"\",\"\",ScriptText!$B$1&CHAR(10)&ScriptText!$D$1)","v":""},{"$f":"IF(OrigTable!D1472=\"\",\"\",TEXT(OrigTable!D1472,\"00\"))","v":""},{"$f":"IF(OrigTable!D1472=\"\",\"\",ScriptText!$E$1&CHAR(10)&ScriptText!$C$1)","v":""},{"$f":"IF(OrigTable!E1472=\"\",\"\",ScriptText!$B$1&CHAR(10)&ScriptText!$D$1)","v":""},{"$f":"IF(OrigTable!E1472=\"\",\"\",TEXT(OrigTable!E1472,\"00\"))","v":""},{"$f":"IF(OrigTable!E1472=\"\",\"\",ScriptText!$E$1&CHAR(10)&ScriptText!$C$1)","v":""},{"$f":"IF(OrigTable!F1472=\"\",\"\",ScriptText!$B$1&CHAR(10)&ScriptText!$D$1)","v":""},{"$f":"IF(OrigTable!F1472=\"\",\"\",TEXT(OrigTable!F1472,\"00\"))","v":""},{"$f":"IF(OrigTable!F1472=\"\",\"\",ScriptText!$E$1&CHAR(10)&ScriptText!$C$1)","v":""},{"$f":"IF(OrigTable!G1472=\"\",\"\",ScriptText!$B$1&CHAR(10)&ScriptText!$D$1)","v":""},{"$f":"IF(OrigTable!G1472=\"\",\"\",TEXT(OrigTable!G1472,\"00\"))","v":""},{"$f":"IF(OrigTable!G1472=\"\",\"\",ScriptText!$E$1&CHAR(10)&ScriptText!$C$1)","v":""},0]
["\n\n\n",{"$f":"IF(OrigTable!A1473=\"\",\"\",ScriptText!$B$1&CHAR(10)&ScriptText!$D$1)","v":""},{"$f":"IF(OrigTable!A1473=\"\",\"\",TEXT(OrigTable!A1473,\"00\"))","v":""},{"$f":"IF(OrigTable!A1473=\"\",\"\",ScriptText!$E$1&CHAR(10)&ScriptText!$C$1)","v":""},{"$f":"IF(OrigTable!B1473=\"\",\"\",ScriptText!$B$1&CHAR(10)&ScriptText!$D$1)","v":""},{"$f":"IF(OrigTable!B1473=\"\",\"\",TEXT(OrigTable!B1473,\"00\"))","v":""},{"$f":"IF(OrigTable!B1473=\"\",\"\",ScriptText!$E$1&CHAR(10)&ScriptText!C1468)","v":""},{"$f":"IF(OrigTable!C1473=\"\",\"\",ScriptText!$B$1&CHAR(10)&ScriptText!$D$1)","v":""},{"$f":"IF(OrigTable!C1473=\"\",\"\",IF(LEN(OrigTable!C1473)>255,LEFT(OrigTable!C1473,250)&\". . .\",OrigTable!C1473))","v":""},{"$f":"IF(OrigTable!C1473=\"\",\"\",ScriptText!$E$1&CHAR(10)&ScriptText!$C$1)","v":""},{"$f":"IF(OrigTable!D1473=\"\",\"\",ScriptText!$B$1&CHAR(10)&ScriptText!$D$1)","v":""},{"$f":"IF(OrigTable!D1473=\"\",\"\",TEXT(OrigTable!D1473,\"00\"))","v":""},{"$f":"IF(OrigTable!D1473=\"\",\"\",ScriptText!$E$1&CHAR(10)&ScriptText!$C$1)","v":""},{"$f":"IF(OrigTable!E1473=\"\",\"\",ScriptText!$B$1&CHAR(10)&ScriptText!$D$1)","v":""},{"$f":"IF(OrigTable!E1473=\"\",\"\",TEXT(OrigTable!E1473,\"00\"))","v":""},{"$f":"IF(OrigTable!E1473=\"\",\"\",ScriptText!$E$1&CHAR(10)&ScriptText!$C$1)","v":""},{"$f":"IF(OrigTable!F1473=\"\",\"\",ScriptText!$B$1&CHAR(10)&ScriptText!$D$1)","v":""},{"$f":"IF(OrigTable!F1473=\"\",\"\",TEXT(OrigTable!F1473,\"00\"))","v":""},{"$f":"IF(OrigTable!F1473=\"\",\"\",ScriptText!$E$1&CHAR(10)&ScriptText!$C$1)","v":""},{"$f":"IF(OrigTable!G1473=\"\",\"\",ScriptText!$B$1&CHAR(10)&ScriptText!$D$1)","v":""},{"$f":"IF(OrigTable!G1473=\"\",\"\",TEXT(OrigTable!G1473,\"00\"))","v":""},{"$f":"IF(OrigTable!G1473=\"\",\"\",ScriptText!$E$1&CHAR(10)&ScriptText!$C$1)","v":""},0]
["\n\n\n",{"$f":"IF(OrigTable!A1474=\"\",\"\",ScriptText!$B$1&CHAR(10)&ScriptText!$D$1)","v":""},{"$f":"IF(OrigTable!A1474=\"\",\"\",TEXT(OrigTable!A1474,\"00\"))","v":""},{"$f":"IF(OrigTable!A1474=\"\",\"\",ScriptText!$E$1&CHAR(10)&ScriptText!$C$1)","v":""},{"$f":"IF(OrigTable!B1474=\"\",\"\",ScriptText!$B$1&CHAR(10)&ScriptText!$D$1)","v":""},{"$f":"IF(OrigTable!B1474=\"\",\"\",TEXT(OrigTable!B1474,\"00\"))","v":""},{"$f":"IF(OrigTable!B1474=\"\",\"\",ScriptText!$E$1&CHAR(10)&ScriptText!C1469)","v":""},{"$f":"IF(OrigTable!C1474=\"\",\"\",ScriptText!$B$1&CHAR(10)&ScriptText!$D$1)","v":""},{"$f":"IF(OrigTable!C1474=\"\",\"\",IF(LEN(OrigTable!C1474)>255,LEFT(OrigTable!C1474,250)&\". . .\",OrigTable!C1474))","v":""},{"$f":"IF(OrigTable!C1474=\"\",\"\",ScriptText!$E$1&CHAR(10)&ScriptText!$C$1)","v":""},{"$f":"IF(OrigTable!D1474=\"\",\"\",ScriptText!$B$1&CHAR(10)&ScriptText!$D$1)","v":""},{"$f":"IF(OrigTable!D1474=\"\",\"\",TEXT(OrigTable!D1474,\"00\"))","v":""},{"$f":"IF(OrigTable!D1474=\"\",\"\",ScriptText!$E$1&CHAR(10)&ScriptText!$C$1)","v":""},{"$f":"IF(OrigTable!E1474=\"\",\"\",ScriptText!$B$1&CHAR(10)&ScriptText!$D$1)","v":""},{"$f":"IF(OrigTable!E1474=\"\",\"\",TEXT(OrigTable!E1474,\"00\"))","v":""},{"$f":"IF(OrigTable!E1474=\"\",\"\",ScriptText!$E$1&CHAR(10)&ScriptText!$C$1)","v":""},{"$f":"IF(OrigTable!F1474=\"\",\"\",ScriptText!$B$1&CHAR(10)&ScriptText!$D$1)","v":""},{"$f":"IF(OrigTable!F1474=\"\",\"\",TEXT(OrigTable!F1474,\"00\"))","v":""},{"$f":"IF(OrigTable!F1474=\"\",\"\",ScriptText!$E$1&CHAR(10)&ScriptText!$C$1)","v":""},{"$f":"IF(OrigTable!G1474=\"\",\"\",ScriptText!$B$1&CHAR(10)&ScriptText!$D$1)","v":""},{"$f":"IF(OrigTable!G1474=\"\",\"\",TEXT(OrigTable!G1474,\"00\"))","v":""},{"$f":"IF(OrigTable!G1474=\"\",\"\",ScriptText!$E$1&CHAR(10)&ScriptText!$C$1)","v":""},0]
["\n\n\n",{"$f":"IF(OrigTable!A1475=\"\",\"\",ScriptText!$B$1&CHAR(10)&ScriptText!$D$1)","v":""},{"$f":"IF(OrigTable!A1475=\"\",\"\",TEXT(OrigTable!A1475,\"00\"))","v":""},{"$f":"IF(OrigTable!A1475=\"\",\"\",ScriptText!$E$1&CHAR(10)&ScriptText!$C$1)","v":""},{"$f":"IF(OrigTable!B1475=\"\",\"\",ScriptText!$B$1&CHAR(10)&ScriptText!$D$1)","v":""},{"$f":"IF(OrigTable!B1475=\"\",\"\",TEXT(OrigTable!B1475,\"00\"))","v":""},{"$f":"IF(OrigTable!B1475=\"\",\"\",ScriptText!$E$1&CHAR(10)&ScriptText!C1470)","v":""},{"$f":"IF(OrigTable!C1475=\"\",\"\",ScriptText!$B$1&CHAR(10)&ScriptText!$D$1)","v":""},{"$f":"IF(OrigTable!C1475=\"\",\"\",IF(LEN(OrigTable!C1475)>255,LEFT(OrigTable!C1475,250)&\". . .\",OrigTable!C1475))","v":""},{"$f":"IF(OrigTable!C1475=\"\",\"\",ScriptText!$E$1&CHAR(10)&ScriptText!$C$1)","v":""},{"$f":"IF(OrigTable!D1475=\"\",\"\",ScriptText!$B$1&CHAR(10)&ScriptText!$D$1)","v":""},{"$f":"IF(OrigTable!D1475=\"\",\"\",TEXT(OrigTable!D1475,\"00\"))","v":""},{"$f":"IF(OrigTable!D1475=\"\",\"\",ScriptText!$E$1&CHAR(10)&ScriptText!$C$1)","v":""},{"$f":"IF(OrigTable!E1475=\"\",\"\",ScriptText!$B$1&CHAR(10)&ScriptText!$D$1)","v":""},{"$f":"IF(OrigTable!E1475=\"\",\"\",TEXT(OrigTable!E1475,\"00\"))","v":""},{"$f":"IF(OrigTable!E1475=\"\",\"\",ScriptText!$E$1&CHAR(10)&ScriptText!$C$1)","v":""},{"$f":"IF(OrigTable!F1475=\"\",\"\",ScriptText!$B$1&CHAR(10)&ScriptText!$D$1)","v":""},{"$f":"IF(OrigTable!F1475=\"\",\"\",TEXT(OrigTable!F1475,\"00\"))","v":""},{"$f":"IF(OrigTable!F1475=\"\",\"\",ScriptText!$E$1&CHAR(10)&ScriptText!$C$1)","v":""},{"$f":"IF(OrigTable!G1475=\"\",\"\",ScriptText!$B$1&CHAR(10)&ScriptText!$D$1)","v":""},{"$f":"IF(OrigTable!G1475=\"\",\"\",TEXT(OrigTable!G1475,\"00\"))","v":""},{"$f":"IF(OrigTable!G1475=\"\",\"\",ScriptText!$E$1&CHAR(10)&ScriptText!$C$1)","v":""},0]
["\n\n\n",{"$f":"IF(OrigTable!A1476=\"\",\"\",ScriptText!$B$1&CHAR(10)&ScriptText!$D$1)","v":""},{"$f":"IF(OrigTable!A1476=\"\",\"\",TEXT(OrigTable!A1476,\"00\"))","v":""},{"$f":"IF(OrigTable!A1476=\"\",\"\",ScriptText!$E$1&CHAR(10)&ScriptText!$C$1)","v":""},{"$f":"IF(OrigTable!B1476=\"\",\"\",ScriptText!$B$1&CHAR(10)&ScriptText!$D$1)","v":""},{"$f":"IF(OrigTable!B1476=\"\",\"\",TEXT(OrigTable!B1476,\"00\"))","v":""},{"$f":"IF(OrigTable!B1476=\"\",\"\",ScriptText!$E$1&CHAR(10)&ScriptText!C1471)","v":""},{"$f":"IF(OrigTable!C1476=\"\",\"\",ScriptText!$B$1&CHAR(10)&ScriptText!$D$1)","v":""},{"$f":"IF(OrigTable!C1476=\"\",\"\",IF(LEN(OrigTable!C1476)>255,LEFT(OrigTable!C1476,250)&\". . .\",OrigTable!C1476))","v":""},{"$f":"IF(OrigTable!C1476=\"\",\"\",ScriptText!$E$1&CHAR(10)&ScriptText!$C$1)","v":""},{"$f":"IF(OrigTable!D1476=\"\",\"\",ScriptText!$B$1&CHAR(10)&ScriptText!$D$1)","v":""},{"$f":"IF(OrigTable!D1476=\"\",\"\",TEXT(OrigTable!D1476,\"00\"))","v":""},{"$f":"IF(OrigTable!D1476=\"\",\"\",ScriptText!$E$1&CHAR(10)&ScriptText!$C$1)","v":""},{"$f":"IF(OrigTable!E1476=\"\",\"\",ScriptText!$B$1&CHAR(10)&ScriptText!$D$1)","v":""},{"$f":"IF(OrigTable!E1476=\"\",\"\",TEXT(OrigTable!E1476,\"00\"))","v":""},{"$f":"IF(OrigTable!E1476=\"\",\"\",ScriptText!$E$1&CHAR(10)&ScriptText!$C$1)","v":""},{"$f":"IF(OrigTable!F1476=\"\",\"\",ScriptText!$B$1&CHAR(10)&ScriptText!$D$1)","v":""},{"$f":"IF(OrigTable!F1476=\"\",\"\",TEXT(OrigTable!F1476,\"00\"))","v":""},{"$f":"IF(OrigTable!F1476=\"\",\"\",ScriptText!$E$1&CHAR(10)&ScriptText!$C$1)","v":""},{"$f":"IF(OrigTable!G1476=\"\",\"\",ScriptText!$B$1&CHAR(10)&ScriptText!$D$1)","v":""},{"$f":"IF(OrigTable!G1476=\"\",\"\",TEXT(OrigTable!G1476,\"00\"))","v":""},{"$f":"IF(OrigTable!G1476=\"\",\"\",ScriptText!$E$1&CHAR(10)&ScriptText!$C$1)","v":""},0]
["\n\n\n",{"$f":"IF(OrigTable!A1477=\"\",\"\",ScriptText!$B$1&CHAR(10)&ScriptText!$D$1)","v":""},{"$f":"IF(OrigTable!A1477=\"\",\"\",TEXT(OrigTable!A1477,\"00\"))","v":""},{"$f":"IF(OrigTable!A1477=\"\",\"\",ScriptText!$E$1&CHAR(10)&ScriptText!$C$1)","v":""},{"$f":"IF(OrigTable!B1477=\"\",\"\",ScriptText!$B$1&CHAR(10)&ScriptText!$D$1)","v":""},{"$f":"IF(OrigTable!B1477=\"\",\"\",TEXT(OrigTable!B1477,\"00\"))","v":""},{"$f":"IF(OrigTable!B1477=\"\",\"\",ScriptText!$E$1&CHAR(10)&ScriptText!C1472)","v":""},{"$f":"IF(OrigTable!C1477=\"\",\"\",ScriptText!$B$1&CHAR(10)&ScriptText!$D$1)","v":""},{"$f":"IF(OrigTable!C1477=\"\",\"\",IF(LEN(OrigTable!C1477)>255,LEFT(OrigTable!C1477,250)&\". . .\",OrigTable!C1477))","v":""},{"$f":"IF(OrigTable!C1477=\"\",\"\",ScriptText!$E$1&CHAR(10)&ScriptText!$C$1)","v":""},{"$f":"IF(OrigTable!D1477=\"\",\"\",ScriptText!$B$1&CHAR(10)&ScriptText!$D$1)","v":""},{"$f":"IF(OrigTable!D1477=\"\",\"\",TEXT(OrigTable!D1477,\"00\"))","v":""},{"$f":"IF(OrigTable!D1477=\"\",\"\",ScriptText!$E$1&CHAR(10)&ScriptText!$C$1)","v":""},{"$f":"IF(OrigTable!E1477=\"\",\"\",ScriptText!$B$1&CHAR(10)&ScriptText!$D$1)","v":""},{"$f":"IF(OrigTable!E1477=\"\",\"\",TEXT(OrigTable!E1477,\"00\"))","v":""},{"$f":"IF(OrigTable!E1477=\"\",\"\",ScriptText!$E$1&CHAR(10)&ScriptText!$C$1)","v":""},{"$f":"IF(OrigTable!F1477=\"\",\"\",ScriptText!$B$1&CHAR(10)&ScriptText!$D$1)","v":""},{"$f":"IF(OrigTable!F1477=\"\",\"\",TEXT(OrigTable!F1477,\"00\"))","v":""},{"$f":"IF(OrigTable!F1477=\"\",\"\",ScriptText!$E$1&CHAR(10)&ScriptText!$C$1)","v":""},{"$f":"IF(OrigTable!G1477=\"\",\"\",ScriptText!$B$1&CHAR(10)&ScriptText!$D$1)","v":""},{"$f":"IF(OrigTable!G1477=\"\",\"\",TEXT(OrigTable!G1477,\"00\"))","v":""},{"$f":"IF(OrigTable!G1477=\"\",\"\",ScriptText!$E$1&CHAR(10)&ScriptText!$C$1)","v":""},0]
["\n\n\n",{"$f":"IF(OrigTable!A1478=\"\",\"\",ScriptText!$B$1&CHAR(10)&ScriptText!$D$1)","v":""},{"$f":"IF(OrigTable!A1478=\"\",\"\",TEXT(OrigTable!A1478,\"00\"))","v":""},{"$f":"IF(OrigTable!A1478=\"\",\"\",ScriptText!$E$1&CHAR(10)&ScriptText!$C$1)","v":""},{"$f":"IF(OrigTable!B1478=\"\",\"\",ScriptText!$B$1&CHAR(10)&ScriptText!$D$1)","v":""},{"$f":"IF(OrigTable!B1478=\"\",\"\",TEXT(OrigTable!B1478,\"00\"))","v":""},{"$f":"IF(OrigTable!B1478=\"\",\"\",ScriptText!$E$1&CHAR(10)&ScriptText!C1473)","v":""},{"$f":"IF(OrigTable!C1478=\"\",\"\",ScriptText!$B$1&CHAR(10)&ScriptText!$D$1)","v":""},{"$f":"IF(OrigTable!C1478=\"\",\"\",IF(LEN(OrigTable!C1478)>255,LEFT(OrigTable!C1478,250)&\". . .\",OrigTable!C1478))","v":""},{"$f":"IF(OrigTable!C1478=\"\",\"\",ScriptText!$E$1&CHAR(10)&ScriptText!$C$1)","v":""},{"$f":"IF(OrigTable!D1478=\"\",\"\",ScriptText!$B$1&CHAR(10)&ScriptText!$D$1)","v":""},{"$f":"IF(OrigTable!D1478=\"\",\"\",TEXT(OrigTable!D1478,\"00\"))","v":""},{"$f":"IF(OrigTable!D1478=\"\",\"\",ScriptText!$E$1&CHAR(10)&ScriptText!$C$1)","v":""},{"$f":"IF(OrigTable!E1478=\"\",\"\",ScriptText!$B$1&CHAR(10)&ScriptText!$D$1)","v":""},{"$f":"IF(OrigTable!E1478=\"\",\"\",TEXT(OrigTable!E1478,\"00\"))","v":""},{"$f":"IF(OrigTable!E1478=\"\",\"\",ScriptText!$E$1&CHAR(10)&ScriptText!$C$1)","v":""},{"$f":"IF(OrigTable!F1478=\"\",\"\",ScriptText!$B$1&CHAR(10)&ScriptText!$D$1)","v":""},{"$f":"IF(OrigTable!F1478=\"\",\"\",TEXT(OrigTable!F1478,\"00\"))","v":""},{"$f":"IF(OrigTable!F1478=\"\",\"\",ScriptText!$E$1&CHAR(10)&ScriptText!$C$1)","v":""},{"$f":"IF(OrigTable!G1478=\"\",\"\",ScriptText!$B$1&CHAR(10)&ScriptText!$D$1)","v":""},{"$f":"IF(OrigTable!G1478=\"\",\"\",TEXT(OrigTable!G1478,\"00\"))","v":""},{"$f":"IF(OrigTable!G1478=\"\",\"\",ScriptText!$E$1&CHAR(10)&ScriptText!$C$1)","v":""},{"$f":"IF(LEN(A1478)>3,ROW(),0)","v":0}]
["\n\n\n",{"$f":"IF(OrigTable!A1479=\"\",\"\",ScriptText!$B$1&CHAR(10)&ScriptText!$D$1)","v":""},{"$f":"IF(OrigTable!A1479=\"\",\"\",TEXT(OrigTable!A1479,\"00\"))","v":""},{"$f":"IF(OrigTable!A1479=\"\",\"\",ScriptText!$E$1&CHAR(10)&ScriptText!$C$1)","v":""},{"$f":"IF(OrigTable!B1479=\"\",\"\",ScriptText!$B$1&CHAR(10)&ScriptText!$D$1)","v":""},{"$f":"IF(OrigTable!B1479=\"\",\"\",TEXT(OrigTable!B1479,\"00\"))","v":""},{"$f":"IF(OrigTable!B1479=\"\",\"\",ScriptText!$E$1&CHAR(10)&ScriptText!C1474)","v":""},{"$f":"IF(OrigTable!C1479=\"\",\"\",ScriptText!$B$1&CHAR(10)&ScriptText!$D$1)","v":""},{"$f":"IF(OrigTable!C1479=\"\",\"\",IF(LEN(OrigTable!C1479)>255,LEFT(OrigTable!C1479,250)&\". . .\",OrigTable!C1479))","v":""},{"$f":"IF(OrigTable!C1479=\"\",\"\",ScriptText!$E$1&CHAR(10)&ScriptText!$C$1)","v":""},{"$f":"IF(OrigTable!D1479=\"\",\"\",ScriptText!$B$1&CHAR(10)&ScriptText!$D$1)","v":""},{"$f":"IF(OrigTable!D1479=\"\",\"\",TEXT(OrigTable!D1479,\"00\"))","v":""},{"$f":"IF(OrigTable!D1479=\"\",\"\",ScriptText!$E$1&CHAR(10)&ScriptText!$C$1)","v":""},{"$f":"IF(OrigTable!E1479=\"\",\"\",ScriptText!$B$1&CHAR(10)&ScriptText!$D$1)","v":""},{"$f":"IF(OrigTable!E1479=\"\",\"\",TEXT(OrigTable!E1479,\"00\"))","v":""},{"$f":"IF(OrigTable!E1479=\"\",\"\",ScriptText!$E$1&CHAR(10)&ScriptText!$C$1)","v":""},{"$f":"IF(OrigTable!F1479=\"\",\"\",ScriptText!$B$1&CHAR(10)&ScriptText!$D$1)","v":""},{"$f":"IF(OrigTable!F1479=\"\",\"\",TEXT(OrigTable!F1479,\"00\"))","v":""},{"$f":"IF(OrigTable!F1479=\"\",\"\",ScriptText!$E$1&CHAR(10)&ScriptText!$C$1)","v":""},{"$f":"IF(OrigTable!G1479=\"\",\"\",ScriptText!$B$1&CHAR(10)&ScriptText!$D$1)","v":""},{"$f":"IF(OrigTable!G1479=\"\",\"\",TEXT(OrigTable!G1479,\"00\"))","v":""},{"$f":"IF(OrigTable!G1479=\"\",\"\",ScriptText!$E$1&CHAR(10)&ScriptText!$C$1)","v":""},0]
["\n\n\n",{"$f":"IF(OrigTable!A1480=\"\",\"\",ScriptText!$B$1&CHAR(10)&ScriptText!$D$1)","v":""},{"$f":"IF(OrigTable!A1480=\"\",\"\",TEXT(OrigTable!A1480,\"00\"))","v":""},{"$f":"IF(OrigTable!A1480=\"\",\"\",ScriptText!$E$1&CHAR(10)&ScriptText!$C$1)","v":""},{"$f":"IF(OrigTable!B1480=\"\",\"\",ScriptText!$B$1&CHAR(10)&ScriptText!$D$1)","v":""},{"$f":"IF(OrigTable!B1480=\"\",\"\",TEXT(OrigTable!B1480,\"00\"))","v":""},{"$f":"IF(OrigTable!B1480=\"\",\"\",ScriptText!$E$1&CHAR(10)&ScriptText!C1475)","v":""},{"$f":"IF(OrigTable!C1480=\"\",\"\",ScriptText!$B$1&CHAR(10)&ScriptText!$D$1)","v":""},{"$f":"IF(OrigTable!C1480=\"\",\"\",IF(LEN(OrigTable!C1480)>255,LEFT(OrigTable!C1480,250)&\". . .\",OrigTable!C1480))","v":""},{"$f":"IF(OrigTable!C1480=\"\",\"\",ScriptText!$E$1&CHAR(10)&ScriptText!$C$1)","v":""},{"$f":"IF(OrigTable!D1480=\"\",\"\",ScriptText!$B$1&CHAR(10)&ScriptText!$D$1)","v":""},{"$f":"IF(OrigTable!D1480=\"\",\"\",TEXT(OrigTable!D1480,\"00\"))","v":""},{"$f":"IF(OrigTable!D1480=\"\",\"\",ScriptText!$E$1&CHAR(10)&ScriptText!$C$1)","v":""},{"$f":"IF(OrigTable!E1480=\"\",\"\",ScriptText!$B$1&CHAR(10)&ScriptText!$D$1)","v":""},{"$f":"IF(OrigTable!E1480=\"\",\"\",TEXT(OrigTable!E1480,\"00\"))","v":""},{"$f":"IF(OrigTable!E1480=\"\",\"\",ScriptText!$E$1&CHAR(10)&ScriptText!$C$1)","v":""},{"$f":"IF(OrigTable!F1480=\"\",\"\",ScriptText!$B$1&CHAR(10)&ScriptText!$D$1)","v":""},{"$f":"IF(OrigTable!F1480=\"\",\"\",TEXT(OrigTable!F1480,\"00\"))","v":""},{"$f":"IF(OrigTable!F1480=\"\",\"\",ScriptText!$E$1&CHAR(10)&ScriptText!$C$1)","v":""},{"$f":"IF(OrigTable!G1480=\"\",\"\",ScriptText!$B$1&CHAR(10)&ScriptText!$D$1)","v":""},{"$f":"IF(OrigTable!G1480=\"\",\"\",TEXT(OrigTable!G1480,\"00\"))","v":""},{"$f":"IF(OrigTable!G1480=\"\",\"\",ScriptText!$E$1&CHAR(10)&ScriptText!$C$1)","v":""},0]
[{"$f":"_xlfn.TEXTJOIN(\"\",TRUE,B1481:D1481)&CHAR(10)&_xlfn.TEXTJOIN(\"\",TRUE,E1481:G1481)&CHAR(10)&_xlfn.TEXTJOIN(\"\",TRUE,H1481:J1481)&CHAR(10)&_xlfn.TEXTJOIN(\"\",TRUE,K1481:M1481)&_xlfn.TEXTJOIN(\"\",TRUE,N1481:P1481)&_xlfn.TEXTJOIN(\"\",TRUE,Q1481:S1481)&_xlfn.TEXTJOIN(\"\",TRUE,T1481:V1481)","v":"\n\n\n"},{"$f":"IF(OrigTable!A1481=\"\",\"\",ScriptText!$B$1&CHAR(10)&ScriptText!$D$1)","v":""},{"$f":"IF(OrigTable!A1481=\"\",\"\",TEXT(OrigTable!A1481,\"00\"))","v":""},{"$f":"IF(OrigTable!A1481=\"\",\"\",ScriptText!$E$1&CHAR(10)&ScriptText!$C$1)","v":""},{"$f":"IF(OrigTable!B1481=\"\",\"\",ScriptText!$B$1&CHAR(10)&ScriptText!$D$1)","v":""},{"$f":"IF(OrigTable!B1481=\"\",\"\",TEXT(OrigTable!B1481,\"00\"))","v":""},{"$f":"IF(OrigTable!B1481=\"\",\"\",ScriptText!$E$1&CHAR(10)&ScriptText!C1476)","v":""},{"$f":"IF(OrigTable!C1481=\"\",\"\",ScriptText!$B$1&CHAR(10)&ScriptText!$D$1)","v":""},{"$f":"IF(OrigTable!C1481=\"\",\"\",IF(LEN(OrigTable!C1481)>255,LEFT(OrigTable!C1481,250)&\". . .\",OrigTable!C1481))","v":""},{"$f":"IF(OrigTable!C1481=\"\",\"\",ScriptText!$E$1&CHAR(10)&ScriptText!$C$1)","v":""},{"$f":"IF(OrigTable!D1481=\"\",\"\",ScriptText!$B$1&CHAR(10)&ScriptText!$D$1)","v":""},{"$f":"IF(OrigTable!D1481=\"\",\"\",TEXT(OrigTable!D1481,\"00\"))","v":""},{"$f":"IF(OrigTable!D1481=\"\",\"\",ScriptText!$E$1&CHAR(10)&ScriptText!$C$1)","v":""},{"$f":"IF(OrigTable!E1481=\"\",\"\",ScriptText!$B$1&CHAR(10)&ScriptText!$D$1)","v":""},{"$f":"IF(OrigTable!E1481=\"\",\"\",TEXT(OrigTable!E1481,\"00\"))","v":""},{"$f":"IF(OrigTable!E1481=\"\",\"\",ScriptText!$E$1&CHAR(10)&ScriptText!$C$1)","v":""},{"$f":"IF(OrigTable!F1481=\"\",\"\",ScriptText!$B$1&CHAR(10)&ScriptText!$D$1)","v":""},{"$f":"IF(OrigTable!F1481=\"\",\"\",TEXT(OrigTable!F1481,\"00\"))","v":""},{"$f":"IF(OrigTable!F1481=\"\",\"\",ScriptText!$E$1&CHAR(10)&ScriptText!$C$1)","v":""},{"$f":"IF(OrigTable!G1481=\"\",\"\",ScriptText!$B$1&CHAR(10)&ScriptText!$D$1)","v":""},{"$f":"IF(OrigTable!G1481=\"\",\"\",TEXT(OrigTable!G1481,\"00\"))","v":""},{"$f":"IF(OrigTable!G1481=\"\",\"\",ScriptText!$E$1&CHAR(10)&ScriptText!$C$1)","v":""},0]
["\n\n\n",{"$f":"IF(OrigTable!A1482=\"\",\"\",ScriptText!$B$1&CHAR(10)&ScriptText!$D$1)","v":""},{"$f":"IF(OrigTable!A1482=\"\",\"\",TEXT(OrigTable!A1482,\"00\"))","v":""},{"$f":"IF(OrigTable!A1482=\"\",\"\",ScriptText!$E$1&CHAR(10)&ScriptText!$C$1)","v":""},{"$f":"IF(OrigTable!B1482=\"\",\"\",ScriptText!$B$1&CHAR(10)&ScriptText!$D$1)","v":""},{"$f":"IF(OrigTable!B1482=\"\",\"\",TEXT(OrigTable!B1482,\"00\"))","v":""},{"$f":"IF(OrigTable!B1482=\"\",\"\",ScriptText!$E$1&CHAR(10)&ScriptText!C1477)","v":""},{"$f":"IF(OrigTable!C1482=\"\",\"\",ScriptText!$B$1&CHAR(10)&ScriptText!$D$1)","v":""},{"$f":"IF(OrigTable!C1482=\"\",\"\",IF(LEN(OrigTable!C1482)>255,LEFT(OrigTable!C1482,250)&\". . .\",OrigTable!C1482))","v":""},{"$f":"IF(OrigTable!C1482=\"\",\"\",ScriptText!$E$1&CHAR(10)&ScriptText!$C$1)","v":""},{"$f":"IF(OrigTable!D1482=\"\",\"\",ScriptText!$B$1&CHAR(10)&ScriptText!$D$1)","v":""},{"$f":"IF(OrigTable!D1482=\"\",\"\",TEXT(OrigTable!D1482,\"00\"))","v":""},{"$f":"IF(OrigTable!D1482=\"\",\"\",ScriptText!$E$1&CHAR(10)&ScriptText!$C$1)","v":""},{"$f":"IF(OrigTable!E1482=\"\",\"\",ScriptText!$B$1&CHAR(10)&ScriptText!$D$1)","v":""},{"$f":"IF(OrigTable!E1482=\"\",\"\",TEXT(OrigTable!E1482,\"00\"))","v":""},{"$f":"IF(OrigTable!E1482=\"\",\"\",ScriptText!$E$1&CHAR(10)&ScriptText!$C$1)","v":""},{"$f":"IF(OrigTable!F1482=\"\",\"\",ScriptText!$B$1&CHAR(10)&ScriptText!$D$1)","v":""},{"$f":"IF(OrigTable!F1482=\"\",\"\",TEXT(OrigTable!F1482,\"00\"))","v":""},{"$f":"IF(OrigTable!F1482=\"\",\"\",ScriptText!$E$1&CHAR(10)&ScriptText!$C$1)","v":""},{"$f":"IF(OrigTable!G1482=\"\",\"\",ScriptText!$B$1&CHAR(10)&ScriptText!$D$1)","v":""},{"$f":"IF(OrigTable!G1482=\"\",\"\",TEXT(OrigTable!G1482,\"00\"))","v":""},{"$f":"IF(OrigTable!G1482=\"\",\"\",ScriptText!$E$1&CHAR(10)&ScriptText!$C$1)","v":""},0]
["\n\n\n",{"$f":"IF(OrigTable!A1483=\"\",\"\",ScriptText!$B$1&CHAR(10)&ScriptText!$D$1)","v":""},{"$f":"IF(OrigTable!A1483=\"\",\"\",TEXT(OrigTable!A1483,\"00\"))","v":""},{"$f":"IF(OrigTable!A1483=\"\",\"\",ScriptText!$E$1&CHAR(10)&ScriptText!$C$1)","v":""},{"$f":"IF(OrigTable!B1483=\"\",\"\",ScriptText!$B$1&CHAR(10)&ScriptText!$D$1)","v":""},{"$f":"IF(OrigTable!B1483=\"\",\"\",TEXT(OrigTable!B1483,\"00\"))","v":""},{"$f":"IF(OrigTable!B1483=\"\",\"\",ScriptText!$E$1&CHAR(10)&ScriptText!C1478)","v":""},{"$f":"IF(OrigTable!C1483=\"\",\"\",ScriptText!$B$1&CHAR(10)&ScriptText!$D$1)","v":""},{"$f":"IF(OrigTable!C1483=\"\",\"\",IF(LEN(OrigTable!C1483)>255,LEFT(OrigTable!C1483,250)&\". . .\",OrigTable!C1483))","v":""},{"$f":"IF(OrigTable!C1483=\"\",\"\",ScriptText!$E$1&CHAR(10)&ScriptText!$C$1)","v":""},{"$f":"IF(OrigTable!D1483=\"\",\"\",ScriptText!$B$1&CHAR(10)&ScriptText!$D$1)","v":""},{"$f":"IF(OrigTable!D1483=\"\",\"\",TEXT(OrigTable!D1483,\"00\"))","v":""},{"$f":"IF(OrigTable!D1483=\"\",\"\",ScriptText!$E$1&CHAR(10)&ScriptText!$C$1)","v":""},{"$f":"IF(OrigTable!E1483=\"\",\"\",ScriptText!$B$1&CHAR(10)&ScriptText!$D$1)","v":""},{"$f":"IF(OrigTable!E1483=\"\",\"\",TEXT(OrigTable!E1483,\"00\"))","v":""},{"$f":"IF(OrigTable!E1483=\"\",\"\",ScriptText!$E$1&CHAR(10)&ScriptText!$C$1)","v":""},{"$f":"IF(OrigTable!F1483=\"\",\"\",ScriptText!$B$1&CHAR(10)&ScriptText!$D$1)","v":""},{"$f":"IF(OrigTable!F1483=\"\",\"\",TEXT(OrigTable!F1483,\"00\"))","v":""},{"$f":"IF(OrigTable!F1483=\"\",\"\",ScriptText!$E$1&CHAR(10)&ScriptText!$C$1)","v":""},{"$f":"IF(OrigTable!G1483=\"\",\"\",ScriptText!$B$1&CHAR(10)&ScriptText!$D$1)","v":""},{"$f":"IF(OrigTable!G1483=\"\",\"\",TEXT(OrigTable!G1483,\"00\"))","v":""},{"$f":"IF(OrigTable!G1483=\"\",\"\",ScriptText!$E$1&CHAR(10)&ScriptText!$C$1)","v":""},0]
["\n\n\n",{"$f":"IF(OrigTable!A1484=\"\",\"\",ScriptText!$B$1&CHAR(10)&ScriptText!$D$1)","v":""},{"$f":"IF(OrigTable!A1484=\"\",\"\",TEXT(OrigTable!A1484,\"00\"))","v":""},{"$f":"IF(OrigTable!A1484=\"\",\"\",ScriptText!$E$1&CHAR(10)&ScriptText!$C$1)","v":""},{"$f":"IF(OrigTable!B1484=\"\",\"\",ScriptText!$B$1&CHAR(10)&ScriptText!$D$1)","v":""},{"$f":"IF(OrigTable!B1484=\"\",\"\",TEXT(OrigTable!B1484,\"00\"))","v":""},{"$f":"IF(OrigTable!B1484=\"\",\"\",ScriptText!$E$1&CHAR(10)&ScriptText!C1479)","v":""},{"$f":"IF(OrigTable!C1484=\"\",\"\",ScriptText!$B$1&CHAR(10)&ScriptText!$D$1)","v":""},{"$f":"IF(OrigTable!C1484=\"\",\"\",IF(LEN(OrigTable!C1484)>255,LEFT(OrigTable!C1484,250)&\". . .\",OrigTable!C1484))","v":""},{"$f":"IF(OrigTable!C1484=\"\",\"\",ScriptText!$E$1&CHAR(10)&ScriptText!$C$1)","v":""},{"$f":"IF(OrigTable!D1484=\"\",\"\",ScriptText!$B$1&CHAR(10)&ScriptText!$D$1)","v":""},{"$f":"IF(OrigTable!D1484=\"\",\"\",TEXT(OrigTable!D1484,\"00\"))","v":""},{"$f":"IF(OrigTable!D1484=\"\",\"\",ScriptText!$E$1&CHAR(10)&ScriptText!$C$1)","v":""},{"$f":"IF(OrigTable!E1484=\"\",\"\",ScriptText!$B$1&CHAR(10)&ScriptText!$D$1)","v":""},{"$f":"IF(OrigTable!E1484=\"\",\"\",TEXT(OrigTable!E1484,\"00\"))","v":""},{"$f":"IF(OrigTable!E1484=\"\",\"\",ScriptText!$E$1&CHAR(10)&ScriptText!$C$1)","v":""},{"$f":"IF(OrigTable!F1484=\"\",\"\",ScriptText!$B$1&CHAR(10)&ScriptText!$D$1)","v":""},{"$f":"IF(OrigTable!F1484=\"\",\"\",TEXT(OrigTable!F1484,\"00\"))","v":""},{"$f":"IF(OrigTable!F1484=\"\",\"\",ScriptText!$E$1&CHAR(10)&ScriptText!$C$1)","v":""},{"$f":"IF(OrigTable!G1484=\"\",\"\",ScriptText!$B$1&CHAR(10)&ScriptText!$D$1)","v":""},{"$f":"IF(OrigTable!G1484=\"\",\"\",TEXT(OrigTable!G1484,\"00\"))","v":""},{"$f":"IF(OrigTable!G1484=\"\",\"\",ScriptText!$E$1&CHAR(10)&ScriptText!$C$1)","v":""},0]
["\n\n\n",{"$f":"IF(OrigTable!A1485=\"\",\"\",ScriptText!$B$1&CHAR(10)&ScriptText!$D$1)","v":""},{"$f":"IF(OrigTable!A1485=\"\",\"\",TEXT(OrigTable!A1485,\"00\"))","v":""},{"$f":"IF(OrigTable!A1485=\"\",\"\",ScriptText!$E$1&CHAR(10)&ScriptText!$C$1)","v":""},{"$f":"IF(OrigTable!B1485=\"\",\"\",ScriptText!$B$1&CHAR(10)&ScriptText!$D$1)","v":""},{"$f":"IF(OrigTable!B1485=\"\",\"\",TEXT(OrigTable!B1485,\"00\"))","v":""},{"$f":"IF(OrigTable!B1485=\"\",\"\",ScriptText!$E$1&CHAR(10)&ScriptText!C1480)","v":""},{"$f":"IF(OrigTable!C1485=\"\",\"\",ScriptText!$B$1&CHAR(10)&ScriptText!$D$1)","v":""},{"$f":"IF(OrigTable!C1485=\"\",\"\",IF(LEN(OrigTable!C1485)>255,LEFT(OrigTable!C1485,250)&\". . .\",OrigTable!C1485))","v":""},{"$f":"IF(OrigTable!C1485=\"\",\"\",ScriptText!$E$1&CHAR(10)&ScriptText!$C$1)","v":""},{"$f":"IF(OrigTable!D1485=\"\",\"\",ScriptText!$B$1&CHAR(10)&ScriptText!$D$1)","v":""},{"$f":"IF(OrigTable!D1485=\"\",\"\",TEXT(OrigTable!D1485,\"00\"))","v":""},{"$f":"IF(OrigTable!D1485=\"\",\"\",ScriptText!$E$1&CHAR(10)&ScriptText!$C$1)","v":""},{"$f":"IF(OrigTable!E1485=\"\",\"\",ScriptText!$B$1&CHAR(10)&ScriptText!$D$1)","v":""},{"$f":"IF(OrigTable!E1485=\"\",\"\",TEXT(OrigTable!E1485,\"00\"))","v":""},{"$f":"IF(OrigTable!E1485=\"\",\"\",ScriptText!$E$1&CHAR(10)&ScriptText!$C$1)","v":""},{"$f":"IF(OrigTable!F1485=\"\",\"\",ScriptText!$B$1&CHAR(10)&ScriptText!$D$1)","v":""},{"$f":"IF(OrigTable!F1485=\"\",\"\",TEXT(OrigTable!F1485,\"00\"))","v":""},{"$f":"IF(OrigTable!F1485=\"\",\"\",ScriptText!$E$1&CHAR(10)&ScriptText!$C$1)","v":""},{"$f":"IF(OrigTable!G1485=\"\",\"\",ScriptText!$B$1&CHAR(10)&ScriptText!$D$1)","v":""},{"$f":"IF(OrigTable!G1485=\"\",\"\",TEXT(OrigTable!G1485,\"00\"))","v":""},{"$f":"IF(OrigTable!G1485=\"\",\"\",ScriptText!$E$1&CHAR(10)&ScriptText!$C$1)","v":""},0]
["\n\n\n",{"$f":"IF(OrigTable!A1486=\"\",\"\",ScriptText!$B$1&CHAR(10)&ScriptText!$D$1)","v":""},{"$f":"IF(OrigTable!A1486=\"\",\"\",TEXT(OrigTable!A1486,\"00\"))","v":""},{"$f":"IF(OrigTable!A1486=\"\",\"\",ScriptText!$E$1&CHAR(10)&ScriptText!$C$1)","v":""},{"$f":"IF(OrigTable!B1486=\"\",\"\",ScriptText!$B$1&CHAR(10)&ScriptText!$D$1)","v":""},{"$f":"IF(OrigTable!B1486=\"\",\"\",TEXT(OrigTable!B1486,\"00\"))","v":""},{"$f":"IF(OrigTable!B1486=\"\",\"\",ScriptText!$E$1&CHAR(10)&ScriptText!C1481)","v":""},{"$f":"IF(OrigTable!C1486=\"\",\"\",ScriptText!$B$1&CHAR(10)&ScriptText!$D$1)","v":""},{"$f":"IF(OrigTable!C1486=\"\",\"\",IF(LEN(OrigTable!C1486)>255,LEFT(OrigTable!C1486,250)&\". . .\",OrigTable!C1486))","v":""},{"$f":"IF(OrigTable!C1486=\"\",\"\",ScriptText!$E$1&CHAR(10)&ScriptText!$C$1)","v":""},{"$f":"IF(OrigTable!D1486=\"\",\"\",ScriptText!$B$1&CHAR(10)&ScriptText!$D$1)","v":""},{"$f":"IF(OrigTable!D1486=\"\",\"\",TEXT(OrigTable!D1486,\"00\"))","v":""},{"$f":"IF(OrigTable!D1486=\"\",\"\",ScriptText!$E$1&CHAR(10)&ScriptText!$C$1)","v":""},{"$f":"IF(OrigTable!E1486=\"\",\"\",ScriptText!$B$1&CHAR(10)&ScriptText!$D$1)","v":""},{"$f":"IF(OrigTable!E1486=\"\",\"\",TEXT(OrigTable!E1486,\"00\"))","v":""},{"$f":"IF(OrigTable!E1486=\"\",\"\",ScriptText!$E$1&CHAR(10)&ScriptText!$C$1)","v":""},{"$f":"IF(OrigTable!F1486=\"\",\"\",ScriptText!$B$1&CHAR(10)&ScriptText!$D$1)","v":""},{"$f":"IF(OrigTable!F1486=\"\",\"\",TEXT(OrigTable!F1486,\"00\"))","v":""},{"$f":"IF(OrigTable!F1486=\"\",\"\",ScriptText!$E$1&CHAR(10)&ScriptText!$C$1)","v":""},{"$f":"IF(OrigTable!G1486=\"\",\"\",ScriptText!$B$1&CHAR(10)&ScriptText!$D$1)","v":""},{"$f":"IF(OrigTable!G1486=\"\",\"\",TEXT(OrigTable!G1486,\"00\"))","v":""},{"$f":"IF(OrigTable!G1486=\"\",\"\",ScriptText!$E$1&CHAR(10)&ScriptText!$C$1)","v":""},0]
["\n\n\n",{"$f":"IF(OrigTable!A1487=\"\",\"\",ScriptText!$B$1&CHAR(10)&ScriptText!$D$1)","v":""},{"$f":"IF(OrigTable!A1487=\"\",\"\",TEXT(OrigTable!A1487,\"00\"))","v":""},{"$f":"IF(OrigTable!A1487=\"\",\"\",ScriptText!$E$1&CHAR(10)&ScriptText!$C$1)","v":""},{"$f":"IF(OrigTable!B1487=\"\",\"\",ScriptText!$B$1&CHAR(10)&ScriptText!$D$1)","v":""},{"$f":"IF(OrigTable!B1487=\"\",\"\",TEXT(OrigTable!B1487,\"00\"))","v":""},{"$f":"IF(OrigTable!B1487=\"\",\"\",ScriptText!$E$1&CHAR(10)&ScriptText!C1482)","v":""},{"$f":"IF(OrigTable!C1487=\"\",\"\",ScriptText!$B$1&CHAR(10)&ScriptText!$D$1)","v":""},{"$f":"IF(OrigTable!C1487=\"\",\"\",IF(LEN(OrigTable!C1487)>255,LEFT(OrigTable!C1487,250)&\". . .\",OrigTable!C1487))","v":""},{"$f":"IF(OrigTable!C1487=\"\",\"\",ScriptText!$E$1&CHAR(10)&ScriptText!$C$1)","v":""},{"$f":"IF(OrigTable!D1487=\"\",\"\",ScriptText!$B$1&CHAR(10)&ScriptText!$D$1)","v":""},{"$f":"IF(OrigTable!D1487=\"\",\"\",TEXT(OrigTable!D1487,\"00\"))","v":""},{"$f":"IF(OrigTable!D1487=\"\",\"\",ScriptText!$E$1&CHAR(10)&ScriptText!$C$1)","v":""},{"$f":"IF(OrigTable!E1487=\"\",\"\",ScriptText!$B$1&CHAR(10)&ScriptText!$D$1)","v":""},{"$f":"IF(OrigTable!E1487=\"\",\"\",TEXT(OrigTable!E1487,\"00\"))","v":""},{"$f":"IF(OrigTable!E1487=\"\",\"\",ScriptText!$E$1&CHAR(10)&ScriptText!$C$1)","v":""},{"$f":"IF(OrigTable!F1487=\"\",\"\",ScriptText!$B$1&CHAR(10)&ScriptText!$D$1)","v":""},{"$f":"IF(OrigTable!F1487=\"\",\"\",TEXT(OrigTable!F1487,\"00\"))","v":""},{"$f":"IF(OrigTable!F1487=\"\",\"\",ScriptText!$E$1&CHAR(10)&ScriptText!$C$1)","v":""},{"$f":"IF(OrigTable!G1487=\"\",\"\",ScriptText!$B$1&CHAR(10)&ScriptText!$D$1)","v":""},{"$f":"IF(OrigTable!G1487=\"\",\"\",TEXT(OrigTable!G1487,\"00\"))","v":""},{"$f":"IF(OrigTable!G1487=\"\",\"\",ScriptText!$E$1&CHAR(10)&ScriptText!$C$1)","v":""},0]
["\n\n\n",{"$f":"IF(OrigTable!A1488=\"\",\"\",ScriptText!$B$1&CHAR(10)&ScriptText!$D$1)","v":""},{"$f":"IF(OrigTable!A1488=\"\",\"\",TEXT(OrigTable!A1488,\"00\"))","v":""},{"$f":"IF(OrigTable!A1488=\"\",\"\",ScriptText!$E$1&CHAR(10)&ScriptText!$C$1)","v":""},{"$f":"IF(OrigTable!B1488=\"\",\"\",ScriptText!$B$1&CHAR(10)&ScriptText!$D$1)","v":""},{"$f":"IF(OrigTable!B1488=\"\",\"\",TEXT(OrigTable!B1488,\"00\"))","v":""},{"$f":"IF(OrigTable!B1488=\"\",\"\",ScriptText!$E$1&CHAR(10)&ScriptText!C1483)","v":""},{"$f":"IF(OrigTable!C1488=\"\",\"\",ScriptText!$B$1&CHAR(10)&ScriptText!$D$1)","v":""},{"$f":"IF(OrigTable!C1488=\"\",\"\",IF(LEN(OrigTable!C1488)>255,LEFT(OrigTable!C1488,250)&\". . .\",OrigTable!C1488))","v":""},{"$f":"IF(OrigTable!C1488=\"\",\"\",ScriptText!$E$1&CHAR(10)&ScriptText!$C$1)","v":""},{"$f":"IF(OrigTable!D1488=\"\",\"\",ScriptText!$B$1&CHAR(10)&ScriptText!$D$1)","v":""},{"$f":"IF(OrigTable!D1488=\"\",\"\",TEXT(OrigTable!D1488,\"00\"))","v":""},{"$f":"IF(OrigTable!D1488=\"\",\"\",ScriptText!$E$1&CHAR(10)&ScriptText!$C$1)","v":""},{"$f":"IF(OrigTable!E1488=\"\",\"\",ScriptText!$B$1&CHAR(10)&ScriptText!$D$1)","v":""},{"$f":"IF(OrigTable!E1488=\"\",\"\",TEXT(OrigTable!E1488,\"00\"))","v":""},{"$f":"IF(OrigTable!E1488=\"\",\"\",ScriptText!$E$1&CHAR(10)&ScriptText!$C$1)","v":""},{"$f":"IF(OrigTable!F1488=\"\",\"\",ScriptText!$B$1&CHAR(10)&ScriptText!$D$1)","v":""},{"$f":"IF(OrigTable!F1488=\"\",\"\",TEXT(OrigTable!F1488,\"00\"))","v":""},{"$f":"IF(OrigTable!F1488=\"\",\"\",ScriptText!$E$1&CHAR(10)&ScriptText!$C$1)","v":""},{"$f":"IF(OrigTable!G1488=\"\",\"\",ScriptText!$B$1&CHAR(10)&ScriptText!$D$1)","v":""},{"$f":"IF(OrigTable!G1488=\"\",\"\",TEXT(OrigTable!G1488,\"00\"))","v":""},{"$f":"IF(OrigTable!G1488=\"\",\"\",ScriptText!$E$1&CHAR(10)&ScriptText!$C$1)","v":""},0]
["\n\n\n",{"$f":"IF(OrigTable!A1489=\"\",\"\",ScriptText!$B$1&CHAR(10)&ScriptText!$D$1)","v":""},{"$f":"IF(OrigTable!A1489=\"\",\"\",TEXT(OrigTable!A1489,\"00\"))","v":""},{"$f":"IF(OrigTable!A1489=\"\",\"\",ScriptText!$E$1&CHAR(10)&ScriptText!$C$1)","v":""},{"$f":"IF(OrigTable!B1489=\"\",\"\",ScriptText!$B$1&CHAR(10)&ScriptText!$D$1)","v":""},{"$f":"IF(OrigTable!B1489=\"\",\"\",TEXT(OrigTable!B1489,\"00\"))","v":""},{"$f":"IF(OrigTable!B1489=\"\",\"\",ScriptText!$E$1&CHAR(10)&ScriptText!C1484)","v":""},{"$f":"IF(OrigTable!C1489=\"\",\"\",ScriptText!$B$1&CHAR(10)&ScriptText!$D$1)","v":""},{"$f":"IF(OrigTable!C1489=\"\",\"\",IF(LEN(OrigTable!C1489)>255,LEFT(OrigTable!C1489,250)&\". . .\",OrigTable!C1489))","v":""},{"$f":"IF(OrigTable!C1489=\"\",\"\",ScriptText!$E$1&CHAR(10)&ScriptText!$C$1)","v":""},{"$f":"IF(OrigTable!D1489=\"\",\"\",ScriptText!$B$1&CHAR(10)&ScriptText!$D$1)","v":""},{"$f":"IF(OrigTable!D1489=\"\",\"\",TEXT(OrigTable!D1489,\"00\"))","v":""},{"$f":"IF(OrigTable!D1489=\"\",\"\",ScriptText!$E$1&CHAR(10)&ScriptText!$C$1)","v":""},{"$f":"IF(OrigTable!E1489=\"\",\"\",ScriptText!$B$1&CHAR(10)&ScriptText!$D$1)","v":""},{"$f":"IF(OrigTable!E1489=\"\",\"\",TEXT(OrigTable!E1489,\"00\"))","v":""},{"$f":"IF(OrigTable!E1489=\"\",\"\",ScriptText!$E$1&CHAR(10)&ScriptText!$C$1)","v":""},{"$f":"IF(OrigTable!F1489=\"\",\"\",ScriptText!$B$1&CHAR(10)&ScriptText!$D$1)","v":""},{"$f":"IF(OrigTable!F1489=\"\",\"\",TEXT(OrigTable!F1489,\"00\"))","v":""},{"$f":"IF(OrigTable!F1489=\"\",\"\",ScriptText!$E$1&CHAR(10)&ScriptText!$C$1)","v":""},{"$f":"IF(OrigTable!G1489=\"\",\"\",ScriptText!$B$1&CHAR(10)&ScriptText!$D$1)","v":""},{"$f":"IF(OrigTable!G1489=\"\",\"\",TEXT(OrigTable!G1489,\"00\"))","v":""},{"$f":"IF(OrigTable!G1489=\"\",\"\",ScriptText!$E$1&CHAR(10)&ScriptText!$C$1)","v":""},0]
["\n\n\n",{"$f":"IF(OrigTable!A1490=\"\",\"\",ScriptText!$B$1&CHAR(10)&ScriptText!$D$1)","v":""},{"$f":"IF(OrigTable!A1490=\"\",\"\",TEXT(OrigTable!A1490,\"00\"))","v":""},{"$f":"IF(OrigTable!A1490=\"\",\"\",ScriptText!$E$1&CHAR(10)&ScriptText!$C$1)","v":""},{"$f":"IF(OrigTable!B1490=\"\",\"\",ScriptText!$B$1&CHAR(10)&ScriptText!$D$1)","v":""},{"$f":"IF(OrigTable!B1490=\"\",\"\",TEXT(OrigTable!B1490,\"00\"))","v":""},{"$f":"IF(OrigTable!B1490=\"\",\"\",ScriptText!$E$1&CHAR(10)&ScriptText!C1485)","v":""},{"$f":"IF(OrigTable!C1490=\"\",\"\",ScriptText!$B$1&CHAR(10)&ScriptText!$D$1)","v":""},{"$f":"IF(OrigTable!C1490=\"\",\"\",IF(LEN(OrigTable!C1490)>255,LEFT(OrigTable!C1490,250)&\". . .\",OrigTable!C1490))","v":""},{"$f":"IF(OrigTable!C1490=\"\",\"\",ScriptText!$E$1&CHAR(10)&ScriptText!$C$1)","v":""},{"$f":"IF(OrigTable!D1490=\"\",\"\",ScriptText!$B$1&CHAR(10)&ScriptText!$D$1)","v":""},{"$f":"IF(OrigTable!D1490=\"\",\"\",TEXT(OrigTable!D1490,\"00\"))","v":""},{"$f":"IF(OrigTable!D1490=\"\",\"\",ScriptText!$E$1&CHAR(10)&ScriptText!$C$1)","v":""},{"$f":"IF(OrigTable!E1490=\"\",\"\",ScriptText!$B$1&CHAR(10)&ScriptText!$D$1)","v":""},{"$f":"IF(OrigTable!E1490=\"\",\"\",TEXT(OrigTable!E1490,\"00\"))","v":""},{"$f":"IF(OrigTable!E1490=\"\",\"\",ScriptText!$E$1&CHAR(10)&ScriptText!$C$1)","v":""},{"$f":"IF(OrigTable!F1490=\"\",\"\",ScriptText!$B$1&CHAR(10)&ScriptText!$D$1)","v":""},{"$f":"IF(OrigTable!F1490=\"\",\"\",TEXT(OrigTable!F1490,\"00\"))","v":""},{"$f":"IF(OrigTable!F1490=\"\",\"\",ScriptText!$E$1&CHAR(10)&ScriptText!$C$1)","v":""},{"$f":"IF(OrigTable!G1490=\"\",\"\",ScriptText!$B$1&CHAR(10)&ScriptText!$D$1)","v":""},{"$f":"IF(OrigTable!G1490=\"\",\"\",TEXT(OrigTable!G1490,\"00\"))","v":""},{"$f":"IF(OrigTable!G1490=\"\",\"\",ScriptText!$E$1&CHAR(10)&ScriptText!$C$1)","v":""},0]
["\n\n\n",{"$f":"IF(OrigTable!A1491=\"\",\"\",ScriptText!$B$1&CHAR(10)&ScriptText!$D$1)","v":""},{"$f":"IF(OrigTable!A1491=\"\",\"\",TEXT(OrigTable!A1491,\"00\"))","v":""},{"$f":"IF(OrigTable!A1491=\"\",\"\",ScriptText!$E$1&CHAR(10)&ScriptText!$C$1)","v":""},{"$f":"IF(OrigTable!B1491=\"\",\"\",ScriptText!$B$1&CHAR(10)&ScriptText!$D$1)","v":""},{"$f":"IF(OrigTable!B1491=\"\",\"\",TEXT(OrigTable!B1491,\"00\"))","v":""},{"$f":"IF(OrigTable!B1491=\"\",\"\",ScriptText!$E$1&CHAR(10)&ScriptText!C1486)","v":""},{"$f":"IF(OrigTable!C1491=\"\",\"\",ScriptText!$B$1&CHAR(10)&ScriptText!$D$1)","v":""},{"$f":"IF(OrigTable!C1491=\"\",\"\",IF(LEN(OrigTable!C1491)>255,LEFT(OrigTable!C1491,250)&\". . .\",OrigTable!C1491))","v":""},{"$f":"IF(OrigTable!C1491=\"\",\"\",ScriptText!$E$1&CHAR(10)&ScriptText!$C$1)","v":""},{"$f":"IF(OrigTable!D1491=\"\",\"\",ScriptText!$B$1&CHAR(10)&ScriptText!$D$1)","v":""},{"$f":"IF(OrigTable!D1491=\"\",\"\",TEXT(OrigTable!D1491,\"00\"))","v":""},{"$f":"IF(OrigTable!D1491=\"\",\"\",ScriptText!$E$1&CHAR(10)&ScriptText!$C$1)","v":""},{"$f":"IF(OrigTable!E1491=\"\",\"\",ScriptText!$B$1&CHAR(10)&ScriptText!$D$1)","v":""},{"$f":"IF(OrigTable!E1491=\"\",\"\",TEXT(OrigTable!E1491,\"00\"))","v":""},{"$f":"IF(OrigTable!E1491=\"\",\"\",ScriptText!$E$1&CHAR(10)&ScriptText!$C$1)","v":""},{"$f":"IF(OrigTable!F1491=\"\",\"\",ScriptText!$B$1&CHAR(10)&ScriptText!$D$1)","v":""},{"$f":"IF(OrigTable!F1491=\"\",\"\",TEXT(OrigTable!F1491,\"00\"))","v":""},{"$f":"IF(OrigTable!F1491=\"\",\"\",ScriptText!$E$1&CHAR(10)&ScriptText!$C$1)","v":""},{"$f":"IF(OrigTable!G1491=\"\",\"\",ScriptText!$B$1&CHAR(10)&ScriptText!$D$1)","v":""},{"$f":"IF(OrigTable!G1491=\"\",\"\",TEXT(OrigTable!G1491,\"00\"))","v":""},{"$f":"IF(OrigTable!G1491=\"\",\"\",ScriptText!$E$1&CHAR(10)&ScriptText!$C$1)","v":""},0]
["\n\n\n",{"$f":"IF(OrigTable!A1492=\"\",\"\",ScriptText!$B$1&CHAR(10)&ScriptText!$D$1)","v":""},{"$f":"IF(OrigTable!A1492=\"\",\"\",TEXT(OrigTable!A1492,\"00\"))","v":""},{"$f":"IF(OrigTable!A1492=\"\",\"\",ScriptText!$E$1&CHAR(10)&ScriptText!$C$1)","v":""},{"$f":"IF(OrigTable!B1492=\"\",\"\",ScriptText!$B$1&CHAR(10)&ScriptText!$D$1)","v":""},{"$f":"IF(OrigTable!B1492=\"\",\"\",TEXT(OrigTable!B1492,\"00\"))","v":""},{"$f":"IF(OrigTable!B1492=\"\",\"\",ScriptText!$E$1&CHAR(10)&ScriptText!C1487)","v":""},{"$f":"IF(OrigTable!C1492=\"\",\"\",ScriptText!$B$1&CHAR(10)&ScriptText!$D$1)","v":""},{"$f":"IF(OrigTable!C1492=\"\",\"\",IF(LEN(OrigTable!C1492)>255,LEFT(OrigTable!C1492,250)&\". . .\",OrigTable!C1492))","v":""},{"$f":"IF(OrigTable!C1492=\"\",\"\",ScriptText!$E$1&CHAR(10)&ScriptText!$C$1)","v":""},{"$f":"IF(OrigTable!D1492=\"\",\"\",ScriptText!$B$1&CHAR(10)&ScriptText!$D$1)","v":""},{"$f":"IF(OrigTable!D1492=\"\",\"\",TEXT(OrigTable!D1492,\"00\"))","v":""},{"$f":"IF(OrigTable!D1492=\"\",\"\",ScriptText!$E$1&CHAR(10)&ScriptText!$C$1)","v":""},{"$f":"IF(OrigTable!E1492=\"\",\"\",ScriptText!$B$1&CHAR(10)&ScriptText!$D$1)","v":""},{"$f":"IF(OrigTable!E1492=\"\",\"\",TEXT(OrigTable!E1492,\"00\"))","v":""},{"$f":"IF(OrigTable!E1492=\"\",\"\",ScriptText!$E$1&CHAR(10)&ScriptText!$C$1)","v":""},{"$f":"IF(OrigTable!F1492=\"\",\"\",ScriptText!$B$1&CHAR(10)&ScriptText!$D$1)","v":""},{"$f":"IF(OrigTable!F1492=\"\",\"\",TEXT(OrigTable!F1492,\"00\"))","v":""},{"$f":"IF(OrigTable!F1492=\"\",\"\",ScriptText!$E$1&CHAR(10)&ScriptText!$C$1)","v":""},{"$f":"IF(OrigTable!G1492=\"\",\"\",ScriptText!$B$1&CHAR(10)&ScriptText!$D$1)","v":""},{"$f":"IF(OrigTable!G1492=\"\",\"\",TEXT(OrigTable!G1492,\"00\"))","v":""},{"$f":"IF(OrigTable!G1492=\"\",\"\",ScriptText!$E$1&CHAR(10)&ScriptText!$C$1)","v":""},0]
["\n\n\n",{"$f":"IF(OrigTable!A1493=\"\",\"\",ScriptText!$B$1&CHAR(10)&ScriptText!$D$1)","v":""},{"$f":"IF(OrigTable!A1493=\"\",\"\",TEXT(OrigTable!A1493,\"00\"))","v":""},{"$f":"IF(OrigTable!A1493=\"\",\"\",ScriptText!$E$1&CHAR(10)&ScriptText!$C$1)","v":""},{"$f":"IF(OrigTable!B1493=\"\",\"\",ScriptText!$B$1&CHAR(10)&ScriptText!$D$1)","v":""},{"$f":"IF(OrigTable!B1493=\"\",\"\",TEXT(OrigTable!B1493,\"00\"))","v":""},{"$f":"IF(OrigTable!B1493=\"\",\"\",ScriptText!$E$1&CHAR(10)&ScriptText!C1488)","v":""},{"$f":"IF(OrigTable!C1493=\"\",\"\",ScriptText!$B$1&CHAR(10)&ScriptText!$D$1)","v":""},{"$f":"IF(OrigTable!C1493=\"\",\"\",IF(LEN(OrigTable!C1493)>255,LEFT(OrigTable!C1493,250)&\". . .\",OrigTable!C1493))","v":""},{"$f":"IF(OrigTable!C1493=\"\",\"\",ScriptText!$E$1&CHAR(10)&ScriptText!$C$1)","v":""},{"$f":"IF(OrigTable!D1493=\"\",\"\",ScriptText!$B$1&CHAR(10)&ScriptText!$D$1)","v":""},{"$f":"IF(OrigTable!D1493=\"\",\"\",TEXT(OrigTable!D1493,\"00\"))","v":""},{"$f":"IF(OrigTable!D1493=\"\",\"\",ScriptText!$E$1&CHAR(10)&ScriptText!$C$1)","v":""},{"$f":"IF(OrigTable!E1493=\"\",\"\",ScriptText!$B$1&CHAR(10)&ScriptText!$D$1)","v":""},{"$f":"IF(OrigTable!E1493=\"\",\"\",TEXT(OrigTable!E1493,\"00\"))","v":""},{"$f":"IF(OrigTable!E1493=\"\",\"\",ScriptText!$E$1&CHAR(10)&ScriptText!$C$1)","v":""},{"$f":"IF(OrigTable!F1493=\"\",\"\",ScriptText!$B$1&CHAR(10)&ScriptText!$D$1)","v":""},{"$f":"IF(OrigTable!F1493=\"\",\"\",TEXT(OrigTable!F1493,\"00\"))","v":""},{"$f":"IF(OrigTable!F1493=\"\",\"\",ScriptText!$E$1&CHAR(10)&ScriptText!$C$1)","v":""},{"$f":"IF(OrigTable!G1493=\"\",\"\",ScriptText!$B$1&CHAR(10)&ScriptText!$D$1)","v":""},{"$f":"IF(OrigTable!G1493=\"\",\"\",TEXT(OrigTable!G1493,\"00\"))","v":""},{"$f":"IF(OrigTable!G1493=\"\",\"\",ScriptText!$E$1&CHAR(10)&ScriptText!$C$1)","v":""},0]
["\n\n\n",{"$f":"IF(OrigTable!A1494=\"\",\"\",ScriptText!$B$1&CHAR(10)&ScriptText!$D$1)","v":""},{"$f":"IF(OrigTable!A1494=\"\",\"\",TEXT(OrigTable!A1494,\"00\"))","v":""},{"$f":"IF(OrigTable!A1494=\"\",\"\",ScriptText!$E$1&CHAR(10)&ScriptText!$C$1)","v":""},{"$f":"IF(OrigTable!B1494=\"\",\"\",ScriptText!$B$1&CHAR(10)&ScriptText!$D$1)","v":""},{"$f":"IF(OrigTable!B1494=\"\",\"\",TEXT(OrigTable!B1494,\"00\"))","v":""},{"$f":"IF(OrigTable!B1494=\"\",\"\",ScriptText!$E$1&CHAR(10)&ScriptText!C1489)","v":""},{"$f":"IF(OrigTable!C1494=\"\",\"\",ScriptText!$B$1&CHAR(10)&ScriptText!$D$1)","v":""},{"$f":"IF(OrigTable!C1494=\"\",\"\",IF(LEN(OrigTable!C1494)>255,LEFT(OrigTable!C1494,250)&\". . .\",OrigTable!C1494))","v":""},{"$f":"IF(OrigTable!C1494=\"\",\"\",ScriptText!$E$1&CHAR(10)&ScriptText!$C$1)","v":""},{"$f":"IF(OrigTable!D1494=\"\",\"\",ScriptText!$B$1&CHAR(10)&ScriptText!$D$1)","v":""},{"$f":"IF(OrigTable!D1494=\"\",\"\",TEXT(OrigTable!D1494,\"00\"))","v":""},{"$f":"IF(OrigTable!D1494=\"\",\"\",ScriptText!$E$1&CHAR(10)&ScriptText!$C$1)","v":""},{"$f":"IF(OrigTable!E1494=\"\",\"\",ScriptText!$B$1&CHAR(10)&ScriptText!$D$1)","v":""},{"$f":"IF(OrigTable!E1494=\"\",\"\",TEXT(OrigTable!E1494,\"00\"))","v":""},{"$f":"IF(OrigTable!E1494=\"\",\"\",ScriptText!$E$1&CHAR(10)&ScriptText!$C$1)","v":""},{"$f":"IF(OrigTable!F1494=\"\",\"\",ScriptText!$B$1&CHAR(10)&ScriptText!$D$1)","v":""},{"$f":"IF(OrigTable!F1494=\"\",\"\",TEXT(OrigTable!F1494,\"00\"))","v":""},{"$f":"IF(OrigTable!F1494=\"\",\"\",ScriptText!$E$1&CHAR(10)&ScriptText!$C$1)","v":""},{"$f":"IF(OrigTable!G1494=\"\",\"\",ScriptText!$B$1&CHAR(10)&ScriptText!$D$1)","v":""},{"$f":"IF(OrigTable!G1494=\"\",\"\",TEXT(OrigTable!G1494,\"00\"))","v":""},{"$f":"IF(OrigTable!G1494=\"\",\"\",ScriptText!$E$1&CHAR(10)&ScriptText!$C$1)","v":""},0]
["\n\n\n",{"$f":"IF(OrigTable!A1495=\"\",\"\",ScriptText!$B$1&CHAR(10)&ScriptText!$D$1)","v":""},{"$f":"IF(OrigTable!A1495=\"\",\"\",TEXT(OrigTable!A1495,\"00\"))","v":""},{"$f":"IF(OrigTable!A1495=\"\",\"\",ScriptText!$E$1&CHAR(10)&ScriptText!$C$1)","v":""},{"$f":"IF(OrigTable!B1495=\"\",\"\",ScriptText!$B$1&CHAR(10)&ScriptText!$D$1)","v":""},{"$f":"IF(OrigTable!B1495=\"\",\"\",TEXT(OrigTable!B1495,\"00\"))","v":""},{"$f":"IF(OrigTable!B1495=\"\",\"\",ScriptText!$E$1&CHAR(10)&ScriptText!C1490)","v":""},{"$f":"IF(OrigTable!C1495=\"\",\"\",ScriptText!$B$1&CHAR(10)&ScriptText!$D$1)","v":""},{"$f":"IF(OrigTable!C1495=\"\",\"\",IF(LEN(OrigTable!C1495)>255,LEFT(OrigTable!C1495,250)&\". . .\",OrigTable!C1495))","v":""},{"$f":"IF(OrigTable!C1495=\"\",\"\",ScriptText!$E$1&CHAR(10)&ScriptText!$C$1)","v":""},{"$f":"IF(OrigTable!D1495=\"\",\"\",ScriptText!$B$1&CHAR(10)&ScriptText!$D$1)","v":""},{"$f":"IF(OrigTable!D1495=\"\",\"\",TEXT(OrigTable!D1495,\"00\"))","v":""},{"$f":"IF(OrigTable!D1495=\"\",\"\",ScriptText!$E$1&CHAR(10)&ScriptText!$C$1)","v":""},{"$f":"IF(OrigTable!E1495=\"\",\"\",ScriptText!$B$1&CHAR(10)&ScriptText!$D$1)","v":""},{"$f":"IF(OrigTable!E1495=\"\",\"\",TEXT(OrigTable!E1495,\"00\"))","v":""},{"$f":"IF(OrigTable!E1495=\"\",\"\",ScriptText!$E$1&CHAR(10)&ScriptText!$C$1)","v":""},{"$f":"IF(OrigTable!F1495=\"\",\"\",ScriptText!$B$1&CHAR(10)&ScriptText!$D$1)","v":""},{"$f":"IF(OrigTable!F1495=\"\",\"\",TEXT(OrigTable!F1495,\"00\"))","v":""},{"$f":"IF(OrigTable!F1495=\"\",\"\",ScriptText!$E$1&CHAR(10)&ScriptText!$C$1)","v":""},{"$f":"IF(OrigTable!G1495=\"\",\"\",ScriptText!$B$1&CHAR(10)&ScriptText!$D$1)","v":""},{"$f":"IF(OrigTable!G1495=\"\",\"\",TEXT(OrigTable!G1495,\"00\"))","v":""},{"$f":"IF(OrigTable!G1495=\"\",\"\",ScriptText!$E$1&CHAR(10)&ScriptText!$C$1)","v":""},0]
["\n\n\n",{"$f":"IF(OrigTable!A1496=\"\",\"\",ScriptText!$B$1&CHAR(10)&ScriptText!$D$1)","v":""},{"$f":"IF(OrigTable!A1496=\"\",\"\",TEXT(OrigTable!A1496,\"00\"))","v":""},{"$f":"IF(OrigTable!A1496=\"\",\"\",ScriptText!$E$1&CHAR(10)&ScriptText!$C$1)","v":""},{"$f":"IF(OrigTable!B1496=\"\",\"\",ScriptText!$B$1&CHAR(10)&ScriptText!$D$1)","v":""},{"$f":"IF(OrigTable!B1496=\"\",\"\",TEXT(OrigTable!B1496,\"00\"))","v":""},{"$f":"IF(OrigTable!B1496=\"\",\"\",ScriptText!$E$1&CHAR(10)&ScriptText!C1491)","v":""},{"$f":"IF(OrigTable!C1496=\"\",\"\",ScriptText!$B$1&CHAR(10)&ScriptText!$D$1)","v":""},{"$f":"IF(OrigTable!C1496=\"\",\"\",IF(LEN(OrigTable!C1496)>255,LEFT(OrigTable!C1496,250)&\". . .\",OrigTable!C1496))","v":""},{"$f":"IF(OrigTable!C1496=\"\",\"\",ScriptText!$E$1&CHAR(10)&ScriptText!$C$1)","v":""},{"$f":"IF(OrigTable!D1496=\"\",\"\",ScriptText!$B$1&CHAR(10)&ScriptText!$D$1)","v":""},{"$f":"IF(OrigTable!D1496=\"\",\"\",TEXT(OrigTable!D1496,\"00\"))","v":""},{"$f":"IF(OrigTable!D1496=\"\",\"\",ScriptText!$E$1&CHAR(10)&ScriptText!$C$1)","v":""},{"$f":"IF(OrigTable!E1496=\"\",\"\",ScriptText!$B$1&CHAR(10)&ScriptText!$D$1)","v":""},{"$f":"IF(OrigTable!E1496=\"\",\"\",TEXT(OrigTable!E1496,\"00\"))","v":""},{"$f":"IF(OrigTable!E1496=\"\",\"\",ScriptText!$E$1&CHAR(10)&ScriptText!$C$1)","v":""},{"$f":"IF(OrigTable!F1496=\"\",\"\",ScriptText!$B$1&CHAR(10)&ScriptText!$D$1)","v":""},{"$f":"IF(OrigTable!F1496=\"\",\"\",TEXT(OrigTable!F1496,\"00\"))","v":""},{"$f":"IF(OrigTable!F1496=\"\",\"\",ScriptText!$E$1&CHAR(10)&ScriptText!$C$1)","v":""},{"$f":"IF(OrigTable!G1496=\"\",\"\",ScriptText!$B$1&CHAR(10)&ScriptText!$D$1)","v":""},{"$f":"IF(OrigTable!G1496=\"\",\"\",TEXT(OrigTable!G1496,\"00\"))","v":""},{"$f":"IF(OrigTable!G1496=\"\",\"\",ScriptText!$E$1&CHAR(10)&ScriptText!$C$1)","v":""},0]
["\n\n\n",{"$f":"IF(OrigTable!A1497=\"\",\"\",ScriptText!$B$1&CHAR(10)&ScriptText!$D$1)","v":""},{"$f":"IF(OrigTable!A1497=\"\",\"\",TEXT(OrigTable!A1497,\"00\"))","v":""},{"$f":"IF(OrigTable!A1497=\"\",\"\",ScriptText!$E$1&CHAR(10)&ScriptText!$C$1)","v":""},{"$f":"IF(OrigTable!B1497=\"\",\"\",ScriptText!$B$1&CHAR(10)&ScriptText!$D$1)","v":""},{"$f":"IF(OrigTable!B1497=\"\",\"\",TEXT(OrigTable!B1497,\"00\"))","v":""},{"$f":"IF(OrigTable!B1497=\"\",\"\",ScriptText!$E$1&CHAR(10)&ScriptText!C1492)","v":""},{"$f":"IF(OrigTable!C1497=\"\",\"\",ScriptText!$B$1&CHAR(10)&ScriptText!$D$1)","v":""},{"$f":"IF(OrigTable!C1497=\"\",\"\",IF(LEN(OrigTable!C1497)>255,LEFT(OrigTable!C1497,250)&\". . .\",OrigTable!C1497))","v":""},{"$f":"IF(OrigTable!C1497=\"\",\"\",ScriptText!$E$1&CHAR(10)&ScriptText!$C$1)","v":""},{"$f":"IF(OrigTable!D1497=\"\",\"\",ScriptText!$B$1&CHAR(10)&ScriptText!$D$1)","v":""},{"$f":"IF(OrigTable!D1497=\"\",\"\",TEXT(OrigTable!D1497,\"00\"))","v":""},{"$f":"IF(OrigTable!D1497=\"\",\"\",ScriptText!$E$1&CHAR(10)&ScriptText!$C$1)","v":""},{"$f":"IF(OrigTable!E1497=\"\",\"\",ScriptText!$B$1&CHAR(10)&ScriptText!$D$1)","v":""},{"$f":"IF(OrigTable!E1497=\"\",\"\",TEXT(OrigTable!E1497,\"00\"))","v":""},{"$f":"IF(OrigTable!E1497=\"\",\"\",ScriptText!$E$1&CHAR(10)&ScriptText!$C$1)","v":""},{"$f":"IF(OrigTable!F1497=\"\",\"\",ScriptText!$B$1&CHAR(10)&ScriptText!$D$1)","v":""},{"$f":"IF(OrigTable!F1497=\"\",\"\",TEXT(OrigTable!F1497,\"00\"))","v":""},{"$f":"IF(OrigTable!F1497=\"\",\"\",ScriptText!$E$1&CHAR(10)&ScriptText!$C$1)","v":""},{"$f":"IF(OrigTable!G1497=\"\",\"\",ScriptText!$B$1&CHAR(10)&ScriptText!$D$1)","v":""},{"$f":"IF(OrigTable!G1497=\"\",\"\",TEXT(OrigTable!G1497,\"00\"))","v":""},{"$f":"IF(OrigTable!G1497=\"\",\"\",ScriptText!$E$1&CHAR(10)&ScriptText!$C$1)","v":""},0]
["\n\n\n",{"$f":"IF(OrigTable!A1498=\"\",\"\",ScriptText!$B$1&CHAR(10)&ScriptText!$D$1)","v":""},{"$f":"IF(OrigTable!A1498=\"\",\"\",TEXT(OrigTable!A1498,\"00\"))","v":""},{"$f":"IF(OrigTable!A1498=\"\",\"\",ScriptText!$E$1&CHAR(10)&ScriptText!$C$1)","v":""},{"$f":"IF(OrigTable!B1498=\"\",\"\",ScriptText!$B$1&CHAR(10)&ScriptText!$D$1)","v":""},{"$f":"IF(OrigTable!B1498=\"\",\"\",TEXT(OrigTable!B1498,\"00\"))","v":""},{"$f":"IF(OrigTable!B1498=\"\",\"\",ScriptText!$E$1&CHAR(10)&ScriptText!C1493)","v":""},{"$f":"IF(OrigTable!C1498=\"\",\"\",ScriptText!$B$1&CHAR(10)&ScriptText!$D$1)","v":""},{"$f":"IF(OrigTable!C1498=\"\",\"\",IF(LEN(OrigTable!C1498)>255,LEFT(OrigTable!C1498,250)&\". . .\",OrigTable!C1498))","v":""},{"$f":"IF(OrigTable!C1498=\"\",\"\",ScriptText!$E$1&CHAR(10)&ScriptText!$C$1)","v":""},{"$f":"IF(OrigTable!D1498=\"\",\"\",ScriptText!$B$1&CHAR(10)&ScriptText!$D$1)","v":""},{"$f":"IF(OrigTable!D1498=\"\",\"\",TEXT(OrigTable!D1498,\"00\"))","v":""},{"$f":"IF(OrigTable!D1498=\"\",\"\",ScriptText!$E$1&CHAR(10)&ScriptText!$C$1)","v":""},{"$f":"IF(OrigTable!E1498=\"\",\"\",ScriptText!$B$1&CHAR(10)&ScriptText!$D$1)","v":""},{"$f":"IF(OrigTable!E1498=\"\",\"\",TEXT(OrigTable!E1498,\"00\"))","v":""},{"$f":"IF(OrigTable!E1498=\"\",\"\",ScriptText!$E$1&CHAR(10)&ScriptText!$C$1)","v":""},{"$f":"IF(OrigTable!F1498=\"\",\"\",ScriptText!$B$1&CHAR(10)&ScriptText!$D$1)","v":""},{"$f":"IF(OrigTable!F1498=\"\",\"\",TEXT(OrigTable!F1498,\"00\"))","v":""},{"$f":"IF(OrigTable!F1498=\"\",\"\",ScriptText!$E$1&CHAR(10)&ScriptText!$C$1)","v":""},{"$f":"IF(OrigTable!G1498=\"\",\"\",ScriptText!$B$1&CHAR(10)&ScriptText!$D$1)","v":""},{"$f":"IF(OrigTable!G1498=\"\",\"\",TEXT(OrigTable!G1498,\"00\"))","v":""},{"$f":"IF(OrigTable!G1498=\"\",\"\",ScriptText!$E$1&CHAR(10)&ScriptText!$C$1)","v":""},0]
["\n\n\n",{"$f":"IF(OrigTable!A1499=\"\",\"\",ScriptText!$B$1&CHAR(10)&ScriptText!$D$1)","v":""},{"$f":"IF(OrigTable!A1499=\"\",\"\",TEXT(OrigTable!A1499,\"00\"))","v":""},{"$f":"IF(OrigTable!A1499=\"\",\"\",ScriptText!$E$1&CHAR(10)&ScriptText!$C$1)","v":""},{"$f":"IF(OrigTable!B1499=\"\",\"\",ScriptText!$B$1&CHAR(10)&ScriptText!$D$1)","v":""},{"$f":"IF(OrigTable!B1499=\"\",\"\",TEXT(OrigTable!B1499,\"00\"))","v":""},{"$f":"IF(OrigTable!B1499=\"\",\"\",ScriptText!$E$1&CHAR(10)&ScriptText!C1494)","v":""},{"$f":"IF(OrigTable!C1499=\"\",\"\",ScriptText!$B$1&CHAR(10)&ScriptText!$D$1)","v":""},{"$f":"IF(OrigTable!C1499=\"\",\"\",IF(LEN(OrigTable!C1499)>255,LEFT(OrigTable!C1499,250)&\". . .\",OrigTable!C1499))","v":""},{"$f":"IF(OrigTable!C1499=\"\",\"\",ScriptText!$E$1&CHAR(10)&ScriptText!$C$1)","v":""},{"$f":"IF(OrigTable!D1499=\"\",\"\",ScriptText!$B$1&CHAR(10)&ScriptText!$D$1)","v":""},{"$f":"IF(OrigTable!D1499=\"\",\"\",TEXT(OrigTable!D1499,\"00\"))","v":""},{"$f":"IF(OrigTable!D1499=\"\",\"\",ScriptText!$E$1&CHAR(10)&ScriptText!$C$1)","v":""},{"$f":"IF(OrigTable!E1499=\"\",\"\",ScriptText!$B$1&CHAR(10)&ScriptText!$D$1)","v":""},{"$f":"IF(OrigTable!E1499=\"\",\"\",TEXT(OrigTable!E1499,\"00\"))","v":""},{"$f":"IF(OrigTable!E1499=\"\",\"\",ScriptText!$E$1&CHAR(10)&ScriptText!$C$1)","v":""},{"$f":"IF(OrigTable!F1499=\"\",\"\",ScriptText!$B$1&CHAR(10)&ScriptText!$D$1)","v":""},{"$f":"IF(OrigTable!F1499=\"\",\"\",TEXT(OrigTable!F1499,\"00\"))","v":""},{"$f":"IF(OrigTable!F1499=\"\",\"\",ScriptText!$E$1&CHAR(10)&ScriptText!$C$1)","v":""},{"$f":"IF(OrigTable!G1499=\"\",\"\",ScriptText!$B$1&CHAR(10)&ScriptText!$D$1)","v":""},{"$f":"IF(OrigTable!G1499=\"\",\"\",TEXT(OrigTable!G1499,\"00\"))","v":""},{"$f":"IF(OrigTable!G1499=\"\",\"\",ScriptText!$E$1&CHAR(10)&ScriptText!$C$1)","v":""},0]
["\n\n\n",{"$f":"IF(OrigTable!A1500=\"\",\"\",ScriptText!$B$1&CHAR(10)&ScriptText!$D$1)","v":""},{"$f":"IF(OrigTable!A1500=\"\",\"\",TEXT(OrigTable!A1500,\"00\"))","v":""},{"$f":"IF(OrigTable!A1500=\"\",\"\",ScriptText!$E$1&CHAR(10)&ScriptText!$C$1)","v":""},{"$f":"IF(OrigTable!B1500=\"\",\"\",ScriptText!$B$1&CHAR(10)&ScriptText!$D$1)","v":""},{"$f":"IF(OrigTable!B1500=\"\",\"\",TEXT(OrigTable!B1500,\"00\"))","v":""},{"$f":"IF(OrigTable!B1500=\"\",\"\",ScriptText!$E$1&CHAR(10)&ScriptText!C1495)","v":""},{"$f":"IF(OrigTable!C1500=\"\",\"\",ScriptText!$B$1&CHAR(10)&ScriptText!$D$1)","v":""},{"$f":"IF(OrigTable!C1500=\"\",\"\",IF(LEN(OrigTable!C1500)>255,LEFT(OrigTable!C1500,250)&\". . .\",OrigTable!C1500))","v":""},{"$f":"IF(OrigTable!C1500=\"\",\"\",ScriptText!$E$1&CHAR(10)&ScriptText!$C$1)","v":""},{"$f":"IF(OrigTable!D1500=\"\",\"\",ScriptText!$B$1&CHAR(10)&ScriptText!$D$1)","v":""},{"$f":"IF(OrigTable!D1500=\"\",\"\",TEXT(OrigTable!D1500,\"00\"))","v":""},{"$f":"IF(OrigTable!D1500=\"\",\"\",ScriptText!$E$1&CHAR(10)&ScriptText!$C$1)","v":""},{"$f":"IF(OrigTable!E1500=\"\",\"\",ScriptText!$B$1&CHAR(10)&ScriptText!$D$1)","v":""},{"$f":"IF(OrigTable!E1500=\"\",\"\",TEXT(OrigTable!E1500,\"00\"))","v":""},{"$f":"IF(OrigTable!E1500=\"\",\"\",ScriptText!$E$1&CHAR(10)&ScriptText!$C$1)","v":""},{"$f":"IF(OrigTable!F1500=\"\",\"\",ScriptText!$B$1&CHAR(10)&ScriptText!$D$1)","v":""},{"$f":"IF(OrigTable!F1500=\"\",\"\",TEXT(OrigTable!F1500,\"00\"))","v":""},{"$f":"IF(OrigTable!F1500=\"\",\"\",ScriptText!$E$1&CHAR(10)&ScriptText!$C$1)","v":""},{"$f":"IF(OrigTable!G1500=\"\",\"\",ScriptText!$B$1&CHAR(10)&ScriptText!$D$1)","v":""},{"$f":"IF(OrigTable!G1500=\"\",\"\",TEXT(OrigTable!G1500,\"00\"))","v":""},{"$f":"IF(OrigTable!G1500=\"\",\"\",ScriptText!$E$1&CHAR(10)&ScriptText!$C$1)","v":""},0]
["\n\n\n",{"$f":"IF(OrigTable!A1501=\"\",\"\",ScriptText!$B$1&CHAR(10)&ScriptText!$D$1)","v":""},{"$f":"IF(OrigTable!A1501=\"\",\"\",TEXT(OrigTable!A1501,\"00\"))","v":""},{"$f":"IF(OrigTable!A1501=\"\",\"\",ScriptText!$E$1&CHAR(10)&ScriptText!$C$1)","v":""},{"$f":"IF(OrigTable!B1501=\"\",\"\",ScriptText!$B$1&CHAR(10)&ScriptText!$D$1)","v":""},{"$f":"IF(OrigTable!B1501=\"\",\"\",TEXT(OrigTable!B1501,\"00\"))","v":""},{"$f":"IF(OrigTable!B1501=\"\",\"\",ScriptText!$E$1&CHAR(10)&ScriptText!C1496)","v":""},{"$f":"IF(OrigTable!C1501=\"\",\"\",ScriptText!$B$1&CHAR(10)&ScriptText!$D$1)","v":""},{"$f":"IF(OrigTable!C1501=\"\",\"\",IF(LEN(OrigTable!C1501)>255,LEFT(OrigTable!C1501,250)&\". . .\",OrigTable!C1501))","v":""},{"$f":"IF(OrigTable!C1501=\"\",\"\",ScriptText!$E$1&CHAR(10)&ScriptText!$C$1)","v":""},{"$f":"IF(OrigTable!D1501=\"\",\"\",ScriptText!$B$1&CHAR(10)&ScriptText!$D$1)","v":""},{"$f":"IF(OrigTable!D1501=\"\",\"\",TEXT(OrigTable!D1501,\"00\"))","v":""},{"$f":"IF(OrigTable!D1501=\"\",\"\",ScriptText!$E$1&CHAR(10)&ScriptText!$C$1)","v":""},{"$f":"IF(OrigTable!E1501=\"\",\"\",ScriptText!$B$1&CHAR(10)&ScriptText!$D$1)","v":""},{"$f":"IF(OrigTable!E1501=\"\",\"\",TEXT(OrigTable!E1501,\"00\"))","v":""},{"$f":"IF(OrigTable!E1501=\"\",\"\",ScriptText!$E$1&CHAR(10)&ScriptText!$C$1)","v":""},{"$f":"IF(OrigTable!F1501=\"\",\"\",ScriptText!$B$1&CHAR(10)&ScriptText!$D$1)","v":""},{"$f":"IF(OrigTable!F1501=\"\",\"\",TEXT(OrigTable!F1501,\"00\"))","v":""},{"$f":"IF(OrigTable!F1501=\"\",\"\",ScriptText!$E$1&CHAR(10)&ScriptText!$C$1)","v":""},{"$f":"IF(OrigTable!G1501=\"\",\"\",ScriptText!$B$1&CHAR(10)&ScriptText!$D$1)","v":""},{"$f":"IF(OrigTable!G1501=\"\",\"\",TEXT(OrigTable!G1501,\"00\"))","v":""},{"$f":"IF(OrigTable!G1501=\"\",\"\",ScriptText!$E$1&CHAR(10)&ScriptText!$C$1)","v":""},0]
["\n\n\n",{"$f":"IF(OrigTable!A1502=\"\",\"\",ScriptText!$B$1&CHAR(10)&ScriptText!$D$1)","v":""},{"$f":"IF(OrigTable!A1502=\"\",\"\",TEXT(OrigTable!A1502,\"00\"))","v":""},{"$f":"IF(OrigTable!A1502=\"\",\"\",ScriptText!$E$1&CHAR(10)&ScriptText!$C$1)","v":""},{"$f":"IF(OrigTable!B1502=\"\",\"\",ScriptText!$B$1&CHAR(10)&ScriptText!$D$1)","v":""},{"$f":"IF(OrigTable!B1502=\"\",\"\",TEXT(OrigTable!B1502,\"00\"))","v":""},{"$f":"IF(OrigTable!B1502=\"\",\"\",ScriptText!$E$1&CHAR(10)&ScriptText!C1497)","v":""},{"$f":"IF(OrigTable!C1502=\"\",\"\",ScriptText!$B$1&CHAR(10)&ScriptText!$D$1)","v":""},{"$f":"IF(OrigTable!C1502=\"\",\"\",IF(LEN(OrigTable!C1502)>255,LEFT(OrigTable!C1502,250)&\". . .\",OrigTable!C1502))","v":""},{"$f":"IF(OrigTable!C1502=\"\",\"\",ScriptText!$E$1&CHAR(10)&ScriptText!$C$1)","v":""},{"$f":"IF(OrigTable!D1502=\"\",\"\",ScriptText!$B$1&CHAR(10)&ScriptText!$D$1)","v":""},{"$f":"IF(OrigTable!D1502=\"\",\"\",TEXT(OrigTable!D1502,\"00\"))","v":""},{"$f":"IF(OrigTable!D1502=\"\",\"\",ScriptText!$E$1&CHAR(10)&ScriptText!$C$1)","v":""},{"$f":"IF(OrigTable!E1502=\"\",\"\",ScriptText!$B$1&CHAR(10)&ScriptText!$D$1)","v":""},{"$f":"IF(OrigTable!E1502=\"\",\"\",TEXT(OrigTable!E1502,\"00\"))","v":""},{"$f":"IF(OrigTable!E1502=\"\",\"\",ScriptText!$E$1&CHAR(10)&ScriptText!$C$1)","v":""},{"$f":"IF(OrigTable!F1502=\"\",\"\",ScriptText!$B$1&CHAR(10)&ScriptText!$D$1)","v":""},{"$f":"IF(OrigTable!F1502=\"\",\"\",TEXT(OrigTable!F1502,\"00\"))","v":""},{"$f":"IF(OrigTable!F1502=\"\",\"\",ScriptText!$E$1&CHAR(10)&ScriptText!$C$1)","v":""},{"$f":"IF(OrigTable!G1502=\"\",\"\",ScriptText!$B$1&CHAR(10)&ScriptText!$D$1)","v":""},{"$f":"IF(OrigTable!G1502=\"\",\"\",TEXT(OrigTable!G1502,\"00\"))","v":""},{"$f":"IF(OrigTable!G1502=\"\",\"\",ScriptText!$E$1&CHAR(10)&ScriptText!$C$1)","v":""},0]
["\n\n\n",{"$f":"IF(OrigTable!A1503=\"\",\"\",ScriptText!$B$1&CHAR(10)&ScriptText!$D$1)","v":""},{"$f":"IF(OrigTable!A1503=\"\",\"\",TEXT(OrigTable!A1503,\"00\"))","v":""},{"$f":"IF(OrigTable!A1503=\"\",\"\",ScriptText!$E$1&CHAR(10)&ScriptText!$C$1)","v":""},{"$f":"IF(OrigTable!B1503=\"\",\"\",ScriptText!$B$1&CHAR(10)&ScriptText!$D$1)","v":""},{"$f":"IF(OrigTable!B1503=\"\",\"\",TEXT(OrigTable!B1503,\"00\"))","v":""},{"$f":"IF(OrigTable!B1503=\"\",\"\",ScriptText!$E$1&CHAR(10)&ScriptText!C1498)","v":""},{"$f":"IF(OrigTable!C1503=\"\",\"\",ScriptText!$B$1&CHAR(10)&ScriptText!$D$1)","v":""},{"$f":"IF(OrigTable!C1503=\"\",\"\",IF(LEN(OrigTable!C1503)>255,LEFT(OrigTable!C1503,250)&\". . .\",OrigTable!C1503))","v":""},{"$f":"IF(OrigTable!C1503=\"\",\"\",ScriptText!$E$1&CHAR(10)&ScriptText!$C$1)","v":""},{"$f":"IF(OrigTable!D1503=\"\",\"\",ScriptText!$B$1&CHAR(10)&ScriptText!$D$1)","v":""},{"$f":"IF(OrigTable!D1503=\"\",\"\",TEXT(OrigTable!D1503,\"00\"))","v":""},{"$f":"IF(OrigTable!D1503=\"\",\"\",ScriptText!$E$1&CHAR(10)&ScriptText!$C$1)","v":""},{"$f":"IF(OrigTable!E1503=\"\",\"\",ScriptText!$B$1&CHAR(10)&ScriptText!$D$1)","v":""},{"$f":"IF(OrigTable!E1503=\"\",\"\",TEXT(OrigTable!E1503,\"00\"))","v":""},{"$f":"IF(OrigTable!E1503=\"\",\"\",ScriptText!$E$1&CHAR(10)&ScriptText!$C$1)","v":""},{"$f":"IF(OrigTable!F1503=\"\",\"\",ScriptText!$B$1&CHAR(10)&ScriptText!$D$1)","v":""},{"$f":"IF(OrigTable!F1503=\"\",\"\",TEXT(OrigTable!F1503,\"00\"))","v":""},{"$f":"IF(OrigTable!F1503=\"\",\"\",ScriptText!$E$1&CHAR(10)&ScriptText!$C$1)","v":""},{"$f":"IF(OrigTable!G1503=\"\",\"\",ScriptText!$B$1&CHAR(10)&ScriptText!$D$1)","v":""},{"$f":"IF(OrigTable!G1503=\"\",\"\",TEXT(OrigTable!G1503,\"00\"))","v":""},{"$f":"IF(OrigTable!G1503=\"\",\"\",ScriptText!$E$1&CHAR(10)&ScriptText!$C$1)","v":""},0]
["\n\n\n",{"$f":"IF(OrigTable!A1504=\"\",\"\",ScriptText!$B$1&CHAR(10)&ScriptText!$D$1)","v":""},{"$f":"IF(OrigTable!A1504=\"\",\"\",TEXT(OrigTable!A1504,\"00\"))","v":""},{"$f":"IF(OrigTable!A1504=\"\",\"\",ScriptText!$E$1&CHAR(10)&ScriptText!$C$1)","v":""},{"$f":"IF(OrigTable!B1504=\"\",\"\",ScriptText!$B$1&CHAR(10)&ScriptText!$D$1)","v":""},{"$f":"IF(OrigTable!B1504=\"\",\"\",TEXT(OrigTable!B1504,\"00\"))","v":""},{"$f":"IF(OrigTable!B1504=\"\",\"\",ScriptText!$E$1&CHAR(10)&ScriptText!C1499)","v":""},{"$f":"IF(OrigTable!C1504=\"\",\"\",ScriptText!$B$1&CHAR(10)&ScriptText!$D$1)","v":""},{"$f":"IF(OrigTable!C1504=\"\",\"\",IF(LEN(OrigTable!C1504)>255,LEFT(OrigTable!C1504,250)&\". . .\",OrigTable!C1504))","v":""},{"$f":"IF(OrigTable!C1504=\"\",\"\",ScriptText!$E$1&CHAR(10)&ScriptText!$C$1)","v":""},{"$f":"IF(OrigTable!D1504=\"\",\"\",ScriptText!$B$1&CHAR(10)&ScriptText!$D$1)","v":""},{"$f":"IF(OrigTable!D1504=\"\",\"\",TEXT(OrigTable!D1504,\"00\"))","v":""},{"$f":"IF(OrigTable!D1504=\"\",\"\",ScriptText!$E$1&CHAR(10)&ScriptText!$C$1)","v":""},{"$f":"IF(OrigTable!E1504=\"\",\"\",ScriptText!$B$1&CHAR(10)&ScriptText!$D$1)","v":""},{"$f":"IF(OrigTable!E1504=\"\",\"\",TEXT(OrigTable!E1504,\"00\"))","v":""},{"$f":"IF(OrigTable!E1504=\"\",\"\",ScriptText!$E$1&CHAR(10)&ScriptText!$C$1)","v":""},{"$f":"IF(OrigTable!F1504=\"\",\"\",ScriptText!$B$1&CHAR(10)&ScriptText!$D$1)","v":""},{"$f":"IF(OrigTable!F1504=\"\",\"\",TEXT(OrigTable!F1504,\"00\"))","v":""},{"$f":"IF(OrigTable!F1504=\"\",\"\",ScriptText!$E$1&CHAR(10)&ScriptText!$C$1)","v":""},{"$f":"IF(OrigTable!G1504=\"\",\"\",ScriptText!$B$1&CHAR(10)&ScriptText!$D$1)","v":""},{"$f":"IF(OrigTable!G1504=\"\",\"\",TEXT(OrigTable!G1504,\"00\"))","v":""},{"$f":"IF(OrigTable!G1504=\"\",\"\",ScriptText!$E$1&CHAR(10)&ScriptText!$C$1)","v":""},0]
["\n\n\n",{"$f":"IF(OrigTable!A1505=\"\",\"\",ScriptText!$B$1&CHAR(10)&ScriptText!$D$1)","v":""},{"$f":"IF(OrigTable!A1505=\"\",\"\",TEXT(OrigTable!A1505,\"00\"))","v":""},{"$f":"IF(OrigTable!A1505=\"\",\"\",ScriptText!$E$1&CHAR(10)&ScriptText!$C$1)","v":""},{"$f":"IF(OrigTable!B1505=\"\",\"\",ScriptText!$B$1&CHAR(10)&ScriptText!$D$1)","v":""},{"$f":"IF(OrigTable!B1505=\"\",\"\",TEXT(OrigTable!B1505,\"00\"))","v":""},{"$f":"IF(OrigTable!B1505=\"\",\"\",ScriptText!$E$1&CHAR(10)&ScriptText!C1500)","v":""},{"$f":"IF(OrigTable!C1505=\"\",\"\",ScriptText!$B$1&CHAR(10)&ScriptText!$D$1)","v":""},{"$f":"IF(OrigTable!C1505=\"\",\"\",IF(LEN(OrigTable!C1505)>255,LEFT(OrigTable!C1505,250)&\". . .\",OrigTable!C1505))","v":""},{"$f":"IF(OrigTable!C1505=\"\",\"\",ScriptText!$E$1&CHAR(10)&ScriptText!$C$1)","v":""},{"$f":"IF(OrigTable!D1505=\"\",\"\",ScriptText!$B$1&CHAR(10)&ScriptText!$D$1)","v":""},{"$f":"IF(OrigTable!D1505=\"\",\"\",TEXT(OrigTable!D1505,\"00\"))","v":""},{"$f":"IF(OrigTable!D1505=\"\",\"\",ScriptText!$E$1&CHAR(10)&ScriptText!$C$1)","v":""},{"$f":"IF(OrigTable!E1505=\"\",\"\",ScriptText!$B$1&CHAR(10)&ScriptText!$D$1)","v":""},{"$f":"IF(OrigTable!E1505=\"\",\"\",TEXT(OrigTable!E1505,\"00\"))","v":""},{"$f":"IF(OrigTable!E1505=\"\",\"\",ScriptText!$E$1&CHAR(10)&ScriptText!$C$1)","v":""},{"$f":"IF(OrigTable!F1505=\"\",\"\",ScriptText!$B$1&CHAR(10)&ScriptText!$D$1)","v":""},{"$f":"IF(OrigTable!F1505=\"\",\"\",TEXT(OrigTable!F1505,\"00\"))","v":""},{"$f":"IF(OrigTable!F1505=\"\",\"\",ScriptText!$E$1&CHAR(10)&ScriptText!$C$1)","v":""},{"$f":"IF(OrigTable!G1505=\"\",\"\",ScriptText!$B$1&CHAR(10)&ScriptText!$D$1)","v":""},{"$f":"IF(OrigTable!G1505=\"\",\"\",TEXT(OrigTable!G1505,\"00\"))","v":""},{"$f":"IF(OrigTable!G1505=\"\",\"\",ScriptText!$E$1&CHAR(10)&ScriptText!$C$1)","v":""},0]
["\n\n\n",{"$f":"IF(OrigTable!A1506=\"\",\"\",ScriptText!$B$1&CHAR(10)&ScriptText!$D$1)","v":""},{"$f":"IF(OrigTable!A1506=\"\",\"\",TEXT(OrigTable!A1506,\"00\"))","v":""},{"$f":"IF(OrigTable!A1506=\"\",\"\",ScriptText!$E$1&CHAR(10)&ScriptText!$C$1)","v":""},{"$f":"IF(OrigTable!B1506=\"\",\"\",ScriptText!$B$1&CHAR(10)&ScriptText!$D$1)","v":""},{"$f":"IF(OrigTable!B1506=\"\",\"\",TEXT(OrigTable!B1506,\"00\"))","v":""},{"$f":"IF(OrigTable!B1506=\"\",\"\",ScriptText!$E$1&CHAR(10)&ScriptText!C1501)","v":""},{"$f":"IF(OrigTable!C1506=\"\",\"\",ScriptText!$B$1&CHAR(10)&ScriptText!$D$1)","v":""},{"$f":"IF(OrigTable!C1506=\"\",\"\",IF(LEN(OrigTable!C1506)>255,LEFT(OrigTable!C1506,250)&\". . .\",OrigTable!C1506))","v":""},{"$f":"IF(OrigTable!C1506=\"\",\"\",ScriptText!$E$1&CHAR(10)&ScriptText!$C$1)","v":""},{"$f":"IF(OrigTable!D1506=\"\",\"\",ScriptText!$B$1&CHAR(10)&ScriptText!$D$1)","v":""},{"$f":"IF(OrigTable!D1506=\"\",\"\",TEXT(OrigTable!D1506,\"00\"))","v":""},{"$f":"IF(OrigTable!D1506=\"\",\"\",ScriptText!$E$1&CHAR(10)&ScriptText!$C$1)","v":""},{"$f":"IF(OrigTable!E1506=\"\",\"\",ScriptText!$B$1&CHAR(10)&ScriptText!$D$1)","v":""},{"$f":"IF(OrigTable!E1506=\"\",\"\",TEXT(OrigTable!E1506,\"00\"))","v":""},{"$f":"IF(OrigTable!E1506=\"\",\"\",ScriptText!$E$1&CHAR(10)&ScriptText!$C$1)","v":""},{"$f":"IF(OrigTable!F1506=\"\",\"\",ScriptText!$B$1&CHAR(10)&ScriptText!$D$1)","v":""},{"$f":"IF(OrigTable!F1506=\"\",\"\",TEXT(OrigTable!F1506,\"00\"))","v":""},{"$f":"IF(OrigTable!F1506=\"\",\"\",ScriptText!$E$1&CHAR(10)&ScriptText!$C$1)","v":""},{"$f":"IF(OrigTable!G1506=\"\",\"\",ScriptText!$B$1&CHAR(10)&ScriptText!$D$1)","v":""},{"$f":"IF(OrigTable!G1506=\"\",\"\",TEXT(OrigTable!G1506,\"00\"))","v":""},{"$f":"IF(OrigTable!G1506=\"\",\"\",ScriptText!$E$1&CHAR(10)&ScriptText!$C$1)","v":""},0]
["\n\n\n",{"$f":"IF(OrigTable!A1507=\"\",\"\",ScriptText!$B$1&CHAR(10)&ScriptText!$D$1)","v":""},{"$f":"IF(OrigTable!A1507=\"\",\"\",TEXT(OrigTable!A1507,\"00\"))","v":""},{"$f":"IF(OrigTable!A1507=\"\",\"\",ScriptText!$E$1&CHAR(10)&ScriptText!$C$1)","v":""},{"$f":"IF(OrigTable!B1507=\"\",\"\",ScriptText!$B$1&CHAR(10)&ScriptText!$D$1)","v":""},{"$f":"IF(OrigTable!B1507=\"\",\"\",TEXT(OrigTable!B1507,\"00\"))","v":""},{"$f":"IF(OrigTable!B1507=\"\",\"\",ScriptText!$E$1&CHAR(10)&ScriptText!C1502)","v":""},{"$f":"IF(OrigTable!C1507=\"\",\"\",ScriptText!$B$1&CHAR(10)&ScriptText!$D$1)","v":""},{"$f":"IF(OrigTable!C1507=\"\",\"\",IF(LEN(OrigTable!C1507)>255,LEFT(OrigTable!C1507,250)&\". . .\",OrigTable!C1507))","v":""},{"$f":"IF(OrigTable!C1507=\"\",\"\",ScriptText!$E$1&CHAR(10)&ScriptText!$C$1)","v":""},{"$f":"IF(OrigTable!D1507=\"\",\"\",ScriptText!$B$1&CHAR(10)&ScriptText!$D$1)","v":""},{"$f":"IF(OrigTable!D1507=\"\",\"\",TEXT(OrigTable!D1507,\"00\"))","v":""},{"$f":"IF(OrigTable!D1507=\"\",\"\",ScriptText!$E$1&CHAR(10)&ScriptText!$C$1)","v":""},{"$f":"IF(OrigTable!E1507=\"\",\"\",ScriptText!$B$1&CHAR(10)&ScriptText!$D$1)","v":""},{"$f":"IF(OrigTable!E1507=\"\",\"\",TEXT(OrigTable!E1507,\"00\"))","v":""},{"$f":"IF(OrigTable!E1507=\"\",\"\",ScriptText!$E$1&CHAR(10)&ScriptText!$C$1)","v":""},{"$f":"IF(OrigTable!F1507=\"\",\"\",ScriptText!$B$1&CHAR(10)&ScriptText!$D$1)","v":""},{"$f":"IF(OrigTable!F1507=\"\",\"\",TEXT(OrigTable!F1507,\"00\"))","v":""},{"$f":"IF(OrigTable!F1507=\"\",\"\",ScriptText!$E$1&CHAR(10)&ScriptText!$C$1)","v":""},{"$f":"IF(OrigTable!G1507=\"\",\"\",ScriptText!$B$1&CHAR(10)&ScriptText!$D$1)","v":""},{"$f":"IF(OrigTable!G1507=\"\",\"\",TEXT(OrigTable!G1507,\"00\"))","v":""},{"$f":"IF(OrigTable!G1507=\"\",\"\",ScriptText!$E$1&CHAR(10)&ScriptText!$C$1)","v":""},0]
["\n\n\n",{"$f":"IF(OrigTable!A1508=\"\",\"\",ScriptText!$B$1&CHAR(10)&ScriptText!$D$1)","v":""},{"$f":"IF(OrigTable!A1508=\"\",\"\",TEXT(OrigTable!A1508,\"00\"))","v":""},{"$f":"IF(OrigTable!A1508=\"\",\"\",ScriptText!$E$1&CHAR(10)&ScriptText!$C$1)","v":""},{"$f":"IF(OrigTable!B1508=\"\",\"\",ScriptText!$B$1&CHAR(10)&ScriptText!$D$1)","v":""},{"$f":"IF(OrigTable!B1508=\"\",\"\",TEXT(OrigTable!B1508,\"00\"))","v":""},{"$f":"IF(OrigTable!B1508=\"\",\"\",ScriptText!$E$1&CHAR(10)&ScriptText!C1503)","v":""},{"$f":"IF(OrigTable!C1508=\"\",\"\",ScriptText!$B$1&CHAR(10)&ScriptText!$D$1)","v":""},{"$f":"IF(OrigTable!C1508=\"\",\"\",IF(LEN(OrigTable!C1508)>255,LEFT(OrigTable!C1508,250)&\". . .\",OrigTable!C1508))","v":""},{"$f":"IF(OrigTable!C1508=\"\",\"\",ScriptText!$E$1&CHAR(10)&ScriptText!$C$1)","v":""},{"$f":"IF(OrigTable!D1508=\"\",\"\",ScriptText!$B$1&CHAR(10)&ScriptText!$D$1)","v":""},{"$f":"IF(OrigTable!D1508=\"\",\"\",TEXT(OrigTable!D1508,\"00\"))","v":""},{"$f":"IF(OrigTable!D1508=\"\",\"\",ScriptText!$E$1&CHAR(10)&ScriptText!$C$1)","v":""},{"$f":"IF(OrigTable!E1508=\"\",\"\",ScriptText!$B$1&CHAR(10)&ScriptText!$D$1)","v":""},{"$f":"IF(OrigTable!E1508=\"\",\"\",TEXT(OrigTable!E1508,\"00\"))","v":""},{"$f":"IF(OrigTable!E1508=\"\",\"\",ScriptText!$E$1&CHAR(10)&ScriptText!$C$1)","v":""},{"$f":"IF(OrigTable!F1508=\"\",\"\",ScriptText!$B$1&CHAR(10)&ScriptText!$D$1)","v":""},{"$f":"IF(OrigTable!F1508=\"\",\"\",TEXT(OrigTable!F1508,\"00\"))","v":""},{"$f":"IF(OrigTable!F1508=\"\",\"\",ScriptText!$E$1&CHAR(10)&ScriptText!$C$1)","v":""},{"$f":"IF(OrigTable!G1508=\"\",\"\",ScriptText!$B$1&CHAR(10)&ScriptText!$D$1)","v":""},{"$f":"IF(OrigTable!G1508=\"\",\"\",TEXT(OrigTable!G1508,\"00\"))","v":""},{"$f":"IF(OrigTable!G1508=\"\",\"\",ScriptText!$E$1&CHAR(10)&ScriptText!$C$1)","v":""},0]
["\n\n\n",{"$f":"IF(OrigTable!A1509=\"\",\"\",ScriptText!$B$1&CHAR(10)&ScriptText!$D$1)","v":""},{"$f":"IF(OrigTable!A1509=\"\",\"\",TEXT(OrigTable!A1509,\"00\"))","v":""},{"$f":"IF(OrigTable!A1509=\"\",\"\",ScriptText!$E$1&CHAR(10)&ScriptText!$C$1)","v":""},{"$f":"IF(OrigTable!B1509=\"\",\"\",ScriptText!$B$1&CHAR(10)&ScriptText!$D$1)","v":""},{"$f":"IF(OrigTable!B1509=\"\",\"\",TEXT(OrigTable!B1509,\"00\"))","v":""},{"$f":"IF(OrigTable!B1509=\"\",\"\",ScriptText!$E$1&CHAR(10)&ScriptText!C1504)","v":""},{"$f":"IF(OrigTable!C1509=\"\",\"\",ScriptText!$B$1&CHAR(10)&ScriptText!$D$1)","v":""},{"$f":"IF(OrigTable!C1509=\"\",\"\",IF(LEN(OrigTable!C1509)>255,LEFT(OrigTable!C1509,250)&\". . .\",OrigTable!C1509))","v":""},{"$f":"IF(OrigTable!C1509=\"\",\"\",ScriptText!$E$1&CHAR(10)&ScriptText!$C$1)","v":""},{"$f":"IF(OrigTable!D1509=\"\",\"\",ScriptText!$B$1&CHAR(10)&ScriptText!$D$1)","v":""},{"$f":"IF(OrigTable!D1509=\"\",\"\",TEXT(OrigTable!D1509,\"00\"))","v":""},{"$f":"IF(OrigTable!D1509=\"\",\"\",ScriptText!$E$1&CHAR(10)&ScriptText!$C$1)","v":""},{"$f":"IF(OrigTable!E1509=\"\",\"\",ScriptText!$B$1&CHAR(10)&ScriptText!$D$1)","v":""},{"$f":"IF(OrigTable!E1509=\"\",\"\",TEXT(OrigTable!E1509,\"00\"))","v":""},{"$f":"IF(OrigTable!E1509=\"\",\"\",ScriptText!$E$1&CHAR(10)&ScriptText!$C$1)","v":""},{"$f":"IF(OrigTable!F1509=\"\",\"\",ScriptText!$B$1&CHAR(10)&ScriptText!$D$1)","v":""},{"$f":"IF(OrigTable!F1509=\"\",\"\",TEXT(OrigTable!F1509,\"00\"))","v":""},{"$f":"IF(OrigTable!F1509=\"\",\"\",ScriptText!$E$1&CHAR(10)&ScriptText!$C$1)","v":""},{"$f":"IF(OrigTable!G1509=\"\",\"\",ScriptText!$B$1&CHAR(10)&ScriptText!$D$1)","v":""},{"$f":"IF(OrigTable!G1509=\"\",\"\",TEXT(OrigTable!G1509,\"00\"))","v":""},{"$f":"IF(OrigTable!G1509=\"\",\"\",ScriptText!$E$1&CHAR(10)&ScriptText!$C$1)","v":""},0]
["\n\n\n",{"$f":"IF(OrigTable!A1510=\"\",\"\",ScriptText!$B$1&CHAR(10)&ScriptText!$D$1)","v":""},{"$f":"IF(OrigTable!A1510=\"\",\"\",TEXT(OrigTable!A1510,\"00\"))","v":""},{"$f":"IF(OrigTable!A1510=\"\",\"\",ScriptText!$E$1&CHAR(10)&ScriptText!$C$1)","v":""},{"$f":"IF(OrigTable!B1510=\"\",\"\",ScriptText!$B$1&CHAR(10)&ScriptText!$D$1)","v":""},{"$f":"IF(OrigTable!B1510=\"\",\"\",TEXT(OrigTable!B1510,\"00\"))","v":""},{"$f":"IF(OrigTable!B1510=\"\",\"\",ScriptText!$E$1&CHAR(10)&ScriptText!C1505)","v":""},{"$f":"IF(OrigTable!C1510=\"\",\"\",ScriptText!$B$1&CHAR(10)&ScriptText!$D$1)","v":""},{"$f":"IF(OrigTable!C1510=\"\",\"\",IF(LEN(OrigTable!C1510)>255,LEFT(OrigTable!C1510,250)&\". . .\",OrigTable!C1510))","v":""},{"$f":"IF(OrigTable!C1510=\"\",\"\",ScriptText!$E$1&CHAR(10)&ScriptText!$C$1)","v":""},{"$f":"IF(OrigTable!D1510=\"\",\"\",ScriptText!$B$1&CHAR(10)&ScriptText!$D$1)","v":""},{"$f":"IF(OrigTable!D1510=\"\",\"\",TEXT(OrigTable!D1510,\"00\"))","v":""},{"$f":"IF(OrigTable!D1510=\"\",\"\",ScriptText!$E$1&CHAR(10)&ScriptText!$C$1)","v":""},{"$f":"IF(OrigTable!E1510=\"\",\"\",ScriptText!$B$1&CHAR(10)&ScriptText!$D$1)","v":""},{"$f":"IF(OrigTable!E1510=\"\",\"\",TEXT(OrigTable!E1510,\"00\"))","v":""},{"$f":"IF(OrigTable!E1510=\"\",\"\",ScriptText!$E$1&CHAR(10)&ScriptText!$C$1)","v":""},{"$f":"IF(OrigTable!F1510=\"\",\"\",ScriptText!$B$1&CHAR(10)&ScriptText!$D$1)","v":""},{"$f":"IF(OrigTable!F1510=\"\",\"\",TEXT(OrigTable!F1510,\"00\"))","v":""},{"$f":"IF(OrigTable!F1510=\"\",\"\",ScriptText!$E$1&CHAR(10)&ScriptText!$C$1)","v":""},{"$f":"IF(OrigTable!G1510=\"\",\"\",ScriptText!$B$1&CHAR(10)&ScriptText!$D$1)","v":""},{"$f":"IF(OrigTable!G1510=\"\",\"\",TEXT(OrigTable!G1510,\"00\"))","v":""},{"$f":"IF(OrigTable!G1510=\"\",\"\",ScriptText!$E$1&CHAR(10)&ScriptText!$C$1)","v":""},0]
["\n\n\n",{"$f":"IF(OrigTable!A1511=\"\",\"\",ScriptText!$B$1&CHAR(10)&ScriptText!$D$1)","v":""},{"$f":"IF(OrigTable!A1511=\"\",\"\",TEXT(OrigTable!A1511,\"00\"))","v":""},{"$f":"IF(OrigTable!A1511=\"\",\"\",ScriptText!$E$1&CHAR(10)&ScriptText!$C$1)","v":""},{"$f":"IF(OrigTable!B1511=\"\",\"\",ScriptText!$B$1&CHAR(10)&ScriptText!$D$1)","v":""},{"$f":"IF(OrigTable!B1511=\"\",\"\",TEXT(OrigTable!B1511,\"00\"))","v":""},{"$f":"IF(OrigTable!B1511=\"\",\"\",ScriptText!$E$1&CHAR(10)&ScriptText!C1506)","v":""},{"$f":"IF(OrigTable!C1511=\"\",\"\",ScriptText!$B$1&CHAR(10)&ScriptText!$D$1)","v":""},{"$f":"IF(OrigTable!C1511=\"\",\"\",IF(LEN(OrigTable!C1511)>255,LEFT(OrigTable!C1511,250)&\". . .\",OrigTable!C1511))","v":""},{"$f":"IF(OrigTable!C1511=\"\",\"\",ScriptText!$E$1&CHAR(10)&ScriptText!$C$1)","v":""},{"$f":"IF(OrigTable!D1511=\"\",\"\",ScriptText!$B$1&CHAR(10)&ScriptText!$D$1)","v":""},{"$f":"IF(OrigTable!D1511=\"\",\"\",TEXT(OrigTable!D1511,\"00\"))","v":""},{"$f":"IF(OrigTable!D1511=\"\",\"\",ScriptText!$E$1&CHAR(10)&ScriptText!$C$1)","v":""},{"$f":"IF(OrigTable!E1511=\"\",\"\",ScriptText!$B$1&CHAR(10)&ScriptText!$D$1)","v":""},{"$f":"IF(OrigTable!E1511=\"\",\"\",TEXT(OrigTable!E1511,\"00\"))","v":""},{"$f":"IF(OrigTable!E1511=\"\",\"\",ScriptText!$E$1&CHAR(10)&ScriptText!$C$1)","v":""},{"$f":"IF(OrigTable!F1511=\"\",\"\",ScriptText!$B$1&CHAR(10)&ScriptText!$D$1)","v":""},{"$f":"IF(OrigTable!F1511=\"\",\"\",TEXT(OrigTable!F1511,\"00\"))","v":""},{"$f":"IF(OrigTable!F1511=\"\",\"\",ScriptText!$E$1&CHAR(10)&ScriptText!$C$1)","v":""},{"$f":"IF(OrigTable!G1511=\"\",\"\",ScriptText!$B$1&CHAR(10)&ScriptText!$D$1)","v":""},{"$f":"IF(OrigTable!G1511=\"\",\"\",TEXT(OrigTable!G1511,\"00\"))","v":""},{"$f":"IF(OrigTable!G1511=\"\",\"\",ScriptText!$E$1&CHAR(10)&ScriptText!$C$1)","v":""},0]
["\n\n\n",{"$f":"IF(OrigTable!A1512=\"\",\"\",ScriptText!$B$1&CHAR(10)&ScriptText!$D$1)","v":""},{"$f":"IF(OrigTable!A1512=\"\",\"\",TEXT(OrigTable!A1512,\"00\"))","v":""},{"$f":"IF(OrigTable!A1512=\"\",\"\",ScriptText!$E$1&CHAR(10)&ScriptText!$C$1)","v":""},{"$f":"IF(OrigTable!B1512=\"\",\"\",ScriptText!$B$1&CHAR(10)&ScriptText!$D$1)","v":""},{"$f":"IF(OrigTable!B1512=\"\",\"\",TEXT(OrigTable!B1512,\"00\"))","v":""},{"$f":"IF(OrigTable!B1512=\"\",\"\",ScriptText!$E$1&CHAR(10)&ScriptText!C1507)","v":""},{"$f":"IF(OrigTable!C1512=\"\",\"\",ScriptText!$B$1&CHAR(10)&ScriptText!$D$1)","v":""},{"$f":"IF(OrigTable!C1512=\"\",\"\",IF(LEN(OrigTable!C1512)>255,LEFT(OrigTable!C1512,250)&\". . .\",OrigTable!C1512))","v":""},{"$f":"IF(OrigTable!C1512=\"\",\"\",ScriptText!$E$1&CHAR(10)&ScriptText!$C$1)","v":""},{"$f":"IF(OrigTable!D1512=\"\",\"\",ScriptText!$B$1&CHAR(10)&ScriptText!$D$1)","v":""},{"$f":"IF(OrigTable!D1512=\"\",\"\",TEXT(OrigTable!D1512,\"00\"))","v":""},{"$f":"IF(OrigTable!D1512=\"\",\"\",ScriptText!$E$1&CHAR(10)&ScriptText!$C$1)","v":""},{"$f":"IF(OrigTable!E1512=\"\",\"\",ScriptText!$B$1&CHAR(10)&ScriptText!$D$1)","v":""},{"$f":"IF(OrigTable!E1512=\"\",\"\",TEXT(OrigTable!E1512,\"00\"))","v":""},{"$f":"IF(OrigTable!E1512=\"\",\"\",ScriptText!$E$1&CHAR(10)&ScriptText!$C$1)","v":""},{"$f":"IF(OrigTable!F1512=\"\",\"\",ScriptText!$B$1&CHAR(10)&ScriptText!$D$1)","v":""},{"$f":"IF(OrigTable!F1512=\"\",\"\",TEXT(OrigTable!F1512,\"00\"))","v":""},{"$f":"IF(OrigTable!F1512=\"\",\"\",ScriptText!$E$1&CHAR(10)&ScriptText!$C$1)","v":""},{"$f":"IF(OrigTable!G1512=\"\",\"\",ScriptText!$B$1&CHAR(10)&ScriptText!$D$1)","v":""},{"$f":"IF(OrigTable!G1512=\"\",\"\",TEXT(OrigTable!G1512,\"00\"))","v":""},{"$f":"IF(OrigTable!G1512=\"\",\"\",ScriptText!$E$1&CHAR(10)&ScriptText!$C$1)","v":""},0]
["\n\n\n",{"$f":"IF(OrigTable!A1513=\"\",\"\",ScriptText!$B$1&CHAR(10)&ScriptText!$D$1)","v":""},{"$f":"IF(OrigTable!A1513=\"\",\"\",TEXT(OrigTable!A1513,\"00\"))","v":""},{"$f":"IF(OrigTable!A1513=\"\",\"\",ScriptText!$E$1&CHAR(10)&ScriptText!$C$1)","v":""},{"$f":"IF(OrigTable!B1513=\"\",\"\",ScriptText!$B$1&CHAR(10)&ScriptText!$D$1)","v":""},{"$f":"IF(OrigTable!B1513=\"\",\"\",TEXT(OrigTable!B1513,\"00\"))","v":""},{"$f":"IF(OrigTable!B1513=\"\",\"\",ScriptText!$E$1&CHAR(10)&ScriptText!C1508)","v":""},{"$f":"IF(OrigTable!C1513=\"\",\"\",ScriptText!$B$1&CHAR(10)&ScriptText!$D$1)","v":""},{"$f":"IF(OrigTable!C1513=\"\",\"\",IF(LEN(OrigTable!C1513)>255,LEFT(OrigTable!C1513,250)&\". . .\",OrigTable!C1513))","v":""},{"$f":"IF(OrigTable!C1513=\"\",\"\",ScriptText!$E$1&CHAR(10)&ScriptText!$C$1)","v":""},{"$f":"IF(OrigTable!D1513=\"\",\"\",ScriptText!$B$1&CHAR(10)&ScriptText!$D$1)","v":""},{"$f":"IF(OrigTable!D1513=\"\",\"\",TEXT(OrigTable!D1513,\"00\"))","v":""},{"$f":"IF(OrigTable!D1513=\"\",\"\",ScriptText!$E$1&CHAR(10)&ScriptText!$C$1)","v":""},{"$f":"IF(OrigTable!E1513=\"\",\"\",ScriptText!$B$1&CHAR(10)&ScriptText!$D$1)","v":""},{"$f":"IF(OrigTable!E1513=\"\",\"\",TEXT(OrigTable!E1513,\"00\"))","v":""},{"$f":"IF(OrigTable!E1513=\"\",\"\",ScriptText!$E$1&CHAR(10)&ScriptText!$C$1)","v":""},{"$f":"IF(OrigTable!F1513=\"\",\"\",ScriptText!$B$1&CHAR(10)&ScriptText!$D$1)","v":""},{"$f":"IF(OrigTable!F1513=\"\",\"\",TEXT(OrigTable!F1513,\"00\"))","v":""},{"$f":"IF(OrigTable!F1513=\"\",\"\",ScriptText!$E$1&CHAR(10)&ScriptText!$C$1)","v":""},{"$f":"IF(OrigTable!G1513=\"\",\"\",ScriptText!$B$1&CHAR(10)&ScriptText!$D$1)","v":""},{"$f":"IF(OrigTable!G1513=\"\",\"\",TEXT(OrigTable!G1513,\"00\"))","v":""},{"$f":"IF(OrigTable!G1513=\"\",\"\",ScriptText!$E$1&CHAR(10)&ScriptText!$C$1)","v":""},0]
["\n\n\n",{"$f":"IF(OrigTable!A1514=\"\",\"\",ScriptText!$B$1&CHAR(10)&ScriptText!$D$1)","v":""},{"$f":"IF(OrigTable!A1514=\"\",\"\",TEXT(OrigTable!A1514,\"00\"))","v":""},{"$f":"IF(OrigTable!A1514=\"\",\"\",ScriptText!$E$1&CHAR(10)&ScriptText!$C$1)","v":""},{"$f":"IF(OrigTable!B1514=\"\",\"\",ScriptText!$B$1&CHAR(10)&ScriptText!$D$1)","v":""},{"$f":"IF(OrigTable!B1514=\"\",\"\",TEXT(OrigTable!B1514,\"00\"))","v":""},{"$f":"IF(OrigTable!B1514=\"\",\"\",ScriptText!$E$1&CHAR(10)&ScriptText!C1509)","v":""},{"$f":"IF(OrigTable!C1514=\"\",\"\",ScriptText!$B$1&CHAR(10)&ScriptText!$D$1)","v":""},{"$f":"IF(OrigTable!C1514=\"\",\"\",IF(LEN(OrigTable!C1514)>255,LEFT(OrigTable!C1514,250)&\". . .\",OrigTable!C1514))","v":""},{"$f":"IF(OrigTable!C1514=\"\",\"\",ScriptText!$E$1&CHAR(10)&ScriptText!$C$1)","v":""},{"$f":"IF(OrigTable!D1514=\"\",\"\",ScriptText!$B$1&CHAR(10)&ScriptText!$D$1)","v":""},{"$f":"IF(OrigTable!D1514=\"\",\"\",TEXT(OrigTable!D1514,\"00\"))","v":""},{"$f":"IF(OrigTable!D1514=\"\",\"\",ScriptText!$E$1&CHAR(10)&ScriptText!$C$1)","v":""},{"$f":"IF(OrigTable!E1514=\"\",\"\",ScriptText!$B$1&CHAR(10)&ScriptText!$D$1)","v":""},{"$f":"IF(OrigTable!E1514=\"\",\"\",TEXT(OrigTable!E1514,\"00\"))","v":""},{"$f":"IF(OrigTable!E1514=\"\",\"\",ScriptText!$E$1&CHAR(10)&ScriptText!$C$1)","v":""},{"$f":"IF(OrigTable!F1514=\"\",\"\",ScriptText!$B$1&CHAR(10)&ScriptText!$D$1)","v":""},{"$f":"IF(OrigTable!F1514=\"\",\"\",TEXT(OrigTable!F1514,\"00\"))","v":""},{"$f":"IF(OrigTable!F1514=\"\",\"\",ScriptText!$E$1&CHAR(10)&ScriptText!$C$1)","v":""},{"$f":"IF(OrigTable!G1514=\"\",\"\",ScriptText!$B$1&CHAR(10)&ScriptText!$D$1)","v":""},{"$f":"IF(OrigTable!G1514=\"\",\"\",TEXT(OrigTable!G1514,\"00\"))","v":""},{"$f":"IF(OrigTable!G1514=\"\",\"\",ScriptText!$E$1&CHAR(10)&ScriptText!$C$1)","v":""},0]
["\n\n\n",{"$f":"IF(OrigTable!A1515=\"\",\"\",ScriptText!$B$1&CHAR(10)&ScriptText!$D$1)","v":""},{"$f":"IF(OrigTable!A1515=\"\",\"\",TEXT(OrigTable!A1515,\"00\"))","v":""},{"$f":"IF(OrigTable!A1515=\"\",\"\",ScriptText!$E$1&CHAR(10)&ScriptText!$C$1)","v":""},{"$f":"IF(OrigTable!B1515=\"\",\"\",ScriptText!$B$1&CHAR(10)&ScriptText!$D$1)","v":""},{"$f":"IF(OrigTable!B1515=\"\",\"\",TEXT(OrigTable!B1515,\"00\"))","v":""},{"$f":"IF(OrigTable!B1515=\"\",\"\",ScriptText!$E$1&CHAR(10)&ScriptText!C1510)","v":""},{"$f":"IF(OrigTable!C1515=\"\",\"\",ScriptText!$B$1&CHAR(10)&ScriptText!$D$1)","v":""},{"$f":"IF(OrigTable!C1515=\"\",\"\",IF(LEN(OrigTable!C1515)>255,LEFT(OrigTable!C1515,250)&\". . .\",OrigTable!C1515))","v":""},{"$f":"IF(OrigTable!C1515=\"\",\"\",ScriptText!$E$1&CHAR(10)&ScriptText!$C$1)","v":""},{"$f":"IF(OrigTable!D1515=\"\",\"\",ScriptText!$B$1&CHAR(10)&ScriptText!$D$1)","v":""},{"$f":"IF(OrigTable!D1515=\"\",\"\",TEXT(OrigTable!D1515,\"00\"))","v":""},{"$f":"IF(OrigTable!D1515=\"\",\"\",ScriptText!$E$1&CHAR(10)&ScriptText!$C$1)","v":""},{"$f":"IF(OrigTable!E1515=\"\",\"\",ScriptText!$B$1&CHAR(10)&ScriptText!$D$1)","v":""},{"$f":"IF(OrigTable!E1515=\"\",\"\",TEXT(OrigTable!E1515,\"00\"))","v":""},{"$f":"IF(OrigTable!E1515=\"\",\"\",ScriptText!$E$1&CHAR(10)&ScriptText!$C$1)","v":""},{"$f":"IF(OrigTable!F1515=\"\",\"\",ScriptText!$B$1&CHAR(10)&ScriptText!$D$1)","v":""},{"$f":"IF(OrigTable!F1515=\"\",\"\",TEXT(OrigTable!F1515,\"00\"))","v":""},{"$f":"IF(OrigTable!F1515=\"\",\"\",ScriptText!$E$1&CHAR(10)&ScriptText!$C$1)","v":""},{"$f":"IF(OrigTable!G1515=\"\",\"\",ScriptText!$B$1&CHAR(10)&ScriptText!$D$1)","v":""},{"$f":"IF(OrigTable!G1515=\"\",\"\",TEXT(OrigTable!G1515,\"00\"))","v":""},{"$f":"IF(OrigTable!G1515=\"\",\"\",ScriptText!$E$1&CHAR(10)&ScriptText!$C$1)","v":""},0]
["\n\n\n",{"$f":"IF(OrigTable!A1516=\"\",\"\",ScriptText!$B$1&CHAR(10)&ScriptText!$D$1)","v":""},{"$f":"IF(OrigTable!A1516=\"\",\"\",TEXT(OrigTable!A1516,\"00\"))","v":""},{"$f":"IF(OrigTable!A1516=\"\",\"\",ScriptText!$E$1&CHAR(10)&ScriptText!$C$1)","v":""},{"$f":"IF(OrigTable!B1516=\"\",\"\",ScriptText!$B$1&CHAR(10)&ScriptText!$D$1)","v":""},{"$f":"IF(OrigTable!B1516=\"\",\"\",TEXT(OrigTable!B1516,\"00\"))","v":""},{"$f":"IF(OrigTable!B1516=\"\",\"\",ScriptText!$E$1&CHAR(10)&ScriptText!C1511)","v":""},{"$f":"IF(OrigTable!C1516=\"\",\"\",ScriptText!$B$1&CHAR(10)&ScriptText!$D$1)","v":""},{"$f":"IF(OrigTable!C1516=\"\",\"\",IF(LEN(OrigTable!C1516)>255,LEFT(OrigTable!C1516,250)&\". . .\",OrigTable!C1516))","v":""},{"$f":"IF(OrigTable!C1516=\"\",\"\",ScriptText!$E$1&CHAR(10)&ScriptText!$C$1)","v":""},{"$f":"IF(OrigTable!D1516=\"\",\"\",ScriptText!$B$1&CHAR(10)&ScriptText!$D$1)","v":""},{"$f":"IF(OrigTable!D1516=\"\",\"\",TEXT(OrigTable!D1516,\"00\"))","v":""},{"$f":"IF(OrigTable!D1516=\"\",\"\",ScriptText!$E$1&CHAR(10)&ScriptText!$C$1)","v":""},{"$f":"IF(OrigTable!E1516=\"\",\"\",ScriptText!$B$1&CHAR(10)&ScriptText!$D$1)","v":""},{"$f":"IF(OrigTable!E1516=\"\",\"\",TEXT(OrigTable!E1516,\"00\"))","v":""},{"$f":"IF(OrigTable!E1516=\"\",\"\",ScriptText!$E$1&CHAR(10)&ScriptText!$C$1)","v":""},{"$f":"IF(OrigTable!F1516=\"\",\"\",ScriptText!$B$1&CHAR(10)&ScriptText!$D$1)","v":""},{"$f":"IF(OrigTable!F1516=\"\",\"\",TEXT(OrigTable!F1516,\"00\"))","v":""},{"$f":"IF(OrigTable!F1516=\"\",\"\",ScriptText!$E$1&CHAR(10)&ScriptText!$C$1)","v":""},{"$f":"IF(OrigTable!G1516=\"\",\"\",ScriptText!$B$1&CHAR(10)&ScriptText!$D$1)","v":""},{"$f":"IF(OrigTable!G1516=\"\",\"\",TEXT(OrigTable!G1516,\"00\"))","v":""},{"$f":"IF(OrigTable!G1516=\"\",\"\",ScriptText!$E$1&CHAR(10)&ScriptText!$C$1)","v":""},0]
["\n\n\n",{"$f":"IF(OrigTable!A1517=\"\",\"\",ScriptText!$B$1&CHAR(10)&ScriptText!$D$1)","v":""},{"$f":"IF(OrigTable!A1517=\"\",\"\",TEXT(OrigTable!A1517,\"00\"))","v":""},{"$f":"IF(OrigTable!A1517=\"\",\"\",ScriptText!$E$1&CHAR(10)&ScriptText!$C$1)","v":""},{"$f":"IF(OrigTable!B1517=\"\",\"\",ScriptText!$B$1&CHAR(10)&ScriptText!$D$1)","v":""},{"$f":"IF(OrigTable!B1517=\"\",\"\",TEXT(OrigTable!B1517,\"00\"))","v":""},{"$f":"IF(OrigTable!B1517=\"\",\"\",ScriptText!$E$1&CHAR(10)&ScriptText!C1512)","v":""},{"$f":"IF(OrigTable!C1517=\"\",\"\",ScriptText!$B$1&CHAR(10)&ScriptText!$D$1)","v":""},{"$f":"IF(OrigTable!C1517=\"\",\"\",IF(LEN(OrigTable!C1517)>255,LEFT(OrigTable!C1517,250)&\". . .\",OrigTable!C1517))","v":""},{"$f":"IF(OrigTable!C1517=\"\",\"\",ScriptText!$E$1&CHAR(10)&ScriptText!$C$1)","v":""},{"$f":"IF(OrigTable!D1517=\"\",\"\",ScriptText!$B$1&CHAR(10)&ScriptText!$D$1)","v":""},{"$f":"IF(OrigTable!D1517=\"\",\"\",TEXT(OrigTable!D1517,\"00\"))","v":""},{"$f":"IF(OrigTable!D1517=\"\",\"\",ScriptText!$E$1&CHAR(10)&ScriptText!$C$1)","v":""},{"$f":"IF(OrigTable!E1517=\"\",\"\",ScriptText!$B$1&CHAR(10)&ScriptText!$D$1)","v":""},{"$f":"IF(OrigTable!E1517=\"\",\"\",TEXT(OrigTable!E1517,\"00\"))","v":""},{"$f":"IF(OrigTable!E1517=\"\",\"\",ScriptText!$E$1&CHAR(10)&ScriptText!$C$1)","v":""},{"$f":"IF(OrigTable!F1517=\"\",\"\",ScriptText!$B$1&CHAR(10)&ScriptText!$D$1)","v":""},{"$f":"IF(OrigTable!F1517=\"\",\"\",TEXT(OrigTable!F1517,\"00\"))","v":""},{"$f":"IF(OrigTable!F1517=\"\",\"\",ScriptText!$E$1&CHAR(10)&ScriptText!$C$1)","v":""},{"$f":"IF(OrigTable!G1517=\"\",\"\",ScriptText!$B$1&CHAR(10)&ScriptText!$D$1)","v":""},{"$f":"IF(OrigTable!G1517=\"\",\"\",TEXT(OrigTable!G1517,\"00\"))","v":""},{"$f":"IF(OrigTable!G1517=\"\",\"\",ScriptText!$E$1&CHAR(10)&ScriptText!$C$1)","v":""},0]
["\n\n\n",{"$f":"IF(OrigTable!A1518=\"\",\"\",ScriptText!$B$1&CHAR(10)&ScriptText!$D$1)","v":""},{"$f":"IF(OrigTable!A1518=\"\",\"\",TEXT(OrigTable!A1518,\"00\"))","v":""},{"$f":"IF(OrigTable!A1518=\"\",\"\",ScriptText!$E$1&CHAR(10)&ScriptText!$C$1)","v":""},{"$f":"IF(OrigTable!B1518=\"\",\"\",ScriptText!$B$1&CHAR(10)&ScriptText!$D$1)","v":""},{"$f":"IF(OrigTable!B1518=\"\",\"\",TEXT(OrigTable!B1518,\"00\"))","v":""},{"$f":"IF(OrigTable!B1518=\"\",\"\",ScriptText!$E$1&CHAR(10)&ScriptText!C1513)","v":""},{"$f":"IF(OrigTable!C1518=\"\",\"\",ScriptText!$B$1&CHAR(10)&ScriptText!$D$1)","v":""},{"$f":"IF(OrigTable!C1518=\"\",\"\",IF(LEN(OrigTable!C1518)>255,LEFT(OrigTable!C1518,250)&\". . .\",OrigTable!C1518))","v":""},{"$f":"IF(OrigTable!C1518=\"\",\"\",ScriptText!$E$1&CHAR(10)&ScriptText!$C$1)","v":""},{"$f":"IF(OrigTable!D1518=\"\",\"\",ScriptText!$B$1&CHAR(10)&ScriptText!$D$1)","v":""},{"$f":"IF(OrigTable!D1518=\"\",\"\",TEXT(OrigTable!D1518,\"00\"))","v":""},{"$f":"IF(OrigTable!D1518=\"\",\"\",ScriptText!$E$1&CHAR(10)&ScriptText!$C$1)","v":""},{"$f":"IF(OrigTable!E1518=\"\",\"\",ScriptText!$B$1&CHAR(10)&ScriptText!$D$1)","v":""},{"$f":"IF(OrigTable!E1518=\"\",\"\",TEXT(OrigTable!E1518,\"00\"))","v":""},{"$f":"IF(OrigTable!E1518=\"\",\"\",ScriptText!$E$1&CHAR(10)&ScriptText!$C$1)","v":""},{"$f":"IF(OrigTable!F1518=\"\",\"\",ScriptText!$B$1&CHAR(10)&ScriptText!$D$1)","v":""},{"$f":"IF(OrigTable!F1518=\"\",\"\",TEXT(OrigTable!F1518,\"00\"))","v":""},{"$f":"IF(OrigTable!F1518=\"\",\"\",ScriptText!$E$1&CHAR(10)&ScriptText!$C$1)","v":""},{"$f":"IF(OrigTable!G1518=\"\",\"\",ScriptText!$B$1&CHAR(10)&ScriptText!$D$1)","v":""},{"$f":"IF(OrigTable!G1518=\"\",\"\",TEXT(OrigTable!G1518,\"00\"))","v":""},{"$f":"IF(OrigTable!G1518=\"\",\"\",ScriptText!$E$1&CHAR(10)&ScriptText!$C$1)","v":""},0]
["\n\n\n",{"$f":"IF(OrigTable!A1519=\"\",\"\",ScriptText!$B$1&CHAR(10)&ScriptText!$D$1)","v":""},{"$f":"IF(OrigTable!A1519=\"\",\"\",TEXT(OrigTable!A1519,\"00\"))","v":""},{"$f":"IF(OrigTable!A1519=\"\",\"\",ScriptText!$E$1&CHAR(10)&ScriptText!$C$1)","v":""},{"$f":"IF(OrigTable!B1519=\"\",\"\",ScriptText!$B$1&CHAR(10)&ScriptText!$D$1)","v":""},{"$f":"IF(OrigTable!B1519=\"\",\"\",TEXT(OrigTable!B1519,\"00\"))","v":""},{"$f":"IF(OrigTable!B1519=\"\",\"\",ScriptText!$E$1&CHAR(10)&ScriptText!C1514)","v":""},{"$f":"IF(OrigTable!C1519=\"\",\"\",ScriptText!$B$1&CHAR(10)&ScriptText!$D$1)","v":""},{"$f":"IF(OrigTable!C1519=\"\",\"\",IF(LEN(OrigTable!C1519)>255,LEFT(OrigTable!C1519,250)&\". . .\",OrigTable!C1519))","v":""},{"$f":"IF(OrigTable!C1519=\"\",\"\",ScriptText!$E$1&CHAR(10)&ScriptText!$C$1)","v":""},{"$f":"IF(OrigTable!D1519=\"\",\"\",ScriptText!$B$1&CHAR(10)&ScriptText!$D$1)","v":""},{"$f":"IF(OrigTable!D1519=\"\",\"\",TEXT(OrigTable!D1519,\"00\"))","v":""},{"$f":"IF(OrigTable!D1519=\"\",\"\",ScriptText!$E$1&CHAR(10)&ScriptText!$C$1)","v":""},{"$f":"IF(OrigTable!E1519=\"\",\"\",ScriptText!$B$1&CHAR(10)&ScriptText!$D$1)","v":""},{"$f":"IF(OrigTable!E1519=\"\",\"\",TEXT(OrigTable!E1519,\"00\"))","v":""},{"$f":"IF(OrigTable!E1519=\"\",\"\",ScriptText!$E$1&CHAR(10)&ScriptText!$C$1)","v":""},{"$f":"IF(OrigTable!F1519=\"\",\"\",ScriptText!$B$1&CHAR(10)&ScriptText!$D$1)","v":""},{"$f":"IF(OrigTable!F1519=\"\",\"\",TEXT(OrigTable!F1519,\"00\"))","v":""},{"$f":"IF(OrigTable!F1519=\"\",\"\",ScriptText!$E$1&CHAR(10)&ScriptText!$C$1)","v":""},{"$f":"IF(OrigTable!G1519=\"\",\"\",ScriptText!$B$1&CHAR(10)&ScriptText!$D$1)","v":""},{"$f":"IF(OrigTable!G1519=\"\",\"\",TEXT(OrigTable!G1519,\"00\"))","v":""},{"$f":"IF(OrigTable!G1519=\"\",\"\",ScriptText!$E$1&CHAR(10)&ScriptText!$C$1)","v":""},0]
["\n\n\n",{"$f":"IF(OrigTable!A1520=\"\",\"\",ScriptText!$B$1&CHAR(10)&ScriptText!$D$1)","v":""},{"$f":"IF(OrigTable!A1520=\"\",\"\",TEXT(OrigTable!A1520,\"00\"))","v":""},{"$f":"IF(OrigTable!A1520=\"\",\"\",ScriptText!$E$1&CHAR(10)&ScriptText!$C$1)","v":""},{"$f":"IF(OrigTable!B1520=\"\",\"\",ScriptText!$B$1&CHAR(10)&ScriptText!$D$1)","v":""},{"$f":"IF(OrigTable!B1520=\"\",\"\",TEXT(OrigTable!B1520,\"00\"))","v":""},{"$f":"IF(OrigTable!B1520=\"\",\"\",ScriptText!$E$1&CHAR(10)&ScriptText!C1515)","v":""},{"$f":"IF(OrigTable!C1520=\"\",\"\",ScriptText!$B$1&CHAR(10)&ScriptText!$D$1)","v":""},{"$f":"IF(OrigTable!C1520=\"\",\"\",IF(LEN(OrigTable!C1520)>255,LEFT(OrigTable!C1520,250)&\". . .\",OrigTable!C1520))","v":""},{"$f":"IF(OrigTable!C1520=\"\",\"\",ScriptText!$E$1&CHAR(10)&ScriptText!$C$1)","v":""},{"$f":"IF(OrigTable!D1520=\"\",\"\",ScriptText!$B$1&CHAR(10)&ScriptText!$D$1)","v":""},{"$f":"IF(OrigTable!D1520=\"\",\"\",TEXT(OrigTable!D1520,\"00\"))","v":""},{"$f":"IF(OrigTable!D1520=\"\",\"\",ScriptText!$E$1&CHAR(10)&ScriptText!$C$1)","v":""},{"$f":"IF(OrigTable!E1520=\"\",\"\",ScriptText!$B$1&CHAR(10)&ScriptText!$D$1)","v":""},{"$f":"IF(OrigTable!E1520=\"\",\"\",TEXT(OrigTable!E1520,\"00\"))","v":""},{"$f":"IF(OrigTable!E1520=\"\",\"\",ScriptText!$E$1&CHAR(10)&ScriptText!$C$1)","v":""},{"$f":"IF(OrigTable!F1520=\"\",\"\",ScriptText!$B$1&CHAR(10)&ScriptText!$D$1)","v":""},{"$f":"IF(OrigTable!F1520=\"\",\"\",TEXT(OrigTable!F1520,\"00\"))","v":""},{"$f":"IF(OrigTable!F1520=\"\",\"\",ScriptText!$E$1&CHAR(10)&ScriptText!$C$1)","v":""},{"$f":"IF(OrigTable!G1520=\"\",\"\",ScriptText!$B$1&CHAR(10)&ScriptText!$D$1)","v":""},{"$f":"IF(OrigTable!G1520=\"\",\"\",TEXT(OrigTable!G1520,\"00\"))","v":""},{"$f":"IF(OrigTable!G1520=\"\",\"\",ScriptText!$E$1&CHAR(10)&ScriptText!$C$1)","v":""},0]
["\n\n\n",{"$f":"IF(OrigTable!A1521=\"\",\"\",ScriptText!$B$1&CHAR(10)&ScriptText!$D$1)","v":""},{"$f":"IF(OrigTable!A1521=\"\",\"\",TEXT(OrigTable!A1521,\"00\"))","v":""},{"$f":"IF(OrigTable!A1521=\"\",\"\",ScriptText!$E$1&CHAR(10)&ScriptText!$C$1)","v":""},{"$f":"IF(OrigTable!B1521=\"\",\"\",ScriptText!$B$1&CHAR(10)&ScriptText!$D$1)","v":""},{"$f":"IF(OrigTable!B1521=\"\",\"\",TEXT(OrigTable!B1521,\"00\"))","v":""},{"$f":"IF(OrigTable!B1521=\"\",\"\",ScriptText!$E$1&CHAR(10)&ScriptText!C1516)","v":""},{"$f":"IF(OrigTable!C1521=\"\",\"\",ScriptText!$B$1&CHAR(10)&ScriptText!$D$1)","v":""},{"$f":"IF(OrigTable!C1521=\"\",\"\",IF(LEN(OrigTable!C1521)>255,LEFT(OrigTable!C1521,250)&\". . .\",OrigTable!C1521))","v":""},{"$f":"IF(OrigTable!C1521=\"\",\"\",ScriptText!$E$1&CHAR(10)&ScriptText!$C$1)","v":""},{"$f":"IF(OrigTable!D1521=\"\",\"\",ScriptText!$B$1&CHAR(10)&ScriptText!$D$1)","v":""},{"$f":"IF(OrigTable!D1521=\"\",\"\",TEXT(OrigTable!D1521,\"00\"))","v":""},{"$f":"IF(OrigTable!D1521=\"\",\"\",ScriptText!$E$1&CHAR(10)&ScriptText!$C$1)","v":""},{"$f":"IF(OrigTable!E1521=\"\",\"\",ScriptText!$B$1&CHAR(10)&ScriptText!$D$1)","v":""},{"$f":"IF(OrigTable!E1521=\"\",\"\",TEXT(OrigTable!E1521,\"00\"))","v":""},{"$f":"IF(OrigTable!E1521=\"\",\"\",ScriptText!$E$1&CHAR(10)&ScriptText!$C$1)","v":""},{"$f":"IF(OrigTable!F1521=\"\",\"\",ScriptText!$B$1&CHAR(10)&ScriptText!$D$1)","v":""},{"$f":"IF(OrigTable!F1521=\"\",\"\",TEXT(OrigTable!F1521,\"00\"))","v":""},{"$f":"IF(OrigTable!F1521=\"\",\"\",ScriptText!$E$1&CHAR(10)&ScriptText!$C$1)","v":""},{"$f":"IF(OrigTable!G1521=\"\",\"\",ScriptText!$B$1&CHAR(10)&ScriptText!$D$1)","v":""},{"$f":"IF(OrigTable!G1521=\"\",\"\",TEXT(OrigTable!G1521,\"00\"))","v":""},{"$f":"IF(OrigTable!G1521=\"\",\"\",ScriptText!$E$1&CHAR(10)&ScriptText!$C$1)","v":""},0]
["\n\n\n",{"$f":"IF(OrigTable!A1522=\"\",\"\",ScriptText!$B$1&CHAR(10)&ScriptText!$D$1)","v":""},{"$f":"IF(OrigTable!A1522=\"\",\"\",TEXT(OrigTable!A1522,\"00\"))","v":""},{"$f":"IF(OrigTable!A1522=\"\",\"\",ScriptText!$E$1&CHAR(10)&ScriptText!$C$1)","v":""},{"$f":"IF(OrigTable!B1522=\"\",\"\",ScriptText!$B$1&CHAR(10)&ScriptText!$D$1)","v":""},{"$f":"IF(OrigTable!B1522=\"\",\"\",TEXT(OrigTable!B1522,\"00\"))","v":""},{"$f":"IF(OrigTable!B1522=\"\",\"\",ScriptText!$E$1&CHAR(10)&ScriptText!C1517)","v":""},{"$f":"IF(OrigTable!C1522=\"\",\"\",ScriptText!$B$1&CHAR(10)&ScriptText!$D$1)","v":""},{"$f":"IF(OrigTable!C1522=\"\",\"\",IF(LEN(OrigTable!C1522)>255,LEFT(OrigTable!C1522,250)&\". . .\",OrigTable!C1522))","v":""},{"$f":"IF(OrigTable!C1522=\"\",\"\",ScriptText!$E$1&CHAR(10)&ScriptText!$C$1)","v":""},{"$f":"IF(OrigTable!D1522=\"\",\"\",ScriptText!$B$1&CHAR(10)&ScriptText!$D$1)","v":""},{"$f":"IF(OrigTable!D1522=\"\",\"\",TEXT(OrigTable!D1522,\"00\"))","v":""},{"$f":"IF(OrigTable!D1522=\"\",\"\",ScriptText!$E$1&CHAR(10)&ScriptText!$C$1)","v":""},{"$f":"IF(OrigTable!E1522=\"\",\"\",ScriptText!$B$1&CHAR(10)&ScriptText!$D$1)","v":""},{"$f":"IF(OrigTable!E1522=\"\",\"\",TEXT(OrigTable!E1522,\"00\"))","v":""},{"$f":"IF(OrigTable!E1522=\"\",\"\",ScriptText!$E$1&CHAR(10)&ScriptText!$C$1)","v":""},{"$f":"IF(OrigTable!F1522=\"\",\"\",ScriptText!$B$1&CHAR(10)&ScriptText!$D$1)","v":""},{"$f":"IF(OrigTable!F1522=\"\",\"\",TEXT(OrigTable!F1522,\"00\"))","v":""},{"$f":"IF(OrigTable!F1522=\"\",\"\",ScriptText!$E$1&CHAR(10)&ScriptText!$C$1)","v":""},{"$f":"IF(OrigTable!G1522=\"\",\"\",ScriptText!$B$1&CHAR(10)&ScriptText!$D$1)","v":""},{"$f":"IF(OrigTable!G1522=\"\",\"\",TEXT(OrigTable!G1522,\"00\"))","v":""},{"$f":"IF(OrigTable!G1522=\"\",\"\",ScriptText!$E$1&CHAR(10)&ScriptText!$C$1)","v":""},0]
["\n\n\n",{"$f":"IF(OrigTable!A1523=\"\",\"\",ScriptText!$B$1&CHAR(10)&ScriptText!$D$1)","v":""},{"$f":"IF(OrigTable!A1523=\"\",\"\",TEXT(OrigTable!A1523,\"00\"))","v":""},{"$f":"IF(OrigTable!A1523=\"\",\"\",ScriptText!$E$1&CHAR(10)&ScriptText!$C$1)","v":""},{"$f":"IF(OrigTable!B1523=\"\",\"\",ScriptText!$B$1&CHAR(10)&ScriptText!$D$1)","v":""},{"$f":"IF(OrigTable!B1523=\"\",\"\",TEXT(OrigTable!B1523,\"00\"))","v":""},{"$f":"IF(OrigTable!B1523=\"\",\"\",ScriptText!$E$1&CHAR(10)&ScriptText!C1518)","v":""},{"$f":"IF(OrigTable!C1523=\"\",\"\",ScriptText!$B$1&CHAR(10)&ScriptText!$D$1)","v":""},{"$f":"IF(OrigTable!C1523=\"\",\"\",IF(LEN(OrigTable!C1523)>255,LEFT(OrigTable!C1523,250)&\". . .\",OrigTable!C1523))","v":""},{"$f":"IF(OrigTable!C1523=\"\",\"\",ScriptText!$E$1&CHAR(10)&ScriptText!$C$1)","v":""},{"$f":"IF(OrigTable!D1523=\"\",\"\",ScriptText!$B$1&CHAR(10)&ScriptText!$D$1)","v":""},{"$f":"IF(OrigTable!D1523=\"\",\"\",TEXT(OrigTable!D1523,\"00\"))","v":""},{"$f":"IF(OrigTable!D1523=\"\",\"\",ScriptText!$E$1&CHAR(10)&ScriptText!$C$1)","v":""},{"$f":"IF(OrigTable!E1523=\"\",\"\",ScriptText!$B$1&CHAR(10)&ScriptText!$D$1)","v":""},{"$f":"IF(OrigTable!E1523=\"\",\"\",TEXT(OrigTable!E1523,\"00\"))","v":""},{"$f":"IF(OrigTable!E1523=\"\",\"\",ScriptText!$E$1&CHAR(10)&ScriptText!$C$1)","v":""},{"$f":"IF(OrigTable!F1523=\"\",\"\",ScriptText!$B$1&CHAR(10)&ScriptText!$D$1)","v":""},{"$f":"IF(OrigTable!F1523=\"\",\"\",TEXT(OrigTable!F1523,\"00\"))","v":""},{"$f":"IF(OrigTable!F1523=\"\",\"\",ScriptText!$E$1&CHAR(10)&ScriptText!$C$1)","v":""},{"$f":"IF(OrigTable!G1523=\"\",\"\",ScriptText!$B$1&CHAR(10)&ScriptText!$D$1)","v":""},{"$f":"IF(OrigTable!G1523=\"\",\"\",TEXT(OrigTable!G1523,\"00\"))","v":""},{"$f":"IF(OrigTable!G1523=\"\",\"\",ScriptText!$E$1&CHAR(10)&ScriptText!$C$1)","v":""},0]
["\n\n\n",{"$f":"IF(OrigTable!A1524=\"\",\"\",ScriptText!$B$1&CHAR(10)&ScriptText!$D$1)","v":""},{"$f":"IF(OrigTable!A1524=\"\",\"\",TEXT(OrigTable!A1524,\"00\"))","v":""},{"$f":"IF(OrigTable!A1524=\"\",\"\",ScriptText!$E$1&CHAR(10)&ScriptText!$C$1)","v":""},{"$f":"IF(OrigTable!B1524=\"\",\"\",ScriptText!$B$1&CHAR(10)&ScriptText!$D$1)","v":""},{"$f":"IF(OrigTable!B1524=\"\",\"\",TEXT(OrigTable!B1524,\"00\"))","v":""},{"$f":"IF(OrigTable!B1524=\"\",\"\",ScriptText!$E$1&CHAR(10)&ScriptText!C1519)","v":""},{"$f":"IF(OrigTable!C1524=\"\",\"\",ScriptText!$B$1&CHAR(10)&ScriptText!$D$1)","v":""},{"$f":"IF(OrigTable!C1524=\"\",\"\",IF(LEN(OrigTable!C1524)>255,LEFT(OrigTable!C1524,250)&\". . .\",OrigTable!C1524))","v":""},{"$f":"IF(OrigTable!C1524=\"\",\"\",ScriptText!$E$1&CHAR(10)&ScriptText!$C$1)","v":""},{"$f":"IF(OrigTable!D1524=\"\",\"\",ScriptText!$B$1&CHAR(10)&ScriptText!$D$1)","v":""},{"$f":"IF(OrigTable!D1524=\"\",\"\",TEXT(OrigTable!D1524,\"00\"))","v":""},{"$f":"IF(OrigTable!D1524=\"\",\"\",ScriptText!$E$1&CHAR(10)&ScriptText!$C$1)","v":""},{"$f":"IF(OrigTable!E1524=\"\",\"\",ScriptText!$B$1&CHAR(10)&ScriptText!$D$1)","v":""},{"$f":"IF(OrigTable!E1524=\"\",\"\",TEXT(OrigTable!E1524,\"00\"))","v":""},{"$f":"IF(OrigTable!E1524=\"\",\"\",ScriptText!$E$1&CHAR(10)&ScriptText!$C$1)","v":""},{"$f":"IF(OrigTable!F1524=\"\",\"\",ScriptText!$B$1&CHAR(10)&ScriptText!$D$1)","v":""},{"$f":"IF(OrigTable!F1524=\"\",\"\",TEXT(OrigTable!F1524,\"00\"))","v":""},{"$f":"IF(OrigTable!F1524=\"\",\"\",ScriptText!$E$1&CHAR(10)&ScriptText!$C$1)","v":""},{"$f":"IF(OrigTable!G1524=\"\",\"\",ScriptText!$B$1&CHAR(10)&ScriptText!$D$1)","v":""},{"$f":"IF(OrigTable!G1524=\"\",\"\",TEXT(OrigTable!G1524,\"00\"))","v":""},{"$f":"IF(OrigTable!G1524=\"\",\"\",ScriptText!$E$1&CHAR(10)&ScriptText!$C$1)","v":""},0]
["\n\n\n",{"$f":"IF(OrigTable!A1525=\"\",\"\",ScriptText!$B$1&CHAR(10)&ScriptText!$D$1)","v":""},{"$f":"IF(OrigTable!A1525=\"\",\"\",TEXT(OrigTable!A1525,\"00\"))","v":""},{"$f":"IF(OrigTable!A1525=\"\",\"\",ScriptText!$E$1&CHAR(10)&ScriptText!$C$1)","v":""},{"$f":"IF(OrigTable!B1525=\"\",\"\",ScriptText!$B$1&CHAR(10)&ScriptText!$D$1)","v":""},{"$f":"IF(OrigTable!B1525=\"\",\"\",TEXT(OrigTable!B1525,\"00\"))","v":""},{"$f":"IF(OrigTable!B1525=\"\",\"\",ScriptText!$E$1&CHAR(10)&ScriptText!C1520)","v":""},{"$f":"IF(OrigTable!C1525=\"\",\"\",ScriptText!$B$1&CHAR(10)&ScriptText!$D$1)","v":""},{"$f":"IF(OrigTable!C1525=\"\",\"\",IF(LEN(OrigTable!C1525)>255,LEFT(OrigTable!C1525,250)&\". . .\",OrigTable!C1525))","v":""},{"$f":"IF(OrigTable!C1525=\"\",\"\",ScriptText!$E$1&CHAR(10)&ScriptText!$C$1)","v":""},{"$f":"IF(OrigTable!D1525=\"\",\"\",ScriptText!$B$1&CHAR(10)&ScriptText!$D$1)","v":""},{"$f":"IF(OrigTable!D1525=\"\",\"\",TEXT(OrigTable!D1525,\"00\"))","v":""},{"$f":"IF(OrigTable!D1525=\"\",\"\",ScriptText!$E$1&CHAR(10)&ScriptText!$C$1)","v":""},{"$f":"IF(OrigTable!E1525=\"\",\"\",ScriptText!$B$1&CHAR(10)&ScriptText!$D$1)","v":""},{"$f":"IF(OrigTable!E1525=\"\",\"\",TEXT(OrigTable!E1525,\"00\"))","v":""},{"$f":"IF(OrigTable!E1525=\"\",\"\",ScriptText!$E$1&CHAR(10)&ScriptText!$C$1)","v":""},{"$f":"IF(OrigTable!F1525=\"\",\"\",ScriptText!$B$1&CHAR(10)&ScriptText!$D$1)","v":""},{"$f":"IF(OrigTable!F1525=\"\",\"\",TEXT(OrigTable!F1525,\"00\"))","v":""},{"$f":"IF(OrigTable!F1525=\"\",\"\",ScriptText!$E$1&CHAR(10)&ScriptText!$C$1)","v":""},{"$f":"IF(OrigTable!G1525=\"\",\"\",ScriptText!$B$1&CHAR(10)&ScriptText!$D$1)","v":""},{"$f":"IF(OrigTable!G1525=\"\",\"\",TEXT(OrigTable!G1525,\"00\"))","v":""},{"$f":"IF(OrigTable!G1525=\"\",\"\",ScriptText!$E$1&CHAR(10)&ScriptText!$C$1)","v":""},0]
["\n\n\n",{"$f":"IF(OrigTable!A1526=\"\",\"\",ScriptText!$B$1&CHAR(10)&ScriptText!$D$1)","v":""},{"$f":"IF(OrigTable!A1526=\"\",\"\",TEXT(OrigTable!A1526,\"00\"))","v":""},{"$f":"IF(OrigTable!A1526=\"\",\"\",ScriptText!$E$1&CHAR(10)&ScriptText!$C$1)","v":""},{"$f":"IF(OrigTable!B1526=\"\",\"\",ScriptText!$B$1&CHAR(10)&ScriptText!$D$1)","v":""},{"$f":"IF(OrigTable!B1526=\"\",\"\",TEXT(OrigTable!B1526,\"00\"))","v":""},{"$f":"IF(OrigTable!B1526=\"\",\"\",ScriptText!$E$1&CHAR(10)&ScriptText!C1521)","v":""},{"$f":"IF(OrigTable!C1526=\"\",\"\",ScriptText!$B$1&CHAR(10)&ScriptText!$D$1)","v":""},{"$f":"IF(OrigTable!C1526=\"\",\"\",IF(LEN(OrigTable!C1526)>255,LEFT(OrigTable!C1526,250)&\". . .\",OrigTable!C1526))","v":""},{"$f":"IF(OrigTable!C1526=\"\",\"\",ScriptText!$E$1&CHAR(10)&ScriptText!$C$1)","v":""},{"$f":"IF(OrigTable!D1526=\"\",\"\",ScriptText!$B$1&CHAR(10)&ScriptText!$D$1)","v":""},{"$f":"IF(OrigTable!D1526=\"\",\"\",TEXT(OrigTable!D1526,\"00\"))","v":""},{"$f":"IF(OrigTable!D1526=\"\",\"\",ScriptText!$E$1&CHAR(10)&ScriptText!$C$1)","v":""},{"$f":"IF(OrigTable!E1526=\"\",\"\",ScriptText!$B$1&CHAR(10)&ScriptText!$D$1)","v":""},{"$f":"IF(OrigTable!E1526=\"\",\"\",TEXT(OrigTable!E1526,\"00\"))","v":""},{"$f":"IF(OrigTable!E1526=\"\",\"\",ScriptText!$E$1&CHAR(10)&ScriptText!$C$1)","v":""},{"$f":"IF(OrigTable!F1526=\"\",\"\",ScriptText!$B$1&CHAR(10)&ScriptText!$D$1)","v":""},{"$f":"IF(OrigTable!F1526=\"\",\"\",TEXT(OrigTable!F1526,\"00\"))","v":""},{"$f":"IF(OrigTable!F1526=\"\",\"\",ScriptText!$E$1&CHAR(10)&ScriptText!$C$1)","v":""},{"$f":"IF(OrigTable!G1526=\"\",\"\",ScriptText!$B$1&CHAR(10)&ScriptText!$D$1)","v":""},{"$f":"IF(OrigTable!G1526=\"\",\"\",TEXT(OrigTable!G1526,\"00\"))","v":""},{"$f":"IF(OrigTable!G1526=\"\",\"\",ScriptText!$E$1&CHAR(10)&ScriptText!$C$1)","v":""},0]
["\n\n\n",{"$f":"IF(OrigTable!A1527=\"\",\"\",ScriptText!$B$1&CHAR(10)&ScriptText!$D$1)","v":""},{"$f":"IF(OrigTable!A1527=\"\",\"\",TEXT(OrigTable!A1527,\"00\"))","v":""},{"$f":"IF(OrigTable!A1527=\"\",\"\",ScriptText!$E$1&CHAR(10)&ScriptText!$C$1)","v":""},{"$f":"IF(OrigTable!B1527=\"\",\"\",ScriptText!$B$1&CHAR(10)&ScriptText!$D$1)","v":""},{"$f":"IF(OrigTable!B1527=\"\",\"\",TEXT(OrigTable!B1527,\"00\"))","v":""},{"$f":"IF(OrigTable!B1527=\"\",\"\",ScriptText!$E$1&CHAR(10)&ScriptText!C1522)","v":""},{"$f":"IF(OrigTable!C1527=\"\",\"\",ScriptText!$B$1&CHAR(10)&ScriptText!$D$1)","v":""},{"$f":"IF(OrigTable!C1527=\"\",\"\",IF(LEN(OrigTable!C1527)>255,LEFT(OrigTable!C1527,250)&\". . .\",OrigTable!C1527))","v":""},{"$f":"IF(OrigTable!C1527=\"\",\"\",ScriptText!$E$1&CHAR(10)&ScriptText!$C$1)","v":""},{"$f":"IF(OrigTable!D1527=\"\",\"\",ScriptText!$B$1&CHAR(10)&ScriptText!$D$1)","v":""},{"$f":"IF(OrigTable!D1527=\"\",\"\",TEXT(OrigTable!D1527,\"00\"))","v":""},{"$f":"IF(OrigTable!D1527=\"\",\"\",ScriptText!$E$1&CHAR(10)&ScriptText!$C$1)","v":""},{"$f":"IF(OrigTable!E1527=\"\",\"\",ScriptText!$B$1&CHAR(10)&ScriptText!$D$1)","v":""},{"$f":"IF(OrigTable!E1527=\"\",\"\",TEXT(OrigTable!E1527,\"00\"))","v":""},{"$f":"IF(OrigTable!E1527=\"\",\"\",ScriptText!$E$1&CHAR(10)&ScriptText!$C$1)","v":""},{"$f":"IF(OrigTable!F1527=\"\",\"\",ScriptText!$B$1&CHAR(10)&ScriptText!$D$1)","v":""},{"$f":"IF(OrigTable!F1527=\"\",\"\",TEXT(OrigTable!F1527,\"00\"))","v":""},{"$f":"IF(OrigTable!F1527=\"\",\"\",ScriptText!$E$1&CHAR(10)&ScriptText!$C$1)","v":""},{"$f":"IF(OrigTable!G1527=\"\",\"\",ScriptText!$B$1&CHAR(10)&ScriptText!$D$1)","v":""},{"$f":"IF(OrigTable!G1527=\"\",\"\",TEXT(OrigTable!G1527,\"00\"))","v":""},{"$f":"IF(OrigTable!G1527=\"\",\"\",ScriptText!$E$1&CHAR(10)&ScriptText!$C$1)","v":""},0]
["\n\n\n",{"$f":"IF(OrigTable!A1528=\"\",\"\",ScriptText!$B$1&CHAR(10)&ScriptText!$D$1)","v":""},{"$f":"IF(OrigTable!A1528=\"\",\"\",TEXT(OrigTable!A1528,\"00\"))","v":""},{"$f":"IF(OrigTable!A1528=\"\",\"\",ScriptText!$E$1&CHAR(10)&ScriptText!$C$1)","v":""},{"$f":"IF(OrigTable!B1528=\"\",\"\",ScriptText!$B$1&CHAR(10)&ScriptText!$D$1)","v":""},{"$f":"IF(OrigTable!B1528=\"\",\"\",TEXT(OrigTable!B1528,\"00\"))","v":""},{"$f":"IF(OrigTable!B1528=\"\",\"\",ScriptText!$E$1&CHAR(10)&ScriptText!C1523)","v":""},{"$f":"IF(OrigTable!C1528=\"\",\"\",ScriptText!$B$1&CHAR(10)&ScriptText!$D$1)","v":""},{"$f":"IF(OrigTable!C1528=\"\",\"\",IF(LEN(OrigTable!C1528)>255,LEFT(OrigTable!C1528,250)&\". . .\",OrigTable!C1528))","v":""},{"$f":"IF(OrigTable!C1528=\"\",\"\",ScriptText!$E$1&CHAR(10)&ScriptText!$C$1)","v":""},{"$f":"IF(OrigTable!D1528=\"\",\"\",ScriptText!$B$1&CHAR(10)&ScriptText!$D$1)","v":""},{"$f":"IF(OrigTable!D1528=\"\",\"\",TEXT(OrigTable!D1528,\"00\"))","v":""},{"$f":"IF(OrigTable!D1528=\"\",\"\",ScriptText!$E$1&CHAR(10)&ScriptText!$C$1)","v":""},{"$f":"IF(OrigTable!E1528=\"\",\"\",ScriptText!$B$1&CHAR(10)&ScriptText!$D$1)","v":""},{"$f":"IF(OrigTable!E1528=\"\",\"\",TEXT(OrigTable!E1528,\"00\"))","v":""},{"$f":"IF(OrigTable!E1528=\"\",\"\",ScriptText!$E$1&CHAR(10)&ScriptText!$C$1)","v":""},{"$f":"IF(OrigTable!F1528=\"\",\"\",ScriptText!$B$1&CHAR(10)&ScriptText!$D$1)","v":""},{"$f":"IF(OrigTable!F1528=\"\",\"\",TEXT(OrigTable!F1528,\"00\"))","v":""},{"$f":"IF(OrigTable!F1528=\"\",\"\",ScriptText!$E$1&CHAR(10)&ScriptText!$C$1)","v":""},{"$f":"IF(OrigTable!G1528=\"\",\"\",ScriptText!$B$1&CHAR(10)&ScriptText!$D$1)","v":""},{"$f":"IF(OrigTable!G1528=\"\",\"\",TEXT(OrigTable!G1528,\"00\"))","v":""},{"$f":"IF(OrigTable!G1528=\"\",\"\",ScriptText!$E$1&CHAR(10)&ScriptText!$C$1)","v":""},0]
["\n\n\n",{"$f":"IF(OrigTable!A1529=\"\",\"\",ScriptText!$B$1&CHAR(10)&ScriptText!$D$1)","v":""},{"$f":"IF(OrigTable!A1529=\"\",\"\",TEXT(OrigTable!A1529,\"00\"))","v":""},{"$f":"IF(OrigTable!A1529=\"\",\"\",ScriptText!$E$1&CHAR(10)&ScriptText!$C$1)","v":""},{"$f":"IF(OrigTable!B1529=\"\",\"\",ScriptText!$B$1&CHAR(10)&ScriptText!$D$1)","v":""},{"$f":"IF(OrigTable!B1529=\"\",\"\",TEXT(OrigTable!B1529,\"00\"))","v":""},{"$f":"IF(OrigTable!B1529=\"\",\"\",ScriptText!$E$1&CHAR(10)&ScriptText!C1524)","v":""},{"$f":"IF(OrigTable!C1529=\"\",\"\",ScriptText!$B$1&CHAR(10)&ScriptText!$D$1)","v":""},{"$f":"IF(OrigTable!C1529=\"\",\"\",IF(LEN(OrigTable!C1529)>255,LEFT(OrigTable!C1529,250)&\". . .\",OrigTable!C1529))","v":""},{"$f":"IF(OrigTable!C1529=\"\",\"\",ScriptText!$E$1&CHAR(10)&ScriptText!$C$1)","v":""},{"$f":"IF(OrigTable!D1529=\"\",\"\",ScriptText!$B$1&CHAR(10)&ScriptText!$D$1)","v":""},{"$f":"IF(OrigTable!D1529=\"\",\"\",TEXT(OrigTable!D1529,\"00\"))","v":""},{"$f":"IF(OrigTable!D1529=\"\",\"\",ScriptText!$E$1&CHAR(10)&ScriptText!$C$1)","v":""},{"$f":"IF(OrigTable!E1529=\"\",\"\",ScriptText!$B$1&CHAR(10)&ScriptText!$D$1)","v":""},{"$f":"IF(OrigTable!E1529=\"\",\"\",TEXT(OrigTable!E1529,\"00\"))","v":""},{"$f":"IF(OrigTable!E1529=\"\",\"\",ScriptText!$E$1&CHAR(10)&ScriptText!$C$1)","v":""},{"$f":"IF(OrigTable!F1529=\"\",\"\",ScriptText!$B$1&CHAR(10)&ScriptText!$D$1)","v":""},{"$f":"IF(OrigTable!F1529=\"\",\"\",TEXT(OrigTable!F1529,\"00\"))","v":""},{"$f":"IF(OrigTable!F1529=\"\",\"\",ScriptText!$E$1&CHAR(10)&ScriptText!$C$1)","v":""},{"$f":"IF(OrigTable!G1529=\"\",\"\",ScriptText!$B$1&CHAR(10)&ScriptText!$D$1)","v":""},{"$f":"IF(OrigTable!G1529=\"\",\"\",TEXT(OrigTable!G1529,\"00\"))","v":""},{"$f":"IF(OrigTable!G1529=\"\",\"\",ScriptText!$E$1&CHAR(10)&ScriptText!$C$1)","v":""},0]
["\n\n\n",{"$f":"IF(OrigTable!A1530=\"\",\"\",ScriptText!$B$1&CHAR(10)&ScriptText!$D$1)","v":""},{"$f":"IF(OrigTable!A1530=\"\",\"\",TEXT(OrigTable!A1530,\"00\"))","v":""},{"$f":"IF(OrigTable!A1530=\"\",\"\",ScriptText!$E$1&CHAR(10)&ScriptText!$C$1)","v":""},{"$f":"IF(OrigTable!B1530=\"\",\"\",ScriptText!$B$1&CHAR(10)&ScriptText!$D$1)","v":""},{"$f":"IF(OrigTable!B1530=\"\",\"\",TEXT(OrigTable!B1530,\"00\"))","v":""},{"$f":"IF(OrigTable!B1530=\"\",\"\",ScriptText!$E$1&CHAR(10)&ScriptText!C1525)","v":""},{"$f":"IF(OrigTable!C1530=\"\",\"\",ScriptText!$B$1&CHAR(10)&ScriptText!$D$1)","v":""},{"$f":"IF(OrigTable!C1530=\"\",\"\",IF(LEN(OrigTable!C1530)>255,LEFT(OrigTable!C1530,250)&\". . .\",OrigTable!C1530))","v":""},{"$f":"IF(OrigTable!C1530=\"\",\"\",ScriptText!$E$1&CHAR(10)&ScriptText!$C$1)","v":""},{"$f":"IF(OrigTable!D1530=\"\",\"\",ScriptText!$B$1&CHAR(10)&ScriptText!$D$1)","v":""},{"$f":"IF(OrigTable!D1530=\"\",\"\",TEXT(OrigTable!D1530,\"00\"))","v":""},{"$f":"IF(OrigTable!D1530=\"\",\"\",ScriptText!$E$1&CHAR(10)&ScriptText!$C$1)","v":""},{"$f":"IF(OrigTable!E1530=\"\",\"\",ScriptText!$B$1&CHAR(10)&ScriptText!$D$1)","v":""},{"$f":"IF(OrigTable!E1530=\"\",\"\",TEXT(OrigTable!E1530,\"00\"))","v":""},{"$f":"IF(OrigTable!E1530=\"\",\"\",ScriptText!$E$1&CHAR(10)&ScriptText!$C$1)","v":""},{"$f":"IF(OrigTable!F1530=\"\",\"\",ScriptText!$B$1&CHAR(10)&ScriptText!$D$1)","v":""},{"$f":"IF(OrigTable!F1530=\"\",\"\",TEXT(OrigTable!F1530,\"00\"))","v":""},{"$f":"IF(OrigTable!F1530=\"\",\"\",ScriptText!$E$1&CHAR(10)&ScriptText!$C$1)","v":""},{"$f":"IF(OrigTable!G1530=\"\",\"\",ScriptText!$B$1&CHAR(10)&ScriptText!$D$1)","v":""},{"$f":"IF(OrigTable!G1530=\"\",\"\",TEXT(OrigTable!G1530,\"00\"))","v":""},{"$f":"IF(OrigTable!G1530=\"\",\"\",ScriptText!$E$1&CHAR(10)&ScriptText!$C$1)","v":""},0]
["\n\n\n",{"$f":"IF(OrigTable!A1531=\"\",\"\",ScriptText!$B$1&CHAR(10)&ScriptText!$D$1)","v":""},{"$f":"IF(OrigTable!A1531=\"\",\"\",TEXT(OrigTable!A1531,\"00\"))","v":""},{"$f":"IF(OrigTable!A1531=\"\",\"\",ScriptText!$E$1&CHAR(10)&ScriptText!$C$1)","v":""},{"$f":"IF(OrigTable!B1531=\"\",\"\",ScriptText!$B$1&CHAR(10)&ScriptText!$D$1)","v":""},{"$f":"IF(OrigTable!B1531=\"\",\"\",TEXT(OrigTable!B1531,\"00\"))","v":""},{"$f":"IF(OrigTable!B1531=\"\",\"\",ScriptText!$E$1&CHAR(10)&ScriptText!C1526)","v":""},{"$f":"IF(OrigTable!C1531=\"\",\"\",ScriptText!$B$1&CHAR(10)&ScriptText!$D$1)","v":""},{"$f":"IF(OrigTable!C1531=\"\",\"\",IF(LEN(OrigTable!C1531)>255,LEFT(OrigTable!C1531,250)&\". . .\",OrigTable!C1531))","v":""},{"$f":"IF(OrigTable!C1531=\"\",\"\",ScriptText!$E$1&CHAR(10)&ScriptText!$C$1)","v":""},{"$f":"IF(OrigTable!D1531=\"\",\"\",ScriptText!$B$1&CHAR(10)&ScriptText!$D$1)","v":""},{"$f":"IF(OrigTable!D1531=\"\",\"\",TEXT(OrigTable!D1531,\"00\"))","v":""},{"$f":"IF(OrigTable!D1531=\"\",\"\",ScriptText!$E$1&CHAR(10)&ScriptText!$C$1)","v":""},{"$f":"IF(OrigTable!E1531=\"\",\"\",ScriptText!$B$1&CHAR(10)&ScriptText!$D$1)","v":""},{"$f":"IF(OrigTable!E1531=\"\",\"\",TEXT(OrigTable!E1531,\"00\"))","v":""},{"$f":"IF(OrigTable!E1531=\"\",\"\",ScriptText!$E$1&CHAR(10)&ScriptText!$C$1)","v":""},{"$f":"IF(OrigTable!F1531=\"\",\"\",ScriptText!$B$1&CHAR(10)&ScriptText!$D$1)","v":""},{"$f":"IF(OrigTable!F1531=\"\",\"\",TEXT(OrigTable!F1531,\"00\"))","v":""},{"$f":"IF(OrigTable!F1531=\"\",\"\",ScriptText!$E$1&CHAR(10)&ScriptText!$C$1)","v":""},{"$f":"IF(OrigTable!G1531=\"\",\"\",ScriptText!$B$1&CHAR(10)&ScriptText!$D$1)","v":""},{"$f":"IF(OrigTable!G1531=\"\",\"\",TEXT(OrigTable!G1531,\"00\"))","v":""},{"$f":"IF(OrigTable!G1531=\"\",\"\",ScriptText!$E$1&CHAR(10)&ScriptText!$C$1)","v":""},0]
["\n\n\n",{"$f":"IF(OrigTable!A1532=\"\",\"\",ScriptText!$B$1&CHAR(10)&ScriptText!$D$1)","v":""},{"$f":"IF(OrigTable!A1532=\"\",\"\",TEXT(OrigTable!A1532,\"00\"))","v":""},{"$f":"IF(OrigTable!A1532=\"\",\"\",ScriptText!$E$1&CHAR(10)&ScriptText!$C$1)","v":""},{"$f":"IF(OrigTable!B1532=\"\",\"\",ScriptText!$B$1&CHAR(10)&ScriptText!$D$1)","v":""},{"$f":"IF(OrigTable!B1532=\"\",\"\",TEXT(OrigTable!B1532,\"00\"))","v":""},{"$f":"IF(OrigTable!B1532=\"\",\"\",ScriptText!$E$1&CHAR(10)&ScriptText!C1527)","v":""},{"$f":"IF(OrigTable!C1532=\"\",\"\",ScriptText!$B$1&CHAR(10)&ScriptText!$D$1)","v":""},{"$f":"IF(OrigTable!C1532=\"\",\"\",IF(LEN(OrigTable!C1532)>255,LEFT(OrigTable!C1532,250)&\". . .\",OrigTable!C1532))","v":""},{"$f":"IF(OrigTable!C1532=\"\",\"\",ScriptText!$E$1&CHAR(10)&ScriptText!$C$1)","v":""},{"$f":"IF(OrigTable!D1532=\"\",\"\",ScriptText!$B$1&CHAR(10)&ScriptText!$D$1)","v":""},{"$f":"IF(OrigTable!D1532=\"\",\"\",TEXT(OrigTable!D1532,\"00\"))","v":""},{"$f":"IF(OrigTable!D1532=\"\",\"\",ScriptText!$E$1&CHAR(10)&ScriptText!$C$1)","v":""},{"$f":"IF(OrigTable!E1532=\"\",\"\",ScriptText!$B$1&CHAR(10)&ScriptText!$D$1)","v":""},{"$f":"IF(OrigTable!E1532=\"\",\"\",TEXT(OrigTable!E1532,\"00\"))","v":""},{"$f":"IF(OrigTable!E1532=\"\",\"\",ScriptText!$E$1&CHAR(10)&ScriptText!$C$1)","v":""},{"$f":"IF(OrigTable!F1532=\"\",\"\",ScriptText!$B$1&CHAR(10)&ScriptText!$D$1)","v":""},{"$f":"IF(OrigTable!F1532=\"\",\"\",TEXT(OrigTable!F1532,\"00\"))","v":""},{"$f":"IF(OrigTable!F1532=\"\",\"\",ScriptText!$E$1&CHAR(10)&ScriptText!$C$1)","v":""},{"$f":"IF(OrigTable!G1532=\"\",\"\",ScriptText!$B$1&CHAR(10)&ScriptText!$D$1)","v":""},{"$f":"IF(OrigTable!G1532=\"\",\"\",TEXT(OrigTable!G1532,\"00\"))","v":""},{"$f":"IF(OrigTable!G1532=\"\",\"\",ScriptText!$E$1&CHAR(10)&ScriptText!$C$1)","v":""},0]
["\n\n\n",{"$f":"IF(OrigTable!A1533=\"\",\"\",ScriptText!$B$1&CHAR(10)&ScriptText!$D$1)","v":""},{"$f":"IF(OrigTable!A1533=\"\",\"\",TEXT(OrigTable!A1533,\"00\"))","v":""},{"$f":"IF(OrigTable!A1533=\"\",\"\",ScriptText!$E$1&CHAR(10)&ScriptText!$C$1)","v":""},{"$f":"IF(OrigTable!B1533=\"\",\"\",ScriptText!$B$1&CHAR(10)&ScriptText!$D$1)","v":""},{"$f":"IF(OrigTable!B1533=\"\",\"\",TEXT(OrigTable!B1533,\"00\"))","v":""},{"$f":"IF(OrigTable!B1533=\"\",\"\",ScriptText!$E$1&CHAR(10)&ScriptText!C1528)","v":""},{"$f":"IF(OrigTable!C1533=\"\",\"\",ScriptText!$B$1&CHAR(10)&ScriptText!$D$1)","v":""},{"$f":"IF(OrigTable!C1533=\"\",\"\",IF(LEN(OrigTable!C1533)>255,LEFT(OrigTable!C1533,250)&\". . .\",OrigTable!C1533))","v":""},{"$f":"IF(OrigTable!C1533=\"\",\"\",ScriptText!$E$1&CHAR(10)&ScriptText!$C$1)","v":""},{"$f":"IF(OrigTable!D1533=\"\",\"\",ScriptText!$B$1&CHAR(10)&ScriptText!$D$1)","v":""},{"$f":"IF(OrigTable!D1533=\"\",\"\",TEXT(OrigTable!D1533,\"00\"))","v":""},{"$f":"IF(OrigTable!D1533=\"\",\"\",ScriptText!$E$1&CHAR(10)&ScriptText!$C$1)","v":""},{"$f":"IF(OrigTable!E1533=\"\",\"\",ScriptText!$B$1&CHAR(10)&ScriptText!$D$1)","v":""},{"$f":"IF(OrigTable!E1533=\"\",\"\",TEXT(OrigTable!E1533,\"00\"))","v":""},{"$f":"IF(OrigTable!E1533=\"\",\"\",ScriptText!$E$1&CHAR(10)&ScriptText!$C$1)","v":""},{"$f":"IF(OrigTable!F1533=\"\",\"\",ScriptText!$B$1&CHAR(10)&ScriptText!$D$1)","v":""},{"$f":"IF(OrigTable!F1533=\"\",\"\",TEXT(OrigTable!F1533,\"00\"))","v":""},{"$f":"IF(OrigTable!F1533=\"\",\"\",ScriptText!$E$1&CHAR(10)&ScriptText!$C$1)","v":""},{"$f":"IF(OrigTable!G1533=\"\",\"\",ScriptText!$B$1&CHAR(10)&ScriptText!$D$1)","v":""},{"$f":"IF(OrigTable!G1533=\"\",\"\",TEXT(OrigTable!G1533,\"00\"))","v":""},{"$f":"IF(OrigTable!G1533=\"\",\"\",ScriptText!$E$1&CHAR(10)&ScriptText!$C$1)","v":""},0]
["\n\n\n",{"$f":"IF(OrigTable!A1534=\"\",\"\",ScriptText!$B$1&CHAR(10)&ScriptText!$D$1)","v":""},{"$f":"IF(OrigTable!A1534=\"\",\"\",TEXT(OrigTable!A1534,\"00\"))","v":""},{"$f":"IF(OrigTable!A1534=\"\",\"\",ScriptText!$E$1&CHAR(10)&ScriptText!$C$1)","v":""},{"$f":"IF(OrigTable!B1534=\"\",\"\",ScriptText!$B$1&CHAR(10)&ScriptText!$D$1)","v":""},{"$f":"IF(OrigTable!B1534=\"\",\"\",TEXT(OrigTable!B1534,\"00\"))","v":""},{"$f":"IF(OrigTable!B1534=\"\",\"\",ScriptText!$E$1&CHAR(10)&ScriptText!C1529)","v":""},{"$f":"IF(OrigTable!C1534=\"\",\"\",ScriptText!$B$1&CHAR(10)&ScriptText!$D$1)","v":""},{"$f":"IF(OrigTable!C1534=\"\",\"\",IF(LEN(OrigTable!C1534)>255,LEFT(OrigTable!C1534,250)&\". . .\",OrigTable!C1534))","v":""},{"$f":"IF(OrigTable!C1534=\"\",\"\",ScriptText!$E$1&CHAR(10)&ScriptText!$C$1)","v":""},{"$f":"IF(OrigTable!D1534=\"\",\"\",ScriptText!$B$1&CHAR(10)&ScriptText!$D$1)","v":""},{"$f":"IF(OrigTable!D1534=\"\",\"\",TEXT(OrigTable!D1534,\"00\"))","v":""},{"$f":"IF(OrigTable!D1534=\"\",\"\",ScriptText!$E$1&CHAR(10)&ScriptText!$C$1)","v":""},{"$f":"IF(OrigTable!E1534=\"\",\"\",ScriptText!$B$1&CHAR(10)&ScriptText!$D$1)","v":""},{"$f":"IF(OrigTable!E1534=\"\",\"\",TEXT(OrigTable!E1534,\"00\"))","v":""},{"$f":"IF(OrigTable!E1534=\"\",\"\",ScriptText!$E$1&CHAR(10)&ScriptText!$C$1)","v":""},{"$f":"IF(OrigTable!F1534=\"\",\"\",ScriptText!$B$1&CHAR(10)&ScriptText!$D$1)","v":""},{"$f":"IF(OrigTable!F1534=\"\",\"\",TEXT(OrigTable!F1534,\"00\"))","v":""},{"$f":"IF(OrigTable!F1534=\"\",\"\",ScriptText!$E$1&CHAR(10)&ScriptText!$C$1)","v":""},{"$f":"IF(OrigTable!G1534=\"\",\"\",ScriptText!$B$1&CHAR(10)&ScriptText!$D$1)","v":""},{"$f":"IF(OrigTable!G1534=\"\",\"\",TEXT(OrigTable!G1534,\"00\"))","v":""},{"$f":"IF(OrigTable!G1534=\"\",\"\",ScriptText!$E$1&CHAR(10)&ScriptText!$C$1)","v":""},0]
["\n\n\n",{"$f":"IF(OrigTable!A1535=\"\",\"\",ScriptText!$B$1&CHAR(10)&ScriptText!$D$1)","v":""},{"$f":"IF(OrigTable!A1535=\"\",\"\",TEXT(OrigTable!A1535,\"00\"))","v":""},{"$f":"IF(OrigTable!A1535=\"\",\"\",ScriptText!$E$1&CHAR(10)&ScriptText!$C$1)","v":""},{"$f":"IF(OrigTable!B1535=\"\",\"\",ScriptText!$B$1&CHAR(10)&ScriptText!$D$1)","v":""},{"$f":"IF(OrigTable!B1535=\"\",\"\",TEXT(OrigTable!B1535,\"00\"))","v":""},{"$f":"IF(OrigTable!B1535=\"\",\"\",ScriptText!$E$1&CHAR(10)&ScriptText!C1530)","v":""},{"$f":"IF(OrigTable!C1535=\"\",\"\",ScriptText!$B$1&CHAR(10)&ScriptText!$D$1)","v":""},{"$f":"IF(OrigTable!C1535=\"\",\"\",IF(LEN(OrigTable!C1535)>255,LEFT(OrigTable!C1535,250)&\". . .\",OrigTable!C1535))","v":""},{"$f":"IF(OrigTable!C1535=\"\",\"\",ScriptText!$E$1&CHAR(10)&ScriptText!$C$1)","v":""},{"$f":"IF(OrigTable!D1535=\"\",\"\",ScriptText!$B$1&CHAR(10)&ScriptText!$D$1)","v":""},{"$f":"IF(OrigTable!D1535=\"\",\"\",TEXT(OrigTable!D1535,\"00\"))","v":""},{"$f":"IF(OrigTable!D1535=\"\",\"\",ScriptText!$E$1&CHAR(10)&ScriptText!$C$1)","v":""},{"$f":"IF(OrigTable!E1535=\"\",\"\",ScriptText!$B$1&CHAR(10)&ScriptText!$D$1)","v":""},{"$f":"IF(OrigTable!E1535=\"\",\"\",TEXT(OrigTable!E1535,\"00\"))","v":""},{"$f":"IF(OrigTable!E1535=\"\",\"\",ScriptText!$E$1&CHAR(10)&ScriptText!$C$1)","v":""},{"$f":"IF(OrigTable!F1535=\"\",\"\",ScriptText!$B$1&CHAR(10)&ScriptText!$D$1)","v":""},{"$f":"IF(OrigTable!F1535=\"\",\"\",TEXT(OrigTable!F1535,\"00\"))","v":""},{"$f":"IF(OrigTable!F1535=\"\",\"\",ScriptText!$E$1&CHAR(10)&ScriptText!$C$1)","v":""},{"$f":"IF(OrigTable!G1535=\"\",\"\",ScriptText!$B$1&CHAR(10)&ScriptText!$D$1)","v":""},{"$f":"IF(OrigTable!G1535=\"\",\"\",TEXT(OrigTable!G1535,\"00\"))","v":""},{"$f":"IF(OrigTable!G1535=\"\",\"\",ScriptText!$E$1&CHAR(10)&ScriptText!$C$1)","v":""},0]
["\n\n\n",{"$f":"IF(OrigTable!A1536=\"\",\"\",ScriptText!$B$1&CHAR(10)&ScriptText!$D$1)","v":""},{"$f":"IF(OrigTable!A1536=\"\",\"\",TEXT(OrigTable!A1536,\"00\"))","v":""},{"$f":"IF(OrigTable!A1536=\"\",\"\",ScriptText!$E$1&CHAR(10)&ScriptText!$C$1)","v":""},{"$f":"IF(OrigTable!B1536=\"\",\"\",ScriptText!$B$1&CHAR(10)&ScriptText!$D$1)","v":""},{"$f":"IF(OrigTable!B1536=\"\",\"\",TEXT(OrigTable!B1536,\"00\"))","v":""},{"$f":"IF(OrigTable!B1536=\"\",\"\",ScriptText!$E$1&CHAR(10)&ScriptText!C1531)","v":""},{"$f":"IF(OrigTable!C1536=\"\",\"\",ScriptText!$B$1&CHAR(10)&ScriptText!$D$1)","v":""},{"$f":"IF(OrigTable!C1536=\"\",\"\",IF(LEN(OrigTable!C1536)>255,LEFT(OrigTable!C1536,250)&\". . .\",OrigTable!C1536))","v":""},{"$f":"IF(OrigTable!C1536=\"\",\"\",ScriptText!$E$1&CHAR(10)&ScriptText!$C$1)","v":""},{"$f":"IF(OrigTable!D1536=\"\",\"\",ScriptText!$B$1&CHAR(10)&ScriptText!$D$1)","v":""},{"$f":"IF(OrigTable!D1536=\"\",\"\",TEXT(OrigTable!D1536,\"00\"))","v":""},{"$f":"IF(OrigTable!D1536=\"\",\"\",ScriptText!$E$1&CHAR(10)&ScriptText!$C$1)","v":""},{"$f":"IF(OrigTable!E1536=\"\",\"\",ScriptText!$B$1&CHAR(10)&ScriptText!$D$1)","v":""},{"$f":"IF(OrigTable!E1536=\"\",\"\",TEXT(OrigTable!E1536,\"00\"))","v":""},{"$f":"IF(OrigTable!E1536=\"\",\"\",ScriptText!$E$1&CHAR(10)&ScriptText!$C$1)","v":""},{"$f":"IF(OrigTable!F1536=\"\",\"\",ScriptText!$B$1&CHAR(10)&ScriptText!$D$1)","v":""},{"$f":"IF(OrigTable!F1536=\"\",\"\",TEXT(OrigTable!F1536,\"00\"))","v":""},{"$f":"IF(OrigTable!F1536=\"\",\"\",ScriptText!$E$1&CHAR(10)&ScriptText!$C$1)","v":""},{"$f":"IF(OrigTable!G1536=\"\",\"\",ScriptText!$B$1&CHAR(10)&ScriptText!$D$1)","v":""},{"$f":"IF(OrigTable!G1536=\"\",\"\",TEXT(OrigTable!G1536,\"00\"))","v":""},{"$f":"IF(OrigTable!G1536=\"\",\"\",ScriptText!$E$1&CHAR(10)&ScriptText!$C$1)","v":""},0]
["\n\n\n",{"$f":"IF(OrigTable!A1537=\"\",\"\",ScriptText!$B$1&CHAR(10)&ScriptText!$D$1)","v":""},{"$f":"IF(OrigTable!A1537=\"\",\"\",TEXT(OrigTable!A1537,\"00\"))","v":""},{"$f":"IF(OrigTable!A1537=\"\",\"\",ScriptText!$E$1&CHAR(10)&ScriptText!$C$1)","v":""},{"$f":"IF(OrigTable!B1537=\"\",\"\",ScriptText!$B$1&CHAR(10)&ScriptText!$D$1)","v":""},{"$f":"IF(OrigTable!B1537=\"\",\"\",TEXT(OrigTable!B1537,\"00\"))","v":""},{"$f":"IF(OrigTable!B1537=\"\",\"\",ScriptText!$E$1&CHAR(10)&ScriptText!C1532)","v":""},{"$f":"IF(OrigTable!C1537=\"\",\"\",ScriptText!$B$1&CHAR(10)&ScriptText!$D$1)","v":""},{"$f":"IF(OrigTable!C1537=\"\",\"\",IF(LEN(OrigTable!C1537)>255,LEFT(OrigTable!C1537,250)&\". . .\",OrigTable!C1537))","v":""},{"$f":"IF(OrigTable!C1537=\"\",\"\",ScriptText!$E$1&CHAR(10)&ScriptText!$C$1)","v":""},{"$f":"IF(OrigTable!D1537=\"\",\"\",ScriptText!$B$1&CHAR(10)&ScriptText!$D$1)","v":""},{"$f":"IF(OrigTable!D1537=\"\",\"\",TEXT(OrigTable!D1537,\"00\"))","v":""},{"$f":"IF(OrigTable!D1537=\"\",\"\",ScriptText!$E$1&CHAR(10)&ScriptText!$C$1)","v":""},{"$f":"IF(OrigTable!E1537=\"\",\"\",ScriptText!$B$1&CHAR(10)&ScriptText!$D$1)","v":""},{"$f":"IF(OrigTable!E1537=\"\",\"\",TEXT(OrigTable!E1537,\"00\"))","v":""},{"$f":"IF(OrigTable!E1537=\"\",\"\",ScriptText!$E$1&CHAR(10)&ScriptText!$C$1)","v":""},{"$f":"IF(OrigTable!F1537=\"\",\"\",ScriptText!$B$1&CHAR(10)&ScriptText!$D$1)","v":""},{"$f":"IF(OrigTable!F1537=\"\",\"\",TEXT(OrigTable!F1537,\"00\"))","v":""},{"$f":"IF(OrigTable!F1537=\"\",\"\",ScriptText!$E$1&CHAR(10)&ScriptText!$C$1)","v":""},{"$f":"IF(OrigTable!G1537=\"\",\"\",ScriptText!$B$1&CHAR(10)&ScriptText!$D$1)","v":""},{"$f":"IF(OrigTable!G1537=\"\",\"\",TEXT(OrigTable!G1537,\"00\"))","v":""},{"$f":"IF(OrigTable!G1537=\"\",\"\",ScriptText!$E$1&CHAR(10)&ScriptText!$C$1)","v":""},0]
["\n\n\n",{"$f":"IF(OrigTable!A1538=\"\",\"\",ScriptText!$B$1&CHAR(10)&ScriptText!$D$1)","v":""},{"$f":"IF(OrigTable!A1538=\"\",\"\",TEXT(OrigTable!A1538,\"00\"))","v":""},{"$f":"IF(OrigTable!A1538=\"\",\"\",ScriptText!$E$1&CHAR(10)&ScriptText!$C$1)","v":""},{"$f":"IF(OrigTable!B1538=\"\",\"\",ScriptText!$B$1&CHAR(10)&ScriptText!$D$1)","v":""},{"$f":"IF(OrigTable!B1538=\"\",\"\",TEXT(OrigTable!B1538,\"00\"))","v":""},{"$f":"IF(OrigTable!B1538=\"\",\"\",ScriptText!$E$1&CHAR(10)&ScriptText!C1533)","v":""},{"$f":"IF(OrigTable!C1538=\"\",\"\",ScriptText!$B$1&CHAR(10)&ScriptText!$D$1)","v":""},{"$f":"IF(OrigTable!C1538=\"\",\"\",IF(LEN(OrigTable!C1538)>255,LEFT(OrigTable!C1538,250)&\". . .\",OrigTable!C1538))","v":""},{"$f":"IF(OrigTable!C1538=\"\",\"\",ScriptText!$E$1&CHAR(10)&ScriptText!$C$1)","v":""},{"$f":"IF(OrigTable!D1538=\"\",\"\",ScriptText!$B$1&CHAR(10)&ScriptText!$D$1)","v":""},{"$f":"IF(OrigTable!D1538=\"\",\"\",TEXT(OrigTable!D1538,\"00\"))","v":""},{"$f":"IF(OrigTable!D1538=\"\",\"\",ScriptText!$E$1&CHAR(10)&ScriptText!$C$1)","v":""},{"$f":"IF(OrigTable!E1538=\"\",\"\",ScriptText!$B$1&CHAR(10)&ScriptText!$D$1)","v":""},{"$f":"IF(OrigTable!E1538=\"\",\"\",TEXT(OrigTable!E1538,\"00\"))","v":""},{"$f":"IF(OrigTable!E1538=\"\",\"\",ScriptText!$E$1&CHAR(10)&ScriptText!$C$1)","v":""},{"$f":"IF(OrigTable!F1538=\"\",\"\",ScriptText!$B$1&CHAR(10)&ScriptText!$D$1)","v":""},{"$f":"IF(OrigTable!F1538=\"\",\"\",TEXT(OrigTable!F1538,\"00\"))","v":""},{"$f":"IF(OrigTable!F1538=\"\",\"\",ScriptText!$E$1&CHAR(10)&ScriptText!$C$1)","v":""},{"$f":"IF(OrigTable!G1538=\"\",\"\",ScriptText!$B$1&CHAR(10)&ScriptText!$D$1)","v":""},{"$f":"IF(OrigTable!G1538=\"\",\"\",TEXT(OrigTable!G1538,\"00\"))","v":""},{"$f":"IF(OrigTable!G1538=\"\",\"\",ScriptText!$E$1&CHAR(10)&ScriptText!$C$1)","v":""},0]
["\n\n\n",{"$f":"IF(OrigTable!A1539=\"\",\"\",ScriptText!$B$1&CHAR(10)&ScriptText!$D$1)","v":""},{"$f":"IF(OrigTable!A1539=\"\",\"\",TEXT(OrigTable!A1539,\"00\"))","v":""},{"$f":"IF(OrigTable!A1539=\"\",\"\",ScriptText!$E$1&CHAR(10)&ScriptText!$C$1)","v":""},{"$f":"IF(OrigTable!B1539=\"\",\"\",ScriptText!$B$1&CHAR(10)&ScriptText!$D$1)","v":""},{"$f":"IF(OrigTable!B1539=\"\",\"\",TEXT(OrigTable!B1539,\"00\"))","v":""},{"$f":"IF(OrigTable!B1539=\"\",\"\",ScriptText!$E$1&CHAR(10)&ScriptText!C1534)","v":""},{"$f":"IF(OrigTable!C1539=\"\",\"\",ScriptText!$B$1&CHAR(10)&ScriptText!$D$1)","v":""},{"$f":"IF(OrigTable!C1539=\"\",\"\",IF(LEN(OrigTable!C1539)>255,LEFT(OrigTable!C1539,250)&\". . .\",OrigTable!C1539))","v":""},{"$f":"IF(OrigTable!C1539=\"\",\"\",ScriptText!$E$1&CHAR(10)&ScriptText!$C$1)","v":""},{"$f":"IF(OrigTable!D1539=\"\",\"\",ScriptText!$B$1&CHAR(10)&ScriptText!$D$1)","v":""},{"$f":"IF(OrigTable!D1539=\"\",\"\",TEXT(OrigTable!D1539,\"00\"))","v":""},{"$f":"IF(OrigTable!D1539=\"\",\"\",ScriptText!$E$1&CHAR(10)&ScriptText!$C$1)","v":""},{"$f":"IF(OrigTable!E1539=\"\",\"\",ScriptText!$B$1&CHAR(10)&ScriptText!$D$1)","v":""},{"$f":"IF(OrigTable!E1539=\"\",\"\",TEXT(OrigTable!E1539,\"00\"))","v":""},{"$f":"IF(OrigTable!E1539=\"\",\"\",ScriptText!$E$1&CHAR(10)&ScriptText!$C$1)","v":""},{"$f":"IF(OrigTable!F1539=\"\",\"\",ScriptText!$B$1&CHAR(10)&ScriptText!$D$1)","v":""},{"$f":"IF(OrigTable!F1539=\"\",\"\",TEXT(OrigTable!F1539,\"00\"))","v":""},{"$f":"IF(OrigTable!F1539=\"\",\"\",ScriptText!$E$1&CHAR(10)&ScriptText!$C$1)","v":""},{"$f":"IF(OrigTable!G1539=\"\",\"\",ScriptText!$B$1&CHAR(10)&ScriptText!$D$1)","v":""},{"$f":"IF(OrigTable!G1539=\"\",\"\",TEXT(OrigTable!G1539,\"00\"))","v":""},{"$f":"IF(OrigTable!G1539=\"\",\"\",ScriptText!$E$1&CHAR(10)&ScriptText!$C$1)","v":""},0]
["\n\n\n",{"$f":"IF(OrigTable!A1540=\"\",\"\",ScriptText!$B$1&CHAR(10)&ScriptText!$D$1)","v":""},{"$f":"IF(OrigTable!A1540=\"\",\"\",TEXT(OrigTable!A1540,\"00\"))","v":""},{"$f":"IF(OrigTable!A1540=\"\",\"\",ScriptText!$E$1&CHAR(10)&ScriptText!$C$1)","v":""},{"$f":"IF(OrigTable!B1540=\"\",\"\",ScriptText!$B$1&CHAR(10)&ScriptText!$D$1)","v":""},{"$f":"IF(OrigTable!B1540=\"\",\"\",TEXT(OrigTable!B1540,\"00\"))","v":""},{"$f":"IF(OrigTable!B1540=\"\",\"\",ScriptText!$E$1&CHAR(10)&ScriptText!C1535)","v":""},{"$f":"IF(OrigTable!C1540=\"\",\"\",ScriptText!$B$1&CHAR(10)&ScriptText!$D$1)","v":""},{"$f":"IF(OrigTable!C1540=\"\",\"\",IF(LEN(OrigTable!C1540)>255,LEFT(OrigTable!C1540,250)&\". . .\",OrigTable!C1540))","v":""},{"$f":"IF(OrigTable!C1540=\"\",\"\",ScriptText!$E$1&CHAR(10)&ScriptText!$C$1)","v":""},{"$f":"IF(OrigTable!D1540=\"\",\"\",ScriptText!$B$1&CHAR(10)&ScriptText!$D$1)","v":""},{"$f":"IF(OrigTable!D1540=\"\",\"\",TEXT(OrigTable!D1540,\"00\"))","v":""},{"$f":"IF(OrigTable!D1540=\"\",\"\",ScriptText!$E$1&CHAR(10)&ScriptText!$C$1)","v":""},{"$f":"IF(OrigTable!E1540=\"\",\"\",ScriptText!$B$1&CHAR(10)&ScriptText!$D$1)","v":""},{"$f":"IF(OrigTable!E1540=\"\",\"\",TEXT(OrigTable!E1540,\"00\"))","v":""},{"$f":"IF(OrigTable!E1540=\"\",\"\",ScriptText!$E$1&CHAR(10)&ScriptText!$C$1)","v":""},{"$f":"IF(OrigTable!F1540=\"\",\"\",ScriptText!$B$1&CHAR(10)&ScriptText!$D$1)","v":""},{"$f":"IF(OrigTable!F1540=\"\",\"\",TEXT(OrigTable!F1540,\"00\"))","v":""},{"$f":"IF(OrigTable!F1540=\"\",\"\",ScriptText!$E$1&CHAR(10)&ScriptText!$C$1)","v":""},{"$f":"IF(OrigTable!G1540=\"\",\"\",ScriptText!$B$1&CHAR(10)&ScriptText!$D$1)","v":""},{"$f":"IF(OrigTable!G1540=\"\",\"\",TEXT(OrigTable!G1540,\"00\"))","v":""},{"$f":"IF(OrigTable!G1540=\"\",\"\",ScriptText!$E$1&CHAR(10)&ScriptText!$C$1)","v":""},0]
["\n\n\n",{"$f":"IF(OrigTable!A1541=\"\",\"\",ScriptText!$B$1&CHAR(10)&ScriptText!$D$1)","v":""},{"$f":"IF(OrigTable!A1541=\"\",\"\",TEXT(OrigTable!A1541,\"00\"))","v":""},{"$f":"IF(OrigTable!A1541=\"\",\"\",ScriptText!$E$1&CHAR(10)&ScriptText!$C$1)","v":""},{"$f":"IF(OrigTable!B1541=\"\",\"\",ScriptText!$B$1&CHAR(10)&ScriptText!$D$1)","v":""},{"$f":"IF(OrigTable!B1541=\"\",\"\",TEXT(OrigTable!B1541,\"00\"))","v":""},{"$f":"IF(OrigTable!B1541=\"\",\"\",ScriptText!$E$1&CHAR(10)&ScriptText!C1536)","v":""},{"$f":"IF(OrigTable!C1541=\"\",\"\",ScriptText!$B$1&CHAR(10)&ScriptText!$D$1)","v":""},{"$f":"IF(OrigTable!C1541=\"\",\"\",IF(LEN(OrigTable!C1541)>255,LEFT(OrigTable!C1541,250)&\". . .\",OrigTable!C1541))","v":""},{"$f":"IF(OrigTable!C1541=\"\",\"\",ScriptText!$E$1&CHAR(10)&ScriptText!$C$1)","v":""},{"$f":"IF(OrigTable!D1541=\"\",\"\",ScriptText!$B$1&CHAR(10)&ScriptText!$D$1)","v":""},{"$f":"IF(OrigTable!D1541=\"\",\"\",TEXT(OrigTable!D1541,\"00\"))","v":""},{"$f":"IF(OrigTable!D1541=\"\",\"\",ScriptText!$E$1&CHAR(10)&ScriptText!$C$1)","v":""},{"$f":"IF(OrigTable!E1541=\"\",\"\",ScriptText!$B$1&CHAR(10)&ScriptText!$D$1)","v":""},{"$f":"IF(OrigTable!E1541=\"\",\"\",TEXT(OrigTable!E1541,\"00\"))","v":""},{"$f":"IF(OrigTable!E1541=\"\",\"\",ScriptText!$E$1&CHAR(10)&ScriptText!$C$1)","v":""},{"$f":"IF(OrigTable!F1541=\"\",\"\",ScriptText!$B$1&CHAR(10)&ScriptText!$D$1)","v":""},{"$f":"IF(OrigTable!F1541=\"\",\"\",TEXT(OrigTable!F1541,\"00\"))","v":""},{"$f":"IF(OrigTable!F1541=\"\",\"\",ScriptText!$E$1&CHAR(10)&ScriptText!$C$1)","v":""},{"$f":"IF(OrigTable!G1541=\"\",\"\",ScriptText!$B$1&CHAR(10)&ScriptText!$D$1)","v":""},{"$f":"IF(OrigTable!G1541=\"\",\"\",TEXT(OrigTable!G1541,\"00\"))","v":""},{"$f":"IF(OrigTable!G1541=\"\",\"\",ScriptText!$E$1&CHAR(10)&ScriptText!$C$1)","v":""},0]
["\n\n\n",{"$f":"IF(OrigTable!A1542=\"\",\"\",ScriptText!$B$1&CHAR(10)&ScriptText!$D$1)","v":""},{"$f":"IF(OrigTable!A1542=\"\",\"\",TEXT(OrigTable!A1542,\"00\"))","v":""},{"$f":"IF(OrigTable!A1542=\"\",\"\",ScriptText!$E$1&CHAR(10)&ScriptText!$C$1)","v":""},{"$f":"IF(OrigTable!B1542=\"\",\"\",ScriptText!$B$1&CHAR(10)&ScriptText!$D$1)","v":""},{"$f":"IF(OrigTable!B1542=\"\",\"\",TEXT(OrigTable!B1542,\"00\"))","v":""},{"$f":"IF(OrigTable!B1542=\"\",\"\",ScriptText!$E$1&CHAR(10)&ScriptText!C1537)","v":""},{"$f":"IF(OrigTable!C1542=\"\",\"\",ScriptText!$B$1&CHAR(10)&ScriptText!$D$1)","v":""},{"$f":"IF(OrigTable!C1542=\"\",\"\",IF(LEN(OrigTable!C1542)>255,LEFT(OrigTable!C1542,250)&\". . .\",OrigTable!C1542))","v":""},{"$f":"IF(OrigTable!C1542=\"\",\"\",ScriptText!$E$1&CHAR(10)&ScriptText!$C$1)","v":""},{"$f":"IF(OrigTable!D1542=\"\",\"\",ScriptText!$B$1&CHAR(10)&ScriptText!$D$1)","v":""},{"$f":"IF(OrigTable!D1542=\"\",\"\",TEXT(OrigTable!D1542,\"00\"))","v":""},{"$f":"IF(OrigTable!D1542=\"\",\"\",ScriptText!$E$1&CHAR(10)&ScriptText!$C$1)","v":""},{"$f":"IF(OrigTable!E1542=\"\",\"\",ScriptText!$B$1&CHAR(10)&ScriptText!$D$1)","v":""},{"$f":"IF(OrigTable!E1542=\"\",\"\",TEXT(OrigTable!E1542,\"00\"))","v":""},{"$f":"IF(OrigTable!E1542=\"\",\"\",ScriptText!$E$1&CHAR(10)&ScriptText!$C$1)","v":""},{"$f":"IF(OrigTable!F1542=\"\",\"\",ScriptText!$B$1&CHAR(10)&ScriptText!$D$1)","v":""},{"$f":"IF(OrigTable!F1542=\"\",\"\",TEXT(OrigTable!F1542,\"00\"))","v":""},{"$f":"IF(OrigTable!F1542=\"\",\"\",ScriptText!$E$1&CHAR(10)&ScriptText!$C$1)","v":""},{"$f":"IF(OrigTable!G1542=\"\",\"\",ScriptText!$B$1&CHAR(10)&ScriptText!$D$1)","v":""},{"$f":"IF(OrigTable!G1542=\"\",\"\",TEXT(OrigTable!G1542,\"00\"))","v":""},{"$f":"IF(OrigTable!G1542=\"\",\"\",ScriptText!$E$1&CHAR(10)&ScriptText!$C$1)","v":""},{"$f":"IF(LEN(A1542)>3,ROW(),0)","v":0}]
["\n\n\n",{"$f":"IF(OrigTable!A1543=\"\",\"\",ScriptText!$B$1&CHAR(10)&ScriptText!$D$1)","v":""},{"$f":"IF(OrigTable!A1543=\"\",\"\",TEXT(OrigTable!A1543,\"00\"))","v":""},{"$f":"IF(OrigTable!A1543=\"\",\"\",ScriptText!$E$1&CHAR(10)&ScriptText!$C$1)","v":""},{"$f":"IF(OrigTable!B1543=\"\",\"\",ScriptText!$B$1&CHAR(10)&ScriptText!$D$1)","v":""},{"$f":"IF(OrigTable!B1543=\"\",\"\",TEXT(OrigTable!B1543,\"00\"))","v":""},{"$f":"IF(OrigTable!B1543=\"\",\"\",ScriptText!$E$1&CHAR(10)&ScriptText!C1538)","v":""},{"$f":"IF(OrigTable!C1543=\"\",\"\",ScriptText!$B$1&CHAR(10)&ScriptText!$D$1)","v":""},{"$f":"IF(OrigTable!C1543=\"\",\"\",IF(LEN(OrigTable!C1543)>255,LEFT(OrigTable!C1543,250)&\". . .\",OrigTable!C1543))","v":""},{"$f":"IF(OrigTable!C1543=\"\",\"\",ScriptText!$E$1&CHAR(10)&ScriptText!$C$1)","v":""},{"$f":"IF(OrigTable!D1543=\"\",\"\",ScriptText!$B$1&CHAR(10)&ScriptText!$D$1)","v":""},{"$f":"IF(OrigTable!D1543=\"\",\"\",TEXT(OrigTable!D1543,\"00\"))","v":""},{"$f":"IF(OrigTable!D1543=\"\",\"\",ScriptText!$E$1&CHAR(10)&ScriptText!$C$1)","v":""},{"$f":"IF(OrigTable!E1543=\"\",\"\",ScriptText!$B$1&CHAR(10)&ScriptText!$D$1)","v":""},{"$f":"IF(OrigTable!E1543=\"\",\"\",TEXT(OrigTable!E1543,\"00\"))","v":""},{"$f":"IF(OrigTable!E1543=\"\",\"\",ScriptText!$E$1&CHAR(10)&ScriptText!$C$1)","v":""},{"$f":"IF(OrigTable!F1543=\"\",\"\",ScriptText!$B$1&CHAR(10)&ScriptText!$D$1)","v":""},{"$f":"IF(OrigTable!F1543=\"\",\"\",TEXT(OrigTable!F1543,\"00\"))","v":""},{"$f":"IF(OrigTable!F1543=\"\",\"\",ScriptText!$E$1&CHAR(10)&ScriptText!$C$1)","v":""},{"$f":"IF(OrigTable!G1543=\"\",\"\",ScriptText!$B$1&CHAR(10)&ScriptText!$D$1)","v":""},{"$f":"IF(OrigTable!G1543=\"\",\"\",TEXT(OrigTable!G1543,\"00\"))","v":""},{"$f":"IF(OrigTable!G1543=\"\",\"\",ScriptText!$E$1&CHAR(10)&ScriptText!$C$1)","v":""},0]
["\n\n\n",{"$f":"IF(OrigTable!A1544=\"\",\"\",ScriptText!$B$1&CHAR(10)&ScriptText!$D$1)","v":""},{"$f":"IF(OrigTable!A1544=\"\",\"\",TEXT(OrigTable!A1544,\"00\"))","v":""},{"$f":"IF(OrigTable!A1544=\"\",\"\",ScriptText!$E$1&CHAR(10)&ScriptText!$C$1)","v":""},{"$f":"IF(OrigTable!B1544=\"\",\"\",ScriptText!$B$1&CHAR(10)&ScriptText!$D$1)","v":""},{"$f":"IF(OrigTable!B1544=\"\",\"\",TEXT(OrigTable!B1544,\"00\"))","v":""},{"$f":"IF(OrigTable!B1544=\"\",\"\",ScriptText!$E$1&CHAR(10)&ScriptText!C1539)","v":""},{"$f":"IF(OrigTable!C1544=\"\",\"\",ScriptText!$B$1&CHAR(10)&ScriptText!$D$1)","v":""},{"$f":"IF(OrigTable!C1544=\"\",\"\",IF(LEN(OrigTable!C1544)>255,LEFT(OrigTable!C1544,250)&\". . .\",OrigTable!C1544))","v":""},{"$f":"IF(OrigTable!C1544=\"\",\"\",ScriptText!$E$1&CHAR(10)&ScriptText!$C$1)","v":""},{"$f":"IF(OrigTable!D1544=\"\",\"\",ScriptText!$B$1&CHAR(10)&ScriptText!$D$1)","v":""},{"$f":"IF(OrigTable!D1544=\"\",\"\",TEXT(OrigTable!D1544,\"00\"))","v":""},{"$f":"IF(OrigTable!D1544=\"\",\"\",ScriptText!$E$1&CHAR(10)&ScriptText!$C$1)","v":""},{"$f":"IF(OrigTable!E1544=\"\",\"\",ScriptText!$B$1&CHAR(10)&ScriptText!$D$1)","v":""},{"$f":"IF(OrigTable!E1544=\"\",\"\",TEXT(OrigTable!E1544,\"00\"))","v":""},{"$f":"IF(OrigTable!E1544=\"\",\"\",ScriptText!$E$1&CHAR(10)&ScriptText!$C$1)","v":""},{"$f":"IF(OrigTable!F1544=\"\",\"\",ScriptText!$B$1&CHAR(10)&ScriptText!$D$1)","v":""},{"$f":"IF(OrigTable!F1544=\"\",\"\",TEXT(OrigTable!F1544,\"00\"))","v":""},{"$f":"IF(OrigTable!F1544=\"\",\"\",ScriptText!$E$1&CHAR(10)&ScriptText!$C$1)","v":""},{"$f":"IF(OrigTable!G1544=\"\",\"\",ScriptText!$B$1&CHAR(10)&ScriptText!$D$1)","v":""},{"$f":"IF(OrigTable!G1544=\"\",\"\",TEXT(OrigTable!G1544,\"00\"))","v":""},{"$f":"IF(OrigTable!G1544=\"\",\"\",ScriptText!$E$1&CHAR(10)&ScriptText!$C$1)","v":""},0]
[{"$f":"_xlfn.TEXTJOIN(\"\",TRUE,B1545:D1545)&CHAR(10)&_xlfn.TEXTJOIN(\"\",TRUE,E1545:G1545)&CHAR(10)&_xlfn.TEXTJOIN(\"\",TRUE,H1545:J1545)&CHAR(10)&_xlfn.TEXTJOIN(\"\",TRUE,K1545:M1545)&_xlfn.TEXTJOIN(\"\",TRUE,N1545:P1545)&_xlfn.TEXTJOIN(\"\",TRUE,Q1545:S1545)&_xlfn.TEXTJOIN(\"\",TRUE,T1545:V1545)","v":"\n\n\n"},{"$f":"IF(OrigTable!A1545=\"\",\"\",ScriptText!$B$1&CHAR(10)&ScriptText!$D$1)","v":""},{"$f":"IF(OrigTable!A1545=\"\",\"\",TEXT(OrigTable!A1545,\"00\"))","v":""},{"$f":"IF(OrigTable!A1545=\"\",\"\",ScriptText!$E$1&CHAR(10)&ScriptText!$C$1)","v":""},{"$f":"IF(OrigTable!B1545=\"\",\"\",ScriptText!$B$1&CHAR(10)&ScriptText!$D$1)","v":""},{"$f":"IF(OrigTable!B1545=\"\",\"\",TEXT(OrigTable!B1545,\"00\"))","v":""},{"$f":"IF(OrigTable!B1545=\"\",\"\",ScriptText!$E$1&CHAR(10)&ScriptText!C1540)","v":""},{"$f":"IF(OrigTable!C1545=\"\",\"\",ScriptText!$B$1&CHAR(10)&ScriptText!$D$1)","v":""},{"$f":"IF(OrigTable!C1545=\"\",\"\",IF(LEN(OrigTable!C1545)>255,LEFT(OrigTable!C1545,250)&\". . .\",OrigTable!C1545))","v":""},{"$f":"IF(OrigTable!C1545=\"\",\"\",ScriptText!$E$1&CHAR(10)&ScriptText!$C$1)","v":""},{"$f":"IF(OrigTable!D1545=\"\",\"\",ScriptText!$B$1&CHAR(10)&ScriptText!$D$1)","v":""},{"$f":"IF(OrigTable!D1545=\"\",\"\",TEXT(OrigTable!D1545,\"00\"))","v":""},{"$f":"IF(OrigTable!D1545=\"\",\"\",ScriptText!$E$1&CHAR(10)&ScriptText!$C$1)","v":""},{"$f":"IF(OrigTable!E1545=\"\",\"\",ScriptText!$B$1&CHAR(10)&ScriptText!$D$1)","v":""},{"$f":"IF(OrigTable!E1545=\"\",\"\",TEXT(OrigTable!E1545,\"00\"))","v":""},{"$f":"IF(OrigTable!E1545=\"\",\"\",ScriptText!$E$1&CHAR(10)&ScriptText!$C$1)","v":""},{"$f":"IF(OrigTable!F1545=\"\",\"\",ScriptText!$B$1&CHAR(10)&ScriptText!$D$1)","v":""},{"$f":"IF(OrigTable!F1545=\"\",\"\",TEXT(OrigTable!F1545,\"00\"))","v":""},{"$f":"IF(OrigTable!F1545=\"\",\"\",ScriptText!$E$1&CHAR(10)&ScriptText!$C$1)","v":""},{"$f":"IF(OrigTable!G1545=\"\",\"\",ScriptText!$B$1&CHAR(10)&ScriptText!$D$1)","v":""},{"$f":"IF(OrigTable!G1545=\"\",\"\",TEXT(OrigTable!G1545,\"00\"))","v":""},{"$f":"IF(OrigTable!G1545=\"\",\"\",ScriptText!$E$1&CHAR(10)&ScriptText!$C$1)","v":""},0]
["\n\n\n",{"$f":"IF(OrigTable!A1546=\"\",\"\",ScriptText!$B$1&CHAR(10)&ScriptText!$D$1)","v":""},{"$f":"IF(OrigTable!A1546=\"\",\"\",TEXT(OrigTable!A1546,\"00\"))","v":""},{"$f":"IF(OrigTable!A1546=\"\",\"\",ScriptText!$E$1&CHAR(10)&ScriptText!$C$1)","v":""},{"$f":"IF(OrigTable!B1546=\"\",\"\",ScriptText!$B$1&CHAR(10)&ScriptText!$D$1)","v":""},{"$f":"IF(OrigTable!B1546=\"\",\"\",TEXT(OrigTable!B1546,\"00\"))","v":""},{"$f":"IF(OrigTable!B1546=\"\",\"\",ScriptText!$E$1&CHAR(10)&ScriptText!C1541)","v":""},{"$f":"IF(OrigTable!C1546=\"\",\"\",ScriptText!$B$1&CHAR(10)&ScriptText!$D$1)","v":""},{"$f":"IF(OrigTable!C1546=\"\",\"\",IF(LEN(OrigTable!C1546)>255,LEFT(OrigTable!C1546,250)&\". . .\",OrigTable!C1546))","v":""},{"$f":"IF(OrigTable!C1546=\"\",\"\",ScriptText!$E$1&CHAR(10)&ScriptText!$C$1)","v":""},{"$f":"IF(OrigTable!D1546=\"\",\"\",ScriptText!$B$1&CHAR(10)&ScriptText!$D$1)","v":""},{"$f":"IF(OrigTable!D1546=\"\",\"\",TEXT(OrigTable!D1546,\"00\"))","v":""},{"$f":"IF(OrigTable!D1546=\"\",\"\",ScriptText!$E$1&CHAR(10)&ScriptText!$C$1)","v":""},{"$f":"IF(OrigTable!E1546=\"\",\"\",ScriptText!$B$1&CHAR(10)&ScriptText!$D$1)","v":""},{"$f":"IF(OrigTable!E1546=\"\",\"\",TEXT(OrigTable!E1546,\"00\"))","v":""},{"$f":"IF(OrigTable!E1546=\"\",\"\",ScriptText!$E$1&CHAR(10)&ScriptText!$C$1)","v":""},{"$f":"IF(OrigTable!F1546=\"\",\"\",ScriptText!$B$1&CHAR(10)&ScriptText!$D$1)","v":""},{"$f":"IF(OrigTable!F1546=\"\",\"\",TEXT(OrigTable!F1546,\"00\"))","v":""},{"$f":"IF(OrigTable!F1546=\"\",\"\",ScriptText!$E$1&CHAR(10)&ScriptText!$C$1)","v":""},{"$f":"IF(OrigTable!G1546=\"\",\"\",ScriptText!$B$1&CHAR(10)&ScriptText!$D$1)","v":""},{"$f":"IF(OrigTable!G1546=\"\",\"\",TEXT(OrigTable!G1546,\"00\"))","v":""},{"$f":"IF(OrigTable!G1546=\"\",\"\",ScriptText!$E$1&CHAR(10)&ScriptText!$C$1)","v":""},0]
["\n\n\n",{"$f":"IF(OrigTable!A1547=\"\",\"\",ScriptText!$B$1&CHAR(10)&ScriptText!$D$1)","v":""},{"$f":"IF(OrigTable!A1547=\"\",\"\",TEXT(OrigTable!A1547,\"00\"))","v":""},{"$f":"IF(OrigTable!A1547=\"\",\"\",ScriptText!$E$1&CHAR(10)&ScriptText!$C$1)","v":""},{"$f":"IF(OrigTable!B1547=\"\",\"\",ScriptText!$B$1&CHAR(10)&ScriptText!$D$1)","v":""},{"$f":"IF(OrigTable!B1547=\"\",\"\",TEXT(OrigTable!B1547,\"00\"))","v":""},{"$f":"IF(OrigTable!B1547=\"\",\"\",ScriptText!$E$1&CHAR(10)&ScriptText!C1542)","v":""},{"$f":"IF(OrigTable!C1547=\"\",\"\",ScriptText!$B$1&CHAR(10)&ScriptText!$D$1)","v":""},{"$f":"IF(OrigTable!C1547=\"\",\"\",IF(LEN(OrigTable!C1547)>255,LEFT(OrigTable!C1547,250)&\". . .\",OrigTable!C1547))","v":""},{"$f":"IF(OrigTable!C1547=\"\",\"\",ScriptText!$E$1&CHAR(10)&ScriptText!$C$1)","v":""},{"$f":"IF(OrigTable!D1547=\"\",\"\",ScriptText!$B$1&CHAR(10)&ScriptText!$D$1)","v":""},{"$f":"IF(OrigTable!D1547=\"\",\"\",TEXT(OrigTable!D1547,\"00\"))","v":""},{"$f":"IF(OrigTable!D1547=\"\",\"\",ScriptText!$E$1&CHAR(10)&ScriptText!$C$1)","v":""},{"$f":"IF(OrigTable!E1547=\"\",\"\",ScriptText!$B$1&CHAR(10)&ScriptText!$D$1)","v":""},{"$f":"IF(OrigTable!E1547=\"\",\"\",TEXT(OrigTable!E1547,\"00\"))","v":""},{"$f":"IF(OrigTable!E1547=\"\",\"\",ScriptText!$E$1&CHAR(10)&ScriptText!$C$1)","v":""},{"$f":"IF(OrigTable!F1547=\"\",\"\",ScriptText!$B$1&CHAR(10)&ScriptText!$D$1)","v":""},{"$f":"IF(OrigTable!F1547=\"\",\"\",TEXT(OrigTable!F1547,\"00\"))","v":""},{"$f":"IF(OrigTable!F1547=\"\",\"\",ScriptText!$E$1&CHAR(10)&ScriptText!$C$1)","v":""},{"$f":"IF(OrigTable!G1547=\"\",\"\",ScriptText!$B$1&CHAR(10)&ScriptText!$D$1)","v":""},{"$f":"IF(OrigTable!G1547=\"\",\"\",TEXT(OrigTable!G1547,\"00\"))","v":""},{"$f":"IF(OrigTable!G1547=\"\",\"\",ScriptText!$E$1&CHAR(10)&ScriptText!$C$1)","v":""},0]
["\n\n\n",{"$f":"IF(OrigTable!A1548=\"\",\"\",ScriptText!$B$1&CHAR(10)&ScriptText!$D$1)","v":""},{"$f":"IF(OrigTable!A1548=\"\",\"\",TEXT(OrigTable!A1548,\"00\"))","v":""},{"$f":"IF(OrigTable!A1548=\"\",\"\",ScriptText!$E$1&CHAR(10)&ScriptText!$C$1)","v":""},{"$f":"IF(OrigTable!B1548=\"\",\"\",ScriptText!$B$1&CHAR(10)&ScriptText!$D$1)","v":""},{"$f":"IF(OrigTable!B1548=\"\",\"\",TEXT(OrigTable!B1548,\"00\"))","v":""},{"$f":"IF(OrigTable!B1548=\"\",\"\",ScriptText!$E$1&CHAR(10)&ScriptText!C1543)","v":""},{"$f":"IF(OrigTable!C1548=\"\",\"\",ScriptText!$B$1&CHAR(10)&ScriptText!$D$1)","v":""},{"$f":"IF(OrigTable!C1548=\"\",\"\",IF(LEN(OrigTable!C1548)>255,LEFT(OrigTable!C1548,250)&\". . .\",OrigTable!C1548))","v":""},{"$f":"IF(OrigTable!C1548=\"\",\"\",ScriptText!$E$1&CHAR(10)&ScriptText!$C$1)","v":""},{"$f":"IF(OrigTable!D1548=\"\",\"\",ScriptText!$B$1&CHAR(10)&ScriptText!$D$1)","v":""},{"$f":"IF(OrigTable!D1548=\"\",\"\",TEXT(OrigTable!D1548,\"00\"))","v":""},{"$f":"IF(OrigTable!D1548=\"\",\"\",ScriptText!$E$1&CHAR(10)&ScriptText!$C$1)","v":""},{"$f":"IF(OrigTable!E1548=\"\",\"\",ScriptText!$B$1&CHAR(10)&ScriptText!$D$1)","v":""},{"$f":"IF(OrigTable!E1548=\"\",\"\",TEXT(OrigTable!E1548,\"00\"))","v":""},{"$f":"IF(OrigTable!E1548=\"\",\"\",ScriptText!$E$1&CHAR(10)&ScriptText!$C$1)","v":""},{"$f":"IF(OrigTable!F1548=\"\",\"\",ScriptText!$B$1&CHAR(10)&ScriptText!$D$1)","v":""},{"$f":"IF(OrigTable!F1548=\"\",\"\",TEXT(OrigTable!F1548,\"00\"))","v":""},{"$f":"IF(OrigTable!F1548=\"\",\"\",ScriptText!$E$1&CHAR(10)&ScriptText!$C$1)","v":""},{"$f":"IF(OrigTable!G1548=\"\",\"\",ScriptText!$B$1&CHAR(10)&ScriptText!$D$1)","v":""},{"$f":"IF(OrigTable!G1548=\"\",\"\",TEXT(OrigTable!G1548,\"00\"))","v":""},{"$f":"IF(OrigTable!G1548=\"\",\"\",ScriptText!$E$1&CHAR(10)&ScriptText!$C$1)","v":""},0]
["\n\n\n",{"$f":"IF(OrigTable!A1549=\"\",\"\",ScriptText!$B$1&CHAR(10)&ScriptText!$D$1)","v":""},{"$f":"IF(OrigTable!A1549=\"\",\"\",TEXT(OrigTable!A1549,\"00\"))","v":""},{"$f":"IF(OrigTable!A1549=\"\",\"\",ScriptText!$E$1&CHAR(10)&ScriptText!$C$1)","v":""},{"$f":"IF(OrigTable!B1549=\"\",\"\",ScriptText!$B$1&CHAR(10)&ScriptText!$D$1)","v":""},{"$f":"IF(OrigTable!B1549=\"\",\"\",TEXT(OrigTable!B1549,\"00\"))","v":""},{"$f":"IF(OrigTable!B1549=\"\",\"\",ScriptText!$E$1&CHAR(10)&ScriptText!C1544)","v":""},{"$f":"IF(OrigTable!C1549=\"\",\"\",ScriptText!$B$1&CHAR(10)&ScriptText!$D$1)","v":""},{"$f":"IF(OrigTable!C1549=\"\",\"\",IF(LEN(OrigTable!C1549)>255,LEFT(OrigTable!C1549,250)&\". . .\",OrigTable!C1549))","v":""},{"$f":"IF(OrigTable!C1549=\"\",\"\",ScriptText!$E$1&CHAR(10)&ScriptText!$C$1)","v":""},{"$f":"IF(OrigTable!D1549=\"\",\"\",ScriptText!$B$1&CHAR(10)&ScriptText!$D$1)","v":""},{"$f":"IF(OrigTable!D1549=\"\",\"\",TEXT(OrigTable!D1549,\"00\"))","v":""},{"$f":"IF(OrigTable!D1549=\"\",\"\",ScriptText!$E$1&CHAR(10)&ScriptText!$C$1)","v":""},{"$f":"IF(OrigTable!E1549=\"\",\"\",ScriptText!$B$1&CHAR(10)&ScriptText!$D$1)","v":""},{"$f":"IF(OrigTable!E1549=\"\",\"\",TEXT(OrigTable!E1549,\"00\"))","v":""},{"$f":"IF(OrigTable!E1549=\"\",\"\",ScriptText!$E$1&CHAR(10)&ScriptText!$C$1)","v":""},{"$f":"IF(OrigTable!F1549=\"\",\"\",ScriptText!$B$1&CHAR(10)&ScriptText!$D$1)","v":""},{"$f":"IF(OrigTable!F1549=\"\",\"\",TEXT(OrigTable!F1549,\"00\"))","v":""},{"$f":"IF(OrigTable!F1549=\"\",\"\",ScriptText!$E$1&CHAR(10)&ScriptText!$C$1)","v":""},{"$f":"IF(OrigTable!G1549=\"\",\"\",ScriptText!$B$1&CHAR(10)&ScriptText!$D$1)","v":""},{"$f":"IF(OrigTable!G1549=\"\",\"\",TEXT(OrigTable!G1549,\"00\"))","v":""},{"$f":"IF(OrigTable!G1549=\"\",\"\",ScriptText!$E$1&CHAR(10)&ScriptText!$C$1)","v":""},0]
["\n\n\n",{"$f":"IF(OrigTable!A1550=\"\",\"\",ScriptText!$B$1&CHAR(10)&ScriptText!$D$1)","v":""},{"$f":"IF(OrigTable!A1550=\"\",\"\",TEXT(OrigTable!A1550,\"00\"))","v":""},{"$f":"IF(OrigTable!A1550=\"\",\"\",ScriptText!$E$1&CHAR(10)&ScriptText!$C$1)","v":""},{"$f":"IF(OrigTable!B1550=\"\",\"\",ScriptText!$B$1&CHAR(10)&ScriptText!$D$1)","v":""},{"$f":"IF(OrigTable!B1550=\"\",\"\",TEXT(OrigTable!B1550,\"00\"))","v":""},{"$f":"IF(OrigTable!B1550=\"\",\"\",ScriptText!$E$1&CHAR(10)&ScriptText!C1545)","v":""},{"$f":"IF(OrigTable!C1550=\"\",\"\",ScriptText!$B$1&CHAR(10)&ScriptText!$D$1)","v":""},{"$f":"IF(OrigTable!C1550=\"\",\"\",IF(LEN(OrigTable!C1550)>255,LEFT(OrigTable!C1550,250)&\". . .\",OrigTable!C1550))","v":""},{"$f":"IF(OrigTable!C1550=\"\",\"\",ScriptText!$E$1&CHAR(10)&ScriptText!$C$1)","v":""},{"$f":"IF(OrigTable!D1550=\"\",\"\",ScriptText!$B$1&CHAR(10)&ScriptText!$D$1)","v":""},{"$f":"IF(OrigTable!D1550=\"\",\"\",TEXT(OrigTable!D1550,\"00\"))","v":""},{"$f":"IF(OrigTable!D1550=\"\",\"\",ScriptText!$E$1&CHAR(10)&ScriptText!$C$1)","v":""},{"$f":"IF(OrigTable!E1550=\"\",\"\",ScriptText!$B$1&CHAR(10)&ScriptText!$D$1)","v":""},{"$f":"IF(OrigTable!E1550=\"\",\"\",TEXT(OrigTable!E1550,\"00\"))","v":""},{"$f":"IF(OrigTable!E1550=\"\",\"\",ScriptText!$E$1&CHAR(10)&ScriptText!$C$1)","v":""},{"$f":"IF(OrigTable!F1550=\"\",\"\",ScriptText!$B$1&CHAR(10)&ScriptText!$D$1)","v":""},{"$f":"IF(OrigTable!F1550=\"\",\"\",TEXT(OrigTable!F1550,\"00\"))","v":""},{"$f":"IF(OrigTable!F1550=\"\",\"\",ScriptText!$E$1&CHAR(10)&ScriptText!$C$1)","v":""},{"$f":"IF(OrigTable!G1550=\"\",\"\",ScriptText!$B$1&CHAR(10)&ScriptText!$D$1)","v":""},{"$f":"IF(OrigTable!G1550=\"\",\"\",TEXT(OrigTable!G1550,\"00\"))","v":""},{"$f":"IF(OrigTable!G1550=\"\",\"\",ScriptText!$E$1&CHAR(10)&ScriptText!$C$1)","v":""},0]
["\n\n\n",{"$f":"IF(OrigTable!A1551=\"\",\"\",ScriptText!$B$1&CHAR(10)&ScriptText!$D$1)","v":""},{"$f":"IF(OrigTable!A1551=\"\",\"\",TEXT(OrigTable!A1551,\"00\"))","v":""},{"$f":"IF(OrigTable!A1551=\"\",\"\",ScriptText!$E$1&CHAR(10)&ScriptText!$C$1)","v":""},{"$f":"IF(OrigTable!B1551=\"\",\"\",ScriptText!$B$1&CHAR(10)&ScriptText!$D$1)","v":""},{"$f":"IF(OrigTable!B1551=\"\",\"\",TEXT(OrigTable!B1551,\"00\"))","v":""},{"$f":"IF(OrigTable!B1551=\"\",\"\",ScriptText!$E$1&CHAR(10)&ScriptText!C1546)","v":""},{"$f":"IF(OrigTable!C1551=\"\",\"\",ScriptText!$B$1&CHAR(10)&ScriptText!$D$1)","v":""},{"$f":"IF(OrigTable!C1551=\"\",\"\",IF(LEN(OrigTable!C1551)>255,LEFT(OrigTable!C1551,250)&\". . .\",OrigTable!C1551))","v":""},{"$f":"IF(OrigTable!C1551=\"\",\"\",ScriptText!$E$1&CHAR(10)&ScriptText!$C$1)","v":""},{"$f":"IF(OrigTable!D1551=\"\",\"\",ScriptText!$B$1&CHAR(10)&ScriptText!$D$1)","v":""},{"$f":"IF(OrigTable!D1551=\"\",\"\",TEXT(OrigTable!D1551,\"00\"))","v":""},{"$f":"IF(OrigTable!D1551=\"\",\"\",ScriptText!$E$1&CHAR(10)&ScriptText!$C$1)","v":""},{"$f":"IF(OrigTable!E1551=\"\",\"\",ScriptText!$B$1&CHAR(10)&ScriptText!$D$1)","v":""},{"$f":"IF(OrigTable!E1551=\"\",\"\",TEXT(OrigTable!E1551,\"00\"))","v":""},{"$f":"IF(OrigTable!E1551=\"\",\"\",ScriptText!$E$1&CHAR(10)&ScriptText!$C$1)","v":""},{"$f":"IF(OrigTable!F1551=\"\",\"\",ScriptText!$B$1&CHAR(10)&ScriptText!$D$1)","v":""},{"$f":"IF(OrigTable!F1551=\"\",\"\",TEXT(OrigTable!F1551,\"00\"))","v":""},{"$f":"IF(OrigTable!F1551=\"\",\"\",ScriptText!$E$1&CHAR(10)&ScriptText!$C$1)","v":""},{"$f":"IF(OrigTable!G1551=\"\",\"\",ScriptText!$B$1&CHAR(10)&ScriptText!$D$1)","v":""},{"$f":"IF(OrigTable!G1551=\"\",\"\",TEXT(OrigTable!G1551,\"00\"))","v":""},{"$f":"IF(OrigTable!G1551=\"\",\"\",ScriptText!$E$1&CHAR(10)&ScriptText!$C$1)","v":""},0]
["\n\n\n",{"$f":"IF(OrigTable!A1552=\"\",\"\",ScriptText!$B$1&CHAR(10)&ScriptText!$D$1)","v":""},{"$f":"IF(OrigTable!A1552=\"\",\"\",TEXT(OrigTable!A1552,\"00\"))","v":""},{"$f":"IF(OrigTable!A1552=\"\",\"\",ScriptText!$E$1&CHAR(10)&ScriptText!$C$1)","v":""},{"$f":"IF(OrigTable!B1552=\"\",\"\",ScriptText!$B$1&CHAR(10)&ScriptText!$D$1)","v":""},{"$f":"IF(OrigTable!B1552=\"\",\"\",TEXT(OrigTable!B1552,\"00\"))","v":""},{"$f":"IF(OrigTable!B1552=\"\",\"\",ScriptText!$E$1&CHAR(10)&ScriptText!C1547)","v":""},{"$f":"IF(OrigTable!C1552=\"\",\"\",ScriptText!$B$1&CHAR(10)&ScriptText!$D$1)","v":""},{"$f":"IF(OrigTable!C1552=\"\",\"\",IF(LEN(OrigTable!C1552)>255,LEFT(OrigTable!C1552,250)&\". . .\",OrigTable!C1552))","v":""},{"$f":"IF(OrigTable!C1552=\"\",\"\",ScriptText!$E$1&CHAR(10)&ScriptText!$C$1)","v":""},{"$f":"IF(OrigTable!D1552=\"\",\"\",ScriptText!$B$1&CHAR(10)&ScriptText!$D$1)","v":""},{"$f":"IF(OrigTable!D1552=\"\",\"\",TEXT(OrigTable!D1552,\"00\"))","v":""},{"$f":"IF(OrigTable!D1552=\"\",\"\",ScriptText!$E$1&CHAR(10)&ScriptText!$C$1)","v":""},{"$f":"IF(OrigTable!E1552=\"\",\"\",ScriptText!$B$1&CHAR(10)&ScriptText!$D$1)","v":""},{"$f":"IF(OrigTable!E1552=\"\",\"\",TEXT(OrigTable!E1552,\"00\"))","v":""},{"$f":"IF(OrigTable!E1552=\"\",\"\",ScriptText!$E$1&CHAR(10)&ScriptText!$C$1)","v":""},{"$f":"IF(OrigTable!F1552=\"\",\"\",ScriptText!$B$1&CHAR(10)&ScriptText!$D$1)","v":""},{"$f":"IF(OrigTable!F1552=\"\",\"\",TEXT(OrigTable!F1552,\"00\"))","v":""},{"$f":"IF(OrigTable!F1552=\"\",\"\",ScriptText!$E$1&CHAR(10)&ScriptText!$C$1)","v":""},{"$f":"IF(OrigTable!G1552=\"\",\"\",ScriptText!$B$1&CHAR(10)&ScriptText!$D$1)","v":""},{"$f":"IF(OrigTable!G1552=\"\",\"\",TEXT(OrigTable!G1552,\"00\"))","v":""},{"$f":"IF(OrigTable!G1552=\"\",\"\",ScriptText!$E$1&CHAR(10)&ScriptText!$C$1)","v":""},0]
["\n\n\n",{"$f":"IF(OrigTable!A1553=\"\",\"\",ScriptText!$B$1&CHAR(10)&ScriptText!$D$1)","v":""},{"$f":"IF(OrigTable!A1553=\"\",\"\",TEXT(OrigTable!A1553,\"00\"))","v":""},{"$f":"IF(OrigTable!A1553=\"\",\"\",ScriptText!$E$1&CHAR(10)&ScriptText!$C$1)","v":""},{"$f":"IF(OrigTable!B1553=\"\",\"\",ScriptText!$B$1&CHAR(10)&ScriptText!$D$1)","v":""},{"$f":"IF(OrigTable!B1553=\"\",\"\",TEXT(OrigTable!B1553,\"00\"))","v":""},{"$f":"IF(OrigTable!B1553=\"\",\"\",ScriptText!$E$1&CHAR(10)&ScriptText!C1548)","v":""},{"$f":"IF(OrigTable!C1553=\"\",\"\",ScriptText!$B$1&CHAR(10)&ScriptText!$D$1)","v":""},{"$f":"IF(OrigTable!C1553=\"\",\"\",IF(LEN(OrigTable!C1553)>255,LEFT(OrigTable!C1553,250)&\". . .\",OrigTable!C1553))","v":""},{"$f":"IF(OrigTable!C1553=\"\",\"\",ScriptText!$E$1&CHAR(10)&ScriptText!$C$1)","v":""},{"$f":"IF(OrigTable!D1553=\"\",\"\",ScriptText!$B$1&CHAR(10)&ScriptText!$D$1)","v":""},{"$f":"IF(OrigTable!D1553=\"\",\"\",TEXT(OrigTable!D1553,\"00\"))","v":""},{"$f":"IF(OrigTable!D1553=\"\",\"\",ScriptText!$E$1&CHAR(10)&ScriptText!$C$1)","v":""},{"$f":"IF(OrigTable!E1553=\"\",\"\",ScriptText!$B$1&CHAR(10)&ScriptText!$D$1)","v":""},{"$f":"IF(OrigTable!E1553=\"\",\"\",TEXT(OrigTable!E1553,\"00\"))","v":""},{"$f":"IF(OrigTable!E1553=\"\",\"\",ScriptText!$E$1&CHAR(10)&ScriptText!$C$1)","v":""},{"$f":"IF(OrigTable!F1553=\"\",\"\",ScriptText!$B$1&CHAR(10)&ScriptText!$D$1)","v":""},{"$f":"IF(OrigTable!F1553=\"\",\"\",TEXT(OrigTable!F1553,\"00\"))","v":""},{"$f":"IF(OrigTable!F1553=\"\",\"\",ScriptText!$E$1&CHAR(10)&ScriptText!$C$1)","v":""},{"$f":"IF(OrigTable!G1553=\"\",\"\",ScriptText!$B$1&CHAR(10)&ScriptText!$D$1)","v":""},{"$f":"IF(OrigTable!G1553=\"\",\"\",TEXT(OrigTable!G1553,\"00\"))","v":""},{"$f":"IF(OrigTable!G1553=\"\",\"\",ScriptText!$E$1&CHAR(10)&ScriptText!$C$1)","v":""},0]
["\n\n\n",{"$f":"IF(OrigTable!A1554=\"\",\"\",ScriptText!$B$1&CHAR(10)&ScriptText!$D$1)","v":""},{"$f":"IF(OrigTable!A1554=\"\",\"\",TEXT(OrigTable!A1554,\"00\"))","v":""},{"$f":"IF(OrigTable!A1554=\"\",\"\",ScriptText!$E$1&CHAR(10)&ScriptText!$C$1)","v":""},{"$f":"IF(OrigTable!B1554=\"\",\"\",ScriptText!$B$1&CHAR(10)&ScriptText!$D$1)","v":""},{"$f":"IF(OrigTable!B1554=\"\",\"\",TEXT(OrigTable!B1554,\"00\"))","v":""},{"$f":"IF(OrigTable!B1554=\"\",\"\",ScriptText!$E$1&CHAR(10)&ScriptText!C1549)","v":""},{"$f":"IF(OrigTable!C1554=\"\",\"\",ScriptText!$B$1&CHAR(10)&ScriptText!$D$1)","v":""},{"$f":"IF(OrigTable!C1554=\"\",\"\",IF(LEN(OrigTable!C1554)>255,LEFT(OrigTable!C1554,250)&\". . .\",OrigTable!C1554))","v":""},{"$f":"IF(OrigTable!C1554=\"\",\"\",ScriptText!$E$1&CHAR(10)&ScriptText!$C$1)","v":""},{"$f":"IF(OrigTable!D1554=\"\",\"\",ScriptText!$B$1&CHAR(10)&ScriptText!$D$1)","v":""},{"$f":"IF(OrigTable!D1554=\"\",\"\",TEXT(OrigTable!D1554,\"00\"))","v":""},{"$f":"IF(OrigTable!D1554=\"\",\"\",ScriptText!$E$1&CHAR(10)&ScriptText!$C$1)","v":""},{"$f":"IF(OrigTable!E1554=\"\",\"\",ScriptText!$B$1&CHAR(10)&ScriptText!$D$1)","v":""},{"$f":"IF(OrigTable!E1554=\"\",\"\",TEXT(OrigTable!E1554,\"00\"))","v":""},{"$f":"IF(OrigTable!E1554=\"\",\"\",ScriptText!$E$1&CHAR(10)&ScriptText!$C$1)","v":""},{"$f":"IF(OrigTable!F1554=\"\",\"\",ScriptText!$B$1&CHAR(10)&ScriptText!$D$1)","v":""},{"$f":"IF(OrigTable!F1554=\"\",\"\",TEXT(OrigTable!F1554,\"00\"))","v":""},{"$f":"IF(OrigTable!F1554=\"\",\"\",ScriptText!$E$1&CHAR(10)&ScriptText!$C$1)","v":""},{"$f":"IF(OrigTable!G1554=\"\",\"\",ScriptText!$B$1&CHAR(10)&ScriptText!$D$1)","v":""},{"$f":"IF(OrigTable!G1554=\"\",\"\",TEXT(OrigTable!G1554,\"00\"))","v":""},{"$f":"IF(OrigTable!G1554=\"\",\"\",ScriptText!$E$1&CHAR(10)&ScriptText!$C$1)","v":""},0]
["\n\n\n",{"$f":"IF(OrigTable!A1555=\"\",\"\",ScriptText!$B$1&CHAR(10)&ScriptText!$D$1)","v":""},{"$f":"IF(OrigTable!A1555=\"\",\"\",TEXT(OrigTable!A1555,\"00\"))","v":""},{"$f":"IF(OrigTable!A1555=\"\",\"\",ScriptText!$E$1&CHAR(10)&ScriptText!$C$1)","v":""},{"$f":"IF(OrigTable!B1555=\"\",\"\",ScriptText!$B$1&CHAR(10)&ScriptText!$D$1)","v":""},{"$f":"IF(OrigTable!B1555=\"\",\"\",TEXT(OrigTable!B1555,\"00\"))","v":""},{"$f":"IF(OrigTable!B1555=\"\",\"\",ScriptText!$E$1&CHAR(10)&ScriptText!C1550)","v":""},{"$f":"IF(OrigTable!C1555=\"\",\"\",ScriptText!$B$1&CHAR(10)&ScriptText!$D$1)","v":""},{"$f":"IF(OrigTable!C1555=\"\",\"\",IF(LEN(OrigTable!C1555)>255,LEFT(OrigTable!C1555,250)&\". . .\",OrigTable!C1555))","v":""},{"$f":"IF(OrigTable!C1555=\"\",\"\",ScriptText!$E$1&CHAR(10)&ScriptText!$C$1)","v":""},{"$f":"IF(OrigTable!D1555=\"\",\"\",ScriptText!$B$1&CHAR(10)&ScriptText!$D$1)","v":""},{"$f":"IF(OrigTable!D1555=\"\",\"\",TEXT(OrigTable!D1555,\"00\"))","v":""},{"$f":"IF(OrigTable!D1555=\"\",\"\",ScriptText!$E$1&CHAR(10)&ScriptText!$C$1)","v":""},{"$f":"IF(OrigTable!E1555=\"\",\"\",ScriptText!$B$1&CHAR(10)&ScriptText!$D$1)","v":""},{"$f":"IF(OrigTable!E1555=\"\",\"\",TEXT(OrigTable!E1555,\"00\"))","v":""},{"$f":"IF(OrigTable!E1555=\"\",\"\",ScriptText!$E$1&CHAR(10)&ScriptText!$C$1)","v":""},{"$f":"IF(OrigTable!F1555=\"\",\"\",ScriptText!$B$1&CHAR(10)&ScriptText!$D$1)","v":""},{"$f":"IF(OrigTable!F1555=\"\",\"\",TEXT(OrigTable!F1555,\"00\"))","v":""},{"$f":"IF(OrigTable!F1555=\"\",\"\",ScriptText!$E$1&CHAR(10)&ScriptText!$C$1)","v":""},{"$f":"IF(OrigTable!G1555=\"\",\"\",ScriptText!$B$1&CHAR(10)&ScriptText!$D$1)","v":""},{"$f":"IF(OrigTable!G1555=\"\",\"\",TEXT(OrigTable!G1555,\"00\"))","v":""},{"$f":"IF(OrigTable!G1555=\"\",\"\",ScriptText!$E$1&CHAR(10)&ScriptText!$C$1)","v":""},0]
["\n\n\n",{"$f":"IF(OrigTable!A1556=\"\",\"\",ScriptText!$B$1&CHAR(10)&ScriptText!$D$1)","v":""},{"$f":"IF(OrigTable!A1556=\"\",\"\",TEXT(OrigTable!A1556,\"00\"))","v":""},{"$f":"IF(OrigTable!A1556=\"\",\"\",ScriptText!$E$1&CHAR(10)&ScriptText!$C$1)","v":""},{"$f":"IF(OrigTable!B1556=\"\",\"\",ScriptText!$B$1&CHAR(10)&ScriptText!$D$1)","v":""},{"$f":"IF(OrigTable!B1556=\"\",\"\",TEXT(OrigTable!B1556,\"00\"))","v":""},{"$f":"IF(OrigTable!B1556=\"\",\"\",ScriptText!$E$1&CHAR(10)&ScriptText!C1551)","v":""},{"$f":"IF(OrigTable!C1556=\"\",\"\",ScriptText!$B$1&CHAR(10)&ScriptText!$D$1)","v":""},{"$f":"IF(OrigTable!C1556=\"\",\"\",IF(LEN(OrigTable!C1556)>255,LEFT(OrigTable!C1556,250)&\". . .\",OrigTable!C1556))","v":""},{"$f":"IF(OrigTable!C1556=\"\",\"\",ScriptText!$E$1&CHAR(10)&ScriptText!$C$1)","v":""},{"$f":"IF(OrigTable!D1556=\"\",\"\",ScriptText!$B$1&CHAR(10)&ScriptText!$D$1)","v":""},{"$f":"IF(OrigTable!D1556=\"\",\"\",TEXT(OrigTable!D1556,\"00\"))","v":""},{"$f":"IF(OrigTable!D1556=\"\",\"\",ScriptText!$E$1&CHAR(10)&ScriptText!$C$1)","v":""},{"$f":"IF(OrigTable!E1556=\"\",\"\",ScriptText!$B$1&CHAR(10)&ScriptText!$D$1)","v":""},{"$f":"IF(OrigTable!E1556=\"\",\"\",TEXT(OrigTable!E1556,\"00\"))","v":""},{"$f":"IF(OrigTable!E1556=\"\",\"\",ScriptText!$E$1&CHAR(10)&ScriptText!$C$1)","v":""},{"$f":"IF(OrigTable!F1556=\"\",\"\",ScriptText!$B$1&CHAR(10)&ScriptText!$D$1)","v":""},{"$f":"IF(OrigTable!F1556=\"\",\"\",TEXT(OrigTable!F1556,\"00\"))","v":""},{"$f":"IF(OrigTable!F1556=\"\",\"\",ScriptText!$E$1&CHAR(10)&ScriptText!$C$1)","v":""},{"$f":"IF(OrigTable!G1556=\"\",\"\",ScriptText!$B$1&CHAR(10)&ScriptText!$D$1)","v":""},{"$f":"IF(OrigTable!G1556=\"\",\"\",TEXT(OrigTable!G1556,\"00\"))","v":""},{"$f":"IF(OrigTable!G1556=\"\",\"\",ScriptText!$E$1&CHAR(10)&ScriptText!$C$1)","v":""},0]
["\n\n\n",{"$f":"IF(OrigTable!A1557=\"\",\"\",ScriptText!$B$1&CHAR(10)&ScriptText!$D$1)","v":""},{"$f":"IF(OrigTable!A1557=\"\",\"\",TEXT(OrigTable!A1557,\"00\"))","v":""},{"$f":"IF(OrigTable!A1557=\"\",\"\",ScriptText!$E$1&CHAR(10)&ScriptText!$C$1)","v":""},{"$f":"IF(OrigTable!B1557=\"\",\"\",ScriptText!$B$1&CHAR(10)&ScriptText!$D$1)","v":""},{"$f":"IF(OrigTable!B1557=\"\",\"\",TEXT(OrigTable!B1557,\"00\"))","v":""},{"$f":"IF(OrigTable!B1557=\"\",\"\",ScriptText!$E$1&CHAR(10)&ScriptText!C1552)","v":""},{"$f":"IF(OrigTable!C1557=\"\",\"\",ScriptText!$B$1&CHAR(10)&ScriptText!$D$1)","v":""},{"$f":"IF(OrigTable!C1557=\"\",\"\",IF(LEN(OrigTable!C1557)>255,LEFT(OrigTable!C1557,250)&\". . .\",OrigTable!C1557))","v":""},{"$f":"IF(OrigTable!C1557=\"\",\"\",ScriptText!$E$1&CHAR(10)&ScriptText!$C$1)","v":""},{"$f":"IF(OrigTable!D1557=\"\",\"\",ScriptText!$B$1&CHAR(10)&ScriptText!$D$1)","v":""},{"$f":"IF(OrigTable!D1557=\"\",\"\",TEXT(OrigTable!D1557,\"00\"))","v":""},{"$f":"IF(OrigTable!D1557=\"\",\"\",ScriptText!$E$1&CHAR(10)&ScriptText!$C$1)","v":""},{"$f":"IF(OrigTable!E1557=\"\",\"\",ScriptText!$B$1&CHAR(10)&ScriptText!$D$1)","v":""},{"$f":"IF(OrigTable!E1557=\"\",\"\",TEXT(OrigTable!E1557,\"00\"))","v":""},{"$f":"IF(OrigTable!E1557=\"\",\"\",ScriptText!$E$1&CHAR(10)&ScriptText!$C$1)","v":""},{"$f":"IF(OrigTable!F1557=\"\",\"\",ScriptText!$B$1&CHAR(10)&ScriptText!$D$1)","v":""},{"$f":"IF(OrigTable!F1557=\"\",\"\",TEXT(OrigTable!F1557,\"00\"))","v":""},{"$f":"IF(OrigTable!F1557=\"\",\"\",ScriptText!$E$1&CHAR(10)&ScriptText!$C$1)","v":""},{"$f":"IF(OrigTable!G1557=\"\",\"\",ScriptText!$B$1&CHAR(10)&ScriptText!$D$1)","v":""},{"$f":"IF(OrigTable!G1557=\"\",\"\",TEXT(OrigTable!G1557,\"00\"))","v":""},{"$f":"IF(OrigTable!G1557=\"\",\"\",ScriptText!$E$1&CHAR(10)&ScriptText!$C$1)","v":""},0]
["\n\n\n",{"$f":"IF(OrigTable!A1558=\"\",\"\",ScriptText!$B$1&CHAR(10)&ScriptText!$D$1)","v":""},{"$f":"IF(OrigTable!A1558=\"\",\"\",TEXT(OrigTable!A1558,\"00\"))","v":""},{"$f":"IF(OrigTable!A1558=\"\",\"\",ScriptText!$E$1&CHAR(10)&ScriptText!$C$1)","v":""},{"$f":"IF(OrigTable!B1558=\"\",\"\",ScriptText!$B$1&CHAR(10)&ScriptText!$D$1)","v":""},{"$f":"IF(OrigTable!B1558=\"\",\"\",TEXT(OrigTable!B1558,\"00\"))","v":""},{"$f":"IF(OrigTable!B1558=\"\",\"\",ScriptText!$E$1&CHAR(10)&ScriptText!C1553)","v":""},{"$f":"IF(OrigTable!C1558=\"\",\"\",ScriptText!$B$1&CHAR(10)&ScriptText!$D$1)","v":""},{"$f":"IF(OrigTable!C1558=\"\",\"\",IF(LEN(OrigTable!C1558)>255,LEFT(OrigTable!C1558,250)&\". . .\",OrigTable!C1558))","v":""},{"$f":"IF(OrigTable!C1558=\"\",\"\",ScriptText!$E$1&CHAR(10)&ScriptText!$C$1)","v":""},{"$f":"IF(OrigTable!D1558=\"\",\"\",ScriptText!$B$1&CHAR(10)&ScriptText!$D$1)","v":""},{"$f":"IF(OrigTable!D1558=\"\",\"\",TEXT(OrigTable!D1558,\"00\"))","v":""},{"$f":"IF(OrigTable!D1558=\"\",\"\",ScriptText!$E$1&CHAR(10)&ScriptText!$C$1)","v":""},{"$f":"IF(OrigTable!E1558=\"\",\"\",ScriptText!$B$1&CHAR(10)&ScriptText!$D$1)","v":""},{"$f":"IF(OrigTable!E1558=\"\",\"\",TEXT(OrigTable!E1558,\"00\"))","v":""},{"$f":"IF(OrigTable!E1558=\"\",\"\",ScriptText!$E$1&CHAR(10)&ScriptText!$C$1)","v":""},{"$f":"IF(OrigTable!F1558=\"\",\"\",ScriptText!$B$1&CHAR(10)&ScriptText!$D$1)","v":""},{"$f":"IF(OrigTable!F1558=\"\",\"\",TEXT(OrigTable!F1558,\"00\"))","v":""},{"$f":"IF(OrigTable!F1558=\"\",\"\",ScriptText!$E$1&CHAR(10)&ScriptText!$C$1)","v":""},{"$f":"IF(OrigTable!G1558=\"\",\"\",ScriptText!$B$1&CHAR(10)&ScriptText!$D$1)","v":""},{"$f":"IF(OrigTable!G1558=\"\",\"\",TEXT(OrigTable!G1558,\"00\"))","v":""},{"$f":"IF(OrigTable!G1558=\"\",\"\",ScriptText!$E$1&CHAR(10)&ScriptText!$C$1)","v":""},0]
["\n\n\n",{"$f":"IF(OrigTable!A1559=\"\",\"\",ScriptText!$B$1&CHAR(10)&ScriptText!$D$1)","v":""},{"$f":"IF(OrigTable!A1559=\"\",\"\",TEXT(OrigTable!A1559,\"00\"))","v":""},{"$f":"IF(OrigTable!A1559=\"\",\"\",ScriptText!$E$1&CHAR(10)&ScriptText!$C$1)","v":""},{"$f":"IF(OrigTable!B1559=\"\",\"\",ScriptText!$B$1&CHAR(10)&ScriptText!$D$1)","v":""},{"$f":"IF(OrigTable!B1559=\"\",\"\",TEXT(OrigTable!B1559,\"00\"))","v":""},{"$f":"IF(OrigTable!B1559=\"\",\"\",ScriptText!$E$1&CHAR(10)&ScriptText!C1554)","v":""},{"$f":"IF(OrigTable!C1559=\"\",\"\",ScriptText!$B$1&CHAR(10)&ScriptText!$D$1)","v":""},{"$f":"IF(OrigTable!C1559=\"\",\"\",IF(LEN(OrigTable!C1559)>255,LEFT(OrigTable!C1559,250)&\". . .\",OrigTable!C1559))","v":""},{"$f":"IF(OrigTable!C1559=\"\",\"\",ScriptText!$E$1&CHAR(10)&ScriptText!$C$1)","v":""},{"$f":"IF(OrigTable!D1559=\"\",\"\",ScriptText!$B$1&CHAR(10)&ScriptText!$D$1)","v":""},{"$f":"IF(OrigTable!D1559=\"\",\"\",TEXT(OrigTable!D1559,\"00\"))","v":""},{"$f":"IF(OrigTable!D1559=\"\",\"\",ScriptText!$E$1&CHAR(10)&ScriptText!$C$1)","v":""},{"$f":"IF(OrigTable!E1559=\"\",\"\",ScriptText!$B$1&CHAR(10)&ScriptText!$D$1)","v":""},{"$f":"IF(OrigTable!E1559=\"\",\"\",TEXT(OrigTable!E1559,\"00\"))","v":""},{"$f":"IF(OrigTable!E1559=\"\",\"\",ScriptText!$E$1&CHAR(10)&ScriptText!$C$1)","v":""},{"$f":"IF(OrigTable!F1559=\"\",\"\",ScriptText!$B$1&CHAR(10)&ScriptText!$D$1)","v":""},{"$f":"IF(OrigTable!F1559=\"\",\"\",TEXT(OrigTable!F1559,\"00\"))","v":""},{"$f":"IF(OrigTable!F1559=\"\",\"\",ScriptText!$E$1&CHAR(10)&ScriptText!$C$1)","v":""},{"$f":"IF(OrigTable!G1559=\"\",\"\",ScriptText!$B$1&CHAR(10)&ScriptText!$D$1)","v":""},{"$f":"IF(OrigTable!G1559=\"\",\"\",TEXT(OrigTable!G1559,\"00\"))","v":""},{"$f":"IF(OrigTable!G1559=\"\",\"\",ScriptText!$E$1&CHAR(10)&ScriptText!$C$1)","v":""},0]
["\n\n\n",{"$f":"IF(OrigTable!A1560=\"\",\"\",ScriptText!$B$1&CHAR(10)&ScriptText!$D$1)","v":""},{"$f":"IF(OrigTable!A1560=\"\",\"\",TEXT(OrigTable!A1560,\"00\"))","v":""},{"$f":"IF(OrigTable!A1560=\"\",\"\",ScriptText!$E$1&CHAR(10)&ScriptText!$C$1)","v":""},{"$f":"IF(OrigTable!B1560=\"\",\"\",ScriptText!$B$1&CHAR(10)&ScriptText!$D$1)","v":""},{"$f":"IF(OrigTable!B1560=\"\",\"\",TEXT(OrigTable!B1560,\"00\"))","v":""},{"$f":"IF(OrigTable!B1560=\"\",\"\",ScriptText!$E$1&CHAR(10)&ScriptText!C1555)","v":""},{"$f":"IF(OrigTable!C1560=\"\",\"\",ScriptText!$B$1&CHAR(10)&ScriptText!$D$1)","v":""},{"$f":"IF(OrigTable!C1560=\"\",\"\",IF(LEN(OrigTable!C1560)>255,LEFT(OrigTable!C1560,250)&\". . .\",OrigTable!C1560))","v":""},{"$f":"IF(OrigTable!C1560=\"\",\"\",ScriptText!$E$1&CHAR(10)&ScriptText!$C$1)","v":""},{"$f":"IF(OrigTable!D1560=\"\",\"\",ScriptText!$B$1&CHAR(10)&ScriptText!$D$1)","v":""},{"$f":"IF(OrigTable!D1560=\"\",\"\",TEXT(OrigTable!D1560,\"00\"))","v":""},{"$f":"IF(OrigTable!D1560=\"\",\"\",ScriptText!$E$1&CHAR(10)&ScriptText!$C$1)","v":""},{"$f":"IF(OrigTable!E1560=\"\",\"\",ScriptText!$B$1&CHAR(10)&ScriptText!$D$1)","v":""},{"$f":"IF(OrigTable!E1560=\"\",\"\",TEXT(OrigTable!E1560,\"00\"))","v":""},{"$f":"IF(OrigTable!E1560=\"\",\"\",ScriptText!$E$1&CHAR(10)&ScriptText!$C$1)","v":""},{"$f":"IF(OrigTable!F1560=\"\",\"\",ScriptText!$B$1&CHAR(10)&ScriptText!$D$1)","v":""},{"$f":"IF(OrigTable!F1560=\"\",\"\",TEXT(OrigTable!F1560,\"00\"))","v":""},{"$f":"IF(OrigTable!F1560=\"\",\"\",ScriptText!$E$1&CHAR(10)&ScriptText!$C$1)","v":""},{"$f":"IF(OrigTable!G1560=\"\",\"\",ScriptText!$B$1&CHAR(10)&ScriptText!$D$1)","v":""},{"$f":"IF(OrigTable!G1560=\"\",\"\",TEXT(OrigTable!G1560,\"00\"))","v":""},{"$f":"IF(OrigTable!G1560=\"\",\"\",ScriptText!$E$1&CHAR(10)&ScriptText!$C$1)","v":""},0]
["\n\n\n",{"$f":"IF(OrigTable!A1561=\"\",\"\",ScriptText!$B$1&CHAR(10)&ScriptText!$D$1)","v":""},{"$f":"IF(OrigTable!A1561=\"\",\"\",TEXT(OrigTable!A1561,\"00\"))","v":""},{"$f":"IF(OrigTable!A1561=\"\",\"\",ScriptText!$E$1&CHAR(10)&ScriptText!$C$1)","v":""},{"$f":"IF(OrigTable!B1561=\"\",\"\",ScriptText!$B$1&CHAR(10)&ScriptText!$D$1)","v":""},{"$f":"IF(OrigTable!B1561=\"\",\"\",TEXT(OrigTable!B1561,\"00\"))","v":""},{"$f":"IF(OrigTable!B1561=\"\",\"\",ScriptText!$E$1&CHAR(10)&ScriptText!C1556)","v":""},{"$f":"IF(OrigTable!C1561=\"\",\"\",ScriptText!$B$1&CHAR(10)&ScriptText!$D$1)","v":""},{"$f":"IF(OrigTable!C1561=\"\",\"\",IF(LEN(OrigTable!C1561)>255,LEFT(OrigTable!C1561,250)&\". . .\",OrigTable!C1561))","v":""},{"$f":"IF(OrigTable!C1561=\"\",\"\",ScriptText!$E$1&CHAR(10)&ScriptText!$C$1)","v":""},{"$f":"IF(OrigTable!D1561=\"\",\"\",ScriptText!$B$1&CHAR(10)&ScriptText!$D$1)","v":""},{"$f":"IF(OrigTable!D1561=\"\",\"\",TEXT(OrigTable!D1561,\"00\"))","v":""},{"$f":"IF(OrigTable!D1561=\"\",\"\",ScriptText!$E$1&CHAR(10)&ScriptText!$C$1)","v":""},{"$f":"IF(OrigTable!E1561=\"\",\"\",ScriptText!$B$1&CHAR(10)&ScriptText!$D$1)","v":""},{"$f":"IF(OrigTable!E1561=\"\",\"\",TEXT(OrigTable!E1561,\"00\"))","v":""},{"$f":"IF(OrigTable!E1561=\"\",\"\",ScriptText!$E$1&CHAR(10)&ScriptText!$C$1)","v":""},{"$f":"IF(OrigTable!F1561=\"\",\"\",ScriptText!$B$1&CHAR(10)&ScriptText!$D$1)","v":""},{"$f":"IF(OrigTable!F1561=\"\",\"\",TEXT(OrigTable!F1561,\"00\"))","v":""},{"$f":"IF(OrigTable!F1561=\"\",\"\",ScriptText!$E$1&CHAR(10)&ScriptText!$C$1)","v":""},{"$f":"IF(OrigTable!G1561=\"\",\"\",ScriptText!$B$1&CHAR(10)&ScriptText!$D$1)","v":""},{"$f":"IF(OrigTable!G1561=\"\",\"\",TEXT(OrigTable!G1561,\"00\"))","v":""},{"$f":"IF(OrigTable!G1561=\"\",\"\",ScriptText!$E$1&CHAR(10)&ScriptText!$C$1)","v":""},0]
["\n\n\n",{"$f":"IF(OrigTable!A1562=\"\",\"\",ScriptText!$B$1&CHAR(10)&ScriptText!$D$1)","v":""},{"$f":"IF(OrigTable!A1562=\"\",\"\",TEXT(OrigTable!A1562,\"00\"))","v":""},{"$f":"IF(OrigTable!A1562=\"\",\"\",ScriptText!$E$1&CHAR(10)&ScriptText!$C$1)","v":""},{"$f":"IF(OrigTable!B1562=\"\",\"\",ScriptText!$B$1&CHAR(10)&ScriptText!$D$1)","v":""},{"$f":"IF(OrigTable!B1562=\"\",\"\",TEXT(OrigTable!B1562,\"00\"))","v":""},{"$f":"IF(OrigTable!B1562=\"\",\"\",ScriptText!$E$1&CHAR(10)&ScriptText!C1557)","v":""},{"$f":"IF(OrigTable!C1562=\"\",\"\",ScriptText!$B$1&CHAR(10)&ScriptText!$D$1)","v":""},{"$f":"IF(OrigTable!C1562=\"\",\"\",IF(LEN(OrigTable!C1562)>255,LEFT(OrigTable!C1562,250)&\". . .\",OrigTable!C1562))","v":""},{"$f":"IF(OrigTable!C1562=\"\",\"\",ScriptText!$E$1&CHAR(10)&ScriptText!$C$1)","v":""},{"$f":"IF(OrigTable!D1562=\"\",\"\",ScriptText!$B$1&CHAR(10)&ScriptText!$D$1)","v":""},{"$f":"IF(OrigTable!D1562=\"\",\"\",TEXT(OrigTable!D1562,\"00\"))","v":""},{"$f":"IF(OrigTable!D1562=\"\",\"\",ScriptText!$E$1&CHAR(10)&ScriptText!$C$1)","v":""},{"$f":"IF(OrigTable!E1562=\"\",\"\",ScriptText!$B$1&CHAR(10)&ScriptText!$D$1)","v":""},{"$f":"IF(OrigTable!E1562=\"\",\"\",TEXT(OrigTable!E1562,\"00\"))","v":""},{"$f":"IF(OrigTable!E1562=\"\",\"\",ScriptText!$E$1&CHAR(10)&ScriptText!$C$1)","v":""},{"$f":"IF(OrigTable!F1562=\"\",\"\",ScriptText!$B$1&CHAR(10)&ScriptText!$D$1)","v":""},{"$f":"IF(OrigTable!F1562=\"\",\"\",TEXT(OrigTable!F1562,\"00\"))","v":""},{"$f":"IF(OrigTable!F1562=\"\",\"\",ScriptText!$E$1&CHAR(10)&ScriptText!$C$1)","v":""},{"$f":"IF(OrigTable!G1562=\"\",\"\",ScriptText!$B$1&CHAR(10)&ScriptText!$D$1)","v":""},{"$f":"IF(OrigTable!G1562=\"\",\"\",TEXT(OrigTable!G1562,\"00\"))","v":""},{"$f":"IF(OrigTable!G1562=\"\",\"\",ScriptText!$E$1&CHAR(10)&ScriptText!$C$1)","v":""},0]
["\n\n\n",{"$f":"IF(OrigTable!A1563=\"\",\"\",ScriptText!$B$1&CHAR(10)&ScriptText!$D$1)","v":""},{"$f":"IF(OrigTable!A1563=\"\",\"\",TEXT(OrigTable!A1563,\"00\"))","v":""},{"$f":"IF(OrigTable!A1563=\"\",\"\",ScriptText!$E$1&CHAR(10)&ScriptText!$C$1)","v":""},{"$f":"IF(OrigTable!B1563=\"\",\"\",ScriptText!$B$1&CHAR(10)&ScriptText!$D$1)","v":""},{"$f":"IF(OrigTable!B1563=\"\",\"\",TEXT(OrigTable!B1563,\"00\"))","v":""},{"$f":"IF(OrigTable!B1563=\"\",\"\",ScriptText!$E$1&CHAR(10)&ScriptText!C1558)","v":""},{"$f":"IF(OrigTable!C1563=\"\",\"\",ScriptText!$B$1&CHAR(10)&ScriptText!$D$1)","v":""},{"$f":"IF(OrigTable!C1563=\"\",\"\",IF(LEN(OrigTable!C1563)>255,LEFT(OrigTable!C1563,250)&\". . .\",OrigTable!C1563))","v":""},{"$f":"IF(OrigTable!C1563=\"\",\"\",ScriptText!$E$1&CHAR(10)&ScriptText!$C$1)","v":""},{"$f":"IF(OrigTable!D1563=\"\",\"\",ScriptText!$B$1&CHAR(10)&ScriptText!$D$1)","v":""},{"$f":"IF(OrigTable!D1563=\"\",\"\",TEXT(OrigTable!D1563,\"00\"))","v":""},{"$f":"IF(OrigTable!D1563=\"\",\"\",ScriptText!$E$1&CHAR(10)&ScriptText!$C$1)","v":""},{"$f":"IF(OrigTable!E1563=\"\",\"\",ScriptText!$B$1&CHAR(10)&ScriptText!$D$1)","v":""},{"$f":"IF(OrigTable!E1563=\"\",\"\",TEXT(OrigTable!E1563,\"00\"))","v":""},{"$f":"IF(OrigTable!E1563=\"\",\"\",ScriptText!$E$1&CHAR(10)&ScriptText!$C$1)","v":""},{"$f":"IF(OrigTable!F1563=\"\",\"\",ScriptText!$B$1&CHAR(10)&ScriptText!$D$1)","v":""},{"$f":"IF(OrigTable!F1563=\"\",\"\",TEXT(OrigTable!F1563,\"00\"))","v":""},{"$f":"IF(OrigTable!F1563=\"\",\"\",ScriptText!$E$1&CHAR(10)&ScriptText!$C$1)","v":""},{"$f":"IF(OrigTable!G1563=\"\",\"\",ScriptText!$B$1&CHAR(10)&ScriptText!$D$1)","v":""},{"$f":"IF(OrigTable!G1563=\"\",\"\",TEXT(OrigTable!G1563,\"00\"))","v":""},{"$f":"IF(OrigTable!G1563=\"\",\"\",ScriptText!$E$1&CHAR(10)&ScriptText!$C$1)","v":""},0]
["\n\n\n",{"$f":"IF(OrigTable!A1564=\"\",\"\",ScriptText!$B$1&CHAR(10)&ScriptText!$D$1)","v":""},{"$f":"IF(OrigTable!A1564=\"\",\"\",TEXT(OrigTable!A1564,\"00\"))","v":""},{"$f":"IF(OrigTable!A1564=\"\",\"\",ScriptText!$E$1&CHAR(10)&ScriptText!$C$1)","v":""},{"$f":"IF(OrigTable!B1564=\"\",\"\",ScriptText!$B$1&CHAR(10)&ScriptText!$D$1)","v":""},{"$f":"IF(OrigTable!B1564=\"\",\"\",TEXT(OrigTable!B1564,\"00\"))","v":""},{"$f":"IF(OrigTable!B1564=\"\",\"\",ScriptText!$E$1&CHAR(10)&ScriptText!C1559)","v":""},{"$f":"IF(OrigTable!C1564=\"\",\"\",ScriptText!$B$1&CHAR(10)&ScriptText!$D$1)","v":""},{"$f":"IF(OrigTable!C1564=\"\",\"\",IF(LEN(OrigTable!C1564)>255,LEFT(OrigTable!C1564,250)&\". . .\",OrigTable!C1564))","v":""},{"$f":"IF(OrigTable!C1564=\"\",\"\",ScriptText!$E$1&CHAR(10)&ScriptText!$C$1)","v":""},{"$f":"IF(OrigTable!D1564=\"\",\"\",ScriptText!$B$1&CHAR(10)&ScriptText!$D$1)","v":""},{"$f":"IF(OrigTable!D1564=\"\",\"\",TEXT(OrigTable!D1564,\"00\"))","v":""},{"$f":"IF(OrigTable!D1564=\"\",\"\",ScriptText!$E$1&CHAR(10)&ScriptText!$C$1)","v":""},{"$f":"IF(OrigTable!E1564=\"\",\"\",ScriptText!$B$1&CHAR(10)&ScriptText!$D$1)","v":""},{"$f":"IF(OrigTable!E1564=\"\",\"\",TEXT(OrigTable!E1564,\"00\"))","v":""},{"$f":"IF(OrigTable!E1564=\"\",\"\",ScriptText!$E$1&CHAR(10)&ScriptText!$C$1)","v":""},{"$f":"IF(OrigTable!F1564=\"\",\"\",ScriptText!$B$1&CHAR(10)&ScriptText!$D$1)","v":""},{"$f":"IF(OrigTable!F1564=\"\",\"\",TEXT(OrigTable!F1564,\"00\"))","v":""},{"$f":"IF(OrigTable!F1564=\"\",\"\",ScriptText!$E$1&CHAR(10)&ScriptText!$C$1)","v":""},{"$f":"IF(OrigTable!G1564=\"\",\"\",ScriptText!$B$1&CHAR(10)&ScriptText!$D$1)","v":""},{"$f":"IF(OrigTable!G1564=\"\",\"\",TEXT(OrigTable!G1564,\"00\"))","v":""},{"$f":"IF(OrigTable!G1564=\"\",\"\",ScriptText!$E$1&CHAR(10)&ScriptText!$C$1)","v":""},0]
["\n\n\n",{"$f":"IF(OrigTable!A1565=\"\",\"\",ScriptText!$B$1&CHAR(10)&ScriptText!$D$1)","v":""},{"$f":"IF(OrigTable!A1565=\"\",\"\",TEXT(OrigTable!A1565,\"00\"))","v":""},{"$f":"IF(OrigTable!A1565=\"\",\"\",ScriptText!$E$1&CHAR(10)&ScriptText!$C$1)","v":""},{"$f":"IF(OrigTable!B1565=\"\",\"\",ScriptText!$B$1&CHAR(10)&ScriptText!$D$1)","v":""},{"$f":"IF(OrigTable!B1565=\"\",\"\",TEXT(OrigTable!B1565,\"00\"))","v":""},{"$f":"IF(OrigTable!B1565=\"\",\"\",ScriptText!$E$1&CHAR(10)&ScriptText!C1560)","v":""},{"$f":"IF(OrigTable!C1565=\"\",\"\",ScriptText!$B$1&CHAR(10)&ScriptText!$D$1)","v":""},{"$f":"IF(OrigTable!C1565=\"\",\"\",IF(LEN(OrigTable!C1565)>255,LEFT(OrigTable!C1565,250)&\". . .\",OrigTable!C1565))","v":""},{"$f":"IF(OrigTable!C1565=\"\",\"\",ScriptText!$E$1&CHAR(10)&ScriptText!$C$1)","v":""},{"$f":"IF(OrigTable!D1565=\"\",\"\",ScriptText!$B$1&CHAR(10)&ScriptText!$D$1)","v":""},{"$f":"IF(OrigTable!D1565=\"\",\"\",TEXT(OrigTable!D1565,\"00\"))","v":""},{"$f":"IF(OrigTable!D1565=\"\",\"\",ScriptText!$E$1&CHAR(10)&ScriptText!$C$1)","v":""},{"$f":"IF(OrigTable!E1565=\"\",\"\",ScriptText!$B$1&CHAR(10)&ScriptText!$D$1)","v":""},{"$f":"IF(OrigTable!E1565=\"\",\"\",TEXT(OrigTable!E1565,\"00\"))","v":""},{"$f":"IF(OrigTable!E1565=\"\",\"\",ScriptText!$E$1&CHAR(10)&ScriptText!$C$1)","v":""},{"$f":"IF(OrigTable!F1565=\"\",\"\",ScriptText!$B$1&CHAR(10)&ScriptText!$D$1)","v":""},{"$f":"IF(OrigTable!F1565=\"\",\"\",TEXT(OrigTable!F1565,\"00\"))","v":""},{"$f":"IF(OrigTable!F1565=\"\",\"\",ScriptText!$E$1&CHAR(10)&ScriptText!$C$1)","v":""},{"$f":"IF(OrigTable!G1565=\"\",\"\",ScriptText!$B$1&CHAR(10)&ScriptText!$D$1)","v":""},{"$f":"IF(OrigTable!G1565=\"\",\"\",TEXT(OrigTable!G1565,\"00\"))","v":""},{"$f":"IF(OrigTable!G1565=\"\",\"\",ScriptText!$E$1&CHAR(10)&ScriptText!$C$1)","v":""},0]
["\n\n\n",{"$f":"IF(OrigTable!A1566=\"\",\"\",ScriptText!$B$1&CHAR(10)&ScriptText!$D$1)","v":""},{"$f":"IF(OrigTable!A1566=\"\",\"\",TEXT(OrigTable!A1566,\"00\"))","v":""},{"$f":"IF(OrigTable!A1566=\"\",\"\",ScriptText!$E$1&CHAR(10)&ScriptText!$C$1)","v":""},{"$f":"IF(OrigTable!B1566=\"\",\"\",ScriptText!$B$1&CHAR(10)&ScriptText!$D$1)","v":""},{"$f":"IF(OrigTable!B1566=\"\",\"\",TEXT(OrigTable!B1566,\"00\"))","v":""},{"$f":"IF(OrigTable!B1566=\"\",\"\",ScriptText!$E$1&CHAR(10)&ScriptText!C1561)","v":""},{"$f":"IF(OrigTable!C1566=\"\",\"\",ScriptText!$B$1&CHAR(10)&ScriptText!$D$1)","v":""},{"$f":"IF(OrigTable!C1566=\"\",\"\",IF(LEN(OrigTable!C1566)>255,LEFT(OrigTable!C1566,250)&\". . .\",OrigTable!C1566))","v":""},{"$f":"IF(OrigTable!C1566=\"\",\"\",ScriptText!$E$1&CHAR(10)&ScriptText!$C$1)","v":""},{"$f":"IF(OrigTable!D1566=\"\",\"\",ScriptText!$B$1&CHAR(10)&ScriptText!$D$1)","v":""},{"$f":"IF(OrigTable!D1566=\"\",\"\",TEXT(OrigTable!D1566,\"00\"))","v":""},{"$f":"IF(OrigTable!D1566=\"\",\"\",ScriptText!$E$1&CHAR(10)&ScriptText!$C$1)","v":""},{"$f":"IF(OrigTable!E1566=\"\",\"\",ScriptText!$B$1&CHAR(10)&ScriptText!$D$1)","v":""},{"$f":"IF(OrigTable!E1566=\"\",\"\",TEXT(OrigTable!E1566,\"00\"))","v":""},{"$f":"IF(OrigTable!E1566=\"\",\"\",ScriptText!$E$1&CHAR(10)&ScriptText!$C$1)","v":""},{"$f":"IF(OrigTable!F1566=\"\",\"\",ScriptText!$B$1&CHAR(10)&ScriptText!$D$1)","v":""},{"$f":"IF(OrigTable!F1566=\"\",\"\",TEXT(OrigTable!F1566,\"00\"))","v":""},{"$f":"IF(OrigTable!F1566=\"\",\"\",ScriptText!$E$1&CHAR(10)&ScriptText!$C$1)","v":""},{"$f":"IF(OrigTable!G1566=\"\",\"\",ScriptText!$B$1&CHAR(10)&ScriptText!$D$1)","v":""},{"$f":"IF(OrigTable!G1566=\"\",\"\",TEXT(OrigTable!G1566,\"00\"))","v":""},{"$f":"IF(OrigTable!G1566=\"\",\"\",ScriptText!$E$1&CHAR(10)&ScriptText!$C$1)","v":""},0]
["\n\n\n",{"$f":"IF(OrigTable!A1567=\"\",\"\",ScriptText!$B$1&CHAR(10)&ScriptText!$D$1)","v":""},{"$f":"IF(OrigTable!A1567=\"\",\"\",TEXT(OrigTable!A1567,\"00\"))","v":""},{"$f":"IF(OrigTable!A1567=\"\",\"\",ScriptText!$E$1&CHAR(10)&ScriptText!$C$1)","v":""},{"$f":"IF(OrigTable!B1567=\"\",\"\",ScriptText!$B$1&CHAR(10)&ScriptText!$D$1)","v":""},{"$f":"IF(OrigTable!B1567=\"\",\"\",TEXT(OrigTable!B1567,\"00\"))","v":""},{"$f":"IF(OrigTable!B1567=\"\",\"\",ScriptText!$E$1&CHAR(10)&ScriptText!C1562)","v":""},{"$f":"IF(OrigTable!C1567=\"\",\"\",ScriptText!$B$1&CHAR(10)&ScriptText!$D$1)","v":""},{"$f":"IF(OrigTable!C1567=\"\",\"\",IF(LEN(OrigTable!C1567)>255,LEFT(OrigTable!C1567,250)&\". . .\",OrigTable!C1567))","v":""},{"$f":"IF(OrigTable!C1567=\"\",\"\",ScriptText!$E$1&CHAR(10)&ScriptText!$C$1)","v":""},{"$f":"IF(OrigTable!D1567=\"\",\"\",ScriptText!$B$1&CHAR(10)&ScriptText!$D$1)","v":""},{"$f":"IF(OrigTable!D1567=\"\",\"\",TEXT(OrigTable!D1567,\"00\"))","v":""},{"$f":"IF(OrigTable!D1567=\"\",\"\",ScriptText!$E$1&CHAR(10)&ScriptText!$C$1)","v":""},{"$f":"IF(OrigTable!E1567=\"\",\"\",ScriptText!$B$1&CHAR(10)&ScriptText!$D$1)","v":""},{"$f":"IF(OrigTable!E1567=\"\",\"\",TEXT(OrigTable!E1567,\"00\"))","v":""},{"$f":"IF(OrigTable!E1567=\"\",\"\",ScriptText!$E$1&CHAR(10)&ScriptText!$C$1)","v":""},{"$f":"IF(OrigTable!F1567=\"\",\"\",ScriptText!$B$1&CHAR(10)&ScriptText!$D$1)","v":""},{"$f":"IF(OrigTable!F1567=\"\",\"\",TEXT(OrigTable!F1567,\"00\"))","v":""},{"$f":"IF(OrigTable!F1567=\"\",\"\",ScriptText!$E$1&CHAR(10)&ScriptText!$C$1)","v":""},{"$f":"IF(OrigTable!G1567=\"\",\"\",ScriptText!$B$1&CHAR(10)&ScriptText!$D$1)","v":""},{"$f":"IF(OrigTable!G1567=\"\",\"\",TEXT(OrigTable!G1567,\"00\"))","v":""},{"$f":"IF(OrigTable!G1567=\"\",\"\",ScriptText!$E$1&CHAR(10)&ScriptText!$C$1)","v":""},0]
["\n\n\n",{"$f":"IF(OrigTable!A1568=\"\",\"\",ScriptText!$B$1&CHAR(10)&ScriptText!$D$1)","v":""},{"$f":"IF(OrigTable!A1568=\"\",\"\",TEXT(OrigTable!A1568,\"00\"))","v":""},{"$f":"IF(OrigTable!A1568=\"\",\"\",ScriptText!$E$1&CHAR(10)&ScriptText!$C$1)","v":""},{"$f":"IF(OrigTable!B1568=\"\",\"\",ScriptText!$B$1&CHAR(10)&ScriptText!$D$1)","v":""},{"$f":"IF(OrigTable!B1568=\"\",\"\",TEXT(OrigTable!B1568,\"00\"))","v":""},{"$f":"IF(OrigTable!B1568=\"\",\"\",ScriptText!$E$1&CHAR(10)&ScriptText!C1563)","v":""},{"$f":"IF(OrigTable!C1568=\"\",\"\",ScriptText!$B$1&CHAR(10)&ScriptText!$D$1)","v":""},{"$f":"IF(OrigTable!C1568=\"\",\"\",IF(LEN(OrigTable!C1568)>255,LEFT(OrigTable!C1568,250)&\". . .\",OrigTable!C1568))","v":""},{"$f":"IF(OrigTable!C1568=\"\",\"\",ScriptText!$E$1&CHAR(10)&ScriptText!$C$1)","v":""},{"$f":"IF(OrigTable!D1568=\"\",\"\",ScriptText!$B$1&CHAR(10)&ScriptText!$D$1)","v":""},{"$f":"IF(OrigTable!D1568=\"\",\"\",TEXT(OrigTable!D1568,\"00\"))","v":""},{"$f":"IF(OrigTable!D1568=\"\",\"\",ScriptText!$E$1&CHAR(10)&ScriptText!$C$1)","v":""},{"$f":"IF(OrigTable!E1568=\"\",\"\",ScriptText!$B$1&CHAR(10)&ScriptText!$D$1)","v":""},{"$f":"IF(OrigTable!E1568=\"\",\"\",TEXT(OrigTable!E1568,\"00\"))","v":""},{"$f":"IF(OrigTable!E1568=\"\",\"\",ScriptText!$E$1&CHAR(10)&ScriptText!$C$1)","v":""},{"$f":"IF(OrigTable!F1568=\"\",\"\",ScriptText!$B$1&CHAR(10)&ScriptText!$D$1)","v":""},{"$f":"IF(OrigTable!F1568=\"\",\"\",TEXT(OrigTable!F1568,\"00\"))","v":""},{"$f":"IF(OrigTable!F1568=\"\",\"\",ScriptText!$E$1&CHAR(10)&ScriptText!$C$1)","v":""},{"$f":"IF(OrigTable!G1568=\"\",\"\",ScriptText!$B$1&CHAR(10)&ScriptText!$D$1)","v":""},{"$f":"IF(OrigTable!G1568=\"\",\"\",TEXT(OrigTable!G1568,\"00\"))","v":""},{"$f":"IF(OrigTable!G1568=\"\",\"\",ScriptText!$E$1&CHAR(10)&ScriptText!$C$1)","v":""},0]
["\n\n\n",{"$f":"IF(OrigTable!A1569=\"\",\"\",ScriptText!$B$1&CHAR(10)&ScriptText!$D$1)","v":""},{"$f":"IF(OrigTable!A1569=\"\",\"\",TEXT(OrigTable!A1569,\"00\"))","v":""},{"$f":"IF(OrigTable!A1569=\"\",\"\",ScriptText!$E$1&CHAR(10)&ScriptText!$C$1)","v":""},{"$f":"IF(OrigTable!B1569=\"\",\"\",ScriptText!$B$1&CHAR(10)&ScriptText!$D$1)","v":""},{"$f":"IF(OrigTable!B1569=\"\",\"\",TEXT(OrigTable!B1569,\"00\"))","v":""},{"$f":"IF(OrigTable!B1569=\"\",\"\",ScriptText!$E$1&CHAR(10)&ScriptText!C1564)","v":""},{"$f":"IF(OrigTable!C1569=\"\",\"\",ScriptText!$B$1&CHAR(10)&ScriptText!$D$1)","v":""},{"$f":"IF(OrigTable!C1569=\"\",\"\",IF(LEN(OrigTable!C1569)>255,LEFT(OrigTable!C1569,250)&\". . .\",OrigTable!C1569))","v":""},{"$f":"IF(OrigTable!C1569=\"\",\"\",ScriptText!$E$1&CHAR(10)&ScriptText!$C$1)","v":""},{"$f":"IF(OrigTable!D1569=\"\",\"\",ScriptText!$B$1&CHAR(10)&ScriptText!$D$1)","v":""},{"$f":"IF(OrigTable!D1569=\"\",\"\",TEXT(OrigTable!D1569,\"00\"))","v":""},{"$f":"IF(OrigTable!D1569=\"\",\"\",ScriptText!$E$1&CHAR(10)&ScriptText!$C$1)","v":""},{"$f":"IF(OrigTable!E1569=\"\",\"\",ScriptText!$B$1&CHAR(10)&ScriptText!$D$1)","v":""},{"$f":"IF(OrigTable!E1569=\"\",\"\",TEXT(OrigTable!E1569,\"00\"))","v":""},{"$f":"IF(OrigTable!E1569=\"\",\"\",ScriptText!$E$1&CHAR(10)&ScriptText!$C$1)","v":""},{"$f":"IF(OrigTable!F1569=\"\",\"\",ScriptText!$B$1&CHAR(10)&ScriptText!$D$1)","v":""},{"$f":"IF(OrigTable!F1569=\"\",\"\",TEXT(OrigTable!F1569,\"00\"))","v":""},{"$f":"IF(OrigTable!F1569=\"\",\"\",ScriptText!$E$1&CHAR(10)&ScriptText!$C$1)","v":""},{"$f":"IF(OrigTable!G1569=\"\",\"\",ScriptText!$B$1&CHAR(10)&ScriptText!$D$1)","v":""},{"$f":"IF(OrigTable!G1569=\"\",\"\",TEXT(OrigTable!G1569,\"00\"))","v":""},{"$f":"IF(OrigTable!G1569=\"\",\"\",ScriptText!$E$1&CHAR(10)&ScriptText!$C$1)","v":""},0]
["\n\n\n",{"$f":"IF(OrigTable!A1570=\"\",\"\",ScriptText!$B$1&CHAR(10)&ScriptText!$D$1)","v":""},{"$f":"IF(OrigTable!A1570=\"\",\"\",TEXT(OrigTable!A1570,\"00\"))","v":""},{"$f":"IF(OrigTable!A1570=\"\",\"\",ScriptText!$E$1&CHAR(10)&ScriptText!$C$1)","v":""},{"$f":"IF(OrigTable!B1570=\"\",\"\",ScriptText!$B$1&CHAR(10)&ScriptText!$D$1)","v":""},{"$f":"IF(OrigTable!B1570=\"\",\"\",TEXT(OrigTable!B1570,\"00\"))","v":""},{"$f":"IF(OrigTable!B1570=\"\",\"\",ScriptText!$E$1&CHAR(10)&ScriptText!C1565)","v":""},{"$f":"IF(OrigTable!C1570=\"\",\"\",ScriptText!$B$1&CHAR(10)&ScriptText!$D$1)","v":""},{"$f":"IF(OrigTable!C1570=\"\",\"\",IF(LEN(OrigTable!C1570)>255,LEFT(OrigTable!C1570,250)&\". . .\",OrigTable!C1570))","v":""},{"$f":"IF(OrigTable!C1570=\"\",\"\",ScriptText!$E$1&CHAR(10)&ScriptText!$C$1)","v":""},{"$f":"IF(OrigTable!D1570=\"\",\"\",ScriptText!$B$1&CHAR(10)&ScriptText!$D$1)","v":""},{"$f":"IF(OrigTable!D1570=\"\",\"\",TEXT(OrigTable!D1570,\"00\"))","v":""},{"$f":"IF(OrigTable!D1570=\"\",\"\",ScriptText!$E$1&CHAR(10)&ScriptText!$C$1)","v":""},{"$f":"IF(OrigTable!E1570=\"\",\"\",ScriptText!$B$1&CHAR(10)&ScriptText!$D$1)","v":""},{"$f":"IF(OrigTable!E1570=\"\",\"\",TEXT(OrigTable!E1570,\"00\"))","v":""},{"$f":"IF(OrigTable!E1570=\"\",\"\",ScriptText!$E$1&CHAR(10)&ScriptText!$C$1)","v":""},{"$f":"IF(OrigTable!F1570=\"\",\"\",ScriptText!$B$1&CHAR(10)&ScriptText!$D$1)","v":""},{"$f":"IF(OrigTable!F1570=\"\",\"\",TEXT(OrigTable!F1570,\"00\"))","v":""},{"$f":"IF(OrigTable!F1570=\"\",\"\",ScriptText!$E$1&CHAR(10)&ScriptText!$C$1)","v":""},{"$f":"IF(OrigTable!G1570=\"\",\"\",ScriptText!$B$1&CHAR(10)&ScriptText!$D$1)","v":""},{"$f":"IF(OrigTable!G1570=\"\",\"\",TEXT(OrigTable!G1570,\"00\"))","v":""},{"$f":"IF(OrigTable!G1570=\"\",\"\",ScriptText!$E$1&CHAR(10)&ScriptText!$C$1)","v":""},0]
["\n\n\n",{"$f":"IF(OrigTable!A1571=\"\",\"\",ScriptText!$B$1&CHAR(10)&ScriptText!$D$1)","v":""},{"$f":"IF(OrigTable!A1571=\"\",\"\",TEXT(OrigTable!A1571,\"00\"))","v":""},{"$f":"IF(OrigTable!A1571=\"\",\"\",ScriptText!$E$1&CHAR(10)&ScriptText!$C$1)","v":""},{"$f":"IF(OrigTable!B1571=\"\",\"\",ScriptText!$B$1&CHAR(10)&ScriptText!$D$1)","v":""},{"$f":"IF(OrigTable!B1571=\"\",\"\",TEXT(OrigTable!B1571,\"00\"))","v":""},{"$f":"IF(OrigTable!B1571=\"\",\"\",ScriptText!$E$1&CHAR(10)&ScriptText!C1566)","v":""},{"$f":"IF(OrigTable!C1571=\"\",\"\",ScriptText!$B$1&CHAR(10)&ScriptText!$D$1)","v":""},{"$f":"IF(OrigTable!C1571=\"\",\"\",IF(LEN(OrigTable!C1571)>255,LEFT(OrigTable!C1571,250)&\". . .\",OrigTable!C1571))","v":""},{"$f":"IF(OrigTable!C1571=\"\",\"\",ScriptText!$E$1&CHAR(10)&ScriptText!$C$1)","v":""},{"$f":"IF(OrigTable!D1571=\"\",\"\",ScriptText!$B$1&CHAR(10)&ScriptText!$D$1)","v":""},{"$f":"IF(OrigTable!D1571=\"\",\"\",TEXT(OrigTable!D1571,\"00\"))","v":""},{"$f":"IF(OrigTable!D1571=\"\",\"\",ScriptText!$E$1&CHAR(10)&ScriptText!$C$1)","v":""},{"$f":"IF(OrigTable!E1571=\"\",\"\",ScriptText!$B$1&CHAR(10)&ScriptText!$D$1)","v":""},{"$f":"IF(OrigTable!E1571=\"\",\"\",TEXT(OrigTable!E1571,\"00\"))","v":""},{"$f":"IF(OrigTable!E1571=\"\",\"\",ScriptText!$E$1&CHAR(10)&ScriptText!$C$1)","v":""},{"$f":"IF(OrigTable!F1571=\"\",\"\",ScriptText!$B$1&CHAR(10)&ScriptText!$D$1)","v":""},{"$f":"IF(OrigTable!F1571=\"\",\"\",TEXT(OrigTable!F1571,\"00\"))","v":""},{"$f":"IF(OrigTable!F1571=\"\",\"\",ScriptText!$E$1&CHAR(10)&ScriptText!$C$1)","v":""},{"$f":"IF(OrigTable!G1571=\"\",\"\",ScriptText!$B$1&CHAR(10)&ScriptText!$D$1)","v":""},{"$f":"IF(OrigTable!G1571=\"\",\"\",TEXT(OrigTable!G1571,\"00\"))","v":""},{"$f":"IF(OrigTable!G1571=\"\",\"\",ScriptText!$E$1&CHAR(10)&ScriptText!$C$1)","v":""},0]
["\n\n\n",{"$f":"IF(OrigTable!A1572=\"\",\"\",ScriptText!$B$1&CHAR(10)&ScriptText!$D$1)","v":""},{"$f":"IF(OrigTable!A1572=\"\",\"\",TEXT(OrigTable!A1572,\"00\"))","v":""},{"$f":"IF(OrigTable!A1572=\"\",\"\",ScriptText!$E$1&CHAR(10)&ScriptText!$C$1)","v":""},{"$f":"IF(OrigTable!B1572=\"\",\"\",ScriptText!$B$1&CHAR(10)&ScriptText!$D$1)","v":""},{"$f":"IF(OrigTable!B1572=\"\",\"\",TEXT(OrigTable!B1572,\"00\"))","v":""},{"$f":"IF(OrigTable!B1572=\"\",\"\",ScriptText!$E$1&CHAR(10)&ScriptText!C1567)","v":""},{"$f":"IF(OrigTable!C1572=\"\",\"\",ScriptText!$B$1&CHAR(10)&ScriptText!$D$1)","v":""},{"$f":"IF(OrigTable!C1572=\"\",\"\",IF(LEN(OrigTable!C1572)>255,LEFT(OrigTable!C1572,250)&\". . .\",OrigTable!C1572))","v":""},{"$f":"IF(OrigTable!C1572=\"\",\"\",ScriptText!$E$1&CHAR(10)&ScriptText!$C$1)","v":""},{"$f":"IF(OrigTable!D1572=\"\",\"\",ScriptText!$B$1&CHAR(10)&ScriptText!$D$1)","v":""},{"$f":"IF(OrigTable!D1572=\"\",\"\",TEXT(OrigTable!D1572,\"00\"))","v":""},{"$f":"IF(OrigTable!D1572=\"\",\"\",ScriptText!$E$1&CHAR(10)&ScriptText!$C$1)","v":""},{"$f":"IF(OrigTable!E1572=\"\",\"\",ScriptText!$B$1&CHAR(10)&ScriptText!$D$1)","v":""},{"$f":"IF(OrigTable!E1572=\"\",\"\",TEXT(OrigTable!E1572,\"00\"))","v":""},{"$f":"IF(OrigTable!E1572=\"\",\"\",ScriptText!$E$1&CHAR(10)&ScriptText!$C$1)","v":""},{"$f":"IF(OrigTable!F1572=\"\",\"\",ScriptText!$B$1&CHAR(10)&ScriptText!$D$1)","v":""},{"$f":"IF(OrigTable!F1572=\"\",\"\",TEXT(OrigTable!F1572,\"00\"))","v":""},{"$f":"IF(OrigTable!F1572=\"\",\"\",ScriptText!$E$1&CHAR(10)&ScriptText!$C$1)","v":""},{"$f":"IF(OrigTable!G1572=\"\",\"\",ScriptText!$B$1&CHAR(10)&ScriptText!$D$1)","v":""},{"$f":"IF(OrigTable!G1572=\"\",\"\",TEXT(OrigTable!G1572,\"00\"))","v":""},{"$f":"IF(OrigTable!G1572=\"\",\"\",ScriptText!$E$1&CHAR(10)&ScriptText!$C$1)","v":""},0]
["\n\n\n",{"$f":"IF(OrigTable!A1573=\"\",\"\",ScriptText!$B$1&CHAR(10)&ScriptText!$D$1)","v":""},{"$f":"IF(OrigTable!A1573=\"\",\"\",TEXT(OrigTable!A1573,\"00\"))","v":""},{"$f":"IF(OrigTable!A1573=\"\",\"\",ScriptText!$E$1&CHAR(10)&ScriptText!$C$1)","v":""},{"$f":"IF(OrigTable!B1573=\"\",\"\",ScriptText!$B$1&CHAR(10)&ScriptText!$D$1)","v":""},{"$f":"IF(OrigTable!B1573=\"\",\"\",TEXT(OrigTable!B1573,\"00\"))","v":""},{"$f":"IF(OrigTable!B1573=\"\",\"\",ScriptText!$E$1&CHAR(10)&ScriptText!C1568)","v":""},{"$f":"IF(OrigTable!C1573=\"\",\"\",ScriptText!$B$1&CHAR(10)&ScriptText!$D$1)","v":""},{"$f":"IF(OrigTable!C1573=\"\",\"\",IF(LEN(OrigTable!C1573)>255,LEFT(OrigTable!C1573,250)&\". . .\",OrigTable!C1573))","v":""},{"$f":"IF(OrigTable!C1573=\"\",\"\",ScriptText!$E$1&CHAR(10)&ScriptText!$C$1)","v":""},{"$f":"IF(OrigTable!D1573=\"\",\"\",ScriptText!$B$1&CHAR(10)&ScriptText!$D$1)","v":""},{"$f":"IF(OrigTable!D1573=\"\",\"\",TEXT(OrigTable!D1573,\"00\"))","v":""},{"$f":"IF(OrigTable!D1573=\"\",\"\",ScriptText!$E$1&CHAR(10)&ScriptText!$C$1)","v":""},{"$f":"IF(OrigTable!E1573=\"\",\"\",ScriptText!$B$1&CHAR(10)&ScriptText!$D$1)","v":""},{"$f":"IF(OrigTable!E1573=\"\",\"\",TEXT(OrigTable!E1573,\"00\"))","v":""},{"$f":"IF(OrigTable!E1573=\"\",\"\",ScriptText!$E$1&CHAR(10)&ScriptText!$C$1)","v":""},{"$f":"IF(OrigTable!F1573=\"\",\"\",ScriptText!$B$1&CHAR(10)&ScriptText!$D$1)","v":""},{"$f":"IF(OrigTable!F1573=\"\",\"\",TEXT(OrigTable!F1573,\"00\"))","v":""},{"$f":"IF(OrigTable!F1573=\"\",\"\",ScriptText!$E$1&CHAR(10)&ScriptText!$C$1)","v":""},{"$f":"IF(OrigTable!G1573=\"\",\"\",ScriptText!$B$1&CHAR(10)&ScriptText!$D$1)","v":""},{"$f":"IF(OrigTable!G1573=\"\",\"\",TEXT(OrigTable!G1573,\"00\"))","v":""},{"$f":"IF(OrigTable!G1573=\"\",\"\",ScriptText!$E$1&CHAR(10)&ScriptText!$C$1)","v":""},0]
["\n\n\n",{"$f":"IF(OrigTable!A1574=\"\",\"\",ScriptText!$B$1&CHAR(10)&ScriptText!$D$1)","v":""},{"$f":"IF(OrigTable!A1574=\"\",\"\",TEXT(OrigTable!A1574,\"00\"))","v":""},{"$f":"IF(OrigTable!A1574=\"\",\"\",ScriptText!$E$1&CHAR(10)&ScriptText!$C$1)","v":""},{"$f":"IF(OrigTable!B1574=\"\",\"\",ScriptText!$B$1&CHAR(10)&ScriptText!$D$1)","v":""},{"$f":"IF(OrigTable!B1574=\"\",\"\",TEXT(OrigTable!B1574,\"00\"))","v":""},{"$f":"IF(OrigTable!B1574=\"\",\"\",ScriptText!$E$1&CHAR(10)&ScriptText!C1569)","v":""},{"$f":"IF(OrigTable!C1574=\"\",\"\",ScriptText!$B$1&CHAR(10)&ScriptText!$D$1)","v":""},{"$f":"IF(OrigTable!C1574=\"\",\"\",IF(LEN(OrigTable!C1574)>255,LEFT(OrigTable!C1574,250)&\". . .\",OrigTable!C1574))","v":""},{"$f":"IF(OrigTable!C1574=\"\",\"\",ScriptText!$E$1&CHAR(10)&ScriptText!$C$1)","v":""},{"$f":"IF(OrigTable!D1574=\"\",\"\",ScriptText!$B$1&CHAR(10)&ScriptText!$D$1)","v":""},{"$f":"IF(OrigTable!D1574=\"\",\"\",TEXT(OrigTable!D1574,\"00\"))","v":""},{"$f":"IF(OrigTable!D1574=\"\",\"\",ScriptText!$E$1&CHAR(10)&ScriptText!$C$1)","v":""},{"$f":"IF(OrigTable!E1574=\"\",\"\",ScriptText!$B$1&CHAR(10)&ScriptText!$D$1)","v":""},{"$f":"IF(OrigTable!E1574=\"\",\"\",TEXT(OrigTable!E1574,\"00\"))","v":""},{"$f":"IF(OrigTable!E1574=\"\",\"\",ScriptText!$E$1&CHAR(10)&ScriptText!$C$1)","v":""},{"$f":"IF(OrigTable!F1574=\"\",\"\",ScriptText!$B$1&CHAR(10)&ScriptText!$D$1)","v":""},{"$f":"IF(OrigTable!F1574=\"\",\"\",TEXT(OrigTable!F1574,\"00\"))","v":""},{"$f":"IF(OrigTable!F1574=\"\",\"\",ScriptText!$E$1&CHAR(10)&ScriptText!$C$1)","v":""},{"$f":"IF(OrigTable!G1574=\"\",\"\",ScriptText!$B$1&CHAR(10)&ScriptText!$D$1)","v":""},{"$f":"IF(OrigTable!G1574=\"\",\"\",TEXT(OrigTable!G1574,\"00\"))","v":""},{"$f":"IF(OrigTable!G1574=\"\",\"\",ScriptText!$E$1&CHAR(10)&ScriptText!$C$1)","v":""},0]
["\n\n\n",{"$f":"IF(OrigTable!A1575=\"\",\"\",ScriptText!$B$1&CHAR(10)&ScriptText!$D$1)","v":""},{"$f":"IF(OrigTable!A1575=\"\",\"\",TEXT(OrigTable!A1575,\"00\"))","v":""},{"$f":"IF(OrigTable!A1575=\"\",\"\",ScriptText!$E$1&CHAR(10)&ScriptText!$C$1)","v":""},{"$f":"IF(OrigTable!B1575=\"\",\"\",ScriptText!$B$1&CHAR(10)&ScriptText!$D$1)","v":""},{"$f":"IF(OrigTable!B1575=\"\",\"\",TEXT(OrigTable!B1575,\"00\"))","v":""},{"$f":"IF(OrigTable!B1575=\"\",\"\",ScriptText!$E$1&CHAR(10)&ScriptText!C1570)","v":""},{"$f":"IF(OrigTable!C1575=\"\",\"\",ScriptText!$B$1&CHAR(10)&ScriptText!$D$1)","v":""},{"$f":"IF(OrigTable!C1575=\"\",\"\",IF(LEN(OrigTable!C1575)>255,LEFT(OrigTable!C1575,250)&\". . .\",OrigTable!C1575))","v":""},{"$f":"IF(OrigTable!C1575=\"\",\"\",ScriptText!$E$1&CHAR(10)&ScriptText!$C$1)","v":""},{"$f":"IF(OrigTable!D1575=\"\",\"\",ScriptText!$B$1&CHAR(10)&ScriptText!$D$1)","v":""},{"$f":"IF(OrigTable!D1575=\"\",\"\",TEXT(OrigTable!D1575,\"00\"))","v":""},{"$f":"IF(OrigTable!D1575=\"\",\"\",ScriptText!$E$1&CHAR(10)&ScriptText!$C$1)","v":""},{"$f":"IF(OrigTable!E1575=\"\",\"\",ScriptText!$B$1&CHAR(10)&ScriptText!$D$1)","v":""},{"$f":"IF(OrigTable!E1575=\"\",\"\",TEXT(OrigTable!E1575,\"00\"))","v":""},{"$f":"IF(OrigTable!E1575=\"\",\"\",ScriptText!$E$1&CHAR(10)&ScriptText!$C$1)","v":""},{"$f":"IF(OrigTable!F1575=\"\",\"\",ScriptText!$B$1&CHAR(10)&ScriptText!$D$1)","v":""},{"$f":"IF(OrigTable!F1575=\"\",\"\",TEXT(OrigTable!F1575,\"00\"))","v":""},{"$f":"IF(OrigTable!F1575=\"\",\"\",ScriptText!$E$1&CHAR(10)&ScriptText!$C$1)","v":""},{"$f":"IF(OrigTable!G1575=\"\",\"\",ScriptText!$B$1&CHAR(10)&ScriptText!$D$1)","v":""},{"$f":"IF(OrigTable!G1575=\"\",\"\",TEXT(OrigTable!G1575,\"00\"))","v":""},{"$f":"IF(OrigTable!G1575=\"\",\"\",ScriptText!$E$1&CHAR(10)&ScriptText!$C$1)","v":""},0]
["\n\n\n",{"$f":"IF(OrigTable!A1576=\"\",\"\",ScriptText!$B$1&CHAR(10)&ScriptText!$D$1)","v":""},{"$f":"IF(OrigTable!A1576=\"\",\"\",TEXT(OrigTable!A1576,\"00\"))","v":""},{"$f":"IF(OrigTable!A1576=\"\",\"\",ScriptText!$E$1&CHAR(10)&ScriptText!$C$1)","v":""},{"$f":"IF(OrigTable!B1576=\"\",\"\",ScriptText!$B$1&CHAR(10)&ScriptText!$D$1)","v":""},{"$f":"IF(OrigTable!B1576=\"\",\"\",TEXT(OrigTable!B1576,\"00\"))","v":""},{"$f":"IF(OrigTable!B1576=\"\",\"\",ScriptText!$E$1&CHAR(10)&ScriptText!C1571)","v":""},{"$f":"IF(OrigTable!C1576=\"\",\"\",ScriptText!$B$1&CHAR(10)&ScriptText!$D$1)","v":""},{"$f":"IF(OrigTable!C1576=\"\",\"\",IF(LEN(OrigTable!C1576)>255,LEFT(OrigTable!C1576,250)&\". . .\",OrigTable!C1576))","v":""},{"$f":"IF(OrigTable!C1576=\"\",\"\",ScriptText!$E$1&CHAR(10)&ScriptText!$C$1)","v":""},{"$f":"IF(OrigTable!D1576=\"\",\"\",ScriptText!$B$1&CHAR(10)&ScriptText!$D$1)","v":""},{"$f":"IF(OrigTable!D1576=\"\",\"\",TEXT(OrigTable!D1576,\"00\"))","v":""},{"$f":"IF(OrigTable!D1576=\"\",\"\",ScriptText!$E$1&CHAR(10)&ScriptText!$C$1)","v":""},{"$f":"IF(OrigTable!E1576=\"\",\"\",ScriptText!$B$1&CHAR(10)&ScriptText!$D$1)","v":""},{"$f":"IF(OrigTable!E1576=\"\",\"\",TEXT(OrigTable!E1576,\"00\"))","v":""},{"$f":"IF(OrigTable!E1576=\"\",\"\",ScriptText!$E$1&CHAR(10)&ScriptText!$C$1)","v":""},{"$f":"IF(OrigTable!F1576=\"\",\"\",ScriptText!$B$1&CHAR(10)&ScriptText!$D$1)","v":""},{"$f":"IF(OrigTable!F1576=\"\",\"\",TEXT(OrigTable!F1576,\"00\"))","v":""},{"$f":"IF(OrigTable!F1576=\"\",\"\",ScriptText!$E$1&CHAR(10)&ScriptText!$C$1)","v":""},{"$f":"IF(OrigTable!G1576=\"\",\"\",ScriptText!$B$1&CHAR(10)&ScriptText!$D$1)","v":""},{"$f":"IF(OrigTable!G1576=\"\",\"\",TEXT(OrigTable!G1576,\"00\"))","v":""},{"$f":"IF(OrigTable!G1576=\"\",\"\",ScriptText!$E$1&CHAR(10)&ScriptText!$C$1)","v":""},0]
["\n\n\n",{"$f":"IF(OrigTable!A1577=\"\",\"\",ScriptText!$B$1&CHAR(10)&ScriptText!$D$1)","v":""},{"$f":"IF(OrigTable!A1577=\"\",\"\",TEXT(OrigTable!A1577,\"00\"))","v":""},{"$f":"IF(OrigTable!A1577=\"\",\"\",ScriptText!$E$1&CHAR(10)&ScriptText!$C$1)","v":""},{"$f":"IF(OrigTable!B1577=\"\",\"\",ScriptText!$B$1&CHAR(10)&ScriptText!$D$1)","v":""},{"$f":"IF(OrigTable!B1577=\"\",\"\",TEXT(OrigTable!B1577,\"00\"))","v":""},{"$f":"IF(OrigTable!B1577=\"\",\"\",ScriptText!$E$1&CHAR(10)&ScriptText!C1572)","v":""},{"$f":"IF(OrigTable!C1577=\"\",\"\",ScriptText!$B$1&CHAR(10)&ScriptText!$D$1)","v":""},{"$f":"IF(OrigTable!C1577=\"\",\"\",IF(LEN(OrigTable!C1577)>255,LEFT(OrigTable!C1577,250)&\". . .\",OrigTable!C1577))","v":""},{"$f":"IF(OrigTable!C1577=\"\",\"\",ScriptText!$E$1&CHAR(10)&ScriptText!$C$1)","v":""},{"$f":"IF(OrigTable!D1577=\"\",\"\",ScriptText!$B$1&CHAR(10)&ScriptText!$D$1)","v":""},{"$f":"IF(OrigTable!D1577=\"\",\"\",TEXT(OrigTable!D1577,\"00\"))","v":""},{"$f":"IF(OrigTable!D1577=\"\",\"\",ScriptText!$E$1&CHAR(10)&ScriptText!$C$1)","v":""},{"$f":"IF(OrigTable!E1577=\"\",\"\",ScriptText!$B$1&CHAR(10)&ScriptText!$D$1)","v":""},{"$f":"IF(OrigTable!E1577=\"\",\"\",TEXT(OrigTable!E1577,\"00\"))","v":""},{"$f":"IF(OrigTable!E1577=\"\",\"\",ScriptText!$E$1&CHAR(10)&ScriptText!$C$1)","v":""},{"$f":"IF(OrigTable!F1577=\"\",\"\",ScriptText!$B$1&CHAR(10)&ScriptText!$D$1)","v":""},{"$f":"IF(OrigTable!F1577=\"\",\"\",TEXT(OrigTable!F1577,\"00\"))","v":""},{"$f":"IF(OrigTable!F1577=\"\",\"\",ScriptText!$E$1&CHAR(10)&ScriptText!$C$1)","v":""},{"$f":"IF(OrigTable!G1577=\"\",\"\",ScriptText!$B$1&CHAR(10)&ScriptText!$D$1)","v":""},{"$f":"IF(OrigTable!G1577=\"\",\"\",TEXT(OrigTable!G1577,\"00\"))","v":""},{"$f":"IF(OrigTable!G1577=\"\",\"\",ScriptText!$E$1&CHAR(10)&ScriptText!$C$1)","v":""},0]
["\n\n\n",{"$f":"IF(OrigTable!A1578=\"\",\"\",ScriptText!$B$1&CHAR(10)&ScriptText!$D$1)","v":""},{"$f":"IF(OrigTable!A1578=\"\",\"\",TEXT(OrigTable!A1578,\"00\"))","v":""},{"$f":"IF(OrigTable!A1578=\"\",\"\",ScriptText!$E$1&CHAR(10)&ScriptText!$C$1)","v":""},{"$f":"IF(OrigTable!B1578=\"\",\"\",ScriptText!$B$1&CHAR(10)&ScriptText!$D$1)","v":""},{"$f":"IF(OrigTable!B1578=\"\",\"\",TEXT(OrigTable!B1578,\"00\"))","v":""},{"$f":"IF(OrigTable!B1578=\"\",\"\",ScriptText!$E$1&CHAR(10)&ScriptText!C1573)","v":""},{"$f":"IF(OrigTable!C1578=\"\",\"\",ScriptText!$B$1&CHAR(10)&ScriptText!$D$1)","v":""},{"$f":"IF(OrigTable!C1578=\"\",\"\",IF(LEN(OrigTable!C1578)>255,LEFT(OrigTable!C1578,250)&\". . .\",OrigTable!C1578))","v":""},{"$f":"IF(OrigTable!C1578=\"\",\"\",ScriptText!$E$1&CHAR(10)&ScriptText!$C$1)","v":""},{"$f":"IF(OrigTable!D1578=\"\",\"\",ScriptText!$B$1&CHAR(10)&ScriptText!$D$1)","v":""},{"$f":"IF(OrigTable!D1578=\"\",\"\",TEXT(OrigTable!D1578,\"00\"))","v":""},{"$f":"IF(OrigTable!D1578=\"\",\"\",ScriptText!$E$1&CHAR(10)&ScriptText!$C$1)","v":""},{"$f":"IF(OrigTable!E1578=\"\",\"\",ScriptText!$B$1&CHAR(10)&ScriptText!$D$1)","v":""},{"$f":"IF(OrigTable!E1578=\"\",\"\",TEXT(OrigTable!E1578,\"00\"))","v":""},{"$f":"IF(OrigTable!E1578=\"\",\"\",ScriptText!$E$1&CHAR(10)&ScriptText!$C$1)","v":""},{"$f":"IF(OrigTable!F1578=\"\",\"\",ScriptText!$B$1&CHAR(10)&ScriptText!$D$1)","v":""},{"$f":"IF(OrigTable!F1578=\"\",\"\",TEXT(OrigTable!F1578,\"00\"))","v":""},{"$f":"IF(OrigTable!F1578=\"\",\"\",ScriptText!$E$1&CHAR(10)&ScriptText!$C$1)","v":""},{"$f":"IF(OrigTable!G1578=\"\",\"\",ScriptText!$B$1&CHAR(10)&ScriptText!$D$1)","v":""},{"$f":"IF(OrigTable!G1578=\"\",\"\",TEXT(OrigTable!G1578,\"00\"))","v":""},{"$f":"IF(OrigTable!G1578=\"\",\"\",ScriptText!$E$1&CHAR(10)&ScriptText!$C$1)","v":""},0]
["\n\n\n",{"$f":"IF(OrigTable!A1579=\"\",\"\",ScriptText!$B$1&CHAR(10)&ScriptText!$D$1)","v":""},{"$f":"IF(OrigTable!A1579=\"\",\"\",TEXT(OrigTable!A1579,\"00\"))","v":""},{"$f":"IF(OrigTable!A1579=\"\",\"\",ScriptText!$E$1&CHAR(10)&ScriptText!$C$1)","v":""},{"$f":"IF(OrigTable!B1579=\"\",\"\",ScriptText!$B$1&CHAR(10)&ScriptText!$D$1)","v":""},{"$f":"IF(OrigTable!B1579=\"\",\"\",TEXT(OrigTable!B1579,\"00\"))","v":""},{"$f":"IF(OrigTable!B1579=\"\",\"\",ScriptText!$E$1&CHAR(10)&ScriptText!C1574)","v":""},{"$f":"IF(OrigTable!C1579=\"\",\"\",ScriptText!$B$1&CHAR(10)&ScriptText!$D$1)","v":""},{"$f":"IF(OrigTable!C1579=\"\",\"\",IF(LEN(OrigTable!C1579)>255,LEFT(OrigTable!C1579,250)&\". . .\",OrigTable!C1579))","v":""},{"$f":"IF(OrigTable!C1579=\"\",\"\",ScriptText!$E$1&CHAR(10)&ScriptText!$C$1)","v":""},{"$f":"IF(OrigTable!D1579=\"\",\"\",ScriptText!$B$1&CHAR(10)&ScriptText!$D$1)","v":""},{"$f":"IF(OrigTable!D1579=\"\",\"\",TEXT(OrigTable!D1579,\"00\"))","v":""},{"$f":"IF(OrigTable!D1579=\"\",\"\",ScriptText!$E$1&CHAR(10)&ScriptText!$C$1)","v":""},{"$f":"IF(OrigTable!E1579=\"\",\"\",ScriptText!$B$1&CHAR(10)&ScriptText!$D$1)","v":""},{"$f":"IF(OrigTable!E1579=\"\",\"\",TEXT(OrigTable!E1579,\"00\"))","v":""},{"$f":"IF(OrigTable!E1579=\"\",\"\",ScriptText!$E$1&CHAR(10)&ScriptText!$C$1)","v":""},{"$f":"IF(OrigTable!F1579=\"\",\"\",ScriptText!$B$1&CHAR(10)&ScriptText!$D$1)","v":""},{"$f":"IF(OrigTable!F1579=\"\",\"\",TEXT(OrigTable!F1579,\"00\"))","v":""},{"$f":"IF(OrigTable!F1579=\"\",\"\",ScriptText!$E$1&CHAR(10)&ScriptText!$C$1)","v":""},{"$f":"IF(OrigTable!G1579=\"\",\"\",ScriptText!$B$1&CHAR(10)&ScriptText!$D$1)","v":""},{"$f":"IF(OrigTable!G1579=\"\",\"\",TEXT(OrigTable!G1579,\"00\"))","v":""},{"$f":"IF(OrigTable!G1579=\"\",\"\",ScriptText!$E$1&CHAR(10)&ScriptText!$C$1)","v":""},0]
["\n\n\n",{"$f":"IF(OrigTable!A1580=\"\",\"\",ScriptText!$B$1&CHAR(10)&ScriptText!$D$1)","v":""},{"$f":"IF(OrigTable!A1580=\"\",\"\",TEXT(OrigTable!A1580,\"00\"))","v":""},{"$f":"IF(OrigTable!A1580=\"\",\"\",ScriptText!$E$1&CHAR(10)&ScriptText!$C$1)","v":""},{"$f":"IF(OrigTable!B1580=\"\",\"\",ScriptText!$B$1&CHAR(10)&ScriptText!$D$1)","v":""},{"$f":"IF(OrigTable!B1580=\"\",\"\",TEXT(OrigTable!B1580,\"00\"))","v":""},{"$f":"IF(OrigTable!B1580=\"\",\"\",ScriptText!$E$1&CHAR(10)&ScriptText!C1575)","v":""},{"$f":"IF(OrigTable!C1580=\"\",\"\",ScriptText!$B$1&CHAR(10)&ScriptText!$D$1)","v":""},{"$f":"IF(OrigTable!C1580=\"\",\"\",IF(LEN(OrigTable!C1580)>255,LEFT(OrigTable!C1580,250)&\". . .\",OrigTable!C1580))","v":""},{"$f":"IF(OrigTable!C1580=\"\",\"\",ScriptText!$E$1&CHAR(10)&ScriptText!$C$1)","v":""},{"$f":"IF(OrigTable!D1580=\"\",\"\",ScriptText!$B$1&CHAR(10)&ScriptText!$D$1)","v":""},{"$f":"IF(OrigTable!D1580=\"\",\"\",TEXT(OrigTable!D1580,\"00\"))","v":""},{"$f":"IF(OrigTable!D1580=\"\",\"\",ScriptText!$E$1&CHAR(10)&ScriptText!$C$1)","v":""},{"$f":"IF(OrigTable!E1580=\"\",\"\",ScriptText!$B$1&CHAR(10)&ScriptText!$D$1)","v":""},{"$f":"IF(OrigTable!E1580=\"\",\"\",TEXT(OrigTable!E1580,\"00\"))","v":""},{"$f":"IF(OrigTable!E1580=\"\",\"\",ScriptText!$E$1&CHAR(10)&ScriptText!$C$1)","v":""},{"$f":"IF(OrigTable!F1580=\"\",\"\",ScriptText!$B$1&CHAR(10)&ScriptText!$D$1)","v":""},{"$f":"IF(OrigTable!F1580=\"\",\"\",TEXT(OrigTable!F1580,\"00\"))","v":""},{"$f":"IF(OrigTable!F1580=\"\",\"\",ScriptText!$E$1&CHAR(10)&ScriptText!$C$1)","v":""},{"$f":"IF(OrigTable!G1580=\"\",\"\",ScriptText!$B$1&CHAR(10)&ScriptText!$D$1)","v":""},{"$f":"IF(OrigTable!G1580=\"\",\"\",TEXT(OrigTable!G1580,\"00\"))","v":""},{"$f":"IF(OrigTable!G1580=\"\",\"\",ScriptText!$E$1&CHAR(10)&ScriptText!$C$1)","v":""},0]
["\n\n\n",{"$f":"IF(OrigTable!A1581=\"\",\"\",ScriptText!$B$1&CHAR(10)&ScriptText!$D$1)","v":""},{"$f":"IF(OrigTable!A1581=\"\",\"\",TEXT(OrigTable!A1581,\"00\"))","v":""},{"$f":"IF(OrigTable!A1581=\"\",\"\",ScriptText!$E$1&CHAR(10)&ScriptText!$C$1)","v":""},{"$f":"IF(OrigTable!B1581=\"\",\"\",ScriptText!$B$1&CHAR(10)&ScriptText!$D$1)","v":""},{"$f":"IF(OrigTable!B1581=\"\",\"\",TEXT(OrigTable!B1581,\"00\"))","v":""},{"$f":"IF(OrigTable!B1581=\"\",\"\",ScriptText!$E$1&CHAR(10)&ScriptText!C1576)","v":""},{"$f":"IF(OrigTable!C1581=\"\",\"\",ScriptText!$B$1&CHAR(10)&ScriptText!$D$1)","v":""},{"$f":"IF(OrigTable!C1581=\"\",\"\",IF(LEN(OrigTable!C1581)>255,LEFT(OrigTable!C1581,250)&\". . .\",OrigTable!C1581))","v":""},{"$f":"IF(OrigTable!C1581=\"\",\"\",ScriptText!$E$1&CHAR(10)&ScriptText!$C$1)","v":""},{"$f":"IF(OrigTable!D1581=\"\",\"\",ScriptText!$B$1&CHAR(10)&ScriptText!$D$1)","v":""},{"$f":"IF(OrigTable!D1581=\"\",\"\",TEXT(OrigTable!D1581,\"00\"))","v":""},{"$f":"IF(OrigTable!D1581=\"\",\"\",ScriptText!$E$1&CHAR(10)&ScriptText!$C$1)","v":""},{"$f":"IF(OrigTable!E1581=\"\",\"\",ScriptText!$B$1&CHAR(10)&ScriptText!$D$1)","v":""},{"$f":"IF(OrigTable!E1581=\"\",\"\",TEXT(OrigTable!E1581,\"00\"))","v":""},{"$f":"IF(OrigTable!E1581=\"\",\"\",ScriptText!$E$1&CHAR(10)&ScriptText!$C$1)","v":""},{"$f":"IF(OrigTable!F1581=\"\",\"\",ScriptText!$B$1&CHAR(10)&ScriptText!$D$1)","v":""},{"$f":"IF(OrigTable!F1581=\"\",\"\",TEXT(OrigTable!F1581,\"00\"))","v":""},{"$f":"IF(OrigTable!F1581=\"\",\"\",ScriptText!$E$1&CHAR(10)&ScriptText!$C$1)","v":""},{"$f":"IF(OrigTable!G1581=\"\",\"\",ScriptText!$B$1&CHAR(10)&ScriptText!$D$1)","v":""},{"$f":"IF(OrigTable!G1581=\"\",\"\",TEXT(OrigTable!G1581,\"00\"))","v":""},{"$f":"IF(OrigTable!G1581=\"\",\"\",ScriptText!$E$1&CHAR(10)&ScriptText!$C$1)","v":""},0]
["\n\n\n",{"$f":"IF(OrigTable!A1582=\"\",\"\",ScriptText!$B$1&CHAR(10)&ScriptText!$D$1)","v":""},{"$f":"IF(OrigTable!A1582=\"\",\"\",TEXT(OrigTable!A1582,\"00\"))","v":""},{"$f":"IF(OrigTable!A1582=\"\",\"\",ScriptText!$E$1&CHAR(10)&ScriptText!$C$1)","v":""},{"$f":"IF(OrigTable!B1582=\"\",\"\",ScriptText!$B$1&CHAR(10)&ScriptText!$D$1)","v":""},{"$f":"IF(OrigTable!B1582=\"\",\"\",TEXT(OrigTable!B1582,\"00\"))","v":""},{"$f":"IF(OrigTable!B1582=\"\",\"\",ScriptText!$E$1&CHAR(10)&ScriptText!C1577)","v":""},{"$f":"IF(OrigTable!C1582=\"\",\"\",ScriptText!$B$1&CHAR(10)&ScriptText!$D$1)","v":""},{"$f":"IF(OrigTable!C1582=\"\",\"\",IF(LEN(OrigTable!C1582)>255,LEFT(OrigTable!C1582,250)&\". . .\",OrigTable!C1582))","v":""},{"$f":"IF(OrigTable!C1582=\"\",\"\",ScriptText!$E$1&CHAR(10)&ScriptText!$C$1)","v":""},{"$f":"IF(OrigTable!D1582=\"\",\"\",ScriptText!$B$1&CHAR(10)&ScriptText!$D$1)","v":""},{"$f":"IF(OrigTable!D1582=\"\",\"\",TEXT(OrigTable!D1582,\"00\"))","v":""},{"$f":"IF(OrigTable!D1582=\"\",\"\",ScriptText!$E$1&CHAR(10)&ScriptText!$C$1)","v":""},{"$f":"IF(OrigTable!E1582=\"\",\"\",ScriptText!$B$1&CHAR(10)&ScriptText!$D$1)","v":""},{"$f":"IF(OrigTable!E1582=\"\",\"\",TEXT(OrigTable!E1582,\"00\"))","v":""},{"$f":"IF(OrigTable!E1582=\"\",\"\",ScriptText!$E$1&CHAR(10)&ScriptText!$C$1)","v":""},{"$f":"IF(OrigTable!F1582=\"\",\"\",ScriptText!$B$1&CHAR(10)&ScriptText!$D$1)","v":""},{"$f":"IF(OrigTable!F1582=\"\",\"\",TEXT(OrigTable!F1582,\"00\"))","v":""},{"$f":"IF(OrigTable!F1582=\"\",\"\",ScriptText!$E$1&CHAR(10)&ScriptText!$C$1)","v":""},{"$f":"IF(OrigTable!G1582=\"\",\"\",ScriptText!$B$1&CHAR(10)&ScriptText!$D$1)","v":""},{"$f":"IF(OrigTable!G1582=\"\",\"\",TEXT(OrigTable!G1582,\"00\"))","v":""},{"$f":"IF(OrigTable!G1582=\"\",\"\",ScriptText!$E$1&CHAR(10)&ScriptText!$C$1)","v":""},0]
["\n\n\n",{"$f":"IF(OrigTable!A1583=\"\",\"\",ScriptText!$B$1&CHAR(10)&ScriptText!$D$1)","v":""},{"$f":"IF(OrigTable!A1583=\"\",\"\",TEXT(OrigTable!A1583,\"00\"))","v":""},{"$f":"IF(OrigTable!A1583=\"\",\"\",ScriptText!$E$1&CHAR(10)&ScriptText!$C$1)","v":""},{"$f":"IF(OrigTable!B1583=\"\",\"\",ScriptText!$B$1&CHAR(10)&ScriptText!$D$1)","v":""},{"$f":"IF(OrigTable!B1583=\"\",\"\",TEXT(OrigTable!B1583,\"00\"))","v":""},{"$f":"IF(OrigTable!B1583=\"\",\"\",ScriptText!$E$1&CHAR(10)&ScriptText!C1578)","v":""},{"$f":"IF(OrigTable!C1583=\"\",\"\",ScriptText!$B$1&CHAR(10)&ScriptText!$D$1)","v":""},{"$f":"IF(OrigTable!C1583=\"\",\"\",IF(LEN(OrigTable!C1583)>255,LEFT(OrigTable!C1583,250)&\". . .\",OrigTable!C1583))","v":""},{"$f":"IF(OrigTable!C1583=\"\",\"\",ScriptText!$E$1&CHAR(10)&ScriptText!$C$1)","v":""},{"$f":"IF(OrigTable!D1583=\"\",\"\",ScriptText!$B$1&CHAR(10)&ScriptText!$D$1)","v":""},{"$f":"IF(OrigTable!D1583=\"\",\"\",TEXT(OrigTable!D1583,\"00\"))","v":""},{"$f":"IF(OrigTable!D1583=\"\",\"\",ScriptText!$E$1&CHAR(10)&ScriptText!$C$1)","v":""},{"$f":"IF(OrigTable!E1583=\"\",\"\",ScriptText!$B$1&CHAR(10)&ScriptText!$D$1)","v":""},{"$f":"IF(OrigTable!E1583=\"\",\"\",TEXT(OrigTable!E1583,\"00\"))","v":""},{"$f":"IF(OrigTable!E1583=\"\",\"\",ScriptText!$E$1&CHAR(10)&ScriptText!$C$1)","v":""},{"$f":"IF(OrigTable!F1583=\"\",\"\",ScriptText!$B$1&CHAR(10)&ScriptText!$D$1)","v":""},{"$f":"IF(OrigTable!F1583=\"\",\"\",TEXT(OrigTable!F1583,\"00\"))","v":""},{"$f":"IF(OrigTable!F1583=\"\",\"\",ScriptText!$E$1&CHAR(10)&ScriptText!$C$1)","v":""},{"$f":"IF(OrigTable!G1583=\"\",\"\",ScriptText!$B$1&CHAR(10)&ScriptText!$D$1)","v":""},{"$f":"IF(OrigTable!G1583=\"\",\"\",TEXT(OrigTable!G1583,\"00\"))","v":""},{"$f":"IF(OrigTable!G1583=\"\",\"\",ScriptText!$E$1&CHAR(10)&ScriptText!$C$1)","v":""},0]
["\n\n\n",{"$f":"IF(OrigTable!A1584=\"\",\"\",ScriptText!$B$1&CHAR(10)&ScriptText!$D$1)","v":""},{"$f":"IF(OrigTable!A1584=\"\",\"\",TEXT(OrigTable!A1584,\"00\"))","v":""},{"$f":"IF(OrigTable!A1584=\"\",\"\",ScriptText!$E$1&CHAR(10)&ScriptText!$C$1)","v":""},{"$f":"IF(OrigTable!B1584=\"\",\"\",ScriptText!$B$1&CHAR(10)&ScriptText!$D$1)","v":""},{"$f":"IF(OrigTable!B1584=\"\",\"\",TEXT(OrigTable!B1584,\"00\"))","v":""},{"$f":"IF(OrigTable!B1584=\"\",\"\",ScriptText!$E$1&CHAR(10)&ScriptText!C1579)","v":""},{"$f":"IF(OrigTable!C1584=\"\",\"\",ScriptText!$B$1&CHAR(10)&ScriptText!$D$1)","v":""},{"$f":"IF(OrigTable!C1584=\"\",\"\",IF(LEN(OrigTable!C1584)>255,LEFT(OrigTable!C1584,250)&\". . .\",OrigTable!C1584))","v":""},{"$f":"IF(OrigTable!C1584=\"\",\"\",ScriptText!$E$1&CHAR(10)&ScriptText!$C$1)","v":""},{"$f":"IF(OrigTable!D1584=\"\",\"\",ScriptText!$B$1&CHAR(10)&ScriptText!$D$1)","v":""},{"$f":"IF(OrigTable!D1584=\"\",\"\",TEXT(OrigTable!D1584,\"00\"))","v":""},{"$f":"IF(OrigTable!D1584=\"\",\"\",ScriptText!$E$1&CHAR(10)&ScriptText!$C$1)","v":""},{"$f":"IF(OrigTable!E1584=\"\",\"\",ScriptText!$B$1&CHAR(10)&ScriptText!$D$1)","v":""},{"$f":"IF(OrigTable!E1584=\"\",\"\",TEXT(OrigTable!E1584,\"00\"))","v":""},{"$f":"IF(OrigTable!E1584=\"\",\"\",ScriptText!$E$1&CHAR(10)&ScriptText!$C$1)","v":""},{"$f":"IF(OrigTable!F1584=\"\",\"\",ScriptText!$B$1&CHAR(10)&ScriptText!$D$1)","v":""},{"$f":"IF(OrigTable!F1584=\"\",\"\",TEXT(OrigTable!F1584,\"00\"))","v":""},{"$f":"IF(OrigTable!F1584=\"\",\"\",ScriptText!$E$1&CHAR(10)&ScriptText!$C$1)","v":""},{"$f":"IF(OrigTable!G1584=\"\",\"\",ScriptText!$B$1&CHAR(10)&ScriptText!$D$1)","v":""},{"$f":"IF(OrigTable!G1584=\"\",\"\",TEXT(OrigTable!G1584,\"00\"))","v":""},{"$f":"IF(OrigTable!G1584=\"\",\"\",ScriptText!$E$1&CHAR(10)&ScriptText!$C$1)","v":""},0]
["\n\n\n",{"$f":"IF(OrigTable!A1585=\"\",\"\",ScriptText!$B$1&CHAR(10)&ScriptText!$D$1)","v":""},{"$f":"IF(OrigTable!A1585=\"\",\"\",TEXT(OrigTable!A1585,\"00\"))","v":""},{"$f":"IF(OrigTable!A1585=\"\",\"\",ScriptText!$E$1&CHAR(10)&ScriptText!$C$1)","v":""},{"$f":"IF(OrigTable!B1585=\"\",\"\",ScriptText!$B$1&CHAR(10)&ScriptText!$D$1)","v":""},{"$f":"IF(OrigTable!B1585=\"\",\"\",TEXT(OrigTable!B1585,\"00\"))","v":""},{"$f":"IF(OrigTable!B1585=\"\",\"\",ScriptText!$E$1&CHAR(10)&ScriptText!C1580)","v":""},{"$f":"IF(OrigTable!C1585=\"\",\"\",ScriptText!$B$1&CHAR(10)&ScriptText!$D$1)","v":""},{"$f":"IF(OrigTable!C1585=\"\",\"\",IF(LEN(OrigTable!C1585)>255,LEFT(OrigTable!C1585,250)&\". . .\",OrigTable!C1585))","v":""},{"$f":"IF(OrigTable!C1585=\"\",\"\",ScriptText!$E$1&CHAR(10)&ScriptText!$C$1)","v":""},{"$f":"IF(OrigTable!D1585=\"\",\"\",ScriptText!$B$1&CHAR(10)&ScriptText!$D$1)","v":""},{"$f":"IF(OrigTable!D1585=\"\",\"\",TEXT(OrigTable!D1585,\"00\"))","v":""},{"$f":"IF(OrigTable!D1585=\"\",\"\",ScriptText!$E$1&CHAR(10)&ScriptText!$C$1)","v":""},{"$f":"IF(OrigTable!E1585=\"\",\"\",ScriptText!$B$1&CHAR(10)&ScriptText!$D$1)","v":""},{"$f":"IF(OrigTable!E1585=\"\",\"\",TEXT(OrigTable!E1585,\"00\"))","v":""},{"$f":"IF(OrigTable!E1585=\"\",\"\",ScriptText!$E$1&CHAR(10)&ScriptText!$C$1)","v":""},{"$f":"IF(OrigTable!F1585=\"\",\"\",ScriptText!$B$1&CHAR(10)&ScriptText!$D$1)","v":""},{"$f":"IF(OrigTable!F1585=\"\",\"\",TEXT(OrigTable!F1585,\"00\"))","v":""},{"$f":"IF(OrigTable!F1585=\"\",\"\",ScriptText!$E$1&CHAR(10)&ScriptText!$C$1)","v":""},{"$f":"IF(OrigTable!G1585=\"\",\"\",ScriptText!$B$1&CHAR(10)&ScriptText!$D$1)","v":""},{"$f":"IF(OrigTable!G1585=\"\",\"\",TEXT(OrigTable!G1585,\"00\"))","v":""},{"$f":"IF(OrigTable!G1585=\"\",\"\",ScriptText!$E$1&CHAR(10)&ScriptText!$C$1)","v":""},0]
["\n\n\n",{"$f":"IF(OrigTable!A1586=\"\",\"\",ScriptText!$B$1&CHAR(10)&ScriptText!$D$1)","v":""},{"$f":"IF(OrigTable!A1586=\"\",\"\",TEXT(OrigTable!A1586,\"00\"))","v":""},{"$f":"IF(OrigTable!A1586=\"\",\"\",ScriptText!$E$1&CHAR(10)&ScriptText!$C$1)","v":""},{"$f":"IF(OrigTable!B1586=\"\",\"\",ScriptText!$B$1&CHAR(10)&ScriptText!$D$1)","v":""},{"$f":"IF(OrigTable!B1586=\"\",\"\",TEXT(OrigTable!B1586,\"00\"))","v":""},{"$f":"IF(OrigTable!B1586=\"\",\"\",ScriptText!$E$1&CHAR(10)&ScriptText!C1581)","v":""},{"$f":"IF(OrigTable!C1586=\"\",\"\",ScriptText!$B$1&CHAR(10)&ScriptText!$D$1)","v":""},{"$f":"IF(OrigTable!C1586=\"\",\"\",IF(LEN(OrigTable!C1586)>255,LEFT(OrigTable!C1586,250)&\". . .\",OrigTable!C1586))","v":""},{"$f":"IF(OrigTable!C1586=\"\",\"\",ScriptText!$E$1&CHAR(10)&ScriptText!$C$1)","v":""},{"$f":"IF(OrigTable!D1586=\"\",\"\",ScriptText!$B$1&CHAR(10)&ScriptText!$D$1)","v":""},{"$f":"IF(OrigTable!D1586=\"\",\"\",TEXT(OrigTable!D1586,\"00\"))","v":""},{"$f":"IF(OrigTable!D1586=\"\",\"\",ScriptText!$E$1&CHAR(10)&ScriptText!$C$1)","v":""},{"$f":"IF(OrigTable!E1586=\"\",\"\",ScriptText!$B$1&CHAR(10)&ScriptText!$D$1)","v":""},{"$f":"IF(OrigTable!E1586=\"\",\"\",TEXT(OrigTable!E1586,\"00\"))","v":""},{"$f":"IF(OrigTable!E1586=\"\",\"\",ScriptText!$E$1&CHAR(10)&ScriptText!$C$1)","v":""},{"$f":"IF(OrigTable!F1586=\"\",\"\",ScriptText!$B$1&CHAR(10)&ScriptText!$D$1)","v":""},{"$f":"IF(OrigTable!F1586=\"\",\"\",TEXT(OrigTable!F1586,\"00\"))","v":""},{"$f":"IF(OrigTable!F1586=\"\",\"\",ScriptText!$E$1&CHAR(10)&ScriptText!$C$1)","v":""},{"$f":"IF(OrigTable!G1586=\"\",\"\",ScriptText!$B$1&CHAR(10)&ScriptText!$D$1)","v":""},{"$f":"IF(OrigTable!G1586=\"\",\"\",TEXT(OrigTable!G1586,\"00\"))","v":""},{"$f":"IF(OrigTable!G1586=\"\",\"\",ScriptText!$E$1&CHAR(10)&ScriptText!$C$1)","v":""},0]
["\n\n\n",{"$f":"IF(OrigTable!A1587=\"\",\"\",ScriptText!$B$1&CHAR(10)&ScriptText!$D$1)","v":""},{"$f":"IF(OrigTable!A1587=\"\",\"\",TEXT(OrigTable!A1587,\"00\"))","v":""},{"$f":"IF(OrigTable!A1587=\"\",\"\",ScriptText!$E$1&CHAR(10)&ScriptText!$C$1)","v":""},{"$f":"IF(OrigTable!B1587=\"\",\"\",ScriptText!$B$1&CHAR(10)&ScriptText!$D$1)","v":""},{"$f":"IF(OrigTable!B1587=\"\",\"\",TEXT(OrigTable!B1587,\"00\"))","v":""},{"$f":"IF(OrigTable!B1587=\"\",\"\",ScriptText!$E$1&CHAR(10)&ScriptText!C1582)","v":""},{"$f":"IF(OrigTable!C1587=\"\",\"\",ScriptText!$B$1&CHAR(10)&ScriptText!$D$1)","v":""},{"$f":"IF(OrigTable!C1587=\"\",\"\",IF(LEN(OrigTable!C1587)>255,LEFT(OrigTable!C1587,250)&\". . .\",OrigTable!C1587))","v":""},{"$f":"IF(OrigTable!C1587=\"\",\"\",ScriptText!$E$1&CHAR(10)&ScriptText!$C$1)","v":""},{"$f":"IF(OrigTable!D1587=\"\",\"\",ScriptText!$B$1&CHAR(10)&ScriptText!$D$1)","v":""},{"$f":"IF(OrigTable!D1587=\"\",\"\",TEXT(OrigTable!D1587,\"00\"))","v":""},{"$f":"IF(OrigTable!D1587=\"\",\"\",ScriptText!$E$1&CHAR(10)&ScriptText!$C$1)","v":""},{"$f":"IF(OrigTable!E1587=\"\",\"\",ScriptText!$B$1&CHAR(10)&ScriptText!$D$1)","v":""},{"$f":"IF(OrigTable!E1587=\"\",\"\",TEXT(OrigTable!E1587,\"00\"))","v":""},{"$f":"IF(OrigTable!E1587=\"\",\"\",ScriptText!$E$1&CHAR(10)&ScriptText!$C$1)","v":""},{"$f":"IF(OrigTable!F1587=\"\",\"\",ScriptText!$B$1&CHAR(10)&ScriptText!$D$1)","v":""},{"$f":"IF(OrigTable!F1587=\"\",\"\",TEXT(OrigTable!F1587,\"00\"))","v":""},{"$f":"IF(OrigTable!F1587=\"\",\"\",ScriptText!$E$1&CHAR(10)&ScriptText!$C$1)","v":""},{"$f":"IF(OrigTable!G1587=\"\",\"\",ScriptText!$B$1&CHAR(10)&ScriptText!$D$1)","v":""},{"$f":"IF(OrigTable!G1587=\"\",\"\",TEXT(OrigTable!G1587,\"00\"))","v":""},{"$f":"IF(OrigTable!G1587=\"\",\"\",ScriptText!$E$1&CHAR(10)&ScriptText!$C$1)","v":""},0]
["\n\n\n",{"$f":"IF(OrigTable!A1588=\"\",\"\",ScriptText!$B$1&CHAR(10)&ScriptText!$D$1)","v":""},{"$f":"IF(OrigTable!A1588=\"\",\"\",TEXT(OrigTable!A1588,\"00\"))","v":""},{"$f":"IF(OrigTable!A1588=\"\",\"\",ScriptText!$E$1&CHAR(10)&ScriptText!$C$1)","v":""},{"$f":"IF(OrigTable!B1588=\"\",\"\",ScriptText!$B$1&CHAR(10)&ScriptText!$D$1)","v":""},{"$f":"IF(OrigTable!B1588=\"\",\"\",TEXT(OrigTable!B1588,\"00\"))","v":""},{"$f":"IF(OrigTable!B1588=\"\",\"\",ScriptText!$E$1&CHAR(10)&ScriptText!C1583)","v":""},{"$f":"IF(OrigTable!C1588=\"\",\"\",ScriptText!$B$1&CHAR(10)&ScriptText!$D$1)","v":""},{"$f":"IF(OrigTable!C1588=\"\",\"\",IF(LEN(OrigTable!C1588)>255,LEFT(OrigTable!C1588,250)&\". . .\",OrigTable!C1588))","v":""},{"$f":"IF(OrigTable!C1588=\"\",\"\",ScriptText!$E$1&CHAR(10)&ScriptText!$C$1)","v":""},{"$f":"IF(OrigTable!D1588=\"\",\"\",ScriptText!$B$1&CHAR(10)&ScriptText!$D$1)","v":""},{"$f":"IF(OrigTable!D1588=\"\",\"\",TEXT(OrigTable!D1588,\"00\"))","v":""},{"$f":"IF(OrigTable!D1588=\"\",\"\",ScriptText!$E$1&CHAR(10)&ScriptText!$C$1)","v":""},{"$f":"IF(OrigTable!E1588=\"\",\"\",ScriptText!$B$1&CHAR(10)&ScriptText!$D$1)","v":""},{"$f":"IF(OrigTable!E1588=\"\",\"\",TEXT(OrigTable!E1588,\"00\"))","v":""},{"$f":"IF(OrigTable!E1588=\"\",\"\",ScriptText!$E$1&CHAR(10)&ScriptText!$C$1)","v":""},{"$f":"IF(OrigTable!F1588=\"\",\"\",ScriptText!$B$1&CHAR(10)&ScriptText!$D$1)","v":""},{"$f":"IF(OrigTable!F1588=\"\",\"\",TEXT(OrigTable!F1588,\"00\"))","v":""},{"$f":"IF(OrigTable!F1588=\"\",\"\",ScriptText!$E$1&CHAR(10)&ScriptText!$C$1)","v":""},{"$f":"IF(OrigTable!G1588=\"\",\"\",ScriptText!$B$1&CHAR(10)&ScriptText!$D$1)","v":""},{"$f":"IF(OrigTable!G1588=\"\",\"\",TEXT(OrigTable!G1588,\"00\"))","v":""},{"$f":"IF(OrigTable!G1588=\"\",\"\",ScriptText!$E$1&CHAR(10)&ScriptText!$C$1)","v":""},0]
["\n\n\n",{"$f":"IF(OrigTable!A1589=\"\",\"\",ScriptText!$B$1&CHAR(10)&ScriptText!$D$1)","v":""},{"$f":"IF(OrigTable!A1589=\"\",\"\",TEXT(OrigTable!A1589,\"00\"))","v":""},{"$f":"IF(OrigTable!A1589=\"\",\"\",ScriptText!$E$1&CHAR(10)&ScriptText!$C$1)","v":""},{"$f":"IF(OrigTable!B1589=\"\",\"\",ScriptText!$B$1&CHAR(10)&ScriptText!$D$1)","v":""},{"$f":"IF(OrigTable!B1589=\"\",\"\",TEXT(OrigTable!B1589,\"00\"))","v":""},{"$f":"IF(OrigTable!B1589=\"\",\"\",ScriptText!$E$1&CHAR(10)&ScriptText!C1584)","v":""},{"$f":"IF(OrigTable!C1589=\"\",\"\",ScriptText!$B$1&CHAR(10)&ScriptText!$D$1)","v":""},{"$f":"IF(OrigTable!C1589=\"\",\"\",IF(LEN(OrigTable!C1589)>255,LEFT(OrigTable!C1589,250)&\". . .\",OrigTable!C1589))","v":""},{"$f":"IF(OrigTable!C1589=\"\",\"\",ScriptText!$E$1&CHAR(10)&ScriptText!$C$1)","v":""},{"$f":"IF(OrigTable!D1589=\"\",\"\",ScriptText!$B$1&CHAR(10)&ScriptText!$D$1)","v":""},{"$f":"IF(OrigTable!D1589=\"\",\"\",TEXT(OrigTable!D1589,\"00\"))","v":""},{"$f":"IF(OrigTable!D1589=\"\",\"\",ScriptText!$E$1&CHAR(10)&ScriptText!$C$1)","v":""},{"$f":"IF(OrigTable!E1589=\"\",\"\",ScriptText!$B$1&CHAR(10)&ScriptText!$D$1)","v":""},{"$f":"IF(OrigTable!E1589=\"\",\"\",TEXT(OrigTable!E1589,\"00\"))","v":""},{"$f":"IF(OrigTable!E1589=\"\",\"\",ScriptText!$E$1&CHAR(10)&ScriptText!$C$1)","v":""},{"$f":"IF(OrigTable!F1589=\"\",\"\",ScriptText!$B$1&CHAR(10)&ScriptText!$D$1)","v":""},{"$f":"IF(OrigTable!F1589=\"\",\"\",TEXT(OrigTable!F1589,\"00\"))","v":""},{"$f":"IF(OrigTable!F1589=\"\",\"\",ScriptText!$E$1&CHAR(10)&ScriptText!$C$1)","v":""},{"$f":"IF(OrigTable!G1589=\"\",\"\",ScriptText!$B$1&CHAR(10)&ScriptText!$D$1)","v":""},{"$f":"IF(OrigTable!G1589=\"\",\"\",TEXT(OrigTable!G1589,\"00\"))","v":""},{"$f":"IF(OrigTable!G1589=\"\",\"\",ScriptText!$E$1&CHAR(10)&ScriptText!$C$1)","v":""},0]
["\n\n\n",{"$f":"IF(OrigTable!A1590=\"\",\"\",ScriptText!$B$1&CHAR(10)&ScriptText!$D$1)","v":""},{"$f":"IF(OrigTable!A1590=\"\",\"\",TEXT(OrigTable!A1590,\"00\"))","v":""},{"$f":"IF(OrigTable!A1590=\"\",\"\",ScriptText!$E$1&CHAR(10)&ScriptText!$C$1)","v":""},{"$f":"IF(OrigTable!B1590=\"\",\"\",ScriptText!$B$1&CHAR(10)&ScriptText!$D$1)","v":""},{"$f":"IF(OrigTable!B1590=\"\",\"\",TEXT(OrigTable!B1590,\"00\"))","v":""},{"$f":"IF(OrigTable!B1590=\"\",\"\",ScriptText!$E$1&CHAR(10)&ScriptText!C1585)","v":""},{"$f":"IF(OrigTable!C1590=\"\",\"\",ScriptText!$B$1&CHAR(10)&ScriptText!$D$1)","v":""},{"$f":"IF(OrigTable!C1590=\"\",\"\",IF(LEN(OrigTable!C1590)>255,LEFT(OrigTable!C1590,250)&\". . .\",OrigTable!C1590))","v":""},{"$f":"IF(OrigTable!C1590=\"\",\"\",ScriptText!$E$1&CHAR(10)&ScriptText!$C$1)","v":""},{"$f":"IF(OrigTable!D1590=\"\",\"\",ScriptText!$B$1&CHAR(10)&ScriptText!$D$1)","v":""},{"$f":"IF(OrigTable!D1590=\"\",\"\",TEXT(OrigTable!D1590,\"00\"))","v":""},{"$f":"IF(OrigTable!D1590=\"\",\"\",ScriptText!$E$1&CHAR(10)&ScriptText!$C$1)","v":""},{"$f":"IF(OrigTable!E1590=\"\",\"\",ScriptText!$B$1&CHAR(10)&ScriptText!$D$1)","v":""},{"$f":"IF(OrigTable!E1590=\"\",\"\",TEXT(OrigTable!E1590,\"00\"))","v":""},{"$f":"IF(OrigTable!E1590=\"\",\"\",ScriptText!$E$1&CHAR(10)&ScriptText!$C$1)","v":""},{"$f":"IF(OrigTable!F1590=\"\",\"\",ScriptText!$B$1&CHAR(10)&ScriptText!$D$1)","v":""},{"$f":"IF(OrigTable!F1590=\"\",\"\",TEXT(OrigTable!F1590,\"00\"))","v":""},{"$f":"IF(OrigTable!F1590=\"\",\"\",ScriptText!$E$1&CHAR(10)&ScriptText!$C$1)","v":""},{"$f":"IF(OrigTable!G1590=\"\",\"\",ScriptText!$B$1&CHAR(10)&ScriptText!$D$1)","v":""},{"$f":"IF(OrigTable!G1590=\"\",\"\",TEXT(OrigTable!G1590,\"00\"))","v":""},{"$f":"IF(OrigTable!G1590=\"\",\"\",ScriptText!$E$1&CHAR(10)&ScriptText!$C$1)","v":""},0]
["\n\n\n",{"$f":"IF(OrigTable!A1591=\"\",\"\",ScriptText!$B$1&CHAR(10)&ScriptText!$D$1)","v":""},{"$f":"IF(OrigTable!A1591=\"\",\"\",TEXT(OrigTable!A1591,\"00\"))","v":""},{"$f":"IF(OrigTable!A1591=\"\",\"\",ScriptText!$E$1&CHAR(10)&ScriptText!$C$1)","v":""},{"$f":"IF(OrigTable!B1591=\"\",\"\",ScriptText!$B$1&CHAR(10)&ScriptText!$D$1)","v":""},{"$f":"IF(OrigTable!B1591=\"\",\"\",TEXT(OrigTable!B1591,\"00\"))","v":""},{"$f":"IF(OrigTable!B1591=\"\",\"\",ScriptText!$E$1&CHAR(10)&ScriptText!C1586)","v":""},{"$f":"IF(OrigTable!C1591=\"\",\"\",ScriptText!$B$1&CHAR(10)&ScriptText!$D$1)","v":""},{"$f":"IF(OrigTable!C1591=\"\",\"\",IF(LEN(OrigTable!C1591)>255,LEFT(OrigTable!C1591,250)&\". . .\",OrigTable!C1591))","v":""},{"$f":"IF(OrigTable!C1591=\"\",\"\",ScriptText!$E$1&CHAR(10)&ScriptText!$C$1)","v":""},{"$f":"IF(OrigTable!D1591=\"\",\"\",ScriptText!$B$1&CHAR(10)&ScriptText!$D$1)","v":""},{"$f":"IF(OrigTable!D1591=\"\",\"\",TEXT(OrigTable!D1591,\"00\"))","v":""},{"$f":"IF(OrigTable!D1591=\"\",\"\",ScriptText!$E$1&CHAR(10)&ScriptText!$C$1)","v":""},{"$f":"IF(OrigTable!E1591=\"\",\"\",ScriptText!$B$1&CHAR(10)&ScriptText!$D$1)","v":""},{"$f":"IF(OrigTable!E1591=\"\",\"\",TEXT(OrigTable!E1591,\"00\"))","v":""},{"$f":"IF(OrigTable!E1591=\"\",\"\",ScriptText!$E$1&CHAR(10)&ScriptText!$C$1)","v":""},{"$f":"IF(OrigTable!F1591=\"\",\"\",ScriptText!$B$1&CHAR(10)&ScriptText!$D$1)","v":""},{"$f":"IF(OrigTable!F1591=\"\",\"\",TEXT(OrigTable!F1591,\"00\"))","v":""},{"$f":"IF(OrigTable!F1591=\"\",\"\",ScriptText!$E$1&CHAR(10)&ScriptText!$C$1)","v":""},{"$f":"IF(OrigTable!G1591=\"\",\"\",ScriptText!$B$1&CHAR(10)&ScriptText!$D$1)","v":""},{"$f":"IF(OrigTable!G1591=\"\",\"\",TEXT(OrigTable!G1591,\"00\"))","v":""},{"$f":"IF(OrigTable!G1591=\"\",\"\",ScriptText!$E$1&CHAR(10)&ScriptText!$C$1)","v":""},0]
["\n\n\n",{"$f":"IF(OrigTable!A1592=\"\",\"\",ScriptText!$B$1&CHAR(10)&ScriptText!$D$1)","v":""},{"$f":"IF(OrigTable!A1592=\"\",\"\",TEXT(OrigTable!A1592,\"00\"))","v":""},{"$f":"IF(OrigTable!A1592=\"\",\"\",ScriptText!$E$1&CHAR(10)&ScriptText!$C$1)","v":""},{"$f":"IF(OrigTable!B1592=\"\",\"\",ScriptText!$B$1&CHAR(10)&ScriptText!$D$1)","v":""},{"$f":"IF(OrigTable!B1592=\"\",\"\",TEXT(OrigTable!B1592,\"00\"))","v":""},{"$f":"IF(OrigTable!B1592=\"\",\"\",ScriptText!$E$1&CHAR(10)&ScriptText!C1587)","v":""},{"$f":"IF(OrigTable!C1592=\"\",\"\",ScriptText!$B$1&CHAR(10)&ScriptText!$D$1)","v":""},{"$f":"IF(OrigTable!C1592=\"\",\"\",IF(LEN(OrigTable!C1592)>255,LEFT(OrigTable!C1592,250)&\". . .\",OrigTable!C1592))","v":""},{"$f":"IF(OrigTable!C1592=\"\",\"\",ScriptText!$E$1&CHAR(10)&ScriptText!$C$1)","v":""},{"$f":"IF(OrigTable!D1592=\"\",\"\",ScriptText!$B$1&CHAR(10)&ScriptText!$D$1)","v":""},{"$f":"IF(OrigTable!D1592=\"\",\"\",TEXT(OrigTable!D1592,\"00\"))","v":""},{"$f":"IF(OrigTable!D1592=\"\",\"\",ScriptText!$E$1&CHAR(10)&ScriptText!$C$1)","v":""},{"$f":"IF(OrigTable!E1592=\"\",\"\",ScriptText!$B$1&CHAR(10)&ScriptText!$D$1)","v":""},{"$f":"IF(OrigTable!E1592=\"\",\"\",TEXT(OrigTable!E1592,\"00\"))","v":""},{"$f":"IF(OrigTable!E1592=\"\",\"\",ScriptText!$E$1&CHAR(10)&ScriptText!$C$1)","v":""},{"$f":"IF(OrigTable!F1592=\"\",\"\",ScriptText!$B$1&CHAR(10)&ScriptText!$D$1)","v":""},{"$f":"IF(OrigTable!F1592=\"\",\"\",TEXT(OrigTable!F1592,\"00\"))","v":""},{"$f":"IF(OrigTable!F1592=\"\",\"\",ScriptText!$E$1&CHAR(10)&ScriptText!$C$1)","v":""},{"$f":"IF(OrigTable!G1592=\"\",\"\",ScriptText!$B$1&CHAR(10)&ScriptText!$D$1)","v":""},{"$f":"IF(OrigTable!G1592=\"\",\"\",TEXT(OrigTable!G1592,\"00\"))","v":""},{"$f":"IF(OrigTable!G1592=\"\",\"\",ScriptText!$E$1&CHAR(10)&ScriptText!$C$1)","v":""},0]
["\n\n\n",{"$f":"IF(OrigTable!A1593=\"\",\"\",ScriptText!$B$1&CHAR(10)&ScriptText!$D$1)","v":""},{"$f":"IF(OrigTable!A1593=\"\",\"\",TEXT(OrigTable!A1593,\"00\"))","v":""},{"$f":"IF(OrigTable!A1593=\"\",\"\",ScriptText!$E$1&CHAR(10)&ScriptText!$C$1)","v":""},{"$f":"IF(OrigTable!B1593=\"\",\"\",ScriptText!$B$1&CHAR(10)&ScriptText!$D$1)","v":""},{"$f":"IF(OrigTable!B1593=\"\",\"\",TEXT(OrigTable!B1593,\"00\"))","v":""},{"$f":"IF(OrigTable!B1593=\"\",\"\",ScriptText!$E$1&CHAR(10)&ScriptText!C1588)","v":""},{"$f":"IF(OrigTable!C1593=\"\",\"\",ScriptText!$B$1&CHAR(10)&ScriptText!$D$1)","v":""},{"$f":"IF(OrigTable!C1593=\"\",\"\",IF(LEN(OrigTable!C1593)>255,LEFT(OrigTable!C1593,250)&\". . .\",OrigTable!C1593))","v":""},{"$f":"IF(OrigTable!C1593=\"\",\"\",ScriptText!$E$1&CHAR(10)&ScriptText!$C$1)","v":""},{"$f":"IF(OrigTable!D1593=\"\",\"\",ScriptText!$B$1&CHAR(10)&ScriptText!$D$1)","v":""},{"$f":"IF(OrigTable!D1593=\"\",\"\",TEXT(OrigTable!D1593,\"00\"))","v":""},{"$f":"IF(OrigTable!D1593=\"\",\"\",ScriptText!$E$1&CHAR(10)&ScriptText!$C$1)","v":""},{"$f":"IF(OrigTable!E1593=\"\",\"\",ScriptText!$B$1&CHAR(10)&ScriptText!$D$1)","v":""},{"$f":"IF(OrigTable!E1593=\"\",\"\",TEXT(OrigTable!E1593,\"00\"))","v":""},{"$f":"IF(OrigTable!E1593=\"\",\"\",ScriptText!$E$1&CHAR(10)&ScriptText!$C$1)","v":""},{"$f":"IF(OrigTable!F1593=\"\",\"\",ScriptText!$B$1&CHAR(10)&ScriptText!$D$1)","v":""},{"$f":"IF(OrigTable!F1593=\"\",\"\",TEXT(OrigTable!F1593,\"00\"))","v":""},{"$f":"IF(OrigTable!F1593=\"\",\"\",ScriptText!$E$1&CHAR(10)&ScriptText!$C$1)","v":""},{"$f":"IF(OrigTable!G1593=\"\",\"\",ScriptText!$B$1&CHAR(10)&ScriptText!$D$1)","v":""},{"$f":"IF(OrigTable!G1593=\"\",\"\",TEXT(OrigTable!G1593,\"00\"))","v":""},{"$f":"IF(OrigTable!G1593=\"\",\"\",ScriptText!$E$1&CHAR(10)&ScriptText!$C$1)","v":""},0]
["\n\n\n",{"$f":"IF(OrigTable!A1594=\"\",\"\",ScriptText!$B$1&CHAR(10)&ScriptText!$D$1)","v":""},{"$f":"IF(OrigTable!A1594=\"\",\"\",TEXT(OrigTable!A1594,\"00\"))","v":""},{"$f":"IF(OrigTable!A1594=\"\",\"\",ScriptText!$E$1&CHAR(10)&ScriptText!$C$1)","v":""},{"$f":"IF(OrigTable!B1594=\"\",\"\",ScriptText!$B$1&CHAR(10)&ScriptText!$D$1)","v":""},{"$f":"IF(OrigTable!B1594=\"\",\"\",TEXT(OrigTable!B1594,\"00\"))","v":""},{"$f":"IF(OrigTable!B1594=\"\",\"\",ScriptText!$E$1&CHAR(10)&ScriptText!C1589)","v":""},{"$f":"IF(OrigTable!C1594=\"\",\"\",ScriptText!$B$1&CHAR(10)&ScriptText!$D$1)","v":""},{"$f":"IF(OrigTable!C1594=\"\",\"\",IF(LEN(OrigTable!C1594)>255,LEFT(OrigTable!C1594,250)&\". . .\",OrigTable!C1594))","v":""},{"$f":"IF(OrigTable!C1594=\"\",\"\",ScriptText!$E$1&CHAR(10)&ScriptText!$C$1)","v":""},{"$f":"IF(OrigTable!D1594=\"\",\"\",ScriptText!$B$1&CHAR(10)&ScriptText!$D$1)","v":""},{"$f":"IF(OrigTable!D1594=\"\",\"\",TEXT(OrigTable!D1594,\"00\"))","v":""},{"$f":"IF(OrigTable!D1594=\"\",\"\",ScriptText!$E$1&CHAR(10)&ScriptText!$C$1)","v":""},{"$f":"IF(OrigTable!E1594=\"\",\"\",ScriptText!$B$1&CHAR(10)&ScriptText!$D$1)","v":""},{"$f":"IF(OrigTable!E1594=\"\",\"\",TEXT(OrigTable!E1594,\"00\"))","v":""},{"$f":"IF(OrigTable!E1594=\"\",\"\",ScriptText!$E$1&CHAR(10)&ScriptText!$C$1)","v":""},{"$f":"IF(OrigTable!F1594=\"\",\"\",ScriptText!$B$1&CHAR(10)&ScriptText!$D$1)","v":""},{"$f":"IF(OrigTable!F1594=\"\",\"\",TEXT(OrigTable!F1594,\"00\"))","v":""},{"$f":"IF(OrigTable!F1594=\"\",\"\",ScriptText!$E$1&CHAR(10)&ScriptText!$C$1)","v":""},{"$f":"IF(OrigTable!G1594=\"\",\"\",ScriptText!$B$1&CHAR(10)&ScriptText!$D$1)","v":""},{"$f":"IF(OrigTable!G1594=\"\",\"\",TEXT(OrigTable!G1594,\"00\"))","v":""},{"$f":"IF(OrigTable!G1594=\"\",\"\",ScriptText!$E$1&CHAR(10)&ScriptText!$C$1)","v":""},0]
["\n\n\n",{"$f":"IF(OrigTable!A1595=\"\",\"\",ScriptText!$B$1&CHAR(10)&ScriptText!$D$1)","v":""},{"$f":"IF(OrigTable!A1595=\"\",\"\",TEXT(OrigTable!A1595,\"00\"))","v":""},{"$f":"IF(OrigTable!A1595=\"\",\"\",ScriptText!$E$1&CHAR(10)&ScriptText!$C$1)","v":""},{"$f":"IF(OrigTable!B1595=\"\",\"\",ScriptText!$B$1&CHAR(10)&ScriptText!$D$1)","v":""},{"$f":"IF(OrigTable!B1595=\"\",\"\",TEXT(OrigTable!B1595,\"00\"))","v":""},{"$f":"IF(OrigTable!B1595=\"\",\"\",ScriptText!$E$1&CHAR(10)&ScriptText!C1590)","v":""},{"$f":"IF(OrigTable!C1595=\"\",\"\",ScriptText!$B$1&CHAR(10)&ScriptText!$D$1)","v":""},{"$f":"IF(OrigTable!C1595=\"\",\"\",IF(LEN(OrigTable!C1595)>255,LEFT(OrigTable!C1595,250)&\". . .\",OrigTable!C1595))","v":""},{"$f":"IF(OrigTable!C1595=\"\",\"\",ScriptText!$E$1&CHAR(10)&ScriptText!$C$1)","v":""},{"$f":"IF(OrigTable!D1595=\"\",\"\",ScriptText!$B$1&CHAR(10)&ScriptText!$D$1)","v":""},{"$f":"IF(OrigTable!D1595=\"\",\"\",TEXT(OrigTable!D1595,\"00\"))","v":""},{"$f":"IF(OrigTable!D1595=\"\",\"\",ScriptText!$E$1&CHAR(10)&ScriptText!$C$1)","v":""},{"$f":"IF(OrigTable!E1595=\"\",\"\",ScriptText!$B$1&CHAR(10)&ScriptText!$D$1)","v":""},{"$f":"IF(OrigTable!E1595=\"\",\"\",TEXT(OrigTable!E1595,\"00\"))","v":""},{"$f":"IF(OrigTable!E1595=\"\",\"\",ScriptText!$E$1&CHAR(10)&ScriptText!$C$1)","v":""},{"$f":"IF(OrigTable!F1595=\"\",\"\",ScriptText!$B$1&CHAR(10)&ScriptText!$D$1)","v":""},{"$f":"IF(OrigTable!F1595=\"\",\"\",TEXT(OrigTable!F1595,\"00\"))","v":""},{"$f":"IF(OrigTable!F1595=\"\",\"\",ScriptText!$E$1&CHAR(10)&ScriptText!$C$1)","v":""},{"$f":"IF(OrigTable!G1595=\"\",\"\",ScriptText!$B$1&CHAR(10)&ScriptText!$D$1)","v":""},{"$f":"IF(OrigTable!G1595=\"\",\"\",TEXT(OrigTable!G1595,\"00\"))","v":""},{"$f":"IF(OrigTable!G1595=\"\",\"\",ScriptText!$E$1&CHAR(10)&ScriptText!$C$1)","v":""},0]
["\n\n\n",{"$f":"IF(OrigTable!A1596=\"\",\"\",ScriptText!$B$1&CHAR(10)&ScriptText!$D$1)","v":""},{"$f":"IF(OrigTable!A1596=\"\",\"\",TEXT(OrigTable!A1596,\"00\"))","v":""},{"$f":"IF(OrigTable!A1596=\"\",\"\",ScriptText!$E$1&CHAR(10)&ScriptText!$C$1)","v":""},{"$f":"IF(OrigTable!B1596=\"\",\"\",ScriptText!$B$1&CHAR(10)&ScriptText!$D$1)","v":""},{"$f":"IF(OrigTable!B1596=\"\",\"\",TEXT(OrigTable!B1596,\"00\"))","v":""},{"$f":"IF(OrigTable!B1596=\"\",\"\",ScriptText!$E$1&CHAR(10)&ScriptText!C1591)","v":""},{"$f":"IF(OrigTable!C1596=\"\",\"\",ScriptText!$B$1&CHAR(10)&ScriptText!$D$1)","v":""},{"$f":"IF(OrigTable!C1596=\"\",\"\",IF(LEN(OrigTable!C1596)>255,LEFT(OrigTable!C1596,250)&\". . .\",OrigTable!C1596))","v":""},{"$f":"IF(OrigTable!C1596=\"\",\"\",ScriptText!$E$1&CHAR(10)&ScriptText!$C$1)","v":""},{"$f":"IF(OrigTable!D1596=\"\",\"\",ScriptText!$B$1&CHAR(10)&ScriptText!$D$1)","v":""},{"$f":"IF(OrigTable!D1596=\"\",\"\",TEXT(OrigTable!D1596,\"00\"))","v":""},{"$f":"IF(OrigTable!D1596=\"\",\"\",ScriptText!$E$1&CHAR(10)&ScriptText!$C$1)","v":""},{"$f":"IF(OrigTable!E1596=\"\",\"\",ScriptText!$B$1&CHAR(10)&ScriptText!$D$1)","v":""},{"$f":"IF(OrigTable!E1596=\"\",\"\",TEXT(OrigTable!E1596,\"00\"))","v":""},{"$f":"IF(OrigTable!E1596=\"\",\"\",ScriptText!$E$1&CHAR(10)&ScriptText!$C$1)","v":""},{"$f":"IF(OrigTable!F1596=\"\",\"\",ScriptText!$B$1&CHAR(10)&ScriptText!$D$1)","v":""},{"$f":"IF(OrigTable!F1596=\"\",\"\",TEXT(OrigTable!F1596,\"00\"))","v":""},{"$f":"IF(OrigTable!F1596=\"\",\"\",ScriptText!$E$1&CHAR(10)&ScriptText!$C$1)","v":""},{"$f":"IF(OrigTable!G1596=\"\",\"\",ScriptText!$B$1&CHAR(10)&ScriptText!$D$1)","v":""},{"$f":"IF(OrigTable!G1596=\"\",\"\",TEXT(OrigTable!G1596,\"00\"))","v":""},{"$f":"IF(OrigTable!G1596=\"\",\"\",ScriptText!$E$1&CHAR(10)&ScriptText!$C$1)","v":""},0]
["\n\n\n",{"$f":"IF(OrigTable!A1597=\"\",\"\",ScriptText!$B$1&CHAR(10)&ScriptText!$D$1)","v":""},{"$f":"IF(OrigTable!A1597=\"\",\"\",TEXT(OrigTable!A1597,\"00\"))","v":""},{"$f":"IF(OrigTable!A1597=\"\",\"\",ScriptText!$E$1&CHAR(10)&ScriptText!$C$1)","v":""},{"$f":"IF(OrigTable!B1597=\"\",\"\",ScriptText!$B$1&CHAR(10)&ScriptText!$D$1)","v":""},{"$f":"IF(OrigTable!B1597=\"\",\"\",TEXT(OrigTable!B1597,\"00\"))","v":""},{"$f":"IF(OrigTable!B1597=\"\",\"\",ScriptText!$E$1&CHAR(10)&ScriptText!C1592)","v":""},{"$f":"IF(OrigTable!C1597=\"\",\"\",ScriptText!$B$1&CHAR(10)&ScriptText!$D$1)","v":""},{"$f":"IF(OrigTable!C1597=\"\",\"\",IF(LEN(OrigTable!C1597)>255,LEFT(OrigTable!C1597,250)&\". . .\",OrigTable!C1597))","v":""},{"$f":"IF(OrigTable!C1597=\"\",\"\",ScriptText!$E$1&CHAR(10)&ScriptText!$C$1)","v":""},{"$f":"IF(OrigTable!D1597=\"\",\"\",ScriptText!$B$1&CHAR(10)&ScriptText!$D$1)","v":""},{"$f":"IF(OrigTable!D1597=\"\",\"\",TEXT(OrigTable!D1597,\"00\"))","v":""},{"$f":"IF(OrigTable!D1597=\"\",\"\",ScriptText!$E$1&CHAR(10)&ScriptText!$C$1)","v":""},{"$f":"IF(OrigTable!E1597=\"\",\"\",ScriptText!$B$1&CHAR(10)&ScriptText!$D$1)","v":""},{"$f":"IF(OrigTable!E1597=\"\",\"\",TEXT(OrigTable!E1597,\"00\"))","v":""},{"$f":"IF(OrigTable!E1597=\"\",\"\",ScriptText!$E$1&CHAR(10)&ScriptText!$C$1)","v":""},{"$f":"IF(OrigTable!F1597=\"\",\"\",ScriptText!$B$1&CHAR(10)&ScriptText!$D$1)","v":""},{"$f":"IF(OrigTable!F1597=\"\",\"\",TEXT(OrigTable!F1597,\"00\"))","v":""},{"$f":"IF(OrigTable!F1597=\"\",\"\",ScriptText!$E$1&CHAR(10)&ScriptText!$C$1)","v":""},{"$f":"IF(OrigTable!G1597=\"\",\"\",ScriptText!$B$1&CHAR(10)&ScriptText!$D$1)","v":""},{"$f":"IF(OrigTable!G1597=\"\",\"\",TEXT(OrigTable!G1597,\"00\"))","v":""},{"$f":"IF(OrigTable!G1597=\"\",\"\",ScriptText!$E$1&CHAR(10)&ScriptText!$C$1)","v":""},0]
["\n\n\n",{"$f":"IF(OrigTable!A1598=\"\",\"\",ScriptText!$B$1&CHAR(10)&ScriptText!$D$1)","v":""},{"$f":"IF(OrigTable!A1598=\"\",\"\",TEXT(OrigTable!A1598,\"00\"))","v":""},{"$f":"IF(OrigTable!A1598=\"\",\"\",ScriptText!$E$1&CHAR(10)&ScriptText!$C$1)","v":""},{"$f":"IF(OrigTable!B1598=\"\",\"\",ScriptText!$B$1&CHAR(10)&ScriptText!$D$1)","v":""},{"$f":"IF(OrigTable!B1598=\"\",\"\",TEXT(OrigTable!B1598,\"00\"))","v":""},{"$f":"IF(OrigTable!B1598=\"\",\"\",ScriptText!$E$1&CHAR(10)&ScriptText!C1593)","v":""},{"$f":"IF(OrigTable!C1598=\"\",\"\",ScriptText!$B$1&CHAR(10)&ScriptText!$D$1)","v":""},{"$f":"IF(OrigTable!C1598=\"\",\"\",IF(LEN(OrigTable!C1598)>255,LEFT(OrigTable!C1598,250)&\". . .\",OrigTable!C1598))","v":""},{"$f":"IF(OrigTable!C1598=\"\",\"\",ScriptText!$E$1&CHAR(10)&ScriptText!$C$1)","v":""},{"$f":"IF(OrigTable!D1598=\"\",\"\",ScriptText!$B$1&CHAR(10)&ScriptText!$D$1)","v":""},{"$f":"IF(OrigTable!D1598=\"\",\"\",TEXT(OrigTable!D1598,\"00\"))","v":""},{"$f":"IF(OrigTable!D1598=\"\",\"\",ScriptText!$E$1&CHAR(10)&ScriptText!$C$1)","v":""},{"$f":"IF(OrigTable!E1598=\"\",\"\",ScriptText!$B$1&CHAR(10)&ScriptText!$D$1)","v":""},{"$f":"IF(OrigTable!E1598=\"\",\"\",TEXT(OrigTable!E1598,\"00\"))","v":""},{"$f":"IF(OrigTable!E1598=\"\",\"\",ScriptText!$E$1&CHAR(10)&ScriptText!$C$1)","v":""},{"$f":"IF(OrigTable!F1598=\"\",\"\",ScriptText!$B$1&CHAR(10)&ScriptText!$D$1)","v":""},{"$f":"IF(OrigTable!F1598=\"\",\"\",TEXT(OrigTable!F1598,\"00\"))","v":""},{"$f":"IF(OrigTable!F1598=\"\",\"\",ScriptText!$E$1&CHAR(10)&ScriptText!$C$1)","v":""},{"$f":"IF(OrigTable!G1598=\"\",\"\",ScriptText!$B$1&CHAR(10)&ScriptText!$D$1)","v":""},{"$f":"IF(OrigTable!G1598=\"\",\"\",TEXT(OrigTable!G1598,\"00\"))","v":""},{"$f":"IF(OrigTable!G1598=\"\",\"\",ScriptText!$E$1&CHAR(10)&ScriptText!$C$1)","v":""},0]
["\n\n\n",{"$f":"IF(OrigTable!A1599=\"\",\"\",ScriptText!$B$1&CHAR(10)&ScriptText!$D$1)","v":""},{"$f":"IF(OrigTable!A1599=\"\",\"\",TEXT(OrigTable!A1599,\"00\"))","v":""},{"$f":"IF(OrigTable!A1599=\"\",\"\",ScriptText!$E$1&CHAR(10)&ScriptText!$C$1)","v":""},{"$f":"IF(OrigTable!B1599=\"\",\"\",ScriptText!$B$1&CHAR(10)&ScriptText!$D$1)","v":""},{"$f":"IF(OrigTable!B1599=\"\",\"\",TEXT(OrigTable!B1599,\"00\"))","v":""},{"$f":"IF(OrigTable!B1599=\"\",\"\",ScriptText!$E$1&CHAR(10)&ScriptText!C1594)","v":""},{"$f":"IF(OrigTable!C1599=\"\",\"\",ScriptText!$B$1&CHAR(10)&ScriptText!$D$1)","v":""},{"$f":"IF(OrigTable!C1599=\"\",\"\",IF(LEN(OrigTable!C1599)>255,LEFT(OrigTable!C1599,250)&\". . .\",OrigTable!C1599))","v":""},{"$f":"IF(OrigTable!C1599=\"\",\"\",ScriptText!$E$1&CHAR(10)&ScriptText!$C$1)","v":""},{"$f":"IF(OrigTable!D1599=\"\",\"\",ScriptText!$B$1&CHAR(10)&ScriptText!$D$1)","v":""},{"$f":"IF(OrigTable!D1599=\"\",\"\",TEXT(OrigTable!D1599,\"00\"))","v":""},{"$f":"IF(OrigTable!D1599=\"\",\"\",ScriptText!$E$1&CHAR(10)&ScriptText!$C$1)","v":""},{"$f":"IF(OrigTable!E1599=\"\",\"\",ScriptText!$B$1&CHAR(10)&ScriptText!$D$1)","v":""},{"$f":"IF(OrigTable!E1599=\"\",\"\",TEXT(OrigTable!E1599,\"00\"))","v":""},{"$f":"IF(OrigTable!E1599=\"\",\"\",ScriptText!$E$1&CHAR(10)&ScriptText!$C$1)","v":""},{"$f":"IF(OrigTable!F1599=\"\",\"\",ScriptText!$B$1&CHAR(10)&ScriptText!$D$1)","v":""},{"$f":"IF(OrigTable!F1599=\"\",\"\",TEXT(OrigTable!F1599,\"00\"))","v":""},{"$f":"IF(OrigTable!F1599=\"\",\"\",ScriptText!$E$1&CHAR(10)&ScriptText!$C$1)","v":""},{"$f":"IF(OrigTable!G1599=\"\",\"\",ScriptText!$B$1&CHAR(10)&ScriptText!$D$1)","v":""},{"$f":"IF(OrigTable!G1599=\"\",\"\",TEXT(OrigTable!G1599,\"00\"))","v":""},{"$f":"IF(OrigTable!G1599=\"\",\"\",ScriptText!$E$1&CHAR(10)&ScriptText!$C$1)","v":""},0]
["\n\n\n",{"$f":"IF(OrigTable!A1600=\"\",\"\",ScriptText!$B$1&CHAR(10)&ScriptText!$D$1)","v":""},{"$f":"IF(OrigTable!A1600=\"\",\"\",TEXT(OrigTable!A1600,\"00\"))","v":""},{"$f":"IF(OrigTable!A1600=\"\",\"\",ScriptText!$E$1&CHAR(10)&ScriptText!$C$1)","v":""},{"$f":"IF(OrigTable!B1600=\"\",\"\",ScriptText!$B$1&CHAR(10)&ScriptText!$D$1)","v":""},{"$f":"IF(OrigTable!B1600=\"\",\"\",TEXT(OrigTable!B1600,\"00\"))","v":""},{"$f":"IF(OrigTable!B1600=\"\",\"\",ScriptText!$E$1&CHAR(10)&ScriptText!C1595)","v":""},{"$f":"IF(OrigTable!C1600=\"\",\"\",ScriptText!$B$1&CHAR(10)&ScriptText!$D$1)","v":""},{"$f":"IF(OrigTable!C1600=\"\",\"\",IF(LEN(OrigTable!C1600)>255,LEFT(OrigTable!C1600,250)&\". . .\",OrigTable!C1600))","v":""},{"$f":"IF(OrigTable!C1600=\"\",\"\",ScriptText!$E$1&CHAR(10)&ScriptText!$C$1)","v":""},{"$f":"IF(OrigTable!D1600=\"\",\"\",ScriptText!$B$1&CHAR(10)&ScriptText!$D$1)","v":""},{"$f":"IF(OrigTable!D1600=\"\",\"\",TEXT(OrigTable!D1600,\"00\"))","v":""},{"$f":"IF(OrigTable!D1600=\"\",\"\",ScriptText!$E$1&CHAR(10)&ScriptText!$C$1)","v":""},{"$f":"IF(OrigTable!E1600=\"\",\"\",ScriptText!$B$1&CHAR(10)&ScriptText!$D$1)","v":""},{"$f":"IF(OrigTable!E1600=\"\",\"\",TEXT(OrigTable!E1600,\"00\"))","v":""},{"$f":"IF(OrigTable!E1600=\"\",\"\",ScriptText!$E$1&CHAR(10)&ScriptText!$C$1)","v":""},{"$f":"IF(OrigTable!F1600=\"\",\"\",ScriptText!$B$1&CHAR(10)&ScriptText!$D$1)","v":""},{"$f":"IF(OrigTable!F1600=\"\",\"\",TEXT(OrigTable!F1600,\"00\"))","v":""},{"$f":"IF(OrigTable!F1600=\"\",\"\",ScriptText!$E$1&CHAR(10)&ScriptText!$C$1)","v":""},{"$f":"IF(OrigTable!G1600=\"\",\"\",ScriptText!$B$1&CHAR(10)&ScriptText!$D$1)","v":""},{"$f":"IF(OrigTable!G1600=\"\",\"\",TEXT(OrigTable!G1600,\"00\"))","v":""},{"$f":"IF(OrigTable!G1600=\"\",\"\",ScriptText!$E$1&CHAR(10)&ScriptText!$C$1)","v":""},0]
["\n\n\n",{"$f":"IF(OrigTable!A1601=\"\",\"\",ScriptText!$B$1&CHAR(10)&ScriptText!$D$1)","v":""},{"$f":"IF(OrigTable!A1601=\"\",\"\",TEXT(OrigTable!A1601,\"00\"))","v":""},{"$f":"IF(OrigTable!A1601=\"\",\"\",ScriptText!$E$1&CHAR(10)&ScriptText!$C$1)","v":""},{"$f":"IF(OrigTable!B1601=\"\",\"\",ScriptText!$B$1&CHAR(10)&ScriptText!$D$1)","v":""},{"$f":"IF(OrigTable!B1601=\"\",\"\",TEXT(OrigTable!B1601,\"00\"))","v":""},{"$f":"IF(OrigTable!B1601=\"\",\"\",ScriptText!$E$1&CHAR(10)&ScriptText!C1596)","v":""},{"$f":"IF(OrigTable!C1601=\"\",\"\",ScriptText!$B$1&CHAR(10)&ScriptText!$D$1)","v":""},{"$f":"IF(OrigTable!C1601=\"\",\"\",IF(LEN(OrigTable!C1601)>255,LEFT(OrigTable!C1601,250)&\". . .\",OrigTable!C1601))","v":""},{"$f":"IF(OrigTable!C1601=\"\",\"\",ScriptText!$E$1&CHAR(10)&ScriptText!$C$1)","v":""},{"$f":"IF(OrigTable!D1601=\"\",\"\",ScriptText!$B$1&CHAR(10)&ScriptText!$D$1)","v":""},{"$f":"IF(OrigTable!D1601=\"\",\"\",TEXT(OrigTable!D1601,\"00\"))","v":""},{"$f":"IF(OrigTable!D1601=\"\",\"\",ScriptText!$E$1&CHAR(10)&ScriptText!$C$1)","v":""},{"$f":"IF(OrigTable!E1601=\"\",\"\",ScriptText!$B$1&CHAR(10)&ScriptText!$D$1)","v":""},{"$f":"IF(OrigTable!E1601=\"\",\"\",TEXT(OrigTable!E1601,\"00\"))","v":""},{"$f":"IF(OrigTable!E1601=\"\",\"\",ScriptText!$E$1&CHAR(10)&ScriptText!$C$1)","v":""},{"$f":"IF(OrigTable!F1601=\"\",\"\",ScriptText!$B$1&CHAR(10)&ScriptText!$D$1)","v":""},{"$f":"IF(OrigTable!F1601=\"\",\"\",TEXT(OrigTable!F1601,\"00\"))","v":""},{"$f":"IF(OrigTable!F1601=\"\",\"\",ScriptText!$E$1&CHAR(10)&ScriptText!$C$1)","v":""},{"$f":"IF(OrigTable!G1601=\"\",\"\",ScriptText!$B$1&CHAR(10)&ScriptText!$D$1)","v":""},{"$f":"IF(OrigTable!G1601=\"\",\"\",TEXT(OrigTable!G1601,\"00\"))","v":""},{"$f":"IF(OrigTable!G1601=\"\",\"\",ScriptText!$E$1&CHAR(10)&ScriptText!$C$1)","v":""},0]
["\n\n\n",{"$f":"IF(OrigTable!A1602=\"\",\"\",ScriptText!$B$1&CHAR(10)&ScriptText!$D$1)","v":""},{"$f":"IF(OrigTable!A1602=\"\",\"\",TEXT(OrigTable!A1602,\"00\"))","v":""},{"$f":"IF(OrigTable!A1602=\"\",\"\",ScriptText!$E$1&CHAR(10)&ScriptText!$C$1)","v":""},{"$f":"IF(OrigTable!B1602=\"\",\"\",ScriptText!$B$1&CHAR(10)&ScriptText!$D$1)","v":""},{"$f":"IF(OrigTable!B1602=\"\",\"\",TEXT(OrigTable!B1602,\"00\"))","v":""},{"$f":"IF(OrigTable!B1602=\"\",\"\",ScriptText!$E$1&CHAR(10)&ScriptText!C1597)","v":""},{"$f":"IF(OrigTable!C1602=\"\",\"\",ScriptText!$B$1&CHAR(10)&ScriptText!$D$1)","v":""},{"$f":"IF(OrigTable!C1602=\"\",\"\",IF(LEN(OrigTable!C1602)>255,LEFT(OrigTable!C1602,250)&\". . .\",OrigTable!C1602))","v":""},{"$f":"IF(OrigTable!C1602=\"\",\"\",ScriptText!$E$1&CHAR(10)&ScriptText!$C$1)","v":""},{"$f":"IF(OrigTable!D1602=\"\",\"\",ScriptText!$B$1&CHAR(10)&ScriptText!$D$1)","v":""},{"$f":"IF(OrigTable!D1602=\"\",\"\",TEXT(OrigTable!D1602,\"00\"))","v":""},{"$f":"IF(OrigTable!D1602=\"\",\"\",ScriptText!$E$1&CHAR(10)&ScriptText!$C$1)","v":""},{"$f":"IF(OrigTable!E1602=\"\",\"\",ScriptText!$B$1&CHAR(10)&ScriptText!$D$1)","v":""},{"$f":"IF(OrigTable!E1602=\"\",\"\",TEXT(OrigTable!E1602,\"00\"))","v":""},{"$f":"IF(OrigTable!E1602=\"\",\"\",ScriptText!$E$1&CHAR(10)&ScriptText!$C$1)","v":""},{"$f":"IF(OrigTable!F1602=\"\",\"\",ScriptText!$B$1&CHAR(10)&ScriptText!$D$1)","v":""},{"$f":"IF(OrigTable!F1602=\"\",\"\",TEXT(OrigTable!F1602,\"00\"))","v":""},{"$f":"IF(OrigTable!F1602=\"\",\"\",ScriptText!$E$1&CHAR(10)&ScriptText!$C$1)","v":""},{"$f":"IF(OrigTable!G1602=\"\",\"\",ScriptText!$B$1&CHAR(10)&ScriptText!$D$1)","v":""},{"$f":"IF(OrigTable!G1602=\"\",\"\",TEXT(OrigTable!G1602,\"00\"))","v":""},{"$f":"IF(OrigTable!G1602=\"\",\"\",ScriptText!$E$1&CHAR(10)&ScriptText!$C$1)","v":""},0]
["\n\n\n",{"$f":"IF(OrigTable!A1603=\"\",\"\",ScriptText!$B$1&CHAR(10)&ScriptText!$D$1)","v":""},{"$f":"IF(OrigTable!A1603=\"\",\"\",TEXT(OrigTable!A1603,\"00\"))","v":""},{"$f":"IF(OrigTable!A1603=\"\",\"\",ScriptText!$E$1&CHAR(10)&ScriptText!$C$1)","v":""},{"$f":"IF(OrigTable!B1603=\"\",\"\",ScriptText!$B$1&CHAR(10)&ScriptText!$D$1)","v":""},{"$f":"IF(OrigTable!B1603=\"\",\"\",TEXT(OrigTable!B1603,\"00\"))","v":""},{"$f":"IF(OrigTable!B1603=\"\",\"\",ScriptText!$E$1&CHAR(10)&ScriptText!C1598)","v":""},{"$f":"IF(OrigTable!C1603=\"\",\"\",ScriptText!$B$1&CHAR(10)&ScriptText!$D$1)","v":""},{"$f":"IF(OrigTable!C1603=\"\",\"\",IF(LEN(OrigTable!C1603)>255,LEFT(OrigTable!C1603,250)&\". . .\",OrigTable!C1603))","v":""},{"$f":"IF(OrigTable!C1603=\"\",\"\",ScriptText!$E$1&CHAR(10)&ScriptText!$C$1)","v":""},{"$f":"IF(OrigTable!D1603=\"\",\"\",ScriptText!$B$1&CHAR(10)&ScriptText!$D$1)","v":""},{"$f":"IF(OrigTable!D1603=\"\",\"\",TEXT(OrigTable!D1603,\"00\"))","v":""},{"$f":"IF(OrigTable!D1603=\"\",\"\",ScriptText!$E$1&CHAR(10)&ScriptText!$C$1)","v":""},{"$f":"IF(OrigTable!E1603=\"\",\"\",ScriptText!$B$1&CHAR(10)&ScriptText!$D$1)","v":""},{"$f":"IF(OrigTable!E1603=\"\",\"\",TEXT(OrigTable!E1603,\"00\"))","v":""},{"$f":"IF(OrigTable!E1603=\"\",\"\",ScriptText!$E$1&CHAR(10)&ScriptText!$C$1)","v":""},{"$f":"IF(OrigTable!F1603=\"\",\"\",ScriptText!$B$1&CHAR(10)&ScriptText!$D$1)","v":""},{"$f":"IF(OrigTable!F1603=\"\",\"\",TEXT(OrigTable!F1603,\"00\"))","v":""},{"$f":"IF(OrigTable!F1603=\"\",\"\",ScriptText!$E$1&CHAR(10)&ScriptText!$C$1)","v":""},{"$f":"IF(OrigTable!G1603=\"\",\"\",ScriptText!$B$1&CHAR(10)&ScriptText!$D$1)","v":""},{"$f":"IF(OrigTable!G1603=\"\",\"\",TEXT(OrigTable!G1603,\"00\"))","v":""},{"$f":"IF(OrigTable!G1603=\"\",\"\",ScriptText!$E$1&CHAR(10)&ScriptText!$C$1)","v":""},0]
["\n\n\n",{"$f":"IF(OrigTable!A1604=\"\",\"\",ScriptText!$B$1&CHAR(10)&ScriptText!$D$1)","v":""},{"$f":"IF(OrigTable!A1604=\"\",\"\",TEXT(OrigTable!A1604,\"00\"))","v":""},{"$f":"IF(OrigTable!A1604=\"\",\"\",ScriptText!$E$1&CHAR(10)&ScriptText!$C$1)","v":""},{"$f":"IF(OrigTable!B1604=\"\",\"\",ScriptText!$B$1&CHAR(10)&ScriptText!$D$1)","v":""},{"$f":"IF(OrigTable!B1604=\"\",\"\",TEXT(OrigTable!B1604,\"00\"))","v":""},{"$f":"IF(OrigTable!B1604=\"\",\"\",ScriptText!$E$1&CHAR(10)&ScriptText!C1599)","v":""},{"$f":"IF(OrigTable!C1604=\"\",\"\",ScriptText!$B$1&CHAR(10)&ScriptText!$D$1)","v":""},{"$f":"IF(OrigTable!C1604=\"\",\"\",IF(LEN(OrigTable!C1604)>255,LEFT(OrigTable!C1604,250)&\". . .\",OrigTable!C1604))","v":""},{"$f":"IF(OrigTable!C1604=\"\",\"\",ScriptText!$E$1&CHAR(10)&ScriptText!$C$1)","v":""},{"$f":"IF(OrigTable!D1604=\"\",\"\",ScriptText!$B$1&CHAR(10)&ScriptText!$D$1)","v":""},{"$f":"IF(OrigTable!D1604=\"\",\"\",TEXT(OrigTable!D1604,\"00\"))","v":""},{"$f":"IF(OrigTable!D1604=\"\",\"\",ScriptText!$E$1&CHAR(10)&ScriptText!$C$1)","v":""},{"$f":"IF(OrigTable!E1604=\"\",\"\",ScriptText!$B$1&CHAR(10)&ScriptText!$D$1)","v":""},{"$f":"IF(OrigTable!E1604=\"\",\"\",TEXT(OrigTable!E1604,\"00\"))","v":""},{"$f":"IF(OrigTable!E1604=\"\",\"\",ScriptText!$E$1&CHAR(10)&ScriptText!$C$1)","v":""},{"$f":"IF(OrigTable!F1604=\"\",\"\",ScriptText!$B$1&CHAR(10)&ScriptText!$D$1)","v":""},{"$f":"IF(OrigTable!F1604=\"\",\"\",TEXT(OrigTable!F1604,\"00\"))","v":""},{"$f":"IF(OrigTable!F1604=\"\",\"\",ScriptText!$E$1&CHAR(10)&ScriptText!$C$1)","v":""},{"$f":"IF(OrigTable!G1604=\"\",\"\",ScriptText!$B$1&CHAR(10)&ScriptText!$D$1)","v":""},{"$f":"IF(OrigTable!G1604=\"\",\"\",TEXT(OrigTable!G1604,\"00\"))","v":""},{"$f":"IF(OrigTable!G1604=\"\",\"\",ScriptText!$E$1&CHAR(10)&ScriptText!$C$1)","v":""},0]
["\n\n\n",{"$f":"IF(OrigTable!A1605=\"\",\"\",ScriptText!$B$1&CHAR(10)&ScriptText!$D$1)","v":""},{"$f":"IF(OrigTable!A1605=\"\",\"\",TEXT(OrigTable!A1605,\"00\"))","v":""},{"$f":"IF(OrigTable!A1605=\"\",\"\",ScriptText!$E$1&CHAR(10)&ScriptText!$C$1)","v":""},{"$f":"IF(OrigTable!B1605=\"\",\"\",ScriptText!$B$1&CHAR(10)&ScriptText!$D$1)","v":""},{"$f":"IF(OrigTable!B1605=\"\",\"\",TEXT(OrigTable!B1605,\"00\"))","v":""},{"$f":"IF(OrigTable!B1605=\"\",\"\",ScriptText!$E$1&CHAR(10)&ScriptText!C1600)","v":""},{"$f":"IF(OrigTable!C1605=\"\",\"\",ScriptText!$B$1&CHAR(10)&ScriptText!$D$1)","v":""},{"$f":"IF(OrigTable!C1605=\"\",\"\",IF(LEN(OrigTable!C1605)>255,LEFT(OrigTable!C1605,250)&\". . .\",OrigTable!C1605))","v":""},{"$f":"IF(OrigTable!C1605=\"\",\"\",ScriptText!$E$1&CHAR(10)&ScriptText!$C$1)","v":""},{"$f":"IF(OrigTable!D1605=\"\",\"\",ScriptText!$B$1&CHAR(10)&ScriptText!$D$1)","v":""},{"$f":"IF(OrigTable!D1605=\"\",\"\",TEXT(OrigTable!D1605,\"00\"))","v":""},{"$f":"IF(OrigTable!D1605=\"\",\"\",ScriptText!$E$1&CHAR(10)&ScriptText!$C$1)","v":""},{"$f":"IF(OrigTable!E1605=\"\",\"\",ScriptText!$B$1&CHAR(10)&ScriptText!$D$1)","v":""},{"$f":"IF(OrigTable!E1605=\"\",\"\",TEXT(OrigTable!E1605,\"00\"))","v":""},{"$f":"IF(OrigTable!E1605=\"\",\"\",ScriptText!$E$1&CHAR(10)&ScriptText!$C$1)","v":""},{"$f":"IF(OrigTable!F1605=\"\",\"\",ScriptText!$B$1&CHAR(10)&ScriptText!$D$1)","v":""},{"$f":"IF(OrigTable!F1605=\"\",\"\",TEXT(OrigTable!F1605,\"00\"))","v":""},{"$f":"IF(OrigTable!F1605=\"\",\"\",ScriptText!$E$1&CHAR(10)&ScriptText!$C$1)","v":""},{"$f":"IF(OrigTable!G1605=\"\",\"\",ScriptText!$B$1&CHAR(10)&ScriptText!$D$1)","v":""},{"$f":"IF(OrigTable!G1605=\"\",\"\",TEXT(OrigTable!G1605,\"00\"))","v":""},{"$f":"IF(OrigTable!G1605=\"\",\"\",ScriptText!$E$1&CHAR(10)&ScriptText!$C$1)","v":""},0]
["\n\n\n",{"$f":"IF(OrigTable!A1606=\"\",\"\",ScriptText!$B$1&CHAR(10)&ScriptText!$D$1)","v":""},{"$f":"IF(OrigTable!A1606=\"\",\"\",TEXT(OrigTable!A1606,\"00\"))","v":""},{"$f":"IF(OrigTable!A1606=\"\",\"\",ScriptText!$E$1&CHAR(10)&ScriptText!$C$1)","v":""},{"$f":"IF(OrigTable!B1606=\"\",\"\",ScriptText!$B$1&CHAR(10)&ScriptText!$D$1)","v":""},{"$f":"IF(OrigTable!B1606=\"\",\"\",TEXT(OrigTable!B1606,\"00\"))","v":""},{"$f":"IF(OrigTable!B1606=\"\",\"\",ScriptText!$E$1&CHAR(10)&ScriptText!C1601)","v":""},{"$f":"IF(OrigTable!C1606=\"\",\"\",ScriptText!$B$1&CHAR(10)&ScriptText!$D$1)","v":""},{"$f":"IF(OrigTable!C1606=\"\",\"\",IF(LEN(OrigTable!C1606)>255,LEFT(OrigTable!C1606,250)&\". . .\",OrigTable!C1606))","v":""},{"$f":"IF(OrigTable!C1606=\"\",\"\",ScriptText!$E$1&CHAR(10)&ScriptText!$C$1)","v":""},{"$f":"IF(OrigTable!D1606=\"\",\"\",ScriptText!$B$1&CHAR(10)&ScriptText!$D$1)","v":""},{"$f":"IF(OrigTable!D1606=\"\",\"\",TEXT(OrigTable!D1606,\"00\"))","v":""},{"$f":"IF(OrigTable!D1606=\"\",\"\",ScriptText!$E$1&CHAR(10)&ScriptText!$C$1)","v":""},{"$f":"IF(OrigTable!E1606=\"\",\"\",ScriptText!$B$1&CHAR(10)&ScriptText!$D$1)","v":""},{"$f":"IF(OrigTable!E1606=\"\",\"\",TEXT(OrigTable!E1606,\"00\"))","v":""},{"$f":"IF(OrigTable!E1606=\"\",\"\",ScriptText!$E$1&CHAR(10)&ScriptText!$C$1)","v":""},{"$f":"IF(OrigTable!F1606=\"\",\"\",ScriptText!$B$1&CHAR(10)&ScriptText!$D$1)","v":""},{"$f":"IF(OrigTable!F1606=\"\",\"\",TEXT(OrigTable!F1606,\"00\"))","v":""},{"$f":"IF(OrigTable!F1606=\"\",\"\",ScriptText!$E$1&CHAR(10)&ScriptText!$C$1)","v":""},{"$f":"IF(OrigTable!G1606=\"\",\"\",ScriptText!$B$1&CHAR(10)&ScriptText!$D$1)","v":""},{"$f":"IF(OrigTable!G1606=\"\",\"\",TEXT(OrigTable!G1606,\"00\"))","v":""},{"$f":"IF(OrigTable!G1606=\"\",\"\",ScriptText!$E$1&CHAR(10)&ScriptText!$C$1)","v":""},{"$f":"IF(LEN(A1606)>3,ROW(),0)","v":0}]
["\n\n\n",{"$f":"IF(OrigTable!A1607=\"\",\"\",ScriptText!$B$1&CHAR(10)&ScriptText!$D$1)","v":""},{"$f":"IF(OrigTable!A1607=\"\",\"\",TEXT(OrigTable!A1607,\"00\"))","v":""},{"$f":"IF(OrigTable!A1607=\"\",\"\",ScriptText!$E$1&CHAR(10)&ScriptText!$C$1)","v":""},{"$f":"IF(OrigTable!B1607=\"\",\"\",ScriptText!$B$1&CHAR(10)&ScriptText!$D$1)","v":""},{"$f":"IF(OrigTable!B1607=\"\",\"\",TEXT(OrigTable!B1607,\"00\"))","v":""},{"$f":"IF(OrigTable!B1607=\"\",\"\",ScriptText!$E$1&CHAR(10)&ScriptText!C1602)","v":""},{"$f":"IF(OrigTable!C1607=\"\",\"\",ScriptText!$B$1&CHAR(10)&ScriptText!$D$1)","v":""},{"$f":"IF(OrigTable!C1607=\"\",\"\",IF(LEN(OrigTable!C1607)>255,LEFT(OrigTable!C1607,250)&\". . .\",OrigTable!C1607))","v":""},{"$f":"IF(OrigTable!C1607=\"\",\"\",ScriptText!$E$1&CHAR(10)&ScriptText!$C$1)","v":""},{"$f":"IF(OrigTable!D1607=\"\",\"\",ScriptText!$B$1&CHAR(10)&ScriptText!$D$1)","v":""},{"$f":"IF(OrigTable!D1607=\"\",\"\",TEXT(OrigTable!D1607,\"00\"))","v":""},{"$f":"IF(OrigTable!D1607=\"\",\"\",ScriptText!$E$1&CHAR(10)&ScriptText!$C$1)","v":""},{"$f":"IF(OrigTable!E1607=\"\",\"\",ScriptText!$B$1&CHAR(10)&ScriptText!$D$1)","v":""},{"$f":"IF(OrigTable!E1607=\"\",\"\",TEXT(OrigTable!E1607,\"00\"))","v":""},{"$f":"IF(OrigTable!E1607=\"\",\"\",ScriptText!$E$1&CHAR(10)&ScriptText!$C$1)","v":""},{"$f":"IF(OrigTable!F1607=\"\",\"\",ScriptText!$B$1&CHAR(10)&ScriptText!$D$1)","v":""},{"$f":"IF(OrigTable!F1607=\"\",\"\",TEXT(OrigTable!F1607,\"00\"))","v":""},{"$f":"IF(OrigTable!F1607=\"\",\"\",ScriptText!$E$1&CHAR(10)&ScriptText!$C$1)","v":""},{"$f":"IF(OrigTable!G1607=\"\",\"\",ScriptText!$B$1&CHAR(10)&ScriptText!$D$1)","v":""},{"$f":"IF(OrigTable!G1607=\"\",\"\",TEXT(OrigTable!G1607,\"00\"))","v":""},{"$f":"IF(OrigTable!G1607=\"\",\"\",ScriptText!$E$1&CHAR(10)&ScriptText!$C$1)","v":""},0]
["\n\n\n",{"$f":"IF(OrigTable!A1608=\"\",\"\",ScriptText!$B$1&CHAR(10)&ScriptText!$D$1)","v":""},{"$f":"IF(OrigTable!A1608=\"\",\"\",TEXT(OrigTable!A1608,\"00\"))","v":""},{"$f":"IF(OrigTable!A1608=\"\",\"\",ScriptText!$E$1&CHAR(10)&ScriptText!$C$1)","v":""},{"$f":"IF(OrigTable!B1608=\"\",\"\",ScriptText!$B$1&CHAR(10)&ScriptText!$D$1)","v":""},{"$f":"IF(OrigTable!B1608=\"\",\"\",TEXT(OrigTable!B1608,\"00\"))","v":""},{"$f":"IF(OrigTable!B1608=\"\",\"\",ScriptText!$E$1&CHAR(10)&ScriptText!C1603)","v":""},{"$f":"IF(OrigTable!C1608=\"\",\"\",ScriptText!$B$1&CHAR(10)&ScriptText!$D$1)","v":""},{"$f":"IF(OrigTable!C1608=\"\",\"\",IF(LEN(OrigTable!C1608)>255,LEFT(OrigTable!C1608,250)&\". . .\",OrigTable!C1608))","v":""},{"$f":"IF(OrigTable!C1608=\"\",\"\",ScriptText!$E$1&CHAR(10)&ScriptText!$C$1)","v":""},{"$f":"IF(OrigTable!D1608=\"\",\"\",ScriptText!$B$1&CHAR(10)&ScriptText!$D$1)","v":""},{"$f":"IF(OrigTable!D1608=\"\",\"\",TEXT(OrigTable!D1608,\"00\"))","v":""},{"$f":"IF(OrigTable!D1608=\"\",\"\",ScriptText!$E$1&CHAR(10)&ScriptText!$C$1)","v":""},{"$f":"IF(OrigTable!E1608=\"\",\"\",ScriptText!$B$1&CHAR(10)&ScriptText!$D$1)","v":""},{"$f":"IF(OrigTable!E1608=\"\",\"\",TEXT(OrigTable!E1608,\"00\"))","v":""},{"$f":"IF(OrigTable!E1608=\"\",\"\",ScriptText!$E$1&CHAR(10)&ScriptText!$C$1)","v":""},{"$f":"IF(OrigTable!F1608=\"\",\"\",ScriptText!$B$1&CHAR(10)&ScriptText!$D$1)","v":""},{"$f":"IF(OrigTable!F1608=\"\",\"\",TEXT(OrigTable!F1608,\"00\"))","v":""},{"$f":"IF(OrigTable!F1608=\"\",\"\",ScriptText!$E$1&CHAR(10)&ScriptText!$C$1)","v":""},{"$f":"IF(OrigTable!G1608=\"\",\"\",ScriptText!$B$1&CHAR(10)&ScriptText!$D$1)","v":""},{"$f":"IF(OrigTable!G1608=\"\",\"\",TEXT(OrigTable!G1608,\"00\"))","v":""},{"$f":"IF(OrigTable!G1608=\"\",\"\",ScriptText!$E$1&CHAR(10)&ScriptText!$C$1)","v":""},0]
[{"$f":"_xlfn.TEXTJOIN(\"\",TRUE,B1609:D1609)&CHAR(10)&_xlfn.TEXTJOIN(\"\",TRUE,E1609:G1609)&CHAR(10)&_xlfn.TEXTJOIN(\"\",TRUE,H1609:J1609)&CHAR(10)&_xlfn.TEXTJOIN(\"\",TRUE,K1609:M1609)&_xlfn.TEXTJOIN(\"\",TRUE,N1609:P1609)&_xlfn.TEXTJOIN(\"\",TRUE,Q1609:S1609)&_xlfn.TEXTJOIN(\"\",TRUE,T1609:V1609)","v":"\n\n\n"},{"$f":"IF(OrigTable!A1609=\"\",\"\",ScriptText!$B$1&CHAR(10)&ScriptText!$D$1)","v":""},{"$f":"IF(OrigTable!A1609=\"\",\"\",TEXT(OrigTable!A1609,\"00\"))","v":""},{"$f":"IF(OrigTable!A1609=\"\",\"\",ScriptText!$E$1&CHAR(10)&ScriptText!$C$1)","v":""},{"$f":"IF(OrigTable!B1609=\"\",\"\",ScriptText!$B$1&CHAR(10)&ScriptText!$D$1)","v":""},{"$f":"IF(OrigTable!B1609=\"\",\"\",TEXT(OrigTable!B1609,\"00\"))","v":""},{"$f":"IF(OrigTable!B1609=\"\",\"\",ScriptText!$E$1&CHAR(10)&ScriptText!C1604)","v":""},{"$f":"IF(OrigTable!C1609=\"\",\"\",ScriptText!$B$1&CHAR(10)&ScriptText!$D$1)","v":""},{"$f":"IF(OrigTable!C1609=\"\",\"\",IF(LEN(OrigTable!C1609)>255,LEFT(OrigTable!C1609,250)&\". . .\",OrigTable!C1609))","v":""},{"$f":"IF(OrigTable!C1609=\"\",\"\",ScriptText!$E$1&CHAR(10)&ScriptText!$C$1)","v":""},{"$f":"IF(OrigTable!D1609=\"\",\"\",ScriptText!$B$1&CHAR(10)&ScriptText!$D$1)","v":""},{"$f":"IF(OrigTable!D1609=\"\",\"\",TEXT(OrigTable!D1609,\"00\"))","v":""},{"$f":"IF(OrigTable!D1609=\"\",\"\",ScriptText!$E$1&CHAR(10)&ScriptText!$C$1)","v":""},{"$f":"IF(OrigTable!E1609=\"\",\"\",ScriptText!$B$1&CHAR(10)&ScriptText!$D$1)","v":""},{"$f":"IF(OrigTable!E1609=\"\",\"\",TEXT(OrigTable!E1609,\"00\"))","v":""},{"$f":"IF(OrigTable!E1609=\"\",\"\",ScriptText!$E$1&CHAR(10)&ScriptText!$C$1)","v":""},{"$f":"IF(OrigTable!F1609=\"\",\"\",ScriptText!$B$1&CHAR(10)&ScriptText!$D$1)","v":""},{"$f":"IF(OrigTable!F1609=\"\",\"\",TEXT(OrigTable!F1609,\"00\"))","v":""},{"$f":"IF(OrigTable!F1609=\"\",\"\",ScriptText!$E$1&CHAR(10)&ScriptText!$C$1)","v":""},{"$f":"IF(OrigTable!G1609=\"\",\"\",ScriptText!$B$1&CHAR(10)&ScriptText!$D$1)","v":""},{"$f":"IF(OrigTable!G1609=\"\",\"\",TEXT(OrigTable!G1609,\"00\"))","v":""},{"$f":"IF(OrigTable!G1609=\"\",\"\",ScriptText!$E$1&CHAR(10)&ScriptText!$C$1)","v":""},0]
["\n\n\n",{"$f":"IF(OrigTable!A1610=\"\",\"\",ScriptText!$B$1&CHAR(10)&ScriptText!$D$1)","v":""},{"$f":"IF(OrigTable!A1610=\"\",\"\",TEXT(OrigTable!A1610,\"00\"))","v":""},{"$f":"IF(OrigTable!A1610=\"\",\"\",ScriptText!$E$1&CHAR(10)&ScriptText!$C$1)","v":""},{"$f":"IF(OrigTable!B1610=\"\",\"\",ScriptText!$B$1&CHAR(10)&ScriptText!$D$1)","v":""},{"$f":"IF(OrigTable!B1610=\"\",\"\",TEXT(OrigTable!B1610,\"00\"))","v":""},{"$f":"IF(OrigTable!B1610=\"\",\"\",ScriptText!$E$1&CHAR(10)&ScriptText!C1605)","v":""},{"$f":"IF(OrigTable!C1610=\"\",\"\",ScriptText!$B$1&CHAR(10)&ScriptText!$D$1)","v":""},{"$f":"IF(OrigTable!C1610=\"\",\"\",IF(LEN(OrigTable!C1610)>255,LEFT(OrigTable!C1610,250)&\". . .\",OrigTable!C1610))","v":""},{"$f":"IF(OrigTable!C1610=\"\",\"\",ScriptText!$E$1&CHAR(10)&ScriptText!$C$1)","v":""},{"$f":"IF(OrigTable!D1610=\"\",\"\",ScriptText!$B$1&CHAR(10)&ScriptText!$D$1)","v":""},{"$f":"IF(OrigTable!D1610=\"\",\"\",TEXT(OrigTable!D1610,\"00\"))","v":""},{"$f":"IF(OrigTable!D1610=\"\",\"\",ScriptText!$E$1&CHAR(10)&ScriptText!$C$1)","v":""},{"$f":"IF(OrigTable!E1610=\"\",\"\",ScriptText!$B$1&CHAR(10)&ScriptText!$D$1)","v":""},{"$f":"IF(OrigTable!E1610=\"\",\"\",TEXT(OrigTable!E1610,\"00\"))","v":""},{"$f":"IF(OrigTable!E1610=\"\",\"\",ScriptText!$E$1&CHAR(10)&ScriptText!$C$1)","v":""},{"$f":"IF(OrigTable!F1610=\"\",\"\",ScriptText!$B$1&CHAR(10)&ScriptText!$D$1)","v":""},{"$f":"IF(OrigTable!F1610=\"\",\"\",TEXT(OrigTable!F1610,\"00\"))","v":""},{"$f":"IF(OrigTable!F1610=\"\",\"\",ScriptText!$E$1&CHAR(10)&ScriptText!$C$1)","v":""},{"$f":"IF(OrigTable!G1610=\"\",\"\",ScriptText!$B$1&CHAR(10)&ScriptText!$D$1)","v":""},{"$f":"IF(OrigTable!G1610=\"\",\"\",TEXT(OrigTable!G1610,\"00\"))","v":""},{"$f":"IF(OrigTable!G1610=\"\",\"\",ScriptText!$E$1&CHAR(10)&ScriptText!$C$1)","v":""},0]
[{"$f":"_xlfn.TEXTJOIN(\"\",TRUE,B1611:D1611)&CHAR(10)&_xlfn.TEXTJOIN(\"\",TRUE,E1611:G1611)&CHAR(10)&_xlfn.TEXTJOIN(\"\",TRUE,H1611:J1611)&CHAR(10)&_xlfn.TEXTJOIN(\"\",TRUE,K1611:M1611)&_xlfn.TEXTJOIN(\"\",TRUE,N1611:P1611)&_xlfn.TEXTJOIN(\"\",TRUE,Q1611:S1611)&_xlfn.TEXTJOIN(\"\",TRUE,T1611:V1611)","v":"\n\n\n"},{"$f":"IF(OrigTable!A1611=\"\",\"\",ScriptText!$B$1&CHAR(10)&ScriptText!$D$1)","v":""},{"$f":"IF(OrigTable!A1611=\"\",\"\",TEXT(OrigTable!A1611,\"00\"))","v":""},{"$f":"IF(OrigTable!A1611=\"\",\"\",ScriptText!$E$1&CHAR(10)&ScriptText!$C$1)","v":""},{"$f":"IF(OrigTable!B1611=\"\",\"\",ScriptText!$B$1&CHAR(10)&ScriptText!$D$1)","v":""},{"$f":"IF(OrigTable!B1611=\"\",\"\",TEXT(OrigTable!B1611,\"00\"))","v":""},{"$f":"IF(OrigTable!B1611=\"\",\"\",ScriptText!$E$1&CHAR(10)&ScriptText!C1606)","v":""},{"$f":"IF(OrigTable!C1611=\"\",\"\",ScriptText!$B$1&CHAR(10)&ScriptText!$D$1)","v":""},{"$f":"IF(OrigTable!C1611=\"\",\"\",IF(LEN(OrigTable!C1611)>255,LEFT(OrigTable!C1611,250)&\". . .\",OrigTable!C1611))","v":""},{"$f":"IF(OrigTable!C1611=\"\",\"\",ScriptText!$E$1&CHAR(10)&ScriptText!$C$1)","v":""},{"$f":"IF(OrigTable!D1611=\"\",\"\",ScriptText!$B$1&CHAR(10)&ScriptText!$D$1)","v":""},{"$f":"IF(OrigTable!D1611=\"\",\"\",TEXT(OrigTable!D1611,\"00\"))","v":""},{"$f":"IF(OrigTable!D1611=\"\",\"\",ScriptText!$E$1&CHAR(10)&ScriptText!$C$1)","v":""},{"$f":"IF(OrigTable!E1611=\"\",\"\",ScriptText!$B$1&CHAR(10)&ScriptText!$D$1)","v":""},{"$f":"IF(OrigTable!E1611=\"\",\"\",TEXT(OrigTable!E1611,\"00\"))","v":""},{"$f":"IF(OrigTable!E1611=\"\",\"\",ScriptText!$E$1&CHAR(10)&ScriptText!$C$1)","v":""},{"$f":"IF(OrigTable!F1611=\"\",\"\",ScriptText!$B$1&CHAR(10)&ScriptText!$D$1)","v":""},{"$f":"IF(OrigTable!F1611=\"\",\"\",TEXT(OrigTable!F1611,\"00\"))","v":""},{"$f":"IF(OrigTable!F1611=\"\",\"\",ScriptText!$E$1&CHAR(10)&ScriptText!$C$1)","v":""},{"$f":"IF(OrigTable!G1611=\"\",\"\",ScriptText!$B$1&CHAR(10)&ScriptText!$D$1)","v":""},{"$f":"IF(OrigTable!G1611=\"\",\"\",TEXT(OrigTable!G1611,\"00\"))","v":""},{"$f":"IF(OrigTable!G1611=\"\",\"\",ScriptText!$E$1&CHAR(10)&ScriptText!$C$1)","v":""},0]
["\n\n\n",{"$f":"IF(OrigTable!A1612=\"\",\"\",ScriptText!$B$1&CHAR(10)&ScriptText!$D$1)","v":""},{"$f":"IF(OrigTable!A1612=\"\",\"\",TEXT(OrigTable!A1612,\"00\"))","v":""},{"$f":"IF(OrigTable!A1612=\"\",\"\",ScriptText!$E$1&CHAR(10)&ScriptText!$C$1)","v":""},{"$f":"IF(OrigTable!B1612=\"\",\"\",ScriptText!$B$1&CHAR(10)&ScriptText!$D$1)","v":""},{"$f":"IF(OrigTable!B1612=\"\",\"\",TEXT(OrigTable!B1612,\"00\"))","v":""},{"$f":"IF(OrigTable!B1612=\"\",\"\",ScriptText!$E$1&CHAR(10)&ScriptText!C1607)","v":""},{"$f":"IF(OrigTable!C1612=\"\",\"\",ScriptText!$B$1&CHAR(10)&ScriptText!$D$1)","v":""},{"$f":"IF(OrigTable!C1612=\"\",\"\",IF(LEN(OrigTable!C1612)>255,LEFT(OrigTable!C1612,250)&\". . .\",OrigTable!C1612))","v":""},{"$f":"IF(OrigTable!C1612=\"\",\"\",ScriptText!$E$1&CHAR(10)&ScriptText!$C$1)","v":""},{"$f":"IF(OrigTable!D1612=\"\",\"\",ScriptText!$B$1&CHAR(10)&ScriptText!$D$1)","v":""},{"$f":"IF(OrigTable!D1612=\"\",\"\",TEXT(OrigTable!D1612,\"00\"))","v":""},{"$f":"IF(OrigTable!D1612=\"\",\"\",ScriptText!$E$1&CHAR(10)&ScriptText!$C$1)","v":""},{"$f":"IF(OrigTable!E1612=\"\",\"\",ScriptText!$B$1&CHAR(10)&ScriptText!$D$1)","v":""},{"$f":"IF(OrigTable!E1612=\"\",\"\",TEXT(OrigTable!E1612,\"00\"))","v":""},{"$f":"IF(OrigTable!E1612=\"\",\"\",ScriptText!$E$1&CHAR(10)&ScriptText!$C$1)","v":""},{"$f":"IF(OrigTable!F1612=\"\",\"\",ScriptText!$B$1&CHAR(10)&ScriptText!$D$1)","v":""},{"$f":"IF(OrigTable!F1612=\"\",\"\",TEXT(OrigTable!F1612,\"00\"))","v":""},{"$f":"IF(OrigTable!F1612=\"\",\"\",ScriptText!$E$1&CHAR(10)&ScriptText!$C$1)","v":""},{"$f":"IF(OrigTable!G1612=\"\",\"\",ScriptText!$B$1&CHAR(10)&ScriptText!$D$1)","v":""},{"$f":"IF(OrigTable!G1612=\"\",\"\",TEXT(OrigTable!G1612,\"00\"))","v":""},{"$f":"IF(OrigTable!G1612=\"\",\"\",ScriptText!$E$1&CHAR(10)&ScriptText!$C$1)","v":""},0]
["\n\n\n",{"$f":"IF(OrigTable!A1613=\"\",\"\",ScriptText!$B$1&CHAR(10)&ScriptText!$D$1)","v":""},{"$f":"IF(OrigTable!A1613=\"\",\"\",TEXT(OrigTable!A1613,\"00\"))","v":""},{"$f":"IF(OrigTable!A1613=\"\",\"\",ScriptText!$E$1&CHAR(10)&ScriptText!$C$1)","v":""},{"$f":"IF(OrigTable!B1613=\"\",\"\",ScriptText!$B$1&CHAR(10)&ScriptText!$D$1)","v":""},{"$f":"IF(OrigTable!B1613=\"\",\"\",TEXT(OrigTable!B1613,\"00\"))","v":""},{"$f":"IF(OrigTable!B1613=\"\",\"\",ScriptText!$E$1&CHAR(10)&ScriptText!C1608)","v":""},{"$f":"IF(OrigTable!C1613=\"\",\"\",ScriptText!$B$1&CHAR(10)&ScriptText!$D$1)","v":""},{"$f":"IF(OrigTable!C1613=\"\",\"\",IF(LEN(OrigTable!C1613)>255,LEFT(OrigTable!C1613,250)&\". . .\",OrigTable!C1613))","v":""},{"$f":"IF(OrigTable!C1613=\"\",\"\",ScriptText!$E$1&CHAR(10)&ScriptText!$C$1)","v":""},{"$f":"IF(OrigTable!D1613=\"\",\"\",ScriptText!$B$1&CHAR(10)&ScriptText!$D$1)","v":""},{"$f":"IF(OrigTable!D1613=\"\",\"\",TEXT(OrigTable!D1613,\"00\"))","v":""},{"$f":"IF(OrigTable!D1613=\"\",\"\",ScriptText!$E$1&CHAR(10)&ScriptText!$C$1)","v":""},{"$f":"IF(OrigTable!E1613=\"\",\"\",ScriptText!$B$1&CHAR(10)&ScriptText!$D$1)","v":""},{"$f":"IF(OrigTable!E1613=\"\",\"\",TEXT(OrigTable!E1613,\"00\"))","v":""},{"$f":"IF(OrigTable!E1613=\"\",\"\",ScriptText!$E$1&CHAR(10)&ScriptText!$C$1)","v":""},{"$f":"IF(OrigTable!F1613=\"\",\"\",ScriptText!$B$1&CHAR(10)&ScriptText!$D$1)","v":""},{"$f":"IF(OrigTable!F1613=\"\",\"\",TEXT(OrigTable!F1613,\"00\"))","v":""},{"$f":"IF(OrigTable!F1613=\"\",\"\",ScriptText!$E$1&CHAR(10)&ScriptText!$C$1)","v":""},{"$f":"IF(OrigTable!G1613=\"\",\"\",ScriptText!$B$1&CHAR(10)&ScriptText!$D$1)","v":""},{"$f":"IF(OrigTable!G1613=\"\",\"\",TEXT(OrigTable!G1613,\"00\"))","v":""},{"$f":"IF(OrigTable!G1613=\"\",\"\",ScriptText!$E$1&CHAR(10)&ScriptText!$C$1)","v":""},0]
["\n\n\n",{"$f":"IF(OrigTable!A1614=\"\",\"\",ScriptText!$B$1&CHAR(10)&ScriptText!$D$1)","v":""},{"$f":"IF(OrigTable!A1614=\"\",\"\",TEXT(OrigTable!A1614,\"00\"))","v":""},{"$f":"IF(OrigTable!A1614=\"\",\"\",ScriptText!$E$1&CHAR(10)&ScriptText!$C$1)","v":""},{"$f":"IF(OrigTable!B1614=\"\",\"\",ScriptText!$B$1&CHAR(10)&ScriptText!$D$1)","v":""},{"$f":"IF(OrigTable!B1614=\"\",\"\",TEXT(OrigTable!B1614,\"00\"))","v":""},{"$f":"IF(OrigTable!B1614=\"\",\"\",ScriptText!$E$1&CHAR(10)&ScriptText!C1609)","v":""},{"$f":"IF(OrigTable!C1614=\"\",\"\",ScriptText!$B$1&CHAR(10)&ScriptText!$D$1)","v":""},{"$f":"IF(OrigTable!C1614=\"\",\"\",IF(LEN(OrigTable!C1614)>255,LEFT(OrigTable!C1614,250)&\". . .\",OrigTable!C1614))","v":""},{"$f":"IF(OrigTable!C1614=\"\",\"\",ScriptText!$E$1&CHAR(10)&ScriptText!$C$1)","v":""},{"$f":"IF(OrigTable!D1614=\"\",\"\",ScriptText!$B$1&CHAR(10)&ScriptText!$D$1)","v":""},{"$f":"IF(OrigTable!D1614=\"\",\"\",TEXT(OrigTable!D1614,\"00\"))","v":""},{"$f":"IF(OrigTable!D1614=\"\",\"\",ScriptText!$E$1&CHAR(10)&ScriptText!$C$1)","v":""},{"$f":"IF(OrigTable!E1614=\"\",\"\",ScriptText!$B$1&CHAR(10)&ScriptText!$D$1)","v":""},{"$f":"IF(OrigTable!E1614=\"\",\"\",TEXT(OrigTable!E1614,\"00\"))","v":""},{"$f":"IF(OrigTable!E1614=\"\",\"\",ScriptText!$E$1&CHAR(10)&ScriptText!$C$1)","v":""},{"$f":"IF(OrigTable!F1614=\"\",\"\",ScriptText!$B$1&CHAR(10)&ScriptText!$D$1)","v":""},{"$f":"IF(OrigTable!F1614=\"\",\"\",TEXT(OrigTable!F1614,\"00\"))","v":""},{"$f":"IF(OrigTable!F1614=\"\",\"\",ScriptText!$E$1&CHAR(10)&ScriptText!$C$1)","v":""},{"$f":"IF(OrigTable!G1614=\"\",\"\",ScriptText!$B$1&CHAR(10)&ScriptText!$D$1)","v":""},{"$f":"IF(OrigTable!G1614=\"\",\"\",TEXT(OrigTable!G1614,\"00\"))","v":""},{"$f":"IF(OrigTable!G1614=\"\",\"\",ScriptText!$E$1&CHAR(10)&ScriptText!$C$1)","v":""},0]
["\n\n\n",{"$f":"IF(OrigTable!A1615=\"\",\"\",ScriptText!$B$1&CHAR(10)&ScriptText!$D$1)","v":""},{"$f":"IF(OrigTable!A1615=\"\",\"\",TEXT(OrigTable!A1615,\"00\"))","v":""},{"$f":"IF(OrigTable!A1615=\"\",\"\",ScriptText!$E$1&CHAR(10)&ScriptText!$C$1)","v":""},{"$f":"IF(OrigTable!B1615=\"\",\"\",ScriptText!$B$1&CHAR(10)&ScriptText!$D$1)","v":""},{"$f":"IF(OrigTable!B1615=\"\",\"\",TEXT(OrigTable!B1615,\"00\"))","v":""},{"$f":"IF(OrigTable!B1615=\"\",\"\",ScriptText!$E$1&CHAR(10)&ScriptText!C1610)","v":""},{"$f":"IF(OrigTable!C1615=\"\",\"\",ScriptText!$B$1&CHAR(10)&ScriptText!$D$1)","v":""},{"$f":"IF(OrigTable!C1615=\"\",\"\",IF(LEN(OrigTable!C1615)>255,LEFT(OrigTable!C1615,250)&\". . .\",OrigTable!C1615))","v":""},{"$f":"IF(OrigTable!C1615=\"\",\"\",ScriptText!$E$1&CHAR(10)&ScriptText!$C$1)","v":""},{"$f":"IF(OrigTable!D1615=\"\",\"\",ScriptText!$B$1&CHAR(10)&ScriptText!$D$1)","v":""},{"$f":"IF(OrigTable!D1615=\"\",\"\",TEXT(OrigTable!D1615,\"00\"))","v":""},{"$f":"IF(OrigTable!D1615=\"\",\"\",ScriptText!$E$1&CHAR(10)&ScriptText!$C$1)","v":""},{"$f":"IF(OrigTable!E1615=\"\",\"\",ScriptText!$B$1&CHAR(10)&ScriptText!$D$1)","v":""},{"$f":"IF(OrigTable!E1615=\"\",\"\",TEXT(OrigTable!E1615,\"00\"))","v":""},{"$f":"IF(OrigTable!E1615=\"\",\"\",ScriptText!$E$1&CHAR(10)&ScriptText!$C$1)","v":""},{"$f":"IF(OrigTable!F1615=\"\",\"\",ScriptText!$B$1&CHAR(10)&ScriptText!$D$1)","v":""},{"$f":"IF(OrigTable!F1615=\"\",\"\",TEXT(OrigTable!F1615,\"00\"))","v":""},{"$f":"IF(OrigTable!F1615=\"\",\"\",ScriptText!$E$1&CHAR(10)&ScriptText!$C$1)","v":""},{"$f":"IF(OrigTable!G1615=\"\",\"\",ScriptText!$B$1&CHAR(10)&ScriptText!$D$1)","v":""},{"$f":"IF(OrigTable!G1615=\"\",\"\",TEXT(OrigTable!G1615,\"00\"))","v":""},{"$f":"IF(OrigTable!G1615=\"\",\"\",ScriptText!$E$1&CHAR(10)&ScriptText!$C$1)","v":""},0]
["\n\n\n",{"$f":"IF(OrigTable!A1616=\"\",\"\",ScriptText!$B$1&CHAR(10)&ScriptText!$D$1)","v":""},{"$f":"IF(OrigTable!A1616=\"\",\"\",TEXT(OrigTable!A1616,\"00\"))","v":""},{"$f":"IF(OrigTable!A1616=\"\",\"\",ScriptText!$E$1&CHAR(10)&ScriptText!$C$1)","v":""},{"$f":"IF(OrigTable!B1616=\"\",\"\",ScriptText!$B$1&CHAR(10)&ScriptText!$D$1)","v":""},{"$f":"IF(OrigTable!B1616=\"\",\"\",TEXT(OrigTable!B1616,\"00\"))","v":""},{"$f":"IF(OrigTable!B1616=\"\",\"\",ScriptText!$E$1&CHAR(10)&ScriptText!C1611)","v":""},{"$f":"IF(OrigTable!C1616=\"\",\"\",ScriptText!$B$1&CHAR(10)&ScriptText!$D$1)","v":""},{"$f":"IF(OrigTable!C1616=\"\",\"\",IF(LEN(OrigTable!C1616)>255,LEFT(OrigTable!C1616,250)&\". . .\",OrigTable!C1616))","v":""},{"$f":"IF(OrigTable!C1616=\"\",\"\",ScriptText!$E$1&CHAR(10)&ScriptText!$C$1)","v":""},{"$f":"IF(OrigTable!D1616=\"\",\"\",ScriptText!$B$1&CHAR(10)&ScriptText!$D$1)","v":""},{"$f":"IF(OrigTable!D1616=\"\",\"\",TEXT(OrigTable!D1616,\"00\"))","v":""},{"$f":"IF(OrigTable!D1616=\"\",\"\",ScriptText!$E$1&CHAR(10)&ScriptText!$C$1)","v":""},{"$f":"IF(OrigTable!E1616=\"\",\"\",ScriptText!$B$1&CHAR(10)&ScriptText!$D$1)","v":""},{"$f":"IF(OrigTable!E1616=\"\",\"\",TEXT(OrigTable!E1616,\"00\"))","v":""},{"$f":"IF(OrigTable!E1616=\"\",\"\",ScriptText!$E$1&CHAR(10)&ScriptText!$C$1)","v":""},{"$f":"IF(OrigTable!F1616=\"\",\"\",ScriptText!$B$1&CHAR(10)&ScriptText!$D$1)","v":""},{"$f":"IF(OrigTable!F1616=\"\",\"\",TEXT(OrigTable!F1616,\"00\"))","v":""},{"$f":"IF(OrigTable!F1616=\"\",\"\",ScriptText!$E$1&CHAR(10)&ScriptText!$C$1)","v":""},{"$f":"IF(OrigTable!G1616=\"\",\"\",ScriptText!$B$1&CHAR(10)&ScriptText!$D$1)","v":""},{"$f":"IF(OrigTable!G1616=\"\",\"\",TEXT(OrigTable!G1616,\"00\"))","v":""},{"$f":"IF(OrigTable!G1616=\"\",\"\",ScriptText!$E$1&CHAR(10)&ScriptText!$C$1)","v":""},0]
["\n\n\n",{"$f":"IF(OrigTable!A1617=\"\",\"\",ScriptText!$B$1&CHAR(10)&ScriptText!$D$1)","v":""},{"$f":"IF(OrigTable!A1617=\"\",\"\",TEXT(OrigTable!A1617,\"00\"))","v":""},{"$f":"IF(OrigTable!A1617=\"\",\"\",ScriptText!$E$1&CHAR(10)&ScriptText!$C$1)","v":""},{"$f":"IF(OrigTable!B1617=\"\",\"\",ScriptText!$B$1&CHAR(10)&ScriptText!$D$1)","v":""},{"$f":"IF(OrigTable!B1617=\"\",\"\",TEXT(OrigTable!B1617,\"00\"))","v":""},{"$f":"IF(OrigTable!B1617=\"\",\"\",ScriptText!$E$1&CHAR(10)&ScriptText!C1612)","v":""},{"$f":"IF(OrigTable!C1617=\"\",\"\",ScriptText!$B$1&CHAR(10)&ScriptText!$D$1)","v":""},{"$f":"IF(OrigTable!C1617=\"\",\"\",IF(LEN(OrigTable!C1617)>255,LEFT(OrigTable!C1617,250)&\". . .\",OrigTable!C1617))","v":""},{"$f":"IF(OrigTable!C1617=\"\",\"\",ScriptText!$E$1&CHAR(10)&ScriptText!$C$1)","v":""},{"$f":"IF(OrigTable!D1617=\"\",\"\",ScriptText!$B$1&CHAR(10)&ScriptText!$D$1)","v":""},{"$f":"IF(OrigTable!D1617=\"\",\"\",TEXT(OrigTable!D1617,\"00\"))","v":""},{"$f":"IF(OrigTable!D1617=\"\",\"\",ScriptText!$E$1&CHAR(10)&ScriptText!$C$1)","v":""},{"$f":"IF(OrigTable!E1617=\"\",\"\",ScriptText!$B$1&CHAR(10)&ScriptText!$D$1)","v":""},{"$f":"IF(OrigTable!E1617=\"\",\"\",TEXT(OrigTable!E1617,\"00\"))","v":""},{"$f":"IF(OrigTable!E1617=\"\",\"\",ScriptText!$E$1&CHAR(10)&ScriptText!$C$1)","v":""},{"$f":"IF(OrigTable!F1617=\"\",\"\",ScriptText!$B$1&CHAR(10)&ScriptText!$D$1)","v":""},{"$f":"IF(OrigTable!F1617=\"\",\"\",TEXT(OrigTable!F1617,\"00\"))","v":""},{"$f":"IF(OrigTable!F1617=\"\",\"\",ScriptText!$E$1&CHAR(10)&ScriptText!$C$1)","v":""},{"$f":"IF(OrigTable!G1617=\"\",\"\",ScriptText!$B$1&CHAR(10)&ScriptText!$D$1)","v":""},{"$f":"IF(OrigTable!G1617=\"\",\"\",TEXT(OrigTable!G1617,\"00\"))","v":""},{"$f":"IF(OrigTable!G1617=\"\",\"\",ScriptText!$E$1&CHAR(10)&ScriptText!$C$1)","v":""},0]
["\n\n\n",{"$f":"IF(OrigTable!A1618=\"\",\"\",ScriptText!$B$1&CHAR(10)&ScriptText!$D$1)","v":""},{"$f":"IF(OrigTable!A1618=\"\",\"\",TEXT(OrigTable!A1618,\"00\"))","v":""},{"$f":"IF(OrigTable!A1618=\"\",\"\",ScriptText!$E$1&CHAR(10)&ScriptText!$C$1)","v":""},{"$f":"IF(OrigTable!B1618=\"\",\"\",ScriptText!$B$1&CHAR(10)&ScriptText!$D$1)","v":""},{"$f":"IF(OrigTable!B1618=\"\",\"\",TEXT(OrigTable!B1618,\"00\"))","v":""},{"$f":"IF(OrigTable!B1618=\"\",\"\",ScriptText!$E$1&CHAR(10)&ScriptText!C1613)","v":""},{"$f":"IF(OrigTable!C1618=\"\",\"\",ScriptText!$B$1&CHAR(10)&ScriptText!$D$1)","v":""},{"$f":"IF(OrigTable!C1618=\"\",\"\",IF(LEN(OrigTable!C1618)>255,LEFT(OrigTable!C1618,250)&\". . .\",OrigTable!C1618))","v":""},{"$f":"IF(OrigTable!C1618=\"\",\"\",ScriptText!$E$1&CHAR(10)&ScriptText!$C$1)","v":""},{"$f":"IF(OrigTable!D1618=\"\",\"\",ScriptText!$B$1&CHAR(10)&ScriptText!$D$1)","v":""},{"$f":"IF(OrigTable!D1618=\"\",\"\",TEXT(OrigTable!D1618,\"00\"))","v":""},{"$f":"IF(OrigTable!D1618=\"\",\"\",ScriptText!$E$1&CHAR(10)&ScriptText!$C$1)","v":""},{"$f":"IF(OrigTable!E1618=\"\",\"\",ScriptText!$B$1&CHAR(10)&ScriptText!$D$1)","v":""},{"$f":"IF(OrigTable!E1618=\"\",\"\",TEXT(OrigTable!E1618,\"00\"))","v":""},{"$f":"IF(OrigTable!E1618=\"\",\"\",ScriptText!$E$1&CHAR(10)&ScriptText!$C$1)","v":""},{"$f":"IF(OrigTable!F1618=\"\",\"\",ScriptText!$B$1&CHAR(10)&ScriptText!$D$1)","v":""},{"$f":"IF(OrigTable!F1618=\"\",\"\",TEXT(OrigTable!F1618,\"00\"))","v":""},{"$f":"IF(OrigTable!F1618=\"\",\"\",ScriptText!$E$1&CHAR(10)&ScriptText!$C$1)","v":""},{"$f":"IF(OrigTable!G1618=\"\",\"\",ScriptText!$B$1&CHAR(10)&ScriptText!$D$1)","v":""},{"$f":"IF(OrigTable!G1618=\"\",\"\",TEXT(OrigTable!G1618,\"00\"))","v":""},{"$f":"IF(OrigTable!G1618=\"\",\"\",ScriptText!$E$1&CHAR(10)&ScriptText!$C$1)","v":""},0]
["\n\n\n",{"$f":"IF(OrigTable!A1619=\"\",\"\",ScriptText!$B$1&CHAR(10)&ScriptText!$D$1)","v":""},{"$f":"IF(OrigTable!A1619=\"\",\"\",TEXT(OrigTable!A1619,\"00\"))","v":""},{"$f":"IF(OrigTable!A1619=\"\",\"\",ScriptText!$E$1&CHAR(10)&ScriptText!$C$1)","v":""},{"$f":"IF(OrigTable!B1619=\"\",\"\",ScriptText!$B$1&CHAR(10)&ScriptText!$D$1)","v":""},{"$f":"IF(OrigTable!B1619=\"\",\"\",TEXT(OrigTable!B1619,\"00\"))","v":""},{"$f":"IF(OrigTable!B1619=\"\",\"\",ScriptText!$E$1&CHAR(10)&ScriptText!C1614)","v":""},{"$f":"IF(OrigTable!C1619=\"\",\"\",ScriptText!$B$1&CHAR(10)&ScriptText!$D$1)","v":""},{"$f":"IF(OrigTable!C1619=\"\",\"\",IF(LEN(OrigTable!C1619)>255,LEFT(OrigTable!C1619,250)&\". . .\",OrigTable!C1619))","v":""},{"$f":"IF(OrigTable!C1619=\"\",\"\",ScriptText!$E$1&CHAR(10)&ScriptText!$C$1)","v":""},{"$f":"IF(OrigTable!D1619=\"\",\"\",ScriptText!$B$1&CHAR(10)&ScriptText!$D$1)","v":""},{"$f":"IF(OrigTable!D1619=\"\",\"\",TEXT(OrigTable!D1619,\"00\"))","v":""},{"$f":"IF(OrigTable!D1619=\"\",\"\",ScriptText!$E$1&CHAR(10)&ScriptText!$C$1)","v":""},{"$f":"IF(OrigTable!E1619=\"\",\"\",ScriptText!$B$1&CHAR(10)&ScriptText!$D$1)","v":""},{"$f":"IF(OrigTable!E1619=\"\",\"\",TEXT(OrigTable!E1619,\"00\"))","v":""},{"$f":"IF(OrigTable!E1619=\"\",\"\",ScriptText!$E$1&CHAR(10)&ScriptText!$C$1)","v":""},{"$f":"IF(OrigTable!F1619=\"\",\"\",ScriptText!$B$1&CHAR(10)&ScriptText!$D$1)","v":""},{"$f":"IF(OrigTable!F1619=\"\",\"\",TEXT(OrigTable!F1619,\"00\"))","v":""},{"$f":"IF(OrigTable!F1619=\"\",\"\",ScriptText!$E$1&CHAR(10)&ScriptText!$C$1)","v":""},{"$f":"IF(OrigTable!G1619=\"\",\"\",ScriptText!$B$1&CHAR(10)&ScriptText!$D$1)","v":""},{"$f":"IF(OrigTable!G1619=\"\",\"\",TEXT(OrigTable!G1619,\"00\"))","v":""},{"$f":"IF(OrigTable!G1619=\"\",\"\",ScriptText!$E$1&CHAR(10)&ScriptText!$C$1)","v":""},0]
["\n\n\n",{"$f":"IF(OrigTable!A1620=\"\",\"\",ScriptText!$B$1&CHAR(10)&ScriptText!$D$1)","v":""},{"$f":"IF(OrigTable!A1620=\"\",\"\",TEXT(OrigTable!A1620,\"00\"))","v":""},{"$f":"IF(OrigTable!A1620=\"\",\"\",ScriptText!$E$1&CHAR(10)&ScriptText!$C$1)","v":""},{"$f":"IF(OrigTable!B1620=\"\",\"\",ScriptText!$B$1&CHAR(10)&ScriptText!$D$1)","v":""},{"$f":"IF(OrigTable!B1620=\"\",\"\",TEXT(OrigTable!B1620,\"00\"))","v":""},{"$f":"IF(OrigTable!B1620=\"\",\"\",ScriptText!$E$1&CHAR(10)&ScriptText!C1615)","v":""},{"$f":"IF(OrigTable!C1620=\"\",\"\",ScriptText!$B$1&CHAR(10)&ScriptText!$D$1)","v":""},{"$f":"IF(OrigTable!C1620=\"\",\"\",IF(LEN(OrigTable!C1620)>255,LEFT(OrigTable!C1620,250)&\". . .\",OrigTable!C1620))","v":""},{"$f":"IF(OrigTable!C1620=\"\",\"\",ScriptText!$E$1&CHAR(10)&ScriptText!$C$1)","v":""},{"$f":"IF(OrigTable!D1620=\"\",\"\",ScriptText!$B$1&CHAR(10)&ScriptText!$D$1)","v":""},{"$f":"IF(OrigTable!D1620=\"\",\"\",TEXT(OrigTable!D1620,\"00\"))","v":""},{"$f":"IF(OrigTable!D1620=\"\",\"\",ScriptText!$E$1&CHAR(10)&ScriptText!$C$1)","v":""},{"$f":"IF(OrigTable!E1620=\"\",\"\",ScriptText!$B$1&CHAR(10)&ScriptText!$D$1)","v":""},{"$f":"IF(OrigTable!E1620=\"\",\"\",TEXT(OrigTable!E1620,\"00\"))","v":""},{"$f":"IF(OrigTable!E1620=\"\",\"\",ScriptText!$E$1&CHAR(10)&ScriptText!$C$1)","v":""},{"$f":"IF(OrigTable!F1620=\"\",\"\",ScriptText!$B$1&CHAR(10)&ScriptText!$D$1)","v":""},{"$f":"IF(OrigTable!F1620=\"\",\"\",TEXT(OrigTable!F1620,\"00\"))","v":""},{"$f":"IF(OrigTable!F1620=\"\",\"\",ScriptText!$E$1&CHAR(10)&ScriptText!$C$1)","v":""},{"$f":"IF(OrigTable!G1620=\"\",\"\",ScriptText!$B$1&CHAR(10)&ScriptText!$D$1)","v":""},{"$f":"IF(OrigTable!G1620=\"\",\"\",TEXT(OrigTable!G1620,\"00\"))","v":""},{"$f":"IF(OrigTable!G1620=\"\",\"\",ScriptText!$E$1&CHAR(10)&ScriptText!$C$1)","v":""},0]
["\n\n\n",{"$f":"IF(OrigTable!A1621=\"\",\"\",ScriptText!$B$1&CHAR(10)&ScriptText!$D$1)","v":""},{"$f":"IF(OrigTable!A1621=\"\",\"\",TEXT(OrigTable!A1621,\"00\"))","v":""},{"$f":"IF(OrigTable!A1621=\"\",\"\",ScriptText!$E$1&CHAR(10)&ScriptText!$C$1)","v":""},{"$f":"IF(OrigTable!B1621=\"\",\"\",ScriptText!$B$1&CHAR(10)&ScriptText!$D$1)","v":""},{"$f":"IF(OrigTable!B1621=\"\",\"\",TEXT(OrigTable!B1621,\"00\"))","v":""},{"$f":"IF(OrigTable!B1621=\"\",\"\",ScriptText!$E$1&CHAR(10)&ScriptText!C1616)","v":""},{"$f":"IF(OrigTable!C1621=\"\",\"\",ScriptText!$B$1&CHAR(10)&ScriptText!$D$1)","v":""},{"$f":"IF(OrigTable!C1621=\"\",\"\",IF(LEN(OrigTable!C1621)>255,LEFT(OrigTable!C1621,250)&\". . .\",OrigTable!C1621))","v":""},{"$f":"IF(OrigTable!C1621=\"\",\"\",ScriptText!$E$1&CHAR(10)&ScriptText!$C$1)","v":""},{"$f":"IF(OrigTable!D1621=\"\",\"\",ScriptText!$B$1&CHAR(10)&ScriptText!$D$1)","v":""},{"$f":"IF(OrigTable!D1621=\"\",\"\",TEXT(OrigTable!D1621,\"00\"))","v":""},{"$f":"IF(OrigTable!D1621=\"\",\"\",ScriptText!$E$1&CHAR(10)&ScriptText!$C$1)","v":""},{"$f":"IF(OrigTable!E1621=\"\",\"\",ScriptText!$B$1&CHAR(10)&ScriptText!$D$1)","v":""},{"$f":"IF(OrigTable!E1621=\"\",\"\",TEXT(OrigTable!E1621,\"00\"))","v":""},{"$f":"IF(OrigTable!E1621=\"\",\"\",ScriptText!$E$1&CHAR(10)&ScriptText!$C$1)","v":""},{"$f":"IF(OrigTable!F1621=\"\",\"\",ScriptText!$B$1&CHAR(10)&ScriptText!$D$1)","v":""},{"$f":"IF(OrigTable!F1621=\"\",\"\",TEXT(OrigTable!F1621,\"00\"))","v":""},{"$f":"IF(OrigTable!F1621=\"\",\"\",ScriptText!$E$1&CHAR(10)&ScriptText!$C$1)","v":""},{"$f":"IF(OrigTable!G1621=\"\",\"\",ScriptText!$B$1&CHAR(10)&ScriptText!$D$1)","v":""},{"$f":"IF(OrigTable!G1621=\"\",\"\",TEXT(OrigTable!G1621,\"00\"))","v":""},{"$f":"IF(OrigTable!G1621=\"\",\"\",ScriptText!$E$1&CHAR(10)&ScriptText!$C$1)","v":""},0]
["\n\n\n",{"$f":"IF(OrigTable!A1622=\"\",\"\",ScriptText!$B$1&CHAR(10)&ScriptText!$D$1)","v":""},{"$f":"IF(OrigTable!A1622=\"\",\"\",TEXT(OrigTable!A1622,\"00\"))","v":""},{"$f":"IF(OrigTable!A1622=\"\",\"\",ScriptText!$E$1&CHAR(10)&ScriptText!$C$1)","v":""},{"$f":"IF(OrigTable!B1622=\"\",\"\",ScriptText!$B$1&CHAR(10)&ScriptText!$D$1)","v":""},{"$f":"IF(OrigTable!B1622=\"\",\"\",TEXT(OrigTable!B1622,\"00\"))","v":""},{"$f":"IF(OrigTable!B1622=\"\",\"\",ScriptText!$E$1&CHAR(10)&ScriptText!C1617)","v":""},{"$f":"IF(OrigTable!C1622=\"\",\"\",ScriptText!$B$1&CHAR(10)&ScriptText!$D$1)","v":""},{"$f":"IF(OrigTable!C1622=\"\",\"\",IF(LEN(OrigTable!C1622)>255,LEFT(OrigTable!C1622,250)&\". . .\",OrigTable!C1622))","v":""},{"$f":"IF(OrigTable!C1622=\"\",\"\",ScriptText!$E$1&CHAR(10)&ScriptText!$C$1)","v":""},{"$f":"IF(OrigTable!D1622=\"\",\"\",ScriptText!$B$1&CHAR(10)&ScriptText!$D$1)","v":""},{"$f":"IF(OrigTable!D1622=\"\",\"\",TEXT(OrigTable!D1622,\"00\"))","v":""},{"$f":"IF(OrigTable!D1622=\"\",\"\",ScriptText!$E$1&CHAR(10)&ScriptText!$C$1)","v":""},{"$f":"IF(OrigTable!E1622=\"\",\"\",ScriptText!$B$1&CHAR(10)&ScriptText!$D$1)","v":""},{"$f":"IF(OrigTable!E1622=\"\",\"\",TEXT(OrigTable!E1622,\"00\"))","v":""},{"$f":"IF(OrigTable!E1622=\"\",\"\",ScriptText!$E$1&CHAR(10)&ScriptText!$C$1)","v":""},{"$f":"IF(OrigTable!F1622=\"\",\"\",ScriptText!$B$1&CHAR(10)&ScriptText!$D$1)","v":""},{"$f":"IF(OrigTable!F1622=\"\",\"\",TEXT(OrigTable!F1622,\"00\"))","v":""},{"$f":"IF(OrigTable!F1622=\"\",\"\",ScriptText!$E$1&CHAR(10)&ScriptText!$C$1)","v":""},{"$f":"IF(OrigTable!G1622=\"\",\"\",ScriptText!$B$1&CHAR(10)&ScriptText!$D$1)","v":""},{"$f":"IF(OrigTable!G1622=\"\",\"\",TEXT(OrigTable!G1622,\"00\"))","v":""},{"$f":"IF(OrigTable!G1622=\"\",\"\",ScriptText!$E$1&CHAR(10)&ScriptText!$C$1)","v":""},0]
["\n\n\n",{"$f":"IF(OrigTable!A1623=\"\",\"\",ScriptText!$B$1&CHAR(10)&ScriptText!$D$1)","v":""},{"$f":"IF(OrigTable!A1623=\"\",\"\",TEXT(OrigTable!A1623,\"00\"))","v":""},{"$f":"IF(OrigTable!A1623=\"\",\"\",ScriptText!$E$1&CHAR(10)&ScriptText!$C$1)","v":""},{"$f":"IF(OrigTable!B1623=\"\",\"\",ScriptText!$B$1&CHAR(10)&ScriptText!$D$1)","v":""},{"$f":"IF(OrigTable!B1623=\"\",\"\",TEXT(OrigTable!B1623,\"00\"))","v":""},{"$f":"IF(OrigTable!B1623=\"\",\"\",ScriptText!$E$1&CHAR(10)&ScriptText!C1618)","v":""},{"$f":"IF(OrigTable!C1623=\"\",\"\",ScriptText!$B$1&CHAR(10)&ScriptText!$D$1)","v":""},{"$f":"IF(OrigTable!C1623=\"\",\"\",IF(LEN(OrigTable!C1623)>255,LEFT(OrigTable!C1623,250)&\". . .\",OrigTable!C1623))","v":""},{"$f":"IF(OrigTable!C1623=\"\",\"\",ScriptText!$E$1&CHAR(10)&ScriptText!$C$1)","v":""},{"$f":"IF(OrigTable!D1623=\"\",\"\",ScriptText!$B$1&CHAR(10)&ScriptText!$D$1)","v":""},{"$f":"IF(OrigTable!D1623=\"\",\"\",TEXT(OrigTable!D1623,\"00\"))","v":""},{"$f":"IF(OrigTable!D1623=\"\",\"\",ScriptText!$E$1&CHAR(10)&ScriptText!$C$1)","v":""},{"$f":"IF(OrigTable!E1623=\"\",\"\",ScriptText!$B$1&CHAR(10)&ScriptText!$D$1)","v":""},{"$f":"IF(OrigTable!E1623=\"\",\"\",TEXT(OrigTable!E1623,\"00\"))","v":""},{"$f":"IF(OrigTable!E1623=\"\",\"\",ScriptText!$E$1&CHAR(10)&ScriptText!$C$1)","v":""},{"$f":"IF(OrigTable!F1623=\"\",\"\",ScriptText!$B$1&CHAR(10)&ScriptText!$D$1)","v":""},{"$f":"IF(OrigTable!F1623=\"\",\"\",TEXT(OrigTable!F1623,\"00\"))","v":""},{"$f":"IF(OrigTable!F1623=\"\",\"\",ScriptText!$E$1&CHAR(10)&ScriptText!$C$1)","v":""},{"$f":"IF(OrigTable!G1623=\"\",\"\",ScriptText!$B$1&CHAR(10)&ScriptText!$D$1)","v":""},{"$f":"IF(OrigTable!G1623=\"\",\"\",TEXT(OrigTable!G1623,\"00\"))","v":""},{"$f":"IF(OrigTable!G1623=\"\",\"\",ScriptText!$E$1&CHAR(10)&ScriptText!$C$1)","v":""},0]
["\n\n\n",{"$f":"IF(OrigTable!A1624=\"\",\"\",ScriptText!$B$1&CHAR(10)&ScriptText!$D$1)","v":""},{"$f":"IF(OrigTable!A1624=\"\",\"\",TEXT(OrigTable!A1624,\"00\"))","v":""},{"$f":"IF(OrigTable!A1624=\"\",\"\",ScriptText!$E$1&CHAR(10)&ScriptText!$C$1)","v":""},{"$f":"IF(OrigTable!B1624=\"\",\"\",ScriptText!$B$1&CHAR(10)&ScriptText!$D$1)","v":""},{"$f":"IF(OrigTable!B1624=\"\",\"\",TEXT(OrigTable!B1624,\"00\"))","v":""},{"$f":"IF(OrigTable!B1624=\"\",\"\",ScriptText!$E$1&CHAR(10)&ScriptText!C1619)","v":""},{"$f":"IF(OrigTable!C1624=\"\",\"\",ScriptText!$B$1&CHAR(10)&ScriptText!$D$1)","v":""},{"$f":"IF(OrigTable!C1624=\"\",\"\",IF(LEN(OrigTable!C1624)>255,LEFT(OrigTable!C1624,250)&\". . .\",OrigTable!C1624))","v":""},{"$f":"IF(OrigTable!C1624=\"\",\"\",ScriptText!$E$1&CHAR(10)&ScriptText!$C$1)","v":""},{"$f":"IF(OrigTable!D1624=\"\",\"\",ScriptText!$B$1&CHAR(10)&ScriptText!$D$1)","v":""},{"$f":"IF(OrigTable!D1624=\"\",\"\",TEXT(OrigTable!D1624,\"00\"))","v":""},{"$f":"IF(OrigTable!D1624=\"\",\"\",ScriptText!$E$1&CHAR(10)&ScriptText!$C$1)","v":""},{"$f":"IF(OrigTable!E1624=\"\",\"\",ScriptText!$B$1&CHAR(10)&ScriptText!$D$1)","v":""},{"$f":"IF(OrigTable!E1624=\"\",\"\",TEXT(OrigTable!E1624,\"00\"))","v":""},{"$f":"IF(OrigTable!E1624=\"\",\"\",ScriptText!$E$1&CHAR(10)&ScriptText!$C$1)","v":""},{"$f":"IF(OrigTable!F1624=\"\",\"\",ScriptText!$B$1&CHAR(10)&ScriptText!$D$1)","v":""},{"$f":"IF(OrigTable!F1624=\"\",\"\",TEXT(OrigTable!F1624,\"00\"))","v":""},{"$f":"IF(OrigTable!F1624=\"\",\"\",ScriptText!$E$1&CHAR(10)&ScriptText!$C$1)","v":""},{"$f":"IF(OrigTable!G1624=\"\",\"\",ScriptText!$B$1&CHAR(10)&ScriptText!$D$1)","v":""},{"$f":"IF(OrigTable!G1624=\"\",\"\",TEXT(OrigTable!G1624,\"00\"))","v":""},{"$f":"IF(OrigTable!G1624=\"\",\"\",ScriptText!$E$1&CHAR(10)&ScriptText!$C$1)","v":""},0]
["\n\n\n",{"$f":"IF(OrigTable!A1625=\"\",\"\",ScriptText!$B$1&CHAR(10)&ScriptText!$D$1)","v":""},{"$f":"IF(OrigTable!A1625=\"\",\"\",TEXT(OrigTable!A1625,\"00\"))","v":""},{"$f":"IF(OrigTable!A1625=\"\",\"\",ScriptText!$E$1&CHAR(10)&ScriptText!$C$1)","v":""},{"$f":"IF(OrigTable!B1625=\"\",\"\",ScriptText!$B$1&CHAR(10)&ScriptText!$D$1)","v":""},{"$f":"IF(OrigTable!B1625=\"\",\"\",TEXT(OrigTable!B1625,\"00\"))","v":""},{"$f":"IF(OrigTable!B1625=\"\",\"\",ScriptText!$E$1&CHAR(10)&ScriptText!C1620)","v":""},{"$f":"IF(OrigTable!C1625=\"\",\"\",ScriptText!$B$1&CHAR(10)&ScriptText!$D$1)","v":""},{"$f":"IF(OrigTable!C1625=\"\",\"\",IF(LEN(OrigTable!C1625)>255,LEFT(OrigTable!C1625,250)&\". . .\",OrigTable!C1625))","v":""},{"$f":"IF(OrigTable!C1625=\"\",\"\",ScriptText!$E$1&CHAR(10)&ScriptText!$C$1)","v":""},{"$f":"IF(OrigTable!D1625=\"\",\"\",ScriptText!$B$1&CHAR(10)&ScriptText!$D$1)","v":""},{"$f":"IF(OrigTable!D1625=\"\",\"\",TEXT(OrigTable!D1625,\"00\"))","v":""},{"$f":"IF(OrigTable!D1625=\"\",\"\",ScriptText!$E$1&CHAR(10)&ScriptText!$C$1)","v":""},{"$f":"IF(OrigTable!E1625=\"\",\"\",ScriptText!$B$1&CHAR(10)&ScriptText!$D$1)","v":""},{"$f":"IF(OrigTable!E1625=\"\",\"\",TEXT(OrigTable!E1625,\"00\"))","v":""},{"$f":"IF(OrigTable!E1625=\"\",\"\",ScriptText!$E$1&CHAR(10)&ScriptText!$C$1)","v":""},{"$f":"IF(OrigTable!F1625=\"\",\"\",ScriptText!$B$1&CHAR(10)&ScriptText!$D$1)","v":""},{"$f":"IF(OrigTable!F1625=\"\",\"\",TEXT(OrigTable!F1625,\"00\"))","v":""},{"$f":"IF(OrigTable!F1625=\"\",\"\",ScriptText!$E$1&CHAR(10)&ScriptText!$C$1)","v":""},{"$f":"IF(OrigTable!G1625=\"\",\"\",ScriptText!$B$1&CHAR(10)&ScriptText!$D$1)","v":""},{"$f":"IF(OrigTable!G1625=\"\",\"\",TEXT(OrigTable!G1625,\"00\"))","v":""},{"$f":"IF(OrigTable!G1625=\"\",\"\",ScriptText!$E$1&CHAR(10)&ScriptText!$C$1)","v":""},0]
["\n\n\n",{"$f":"IF(OrigTable!A1626=\"\",\"\",ScriptText!$B$1&CHAR(10)&ScriptText!$D$1)","v":""},{"$f":"IF(OrigTable!A1626=\"\",\"\",TEXT(OrigTable!A1626,\"00\"))","v":""},{"$f":"IF(OrigTable!A1626=\"\",\"\",ScriptText!$E$1&CHAR(10)&ScriptText!$C$1)","v":""},{"$f":"IF(OrigTable!B1626=\"\",\"\",ScriptText!$B$1&CHAR(10)&ScriptText!$D$1)","v":""},{"$f":"IF(OrigTable!B1626=\"\",\"\",TEXT(OrigTable!B1626,\"00\"))","v":""},{"$f":"IF(OrigTable!B1626=\"\",\"\",ScriptText!$E$1&CHAR(10)&ScriptText!C1621)","v":""},{"$f":"IF(OrigTable!C1626=\"\",\"\",ScriptText!$B$1&CHAR(10)&ScriptText!$D$1)","v":""},{"$f":"IF(OrigTable!C1626=\"\",\"\",IF(LEN(OrigTable!C1626)>255,LEFT(OrigTable!C1626,250)&\". . .\",OrigTable!C1626))","v":""},{"$f":"IF(OrigTable!C1626=\"\",\"\",ScriptText!$E$1&CHAR(10)&ScriptText!$C$1)","v":""},{"$f":"IF(OrigTable!D1626=\"\",\"\",ScriptText!$B$1&CHAR(10)&ScriptText!$D$1)","v":""},{"$f":"IF(OrigTable!D1626=\"\",\"\",TEXT(OrigTable!D1626,\"00\"))","v":""},{"$f":"IF(OrigTable!D1626=\"\",\"\",ScriptText!$E$1&CHAR(10)&ScriptText!$C$1)","v":""},{"$f":"IF(OrigTable!E1626=\"\",\"\",ScriptText!$B$1&CHAR(10)&ScriptText!$D$1)","v":""},{"$f":"IF(OrigTable!E1626=\"\",\"\",TEXT(OrigTable!E1626,\"00\"))","v":""},{"$f":"IF(OrigTable!E1626=\"\",\"\",ScriptText!$E$1&CHAR(10)&ScriptText!$C$1)","v":""},{"$f":"IF(OrigTable!F1626=\"\",\"\",ScriptText!$B$1&CHAR(10)&ScriptText!$D$1)","v":""},{"$f":"IF(OrigTable!F1626=\"\",\"\",TEXT(OrigTable!F1626,\"00\"))","v":""},{"$f":"IF(OrigTable!F1626=\"\",\"\",ScriptText!$E$1&CHAR(10)&ScriptText!$C$1)","v":""},{"$f":"IF(OrigTable!G1626=\"\",\"\",ScriptText!$B$1&CHAR(10)&ScriptText!$D$1)","v":""},{"$f":"IF(OrigTable!G1626=\"\",\"\",TEXT(OrigTable!G1626,\"00\"))","v":""},{"$f":"IF(OrigTable!G1626=\"\",\"\",ScriptText!$E$1&CHAR(10)&ScriptText!$C$1)","v":""},0]
["\n\n\n",{"$f":"IF(OrigTable!A1627=\"\",\"\",ScriptText!$B$1&CHAR(10)&ScriptText!$D$1)","v":""},{"$f":"IF(OrigTable!A1627=\"\",\"\",TEXT(OrigTable!A1627,\"00\"))","v":""},{"$f":"IF(OrigTable!A1627=\"\",\"\",ScriptText!$E$1&CHAR(10)&ScriptText!$C$1)","v":""},{"$f":"IF(OrigTable!B1627=\"\",\"\",ScriptText!$B$1&CHAR(10)&ScriptText!$D$1)","v":""},{"$f":"IF(OrigTable!B1627=\"\",\"\",TEXT(OrigTable!B1627,\"00\"))","v":""},{"$f":"IF(OrigTable!B1627=\"\",\"\",ScriptText!$E$1&CHAR(10)&ScriptText!C1622)","v":""},{"$f":"IF(OrigTable!C1627=\"\",\"\",ScriptText!$B$1&CHAR(10)&ScriptText!$D$1)","v":""},{"$f":"IF(OrigTable!C1627=\"\",\"\",IF(LEN(OrigTable!C1627)>255,LEFT(OrigTable!C1627,250)&\". . .\",OrigTable!C1627))","v":""},{"$f":"IF(OrigTable!C1627=\"\",\"\",ScriptText!$E$1&CHAR(10)&ScriptText!$C$1)","v":""},{"$f":"IF(OrigTable!D1627=\"\",\"\",ScriptText!$B$1&CHAR(10)&ScriptText!$D$1)","v":""},{"$f":"IF(OrigTable!D1627=\"\",\"\",TEXT(OrigTable!D1627,\"00\"))","v":""},{"$f":"IF(OrigTable!D1627=\"\",\"\",ScriptText!$E$1&CHAR(10)&ScriptText!$C$1)","v":""},{"$f":"IF(OrigTable!E1627=\"\",\"\",ScriptText!$B$1&CHAR(10)&ScriptText!$D$1)","v":""},{"$f":"IF(OrigTable!E1627=\"\",\"\",TEXT(OrigTable!E1627,\"00\"))","v":""},{"$f":"IF(OrigTable!E1627=\"\",\"\",ScriptText!$E$1&CHAR(10)&ScriptText!$C$1)","v":""},{"$f":"IF(OrigTable!F1627=\"\",\"\",ScriptText!$B$1&CHAR(10)&ScriptText!$D$1)","v":""},{"$f":"IF(OrigTable!F1627=\"\",\"\",TEXT(OrigTable!F1627,\"00\"))","v":""},{"$f":"IF(OrigTable!F1627=\"\",\"\",ScriptText!$E$1&CHAR(10)&ScriptText!$C$1)","v":""},{"$f":"IF(OrigTable!G1627=\"\",\"\",ScriptText!$B$1&CHAR(10)&ScriptText!$D$1)","v":""},{"$f":"IF(OrigTable!G1627=\"\",\"\",TEXT(OrigTable!G1627,\"00\"))","v":""},{"$f":"IF(OrigTable!G1627=\"\",\"\",ScriptText!$E$1&CHAR(10)&ScriptText!$C$1)","v":""},0]
["\n\n\n",{"$f":"IF(OrigTable!A1628=\"\",\"\",ScriptText!$B$1&CHAR(10)&ScriptText!$D$1)","v":""},{"$f":"IF(OrigTable!A1628=\"\",\"\",TEXT(OrigTable!A1628,\"00\"))","v":""},{"$f":"IF(OrigTable!A1628=\"\",\"\",ScriptText!$E$1&CHAR(10)&ScriptText!$C$1)","v":""},{"$f":"IF(OrigTable!B1628=\"\",\"\",ScriptText!$B$1&CHAR(10)&ScriptText!$D$1)","v":""},{"$f":"IF(OrigTable!B1628=\"\",\"\",TEXT(OrigTable!B1628,\"00\"))","v":""},{"$f":"IF(OrigTable!B1628=\"\",\"\",ScriptText!$E$1&CHAR(10)&ScriptText!C1623)","v":""},{"$f":"IF(OrigTable!C1628=\"\",\"\",ScriptText!$B$1&CHAR(10)&ScriptText!$D$1)","v":""},{"$f":"IF(OrigTable!C1628=\"\",\"\",IF(LEN(OrigTable!C1628)>255,LEFT(OrigTable!C1628,250)&\". . .\",OrigTable!C1628))","v":""},{"$f":"IF(OrigTable!C1628=\"\",\"\",ScriptText!$E$1&CHAR(10)&ScriptText!$C$1)","v":""},{"$f":"IF(OrigTable!D1628=\"\",\"\",ScriptText!$B$1&CHAR(10)&ScriptText!$D$1)","v":""},{"$f":"IF(OrigTable!D1628=\"\",\"\",TEXT(OrigTable!D1628,\"00\"))","v":""},{"$f":"IF(OrigTable!D1628=\"\",\"\",ScriptText!$E$1&CHAR(10)&ScriptText!$C$1)","v":""},{"$f":"IF(OrigTable!E1628=\"\",\"\",ScriptText!$B$1&CHAR(10)&ScriptText!$D$1)","v":""},{"$f":"IF(OrigTable!E1628=\"\",\"\",TEXT(OrigTable!E1628,\"00\"))","v":""},{"$f":"IF(OrigTable!E1628=\"\",\"\",ScriptText!$E$1&CHAR(10)&ScriptText!$C$1)","v":""},{"$f":"IF(OrigTable!F1628=\"\",\"\",ScriptText!$B$1&CHAR(10)&ScriptText!$D$1)","v":""},{"$f":"IF(OrigTable!F1628=\"\",\"\",TEXT(OrigTable!F1628,\"00\"))","v":""},{"$f":"IF(OrigTable!F1628=\"\",\"\",ScriptText!$E$1&CHAR(10)&ScriptText!$C$1)","v":""},{"$f":"IF(OrigTable!G1628=\"\",\"\",ScriptText!$B$1&CHAR(10)&ScriptText!$D$1)","v":""},{"$f":"IF(OrigTable!G1628=\"\",\"\",TEXT(OrigTable!G1628,\"00\"))","v":""},{"$f":"IF(OrigTable!G1628=\"\",\"\",ScriptText!$E$1&CHAR(10)&ScriptText!$C$1)","v":""},0]
["\n\n\n",{"$f":"IF(OrigTable!A1629=\"\",\"\",ScriptText!$B$1&CHAR(10)&ScriptText!$D$1)","v":""},{"$f":"IF(OrigTable!A1629=\"\",\"\",TEXT(OrigTable!A1629,\"00\"))","v":""},{"$f":"IF(OrigTable!A1629=\"\",\"\",ScriptText!$E$1&CHAR(10)&ScriptText!$C$1)","v":""},{"$f":"IF(OrigTable!B1629=\"\",\"\",ScriptText!$B$1&CHAR(10)&ScriptText!$D$1)","v":""},{"$f":"IF(OrigTable!B1629=\"\",\"\",TEXT(OrigTable!B1629,\"00\"))","v":""},{"$f":"IF(OrigTable!B1629=\"\",\"\",ScriptText!$E$1&CHAR(10)&ScriptText!C1624)","v":""},{"$f":"IF(OrigTable!C1629=\"\",\"\",ScriptText!$B$1&CHAR(10)&ScriptText!$D$1)","v":""},{"$f":"IF(OrigTable!C1629=\"\",\"\",IF(LEN(OrigTable!C1629)>255,LEFT(OrigTable!C1629,250)&\". . .\",OrigTable!C1629))","v":""},{"$f":"IF(OrigTable!C1629=\"\",\"\",ScriptText!$E$1&CHAR(10)&ScriptText!$C$1)","v":""},{"$f":"IF(OrigTable!D1629=\"\",\"\",ScriptText!$B$1&CHAR(10)&ScriptText!$D$1)","v":""},{"$f":"IF(OrigTable!D1629=\"\",\"\",TEXT(OrigTable!D1629,\"00\"))","v":""},{"$f":"IF(OrigTable!D1629=\"\",\"\",ScriptText!$E$1&CHAR(10)&ScriptText!$C$1)","v":""},{"$f":"IF(OrigTable!E1629=\"\",\"\",ScriptText!$B$1&CHAR(10)&ScriptText!$D$1)","v":""},{"$f":"IF(OrigTable!E1629=\"\",\"\",TEXT(OrigTable!E1629,\"00\"))","v":""},{"$f":"IF(OrigTable!E1629=\"\",\"\",ScriptText!$E$1&CHAR(10)&ScriptText!$C$1)","v":""},{"$f":"IF(OrigTable!F1629=\"\",\"\",ScriptText!$B$1&CHAR(10)&ScriptText!$D$1)","v":""},{"$f":"IF(OrigTable!F1629=\"\",\"\",TEXT(OrigTable!F1629,\"00\"))","v":""},{"$f":"IF(OrigTable!F1629=\"\",\"\",ScriptText!$E$1&CHAR(10)&ScriptText!$C$1)","v":""},{"$f":"IF(OrigTable!G1629=\"\",\"\",ScriptText!$B$1&CHAR(10)&ScriptText!$D$1)","v":""},{"$f":"IF(OrigTable!G1629=\"\",\"\",TEXT(OrigTable!G1629,\"00\"))","v":""},{"$f":"IF(OrigTable!G1629=\"\",\"\",ScriptText!$E$1&CHAR(10)&ScriptText!$C$1)","v":""},0]
["\n\n\n",{"$f":"IF(OrigTable!A1630=\"\",\"\",ScriptText!$B$1&CHAR(10)&ScriptText!$D$1)","v":""},{"$f":"IF(OrigTable!A1630=\"\",\"\",TEXT(OrigTable!A1630,\"00\"))","v":""},{"$f":"IF(OrigTable!A1630=\"\",\"\",ScriptText!$E$1&CHAR(10)&ScriptText!$C$1)","v":""},{"$f":"IF(OrigTable!B1630=\"\",\"\",ScriptText!$B$1&CHAR(10)&ScriptText!$D$1)","v":""},{"$f":"IF(OrigTable!B1630=\"\",\"\",TEXT(OrigTable!B1630,\"00\"))","v":""},{"$f":"IF(OrigTable!B1630=\"\",\"\",ScriptText!$E$1&CHAR(10)&ScriptText!C1625)","v":""},{"$f":"IF(OrigTable!C1630=\"\",\"\",ScriptText!$B$1&CHAR(10)&ScriptText!$D$1)","v":""},{"$f":"IF(OrigTable!C1630=\"\",\"\",IF(LEN(OrigTable!C1630)>255,LEFT(OrigTable!C1630,250)&\". . .\",OrigTable!C1630))","v":""},{"$f":"IF(OrigTable!C1630=\"\",\"\",ScriptText!$E$1&CHAR(10)&ScriptText!$C$1)","v":""},{"$f":"IF(OrigTable!D1630=\"\",\"\",ScriptText!$B$1&CHAR(10)&ScriptText!$D$1)","v":""},{"$f":"IF(OrigTable!D1630=\"\",\"\",TEXT(OrigTable!D1630,\"00\"))","v":""},{"$f":"IF(OrigTable!D1630=\"\",\"\",ScriptText!$E$1&CHAR(10)&ScriptText!$C$1)","v":""},{"$f":"IF(OrigTable!E1630=\"\",\"\",ScriptText!$B$1&CHAR(10)&ScriptText!$D$1)","v":""},{"$f":"IF(OrigTable!E1630=\"\",\"\",TEXT(OrigTable!E1630,\"00\"))","v":""},{"$f":"IF(OrigTable!E1630=\"\",\"\",ScriptText!$E$1&CHAR(10)&ScriptText!$C$1)","v":""},{"$f":"IF(OrigTable!F1630=\"\",\"\",ScriptText!$B$1&CHAR(10)&ScriptText!$D$1)","v":""},{"$f":"IF(OrigTable!F1630=\"\",\"\",TEXT(OrigTable!F1630,\"00\"))","v":""},{"$f":"IF(OrigTable!F1630=\"\",\"\",ScriptText!$E$1&CHAR(10)&ScriptText!$C$1)","v":""},{"$f":"IF(OrigTable!G1630=\"\",\"\",ScriptText!$B$1&CHAR(10)&ScriptText!$D$1)","v":""},{"$f":"IF(OrigTable!G1630=\"\",\"\",TEXT(OrigTable!G1630,\"00\"))","v":""},{"$f":"IF(OrigTable!G1630=\"\",\"\",ScriptText!$E$1&CHAR(10)&ScriptText!$C$1)","v":""},0]
["\n\n\n",{"$f":"IF(OrigTable!A1631=\"\",\"\",ScriptText!$B$1&CHAR(10)&ScriptText!$D$1)","v":""},{"$f":"IF(OrigTable!A1631=\"\",\"\",TEXT(OrigTable!A1631,\"00\"))","v":""},{"$f":"IF(OrigTable!A1631=\"\",\"\",ScriptText!$E$1&CHAR(10)&ScriptText!$C$1)","v":""},{"$f":"IF(OrigTable!B1631=\"\",\"\",ScriptText!$B$1&CHAR(10)&ScriptText!$D$1)","v":""},{"$f":"IF(OrigTable!B1631=\"\",\"\",TEXT(OrigTable!B1631,\"00\"))","v":""},{"$f":"IF(OrigTable!B1631=\"\",\"\",ScriptText!$E$1&CHAR(10)&ScriptText!C1626)","v":""},{"$f":"IF(OrigTable!C1631=\"\",\"\",ScriptText!$B$1&CHAR(10)&ScriptText!$D$1)","v":""},{"$f":"IF(OrigTable!C1631=\"\",\"\",IF(LEN(OrigTable!C1631)>255,LEFT(OrigTable!C1631,250)&\". . .\",OrigTable!C1631))","v":""},{"$f":"IF(OrigTable!C1631=\"\",\"\",ScriptText!$E$1&CHAR(10)&ScriptText!$C$1)","v":""},{"$f":"IF(OrigTable!D1631=\"\",\"\",ScriptText!$B$1&CHAR(10)&ScriptText!$D$1)","v":""},{"$f":"IF(OrigTable!D1631=\"\",\"\",TEXT(OrigTable!D1631,\"00\"))","v":""},{"$f":"IF(OrigTable!D1631=\"\",\"\",ScriptText!$E$1&CHAR(10)&ScriptText!$C$1)","v":""},{"$f":"IF(OrigTable!E1631=\"\",\"\",ScriptText!$B$1&CHAR(10)&ScriptText!$D$1)","v":""},{"$f":"IF(OrigTable!E1631=\"\",\"\",TEXT(OrigTable!E1631,\"00\"))","v":""},{"$f":"IF(OrigTable!E1631=\"\",\"\",ScriptText!$E$1&CHAR(10)&ScriptText!$C$1)","v":""},{"$f":"IF(OrigTable!F1631=\"\",\"\",ScriptText!$B$1&CHAR(10)&ScriptText!$D$1)","v":""},{"$f":"IF(OrigTable!F1631=\"\",\"\",TEXT(OrigTable!F1631,\"00\"))","v":""},{"$f":"IF(OrigTable!F1631=\"\",\"\",ScriptText!$E$1&CHAR(10)&ScriptText!$C$1)","v":""},{"$f":"IF(OrigTable!G1631=\"\",\"\",ScriptText!$B$1&CHAR(10)&ScriptText!$D$1)","v":""},{"$f":"IF(OrigTable!G1631=\"\",\"\",TEXT(OrigTable!G1631,\"00\"))","v":""},{"$f":"IF(OrigTable!G1631=\"\",\"\",ScriptText!$E$1&CHAR(10)&ScriptText!$C$1)","v":""},0]
["\n\n\n",{"$f":"IF(OrigTable!A1632=\"\",\"\",ScriptText!$B$1&CHAR(10)&ScriptText!$D$1)","v":""},{"$f":"IF(OrigTable!A1632=\"\",\"\",TEXT(OrigTable!A1632,\"00\"))","v":""},{"$f":"IF(OrigTable!A1632=\"\",\"\",ScriptText!$E$1&CHAR(10)&ScriptText!$C$1)","v":""},{"$f":"IF(OrigTable!B1632=\"\",\"\",ScriptText!$B$1&CHAR(10)&ScriptText!$D$1)","v":""},{"$f":"IF(OrigTable!B1632=\"\",\"\",TEXT(OrigTable!B1632,\"00\"))","v":""},{"$f":"IF(OrigTable!B1632=\"\",\"\",ScriptText!$E$1&CHAR(10)&ScriptText!C1627)","v":""},{"$f":"IF(OrigTable!C1632=\"\",\"\",ScriptText!$B$1&CHAR(10)&ScriptText!$D$1)","v":""},{"$f":"IF(OrigTable!C1632=\"\",\"\",IF(LEN(OrigTable!C1632)>255,LEFT(OrigTable!C1632,250)&\". . .\",OrigTable!C1632))","v":""},{"$f":"IF(OrigTable!C1632=\"\",\"\",ScriptText!$E$1&CHAR(10)&ScriptText!$C$1)","v":""},{"$f":"IF(OrigTable!D1632=\"\",\"\",ScriptText!$B$1&CHAR(10)&ScriptText!$D$1)","v":""},{"$f":"IF(OrigTable!D1632=\"\",\"\",TEXT(OrigTable!D1632,\"00\"))","v":""},{"$f":"IF(OrigTable!D1632=\"\",\"\",ScriptText!$E$1&CHAR(10)&ScriptText!$C$1)","v":""},{"$f":"IF(OrigTable!E1632=\"\",\"\",ScriptText!$B$1&CHAR(10)&ScriptText!$D$1)","v":""},{"$f":"IF(OrigTable!E1632=\"\",\"\",TEXT(OrigTable!E1632,\"00\"))","v":""},{"$f":"IF(OrigTable!E1632=\"\",\"\",ScriptText!$E$1&CHAR(10)&ScriptText!$C$1)","v":""},{"$f":"IF(OrigTable!F1632=\"\",\"\",ScriptText!$B$1&CHAR(10)&ScriptText!$D$1)","v":""},{"$f":"IF(OrigTable!F1632=\"\",\"\",TEXT(OrigTable!F1632,\"00\"))","v":""},{"$f":"IF(OrigTable!F1632=\"\",\"\",ScriptText!$E$1&CHAR(10)&ScriptText!$C$1)","v":""},{"$f":"IF(OrigTable!G1632=\"\",\"\",ScriptText!$B$1&CHAR(10)&ScriptText!$D$1)","v":""},{"$f":"IF(OrigTable!G1632=\"\",\"\",TEXT(OrigTable!G1632,\"00\"))","v":""},{"$f":"IF(OrigTable!G1632=\"\",\"\",ScriptText!$E$1&CHAR(10)&ScriptText!$C$1)","v":""},0]
["\n\n\n",{"$f":"IF(OrigTable!A1633=\"\",\"\",ScriptText!$B$1&CHAR(10)&ScriptText!$D$1)","v":""},{"$f":"IF(OrigTable!A1633=\"\",\"\",TEXT(OrigTable!A1633,\"00\"))","v":""},{"$f":"IF(OrigTable!A1633=\"\",\"\",ScriptText!$E$1&CHAR(10)&ScriptText!$C$1)","v":""},{"$f":"IF(OrigTable!B1633=\"\",\"\",ScriptText!$B$1&CHAR(10)&ScriptText!$D$1)","v":""},{"$f":"IF(OrigTable!B1633=\"\",\"\",TEXT(OrigTable!B1633,\"00\"))","v":""},{"$f":"IF(OrigTable!B1633=\"\",\"\",ScriptText!$E$1&CHAR(10)&ScriptText!C1628)","v":""},{"$f":"IF(OrigTable!C1633=\"\",\"\",ScriptText!$B$1&CHAR(10)&ScriptText!$D$1)","v":""},{"$f":"IF(OrigTable!C1633=\"\",\"\",IF(LEN(OrigTable!C1633)>255,LEFT(OrigTable!C1633,250)&\". . .\",OrigTable!C1633))","v":""},{"$f":"IF(OrigTable!C1633=\"\",\"\",ScriptText!$E$1&CHAR(10)&ScriptText!$C$1)","v":""},{"$f":"IF(OrigTable!D1633=\"\",\"\",ScriptText!$B$1&CHAR(10)&ScriptText!$D$1)","v":""},{"$f":"IF(OrigTable!D1633=\"\",\"\",TEXT(OrigTable!D1633,\"00\"))","v":""},{"$f":"IF(OrigTable!D1633=\"\",\"\",ScriptText!$E$1&CHAR(10)&ScriptText!$C$1)","v":""},{"$f":"IF(OrigTable!E1633=\"\",\"\",ScriptText!$B$1&CHAR(10)&ScriptText!$D$1)","v":""},{"$f":"IF(OrigTable!E1633=\"\",\"\",TEXT(OrigTable!E1633,\"00\"))","v":""},{"$f":"IF(OrigTable!E1633=\"\",\"\",ScriptText!$E$1&CHAR(10)&ScriptText!$C$1)","v":""},{"$f":"IF(OrigTable!F1633=\"\",\"\",ScriptText!$B$1&CHAR(10)&ScriptText!$D$1)","v":""},{"$f":"IF(OrigTable!F1633=\"\",\"\",TEXT(OrigTable!F1633,\"00\"))","v":""},{"$f":"IF(OrigTable!F1633=\"\",\"\",ScriptText!$E$1&CHAR(10)&ScriptText!$C$1)","v":""},{"$f":"IF(OrigTable!G1633=\"\",\"\",ScriptText!$B$1&CHAR(10)&ScriptText!$D$1)","v":""},{"$f":"IF(OrigTable!G1633=\"\",\"\",TEXT(OrigTable!G1633,\"00\"))","v":""},{"$f":"IF(OrigTable!G1633=\"\",\"\",ScriptText!$E$1&CHAR(10)&ScriptText!$C$1)","v":""},0]
["\n\n\n",{"$f":"IF(OrigTable!A1634=\"\",\"\",ScriptText!$B$1&CHAR(10)&ScriptText!$D$1)","v":""},{"$f":"IF(OrigTable!A1634=\"\",\"\",TEXT(OrigTable!A1634,\"00\"))","v":""},{"$f":"IF(OrigTable!A1634=\"\",\"\",ScriptText!$E$1&CHAR(10)&ScriptText!$C$1)","v":""},{"$f":"IF(OrigTable!B1634=\"\",\"\",ScriptText!$B$1&CHAR(10)&ScriptText!$D$1)","v":""},{"$f":"IF(OrigTable!B1634=\"\",\"\",TEXT(OrigTable!B1634,\"00\"))","v":""},{"$f":"IF(OrigTable!B1634=\"\",\"\",ScriptText!$E$1&CHAR(10)&ScriptText!C1629)","v":""},{"$f":"IF(OrigTable!C1634=\"\",\"\",ScriptText!$B$1&CHAR(10)&ScriptText!$D$1)","v":""},{"$f":"IF(OrigTable!C1634=\"\",\"\",IF(LEN(OrigTable!C1634)>255,LEFT(OrigTable!C1634,250)&\". . .\",OrigTable!C1634))","v":""},{"$f":"IF(OrigTable!C1634=\"\",\"\",ScriptText!$E$1&CHAR(10)&ScriptText!$C$1)","v":""},{"$f":"IF(OrigTable!D1634=\"\",\"\",ScriptText!$B$1&CHAR(10)&ScriptText!$D$1)","v":""},{"$f":"IF(OrigTable!D1634=\"\",\"\",TEXT(OrigTable!D1634,\"00\"))","v":""},{"$f":"IF(OrigTable!D1634=\"\",\"\",ScriptText!$E$1&CHAR(10)&ScriptText!$C$1)","v":""},{"$f":"IF(OrigTable!E1634=\"\",\"\",ScriptText!$B$1&CHAR(10)&ScriptText!$D$1)","v":""},{"$f":"IF(OrigTable!E1634=\"\",\"\",TEXT(OrigTable!E1634,\"00\"))","v":""},{"$f":"IF(OrigTable!E1634=\"\",\"\",ScriptText!$E$1&CHAR(10)&ScriptText!$C$1)","v":""},{"$f":"IF(OrigTable!F1634=\"\",\"\",ScriptText!$B$1&CHAR(10)&ScriptText!$D$1)","v":""},{"$f":"IF(OrigTable!F1634=\"\",\"\",TEXT(OrigTable!F1634,\"00\"))","v":""},{"$f":"IF(OrigTable!F1634=\"\",\"\",ScriptText!$E$1&CHAR(10)&ScriptText!$C$1)","v":""},{"$f":"IF(OrigTable!G1634=\"\",\"\",ScriptText!$B$1&CHAR(10)&ScriptText!$D$1)","v":""},{"$f":"IF(OrigTable!G1634=\"\",\"\",TEXT(OrigTable!G1634,\"00\"))","v":""},{"$f":"IF(OrigTable!G1634=\"\",\"\",ScriptText!$E$1&CHAR(10)&ScriptText!$C$1)","v":""},0]
["\n\n\n",{"$f":"IF(OrigTable!A1635=\"\",\"\",ScriptText!$B$1&CHAR(10)&ScriptText!$D$1)","v":""},{"$f":"IF(OrigTable!A1635=\"\",\"\",TEXT(OrigTable!A1635,\"00\"))","v":""},{"$f":"IF(OrigTable!A1635=\"\",\"\",ScriptText!$E$1&CHAR(10)&ScriptText!$C$1)","v":""},{"$f":"IF(OrigTable!B1635=\"\",\"\",ScriptText!$B$1&CHAR(10)&ScriptText!$D$1)","v":""},{"$f":"IF(OrigTable!B1635=\"\",\"\",TEXT(OrigTable!B1635,\"00\"))","v":""},{"$f":"IF(OrigTable!B1635=\"\",\"\",ScriptText!$E$1&CHAR(10)&ScriptText!C1630)","v":""},{"$f":"IF(OrigTable!C1635=\"\",\"\",ScriptText!$B$1&CHAR(10)&ScriptText!$D$1)","v":""},{"$f":"IF(OrigTable!C1635=\"\",\"\",IF(LEN(OrigTable!C1635)>255,LEFT(OrigTable!C1635,250)&\". . .\",OrigTable!C1635))","v":""},{"$f":"IF(OrigTable!C1635=\"\",\"\",ScriptText!$E$1&CHAR(10)&ScriptText!$C$1)","v":""},{"$f":"IF(OrigTable!D1635=\"\",\"\",ScriptText!$B$1&CHAR(10)&ScriptText!$D$1)","v":""},{"$f":"IF(OrigTable!D1635=\"\",\"\",TEXT(OrigTable!D1635,\"00\"))","v":""},{"$f":"IF(OrigTable!D1635=\"\",\"\",ScriptText!$E$1&CHAR(10)&ScriptText!$C$1)","v":""},{"$f":"IF(OrigTable!E1635=\"\",\"\",ScriptText!$B$1&CHAR(10)&ScriptText!$D$1)","v":""},{"$f":"IF(OrigTable!E1635=\"\",\"\",TEXT(OrigTable!E1635,\"00\"))","v":""},{"$f":"IF(OrigTable!E1635=\"\",\"\",ScriptText!$E$1&CHAR(10)&ScriptText!$C$1)","v":""},{"$f":"IF(OrigTable!F1635=\"\",\"\",ScriptText!$B$1&CHAR(10)&ScriptText!$D$1)","v":""},{"$f":"IF(OrigTable!F1635=\"\",\"\",TEXT(OrigTable!F1635,\"00\"))","v":""},{"$f":"IF(OrigTable!F1635=\"\",\"\",ScriptText!$E$1&CHAR(10)&ScriptText!$C$1)","v":""},{"$f":"IF(OrigTable!G1635=\"\",\"\",ScriptText!$B$1&CHAR(10)&ScriptText!$D$1)","v":""},{"$f":"IF(OrigTable!G1635=\"\",\"\",TEXT(OrigTable!G1635,\"00\"))","v":""},{"$f":"IF(OrigTable!G1635=\"\",\"\",ScriptText!$E$1&CHAR(10)&ScriptText!$C$1)","v":""},0]
["\n\n\n",{"$f":"IF(OrigTable!A1636=\"\",\"\",ScriptText!$B$1&CHAR(10)&ScriptText!$D$1)","v":""},{"$f":"IF(OrigTable!A1636=\"\",\"\",TEXT(OrigTable!A1636,\"00\"))","v":""},{"$f":"IF(OrigTable!A1636=\"\",\"\",ScriptText!$E$1&CHAR(10)&ScriptText!$C$1)","v":""},{"$f":"IF(OrigTable!B1636=\"\",\"\",ScriptText!$B$1&CHAR(10)&ScriptText!$D$1)","v":""},{"$f":"IF(OrigTable!B1636=\"\",\"\",TEXT(OrigTable!B1636,\"00\"))","v":""},{"$f":"IF(OrigTable!B1636=\"\",\"\",ScriptText!$E$1&CHAR(10)&ScriptText!C1631)","v":""},{"$f":"IF(OrigTable!C1636=\"\",\"\",ScriptText!$B$1&CHAR(10)&ScriptText!$D$1)","v":""},{"$f":"IF(OrigTable!C1636=\"\",\"\",IF(LEN(OrigTable!C1636)>255,LEFT(OrigTable!C1636,250)&\". . .\",OrigTable!C1636))","v":""},{"$f":"IF(OrigTable!C1636=\"\",\"\",ScriptText!$E$1&CHAR(10)&ScriptText!$C$1)","v":""},{"$f":"IF(OrigTable!D1636=\"\",\"\",ScriptText!$B$1&CHAR(10)&ScriptText!$D$1)","v":""},{"$f":"IF(OrigTable!D1636=\"\",\"\",TEXT(OrigTable!D1636,\"00\"))","v":""},{"$f":"IF(OrigTable!D1636=\"\",\"\",ScriptText!$E$1&CHAR(10)&ScriptText!$C$1)","v":""},{"$f":"IF(OrigTable!E1636=\"\",\"\",ScriptText!$B$1&CHAR(10)&ScriptText!$D$1)","v":""},{"$f":"IF(OrigTable!E1636=\"\",\"\",TEXT(OrigTable!E1636,\"00\"))","v":""},{"$f":"IF(OrigTable!E1636=\"\",\"\",ScriptText!$E$1&CHAR(10)&ScriptText!$C$1)","v":""},{"$f":"IF(OrigTable!F1636=\"\",\"\",ScriptText!$B$1&CHAR(10)&ScriptText!$D$1)","v":""},{"$f":"IF(OrigTable!F1636=\"\",\"\",TEXT(OrigTable!F1636,\"00\"))","v":""},{"$f":"IF(OrigTable!F1636=\"\",\"\",ScriptText!$E$1&CHAR(10)&ScriptText!$C$1)","v":""},{"$f":"IF(OrigTable!G1636=\"\",\"\",ScriptText!$B$1&CHAR(10)&ScriptText!$D$1)","v":""},{"$f":"IF(OrigTable!G1636=\"\",\"\",TEXT(OrigTable!G1636,\"00\"))","v":""},{"$f":"IF(OrigTable!G1636=\"\",\"\",ScriptText!$E$1&CHAR(10)&ScriptText!$C$1)","v":""},0]
["\n\n\n",{"$f":"IF(OrigTable!A1637=\"\",\"\",ScriptText!$B$1&CHAR(10)&ScriptText!$D$1)","v":""},{"$f":"IF(OrigTable!A1637=\"\",\"\",TEXT(OrigTable!A1637,\"00\"))","v":""},{"$f":"IF(OrigTable!A1637=\"\",\"\",ScriptText!$E$1&CHAR(10)&ScriptText!$C$1)","v":""},{"$f":"IF(OrigTable!B1637=\"\",\"\",ScriptText!$B$1&CHAR(10)&ScriptText!$D$1)","v":""},{"$f":"IF(OrigTable!B1637=\"\",\"\",TEXT(OrigTable!B1637,\"00\"))","v":""},{"$f":"IF(OrigTable!B1637=\"\",\"\",ScriptText!$E$1&CHAR(10)&ScriptText!C1632)","v":""},{"$f":"IF(OrigTable!C1637=\"\",\"\",ScriptText!$B$1&CHAR(10)&ScriptText!$D$1)","v":""},{"$f":"IF(OrigTable!C1637=\"\",\"\",IF(LEN(OrigTable!C1637)>255,LEFT(OrigTable!C1637,250)&\". . .\",OrigTable!C1637))","v":""},{"$f":"IF(OrigTable!C1637=\"\",\"\",ScriptText!$E$1&CHAR(10)&ScriptText!$C$1)","v":""},{"$f":"IF(OrigTable!D1637=\"\",\"\",ScriptText!$B$1&CHAR(10)&ScriptText!$D$1)","v":""},{"$f":"IF(OrigTable!D1637=\"\",\"\",TEXT(OrigTable!D1637,\"00\"))","v":""},{"$f":"IF(OrigTable!D1637=\"\",\"\",ScriptText!$E$1&CHAR(10)&ScriptText!$C$1)","v":""},{"$f":"IF(OrigTable!E1637=\"\",\"\",ScriptText!$B$1&CHAR(10)&ScriptText!$D$1)","v":""},{"$f":"IF(OrigTable!E1637=\"\",\"\",TEXT(OrigTable!E1637,\"00\"))","v":""},{"$f":"IF(OrigTable!E1637=\"\",\"\",ScriptText!$E$1&CHAR(10)&ScriptText!$C$1)","v":""},{"$f":"IF(OrigTable!F1637=\"\",\"\",ScriptText!$B$1&CHAR(10)&ScriptText!$D$1)","v":""},{"$f":"IF(OrigTable!F1637=\"\",\"\",TEXT(OrigTable!F1637,\"00\"))","v":""},{"$f":"IF(OrigTable!F1637=\"\",\"\",ScriptText!$E$1&CHAR(10)&ScriptText!$C$1)","v":""},{"$f":"IF(OrigTable!G1637=\"\",\"\",ScriptText!$B$1&CHAR(10)&ScriptText!$D$1)","v":""},{"$f":"IF(OrigTable!G1637=\"\",\"\",TEXT(OrigTable!G1637,\"00\"))","v":""},{"$f":"IF(OrigTable!G1637=\"\",\"\",ScriptText!$E$1&CHAR(10)&ScriptText!$C$1)","v":""},0]
["\n\n\n",{"$f":"IF(OrigTable!A1638=\"\",\"\",ScriptText!$B$1&CHAR(10)&ScriptText!$D$1)","v":""},{"$f":"IF(OrigTable!A1638=\"\",\"\",TEXT(OrigTable!A1638,\"00\"))","v":""},{"$f":"IF(OrigTable!A1638=\"\",\"\",ScriptText!$E$1&CHAR(10)&ScriptText!$C$1)","v":""},{"$f":"IF(OrigTable!B1638=\"\",\"\",ScriptText!$B$1&CHAR(10)&ScriptText!$D$1)","v":""},{"$f":"IF(OrigTable!B1638=\"\",\"\",TEXT(OrigTable!B1638,\"00\"))","v":""},{"$f":"IF(OrigTable!B1638=\"\",\"\",ScriptText!$E$1&CHAR(10)&ScriptText!C1633)","v":""},{"$f":"IF(OrigTable!C1638=\"\",\"\",ScriptText!$B$1&CHAR(10)&ScriptText!$D$1)","v":""},{"$f":"IF(OrigTable!C1638=\"\",\"\",IF(LEN(OrigTable!C1638)>255,LEFT(OrigTable!C1638,250)&\". . .\",OrigTable!C1638))","v":""},{"$f":"IF(OrigTable!C1638=\"\",\"\",ScriptText!$E$1&CHAR(10)&ScriptText!$C$1)","v":""},{"$f":"IF(OrigTable!D1638=\"\",\"\",ScriptText!$B$1&CHAR(10)&ScriptText!$D$1)","v":""},{"$f":"IF(OrigTable!D1638=\"\",\"\",TEXT(OrigTable!D1638,\"00\"))","v":""},{"$f":"IF(OrigTable!D1638=\"\",\"\",ScriptText!$E$1&CHAR(10)&ScriptText!$C$1)","v":""},{"$f":"IF(OrigTable!E1638=\"\",\"\",ScriptText!$B$1&CHAR(10)&ScriptText!$D$1)","v":""},{"$f":"IF(OrigTable!E1638=\"\",\"\",TEXT(OrigTable!E1638,\"00\"))","v":""},{"$f":"IF(OrigTable!E1638=\"\",\"\",ScriptText!$E$1&CHAR(10)&ScriptText!$C$1)","v":""},{"$f":"IF(OrigTable!F1638=\"\",\"\",ScriptText!$B$1&CHAR(10)&ScriptText!$D$1)","v":""},{"$f":"IF(OrigTable!F1638=\"\",\"\",TEXT(OrigTable!F1638,\"00\"))","v":""},{"$f":"IF(OrigTable!F1638=\"\",\"\",ScriptText!$E$1&CHAR(10)&ScriptText!$C$1)","v":""},{"$f":"IF(OrigTable!G1638=\"\",\"\",ScriptText!$B$1&CHAR(10)&ScriptText!$D$1)","v":""},{"$f":"IF(OrigTable!G1638=\"\",\"\",TEXT(OrigTable!G1638,\"00\"))","v":""},{"$f":"IF(OrigTable!G1638=\"\",\"\",ScriptText!$E$1&CHAR(10)&ScriptText!$C$1)","v":""},0]
["\n\n\n",{"$f":"IF(OrigTable!A1639=\"\",\"\",ScriptText!$B$1&CHAR(10)&ScriptText!$D$1)","v":""},{"$f":"IF(OrigTable!A1639=\"\",\"\",TEXT(OrigTable!A1639,\"00\"))","v":""},{"$f":"IF(OrigTable!A1639=\"\",\"\",ScriptText!$E$1&CHAR(10)&ScriptText!$C$1)","v":""},{"$f":"IF(OrigTable!B1639=\"\",\"\",ScriptText!$B$1&CHAR(10)&ScriptText!$D$1)","v":""},{"$f":"IF(OrigTable!B1639=\"\",\"\",TEXT(OrigTable!B1639,\"00\"))","v":""},{"$f":"IF(OrigTable!B1639=\"\",\"\",ScriptText!$E$1&CHAR(10)&ScriptText!C1634)","v":""},{"$f":"IF(OrigTable!C1639=\"\",\"\",ScriptText!$B$1&CHAR(10)&ScriptText!$D$1)","v":""},{"$f":"IF(OrigTable!C1639=\"\",\"\",IF(LEN(OrigTable!C1639)>255,LEFT(OrigTable!C1639,250)&\". . .\",OrigTable!C1639))","v":""},{"$f":"IF(OrigTable!C1639=\"\",\"\",ScriptText!$E$1&CHAR(10)&ScriptText!$C$1)","v":""},{"$f":"IF(OrigTable!D1639=\"\",\"\",ScriptText!$B$1&CHAR(10)&ScriptText!$D$1)","v":""},{"$f":"IF(OrigTable!D1639=\"\",\"\",TEXT(OrigTable!D1639,\"00\"))","v":""},{"$f":"IF(OrigTable!D1639=\"\",\"\",ScriptText!$E$1&CHAR(10)&ScriptText!$C$1)","v":""},{"$f":"IF(OrigTable!E1639=\"\",\"\",ScriptText!$B$1&CHAR(10)&ScriptText!$D$1)","v":""},{"$f":"IF(OrigTable!E1639=\"\",\"\",TEXT(OrigTable!E1639,\"00\"))","v":""},{"$f":"IF(OrigTable!E1639=\"\",\"\",ScriptText!$E$1&CHAR(10)&ScriptText!$C$1)","v":""},{"$f":"IF(OrigTable!F1639=\"\",\"\",ScriptText!$B$1&CHAR(10)&ScriptText!$D$1)","v":""},{"$f":"IF(OrigTable!F1639=\"\",\"\",TEXT(OrigTable!F1639,\"00\"))","v":""},{"$f":"IF(OrigTable!F1639=\"\",\"\",ScriptText!$E$1&CHAR(10)&ScriptText!$C$1)","v":""},{"$f":"IF(OrigTable!G1639=\"\",\"\",ScriptText!$B$1&CHAR(10)&ScriptText!$D$1)","v":""},{"$f":"IF(OrigTable!G1639=\"\",\"\",TEXT(OrigTable!G1639,\"00\"))","v":""},{"$f":"IF(OrigTable!G1639=\"\",\"\",ScriptText!$E$1&CHAR(10)&ScriptText!$C$1)","v":""},0]
["\n\n\n",{"$f":"IF(OrigTable!A1640=\"\",\"\",ScriptText!$B$1&CHAR(10)&ScriptText!$D$1)","v":""},{"$f":"IF(OrigTable!A1640=\"\",\"\",TEXT(OrigTable!A1640,\"00\"))","v":""},{"$f":"IF(OrigTable!A1640=\"\",\"\",ScriptText!$E$1&CHAR(10)&ScriptText!$C$1)","v":""},{"$f":"IF(OrigTable!B1640=\"\",\"\",ScriptText!$B$1&CHAR(10)&ScriptText!$D$1)","v":""},{"$f":"IF(OrigTable!B1640=\"\",\"\",TEXT(OrigTable!B1640,\"00\"))","v":""},{"$f":"IF(OrigTable!B1640=\"\",\"\",ScriptText!$E$1&CHAR(10)&ScriptText!C1635)","v":""},{"$f":"IF(OrigTable!C1640=\"\",\"\",ScriptText!$B$1&CHAR(10)&ScriptText!$D$1)","v":""},{"$f":"IF(OrigTable!C1640=\"\",\"\",IF(LEN(OrigTable!C1640)>255,LEFT(OrigTable!C1640,250)&\". . .\",OrigTable!C1640))","v":""},{"$f":"IF(OrigTable!C1640=\"\",\"\",ScriptText!$E$1&CHAR(10)&ScriptText!$C$1)","v":""},{"$f":"IF(OrigTable!D1640=\"\",\"\",ScriptText!$B$1&CHAR(10)&ScriptText!$D$1)","v":""},{"$f":"IF(OrigTable!D1640=\"\",\"\",TEXT(OrigTable!D1640,\"00\"))","v":""},{"$f":"IF(OrigTable!D1640=\"\",\"\",ScriptText!$E$1&CHAR(10)&ScriptText!$C$1)","v":""},{"$f":"IF(OrigTable!E1640=\"\",\"\",ScriptText!$B$1&CHAR(10)&ScriptText!$D$1)","v":""},{"$f":"IF(OrigTable!E1640=\"\",\"\",TEXT(OrigTable!E1640,\"00\"))","v":""},{"$f":"IF(OrigTable!E1640=\"\",\"\",ScriptText!$E$1&CHAR(10)&ScriptText!$C$1)","v":""},{"$f":"IF(OrigTable!F1640=\"\",\"\",ScriptText!$B$1&CHAR(10)&ScriptText!$D$1)","v":""},{"$f":"IF(OrigTable!F1640=\"\",\"\",TEXT(OrigTable!F1640,\"00\"))","v":""},{"$f":"IF(OrigTable!F1640=\"\",\"\",ScriptText!$E$1&CHAR(10)&ScriptText!$C$1)","v":""},{"$f":"IF(OrigTable!G1640=\"\",\"\",ScriptText!$B$1&CHAR(10)&ScriptText!$D$1)","v":""},{"$f":"IF(OrigTable!G1640=\"\",\"\",TEXT(OrigTable!G1640,\"00\"))","v":""},{"$f":"IF(OrigTable!G1640=\"\",\"\",ScriptText!$E$1&CHAR(10)&ScriptText!$C$1)","v":""},0]
["\n\n\n",{"$f":"IF(OrigTable!A1641=\"\",\"\",ScriptText!$B$1&CHAR(10)&ScriptText!$D$1)","v":""},{"$f":"IF(OrigTable!A1641=\"\",\"\",TEXT(OrigTable!A1641,\"00\"))","v":""},{"$f":"IF(OrigTable!A1641=\"\",\"\",ScriptText!$E$1&CHAR(10)&ScriptText!$C$1)","v":""},{"$f":"IF(OrigTable!B1641=\"\",\"\",ScriptText!$B$1&CHAR(10)&ScriptText!$D$1)","v":""},{"$f":"IF(OrigTable!B1641=\"\",\"\",TEXT(OrigTable!B1641,\"00\"))","v":""},{"$f":"IF(OrigTable!B1641=\"\",\"\",ScriptText!$E$1&CHAR(10)&ScriptText!C1636)","v":""},{"$f":"IF(OrigTable!C1641=\"\",\"\",ScriptText!$B$1&CHAR(10)&ScriptText!$D$1)","v":""},{"$f":"IF(OrigTable!C1641=\"\",\"\",IF(LEN(OrigTable!C1641)>255,LEFT(OrigTable!C1641,250)&\". . .\",OrigTable!C1641))","v":""},{"$f":"IF(OrigTable!C1641=\"\",\"\",ScriptText!$E$1&CHAR(10)&ScriptText!$C$1)","v":""},{"$f":"IF(OrigTable!D1641=\"\",\"\",ScriptText!$B$1&CHAR(10)&ScriptText!$D$1)","v":""},{"$f":"IF(OrigTable!D1641=\"\",\"\",TEXT(OrigTable!D1641,\"00\"))","v":""},{"$f":"IF(OrigTable!D1641=\"\",\"\",ScriptText!$E$1&CHAR(10)&ScriptText!$C$1)","v":""},{"$f":"IF(OrigTable!E1641=\"\",\"\",ScriptText!$B$1&CHAR(10)&ScriptText!$D$1)","v":""},{"$f":"IF(OrigTable!E1641=\"\",\"\",TEXT(OrigTable!E1641,\"00\"))","v":""},{"$f":"IF(OrigTable!E1641=\"\",\"\",ScriptText!$E$1&CHAR(10)&ScriptText!$C$1)","v":""},{"$f":"IF(OrigTable!F1641=\"\",\"\",ScriptText!$B$1&CHAR(10)&ScriptText!$D$1)","v":""},{"$f":"IF(OrigTable!F1641=\"\",\"\",TEXT(OrigTable!F1641,\"00\"))","v":""},{"$f":"IF(OrigTable!F1641=\"\",\"\",ScriptText!$E$1&CHAR(10)&ScriptText!$C$1)","v":""},{"$f":"IF(OrigTable!G1641=\"\",\"\",ScriptText!$B$1&CHAR(10)&ScriptText!$D$1)","v":""},{"$f":"IF(OrigTable!G1641=\"\",\"\",TEXT(OrigTable!G1641,\"00\"))","v":""},{"$f":"IF(OrigTable!G1641=\"\",\"\",ScriptText!$E$1&CHAR(10)&ScriptText!$C$1)","v":""},0]
["\n\n\n",{"$f":"IF(OrigTable!A1642=\"\",\"\",ScriptText!$B$1&CHAR(10)&ScriptText!$D$1)","v":""},{"$f":"IF(OrigTable!A1642=\"\",\"\",TEXT(OrigTable!A1642,\"00\"))","v":""},{"$f":"IF(OrigTable!A1642=\"\",\"\",ScriptText!$E$1&CHAR(10)&ScriptText!$C$1)","v":""},{"$f":"IF(OrigTable!B1642=\"\",\"\",ScriptText!$B$1&CHAR(10)&ScriptText!$D$1)","v":""},{"$f":"IF(OrigTable!B1642=\"\",\"\",TEXT(OrigTable!B1642,\"00\"))","v":""},{"$f":"IF(OrigTable!B1642=\"\",\"\",ScriptText!$E$1&CHAR(10)&ScriptText!C1637)","v":""},{"$f":"IF(OrigTable!C1642=\"\",\"\",ScriptText!$B$1&CHAR(10)&ScriptText!$D$1)","v":""},{"$f":"IF(OrigTable!C1642=\"\",\"\",IF(LEN(OrigTable!C1642)>255,LEFT(OrigTable!C1642,250)&\". . .\",OrigTable!C1642))","v":""},{"$f":"IF(OrigTable!C1642=\"\",\"\",ScriptText!$E$1&CHAR(10)&ScriptText!$C$1)","v":""},{"$f":"IF(OrigTable!D1642=\"\",\"\",ScriptText!$B$1&CHAR(10)&ScriptText!$D$1)","v":""},{"$f":"IF(OrigTable!D1642=\"\",\"\",TEXT(OrigTable!D1642,\"00\"))","v":""},{"$f":"IF(OrigTable!D1642=\"\",\"\",ScriptText!$E$1&CHAR(10)&ScriptText!$C$1)","v":""},{"$f":"IF(OrigTable!E1642=\"\",\"\",ScriptText!$B$1&CHAR(10)&ScriptText!$D$1)","v":""},{"$f":"IF(OrigTable!E1642=\"\",\"\",TEXT(OrigTable!E1642,\"00\"))","v":""},{"$f":"IF(OrigTable!E1642=\"\",\"\",ScriptText!$E$1&CHAR(10)&ScriptText!$C$1)","v":""},{"$f":"IF(OrigTable!F1642=\"\",\"\",ScriptText!$B$1&CHAR(10)&ScriptText!$D$1)","v":""},{"$f":"IF(OrigTable!F1642=\"\",\"\",TEXT(OrigTable!F1642,\"00\"))","v":""},{"$f":"IF(OrigTable!F1642=\"\",\"\",ScriptText!$E$1&CHAR(10)&ScriptText!$C$1)","v":""},{"$f":"IF(OrigTable!G1642=\"\",\"\",ScriptText!$B$1&CHAR(10)&ScriptText!$D$1)","v":""},{"$f":"IF(OrigTable!G1642=\"\",\"\",TEXT(OrigTable!G1642,\"00\"))","v":""},{"$f":"IF(OrigTable!G1642=\"\",\"\",ScriptText!$E$1&CHAR(10)&ScriptText!$C$1)","v":""},0]
["\n\n\n",{"$f":"IF(OrigTable!A1643=\"\",\"\",ScriptText!$B$1&CHAR(10)&ScriptText!$D$1)","v":""},{"$f":"IF(OrigTable!A1643=\"\",\"\",TEXT(OrigTable!A1643,\"00\"))","v":""},{"$f":"IF(OrigTable!A1643=\"\",\"\",ScriptText!$E$1&CHAR(10)&ScriptText!$C$1)","v":""},{"$f":"IF(OrigTable!B1643=\"\",\"\",ScriptText!$B$1&CHAR(10)&ScriptText!$D$1)","v":""},{"$f":"IF(OrigTable!B1643=\"\",\"\",TEXT(OrigTable!B1643,\"00\"))","v":""},{"$f":"IF(OrigTable!B1643=\"\",\"\",ScriptText!$E$1&CHAR(10)&ScriptText!C1638)","v":""},{"$f":"IF(OrigTable!C1643=\"\",\"\",ScriptText!$B$1&CHAR(10)&ScriptText!$D$1)","v":""},{"$f":"IF(OrigTable!C1643=\"\",\"\",IF(LEN(OrigTable!C1643)>255,LEFT(OrigTable!C1643,250)&\". . .\",OrigTable!C1643))","v":""},{"$f":"IF(OrigTable!C1643=\"\",\"\",ScriptText!$E$1&CHAR(10)&ScriptText!$C$1)","v":""},{"$f":"IF(OrigTable!D1643=\"\",\"\",ScriptText!$B$1&CHAR(10)&ScriptText!$D$1)","v":""},{"$f":"IF(OrigTable!D1643=\"\",\"\",TEXT(OrigTable!D1643,\"00\"))","v":""},{"$f":"IF(OrigTable!D1643=\"\",\"\",ScriptText!$E$1&CHAR(10)&ScriptText!$C$1)","v":""},{"$f":"IF(OrigTable!E1643=\"\",\"\",ScriptText!$B$1&CHAR(10)&ScriptText!$D$1)","v":""},{"$f":"IF(OrigTable!E1643=\"\",\"\",TEXT(OrigTable!E1643,\"00\"))","v":""},{"$f":"IF(OrigTable!E1643=\"\",\"\",ScriptText!$E$1&CHAR(10)&ScriptText!$C$1)","v":""},{"$f":"IF(OrigTable!F1643=\"\",\"\",ScriptText!$B$1&CHAR(10)&ScriptText!$D$1)","v":""},{"$f":"IF(OrigTable!F1643=\"\",\"\",TEXT(OrigTable!F1643,\"00\"))","v":""},{"$f":"IF(OrigTable!F1643=\"\",\"\",ScriptText!$E$1&CHAR(10)&ScriptText!$C$1)","v":""},{"$f":"IF(OrigTable!G1643=\"\",\"\",ScriptText!$B$1&CHAR(10)&ScriptText!$D$1)","v":""},{"$f":"IF(OrigTable!G1643=\"\",\"\",TEXT(OrigTable!G1643,\"00\"))","v":""},{"$f":"IF(OrigTable!G1643=\"\",\"\",ScriptText!$E$1&CHAR(10)&ScriptText!$C$1)","v":""},0]
["\n\n\n",{"$f":"IF(OrigTable!A1644=\"\",\"\",ScriptText!$B$1&CHAR(10)&ScriptText!$D$1)","v":""},{"$f":"IF(OrigTable!A1644=\"\",\"\",TEXT(OrigTable!A1644,\"00\"))","v":""},{"$f":"IF(OrigTable!A1644=\"\",\"\",ScriptText!$E$1&CHAR(10)&ScriptText!$C$1)","v":""},{"$f":"IF(OrigTable!B1644=\"\",\"\",ScriptText!$B$1&CHAR(10)&ScriptText!$D$1)","v":""},{"$f":"IF(OrigTable!B1644=\"\",\"\",TEXT(OrigTable!B1644,\"00\"))","v":""},{"$f":"IF(OrigTable!B1644=\"\",\"\",ScriptText!$E$1&CHAR(10)&ScriptText!C1639)","v":""},{"$f":"IF(OrigTable!C1644=\"\",\"\",ScriptText!$B$1&CHAR(10)&ScriptText!$D$1)","v":""},{"$f":"IF(OrigTable!C1644=\"\",\"\",IF(LEN(OrigTable!C1644)>255,LEFT(OrigTable!C1644,250)&\". . .\",OrigTable!C1644))","v":""},{"$f":"IF(OrigTable!C1644=\"\",\"\",ScriptText!$E$1&CHAR(10)&ScriptText!$C$1)","v":""},{"$f":"IF(OrigTable!D1644=\"\",\"\",ScriptText!$B$1&CHAR(10)&ScriptText!$D$1)","v":""},{"$f":"IF(OrigTable!D1644=\"\",\"\",TEXT(OrigTable!D1644,\"00\"))","v":""},{"$f":"IF(OrigTable!D1644=\"\",\"\",ScriptText!$E$1&CHAR(10)&ScriptText!$C$1)","v":""},{"$f":"IF(OrigTable!E1644=\"\",\"\",ScriptText!$B$1&CHAR(10)&ScriptText!$D$1)","v":""},{"$f":"IF(OrigTable!E1644=\"\",\"\",TEXT(OrigTable!E1644,\"00\"))","v":""},{"$f":"IF(OrigTable!E1644=\"\",\"\",ScriptText!$E$1&CHAR(10)&ScriptText!$C$1)","v":""},{"$f":"IF(OrigTable!F1644=\"\",\"\",ScriptText!$B$1&CHAR(10)&ScriptText!$D$1)","v":""},{"$f":"IF(OrigTable!F1644=\"\",\"\",TEXT(OrigTable!F1644,\"00\"))","v":""},{"$f":"IF(OrigTable!F1644=\"\",\"\",ScriptText!$E$1&CHAR(10)&ScriptText!$C$1)","v":""},{"$f":"IF(OrigTable!G1644=\"\",\"\",ScriptText!$B$1&CHAR(10)&ScriptText!$D$1)","v":""},{"$f":"IF(OrigTable!G1644=\"\",\"\",TEXT(OrigTable!G1644,\"00\"))","v":""},{"$f":"IF(OrigTable!G1644=\"\",\"\",ScriptText!$E$1&CHAR(10)&ScriptText!$C$1)","v":""},0]
["\n\n\n",{"$f":"IF(OrigTable!A1645=\"\",\"\",ScriptText!$B$1&CHAR(10)&ScriptText!$D$1)","v":""},{"$f":"IF(OrigTable!A1645=\"\",\"\",TEXT(OrigTable!A1645,\"00\"))","v":""},{"$f":"IF(OrigTable!A1645=\"\",\"\",ScriptText!$E$1&CHAR(10)&ScriptText!$C$1)","v":""},{"$f":"IF(OrigTable!B1645=\"\",\"\",ScriptText!$B$1&CHAR(10)&ScriptText!$D$1)","v":""},{"$f":"IF(OrigTable!B1645=\"\",\"\",TEXT(OrigTable!B1645,\"00\"))","v":""},{"$f":"IF(OrigTable!B1645=\"\",\"\",ScriptText!$E$1&CHAR(10)&ScriptText!C1640)","v":""},{"$f":"IF(OrigTable!C1645=\"\",\"\",ScriptText!$B$1&CHAR(10)&ScriptText!$D$1)","v":""},{"$f":"IF(OrigTable!C1645=\"\",\"\",IF(LEN(OrigTable!C1645)>255,LEFT(OrigTable!C1645,250)&\". . .\",OrigTable!C1645))","v":""},{"$f":"IF(OrigTable!C1645=\"\",\"\",ScriptText!$E$1&CHAR(10)&ScriptText!$C$1)","v":""},{"$f":"IF(OrigTable!D1645=\"\",\"\",ScriptText!$B$1&CHAR(10)&ScriptText!$D$1)","v":""},{"$f":"IF(OrigTable!D1645=\"\",\"\",TEXT(OrigTable!D1645,\"00\"))","v":""},{"$f":"IF(OrigTable!D1645=\"\",\"\",ScriptText!$E$1&CHAR(10)&ScriptText!$C$1)","v":""},{"$f":"IF(OrigTable!E1645=\"\",\"\",ScriptText!$B$1&CHAR(10)&ScriptText!$D$1)","v":""},{"$f":"IF(OrigTable!E1645=\"\",\"\",TEXT(OrigTable!E1645,\"00\"))","v":""},{"$f":"IF(OrigTable!E1645=\"\",\"\",ScriptText!$E$1&CHAR(10)&ScriptText!$C$1)","v":""},{"$f":"IF(OrigTable!F1645=\"\",\"\",ScriptText!$B$1&CHAR(10)&ScriptText!$D$1)","v":""},{"$f":"IF(OrigTable!F1645=\"\",\"\",TEXT(OrigTable!F1645,\"00\"))","v":""},{"$f":"IF(OrigTable!F1645=\"\",\"\",ScriptText!$E$1&CHAR(10)&ScriptText!$C$1)","v":""},{"$f":"IF(OrigTable!G1645=\"\",\"\",ScriptText!$B$1&CHAR(10)&ScriptText!$D$1)","v":""},{"$f":"IF(OrigTable!G1645=\"\",\"\",TEXT(OrigTable!G1645,\"00\"))","v":""},{"$f":"IF(OrigTable!G1645=\"\",\"\",ScriptText!$E$1&CHAR(10)&ScriptText!$C$1)","v":""},0]
["\n\n\n",{"$f":"IF(OrigTable!A1646=\"\",\"\",ScriptText!$B$1&CHAR(10)&ScriptText!$D$1)","v":""},{"$f":"IF(OrigTable!A1646=\"\",\"\",TEXT(OrigTable!A1646,\"00\"))","v":""},{"$f":"IF(OrigTable!A1646=\"\",\"\",ScriptText!$E$1&CHAR(10)&ScriptText!$C$1)","v":""},{"$f":"IF(OrigTable!B1646=\"\",\"\",ScriptText!$B$1&CHAR(10)&ScriptText!$D$1)","v":""},{"$f":"IF(OrigTable!B1646=\"\",\"\",TEXT(OrigTable!B1646,\"00\"))","v":""},{"$f":"IF(OrigTable!B1646=\"\",\"\",ScriptText!$E$1&CHAR(10)&ScriptText!C1641)","v":""},{"$f":"IF(OrigTable!C1646=\"\",\"\",ScriptText!$B$1&CHAR(10)&ScriptText!$D$1)","v":""},{"$f":"IF(OrigTable!C1646=\"\",\"\",IF(LEN(OrigTable!C1646)>255,LEFT(OrigTable!C1646,250)&\". . .\",OrigTable!C1646))","v":""},{"$f":"IF(OrigTable!C1646=\"\",\"\",ScriptText!$E$1&CHAR(10)&ScriptText!$C$1)","v":""},{"$f":"IF(OrigTable!D1646=\"\",\"\",ScriptText!$B$1&CHAR(10)&ScriptText!$D$1)","v":""},{"$f":"IF(OrigTable!D1646=\"\",\"\",TEXT(OrigTable!D1646,\"00\"))","v":""},{"$f":"IF(OrigTable!D1646=\"\",\"\",ScriptText!$E$1&CHAR(10)&ScriptText!$C$1)","v":""},{"$f":"IF(OrigTable!E1646=\"\",\"\",ScriptText!$B$1&CHAR(10)&ScriptText!$D$1)","v":""},{"$f":"IF(OrigTable!E1646=\"\",\"\",TEXT(OrigTable!E1646,\"00\"))","v":""},{"$f":"IF(OrigTable!E1646=\"\",\"\",ScriptText!$E$1&CHAR(10)&ScriptText!$C$1)","v":""},{"$f":"IF(OrigTable!F1646=\"\",\"\",ScriptText!$B$1&CHAR(10)&ScriptText!$D$1)","v":""},{"$f":"IF(OrigTable!F1646=\"\",\"\",TEXT(OrigTable!F1646,\"00\"))","v":""},{"$f":"IF(OrigTable!F1646=\"\",\"\",ScriptText!$E$1&CHAR(10)&ScriptText!$C$1)","v":""},{"$f":"IF(OrigTable!G1646=\"\",\"\",ScriptText!$B$1&CHAR(10)&ScriptText!$D$1)","v":""},{"$f":"IF(OrigTable!G1646=\"\",\"\",TEXT(OrigTable!G1646,\"00\"))","v":""},{"$f":"IF(OrigTable!G1646=\"\",\"\",ScriptText!$E$1&CHAR(10)&ScriptText!$C$1)","v":""},0]
["\n\n\n",{"$f":"IF(OrigTable!A1647=\"\",\"\",ScriptText!$B$1&CHAR(10)&ScriptText!$D$1)","v":""},{"$f":"IF(OrigTable!A1647=\"\",\"\",TEXT(OrigTable!A1647,\"00\"))","v":""},{"$f":"IF(OrigTable!A1647=\"\",\"\",ScriptText!$E$1&CHAR(10)&ScriptText!$C$1)","v":""},{"$f":"IF(OrigTable!B1647=\"\",\"\",ScriptText!$B$1&CHAR(10)&ScriptText!$D$1)","v":""},{"$f":"IF(OrigTable!B1647=\"\",\"\",TEXT(OrigTable!B1647,\"00\"))","v":""},{"$f":"IF(OrigTable!B1647=\"\",\"\",ScriptText!$E$1&CHAR(10)&ScriptText!C1642)","v":""},{"$f":"IF(OrigTable!C1647=\"\",\"\",ScriptText!$B$1&CHAR(10)&ScriptText!$D$1)","v":""},{"$f":"IF(OrigTable!C1647=\"\",\"\",IF(LEN(OrigTable!C1647)>255,LEFT(OrigTable!C1647,250)&\". . .\",OrigTable!C1647))","v":""},{"$f":"IF(OrigTable!C1647=\"\",\"\",ScriptText!$E$1&CHAR(10)&ScriptText!$C$1)","v":""},{"$f":"IF(OrigTable!D1647=\"\",\"\",ScriptText!$B$1&CHAR(10)&ScriptText!$D$1)","v":""},{"$f":"IF(OrigTable!D1647=\"\",\"\",TEXT(OrigTable!D1647,\"00\"))","v":""},{"$f":"IF(OrigTable!D1647=\"\",\"\",ScriptText!$E$1&CHAR(10)&ScriptText!$C$1)","v":""},{"$f":"IF(OrigTable!E1647=\"\",\"\",ScriptText!$B$1&CHAR(10)&ScriptText!$D$1)","v":""},{"$f":"IF(OrigTable!E1647=\"\",\"\",TEXT(OrigTable!E1647,\"00\"))","v":""},{"$f":"IF(OrigTable!E1647=\"\",\"\",ScriptText!$E$1&CHAR(10)&ScriptText!$C$1)","v":""},{"$f":"IF(OrigTable!F1647=\"\",\"\",ScriptText!$B$1&CHAR(10)&ScriptText!$D$1)","v":""},{"$f":"IF(OrigTable!F1647=\"\",\"\",TEXT(OrigTable!F1647,\"00\"))","v":""},{"$f":"IF(OrigTable!F1647=\"\",\"\",ScriptText!$E$1&CHAR(10)&ScriptText!$C$1)","v":""},{"$f":"IF(OrigTable!G1647=\"\",\"\",ScriptText!$B$1&CHAR(10)&ScriptText!$D$1)","v":""},{"$f":"IF(OrigTable!G1647=\"\",\"\",TEXT(OrigTable!G1647,\"00\"))","v":""},{"$f":"IF(OrigTable!G1647=\"\",\"\",ScriptText!$E$1&CHAR(10)&ScriptText!$C$1)","v":""},0]
["\n\n\n",{"$f":"IF(OrigTable!A1648=\"\",\"\",ScriptText!$B$1&CHAR(10)&ScriptText!$D$1)","v":""},{"$f":"IF(OrigTable!A1648=\"\",\"\",TEXT(OrigTable!A1648,\"00\"))","v":""},{"$f":"IF(OrigTable!A1648=\"\",\"\",ScriptText!$E$1&CHAR(10)&ScriptText!$C$1)","v":""},{"$f":"IF(OrigTable!B1648=\"\",\"\",ScriptText!$B$1&CHAR(10)&ScriptText!$D$1)","v":""},{"$f":"IF(OrigTable!B1648=\"\",\"\",TEXT(OrigTable!B1648,\"00\"))","v":""},{"$f":"IF(OrigTable!B1648=\"\",\"\",ScriptText!$E$1&CHAR(10)&ScriptText!C1643)","v":""},{"$f":"IF(OrigTable!C1648=\"\",\"\",ScriptText!$B$1&CHAR(10)&ScriptText!$D$1)","v":""},{"$f":"IF(OrigTable!C1648=\"\",\"\",IF(LEN(OrigTable!C1648)>255,LEFT(OrigTable!C1648,250)&\". . .\",OrigTable!C1648))","v":""},{"$f":"IF(OrigTable!C1648=\"\",\"\",ScriptText!$E$1&CHAR(10)&ScriptText!$C$1)","v":""},{"$f":"IF(OrigTable!D1648=\"\",\"\",ScriptText!$B$1&CHAR(10)&ScriptText!$D$1)","v":""},{"$f":"IF(OrigTable!D1648=\"\",\"\",TEXT(OrigTable!D1648,\"00\"))","v":""},{"$f":"IF(OrigTable!D1648=\"\",\"\",ScriptText!$E$1&CHAR(10)&ScriptText!$C$1)","v":""},{"$f":"IF(OrigTable!E1648=\"\",\"\",ScriptText!$B$1&CHAR(10)&ScriptText!$D$1)","v":""},{"$f":"IF(OrigTable!E1648=\"\",\"\",TEXT(OrigTable!E1648,\"00\"))","v":""},{"$f":"IF(OrigTable!E1648=\"\",\"\",ScriptText!$E$1&CHAR(10)&ScriptText!$C$1)","v":""},{"$f":"IF(OrigTable!F1648=\"\",\"\",ScriptText!$B$1&CHAR(10)&ScriptText!$D$1)","v":""},{"$f":"IF(OrigTable!F1648=\"\",\"\",TEXT(OrigTable!F1648,\"00\"))","v":""},{"$f":"IF(OrigTable!F1648=\"\",\"\",ScriptText!$E$1&CHAR(10)&ScriptText!$C$1)","v":""},{"$f":"IF(OrigTable!G1648=\"\",\"\",ScriptText!$B$1&CHAR(10)&ScriptText!$D$1)","v":""},{"$f":"IF(OrigTable!G1648=\"\",\"\",TEXT(OrigTable!G1648,\"00\"))","v":""},{"$f":"IF(OrigTable!G1648=\"\",\"\",ScriptText!$E$1&CHAR(10)&ScriptText!$C$1)","v":""},0]
["\n\n\n",{"$f":"IF(OrigTable!A1649=\"\",\"\",ScriptText!$B$1&CHAR(10)&ScriptText!$D$1)","v":""},{"$f":"IF(OrigTable!A1649=\"\",\"\",TEXT(OrigTable!A1649,\"00\"))","v":""},{"$f":"IF(OrigTable!A1649=\"\",\"\",ScriptText!$E$1&CHAR(10)&ScriptText!$C$1)","v":""},{"$f":"IF(OrigTable!B1649=\"\",\"\",ScriptText!$B$1&CHAR(10)&ScriptText!$D$1)","v":""},{"$f":"IF(OrigTable!B1649=\"\",\"\",TEXT(OrigTable!B1649,\"00\"))","v":""},{"$f":"IF(OrigTable!B1649=\"\",\"\",ScriptText!$E$1&CHAR(10)&ScriptText!C1644)","v":""},{"$f":"IF(OrigTable!C1649=\"\",\"\",ScriptText!$B$1&CHAR(10)&ScriptText!$D$1)","v":""},{"$f":"IF(OrigTable!C1649=\"\",\"\",IF(LEN(OrigTable!C1649)>255,LEFT(OrigTable!C1649,250)&\". . .\",OrigTable!C1649))","v":""},{"$f":"IF(OrigTable!C1649=\"\",\"\",ScriptText!$E$1&CHAR(10)&ScriptText!$C$1)","v":""},{"$f":"IF(OrigTable!D1649=\"\",\"\",ScriptText!$B$1&CHAR(10)&ScriptText!$D$1)","v":""},{"$f":"IF(OrigTable!D1649=\"\",\"\",TEXT(OrigTable!D1649,\"00\"))","v":""},{"$f":"IF(OrigTable!D1649=\"\",\"\",ScriptText!$E$1&CHAR(10)&ScriptText!$C$1)","v":""},{"$f":"IF(OrigTable!E1649=\"\",\"\",ScriptText!$B$1&CHAR(10)&ScriptText!$D$1)","v":""},{"$f":"IF(OrigTable!E1649=\"\",\"\",TEXT(OrigTable!E1649,\"00\"))","v":""},{"$f":"IF(OrigTable!E1649=\"\",\"\",ScriptText!$E$1&CHAR(10)&ScriptText!$C$1)","v":""},{"$f":"IF(OrigTable!F1649=\"\",\"\",ScriptText!$B$1&CHAR(10)&ScriptText!$D$1)","v":""},{"$f":"IF(OrigTable!F1649=\"\",\"\",TEXT(OrigTable!F1649,\"00\"))","v":""},{"$f":"IF(OrigTable!F1649=\"\",\"\",ScriptText!$E$1&CHAR(10)&ScriptText!$C$1)","v":""},{"$f":"IF(OrigTable!G1649=\"\",\"\",ScriptText!$B$1&CHAR(10)&ScriptText!$D$1)","v":""},{"$f":"IF(OrigTable!G1649=\"\",\"\",TEXT(OrigTable!G1649,\"00\"))","v":""},{"$f":"IF(OrigTable!G1649=\"\",\"\",ScriptText!$E$1&CHAR(10)&ScriptText!$C$1)","v":""},0]
["\n\n\n",{"$f":"IF(OrigTable!A1650=\"\",\"\",ScriptText!$B$1&CHAR(10)&ScriptText!$D$1)","v":""},{"$f":"IF(OrigTable!A1650=\"\",\"\",TEXT(OrigTable!A1650,\"00\"))","v":""},{"$f":"IF(OrigTable!A1650=\"\",\"\",ScriptText!$E$1&CHAR(10)&ScriptText!$C$1)","v":""},{"$f":"IF(OrigTable!B1650=\"\",\"\",ScriptText!$B$1&CHAR(10)&ScriptText!$D$1)","v":""},{"$f":"IF(OrigTable!B1650=\"\",\"\",TEXT(OrigTable!B1650,\"00\"))","v":""},{"$f":"IF(OrigTable!B1650=\"\",\"\",ScriptText!$E$1&CHAR(10)&ScriptText!C1645)","v":""},{"$f":"IF(OrigTable!C1650=\"\",\"\",ScriptText!$B$1&CHAR(10)&ScriptText!$D$1)","v":""},{"$f":"IF(OrigTable!C1650=\"\",\"\",IF(LEN(OrigTable!C1650)>255,LEFT(OrigTable!C1650,250)&\". . .\",OrigTable!C1650))","v":""},{"$f":"IF(OrigTable!C1650=\"\",\"\",ScriptText!$E$1&CHAR(10)&ScriptText!$C$1)","v":""},{"$f":"IF(OrigTable!D1650=\"\",\"\",ScriptText!$B$1&CHAR(10)&ScriptText!$D$1)","v":""},{"$f":"IF(OrigTable!D1650=\"\",\"\",TEXT(OrigTable!D1650,\"00\"))","v":""},{"$f":"IF(OrigTable!D1650=\"\",\"\",ScriptText!$E$1&CHAR(10)&ScriptText!$C$1)","v":""},{"$f":"IF(OrigTable!E1650=\"\",\"\",ScriptText!$B$1&CHAR(10)&ScriptText!$D$1)","v":""},{"$f":"IF(OrigTable!E1650=\"\",\"\",TEXT(OrigTable!E1650,\"00\"))","v":""},{"$f":"IF(OrigTable!E1650=\"\",\"\",ScriptText!$E$1&CHAR(10)&ScriptText!$C$1)","v":""},{"$f":"IF(OrigTable!F1650=\"\",\"\",ScriptText!$B$1&CHAR(10)&ScriptText!$D$1)","v":""},{"$f":"IF(OrigTable!F1650=\"\",\"\",TEXT(OrigTable!F1650,\"00\"))","v":""},{"$f":"IF(OrigTable!F1650=\"\",\"\",ScriptText!$E$1&CHAR(10)&ScriptText!$C$1)","v":""},{"$f":"IF(OrigTable!G1650=\"\",\"\",ScriptText!$B$1&CHAR(10)&ScriptText!$D$1)","v":""},{"$f":"IF(OrigTable!G1650=\"\",\"\",TEXT(OrigTable!G1650,\"00\"))","v":""},{"$f":"IF(OrigTable!G1650=\"\",\"\",ScriptText!$E$1&CHAR(10)&ScriptText!$C$1)","v":""},0]
["\n\n\n",{"$f":"IF(OrigTable!A1651=\"\",\"\",ScriptText!$B$1&CHAR(10)&ScriptText!$D$1)","v":""},{"$f":"IF(OrigTable!A1651=\"\",\"\",TEXT(OrigTable!A1651,\"00\"))","v":""},{"$f":"IF(OrigTable!A1651=\"\",\"\",ScriptText!$E$1&CHAR(10)&ScriptText!$C$1)","v":""},{"$f":"IF(OrigTable!B1651=\"\",\"\",ScriptText!$B$1&CHAR(10)&ScriptText!$D$1)","v":""},{"$f":"IF(OrigTable!B1651=\"\",\"\",TEXT(OrigTable!B1651,\"00\"))","v":""},{"$f":"IF(OrigTable!B1651=\"\",\"\",ScriptText!$E$1&CHAR(10)&ScriptText!C1646)","v":""},{"$f":"IF(OrigTable!C1651=\"\",\"\",ScriptText!$B$1&CHAR(10)&ScriptText!$D$1)","v":""},{"$f":"IF(OrigTable!C1651=\"\",\"\",IF(LEN(OrigTable!C1651)>255,LEFT(OrigTable!C1651,250)&\". . .\",OrigTable!C1651))","v":""},{"$f":"IF(OrigTable!C1651=\"\",\"\",ScriptText!$E$1&CHAR(10)&ScriptText!$C$1)","v":""},{"$f":"IF(OrigTable!D1651=\"\",\"\",ScriptText!$B$1&CHAR(10)&ScriptText!$D$1)","v":""},{"$f":"IF(OrigTable!D1651=\"\",\"\",TEXT(OrigTable!D1651,\"00\"))","v":""},{"$f":"IF(OrigTable!D1651=\"\",\"\",ScriptText!$E$1&CHAR(10)&ScriptText!$C$1)","v":""},{"$f":"IF(OrigTable!E1651=\"\",\"\",ScriptText!$B$1&CHAR(10)&ScriptText!$D$1)","v":""},{"$f":"IF(OrigTable!E1651=\"\",\"\",TEXT(OrigTable!E1651,\"00\"))","v":""},{"$f":"IF(OrigTable!E1651=\"\",\"\",ScriptText!$E$1&CHAR(10)&ScriptText!$C$1)","v":""},{"$f":"IF(OrigTable!F1651=\"\",\"\",ScriptText!$B$1&CHAR(10)&ScriptText!$D$1)","v":""},{"$f":"IF(OrigTable!F1651=\"\",\"\",TEXT(OrigTable!F1651,\"00\"))","v":""},{"$f":"IF(OrigTable!F1651=\"\",\"\",ScriptText!$E$1&CHAR(10)&ScriptText!$C$1)","v":""},{"$f":"IF(OrigTable!G1651=\"\",\"\",ScriptText!$B$1&CHAR(10)&ScriptText!$D$1)","v":""},{"$f":"IF(OrigTable!G1651=\"\",\"\",TEXT(OrigTable!G1651,\"00\"))","v":""},{"$f":"IF(OrigTable!G1651=\"\",\"\",ScriptText!$E$1&CHAR(10)&ScriptText!$C$1)","v":""},0]
["\n\n\n",{"$f":"IF(OrigTable!A1652=\"\",\"\",ScriptText!$B$1&CHAR(10)&ScriptText!$D$1)","v":""},{"$f":"IF(OrigTable!A1652=\"\",\"\",TEXT(OrigTable!A1652,\"00\"))","v":""},{"$f":"IF(OrigTable!A1652=\"\",\"\",ScriptText!$E$1&CHAR(10)&ScriptText!$C$1)","v":""},{"$f":"IF(OrigTable!B1652=\"\",\"\",ScriptText!$B$1&CHAR(10)&ScriptText!$D$1)","v":""},{"$f":"IF(OrigTable!B1652=\"\",\"\",TEXT(OrigTable!B1652,\"00\"))","v":""},{"$f":"IF(OrigTable!B1652=\"\",\"\",ScriptText!$E$1&CHAR(10)&ScriptText!C1647)","v":""},{"$f":"IF(OrigTable!C1652=\"\",\"\",ScriptText!$B$1&CHAR(10)&ScriptText!$D$1)","v":""},{"$f":"IF(OrigTable!C1652=\"\",\"\",IF(LEN(OrigTable!C1652)>255,LEFT(OrigTable!C1652,250)&\". . .\",OrigTable!C1652))","v":""},{"$f":"IF(OrigTable!C1652=\"\",\"\",ScriptText!$E$1&CHAR(10)&ScriptText!$C$1)","v":""},{"$f":"IF(OrigTable!D1652=\"\",\"\",ScriptText!$B$1&CHAR(10)&ScriptText!$D$1)","v":""},{"$f":"IF(OrigTable!D1652=\"\",\"\",TEXT(OrigTable!D1652,\"00\"))","v":""},{"$f":"IF(OrigTable!D1652=\"\",\"\",ScriptText!$E$1&CHAR(10)&ScriptText!$C$1)","v":""},{"$f":"IF(OrigTable!E1652=\"\",\"\",ScriptText!$B$1&CHAR(10)&ScriptText!$D$1)","v":""},{"$f":"IF(OrigTable!E1652=\"\",\"\",TEXT(OrigTable!E1652,\"00\"))","v":""},{"$f":"IF(OrigTable!E1652=\"\",\"\",ScriptText!$E$1&CHAR(10)&ScriptText!$C$1)","v":""},{"$f":"IF(OrigTable!F1652=\"\",\"\",ScriptText!$B$1&CHAR(10)&ScriptText!$D$1)","v":""},{"$f":"IF(OrigTable!F1652=\"\",\"\",TEXT(OrigTable!F1652,\"00\"))","v":""},{"$f":"IF(OrigTable!F1652=\"\",\"\",ScriptText!$E$1&CHAR(10)&ScriptText!$C$1)","v":""},{"$f":"IF(OrigTable!G1652=\"\",\"\",ScriptText!$B$1&CHAR(10)&ScriptText!$D$1)","v":""},{"$f":"IF(OrigTable!G1652=\"\",\"\",TEXT(OrigTable!G1652,\"00\"))","v":""},{"$f":"IF(OrigTable!G1652=\"\",\"\",ScriptText!$E$1&CHAR(10)&ScriptText!$C$1)","v":""},0]
["\n\n\n",{"$f":"IF(OrigTable!A1653=\"\",\"\",ScriptText!$B$1&CHAR(10)&ScriptText!$D$1)","v":""},{"$f":"IF(OrigTable!A1653=\"\",\"\",TEXT(OrigTable!A1653,\"00\"))","v":""},{"$f":"IF(OrigTable!A1653=\"\",\"\",ScriptText!$E$1&CHAR(10)&ScriptText!$C$1)","v":""},{"$f":"IF(OrigTable!B1653=\"\",\"\",ScriptText!$B$1&CHAR(10)&ScriptText!$D$1)","v":""},{"$f":"IF(OrigTable!B1653=\"\",\"\",TEXT(OrigTable!B1653,\"00\"))","v":""},{"$f":"IF(OrigTable!B1653=\"\",\"\",ScriptText!$E$1&CHAR(10)&ScriptText!C1648)","v":""},{"$f":"IF(OrigTable!C1653=\"\",\"\",ScriptText!$B$1&CHAR(10)&ScriptText!$D$1)","v":""},{"$f":"IF(OrigTable!C1653=\"\",\"\",IF(LEN(OrigTable!C1653)>255,LEFT(OrigTable!C1653,250)&\". . .\",OrigTable!C1653))","v":""},{"$f":"IF(OrigTable!C1653=\"\",\"\",ScriptText!$E$1&CHAR(10)&ScriptText!$C$1)","v":""},{"$f":"IF(OrigTable!D1653=\"\",\"\",ScriptText!$B$1&CHAR(10)&ScriptText!$D$1)","v":""},{"$f":"IF(OrigTable!D1653=\"\",\"\",TEXT(OrigTable!D1653,\"00\"))","v":""},{"$f":"IF(OrigTable!D1653=\"\",\"\",ScriptText!$E$1&CHAR(10)&ScriptText!$C$1)","v":""},{"$f":"IF(OrigTable!E1653=\"\",\"\",ScriptText!$B$1&CHAR(10)&ScriptText!$D$1)","v":""},{"$f":"IF(OrigTable!E1653=\"\",\"\",TEXT(OrigTable!E1653,\"00\"))","v":""},{"$f":"IF(OrigTable!E1653=\"\",\"\",ScriptText!$E$1&CHAR(10)&ScriptText!$C$1)","v":""},{"$f":"IF(OrigTable!F1653=\"\",\"\",ScriptText!$B$1&CHAR(10)&ScriptText!$D$1)","v":""},{"$f":"IF(OrigTable!F1653=\"\",\"\",TEXT(OrigTable!F1653,\"00\"))","v":""},{"$f":"IF(OrigTable!F1653=\"\",\"\",ScriptText!$E$1&CHAR(10)&ScriptText!$C$1)","v":""},{"$f":"IF(OrigTable!G1653=\"\",\"\",ScriptText!$B$1&CHAR(10)&ScriptText!$D$1)","v":""},{"$f":"IF(OrigTable!G1653=\"\",\"\",TEXT(OrigTable!G1653,\"00\"))","v":""},{"$f":"IF(OrigTable!G1653=\"\",\"\",ScriptText!$E$1&CHAR(10)&ScriptText!$C$1)","v":""},0]
["\n\n\n",{"$f":"IF(OrigTable!A1654=\"\",\"\",ScriptText!$B$1&CHAR(10)&ScriptText!$D$1)","v":""},{"$f":"IF(OrigTable!A1654=\"\",\"\",TEXT(OrigTable!A1654,\"00\"))","v":""},{"$f":"IF(OrigTable!A1654=\"\",\"\",ScriptText!$E$1&CHAR(10)&ScriptText!$C$1)","v":""},{"$f":"IF(OrigTable!B1654=\"\",\"\",ScriptText!$B$1&CHAR(10)&ScriptText!$D$1)","v":""},{"$f":"IF(OrigTable!B1654=\"\",\"\",TEXT(OrigTable!B1654,\"00\"))","v":""},{"$f":"IF(OrigTable!B1654=\"\",\"\",ScriptText!$E$1&CHAR(10)&ScriptText!C1649)","v":""},{"$f":"IF(OrigTable!C1654=\"\",\"\",ScriptText!$B$1&CHAR(10)&ScriptText!$D$1)","v":""},{"$f":"IF(OrigTable!C1654=\"\",\"\",IF(LEN(OrigTable!C1654)>255,LEFT(OrigTable!C1654,250)&\". . .\",OrigTable!C1654))","v":""},{"$f":"IF(OrigTable!C1654=\"\",\"\",ScriptText!$E$1&CHAR(10)&ScriptText!$C$1)","v":""},{"$f":"IF(OrigTable!D1654=\"\",\"\",ScriptText!$B$1&CHAR(10)&ScriptText!$D$1)","v":""},{"$f":"IF(OrigTable!D1654=\"\",\"\",TEXT(OrigTable!D1654,\"00\"))","v":""},{"$f":"IF(OrigTable!D1654=\"\",\"\",ScriptText!$E$1&CHAR(10)&ScriptText!$C$1)","v":""},{"$f":"IF(OrigTable!E1654=\"\",\"\",ScriptText!$B$1&CHAR(10)&ScriptText!$D$1)","v":""},{"$f":"IF(OrigTable!E1654=\"\",\"\",TEXT(OrigTable!E1654,\"00\"))","v":""},{"$f":"IF(OrigTable!E1654=\"\",\"\",ScriptText!$E$1&CHAR(10)&ScriptText!$C$1)","v":""},{"$f":"IF(OrigTable!F1654=\"\",\"\",ScriptText!$B$1&CHAR(10)&ScriptText!$D$1)","v":""},{"$f":"IF(OrigTable!F1654=\"\",\"\",TEXT(OrigTable!F1654,\"00\"))","v":""},{"$f":"IF(OrigTable!F1654=\"\",\"\",ScriptText!$E$1&CHAR(10)&ScriptText!$C$1)","v":""},{"$f":"IF(OrigTable!G1654=\"\",\"\",ScriptText!$B$1&CHAR(10)&ScriptText!$D$1)","v":""},{"$f":"IF(OrigTable!G1654=\"\",\"\",TEXT(OrigTable!G1654,\"00\"))","v":""},{"$f":"IF(OrigTable!G1654=\"\",\"\",ScriptText!$E$1&CHAR(10)&ScriptText!$C$1)","v":""},0]
["\n\n\n",{"$f":"IF(OrigTable!A1655=\"\",\"\",ScriptText!$B$1&CHAR(10)&ScriptText!$D$1)","v":""},{"$f":"IF(OrigTable!A1655=\"\",\"\",TEXT(OrigTable!A1655,\"00\"))","v":""},{"$f":"IF(OrigTable!A1655=\"\",\"\",ScriptText!$E$1&CHAR(10)&ScriptText!$C$1)","v":""},{"$f":"IF(OrigTable!B1655=\"\",\"\",ScriptText!$B$1&CHAR(10)&ScriptText!$D$1)","v":""},{"$f":"IF(OrigTable!B1655=\"\",\"\",TEXT(OrigTable!B1655,\"00\"))","v":""},{"$f":"IF(OrigTable!B1655=\"\",\"\",ScriptText!$E$1&CHAR(10)&ScriptText!C1650)","v":""},{"$f":"IF(OrigTable!C1655=\"\",\"\",ScriptText!$B$1&CHAR(10)&ScriptText!$D$1)","v":""},{"$f":"IF(OrigTable!C1655=\"\",\"\",IF(LEN(OrigTable!C1655)>255,LEFT(OrigTable!C1655,250)&\". . .\",OrigTable!C1655))","v":""},{"$f":"IF(OrigTable!C1655=\"\",\"\",ScriptText!$E$1&CHAR(10)&ScriptText!$C$1)","v":""},{"$f":"IF(OrigTable!D1655=\"\",\"\",ScriptText!$B$1&CHAR(10)&ScriptText!$D$1)","v":""},{"$f":"IF(OrigTable!D1655=\"\",\"\",TEXT(OrigTable!D1655,\"00\"))","v":""},{"$f":"IF(OrigTable!D1655=\"\",\"\",ScriptText!$E$1&CHAR(10)&ScriptText!$C$1)","v":""},{"$f":"IF(OrigTable!E1655=\"\",\"\",ScriptText!$B$1&CHAR(10)&ScriptText!$D$1)","v":""},{"$f":"IF(OrigTable!E1655=\"\",\"\",TEXT(OrigTable!E1655,\"00\"))","v":""},{"$f":"IF(OrigTable!E1655=\"\",\"\",ScriptText!$E$1&CHAR(10)&ScriptText!$C$1)","v":""},{"$f":"IF(OrigTable!F1655=\"\",\"\",ScriptText!$B$1&CHAR(10)&ScriptText!$D$1)","v":""},{"$f":"IF(OrigTable!F1655=\"\",\"\",TEXT(OrigTable!F1655,\"00\"))","v":""},{"$f":"IF(OrigTable!F1655=\"\",\"\",ScriptText!$E$1&CHAR(10)&ScriptText!$C$1)","v":""},{"$f":"IF(OrigTable!G1655=\"\",\"\",ScriptText!$B$1&CHAR(10)&ScriptText!$D$1)","v":""},{"$f":"IF(OrigTable!G1655=\"\",\"\",TEXT(OrigTable!G1655,\"00\"))","v":""},{"$f":"IF(OrigTable!G1655=\"\",\"\",ScriptText!$E$1&CHAR(10)&ScriptText!$C$1)","v":""},0]
["\n\n\n",{"$f":"IF(OrigTable!A1656=\"\",\"\",ScriptText!$B$1&CHAR(10)&ScriptText!$D$1)","v":""},{"$f":"IF(OrigTable!A1656=\"\",\"\",TEXT(OrigTable!A1656,\"00\"))","v":""},{"$f":"IF(OrigTable!A1656=\"\",\"\",ScriptText!$E$1&CHAR(10)&ScriptText!$C$1)","v":""},{"$f":"IF(OrigTable!B1656=\"\",\"\",ScriptText!$B$1&CHAR(10)&ScriptText!$D$1)","v":""},{"$f":"IF(OrigTable!B1656=\"\",\"\",TEXT(OrigTable!B1656,\"00\"))","v":""},{"$f":"IF(OrigTable!B1656=\"\",\"\",ScriptText!$E$1&CHAR(10)&ScriptText!C1651)","v":""},{"$f":"IF(OrigTable!C1656=\"\",\"\",ScriptText!$B$1&CHAR(10)&ScriptText!$D$1)","v":""},{"$f":"IF(OrigTable!C1656=\"\",\"\",IF(LEN(OrigTable!C1656)>255,LEFT(OrigTable!C1656,250)&\". . .\",OrigTable!C1656))","v":""},{"$f":"IF(OrigTable!C1656=\"\",\"\",ScriptText!$E$1&CHAR(10)&ScriptText!$C$1)","v":""},{"$f":"IF(OrigTable!D1656=\"\",\"\",ScriptText!$B$1&CHAR(10)&ScriptText!$D$1)","v":""},{"$f":"IF(OrigTable!D1656=\"\",\"\",TEXT(OrigTable!D1656,\"00\"))","v":""},{"$f":"IF(OrigTable!D1656=\"\",\"\",ScriptText!$E$1&CHAR(10)&ScriptText!$C$1)","v":""},{"$f":"IF(OrigTable!E1656=\"\",\"\",ScriptText!$B$1&CHAR(10)&ScriptText!$D$1)","v":""},{"$f":"IF(OrigTable!E1656=\"\",\"\",TEXT(OrigTable!E1656,\"00\"))","v":""},{"$f":"IF(OrigTable!E1656=\"\",\"\",ScriptText!$E$1&CHAR(10)&ScriptText!$C$1)","v":""},{"$f":"IF(OrigTable!F1656=\"\",\"\",ScriptText!$B$1&CHAR(10)&ScriptText!$D$1)","v":""},{"$f":"IF(OrigTable!F1656=\"\",\"\",TEXT(OrigTable!F1656,\"00\"))","v":""},{"$f":"IF(OrigTable!F1656=\"\",\"\",ScriptText!$E$1&CHAR(10)&ScriptText!$C$1)","v":""},{"$f":"IF(OrigTable!G1656=\"\",\"\",ScriptText!$B$1&CHAR(10)&ScriptText!$D$1)","v":""},{"$f":"IF(OrigTable!G1656=\"\",\"\",TEXT(OrigTable!G1656,\"00\"))","v":""},{"$f":"IF(OrigTable!G1656=\"\",\"\",ScriptText!$E$1&CHAR(10)&ScriptText!$C$1)","v":""},0]
["\n\n\n",{"$f":"IF(OrigTable!A1657=\"\",\"\",ScriptText!$B$1&CHAR(10)&ScriptText!$D$1)","v":""},{"$f":"IF(OrigTable!A1657=\"\",\"\",TEXT(OrigTable!A1657,\"00\"))","v":""},{"$f":"IF(OrigTable!A1657=\"\",\"\",ScriptText!$E$1&CHAR(10)&ScriptText!$C$1)","v":""},{"$f":"IF(OrigTable!B1657=\"\",\"\",ScriptText!$B$1&CHAR(10)&ScriptText!$D$1)","v":""},{"$f":"IF(OrigTable!B1657=\"\",\"\",TEXT(OrigTable!B1657,\"00\"))","v":""},{"$f":"IF(OrigTable!B1657=\"\",\"\",ScriptText!$E$1&CHAR(10)&ScriptText!C1652)","v":""},{"$f":"IF(OrigTable!C1657=\"\",\"\",ScriptText!$B$1&CHAR(10)&ScriptText!$D$1)","v":""},{"$f":"IF(OrigTable!C1657=\"\",\"\",IF(LEN(OrigTable!C1657)>255,LEFT(OrigTable!C1657,250)&\". . .\",OrigTable!C1657))","v":""},{"$f":"IF(OrigTable!C1657=\"\",\"\",ScriptText!$E$1&CHAR(10)&ScriptText!$C$1)","v":""},{"$f":"IF(OrigTable!D1657=\"\",\"\",ScriptText!$B$1&CHAR(10)&ScriptText!$D$1)","v":""},{"$f":"IF(OrigTable!D1657=\"\",\"\",TEXT(OrigTable!D1657,\"00\"))","v":""},{"$f":"IF(OrigTable!D1657=\"\",\"\",ScriptText!$E$1&CHAR(10)&ScriptText!$C$1)","v":""},{"$f":"IF(OrigTable!E1657=\"\",\"\",ScriptText!$B$1&CHAR(10)&ScriptText!$D$1)","v":""},{"$f":"IF(OrigTable!E1657=\"\",\"\",TEXT(OrigTable!E1657,\"00\"))","v":""},{"$f":"IF(OrigTable!E1657=\"\",\"\",ScriptText!$E$1&CHAR(10)&ScriptText!$C$1)","v":""},{"$f":"IF(OrigTable!F1657=\"\",\"\",ScriptText!$B$1&CHAR(10)&ScriptText!$D$1)","v":""},{"$f":"IF(OrigTable!F1657=\"\",\"\",TEXT(OrigTable!F1657,\"00\"))","v":""},{"$f":"IF(OrigTable!F1657=\"\",\"\",ScriptText!$E$1&CHAR(10)&ScriptText!$C$1)","v":""},{"$f":"IF(OrigTable!G1657=\"\",\"\",ScriptText!$B$1&CHAR(10)&ScriptText!$D$1)","v":""},{"$f":"IF(OrigTable!G1657=\"\",\"\",TEXT(OrigTable!G1657,\"00\"))","v":""},{"$f":"IF(OrigTable!G1657=\"\",\"\",ScriptText!$E$1&CHAR(10)&ScriptText!$C$1)","v":""},0]
["\n\n\n",{"$f":"IF(OrigTable!A1658=\"\",\"\",ScriptText!$B$1&CHAR(10)&ScriptText!$D$1)","v":""},{"$f":"IF(OrigTable!A1658=\"\",\"\",TEXT(OrigTable!A1658,\"00\"))","v":""},{"$f":"IF(OrigTable!A1658=\"\",\"\",ScriptText!$E$1&CHAR(10)&ScriptText!$C$1)","v":""},{"$f":"IF(OrigTable!B1658=\"\",\"\",ScriptText!$B$1&CHAR(10)&ScriptText!$D$1)","v":""},{"$f":"IF(OrigTable!B1658=\"\",\"\",TEXT(OrigTable!B1658,\"00\"))","v":""},{"$f":"IF(OrigTable!B1658=\"\",\"\",ScriptText!$E$1&CHAR(10)&ScriptText!C1653)","v":""},{"$f":"IF(OrigTable!C1658=\"\",\"\",ScriptText!$B$1&CHAR(10)&ScriptText!$D$1)","v":""},{"$f":"IF(OrigTable!C1658=\"\",\"\",IF(LEN(OrigTable!C1658)>255,LEFT(OrigTable!C1658,250)&\". . .\",OrigTable!C1658))","v":""},{"$f":"IF(OrigTable!C1658=\"\",\"\",ScriptText!$E$1&CHAR(10)&ScriptText!$C$1)","v":""},{"$f":"IF(OrigTable!D1658=\"\",\"\",ScriptText!$B$1&CHAR(10)&ScriptText!$D$1)","v":""},{"$f":"IF(OrigTable!D1658=\"\",\"\",TEXT(OrigTable!D1658,\"00\"))","v":""},{"$f":"IF(OrigTable!D1658=\"\",\"\",ScriptText!$E$1&CHAR(10)&ScriptText!$C$1)","v":""},{"$f":"IF(OrigTable!E1658=\"\",\"\",ScriptText!$B$1&CHAR(10)&ScriptText!$D$1)","v":""},{"$f":"IF(OrigTable!E1658=\"\",\"\",TEXT(OrigTable!E1658,\"00\"))","v":""},{"$f":"IF(OrigTable!E1658=\"\",\"\",ScriptText!$E$1&CHAR(10)&ScriptText!$C$1)","v":""},{"$f":"IF(OrigTable!F1658=\"\",\"\",ScriptText!$B$1&CHAR(10)&ScriptText!$D$1)","v":""},{"$f":"IF(OrigTable!F1658=\"\",\"\",TEXT(OrigTable!F1658,\"00\"))","v":""},{"$f":"IF(OrigTable!F1658=\"\",\"\",ScriptText!$E$1&CHAR(10)&ScriptText!$C$1)","v":""},{"$f":"IF(OrigTable!G1658=\"\",\"\",ScriptText!$B$1&CHAR(10)&ScriptText!$D$1)","v":""},{"$f":"IF(OrigTable!G1658=\"\",\"\",TEXT(OrigTable!G1658,\"00\"))","v":""},{"$f":"IF(OrigTable!G1658=\"\",\"\",ScriptText!$E$1&CHAR(10)&ScriptText!$C$1)","v":""},0]
["\n\n\n",{"$f":"IF(OrigTable!A1659=\"\",\"\",ScriptText!$B$1&CHAR(10)&ScriptText!$D$1)","v":""},{"$f":"IF(OrigTable!A1659=\"\",\"\",TEXT(OrigTable!A1659,\"00\"))","v":""},{"$f":"IF(OrigTable!A1659=\"\",\"\",ScriptText!$E$1&CHAR(10)&ScriptText!$C$1)","v":""},{"$f":"IF(OrigTable!B1659=\"\",\"\",ScriptText!$B$1&CHAR(10)&ScriptText!$D$1)","v":""},{"$f":"IF(OrigTable!B1659=\"\",\"\",TEXT(OrigTable!B1659,\"00\"))","v":""},{"$f":"IF(OrigTable!B1659=\"\",\"\",ScriptText!$E$1&CHAR(10)&ScriptText!C1654)","v":""},{"$f":"IF(OrigTable!C1659=\"\",\"\",ScriptText!$B$1&CHAR(10)&ScriptText!$D$1)","v":""},{"$f":"IF(OrigTable!C1659=\"\",\"\",IF(LEN(OrigTable!C1659)>255,LEFT(OrigTable!C1659,250)&\". . .\",OrigTable!C1659))","v":""},{"$f":"IF(OrigTable!C1659=\"\",\"\",ScriptText!$E$1&CHAR(10)&ScriptText!$C$1)","v":""},{"$f":"IF(OrigTable!D1659=\"\",\"\",ScriptText!$B$1&CHAR(10)&ScriptText!$D$1)","v":""},{"$f":"IF(OrigTable!D1659=\"\",\"\",TEXT(OrigTable!D1659,\"00\"))","v":""},{"$f":"IF(OrigTable!D1659=\"\",\"\",ScriptText!$E$1&CHAR(10)&ScriptText!$C$1)","v":""},{"$f":"IF(OrigTable!E1659=\"\",\"\",ScriptText!$B$1&CHAR(10)&ScriptText!$D$1)","v":""},{"$f":"IF(OrigTable!E1659=\"\",\"\",TEXT(OrigTable!E1659,\"00\"))","v":""},{"$f":"IF(OrigTable!E1659=\"\",\"\",ScriptText!$E$1&CHAR(10)&ScriptText!$C$1)","v":""},{"$f":"IF(OrigTable!F1659=\"\",\"\",ScriptText!$B$1&CHAR(10)&ScriptText!$D$1)","v":""},{"$f":"IF(OrigTable!F1659=\"\",\"\",TEXT(OrigTable!F1659,\"00\"))","v":""},{"$f":"IF(OrigTable!F1659=\"\",\"\",ScriptText!$E$1&CHAR(10)&ScriptText!$C$1)","v":""},{"$f":"IF(OrigTable!G1659=\"\",\"\",ScriptText!$B$1&CHAR(10)&ScriptText!$D$1)","v":""},{"$f":"IF(OrigTable!G1659=\"\",\"\",TEXT(OrigTable!G1659,\"00\"))","v":""},{"$f":"IF(OrigTable!G1659=\"\",\"\",ScriptText!$E$1&CHAR(10)&ScriptText!$C$1)","v":""},0]
["\n\n\n",{"$f":"IF(OrigTable!A1660=\"\",\"\",ScriptText!$B$1&CHAR(10)&ScriptText!$D$1)","v":""},{"$f":"IF(OrigTable!A1660=\"\",\"\",TEXT(OrigTable!A1660,\"00\"))","v":""},{"$f":"IF(OrigTable!A1660=\"\",\"\",ScriptText!$E$1&CHAR(10)&ScriptText!$C$1)","v":""},{"$f":"IF(OrigTable!B1660=\"\",\"\",ScriptText!$B$1&CHAR(10)&ScriptText!$D$1)","v":""},{"$f":"IF(OrigTable!B1660=\"\",\"\",TEXT(OrigTable!B1660,\"00\"))","v":""},{"$f":"IF(OrigTable!B1660=\"\",\"\",ScriptText!$E$1&CHAR(10)&ScriptText!C1655)","v":""},{"$f":"IF(OrigTable!C1660=\"\",\"\",ScriptText!$B$1&CHAR(10)&ScriptText!$D$1)","v":""},{"$f":"IF(OrigTable!C1660=\"\",\"\",IF(LEN(OrigTable!C1660)>255,LEFT(OrigTable!C1660,250)&\". . .\",OrigTable!C1660))","v":""},{"$f":"IF(OrigTable!C1660=\"\",\"\",ScriptText!$E$1&CHAR(10)&ScriptText!$C$1)","v":""},{"$f":"IF(OrigTable!D1660=\"\",\"\",ScriptText!$B$1&CHAR(10)&ScriptText!$D$1)","v":""},{"$f":"IF(OrigTable!D1660=\"\",\"\",TEXT(OrigTable!D1660,\"00\"))","v":""},{"$f":"IF(OrigTable!D1660=\"\",\"\",ScriptText!$E$1&CHAR(10)&ScriptText!$C$1)","v":""},{"$f":"IF(OrigTable!E1660=\"\",\"\",ScriptText!$B$1&CHAR(10)&ScriptText!$D$1)","v":""},{"$f":"IF(OrigTable!E1660=\"\",\"\",TEXT(OrigTable!E1660,\"00\"))","v":""},{"$f":"IF(OrigTable!E1660=\"\",\"\",ScriptText!$E$1&CHAR(10)&ScriptText!$C$1)","v":""},{"$f":"IF(OrigTable!F1660=\"\",\"\",ScriptText!$B$1&CHAR(10)&ScriptText!$D$1)","v":""},{"$f":"IF(OrigTable!F1660=\"\",\"\",TEXT(OrigTable!F1660,\"00\"))","v":""},{"$f":"IF(OrigTable!F1660=\"\",\"\",ScriptText!$E$1&CHAR(10)&ScriptText!$C$1)","v":""},{"$f":"IF(OrigTable!G1660=\"\",\"\",ScriptText!$B$1&CHAR(10)&ScriptText!$D$1)","v":""},{"$f":"IF(OrigTable!G1660=\"\",\"\",TEXT(OrigTable!G1660,\"00\"))","v":""},{"$f":"IF(OrigTable!G1660=\"\",\"\",ScriptText!$E$1&CHAR(10)&ScriptText!$C$1)","v":""},0]
["\n\n\n",{"$f":"IF(OrigTable!A1661=\"\",\"\",ScriptText!$B$1&CHAR(10)&ScriptText!$D$1)","v":""},{"$f":"IF(OrigTable!A1661=\"\",\"\",TEXT(OrigTable!A1661,\"00\"))","v":""},{"$f":"IF(OrigTable!A1661=\"\",\"\",ScriptText!$E$1&CHAR(10)&ScriptText!$C$1)","v":""},{"$f":"IF(OrigTable!B1661=\"\",\"\",ScriptText!$B$1&CHAR(10)&ScriptText!$D$1)","v":""},{"$f":"IF(OrigTable!B1661=\"\",\"\",TEXT(OrigTable!B1661,\"00\"))","v":""},{"$f":"IF(OrigTable!B1661=\"\",\"\",ScriptText!$E$1&CHAR(10)&ScriptText!C1656)","v":""},{"$f":"IF(OrigTable!C1661=\"\",\"\",ScriptText!$B$1&CHAR(10)&ScriptText!$D$1)","v":""},{"$f":"IF(OrigTable!C1661=\"\",\"\",IF(LEN(OrigTable!C1661)>255,LEFT(OrigTable!C1661,250)&\". . .\",OrigTable!C1661))","v":""},{"$f":"IF(OrigTable!C1661=\"\",\"\",ScriptText!$E$1&CHAR(10)&ScriptText!$C$1)","v":""},{"$f":"IF(OrigTable!D1661=\"\",\"\",ScriptText!$B$1&CHAR(10)&ScriptText!$D$1)","v":""},{"$f":"IF(OrigTable!D1661=\"\",\"\",TEXT(OrigTable!D1661,\"00\"))","v":""},{"$f":"IF(OrigTable!D1661=\"\",\"\",ScriptText!$E$1&CHAR(10)&ScriptText!$C$1)","v":""},{"$f":"IF(OrigTable!E1661=\"\",\"\",ScriptText!$B$1&CHAR(10)&ScriptText!$D$1)","v":""},{"$f":"IF(OrigTable!E1661=\"\",\"\",TEXT(OrigTable!E1661,\"00\"))","v":""},{"$f":"IF(OrigTable!E1661=\"\",\"\",ScriptText!$E$1&CHAR(10)&ScriptText!$C$1)","v":""},{"$f":"IF(OrigTable!F1661=\"\",\"\",ScriptText!$B$1&CHAR(10)&ScriptText!$D$1)","v":""},{"$f":"IF(OrigTable!F1661=\"\",\"\",TEXT(OrigTable!F1661,\"00\"))","v":""},{"$f":"IF(OrigTable!F1661=\"\",\"\",ScriptText!$E$1&CHAR(10)&ScriptText!$C$1)","v":""},{"$f":"IF(OrigTable!G1661=\"\",\"\",ScriptText!$B$1&CHAR(10)&ScriptText!$D$1)","v":""},{"$f":"IF(OrigTable!G1661=\"\",\"\",TEXT(OrigTable!G1661,\"00\"))","v":""},{"$f":"IF(OrigTable!G1661=\"\",\"\",ScriptText!$E$1&CHAR(10)&ScriptText!$C$1)","v":""},0]
["\n\n\n",{"$f":"IF(OrigTable!A1662=\"\",\"\",ScriptText!$B$1&CHAR(10)&ScriptText!$D$1)","v":""},{"$f":"IF(OrigTable!A1662=\"\",\"\",TEXT(OrigTable!A1662,\"00\"))","v":""},{"$f":"IF(OrigTable!A1662=\"\",\"\",ScriptText!$E$1&CHAR(10)&ScriptText!$C$1)","v":""},{"$f":"IF(OrigTable!B1662=\"\",\"\",ScriptText!$B$1&CHAR(10)&ScriptText!$D$1)","v":""},{"$f":"IF(OrigTable!B1662=\"\",\"\",TEXT(OrigTable!B1662,\"00\"))","v":""},{"$f":"IF(OrigTable!B1662=\"\",\"\",ScriptText!$E$1&CHAR(10)&ScriptText!C1657)","v":""},{"$f":"IF(OrigTable!C1662=\"\",\"\",ScriptText!$B$1&CHAR(10)&ScriptText!$D$1)","v":""},{"$f":"IF(OrigTable!C1662=\"\",\"\",IF(LEN(OrigTable!C1662)>255,LEFT(OrigTable!C1662,250)&\". . .\",OrigTable!C1662))","v":""},{"$f":"IF(OrigTable!C1662=\"\",\"\",ScriptText!$E$1&CHAR(10)&ScriptText!$C$1)","v":""},{"$f":"IF(OrigTable!D1662=\"\",\"\",ScriptText!$B$1&CHAR(10)&ScriptText!$D$1)","v":""},{"$f":"IF(OrigTable!D1662=\"\",\"\",TEXT(OrigTable!D1662,\"00\"))","v":""},{"$f":"IF(OrigTable!D1662=\"\",\"\",ScriptText!$E$1&CHAR(10)&ScriptText!$C$1)","v":""},{"$f":"IF(OrigTable!E1662=\"\",\"\",ScriptText!$B$1&CHAR(10)&ScriptText!$D$1)","v":""},{"$f":"IF(OrigTable!E1662=\"\",\"\",TEXT(OrigTable!E1662,\"00\"))","v":""},{"$f":"IF(OrigTable!E1662=\"\",\"\",ScriptText!$E$1&CHAR(10)&ScriptText!$C$1)","v":""},{"$f":"IF(OrigTable!F1662=\"\",\"\",ScriptText!$B$1&CHAR(10)&ScriptText!$D$1)","v":""},{"$f":"IF(OrigTable!F1662=\"\",\"\",TEXT(OrigTable!F1662,\"00\"))","v":""},{"$f":"IF(OrigTable!F1662=\"\",\"\",ScriptText!$E$1&CHAR(10)&ScriptText!$C$1)","v":""},{"$f":"IF(OrigTable!G1662=\"\",\"\",ScriptText!$B$1&CHAR(10)&ScriptText!$D$1)","v":""},{"$f":"IF(OrigTable!G1662=\"\",\"\",TEXT(OrigTable!G1662,\"00\"))","v":""},{"$f":"IF(OrigTable!G1662=\"\",\"\",ScriptText!$E$1&CHAR(10)&ScriptText!$C$1)","v":""},0]
["\n\n\n",{"$f":"IF(OrigTable!A1663=\"\",\"\",ScriptText!$B$1&CHAR(10)&ScriptText!$D$1)","v":""},{"$f":"IF(OrigTable!A1663=\"\",\"\",TEXT(OrigTable!A1663,\"00\"))","v":""},{"$f":"IF(OrigTable!A1663=\"\",\"\",ScriptText!$E$1&CHAR(10)&ScriptText!$C$1)","v":""},{"$f":"IF(OrigTable!B1663=\"\",\"\",ScriptText!$B$1&CHAR(10)&ScriptText!$D$1)","v":""},{"$f":"IF(OrigTable!B1663=\"\",\"\",TEXT(OrigTable!B1663,\"00\"))","v":""},{"$f":"IF(OrigTable!B1663=\"\",\"\",ScriptText!$E$1&CHAR(10)&ScriptText!C1658)","v":""},{"$f":"IF(OrigTable!C1663=\"\",\"\",ScriptText!$B$1&CHAR(10)&ScriptText!$D$1)","v":""},{"$f":"IF(OrigTable!C1663=\"\",\"\",IF(LEN(OrigTable!C1663)>255,LEFT(OrigTable!C1663,250)&\". . .\",OrigTable!C1663))","v":""},{"$f":"IF(OrigTable!C1663=\"\",\"\",ScriptText!$E$1&CHAR(10)&ScriptText!$C$1)","v":""},{"$f":"IF(OrigTable!D1663=\"\",\"\",ScriptText!$B$1&CHAR(10)&ScriptText!$D$1)","v":""},{"$f":"IF(OrigTable!D1663=\"\",\"\",TEXT(OrigTable!D1663,\"00\"))","v":""},{"$f":"IF(OrigTable!D1663=\"\",\"\",ScriptText!$E$1&CHAR(10)&ScriptText!$C$1)","v":""},{"$f":"IF(OrigTable!E1663=\"\",\"\",ScriptText!$B$1&CHAR(10)&ScriptText!$D$1)","v":""},{"$f":"IF(OrigTable!E1663=\"\",\"\",TEXT(OrigTable!E1663,\"00\"))","v":""},{"$f":"IF(OrigTable!E1663=\"\",\"\",ScriptText!$E$1&CHAR(10)&ScriptText!$C$1)","v":""},{"$f":"IF(OrigTable!F1663=\"\",\"\",ScriptText!$B$1&CHAR(10)&ScriptText!$D$1)","v":""},{"$f":"IF(OrigTable!F1663=\"\",\"\",TEXT(OrigTable!F1663,\"00\"))","v":""},{"$f":"IF(OrigTable!F1663=\"\",\"\",ScriptText!$E$1&CHAR(10)&ScriptText!$C$1)","v":""},{"$f":"IF(OrigTable!G1663=\"\",\"\",ScriptText!$B$1&CHAR(10)&ScriptText!$D$1)","v":""},{"$f":"IF(OrigTable!G1663=\"\",\"\",TEXT(OrigTable!G1663,\"00\"))","v":""},{"$f":"IF(OrigTable!G1663=\"\",\"\",ScriptText!$E$1&CHAR(10)&ScriptText!$C$1)","v":""},0]
["\n\n\n",{"$f":"IF(OrigTable!A1664=\"\",\"\",ScriptText!$B$1&CHAR(10)&ScriptText!$D$1)","v":""},{"$f":"IF(OrigTable!A1664=\"\",\"\",TEXT(OrigTable!A1664,\"00\"))","v":""},{"$f":"IF(OrigTable!A1664=\"\",\"\",ScriptText!$E$1&CHAR(10)&ScriptText!$C$1)","v":""},{"$f":"IF(OrigTable!B1664=\"\",\"\",ScriptText!$B$1&CHAR(10)&ScriptText!$D$1)","v":""},{"$f":"IF(OrigTable!B1664=\"\",\"\",TEXT(OrigTable!B1664,\"00\"))","v":""},{"$f":"IF(OrigTable!B1664=\"\",\"\",ScriptText!$E$1&CHAR(10)&ScriptText!C1659)","v":""},{"$f":"IF(OrigTable!C1664=\"\",\"\",ScriptText!$B$1&CHAR(10)&ScriptText!$D$1)","v":""},{"$f":"IF(OrigTable!C1664=\"\",\"\",IF(LEN(OrigTable!C1664)>255,LEFT(OrigTable!C1664,250)&\". . .\",OrigTable!C1664))","v":""},{"$f":"IF(OrigTable!C1664=\"\",\"\",ScriptText!$E$1&CHAR(10)&ScriptText!$C$1)","v":""},{"$f":"IF(OrigTable!D1664=\"\",\"\",ScriptText!$B$1&CHAR(10)&ScriptText!$D$1)","v":""},{"$f":"IF(OrigTable!D1664=\"\",\"\",TEXT(OrigTable!D1664,\"00\"))","v":""},{"$f":"IF(OrigTable!D1664=\"\",\"\",ScriptText!$E$1&CHAR(10)&ScriptText!$C$1)","v":""},{"$f":"IF(OrigTable!E1664=\"\",\"\",ScriptText!$B$1&CHAR(10)&ScriptText!$D$1)","v":""},{"$f":"IF(OrigTable!E1664=\"\",\"\",TEXT(OrigTable!E1664,\"00\"))","v":""},{"$f":"IF(OrigTable!E1664=\"\",\"\",ScriptText!$E$1&CHAR(10)&ScriptText!$C$1)","v":""},{"$f":"IF(OrigTable!F1664=\"\",\"\",ScriptText!$B$1&CHAR(10)&ScriptText!$D$1)","v":""},{"$f":"IF(OrigTable!F1664=\"\",\"\",TEXT(OrigTable!F1664,\"00\"))","v":""},{"$f":"IF(OrigTable!F1664=\"\",\"\",ScriptText!$E$1&CHAR(10)&ScriptText!$C$1)","v":""},{"$f":"IF(OrigTable!G1664=\"\",\"\",ScriptText!$B$1&CHAR(10)&ScriptText!$D$1)","v":""},{"$f":"IF(OrigTable!G1664=\"\",\"\",TEXT(OrigTable!G1664,\"00\"))","v":""},{"$f":"IF(OrigTable!G1664=\"\",\"\",ScriptText!$E$1&CHAR(10)&ScriptText!$C$1)","v":""},0]
["\n\n\n",{"$f":"IF(OrigTable!A1665=\"\",\"\",ScriptText!$B$1&CHAR(10)&ScriptText!$D$1)","v":""},{"$f":"IF(OrigTable!A1665=\"\",\"\",TEXT(OrigTable!A1665,\"00\"))","v":""},{"$f":"IF(OrigTable!A1665=\"\",\"\",ScriptText!$E$1&CHAR(10)&ScriptText!$C$1)","v":""},{"$f":"IF(OrigTable!B1665=\"\",\"\",ScriptText!$B$1&CHAR(10)&ScriptText!$D$1)","v":""},{"$f":"IF(OrigTable!B1665=\"\",\"\",TEXT(OrigTable!B1665,\"00\"))","v":""},{"$f":"IF(OrigTable!B1665=\"\",\"\",ScriptText!$E$1&CHAR(10)&ScriptText!C1660)","v":""},{"$f":"IF(OrigTable!C1665=\"\",\"\",ScriptText!$B$1&CHAR(10)&ScriptText!$D$1)","v":""},{"$f":"IF(OrigTable!C1665=\"\",\"\",IF(LEN(OrigTable!C1665)>255,LEFT(OrigTable!C1665,250)&\". . .\",OrigTable!C1665))","v":""},{"$f":"IF(OrigTable!C1665=\"\",\"\",ScriptText!$E$1&CHAR(10)&ScriptText!$C$1)","v":""},{"$f":"IF(OrigTable!D1665=\"\",\"\",ScriptText!$B$1&CHAR(10)&ScriptText!$D$1)","v":""},{"$f":"IF(OrigTable!D1665=\"\",\"\",TEXT(OrigTable!D1665,\"00\"))","v":""},{"$f":"IF(OrigTable!D1665=\"\",\"\",ScriptText!$E$1&CHAR(10)&ScriptText!$C$1)","v":""},{"$f":"IF(OrigTable!E1665=\"\",\"\",ScriptText!$B$1&CHAR(10)&ScriptText!$D$1)","v":""},{"$f":"IF(OrigTable!E1665=\"\",\"\",TEXT(OrigTable!E1665,\"00\"))","v":""},{"$f":"IF(OrigTable!E1665=\"\",\"\",ScriptText!$E$1&CHAR(10)&ScriptText!$C$1)","v":""},{"$f":"IF(OrigTable!F1665=\"\",\"\",ScriptText!$B$1&CHAR(10)&ScriptText!$D$1)","v":""},{"$f":"IF(OrigTable!F1665=\"\",\"\",TEXT(OrigTable!F1665,\"00\"))","v":""},{"$f":"IF(OrigTable!F1665=\"\",\"\",ScriptText!$E$1&CHAR(10)&ScriptText!$C$1)","v":""},{"$f":"IF(OrigTable!G1665=\"\",\"\",ScriptText!$B$1&CHAR(10)&ScriptText!$D$1)","v":""},{"$f":"IF(OrigTable!G1665=\"\",\"\",TEXT(OrigTable!G1665,\"00\"))","v":""},{"$f":"IF(OrigTable!G1665=\"\",\"\",ScriptText!$E$1&CHAR(10)&ScriptText!$C$1)","v":""},0]
["\n\n\n",{"$f":"IF(OrigTable!A1666=\"\",\"\",ScriptText!$B$1&CHAR(10)&ScriptText!$D$1)","v":""},{"$f":"IF(OrigTable!A1666=\"\",\"\",TEXT(OrigTable!A1666,\"00\"))","v":""},{"$f":"IF(OrigTable!A1666=\"\",\"\",ScriptText!$E$1&CHAR(10)&ScriptText!$C$1)","v":""},{"$f":"IF(OrigTable!B1666=\"\",\"\",ScriptText!$B$1&CHAR(10)&ScriptText!$D$1)","v":""},{"$f":"IF(OrigTable!B1666=\"\",\"\",TEXT(OrigTable!B1666,\"00\"))","v":""},{"$f":"IF(OrigTable!B1666=\"\",\"\",ScriptText!$E$1&CHAR(10)&ScriptText!C1661)","v":""},{"$f":"IF(OrigTable!C1666=\"\",\"\",ScriptText!$B$1&CHAR(10)&ScriptText!$D$1)","v":""},{"$f":"IF(OrigTable!C1666=\"\",\"\",IF(LEN(OrigTable!C1666)>255,LEFT(OrigTable!C1666,250)&\". . .\",OrigTable!C1666))","v":""},{"$f":"IF(OrigTable!C1666=\"\",\"\",ScriptText!$E$1&CHAR(10)&ScriptText!$C$1)","v":""},{"$f":"IF(OrigTable!D1666=\"\",\"\",ScriptText!$B$1&CHAR(10)&ScriptText!$D$1)","v":""},{"$f":"IF(OrigTable!D1666=\"\",\"\",TEXT(OrigTable!D1666,\"00\"))","v":""},{"$f":"IF(OrigTable!D1666=\"\",\"\",ScriptText!$E$1&CHAR(10)&ScriptText!$C$1)","v":""},{"$f":"IF(OrigTable!E1666=\"\",\"\",ScriptText!$B$1&CHAR(10)&ScriptText!$D$1)","v":""},{"$f":"IF(OrigTable!E1666=\"\",\"\",TEXT(OrigTable!E1666,\"00\"))","v":""},{"$f":"IF(OrigTable!E1666=\"\",\"\",ScriptText!$E$1&CHAR(10)&ScriptText!$C$1)","v":""},{"$f":"IF(OrigTable!F1666=\"\",\"\",ScriptText!$B$1&CHAR(10)&ScriptText!$D$1)","v":""},{"$f":"IF(OrigTable!F1666=\"\",\"\",TEXT(OrigTable!F1666,\"00\"))","v":""},{"$f":"IF(OrigTable!F1666=\"\",\"\",ScriptText!$E$1&CHAR(10)&ScriptText!$C$1)","v":""},{"$f":"IF(OrigTable!G1666=\"\",\"\",ScriptText!$B$1&CHAR(10)&ScriptText!$D$1)","v":""},{"$f":"IF(OrigTable!G1666=\"\",\"\",TEXT(OrigTable!G1666,\"00\"))","v":""},{"$f":"IF(OrigTable!G1666=\"\",\"\",ScriptText!$E$1&CHAR(10)&ScriptText!$C$1)","v":""},0]
["\n\n\n",{"$f":"IF(OrigTable!A1667=\"\",\"\",ScriptText!$B$1&CHAR(10)&ScriptText!$D$1)","v":""},{"$f":"IF(OrigTable!A1667=\"\",\"\",TEXT(OrigTable!A1667,\"00\"))","v":""},{"$f":"IF(OrigTable!A1667=\"\",\"\",ScriptText!$E$1&CHAR(10)&ScriptText!$C$1)","v":""},{"$f":"IF(OrigTable!B1667=\"\",\"\",ScriptText!$B$1&CHAR(10)&ScriptText!$D$1)","v":""},{"$f":"IF(OrigTable!B1667=\"\",\"\",TEXT(OrigTable!B1667,\"00\"))","v":""},{"$f":"IF(OrigTable!B1667=\"\",\"\",ScriptText!$E$1&CHAR(10)&ScriptText!C1662)","v":""},{"$f":"IF(OrigTable!C1667=\"\",\"\",ScriptText!$B$1&CHAR(10)&ScriptText!$D$1)","v":""},{"$f":"IF(OrigTable!C1667=\"\",\"\",IF(LEN(OrigTable!C1667)>255,LEFT(OrigTable!C1667,250)&\". . .\",OrigTable!C1667))","v":""},{"$f":"IF(OrigTable!C1667=\"\",\"\",ScriptText!$E$1&CHAR(10)&ScriptText!$C$1)","v":""},{"$f":"IF(OrigTable!D1667=\"\",\"\",ScriptText!$B$1&CHAR(10)&ScriptText!$D$1)","v":""},{"$f":"IF(OrigTable!D1667=\"\",\"\",TEXT(OrigTable!D1667,\"00\"))","v":""},{"$f":"IF(OrigTable!D1667=\"\",\"\",ScriptText!$E$1&CHAR(10)&ScriptText!$C$1)","v":""},{"$f":"IF(OrigTable!E1667=\"\",\"\",ScriptText!$B$1&CHAR(10)&ScriptText!$D$1)","v":""},{"$f":"IF(OrigTable!E1667=\"\",\"\",TEXT(OrigTable!E1667,\"00\"))","v":""},{"$f":"IF(OrigTable!E1667=\"\",\"\",ScriptText!$E$1&CHAR(10)&ScriptText!$C$1)","v":""},{"$f":"IF(OrigTable!F1667=\"\",\"\",ScriptText!$B$1&CHAR(10)&ScriptText!$D$1)","v":""},{"$f":"IF(OrigTable!F1667=\"\",\"\",TEXT(OrigTable!F1667,\"00\"))","v":""},{"$f":"IF(OrigTable!F1667=\"\",\"\",ScriptText!$E$1&CHAR(10)&ScriptText!$C$1)","v":""},{"$f":"IF(OrigTable!G1667=\"\",\"\",ScriptText!$B$1&CHAR(10)&ScriptText!$D$1)","v":""},{"$f":"IF(OrigTable!G1667=\"\",\"\",TEXT(OrigTable!G1667,\"00\"))","v":""},{"$f":"IF(OrigTable!G1667=\"\",\"\",ScriptText!$E$1&CHAR(10)&ScriptText!$C$1)","v":""},0]
["\n\n\n",{"$f":"IF(OrigTable!A1668=\"\",\"\",ScriptText!$B$1&CHAR(10)&ScriptText!$D$1)","v":""},{"$f":"IF(OrigTable!A1668=\"\",\"\",TEXT(OrigTable!A1668,\"00\"))","v":""},{"$f":"IF(OrigTable!A1668=\"\",\"\",ScriptText!$E$1&CHAR(10)&ScriptText!$C$1)","v":""},{"$f":"IF(OrigTable!B1668=\"\",\"\",ScriptText!$B$1&CHAR(10)&ScriptText!$D$1)","v":""},{"$f":"IF(OrigTable!B1668=\"\",\"\",TEXT(OrigTable!B1668,\"00\"))","v":""},{"$f":"IF(OrigTable!B1668=\"\",\"\",ScriptText!$E$1&CHAR(10)&ScriptText!C1663)","v":""},{"$f":"IF(OrigTable!C1668=\"\",\"\",ScriptText!$B$1&CHAR(10)&ScriptText!$D$1)","v":""},{"$f":"IF(OrigTable!C1668=\"\",\"\",IF(LEN(OrigTable!C1668)>255,LEFT(OrigTable!C1668,250)&\". . .\",OrigTable!C1668))","v":""},{"$f":"IF(OrigTable!C1668=\"\",\"\",ScriptText!$E$1&CHAR(10)&ScriptText!$C$1)","v":""},{"$f":"IF(OrigTable!D1668=\"\",\"\",ScriptText!$B$1&CHAR(10)&ScriptText!$D$1)","v":""},{"$f":"IF(OrigTable!D1668=\"\",\"\",TEXT(OrigTable!D1668,\"00\"))","v":""},{"$f":"IF(OrigTable!D1668=\"\",\"\",ScriptText!$E$1&CHAR(10)&ScriptText!$C$1)","v":""},{"$f":"IF(OrigTable!E1668=\"\",\"\",ScriptText!$B$1&CHAR(10)&ScriptText!$D$1)","v":""},{"$f":"IF(OrigTable!E1668=\"\",\"\",TEXT(OrigTable!E1668,\"00\"))","v":""},{"$f":"IF(OrigTable!E1668=\"\",\"\",ScriptText!$E$1&CHAR(10)&ScriptText!$C$1)","v":""},{"$f":"IF(OrigTable!F1668=\"\",\"\",ScriptText!$B$1&CHAR(10)&ScriptText!$D$1)","v":""},{"$f":"IF(OrigTable!F1668=\"\",\"\",TEXT(OrigTable!F1668,\"00\"))","v":""},{"$f":"IF(OrigTable!F1668=\"\",\"\",ScriptText!$E$1&CHAR(10)&ScriptText!$C$1)","v":""},{"$f":"IF(OrigTable!G1668=\"\",\"\",ScriptText!$B$1&CHAR(10)&ScriptText!$D$1)","v":""},{"$f":"IF(OrigTable!G1668=\"\",\"\",TEXT(OrigTable!G1668,\"00\"))","v":""},{"$f":"IF(OrigTable!G1668=\"\",\"\",ScriptText!$E$1&CHAR(10)&ScriptText!$C$1)","v":""},0]
["\n\n\n",{"$f":"IF(OrigTable!A1669=\"\",\"\",ScriptText!$B$1&CHAR(10)&ScriptText!$D$1)","v":""},{"$f":"IF(OrigTable!A1669=\"\",\"\",TEXT(OrigTable!A1669,\"00\"))","v":""},{"$f":"IF(OrigTable!A1669=\"\",\"\",ScriptText!$E$1&CHAR(10)&ScriptText!$C$1)","v":""},{"$f":"IF(OrigTable!B1669=\"\",\"\",ScriptText!$B$1&CHAR(10)&ScriptText!$D$1)","v":""},{"$f":"IF(OrigTable!B1669=\"\",\"\",TEXT(OrigTable!B1669,\"00\"))","v":""},{"$f":"IF(OrigTable!B1669=\"\",\"\",ScriptText!$E$1&CHAR(10)&ScriptText!C1664)","v":""},{"$f":"IF(OrigTable!C1669=\"\",\"\",ScriptText!$B$1&CHAR(10)&ScriptText!$D$1)","v":""},{"$f":"IF(OrigTable!C1669=\"\",\"\",IF(LEN(OrigTable!C1669)>255,LEFT(OrigTable!C1669,250)&\". . .\",OrigTable!C1669))","v":""},{"$f":"IF(OrigTable!C1669=\"\",\"\",ScriptText!$E$1&CHAR(10)&ScriptText!$C$1)","v":""},{"$f":"IF(OrigTable!D1669=\"\",\"\",ScriptText!$B$1&CHAR(10)&ScriptText!$D$1)","v":""},{"$f":"IF(OrigTable!D1669=\"\",\"\",TEXT(OrigTable!D1669,\"00\"))","v":""},{"$f":"IF(OrigTable!D1669=\"\",\"\",ScriptText!$E$1&CHAR(10)&ScriptText!$C$1)","v":""},{"$f":"IF(OrigTable!E1669=\"\",\"\",ScriptText!$B$1&CHAR(10)&ScriptText!$D$1)","v":""},{"$f":"IF(OrigTable!E1669=\"\",\"\",TEXT(OrigTable!E1669,\"00\"))","v":""},{"$f":"IF(OrigTable!E1669=\"\",\"\",ScriptText!$E$1&CHAR(10)&ScriptText!$C$1)","v":""},{"$f":"IF(OrigTable!F1669=\"\",\"\",ScriptText!$B$1&CHAR(10)&ScriptText!$D$1)","v":""},{"$f":"IF(OrigTable!F1669=\"\",\"\",TEXT(OrigTable!F1669,\"00\"))","v":""},{"$f":"IF(OrigTable!F1669=\"\",\"\",ScriptText!$E$1&CHAR(10)&ScriptText!$C$1)","v":""},{"$f":"IF(OrigTable!G1669=\"\",\"\",ScriptText!$B$1&CHAR(10)&ScriptText!$D$1)","v":""},{"$f":"IF(OrigTable!G1669=\"\",\"\",TEXT(OrigTable!G1669,\"00\"))","v":""},{"$f":"IF(OrigTable!G1669=\"\",\"\",ScriptText!$E$1&CHAR(10)&ScriptText!$C$1)","v":""},0]
["\n\n\n",{"$f":"IF(OrigTable!A1670=\"\",\"\",ScriptText!$B$1&CHAR(10)&ScriptText!$D$1)","v":""},{"$f":"IF(OrigTable!A1670=\"\",\"\",TEXT(OrigTable!A1670,\"00\"))","v":""},{"$f":"IF(OrigTable!A1670=\"\",\"\",ScriptText!$E$1&CHAR(10)&ScriptText!$C$1)","v":""},{"$f":"IF(OrigTable!B1670=\"\",\"\",ScriptText!$B$1&CHAR(10)&ScriptText!$D$1)","v":""},{"$f":"IF(OrigTable!B1670=\"\",\"\",TEXT(OrigTable!B1670,\"00\"))","v":""},{"$f":"IF(OrigTable!B1670=\"\",\"\",ScriptText!$E$1&CHAR(10)&ScriptText!C1665)","v":""},{"$f":"IF(OrigTable!C1670=\"\",\"\",ScriptText!$B$1&CHAR(10)&ScriptText!$D$1)","v":""},{"$f":"IF(OrigTable!C1670=\"\",\"\",IF(LEN(OrigTable!C1670)>255,LEFT(OrigTable!C1670,250)&\". . .\",OrigTable!C1670))","v":""},{"$f":"IF(OrigTable!C1670=\"\",\"\",ScriptText!$E$1&CHAR(10)&ScriptText!$C$1)","v":""},{"$f":"IF(OrigTable!D1670=\"\",\"\",ScriptText!$B$1&CHAR(10)&ScriptText!$D$1)","v":""},{"$f":"IF(OrigTable!D1670=\"\",\"\",TEXT(OrigTable!D1670,\"00\"))","v":""},{"$f":"IF(OrigTable!D1670=\"\",\"\",ScriptText!$E$1&CHAR(10)&ScriptText!$C$1)","v":""},{"$f":"IF(OrigTable!E1670=\"\",\"\",ScriptText!$B$1&CHAR(10)&ScriptText!$D$1)","v":""},{"$f":"IF(OrigTable!E1670=\"\",\"\",TEXT(OrigTable!E1670,\"00\"))","v":""},{"$f":"IF(OrigTable!E1670=\"\",\"\",ScriptText!$E$1&CHAR(10)&ScriptText!$C$1)","v":""},{"$f":"IF(OrigTable!F1670=\"\",\"\",ScriptText!$B$1&CHAR(10)&ScriptText!$D$1)","v":""},{"$f":"IF(OrigTable!F1670=\"\",\"\",TEXT(OrigTable!F1670,\"00\"))","v":""},{"$f":"IF(OrigTable!F1670=\"\",\"\",ScriptText!$E$1&CHAR(10)&ScriptText!$C$1)","v":""},{"$f":"IF(OrigTable!G1670=\"\",\"\",ScriptText!$B$1&CHAR(10)&ScriptText!$D$1)","v":""},{"$f":"IF(OrigTable!G1670=\"\",\"\",TEXT(OrigTable!G1670,\"00\"))","v":""},{"$f":"IF(OrigTable!G1670=\"\",\"\",ScriptText!$E$1&CHAR(10)&ScriptText!$C$1)","v":""},{"$f":"IF(LEN(A1670)>3,ROW(),0)","v":0}]
["\n\n\n",{"$f":"IF(OrigTable!A1671=\"\",\"\",ScriptText!$B$1&CHAR(10)&ScriptText!$D$1)","v":""},{"$f":"IF(OrigTable!A1671=\"\",\"\",TEXT(OrigTable!A1671,\"00\"))","v":""},{"$f":"IF(OrigTable!A1671=\"\",\"\",ScriptText!$E$1&CHAR(10)&ScriptText!$C$1)","v":""},{"$f":"IF(OrigTable!B1671=\"\",\"\",ScriptText!$B$1&CHAR(10)&ScriptText!$D$1)","v":""},{"$f":"IF(OrigTable!B1671=\"\",\"\",TEXT(OrigTable!B1671,\"00\"))","v":""},{"$f":"IF(OrigTable!B1671=\"\",\"\",ScriptText!$E$1&CHAR(10)&ScriptText!C1666)","v":""},{"$f":"IF(OrigTable!C1671=\"\",\"\",ScriptText!$B$1&CHAR(10)&ScriptText!$D$1)","v":""},{"$f":"IF(OrigTable!C1671=\"\",\"\",IF(LEN(OrigTable!C1671)>255,LEFT(OrigTable!C1671,250)&\". . .\",OrigTable!C1671))","v":""},{"$f":"IF(OrigTable!C1671=\"\",\"\",ScriptText!$E$1&CHAR(10)&ScriptText!$C$1)","v":""},{"$f":"IF(OrigTable!D1671=\"\",\"\",ScriptText!$B$1&CHAR(10)&ScriptText!$D$1)","v":""},{"$f":"IF(OrigTable!D1671=\"\",\"\",TEXT(OrigTable!D1671,\"00\"))","v":""},{"$f":"IF(OrigTable!D1671=\"\",\"\",ScriptText!$E$1&CHAR(10)&ScriptText!$C$1)","v":""},{"$f":"IF(OrigTable!E1671=\"\",\"\",ScriptText!$B$1&CHAR(10)&ScriptText!$D$1)","v":""},{"$f":"IF(OrigTable!E1671=\"\",\"\",TEXT(OrigTable!E1671,\"00\"))","v":""},{"$f":"IF(OrigTable!E1671=\"\",\"\",ScriptText!$E$1&CHAR(10)&ScriptText!$C$1)","v":""},{"$f":"IF(OrigTable!F1671=\"\",\"\",ScriptText!$B$1&CHAR(10)&ScriptText!$D$1)","v":""},{"$f":"IF(OrigTable!F1671=\"\",\"\",TEXT(OrigTable!F1671,\"00\"))","v":""},{"$f":"IF(OrigTable!F1671=\"\",\"\",ScriptText!$E$1&CHAR(10)&ScriptText!$C$1)","v":""},{"$f":"IF(OrigTable!G1671=\"\",\"\",ScriptText!$B$1&CHAR(10)&ScriptText!$D$1)","v":""},{"$f":"IF(OrigTable!G1671=\"\",\"\",TEXT(OrigTable!G1671,\"00\"))","v":""},{"$f":"IF(OrigTable!G1671=\"\",\"\",ScriptText!$E$1&CHAR(10)&ScriptText!$C$1)","v":""},0]
["\n\n\n",{"$f":"IF(OrigTable!A1672=\"\",\"\",ScriptText!$B$1&CHAR(10)&ScriptText!$D$1)","v":""},{"$f":"IF(OrigTable!A1672=\"\",\"\",TEXT(OrigTable!A1672,\"00\"))","v":""},{"$f":"IF(OrigTable!A1672=\"\",\"\",ScriptText!$E$1&CHAR(10)&ScriptText!$C$1)","v":""},{"$f":"IF(OrigTable!B1672=\"\",\"\",ScriptText!$B$1&CHAR(10)&ScriptText!$D$1)","v":""},{"$f":"IF(OrigTable!B1672=\"\",\"\",TEXT(OrigTable!B1672,\"00\"))","v":""},{"$f":"IF(OrigTable!B1672=\"\",\"\",ScriptText!$E$1&CHAR(10)&ScriptText!C1667)","v":""},{"$f":"IF(OrigTable!C1672=\"\",\"\",ScriptText!$B$1&CHAR(10)&ScriptText!$D$1)","v":""},{"$f":"IF(OrigTable!C1672=\"\",\"\",IF(LEN(OrigTable!C1672)>255,LEFT(OrigTable!C1672,250)&\". . .\",OrigTable!C1672))","v":""},{"$f":"IF(OrigTable!C1672=\"\",\"\",ScriptText!$E$1&CHAR(10)&ScriptText!$C$1)","v":""},{"$f":"IF(OrigTable!D1672=\"\",\"\",ScriptText!$B$1&CHAR(10)&ScriptText!$D$1)","v":""},{"$f":"IF(OrigTable!D1672=\"\",\"\",TEXT(OrigTable!D1672,\"00\"))","v":""},{"$f":"IF(OrigTable!D1672=\"\",\"\",ScriptText!$E$1&CHAR(10)&ScriptText!$C$1)","v":""},{"$f":"IF(OrigTable!E1672=\"\",\"\",ScriptText!$B$1&CHAR(10)&ScriptText!$D$1)","v":""},{"$f":"IF(OrigTable!E1672=\"\",\"\",TEXT(OrigTable!E1672,\"00\"))","v":""},{"$f":"IF(OrigTable!E1672=\"\",\"\",ScriptText!$E$1&CHAR(10)&ScriptText!$C$1)","v":""},{"$f":"IF(OrigTable!F1672=\"\",\"\",ScriptText!$B$1&CHAR(10)&ScriptText!$D$1)","v":""},{"$f":"IF(OrigTable!F1672=\"\",\"\",TEXT(OrigTable!F1672,\"00\"))","v":""},{"$f":"IF(OrigTable!F1672=\"\",\"\",ScriptText!$E$1&CHAR(10)&ScriptText!$C$1)","v":""},{"$f":"IF(OrigTable!G1672=\"\",\"\",ScriptText!$B$1&CHAR(10)&ScriptText!$D$1)","v":""},{"$f":"IF(OrigTable!G1672=\"\",\"\",TEXT(OrigTable!G1672,\"00\"))","v":""},{"$f":"IF(OrigTable!G1672=\"\",\"\",ScriptText!$E$1&CHAR(10)&ScriptText!$C$1)","v":""},0]
["\n\n\n",{"$f":"IF(OrigTable!A1673=\"\",\"\",ScriptText!$B$1&CHAR(10)&ScriptText!$D$1)","v":""},{"$f":"IF(OrigTable!A1673=\"\",\"\",TEXT(OrigTable!A1673,\"00\"))","v":""},{"$f":"IF(OrigTable!A1673=\"\",\"\",ScriptText!$E$1&CHAR(10)&ScriptText!$C$1)","v":""},{"$f":"IF(OrigTable!B1673=\"\",\"\",ScriptText!$B$1&CHAR(10)&ScriptText!$D$1)","v":""},{"$f":"IF(OrigTable!B1673=\"\",\"\",TEXT(OrigTable!B1673,\"00\"))","v":""},{"$f":"IF(OrigTable!B1673=\"\",\"\",ScriptText!$E$1&CHAR(10)&ScriptText!C1668)","v":""},{"$f":"IF(OrigTable!C1673=\"\",\"\",ScriptText!$B$1&CHAR(10)&ScriptText!$D$1)","v":""},{"$f":"IF(OrigTable!C1673=\"\",\"\",IF(LEN(OrigTable!C1673)>255,LEFT(OrigTable!C1673,250)&\". . .\",OrigTable!C1673))","v":""},{"$f":"IF(OrigTable!C1673=\"\",\"\",ScriptText!$E$1&CHAR(10)&ScriptText!$C$1)","v":""},{"$f":"IF(OrigTable!D1673=\"\",\"\",ScriptText!$B$1&CHAR(10)&ScriptText!$D$1)","v":""},{"$f":"IF(OrigTable!D1673=\"\",\"\",TEXT(OrigTable!D1673,\"00\"))","v":""},{"$f":"IF(OrigTable!D1673=\"\",\"\",ScriptText!$E$1&CHAR(10)&ScriptText!$C$1)","v":""},{"$f":"IF(OrigTable!E1673=\"\",\"\",ScriptText!$B$1&CHAR(10)&ScriptText!$D$1)","v":""},{"$f":"IF(OrigTable!E1673=\"\",\"\",TEXT(OrigTable!E1673,\"00\"))","v":""},{"$f":"IF(OrigTable!E1673=\"\",\"\",ScriptText!$E$1&CHAR(10)&ScriptText!$C$1)","v":""},{"$f":"IF(OrigTable!F1673=\"\",\"\",ScriptText!$B$1&CHAR(10)&ScriptText!$D$1)","v":""},{"$f":"IF(OrigTable!F1673=\"\",\"\",TEXT(OrigTable!F1673,\"00\"))","v":""},{"$f":"IF(OrigTable!F1673=\"\",\"\",ScriptText!$E$1&CHAR(10)&ScriptText!$C$1)","v":""},{"$f":"IF(OrigTable!G1673=\"\",\"\",ScriptText!$B$1&CHAR(10)&ScriptText!$D$1)","v":""},{"$f":"IF(OrigTable!G1673=\"\",\"\",TEXT(OrigTable!G1673,\"00\"))","v":""},{"$f":"IF(OrigTable!G1673=\"\",\"\",ScriptText!$E$1&CHAR(10)&ScriptText!$C$1)","v":""},0]
["\n\n\n",{"$f":"IF(OrigTable!A1674=\"\",\"\",ScriptText!$B$1&CHAR(10)&ScriptText!$D$1)","v":""},{"$f":"IF(OrigTable!A1674=\"\",\"\",TEXT(OrigTable!A1674,\"00\"))","v":""},{"$f":"IF(OrigTable!A1674=\"\",\"\",ScriptText!$E$1&CHAR(10)&ScriptText!$C$1)","v":""},{"$f":"IF(OrigTable!B1674=\"\",\"\",ScriptText!$B$1&CHAR(10)&ScriptText!$D$1)","v":""},{"$f":"IF(OrigTable!B1674=\"\",\"\",TEXT(OrigTable!B1674,\"00\"))","v":""},{"$f":"IF(OrigTable!B1674=\"\",\"\",ScriptText!$E$1&CHAR(10)&ScriptText!C1669)","v":""},{"$f":"IF(OrigTable!C1674=\"\",\"\",ScriptText!$B$1&CHAR(10)&ScriptText!$D$1)","v":""},{"$f":"IF(OrigTable!C1674=\"\",\"\",IF(LEN(OrigTable!C1674)>255,LEFT(OrigTable!C1674,250)&\". . .\",OrigTable!C1674))","v":""},{"$f":"IF(OrigTable!C1674=\"\",\"\",ScriptText!$E$1&CHAR(10)&ScriptText!$C$1)","v":""},{"$f":"IF(OrigTable!D1674=\"\",\"\",ScriptText!$B$1&CHAR(10)&ScriptText!$D$1)","v":""},{"$f":"IF(OrigTable!D1674=\"\",\"\",TEXT(OrigTable!D1674,\"00\"))","v":""},{"$f":"IF(OrigTable!D1674=\"\",\"\",ScriptText!$E$1&CHAR(10)&ScriptText!$C$1)","v":""},{"$f":"IF(OrigTable!E1674=\"\",\"\",ScriptText!$B$1&CHAR(10)&ScriptText!$D$1)","v":""},{"$f":"IF(OrigTable!E1674=\"\",\"\",TEXT(OrigTable!E1674,\"00\"))","v":""},{"$f":"IF(OrigTable!E1674=\"\",\"\",ScriptText!$E$1&CHAR(10)&ScriptText!$C$1)","v":""},{"$f":"IF(OrigTable!F1674=\"\",\"\",ScriptText!$B$1&CHAR(10)&ScriptText!$D$1)","v":""},{"$f":"IF(OrigTable!F1674=\"\",\"\",TEXT(OrigTable!F1674,\"00\"))","v":""},{"$f":"IF(OrigTable!F1674=\"\",\"\",ScriptText!$E$1&CHAR(10)&ScriptText!$C$1)","v":""},{"$f":"IF(OrigTable!G1674=\"\",\"\",ScriptText!$B$1&CHAR(10)&ScriptText!$D$1)","v":""},{"$f":"IF(OrigTable!G1674=\"\",\"\",TEXT(OrigTable!G1674,\"00\"))","v":""},{"$f":"IF(OrigTable!G1674=\"\",\"\",ScriptText!$E$1&CHAR(10)&ScriptText!$C$1)","v":""},0]
[{"$f":"_xlfn.TEXTJOIN(\"\",TRUE,B1675:D1675)&CHAR(10)&_xlfn.TEXTJOIN(\"\",TRUE,E1675:G1675)&CHAR(10)&_xlfn.TEXTJOIN(\"\",TRUE,H1675:J1675)&CHAR(10)&_xlfn.TEXTJOIN(\"\",TRUE,K1675:M1675)&_xlfn.TEXTJOIN(\"\",TRUE,N1675:P1675)&_xlfn.TEXTJOIN(\"\",TRUE,Q1675:S1675)&_xlfn.TEXTJOIN(\"\",TRUE,T1675:V1675)","v":"\n\n\n"},{"$f":"IF(OrigTable!A1675=\"\",\"\",ScriptText!$B$1&CHAR(10)&ScriptText!$D$1)","v":""},{"$f":"IF(OrigTable!A1675=\"\",\"\",TEXT(OrigTable!A1675,\"00\"))","v":""},{"$f":"IF(OrigTable!A1675=\"\",\"\",ScriptText!$E$1&CHAR(10)&ScriptText!$C$1)","v":""},{"$f":"IF(OrigTable!B1675=\"\",\"\",ScriptText!$B$1&CHAR(10)&ScriptText!$D$1)","v":""},{"$f":"IF(OrigTable!B1675=\"\",\"\",TEXT(OrigTable!B1675,\"00\"))","v":""},{"$f":"IF(OrigTable!B1675=\"\",\"\",ScriptText!$E$1&CHAR(10)&ScriptText!C1670)","v":""},{"$f":"IF(OrigTable!C1675=\"\",\"\",ScriptText!$B$1&CHAR(10)&ScriptText!$D$1)","v":""},{"$f":"IF(OrigTable!C1675=\"\",\"\",IF(LEN(OrigTable!C1675)>255,LEFT(OrigTable!C1675,250)&\". . .\",OrigTable!C1675))","v":""},{"$f":"IF(OrigTable!C1675=\"\",\"\",ScriptText!$E$1&CHAR(10)&ScriptText!$C$1)","v":""},{"$f":"IF(OrigTable!D1675=\"\",\"\",ScriptText!$B$1&CHAR(10)&ScriptText!$D$1)","v":""},{"$f":"IF(OrigTable!D1675=\"\",\"\",TEXT(OrigTable!D1675,\"00\"))","v":""},{"$f":"IF(OrigTable!D1675=\"\",\"\",ScriptText!$E$1&CHAR(10)&ScriptText!$C$1)","v":""},{"$f":"IF(OrigTable!E1675=\"\",\"\",ScriptText!$B$1&CHAR(10)&ScriptText!$D$1)","v":""},{"$f":"IF(OrigTable!E1675=\"\",\"\",TEXT(OrigTable!E1675,\"00\"))","v":""},{"$f":"IF(OrigTable!E1675=\"\",\"\",ScriptText!$E$1&CHAR(10)&ScriptText!$C$1)","v":""},{"$f":"IF(OrigTable!F1675=\"\",\"\",ScriptText!$B$1&CHAR(10)&ScriptText!$D$1)","v":""},{"$f":"IF(OrigTable!F1675=\"\",\"\",TEXT(OrigTable!F1675,\"00\"))","v":""},{"$f":"IF(OrigTable!F1675=\"\",\"\",ScriptText!$E$1&CHAR(10)&ScriptText!$C$1)","v":""},{"$f":"IF(OrigTable!G1675=\"\",\"\",ScriptText!$B$1&CHAR(10)&ScriptText!$D$1)","v":""},{"$f":"IF(OrigTable!G1675=\"\",\"\",TEXT(OrigTable!G1675,\"00\"))","v":""},{"$f":"IF(OrigTable!G1675=\"\",\"\",ScriptText!$E$1&CHAR(10)&ScriptText!$C$1)","v":""},0]
["\n\n\n",{"$f":"IF(OrigTable!A1676=\"\",\"\",ScriptText!$B$1&CHAR(10)&ScriptText!$D$1)","v":""},{"$f":"IF(OrigTable!A1676=\"\",\"\",TEXT(OrigTable!A1676,\"00\"))","v":""},{"$f":"IF(OrigTable!A1676=\"\",\"\",ScriptText!$E$1&CHAR(10)&ScriptText!$C$1)","v":""},{"$f":"IF(OrigTable!B1676=\"\",\"\",ScriptText!$B$1&CHAR(10)&ScriptText!$D$1)","v":""},{"$f":"IF(OrigTable!B1676=\"\",\"\",TEXT(OrigTable!B1676,\"00\"))","v":""},{"$f":"IF(OrigTable!B1676=\"\",\"\",ScriptText!$E$1&CHAR(10)&ScriptText!C1671)","v":""},{"$f":"IF(OrigTable!C1676=\"\",\"\",ScriptText!$B$1&CHAR(10)&ScriptText!$D$1)","v":""},{"$f":"IF(OrigTable!C1676=\"\",\"\",IF(LEN(OrigTable!C1676)>255,LEFT(OrigTable!C1676,250)&\". . .\",OrigTable!C1676))","v":""},{"$f":"IF(OrigTable!C1676=\"\",\"\",ScriptText!$E$1&CHAR(10)&ScriptText!$C$1)","v":""},{"$f":"IF(OrigTable!D1676=\"\",\"\",ScriptText!$B$1&CHAR(10)&ScriptText!$D$1)","v":""},{"$f":"IF(OrigTable!D1676=\"\",\"\",TEXT(OrigTable!D1676,\"00\"))","v":""},{"$f":"IF(OrigTable!D1676=\"\",\"\",ScriptText!$E$1&CHAR(10)&ScriptText!$C$1)","v":""},{"$f":"IF(OrigTable!E1676=\"\",\"\",ScriptText!$B$1&CHAR(10)&ScriptText!$D$1)","v":""},{"$f":"IF(OrigTable!E1676=\"\",\"\",TEXT(OrigTable!E1676,\"00\"))","v":""},{"$f":"IF(OrigTable!E1676=\"\",\"\",ScriptText!$E$1&CHAR(10)&ScriptText!$C$1)","v":""},{"$f":"IF(OrigTable!F1676=\"\",\"\",ScriptText!$B$1&CHAR(10)&ScriptText!$D$1)","v":""},{"$f":"IF(OrigTable!F1676=\"\",\"\",TEXT(OrigTable!F1676,\"00\"))","v":""},{"$f":"IF(OrigTable!F1676=\"\",\"\",ScriptText!$E$1&CHAR(10)&ScriptText!$C$1)","v":""},{"$f":"IF(OrigTable!G1676=\"\",\"\",ScriptText!$B$1&CHAR(10)&ScriptText!$D$1)","v":""},{"$f":"IF(OrigTable!G1676=\"\",\"\",TEXT(OrigTable!G1676,\"00\"))","v":""},{"$f":"IF(OrigTable!G1676=\"\",\"\",ScriptText!$E$1&CHAR(10)&ScriptText!$C$1)","v":""},0]
["\n\n\n",{"$f":"IF(OrigTable!A1677=\"\",\"\",ScriptText!$B$1&CHAR(10)&ScriptText!$D$1)","v":""},{"$f":"IF(OrigTable!A1677=\"\",\"\",TEXT(OrigTable!A1677,\"00\"))","v":""},{"$f":"IF(OrigTable!A1677=\"\",\"\",ScriptText!$E$1&CHAR(10)&ScriptText!$C$1)","v":""},{"$f":"IF(OrigTable!B1677=\"\",\"\",ScriptText!$B$1&CHAR(10)&ScriptText!$D$1)","v":""},{"$f":"IF(OrigTable!B1677=\"\",\"\",TEXT(OrigTable!B1677,\"00\"))","v":""},{"$f":"IF(OrigTable!B1677=\"\",\"\",ScriptText!$E$1&CHAR(10)&ScriptText!C1672)","v":""},{"$f":"IF(OrigTable!C1677=\"\",\"\",ScriptText!$B$1&CHAR(10)&ScriptText!$D$1)","v":""},{"$f":"IF(OrigTable!C1677=\"\",\"\",IF(LEN(OrigTable!C1677)>255,LEFT(OrigTable!C1677,250)&\". . .\",OrigTable!C1677))","v":""},{"$f":"IF(OrigTable!C1677=\"\",\"\",ScriptText!$E$1&CHAR(10)&ScriptText!$C$1)","v":""},{"$f":"IF(OrigTable!D1677=\"\",\"\",ScriptText!$B$1&CHAR(10)&ScriptText!$D$1)","v":""},{"$f":"IF(OrigTable!D1677=\"\",\"\",TEXT(OrigTable!D1677,\"00\"))","v":""},{"$f":"IF(OrigTable!D1677=\"\",\"\",ScriptText!$E$1&CHAR(10)&ScriptText!$C$1)","v":""},{"$f":"IF(OrigTable!E1677=\"\",\"\",ScriptText!$B$1&CHAR(10)&ScriptText!$D$1)","v":""},{"$f":"IF(OrigTable!E1677=\"\",\"\",TEXT(OrigTable!E1677,\"00\"))","v":""},{"$f":"IF(OrigTable!E1677=\"\",\"\",ScriptText!$E$1&CHAR(10)&ScriptText!$C$1)","v":""},{"$f":"IF(OrigTable!F1677=\"\",\"\",ScriptText!$B$1&CHAR(10)&ScriptText!$D$1)","v":""},{"$f":"IF(OrigTable!F1677=\"\",\"\",TEXT(OrigTable!F1677,\"00\"))","v":""},{"$f":"IF(OrigTable!F1677=\"\",\"\",ScriptText!$E$1&CHAR(10)&ScriptText!$C$1)","v":""},{"$f":"IF(OrigTable!G1677=\"\",\"\",ScriptText!$B$1&CHAR(10)&ScriptText!$D$1)","v":""},{"$f":"IF(OrigTable!G1677=\"\",\"\",TEXT(OrigTable!G1677,\"00\"))","v":""},{"$f":"IF(OrigTable!G1677=\"\",\"\",ScriptText!$E$1&CHAR(10)&ScriptText!$C$1)","v":""},0]
["\n\n\n",{"$f":"IF(OrigTable!A1678=\"\",\"\",ScriptText!$B$1&CHAR(10)&ScriptText!$D$1)","v":""},{"$f":"IF(OrigTable!A1678=\"\",\"\",TEXT(OrigTable!A1678,\"00\"))","v":""},{"$f":"IF(OrigTable!A1678=\"\",\"\",ScriptText!$E$1&CHAR(10)&ScriptText!$C$1)","v":""},{"$f":"IF(OrigTable!B1678=\"\",\"\",ScriptText!$B$1&CHAR(10)&ScriptText!$D$1)","v":""},{"$f":"IF(OrigTable!B1678=\"\",\"\",TEXT(OrigTable!B1678,\"00\"))","v":""},{"$f":"IF(OrigTable!B1678=\"\",\"\",ScriptText!$E$1&CHAR(10)&ScriptText!C1673)","v":""},{"$f":"IF(OrigTable!C1678=\"\",\"\",ScriptText!$B$1&CHAR(10)&ScriptText!$D$1)","v":""},{"$f":"IF(OrigTable!C1678=\"\",\"\",IF(LEN(OrigTable!C1678)>255,LEFT(OrigTable!C1678,250)&\". . .\",OrigTable!C1678))","v":""},{"$f":"IF(OrigTable!C1678=\"\",\"\",ScriptText!$E$1&CHAR(10)&ScriptText!$C$1)","v":""},{"$f":"IF(OrigTable!D1678=\"\",\"\",ScriptText!$B$1&CHAR(10)&ScriptText!$D$1)","v":""},{"$f":"IF(OrigTable!D1678=\"\",\"\",TEXT(OrigTable!D1678,\"00\"))","v":""},{"$f":"IF(OrigTable!D1678=\"\",\"\",ScriptText!$E$1&CHAR(10)&ScriptText!$C$1)","v":""},{"$f":"IF(OrigTable!E1678=\"\",\"\",ScriptText!$B$1&CHAR(10)&ScriptText!$D$1)","v":""},{"$f":"IF(OrigTable!E1678=\"\",\"\",TEXT(OrigTable!E1678,\"00\"))","v":""},{"$f":"IF(OrigTable!E1678=\"\",\"\",ScriptText!$E$1&CHAR(10)&ScriptText!$C$1)","v":""},{"$f":"IF(OrigTable!F1678=\"\",\"\",ScriptText!$B$1&CHAR(10)&ScriptText!$D$1)","v":""},{"$f":"IF(OrigTable!F1678=\"\",\"\",TEXT(OrigTable!F1678,\"00\"))","v":""},{"$f":"IF(OrigTable!F1678=\"\",\"\",ScriptText!$E$1&CHAR(10)&ScriptText!$C$1)","v":""},{"$f":"IF(OrigTable!G1678=\"\",\"\",ScriptText!$B$1&CHAR(10)&ScriptText!$D$1)","v":""},{"$f":"IF(OrigTable!G1678=\"\",\"\",TEXT(OrigTable!G1678,\"00\"))","v":""},{"$f":"IF(OrigTable!G1678=\"\",\"\",ScriptText!$E$1&CHAR(10)&ScriptText!$C$1)","v":""},0]
["\n\n\n",{"$f":"IF(OrigTable!A1679=\"\",\"\",ScriptText!$B$1&CHAR(10)&ScriptText!$D$1)","v":""},{"$f":"IF(OrigTable!A1679=\"\",\"\",TEXT(OrigTable!A1679,\"00\"))","v":""},{"$f":"IF(OrigTable!A1679=\"\",\"\",ScriptText!$E$1&CHAR(10)&ScriptText!$C$1)","v":""},{"$f":"IF(OrigTable!B1679=\"\",\"\",ScriptText!$B$1&CHAR(10)&ScriptText!$D$1)","v":""},{"$f":"IF(OrigTable!B1679=\"\",\"\",TEXT(OrigTable!B1679,\"00\"))","v":""},{"$f":"IF(OrigTable!B1679=\"\",\"\",ScriptText!$E$1&CHAR(10)&ScriptText!C1674)","v":""},{"$f":"IF(OrigTable!C1679=\"\",\"\",ScriptText!$B$1&CHAR(10)&ScriptText!$D$1)","v":""},{"$f":"IF(OrigTable!C1679=\"\",\"\",IF(LEN(OrigTable!C1679)>255,LEFT(OrigTable!C1679,250)&\". . .\",OrigTable!C1679))","v":""},{"$f":"IF(OrigTable!C1679=\"\",\"\",ScriptText!$E$1&CHAR(10)&ScriptText!$C$1)","v":""},{"$f":"IF(OrigTable!D1679=\"\",\"\",ScriptText!$B$1&CHAR(10)&ScriptText!$D$1)","v":""},{"$f":"IF(OrigTable!D1679=\"\",\"\",TEXT(OrigTable!D1679,\"00\"))","v":""},{"$f":"IF(OrigTable!D1679=\"\",\"\",ScriptText!$E$1&CHAR(10)&ScriptText!$C$1)","v":""},{"$f":"IF(OrigTable!E1679=\"\",\"\",ScriptText!$B$1&CHAR(10)&ScriptText!$D$1)","v":""},{"$f":"IF(OrigTable!E1679=\"\",\"\",TEXT(OrigTable!E1679,\"00\"))","v":""},{"$f":"IF(OrigTable!E1679=\"\",\"\",ScriptText!$E$1&CHAR(10)&ScriptText!$C$1)","v":""},{"$f":"IF(OrigTable!F1679=\"\",\"\",ScriptText!$B$1&CHAR(10)&ScriptText!$D$1)","v":""},{"$f":"IF(OrigTable!F1679=\"\",\"\",TEXT(OrigTable!F1679,\"00\"))","v":""},{"$f":"IF(OrigTable!F1679=\"\",\"\",ScriptText!$E$1&CHAR(10)&ScriptText!$C$1)","v":""},{"$f":"IF(OrigTable!G1679=\"\",\"\",ScriptText!$B$1&CHAR(10)&ScriptText!$D$1)","v":""},{"$f":"IF(OrigTable!G1679=\"\",\"\",TEXT(OrigTable!G1679,\"00\"))","v":""},{"$f":"IF(OrigTable!G1679=\"\",\"\",ScriptText!$E$1&CHAR(10)&ScriptText!$C$1)","v":""},0]
["\n\n\n",{"$f":"IF(OrigTable!A1680=\"\",\"\",ScriptText!$B$1&CHAR(10)&ScriptText!$D$1)","v":""},{"$f":"IF(OrigTable!A1680=\"\",\"\",TEXT(OrigTable!A1680,\"00\"))","v":""},{"$f":"IF(OrigTable!A1680=\"\",\"\",ScriptText!$E$1&CHAR(10)&ScriptText!$C$1)","v":""},{"$f":"IF(OrigTable!B1680=\"\",\"\",ScriptText!$B$1&CHAR(10)&ScriptText!$D$1)","v":""},{"$f":"IF(OrigTable!B1680=\"\",\"\",TEXT(OrigTable!B1680,\"00\"))","v":""},{"$f":"IF(OrigTable!B1680=\"\",\"\",ScriptText!$E$1&CHAR(10)&ScriptText!C1675)","v":""},{"$f":"IF(OrigTable!C1680=\"\",\"\",ScriptText!$B$1&CHAR(10)&ScriptText!$D$1)","v":""},{"$f":"IF(OrigTable!C1680=\"\",\"\",IF(LEN(OrigTable!C1680)>255,LEFT(OrigTable!C1680,250)&\". . .\",OrigTable!C1680))","v":""},{"$f":"IF(OrigTable!C1680=\"\",\"\",ScriptText!$E$1&CHAR(10)&ScriptText!$C$1)","v":""},{"$f":"IF(OrigTable!D1680=\"\",\"\",ScriptText!$B$1&CHAR(10)&ScriptText!$D$1)","v":""},{"$f":"IF(OrigTable!D1680=\"\",\"\",TEXT(OrigTable!D1680,\"00\"))","v":""},{"$f":"IF(OrigTable!D1680=\"\",\"\",ScriptText!$E$1&CHAR(10)&ScriptText!$C$1)","v":""},{"$f":"IF(OrigTable!E1680=\"\",\"\",ScriptText!$B$1&CHAR(10)&ScriptText!$D$1)","v":""},{"$f":"IF(OrigTable!E1680=\"\",\"\",TEXT(OrigTable!E1680,\"00\"))","v":""},{"$f":"IF(OrigTable!E1680=\"\",\"\",ScriptText!$E$1&CHAR(10)&ScriptText!$C$1)","v":""},{"$f":"IF(OrigTable!F1680=\"\",\"\",ScriptText!$B$1&CHAR(10)&ScriptText!$D$1)","v":""},{"$f":"IF(OrigTable!F1680=\"\",\"\",TEXT(OrigTable!F1680,\"00\"))","v":""},{"$f":"IF(OrigTable!F1680=\"\",\"\",ScriptText!$E$1&CHAR(10)&ScriptText!$C$1)","v":""},{"$f":"IF(OrigTable!G1680=\"\",\"\",ScriptText!$B$1&CHAR(10)&ScriptText!$D$1)","v":""},{"$f":"IF(OrigTable!G1680=\"\",\"\",TEXT(OrigTable!G1680,\"00\"))","v":""},{"$f":"IF(OrigTable!G1680=\"\",\"\",ScriptText!$E$1&CHAR(10)&ScriptText!$C$1)","v":""},0]
["\n\n\n",{"$f":"IF(OrigTable!A1681=\"\",\"\",ScriptText!$B$1&CHAR(10)&ScriptText!$D$1)","v":""},{"$f":"IF(OrigTable!A1681=\"\",\"\",TEXT(OrigTable!A1681,\"00\"))","v":""},{"$f":"IF(OrigTable!A1681=\"\",\"\",ScriptText!$E$1&CHAR(10)&ScriptText!$C$1)","v":""},{"$f":"IF(OrigTable!B1681=\"\",\"\",ScriptText!$B$1&CHAR(10)&ScriptText!$D$1)","v":""},{"$f":"IF(OrigTable!B1681=\"\",\"\",TEXT(OrigTable!B1681,\"00\"))","v":""},{"$f":"IF(OrigTable!B1681=\"\",\"\",ScriptText!$E$1&CHAR(10)&ScriptText!C1676)","v":""},{"$f":"IF(OrigTable!C1681=\"\",\"\",ScriptText!$B$1&CHAR(10)&ScriptText!$D$1)","v":""},{"$f":"IF(OrigTable!C1681=\"\",\"\",IF(LEN(OrigTable!C1681)>255,LEFT(OrigTable!C1681,250)&\". . .\",OrigTable!C1681))","v":""},{"$f":"IF(OrigTable!C1681=\"\",\"\",ScriptText!$E$1&CHAR(10)&ScriptText!$C$1)","v":""},{"$f":"IF(OrigTable!D1681=\"\",\"\",ScriptText!$B$1&CHAR(10)&ScriptText!$D$1)","v":""},{"$f":"IF(OrigTable!D1681=\"\",\"\",TEXT(OrigTable!D1681,\"00\"))","v":""},{"$f":"IF(OrigTable!D1681=\"\",\"\",ScriptText!$E$1&CHAR(10)&ScriptText!$C$1)","v":""},{"$f":"IF(OrigTable!E1681=\"\",\"\",ScriptText!$B$1&CHAR(10)&ScriptText!$D$1)","v":""},{"$f":"IF(OrigTable!E1681=\"\",\"\",TEXT(OrigTable!E1681,\"00\"))","v":""},{"$f":"IF(OrigTable!E1681=\"\",\"\",ScriptText!$E$1&CHAR(10)&ScriptText!$C$1)","v":""},{"$f":"IF(OrigTable!F1681=\"\",\"\",ScriptText!$B$1&CHAR(10)&ScriptText!$D$1)","v":""},{"$f":"IF(OrigTable!F1681=\"\",\"\",TEXT(OrigTable!F1681,\"00\"))","v":""},{"$f":"IF(OrigTable!F1681=\"\",\"\",ScriptText!$E$1&CHAR(10)&ScriptText!$C$1)","v":""},{"$f":"IF(OrigTable!G1681=\"\",\"\",ScriptText!$B$1&CHAR(10)&ScriptText!$D$1)","v":""},{"$f":"IF(OrigTable!G1681=\"\",\"\",TEXT(OrigTable!G1681,\"00\"))","v":""},{"$f":"IF(OrigTable!G1681=\"\",\"\",ScriptText!$E$1&CHAR(10)&ScriptText!$C$1)","v":""},0]
["\n\n\n",{"$f":"IF(OrigTable!A1682=\"\",\"\",ScriptText!$B$1&CHAR(10)&ScriptText!$D$1)","v":""},{"$f":"IF(OrigTable!A1682=\"\",\"\",TEXT(OrigTable!A1682,\"00\"))","v":""},{"$f":"IF(OrigTable!A1682=\"\",\"\",ScriptText!$E$1&CHAR(10)&ScriptText!$C$1)","v":""},{"$f":"IF(OrigTable!B1682=\"\",\"\",ScriptText!$B$1&CHAR(10)&ScriptText!$D$1)","v":""},{"$f":"IF(OrigTable!B1682=\"\",\"\",TEXT(OrigTable!B1682,\"00\"))","v":""},{"$f":"IF(OrigTable!B1682=\"\",\"\",ScriptText!$E$1&CHAR(10)&ScriptText!C1677)","v":""},{"$f":"IF(OrigTable!C1682=\"\",\"\",ScriptText!$B$1&CHAR(10)&ScriptText!$D$1)","v":""},{"$f":"IF(OrigTable!C1682=\"\",\"\",IF(LEN(OrigTable!C1682)>255,LEFT(OrigTable!C1682,250)&\". . .\",OrigTable!C1682))","v":""},{"$f":"IF(OrigTable!C1682=\"\",\"\",ScriptText!$E$1&CHAR(10)&ScriptText!$C$1)","v":""},{"$f":"IF(OrigTable!D1682=\"\",\"\",ScriptText!$B$1&CHAR(10)&ScriptText!$D$1)","v":""},{"$f":"IF(OrigTable!D1682=\"\",\"\",TEXT(OrigTable!D1682,\"00\"))","v":""},{"$f":"IF(OrigTable!D1682=\"\",\"\",ScriptText!$E$1&CHAR(10)&ScriptText!$C$1)","v":""},{"$f":"IF(OrigTable!E1682=\"\",\"\",ScriptText!$B$1&CHAR(10)&ScriptText!$D$1)","v":""},{"$f":"IF(OrigTable!E1682=\"\",\"\",TEXT(OrigTable!E1682,\"00\"))","v":""},{"$f":"IF(OrigTable!E1682=\"\",\"\",ScriptText!$E$1&CHAR(10)&ScriptText!$C$1)","v":""},{"$f":"IF(OrigTable!F1682=\"\",\"\",ScriptText!$B$1&CHAR(10)&ScriptText!$D$1)","v":""},{"$f":"IF(OrigTable!F1682=\"\",\"\",TEXT(OrigTable!F1682,\"00\"))","v":""},{"$f":"IF(OrigTable!F1682=\"\",\"\",ScriptText!$E$1&CHAR(10)&ScriptText!$C$1)","v":""},{"$f":"IF(OrigTable!G1682=\"\",\"\",ScriptText!$B$1&CHAR(10)&ScriptText!$D$1)","v":""},{"$f":"IF(OrigTable!G1682=\"\",\"\",TEXT(OrigTable!G1682,\"00\"))","v":""},{"$f":"IF(OrigTable!G1682=\"\",\"\",ScriptText!$E$1&CHAR(10)&ScriptText!$C$1)","v":""},0]
["\n\n\n",{"$f":"IF(OrigTable!A1683=\"\",\"\",ScriptText!$B$1&CHAR(10)&ScriptText!$D$1)","v":""},{"$f":"IF(OrigTable!A1683=\"\",\"\",TEXT(OrigTable!A1683,\"00\"))","v":""},{"$f":"IF(OrigTable!A1683=\"\",\"\",ScriptText!$E$1&CHAR(10)&ScriptText!$C$1)","v":""},{"$f":"IF(OrigTable!B1683=\"\",\"\",ScriptText!$B$1&CHAR(10)&ScriptText!$D$1)","v":""},{"$f":"IF(OrigTable!B1683=\"\",\"\",TEXT(OrigTable!B1683,\"00\"))","v":""},{"$f":"IF(OrigTable!B1683=\"\",\"\",ScriptText!$E$1&CHAR(10)&ScriptText!C1678)","v":""},{"$f":"IF(OrigTable!C1683=\"\",\"\",ScriptText!$B$1&CHAR(10)&ScriptText!$D$1)","v":""},{"$f":"IF(OrigTable!C1683=\"\",\"\",IF(LEN(OrigTable!C1683)>255,LEFT(OrigTable!C1683,250)&\". . .\",OrigTable!C1683))","v":""},{"$f":"IF(OrigTable!C1683=\"\",\"\",ScriptText!$E$1&CHAR(10)&ScriptText!$C$1)","v":""},{"$f":"IF(OrigTable!D1683=\"\",\"\",ScriptText!$B$1&CHAR(10)&ScriptText!$D$1)","v":""},{"$f":"IF(OrigTable!D1683=\"\",\"\",TEXT(OrigTable!D1683,\"00\"))","v":""},{"$f":"IF(OrigTable!D1683=\"\",\"\",ScriptText!$E$1&CHAR(10)&ScriptText!$C$1)","v":""},{"$f":"IF(OrigTable!E1683=\"\",\"\",ScriptText!$B$1&CHAR(10)&ScriptText!$D$1)","v":""},{"$f":"IF(OrigTable!E1683=\"\",\"\",TEXT(OrigTable!E1683,\"00\"))","v":""},{"$f":"IF(OrigTable!E1683=\"\",\"\",ScriptText!$E$1&CHAR(10)&ScriptText!$C$1)","v":""},{"$f":"IF(OrigTable!F1683=\"\",\"\",ScriptText!$B$1&CHAR(10)&ScriptText!$D$1)","v":""},{"$f":"IF(OrigTable!F1683=\"\",\"\",TEXT(OrigTable!F1683,\"00\"))","v":""},{"$f":"IF(OrigTable!F1683=\"\",\"\",ScriptText!$E$1&CHAR(10)&ScriptText!$C$1)","v":""},{"$f":"IF(OrigTable!G1683=\"\",\"\",ScriptText!$B$1&CHAR(10)&ScriptText!$D$1)","v":""},{"$f":"IF(OrigTable!G1683=\"\",\"\",TEXT(OrigTable!G1683,\"00\"))","v":""},{"$f":"IF(OrigTable!G1683=\"\",\"\",ScriptText!$E$1&CHAR(10)&ScriptText!$C$1)","v":""},0]
["\n\n\n",{"$f":"IF(OrigTable!A1684=\"\",\"\",ScriptText!$B$1&CHAR(10)&ScriptText!$D$1)","v":""},{"$f":"IF(OrigTable!A1684=\"\",\"\",TEXT(OrigTable!A1684,\"00\"))","v":""},{"$f":"IF(OrigTable!A1684=\"\",\"\",ScriptText!$E$1&CHAR(10)&ScriptText!$C$1)","v":""},{"$f":"IF(OrigTable!B1684=\"\",\"\",ScriptText!$B$1&CHAR(10)&ScriptText!$D$1)","v":""},{"$f":"IF(OrigTable!B1684=\"\",\"\",TEXT(OrigTable!B1684,\"00\"))","v":""},{"$f":"IF(OrigTable!B1684=\"\",\"\",ScriptText!$E$1&CHAR(10)&ScriptText!C1679)","v":""},{"$f":"IF(OrigTable!C1684=\"\",\"\",ScriptText!$B$1&CHAR(10)&ScriptText!$D$1)","v":""},{"$f":"IF(OrigTable!C1684=\"\",\"\",IF(LEN(OrigTable!C1684)>255,LEFT(OrigTable!C1684,250)&\". . .\",OrigTable!C1684))","v":""},{"$f":"IF(OrigTable!C1684=\"\",\"\",ScriptText!$E$1&CHAR(10)&ScriptText!$C$1)","v":""},{"$f":"IF(OrigTable!D1684=\"\",\"\",ScriptText!$B$1&CHAR(10)&ScriptText!$D$1)","v":""},{"$f":"IF(OrigTable!D1684=\"\",\"\",TEXT(OrigTable!D1684,\"00\"))","v":""},{"$f":"IF(OrigTable!D1684=\"\",\"\",ScriptText!$E$1&CHAR(10)&ScriptText!$C$1)","v":""},{"$f":"IF(OrigTable!E1684=\"\",\"\",ScriptText!$B$1&CHAR(10)&ScriptText!$D$1)","v":""},{"$f":"IF(OrigTable!E1684=\"\",\"\",TEXT(OrigTable!E1684,\"00\"))","v":""},{"$f":"IF(OrigTable!E1684=\"\",\"\",ScriptText!$E$1&CHAR(10)&ScriptText!$C$1)","v":""},{"$f":"IF(OrigTable!F1684=\"\",\"\",ScriptText!$B$1&CHAR(10)&ScriptText!$D$1)","v":""},{"$f":"IF(OrigTable!F1684=\"\",\"\",TEXT(OrigTable!F1684,\"00\"))","v":""},{"$f":"IF(OrigTable!F1684=\"\",\"\",ScriptText!$E$1&CHAR(10)&ScriptText!$C$1)","v":""},{"$f":"IF(OrigTable!G1684=\"\",\"\",ScriptText!$B$1&CHAR(10)&ScriptText!$D$1)","v":""},{"$f":"IF(OrigTable!G1684=\"\",\"\",TEXT(OrigTable!G1684,\"00\"))","v":""},{"$f":"IF(OrigTable!G1684=\"\",\"\",ScriptText!$E$1&CHAR(10)&ScriptText!$C$1)","v":""},0]
["\n\n\n",{"$f":"IF(OrigTable!A1685=\"\",\"\",ScriptText!$B$1&CHAR(10)&ScriptText!$D$1)","v":""},{"$f":"IF(OrigTable!A1685=\"\",\"\",TEXT(OrigTable!A1685,\"00\"))","v":""},{"$f":"IF(OrigTable!A1685=\"\",\"\",ScriptText!$E$1&CHAR(10)&ScriptText!$C$1)","v":""},{"$f":"IF(OrigTable!B1685=\"\",\"\",ScriptText!$B$1&CHAR(10)&ScriptText!$D$1)","v":""},{"$f":"IF(OrigTable!B1685=\"\",\"\",TEXT(OrigTable!B1685,\"00\"))","v":""},{"$f":"IF(OrigTable!B1685=\"\",\"\",ScriptText!$E$1&CHAR(10)&ScriptText!C1680)","v":""},{"$f":"IF(OrigTable!C1685=\"\",\"\",ScriptText!$B$1&CHAR(10)&ScriptText!$D$1)","v":""},{"$f":"IF(OrigTable!C1685=\"\",\"\",IF(LEN(OrigTable!C1685)>255,LEFT(OrigTable!C1685,250)&\". . .\",OrigTable!C1685))","v":""},{"$f":"IF(OrigTable!C1685=\"\",\"\",ScriptText!$E$1&CHAR(10)&ScriptText!$C$1)","v":""},{"$f":"IF(OrigTable!D1685=\"\",\"\",ScriptText!$B$1&CHAR(10)&ScriptText!$D$1)","v":""},{"$f":"IF(OrigTable!D1685=\"\",\"\",TEXT(OrigTable!D1685,\"00\"))","v":""},{"$f":"IF(OrigTable!D1685=\"\",\"\",ScriptText!$E$1&CHAR(10)&ScriptText!$C$1)","v":""},{"$f":"IF(OrigTable!E1685=\"\",\"\",ScriptText!$B$1&CHAR(10)&ScriptText!$D$1)","v":""},{"$f":"IF(OrigTable!E1685=\"\",\"\",TEXT(OrigTable!E1685,\"00\"))","v":""},{"$f":"IF(OrigTable!E1685=\"\",\"\",ScriptText!$E$1&CHAR(10)&ScriptText!$C$1)","v":""},{"$f":"IF(OrigTable!F1685=\"\",\"\",ScriptText!$B$1&CHAR(10)&ScriptText!$D$1)","v":""},{"$f":"IF(OrigTable!F1685=\"\",\"\",TEXT(OrigTable!F1685,\"00\"))","v":""},{"$f":"IF(OrigTable!F1685=\"\",\"\",ScriptText!$E$1&CHAR(10)&ScriptText!$C$1)","v":""},{"$f":"IF(OrigTable!G1685=\"\",\"\",ScriptText!$B$1&CHAR(10)&ScriptText!$D$1)","v":""},{"$f":"IF(OrigTable!G1685=\"\",\"\",TEXT(OrigTable!G1685,\"00\"))","v":""},{"$f":"IF(OrigTable!G1685=\"\",\"\",ScriptText!$E$1&CHAR(10)&ScriptText!$C$1)","v":""},0]
["\n\n\n",{"$f":"IF(OrigTable!A1686=\"\",\"\",ScriptText!$B$1&CHAR(10)&ScriptText!$D$1)","v":""},{"$f":"IF(OrigTable!A1686=\"\",\"\",TEXT(OrigTable!A1686,\"00\"))","v":""},{"$f":"IF(OrigTable!A1686=\"\",\"\",ScriptText!$E$1&CHAR(10)&ScriptText!$C$1)","v":""},{"$f":"IF(OrigTable!B1686=\"\",\"\",ScriptText!$B$1&CHAR(10)&ScriptText!$D$1)","v":""},{"$f":"IF(OrigTable!B1686=\"\",\"\",TEXT(OrigTable!B1686,\"00\"))","v":""},{"$f":"IF(OrigTable!B1686=\"\",\"\",ScriptText!$E$1&CHAR(10)&ScriptText!C1681)","v":""},{"$f":"IF(OrigTable!C1686=\"\",\"\",ScriptText!$B$1&CHAR(10)&ScriptText!$D$1)","v":""},{"$f":"IF(OrigTable!C1686=\"\",\"\",IF(LEN(OrigTable!C1686)>255,LEFT(OrigTable!C1686,250)&\". . .\",OrigTable!C1686))","v":""},{"$f":"IF(OrigTable!C1686=\"\",\"\",ScriptText!$E$1&CHAR(10)&ScriptText!$C$1)","v":""},{"$f":"IF(OrigTable!D1686=\"\",\"\",ScriptText!$B$1&CHAR(10)&ScriptText!$D$1)","v":""},{"$f":"IF(OrigTable!D1686=\"\",\"\",TEXT(OrigTable!D1686,\"00\"))","v":""},{"$f":"IF(OrigTable!D1686=\"\",\"\",ScriptText!$E$1&CHAR(10)&ScriptText!$C$1)","v":""},{"$f":"IF(OrigTable!E1686=\"\",\"\",ScriptText!$B$1&CHAR(10)&ScriptText!$D$1)","v":""},{"$f":"IF(OrigTable!E1686=\"\",\"\",TEXT(OrigTable!E1686,\"00\"))","v":""},{"$f":"IF(OrigTable!E1686=\"\",\"\",ScriptText!$E$1&CHAR(10)&ScriptText!$C$1)","v":""},{"$f":"IF(OrigTable!F1686=\"\",\"\",ScriptText!$B$1&CHAR(10)&ScriptText!$D$1)","v":""},{"$f":"IF(OrigTable!F1686=\"\",\"\",TEXT(OrigTable!F1686,\"00\"))","v":""},{"$f":"IF(OrigTable!F1686=\"\",\"\",ScriptText!$E$1&CHAR(10)&ScriptText!$C$1)","v":""},{"$f":"IF(OrigTable!G1686=\"\",\"\",ScriptText!$B$1&CHAR(10)&ScriptText!$D$1)","v":""},{"$f":"IF(OrigTable!G1686=\"\",\"\",TEXT(OrigTable!G1686,\"00\"))","v":""},{"$f":"IF(OrigTable!G1686=\"\",\"\",ScriptText!$E$1&CHAR(10)&ScriptText!$C$1)","v":""},0]
["\n\n\n",{"$f":"IF(OrigTable!A1687=\"\",\"\",ScriptText!$B$1&CHAR(10)&ScriptText!$D$1)","v":""},{"$f":"IF(OrigTable!A1687=\"\",\"\",TEXT(OrigTable!A1687,\"00\"))","v":""},{"$f":"IF(OrigTable!A1687=\"\",\"\",ScriptText!$E$1&CHAR(10)&ScriptText!$C$1)","v":""},{"$f":"IF(OrigTable!B1687=\"\",\"\",ScriptText!$B$1&CHAR(10)&ScriptText!$D$1)","v":""},{"$f":"IF(OrigTable!B1687=\"\",\"\",TEXT(OrigTable!B1687,\"00\"))","v":""},{"$f":"IF(OrigTable!B1687=\"\",\"\",ScriptText!$E$1&CHAR(10)&ScriptText!C1682)","v":""},{"$f":"IF(OrigTable!C1687=\"\",\"\",ScriptText!$B$1&CHAR(10)&ScriptText!$D$1)","v":""},{"$f":"IF(OrigTable!C1687=\"\",\"\",IF(LEN(OrigTable!C1687)>255,LEFT(OrigTable!C1687,250)&\". . .\",OrigTable!C1687))","v":""},{"$f":"IF(OrigTable!C1687=\"\",\"\",ScriptText!$E$1&CHAR(10)&ScriptText!$C$1)","v":""},{"$f":"IF(OrigTable!D1687=\"\",\"\",ScriptText!$B$1&CHAR(10)&ScriptText!$D$1)","v":""},{"$f":"IF(OrigTable!D1687=\"\",\"\",TEXT(OrigTable!D1687,\"00\"))","v":""},{"$f":"IF(OrigTable!D1687=\"\",\"\",ScriptText!$E$1&CHAR(10)&ScriptText!$C$1)","v":""},{"$f":"IF(OrigTable!E1687=\"\",\"\",ScriptText!$B$1&CHAR(10)&ScriptText!$D$1)","v":""},{"$f":"IF(OrigTable!E1687=\"\",\"\",TEXT(OrigTable!E1687,\"00\"))","v":""},{"$f":"IF(OrigTable!E1687=\"\",\"\",ScriptText!$E$1&CHAR(10)&ScriptText!$C$1)","v":""},{"$f":"IF(OrigTable!F1687=\"\",\"\",ScriptText!$B$1&CHAR(10)&ScriptText!$D$1)","v":""},{"$f":"IF(OrigTable!F1687=\"\",\"\",TEXT(OrigTable!F1687,\"00\"))","v":""},{"$f":"IF(OrigTable!F1687=\"\",\"\",ScriptText!$E$1&CHAR(10)&ScriptText!$C$1)","v":""},{"$f":"IF(OrigTable!G1687=\"\",\"\",ScriptText!$B$1&CHAR(10)&ScriptText!$D$1)","v":""},{"$f":"IF(OrigTable!G1687=\"\",\"\",TEXT(OrigTable!G1687,\"00\"))","v":""},{"$f":"IF(OrigTable!G1687=\"\",\"\",ScriptText!$E$1&CHAR(10)&ScriptText!$C$1)","v":""},0]
["\n\n\n",{"$f":"IF(OrigTable!A1688=\"\",\"\",ScriptText!$B$1&CHAR(10)&ScriptText!$D$1)","v":""},{"$f":"IF(OrigTable!A1688=\"\",\"\",TEXT(OrigTable!A1688,\"00\"))","v":""},{"$f":"IF(OrigTable!A1688=\"\",\"\",ScriptText!$E$1&CHAR(10)&ScriptText!$C$1)","v":""},{"$f":"IF(OrigTable!B1688=\"\",\"\",ScriptText!$B$1&CHAR(10)&ScriptText!$D$1)","v":""},{"$f":"IF(OrigTable!B1688=\"\",\"\",TEXT(OrigTable!B1688,\"00\"))","v":""},{"$f":"IF(OrigTable!B1688=\"\",\"\",ScriptText!$E$1&CHAR(10)&ScriptText!C1683)","v":""},{"$f":"IF(OrigTable!C1688=\"\",\"\",ScriptText!$B$1&CHAR(10)&ScriptText!$D$1)","v":""},{"$f":"IF(OrigTable!C1688=\"\",\"\",IF(LEN(OrigTable!C1688)>255,LEFT(OrigTable!C1688,250)&\". . .\",OrigTable!C1688))","v":""},{"$f":"IF(OrigTable!C1688=\"\",\"\",ScriptText!$E$1&CHAR(10)&ScriptText!$C$1)","v":""},{"$f":"IF(OrigTable!D1688=\"\",\"\",ScriptText!$B$1&CHAR(10)&ScriptText!$D$1)","v":""},{"$f":"IF(OrigTable!D1688=\"\",\"\",TEXT(OrigTable!D1688,\"00\"))","v":""},{"$f":"IF(OrigTable!D1688=\"\",\"\",ScriptText!$E$1&CHAR(10)&ScriptText!$C$1)","v":""},{"$f":"IF(OrigTable!E1688=\"\",\"\",ScriptText!$B$1&CHAR(10)&ScriptText!$D$1)","v":""},{"$f":"IF(OrigTable!E1688=\"\",\"\",TEXT(OrigTable!E1688,\"00\"))","v":""},{"$f":"IF(OrigTable!E1688=\"\",\"\",ScriptText!$E$1&CHAR(10)&ScriptText!$C$1)","v":""},{"$f":"IF(OrigTable!F1688=\"\",\"\",ScriptText!$B$1&CHAR(10)&ScriptText!$D$1)","v":""},{"$f":"IF(OrigTable!F1688=\"\",\"\",TEXT(OrigTable!F1688,\"00\"))","v":""},{"$f":"IF(OrigTable!F1688=\"\",\"\",ScriptText!$E$1&CHAR(10)&ScriptText!$C$1)","v":""},{"$f":"IF(OrigTable!G1688=\"\",\"\",ScriptText!$B$1&CHAR(10)&ScriptText!$D$1)","v":""},{"$f":"IF(OrigTable!G1688=\"\",\"\",TEXT(OrigTable!G1688,\"00\"))","v":""},{"$f":"IF(OrigTable!G1688=\"\",\"\",ScriptText!$E$1&CHAR(10)&ScriptText!$C$1)","v":""},0]
["\n\n\n",{"$f":"IF(OrigTable!A1689=\"\",\"\",ScriptText!$B$1&CHAR(10)&ScriptText!$D$1)","v":""},{"$f":"IF(OrigTable!A1689=\"\",\"\",TEXT(OrigTable!A1689,\"00\"))","v":""},{"$f":"IF(OrigTable!A1689=\"\",\"\",ScriptText!$E$1&CHAR(10)&ScriptText!$C$1)","v":""},{"$f":"IF(OrigTable!B1689=\"\",\"\",ScriptText!$B$1&CHAR(10)&ScriptText!$D$1)","v":""},{"$f":"IF(OrigTable!B1689=\"\",\"\",TEXT(OrigTable!B1689,\"00\"))","v":""},{"$f":"IF(OrigTable!B1689=\"\",\"\",ScriptText!$E$1&CHAR(10)&ScriptText!C1684)","v":""},{"$f":"IF(OrigTable!C1689=\"\",\"\",ScriptText!$B$1&CHAR(10)&ScriptText!$D$1)","v":""},{"$f":"IF(OrigTable!C1689=\"\",\"\",IF(LEN(OrigTable!C1689)>255,LEFT(OrigTable!C1689,250)&\". . .\",OrigTable!C1689))","v":""},{"$f":"IF(OrigTable!C1689=\"\",\"\",ScriptText!$E$1&CHAR(10)&ScriptText!$C$1)","v":""},{"$f":"IF(OrigTable!D1689=\"\",\"\",ScriptText!$B$1&CHAR(10)&ScriptText!$D$1)","v":""},{"$f":"IF(OrigTable!D1689=\"\",\"\",TEXT(OrigTable!D1689,\"00\"))","v":""},{"$f":"IF(OrigTable!D1689=\"\",\"\",ScriptText!$E$1&CHAR(10)&ScriptText!$C$1)","v":""},{"$f":"IF(OrigTable!E1689=\"\",\"\",ScriptText!$B$1&CHAR(10)&ScriptText!$D$1)","v":""},{"$f":"IF(OrigTable!E1689=\"\",\"\",TEXT(OrigTable!E1689,\"00\"))","v":""},{"$f":"IF(OrigTable!E1689=\"\",\"\",ScriptText!$E$1&CHAR(10)&ScriptText!$C$1)","v":""},{"$f":"IF(OrigTable!F1689=\"\",\"\",ScriptText!$B$1&CHAR(10)&ScriptText!$D$1)","v":""},{"$f":"IF(OrigTable!F1689=\"\",\"\",TEXT(OrigTable!F1689,\"00\"))","v":""},{"$f":"IF(OrigTable!F1689=\"\",\"\",ScriptText!$E$1&CHAR(10)&ScriptText!$C$1)","v":""},{"$f":"IF(OrigTable!G1689=\"\",\"\",ScriptText!$B$1&CHAR(10)&ScriptText!$D$1)","v":""},{"$f":"IF(OrigTable!G1689=\"\",\"\",TEXT(OrigTable!G1689,\"00\"))","v":""},{"$f":"IF(OrigTable!G1689=\"\",\"\",ScriptText!$E$1&CHAR(10)&ScriptText!$C$1)","v":""},0]
["\n\n\n",{"$f":"IF(OrigTable!A1690=\"\",\"\",ScriptText!$B$1&CHAR(10)&ScriptText!$D$1)","v":""},{"$f":"IF(OrigTable!A1690=\"\",\"\",TEXT(OrigTable!A1690,\"00\"))","v":""},{"$f":"IF(OrigTable!A1690=\"\",\"\",ScriptText!$E$1&CHAR(10)&ScriptText!$C$1)","v":""},{"$f":"IF(OrigTable!B1690=\"\",\"\",ScriptText!$B$1&CHAR(10)&ScriptText!$D$1)","v":""},{"$f":"IF(OrigTable!B1690=\"\",\"\",TEXT(OrigTable!B1690,\"00\"))","v":""},{"$f":"IF(OrigTable!B1690=\"\",\"\",ScriptText!$E$1&CHAR(10)&ScriptText!C1685)","v":""},{"$f":"IF(OrigTable!C1690=\"\",\"\",ScriptText!$B$1&CHAR(10)&ScriptText!$D$1)","v":""},{"$f":"IF(OrigTable!C1690=\"\",\"\",IF(LEN(OrigTable!C1690)>255,LEFT(OrigTable!C1690,250)&\". . .\",OrigTable!C1690))","v":""},{"$f":"IF(OrigTable!C1690=\"\",\"\",ScriptText!$E$1&CHAR(10)&ScriptText!$C$1)","v":""},{"$f":"IF(OrigTable!D1690=\"\",\"\",ScriptText!$B$1&CHAR(10)&ScriptText!$D$1)","v":""},{"$f":"IF(OrigTable!D1690=\"\",\"\",TEXT(OrigTable!D1690,\"00\"))","v":""},{"$f":"IF(OrigTable!D1690=\"\",\"\",ScriptText!$E$1&CHAR(10)&ScriptText!$C$1)","v":""},{"$f":"IF(OrigTable!E1690=\"\",\"\",ScriptText!$B$1&CHAR(10)&ScriptText!$D$1)","v":""},{"$f":"IF(OrigTable!E1690=\"\",\"\",TEXT(OrigTable!E1690,\"00\"))","v":""},{"$f":"IF(OrigTable!E1690=\"\",\"\",ScriptText!$E$1&CHAR(10)&ScriptText!$C$1)","v":""},{"$f":"IF(OrigTable!F1690=\"\",\"\",ScriptText!$B$1&CHAR(10)&ScriptText!$D$1)","v":""},{"$f":"IF(OrigTable!F1690=\"\",\"\",TEXT(OrigTable!F1690,\"00\"))","v":""},{"$f":"IF(OrigTable!F1690=\"\",\"\",ScriptText!$E$1&CHAR(10)&ScriptText!$C$1)","v":""},{"$f":"IF(OrigTable!G1690=\"\",\"\",ScriptText!$B$1&CHAR(10)&ScriptText!$D$1)","v":""},{"$f":"IF(OrigTable!G1690=\"\",\"\",TEXT(OrigTable!G1690,\"00\"))","v":""},{"$f":"IF(OrigTable!G1690=\"\",\"\",ScriptText!$E$1&CHAR(10)&ScriptText!$C$1)","v":""},0]
["\n\n\n",{"$f":"IF(OrigTable!A1691=\"\",\"\",ScriptText!$B$1&CHAR(10)&ScriptText!$D$1)","v":""},{"$f":"IF(OrigTable!A1691=\"\",\"\",TEXT(OrigTable!A1691,\"00\"))","v":""},{"$f":"IF(OrigTable!A1691=\"\",\"\",ScriptText!$E$1&CHAR(10)&ScriptText!$C$1)","v":""},{"$f":"IF(OrigTable!B1691=\"\",\"\",ScriptText!$B$1&CHAR(10)&ScriptText!$D$1)","v":""},{"$f":"IF(OrigTable!B1691=\"\",\"\",TEXT(OrigTable!B1691,\"00\"))","v":""},{"$f":"IF(OrigTable!B1691=\"\",\"\",ScriptText!$E$1&CHAR(10)&ScriptText!C1686)","v":""},{"$f":"IF(OrigTable!C1691=\"\",\"\",ScriptText!$B$1&CHAR(10)&ScriptText!$D$1)","v":""},{"$f":"IF(OrigTable!C1691=\"\",\"\",IF(LEN(OrigTable!C1691)>255,LEFT(OrigTable!C1691,250)&\". . .\",OrigTable!C1691))","v":""},{"$f":"IF(OrigTable!C1691=\"\",\"\",ScriptText!$E$1&CHAR(10)&ScriptText!$C$1)","v":""},{"$f":"IF(OrigTable!D1691=\"\",\"\",ScriptText!$B$1&CHAR(10)&ScriptText!$D$1)","v":""},{"$f":"IF(OrigTable!D1691=\"\",\"\",TEXT(OrigTable!D1691,\"00\"))","v":""},{"$f":"IF(OrigTable!D1691=\"\",\"\",ScriptText!$E$1&CHAR(10)&ScriptText!$C$1)","v":""},{"$f":"IF(OrigTable!E1691=\"\",\"\",ScriptText!$B$1&CHAR(10)&ScriptText!$D$1)","v":""},{"$f":"IF(OrigTable!E1691=\"\",\"\",TEXT(OrigTable!E1691,\"00\"))","v":""},{"$f":"IF(OrigTable!E1691=\"\",\"\",ScriptText!$E$1&CHAR(10)&ScriptText!$C$1)","v":""},{"$f":"IF(OrigTable!F1691=\"\",\"\",ScriptText!$B$1&CHAR(10)&ScriptText!$D$1)","v":""},{"$f":"IF(OrigTable!F1691=\"\",\"\",TEXT(OrigTable!F1691,\"00\"))","v":""},{"$f":"IF(OrigTable!F1691=\"\",\"\",ScriptText!$E$1&CHAR(10)&ScriptText!$C$1)","v":""},{"$f":"IF(OrigTable!G1691=\"\",\"\",ScriptText!$B$1&CHAR(10)&ScriptText!$D$1)","v":""},{"$f":"IF(OrigTable!G1691=\"\",\"\",TEXT(OrigTable!G1691,\"00\"))","v":""},{"$f":"IF(OrigTable!G1691=\"\",\"\",ScriptText!$E$1&CHAR(10)&ScriptText!$C$1)","v":""},0]
["\n\n\n",{"$f":"IF(OrigTable!A1692=\"\",\"\",ScriptText!$B$1&CHAR(10)&ScriptText!$D$1)","v":""},{"$f":"IF(OrigTable!A1692=\"\",\"\",TEXT(OrigTable!A1692,\"00\"))","v":""},{"$f":"IF(OrigTable!A1692=\"\",\"\",ScriptText!$E$1&CHAR(10)&ScriptText!$C$1)","v":""},{"$f":"IF(OrigTable!B1692=\"\",\"\",ScriptText!$B$1&CHAR(10)&ScriptText!$D$1)","v":""},{"$f":"IF(OrigTable!B1692=\"\",\"\",TEXT(OrigTable!B1692,\"00\"))","v":""},{"$f":"IF(OrigTable!B1692=\"\",\"\",ScriptText!$E$1&CHAR(10)&ScriptText!C1687)","v":""},{"$f":"IF(OrigTable!C1692=\"\",\"\",ScriptText!$B$1&CHAR(10)&ScriptText!$D$1)","v":""},{"$f":"IF(OrigTable!C1692=\"\",\"\",IF(LEN(OrigTable!C1692)>255,LEFT(OrigTable!C1692,250)&\". . .\",OrigTable!C1692))","v":""},{"$f":"IF(OrigTable!C1692=\"\",\"\",ScriptText!$E$1&CHAR(10)&ScriptText!$C$1)","v":""},{"$f":"IF(OrigTable!D1692=\"\",\"\",ScriptText!$B$1&CHAR(10)&ScriptText!$D$1)","v":""},{"$f":"IF(OrigTable!D1692=\"\",\"\",TEXT(OrigTable!D1692,\"00\"))","v":""},{"$f":"IF(OrigTable!D1692=\"\",\"\",ScriptText!$E$1&CHAR(10)&ScriptText!$C$1)","v":""},{"$f":"IF(OrigTable!E1692=\"\",\"\",ScriptText!$B$1&CHAR(10)&ScriptText!$D$1)","v":""},{"$f":"IF(OrigTable!E1692=\"\",\"\",TEXT(OrigTable!E1692,\"00\"))","v":""},{"$f":"IF(OrigTable!E1692=\"\",\"\",ScriptText!$E$1&CHAR(10)&ScriptText!$C$1)","v":""},{"$f":"IF(OrigTable!F1692=\"\",\"\",ScriptText!$B$1&CHAR(10)&ScriptText!$D$1)","v":""},{"$f":"IF(OrigTable!F1692=\"\",\"\",TEXT(OrigTable!F1692,\"00\"))","v":""},{"$f":"IF(OrigTable!F1692=\"\",\"\",ScriptText!$E$1&CHAR(10)&ScriptText!$C$1)","v":""},{"$f":"IF(OrigTable!G1692=\"\",\"\",ScriptText!$B$1&CHAR(10)&ScriptText!$D$1)","v":""},{"$f":"IF(OrigTable!G1692=\"\",\"\",TEXT(OrigTable!G1692,\"00\"))","v":""},{"$f":"IF(OrigTable!G1692=\"\",\"\",ScriptText!$E$1&CHAR(10)&ScriptText!$C$1)","v":""},0]
["\n\n\n",{"$f":"IF(OrigTable!A1693=\"\",\"\",ScriptText!$B$1&CHAR(10)&ScriptText!$D$1)","v":""},{"$f":"IF(OrigTable!A1693=\"\",\"\",TEXT(OrigTable!A1693,\"00\"))","v":""},{"$f":"IF(OrigTable!A1693=\"\",\"\",ScriptText!$E$1&CHAR(10)&ScriptText!$C$1)","v":""},{"$f":"IF(OrigTable!B1693=\"\",\"\",ScriptText!$B$1&CHAR(10)&ScriptText!$D$1)","v":""},{"$f":"IF(OrigTable!B1693=\"\",\"\",TEXT(OrigTable!B1693,\"00\"))","v":""},{"$f":"IF(OrigTable!B1693=\"\",\"\",ScriptText!$E$1&CHAR(10)&ScriptText!C1688)","v":""},{"$f":"IF(OrigTable!C1693=\"\",\"\",ScriptText!$B$1&CHAR(10)&ScriptText!$D$1)","v":""},{"$f":"IF(OrigTable!C1693=\"\",\"\",IF(LEN(OrigTable!C1693)>255,LEFT(OrigTable!C1693,250)&\". . .\",OrigTable!C1693))","v":""},{"$f":"IF(OrigTable!C1693=\"\",\"\",ScriptText!$E$1&CHAR(10)&ScriptText!$C$1)","v":""},{"$f":"IF(OrigTable!D1693=\"\",\"\",ScriptText!$B$1&CHAR(10)&ScriptText!$D$1)","v":""},{"$f":"IF(OrigTable!D1693=\"\",\"\",TEXT(OrigTable!D1693,\"00\"))","v":""},{"$f":"IF(OrigTable!D1693=\"\",\"\",ScriptText!$E$1&CHAR(10)&ScriptText!$C$1)","v":""},{"$f":"IF(OrigTable!E1693=\"\",\"\",ScriptText!$B$1&CHAR(10)&ScriptText!$D$1)","v":""},{"$f":"IF(OrigTable!E1693=\"\",\"\",TEXT(OrigTable!E1693,\"00\"))","v":""},{"$f":"IF(OrigTable!E1693=\"\",\"\",ScriptText!$E$1&CHAR(10)&ScriptText!$C$1)","v":""},{"$f":"IF(OrigTable!F1693=\"\",\"\",ScriptText!$B$1&CHAR(10)&ScriptText!$D$1)","v":""},{"$f":"IF(OrigTable!F1693=\"\",\"\",TEXT(OrigTable!F1693,\"00\"))","v":""},{"$f":"IF(OrigTable!F1693=\"\",\"\",ScriptText!$E$1&CHAR(10)&ScriptText!$C$1)","v":""},{"$f":"IF(OrigTable!G1693=\"\",\"\",ScriptText!$B$1&CHAR(10)&ScriptText!$D$1)","v":""},{"$f":"IF(OrigTable!G1693=\"\",\"\",TEXT(OrigTable!G1693,\"00\"))","v":""},{"$f":"IF(OrigTable!G1693=\"\",\"\",ScriptText!$E$1&CHAR(10)&ScriptText!$C$1)","v":""},0]
["\n\n\n",{"$f":"IF(OrigTable!A1694=\"\",\"\",ScriptText!$B$1&CHAR(10)&ScriptText!$D$1)","v":""},{"$f":"IF(OrigTable!A1694=\"\",\"\",TEXT(OrigTable!A1694,\"00\"))","v":""},{"$f":"IF(OrigTable!A1694=\"\",\"\",ScriptText!$E$1&CHAR(10)&ScriptText!$C$1)","v":""},{"$f":"IF(OrigTable!B1694=\"\",\"\",ScriptText!$B$1&CHAR(10)&ScriptText!$D$1)","v":""},{"$f":"IF(OrigTable!B1694=\"\",\"\",TEXT(OrigTable!B1694,\"00\"))","v":""},{"$f":"IF(OrigTable!B1694=\"\",\"\",ScriptText!$E$1&CHAR(10)&ScriptText!C1689)","v":""},{"$f":"IF(OrigTable!C1694=\"\",\"\",ScriptText!$B$1&CHAR(10)&ScriptText!$D$1)","v":""},{"$f":"IF(OrigTable!C1694=\"\",\"\",IF(LEN(OrigTable!C1694)>255,LEFT(OrigTable!C1694,250)&\". . .\",OrigTable!C1694))","v":""},{"$f":"IF(OrigTable!C1694=\"\",\"\",ScriptText!$E$1&CHAR(10)&ScriptText!$C$1)","v":""},{"$f":"IF(OrigTable!D1694=\"\",\"\",ScriptText!$B$1&CHAR(10)&ScriptText!$D$1)","v":""},{"$f":"IF(OrigTable!D1694=\"\",\"\",TEXT(OrigTable!D1694,\"00\"))","v":""},{"$f":"IF(OrigTable!D1694=\"\",\"\",ScriptText!$E$1&CHAR(10)&ScriptText!$C$1)","v":""},{"$f":"IF(OrigTable!E1694=\"\",\"\",ScriptText!$B$1&CHAR(10)&ScriptText!$D$1)","v":""},{"$f":"IF(OrigTable!E1694=\"\",\"\",TEXT(OrigTable!E1694,\"00\"))","v":""},{"$f":"IF(OrigTable!E1694=\"\",\"\",ScriptText!$E$1&CHAR(10)&ScriptText!$C$1)","v":""},{"$f":"IF(OrigTable!F1694=\"\",\"\",ScriptText!$B$1&CHAR(10)&ScriptText!$D$1)","v":""},{"$f":"IF(OrigTable!F1694=\"\",\"\",TEXT(OrigTable!F1694,\"00\"))","v":""},{"$f":"IF(OrigTable!F1694=\"\",\"\",ScriptText!$E$1&CHAR(10)&ScriptText!$C$1)","v":""},{"$f":"IF(OrigTable!G1694=\"\",\"\",ScriptText!$B$1&CHAR(10)&ScriptText!$D$1)","v":""},{"$f":"IF(OrigTable!G1694=\"\",\"\",TEXT(OrigTable!G1694,\"00\"))","v":""},{"$f":"IF(OrigTable!G1694=\"\",\"\",ScriptText!$E$1&CHAR(10)&ScriptText!$C$1)","v":""},0]
["\n\n\n",{"$f":"IF(OrigTable!A1695=\"\",\"\",ScriptText!$B$1&CHAR(10)&ScriptText!$D$1)","v":""},{"$f":"IF(OrigTable!A1695=\"\",\"\",TEXT(OrigTable!A1695,\"00\"))","v":""},{"$f":"IF(OrigTable!A1695=\"\",\"\",ScriptText!$E$1&CHAR(10)&ScriptText!$C$1)","v":""},{"$f":"IF(OrigTable!B1695=\"\",\"\",ScriptText!$B$1&CHAR(10)&ScriptText!$D$1)","v":""},{"$f":"IF(OrigTable!B1695=\"\",\"\",TEXT(OrigTable!B1695,\"00\"))","v":""},{"$f":"IF(OrigTable!B1695=\"\",\"\",ScriptText!$E$1&CHAR(10)&ScriptText!C1690)","v":""},{"$f":"IF(OrigTable!C1695=\"\",\"\",ScriptText!$B$1&CHAR(10)&ScriptText!$D$1)","v":""},{"$f":"IF(OrigTable!C1695=\"\",\"\",IF(LEN(OrigTable!C1695)>255,LEFT(OrigTable!C1695,250)&\". . .\",OrigTable!C1695))","v":""},{"$f":"IF(OrigTable!C1695=\"\",\"\",ScriptText!$E$1&CHAR(10)&ScriptText!$C$1)","v":""},{"$f":"IF(OrigTable!D1695=\"\",\"\",ScriptText!$B$1&CHAR(10)&ScriptText!$D$1)","v":""},{"$f":"IF(OrigTable!D1695=\"\",\"\",TEXT(OrigTable!D1695,\"00\"))","v":""},{"$f":"IF(OrigTable!D1695=\"\",\"\",ScriptText!$E$1&CHAR(10)&ScriptText!$C$1)","v":""},{"$f":"IF(OrigTable!E1695=\"\",\"\",ScriptText!$B$1&CHAR(10)&ScriptText!$D$1)","v":""},{"$f":"IF(OrigTable!E1695=\"\",\"\",TEXT(OrigTable!E1695,\"00\"))","v":""},{"$f":"IF(OrigTable!E1695=\"\",\"\",ScriptText!$E$1&CHAR(10)&ScriptText!$C$1)","v":""},{"$f":"IF(OrigTable!F1695=\"\",\"\",ScriptText!$B$1&CHAR(10)&ScriptText!$D$1)","v":""},{"$f":"IF(OrigTable!F1695=\"\",\"\",TEXT(OrigTable!F1695,\"00\"))","v":""},{"$f":"IF(OrigTable!F1695=\"\",\"\",ScriptText!$E$1&CHAR(10)&ScriptText!$C$1)","v":""},{"$f":"IF(OrigTable!G1695=\"\",\"\",ScriptText!$B$1&CHAR(10)&ScriptText!$D$1)","v":""},{"$f":"IF(OrigTable!G1695=\"\",\"\",TEXT(OrigTable!G1695,\"00\"))","v":""},{"$f":"IF(OrigTable!G1695=\"\",\"\",ScriptText!$E$1&CHAR(10)&ScriptText!$C$1)","v":""},0]
["\n\n\n",{"$f":"IF(OrigTable!A1696=\"\",\"\",ScriptText!$B$1&CHAR(10)&ScriptText!$D$1)","v":""},{"$f":"IF(OrigTable!A1696=\"\",\"\",TEXT(OrigTable!A1696,\"00\"))","v":""},{"$f":"IF(OrigTable!A1696=\"\",\"\",ScriptText!$E$1&CHAR(10)&ScriptText!$C$1)","v":""},{"$f":"IF(OrigTable!B1696=\"\",\"\",ScriptText!$B$1&CHAR(10)&ScriptText!$D$1)","v":""},{"$f":"IF(OrigTable!B1696=\"\",\"\",TEXT(OrigTable!B1696,\"00\"))","v":""},{"$f":"IF(OrigTable!B1696=\"\",\"\",ScriptText!$E$1&CHAR(10)&ScriptText!C1691)","v":""},{"$f":"IF(OrigTable!C1696=\"\",\"\",ScriptText!$B$1&CHAR(10)&ScriptText!$D$1)","v":""},{"$f":"IF(OrigTable!C1696=\"\",\"\",IF(LEN(OrigTable!C1696)>255,LEFT(OrigTable!C1696,250)&\". . .\",OrigTable!C1696))","v":""},{"$f":"IF(OrigTable!C1696=\"\",\"\",ScriptText!$E$1&CHAR(10)&ScriptText!$C$1)","v":""},{"$f":"IF(OrigTable!D1696=\"\",\"\",ScriptText!$B$1&CHAR(10)&ScriptText!$D$1)","v":""},{"$f":"IF(OrigTable!D1696=\"\",\"\",TEXT(OrigTable!D1696,\"00\"))","v":""},{"$f":"IF(OrigTable!D1696=\"\",\"\",ScriptText!$E$1&CHAR(10)&ScriptText!$C$1)","v":""},{"$f":"IF(OrigTable!E1696=\"\",\"\",ScriptText!$B$1&CHAR(10)&ScriptText!$D$1)","v":""},{"$f":"IF(OrigTable!E1696=\"\",\"\",TEXT(OrigTable!E1696,\"00\"))","v":""},{"$f":"IF(OrigTable!E1696=\"\",\"\",ScriptText!$E$1&CHAR(10)&ScriptText!$C$1)","v":""},{"$f":"IF(OrigTable!F1696=\"\",\"\",ScriptText!$B$1&CHAR(10)&ScriptText!$D$1)","v":""},{"$f":"IF(OrigTable!F1696=\"\",\"\",TEXT(OrigTable!F1696,\"00\"))","v":""},{"$f":"IF(OrigTable!F1696=\"\",\"\",ScriptText!$E$1&CHAR(10)&ScriptText!$C$1)","v":""},{"$f":"IF(OrigTable!G1696=\"\",\"\",ScriptText!$B$1&CHAR(10)&ScriptText!$D$1)","v":""},{"$f":"IF(OrigTable!G1696=\"\",\"\",TEXT(OrigTable!G1696,\"00\"))","v":""},{"$f":"IF(OrigTable!G1696=\"\",\"\",ScriptText!$E$1&CHAR(10)&ScriptText!$C$1)","v":""},0]
["\n\n\n",{"$f":"IF(OrigTable!A1697=\"\",\"\",ScriptText!$B$1&CHAR(10)&ScriptText!$D$1)","v":""},{"$f":"IF(OrigTable!A1697=\"\",\"\",TEXT(OrigTable!A1697,\"00\"))","v":""},{"$f":"IF(OrigTable!A1697=\"\",\"\",ScriptText!$E$1&CHAR(10)&ScriptText!$C$1)","v":""},{"$f":"IF(OrigTable!B1697=\"\",\"\",ScriptText!$B$1&CHAR(10)&ScriptText!$D$1)","v":""},{"$f":"IF(OrigTable!B1697=\"\",\"\",TEXT(OrigTable!B1697,\"00\"))","v":""},{"$f":"IF(OrigTable!B1697=\"\",\"\",ScriptText!$E$1&CHAR(10)&ScriptText!C1692)","v":""},{"$f":"IF(OrigTable!C1697=\"\",\"\",ScriptText!$B$1&CHAR(10)&ScriptText!$D$1)","v":""},{"$f":"IF(OrigTable!C1697=\"\",\"\",IF(LEN(OrigTable!C1697)>255,LEFT(OrigTable!C1697,250)&\". . .\",OrigTable!C1697))","v":""},{"$f":"IF(OrigTable!C1697=\"\",\"\",ScriptText!$E$1&CHAR(10)&ScriptText!$C$1)","v":""},{"$f":"IF(OrigTable!D1697=\"\",\"\",ScriptText!$B$1&CHAR(10)&ScriptText!$D$1)","v":""},{"$f":"IF(OrigTable!D1697=\"\",\"\",TEXT(OrigTable!D1697,\"00\"))","v":""},{"$f":"IF(OrigTable!D1697=\"\",\"\",ScriptText!$E$1&CHAR(10)&ScriptText!$C$1)","v":""},{"$f":"IF(OrigTable!E1697=\"\",\"\",ScriptText!$B$1&CHAR(10)&ScriptText!$D$1)","v":""},{"$f":"IF(OrigTable!E1697=\"\",\"\",TEXT(OrigTable!E1697,\"00\"))","v":""},{"$f":"IF(OrigTable!E1697=\"\",\"\",ScriptText!$E$1&CHAR(10)&ScriptText!$C$1)","v":""},{"$f":"IF(OrigTable!F1697=\"\",\"\",ScriptText!$B$1&CHAR(10)&ScriptText!$D$1)","v":""},{"$f":"IF(OrigTable!F1697=\"\",\"\",TEXT(OrigTable!F1697,\"00\"))","v":""},{"$f":"IF(OrigTable!F1697=\"\",\"\",ScriptText!$E$1&CHAR(10)&ScriptText!$C$1)","v":""},{"$f":"IF(OrigTable!G1697=\"\",\"\",ScriptText!$B$1&CHAR(10)&ScriptText!$D$1)","v":""},{"$f":"IF(OrigTable!G1697=\"\",\"\",TEXT(OrigTable!G1697,\"00\"))","v":""},{"$f":"IF(OrigTable!G1697=\"\",\"\",ScriptText!$E$1&CHAR(10)&ScriptText!$C$1)","v":""},0]
["\n\n\n",{"$f":"IF(OrigTable!A1698=\"\",\"\",ScriptText!$B$1&CHAR(10)&ScriptText!$D$1)","v":""},{"$f":"IF(OrigTable!A1698=\"\",\"\",TEXT(OrigTable!A1698,\"00\"))","v":""},{"$f":"IF(OrigTable!A1698=\"\",\"\",ScriptText!$E$1&CHAR(10)&ScriptText!$C$1)","v":""},{"$f":"IF(OrigTable!B1698=\"\",\"\",ScriptText!$B$1&CHAR(10)&ScriptText!$D$1)","v":""},{"$f":"IF(OrigTable!B1698=\"\",\"\",TEXT(OrigTable!B1698,\"00\"))","v":""},{"$f":"IF(OrigTable!B1698=\"\",\"\",ScriptText!$E$1&CHAR(10)&ScriptText!C1693)","v":""},{"$f":"IF(OrigTable!C1698=\"\",\"\",ScriptText!$B$1&CHAR(10)&ScriptText!$D$1)","v":""},{"$f":"IF(OrigTable!C1698=\"\",\"\",IF(LEN(OrigTable!C1698)>255,LEFT(OrigTable!C1698,250)&\". . .\",OrigTable!C1698))","v":""},{"$f":"IF(OrigTable!C1698=\"\",\"\",ScriptText!$E$1&CHAR(10)&ScriptText!$C$1)","v":""},{"$f":"IF(OrigTable!D1698=\"\",\"\",ScriptText!$B$1&CHAR(10)&ScriptText!$D$1)","v":""},{"$f":"IF(OrigTable!D1698=\"\",\"\",TEXT(OrigTable!D1698,\"00\"))","v":""},{"$f":"IF(OrigTable!D1698=\"\",\"\",ScriptText!$E$1&CHAR(10)&ScriptText!$C$1)","v":""},{"$f":"IF(OrigTable!E1698=\"\",\"\",ScriptText!$B$1&CHAR(10)&ScriptText!$D$1)","v":""},{"$f":"IF(OrigTable!E1698=\"\",\"\",TEXT(OrigTable!E1698,\"00\"))","v":""},{"$f":"IF(OrigTable!E1698=\"\",\"\",ScriptText!$E$1&CHAR(10)&ScriptText!$C$1)","v":""},{"$f":"IF(OrigTable!F1698=\"\",\"\",ScriptText!$B$1&CHAR(10)&ScriptText!$D$1)","v":""},{"$f":"IF(OrigTable!F1698=\"\",\"\",TEXT(OrigTable!F1698,\"00\"))","v":""},{"$f":"IF(OrigTable!F1698=\"\",\"\",ScriptText!$E$1&CHAR(10)&ScriptText!$C$1)","v":""},{"$f":"IF(OrigTable!G1698=\"\",\"\",ScriptText!$B$1&CHAR(10)&ScriptText!$D$1)","v":""},{"$f":"IF(OrigTable!G1698=\"\",\"\",TEXT(OrigTable!G1698,\"00\"))","v":""},{"$f":"IF(OrigTable!G1698=\"\",\"\",ScriptText!$E$1&CHAR(10)&ScriptText!$C$1)","v":""},0]
["\n\n\n",{"$f":"IF(OrigTable!A1699=\"\",\"\",ScriptText!$B$1&CHAR(10)&ScriptText!$D$1)","v":""},{"$f":"IF(OrigTable!A1699=\"\",\"\",TEXT(OrigTable!A1699,\"00\"))","v":""},{"$f":"IF(OrigTable!A1699=\"\",\"\",ScriptText!$E$1&CHAR(10)&ScriptText!$C$1)","v":""},{"$f":"IF(OrigTable!B1699=\"\",\"\",ScriptText!$B$1&CHAR(10)&ScriptText!$D$1)","v":""},{"$f":"IF(OrigTable!B1699=\"\",\"\",TEXT(OrigTable!B1699,\"00\"))","v":""},{"$f":"IF(OrigTable!B1699=\"\",\"\",ScriptText!$E$1&CHAR(10)&ScriptText!C1694)","v":""},{"$f":"IF(OrigTable!C1699=\"\",\"\",ScriptText!$B$1&CHAR(10)&ScriptText!$D$1)","v":""},{"$f":"IF(OrigTable!C1699=\"\",\"\",IF(LEN(OrigTable!C1699)>255,LEFT(OrigTable!C1699,250)&\". . .\",OrigTable!C1699))","v":""},{"$f":"IF(OrigTable!C1699=\"\",\"\",ScriptText!$E$1&CHAR(10)&ScriptText!$C$1)","v":""},{"$f":"IF(OrigTable!D1699=\"\",\"\",ScriptText!$B$1&CHAR(10)&ScriptText!$D$1)","v":""},{"$f":"IF(OrigTable!D1699=\"\",\"\",TEXT(OrigTable!D1699,\"00\"))","v":""},{"$f":"IF(OrigTable!D1699=\"\",\"\",ScriptText!$E$1&CHAR(10)&ScriptText!$C$1)","v":""},{"$f":"IF(OrigTable!E1699=\"\",\"\",ScriptText!$B$1&CHAR(10)&ScriptText!$D$1)","v":""},{"$f":"IF(OrigTable!E1699=\"\",\"\",TEXT(OrigTable!E1699,\"00\"))","v":""},{"$f":"IF(OrigTable!E1699=\"\",\"\",ScriptText!$E$1&CHAR(10)&ScriptText!$C$1)","v":""},{"$f":"IF(OrigTable!F1699=\"\",\"\",ScriptText!$B$1&CHAR(10)&ScriptText!$D$1)","v":""},{"$f":"IF(OrigTable!F1699=\"\",\"\",TEXT(OrigTable!F1699,\"00\"))","v":""},{"$f":"IF(OrigTable!F1699=\"\",\"\",ScriptText!$E$1&CHAR(10)&ScriptText!$C$1)","v":""},{"$f":"IF(OrigTable!G1699=\"\",\"\",ScriptText!$B$1&CHAR(10)&ScriptText!$D$1)","v":""},{"$f":"IF(OrigTable!G1699=\"\",\"\",TEXT(OrigTable!G1699,\"00\"))","v":""},{"$f":"IF(OrigTable!G1699=\"\",\"\",ScriptText!$E$1&CHAR(10)&ScriptText!$C$1)","v":""},0]
["\n\n\n",{"$f":"IF(OrigTable!A1700=\"\",\"\",ScriptText!$B$1&CHAR(10)&ScriptText!$D$1)","v":""},{"$f":"IF(OrigTable!A1700=\"\",\"\",TEXT(OrigTable!A1700,\"00\"))","v":""},{"$f":"IF(OrigTable!A1700=\"\",\"\",ScriptText!$E$1&CHAR(10)&ScriptText!$C$1)","v":""},{"$f":"IF(OrigTable!B1700=\"\",\"\",ScriptText!$B$1&CHAR(10)&ScriptText!$D$1)","v":""},{"$f":"IF(OrigTable!B1700=\"\",\"\",TEXT(OrigTable!B1700,\"00\"))","v":""},{"$f":"IF(OrigTable!B1700=\"\",\"\",ScriptText!$E$1&CHAR(10)&ScriptText!C1695)","v":""},{"$f":"IF(OrigTable!C1700=\"\",\"\",ScriptText!$B$1&CHAR(10)&ScriptText!$D$1)","v":""},{"$f":"IF(OrigTable!C1700=\"\",\"\",IF(LEN(OrigTable!C1700)>255,LEFT(OrigTable!C1700,250)&\". . .\",OrigTable!C1700))","v":""},{"$f":"IF(OrigTable!C1700=\"\",\"\",ScriptText!$E$1&CHAR(10)&ScriptText!$C$1)","v":""},{"$f":"IF(OrigTable!D1700=\"\",\"\",ScriptText!$B$1&CHAR(10)&ScriptText!$D$1)","v":""},{"$f":"IF(OrigTable!D1700=\"\",\"\",TEXT(OrigTable!D1700,\"00\"))","v":""},{"$f":"IF(OrigTable!D1700=\"\",\"\",ScriptText!$E$1&CHAR(10)&ScriptText!$C$1)","v":""},{"$f":"IF(OrigTable!E1700=\"\",\"\",ScriptText!$B$1&CHAR(10)&ScriptText!$D$1)","v":""},{"$f":"IF(OrigTable!E1700=\"\",\"\",TEXT(OrigTable!E1700,\"00\"))","v":""},{"$f":"IF(OrigTable!E1700=\"\",\"\",ScriptText!$E$1&CHAR(10)&ScriptText!$C$1)","v":""},{"$f":"IF(OrigTable!F1700=\"\",\"\",ScriptText!$B$1&CHAR(10)&ScriptText!$D$1)","v":""},{"$f":"IF(OrigTable!F1700=\"\",\"\",TEXT(OrigTable!F1700,\"00\"))","v":""},{"$f":"IF(OrigTable!F1700=\"\",\"\",ScriptText!$E$1&CHAR(10)&ScriptText!$C$1)","v":""},{"$f":"IF(OrigTable!G1700=\"\",\"\",ScriptText!$B$1&CHAR(10)&ScriptText!$D$1)","v":""},{"$f":"IF(OrigTable!G1700=\"\",\"\",TEXT(OrigTable!G1700,\"00\"))","v":""},{"$f":"IF(OrigTable!G1700=\"\",\"\",ScriptText!$E$1&CHAR(10)&ScriptText!$C$1)","v":""},0]
["\n\n\n",{"$f":"IF(OrigTable!A1701=\"\",\"\",ScriptText!$B$1&CHAR(10)&ScriptText!$D$1)","v":""},{"$f":"IF(OrigTable!A1701=\"\",\"\",TEXT(OrigTable!A1701,\"00\"))","v":""},{"$f":"IF(OrigTable!A1701=\"\",\"\",ScriptText!$E$1&CHAR(10)&ScriptText!$C$1)","v":""},{"$f":"IF(OrigTable!B1701=\"\",\"\",ScriptText!$B$1&CHAR(10)&ScriptText!$D$1)","v":""},{"$f":"IF(OrigTable!B1701=\"\",\"\",TEXT(OrigTable!B1701,\"00\"))","v":""},{"$f":"IF(OrigTable!B1701=\"\",\"\",ScriptText!$E$1&CHAR(10)&ScriptText!C1696)","v":""},{"$f":"IF(OrigTable!C1701=\"\",\"\",ScriptText!$B$1&CHAR(10)&ScriptText!$D$1)","v":""},{"$f":"IF(OrigTable!C1701=\"\",\"\",IF(LEN(OrigTable!C1701)>255,LEFT(OrigTable!C1701,250)&\". . .\",OrigTable!C1701))","v":""},{"$f":"IF(OrigTable!C1701=\"\",\"\",ScriptText!$E$1&CHAR(10)&ScriptText!$C$1)","v":""},{"$f":"IF(OrigTable!D1701=\"\",\"\",ScriptText!$B$1&CHAR(10)&ScriptText!$D$1)","v":""},{"$f":"IF(OrigTable!D1701=\"\",\"\",TEXT(OrigTable!D1701,\"00\"))","v":""},{"$f":"IF(OrigTable!D1701=\"\",\"\",ScriptText!$E$1&CHAR(10)&ScriptText!$C$1)","v":""},{"$f":"IF(OrigTable!E1701=\"\",\"\",ScriptText!$B$1&CHAR(10)&ScriptText!$D$1)","v":""},{"$f":"IF(OrigTable!E1701=\"\",\"\",TEXT(OrigTable!E1701,\"00\"))","v":""},{"$f":"IF(OrigTable!E1701=\"\",\"\",ScriptText!$E$1&CHAR(10)&ScriptText!$C$1)","v":""},{"$f":"IF(OrigTable!F1701=\"\",\"\",ScriptText!$B$1&CHAR(10)&ScriptText!$D$1)","v":""},{"$f":"IF(OrigTable!F1701=\"\",\"\",TEXT(OrigTable!F1701,\"00\"))","v":""},{"$f":"IF(OrigTable!F1701=\"\",\"\",ScriptText!$E$1&CHAR(10)&ScriptText!$C$1)","v":""},{"$f":"IF(OrigTable!G1701=\"\",\"\",ScriptText!$B$1&CHAR(10)&ScriptText!$D$1)","v":""},{"$f":"IF(OrigTable!G1701=\"\",\"\",TEXT(OrigTable!G1701,\"00\"))","v":""},{"$f":"IF(OrigTable!G1701=\"\",\"\",ScriptText!$E$1&CHAR(10)&ScriptText!$C$1)","v":""},0]
["\n\n\n",{"$f":"IF(OrigTable!A1702=\"\",\"\",ScriptText!$B$1&CHAR(10)&ScriptText!$D$1)","v":""},{"$f":"IF(OrigTable!A1702=\"\",\"\",TEXT(OrigTable!A1702,\"00\"))","v":""},{"$f":"IF(OrigTable!A1702=\"\",\"\",ScriptText!$E$1&CHAR(10)&ScriptText!$C$1)","v":""},{"$f":"IF(OrigTable!B1702=\"\",\"\",ScriptText!$B$1&CHAR(10)&ScriptText!$D$1)","v":""},{"$f":"IF(OrigTable!B1702=\"\",\"\",TEXT(OrigTable!B1702,\"00\"))","v":""},{"$f":"IF(OrigTable!B1702=\"\",\"\",ScriptText!$E$1&CHAR(10)&ScriptText!C1697)","v":""},{"$f":"IF(OrigTable!C1702=\"\",\"\",ScriptText!$B$1&CHAR(10)&ScriptText!$D$1)","v":""},{"$f":"IF(OrigTable!C1702=\"\",\"\",IF(LEN(OrigTable!C1702)>255,LEFT(OrigTable!C1702,250)&\". . .\",OrigTable!C1702))","v":""},{"$f":"IF(OrigTable!C1702=\"\",\"\",ScriptText!$E$1&CHAR(10)&ScriptText!$C$1)","v":""},{"$f":"IF(OrigTable!D1702=\"\",\"\",ScriptText!$B$1&CHAR(10)&ScriptText!$D$1)","v":""},{"$f":"IF(OrigTable!D1702=\"\",\"\",TEXT(OrigTable!D1702,\"00\"))","v":""},{"$f":"IF(OrigTable!D1702=\"\",\"\",ScriptText!$E$1&CHAR(10)&ScriptText!$C$1)","v":""},{"$f":"IF(OrigTable!E1702=\"\",\"\",ScriptText!$B$1&CHAR(10)&ScriptText!$D$1)","v":""},{"$f":"IF(OrigTable!E1702=\"\",\"\",TEXT(OrigTable!E1702,\"00\"))","v":""},{"$f":"IF(OrigTable!E1702=\"\",\"\",ScriptText!$E$1&CHAR(10)&ScriptText!$C$1)","v":""},{"$f":"IF(OrigTable!F1702=\"\",\"\",ScriptText!$B$1&CHAR(10)&ScriptText!$D$1)","v":""},{"$f":"IF(OrigTable!F1702=\"\",\"\",TEXT(OrigTable!F1702,\"00\"))","v":""},{"$f":"IF(OrigTable!F1702=\"\",\"\",ScriptText!$E$1&CHAR(10)&ScriptText!$C$1)","v":""},{"$f":"IF(OrigTable!G1702=\"\",\"\",ScriptText!$B$1&CHAR(10)&ScriptText!$D$1)","v":""},{"$f":"IF(OrigTable!G1702=\"\",\"\",TEXT(OrigTable!G1702,\"00\"))","v":""},{"$f":"IF(OrigTable!G1702=\"\",\"\",ScriptText!$E$1&CHAR(10)&ScriptText!$C$1)","v":""},0]
["\n\n\n",{"$f":"IF(OrigTable!A1703=\"\",\"\",ScriptText!$B$1&CHAR(10)&ScriptText!$D$1)","v":""},{"$f":"IF(OrigTable!A1703=\"\",\"\",TEXT(OrigTable!A1703,\"00\"))","v":""},{"$f":"IF(OrigTable!A1703=\"\",\"\",ScriptText!$E$1&CHAR(10)&ScriptText!$C$1)","v":""},{"$f":"IF(OrigTable!B1703=\"\",\"\",ScriptText!$B$1&CHAR(10)&ScriptText!$D$1)","v":""},{"$f":"IF(OrigTable!B1703=\"\",\"\",TEXT(OrigTable!B1703,\"00\"))","v":""},{"$f":"IF(OrigTable!B1703=\"\",\"\",ScriptText!$E$1&CHAR(10)&ScriptText!C1698)","v":""},{"$f":"IF(OrigTable!C1703=\"\",\"\",ScriptText!$B$1&CHAR(10)&ScriptText!$D$1)","v":""},{"$f":"IF(OrigTable!C1703=\"\",\"\",IF(LEN(OrigTable!C1703)>255,LEFT(OrigTable!C1703,250)&\". . .\",OrigTable!C1703))","v":""},{"$f":"IF(OrigTable!C1703=\"\",\"\",ScriptText!$E$1&CHAR(10)&ScriptText!$C$1)","v":""},{"$f":"IF(OrigTable!D1703=\"\",\"\",ScriptText!$B$1&CHAR(10)&ScriptText!$D$1)","v":""},{"$f":"IF(OrigTable!D1703=\"\",\"\",TEXT(OrigTable!D1703,\"00\"))","v":""},{"$f":"IF(OrigTable!D1703=\"\",\"\",ScriptText!$E$1&CHAR(10)&ScriptText!$C$1)","v":""},{"$f":"IF(OrigTable!E1703=\"\",\"\",ScriptText!$B$1&CHAR(10)&ScriptText!$D$1)","v":""},{"$f":"IF(OrigTable!E1703=\"\",\"\",TEXT(OrigTable!E1703,\"00\"))","v":""},{"$f":"IF(OrigTable!E1703=\"\",\"\",ScriptText!$E$1&CHAR(10)&ScriptText!$C$1)","v":""},{"$f":"IF(OrigTable!F1703=\"\",\"\",ScriptText!$B$1&CHAR(10)&ScriptText!$D$1)","v":""},{"$f":"IF(OrigTable!F1703=\"\",\"\",TEXT(OrigTable!F1703,\"00\"))","v":""},{"$f":"IF(OrigTable!F1703=\"\",\"\",ScriptText!$E$1&CHAR(10)&ScriptText!$C$1)","v":""},{"$f":"IF(OrigTable!G1703=\"\",\"\",ScriptText!$B$1&CHAR(10)&ScriptText!$D$1)","v":""},{"$f":"IF(OrigTable!G1703=\"\",\"\",TEXT(OrigTable!G1703,\"00\"))","v":""},{"$f":"IF(OrigTable!G1703=\"\",\"\",ScriptText!$E$1&CHAR(10)&ScriptText!$C$1)","v":""},0]
["\n\n\n",{"$f":"IF(OrigTable!A1704=\"\",\"\",ScriptText!$B$1&CHAR(10)&ScriptText!$D$1)","v":""},{"$f":"IF(OrigTable!A1704=\"\",\"\",TEXT(OrigTable!A1704,\"00\"))","v":""},{"$f":"IF(OrigTable!A1704=\"\",\"\",ScriptText!$E$1&CHAR(10)&ScriptText!$C$1)","v":""},{"$f":"IF(OrigTable!B1704=\"\",\"\",ScriptText!$B$1&CHAR(10)&ScriptText!$D$1)","v":""},{"$f":"IF(OrigTable!B1704=\"\",\"\",TEXT(OrigTable!B1704,\"00\"))","v":""},{"$f":"IF(OrigTable!B1704=\"\",\"\",ScriptText!$E$1&CHAR(10)&ScriptText!C1699)","v":""},{"$f":"IF(OrigTable!C1704=\"\",\"\",ScriptText!$B$1&CHAR(10)&ScriptText!$D$1)","v":""},{"$f":"IF(OrigTable!C1704=\"\",\"\",IF(LEN(OrigTable!C1704)>255,LEFT(OrigTable!C1704,250)&\". . .\",OrigTable!C1704))","v":""},{"$f":"IF(OrigTable!C1704=\"\",\"\",ScriptText!$E$1&CHAR(10)&ScriptText!$C$1)","v":""},{"$f":"IF(OrigTable!D1704=\"\",\"\",ScriptText!$B$1&CHAR(10)&ScriptText!$D$1)","v":""},{"$f":"IF(OrigTable!D1704=\"\",\"\",TEXT(OrigTable!D1704,\"00\"))","v":""},{"$f":"IF(OrigTable!D1704=\"\",\"\",ScriptText!$E$1&CHAR(10)&ScriptText!$C$1)","v":""},{"$f":"IF(OrigTable!E1704=\"\",\"\",ScriptText!$B$1&CHAR(10)&ScriptText!$D$1)","v":""},{"$f":"IF(OrigTable!E1704=\"\",\"\",TEXT(OrigTable!E1704,\"00\"))","v":""},{"$f":"IF(OrigTable!E1704=\"\",\"\",ScriptText!$E$1&CHAR(10)&ScriptText!$C$1)","v":""},{"$f":"IF(OrigTable!F1704=\"\",\"\",ScriptText!$B$1&CHAR(10)&ScriptText!$D$1)","v":""},{"$f":"IF(OrigTable!F1704=\"\",\"\",TEXT(OrigTable!F1704,\"00\"))","v":""},{"$f":"IF(OrigTable!F1704=\"\",\"\",ScriptText!$E$1&CHAR(10)&ScriptText!$C$1)","v":""},{"$f":"IF(OrigTable!G1704=\"\",\"\",ScriptText!$B$1&CHAR(10)&ScriptText!$D$1)","v":""},{"$f":"IF(OrigTable!G1704=\"\",\"\",TEXT(OrigTable!G1704,\"00\"))","v":""},{"$f":"IF(OrigTable!G1704=\"\",\"\",ScriptText!$E$1&CHAR(10)&ScriptText!$C$1)","v":""},0]
["\n\n\n",{"$f":"IF(OrigTable!A1705=\"\",\"\",ScriptText!$B$1&CHAR(10)&ScriptText!$D$1)","v":""},{"$f":"IF(OrigTable!A1705=\"\",\"\",TEXT(OrigTable!A1705,\"00\"))","v":""},{"$f":"IF(OrigTable!A1705=\"\",\"\",ScriptText!$E$1&CHAR(10)&ScriptText!$C$1)","v":""},{"$f":"IF(OrigTable!B1705=\"\",\"\",ScriptText!$B$1&CHAR(10)&ScriptText!$D$1)","v":""},{"$f":"IF(OrigTable!B1705=\"\",\"\",TEXT(OrigTable!B1705,\"00\"))","v":""},{"$f":"IF(OrigTable!B1705=\"\",\"\",ScriptText!$E$1&CHAR(10)&ScriptText!C1700)","v":""},{"$f":"IF(OrigTable!C1705=\"\",\"\",ScriptText!$B$1&CHAR(10)&ScriptText!$D$1)","v":""},{"$f":"IF(OrigTable!C1705=\"\",\"\",IF(LEN(OrigTable!C1705)>255,LEFT(OrigTable!C1705,250)&\". . .\",OrigTable!C1705))","v":""},{"$f":"IF(OrigTable!C1705=\"\",\"\",ScriptText!$E$1&CHAR(10)&ScriptText!$C$1)","v":""},{"$f":"IF(OrigTable!D1705=\"\",\"\",ScriptText!$B$1&CHAR(10)&ScriptText!$D$1)","v":""},{"$f":"IF(OrigTable!D1705=\"\",\"\",TEXT(OrigTable!D1705,\"00\"))","v":""},{"$f":"IF(OrigTable!D1705=\"\",\"\",ScriptText!$E$1&CHAR(10)&ScriptText!$C$1)","v":""},{"$f":"IF(OrigTable!E1705=\"\",\"\",ScriptText!$B$1&CHAR(10)&ScriptText!$D$1)","v":""},{"$f":"IF(OrigTable!E1705=\"\",\"\",TEXT(OrigTable!E1705,\"00\"))","v":""},{"$f":"IF(OrigTable!E1705=\"\",\"\",ScriptText!$E$1&CHAR(10)&ScriptText!$C$1)","v":""},{"$f":"IF(OrigTable!F1705=\"\",\"\",ScriptText!$B$1&CHAR(10)&ScriptText!$D$1)","v":""},{"$f":"IF(OrigTable!F1705=\"\",\"\",TEXT(OrigTable!F1705,\"00\"))","v":""},{"$f":"IF(OrigTable!F1705=\"\",\"\",ScriptText!$E$1&CHAR(10)&ScriptText!$C$1)","v":""},{"$f":"IF(OrigTable!G1705=\"\",\"\",ScriptText!$B$1&CHAR(10)&ScriptText!$D$1)","v":""},{"$f":"IF(OrigTable!G1705=\"\",\"\",TEXT(OrigTable!G1705,\"00\"))","v":""},{"$f":"IF(OrigTable!G1705=\"\",\"\",ScriptText!$E$1&CHAR(10)&ScriptText!$C$1)","v":""},0]
["\n\n\n",{"$f":"IF(OrigTable!A1706=\"\",\"\",ScriptText!$B$1&CHAR(10)&ScriptText!$D$1)","v":""},{"$f":"IF(OrigTable!A1706=\"\",\"\",TEXT(OrigTable!A1706,\"00\"))","v":""},{"$f":"IF(OrigTable!A1706=\"\",\"\",ScriptText!$E$1&CHAR(10)&ScriptText!$C$1)","v":""},{"$f":"IF(OrigTable!B1706=\"\",\"\",ScriptText!$B$1&CHAR(10)&ScriptText!$D$1)","v":""},{"$f":"IF(OrigTable!B1706=\"\",\"\",TEXT(OrigTable!B1706,\"00\"))","v":""},{"$f":"IF(OrigTable!B1706=\"\",\"\",ScriptText!$E$1&CHAR(10)&ScriptText!C1701)","v":""},{"$f":"IF(OrigTable!C1706=\"\",\"\",ScriptText!$B$1&CHAR(10)&ScriptText!$D$1)","v":""},{"$f":"IF(OrigTable!C1706=\"\",\"\",IF(LEN(OrigTable!C1706)>255,LEFT(OrigTable!C1706,250)&\". . .\",OrigTable!C1706))","v":""},{"$f":"IF(OrigTable!C1706=\"\",\"\",ScriptText!$E$1&CHAR(10)&ScriptText!$C$1)","v":""},{"$f":"IF(OrigTable!D1706=\"\",\"\",ScriptText!$B$1&CHAR(10)&ScriptText!$D$1)","v":""},{"$f":"IF(OrigTable!D1706=\"\",\"\",TEXT(OrigTable!D1706,\"00\"))","v":""},{"$f":"IF(OrigTable!D1706=\"\",\"\",ScriptText!$E$1&CHAR(10)&ScriptText!$C$1)","v":""},{"$f":"IF(OrigTable!E1706=\"\",\"\",ScriptText!$B$1&CHAR(10)&ScriptText!$D$1)","v":""},{"$f":"IF(OrigTable!E1706=\"\",\"\",TEXT(OrigTable!E1706,\"00\"))","v":""},{"$f":"IF(OrigTable!E1706=\"\",\"\",ScriptText!$E$1&CHAR(10)&ScriptText!$C$1)","v":""},{"$f":"IF(OrigTable!F1706=\"\",\"\",ScriptText!$B$1&CHAR(10)&ScriptText!$D$1)","v":""},{"$f":"IF(OrigTable!F1706=\"\",\"\",TEXT(OrigTable!F1706,\"00\"))","v":""},{"$f":"IF(OrigTable!F1706=\"\",\"\",ScriptText!$E$1&CHAR(10)&ScriptText!$C$1)","v":""},{"$f":"IF(OrigTable!G1706=\"\",\"\",ScriptText!$B$1&CHAR(10)&ScriptText!$D$1)","v":""},{"$f":"IF(OrigTable!G1706=\"\",\"\",TEXT(OrigTable!G1706,\"00\"))","v":""},{"$f":"IF(OrigTable!G1706=\"\",\"\",ScriptText!$E$1&CHAR(10)&ScriptText!$C$1)","v":""},0]
["\n\n\n",{"$f":"IF(OrigTable!A1707=\"\",\"\",ScriptText!$B$1&CHAR(10)&ScriptText!$D$1)","v":""},{"$f":"IF(OrigTable!A1707=\"\",\"\",TEXT(OrigTable!A1707,\"00\"))","v":""},{"$f":"IF(OrigTable!A1707=\"\",\"\",ScriptText!$E$1&CHAR(10)&ScriptText!$C$1)","v":""},{"$f":"IF(OrigTable!B1707=\"\",\"\",ScriptText!$B$1&CHAR(10)&ScriptText!$D$1)","v":""},{"$f":"IF(OrigTable!B1707=\"\",\"\",TEXT(OrigTable!B1707,\"00\"))","v":""},{"$f":"IF(OrigTable!B1707=\"\",\"\",ScriptText!$E$1&CHAR(10)&ScriptText!C1702)","v":""},{"$f":"IF(OrigTable!C1707=\"\",\"\",ScriptText!$B$1&CHAR(10)&ScriptText!$D$1)","v":""},{"$f":"IF(OrigTable!C1707=\"\",\"\",IF(LEN(OrigTable!C1707)>255,LEFT(OrigTable!C1707,250)&\". . .\",OrigTable!C1707))","v":""},{"$f":"IF(OrigTable!C1707=\"\",\"\",ScriptText!$E$1&CHAR(10)&ScriptText!$C$1)","v":""},{"$f":"IF(OrigTable!D1707=\"\",\"\",ScriptText!$B$1&CHAR(10)&ScriptText!$D$1)","v":""},{"$f":"IF(OrigTable!D1707=\"\",\"\",TEXT(OrigTable!D1707,\"00\"))","v":""},{"$f":"IF(OrigTable!D1707=\"\",\"\",ScriptText!$E$1&CHAR(10)&ScriptText!$C$1)","v":""},{"$f":"IF(OrigTable!E1707=\"\",\"\",ScriptText!$B$1&CHAR(10)&ScriptText!$D$1)","v":""},{"$f":"IF(OrigTable!E1707=\"\",\"\",TEXT(OrigTable!E1707,\"00\"))","v":""},{"$f":"IF(OrigTable!E1707=\"\",\"\",ScriptText!$E$1&CHAR(10)&ScriptText!$C$1)","v":""},{"$f":"IF(OrigTable!F1707=\"\",\"\",ScriptText!$B$1&CHAR(10)&ScriptText!$D$1)","v":""},{"$f":"IF(OrigTable!F1707=\"\",\"\",TEXT(OrigTable!F1707,\"00\"))","v":""},{"$f":"IF(OrigTable!F1707=\"\",\"\",ScriptText!$E$1&CHAR(10)&ScriptText!$C$1)","v":""},{"$f":"IF(OrigTable!G1707=\"\",\"\",ScriptText!$B$1&CHAR(10)&ScriptText!$D$1)","v":""},{"$f":"IF(OrigTable!G1707=\"\",\"\",TEXT(OrigTable!G1707,\"00\"))","v":""},{"$f":"IF(OrigTable!G1707=\"\",\"\",ScriptText!$E$1&CHAR(10)&ScriptText!$C$1)","v":""},0]
["\n\n\n",{"$f":"IF(OrigTable!A1708=\"\",\"\",ScriptText!$B$1&CHAR(10)&ScriptText!$D$1)","v":""},{"$f":"IF(OrigTable!A1708=\"\",\"\",TEXT(OrigTable!A1708,\"00\"))","v":""},{"$f":"IF(OrigTable!A1708=\"\",\"\",ScriptText!$E$1&CHAR(10)&ScriptText!$C$1)","v":""},{"$f":"IF(OrigTable!B1708=\"\",\"\",ScriptText!$B$1&CHAR(10)&ScriptText!$D$1)","v":""},{"$f":"IF(OrigTable!B1708=\"\",\"\",TEXT(OrigTable!B1708,\"00\"))","v":""},{"$f":"IF(OrigTable!B1708=\"\",\"\",ScriptText!$E$1&CHAR(10)&ScriptText!C1703)","v":""},{"$f":"IF(OrigTable!C1708=\"\",\"\",ScriptText!$B$1&CHAR(10)&ScriptText!$D$1)","v":""},{"$f":"IF(OrigTable!C1708=\"\",\"\",IF(LEN(OrigTable!C1708)>255,LEFT(OrigTable!C1708,250)&\". . .\",OrigTable!C1708))","v":""},{"$f":"IF(OrigTable!C1708=\"\",\"\",ScriptText!$E$1&CHAR(10)&ScriptText!$C$1)","v":""},{"$f":"IF(OrigTable!D1708=\"\",\"\",ScriptText!$B$1&CHAR(10)&ScriptText!$D$1)","v":""},{"$f":"IF(OrigTable!D1708=\"\",\"\",TEXT(OrigTable!D1708,\"00\"))","v":""},{"$f":"IF(OrigTable!D1708=\"\",\"\",ScriptText!$E$1&CHAR(10)&ScriptText!$C$1)","v":""},{"$f":"IF(OrigTable!E1708=\"\",\"\",ScriptText!$B$1&CHAR(10)&ScriptText!$D$1)","v":""},{"$f":"IF(OrigTable!E1708=\"\",\"\",TEXT(OrigTable!E1708,\"00\"))","v":""},{"$f":"IF(OrigTable!E1708=\"\",\"\",ScriptText!$E$1&CHAR(10)&ScriptText!$C$1)","v":""},{"$f":"IF(OrigTable!F1708=\"\",\"\",ScriptText!$B$1&CHAR(10)&ScriptText!$D$1)","v":""},{"$f":"IF(OrigTable!F1708=\"\",\"\",TEXT(OrigTable!F1708,\"00\"))","v":""},{"$f":"IF(OrigTable!F1708=\"\",\"\",ScriptText!$E$1&CHAR(10)&ScriptText!$C$1)","v":""},{"$f":"IF(OrigTable!G1708=\"\",\"\",ScriptText!$B$1&CHAR(10)&ScriptText!$D$1)","v":""},{"$f":"IF(OrigTable!G1708=\"\",\"\",TEXT(OrigTable!G1708,\"00\"))","v":""},{"$f":"IF(OrigTable!G1708=\"\",\"\",ScriptText!$E$1&CHAR(10)&ScriptText!$C$1)","v":""},0]
["\n\n\n",{"$f":"IF(OrigTable!A1709=\"\",\"\",ScriptText!$B$1&CHAR(10)&ScriptText!$D$1)","v":""},{"$f":"IF(OrigTable!A1709=\"\",\"\",TEXT(OrigTable!A1709,\"00\"))","v":""},{"$f":"IF(OrigTable!A1709=\"\",\"\",ScriptText!$E$1&CHAR(10)&ScriptText!$C$1)","v":""},{"$f":"IF(OrigTable!B1709=\"\",\"\",ScriptText!$B$1&CHAR(10)&ScriptText!$D$1)","v":""},{"$f":"IF(OrigTable!B1709=\"\",\"\",TEXT(OrigTable!B1709,\"00\"))","v":""},{"$f":"IF(OrigTable!B1709=\"\",\"\",ScriptText!$E$1&CHAR(10)&ScriptText!C1704)","v":""},{"$f":"IF(OrigTable!C1709=\"\",\"\",ScriptText!$B$1&CHAR(10)&ScriptText!$D$1)","v":""},{"$f":"IF(OrigTable!C1709=\"\",\"\",IF(LEN(OrigTable!C1709)>255,LEFT(OrigTable!C1709,250)&\". . .\",OrigTable!C1709))","v":""},{"$f":"IF(OrigTable!C1709=\"\",\"\",ScriptText!$E$1&CHAR(10)&ScriptText!$C$1)","v":""},{"$f":"IF(OrigTable!D1709=\"\",\"\",ScriptText!$B$1&CHAR(10)&ScriptText!$D$1)","v":""},{"$f":"IF(OrigTable!D1709=\"\",\"\",TEXT(OrigTable!D1709,\"00\"))","v":""},{"$f":"IF(OrigTable!D1709=\"\",\"\",ScriptText!$E$1&CHAR(10)&ScriptText!$C$1)","v":""},{"$f":"IF(OrigTable!E1709=\"\",\"\",ScriptText!$B$1&CHAR(10)&ScriptText!$D$1)","v":""},{"$f":"IF(OrigTable!E1709=\"\",\"\",TEXT(OrigTable!E1709,\"00\"))","v":""},{"$f":"IF(OrigTable!E1709=\"\",\"\",ScriptText!$E$1&CHAR(10)&ScriptText!$C$1)","v":""},{"$f":"IF(OrigTable!F1709=\"\",\"\",ScriptText!$B$1&CHAR(10)&ScriptText!$D$1)","v":""},{"$f":"IF(OrigTable!F1709=\"\",\"\",TEXT(OrigTable!F1709,\"00\"))","v":""},{"$f":"IF(OrigTable!F1709=\"\",\"\",ScriptText!$E$1&CHAR(10)&ScriptText!$C$1)","v":""},{"$f":"IF(OrigTable!G1709=\"\",\"\",ScriptText!$B$1&CHAR(10)&ScriptText!$D$1)","v":""},{"$f":"IF(OrigTable!G1709=\"\",\"\",TEXT(OrigTable!G1709,\"00\"))","v":""},{"$f":"IF(OrigTable!G1709=\"\",\"\",ScriptText!$E$1&CHAR(10)&ScriptText!$C$1)","v":""},0]
["\n\n\n",{"$f":"IF(OrigTable!A1710=\"\",\"\",ScriptText!$B$1&CHAR(10)&ScriptText!$D$1)","v":""},{"$f":"IF(OrigTable!A1710=\"\",\"\",TEXT(OrigTable!A1710,\"00\"))","v":""},{"$f":"IF(OrigTable!A1710=\"\",\"\",ScriptText!$E$1&CHAR(10)&ScriptText!$C$1)","v":""},{"$f":"IF(OrigTable!B1710=\"\",\"\",ScriptText!$B$1&CHAR(10)&ScriptText!$D$1)","v":""},{"$f":"IF(OrigTable!B1710=\"\",\"\",TEXT(OrigTable!B1710,\"00\"))","v":""},{"$f":"IF(OrigTable!B1710=\"\",\"\",ScriptText!$E$1&CHAR(10)&ScriptText!C1705)","v":""},{"$f":"IF(OrigTable!C1710=\"\",\"\",ScriptText!$B$1&CHAR(10)&ScriptText!$D$1)","v":""},{"$f":"IF(OrigTable!C1710=\"\",\"\",IF(LEN(OrigTable!C1710)>255,LEFT(OrigTable!C1710,250)&\". . .\",OrigTable!C1710))","v":""},{"$f":"IF(OrigTable!C1710=\"\",\"\",ScriptText!$E$1&CHAR(10)&ScriptText!$C$1)","v":""},{"$f":"IF(OrigTable!D1710=\"\",\"\",ScriptText!$B$1&CHAR(10)&ScriptText!$D$1)","v":""},{"$f":"IF(OrigTable!D1710=\"\",\"\",TEXT(OrigTable!D1710,\"00\"))","v":""},{"$f":"IF(OrigTable!D1710=\"\",\"\",ScriptText!$E$1&CHAR(10)&ScriptText!$C$1)","v":""},{"$f":"IF(OrigTable!E1710=\"\",\"\",ScriptText!$B$1&CHAR(10)&ScriptText!$D$1)","v":""},{"$f":"IF(OrigTable!E1710=\"\",\"\",TEXT(OrigTable!E1710,\"00\"))","v":""},{"$f":"IF(OrigTable!E1710=\"\",\"\",ScriptText!$E$1&CHAR(10)&ScriptText!$C$1)","v":""},{"$f":"IF(OrigTable!F1710=\"\",\"\",ScriptText!$B$1&CHAR(10)&ScriptText!$D$1)","v":""},{"$f":"IF(OrigTable!F1710=\"\",\"\",TEXT(OrigTable!F1710,\"00\"))","v":""},{"$f":"IF(OrigTable!F1710=\"\",\"\",ScriptText!$E$1&CHAR(10)&ScriptText!$C$1)","v":""},{"$f":"IF(OrigTable!G1710=\"\",\"\",ScriptText!$B$1&CHAR(10)&ScriptText!$D$1)","v":""},{"$f":"IF(OrigTable!G1710=\"\",\"\",TEXT(OrigTable!G1710,\"00\"))","v":""},{"$f":"IF(OrigTable!G1710=\"\",\"\",ScriptText!$E$1&CHAR(10)&ScriptText!$C$1)","v":""},0]
["\n\n\n",{"$f":"IF(OrigTable!A1711=\"\",\"\",ScriptText!$B$1&CHAR(10)&ScriptText!$D$1)","v":""},{"$f":"IF(OrigTable!A1711=\"\",\"\",TEXT(OrigTable!A1711,\"00\"))","v":""},{"$f":"IF(OrigTable!A1711=\"\",\"\",ScriptText!$E$1&CHAR(10)&ScriptText!$C$1)","v":""},{"$f":"IF(OrigTable!B1711=\"\",\"\",ScriptText!$B$1&CHAR(10)&ScriptText!$D$1)","v":""},{"$f":"IF(OrigTable!B1711=\"\",\"\",TEXT(OrigTable!B1711,\"00\"))","v":""},{"$f":"IF(OrigTable!B1711=\"\",\"\",ScriptText!$E$1&CHAR(10)&ScriptText!C1706)","v":""},{"$f":"IF(OrigTable!C1711=\"\",\"\",ScriptText!$B$1&CHAR(10)&ScriptText!$D$1)","v":""},{"$f":"IF(OrigTable!C1711=\"\",\"\",IF(LEN(OrigTable!C1711)>255,LEFT(OrigTable!C1711,250)&\". . .\",OrigTable!C1711))","v":""},{"$f":"IF(OrigTable!C1711=\"\",\"\",ScriptText!$E$1&CHAR(10)&ScriptText!$C$1)","v":""},{"$f":"IF(OrigTable!D1711=\"\",\"\",ScriptText!$B$1&CHAR(10)&ScriptText!$D$1)","v":""},{"$f":"IF(OrigTable!D1711=\"\",\"\",TEXT(OrigTable!D1711,\"00\"))","v":""},{"$f":"IF(OrigTable!D1711=\"\",\"\",ScriptText!$E$1&CHAR(10)&ScriptText!$C$1)","v":""},{"$f":"IF(OrigTable!E1711=\"\",\"\",ScriptText!$B$1&CHAR(10)&ScriptText!$D$1)","v":""},{"$f":"IF(OrigTable!E1711=\"\",\"\",TEXT(OrigTable!E1711,\"00\"))","v":""},{"$f":"IF(OrigTable!E1711=\"\",\"\",ScriptText!$E$1&CHAR(10)&ScriptText!$C$1)","v":""},{"$f":"IF(OrigTable!F1711=\"\",\"\",ScriptText!$B$1&CHAR(10)&ScriptText!$D$1)","v":""},{"$f":"IF(OrigTable!F1711=\"\",\"\",TEXT(OrigTable!F1711,\"00\"))","v":""},{"$f":"IF(OrigTable!F1711=\"\",\"\",ScriptText!$E$1&CHAR(10)&ScriptText!$C$1)","v":""},{"$f":"IF(OrigTable!G1711=\"\",\"\",ScriptText!$B$1&CHAR(10)&ScriptText!$D$1)","v":""},{"$f":"IF(OrigTable!G1711=\"\",\"\",TEXT(OrigTable!G1711,\"00\"))","v":""},{"$f":"IF(OrigTable!G1711=\"\",\"\",ScriptText!$E$1&CHAR(10)&ScriptText!$C$1)","v":""},0]
["\n\n\n",{"$f":"IF(OrigTable!A1712=\"\",\"\",ScriptText!$B$1&CHAR(10)&ScriptText!$D$1)","v":""},{"$f":"IF(OrigTable!A1712=\"\",\"\",TEXT(OrigTable!A1712,\"00\"))","v":""},{"$f":"IF(OrigTable!A1712=\"\",\"\",ScriptText!$E$1&CHAR(10)&ScriptText!$C$1)","v":""},{"$f":"IF(OrigTable!B1712=\"\",\"\",ScriptText!$B$1&CHAR(10)&ScriptText!$D$1)","v":""},{"$f":"IF(OrigTable!B1712=\"\",\"\",TEXT(OrigTable!B1712,\"00\"))","v":""},{"$f":"IF(OrigTable!B1712=\"\",\"\",ScriptText!$E$1&CHAR(10)&ScriptText!C1707)","v":""},{"$f":"IF(OrigTable!C1712=\"\",\"\",ScriptText!$B$1&CHAR(10)&ScriptText!$D$1)","v":""},{"$f":"IF(OrigTable!C1712=\"\",\"\",IF(LEN(OrigTable!C1712)>255,LEFT(OrigTable!C1712,250)&\". . .\",OrigTable!C1712))","v":""},{"$f":"IF(OrigTable!C1712=\"\",\"\",ScriptText!$E$1&CHAR(10)&ScriptText!$C$1)","v":""},{"$f":"IF(OrigTable!D1712=\"\",\"\",ScriptText!$B$1&CHAR(10)&ScriptText!$D$1)","v":""},{"$f":"IF(OrigTable!D1712=\"\",\"\",TEXT(OrigTable!D1712,\"00\"))","v":""},{"$f":"IF(OrigTable!D1712=\"\",\"\",ScriptText!$E$1&CHAR(10)&ScriptText!$C$1)","v":""},{"$f":"IF(OrigTable!E1712=\"\",\"\",ScriptText!$B$1&CHAR(10)&ScriptText!$D$1)","v":""},{"$f":"IF(OrigTable!E1712=\"\",\"\",TEXT(OrigTable!E1712,\"00\"))","v":""},{"$f":"IF(OrigTable!E1712=\"\",\"\",ScriptText!$E$1&CHAR(10)&ScriptText!$C$1)","v":""},{"$f":"IF(OrigTable!F1712=\"\",\"\",ScriptText!$B$1&CHAR(10)&ScriptText!$D$1)","v":""},{"$f":"IF(OrigTable!F1712=\"\",\"\",TEXT(OrigTable!F1712,\"00\"))","v":""},{"$f":"IF(OrigTable!F1712=\"\",\"\",ScriptText!$E$1&CHAR(10)&ScriptText!$C$1)","v":""},{"$f":"IF(OrigTable!G1712=\"\",\"\",ScriptText!$B$1&CHAR(10)&ScriptText!$D$1)","v":""},{"$f":"IF(OrigTable!G1712=\"\",\"\",TEXT(OrigTable!G1712,\"00\"))","v":""},{"$f":"IF(OrigTable!G1712=\"\",\"\",ScriptText!$E$1&CHAR(10)&ScriptText!$C$1)","v":""},0]
["\n\n\n",{"$f":"IF(OrigTable!A1713=\"\",\"\",ScriptText!$B$1&CHAR(10)&ScriptText!$D$1)","v":""},{"$f":"IF(OrigTable!A1713=\"\",\"\",TEXT(OrigTable!A1713,\"00\"))","v":""},{"$f":"IF(OrigTable!A1713=\"\",\"\",ScriptText!$E$1&CHAR(10)&ScriptText!$C$1)","v":""},{"$f":"IF(OrigTable!B1713=\"\",\"\",ScriptText!$B$1&CHAR(10)&ScriptText!$D$1)","v":""},{"$f":"IF(OrigTable!B1713=\"\",\"\",TEXT(OrigTable!B1713,\"00\"))","v":""},{"$f":"IF(OrigTable!B1713=\"\",\"\",ScriptText!$E$1&CHAR(10)&ScriptText!C1708)","v":""},{"$f":"IF(OrigTable!C1713=\"\",\"\",ScriptText!$B$1&CHAR(10)&ScriptText!$D$1)","v":""},{"$f":"IF(OrigTable!C1713=\"\",\"\",IF(LEN(OrigTable!C1713)>255,LEFT(OrigTable!C1713,250)&\". . .\",OrigTable!C1713))","v":""},{"$f":"IF(OrigTable!C1713=\"\",\"\",ScriptText!$E$1&CHAR(10)&ScriptText!$C$1)","v":""},{"$f":"IF(OrigTable!D1713=\"\",\"\",ScriptText!$B$1&CHAR(10)&ScriptText!$D$1)","v":""},{"$f":"IF(OrigTable!D1713=\"\",\"\",TEXT(OrigTable!D1713,\"00\"))","v":""},{"$f":"IF(OrigTable!D1713=\"\",\"\",ScriptText!$E$1&CHAR(10)&ScriptText!$C$1)","v":""},{"$f":"IF(OrigTable!E1713=\"\",\"\",ScriptText!$B$1&CHAR(10)&ScriptText!$D$1)","v":""},{"$f":"IF(OrigTable!E1713=\"\",\"\",TEXT(OrigTable!E1713,\"00\"))","v":""},{"$f":"IF(OrigTable!E1713=\"\",\"\",ScriptText!$E$1&CHAR(10)&ScriptText!$C$1)","v":""},{"$f":"IF(OrigTable!F1713=\"\",\"\",ScriptText!$B$1&CHAR(10)&ScriptText!$D$1)","v":""},{"$f":"IF(OrigTable!F1713=\"\",\"\",TEXT(OrigTable!F1713,\"00\"))","v":""},{"$f":"IF(OrigTable!F1713=\"\",\"\",ScriptText!$E$1&CHAR(10)&ScriptText!$C$1)","v":""},{"$f":"IF(OrigTable!G1713=\"\",\"\",ScriptText!$B$1&CHAR(10)&ScriptText!$D$1)","v":""},{"$f":"IF(OrigTable!G1713=\"\",\"\",TEXT(OrigTable!G1713,\"00\"))","v":""},{"$f":"IF(OrigTable!G1713=\"\",\"\",ScriptText!$E$1&CHAR(10)&ScriptText!$C$1)","v":""},0]
["\n\n\n",{"$f":"IF(OrigTable!A1714=\"\",\"\",ScriptText!$B$1&CHAR(10)&ScriptText!$D$1)","v":""},{"$f":"IF(OrigTable!A1714=\"\",\"\",TEXT(OrigTable!A1714,\"00\"))","v":""},{"$f":"IF(OrigTable!A1714=\"\",\"\",ScriptText!$E$1&CHAR(10)&ScriptText!$C$1)","v":""},{"$f":"IF(OrigTable!B1714=\"\",\"\",ScriptText!$B$1&CHAR(10)&ScriptText!$D$1)","v":""},{"$f":"IF(OrigTable!B1714=\"\",\"\",TEXT(OrigTable!B1714,\"00\"))","v":""},{"$f":"IF(OrigTable!B1714=\"\",\"\",ScriptText!$E$1&CHAR(10)&ScriptText!C1709)","v":""},{"$f":"IF(OrigTable!C1714=\"\",\"\",ScriptText!$B$1&CHAR(10)&ScriptText!$D$1)","v":""},{"$f":"IF(OrigTable!C1714=\"\",\"\",IF(LEN(OrigTable!C1714)>255,LEFT(OrigTable!C1714,250)&\". . .\",OrigTable!C1714))","v":""},{"$f":"IF(OrigTable!C1714=\"\",\"\",ScriptText!$E$1&CHAR(10)&ScriptText!$C$1)","v":""},{"$f":"IF(OrigTable!D1714=\"\",\"\",ScriptText!$B$1&CHAR(10)&ScriptText!$D$1)","v":""},{"$f":"IF(OrigTable!D1714=\"\",\"\",TEXT(OrigTable!D1714,\"00\"))","v":""},{"$f":"IF(OrigTable!D1714=\"\",\"\",ScriptText!$E$1&CHAR(10)&ScriptText!$C$1)","v":""},{"$f":"IF(OrigTable!E1714=\"\",\"\",ScriptText!$B$1&CHAR(10)&ScriptText!$D$1)","v":""},{"$f":"IF(OrigTable!E1714=\"\",\"\",TEXT(OrigTable!E1714,\"00\"))","v":""},{"$f":"IF(OrigTable!E1714=\"\",\"\",ScriptText!$E$1&CHAR(10)&ScriptText!$C$1)","v":""},{"$f":"IF(OrigTable!F1714=\"\",\"\",ScriptText!$B$1&CHAR(10)&ScriptText!$D$1)","v":""},{"$f":"IF(OrigTable!F1714=\"\",\"\",TEXT(OrigTable!F1714,\"00\"))","v":""},{"$f":"IF(OrigTable!F1714=\"\",\"\",ScriptText!$E$1&CHAR(10)&ScriptText!$C$1)","v":""},{"$f":"IF(OrigTable!G1714=\"\",\"\",ScriptText!$B$1&CHAR(10)&ScriptText!$D$1)","v":""},{"$f":"IF(OrigTable!G1714=\"\",\"\",TEXT(OrigTable!G1714,\"00\"))","v":""},{"$f":"IF(OrigTable!G1714=\"\",\"\",ScriptText!$E$1&CHAR(10)&ScriptText!$C$1)","v":""},0]
["\n\n\n",{"$f":"IF(OrigTable!A1715=\"\",\"\",ScriptText!$B$1&CHAR(10)&ScriptText!$D$1)","v":""},{"$f":"IF(OrigTable!A1715=\"\",\"\",TEXT(OrigTable!A1715,\"00\"))","v":""},{"$f":"IF(OrigTable!A1715=\"\",\"\",ScriptText!$E$1&CHAR(10)&ScriptText!$C$1)","v":""},{"$f":"IF(OrigTable!B1715=\"\",\"\",ScriptText!$B$1&CHAR(10)&ScriptText!$D$1)","v":""},{"$f":"IF(OrigTable!B1715=\"\",\"\",TEXT(OrigTable!B1715,\"00\"))","v":""},{"$f":"IF(OrigTable!B1715=\"\",\"\",ScriptText!$E$1&CHAR(10)&ScriptText!C1710)","v":""},{"$f":"IF(OrigTable!C1715=\"\",\"\",ScriptText!$B$1&CHAR(10)&ScriptText!$D$1)","v":""},{"$f":"IF(OrigTable!C1715=\"\",\"\",IF(LEN(OrigTable!C1715)>255,LEFT(OrigTable!C1715,250)&\". . .\",OrigTable!C1715))","v":""},{"$f":"IF(OrigTable!C1715=\"\",\"\",ScriptText!$E$1&CHAR(10)&ScriptText!$C$1)","v":""},{"$f":"IF(OrigTable!D1715=\"\",\"\",ScriptText!$B$1&CHAR(10)&ScriptText!$D$1)","v":""},{"$f":"IF(OrigTable!D1715=\"\",\"\",TEXT(OrigTable!D1715,\"00\"))","v":""},{"$f":"IF(OrigTable!D1715=\"\",\"\",ScriptText!$E$1&CHAR(10)&ScriptText!$C$1)","v":""},{"$f":"IF(OrigTable!E1715=\"\",\"\",ScriptText!$B$1&CHAR(10)&ScriptText!$D$1)","v":""},{"$f":"IF(OrigTable!E1715=\"\",\"\",TEXT(OrigTable!E1715,\"00\"))","v":""},{"$f":"IF(OrigTable!E1715=\"\",\"\",ScriptText!$E$1&CHAR(10)&ScriptText!$C$1)","v":""},{"$f":"IF(OrigTable!F1715=\"\",\"\",ScriptText!$B$1&CHAR(10)&ScriptText!$D$1)","v":""},{"$f":"IF(OrigTable!F1715=\"\",\"\",TEXT(OrigTable!F1715,\"00\"))","v":""},{"$f":"IF(OrigTable!F1715=\"\",\"\",ScriptText!$E$1&CHAR(10)&ScriptText!$C$1)","v":""},{"$f":"IF(OrigTable!G1715=\"\",\"\",ScriptText!$B$1&CHAR(10)&ScriptText!$D$1)","v":""},{"$f":"IF(OrigTable!G1715=\"\",\"\",TEXT(OrigTable!G1715,\"00\"))","v":""},{"$f":"IF(OrigTable!G1715=\"\",\"\",ScriptText!$E$1&CHAR(10)&ScriptText!$C$1)","v":""},0]
["\n\n\n",{"$f":"IF(OrigTable!A1716=\"\",\"\",ScriptText!$B$1&CHAR(10)&ScriptText!$D$1)","v":""},{"$f":"IF(OrigTable!A1716=\"\",\"\",TEXT(OrigTable!A1716,\"00\"))","v":""},{"$f":"IF(OrigTable!A1716=\"\",\"\",ScriptText!$E$1&CHAR(10)&ScriptText!$C$1)","v":""},{"$f":"IF(OrigTable!B1716=\"\",\"\",ScriptText!$B$1&CHAR(10)&ScriptText!$D$1)","v":""},{"$f":"IF(OrigTable!B1716=\"\",\"\",TEXT(OrigTable!B1716,\"00\"))","v":""},{"$f":"IF(OrigTable!B1716=\"\",\"\",ScriptText!$E$1&CHAR(10)&ScriptText!C1711)","v":""},{"$f":"IF(OrigTable!C1716=\"\",\"\",ScriptText!$B$1&CHAR(10)&ScriptText!$D$1)","v":""},{"$f":"IF(OrigTable!C1716=\"\",\"\",IF(LEN(OrigTable!C1716)>255,LEFT(OrigTable!C1716,250)&\". . .\",OrigTable!C1716))","v":""},{"$f":"IF(OrigTable!C1716=\"\",\"\",ScriptText!$E$1&CHAR(10)&ScriptText!$C$1)","v":""},{"$f":"IF(OrigTable!D1716=\"\",\"\",ScriptText!$B$1&CHAR(10)&ScriptText!$D$1)","v":""},{"$f":"IF(OrigTable!D1716=\"\",\"\",TEXT(OrigTable!D1716,\"00\"))","v":""},{"$f":"IF(OrigTable!D1716=\"\",\"\",ScriptText!$E$1&CHAR(10)&ScriptText!$C$1)","v":""},{"$f":"IF(OrigTable!E1716=\"\",\"\",ScriptText!$B$1&CHAR(10)&ScriptText!$D$1)","v":""},{"$f":"IF(OrigTable!E1716=\"\",\"\",TEXT(OrigTable!E1716,\"00\"))","v":""},{"$f":"IF(OrigTable!E1716=\"\",\"\",ScriptText!$E$1&CHAR(10)&ScriptText!$C$1)","v":""},{"$f":"IF(OrigTable!F1716=\"\",\"\",ScriptText!$B$1&CHAR(10)&ScriptText!$D$1)","v":""},{"$f":"IF(OrigTable!F1716=\"\",\"\",TEXT(OrigTable!F1716,\"00\"))","v":""},{"$f":"IF(OrigTable!F1716=\"\",\"\",ScriptText!$E$1&CHAR(10)&ScriptText!$C$1)","v":""},{"$f":"IF(OrigTable!G1716=\"\",\"\",ScriptText!$B$1&CHAR(10)&ScriptText!$D$1)","v":""},{"$f":"IF(OrigTable!G1716=\"\",\"\",TEXT(OrigTable!G1716,\"00\"))","v":""},{"$f":"IF(OrigTable!G1716=\"\",\"\",ScriptText!$E$1&CHAR(10)&ScriptText!$C$1)","v":""},0]
["\n\n\n",{"$f":"IF(OrigTable!A1717=\"\",\"\",ScriptText!$B$1&CHAR(10)&ScriptText!$D$1)","v":""},{"$f":"IF(OrigTable!A1717=\"\",\"\",TEXT(OrigTable!A1717,\"00\"))","v":""},{"$f":"IF(OrigTable!A1717=\"\",\"\",ScriptText!$E$1&CHAR(10)&ScriptText!$C$1)","v":""},{"$f":"IF(OrigTable!B1717=\"\",\"\",ScriptText!$B$1&CHAR(10)&ScriptText!$D$1)","v":""},{"$f":"IF(OrigTable!B1717=\"\",\"\",TEXT(OrigTable!B1717,\"00\"))","v":""},{"$f":"IF(OrigTable!B1717=\"\",\"\",ScriptText!$E$1&CHAR(10)&ScriptText!C1712)","v":""},{"$f":"IF(OrigTable!C1717=\"\",\"\",ScriptText!$B$1&CHAR(10)&ScriptText!$D$1)","v":""},{"$f":"IF(OrigTable!C1717=\"\",\"\",IF(LEN(OrigTable!C1717)>255,LEFT(OrigTable!C1717,250)&\". . .\",OrigTable!C1717))","v":""},{"$f":"IF(OrigTable!C1717=\"\",\"\",ScriptText!$E$1&CHAR(10)&ScriptText!$C$1)","v":""},{"$f":"IF(OrigTable!D1717=\"\",\"\",ScriptText!$B$1&CHAR(10)&ScriptText!$D$1)","v":""},{"$f":"IF(OrigTable!D1717=\"\",\"\",TEXT(OrigTable!D1717,\"00\"))","v":""},{"$f":"IF(OrigTable!D1717=\"\",\"\",ScriptText!$E$1&CHAR(10)&ScriptText!$C$1)","v":""},{"$f":"IF(OrigTable!E1717=\"\",\"\",ScriptText!$B$1&CHAR(10)&ScriptText!$D$1)","v":""},{"$f":"IF(OrigTable!E1717=\"\",\"\",TEXT(OrigTable!E1717,\"00\"))","v":""},{"$f":"IF(OrigTable!E1717=\"\",\"\",ScriptText!$E$1&CHAR(10)&ScriptText!$C$1)","v":""},{"$f":"IF(OrigTable!F1717=\"\",\"\",ScriptText!$B$1&CHAR(10)&ScriptText!$D$1)","v":""},{"$f":"IF(OrigTable!F1717=\"\",\"\",TEXT(OrigTable!F1717,\"00\"))","v":""},{"$f":"IF(OrigTable!F1717=\"\",\"\",ScriptText!$E$1&CHAR(10)&ScriptText!$C$1)","v":""},{"$f":"IF(OrigTable!G1717=\"\",\"\",ScriptText!$B$1&CHAR(10)&ScriptText!$D$1)","v":""},{"$f":"IF(OrigTable!G1717=\"\",\"\",TEXT(OrigTable!G1717,\"00\"))","v":""},{"$f":"IF(OrigTable!G1717=\"\",\"\",ScriptText!$E$1&CHAR(10)&ScriptText!$C$1)","v":""},0]
["\n\n\n",{"$f":"IF(OrigTable!A1718=\"\",\"\",ScriptText!$B$1&CHAR(10)&ScriptText!$D$1)","v":""},{"$f":"IF(OrigTable!A1718=\"\",\"\",TEXT(OrigTable!A1718,\"00\"))","v":""},{"$f":"IF(OrigTable!A1718=\"\",\"\",ScriptText!$E$1&CHAR(10)&ScriptText!$C$1)","v":""},{"$f":"IF(OrigTable!B1718=\"\",\"\",ScriptText!$B$1&CHAR(10)&ScriptText!$D$1)","v":""},{"$f":"IF(OrigTable!B1718=\"\",\"\",TEXT(OrigTable!B1718,\"00\"))","v":""},{"$f":"IF(OrigTable!B1718=\"\",\"\",ScriptText!$E$1&CHAR(10)&ScriptText!C1713)","v":""},{"$f":"IF(OrigTable!C1718=\"\",\"\",ScriptText!$B$1&CHAR(10)&ScriptText!$D$1)","v":""},{"$f":"IF(OrigTable!C1718=\"\",\"\",IF(LEN(OrigTable!C1718)>255,LEFT(OrigTable!C1718,250)&\". . .\",OrigTable!C1718))","v":""},{"$f":"IF(OrigTable!C1718=\"\",\"\",ScriptText!$E$1&CHAR(10)&ScriptText!$C$1)","v":""},{"$f":"IF(OrigTable!D1718=\"\",\"\",ScriptText!$B$1&CHAR(10)&ScriptText!$D$1)","v":""},{"$f":"IF(OrigTable!D1718=\"\",\"\",TEXT(OrigTable!D1718,\"00\"))","v":""},{"$f":"IF(OrigTable!D1718=\"\",\"\",ScriptText!$E$1&CHAR(10)&ScriptText!$C$1)","v":""},{"$f":"IF(OrigTable!E1718=\"\",\"\",ScriptText!$B$1&CHAR(10)&ScriptText!$D$1)","v":""},{"$f":"IF(OrigTable!E1718=\"\",\"\",TEXT(OrigTable!E1718,\"00\"))","v":""},{"$f":"IF(OrigTable!E1718=\"\",\"\",ScriptText!$E$1&CHAR(10)&ScriptText!$C$1)","v":""},{"$f":"IF(OrigTable!F1718=\"\",\"\",ScriptText!$B$1&CHAR(10)&ScriptText!$D$1)","v":""},{"$f":"IF(OrigTable!F1718=\"\",\"\",TEXT(OrigTable!F1718,\"00\"))","v":""},{"$f":"IF(OrigTable!F1718=\"\",\"\",ScriptText!$E$1&CHAR(10)&ScriptText!$C$1)","v":""},{"$f":"IF(OrigTable!G1718=\"\",\"\",ScriptText!$B$1&CHAR(10)&ScriptText!$D$1)","v":""},{"$f":"IF(OrigTable!G1718=\"\",\"\",TEXT(OrigTable!G1718,\"00\"))","v":""},{"$f":"IF(OrigTable!G1718=\"\",\"\",ScriptText!$E$1&CHAR(10)&ScriptText!$C$1)","v":""},0]
["\n\n\n",{"$f":"IF(OrigTable!A1719=\"\",\"\",ScriptText!$B$1&CHAR(10)&ScriptText!$D$1)","v":""},{"$f":"IF(OrigTable!A1719=\"\",\"\",TEXT(OrigTable!A1719,\"00\"))","v":""},{"$f":"IF(OrigTable!A1719=\"\",\"\",ScriptText!$E$1&CHAR(10)&ScriptText!$C$1)","v":""},{"$f":"IF(OrigTable!B1719=\"\",\"\",ScriptText!$B$1&CHAR(10)&ScriptText!$D$1)","v":""},{"$f":"IF(OrigTable!B1719=\"\",\"\",TEXT(OrigTable!B1719,\"00\"))","v":""},{"$f":"IF(OrigTable!B1719=\"\",\"\",ScriptText!$E$1&CHAR(10)&ScriptText!C1714)","v":""},{"$f":"IF(OrigTable!C1719=\"\",\"\",ScriptText!$B$1&CHAR(10)&ScriptText!$D$1)","v":""},{"$f":"IF(OrigTable!C1719=\"\",\"\",IF(LEN(OrigTable!C1719)>255,LEFT(OrigTable!C1719,250)&\". . .\",OrigTable!C1719))","v":""},{"$f":"IF(OrigTable!C1719=\"\",\"\",ScriptText!$E$1&CHAR(10)&ScriptText!$C$1)","v":""},{"$f":"IF(OrigTable!D1719=\"\",\"\",ScriptText!$B$1&CHAR(10)&ScriptText!$D$1)","v":""},{"$f":"IF(OrigTable!D1719=\"\",\"\",TEXT(OrigTable!D1719,\"00\"))","v":""},{"$f":"IF(OrigTable!D1719=\"\",\"\",ScriptText!$E$1&CHAR(10)&ScriptText!$C$1)","v":""},{"$f":"IF(OrigTable!E1719=\"\",\"\",ScriptText!$B$1&CHAR(10)&ScriptText!$D$1)","v":""},{"$f":"IF(OrigTable!E1719=\"\",\"\",TEXT(OrigTable!E1719,\"00\"))","v":""},{"$f":"IF(OrigTable!E1719=\"\",\"\",ScriptText!$E$1&CHAR(10)&ScriptText!$C$1)","v":""},{"$f":"IF(OrigTable!F1719=\"\",\"\",ScriptText!$B$1&CHAR(10)&ScriptText!$D$1)","v":""},{"$f":"IF(OrigTable!F1719=\"\",\"\",TEXT(OrigTable!F1719,\"00\"))","v":""},{"$f":"IF(OrigTable!F1719=\"\",\"\",ScriptText!$E$1&CHAR(10)&ScriptText!$C$1)","v":""},{"$f":"IF(OrigTable!G1719=\"\",\"\",ScriptText!$B$1&CHAR(10)&ScriptText!$D$1)","v":""},{"$f":"IF(OrigTable!G1719=\"\",\"\",TEXT(OrigTable!G1719,\"00\"))","v":""},{"$f":"IF(OrigTable!G1719=\"\",\"\",ScriptText!$E$1&CHAR(10)&ScriptText!$C$1)","v":""},0]
["\n\n\n",{"$f":"IF(OrigTable!A1720=\"\",\"\",ScriptText!$B$1&CHAR(10)&ScriptText!$D$1)","v":""},{"$f":"IF(OrigTable!A1720=\"\",\"\",TEXT(OrigTable!A1720,\"00\"))","v":""},{"$f":"IF(OrigTable!A1720=\"\",\"\",ScriptText!$E$1&CHAR(10)&ScriptText!$C$1)","v":""},{"$f":"IF(OrigTable!B1720=\"\",\"\",ScriptText!$B$1&CHAR(10)&ScriptText!$D$1)","v":""},{"$f":"IF(OrigTable!B1720=\"\",\"\",TEXT(OrigTable!B1720,\"00\"))","v":""},{"$f":"IF(OrigTable!B1720=\"\",\"\",ScriptText!$E$1&CHAR(10)&ScriptText!C1715)","v":""},{"$f":"IF(OrigTable!C1720=\"\",\"\",ScriptText!$B$1&CHAR(10)&ScriptText!$D$1)","v":""},{"$f":"IF(OrigTable!C1720=\"\",\"\",IF(LEN(OrigTable!C1720)>255,LEFT(OrigTable!C1720,250)&\". . .\",OrigTable!C1720))","v":""},{"$f":"IF(OrigTable!C1720=\"\",\"\",ScriptText!$E$1&CHAR(10)&ScriptText!$C$1)","v":""},{"$f":"IF(OrigTable!D1720=\"\",\"\",ScriptText!$B$1&CHAR(10)&ScriptText!$D$1)","v":""},{"$f":"IF(OrigTable!D1720=\"\",\"\",TEXT(OrigTable!D1720,\"00\"))","v":""},{"$f":"IF(OrigTable!D1720=\"\",\"\",ScriptText!$E$1&CHAR(10)&ScriptText!$C$1)","v":""},{"$f":"IF(OrigTable!E1720=\"\",\"\",ScriptText!$B$1&CHAR(10)&ScriptText!$D$1)","v":""},{"$f":"IF(OrigTable!E1720=\"\",\"\",TEXT(OrigTable!E1720,\"00\"))","v":""},{"$f":"IF(OrigTable!E1720=\"\",\"\",ScriptText!$E$1&CHAR(10)&ScriptText!$C$1)","v":""},{"$f":"IF(OrigTable!F1720=\"\",\"\",ScriptText!$B$1&CHAR(10)&ScriptText!$D$1)","v":""},{"$f":"IF(OrigTable!F1720=\"\",\"\",TEXT(OrigTable!F1720,\"00\"))","v":""},{"$f":"IF(OrigTable!F1720=\"\",\"\",ScriptText!$E$1&CHAR(10)&ScriptText!$C$1)","v":""},{"$f":"IF(OrigTable!G1720=\"\",\"\",ScriptText!$B$1&CHAR(10)&ScriptText!$D$1)","v":""},{"$f":"IF(OrigTable!G1720=\"\",\"\",TEXT(OrigTable!G1720,\"00\"))","v":""},{"$f":"IF(OrigTable!G1720=\"\",\"\",ScriptText!$E$1&CHAR(10)&ScriptText!$C$1)","v":""},0]
["\n\n\n",{"$f":"IF(OrigTable!A1721=\"\",\"\",ScriptText!$B$1&CHAR(10)&ScriptText!$D$1)","v":""},{"$f":"IF(OrigTable!A1721=\"\",\"\",TEXT(OrigTable!A1721,\"00\"))","v":""},{"$f":"IF(OrigTable!A1721=\"\",\"\",ScriptText!$E$1&CHAR(10)&ScriptText!$C$1)","v":""},{"$f":"IF(OrigTable!B1721=\"\",\"\",ScriptText!$B$1&CHAR(10)&ScriptText!$D$1)","v":""},{"$f":"IF(OrigTable!B1721=\"\",\"\",TEXT(OrigTable!B1721,\"00\"))","v":""},{"$f":"IF(OrigTable!B1721=\"\",\"\",ScriptText!$E$1&CHAR(10)&ScriptText!C1716)","v":""},{"$f":"IF(OrigTable!C1721=\"\",\"\",ScriptText!$B$1&CHAR(10)&ScriptText!$D$1)","v":""},{"$f":"IF(OrigTable!C1721=\"\",\"\",IF(LEN(OrigTable!C1721)>255,LEFT(OrigTable!C1721,250)&\". . .\",OrigTable!C1721))","v":""},{"$f":"IF(OrigTable!C1721=\"\",\"\",ScriptText!$E$1&CHAR(10)&ScriptText!$C$1)","v":""},{"$f":"IF(OrigTable!D1721=\"\",\"\",ScriptText!$B$1&CHAR(10)&ScriptText!$D$1)","v":""},{"$f":"IF(OrigTable!D1721=\"\",\"\",TEXT(OrigTable!D1721,\"00\"))","v":""},{"$f":"IF(OrigTable!D1721=\"\",\"\",ScriptText!$E$1&CHAR(10)&ScriptText!$C$1)","v":""},{"$f":"IF(OrigTable!E1721=\"\",\"\",ScriptText!$B$1&CHAR(10)&ScriptText!$D$1)","v":""},{"$f":"IF(OrigTable!E1721=\"\",\"\",TEXT(OrigTable!E1721,\"00\"))","v":""},{"$f":"IF(OrigTable!E1721=\"\",\"\",ScriptText!$E$1&CHAR(10)&ScriptText!$C$1)","v":""},{"$f":"IF(OrigTable!F1721=\"\",\"\",ScriptText!$B$1&CHAR(10)&ScriptText!$D$1)","v":""},{"$f":"IF(OrigTable!F1721=\"\",\"\",TEXT(OrigTable!F1721,\"00\"))","v":""},{"$f":"IF(OrigTable!F1721=\"\",\"\",ScriptText!$E$1&CHAR(10)&ScriptText!$C$1)","v":""},{"$f":"IF(OrigTable!G1721=\"\",\"\",ScriptText!$B$1&CHAR(10)&ScriptText!$D$1)","v":""},{"$f":"IF(OrigTable!G1721=\"\",\"\",TEXT(OrigTable!G1721,\"00\"))","v":""},{"$f":"IF(OrigTable!G1721=\"\",\"\",ScriptText!$E$1&CHAR(10)&ScriptText!$C$1)","v":""},0]
["\n\n\n",{"$f":"IF(OrigTable!A1722=\"\",\"\",ScriptText!$B$1&CHAR(10)&ScriptText!$D$1)","v":""},{"$f":"IF(OrigTable!A1722=\"\",\"\",TEXT(OrigTable!A1722,\"00\"))","v":""},{"$f":"IF(OrigTable!A1722=\"\",\"\",ScriptText!$E$1&CHAR(10)&ScriptText!$C$1)","v":""},{"$f":"IF(OrigTable!B1722=\"\",\"\",ScriptText!$B$1&CHAR(10)&ScriptText!$D$1)","v":""},{"$f":"IF(OrigTable!B1722=\"\",\"\",TEXT(OrigTable!B1722,\"00\"))","v":""},{"$f":"IF(OrigTable!B1722=\"\",\"\",ScriptText!$E$1&CHAR(10)&ScriptText!C1717)","v":""},{"$f":"IF(OrigTable!C1722=\"\",\"\",ScriptText!$B$1&CHAR(10)&ScriptText!$D$1)","v":""},{"$f":"IF(OrigTable!C1722=\"\",\"\",IF(LEN(OrigTable!C1722)>255,LEFT(OrigTable!C1722,250)&\". . .\",OrigTable!C1722))","v":""},{"$f":"IF(OrigTable!C1722=\"\",\"\",ScriptText!$E$1&CHAR(10)&ScriptText!$C$1)","v":""},{"$f":"IF(OrigTable!D1722=\"\",\"\",ScriptText!$B$1&CHAR(10)&ScriptText!$D$1)","v":""},{"$f":"IF(OrigTable!D1722=\"\",\"\",TEXT(OrigTable!D1722,\"00\"))","v":""},{"$f":"IF(OrigTable!D1722=\"\",\"\",ScriptText!$E$1&CHAR(10)&ScriptText!$C$1)","v":""},{"$f":"IF(OrigTable!E1722=\"\",\"\",ScriptText!$B$1&CHAR(10)&ScriptText!$D$1)","v":""},{"$f":"IF(OrigTable!E1722=\"\",\"\",TEXT(OrigTable!E1722,\"00\"))","v":""},{"$f":"IF(OrigTable!E1722=\"\",\"\",ScriptText!$E$1&CHAR(10)&ScriptText!$C$1)","v":""},{"$f":"IF(OrigTable!F1722=\"\",\"\",ScriptText!$B$1&CHAR(10)&ScriptText!$D$1)","v":""},{"$f":"IF(OrigTable!F1722=\"\",\"\",TEXT(OrigTable!F1722,\"00\"))","v":""},{"$f":"IF(OrigTable!F1722=\"\",\"\",ScriptText!$E$1&CHAR(10)&ScriptText!$C$1)","v":""},{"$f":"IF(OrigTable!G1722=\"\",\"\",ScriptText!$B$1&CHAR(10)&ScriptText!$D$1)","v":""},{"$f":"IF(OrigTable!G1722=\"\",\"\",TEXT(OrigTable!G1722,\"00\"))","v":""},{"$f":"IF(OrigTable!G1722=\"\",\"\",ScriptText!$E$1&CHAR(10)&ScriptText!$C$1)","v":""},0]
["\n\n\n",{"$f":"IF(OrigTable!A1723=\"\",\"\",ScriptText!$B$1&CHAR(10)&ScriptText!$D$1)","v":""},{"$f":"IF(OrigTable!A1723=\"\",\"\",TEXT(OrigTable!A1723,\"00\"))","v":""},{"$f":"IF(OrigTable!A1723=\"\",\"\",ScriptText!$E$1&CHAR(10)&ScriptText!$C$1)","v":""},{"$f":"IF(OrigTable!B1723=\"\",\"\",ScriptText!$B$1&CHAR(10)&ScriptText!$D$1)","v":""},{"$f":"IF(OrigTable!B1723=\"\",\"\",TEXT(OrigTable!B1723,\"00\"))","v":""},{"$f":"IF(OrigTable!B1723=\"\",\"\",ScriptText!$E$1&CHAR(10)&ScriptText!C1718)","v":""},{"$f":"IF(OrigTable!C1723=\"\",\"\",ScriptText!$B$1&CHAR(10)&ScriptText!$D$1)","v":""},{"$f":"IF(OrigTable!C1723=\"\",\"\",IF(LEN(OrigTable!C1723)>255,LEFT(OrigTable!C1723,250)&\". . .\",OrigTable!C1723))","v":""},{"$f":"IF(OrigTable!C1723=\"\",\"\",ScriptText!$E$1&CHAR(10)&ScriptText!$C$1)","v":""},{"$f":"IF(OrigTable!D1723=\"\",\"\",ScriptText!$B$1&CHAR(10)&ScriptText!$D$1)","v":""},{"$f":"IF(OrigTable!D1723=\"\",\"\",TEXT(OrigTable!D1723,\"00\"))","v":""},{"$f":"IF(OrigTable!D1723=\"\",\"\",ScriptText!$E$1&CHAR(10)&ScriptText!$C$1)","v":""},{"$f":"IF(OrigTable!E1723=\"\",\"\",ScriptText!$B$1&CHAR(10)&ScriptText!$D$1)","v":""},{"$f":"IF(OrigTable!E1723=\"\",\"\",TEXT(OrigTable!E1723,\"00\"))","v":""},{"$f":"IF(OrigTable!E1723=\"\",\"\",ScriptText!$E$1&CHAR(10)&ScriptText!$C$1)","v":""},{"$f":"IF(OrigTable!F1723=\"\",\"\",ScriptText!$B$1&CHAR(10)&ScriptText!$D$1)","v":""},{"$f":"IF(OrigTable!F1723=\"\",\"\",TEXT(OrigTable!F1723,\"00\"))","v":""},{"$f":"IF(OrigTable!F1723=\"\",\"\",ScriptText!$E$1&CHAR(10)&ScriptText!$C$1)","v":""},{"$f":"IF(OrigTable!G1723=\"\",\"\",ScriptText!$B$1&CHAR(10)&ScriptText!$D$1)","v":""},{"$f":"IF(OrigTable!G1723=\"\",\"\",TEXT(OrigTable!G1723,\"00\"))","v":""},{"$f":"IF(OrigTable!G1723=\"\",\"\",ScriptText!$E$1&CHAR(10)&ScriptText!$C$1)","v":""},0]
["\n\n\n",{"$f":"IF(OrigTable!A1724=\"\",\"\",ScriptText!$B$1&CHAR(10)&ScriptText!$D$1)","v":""},{"$f":"IF(OrigTable!A1724=\"\",\"\",TEXT(OrigTable!A1724,\"00\"))","v":""},{"$f":"IF(OrigTable!A1724=\"\",\"\",ScriptText!$E$1&CHAR(10)&ScriptText!$C$1)","v":""},{"$f":"IF(OrigTable!B1724=\"\",\"\",ScriptText!$B$1&CHAR(10)&ScriptText!$D$1)","v":""},{"$f":"IF(OrigTable!B1724=\"\",\"\",TEXT(OrigTable!B1724,\"00\"))","v":""},{"$f":"IF(OrigTable!B1724=\"\",\"\",ScriptText!$E$1&CHAR(10)&ScriptText!C1719)","v":""},{"$f":"IF(OrigTable!C1724=\"\",\"\",ScriptText!$B$1&CHAR(10)&ScriptText!$D$1)","v":""},{"$f":"IF(OrigTable!C1724=\"\",\"\",IF(LEN(OrigTable!C1724)>255,LEFT(OrigTable!C1724,250)&\". . .\",OrigTable!C1724))","v":""},{"$f":"IF(OrigTable!C1724=\"\",\"\",ScriptText!$E$1&CHAR(10)&ScriptText!$C$1)","v":""},{"$f":"IF(OrigTable!D1724=\"\",\"\",ScriptText!$B$1&CHAR(10)&ScriptText!$D$1)","v":""},{"$f":"IF(OrigTable!D1724=\"\",\"\",TEXT(OrigTable!D1724,\"00\"))","v":""},{"$f":"IF(OrigTable!D1724=\"\",\"\",ScriptText!$E$1&CHAR(10)&ScriptText!$C$1)","v":""},{"$f":"IF(OrigTable!E1724=\"\",\"\",ScriptText!$B$1&CHAR(10)&ScriptText!$D$1)","v":""},{"$f":"IF(OrigTable!E1724=\"\",\"\",TEXT(OrigTable!E1724,\"00\"))","v":""},{"$f":"IF(OrigTable!E1724=\"\",\"\",ScriptText!$E$1&CHAR(10)&ScriptText!$C$1)","v":""},{"$f":"IF(OrigTable!F1724=\"\",\"\",ScriptText!$B$1&CHAR(10)&ScriptText!$D$1)","v":""},{"$f":"IF(OrigTable!F1724=\"\",\"\",TEXT(OrigTable!F1724,\"00\"))","v":""},{"$f":"IF(OrigTable!F1724=\"\",\"\",ScriptText!$E$1&CHAR(10)&ScriptText!$C$1)","v":""},{"$f":"IF(OrigTable!G1724=\"\",\"\",ScriptText!$B$1&CHAR(10)&ScriptText!$D$1)","v":""},{"$f":"IF(OrigTable!G1724=\"\",\"\",TEXT(OrigTable!G1724,\"00\"))","v":""},{"$f":"IF(OrigTable!G1724=\"\",\"\",ScriptText!$E$1&CHAR(10)&ScriptText!$C$1)","v":""},0]
["\n\n\n",{"$f":"IF(OrigTable!A1725=\"\",\"\",ScriptText!$B$1&CHAR(10)&ScriptText!$D$1)","v":""},{"$f":"IF(OrigTable!A1725=\"\",\"\",TEXT(OrigTable!A1725,\"00\"))","v":""},{"$f":"IF(OrigTable!A1725=\"\",\"\",ScriptText!$E$1&CHAR(10)&ScriptText!$C$1)","v":""},{"$f":"IF(OrigTable!B1725=\"\",\"\",ScriptText!$B$1&CHAR(10)&ScriptText!$D$1)","v":""},{"$f":"IF(OrigTable!B1725=\"\",\"\",TEXT(OrigTable!B1725,\"00\"))","v":""},{"$f":"IF(OrigTable!B1725=\"\",\"\",ScriptText!$E$1&CHAR(10)&ScriptText!C1720)","v":""},{"$f":"IF(OrigTable!C1725=\"\",\"\",ScriptText!$B$1&CHAR(10)&ScriptText!$D$1)","v":""},{"$f":"IF(OrigTable!C1725=\"\",\"\",IF(LEN(OrigTable!C1725)>255,LEFT(OrigTable!C1725,250)&\". . .\",OrigTable!C1725))","v":""},{"$f":"IF(OrigTable!C1725=\"\",\"\",ScriptText!$E$1&CHAR(10)&ScriptText!$C$1)","v":""},{"$f":"IF(OrigTable!D1725=\"\",\"\",ScriptText!$B$1&CHAR(10)&ScriptText!$D$1)","v":""},{"$f":"IF(OrigTable!D1725=\"\",\"\",TEXT(OrigTable!D1725,\"00\"))","v":""},{"$f":"IF(OrigTable!D1725=\"\",\"\",ScriptText!$E$1&CHAR(10)&ScriptText!$C$1)","v":""},{"$f":"IF(OrigTable!E1725=\"\",\"\",ScriptText!$B$1&CHAR(10)&ScriptText!$D$1)","v":""},{"$f":"IF(OrigTable!E1725=\"\",\"\",TEXT(OrigTable!E1725,\"00\"))","v":""},{"$f":"IF(OrigTable!E1725=\"\",\"\",ScriptText!$E$1&CHAR(10)&ScriptText!$C$1)","v":""},{"$f":"IF(OrigTable!F1725=\"\",\"\",ScriptText!$B$1&CHAR(10)&ScriptText!$D$1)","v":""},{"$f":"IF(OrigTable!F1725=\"\",\"\",TEXT(OrigTable!F1725,\"00\"))","v":""},{"$f":"IF(OrigTable!F1725=\"\",\"\",ScriptText!$E$1&CHAR(10)&ScriptText!$C$1)","v":""},{"$f":"IF(OrigTable!G1725=\"\",\"\",ScriptText!$B$1&CHAR(10)&ScriptText!$D$1)","v":""},{"$f":"IF(OrigTable!G1725=\"\",\"\",TEXT(OrigTable!G1725,\"00\"))","v":""},{"$f":"IF(OrigTable!G1725=\"\",\"\",ScriptText!$E$1&CHAR(10)&ScriptText!$C$1)","v":""},0]
["\n\n\n",{"$f":"IF(OrigTable!A1726=\"\",\"\",ScriptText!$B$1&CHAR(10)&ScriptText!$D$1)","v":""},{"$f":"IF(OrigTable!A1726=\"\",\"\",TEXT(OrigTable!A1726,\"00\"))","v":""},{"$f":"IF(OrigTable!A1726=\"\",\"\",ScriptText!$E$1&CHAR(10)&ScriptText!$C$1)","v":""},{"$f":"IF(OrigTable!B1726=\"\",\"\",ScriptText!$B$1&CHAR(10)&ScriptText!$D$1)","v":""},{"$f":"IF(OrigTable!B1726=\"\",\"\",TEXT(OrigTable!B1726,\"00\"))","v":""},{"$f":"IF(OrigTable!B1726=\"\",\"\",ScriptText!$E$1&CHAR(10)&ScriptText!C1721)","v":""},{"$f":"IF(OrigTable!C1726=\"\",\"\",ScriptText!$B$1&CHAR(10)&ScriptText!$D$1)","v":""},{"$f":"IF(OrigTable!C1726=\"\",\"\",IF(LEN(OrigTable!C1726)>255,LEFT(OrigTable!C1726,250)&\". . .\",OrigTable!C1726))","v":""},{"$f":"IF(OrigTable!C1726=\"\",\"\",ScriptText!$E$1&CHAR(10)&ScriptText!$C$1)","v":""},{"$f":"IF(OrigTable!D1726=\"\",\"\",ScriptText!$B$1&CHAR(10)&ScriptText!$D$1)","v":""},{"$f":"IF(OrigTable!D1726=\"\",\"\",TEXT(OrigTable!D1726,\"00\"))","v":""},{"$f":"IF(OrigTable!D1726=\"\",\"\",ScriptText!$E$1&CHAR(10)&ScriptText!$C$1)","v":""},{"$f":"IF(OrigTable!E1726=\"\",\"\",ScriptText!$B$1&CHAR(10)&ScriptText!$D$1)","v":""},{"$f":"IF(OrigTable!E1726=\"\",\"\",TEXT(OrigTable!E1726,\"00\"))","v":""},{"$f":"IF(OrigTable!E1726=\"\",\"\",ScriptText!$E$1&CHAR(10)&ScriptText!$C$1)","v":""},{"$f":"IF(OrigTable!F1726=\"\",\"\",ScriptText!$B$1&CHAR(10)&ScriptText!$D$1)","v":""},{"$f":"IF(OrigTable!F1726=\"\",\"\",TEXT(OrigTable!F1726,\"00\"))","v":""},{"$f":"IF(OrigTable!F1726=\"\",\"\",ScriptText!$E$1&CHAR(10)&ScriptText!$C$1)","v":""},{"$f":"IF(OrigTable!G1726=\"\",\"\",ScriptText!$B$1&CHAR(10)&ScriptText!$D$1)","v":""},{"$f":"IF(OrigTable!G1726=\"\",\"\",TEXT(OrigTable!G1726,\"00\"))","v":""},{"$f":"IF(OrigTable!G1726=\"\",\"\",ScriptText!$E$1&CHAR(10)&ScriptText!$C$1)","v":""},0]
["\n\n\n",{"$f":"IF(OrigTable!A1727=\"\",\"\",ScriptText!$B$1&CHAR(10)&ScriptText!$D$1)","v":""},{"$f":"IF(OrigTable!A1727=\"\",\"\",TEXT(OrigTable!A1727,\"00\"))","v":""},{"$f":"IF(OrigTable!A1727=\"\",\"\",ScriptText!$E$1&CHAR(10)&ScriptText!$C$1)","v":""},{"$f":"IF(OrigTable!B1727=\"\",\"\",ScriptText!$B$1&CHAR(10)&ScriptText!$D$1)","v":""},{"$f":"IF(OrigTable!B1727=\"\",\"\",TEXT(OrigTable!B1727,\"00\"))","v":""},{"$f":"IF(OrigTable!B1727=\"\",\"\",ScriptText!$E$1&CHAR(10)&ScriptText!C1722)","v":""},{"$f":"IF(OrigTable!C1727=\"\",\"\",ScriptText!$B$1&CHAR(10)&ScriptText!$D$1)","v":""},{"$f":"IF(OrigTable!C1727=\"\",\"\",IF(LEN(OrigTable!C1727)>255,LEFT(OrigTable!C1727,250)&\". . .\",OrigTable!C1727))","v":""},{"$f":"IF(OrigTable!C1727=\"\",\"\",ScriptText!$E$1&CHAR(10)&ScriptText!$C$1)","v":""},{"$f":"IF(OrigTable!D1727=\"\",\"\",ScriptText!$B$1&CHAR(10)&ScriptText!$D$1)","v":""},{"$f":"IF(OrigTable!D1727=\"\",\"\",TEXT(OrigTable!D1727,\"00\"))","v":""},{"$f":"IF(OrigTable!D1727=\"\",\"\",ScriptText!$E$1&CHAR(10)&ScriptText!$C$1)","v":""},{"$f":"IF(OrigTable!E1727=\"\",\"\",ScriptText!$B$1&CHAR(10)&ScriptText!$D$1)","v":""},{"$f":"IF(OrigTable!E1727=\"\",\"\",TEXT(OrigTable!E1727,\"00\"))","v":""},{"$f":"IF(OrigTable!E1727=\"\",\"\",ScriptText!$E$1&CHAR(10)&ScriptText!$C$1)","v":""},{"$f":"IF(OrigTable!F1727=\"\",\"\",ScriptText!$B$1&CHAR(10)&ScriptText!$D$1)","v":""},{"$f":"IF(OrigTable!F1727=\"\",\"\",TEXT(OrigTable!F1727,\"00\"))","v":""},{"$f":"IF(OrigTable!F1727=\"\",\"\",ScriptText!$E$1&CHAR(10)&ScriptText!$C$1)","v":""},{"$f":"IF(OrigTable!G1727=\"\",\"\",ScriptText!$B$1&CHAR(10)&ScriptText!$D$1)","v":""},{"$f":"IF(OrigTable!G1727=\"\",\"\",TEXT(OrigTable!G1727,\"00\"))","v":""},{"$f":"IF(OrigTable!G1727=\"\",\"\",ScriptText!$E$1&CHAR(10)&ScriptText!$C$1)","v":""},0]
["\n\n\n",{"$f":"IF(OrigTable!A1728=\"\",\"\",ScriptText!$B$1&CHAR(10)&ScriptText!$D$1)","v":""},{"$f":"IF(OrigTable!A1728=\"\",\"\",TEXT(OrigTable!A1728,\"00\"))","v":""},{"$f":"IF(OrigTable!A1728=\"\",\"\",ScriptText!$E$1&CHAR(10)&ScriptText!$C$1)","v":""},{"$f":"IF(OrigTable!B1728=\"\",\"\",ScriptText!$B$1&CHAR(10)&ScriptText!$D$1)","v":""},{"$f":"IF(OrigTable!B1728=\"\",\"\",TEXT(OrigTable!B1728,\"00\"))","v":""},{"$f":"IF(OrigTable!B1728=\"\",\"\",ScriptText!$E$1&CHAR(10)&ScriptText!C1723)","v":""},{"$f":"IF(OrigTable!C1728=\"\",\"\",ScriptText!$B$1&CHAR(10)&ScriptText!$D$1)","v":""},{"$f":"IF(OrigTable!C1728=\"\",\"\",IF(LEN(OrigTable!C1728)>255,LEFT(OrigTable!C1728,250)&\". . .\",OrigTable!C1728))","v":""},{"$f":"IF(OrigTable!C1728=\"\",\"\",ScriptText!$E$1&CHAR(10)&ScriptText!$C$1)","v":""},{"$f":"IF(OrigTable!D1728=\"\",\"\",ScriptText!$B$1&CHAR(10)&ScriptText!$D$1)","v":""},{"$f":"IF(OrigTable!D1728=\"\",\"\",TEXT(OrigTable!D1728,\"00\"))","v":""},{"$f":"IF(OrigTable!D1728=\"\",\"\",ScriptText!$E$1&CHAR(10)&ScriptText!$C$1)","v":""},{"$f":"IF(OrigTable!E1728=\"\",\"\",ScriptText!$B$1&CHAR(10)&ScriptText!$D$1)","v":""},{"$f":"IF(OrigTable!E1728=\"\",\"\",TEXT(OrigTable!E1728,\"00\"))","v":""},{"$f":"IF(OrigTable!E1728=\"\",\"\",ScriptText!$E$1&CHAR(10)&ScriptText!$C$1)","v":""},{"$f":"IF(OrigTable!F1728=\"\",\"\",ScriptText!$B$1&CHAR(10)&ScriptText!$D$1)","v":""},{"$f":"IF(OrigTable!F1728=\"\",\"\",TEXT(OrigTable!F1728,\"00\"))","v":""},{"$f":"IF(OrigTable!F1728=\"\",\"\",ScriptText!$E$1&CHAR(10)&ScriptText!$C$1)","v":""},{"$f":"IF(OrigTable!G1728=\"\",\"\",ScriptText!$B$1&CHAR(10)&ScriptText!$D$1)","v":""},{"$f":"IF(OrigTable!G1728=\"\",\"\",TEXT(OrigTable!G1728,\"00\"))","v":""},{"$f":"IF(OrigTable!G1728=\"\",\"\",ScriptText!$E$1&CHAR(10)&ScriptText!$C$1)","v":""},0]
["\n\n\n",{"$f":"IF(OrigTable!A1729=\"\",\"\",ScriptText!$B$1&CHAR(10)&ScriptText!$D$1)","v":""},{"$f":"IF(OrigTable!A1729=\"\",\"\",TEXT(OrigTable!A1729,\"00\"))","v":""},{"$f":"IF(OrigTable!A1729=\"\",\"\",ScriptText!$E$1&CHAR(10)&ScriptText!$C$1)","v":""},{"$f":"IF(OrigTable!B1729=\"\",\"\",ScriptText!$B$1&CHAR(10)&ScriptText!$D$1)","v":""},{"$f":"IF(OrigTable!B1729=\"\",\"\",TEXT(OrigTable!B1729,\"00\"))","v":""},{"$f":"IF(OrigTable!B1729=\"\",\"\",ScriptText!$E$1&CHAR(10)&ScriptText!C1724)","v":""},{"$f":"IF(OrigTable!C1729=\"\",\"\",ScriptText!$B$1&CHAR(10)&ScriptText!$D$1)","v":""},{"$f":"IF(OrigTable!C1729=\"\",\"\",IF(LEN(OrigTable!C1729)>255,LEFT(OrigTable!C1729,250)&\". . .\",OrigTable!C1729))","v":""},{"$f":"IF(OrigTable!C1729=\"\",\"\",ScriptText!$E$1&CHAR(10)&ScriptText!$C$1)","v":""},{"$f":"IF(OrigTable!D1729=\"\",\"\",ScriptText!$B$1&CHAR(10)&ScriptText!$D$1)","v":""},{"$f":"IF(OrigTable!D1729=\"\",\"\",TEXT(OrigTable!D1729,\"00\"))","v":""},{"$f":"IF(OrigTable!D1729=\"\",\"\",ScriptText!$E$1&CHAR(10)&ScriptText!$C$1)","v":""},{"$f":"IF(OrigTable!E1729=\"\",\"\",ScriptText!$B$1&CHAR(10)&ScriptText!$D$1)","v":""},{"$f":"IF(OrigTable!E1729=\"\",\"\",TEXT(OrigTable!E1729,\"00\"))","v":""},{"$f":"IF(OrigTable!E1729=\"\",\"\",ScriptText!$E$1&CHAR(10)&ScriptText!$C$1)","v":""},{"$f":"IF(OrigTable!F1729=\"\",\"\",ScriptText!$B$1&CHAR(10)&ScriptText!$D$1)","v":""},{"$f":"IF(OrigTable!F1729=\"\",\"\",TEXT(OrigTable!F1729,\"00\"))","v":""},{"$f":"IF(OrigTable!F1729=\"\",\"\",ScriptText!$E$1&CHAR(10)&ScriptText!$C$1)","v":""},{"$f":"IF(OrigTable!G1729=\"\",\"\",ScriptText!$B$1&CHAR(10)&ScriptText!$D$1)","v":""},{"$f":"IF(OrigTable!G1729=\"\",\"\",TEXT(OrigTable!G1729,\"00\"))","v":""},{"$f":"IF(OrigTable!G1729=\"\",\"\",ScriptText!$E$1&CHAR(10)&ScriptText!$C$1)","v":""},0]
["\n\n\n",{"$f":"IF(OrigTable!A1730=\"\",\"\",ScriptText!$B$1&CHAR(10)&ScriptText!$D$1)","v":""},{"$f":"IF(OrigTable!A1730=\"\",\"\",TEXT(OrigTable!A1730,\"00\"))","v":""},{"$f":"IF(OrigTable!A1730=\"\",\"\",ScriptText!$E$1&CHAR(10)&ScriptText!$C$1)","v":""},{"$f":"IF(OrigTable!B1730=\"\",\"\",ScriptText!$B$1&CHAR(10)&ScriptText!$D$1)","v":""},{"$f":"IF(OrigTable!B1730=\"\",\"\",TEXT(OrigTable!B1730,\"00\"))","v":""},{"$f":"IF(OrigTable!B1730=\"\",\"\",ScriptText!$E$1&CHAR(10)&ScriptText!C1725)","v":""},{"$f":"IF(OrigTable!C1730=\"\",\"\",ScriptText!$B$1&CHAR(10)&ScriptText!$D$1)","v":""},{"$f":"IF(OrigTable!C1730=\"\",\"\",IF(LEN(OrigTable!C1730)>255,LEFT(OrigTable!C1730,250)&\". . .\",OrigTable!C1730))","v":""},{"$f":"IF(OrigTable!C1730=\"\",\"\",ScriptText!$E$1&CHAR(10)&ScriptText!$C$1)","v":""},{"$f":"IF(OrigTable!D1730=\"\",\"\",ScriptText!$B$1&CHAR(10)&ScriptText!$D$1)","v":""},{"$f":"IF(OrigTable!D1730=\"\",\"\",TEXT(OrigTable!D1730,\"00\"))","v":""},{"$f":"IF(OrigTable!D1730=\"\",\"\",ScriptText!$E$1&CHAR(10)&ScriptText!$C$1)","v":""},{"$f":"IF(OrigTable!E1730=\"\",\"\",ScriptText!$B$1&CHAR(10)&ScriptText!$D$1)","v":""},{"$f":"IF(OrigTable!E1730=\"\",\"\",TEXT(OrigTable!E1730,\"00\"))","v":""},{"$f":"IF(OrigTable!E1730=\"\",\"\",ScriptText!$E$1&CHAR(10)&ScriptText!$C$1)","v":""},{"$f":"IF(OrigTable!F1730=\"\",\"\",ScriptText!$B$1&CHAR(10)&ScriptText!$D$1)","v":""},{"$f":"IF(OrigTable!F1730=\"\",\"\",TEXT(OrigTable!F1730,\"00\"))","v":""},{"$f":"IF(OrigTable!F1730=\"\",\"\",ScriptText!$E$1&CHAR(10)&ScriptText!$C$1)","v":""},{"$f":"IF(OrigTable!G1730=\"\",\"\",ScriptText!$B$1&CHAR(10)&ScriptText!$D$1)","v":""},{"$f":"IF(OrigTable!G1730=\"\",\"\",TEXT(OrigTable!G1730,\"00\"))","v":""},{"$f":"IF(OrigTable!G1730=\"\",\"\",ScriptText!$E$1&CHAR(10)&ScriptText!$C$1)","v":""},0]
["\n\n\n",{"$f":"IF(OrigTable!A1731=\"\",\"\",ScriptText!$B$1&CHAR(10)&ScriptText!$D$1)","v":""},{"$f":"IF(OrigTable!A1731=\"\",\"\",TEXT(OrigTable!A1731,\"00\"))","v":""},{"$f":"IF(OrigTable!A1731=\"\",\"\",ScriptText!$E$1&CHAR(10)&ScriptText!$C$1)","v":""},{"$f":"IF(OrigTable!B1731=\"\",\"\",ScriptText!$B$1&CHAR(10)&ScriptText!$D$1)","v":""},{"$f":"IF(OrigTable!B1731=\"\",\"\",TEXT(OrigTable!B1731,\"00\"))","v":""},{"$f":"IF(OrigTable!B1731=\"\",\"\",ScriptText!$E$1&CHAR(10)&ScriptText!C1726)","v":""},{"$f":"IF(OrigTable!C1731=\"\",\"\",ScriptText!$B$1&CHAR(10)&ScriptText!$D$1)","v":""},{"$f":"IF(OrigTable!C1731=\"\",\"\",IF(LEN(OrigTable!C1731)>255,LEFT(OrigTable!C1731,250)&\". . .\",OrigTable!C1731))","v":""},{"$f":"IF(OrigTable!C1731=\"\",\"\",ScriptText!$E$1&CHAR(10)&ScriptText!$C$1)","v":""},{"$f":"IF(OrigTable!D1731=\"\",\"\",ScriptText!$B$1&CHAR(10)&ScriptText!$D$1)","v":""},{"$f":"IF(OrigTable!D1731=\"\",\"\",TEXT(OrigTable!D1731,\"00\"))","v":""},{"$f":"IF(OrigTable!D1731=\"\",\"\",ScriptText!$E$1&CHAR(10)&ScriptText!$C$1)","v":""},{"$f":"IF(OrigTable!E1731=\"\",\"\",ScriptText!$B$1&CHAR(10)&ScriptText!$D$1)","v":""},{"$f":"IF(OrigTable!E1731=\"\",\"\",TEXT(OrigTable!E1731,\"00\"))","v":""},{"$f":"IF(OrigTable!E1731=\"\",\"\",ScriptText!$E$1&CHAR(10)&ScriptText!$C$1)","v":""},{"$f":"IF(OrigTable!F1731=\"\",\"\",ScriptText!$B$1&CHAR(10)&ScriptText!$D$1)","v":""},{"$f":"IF(OrigTable!F1731=\"\",\"\",TEXT(OrigTable!F1731,\"00\"))","v":""},{"$f":"IF(OrigTable!F1731=\"\",\"\",ScriptText!$E$1&CHAR(10)&ScriptText!$C$1)","v":""},{"$f":"IF(OrigTable!G1731=\"\",\"\",ScriptText!$B$1&CHAR(10)&ScriptText!$D$1)","v":""},{"$f":"IF(OrigTable!G1731=\"\",\"\",TEXT(OrigTable!G1731,\"00\"))","v":""},{"$f":"IF(OrigTable!G1731=\"\",\"\",ScriptText!$E$1&CHAR(10)&ScriptText!$C$1)","v":""},0]
["\n\n\n",{"$f":"IF(OrigTable!A1732=\"\",\"\",ScriptText!$B$1&CHAR(10)&ScriptText!$D$1)","v":""},{"$f":"IF(OrigTable!A1732=\"\",\"\",TEXT(OrigTable!A1732,\"00\"))","v":""},{"$f":"IF(OrigTable!A1732=\"\",\"\",ScriptText!$E$1&CHAR(10)&ScriptText!$C$1)","v":""},{"$f":"IF(OrigTable!B1732=\"\",\"\",ScriptText!$B$1&CHAR(10)&ScriptText!$D$1)","v":""},{"$f":"IF(OrigTable!B1732=\"\",\"\",TEXT(OrigTable!B1732,\"00\"))","v":""},{"$f":"IF(OrigTable!B1732=\"\",\"\",ScriptText!$E$1&CHAR(10)&ScriptText!C1727)","v":""},{"$f":"IF(OrigTable!C1732=\"\",\"\",ScriptText!$B$1&CHAR(10)&ScriptText!$D$1)","v":""},{"$f":"IF(OrigTable!C1732=\"\",\"\",IF(LEN(OrigTable!C1732)>255,LEFT(OrigTable!C1732,250)&\". . .\",OrigTable!C1732))","v":""},{"$f":"IF(OrigTable!C1732=\"\",\"\",ScriptText!$E$1&CHAR(10)&ScriptText!$C$1)","v":""},{"$f":"IF(OrigTable!D1732=\"\",\"\",ScriptText!$B$1&CHAR(10)&ScriptText!$D$1)","v":""},{"$f":"IF(OrigTable!D1732=\"\",\"\",TEXT(OrigTable!D1732,\"00\"))","v":""},{"$f":"IF(OrigTable!D1732=\"\",\"\",ScriptText!$E$1&CHAR(10)&ScriptText!$C$1)","v":""},{"$f":"IF(OrigTable!E1732=\"\",\"\",ScriptText!$B$1&CHAR(10)&ScriptText!$D$1)","v":""},{"$f":"IF(OrigTable!E1732=\"\",\"\",TEXT(OrigTable!E1732,\"00\"))","v":""},{"$f":"IF(OrigTable!E1732=\"\",\"\",ScriptText!$E$1&CHAR(10)&ScriptText!$C$1)","v":""},{"$f":"IF(OrigTable!F1732=\"\",\"\",ScriptText!$B$1&CHAR(10)&ScriptText!$D$1)","v":""},{"$f":"IF(OrigTable!F1732=\"\",\"\",TEXT(OrigTable!F1732,\"00\"))","v":""},{"$f":"IF(OrigTable!F1732=\"\",\"\",ScriptText!$E$1&CHAR(10)&ScriptText!$C$1)","v":""},{"$f":"IF(OrigTable!G1732=\"\",\"\",ScriptText!$B$1&CHAR(10)&ScriptText!$D$1)","v":""},{"$f":"IF(OrigTable!G1732=\"\",\"\",TEXT(OrigTable!G1732,\"00\"))","v":""},{"$f":"IF(OrigTable!G1732=\"\",\"\",ScriptText!$E$1&CHAR(10)&ScriptText!$C$1)","v":""},0]
["\n\n\n",{"$f":"IF(OrigTable!A1733=\"\",\"\",ScriptText!$B$1&CHAR(10)&ScriptText!$D$1)","v":""},{"$f":"IF(OrigTable!A1733=\"\",\"\",TEXT(OrigTable!A1733,\"00\"))","v":""},{"$f":"IF(OrigTable!A1733=\"\",\"\",ScriptText!$E$1&CHAR(10)&ScriptText!$C$1)","v":""},{"$f":"IF(OrigTable!B1733=\"\",\"\",ScriptText!$B$1&CHAR(10)&ScriptText!$D$1)","v":""},{"$f":"IF(OrigTable!B1733=\"\",\"\",TEXT(OrigTable!B1733,\"00\"))","v":""},{"$f":"IF(OrigTable!B1733=\"\",\"\",ScriptText!$E$1&CHAR(10)&ScriptText!C1728)","v":""},{"$f":"IF(OrigTable!C1733=\"\",\"\",ScriptText!$B$1&CHAR(10)&ScriptText!$D$1)","v":""},{"$f":"IF(OrigTable!C1733=\"\",\"\",IF(LEN(OrigTable!C1733)>255,LEFT(OrigTable!C1733,250)&\". . .\",OrigTable!C1733))","v":""},{"$f":"IF(OrigTable!C1733=\"\",\"\",ScriptText!$E$1&CHAR(10)&ScriptText!$C$1)","v":""},{"$f":"IF(OrigTable!D1733=\"\",\"\",ScriptText!$B$1&CHAR(10)&ScriptText!$D$1)","v":""},{"$f":"IF(OrigTable!D1733=\"\",\"\",TEXT(OrigTable!D1733,\"00\"))","v":""},{"$f":"IF(OrigTable!D1733=\"\",\"\",ScriptText!$E$1&CHAR(10)&ScriptText!$C$1)","v":""},{"$f":"IF(OrigTable!E1733=\"\",\"\",ScriptText!$B$1&CHAR(10)&ScriptText!$D$1)","v":""},{"$f":"IF(OrigTable!E1733=\"\",\"\",TEXT(OrigTable!E1733,\"00\"))","v":""},{"$f":"IF(OrigTable!E1733=\"\",\"\",ScriptText!$E$1&CHAR(10)&ScriptText!$C$1)","v":""},{"$f":"IF(OrigTable!F1733=\"\",\"\",ScriptText!$B$1&CHAR(10)&ScriptText!$D$1)","v":""},{"$f":"IF(OrigTable!F1733=\"\",\"\",TEXT(OrigTable!F1733,\"00\"))","v":""},{"$f":"IF(OrigTable!F1733=\"\",\"\",ScriptText!$E$1&CHAR(10)&ScriptText!$C$1)","v":""},{"$f":"IF(OrigTable!G1733=\"\",\"\",ScriptText!$B$1&CHAR(10)&ScriptText!$D$1)","v":""},{"$f":"IF(OrigTable!G1733=\"\",\"\",TEXT(OrigTable!G1733,\"00\"))","v":""},{"$f":"IF(OrigTable!G1733=\"\",\"\",ScriptText!$E$1&CHAR(10)&ScriptText!$C$1)","v":""},0]
["\n\n\n",{"$f":"IF(OrigTable!A1734=\"\",\"\",ScriptText!$B$1&CHAR(10)&ScriptText!$D$1)","v":""},{"$f":"IF(OrigTable!A1734=\"\",\"\",TEXT(OrigTable!A1734,\"00\"))","v":""},{"$f":"IF(OrigTable!A1734=\"\",\"\",ScriptText!$E$1&CHAR(10)&ScriptText!$C$1)","v":""},{"$f":"IF(OrigTable!B1734=\"\",\"\",ScriptText!$B$1&CHAR(10)&ScriptText!$D$1)","v":""},{"$f":"IF(OrigTable!B1734=\"\",\"\",TEXT(OrigTable!B1734,\"00\"))","v":""},{"$f":"IF(OrigTable!B1734=\"\",\"\",ScriptText!$E$1&CHAR(10)&ScriptText!C1729)","v":""},{"$f":"IF(OrigTable!C1734=\"\",\"\",ScriptText!$B$1&CHAR(10)&ScriptText!$D$1)","v":""},{"$f":"IF(OrigTable!C1734=\"\",\"\",IF(LEN(OrigTable!C1734)>255,LEFT(OrigTable!C1734,250)&\". . .\",OrigTable!C1734))","v":""},{"$f":"IF(OrigTable!C1734=\"\",\"\",ScriptText!$E$1&CHAR(10)&ScriptText!$C$1)","v":""},{"$f":"IF(OrigTable!D1734=\"\",\"\",ScriptText!$B$1&CHAR(10)&ScriptText!$D$1)","v":""},{"$f":"IF(OrigTable!D1734=\"\",\"\",TEXT(OrigTable!D1734,\"00\"))","v":""},{"$f":"IF(OrigTable!D1734=\"\",\"\",ScriptText!$E$1&CHAR(10)&ScriptText!$C$1)","v":""},{"$f":"IF(OrigTable!E1734=\"\",\"\",ScriptText!$B$1&CHAR(10)&ScriptText!$D$1)","v":""},{"$f":"IF(OrigTable!E1734=\"\",\"\",TEXT(OrigTable!E1734,\"00\"))","v":""},{"$f":"IF(OrigTable!E1734=\"\",\"\",ScriptText!$E$1&CHAR(10)&ScriptText!$C$1)","v":""},{"$f":"IF(OrigTable!F1734=\"\",\"\",ScriptText!$B$1&CHAR(10)&ScriptText!$D$1)","v":""},{"$f":"IF(OrigTable!F1734=\"\",\"\",TEXT(OrigTable!F1734,\"00\"))","v":""},{"$f":"IF(OrigTable!F1734=\"\",\"\",ScriptText!$E$1&CHAR(10)&ScriptText!$C$1)","v":""},{"$f":"IF(OrigTable!G1734=\"\",\"\",ScriptText!$B$1&CHAR(10)&ScriptText!$D$1)","v":""},{"$f":"IF(OrigTable!G1734=\"\",\"\",TEXT(OrigTable!G1734,\"00\"))","v":""},{"$f":"IF(OrigTable!G1734=\"\",\"\",ScriptText!$E$1&CHAR(10)&ScriptText!$C$1)","v":""},{"$f":"IF(LEN(A1734)>3,ROW(),0)","v":0}]
["\n\n\n",{"$f":"IF(OrigTable!A1735=\"\",\"\",ScriptText!$B$1&CHAR(10)&ScriptText!$D$1)","v":""},{"$f":"IF(OrigTable!A1735=\"\",\"\",TEXT(OrigTable!A1735,\"00\"))","v":""},{"$f":"IF(OrigTable!A1735=\"\",\"\",ScriptText!$E$1&CHAR(10)&ScriptText!$C$1)","v":""},{"$f":"IF(OrigTable!B1735=\"\",\"\",ScriptText!$B$1&CHAR(10)&ScriptText!$D$1)","v":""},{"$f":"IF(OrigTable!B1735=\"\",\"\",TEXT(OrigTable!B1735,\"00\"))","v":""},{"$f":"IF(OrigTable!B1735=\"\",\"\",ScriptText!$E$1&CHAR(10)&ScriptText!C1730)","v":""},{"$f":"IF(OrigTable!C1735=\"\",\"\",ScriptText!$B$1&CHAR(10)&ScriptText!$D$1)","v":""},{"$f":"IF(OrigTable!C1735=\"\",\"\",IF(LEN(OrigTable!C1735)>255,LEFT(OrigTable!C1735,250)&\". . .\",OrigTable!C1735))","v":""},{"$f":"IF(OrigTable!C1735=\"\",\"\",ScriptText!$E$1&CHAR(10)&ScriptText!$C$1)","v":""},{"$f":"IF(OrigTable!D1735=\"\",\"\",ScriptText!$B$1&CHAR(10)&ScriptText!$D$1)","v":""},{"$f":"IF(OrigTable!D1735=\"\",\"\",TEXT(OrigTable!D1735,\"00\"))","v":""},{"$f":"IF(OrigTable!D1735=\"\",\"\",ScriptText!$E$1&CHAR(10)&ScriptText!$C$1)","v":""},{"$f":"IF(OrigTable!E1735=\"\",\"\",ScriptText!$B$1&CHAR(10)&ScriptText!$D$1)","v":""},{"$f":"IF(OrigTable!E1735=\"\",\"\",TEXT(OrigTable!E1735,\"00\"))","v":""},{"$f":"IF(OrigTable!E1735=\"\",\"\",ScriptText!$E$1&CHAR(10)&ScriptText!$C$1)","v":""},{"$f":"IF(OrigTable!F1735=\"\",\"\",ScriptText!$B$1&CHAR(10)&ScriptText!$D$1)","v":""},{"$f":"IF(OrigTable!F1735=\"\",\"\",TEXT(OrigTable!F1735,\"00\"))","v":""},{"$f":"IF(OrigTable!F1735=\"\",\"\",ScriptText!$E$1&CHAR(10)&ScriptText!$C$1)","v":""},{"$f":"IF(OrigTable!G1735=\"\",\"\",ScriptText!$B$1&CHAR(10)&ScriptText!$D$1)","v":""},{"$f":"IF(OrigTable!G1735=\"\",\"\",TEXT(OrigTable!G1735,\"00\"))","v":""},{"$f":"IF(OrigTable!G1735=\"\",\"\",ScriptText!$E$1&CHAR(10)&ScriptText!$C$1)","v":""},0]
["\n\n\n",{"$f":"IF(OrigTable!A1736=\"\",\"\",ScriptText!$B$1&CHAR(10)&ScriptText!$D$1)","v":""},{"$f":"IF(OrigTable!A1736=\"\",\"\",TEXT(OrigTable!A1736,\"00\"))","v":""},{"$f":"IF(OrigTable!A1736=\"\",\"\",ScriptText!$E$1&CHAR(10)&ScriptText!$C$1)","v":""},{"$f":"IF(OrigTable!B1736=\"\",\"\",ScriptText!$B$1&CHAR(10)&ScriptText!$D$1)","v":""},{"$f":"IF(OrigTable!B1736=\"\",\"\",TEXT(OrigTable!B1736,\"00\"))","v":""},{"$f":"IF(OrigTable!B1736=\"\",\"\",ScriptText!$E$1&CHAR(10)&ScriptText!C1731)","v":""},{"$f":"IF(OrigTable!C1736=\"\",\"\",ScriptText!$B$1&CHAR(10)&ScriptText!$D$1)","v":""},{"$f":"IF(OrigTable!C1736=\"\",\"\",IF(LEN(OrigTable!C1736)>255,LEFT(OrigTable!C1736,250)&\". . .\",OrigTable!C1736))","v":""},{"$f":"IF(OrigTable!C1736=\"\",\"\",ScriptText!$E$1&CHAR(10)&ScriptText!$C$1)","v":""},{"$f":"IF(OrigTable!D1736=\"\",\"\",ScriptText!$B$1&CHAR(10)&ScriptText!$D$1)","v":""},{"$f":"IF(OrigTable!D1736=\"\",\"\",TEXT(OrigTable!D1736,\"00\"))","v":""},{"$f":"IF(OrigTable!D1736=\"\",\"\",ScriptText!$E$1&CHAR(10)&ScriptText!$C$1)","v":""},{"$f":"IF(OrigTable!E1736=\"\",\"\",ScriptText!$B$1&CHAR(10)&ScriptText!$D$1)","v":""},{"$f":"IF(OrigTable!E1736=\"\",\"\",TEXT(OrigTable!E1736,\"00\"))","v":""},{"$f":"IF(OrigTable!E1736=\"\",\"\",ScriptText!$E$1&CHAR(10)&ScriptText!$C$1)","v":""},{"$f":"IF(OrigTable!F1736=\"\",\"\",ScriptText!$B$1&CHAR(10)&ScriptText!$D$1)","v":""},{"$f":"IF(OrigTable!F1736=\"\",\"\",TEXT(OrigTable!F1736,\"00\"))","v":""},{"$f":"IF(OrigTable!F1736=\"\",\"\",ScriptText!$E$1&CHAR(10)&ScriptText!$C$1)","v":""},{"$f":"IF(OrigTable!G1736=\"\",\"\",ScriptText!$B$1&CHAR(10)&ScriptText!$D$1)","v":""},{"$f":"IF(OrigTable!G1736=\"\",\"\",TEXT(OrigTable!G1736,\"00\"))","v":""},{"$f":"IF(OrigTable!G1736=\"\",\"\",ScriptText!$E$1&CHAR(10)&ScriptText!$C$1)","v":""},0]
["\n\n\n",{"$f":"IF(OrigTable!A1737=\"\",\"\",ScriptText!$B$1&CHAR(10)&ScriptText!$D$1)","v":""},{"$f":"IF(OrigTable!A1737=\"\",\"\",TEXT(OrigTable!A1737,\"00\"))","v":""},{"$f":"IF(OrigTable!A1737=\"\",\"\",ScriptText!$E$1&CHAR(10)&ScriptText!$C$1)","v":""},{"$f":"IF(OrigTable!B1737=\"\",\"\",ScriptText!$B$1&CHAR(10)&ScriptText!$D$1)","v":""},{"$f":"IF(OrigTable!B1737=\"\",\"\",TEXT(OrigTable!B1737,\"00\"))","v":""},{"$f":"IF(OrigTable!B1737=\"\",\"\",ScriptText!$E$1&CHAR(10)&ScriptText!C1732)","v":""},{"$f":"IF(OrigTable!C1737=\"\",\"\",ScriptText!$B$1&CHAR(10)&ScriptText!$D$1)","v":""},{"$f":"IF(OrigTable!C1737=\"\",\"\",IF(LEN(OrigTable!C1737)>255,LEFT(OrigTable!C1737,250)&\". . .\",OrigTable!C1737))","v":""},{"$f":"IF(OrigTable!C1737=\"\",\"\",ScriptText!$E$1&CHAR(10)&ScriptText!$C$1)","v":""},{"$f":"IF(OrigTable!D1737=\"\",\"\",ScriptText!$B$1&CHAR(10)&ScriptText!$D$1)","v":""},{"$f":"IF(OrigTable!D1737=\"\",\"\",TEXT(OrigTable!D1737,\"00\"))","v":""},{"$f":"IF(OrigTable!D1737=\"\",\"\",ScriptText!$E$1&CHAR(10)&ScriptText!$C$1)","v":""},{"$f":"IF(OrigTable!E1737=\"\",\"\",ScriptText!$B$1&CHAR(10)&ScriptText!$D$1)","v":""},{"$f":"IF(OrigTable!E1737=\"\",\"\",TEXT(OrigTable!E1737,\"00\"))","v":""},{"$f":"IF(OrigTable!E1737=\"\",\"\",ScriptText!$E$1&CHAR(10)&ScriptText!$C$1)","v":""},{"$f":"IF(OrigTable!F1737=\"\",\"\",ScriptText!$B$1&CHAR(10)&ScriptText!$D$1)","v":""},{"$f":"IF(OrigTable!F1737=\"\",\"\",TEXT(OrigTable!F1737,\"00\"))","v":""},{"$f":"IF(OrigTable!F1737=\"\",\"\",ScriptText!$E$1&CHAR(10)&ScriptText!$C$1)","v":""},{"$f":"IF(OrigTable!G1737=\"\",\"\",ScriptText!$B$1&CHAR(10)&ScriptText!$D$1)","v":""},{"$f":"IF(OrigTable!G1737=\"\",\"\",TEXT(OrigTable!G1737,\"00\"))","v":""},{"$f":"IF(OrigTable!G1737=\"\",\"\",ScriptText!$E$1&CHAR(10)&ScriptText!$C$1)","v":""},0]
["\n\n\n",{"$f":"IF(OrigTable!A1738=\"\",\"\",ScriptText!$B$1&CHAR(10)&ScriptText!$D$1)","v":""},{"$f":"IF(OrigTable!A1738=\"\",\"\",TEXT(OrigTable!A1738,\"00\"))","v":""},{"$f":"IF(OrigTable!A1738=\"\",\"\",ScriptText!$E$1&CHAR(10)&ScriptText!$C$1)","v":""},{"$f":"IF(OrigTable!B1738=\"\",\"\",ScriptText!$B$1&CHAR(10)&ScriptText!$D$1)","v":""},{"$f":"IF(OrigTable!B1738=\"\",\"\",TEXT(OrigTable!B1738,\"00\"))","v":""},{"$f":"IF(OrigTable!B1738=\"\",\"\",ScriptText!$E$1&CHAR(10)&ScriptText!C1733)","v":""},{"$f":"IF(OrigTable!C1738=\"\",\"\",ScriptText!$B$1&CHAR(10)&ScriptText!$D$1)","v":""},{"$f":"IF(OrigTable!C1738=\"\",\"\",IF(LEN(OrigTable!C1738)>255,LEFT(OrigTable!C1738,250)&\". . .\",OrigTable!C1738))","v":""},{"$f":"IF(OrigTable!C1738=\"\",\"\",ScriptText!$E$1&CHAR(10)&ScriptText!$C$1)","v":""},{"$f":"IF(OrigTable!D1738=\"\",\"\",ScriptText!$B$1&CHAR(10)&ScriptText!$D$1)","v":""},{"$f":"IF(OrigTable!D1738=\"\",\"\",TEXT(OrigTable!D1738,\"00\"))","v":""},{"$f":"IF(OrigTable!D1738=\"\",\"\",ScriptText!$E$1&CHAR(10)&ScriptText!$C$1)","v":""},{"$f":"IF(OrigTable!E1738=\"\",\"\",ScriptText!$B$1&CHAR(10)&ScriptText!$D$1)","v":""},{"$f":"IF(OrigTable!E1738=\"\",\"\",TEXT(OrigTable!E1738,\"00\"))","v":""},{"$f":"IF(OrigTable!E1738=\"\",\"\",ScriptText!$E$1&CHAR(10)&ScriptText!$C$1)","v":""},{"$f":"IF(OrigTable!F1738=\"\",\"\",ScriptText!$B$1&CHAR(10)&ScriptText!$D$1)","v":""},{"$f":"IF(OrigTable!F1738=\"\",\"\",TEXT(OrigTable!F1738,\"00\"))","v":""},{"$f":"IF(OrigTable!F1738=\"\",\"\",ScriptText!$E$1&CHAR(10)&ScriptText!$C$1)","v":""},{"$f":"IF(OrigTable!G1738=\"\",\"\",ScriptText!$B$1&CHAR(10)&ScriptText!$D$1)","v":""},{"$f":"IF(OrigTable!G1738=\"\",\"\",TEXT(OrigTable!G1738,\"00\"))","v":""},{"$f":"IF(OrigTable!G1738=\"\",\"\",ScriptText!$E$1&CHAR(10)&ScriptText!$C$1)","v":""},0]
[{"$f":"_xlfn.TEXTJOIN(\"\",TRUE,B1739:D1739)&CHAR(10)&_xlfn.TEXTJOIN(\"\",TRUE,E1739:G1739)&CHAR(10)&_xlfn.TEXTJOIN(\"\",TRUE,H1739:J1739)&CHAR(10)&_xlfn.TEXTJOIN(\"\",TRUE,K1739:M1739)&_xlfn.TEXTJOIN(\"\",TRUE,N1739:P1739)&_xlfn.TEXTJOIN(\"\",TRUE,Q1739:S1739)&_xlfn.TEXTJOIN(\"\",TRUE,T1739:V1739)","v":"\n\n\n"},{"$f":"IF(OrigTable!A1739=\"\",\"\",ScriptText!$B$1&CHAR(10)&ScriptText!$D$1)","v":""},{"$f":"IF(OrigTable!A1739=\"\",\"\",TEXT(OrigTable!A1739,\"00\"))","v":""},{"$f":"IF(OrigTable!A1739=\"\",\"\",ScriptText!$E$1&CHAR(10)&ScriptText!$C$1)","v":""},{"$f":"IF(OrigTable!B1739=\"\",\"\",ScriptText!$B$1&CHAR(10)&ScriptText!$D$1)","v":""},{"$f":"IF(OrigTable!B1739=\"\",\"\",TEXT(OrigTable!B1739,\"00\"))","v":""},{"$f":"IF(OrigTable!B1739=\"\",\"\",ScriptText!$E$1&CHAR(10)&ScriptText!C1734)","v":""},{"$f":"IF(OrigTable!C1739=\"\",\"\",ScriptText!$B$1&CHAR(10)&ScriptText!$D$1)","v":""},{"$f":"IF(OrigTable!C1739=\"\",\"\",IF(LEN(OrigTable!C1739)>255,LEFT(OrigTable!C1739,250)&\". . .\",OrigTable!C1739))","v":""},{"$f":"IF(OrigTable!C1739=\"\",\"\",ScriptText!$E$1&CHAR(10)&ScriptText!$C$1)","v":""},{"$f":"IF(OrigTable!D1739=\"\",\"\",ScriptText!$B$1&CHAR(10)&ScriptText!$D$1)","v":""},{"$f":"IF(OrigTable!D1739=\"\",\"\",TEXT(OrigTable!D1739,\"00\"))","v":""},{"$f":"IF(OrigTable!D1739=\"\",\"\",ScriptText!$E$1&CHAR(10)&ScriptText!$C$1)","v":""},{"$f":"IF(OrigTable!E1739=\"\",\"\",ScriptText!$B$1&CHAR(10)&ScriptText!$D$1)","v":""},{"$f":"IF(OrigTable!E1739=\"\",\"\",TEXT(OrigTable!E1739,\"00\"))","v":""},{"$f":"IF(OrigTable!E1739=\"\",\"\",ScriptText!$E$1&CHAR(10)&ScriptText!$C$1)","v":""},{"$f":"IF(OrigTable!F1739=\"\",\"\",ScriptText!$B$1&CHAR(10)&ScriptText!$D$1)","v":""},{"$f":"IF(OrigTable!F1739=\"\",\"\",TEXT(OrigTable!F1739,\"00\"))","v":""},{"$f":"IF(OrigTable!F1739=\"\",\"\",ScriptText!$E$1&CHAR(10)&ScriptText!$C$1)","v":""},{"$f":"IF(OrigTable!G1739=\"\",\"\",ScriptText!$B$1&CHAR(10)&ScriptText!$D$1)","v":""},{"$f":"IF(OrigTable!G1739=\"\",\"\",TEXT(OrigTable!G1739,\"00\"))","v":""},{"$f":"IF(OrigTable!G1739=\"\",\"\",ScriptText!$E$1&CHAR(10)&ScriptText!$C$1)","v":""},0]
["\n\n\n",{"$f":"IF(OrigTable!A1740=\"\",\"\",ScriptText!$B$1&CHAR(10)&ScriptText!$D$1)","v":""},{"$f":"IF(OrigTable!A1740=\"\",\"\",TEXT(OrigTable!A1740,\"00\"))","v":""},{"$f":"IF(OrigTable!A1740=\"\",\"\",ScriptText!$E$1&CHAR(10)&ScriptText!$C$1)","v":""},{"$f":"IF(OrigTable!B1740=\"\",\"\",ScriptText!$B$1&CHAR(10)&ScriptText!$D$1)","v":""},{"$f":"IF(OrigTable!B1740=\"\",\"\",TEXT(OrigTable!B1740,\"00\"))","v":""},{"$f":"IF(OrigTable!B1740=\"\",\"\",ScriptText!$E$1&CHAR(10)&ScriptText!C1735)","v":""},{"$f":"IF(OrigTable!C1740=\"\",\"\",ScriptText!$B$1&CHAR(10)&ScriptText!$D$1)","v":""},{"$f":"IF(OrigTable!C1740=\"\",\"\",IF(LEN(OrigTable!C1740)>255,LEFT(OrigTable!C1740,250)&\". . .\",OrigTable!C1740))","v":""},{"$f":"IF(OrigTable!C1740=\"\",\"\",ScriptText!$E$1&CHAR(10)&ScriptText!$C$1)","v":""},{"$f":"IF(OrigTable!D1740=\"\",\"\",ScriptText!$B$1&CHAR(10)&ScriptText!$D$1)","v":""},{"$f":"IF(OrigTable!D1740=\"\",\"\",TEXT(OrigTable!D1740,\"00\"))","v":""},{"$f":"IF(OrigTable!D1740=\"\",\"\",ScriptText!$E$1&CHAR(10)&ScriptText!$C$1)","v":""},{"$f":"IF(OrigTable!E1740=\"\",\"\",ScriptText!$B$1&CHAR(10)&ScriptText!$D$1)","v":""},{"$f":"IF(OrigTable!E1740=\"\",\"\",TEXT(OrigTable!E1740,\"00\"))","v":""},{"$f":"IF(OrigTable!E1740=\"\",\"\",ScriptText!$E$1&CHAR(10)&ScriptText!$C$1)","v":""},{"$f":"IF(OrigTable!F1740=\"\",\"\",ScriptText!$B$1&CHAR(10)&ScriptText!$D$1)","v":""},{"$f":"IF(OrigTable!F1740=\"\",\"\",TEXT(OrigTable!F1740,\"00\"))","v":""},{"$f":"IF(OrigTable!F1740=\"\",\"\",ScriptText!$E$1&CHAR(10)&ScriptText!$C$1)","v":""},{"$f":"IF(OrigTable!G1740=\"\",\"\",ScriptText!$B$1&CHAR(10)&ScriptText!$D$1)","v":""},{"$f":"IF(OrigTable!G1740=\"\",\"\",TEXT(OrigTable!G1740,\"00\"))","v":""},{"$f":"IF(OrigTable!G1740=\"\",\"\",ScriptText!$E$1&CHAR(10)&ScriptText!$C$1)","v":""},0]
["\n\n\n",{"$f":"IF(OrigTable!A1741=\"\",\"\",ScriptText!$B$1&CHAR(10)&ScriptText!$D$1)","v":""},{"$f":"IF(OrigTable!A1741=\"\",\"\",TEXT(OrigTable!A1741,\"00\"))","v":""},{"$f":"IF(OrigTable!A1741=\"\",\"\",ScriptText!$E$1&CHAR(10)&ScriptText!$C$1)","v":""},{"$f":"IF(OrigTable!B1741=\"\",\"\",ScriptText!$B$1&CHAR(10)&ScriptText!$D$1)","v":""},{"$f":"IF(OrigTable!B1741=\"\",\"\",TEXT(OrigTable!B1741,\"00\"))","v":""},{"$f":"IF(OrigTable!B1741=\"\",\"\",ScriptText!$E$1&CHAR(10)&ScriptText!C1736)","v":""},{"$f":"IF(OrigTable!C1741=\"\",\"\",ScriptText!$B$1&CHAR(10)&ScriptText!$D$1)","v":""},{"$f":"IF(OrigTable!C1741=\"\",\"\",IF(LEN(OrigTable!C1741)>255,LEFT(OrigTable!C1741,250)&\". . .\",OrigTable!C1741))","v":""},{"$f":"IF(OrigTable!C1741=\"\",\"\",ScriptText!$E$1&CHAR(10)&ScriptText!$C$1)","v":""},{"$f":"IF(OrigTable!D1741=\"\",\"\",ScriptText!$B$1&CHAR(10)&ScriptText!$D$1)","v":""},{"$f":"IF(OrigTable!D1741=\"\",\"\",TEXT(OrigTable!D1741,\"00\"))","v":""},{"$f":"IF(OrigTable!D1741=\"\",\"\",ScriptText!$E$1&CHAR(10)&ScriptText!$C$1)","v":""},{"$f":"IF(OrigTable!E1741=\"\",\"\",ScriptText!$B$1&CHAR(10)&ScriptText!$D$1)","v":""},{"$f":"IF(OrigTable!E1741=\"\",\"\",TEXT(OrigTable!E1741,\"00\"))","v":""},{"$f":"IF(OrigTable!E1741=\"\",\"\",ScriptText!$E$1&CHAR(10)&ScriptText!$C$1)","v":""},{"$f":"IF(OrigTable!F1741=\"\",\"\",ScriptText!$B$1&CHAR(10)&ScriptText!$D$1)","v":""},{"$f":"IF(OrigTable!F1741=\"\",\"\",TEXT(OrigTable!F1741,\"00\"))","v":""},{"$f":"IF(OrigTable!F1741=\"\",\"\",ScriptText!$E$1&CHAR(10)&ScriptText!$C$1)","v":""},{"$f":"IF(OrigTable!G1741=\"\",\"\",ScriptText!$B$1&CHAR(10)&ScriptText!$D$1)","v":""},{"$f":"IF(OrigTable!G1741=\"\",\"\",TEXT(OrigTable!G1741,\"00\"))","v":""},{"$f":"IF(OrigTable!G1741=\"\",\"\",ScriptText!$E$1&CHAR(10)&ScriptText!$C$1)","v":""},0]
["\n\n\n",{"$f":"IF(OrigTable!A1742=\"\",\"\",ScriptText!$B$1&CHAR(10)&ScriptText!$D$1)","v":""},{"$f":"IF(OrigTable!A1742=\"\",\"\",TEXT(OrigTable!A1742,\"00\"))","v":""},{"$f":"IF(OrigTable!A1742=\"\",\"\",ScriptText!$E$1&CHAR(10)&ScriptText!$C$1)","v":""},{"$f":"IF(OrigTable!B1742=\"\",\"\",ScriptText!$B$1&CHAR(10)&ScriptText!$D$1)","v":""},{"$f":"IF(OrigTable!B1742=\"\",\"\",TEXT(OrigTable!B1742,\"00\"))","v":""},{"$f":"IF(OrigTable!B1742=\"\",\"\",ScriptText!$E$1&CHAR(10)&ScriptText!C1737)","v":""},{"$f":"IF(OrigTable!C1742=\"\",\"\",ScriptText!$B$1&CHAR(10)&ScriptText!$D$1)","v":""},{"$f":"IF(OrigTable!C1742=\"\",\"\",IF(LEN(OrigTable!C1742)>255,LEFT(OrigTable!C1742,250)&\". . .\",OrigTable!C1742))","v":""},{"$f":"IF(OrigTable!C1742=\"\",\"\",ScriptText!$E$1&CHAR(10)&ScriptText!$C$1)","v":""},{"$f":"IF(OrigTable!D1742=\"\",\"\",ScriptText!$B$1&CHAR(10)&ScriptText!$D$1)","v":""},{"$f":"IF(OrigTable!D1742=\"\",\"\",TEXT(OrigTable!D1742,\"00\"))","v":""},{"$f":"IF(OrigTable!D1742=\"\",\"\",ScriptText!$E$1&CHAR(10)&ScriptText!$C$1)","v":""},{"$f":"IF(OrigTable!E1742=\"\",\"\",ScriptText!$B$1&CHAR(10)&ScriptText!$D$1)","v":""},{"$f":"IF(OrigTable!E1742=\"\",\"\",TEXT(OrigTable!E1742,\"00\"))","v":""},{"$f":"IF(OrigTable!E1742=\"\",\"\",ScriptText!$E$1&CHAR(10)&ScriptText!$C$1)","v":""},{"$f":"IF(OrigTable!F1742=\"\",\"\",ScriptText!$B$1&CHAR(10)&ScriptText!$D$1)","v":""},{"$f":"IF(OrigTable!F1742=\"\",\"\",TEXT(OrigTable!F1742,\"00\"))","v":""},{"$f":"IF(OrigTable!F1742=\"\",\"\",ScriptText!$E$1&CHAR(10)&ScriptText!$C$1)","v":""},{"$f":"IF(OrigTable!G1742=\"\",\"\",ScriptText!$B$1&CHAR(10)&ScriptText!$D$1)","v":""},{"$f":"IF(OrigTable!G1742=\"\",\"\",TEXT(OrigTable!G1742,\"00\"))","v":""},{"$f":"IF(OrigTable!G1742=\"\",\"\",ScriptText!$E$1&CHAR(10)&ScriptText!$C$1)","v":""},0]
["\n\n\n",{"$f":"IF(OrigTable!A1743=\"\",\"\",ScriptText!$B$1&CHAR(10)&ScriptText!$D$1)","v":""},{"$f":"IF(OrigTable!A1743=\"\",\"\",TEXT(OrigTable!A1743,\"00\"))","v":""},{"$f":"IF(OrigTable!A1743=\"\",\"\",ScriptText!$E$1&CHAR(10)&ScriptText!$C$1)","v":""},{"$f":"IF(OrigTable!B1743=\"\",\"\",ScriptText!$B$1&CHAR(10)&ScriptText!$D$1)","v":""},{"$f":"IF(OrigTable!B1743=\"\",\"\",TEXT(OrigTable!B1743,\"00\"))","v":""},{"$f":"IF(OrigTable!B1743=\"\",\"\",ScriptText!$E$1&CHAR(10)&ScriptText!C1738)","v":""},{"$f":"IF(OrigTable!C1743=\"\",\"\",ScriptText!$B$1&CHAR(10)&ScriptText!$D$1)","v":""},{"$f":"IF(OrigTable!C1743=\"\",\"\",IF(LEN(OrigTable!C1743)>255,LEFT(OrigTable!C1743,250)&\". . .\",OrigTable!C1743))","v":""},{"$f":"IF(OrigTable!C1743=\"\",\"\",ScriptText!$E$1&CHAR(10)&ScriptText!$C$1)","v":""},{"$f":"IF(OrigTable!D1743=\"\",\"\",ScriptText!$B$1&CHAR(10)&ScriptText!$D$1)","v":""},{"$f":"IF(OrigTable!D1743=\"\",\"\",TEXT(OrigTable!D1743,\"00\"))","v":""},{"$f":"IF(OrigTable!D1743=\"\",\"\",ScriptText!$E$1&CHAR(10)&ScriptText!$C$1)","v":""},{"$f":"IF(OrigTable!E1743=\"\",\"\",ScriptText!$B$1&CHAR(10)&ScriptText!$D$1)","v":""},{"$f":"IF(OrigTable!E1743=\"\",\"\",TEXT(OrigTable!E1743,\"00\"))","v":""},{"$f":"IF(OrigTable!E1743=\"\",\"\",ScriptText!$E$1&CHAR(10)&ScriptText!$C$1)","v":""},{"$f":"IF(OrigTable!F1743=\"\",\"\",ScriptText!$B$1&CHAR(10)&ScriptText!$D$1)","v":""},{"$f":"IF(OrigTable!F1743=\"\",\"\",TEXT(OrigTable!F1743,\"00\"))","v":""},{"$f":"IF(OrigTable!F1743=\"\",\"\",ScriptText!$E$1&CHAR(10)&ScriptText!$C$1)","v":""},{"$f":"IF(OrigTable!G1743=\"\",\"\",ScriptText!$B$1&CHAR(10)&ScriptText!$D$1)","v":""},{"$f":"IF(OrigTable!G1743=\"\",\"\",TEXT(OrigTable!G1743,\"00\"))","v":""},{"$f":"IF(OrigTable!G1743=\"\",\"\",ScriptText!$E$1&CHAR(10)&ScriptText!$C$1)","v":""},0]
["\n\n\n",{"$f":"IF(OrigTable!A1744=\"\",\"\",ScriptText!$B$1&CHAR(10)&ScriptText!$D$1)","v":""},{"$f":"IF(OrigTable!A1744=\"\",\"\",TEXT(OrigTable!A1744,\"00\"))","v":""},{"$f":"IF(OrigTable!A1744=\"\",\"\",ScriptText!$E$1&CHAR(10)&ScriptText!$C$1)","v":""},{"$f":"IF(OrigTable!B1744=\"\",\"\",ScriptText!$B$1&CHAR(10)&ScriptText!$D$1)","v":""},{"$f":"IF(OrigTable!B1744=\"\",\"\",TEXT(OrigTable!B1744,\"00\"))","v":""},{"$f":"IF(OrigTable!B1744=\"\",\"\",ScriptText!$E$1&CHAR(10)&ScriptText!C1739)","v":""},{"$f":"IF(OrigTable!C1744=\"\",\"\",ScriptText!$B$1&CHAR(10)&ScriptText!$D$1)","v":""},{"$f":"IF(OrigTable!C1744=\"\",\"\",IF(LEN(OrigTable!C1744)>255,LEFT(OrigTable!C1744,250)&\". . .\",OrigTable!C1744))","v":""},{"$f":"IF(OrigTable!C1744=\"\",\"\",ScriptText!$E$1&CHAR(10)&ScriptText!$C$1)","v":""},{"$f":"IF(OrigTable!D1744=\"\",\"\",ScriptText!$B$1&CHAR(10)&ScriptText!$D$1)","v":""},{"$f":"IF(OrigTable!D1744=\"\",\"\",TEXT(OrigTable!D1744,\"00\"))","v":""},{"$f":"IF(OrigTable!D1744=\"\",\"\",ScriptText!$E$1&CHAR(10)&ScriptText!$C$1)","v":""},{"$f":"IF(OrigTable!E1744=\"\",\"\",ScriptText!$B$1&CHAR(10)&ScriptText!$D$1)","v":""},{"$f":"IF(OrigTable!E1744=\"\",\"\",TEXT(OrigTable!E1744,\"00\"))","v":""},{"$f":"IF(OrigTable!E1744=\"\",\"\",ScriptText!$E$1&CHAR(10)&ScriptText!$C$1)","v":""},{"$f":"IF(OrigTable!F1744=\"\",\"\",ScriptText!$B$1&CHAR(10)&ScriptText!$D$1)","v":""},{"$f":"IF(OrigTable!F1744=\"\",\"\",TEXT(OrigTable!F1744,\"00\"))","v":""},{"$f":"IF(OrigTable!F1744=\"\",\"\",ScriptText!$E$1&CHAR(10)&ScriptText!$C$1)","v":""},{"$f":"IF(OrigTable!G1744=\"\",\"\",ScriptText!$B$1&CHAR(10)&ScriptText!$D$1)","v":""},{"$f":"IF(OrigTable!G1744=\"\",\"\",TEXT(OrigTable!G1744,\"00\"))","v":""},{"$f":"IF(OrigTable!G1744=\"\",\"\",ScriptText!$E$1&CHAR(10)&ScriptText!$C$1)","v":""},0]
["\n\n\n",{"$f":"IF(OrigTable!A1745=\"\",\"\",ScriptText!$B$1&CHAR(10)&ScriptText!$D$1)","v":""},{"$f":"IF(OrigTable!A1745=\"\",\"\",TEXT(OrigTable!A1745,\"00\"))","v":""},{"$f":"IF(OrigTable!A1745=\"\",\"\",ScriptText!$E$1&CHAR(10)&ScriptText!$C$1)","v":""},{"$f":"IF(OrigTable!B1745=\"\",\"\",ScriptText!$B$1&CHAR(10)&ScriptText!$D$1)","v":""},{"$f":"IF(OrigTable!B1745=\"\",\"\",TEXT(OrigTable!B1745,\"00\"))","v":""},{"$f":"IF(OrigTable!B1745=\"\",\"\",ScriptText!$E$1&CHAR(10)&ScriptText!C1740)","v":""},{"$f":"IF(OrigTable!C1745=\"\",\"\",ScriptText!$B$1&CHAR(10)&ScriptText!$D$1)","v":""},{"$f":"IF(OrigTable!C1745=\"\",\"\",IF(LEN(OrigTable!C1745)>255,LEFT(OrigTable!C1745,250)&\". . .\",OrigTable!C1745))","v":""},{"$f":"IF(OrigTable!C1745=\"\",\"\",ScriptText!$E$1&CHAR(10)&ScriptText!$C$1)","v":""},{"$f":"IF(OrigTable!D1745=\"\",\"\",ScriptText!$B$1&CHAR(10)&ScriptText!$D$1)","v":""},{"$f":"IF(OrigTable!D1745=\"\",\"\",TEXT(OrigTable!D1745,\"00\"))","v":""},{"$f":"IF(OrigTable!D1745=\"\",\"\",ScriptText!$E$1&CHAR(10)&ScriptText!$C$1)","v":""},{"$f":"IF(OrigTable!E1745=\"\",\"\",ScriptText!$B$1&CHAR(10)&ScriptText!$D$1)","v":""},{"$f":"IF(OrigTable!E1745=\"\",\"\",TEXT(OrigTable!E1745,\"00\"))","v":""},{"$f":"IF(OrigTable!E1745=\"\",\"\",ScriptText!$E$1&CHAR(10)&ScriptText!$C$1)","v":""},{"$f":"IF(OrigTable!F1745=\"\",\"\",ScriptText!$B$1&CHAR(10)&ScriptText!$D$1)","v":""},{"$f":"IF(OrigTable!F1745=\"\",\"\",TEXT(OrigTable!F1745,\"00\"))","v":""},{"$f":"IF(OrigTable!F1745=\"\",\"\",ScriptText!$E$1&CHAR(10)&ScriptText!$C$1)","v":""},{"$f":"IF(OrigTable!G1745=\"\",\"\",ScriptText!$B$1&CHAR(10)&ScriptText!$D$1)","v":""},{"$f":"IF(OrigTable!G1745=\"\",\"\",TEXT(OrigTable!G1745,\"00\"))","v":""},{"$f":"IF(OrigTable!G1745=\"\",\"\",ScriptText!$E$1&CHAR(10)&ScriptText!$C$1)","v":""},0]
["\n\n\n",{"$f":"IF(OrigTable!A1746=\"\",\"\",ScriptText!$B$1&CHAR(10)&ScriptText!$D$1)","v":""},{"$f":"IF(OrigTable!A1746=\"\",\"\",TEXT(OrigTable!A1746,\"00\"))","v":""},{"$f":"IF(OrigTable!A1746=\"\",\"\",ScriptText!$E$1&CHAR(10)&ScriptText!$C$1)","v":""},{"$f":"IF(OrigTable!B1746=\"\",\"\",ScriptText!$B$1&CHAR(10)&ScriptText!$D$1)","v":""},{"$f":"IF(OrigTable!B1746=\"\",\"\",TEXT(OrigTable!B1746,\"00\"))","v":""},{"$f":"IF(OrigTable!B1746=\"\",\"\",ScriptText!$E$1&CHAR(10)&ScriptText!C1741)","v":""},{"$f":"IF(OrigTable!C1746=\"\",\"\",ScriptText!$B$1&CHAR(10)&ScriptText!$D$1)","v":""},{"$f":"IF(OrigTable!C1746=\"\",\"\",IF(LEN(OrigTable!C1746)>255,LEFT(OrigTable!C1746,250)&\". . .\",OrigTable!C1746))","v":""},{"$f":"IF(OrigTable!C1746=\"\",\"\",ScriptText!$E$1&CHAR(10)&ScriptText!$C$1)","v":""},{"$f":"IF(OrigTable!D1746=\"\",\"\",ScriptText!$B$1&CHAR(10)&ScriptText!$D$1)","v":""},{"$f":"IF(OrigTable!D1746=\"\",\"\",TEXT(OrigTable!D1746,\"00\"))","v":""},{"$f":"IF(OrigTable!D1746=\"\",\"\",ScriptText!$E$1&CHAR(10)&ScriptText!$C$1)","v":""},{"$f":"IF(OrigTable!E1746=\"\",\"\",ScriptText!$B$1&CHAR(10)&ScriptText!$D$1)","v":""},{"$f":"IF(OrigTable!E1746=\"\",\"\",TEXT(OrigTable!E1746,\"00\"))","v":""},{"$f":"IF(OrigTable!E1746=\"\",\"\",ScriptText!$E$1&CHAR(10)&ScriptText!$C$1)","v":""},{"$f":"IF(OrigTable!F1746=\"\",\"\",ScriptText!$B$1&CHAR(10)&ScriptText!$D$1)","v":""},{"$f":"IF(OrigTable!F1746=\"\",\"\",TEXT(OrigTable!F1746,\"00\"))","v":""},{"$f":"IF(OrigTable!F1746=\"\",\"\",ScriptText!$E$1&CHAR(10)&ScriptText!$C$1)","v":""},{"$f":"IF(OrigTable!G1746=\"\",\"\",ScriptText!$B$1&CHAR(10)&ScriptText!$D$1)","v":""},{"$f":"IF(OrigTable!G1746=\"\",\"\",TEXT(OrigTable!G1746,\"00\"))","v":""},{"$f":"IF(OrigTable!G1746=\"\",\"\",ScriptText!$E$1&CHAR(10)&ScriptText!$C$1)","v":""},0]
["\n\n\n",{"$f":"IF(OrigTable!A1747=\"\",\"\",ScriptText!$B$1&CHAR(10)&ScriptText!$D$1)","v":""},{"$f":"IF(OrigTable!A1747=\"\",\"\",TEXT(OrigTable!A1747,\"00\"))","v":""},{"$f":"IF(OrigTable!A1747=\"\",\"\",ScriptText!$E$1&CHAR(10)&ScriptText!$C$1)","v":""},{"$f":"IF(OrigTable!B1747=\"\",\"\",ScriptText!$B$1&CHAR(10)&ScriptText!$D$1)","v":""},{"$f":"IF(OrigTable!B1747=\"\",\"\",TEXT(OrigTable!B1747,\"00\"))","v":""},{"$f":"IF(OrigTable!B1747=\"\",\"\",ScriptText!$E$1&CHAR(10)&ScriptText!C1742)","v":""},{"$f":"IF(OrigTable!C1747=\"\",\"\",ScriptText!$B$1&CHAR(10)&ScriptText!$D$1)","v":""},{"$f":"IF(OrigTable!C1747=\"\",\"\",IF(LEN(OrigTable!C1747)>255,LEFT(OrigTable!C1747,250)&\". . .\",OrigTable!C1747))","v":""},{"$f":"IF(OrigTable!C1747=\"\",\"\",ScriptText!$E$1&CHAR(10)&ScriptText!$C$1)","v":""},{"$f":"IF(OrigTable!D1747=\"\",\"\",ScriptText!$B$1&CHAR(10)&ScriptText!$D$1)","v":""},{"$f":"IF(OrigTable!D1747=\"\",\"\",TEXT(OrigTable!D1747,\"00\"))","v":""},{"$f":"IF(OrigTable!D1747=\"\",\"\",ScriptText!$E$1&CHAR(10)&ScriptText!$C$1)","v":""},{"$f":"IF(OrigTable!E1747=\"\",\"\",ScriptText!$B$1&CHAR(10)&ScriptText!$D$1)","v":""},{"$f":"IF(OrigTable!E1747=\"\",\"\",TEXT(OrigTable!E1747,\"00\"))","v":""},{"$f":"IF(OrigTable!E1747=\"\",\"\",ScriptText!$E$1&CHAR(10)&ScriptText!$C$1)","v":""},{"$f":"IF(OrigTable!F1747=\"\",\"\",ScriptText!$B$1&CHAR(10)&ScriptText!$D$1)","v":""},{"$f":"IF(OrigTable!F1747=\"\",\"\",TEXT(OrigTable!F1747,\"00\"))","v":""},{"$f":"IF(OrigTable!F1747=\"\",\"\",ScriptText!$E$1&CHAR(10)&ScriptText!$C$1)","v":""},{"$f":"IF(OrigTable!G1747=\"\",\"\",ScriptText!$B$1&CHAR(10)&ScriptText!$D$1)","v":""},{"$f":"IF(OrigTable!G1747=\"\",\"\",TEXT(OrigTable!G1747,\"00\"))","v":""},{"$f":"IF(OrigTable!G1747=\"\",\"\",ScriptText!$E$1&CHAR(10)&ScriptText!$C$1)","v":""},0]
["\n\n\n",{"$f":"IF(OrigTable!A1748=\"\",\"\",ScriptText!$B$1&CHAR(10)&ScriptText!$D$1)","v":""},{"$f":"IF(OrigTable!A1748=\"\",\"\",TEXT(OrigTable!A1748,\"00\"))","v":""},{"$f":"IF(OrigTable!A1748=\"\",\"\",ScriptText!$E$1&CHAR(10)&ScriptText!$C$1)","v":""},{"$f":"IF(OrigTable!B1748=\"\",\"\",ScriptText!$B$1&CHAR(10)&ScriptText!$D$1)","v":""},{"$f":"IF(OrigTable!B1748=\"\",\"\",TEXT(OrigTable!B1748,\"00\"))","v":""},{"$f":"IF(OrigTable!B1748=\"\",\"\",ScriptText!$E$1&CHAR(10)&ScriptText!C1743)","v":""},{"$f":"IF(OrigTable!C1748=\"\",\"\",ScriptText!$B$1&CHAR(10)&ScriptText!$D$1)","v":""},{"$f":"IF(OrigTable!C1748=\"\",\"\",IF(LEN(OrigTable!C1748)>255,LEFT(OrigTable!C1748,250)&\". . .\",OrigTable!C1748))","v":""},{"$f":"IF(OrigTable!C1748=\"\",\"\",ScriptText!$E$1&CHAR(10)&ScriptText!$C$1)","v":""},{"$f":"IF(OrigTable!D1748=\"\",\"\",ScriptText!$B$1&CHAR(10)&ScriptText!$D$1)","v":""},{"$f":"IF(OrigTable!D1748=\"\",\"\",TEXT(OrigTable!D1748,\"00\"))","v":""},{"$f":"IF(OrigTable!D1748=\"\",\"\",ScriptText!$E$1&CHAR(10)&ScriptText!$C$1)","v":""},{"$f":"IF(OrigTable!E1748=\"\",\"\",ScriptText!$B$1&CHAR(10)&ScriptText!$D$1)","v":""},{"$f":"IF(OrigTable!E1748=\"\",\"\",TEXT(OrigTable!E1748,\"00\"))","v":""},{"$f":"IF(OrigTable!E1748=\"\",\"\",ScriptText!$E$1&CHAR(10)&ScriptText!$C$1)","v":""},{"$f":"IF(OrigTable!F1748=\"\",\"\",ScriptText!$B$1&CHAR(10)&ScriptText!$D$1)","v":""},{"$f":"IF(OrigTable!F1748=\"\",\"\",TEXT(OrigTable!F1748,\"00\"))","v":""},{"$f":"IF(OrigTable!F1748=\"\",\"\",ScriptText!$E$1&CHAR(10)&ScriptText!$C$1)","v":""},{"$f":"IF(OrigTable!G1748=\"\",\"\",ScriptText!$B$1&CHAR(10)&ScriptText!$D$1)","v":""},{"$f":"IF(OrigTable!G1748=\"\",\"\",TEXT(OrigTable!G1748,\"00\"))","v":""},{"$f":"IF(OrigTable!G1748=\"\",\"\",ScriptText!$E$1&CHAR(10)&ScriptText!$C$1)","v":""},0]
["\n\n\n",{"$f":"IF(OrigTable!A1749=\"\",\"\",ScriptText!$B$1&CHAR(10)&ScriptText!$D$1)","v":""},{"$f":"IF(OrigTable!A1749=\"\",\"\",TEXT(OrigTable!A1749,\"00\"))","v":""},{"$f":"IF(OrigTable!A1749=\"\",\"\",ScriptText!$E$1&CHAR(10)&ScriptText!$C$1)","v":""},{"$f":"IF(OrigTable!B1749=\"\",\"\",ScriptText!$B$1&CHAR(10)&ScriptText!$D$1)","v":""},{"$f":"IF(OrigTable!B1749=\"\",\"\",TEXT(OrigTable!B1749,\"00\"))","v":""},{"$f":"IF(OrigTable!B1749=\"\",\"\",ScriptText!$E$1&CHAR(10)&ScriptText!C1744)","v":""},{"$f":"IF(OrigTable!C1749=\"\",\"\",ScriptText!$B$1&CHAR(10)&ScriptText!$D$1)","v":""},{"$f":"IF(OrigTable!C1749=\"\",\"\",IF(LEN(OrigTable!C1749)>255,LEFT(OrigTable!C1749,250)&\". . .\",OrigTable!C1749))","v":""},{"$f":"IF(OrigTable!C1749=\"\",\"\",ScriptText!$E$1&CHAR(10)&ScriptText!$C$1)","v":""},{"$f":"IF(OrigTable!D1749=\"\",\"\",ScriptText!$B$1&CHAR(10)&ScriptText!$D$1)","v":""},{"$f":"IF(OrigTable!D1749=\"\",\"\",TEXT(OrigTable!D1749,\"00\"))","v":""},{"$f":"IF(OrigTable!D1749=\"\",\"\",ScriptText!$E$1&CHAR(10)&ScriptText!$C$1)","v":""},{"$f":"IF(OrigTable!E1749=\"\",\"\",ScriptText!$B$1&CHAR(10)&ScriptText!$D$1)","v":""},{"$f":"IF(OrigTable!E1749=\"\",\"\",TEXT(OrigTable!E1749,\"00\"))","v":""},{"$f":"IF(OrigTable!E1749=\"\",\"\",ScriptText!$E$1&CHAR(10)&ScriptText!$C$1)","v":""},{"$f":"IF(OrigTable!F1749=\"\",\"\",ScriptText!$B$1&CHAR(10)&ScriptText!$D$1)","v":""},{"$f":"IF(OrigTable!F1749=\"\",\"\",TEXT(OrigTable!F1749,\"00\"))","v":""},{"$f":"IF(OrigTable!F1749=\"\",\"\",ScriptText!$E$1&CHAR(10)&ScriptText!$C$1)","v":""},{"$f":"IF(OrigTable!G1749=\"\",\"\",ScriptText!$B$1&CHAR(10)&ScriptText!$D$1)","v":""},{"$f":"IF(OrigTable!G1749=\"\",\"\",TEXT(OrigTable!G1749,\"00\"))","v":""},{"$f":"IF(OrigTable!G1749=\"\",\"\",ScriptText!$E$1&CHAR(10)&ScriptText!$C$1)","v":""},0]
["\n\n\n",{"$f":"IF(OrigTable!A1750=\"\",\"\",ScriptText!$B$1&CHAR(10)&ScriptText!$D$1)","v":""},{"$f":"IF(OrigTable!A1750=\"\",\"\",TEXT(OrigTable!A1750,\"00\"))","v":""},{"$f":"IF(OrigTable!A1750=\"\",\"\",ScriptText!$E$1&CHAR(10)&ScriptText!$C$1)","v":""},{"$f":"IF(OrigTable!B1750=\"\",\"\",ScriptText!$B$1&CHAR(10)&ScriptText!$D$1)","v":""},{"$f":"IF(OrigTable!B1750=\"\",\"\",TEXT(OrigTable!B1750,\"00\"))","v":""},{"$f":"IF(OrigTable!B1750=\"\",\"\",ScriptText!$E$1&CHAR(10)&ScriptText!C1745)","v":""},{"$f":"IF(OrigTable!C1750=\"\",\"\",ScriptText!$B$1&CHAR(10)&ScriptText!$D$1)","v":""},{"$f":"IF(OrigTable!C1750=\"\",\"\",IF(LEN(OrigTable!C1750)>255,LEFT(OrigTable!C1750,250)&\". . .\",OrigTable!C1750))","v":""},{"$f":"IF(OrigTable!C1750=\"\",\"\",ScriptText!$E$1&CHAR(10)&ScriptText!$C$1)","v":""},{"$f":"IF(OrigTable!D1750=\"\",\"\",ScriptText!$B$1&CHAR(10)&ScriptText!$D$1)","v":""},{"$f":"IF(OrigTable!D1750=\"\",\"\",TEXT(OrigTable!D1750,\"00\"))","v":""},{"$f":"IF(OrigTable!D1750=\"\",\"\",ScriptText!$E$1&CHAR(10)&ScriptText!$C$1)","v":""},{"$f":"IF(OrigTable!E1750=\"\",\"\",ScriptText!$B$1&CHAR(10)&ScriptText!$D$1)","v":""},{"$f":"IF(OrigTable!E1750=\"\",\"\",TEXT(OrigTable!E1750,\"00\"))","v":""},{"$f":"IF(OrigTable!E1750=\"\",\"\",ScriptText!$E$1&CHAR(10)&ScriptText!$C$1)","v":""},{"$f":"IF(OrigTable!F1750=\"\",\"\",ScriptText!$B$1&CHAR(10)&ScriptText!$D$1)","v":""},{"$f":"IF(OrigTable!F1750=\"\",\"\",TEXT(OrigTable!F1750,\"00\"))","v":""},{"$f":"IF(OrigTable!F1750=\"\",\"\",ScriptText!$E$1&CHAR(10)&ScriptText!$C$1)","v":""},{"$f":"IF(OrigTable!G1750=\"\",\"\",ScriptText!$B$1&CHAR(10)&ScriptText!$D$1)","v":""},{"$f":"IF(OrigTable!G1750=\"\",\"\",TEXT(OrigTable!G1750,\"00\"))","v":""},{"$f":"IF(OrigTable!G1750=\"\",\"\",ScriptText!$E$1&CHAR(10)&ScriptText!$C$1)","v":""},0]
["\n\n\n",{"$f":"IF(OrigTable!A1751=\"\",\"\",ScriptText!$B$1&CHAR(10)&ScriptText!$D$1)","v":""},{"$f":"IF(OrigTable!A1751=\"\",\"\",TEXT(OrigTable!A1751,\"00\"))","v":""},{"$f":"IF(OrigTable!A1751=\"\",\"\",ScriptText!$E$1&CHAR(10)&ScriptText!$C$1)","v":""},{"$f":"IF(OrigTable!B1751=\"\",\"\",ScriptText!$B$1&CHAR(10)&ScriptText!$D$1)","v":""},{"$f":"IF(OrigTable!B1751=\"\",\"\",TEXT(OrigTable!B1751,\"00\"))","v":""},{"$f":"IF(OrigTable!B1751=\"\",\"\",ScriptText!$E$1&CHAR(10)&ScriptText!C1746)","v":""},{"$f":"IF(OrigTable!C1751=\"\",\"\",ScriptText!$B$1&CHAR(10)&ScriptText!$D$1)","v":""},{"$f":"IF(OrigTable!C1751=\"\",\"\",IF(LEN(OrigTable!C1751)>255,LEFT(OrigTable!C1751,250)&\". . .\",OrigTable!C1751))","v":""},{"$f":"IF(OrigTable!C1751=\"\",\"\",ScriptText!$E$1&CHAR(10)&ScriptText!$C$1)","v":""},{"$f":"IF(OrigTable!D1751=\"\",\"\",ScriptText!$B$1&CHAR(10)&ScriptText!$D$1)","v":""},{"$f":"IF(OrigTable!D1751=\"\",\"\",TEXT(OrigTable!D1751,\"00\"))","v":""},{"$f":"IF(OrigTable!D1751=\"\",\"\",ScriptText!$E$1&CHAR(10)&ScriptText!$C$1)","v":""},{"$f":"IF(OrigTable!E1751=\"\",\"\",ScriptText!$B$1&CHAR(10)&ScriptText!$D$1)","v":""},{"$f":"IF(OrigTable!E1751=\"\",\"\",TEXT(OrigTable!E1751,\"00\"))","v":""},{"$f":"IF(OrigTable!E1751=\"\",\"\",ScriptText!$E$1&CHAR(10)&ScriptText!$C$1)","v":""},{"$f":"IF(OrigTable!F1751=\"\",\"\",ScriptText!$B$1&CHAR(10)&ScriptText!$D$1)","v":""},{"$f":"IF(OrigTable!F1751=\"\",\"\",TEXT(OrigTable!F1751,\"00\"))","v":""},{"$f":"IF(OrigTable!F1751=\"\",\"\",ScriptText!$E$1&CHAR(10)&ScriptText!$C$1)","v":""},{"$f":"IF(OrigTable!G1751=\"\",\"\",ScriptText!$B$1&CHAR(10)&ScriptText!$D$1)","v":""},{"$f":"IF(OrigTable!G1751=\"\",\"\",TEXT(OrigTable!G1751,\"00\"))","v":""},{"$f":"IF(OrigTable!G1751=\"\",\"\",ScriptText!$E$1&CHAR(10)&ScriptText!$C$1)","v":""},0]
["\n\n\n",{"$f":"IF(OrigTable!A1752=\"\",\"\",ScriptText!$B$1&CHAR(10)&ScriptText!$D$1)","v":""},{"$f":"IF(OrigTable!A1752=\"\",\"\",TEXT(OrigTable!A1752,\"00\"))","v":""},{"$f":"IF(OrigTable!A1752=\"\",\"\",ScriptText!$E$1&CHAR(10)&ScriptText!$C$1)","v":""},{"$f":"IF(OrigTable!B1752=\"\",\"\",ScriptText!$B$1&CHAR(10)&ScriptText!$D$1)","v":""},{"$f":"IF(OrigTable!B1752=\"\",\"\",TEXT(OrigTable!B1752,\"00\"))","v":""},{"$f":"IF(OrigTable!B1752=\"\",\"\",ScriptText!$E$1&CHAR(10)&ScriptText!C1747)","v":""},{"$f":"IF(OrigTable!C1752=\"\",\"\",ScriptText!$B$1&CHAR(10)&ScriptText!$D$1)","v":""},{"$f":"IF(OrigTable!C1752=\"\",\"\",IF(LEN(OrigTable!C1752)>255,LEFT(OrigTable!C1752,250)&\". . .\",OrigTable!C1752))","v":""},{"$f":"IF(OrigTable!C1752=\"\",\"\",ScriptText!$E$1&CHAR(10)&ScriptText!$C$1)","v":""},{"$f":"IF(OrigTable!D1752=\"\",\"\",ScriptText!$B$1&CHAR(10)&ScriptText!$D$1)","v":""},{"$f":"IF(OrigTable!D1752=\"\",\"\",TEXT(OrigTable!D1752,\"00\"))","v":""},{"$f":"IF(OrigTable!D1752=\"\",\"\",ScriptText!$E$1&CHAR(10)&ScriptText!$C$1)","v":""},{"$f":"IF(OrigTable!E1752=\"\",\"\",ScriptText!$B$1&CHAR(10)&ScriptText!$D$1)","v":""},{"$f":"IF(OrigTable!E1752=\"\",\"\",TEXT(OrigTable!E1752,\"00\"))","v":""},{"$f":"IF(OrigTable!E1752=\"\",\"\",ScriptText!$E$1&CHAR(10)&ScriptText!$C$1)","v":""},{"$f":"IF(OrigTable!F1752=\"\",\"\",ScriptText!$B$1&CHAR(10)&ScriptText!$D$1)","v":""},{"$f":"IF(OrigTable!F1752=\"\",\"\",TEXT(OrigTable!F1752,\"00\"))","v":""},{"$f":"IF(OrigTable!F1752=\"\",\"\",ScriptText!$E$1&CHAR(10)&ScriptText!$C$1)","v":""},{"$f":"IF(OrigTable!G1752=\"\",\"\",ScriptText!$B$1&CHAR(10)&ScriptText!$D$1)","v":""},{"$f":"IF(OrigTable!G1752=\"\",\"\",TEXT(OrigTable!G1752,\"00\"))","v":""},{"$f":"IF(OrigTable!G1752=\"\",\"\",ScriptText!$E$1&CHAR(10)&ScriptText!$C$1)","v":""},0]
["\n\n\n",{"$f":"IF(OrigTable!A1753=\"\",\"\",ScriptText!$B$1&CHAR(10)&ScriptText!$D$1)","v":""},{"$f":"IF(OrigTable!A1753=\"\",\"\",TEXT(OrigTable!A1753,\"00\"))","v":""},{"$f":"IF(OrigTable!A1753=\"\",\"\",ScriptText!$E$1&CHAR(10)&ScriptText!$C$1)","v":""},{"$f":"IF(OrigTable!B1753=\"\",\"\",ScriptText!$B$1&CHAR(10)&ScriptText!$D$1)","v":""},{"$f":"IF(OrigTable!B1753=\"\",\"\",TEXT(OrigTable!B1753,\"00\"))","v":""},{"$f":"IF(OrigTable!B1753=\"\",\"\",ScriptText!$E$1&CHAR(10)&ScriptText!C1748)","v":""},{"$f":"IF(OrigTable!C1753=\"\",\"\",ScriptText!$B$1&CHAR(10)&ScriptText!$D$1)","v":""},{"$f":"IF(OrigTable!C1753=\"\",\"\",IF(LEN(OrigTable!C1753)>255,LEFT(OrigTable!C1753,250)&\". . .\",OrigTable!C1753))","v":""},{"$f":"IF(OrigTable!C1753=\"\",\"\",ScriptText!$E$1&CHAR(10)&ScriptText!$C$1)","v":""},{"$f":"IF(OrigTable!D1753=\"\",\"\",ScriptText!$B$1&CHAR(10)&ScriptText!$D$1)","v":""},{"$f":"IF(OrigTable!D1753=\"\",\"\",TEXT(OrigTable!D1753,\"00\"))","v":""},{"$f":"IF(OrigTable!D1753=\"\",\"\",ScriptText!$E$1&CHAR(10)&ScriptText!$C$1)","v":""},{"$f":"IF(OrigTable!E1753=\"\",\"\",ScriptText!$B$1&CHAR(10)&ScriptText!$D$1)","v":""},{"$f":"IF(OrigTable!E1753=\"\",\"\",TEXT(OrigTable!E1753,\"00\"))","v":""},{"$f":"IF(OrigTable!E1753=\"\",\"\",ScriptText!$E$1&CHAR(10)&ScriptText!$C$1)","v":""},{"$f":"IF(OrigTable!F1753=\"\",\"\",ScriptText!$B$1&CHAR(10)&ScriptText!$D$1)","v":""},{"$f":"IF(OrigTable!F1753=\"\",\"\",TEXT(OrigTable!F1753,\"00\"))","v":""},{"$f":"IF(OrigTable!F1753=\"\",\"\",ScriptText!$E$1&CHAR(10)&ScriptText!$C$1)","v":""},{"$f":"IF(OrigTable!G1753=\"\",\"\",ScriptText!$B$1&CHAR(10)&ScriptText!$D$1)","v":""},{"$f":"IF(OrigTable!G1753=\"\",\"\",TEXT(OrigTable!G1753,\"00\"))","v":""},{"$f":"IF(OrigTable!G1753=\"\",\"\",ScriptText!$E$1&CHAR(10)&ScriptText!$C$1)","v":""},0]
["\n\n\n",{"$f":"IF(OrigTable!A1754=\"\",\"\",ScriptText!$B$1&CHAR(10)&ScriptText!$D$1)","v":""},{"$f":"IF(OrigTable!A1754=\"\",\"\",TEXT(OrigTable!A1754,\"00\"))","v":""},{"$f":"IF(OrigTable!A1754=\"\",\"\",ScriptText!$E$1&CHAR(10)&ScriptText!$C$1)","v":""},{"$f":"IF(OrigTable!B1754=\"\",\"\",ScriptText!$B$1&CHAR(10)&ScriptText!$D$1)","v":""},{"$f":"IF(OrigTable!B1754=\"\",\"\",TEXT(OrigTable!B1754,\"00\"))","v":""},{"$f":"IF(OrigTable!B1754=\"\",\"\",ScriptText!$E$1&CHAR(10)&ScriptText!C1749)","v":""},{"$f":"IF(OrigTable!C1754=\"\",\"\",ScriptText!$B$1&CHAR(10)&ScriptText!$D$1)","v":""},{"$f":"IF(OrigTable!C1754=\"\",\"\",IF(LEN(OrigTable!C1754)>255,LEFT(OrigTable!C1754,250)&\". . .\",OrigTable!C1754))","v":""},{"$f":"IF(OrigTable!C1754=\"\",\"\",ScriptText!$E$1&CHAR(10)&ScriptText!$C$1)","v":""},{"$f":"IF(OrigTable!D1754=\"\",\"\",ScriptText!$B$1&CHAR(10)&ScriptText!$D$1)","v":""},{"$f":"IF(OrigTable!D1754=\"\",\"\",TEXT(OrigTable!D1754,\"00\"))","v":""},{"$f":"IF(OrigTable!D1754=\"\",\"\",ScriptText!$E$1&CHAR(10)&ScriptText!$C$1)","v":""},{"$f":"IF(OrigTable!E1754=\"\",\"\",ScriptText!$B$1&CHAR(10)&ScriptText!$D$1)","v":""},{"$f":"IF(OrigTable!E1754=\"\",\"\",TEXT(OrigTable!E1754,\"00\"))","v":""},{"$f":"IF(OrigTable!E1754=\"\",\"\",ScriptText!$E$1&CHAR(10)&ScriptText!$C$1)","v":""},{"$f":"IF(OrigTable!F1754=\"\",\"\",ScriptText!$B$1&CHAR(10)&ScriptText!$D$1)","v":""},{"$f":"IF(OrigTable!F1754=\"\",\"\",TEXT(OrigTable!F1754,\"00\"))","v":""},{"$f":"IF(OrigTable!F1754=\"\",\"\",ScriptText!$E$1&CHAR(10)&ScriptText!$C$1)","v":""},{"$f":"IF(OrigTable!G1754=\"\",\"\",ScriptText!$B$1&CHAR(10)&ScriptText!$D$1)","v":""},{"$f":"IF(OrigTable!G1754=\"\",\"\",TEXT(OrigTable!G1754,\"00\"))","v":""},{"$f":"IF(OrigTable!G1754=\"\",\"\",ScriptText!$E$1&CHAR(10)&ScriptText!$C$1)","v":""},0]
["\n\n\n",{"$f":"IF(OrigTable!A1755=\"\",\"\",ScriptText!$B$1&CHAR(10)&ScriptText!$D$1)","v":""},{"$f":"IF(OrigTable!A1755=\"\",\"\",TEXT(OrigTable!A1755,\"00\"))","v":""},{"$f":"IF(OrigTable!A1755=\"\",\"\",ScriptText!$E$1&CHAR(10)&ScriptText!$C$1)","v":""},{"$f":"IF(OrigTable!B1755=\"\",\"\",ScriptText!$B$1&CHAR(10)&ScriptText!$D$1)","v":""},{"$f":"IF(OrigTable!B1755=\"\",\"\",TEXT(OrigTable!B1755,\"00\"))","v":""},{"$f":"IF(OrigTable!B1755=\"\",\"\",ScriptText!$E$1&CHAR(10)&ScriptText!C1750)","v":""},{"$f":"IF(OrigTable!C1755=\"\",\"\",ScriptText!$B$1&CHAR(10)&ScriptText!$D$1)","v":""},{"$f":"IF(OrigTable!C1755=\"\",\"\",IF(LEN(OrigTable!C1755)>255,LEFT(OrigTable!C1755,250)&\". . .\",OrigTable!C1755))","v":""},{"$f":"IF(OrigTable!C1755=\"\",\"\",ScriptText!$E$1&CHAR(10)&ScriptText!$C$1)","v":""},{"$f":"IF(OrigTable!D1755=\"\",\"\",ScriptText!$B$1&CHAR(10)&ScriptText!$D$1)","v":""},{"$f":"IF(OrigTable!D1755=\"\",\"\",TEXT(OrigTable!D1755,\"00\"))","v":""},{"$f":"IF(OrigTable!D1755=\"\",\"\",ScriptText!$E$1&CHAR(10)&ScriptText!$C$1)","v":""},{"$f":"IF(OrigTable!E1755=\"\",\"\",ScriptText!$B$1&CHAR(10)&ScriptText!$D$1)","v":""},{"$f":"IF(OrigTable!E1755=\"\",\"\",TEXT(OrigTable!E1755,\"00\"))","v":""},{"$f":"IF(OrigTable!E1755=\"\",\"\",ScriptText!$E$1&CHAR(10)&ScriptText!$C$1)","v":""},{"$f":"IF(OrigTable!F1755=\"\",\"\",ScriptText!$B$1&CHAR(10)&ScriptText!$D$1)","v":""},{"$f":"IF(OrigTable!F1755=\"\",\"\",TEXT(OrigTable!F1755,\"00\"))","v":""},{"$f":"IF(OrigTable!F1755=\"\",\"\",ScriptText!$E$1&CHAR(10)&ScriptText!$C$1)","v":""},{"$f":"IF(OrigTable!G1755=\"\",\"\",ScriptText!$B$1&CHAR(10)&ScriptText!$D$1)","v":""},{"$f":"IF(OrigTable!G1755=\"\",\"\",TEXT(OrigTable!G1755,\"00\"))","v":""},{"$f":"IF(OrigTable!G1755=\"\",\"\",ScriptText!$E$1&CHAR(10)&ScriptText!$C$1)","v":""},0]
["\n\n\n",{"$f":"IF(OrigTable!A1756=\"\",\"\",ScriptText!$B$1&CHAR(10)&ScriptText!$D$1)","v":""},{"$f":"IF(OrigTable!A1756=\"\",\"\",TEXT(OrigTable!A1756,\"00\"))","v":""},{"$f":"IF(OrigTable!A1756=\"\",\"\",ScriptText!$E$1&CHAR(10)&ScriptText!$C$1)","v":""},{"$f":"IF(OrigTable!B1756=\"\",\"\",ScriptText!$B$1&CHAR(10)&ScriptText!$D$1)","v":""},{"$f":"IF(OrigTable!B1756=\"\",\"\",TEXT(OrigTable!B1756,\"00\"))","v":""},{"$f":"IF(OrigTable!B1756=\"\",\"\",ScriptText!$E$1&CHAR(10)&ScriptText!C1751)","v":""},{"$f":"IF(OrigTable!C1756=\"\",\"\",ScriptText!$B$1&CHAR(10)&ScriptText!$D$1)","v":""},{"$f":"IF(OrigTable!C1756=\"\",\"\",IF(LEN(OrigTable!C1756)>255,LEFT(OrigTable!C1756,250)&\". . .\",OrigTable!C1756))","v":""},{"$f":"IF(OrigTable!C1756=\"\",\"\",ScriptText!$E$1&CHAR(10)&ScriptText!$C$1)","v":""},{"$f":"IF(OrigTable!D1756=\"\",\"\",ScriptText!$B$1&CHAR(10)&ScriptText!$D$1)","v":""},{"$f":"IF(OrigTable!D1756=\"\",\"\",TEXT(OrigTable!D1756,\"00\"))","v":""},{"$f":"IF(OrigTable!D1756=\"\",\"\",ScriptText!$E$1&CHAR(10)&ScriptText!$C$1)","v":""},{"$f":"IF(OrigTable!E1756=\"\",\"\",ScriptText!$B$1&CHAR(10)&ScriptText!$D$1)","v":""},{"$f":"IF(OrigTable!E1756=\"\",\"\",TEXT(OrigTable!E1756,\"00\"))","v":""},{"$f":"IF(OrigTable!E1756=\"\",\"\",ScriptText!$E$1&CHAR(10)&ScriptText!$C$1)","v":""},{"$f":"IF(OrigTable!F1756=\"\",\"\",ScriptText!$B$1&CHAR(10)&ScriptText!$D$1)","v":""},{"$f":"IF(OrigTable!F1756=\"\",\"\",TEXT(OrigTable!F1756,\"00\"))","v":""},{"$f":"IF(OrigTable!F1756=\"\",\"\",ScriptText!$E$1&CHAR(10)&ScriptText!$C$1)","v":""},{"$f":"IF(OrigTable!G1756=\"\",\"\",ScriptText!$B$1&CHAR(10)&ScriptText!$D$1)","v":""},{"$f":"IF(OrigTable!G1756=\"\",\"\",TEXT(OrigTable!G1756,\"00\"))","v":""},{"$f":"IF(OrigTable!G1756=\"\",\"\",ScriptText!$E$1&CHAR(10)&ScriptText!$C$1)","v":""},0]
["\n\n\n",{"$f":"IF(OrigTable!A1757=\"\",\"\",ScriptText!$B$1&CHAR(10)&ScriptText!$D$1)","v":""},{"$f":"IF(OrigTable!A1757=\"\",\"\",TEXT(OrigTable!A1757,\"00\"))","v":""},{"$f":"IF(OrigTable!A1757=\"\",\"\",ScriptText!$E$1&CHAR(10)&ScriptText!$C$1)","v":""},{"$f":"IF(OrigTable!B1757=\"\",\"\",ScriptText!$B$1&CHAR(10)&ScriptText!$D$1)","v":""},{"$f":"IF(OrigTable!B1757=\"\",\"\",TEXT(OrigTable!B1757,\"00\"))","v":""},{"$f":"IF(OrigTable!B1757=\"\",\"\",ScriptText!$E$1&CHAR(10)&ScriptText!C1752)","v":""},{"$f":"IF(OrigTable!C1757=\"\",\"\",ScriptText!$B$1&CHAR(10)&ScriptText!$D$1)","v":""},{"$f":"IF(OrigTable!C1757=\"\",\"\",IF(LEN(OrigTable!C1757)>255,LEFT(OrigTable!C1757,250)&\". . .\",OrigTable!C1757))","v":""},{"$f":"IF(OrigTable!C1757=\"\",\"\",ScriptText!$E$1&CHAR(10)&ScriptText!$C$1)","v":""},{"$f":"IF(OrigTable!D1757=\"\",\"\",ScriptText!$B$1&CHAR(10)&ScriptText!$D$1)","v":""},{"$f":"IF(OrigTable!D1757=\"\",\"\",TEXT(OrigTable!D1757,\"00\"))","v":""},{"$f":"IF(OrigTable!D1757=\"\",\"\",ScriptText!$E$1&CHAR(10)&ScriptText!$C$1)","v":""},{"$f":"IF(OrigTable!E1757=\"\",\"\",ScriptText!$B$1&CHAR(10)&ScriptText!$D$1)","v":""},{"$f":"IF(OrigTable!E1757=\"\",\"\",TEXT(OrigTable!E1757,\"00\"))","v":""},{"$f":"IF(OrigTable!E1757=\"\",\"\",ScriptText!$E$1&CHAR(10)&ScriptText!$C$1)","v":""},{"$f":"IF(OrigTable!F1757=\"\",\"\",ScriptText!$B$1&CHAR(10)&ScriptText!$D$1)","v":""},{"$f":"IF(OrigTable!F1757=\"\",\"\",TEXT(OrigTable!F1757,\"00\"))","v":""},{"$f":"IF(OrigTable!F1757=\"\",\"\",ScriptText!$E$1&CHAR(10)&ScriptText!$C$1)","v":""},{"$f":"IF(OrigTable!G1757=\"\",\"\",ScriptText!$B$1&CHAR(10)&ScriptText!$D$1)","v":""},{"$f":"IF(OrigTable!G1757=\"\",\"\",TEXT(OrigTable!G1757,\"00\"))","v":""},{"$f":"IF(OrigTable!G1757=\"\",\"\",ScriptText!$E$1&CHAR(10)&ScriptText!$C$1)","v":""},0]
["\n\n\n",{"$f":"IF(OrigTable!A1758=\"\",\"\",ScriptText!$B$1&CHAR(10)&ScriptText!$D$1)","v":""},{"$f":"IF(OrigTable!A1758=\"\",\"\",TEXT(OrigTable!A1758,\"00\"))","v":""},{"$f":"IF(OrigTable!A1758=\"\",\"\",ScriptText!$E$1&CHAR(10)&ScriptText!$C$1)","v":""},{"$f":"IF(OrigTable!B1758=\"\",\"\",ScriptText!$B$1&CHAR(10)&ScriptText!$D$1)","v":""},{"$f":"IF(OrigTable!B1758=\"\",\"\",TEXT(OrigTable!B1758,\"00\"))","v":""},{"$f":"IF(OrigTable!B1758=\"\",\"\",ScriptText!$E$1&CHAR(10)&ScriptText!C1753)","v":""},{"$f":"IF(OrigTable!C1758=\"\",\"\",ScriptText!$B$1&CHAR(10)&ScriptText!$D$1)","v":""},{"$f":"IF(OrigTable!C1758=\"\",\"\",IF(LEN(OrigTable!C1758)>255,LEFT(OrigTable!C1758,250)&\". . .\",OrigTable!C1758))","v":""},{"$f":"IF(OrigTable!C1758=\"\",\"\",ScriptText!$E$1&CHAR(10)&ScriptText!$C$1)","v":""},{"$f":"IF(OrigTable!D1758=\"\",\"\",ScriptText!$B$1&CHAR(10)&ScriptText!$D$1)","v":""},{"$f":"IF(OrigTable!D1758=\"\",\"\",TEXT(OrigTable!D1758,\"00\"))","v":""},{"$f":"IF(OrigTable!D1758=\"\",\"\",ScriptText!$E$1&CHAR(10)&ScriptText!$C$1)","v":""},{"$f":"IF(OrigTable!E1758=\"\",\"\",ScriptText!$B$1&CHAR(10)&ScriptText!$D$1)","v":""},{"$f":"IF(OrigTable!E1758=\"\",\"\",TEXT(OrigTable!E1758,\"00\"))","v":""},{"$f":"IF(OrigTable!E1758=\"\",\"\",ScriptText!$E$1&CHAR(10)&ScriptText!$C$1)","v":""},{"$f":"IF(OrigTable!F1758=\"\",\"\",ScriptText!$B$1&CHAR(10)&ScriptText!$D$1)","v":""},{"$f":"IF(OrigTable!F1758=\"\",\"\",TEXT(OrigTable!F1758,\"00\"))","v":""},{"$f":"IF(OrigTable!F1758=\"\",\"\",ScriptText!$E$1&CHAR(10)&ScriptText!$C$1)","v":""},{"$f":"IF(OrigTable!G1758=\"\",\"\",ScriptText!$B$1&CHAR(10)&ScriptText!$D$1)","v":""},{"$f":"IF(OrigTable!G1758=\"\",\"\",TEXT(OrigTable!G1758,\"00\"))","v":""},{"$f":"IF(OrigTable!G1758=\"\",\"\",ScriptText!$E$1&CHAR(10)&ScriptText!$C$1)","v":""},0]
["\n\n\n",{"$f":"IF(OrigTable!A1759=\"\",\"\",ScriptText!$B$1&CHAR(10)&ScriptText!$D$1)","v":""},{"$f":"IF(OrigTable!A1759=\"\",\"\",TEXT(OrigTable!A1759,\"00\"))","v":""},{"$f":"IF(OrigTable!A1759=\"\",\"\",ScriptText!$E$1&CHAR(10)&ScriptText!$C$1)","v":""},{"$f":"IF(OrigTable!B1759=\"\",\"\",ScriptText!$B$1&CHAR(10)&ScriptText!$D$1)","v":""},{"$f":"IF(OrigTable!B1759=\"\",\"\",TEXT(OrigTable!B1759,\"00\"))","v":""},{"$f":"IF(OrigTable!B1759=\"\",\"\",ScriptText!$E$1&CHAR(10)&ScriptText!C1754)","v":""},{"$f":"IF(OrigTable!C1759=\"\",\"\",ScriptText!$B$1&CHAR(10)&ScriptText!$D$1)","v":""},{"$f":"IF(OrigTable!C1759=\"\",\"\",IF(LEN(OrigTable!C1759)>255,LEFT(OrigTable!C1759,250)&\". . .\",OrigTable!C1759))","v":""},{"$f":"IF(OrigTable!C1759=\"\",\"\",ScriptText!$E$1&CHAR(10)&ScriptText!$C$1)","v":""},{"$f":"IF(OrigTable!D1759=\"\",\"\",ScriptText!$B$1&CHAR(10)&ScriptText!$D$1)","v":""},{"$f":"IF(OrigTable!D1759=\"\",\"\",TEXT(OrigTable!D1759,\"00\"))","v":""},{"$f":"IF(OrigTable!D1759=\"\",\"\",ScriptText!$E$1&CHAR(10)&ScriptText!$C$1)","v":""},{"$f":"IF(OrigTable!E1759=\"\",\"\",ScriptText!$B$1&CHAR(10)&ScriptText!$D$1)","v":""},{"$f":"IF(OrigTable!E1759=\"\",\"\",TEXT(OrigTable!E1759,\"00\"))","v":""},{"$f":"IF(OrigTable!E1759=\"\",\"\",ScriptText!$E$1&CHAR(10)&ScriptText!$C$1)","v":""},{"$f":"IF(OrigTable!F1759=\"\",\"\",ScriptText!$B$1&CHAR(10)&ScriptText!$D$1)","v":""},{"$f":"IF(OrigTable!F1759=\"\",\"\",TEXT(OrigTable!F1759,\"00\"))","v":""},{"$f":"IF(OrigTable!F1759=\"\",\"\",ScriptText!$E$1&CHAR(10)&ScriptText!$C$1)","v":""},{"$f":"IF(OrigTable!G1759=\"\",\"\",ScriptText!$B$1&CHAR(10)&ScriptText!$D$1)","v":""},{"$f":"IF(OrigTable!G1759=\"\",\"\",TEXT(OrigTable!G1759,\"00\"))","v":""},{"$f":"IF(OrigTable!G1759=\"\",\"\",ScriptText!$E$1&CHAR(10)&ScriptText!$C$1)","v":""},0]
["\n\n\n",{"$f":"IF(OrigTable!A1760=\"\",\"\",ScriptText!$B$1&CHAR(10)&ScriptText!$D$1)","v":""},{"$f":"IF(OrigTable!A1760=\"\",\"\",TEXT(OrigTable!A1760,\"00\"))","v":""},{"$f":"IF(OrigTable!A1760=\"\",\"\",ScriptText!$E$1&CHAR(10)&ScriptText!$C$1)","v":""},{"$f":"IF(OrigTable!B1760=\"\",\"\",ScriptText!$B$1&CHAR(10)&ScriptText!$D$1)","v":""},{"$f":"IF(OrigTable!B1760=\"\",\"\",TEXT(OrigTable!B1760,\"00\"))","v":""},{"$f":"IF(OrigTable!B1760=\"\",\"\",ScriptText!$E$1&CHAR(10)&ScriptText!C1755)","v":""},{"$f":"IF(OrigTable!C1760=\"\",\"\",ScriptText!$B$1&CHAR(10)&ScriptText!$D$1)","v":""},{"$f":"IF(OrigTable!C1760=\"\",\"\",IF(LEN(OrigTable!C1760)>255,LEFT(OrigTable!C1760,250)&\". . .\",OrigTable!C1760))","v":""},{"$f":"IF(OrigTable!C1760=\"\",\"\",ScriptText!$E$1&CHAR(10)&ScriptText!$C$1)","v":""},{"$f":"IF(OrigTable!D1760=\"\",\"\",ScriptText!$B$1&CHAR(10)&ScriptText!$D$1)","v":""},{"$f":"IF(OrigTable!D1760=\"\",\"\",TEXT(OrigTable!D1760,\"00\"))","v":""},{"$f":"IF(OrigTable!D1760=\"\",\"\",ScriptText!$E$1&CHAR(10)&ScriptText!$C$1)","v":""},{"$f":"IF(OrigTable!E1760=\"\",\"\",ScriptText!$B$1&CHAR(10)&ScriptText!$D$1)","v":""},{"$f":"IF(OrigTable!E1760=\"\",\"\",TEXT(OrigTable!E1760,\"00\"))","v":""},{"$f":"IF(OrigTable!E1760=\"\",\"\",ScriptText!$E$1&CHAR(10)&ScriptText!$C$1)","v":""},{"$f":"IF(OrigTable!F1760=\"\",\"\",ScriptText!$B$1&CHAR(10)&ScriptText!$D$1)","v":""},{"$f":"IF(OrigTable!F1760=\"\",\"\",TEXT(OrigTable!F1760,\"00\"))","v":""},{"$f":"IF(OrigTable!F1760=\"\",\"\",ScriptText!$E$1&CHAR(10)&ScriptText!$C$1)","v":""},{"$f":"IF(OrigTable!G1760=\"\",\"\",ScriptText!$B$1&CHAR(10)&ScriptText!$D$1)","v":""},{"$f":"IF(OrigTable!G1760=\"\",\"\",TEXT(OrigTable!G1760,\"00\"))","v":""},{"$f":"IF(OrigTable!G1760=\"\",\"\",ScriptText!$E$1&CHAR(10)&ScriptText!$C$1)","v":""},0]
["\n\n\n",{"$f":"IF(OrigTable!A1761=\"\",\"\",ScriptText!$B$1&CHAR(10)&ScriptText!$D$1)","v":""},{"$f":"IF(OrigTable!A1761=\"\",\"\",TEXT(OrigTable!A1761,\"00\"))","v":""},{"$f":"IF(OrigTable!A1761=\"\",\"\",ScriptText!$E$1&CHAR(10)&ScriptText!$C$1)","v":""},{"$f":"IF(OrigTable!B1761=\"\",\"\",ScriptText!$B$1&CHAR(10)&ScriptText!$D$1)","v":""},{"$f":"IF(OrigTable!B1761=\"\",\"\",TEXT(OrigTable!B1761,\"00\"))","v":""},{"$f":"IF(OrigTable!B1761=\"\",\"\",ScriptText!$E$1&CHAR(10)&ScriptText!C1756)","v":""},{"$f":"IF(OrigTable!C1761=\"\",\"\",ScriptText!$B$1&CHAR(10)&ScriptText!$D$1)","v":""},{"$f":"IF(OrigTable!C1761=\"\",\"\",IF(LEN(OrigTable!C1761)>255,LEFT(OrigTable!C1761,250)&\". . .\",OrigTable!C1761))","v":""},{"$f":"IF(OrigTable!C1761=\"\",\"\",ScriptText!$E$1&CHAR(10)&ScriptText!$C$1)","v":""},{"$f":"IF(OrigTable!D1761=\"\",\"\",ScriptText!$B$1&CHAR(10)&ScriptText!$D$1)","v":""},{"$f":"IF(OrigTable!D1761=\"\",\"\",TEXT(OrigTable!D1761,\"00\"))","v":""},{"$f":"IF(OrigTable!D1761=\"\",\"\",ScriptText!$E$1&CHAR(10)&ScriptText!$C$1)","v":""},{"$f":"IF(OrigTable!E1761=\"\",\"\",ScriptText!$B$1&CHAR(10)&ScriptText!$D$1)","v":""},{"$f":"IF(OrigTable!E1761=\"\",\"\",TEXT(OrigTable!E1761,\"00\"))","v":""},{"$f":"IF(OrigTable!E1761=\"\",\"\",ScriptText!$E$1&CHAR(10)&ScriptText!$C$1)","v":""},{"$f":"IF(OrigTable!F1761=\"\",\"\",ScriptText!$B$1&CHAR(10)&ScriptText!$D$1)","v":""},{"$f":"IF(OrigTable!F1761=\"\",\"\",TEXT(OrigTable!F1761,\"00\"))","v":""},{"$f":"IF(OrigTable!F1761=\"\",\"\",ScriptText!$E$1&CHAR(10)&ScriptText!$C$1)","v":""},{"$f":"IF(OrigTable!G1761=\"\",\"\",ScriptText!$B$1&CHAR(10)&ScriptText!$D$1)","v":""},{"$f":"IF(OrigTable!G1761=\"\",\"\",TEXT(OrigTable!G1761,\"00\"))","v":""},{"$f":"IF(OrigTable!G1761=\"\",\"\",ScriptText!$E$1&CHAR(10)&ScriptText!$C$1)","v":""},0]
["\n\n\n",{"$f":"IF(OrigTable!A1762=\"\",\"\",ScriptText!$B$1&CHAR(10)&ScriptText!$D$1)","v":""},{"$f":"IF(OrigTable!A1762=\"\",\"\",TEXT(OrigTable!A1762,\"00\"))","v":""},{"$f":"IF(OrigTable!A1762=\"\",\"\",ScriptText!$E$1&CHAR(10)&ScriptText!$C$1)","v":""},{"$f":"IF(OrigTable!B1762=\"\",\"\",ScriptText!$B$1&CHAR(10)&ScriptText!$D$1)","v":""},{"$f":"IF(OrigTable!B1762=\"\",\"\",TEXT(OrigTable!B1762,\"00\"))","v":""},{"$f":"IF(OrigTable!B1762=\"\",\"\",ScriptText!$E$1&CHAR(10)&ScriptText!C1757)","v":""},{"$f":"IF(OrigTable!C1762=\"\",\"\",ScriptText!$B$1&CHAR(10)&ScriptText!$D$1)","v":""},{"$f":"IF(OrigTable!C1762=\"\",\"\",IF(LEN(OrigTable!C1762)>255,LEFT(OrigTable!C1762,250)&\". . .\",OrigTable!C1762))","v":""},{"$f":"IF(OrigTable!C1762=\"\",\"\",ScriptText!$E$1&CHAR(10)&ScriptText!$C$1)","v":""},{"$f":"IF(OrigTable!D1762=\"\",\"\",ScriptText!$B$1&CHAR(10)&ScriptText!$D$1)","v":""},{"$f":"IF(OrigTable!D1762=\"\",\"\",TEXT(OrigTable!D1762,\"00\"))","v":""},{"$f":"IF(OrigTable!D1762=\"\",\"\",ScriptText!$E$1&CHAR(10)&ScriptText!$C$1)","v":""},{"$f":"IF(OrigTable!E1762=\"\",\"\",ScriptText!$B$1&CHAR(10)&ScriptText!$D$1)","v":""},{"$f":"IF(OrigTable!E1762=\"\",\"\",TEXT(OrigTable!E1762,\"00\"))","v":""},{"$f":"IF(OrigTable!E1762=\"\",\"\",ScriptText!$E$1&CHAR(10)&ScriptText!$C$1)","v":""},{"$f":"IF(OrigTable!F1762=\"\",\"\",ScriptText!$B$1&CHAR(10)&ScriptText!$D$1)","v":""},{"$f":"IF(OrigTable!F1762=\"\",\"\",TEXT(OrigTable!F1762,\"00\"))","v":""},{"$f":"IF(OrigTable!F1762=\"\",\"\",ScriptText!$E$1&CHAR(10)&ScriptText!$C$1)","v":""},{"$f":"IF(OrigTable!G1762=\"\",\"\",ScriptText!$B$1&CHAR(10)&ScriptText!$D$1)","v":""},{"$f":"IF(OrigTable!G1762=\"\",\"\",TEXT(OrigTable!G1762,\"00\"))","v":""},{"$f":"IF(OrigTable!G1762=\"\",\"\",ScriptText!$E$1&CHAR(10)&ScriptText!$C$1)","v":""},0]
["\n\n\n",{"$f":"IF(OrigTable!A1763=\"\",\"\",ScriptText!$B$1&CHAR(10)&ScriptText!$D$1)","v":""},{"$f":"IF(OrigTable!A1763=\"\",\"\",TEXT(OrigTable!A1763,\"00\"))","v":""},{"$f":"IF(OrigTable!A1763=\"\",\"\",ScriptText!$E$1&CHAR(10)&ScriptText!$C$1)","v":""},{"$f":"IF(OrigTable!B1763=\"\",\"\",ScriptText!$B$1&CHAR(10)&ScriptText!$D$1)","v":""},{"$f":"IF(OrigTable!B1763=\"\",\"\",TEXT(OrigTable!B1763,\"00\"))","v":""},{"$f":"IF(OrigTable!B1763=\"\",\"\",ScriptText!$E$1&CHAR(10)&ScriptText!C1758)","v":""},{"$f":"IF(OrigTable!C1763=\"\",\"\",ScriptText!$B$1&CHAR(10)&ScriptText!$D$1)","v":""},{"$f":"IF(OrigTable!C1763=\"\",\"\",IF(LEN(OrigTable!C1763)>255,LEFT(OrigTable!C1763,250)&\". . .\",OrigTable!C1763))","v":""},{"$f":"IF(OrigTable!C1763=\"\",\"\",ScriptText!$E$1&CHAR(10)&ScriptText!$C$1)","v":""},{"$f":"IF(OrigTable!D1763=\"\",\"\",ScriptText!$B$1&CHAR(10)&ScriptText!$D$1)","v":""},{"$f":"IF(OrigTable!D1763=\"\",\"\",TEXT(OrigTable!D1763,\"00\"))","v":""},{"$f":"IF(OrigTable!D1763=\"\",\"\",ScriptText!$E$1&CHAR(10)&ScriptText!$C$1)","v":""},{"$f":"IF(OrigTable!E1763=\"\",\"\",ScriptText!$B$1&CHAR(10)&ScriptText!$D$1)","v":""},{"$f":"IF(OrigTable!E1763=\"\",\"\",TEXT(OrigTable!E1763,\"00\"))","v":""},{"$f":"IF(OrigTable!E1763=\"\",\"\",ScriptText!$E$1&CHAR(10)&ScriptText!$C$1)","v":""},{"$f":"IF(OrigTable!F1763=\"\",\"\",ScriptText!$B$1&CHAR(10)&ScriptText!$D$1)","v":""},{"$f":"IF(OrigTable!F1763=\"\",\"\",TEXT(OrigTable!F1763,\"00\"))","v":""},{"$f":"IF(OrigTable!F1763=\"\",\"\",ScriptText!$E$1&CHAR(10)&ScriptText!$C$1)","v":""},{"$f":"IF(OrigTable!G1763=\"\",\"\",ScriptText!$B$1&CHAR(10)&ScriptText!$D$1)","v":""},{"$f":"IF(OrigTable!G1763=\"\",\"\",TEXT(OrigTable!G1763,\"00\"))","v":""},{"$f":"IF(OrigTable!G1763=\"\",\"\",ScriptText!$E$1&CHAR(10)&ScriptText!$C$1)","v":""},0]
["\n\n\n",{"$f":"IF(OrigTable!A1764=\"\",\"\",ScriptText!$B$1&CHAR(10)&ScriptText!$D$1)","v":""},{"$f":"IF(OrigTable!A1764=\"\",\"\",TEXT(OrigTable!A1764,\"00\"))","v":""},{"$f":"IF(OrigTable!A1764=\"\",\"\",ScriptText!$E$1&CHAR(10)&ScriptText!$C$1)","v":""},{"$f":"IF(OrigTable!B1764=\"\",\"\",ScriptText!$B$1&CHAR(10)&ScriptText!$D$1)","v":""},{"$f":"IF(OrigTable!B1764=\"\",\"\",TEXT(OrigTable!B1764,\"00\"))","v":""},{"$f":"IF(OrigTable!B1764=\"\",\"\",ScriptText!$E$1&CHAR(10)&ScriptText!C1759)","v":""},{"$f":"IF(OrigTable!C1764=\"\",\"\",ScriptText!$B$1&CHAR(10)&ScriptText!$D$1)","v":""},{"$f":"IF(OrigTable!C1764=\"\",\"\",IF(LEN(OrigTable!C1764)>255,LEFT(OrigTable!C1764,250)&\". . .\",OrigTable!C1764))","v":""},{"$f":"IF(OrigTable!C1764=\"\",\"\",ScriptText!$E$1&CHAR(10)&ScriptText!$C$1)","v":""},{"$f":"IF(OrigTable!D1764=\"\",\"\",ScriptText!$B$1&CHAR(10)&ScriptText!$D$1)","v":""},{"$f":"IF(OrigTable!D1764=\"\",\"\",TEXT(OrigTable!D1764,\"00\"))","v":""},{"$f":"IF(OrigTable!D1764=\"\",\"\",ScriptText!$E$1&CHAR(10)&ScriptText!$C$1)","v":""},{"$f":"IF(OrigTable!E1764=\"\",\"\",ScriptText!$B$1&CHAR(10)&ScriptText!$D$1)","v":""},{"$f":"IF(OrigTable!E1764=\"\",\"\",TEXT(OrigTable!E1764,\"00\"))","v":""},{"$f":"IF(OrigTable!E1764=\"\",\"\",ScriptText!$E$1&CHAR(10)&ScriptText!$C$1)","v":""},{"$f":"IF(OrigTable!F1764=\"\",\"\",ScriptText!$B$1&CHAR(10)&ScriptText!$D$1)","v":""},{"$f":"IF(OrigTable!F1764=\"\",\"\",TEXT(OrigTable!F1764,\"00\"))","v":""},{"$f":"IF(OrigTable!F1764=\"\",\"\",ScriptText!$E$1&CHAR(10)&ScriptText!$C$1)","v":""},{"$f":"IF(OrigTable!G1764=\"\",\"\",ScriptText!$B$1&CHAR(10)&ScriptText!$D$1)","v":""},{"$f":"IF(OrigTable!G1764=\"\",\"\",TEXT(OrigTable!G1764,\"00\"))","v":""},{"$f":"IF(OrigTable!G1764=\"\",\"\",ScriptText!$E$1&CHAR(10)&ScriptText!$C$1)","v":""},0]
["\n\n\n",{"$f":"IF(OrigTable!A1765=\"\",\"\",ScriptText!$B$1&CHAR(10)&ScriptText!$D$1)","v":""},{"$f":"IF(OrigTable!A1765=\"\",\"\",TEXT(OrigTable!A1765,\"00\"))","v":""},{"$f":"IF(OrigTable!A1765=\"\",\"\",ScriptText!$E$1&CHAR(10)&ScriptText!$C$1)","v":""},{"$f":"IF(OrigTable!B1765=\"\",\"\",ScriptText!$B$1&CHAR(10)&ScriptText!$D$1)","v":""},{"$f":"IF(OrigTable!B1765=\"\",\"\",TEXT(OrigTable!B1765,\"00\"))","v":""},{"$f":"IF(OrigTable!B1765=\"\",\"\",ScriptText!$E$1&CHAR(10)&ScriptText!C1760)","v":""},{"$f":"IF(OrigTable!C1765=\"\",\"\",ScriptText!$B$1&CHAR(10)&ScriptText!$D$1)","v":""},{"$f":"IF(OrigTable!C1765=\"\",\"\",IF(LEN(OrigTable!C1765)>255,LEFT(OrigTable!C1765,250)&\". . .\",OrigTable!C1765))","v":""},{"$f":"IF(OrigTable!C1765=\"\",\"\",ScriptText!$E$1&CHAR(10)&ScriptText!$C$1)","v":""},{"$f":"IF(OrigTable!D1765=\"\",\"\",ScriptText!$B$1&CHAR(10)&ScriptText!$D$1)","v":""},{"$f":"IF(OrigTable!D1765=\"\",\"\",TEXT(OrigTable!D1765,\"00\"))","v":""},{"$f":"IF(OrigTable!D1765=\"\",\"\",ScriptText!$E$1&CHAR(10)&ScriptText!$C$1)","v":""},{"$f":"IF(OrigTable!E1765=\"\",\"\",ScriptText!$B$1&CHAR(10)&ScriptText!$D$1)","v":""},{"$f":"IF(OrigTable!E1765=\"\",\"\",TEXT(OrigTable!E1765,\"00\"))","v":""},{"$f":"IF(OrigTable!E1765=\"\",\"\",ScriptText!$E$1&CHAR(10)&ScriptText!$C$1)","v":""},{"$f":"IF(OrigTable!F1765=\"\",\"\",ScriptText!$B$1&CHAR(10)&ScriptText!$D$1)","v":""},{"$f":"IF(OrigTable!F1765=\"\",\"\",TEXT(OrigTable!F1765,\"00\"))","v":""},{"$f":"IF(OrigTable!F1765=\"\",\"\",ScriptText!$E$1&CHAR(10)&ScriptText!$C$1)","v":""},{"$f":"IF(OrigTable!G1765=\"\",\"\",ScriptText!$B$1&CHAR(10)&ScriptText!$D$1)","v":""},{"$f":"IF(OrigTable!G1765=\"\",\"\",TEXT(OrigTable!G1765,\"00\"))","v":""},{"$f":"IF(OrigTable!G1765=\"\",\"\",ScriptText!$E$1&CHAR(10)&ScriptText!$C$1)","v":""},0]
["\n\n\n",{"$f":"IF(OrigTable!A1766=\"\",\"\",ScriptText!$B$1&CHAR(10)&ScriptText!$D$1)","v":""},{"$f":"IF(OrigTable!A1766=\"\",\"\",TEXT(OrigTable!A1766,\"00\"))","v":""},{"$f":"IF(OrigTable!A1766=\"\",\"\",ScriptText!$E$1&CHAR(10)&ScriptText!$C$1)","v":""},{"$f":"IF(OrigTable!B1766=\"\",\"\",ScriptText!$B$1&CHAR(10)&ScriptText!$D$1)","v":""},{"$f":"IF(OrigTable!B1766=\"\",\"\",TEXT(OrigTable!B1766,\"00\"))","v":""},{"$f":"IF(OrigTable!B1766=\"\",\"\",ScriptText!$E$1&CHAR(10)&ScriptText!C1761)","v":""},{"$f":"IF(OrigTable!C1766=\"\",\"\",ScriptText!$B$1&CHAR(10)&ScriptText!$D$1)","v":""},{"$f":"IF(OrigTable!C1766=\"\",\"\",IF(LEN(OrigTable!C1766)>255,LEFT(OrigTable!C1766,250)&\". . .\",OrigTable!C1766))","v":""},{"$f":"IF(OrigTable!C1766=\"\",\"\",ScriptText!$E$1&CHAR(10)&ScriptText!$C$1)","v":""},{"$f":"IF(OrigTable!D1766=\"\",\"\",ScriptText!$B$1&CHAR(10)&ScriptText!$D$1)","v":""},{"$f":"IF(OrigTable!D1766=\"\",\"\",TEXT(OrigTable!D1766,\"00\"))","v":""},{"$f":"IF(OrigTable!D1766=\"\",\"\",ScriptText!$E$1&CHAR(10)&ScriptText!$C$1)","v":""},{"$f":"IF(OrigTable!E1766=\"\",\"\",ScriptText!$B$1&CHAR(10)&ScriptText!$D$1)","v":""},{"$f":"IF(OrigTable!E1766=\"\",\"\",TEXT(OrigTable!E1766,\"00\"))","v":""},{"$f":"IF(OrigTable!E1766=\"\",\"\",ScriptText!$E$1&CHAR(10)&ScriptText!$C$1)","v":""},{"$f":"IF(OrigTable!F1766=\"\",\"\",ScriptText!$B$1&CHAR(10)&ScriptText!$D$1)","v":""},{"$f":"IF(OrigTable!F1766=\"\",\"\",TEXT(OrigTable!F1766,\"00\"))","v":""},{"$f":"IF(OrigTable!F1766=\"\",\"\",ScriptText!$E$1&CHAR(10)&ScriptText!$C$1)","v":""},{"$f":"IF(OrigTable!G1766=\"\",\"\",ScriptText!$B$1&CHAR(10)&ScriptText!$D$1)","v":""},{"$f":"IF(OrigTable!G1766=\"\",\"\",TEXT(OrigTable!G1766,\"00\"))","v":""},{"$f":"IF(OrigTable!G1766=\"\",\"\",ScriptText!$E$1&CHAR(10)&ScriptText!$C$1)","v":""},0]
["\n\n\n",{"$f":"IF(OrigTable!A1767=\"\",\"\",ScriptText!$B$1&CHAR(10)&ScriptText!$D$1)","v":""},{"$f":"IF(OrigTable!A1767=\"\",\"\",TEXT(OrigTable!A1767,\"00\"))","v":""},{"$f":"IF(OrigTable!A1767=\"\",\"\",ScriptText!$E$1&CHAR(10)&ScriptText!$C$1)","v":""},{"$f":"IF(OrigTable!B1767=\"\",\"\",ScriptText!$B$1&CHAR(10)&ScriptText!$D$1)","v":""},{"$f":"IF(OrigTable!B1767=\"\",\"\",TEXT(OrigTable!B1767,\"00\"))","v":""},{"$f":"IF(OrigTable!B1767=\"\",\"\",ScriptText!$E$1&CHAR(10)&ScriptText!C1762)","v":""},{"$f":"IF(OrigTable!C1767=\"\",\"\",ScriptText!$B$1&CHAR(10)&ScriptText!$D$1)","v":""},{"$f":"IF(OrigTable!C1767=\"\",\"\",IF(LEN(OrigTable!C1767)>255,LEFT(OrigTable!C1767,250)&\". . .\",OrigTable!C1767))","v":""},{"$f":"IF(OrigTable!C1767=\"\",\"\",ScriptText!$E$1&CHAR(10)&ScriptText!$C$1)","v":""},{"$f":"IF(OrigTable!D1767=\"\",\"\",ScriptText!$B$1&CHAR(10)&ScriptText!$D$1)","v":""},{"$f":"IF(OrigTable!D1767=\"\",\"\",TEXT(OrigTable!D1767,\"00\"))","v":""},{"$f":"IF(OrigTable!D1767=\"\",\"\",ScriptText!$E$1&CHAR(10)&ScriptText!$C$1)","v":""},{"$f":"IF(OrigTable!E1767=\"\",\"\",ScriptText!$B$1&CHAR(10)&ScriptText!$D$1)","v":""},{"$f":"IF(OrigTable!E1767=\"\",\"\",TEXT(OrigTable!E1767,\"00\"))","v":""},{"$f":"IF(OrigTable!E1767=\"\",\"\",ScriptText!$E$1&CHAR(10)&ScriptText!$C$1)","v":""},{"$f":"IF(OrigTable!F1767=\"\",\"\",ScriptText!$B$1&CHAR(10)&ScriptText!$D$1)","v":""},{"$f":"IF(OrigTable!F1767=\"\",\"\",TEXT(OrigTable!F1767,\"00\"))","v":""},{"$f":"IF(OrigTable!F1767=\"\",\"\",ScriptText!$E$1&CHAR(10)&ScriptText!$C$1)","v":""},{"$f":"IF(OrigTable!G1767=\"\",\"\",ScriptText!$B$1&CHAR(10)&ScriptText!$D$1)","v":""},{"$f":"IF(OrigTable!G1767=\"\",\"\",TEXT(OrigTable!G1767,\"00\"))","v":""},{"$f":"IF(OrigTable!G1767=\"\",\"\",ScriptText!$E$1&CHAR(10)&ScriptText!$C$1)","v":""},0]
["\n\n\n",{"$f":"IF(OrigTable!A1768=\"\",\"\",ScriptText!$B$1&CHAR(10)&ScriptText!$D$1)","v":""},{"$f":"IF(OrigTable!A1768=\"\",\"\",TEXT(OrigTable!A1768,\"00\"))","v":""},{"$f":"IF(OrigTable!A1768=\"\",\"\",ScriptText!$E$1&CHAR(10)&ScriptText!$C$1)","v":""},{"$f":"IF(OrigTable!B1768=\"\",\"\",ScriptText!$B$1&CHAR(10)&ScriptText!$D$1)","v":""},{"$f":"IF(OrigTable!B1768=\"\",\"\",TEXT(OrigTable!B1768,\"00\"))","v":""},{"$f":"IF(OrigTable!B1768=\"\",\"\",ScriptText!$E$1&CHAR(10)&ScriptText!C1763)","v":""},{"$f":"IF(OrigTable!C1768=\"\",\"\",ScriptText!$B$1&CHAR(10)&ScriptText!$D$1)","v":""},{"$f":"IF(OrigTable!C1768=\"\",\"\",IF(LEN(OrigTable!C1768)>255,LEFT(OrigTable!C1768,250)&\". . .\",OrigTable!C1768))","v":""},{"$f":"IF(OrigTable!C1768=\"\",\"\",ScriptText!$E$1&CHAR(10)&ScriptText!$C$1)","v":""},{"$f":"IF(OrigTable!D1768=\"\",\"\",ScriptText!$B$1&CHAR(10)&ScriptText!$D$1)","v":""},{"$f":"IF(OrigTable!D1768=\"\",\"\",TEXT(OrigTable!D1768,\"00\"))","v":""},{"$f":"IF(OrigTable!D1768=\"\",\"\",ScriptText!$E$1&CHAR(10)&ScriptText!$C$1)","v":""},{"$f":"IF(OrigTable!E1768=\"\",\"\",ScriptText!$B$1&CHAR(10)&ScriptText!$D$1)","v":""},{"$f":"IF(OrigTable!E1768=\"\",\"\",TEXT(OrigTable!E1768,\"00\"))","v":""},{"$f":"IF(OrigTable!E1768=\"\",\"\",ScriptText!$E$1&CHAR(10)&ScriptText!$C$1)","v":""},{"$f":"IF(OrigTable!F1768=\"\",\"\",ScriptText!$B$1&CHAR(10)&ScriptText!$D$1)","v":""},{"$f":"IF(OrigTable!F1768=\"\",\"\",TEXT(OrigTable!F1768,\"00\"))","v":""},{"$f":"IF(OrigTable!F1768=\"\",\"\",ScriptText!$E$1&CHAR(10)&ScriptText!$C$1)","v":""},{"$f":"IF(OrigTable!G1768=\"\",\"\",ScriptText!$B$1&CHAR(10)&ScriptText!$D$1)","v":""},{"$f":"IF(OrigTable!G1768=\"\",\"\",TEXT(OrigTable!G1768,\"00\"))","v":""},{"$f":"IF(OrigTable!G1768=\"\",\"\",ScriptText!$E$1&CHAR(10)&ScriptText!$C$1)","v":""},0]
["\n\n\n",{"$f":"IF(OrigTable!A1769=\"\",\"\",ScriptText!$B$1&CHAR(10)&ScriptText!$D$1)","v":""},{"$f":"IF(OrigTable!A1769=\"\",\"\",TEXT(OrigTable!A1769,\"00\"))","v":""},{"$f":"IF(OrigTable!A1769=\"\",\"\",ScriptText!$E$1&CHAR(10)&ScriptText!$C$1)","v":""},{"$f":"IF(OrigTable!B1769=\"\",\"\",ScriptText!$B$1&CHAR(10)&ScriptText!$D$1)","v":""},{"$f":"IF(OrigTable!B1769=\"\",\"\",TEXT(OrigTable!B1769,\"00\"))","v":""},{"$f":"IF(OrigTable!B1769=\"\",\"\",ScriptText!$E$1&CHAR(10)&ScriptText!C1764)","v":""},{"$f":"IF(OrigTable!C1769=\"\",\"\",ScriptText!$B$1&CHAR(10)&ScriptText!$D$1)","v":""},{"$f":"IF(OrigTable!C1769=\"\",\"\",IF(LEN(OrigTable!C1769)>255,LEFT(OrigTable!C1769,250)&\". . .\",OrigTable!C1769))","v":""},{"$f":"IF(OrigTable!C1769=\"\",\"\",ScriptText!$E$1&CHAR(10)&ScriptText!$C$1)","v":""},{"$f":"IF(OrigTable!D1769=\"\",\"\",ScriptText!$B$1&CHAR(10)&ScriptText!$D$1)","v":""},{"$f":"IF(OrigTable!D1769=\"\",\"\",TEXT(OrigTable!D1769,\"00\"))","v":""},{"$f":"IF(OrigTable!D1769=\"\",\"\",ScriptText!$E$1&CHAR(10)&ScriptText!$C$1)","v":""},{"$f":"IF(OrigTable!E1769=\"\",\"\",ScriptText!$B$1&CHAR(10)&ScriptText!$D$1)","v":""},{"$f":"IF(OrigTable!E1769=\"\",\"\",TEXT(OrigTable!E1769,\"00\"))","v":""},{"$f":"IF(OrigTable!E1769=\"\",\"\",ScriptText!$E$1&CHAR(10)&ScriptText!$C$1)","v":""},{"$f":"IF(OrigTable!F1769=\"\",\"\",ScriptText!$B$1&CHAR(10)&ScriptText!$D$1)","v":""},{"$f":"IF(OrigTable!F1769=\"\",\"\",TEXT(OrigTable!F1769,\"00\"))","v":""},{"$f":"IF(OrigTable!F1769=\"\",\"\",ScriptText!$E$1&CHAR(10)&ScriptText!$C$1)","v":""},{"$f":"IF(OrigTable!G1769=\"\",\"\",ScriptText!$B$1&CHAR(10)&ScriptText!$D$1)","v":""},{"$f":"IF(OrigTable!G1769=\"\",\"\",TEXT(OrigTable!G1769,\"00\"))","v":""},{"$f":"IF(OrigTable!G1769=\"\",\"\",ScriptText!$E$1&CHAR(10)&ScriptText!$C$1)","v":""},0]
["\n\n\n",{"$f":"IF(OrigTable!A1770=\"\",\"\",ScriptText!$B$1&CHAR(10)&ScriptText!$D$1)","v":""},{"$f":"IF(OrigTable!A1770=\"\",\"\",TEXT(OrigTable!A1770,\"00\"))","v":""},{"$f":"IF(OrigTable!A1770=\"\",\"\",ScriptText!$E$1&CHAR(10)&ScriptText!$C$1)","v":""},{"$f":"IF(OrigTable!B1770=\"\",\"\",ScriptText!$B$1&CHAR(10)&ScriptText!$D$1)","v":""},{"$f":"IF(OrigTable!B1770=\"\",\"\",TEXT(OrigTable!B1770,\"00\"))","v":""},{"$f":"IF(OrigTable!B1770=\"\",\"\",ScriptText!$E$1&CHAR(10)&ScriptText!C1765)","v":""},{"$f":"IF(OrigTable!C1770=\"\",\"\",ScriptText!$B$1&CHAR(10)&ScriptText!$D$1)","v":""},{"$f":"IF(OrigTable!C1770=\"\",\"\",IF(LEN(OrigTable!C1770)>255,LEFT(OrigTable!C1770,250)&\". . .\",OrigTable!C1770))","v":""},{"$f":"IF(OrigTable!C1770=\"\",\"\",ScriptText!$E$1&CHAR(10)&ScriptText!$C$1)","v":""},{"$f":"IF(OrigTable!D1770=\"\",\"\",ScriptText!$B$1&CHAR(10)&ScriptText!$D$1)","v":""},{"$f":"IF(OrigTable!D1770=\"\",\"\",TEXT(OrigTable!D1770,\"00\"))","v":""},{"$f":"IF(OrigTable!D1770=\"\",\"\",ScriptText!$E$1&CHAR(10)&ScriptText!$C$1)","v":""},{"$f":"IF(OrigTable!E1770=\"\",\"\",ScriptText!$B$1&CHAR(10)&ScriptText!$D$1)","v":""},{"$f":"IF(OrigTable!E1770=\"\",\"\",TEXT(OrigTable!E1770,\"00\"))","v":""},{"$f":"IF(OrigTable!E1770=\"\",\"\",ScriptText!$E$1&CHAR(10)&ScriptText!$C$1)","v":""},{"$f":"IF(OrigTable!F1770=\"\",\"\",ScriptText!$B$1&CHAR(10)&ScriptText!$D$1)","v":""},{"$f":"IF(OrigTable!F1770=\"\",\"\",TEXT(OrigTable!F1770,\"00\"))","v":""},{"$f":"IF(OrigTable!F1770=\"\",\"\",ScriptText!$E$1&CHAR(10)&ScriptText!$C$1)","v":""},{"$f":"IF(OrigTable!G1770=\"\",\"\",ScriptText!$B$1&CHAR(10)&ScriptText!$D$1)","v":""},{"$f":"IF(OrigTable!G1770=\"\",\"\",TEXT(OrigTable!G1770,\"00\"))","v":""},{"$f":"IF(OrigTable!G1770=\"\",\"\",ScriptText!$E$1&CHAR(10)&ScriptText!$C$1)","v":""},0]
["\n\n\n",{"$f":"IF(OrigTable!A1771=\"\",\"\",ScriptText!$B$1&CHAR(10)&ScriptText!$D$1)","v":""},{"$f":"IF(OrigTable!A1771=\"\",\"\",TEXT(OrigTable!A1771,\"00\"))","v":""},{"$f":"IF(OrigTable!A1771=\"\",\"\",ScriptText!$E$1&CHAR(10)&ScriptText!$C$1)","v":""},{"$f":"IF(OrigTable!B1771=\"\",\"\",ScriptText!$B$1&CHAR(10)&ScriptText!$D$1)","v":""},{"$f":"IF(OrigTable!B1771=\"\",\"\",TEXT(OrigTable!B1771,\"00\"))","v":""},{"$f":"IF(OrigTable!B1771=\"\",\"\",ScriptText!$E$1&CHAR(10)&ScriptText!C1766)","v":""},{"$f":"IF(OrigTable!C1771=\"\",\"\",ScriptText!$B$1&CHAR(10)&ScriptText!$D$1)","v":""},{"$f":"IF(OrigTable!C1771=\"\",\"\",IF(LEN(OrigTable!C1771)>255,LEFT(OrigTable!C1771,250)&\". . .\",OrigTable!C1771))","v":""},{"$f":"IF(OrigTable!C1771=\"\",\"\",ScriptText!$E$1&CHAR(10)&ScriptText!$C$1)","v":""},{"$f":"IF(OrigTable!D1771=\"\",\"\",ScriptText!$B$1&CHAR(10)&ScriptText!$D$1)","v":""},{"$f":"IF(OrigTable!D1771=\"\",\"\",TEXT(OrigTable!D1771,\"00\"))","v":""},{"$f":"IF(OrigTable!D1771=\"\",\"\",ScriptText!$E$1&CHAR(10)&ScriptText!$C$1)","v":""},{"$f":"IF(OrigTable!E1771=\"\",\"\",ScriptText!$B$1&CHAR(10)&ScriptText!$D$1)","v":""},{"$f":"IF(OrigTable!E1771=\"\",\"\",TEXT(OrigTable!E1771,\"00\"))","v":""},{"$f":"IF(OrigTable!E1771=\"\",\"\",ScriptText!$E$1&CHAR(10)&ScriptText!$C$1)","v":""},{"$f":"IF(OrigTable!F1771=\"\",\"\",ScriptText!$B$1&CHAR(10)&ScriptText!$D$1)","v":""},{"$f":"IF(OrigTable!F1771=\"\",\"\",TEXT(OrigTable!F1771,\"00\"))","v":""},{"$f":"IF(OrigTable!F1771=\"\",\"\",ScriptText!$E$1&CHAR(10)&ScriptText!$C$1)","v":""},{"$f":"IF(OrigTable!G1771=\"\",\"\",ScriptText!$B$1&CHAR(10)&ScriptText!$D$1)","v":""},{"$f":"IF(OrigTable!G1771=\"\",\"\",TEXT(OrigTable!G1771,\"00\"))","v":""},{"$f":"IF(OrigTable!G1771=\"\",\"\",ScriptText!$E$1&CHAR(10)&ScriptText!$C$1)","v":""},0]
["\n\n\n",{"$f":"IF(OrigTable!A1772=\"\",\"\",ScriptText!$B$1&CHAR(10)&ScriptText!$D$1)","v":""},{"$f":"IF(OrigTable!A1772=\"\",\"\",TEXT(OrigTable!A1772,\"00\"))","v":""},{"$f":"IF(OrigTable!A1772=\"\",\"\",ScriptText!$E$1&CHAR(10)&ScriptText!$C$1)","v":""},{"$f":"IF(OrigTable!B1772=\"\",\"\",ScriptText!$B$1&CHAR(10)&ScriptText!$D$1)","v":""},{"$f":"IF(OrigTable!B1772=\"\",\"\",TEXT(OrigTable!B1772,\"00\"))","v":""},{"$f":"IF(OrigTable!B1772=\"\",\"\",ScriptText!$E$1&CHAR(10)&ScriptText!C1767)","v":""},{"$f":"IF(OrigTable!C1772=\"\",\"\",ScriptText!$B$1&CHAR(10)&ScriptText!$D$1)","v":""},{"$f":"IF(OrigTable!C1772=\"\",\"\",IF(LEN(OrigTable!C1772)>255,LEFT(OrigTable!C1772,250)&\". . .\",OrigTable!C1772))","v":""},{"$f":"IF(OrigTable!C1772=\"\",\"\",ScriptText!$E$1&CHAR(10)&ScriptText!$C$1)","v":""},{"$f":"IF(OrigTable!D1772=\"\",\"\",ScriptText!$B$1&CHAR(10)&ScriptText!$D$1)","v":""},{"$f":"IF(OrigTable!D1772=\"\",\"\",TEXT(OrigTable!D1772,\"00\"))","v":""},{"$f":"IF(OrigTable!D1772=\"\",\"\",ScriptText!$E$1&CHAR(10)&ScriptText!$C$1)","v":""},{"$f":"IF(OrigTable!E1772=\"\",\"\",ScriptText!$B$1&CHAR(10)&ScriptText!$D$1)","v":""},{"$f":"IF(OrigTable!E1772=\"\",\"\",TEXT(OrigTable!E1772,\"00\"))","v":""},{"$f":"IF(OrigTable!E1772=\"\",\"\",ScriptText!$E$1&CHAR(10)&ScriptText!$C$1)","v":""},{"$f":"IF(OrigTable!F1772=\"\",\"\",ScriptText!$B$1&CHAR(10)&ScriptText!$D$1)","v":""},{"$f":"IF(OrigTable!F1772=\"\",\"\",TEXT(OrigTable!F1772,\"00\"))","v":""},{"$f":"IF(OrigTable!F1772=\"\",\"\",ScriptText!$E$1&CHAR(10)&ScriptText!$C$1)","v":""},{"$f":"IF(OrigTable!G1772=\"\",\"\",ScriptText!$B$1&CHAR(10)&ScriptText!$D$1)","v":""},{"$f":"IF(OrigTable!G1772=\"\",\"\",TEXT(OrigTable!G1772,\"00\"))","v":""},{"$f":"IF(OrigTable!G1772=\"\",\"\",ScriptText!$E$1&CHAR(10)&ScriptText!$C$1)","v":""},0]
["\n\n\n",{"$f":"IF(OrigTable!A1773=\"\",\"\",ScriptText!$B$1&CHAR(10)&ScriptText!$D$1)","v":""},{"$f":"IF(OrigTable!A1773=\"\",\"\",TEXT(OrigTable!A1773,\"00\"))","v":""},{"$f":"IF(OrigTable!A1773=\"\",\"\",ScriptText!$E$1&CHAR(10)&ScriptText!$C$1)","v":""},{"$f":"IF(OrigTable!B1773=\"\",\"\",ScriptText!$B$1&CHAR(10)&ScriptText!$D$1)","v":""},{"$f":"IF(OrigTable!B1773=\"\",\"\",TEXT(OrigTable!B1773,\"00\"))","v":""},{"$f":"IF(OrigTable!B1773=\"\",\"\",ScriptText!$E$1&CHAR(10)&ScriptText!C1768)","v":""},{"$f":"IF(OrigTable!C1773=\"\",\"\",ScriptText!$B$1&CHAR(10)&ScriptText!$D$1)","v":""},{"$f":"IF(OrigTable!C1773=\"\",\"\",IF(LEN(OrigTable!C1773)>255,LEFT(OrigTable!C1773,250)&\". . .\",OrigTable!C1773))","v":""},{"$f":"IF(OrigTable!C1773=\"\",\"\",ScriptText!$E$1&CHAR(10)&ScriptText!$C$1)","v":""},{"$f":"IF(OrigTable!D1773=\"\",\"\",ScriptText!$B$1&CHAR(10)&ScriptText!$D$1)","v":""},{"$f":"IF(OrigTable!D1773=\"\",\"\",TEXT(OrigTable!D1773,\"00\"))","v":""},{"$f":"IF(OrigTable!D1773=\"\",\"\",ScriptText!$E$1&CHAR(10)&ScriptText!$C$1)","v":""},{"$f":"IF(OrigTable!E1773=\"\",\"\",ScriptText!$B$1&CHAR(10)&ScriptText!$D$1)","v":""},{"$f":"IF(OrigTable!E1773=\"\",\"\",TEXT(OrigTable!E1773,\"00\"))","v":""},{"$f":"IF(OrigTable!E1773=\"\",\"\",ScriptText!$E$1&CHAR(10)&ScriptText!$C$1)","v":""},{"$f":"IF(OrigTable!F1773=\"\",\"\",ScriptText!$B$1&CHAR(10)&ScriptText!$D$1)","v":""},{"$f":"IF(OrigTable!F1773=\"\",\"\",TEXT(OrigTable!F1773,\"00\"))","v":""},{"$f":"IF(OrigTable!F1773=\"\",\"\",ScriptText!$E$1&CHAR(10)&ScriptText!$C$1)","v":""},{"$f":"IF(OrigTable!G1773=\"\",\"\",ScriptText!$B$1&CHAR(10)&ScriptText!$D$1)","v":""},{"$f":"IF(OrigTable!G1773=\"\",\"\",TEXT(OrigTable!G1773,\"00\"))","v":""},{"$f":"IF(OrigTable!G1773=\"\",\"\",ScriptText!$E$1&CHAR(10)&ScriptText!$C$1)","v":""},0]
["\n\n\n",{"$f":"IF(OrigTable!A1774=\"\",\"\",ScriptText!$B$1&CHAR(10)&ScriptText!$D$1)","v":""},{"$f":"IF(OrigTable!A1774=\"\",\"\",TEXT(OrigTable!A1774,\"00\"))","v":""},{"$f":"IF(OrigTable!A1774=\"\",\"\",ScriptText!$E$1&CHAR(10)&ScriptText!$C$1)","v":""},{"$f":"IF(OrigTable!B1774=\"\",\"\",ScriptText!$B$1&CHAR(10)&ScriptText!$D$1)","v":""},{"$f":"IF(OrigTable!B1774=\"\",\"\",TEXT(OrigTable!B1774,\"00\"))","v":""},{"$f":"IF(OrigTable!B1774=\"\",\"\",ScriptText!$E$1&CHAR(10)&ScriptText!C1769)","v":""},{"$f":"IF(OrigTable!C1774=\"\",\"\",ScriptText!$B$1&CHAR(10)&ScriptText!$D$1)","v":""},{"$f":"IF(OrigTable!C1774=\"\",\"\",IF(LEN(OrigTable!C1774)>255,LEFT(OrigTable!C1774,250)&\". . .\",OrigTable!C1774))","v":""},{"$f":"IF(OrigTable!C1774=\"\",\"\",ScriptText!$E$1&CHAR(10)&ScriptText!$C$1)","v":""},{"$f":"IF(OrigTable!D1774=\"\",\"\",ScriptText!$B$1&CHAR(10)&ScriptText!$D$1)","v":""},{"$f":"IF(OrigTable!D1774=\"\",\"\",TEXT(OrigTable!D1774,\"00\"))","v":""},{"$f":"IF(OrigTable!D1774=\"\",\"\",ScriptText!$E$1&CHAR(10)&ScriptText!$C$1)","v":""},{"$f":"IF(OrigTable!E1774=\"\",\"\",ScriptText!$B$1&CHAR(10)&ScriptText!$D$1)","v":""},{"$f":"IF(OrigTable!E1774=\"\",\"\",TEXT(OrigTable!E1774,\"00\"))","v":""},{"$f":"IF(OrigTable!E1774=\"\",\"\",ScriptText!$E$1&CHAR(10)&ScriptText!$C$1)","v":""},{"$f":"IF(OrigTable!F1774=\"\",\"\",ScriptText!$B$1&CHAR(10)&ScriptText!$D$1)","v":""},{"$f":"IF(OrigTable!F1774=\"\",\"\",TEXT(OrigTable!F1774,\"00\"))","v":""},{"$f":"IF(OrigTable!F1774=\"\",\"\",ScriptText!$E$1&CHAR(10)&ScriptText!$C$1)","v":""},{"$f":"IF(OrigTable!G1774=\"\",\"\",ScriptText!$B$1&CHAR(10)&ScriptText!$D$1)","v":""},{"$f":"IF(OrigTable!G1774=\"\",\"\",TEXT(OrigTable!G1774,\"00\"))","v":""},{"$f":"IF(OrigTable!G1774=\"\",\"\",ScriptText!$E$1&CHAR(10)&ScriptText!$C$1)","v":""},0]
["\n\n\n",{"$f":"IF(OrigTable!A1775=\"\",\"\",ScriptText!$B$1&CHAR(10)&ScriptText!$D$1)","v":""},{"$f":"IF(OrigTable!A1775=\"\",\"\",TEXT(OrigTable!A1775,\"00\"))","v":""},{"$f":"IF(OrigTable!A1775=\"\",\"\",ScriptText!$E$1&CHAR(10)&ScriptText!$C$1)","v":""},{"$f":"IF(OrigTable!B1775=\"\",\"\",ScriptText!$B$1&CHAR(10)&ScriptText!$D$1)","v":""},{"$f":"IF(OrigTable!B1775=\"\",\"\",TEXT(OrigTable!B1775,\"00\"))","v":""},{"$f":"IF(OrigTable!B1775=\"\",\"\",ScriptText!$E$1&CHAR(10)&ScriptText!C1770)","v":""},{"$f":"IF(OrigTable!C1775=\"\",\"\",ScriptText!$B$1&CHAR(10)&ScriptText!$D$1)","v":""},{"$f":"IF(OrigTable!C1775=\"\",\"\",IF(LEN(OrigTable!C1775)>255,LEFT(OrigTable!C1775,250)&\". . .\",OrigTable!C1775))","v":""},{"$f":"IF(OrigTable!C1775=\"\",\"\",ScriptText!$E$1&CHAR(10)&ScriptText!$C$1)","v":""},{"$f":"IF(OrigTable!D1775=\"\",\"\",ScriptText!$B$1&CHAR(10)&ScriptText!$D$1)","v":""},{"$f":"IF(OrigTable!D1775=\"\",\"\",TEXT(OrigTable!D1775,\"00\"))","v":""},{"$f":"IF(OrigTable!D1775=\"\",\"\",ScriptText!$E$1&CHAR(10)&ScriptText!$C$1)","v":""},{"$f":"IF(OrigTable!E1775=\"\",\"\",ScriptText!$B$1&CHAR(10)&ScriptText!$D$1)","v":""},{"$f":"IF(OrigTable!E1775=\"\",\"\",TEXT(OrigTable!E1775,\"00\"))","v":""},{"$f":"IF(OrigTable!E1775=\"\",\"\",ScriptText!$E$1&CHAR(10)&ScriptText!$C$1)","v":""},{"$f":"IF(OrigTable!F1775=\"\",\"\",ScriptText!$B$1&CHAR(10)&ScriptText!$D$1)","v":""},{"$f":"IF(OrigTable!F1775=\"\",\"\",TEXT(OrigTable!F1775,\"00\"))","v":""},{"$f":"IF(OrigTable!F1775=\"\",\"\",ScriptText!$E$1&CHAR(10)&ScriptText!$C$1)","v":""},{"$f":"IF(OrigTable!G1775=\"\",\"\",ScriptText!$B$1&CHAR(10)&ScriptText!$D$1)","v":""},{"$f":"IF(OrigTable!G1775=\"\",\"\",TEXT(OrigTable!G1775,\"00\"))","v":""},{"$f":"IF(OrigTable!G1775=\"\",\"\",ScriptText!$E$1&CHAR(10)&ScriptText!$C$1)","v":""},0]
["\n\n\n",{"$f":"IF(OrigTable!A1776=\"\",\"\",ScriptText!$B$1&CHAR(10)&ScriptText!$D$1)","v":""},{"$f":"IF(OrigTable!A1776=\"\",\"\",TEXT(OrigTable!A1776,\"00\"))","v":""},{"$f":"IF(OrigTable!A1776=\"\",\"\",ScriptText!$E$1&CHAR(10)&ScriptText!$C$1)","v":""},{"$f":"IF(OrigTable!B1776=\"\",\"\",ScriptText!$B$1&CHAR(10)&ScriptText!$D$1)","v":""},{"$f":"IF(OrigTable!B1776=\"\",\"\",TEXT(OrigTable!B1776,\"00\"))","v":""},{"$f":"IF(OrigTable!B1776=\"\",\"\",ScriptText!$E$1&CHAR(10)&ScriptText!C1771)","v":""},{"$f":"IF(OrigTable!C1776=\"\",\"\",ScriptText!$B$1&CHAR(10)&ScriptText!$D$1)","v":""},{"$f":"IF(OrigTable!C1776=\"\",\"\",IF(LEN(OrigTable!C1776)>255,LEFT(OrigTable!C1776,250)&\". . .\",OrigTable!C1776))","v":""},{"$f":"IF(OrigTable!C1776=\"\",\"\",ScriptText!$E$1&CHAR(10)&ScriptText!$C$1)","v":""},{"$f":"IF(OrigTable!D1776=\"\",\"\",ScriptText!$B$1&CHAR(10)&ScriptText!$D$1)","v":""},{"$f":"IF(OrigTable!D1776=\"\",\"\",TEXT(OrigTable!D1776,\"00\"))","v":""},{"$f":"IF(OrigTable!D1776=\"\",\"\",ScriptText!$E$1&CHAR(10)&ScriptText!$C$1)","v":""},{"$f":"IF(OrigTable!E1776=\"\",\"\",ScriptText!$B$1&CHAR(10)&ScriptText!$D$1)","v":""},{"$f":"IF(OrigTable!E1776=\"\",\"\",TEXT(OrigTable!E1776,\"00\"))","v":""},{"$f":"IF(OrigTable!E1776=\"\",\"\",ScriptText!$E$1&CHAR(10)&ScriptText!$C$1)","v":""},{"$f":"IF(OrigTable!F1776=\"\",\"\",ScriptText!$B$1&CHAR(10)&ScriptText!$D$1)","v":""},{"$f":"IF(OrigTable!F1776=\"\",\"\",TEXT(OrigTable!F1776,\"00\"))","v":""},{"$f":"IF(OrigTable!F1776=\"\",\"\",ScriptText!$E$1&CHAR(10)&ScriptText!$C$1)","v":""},{"$f":"IF(OrigTable!G1776=\"\",\"\",ScriptText!$B$1&CHAR(10)&ScriptText!$D$1)","v":""},{"$f":"IF(OrigTable!G1776=\"\",\"\",TEXT(OrigTable!G1776,\"00\"))","v":""},{"$f":"IF(OrigTable!G1776=\"\",\"\",ScriptText!$E$1&CHAR(10)&ScriptText!$C$1)","v":""},0]
["\n\n\n",{"$f":"IF(OrigTable!A1777=\"\",\"\",ScriptText!$B$1&CHAR(10)&ScriptText!$D$1)","v":""},{"$f":"IF(OrigTable!A1777=\"\",\"\",TEXT(OrigTable!A1777,\"00\"))","v":""},{"$f":"IF(OrigTable!A1777=\"\",\"\",ScriptText!$E$1&CHAR(10)&ScriptText!$C$1)","v":""},{"$f":"IF(OrigTable!B1777=\"\",\"\",ScriptText!$B$1&CHAR(10)&ScriptText!$D$1)","v":""},{"$f":"IF(OrigTable!B1777=\"\",\"\",TEXT(OrigTable!B1777,\"00\"))","v":""},{"$f":"IF(OrigTable!B1777=\"\",\"\",ScriptText!$E$1&CHAR(10)&ScriptText!C1772)","v":""},{"$f":"IF(OrigTable!C1777=\"\",\"\",ScriptText!$B$1&CHAR(10)&ScriptText!$D$1)","v":""},{"$f":"IF(OrigTable!C1777=\"\",\"\",IF(LEN(OrigTable!C1777)>255,LEFT(OrigTable!C1777,250)&\". . .\",OrigTable!C1777))","v":""},{"$f":"IF(OrigTable!C1777=\"\",\"\",ScriptText!$E$1&CHAR(10)&ScriptText!$C$1)","v":""},{"$f":"IF(OrigTable!D1777=\"\",\"\",ScriptText!$B$1&CHAR(10)&ScriptText!$D$1)","v":""},{"$f":"IF(OrigTable!D1777=\"\",\"\",TEXT(OrigTable!D1777,\"00\"))","v":""},{"$f":"IF(OrigTable!D1777=\"\",\"\",ScriptText!$E$1&CHAR(10)&ScriptText!$C$1)","v":""},{"$f":"IF(OrigTable!E1777=\"\",\"\",ScriptText!$B$1&CHAR(10)&ScriptText!$D$1)","v":""},{"$f":"IF(OrigTable!E1777=\"\",\"\",TEXT(OrigTable!E1777,\"00\"))","v":""},{"$f":"IF(OrigTable!E1777=\"\",\"\",ScriptText!$E$1&CHAR(10)&ScriptText!$C$1)","v":""},{"$f":"IF(OrigTable!F1777=\"\",\"\",ScriptText!$B$1&CHAR(10)&ScriptText!$D$1)","v":""},{"$f":"IF(OrigTable!F1777=\"\",\"\",TEXT(OrigTable!F1777,\"00\"))","v":""},{"$f":"IF(OrigTable!F1777=\"\",\"\",ScriptText!$E$1&CHAR(10)&ScriptText!$C$1)","v":""},{"$f":"IF(OrigTable!G1777=\"\",\"\",ScriptText!$B$1&CHAR(10)&ScriptText!$D$1)","v":""},{"$f":"IF(OrigTable!G1777=\"\",\"\",TEXT(OrigTable!G1777,\"00\"))","v":""},{"$f":"IF(OrigTable!G1777=\"\",\"\",ScriptText!$E$1&CHAR(10)&ScriptText!$C$1)","v":""},0]
["\n\n\n",{"$f":"IF(OrigTable!A1778=\"\",\"\",ScriptText!$B$1&CHAR(10)&ScriptText!$D$1)","v":""},{"$f":"IF(OrigTable!A1778=\"\",\"\",TEXT(OrigTable!A1778,\"00\"))","v":""},{"$f":"IF(OrigTable!A1778=\"\",\"\",ScriptText!$E$1&CHAR(10)&ScriptText!$C$1)","v":""},{"$f":"IF(OrigTable!B1778=\"\",\"\",ScriptText!$B$1&CHAR(10)&ScriptText!$D$1)","v":""},{"$f":"IF(OrigTable!B1778=\"\",\"\",TEXT(OrigTable!B1778,\"00\"))","v":""},{"$f":"IF(OrigTable!B1778=\"\",\"\",ScriptText!$E$1&CHAR(10)&ScriptText!C1773)","v":""},{"$f":"IF(OrigTable!C1778=\"\",\"\",ScriptText!$B$1&CHAR(10)&ScriptText!$D$1)","v":""},{"$f":"IF(OrigTable!C1778=\"\",\"\",IF(LEN(OrigTable!C1778)>255,LEFT(OrigTable!C1778,250)&\". . .\",OrigTable!C1778))","v":""},{"$f":"IF(OrigTable!C1778=\"\",\"\",ScriptText!$E$1&CHAR(10)&ScriptText!$C$1)","v":""},{"$f":"IF(OrigTable!D1778=\"\",\"\",ScriptText!$B$1&CHAR(10)&ScriptText!$D$1)","v":""},{"$f":"IF(OrigTable!D1778=\"\",\"\",TEXT(OrigTable!D1778,\"00\"))","v":""},{"$f":"IF(OrigTable!D1778=\"\",\"\",ScriptText!$E$1&CHAR(10)&ScriptText!$C$1)","v":""},{"$f":"IF(OrigTable!E1778=\"\",\"\",ScriptText!$B$1&CHAR(10)&ScriptText!$D$1)","v":""},{"$f":"IF(OrigTable!E1778=\"\",\"\",TEXT(OrigTable!E1778,\"00\"))","v":""},{"$f":"IF(OrigTable!E1778=\"\",\"\",ScriptText!$E$1&CHAR(10)&ScriptText!$C$1)","v":""},{"$f":"IF(OrigTable!F1778=\"\",\"\",ScriptText!$B$1&CHAR(10)&ScriptText!$D$1)","v":""},{"$f":"IF(OrigTable!F1778=\"\",\"\",TEXT(OrigTable!F1778,\"00\"))","v":""},{"$f":"IF(OrigTable!F1778=\"\",\"\",ScriptText!$E$1&CHAR(10)&ScriptText!$C$1)","v":""},{"$f":"IF(OrigTable!G1778=\"\",\"\",ScriptText!$B$1&CHAR(10)&ScriptText!$D$1)","v":""},{"$f":"IF(OrigTable!G1778=\"\",\"\",TEXT(OrigTable!G1778,\"00\"))","v":""},{"$f":"IF(OrigTable!G1778=\"\",\"\",ScriptText!$E$1&CHAR(10)&ScriptText!$C$1)","v":""},0]
["\n\n\n",{"$f":"IF(OrigTable!A1779=\"\",\"\",ScriptText!$B$1&CHAR(10)&ScriptText!$D$1)","v":""},{"$f":"IF(OrigTable!A1779=\"\",\"\",TEXT(OrigTable!A1779,\"00\"))","v":""},{"$f":"IF(OrigTable!A1779=\"\",\"\",ScriptText!$E$1&CHAR(10)&ScriptText!$C$1)","v":""},{"$f":"IF(OrigTable!B1779=\"\",\"\",ScriptText!$B$1&CHAR(10)&ScriptText!$D$1)","v":""},{"$f":"IF(OrigTable!B1779=\"\",\"\",TEXT(OrigTable!B1779,\"00\"))","v":""},{"$f":"IF(OrigTable!B1779=\"\",\"\",ScriptText!$E$1&CHAR(10)&ScriptText!C1774)","v":""},{"$f":"IF(OrigTable!C1779=\"\",\"\",ScriptText!$B$1&CHAR(10)&ScriptText!$D$1)","v":""},{"$f":"IF(OrigTable!C1779=\"\",\"\",IF(LEN(OrigTable!C1779)>255,LEFT(OrigTable!C1779,250)&\". . .\",OrigTable!C1779))","v":""},{"$f":"IF(OrigTable!C1779=\"\",\"\",ScriptText!$E$1&CHAR(10)&ScriptText!$C$1)","v":""},{"$f":"IF(OrigTable!D1779=\"\",\"\",ScriptText!$B$1&CHAR(10)&ScriptText!$D$1)","v":""},{"$f":"IF(OrigTable!D1779=\"\",\"\",TEXT(OrigTable!D1779,\"00\"))","v":""},{"$f":"IF(OrigTable!D1779=\"\",\"\",ScriptText!$E$1&CHAR(10)&ScriptText!$C$1)","v":""},{"$f":"IF(OrigTable!E1779=\"\",\"\",ScriptText!$B$1&CHAR(10)&ScriptText!$D$1)","v":""},{"$f":"IF(OrigTable!E1779=\"\",\"\",TEXT(OrigTable!E1779,\"00\"))","v":""},{"$f":"IF(OrigTable!E1779=\"\",\"\",ScriptText!$E$1&CHAR(10)&ScriptText!$C$1)","v":""},{"$f":"IF(OrigTable!F1779=\"\",\"\",ScriptText!$B$1&CHAR(10)&ScriptText!$D$1)","v":""},{"$f":"IF(OrigTable!F1779=\"\",\"\",TEXT(OrigTable!F1779,\"00\"))","v":""},{"$f":"IF(OrigTable!F1779=\"\",\"\",ScriptText!$E$1&CHAR(10)&ScriptText!$C$1)","v":""},{"$f":"IF(OrigTable!G1779=\"\",\"\",ScriptText!$B$1&CHAR(10)&ScriptText!$D$1)","v":""},{"$f":"IF(OrigTable!G1779=\"\",\"\",TEXT(OrigTable!G1779,\"00\"))","v":""},{"$f":"IF(OrigTable!G1779=\"\",\"\",ScriptText!$E$1&CHAR(10)&ScriptText!$C$1)","v":""},0]
["\n\n\n",{"$f":"IF(OrigTable!A1780=\"\",\"\",ScriptText!$B$1&CHAR(10)&ScriptText!$D$1)","v":""},{"$f":"IF(OrigTable!A1780=\"\",\"\",TEXT(OrigTable!A1780,\"00\"))","v":""},{"$f":"IF(OrigTable!A1780=\"\",\"\",ScriptText!$E$1&CHAR(10)&ScriptText!$C$1)","v":""},{"$f":"IF(OrigTable!B1780=\"\",\"\",ScriptText!$B$1&CHAR(10)&ScriptText!$D$1)","v":""},{"$f":"IF(OrigTable!B1780=\"\",\"\",TEXT(OrigTable!B1780,\"00\"))","v":""},{"$f":"IF(OrigTable!B1780=\"\",\"\",ScriptText!$E$1&CHAR(10)&ScriptText!C1775)","v":""},{"$f":"IF(OrigTable!C1780=\"\",\"\",ScriptText!$B$1&CHAR(10)&ScriptText!$D$1)","v":""},{"$f":"IF(OrigTable!C1780=\"\",\"\",IF(LEN(OrigTable!C1780)>255,LEFT(OrigTable!C1780,250)&\". . .\",OrigTable!C1780))","v":""},{"$f":"IF(OrigTable!C1780=\"\",\"\",ScriptText!$E$1&CHAR(10)&ScriptText!$C$1)","v":""},{"$f":"IF(OrigTable!D1780=\"\",\"\",ScriptText!$B$1&CHAR(10)&ScriptText!$D$1)","v":""},{"$f":"IF(OrigTable!D1780=\"\",\"\",TEXT(OrigTable!D1780,\"00\"))","v":""},{"$f":"IF(OrigTable!D1780=\"\",\"\",ScriptText!$E$1&CHAR(10)&ScriptText!$C$1)","v":""},{"$f":"IF(OrigTable!E1780=\"\",\"\",ScriptText!$B$1&CHAR(10)&ScriptText!$D$1)","v":""},{"$f":"IF(OrigTable!E1780=\"\",\"\",TEXT(OrigTable!E1780,\"00\"))","v":""},{"$f":"IF(OrigTable!E1780=\"\",\"\",ScriptText!$E$1&CHAR(10)&ScriptText!$C$1)","v":""},{"$f":"IF(OrigTable!F1780=\"\",\"\",ScriptText!$B$1&CHAR(10)&ScriptText!$D$1)","v":""},{"$f":"IF(OrigTable!F1780=\"\",\"\",TEXT(OrigTable!F1780,\"00\"))","v":""},{"$f":"IF(OrigTable!F1780=\"\",\"\",ScriptText!$E$1&CHAR(10)&ScriptText!$C$1)","v":""},{"$f":"IF(OrigTable!G1780=\"\",\"\",ScriptText!$B$1&CHAR(10)&ScriptText!$D$1)","v":""},{"$f":"IF(OrigTable!G1780=\"\",\"\",TEXT(OrigTable!G1780,\"00\"))","v":""},{"$f":"IF(OrigTable!G1780=\"\",\"\",ScriptText!$E$1&CHAR(10)&ScriptText!$C$1)","v":""},0]
["\n\n\n",{"$f":"IF(OrigTable!A1781=\"\",\"\",ScriptText!$B$1&CHAR(10)&ScriptText!$D$1)","v":""},{"$f":"IF(OrigTable!A1781=\"\",\"\",TEXT(OrigTable!A1781,\"00\"))","v":""},{"$f":"IF(OrigTable!A1781=\"\",\"\",ScriptText!$E$1&CHAR(10)&ScriptText!$C$1)","v":""},{"$f":"IF(OrigTable!B1781=\"\",\"\",ScriptText!$B$1&CHAR(10)&ScriptText!$D$1)","v":""},{"$f":"IF(OrigTable!B1781=\"\",\"\",TEXT(OrigTable!B1781,\"00\"))","v":""},{"$f":"IF(OrigTable!B1781=\"\",\"\",ScriptText!$E$1&CHAR(10)&ScriptText!C1776)","v":""},{"$f":"IF(OrigTable!C1781=\"\",\"\",ScriptText!$B$1&CHAR(10)&ScriptText!$D$1)","v":""},{"$f":"IF(OrigTable!C1781=\"\",\"\",IF(LEN(OrigTable!C1781)>255,LEFT(OrigTable!C1781,250)&\". . .\",OrigTable!C1781))","v":""},{"$f":"IF(OrigTable!C1781=\"\",\"\",ScriptText!$E$1&CHAR(10)&ScriptText!$C$1)","v":""},{"$f":"IF(OrigTable!D1781=\"\",\"\",ScriptText!$B$1&CHAR(10)&ScriptText!$D$1)","v":""},{"$f":"IF(OrigTable!D1781=\"\",\"\",TEXT(OrigTable!D1781,\"00\"))","v":""},{"$f":"IF(OrigTable!D1781=\"\",\"\",ScriptText!$E$1&CHAR(10)&ScriptText!$C$1)","v":""},{"$f":"IF(OrigTable!E1781=\"\",\"\",ScriptText!$B$1&CHAR(10)&ScriptText!$D$1)","v":""},{"$f":"IF(OrigTable!E1781=\"\",\"\",TEXT(OrigTable!E1781,\"00\"))","v":""},{"$f":"IF(OrigTable!E1781=\"\",\"\",ScriptText!$E$1&CHAR(10)&ScriptText!$C$1)","v":""},{"$f":"IF(OrigTable!F1781=\"\",\"\",ScriptText!$B$1&CHAR(10)&ScriptText!$D$1)","v":""},{"$f":"IF(OrigTable!F1781=\"\",\"\",TEXT(OrigTable!F1781,\"00\"))","v":""},{"$f":"IF(OrigTable!F1781=\"\",\"\",ScriptText!$E$1&CHAR(10)&ScriptText!$C$1)","v":""},{"$f":"IF(OrigTable!G1781=\"\",\"\",ScriptText!$B$1&CHAR(10)&ScriptText!$D$1)","v":""},{"$f":"IF(OrigTable!G1781=\"\",\"\",TEXT(OrigTable!G1781,\"00\"))","v":""},{"$f":"IF(OrigTable!G1781=\"\",\"\",ScriptText!$E$1&CHAR(10)&ScriptText!$C$1)","v":""},0]
["\n\n\n",{"$f":"IF(OrigTable!A1782=\"\",\"\",ScriptText!$B$1&CHAR(10)&ScriptText!$D$1)","v":""},{"$f":"IF(OrigTable!A1782=\"\",\"\",TEXT(OrigTable!A1782,\"00\"))","v":""},{"$f":"IF(OrigTable!A1782=\"\",\"\",ScriptText!$E$1&CHAR(10)&ScriptText!$C$1)","v":""},{"$f":"IF(OrigTable!B1782=\"\",\"\",ScriptText!$B$1&CHAR(10)&ScriptText!$D$1)","v":""},{"$f":"IF(OrigTable!B1782=\"\",\"\",TEXT(OrigTable!B1782,\"00\"))","v":""},{"$f":"IF(OrigTable!B1782=\"\",\"\",ScriptText!$E$1&CHAR(10)&ScriptText!C1777)","v":""},{"$f":"IF(OrigTable!C1782=\"\",\"\",ScriptText!$B$1&CHAR(10)&ScriptText!$D$1)","v":""},{"$f":"IF(OrigTable!C1782=\"\",\"\",IF(LEN(OrigTable!C1782)>255,LEFT(OrigTable!C1782,250)&\". . .\",OrigTable!C1782))","v":""},{"$f":"IF(OrigTable!C1782=\"\",\"\",ScriptText!$E$1&CHAR(10)&ScriptText!$C$1)","v":""},{"$f":"IF(OrigTable!D1782=\"\",\"\",ScriptText!$B$1&CHAR(10)&ScriptText!$D$1)","v":""},{"$f":"IF(OrigTable!D1782=\"\",\"\",TEXT(OrigTable!D1782,\"00\"))","v":""},{"$f":"IF(OrigTable!D1782=\"\",\"\",ScriptText!$E$1&CHAR(10)&ScriptText!$C$1)","v":""},{"$f":"IF(OrigTable!E1782=\"\",\"\",ScriptText!$B$1&CHAR(10)&ScriptText!$D$1)","v":""},{"$f":"IF(OrigTable!E1782=\"\",\"\",TEXT(OrigTable!E1782,\"00\"))","v":""},{"$f":"IF(OrigTable!E1782=\"\",\"\",ScriptText!$E$1&CHAR(10)&ScriptText!$C$1)","v":""},{"$f":"IF(OrigTable!F1782=\"\",\"\",ScriptText!$B$1&CHAR(10)&ScriptText!$D$1)","v":""},{"$f":"IF(OrigTable!F1782=\"\",\"\",TEXT(OrigTable!F1782,\"00\"))","v":""},{"$f":"IF(OrigTable!F1782=\"\",\"\",ScriptText!$E$1&CHAR(10)&ScriptText!$C$1)","v":""},{"$f":"IF(OrigTable!G1782=\"\",\"\",ScriptText!$B$1&CHAR(10)&ScriptText!$D$1)","v":""},{"$f":"IF(OrigTable!G1782=\"\",\"\",TEXT(OrigTable!G1782,\"00\"))","v":""},{"$f":"IF(OrigTable!G1782=\"\",\"\",ScriptText!$E$1&CHAR(10)&ScriptText!$C$1)","v":""},0]
["\n\n\n",{"$f":"IF(OrigTable!A1783=\"\",\"\",ScriptText!$B$1&CHAR(10)&ScriptText!$D$1)","v":""},{"$f":"IF(OrigTable!A1783=\"\",\"\",TEXT(OrigTable!A1783,\"00\"))","v":""},{"$f":"IF(OrigTable!A1783=\"\",\"\",ScriptText!$E$1&CHAR(10)&ScriptText!$C$1)","v":""},{"$f":"IF(OrigTable!B1783=\"\",\"\",ScriptText!$B$1&CHAR(10)&ScriptText!$D$1)","v":""},{"$f":"IF(OrigTable!B1783=\"\",\"\",TEXT(OrigTable!B1783,\"00\"))","v":""},{"$f":"IF(OrigTable!B1783=\"\",\"\",ScriptText!$E$1&CHAR(10)&ScriptText!C1778)","v":""},{"$f":"IF(OrigTable!C1783=\"\",\"\",ScriptText!$B$1&CHAR(10)&ScriptText!$D$1)","v":""},{"$f":"IF(OrigTable!C1783=\"\",\"\",IF(LEN(OrigTable!C1783)>255,LEFT(OrigTable!C1783,250)&\". . .\",OrigTable!C1783))","v":""},{"$f":"IF(OrigTable!C1783=\"\",\"\",ScriptText!$E$1&CHAR(10)&ScriptText!$C$1)","v":""},{"$f":"IF(OrigTable!D1783=\"\",\"\",ScriptText!$B$1&CHAR(10)&ScriptText!$D$1)","v":""},{"$f":"IF(OrigTable!D1783=\"\",\"\",TEXT(OrigTable!D1783,\"00\"))","v":""},{"$f":"IF(OrigTable!D1783=\"\",\"\",ScriptText!$E$1&CHAR(10)&ScriptText!$C$1)","v":""},{"$f":"IF(OrigTable!E1783=\"\",\"\",ScriptText!$B$1&CHAR(10)&ScriptText!$D$1)","v":""},{"$f":"IF(OrigTable!E1783=\"\",\"\",TEXT(OrigTable!E1783,\"00\"))","v":""},{"$f":"IF(OrigTable!E1783=\"\",\"\",ScriptText!$E$1&CHAR(10)&ScriptText!$C$1)","v":""},{"$f":"IF(OrigTable!F1783=\"\",\"\",ScriptText!$B$1&CHAR(10)&ScriptText!$D$1)","v":""},{"$f":"IF(OrigTable!F1783=\"\",\"\",TEXT(OrigTable!F1783,\"00\"))","v":""},{"$f":"IF(OrigTable!F1783=\"\",\"\",ScriptText!$E$1&CHAR(10)&ScriptText!$C$1)","v":""},{"$f":"IF(OrigTable!G1783=\"\",\"\",ScriptText!$B$1&CHAR(10)&ScriptText!$D$1)","v":""},{"$f":"IF(OrigTable!G1783=\"\",\"\",TEXT(OrigTable!G1783,\"00\"))","v":""},{"$f":"IF(OrigTable!G1783=\"\",\"\",ScriptText!$E$1&CHAR(10)&ScriptText!$C$1)","v":""},0]
["\n\n\n",{"$f":"IF(OrigTable!A1784=\"\",\"\",ScriptText!$B$1&CHAR(10)&ScriptText!$D$1)","v":""},{"$f":"IF(OrigTable!A1784=\"\",\"\",TEXT(OrigTable!A1784,\"00\"))","v":""},{"$f":"IF(OrigTable!A1784=\"\",\"\",ScriptText!$E$1&CHAR(10)&ScriptText!$C$1)","v":""},{"$f":"IF(OrigTable!B1784=\"\",\"\",ScriptText!$B$1&CHAR(10)&ScriptText!$D$1)","v":""},{"$f":"IF(OrigTable!B1784=\"\",\"\",TEXT(OrigTable!B1784,\"00\"))","v":""},{"$f":"IF(OrigTable!B1784=\"\",\"\",ScriptText!$E$1&CHAR(10)&ScriptText!C1779)","v":""},{"$f":"IF(OrigTable!C1784=\"\",\"\",ScriptText!$B$1&CHAR(10)&ScriptText!$D$1)","v":""},{"$f":"IF(OrigTable!C1784=\"\",\"\",IF(LEN(OrigTable!C1784)>255,LEFT(OrigTable!C1784,250)&\". . .\",OrigTable!C1784))","v":""},{"$f":"IF(OrigTable!C1784=\"\",\"\",ScriptText!$E$1&CHAR(10)&ScriptText!$C$1)","v":""},{"$f":"IF(OrigTable!D1784=\"\",\"\",ScriptText!$B$1&CHAR(10)&ScriptText!$D$1)","v":""},{"$f":"IF(OrigTable!D1784=\"\",\"\",TEXT(OrigTable!D1784,\"00\"))","v":""},{"$f":"IF(OrigTable!D1784=\"\",\"\",ScriptText!$E$1&CHAR(10)&ScriptText!$C$1)","v":""},{"$f":"IF(OrigTable!E1784=\"\",\"\",ScriptText!$B$1&CHAR(10)&ScriptText!$D$1)","v":""},{"$f":"IF(OrigTable!E1784=\"\",\"\",TEXT(OrigTable!E1784,\"00\"))","v":""},{"$f":"IF(OrigTable!E1784=\"\",\"\",ScriptText!$E$1&CHAR(10)&ScriptText!$C$1)","v":""},{"$f":"IF(OrigTable!F1784=\"\",\"\",ScriptText!$B$1&CHAR(10)&ScriptText!$D$1)","v":""},{"$f":"IF(OrigTable!F1784=\"\",\"\",TEXT(OrigTable!F1784,\"00\"))","v":""},{"$f":"IF(OrigTable!F1784=\"\",\"\",ScriptText!$E$1&CHAR(10)&ScriptText!$C$1)","v":""},{"$f":"IF(OrigTable!G1784=\"\",\"\",ScriptText!$B$1&CHAR(10)&ScriptText!$D$1)","v":""},{"$f":"IF(OrigTable!G1784=\"\",\"\",TEXT(OrigTable!G1784,\"00\"))","v":""},{"$f":"IF(OrigTable!G1784=\"\",\"\",ScriptText!$E$1&CHAR(10)&ScriptText!$C$1)","v":""},0]
["\n\n\n",{"$f":"IF(OrigTable!A1785=\"\",\"\",ScriptText!$B$1&CHAR(10)&ScriptText!$D$1)","v":""},{"$f":"IF(OrigTable!A1785=\"\",\"\",TEXT(OrigTable!A1785,\"00\"))","v":""},{"$f":"IF(OrigTable!A1785=\"\",\"\",ScriptText!$E$1&CHAR(10)&ScriptText!$C$1)","v":""},{"$f":"IF(OrigTable!B1785=\"\",\"\",ScriptText!$B$1&CHAR(10)&ScriptText!$D$1)","v":""},{"$f":"IF(OrigTable!B1785=\"\",\"\",TEXT(OrigTable!B1785,\"00\"))","v":""},{"$f":"IF(OrigTable!B1785=\"\",\"\",ScriptText!$E$1&CHAR(10)&ScriptText!C1780)","v":""},{"$f":"IF(OrigTable!C1785=\"\",\"\",ScriptText!$B$1&CHAR(10)&ScriptText!$D$1)","v":""},{"$f":"IF(OrigTable!C1785=\"\",\"\",IF(LEN(OrigTable!C1785)>255,LEFT(OrigTable!C1785,250)&\". . .\",OrigTable!C1785))","v":""},{"$f":"IF(OrigTable!C1785=\"\",\"\",ScriptText!$E$1&CHAR(10)&ScriptText!$C$1)","v":""},{"$f":"IF(OrigTable!D1785=\"\",\"\",ScriptText!$B$1&CHAR(10)&ScriptText!$D$1)","v":""},{"$f":"IF(OrigTable!D1785=\"\",\"\",TEXT(OrigTable!D1785,\"00\"))","v":""},{"$f":"IF(OrigTable!D1785=\"\",\"\",ScriptText!$E$1&CHAR(10)&ScriptText!$C$1)","v":""},{"$f":"IF(OrigTable!E1785=\"\",\"\",ScriptText!$B$1&CHAR(10)&ScriptText!$D$1)","v":""},{"$f":"IF(OrigTable!E1785=\"\",\"\",TEXT(OrigTable!E1785,\"00\"))","v":""},{"$f":"IF(OrigTable!E1785=\"\",\"\",ScriptText!$E$1&CHAR(10)&ScriptText!$C$1)","v":""},{"$f":"IF(OrigTable!F1785=\"\",\"\",ScriptText!$B$1&CHAR(10)&ScriptText!$D$1)","v":""},{"$f":"IF(OrigTable!F1785=\"\",\"\",TEXT(OrigTable!F1785,\"00\"))","v":""},{"$f":"IF(OrigTable!F1785=\"\",\"\",ScriptText!$E$1&CHAR(10)&ScriptText!$C$1)","v":""},{"$f":"IF(OrigTable!G1785=\"\",\"\",ScriptText!$B$1&CHAR(10)&ScriptText!$D$1)","v":""},{"$f":"IF(OrigTable!G1785=\"\",\"\",TEXT(OrigTable!G1785,\"00\"))","v":""},{"$f":"IF(OrigTable!G1785=\"\",\"\",ScriptText!$E$1&CHAR(10)&ScriptText!$C$1)","v":""},0]
["\n\n\n",{"$f":"IF(OrigTable!A1786=\"\",\"\",ScriptText!$B$1&CHAR(10)&ScriptText!$D$1)","v":""},{"$f":"IF(OrigTable!A1786=\"\",\"\",TEXT(OrigTable!A1786,\"00\"))","v":""},{"$f":"IF(OrigTable!A1786=\"\",\"\",ScriptText!$E$1&CHAR(10)&ScriptText!$C$1)","v":""},{"$f":"IF(OrigTable!B1786=\"\",\"\",ScriptText!$B$1&CHAR(10)&ScriptText!$D$1)","v":""},{"$f":"IF(OrigTable!B1786=\"\",\"\",TEXT(OrigTable!B1786,\"00\"))","v":""},{"$f":"IF(OrigTable!B1786=\"\",\"\",ScriptText!$E$1&CHAR(10)&ScriptText!C1781)","v":""},{"$f":"IF(OrigTable!C1786=\"\",\"\",ScriptText!$B$1&CHAR(10)&ScriptText!$D$1)","v":""},{"$f":"IF(OrigTable!C1786=\"\",\"\",IF(LEN(OrigTable!C1786)>255,LEFT(OrigTable!C1786,250)&\". . .\",OrigTable!C1786))","v":""},{"$f":"IF(OrigTable!C1786=\"\",\"\",ScriptText!$E$1&CHAR(10)&ScriptText!$C$1)","v":""},{"$f":"IF(OrigTable!D1786=\"\",\"\",ScriptText!$B$1&CHAR(10)&ScriptText!$D$1)","v":""},{"$f":"IF(OrigTable!D1786=\"\",\"\",TEXT(OrigTable!D1786,\"00\"))","v":""},{"$f":"IF(OrigTable!D1786=\"\",\"\",ScriptText!$E$1&CHAR(10)&ScriptText!$C$1)","v":""},{"$f":"IF(OrigTable!E1786=\"\",\"\",ScriptText!$B$1&CHAR(10)&ScriptText!$D$1)","v":""},{"$f":"IF(OrigTable!E1786=\"\",\"\",TEXT(OrigTable!E1786,\"00\"))","v":""},{"$f":"IF(OrigTable!E1786=\"\",\"\",ScriptText!$E$1&CHAR(10)&ScriptText!$C$1)","v":""},{"$f":"IF(OrigTable!F1786=\"\",\"\",ScriptText!$B$1&CHAR(10)&ScriptText!$D$1)","v":""},{"$f":"IF(OrigTable!F1786=\"\",\"\",TEXT(OrigTable!F1786,\"00\"))","v":""},{"$f":"IF(OrigTable!F1786=\"\",\"\",ScriptText!$E$1&CHAR(10)&ScriptText!$C$1)","v":""},{"$f":"IF(OrigTable!G1786=\"\",\"\",ScriptText!$B$1&CHAR(10)&ScriptText!$D$1)","v":""},{"$f":"IF(OrigTable!G1786=\"\",\"\",TEXT(OrigTable!G1786,\"00\"))","v":""},{"$f":"IF(OrigTable!G1786=\"\",\"\",ScriptText!$E$1&CHAR(10)&ScriptText!$C$1)","v":""},0]
["\n\n\n",{"$f":"IF(OrigTable!A1787=\"\",\"\",ScriptText!$B$1&CHAR(10)&ScriptText!$D$1)","v":""},{"$f":"IF(OrigTable!A1787=\"\",\"\",TEXT(OrigTable!A1787,\"00\"))","v":""},{"$f":"IF(OrigTable!A1787=\"\",\"\",ScriptText!$E$1&CHAR(10)&ScriptText!$C$1)","v":""},{"$f":"IF(OrigTable!B1787=\"\",\"\",ScriptText!$B$1&CHAR(10)&ScriptText!$D$1)","v":""},{"$f":"IF(OrigTable!B1787=\"\",\"\",TEXT(OrigTable!B1787,\"00\"))","v":""},{"$f":"IF(OrigTable!B1787=\"\",\"\",ScriptText!$E$1&CHAR(10)&ScriptText!C1782)","v":""},{"$f":"IF(OrigTable!C1787=\"\",\"\",ScriptText!$B$1&CHAR(10)&ScriptText!$D$1)","v":""},{"$f":"IF(OrigTable!C1787=\"\",\"\",IF(LEN(OrigTable!C1787)>255,LEFT(OrigTable!C1787,250)&\". . .\",OrigTable!C1787))","v":""},{"$f":"IF(OrigTable!C1787=\"\",\"\",ScriptText!$E$1&CHAR(10)&ScriptText!$C$1)","v":""},{"$f":"IF(OrigTable!D1787=\"\",\"\",ScriptText!$B$1&CHAR(10)&ScriptText!$D$1)","v":""},{"$f":"IF(OrigTable!D1787=\"\",\"\",TEXT(OrigTable!D1787,\"00\"))","v":""},{"$f":"IF(OrigTable!D1787=\"\",\"\",ScriptText!$E$1&CHAR(10)&ScriptText!$C$1)","v":""},{"$f":"IF(OrigTable!E1787=\"\",\"\",ScriptText!$B$1&CHAR(10)&ScriptText!$D$1)","v":""},{"$f":"IF(OrigTable!E1787=\"\",\"\",TEXT(OrigTable!E1787,\"00\"))","v":""},{"$f":"IF(OrigTable!E1787=\"\",\"\",ScriptText!$E$1&CHAR(10)&ScriptText!$C$1)","v":""},{"$f":"IF(OrigTable!F1787=\"\",\"\",ScriptText!$B$1&CHAR(10)&ScriptText!$D$1)","v":""},{"$f":"IF(OrigTable!F1787=\"\",\"\",TEXT(OrigTable!F1787,\"00\"))","v":""},{"$f":"IF(OrigTable!F1787=\"\",\"\",ScriptText!$E$1&CHAR(10)&ScriptText!$C$1)","v":""},{"$f":"IF(OrigTable!G1787=\"\",\"\",ScriptText!$B$1&CHAR(10)&ScriptText!$D$1)","v":""},{"$f":"IF(OrigTable!G1787=\"\",\"\",TEXT(OrigTable!G1787,\"00\"))","v":""},{"$f":"IF(OrigTable!G1787=\"\",\"\",ScriptText!$E$1&CHAR(10)&ScriptText!$C$1)","v":""},0]
["\n\n\n",{"$f":"IF(OrigTable!A1788=\"\",\"\",ScriptText!$B$1&CHAR(10)&ScriptText!$D$1)","v":""},{"$f":"IF(OrigTable!A1788=\"\",\"\",TEXT(OrigTable!A1788,\"00\"))","v":""},{"$f":"IF(OrigTable!A1788=\"\",\"\",ScriptText!$E$1&CHAR(10)&ScriptText!$C$1)","v":""},{"$f":"IF(OrigTable!B1788=\"\",\"\",ScriptText!$B$1&CHAR(10)&ScriptText!$D$1)","v":""},{"$f":"IF(OrigTable!B1788=\"\",\"\",TEXT(OrigTable!B1788,\"00\"))","v":""},{"$f":"IF(OrigTable!B1788=\"\",\"\",ScriptText!$E$1&CHAR(10)&ScriptText!C1783)","v":""},{"$f":"IF(OrigTable!C1788=\"\",\"\",ScriptText!$B$1&CHAR(10)&ScriptText!$D$1)","v":""},{"$f":"IF(OrigTable!C1788=\"\",\"\",IF(LEN(OrigTable!C1788)>255,LEFT(OrigTable!C1788,250)&\". . .\",OrigTable!C1788))","v":""},{"$f":"IF(OrigTable!C1788=\"\",\"\",ScriptText!$E$1&CHAR(10)&ScriptText!$C$1)","v":""},{"$f":"IF(OrigTable!D1788=\"\",\"\",ScriptText!$B$1&CHAR(10)&ScriptText!$D$1)","v":""},{"$f":"IF(OrigTable!D1788=\"\",\"\",TEXT(OrigTable!D1788,\"00\"))","v":""},{"$f":"IF(OrigTable!D1788=\"\",\"\",ScriptText!$E$1&CHAR(10)&ScriptText!$C$1)","v":""},{"$f":"IF(OrigTable!E1788=\"\",\"\",ScriptText!$B$1&CHAR(10)&ScriptText!$D$1)","v":""},{"$f":"IF(OrigTable!E1788=\"\",\"\",TEXT(OrigTable!E1788,\"00\"))","v":""},{"$f":"IF(OrigTable!E1788=\"\",\"\",ScriptText!$E$1&CHAR(10)&ScriptText!$C$1)","v":""},{"$f":"IF(OrigTable!F1788=\"\",\"\",ScriptText!$B$1&CHAR(10)&ScriptText!$D$1)","v":""},{"$f":"IF(OrigTable!F1788=\"\",\"\",TEXT(OrigTable!F1788,\"00\"))","v":""},{"$f":"IF(OrigTable!F1788=\"\",\"\",ScriptText!$E$1&CHAR(10)&ScriptText!$C$1)","v":""},{"$f":"IF(OrigTable!G1788=\"\",\"\",ScriptText!$B$1&CHAR(10)&ScriptText!$D$1)","v":""},{"$f":"IF(OrigTable!G1788=\"\",\"\",TEXT(OrigTable!G1788,\"00\"))","v":""},{"$f":"IF(OrigTable!G1788=\"\",\"\",ScriptText!$E$1&CHAR(10)&ScriptText!$C$1)","v":""},0]
["\n\n\n",{"$f":"IF(OrigTable!A1789=\"\",\"\",ScriptText!$B$1&CHAR(10)&ScriptText!$D$1)","v":""},{"$f":"IF(OrigTable!A1789=\"\",\"\",TEXT(OrigTable!A1789,\"00\"))","v":""},{"$f":"IF(OrigTable!A1789=\"\",\"\",ScriptText!$E$1&CHAR(10)&ScriptText!$C$1)","v":""},{"$f":"IF(OrigTable!B1789=\"\",\"\",ScriptText!$B$1&CHAR(10)&ScriptText!$D$1)","v":""},{"$f":"IF(OrigTable!B1789=\"\",\"\",TEXT(OrigTable!B1789,\"00\"))","v":""},{"$f":"IF(OrigTable!B1789=\"\",\"\",ScriptText!$E$1&CHAR(10)&ScriptText!C1784)","v":""},{"$f":"IF(OrigTable!C1789=\"\",\"\",ScriptText!$B$1&CHAR(10)&ScriptText!$D$1)","v":""},{"$f":"IF(OrigTable!C1789=\"\",\"\",IF(LEN(OrigTable!C1789)>255,LEFT(OrigTable!C1789,250)&\". . .\",OrigTable!C1789))","v":""},{"$f":"IF(OrigTable!C1789=\"\",\"\",ScriptText!$E$1&CHAR(10)&ScriptText!$C$1)","v":""},{"$f":"IF(OrigTable!D1789=\"\",\"\",ScriptText!$B$1&CHAR(10)&ScriptText!$D$1)","v":""},{"$f":"IF(OrigTable!D1789=\"\",\"\",TEXT(OrigTable!D1789,\"00\"))","v":""},{"$f":"IF(OrigTable!D1789=\"\",\"\",ScriptText!$E$1&CHAR(10)&ScriptText!$C$1)","v":""},{"$f":"IF(OrigTable!E1789=\"\",\"\",ScriptText!$B$1&CHAR(10)&ScriptText!$D$1)","v":""},{"$f":"IF(OrigTable!E1789=\"\",\"\",TEXT(OrigTable!E1789,\"00\"))","v":""},{"$f":"IF(OrigTable!E1789=\"\",\"\",ScriptText!$E$1&CHAR(10)&ScriptText!$C$1)","v":""},{"$f":"IF(OrigTable!F1789=\"\",\"\",ScriptText!$B$1&CHAR(10)&ScriptText!$D$1)","v":""},{"$f":"IF(OrigTable!F1789=\"\",\"\",TEXT(OrigTable!F1789,\"00\"))","v":""},{"$f":"IF(OrigTable!F1789=\"\",\"\",ScriptText!$E$1&CHAR(10)&ScriptText!$C$1)","v":""},{"$f":"IF(OrigTable!G1789=\"\",\"\",ScriptText!$B$1&CHAR(10)&ScriptText!$D$1)","v":""},{"$f":"IF(OrigTable!G1789=\"\",\"\",TEXT(OrigTable!G1789,\"00\"))","v":""},{"$f":"IF(OrigTable!G1789=\"\",\"\",ScriptText!$E$1&CHAR(10)&ScriptText!$C$1)","v":""},0]
["\n\n\n",{"$f":"IF(OrigTable!A1790=\"\",\"\",ScriptText!$B$1&CHAR(10)&ScriptText!$D$1)","v":""},{"$f":"IF(OrigTable!A1790=\"\",\"\",TEXT(OrigTable!A1790,\"00\"))","v":""},{"$f":"IF(OrigTable!A1790=\"\",\"\",ScriptText!$E$1&CHAR(10)&ScriptText!$C$1)","v":""},{"$f":"IF(OrigTable!B1790=\"\",\"\",ScriptText!$B$1&CHAR(10)&ScriptText!$D$1)","v":""},{"$f":"IF(OrigTable!B1790=\"\",\"\",TEXT(OrigTable!B1790,\"00\"))","v":""},{"$f":"IF(OrigTable!B1790=\"\",\"\",ScriptText!$E$1&CHAR(10)&ScriptText!C1785)","v":""},{"$f":"IF(OrigTable!C1790=\"\",\"\",ScriptText!$B$1&CHAR(10)&ScriptText!$D$1)","v":""},{"$f":"IF(OrigTable!C1790=\"\",\"\",IF(LEN(OrigTable!C1790)>255,LEFT(OrigTable!C1790,250)&\". . .\",OrigTable!C1790))","v":""},{"$f":"IF(OrigTable!C1790=\"\",\"\",ScriptText!$E$1&CHAR(10)&ScriptText!$C$1)","v":""},{"$f":"IF(OrigTable!D1790=\"\",\"\",ScriptText!$B$1&CHAR(10)&ScriptText!$D$1)","v":""},{"$f":"IF(OrigTable!D1790=\"\",\"\",TEXT(OrigTable!D1790,\"00\"))","v":""},{"$f":"IF(OrigTable!D1790=\"\",\"\",ScriptText!$E$1&CHAR(10)&ScriptText!$C$1)","v":""},{"$f":"IF(OrigTable!E1790=\"\",\"\",ScriptText!$B$1&CHAR(10)&ScriptText!$D$1)","v":""},{"$f":"IF(OrigTable!E1790=\"\",\"\",TEXT(OrigTable!E1790,\"00\"))","v":""},{"$f":"IF(OrigTable!E1790=\"\",\"\",ScriptText!$E$1&CHAR(10)&ScriptText!$C$1)","v":""},{"$f":"IF(OrigTable!F1790=\"\",\"\",ScriptText!$B$1&CHAR(10)&ScriptText!$D$1)","v":""},{"$f":"IF(OrigTable!F1790=\"\",\"\",TEXT(OrigTable!F1790,\"00\"))","v":""},{"$f":"IF(OrigTable!F1790=\"\",\"\",ScriptText!$E$1&CHAR(10)&ScriptText!$C$1)","v":""},{"$f":"IF(OrigTable!G1790=\"\",\"\",ScriptText!$B$1&CHAR(10)&ScriptText!$D$1)","v":""},{"$f":"IF(OrigTable!G1790=\"\",\"\",TEXT(OrigTable!G1790,\"00\"))","v":""},{"$f":"IF(OrigTable!G1790=\"\",\"\",ScriptText!$E$1&CHAR(10)&ScriptText!$C$1)","v":""},0]
["\n\n\n",{"$f":"IF(OrigTable!A1791=\"\",\"\",ScriptText!$B$1&CHAR(10)&ScriptText!$D$1)","v":""},{"$f":"IF(OrigTable!A1791=\"\",\"\",TEXT(OrigTable!A1791,\"00\"))","v":""},{"$f":"IF(OrigTable!A1791=\"\",\"\",ScriptText!$E$1&CHAR(10)&ScriptText!$C$1)","v":""},{"$f":"IF(OrigTable!B1791=\"\",\"\",ScriptText!$B$1&CHAR(10)&ScriptText!$D$1)","v":""},{"$f":"IF(OrigTable!B1791=\"\",\"\",TEXT(OrigTable!B1791,\"00\"))","v":""},{"$f":"IF(OrigTable!B1791=\"\",\"\",ScriptText!$E$1&CHAR(10)&ScriptText!C1786)","v":""},{"$f":"IF(OrigTable!C1791=\"\",\"\",ScriptText!$B$1&CHAR(10)&ScriptText!$D$1)","v":""},{"$f":"IF(OrigTable!C1791=\"\",\"\",IF(LEN(OrigTable!C1791)>255,LEFT(OrigTable!C1791,250)&\". . .\",OrigTable!C1791))","v":""},{"$f":"IF(OrigTable!C1791=\"\",\"\",ScriptText!$E$1&CHAR(10)&ScriptText!$C$1)","v":""},{"$f":"IF(OrigTable!D1791=\"\",\"\",ScriptText!$B$1&CHAR(10)&ScriptText!$D$1)","v":""},{"$f":"IF(OrigTable!D1791=\"\",\"\",TEXT(OrigTable!D1791,\"00\"))","v":""},{"$f":"IF(OrigTable!D1791=\"\",\"\",ScriptText!$E$1&CHAR(10)&ScriptText!$C$1)","v":""},{"$f":"IF(OrigTable!E1791=\"\",\"\",ScriptText!$B$1&CHAR(10)&ScriptText!$D$1)","v":""},{"$f":"IF(OrigTable!E1791=\"\",\"\",TEXT(OrigTable!E1791,\"00\"))","v":""},{"$f":"IF(OrigTable!E1791=\"\",\"\",ScriptText!$E$1&CHAR(10)&ScriptText!$C$1)","v":""},{"$f":"IF(OrigTable!F1791=\"\",\"\",ScriptText!$B$1&CHAR(10)&ScriptText!$D$1)","v":""},{"$f":"IF(OrigTable!F1791=\"\",\"\",TEXT(OrigTable!F1791,\"00\"))","v":""},{"$f":"IF(OrigTable!F1791=\"\",\"\",ScriptText!$E$1&CHAR(10)&ScriptText!$C$1)","v":""},{"$f":"IF(OrigTable!G1791=\"\",\"\",ScriptText!$B$1&CHAR(10)&ScriptText!$D$1)","v":""},{"$f":"IF(OrigTable!G1791=\"\",\"\",TEXT(OrigTable!G1791,\"00\"))","v":""},{"$f":"IF(OrigTable!G1791=\"\",\"\",ScriptText!$E$1&CHAR(10)&ScriptText!$C$1)","v":""},0]
["\n\n\n",{"$f":"IF(OrigTable!A1792=\"\",\"\",ScriptText!$B$1&CHAR(10)&ScriptText!$D$1)","v":""},{"$f":"IF(OrigTable!A1792=\"\",\"\",TEXT(OrigTable!A1792,\"00\"))","v":""},{"$f":"IF(OrigTable!A1792=\"\",\"\",ScriptText!$E$1&CHAR(10)&ScriptText!$C$1)","v":""},{"$f":"IF(OrigTable!B1792=\"\",\"\",ScriptText!$B$1&CHAR(10)&ScriptText!$D$1)","v":""},{"$f":"IF(OrigTable!B1792=\"\",\"\",TEXT(OrigTable!B1792,\"00\"))","v":""},{"$f":"IF(OrigTable!B1792=\"\",\"\",ScriptText!$E$1&CHAR(10)&ScriptText!C1787)","v":""},{"$f":"IF(OrigTable!C1792=\"\",\"\",ScriptText!$B$1&CHAR(10)&ScriptText!$D$1)","v":""},{"$f":"IF(OrigTable!C1792=\"\",\"\",IF(LEN(OrigTable!C1792)>255,LEFT(OrigTable!C1792,250)&\". . .\",OrigTable!C1792))","v":""},{"$f":"IF(OrigTable!C1792=\"\",\"\",ScriptText!$E$1&CHAR(10)&ScriptText!$C$1)","v":""},{"$f":"IF(OrigTable!D1792=\"\",\"\",ScriptText!$B$1&CHAR(10)&ScriptText!$D$1)","v":""},{"$f":"IF(OrigTable!D1792=\"\",\"\",TEXT(OrigTable!D1792,\"00\"))","v":""},{"$f":"IF(OrigTable!D1792=\"\",\"\",ScriptText!$E$1&CHAR(10)&ScriptText!$C$1)","v":""},{"$f":"IF(OrigTable!E1792=\"\",\"\",ScriptText!$B$1&CHAR(10)&ScriptText!$D$1)","v":""},{"$f":"IF(OrigTable!E1792=\"\",\"\",TEXT(OrigTable!E1792,\"00\"))","v":""},{"$f":"IF(OrigTable!E1792=\"\",\"\",ScriptText!$E$1&CHAR(10)&ScriptText!$C$1)","v":""},{"$f":"IF(OrigTable!F1792=\"\",\"\",ScriptText!$B$1&CHAR(10)&ScriptText!$D$1)","v":""},{"$f":"IF(OrigTable!F1792=\"\",\"\",TEXT(OrigTable!F1792,\"00\"))","v":""},{"$f":"IF(OrigTable!F1792=\"\",\"\",ScriptText!$E$1&CHAR(10)&ScriptText!$C$1)","v":""},{"$f":"IF(OrigTable!G1792=\"\",\"\",ScriptText!$B$1&CHAR(10)&ScriptText!$D$1)","v":""},{"$f":"IF(OrigTable!G1792=\"\",\"\",TEXT(OrigTable!G1792,\"00\"))","v":""},{"$f":"IF(OrigTable!G1792=\"\",\"\",ScriptText!$E$1&CHAR(10)&ScriptText!$C$1)","v":""},0]
["\n\n\n",{"$f":"IF(OrigTable!A1793=\"\",\"\",ScriptText!$B$1&CHAR(10)&ScriptText!$D$1)","v":""},{"$f":"IF(OrigTable!A1793=\"\",\"\",TEXT(OrigTable!A1793,\"00\"))","v":""},{"$f":"IF(OrigTable!A1793=\"\",\"\",ScriptText!$E$1&CHAR(10)&ScriptText!$C$1)","v":""},{"$f":"IF(OrigTable!B1793=\"\",\"\",ScriptText!$B$1&CHAR(10)&ScriptText!$D$1)","v":""},{"$f":"IF(OrigTable!B1793=\"\",\"\",TEXT(OrigTable!B1793,\"00\"))","v":""},{"$f":"IF(OrigTable!B1793=\"\",\"\",ScriptText!$E$1&CHAR(10)&ScriptText!C1788)","v":""},{"$f":"IF(OrigTable!C1793=\"\",\"\",ScriptText!$B$1&CHAR(10)&ScriptText!$D$1)","v":""},{"$f":"IF(OrigTable!C1793=\"\",\"\",IF(LEN(OrigTable!C1793)>255,LEFT(OrigTable!C1793,250)&\". . .\",OrigTable!C1793))","v":""},{"$f":"IF(OrigTable!C1793=\"\",\"\",ScriptText!$E$1&CHAR(10)&ScriptText!$C$1)","v":""},{"$f":"IF(OrigTable!D1793=\"\",\"\",ScriptText!$B$1&CHAR(10)&ScriptText!$D$1)","v":""},{"$f":"IF(OrigTable!D1793=\"\",\"\",TEXT(OrigTable!D1793,\"00\"))","v":""},{"$f":"IF(OrigTable!D1793=\"\",\"\",ScriptText!$E$1&CHAR(10)&ScriptText!$C$1)","v":""},{"$f":"IF(OrigTable!E1793=\"\",\"\",ScriptText!$B$1&CHAR(10)&ScriptText!$D$1)","v":""},{"$f":"IF(OrigTable!E1793=\"\",\"\",TEXT(OrigTable!E1793,\"00\"))","v":""},{"$f":"IF(OrigTable!E1793=\"\",\"\",ScriptText!$E$1&CHAR(10)&ScriptText!$C$1)","v":""},{"$f":"IF(OrigTable!F1793=\"\",\"\",ScriptText!$B$1&CHAR(10)&ScriptText!$D$1)","v":""},{"$f":"IF(OrigTable!F1793=\"\",\"\",TEXT(OrigTable!F1793,\"00\"))","v":""},{"$f":"IF(OrigTable!F1793=\"\",\"\",ScriptText!$E$1&CHAR(10)&ScriptText!$C$1)","v":""},{"$f":"IF(OrigTable!G1793=\"\",\"\",ScriptText!$B$1&CHAR(10)&ScriptText!$D$1)","v":""},{"$f":"IF(OrigTable!G1793=\"\",\"\",TEXT(OrigTable!G1793,\"00\"))","v":""},{"$f":"IF(OrigTable!G1793=\"\",\"\",ScriptText!$E$1&CHAR(10)&ScriptText!$C$1)","v":""},0]
["\n\n\n",{"$f":"IF(OrigTable!A1794=\"\",\"\",ScriptText!$B$1&CHAR(10)&ScriptText!$D$1)","v":""},{"$f":"IF(OrigTable!A1794=\"\",\"\",TEXT(OrigTable!A1794,\"00\"))","v":""},{"$f":"IF(OrigTable!A1794=\"\",\"\",ScriptText!$E$1&CHAR(10)&ScriptText!$C$1)","v":""},{"$f":"IF(OrigTable!B1794=\"\",\"\",ScriptText!$B$1&CHAR(10)&ScriptText!$D$1)","v":""},{"$f":"IF(OrigTable!B1794=\"\",\"\",TEXT(OrigTable!B1794,\"00\"))","v":""},{"$f":"IF(OrigTable!B1794=\"\",\"\",ScriptText!$E$1&CHAR(10)&ScriptText!C1789)","v":""},{"$f":"IF(OrigTable!C1794=\"\",\"\",ScriptText!$B$1&CHAR(10)&ScriptText!$D$1)","v":""},{"$f":"IF(OrigTable!C1794=\"\",\"\",IF(LEN(OrigTable!C1794)>255,LEFT(OrigTable!C1794,250)&\". . .\",OrigTable!C1794))","v":""},{"$f":"IF(OrigTable!C1794=\"\",\"\",ScriptText!$E$1&CHAR(10)&ScriptText!$C$1)","v":""},{"$f":"IF(OrigTable!D1794=\"\",\"\",ScriptText!$B$1&CHAR(10)&ScriptText!$D$1)","v":""},{"$f":"IF(OrigTable!D1794=\"\",\"\",TEXT(OrigTable!D1794,\"00\"))","v":""},{"$f":"IF(OrigTable!D1794=\"\",\"\",ScriptText!$E$1&CHAR(10)&ScriptText!$C$1)","v":""},{"$f":"IF(OrigTable!E1794=\"\",\"\",ScriptText!$B$1&CHAR(10)&ScriptText!$D$1)","v":""},{"$f":"IF(OrigTable!E1794=\"\",\"\",TEXT(OrigTable!E1794,\"00\"))","v":""},{"$f":"IF(OrigTable!E1794=\"\",\"\",ScriptText!$E$1&CHAR(10)&ScriptText!$C$1)","v":""},{"$f":"IF(OrigTable!F1794=\"\",\"\",ScriptText!$B$1&CHAR(10)&ScriptText!$D$1)","v":""},{"$f":"IF(OrigTable!F1794=\"\",\"\",TEXT(OrigTable!F1794,\"00\"))","v":""},{"$f":"IF(OrigTable!F1794=\"\",\"\",ScriptText!$E$1&CHAR(10)&ScriptText!$C$1)","v":""},{"$f":"IF(OrigTable!G1794=\"\",\"\",ScriptText!$B$1&CHAR(10)&ScriptText!$D$1)","v":""},{"$f":"IF(OrigTable!G1794=\"\",\"\",TEXT(OrigTable!G1794,\"00\"))","v":""},{"$f":"IF(OrigTable!G1794=\"\",\"\",ScriptText!$E$1&CHAR(10)&ScriptText!$C$1)","v":""},0]
["\n\n\n",{"$f":"IF(OrigTable!A1795=\"\",\"\",ScriptText!$B$1&CHAR(10)&ScriptText!$D$1)","v":""},{"$f":"IF(OrigTable!A1795=\"\",\"\",TEXT(OrigTable!A1795,\"00\"))","v":""},{"$f":"IF(OrigTable!A1795=\"\",\"\",ScriptText!$E$1&CHAR(10)&ScriptText!$C$1)","v":""},{"$f":"IF(OrigTable!B1795=\"\",\"\",ScriptText!$B$1&CHAR(10)&ScriptText!$D$1)","v":""},{"$f":"IF(OrigTable!B1795=\"\",\"\",TEXT(OrigTable!B1795,\"00\"))","v":""},{"$f":"IF(OrigTable!B1795=\"\",\"\",ScriptText!$E$1&CHAR(10)&ScriptText!C1790)","v":""},{"$f":"IF(OrigTable!C1795=\"\",\"\",ScriptText!$B$1&CHAR(10)&ScriptText!$D$1)","v":""},{"$f":"IF(OrigTable!C1795=\"\",\"\",IF(LEN(OrigTable!C1795)>255,LEFT(OrigTable!C1795,250)&\". . .\",OrigTable!C1795))","v":""},{"$f":"IF(OrigTable!C1795=\"\",\"\",ScriptText!$E$1&CHAR(10)&ScriptText!$C$1)","v":""},{"$f":"IF(OrigTable!D1795=\"\",\"\",ScriptText!$B$1&CHAR(10)&ScriptText!$D$1)","v":""},{"$f":"IF(OrigTable!D1795=\"\",\"\",TEXT(OrigTable!D1795,\"00\"))","v":""},{"$f":"IF(OrigTable!D1795=\"\",\"\",ScriptText!$E$1&CHAR(10)&ScriptText!$C$1)","v":""},{"$f":"IF(OrigTable!E1795=\"\",\"\",ScriptText!$B$1&CHAR(10)&ScriptText!$D$1)","v":""},{"$f":"IF(OrigTable!E1795=\"\",\"\",TEXT(OrigTable!E1795,\"00\"))","v":""},{"$f":"IF(OrigTable!E1795=\"\",\"\",ScriptText!$E$1&CHAR(10)&ScriptText!$C$1)","v":""},{"$f":"IF(OrigTable!F1795=\"\",\"\",ScriptText!$B$1&CHAR(10)&ScriptText!$D$1)","v":""},{"$f":"IF(OrigTable!F1795=\"\",\"\",TEXT(OrigTable!F1795,\"00\"))","v":""},{"$f":"IF(OrigTable!F1795=\"\",\"\",ScriptText!$E$1&CHAR(10)&ScriptText!$C$1)","v":""},{"$f":"IF(OrigTable!G1795=\"\",\"\",ScriptText!$B$1&CHAR(10)&ScriptText!$D$1)","v":""},{"$f":"IF(OrigTable!G1795=\"\",\"\",TEXT(OrigTable!G1795,\"00\"))","v":""},{"$f":"IF(OrigTable!G1795=\"\",\"\",ScriptText!$E$1&CHAR(10)&ScriptText!$C$1)","v":""},0]
["\n\n\n",{"$f":"IF(OrigTable!A1796=\"\",\"\",ScriptText!$B$1&CHAR(10)&ScriptText!$D$1)","v":""},{"$f":"IF(OrigTable!A1796=\"\",\"\",TEXT(OrigTable!A1796,\"00\"))","v":""},{"$f":"IF(OrigTable!A1796=\"\",\"\",ScriptText!$E$1&CHAR(10)&ScriptText!$C$1)","v":""},{"$f":"IF(OrigTable!B1796=\"\",\"\",ScriptText!$B$1&CHAR(10)&ScriptText!$D$1)","v":""},{"$f":"IF(OrigTable!B1796=\"\",\"\",TEXT(OrigTable!B1796,\"00\"))","v":""},{"$f":"IF(OrigTable!B1796=\"\",\"\",ScriptText!$E$1&CHAR(10)&ScriptText!C1791)","v":""},{"$f":"IF(OrigTable!C1796=\"\",\"\",ScriptText!$B$1&CHAR(10)&ScriptText!$D$1)","v":""},{"$f":"IF(OrigTable!C1796=\"\",\"\",IF(LEN(OrigTable!C1796)>255,LEFT(OrigTable!C1796,250)&\". . .\",OrigTable!C1796))","v":""},{"$f":"IF(OrigTable!C1796=\"\",\"\",ScriptText!$E$1&CHAR(10)&ScriptText!$C$1)","v":""},{"$f":"IF(OrigTable!D1796=\"\",\"\",ScriptText!$B$1&CHAR(10)&ScriptText!$D$1)","v":""},{"$f":"IF(OrigTable!D1796=\"\",\"\",TEXT(OrigTable!D1796,\"00\"))","v":""},{"$f":"IF(OrigTable!D1796=\"\",\"\",ScriptText!$E$1&CHAR(10)&ScriptText!$C$1)","v":""},{"$f":"IF(OrigTable!E1796=\"\",\"\",ScriptText!$B$1&CHAR(10)&ScriptText!$D$1)","v":""},{"$f":"IF(OrigTable!E1796=\"\",\"\",TEXT(OrigTable!E1796,\"00\"))","v":""},{"$f":"IF(OrigTable!E1796=\"\",\"\",ScriptText!$E$1&CHAR(10)&ScriptText!$C$1)","v":""},{"$f":"IF(OrigTable!F1796=\"\",\"\",ScriptText!$B$1&CHAR(10)&ScriptText!$D$1)","v":""},{"$f":"IF(OrigTable!F1796=\"\",\"\",TEXT(OrigTable!F1796,\"00\"))","v":""},{"$f":"IF(OrigTable!F1796=\"\",\"\",ScriptText!$E$1&CHAR(10)&ScriptText!$C$1)","v":""},{"$f":"IF(OrigTable!G1796=\"\",\"\",ScriptText!$B$1&CHAR(10)&ScriptText!$D$1)","v":""},{"$f":"IF(OrigTable!G1796=\"\",\"\",TEXT(OrigTable!G1796,\"00\"))","v":""},{"$f":"IF(OrigTable!G1796=\"\",\"\",ScriptText!$E$1&CHAR(10)&ScriptText!$C$1)","v":""},0]
["\n\n\n",{"$f":"IF(OrigTable!A1797=\"\",\"\",ScriptText!$B$1&CHAR(10)&ScriptText!$D$1)","v":""},{"$f":"IF(OrigTable!A1797=\"\",\"\",TEXT(OrigTable!A1797,\"00\"))","v":""},{"$f":"IF(OrigTable!A1797=\"\",\"\",ScriptText!$E$1&CHAR(10)&ScriptText!$C$1)","v":""},{"$f":"IF(OrigTable!B1797=\"\",\"\",ScriptText!$B$1&CHAR(10)&ScriptText!$D$1)","v":""},{"$f":"IF(OrigTable!B1797=\"\",\"\",TEXT(OrigTable!B1797,\"00\"))","v":""},{"$f":"IF(OrigTable!B1797=\"\",\"\",ScriptText!$E$1&CHAR(10)&ScriptText!C1792)","v":""},{"$f":"IF(OrigTable!C1797=\"\",\"\",ScriptText!$B$1&CHAR(10)&ScriptText!$D$1)","v":""},{"$f":"IF(OrigTable!C1797=\"\",\"\",IF(LEN(OrigTable!C1797)>255,LEFT(OrigTable!C1797,250)&\". . .\",OrigTable!C1797))","v":""},{"$f":"IF(OrigTable!C1797=\"\",\"\",ScriptText!$E$1&CHAR(10)&ScriptText!$C$1)","v":""},{"$f":"IF(OrigTable!D1797=\"\",\"\",ScriptText!$B$1&CHAR(10)&ScriptText!$D$1)","v":""},{"$f":"IF(OrigTable!D1797=\"\",\"\",TEXT(OrigTable!D1797,\"00\"))","v":""},{"$f":"IF(OrigTable!D1797=\"\",\"\",ScriptText!$E$1&CHAR(10)&ScriptText!$C$1)","v":""},{"$f":"IF(OrigTable!E1797=\"\",\"\",ScriptText!$B$1&CHAR(10)&ScriptText!$D$1)","v":""},{"$f":"IF(OrigTable!E1797=\"\",\"\",TEXT(OrigTable!E1797,\"00\"))","v":""},{"$f":"IF(OrigTable!E1797=\"\",\"\",ScriptText!$E$1&CHAR(10)&ScriptText!$C$1)","v":""},{"$f":"IF(OrigTable!F1797=\"\",\"\",ScriptText!$B$1&CHAR(10)&ScriptText!$D$1)","v":""},{"$f":"IF(OrigTable!F1797=\"\",\"\",TEXT(OrigTable!F1797,\"00\"))","v":""},{"$f":"IF(OrigTable!F1797=\"\",\"\",ScriptText!$E$1&CHAR(10)&ScriptText!$C$1)","v":""},{"$f":"IF(OrigTable!G1797=\"\",\"\",ScriptText!$B$1&CHAR(10)&ScriptText!$D$1)","v":""},{"$f":"IF(OrigTable!G1797=\"\",\"\",TEXT(OrigTable!G1797,\"00\"))","v":""},{"$f":"IF(OrigTable!G1797=\"\",\"\",ScriptText!$E$1&CHAR(10)&ScriptText!$C$1)","v":""},0]
["\n\n\n",{"$f":"IF(OrigTable!A1798=\"\",\"\",ScriptText!$B$1&CHAR(10)&ScriptText!$D$1)","v":""},{"$f":"IF(OrigTable!A1798=\"\",\"\",TEXT(OrigTable!A1798,\"00\"))","v":""},{"$f":"IF(OrigTable!A1798=\"\",\"\",ScriptText!$E$1&CHAR(10)&ScriptText!$C$1)","v":""},{"$f":"IF(OrigTable!B1798=\"\",\"\",ScriptText!$B$1&CHAR(10)&ScriptText!$D$1)","v":""},{"$f":"IF(OrigTable!B1798=\"\",\"\",TEXT(OrigTable!B1798,\"00\"))","v":""},{"$f":"IF(OrigTable!B1798=\"\",\"\",ScriptText!$E$1&CHAR(10)&ScriptText!C1793)","v":""},{"$f":"IF(OrigTable!C1798=\"\",\"\",ScriptText!$B$1&CHAR(10)&ScriptText!$D$1)","v":""},{"$f":"IF(OrigTable!C1798=\"\",\"\",IF(LEN(OrigTable!C1798)>255,LEFT(OrigTable!C1798,250)&\". . .\",OrigTable!C1798))","v":""},{"$f":"IF(OrigTable!C1798=\"\",\"\",ScriptText!$E$1&CHAR(10)&ScriptText!$C$1)","v":""},{"$f":"IF(OrigTable!D1798=\"\",\"\",ScriptText!$B$1&CHAR(10)&ScriptText!$D$1)","v":""},{"$f":"IF(OrigTable!D1798=\"\",\"\",TEXT(OrigTable!D1798,\"00\"))","v":""},{"$f":"IF(OrigTable!D1798=\"\",\"\",ScriptText!$E$1&CHAR(10)&ScriptText!$C$1)","v":""},{"$f":"IF(OrigTable!E1798=\"\",\"\",ScriptText!$B$1&CHAR(10)&ScriptText!$D$1)","v":""},{"$f":"IF(OrigTable!E1798=\"\",\"\",TEXT(OrigTable!E1798,\"00\"))","v":""},{"$f":"IF(OrigTable!E1798=\"\",\"\",ScriptText!$E$1&CHAR(10)&ScriptText!$C$1)","v":""},{"$f":"IF(OrigTable!F1798=\"\",\"\",ScriptText!$B$1&CHAR(10)&ScriptText!$D$1)","v":""},{"$f":"IF(OrigTable!F1798=\"\",\"\",TEXT(OrigTable!F1798,\"00\"))","v":""},{"$f":"IF(OrigTable!F1798=\"\",\"\",ScriptText!$E$1&CHAR(10)&ScriptText!$C$1)","v":""},{"$f":"IF(OrigTable!G1798=\"\",\"\",ScriptText!$B$1&CHAR(10)&ScriptText!$D$1)","v":""},{"$f":"IF(OrigTable!G1798=\"\",\"\",TEXT(OrigTable!G1798,\"00\"))","v":""},{"$f":"IF(OrigTable!G1798=\"\",\"\",ScriptText!$E$1&CHAR(10)&ScriptText!$C$1)","v":""},{"$f":"IF(LEN(A1798)>3,ROW(),0)","v":0}]
["\n\n\n",{"$f":"IF(OrigTable!A1799=\"\",\"\",ScriptText!$B$1&CHAR(10)&ScriptText!$D$1)","v":""},{"$f":"IF(OrigTable!A1799=\"\",\"\",TEXT(OrigTable!A1799,\"00\"))","v":""},{"$f":"IF(OrigTable!A1799=\"\",\"\",ScriptText!$E$1&CHAR(10)&ScriptText!$C$1)","v":""},{"$f":"IF(OrigTable!B1799=\"\",\"\",ScriptText!$B$1&CHAR(10)&ScriptText!$D$1)","v":""},{"$f":"IF(OrigTable!B1799=\"\",\"\",TEXT(OrigTable!B1799,\"00\"))","v":""},{"$f":"IF(OrigTable!B1799=\"\",\"\",ScriptText!$E$1&CHAR(10)&ScriptText!C1794)","v":""},{"$f":"IF(OrigTable!C1799=\"\",\"\",ScriptText!$B$1&CHAR(10)&ScriptText!$D$1)","v":""},{"$f":"IF(OrigTable!C1799=\"\",\"\",IF(LEN(OrigTable!C1799)>255,LEFT(OrigTable!C1799,250)&\". . .\",OrigTable!C1799))","v":""},{"$f":"IF(OrigTable!C1799=\"\",\"\",ScriptText!$E$1&CHAR(10)&ScriptText!$C$1)","v":""},{"$f":"IF(OrigTable!D1799=\"\",\"\",ScriptText!$B$1&CHAR(10)&ScriptText!$D$1)","v":""},{"$f":"IF(OrigTable!D1799=\"\",\"\",TEXT(OrigTable!D1799,\"00\"))","v":""},{"$f":"IF(OrigTable!D1799=\"\",\"\",ScriptText!$E$1&CHAR(10)&ScriptText!$C$1)","v":""},{"$f":"IF(OrigTable!E1799=\"\",\"\",ScriptText!$B$1&CHAR(10)&ScriptText!$D$1)","v":""},{"$f":"IF(OrigTable!E1799=\"\",\"\",TEXT(OrigTable!E1799,\"00\"))","v":""},{"$f":"IF(OrigTable!E1799=\"\",\"\",ScriptText!$E$1&CHAR(10)&ScriptText!$C$1)","v":""},{"$f":"IF(OrigTable!F1799=\"\",\"\",ScriptText!$B$1&CHAR(10)&ScriptText!$D$1)","v":""},{"$f":"IF(OrigTable!F1799=\"\",\"\",TEXT(OrigTable!F1799,\"00\"))","v":""},{"$f":"IF(OrigTable!F1799=\"\",\"\",ScriptText!$E$1&CHAR(10)&ScriptText!$C$1)","v":""},{"$f":"IF(OrigTable!G1799=\"\",\"\",ScriptText!$B$1&CHAR(10)&ScriptText!$D$1)","v":""},{"$f":"IF(OrigTable!G1799=\"\",\"\",TEXT(OrigTable!G1799,\"00\"))","v":""},{"$f":"IF(OrigTable!G1799=\"\",\"\",ScriptText!$E$1&CHAR(10)&ScriptText!$C$1)","v":""},0]
["\n\n\n",{"$f":"IF(OrigTable!A1800=\"\",\"\",ScriptText!$B$1&CHAR(10)&ScriptText!$D$1)","v":""},{"$f":"IF(OrigTable!A1800=\"\",\"\",TEXT(OrigTable!A1800,\"00\"))","v":""},{"$f":"IF(OrigTable!A1800=\"\",\"\",ScriptText!$E$1&CHAR(10)&ScriptText!$C$1)","v":""},{"$f":"IF(OrigTable!B1800=\"\",\"\",ScriptText!$B$1&CHAR(10)&ScriptText!$D$1)","v":""},{"$f":"IF(OrigTable!B1800=\"\",\"\",TEXT(OrigTable!B1800,\"00\"))","v":""},{"$f":"IF(OrigTable!B1800=\"\",\"\",ScriptText!$E$1&CHAR(10)&ScriptText!C1795)","v":""},{"$f":"IF(OrigTable!C1800=\"\",\"\",ScriptText!$B$1&CHAR(10)&ScriptText!$D$1)","v":""},{"$f":"IF(OrigTable!C1800=\"\",\"\",IF(LEN(OrigTable!C1800)>255,LEFT(OrigTable!C1800,250)&\". . .\",OrigTable!C1800))","v":""},{"$f":"IF(OrigTable!C1800=\"\",\"\",ScriptText!$E$1&CHAR(10)&ScriptText!$C$1)","v":""},{"$f":"IF(OrigTable!D1800=\"\",\"\",ScriptText!$B$1&CHAR(10)&ScriptText!$D$1)","v":""},{"$f":"IF(OrigTable!D1800=\"\",\"\",TEXT(OrigTable!D1800,\"00\"))","v":""},{"$f":"IF(OrigTable!D1800=\"\",\"\",ScriptText!$E$1&CHAR(10)&ScriptText!$C$1)","v":""},{"$f":"IF(OrigTable!E1800=\"\",\"\",ScriptText!$B$1&CHAR(10)&ScriptText!$D$1)","v":""},{"$f":"IF(OrigTable!E1800=\"\",\"\",TEXT(OrigTable!E1800,\"00\"))","v":""},{"$f":"IF(OrigTable!E1800=\"\",\"\",ScriptText!$E$1&CHAR(10)&ScriptText!$C$1)","v":""},{"$f":"IF(OrigTable!F1800=\"\",\"\",ScriptText!$B$1&CHAR(10)&ScriptText!$D$1)","v":""},{"$f":"IF(OrigTable!F1800=\"\",\"\",TEXT(OrigTable!F1800,\"00\"))","v":""},{"$f":"IF(OrigTable!F1800=\"\",\"\",ScriptText!$E$1&CHAR(10)&ScriptText!$C$1)","v":""},{"$f":"IF(OrigTable!G1800=\"\",\"\",ScriptText!$B$1&CHAR(10)&ScriptText!$D$1)","v":""},{"$f":"IF(OrigTable!G1800=\"\",\"\",TEXT(OrigTable!G1800,\"00\"))","v":""},{"$f":"IF(OrigTable!G1800=\"\",\"\",ScriptText!$E$1&CHAR(10)&ScriptText!$C$1)","v":""},0]
["\n\n\n",{"$f":"IF(OrigTable!A1801=\"\",\"\",ScriptText!$B$1&CHAR(10)&ScriptText!$D$1)","v":""},{"$f":"IF(OrigTable!A1801=\"\",\"\",TEXT(OrigTable!A1801,\"00\"))","v":""},{"$f":"IF(OrigTable!A1801=\"\",\"\",ScriptText!$E$1&CHAR(10)&ScriptText!$C$1)","v":""},{"$f":"IF(OrigTable!B1801=\"\",\"\",ScriptText!$B$1&CHAR(10)&ScriptText!$D$1)","v":""},{"$f":"IF(OrigTable!B1801=\"\",\"\",TEXT(OrigTable!B1801,\"00\"))","v":""},{"$f":"IF(OrigTable!B1801=\"\",\"\",ScriptText!$E$1&CHAR(10)&ScriptText!C1796)","v":""},{"$f":"IF(OrigTable!C1801=\"\",\"\",ScriptText!$B$1&CHAR(10)&ScriptText!$D$1)","v":""},{"$f":"IF(OrigTable!C1801=\"\",\"\",IF(LEN(OrigTable!C1801)>255,LEFT(OrigTable!C1801,250)&\". . .\",OrigTable!C1801))","v":""},{"$f":"IF(OrigTable!C1801=\"\",\"\",ScriptText!$E$1&CHAR(10)&ScriptText!$C$1)","v":""},{"$f":"IF(OrigTable!D1801=\"\",\"\",ScriptText!$B$1&CHAR(10)&ScriptText!$D$1)","v":""},{"$f":"IF(OrigTable!D1801=\"\",\"\",TEXT(OrigTable!D1801,\"00\"))","v":""},{"$f":"IF(OrigTable!D1801=\"\",\"\",ScriptText!$E$1&CHAR(10)&ScriptText!$C$1)","v":""},{"$f":"IF(OrigTable!E1801=\"\",\"\",ScriptText!$B$1&CHAR(10)&ScriptText!$D$1)","v":""},{"$f":"IF(OrigTable!E1801=\"\",\"\",TEXT(OrigTable!E1801,\"00\"))","v":""},{"$f":"IF(OrigTable!E1801=\"\",\"\",ScriptText!$E$1&CHAR(10)&ScriptText!$C$1)","v":""},{"$f":"IF(OrigTable!F1801=\"\",\"\",ScriptText!$B$1&CHAR(10)&ScriptText!$D$1)","v":""},{"$f":"IF(OrigTable!F1801=\"\",\"\",TEXT(OrigTable!F1801,\"00\"))","v":""},{"$f":"IF(OrigTable!F1801=\"\",\"\",ScriptText!$E$1&CHAR(10)&ScriptText!$C$1)","v":""},{"$f":"IF(OrigTable!G1801=\"\",\"\",ScriptText!$B$1&CHAR(10)&ScriptText!$D$1)","v":""},{"$f":"IF(OrigTable!G1801=\"\",\"\",TEXT(OrigTable!G1801,\"00\"))","v":""},{"$f":"IF(OrigTable!G1801=\"\",\"\",ScriptText!$E$1&CHAR(10)&ScriptText!$C$1)","v":""},0]
["\n\n\n",{"$f":"IF(OrigTable!A1802=\"\",\"\",ScriptText!$B$1&CHAR(10)&ScriptText!$D$1)","v":""},{"$f":"IF(OrigTable!A1802=\"\",\"\",TEXT(OrigTable!A1802,\"00\"))","v":""},{"$f":"IF(OrigTable!A1802=\"\",\"\",ScriptText!$E$1&CHAR(10)&ScriptText!$C$1)","v":""},{"$f":"IF(OrigTable!B1802=\"\",\"\",ScriptText!$B$1&CHAR(10)&ScriptText!$D$1)","v":""},{"$f":"IF(OrigTable!B1802=\"\",\"\",TEXT(OrigTable!B1802,\"00\"))","v":""},{"$f":"IF(OrigTable!B1802=\"\",\"\",ScriptText!$E$1&CHAR(10)&ScriptText!C1797)","v":""},{"$f":"IF(OrigTable!C1802=\"\",\"\",ScriptText!$B$1&CHAR(10)&ScriptText!$D$1)","v":""},{"$f":"IF(OrigTable!C1802=\"\",\"\",IF(LEN(OrigTable!C1802)>255,LEFT(OrigTable!C1802,250)&\". . .\",OrigTable!C1802))","v":""},{"$f":"IF(OrigTable!C1802=\"\",\"\",ScriptText!$E$1&CHAR(10)&ScriptText!$C$1)","v":""},{"$f":"IF(OrigTable!D1802=\"\",\"\",ScriptText!$B$1&CHAR(10)&ScriptText!$D$1)","v":""},{"$f":"IF(OrigTable!D1802=\"\",\"\",TEXT(OrigTable!D1802,\"00\"))","v":""},{"$f":"IF(OrigTable!D1802=\"\",\"\",ScriptText!$E$1&CHAR(10)&ScriptText!$C$1)","v":""},{"$f":"IF(OrigTable!E1802=\"\",\"\",ScriptText!$B$1&CHAR(10)&ScriptText!$D$1)","v":""},{"$f":"IF(OrigTable!E1802=\"\",\"\",TEXT(OrigTable!E1802,\"00\"))","v":""},{"$f":"IF(OrigTable!E1802=\"\",\"\",ScriptText!$E$1&CHAR(10)&ScriptText!$C$1)","v":""},{"$f":"IF(OrigTable!F1802=\"\",\"\",ScriptText!$B$1&CHAR(10)&ScriptText!$D$1)","v":""},{"$f":"IF(OrigTable!F1802=\"\",\"\",TEXT(OrigTable!F1802,\"00\"))","v":""},{"$f":"IF(OrigTable!F1802=\"\",\"\",ScriptText!$E$1&CHAR(10)&ScriptText!$C$1)","v":""},{"$f":"IF(OrigTable!G1802=\"\",\"\",ScriptText!$B$1&CHAR(10)&ScriptText!$D$1)","v":""},{"$f":"IF(OrigTable!G1802=\"\",\"\",TEXT(OrigTable!G1802,\"00\"))","v":""},{"$f":"IF(OrigTable!G1802=\"\",\"\",ScriptText!$E$1&CHAR(10)&ScriptText!$C$1)","v":""},0]
[{"$f":"_xlfn.TEXTJOIN(\"\",TRUE,B1803:D1803)&CHAR(10)&_xlfn.TEXTJOIN(\"\",TRUE,E1803:G1803)&CHAR(10)&_xlfn.TEXTJOIN(\"\",TRUE,H1803:J1803)&CHAR(10)&_xlfn.TEXTJOIN(\"\",TRUE,K1803:M1803)&_xlfn.TEXTJOIN(\"\",TRUE,N1803:P1803)&_xlfn.TEXTJOIN(\"\",TRUE,Q1803:S1803)&_xlfn.TEXTJOIN(\"\",TRUE,T1803:V1803)","v":"\n\n\n"},{"$f":"IF(OrigTable!A1803=\"\",\"\",ScriptText!$B$1&CHAR(10)&ScriptText!$D$1)","v":""},{"$f":"IF(OrigTable!A1803=\"\",\"\",TEXT(OrigTable!A1803,\"00\"))","v":""},{"$f":"IF(OrigTable!A1803=\"\",\"\",ScriptText!$E$1&CHAR(10)&ScriptText!$C$1)","v":""},{"$f":"IF(OrigTable!B1803=\"\",\"\",ScriptText!$B$1&CHAR(10)&ScriptText!$D$1)","v":""},{"$f":"IF(OrigTable!B1803=\"\",\"\",TEXT(OrigTable!B1803,\"00\"))","v":""},{"$f":"IF(OrigTable!B1803=\"\",\"\",ScriptText!$E$1&CHAR(10)&ScriptText!C1798)","v":""},{"$f":"IF(OrigTable!C1803=\"\",\"\",ScriptText!$B$1&CHAR(10)&ScriptText!$D$1)","v":""},{"$f":"IF(OrigTable!C1803=\"\",\"\",IF(LEN(OrigTable!C1803)>255,LEFT(OrigTable!C1803,250)&\". . .\",OrigTable!C1803))","v":""},{"$f":"IF(OrigTable!C1803=\"\",\"\",ScriptText!$E$1&CHAR(10)&ScriptText!$C$1)","v":""},{"$f":"IF(OrigTable!D1803=\"\",\"\",ScriptText!$B$1&CHAR(10)&ScriptText!$D$1)","v":""},{"$f":"IF(OrigTable!D1803=\"\",\"\",TEXT(OrigTable!D1803,\"00\"))","v":""},{"$f":"IF(OrigTable!D1803=\"\",\"\",ScriptText!$E$1&CHAR(10)&ScriptText!$C$1)","v":""},{"$f":"IF(OrigTable!E1803=\"\",\"\",ScriptText!$B$1&CHAR(10)&ScriptText!$D$1)","v":""},{"$f":"IF(OrigTable!E1803=\"\",\"\",TEXT(OrigTable!E1803,\"00\"))","v":""},{"$f":"IF(OrigTable!E1803=\"\",\"\",ScriptText!$E$1&CHAR(10)&ScriptText!$C$1)","v":""},{"$f":"IF(OrigTable!F1803=\"\",\"\",ScriptText!$B$1&CHAR(10)&ScriptText!$D$1)","v":""},{"$f":"IF(OrigTable!F1803=\"\",\"\",TEXT(OrigTable!F1803,\"00\"))","v":""},{"$f":"IF(OrigTable!F1803=\"\",\"\",ScriptText!$E$1&CHAR(10)&ScriptText!$C$1)","v":""},{"$f":"IF(OrigTable!G1803=\"\",\"\",ScriptText!$B$1&CHAR(10)&ScriptText!$D$1)","v":""},{"$f":"IF(OrigTable!G1803=\"\",\"\",TEXT(OrigTable!G1803,\"00\"))","v":""},{"$f":"IF(OrigTable!G1803=\"\",\"\",ScriptText!$E$1&CHAR(10)&ScriptText!$C$1)","v":""},0]
["\n\n\n",{"$f":"IF(OrigTable!A1804=\"\",\"\",ScriptText!$B$1&CHAR(10)&ScriptText!$D$1)","v":""},{"$f":"IF(OrigTable!A1804=\"\",\"\",TEXT(OrigTable!A1804,\"00\"))","v":""},{"$f":"IF(OrigTable!A1804=\"\",\"\",ScriptText!$E$1&CHAR(10)&ScriptText!$C$1)","v":""},{"$f":"IF(OrigTable!B1804=\"\",\"\",ScriptText!$B$1&CHAR(10)&ScriptText!$D$1)","v":""},{"$f":"IF(OrigTable!B1804=\"\",\"\",TEXT(OrigTable!B1804,\"00\"))","v":""},{"$f":"IF(OrigTable!B1804=\"\",\"\",ScriptText!$E$1&CHAR(10)&ScriptText!C1799)","v":""},{"$f":"IF(OrigTable!C1804=\"\",\"\",ScriptText!$B$1&CHAR(10)&ScriptText!$D$1)","v":""},{"$f":"IF(OrigTable!C1804=\"\",\"\",IF(LEN(OrigTable!C1804)>255,LEFT(OrigTable!C1804,250)&\". . .\",OrigTable!C1804))","v":""},{"$f":"IF(OrigTable!C1804=\"\",\"\",ScriptText!$E$1&CHAR(10)&ScriptText!$C$1)","v":""},{"$f":"IF(OrigTable!D1804=\"\",\"\",ScriptText!$B$1&CHAR(10)&ScriptText!$D$1)","v":""},{"$f":"IF(OrigTable!D1804=\"\",\"\",TEXT(OrigTable!D1804,\"00\"))","v":""},{"$f":"IF(OrigTable!D1804=\"\",\"\",ScriptText!$E$1&CHAR(10)&ScriptText!$C$1)","v":""},{"$f":"IF(OrigTable!E1804=\"\",\"\",ScriptText!$B$1&CHAR(10)&ScriptText!$D$1)","v":""},{"$f":"IF(OrigTable!E1804=\"\",\"\",TEXT(OrigTable!E1804,\"00\"))","v":""},{"$f":"IF(OrigTable!E1804=\"\",\"\",ScriptText!$E$1&CHAR(10)&ScriptText!$C$1)","v":""},{"$f":"IF(OrigTable!F1804=\"\",\"\",ScriptText!$B$1&CHAR(10)&ScriptText!$D$1)","v":""},{"$f":"IF(OrigTable!F1804=\"\",\"\",TEXT(OrigTable!F1804,\"00\"))","v":""},{"$f":"IF(OrigTable!F1804=\"\",\"\",ScriptText!$E$1&CHAR(10)&ScriptText!$C$1)","v":""},{"$f":"IF(OrigTable!G1804=\"\",\"\",ScriptText!$B$1&CHAR(10)&ScriptText!$D$1)","v":""},{"$f":"IF(OrigTable!G1804=\"\",\"\",TEXT(OrigTable!G1804,\"00\"))","v":""},{"$f":"IF(OrigTable!G1804=\"\",\"\",ScriptText!$E$1&CHAR(10)&ScriptText!$C$1)","v":""},0]
["\n\n\n",{"$f":"IF(OrigTable!A1805=\"\",\"\",ScriptText!$B$1&CHAR(10)&ScriptText!$D$1)","v":""},{"$f":"IF(OrigTable!A1805=\"\",\"\",TEXT(OrigTable!A1805,\"00\"))","v":""},{"$f":"IF(OrigTable!A1805=\"\",\"\",ScriptText!$E$1&CHAR(10)&ScriptText!$C$1)","v":""},{"$f":"IF(OrigTable!B1805=\"\",\"\",ScriptText!$B$1&CHAR(10)&ScriptText!$D$1)","v":""},{"$f":"IF(OrigTable!B1805=\"\",\"\",TEXT(OrigTable!B1805,\"00\"))","v":""},{"$f":"IF(OrigTable!B1805=\"\",\"\",ScriptText!$E$1&CHAR(10)&ScriptText!C1800)","v":""},{"$f":"IF(OrigTable!C1805=\"\",\"\",ScriptText!$B$1&CHAR(10)&ScriptText!$D$1)","v":""},{"$f":"IF(OrigTable!C1805=\"\",\"\",IF(LEN(OrigTable!C1805)>255,LEFT(OrigTable!C1805,250)&\". . .\",OrigTable!C1805))","v":""},{"$f":"IF(OrigTable!C1805=\"\",\"\",ScriptText!$E$1&CHAR(10)&ScriptText!$C$1)","v":""},{"$f":"IF(OrigTable!D1805=\"\",\"\",ScriptText!$B$1&CHAR(10)&ScriptText!$D$1)","v":""},{"$f":"IF(OrigTable!D1805=\"\",\"\",TEXT(OrigTable!D1805,\"00\"))","v":""},{"$f":"IF(OrigTable!D1805=\"\",\"\",ScriptText!$E$1&CHAR(10)&ScriptText!$C$1)","v":""},{"$f":"IF(OrigTable!E1805=\"\",\"\",ScriptText!$B$1&CHAR(10)&ScriptText!$D$1)","v":""},{"$f":"IF(OrigTable!E1805=\"\",\"\",TEXT(OrigTable!E1805,\"00\"))","v":""},{"$f":"IF(OrigTable!E1805=\"\",\"\",ScriptText!$E$1&CHAR(10)&ScriptText!$C$1)","v":""},{"$f":"IF(OrigTable!F1805=\"\",\"\",ScriptText!$B$1&CHAR(10)&ScriptText!$D$1)","v":""},{"$f":"IF(OrigTable!F1805=\"\",\"\",TEXT(OrigTable!F1805,\"00\"))","v":""},{"$f":"IF(OrigTable!F1805=\"\",\"\",ScriptText!$E$1&CHAR(10)&ScriptText!$C$1)","v":""},{"$f":"IF(OrigTable!G1805=\"\",\"\",ScriptText!$B$1&CHAR(10)&ScriptText!$D$1)","v":""},{"$f":"IF(OrigTable!G1805=\"\",\"\",TEXT(OrigTable!G1805,\"00\"))","v":""},{"$f":"IF(OrigTable!G1805=\"\",\"\",ScriptText!$E$1&CHAR(10)&ScriptText!$C$1)","v":""},0]
["\n\n\n",{"$f":"IF(OrigTable!A1806=\"\",\"\",ScriptText!$B$1&CHAR(10)&ScriptText!$D$1)","v":""},{"$f":"IF(OrigTable!A1806=\"\",\"\",TEXT(OrigTable!A1806,\"00\"))","v":""},{"$f":"IF(OrigTable!A1806=\"\",\"\",ScriptText!$E$1&CHAR(10)&ScriptText!$C$1)","v":""},{"$f":"IF(OrigTable!B1806=\"\",\"\",ScriptText!$B$1&CHAR(10)&ScriptText!$D$1)","v":""},{"$f":"IF(OrigTable!B1806=\"\",\"\",TEXT(OrigTable!B1806,\"00\"))","v":""},{"$f":"IF(OrigTable!B1806=\"\",\"\",ScriptText!$E$1&CHAR(10)&ScriptText!C1801)","v":""},{"$f":"IF(OrigTable!C1806=\"\",\"\",ScriptText!$B$1&CHAR(10)&ScriptText!$D$1)","v":""},{"$f":"IF(OrigTable!C1806=\"\",\"\",IF(LEN(OrigTable!C1806)>255,LEFT(OrigTable!C1806,250)&\". . .\",OrigTable!C1806))","v":""},{"$f":"IF(OrigTable!C1806=\"\",\"\",ScriptText!$E$1&CHAR(10)&ScriptText!$C$1)","v":""},{"$f":"IF(OrigTable!D1806=\"\",\"\",ScriptText!$B$1&CHAR(10)&ScriptText!$D$1)","v":""},{"$f":"IF(OrigTable!D1806=\"\",\"\",TEXT(OrigTable!D1806,\"00\"))","v":""},{"$f":"IF(OrigTable!D1806=\"\",\"\",ScriptText!$E$1&CHAR(10)&ScriptText!$C$1)","v":""},{"$f":"IF(OrigTable!E1806=\"\",\"\",ScriptText!$B$1&CHAR(10)&ScriptText!$D$1)","v":""},{"$f":"IF(OrigTable!E1806=\"\",\"\",TEXT(OrigTable!E1806,\"00\"))","v":""},{"$f":"IF(OrigTable!E1806=\"\",\"\",ScriptText!$E$1&CHAR(10)&ScriptText!$C$1)","v":""},{"$f":"IF(OrigTable!F1806=\"\",\"\",ScriptText!$B$1&CHAR(10)&ScriptText!$D$1)","v":""},{"$f":"IF(OrigTable!F1806=\"\",\"\",TEXT(OrigTable!F1806,\"00\"))","v":""},{"$f":"IF(OrigTable!F1806=\"\",\"\",ScriptText!$E$1&CHAR(10)&ScriptText!$C$1)","v":""},{"$f":"IF(OrigTable!G1806=\"\",\"\",ScriptText!$B$1&CHAR(10)&ScriptText!$D$1)","v":""},{"$f":"IF(OrigTable!G1806=\"\",\"\",TEXT(OrigTable!G1806,\"00\"))","v":""},{"$f":"IF(OrigTable!G1806=\"\",\"\",ScriptText!$E$1&CHAR(10)&ScriptText!$C$1)","v":""},0]
["\n\n\n",{"$f":"IF(OrigTable!A1807=\"\",\"\",ScriptText!$B$1&CHAR(10)&ScriptText!$D$1)","v":""},{"$f":"IF(OrigTable!A1807=\"\",\"\",TEXT(OrigTable!A1807,\"00\"))","v":""},{"$f":"IF(OrigTable!A1807=\"\",\"\",ScriptText!$E$1&CHAR(10)&ScriptText!$C$1)","v":""},{"$f":"IF(OrigTable!B1807=\"\",\"\",ScriptText!$B$1&CHAR(10)&ScriptText!$D$1)","v":""},{"$f":"IF(OrigTable!B1807=\"\",\"\",TEXT(OrigTable!B1807,\"00\"))","v":""},{"$f":"IF(OrigTable!B1807=\"\",\"\",ScriptText!$E$1&CHAR(10)&ScriptText!C1802)","v":""},{"$f":"IF(OrigTable!C1807=\"\",\"\",ScriptText!$B$1&CHAR(10)&ScriptText!$D$1)","v":""},{"$f":"IF(OrigTable!C1807=\"\",\"\",IF(LEN(OrigTable!C1807)>255,LEFT(OrigTable!C1807,250)&\". . .\",OrigTable!C1807))","v":""},{"$f":"IF(OrigTable!C1807=\"\",\"\",ScriptText!$E$1&CHAR(10)&ScriptText!$C$1)","v":""},{"$f":"IF(OrigTable!D1807=\"\",\"\",ScriptText!$B$1&CHAR(10)&ScriptText!$D$1)","v":""},{"$f":"IF(OrigTable!D1807=\"\",\"\",TEXT(OrigTable!D1807,\"00\"))","v":""},{"$f":"IF(OrigTable!D1807=\"\",\"\",ScriptText!$E$1&CHAR(10)&ScriptText!$C$1)","v":""},{"$f":"IF(OrigTable!E1807=\"\",\"\",ScriptText!$B$1&CHAR(10)&ScriptText!$D$1)","v":""},{"$f":"IF(OrigTable!E1807=\"\",\"\",TEXT(OrigTable!E1807,\"00\"))","v":""},{"$f":"IF(OrigTable!E1807=\"\",\"\",ScriptText!$E$1&CHAR(10)&ScriptText!$C$1)","v":""},{"$f":"IF(OrigTable!F1807=\"\",\"\",ScriptText!$B$1&CHAR(10)&ScriptText!$D$1)","v":""},{"$f":"IF(OrigTable!F1807=\"\",\"\",TEXT(OrigTable!F1807,\"00\"))","v":""},{"$f":"IF(OrigTable!F1807=\"\",\"\",ScriptText!$E$1&CHAR(10)&ScriptText!$C$1)","v":""},{"$f":"IF(OrigTable!G1807=\"\",\"\",ScriptText!$B$1&CHAR(10)&ScriptText!$D$1)","v":""},{"$f":"IF(OrigTable!G1807=\"\",\"\",TEXT(OrigTable!G1807,\"00\"))","v":""},{"$f":"IF(OrigTable!G1807=\"\",\"\",ScriptText!$E$1&CHAR(10)&ScriptText!$C$1)","v":""},0]
["\n\n\n",{"$f":"IF(OrigTable!A1808=\"\",\"\",ScriptText!$B$1&CHAR(10)&ScriptText!$D$1)","v":""},{"$f":"IF(OrigTable!A1808=\"\",\"\",TEXT(OrigTable!A1808,\"00\"))","v":""},{"$f":"IF(OrigTable!A1808=\"\",\"\",ScriptText!$E$1&CHAR(10)&ScriptText!$C$1)","v":""},{"$f":"IF(OrigTable!B1808=\"\",\"\",ScriptText!$B$1&CHAR(10)&ScriptText!$D$1)","v":""},{"$f":"IF(OrigTable!B1808=\"\",\"\",TEXT(OrigTable!B1808,\"00\"))","v":""},{"$f":"IF(OrigTable!B1808=\"\",\"\",ScriptText!$E$1&CHAR(10)&ScriptText!C1803)","v":""},{"$f":"IF(OrigTable!C1808=\"\",\"\",ScriptText!$B$1&CHAR(10)&ScriptText!$D$1)","v":""},{"$f":"IF(OrigTable!C1808=\"\",\"\",IF(LEN(OrigTable!C1808)>255,LEFT(OrigTable!C1808,250)&\". . .\",OrigTable!C1808))","v":""},{"$f":"IF(OrigTable!C1808=\"\",\"\",ScriptText!$E$1&CHAR(10)&ScriptText!$C$1)","v":""},{"$f":"IF(OrigTable!D1808=\"\",\"\",ScriptText!$B$1&CHAR(10)&ScriptText!$D$1)","v":""},{"$f":"IF(OrigTable!D1808=\"\",\"\",TEXT(OrigTable!D1808,\"00\"))","v":""},{"$f":"IF(OrigTable!D1808=\"\",\"\",ScriptText!$E$1&CHAR(10)&ScriptText!$C$1)","v":""},{"$f":"IF(OrigTable!E1808=\"\",\"\",ScriptText!$B$1&CHAR(10)&ScriptText!$D$1)","v":""},{"$f":"IF(OrigTable!E1808=\"\",\"\",TEXT(OrigTable!E1808,\"00\"))","v":""},{"$f":"IF(OrigTable!E1808=\"\",\"\",ScriptText!$E$1&CHAR(10)&ScriptText!$C$1)","v":""},{"$f":"IF(OrigTable!F1808=\"\",\"\",ScriptText!$B$1&CHAR(10)&ScriptText!$D$1)","v":""},{"$f":"IF(OrigTable!F1808=\"\",\"\",TEXT(OrigTable!F1808,\"00\"))","v":""},{"$f":"IF(OrigTable!F1808=\"\",\"\",ScriptText!$E$1&CHAR(10)&ScriptText!$C$1)","v":""},{"$f":"IF(OrigTable!G1808=\"\",\"\",ScriptText!$B$1&CHAR(10)&ScriptText!$D$1)","v":""},{"$f":"IF(OrigTable!G1808=\"\",\"\",TEXT(OrigTable!G1808,\"00\"))","v":""},{"$f":"IF(OrigTable!G1808=\"\",\"\",ScriptText!$E$1&CHAR(10)&ScriptText!$C$1)","v":""},0]
["\n\n\n",{"$f":"IF(OrigTable!A1809=\"\",\"\",ScriptText!$B$1&CHAR(10)&ScriptText!$D$1)","v":""},{"$f":"IF(OrigTable!A1809=\"\",\"\",TEXT(OrigTable!A1809,\"00\"))","v":""},{"$f":"IF(OrigTable!A1809=\"\",\"\",ScriptText!$E$1&CHAR(10)&ScriptText!$C$1)","v":""},{"$f":"IF(OrigTable!B1809=\"\",\"\",ScriptText!$B$1&CHAR(10)&ScriptText!$D$1)","v":""},{"$f":"IF(OrigTable!B1809=\"\",\"\",TEXT(OrigTable!B1809,\"00\"))","v":""},{"$f":"IF(OrigTable!B1809=\"\",\"\",ScriptText!$E$1&CHAR(10)&ScriptText!C1804)","v":""},{"$f":"IF(OrigTable!C1809=\"\",\"\",ScriptText!$B$1&CHAR(10)&ScriptText!$D$1)","v":""},{"$f":"IF(OrigTable!C1809=\"\",\"\",IF(LEN(OrigTable!C1809)>255,LEFT(OrigTable!C1809,250)&\". . .\",OrigTable!C1809))","v":""},{"$f":"IF(OrigTable!C1809=\"\",\"\",ScriptText!$E$1&CHAR(10)&ScriptText!$C$1)","v":""},{"$f":"IF(OrigTable!D1809=\"\",\"\",ScriptText!$B$1&CHAR(10)&ScriptText!$D$1)","v":""},{"$f":"IF(OrigTable!D1809=\"\",\"\",TEXT(OrigTable!D1809,\"00\"))","v":""},{"$f":"IF(OrigTable!D1809=\"\",\"\",ScriptText!$E$1&CHAR(10)&ScriptText!$C$1)","v":""},{"$f":"IF(OrigTable!E1809=\"\",\"\",ScriptText!$B$1&CHAR(10)&ScriptText!$D$1)","v":""},{"$f":"IF(OrigTable!E1809=\"\",\"\",TEXT(OrigTable!E1809,\"00\"))","v":""},{"$f":"IF(OrigTable!E1809=\"\",\"\",ScriptText!$E$1&CHAR(10)&ScriptText!$C$1)","v":""},{"$f":"IF(OrigTable!F1809=\"\",\"\",ScriptText!$B$1&CHAR(10)&ScriptText!$D$1)","v":""},{"$f":"IF(OrigTable!F1809=\"\",\"\",TEXT(OrigTable!F1809,\"00\"))","v":""},{"$f":"IF(OrigTable!F1809=\"\",\"\",ScriptText!$E$1&CHAR(10)&ScriptText!$C$1)","v":""},{"$f":"IF(OrigTable!G1809=\"\",\"\",ScriptText!$B$1&CHAR(10)&ScriptText!$D$1)","v":""},{"$f":"IF(OrigTable!G1809=\"\",\"\",TEXT(OrigTable!G1809,\"00\"))","v":""},{"$f":"IF(OrigTable!G1809=\"\",\"\",ScriptText!$E$1&CHAR(10)&ScriptText!$C$1)","v":""},0]
["\n\n\n",{"$f":"IF(OrigTable!A1810=\"\",\"\",ScriptText!$B$1&CHAR(10)&ScriptText!$D$1)","v":""},{"$f":"IF(OrigTable!A1810=\"\",\"\",TEXT(OrigTable!A1810,\"00\"))","v":""},{"$f":"IF(OrigTable!A1810=\"\",\"\",ScriptText!$E$1&CHAR(10)&ScriptText!$C$1)","v":""},{"$f":"IF(OrigTable!B1810=\"\",\"\",ScriptText!$B$1&CHAR(10)&ScriptText!$D$1)","v":""},{"$f":"IF(OrigTable!B1810=\"\",\"\",TEXT(OrigTable!B1810,\"00\"))","v":""},{"$f":"IF(OrigTable!B1810=\"\",\"\",ScriptText!$E$1&CHAR(10)&ScriptText!C1805)","v":""},{"$f":"IF(OrigTable!C1810=\"\",\"\",ScriptText!$B$1&CHAR(10)&ScriptText!$D$1)","v":""},{"$f":"IF(OrigTable!C1810=\"\",\"\",IF(LEN(OrigTable!C1810)>255,LEFT(OrigTable!C1810,250)&\". . .\",OrigTable!C1810))","v":""},{"$f":"IF(OrigTable!C1810=\"\",\"\",ScriptText!$E$1&CHAR(10)&ScriptText!$C$1)","v":""},{"$f":"IF(OrigTable!D1810=\"\",\"\",ScriptText!$B$1&CHAR(10)&ScriptText!$D$1)","v":""},{"$f":"IF(OrigTable!D1810=\"\",\"\",TEXT(OrigTable!D1810,\"00\"))","v":""},{"$f":"IF(OrigTable!D1810=\"\",\"\",ScriptText!$E$1&CHAR(10)&ScriptText!$C$1)","v":""},{"$f":"IF(OrigTable!E1810=\"\",\"\",ScriptText!$B$1&CHAR(10)&ScriptText!$D$1)","v":""},{"$f":"IF(OrigTable!E1810=\"\",\"\",TEXT(OrigTable!E1810,\"00\"))","v":""},{"$f":"IF(OrigTable!E1810=\"\",\"\",ScriptText!$E$1&CHAR(10)&ScriptText!$C$1)","v":""},{"$f":"IF(OrigTable!F1810=\"\",\"\",ScriptText!$B$1&CHAR(10)&ScriptText!$D$1)","v":""},{"$f":"IF(OrigTable!F1810=\"\",\"\",TEXT(OrigTable!F1810,\"00\"))","v":""},{"$f":"IF(OrigTable!F1810=\"\",\"\",ScriptText!$E$1&CHAR(10)&ScriptText!$C$1)","v":""},{"$f":"IF(OrigTable!G1810=\"\",\"\",ScriptText!$B$1&CHAR(10)&ScriptText!$D$1)","v":""},{"$f":"IF(OrigTable!G1810=\"\",\"\",TEXT(OrigTable!G1810,\"00\"))","v":""},{"$f":"IF(OrigTable!G1810=\"\",\"\",ScriptText!$E$1&CHAR(10)&ScriptText!$C$1)","v":""},0]
["\n\n\n",{"$f":"IF(OrigTable!A1811=\"\",\"\",ScriptText!$B$1&CHAR(10)&ScriptText!$D$1)","v":""},{"$f":"IF(OrigTable!A1811=\"\",\"\",TEXT(OrigTable!A1811,\"00\"))","v":""},{"$f":"IF(OrigTable!A1811=\"\",\"\",ScriptText!$E$1&CHAR(10)&ScriptText!$C$1)","v":""},{"$f":"IF(OrigTable!B1811=\"\",\"\",ScriptText!$B$1&CHAR(10)&ScriptText!$D$1)","v":""},{"$f":"IF(OrigTable!B1811=\"\",\"\",TEXT(OrigTable!B1811,\"00\"))","v":""},{"$f":"IF(OrigTable!B1811=\"\",\"\",ScriptText!$E$1&CHAR(10)&ScriptText!C1806)","v":""},{"$f":"IF(OrigTable!C1811=\"\",\"\",ScriptText!$B$1&CHAR(10)&ScriptText!$D$1)","v":""},{"$f":"IF(OrigTable!C1811=\"\",\"\",IF(LEN(OrigTable!C1811)>255,LEFT(OrigTable!C1811,250)&\". . .\",OrigTable!C1811))","v":""},{"$f":"IF(OrigTable!C1811=\"\",\"\",ScriptText!$E$1&CHAR(10)&ScriptText!$C$1)","v":""},{"$f":"IF(OrigTable!D1811=\"\",\"\",ScriptText!$B$1&CHAR(10)&ScriptText!$D$1)","v":""},{"$f":"IF(OrigTable!D1811=\"\",\"\",TEXT(OrigTable!D1811,\"00\"))","v":""},{"$f":"IF(OrigTable!D1811=\"\",\"\",ScriptText!$E$1&CHAR(10)&ScriptText!$C$1)","v":""},{"$f":"IF(OrigTable!E1811=\"\",\"\",ScriptText!$B$1&CHAR(10)&ScriptText!$D$1)","v":""},{"$f":"IF(OrigTable!E1811=\"\",\"\",TEXT(OrigTable!E1811,\"00\"))","v":""},{"$f":"IF(OrigTable!E1811=\"\",\"\",ScriptText!$E$1&CHAR(10)&ScriptText!$C$1)","v":""},{"$f":"IF(OrigTable!F1811=\"\",\"\",ScriptText!$B$1&CHAR(10)&ScriptText!$D$1)","v":""},{"$f":"IF(OrigTable!F1811=\"\",\"\",TEXT(OrigTable!F1811,\"00\"))","v":""},{"$f":"IF(OrigTable!F1811=\"\",\"\",ScriptText!$E$1&CHAR(10)&ScriptText!$C$1)","v":""},{"$f":"IF(OrigTable!G1811=\"\",\"\",ScriptText!$B$1&CHAR(10)&ScriptText!$D$1)","v":""},{"$f":"IF(OrigTable!G1811=\"\",\"\",TEXT(OrigTable!G1811,\"00\"))","v":""},{"$f":"IF(OrigTable!G1811=\"\",\"\",ScriptText!$E$1&CHAR(10)&ScriptText!$C$1)","v":""},0]
["\n\n\n",{"$f":"IF(OrigTable!A1812=\"\",\"\",ScriptText!$B$1&CHAR(10)&ScriptText!$D$1)","v":""},{"$f":"IF(OrigTable!A1812=\"\",\"\",TEXT(OrigTable!A1812,\"00\"))","v":""},{"$f":"IF(OrigTable!A1812=\"\",\"\",ScriptText!$E$1&CHAR(10)&ScriptText!$C$1)","v":""},{"$f":"IF(OrigTable!B1812=\"\",\"\",ScriptText!$B$1&CHAR(10)&ScriptText!$D$1)","v":""},{"$f":"IF(OrigTable!B1812=\"\",\"\",TEXT(OrigTable!B1812,\"00\"))","v":""},{"$f":"IF(OrigTable!B1812=\"\",\"\",ScriptText!$E$1&CHAR(10)&ScriptText!C1807)","v":""},{"$f":"IF(OrigTable!C1812=\"\",\"\",ScriptText!$B$1&CHAR(10)&ScriptText!$D$1)","v":""},{"$f":"IF(OrigTable!C1812=\"\",\"\",IF(LEN(OrigTable!C1812)>255,LEFT(OrigTable!C1812,250)&\". . .\",OrigTable!C1812))","v":""},{"$f":"IF(OrigTable!C1812=\"\",\"\",ScriptText!$E$1&CHAR(10)&ScriptText!$C$1)","v":""},{"$f":"IF(OrigTable!D1812=\"\",\"\",ScriptText!$B$1&CHAR(10)&ScriptText!$D$1)","v":""},{"$f":"IF(OrigTable!D1812=\"\",\"\",TEXT(OrigTable!D1812,\"00\"))","v":""},{"$f":"IF(OrigTable!D1812=\"\",\"\",ScriptText!$E$1&CHAR(10)&ScriptText!$C$1)","v":""},{"$f":"IF(OrigTable!E1812=\"\",\"\",ScriptText!$B$1&CHAR(10)&ScriptText!$D$1)","v":""},{"$f":"IF(OrigTable!E1812=\"\",\"\",TEXT(OrigTable!E1812,\"00\"))","v":""},{"$f":"IF(OrigTable!E1812=\"\",\"\",ScriptText!$E$1&CHAR(10)&ScriptText!$C$1)","v":""},{"$f":"IF(OrigTable!F1812=\"\",\"\",ScriptText!$B$1&CHAR(10)&ScriptText!$D$1)","v":""},{"$f":"IF(OrigTable!F1812=\"\",\"\",TEXT(OrigTable!F1812,\"00\"))","v":""},{"$f":"IF(OrigTable!F1812=\"\",\"\",ScriptText!$E$1&CHAR(10)&ScriptText!$C$1)","v":""},{"$f":"IF(OrigTable!G1812=\"\",\"\",ScriptText!$B$1&CHAR(10)&ScriptText!$D$1)","v":""},{"$f":"IF(OrigTable!G1812=\"\",\"\",TEXT(OrigTable!G1812,\"00\"))","v":""},{"$f":"IF(OrigTable!G1812=\"\",\"\",ScriptText!$E$1&CHAR(10)&ScriptText!$C$1)","v":""},0]
["\n\n\n",{"$f":"IF(OrigTable!A1813=\"\",\"\",ScriptText!$B$1&CHAR(10)&ScriptText!$D$1)","v":""},{"$f":"IF(OrigTable!A1813=\"\",\"\",TEXT(OrigTable!A1813,\"00\"))","v":""},{"$f":"IF(OrigTable!A1813=\"\",\"\",ScriptText!$E$1&CHAR(10)&ScriptText!$C$1)","v":""},{"$f":"IF(OrigTable!B1813=\"\",\"\",ScriptText!$B$1&CHAR(10)&ScriptText!$D$1)","v":""},{"$f":"IF(OrigTable!B1813=\"\",\"\",TEXT(OrigTable!B1813,\"00\"))","v":""},{"$f":"IF(OrigTable!B1813=\"\",\"\",ScriptText!$E$1&CHAR(10)&ScriptText!C1808)","v":""},{"$f":"IF(OrigTable!C1813=\"\",\"\",ScriptText!$B$1&CHAR(10)&ScriptText!$D$1)","v":""},{"$f":"IF(OrigTable!C1813=\"\",\"\",IF(LEN(OrigTable!C1813)>255,LEFT(OrigTable!C1813,250)&\". . .\",OrigTable!C1813))","v":""},{"$f":"IF(OrigTable!C1813=\"\",\"\",ScriptText!$E$1&CHAR(10)&ScriptText!$C$1)","v":""},{"$f":"IF(OrigTable!D1813=\"\",\"\",ScriptText!$B$1&CHAR(10)&ScriptText!$D$1)","v":""},{"$f":"IF(OrigTable!D1813=\"\",\"\",TEXT(OrigTable!D1813,\"00\"))","v":""},{"$f":"IF(OrigTable!D1813=\"\",\"\",ScriptText!$E$1&CHAR(10)&ScriptText!$C$1)","v":""},{"$f":"IF(OrigTable!E1813=\"\",\"\",ScriptText!$B$1&CHAR(10)&ScriptText!$D$1)","v":""},{"$f":"IF(OrigTable!E1813=\"\",\"\",TEXT(OrigTable!E1813,\"00\"))","v":""},{"$f":"IF(OrigTable!E1813=\"\",\"\",ScriptText!$E$1&CHAR(10)&ScriptText!$C$1)","v":""},{"$f":"IF(OrigTable!F1813=\"\",\"\",ScriptText!$B$1&CHAR(10)&ScriptText!$D$1)","v":""},{"$f":"IF(OrigTable!F1813=\"\",\"\",TEXT(OrigTable!F1813,\"00\"))","v":""},{"$f":"IF(OrigTable!F1813=\"\",\"\",ScriptText!$E$1&CHAR(10)&ScriptText!$C$1)","v":""},{"$f":"IF(OrigTable!G1813=\"\",\"\",ScriptText!$B$1&CHAR(10)&ScriptText!$D$1)","v":""},{"$f":"IF(OrigTable!G1813=\"\",\"\",TEXT(OrigTable!G1813,\"00\"))","v":""},{"$f":"IF(OrigTable!G1813=\"\",\"\",ScriptText!$E$1&CHAR(10)&ScriptText!$C$1)","v":""},0]
["\n\n\n",{"$f":"IF(OrigTable!A1814=\"\",\"\",ScriptText!$B$1&CHAR(10)&ScriptText!$D$1)","v":""},{"$f":"IF(OrigTable!A1814=\"\",\"\",TEXT(OrigTable!A1814,\"00\"))","v":""},{"$f":"IF(OrigTable!A1814=\"\",\"\",ScriptText!$E$1&CHAR(10)&ScriptText!$C$1)","v":""},{"$f":"IF(OrigTable!B1814=\"\",\"\",ScriptText!$B$1&CHAR(10)&ScriptText!$D$1)","v":""},{"$f":"IF(OrigTable!B1814=\"\",\"\",TEXT(OrigTable!B1814,\"00\"))","v":""},{"$f":"IF(OrigTable!B1814=\"\",\"\",ScriptText!$E$1&CHAR(10)&ScriptText!C1809)","v":""},{"$f":"IF(OrigTable!C1814=\"\",\"\",ScriptText!$B$1&CHAR(10)&ScriptText!$D$1)","v":""},{"$f":"IF(OrigTable!C1814=\"\",\"\",IF(LEN(OrigTable!C1814)>255,LEFT(OrigTable!C1814,250)&\". . .\",OrigTable!C1814))","v":""},{"$f":"IF(OrigTable!C1814=\"\",\"\",ScriptText!$E$1&CHAR(10)&ScriptText!$C$1)","v":""},{"$f":"IF(OrigTable!D1814=\"\",\"\",ScriptText!$B$1&CHAR(10)&ScriptText!$D$1)","v":""},{"$f":"IF(OrigTable!D1814=\"\",\"\",TEXT(OrigTable!D1814,\"00\"))","v":""},{"$f":"IF(OrigTable!D1814=\"\",\"\",ScriptText!$E$1&CHAR(10)&ScriptText!$C$1)","v":""},{"$f":"IF(OrigTable!E1814=\"\",\"\",ScriptText!$B$1&CHAR(10)&ScriptText!$D$1)","v":""},{"$f":"IF(OrigTable!E1814=\"\",\"\",TEXT(OrigTable!E1814,\"00\"))","v":""},{"$f":"IF(OrigTable!E1814=\"\",\"\",ScriptText!$E$1&CHAR(10)&ScriptText!$C$1)","v":""},{"$f":"IF(OrigTable!F1814=\"\",\"\",ScriptText!$B$1&CHAR(10)&ScriptText!$D$1)","v":""},{"$f":"IF(OrigTable!F1814=\"\",\"\",TEXT(OrigTable!F1814,\"00\"))","v":""},{"$f":"IF(OrigTable!F1814=\"\",\"\",ScriptText!$E$1&CHAR(10)&ScriptText!$C$1)","v":""},{"$f":"IF(OrigTable!G1814=\"\",\"\",ScriptText!$B$1&CHAR(10)&ScriptText!$D$1)","v":""},{"$f":"IF(OrigTable!G1814=\"\",\"\",TEXT(OrigTable!G1814,\"00\"))","v":""},{"$f":"IF(OrigTable!G1814=\"\",\"\",ScriptText!$E$1&CHAR(10)&ScriptText!$C$1)","v":""},0]
["\n\n\n",{"$f":"IF(OrigTable!A1815=\"\",\"\",ScriptText!$B$1&CHAR(10)&ScriptText!$D$1)","v":""},{"$f":"IF(OrigTable!A1815=\"\",\"\",TEXT(OrigTable!A1815,\"00\"))","v":""},{"$f":"IF(OrigTable!A1815=\"\",\"\",ScriptText!$E$1&CHAR(10)&ScriptText!$C$1)","v":""},{"$f":"IF(OrigTable!B1815=\"\",\"\",ScriptText!$B$1&CHAR(10)&ScriptText!$D$1)","v":""},{"$f":"IF(OrigTable!B1815=\"\",\"\",TEXT(OrigTable!B1815,\"00\"))","v":""},{"$f":"IF(OrigTable!B1815=\"\",\"\",ScriptText!$E$1&CHAR(10)&ScriptText!C1810)","v":""},{"$f":"IF(OrigTable!C1815=\"\",\"\",ScriptText!$B$1&CHAR(10)&ScriptText!$D$1)","v":""},{"$f":"IF(OrigTable!C1815=\"\",\"\",IF(LEN(OrigTable!C1815)>255,LEFT(OrigTable!C1815,250)&\". . .\",OrigTable!C1815))","v":""},{"$f":"IF(OrigTable!C1815=\"\",\"\",ScriptText!$E$1&CHAR(10)&ScriptText!$C$1)","v":""},{"$f":"IF(OrigTable!D1815=\"\",\"\",ScriptText!$B$1&CHAR(10)&ScriptText!$D$1)","v":""},{"$f":"IF(OrigTable!D1815=\"\",\"\",TEXT(OrigTable!D1815,\"00\"))","v":""},{"$f":"IF(OrigTable!D1815=\"\",\"\",ScriptText!$E$1&CHAR(10)&ScriptText!$C$1)","v":""},{"$f":"IF(OrigTable!E1815=\"\",\"\",ScriptText!$B$1&CHAR(10)&ScriptText!$D$1)","v":""},{"$f":"IF(OrigTable!E1815=\"\",\"\",TEXT(OrigTable!E1815,\"00\"))","v":""},{"$f":"IF(OrigTable!E1815=\"\",\"\",ScriptText!$E$1&CHAR(10)&ScriptText!$C$1)","v":""},{"$f":"IF(OrigTable!F1815=\"\",\"\",ScriptText!$B$1&CHAR(10)&ScriptText!$D$1)","v":""},{"$f":"IF(OrigTable!F1815=\"\",\"\",TEXT(OrigTable!F1815,\"00\"))","v":""},{"$f":"IF(OrigTable!F1815=\"\",\"\",ScriptText!$E$1&CHAR(10)&ScriptText!$C$1)","v":""},{"$f":"IF(OrigTable!G1815=\"\",\"\",ScriptText!$B$1&CHAR(10)&ScriptText!$D$1)","v":""},{"$f":"IF(OrigTable!G1815=\"\",\"\",TEXT(OrigTable!G1815,\"00\"))","v":""},{"$f":"IF(OrigTable!G1815=\"\",\"\",ScriptText!$E$1&CHAR(10)&ScriptText!$C$1)","v":""},0]
["\n\n\n",{"$f":"IF(OrigTable!A1816=\"\",\"\",ScriptText!$B$1&CHAR(10)&ScriptText!$D$1)","v":""},{"$f":"IF(OrigTable!A1816=\"\",\"\",TEXT(OrigTable!A1816,\"00\"))","v":""},{"$f":"IF(OrigTable!A1816=\"\",\"\",ScriptText!$E$1&CHAR(10)&ScriptText!$C$1)","v":""},{"$f":"IF(OrigTable!B1816=\"\",\"\",ScriptText!$B$1&CHAR(10)&ScriptText!$D$1)","v":""},{"$f":"IF(OrigTable!B1816=\"\",\"\",TEXT(OrigTable!B1816,\"00\"))","v":""},{"$f":"IF(OrigTable!B1816=\"\",\"\",ScriptText!$E$1&CHAR(10)&ScriptText!C1811)","v":""},{"$f":"IF(OrigTable!C1816=\"\",\"\",ScriptText!$B$1&CHAR(10)&ScriptText!$D$1)","v":""},{"$f":"IF(OrigTable!C1816=\"\",\"\",IF(LEN(OrigTable!C1816)>255,LEFT(OrigTable!C1816,250)&\". . .\",OrigTable!C1816))","v":""},{"$f":"IF(OrigTable!C1816=\"\",\"\",ScriptText!$E$1&CHAR(10)&ScriptText!$C$1)","v":""},{"$f":"IF(OrigTable!D1816=\"\",\"\",ScriptText!$B$1&CHAR(10)&ScriptText!$D$1)","v":""},{"$f":"IF(OrigTable!D1816=\"\",\"\",TEXT(OrigTable!D1816,\"00\"))","v":""},{"$f":"IF(OrigTable!D1816=\"\",\"\",ScriptText!$E$1&CHAR(10)&ScriptText!$C$1)","v":""},{"$f":"IF(OrigTable!E1816=\"\",\"\",ScriptText!$B$1&CHAR(10)&ScriptText!$D$1)","v":""},{"$f":"IF(OrigTable!E1816=\"\",\"\",TEXT(OrigTable!E1816,\"00\"))","v":""},{"$f":"IF(OrigTable!E1816=\"\",\"\",ScriptText!$E$1&CHAR(10)&ScriptText!$C$1)","v":""},{"$f":"IF(OrigTable!F1816=\"\",\"\",ScriptText!$B$1&CHAR(10)&ScriptText!$D$1)","v":""},{"$f":"IF(OrigTable!F1816=\"\",\"\",TEXT(OrigTable!F1816,\"00\"))","v":""},{"$f":"IF(OrigTable!F1816=\"\",\"\",ScriptText!$E$1&CHAR(10)&ScriptText!$C$1)","v":""},{"$f":"IF(OrigTable!G1816=\"\",\"\",ScriptText!$B$1&CHAR(10)&ScriptText!$D$1)","v":""},{"$f":"IF(OrigTable!G1816=\"\",\"\",TEXT(OrigTable!G1816,\"00\"))","v":""},{"$f":"IF(OrigTable!G1816=\"\",\"\",ScriptText!$E$1&CHAR(10)&ScriptText!$C$1)","v":""},0]
["\n\n\n",{"$f":"IF(OrigTable!A1817=\"\",\"\",ScriptText!$B$1&CHAR(10)&ScriptText!$D$1)","v":""},{"$f":"IF(OrigTable!A1817=\"\",\"\",TEXT(OrigTable!A1817,\"00\"))","v":""},{"$f":"IF(OrigTable!A1817=\"\",\"\",ScriptText!$E$1&CHAR(10)&ScriptText!$C$1)","v":""},{"$f":"IF(OrigTable!B1817=\"\",\"\",ScriptText!$B$1&CHAR(10)&ScriptText!$D$1)","v":""},{"$f":"IF(OrigTable!B1817=\"\",\"\",TEXT(OrigTable!B1817,\"00\"))","v":""},{"$f":"IF(OrigTable!B1817=\"\",\"\",ScriptText!$E$1&CHAR(10)&ScriptText!C1812)","v":""},{"$f":"IF(OrigTable!C1817=\"\",\"\",ScriptText!$B$1&CHAR(10)&ScriptText!$D$1)","v":""},{"$f":"IF(OrigTable!C1817=\"\",\"\",IF(LEN(OrigTable!C1817)>255,LEFT(OrigTable!C1817,250)&\". . .\",OrigTable!C1817))","v":""},{"$f":"IF(OrigTable!C1817=\"\",\"\",ScriptText!$E$1&CHAR(10)&ScriptText!$C$1)","v":""},{"$f":"IF(OrigTable!D1817=\"\",\"\",ScriptText!$B$1&CHAR(10)&ScriptText!$D$1)","v":""},{"$f":"IF(OrigTable!D1817=\"\",\"\",TEXT(OrigTable!D1817,\"00\"))","v":""},{"$f":"IF(OrigTable!D1817=\"\",\"\",ScriptText!$E$1&CHAR(10)&ScriptText!$C$1)","v":""},{"$f":"IF(OrigTable!E1817=\"\",\"\",ScriptText!$B$1&CHAR(10)&ScriptText!$D$1)","v":""},{"$f":"IF(OrigTable!E1817=\"\",\"\",TEXT(OrigTable!E1817,\"00\"))","v":""},{"$f":"IF(OrigTable!E1817=\"\",\"\",ScriptText!$E$1&CHAR(10)&ScriptText!$C$1)","v":""},{"$f":"IF(OrigTable!F1817=\"\",\"\",ScriptText!$B$1&CHAR(10)&ScriptText!$D$1)","v":""},{"$f":"IF(OrigTable!F1817=\"\",\"\",TEXT(OrigTable!F1817,\"00\"))","v":""},{"$f":"IF(OrigTable!F1817=\"\",\"\",ScriptText!$E$1&CHAR(10)&ScriptText!$C$1)","v":""},{"$f":"IF(OrigTable!G1817=\"\",\"\",ScriptText!$B$1&CHAR(10)&ScriptText!$D$1)","v":""},{"$f":"IF(OrigTable!G1817=\"\",\"\",TEXT(OrigTable!G1817,\"00\"))","v":""},{"$f":"IF(OrigTable!G1817=\"\",\"\",ScriptText!$E$1&CHAR(10)&ScriptText!$C$1)","v":""},0]
["\n\n\n",{"$f":"IF(OrigTable!A1818=\"\",\"\",ScriptText!$B$1&CHAR(10)&ScriptText!$D$1)","v":""},{"$f":"IF(OrigTable!A1818=\"\",\"\",TEXT(OrigTable!A1818,\"00\"))","v":""},{"$f":"IF(OrigTable!A1818=\"\",\"\",ScriptText!$E$1&CHAR(10)&ScriptText!$C$1)","v":""},{"$f":"IF(OrigTable!B1818=\"\",\"\",ScriptText!$B$1&CHAR(10)&ScriptText!$D$1)","v":""},{"$f":"IF(OrigTable!B1818=\"\",\"\",TEXT(OrigTable!B1818,\"00\"))","v":""},{"$f":"IF(OrigTable!B1818=\"\",\"\",ScriptText!$E$1&CHAR(10)&ScriptText!C1813)","v":""},{"$f":"IF(OrigTable!C1818=\"\",\"\",ScriptText!$B$1&CHAR(10)&ScriptText!$D$1)","v":""},{"$f":"IF(OrigTable!C1818=\"\",\"\",IF(LEN(OrigTable!C1818)>255,LEFT(OrigTable!C1818,250)&\". . .\",OrigTable!C1818))","v":""},{"$f":"IF(OrigTable!C1818=\"\",\"\",ScriptText!$E$1&CHAR(10)&ScriptText!$C$1)","v":""},{"$f":"IF(OrigTable!D1818=\"\",\"\",ScriptText!$B$1&CHAR(10)&ScriptText!$D$1)","v":""},{"$f":"IF(OrigTable!D1818=\"\",\"\",TEXT(OrigTable!D1818,\"00\"))","v":""},{"$f":"IF(OrigTable!D1818=\"\",\"\",ScriptText!$E$1&CHAR(10)&ScriptText!$C$1)","v":""},{"$f":"IF(OrigTable!E1818=\"\",\"\",ScriptText!$B$1&CHAR(10)&ScriptText!$D$1)","v":""},{"$f":"IF(OrigTable!E1818=\"\",\"\",TEXT(OrigTable!E1818,\"00\"))","v":""},{"$f":"IF(OrigTable!E1818=\"\",\"\",ScriptText!$E$1&CHAR(10)&ScriptText!$C$1)","v":""},{"$f":"IF(OrigTable!F1818=\"\",\"\",ScriptText!$B$1&CHAR(10)&ScriptText!$D$1)","v":""},{"$f":"IF(OrigTable!F1818=\"\",\"\",TEXT(OrigTable!F1818,\"00\"))","v":""},{"$f":"IF(OrigTable!F1818=\"\",\"\",ScriptText!$E$1&CHAR(10)&ScriptText!$C$1)","v":""},{"$f":"IF(OrigTable!G1818=\"\",\"\",ScriptText!$B$1&CHAR(10)&ScriptText!$D$1)","v":""},{"$f":"IF(OrigTable!G1818=\"\",\"\",TEXT(OrigTable!G1818,\"00\"))","v":""},{"$f":"IF(OrigTable!G1818=\"\",\"\",ScriptText!$E$1&CHAR(10)&ScriptText!$C$1)","v":""},0]
["\n\n\n",{"$f":"IF(OrigTable!A1819=\"\",\"\",ScriptText!$B$1&CHAR(10)&ScriptText!$D$1)","v":""},{"$f":"IF(OrigTable!A1819=\"\",\"\",TEXT(OrigTable!A1819,\"00\"))","v":""},{"$f":"IF(OrigTable!A1819=\"\",\"\",ScriptText!$E$1&CHAR(10)&ScriptText!$C$1)","v":""},{"$f":"IF(OrigTable!B1819=\"\",\"\",ScriptText!$B$1&CHAR(10)&ScriptText!$D$1)","v":""},{"$f":"IF(OrigTable!B1819=\"\",\"\",TEXT(OrigTable!B1819,\"00\"))","v":""},{"$f":"IF(OrigTable!B1819=\"\",\"\",ScriptText!$E$1&CHAR(10)&ScriptText!C1814)","v":""},{"$f":"IF(OrigTable!C1819=\"\",\"\",ScriptText!$B$1&CHAR(10)&ScriptText!$D$1)","v":""},{"$f":"IF(OrigTable!C1819=\"\",\"\",IF(LEN(OrigTable!C1819)>255,LEFT(OrigTable!C1819,250)&\". . .\",OrigTable!C1819))","v":""},{"$f":"IF(OrigTable!C1819=\"\",\"\",ScriptText!$E$1&CHAR(10)&ScriptText!$C$1)","v":""},{"$f":"IF(OrigTable!D1819=\"\",\"\",ScriptText!$B$1&CHAR(10)&ScriptText!$D$1)","v":""},{"$f":"IF(OrigTable!D1819=\"\",\"\",TEXT(OrigTable!D1819,\"00\"))","v":""},{"$f":"IF(OrigTable!D1819=\"\",\"\",ScriptText!$E$1&CHAR(10)&ScriptText!$C$1)","v":""},{"$f":"IF(OrigTable!E1819=\"\",\"\",ScriptText!$B$1&CHAR(10)&ScriptText!$D$1)","v":""},{"$f":"IF(OrigTable!E1819=\"\",\"\",TEXT(OrigTable!E1819,\"00\"))","v":""},{"$f":"IF(OrigTable!E1819=\"\",\"\",ScriptText!$E$1&CHAR(10)&ScriptText!$C$1)","v":""},{"$f":"IF(OrigTable!F1819=\"\",\"\",ScriptText!$B$1&CHAR(10)&ScriptText!$D$1)","v":""},{"$f":"IF(OrigTable!F1819=\"\",\"\",TEXT(OrigTable!F1819,\"00\"))","v":""},{"$f":"IF(OrigTable!F1819=\"\",\"\",ScriptText!$E$1&CHAR(10)&ScriptText!$C$1)","v":""},{"$f":"IF(OrigTable!G1819=\"\",\"\",ScriptText!$B$1&CHAR(10)&ScriptText!$D$1)","v":""},{"$f":"IF(OrigTable!G1819=\"\",\"\",TEXT(OrigTable!G1819,\"00\"))","v":""},{"$f":"IF(OrigTable!G1819=\"\",\"\",ScriptText!$E$1&CHAR(10)&ScriptText!$C$1)","v":""},0]
["\n\n\n",{"$f":"IF(OrigTable!A1820=\"\",\"\",ScriptText!$B$1&CHAR(10)&ScriptText!$D$1)","v":""},{"$f":"IF(OrigTable!A1820=\"\",\"\",TEXT(OrigTable!A1820,\"00\"))","v":""},{"$f":"IF(OrigTable!A1820=\"\",\"\",ScriptText!$E$1&CHAR(10)&ScriptText!$C$1)","v":""},{"$f":"IF(OrigTable!B1820=\"\",\"\",ScriptText!$B$1&CHAR(10)&ScriptText!$D$1)","v":""},{"$f":"IF(OrigTable!B1820=\"\",\"\",TEXT(OrigTable!B1820,\"00\"))","v":""},{"$f":"IF(OrigTable!B1820=\"\",\"\",ScriptText!$E$1&CHAR(10)&ScriptText!C1815)","v":""},{"$f":"IF(OrigTable!C1820=\"\",\"\",ScriptText!$B$1&CHAR(10)&ScriptText!$D$1)","v":""},{"$f":"IF(OrigTable!C1820=\"\",\"\",IF(LEN(OrigTable!C1820)>255,LEFT(OrigTable!C1820,250)&\". . .\",OrigTable!C1820))","v":""},{"$f":"IF(OrigTable!C1820=\"\",\"\",ScriptText!$E$1&CHAR(10)&ScriptText!$C$1)","v":""},{"$f":"IF(OrigTable!D1820=\"\",\"\",ScriptText!$B$1&CHAR(10)&ScriptText!$D$1)","v":""},{"$f":"IF(OrigTable!D1820=\"\",\"\",TEXT(OrigTable!D1820,\"00\"))","v":""},{"$f":"IF(OrigTable!D1820=\"\",\"\",ScriptText!$E$1&CHAR(10)&ScriptText!$C$1)","v":""},{"$f":"IF(OrigTable!E1820=\"\",\"\",ScriptText!$B$1&CHAR(10)&ScriptText!$D$1)","v":""},{"$f":"IF(OrigTable!E1820=\"\",\"\",TEXT(OrigTable!E1820,\"00\"))","v":""},{"$f":"IF(OrigTable!E1820=\"\",\"\",ScriptText!$E$1&CHAR(10)&ScriptText!$C$1)","v":""},{"$f":"IF(OrigTable!F1820=\"\",\"\",ScriptText!$B$1&CHAR(10)&ScriptText!$D$1)","v":""},{"$f":"IF(OrigTable!F1820=\"\",\"\",TEXT(OrigTable!F1820,\"00\"))","v":""},{"$f":"IF(OrigTable!F1820=\"\",\"\",ScriptText!$E$1&CHAR(10)&ScriptText!$C$1)","v":""},{"$f":"IF(OrigTable!G1820=\"\",\"\",ScriptText!$B$1&CHAR(10)&ScriptText!$D$1)","v":""},{"$f":"IF(OrigTable!G1820=\"\",\"\",TEXT(OrigTable!G1820,\"00\"))","v":""},{"$f":"IF(OrigTable!G1820=\"\",\"\",ScriptText!$E$1&CHAR(10)&ScriptText!$C$1)","v":""},0]
["\n\n\n",{"$f":"IF(OrigTable!A1821=\"\",\"\",ScriptText!$B$1&CHAR(10)&ScriptText!$D$1)","v":""},{"$f":"IF(OrigTable!A1821=\"\",\"\",TEXT(OrigTable!A1821,\"00\"))","v":""},{"$f":"IF(OrigTable!A1821=\"\",\"\",ScriptText!$E$1&CHAR(10)&ScriptText!$C$1)","v":""},{"$f":"IF(OrigTable!B1821=\"\",\"\",ScriptText!$B$1&CHAR(10)&ScriptText!$D$1)","v":""},{"$f":"IF(OrigTable!B1821=\"\",\"\",TEXT(OrigTable!B1821,\"00\"))","v":""},{"$f":"IF(OrigTable!B1821=\"\",\"\",ScriptText!$E$1&CHAR(10)&ScriptText!C1816)","v":""},{"$f":"IF(OrigTable!C1821=\"\",\"\",ScriptText!$B$1&CHAR(10)&ScriptText!$D$1)","v":""},{"$f":"IF(OrigTable!C1821=\"\",\"\",IF(LEN(OrigTable!C1821)>255,LEFT(OrigTable!C1821,250)&\". . .\",OrigTable!C1821))","v":""},{"$f":"IF(OrigTable!C1821=\"\",\"\",ScriptText!$E$1&CHAR(10)&ScriptText!$C$1)","v":""},{"$f":"IF(OrigTable!D1821=\"\",\"\",ScriptText!$B$1&CHAR(10)&ScriptText!$D$1)","v":""},{"$f":"IF(OrigTable!D1821=\"\",\"\",TEXT(OrigTable!D1821,\"00\"))","v":""},{"$f":"IF(OrigTable!D1821=\"\",\"\",ScriptText!$E$1&CHAR(10)&ScriptText!$C$1)","v":""},{"$f":"IF(OrigTable!E1821=\"\",\"\",ScriptText!$B$1&CHAR(10)&ScriptText!$D$1)","v":""},{"$f":"IF(OrigTable!E1821=\"\",\"\",TEXT(OrigTable!E1821,\"00\"))","v":""},{"$f":"IF(OrigTable!E1821=\"\",\"\",ScriptText!$E$1&CHAR(10)&ScriptText!$C$1)","v":""},{"$f":"IF(OrigTable!F1821=\"\",\"\",ScriptText!$B$1&CHAR(10)&ScriptText!$D$1)","v":""},{"$f":"IF(OrigTable!F1821=\"\",\"\",TEXT(OrigTable!F1821,\"00\"))","v":""},{"$f":"IF(OrigTable!F1821=\"\",\"\",ScriptText!$E$1&CHAR(10)&ScriptText!$C$1)","v":""},{"$f":"IF(OrigTable!G1821=\"\",\"\",ScriptText!$B$1&CHAR(10)&ScriptText!$D$1)","v":""},{"$f":"IF(OrigTable!G1821=\"\",\"\",TEXT(OrigTable!G1821,\"00\"))","v":""},{"$f":"IF(OrigTable!G1821=\"\",\"\",ScriptText!$E$1&CHAR(10)&ScriptText!$C$1)","v":""},0]
["\n\n\n",{"$f":"IF(OrigTable!A1822=\"\",\"\",ScriptText!$B$1&CHAR(10)&ScriptText!$D$1)","v":""},{"$f":"IF(OrigTable!A1822=\"\",\"\",TEXT(OrigTable!A1822,\"00\"))","v":""},{"$f":"IF(OrigTable!A1822=\"\",\"\",ScriptText!$E$1&CHAR(10)&ScriptText!$C$1)","v":""},{"$f":"IF(OrigTable!B1822=\"\",\"\",ScriptText!$B$1&CHAR(10)&ScriptText!$D$1)","v":""},{"$f":"IF(OrigTable!B1822=\"\",\"\",TEXT(OrigTable!B1822,\"00\"))","v":""},{"$f":"IF(OrigTable!B1822=\"\",\"\",ScriptText!$E$1&CHAR(10)&ScriptText!C1817)","v":""},{"$f":"IF(OrigTable!C1822=\"\",\"\",ScriptText!$B$1&CHAR(10)&ScriptText!$D$1)","v":""},{"$f":"IF(OrigTable!C1822=\"\",\"\",IF(LEN(OrigTable!C1822)>255,LEFT(OrigTable!C1822,250)&\". . .\",OrigTable!C1822))","v":""},{"$f":"IF(OrigTable!C1822=\"\",\"\",ScriptText!$E$1&CHAR(10)&ScriptText!$C$1)","v":""},{"$f":"IF(OrigTable!D1822=\"\",\"\",ScriptText!$B$1&CHAR(10)&ScriptText!$D$1)","v":""},{"$f":"IF(OrigTable!D1822=\"\",\"\",TEXT(OrigTable!D1822,\"00\"))","v":""},{"$f":"IF(OrigTable!D1822=\"\",\"\",ScriptText!$E$1&CHAR(10)&ScriptText!$C$1)","v":""},{"$f":"IF(OrigTable!E1822=\"\",\"\",ScriptText!$B$1&CHAR(10)&ScriptText!$D$1)","v":""},{"$f":"IF(OrigTable!E1822=\"\",\"\",TEXT(OrigTable!E1822,\"00\"))","v":""},{"$f":"IF(OrigTable!E1822=\"\",\"\",ScriptText!$E$1&CHAR(10)&ScriptText!$C$1)","v":""},{"$f":"IF(OrigTable!F1822=\"\",\"\",ScriptText!$B$1&CHAR(10)&ScriptText!$D$1)","v":""},{"$f":"IF(OrigTable!F1822=\"\",\"\",TEXT(OrigTable!F1822,\"00\"))","v":""},{"$f":"IF(OrigTable!F1822=\"\",\"\",ScriptText!$E$1&CHAR(10)&ScriptText!$C$1)","v":""},{"$f":"IF(OrigTable!G1822=\"\",\"\",ScriptText!$B$1&CHAR(10)&ScriptText!$D$1)","v":""},{"$f":"IF(OrigTable!G1822=\"\",\"\",TEXT(OrigTable!G1822,\"00\"))","v":""},{"$f":"IF(OrigTable!G1822=\"\",\"\",ScriptText!$E$1&CHAR(10)&ScriptText!$C$1)","v":""},0]
["\n\n\n",{"$f":"IF(OrigTable!A1823=\"\",\"\",ScriptText!$B$1&CHAR(10)&ScriptText!$D$1)","v":""},{"$f":"IF(OrigTable!A1823=\"\",\"\",TEXT(OrigTable!A1823,\"00\"))","v":""},{"$f":"IF(OrigTable!A1823=\"\",\"\",ScriptText!$E$1&CHAR(10)&ScriptText!$C$1)","v":""},{"$f":"IF(OrigTable!B1823=\"\",\"\",ScriptText!$B$1&CHAR(10)&ScriptText!$D$1)","v":""},{"$f":"IF(OrigTable!B1823=\"\",\"\",TEXT(OrigTable!B1823,\"00\"))","v":""},{"$f":"IF(OrigTable!B1823=\"\",\"\",ScriptText!$E$1&CHAR(10)&ScriptText!C1818)","v":""},{"$f":"IF(OrigTable!C1823=\"\",\"\",ScriptText!$B$1&CHAR(10)&ScriptText!$D$1)","v":""},{"$f":"IF(OrigTable!C1823=\"\",\"\",IF(LEN(OrigTable!C1823)>255,LEFT(OrigTable!C1823,250)&\". . .\",OrigTable!C1823))","v":""},{"$f":"IF(OrigTable!C1823=\"\",\"\",ScriptText!$E$1&CHAR(10)&ScriptText!$C$1)","v":""},{"$f":"IF(OrigTable!D1823=\"\",\"\",ScriptText!$B$1&CHAR(10)&ScriptText!$D$1)","v":""},{"$f":"IF(OrigTable!D1823=\"\",\"\",TEXT(OrigTable!D1823,\"00\"))","v":""},{"$f":"IF(OrigTable!D1823=\"\",\"\",ScriptText!$E$1&CHAR(10)&ScriptText!$C$1)","v":""},{"$f":"IF(OrigTable!E1823=\"\",\"\",ScriptText!$B$1&CHAR(10)&ScriptText!$D$1)","v":""},{"$f":"IF(OrigTable!E1823=\"\",\"\",TEXT(OrigTable!E1823,\"00\"))","v":""},{"$f":"IF(OrigTable!E1823=\"\",\"\",ScriptText!$E$1&CHAR(10)&ScriptText!$C$1)","v":""},{"$f":"IF(OrigTable!F1823=\"\",\"\",ScriptText!$B$1&CHAR(10)&ScriptText!$D$1)","v":""},{"$f":"IF(OrigTable!F1823=\"\",\"\",TEXT(OrigTable!F1823,\"00\"))","v":""},{"$f":"IF(OrigTable!F1823=\"\",\"\",ScriptText!$E$1&CHAR(10)&ScriptText!$C$1)","v":""},{"$f":"IF(OrigTable!G1823=\"\",\"\",ScriptText!$B$1&CHAR(10)&ScriptText!$D$1)","v":""},{"$f":"IF(OrigTable!G1823=\"\",\"\",TEXT(OrigTable!G1823,\"00\"))","v":""},{"$f":"IF(OrigTable!G1823=\"\",\"\",ScriptText!$E$1&CHAR(10)&ScriptText!$C$1)","v":""},0]
["\n\n\n",{"$f":"IF(OrigTable!A1824=\"\",\"\",ScriptText!$B$1&CHAR(10)&ScriptText!$D$1)","v":""},{"$f":"IF(OrigTable!A1824=\"\",\"\",TEXT(OrigTable!A1824,\"00\"))","v":""},{"$f":"IF(OrigTable!A1824=\"\",\"\",ScriptText!$E$1&CHAR(10)&ScriptText!$C$1)","v":""},{"$f":"IF(OrigTable!B1824=\"\",\"\",ScriptText!$B$1&CHAR(10)&ScriptText!$D$1)","v":""},{"$f":"IF(OrigTable!B1824=\"\",\"\",TEXT(OrigTable!B1824,\"00\"))","v":""},{"$f":"IF(OrigTable!B1824=\"\",\"\",ScriptText!$E$1&CHAR(10)&ScriptText!C1819)","v":""},{"$f":"IF(OrigTable!C1824=\"\",\"\",ScriptText!$B$1&CHAR(10)&ScriptText!$D$1)","v":""},{"$f":"IF(OrigTable!C1824=\"\",\"\",IF(LEN(OrigTable!C1824)>255,LEFT(OrigTable!C1824,250)&\". . .\",OrigTable!C1824))","v":""},{"$f":"IF(OrigTable!C1824=\"\",\"\",ScriptText!$E$1&CHAR(10)&ScriptText!$C$1)","v":""},{"$f":"IF(OrigTable!D1824=\"\",\"\",ScriptText!$B$1&CHAR(10)&ScriptText!$D$1)","v":""},{"$f":"IF(OrigTable!D1824=\"\",\"\",TEXT(OrigTable!D1824,\"00\"))","v":""},{"$f":"IF(OrigTable!D1824=\"\",\"\",ScriptText!$E$1&CHAR(10)&ScriptText!$C$1)","v":""},{"$f":"IF(OrigTable!E1824=\"\",\"\",ScriptText!$B$1&CHAR(10)&ScriptText!$D$1)","v":""},{"$f":"IF(OrigTable!E1824=\"\",\"\",TEXT(OrigTable!E1824,\"00\"))","v":""},{"$f":"IF(OrigTable!E1824=\"\",\"\",ScriptText!$E$1&CHAR(10)&ScriptText!$C$1)","v":""},{"$f":"IF(OrigTable!F1824=\"\",\"\",ScriptText!$B$1&CHAR(10)&ScriptText!$D$1)","v":""},{"$f":"IF(OrigTable!F1824=\"\",\"\",TEXT(OrigTable!F1824,\"00\"))","v":""},{"$f":"IF(OrigTable!F1824=\"\",\"\",ScriptText!$E$1&CHAR(10)&ScriptText!$C$1)","v":""},{"$f":"IF(OrigTable!G1824=\"\",\"\",ScriptText!$B$1&CHAR(10)&ScriptText!$D$1)","v":""},{"$f":"IF(OrigTable!G1824=\"\",\"\",TEXT(OrigTable!G1824,\"00\"))","v":""},{"$f":"IF(OrigTable!G1824=\"\",\"\",ScriptText!$E$1&CHAR(10)&ScriptText!$C$1)","v":""},0]
["\n\n\n",{"$f":"IF(OrigTable!A1825=\"\",\"\",ScriptText!$B$1&CHAR(10)&ScriptText!$D$1)","v":""},{"$f":"IF(OrigTable!A1825=\"\",\"\",TEXT(OrigTable!A1825,\"00\"))","v":""},{"$f":"IF(OrigTable!A1825=\"\",\"\",ScriptText!$E$1&CHAR(10)&ScriptText!$C$1)","v":""},{"$f":"IF(OrigTable!B1825=\"\",\"\",ScriptText!$B$1&CHAR(10)&ScriptText!$D$1)","v":""},{"$f":"IF(OrigTable!B1825=\"\",\"\",TEXT(OrigTable!B1825,\"00\"))","v":""},{"$f":"IF(OrigTable!B1825=\"\",\"\",ScriptText!$E$1&CHAR(10)&ScriptText!C1820)","v":""},{"$f":"IF(OrigTable!C1825=\"\",\"\",ScriptText!$B$1&CHAR(10)&ScriptText!$D$1)","v":""},{"$f":"IF(OrigTable!C1825=\"\",\"\",IF(LEN(OrigTable!C1825)>255,LEFT(OrigTable!C1825,250)&\". . .\",OrigTable!C1825))","v":""},{"$f":"IF(OrigTable!C1825=\"\",\"\",ScriptText!$E$1&CHAR(10)&ScriptText!$C$1)","v":""},{"$f":"IF(OrigTable!D1825=\"\",\"\",ScriptText!$B$1&CHAR(10)&ScriptText!$D$1)","v":""},{"$f":"IF(OrigTable!D1825=\"\",\"\",TEXT(OrigTable!D1825,\"00\"))","v":""},{"$f":"IF(OrigTable!D1825=\"\",\"\",ScriptText!$E$1&CHAR(10)&ScriptText!$C$1)","v":""},{"$f":"IF(OrigTable!E1825=\"\",\"\",ScriptText!$B$1&CHAR(10)&ScriptText!$D$1)","v":""},{"$f":"IF(OrigTable!E1825=\"\",\"\",TEXT(OrigTable!E1825,\"00\"))","v":""},{"$f":"IF(OrigTable!E1825=\"\",\"\",ScriptText!$E$1&CHAR(10)&ScriptText!$C$1)","v":""},{"$f":"IF(OrigTable!F1825=\"\",\"\",ScriptText!$B$1&CHAR(10)&ScriptText!$D$1)","v":""},{"$f":"IF(OrigTable!F1825=\"\",\"\",TEXT(OrigTable!F1825,\"00\"))","v":""},{"$f":"IF(OrigTable!F1825=\"\",\"\",ScriptText!$E$1&CHAR(10)&ScriptText!$C$1)","v":""},{"$f":"IF(OrigTable!G1825=\"\",\"\",ScriptText!$B$1&CHAR(10)&ScriptText!$D$1)","v":""},{"$f":"IF(OrigTable!G1825=\"\",\"\",TEXT(OrigTable!G1825,\"00\"))","v":""},{"$f":"IF(OrigTable!G1825=\"\",\"\",ScriptText!$E$1&CHAR(10)&ScriptText!$C$1)","v":""},0]
["\n\n\n",{"$f":"IF(OrigTable!A1826=\"\",\"\",ScriptText!$B$1&CHAR(10)&ScriptText!$D$1)","v":""},{"$f":"IF(OrigTable!A1826=\"\",\"\",TEXT(OrigTable!A1826,\"00\"))","v":""},{"$f":"IF(OrigTable!A1826=\"\",\"\",ScriptText!$E$1&CHAR(10)&ScriptText!$C$1)","v":""},{"$f":"IF(OrigTable!B1826=\"\",\"\",ScriptText!$B$1&CHAR(10)&ScriptText!$D$1)","v":""},{"$f":"IF(OrigTable!B1826=\"\",\"\",TEXT(OrigTable!B1826,\"00\"))","v":""},{"$f":"IF(OrigTable!B1826=\"\",\"\",ScriptText!$E$1&CHAR(10)&ScriptText!C1821)","v":""},{"$f":"IF(OrigTable!C1826=\"\",\"\",ScriptText!$B$1&CHAR(10)&ScriptText!$D$1)","v":""},{"$f":"IF(OrigTable!C1826=\"\",\"\",IF(LEN(OrigTable!C1826)>255,LEFT(OrigTable!C1826,250)&\". . .\",OrigTable!C1826))","v":""},{"$f":"IF(OrigTable!C1826=\"\",\"\",ScriptText!$E$1&CHAR(10)&ScriptText!$C$1)","v":""},{"$f":"IF(OrigTable!D1826=\"\",\"\",ScriptText!$B$1&CHAR(10)&ScriptText!$D$1)","v":""},{"$f":"IF(OrigTable!D1826=\"\",\"\",TEXT(OrigTable!D1826,\"00\"))","v":""},{"$f":"IF(OrigTable!D1826=\"\",\"\",ScriptText!$E$1&CHAR(10)&ScriptText!$C$1)","v":""},{"$f":"IF(OrigTable!E1826=\"\",\"\",ScriptText!$B$1&CHAR(10)&ScriptText!$D$1)","v":""},{"$f":"IF(OrigTable!E1826=\"\",\"\",TEXT(OrigTable!E1826,\"00\"))","v":""},{"$f":"IF(OrigTable!E1826=\"\",\"\",ScriptText!$E$1&CHAR(10)&ScriptText!$C$1)","v":""},{"$f":"IF(OrigTable!F1826=\"\",\"\",ScriptText!$B$1&CHAR(10)&ScriptText!$D$1)","v":""},{"$f":"IF(OrigTable!F1826=\"\",\"\",TEXT(OrigTable!F1826,\"00\"))","v":""},{"$f":"IF(OrigTable!F1826=\"\",\"\",ScriptText!$E$1&CHAR(10)&ScriptText!$C$1)","v":""},{"$f":"IF(OrigTable!G1826=\"\",\"\",ScriptText!$B$1&CHAR(10)&ScriptText!$D$1)","v":""},{"$f":"IF(OrigTable!G1826=\"\",\"\",TEXT(OrigTable!G1826,\"00\"))","v":""},{"$f":"IF(OrigTable!G1826=\"\",\"\",ScriptText!$E$1&CHAR(10)&ScriptText!$C$1)","v":""},0]
["\n\n\n",{"$f":"IF(OrigTable!A1827=\"\",\"\",ScriptText!$B$1&CHAR(10)&ScriptText!$D$1)","v":""},{"$f":"IF(OrigTable!A1827=\"\",\"\",TEXT(OrigTable!A1827,\"00\"))","v":""},{"$f":"IF(OrigTable!A1827=\"\",\"\",ScriptText!$E$1&CHAR(10)&ScriptText!$C$1)","v":""},{"$f":"IF(OrigTable!B1827=\"\",\"\",ScriptText!$B$1&CHAR(10)&ScriptText!$D$1)","v":""},{"$f":"IF(OrigTable!B1827=\"\",\"\",TEXT(OrigTable!B1827,\"00\"))","v":""},{"$f":"IF(OrigTable!B1827=\"\",\"\",ScriptText!$E$1&CHAR(10)&ScriptText!C1822)","v":""},{"$f":"IF(OrigTable!C1827=\"\",\"\",ScriptText!$B$1&CHAR(10)&ScriptText!$D$1)","v":""},{"$f":"IF(OrigTable!C1827=\"\",\"\",IF(LEN(OrigTable!C1827)>255,LEFT(OrigTable!C1827,250)&\". . .\",OrigTable!C1827))","v":""},{"$f":"IF(OrigTable!C1827=\"\",\"\",ScriptText!$E$1&CHAR(10)&ScriptText!$C$1)","v":""},{"$f":"IF(OrigTable!D1827=\"\",\"\",ScriptText!$B$1&CHAR(10)&ScriptText!$D$1)","v":""},{"$f":"IF(OrigTable!D1827=\"\",\"\",TEXT(OrigTable!D1827,\"00\"))","v":""},{"$f":"IF(OrigTable!D1827=\"\",\"\",ScriptText!$E$1&CHAR(10)&ScriptText!$C$1)","v":""},{"$f":"IF(OrigTable!E1827=\"\",\"\",ScriptText!$B$1&CHAR(10)&ScriptText!$D$1)","v":""},{"$f":"IF(OrigTable!E1827=\"\",\"\",TEXT(OrigTable!E1827,\"00\"))","v":""},{"$f":"IF(OrigTable!E1827=\"\",\"\",ScriptText!$E$1&CHAR(10)&ScriptText!$C$1)","v":""},{"$f":"IF(OrigTable!F1827=\"\",\"\",ScriptText!$B$1&CHAR(10)&ScriptText!$D$1)","v":""},{"$f":"IF(OrigTable!F1827=\"\",\"\",TEXT(OrigTable!F1827,\"00\"))","v":""},{"$f":"IF(OrigTable!F1827=\"\",\"\",ScriptText!$E$1&CHAR(10)&ScriptText!$C$1)","v":""},{"$f":"IF(OrigTable!G1827=\"\",\"\",ScriptText!$B$1&CHAR(10)&ScriptText!$D$1)","v":""},{"$f":"IF(OrigTable!G1827=\"\",\"\",TEXT(OrigTable!G1827,\"00\"))","v":""},{"$f":"IF(OrigTable!G1827=\"\",\"\",ScriptText!$E$1&CHAR(10)&ScriptText!$C$1)","v":""},0]
["\n\n\n",{"$f":"IF(OrigTable!A1828=\"\",\"\",ScriptText!$B$1&CHAR(10)&ScriptText!$D$1)","v":""},{"$f":"IF(OrigTable!A1828=\"\",\"\",TEXT(OrigTable!A1828,\"00\"))","v":""},{"$f":"IF(OrigTable!A1828=\"\",\"\",ScriptText!$E$1&CHAR(10)&ScriptText!$C$1)","v":""},{"$f":"IF(OrigTable!B1828=\"\",\"\",ScriptText!$B$1&CHAR(10)&ScriptText!$D$1)","v":""},{"$f":"IF(OrigTable!B1828=\"\",\"\",TEXT(OrigTable!B1828,\"00\"))","v":""},{"$f":"IF(OrigTable!B1828=\"\",\"\",ScriptText!$E$1&CHAR(10)&ScriptText!C1823)","v":""},{"$f":"IF(OrigTable!C1828=\"\",\"\",ScriptText!$B$1&CHAR(10)&ScriptText!$D$1)","v":""},{"$f":"IF(OrigTable!C1828=\"\",\"\",IF(LEN(OrigTable!C1828)>255,LEFT(OrigTable!C1828,250)&\". . .\",OrigTable!C1828))","v":""},{"$f":"IF(OrigTable!C1828=\"\",\"\",ScriptText!$E$1&CHAR(10)&ScriptText!$C$1)","v":""},{"$f":"IF(OrigTable!D1828=\"\",\"\",ScriptText!$B$1&CHAR(10)&ScriptText!$D$1)","v":""},{"$f":"IF(OrigTable!D1828=\"\",\"\",TEXT(OrigTable!D1828,\"00\"))","v":""},{"$f":"IF(OrigTable!D1828=\"\",\"\",ScriptText!$E$1&CHAR(10)&ScriptText!$C$1)","v":""},{"$f":"IF(OrigTable!E1828=\"\",\"\",ScriptText!$B$1&CHAR(10)&ScriptText!$D$1)","v":""},{"$f":"IF(OrigTable!E1828=\"\",\"\",TEXT(OrigTable!E1828,\"00\"))","v":""},{"$f":"IF(OrigTable!E1828=\"\",\"\",ScriptText!$E$1&CHAR(10)&ScriptText!$C$1)","v":""},{"$f":"IF(OrigTable!F1828=\"\",\"\",ScriptText!$B$1&CHAR(10)&ScriptText!$D$1)","v":""},{"$f":"IF(OrigTable!F1828=\"\",\"\",TEXT(OrigTable!F1828,\"00\"))","v":""},{"$f":"IF(OrigTable!F1828=\"\",\"\",ScriptText!$E$1&CHAR(10)&ScriptText!$C$1)","v":""},{"$f":"IF(OrigTable!G1828=\"\",\"\",ScriptText!$B$1&CHAR(10)&ScriptText!$D$1)","v":""},{"$f":"IF(OrigTable!G1828=\"\",\"\",TEXT(OrigTable!G1828,\"00\"))","v":""},{"$f":"IF(OrigTable!G1828=\"\",\"\",ScriptText!$E$1&CHAR(10)&ScriptText!$C$1)","v":""},0]
["\n\n\n",{"$f":"IF(OrigTable!A1829=\"\",\"\",ScriptText!$B$1&CHAR(10)&ScriptText!$D$1)","v":""},{"$f":"IF(OrigTable!A1829=\"\",\"\",TEXT(OrigTable!A1829,\"00\"))","v":""},{"$f":"IF(OrigTable!A1829=\"\",\"\",ScriptText!$E$1&CHAR(10)&ScriptText!$C$1)","v":""},{"$f":"IF(OrigTable!B1829=\"\",\"\",ScriptText!$B$1&CHAR(10)&ScriptText!$D$1)","v":""},{"$f":"IF(OrigTable!B1829=\"\",\"\",TEXT(OrigTable!B1829,\"00\"))","v":""},{"$f":"IF(OrigTable!B1829=\"\",\"\",ScriptText!$E$1&CHAR(10)&ScriptText!C1824)","v":""},{"$f":"IF(OrigTable!C1829=\"\",\"\",ScriptText!$B$1&CHAR(10)&ScriptText!$D$1)","v":""},{"$f":"IF(OrigTable!C1829=\"\",\"\",IF(LEN(OrigTable!C1829)>255,LEFT(OrigTable!C1829,250)&\". . .\",OrigTable!C1829))","v":""},{"$f":"IF(OrigTable!C1829=\"\",\"\",ScriptText!$E$1&CHAR(10)&ScriptText!$C$1)","v":""},{"$f":"IF(OrigTable!D1829=\"\",\"\",ScriptText!$B$1&CHAR(10)&ScriptText!$D$1)","v":""},{"$f":"IF(OrigTable!D1829=\"\",\"\",TEXT(OrigTable!D1829,\"00\"))","v":""},{"$f":"IF(OrigTable!D1829=\"\",\"\",ScriptText!$E$1&CHAR(10)&ScriptText!$C$1)","v":""},{"$f":"IF(OrigTable!E1829=\"\",\"\",ScriptText!$B$1&CHAR(10)&ScriptText!$D$1)","v":""},{"$f":"IF(OrigTable!E1829=\"\",\"\",TEXT(OrigTable!E1829,\"00\"))","v":""},{"$f":"IF(OrigTable!E1829=\"\",\"\",ScriptText!$E$1&CHAR(10)&ScriptText!$C$1)","v":""},{"$f":"IF(OrigTable!F1829=\"\",\"\",ScriptText!$B$1&CHAR(10)&ScriptText!$D$1)","v":""},{"$f":"IF(OrigTable!F1829=\"\",\"\",TEXT(OrigTable!F1829,\"00\"))","v":""},{"$f":"IF(OrigTable!F1829=\"\",\"\",ScriptText!$E$1&CHAR(10)&ScriptText!$C$1)","v":""},{"$f":"IF(OrigTable!G1829=\"\",\"\",ScriptText!$B$1&CHAR(10)&ScriptText!$D$1)","v":""},{"$f":"IF(OrigTable!G1829=\"\",\"\",TEXT(OrigTable!G1829,\"00\"))","v":""},{"$f":"IF(OrigTable!G1829=\"\",\"\",ScriptText!$E$1&CHAR(10)&ScriptText!$C$1)","v":""},0]
["\n\n\n",{"$f":"IF(OrigTable!A1830=\"\",\"\",ScriptText!$B$1&CHAR(10)&ScriptText!$D$1)","v":""},{"$f":"IF(OrigTable!A1830=\"\",\"\",TEXT(OrigTable!A1830,\"00\"))","v":""},{"$f":"IF(OrigTable!A1830=\"\",\"\",ScriptText!$E$1&CHAR(10)&ScriptText!$C$1)","v":""},{"$f":"IF(OrigTable!B1830=\"\",\"\",ScriptText!$B$1&CHAR(10)&ScriptText!$D$1)","v":""},{"$f":"IF(OrigTable!B1830=\"\",\"\",TEXT(OrigTable!B1830,\"00\"))","v":""},{"$f":"IF(OrigTable!B1830=\"\",\"\",ScriptText!$E$1&CHAR(10)&ScriptText!C1825)","v":""},{"$f":"IF(OrigTable!C1830=\"\",\"\",ScriptText!$B$1&CHAR(10)&ScriptText!$D$1)","v":""},{"$f":"IF(OrigTable!C1830=\"\",\"\",IF(LEN(OrigTable!C1830)>255,LEFT(OrigTable!C1830,250)&\". . .\",OrigTable!C1830))","v":""},{"$f":"IF(OrigTable!C1830=\"\",\"\",ScriptText!$E$1&CHAR(10)&ScriptText!$C$1)","v":""},{"$f":"IF(OrigTable!D1830=\"\",\"\",ScriptText!$B$1&CHAR(10)&ScriptText!$D$1)","v":""},{"$f":"IF(OrigTable!D1830=\"\",\"\",TEXT(OrigTable!D1830,\"00\"))","v":""},{"$f":"IF(OrigTable!D1830=\"\",\"\",ScriptText!$E$1&CHAR(10)&ScriptText!$C$1)","v":""},{"$f":"IF(OrigTable!E1830=\"\",\"\",ScriptText!$B$1&CHAR(10)&ScriptText!$D$1)","v":""},{"$f":"IF(OrigTable!E1830=\"\",\"\",TEXT(OrigTable!E1830,\"00\"))","v":""},{"$f":"IF(OrigTable!E1830=\"\",\"\",ScriptText!$E$1&CHAR(10)&ScriptText!$C$1)","v":""},{"$f":"IF(OrigTable!F1830=\"\",\"\",ScriptText!$B$1&CHAR(10)&ScriptText!$D$1)","v":""},{"$f":"IF(OrigTable!F1830=\"\",\"\",TEXT(OrigTable!F1830,\"00\"))","v":""},{"$f":"IF(OrigTable!F1830=\"\",\"\",ScriptText!$E$1&CHAR(10)&ScriptText!$C$1)","v":""},{"$f":"IF(OrigTable!G1830=\"\",\"\",ScriptText!$B$1&CHAR(10)&ScriptText!$D$1)","v":""},{"$f":"IF(OrigTable!G1830=\"\",\"\",TEXT(OrigTable!G1830,\"00\"))","v":""},{"$f":"IF(OrigTable!G1830=\"\",\"\",ScriptText!$E$1&CHAR(10)&ScriptText!$C$1)","v":""},0]
["\n\n\n",{"$f":"IF(OrigTable!A1831=\"\",\"\",ScriptText!$B$1&CHAR(10)&ScriptText!$D$1)","v":""},{"$f":"IF(OrigTable!A1831=\"\",\"\",TEXT(OrigTable!A1831,\"00\"))","v":""},{"$f":"IF(OrigTable!A1831=\"\",\"\",ScriptText!$E$1&CHAR(10)&ScriptText!$C$1)","v":""},{"$f":"IF(OrigTable!B1831=\"\",\"\",ScriptText!$B$1&CHAR(10)&ScriptText!$D$1)","v":""},{"$f":"IF(OrigTable!B1831=\"\",\"\",TEXT(OrigTable!B1831,\"00\"))","v":""},{"$f":"IF(OrigTable!B1831=\"\",\"\",ScriptText!$E$1&CHAR(10)&ScriptText!C1826)","v":""},{"$f":"IF(OrigTable!C1831=\"\",\"\",ScriptText!$B$1&CHAR(10)&ScriptText!$D$1)","v":""},{"$f":"IF(OrigTable!C1831=\"\",\"\",IF(LEN(OrigTable!C1831)>255,LEFT(OrigTable!C1831,250)&\". . .\",OrigTable!C1831))","v":""},{"$f":"IF(OrigTable!C1831=\"\",\"\",ScriptText!$E$1&CHAR(10)&ScriptText!$C$1)","v":""},{"$f":"IF(OrigTable!D1831=\"\",\"\",ScriptText!$B$1&CHAR(10)&ScriptText!$D$1)","v":""},{"$f":"IF(OrigTable!D1831=\"\",\"\",TEXT(OrigTable!D1831,\"00\"))","v":""},{"$f":"IF(OrigTable!D1831=\"\",\"\",ScriptText!$E$1&CHAR(10)&ScriptText!$C$1)","v":""},{"$f":"IF(OrigTable!E1831=\"\",\"\",ScriptText!$B$1&CHAR(10)&ScriptText!$D$1)","v":""},{"$f":"IF(OrigTable!E1831=\"\",\"\",TEXT(OrigTable!E1831,\"00\"))","v":""},{"$f":"IF(OrigTable!E1831=\"\",\"\",ScriptText!$E$1&CHAR(10)&ScriptText!$C$1)","v":""},{"$f":"IF(OrigTable!F1831=\"\",\"\",ScriptText!$B$1&CHAR(10)&ScriptText!$D$1)","v":""},{"$f":"IF(OrigTable!F1831=\"\",\"\",TEXT(OrigTable!F1831,\"00\"))","v":""},{"$f":"IF(OrigTable!F1831=\"\",\"\",ScriptText!$E$1&CHAR(10)&ScriptText!$C$1)","v":""},{"$f":"IF(OrigTable!G1831=\"\",\"\",ScriptText!$B$1&CHAR(10)&ScriptText!$D$1)","v":""},{"$f":"IF(OrigTable!G1831=\"\",\"\",TEXT(OrigTable!G1831,\"00\"))","v":""},{"$f":"IF(OrigTable!G1831=\"\",\"\",ScriptText!$E$1&CHAR(10)&ScriptText!$C$1)","v":""},0]
["\n\n\n",{"$f":"IF(OrigTable!A1832=\"\",\"\",ScriptText!$B$1&CHAR(10)&ScriptText!$D$1)","v":""},{"$f":"IF(OrigTable!A1832=\"\",\"\",TEXT(OrigTable!A1832,\"00\"))","v":""},{"$f":"IF(OrigTable!A1832=\"\",\"\",ScriptText!$E$1&CHAR(10)&ScriptText!$C$1)","v":""},{"$f":"IF(OrigTable!B1832=\"\",\"\",ScriptText!$B$1&CHAR(10)&ScriptText!$D$1)","v":""},{"$f":"IF(OrigTable!B1832=\"\",\"\",TEXT(OrigTable!B1832,\"00\"))","v":""},{"$f":"IF(OrigTable!B1832=\"\",\"\",ScriptText!$E$1&CHAR(10)&ScriptText!C1827)","v":""},{"$f":"IF(OrigTable!C1832=\"\",\"\",ScriptText!$B$1&CHAR(10)&ScriptText!$D$1)","v":""},{"$f":"IF(OrigTable!C1832=\"\",\"\",IF(LEN(OrigTable!C1832)>255,LEFT(OrigTable!C1832,250)&\". . .\",OrigTable!C1832))","v":""},{"$f":"IF(OrigTable!C1832=\"\",\"\",ScriptText!$E$1&CHAR(10)&ScriptText!$C$1)","v":""},{"$f":"IF(OrigTable!D1832=\"\",\"\",ScriptText!$B$1&CHAR(10)&ScriptText!$D$1)","v":""},{"$f":"IF(OrigTable!D1832=\"\",\"\",TEXT(OrigTable!D1832,\"00\"))","v":""},{"$f":"IF(OrigTable!D1832=\"\",\"\",ScriptText!$E$1&CHAR(10)&ScriptText!$C$1)","v":""},{"$f":"IF(OrigTable!E1832=\"\",\"\",ScriptText!$B$1&CHAR(10)&ScriptText!$D$1)","v":""},{"$f":"IF(OrigTable!E1832=\"\",\"\",TEXT(OrigTable!E1832,\"00\"))","v":""},{"$f":"IF(OrigTable!E1832=\"\",\"\",ScriptText!$E$1&CHAR(10)&ScriptText!$C$1)","v":""},{"$f":"IF(OrigTable!F1832=\"\",\"\",ScriptText!$B$1&CHAR(10)&ScriptText!$D$1)","v":""},{"$f":"IF(OrigTable!F1832=\"\",\"\",TEXT(OrigTable!F1832,\"00\"))","v":""},{"$f":"IF(OrigTable!F1832=\"\",\"\",ScriptText!$E$1&CHAR(10)&ScriptText!$C$1)","v":""},{"$f":"IF(OrigTable!G1832=\"\",\"\",ScriptText!$B$1&CHAR(10)&ScriptText!$D$1)","v":""},{"$f":"IF(OrigTable!G1832=\"\",\"\",TEXT(OrigTable!G1832,\"00\"))","v":""},{"$f":"IF(OrigTable!G1832=\"\",\"\",ScriptText!$E$1&CHAR(10)&ScriptText!$C$1)","v":""},0]
["\n\n\n",{"$f":"IF(OrigTable!A1833=\"\",\"\",ScriptText!$B$1&CHAR(10)&ScriptText!$D$1)","v":""},{"$f":"IF(OrigTable!A1833=\"\",\"\",TEXT(OrigTable!A1833,\"00\"))","v":""},{"$f":"IF(OrigTable!A1833=\"\",\"\",ScriptText!$E$1&CHAR(10)&ScriptText!$C$1)","v":""},{"$f":"IF(OrigTable!B1833=\"\",\"\",ScriptText!$B$1&CHAR(10)&ScriptText!$D$1)","v":""},{"$f":"IF(OrigTable!B1833=\"\",\"\",TEXT(OrigTable!B1833,\"00\"))","v":""},{"$f":"IF(OrigTable!B1833=\"\",\"\",ScriptText!$E$1&CHAR(10)&ScriptText!C1828)","v":""},{"$f":"IF(OrigTable!C1833=\"\",\"\",ScriptText!$B$1&CHAR(10)&ScriptText!$D$1)","v":""},{"$f":"IF(OrigTable!C1833=\"\",\"\",IF(LEN(OrigTable!C1833)>255,LEFT(OrigTable!C1833,250)&\". . .\",OrigTable!C1833))","v":""},{"$f":"IF(OrigTable!C1833=\"\",\"\",ScriptText!$E$1&CHAR(10)&ScriptText!$C$1)","v":""},{"$f":"IF(OrigTable!D1833=\"\",\"\",ScriptText!$B$1&CHAR(10)&ScriptText!$D$1)","v":""},{"$f":"IF(OrigTable!D1833=\"\",\"\",TEXT(OrigTable!D1833,\"00\"))","v":""},{"$f":"IF(OrigTable!D1833=\"\",\"\",ScriptText!$E$1&CHAR(10)&ScriptText!$C$1)","v":""},{"$f":"IF(OrigTable!E1833=\"\",\"\",ScriptText!$B$1&CHAR(10)&ScriptText!$D$1)","v":""},{"$f":"IF(OrigTable!E1833=\"\",\"\",TEXT(OrigTable!E1833,\"00\"))","v":""},{"$f":"IF(OrigTable!E1833=\"\",\"\",ScriptText!$E$1&CHAR(10)&ScriptText!$C$1)","v":""},{"$f":"IF(OrigTable!F1833=\"\",\"\",ScriptText!$B$1&CHAR(10)&ScriptText!$D$1)","v":""},{"$f":"IF(OrigTable!F1833=\"\",\"\",TEXT(OrigTable!F1833,\"00\"))","v":""},{"$f":"IF(OrigTable!F1833=\"\",\"\",ScriptText!$E$1&CHAR(10)&ScriptText!$C$1)","v":""},{"$f":"IF(OrigTable!G1833=\"\",\"\",ScriptText!$B$1&CHAR(10)&ScriptText!$D$1)","v":""},{"$f":"IF(OrigTable!G1833=\"\",\"\",TEXT(OrigTable!G1833,\"00\"))","v":""},{"$f":"IF(OrigTable!G1833=\"\",\"\",ScriptText!$E$1&CHAR(10)&ScriptText!$C$1)","v":""},0]
["\n\n\n",{"$f":"IF(OrigTable!A1834=\"\",\"\",ScriptText!$B$1&CHAR(10)&ScriptText!$D$1)","v":""},{"$f":"IF(OrigTable!A1834=\"\",\"\",TEXT(OrigTable!A1834,\"00\"))","v":""},{"$f":"IF(OrigTable!A1834=\"\",\"\",ScriptText!$E$1&CHAR(10)&ScriptText!$C$1)","v":""},{"$f":"IF(OrigTable!B1834=\"\",\"\",ScriptText!$B$1&CHAR(10)&ScriptText!$D$1)","v":""},{"$f":"IF(OrigTable!B1834=\"\",\"\",TEXT(OrigTable!B1834,\"00\"))","v":""},{"$f":"IF(OrigTable!B1834=\"\",\"\",ScriptText!$E$1&CHAR(10)&ScriptText!C1829)","v":""},{"$f":"IF(OrigTable!C1834=\"\",\"\",ScriptText!$B$1&CHAR(10)&ScriptText!$D$1)","v":""},{"$f":"IF(OrigTable!C1834=\"\",\"\",IF(LEN(OrigTable!C1834)>255,LEFT(OrigTable!C1834,250)&\". . .\",OrigTable!C1834))","v":""},{"$f":"IF(OrigTable!C1834=\"\",\"\",ScriptText!$E$1&CHAR(10)&ScriptText!$C$1)","v":""},{"$f":"IF(OrigTable!D1834=\"\",\"\",ScriptText!$B$1&CHAR(10)&ScriptText!$D$1)","v":""},{"$f":"IF(OrigTable!D1834=\"\",\"\",TEXT(OrigTable!D1834,\"00\"))","v":""},{"$f":"IF(OrigTable!D1834=\"\",\"\",ScriptText!$E$1&CHAR(10)&ScriptText!$C$1)","v":""},{"$f":"IF(OrigTable!E1834=\"\",\"\",ScriptText!$B$1&CHAR(10)&ScriptText!$D$1)","v":""},{"$f":"IF(OrigTable!E1834=\"\",\"\",TEXT(OrigTable!E1834,\"00\"))","v":""},{"$f":"IF(OrigTable!E1834=\"\",\"\",ScriptText!$E$1&CHAR(10)&ScriptText!$C$1)","v":""},{"$f":"IF(OrigTable!F1834=\"\",\"\",ScriptText!$B$1&CHAR(10)&ScriptText!$D$1)","v":""},{"$f":"IF(OrigTable!F1834=\"\",\"\",TEXT(OrigTable!F1834,\"00\"))","v":""},{"$f":"IF(OrigTable!F1834=\"\",\"\",ScriptText!$E$1&CHAR(10)&ScriptText!$C$1)","v":""},{"$f":"IF(OrigTable!G1834=\"\",\"\",ScriptText!$B$1&CHAR(10)&ScriptText!$D$1)","v":""},{"$f":"IF(OrigTable!G1834=\"\",\"\",TEXT(OrigTable!G1834,\"00\"))","v":""},{"$f":"IF(OrigTable!G1834=\"\",\"\",ScriptText!$E$1&CHAR(10)&ScriptText!$C$1)","v":""},0]
["\n\n\n",{"$f":"IF(OrigTable!A1835=\"\",\"\",ScriptText!$B$1&CHAR(10)&ScriptText!$D$1)","v":""},{"$f":"IF(OrigTable!A1835=\"\",\"\",TEXT(OrigTable!A1835,\"00\"))","v":""},{"$f":"IF(OrigTable!A1835=\"\",\"\",ScriptText!$E$1&CHAR(10)&ScriptText!$C$1)","v":""},{"$f":"IF(OrigTable!B1835=\"\",\"\",ScriptText!$B$1&CHAR(10)&ScriptText!$D$1)","v":""},{"$f":"IF(OrigTable!B1835=\"\",\"\",TEXT(OrigTable!B1835,\"00\"))","v":""},{"$f":"IF(OrigTable!B1835=\"\",\"\",ScriptText!$E$1&CHAR(10)&ScriptText!C1830)","v":""},{"$f":"IF(OrigTable!C1835=\"\",\"\",ScriptText!$B$1&CHAR(10)&ScriptText!$D$1)","v":""},{"$f":"IF(OrigTable!C1835=\"\",\"\",IF(LEN(OrigTable!C1835)>255,LEFT(OrigTable!C1835,250)&\". . .\",OrigTable!C1835))","v":""},{"$f":"IF(OrigTable!C1835=\"\",\"\",ScriptText!$E$1&CHAR(10)&ScriptText!$C$1)","v":""},{"$f":"IF(OrigTable!D1835=\"\",\"\",ScriptText!$B$1&CHAR(10)&ScriptText!$D$1)","v":""},{"$f":"IF(OrigTable!D1835=\"\",\"\",TEXT(OrigTable!D1835,\"00\"))","v":""},{"$f":"IF(OrigTable!D1835=\"\",\"\",ScriptText!$E$1&CHAR(10)&ScriptText!$C$1)","v":""},{"$f":"IF(OrigTable!E1835=\"\",\"\",ScriptText!$B$1&CHAR(10)&ScriptText!$D$1)","v":""},{"$f":"IF(OrigTable!E1835=\"\",\"\",TEXT(OrigTable!E1835,\"00\"))","v":""},{"$f":"IF(OrigTable!E1835=\"\",\"\",ScriptText!$E$1&CHAR(10)&ScriptText!$C$1)","v":""},{"$f":"IF(OrigTable!F1835=\"\",\"\",ScriptText!$B$1&CHAR(10)&ScriptText!$D$1)","v":""},{"$f":"IF(OrigTable!F1835=\"\",\"\",TEXT(OrigTable!F1835,\"00\"))","v":""},{"$f":"IF(OrigTable!F1835=\"\",\"\",ScriptText!$E$1&CHAR(10)&ScriptText!$C$1)","v":""},{"$f":"IF(OrigTable!G1835=\"\",\"\",ScriptText!$B$1&CHAR(10)&ScriptText!$D$1)","v":""},{"$f":"IF(OrigTable!G1835=\"\",\"\",TEXT(OrigTable!G1835,\"00\"))","v":""},{"$f":"IF(OrigTable!G1835=\"\",\"\",ScriptText!$E$1&CHAR(10)&ScriptText!$C$1)","v":""},0]
["\n\n\n",{"$f":"IF(OrigTable!A1836=\"\",\"\",ScriptText!$B$1&CHAR(10)&ScriptText!$D$1)","v":""},{"$f":"IF(OrigTable!A1836=\"\",\"\",TEXT(OrigTable!A1836,\"00\"))","v":""},{"$f":"IF(OrigTable!A1836=\"\",\"\",ScriptText!$E$1&CHAR(10)&ScriptText!$C$1)","v":""},{"$f":"IF(OrigTable!B1836=\"\",\"\",ScriptText!$B$1&CHAR(10)&ScriptText!$D$1)","v":""},{"$f":"IF(OrigTable!B1836=\"\",\"\",TEXT(OrigTable!B1836,\"00\"))","v":""},{"$f":"IF(OrigTable!B1836=\"\",\"\",ScriptText!$E$1&CHAR(10)&ScriptText!C1831)","v":""},{"$f":"IF(OrigTable!C1836=\"\",\"\",ScriptText!$B$1&CHAR(10)&ScriptText!$D$1)","v":""},{"$f":"IF(OrigTable!C1836=\"\",\"\",IF(LEN(OrigTable!C1836)>255,LEFT(OrigTable!C1836,250)&\". . .\",OrigTable!C1836))","v":""},{"$f":"IF(OrigTable!C1836=\"\",\"\",ScriptText!$E$1&CHAR(10)&ScriptText!$C$1)","v":""},{"$f":"IF(OrigTable!D1836=\"\",\"\",ScriptText!$B$1&CHAR(10)&ScriptText!$D$1)","v":""},{"$f":"IF(OrigTable!D1836=\"\",\"\",TEXT(OrigTable!D1836,\"00\"))","v":""},{"$f":"IF(OrigTable!D1836=\"\",\"\",ScriptText!$E$1&CHAR(10)&ScriptText!$C$1)","v":""},{"$f":"IF(OrigTable!E1836=\"\",\"\",ScriptText!$B$1&CHAR(10)&ScriptText!$D$1)","v":""},{"$f":"IF(OrigTable!E1836=\"\",\"\",TEXT(OrigTable!E1836,\"00\"))","v":""},{"$f":"IF(OrigTable!E1836=\"\",\"\",ScriptText!$E$1&CHAR(10)&ScriptText!$C$1)","v":""},{"$f":"IF(OrigTable!F1836=\"\",\"\",ScriptText!$B$1&CHAR(10)&ScriptText!$D$1)","v":""},{"$f":"IF(OrigTable!F1836=\"\",\"\",TEXT(OrigTable!F1836,\"00\"))","v":""},{"$f":"IF(OrigTable!F1836=\"\",\"\",ScriptText!$E$1&CHAR(10)&ScriptText!$C$1)","v":""},{"$f":"IF(OrigTable!G1836=\"\",\"\",ScriptText!$B$1&CHAR(10)&ScriptText!$D$1)","v":""},{"$f":"IF(OrigTable!G1836=\"\",\"\",TEXT(OrigTable!G1836,\"00\"))","v":""},{"$f":"IF(OrigTable!G1836=\"\",\"\",ScriptText!$E$1&CHAR(10)&ScriptText!$C$1)","v":""},0]
["\n\n\n",{"$f":"IF(OrigTable!A1837=\"\",\"\",ScriptText!$B$1&CHAR(10)&ScriptText!$D$1)","v":""},{"$f":"IF(OrigTable!A1837=\"\",\"\",TEXT(OrigTable!A1837,\"00\"))","v":""},{"$f":"IF(OrigTable!A1837=\"\",\"\",ScriptText!$E$1&CHAR(10)&ScriptText!$C$1)","v":""},{"$f":"IF(OrigTable!B1837=\"\",\"\",ScriptText!$B$1&CHAR(10)&ScriptText!$D$1)","v":""},{"$f":"IF(OrigTable!B1837=\"\",\"\",TEXT(OrigTable!B1837,\"00\"))","v":""},{"$f":"IF(OrigTable!B1837=\"\",\"\",ScriptText!$E$1&CHAR(10)&ScriptText!C1832)","v":""},{"$f":"IF(OrigTable!C1837=\"\",\"\",ScriptText!$B$1&CHAR(10)&ScriptText!$D$1)","v":""},{"$f":"IF(OrigTable!C1837=\"\",\"\",IF(LEN(OrigTable!C1837)>255,LEFT(OrigTable!C1837,250)&\". . .\",OrigTable!C1837))","v":""},{"$f":"IF(OrigTable!C1837=\"\",\"\",ScriptText!$E$1&CHAR(10)&ScriptText!$C$1)","v":""},{"$f":"IF(OrigTable!D1837=\"\",\"\",ScriptText!$B$1&CHAR(10)&ScriptText!$D$1)","v":""},{"$f":"IF(OrigTable!D1837=\"\",\"\",TEXT(OrigTable!D1837,\"00\"))","v":""},{"$f":"IF(OrigTable!D1837=\"\",\"\",ScriptText!$E$1&CHAR(10)&ScriptText!$C$1)","v":""},{"$f":"IF(OrigTable!E1837=\"\",\"\",ScriptText!$B$1&CHAR(10)&ScriptText!$D$1)","v":""},{"$f":"IF(OrigTable!E1837=\"\",\"\",TEXT(OrigTable!E1837,\"00\"))","v":""},{"$f":"IF(OrigTable!E1837=\"\",\"\",ScriptText!$E$1&CHAR(10)&ScriptText!$C$1)","v":""},{"$f":"IF(OrigTable!F1837=\"\",\"\",ScriptText!$B$1&CHAR(10)&ScriptText!$D$1)","v":""},{"$f":"IF(OrigTable!F1837=\"\",\"\",TEXT(OrigTable!F1837,\"00\"))","v":""},{"$f":"IF(OrigTable!F1837=\"\",\"\",ScriptText!$E$1&CHAR(10)&ScriptText!$C$1)","v":""},{"$f":"IF(OrigTable!G1837=\"\",\"\",ScriptText!$B$1&CHAR(10)&ScriptText!$D$1)","v":""},{"$f":"IF(OrigTable!G1837=\"\",\"\",TEXT(OrigTable!G1837,\"00\"))","v":""},{"$f":"IF(OrigTable!G1837=\"\",\"\",ScriptText!$E$1&CHAR(10)&ScriptText!$C$1)","v":""},0]
["\n\n\n",{"$f":"IF(OrigTable!A1838=\"\",\"\",ScriptText!$B$1&CHAR(10)&ScriptText!$D$1)","v":""},{"$f":"IF(OrigTable!A1838=\"\",\"\",TEXT(OrigTable!A1838,\"00\"))","v":""},{"$f":"IF(OrigTable!A1838=\"\",\"\",ScriptText!$E$1&CHAR(10)&ScriptText!$C$1)","v":""},{"$f":"IF(OrigTable!B1838=\"\",\"\",ScriptText!$B$1&CHAR(10)&ScriptText!$D$1)","v":""},{"$f":"IF(OrigTable!B1838=\"\",\"\",TEXT(OrigTable!B1838,\"00\"))","v":""},{"$f":"IF(OrigTable!B1838=\"\",\"\",ScriptText!$E$1&CHAR(10)&ScriptText!C1833)","v":""},{"$f":"IF(OrigTable!C1838=\"\",\"\",ScriptText!$B$1&CHAR(10)&ScriptText!$D$1)","v":""},{"$f":"IF(OrigTable!C1838=\"\",\"\",IF(LEN(OrigTable!C1838)>255,LEFT(OrigTable!C1838,250)&\". . .\",OrigTable!C1838))","v":""},{"$f":"IF(OrigTable!C1838=\"\",\"\",ScriptText!$E$1&CHAR(10)&ScriptText!$C$1)","v":""},{"$f":"IF(OrigTable!D1838=\"\",\"\",ScriptText!$B$1&CHAR(10)&ScriptText!$D$1)","v":""},{"$f":"IF(OrigTable!D1838=\"\",\"\",TEXT(OrigTable!D1838,\"00\"))","v":""},{"$f":"IF(OrigTable!D1838=\"\",\"\",ScriptText!$E$1&CHAR(10)&ScriptText!$C$1)","v":""},{"$f":"IF(OrigTable!E1838=\"\",\"\",ScriptText!$B$1&CHAR(10)&ScriptText!$D$1)","v":""},{"$f":"IF(OrigTable!E1838=\"\",\"\",TEXT(OrigTable!E1838,\"00\"))","v":""},{"$f":"IF(OrigTable!E1838=\"\",\"\",ScriptText!$E$1&CHAR(10)&ScriptText!$C$1)","v":""},{"$f":"IF(OrigTable!F1838=\"\",\"\",ScriptText!$B$1&CHAR(10)&ScriptText!$D$1)","v":""},{"$f":"IF(OrigTable!F1838=\"\",\"\",TEXT(OrigTable!F1838,\"00\"))","v":""},{"$f":"IF(OrigTable!F1838=\"\",\"\",ScriptText!$E$1&CHAR(10)&ScriptText!$C$1)","v":""},{"$f":"IF(OrigTable!G1838=\"\",\"\",ScriptText!$B$1&CHAR(10)&ScriptText!$D$1)","v":""},{"$f":"IF(OrigTable!G1838=\"\",\"\",TEXT(OrigTable!G1838,\"00\"))","v":""},{"$f":"IF(OrigTable!G1838=\"\",\"\",ScriptText!$E$1&CHAR(10)&ScriptText!$C$1)","v":""},0]
["\n\n\n",{"$f":"IF(OrigTable!A1839=\"\",\"\",ScriptText!$B$1&CHAR(10)&ScriptText!$D$1)","v":""},{"$f":"IF(OrigTable!A1839=\"\",\"\",TEXT(OrigTable!A1839,\"00\"))","v":""},{"$f":"IF(OrigTable!A1839=\"\",\"\",ScriptText!$E$1&CHAR(10)&ScriptText!$C$1)","v":""},{"$f":"IF(OrigTable!B1839=\"\",\"\",ScriptText!$B$1&CHAR(10)&ScriptText!$D$1)","v":""},{"$f":"IF(OrigTable!B1839=\"\",\"\",TEXT(OrigTable!B1839,\"00\"))","v":""},{"$f":"IF(OrigTable!B1839=\"\",\"\",ScriptText!$E$1&CHAR(10)&ScriptText!C1834)","v":""},{"$f":"IF(OrigTable!C1839=\"\",\"\",ScriptText!$B$1&CHAR(10)&ScriptText!$D$1)","v":""},{"$f":"IF(OrigTable!C1839=\"\",\"\",IF(LEN(OrigTable!C1839)>255,LEFT(OrigTable!C1839,250)&\". . .\",OrigTable!C1839))","v":""},{"$f":"IF(OrigTable!C1839=\"\",\"\",ScriptText!$E$1&CHAR(10)&ScriptText!$C$1)","v":""},{"$f":"IF(OrigTable!D1839=\"\",\"\",ScriptText!$B$1&CHAR(10)&ScriptText!$D$1)","v":""},{"$f":"IF(OrigTable!D1839=\"\",\"\",TEXT(OrigTable!D1839,\"00\"))","v":""},{"$f":"IF(OrigTable!D1839=\"\",\"\",ScriptText!$E$1&CHAR(10)&ScriptText!$C$1)","v":""},{"$f":"IF(OrigTable!E1839=\"\",\"\",ScriptText!$B$1&CHAR(10)&ScriptText!$D$1)","v":""},{"$f":"IF(OrigTable!E1839=\"\",\"\",TEXT(OrigTable!E1839,\"00\"))","v":""},{"$f":"IF(OrigTable!E1839=\"\",\"\",ScriptText!$E$1&CHAR(10)&ScriptText!$C$1)","v":""},{"$f":"IF(OrigTable!F1839=\"\",\"\",ScriptText!$B$1&CHAR(10)&ScriptText!$D$1)","v":""},{"$f":"IF(OrigTable!F1839=\"\",\"\",TEXT(OrigTable!F1839,\"00\"))","v":""},{"$f":"IF(OrigTable!F1839=\"\",\"\",ScriptText!$E$1&CHAR(10)&ScriptText!$C$1)","v":""},{"$f":"IF(OrigTable!G1839=\"\",\"\",ScriptText!$B$1&CHAR(10)&ScriptText!$D$1)","v":""},{"$f":"IF(OrigTable!G1839=\"\",\"\",TEXT(OrigTable!G1839,\"00\"))","v":""},{"$f":"IF(OrigTable!G1839=\"\",\"\",ScriptText!$E$1&CHAR(10)&ScriptText!$C$1)","v":""},0]
["\n\n\n",{"$f":"IF(OrigTable!A1840=\"\",\"\",ScriptText!$B$1&CHAR(10)&ScriptText!$D$1)","v":""},{"$f":"IF(OrigTable!A1840=\"\",\"\",TEXT(OrigTable!A1840,\"00\"))","v":""},{"$f":"IF(OrigTable!A1840=\"\",\"\",ScriptText!$E$1&CHAR(10)&ScriptText!$C$1)","v":""},{"$f":"IF(OrigTable!B1840=\"\",\"\",ScriptText!$B$1&CHAR(10)&ScriptText!$D$1)","v":""},{"$f":"IF(OrigTable!B1840=\"\",\"\",TEXT(OrigTable!B1840,\"00\"))","v":""},{"$f":"IF(OrigTable!B1840=\"\",\"\",ScriptText!$E$1&CHAR(10)&ScriptText!C1835)","v":""},{"$f":"IF(OrigTable!C1840=\"\",\"\",ScriptText!$B$1&CHAR(10)&ScriptText!$D$1)","v":""},{"$f":"IF(OrigTable!C1840=\"\",\"\",IF(LEN(OrigTable!C1840)>255,LEFT(OrigTable!C1840,250)&\". . .\",OrigTable!C1840))","v":""},{"$f":"IF(OrigTable!C1840=\"\",\"\",ScriptText!$E$1&CHAR(10)&ScriptText!$C$1)","v":""},{"$f":"IF(OrigTable!D1840=\"\",\"\",ScriptText!$B$1&CHAR(10)&ScriptText!$D$1)","v":""},{"$f":"IF(OrigTable!D1840=\"\",\"\",TEXT(OrigTable!D1840,\"00\"))","v":""},{"$f":"IF(OrigTable!D1840=\"\",\"\",ScriptText!$E$1&CHAR(10)&ScriptText!$C$1)","v":""},{"$f":"IF(OrigTable!E1840=\"\",\"\",ScriptText!$B$1&CHAR(10)&ScriptText!$D$1)","v":""},{"$f":"IF(OrigTable!E1840=\"\",\"\",TEXT(OrigTable!E1840,\"00\"))","v":""},{"$f":"IF(OrigTable!E1840=\"\",\"\",ScriptText!$E$1&CHAR(10)&ScriptText!$C$1)","v":""},{"$f":"IF(OrigTable!F1840=\"\",\"\",ScriptText!$B$1&CHAR(10)&ScriptText!$D$1)","v":""},{"$f":"IF(OrigTable!F1840=\"\",\"\",TEXT(OrigTable!F1840,\"00\"))","v":""},{"$f":"IF(OrigTable!F1840=\"\",\"\",ScriptText!$E$1&CHAR(10)&ScriptText!$C$1)","v":""},{"$f":"IF(OrigTable!G1840=\"\",\"\",ScriptText!$B$1&CHAR(10)&ScriptText!$D$1)","v":""},{"$f":"IF(OrigTable!G1840=\"\",\"\",TEXT(OrigTable!G1840,\"00\"))","v":""},{"$f":"IF(OrigTable!G1840=\"\",\"\",ScriptText!$E$1&CHAR(10)&ScriptText!$C$1)","v":""},0]
["\n\n\n",{"$f":"IF(OrigTable!A1841=\"\",\"\",ScriptText!$B$1&CHAR(10)&ScriptText!$D$1)","v":""},{"$f":"IF(OrigTable!A1841=\"\",\"\",TEXT(OrigTable!A1841,\"00\"))","v":""},{"$f":"IF(OrigTable!A1841=\"\",\"\",ScriptText!$E$1&CHAR(10)&ScriptText!$C$1)","v":""},{"$f":"IF(OrigTable!B1841=\"\",\"\",ScriptText!$B$1&CHAR(10)&ScriptText!$D$1)","v":""},{"$f":"IF(OrigTable!B1841=\"\",\"\",TEXT(OrigTable!B1841,\"00\"))","v":""},{"$f":"IF(OrigTable!B1841=\"\",\"\",ScriptText!$E$1&CHAR(10)&ScriptText!C1836)","v":""},{"$f":"IF(OrigTable!C1841=\"\",\"\",ScriptText!$B$1&CHAR(10)&ScriptText!$D$1)","v":""},{"$f":"IF(OrigTable!C1841=\"\",\"\",IF(LEN(OrigTable!C1841)>255,LEFT(OrigTable!C1841,250)&\". . .\",OrigTable!C1841))","v":""},{"$f":"IF(OrigTable!C1841=\"\",\"\",ScriptText!$E$1&CHAR(10)&ScriptText!$C$1)","v":""},{"$f":"IF(OrigTable!D1841=\"\",\"\",ScriptText!$B$1&CHAR(10)&ScriptText!$D$1)","v":""},{"$f":"IF(OrigTable!D1841=\"\",\"\",TEXT(OrigTable!D1841,\"00\"))","v":""},{"$f":"IF(OrigTable!D1841=\"\",\"\",ScriptText!$E$1&CHAR(10)&ScriptText!$C$1)","v":""},{"$f":"IF(OrigTable!E1841=\"\",\"\",ScriptText!$B$1&CHAR(10)&ScriptText!$D$1)","v":""},{"$f":"IF(OrigTable!E1841=\"\",\"\",TEXT(OrigTable!E1841,\"00\"))","v":""},{"$f":"IF(OrigTable!E1841=\"\",\"\",ScriptText!$E$1&CHAR(10)&ScriptText!$C$1)","v":""},{"$f":"IF(OrigTable!F1841=\"\",\"\",ScriptText!$B$1&CHAR(10)&ScriptText!$D$1)","v":""},{"$f":"IF(OrigTable!F1841=\"\",\"\",TEXT(OrigTable!F1841,\"00\"))","v":""},{"$f":"IF(OrigTable!F1841=\"\",\"\",ScriptText!$E$1&CHAR(10)&ScriptText!$C$1)","v":""},{"$f":"IF(OrigTable!G1841=\"\",\"\",ScriptText!$B$1&CHAR(10)&ScriptText!$D$1)","v":""},{"$f":"IF(OrigTable!G1841=\"\",\"\",TEXT(OrigTable!G1841,\"00\"))","v":""},{"$f":"IF(OrigTable!G1841=\"\",\"\",ScriptText!$E$1&CHAR(10)&ScriptText!$C$1)","v":""},0]
["\n\n\n",{"$f":"IF(OrigTable!A1842=\"\",\"\",ScriptText!$B$1&CHAR(10)&ScriptText!$D$1)","v":""},{"$f":"IF(OrigTable!A1842=\"\",\"\",TEXT(OrigTable!A1842,\"00\"))","v":""},{"$f":"IF(OrigTable!A1842=\"\",\"\",ScriptText!$E$1&CHAR(10)&ScriptText!$C$1)","v":""},{"$f":"IF(OrigTable!B1842=\"\",\"\",ScriptText!$B$1&CHAR(10)&ScriptText!$D$1)","v":""},{"$f":"IF(OrigTable!B1842=\"\",\"\",TEXT(OrigTable!B1842,\"00\"))","v":""},{"$f":"IF(OrigTable!B1842=\"\",\"\",ScriptText!$E$1&CHAR(10)&ScriptText!C1837)","v":""},{"$f":"IF(OrigTable!C1842=\"\",\"\",ScriptText!$B$1&CHAR(10)&ScriptText!$D$1)","v":""},{"$f":"IF(OrigTable!C1842=\"\",\"\",IF(LEN(OrigTable!C1842)>255,LEFT(OrigTable!C1842,250)&\". . .\",OrigTable!C1842))","v":""},{"$f":"IF(OrigTable!C1842=\"\",\"\",ScriptText!$E$1&CHAR(10)&ScriptText!$C$1)","v":""},{"$f":"IF(OrigTable!D1842=\"\",\"\",ScriptText!$B$1&CHAR(10)&ScriptText!$D$1)","v":""},{"$f":"IF(OrigTable!D1842=\"\",\"\",TEXT(OrigTable!D1842,\"00\"))","v":""},{"$f":"IF(OrigTable!D1842=\"\",\"\",ScriptText!$E$1&CHAR(10)&ScriptText!$C$1)","v":""},{"$f":"IF(OrigTable!E1842=\"\",\"\",ScriptText!$B$1&CHAR(10)&ScriptText!$D$1)","v":""},{"$f":"IF(OrigTable!E1842=\"\",\"\",TEXT(OrigTable!E1842,\"00\"))","v":""},{"$f":"IF(OrigTable!E1842=\"\",\"\",ScriptText!$E$1&CHAR(10)&ScriptText!$C$1)","v":""},{"$f":"IF(OrigTable!F1842=\"\",\"\",ScriptText!$B$1&CHAR(10)&ScriptText!$D$1)","v":""},{"$f":"IF(OrigTable!F1842=\"\",\"\",TEXT(OrigTable!F1842,\"00\"))","v":""},{"$f":"IF(OrigTable!F1842=\"\",\"\",ScriptText!$E$1&CHAR(10)&ScriptText!$C$1)","v":""},{"$f":"IF(OrigTable!G1842=\"\",\"\",ScriptText!$B$1&CHAR(10)&ScriptText!$D$1)","v":""},{"$f":"IF(OrigTable!G1842=\"\",\"\",TEXT(OrigTable!G1842,\"00\"))","v":""},{"$f":"IF(OrigTable!G1842=\"\",\"\",ScriptText!$E$1&CHAR(10)&ScriptText!$C$1)","v":""},0]
["\n\n\n",{"$f":"IF(OrigTable!A1843=\"\",\"\",ScriptText!$B$1&CHAR(10)&ScriptText!$D$1)","v":""},{"$f":"IF(OrigTable!A1843=\"\",\"\",TEXT(OrigTable!A1843,\"00\"))","v":""},{"$f":"IF(OrigTable!A1843=\"\",\"\",ScriptText!$E$1&CHAR(10)&ScriptText!$C$1)","v":""},{"$f":"IF(OrigTable!B1843=\"\",\"\",ScriptText!$B$1&CHAR(10)&ScriptText!$D$1)","v":""},{"$f":"IF(OrigTable!B1843=\"\",\"\",TEXT(OrigTable!B1843,\"00\"))","v":""},{"$f":"IF(OrigTable!B1843=\"\",\"\",ScriptText!$E$1&CHAR(10)&ScriptText!C1838)","v":""},{"$f":"IF(OrigTable!C1843=\"\",\"\",ScriptText!$B$1&CHAR(10)&ScriptText!$D$1)","v":""},{"$f":"IF(OrigTable!C1843=\"\",\"\",IF(LEN(OrigTable!C1843)>255,LEFT(OrigTable!C1843,250)&\". . .\",OrigTable!C1843))","v":""},{"$f":"IF(OrigTable!C1843=\"\",\"\",ScriptText!$E$1&CHAR(10)&ScriptText!$C$1)","v":""},{"$f":"IF(OrigTable!D1843=\"\",\"\",ScriptText!$B$1&CHAR(10)&ScriptText!$D$1)","v":""},{"$f":"IF(OrigTable!D1843=\"\",\"\",TEXT(OrigTable!D1843,\"00\"))","v":""},{"$f":"IF(OrigTable!D1843=\"\",\"\",ScriptText!$E$1&CHAR(10)&ScriptText!$C$1)","v":""},{"$f":"IF(OrigTable!E1843=\"\",\"\",ScriptText!$B$1&CHAR(10)&ScriptText!$D$1)","v":""},{"$f":"IF(OrigTable!E1843=\"\",\"\",TEXT(OrigTable!E1843,\"00\"))","v":""},{"$f":"IF(OrigTable!E1843=\"\",\"\",ScriptText!$E$1&CHAR(10)&ScriptText!$C$1)","v":""},{"$f":"IF(OrigTable!F1843=\"\",\"\",ScriptText!$B$1&CHAR(10)&ScriptText!$D$1)","v":""},{"$f":"IF(OrigTable!F1843=\"\",\"\",TEXT(OrigTable!F1843,\"00\"))","v":""},{"$f":"IF(OrigTable!F1843=\"\",\"\",ScriptText!$E$1&CHAR(10)&ScriptText!$C$1)","v":""},{"$f":"IF(OrigTable!G1843=\"\",\"\",ScriptText!$B$1&CHAR(10)&ScriptText!$D$1)","v":""},{"$f":"IF(OrigTable!G1843=\"\",\"\",TEXT(OrigTable!G1843,\"00\"))","v":""},{"$f":"IF(OrigTable!G1843=\"\",\"\",ScriptText!$E$1&CHAR(10)&ScriptText!$C$1)","v":""},0]
["\n\n\n",{"$f":"IF(OrigTable!A1844=\"\",\"\",ScriptText!$B$1&CHAR(10)&ScriptText!$D$1)","v":""},{"$f":"IF(OrigTable!A1844=\"\",\"\",TEXT(OrigTable!A1844,\"00\"))","v":""},{"$f":"IF(OrigTable!A1844=\"\",\"\",ScriptText!$E$1&CHAR(10)&ScriptText!$C$1)","v":""},{"$f":"IF(OrigTable!B1844=\"\",\"\",ScriptText!$B$1&CHAR(10)&ScriptText!$D$1)","v":""},{"$f":"IF(OrigTable!B1844=\"\",\"\",TEXT(OrigTable!B1844,\"00\"))","v":""},{"$f":"IF(OrigTable!B1844=\"\",\"\",ScriptText!$E$1&CHAR(10)&ScriptText!C1839)","v":""},{"$f":"IF(OrigTable!C1844=\"\",\"\",ScriptText!$B$1&CHAR(10)&ScriptText!$D$1)","v":""},{"$f":"IF(OrigTable!C1844=\"\",\"\",IF(LEN(OrigTable!C1844)>255,LEFT(OrigTable!C1844,250)&\". . .\",OrigTable!C1844))","v":""},{"$f":"IF(OrigTable!C1844=\"\",\"\",ScriptText!$E$1&CHAR(10)&ScriptText!$C$1)","v":""},{"$f":"IF(OrigTable!D1844=\"\",\"\",ScriptText!$B$1&CHAR(10)&ScriptText!$D$1)","v":""},{"$f":"IF(OrigTable!D1844=\"\",\"\",TEXT(OrigTable!D1844,\"00\"))","v":""},{"$f":"IF(OrigTable!D1844=\"\",\"\",ScriptText!$E$1&CHAR(10)&ScriptText!$C$1)","v":""},{"$f":"IF(OrigTable!E1844=\"\",\"\",ScriptText!$B$1&CHAR(10)&ScriptText!$D$1)","v":""},{"$f":"IF(OrigTable!E1844=\"\",\"\",TEXT(OrigTable!E1844,\"00\"))","v":""},{"$f":"IF(OrigTable!E1844=\"\",\"\",ScriptText!$E$1&CHAR(10)&ScriptText!$C$1)","v":""},{"$f":"IF(OrigTable!F1844=\"\",\"\",ScriptText!$B$1&CHAR(10)&ScriptText!$D$1)","v":""},{"$f":"IF(OrigTable!F1844=\"\",\"\",TEXT(OrigTable!F1844,\"00\"))","v":""},{"$f":"IF(OrigTable!F1844=\"\",\"\",ScriptText!$E$1&CHAR(10)&ScriptText!$C$1)","v":""},{"$f":"IF(OrigTable!G1844=\"\",\"\",ScriptText!$B$1&CHAR(10)&ScriptText!$D$1)","v":""},{"$f":"IF(OrigTable!G1844=\"\",\"\",TEXT(OrigTable!G1844,\"00\"))","v":""},{"$f":"IF(OrigTable!G1844=\"\",\"\",ScriptText!$E$1&CHAR(10)&ScriptText!$C$1)","v":""},0]
["\n\n\n",{"$f":"IF(OrigTable!A1845=\"\",\"\",ScriptText!$B$1&CHAR(10)&ScriptText!$D$1)","v":""},{"$f":"IF(OrigTable!A1845=\"\",\"\",TEXT(OrigTable!A1845,\"00\"))","v":""},{"$f":"IF(OrigTable!A1845=\"\",\"\",ScriptText!$E$1&CHAR(10)&ScriptText!$C$1)","v":""},{"$f":"IF(OrigTable!B1845=\"\",\"\",ScriptText!$B$1&CHAR(10)&ScriptText!$D$1)","v":""},{"$f":"IF(OrigTable!B1845=\"\",\"\",TEXT(OrigTable!B1845,\"00\"))","v":""},{"$f":"IF(OrigTable!B1845=\"\",\"\",ScriptText!$E$1&CHAR(10)&ScriptText!C1840)","v":""},{"$f":"IF(OrigTable!C1845=\"\",\"\",ScriptText!$B$1&CHAR(10)&ScriptText!$D$1)","v":""},{"$f":"IF(OrigTable!C1845=\"\",\"\",IF(LEN(OrigTable!C1845)>255,LEFT(OrigTable!C1845,250)&\". . .\",OrigTable!C1845))","v":""},{"$f":"IF(OrigTable!C1845=\"\",\"\",ScriptText!$E$1&CHAR(10)&ScriptText!$C$1)","v":""},{"$f":"IF(OrigTable!D1845=\"\",\"\",ScriptText!$B$1&CHAR(10)&ScriptText!$D$1)","v":""},{"$f":"IF(OrigTable!D1845=\"\",\"\",TEXT(OrigTable!D1845,\"00\"))","v":""},{"$f":"IF(OrigTable!D1845=\"\",\"\",ScriptText!$E$1&CHAR(10)&ScriptText!$C$1)","v":""},{"$f":"IF(OrigTable!E1845=\"\",\"\",ScriptText!$B$1&CHAR(10)&ScriptText!$D$1)","v":""},{"$f":"IF(OrigTable!E1845=\"\",\"\",TEXT(OrigTable!E1845,\"00\"))","v":""},{"$f":"IF(OrigTable!E1845=\"\",\"\",ScriptText!$E$1&CHAR(10)&ScriptText!$C$1)","v":""},{"$f":"IF(OrigTable!F1845=\"\",\"\",ScriptText!$B$1&CHAR(10)&ScriptText!$D$1)","v":""},{"$f":"IF(OrigTable!F1845=\"\",\"\",TEXT(OrigTable!F1845,\"00\"))","v":""},{"$f":"IF(OrigTable!F1845=\"\",\"\",ScriptText!$E$1&CHAR(10)&ScriptText!$C$1)","v":""},{"$f":"IF(OrigTable!G1845=\"\",\"\",ScriptText!$B$1&CHAR(10)&ScriptText!$D$1)","v":""},{"$f":"IF(OrigTable!G1845=\"\",\"\",TEXT(OrigTable!G1845,\"00\"))","v":""},{"$f":"IF(OrigTable!G1845=\"\",\"\",ScriptText!$E$1&CHAR(10)&ScriptText!$C$1)","v":""},0]
["\n\n\n",{"$f":"IF(OrigTable!A1846=\"\",\"\",ScriptText!$B$1&CHAR(10)&ScriptText!$D$1)","v":""},{"$f":"IF(OrigTable!A1846=\"\",\"\",TEXT(OrigTable!A1846,\"00\"))","v":""},{"$f":"IF(OrigTable!A1846=\"\",\"\",ScriptText!$E$1&CHAR(10)&ScriptText!$C$1)","v":""},{"$f":"IF(OrigTable!B1846=\"\",\"\",ScriptText!$B$1&CHAR(10)&ScriptText!$D$1)","v":""},{"$f":"IF(OrigTable!B1846=\"\",\"\",TEXT(OrigTable!B1846,\"00\"))","v":""},{"$f":"IF(OrigTable!B1846=\"\",\"\",ScriptText!$E$1&CHAR(10)&ScriptText!C1841)","v":""},{"$f":"IF(OrigTable!C1846=\"\",\"\",ScriptText!$B$1&CHAR(10)&ScriptText!$D$1)","v":""},{"$f":"IF(OrigTable!C1846=\"\",\"\",IF(LEN(OrigTable!C1846)>255,LEFT(OrigTable!C1846,250)&\". . .\",OrigTable!C1846))","v":""},{"$f":"IF(OrigTable!C1846=\"\",\"\",ScriptText!$E$1&CHAR(10)&ScriptText!$C$1)","v":""},{"$f":"IF(OrigTable!D1846=\"\",\"\",ScriptText!$B$1&CHAR(10)&ScriptText!$D$1)","v":""},{"$f":"IF(OrigTable!D1846=\"\",\"\",TEXT(OrigTable!D1846,\"00\"))","v":""},{"$f":"IF(OrigTable!D1846=\"\",\"\",ScriptText!$E$1&CHAR(10)&ScriptText!$C$1)","v":""},{"$f":"IF(OrigTable!E1846=\"\",\"\",ScriptText!$B$1&CHAR(10)&ScriptText!$D$1)","v":""},{"$f":"IF(OrigTable!E1846=\"\",\"\",TEXT(OrigTable!E1846,\"00\"))","v":""},{"$f":"IF(OrigTable!E1846=\"\",\"\",ScriptText!$E$1&CHAR(10)&ScriptText!$C$1)","v":""},{"$f":"IF(OrigTable!F1846=\"\",\"\",ScriptText!$B$1&CHAR(10)&ScriptText!$D$1)","v":""},{"$f":"IF(OrigTable!F1846=\"\",\"\",TEXT(OrigTable!F1846,\"00\"))","v":""},{"$f":"IF(OrigTable!F1846=\"\",\"\",ScriptText!$E$1&CHAR(10)&ScriptText!$C$1)","v":""},{"$f":"IF(OrigTable!G1846=\"\",\"\",ScriptText!$B$1&CHAR(10)&ScriptText!$D$1)","v":""},{"$f":"IF(OrigTable!G1846=\"\",\"\",TEXT(OrigTable!G1846,\"00\"))","v":""},{"$f":"IF(OrigTable!G1846=\"\",\"\",ScriptText!$E$1&CHAR(10)&ScriptText!$C$1)","v":""},0]
["\n\n\n",{"$f":"IF(OrigTable!A1847=\"\",\"\",ScriptText!$B$1&CHAR(10)&ScriptText!$D$1)","v":""},{"$f":"IF(OrigTable!A1847=\"\",\"\",TEXT(OrigTable!A1847,\"00\"))","v":""},{"$f":"IF(OrigTable!A1847=\"\",\"\",ScriptText!$E$1&CHAR(10)&ScriptText!$C$1)","v":""},{"$f":"IF(OrigTable!B1847=\"\",\"\",ScriptText!$B$1&CHAR(10)&ScriptText!$D$1)","v":""},{"$f":"IF(OrigTable!B1847=\"\",\"\",TEXT(OrigTable!B1847,\"00\"))","v":""},{"$f":"IF(OrigTable!B1847=\"\",\"\",ScriptText!$E$1&CHAR(10)&ScriptText!C1842)","v":""},{"$f":"IF(OrigTable!C1847=\"\",\"\",ScriptText!$B$1&CHAR(10)&ScriptText!$D$1)","v":""},{"$f":"IF(OrigTable!C1847=\"\",\"\",IF(LEN(OrigTable!C1847)>255,LEFT(OrigTable!C1847,250)&\". . .\",OrigTable!C1847))","v":""},{"$f":"IF(OrigTable!C1847=\"\",\"\",ScriptText!$E$1&CHAR(10)&ScriptText!$C$1)","v":""},{"$f":"IF(OrigTable!D1847=\"\",\"\",ScriptText!$B$1&CHAR(10)&ScriptText!$D$1)","v":""},{"$f":"IF(OrigTable!D1847=\"\",\"\",TEXT(OrigTable!D1847,\"00\"))","v":""},{"$f":"IF(OrigTable!D1847=\"\",\"\",ScriptText!$E$1&CHAR(10)&ScriptText!$C$1)","v":""},{"$f":"IF(OrigTable!E1847=\"\",\"\",ScriptText!$B$1&CHAR(10)&ScriptText!$D$1)","v":""},{"$f":"IF(OrigTable!E1847=\"\",\"\",TEXT(OrigTable!E1847,\"00\"))","v":""},{"$f":"IF(OrigTable!E1847=\"\",\"\",ScriptText!$E$1&CHAR(10)&ScriptText!$C$1)","v":""},{"$f":"IF(OrigTable!F1847=\"\",\"\",ScriptText!$B$1&CHAR(10)&ScriptText!$D$1)","v":""},{"$f":"IF(OrigTable!F1847=\"\",\"\",TEXT(OrigTable!F1847,\"00\"))","v":""},{"$f":"IF(OrigTable!F1847=\"\",\"\",ScriptText!$E$1&CHAR(10)&ScriptText!$C$1)","v":""},{"$f":"IF(OrigTable!G1847=\"\",\"\",ScriptText!$B$1&CHAR(10)&ScriptText!$D$1)","v":""},{"$f":"IF(OrigTable!G1847=\"\",\"\",TEXT(OrigTable!G1847,\"00\"))","v":""},{"$f":"IF(OrigTable!G1847=\"\",\"\",ScriptText!$E$1&CHAR(10)&ScriptText!$C$1)","v":""},0]
["\n\n\n",{"$f":"IF(OrigTable!A1848=\"\",\"\",ScriptText!$B$1&CHAR(10)&ScriptText!$D$1)","v":""},{"$f":"IF(OrigTable!A1848=\"\",\"\",TEXT(OrigTable!A1848,\"00\"))","v":""},{"$f":"IF(OrigTable!A1848=\"\",\"\",ScriptText!$E$1&CHAR(10)&ScriptText!$C$1)","v":""},{"$f":"IF(OrigTable!B1848=\"\",\"\",ScriptText!$B$1&CHAR(10)&ScriptText!$D$1)","v":""},{"$f":"IF(OrigTable!B1848=\"\",\"\",TEXT(OrigTable!B1848,\"00\"))","v":""},{"$f":"IF(OrigTable!B1848=\"\",\"\",ScriptText!$E$1&CHAR(10)&ScriptText!C1843)","v":""},{"$f":"IF(OrigTable!C1848=\"\",\"\",ScriptText!$B$1&CHAR(10)&ScriptText!$D$1)","v":""},{"$f":"IF(OrigTable!C1848=\"\",\"\",IF(LEN(OrigTable!C1848)>255,LEFT(OrigTable!C1848,250)&\". . .\",OrigTable!C1848))","v":""},{"$f":"IF(OrigTable!C1848=\"\",\"\",ScriptText!$E$1&CHAR(10)&ScriptText!$C$1)","v":""},{"$f":"IF(OrigTable!D1848=\"\",\"\",ScriptText!$B$1&CHAR(10)&ScriptText!$D$1)","v":""},{"$f":"IF(OrigTable!D1848=\"\",\"\",TEXT(OrigTable!D1848,\"00\"))","v":""},{"$f":"IF(OrigTable!D1848=\"\",\"\",ScriptText!$E$1&CHAR(10)&ScriptText!$C$1)","v":""},{"$f":"IF(OrigTable!E1848=\"\",\"\",ScriptText!$B$1&CHAR(10)&ScriptText!$D$1)","v":""},{"$f":"IF(OrigTable!E1848=\"\",\"\",TEXT(OrigTable!E1848,\"00\"))","v":""},{"$f":"IF(OrigTable!E1848=\"\",\"\",ScriptText!$E$1&CHAR(10)&ScriptText!$C$1)","v":""},{"$f":"IF(OrigTable!F1848=\"\",\"\",ScriptText!$B$1&CHAR(10)&ScriptText!$D$1)","v":""},{"$f":"IF(OrigTable!F1848=\"\",\"\",TEXT(OrigTable!F1848,\"00\"))","v":""},{"$f":"IF(OrigTable!F1848=\"\",\"\",ScriptText!$E$1&CHAR(10)&ScriptText!$C$1)","v":""},{"$f":"IF(OrigTable!G1848=\"\",\"\",ScriptText!$B$1&CHAR(10)&ScriptText!$D$1)","v":""},{"$f":"IF(OrigTable!G1848=\"\",\"\",TEXT(OrigTable!G1848,\"00\"))","v":""},{"$f":"IF(OrigTable!G1848=\"\",\"\",ScriptText!$E$1&CHAR(10)&ScriptText!$C$1)","v":""},0]
["\n\n\n",{"$f":"IF(OrigTable!A1849=\"\",\"\",ScriptText!$B$1&CHAR(10)&ScriptText!$D$1)","v":""},{"$f":"IF(OrigTable!A1849=\"\",\"\",TEXT(OrigTable!A1849,\"00\"))","v":""},{"$f":"IF(OrigTable!A1849=\"\",\"\",ScriptText!$E$1&CHAR(10)&ScriptText!$C$1)","v":""},{"$f":"IF(OrigTable!B1849=\"\",\"\",ScriptText!$B$1&CHAR(10)&ScriptText!$D$1)","v":""},{"$f":"IF(OrigTable!B1849=\"\",\"\",TEXT(OrigTable!B1849,\"00\"))","v":""},{"$f":"IF(OrigTable!B1849=\"\",\"\",ScriptText!$E$1&CHAR(10)&ScriptText!C1844)","v":""},{"$f":"IF(OrigTable!C1849=\"\",\"\",ScriptText!$B$1&CHAR(10)&ScriptText!$D$1)","v":""},{"$f":"IF(OrigTable!C1849=\"\",\"\",IF(LEN(OrigTable!C1849)>255,LEFT(OrigTable!C1849,250)&\". . .\",OrigTable!C1849))","v":""},{"$f":"IF(OrigTable!C1849=\"\",\"\",ScriptText!$E$1&CHAR(10)&ScriptText!$C$1)","v":""},{"$f":"IF(OrigTable!D1849=\"\",\"\",ScriptText!$B$1&CHAR(10)&ScriptText!$D$1)","v":""},{"$f":"IF(OrigTable!D1849=\"\",\"\",TEXT(OrigTable!D1849,\"00\"))","v":""},{"$f":"IF(OrigTable!D1849=\"\",\"\",ScriptText!$E$1&CHAR(10)&ScriptText!$C$1)","v":""},{"$f":"IF(OrigTable!E1849=\"\",\"\",ScriptText!$B$1&CHAR(10)&ScriptText!$D$1)","v":""},{"$f":"IF(OrigTable!E1849=\"\",\"\",TEXT(OrigTable!E1849,\"00\"))","v":""},{"$f":"IF(OrigTable!E1849=\"\",\"\",ScriptText!$E$1&CHAR(10)&ScriptText!$C$1)","v":""},{"$f":"IF(OrigTable!F1849=\"\",\"\",ScriptText!$B$1&CHAR(10)&ScriptText!$D$1)","v":""},{"$f":"IF(OrigTable!F1849=\"\",\"\",TEXT(OrigTable!F1849,\"00\"))","v":""},{"$f":"IF(OrigTable!F1849=\"\",\"\",ScriptText!$E$1&CHAR(10)&ScriptText!$C$1)","v":""},{"$f":"IF(OrigTable!G1849=\"\",\"\",ScriptText!$B$1&CHAR(10)&ScriptText!$D$1)","v":""},{"$f":"IF(OrigTable!G1849=\"\",\"\",TEXT(OrigTable!G1849,\"00\"))","v":""},{"$f":"IF(OrigTable!G1849=\"\",\"\",ScriptText!$E$1&CHAR(10)&ScriptText!$C$1)","v":""},0]
["\n\n\n",{"$f":"IF(OrigTable!A1850=\"\",\"\",ScriptText!$B$1&CHAR(10)&ScriptText!$D$1)","v":""},{"$f":"IF(OrigTable!A1850=\"\",\"\",TEXT(OrigTable!A1850,\"00\"))","v":""},{"$f":"IF(OrigTable!A1850=\"\",\"\",ScriptText!$E$1&CHAR(10)&ScriptText!$C$1)","v":""},{"$f":"IF(OrigTable!B1850=\"\",\"\",ScriptText!$B$1&CHAR(10)&ScriptText!$D$1)","v":""},{"$f":"IF(OrigTable!B1850=\"\",\"\",TEXT(OrigTable!B1850,\"00\"))","v":""},{"$f":"IF(OrigTable!B1850=\"\",\"\",ScriptText!$E$1&CHAR(10)&ScriptText!C1845)","v":""},{"$f":"IF(OrigTable!C1850=\"\",\"\",ScriptText!$B$1&CHAR(10)&ScriptText!$D$1)","v":""},{"$f":"IF(OrigTable!C1850=\"\",\"\",IF(LEN(OrigTable!C1850)>255,LEFT(OrigTable!C1850,250)&\". . .\",OrigTable!C1850))","v":""},{"$f":"IF(OrigTable!C1850=\"\",\"\",ScriptText!$E$1&CHAR(10)&ScriptText!$C$1)","v":""},{"$f":"IF(OrigTable!D1850=\"\",\"\",ScriptText!$B$1&CHAR(10)&ScriptText!$D$1)","v":""},{"$f":"IF(OrigTable!D1850=\"\",\"\",TEXT(OrigTable!D1850,\"00\"))","v":""},{"$f":"IF(OrigTable!D1850=\"\",\"\",ScriptText!$E$1&CHAR(10)&ScriptText!$C$1)","v":""},{"$f":"IF(OrigTable!E1850=\"\",\"\",ScriptText!$B$1&CHAR(10)&ScriptText!$D$1)","v":""},{"$f":"IF(OrigTable!E1850=\"\",\"\",TEXT(OrigTable!E1850,\"00\"))","v":""},{"$f":"IF(OrigTable!E1850=\"\",\"\",ScriptText!$E$1&CHAR(10)&ScriptText!$C$1)","v":""},{"$f":"IF(OrigTable!F1850=\"\",\"\",ScriptText!$B$1&CHAR(10)&ScriptText!$D$1)","v":""},{"$f":"IF(OrigTable!F1850=\"\",\"\",TEXT(OrigTable!F1850,\"00\"))","v":""},{"$f":"IF(OrigTable!F1850=\"\",\"\",ScriptText!$E$1&CHAR(10)&ScriptText!$C$1)","v":""},{"$f":"IF(OrigTable!G1850=\"\",\"\",ScriptText!$B$1&CHAR(10)&ScriptText!$D$1)","v":""},{"$f":"IF(OrigTable!G1850=\"\",\"\",TEXT(OrigTable!G1850,\"00\"))","v":""},{"$f":"IF(OrigTable!G1850=\"\",\"\",ScriptText!$E$1&CHAR(10)&ScriptText!$C$1)","v":""},0]
["\n\n\n",{"$f":"IF(OrigTable!A1851=\"\",\"\",ScriptText!$B$1&CHAR(10)&ScriptText!$D$1)","v":""},{"$f":"IF(OrigTable!A1851=\"\",\"\",TEXT(OrigTable!A1851,\"00\"))","v":""},{"$f":"IF(OrigTable!A1851=\"\",\"\",ScriptText!$E$1&CHAR(10)&ScriptText!$C$1)","v":""},{"$f":"IF(OrigTable!B1851=\"\",\"\",ScriptText!$B$1&CHAR(10)&ScriptText!$D$1)","v":""},{"$f":"IF(OrigTable!B1851=\"\",\"\",TEXT(OrigTable!B1851,\"00\"))","v":""},{"$f":"IF(OrigTable!B1851=\"\",\"\",ScriptText!$E$1&CHAR(10)&ScriptText!C1846)","v":""},{"$f":"IF(OrigTable!C1851=\"\",\"\",ScriptText!$B$1&CHAR(10)&ScriptText!$D$1)","v":""},{"$f":"IF(OrigTable!C1851=\"\",\"\",IF(LEN(OrigTable!C1851)>255,LEFT(OrigTable!C1851,250)&\". . .\",OrigTable!C1851))","v":""},{"$f":"IF(OrigTable!C1851=\"\",\"\",ScriptText!$E$1&CHAR(10)&ScriptText!$C$1)","v":""},{"$f":"IF(OrigTable!D1851=\"\",\"\",ScriptText!$B$1&CHAR(10)&ScriptText!$D$1)","v":""},{"$f":"IF(OrigTable!D1851=\"\",\"\",TEXT(OrigTable!D1851,\"00\"))","v":""},{"$f":"IF(OrigTable!D1851=\"\",\"\",ScriptText!$E$1&CHAR(10)&ScriptText!$C$1)","v":""},{"$f":"IF(OrigTable!E1851=\"\",\"\",ScriptText!$B$1&CHAR(10)&ScriptText!$D$1)","v":""},{"$f":"IF(OrigTable!E1851=\"\",\"\",TEXT(OrigTable!E1851,\"00\"))","v":""},{"$f":"IF(OrigTable!E1851=\"\",\"\",ScriptText!$E$1&CHAR(10)&ScriptText!$C$1)","v":""},{"$f":"IF(OrigTable!F1851=\"\",\"\",ScriptText!$B$1&CHAR(10)&ScriptText!$D$1)","v":""},{"$f":"IF(OrigTable!F1851=\"\",\"\",TEXT(OrigTable!F1851,\"00\"))","v":""},{"$f":"IF(OrigTable!F1851=\"\",\"\",ScriptText!$E$1&CHAR(10)&ScriptText!$C$1)","v":""},{"$f":"IF(OrigTable!G1851=\"\",\"\",ScriptText!$B$1&CHAR(10)&ScriptText!$D$1)","v":""},{"$f":"IF(OrigTable!G1851=\"\",\"\",TEXT(OrigTable!G1851,\"00\"))","v":""},{"$f":"IF(OrigTable!G1851=\"\",\"\",ScriptText!$E$1&CHAR(10)&ScriptText!$C$1)","v":""},0]
["\n\n\n",{"$f":"IF(OrigTable!A1852=\"\",\"\",ScriptText!$B$1&CHAR(10)&ScriptText!$D$1)","v":""},{"$f":"IF(OrigTable!A1852=\"\",\"\",TEXT(OrigTable!A1852,\"00\"))","v":""},{"$f":"IF(OrigTable!A1852=\"\",\"\",ScriptText!$E$1&CHAR(10)&ScriptText!$C$1)","v":""},{"$f":"IF(OrigTable!B1852=\"\",\"\",ScriptText!$B$1&CHAR(10)&ScriptText!$D$1)","v":""},{"$f":"IF(OrigTable!B1852=\"\",\"\",TEXT(OrigTable!B1852,\"00\"))","v":""},{"$f":"IF(OrigTable!B1852=\"\",\"\",ScriptText!$E$1&CHAR(10)&ScriptText!C1847)","v":""},{"$f":"IF(OrigTable!C1852=\"\",\"\",ScriptText!$B$1&CHAR(10)&ScriptText!$D$1)","v":""},{"$f":"IF(OrigTable!C1852=\"\",\"\",IF(LEN(OrigTable!C1852)>255,LEFT(OrigTable!C1852,250)&\". . .\",OrigTable!C1852))","v":""},{"$f":"IF(OrigTable!C1852=\"\",\"\",ScriptText!$E$1&CHAR(10)&ScriptText!$C$1)","v":""},{"$f":"IF(OrigTable!D1852=\"\",\"\",ScriptText!$B$1&CHAR(10)&ScriptText!$D$1)","v":""},{"$f":"IF(OrigTable!D1852=\"\",\"\",TEXT(OrigTable!D1852,\"00\"))","v":""},{"$f":"IF(OrigTable!D1852=\"\",\"\",ScriptText!$E$1&CHAR(10)&ScriptText!$C$1)","v":""},{"$f":"IF(OrigTable!E1852=\"\",\"\",ScriptText!$B$1&CHAR(10)&ScriptText!$D$1)","v":""},{"$f":"IF(OrigTable!E1852=\"\",\"\",TEXT(OrigTable!E1852,\"00\"))","v":""},{"$f":"IF(OrigTable!E1852=\"\",\"\",ScriptText!$E$1&CHAR(10)&ScriptText!$C$1)","v":""},{"$f":"IF(OrigTable!F1852=\"\",\"\",ScriptText!$B$1&CHAR(10)&ScriptText!$D$1)","v":""},{"$f":"IF(OrigTable!F1852=\"\",\"\",TEXT(OrigTable!F1852,\"00\"))","v":""},{"$f":"IF(OrigTable!F1852=\"\",\"\",ScriptText!$E$1&CHAR(10)&ScriptText!$C$1)","v":""},{"$f":"IF(OrigTable!G1852=\"\",\"\",ScriptText!$B$1&CHAR(10)&ScriptText!$D$1)","v":""},{"$f":"IF(OrigTable!G1852=\"\",\"\",TEXT(OrigTable!G1852,\"00\"))","v":""},{"$f":"IF(OrigTable!G1852=\"\",\"\",ScriptText!$E$1&CHAR(10)&ScriptText!$C$1)","v":""},0]
["\n\n\n",{"$f":"IF(OrigTable!A1853=\"\",\"\",ScriptText!$B$1&CHAR(10)&ScriptText!$D$1)","v":""},{"$f":"IF(OrigTable!A1853=\"\",\"\",TEXT(OrigTable!A1853,\"00\"))","v":""},{"$f":"IF(OrigTable!A1853=\"\",\"\",ScriptText!$E$1&CHAR(10)&ScriptText!$C$1)","v":""},{"$f":"IF(OrigTable!B1853=\"\",\"\",ScriptText!$B$1&CHAR(10)&ScriptText!$D$1)","v":""},{"$f":"IF(OrigTable!B1853=\"\",\"\",TEXT(OrigTable!B1853,\"00\"))","v":""},{"$f":"IF(OrigTable!B1853=\"\",\"\",ScriptText!$E$1&CHAR(10)&ScriptText!C1848)","v":""},{"$f":"IF(OrigTable!C1853=\"\",\"\",ScriptText!$B$1&CHAR(10)&ScriptText!$D$1)","v":""},{"$f":"IF(OrigTable!C1853=\"\",\"\",IF(LEN(OrigTable!C1853)>255,LEFT(OrigTable!C1853,250)&\". . .\",OrigTable!C1853))","v":""},{"$f":"IF(OrigTable!C1853=\"\",\"\",ScriptText!$E$1&CHAR(10)&ScriptText!$C$1)","v":""},{"$f":"IF(OrigTable!D1853=\"\",\"\",ScriptText!$B$1&CHAR(10)&ScriptText!$D$1)","v":""},{"$f":"IF(OrigTable!D1853=\"\",\"\",TEXT(OrigTable!D1853,\"00\"))","v":""},{"$f":"IF(OrigTable!D1853=\"\",\"\",ScriptText!$E$1&CHAR(10)&ScriptText!$C$1)","v":""},{"$f":"IF(OrigTable!E1853=\"\",\"\",ScriptText!$B$1&CHAR(10)&ScriptText!$D$1)","v":""},{"$f":"IF(OrigTable!E1853=\"\",\"\",TEXT(OrigTable!E1853,\"00\"))","v":""},{"$f":"IF(OrigTable!E1853=\"\",\"\",ScriptText!$E$1&CHAR(10)&ScriptText!$C$1)","v":""},{"$f":"IF(OrigTable!F1853=\"\",\"\",ScriptText!$B$1&CHAR(10)&ScriptText!$D$1)","v":""},{"$f":"IF(OrigTable!F1853=\"\",\"\",TEXT(OrigTable!F1853,\"00\"))","v":""},{"$f":"IF(OrigTable!F1853=\"\",\"\",ScriptText!$E$1&CHAR(10)&ScriptText!$C$1)","v":""},{"$f":"IF(OrigTable!G1853=\"\",\"\",ScriptText!$B$1&CHAR(10)&ScriptText!$D$1)","v":""},{"$f":"IF(OrigTable!G1853=\"\",\"\",TEXT(OrigTable!G1853,\"00\"))","v":""},{"$f":"IF(OrigTable!G1853=\"\",\"\",ScriptText!$E$1&CHAR(10)&ScriptText!$C$1)","v":""},0]
["\n\n\n",{"$f":"IF(OrigTable!A1854=\"\",\"\",ScriptText!$B$1&CHAR(10)&ScriptText!$D$1)","v":""},{"$f":"IF(OrigTable!A1854=\"\",\"\",TEXT(OrigTable!A1854,\"00\"))","v":""},{"$f":"IF(OrigTable!A1854=\"\",\"\",ScriptText!$E$1&CHAR(10)&ScriptText!$C$1)","v":""},{"$f":"IF(OrigTable!B1854=\"\",\"\",ScriptText!$B$1&CHAR(10)&ScriptText!$D$1)","v":""},{"$f":"IF(OrigTable!B1854=\"\",\"\",TEXT(OrigTable!B1854,\"00\"))","v":""},{"$f":"IF(OrigTable!B1854=\"\",\"\",ScriptText!$E$1&CHAR(10)&ScriptText!C1849)","v":""},{"$f":"IF(OrigTable!C1854=\"\",\"\",ScriptText!$B$1&CHAR(10)&ScriptText!$D$1)","v":""},{"$f":"IF(OrigTable!C1854=\"\",\"\",IF(LEN(OrigTable!C1854)>255,LEFT(OrigTable!C1854,250)&\". . .\",OrigTable!C1854))","v":""},{"$f":"IF(OrigTable!C1854=\"\",\"\",ScriptText!$E$1&CHAR(10)&ScriptText!$C$1)","v":""},{"$f":"IF(OrigTable!D1854=\"\",\"\",ScriptText!$B$1&CHAR(10)&ScriptText!$D$1)","v":""},{"$f":"IF(OrigTable!D1854=\"\",\"\",TEXT(OrigTable!D1854,\"00\"))","v":""},{"$f":"IF(OrigTable!D1854=\"\",\"\",ScriptText!$E$1&CHAR(10)&ScriptText!$C$1)","v":""},{"$f":"IF(OrigTable!E1854=\"\",\"\",ScriptText!$B$1&CHAR(10)&ScriptText!$D$1)","v":""},{"$f":"IF(OrigTable!E1854=\"\",\"\",TEXT(OrigTable!E1854,\"00\"))","v":""},{"$f":"IF(OrigTable!E1854=\"\",\"\",ScriptText!$E$1&CHAR(10)&ScriptText!$C$1)","v":""},{"$f":"IF(OrigTable!F1854=\"\",\"\",ScriptText!$B$1&CHAR(10)&ScriptText!$D$1)","v":""},{"$f":"IF(OrigTable!F1854=\"\",\"\",TEXT(OrigTable!F1854,\"00\"))","v":""},{"$f":"IF(OrigTable!F1854=\"\",\"\",ScriptText!$E$1&CHAR(10)&ScriptText!$C$1)","v":""},{"$f":"IF(OrigTable!G1854=\"\",\"\",ScriptText!$B$1&CHAR(10)&ScriptText!$D$1)","v":""},{"$f":"IF(OrigTable!G1854=\"\",\"\",TEXT(OrigTable!G1854,\"00\"))","v":""},{"$f":"IF(OrigTable!G1854=\"\",\"\",ScriptText!$E$1&CHAR(10)&ScriptText!$C$1)","v":""},0]
["\n\n\n",{"$f":"IF(OrigTable!A1855=\"\",\"\",ScriptText!$B$1&CHAR(10)&ScriptText!$D$1)","v":""},{"$f":"IF(OrigTable!A1855=\"\",\"\",TEXT(OrigTable!A1855,\"00\"))","v":""},{"$f":"IF(OrigTable!A1855=\"\",\"\",ScriptText!$E$1&CHAR(10)&ScriptText!$C$1)","v":""},{"$f":"IF(OrigTable!B1855=\"\",\"\",ScriptText!$B$1&CHAR(10)&ScriptText!$D$1)","v":""},{"$f":"IF(OrigTable!B1855=\"\",\"\",TEXT(OrigTable!B1855,\"00\"))","v":""},{"$f":"IF(OrigTable!B1855=\"\",\"\",ScriptText!$E$1&CHAR(10)&ScriptText!C1850)","v":""},{"$f":"IF(OrigTable!C1855=\"\",\"\",ScriptText!$B$1&CHAR(10)&ScriptText!$D$1)","v":""},{"$f":"IF(OrigTable!C1855=\"\",\"\",IF(LEN(OrigTable!C1855)>255,LEFT(OrigTable!C1855,250)&\". . .\",OrigTable!C1855))","v":""},{"$f":"IF(OrigTable!C1855=\"\",\"\",ScriptText!$E$1&CHAR(10)&ScriptText!$C$1)","v":""},{"$f":"IF(OrigTable!D1855=\"\",\"\",ScriptText!$B$1&CHAR(10)&ScriptText!$D$1)","v":""},{"$f":"IF(OrigTable!D1855=\"\",\"\",TEXT(OrigTable!D1855,\"00\"))","v":""},{"$f":"IF(OrigTable!D1855=\"\",\"\",ScriptText!$E$1&CHAR(10)&ScriptText!$C$1)","v":""},{"$f":"IF(OrigTable!E1855=\"\",\"\",ScriptText!$B$1&CHAR(10)&ScriptText!$D$1)","v":""},{"$f":"IF(OrigTable!E1855=\"\",\"\",TEXT(OrigTable!E1855,\"00\"))","v":""},{"$f":"IF(OrigTable!E1855=\"\",\"\",ScriptText!$E$1&CHAR(10)&ScriptText!$C$1)","v":""},{"$f":"IF(OrigTable!F1855=\"\",\"\",ScriptText!$B$1&CHAR(10)&ScriptText!$D$1)","v":""},{"$f":"IF(OrigTable!F1855=\"\",\"\",TEXT(OrigTable!F1855,\"00\"))","v":""},{"$f":"IF(OrigTable!F1855=\"\",\"\",ScriptText!$E$1&CHAR(10)&ScriptText!$C$1)","v":""},{"$f":"IF(OrigTable!G1855=\"\",\"\",ScriptText!$B$1&CHAR(10)&ScriptText!$D$1)","v":""},{"$f":"IF(OrigTable!G1855=\"\",\"\",TEXT(OrigTable!G1855,\"00\"))","v":""},{"$f":"IF(OrigTable!G1855=\"\",\"\",ScriptText!$E$1&CHAR(10)&ScriptText!$C$1)","v":""},0]
["\n\n\n",{"$f":"IF(OrigTable!A1856=\"\",\"\",ScriptText!$B$1&CHAR(10)&ScriptText!$D$1)","v":""},{"$f":"IF(OrigTable!A1856=\"\",\"\",TEXT(OrigTable!A1856,\"00\"))","v":""},{"$f":"IF(OrigTable!A1856=\"\",\"\",ScriptText!$E$1&CHAR(10)&ScriptText!$C$1)","v":""},{"$f":"IF(OrigTable!B1856=\"\",\"\",ScriptText!$B$1&CHAR(10)&ScriptText!$D$1)","v":""},{"$f":"IF(OrigTable!B1856=\"\",\"\",TEXT(OrigTable!B1856,\"00\"))","v":""},{"$f":"IF(OrigTable!B1856=\"\",\"\",ScriptText!$E$1&CHAR(10)&ScriptText!C1851)","v":""},{"$f":"IF(OrigTable!C1856=\"\",\"\",ScriptText!$B$1&CHAR(10)&ScriptText!$D$1)","v":""},{"$f":"IF(OrigTable!C1856=\"\",\"\",IF(LEN(OrigTable!C1856)>255,LEFT(OrigTable!C1856,250)&\". . .\",OrigTable!C1856))","v":""},{"$f":"IF(OrigTable!C1856=\"\",\"\",ScriptText!$E$1&CHAR(10)&ScriptText!$C$1)","v":""},{"$f":"IF(OrigTable!D1856=\"\",\"\",ScriptText!$B$1&CHAR(10)&ScriptText!$D$1)","v":""},{"$f":"IF(OrigTable!D1856=\"\",\"\",TEXT(OrigTable!D1856,\"00\"))","v":""},{"$f":"IF(OrigTable!D1856=\"\",\"\",ScriptText!$E$1&CHAR(10)&ScriptText!$C$1)","v":""},{"$f":"IF(OrigTable!E1856=\"\",\"\",ScriptText!$B$1&CHAR(10)&ScriptText!$D$1)","v":""},{"$f":"IF(OrigTable!E1856=\"\",\"\",TEXT(OrigTable!E1856,\"00\"))","v":""},{"$f":"IF(OrigTable!E1856=\"\",\"\",ScriptText!$E$1&CHAR(10)&ScriptText!$C$1)","v":""},{"$f":"IF(OrigTable!F1856=\"\",\"\",ScriptText!$B$1&CHAR(10)&ScriptText!$D$1)","v":""},{"$f":"IF(OrigTable!F1856=\"\",\"\",TEXT(OrigTable!F1856,\"00\"))","v":""},{"$f":"IF(OrigTable!F1856=\"\",\"\",ScriptText!$E$1&CHAR(10)&ScriptText!$C$1)","v":""},{"$f":"IF(OrigTable!G1856=\"\",\"\",ScriptText!$B$1&CHAR(10)&ScriptText!$D$1)","v":""},{"$f":"IF(OrigTable!G1856=\"\",\"\",TEXT(OrigTable!G1856,\"00\"))","v":""},{"$f":"IF(OrigTable!G1856=\"\",\"\",ScriptText!$E$1&CHAR(10)&ScriptText!$C$1)","v":""},0]
["\n\n\n",{"$f":"IF(OrigTable!A1857=\"\",\"\",ScriptText!$B$1&CHAR(10)&ScriptText!$D$1)","v":""},{"$f":"IF(OrigTable!A1857=\"\",\"\",TEXT(OrigTable!A1857,\"00\"))","v":""},{"$f":"IF(OrigTable!A1857=\"\",\"\",ScriptText!$E$1&CHAR(10)&ScriptText!$C$1)","v":""},{"$f":"IF(OrigTable!B1857=\"\",\"\",ScriptText!$B$1&CHAR(10)&ScriptText!$D$1)","v":""},{"$f":"IF(OrigTable!B1857=\"\",\"\",TEXT(OrigTable!B1857,\"00\"))","v":""},{"$f":"IF(OrigTable!B1857=\"\",\"\",ScriptText!$E$1&CHAR(10)&ScriptText!C1852)","v":""},{"$f":"IF(OrigTable!C1857=\"\",\"\",ScriptText!$B$1&CHAR(10)&ScriptText!$D$1)","v":""},{"$f":"IF(OrigTable!C1857=\"\",\"\",IF(LEN(OrigTable!C1857)>255,LEFT(OrigTable!C1857,250)&\". . .\",OrigTable!C1857))","v":""},{"$f":"IF(OrigTable!C1857=\"\",\"\",ScriptText!$E$1&CHAR(10)&ScriptText!$C$1)","v":""},{"$f":"IF(OrigTable!D1857=\"\",\"\",ScriptText!$B$1&CHAR(10)&ScriptText!$D$1)","v":""},{"$f":"IF(OrigTable!D1857=\"\",\"\",TEXT(OrigTable!D1857,\"00\"))","v":""},{"$f":"IF(OrigTable!D1857=\"\",\"\",ScriptText!$E$1&CHAR(10)&ScriptText!$C$1)","v":""},{"$f":"IF(OrigTable!E1857=\"\",\"\",ScriptText!$B$1&CHAR(10)&ScriptText!$D$1)","v":""},{"$f":"IF(OrigTable!E1857=\"\",\"\",TEXT(OrigTable!E1857,\"00\"))","v":""},{"$f":"IF(OrigTable!E1857=\"\",\"\",ScriptText!$E$1&CHAR(10)&ScriptText!$C$1)","v":""},{"$f":"IF(OrigTable!F1857=\"\",\"\",ScriptText!$B$1&CHAR(10)&ScriptText!$D$1)","v":""},{"$f":"IF(OrigTable!F1857=\"\",\"\",TEXT(OrigTable!F1857,\"00\"))","v":""},{"$f":"IF(OrigTable!F1857=\"\",\"\",ScriptText!$E$1&CHAR(10)&ScriptText!$C$1)","v":""},{"$f":"IF(OrigTable!G1857=\"\",\"\",ScriptText!$B$1&CHAR(10)&ScriptText!$D$1)","v":""},{"$f":"IF(OrigTable!G1857=\"\",\"\",TEXT(OrigTable!G1857,\"00\"))","v":""},{"$f":"IF(OrigTable!G1857=\"\",\"\",ScriptText!$E$1&CHAR(10)&ScriptText!$C$1)","v":""},0]
["\n\n\n",{"$f":"IF(OrigTable!A1858=\"\",\"\",ScriptText!$B$1&CHAR(10)&ScriptText!$D$1)","v":""},{"$f":"IF(OrigTable!A1858=\"\",\"\",TEXT(OrigTable!A1858,\"00\"))","v":""},{"$f":"IF(OrigTable!A1858=\"\",\"\",ScriptText!$E$1&CHAR(10)&ScriptText!$C$1)","v":""},{"$f":"IF(OrigTable!B1858=\"\",\"\",ScriptText!$B$1&CHAR(10)&ScriptText!$D$1)","v":""},{"$f":"IF(OrigTable!B1858=\"\",\"\",TEXT(OrigTable!B1858,\"00\"))","v":""},{"$f":"IF(OrigTable!B1858=\"\",\"\",ScriptText!$E$1&CHAR(10)&ScriptText!C1853)","v":""},{"$f":"IF(OrigTable!C1858=\"\",\"\",ScriptText!$B$1&CHAR(10)&ScriptText!$D$1)","v":""},{"$f":"IF(OrigTable!C1858=\"\",\"\",IF(LEN(OrigTable!C1858)>255,LEFT(OrigTable!C1858,250)&\". . .\",OrigTable!C1858))","v":""},{"$f":"IF(OrigTable!C1858=\"\",\"\",ScriptText!$E$1&CHAR(10)&ScriptText!$C$1)","v":""},{"$f":"IF(OrigTable!D1858=\"\",\"\",ScriptText!$B$1&CHAR(10)&ScriptText!$D$1)","v":""},{"$f":"IF(OrigTable!D1858=\"\",\"\",TEXT(OrigTable!D1858,\"00\"))","v":""},{"$f":"IF(OrigTable!D1858=\"\",\"\",ScriptText!$E$1&CHAR(10)&ScriptText!$C$1)","v":""},{"$f":"IF(OrigTable!E1858=\"\",\"\",ScriptText!$B$1&CHAR(10)&ScriptText!$D$1)","v":""},{"$f":"IF(OrigTable!E1858=\"\",\"\",TEXT(OrigTable!E1858,\"00\"))","v":""},{"$f":"IF(OrigTable!E1858=\"\",\"\",ScriptText!$E$1&CHAR(10)&ScriptText!$C$1)","v":""},{"$f":"IF(OrigTable!F1858=\"\",\"\",ScriptText!$B$1&CHAR(10)&ScriptText!$D$1)","v":""},{"$f":"IF(OrigTable!F1858=\"\",\"\",TEXT(OrigTable!F1858,\"00\"))","v":""},{"$f":"IF(OrigTable!F1858=\"\",\"\",ScriptText!$E$1&CHAR(10)&ScriptText!$C$1)","v":""},{"$f":"IF(OrigTable!G1858=\"\",\"\",ScriptText!$B$1&CHAR(10)&ScriptText!$D$1)","v":""},{"$f":"IF(OrigTable!G1858=\"\",\"\",TEXT(OrigTable!G1858,\"00\"))","v":""},{"$f":"IF(OrigTable!G1858=\"\",\"\",ScriptText!$E$1&CHAR(10)&ScriptText!$C$1)","v":""},0]
["\n\n\n",{"$f":"IF(OrigTable!A1859=\"\",\"\",ScriptText!$B$1&CHAR(10)&ScriptText!$D$1)","v":""},{"$f":"IF(OrigTable!A1859=\"\",\"\",TEXT(OrigTable!A1859,\"00\"))","v":""},{"$f":"IF(OrigTable!A1859=\"\",\"\",ScriptText!$E$1&CHAR(10)&ScriptText!$C$1)","v":""},{"$f":"IF(OrigTable!B1859=\"\",\"\",ScriptText!$B$1&CHAR(10)&ScriptText!$D$1)","v":""},{"$f":"IF(OrigTable!B1859=\"\",\"\",TEXT(OrigTable!B1859,\"00\"))","v":""},{"$f":"IF(OrigTable!B1859=\"\",\"\",ScriptText!$E$1&CHAR(10)&ScriptText!C1854)","v":""},{"$f":"IF(OrigTable!C1859=\"\",\"\",ScriptText!$B$1&CHAR(10)&ScriptText!$D$1)","v":""},{"$f":"IF(OrigTable!C1859=\"\",\"\",IF(LEN(OrigTable!C1859)>255,LEFT(OrigTable!C1859,250)&\". . .\",OrigTable!C1859))","v":""},{"$f":"IF(OrigTable!C1859=\"\",\"\",ScriptText!$E$1&CHAR(10)&ScriptText!$C$1)","v":""},{"$f":"IF(OrigTable!D1859=\"\",\"\",ScriptText!$B$1&CHAR(10)&ScriptText!$D$1)","v":""},{"$f":"IF(OrigTable!D1859=\"\",\"\",TEXT(OrigTable!D1859,\"00\"))","v":""},{"$f":"IF(OrigTable!D1859=\"\",\"\",ScriptText!$E$1&CHAR(10)&ScriptText!$C$1)","v":""},{"$f":"IF(OrigTable!E1859=\"\",\"\",ScriptText!$B$1&CHAR(10)&ScriptText!$D$1)","v":""},{"$f":"IF(OrigTable!E1859=\"\",\"\",TEXT(OrigTable!E1859,\"00\"))","v":""},{"$f":"IF(OrigTable!E1859=\"\",\"\",ScriptText!$E$1&CHAR(10)&ScriptText!$C$1)","v":""},{"$f":"IF(OrigTable!F1859=\"\",\"\",ScriptText!$B$1&CHAR(10)&ScriptText!$D$1)","v":""},{"$f":"IF(OrigTable!F1859=\"\",\"\",TEXT(OrigTable!F1859,\"00\"))","v":""},{"$f":"IF(OrigTable!F1859=\"\",\"\",ScriptText!$E$1&CHAR(10)&ScriptText!$C$1)","v":""},{"$f":"IF(OrigTable!G1859=\"\",\"\",ScriptText!$B$1&CHAR(10)&ScriptText!$D$1)","v":""},{"$f":"IF(OrigTable!G1859=\"\",\"\",TEXT(OrigTable!G1859,\"00\"))","v":""},{"$f":"IF(OrigTable!G1859=\"\",\"\",ScriptText!$E$1&CHAR(10)&ScriptText!$C$1)","v":""},0]
["\n\n\n",{"$f":"IF(OrigTable!A1860=\"\",\"\",ScriptText!$B$1&CHAR(10)&ScriptText!$D$1)","v":""},{"$f":"IF(OrigTable!A1860=\"\",\"\",TEXT(OrigTable!A1860,\"00\"))","v":""},{"$f":"IF(OrigTable!A1860=\"\",\"\",ScriptText!$E$1&CHAR(10)&ScriptText!$C$1)","v":""},{"$f":"IF(OrigTable!B1860=\"\",\"\",ScriptText!$B$1&CHAR(10)&ScriptText!$D$1)","v":""},{"$f":"IF(OrigTable!B1860=\"\",\"\",TEXT(OrigTable!B1860,\"00\"))","v":""},{"$f":"IF(OrigTable!B1860=\"\",\"\",ScriptText!$E$1&CHAR(10)&ScriptText!C1855)","v":""},{"$f":"IF(OrigTable!C1860=\"\",\"\",ScriptText!$B$1&CHAR(10)&ScriptText!$D$1)","v":""},{"$f":"IF(OrigTable!C1860=\"\",\"\",IF(LEN(OrigTable!C1860)>255,LEFT(OrigTable!C1860,250)&\". . .\",OrigTable!C1860))","v":""},{"$f":"IF(OrigTable!C1860=\"\",\"\",ScriptText!$E$1&CHAR(10)&ScriptText!$C$1)","v":""},{"$f":"IF(OrigTable!D1860=\"\",\"\",ScriptText!$B$1&CHAR(10)&ScriptText!$D$1)","v":""},{"$f":"IF(OrigTable!D1860=\"\",\"\",TEXT(OrigTable!D1860,\"00\"))","v":""},{"$f":"IF(OrigTable!D1860=\"\",\"\",ScriptText!$E$1&CHAR(10)&ScriptText!$C$1)","v":""},{"$f":"IF(OrigTable!E1860=\"\",\"\",ScriptText!$B$1&CHAR(10)&ScriptText!$D$1)","v":""},{"$f":"IF(OrigTable!E1860=\"\",\"\",TEXT(OrigTable!E1860,\"00\"))","v":""},{"$f":"IF(OrigTable!E1860=\"\",\"\",ScriptText!$E$1&CHAR(10)&ScriptText!$C$1)","v":""},{"$f":"IF(OrigTable!F1860=\"\",\"\",ScriptText!$B$1&CHAR(10)&ScriptText!$D$1)","v":""},{"$f":"IF(OrigTable!F1860=\"\",\"\",TEXT(OrigTable!F1860,\"00\"))","v":""},{"$f":"IF(OrigTable!F1860=\"\",\"\",ScriptText!$E$1&CHAR(10)&ScriptText!$C$1)","v":""},{"$f":"IF(OrigTable!G1860=\"\",\"\",ScriptText!$B$1&CHAR(10)&ScriptText!$D$1)","v":""},{"$f":"IF(OrigTable!G1860=\"\",\"\",TEXT(OrigTable!G1860,\"00\"))","v":""},{"$f":"IF(OrigTable!G1860=\"\",\"\",ScriptText!$E$1&CHAR(10)&ScriptText!$C$1)","v":""},0]
["\n\n\n",{"$f":"IF(OrigTable!A1861=\"\",\"\",ScriptText!$B$1&CHAR(10)&ScriptText!$D$1)","v":""},{"$f":"IF(OrigTable!A1861=\"\",\"\",TEXT(OrigTable!A1861,\"00\"))","v":""},{"$f":"IF(OrigTable!A1861=\"\",\"\",ScriptText!$E$1&CHAR(10)&ScriptText!$C$1)","v":""},{"$f":"IF(OrigTable!B1861=\"\",\"\",ScriptText!$B$1&CHAR(10)&ScriptText!$D$1)","v":""},{"$f":"IF(OrigTable!B1861=\"\",\"\",TEXT(OrigTable!B1861,\"00\"))","v":""},{"$f":"IF(OrigTable!B1861=\"\",\"\",ScriptText!$E$1&CHAR(10)&ScriptText!C1856)","v":""},{"$f":"IF(OrigTable!C1861=\"\",\"\",ScriptText!$B$1&CHAR(10)&ScriptText!$D$1)","v":""},{"$f":"IF(OrigTable!C1861=\"\",\"\",IF(LEN(OrigTable!C1861)>255,LEFT(OrigTable!C1861,250)&\". . .\",OrigTable!C1861))","v":""},{"$f":"IF(OrigTable!C1861=\"\",\"\",ScriptText!$E$1&CHAR(10)&ScriptText!$C$1)","v":""},{"$f":"IF(OrigTable!D1861=\"\",\"\",ScriptText!$B$1&CHAR(10)&ScriptText!$D$1)","v":""},{"$f":"IF(OrigTable!D1861=\"\",\"\",TEXT(OrigTable!D1861,\"00\"))","v":""},{"$f":"IF(OrigTable!D1861=\"\",\"\",ScriptText!$E$1&CHAR(10)&ScriptText!$C$1)","v":""},{"$f":"IF(OrigTable!E1861=\"\",\"\",ScriptText!$B$1&CHAR(10)&ScriptText!$D$1)","v":""},{"$f":"IF(OrigTable!E1861=\"\",\"\",TEXT(OrigTable!E1861,\"00\"))","v":""},{"$f":"IF(OrigTable!E1861=\"\",\"\",ScriptText!$E$1&CHAR(10)&ScriptText!$C$1)","v":""},{"$f":"IF(OrigTable!F1861=\"\",\"\",ScriptText!$B$1&CHAR(10)&ScriptText!$D$1)","v":""},{"$f":"IF(OrigTable!F1861=\"\",\"\",TEXT(OrigTable!F1861,\"00\"))","v":""},{"$f":"IF(OrigTable!F1861=\"\",\"\",ScriptText!$E$1&CHAR(10)&ScriptText!$C$1)","v":""},{"$f":"IF(OrigTable!G1861=\"\",\"\",ScriptText!$B$1&CHAR(10)&ScriptText!$D$1)","v":""},{"$f":"IF(OrigTable!G1861=\"\",\"\",TEXT(OrigTable!G1861,\"00\"))","v":""},{"$f":"IF(OrigTable!G1861=\"\",\"\",ScriptText!$E$1&CHAR(10)&ScriptText!$C$1)","v":""},0]
["\n\n\n",{"$f":"IF(OrigTable!A1862=\"\",\"\",ScriptText!$B$1&CHAR(10)&ScriptText!$D$1)","v":""},{"$f":"IF(OrigTable!A1862=\"\",\"\",TEXT(OrigTable!A1862,\"00\"))","v":""},{"$f":"IF(OrigTable!A1862=\"\",\"\",ScriptText!$E$1&CHAR(10)&ScriptText!$C$1)","v":""},{"$f":"IF(OrigTable!B1862=\"\",\"\",ScriptText!$B$1&CHAR(10)&ScriptText!$D$1)","v":""},{"$f":"IF(OrigTable!B1862=\"\",\"\",TEXT(OrigTable!B1862,\"00\"))","v":""},{"$f":"IF(OrigTable!B1862=\"\",\"\",ScriptText!$E$1&CHAR(10)&ScriptText!C1857)","v":""},{"$f":"IF(OrigTable!C1862=\"\",\"\",ScriptText!$B$1&CHAR(10)&ScriptText!$D$1)","v":""},{"$f":"IF(OrigTable!C1862=\"\",\"\",IF(LEN(OrigTable!C1862)>255,LEFT(OrigTable!C1862,250)&\". . .\",OrigTable!C1862))","v":""},{"$f":"IF(OrigTable!C1862=\"\",\"\",ScriptText!$E$1&CHAR(10)&ScriptText!$C$1)","v":""},{"$f":"IF(OrigTable!D1862=\"\",\"\",ScriptText!$B$1&CHAR(10)&ScriptText!$D$1)","v":""},{"$f":"IF(OrigTable!D1862=\"\",\"\",TEXT(OrigTable!D1862,\"00\"))","v":""},{"$f":"IF(OrigTable!D1862=\"\",\"\",ScriptText!$E$1&CHAR(10)&ScriptText!$C$1)","v":""},{"$f":"IF(OrigTable!E1862=\"\",\"\",ScriptText!$B$1&CHAR(10)&ScriptText!$D$1)","v":""},{"$f":"IF(OrigTable!E1862=\"\",\"\",TEXT(OrigTable!E1862,\"00\"))","v":""},{"$f":"IF(OrigTable!E1862=\"\",\"\",ScriptText!$E$1&CHAR(10)&ScriptText!$C$1)","v":""},{"$f":"IF(OrigTable!F1862=\"\",\"\",ScriptText!$B$1&CHAR(10)&ScriptText!$D$1)","v":""},{"$f":"IF(OrigTable!F1862=\"\",\"\",TEXT(OrigTable!F1862,\"00\"))","v":""},{"$f":"IF(OrigTable!F1862=\"\",\"\",ScriptText!$E$1&CHAR(10)&ScriptText!$C$1)","v":""},{"$f":"IF(OrigTable!G1862=\"\",\"\",ScriptText!$B$1&CHAR(10)&ScriptText!$D$1)","v":""},{"$f":"IF(OrigTable!G1862=\"\",\"\",TEXT(OrigTable!G1862,\"00\"))","v":""},{"$f":"IF(OrigTable!G1862=\"\",\"\",ScriptText!$E$1&CHAR(10)&ScriptText!$C$1)","v":""},{"$f":"IF(LEN(A1862)>3,ROW(),0)","v":0}]
["\n\n\n",{"$f":"IF(OrigTable!A1863=\"\",\"\",ScriptText!$B$1&CHAR(10)&ScriptText!$D$1)","v":""},{"$f":"IF(OrigTable!A1863=\"\",\"\",TEXT(OrigTable!A1863,\"00\"))","v":""},{"$f":"IF(OrigTable!A1863=\"\",\"\",ScriptText!$E$1&CHAR(10)&ScriptText!$C$1)","v":""},{"$f":"IF(OrigTable!B1863=\"\",\"\",ScriptText!$B$1&CHAR(10)&ScriptText!$D$1)","v":""},{"$f":"IF(OrigTable!B1863=\"\",\"\",TEXT(OrigTable!B1863,\"00\"))","v":""},{"$f":"IF(OrigTable!B1863=\"\",\"\",ScriptText!$E$1&CHAR(10)&ScriptText!C1858)","v":""},{"$f":"IF(OrigTable!C1863=\"\",\"\",ScriptText!$B$1&CHAR(10)&ScriptText!$D$1)","v":""},{"$f":"IF(OrigTable!C1863=\"\",\"\",IF(LEN(OrigTable!C1863)>255,LEFT(OrigTable!C1863,250)&\". . .\",OrigTable!C1863))","v":""},{"$f":"IF(OrigTable!C1863=\"\",\"\",ScriptText!$E$1&CHAR(10)&ScriptText!$C$1)","v":""},{"$f":"IF(OrigTable!D1863=\"\",\"\",ScriptText!$B$1&CHAR(10)&ScriptText!$D$1)","v":""},{"$f":"IF(OrigTable!D1863=\"\",\"\",TEXT(OrigTable!D1863,\"00\"))","v":""},{"$f":"IF(OrigTable!D1863=\"\",\"\",ScriptText!$E$1&CHAR(10)&ScriptText!$C$1)","v":""},{"$f":"IF(OrigTable!E1863=\"\",\"\",ScriptText!$B$1&CHAR(10)&ScriptText!$D$1)","v":""},{"$f":"IF(OrigTable!E1863=\"\",\"\",TEXT(OrigTable!E1863,\"00\"))","v":""},{"$f":"IF(OrigTable!E1863=\"\",\"\",ScriptText!$E$1&CHAR(10)&ScriptText!$C$1)","v":""},{"$f":"IF(OrigTable!F1863=\"\",\"\",ScriptText!$B$1&CHAR(10)&ScriptText!$D$1)","v":""},{"$f":"IF(OrigTable!F1863=\"\",\"\",TEXT(OrigTable!F1863,\"00\"))","v":""},{"$f":"IF(OrigTable!F1863=\"\",\"\",ScriptText!$E$1&CHAR(10)&ScriptText!$C$1)","v":""},{"$f":"IF(OrigTable!G1863=\"\",\"\",ScriptText!$B$1&CHAR(10)&ScriptText!$D$1)","v":""},{"$f":"IF(OrigTable!G1863=\"\",\"\",TEXT(OrigTable!G1863,\"00\"))","v":""},{"$f":"IF(OrigTable!G1863=\"\",\"\",ScriptText!$E$1&CHAR(10)&ScriptText!$C$1)","v":""},0]
["\n\n\n",{"$f":"IF(OrigTable!A1864=\"\",\"\",ScriptText!$B$1&CHAR(10)&ScriptText!$D$1)","v":""},{"$f":"IF(OrigTable!A1864=\"\",\"\",TEXT(OrigTable!A1864,\"00\"))","v":""},{"$f":"IF(OrigTable!A1864=\"\",\"\",ScriptText!$E$1&CHAR(10)&ScriptText!$C$1)","v":""},{"$f":"IF(OrigTable!B1864=\"\",\"\",ScriptText!$B$1&CHAR(10)&ScriptText!$D$1)","v":""},{"$f":"IF(OrigTable!B1864=\"\",\"\",TEXT(OrigTable!B1864,\"00\"))","v":""},{"$f":"IF(OrigTable!B1864=\"\",\"\",ScriptText!$E$1&CHAR(10)&ScriptText!C1859)","v":""},{"$f":"IF(OrigTable!C1864=\"\",\"\",ScriptText!$B$1&CHAR(10)&ScriptText!$D$1)","v":""},{"$f":"IF(OrigTable!C1864=\"\",\"\",IF(LEN(OrigTable!C1864)>255,LEFT(OrigTable!C1864,250)&\". . .\",OrigTable!C1864))","v":""},{"$f":"IF(OrigTable!C1864=\"\",\"\",ScriptText!$E$1&CHAR(10)&ScriptText!$C$1)","v":""},{"$f":"IF(OrigTable!D1864=\"\",\"\",ScriptText!$B$1&CHAR(10)&ScriptText!$D$1)","v":""},{"$f":"IF(OrigTable!D1864=\"\",\"\",TEXT(OrigTable!D1864,\"00\"))","v":""},{"$f":"IF(OrigTable!D1864=\"\",\"\",ScriptText!$E$1&CHAR(10)&ScriptText!$C$1)","v":""},{"$f":"IF(OrigTable!E1864=\"\",\"\",ScriptText!$B$1&CHAR(10)&ScriptText!$D$1)","v":""},{"$f":"IF(OrigTable!E1864=\"\",\"\",TEXT(OrigTable!E1864,\"00\"))","v":""},{"$f":"IF(OrigTable!E1864=\"\",\"\",ScriptText!$E$1&CHAR(10)&ScriptText!$C$1)","v":""},{"$f":"IF(OrigTable!F1864=\"\",\"\",ScriptText!$B$1&CHAR(10)&ScriptText!$D$1)","v":""},{"$f":"IF(OrigTable!F1864=\"\",\"\",TEXT(OrigTable!F1864,\"00\"))","v":""},{"$f":"IF(OrigTable!F1864=\"\",\"\",ScriptText!$E$1&CHAR(10)&ScriptText!$C$1)","v":""},{"$f":"IF(OrigTable!G1864=\"\",\"\",ScriptText!$B$1&CHAR(10)&ScriptText!$D$1)","v":""},{"$f":"IF(OrigTable!G1864=\"\",\"\",TEXT(OrigTable!G1864,\"00\"))","v":""},{"$f":"IF(OrigTable!G1864=\"\",\"\",ScriptText!$E$1&CHAR(10)&ScriptText!$C$1)","v":""},0]
["\n\n\n",{"$f":"IF(OrigTable!A1865=\"\",\"\",ScriptText!$B$1&CHAR(10)&ScriptText!$D$1)","v":""},{"$f":"IF(OrigTable!A1865=\"\",\"\",TEXT(OrigTable!A1865,\"00\"))","v":""},{"$f":"IF(OrigTable!A1865=\"\",\"\",ScriptText!$E$1&CHAR(10)&ScriptText!$C$1)","v":""},{"$f":"IF(OrigTable!B1865=\"\",\"\",ScriptText!$B$1&CHAR(10)&ScriptText!$D$1)","v":""},{"$f":"IF(OrigTable!B1865=\"\",\"\",TEXT(OrigTable!B1865,\"00\"))","v":""},{"$f":"IF(OrigTable!B1865=\"\",\"\",ScriptText!$E$1&CHAR(10)&ScriptText!C1860)","v":""},{"$f":"IF(OrigTable!C1865=\"\",\"\",ScriptText!$B$1&CHAR(10)&ScriptText!$D$1)","v":""},{"$f":"IF(OrigTable!C1865=\"\",\"\",IF(LEN(OrigTable!C1865)>255,LEFT(OrigTable!C1865,250)&\". . .\",OrigTable!C1865))","v":""},{"$f":"IF(OrigTable!C1865=\"\",\"\",ScriptText!$E$1&CHAR(10)&ScriptText!$C$1)","v":""},{"$f":"IF(OrigTable!D1865=\"\",\"\",ScriptText!$B$1&CHAR(10)&ScriptText!$D$1)","v":""},{"$f":"IF(OrigTable!D1865=\"\",\"\",TEXT(OrigTable!D1865,\"00\"))","v":""},{"$f":"IF(OrigTable!D1865=\"\",\"\",ScriptText!$E$1&CHAR(10)&ScriptText!$C$1)","v":""},{"$f":"IF(OrigTable!E1865=\"\",\"\",ScriptText!$B$1&CHAR(10)&ScriptText!$D$1)","v":""},{"$f":"IF(OrigTable!E1865=\"\",\"\",TEXT(OrigTable!E1865,\"00\"))","v":""},{"$f":"IF(OrigTable!E1865=\"\",\"\",ScriptText!$E$1&CHAR(10)&ScriptText!$C$1)","v":""},{"$f":"IF(OrigTable!F1865=\"\",\"\",ScriptText!$B$1&CHAR(10)&ScriptText!$D$1)","v":""},{"$f":"IF(OrigTable!F1865=\"\",\"\",TEXT(OrigTable!F1865,\"00\"))","v":""},{"$f":"IF(OrigTable!F1865=\"\",\"\",ScriptText!$E$1&CHAR(10)&ScriptText!$C$1)","v":""},{"$f":"IF(OrigTable!G1865=\"\",\"\",ScriptText!$B$1&CHAR(10)&ScriptText!$D$1)","v":""},{"$f":"IF(OrigTable!G1865=\"\",\"\",TEXT(OrigTable!G1865,\"00\"))","v":""},{"$f":"IF(OrigTable!G1865=\"\",\"\",ScriptText!$E$1&CHAR(10)&ScriptText!$C$1)","v":""},0]
["\n\n\n",{"$f":"IF(OrigTable!A1866=\"\",\"\",ScriptText!$B$1&CHAR(10)&ScriptText!$D$1)","v":""},{"$f":"IF(OrigTable!A1866=\"\",\"\",TEXT(OrigTable!A1866,\"00\"))","v":""},{"$f":"IF(OrigTable!A1866=\"\",\"\",ScriptText!$E$1&CHAR(10)&ScriptText!$C$1)","v":""},{"$f":"IF(OrigTable!B1866=\"\",\"\",ScriptText!$B$1&CHAR(10)&ScriptText!$D$1)","v":""},{"$f":"IF(OrigTable!B1866=\"\",\"\",TEXT(OrigTable!B1866,\"00\"))","v":""},{"$f":"IF(OrigTable!B1866=\"\",\"\",ScriptText!$E$1&CHAR(10)&ScriptText!C1861)","v":""},{"$f":"IF(OrigTable!C1866=\"\",\"\",ScriptText!$B$1&CHAR(10)&ScriptText!$D$1)","v":""},{"$f":"IF(OrigTable!C1866=\"\",\"\",IF(LEN(OrigTable!C1866)>255,LEFT(OrigTable!C1866,250)&\". . .\",OrigTable!C1866))","v":""},{"$f":"IF(OrigTable!C1866=\"\",\"\",ScriptText!$E$1&CHAR(10)&ScriptText!$C$1)","v":""},{"$f":"IF(OrigTable!D1866=\"\",\"\",ScriptText!$B$1&CHAR(10)&ScriptText!$D$1)","v":""},{"$f":"IF(OrigTable!D1866=\"\",\"\",TEXT(OrigTable!D1866,\"00\"))","v":""},{"$f":"IF(OrigTable!D1866=\"\",\"\",ScriptText!$E$1&CHAR(10)&ScriptText!$C$1)","v":""},{"$f":"IF(OrigTable!E1866=\"\",\"\",ScriptText!$B$1&CHAR(10)&ScriptText!$D$1)","v":""},{"$f":"IF(OrigTable!E1866=\"\",\"\",TEXT(OrigTable!E1866,\"00\"))","v":""},{"$f":"IF(OrigTable!E1866=\"\",\"\",ScriptText!$E$1&CHAR(10)&ScriptText!$C$1)","v":""},{"$f":"IF(OrigTable!F1866=\"\",\"\",ScriptText!$B$1&CHAR(10)&ScriptText!$D$1)","v":""},{"$f":"IF(OrigTable!F1866=\"\",\"\",TEXT(OrigTable!F1866,\"00\"))","v":""},{"$f":"IF(OrigTable!F1866=\"\",\"\",ScriptText!$E$1&CHAR(10)&ScriptText!$C$1)","v":""},{"$f":"IF(OrigTable!G1866=\"\",\"\",ScriptText!$B$1&CHAR(10)&ScriptText!$D$1)","v":""},{"$f":"IF(OrigTable!G1866=\"\",\"\",TEXT(OrigTable!G1866,\"00\"))","v":""},{"$f":"IF(OrigTable!G1866=\"\",\"\",ScriptText!$E$1&CHAR(10)&ScriptText!$C$1)","v":""},0]
[{"$f":"_xlfn.TEXTJOIN(\"\",TRUE,B1867:D1867)&CHAR(10)&_xlfn.TEXTJOIN(\"\",TRUE,E1867:G1867)&CHAR(10)&_xlfn.TEXTJOIN(\"\",TRUE,H1867:J1867)&CHAR(10)&_xlfn.TEXTJOIN(\"\",TRUE,K1867:M1867)&_xlfn.TEXTJOIN(\"\",TRUE,N1867:P1867)&_xlfn.TEXTJOIN(\"\",TRUE,Q1867:S1867)&_xlfn.TEXTJOIN(\"\",TRUE,T1867:V1867)","v":"\n\n\n"},{"$f":"IF(OrigTable!A1867=\"\",\"\",ScriptText!$B$1&CHAR(10)&ScriptText!$D$1)","v":""},{"$f":"IF(OrigTable!A1867=\"\",\"\",TEXT(OrigTable!A1867,\"00\"))","v":""},{"$f":"IF(OrigTable!A1867=\"\",\"\",ScriptText!$E$1&CHAR(10)&ScriptText!$C$1)","v":""},{"$f":"IF(OrigTable!B1867=\"\",\"\",ScriptText!$B$1&CHAR(10)&ScriptText!$D$1)","v":""},{"$f":"IF(OrigTable!B1867=\"\",\"\",TEXT(OrigTable!B1867,\"00\"))","v":""},{"$f":"IF(OrigTable!B1867=\"\",\"\",ScriptText!$E$1&CHAR(10)&ScriptText!C1862)","v":""},{"$f":"IF(OrigTable!C1867=\"\",\"\",ScriptText!$B$1&CHAR(10)&ScriptText!$D$1)","v":""},{"$f":"IF(OrigTable!C1867=\"\",\"\",IF(LEN(OrigTable!C1867)>255,LEFT(OrigTable!C1867,250)&\". . .\",OrigTable!C1867))","v":""},{"$f":"IF(OrigTable!C1867=\"\",\"\",ScriptText!$E$1&CHAR(10)&ScriptText!$C$1)","v":""},{"$f":"IF(OrigTable!D1867=\"\",\"\",ScriptText!$B$1&CHAR(10)&ScriptText!$D$1)","v":""},{"$f":"IF(OrigTable!D1867=\"\",\"\",TEXT(OrigTable!D1867,\"00\"))","v":""},{"$f":"IF(OrigTable!D1867=\"\",\"\",ScriptText!$E$1&CHAR(10)&ScriptText!$C$1)","v":""},{"$f":"IF(OrigTable!E1867=\"\",\"\",ScriptText!$B$1&CHAR(10)&ScriptText!$D$1)","v":""},{"$f":"IF(OrigTable!E1867=\"\",\"\",TEXT(OrigTable!E1867,\"00\"))","v":""},{"$f":"IF(OrigTable!E1867=\"\",\"\",ScriptText!$E$1&CHAR(10)&ScriptText!$C$1)","v":""},{"$f":"IF(OrigTable!F1867=\"\",\"\",ScriptText!$B$1&CHAR(10)&ScriptText!$D$1)","v":""},{"$f":"IF(OrigTable!F1867=\"\",\"\",TEXT(OrigTable!F1867,\"00\"))","v":""},{"$f":"IF(OrigTable!F1867=\"\",\"\",ScriptText!$E$1&CHAR(10)&ScriptText!$C$1)","v":""},{"$f":"IF(OrigTable!G1867=\"\",\"\",ScriptText!$B$1&CHAR(10)&ScriptText!$D$1)","v":""},{"$f":"IF(OrigTable!G1867=\"\",\"\",TEXT(OrigTable!G1867,\"00\"))","v":""},{"$f":"IF(OrigTable!G1867=\"\",\"\",ScriptText!$E$1&CHAR(10)&ScriptText!$C$1)","v":""},0]
["\n\n\n",{"$f":"IF(OrigTable!A1868=\"\",\"\",ScriptText!$B$1&CHAR(10)&ScriptText!$D$1)","v":""},{"$f":"IF(OrigTable!A1868=\"\",\"\",TEXT(OrigTable!A1868,\"00\"))","v":""},{"$f":"IF(OrigTable!A1868=\"\",\"\",ScriptText!$E$1&CHAR(10)&ScriptText!$C$1)","v":""},{"$f":"IF(OrigTable!B1868=\"\",\"\",ScriptText!$B$1&CHAR(10)&ScriptText!$D$1)","v":""},{"$f":"IF(OrigTable!B1868=\"\",\"\",TEXT(OrigTable!B1868,\"00\"))","v":""},{"$f":"IF(OrigTable!B1868=\"\",\"\",ScriptText!$E$1&CHAR(10)&ScriptText!C1863)","v":""},{"$f":"IF(OrigTable!C1868=\"\",\"\",ScriptText!$B$1&CHAR(10)&ScriptText!$D$1)","v":""},{"$f":"IF(OrigTable!C1868=\"\",\"\",IF(LEN(OrigTable!C1868)>255,LEFT(OrigTable!C1868,250)&\". . .\",OrigTable!C1868))","v":""},{"$f":"IF(OrigTable!C1868=\"\",\"\",ScriptText!$E$1&CHAR(10)&ScriptText!$C$1)","v":""},{"$f":"IF(OrigTable!D1868=\"\",\"\",ScriptText!$B$1&CHAR(10)&ScriptText!$D$1)","v":""},{"$f":"IF(OrigTable!D1868=\"\",\"\",TEXT(OrigTable!D1868,\"00\"))","v":""},{"$f":"IF(OrigTable!D1868=\"\",\"\",ScriptText!$E$1&CHAR(10)&ScriptText!$C$1)","v":""},{"$f":"IF(OrigTable!E1868=\"\",\"\",ScriptText!$B$1&CHAR(10)&ScriptText!$D$1)","v":""},{"$f":"IF(OrigTable!E1868=\"\",\"\",TEXT(OrigTable!E1868,\"00\"))","v":""},{"$f":"IF(OrigTable!E1868=\"\",\"\",ScriptText!$E$1&CHAR(10)&ScriptText!$C$1)","v":""},{"$f":"IF(OrigTable!F1868=\"\",\"\",ScriptText!$B$1&CHAR(10)&ScriptText!$D$1)","v":""},{"$f":"IF(OrigTable!F1868=\"\",\"\",TEXT(OrigTable!F1868,\"00\"))","v":""},{"$f":"IF(OrigTable!F1868=\"\",\"\",ScriptText!$E$1&CHAR(10)&ScriptText!$C$1)","v":""},{"$f":"IF(OrigTable!G1868=\"\",\"\",ScriptText!$B$1&CHAR(10)&ScriptText!$D$1)","v":""},{"$f":"IF(OrigTable!G1868=\"\",\"\",TEXT(OrigTable!G1868,\"00\"))","v":""},{"$f":"IF(OrigTable!G1868=\"\",\"\",ScriptText!$E$1&CHAR(10)&ScriptText!$C$1)","v":""},0]
["\n\n\n",{"$f":"IF(OrigTable!A1869=\"\",\"\",ScriptText!$B$1&CHAR(10)&ScriptText!$D$1)","v":""},{"$f":"IF(OrigTable!A1869=\"\",\"\",TEXT(OrigTable!A1869,\"00\"))","v":""},{"$f":"IF(OrigTable!A1869=\"\",\"\",ScriptText!$E$1&CHAR(10)&ScriptText!$C$1)","v":""},{"$f":"IF(OrigTable!B1869=\"\",\"\",ScriptText!$B$1&CHAR(10)&ScriptText!$D$1)","v":""},{"$f":"IF(OrigTable!B1869=\"\",\"\",TEXT(OrigTable!B1869,\"00\"))","v":""},{"$f":"IF(OrigTable!B1869=\"\",\"\",ScriptText!$E$1&CHAR(10)&ScriptText!C1864)","v":""},{"$f":"IF(OrigTable!C1869=\"\",\"\",ScriptText!$B$1&CHAR(10)&ScriptText!$D$1)","v":""},{"$f":"IF(OrigTable!C1869=\"\",\"\",IF(LEN(OrigTable!C1869)>255,LEFT(OrigTable!C1869,250)&\". . .\",OrigTable!C1869))","v":""},{"$f":"IF(OrigTable!C1869=\"\",\"\",ScriptText!$E$1&CHAR(10)&ScriptText!$C$1)","v":""},{"$f":"IF(OrigTable!D1869=\"\",\"\",ScriptText!$B$1&CHAR(10)&ScriptText!$D$1)","v":""},{"$f":"IF(OrigTable!D1869=\"\",\"\",TEXT(OrigTable!D1869,\"00\"))","v":""},{"$f":"IF(OrigTable!D1869=\"\",\"\",ScriptText!$E$1&CHAR(10)&ScriptText!$C$1)","v":""},{"$f":"IF(OrigTable!E1869=\"\",\"\",ScriptText!$B$1&CHAR(10)&ScriptText!$D$1)","v":""},{"$f":"IF(OrigTable!E1869=\"\",\"\",TEXT(OrigTable!E1869,\"00\"))","v":""},{"$f":"IF(OrigTable!E1869=\"\",\"\",ScriptText!$E$1&CHAR(10)&ScriptText!$C$1)","v":""},{"$f":"IF(OrigTable!F1869=\"\",\"\",ScriptText!$B$1&CHAR(10)&ScriptText!$D$1)","v":""},{"$f":"IF(OrigTable!F1869=\"\",\"\",TEXT(OrigTable!F1869,\"00\"))","v":""},{"$f":"IF(OrigTable!F1869=\"\",\"\",ScriptText!$E$1&CHAR(10)&ScriptText!$C$1)","v":""},{"$f":"IF(OrigTable!G1869=\"\",\"\",ScriptText!$B$1&CHAR(10)&ScriptText!$D$1)","v":""},{"$f":"IF(OrigTable!G1869=\"\",\"\",TEXT(OrigTable!G1869,\"00\"))","v":""},{"$f":"IF(OrigTable!G1869=\"\",\"\",ScriptText!$E$1&CHAR(10)&ScriptText!$C$1)","v":""},0]
["\n\n\n",{"$f":"IF(OrigTable!A1870=\"\",\"\",ScriptText!$B$1&CHAR(10)&ScriptText!$D$1)","v":""},{"$f":"IF(OrigTable!A1870=\"\",\"\",TEXT(OrigTable!A1870,\"00\"))","v":""},{"$f":"IF(OrigTable!A1870=\"\",\"\",ScriptText!$E$1&CHAR(10)&ScriptText!$C$1)","v":""},{"$f":"IF(OrigTable!B1870=\"\",\"\",ScriptText!$B$1&CHAR(10)&ScriptText!$D$1)","v":""},{"$f":"IF(OrigTable!B1870=\"\",\"\",TEXT(OrigTable!B1870,\"00\"))","v":""},{"$f":"IF(OrigTable!B1870=\"\",\"\",ScriptText!$E$1&CHAR(10)&ScriptText!C1865)","v":""},{"$f":"IF(OrigTable!C1870=\"\",\"\",ScriptText!$B$1&CHAR(10)&ScriptText!$D$1)","v":""},{"$f":"IF(OrigTable!C1870=\"\",\"\",IF(LEN(OrigTable!C1870)>255,LEFT(OrigTable!C1870,250)&\". . .\",OrigTable!C1870))","v":""},{"$f":"IF(OrigTable!C1870=\"\",\"\",ScriptText!$E$1&CHAR(10)&ScriptText!$C$1)","v":""},{"$f":"IF(OrigTable!D1870=\"\",\"\",ScriptText!$B$1&CHAR(10)&ScriptText!$D$1)","v":""},{"$f":"IF(OrigTable!D1870=\"\",\"\",TEXT(OrigTable!D1870,\"00\"))","v":""},{"$f":"IF(OrigTable!D1870=\"\",\"\",ScriptText!$E$1&CHAR(10)&ScriptText!$C$1)","v":""},{"$f":"IF(OrigTable!E1870=\"\",\"\",ScriptText!$B$1&CHAR(10)&ScriptText!$D$1)","v":""},{"$f":"IF(OrigTable!E1870=\"\",\"\",TEXT(OrigTable!E1870,\"00\"))","v":""},{"$f":"IF(OrigTable!E1870=\"\",\"\",ScriptText!$E$1&CHAR(10)&ScriptText!$C$1)","v":""},{"$f":"IF(OrigTable!F1870=\"\",\"\",ScriptText!$B$1&CHAR(10)&ScriptText!$D$1)","v":""},{"$f":"IF(OrigTable!F1870=\"\",\"\",TEXT(OrigTable!F1870,\"00\"))","v":""},{"$f":"IF(OrigTable!F1870=\"\",\"\",ScriptText!$E$1&CHAR(10)&ScriptText!$C$1)","v":""},{"$f":"IF(OrigTable!G1870=\"\",\"\",ScriptText!$B$1&CHAR(10)&ScriptText!$D$1)","v":""},{"$f":"IF(OrigTable!G1870=\"\",\"\",TEXT(OrigTable!G1870,\"00\"))","v":""},{"$f":"IF(OrigTable!G1870=\"\",\"\",ScriptText!$E$1&CHAR(10)&ScriptText!$C$1)","v":""},0]
["\n\n\n",{"$f":"IF(OrigTable!A1871=\"\",\"\",ScriptText!$B$1&CHAR(10)&ScriptText!$D$1)","v":""},{"$f":"IF(OrigTable!A1871=\"\",\"\",TEXT(OrigTable!A1871,\"00\"))","v":""},{"$f":"IF(OrigTable!A1871=\"\",\"\",ScriptText!$E$1&CHAR(10)&ScriptText!$C$1)","v":""},{"$f":"IF(OrigTable!B1871=\"\",\"\",ScriptText!$B$1&CHAR(10)&ScriptText!$D$1)","v":""},{"$f":"IF(OrigTable!B1871=\"\",\"\",TEXT(OrigTable!B1871,\"00\"))","v":""},{"$f":"IF(OrigTable!B1871=\"\",\"\",ScriptText!$E$1&CHAR(10)&ScriptText!C1866)","v":""},{"$f":"IF(OrigTable!C1871=\"\",\"\",ScriptText!$B$1&CHAR(10)&ScriptText!$D$1)","v":""},{"$f":"IF(OrigTable!C1871=\"\",\"\",IF(LEN(OrigTable!C1871)>255,LEFT(OrigTable!C1871,250)&\". . .\",OrigTable!C1871))","v":""},{"$f":"IF(OrigTable!C1871=\"\",\"\",ScriptText!$E$1&CHAR(10)&ScriptText!$C$1)","v":""},{"$f":"IF(OrigTable!D1871=\"\",\"\",ScriptText!$B$1&CHAR(10)&ScriptText!$D$1)","v":""},{"$f":"IF(OrigTable!D1871=\"\",\"\",TEXT(OrigTable!D1871,\"00\"))","v":""},{"$f":"IF(OrigTable!D1871=\"\",\"\",ScriptText!$E$1&CHAR(10)&ScriptText!$C$1)","v":""},{"$f":"IF(OrigTable!E1871=\"\",\"\",ScriptText!$B$1&CHAR(10)&ScriptText!$D$1)","v":""},{"$f":"IF(OrigTable!E1871=\"\",\"\",TEXT(OrigTable!E1871,\"00\"))","v":""},{"$f":"IF(OrigTable!E1871=\"\",\"\",ScriptText!$E$1&CHAR(10)&ScriptText!$C$1)","v":""},{"$f":"IF(OrigTable!F1871=\"\",\"\",ScriptText!$B$1&CHAR(10)&ScriptText!$D$1)","v":""},{"$f":"IF(OrigTable!F1871=\"\",\"\",TEXT(OrigTable!F1871,\"00\"))","v":""},{"$f":"IF(OrigTable!F1871=\"\",\"\",ScriptText!$E$1&CHAR(10)&ScriptText!$C$1)","v":""},{"$f":"IF(OrigTable!G1871=\"\",\"\",ScriptText!$B$1&CHAR(10)&ScriptText!$D$1)","v":""},{"$f":"IF(OrigTable!G1871=\"\",\"\",TEXT(OrigTable!G1871,\"00\"))","v":""},{"$f":"IF(OrigTable!G1871=\"\",\"\",ScriptText!$E$1&CHAR(10)&ScriptText!$C$1)","v":""},0]
["\n\n\n",{"$f":"IF(OrigTable!A1872=\"\",\"\",ScriptText!$B$1&CHAR(10)&ScriptText!$D$1)","v":""},{"$f":"IF(OrigTable!A1872=\"\",\"\",TEXT(OrigTable!A1872,\"00\"))","v":""},{"$f":"IF(OrigTable!A1872=\"\",\"\",ScriptText!$E$1&CHAR(10)&ScriptText!$C$1)","v":""},{"$f":"IF(OrigTable!B1872=\"\",\"\",ScriptText!$B$1&CHAR(10)&ScriptText!$D$1)","v":""},{"$f":"IF(OrigTable!B1872=\"\",\"\",TEXT(OrigTable!B1872,\"00\"))","v":""},{"$f":"IF(OrigTable!B1872=\"\",\"\",ScriptText!$E$1&CHAR(10)&ScriptText!C1867)","v":""},{"$f":"IF(OrigTable!C1872=\"\",\"\",ScriptText!$B$1&CHAR(10)&ScriptText!$D$1)","v":""},{"$f":"IF(OrigTable!C1872=\"\",\"\",IF(LEN(OrigTable!C1872)>255,LEFT(OrigTable!C1872,250)&\". . .\",OrigTable!C1872))","v":""},{"$f":"IF(OrigTable!C1872=\"\",\"\",ScriptText!$E$1&CHAR(10)&ScriptText!$C$1)","v":""},{"$f":"IF(OrigTable!D1872=\"\",\"\",ScriptText!$B$1&CHAR(10)&ScriptText!$D$1)","v":""},{"$f":"IF(OrigTable!D1872=\"\",\"\",TEXT(OrigTable!D1872,\"00\"))","v":""},{"$f":"IF(OrigTable!D1872=\"\",\"\",ScriptText!$E$1&CHAR(10)&ScriptText!$C$1)","v":""},{"$f":"IF(OrigTable!E1872=\"\",\"\",ScriptText!$B$1&CHAR(10)&ScriptText!$D$1)","v":""},{"$f":"IF(OrigTable!E1872=\"\",\"\",TEXT(OrigTable!E1872,\"00\"))","v":""},{"$f":"IF(OrigTable!E1872=\"\",\"\",ScriptText!$E$1&CHAR(10)&ScriptText!$C$1)","v":""},{"$f":"IF(OrigTable!F1872=\"\",\"\",ScriptText!$B$1&CHAR(10)&ScriptText!$D$1)","v":""},{"$f":"IF(OrigTable!F1872=\"\",\"\",TEXT(OrigTable!F1872,\"00\"))","v":""},{"$f":"IF(OrigTable!F1872=\"\",\"\",ScriptText!$E$1&CHAR(10)&ScriptText!$C$1)","v":""},{"$f":"IF(OrigTable!G1872=\"\",\"\",ScriptText!$B$1&CHAR(10)&ScriptText!$D$1)","v":""},{"$f":"IF(OrigTable!G1872=\"\",\"\",TEXT(OrigTable!G1872,\"00\"))","v":""},{"$f":"IF(OrigTable!G1872=\"\",\"\",ScriptText!$E$1&CHAR(10)&ScriptText!$C$1)","v":""},0]
["\n\n\n",{"$f":"IF(OrigTable!A1873=\"\",\"\",ScriptText!$B$1&CHAR(10)&ScriptText!$D$1)","v":""},{"$f":"IF(OrigTable!A1873=\"\",\"\",TEXT(OrigTable!A1873,\"00\"))","v":""},{"$f":"IF(OrigTable!A1873=\"\",\"\",ScriptText!$E$1&CHAR(10)&ScriptText!$C$1)","v":""},{"$f":"IF(OrigTable!B1873=\"\",\"\",ScriptText!$B$1&CHAR(10)&ScriptText!$D$1)","v":""},{"$f":"IF(OrigTable!B1873=\"\",\"\",TEXT(OrigTable!B1873,\"00\"))","v":""},{"$f":"IF(OrigTable!B1873=\"\",\"\",ScriptText!$E$1&CHAR(10)&ScriptText!C1868)","v":""},{"$f":"IF(OrigTable!C1873=\"\",\"\",ScriptText!$B$1&CHAR(10)&ScriptText!$D$1)","v":""},{"$f":"IF(OrigTable!C1873=\"\",\"\",IF(LEN(OrigTable!C1873)>255,LEFT(OrigTable!C1873,250)&\". . .\",OrigTable!C1873))","v":""},{"$f":"IF(OrigTable!C1873=\"\",\"\",ScriptText!$E$1&CHAR(10)&ScriptText!$C$1)","v":""},{"$f":"IF(OrigTable!D1873=\"\",\"\",ScriptText!$B$1&CHAR(10)&ScriptText!$D$1)","v":""},{"$f":"IF(OrigTable!D1873=\"\",\"\",TEXT(OrigTable!D1873,\"00\"))","v":""},{"$f":"IF(OrigTable!D1873=\"\",\"\",ScriptText!$E$1&CHAR(10)&ScriptText!$C$1)","v":""},{"$f":"IF(OrigTable!E1873=\"\",\"\",ScriptText!$B$1&CHAR(10)&ScriptText!$D$1)","v":""},{"$f":"IF(OrigTable!E1873=\"\",\"\",TEXT(OrigTable!E1873,\"00\"))","v":""},{"$f":"IF(OrigTable!E1873=\"\",\"\",ScriptText!$E$1&CHAR(10)&ScriptText!$C$1)","v":""},{"$f":"IF(OrigTable!F1873=\"\",\"\",ScriptText!$B$1&CHAR(10)&ScriptText!$D$1)","v":""},{"$f":"IF(OrigTable!F1873=\"\",\"\",TEXT(OrigTable!F1873,\"00\"))","v":""},{"$f":"IF(OrigTable!F1873=\"\",\"\",ScriptText!$E$1&CHAR(10)&ScriptText!$C$1)","v":""},{"$f":"IF(OrigTable!G1873=\"\",\"\",ScriptText!$B$1&CHAR(10)&ScriptText!$D$1)","v":""},{"$f":"IF(OrigTable!G1873=\"\",\"\",TEXT(OrigTable!G1873,\"00\"))","v":""},{"$f":"IF(OrigTable!G1873=\"\",\"\",ScriptText!$E$1&CHAR(10)&ScriptText!$C$1)","v":""},0]
["\n\n\n",{"$f":"IF(OrigTable!A1874=\"\",\"\",ScriptText!$B$1&CHAR(10)&ScriptText!$D$1)","v":""},{"$f":"IF(OrigTable!A1874=\"\",\"\",TEXT(OrigTable!A1874,\"00\"))","v":""},{"$f":"IF(OrigTable!A1874=\"\",\"\",ScriptText!$E$1&CHAR(10)&ScriptText!$C$1)","v":""},{"$f":"IF(OrigTable!B1874=\"\",\"\",ScriptText!$B$1&CHAR(10)&ScriptText!$D$1)","v":""},{"$f":"IF(OrigTable!B1874=\"\",\"\",TEXT(OrigTable!B1874,\"00\"))","v":""},{"$f":"IF(OrigTable!B1874=\"\",\"\",ScriptText!$E$1&CHAR(10)&ScriptText!C1869)","v":""},{"$f":"IF(OrigTable!C1874=\"\",\"\",ScriptText!$B$1&CHAR(10)&ScriptText!$D$1)","v":""},{"$f":"IF(OrigTable!C1874=\"\",\"\",IF(LEN(OrigTable!C1874)>255,LEFT(OrigTable!C1874,250)&\". . .\",OrigTable!C1874))","v":""},{"$f":"IF(OrigTable!C1874=\"\",\"\",ScriptText!$E$1&CHAR(10)&ScriptText!$C$1)","v":""},{"$f":"IF(OrigTable!D1874=\"\",\"\",ScriptText!$B$1&CHAR(10)&ScriptText!$D$1)","v":""},{"$f":"IF(OrigTable!D1874=\"\",\"\",TEXT(OrigTable!D1874,\"00\"))","v":""},{"$f":"IF(OrigTable!D1874=\"\",\"\",ScriptText!$E$1&CHAR(10)&ScriptText!$C$1)","v":""},{"$f":"IF(OrigTable!E1874=\"\",\"\",ScriptText!$B$1&CHAR(10)&ScriptText!$D$1)","v":""},{"$f":"IF(OrigTable!E1874=\"\",\"\",TEXT(OrigTable!E1874,\"00\"))","v":""},{"$f":"IF(OrigTable!E1874=\"\",\"\",ScriptText!$E$1&CHAR(10)&ScriptText!$C$1)","v":""},{"$f":"IF(OrigTable!F1874=\"\",\"\",ScriptText!$B$1&CHAR(10)&ScriptText!$D$1)","v":""},{"$f":"IF(OrigTable!F1874=\"\",\"\",TEXT(OrigTable!F1874,\"00\"))","v":""},{"$f":"IF(OrigTable!F1874=\"\",\"\",ScriptText!$E$1&CHAR(10)&ScriptText!$C$1)","v":""},{"$f":"IF(OrigTable!G1874=\"\",\"\",ScriptText!$B$1&CHAR(10)&ScriptText!$D$1)","v":""},{"$f":"IF(OrigTable!G1874=\"\",\"\",TEXT(OrigTable!G1874,\"00\"))","v":""},{"$f":"IF(OrigTable!G1874=\"\",\"\",ScriptText!$E$1&CHAR(10)&ScriptText!$C$1)","v":""},0]
["\n\n\n",{"$f":"IF(OrigTable!A1875=\"\",\"\",ScriptText!$B$1&CHAR(10)&ScriptText!$D$1)","v":""},{"$f":"IF(OrigTable!A1875=\"\",\"\",TEXT(OrigTable!A1875,\"00\"))","v":""},{"$f":"IF(OrigTable!A1875=\"\",\"\",ScriptText!$E$1&CHAR(10)&ScriptText!$C$1)","v":""},{"$f":"IF(OrigTable!B1875=\"\",\"\",ScriptText!$B$1&CHAR(10)&ScriptText!$D$1)","v":""},{"$f":"IF(OrigTable!B1875=\"\",\"\",TEXT(OrigTable!B1875,\"00\"))","v":""},{"$f":"IF(OrigTable!B1875=\"\",\"\",ScriptText!$E$1&CHAR(10)&ScriptText!C1870)","v":""},{"$f":"IF(OrigTable!C1875=\"\",\"\",ScriptText!$B$1&CHAR(10)&ScriptText!$D$1)","v":""},{"$f":"IF(OrigTable!C1875=\"\",\"\",IF(LEN(OrigTable!C1875)>255,LEFT(OrigTable!C1875,250)&\". . .\",OrigTable!C1875))","v":""},{"$f":"IF(OrigTable!C1875=\"\",\"\",ScriptText!$E$1&CHAR(10)&ScriptText!$C$1)","v":""},{"$f":"IF(OrigTable!D1875=\"\",\"\",ScriptText!$B$1&CHAR(10)&ScriptText!$D$1)","v":""},{"$f":"IF(OrigTable!D1875=\"\",\"\",TEXT(OrigTable!D1875,\"00\"))","v":""},{"$f":"IF(OrigTable!D1875=\"\",\"\",ScriptText!$E$1&CHAR(10)&ScriptText!$C$1)","v":""},{"$f":"IF(OrigTable!E1875=\"\",\"\",ScriptText!$B$1&CHAR(10)&ScriptText!$D$1)","v":""},{"$f":"IF(OrigTable!E1875=\"\",\"\",TEXT(OrigTable!E1875,\"00\"))","v":""},{"$f":"IF(OrigTable!E1875=\"\",\"\",ScriptText!$E$1&CHAR(10)&ScriptText!$C$1)","v":""},{"$f":"IF(OrigTable!F1875=\"\",\"\",ScriptText!$B$1&CHAR(10)&ScriptText!$D$1)","v":""},{"$f":"IF(OrigTable!F1875=\"\",\"\",TEXT(OrigTable!F1875,\"00\"))","v":""},{"$f":"IF(OrigTable!F1875=\"\",\"\",ScriptText!$E$1&CHAR(10)&ScriptText!$C$1)","v":""},{"$f":"IF(OrigTable!G1875=\"\",\"\",ScriptText!$B$1&CHAR(10)&ScriptText!$D$1)","v":""},{"$f":"IF(OrigTable!G1875=\"\",\"\",TEXT(OrigTable!G1875,\"00\"))","v":""},{"$f":"IF(OrigTable!G1875=\"\",\"\",ScriptText!$E$1&CHAR(10)&ScriptText!$C$1)","v":""},0]
["\n\n\n",{"$f":"IF(OrigTable!A1876=\"\",\"\",ScriptText!$B$1&CHAR(10)&ScriptText!$D$1)","v":""},{"$f":"IF(OrigTable!A1876=\"\",\"\",TEXT(OrigTable!A1876,\"00\"))","v":""},{"$f":"IF(OrigTable!A1876=\"\",\"\",ScriptText!$E$1&CHAR(10)&ScriptText!$C$1)","v":""},{"$f":"IF(OrigTable!B1876=\"\",\"\",ScriptText!$B$1&CHAR(10)&ScriptText!$D$1)","v":""},{"$f":"IF(OrigTable!B1876=\"\",\"\",TEXT(OrigTable!B1876,\"00\"))","v":""},{"$f":"IF(OrigTable!B1876=\"\",\"\",ScriptText!$E$1&CHAR(10)&ScriptText!C1871)","v":""},{"$f":"IF(OrigTable!C1876=\"\",\"\",ScriptText!$B$1&CHAR(10)&ScriptText!$D$1)","v":""},{"$f":"IF(OrigTable!C1876=\"\",\"\",IF(LEN(OrigTable!C1876)>255,LEFT(OrigTable!C1876,250)&\". . .\",OrigTable!C1876))","v":""},{"$f":"IF(OrigTable!C1876=\"\",\"\",ScriptText!$E$1&CHAR(10)&ScriptText!$C$1)","v":""},{"$f":"IF(OrigTable!D1876=\"\",\"\",ScriptText!$B$1&CHAR(10)&ScriptText!$D$1)","v":""},{"$f":"IF(OrigTable!D1876=\"\",\"\",TEXT(OrigTable!D1876,\"00\"))","v":""},{"$f":"IF(OrigTable!D1876=\"\",\"\",ScriptText!$E$1&CHAR(10)&ScriptText!$C$1)","v":""},{"$f":"IF(OrigTable!E1876=\"\",\"\",ScriptText!$B$1&CHAR(10)&ScriptText!$D$1)","v":""},{"$f":"IF(OrigTable!E1876=\"\",\"\",TEXT(OrigTable!E1876,\"00\"))","v":""},{"$f":"IF(OrigTable!E1876=\"\",\"\",ScriptText!$E$1&CHAR(10)&ScriptText!$C$1)","v":""},{"$f":"IF(OrigTable!F1876=\"\",\"\",ScriptText!$B$1&CHAR(10)&ScriptText!$D$1)","v":""},{"$f":"IF(OrigTable!F1876=\"\",\"\",TEXT(OrigTable!F1876,\"00\"))","v":""},{"$f":"IF(OrigTable!F1876=\"\",\"\",ScriptText!$E$1&CHAR(10)&ScriptText!$C$1)","v":""},{"$f":"IF(OrigTable!G1876=\"\",\"\",ScriptText!$B$1&CHAR(10)&ScriptText!$D$1)","v":""},{"$f":"IF(OrigTable!G1876=\"\",\"\",TEXT(OrigTable!G1876,\"00\"))","v":""},{"$f":"IF(OrigTable!G1876=\"\",\"\",ScriptText!$E$1&CHAR(10)&ScriptText!$C$1)","v":""},0]
["\n\n\n",{"$f":"IF(OrigTable!A1877=\"\",\"\",ScriptText!$B$1&CHAR(10)&ScriptText!$D$1)","v":""},{"$f":"IF(OrigTable!A1877=\"\",\"\",TEXT(OrigTable!A1877,\"00\"))","v":""},{"$f":"IF(OrigTable!A1877=\"\",\"\",ScriptText!$E$1&CHAR(10)&ScriptText!$C$1)","v":""},{"$f":"IF(OrigTable!B1877=\"\",\"\",ScriptText!$B$1&CHAR(10)&ScriptText!$D$1)","v":""},{"$f":"IF(OrigTable!B1877=\"\",\"\",TEXT(OrigTable!B1877,\"00\"))","v":""},{"$f":"IF(OrigTable!B1877=\"\",\"\",ScriptText!$E$1&CHAR(10)&ScriptText!C1872)","v":""},{"$f":"IF(OrigTable!C1877=\"\",\"\",ScriptText!$B$1&CHAR(10)&ScriptText!$D$1)","v":""},{"$f":"IF(OrigTable!C1877=\"\",\"\",IF(LEN(OrigTable!C1877)>255,LEFT(OrigTable!C1877,250)&\". . .\",OrigTable!C1877))","v":""},{"$f":"IF(OrigTable!C1877=\"\",\"\",ScriptText!$E$1&CHAR(10)&ScriptText!$C$1)","v":""},{"$f":"IF(OrigTable!D1877=\"\",\"\",ScriptText!$B$1&CHAR(10)&ScriptText!$D$1)","v":""},{"$f":"IF(OrigTable!D1877=\"\",\"\",TEXT(OrigTable!D1877,\"00\"))","v":""},{"$f":"IF(OrigTable!D1877=\"\",\"\",ScriptText!$E$1&CHAR(10)&ScriptText!$C$1)","v":""},{"$f":"IF(OrigTable!E1877=\"\",\"\",ScriptText!$B$1&CHAR(10)&ScriptText!$D$1)","v":""},{"$f":"IF(OrigTable!E1877=\"\",\"\",TEXT(OrigTable!E1877,\"00\"))","v":""},{"$f":"IF(OrigTable!E1877=\"\",\"\",ScriptText!$E$1&CHAR(10)&ScriptText!$C$1)","v":""},{"$f":"IF(OrigTable!F1877=\"\",\"\",ScriptText!$B$1&CHAR(10)&ScriptText!$D$1)","v":""},{"$f":"IF(OrigTable!F1877=\"\",\"\",TEXT(OrigTable!F1877,\"00\"))","v":""},{"$f":"IF(OrigTable!F1877=\"\",\"\",ScriptText!$E$1&CHAR(10)&ScriptText!$C$1)","v":""},{"$f":"IF(OrigTable!G1877=\"\",\"\",ScriptText!$B$1&CHAR(10)&ScriptText!$D$1)","v":""},{"$f":"IF(OrigTable!G1877=\"\",\"\",TEXT(OrigTable!G1877,\"00\"))","v":""},{"$f":"IF(OrigTable!G1877=\"\",\"\",ScriptText!$E$1&CHAR(10)&ScriptText!$C$1)","v":""},0]
["\n\n\n",{"$f":"IF(OrigTable!A1878=\"\",\"\",ScriptText!$B$1&CHAR(10)&ScriptText!$D$1)","v":""},{"$f":"IF(OrigTable!A1878=\"\",\"\",TEXT(OrigTable!A1878,\"00\"))","v":""},{"$f":"IF(OrigTable!A1878=\"\",\"\",ScriptText!$E$1&CHAR(10)&ScriptText!$C$1)","v":""},{"$f":"IF(OrigTable!B1878=\"\",\"\",ScriptText!$B$1&CHAR(10)&ScriptText!$D$1)","v":""},{"$f":"IF(OrigTable!B1878=\"\",\"\",TEXT(OrigTable!B1878,\"00\"))","v":""},{"$f":"IF(OrigTable!B1878=\"\",\"\",ScriptText!$E$1&CHAR(10)&ScriptText!C1873)","v":""},{"$f":"IF(OrigTable!C1878=\"\",\"\",ScriptText!$B$1&CHAR(10)&ScriptText!$D$1)","v":""},{"$f":"IF(OrigTable!C1878=\"\",\"\",IF(LEN(OrigTable!C1878)>255,LEFT(OrigTable!C1878,250)&\". . .\",OrigTable!C1878))","v":""},{"$f":"IF(OrigTable!C1878=\"\",\"\",ScriptText!$E$1&CHAR(10)&ScriptText!$C$1)","v":""},{"$f":"IF(OrigTable!D1878=\"\",\"\",ScriptText!$B$1&CHAR(10)&ScriptText!$D$1)","v":""},{"$f":"IF(OrigTable!D1878=\"\",\"\",TEXT(OrigTable!D1878,\"00\"))","v":""},{"$f":"IF(OrigTable!D1878=\"\",\"\",ScriptText!$E$1&CHAR(10)&ScriptText!$C$1)","v":""},{"$f":"IF(OrigTable!E1878=\"\",\"\",ScriptText!$B$1&CHAR(10)&ScriptText!$D$1)","v":""},{"$f":"IF(OrigTable!E1878=\"\",\"\",TEXT(OrigTable!E1878,\"00\"))","v":""},{"$f":"IF(OrigTable!E1878=\"\",\"\",ScriptText!$E$1&CHAR(10)&ScriptText!$C$1)","v":""},{"$f":"IF(OrigTable!F1878=\"\",\"\",ScriptText!$B$1&CHAR(10)&ScriptText!$D$1)","v":""},{"$f":"IF(OrigTable!F1878=\"\",\"\",TEXT(OrigTable!F1878,\"00\"))","v":""},{"$f":"IF(OrigTable!F1878=\"\",\"\",ScriptText!$E$1&CHAR(10)&ScriptText!$C$1)","v":""},{"$f":"IF(OrigTable!G1878=\"\",\"\",ScriptText!$B$1&CHAR(10)&ScriptText!$D$1)","v":""},{"$f":"IF(OrigTable!G1878=\"\",\"\",TEXT(OrigTable!G1878,\"00\"))","v":""},{"$f":"IF(OrigTable!G1878=\"\",\"\",ScriptText!$E$1&CHAR(10)&ScriptText!$C$1)","v":""},0]
["\n\n\n",{"$f":"IF(OrigTable!A1879=\"\",\"\",ScriptText!$B$1&CHAR(10)&ScriptText!$D$1)","v":""},{"$f":"IF(OrigTable!A1879=\"\",\"\",TEXT(OrigTable!A1879,\"00\"))","v":""},{"$f":"IF(OrigTable!A1879=\"\",\"\",ScriptText!$E$1&CHAR(10)&ScriptText!$C$1)","v":""},{"$f":"IF(OrigTable!B1879=\"\",\"\",ScriptText!$B$1&CHAR(10)&ScriptText!$D$1)","v":""},{"$f":"IF(OrigTable!B1879=\"\",\"\",TEXT(OrigTable!B1879,\"00\"))","v":""},{"$f":"IF(OrigTable!B1879=\"\",\"\",ScriptText!$E$1&CHAR(10)&ScriptText!C1874)","v":""},{"$f":"IF(OrigTable!C1879=\"\",\"\",ScriptText!$B$1&CHAR(10)&ScriptText!$D$1)","v":""},{"$f":"IF(OrigTable!C1879=\"\",\"\",IF(LEN(OrigTable!C1879)>255,LEFT(OrigTable!C1879,250)&\". . .\",OrigTable!C1879))","v":""},{"$f":"IF(OrigTable!C1879=\"\",\"\",ScriptText!$E$1&CHAR(10)&ScriptText!$C$1)","v":""},{"$f":"IF(OrigTable!D1879=\"\",\"\",ScriptText!$B$1&CHAR(10)&ScriptText!$D$1)","v":""},{"$f":"IF(OrigTable!D1879=\"\",\"\",TEXT(OrigTable!D1879,\"00\"))","v":""},{"$f":"IF(OrigTable!D1879=\"\",\"\",ScriptText!$E$1&CHAR(10)&ScriptText!$C$1)","v":""},{"$f":"IF(OrigTable!E1879=\"\",\"\",ScriptText!$B$1&CHAR(10)&ScriptText!$D$1)","v":""},{"$f":"IF(OrigTable!E1879=\"\",\"\",TEXT(OrigTable!E1879,\"00\"))","v":""},{"$f":"IF(OrigTable!E1879=\"\",\"\",ScriptText!$E$1&CHAR(10)&ScriptText!$C$1)","v":""},{"$f":"IF(OrigTable!F1879=\"\",\"\",ScriptText!$B$1&CHAR(10)&ScriptText!$D$1)","v":""},{"$f":"IF(OrigTable!F1879=\"\",\"\",TEXT(OrigTable!F1879,\"00\"))","v":""},{"$f":"IF(OrigTable!F1879=\"\",\"\",ScriptText!$E$1&CHAR(10)&ScriptText!$C$1)","v":""},{"$f":"IF(OrigTable!G1879=\"\",\"\",ScriptText!$B$1&CHAR(10)&ScriptText!$D$1)","v":""},{"$f":"IF(OrigTable!G1879=\"\",\"\",TEXT(OrigTable!G1879,\"00\"))","v":""},{"$f":"IF(OrigTable!G1879=\"\",\"\",ScriptText!$E$1&CHAR(10)&ScriptText!$C$1)","v":""},0]
["\n\n\n",{"$f":"IF(OrigTable!A1880=\"\",\"\",ScriptText!$B$1&CHAR(10)&ScriptText!$D$1)","v":""},{"$f":"IF(OrigTable!A1880=\"\",\"\",TEXT(OrigTable!A1880,\"00\"))","v":""},{"$f":"IF(OrigTable!A1880=\"\",\"\",ScriptText!$E$1&CHAR(10)&ScriptText!$C$1)","v":""},{"$f":"IF(OrigTable!B1880=\"\",\"\",ScriptText!$B$1&CHAR(10)&ScriptText!$D$1)","v":""},{"$f":"IF(OrigTable!B1880=\"\",\"\",TEXT(OrigTable!B1880,\"00\"))","v":""},{"$f":"IF(OrigTable!B1880=\"\",\"\",ScriptText!$E$1&CHAR(10)&ScriptText!C1875)","v":""},{"$f":"IF(OrigTable!C1880=\"\",\"\",ScriptText!$B$1&CHAR(10)&ScriptText!$D$1)","v":""},{"$f":"IF(OrigTable!C1880=\"\",\"\",IF(LEN(OrigTable!C1880)>255,LEFT(OrigTable!C1880,250)&\". . .\",OrigTable!C1880))","v":""},{"$f":"IF(OrigTable!C1880=\"\",\"\",ScriptText!$E$1&CHAR(10)&ScriptText!$C$1)","v":""},{"$f":"IF(OrigTable!D1880=\"\",\"\",ScriptText!$B$1&CHAR(10)&ScriptText!$D$1)","v":""},{"$f":"IF(OrigTable!D1880=\"\",\"\",TEXT(OrigTable!D1880,\"00\"))","v":""},{"$f":"IF(OrigTable!D1880=\"\",\"\",ScriptText!$E$1&CHAR(10)&ScriptText!$C$1)","v":""},{"$f":"IF(OrigTable!E1880=\"\",\"\",ScriptText!$B$1&CHAR(10)&ScriptText!$D$1)","v":""},{"$f":"IF(OrigTable!E1880=\"\",\"\",TEXT(OrigTable!E1880,\"00\"))","v":""},{"$f":"IF(OrigTable!E1880=\"\",\"\",ScriptText!$E$1&CHAR(10)&ScriptText!$C$1)","v":""},{"$f":"IF(OrigTable!F1880=\"\",\"\",ScriptText!$B$1&CHAR(10)&ScriptText!$D$1)","v":""},{"$f":"IF(OrigTable!F1880=\"\",\"\",TEXT(OrigTable!F1880,\"00\"))","v":""},{"$f":"IF(OrigTable!F1880=\"\",\"\",ScriptText!$E$1&CHAR(10)&ScriptText!$C$1)","v":""},{"$f":"IF(OrigTable!G1880=\"\",\"\",ScriptText!$B$1&CHAR(10)&ScriptText!$D$1)","v":""},{"$f":"IF(OrigTable!G1880=\"\",\"\",TEXT(OrigTable!G1880,\"00\"))","v":""},{"$f":"IF(OrigTable!G1880=\"\",\"\",ScriptText!$E$1&CHAR(10)&ScriptText!$C$1)","v":""},0]
["\n\n\n",{"$f":"IF(OrigTable!A1881=\"\",\"\",ScriptText!$B$1&CHAR(10)&ScriptText!$D$1)","v":""},{"$f":"IF(OrigTable!A1881=\"\",\"\",TEXT(OrigTable!A1881,\"00\"))","v":""},{"$f":"IF(OrigTable!A1881=\"\",\"\",ScriptText!$E$1&CHAR(10)&ScriptText!$C$1)","v":""},{"$f":"IF(OrigTable!B1881=\"\",\"\",ScriptText!$B$1&CHAR(10)&ScriptText!$D$1)","v":""},{"$f":"IF(OrigTable!B1881=\"\",\"\",TEXT(OrigTable!B1881,\"00\"))","v":""},{"$f":"IF(OrigTable!B1881=\"\",\"\",ScriptText!$E$1&CHAR(10)&ScriptText!C1876)","v":""},{"$f":"IF(OrigTable!C1881=\"\",\"\",ScriptText!$B$1&CHAR(10)&ScriptText!$D$1)","v":""},{"$f":"IF(OrigTable!C1881=\"\",\"\",IF(LEN(OrigTable!C1881)>255,LEFT(OrigTable!C1881,250)&\". . .\",OrigTable!C1881))","v":""},{"$f":"IF(OrigTable!C1881=\"\",\"\",ScriptText!$E$1&CHAR(10)&ScriptText!$C$1)","v":""},{"$f":"IF(OrigTable!D1881=\"\",\"\",ScriptText!$B$1&CHAR(10)&ScriptText!$D$1)","v":""},{"$f":"IF(OrigTable!D1881=\"\",\"\",TEXT(OrigTable!D1881,\"00\"))","v":""},{"$f":"IF(OrigTable!D1881=\"\",\"\",ScriptText!$E$1&CHAR(10)&ScriptText!$C$1)","v":""},{"$f":"IF(OrigTable!E1881=\"\",\"\",ScriptText!$B$1&CHAR(10)&ScriptText!$D$1)","v":""},{"$f":"IF(OrigTable!E1881=\"\",\"\",TEXT(OrigTable!E1881,\"00\"))","v":""},{"$f":"IF(OrigTable!E1881=\"\",\"\",ScriptText!$E$1&CHAR(10)&ScriptText!$C$1)","v":""},{"$f":"IF(OrigTable!F1881=\"\",\"\",ScriptText!$B$1&CHAR(10)&ScriptText!$D$1)","v":""},{"$f":"IF(OrigTable!F1881=\"\",\"\",TEXT(OrigTable!F1881,\"00\"))","v":""},{"$f":"IF(OrigTable!F1881=\"\",\"\",ScriptText!$E$1&CHAR(10)&ScriptText!$C$1)","v":""},{"$f":"IF(OrigTable!G1881=\"\",\"\",ScriptText!$B$1&CHAR(10)&ScriptText!$D$1)","v":""},{"$f":"IF(OrigTable!G1881=\"\",\"\",TEXT(OrigTable!G1881,\"00\"))","v":""},{"$f":"IF(OrigTable!G1881=\"\",\"\",ScriptText!$E$1&CHAR(10)&ScriptText!$C$1)","v":""},0]
["\n\n\n",{"$f":"IF(OrigTable!A1882=\"\",\"\",ScriptText!$B$1&CHAR(10)&ScriptText!$D$1)","v":""},{"$f":"IF(OrigTable!A1882=\"\",\"\",TEXT(OrigTable!A1882,\"00\"))","v":""},{"$f":"IF(OrigTable!A1882=\"\",\"\",ScriptText!$E$1&CHAR(10)&ScriptText!$C$1)","v":""},{"$f":"IF(OrigTable!B1882=\"\",\"\",ScriptText!$B$1&CHAR(10)&ScriptText!$D$1)","v":""},{"$f":"IF(OrigTable!B1882=\"\",\"\",TEXT(OrigTable!B1882,\"00\"))","v":""},{"$f":"IF(OrigTable!B1882=\"\",\"\",ScriptText!$E$1&CHAR(10)&ScriptText!C1877)","v":""},{"$f":"IF(OrigTable!C1882=\"\",\"\",ScriptText!$B$1&CHAR(10)&ScriptText!$D$1)","v":""},{"$f":"IF(OrigTable!C1882=\"\",\"\",IF(LEN(OrigTable!C1882)>255,LEFT(OrigTable!C1882,250)&\". . .\",OrigTable!C1882))","v":""},{"$f":"IF(OrigTable!C1882=\"\",\"\",ScriptText!$E$1&CHAR(10)&ScriptText!$C$1)","v":""},{"$f":"IF(OrigTable!D1882=\"\",\"\",ScriptText!$B$1&CHAR(10)&ScriptText!$D$1)","v":""},{"$f":"IF(OrigTable!D1882=\"\",\"\",TEXT(OrigTable!D1882,\"00\"))","v":""},{"$f":"IF(OrigTable!D1882=\"\",\"\",ScriptText!$E$1&CHAR(10)&ScriptText!$C$1)","v":""},{"$f":"IF(OrigTable!E1882=\"\",\"\",ScriptText!$B$1&CHAR(10)&ScriptText!$D$1)","v":""},{"$f":"IF(OrigTable!E1882=\"\",\"\",TEXT(OrigTable!E1882,\"00\"))","v":""},{"$f":"IF(OrigTable!E1882=\"\",\"\",ScriptText!$E$1&CHAR(10)&ScriptText!$C$1)","v":""},{"$f":"IF(OrigTable!F1882=\"\",\"\",ScriptText!$B$1&CHAR(10)&ScriptText!$D$1)","v":""},{"$f":"IF(OrigTable!F1882=\"\",\"\",TEXT(OrigTable!F1882,\"00\"))","v":""},{"$f":"IF(OrigTable!F1882=\"\",\"\",ScriptText!$E$1&CHAR(10)&ScriptText!$C$1)","v":""},{"$f":"IF(OrigTable!G1882=\"\",\"\",ScriptText!$B$1&CHAR(10)&ScriptText!$D$1)","v":""},{"$f":"IF(OrigTable!G1882=\"\",\"\",TEXT(OrigTable!G1882,\"00\"))","v":""},{"$f":"IF(OrigTable!G1882=\"\",\"\",ScriptText!$E$1&CHAR(10)&ScriptText!$C$1)","v":""},0]
["\n\n\n",{"$f":"IF(OrigTable!A1883=\"\",\"\",ScriptText!$B$1&CHAR(10)&ScriptText!$D$1)","v":""},{"$f":"IF(OrigTable!A1883=\"\",\"\",TEXT(OrigTable!A1883,\"00\"))","v":""},{"$f":"IF(OrigTable!A1883=\"\",\"\",ScriptText!$E$1&CHAR(10)&ScriptText!$C$1)","v":""},{"$f":"IF(OrigTable!B1883=\"\",\"\",ScriptText!$B$1&CHAR(10)&ScriptText!$D$1)","v":""},{"$f":"IF(OrigTable!B1883=\"\",\"\",TEXT(OrigTable!B1883,\"00\"))","v":""},{"$f":"IF(OrigTable!B1883=\"\",\"\",ScriptText!$E$1&CHAR(10)&ScriptText!C1878)","v":""},{"$f":"IF(OrigTable!C1883=\"\",\"\",ScriptText!$B$1&CHAR(10)&ScriptText!$D$1)","v":""},{"$f":"IF(OrigTable!C1883=\"\",\"\",IF(LEN(OrigTable!C1883)>255,LEFT(OrigTable!C1883,250)&\". . .\",OrigTable!C1883))","v":""},{"$f":"IF(OrigTable!C1883=\"\",\"\",ScriptText!$E$1&CHAR(10)&ScriptText!$C$1)","v":""},{"$f":"IF(OrigTable!D1883=\"\",\"\",ScriptText!$B$1&CHAR(10)&ScriptText!$D$1)","v":""},{"$f":"IF(OrigTable!D1883=\"\",\"\",TEXT(OrigTable!D1883,\"00\"))","v":""},{"$f":"IF(OrigTable!D1883=\"\",\"\",ScriptText!$E$1&CHAR(10)&ScriptText!$C$1)","v":""},{"$f":"IF(OrigTable!E1883=\"\",\"\",ScriptText!$B$1&CHAR(10)&ScriptText!$D$1)","v":""},{"$f":"IF(OrigTable!E1883=\"\",\"\",TEXT(OrigTable!E1883,\"00\"))","v":""},{"$f":"IF(OrigTable!E1883=\"\",\"\",ScriptText!$E$1&CHAR(10)&ScriptText!$C$1)","v":""},{"$f":"IF(OrigTable!F1883=\"\",\"\",ScriptText!$B$1&CHAR(10)&ScriptText!$D$1)","v":""},{"$f":"IF(OrigTable!F1883=\"\",\"\",TEXT(OrigTable!F1883,\"00\"))","v":""},{"$f":"IF(OrigTable!F1883=\"\",\"\",ScriptText!$E$1&CHAR(10)&ScriptText!$C$1)","v":""},{"$f":"IF(OrigTable!G1883=\"\",\"\",ScriptText!$B$1&CHAR(10)&ScriptText!$D$1)","v":""},{"$f":"IF(OrigTable!G1883=\"\",\"\",TEXT(OrigTable!G1883,\"00\"))","v":""},{"$f":"IF(OrigTable!G1883=\"\",\"\",ScriptText!$E$1&CHAR(10)&ScriptText!$C$1)","v":""},0]
["\n\n\n",{"$f":"IF(OrigTable!A1884=\"\",\"\",ScriptText!$B$1&CHAR(10)&ScriptText!$D$1)","v":""},{"$f":"IF(OrigTable!A1884=\"\",\"\",TEXT(OrigTable!A1884,\"00\"))","v":""},{"$f":"IF(OrigTable!A1884=\"\",\"\",ScriptText!$E$1&CHAR(10)&ScriptText!$C$1)","v":""},{"$f":"IF(OrigTable!B1884=\"\",\"\",ScriptText!$B$1&CHAR(10)&ScriptText!$D$1)","v":""},{"$f":"IF(OrigTable!B1884=\"\",\"\",TEXT(OrigTable!B1884,\"00\"))","v":""},{"$f":"IF(OrigTable!B1884=\"\",\"\",ScriptText!$E$1&CHAR(10)&ScriptText!C1879)","v":""},{"$f":"IF(OrigTable!C1884=\"\",\"\",ScriptText!$B$1&CHAR(10)&ScriptText!$D$1)","v":""},{"$f":"IF(OrigTable!C1884=\"\",\"\",IF(LEN(OrigTable!C1884)>255,LEFT(OrigTable!C1884,250)&\". . .\",OrigTable!C1884))","v":""},{"$f":"IF(OrigTable!C1884=\"\",\"\",ScriptText!$E$1&CHAR(10)&ScriptText!$C$1)","v":""},{"$f":"IF(OrigTable!D1884=\"\",\"\",ScriptText!$B$1&CHAR(10)&ScriptText!$D$1)","v":""},{"$f":"IF(OrigTable!D1884=\"\",\"\",TEXT(OrigTable!D1884,\"00\"))","v":""},{"$f":"IF(OrigTable!D1884=\"\",\"\",ScriptText!$E$1&CHAR(10)&ScriptText!$C$1)","v":""},{"$f":"IF(OrigTable!E1884=\"\",\"\",ScriptText!$B$1&CHAR(10)&ScriptText!$D$1)","v":""},{"$f":"IF(OrigTable!E1884=\"\",\"\",TEXT(OrigTable!E1884,\"00\"))","v":""},{"$f":"IF(OrigTable!E1884=\"\",\"\",ScriptText!$E$1&CHAR(10)&ScriptText!$C$1)","v":""},{"$f":"IF(OrigTable!F1884=\"\",\"\",ScriptText!$B$1&CHAR(10)&ScriptText!$D$1)","v":""},{"$f":"IF(OrigTable!F1884=\"\",\"\",TEXT(OrigTable!F1884,\"00\"))","v":""},{"$f":"IF(OrigTable!F1884=\"\",\"\",ScriptText!$E$1&CHAR(10)&ScriptText!$C$1)","v":""},{"$f":"IF(OrigTable!G1884=\"\",\"\",ScriptText!$B$1&CHAR(10)&ScriptText!$D$1)","v":""},{"$f":"IF(OrigTable!G1884=\"\",\"\",TEXT(OrigTable!G1884,\"00\"))","v":""},{"$f":"IF(OrigTable!G1884=\"\",\"\",ScriptText!$E$1&CHAR(10)&ScriptText!$C$1)","v":""},0]
["\n\n\n",{"$f":"IF(OrigTable!A1885=\"\",\"\",ScriptText!$B$1&CHAR(10)&ScriptText!$D$1)","v":""},{"$f":"IF(OrigTable!A1885=\"\",\"\",TEXT(OrigTable!A1885,\"00\"))","v":""},{"$f":"IF(OrigTable!A1885=\"\",\"\",ScriptText!$E$1&CHAR(10)&ScriptText!$C$1)","v":""},{"$f":"IF(OrigTable!B1885=\"\",\"\",ScriptText!$B$1&CHAR(10)&ScriptText!$D$1)","v":""},{"$f":"IF(OrigTable!B1885=\"\",\"\",TEXT(OrigTable!B1885,\"00\"))","v":""},{"$f":"IF(OrigTable!B1885=\"\",\"\",ScriptText!$E$1&CHAR(10)&ScriptText!C1880)","v":""},{"$f":"IF(OrigTable!C1885=\"\",\"\",ScriptText!$B$1&CHAR(10)&ScriptText!$D$1)","v":""},{"$f":"IF(OrigTable!C1885=\"\",\"\",IF(LEN(OrigTable!C1885)>255,LEFT(OrigTable!C1885,250)&\". . .\",OrigTable!C1885))","v":""},{"$f":"IF(OrigTable!C1885=\"\",\"\",ScriptText!$E$1&CHAR(10)&ScriptText!$C$1)","v":""},{"$f":"IF(OrigTable!D1885=\"\",\"\",ScriptText!$B$1&CHAR(10)&ScriptText!$D$1)","v":""},{"$f":"IF(OrigTable!D1885=\"\",\"\",TEXT(OrigTable!D1885,\"00\"))","v":""},{"$f":"IF(OrigTable!D1885=\"\",\"\",ScriptText!$E$1&CHAR(10)&ScriptText!$C$1)","v":""},{"$f":"IF(OrigTable!E1885=\"\",\"\",ScriptText!$B$1&CHAR(10)&ScriptText!$D$1)","v":""},{"$f":"IF(OrigTable!E1885=\"\",\"\",TEXT(OrigTable!E1885,\"00\"))","v":""},{"$f":"IF(OrigTable!E1885=\"\",\"\",ScriptText!$E$1&CHAR(10)&ScriptText!$C$1)","v":""},{"$f":"IF(OrigTable!F1885=\"\",\"\",ScriptText!$B$1&CHAR(10)&ScriptText!$D$1)","v":""},{"$f":"IF(OrigTable!F1885=\"\",\"\",TEXT(OrigTable!F1885,\"00\"))","v":""},{"$f":"IF(OrigTable!F1885=\"\",\"\",ScriptText!$E$1&CHAR(10)&ScriptText!$C$1)","v":""},{"$f":"IF(OrigTable!G1885=\"\",\"\",ScriptText!$B$1&CHAR(10)&ScriptText!$D$1)","v":""},{"$f":"IF(OrigTable!G1885=\"\",\"\",TEXT(OrigTable!G1885,\"00\"))","v":""},{"$f":"IF(OrigTable!G1885=\"\",\"\",ScriptText!$E$1&CHAR(10)&ScriptText!$C$1)","v":""},0]
["\n\n\n",{"$f":"IF(OrigTable!A1886=\"\",\"\",ScriptText!$B$1&CHAR(10)&ScriptText!$D$1)","v":""},{"$f":"IF(OrigTable!A1886=\"\",\"\",TEXT(OrigTable!A1886,\"00\"))","v":""},{"$f":"IF(OrigTable!A1886=\"\",\"\",ScriptText!$E$1&CHAR(10)&ScriptText!$C$1)","v":""},{"$f":"IF(OrigTable!B1886=\"\",\"\",ScriptText!$B$1&CHAR(10)&ScriptText!$D$1)","v":""},{"$f":"IF(OrigTable!B1886=\"\",\"\",TEXT(OrigTable!B1886,\"00\"))","v":""},{"$f":"IF(OrigTable!B1886=\"\",\"\",ScriptText!$E$1&CHAR(10)&ScriptText!C1881)","v":""},{"$f":"IF(OrigTable!C1886=\"\",\"\",ScriptText!$B$1&CHAR(10)&ScriptText!$D$1)","v":""},{"$f":"IF(OrigTable!C1886=\"\",\"\",IF(LEN(OrigTable!C1886)>255,LEFT(OrigTable!C1886,250)&\". . .\",OrigTable!C1886))","v":""},{"$f":"IF(OrigTable!C1886=\"\",\"\",ScriptText!$E$1&CHAR(10)&ScriptText!$C$1)","v":""},{"$f":"IF(OrigTable!D1886=\"\",\"\",ScriptText!$B$1&CHAR(10)&ScriptText!$D$1)","v":""},{"$f":"IF(OrigTable!D1886=\"\",\"\",TEXT(OrigTable!D1886,\"00\"))","v":""},{"$f":"IF(OrigTable!D1886=\"\",\"\",ScriptText!$E$1&CHAR(10)&ScriptText!$C$1)","v":""},{"$f":"IF(OrigTable!E1886=\"\",\"\",ScriptText!$B$1&CHAR(10)&ScriptText!$D$1)","v":""},{"$f":"IF(OrigTable!E1886=\"\",\"\",TEXT(OrigTable!E1886,\"00\"))","v":""},{"$f":"IF(OrigTable!E1886=\"\",\"\",ScriptText!$E$1&CHAR(10)&ScriptText!$C$1)","v":""},{"$f":"IF(OrigTable!F1886=\"\",\"\",ScriptText!$B$1&CHAR(10)&ScriptText!$D$1)","v":""},{"$f":"IF(OrigTable!F1886=\"\",\"\",TEXT(OrigTable!F1886,\"00\"))","v":""},{"$f":"IF(OrigTable!F1886=\"\",\"\",ScriptText!$E$1&CHAR(10)&ScriptText!$C$1)","v":""},{"$f":"IF(OrigTable!G1886=\"\",\"\",ScriptText!$B$1&CHAR(10)&ScriptText!$D$1)","v":""},{"$f":"IF(OrigTable!G1886=\"\",\"\",TEXT(OrigTable!G1886,\"00\"))","v":""},{"$f":"IF(OrigTable!G1886=\"\",\"\",ScriptText!$E$1&CHAR(10)&ScriptText!$C$1)","v":""},0]
["\n\n\n",{"$f":"IF(OrigTable!A1887=\"\",\"\",ScriptText!$B$1&CHAR(10)&ScriptText!$D$1)","v":""},{"$f":"IF(OrigTable!A1887=\"\",\"\",TEXT(OrigTable!A1887,\"00\"))","v":""},{"$f":"IF(OrigTable!A1887=\"\",\"\",ScriptText!$E$1&CHAR(10)&ScriptText!$C$1)","v":""},{"$f":"IF(OrigTable!B1887=\"\",\"\",ScriptText!$B$1&CHAR(10)&ScriptText!$D$1)","v":""},{"$f":"IF(OrigTable!B1887=\"\",\"\",TEXT(OrigTable!B1887,\"00\"))","v":""},{"$f":"IF(OrigTable!B1887=\"\",\"\",ScriptText!$E$1&CHAR(10)&ScriptText!C1882)","v":""},{"$f":"IF(OrigTable!C1887=\"\",\"\",ScriptText!$B$1&CHAR(10)&ScriptText!$D$1)","v":""},{"$f":"IF(OrigTable!C1887=\"\",\"\",IF(LEN(OrigTable!C1887)>255,LEFT(OrigTable!C1887,250)&\". . .\",OrigTable!C1887))","v":""},{"$f":"IF(OrigTable!C1887=\"\",\"\",ScriptText!$E$1&CHAR(10)&ScriptText!$C$1)","v":""},{"$f":"IF(OrigTable!D1887=\"\",\"\",ScriptText!$B$1&CHAR(10)&ScriptText!$D$1)","v":""},{"$f":"IF(OrigTable!D1887=\"\",\"\",TEXT(OrigTable!D1887,\"00\"))","v":""},{"$f":"IF(OrigTable!D1887=\"\",\"\",ScriptText!$E$1&CHAR(10)&ScriptText!$C$1)","v":""},{"$f":"IF(OrigTable!E1887=\"\",\"\",ScriptText!$B$1&CHAR(10)&ScriptText!$D$1)","v":""},{"$f":"IF(OrigTable!E1887=\"\",\"\",TEXT(OrigTable!E1887,\"00\"))","v":""},{"$f":"IF(OrigTable!E1887=\"\",\"\",ScriptText!$E$1&CHAR(10)&ScriptText!$C$1)","v":""},{"$f":"IF(OrigTable!F1887=\"\",\"\",ScriptText!$B$1&CHAR(10)&ScriptText!$D$1)","v":""},{"$f":"IF(OrigTable!F1887=\"\",\"\",TEXT(OrigTable!F1887,\"00\"))","v":""},{"$f":"IF(OrigTable!F1887=\"\",\"\",ScriptText!$E$1&CHAR(10)&ScriptText!$C$1)","v":""},{"$f":"IF(OrigTable!G1887=\"\",\"\",ScriptText!$B$1&CHAR(10)&ScriptText!$D$1)","v":""},{"$f":"IF(OrigTable!G1887=\"\",\"\",TEXT(OrigTable!G1887,\"00\"))","v":""},{"$f":"IF(OrigTable!G1887=\"\",\"\",ScriptText!$E$1&CHAR(10)&ScriptText!$C$1)","v":""},0]
["\n\n\n",{"$f":"IF(OrigTable!A1888=\"\",\"\",ScriptText!$B$1&CHAR(10)&ScriptText!$D$1)","v":""},{"$f":"IF(OrigTable!A1888=\"\",\"\",TEXT(OrigTable!A1888,\"00\"))","v":""},{"$f":"IF(OrigTable!A1888=\"\",\"\",ScriptText!$E$1&CHAR(10)&ScriptText!$C$1)","v":""},{"$f":"IF(OrigTable!B1888=\"\",\"\",ScriptText!$B$1&CHAR(10)&ScriptText!$D$1)","v":""},{"$f":"IF(OrigTable!B1888=\"\",\"\",TEXT(OrigTable!B1888,\"00\"))","v":""},{"$f":"IF(OrigTable!B1888=\"\",\"\",ScriptText!$E$1&CHAR(10)&ScriptText!C1883)","v":""},{"$f":"IF(OrigTable!C1888=\"\",\"\",ScriptText!$B$1&CHAR(10)&ScriptText!$D$1)","v":""},{"$f":"IF(OrigTable!C1888=\"\",\"\",IF(LEN(OrigTable!C1888)>255,LEFT(OrigTable!C1888,250)&\". . .\",OrigTable!C1888))","v":""},{"$f":"IF(OrigTable!C1888=\"\",\"\",ScriptText!$E$1&CHAR(10)&ScriptText!$C$1)","v":""},{"$f":"IF(OrigTable!D1888=\"\",\"\",ScriptText!$B$1&CHAR(10)&ScriptText!$D$1)","v":""},{"$f":"IF(OrigTable!D1888=\"\",\"\",TEXT(OrigTable!D1888,\"00\"))","v":""},{"$f":"IF(OrigTable!D1888=\"\",\"\",ScriptText!$E$1&CHAR(10)&ScriptText!$C$1)","v":""},{"$f":"IF(OrigTable!E1888=\"\",\"\",ScriptText!$B$1&CHAR(10)&ScriptText!$D$1)","v":""},{"$f":"IF(OrigTable!E1888=\"\",\"\",TEXT(OrigTable!E1888,\"00\"))","v":""},{"$f":"IF(OrigTable!E1888=\"\",\"\",ScriptText!$E$1&CHAR(10)&ScriptText!$C$1)","v":""},{"$f":"IF(OrigTable!F1888=\"\",\"\",ScriptText!$B$1&CHAR(10)&ScriptText!$D$1)","v":""},{"$f":"IF(OrigTable!F1888=\"\",\"\",TEXT(OrigTable!F1888,\"00\"))","v":""},{"$f":"IF(OrigTable!F1888=\"\",\"\",ScriptText!$E$1&CHAR(10)&ScriptText!$C$1)","v":""},{"$f":"IF(OrigTable!G1888=\"\",\"\",ScriptText!$B$1&CHAR(10)&ScriptText!$D$1)","v":""},{"$f":"IF(OrigTable!G1888=\"\",\"\",TEXT(OrigTable!G1888,\"00\"))","v":""},{"$f":"IF(OrigTable!G1888=\"\",\"\",ScriptText!$E$1&CHAR(10)&ScriptText!$C$1)","v":""},0]
["\n\n\n",{"$f":"IF(OrigTable!A1889=\"\",\"\",ScriptText!$B$1&CHAR(10)&ScriptText!$D$1)","v":""},{"$f":"IF(OrigTable!A1889=\"\",\"\",TEXT(OrigTable!A1889,\"00\"))","v":""},{"$f":"IF(OrigTable!A1889=\"\",\"\",ScriptText!$E$1&CHAR(10)&ScriptText!$C$1)","v":""},{"$f":"IF(OrigTable!B1889=\"\",\"\",ScriptText!$B$1&CHAR(10)&ScriptText!$D$1)","v":""},{"$f":"IF(OrigTable!B1889=\"\",\"\",TEXT(OrigTable!B1889,\"00\"))","v":""},{"$f":"IF(OrigTable!B1889=\"\",\"\",ScriptText!$E$1&CHAR(10)&ScriptText!C1884)","v":""},{"$f":"IF(OrigTable!C1889=\"\",\"\",ScriptText!$B$1&CHAR(10)&ScriptText!$D$1)","v":""},{"$f":"IF(OrigTable!C1889=\"\",\"\",IF(LEN(OrigTable!C1889)>255,LEFT(OrigTable!C1889,250)&\". . .\",OrigTable!C1889))","v":""},{"$f":"IF(OrigTable!C1889=\"\",\"\",ScriptText!$E$1&CHAR(10)&ScriptText!$C$1)","v":""},{"$f":"IF(OrigTable!D1889=\"\",\"\",ScriptText!$B$1&CHAR(10)&ScriptText!$D$1)","v":""},{"$f":"IF(OrigTable!D1889=\"\",\"\",TEXT(OrigTable!D1889,\"00\"))","v":""},{"$f":"IF(OrigTable!D1889=\"\",\"\",ScriptText!$E$1&CHAR(10)&ScriptText!$C$1)","v":""},{"$f":"IF(OrigTable!E1889=\"\",\"\",ScriptText!$B$1&CHAR(10)&ScriptText!$D$1)","v":""},{"$f":"IF(OrigTable!E1889=\"\",\"\",TEXT(OrigTable!E1889,\"00\"))","v":""},{"$f":"IF(OrigTable!E1889=\"\",\"\",ScriptText!$E$1&CHAR(10)&ScriptText!$C$1)","v":""},{"$f":"IF(OrigTable!F1889=\"\",\"\",ScriptText!$B$1&CHAR(10)&ScriptText!$D$1)","v":""},{"$f":"IF(OrigTable!F1889=\"\",\"\",TEXT(OrigTable!F1889,\"00\"))","v":""},{"$f":"IF(OrigTable!F1889=\"\",\"\",ScriptText!$E$1&CHAR(10)&ScriptText!$C$1)","v":""},{"$f":"IF(OrigTable!G1889=\"\",\"\",ScriptText!$B$1&CHAR(10)&ScriptText!$D$1)","v":""},{"$f":"IF(OrigTable!G1889=\"\",\"\",TEXT(OrigTable!G1889,\"00\"))","v":""},{"$f":"IF(OrigTable!G1889=\"\",\"\",ScriptText!$E$1&CHAR(10)&ScriptText!$C$1)","v":""},0]
["\n\n\n",{"$f":"IF(OrigTable!A1890=\"\",\"\",ScriptText!$B$1&CHAR(10)&ScriptText!$D$1)","v":""},{"$f":"IF(OrigTable!A1890=\"\",\"\",TEXT(OrigTable!A1890,\"00\"))","v":""},{"$f":"IF(OrigTable!A1890=\"\",\"\",ScriptText!$E$1&CHAR(10)&ScriptText!$C$1)","v":""},{"$f":"IF(OrigTable!B1890=\"\",\"\",ScriptText!$B$1&CHAR(10)&ScriptText!$D$1)","v":""},{"$f":"IF(OrigTable!B1890=\"\",\"\",TEXT(OrigTable!B1890,\"00\"))","v":""},{"$f":"IF(OrigTable!B1890=\"\",\"\",ScriptText!$E$1&CHAR(10)&ScriptText!C1885)","v":""},{"$f":"IF(OrigTable!C1890=\"\",\"\",ScriptText!$B$1&CHAR(10)&ScriptText!$D$1)","v":""},{"$f":"IF(OrigTable!C1890=\"\",\"\",IF(LEN(OrigTable!C1890)>255,LEFT(OrigTable!C1890,250)&\". . .\",OrigTable!C1890))","v":""},{"$f":"IF(OrigTable!C1890=\"\",\"\",ScriptText!$E$1&CHAR(10)&ScriptText!$C$1)","v":""},{"$f":"IF(OrigTable!D1890=\"\",\"\",ScriptText!$B$1&CHAR(10)&ScriptText!$D$1)","v":""},{"$f":"IF(OrigTable!D1890=\"\",\"\",TEXT(OrigTable!D1890,\"00\"))","v":""},{"$f":"IF(OrigTable!D1890=\"\",\"\",ScriptText!$E$1&CHAR(10)&ScriptText!$C$1)","v":""},{"$f":"IF(OrigTable!E1890=\"\",\"\",ScriptText!$B$1&CHAR(10)&ScriptText!$D$1)","v":""},{"$f":"IF(OrigTable!E1890=\"\",\"\",TEXT(OrigTable!E1890,\"00\"))","v":""},{"$f":"IF(OrigTable!E1890=\"\",\"\",ScriptText!$E$1&CHAR(10)&ScriptText!$C$1)","v":""},{"$f":"IF(OrigTable!F1890=\"\",\"\",ScriptText!$B$1&CHAR(10)&ScriptText!$D$1)","v":""},{"$f":"IF(OrigTable!F1890=\"\",\"\",TEXT(OrigTable!F1890,\"00\"))","v":""},{"$f":"IF(OrigTable!F1890=\"\",\"\",ScriptText!$E$1&CHAR(10)&ScriptText!$C$1)","v":""},{"$f":"IF(OrigTable!G1890=\"\",\"\",ScriptText!$B$1&CHAR(10)&ScriptText!$D$1)","v":""},{"$f":"IF(OrigTable!G1890=\"\",\"\",TEXT(OrigTable!G1890,\"00\"))","v":""},{"$f":"IF(OrigTable!G1890=\"\",\"\",ScriptText!$E$1&CHAR(10)&ScriptText!$C$1)","v":""},0]
["\n\n\n",{"$f":"IF(OrigTable!A1891=\"\",\"\",ScriptText!$B$1&CHAR(10)&ScriptText!$D$1)","v":""},{"$f":"IF(OrigTable!A1891=\"\",\"\",TEXT(OrigTable!A1891,\"00\"))","v":""},{"$f":"IF(OrigTable!A1891=\"\",\"\",ScriptText!$E$1&CHAR(10)&ScriptText!$C$1)","v":""},{"$f":"IF(OrigTable!B1891=\"\",\"\",ScriptText!$B$1&CHAR(10)&ScriptText!$D$1)","v":""},{"$f":"IF(OrigTable!B1891=\"\",\"\",TEXT(OrigTable!B1891,\"00\"))","v":""},{"$f":"IF(OrigTable!B1891=\"\",\"\",ScriptText!$E$1&CHAR(10)&ScriptText!C1886)","v":""},{"$f":"IF(OrigTable!C1891=\"\",\"\",ScriptText!$B$1&CHAR(10)&ScriptText!$D$1)","v":""},{"$f":"IF(OrigTable!C1891=\"\",\"\",IF(LEN(OrigTable!C1891)>255,LEFT(OrigTable!C1891,250)&\". . .\",OrigTable!C1891))","v":""},{"$f":"IF(OrigTable!C1891=\"\",\"\",ScriptText!$E$1&CHAR(10)&ScriptText!$C$1)","v":""},{"$f":"IF(OrigTable!D1891=\"\",\"\",ScriptText!$B$1&CHAR(10)&ScriptText!$D$1)","v":""},{"$f":"IF(OrigTable!D1891=\"\",\"\",TEXT(OrigTable!D1891,\"00\"))","v":""},{"$f":"IF(OrigTable!D1891=\"\",\"\",ScriptText!$E$1&CHAR(10)&ScriptText!$C$1)","v":""},{"$f":"IF(OrigTable!E1891=\"\",\"\",ScriptText!$B$1&CHAR(10)&ScriptText!$D$1)","v":""},{"$f":"IF(OrigTable!E1891=\"\",\"\",TEXT(OrigTable!E1891,\"00\"))","v":""},{"$f":"IF(OrigTable!E1891=\"\",\"\",ScriptText!$E$1&CHAR(10)&ScriptText!$C$1)","v":""},{"$f":"IF(OrigTable!F1891=\"\",\"\",ScriptText!$B$1&CHAR(10)&ScriptText!$D$1)","v":""},{"$f":"IF(OrigTable!F1891=\"\",\"\",TEXT(OrigTable!F1891,\"00\"))","v":""},{"$f":"IF(OrigTable!F1891=\"\",\"\",ScriptText!$E$1&CHAR(10)&ScriptText!$C$1)","v":""},{"$f":"IF(OrigTable!G1891=\"\",\"\",ScriptText!$B$1&CHAR(10)&ScriptText!$D$1)","v":""},{"$f":"IF(OrigTable!G1891=\"\",\"\",TEXT(OrigTable!G1891,\"00\"))","v":""},{"$f":"IF(OrigTable!G1891=\"\",\"\",ScriptText!$E$1&CHAR(10)&ScriptText!$C$1)","v":""},0]
["\n\n\n",{"$f":"IF(OrigTable!A1892=\"\",\"\",ScriptText!$B$1&CHAR(10)&ScriptText!$D$1)","v":""},{"$f":"IF(OrigTable!A1892=\"\",\"\",TEXT(OrigTable!A1892,\"00\"))","v":""},{"$f":"IF(OrigTable!A1892=\"\",\"\",ScriptText!$E$1&CHAR(10)&ScriptText!$C$1)","v":""},{"$f":"IF(OrigTable!B1892=\"\",\"\",ScriptText!$B$1&CHAR(10)&ScriptText!$D$1)","v":""},{"$f":"IF(OrigTable!B1892=\"\",\"\",TEXT(OrigTable!B1892,\"00\"))","v":""},{"$f":"IF(OrigTable!B1892=\"\",\"\",ScriptText!$E$1&CHAR(10)&ScriptText!C1887)","v":""},{"$f":"IF(OrigTable!C1892=\"\",\"\",ScriptText!$B$1&CHAR(10)&ScriptText!$D$1)","v":""},{"$f":"IF(OrigTable!C1892=\"\",\"\",IF(LEN(OrigTable!C1892)>255,LEFT(OrigTable!C1892,250)&\". . .\",OrigTable!C1892))","v":""},{"$f":"IF(OrigTable!C1892=\"\",\"\",ScriptText!$E$1&CHAR(10)&ScriptText!$C$1)","v":""},{"$f":"IF(OrigTable!D1892=\"\",\"\",ScriptText!$B$1&CHAR(10)&ScriptText!$D$1)","v":""},{"$f":"IF(OrigTable!D1892=\"\",\"\",TEXT(OrigTable!D1892,\"00\"))","v":""},{"$f":"IF(OrigTable!D1892=\"\",\"\",ScriptText!$E$1&CHAR(10)&ScriptText!$C$1)","v":""},{"$f":"IF(OrigTable!E1892=\"\",\"\",ScriptText!$B$1&CHAR(10)&ScriptText!$D$1)","v":""},{"$f":"IF(OrigTable!E1892=\"\",\"\",TEXT(OrigTable!E1892,\"00\"))","v":""},{"$f":"IF(OrigTable!E1892=\"\",\"\",ScriptText!$E$1&CHAR(10)&ScriptText!$C$1)","v":""},{"$f":"IF(OrigTable!F1892=\"\",\"\",ScriptText!$B$1&CHAR(10)&ScriptText!$D$1)","v":""},{"$f":"IF(OrigTable!F1892=\"\",\"\",TEXT(OrigTable!F1892,\"00\"))","v":""},{"$f":"IF(OrigTable!F1892=\"\",\"\",ScriptText!$E$1&CHAR(10)&ScriptText!$C$1)","v":""},{"$f":"IF(OrigTable!G1892=\"\",\"\",ScriptText!$B$1&CHAR(10)&ScriptText!$D$1)","v":""},{"$f":"IF(OrigTable!G1892=\"\",\"\",TEXT(OrigTable!G1892,\"00\"))","v":""},{"$f":"IF(OrigTable!G1892=\"\",\"\",ScriptText!$E$1&CHAR(10)&ScriptText!$C$1)","v":""},0]
["\n\n\n",{"$f":"IF(OrigTable!A1893=\"\",\"\",ScriptText!$B$1&CHAR(10)&ScriptText!$D$1)","v":""},{"$f":"IF(OrigTable!A1893=\"\",\"\",TEXT(OrigTable!A1893,\"00\"))","v":""},{"$f":"IF(OrigTable!A1893=\"\",\"\",ScriptText!$E$1&CHAR(10)&ScriptText!$C$1)","v":""},{"$f":"IF(OrigTable!B1893=\"\",\"\",ScriptText!$B$1&CHAR(10)&ScriptText!$D$1)","v":""},{"$f":"IF(OrigTable!B1893=\"\",\"\",TEXT(OrigTable!B1893,\"00\"))","v":""},{"$f":"IF(OrigTable!B1893=\"\",\"\",ScriptText!$E$1&CHAR(10)&ScriptText!C1888)","v":""},{"$f":"IF(OrigTable!C1893=\"\",\"\",ScriptText!$B$1&CHAR(10)&ScriptText!$D$1)","v":""},{"$f":"IF(OrigTable!C1893=\"\",\"\",IF(LEN(OrigTable!C1893)>255,LEFT(OrigTable!C1893,250)&\". . .\",OrigTable!C1893))","v":""},{"$f":"IF(OrigTable!C1893=\"\",\"\",ScriptText!$E$1&CHAR(10)&ScriptText!$C$1)","v":""},{"$f":"IF(OrigTable!D1893=\"\",\"\",ScriptText!$B$1&CHAR(10)&ScriptText!$D$1)","v":""},{"$f":"IF(OrigTable!D1893=\"\",\"\",TEXT(OrigTable!D1893,\"00\"))","v":""},{"$f":"IF(OrigTable!D1893=\"\",\"\",ScriptText!$E$1&CHAR(10)&ScriptText!$C$1)","v":""},{"$f":"IF(OrigTable!E1893=\"\",\"\",ScriptText!$B$1&CHAR(10)&ScriptText!$D$1)","v":""},{"$f":"IF(OrigTable!E1893=\"\",\"\",TEXT(OrigTable!E1893,\"00\"))","v":""},{"$f":"IF(OrigTable!E1893=\"\",\"\",ScriptText!$E$1&CHAR(10)&ScriptText!$C$1)","v":""},{"$f":"IF(OrigTable!F1893=\"\",\"\",ScriptText!$B$1&CHAR(10)&ScriptText!$D$1)","v":""},{"$f":"IF(OrigTable!F1893=\"\",\"\",TEXT(OrigTable!F1893,\"00\"))","v":""},{"$f":"IF(OrigTable!F1893=\"\",\"\",ScriptText!$E$1&CHAR(10)&ScriptText!$C$1)","v":""},{"$f":"IF(OrigTable!G1893=\"\",\"\",ScriptText!$B$1&CHAR(10)&ScriptText!$D$1)","v":""},{"$f":"IF(OrigTable!G1893=\"\",\"\",TEXT(OrigTable!G1893,\"00\"))","v":""},{"$f":"IF(OrigTable!G1893=\"\",\"\",ScriptText!$E$1&CHAR(10)&ScriptText!$C$1)","v":""},0]
["\n\n\n",{"$f":"IF(OrigTable!A1894=\"\",\"\",ScriptText!$B$1&CHAR(10)&ScriptText!$D$1)","v":""},{"$f":"IF(OrigTable!A1894=\"\",\"\",TEXT(OrigTable!A1894,\"00\"))","v":""},{"$f":"IF(OrigTable!A1894=\"\",\"\",ScriptText!$E$1&CHAR(10)&ScriptText!$C$1)","v":""},{"$f":"IF(OrigTable!B1894=\"\",\"\",ScriptText!$B$1&CHAR(10)&ScriptText!$D$1)","v":""},{"$f":"IF(OrigTable!B1894=\"\",\"\",TEXT(OrigTable!B1894,\"00\"))","v":""},{"$f":"IF(OrigTable!B1894=\"\",\"\",ScriptText!$E$1&CHAR(10)&ScriptText!C1889)","v":""},{"$f":"IF(OrigTable!C1894=\"\",\"\",ScriptText!$B$1&CHAR(10)&ScriptText!$D$1)","v":""},{"$f":"IF(OrigTable!C1894=\"\",\"\",IF(LEN(OrigTable!C1894)>255,LEFT(OrigTable!C1894,250)&\". . .\",OrigTable!C1894))","v":""},{"$f":"IF(OrigTable!C1894=\"\",\"\",ScriptText!$E$1&CHAR(10)&ScriptText!$C$1)","v":""},{"$f":"IF(OrigTable!D1894=\"\",\"\",ScriptText!$B$1&CHAR(10)&ScriptText!$D$1)","v":""},{"$f":"IF(OrigTable!D1894=\"\",\"\",TEXT(OrigTable!D1894,\"00\"))","v":""},{"$f":"IF(OrigTable!D1894=\"\",\"\",ScriptText!$E$1&CHAR(10)&ScriptText!$C$1)","v":""},{"$f":"IF(OrigTable!E1894=\"\",\"\",ScriptText!$B$1&CHAR(10)&ScriptText!$D$1)","v":""},{"$f":"IF(OrigTable!E1894=\"\",\"\",TEXT(OrigTable!E1894,\"00\"))","v":""},{"$f":"IF(OrigTable!E1894=\"\",\"\",ScriptText!$E$1&CHAR(10)&ScriptText!$C$1)","v":""},{"$f":"IF(OrigTable!F1894=\"\",\"\",ScriptText!$B$1&CHAR(10)&ScriptText!$D$1)","v":""},{"$f":"IF(OrigTable!F1894=\"\",\"\",TEXT(OrigTable!F1894,\"00\"))","v":""},{"$f":"IF(OrigTable!F1894=\"\",\"\",ScriptText!$E$1&CHAR(10)&ScriptText!$C$1)","v":""},{"$f":"IF(OrigTable!G1894=\"\",\"\",ScriptText!$B$1&CHAR(10)&ScriptText!$D$1)","v":""},{"$f":"IF(OrigTable!G1894=\"\",\"\",TEXT(OrigTable!G1894,\"00\"))","v":""},{"$f":"IF(OrigTable!G1894=\"\",\"\",ScriptText!$E$1&CHAR(10)&ScriptText!$C$1)","v":""},0]
["\n\n\n",{"$f":"IF(OrigTable!A1895=\"\",\"\",ScriptText!$B$1&CHAR(10)&ScriptText!$D$1)","v":""},{"$f":"IF(OrigTable!A1895=\"\",\"\",TEXT(OrigTable!A1895,\"00\"))","v":""},{"$f":"IF(OrigTable!A1895=\"\",\"\",ScriptText!$E$1&CHAR(10)&ScriptText!$C$1)","v":""},{"$f":"IF(OrigTable!B1895=\"\",\"\",ScriptText!$B$1&CHAR(10)&ScriptText!$D$1)","v":""},{"$f":"IF(OrigTable!B1895=\"\",\"\",TEXT(OrigTable!B1895,\"00\"))","v":""},{"$f":"IF(OrigTable!B1895=\"\",\"\",ScriptText!$E$1&CHAR(10)&ScriptText!C1890)","v":""},{"$f":"IF(OrigTable!C1895=\"\",\"\",ScriptText!$B$1&CHAR(10)&ScriptText!$D$1)","v":""},{"$f":"IF(OrigTable!C1895=\"\",\"\",IF(LEN(OrigTable!C1895)>255,LEFT(OrigTable!C1895,250)&\". . .\",OrigTable!C1895))","v":""},{"$f":"IF(OrigTable!C1895=\"\",\"\",ScriptText!$E$1&CHAR(10)&ScriptText!$C$1)","v":""},{"$f":"IF(OrigTable!D1895=\"\",\"\",ScriptText!$B$1&CHAR(10)&ScriptText!$D$1)","v":""},{"$f":"IF(OrigTable!D1895=\"\",\"\",TEXT(OrigTable!D1895,\"00\"))","v":""},{"$f":"IF(OrigTable!D1895=\"\",\"\",ScriptText!$E$1&CHAR(10)&ScriptText!$C$1)","v":""},{"$f":"IF(OrigTable!E1895=\"\",\"\",ScriptText!$B$1&CHAR(10)&ScriptText!$D$1)","v":""},{"$f":"IF(OrigTable!E1895=\"\",\"\",TEXT(OrigTable!E1895,\"00\"))","v":""},{"$f":"IF(OrigTable!E1895=\"\",\"\",ScriptText!$E$1&CHAR(10)&ScriptText!$C$1)","v":""},{"$f":"IF(OrigTable!F1895=\"\",\"\",ScriptText!$B$1&CHAR(10)&ScriptText!$D$1)","v":""},{"$f":"IF(OrigTable!F1895=\"\",\"\",TEXT(OrigTable!F1895,\"00\"))","v":""},{"$f":"IF(OrigTable!F1895=\"\",\"\",ScriptText!$E$1&CHAR(10)&ScriptText!$C$1)","v":""},{"$f":"IF(OrigTable!G1895=\"\",\"\",ScriptText!$B$1&CHAR(10)&ScriptText!$D$1)","v":""},{"$f":"IF(OrigTable!G1895=\"\",\"\",TEXT(OrigTable!G1895,\"00\"))","v":""},{"$f":"IF(OrigTable!G1895=\"\",\"\",ScriptText!$E$1&CHAR(10)&ScriptText!$C$1)","v":""},0]
["\n\n\n",{"$f":"IF(OrigTable!A1896=\"\",\"\",ScriptText!$B$1&CHAR(10)&ScriptText!$D$1)","v":""},{"$f":"IF(OrigTable!A1896=\"\",\"\",TEXT(OrigTable!A1896,\"00\"))","v":""},{"$f":"IF(OrigTable!A1896=\"\",\"\",ScriptText!$E$1&CHAR(10)&ScriptText!$C$1)","v":""},{"$f":"IF(OrigTable!B1896=\"\",\"\",ScriptText!$B$1&CHAR(10)&ScriptText!$D$1)","v":""},{"$f":"IF(OrigTable!B1896=\"\",\"\",TEXT(OrigTable!B1896,\"00\"))","v":""},{"$f":"IF(OrigTable!B1896=\"\",\"\",ScriptText!$E$1&CHAR(10)&ScriptText!C1891)","v":""},{"$f":"IF(OrigTable!C1896=\"\",\"\",ScriptText!$B$1&CHAR(10)&ScriptText!$D$1)","v":""},{"$f":"IF(OrigTable!C1896=\"\",\"\",IF(LEN(OrigTable!C1896)>255,LEFT(OrigTable!C1896,250)&\". . .\",OrigTable!C1896))","v":""},{"$f":"IF(OrigTable!C1896=\"\",\"\",ScriptText!$E$1&CHAR(10)&ScriptText!$C$1)","v":""},{"$f":"IF(OrigTable!D1896=\"\",\"\",ScriptText!$B$1&CHAR(10)&ScriptText!$D$1)","v":""},{"$f":"IF(OrigTable!D1896=\"\",\"\",TEXT(OrigTable!D1896,\"00\"))","v":""},{"$f":"IF(OrigTable!D1896=\"\",\"\",ScriptText!$E$1&CHAR(10)&ScriptText!$C$1)","v":""},{"$f":"IF(OrigTable!E1896=\"\",\"\",ScriptText!$B$1&CHAR(10)&ScriptText!$D$1)","v":""},{"$f":"IF(OrigTable!E1896=\"\",\"\",TEXT(OrigTable!E1896,\"00\"))","v":""},{"$f":"IF(OrigTable!E1896=\"\",\"\",ScriptText!$E$1&CHAR(10)&ScriptText!$C$1)","v":""},{"$f":"IF(OrigTable!F1896=\"\",\"\",ScriptText!$B$1&CHAR(10)&ScriptText!$D$1)","v":""},{"$f":"IF(OrigTable!F1896=\"\",\"\",TEXT(OrigTable!F1896,\"00\"))","v":""},{"$f":"IF(OrigTable!F1896=\"\",\"\",ScriptText!$E$1&CHAR(10)&ScriptText!$C$1)","v":""},{"$f":"IF(OrigTable!G1896=\"\",\"\",ScriptText!$B$1&CHAR(10)&ScriptText!$D$1)","v":""},{"$f":"IF(OrigTable!G1896=\"\",\"\",TEXT(OrigTable!G1896,\"00\"))","v":""},{"$f":"IF(OrigTable!G1896=\"\",\"\",ScriptText!$E$1&CHAR(10)&ScriptText!$C$1)","v":""},0]
["\n\n\n",{"$f":"IF(OrigTable!A1897=\"\",\"\",ScriptText!$B$1&CHAR(10)&ScriptText!$D$1)","v":""},{"$f":"IF(OrigTable!A1897=\"\",\"\",TEXT(OrigTable!A1897,\"00\"))","v":""},{"$f":"IF(OrigTable!A1897=\"\",\"\",ScriptText!$E$1&CHAR(10)&ScriptText!$C$1)","v":""},{"$f":"IF(OrigTable!B1897=\"\",\"\",ScriptText!$B$1&CHAR(10)&ScriptText!$D$1)","v":""},{"$f":"IF(OrigTable!B1897=\"\",\"\",TEXT(OrigTable!B1897,\"00\"))","v":""},{"$f":"IF(OrigTable!B1897=\"\",\"\",ScriptText!$E$1&CHAR(10)&ScriptText!C1892)","v":""},{"$f":"IF(OrigTable!C1897=\"\",\"\",ScriptText!$B$1&CHAR(10)&ScriptText!$D$1)","v":""},{"$f":"IF(OrigTable!C1897=\"\",\"\",IF(LEN(OrigTable!C1897)>255,LEFT(OrigTable!C1897,250)&\". . .\",OrigTable!C1897))","v":""},{"$f":"IF(OrigTable!C1897=\"\",\"\",ScriptText!$E$1&CHAR(10)&ScriptText!$C$1)","v":""},{"$f":"IF(OrigTable!D1897=\"\",\"\",ScriptText!$B$1&CHAR(10)&ScriptText!$D$1)","v":""},{"$f":"IF(OrigTable!D1897=\"\",\"\",TEXT(OrigTable!D1897,\"00\"))","v":""},{"$f":"IF(OrigTable!D1897=\"\",\"\",ScriptText!$E$1&CHAR(10)&ScriptText!$C$1)","v":""},{"$f":"IF(OrigTable!E1897=\"\",\"\",ScriptText!$B$1&CHAR(10)&ScriptText!$D$1)","v":""},{"$f":"IF(OrigTable!E1897=\"\",\"\",TEXT(OrigTable!E1897,\"00\"))","v":""},{"$f":"IF(OrigTable!E1897=\"\",\"\",ScriptText!$E$1&CHAR(10)&ScriptText!$C$1)","v":""},{"$f":"IF(OrigTable!F1897=\"\",\"\",ScriptText!$B$1&CHAR(10)&ScriptText!$D$1)","v":""},{"$f":"IF(OrigTable!F1897=\"\",\"\",TEXT(OrigTable!F1897,\"00\"))","v":""},{"$f":"IF(OrigTable!F1897=\"\",\"\",ScriptText!$E$1&CHAR(10)&ScriptText!$C$1)","v":""},{"$f":"IF(OrigTable!G1897=\"\",\"\",ScriptText!$B$1&CHAR(10)&ScriptText!$D$1)","v":""},{"$f":"IF(OrigTable!G1897=\"\",\"\",TEXT(OrigTable!G1897,\"00\"))","v":""},{"$f":"IF(OrigTable!G1897=\"\",\"\",ScriptText!$E$1&CHAR(10)&ScriptText!$C$1)","v":""},0]
["\n\n\n",{"$f":"IF(OrigTable!A1898=\"\",\"\",ScriptText!$B$1&CHAR(10)&ScriptText!$D$1)","v":""},{"$f":"IF(OrigTable!A1898=\"\",\"\",TEXT(OrigTable!A1898,\"00\"))","v":""},{"$f":"IF(OrigTable!A1898=\"\",\"\",ScriptText!$E$1&CHAR(10)&ScriptText!$C$1)","v":""},{"$f":"IF(OrigTable!B1898=\"\",\"\",ScriptText!$B$1&CHAR(10)&ScriptText!$D$1)","v":""},{"$f":"IF(OrigTable!B1898=\"\",\"\",TEXT(OrigTable!B1898,\"00\"))","v":""},{"$f":"IF(OrigTable!B1898=\"\",\"\",ScriptText!$E$1&CHAR(10)&ScriptText!C1893)","v":""},{"$f":"IF(OrigTable!C1898=\"\",\"\",ScriptText!$B$1&CHAR(10)&ScriptText!$D$1)","v":""},{"$f":"IF(OrigTable!C1898=\"\",\"\",IF(LEN(OrigTable!C1898)>255,LEFT(OrigTable!C1898,250)&\". . .\",OrigTable!C1898))","v":""},{"$f":"IF(OrigTable!C1898=\"\",\"\",ScriptText!$E$1&CHAR(10)&ScriptText!$C$1)","v":""},{"$f":"IF(OrigTable!D1898=\"\",\"\",ScriptText!$B$1&CHAR(10)&ScriptText!$D$1)","v":""},{"$f":"IF(OrigTable!D1898=\"\",\"\",TEXT(OrigTable!D1898,\"00\"))","v":""},{"$f":"IF(OrigTable!D1898=\"\",\"\",ScriptText!$E$1&CHAR(10)&ScriptText!$C$1)","v":""},{"$f":"IF(OrigTable!E1898=\"\",\"\",ScriptText!$B$1&CHAR(10)&ScriptText!$D$1)","v":""},{"$f":"IF(OrigTable!E1898=\"\",\"\",TEXT(OrigTable!E1898,\"00\"))","v":""},{"$f":"IF(OrigTable!E1898=\"\",\"\",ScriptText!$E$1&CHAR(10)&ScriptText!$C$1)","v":""},{"$f":"IF(OrigTable!F1898=\"\",\"\",ScriptText!$B$1&CHAR(10)&ScriptText!$D$1)","v":""},{"$f":"IF(OrigTable!F1898=\"\",\"\",TEXT(OrigTable!F1898,\"00\"))","v":""},{"$f":"IF(OrigTable!F1898=\"\",\"\",ScriptText!$E$1&CHAR(10)&ScriptText!$C$1)","v":""},{"$f":"IF(OrigTable!G1898=\"\",\"\",ScriptText!$B$1&CHAR(10)&ScriptText!$D$1)","v":""},{"$f":"IF(OrigTable!G1898=\"\",\"\",TEXT(OrigTable!G1898,\"00\"))","v":""},{"$f":"IF(OrigTable!G1898=\"\",\"\",ScriptText!$E$1&CHAR(10)&ScriptText!$C$1)","v":""},0]
["\n\n\n",{"$f":"IF(OrigTable!A1899=\"\",\"\",ScriptText!$B$1&CHAR(10)&ScriptText!$D$1)","v":""},{"$f":"IF(OrigTable!A1899=\"\",\"\",TEXT(OrigTable!A1899,\"00\"))","v":""},{"$f":"IF(OrigTable!A1899=\"\",\"\",ScriptText!$E$1&CHAR(10)&ScriptText!$C$1)","v":""},{"$f":"IF(OrigTable!B1899=\"\",\"\",ScriptText!$B$1&CHAR(10)&ScriptText!$D$1)","v":""},{"$f":"IF(OrigTable!B1899=\"\",\"\",TEXT(OrigTable!B1899,\"00\"))","v":""},{"$f":"IF(OrigTable!B1899=\"\",\"\",ScriptText!$E$1&CHAR(10)&ScriptText!C1894)","v":""},{"$f":"IF(OrigTable!C1899=\"\",\"\",ScriptText!$B$1&CHAR(10)&ScriptText!$D$1)","v":""},{"$f":"IF(OrigTable!C1899=\"\",\"\",IF(LEN(OrigTable!C1899)>255,LEFT(OrigTable!C1899,250)&\". . .\",OrigTable!C1899))","v":""},{"$f":"IF(OrigTable!C1899=\"\",\"\",ScriptText!$E$1&CHAR(10)&ScriptText!$C$1)","v":""},{"$f":"IF(OrigTable!D1899=\"\",\"\",ScriptText!$B$1&CHAR(10)&ScriptText!$D$1)","v":""},{"$f":"IF(OrigTable!D1899=\"\",\"\",TEXT(OrigTable!D1899,\"00\"))","v":""},{"$f":"IF(OrigTable!D1899=\"\",\"\",ScriptText!$E$1&CHAR(10)&ScriptText!$C$1)","v":""},{"$f":"IF(OrigTable!E1899=\"\",\"\",ScriptText!$B$1&CHAR(10)&ScriptText!$D$1)","v":""},{"$f":"IF(OrigTable!E1899=\"\",\"\",TEXT(OrigTable!E1899,\"00\"))","v":""},{"$f":"IF(OrigTable!E1899=\"\",\"\",ScriptText!$E$1&CHAR(10)&ScriptText!$C$1)","v":""},{"$f":"IF(OrigTable!F1899=\"\",\"\",ScriptText!$B$1&CHAR(10)&ScriptText!$D$1)","v":""},{"$f":"IF(OrigTable!F1899=\"\",\"\",TEXT(OrigTable!F1899,\"00\"))","v":""},{"$f":"IF(OrigTable!F1899=\"\",\"\",ScriptText!$E$1&CHAR(10)&ScriptText!$C$1)","v":""},{"$f":"IF(OrigTable!G1899=\"\",\"\",ScriptText!$B$1&CHAR(10)&ScriptText!$D$1)","v":""},{"$f":"IF(OrigTable!G1899=\"\",\"\",TEXT(OrigTable!G1899,\"00\"))","v":""},{"$f":"IF(OrigTable!G1899=\"\",\"\",ScriptText!$E$1&CHAR(10)&ScriptText!$C$1)","v":""},0]
["\n\n\n",{"$f":"IF(OrigTable!A1900=\"\",\"\",ScriptText!$B$1&CHAR(10)&ScriptText!$D$1)","v":""},{"$f":"IF(OrigTable!A1900=\"\",\"\",TEXT(OrigTable!A1900,\"00\"))","v":""},{"$f":"IF(OrigTable!A1900=\"\",\"\",ScriptText!$E$1&CHAR(10)&ScriptText!$C$1)","v":""},{"$f":"IF(OrigTable!B1900=\"\",\"\",ScriptText!$B$1&CHAR(10)&ScriptText!$D$1)","v":""},{"$f":"IF(OrigTable!B1900=\"\",\"\",TEXT(OrigTable!B1900,\"00\"))","v":""},{"$f":"IF(OrigTable!B1900=\"\",\"\",ScriptText!$E$1&CHAR(10)&ScriptText!C1895)","v":""},{"$f":"IF(OrigTable!C1900=\"\",\"\",ScriptText!$B$1&CHAR(10)&ScriptText!$D$1)","v":""},{"$f":"IF(OrigTable!C1900=\"\",\"\",IF(LEN(OrigTable!C1900)>255,LEFT(OrigTable!C1900,250)&\". . .\",OrigTable!C1900))","v":""},{"$f":"IF(OrigTable!C1900=\"\",\"\",ScriptText!$E$1&CHAR(10)&ScriptText!$C$1)","v":""},{"$f":"IF(OrigTable!D1900=\"\",\"\",ScriptText!$B$1&CHAR(10)&ScriptText!$D$1)","v":""},{"$f":"IF(OrigTable!D1900=\"\",\"\",TEXT(OrigTable!D1900,\"00\"))","v":""},{"$f":"IF(OrigTable!D1900=\"\",\"\",ScriptText!$E$1&CHAR(10)&ScriptText!$C$1)","v":""},{"$f":"IF(OrigTable!E1900=\"\",\"\",ScriptText!$B$1&CHAR(10)&ScriptText!$D$1)","v":""},{"$f":"IF(OrigTable!E1900=\"\",\"\",TEXT(OrigTable!E1900,\"00\"))","v":""},{"$f":"IF(OrigTable!E1900=\"\",\"\",ScriptText!$E$1&CHAR(10)&ScriptText!$C$1)","v":""},{"$f":"IF(OrigTable!F1900=\"\",\"\",ScriptText!$B$1&CHAR(10)&ScriptText!$D$1)","v":""},{"$f":"IF(OrigTable!F1900=\"\",\"\",TEXT(OrigTable!F1900,\"00\"))","v":""},{"$f":"IF(OrigTable!F1900=\"\",\"\",ScriptText!$E$1&CHAR(10)&ScriptText!$C$1)","v":""},{"$f":"IF(OrigTable!G1900=\"\",\"\",ScriptText!$B$1&CHAR(10)&ScriptText!$D$1)","v":""},{"$f":"IF(OrigTable!G1900=\"\",\"\",TEXT(OrigTable!G1900,\"00\"))","v":""},{"$f":"IF(OrigTable!G1900=\"\",\"\",ScriptText!$E$1&CHAR(10)&ScriptText!$C$1)","v":""},0]
["\n\n\n",{"$f":"IF(OrigTable!A1901=\"\",\"\",ScriptText!$B$1&CHAR(10)&ScriptText!$D$1)","v":""},{"$f":"IF(OrigTable!A1901=\"\",\"\",TEXT(OrigTable!A1901,\"00\"))","v":""},{"$f":"IF(OrigTable!A1901=\"\",\"\",ScriptText!$E$1&CHAR(10)&ScriptText!$C$1)","v":""},{"$f":"IF(OrigTable!B1901=\"\",\"\",ScriptText!$B$1&CHAR(10)&ScriptText!$D$1)","v":""},{"$f":"IF(OrigTable!B1901=\"\",\"\",TEXT(OrigTable!B1901,\"00\"))","v":""},{"$f":"IF(OrigTable!B1901=\"\",\"\",ScriptText!$E$1&CHAR(10)&ScriptText!C1896)","v":""},{"$f":"IF(OrigTable!C1901=\"\",\"\",ScriptText!$B$1&CHAR(10)&ScriptText!$D$1)","v":""},{"$f":"IF(OrigTable!C1901=\"\",\"\",IF(LEN(OrigTable!C1901)>255,LEFT(OrigTable!C1901,250)&\". . .\",OrigTable!C1901))","v":""},{"$f":"IF(OrigTable!C1901=\"\",\"\",ScriptText!$E$1&CHAR(10)&ScriptText!$C$1)","v":""},{"$f":"IF(OrigTable!D1901=\"\",\"\",ScriptText!$B$1&CHAR(10)&ScriptText!$D$1)","v":""},{"$f":"IF(OrigTable!D1901=\"\",\"\",TEXT(OrigTable!D1901,\"00\"))","v":""},{"$f":"IF(OrigTable!D1901=\"\",\"\",ScriptText!$E$1&CHAR(10)&ScriptText!$C$1)","v":""},{"$f":"IF(OrigTable!E1901=\"\",\"\",ScriptText!$B$1&CHAR(10)&ScriptText!$D$1)","v":""},{"$f":"IF(OrigTable!E1901=\"\",\"\",TEXT(OrigTable!E1901,\"00\"))","v":""},{"$f":"IF(OrigTable!E1901=\"\",\"\",ScriptText!$E$1&CHAR(10)&ScriptText!$C$1)","v":""},{"$f":"IF(OrigTable!F1901=\"\",\"\",ScriptText!$B$1&CHAR(10)&ScriptText!$D$1)","v":""},{"$f":"IF(OrigTable!F1901=\"\",\"\",TEXT(OrigTable!F1901,\"00\"))","v":""},{"$f":"IF(OrigTable!F1901=\"\",\"\",ScriptText!$E$1&CHAR(10)&ScriptText!$C$1)","v":""},{"$f":"IF(OrigTable!G1901=\"\",\"\",ScriptText!$B$1&CHAR(10)&ScriptText!$D$1)","v":""},{"$f":"IF(OrigTable!G1901=\"\",\"\",TEXT(OrigTable!G1901,\"00\"))","v":""},{"$f":"IF(OrigTable!G1901=\"\",\"\",ScriptText!$E$1&CHAR(10)&ScriptText!$C$1)","v":""},0]
["\n\n\n",{"$f":"IF(OrigTable!A1902=\"\",\"\",ScriptText!$B$1&CHAR(10)&ScriptText!$D$1)","v":""},{"$f":"IF(OrigTable!A1902=\"\",\"\",TEXT(OrigTable!A1902,\"00\"))","v":""},{"$f":"IF(OrigTable!A1902=\"\",\"\",ScriptText!$E$1&CHAR(10)&ScriptText!$C$1)","v":""},{"$f":"IF(OrigTable!B1902=\"\",\"\",ScriptText!$B$1&CHAR(10)&ScriptText!$D$1)","v":""},{"$f":"IF(OrigTable!B1902=\"\",\"\",TEXT(OrigTable!B1902,\"00\"))","v":""},{"$f":"IF(OrigTable!B1902=\"\",\"\",ScriptText!$E$1&CHAR(10)&ScriptText!C1897)","v":""},{"$f":"IF(OrigTable!C1902=\"\",\"\",ScriptText!$B$1&CHAR(10)&ScriptText!$D$1)","v":""},{"$f":"IF(OrigTable!C1902=\"\",\"\",IF(LEN(OrigTable!C1902)>255,LEFT(OrigTable!C1902,250)&\". . .\",OrigTable!C1902))","v":""},{"$f":"IF(OrigTable!C1902=\"\",\"\",ScriptText!$E$1&CHAR(10)&ScriptText!$C$1)","v":""},{"$f":"IF(OrigTable!D1902=\"\",\"\",ScriptText!$B$1&CHAR(10)&ScriptText!$D$1)","v":""},{"$f":"IF(OrigTable!D1902=\"\",\"\",TEXT(OrigTable!D1902,\"00\"))","v":""},{"$f":"IF(OrigTable!D1902=\"\",\"\",ScriptText!$E$1&CHAR(10)&ScriptText!$C$1)","v":""},{"$f":"IF(OrigTable!E1902=\"\",\"\",ScriptText!$B$1&CHAR(10)&ScriptText!$D$1)","v":""},{"$f":"IF(OrigTable!E1902=\"\",\"\",TEXT(OrigTable!E1902,\"00\"))","v":""},{"$f":"IF(OrigTable!E1902=\"\",\"\",ScriptText!$E$1&CHAR(10)&ScriptText!$C$1)","v":""},{"$f":"IF(OrigTable!F1902=\"\",\"\",ScriptText!$B$1&CHAR(10)&ScriptText!$D$1)","v":""},{"$f":"IF(OrigTable!F1902=\"\",\"\",TEXT(OrigTable!F1902,\"00\"))","v":""},{"$f":"IF(OrigTable!F1902=\"\",\"\",ScriptText!$E$1&CHAR(10)&ScriptText!$C$1)","v":""},{"$f":"IF(OrigTable!G1902=\"\",\"\",ScriptText!$B$1&CHAR(10)&ScriptText!$D$1)","v":""},{"$f":"IF(OrigTable!G1902=\"\",\"\",TEXT(OrigTable!G1902,\"00\"))","v":""},{"$f":"IF(OrigTable!G1902=\"\",\"\",ScriptText!$E$1&CHAR(10)&ScriptText!$C$1)","v":""},0]
["\n\n\n",{"$f":"IF(OrigTable!A1903=\"\",\"\",ScriptText!$B$1&CHAR(10)&ScriptText!$D$1)","v":""},{"$f":"IF(OrigTable!A1903=\"\",\"\",TEXT(OrigTable!A1903,\"00\"))","v":""},{"$f":"IF(OrigTable!A1903=\"\",\"\",ScriptText!$E$1&CHAR(10)&ScriptText!$C$1)","v":""},{"$f":"IF(OrigTable!B1903=\"\",\"\",ScriptText!$B$1&CHAR(10)&ScriptText!$D$1)","v":""},{"$f":"IF(OrigTable!B1903=\"\",\"\",TEXT(OrigTable!B1903,\"00\"))","v":""},{"$f":"IF(OrigTable!B1903=\"\",\"\",ScriptText!$E$1&CHAR(10)&ScriptText!C1898)","v":""},{"$f":"IF(OrigTable!C1903=\"\",\"\",ScriptText!$B$1&CHAR(10)&ScriptText!$D$1)","v":""},{"$f":"IF(OrigTable!C1903=\"\",\"\",IF(LEN(OrigTable!C1903)>255,LEFT(OrigTable!C1903,250)&\". . .\",OrigTable!C1903))","v":""},{"$f":"IF(OrigTable!C1903=\"\",\"\",ScriptText!$E$1&CHAR(10)&ScriptText!$C$1)","v":""},{"$f":"IF(OrigTable!D1903=\"\",\"\",ScriptText!$B$1&CHAR(10)&ScriptText!$D$1)","v":""},{"$f":"IF(OrigTable!D1903=\"\",\"\",TEXT(OrigTable!D1903,\"00\"))","v":""},{"$f":"IF(OrigTable!D1903=\"\",\"\",ScriptText!$E$1&CHAR(10)&ScriptText!$C$1)","v":""},{"$f":"IF(OrigTable!E1903=\"\",\"\",ScriptText!$B$1&CHAR(10)&ScriptText!$D$1)","v":""},{"$f":"IF(OrigTable!E1903=\"\",\"\",TEXT(OrigTable!E1903,\"00\"))","v":""},{"$f":"IF(OrigTable!E1903=\"\",\"\",ScriptText!$E$1&CHAR(10)&ScriptText!$C$1)","v":""},{"$f":"IF(OrigTable!F1903=\"\",\"\",ScriptText!$B$1&CHAR(10)&ScriptText!$D$1)","v":""},{"$f":"IF(OrigTable!F1903=\"\",\"\",TEXT(OrigTable!F1903,\"00\"))","v":""},{"$f":"IF(OrigTable!F1903=\"\",\"\",ScriptText!$E$1&CHAR(10)&ScriptText!$C$1)","v":""},{"$f":"IF(OrigTable!G1903=\"\",\"\",ScriptText!$B$1&CHAR(10)&ScriptText!$D$1)","v":""},{"$f":"IF(OrigTable!G1903=\"\",\"\",TEXT(OrigTable!G1903,\"00\"))","v":""},{"$f":"IF(OrigTable!G1903=\"\",\"\",ScriptText!$E$1&CHAR(10)&ScriptText!$C$1)","v":""},0]
["\n\n\n",{"$f":"IF(OrigTable!A1904=\"\",\"\",ScriptText!$B$1&CHAR(10)&ScriptText!$D$1)","v":""},{"$f":"IF(OrigTable!A1904=\"\",\"\",TEXT(OrigTable!A1904,\"00\"))","v":""},{"$f":"IF(OrigTable!A1904=\"\",\"\",ScriptText!$E$1&CHAR(10)&ScriptText!$C$1)","v":""},{"$f":"IF(OrigTable!B1904=\"\",\"\",ScriptText!$B$1&CHAR(10)&ScriptText!$D$1)","v":""},{"$f":"IF(OrigTable!B1904=\"\",\"\",TEXT(OrigTable!B1904,\"00\"))","v":""},{"$f":"IF(OrigTable!B1904=\"\",\"\",ScriptText!$E$1&CHAR(10)&ScriptText!C1899)","v":""},{"$f":"IF(OrigTable!C1904=\"\",\"\",ScriptText!$B$1&CHAR(10)&ScriptText!$D$1)","v":""},{"$f":"IF(OrigTable!C1904=\"\",\"\",IF(LEN(OrigTable!C1904)>255,LEFT(OrigTable!C1904,250)&\". . .\",OrigTable!C1904))","v":""},{"$f":"IF(OrigTable!C1904=\"\",\"\",ScriptText!$E$1&CHAR(10)&ScriptText!$C$1)","v":""},{"$f":"IF(OrigTable!D1904=\"\",\"\",ScriptText!$B$1&CHAR(10)&ScriptText!$D$1)","v":""},{"$f":"IF(OrigTable!D1904=\"\",\"\",TEXT(OrigTable!D1904,\"00\"))","v":""},{"$f":"IF(OrigTable!D1904=\"\",\"\",ScriptText!$E$1&CHAR(10)&ScriptText!$C$1)","v":""},{"$f":"IF(OrigTable!E1904=\"\",\"\",ScriptText!$B$1&CHAR(10)&ScriptText!$D$1)","v":""},{"$f":"IF(OrigTable!E1904=\"\",\"\",TEXT(OrigTable!E1904,\"00\"))","v":""},{"$f":"IF(OrigTable!E1904=\"\",\"\",ScriptText!$E$1&CHAR(10)&ScriptText!$C$1)","v":""},{"$f":"IF(OrigTable!F1904=\"\",\"\",ScriptText!$B$1&CHAR(10)&ScriptText!$D$1)","v":""},{"$f":"IF(OrigTable!F1904=\"\",\"\",TEXT(OrigTable!F1904,\"00\"))","v":""},{"$f":"IF(OrigTable!F1904=\"\",\"\",ScriptText!$E$1&CHAR(10)&ScriptText!$C$1)","v":""},{"$f":"IF(OrigTable!G1904=\"\",\"\",ScriptText!$B$1&CHAR(10)&ScriptText!$D$1)","v":""},{"$f":"IF(OrigTable!G1904=\"\",\"\",TEXT(OrigTable!G1904,\"00\"))","v":""},{"$f":"IF(OrigTable!G1904=\"\",\"\",ScriptText!$E$1&CHAR(10)&ScriptText!$C$1)","v":""},0]
["\n\n\n",{"$f":"IF(OrigTable!A1905=\"\",\"\",ScriptText!$B$1&CHAR(10)&ScriptText!$D$1)","v":""},{"$f":"IF(OrigTable!A1905=\"\",\"\",TEXT(OrigTable!A1905,\"00\"))","v":""},{"$f":"IF(OrigTable!A1905=\"\",\"\",ScriptText!$E$1&CHAR(10)&ScriptText!$C$1)","v":""},{"$f":"IF(OrigTable!B1905=\"\",\"\",ScriptText!$B$1&CHAR(10)&ScriptText!$D$1)","v":""},{"$f":"IF(OrigTable!B1905=\"\",\"\",TEXT(OrigTable!B1905,\"00\"))","v":""},{"$f":"IF(OrigTable!B1905=\"\",\"\",ScriptText!$E$1&CHAR(10)&ScriptText!C1900)","v":""},{"$f":"IF(OrigTable!C1905=\"\",\"\",ScriptText!$B$1&CHAR(10)&ScriptText!$D$1)","v":""},{"$f":"IF(OrigTable!C1905=\"\",\"\",IF(LEN(OrigTable!C1905)>255,LEFT(OrigTable!C1905,250)&\". . .\",OrigTable!C1905))","v":""},{"$f":"IF(OrigTable!C1905=\"\",\"\",ScriptText!$E$1&CHAR(10)&ScriptText!$C$1)","v":""},{"$f":"IF(OrigTable!D1905=\"\",\"\",ScriptText!$B$1&CHAR(10)&ScriptText!$D$1)","v":""},{"$f":"IF(OrigTable!D1905=\"\",\"\",TEXT(OrigTable!D1905,\"00\"))","v":""},{"$f":"IF(OrigTable!D1905=\"\",\"\",ScriptText!$E$1&CHAR(10)&ScriptText!$C$1)","v":""},{"$f":"IF(OrigTable!E1905=\"\",\"\",ScriptText!$B$1&CHAR(10)&ScriptText!$D$1)","v":""},{"$f":"IF(OrigTable!E1905=\"\",\"\",TEXT(OrigTable!E1905,\"00\"))","v":""},{"$f":"IF(OrigTable!E1905=\"\",\"\",ScriptText!$E$1&CHAR(10)&ScriptText!$C$1)","v":""},{"$f":"IF(OrigTable!F1905=\"\",\"\",ScriptText!$B$1&CHAR(10)&ScriptText!$D$1)","v":""},{"$f":"IF(OrigTable!F1905=\"\",\"\",TEXT(OrigTable!F1905,\"00\"))","v":""},{"$f":"IF(OrigTable!F1905=\"\",\"\",ScriptText!$E$1&CHAR(10)&ScriptText!$C$1)","v":""},{"$f":"IF(OrigTable!G1905=\"\",\"\",ScriptText!$B$1&CHAR(10)&ScriptText!$D$1)","v":""},{"$f":"IF(OrigTable!G1905=\"\",\"\",TEXT(OrigTable!G1905,\"00\"))","v":""},{"$f":"IF(OrigTable!G1905=\"\",\"\",ScriptText!$E$1&CHAR(10)&ScriptText!$C$1)","v":""},0]
["\n\n\n",{"$f":"IF(OrigTable!A1906=\"\",\"\",ScriptText!$B$1&CHAR(10)&ScriptText!$D$1)","v":""},{"$f":"IF(OrigTable!A1906=\"\",\"\",TEXT(OrigTable!A1906,\"00\"))","v":""},{"$f":"IF(OrigTable!A1906=\"\",\"\",ScriptText!$E$1&CHAR(10)&ScriptText!$C$1)","v":""},{"$f":"IF(OrigTable!B1906=\"\",\"\",ScriptText!$B$1&CHAR(10)&ScriptText!$D$1)","v":""},{"$f":"IF(OrigTable!B1906=\"\",\"\",TEXT(OrigTable!B1906,\"00\"))","v":""},{"$f":"IF(OrigTable!B1906=\"\",\"\",ScriptText!$E$1&CHAR(10)&ScriptText!C1901)","v":""},{"$f":"IF(OrigTable!C1906=\"\",\"\",ScriptText!$B$1&CHAR(10)&ScriptText!$D$1)","v":""},{"$f":"IF(OrigTable!C1906=\"\",\"\",IF(LEN(OrigTable!C1906)>255,LEFT(OrigTable!C1906,250)&\". . .\",OrigTable!C1906))","v":""},{"$f":"IF(OrigTable!C1906=\"\",\"\",ScriptText!$E$1&CHAR(10)&ScriptText!$C$1)","v":""},{"$f":"IF(OrigTable!D1906=\"\",\"\",ScriptText!$B$1&CHAR(10)&ScriptText!$D$1)","v":""},{"$f":"IF(OrigTable!D1906=\"\",\"\",TEXT(OrigTable!D1906,\"00\"))","v":""},{"$f":"IF(OrigTable!D1906=\"\",\"\",ScriptText!$E$1&CHAR(10)&ScriptText!$C$1)","v":""},{"$f":"IF(OrigTable!E1906=\"\",\"\",ScriptText!$B$1&CHAR(10)&ScriptText!$D$1)","v":""},{"$f":"IF(OrigTable!E1906=\"\",\"\",TEXT(OrigTable!E1906,\"00\"))","v":""},{"$f":"IF(OrigTable!E1906=\"\",\"\",ScriptText!$E$1&CHAR(10)&ScriptText!$C$1)","v":""},{"$f":"IF(OrigTable!F1906=\"\",\"\",ScriptText!$B$1&CHAR(10)&ScriptText!$D$1)","v":""},{"$f":"IF(OrigTable!F1906=\"\",\"\",TEXT(OrigTable!F1906,\"00\"))","v":""},{"$f":"IF(OrigTable!F1906=\"\",\"\",ScriptText!$E$1&CHAR(10)&ScriptText!$C$1)","v":""},{"$f":"IF(OrigTable!G1906=\"\",\"\",ScriptText!$B$1&CHAR(10)&ScriptText!$D$1)","v":""},{"$f":"IF(OrigTable!G1906=\"\",\"\",TEXT(OrigTable!G1906,\"00\"))","v":""},{"$f":"IF(OrigTable!G1906=\"\",\"\",ScriptText!$E$1&CHAR(10)&ScriptText!$C$1)","v":""},0]
["\n\n\n",{"$f":"IF(OrigTable!A1907=\"\",\"\",ScriptText!$B$1&CHAR(10)&ScriptText!$D$1)","v":""},{"$f":"IF(OrigTable!A1907=\"\",\"\",TEXT(OrigTable!A1907,\"00\"))","v":""},{"$f":"IF(OrigTable!A1907=\"\",\"\",ScriptText!$E$1&CHAR(10)&ScriptText!$C$1)","v":""},{"$f":"IF(OrigTable!B1907=\"\",\"\",ScriptText!$B$1&CHAR(10)&ScriptText!$D$1)","v":""},{"$f":"IF(OrigTable!B1907=\"\",\"\",TEXT(OrigTable!B1907,\"00\"))","v":""},{"$f":"IF(OrigTable!B1907=\"\",\"\",ScriptText!$E$1&CHAR(10)&ScriptText!C1902)","v":""},{"$f":"IF(OrigTable!C1907=\"\",\"\",ScriptText!$B$1&CHAR(10)&ScriptText!$D$1)","v":""},{"$f":"IF(OrigTable!C1907=\"\",\"\",IF(LEN(OrigTable!C1907)>255,LEFT(OrigTable!C1907,250)&\". . .\",OrigTable!C1907))","v":""},{"$f":"IF(OrigTable!C1907=\"\",\"\",ScriptText!$E$1&CHAR(10)&ScriptText!$C$1)","v":""},{"$f":"IF(OrigTable!D1907=\"\",\"\",ScriptText!$B$1&CHAR(10)&ScriptText!$D$1)","v":""},{"$f":"IF(OrigTable!D1907=\"\",\"\",TEXT(OrigTable!D1907,\"00\"))","v":""},{"$f":"IF(OrigTable!D1907=\"\",\"\",ScriptText!$E$1&CHAR(10)&ScriptText!$C$1)","v":""},{"$f":"IF(OrigTable!E1907=\"\",\"\",ScriptText!$B$1&CHAR(10)&ScriptText!$D$1)","v":""},{"$f":"IF(OrigTable!E1907=\"\",\"\",TEXT(OrigTable!E1907,\"00\"))","v":""},{"$f":"IF(OrigTable!E1907=\"\",\"\",ScriptText!$E$1&CHAR(10)&ScriptText!$C$1)","v":""},{"$f":"IF(OrigTable!F1907=\"\",\"\",ScriptText!$B$1&CHAR(10)&ScriptText!$D$1)","v":""},{"$f":"IF(OrigTable!F1907=\"\",\"\",TEXT(OrigTable!F1907,\"00\"))","v":""},{"$f":"IF(OrigTable!F1907=\"\",\"\",ScriptText!$E$1&CHAR(10)&ScriptText!$C$1)","v":""},{"$f":"IF(OrigTable!G1907=\"\",\"\",ScriptText!$B$1&CHAR(10)&ScriptText!$D$1)","v":""},{"$f":"IF(OrigTable!G1907=\"\",\"\",TEXT(OrigTable!G1907,\"00\"))","v":""},{"$f":"IF(OrigTable!G1907=\"\",\"\",ScriptText!$E$1&CHAR(10)&ScriptText!$C$1)","v":""},0]
["\n\n\n",{"$f":"IF(OrigTable!A1908=\"\",\"\",ScriptText!$B$1&CHAR(10)&ScriptText!$D$1)","v":""},{"$f":"IF(OrigTable!A1908=\"\",\"\",TEXT(OrigTable!A1908,\"00\"))","v":""},{"$f":"IF(OrigTable!A1908=\"\",\"\",ScriptText!$E$1&CHAR(10)&ScriptText!$C$1)","v":""},{"$f":"IF(OrigTable!B1908=\"\",\"\",ScriptText!$B$1&CHAR(10)&ScriptText!$D$1)","v":""},{"$f":"IF(OrigTable!B1908=\"\",\"\",TEXT(OrigTable!B1908,\"00\"))","v":""},{"$f":"IF(OrigTable!B1908=\"\",\"\",ScriptText!$E$1&CHAR(10)&ScriptText!C1903)","v":""},{"$f":"IF(OrigTable!C1908=\"\",\"\",ScriptText!$B$1&CHAR(10)&ScriptText!$D$1)","v":""},{"$f":"IF(OrigTable!C1908=\"\",\"\",IF(LEN(OrigTable!C1908)>255,LEFT(OrigTable!C1908,250)&\". . .\",OrigTable!C1908))","v":""},{"$f":"IF(OrigTable!C1908=\"\",\"\",ScriptText!$E$1&CHAR(10)&ScriptText!$C$1)","v":""},{"$f":"IF(OrigTable!D1908=\"\",\"\",ScriptText!$B$1&CHAR(10)&ScriptText!$D$1)","v":""},{"$f":"IF(OrigTable!D1908=\"\",\"\",TEXT(OrigTable!D1908,\"00\"))","v":""},{"$f":"IF(OrigTable!D1908=\"\",\"\",ScriptText!$E$1&CHAR(10)&ScriptText!$C$1)","v":""},{"$f":"IF(OrigTable!E1908=\"\",\"\",ScriptText!$B$1&CHAR(10)&ScriptText!$D$1)","v":""},{"$f":"IF(OrigTable!E1908=\"\",\"\",TEXT(OrigTable!E1908,\"00\"))","v":""},{"$f":"IF(OrigTable!E1908=\"\",\"\",ScriptText!$E$1&CHAR(10)&ScriptText!$C$1)","v":""},{"$f":"IF(OrigTable!F1908=\"\",\"\",ScriptText!$B$1&CHAR(10)&ScriptText!$D$1)","v":""},{"$f":"IF(OrigTable!F1908=\"\",\"\",TEXT(OrigTable!F1908,\"00\"))","v":""},{"$f":"IF(OrigTable!F1908=\"\",\"\",ScriptText!$E$1&CHAR(10)&ScriptText!$C$1)","v":""},{"$f":"IF(OrigTable!G1908=\"\",\"\",ScriptText!$B$1&CHAR(10)&ScriptText!$D$1)","v":""},{"$f":"IF(OrigTable!G1908=\"\",\"\",TEXT(OrigTable!G1908,\"00\"))","v":""},{"$f":"IF(OrigTable!G1908=\"\",\"\",ScriptText!$E$1&CHAR(10)&ScriptText!$C$1)","v":""},0]
["\n\n\n",{"$f":"IF(OrigTable!A1909=\"\",\"\",ScriptText!$B$1&CHAR(10)&ScriptText!$D$1)","v":""},{"$f":"IF(OrigTable!A1909=\"\",\"\",TEXT(OrigTable!A1909,\"00\"))","v":""},{"$f":"IF(OrigTable!A1909=\"\",\"\",ScriptText!$E$1&CHAR(10)&ScriptText!$C$1)","v":""},{"$f":"IF(OrigTable!B1909=\"\",\"\",ScriptText!$B$1&CHAR(10)&ScriptText!$D$1)","v":""},{"$f":"IF(OrigTable!B1909=\"\",\"\",TEXT(OrigTable!B1909,\"00\"))","v":""},{"$f":"IF(OrigTable!B1909=\"\",\"\",ScriptText!$E$1&CHAR(10)&ScriptText!C1904)","v":""},{"$f":"IF(OrigTable!C1909=\"\",\"\",ScriptText!$B$1&CHAR(10)&ScriptText!$D$1)","v":""},{"$f":"IF(OrigTable!C1909=\"\",\"\",IF(LEN(OrigTable!C1909)>255,LEFT(OrigTable!C1909,250)&\". . .\",OrigTable!C1909))","v":""},{"$f":"IF(OrigTable!C1909=\"\",\"\",ScriptText!$E$1&CHAR(10)&ScriptText!$C$1)","v":""},{"$f":"IF(OrigTable!D1909=\"\",\"\",ScriptText!$B$1&CHAR(10)&ScriptText!$D$1)","v":""},{"$f":"IF(OrigTable!D1909=\"\",\"\",TEXT(OrigTable!D1909,\"00\"))","v":""},{"$f":"IF(OrigTable!D1909=\"\",\"\",ScriptText!$E$1&CHAR(10)&ScriptText!$C$1)","v":""},{"$f":"IF(OrigTable!E1909=\"\",\"\",ScriptText!$B$1&CHAR(10)&ScriptText!$D$1)","v":""},{"$f":"IF(OrigTable!E1909=\"\",\"\",TEXT(OrigTable!E1909,\"00\"))","v":""},{"$f":"IF(OrigTable!E1909=\"\",\"\",ScriptText!$E$1&CHAR(10)&ScriptText!$C$1)","v":""},{"$f":"IF(OrigTable!F1909=\"\",\"\",ScriptText!$B$1&CHAR(10)&ScriptText!$D$1)","v":""},{"$f":"IF(OrigTable!F1909=\"\",\"\",TEXT(OrigTable!F1909,\"00\"))","v":""},{"$f":"IF(OrigTable!F1909=\"\",\"\",ScriptText!$E$1&CHAR(10)&ScriptText!$C$1)","v":""},{"$f":"IF(OrigTable!G1909=\"\",\"\",ScriptText!$B$1&CHAR(10)&ScriptText!$D$1)","v":""},{"$f":"IF(OrigTable!G1909=\"\",\"\",TEXT(OrigTable!G1909,\"00\"))","v":""},{"$f":"IF(OrigTable!G1909=\"\",\"\",ScriptText!$E$1&CHAR(10)&ScriptText!$C$1)","v":""},0]
["\n\n\n",{"$f":"IF(OrigTable!A1910=\"\",\"\",ScriptText!$B$1&CHAR(10)&ScriptText!$D$1)","v":""},{"$f":"IF(OrigTable!A1910=\"\",\"\",TEXT(OrigTable!A1910,\"00\"))","v":""},{"$f":"IF(OrigTable!A1910=\"\",\"\",ScriptText!$E$1&CHAR(10)&ScriptText!$C$1)","v":""},{"$f":"IF(OrigTable!B1910=\"\",\"\",ScriptText!$B$1&CHAR(10)&ScriptText!$D$1)","v":""},{"$f":"IF(OrigTable!B1910=\"\",\"\",TEXT(OrigTable!B1910,\"00\"))","v":""},{"$f":"IF(OrigTable!B1910=\"\",\"\",ScriptText!$E$1&CHAR(10)&ScriptText!C1905)","v":""},{"$f":"IF(OrigTable!C1910=\"\",\"\",ScriptText!$B$1&CHAR(10)&ScriptText!$D$1)","v":""},{"$f":"IF(OrigTable!C1910=\"\",\"\",IF(LEN(OrigTable!C1910)>255,LEFT(OrigTable!C1910,250)&\". . .\",OrigTable!C1910))","v":""},{"$f":"IF(OrigTable!C1910=\"\",\"\",ScriptText!$E$1&CHAR(10)&ScriptText!$C$1)","v":""},{"$f":"IF(OrigTable!D1910=\"\",\"\",ScriptText!$B$1&CHAR(10)&ScriptText!$D$1)","v":""},{"$f":"IF(OrigTable!D1910=\"\",\"\",TEXT(OrigTable!D1910,\"00\"))","v":""},{"$f":"IF(OrigTable!D1910=\"\",\"\",ScriptText!$E$1&CHAR(10)&ScriptText!$C$1)","v":""},{"$f":"IF(OrigTable!E1910=\"\",\"\",ScriptText!$B$1&CHAR(10)&ScriptText!$D$1)","v":""},{"$f":"IF(OrigTable!E1910=\"\",\"\",TEXT(OrigTable!E1910,\"00\"))","v":""},{"$f":"IF(OrigTable!E1910=\"\",\"\",ScriptText!$E$1&CHAR(10)&ScriptText!$C$1)","v":""},{"$f":"IF(OrigTable!F1910=\"\",\"\",ScriptText!$B$1&CHAR(10)&ScriptText!$D$1)","v":""},{"$f":"IF(OrigTable!F1910=\"\",\"\",TEXT(OrigTable!F1910,\"00\"))","v":""},{"$f":"IF(OrigTable!F1910=\"\",\"\",ScriptText!$E$1&CHAR(10)&ScriptText!$C$1)","v":""},{"$f":"IF(OrigTable!G1910=\"\",\"\",ScriptText!$B$1&CHAR(10)&ScriptText!$D$1)","v":""},{"$f":"IF(OrigTable!G1910=\"\",\"\",TEXT(OrigTable!G1910,\"00\"))","v":""},{"$f":"IF(OrigTable!G1910=\"\",\"\",ScriptText!$E$1&CHAR(10)&ScriptText!$C$1)","v":""},0]
["\n\n\n",{"$f":"IF(OrigTable!A1911=\"\",\"\",ScriptText!$B$1&CHAR(10)&ScriptText!$D$1)","v":""},{"$f":"IF(OrigTable!A1911=\"\",\"\",TEXT(OrigTable!A1911,\"00\"))","v":""},{"$f":"IF(OrigTable!A1911=\"\",\"\",ScriptText!$E$1&CHAR(10)&ScriptText!$C$1)","v":""},{"$f":"IF(OrigTable!B1911=\"\",\"\",ScriptText!$B$1&CHAR(10)&ScriptText!$D$1)","v":""},{"$f":"IF(OrigTable!B1911=\"\",\"\",TEXT(OrigTable!B1911,\"00\"))","v":""},{"$f":"IF(OrigTable!B1911=\"\",\"\",ScriptText!$E$1&CHAR(10)&ScriptText!C1906)","v":""},{"$f":"IF(OrigTable!C1911=\"\",\"\",ScriptText!$B$1&CHAR(10)&ScriptText!$D$1)","v":""},{"$f":"IF(OrigTable!C1911=\"\",\"\",IF(LEN(OrigTable!C1911)>255,LEFT(OrigTable!C1911,250)&\". . .\",OrigTable!C1911))","v":""},{"$f":"IF(OrigTable!C1911=\"\",\"\",ScriptText!$E$1&CHAR(10)&ScriptText!$C$1)","v":""},{"$f":"IF(OrigTable!D1911=\"\",\"\",ScriptText!$B$1&CHAR(10)&ScriptText!$D$1)","v":""},{"$f":"IF(OrigTable!D1911=\"\",\"\",TEXT(OrigTable!D1911,\"00\"))","v":""},{"$f":"IF(OrigTable!D1911=\"\",\"\",ScriptText!$E$1&CHAR(10)&ScriptText!$C$1)","v":""},{"$f":"IF(OrigTable!E1911=\"\",\"\",ScriptText!$B$1&CHAR(10)&ScriptText!$D$1)","v":""},{"$f":"IF(OrigTable!E1911=\"\",\"\",TEXT(OrigTable!E1911,\"00\"))","v":""},{"$f":"IF(OrigTable!E1911=\"\",\"\",ScriptText!$E$1&CHAR(10)&ScriptText!$C$1)","v":""},{"$f":"IF(OrigTable!F1911=\"\",\"\",ScriptText!$B$1&CHAR(10)&ScriptText!$D$1)","v":""},{"$f":"IF(OrigTable!F1911=\"\",\"\",TEXT(OrigTable!F1911,\"00\"))","v":""},{"$f":"IF(OrigTable!F1911=\"\",\"\",ScriptText!$E$1&CHAR(10)&ScriptText!$C$1)","v":""},{"$f":"IF(OrigTable!G1911=\"\",\"\",ScriptText!$B$1&CHAR(10)&ScriptText!$D$1)","v":""},{"$f":"IF(OrigTable!G1911=\"\",\"\",TEXT(OrigTable!G1911,\"00\"))","v":""},{"$f":"IF(OrigTable!G1911=\"\",\"\",ScriptText!$E$1&CHAR(10)&ScriptText!$C$1)","v":""},0]
["\n\n\n",{"$f":"IF(OrigTable!A1912=\"\",\"\",ScriptText!$B$1&CHAR(10)&ScriptText!$D$1)","v":""},{"$f":"IF(OrigTable!A1912=\"\",\"\",TEXT(OrigTable!A1912,\"00\"))","v":""},{"$f":"IF(OrigTable!A1912=\"\",\"\",ScriptText!$E$1&CHAR(10)&ScriptText!$C$1)","v":""},{"$f":"IF(OrigTable!B1912=\"\",\"\",ScriptText!$B$1&CHAR(10)&ScriptText!$D$1)","v":""},{"$f":"IF(OrigTable!B1912=\"\",\"\",TEXT(OrigTable!B1912,\"00\"))","v":""},{"$f":"IF(OrigTable!B1912=\"\",\"\",ScriptText!$E$1&CHAR(10)&ScriptText!C1907)","v":""},{"$f":"IF(OrigTable!C1912=\"\",\"\",ScriptText!$B$1&CHAR(10)&ScriptText!$D$1)","v":""},{"$f":"IF(OrigTable!C1912=\"\",\"\",IF(LEN(OrigTable!C1912)>255,LEFT(OrigTable!C1912,250)&\". . .\",OrigTable!C1912))","v":""},{"$f":"IF(OrigTable!C1912=\"\",\"\",ScriptText!$E$1&CHAR(10)&ScriptText!$C$1)","v":""},{"$f":"IF(OrigTable!D1912=\"\",\"\",ScriptText!$B$1&CHAR(10)&ScriptText!$D$1)","v":""},{"$f":"IF(OrigTable!D1912=\"\",\"\",TEXT(OrigTable!D1912,\"00\"))","v":""},{"$f":"IF(OrigTable!D1912=\"\",\"\",ScriptText!$E$1&CHAR(10)&ScriptText!$C$1)","v":""},{"$f":"IF(OrigTable!E1912=\"\",\"\",ScriptText!$B$1&CHAR(10)&ScriptText!$D$1)","v":""},{"$f":"IF(OrigTable!E1912=\"\",\"\",TEXT(OrigTable!E1912,\"00\"))","v":""},{"$f":"IF(OrigTable!E1912=\"\",\"\",ScriptText!$E$1&CHAR(10)&ScriptText!$C$1)","v":""},{"$f":"IF(OrigTable!F1912=\"\",\"\",ScriptText!$B$1&CHAR(10)&ScriptText!$D$1)","v":""},{"$f":"IF(OrigTable!F1912=\"\",\"\",TEXT(OrigTable!F1912,\"00\"))","v":""},{"$f":"IF(OrigTable!F1912=\"\",\"\",ScriptText!$E$1&CHAR(10)&ScriptText!$C$1)","v":""},{"$f":"IF(OrigTable!G1912=\"\",\"\",ScriptText!$B$1&CHAR(10)&ScriptText!$D$1)","v":""},{"$f":"IF(OrigTable!G1912=\"\",\"\",TEXT(OrigTable!G1912,\"00\"))","v":""},{"$f":"IF(OrigTable!G1912=\"\",\"\",ScriptText!$E$1&CHAR(10)&ScriptText!$C$1)","v":""},0]
["\n\n\n",{"$f":"IF(OrigTable!A1913=\"\",\"\",ScriptText!$B$1&CHAR(10)&ScriptText!$D$1)","v":""},{"$f":"IF(OrigTable!A1913=\"\",\"\",TEXT(OrigTable!A1913,\"00\"))","v":""},{"$f":"IF(OrigTable!A1913=\"\",\"\",ScriptText!$E$1&CHAR(10)&ScriptText!$C$1)","v":""},{"$f":"IF(OrigTable!B1913=\"\",\"\",ScriptText!$B$1&CHAR(10)&ScriptText!$D$1)","v":""},{"$f":"IF(OrigTable!B1913=\"\",\"\",TEXT(OrigTable!B1913,\"00\"))","v":""},{"$f":"IF(OrigTable!B1913=\"\",\"\",ScriptText!$E$1&CHAR(10)&ScriptText!C1908)","v":""},{"$f":"IF(OrigTable!C1913=\"\",\"\",ScriptText!$B$1&CHAR(10)&ScriptText!$D$1)","v":""},{"$f":"IF(OrigTable!C1913=\"\",\"\",IF(LEN(OrigTable!C1913)>255,LEFT(OrigTable!C1913,250)&\". . .\",OrigTable!C1913))","v":""},{"$f":"IF(OrigTable!C1913=\"\",\"\",ScriptText!$E$1&CHAR(10)&ScriptText!$C$1)","v":""},{"$f":"IF(OrigTable!D1913=\"\",\"\",ScriptText!$B$1&CHAR(10)&ScriptText!$D$1)","v":""},{"$f":"IF(OrigTable!D1913=\"\",\"\",TEXT(OrigTable!D1913,\"00\"))","v":""},{"$f":"IF(OrigTable!D1913=\"\",\"\",ScriptText!$E$1&CHAR(10)&ScriptText!$C$1)","v":""},{"$f":"IF(OrigTable!E1913=\"\",\"\",ScriptText!$B$1&CHAR(10)&ScriptText!$D$1)","v":""},{"$f":"IF(OrigTable!E1913=\"\",\"\",TEXT(OrigTable!E1913,\"00\"))","v":""},{"$f":"IF(OrigTable!E1913=\"\",\"\",ScriptText!$E$1&CHAR(10)&ScriptText!$C$1)","v":""},{"$f":"IF(OrigTable!F1913=\"\",\"\",ScriptText!$B$1&CHAR(10)&ScriptText!$D$1)","v":""},{"$f":"IF(OrigTable!F1913=\"\",\"\",TEXT(OrigTable!F1913,\"00\"))","v":""},{"$f":"IF(OrigTable!F1913=\"\",\"\",ScriptText!$E$1&CHAR(10)&ScriptText!$C$1)","v":""},{"$f":"IF(OrigTable!G1913=\"\",\"\",ScriptText!$B$1&CHAR(10)&ScriptText!$D$1)","v":""},{"$f":"IF(OrigTable!G1913=\"\",\"\",TEXT(OrigTable!G1913,\"00\"))","v":""},{"$f":"IF(OrigTable!G1913=\"\",\"\",ScriptText!$E$1&CHAR(10)&ScriptText!$C$1)","v":""},0]
["\n\n\n",{"$f":"IF(OrigTable!A1914=\"\",\"\",ScriptText!$B$1&CHAR(10)&ScriptText!$D$1)","v":""},{"$f":"IF(OrigTable!A1914=\"\",\"\",TEXT(OrigTable!A1914,\"00\"))","v":""},{"$f":"IF(OrigTable!A1914=\"\",\"\",ScriptText!$E$1&CHAR(10)&ScriptText!$C$1)","v":""},{"$f":"IF(OrigTable!B1914=\"\",\"\",ScriptText!$B$1&CHAR(10)&ScriptText!$D$1)","v":""},{"$f":"IF(OrigTable!B1914=\"\",\"\",TEXT(OrigTable!B1914,\"00\"))","v":""},{"$f":"IF(OrigTable!B1914=\"\",\"\",ScriptText!$E$1&CHAR(10)&ScriptText!C1909)","v":""},{"$f":"IF(OrigTable!C1914=\"\",\"\",ScriptText!$B$1&CHAR(10)&ScriptText!$D$1)","v":""},{"$f":"IF(OrigTable!C1914=\"\",\"\",IF(LEN(OrigTable!C1914)>255,LEFT(OrigTable!C1914,250)&\". . .\",OrigTable!C1914))","v":""},{"$f":"IF(OrigTable!C1914=\"\",\"\",ScriptText!$E$1&CHAR(10)&ScriptText!$C$1)","v":""},{"$f":"IF(OrigTable!D1914=\"\",\"\",ScriptText!$B$1&CHAR(10)&ScriptText!$D$1)","v":""},{"$f":"IF(OrigTable!D1914=\"\",\"\",TEXT(OrigTable!D1914,\"00\"))","v":""},{"$f":"IF(OrigTable!D1914=\"\",\"\",ScriptText!$E$1&CHAR(10)&ScriptText!$C$1)","v":""},{"$f":"IF(OrigTable!E1914=\"\",\"\",ScriptText!$B$1&CHAR(10)&ScriptText!$D$1)","v":""},{"$f":"IF(OrigTable!E1914=\"\",\"\",TEXT(OrigTable!E1914,\"00\"))","v":""},{"$f":"IF(OrigTable!E1914=\"\",\"\",ScriptText!$E$1&CHAR(10)&ScriptText!$C$1)","v":""},{"$f":"IF(OrigTable!F1914=\"\",\"\",ScriptText!$B$1&CHAR(10)&ScriptText!$D$1)","v":""},{"$f":"IF(OrigTable!F1914=\"\",\"\",TEXT(OrigTable!F1914,\"00\"))","v":""},{"$f":"IF(OrigTable!F1914=\"\",\"\",ScriptText!$E$1&CHAR(10)&ScriptText!$C$1)","v":""},{"$f":"IF(OrigTable!G1914=\"\",\"\",ScriptText!$B$1&CHAR(10)&ScriptText!$D$1)","v":""},{"$f":"IF(OrigTable!G1914=\"\",\"\",TEXT(OrigTable!G1914,\"00\"))","v":""},{"$f":"IF(OrigTable!G1914=\"\",\"\",ScriptText!$E$1&CHAR(10)&ScriptText!$C$1)","v":""},0]
["\n\n\n",{"$f":"IF(OrigTable!A1915=\"\",\"\",ScriptText!$B$1&CHAR(10)&ScriptText!$D$1)","v":""},{"$f":"IF(OrigTable!A1915=\"\",\"\",TEXT(OrigTable!A1915,\"00\"))","v":""},{"$f":"IF(OrigTable!A1915=\"\",\"\",ScriptText!$E$1&CHAR(10)&ScriptText!$C$1)","v":""},{"$f":"IF(OrigTable!B1915=\"\",\"\",ScriptText!$B$1&CHAR(10)&ScriptText!$D$1)","v":""},{"$f":"IF(OrigTable!B1915=\"\",\"\",TEXT(OrigTable!B1915,\"00\"))","v":""},{"$f":"IF(OrigTable!B1915=\"\",\"\",ScriptText!$E$1&CHAR(10)&ScriptText!C1910)","v":""},{"$f":"IF(OrigTable!C1915=\"\",\"\",ScriptText!$B$1&CHAR(10)&ScriptText!$D$1)","v":""},{"$f":"IF(OrigTable!C1915=\"\",\"\",IF(LEN(OrigTable!C1915)>255,LEFT(OrigTable!C1915,250)&\". . .\",OrigTable!C1915))","v":""},{"$f":"IF(OrigTable!C1915=\"\",\"\",ScriptText!$E$1&CHAR(10)&ScriptText!$C$1)","v":""},{"$f":"IF(OrigTable!D1915=\"\",\"\",ScriptText!$B$1&CHAR(10)&ScriptText!$D$1)","v":""},{"$f":"IF(OrigTable!D1915=\"\",\"\",TEXT(OrigTable!D1915,\"00\"))","v":""},{"$f":"IF(OrigTable!D1915=\"\",\"\",ScriptText!$E$1&CHAR(10)&ScriptText!$C$1)","v":""},{"$f":"IF(OrigTable!E1915=\"\",\"\",ScriptText!$B$1&CHAR(10)&ScriptText!$D$1)","v":""},{"$f":"IF(OrigTable!E1915=\"\",\"\",TEXT(OrigTable!E1915,\"00\"))","v":""},{"$f":"IF(OrigTable!E1915=\"\",\"\",ScriptText!$E$1&CHAR(10)&ScriptText!$C$1)","v":""},{"$f":"IF(OrigTable!F1915=\"\",\"\",ScriptText!$B$1&CHAR(10)&ScriptText!$D$1)","v":""},{"$f":"IF(OrigTable!F1915=\"\",\"\",TEXT(OrigTable!F1915,\"00\"))","v":""},{"$f":"IF(OrigTable!F1915=\"\",\"\",ScriptText!$E$1&CHAR(10)&ScriptText!$C$1)","v":""},{"$f":"IF(OrigTable!G1915=\"\",\"\",ScriptText!$B$1&CHAR(10)&ScriptText!$D$1)","v":""},{"$f":"IF(OrigTable!G1915=\"\",\"\",TEXT(OrigTable!G1915,\"00\"))","v":""},{"$f":"IF(OrigTable!G1915=\"\",\"\",ScriptText!$E$1&CHAR(10)&ScriptText!$C$1)","v":""},0]
["\n\n\n",{"$f":"IF(OrigTable!A1916=\"\",\"\",ScriptText!$B$1&CHAR(10)&ScriptText!$D$1)","v":""},{"$f":"IF(OrigTable!A1916=\"\",\"\",TEXT(OrigTable!A1916,\"00\"))","v":""},{"$f":"IF(OrigTable!A1916=\"\",\"\",ScriptText!$E$1&CHAR(10)&ScriptText!$C$1)","v":""},{"$f":"IF(OrigTable!B1916=\"\",\"\",ScriptText!$B$1&CHAR(10)&ScriptText!$D$1)","v":""},{"$f":"IF(OrigTable!B1916=\"\",\"\",TEXT(OrigTable!B1916,\"00\"))","v":""},{"$f":"IF(OrigTable!B1916=\"\",\"\",ScriptText!$E$1&CHAR(10)&ScriptText!C1911)","v":""},{"$f":"IF(OrigTable!C1916=\"\",\"\",ScriptText!$B$1&CHAR(10)&ScriptText!$D$1)","v":""},{"$f":"IF(OrigTable!C1916=\"\",\"\",IF(LEN(OrigTable!C1916)>255,LEFT(OrigTable!C1916,250)&\". . .\",OrigTable!C1916))","v":""},{"$f":"IF(OrigTable!C1916=\"\",\"\",ScriptText!$E$1&CHAR(10)&ScriptText!$C$1)","v":""},{"$f":"IF(OrigTable!D1916=\"\",\"\",ScriptText!$B$1&CHAR(10)&ScriptText!$D$1)","v":""},{"$f":"IF(OrigTable!D1916=\"\",\"\",TEXT(OrigTable!D1916,\"00\"))","v":""},{"$f":"IF(OrigTable!D1916=\"\",\"\",ScriptText!$E$1&CHAR(10)&ScriptText!$C$1)","v":""},{"$f":"IF(OrigTable!E1916=\"\",\"\",ScriptText!$B$1&CHAR(10)&ScriptText!$D$1)","v":""},{"$f":"IF(OrigTable!E1916=\"\",\"\",TEXT(OrigTable!E1916,\"00\"))","v":""},{"$f":"IF(OrigTable!E1916=\"\",\"\",ScriptText!$E$1&CHAR(10)&ScriptText!$C$1)","v":""},{"$f":"IF(OrigTable!F1916=\"\",\"\",ScriptText!$B$1&CHAR(10)&ScriptText!$D$1)","v":""},{"$f":"IF(OrigTable!F1916=\"\",\"\",TEXT(OrigTable!F1916,\"00\"))","v":""},{"$f":"IF(OrigTable!F1916=\"\",\"\",ScriptText!$E$1&CHAR(10)&ScriptText!$C$1)","v":""},{"$f":"IF(OrigTable!G1916=\"\",\"\",ScriptText!$B$1&CHAR(10)&ScriptText!$D$1)","v":""},{"$f":"IF(OrigTable!G1916=\"\",\"\",TEXT(OrigTable!G1916,\"00\"))","v":""},{"$f":"IF(OrigTable!G1916=\"\",\"\",ScriptText!$E$1&CHAR(10)&ScriptText!$C$1)","v":""},0]
["\n\n\n",{"$f":"IF(OrigTable!A1917=\"\",\"\",ScriptText!$B$1&CHAR(10)&ScriptText!$D$1)","v":""},{"$f":"IF(OrigTable!A1917=\"\",\"\",TEXT(OrigTable!A1917,\"00\"))","v":""},{"$f":"IF(OrigTable!A1917=\"\",\"\",ScriptText!$E$1&CHAR(10)&ScriptText!$C$1)","v":""},{"$f":"IF(OrigTable!B1917=\"\",\"\",ScriptText!$B$1&CHAR(10)&ScriptText!$D$1)","v":""},{"$f":"IF(OrigTable!B1917=\"\",\"\",TEXT(OrigTable!B1917,\"00\"))","v":""},{"$f":"IF(OrigTable!B1917=\"\",\"\",ScriptText!$E$1&CHAR(10)&ScriptText!C1912)","v":""},{"$f":"IF(OrigTable!C1917=\"\",\"\",ScriptText!$B$1&CHAR(10)&ScriptText!$D$1)","v":""},{"$f":"IF(OrigTable!C1917=\"\",\"\",IF(LEN(OrigTable!C1917)>255,LEFT(OrigTable!C1917,250)&\". . .\",OrigTable!C1917))","v":""},{"$f":"IF(OrigTable!C1917=\"\",\"\",ScriptText!$E$1&CHAR(10)&ScriptText!$C$1)","v":""},{"$f":"IF(OrigTable!D1917=\"\",\"\",ScriptText!$B$1&CHAR(10)&ScriptText!$D$1)","v":""},{"$f":"IF(OrigTable!D1917=\"\",\"\",TEXT(OrigTable!D1917,\"00\"))","v":""},{"$f":"IF(OrigTable!D1917=\"\",\"\",ScriptText!$E$1&CHAR(10)&ScriptText!$C$1)","v":""},{"$f":"IF(OrigTable!E1917=\"\",\"\",ScriptText!$B$1&CHAR(10)&ScriptText!$D$1)","v":""},{"$f":"IF(OrigTable!E1917=\"\",\"\",TEXT(OrigTable!E1917,\"00\"))","v":""},{"$f":"IF(OrigTable!E1917=\"\",\"\",ScriptText!$E$1&CHAR(10)&ScriptText!$C$1)","v":""},{"$f":"IF(OrigTable!F1917=\"\",\"\",ScriptText!$B$1&CHAR(10)&ScriptText!$D$1)","v":""},{"$f":"IF(OrigTable!F1917=\"\",\"\",TEXT(OrigTable!F1917,\"00\"))","v":""},{"$f":"IF(OrigTable!F1917=\"\",\"\",ScriptText!$E$1&CHAR(10)&ScriptText!$C$1)","v":""},{"$f":"IF(OrigTable!G1917=\"\",\"\",ScriptText!$B$1&CHAR(10)&ScriptText!$D$1)","v":""},{"$f":"IF(OrigTable!G1917=\"\",\"\",TEXT(OrigTable!G1917,\"00\"))","v":""},{"$f":"IF(OrigTable!G1917=\"\",\"\",ScriptText!$E$1&CHAR(10)&ScriptText!$C$1)","v":""},0]
["\n\n\n",{"$f":"IF(OrigTable!A1918=\"\",\"\",ScriptText!$B$1&CHAR(10)&ScriptText!$D$1)","v":""},{"$f":"IF(OrigTable!A1918=\"\",\"\",TEXT(OrigTable!A1918,\"00\"))","v":""},{"$f":"IF(OrigTable!A1918=\"\",\"\",ScriptText!$E$1&CHAR(10)&ScriptText!$C$1)","v":""},{"$f":"IF(OrigTable!B1918=\"\",\"\",ScriptText!$B$1&CHAR(10)&ScriptText!$D$1)","v":""},{"$f":"IF(OrigTable!B1918=\"\",\"\",TEXT(OrigTable!B1918,\"00\"))","v":""},{"$f":"IF(OrigTable!B1918=\"\",\"\",ScriptText!$E$1&CHAR(10)&ScriptText!C1913)","v":""},{"$f":"IF(OrigTable!C1918=\"\",\"\",ScriptText!$B$1&CHAR(10)&ScriptText!$D$1)","v":""},{"$f":"IF(OrigTable!C1918=\"\",\"\",IF(LEN(OrigTable!C1918)>255,LEFT(OrigTable!C1918,250)&\". . .\",OrigTable!C1918))","v":""},{"$f":"IF(OrigTable!C1918=\"\",\"\",ScriptText!$E$1&CHAR(10)&ScriptText!$C$1)","v":""},{"$f":"IF(OrigTable!D1918=\"\",\"\",ScriptText!$B$1&CHAR(10)&ScriptText!$D$1)","v":""},{"$f":"IF(OrigTable!D1918=\"\",\"\",TEXT(OrigTable!D1918,\"00\"))","v":""},{"$f":"IF(OrigTable!D1918=\"\",\"\",ScriptText!$E$1&CHAR(10)&ScriptText!$C$1)","v":""},{"$f":"IF(OrigTable!E1918=\"\",\"\",ScriptText!$B$1&CHAR(10)&ScriptText!$D$1)","v":""},{"$f":"IF(OrigTable!E1918=\"\",\"\",TEXT(OrigTable!E1918,\"00\"))","v":""},{"$f":"IF(OrigTable!E1918=\"\",\"\",ScriptText!$E$1&CHAR(10)&ScriptText!$C$1)","v":""},{"$f":"IF(OrigTable!F1918=\"\",\"\",ScriptText!$B$1&CHAR(10)&ScriptText!$D$1)","v":""},{"$f":"IF(OrigTable!F1918=\"\",\"\",TEXT(OrigTable!F1918,\"00\"))","v":""},{"$f":"IF(OrigTable!F1918=\"\",\"\",ScriptText!$E$1&CHAR(10)&ScriptText!$C$1)","v":""},{"$f":"IF(OrigTable!G1918=\"\",\"\",ScriptText!$B$1&CHAR(10)&ScriptText!$D$1)","v":""},{"$f":"IF(OrigTable!G1918=\"\",\"\",TEXT(OrigTable!G1918,\"00\"))","v":""},{"$f":"IF(OrigTable!G1918=\"\",\"\",ScriptText!$E$1&CHAR(10)&ScriptText!$C$1)","v":""},0]
["\n\n\n",{"$f":"IF(OrigTable!A1919=\"\",\"\",ScriptText!$B$1&CHAR(10)&ScriptText!$D$1)","v":""},{"$f":"IF(OrigTable!A1919=\"\",\"\",TEXT(OrigTable!A1919,\"00\"))","v":""},{"$f":"IF(OrigTable!A1919=\"\",\"\",ScriptText!$E$1&CHAR(10)&ScriptText!$C$1)","v":""},{"$f":"IF(OrigTable!B1919=\"\",\"\",ScriptText!$B$1&CHAR(10)&ScriptText!$D$1)","v":""},{"$f":"IF(OrigTable!B1919=\"\",\"\",TEXT(OrigTable!B1919,\"00\"))","v":""},{"$f":"IF(OrigTable!B1919=\"\",\"\",ScriptText!$E$1&CHAR(10)&ScriptText!C1914)","v":""},{"$f":"IF(OrigTable!C1919=\"\",\"\",ScriptText!$B$1&CHAR(10)&ScriptText!$D$1)","v":""},{"$f":"IF(OrigTable!C1919=\"\",\"\",IF(LEN(OrigTable!C1919)>255,LEFT(OrigTable!C1919,250)&\". . .\",OrigTable!C1919))","v":""},{"$f":"IF(OrigTable!C1919=\"\",\"\",ScriptText!$E$1&CHAR(10)&ScriptText!$C$1)","v":""},{"$f":"IF(OrigTable!D1919=\"\",\"\",ScriptText!$B$1&CHAR(10)&ScriptText!$D$1)","v":""},{"$f":"IF(OrigTable!D1919=\"\",\"\",TEXT(OrigTable!D1919,\"00\"))","v":""},{"$f":"IF(OrigTable!D1919=\"\",\"\",ScriptText!$E$1&CHAR(10)&ScriptText!$C$1)","v":""},{"$f":"IF(OrigTable!E1919=\"\",\"\",ScriptText!$B$1&CHAR(10)&ScriptText!$D$1)","v":""},{"$f":"IF(OrigTable!E1919=\"\",\"\",TEXT(OrigTable!E1919,\"00\"))","v":""},{"$f":"IF(OrigTable!E1919=\"\",\"\",ScriptText!$E$1&CHAR(10)&ScriptText!$C$1)","v":""},{"$f":"IF(OrigTable!F1919=\"\",\"\",ScriptText!$B$1&CHAR(10)&ScriptText!$D$1)","v":""},{"$f":"IF(OrigTable!F1919=\"\",\"\",TEXT(OrigTable!F1919,\"00\"))","v":""},{"$f":"IF(OrigTable!F1919=\"\",\"\",ScriptText!$E$1&CHAR(10)&ScriptText!$C$1)","v":""},{"$f":"IF(OrigTable!G1919=\"\",\"\",ScriptText!$B$1&CHAR(10)&ScriptText!$D$1)","v":""},{"$f":"IF(OrigTable!G1919=\"\",\"\",TEXT(OrigTable!G1919,\"00\"))","v":""},{"$f":"IF(OrigTable!G1919=\"\",\"\",ScriptText!$E$1&CHAR(10)&ScriptText!$C$1)","v":""},0]
["\n\n\n",{"$f":"IF(OrigTable!A1920=\"\",\"\",ScriptText!$B$1&CHAR(10)&ScriptText!$D$1)","v":""},{"$f":"IF(OrigTable!A1920=\"\",\"\",TEXT(OrigTable!A1920,\"00\"))","v":""},{"$f":"IF(OrigTable!A1920=\"\",\"\",ScriptText!$E$1&CHAR(10)&ScriptText!$C$1)","v":""},{"$f":"IF(OrigTable!B1920=\"\",\"\",ScriptText!$B$1&CHAR(10)&ScriptText!$D$1)","v":""},{"$f":"IF(OrigTable!B1920=\"\",\"\",TEXT(OrigTable!B1920,\"00\"))","v":""},{"$f":"IF(OrigTable!B1920=\"\",\"\",ScriptText!$E$1&CHAR(10)&ScriptText!C1915)","v":""},{"$f":"IF(OrigTable!C1920=\"\",\"\",ScriptText!$B$1&CHAR(10)&ScriptText!$D$1)","v":""},{"$f":"IF(OrigTable!C1920=\"\",\"\",IF(LEN(OrigTable!C1920)>255,LEFT(OrigTable!C1920,250)&\". . .\",OrigTable!C1920))","v":""},{"$f":"IF(OrigTable!C1920=\"\",\"\",ScriptText!$E$1&CHAR(10)&ScriptText!$C$1)","v":""},{"$f":"IF(OrigTable!D1920=\"\",\"\",ScriptText!$B$1&CHAR(10)&ScriptText!$D$1)","v":""},{"$f":"IF(OrigTable!D1920=\"\",\"\",TEXT(OrigTable!D1920,\"00\"))","v":""},{"$f":"IF(OrigTable!D1920=\"\",\"\",ScriptText!$E$1&CHAR(10)&ScriptText!$C$1)","v":""},{"$f":"IF(OrigTable!E1920=\"\",\"\",ScriptText!$B$1&CHAR(10)&ScriptText!$D$1)","v":""},{"$f":"IF(OrigTable!E1920=\"\",\"\",TEXT(OrigTable!E1920,\"00\"))","v":""},{"$f":"IF(OrigTable!E1920=\"\",\"\",ScriptText!$E$1&CHAR(10)&ScriptText!$C$1)","v":""},{"$f":"IF(OrigTable!F1920=\"\",\"\",ScriptText!$B$1&CHAR(10)&ScriptText!$D$1)","v":""},{"$f":"IF(OrigTable!F1920=\"\",\"\",TEXT(OrigTable!F1920,\"00\"))","v":""},{"$f":"IF(OrigTable!F1920=\"\",\"\",ScriptText!$E$1&CHAR(10)&ScriptText!$C$1)","v":""},{"$f":"IF(OrigTable!G1920=\"\",\"\",ScriptText!$B$1&CHAR(10)&ScriptText!$D$1)","v":""},{"$f":"IF(OrigTable!G1920=\"\",\"\",TEXT(OrigTable!G1920,\"00\"))","v":""},{"$f":"IF(OrigTable!G1920=\"\",\"\",ScriptText!$E$1&CHAR(10)&ScriptText!$C$1)","v":""},0]
["\n\n\n",{"$f":"IF(OrigTable!A1921=\"\",\"\",ScriptText!$B$1&CHAR(10)&ScriptText!$D$1)","v":""},{"$f":"IF(OrigTable!A1921=\"\",\"\",TEXT(OrigTable!A1921,\"00\"))","v":""},{"$f":"IF(OrigTable!A1921=\"\",\"\",ScriptText!$E$1&CHAR(10)&ScriptText!$C$1)","v":""},{"$f":"IF(OrigTable!B1921=\"\",\"\",ScriptText!$B$1&CHAR(10)&ScriptText!$D$1)","v":""},{"$f":"IF(OrigTable!B1921=\"\",\"\",TEXT(OrigTable!B1921,\"00\"))","v":""},{"$f":"IF(OrigTable!B1921=\"\",\"\",ScriptText!$E$1&CHAR(10)&ScriptText!C1916)","v":""},{"$f":"IF(OrigTable!C1921=\"\",\"\",ScriptText!$B$1&CHAR(10)&ScriptText!$D$1)","v":""},{"$f":"IF(OrigTable!C1921=\"\",\"\",IF(LEN(OrigTable!C1921)>255,LEFT(OrigTable!C1921,250)&\". . .\",OrigTable!C1921))","v":""},{"$f":"IF(OrigTable!C1921=\"\",\"\",ScriptText!$E$1&CHAR(10)&ScriptText!$C$1)","v":""},{"$f":"IF(OrigTable!D1921=\"\",\"\",ScriptText!$B$1&CHAR(10)&ScriptText!$D$1)","v":""},{"$f":"IF(OrigTable!D1921=\"\",\"\",TEXT(OrigTable!D1921,\"00\"))","v":""},{"$f":"IF(OrigTable!D1921=\"\",\"\",ScriptText!$E$1&CHAR(10)&ScriptText!$C$1)","v":""},{"$f":"IF(OrigTable!E1921=\"\",\"\",ScriptText!$B$1&CHAR(10)&ScriptText!$D$1)","v":""},{"$f":"IF(OrigTable!E1921=\"\",\"\",TEXT(OrigTable!E1921,\"00\"))","v":""},{"$f":"IF(OrigTable!E1921=\"\",\"\",ScriptText!$E$1&CHAR(10)&ScriptText!$C$1)","v":""},{"$f":"IF(OrigTable!F1921=\"\",\"\",ScriptText!$B$1&CHAR(10)&ScriptText!$D$1)","v":""},{"$f":"IF(OrigTable!F1921=\"\",\"\",TEXT(OrigTable!F1921,\"00\"))","v":""},{"$f":"IF(OrigTable!F1921=\"\",\"\",ScriptText!$E$1&CHAR(10)&ScriptText!$C$1)","v":""},{"$f":"IF(OrigTable!G1921=\"\",\"\",ScriptText!$B$1&CHAR(10)&ScriptText!$D$1)","v":""},{"$f":"IF(OrigTable!G1921=\"\",\"\",TEXT(OrigTable!G1921,\"00\"))","v":""},{"$f":"IF(OrigTable!G1921=\"\",\"\",ScriptText!$E$1&CHAR(10)&ScriptText!$C$1)","v":""},0]
["\n\n\n",{"$f":"IF(OrigTable!A1922=\"\",\"\",ScriptText!$B$1&CHAR(10)&ScriptText!$D$1)","v":""},{"$f":"IF(OrigTable!A1922=\"\",\"\",TEXT(OrigTable!A1922,\"00\"))","v":""},{"$f":"IF(OrigTable!A1922=\"\",\"\",ScriptText!$E$1&CHAR(10)&ScriptText!$C$1)","v":""},{"$f":"IF(OrigTable!B1922=\"\",\"\",ScriptText!$B$1&CHAR(10)&ScriptText!$D$1)","v":""},{"$f":"IF(OrigTable!B1922=\"\",\"\",TEXT(OrigTable!B1922,\"00\"))","v":""},{"$f":"IF(OrigTable!B1922=\"\",\"\",ScriptText!$E$1&CHAR(10)&ScriptText!C1917)","v":""},{"$f":"IF(OrigTable!C1922=\"\",\"\",ScriptText!$B$1&CHAR(10)&ScriptText!$D$1)","v":""},{"$f":"IF(OrigTable!C1922=\"\",\"\",IF(LEN(OrigTable!C1922)>255,LEFT(OrigTable!C1922,250)&\". . .\",OrigTable!C1922))","v":""},{"$f":"IF(OrigTable!C1922=\"\",\"\",ScriptText!$E$1&CHAR(10)&ScriptText!$C$1)","v":""},{"$f":"IF(OrigTable!D1922=\"\",\"\",ScriptText!$B$1&CHAR(10)&ScriptText!$D$1)","v":""},{"$f":"IF(OrigTable!D1922=\"\",\"\",TEXT(OrigTable!D1922,\"00\"))","v":""},{"$f":"IF(OrigTable!D1922=\"\",\"\",ScriptText!$E$1&CHAR(10)&ScriptText!$C$1)","v":""},{"$f":"IF(OrigTable!E1922=\"\",\"\",ScriptText!$B$1&CHAR(10)&ScriptText!$D$1)","v":""},{"$f":"IF(OrigTable!E1922=\"\",\"\",TEXT(OrigTable!E1922,\"00\"))","v":""},{"$f":"IF(OrigTable!E1922=\"\",\"\",ScriptText!$E$1&CHAR(10)&ScriptText!$C$1)","v":""},{"$f":"IF(OrigTable!F1922=\"\",\"\",ScriptText!$B$1&CHAR(10)&ScriptText!$D$1)","v":""},{"$f":"IF(OrigTable!F1922=\"\",\"\",TEXT(OrigTable!F1922,\"00\"))","v":""},{"$f":"IF(OrigTable!F1922=\"\",\"\",ScriptText!$E$1&CHAR(10)&ScriptText!$C$1)","v":""},{"$f":"IF(OrigTable!G1922=\"\",\"\",ScriptText!$B$1&CHAR(10)&ScriptText!$D$1)","v":""},{"$f":"IF(OrigTable!G1922=\"\",\"\",TEXT(OrigTable!G1922,\"00\"))","v":""},{"$f":"IF(OrigTable!G1922=\"\",\"\",ScriptText!$E$1&CHAR(10)&ScriptText!$C$1)","v":""},0]
["\n\n\n",{"$f":"IF(OrigTable!A1923=\"\",\"\",ScriptText!$B$1&CHAR(10)&ScriptText!$D$1)","v":""},{"$f":"IF(OrigTable!A1923=\"\",\"\",TEXT(OrigTable!A1923,\"00\"))","v":""},{"$f":"IF(OrigTable!A1923=\"\",\"\",ScriptText!$E$1&CHAR(10)&ScriptText!$C$1)","v":""},{"$f":"IF(OrigTable!B1923=\"\",\"\",ScriptText!$B$1&CHAR(10)&ScriptText!$D$1)","v":""},{"$f":"IF(OrigTable!B1923=\"\",\"\",TEXT(OrigTable!B1923,\"00\"))","v":""},{"$f":"IF(OrigTable!B1923=\"\",\"\",ScriptText!$E$1&CHAR(10)&ScriptText!C1918)","v":""},{"$f":"IF(OrigTable!C1923=\"\",\"\",ScriptText!$B$1&CHAR(10)&ScriptText!$D$1)","v":""},{"$f":"IF(OrigTable!C1923=\"\",\"\",IF(LEN(OrigTable!C1923)>255,LEFT(OrigTable!C1923,250)&\". . .\",OrigTable!C1923))","v":""},{"$f":"IF(OrigTable!C1923=\"\",\"\",ScriptText!$E$1&CHAR(10)&ScriptText!$C$1)","v":""},{"$f":"IF(OrigTable!D1923=\"\",\"\",ScriptText!$B$1&CHAR(10)&ScriptText!$D$1)","v":""},{"$f":"IF(OrigTable!D1923=\"\",\"\",TEXT(OrigTable!D1923,\"00\"))","v":""},{"$f":"IF(OrigTable!D1923=\"\",\"\",ScriptText!$E$1&CHAR(10)&ScriptText!$C$1)","v":""},{"$f":"IF(OrigTable!E1923=\"\",\"\",ScriptText!$B$1&CHAR(10)&ScriptText!$D$1)","v":""},{"$f":"IF(OrigTable!E1923=\"\",\"\",TEXT(OrigTable!E1923,\"00\"))","v":""},{"$f":"IF(OrigTable!E1923=\"\",\"\",ScriptText!$E$1&CHAR(10)&ScriptText!$C$1)","v":""},{"$f":"IF(OrigTable!F1923=\"\",\"\",ScriptText!$B$1&CHAR(10)&ScriptText!$D$1)","v":""},{"$f":"IF(OrigTable!F1923=\"\",\"\",TEXT(OrigTable!F1923,\"00\"))","v":""},{"$f":"IF(OrigTable!F1923=\"\",\"\",ScriptText!$E$1&CHAR(10)&ScriptText!$C$1)","v":""},{"$f":"IF(OrigTable!G1923=\"\",\"\",ScriptText!$B$1&CHAR(10)&ScriptText!$D$1)","v":""},{"$f":"IF(OrigTable!G1923=\"\",\"\",TEXT(OrigTable!G1923,\"00\"))","v":""},{"$f":"IF(OrigTable!G1923=\"\",\"\",ScriptText!$E$1&CHAR(10)&ScriptText!$C$1)","v":""},0]
["\n\n\n",{"$f":"IF(OrigTable!A1924=\"\",\"\",ScriptText!$B$1&CHAR(10)&ScriptText!$D$1)","v":""},{"$f":"IF(OrigTable!A1924=\"\",\"\",TEXT(OrigTable!A1924,\"00\"))","v":""},{"$f":"IF(OrigTable!A1924=\"\",\"\",ScriptText!$E$1&CHAR(10)&ScriptText!$C$1)","v":""},{"$f":"IF(OrigTable!B1924=\"\",\"\",ScriptText!$B$1&CHAR(10)&ScriptText!$D$1)","v":""},{"$f":"IF(OrigTable!B1924=\"\",\"\",TEXT(OrigTable!B1924,\"00\"))","v":""},{"$f":"IF(OrigTable!B1924=\"\",\"\",ScriptText!$E$1&CHAR(10)&ScriptText!C1919)","v":""},{"$f":"IF(OrigTable!C1924=\"\",\"\",ScriptText!$B$1&CHAR(10)&ScriptText!$D$1)","v":""},{"$f":"IF(OrigTable!C1924=\"\",\"\",IF(LEN(OrigTable!C1924)>255,LEFT(OrigTable!C1924,250)&\". . .\",OrigTable!C1924))","v":""},{"$f":"IF(OrigTable!C1924=\"\",\"\",ScriptText!$E$1&CHAR(10)&ScriptText!$C$1)","v":""},{"$f":"IF(OrigTable!D1924=\"\",\"\",ScriptText!$B$1&CHAR(10)&ScriptText!$D$1)","v":""},{"$f":"IF(OrigTable!D1924=\"\",\"\",TEXT(OrigTable!D1924,\"00\"))","v":""},{"$f":"IF(OrigTable!D1924=\"\",\"\",ScriptText!$E$1&CHAR(10)&ScriptText!$C$1)","v":""},{"$f":"IF(OrigTable!E1924=\"\",\"\",ScriptText!$B$1&CHAR(10)&ScriptText!$D$1)","v":""},{"$f":"IF(OrigTable!E1924=\"\",\"\",TEXT(OrigTable!E1924,\"00\"))","v":""},{"$f":"IF(OrigTable!E1924=\"\",\"\",ScriptText!$E$1&CHAR(10)&ScriptText!$C$1)","v":""},{"$f":"IF(OrigTable!F1924=\"\",\"\",ScriptText!$B$1&CHAR(10)&ScriptText!$D$1)","v":""},{"$f":"IF(OrigTable!F1924=\"\",\"\",TEXT(OrigTable!F1924,\"00\"))","v":""},{"$f":"IF(OrigTable!F1924=\"\",\"\",ScriptText!$E$1&CHAR(10)&ScriptText!$C$1)","v":""},{"$f":"IF(OrigTable!G1924=\"\",\"\",ScriptText!$B$1&CHAR(10)&ScriptText!$D$1)","v":""},{"$f":"IF(OrigTable!G1924=\"\",\"\",TEXT(OrigTable!G1924,\"00\"))","v":""},{"$f":"IF(OrigTable!G1924=\"\",\"\",ScriptText!$E$1&CHAR(10)&ScriptText!$C$1)","v":""},0]
["\n\n\n",{"$f":"IF(OrigTable!A1925=\"\",\"\",ScriptText!$B$1&CHAR(10)&ScriptText!$D$1)","v":""},{"$f":"IF(OrigTable!A1925=\"\",\"\",TEXT(OrigTable!A1925,\"00\"))","v":""},{"$f":"IF(OrigTable!A1925=\"\",\"\",ScriptText!$E$1&CHAR(10)&ScriptText!$C$1)","v":""},{"$f":"IF(OrigTable!B1925=\"\",\"\",ScriptText!$B$1&CHAR(10)&ScriptText!$D$1)","v":""},{"$f":"IF(OrigTable!B1925=\"\",\"\",TEXT(OrigTable!B1925,\"00\"))","v":""},{"$f":"IF(OrigTable!B1925=\"\",\"\",ScriptText!$E$1&CHAR(10)&ScriptText!C1920)","v":""},{"$f":"IF(OrigTable!C1925=\"\",\"\",ScriptText!$B$1&CHAR(10)&ScriptText!$D$1)","v":""},{"$f":"IF(OrigTable!C1925=\"\",\"\",IF(LEN(OrigTable!C1925)>255,LEFT(OrigTable!C1925,250)&\". . .\",OrigTable!C1925))","v":""},{"$f":"IF(OrigTable!C1925=\"\",\"\",ScriptText!$E$1&CHAR(10)&ScriptText!$C$1)","v":""},{"$f":"IF(OrigTable!D1925=\"\",\"\",ScriptText!$B$1&CHAR(10)&ScriptText!$D$1)","v":""},{"$f":"IF(OrigTable!D1925=\"\",\"\",TEXT(OrigTable!D1925,\"00\"))","v":""},{"$f":"IF(OrigTable!D1925=\"\",\"\",ScriptText!$E$1&CHAR(10)&ScriptText!$C$1)","v":""},{"$f":"IF(OrigTable!E1925=\"\",\"\",ScriptText!$B$1&CHAR(10)&ScriptText!$D$1)","v":""},{"$f":"IF(OrigTable!E1925=\"\",\"\",TEXT(OrigTable!E1925,\"00\"))","v":""},{"$f":"IF(OrigTable!E1925=\"\",\"\",ScriptText!$E$1&CHAR(10)&ScriptText!$C$1)","v":""},{"$f":"IF(OrigTable!F1925=\"\",\"\",ScriptText!$B$1&CHAR(10)&ScriptText!$D$1)","v":""},{"$f":"IF(OrigTable!F1925=\"\",\"\",TEXT(OrigTable!F1925,\"00\"))","v":""},{"$f":"IF(OrigTable!F1925=\"\",\"\",ScriptText!$E$1&CHAR(10)&ScriptText!$C$1)","v":""},{"$f":"IF(OrigTable!G1925=\"\",\"\",ScriptText!$B$1&CHAR(10)&ScriptText!$D$1)","v":""},{"$f":"IF(OrigTable!G1925=\"\",\"\",TEXT(OrigTable!G1925,\"00\"))","v":""},{"$f":"IF(OrigTable!G1925=\"\",\"\",ScriptText!$E$1&CHAR(10)&ScriptText!$C$1)","v":""},0]
["\n\n\n",{"$f":"IF(OrigTable!A1926=\"\",\"\",ScriptText!$B$1&CHAR(10)&ScriptText!$D$1)","v":""},{"$f":"IF(OrigTable!A1926=\"\",\"\",TEXT(OrigTable!A1926,\"00\"))","v":""},{"$f":"IF(OrigTable!A1926=\"\",\"\",ScriptText!$E$1&CHAR(10)&ScriptText!$C$1)","v":""},{"$f":"IF(OrigTable!B1926=\"\",\"\",ScriptText!$B$1&CHAR(10)&ScriptText!$D$1)","v":""},{"$f":"IF(OrigTable!B1926=\"\",\"\",TEXT(OrigTable!B1926,\"00\"))","v":""},{"$f":"IF(OrigTable!B1926=\"\",\"\",ScriptText!$E$1&CHAR(10)&ScriptText!C1921)","v":""},{"$f":"IF(OrigTable!C1926=\"\",\"\",ScriptText!$B$1&CHAR(10)&ScriptText!$D$1)","v":""},{"$f":"IF(OrigTable!C1926=\"\",\"\",IF(LEN(OrigTable!C1926)>255,LEFT(OrigTable!C1926,250)&\". . .\",OrigTable!C1926))","v":""},{"$f":"IF(OrigTable!C1926=\"\",\"\",ScriptText!$E$1&CHAR(10)&ScriptText!$C$1)","v":""},{"$f":"IF(OrigTable!D1926=\"\",\"\",ScriptText!$B$1&CHAR(10)&ScriptText!$D$1)","v":""},{"$f":"IF(OrigTable!D1926=\"\",\"\",TEXT(OrigTable!D1926,\"00\"))","v":""},{"$f":"IF(OrigTable!D1926=\"\",\"\",ScriptText!$E$1&CHAR(10)&ScriptText!$C$1)","v":""},{"$f":"IF(OrigTable!E1926=\"\",\"\",ScriptText!$B$1&CHAR(10)&ScriptText!$D$1)","v":""},{"$f":"IF(OrigTable!E1926=\"\",\"\",TEXT(OrigTable!E1926,\"00\"))","v":""},{"$f":"IF(OrigTable!E1926=\"\",\"\",ScriptText!$E$1&CHAR(10)&ScriptText!$C$1)","v":""},{"$f":"IF(OrigTable!F1926=\"\",\"\",ScriptText!$B$1&CHAR(10)&ScriptText!$D$1)","v":""},{"$f":"IF(OrigTable!F1926=\"\",\"\",TEXT(OrigTable!F1926,\"00\"))","v":""},{"$f":"IF(OrigTable!F1926=\"\",\"\",ScriptText!$E$1&CHAR(10)&ScriptText!$C$1)","v":""},{"$f":"IF(OrigTable!G1926=\"\",\"\",ScriptText!$B$1&CHAR(10)&ScriptText!$D$1)","v":""},{"$f":"IF(OrigTable!G1926=\"\",\"\",TEXT(OrigTable!G1926,\"00\"))","v":""},{"$f":"IF(OrigTable!G1926=\"\",\"\",ScriptText!$E$1&CHAR(10)&ScriptText!$C$1)","v":""},{"$f":"IF(LEN(A1926)>3,ROW(),0)","v":0}]
["\n\n\n",{"$f":"IF(OrigTable!A1927=\"\",\"\",ScriptText!$B$1&CHAR(10)&ScriptText!$D$1)","v":""},{"$f":"IF(OrigTable!A1927=\"\",\"\",TEXT(OrigTable!A1927,\"00\"))","v":""},{"$f":"IF(OrigTable!A1927=\"\",\"\",ScriptText!$E$1&CHAR(10)&ScriptText!$C$1)","v":""},{"$f":"IF(OrigTable!B1927=\"\",\"\",ScriptText!$B$1&CHAR(10)&ScriptText!$D$1)","v":""},{"$f":"IF(OrigTable!B1927=\"\",\"\",TEXT(OrigTable!B1927,\"00\"))","v":""},{"$f":"IF(OrigTable!B1927=\"\",\"\",ScriptText!$E$1&CHAR(10)&ScriptText!C1922)","v":""},{"$f":"IF(OrigTable!C1927=\"\",\"\",ScriptText!$B$1&CHAR(10)&ScriptText!$D$1)","v":""},{"$f":"IF(OrigTable!C1927=\"\",\"\",IF(LEN(OrigTable!C1927)>255,LEFT(OrigTable!C1927,250)&\". . .\",OrigTable!C1927))","v":""},{"$f":"IF(OrigTable!C1927=\"\",\"\",ScriptText!$E$1&CHAR(10)&ScriptText!$C$1)","v":""},{"$f":"IF(OrigTable!D1927=\"\",\"\",ScriptText!$B$1&CHAR(10)&ScriptText!$D$1)","v":""},{"$f":"IF(OrigTable!D1927=\"\",\"\",TEXT(OrigTable!D1927,\"00\"))","v":""},{"$f":"IF(OrigTable!D1927=\"\",\"\",ScriptText!$E$1&CHAR(10)&ScriptText!$C$1)","v":""},{"$f":"IF(OrigTable!E1927=\"\",\"\",ScriptText!$B$1&CHAR(10)&ScriptText!$D$1)","v":""},{"$f":"IF(OrigTable!E1927=\"\",\"\",TEXT(OrigTable!E1927,\"00\"))","v":""},{"$f":"IF(OrigTable!E1927=\"\",\"\",ScriptText!$E$1&CHAR(10)&ScriptText!$C$1)","v":""},{"$f":"IF(OrigTable!F1927=\"\",\"\",ScriptText!$B$1&CHAR(10)&ScriptText!$D$1)","v":""},{"$f":"IF(OrigTable!F1927=\"\",\"\",TEXT(OrigTable!F1927,\"00\"))","v":""},{"$f":"IF(OrigTable!F1927=\"\",\"\",ScriptText!$E$1&CHAR(10)&ScriptText!$C$1)","v":""},{"$f":"IF(OrigTable!G1927=\"\",\"\",ScriptText!$B$1&CHAR(10)&ScriptText!$D$1)","v":""},{"$f":"IF(OrigTable!G1927=\"\",\"\",TEXT(OrigTable!G1927,\"00\"))","v":""},{"$f":"IF(OrigTable!G1927=\"\",\"\",ScriptText!$E$1&CHAR(10)&ScriptText!$C$1)","v":""},0]
["\n\n\n",{"$f":"IF(OrigTable!A1928=\"\",\"\",ScriptText!$B$1&CHAR(10)&ScriptText!$D$1)","v":""},{"$f":"IF(OrigTable!A1928=\"\",\"\",TEXT(OrigTable!A1928,\"00\"))","v":""},{"$f":"IF(OrigTable!A1928=\"\",\"\",ScriptText!$E$1&CHAR(10)&ScriptText!$C$1)","v":""},{"$f":"IF(OrigTable!B1928=\"\",\"\",ScriptText!$B$1&CHAR(10)&ScriptText!$D$1)","v":""},{"$f":"IF(OrigTable!B1928=\"\",\"\",TEXT(OrigTable!B1928,\"00\"))","v":""},{"$f":"IF(OrigTable!B1928=\"\",\"\",ScriptText!$E$1&CHAR(10)&ScriptText!C1923)","v":""},{"$f":"IF(OrigTable!C1928=\"\",\"\",ScriptText!$B$1&CHAR(10)&ScriptText!$D$1)","v":""},{"$f":"IF(OrigTable!C1928=\"\",\"\",IF(LEN(OrigTable!C1928)>255,LEFT(OrigTable!C1928,250)&\". . .\",OrigTable!C1928))","v":""},{"$f":"IF(OrigTable!C1928=\"\",\"\",ScriptText!$E$1&CHAR(10)&ScriptText!$C$1)","v":""},{"$f":"IF(OrigTable!D1928=\"\",\"\",ScriptText!$B$1&CHAR(10)&ScriptText!$D$1)","v":""},{"$f":"IF(OrigTable!D1928=\"\",\"\",TEXT(OrigTable!D1928,\"00\"))","v":""},{"$f":"IF(OrigTable!D1928=\"\",\"\",ScriptText!$E$1&CHAR(10)&ScriptText!$C$1)","v":""},{"$f":"IF(OrigTable!E1928=\"\",\"\",ScriptText!$B$1&CHAR(10)&ScriptText!$D$1)","v":""},{"$f":"IF(OrigTable!E1928=\"\",\"\",TEXT(OrigTable!E1928,\"00\"))","v":""},{"$f":"IF(OrigTable!E1928=\"\",\"\",ScriptText!$E$1&CHAR(10)&ScriptText!$C$1)","v":""},{"$f":"IF(OrigTable!F1928=\"\",\"\",ScriptText!$B$1&CHAR(10)&ScriptText!$D$1)","v":""},{"$f":"IF(OrigTable!F1928=\"\",\"\",TEXT(OrigTable!F1928,\"00\"))","v":""},{"$f":"IF(OrigTable!F1928=\"\",\"\",ScriptText!$E$1&CHAR(10)&ScriptText!$C$1)","v":""},{"$f":"IF(OrigTable!G1928=\"\",\"\",ScriptText!$B$1&CHAR(10)&ScriptText!$D$1)","v":""},{"$f":"IF(OrigTable!G1928=\"\",\"\",TEXT(OrigTable!G1928,\"00\"))","v":""},{"$f":"IF(OrigTable!G1928=\"\",\"\",ScriptText!$E$1&CHAR(10)&ScriptText!$C$1)","v":""},0]
["\n\n\n",{"$f":"IF(OrigTable!A1929=\"\",\"\",ScriptText!$B$1&CHAR(10)&ScriptText!$D$1)","v":""},{"$f":"IF(OrigTable!A1929=\"\",\"\",TEXT(OrigTable!A1929,\"00\"))","v":""},{"$f":"IF(OrigTable!A1929=\"\",\"\",ScriptText!$E$1&CHAR(10)&ScriptText!$C$1)","v":""},{"$f":"IF(OrigTable!B1929=\"\",\"\",ScriptText!$B$1&CHAR(10)&ScriptText!$D$1)","v":""},{"$f":"IF(OrigTable!B1929=\"\",\"\",TEXT(OrigTable!B1929,\"00\"))","v":""},{"$f":"IF(OrigTable!B1929=\"\",\"\",ScriptText!$E$1&CHAR(10)&ScriptText!C1924)","v":""},{"$f":"IF(OrigTable!C1929=\"\",\"\",ScriptText!$B$1&CHAR(10)&ScriptText!$D$1)","v":""},{"$f":"IF(OrigTable!C1929=\"\",\"\",IF(LEN(OrigTable!C1929)>255,LEFT(OrigTable!C1929,250)&\". . .\",OrigTable!C1929))","v":""},{"$f":"IF(OrigTable!C1929=\"\",\"\",ScriptText!$E$1&CHAR(10)&ScriptText!$C$1)","v":""},{"$f":"IF(OrigTable!D1929=\"\",\"\",ScriptText!$B$1&CHAR(10)&ScriptText!$D$1)","v":""},{"$f":"IF(OrigTable!D1929=\"\",\"\",TEXT(OrigTable!D1929,\"00\"))","v":""},{"$f":"IF(OrigTable!D1929=\"\",\"\",ScriptText!$E$1&CHAR(10)&ScriptText!$C$1)","v":""},{"$f":"IF(OrigTable!E1929=\"\",\"\",ScriptText!$B$1&CHAR(10)&ScriptText!$D$1)","v":""},{"$f":"IF(OrigTable!E1929=\"\",\"\",TEXT(OrigTable!E1929,\"00\"))","v":""},{"$f":"IF(OrigTable!E1929=\"\",\"\",ScriptText!$E$1&CHAR(10)&ScriptText!$C$1)","v":""},{"$f":"IF(OrigTable!F1929=\"\",\"\",ScriptText!$B$1&CHAR(10)&ScriptText!$D$1)","v":""},{"$f":"IF(OrigTable!F1929=\"\",\"\",TEXT(OrigTable!F1929,\"00\"))","v":""},{"$f":"IF(OrigTable!F1929=\"\",\"\",ScriptText!$E$1&CHAR(10)&ScriptText!$C$1)","v":""},{"$f":"IF(OrigTable!G1929=\"\",\"\",ScriptText!$B$1&CHAR(10)&ScriptText!$D$1)","v":""},{"$f":"IF(OrigTable!G1929=\"\",\"\",TEXT(OrigTable!G1929,\"00\"))","v":""},{"$f":"IF(OrigTable!G1929=\"\",\"\",ScriptText!$E$1&CHAR(10)&ScriptText!$C$1)","v":""},0]
["\n\n\n",{"$f":"IF(OrigTable!A1930=\"\",\"\",ScriptText!$B$1&CHAR(10)&ScriptText!$D$1)","v":""},{"$f":"IF(OrigTable!A1930=\"\",\"\",TEXT(OrigTable!A1930,\"00\"))","v":""},{"$f":"IF(OrigTable!A1930=\"\",\"\",ScriptText!$E$1&CHAR(10)&ScriptText!$C$1)","v":""},{"$f":"IF(OrigTable!B1930=\"\",\"\",ScriptText!$B$1&CHAR(10)&ScriptText!$D$1)","v":""},{"$f":"IF(OrigTable!B1930=\"\",\"\",TEXT(OrigTable!B1930,\"00\"))","v":""},{"$f":"IF(OrigTable!B1930=\"\",\"\",ScriptText!$E$1&CHAR(10)&ScriptText!C1925)","v":""},{"$f":"IF(OrigTable!C1930=\"\",\"\",ScriptText!$B$1&CHAR(10)&ScriptText!$D$1)","v":""},{"$f":"IF(OrigTable!C1930=\"\",\"\",IF(LEN(OrigTable!C1930)>255,LEFT(OrigTable!C1930,250)&\". . .\",OrigTable!C1930))","v":""},{"$f":"IF(OrigTable!C1930=\"\",\"\",ScriptText!$E$1&CHAR(10)&ScriptText!$C$1)","v":""},{"$f":"IF(OrigTable!D1930=\"\",\"\",ScriptText!$B$1&CHAR(10)&ScriptText!$D$1)","v":""},{"$f":"IF(OrigTable!D1930=\"\",\"\",TEXT(OrigTable!D1930,\"00\"))","v":""},{"$f":"IF(OrigTable!D1930=\"\",\"\",ScriptText!$E$1&CHAR(10)&ScriptText!$C$1)","v":""},{"$f":"IF(OrigTable!E1930=\"\",\"\",ScriptText!$B$1&CHAR(10)&ScriptText!$D$1)","v":""},{"$f":"IF(OrigTable!E1930=\"\",\"\",TEXT(OrigTable!E1930,\"00\"))","v":""},{"$f":"IF(OrigTable!E1930=\"\",\"\",ScriptText!$E$1&CHAR(10)&ScriptText!$C$1)","v":""},{"$f":"IF(OrigTable!F1930=\"\",\"\",ScriptText!$B$1&CHAR(10)&ScriptText!$D$1)","v":""},{"$f":"IF(OrigTable!F1930=\"\",\"\",TEXT(OrigTable!F1930,\"00\"))","v":""},{"$f":"IF(OrigTable!F1930=\"\",\"\",ScriptText!$E$1&CHAR(10)&ScriptText!$C$1)","v":""},{"$f":"IF(OrigTable!G1930=\"\",\"\",ScriptText!$B$1&CHAR(10)&ScriptText!$D$1)","v":""},{"$f":"IF(OrigTable!G1930=\"\",\"\",TEXT(OrigTable!G1930,\"00\"))","v":""},{"$f":"IF(OrigTable!G1930=\"\",\"\",ScriptText!$E$1&CHAR(10)&ScriptText!$C$1)","v":""},0]
[{"$f":"_xlfn.TEXTJOIN(\"\",TRUE,B1931:D1931)&CHAR(10)&_xlfn.TEXTJOIN(\"\",TRUE,E1931:G1931)&CHAR(10)&_xlfn.TEXTJOIN(\"\",TRUE,H1931:J1931)&CHAR(10)&_xlfn.TEXTJOIN(\"\",TRUE,K1931:M1931)&_xlfn.TEXTJOIN(\"\",TRUE,N1931:P1931)&_xlfn.TEXTJOIN(\"\",TRUE,Q1931:S1931)&_xlfn.TEXTJOIN(\"\",TRUE,T1931:V1931)","v":"\n\n\n"},{"$f":"IF(OrigTable!A1931=\"\",\"\",ScriptText!$B$1&CHAR(10)&ScriptText!$D$1)","v":""},{"$f":"IF(OrigTable!A1931=\"\",\"\",TEXT(OrigTable!A1931,\"00\"))","v":""},{"$f":"IF(OrigTable!A1931=\"\",\"\",ScriptText!$E$1&CHAR(10)&ScriptText!$C$1)","v":""},{"$f":"IF(OrigTable!B1931=\"\",\"\",ScriptText!$B$1&CHAR(10)&ScriptText!$D$1)","v":""},{"$f":"IF(OrigTable!B1931=\"\",\"\",TEXT(OrigTable!B1931,\"00\"))","v":""},{"$f":"IF(OrigTable!B1931=\"\",\"\",ScriptText!$E$1&CHAR(10)&ScriptText!C1926)","v":""},{"$f":"IF(OrigTable!C1931=\"\",\"\",ScriptText!$B$1&CHAR(10)&ScriptText!$D$1)","v":""},{"$f":"IF(OrigTable!C1931=\"\",\"\",IF(LEN(OrigTable!C1931)>255,LEFT(OrigTable!C1931,250)&\". . .\",OrigTable!C1931))","v":""},{"$f":"IF(OrigTable!C1931=\"\",\"\",ScriptText!$E$1&CHAR(10)&ScriptText!$C$1)","v":""},{"$f":"IF(OrigTable!D1931=\"\",\"\",ScriptText!$B$1&CHAR(10)&ScriptText!$D$1)","v":""},{"$f":"IF(OrigTable!D1931=\"\",\"\",TEXT(OrigTable!D1931,\"00\"))","v":""},{"$f":"IF(OrigTable!D1931=\"\",\"\",ScriptText!$E$1&CHAR(10)&ScriptText!$C$1)","v":""},{"$f":"IF(OrigTable!E1931=\"\",\"\",ScriptText!$B$1&CHAR(10)&ScriptText!$D$1)","v":""},{"$f":"IF(OrigTable!E1931=\"\",\"\",TEXT(OrigTable!E1931,\"00\"))","v":""},{"$f":"IF(OrigTable!E1931=\"\",\"\",ScriptText!$E$1&CHAR(10)&ScriptText!$C$1)","v":""},{"$f":"IF(OrigTable!F1931=\"\",\"\",ScriptText!$B$1&CHAR(10)&ScriptText!$D$1)","v":""},{"$f":"IF(OrigTable!F1931=\"\",\"\",TEXT(OrigTable!F1931,\"00\"))","v":""},{"$f":"IF(OrigTable!F1931=\"\",\"\",ScriptText!$E$1&CHAR(10)&ScriptText!$C$1)","v":""},{"$f":"IF(OrigTable!G1931=\"\",\"\",ScriptText!$B$1&CHAR(10)&ScriptText!$D$1)","v":""},{"$f":"IF(OrigTable!G1931=\"\",\"\",TEXT(OrigTable!G1931,\"00\"))","v":""},{"$f":"IF(OrigTable!G1931=\"\",\"\",ScriptText!$E$1&CHAR(10)&ScriptText!$C$1)","v":""},0]
["\n\n\n",{"$f":"IF(OrigTable!A1932=\"\",\"\",ScriptText!$B$1&CHAR(10)&ScriptText!$D$1)","v":""},{"$f":"IF(OrigTable!A1932=\"\",\"\",TEXT(OrigTable!A1932,\"00\"))","v":""},{"$f":"IF(OrigTable!A1932=\"\",\"\",ScriptText!$E$1&CHAR(10)&ScriptText!$C$1)","v":""},{"$f":"IF(OrigTable!B1932=\"\",\"\",ScriptText!$B$1&CHAR(10)&ScriptText!$D$1)","v":""},{"$f":"IF(OrigTable!B1932=\"\",\"\",TEXT(OrigTable!B1932,\"00\"))","v":""},{"$f":"IF(OrigTable!B1932=\"\",\"\",ScriptText!$E$1&CHAR(10)&ScriptText!C1927)","v":""},{"$f":"IF(OrigTable!C1932=\"\",\"\",ScriptText!$B$1&CHAR(10)&ScriptText!$D$1)","v":""},{"$f":"IF(OrigTable!C1932=\"\",\"\",IF(LEN(OrigTable!C1932)>255,LEFT(OrigTable!C1932,250)&\". . .\",OrigTable!C1932))","v":""},{"$f":"IF(OrigTable!C1932=\"\",\"\",ScriptText!$E$1&CHAR(10)&ScriptText!$C$1)","v":""},{"$f":"IF(OrigTable!D1932=\"\",\"\",ScriptText!$B$1&CHAR(10)&ScriptText!$D$1)","v":""},{"$f":"IF(OrigTable!D1932=\"\",\"\",TEXT(OrigTable!D1932,\"00\"))","v":""},{"$f":"IF(OrigTable!D1932=\"\",\"\",ScriptText!$E$1&CHAR(10)&ScriptText!$C$1)","v":""},{"$f":"IF(OrigTable!E1932=\"\",\"\",ScriptText!$B$1&CHAR(10)&ScriptText!$D$1)","v":""},{"$f":"IF(OrigTable!E1932=\"\",\"\",TEXT(OrigTable!E1932,\"00\"))","v":""},{"$f":"IF(OrigTable!E1932=\"\",\"\",ScriptText!$E$1&CHAR(10)&ScriptText!$C$1)","v":""},{"$f":"IF(OrigTable!F1932=\"\",\"\",ScriptText!$B$1&CHAR(10)&ScriptText!$D$1)","v":""},{"$f":"IF(OrigTable!F1932=\"\",\"\",TEXT(OrigTable!F1932,\"00\"))","v":""},{"$f":"IF(OrigTable!F1932=\"\",\"\",ScriptText!$E$1&CHAR(10)&ScriptText!$C$1)","v":""},{"$f":"IF(OrigTable!G1932=\"\",\"\",ScriptText!$B$1&CHAR(10)&ScriptText!$D$1)","v":""},{"$f":"IF(OrigTable!G1932=\"\",\"\",TEXT(OrigTable!G1932,\"00\"))","v":""},{"$f":"IF(OrigTable!G1932=\"\",\"\",ScriptText!$E$1&CHAR(10)&ScriptText!$C$1)","v":""},0]
["\n\n\n",{"$f":"IF(OrigTable!A1933=\"\",\"\",ScriptText!$B$1&CHAR(10)&ScriptText!$D$1)","v":""},{"$f":"IF(OrigTable!A1933=\"\",\"\",TEXT(OrigTable!A1933,\"00\"))","v":""},{"$f":"IF(OrigTable!A1933=\"\",\"\",ScriptText!$E$1&CHAR(10)&ScriptText!$C$1)","v":""},{"$f":"IF(OrigTable!B1933=\"\",\"\",ScriptText!$B$1&CHAR(10)&ScriptText!$D$1)","v":""},{"$f":"IF(OrigTable!B1933=\"\",\"\",TEXT(OrigTable!B1933,\"00\"))","v":""},{"$f":"IF(OrigTable!B1933=\"\",\"\",ScriptText!$E$1&CHAR(10)&ScriptText!C1928)","v":""},{"$f":"IF(OrigTable!C1933=\"\",\"\",ScriptText!$B$1&CHAR(10)&ScriptText!$D$1)","v":""},{"$f":"IF(OrigTable!C1933=\"\",\"\",IF(LEN(OrigTable!C1933)>255,LEFT(OrigTable!C1933,250)&\". . .\",OrigTable!C1933))","v":""},{"$f":"IF(OrigTable!C1933=\"\",\"\",ScriptText!$E$1&CHAR(10)&ScriptText!$C$1)","v":""},{"$f":"IF(OrigTable!D1933=\"\",\"\",ScriptText!$B$1&CHAR(10)&ScriptText!$D$1)","v":""},{"$f":"IF(OrigTable!D1933=\"\",\"\",TEXT(OrigTable!D1933,\"00\"))","v":""},{"$f":"IF(OrigTable!D1933=\"\",\"\",ScriptText!$E$1&CHAR(10)&ScriptText!$C$1)","v":""},{"$f":"IF(OrigTable!E1933=\"\",\"\",ScriptText!$B$1&CHAR(10)&ScriptText!$D$1)","v":""},{"$f":"IF(OrigTable!E1933=\"\",\"\",TEXT(OrigTable!E1933,\"00\"))","v":""},{"$f":"IF(OrigTable!E1933=\"\",\"\",ScriptText!$E$1&CHAR(10)&ScriptText!$C$1)","v":""},{"$f":"IF(OrigTable!F1933=\"\",\"\",ScriptText!$B$1&CHAR(10)&ScriptText!$D$1)","v":""},{"$f":"IF(OrigTable!F1933=\"\",\"\",TEXT(OrigTable!F1933,\"00\"))","v":""},{"$f":"IF(OrigTable!F1933=\"\",\"\",ScriptText!$E$1&CHAR(10)&ScriptText!$C$1)","v":""},{"$f":"IF(OrigTable!G1933=\"\",\"\",ScriptText!$B$1&CHAR(10)&ScriptText!$D$1)","v":""},{"$f":"IF(OrigTable!G1933=\"\",\"\",TEXT(OrigTable!G1933,\"00\"))","v":""},{"$f":"IF(OrigTable!G1933=\"\",\"\",ScriptText!$E$1&CHAR(10)&ScriptText!$C$1)","v":""},0]
["\n\n\n",{"$f":"IF(OrigTable!A1934=\"\",\"\",ScriptText!$B$1&CHAR(10)&ScriptText!$D$1)","v":""},{"$f":"IF(OrigTable!A1934=\"\",\"\",TEXT(OrigTable!A1934,\"00\"))","v":""},{"$f":"IF(OrigTable!A1934=\"\",\"\",ScriptText!$E$1&CHAR(10)&ScriptText!$C$1)","v":""},{"$f":"IF(OrigTable!B1934=\"\",\"\",ScriptText!$B$1&CHAR(10)&ScriptText!$D$1)","v":""},{"$f":"IF(OrigTable!B1934=\"\",\"\",TEXT(OrigTable!B1934,\"00\"))","v":""},{"$f":"IF(OrigTable!B1934=\"\",\"\",ScriptText!$E$1&CHAR(10)&ScriptText!C1929)","v":""},{"$f":"IF(OrigTable!C1934=\"\",\"\",ScriptText!$B$1&CHAR(10)&ScriptText!$D$1)","v":""},{"$f":"IF(OrigTable!C1934=\"\",\"\",IF(LEN(OrigTable!C1934)>255,LEFT(OrigTable!C1934,250)&\". . .\",OrigTable!C1934))","v":""},{"$f":"IF(OrigTable!C1934=\"\",\"\",ScriptText!$E$1&CHAR(10)&ScriptText!$C$1)","v":""},{"$f":"IF(OrigTable!D1934=\"\",\"\",ScriptText!$B$1&CHAR(10)&ScriptText!$D$1)","v":""},{"$f":"IF(OrigTable!D1934=\"\",\"\",TEXT(OrigTable!D1934,\"00\"))","v":""},{"$f":"IF(OrigTable!D1934=\"\",\"\",ScriptText!$E$1&CHAR(10)&ScriptText!$C$1)","v":""},{"$f":"IF(OrigTable!E1934=\"\",\"\",ScriptText!$B$1&CHAR(10)&ScriptText!$D$1)","v":""},{"$f":"IF(OrigTable!E1934=\"\",\"\",TEXT(OrigTable!E1934,\"00\"))","v":""},{"$f":"IF(OrigTable!E1934=\"\",\"\",ScriptText!$E$1&CHAR(10)&ScriptText!$C$1)","v":""},{"$f":"IF(OrigTable!F1934=\"\",\"\",ScriptText!$B$1&CHAR(10)&ScriptText!$D$1)","v":""},{"$f":"IF(OrigTable!F1934=\"\",\"\",TEXT(OrigTable!F1934,\"00\"))","v":""},{"$f":"IF(OrigTable!F1934=\"\",\"\",ScriptText!$E$1&CHAR(10)&ScriptText!$C$1)","v":""},{"$f":"IF(OrigTable!G1934=\"\",\"\",ScriptText!$B$1&CHAR(10)&ScriptText!$D$1)","v":""},{"$f":"IF(OrigTable!G1934=\"\",\"\",TEXT(OrigTable!G1934,\"00\"))","v":""},{"$f":"IF(OrigTable!G1934=\"\",\"\",ScriptText!$E$1&CHAR(10)&ScriptText!$C$1)","v":""},0]
["\n\n\n",{"$f":"IF(OrigTable!A1935=\"\",\"\",ScriptText!$B$1&CHAR(10)&ScriptText!$D$1)","v":""},{"$f":"IF(OrigTable!A1935=\"\",\"\",TEXT(OrigTable!A1935,\"00\"))","v":""},{"$f":"IF(OrigTable!A1935=\"\",\"\",ScriptText!$E$1&CHAR(10)&ScriptText!$C$1)","v":""},{"$f":"IF(OrigTable!B1935=\"\",\"\",ScriptText!$B$1&CHAR(10)&ScriptText!$D$1)","v":""},{"$f":"IF(OrigTable!B1935=\"\",\"\",TEXT(OrigTable!B1935,\"00\"))","v":""},{"$f":"IF(OrigTable!B1935=\"\",\"\",ScriptText!$E$1&CHAR(10)&ScriptText!C1930)","v":""},{"$f":"IF(OrigTable!C1935=\"\",\"\",ScriptText!$B$1&CHAR(10)&ScriptText!$D$1)","v":""},{"$f":"IF(OrigTable!C1935=\"\",\"\",IF(LEN(OrigTable!C1935)>255,LEFT(OrigTable!C1935,250)&\". . .\",OrigTable!C1935))","v":""},{"$f":"IF(OrigTable!C1935=\"\",\"\",ScriptText!$E$1&CHAR(10)&ScriptText!$C$1)","v":""},{"$f":"IF(OrigTable!D1935=\"\",\"\",ScriptText!$B$1&CHAR(10)&ScriptText!$D$1)","v":""},{"$f":"IF(OrigTable!D1935=\"\",\"\",TEXT(OrigTable!D1935,\"00\"))","v":""},{"$f":"IF(OrigTable!D1935=\"\",\"\",ScriptText!$E$1&CHAR(10)&ScriptText!$C$1)","v":""},{"$f":"IF(OrigTable!E1935=\"\",\"\",ScriptText!$B$1&CHAR(10)&ScriptText!$D$1)","v":""},{"$f":"IF(OrigTable!E1935=\"\",\"\",TEXT(OrigTable!E1935,\"00\"))","v":""},{"$f":"IF(OrigTable!E1935=\"\",\"\",ScriptText!$E$1&CHAR(10)&ScriptText!$C$1)","v":""},{"$f":"IF(OrigTable!F1935=\"\",\"\",ScriptText!$B$1&CHAR(10)&ScriptText!$D$1)","v":""},{"$f":"IF(OrigTable!F1935=\"\",\"\",TEXT(OrigTable!F1935,\"00\"))","v":""},{"$f":"IF(OrigTable!F1935=\"\",\"\",ScriptText!$E$1&CHAR(10)&ScriptText!$C$1)","v":""},{"$f":"IF(OrigTable!G1935=\"\",\"\",ScriptText!$B$1&CHAR(10)&ScriptText!$D$1)","v":""},{"$f":"IF(OrigTable!G1935=\"\",\"\",TEXT(OrigTable!G1935,\"00\"))","v":""},{"$f":"IF(OrigTable!G1935=\"\",\"\",ScriptText!$E$1&CHAR(10)&ScriptText!$C$1)","v":""},0]
["\n\n\n",{"$f":"IF(OrigTable!A1936=\"\",\"\",ScriptText!$B$1&CHAR(10)&ScriptText!$D$1)","v":""},{"$f":"IF(OrigTable!A1936=\"\",\"\",TEXT(OrigTable!A1936,\"00\"))","v":""},{"$f":"IF(OrigTable!A1936=\"\",\"\",ScriptText!$E$1&CHAR(10)&ScriptText!$C$1)","v":""},{"$f":"IF(OrigTable!B1936=\"\",\"\",ScriptText!$B$1&CHAR(10)&ScriptText!$D$1)","v":""},{"$f":"IF(OrigTable!B1936=\"\",\"\",TEXT(OrigTable!B1936,\"00\"))","v":""},{"$f":"IF(OrigTable!B1936=\"\",\"\",ScriptText!$E$1&CHAR(10)&ScriptText!C1931)","v":""},{"$f":"IF(OrigTable!C1936=\"\",\"\",ScriptText!$B$1&CHAR(10)&ScriptText!$D$1)","v":""},{"$f":"IF(OrigTable!C1936=\"\",\"\",IF(LEN(OrigTable!C1936)>255,LEFT(OrigTable!C1936,250)&\". . .\",OrigTable!C1936))","v":""},{"$f":"IF(OrigTable!C1936=\"\",\"\",ScriptText!$E$1&CHAR(10)&ScriptText!$C$1)","v":""},{"$f":"IF(OrigTable!D1936=\"\",\"\",ScriptText!$B$1&CHAR(10)&ScriptText!$D$1)","v":""},{"$f":"IF(OrigTable!D1936=\"\",\"\",TEXT(OrigTable!D1936,\"00\"))","v":""},{"$f":"IF(OrigTable!D1936=\"\",\"\",ScriptText!$E$1&CHAR(10)&ScriptText!$C$1)","v":""},{"$f":"IF(OrigTable!E1936=\"\",\"\",ScriptText!$B$1&CHAR(10)&ScriptText!$D$1)","v":""},{"$f":"IF(OrigTable!E1936=\"\",\"\",TEXT(OrigTable!E1936,\"00\"))","v":""},{"$f":"IF(OrigTable!E1936=\"\",\"\",ScriptText!$E$1&CHAR(10)&ScriptText!$C$1)","v":""},{"$f":"IF(OrigTable!F1936=\"\",\"\",ScriptText!$B$1&CHAR(10)&ScriptText!$D$1)","v":""},{"$f":"IF(OrigTable!F1936=\"\",\"\",TEXT(OrigTable!F1936,\"00\"))","v":""},{"$f":"IF(OrigTable!F1936=\"\",\"\",ScriptText!$E$1&CHAR(10)&ScriptText!$C$1)","v":""},{"$f":"IF(OrigTable!G1936=\"\",\"\",ScriptText!$B$1&CHAR(10)&ScriptText!$D$1)","v":""},{"$f":"IF(OrigTable!G1936=\"\",\"\",TEXT(OrigTable!G1936,\"00\"))","v":""},{"$f":"IF(OrigTable!G1936=\"\",\"\",ScriptText!$E$1&CHAR(10)&ScriptText!$C$1)","v":""},0]
["\n\n\n",{"$f":"IF(OrigTable!A1937=\"\",\"\",ScriptText!$B$1&CHAR(10)&ScriptText!$D$1)","v":""},{"$f":"IF(OrigTable!A1937=\"\",\"\",TEXT(OrigTable!A1937,\"00\"))","v":""},{"$f":"IF(OrigTable!A1937=\"\",\"\",ScriptText!$E$1&CHAR(10)&ScriptText!$C$1)","v":""},{"$f":"IF(OrigTable!B1937=\"\",\"\",ScriptText!$B$1&CHAR(10)&ScriptText!$D$1)","v":""},{"$f":"IF(OrigTable!B1937=\"\",\"\",TEXT(OrigTable!B1937,\"00\"))","v":""},{"$f":"IF(OrigTable!B1937=\"\",\"\",ScriptText!$E$1&CHAR(10)&ScriptText!C1932)","v":""},{"$f":"IF(OrigTable!C1937=\"\",\"\",ScriptText!$B$1&CHAR(10)&ScriptText!$D$1)","v":""},{"$f":"IF(OrigTable!C1937=\"\",\"\",IF(LEN(OrigTable!C1937)>255,LEFT(OrigTable!C1937,250)&\". . .\",OrigTable!C1937))","v":""},{"$f":"IF(OrigTable!C1937=\"\",\"\",ScriptText!$E$1&CHAR(10)&ScriptText!$C$1)","v":""},{"$f":"IF(OrigTable!D1937=\"\",\"\",ScriptText!$B$1&CHAR(10)&ScriptText!$D$1)","v":""},{"$f":"IF(OrigTable!D1937=\"\",\"\",TEXT(OrigTable!D1937,\"00\"))","v":""},{"$f":"IF(OrigTable!D1937=\"\",\"\",ScriptText!$E$1&CHAR(10)&ScriptText!$C$1)","v":""},{"$f":"IF(OrigTable!E1937=\"\",\"\",ScriptText!$B$1&CHAR(10)&ScriptText!$D$1)","v":""},{"$f":"IF(OrigTable!E1937=\"\",\"\",TEXT(OrigTable!E1937,\"00\"))","v":""},{"$f":"IF(OrigTable!E1937=\"\",\"\",ScriptText!$E$1&CHAR(10)&ScriptText!$C$1)","v":""},{"$f":"IF(OrigTable!F1937=\"\",\"\",ScriptText!$B$1&CHAR(10)&ScriptText!$D$1)","v":""},{"$f":"IF(OrigTable!F1937=\"\",\"\",TEXT(OrigTable!F1937,\"00\"))","v":""},{"$f":"IF(OrigTable!F1937=\"\",\"\",ScriptText!$E$1&CHAR(10)&ScriptText!$C$1)","v":""},{"$f":"IF(OrigTable!G1937=\"\",\"\",ScriptText!$B$1&CHAR(10)&ScriptText!$D$1)","v":""},{"$f":"IF(OrigTable!G1937=\"\",\"\",TEXT(OrigTable!G1937,\"00\"))","v":""},{"$f":"IF(OrigTable!G1937=\"\",\"\",ScriptText!$E$1&CHAR(10)&ScriptText!$C$1)","v":""},0]
["\n\n\n",{"$f":"IF(OrigTable!A1938=\"\",\"\",ScriptText!$B$1&CHAR(10)&ScriptText!$D$1)","v":""},{"$f":"IF(OrigTable!A1938=\"\",\"\",TEXT(OrigTable!A1938,\"00\"))","v":""},{"$f":"IF(OrigTable!A1938=\"\",\"\",ScriptText!$E$1&CHAR(10)&ScriptText!$C$1)","v":""},{"$f":"IF(OrigTable!B1938=\"\",\"\",ScriptText!$B$1&CHAR(10)&ScriptText!$D$1)","v":""},{"$f":"IF(OrigTable!B1938=\"\",\"\",TEXT(OrigTable!B1938,\"00\"))","v":""},{"$f":"IF(OrigTable!B1938=\"\",\"\",ScriptText!$E$1&CHAR(10)&ScriptText!C1933)","v":""},{"$f":"IF(OrigTable!C1938=\"\",\"\",ScriptText!$B$1&CHAR(10)&ScriptText!$D$1)","v":""},{"$f":"IF(OrigTable!C1938=\"\",\"\",IF(LEN(OrigTable!C1938)>255,LEFT(OrigTable!C1938,250)&\". . .\",OrigTable!C1938))","v":""},{"$f":"IF(OrigTable!C1938=\"\",\"\",ScriptText!$E$1&CHAR(10)&ScriptText!$C$1)","v":""},{"$f":"IF(OrigTable!D1938=\"\",\"\",ScriptText!$B$1&CHAR(10)&ScriptText!$D$1)","v":""},{"$f":"IF(OrigTable!D1938=\"\",\"\",TEXT(OrigTable!D1938,\"00\"))","v":""},{"$f":"IF(OrigTable!D1938=\"\",\"\",ScriptText!$E$1&CHAR(10)&ScriptText!$C$1)","v":""},{"$f":"IF(OrigTable!E1938=\"\",\"\",ScriptText!$B$1&CHAR(10)&ScriptText!$D$1)","v":""},{"$f":"IF(OrigTable!E1938=\"\",\"\",TEXT(OrigTable!E1938,\"00\"))","v":""},{"$f":"IF(OrigTable!E1938=\"\",\"\",ScriptText!$E$1&CHAR(10)&ScriptText!$C$1)","v":""},{"$f":"IF(OrigTable!F1938=\"\",\"\",ScriptText!$B$1&CHAR(10)&ScriptText!$D$1)","v":""},{"$f":"IF(OrigTable!F1938=\"\",\"\",TEXT(OrigTable!F1938,\"00\"))","v":""},{"$f":"IF(OrigTable!F1938=\"\",\"\",ScriptText!$E$1&CHAR(10)&ScriptText!$C$1)","v":""},{"$f":"IF(OrigTable!G1938=\"\",\"\",ScriptText!$B$1&CHAR(10)&ScriptText!$D$1)","v":""},{"$f":"IF(OrigTable!G1938=\"\",\"\",TEXT(OrigTable!G1938,\"00\"))","v":""},{"$f":"IF(OrigTable!G1938=\"\",\"\",ScriptText!$E$1&CHAR(10)&ScriptText!$C$1)","v":""},0]
["\n\n\n",{"$f":"IF(OrigTable!A1939=\"\",\"\",ScriptText!$B$1&CHAR(10)&ScriptText!$D$1)","v":""},{"$f":"IF(OrigTable!A1939=\"\",\"\",TEXT(OrigTable!A1939,\"00\"))","v":""},{"$f":"IF(OrigTable!A1939=\"\",\"\",ScriptText!$E$1&CHAR(10)&ScriptText!$C$1)","v":""},{"$f":"IF(OrigTable!B1939=\"\",\"\",ScriptText!$B$1&CHAR(10)&ScriptText!$D$1)","v":""},{"$f":"IF(OrigTable!B1939=\"\",\"\",TEXT(OrigTable!B1939,\"00\"))","v":""},{"$f":"IF(OrigTable!B1939=\"\",\"\",ScriptText!$E$1&CHAR(10)&ScriptText!C1934)","v":""},{"$f":"IF(OrigTable!C1939=\"\",\"\",ScriptText!$B$1&CHAR(10)&ScriptText!$D$1)","v":""},{"$f":"IF(OrigTable!C1939=\"\",\"\",IF(LEN(OrigTable!C1939)>255,LEFT(OrigTable!C1939,250)&\". . .\",OrigTable!C1939))","v":""},{"$f":"IF(OrigTable!C1939=\"\",\"\",ScriptText!$E$1&CHAR(10)&ScriptText!$C$1)","v":""},{"$f":"IF(OrigTable!D1939=\"\",\"\",ScriptText!$B$1&CHAR(10)&ScriptText!$D$1)","v":""},{"$f":"IF(OrigTable!D1939=\"\",\"\",TEXT(OrigTable!D1939,\"00\"))","v":""},{"$f":"IF(OrigTable!D1939=\"\",\"\",ScriptText!$E$1&CHAR(10)&ScriptText!$C$1)","v":""},{"$f":"IF(OrigTable!E1939=\"\",\"\",ScriptText!$B$1&CHAR(10)&ScriptText!$D$1)","v":""},{"$f":"IF(OrigTable!E1939=\"\",\"\",TEXT(OrigTable!E1939,\"00\"))","v":""},{"$f":"IF(OrigTable!E1939=\"\",\"\",ScriptText!$E$1&CHAR(10)&ScriptText!$C$1)","v":""},{"$f":"IF(OrigTable!F1939=\"\",\"\",ScriptText!$B$1&CHAR(10)&ScriptText!$D$1)","v":""},{"$f":"IF(OrigTable!F1939=\"\",\"\",TEXT(OrigTable!F1939,\"00\"))","v":""},{"$f":"IF(OrigTable!F1939=\"\",\"\",ScriptText!$E$1&CHAR(10)&ScriptText!$C$1)","v":""},{"$f":"IF(OrigTable!G1939=\"\",\"\",ScriptText!$B$1&CHAR(10)&ScriptText!$D$1)","v":""},{"$f":"IF(OrigTable!G1939=\"\",\"\",TEXT(OrigTable!G1939,\"00\"))","v":""},{"$f":"IF(OrigTable!G1939=\"\",\"\",ScriptText!$E$1&CHAR(10)&ScriptText!$C$1)","v":""},0]
["\n\n\n",{"$f":"IF(OrigTable!A1940=\"\",\"\",ScriptText!$B$1&CHAR(10)&ScriptText!$D$1)","v":""},{"$f":"IF(OrigTable!A1940=\"\",\"\",TEXT(OrigTable!A1940,\"00\"))","v":""},{"$f":"IF(OrigTable!A1940=\"\",\"\",ScriptText!$E$1&CHAR(10)&ScriptText!$C$1)","v":""},{"$f":"IF(OrigTable!B1940=\"\",\"\",ScriptText!$B$1&CHAR(10)&ScriptText!$D$1)","v":""},{"$f":"IF(OrigTable!B1940=\"\",\"\",TEXT(OrigTable!B1940,\"00\"))","v":""},{"$f":"IF(OrigTable!B1940=\"\",\"\",ScriptText!$E$1&CHAR(10)&ScriptText!C1935)","v":""},{"$f":"IF(OrigTable!C1940=\"\",\"\",ScriptText!$B$1&CHAR(10)&ScriptText!$D$1)","v":""},{"$f":"IF(OrigTable!C1940=\"\",\"\",IF(LEN(OrigTable!C1940)>255,LEFT(OrigTable!C1940,250)&\". . .\",OrigTable!C1940))","v":""},{"$f":"IF(OrigTable!C1940=\"\",\"\",ScriptText!$E$1&CHAR(10)&ScriptText!$C$1)","v":""},{"$f":"IF(OrigTable!D1940=\"\",\"\",ScriptText!$B$1&CHAR(10)&ScriptText!$D$1)","v":""},{"$f":"IF(OrigTable!D1940=\"\",\"\",TEXT(OrigTable!D1940,\"00\"))","v":""},{"$f":"IF(OrigTable!D1940=\"\",\"\",ScriptText!$E$1&CHAR(10)&ScriptText!$C$1)","v":""},{"$f":"IF(OrigTable!E1940=\"\",\"\",ScriptText!$B$1&CHAR(10)&ScriptText!$D$1)","v":""},{"$f":"IF(OrigTable!E1940=\"\",\"\",TEXT(OrigTable!E1940,\"00\"))","v":""},{"$f":"IF(OrigTable!E1940=\"\",\"\",ScriptText!$E$1&CHAR(10)&ScriptText!$C$1)","v":""},{"$f":"IF(OrigTable!F1940=\"\",\"\",ScriptText!$B$1&CHAR(10)&ScriptText!$D$1)","v":""},{"$f":"IF(OrigTable!F1940=\"\",\"\",TEXT(OrigTable!F1940,\"00\"))","v":""},{"$f":"IF(OrigTable!F1940=\"\",\"\",ScriptText!$E$1&CHAR(10)&ScriptText!$C$1)","v":""},{"$f":"IF(OrigTable!G1940=\"\",\"\",ScriptText!$B$1&CHAR(10)&ScriptText!$D$1)","v":""},{"$f":"IF(OrigTable!G1940=\"\",\"\",TEXT(OrigTable!G1940,\"00\"))","v":""},{"$f":"IF(OrigTable!G1940=\"\",\"\",ScriptText!$E$1&CHAR(10)&ScriptText!$C$1)","v":""},0]
["\n\n\n",{"$f":"IF(OrigTable!A1941=\"\",\"\",ScriptText!$B$1&CHAR(10)&ScriptText!$D$1)","v":""},{"$f":"IF(OrigTable!A1941=\"\",\"\",TEXT(OrigTable!A1941,\"00\"))","v":""},{"$f":"IF(OrigTable!A1941=\"\",\"\",ScriptText!$E$1&CHAR(10)&ScriptText!$C$1)","v":""},{"$f":"IF(OrigTable!B1941=\"\",\"\",ScriptText!$B$1&CHAR(10)&ScriptText!$D$1)","v":""},{"$f":"IF(OrigTable!B1941=\"\",\"\",TEXT(OrigTable!B1941,\"00\"))","v":""},{"$f":"IF(OrigTable!B1941=\"\",\"\",ScriptText!$E$1&CHAR(10)&ScriptText!C1936)","v":""},{"$f":"IF(OrigTable!C1941=\"\",\"\",ScriptText!$B$1&CHAR(10)&ScriptText!$D$1)","v":""},{"$f":"IF(OrigTable!C1941=\"\",\"\",IF(LEN(OrigTable!C1941)>255,LEFT(OrigTable!C1941,250)&\". . .\",OrigTable!C1941))","v":""},{"$f":"IF(OrigTable!C1941=\"\",\"\",ScriptText!$E$1&CHAR(10)&ScriptText!$C$1)","v":""},{"$f":"IF(OrigTable!D1941=\"\",\"\",ScriptText!$B$1&CHAR(10)&ScriptText!$D$1)","v":""},{"$f":"IF(OrigTable!D1941=\"\",\"\",TEXT(OrigTable!D1941,\"00\"))","v":""},{"$f":"IF(OrigTable!D1941=\"\",\"\",ScriptText!$E$1&CHAR(10)&ScriptText!$C$1)","v":""},{"$f":"IF(OrigTable!E1941=\"\",\"\",ScriptText!$B$1&CHAR(10)&ScriptText!$D$1)","v":""},{"$f":"IF(OrigTable!E1941=\"\",\"\",TEXT(OrigTable!E1941,\"00\"))","v":""},{"$f":"IF(OrigTable!E1941=\"\",\"\",ScriptText!$E$1&CHAR(10)&ScriptText!$C$1)","v":""},{"$f":"IF(OrigTable!F1941=\"\",\"\",ScriptText!$B$1&CHAR(10)&ScriptText!$D$1)","v":""},{"$f":"IF(OrigTable!F1941=\"\",\"\",TEXT(OrigTable!F1941,\"00\"))","v":""},{"$f":"IF(OrigTable!F1941=\"\",\"\",ScriptText!$E$1&CHAR(10)&ScriptText!$C$1)","v":""},{"$f":"IF(OrigTable!G1941=\"\",\"\",ScriptText!$B$1&CHAR(10)&ScriptText!$D$1)","v":""},{"$f":"IF(OrigTable!G1941=\"\",\"\",TEXT(OrigTable!G1941,\"00\"))","v":""},{"$f":"IF(OrigTable!G1941=\"\",\"\",ScriptText!$E$1&CHAR(10)&ScriptText!$C$1)","v":""},0]
["\n\n\n",{"$f":"IF(OrigTable!A1942=\"\",\"\",ScriptText!$B$1&CHAR(10)&ScriptText!$D$1)","v":""},{"$f":"IF(OrigTable!A1942=\"\",\"\",TEXT(OrigTable!A1942,\"00\"))","v":""},{"$f":"IF(OrigTable!A1942=\"\",\"\",ScriptText!$E$1&CHAR(10)&ScriptText!$C$1)","v":""},{"$f":"IF(OrigTable!B1942=\"\",\"\",ScriptText!$B$1&CHAR(10)&ScriptText!$D$1)","v":""},{"$f":"IF(OrigTable!B1942=\"\",\"\",TEXT(OrigTable!B1942,\"00\"))","v":""},{"$f":"IF(OrigTable!B1942=\"\",\"\",ScriptText!$E$1&CHAR(10)&ScriptText!C1937)","v":""},{"$f":"IF(OrigTable!C1942=\"\",\"\",ScriptText!$B$1&CHAR(10)&ScriptText!$D$1)","v":""},{"$f":"IF(OrigTable!C1942=\"\",\"\",IF(LEN(OrigTable!C1942)>255,LEFT(OrigTable!C1942,250)&\". . .\",OrigTable!C1942))","v":""},{"$f":"IF(OrigTable!C1942=\"\",\"\",ScriptText!$E$1&CHAR(10)&ScriptText!$C$1)","v":""},{"$f":"IF(OrigTable!D1942=\"\",\"\",ScriptText!$B$1&CHAR(10)&ScriptText!$D$1)","v":""},{"$f":"IF(OrigTable!D1942=\"\",\"\",TEXT(OrigTable!D1942,\"00\"))","v":""},{"$f":"IF(OrigTable!D1942=\"\",\"\",ScriptText!$E$1&CHAR(10)&ScriptText!$C$1)","v":""},{"$f":"IF(OrigTable!E1942=\"\",\"\",ScriptText!$B$1&CHAR(10)&ScriptText!$D$1)","v":""},{"$f":"IF(OrigTable!E1942=\"\",\"\",TEXT(OrigTable!E1942,\"00\"))","v":""},{"$f":"IF(OrigTable!E1942=\"\",\"\",ScriptText!$E$1&CHAR(10)&ScriptText!$C$1)","v":""},{"$f":"IF(OrigTable!F1942=\"\",\"\",ScriptText!$B$1&CHAR(10)&ScriptText!$D$1)","v":""},{"$f":"IF(OrigTable!F1942=\"\",\"\",TEXT(OrigTable!F1942,\"00\"))","v":""},{"$f":"IF(OrigTable!F1942=\"\",\"\",ScriptText!$E$1&CHAR(10)&ScriptText!$C$1)","v":""},{"$f":"IF(OrigTable!G1942=\"\",\"\",ScriptText!$B$1&CHAR(10)&ScriptText!$D$1)","v":""},{"$f":"IF(OrigTable!G1942=\"\",\"\",TEXT(OrigTable!G1942,\"00\"))","v":""},{"$f":"IF(OrigTable!G1942=\"\",\"\",ScriptText!$E$1&CHAR(10)&ScriptText!$C$1)","v":""},0]
["\n\n\n",{"$f":"IF(OrigTable!A1943=\"\",\"\",ScriptText!$B$1&CHAR(10)&ScriptText!$D$1)","v":""},{"$f":"IF(OrigTable!A1943=\"\",\"\",TEXT(OrigTable!A1943,\"00\"))","v":""},{"$f":"IF(OrigTable!A1943=\"\",\"\",ScriptText!$E$1&CHAR(10)&ScriptText!$C$1)","v":""},{"$f":"IF(OrigTable!B1943=\"\",\"\",ScriptText!$B$1&CHAR(10)&ScriptText!$D$1)","v":""},{"$f":"IF(OrigTable!B1943=\"\",\"\",TEXT(OrigTable!B1943,\"00\"))","v":""},{"$f":"IF(OrigTable!B1943=\"\",\"\",ScriptText!$E$1&CHAR(10)&ScriptText!C1938)","v":""},{"$f":"IF(OrigTable!C1943=\"\",\"\",ScriptText!$B$1&CHAR(10)&ScriptText!$D$1)","v":""},{"$f":"IF(OrigTable!C1943=\"\",\"\",IF(LEN(OrigTable!C1943)>255,LEFT(OrigTable!C1943,250)&\". . .\",OrigTable!C1943))","v":""},{"$f":"IF(OrigTable!C1943=\"\",\"\",ScriptText!$E$1&CHAR(10)&ScriptText!$C$1)","v":""},{"$f":"IF(OrigTable!D1943=\"\",\"\",ScriptText!$B$1&CHAR(10)&ScriptText!$D$1)","v":""},{"$f":"IF(OrigTable!D1943=\"\",\"\",TEXT(OrigTable!D1943,\"00\"))","v":""},{"$f":"IF(OrigTable!D1943=\"\",\"\",ScriptText!$E$1&CHAR(10)&ScriptText!$C$1)","v":""},{"$f":"IF(OrigTable!E1943=\"\",\"\",ScriptText!$B$1&CHAR(10)&ScriptText!$D$1)","v":""},{"$f":"IF(OrigTable!E1943=\"\",\"\",TEXT(OrigTable!E1943,\"00\"))","v":""},{"$f":"IF(OrigTable!E1943=\"\",\"\",ScriptText!$E$1&CHAR(10)&ScriptText!$C$1)","v":""},{"$f":"IF(OrigTable!F1943=\"\",\"\",ScriptText!$B$1&CHAR(10)&ScriptText!$D$1)","v":""},{"$f":"IF(OrigTable!F1943=\"\",\"\",TEXT(OrigTable!F1943,\"00\"))","v":""},{"$f":"IF(OrigTable!F1943=\"\",\"\",ScriptText!$E$1&CHAR(10)&ScriptText!$C$1)","v":""},{"$f":"IF(OrigTable!G1943=\"\",\"\",ScriptText!$B$1&CHAR(10)&ScriptText!$D$1)","v":""},{"$f":"IF(OrigTable!G1943=\"\",\"\",TEXT(OrigTable!G1943,\"00\"))","v":""},{"$f":"IF(OrigTable!G1943=\"\",\"\",ScriptText!$E$1&CHAR(10)&ScriptText!$C$1)","v":""},0]
["\n\n\n",{"$f":"IF(OrigTable!A1944=\"\",\"\",ScriptText!$B$1&CHAR(10)&ScriptText!$D$1)","v":""},{"$f":"IF(OrigTable!A1944=\"\",\"\",TEXT(OrigTable!A1944,\"00\"))","v":""},{"$f":"IF(OrigTable!A1944=\"\",\"\",ScriptText!$E$1&CHAR(10)&ScriptText!$C$1)","v":""},{"$f":"IF(OrigTable!B1944=\"\",\"\",ScriptText!$B$1&CHAR(10)&ScriptText!$D$1)","v":""},{"$f":"IF(OrigTable!B1944=\"\",\"\",TEXT(OrigTable!B1944,\"00\"))","v":""},{"$f":"IF(OrigTable!B1944=\"\",\"\",ScriptText!$E$1&CHAR(10)&ScriptText!C1939)","v":""},{"$f":"IF(OrigTable!C1944=\"\",\"\",ScriptText!$B$1&CHAR(10)&ScriptText!$D$1)","v":""},{"$f":"IF(OrigTable!C1944=\"\",\"\",IF(LEN(OrigTable!C1944)>255,LEFT(OrigTable!C1944,250)&\". . .\",OrigTable!C1944))","v":""},{"$f":"IF(OrigTable!C1944=\"\",\"\",ScriptText!$E$1&CHAR(10)&ScriptText!$C$1)","v":""},{"$f":"IF(OrigTable!D1944=\"\",\"\",ScriptText!$B$1&CHAR(10)&ScriptText!$D$1)","v":""},{"$f":"IF(OrigTable!D1944=\"\",\"\",TEXT(OrigTable!D1944,\"00\"))","v":""},{"$f":"IF(OrigTable!D1944=\"\",\"\",ScriptText!$E$1&CHAR(10)&ScriptText!$C$1)","v":""},{"$f":"IF(OrigTable!E1944=\"\",\"\",ScriptText!$B$1&CHAR(10)&ScriptText!$D$1)","v":""},{"$f":"IF(OrigTable!E1944=\"\",\"\",TEXT(OrigTable!E1944,\"00\"))","v":""},{"$f":"IF(OrigTable!E1944=\"\",\"\",ScriptText!$E$1&CHAR(10)&ScriptText!$C$1)","v":""},{"$f":"IF(OrigTable!F1944=\"\",\"\",ScriptText!$B$1&CHAR(10)&ScriptText!$D$1)","v":""},{"$f":"IF(OrigTable!F1944=\"\",\"\",TEXT(OrigTable!F1944,\"00\"))","v":""},{"$f":"IF(OrigTable!F1944=\"\",\"\",ScriptText!$E$1&CHAR(10)&ScriptText!$C$1)","v":""},{"$f":"IF(OrigTable!G1944=\"\",\"\",ScriptText!$B$1&CHAR(10)&ScriptText!$D$1)","v":""},{"$f":"IF(OrigTable!G1944=\"\",\"\",TEXT(OrigTable!G1944,\"00\"))","v":""},{"$f":"IF(OrigTable!G1944=\"\",\"\",ScriptText!$E$1&CHAR(10)&ScriptText!$C$1)","v":""},0]
["\n\n\n",{"$f":"IF(OrigTable!A1945=\"\",\"\",ScriptText!$B$1&CHAR(10)&ScriptText!$D$1)","v":""},{"$f":"IF(OrigTable!A1945=\"\",\"\",TEXT(OrigTable!A1945,\"00\"))","v":""},{"$f":"IF(OrigTable!A1945=\"\",\"\",ScriptText!$E$1&CHAR(10)&ScriptText!$C$1)","v":""},{"$f":"IF(OrigTable!B1945=\"\",\"\",ScriptText!$B$1&CHAR(10)&ScriptText!$D$1)","v":""},{"$f":"IF(OrigTable!B1945=\"\",\"\",TEXT(OrigTable!B1945,\"00\"))","v":""},{"$f":"IF(OrigTable!B1945=\"\",\"\",ScriptText!$E$1&CHAR(10)&ScriptText!C1940)","v":""},{"$f":"IF(OrigTable!C1945=\"\",\"\",ScriptText!$B$1&CHAR(10)&ScriptText!$D$1)","v":""},{"$f":"IF(OrigTable!C1945=\"\",\"\",IF(LEN(OrigTable!C1945)>255,LEFT(OrigTable!C1945,250)&\". . .\",OrigTable!C1945))","v":""},{"$f":"IF(OrigTable!C1945=\"\",\"\",ScriptText!$E$1&CHAR(10)&ScriptText!$C$1)","v":""},{"$f":"IF(OrigTable!D1945=\"\",\"\",ScriptText!$B$1&CHAR(10)&ScriptText!$D$1)","v":""},{"$f":"IF(OrigTable!D1945=\"\",\"\",TEXT(OrigTable!D1945,\"00\"))","v":""},{"$f":"IF(OrigTable!D1945=\"\",\"\",ScriptText!$E$1&CHAR(10)&ScriptText!$C$1)","v":""},{"$f":"IF(OrigTable!E1945=\"\",\"\",ScriptText!$B$1&CHAR(10)&ScriptText!$D$1)","v":""},{"$f":"IF(OrigTable!E1945=\"\",\"\",TEXT(OrigTable!E1945,\"00\"))","v":""},{"$f":"IF(OrigTable!E1945=\"\",\"\",ScriptText!$E$1&CHAR(10)&ScriptText!$C$1)","v":""},{"$f":"IF(OrigTable!F1945=\"\",\"\",ScriptText!$B$1&CHAR(10)&ScriptText!$D$1)","v":""},{"$f":"IF(OrigTable!F1945=\"\",\"\",TEXT(OrigTable!F1945,\"00\"))","v":""},{"$f":"IF(OrigTable!F1945=\"\",\"\",ScriptText!$E$1&CHAR(10)&ScriptText!$C$1)","v":""},{"$f":"IF(OrigTable!G1945=\"\",\"\",ScriptText!$B$1&CHAR(10)&ScriptText!$D$1)","v":""},{"$f":"IF(OrigTable!G1945=\"\",\"\",TEXT(OrigTable!G1945,\"00\"))","v":""},{"$f":"IF(OrigTable!G1945=\"\",\"\",ScriptText!$E$1&CHAR(10)&ScriptText!$C$1)","v":""},0]
["\n\n\n",{"$f":"IF(OrigTable!A1946=\"\",\"\",ScriptText!$B$1&CHAR(10)&ScriptText!$D$1)","v":""},{"$f":"IF(OrigTable!A1946=\"\",\"\",TEXT(OrigTable!A1946,\"00\"))","v":""},{"$f":"IF(OrigTable!A1946=\"\",\"\",ScriptText!$E$1&CHAR(10)&ScriptText!$C$1)","v":""},{"$f":"IF(OrigTable!B1946=\"\",\"\",ScriptText!$B$1&CHAR(10)&ScriptText!$D$1)","v":""},{"$f":"IF(OrigTable!B1946=\"\",\"\",TEXT(OrigTable!B1946,\"00\"))","v":""},{"$f":"IF(OrigTable!B1946=\"\",\"\",ScriptText!$E$1&CHAR(10)&ScriptText!C1941)","v":""},{"$f":"IF(OrigTable!C1946=\"\",\"\",ScriptText!$B$1&CHAR(10)&ScriptText!$D$1)","v":""},{"$f":"IF(OrigTable!C1946=\"\",\"\",IF(LEN(OrigTable!C1946)>255,LEFT(OrigTable!C1946,250)&\". . .\",OrigTable!C1946))","v":""},{"$f":"IF(OrigTable!C1946=\"\",\"\",ScriptText!$E$1&CHAR(10)&ScriptText!$C$1)","v":""},{"$f":"IF(OrigTable!D1946=\"\",\"\",ScriptText!$B$1&CHAR(10)&ScriptText!$D$1)","v":""},{"$f":"IF(OrigTable!D1946=\"\",\"\",TEXT(OrigTable!D1946,\"00\"))","v":""},{"$f":"IF(OrigTable!D1946=\"\",\"\",ScriptText!$E$1&CHAR(10)&ScriptText!$C$1)","v":""},{"$f":"IF(OrigTable!E1946=\"\",\"\",ScriptText!$B$1&CHAR(10)&ScriptText!$D$1)","v":""},{"$f":"IF(OrigTable!E1946=\"\",\"\",TEXT(OrigTable!E1946,\"00\"))","v":""},{"$f":"IF(OrigTable!E1946=\"\",\"\",ScriptText!$E$1&CHAR(10)&ScriptText!$C$1)","v":""},{"$f":"IF(OrigTable!F1946=\"\",\"\",ScriptText!$B$1&CHAR(10)&ScriptText!$D$1)","v":""},{"$f":"IF(OrigTable!F1946=\"\",\"\",TEXT(OrigTable!F1946,\"00\"))","v":""},{"$f":"IF(OrigTable!F1946=\"\",\"\",ScriptText!$E$1&CHAR(10)&ScriptText!$C$1)","v":""},{"$f":"IF(OrigTable!G1946=\"\",\"\",ScriptText!$B$1&CHAR(10)&ScriptText!$D$1)","v":""},{"$f":"IF(OrigTable!G1946=\"\",\"\",TEXT(OrigTable!G1946,\"00\"))","v":""},{"$f":"IF(OrigTable!G1946=\"\",\"\",ScriptText!$E$1&CHAR(10)&ScriptText!$C$1)","v":""},0]
["\n\n\n",{"$f":"IF(OrigTable!A1947=\"\",\"\",ScriptText!$B$1&CHAR(10)&ScriptText!$D$1)","v":""},{"$f":"IF(OrigTable!A1947=\"\",\"\",TEXT(OrigTable!A1947,\"00\"))","v":""},{"$f":"IF(OrigTable!A1947=\"\",\"\",ScriptText!$E$1&CHAR(10)&ScriptText!$C$1)","v":""},{"$f":"IF(OrigTable!B1947=\"\",\"\",ScriptText!$B$1&CHAR(10)&ScriptText!$D$1)","v":""},{"$f":"IF(OrigTable!B1947=\"\",\"\",TEXT(OrigTable!B1947,\"00\"))","v":""},{"$f":"IF(OrigTable!B1947=\"\",\"\",ScriptText!$E$1&CHAR(10)&ScriptText!C1942)","v":""},{"$f":"IF(OrigTable!C1947=\"\",\"\",ScriptText!$B$1&CHAR(10)&ScriptText!$D$1)","v":""},{"$f":"IF(OrigTable!C1947=\"\",\"\",IF(LEN(OrigTable!C1947)>255,LEFT(OrigTable!C1947,250)&\". . .\",OrigTable!C1947))","v":""},{"$f":"IF(OrigTable!C1947=\"\",\"\",ScriptText!$E$1&CHAR(10)&ScriptText!$C$1)","v":""},{"$f":"IF(OrigTable!D1947=\"\",\"\",ScriptText!$B$1&CHAR(10)&ScriptText!$D$1)","v":""},{"$f":"IF(OrigTable!D1947=\"\",\"\",TEXT(OrigTable!D1947,\"00\"))","v":""},{"$f":"IF(OrigTable!D1947=\"\",\"\",ScriptText!$E$1&CHAR(10)&ScriptText!$C$1)","v":""},{"$f":"IF(OrigTable!E1947=\"\",\"\",ScriptText!$B$1&CHAR(10)&ScriptText!$D$1)","v":""},{"$f":"IF(OrigTable!E1947=\"\",\"\",TEXT(OrigTable!E1947,\"00\"))","v":""},{"$f":"IF(OrigTable!E1947=\"\",\"\",ScriptText!$E$1&CHAR(10)&ScriptText!$C$1)","v":""},{"$f":"IF(OrigTable!F1947=\"\",\"\",ScriptText!$B$1&CHAR(10)&ScriptText!$D$1)","v":""},{"$f":"IF(OrigTable!F1947=\"\",\"\",TEXT(OrigTable!F1947,\"00\"))","v":""},{"$f":"IF(OrigTable!F1947=\"\",\"\",ScriptText!$E$1&CHAR(10)&ScriptText!$C$1)","v":""},{"$f":"IF(OrigTable!G1947=\"\",\"\",ScriptText!$B$1&CHAR(10)&ScriptText!$D$1)","v":""},{"$f":"IF(OrigTable!G1947=\"\",\"\",TEXT(OrigTable!G1947,\"00\"))","v":""},{"$f":"IF(OrigTable!G1947=\"\",\"\",ScriptText!$E$1&CHAR(10)&ScriptText!$C$1)","v":""},0]
["\n\n\n",{"$f":"IF(OrigTable!A1948=\"\",\"\",ScriptText!$B$1&CHAR(10)&ScriptText!$D$1)","v":""},{"$f":"IF(OrigTable!A1948=\"\",\"\",TEXT(OrigTable!A1948,\"00\"))","v":""},{"$f":"IF(OrigTable!A1948=\"\",\"\",ScriptText!$E$1&CHAR(10)&ScriptText!$C$1)","v":""},{"$f":"IF(OrigTable!B1948=\"\",\"\",ScriptText!$B$1&CHAR(10)&ScriptText!$D$1)","v":""},{"$f":"IF(OrigTable!B1948=\"\",\"\",TEXT(OrigTable!B1948,\"00\"))","v":""},{"$f":"IF(OrigTable!B1948=\"\",\"\",ScriptText!$E$1&CHAR(10)&ScriptText!C1943)","v":""},{"$f":"IF(OrigTable!C1948=\"\",\"\",ScriptText!$B$1&CHAR(10)&ScriptText!$D$1)","v":""},{"$f":"IF(OrigTable!C1948=\"\",\"\",IF(LEN(OrigTable!C1948)>255,LEFT(OrigTable!C1948,250)&\". . .\",OrigTable!C1948))","v":""},{"$f":"IF(OrigTable!C1948=\"\",\"\",ScriptText!$E$1&CHAR(10)&ScriptText!$C$1)","v":""},{"$f":"IF(OrigTable!D1948=\"\",\"\",ScriptText!$B$1&CHAR(10)&ScriptText!$D$1)","v":""},{"$f":"IF(OrigTable!D1948=\"\",\"\",TEXT(OrigTable!D1948,\"00\"))","v":""},{"$f":"IF(OrigTable!D1948=\"\",\"\",ScriptText!$E$1&CHAR(10)&ScriptText!$C$1)","v":""},{"$f":"IF(OrigTable!E1948=\"\",\"\",ScriptText!$B$1&CHAR(10)&ScriptText!$D$1)","v":""},{"$f":"IF(OrigTable!E1948=\"\",\"\",TEXT(OrigTable!E1948,\"00\"))","v":""},{"$f":"IF(OrigTable!E1948=\"\",\"\",ScriptText!$E$1&CHAR(10)&ScriptText!$C$1)","v":""},{"$f":"IF(OrigTable!F1948=\"\",\"\",ScriptText!$B$1&CHAR(10)&ScriptText!$D$1)","v":""},{"$f":"IF(OrigTable!F1948=\"\",\"\",TEXT(OrigTable!F1948,\"00\"))","v":""},{"$f":"IF(OrigTable!F1948=\"\",\"\",ScriptText!$E$1&CHAR(10)&ScriptText!$C$1)","v":""},{"$f":"IF(OrigTable!G1948=\"\",\"\",ScriptText!$B$1&CHAR(10)&ScriptText!$D$1)","v":""},{"$f":"IF(OrigTable!G1948=\"\",\"\",TEXT(OrigTable!G1948,\"00\"))","v":""},{"$f":"IF(OrigTable!G1948=\"\",\"\",ScriptText!$E$1&CHAR(10)&ScriptText!$C$1)","v":""},0]
["\n\n\n",{"$f":"IF(OrigTable!A1949=\"\",\"\",ScriptText!$B$1&CHAR(10)&ScriptText!$D$1)","v":""},{"$f":"IF(OrigTable!A1949=\"\",\"\",TEXT(OrigTable!A1949,\"00\"))","v":""},{"$f":"IF(OrigTable!A1949=\"\",\"\",ScriptText!$E$1&CHAR(10)&ScriptText!$C$1)","v":""},{"$f":"IF(OrigTable!B1949=\"\",\"\",ScriptText!$B$1&CHAR(10)&ScriptText!$D$1)","v":""},{"$f":"IF(OrigTable!B1949=\"\",\"\",TEXT(OrigTable!B1949,\"00\"))","v":""},{"$f":"IF(OrigTable!B1949=\"\",\"\",ScriptText!$E$1&CHAR(10)&ScriptText!C1944)","v":""},{"$f":"IF(OrigTable!C1949=\"\",\"\",ScriptText!$B$1&CHAR(10)&ScriptText!$D$1)","v":""},{"$f":"IF(OrigTable!C1949=\"\",\"\",IF(LEN(OrigTable!C1949)>255,LEFT(OrigTable!C1949,250)&\". . .\",OrigTable!C1949))","v":""},{"$f":"IF(OrigTable!C1949=\"\",\"\",ScriptText!$E$1&CHAR(10)&ScriptText!$C$1)","v":""},{"$f":"IF(OrigTable!D1949=\"\",\"\",ScriptText!$B$1&CHAR(10)&ScriptText!$D$1)","v":""},{"$f":"IF(OrigTable!D1949=\"\",\"\",TEXT(OrigTable!D1949,\"00\"))","v":""},{"$f":"IF(OrigTable!D1949=\"\",\"\",ScriptText!$E$1&CHAR(10)&ScriptText!$C$1)","v":""},{"$f":"IF(OrigTable!E1949=\"\",\"\",ScriptText!$B$1&CHAR(10)&ScriptText!$D$1)","v":""},{"$f":"IF(OrigTable!E1949=\"\",\"\",TEXT(OrigTable!E1949,\"00\"))","v":""},{"$f":"IF(OrigTable!E1949=\"\",\"\",ScriptText!$E$1&CHAR(10)&ScriptText!$C$1)","v":""},{"$f":"IF(OrigTable!F1949=\"\",\"\",ScriptText!$B$1&CHAR(10)&ScriptText!$D$1)","v":""},{"$f":"IF(OrigTable!F1949=\"\",\"\",TEXT(OrigTable!F1949,\"00\"))","v":""},{"$f":"IF(OrigTable!F1949=\"\",\"\",ScriptText!$E$1&CHAR(10)&ScriptText!$C$1)","v":""},{"$f":"IF(OrigTable!G1949=\"\",\"\",ScriptText!$B$1&CHAR(10)&ScriptText!$D$1)","v":""},{"$f":"IF(OrigTable!G1949=\"\",\"\",TEXT(OrigTable!G1949,\"00\"))","v":""},{"$f":"IF(OrigTable!G1949=\"\",\"\",ScriptText!$E$1&CHAR(10)&ScriptText!$C$1)","v":""},0]
["\n\n\n",{"$f":"IF(OrigTable!A1950=\"\",\"\",ScriptText!$B$1&CHAR(10)&ScriptText!$D$1)","v":""},{"$f":"IF(OrigTable!A1950=\"\",\"\",TEXT(OrigTable!A1950,\"00\"))","v":""},{"$f":"IF(OrigTable!A1950=\"\",\"\",ScriptText!$E$1&CHAR(10)&ScriptText!$C$1)","v":""},{"$f":"IF(OrigTable!B1950=\"\",\"\",ScriptText!$B$1&CHAR(10)&ScriptText!$D$1)","v":""},{"$f":"IF(OrigTable!B1950=\"\",\"\",TEXT(OrigTable!B1950,\"00\"))","v":""},{"$f":"IF(OrigTable!B1950=\"\",\"\",ScriptText!$E$1&CHAR(10)&ScriptText!C1945)","v":""},{"$f":"IF(OrigTable!C1950=\"\",\"\",ScriptText!$B$1&CHAR(10)&ScriptText!$D$1)","v":""},{"$f":"IF(OrigTable!C1950=\"\",\"\",IF(LEN(OrigTable!C1950)>255,LEFT(OrigTable!C1950,250)&\". . .\",OrigTable!C1950))","v":""},{"$f":"IF(OrigTable!C1950=\"\",\"\",ScriptText!$E$1&CHAR(10)&ScriptText!$C$1)","v":""},{"$f":"IF(OrigTable!D1950=\"\",\"\",ScriptText!$B$1&CHAR(10)&ScriptText!$D$1)","v":""},{"$f":"IF(OrigTable!D1950=\"\",\"\",TEXT(OrigTable!D1950,\"00\"))","v":""},{"$f":"IF(OrigTable!D1950=\"\",\"\",ScriptText!$E$1&CHAR(10)&ScriptText!$C$1)","v":""},{"$f":"IF(OrigTable!E1950=\"\",\"\",ScriptText!$B$1&CHAR(10)&ScriptText!$D$1)","v":""},{"$f":"IF(OrigTable!E1950=\"\",\"\",TEXT(OrigTable!E1950,\"00\"))","v":""},{"$f":"IF(OrigTable!E1950=\"\",\"\",ScriptText!$E$1&CHAR(10)&ScriptText!$C$1)","v":""},{"$f":"IF(OrigTable!F1950=\"\",\"\",ScriptText!$B$1&CHAR(10)&ScriptText!$D$1)","v":""},{"$f":"IF(OrigTable!F1950=\"\",\"\",TEXT(OrigTable!F1950,\"00\"))","v":""},{"$f":"IF(OrigTable!F1950=\"\",\"\",ScriptText!$E$1&CHAR(10)&ScriptText!$C$1)","v":""},{"$f":"IF(OrigTable!G1950=\"\",\"\",ScriptText!$B$1&CHAR(10)&ScriptText!$D$1)","v":""},{"$f":"IF(OrigTable!G1950=\"\",\"\",TEXT(OrigTable!G1950,\"00\"))","v":""},{"$f":"IF(OrigTable!G1950=\"\",\"\",ScriptText!$E$1&CHAR(10)&ScriptText!$C$1)","v":""},0]
["\n\n\n",{"$f":"IF(OrigTable!A1951=\"\",\"\",ScriptText!$B$1&CHAR(10)&ScriptText!$D$1)","v":""},{"$f":"IF(OrigTable!A1951=\"\",\"\",TEXT(OrigTable!A1951,\"00\"))","v":""},{"$f":"IF(OrigTable!A1951=\"\",\"\",ScriptText!$E$1&CHAR(10)&ScriptText!$C$1)","v":""},{"$f":"IF(OrigTable!B1951=\"\",\"\",ScriptText!$B$1&CHAR(10)&ScriptText!$D$1)","v":""},{"$f":"IF(OrigTable!B1951=\"\",\"\",TEXT(OrigTable!B1951,\"00\"))","v":""},{"$f":"IF(OrigTable!B1951=\"\",\"\",ScriptText!$E$1&CHAR(10)&ScriptText!C1946)","v":""},{"$f":"IF(OrigTable!C1951=\"\",\"\",ScriptText!$B$1&CHAR(10)&ScriptText!$D$1)","v":""},{"$f":"IF(OrigTable!C1951=\"\",\"\",IF(LEN(OrigTable!C1951)>255,LEFT(OrigTable!C1951,250)&\". . .\",OrigTable!C1951))","v":""},{"$f":"IF(OrigTable!C1951=\"\",\"\",ScriptText!$E$1&CHAR(10)&ScriptText!$C$1)","v":""},{"$f":"IF(OrigTable!D1951=\"\",\"\",ScriptText!$B$1&CHAR(10)&ScriptText!$D$1)","v":""},{"$f":"IF(OrigTable!D1951=\"\",\"\",TEXT(OrigTable!D1951,\"00\"))","v":""},{"$f":"IF(OrigTable!D1951=\"\",\"\",ScriptText!$E$1&CHAR(10)&ScriptText!$C$1)","v":""},{"$f":"IF(OrigTable!E1951=\"\",\"\",ScriptText!$B$1&CHAR(10)&ScriptText!$D$1)","v":""},{"$f":"IF(OrigTable!E1951=\"\",\"\",TEXT(OrigTable!E1951,\"00\"))","v":""},{"$f":"IF(OrigTable!E1951=\"\",\"\",ScriptText!$E$1&CHAR(10)&ScriptText!$C$1)","v":""},{"$f":"IF(OrigTable!F1951=\"\",\"\",ScriptText!$B$1&CHAR(10)&ScriptText!$D$1)","v":""},{"$f":"IF(OrigTable!F1951=\"\",\"\",TEXT(OrigTable!F1951,\"00\"))","v":""},{"$f":"IF(OrigTable!F1951=\"\",\"\",ScriptText!$E$1&CHAR(10)&ScriptText!$C$1)","v":""},{"$f":"IF(OrigTable!G1951=\"\",\"\",ScriptText!$B$1&CHAR(10)&ScriptText!$D$1)","v":""},{"$f":"IF(OrigTable!G1951=\"\",\"\",TEXT(OrigTable!G1951,\"00\"))","v":""},{"$f":"IF(OrigTable!G1951=\"\",\"\",ScriptText!$E$1&CHAR(10)&ScriptText!$C$1)","v":""},0]
["\n\n\n",{"$f":"IF(OrigTable!A1952=\"\",\"\",ScriptText!$B$1&CHAR(10)&ScriptText!$D$1)","v":""},{"$f":"IF(OrigTable!A1952=\"\",\"\",TEXT(OrigTable!A1952,\"00\"))","v":""},{"$f":"IF(OrigTable!A1952=\"\",\"\",ScriptText!$E$1&CHAR(10)&ScriptText!$C$1)","v":""},{"$f":"IF(OrigTable!B1952=\"\",\"\",ScriptText!$B$1&CHAR(10)&ScriptText!$D$1)","v":""},{"$f":"IF(OrigTable!B1952=\"\",\"\",TEXT(OrigTable!B1952,\"00\"))","v":""},{"$f":"IF(OrigTable!B1952=\"\",\"\",ScriptText!$E$1&CHAR(10)&ScriptText!C1947)","v":""},{"$f":"IF(OrigTable!C1952=\"\",\"\",ScriptText!$B$1&CHAR(10)&ScriptText!$D$1)","v":""},{"$f":"IF(OrigTable!C1952=\"\",\"\",IF(LEN(OrigTable!C1952)>255,LEFT(OrigTable!C1952,250)&\". . .\",OrigTable!C1952))","v":""},{"$f":"IF(OrigTable!C1952=\"\",\"\",ScriptText!$E$1&CHAR(10)&ScriptText!$C$1)","v":""},{"$f":"IF(OrigTable!D1952=\"\",\"\",ScriptText!$B$1&CHAR(10)&ScriptText!$D$1)","v":""},{"$f":"IF(OrigTable!D1952=\"\",\"\",TEXT(OrigTable!D1952,\"00\"))","v":""},{"$f":"IF(OrigTable!D1952=\"\",\"\",ScriptText!$E$1&CHAR(10)&ScriptText!$C$1)","v":""},{"$f":"IF(OrigTable!E1952=\"\",\"\",ScriptText!$B$1&CHAR(10)&ScriptText!$D$1)","v":""},{"$f":"IF(OrigTable!E1952=\"\",\"\",TEXT(OrigTable!E1952,\"00\"))","v":""},{"$f":"IF(OrigTable!E1952=\"\",\"\",ScriptText!$E$1&CHAR(10)&ScriptText!$C$1)","v":""},{"$f":"IF(OrigTable!F1952=\"\",\"\",ScriptText!$B$1&CHAR(10)&ScriptText!$D$1)","v":""},{"$f":"IF(OrigTable!F1952=\"\",\"\",TEXT(OrigTable!F1952,\"00\"))","v":""},{"$f":"IF(OrigTable!F1952=\"\",\"\",ScriptText!$E$1&CHAR(10)&ScriptText!$C$1)","v":""},{"$f":"IF(OrigTable!G1952=\"\",\"\",ScriptText!$B$1&CHAR(10)&ScriptText!$D$1)","v":""},{"$f":"IF(OrigTable!G1952=\"\",\"\",TEXT(OrigTable!G1952,\"00\"))","v":""},{"$f":"IF(OrigTable!G1952=\"\",\"\",ScriptText!$E$1&CHAR(10)&ScriptText!$C$1)","v":""},0]
["\n\n\n",{"$f":"IF(OrigTable!A1953=\"\",\"\",ScriptText!$B$1&CHAR(10)&ScriptText!$D$1)","v":""},{"$f":"IF(OrigTable!A1953=\"\",\"\",TEXT(OrigTable!A1953,\"00\"))","v":""},{"$f":"IF(OrigTable!A1953=\"\",\"\",ScriptText!$E$1&CHAR(10)&ScriptText!$C$1)","v":""},{"$f":"IF(OrigTable!B1953=\"\",\"\",ScriptText!$B$1&CHAR(10)&ScriptText!$D$1)","v":""},{"$f":"IF(OrigTable!B1953=\"\",\"\",TEXT(OrigTable!B1953,\"00\"))","v":""},{"$f":"IF(OrigTable!B1953=\"\",\"\",ScriptText!$E$1&CHAR(10)&ScriptText!C1948)","v":""},{"$f":"IF(OrigTable!C1953=\"\",\"\",ScriptText!$B$1&CHAR(10)&ScriptText!$D$1)","v":""},{"$f":"IF(OrigTable!C1953=\"\",\"\",IF(LEN(OrigTable!C1953)>255,LEFT(OrigTable!C1953,250)&\". . .\",OrigTable!C1953))","v":""},{"$f":"IF(OrigTable!C1953=\"\",\"\",ScriptText!$E$1&CHAR(10)&ScriptText!$C$1)","v":""},{"$f":"IF(OrigTable!D1953=\"\",\"\",ScriptText!$B$1&CHAR(10)&ScriptText!$D$1)","v":""},{"$f":"IF(OrigTable!D1953=\"\",\"\",TEXT(OrigTable!D1953,\"00\"))","v":""},{"$f":"IF(OrigTable!D1953=\"\",\"\",ScriptText!$E$1&CHAR(10)&ScriptText!$C$1)","v":""},{"$f":"IF(OrigTable!E1953=\"\",\"\",ScriptText!$B$1&CHAR(10)&ScriptText!$D$1)","v":""},{"$f":"IF(OrigTable!E1953=\"\",\"\",TEXT(OrigTable!E1953,\"00\"))","v":""},{"$f":"IF(OrigTable!E1953=\"\",\"\",ScriptText!$E$1&CHAR(10)&ScriptText!$C$1)","v":""},{"$f":"IF(OrigTable!F1953=\"\",\"\",ScriptText!$B$1&CHAR(10)&ScriptText!$D$1)","v":""},{"$f":"IF(OrigTable!F1953=\"\",\"\",TEXT(OrigTable!F1953,\"00\"))","v":""},{"$f":"IF(OrigTable!F1953=\"\",\"\",ScriptText!$E$1&CHAR(10)&ScriptText!$C$1)","v":""},{"$f":"IF(OrigTable!G1953=\"\",\"\",ScriptText!$B$1&CHAR(10)&ScriptText!$D$1)","v":""},{"$f":"IF(OrigTable!G1953=\"\",\"\",TEXT(OrigTable!G1953,\"00\"))","v":""},{"$f":"IF(OrigTable!G1953=\"\",\"\",ScriptText!$E$1&CHAR(10)&ScriptText!$C$1)","v":""},0]
["\n\n\n",{"$f":"IF(OrigTable!A1954=\"\",\"\",ScriptText!$B$1&CHAR(10)&ScriptText!$D$1)","v":""},{"$f":"IF(OrigTable!A1954=\"\",\"\",TEXT(OrigTable!A1954,\"00\"))","v":""},{"$f":"IF(OrigTable!A1954=\"\",\"\",ScriptText!$E$1&CHAR(10)&ScriptText!$C$1)","v":""},{"$f":"IF(OrigTable!B1954=\"\",\"\",ScriptText!$B$1&CHAR(10)&ScriptText!$D$1)","v":""},{"$f":"IF(OrigTable!B1954=\"\",\"\",TEXT(OrigTable!B1954,\"00\"))","v":""},{"$f":"IF(OrigTable!B1954=\"\",\"\",ScriptText!$E$1&CHAR(10)&ScriptText!C1949)","v":""},{"$f":"IF(OrigTable!C1954=\"\",\"\",ScriptText!$B$1&CHAR(10)&ScriptText!$D$1)","v":""},{"$f":"IF(OrigTable!C1954=\"\",\"\",IF(LEN(OrigTable!C1954)>255,LEFT(OrigTable!C1954,250)&\". . .\",OrigTable!C1954))","v":""},{"$f":"IF(OrigTable!C1954=\"\",\"\",ScriptText!$E$1&CHAR(10)&ScriptText!$C$1)","v":""},{"$f":"IF(OrigTable!D1954=\"\",\"\",ScriptText!$B$1&CHAR(10)&ScriptText!$D$1)","v":""},{"$f":"IF(OrigTable!D1954=\"\",\"\",TEXT(OrigTable!D1954,\"00\"))","v":""},{"$f":"IF(OrigTable!D1954=\"\",\"\",ScriptText!$E$1&CHAR(10)&ScriptText!$C$1)","v":""},{"$f":"IF(OrigTable!E1954=\"\",\"\",ScriptText!$B$1&CHAR(10)&ScriptText!$D$1)","v":""},{"$f":"IF(OrigTable!E1954=\"\",\"\",TEXT(OrigTable!E1954,\"00\"))","v":""},{"$f":"IF(OrigTable!E1954=\"\",\"\",ScriptText!$E$1&CHAR(10)&ScriptText!$C$1)","v":""},{"$f":"IF(OrigTable!F1954=\"\",\"\",ScriptText!$B$1&CHAR(10)&ScriptText!$D$1)","v":""},{"$f":"IF(OrigTable!F1954=\"\",\"\",TEXT(OrigTable!F1954,\"00\"))","v":""},{"$f":"IF(OrigTable!F1954=\"\",\"\",ScriptText!$E$1&CHAR(10)&ScriptText!$C$1)","v":""},{"$f":"IF(OrigTable!G1954=\"\",\"\",ScriptText!$B$1&CHAR(10)&ScriptText!$D$1)","v":""},{"$f":"IF(OrigTable!G1954=\"\",\"\",TEXT(OrigTable!G1954,\"00\"))","v":""},{"$f":"IF(OrigTable!G1954=\"\",\"\",ScriptText!$E$1&CHAR(10)&ScriptText!$C$1)","v":""},0]
["\n\n\n",{"$f":"IF(OrigTable!A1955=\"\",\"\",ScriptText!$B$1&CHAR(10)&ScriptText!$D$1)","v":""},{"$f":"IF(OrigTable!A1955=\"\",\"\",TEXT(OrigTable!A1955,\"00\"))","v":""},{"$f":"IF(OrigTable!A1955=\"\",\"\",ScriptText!$E$1&CHAR(10)&ScriptText!$C$1)","v":""},{"$f":"IF(OrigTable!B1955=\"\",\"\",ScriptText!$B$1&CHAR(10)&ScriptText!$D$1)","v":""},{"$f":"IF(OrigTable!B1955=\"\",\"\",TEXT(OrigTable!B1955,\"00\"))","v":""},{"$f":"IF(OrigTable!B1955=\"\",\"\",ScriptText!$E$1&CHAR(10)&ScriptText!C1950)","v":""},{"$f":"IF(OrigTable!C1955=\"\",\"\",ScriptText!$B$1&CHAR(10)&ScriptText!$D$1)","v":""},{"$f":"IF(OrigTable!C1955=\"\",\"\",IF(LEN(OrigTable!C1955)>255,LEFT(OrigTable!C1955,250)&\". . .\",OrigTable!C1955))","v":""},{"$f":"IF(OrigTable!C1955=\"\",\"\",ScriptText!$E$1&CHAR(10)&ScriptText!$C$1)","v":""},{"$f":"IF(OrigTable!D1955=\"\",\"\",ScriptText!$B$1&CHAR(10)&ScriptText!$D$1)","v":""},{"$f":"IF(OrigTable!D1955=\"\",\"\",TEXT(OrigTable!D1955,\"00\"))","v":""},{"$f":"IF(OrigTable!D1955=\"\",\"\",ScriptText!$E$1&CHAR(10)&ScriptText!$C$1)","v":""},{"$f":"IF(OrigTable!E1955=\"\",\"\",ScriptText!$B$1&CHAR(10)&ScriptText!$D$1)","v":""},{"$f":"IF(OrigTable!E1955=\"\",\"\",TEXT(OrigTable!E1955,\"00\"))","v":""},{"$f":"IF(OrigTable!E1955=\"\",\"\",ScriptText!$E$1&CHAR(10)&ScriptText!$C$1)","v":""},{"$f":"IF(OrigTable!F1955=\"\",\"\",ScriptText!$B$1&CHAR(10)&ScriptText!$D$1)","v":""},{"$f":"IF(OrigTable!F1955=\"\",\"\",TEXT(OrigTable!F1955,\"00\"))","v":""},{"$f":"IF(OrigTable!F1955=\"\",\"\",ScriptText!$E$1&CHAR(10)&ScriptText!$C$1)","v":""},{"$f":"IF(OrigTable!G1955=\"\",\"\",ScriptText!$B$1&CHAR(10)&ScriptText!$D$1)","v":""},{"$f":"IF(OrigTable!G1955=\"\",\"\",TEXT(OrigTable!G1955,\"00\"))","v":""},{"$f":"IF(OrigTable!G1955=\"\",\"\",ScriptText!$E$1&CHAR(10)&ScriptText!$C$1)","v":""},0]
["\n\n\n",{"$f":"IF(OrigTable!A1956=\"\",\"\",ScriptText!$B$1&CHAR(10)&ScriptText!$D$1)","v":""},{"$f":"IF(OrigTable!A1956=\"\",\"\",TEXT(OrigTable!A1956,\"00\"))","v":""},{"$f":"IF(OrigTable!A1956=\"\",\"\",ScriptText!$E$1&CHAR(10)&ScriptText!$C$1)","v":""},{"$f":"IF(OrigTable!B1956=\"\",\"\",ScriptText!$B$1&CHAR(10)&ScriptText!$D$1)","v":""},{"$f":"IF(OrigTable!B1956=\"\",\"\",TEXT(OrigTable!B1956,\"00\"))","v":""},{"$f":"IF(OrigTable!B1956=\"\",\"\",ScriptText!$E$1&CHAR(10)&ScriptText!C1951)","v":""},{"$f":"IF(OrigTable!C1956=\"\",\"\",ScriptText!$B$1&CHAR(10)&ScriptText!$D$1)","v":""},{"$f":"IF(OrigTable!C1956=\"\",\"\",IF(LEN(OrigTable!C1956)>255,LEFT(OrigTable!C1956,250)&\". . .\",OrigTable!C1956))","v":""},{"$f":"IF(OrigTable!C1956=\"\",\"\",ScriptText!$E$1&CHAR(10)&ScriptText!$C$1)","v":""},{"$f":"IF(OrigTable!D1956=\"\",\"\",ScriptText!$B$1&CHAR(10)&ScriptText!$D$1)","v":""},{"$f":"IF(OrigTable!D1956=\"\",\"\",TEXT(OrigTable!D1956,\"00\"))","v":""},{"$f":"IF(OrigTable!D1956=\"\",\"\",ScriptText!$E$1&CHAR(10)&ScriptText!$C$1)","v":""},{"$f":"IF(OrigTable!E1956=\"\",\"\",ScriptText!$B$1&CHAR(10)&ScriptText!$D$1)","v":""},{"$f":"IF(OrigTable!E1956=\"\",\"\",TEXT(OrigTable!E1956,\"00\"))","v":""},{"$f":"IF(OrigTable!E1956=\"\",\"\",ScriptText!$E$1&CHAR(10)&ScriptText!$C$1)","v":""},{"$f":"IF(OrigTable!F1956=\"\",\"\",ScriptText!$B$1&CHAR(10)&ScriptText!$D$1)","v":""},{"$f":"IF(OrigTable!F1956=\"\",\"\",TEXT(OrigTable!F1956,\"00\"))","v":""},{"$f":"IF(OrigTable!F1956=\"\",\"\",ScriptText!$E$1&CHAR(10)&ScriptText!$C$1)","v":""},{"$f":"IF(OrigTable!G1956=\"\",\"\",ScriptText!$B$1&CHAR(10)&ScriptText!$D$1)","v":""},{"$f":"IF(OrigTable!G1956=\"\",\"\",TEXT(OrigTable!G1956,\"00\"))","v":""},{"$f":"IF(OrigTable!G1956=\"\",\"\",ScriptText!$E$1&CHAR(10)&ScriptText!$C$1)","v":""},0]
["\n\n\n",{"$f":"IF(OrigTable!A1957=\"\",\"\",ScriptText!$B$1&CHAR(10)&ScriptText!$D$1)","v":""},{"$f":"IF(OrigTable!A1957=\"\",\"\",TEXT(OrigTable!A1957,\"00\"))","v":""},{"$f":"IF(OrigTable!A1957=\"\",\"\",ScriptText!$E$1&CHAR(10)&ScriptText!$C$1)","v":""},{"$f":"IF(OrigTable!B1957=\"\",\"\",ScriptText!$B$1&CHAR(10)&ScriptText!$D$1)","v":""},{"$f":"IF(OrigTable!B1957=\"\",\"\",TEXT(OrigTable!B1957,\"00\"))","v":""},{"$f":"IF(OrigTable!B1957=\"\",\"\",ScriptText!$E$1&CHAR(10)&ScriptText!C1952)","v":""},{"$f":"IF(OrigTable!C1957=\"\",\"\",ScriptText!$B$1&CHAR(10)&ScriptText!$D$1)","v":""},{"$f":"IF(OrigTable!C1957=\"\",\"\",IF(LEN(OrigTable!C1957)>255,LEFT(OrigTable!C1957,250)&\". . .\",OrigTable!C1957))","v":""},{"$f":"IF(OrigTable!C1957=\"\",\"\",ScriptText!$E$1&CHAR(10)&ScriptText!$C$1)","v":""},{"$f":"IF(OrigTable!D1957=\"\",\"\",ScriptText!$B$1&CHAR(10)&ScriptText!$D$1)","v":""},{"$f":"IF(OrigTable!D1957=\"\",\"\",TEXT(OrigTable!D1957,\"00\"))","v":""},{"$f":"IF(OrigTable!D1957=\"\",\"\",ScriptText!$E$1&CHAR(10)&ScriptText!$C$1)","v":""},{"$f":"IF(OrigTable!E1957=\"\",\"\",ScriptText!$B$1&CHAR(10)&ScriptText!$D$1)","v":""},{"$f":"IF(OrigTable!E1957=\"\",\"\",TEXT(OrigTable!E1957,\"00\"))","v":""},{"$f":"IF(OrigTable!E1957=\"\",\"\",ScriptText!$E$1&CHAR(10)&ScriptText!$C$1)","v":""},{"$f":"IF(OrigTable!F1957=\"\",\"\",ScriptText!$B$1&CHAR(10)&ScriptText!$D$1)","v":""},{"$f":"IF(OrigTable!F1957=\"\",\"\",TEXT(OrigTable!F1957,\"00\"))","v":""},{"$f":"IF(OrigTable!F1957=\"\",\"\",ScriptText!$E$1&CHAR(10)&ScriptText!$C$1)","v":""},{"$f":"IF(OrigTable!G1957=\"\",\"\",ScriptText!$B$1&CHAR(10)&ScriptText!$D$1)","v":""},{"$f":"IF(OrigTable!G1957=\"\",\"\",TEXT(OrigTable!G1957,\"00\"))","v":""},{"$f":"IF(OrigTable!G1957=\"\",\"\",ScriptText!$E$1&CHAR(10)&ScriptText!$C$1)","v":""},0]
["\n\n\n",{"$f":"IF(OrigTable!A1958=\"\",\"\",ScriptText!$B$1&CHAR(10)&ScriptText!$D$1)","v":""},{"$f":"IF(OrigTable!A1958=\"\",\"\",TEXT(OrigTable!A1958,\"00\"))","v":""},{"$f":"IF(OrigTable!A1958=\"\",\"\",ScriptText!$E$1&CHAR(10)&ScriptText!$C$1)","v":""},{"$f":"IF(OrigTable!B1958=\"\",\"\",ScriptText!$B$1&CHAR(10)&ScriptText!$D$1)","v":""},{"$f":"IF(OrigTable!B1958=\"\",\"\",TEXT(OrigTable!B1958,\"00\"))","v":""},{"$f":"IF(OrigTable!B1958=\"\",\"\",ScriptText!$E$1&CHAR(10)&ScriptText!C1953)","v":""},{"$f":"IF(OrigTable!C1958=\"\",\"\",ScriptText!$B$1&CHAR(10)&ScriptText!$D$1)","v":""},{"$f":"IF(OrigTable!C1958=\"\",\"\",IF(LEN(OrigTable!C1958)>255,LEFT(OrigTable!C1958,250)&\". . .\",OrigTable!C1958))","v":""},{"$f":"IF(OrigTable!C1958=\"\",\"\",ScriptText!$E$1&CHAR(10)&ScriptText!$C$1)","v":""},{"$f":"IF(OrigTable!D1958=\"\",\"\",ScriptText!$B$1&CHAR(10)&ScriptText!$D$1)","v":""},{"$f":"IF(OrigTable!D1958=\"\",\"\",TEXT(OrigTable!D1958,\"00\"))","v":""},{"$f":"IF(OrigTable!D1958=\"\",\"\",ScriptText!$E$1&CHAR(10)&ScriptText!$C$1)","v":""},{"$f":"IF(OrigTable!E1958=\"\",\"\",ScriptText!$B$1&CHAR(10)&ScriptText!$D$1)","v":""},{"$f":"IF(OrigTable!E1958=\"\",\"\",TEXT(OrigTable!E1958,\"00\"))","v":""},{"$f":"IF(OrigTable!E1958=\"\",\"\",ScriptText!$E$1&CHAR(10)&ScriptText!$C$1)","v":""},{"$f":"IF(OrigTable!F1958=\"\",\"\",ScriptText!$B$1&CHAR(10)&ScriptText!$D$1)","v":""},{"$f":"IF(OrigTable!F1958=\"\",\"\",TEXT(OrigTable!F1958,\"00\"))","v":""},{"$f":"IF(OrigTable!F1958=\"\",\"\",ScriptText!$E$1&CHAR(10)&ScriptText!$C$1)","v":""},{"$f":"IF(OrigTable!G1958=\"\",\"\",ScriptText!$B$1&CHAR(10)&ScriptText!$D$1)","v":""},{"$f":"IF(OrigTable!G1958=\"\",\"\",TEXT(OrigTable!G1958,\"00\"))","v":""},{"$f":"IF(OrigTable!G1958=\"\",\"\",ScriptText!$E$1&CHAR(10)&ScriptText!$C$1)","v":""},0]
["\n\n\n",{"$f":"IF(OrigTable!A1959=\"\",\"\",ScriptText!$B$1&CHAR(10)&ScriptText!$D$1)","v":""},{"$f":"IF(OrigTable!A1959=\"\",\"\",TEXT(OrigTable!A1959,\"00\"))","v":""},{"$f":"IF(OrigTable!A1959=\"\",\"\",ScriptText!$E$1&CHAR(10)&ScriptText!$C$1)","v":""},{"$f":"IF(OrigTable!B1959=\"\",\"\",ScriptText!$B$1&CHAR(10)&ScriptText!$D$1)","v":""},{"$f":"IF(OrigTable!B1959=\"\",\"\",TEXT(OrigTable!B1959,\"00\"))","v":""},{"$f":"IF(OrigTable!B1959=\"\",\"\",ScriptText!$E$1&CHAR(10)&ScriptText!C1954)","v":""},{"$f":"IF(OrigTable!C1959=\"\",\"\",ScriptText!$B$1&CHAR(10)&ScriptText!$D$1)","v":""},{"$f":"IF(OrigTable!C1959=\"\",\"\",IF(LEN(OrigTable!C1959)>255,LEFT(OrigTable!C1959,250)&\". . .\",OrigTable!C1959))","v":""},{"$f":"IF(OrigTable!C1959=\"\",\"\",ScriptText!$E$1&CHAR(10)&ScriptText!$C$1)","v":""},{"$f":"IF(OrigTable!D1959=\"\",\"\",ScriptText!$B$1&CHAR(10)&ScriptText!$D$1)","v":""},{"$f":"IF(OrigTable!D1959=\"\",\"\",TEXT(OrigTable!D1959,\"00\"))","v":""},{"$f":"IF(OrigTable!D1959=\"\",\"\",ScriptText!$E$1&CHAR(10)&ScriptText!$C$1)","v":""},{"$f":"IF(OrigTable!E1959=\"\",\"\",ScriptText!$B$1&CHAR(10)&ScriptText!$D$1)","v":""},{"$f":"IF(OrigTable!E1959=\"\",\"\",TEXT(OrigTable!E1959,\"00\"))","v":""},{"$f":"IF(OrigTable!E1959=\"\",\"\",ScriptText!$E$1&CHAR(10)&ScriptText!$C$1)","v":""},{"$f":"IF(OrigTable!F1959=\"\",\"\",ScriptText!$B$1&CHAR(10)&ScriptText!$D$1)","v":""},{"$f":"IF(OrigTable!F1959=\"\",\"\",TEXT(OrigTable!F1959,\"00\"))","v":""},{"$f":"IF(OrigTable!F1959=\"\",\"\",ScriptText!$E$1&CHAR(10)&ScriptText!$C$1)","v":""},{"$f":"IF(OrigTable!G1959=\"\",\"\",ScriptText!$B$1&CHAR(10)&ScriptText!$D$1)","v":""},{"$f":"IF(OrigTable!G1959=\"\",\"\",TEXT(OrigTable!G1959,\"00\"))","v":""},{"$f":"IF(OrigTable!G1959=\"\",\"\",ScriptText!$E$1&CHAR(10)&ScriptText!$C$1)","v":""},0]
["\n\n\n",{"$f":"IF(OrigTable!A1960=\"\",\"\",ScriptText!$B$1&CHAR(10)&ScriptText!$D$1)","v":""},{"$f":"IF(OrigTable!A1960=\"\",\"\",TEXT(OrigTable!A1960,\"00\"))","v":""},{"$f":"IF(OrigTable!A1960=\"\",\"\",ScriptText!$E$1&CHAR(10)&ScriptText!$C$1)","v":""},{"$f":"IF(OrigTable!B1960=\"\",\"\",ScriptText!$B$1&CHAR(10)&ScriptText!$D$1)","v":""},{"$f":"IF(OrigTable!B1960=\"\",\"\",TEXT(OrigTable!B1960,\"00\"))","v":""},{"$f":"IF(OrigTable!B1960=\"\",\"\",ScriptText!$E$1&CHAR(10)&ScriptText!C1955)","v":""},{"$f":"IF(OrigTable!C1960=\"\",\"\",ScriptText!$B$1&CHAR(10)&ScriptText!$D$1)","v":""},{"$f":"IF(OrigTable!C1960=\"\",\"\",IF(LEN(OrigTable!C1960)>255,LEFT(OrigTable!C1960,250)&\". . .\",OrigTable!C1960))","v":""},{"$f":"IF(OrigTable!C1960=\"\",\"\",ScriptText!$E$1&CHAR(10)&ScriptText!$C$1)","v":""},{"$f":"IF(OrigTable!D1960=\"\",\"\",ScriptText!$B$1&CHAR(10)&ScriptText!$D$1)","v":""},{"$f":"IF(OrigTable!D1960=\"\",\"\",TEXT(OrigTable!D1960,\"00\"))","v":""},{"$f":"IF(OrigTable!D1960=\"\",\"\",ScriptText!$E$1&CHAR(10)&ScriptText!$C$1)","v":""},{"$f":"IF(OrigTable!E1960=\"\",\"\",ScriptText!$B$1&CHAR(10)&ScriptText!$D$1)","v":""},{"$f":"IF(OrigTable!E1960=\"\",\"\",TEXT(OrigTable!E1960,\"00\"))","v":""},{"$f":"IF(OrigTable!E1960=\"\",\"\",ScriptText!$E$1&CHAR(10)&ScriptText!$C$1)","v":""},{"$f":"IF(OrigTable!F1960=\"\",\"\",ScriptText!$B$1&CHAR(10)&ScriptText!$D$1)","v":""},{"$f":"IF(OrigTable!F1960=\"\",\"\",TEXT(OrigTable!F1960,\"00\"))","v":""},{"$f":"IF(OrigTable!F1960=\"\",\"\",ScriptText!$E$1&CHAR(10)&ScriptText!$C$1)","v":""},{"$f":"IF(OrigTable!G1960=\"\",\"\",ScriptText!$B$1&CHAR(10)&ScriptText!$D$1)","v":""},{"$f":"IF(OrigTable!G1960=\"\",\"\",TEXT(OrigTable!G1960,\"00\"))","v":""},{"$f":"IF(OrigTable!G1960=\"\",\"\",ScriptText!$E$1&CHAR(10)&ScriptText!$C$1)","v":""},0]
["\n\n\n",{"$f":"IF(OrigTable!A1961=\"\",\"\",ScriptText!$B$1&CHAR(10)&ScriptText!$D$1)","v":""},{"$f":"IF(OrigTable!A1961=\"\",\"\",TEXT(OrigTable!A1961,\"00\"))","v":""},{"$f":"IF(OrigTable!A1961=\"\",\"\",ScriptText!$E$1&CHAR(10)&ScriptText!$C$1)","v":""},{"$f":"IF(OrigTable!B1961=\"\",\"\",ScriptText!$B$1&CHAR(10)&ScriptText!$D$1)","v":""},{"$f":"IF(OrigTable!B1961=\"\",\"\",TEXT(OrigTable!B1961,\"00\"))","v":""},{"$f":"IF(OrigTable!B1961=\"\",\"\",ScriptText!$E$1&CHAR(10)&ScriptText!C1956)","v":""},{"$f":"IF(OrigTable!C1961=\"\",\"\",ScriptText!$B$1&CHAR(10)&ScriptText!$D$1)","v":""},{"$f":"IF(OrigTable!C1961=\"\",\"\",IF(LEN(OrigTable!C1961)>255,LEFT(OrigTable!C1961,250)&\". . .\",OrigTable!C1961))","v":""},{"$f":"IF(OrigTable!C1961=\"\",\"\",ScriptText!$E$1&CHAR(10)&ScriptText!$C$1)","v":""},{"$f":"IF(OrigTable!D1961=\"\",\"\",ScriptText!$B$1&CHAR(10)&ScriptText!$D$1)","v":""},{"$f":"IF(OrigTable!D1961=\"\",\"\",TEXT(OrigTable!D1961,\"00\"))","v":""},{"$f":"IF(OrigTable!D1961=\"\",\"\",ScriptText!$E$1&CHAR(10)&ScriptText!$C$1)","v":""},{"$f":"IF(OrigTable!E1961=\"\",\"\",ScriptText!$B$1&CHAR(10)&ScriptText!$D$1)","v":""},{"$f":"IF(OrigTable!E1961=\"\",\"\",TEXT(OrigTable!E1961,\"00\"))","v":""},{"$f":"IF(OrigTable!E1961=\"\",\"\",ScriptText!$E$1&CHAR(10)&ScriptText!$C$1)","v":""},{"$f":"IF(OrigTable!F1961=\"\",\"\",ScriptText!$B$1&CHAR(10)&ScriptText!$D$1)","v":""},{"$f":"IF(OrigTable!F1961=\"\",\"\",TEXT(OrigTable!F1961,\"00\"))","v":""},{"$f":"IF(OrigTable!F1961=\"\",\"\",ScriptText!$E$1&CHAR(10)&ScriptText!$C$1)","v":""},{"$f":"IF(OrigTable!G1961=\"\",\"\",ScriptText!$B$1&CHAR(10)&ScriptText!$D$1)","v":""},{"$f":"IF(OrigTable!G1961=\"\",\"\",TEXT(OrigTable!G1961,\"00\"))","v":""},{"$f":"IF(OrigTable!G1961=\"\",\"\",ScriptText!$E$1&CHAR(10)&ScriptText!$C$1)","v":""},0]
["\n\n\n",{"$f":"IF(OrigTable!A1962=\"\",\"\",ScriptText!$B$1&CHAR(10)&ScriptText!$D$1)","v":""},{"$f":"IF(OrigTable!A1962=\"\",\"\",TEXT(OrigTable!A1962,\"00\"))","v":""},{"$f":"IF(OrigTable!A1962=\"\",\"\",ScriptText!$E$1&CHAR(10)&ScriptText!$C$1)","v":""},{"$f":"IF(OrigTable!B1962=\"\",\"\",ScriptText!$B$1&CHAR(10)&ScriptText!$D$1)","v":""},{"$f":"IF(OrigTable!B1962=\"\",\"\",TEXT(OrigTable!B1962,\"00\"))","v":""},{"$f":"IF(OrigTable!B1962=\"\",\"\",ScriptText!$E$1&CHAR(10)&ScriptText!C1957)","v":""},{"$f":"IF(OrigTable!C1962=\"\",\"\",ScriptText!$B$1&CHAR(10)&ScriptText!$D$1)","v":""},{"$f":"IF(OrigTable!C1962=\"\",\"\",IF(LEN(OrigTable!C1962)>255,LEFT(OrigTable!C1962,250)&\". . .\",OrigTable!C1962))","v":""},{"$f":"IF(OrigTable!C1962=\"\",\"\",ScriptText!$E$1&CHAR(10)&ScriptText!$C$1)","v":""},{"$f":"IF(OrigTable!D1962=\"\",\"\",ScriptText!$B$1&CHAR(10)&ScriptText!$D$1)","v":""},{"$f":"IF(OrigTable!D1962=\"\",\"\",TEXT(OrigTable!D1962,\"00\"))","v":""},{"$f":"IF(OrigTable!D1962=\"\",\"\",ScriptText!$E$1&CHAR(10)&ScriptText!$C$1)","v":""},{"$f":"IF(OrigTable!E1962=\"\",\"\",ScriptText!$B$1&CHAR(10)&ScriptText!$D$1)","v":""},{"$f":"IF(OrigTable!E1962=\"\",\"\",TEXT(OrigTable!E1962,\"00\"))","v":""},{"$f":"IF(OrigTable!E1962=\"\",\"\",ScriptText!$E$1&CHAR(10)&ScriptText!$C$1)","v":""},{"$f":"IF(OrigTable!F1962=\"\",\"\",ScriptText!$B$1&CHAR(10)&ScriptText!$D$1)","v":""},{"$f":"IF(OrigTable!F1962=\"\",\"\",TEXT(OrigTable!F1962,\"00\"))","v":""},{"$f":"IF(OrigTable!F1962=\"\",\"\",ScriptText!$E$1&CHAR(10)&ScriptText!$C$1)","v":""},{"$f":"IF(OrigTable!G1962=\"\",\"\",ScriptText!$B$1&CHAR(10)&ScriptText!$D$1)","v":""},{"$f":"IF(OrigTable!G1962=\"\",\"\",TEXT(OrigTable!G1962,\"00\"))","v":""},{"$f":"IF(OrigTable!G1962=\"\",\"\",ScriptText!$E$1&CHAR(10)&ScriptText!$C$1)","v":""},0]
["\n\n\n",{"$f":"IF(OrigTable!A1963=\"\",\"\",ScriptText!$B$1&CHAR(10)&ScriptText!$D$1)","v":""},{"$f":"IF(OrigTable!A1963=\"\",\"\",TEXT(OrigTable!A1963,\"00\"))","v":""},{"$f":"IF(OrigTable!A1963=\"\",\"\",ScriptText!$E$1&CHAR(10)&ScriptText!$C$1)","v":""},{"$f":"IF(OrigTable!B1963=\"\",\"\",ScriptText!$B$1&CHAR(10)&ScriptText!$D$1)","v":""},{"$f":"IF(OrigTable!B1963=\"\",\"\",TEXT(OrigTable!B1963,\"00\"))","v":""},{"$f":"IF(OrigTable!B1963=\"\",\"\",ScriptText!$E$1&CHAR(10)&ScriptText!C1958)","v":""},{"$f":"IF(OrigTable!C1963=\"\",\"\",ScriptText!$B$1&CHAR(10)&ScriptText!$D$1)","v":""},{"$f":"IF(OrigTable!C1963=\"\",\"\",IF(LEN(OrigTable!C1963)>255,LEFT(OrigTable!C1963,250)&\". . .\",OrigTable!C1963))","v":""},{"$f":"IF(OrigTable!C1963=\"\",\"\",ScriptText!$E$1&CHAR(10)&ScriptText!$C$1)","v":""},{"$f":"IF(OrigTable!D1963=\"\",\"\",ScriptText!$B$1&CHAR(10)&ScriptText!$D$1)","v":""},{"$f":"IF(OrigTable!D1963=\"\",\"\",TEXT(OrigTable!D1963,\"00\"))","v":""},{"$f":"IF(OrigTable!D1963=\"\",\"\",ScriptText!$E$1&CHAR(10)&ScriptText!$C$1)","v":""},{"$f":"IF(OrigTable!E1963=\"\",\"\",ScriptText!$B$1&CHAR(10)&ScriptText!$D$1)","v":""},{"$f":"IF(OrigTable!E1963=\"\",\"\",TEXT(OrigTable!E1963,\"00\"))","v":""},{"$f":"IF(OrigTable!E1963=\"\",\"\",ScriptText!$E$1&CHAR(10)&ScriptText!$C$1)","v":""},{"$f":"IF(OrigTable!F1963=\"\",\"\",ScriptText!$B$1&CHAR(10)&ScriptText!$D$1)","v":""},{"$f":"IF(OrigTable!F1963=\"\",\"\",TEXT(OrigTable!F1963,\"00\"))","v":""},{"$f":"IF(OrigTable!F1963=\"\",\"\",ScriptText!$E$1&CHAR(10)&ScriptText!$C$1)","v":""},{"$f":"IF(OrigTable!G1963=\"\",\"\",ScriptText!$B$1&CHAR(10)&ScriptText!$D$1)","v":""},{"$f":"IF(OrigTable!G1963=\"\",\"\",TEXT(OrigTable!G1963,\"00\"))","v":""},{"$f":"IF(OrigTable!G1963=\"\",\"\",ScriptText!$E$1&CHAR(10)&ScriptText!$C$1)","v":""},0]
["\n\n\n",{"$f":"IF(OrigTable!A1964=\"\",\"\",ScriptText!$B$1&CHAR(10)&ScriptText!$D$1)","v":""},{"$f":"IF(OrigTable!A1964=\"\",\"\",TEXT(OrigTable!A1964,\"00\"))","v":""},{"$f":"IF(OrigTable!A1964=\"\",\"\",ScriptText!$E$1&CHAR(10)&ScriptText!$C$1)","v":""},{"$f":"IF(OrigTable!B1964=\"\",\"\",ScriptText!$B$1&CHAR(10)&ScriptText!$D$1)","v":""},{"$f":"IF(OrigTable!B1964=\"\",\"\",TEXT(OrigTable!B1964,\"00\"))","v":""},{"$f":"IF(OrigTable!B1964=\"\",\"\",ScriptText!$E$1&CHAR(10)&ScriptText!C1959)","v":""},{"$f":"IF(OrigTable!C1964=\"\",\"\",ScriptText!$B$1&CHAR(10)&ScriptText!$D$1)","v":""},{"$f":"IF(OrigTable!C1964=\"\",\"\",IF(LEN(OrigTable!C1964)>255,LEFT(OrigTable!C1964,250)&\". . .\",OrigTable!C1964))","v":""},{"$f":"IF(OrigTable!C1964=\"\",\"\",ScriptText!$E$1&CHAR(10)&ScriptText!$C$1)","v":""},{"$f":"IF(OrigTable!D1964=\"\",\"\",ScriptText!$B$1&CHAR(10)&ScriptText!$D$1)","v":""},{"$f":"IF(OrigTable!D1964=\"\",\"\",TEXT(OrigTable!D1964,\"00\"))","v":""},{"$f":"IF(OrigTable!D1964=\"\",\"\",ScriptText!$E$1&CHAR(10)&ScriptText!$C$1)","v":""},{"$f":"IF(OrigTable!E1964=\"\",\"\",ScriptText!$B$1&CHAR(10)&ScriptText!$D$1)","v":""},{"$f":"IF(OrigTable!E1964=\"\",\"\",TEXT(OrigTable!E1964,\"00\"))","v":""},{"$f":"IF(OrigTable!E1964=\"\",\"\",ScriptText!$E$1&CHAR(10)&ScriptText!$C$1)","v":""},{"$f":"IF(OrigTable!F1964=\"\",\"\",ScriptText!$B$1&CHAR(10)&ScriptText!$D$1)","v":""},{"$f":"IF(OrigTable!F1964=\"\",\"\",TEXT(OrigTable!F1964,\"00\"))","v":""},{"$f":"IF(OrigTable!F1964=\"\",\"\",ScriptText!$E$1&CHAR(10)&ScriptText!$C$1)","v":""},{"$f":"IF(OrigTable!G1964=\"\",\"\",ScriptText!$B$1&CHAR(10)&ScriptText!$D$1)","v":""},{"$f":"IF(OrigTable!G1964=\"\",\"\",TEXT(OrigTable!G1964,\"00\"))","v":""},{"$f":"IF(OrigTable!G1964=\"\",\"\",ScriptText!$E$1&CHAR(10)&ScriptText!$C$1)","v":""},0]
["\n\n\n",{"$f":"IF(OrigTable!A1965=\"\",\"\",ScriptText!$B$1&CHAR(10)&ScriptText!$D$1)","v":""},{"$f":"IF(OrigTable!A1965=\"\",\"\",TEXT(OrigTable!A1965,\"00\"))","v":""},{"$f":"IF(OrigTable!A1965=\"\",\"\",ScriptText!$E$1&CHAR(10)&ScriptText!$C$1)","v":""},{"$f":"IF(OrigTable!B1965=\"\",\"\",ScriptText!$B$1&CHAR(10)&ScriptText!$D$1)","v":""},{"$f":"IF(OrigTable!B1965=\"\",\"\",TEXT(OrigTable!B1965,\"00\"))","v":""},{"$f":"IF(OrigTable!B1965=\"\",\"\",ScriptText!$E$1&CHAR(10)&ScriptText!C1960)","v":""},{"$f":"IF(OrigTable!C1965=\"\",\"\",ScriptText!$B$1&CHAR(10)&ScriptText!$D$1)","v":""},{"$f":"IF(OrigTable!C1965=\"\",\"\",IF(LEN(OrigTable!C1965)>255,LEFT(OrigTable!C1965,250)&\". . .\",OrigTable!C1965))","v":""},{"$f":"IF(OrigTable!C1965=\"\",\"\",ScriptText!$E$1&CHAR(10)&ScriptText!$C$1)","v":""},{"$f":"IF(OrigTable!D1965=\"\",\"\",ScriptText!$B$1&CHAR(10)&ScriptText!$D$1)","v":""},{"$f":"IF(OrigTable!D1965=\"\",\"\",TEXT(OrigTable!D1965,\"00\"))","v":""},{"$f":"IF(OrigTable!D1965=\"\",\"\",ScriptText!$E$1&CHAR(10)&ScriptText!$C$1)","v":""},{"$f":"IF(OrigTable!E1965=\"\",\"\",ScriptText!$B$1&CHAR(10)&ScriptText!$D$1)","v":""},{"$f":"IF(OrigTable!E1965=\"\",\"\",TEXT(OrigTable!E1965,\"00\"))","v":""},{"$f":"IF(OrigTable!E1965=\"\",\"\",ScriptText!$E$1&CHAR(10)&ScriptText!$C$1)","v":""},{"$f":"IF(OrigTable!F1965=\"\",\"\",ScriptText!$B$1&CHAR(10)&ScriptText!$D$1)","v":""},{"$f":"IF(OrigTable!F1965=\"\",\"\",TEXT(OrigTable!F1965,\"00\"))","v":""},{"$f":"IF(OrigTable!F1965=\"\",\"\",ScriptText!$E$1&CHAR(10)&ScriptText!$C$1)","v":""},{"$f":"IF(OrigTable!G1965=\"\",\"\",ScriptText!$B$1&CHAR(10)&ScriptText!$D$1)","v":""},{"$f":"IF(OrigTable!G1965=\"\",\"\",TEXT(OrigTable!G1965,\"00\"))","v":""},{"$f":"IF(OrigTable!G1965=\"\",\"\",ScriptText!$E$1&CHAR(10)&ScriptText!$C$1)","v":""},0]
["\n\n\n",{"$f":"IF(OrigTable!A1966=\"\",\"\",ScriptText!$B$1&CHAR(10)&ScriptText!$D$1)","v":""},{"$f":"IF(OrigTable!A1966=\"\",\"\",TEXT(OrigTable!A1966,\"00\"))","v":""},{"$f":"IF(OrigTable!A1966=\"\",\"\",ScriptText!$E$1&CHAR(10)&ScriptText!$C$1)","v":""},{"$f":"IF(OrigTable!B1966=\"\",\"\",ScriptText!$B$1&CHAR(10)&ScriptText!$D$1)","v":""},{"$f":"IF(OrigTable!B1966=\"\",\"\",TEXT(OrigTable!B1966,\"00\"))","v":""},{"$f":"IF(OrigTable!B1966=\"\",\"\",ScriptText!$E$1&CHAR(10)&ScriptText!C1961)","v":""},{"$f":"IF(OrigTable!C1966=\"\",\"\",ScriptText!$B$1&CHAR(10)&ScriptText!$D$1)","v":""},{"$f":"IF(OrigTable!C1966=\"\",\"\",IF(LEN(OrigTable!C1966)>255,LEFT(OrigTable!C1966,250)&\". . .\",OrigTable!C1966))","v":""},{"$f":"IF(OrigTable!C1966=\"\",\"\",ScriptText!$E$1&CHAR(10)&ScriptText!$C$1)","v":""},{"$f":"IF(OrigTable!D1966=\"\",\"\",ScriptText!$B$1&CHAR(10)&ScriptText!$D$1)","v":""},{"$f":"IF(OrigTable!D1966=\"\",\"\",TEXT(OrigTable!D1966,\"00\"))","v":""},{"$f":"IF(OrigTable!D1966=\"\",\"\",ScriptText!$E$1&CHAR(10)&ScriptText!$C$1)","v":""},{"$f":"IF(OrigTable!E1966=\"\",\"\",ScriptText!$B$1&CHAR(10)&ScriptText!$D$1)","v":""},{"$f":"IF(OrigTable!E1966=\"\",\"\",TEXT(OrigTable!E1966,\"00\"))","v":""},{"$f":"IF(OrigTable!E1966=\"\",\"\",ScriptText!$E$1&CHAR(10)&ScriptText!$C$1)","v":""},{"$f":"IF(OrigTable!F1966=\"\",\"\",ScriptText!$B$1&CHAR(10)&ScriptText!$D$1)","v":""},{"$f":"IF(OrigTable!F1966=\"\",\"\",TEXT(OrigTable!F1966,\"00\"))","v":""},{"$f":"IF(OrigTable!F1966=\"\",\"\",ScriptText!$E$1&CHAR(10)&ScriptText!$C$1)","v":""},{"$f":"IF(OrigTable!G1966=\"\",\"\",ScriptText!$B$1&CHAR(10)&ScriptText!$D$1)","v":""},{"$f":"IF(OrigTable!G1966=\"\",\"\",TEXT(OrigTable!G1966,\"00\"))","v":""},{"$f":"IF(OrigTable!G1966=\"\",\"\",ScriptText!$E$1&CHAR(10)&ScriptText!$C$1)","v":""},0]
["\n\n\n",{"$f":"IF(OrigTable!A1967=\"\",\"\",ScriptText!$B$1&CHAR(10)&ScriptText!$D$1)","v":""},{"$f":"IF(OrigTable!A1967=\"\",\"\",TEXT(OrigTable!A1967,\"00\"))","v":""},{"$f":"IF(OrigTable!A1967=\"\",\"\",ScriptText!$E$1&CHAR(10)&ScriptText!$C$1)","v":""},{"$f":"IF(OrigTable!B1967=\"\",\"\",ScriptText!$B$1&CHAR(10)&ScriptText!$D$1)","v":""},{"$f":"IF(OrigTable!B1967=\"\",\"\",TEXT(OrigTable!B1967,\"00\"))","v":""},{"$f":"IF(OrigTable!B1967=\"\",\"\",ScriptText!$E$1&CHAR(10)&ScriptText!C1962)","v":""},{"$f":"IF(OrigTable!C1967=\"\",\"\",ScriptText!$B$1&CHAR(10)&ScriptText!$D$1)","v":""},{"$f":"IF(OrigTable!C1967=\"\",\"\",IF(LEN(OrigTable!C1967)>255,LEFT(OrigTable!C1967,250)&\". . .\",OrigTable!C1967))","v":""},{"$f":"IF(OrigTable!C1967=\"\",\"\",ScriptText!$E$1&CHAR(10)&ScriptText!$C$1)","v":""},{"$f":"IF(OrigTable!D1967=\"\",\"\",ScriptText!$B$1&CHAR(10)&ScriptText!$D$1)","v":""},{"$f":"IF(OrigTable!D1967=\"\",\"\",TEXT(OrigTable!D1967,\"00\"))","v":""},{"$f":"IF(OrigTable!D1967=\"\",\"\",ScriptText!$E$1&CHAR(10)&ScriptText!$C$1)","v":""},{"$f":"IF(OrigTable!E1967=\"\",\"\",ScriptText!$B$1&CHAR(10)&ScriptText!$D$1)","v":""},{"$f":"IF(OrigTable!E1967=\"\",\"\",TEXT(OrigTable!E1967,\"00\"))","v":""},{"$f":"IF(OrigTable!E1967=\"\",\"\",ScriptText!$E$1&CHAR(10)&ScriptText!$C$1)","v":""},{"$f":"IF(OrigTable!F1967=\"\",\"\",ScriptText!$B$1&CHAR(10)&ScriptText!$D$1)","v":""},{"$f":"IF(OrigTable!F1967=\"\",\"\",TEXT(OrigTable!F1967,\"00\"))","v":""},{"$f":"IF(OrigTable!F1967=\"\",\"\",ScriptText!$E$1&CHAR(10)&ScriptText!$C$1)","v":""},{"$f":"IF(OrigTable!G1967=\"\",\"\",ScriptText!$B$1&CHAR(10)&ScriptText!$D$1)","v":""},{"$f":"IF(OrigTable!G1967=\"\",\"\",TEXT(OrigTable!G1967,\"00\"))","v":""},{"$f":"IF(OrigTable!G1967=\"\",\"\",ScriptText!$E$1&CHAR(10)&ScriptText!$C$1)","v":""},0]
["\n\n\n",{"$f":"IF(OrigTable!A1968=\"\",\"\",ScriptText!$B$1&CHAR(10)&ScriptText!$D$1)","v":""},{"$f":"IF(OrigTable!A1968=\"\",\"\",TEXT(OrigTable!A1968,\"00\"))","v":""},{"$f":"IF(OrigTable!A1968=\"\",\"\",ScriptText!$E$1&CHAR(10)&ScriptText!$C$1)","v":""},{"$f":"IF(OrigTable!B1968=\"\",\"\",ScriptText!$B$1&CHAR(10)&ScriptText!$D$1)","v":""},{"$f":"IF(OrigTable!B1968=\"\",\"\",TEXT(OrigTable!B1968,\"00\"))","v":""},{"$f":"IF(OrigTable!B1968=\"\",\"\",ScriptText!$E$1&CHAR(10)&ScriptText!C1963)","v":""},{"$f":"IF(OrigTable!C1968=\"\",\"\",ScriptText!$B$1&CHAR(10)&ScriptText!$D$1)","v":""},{"$f":"IF(OrigTable!C1968=\"\",\"\",IF(LEN(OrigTable!C1968)>255,LEFT(OrigTable!C1968,250)&\". . .\",OrigTable!C1968))","v":""},{"$f":"IF(OrigTable!C1968=\"\",\"\",ScriptText!$E$1&CHAR(10)&ScriptText!$C$1)","v":""},{"$f":"IF(OrigTable!D1968=\"\",\"\",ScriptText!$B$1&CHAR(10)&ScriptText!$D$1)","v":""},{"$f":"IF(OrigTable!D1968=\"\",\"\",TEXT(OrigTable!D1968,\"00\"))","v":""},{"$f":"IF(OrigTable!D1968=\"\",\"\",ScriptText!$E$1&CHAR(10)&ScriptText!$C$1)","v":""},{"$f":"IF(OrigTable!E1968=\"\",\"\",ScriptText!$B$1&CHAR(10)&ScriptText!$D$1)","v":""},{"$f":"IF(OrigTable!E1968=\"\",\"\",TEXT(OrigTable!E1968,\"00\"))","v":""},{"$f":"IF(OrigTable!E1968=\"\",\"\",ScriptText!$E$1&CHAR(10)&ScriptText!$C$1)","v":""},{"$f":"IF(OrigTable!F1968=\"\",\"\",ScriptText!$B$1&CHAR(10)&ScriptText!$D$1)","v":""},{"$f":"IF(OrigTable!F1968=\"\",\"\",TEXT(OrigTable!F1968,\"00\"))","v":""},{"$f":"IF(OrigTable!F1968=\"\",\"\",ScriptText!$E$1&CHAR(10)&ScriptText!$C$1)","v":""},{"$f":"IF(OrigTable!G1968=\"\",\"\",ScriptText!$B$1&CHAR(10)&ScriptText!$D$1)","v":""},{"$f":"IF(OrigTable!G1968=\"\",\"\",TEXT(OrigTable!G1968,\"00\"))","v":""},{"$f":"IF(OrigTable!G1968=\"\",\"\",ScriptText!$E$1&CHAR(10)&ScriptText!$C$1)","v":""},0]
["\n\n\n",{"$f":"IF(OrigTable!A1969=\"\",\"\",ScriptText!$B$1&CHAR(10)&ScriptText!$D$1)","v":""},{"$f":"IF(OrigTable!A1969=\"\",\"\",TEXT(OrigTable!A1969,\"00\"))","v":""},{"$f":"IF(OrigTable!A1969=\"\",\"\",ScriptText!$E$1&CHAR(10)&ScriptText!$C$1)","v":""},{"$f":"IF(OrigTable!B1969=\"\",\"\",ScriptText!$B$1&CHAR(10)&ScriptText!$D$1)","v":""},{"$f":"IF(OrigTable!B1969=\"\",\"\",TEXT(OrigTable!B1969,\"00\"))","v":""},{"$f":"IF(OrigTable!B1969=\"\",\"\",ScriptText!$E$1&CHAR(10)&ScriptText!C1964)","v":""},{"$f":"IF(OrigTable!C1969=\"\",\"\",ScriptText!$B$1&CHAR(10)&ScriptText!$D$1)","v":""},{"$f":"IF(OrigTable!C1969=\"\",\"\",IF(LEN(OrigTable!C1969)>255,LEFT(OrigTable!C1969,250)&\". . .\",OrigTable!C1969))","v":""},{"$f":"IF(OrigTable!C1969=\"\",\"\",ScriptText!$E$1&CHAR(10)&ScriptText!$C$1)","v":""},{"$f":"IF(OrigTable!D1969=\"\",\"\",ScriptText!$B$1&CHAR(10)&ScriptText!$D$1)","v":""},{"$f":"IF(OrigTable!D1969=\"\",\"\",TEXT(OrigTable!D1969,\"00\"))","v":""},{"$f":"IF(OrigTable!D1969=\"\",\"\",ScriptText!$E$1&CHAR(10)&ScriptText!$C$1)","v":""},{"$f":"IF(OrigTable!E1969=\"\",\"\",ScriptText!$B$1&CHAR(10)&ScriptText!$D$1)","v":""},{"$f":"IF(OrigTable!E1969=\"\",\"\",TEXT(OrigTable!E1969,\"00\"))","v":""},{"$f":"IF(OrigTable!E1969=\"\",\"\",ScriptText!$E$1&CHAR(10)&ScriptText!$C$1)","v":""},{"$f":"IF(OrigTable!F1969=\"\",\"\",ScriptText!$B$1&CHAR(10)&ScriptText!$D$1)","v":""},{"$f":"IF(OrigTable!F1969=\"\",\"\",TEXT(OrigTable!F1969,\"00\"))","v":""},{"$f":"IF(OrigTable!F1969=\"\",\"\",ScriptText!$E$1&CHAR(10)&ScriptText!$C$1)","v":""},{"$f":"IF(OrigTable!G1969=\"\",\"\",ScriptText!$B$1&CHAR(10)&ScriptText!$D$1)","v":""},{"$f":"IF(OrigTable!G1969=\"\",\"\",TEXT(OrigTable!G1969,\"00\"))","v":""},{"$f":"IF(OrigTable!G1969=\"\",\"\",ScriptText!$E$1&CHAR(10)&ScriptText!$C$1)","v":""},0]
["\n\n\n",{"$f":"IF(OrigTable!A1970=\"\",\"\",ScriptText!$B$1&CHAR(10)&ScriptText!$D$1)","v":""},{"$f":"IF(OrigTable!A1970=\"\",\"\",TEXT(OrigTable!A1970,\"00\"))","v":""},{"$f":"IF(OrigTable!A1970=\"\",\"\",ScriptText!$E$1&CHAR(10)&ScriptText!$C$1)","v":""},{"$f":"IF(OrigTable!B1970=\"\",\"\",ScriptText!$B$1&CHAR(10)&ScriptText!$D$1)","v":""},{"$f":"IF(OrigTable!B1970=\"\",\"\",TEXT(OrigTable!B1970,\"00\"))","v":""},{"$f":"IF(OrigTable!B1970=\"\",\"\",ScriptText!$E$1&CHAR(10)&ScriptText!C1965)","v":""},{"$f":"IF(OrigTable!C1970=\"\",\"\",ScriptText!$B$1&CHAR(10)&ScriptText!$D$1)","v":""},{"$f":"IF(OrigTable!C1970=\"\",\"\",IF(LEN(OrigTable!C1970)>255,LEFT(OrigTable!C1970,250)&\". . .\",OrigTable!C1970))","v":""},{"$f":"IF(OrigTable!C1970=\"\",\"\",ScriptText!$E$1&CHAR(10)&ScriptText!$C$1)","v":""},{"$f":"IF(OrigTable!D1970=\"\",\"\",ScriptText!$B$1&CHAR(10)&ScriptText!$D$1)","v":""},{"$f":"IF(OrigTable!D1970=\"\",\"\",TEXT(OrigTable!D1970,\"00\"))","v":""},{"$f":"IF(OrigTable!D1970=\"\",\"\",ScriptText!$E$1&CHAR(10)&ScriptText!$C$1)","v":""},{"$f":"IF(OrigTable!E1970=\"\",\"\",ScriptText!$B$1&CHAR(10)&ScriptText!$D$1)","v":""},{"$f":"IF(OrigTable!E1970=\"\",\"\",TEXT(OrigTable!E1970,\"00\"))","v":""},{"$f":"IF(OrigTable!E1970=\"\",\"\",ScriptText!$E$1&CHAR(10)&ScriptText!$C$1)","v":""},{"$f":"IF(OrigTable!F1970=\"\",\"\",ScriptText!$B$1&CHAR(10)&ScriptText!$D$1)","v":""},{"$f":"IF(OrigTable!F1970=\"\",\"\",TEXT(OrigTable!F1970,\"00\"))","v":""},{"$f":"IF(OrigTable!F1970=\"\",\"\",ScriptText!$E$1&CHAR(10)&ScriptText!$C$1)","v":""},{"$f":"IF(OrigTable!G1970=\"\",\"\",ScriptText!$B$1&CHAR(10)&ScriptText!$D$1)","v":""},{"$f":"IF(OrigTable!G1970=\"\",\"\",TEXT(OrigTable!G1970,\"00\"))","v":""},{"$f":"IF(OrigTable!G1970=\"\",\"\",ScriptText!$E$1&CHAR(10)&ScriptText!$C$1)","v":""},0]
["\n\n\n",{"$f":"IF(OrigTable!A1971=\"\",\"\",ScriptText!$B$1&CHAR(10)&ScriptText!$D$1)","v":""},{"$f":"IF(OrigTable!A1971=\"\",\"\",TEXT(OrigTable!A1971,\"00\"))","v":""},{"$f":"IF(OrigTable!A1971=\"\",\"\",ScriptText!$E$1&CHAR(10)&ScriptText!$C$1)","v":""},{"$f":"IF(OrigTable!B1971=\"\",\"\",ScriptText!$B$1&CHAR(10)&ScriptText!$D$1)","v":""},{"$f":"IF(OrigTable!B1971=\"\",\"\",TEXT(OrigTable!B1971,\"00\"))","v":""},{"$f":"IF(OrigTable!B1971=\"\",\"\",ScriptText!$E$1&CHAR(10)&ScriptText!C1966)","v":""},{"$f":"IF(OrigTable!C1971=\"\",\"\",ScriptText!$B$1&CHAR(10)&ScriptText!$D$1)","v":""},{"$f":"IF(OrigTable!C1971=\"\",\"\",IF(LEN(OrigTable!C1971)>255,LEFT(OrigTable!C1971,250)&\". . .\",OrigTable!C1971))","v":""},{"$f":"IF(OrigTable!C1971=\"\",\"\",ScriptText!$E$1&CHAR(10)&ScriptText!$C$1)","v":""},{"$f":"IF(OrigTable!D1971=\"\",\"\",ScriptText!$B$1&CHAR(10)&ScriptText!$D$1)","v":""},{"$f":"IF(OrigTable!D1971=\"\",\"\",TEXT(OrigTable!D1971,\"00\"))","v":""},{"$f":"IF(OrigTable!D1971=\"\",\"\",ScriptText!$E$1&CHAR(10)&ScriptText!$C$1)","v":""},{"$f":"IF(OrigTable!E1971=\"\",\"\",ScriptText!$B$1&CHAR(10)&ScriptText!$D$1)","v":""},{"$f":"IF(OrigTable!E1971=\"\",\"\",TEXT(OrigTable!E1971,\"00\"))","v":""},{"$f":"IF(OrigTable!E1971=\"\",\"\",ScriptText!$E$1&CHAR(10)&ScriptText!$C$1)","v":""},{"$f":"IF(OrigTable!F1971=\"\",\"\",ScriptText!$B$1&CHAR(10)&ScriptText!$D$1)","v":""},{"$f":"IF(OrigTable!F1971=\"\",\"\",TEXT(OrigTable!F1971,\"00\"))","v":""},{"$f":"IF(OrigTable!F1971=\"\",\"\",ScriptText!$E$1&CHAR(10)&ScriptText!$C$1)","v":""},{"$f":"IF(OrigTable!G1971=\"\",\"\",ScriptText!$B$1&CHAR(10)&ScriptText!$D$1)","v":""},{"$f":"IF(OrigTable!G1971=\"\",\"\",TEXT(OrigTable!G1971,\"00\"))","v":""},{"$f":"IF(OrigTable!G1971=\"\",\"\",ScriptText!$E$1&CHAR(10)&ScriptText!$C$1)","v":""},0]
["\n\n\n",{"$f":"IF(OrigTable!A1972=\"\",\"\",ScriptText!$B$1&CHAR(10)&ScriptText!$D$1)","v":""},{"$f":"IF(OrigTable!A1972=\"\",\"\",TEXT(OrigTable!A1972,\"00\"))","v":""},{"$f":"IF(OrigTable!A1972=\"\",\"\",ScriptText!$E$1&CHAR(10)&ScriptText!$C$1)","v":""},{"$f":"IF(OrigTable!B1972=\"\",\"\",ScriptText!$B$1&CHAR(10)&ScriptText!$D$1)","v":""},{"$f":"IF(OrigTable!B1972=\"\",\"\",TEXT(OrigTable!B1972,\"00\"))","v":""},{"$f":"IF(OrigTable!B1972=\"\",\"\",ScriptText!$E$1&CHAR(10)&ScriptText!C1967)","v":""},{"$f":"IF(OrigTable!C1972=\"\",\"\",ScriptText!$B$1&CHAR(10)&ScriptText!$D$1)","v":""},{"$f":"IF(OrigTable!C1972=\"\",\"\",IF(LEN(OrigTable!C1972)>255,LEFT(OrigTable!C1972,250)&\". . .\",OrigTable!C1972))","v":""},{"$f":"IF(OrigTable!C1972=\"\",\"\",ScriptText!$E$1&CHAR(10)&ScriptText!$C$1)","v":""},{"$f":"IF(OrigTable!D1972=\"\",\"\",ScriptText!$B$1&CHAR(10)&ScriptText!$D$1)","v":""},{"$f":"IF(OrigTable!D1972=\"\",\"\",TEXT(OrigTable!D1972,\"00\"))","v":""},{"$f":"IF(OrigTable!D1972=\"\",\"\",ScriptText!$E$1&CHAR(10)&ScriptText!$C$1)","v":""},{"$f":"IF(OrigTable!E1972=\"\",\"\",ScriptText!$B$1&CHAR(10)&ScriptText!$D$1)","v":""},{"$f":"IF(OrigTable!E1972=\"\",\"\",TEXT(OrigTable!E1972,\"00\"))","v":""},{"$f":"IF(OrigTable!E1972=\"\",\"\",ScriptText!$E$1&CHAR(10)&ScriptText!$C$1)","v":""},{"$f":"IF(OrigTable!F1972=\"\",\"\",ScriptText!$B$1&CHAR(10)&ScriptText!$D$1)","v":""},{"$f":"IF(OrigTable!F1972=\"\",\"\",TEXT(OrigTable!F1972,\"00\"))","v":""},{"$f":"IF(OrigTable!F1972=\"\",\"\",ScriptText!$E$1&CHAR(10)&ScriptText!$C$1)","v":""},{"$f":"IF(OrigTable!G1972=\"\",\"\",ScriptText!$B$1&CHAR(10)&ScriptText!$D$1)","v":""},{"$f":"IF(OrigTable!G1972=\"\",\"\",TEXT(OrigTable!G1972,\"00\"))","v":""},{"$f":"IF(OrigTable!G1972=\"\",\"\",ScriptText!$E$1&CHAR(10)&ScriptText!$C$1)","v":""},0]
["\n\n\n",{"$f":"IF(OrigTable!A1973=\"\",\"\",ScriptText!$B$1&CHAR(10)&ScriptText!$D$1)","v":""},{"$f":"IF(OrigTable!A1973=\"\",\"\",TEXT(OrigTable!A1973,\"00\"))","v":""},{"$f":"IF(OrigTable!A1973=\"\",\"\",ScriptText!$E$1&CHAR(10)&ScriptText!$C$1)","v":""},{"$f":"IF(OrigTable!B1973=\"\",\"\",ScriptText!$B$1&CHAR(10)&ScriptText!$D$1)","v":""},{"$f":"IF(OrigTable!B1973=\"\",\"\",TEXT(OrigTable!B1973,\"00\"))","v":""},{"$f":"IF(OrigTable!B1973=\"\",\"\",ScriptText!$E$1&CHAR(10)&ScriptText!C1968)","v":""},{"$f":"IF(OrigTable!C1973=\"\",\"\",ScriptText!$B$1&CHAR(10)&ScriptText!$D$1)","v":""},{"$f":"IF(OrigTable!C1973=\"\",\"\",IF(LEN(OrigTable!C1973)>255,LEFT(OrigTable!C1973,250)&\". . .\",OrigTable!C1973))","v":""},{"$f":"IF(OrigTable!C1973=\"\",\"\",ScriptText!$E$1&CHAR(10)&ScriptText!$C$1)","v":""},{"$f":"IF(OrigTable!D1973=\"\",\"\",ScriptText!$B$1&CHAR(10)&ScriptText!$D$1)","v":""},{"$f":"IF(OrigTable!D1973=\"\",\"\",TEXT(OrigTable!D1973,\"00\"))","v":""},{"$f":"IF(OrigTable!D1973=\"\",\"\",ScriptText!$E$1&CHAR(10)&ScriptText!$C$1)","v":""},{"$f":"IF(OrigTable!E1973=\"\",\"\",ScriptText!$B$1&CHAR(10)&ScriptText!$D$1)","v":""},{"$f":"IF(OrigTable!E1973=\"\",\"\",TEXT(OrigTable!E1973,\"00\"))","v":""},{"$f":"IF(OrigTable!E1973=\"\",\"\",ScriptText!$E$1&CHAR(10)&ScriptText!$C$1)","v":""},{"$f":"IF(OrigTable!F1973=\"\",\"\",ScriptText!$B$1&CHAR(10)&ScriptText!$D$1)","v":""},{"$f":"IF(OrigTable!F1973=\"\",\"\",TEXT(OrigTable!F1973,\"00\"))","v":""},{"$f":"IF(OrigTable!F1973=\"\",\"\",ScriptText!$E$1&CHAR(10)&ScriptText!$C$1)","v":""},{"$f":"IF(OrigTable!G1973=\"\",\"\",ScriptText!$B$1&CHAR(10)&ScriptText!$D$1)","v":""},{"$f":"IF(OrigTable!G1973=\"\",\"\",TEXT(OrigTable!G1973,\"00\"))","v":""},{"$f":"IF(OrigTable!G1973=\"\",\"\",ScriptText!$E$1&CHAR(10)&ScriptText!$C$1)","v":""},0]
["\n\n\n",{"$f":"IF(OrigTable!A1974=\"\",\"\",ScriptText!$B$1&CHAR(10)&ScriptText!$D$1)","v":""},{"$f":"IF(OrigTable!A1974=\"\",\"\",TEXT(OrigTable!A1974,\"00\"))","v":""},{"$f":"IF(OrigTable!A1974=\"\",\"\",ScriptText!$E$1&CHAR(10)&ScriptText!$C$1)","v":""},{"$f":"IF(OrigTable!B1974=\"\",\"\",ScriptText!$B$1&CHAR(10)&ScriptText!$D$1)","v":""},{"$f":"IF(OrigTable!B1974=\"\",\"\",TEXT(OrigTable!B1974,\"00\"))","v":""},{"$f":"IF(OrigTable!B1974=\"\",\"\",ScriptText!$E$1&CHAR(10)&ScriptText!C1969)","v":""},{"$f":"IF(OrigTable!C1974=\"\",\"\",ScriptText!$B$1&CHAR(10)&ScriptText!$D$1)","v":""},{"$f":"IF(OrigTable!C1974=\"\",\"\",IF(LEN(OrigTable!C1974)>255,LEFT(OrigTable!C1974,250)&\". . .\",OrigTable!C1974))","v":""},{"$f":"IF(OrigTable!C1974=\"\",\"\",ScriptText!$E$1&CHAR(10)&ScriptText!$C$1)","v":""},{"$f":"IF(OrigTable!D1974=\"\",\"\",ScriptText!$B$1&CHAR(10)&ScriptText!$D$1)","v":""},{"$f":"IF(OrigTable!D1974=\"\",\"\",TEXT(OrigTable!D1974,\"00\"))","v":""},{"$f":"IF(OrigTable!D1974=\"\",\"\",ScriptText!$E$1&CHAR(10)&ScriptText!$C$1)","v":""},{"$f":"IF(OrigTable!E1974=\"\",\"\",ScriptText!$B$1&CHAR(10)&ScriptText!$D$1)","v":""},{"$f":"IF(OrigTable!E1974=\"\",\"\",TEXT(OrigTable!E1974,\"00\"))","v":""},{"$f":"IF(OrigTable!E1974=\"\",\"\",ScriptText!$E$1&CHAR(10)&ScriptText!$C$1)","v":""},{"$f":"IF(OrigTable!F1974=\"\",\"\",ScriptText!$B$1&CHAR(10)&ScriptText!$D$1)","v":""},{"$f":"IF(OrigTable!F1974=\"\",\"\",TEXT(OrigTable!F1974,\"00\"))","v":""},{"$f":"IF(OrigTable!F1974=\"\",\"\",ScriptText!$E$1&CHAR(10)&ScriptText!$C$1)","v":""},{"$f":"IF(OrigTable!G1974=\"\",\"\",ScriptText!$B$1&CHAR(10)&ScriptText!$D$1)","v":""},{"$f":"IF(OrigTable!G1974=\"\",\"\",TEXT(OrigTable!G1974,\"00\"))","v":""},{"$f":"IF(OrigTable!G1974=\"\",\"\",ScriptText!$E$1&CHAR(10)&ScriptText!$C$1)","v":""},0]
["\n\n\n",{"$f":"IF(OrigTable!A1975=\"\",\"\",ScriptText!$B$1&CHAR(10)&ScriptText!$D$1)","v":""},{"$f":"IF(OrigTable!A1975=\"\",\"\",TEXT(OrigTable!A1975,\"00\"))","v":""},{"$f":"IF(OrigTable!A1975=\"\",\"\",ScriptText!$E$1&CHAR(10)&ScriptText!$C$1)","v":""},{"$f":"IF(OrigTable!B1975=\"\",\"\",ScriptText!$B$1&CHAR(10)&ScriptText!$D$1)","v":""},{"$f":"IF(OrigTable!B1975=\"\",\"\",TEXT(OrigTable!B1975,\"00\"))","v":""},{"$f":"IF(OrigTable!B1975=\"\",\"\",ScriptText!$E$1&CHAR(10)&ScriptText!C1970)","v":""},{"$f":"IF(OrigTable!C1975=\"\",\"\",ScriptText!$B$1&CHAR(10)&ScriptText!$D$1)","v":""},{"$f":"IF(OrigTable!C1975=\"\",\"\",IF(LEN(OrigTable!C1975)>255,LEFT(OrigTable!C1975,250)&\". . .\",OrigTable!C1975))","v":""},{"$f":"IF(OrigTable!C1975=\"\",\"\",ScriptText!$E$1&CHAR(10)&ScriptText!$C$1)","v":""},{"$f":"IF(OrigTable!D1975=\"\",\"\",ScriptText!$B$1&CHAR(10)&ScriptText!$D$1)","v":""},{"$f":"IF(OrigTable!D1975=\"\",\"\",TEXT(OrigTable!D1975,\"00\"))","v":""},{"$f":"IF(OrigTable!D1975=\"\",\"\",ScriptText!$E$1&CHAR(10)&ScriptText!$C$1)","v":""},{"$f":"IF(OrigTable!E1975=\"\",\"\",ScriptText!$B$1&CHAR(10)&ScriptText!$D$1)","v":""},{"$f":"IF(OrigTable!E1975=\"\",\"\",TEXT(OrigTable!E1975,\"00\"))","v":""},{"$f":"IF(OrigTable!E1975=\"\",\"\",ScriptText!$E$1&CHAR(10)&ScriptText!$C$1)","v":""},{"$f":"IF(OrigTable!F1975=\"\",\"\",ScriptText!$B$1&CHAR(10)&ScriptText!$D$1)","v":""},{"$f":"IF(OrigTable!F1975=\"\",\"\",TEXT(OrigTable!F1975,\"00\"))","v":""},{"$f":"IF(OrigTable!F1975=\"\",\"\",ScriptText!$E$1&CHAR(10)&ScriptText!$C$1)","v":""},{"$f":"IF(OrigTable!G1975=\"\",\"\",ScriptText!$B$1&CHAR(10)&ScriptText!$D$1)","v":""},{"$f":"IF(OrigTable!G1975=\"\",\"\",TEXT(OrigTable!G1975,\"00\"))","v":""},{"$f":"IF(OrigTable!G1975=\"\",\"\",ScriptText!$E$1&CHAR(10)&ScriptText!$C$1)","v":""},0]
["\n\n\n",{"$f":"IF(OrigTable!A1976=\"\",\"\",ScriptText!$B$1&CHAR(10)&ScriptText!$D$1)","v":""},{"$f":"IF(OrigTable!A1976=\"\",\"\",TEXT(OrigTable!A1976,\"00\"))","v":""},{"$f":"IF(OrigTable!A1976=\"\",\"\",ScriptText!$E$1&CHAR(10)&ScriptText!$C$1)","v":""},{"$f":"IF(OrigTable!B1976=\"\",\"\",ScriptText!$B$1&CHAR(10)&ScriptText!$D$1)","v":""},{"$f":"IF(OrigTable!B1976=\"\",\"\",TEXT(OrigTable!B1976,\"00\"))","v":""},{"$f":"IF(OrigTable!B1976=\"\",\"\",ScriptText!$E$1&CHAR(10)&ScriptText!C1971)","v":""},{"$f":"IF(OrigTable!C1976=\"\",\"\",ScriptText!$B$1&CHAR(10)&ScriptText!$D$1)","v":""},{"$f":"IF(OrigTable!C1976=\"\",\"\",IF(LEN(OrigTable!C1976)>255,LEFT(OrigTable!C1976,250)&\". . .\",OrigTable!C1976))","v":""},{"$f":"IF(OrigTable!C1976=\"\",\"\",ScriptText!$E$1&CHAR(10)&ScriptText!$C$1)","v":""},{"$f":"IF(OrigTable!D1976=\"\",\"\",ScriptText!$B$1&CHAR(10)&ScriptText!$D$1)","v":""},{"$f":"IF(OrigTable!D1976=\"\",\"\",TEXT(OrigTable!D1976,\"00\"))","v":""},{"$f":"IF(OrigTable!D1976=\"\",\"\",ScriptText!$E$1&CHAR(10)&ScriptText!$C$1)","v":""},{"$f":"IF(OrigTable!E1976=\"\",\"\",ScriptText!$B$1&CHAR(10)&ScriptText!$D$1)","v":""},{"$f":"IF(OrigTable!E1976=\"\",\"\",TEXT(OrigTable!E1976,\"00\"))","v":""},{"$f":"IF(OrigTable!E1976=\"\",\"\",ScriptText!$E$1&CHAR(10)&ScriptText!$C$1)","v":""},{"$f":"IF(OrigTable!F1976=\"\",\"\",ScriptText!$B$1&CHAR(10)&ScriptText!$D$1)","v":""},{"$f":"IF(OrigTable!F1976=\"\",\"\",TEXT(OrigTable!F1976,\"00\"))","v":""},{"$f":"IF(OrigTable!F1976=\"\",\"\",ScriptText!$E$1&CHAR(10)&ScriptText!$C$1)","v":""},{"$f":"IF(OrigTable!G1976=\"\",\"\",ScriptText!$B$1&CHAR(10)&ScriptText!$D$1)","v":""},{"$f":"IF(OrigTable!G1976=\"\",\"\",TEXT(OrigTable!G1976,\"00\"))","v":""},{"$f":"IF(OrigTable!G1976=\"\",\"\",ScriptText!$E$1&CHAR(10)&ScriptText!$C$1)","v":""},0]
["\n\n\n",{"$f":"IF(OrigTable!A1977=\"\",\"\",ScriptText!$B$1&CHAR(10)&ScriptText!$D$1)","v":""},{"$f":"IF(OrigTable!A1977=\"\",\"\",TEXT(OrigTable!A1977,\"00\"))","v":""},{"$f":"IF(OrigTable!A1977=\"\",\"\",ScriptText!$E$1&CHAR(10)&ScriptText!$C$1)","v":""},{"$f":"IF(OrigTable!B1977=\"\",\"\",ScriptText!$B$1&CHAR(10)&ScriptText!$D$1)","v":""},{"$f":"IF(OrigTable!B1977=\"\",\"\",TEXT(OrigTable!B1977,\"00\"))","v":""},{"$f":"IF(OrigTable!B1977=\"\",\"\",ScriptText!$E$1&CHAR(10)&ScriptText!C1972)","v":""},{"$f":"IF(OrigTable!C1977=\"\",\"\",ScriptText!$B$1&CHAR(10)&ScriptText!$D$1)","v":""},{"$f":"IF(OrigTable!C1977=\"\",\"\",IF(LEN(OrigTable!C1977)>255,LEFT(OrigTable!C1977,250)&\". . .\",OrigTable!C1977))","v":""},{"$f":"IF(OrigTable!C1977=\"\",\"\",ScriptText!$E$1&CHAR(10)&ScriptText!$C$1)","v":""},{"$f":"IF(OrigTable!D1977=\"\",\"\",ScriptText!$B$1&CHAR(10)&ScriptText!$D$1)","v":""},{"$f":"IF(OrigTable!D1977=\"\",\"\",TEXT(OrigTable!D1977,\"00\"))","v":""},{"$f":"IF(OrigTable!D1977=\"\",\"\",ScriptText!$E$1&CHAR(10)&ScriptText!$C$1)","v":""},{"$f":"IF(OrigTable!E1977=\"\",\"\",ScriptText!$B$1&CHAR(10)&ScriptText!$D$1)","v":""},{"$f":"IF(OrigTable!E1977=\"\",\"\",TEXT(OrigTable!E1977,\"00\"))","v":""},{"$f":"IF(OrigTable!E1977=\"\",\"\",ScriptText!$E$1&CHAR(10)&ScriptText!$C$1)","v":""},{"$f":"IF(OrigTable!F1977=\"\",\"\",ScriptText!$B$1&CHAR(10)&ScriptText!$D$1)","v":""},{"$f":"IF(OrigTable!F1977=\"\",\"\",TEXT(OrigTable!F1977,\"00\"))","v":""},{"$f":"IF(OrigTable!F1977=\"\",\"\",ScriptText!$E$1&CHAR(10)&ScriptText!$C$1)","v":""},{"$f":"IF(OrigTable!G1977=\"\",\"\",ScriptText!$B$1&CHAR(10)&ScriptText!$D$1)","v":""},{"$f":"IF(OrigTable!G1977=\"\",\"\",TEXT(OrigTable!G1977,\"00\"))","v":""},{"$f":"IF(OrigTable!G1977=\"\",\"\",ScriptText!$E$1&CHAR(10)&ScriptText!$C$1)","v":""},0]
["\n\n\n",{"$f":"IF(OrigTable!A1978=\"\",\"\",ScriptText!$B$1&CHAR(10)&ScriptText!$D$1)","v":""},{"$f":"IF(OrigTable!A1978=\"\",\"\",TEXT(OrigTable!A1978,\"00\"))","v":""},{"$f":"IF(OrigTable!A1978=\"\",\"\",ScriptText!$E$1&CHAR(10)&ScriptText!$C$1)","v":""},{"$f":"IF(OrigTable!B1978=\"\",\"\",ScriptText!$B$1&CHAR(10)&ScriptText!$D$1)","v":""},{"$f":"IF(OrigTable!B1978=\"\",\"\",TEXT(OrigTable!B1978,\"00\"))","v":""},{"$f":"IF(OrigTable!B1978=\"\",\"\",ScriptText!$E$1&CHAR(10)&ScriptText!C1973)","v":""},{"$f":"IF(OrigTable!C1978=\"\",\"\",ScriptText!$B$1&CHAR(10)&ScriptText!$D$1)","v":""},{"$f":"IF(OrigTable!C1978=\"\",\"\",IF(LEN(OrigTable!C1978)>255,LEFT(OrigTable!C1978,250)&\". . .\",OrigTable!C1978))","v":""},{"$f":"IF(OrigTable!C1978=\"\",\"\",ScriptText!$E$1&CHAR(10)&ScriptText!$C$1)","v":""},{"$f":"IF(OrigTable!D1978=\"\",\"\",ScriptText!$B$1&CHAR(10)&ScriptText!$D$1)","v":""},{"$f":"IF(OrigTable!D1978=\"\",\"\",TEXT(OrigTable!D1978,\"00\"))","v":""},{"$f":"IF(OrigTable!D1978=\"\",\"\",ScriptText!$E$1&CHAR(10)&ScriptText!$C$1)","v":""},{"$f":"IF(OrigTable!E1978=\"\",\"\",ScriptText!$B$1&CHAR(10)&ScriptText!$D$1)","v":""},{"$f":"IF(OrigTable!E1978=\"\",\"\",TEXT(OrigTable!E1978,\"00\"))","v":""},{"$f":"IF(OrigTable!E1978=\"\",\"\",ScriptText!$E$1&CHAR(10)&ScriptText!$C$1)","v":""},{"$f":"IF(OrigTable!F1978=\"\",\"\",ScriptText!$B$1&CHAR(10)&ScriptText!$D$1)","v":""},{"$f":"IF(OrigTable!F1978=\"\",\"\",TEXT(OrigTable!F1978,\"00\"))","v":""},{"$f":"IF(OrigTable!F1978=\"\",\"\",ScriptText!$E$1&CHAR(10)&ScriptText!$C$1)","v":""},{"$f":"IF(OrigTable!G1978=\"\",\"\",ScriptText!$B$1&CHAR(10)&ScriptText!$D$1)","v":""},{"$f":"IF(OrigTable!G1978=\"\",\"\",TEXT(OrigTable!G1978,\"00\"))","v":""},{"$f":"IF(OrigTable!G1978=\"\",\"\",ScriptText!$E$1&CHAR(10)&ScriptText!$C$1)","v":""},0]
["\n\n\n",{"$f":"IF(OrigTable!A1979=\"\",\"\",ScriptText!$B$1&CHAR(10)&ScriptText!$D$1)","v":""},{"$f":"IF(OrigTable!A1979=\"\",\"\",TEXT(OrigTable!A1979,\"00\"))","v":""},{"$f":"IF(OrigTable!A1979=\"\",\"\",ScriptText!$E$1&CHAR(10)&ScriptText!$C$1)","v":""},{"$f":"IF(OrigTable!B1979=\"\",\"\",ScriptText!$B$1&CHAR(10)&ScriptText!$D$1)","v":""},{"$f":"IF(OrigTable!B1979=\"\",\"\",TEXT(OrigTable!B1979,\"00\"))","v":""},{"$f":"IF(OrigTable!B1979=\"\",\"\",ScriptText!$E$1&CHAR(10)&ScriptText!C1974)","v":""},{"$f":"IF(OrigTable!C1979=\"\",\"\",ScriptText!$B$1&CHAR(10)&ScriptText!$D$1)","v":""},{"$f":"IF(OrigTable!C1979=\"\",\"\",IF(LEN(OrigTable!C1979)>255,LEFT(OrigTable!C1979,250)&\". . .\",OrigTable!C1979))","v":""},{"$f":"IF(OrigTable!C1979=\"\",\"\",ScriptText!$E$1&CHAR(10)&ScriptText!$C$1)","v":""},{"$f":"IF(OrigTable!D1979=\"\",\"\",ScriptText!$B$1&CHAR(10)&ScriptText!$D$1)","v":""},{"$f":"IF(OrigTable!D1979=\"\",\"\",TEXT(OrigTable!D1979,\"00\"))","v":""},{"$f":"IF(OrigTable!D1979=\"\",\"\",ScriptText!$E$1&CHAR(10)&ScriptText!$C$1)","v":""},{"$f":"IF(OrigTable!E1979=\"\",\"\",ScriptText!$B$1&CHAR(10)&ScriptText!$D$1)","v":""},{"$f":"IF(OrigTable!E1979=\"\",\"\",TEXT(OrigTable!E1979,\"00\"))","v":""},{"$f":"IF(OrigTable!E1979=\"\",\"\",ScriptText!$E$1&CHAR(10)&ScriptText!$C$1)","v":""},{"$f":"IF(OrigTable!F1979=\"\",\"\",ScriptText!$B$1&CHAR(10)&ScriptText!$D$1)","v":""},{"$f":"IF(OrigTable!F1979=\"\",\"\",TEXT(OrigTable!F1979,\"00\"))","v":""},{"$f":"IF(OrigTable!F1979=\"\",\"\",ScriptText!$E$1&CHAR(10)&ScriptText!$C$1)","v":""},{"$f":"IF(OrigTable!G1979=\"\",\"\",ScriptText!$B$1&CHAR(10)&ScriptText!$D$1)","v":""},{"$f":"IF(OrigTable!G1979=\"\",\"\",TEXT(OrigTable!G1979,\"00\"))","v":""},{"$f":"IF(OrigTable!G1979=\"\",\"\",ScriptText!$E$1&CHAR(10)&ScriptText!$C$1)","v":""},0]
["\n\n\n",{"$f":"IF(OrigTable!A1980=\"\",\"\",ScriptText!$B$1&CHAR(10)&ScriptText!$D$1)","v":""},{"$f":"IF(OrigTable!A1980=\"\",\"\",TEXT(OrigTable!A1980,\"00\"))","v":""},{"$f":"IF(OrigTable!A1980=\"\",\"\",ScriptText!$E$1&CHAR(10)&ScriptText!$C$1)","v":""},{"$f":"IF(OrigTable!B1980=\"\",\"\",ScriptText!$B$1&CHAR(10)&ScriptText!$D$1)","v":""},{"$f":"IF(OrigTable!B1980=\"\",\"\",TEXT(OrigTable!B1980,\"00\"))","v":""},{"$f":"IF(OrigTable!B1980=\"\",\"\",ScriptText!$E$1&CHAR(10)&ScriptText!C1975)","v":""},{"$f":"IF(OrigTable!C1980=\"\",\"\",ScriptText!$B$1&CHAR(10)&ScriptText!$D$1)","v":""},{"$f":"IF(OrigTable!C1980=\"\",\"\",IF(LEN(OrigTable!C1980)>255,LEFT(OrigTable!C1980,250)&\". . .\",OrigTable!C1980))","v":""},{"$f":"IF(OrigTable!C1980=\"\",\"\",ScriptText!$E$1&CHAR(10)&ScriptText!$C$1)","v":""},{"$f":"IF(OrigTable!D1980=\"\",\"\",ScriptText!$B$1&CHAR(10)&ScriptText!$D$1)","v":""},{"$f":"IF(OrigTable!D1980=\"\",\"\",TEXT(OrigTable!D1980,\"00\"))","v":""},{"$f":"IF(OrigTable!D1980=\"\",\"\",ScriptText!$E$1&CHAR(10)&ScriptText!$C$1)","v":""},{"$f":"IF(OrigTable!E1980=\"\",\"\",ScriptText!$B$1&CHAR(10)&ScriptText!$D$1)","v":""},{"$f":"IF(OrigTable!E1980=\"\",\"\",TEXT(OrigTable!E1980,\"00\"))","v":""},{"$f":"IF(OrigTable!E1980=\"\",\"\",ScriptText!$E$1&CHAR(10)&ScriptText!$C$1)","v":""},{"$f":"IF(OrigTable!F1980=\"\",\"\",ScriptText!$B$1&CHAR(10)&ScriptText!$D$1)","v":""},{"$f":"IF(OrigTable!F1980=\"\",\"\",TEXT(OrigTable!F1980,\"00\"))","v":""},{"$f":"IF(OrigTable!F1980=\"\",\"\",ScriptText!$E$1&CHAR(10)&ScriptText!$C$1)","v":""},{"$f":"IF(OrigTable!G1980=\"\",\"\",ScriptText!$B$1&CHAR(10)&ScriptText!$D$1)","v":""},{"$f":"IF(OrigTable!G1980=\"\",\"\",TEXT(OrigTable!G1980,\"00\"))","v":""},{"$f":"IF(OrigTable!G1980=\"\",\"\",ScriptText!$E$1&CHAR(10)&ScriptText!$C$1)","v":""},0]
["\n\n\n",{"$f":"IF(OrigTable!A1981=\"\",\"\",ScriptText!$B$1&CHAR(10)&ScriptText!$D$1)","v":""},{"$f":"IF(OrigTable!A1981=\"\",\"\",TEXT(OrigTable!A1981,\"00\"))","v":""},{"$f":"IF(OrigTable!A1981=\"\",\"\",ScriptText!$E$1&CHAR(10)&ScriptText!$C$1)","v":""},{"$f":"IF(OrigTable!B1981=\"\",\"\",ScriptText!$B$1&CHAR(10)&ScriptText!$D$1)","v":""},{"$f":"IF(OrigTable!B1981=\"\",\"\",TEXT(OrigTable!B1981,\"00\"))","v":""},{"$f":"IF(OrigTable!B1981=\"\",\"\",ScriptText!$E$1&CHAR(10)&ScriptText!C1976)","v":""},{"$f":"IF(OrigTable!C1981=\"\",\"\",ScriptText!$B$1&CHAR(10)&ScriptText!$D$1)","v":""},{"$f":"IF(OrigTable!C1981=\"\",\"\",IF(LEN(OrigTable!C1981)>255,LEFT(OrigTable!C1981,250)&\". . .\",OrigTable!C1981))","v":""},{"$f":"IF(OrigTable!C1981=\"\",\"\",ScriptText!$E$1&CHAR(10)&ScriptText!$C$1)","v":""},{"$f":"IF(OrigTable!D1981=\"\",\"\",ScriptText!$B$1&CHAR(10)&ScriptText!$D$1)","v":""},{"$f":"IF(OrigTable!D1981=\"\",\"\",TEXT(OrigTable!D1981,\"00\"))","v":""},{"$f":"IF(OrigTable!D1981=\"\",\"\",ScriptText!$E$1&CHAR(10)&ScriptText!$C$1)","v":""},{"$f":"IF(OrigTable!E1981=\"\",\"\",ScriptText!$B$1&CHAR(10)&ScriptText!$D$1)","v":""},{"$f":"IF(OrigTable!E1981=\"\",\"\",TEXT(OrigTable!E1981,\"00\"))","v":""},{"$f":"IF(OrigTable!E1981=\"\",\"\",ScriptText!$E$1&CHAR(10)&ScriptText!$C$1)","v":""},{"$f":"IF(OrigTable!F1981=\"\",\"\",ScriptText!$B$1&CHAR(10)&ScriptText!$D$1)","v":""},{"$f":"IF(OrigTable!F1981=\"\",\"\",TEXT(OrigTable!F1981,\"00\"))","v":""},{"$f":"IF(OrigTable!F1981=\"\",\"\",ScriptText!$E$1&CHAR(10)&ScriptText!$C$1)","v":""},{"$f":"IF(OrigTable!G1981=\"\",\"\",ScriptText!$B$1&CHAR(10)&ScriptText!$D$1)","v":""},{"$f":"IF(OrigTable!G1981=\"\",\"\",TEXT(OrigTable!G1981,\"00\"))","v":""},{"$f":"IF(OrigTable!G1981=\"\",\"\",ScriptText!$E$1&CHAR(10)&ScriptText!$C$1)","v":""},0]
["\n\n\n",{"$f":"IF(OrigTable!A1982=\"\",\"\",ScriptText!$B$1&CHAR(10)&ScriptText!$D$1)","v":""},{"$f":"IF(OrigTable!A1982=\"\",\"\",TEXT(OrigTable!A1982,\"00\"))","v":""},{"$f":"IF(OrigTable!A1982=\"\",\"\",ScriptText!$E$1&CHAR(10)&ScriptText!$C$1)","v":""},{"$f":"IF(OrigTable!B1982=\"\",\"\",ScriptText!$B$1&CHAR(10)&ScriptText!$D$1)","v":""},{"$f":"IF(OrigTable!B1982=\"\",\"\",TEXT(OrigTable!B1982,\"00\"))","v":""},{"$f":"IF(OrigTable!B1982=\"\",\"\",ScriptText!$E$1&CHAR(10)&ScriptText!C1977)","v":""},{"$f":"IF(OrigTable!C1982=\"\",\"\",ScriptText!$B$1&CHAR(10)&ScriptText!$D$1)","v":""},{"$f":"IF(OrigTable!C1982=\"\",\"\",IF(LEN(OrigTable!C1982)>255,LEFT(OrigTable!C1982,250)&\". . .\",OrigTable!C1982))","v":""},{"$f":"IF(OrigTable!C1982=\"\",\"\",ScriptText!$E$1&CHAR(10)&ScriptText!$C$1)","v":""},{"$f":"IF(OrigTable!D1982=\"\",\"\",ScriptText!$B$1&CHAR(10)&ScriptText!$D$1)","v":""},{"$f":"IF(OrigTable!D1982=\"\",\"\",TEXT(OrigTable!D1982,\"00\"))","v":""},{"$f":"IF(OrigTable!D1982=\"\",\"\",ScriptText!$E$1&CHAR(10)&ScriptText!$C$1)","v":""},{"$f":"IF(OrigTable!E1982=\"\",\"\",ScriptText!$B$1&CHAR(10)&ScriptText!$D$1)","v":""},{"$f":"IF(OrigTable!E1982=\"\",\"\",TEXT(OrigTable!E1982,\"00\"))","v":""},{"$f":"IF(OrigTable!E1982=\"\",\"\",ScriptText!$E$1&CHAR(10)&ScriptText!$C$1)","v":""},{"$f":"IF(OrigTable!F1982=\"\",\"\",ScriptText!$B$1&CHAR(10)&ScriptText!$D$1)","v":""},{"$f":"IF(OrigTable!F1982=\"\",\"\",TEXT(OrigTable!F1982,\"00\"))","v":""},{"$f":"IF(OrigTable!F1982=\"\",\"\",ScriptText!$E$1&CHAR(10)&ScriptText!$C$1)","v":""},{"$f":"IF(OrigTable!G1982=\"\",\"\",ScriptText!$B$1&CHAR(10)&ScriptText!$D$1)","v":""},{"$f":"IF(OrigTable!G1982=\"\",\"\",TEXT(OrigTable!G1982,\"00\"))","v":""},{"$f":"IF(OrigTable!G1982=\"\",\"\",ScriptText!$E$1&CHAR(10)&ScriptText!$C$1)","v":""},0]
["\n\n\n",{"$f":"IF(OrigTable!A1983=\"\",\"\",ScriptText!$B$1&CHAR(10)&ScriptText!$D$1)","v":""},{"$f":"IF(OrigTable!A1983=\"\",\"\",TEXT(OrigTable!A1983,\"00\"))","v":""},{"$f":"IF(OrigTable!A1983=\"\",\"\",ScriptText!$E$1&CHAR(10)&ScriptText!$C$1)","v":""},{"$f":"IF(OrigTable!B1983=\"\",\"\",ScriptText!$B$1&CHAR(10)&ScriptText!$D$1)","v":""},{"$f":"IF(OrigTable!B1983=\"\",\"\",TEXT(OrigTable!B1983,\"00\"))","v":""},{"$f":"IF(OrigTable!B1983=\"\",\"\",ScriptText!$E$1&CHAR(10)&ScriptText!C1978)","v":""},{"$f":"IF(OrigTable!C1983=\"\",\"\",ScriptText!$B$1&CHAR(10)&ScriptText!$D$1)","v":""},{"$f":"IF(OrigTable!C1983=\"\",\"\",IF(LEN(OrigTable!C1983)>255,LEFT(OrigTable!C1983,250)&\". . .\",OrigTable!C1983))","v":""},{"$f":"IF(OrigTable!C1983=\"\",\"\",ScriptText!$E$1&CHAR(10)&ScriptText!$C$1)","v":""},{"$f":"IF(OrigTable!D1983=\"\",\"\",ScriptText!$B$1&CHAR(10)&ScriptText!$D$1)","v":""},{"$f":"IF(OrigTable!D1983=\"\",\"\",TEXT(OrigTable!D1983,\"00\"))","v":""},{"$f":"IF(OrigTable!D1983=\"\",\"\",ScriptText!$E$1&CHAR(10)&ScriptText!$C$1)","v":""},{"$f":"IF(OrigTable!E1983=\"\",\"\",ScriptText!$B$1&CHAR(10)&ScriptText!$D$1)","v":""},{"$f":"IF(OrigTable!E1983=\"\",\"\",TEXT(OrigTable!E1983,\"00\"))","v":""},{"$f":"IF(OrigTable!E1983=\"\",\"\",ScriptText!$E$1&CHAR(10)&ScriptText!$C$1)","v":""},{"$f":"IF(OrigTable!F1983=\"\",\"\",ScriptText!$B$1&CHAR(10)&ScriptText!$D$1)","v":""},{"$f":"IF(OrigTable!F1983=\"\",\"\",TEXT(OrigTable!F1983,\"00\"))","v":""},{"$f":"IF(OrigTable!F1983=\"\",\"\",ScriptText!$E$1&CHAR(10)&ScriptText!$C$1)","v":""},{"$f":"IF(OrigTable!G1983=\"\",\"\",ScriptText!$B$1&CHAR(10)&ScriptText!$D$1)","v":""},{"$f":"IF(OrigTable!G1983=\"\",\"\",TEXT(OrigTable!G1983,\"00\"))","v":""},{"$f":"IF(OrigTable!G1983=\"\",\"\",ScriptText!$E$1&CHAR(10)&ScriptText!$C$1)","v":""},0]
["\n\n\n",{"$f":"IF(OrigTable!A1984=\"\",\"\",ScriptText!$B$1&CHAR(10)&ScriptText!$D$1)","v":""},{"$f":"IF(OrigTable!A1984=\"\",\"\",TEXT(OrigTable!A1984,\"00\"))","v":""},{"$f":"IF(OrigTable!A1984=\"\",\"\",ScriptText!$E$1&CHAR(10)&ScriptText!$C$1)","v":""},{"$f":"IF(OrigTable!B1984=\"\",\"\",ScriptText!$B$1&CHAR(10)&ScriptText!$D$1)","v":""},{"$f":"IF(OrigTable!B1984=\"\",\"\",TEXT(OrigTable!B1984,\"00\"))","v":""},{"$f":"IF(OrigTable!B1984=\"\",\"\",ScriptText!$E$1&CHAR(10)&ScriptText!C1979)","v":""},{"$f":"IF(OrigTable!C1984=\"\",\"\",ScriptText!$B$1&CHAR(10)&ScriptText!$D$1)","v":""},{"$f":"IF(OrigTable!C1984=\"\",\"\",IF(LEN(OrigTable!C1984)>255,LEFT(OrigTable!C1984,250)&\". . .\",OrigTable!C1984))","v":""},{"$f":"IF(OrigTable!C1984=\"\",\"\",ScriptText!$E$1&CHAR(10)&ScriptText!$C$1)","v":""},{"$f":"IF(OrigTable!D1984=\"\",\"\",ScriptText!$B$1&CHAR(10)&ScriptText!$D$1)","v":""},{"$f":"IF(OrigTable!D1984=\"\",\"\",TEXT(OrigTable!D1984,\"00\"))","v":""},{"$f":"IF(OrigTable!D1984=\"\",\"\",ScriptText!$E$1&CHAR(10)&ScriptText!$C$1)","v":""},{"$f":"IF(OrigTable!E1984=\"\",\"\",ScriptText!$B$1&CHAR(10)&ScriptText!$D$1)","v":""},{"$f":"IF(OrigTable!E1984=\"\",\"\",TEXT(OrigTable!E1984,\"00\"))","v":""},{"$f":"IF(OrigTable!E1984=\"\",\"\",ScriptText!$E$1&CHAR(10)&ScriptText!$C$1)","v":""},{"$f":"IF(OrigTable!F1984=\"\",\"\",ScriptText!$B$1&CHAR(10)&ScriptText!$D$1)","v":""},{"$f":"IF(OrigTable!F1984=\"\",\"\",TEXT(OrigTable!F1984,\"00\"))","v":""},{"$f":"IF(OrigTable!F1984=\"\",\"\",ScriptText!$E$1&CHAR(10)&ScriptText!$C$1)","v":""},{"$f":"IF(OrigTable!G1984=\"\",\"\",ScriptText!$B$1&CHAR(10)&ScriptText!$D$1)","v":""},{"$f":"IF(OrigTable!G1984=\"\",\"\",TEXT(OrigTable!G1984,\"00\"))","v":""},{"$f":"IF(OrigTable!G1984=\"\",\"\",ScriptText!$E$1&CHAR(10)&ScriptText!$C$1)","v":""},0]
["\n\n\n",{"$f":"IF(OrigTable!A1985=\"\",\"\",ScriptText!$B$1&CHAR(10)&ScriptText!$D$1)","v":""},{"$f":"IF(OrigTable!A1985=\"\",\"\",TEXT(OrigTable!A1985,\"00\"))","v":""},{"$f":"IF(OrigTable!A1985=\"\",\"\",ScriptText!$E$1&CHAR(10)&ScriptText!$C$1)","v":""},{"$f":"IF(OrigTable!B1985=\"\",\"\",ScriptText!$B$1&CHAR(10)&ScriptText!$D$1)","v":""},{"$f":"IF(OrigTable!B1985=\"\",\"\",TEXT(OrigTable!B1985,\"00\"))","v":""},{"$f":"IF(OrigTable!B1985=\"\",\"\",ScriptText!$E$1&CHAR(10)&ScriptText!C1980)","v":""},{"$f":"IF(OrigTable!C1985=\"\",\"\",ScriptText!$B$1&CHAR(10)&ScriptText!$D$1)","v":""},{"$f":"IF(OrigTable!C1985=\"\",\"\",IF(LEN(OrigTable!C1985)>255,LEFT(OrigTable!C1985,250)&\". . .\",OrigTable!C1985))","v":""},{"$f":"IF(OrigTable!C1985=\"\",\"\",ScriptText!$E$1&CHAR(10)&ScriptText!$C$1)","v":""},{"$f":"IF(OrigTable!D1985=\"\",\"\",ScriptText!$B$1&CHAR(10)&ScriptText!$D$1)","v":""},{"$f":"IF(OrigTable!D1985=\"\",\"\",TEXT(OrigTable!D1985,\"00\"))","v":""},{"$f":"IF(OrigTable!D1985=\"\",\"\",ScriptText!$E$1&CHAR(10)&ScriptText!$C$1)","v":""},{"$f":"IF(OrigTable!E1985=\"\",\"\",ScriptText!$B$1&CHAR(10)&ScriptText!$D$1)","v":""},{"$f":"IF(OrigTable!E1985=\"\",\"\",TEXT(OrigTable!E1985,\"00\"))","v":""},{"$f":"IF(OrigTable!E1985=\"\",\"\",ScriptText!$E$1&CHAR(10)&ScriptText!$C$1)","v":""},{"$f":"IF(OrigTable!F1985=\"\",\"\",ScriptText!$B$1&CHAR(10)&ScriptText!$D$1)","v":""},{"$f":"IF(OrigTable!F1985=\"\",\"\",TEXT(OrigTable!F1985,\"00\"))","v":""},{"$f":"IF(OrigTable!F1985=\"\",\"\",ScriptText!$E$1&CHAR(10)&ScriptText!$C$1)","v":""},{"$f":"IF(OrigTable!G1985=\"\",\"\",ScriptText!$B$1&CHAR(10)&ScriptText!$D$1)","v":""},{"$f":"IF(OrigTable!G1985=\"\",\"\",TEXT(OrigTable!G1985,\"00\"))","v":""},{"$f":"IF(OrigTable!G1985=\"\",\"\",ScriptText!$E$1&CHAR(10)&ScriptText!$C$1)","v":""},0]
["\n\n\n",{"$f":"IF(OrigTable!A1986=\"\",\"\",ScriptText!$B$1&CHAR(10)&ScriptText!$D$1)","v":""},{"$f":"IF(OrigTable!A1986=\"\",\"\",TEXT(OrigTable!A1986,\"00\"))","v":""},{"$f":"IF(OrigTable!A1986=\"\",\"\",ScriptText!$E$1&CHAR(10)&ScriptText!$C$1)","v":""},{"$f":"IF(OrigTable!B1986=\"\",\"\",ScriptText!$B$1&CHAR(10)&ScriptText!$D$1)","v":""},{"$f":"IF(OrigTable!B1986=\"\",\"\",TEXT(OrigTable!B1986,\"00\"))","v":""},{"$f":"IF(OrigTable!B1986=\"\",\"\",ScriptText!$E$1&CHAR(10)&ScriptText!C1981)","v":""},{"$f":"IF(OrigTable!C1986=\"\",\"\",ScriptText!$B$1&CHAR(10)&ScriptText!$D$1)","v":""},{"$f":"IF(OrigTable!C1986=\"\",\"\",IF(LEN(OrigTable!C1986)>255,LEFT(OrigTable!C1986,250)&\". . .\",OrigTable!C1986))","v":""},{"$f":"IF(OrigTable!C1986=\"\",\"\",ScriptText!$E$1&CHAR(10)&ScriptText!$C$1)","v":""},{"$f":"IF(OrigTable!D1986=\"\",\"\",ScriptText!$B$1&CHAR(10)&ScriptText!$D$1)","v":""},{"$f":"IF(OrigTable!D1986=\"\",\"\",TEXT(OrigTable!D1986,\"00\"))","v":""},{"$f":"IF(OrigTable!D1986=\"\",\"\",ScriptText!$E$1&CHAR(10)&ScriptText!$C$1)","v":""},{"$f":"IF(OrigTable!E1986=\"\",\"\",ScriptText!$B$1&CHAR(10)&ScriptText!$D$1)","v":""},{"$f":"IF(OrigTable!E1986=\"\",\"\",TEXT(OrigTable!E1986,\"00\"))","v":""},{"$f":"IF(OrigTable!E1986=\"\",\"\",ScriptText!$E$1&CHAR(10)&ScriptText!$C$1)","v":""},{"$f":"IF(OrigTable!F1986=\"\",\"\",ScriptText!$B$1&CHAR(10)&ScriptText!$D$1)","v":""},{"$f":"IF(OrigTable!F1986=\"\",\"\",TEXT(OrigTable!F1986,\"00\"))","v":""},{"$f":"IF(OrigTable!F1986=\"\",\"\",ScriptText!$E$1&CHAR(10)&ScriptText!$C$1)","v":""},{"$f":"IF(OrigTable!G1986=\"\",\"\",ScriptText!$B$1&CHAR(10)&ScriptText!$D$1)","v":""},{"$f":"IF(OrigTable!G1986=\"\",\"\",TEXT(OrigTable!G1986,\"00\"))","v":""},{"$f":"IF(OrigTable!G1986=\"\",\"\",ScriptText!$E$1&CHAR(10)&ScriptText!$C$1)","v":""},0]
["\n\n\n",{"$f":"IF(OrigTable!A1987=\"\",\"\",ScriptText!$B$1&CHAR(10)&ScriptText!$D$1)","v":""},{"$f":"IF(OrigTable!A1987=\"\",\"\",TEXT(OrigTable!A1987,\"00\"))","v":""},{"$f":"IF(OrigTable!A1987=\"\",\"\",ScriptText!$E$1&CHAR(10)&ScriptText!$C$1)","v":""},{"$f":"IF(OrigTable!B1987=\"\",\"\",ScriptText!$B$1&CHAR(10)&ScriptText!$D$1)","v":""},{"$f":"IF(OrigTable!B1987=\"\",\"\",TEXT(OrigTable!B1987,\"00\"))","v":""},{"$f":"IF(OrigTable!B1987=\"\",\"\",ScriptText!$E$1&CHAR(10)&ScriptText!C1982)","v":""},{"$f":"IF(OrigTable!C1987=\"\",\"\",ScriptText!$B$1&CHAR(10)&ScriptText!$D$1)","v":""},{"$f":"IF(OrigTable!C1987=\"\",\"\",IF(LEN(OrigTable!C1987)>255,LEFT(OrigTable!C1987,250)&\". . .\",OrigTable!C1987))","v":""},{"$f":"IF(OrigTable!C1987=\"\",\"\",ScriptText!$E$1&CHAR(10)&ScriptText!$C$1)","v":""},{"$f":"IF(OrigTable!D1987=\"\",\"\",ScriptText!$B$1&CHAR(10)&ScriptText!$D$1)","v":""},{"$f":"IF(OrigTable!D1987=\"\",\"\",TEXT(OrigTable!D1987,\"00\"))","v":""},{"$f":"IF(OrigTable!D1987=\"\",\"\",ScriptText!$E$1&CHAR(10)&ScriptText!$C$1)","v":""},{"$f":"IF(OrigTable!E1987=\"\",\"\",ScriptText!$B$1&CHAR(10)&ScriptText!$D$1)","v":""},{"$f":"IF(OrigTable!E1987=\"\",\"\",TEXT(OrigTable!E1987,\"00\"))","v":""},{"$f":"IF(OrigTable!E1987=\"\",\"\",ScriptText!$E$1&CHAR(10)&ScriptText!$C$1)","v":""},{"$f":"IF(OrigTable!F1987=\"\",\"\",ScriptText!$B$1&CHAR(10)&ScriptText!$D$1)","v":""},{"$f":"IF(OrigTable!F1987=\"\",\"\",TEXT(OrigTable!F1987,\"00\"))","v":""},{"$f":"IF(OrigTable!F1987=\"\",\"\",ScriptText!$E$1&CHAR(10)&ScriptText!$C$1)","v":""},{"$f":"IF(OrigTable!G1987=\"\",\"\",ScriptText!$B$1&CHAR(10)&ScriptText!$D$1)","v":""},{"$f":"IF(OrigTable!G1987=\"\",\"\",TEXT(OrigTable!G1987,\"00\"))","v":""},{"$f":"IF(OrigTable!G1987=\"\",\"\",ScriptText!$E$1&CHAR(10)&ScriptText!$C$1)","v":""},0]
["\n\n\n",{"$f":"IF(OrigTable!A1988=\"\",\"\",ScriptText!$B$1&CHAR(10)&ScriptText!$D$1)","v":""},{"$f":"IF(OrigTable!A1988=\"\",\"\",TEXT(OrigTable!A1988,\"00\"))","v":""},{"$f":"IF(OrigTable!A1988=\"\",\"\",ScriptText!$E$1&CHAR(10)&ScriptText!$C$1)","v":""},{"$f":"IF(OrigTable!B1988=\"\",\"\",ScriptText!$B$1&CHAR(10)&ScriptText!$D$1)","v":""},{"$f":"IF(OrigTable!B1988=\"\",\"\",TEXT(OrigTable!B1988,\"00\"))","v":""},{"$f":"IF(OrigTable!B1988=\"\",\"\",ScriptText!$E$1&CHAR(10)&ScriptText!C1983)","v":""},{"$f":"IF(OrigTable!C1988=\"\",\"\",ScriptText!$B$1&CHAR(10)&ScriptText!$D$1)","v":""},{"$f":"IF(OrigTable!C1988=\"\",\"\",IF(LEN(OrigTable!C1988)>255,LEFT(OrigTable!C1988,250)&\". . .\",OrigTable!C1988))","v":""},{"$f":"IF(OrigTable!C1988=\"\",\"\",ScriptText!$E$1&CHAR(10)&ScriptText!$C$1)","v":""},{"$f":"IF(OrigTable!D1988=\"\",\"\",ScriptText!$B$1&CHAR(10)&ScriptText!$D$1)","v":""},{"$f":"IF(OrigTable!D1988=\"\",\"\",TEXT(OrigTable!D1988,\"00\"))","v":""},{"$f":"IF(OrigTable!D1988=\"\",\"\",ScriptText!$E$1&CHAR(10)&ScriptText!$C$1)","v":""},{"$f":"IF(OrigTable!E1988=\"\",\"\",ScriptText!$B$1&CHAR(10)&ScriptText!$D$1)","v":""},{"$f":"IF(OrigTable!E1988=\"\",\"\",TEXT(OrigTable!E1988,\"00\"))","v":""},{"$f":"IF(OrigTable!E1988=\"\",\"\",ScriptText!$E$1&CHAR(10)&ScriptText!$C$1)","v":""},{"$f":"IF(OrigTable!F1988=\"\",\"\",ScriptText!$B$1&CHAR(10)&ScriptText!$D$1)","v":""},{"$f":"IF(OrigTable!F1988=\"\",\"\",TEXT(OrigTable!F1988,\"00\"))","v":""},{"$f":"IF(OrigTable!F1988=\"\",\"\",ScriptText!$E$1&CHAR(10)&ScriptText!$C$1)","v":""},{"$f":"IF(OrigTable!G1988=\"\",\"\",ScriptText!$B$1&CHAR(10)&ScriptText!$D$1)","v":""},{"$f":"IF(OrigTable!G1988=\"\",\"\",TEXT(OrigTable!G1988,\"00\"))","v":""},{"$f":"IF(OrigTable!G1988=\"\",\"\",ScriptText!$E$1&CHAR(10)&ScriptText!$C$1)","v":""},0]
["\n\n\n",{"$f":"IF(OrigTable!A1989=\"\",\"\",ScriptText!$B$1&CHAR(10)&ScriptText!$D$1)","v":""},{"$f":"IF(OrigTable!A1989=\"\",\"\",TEXT(OrigTable!A1989,\"00\"))","v":""},{"$f":"IF(OrigTable!A1989=\"\",\"\",ScriptText!$E$1&CHAR(10)&ScriptText!$C$1)","v":""},{"$f":"IF(OrigTable!B1989=\"\",\"\",ScriptText!$B$1&CHAR(10)&ScriptText!$D$1)","v":""},{"$f":"IF(OrigTable!B1989=\"\",\"\",TEXT(OrigTable!B1989,\"00\"))","v":""},{"$f":"IF(OrigTable!B1989=\"\",\"\",ScriptText!$E$1&CHAR(10)&ScriptText!C1984)","v":""},{"$f":"IF(OrigTable!C1989=\"\",\"\",ScriptText!$B$1&CHAR(10)&ScriptText!$D$1)","v":""},{"$f":"IF(OrigTable!C1989=\"\",\"\",IF(LEN(OrigTable!C1989)>255,LEFT(OrigTable!C1989,250)&\". . .\",OrigTable!C1989))","v":""},{"$f":"IF(OrigTable!C1989=\"\",\"\",ScriptText!$E$1&CHAR(10)&ScriptText!$C$1)","v":""},{"$f":"IF(OrigTable!D1989=\"\",\"\",ScriptText!$B$1&CHAR(10)&ScriptText!$D$1)","v":""},{"$f":"IF(OrigTable!D1989=\"\",\"\",TEXT(OrigTable!D1989,\"00\"))","v":""},{"$f":"IF(OrigTable!D1989=\"\",\"\",ScriptText!$E$1&CHAR(10)&ScriptText!$C$1)","v":""},{"$f":"IF(OrigTable!E1989=\"\",\"\",ScriptText!$B$1&CHAR(10)&ScriptText!$D$1)","v":""},{"$f":"IF(OrigTable!E1989=\"\",\"\",TEXT(OrigTable!E1989,\"00\"))","v":""},{"$f":"IF(OrigTable!E1989=\"\",\"\",ScriptText!$E$1&CHAR(10)&ScriptText!$C$1)","v":""},{"$f":"IF(OrigTable!F1989=\"\",\"\",ScriptText!$B$1&CHAR(10)&ScriptText!$D$1)","v":""},{"$f":"IF(OrigTable!F1989=\"\",\"\",TEXT(OrigTable!F1989,\"00\"))","v":""},{"$f":"IF(OrigTable!F1989=\"\",\"\",ScriptText!$E$1&CHAR(10)&ScriptText!$C$1)","v":""},{"$f":"IF(OrigTable!G1989=\"\",\"\",ScriptText!$B$1&CHAR(10)&ScriptText!$D$1)","v":""},{"$f":"IF(OrigTable!G1989=\"\",\"\",TEXT(OrigTable!G1989,\"00\"))","v":""},{"$f":"IF(OrigTable!G1989=\"\",\"\",ScriptText!$E$1&CHAR(10)&ScriptText!$C$1)","v":""},0]
["\n\n\n",{"$f":"IF(OrigTable!A1990=\"\",\"\",ScriptText!$B$1&CHAR(10)&ScriptText!$D$1)","v":""},{"$f":"IF(OrigTable!A1990=\"\",\"\",TEXT(OrigTable!A1990,\"00\"))","v":""},{"$f":"IF(OrigTable!A1990=\"\",\"\",ScriptText!$E$1&CHAR(10)&ScriptText!$C$1)","v":""},{"$f":"IF(OrigTable!B1990=\"\",\"\",ScriptText!$B$1&CHAR(10)&ScriptText!$D$1)","v":""},{"$f":"IF(OrigTable!B1990=\"\",\"\",TEXT(OrigTable!B1990,\"00\"))","v":""},{"$f":"IF(OrigTable!B1990=\"\",\"\",ScriptText!$E$1&CHAR(10)&ScriptText!C1985)","v":""},{"$f":"IF(OrigTable!C1990=\"\",\"\",ScriptText!$B$1&CHAR(10)&ScriptText!$D$1)","v":""},{"$f":"IF(OrigTable!C1990=\"\",\"\",IF(LEN(OrigTable!C1990)>255,LEFT(OrigTable!C1990,250)&\". . .\",OrigTable!C1990))","v":""},{"$f":"IF(OrigTable!C1990=\"\",\"\",ScriptText!$E$1&CHAR(10)&ScriptText!$C$1)","v":""},{"$f":"IF(OrigTable!D1990=\"\",\"\",ScriptText!$B$1&CHAR(10)&ScriptText!$D$1)","v":""},{"$f":"IF(OrigTable!D1990=\"\",\"\",TEXT(OrigTable!D1990,\"00\"))","v":""},{"$f":"IF(OrigTable!D1990=\"\",\"\",ScriptText!$E$1&CHAR(10)&ScriptText!$C$1)","v":""},{"$f":"IF(OrigTable!E1990=\"\",\"\",ScriptText!$B$1&CHAR(10)&ScriptText!$D$1)","v":""},{"$f":"IF(OrigTable!E1990=\"\",\"\",TEXT(OrigTable!E1990,\"00\"))","v":""},{"$f":"IF(OrigTable!E1990=\"\",\"\",ScriptText!$E$1&CHAR(10)&ScriptText!$C$1)","v":""},{"$f":"IF(OrigTable!F1990=\"\",\"\",ScriptText!$B$1&CHAR(10)&ScriptText!$D$1)","v":""},{"$f":"IF(OrigTable!F1990=\"\",\"\",TEXT(OrigTable!F1990,\"00\"))","v":""},{"$f":"IF(OrigTable!F1990=\"\",\"\",ScriptText!$E$1&CHAR(10)&ScriptText!$C$1)","v":""},{"$f":"IF(OrigTable!G1990=\"\",\"\",ScriptText!$B$1&CHAR(10)&ScriptText!$D$1)","v":""},{"$f":"IF(OrigTable!G1990=\"\",\"\",TEXT(OrigTable!G1990,\"00\"))","v":""},{"$f":"IF(OrigTable!G1990=\"\",\"\",ScriptText!$E$1&CHAR(10)&ScriptText!$C$1)","v":""},{"$f":"IF(LEN(A1990)>3,ROW(),0)","v":0}]
["\n\n\n",{"$f":"IF(OrigTable!A1991=\"\",\"\",ScriptText!$B$1&CHAR(10)&ScriptText!$D$1)","v":""},{"$f":"IF(OrigTable!A1991=\"\",\"\",TEXT(OrigTable!A1991,\"00\"))","v":""},{"$f":"IF(OrigTable!A1991=\"\",\"\",ScriptText!$E$1&CHAR(10)&ScriptText!$C$1)","v":""},{"$f":"IF(OrigTable!B1991=\"\",\"\",ScriptText!$B$1&CHAR(10)&ScriptText!$D$1)","v":""},{"$f":"IF(OrigTable!B1991=\"\",\"\",TEXT(OrigTable!B1991,\"00\"))","v":""},{"$f":"IF(OrigTable!B1991=\"\",\"\",ScriptText!$E$1&CHAR(10)&ScriptText!C1986)","v":""},{"$f":"IF(OrigTable!C1991=\"\",\"\",ScriptText!$B$1&CHAR(10)&ScriptText!$D$1)","v":""},{"$f":"IF(OrigTable!C1991=\"\",\"\",IF(LEN(OrigTable!C1991)>255,LEFT(OrigTable!C1991,250)&\". . .\",OrigTable!C1991))","v":""},{"$f":"IF(OrigTable!C1991=\"\",\"\",ScriptText!$E$1&CHAR(10)&ScriptText!$C$1)","v":""},{"$f":"IF(OrigTable!D1991=\"\",\"\",ScriptText!$B$1&CHAR(10)&ScriptText!$D$1)","v":""},{"$f":"IF(OrigTable!D1991=\"\",\"\",TEXT(OrigTable!D1991,\"00\"))","v":""},{"$f":"IF(OrigTable!D1991=\"\",\"\",ScriptText!$E$1&CHAR(10)&ScriptText!$C$1)","v":""},{"$f":"IF(OrigTable!E1991=\"\",\"\",ScriptText!$B$1&CHAR(10)&ScriptText!$D$1)","v":""},{"$f":"IF(OrigTable!E1991=\"\",\"\",TEXT(OrigTable!E1991,\"00\"))","v":""},{"$f":"IF(OrigTable!E1991=\"\",\"\",ScriptText!$E$1&CHAR(10)&ScriptText!$C$1)","v":""},{"$f":"IF(OrigTable!F1991=\"\",\"\",ScriptText!$B$1&CHAR(10)&ScriptText!$D$1)","v":""},{"$f":"IF(OrigTable!F1991=\"\",\"\",TEXT(OrigTable!F1991,\"00\"))","v":""},{"$f":"IF(OrigTable!F1991=\"\",\"\",ScriptText!$E$1&CHAR(10)&ScriptText!$C$1)","v":""},{"$f":"IF(OrigTable!G1991=\"\",\"\",ScriptText!$B$1&CHAR(10)&ScriptText!$D$1)","v":""},{"$f":"IF(OrigTable!G1991=\"\",\"\",TEXT(OrigTable!G1991,\"00\"))","v":""},{"$f":"IF(OrigTable!G1991=\"\",\"\",ScriptText!$E$1&CHAR(10)&ScriptText!$C$1)","v":""},0]
["\n\n\n",{"$f":"IF(OrigTable!A1992=\"\",\"\",ScriptText!$B$1&CHAR(10)&ScriptText!$D$1)","v":""},{"$f":"IF(OrigTable!A1992=\"\",\"\",TEXT(OrigTable!A1992,\"00\"))","v":""},{"$f":"IF(OrigTable!A1992=\"\",\"\",ScriptText!$E$1&CHAR(10)&ScriptText!$C$1)","v":""},{"$f":"IF(OrigTable!B1992=\"\",\"\",ScriptText!$B$1&CHAR(10)&ScriptText!$D$1)","v":""},{"$f":"IF(OrigTable!B1992=\"\",\"\",TEXT(OrigTable!B1992,\"00\"))","v":""},{"$f":"IF(OrigTable!B1992=\"\",\"\",ScriptText!$E$1&CHAR(10)&ScriptText!C1987)","v":""},{"$f":"IF(OrigTable!C1992=\"\",\"\",ScriptText!$B$1&CHAR(10)&ScriptText!$D$1)","v":""},{"$f":"IF(OrigTable!C1992=\"\",\"\",IF(LEN(OrigTable!C1992)>255,LEFT(OrigTable!C1992,250)&\". . .\",OrigTable!C1992))","v":""},{"$f":"IF(OrigTable!C1992=\"\",\"\",ScriptText!$E$1&CHAR(10)&ScriptText!$C$1)","v":""},{"$f":"IF(OrigTable!D1992=\"\",\"\",ScriptText!$B$1&CHAR(10)&ScriptText!$D$1)","v":""},{"$f":"IF(OrigTable!D1992=\"\",\"\",TEXT(OrigTable!D1992,\"00\"))","v":""},{"$f":"IF(OrigTable!D1992=\"\",\"\",ScriptText!$E$1&CHAR(10)&ScriptText!$C$1)","v":""},{"$f":"IF(OrigTable!E1992=\"\",\"\",ScriptText!$B$1&CHAR(10)&ScriptText!$D$1)","v":""},{"$f":"IF(OrigTable!E1992=\"\",\"\",TEXT(OrigTable!E1992,\"00\"))","v":""},{"$f":"IF(OrigTable!E1992=\"\",\"\",ScriptText!$E$1&CHAR(10)&ScriptText!$C$1)","v":""},{"$f":"IF(OrigTable!F1992=\"\",\"\",ScriptText!$B$1&CHAR(10)&ScriptText!$D$1)","v":""},{"$f":"IF(OrigTable!F1992=\"\",\"\",TEXT(OrigTable!F1992,\"00\"))","v":""},{"$f":"IF(OrigTable!F1992=\"\",\"\",ScriptText!$E$1&CHAR(10)&ScriptText!$C$1)","v":""},{"$f":"IF(OrigTable!G1992=\"\",\"\",ScriptText!$B$1&CHAR(10)&ScriptText!$D$1)","v":""},{"$f":"IF(OrigTable!G1992=\"\",\"\",TEXT(OrigTable!G1992,\"00\"))","v":""},{"$f":"IF(OrigTable!G1992=\"\",\"\",ScriptText!$E$1&CHAR(10)&ScriptText!$C$1)","v":""},0]
["\n\n\n",{"$f":"IF(OrigTable!A1993=\"\",\"\",ScriptText!$B$1&CHAR(10)&ScriptText!$D$1)","v":""},{"$f":"IF(OrigTable!A1993=\"\",\"\",TEXT(OrigTable!A1993,\"00\"))","v":""},{"$f":"IF(OrigTable!A1993=\"\",\"\",ScriptText!$E$1&CHAR(10)&ScriptText!$C$1)","v":""},{"$f":"IF(OrigTable!B1993=\"\",\"\",ScriptText!$B$1&CHAR(10)&ScriptText!$D$1)","v":""},{"$f":"IF(OrigTable!B1993=\"\",\"\",TEXT(OrigTable!B1993,\"00\"))","v":""},{"$f":"IF(OrigTable!B1993=\"\",\"\",ScriptText!$E$1&CHAR(10)&ScriptText!C1988)","v":""},{"$f":"IF(OrigTable!C1993=\"\",\"\",ScriptText!$B$1&CHAR(10)&ScriptText!$D$1)","v":""},{"$f":"IF(OrigTable!C1993=\"\",\"\",IF(LEN(OrigTable!C1993)>255,LEFT(OrigTable!C1993,250)&\". . .\",OrigTable!C1993))","v":""},{"$f":"IF(OrigTable!C1993=\"\",\"\",ScriptText!$E$1&CHAR(10)&ScriptText!$C$1)","v":""},{"$f":"IF(OrigTable!D1993=\"\",\"\",ScriptText!$B$1&CHAR(10)&ScriptText!$D$1)","v":""},{"$f":"IF(OrigTable!D1993=\"\",\"\",TEXT(OrigTable!D1993,\"00\"))","v":""},{"$f":"IF(OrigTable!D1993=\"\",\"\",ScriptText!$E$1&CHAR(10)&ScriptText!$C$1)","v":""},{"$f":"IF(OrigTable!E1993=\"\",\"\",ScriptText!$B$1&CHAR(10)&ScriptText!$D$1)","v":""},{"$f":"IF(OrigTable!E1993=\"\",\"\",TEXT(OrigTable!E1993,\"00\"))","v":""},{"$f":"IF(OrigTable!E1993=\"\",\"\",ScriptText!$E$1&CHAR(10)&ScriptText!$C$1)","v":""},{"$f":"IF(OrigTable!F1993=\"\",\"\",ScriptText!$B$1&CHAR(10)&ScriptText!$D$1)","v":""},{"$f":"IF(OrigTable!F1993=\"\",\"\",TEXT(OrigTable!F1993,\"00\"))","v":""},{"$f":"IF(OrigTable!F1993=\"\",\"\",ScriptText!$E$1&CHAR(10)&ScriptText!$C$1)","v":""},{"$f":"IF(OrigTable!G1993=\"\",\"\",ScriptText!$B$1&CHAR(10)&ScriptText!$D$1)","v":""},{"$f":"IF(OrigTable!G1993=\"\",\"\",TEXT(OrigTable!G1993,\"00\"))","v":""},{"$f":"IF(OrigTable!G1993=\"\",\"\",ScriptText!$E$1&CHAR(10)&ScriptText!$C$1)","v":""},0]
["\n\n\n",{"$f":"IF(OrigTable!A1994=\"\",\"\",ScriptText!$B$1&CHAR(10)&ScriptText!$D$1)","v":""},{"$f":"IF(OrigTable!A1994=\"\",\"\",TEXT(OrigTable!A1994,\"00\"))","v":""},{"$f":"IF(OrigTable!A1994=\"\",\"\",ScriptText!$E$1&CHAR(10)&ScriptText!$C$1)","v":""},{"$f":"IF(OrigTable!B1994=\"\",\"\",ScriptText!$B$1&CHAR(10)&ScriptText!$D$1)","v":""},{"$f":"IF(OrigTable!B1994=\"\",\"\",TEXT(OrigTable!B1994,\"00\"))","v":""},{"$f":"IF(OrigTable!B1994=\"\",\"\",ScriptText!$E$1&CHAR(10)&ScriptText!C1989)","v":""},{"$f":"IF(OrigTable!C1994=\"\",\"\",ScriptText!$B$1&CHAR(10)&ScriptText!$D$1)","v":""},{"$f":"IF(OrigTable!C1994=\"\",\"\",IF(LEN(OrigTable!C1994)>255,LEFT(OrigTable!C1994,250)&\". . .\",OrigTable!C1994))","v":""},{"$f":"IF(OrigTable!C1994=\"\",\"\",ScriptText!$E$1&CHAR(10)&ScriptText!$C$1)","v":""},{"$f":"IF(OrigTable!D1994=\"\",\"\",ScriptText!$B$1&CHAR(10)&ScriptText!$D$1)","v":""},{"$f":"IF(OrigTable!D1994=\"\",\"\",TEXT(OrigTable!D1994,\"00\"))","v":""},{"$f":"IF(OrigTable!D1994=\"\",\"\",ScriptText!$E$1&CHAR(10)&ScriptText!$C$1)","v":""},{"$f":"IF(OrigTable!E1994=\"\",\"\",ScriptText!$B$1&CHAR(10)&ScriptText!$D$1)","v":""},{"$f":"IF(OrigTable!E1994=\"\",\"\",TEXT(OrigTable!E1994,\"00\"))","v":""},{"$f":"IF(OrigTable!E1994=\"\",\"\",ScriptText!$E$1&CHAR(10)&ScriptText!$C$1)","v":""},{"$f":"IF(OrigTable!F1994=\"\",\"\",ScriptText!$B$1&CHAR(10)&ScriptText!$D$1)","v":""},{"$f":"IF(OrigTable!F1994=\"\",\"\",TEXT(OrigTable!F1994,\"00\"))","v":""},{"$f":"IF(OrigTable!F1994=\"\",\"\",ScriptText!$E$1&CHAR(10)&ScriptText!$C$1)","v":""},{"$f":"IF(OrigTable!G1994=\"\",\"\",ScriptText!$B$1&CHAR(10)&ScriptText!$D$1)","v":""},{"$f":"IF(OrigTable!G1994=\"\",\"\",TEXT(OrigTable!G1994,\"00\"))","v":""},{"$f":"IF(OrigTable!G1994=\"\",\"\",ScriptText!$E$1&CHAR(10)&ScriptText!$C$1)","v":""},0]
[{"$f":"_xlfn.TEXTJOIN(\"\",TRUE,B1995:D1995)&CHAR(10)&_xlfn.TEXTJOIN(\"\",TRUE,E1995:G1995)&CHAR(10)&_xlfn.TEXTJOIN(\"\",TRUE,H1995:J1995)&CHAR(10)&_xlfn.TEXTJOIN(\"\",TRUE,K1995:M1995)&_xlfn.TEXTJOIN(\"\",TRUE,N1995:P1995)&_xlfn.TEXTJOIN(\"\",TRUE,Q1995:S1995)&_xlfn.TEXTJOIN(\"\",TRUE,T1995:V1995)","v":"\n\n\n"},{"$f":"IF(OrigTable!A1995=\"\",\"\",ScriptText!$B$1&CHAR(10)&ScriptText!$D$1)","v":""},{"$f":"IF(OrigTable!A1995=\"\",\"\",TEXT(OrigTable!A1995,\"00\"))","v":""},{"$f":"IF(OrigTable!A1995=\"\",\"\",ScriptText!$E$1&CHAR(10)&ScriptText!$C$1)","v":""},{"$f":"IF(OrigTable!B1995=\"\",\"\",ScriptText!$B$1&CHAR(10)&ScriptText!$D$1)","v":""},{"$f":"IF(OrigTable!B1995=\"\",\"\",TEXT(OrigTable!B1995,\"00\"))","v":""},{"$f":"IF(OrigTable!B1995=\"\",\"\",ScriptText!$E$1&CHAR(10)&ScriptText!C1990)","v":""},{"$f":"IF(OrigTable!C1995=\"\",\"\",ScriptText!$B$1&CHAR(10)&ScriptText!$D$1)","v":""},{"$f":"IF(OrigTable!C1995=\"\",\"\",IF(LEN(OrigTable!C1995)>255,LEFT(OrigTable!C1995,250)&\". . .\",OrigTable!C1995))","v":""},{"$f":"IF(OrigTable!C1995=\"\",\"\",ScriptText!$E$1&CHAR(10)&ScriptText!$C$1)","v":""},{"$f":"IF(OrigTable!D1995=\"\",\"\",ScriptText!$B$1&CHAR(10)&ScriptText!$D$1)","v":""},{"$f":"IF(OrigTable!D1995=\"\",\"\",TEXT(OrigTable!D1995,\"00\"))","v":""},{"$f":"IF(OrigTable!D1995=\"\",\"\",ScriptText!$E$1&CHAR(10)&ScriptText!$C$1)","v":""},{"$f":"IF(OrigTable!E1995=\"\",\"\",ScriptText!$B$1&CHAR(10)&ScriptText!$D$1)","v":""},{"$f":"IF(OrigTable!E1995=\"\",\"\",TEXT(OrigTable!E1995,\"00\"))","v":""},{"$f":"IF(OrigTable!E1995=\"\",\"\",ScriptText!$E$1&CHAR(10)&ScriptText!$C$1)","v":""},{"$f":"IF(OrigTable!F1995=\"\",\"\",ScriptText!$B$1&CHAR(10)&ScriptText!$D$1)","v":""},{"$f":"IF(OrigTable!F1995=\"\",\"\",TEXT(OrigTable!F1995,\"00\"))","v":""},{"$f":"IF(OrigTable!F1995=\"\",\"\",ScriptText!$E$1&CHAR(10)&ScriptText!$C$1)","v":""},{"$f":"IF(OrigTable!G1995=\"\",\"\",ScriptText!$B$1&CHAR(10)&ScriptText!$D$1)","v":""},{"$f":"IF(OrigTable!G1995=\"\",\"\",TEXT(OrigTable!G1995,\"00\"))","v":""},{"$f":"IF(OrigTable!G1995=\"\",\"\",ScriptText!$E$1&CHAR(10)&ScriptText!$C$1)","v":""},0]
["\n\n\n",{"$f":"IF(OrigTable!A1996=\"\",\"\",ScriptText!$B$1&CHAR(10)&ScriptText!$D$1)","v":""},{"$f":"IF(OrigTable!A1996=\"\",\"\",TEXT(OrigTable!A1996,\"00\"))","v":""},{"$f":"IF(OrigTable!A1996=\"\",\"\",ScriptText!$E$1&CHAR(10)&ScriptText!$C$1)","v":""},{"$f":"IF(OrigTable!B1996=\"\",\"\",ScriptText!$B$1&CHAR(10)&ScriptText!$D$1)","v":""},{"$f":"IF(OrigTable!B1996=\"\",\"\",TEXT(OrigTable!B1996,\"00\"))","v":""},{"$f":"IF(OrigTable!B1996=\"\",\"\",ScriptText!$E$1&CHAR(10)&ScriptText!C1991)","v":""},{"$f":"IF(OrigTable!C1996=\"\",\"\",ScriptText!$B$1&CHAR(10)&ScriptText!$D$1)","v":""},{"$f":"IF(OrigTable!C1996=\"\",\"\",IF(LEN(OrigTable!C1996)>255,LEFT(OrigTable!C1996,250)&\". . .\",OrigTable!C1996))","v":""},{"$f":"IF(OrigTable!C1996=\"\",\"\",ScriptText!$E$1&CHAR(10)&ScriptText!$C$1)","v":""},{"$f":"IF(OrigTable!D1996=\"\",\"\",ScriptText!$B$1&CHAR(10)&ScriptText!$D$1)","v":""},{"$f":"IF(OrigTable!D1996=\"\",\"\",TEXT(OrigTable!D1996,\"00\"))","v":""},{"$f":"IF(OrigTable!D1996=\"\",\"\",ScriptText!$E$1&CHAR(10)&ScriptText!$C$1)","v":""},{"$f":"IF(OrigTable!E1996=\"\",\"\",ScriptText!$B$1&CHAR(10)&ScriptText!$D$1)","v":""},{"$f":"IF(OrigTable!E1996=\"\",\"\",TEXT(OrigTable!E1996,\"00\"))","v":""},{"$f":"IF(OrigTable!E1996=\"\",\"\",ScriptText!$E$1&CHAR(10)&ScriptText!$C$1)","v":""},{"$f":"IF(OrigTable!F1996=\"\",\"\",ScriptText!$B$1&CHAR(10)&ScriptText!$D$1)","v":""},{"$f":"IF(OrigTable!F1996=\"\",\"\",TEXT(OrigTable!F1996,\"00\"))","v":""},{"$f":"IF(OrigTable!F1996=\"\",\"\",ScriptText!$E$1&CHAR(10)&ScriptText!$C$1)","v":""},{"$f":"IF(OrigTable!G1996=\"\",\"\",ScriptText!$B$1&CHAR(10)&ScriptText!$D$1)","v":""},{"$f":"IF(OrigTable!G1996=\"\",\"\",TEXT(OrigTable!G1996,\"00\"))","v":""},{"$f":"IF(OrigTable!G1996=\"\",\"\",ScriptText!$E$1&CHAR(10)&ScriptText!$C$1)","v":""},0]
["\n\n\n",{"$f":"IF(OrigTable!A1997=\"\",\"\",ScriptText!$B$1&CHAR(10)&ScriptText!$D$1)","v":""},{"$f":"IF(OrigTable!A1997=\"\",\"\",TEXT(OrigTable!A1997,\"00\"))","v":""},{"$f":"IF(OrigTable!A1997=\"\",\"\",ScriptText!$E$1&CHAR(10)&ScriptText!$C$1)","v":""},{"$f":"IF(OrigTable!B1997=\"\",\"\",ScriptText!$B$1&CHAR(10)&ScriptText!$D$1)","v":""},{"$f":"IF(OrigTable!B1997=\"\",\"\",TEXT(OrigTable!B1997,\"00\"))","v":""},{"$f":"IF(OrigTable!B1997=\"\",\"\",ScriptText!$E$1&CHAR(10)&ScriptText!C1992)","v":""},{"$f":"IF(OrigTable!C1997=\"\",\"\",ScriptText!$B$1&CHAR(10)&ScriptText!$D$1)","v":""},{"$f":"IF(OrigTable!C1997=\"\",\"\",IF(LEN(OrigTable!C1997)>255,LEFT(OrigTable!C1997,250)&\". . .\",OrigTable!C1997))","v":""},{"$f":"IF(OrigTable!C1997=\"\",\"\",ScriptText!$E$1&CHAR(10)&ScriptText!$C$1)","v":""},{"$f":"IF(OrigTable!D1997=\"\",\"\",ScriptText!$B$1&CHAR(10)&ScriptText!$D$1)","v":""},{"$f":"IF(OrigTable!D1997=\"\",\"\",TEXT(OrigTable!D1997,\"00\"))","v":""},{"$f":"IF(OrigTable!D1997=\"\",\"\",ScriptText!$E$1&CHAR(10)&ScriptText!$C$1)","v":""},{"$f":"IF(OrigTable!E1997=\"\",\"\",ScriptText!$B$1&CHAR(10)&ScriptText!$D$1)","v":""},{"$f":"IF(OrigTable!E1997=\"\",\"\",TEXT(OrigTable!E1997,\"00\"))","v":""},{"$f":"IF(OrigTable!E1997=\"\",\"\",ScriptText!$E$1&CHAR(10)&ScriptText!$C$1)","v":""},{"$f":"IF(OrigTable!F1997=\"\",\"\",ScriptText!$B$1&CHAR(10)&ScriptText!$D$1)","v":""},{"$f":"IF(OrigTable!F1997=\"\",\"\",TEXT(OrigTable!F1997,\"00\"))","v":""},{"$f":"IF(OrigTable!F1997=\"\",\"\",ScriptText!$E$1&CHAR(10)&ScriptText!$C$1)","v":""},{"$f":"IF(OrigTable!G1997=\"\",\"\",ScriptText!$B$1&CHAR(10)&ScriptText!$D$1)","v":""},{"$f":"IF(OrigTable!G1997=\"\",\"\",TEXT(OrigTable!G1997,\"00\"))","v":""},{"$f":"IF(OrigTable!G1997=\"\",\"\",ScriptText!$E$1&CHAR(10)&ScriptText!$C$1)","v":""},0]
["\n\n\n",{"$f":"IF(OrigTable!A1998=\"\",\"\",ScriptText!$B$1&CHAR(10)&ScriptText!$D$1)","v":""},{"$f":"IF(OrigTable!A1998=\"\",\"\",TEXT(OrigTable!A1998,\"00\"))","v":""},{"$f":"IF(OrigTable!A1998=\"\",\"\",ScriptText!$E$1&CHAR(10)&ScriptText!$C$1)","v":""},{"$f":"IF(OrigTable!B1998=\"\",\"\",ScriptText!$B$1&CHAR(10)&ScriptText!$D$1)","v":""},{"$f":"IF(OrigTable!B1998=\"\",\"\",TEXT(OrigTable!B1998,\"00\"))","v":""},{"$f":"IF(OrigTable!B1998=\"\",\"\",ScriptText!$E$1&CHAR(10)&ScriptText!C1993)","v":""},{"$f":"IF(OrigTable!C1998=\"\",\"\",ScriptText!$B$1&CHAR(10)&ScriptText!$D$1)","v":""},{"$f":"IF(OrigTable!C1998=\"\",\"\",IF(LEN(OrigTable!C1998)>255,LEFT(OrigTable!C1998,250)&\". . .\",OrigTable!C1998))","v":""},{"$f":"IF(OrigTable!C1998=\"\",\"\",ScriptText!$E$1&CHAR(10)&ScriptText!$C$1)","v":""},{"$f":"IF(OrigTable!D1998=\"\",\"\",ScriptText!$B$1&CHAR(10)&ScriptText!$D$1)","v":""},{"$f":"IF(OrigTable!D1998=\"\",\"\",TEXT(OrigTable!D1998,\"00\"))","v":""},{"$f":"IF(OrigTable!D1998=\"\",\"\",ScriptText!$E$1&CHAR(10)&ScriptText!$C$1)","v":""},{"$f":"IF(OrigTable!E1998=\"\",\"\",ScriptText!$B$1&CHAR(10)&ScriptText!$D$1)","v":""},{"$f":"IF(OrigTable!E1998=\"\",\"\",TEXT(OrigTable!E1998,\"00\"))","v":""},{"$f":"IF(OrigTable!E1998=\"\",\"\",ScriptText!$E$1&CHAR(10)&ScriptText!$C$1)","v":""},{"$f":"IF(OrigTable!F1998=\"\",\"\",ScriptText!$B$1&CHAR(10)&ScriptText!$D$1)","v":""},{"$f":"IF(OrigTable!F1998=\"\",\"\",TEXT(OrigTable!F1998,\"00\"))","v":""},{"$f":"IF(OrigTable!F1998=\"\",\"\",ScriptText!$E$1&CHAR(10)&ScriptText!$C$1)","v":""},{"$f":"IF(OrigTable!G1998=\"\",\"\",ScriptText!$B$1&CHAR(10)&ScriptText!$D$1)","v":""},{"$f":"IF(OrigTable!G1998=\"\",\"\",TEXT(OrigTable!G1998,\"00\"))","v":""},{"$f":"IF(OrigTable!G1998=\"\",\"\",ScriptText!$E$1&CHAR(10)&ScriptText!$C$1)","v":""},0]
["\n\n\n",{"$f":"IF(OrigTable!A1999=\"\",\"\",ScriptText!$B$1&CHAR(10)&ScriptText!$D$1)","v":""},{"$f":"IF(OrigTable!A1999=\"\",\"\",TEXT(OrigTable!A1999,\"00\"))","v":""},{"$f":"IF(OrigTable!A1999=\"\",\"\",ScriptText!$E$1&CHAR(10)&ScriptText!$C$1)","v":""},{"$f":"IF(OrigTable!B1999=\"\",\"\",ScriptText!$B$1&CHAR(10)&ScriptText!$D$1)","v":""},{"$f":"IF(OrigTable!B1999=\"\",\"\",TEXT(OrigTable!B1999,\"00\"))","v":""},{"$f":"IF(OrigTable!B1999=\"\",\"\",ScriptText!$E$1&CHAR(10)&ScriptText!C1994)","v":""},{"$f":"IF(OrigTable!C1999=\"\",\"\",ScriptText!$B$1&CHAR(10)&ScriptText!$D$1)","v":""},{"$f":"IF(OrigTable!C1999=\"\",\"\",IF(LEN(OrigTable!C1999)>255,LEFT(OrigTable!C1999,250)&\". . .\",OrigTable!C1999))","v":""},{"$f":"IF(OrigTable!C1999=\"\",\"\",ScriptText!$E$1&CHAR(10)&ScriptText!$C$1)","v":""},{"$f":"IF(OrigTable!D1999=\"\",\"\",ScriptText!$B$1&CHAR(10)&ScriptText!$D$1)","v":""},{"$f":"IF(OrigTable!D1999=\"\",\"\",TEXT(OrigTable!D1999,\"00\"))","v":""},{"$f":"IF(OrigTable!D1999=\"\",\"\",ScriptText!$E$1&CHAR(10)&ScriptText!$C$1)","v":""},{"$f":"IF(OrigTable!E1999=\"\",\"\",ScriptText!$B$1&CHAR(10)&ScriptText!$D$1)","v":""},{"$f":"IF(OrigTable!E1999=\"\",\"\",TEXT(OrigTable!E1999,\"00\"))","v":""},{"$f":"IF(OrigTable!E1999=\"\",\"\",ScriptText!$E$1&CHAR(10)&ScriptText!$C$1)","v":""},{"$f":"IF(OrigTable!F1999=\"\",\"\",ScriptText!$B$1&CHAR(10)&ScriptText!$D$1)","v":""},{"$f":"IF(OrigTable!F1999=\"\",\"\",TEXT(OrigTable!F1999,\"00\"))","v":""},{"$f":"IF(OrigTable!F1999=\"\",\"\",ScriptText!$E$1&CHAR(10)&ScriptText!$C$1)","v":""},{"$f":"IF(OrigTable!G1999=\"\",\"\",ScriptText!$B$1&CHAR(10)&ScriptText!$D$1)","v":""},{"$f":"IF(OrigTable!G1999=\"\",\"\",TEXT(OrigTable!G1999,\"00\"))","v":""},{"$f":"IF(OrigTable!G1999=\"\",\"\",ScriptText!$E$1&CHAR(10)&ScriptText!$C$1)","v":""},0]
["\n\n\n",{"$f":"IF(OrigTable!A2000=\"\",\"\",ScriptText!$B$1&CHAR(10)&ScriptText!$D$1)","v":""},{"$f":"IF(OrigTable!A2000=\"\",\"\",TEXT(OrigTable!A2000,\"00\"))","v":""},{"$f":"IF(OrigTable!A2000=\"\",\"\",ScriptText!$E$1&CHAR(10)&ScriptText!$C$1)","v":""},{"$f":"IF(OrigTable!B2000=\"\",\"\",ScriptText!$B$1&CHAR(10)&ScriptText!$D$1)","v":""},{"$f":"IF(OrigTable!B2000=\"\",\"\",TEXT(OrigTable!B2000,\"00\"))","v":""},{"$f":"IF(OrigTable!B2000=\"\",\"\",ScriptText!$E$1&CHAR(10)&ScriptText!C1995)","v":""},{"$f":"IF(OrigTable!C2000=\"\",\"\",ScriptText!$B$1&CHAR(10)&ScriptText!$D$1)","v":""},{"$f":"IF(OrigTable!C2000=\"\",\"\",IF(LEN(OrigTable!C2000)>255,LEFT(OrigTable!C2000,250)&\". . .\",OrigTable!C2000))","v":""},{"$f":"IF(OrigTable!C2000=\"\",\"\",ScriptText!$E$1&CHAR(10)&ScriptText!$C$1)","v":""},{"$f":"IF(OrigTable!D2000=\"\",\"\",ScriptText!$B$1&CHAR(10)&ScriptText!$D$1)","v":""},{"$f":"IF(OrigTable!D2000=\"\",\"\",TEXT(OrigTable!D2000,\"00\"))","v":""},{"$f":"IF(OrigTable!D2000=\"\",\"\",ScriptText!$E$1&CHAR(10)&ScriptText!$C$1)","v":""},{"$f":"IF(OrigTable!E2000=\"\",\"\",ScriptText!$B$1&CHAR(10)&ScriptText!$D$1)","v":""},{"$f":"IF(OrigTable!E2000=\"\",\"\",TEXT(OrigTable!E2000,\"00\"))","v":""},{"$f":"IF(OrigTable!E2000=\"\",\"\",ScriptText!$E$1&CHAR(10)&ScriptText!$C$1)","v":""},{"$f":"IF(OrigTable!F2000=\"\",\"\",ScriptText!$B$1&CHAR(10)&ScriptText!$D$1)","v":""},{"$f":"IF(OrigTable!F2000=\"\",\"\",TEXT(OrigTable!F2000,\"00\"))","v":""},{"$f":"IF(OrigTable!F2000=\"\",\"\",ScriptText!$E$1&CHAR(10)&ScriptText!$C$1)","v":""},{"$f":"IF(OrigTable!G2000=\"\",\"\",ScriptText!$B$1&CHAR(10)&ScriptText!$D$1)","v":""},{"$f":"IF(OrigTable!G2000=\"\",\"\",TEXT(OrigTable!G2000,\"00\"))","v":""},{"$f":"IF(OrigTable!G2000=\"\",\"\",ScriptText!$E$1&CHAR(10)&ScriptText!$C$1)","v":""},0]
["\n\n\n",{"$f":"IF(OrigTable!A2001=\"\",\"\",ScriptText!$B$1&CHAR(10)&ScriptText!$D$1)","v":""},{"$f":"IF(OrigTable!A2001=\"\",\"\",TEXT(OrigTable!A2001,\"00\"))","v":""},{"$f":"IF(OrigTable!A2001=\"\",\"\",ScriptText!$E$1&CHAR(10)&ScriptText!$C$1)","v":""},{"$f":"IF(OrigTable!B2001=\"\",\"\",ScriptText!$B$1&CHAR(10)&ScriptText!$D$1)","v":""},{"$f":"IF(OrigTable!B2001=\"\",\"\",TEXT(OrigTable!B2001,\"00\"))","v":""},{"$f":"IF(OrigTable!B2001=\"\",\"\",ScriptText!$E$1&CHAR(10)&ScriptText!C1996)","v":""},{"$f":"IF(OrigTable!C2001=\"\",\"\",ScriptText!$B$1&CHAR(10)&ScriptText!$D$1)","v":""},{"$f":"IF(OrigTable!C2001=\"\",\"\",IF(LEN(OrigTable!C2001)>255,LEFT(OrigTable!C2001,250)&\". . .\",OrigTable!C2001))","v":""},{"$f":"IF(OrigTable!C2001=\"\",\"\",ScriptText!$E$1&CHAR(10)&ScriptText!$C$1)","v":""},{"$f":"IF(OrigTable!D2001=\"\",\"\",ScriptText!$B$1&CHAR(10)&ScriptText!$D$1)","v":""},{"$f":"IF(OrigTable!D2001=\"\",\"\",TEXT(OrigTable!D2001,\"00\"))","v":""},{"$f":"IF(OrigTable!D2001=\"\",\"\",ScriptText!$E$1&CHAR(10)&ScriptText!$C$1)","v":""},{"$f":"IF(OrigTable!E2001=\"\",\"\",ScriptText!$B$1&CHAR(10)&ScriptText!$D$1)","v":""},{"$f":"IF(OrigTable!E2001=\"\",\"\",TEXT(OrigTable!E2001,\"00\"))","v":""},{"$f":"IF(OrigTable!E2001=\"\",\"\",ScriptText!$E$1&CHAR(10)&ScriptText!$C$1)","v":""},{"$f":"IF(OrigTable!F2001=\"\",\"\",ScriptText!$B$1&CHAR(10)&ScriptText!$D$1)","v":""},{"$f":"IF(OrigTable!F2001=\"\",\"\",TEXT(OrigTable!F2001,\"00\"))","v":""},{"$f":"IF(OrigTable!F2001=\"\",\"\",ScriptText!$E$1&CHAR(10)&ScriptText!$C$1)","v":""},{"$f":"IF(OrigTable!G2001=\"\",\"\",ScriptText!$B$1&CHAR(10)&ScriptText!$D$1)","v":""},{"$f":"IF(OrigTable!G2001=\"\",\"\",TEXT(OrigTable!G2001,\"00\"))","v":""},{"$f":"IF(OrigTable!G2001=\"\",\"\",ScriptText!$E$1&CHAR(10)&ScriptText!$C$1)","v":""},0]
["\n\n\n",{"$f":"IF(OrigTable!A2002=\"\",\"\",ScriptText!$B$1&CHAR(10)&ScriptText!$D$1)","v":""},{"$f":"IF(OrigTable!A2002=\"\",\"\",TEXT(OrigTable!A2002,\"00\"))","v":""},{"$f":"IF(OrigTable!A2002=\"\",\"\",ScriptText!$E$1&CHAR(10)&ScriptText!$C$1)","v":""},{"$f":"IF(OrigTable!B2002=\"\",\"\",ScriptText!$B$1&CHAR(10)&ScriptText!$D$1)","v":""},{"$f":"IF(OrigTable!B2002=\"\",\"\",TEXT(OrigTable!B2002,\"00\"))","v":""},{"$f":"IF(OrigTable!B2002=\"\",\"\",ScriptText!$E$1&CHAR(10)&ScriptText!C1997)","v":""},{"$f":"IF(OrigTable!C2002=\"\",\"\",ScriptText!$B$1&CHAR(10)&ScriptText!$D$1)","v":""},{"$f":"IF(OrigTable!C2002=\"\",\"\",IF(LEN(OrigTable!C2002)>255,LEFT(OrigTable!C2002,250)&\". . .\",OrigTable!C2002))","v":""},{"$f":"IF(OrigTable!C2002=\"\",\"\",ScriptText!$E$1&CHAR(10)&ScriptText!$C$1)","v":""},{"$f":"IF(OrigTable!D2002=\"\",\"\",ScriptText!$B$1&CHAR(10)&ScriptText!$D$1)","v":""},{"$f":"IF(OrigTable!D2002=\"\",\"\",TEXT(OrigTable!D2002,\"00\"))","v":""},{"$f":"IF(OrigTable!D2002=\"\",\"\",ScriptText!$E$1&CHAR(10)&ScriptText!$C$1)","v":""},{"$f":"IF(OrigTable!E2002=\"\",\"\",ScriptText!$B$1&CHAR(10)&ScriptText!$D$1)","v":""},{"$f":"IF(OrigTable!E2002=\"\",\"\",TEXT(OrigTable!E2002,\"00\"))","v":""},{"$f":"IF(OrigTable!E2002=\"\",\"\",ScriptText!$E$1&CHAR(10)&ScriptText!$C$1)","v":""},{"$f":"IF(OrigTable!F2002=\"\",\"\",ScriptText!$B$1&CHAR(10)&ScriptText!$D$1)","v":""},{"$f":"IF(OrigTable!F2002=\"\",\"\",TEXT(OrigTable!F2002,\"00\"))","v":""},{"$f":"IF(OrigTable!F2002=\"\",\"\",ScriptText!$E$1&CHAR(10)&ScriptText!$C$1)","v":""},{"$f":"IF(OrigTable!G2002=\"\",\"\",ScriptText!$B$1&CHAR(10)&ScriptText!$D$1)","v":""},{"$f":"IF(OrigTable!G2002=\"\",\"\",TEXT(OrigTable!G2002,\"00\"))","v":""},{"$f":"IF(OrigTable!G2002=\"\",\"\",ScriptText!$E$1&CHAR(10)&ScriptText!$C$1)","v":""},0]
["\n\n\n",{"$f":"IF(OrigTable!A2003=\"\",\"\",ScriptText!$B$1&CHAR(10)&ScriptText!$D$1)","v":""},{"$f":"IF(OrigTable!A2003=\"\",\"\",TEXT(OrigTable!A2003,\"00\"))","v":""},{"$f":"IF(OrigTable!A2003=\"\",\"\",ScriptText!$E$1&CHAR(10)&ScriptText!$C$1)","v":""},{"$f":"IF(OrigTable!B2003=\"\",\"\",ScriptText!$B$1&CHAR(10)&ScriptText!$D$1)","v":""},{"$f":"IF(OrigTable!B2003=\"\",\"\",TEXT(OrigTable!B2003,\"00\"))","v":""},{"$f":"IF(OrigTable!B2003=\"\",\"\",ScriptText!$E$1&CHAR(10)&ScriptText!C1998)","v":""},{"$f":"IF(OrigTable!C2003=\"\",\"\",ScriptText!$B$1&CHAR(10)&ScriptText!$D$1)","v":""},{"$f":"IF(OrigTable!C2003=\"\",\"\",IF(LEN(OrigTable!C2003)>255,LEFT(OrigTable!C2003,250)&\". . .\",OrigTable!C2003))","v":""},{"$f":"IF(OrigTable!C2003=\"\",\"\",ScriptText!$E$1&CHAR(10)&ScriptText!$C$1)","v":""},{"$f":"IF(OrigTable!D2003=\"\",\"\",ScriptText!$B$1&CHAR(10)&ScriptText!$D$1)","v":""},{"$f":"IF(OrigTable!D2003=\"\",\"\",TEXT(OrigTable!D2003,\"00\"))","v":""},{"$f":"IF(OrigTable!D2003=\"\",\"\",ScriptText!$E$1&CHAR(10)&ScriptText!$C$1)","v":""},{"$f":"IF(OrigTable!E2003=\"\",\"\",ScriptText!$B$1&CHAR(10)&ScriptText!$D$1)","v":""},{"$f":"IF(OrigTable!E2003=\"\",\"\",TEXT(OrigTable!E2003,\"00\"))","v":""},{"$f":"IF(OrigTable!E2003=\"\",\"\",ScriptText!$E$1&CHAR(10)&ScriptText!$C$1)","v":""},{"$f":"IF(OrigTable!F2003=\"\",\"\",ScriptText!$B$1&CHAR(10)&ScriptText!$D$1)","v":""},{"$f":"IF(OrigTable!F2003=\"\",\"\",TEXT(OrigTable!F2003,\"00\"))","v":""},{"$f":"IF(OrigTable!F2003=\"\",\"\",ScriptText!$E$1&CHAR(10)&ScriptText!$C$1)","v":""},{"$f":"IF(OrigTable!G2003=\"\",\"\",ScriptText!$B$1&CHAR(10)&ScriptText!$D$1)","v":""},{"$f":"IF(OrigTable!G2003=\"\",\"\",TEXT(OrigTable!G2003,\"00\"))","v":""},{"$f":"IF(OrigTable!G2003=\"\",\"\",ScriptText!$E$1&CHAR(10)&ScriptText!$C$1)","v":""},0]
["\n\n\n",{"$f":"IF(OrigTable!A2004=\"\",\"\",ScriptText!$B$1&CHAR(10)&ScriptText!$D$1)","v":""},{"$f":"IF(OrigTable!A2004=\"\",\"\",TEXT(OrigTable!A2004,\"00\"))","v":""},{"$f":"IF(OrigTable!A2004=\"\",\"\",ScriptText!$E$1&CHAR(10)&ScriptText!$C$1)","v":""},{"$f":"IF(OrigTable!B2004=\"\",\"\",ScriptText!$B$1&CHAR(10)&ScriptText!$D$1)","v":""},{"$f":"IF(OrigTable!B2004=\"\",\"\",TEXT(OrigTable!B2004,\"00\"))","v":""},{"$f":"IF(OrigTable!B2004=\"\",\"\",ScriptText!$E$1&CHAR(10)&ScriptText!C1999)","v":""},{"$f":"IF(OrigTable!C2004=\"\",\"\",ScriptText!$B$1&CHAR(10)&ScriptText!$D$1)","v":""},{"$f":"IF(OrigTable!C2004=\"\",\"\",IF(LEN(OrigTable!C2004)>255,LEFT(OrigTable!C2004,250)&\". . .\",OrigTable!C2004))","v":""},{"$f":"IF(OrigTable!C2004=\"\",\"\",ScriptText!$E$1&CHAR(10)&ScriptText!$C$1)","v":""},{"$f":"IF(OrigTable!D2004=\"\",\"\",ScriptText!$B$1&CHAR(10)&ScriptText!$D$1)","v":""},{"$f":"IF(OrigTable!D2004=\"\",\"\",TEXT(OrigTable!D2004,\"00\"))","v":""},{"$f":"IF(OrigTable!D2004=\"\",\"\",ScriptText!$E$1&CHAR(10)&ScriptText!$C$1)","v":""},{"$f":"IF(OrigTable!E2004=\"\",\"\",ScriptText!$B$1&CHAR(10)&ScriptText!$D$1)","v":""},{"$f":"IF(OrigTable!E2004=\"\",\"\",TEXT(OrigTable!E2004,\"00\"))","v":""},{"$f":"IF(OrigTable!E2004=\"\",\"\",ScriptText!$E$1&CHAR(10)&ScriptText!$C$1)","v":""},{"$f":"IF(OrigTable!F2004=\"\",\"\",ScriptText!$B$1&CHAR(10)&ScriptText!$D$1)","v":""},{"$f":"IF(OrigTable!F2004=\"\",\"\",TEXT(OrigTable!F2004,\"00\"))","v":""},{"$f":"IF(OrigTable!F2004=\"\",\"\",ScriptText!$E$1&CHAR(10)&ScriptText!$C$1)","v":""},{"$f":"IF(OrigTable!G2004=\"\",\"\",ScriptText!$B$1&CHAR(10)&ScriptText!$D$1)","v":""},{"$f":"IF(OrigTable!G2004=\"\",\"\",TEXT(OrigTable!G2004,\"00\"))","v":""},{"$f":"IF(OrigTable!G2004=\"\",\"\",ScriptText!$E$1&CHAR(10)&ScriptText!$C$1)","v":""},0]
["\n\n\n",{"$f":"IF(OrigTable!A2005=\"\",\"\",ScriptText!$B$1&CHAR(10)&ScriptText!$D$1)","v":""},{"$f":"IF(OrigTable!A2005=\"\",\"\",TEXT(OrigTable!A2005,\"00\"))","v":""},{"$f":"IF(OrigTable!A2005=\"\",\"\",ScriptText!$E$1&CHAR(10)&ScriptText!$C$1)","v":""},{"$f":"IF(OrigTable!B2005=\"\",\"\",ScriptText!$B$1&CHAR(10)&ScriptText!$D$1)","v":""},{"$f":"IF(OrigTable!B2005=\"\",\"\",TEXT(OrigTable!B2005,\"00\"))","v":""},{"$f":"IF(OrigTable!B2005=\"\",\"\",ScriptText!$E$1&CHAR(10)&ScriptText!C2000)","v":""},{"$f":"IF(OrigTable!C2005=\"\",\"\",ScriptText!$B$1&CHAR(10)&ScriptText!$D$1)","v":""},{"$f":"IF(OrigTable!C2005=\"\",\"\",IF(LEN(OrigTable!C2005)>255,LEFT(OrigTable!C2005,250)&\". . .\",OrigTable!C2005))","v":""},{"$f":"IF(OrigTable!C2005=\"\",\"\",ScriptText!$E$1&CHAR(10)&ScriptText!$C$1)","v":""},{"$f":"IF(OrigTable!D2005=\"\",\"\",ScriptText!$B$1&CHAR(10)&ScriptText!$D$1)","v":""},{"$f":"IF(OrigTable!D2005=\"\",\"\",TEXT(OrigTable!D2005,\"00\"))","v":""},{"$f":"IF(OrigTable!D2005=\"\",\"\",ScriptText!$E$1&CHAR(10)&ScriptText!$C$1)","v":""},{"$f":"IF(OrigTable!E2005=\"\",\"\",ScriptText!$B$1&CHAR(10)&ScriptText!$D$1)","v":""},{"$f":"IF(OrigTable!E2005=\"\",\"\",TEXT(OrigTable!E2005,\"00\"))","v":""},{"$f":"IF(OrigTable!E2005=\"\",\"\",ScriptText!$E$1&CHAR(10)&ScriptText!$C$1)","v":""},{"$f":"IF(OrigTable!F2005=\"\",\"\",ScriptText!$B$1&CHAR(10)&ScriptText!$D$1)","v":""},{"$f":"IF(OrigTable!F2005=\"\",\"\",TEXT(OrigTable!F2005,\"00\"))","v":""},{"$f":"IF(OrigTable!F2005=\"\",\"\",ScriptText!$E$1&CHAR(10)&ScriptText!$C$1)","v":""},{"$f":"IF(OrigTable!G2005=\"\",\"\",ScriptText!$B$1&CHAR(10)&ScriptText!$D$1)","v":""},{"$f":"IF(OrigTable!G2005=\"\",\"\",TEXT(OrigTable!G2005,\"00\"))","v":""},{"$f":"IF(OrigTable!G2005=\"\",\"\",ScriptText!$E$1&CHAR(10)&ScriptText!$C$1)","v":""},{"$f":"IF(LEN(A2005)>3,ROW(),0)","v":0}]

{"sheet":"FullScript","index":4,"n_rows":581,"n_cols":27,"rows_kept":581,"cut":false,"hidden":false,"merged":[]}
[]
[]
[]
[]
[]
[]
[]
[]
[]
[]
[]
[]
[]
[]
[]
[]
[]
[]
[]
[]
[]
[]
[]
[]
[]
[]
[]
[]
[]
[]
[]
[]
[]
[]
[]
[]
[]
[]
[]
[]
[]
[]
[]
[]
[]
[]
[]
[]
[]
[]
[]
[]
[]
[]
[]
[]
[]
[]
[]
[]
[]
[]
[]
[]
[]
[]
[]
[]
[]
[]
[]
[]
[]
[]
[]
[]
[]
[]
[]
[]
[]
[]
[]
[]
[]
[]
[]
[]
[]
[]
[]
[]
[]
[]
[]
[]
[]
[]
[]
[]
[]
[]
[]
[]
[]
[]
[]
[]
[]
[]
[]
[]
[]
[]
[]
[]
[]
[]
[]
[]
[]
[]
[]
[]
[]
[]
[]
[]
[]
[]
[]
[]
[]
[]
[]
[]
[]
[]
[]
[]
[]
[]
[]
[]
[]
[]
[]
[]
[]
[]
[]
[]
[]
[]
[]
[]
[]
[]
[]
[]
[]
[]
[]
[]
[]
[]
[]
[]
[]
[]
[]
[]
[]
[]
[]
[]
[]
[]
[]
[]
[]
[]
[]
[]
[]
[]
[]
[]
[]
[]
[]
[]
[]
[]
[]
[]
[]
[]
[]
[]
[]
[]
[]
[]
[]
[]
[]
[]
[]
[]
[]
[]
[]
[]
[]
[]
[]
[]
[]
[]
[]
[]
[]
[]
[]
[]
[]
[]
[]
[]
[]
[]
[]
[]
[]
[]
[]
[]
[]
[]
[]
[]
[]
[]
[]
[]
[]
[]
[]
[]
[]
[]
[]
[]
[]
[]
[]
[]
[]
[]
[]
[]
[]
[]
[]
[]
[]
[]
[]
[]
[]
[]
[]
[]
[]
[]
[]
[]
[]
[]
[]
[]
[]
[]
[]
[]
[]
[]
[]
[]
[]
[]
[]
[]
[]
[]
[]
[]
[]
[]
[]
[]
[]
[]
[]
[]
[]
[]
[]
[]
[]
[]
[]
[]
[]
[]
[]
[]
[]
[]
[]
[]
[]
[]
[]
[]
[]
[]
[]
[]
[]
[]
[]
[]
[]
[]
[]
[]
[]
[]
[]
[]
[]
[]
[]
[]
[]
[]
[]
[]
[]
[]
[]
[]
[]
[]
[]
[]
[]
[]
[]
[]
[]
[]
[]
[]
[]
[]
[]
[]
[]
[]
[]
[]
[]
[]
[]
[]
[]
[]
[]
[]
[]
[]
[]
[]
[]
[]
[]
[]
[]
[]
[]
[]
[]
[]
[]
[]
[]
[]
[]
[]
[]
[]
[]
[]
[]
[]
[]
[]
[]
[]
[]
[]
[]
[]
[]
[]
[]
[]
[]
[]
[]
[]
[]
[]
[]
[]
[]
[]
[]
[]
[]
[]
[]
[]
[]
[]
[]
[]
[]
[]
[]
[]
[]
[]
[]
[]
[]
[]
[]
[]
[]
[]
[]
[]
[]
[]
[]
[]
[]
[]
[]
[]
[]
[]
[]
[]
[]
[]
[]
[]
[]
[]
[]
[]
[]
[]
[]
[]
[]
[]
[]
[]
[]
[]
[]
[]
[]
[]
[]
[]
[]
[]
[]
[]
[]
[]
[]
[]
[]
[]
[]
[]
[]
[]
[]
[]
[]
[]
[]
[]
[]
[]
[]
[]
[]
[]
[]
[]
[]
[]
[]
[]
[]
[]
[]
[]
[]
[]
[]
[]
[]
[]
[]
[]
[]
[]
[]
[]
[]
[]
[]
[]
[]
[]
[]
[]
[]
[]
[]
[]
[]
[]
[]
[null,null,null,null,null,null,null,null,null,null,null,null,null,null,null,null,null,null,null,null,null,null,null,null,null,null,"</tr>"]
[null,null,null,null,null,null,null,null,null,null,null,null,null,null,null,null,null,null,null,null,null,null,null,null,null,null,"</table>"]
[null,null,null,null,null,null,null,null,null,null,null,null,null,null,null,null,null,null,null,null,null,null,null,null,null,null,"<script>"]
[null,null,null,null,null,null,null,null,null,null,null,null,null,null,null,null,null,null,null,null,null,null,null,null,null,null,"function myFunction() {"]
[null,null,null,null,null,null,null,null,null,null,null,null,null,null,null,null,null,null,null,null,null,null,null,null,null,null,"  var input, filter, table, tr, td, i, txtValue;"]
[null,null,null,null,null,null,null,null,null,null,null,null,null,null,null,null,null,null,null,null,null,null,null,null,null,null,"  input = document.getElementById(\"myInput\");"]
[null,null,null,null,null,null,null,null,null,null,null,null,null,null,null,null,null,null,null,null,null,null,null,null,null,null,"  filter = input.value.toUpperCase();"]
[null,null,null,null,null,null,null,null,null,null,null,null,null,null,null,null,null,null,null,null,null,null,null,null,null,null,"  table = document.getElementById(\"myTable\");"]
[null,null,null,null,null,null,null,null,null,null,null,null,null,null,null,null,null,null,null,null,null,null,null,null,null,null,"  tr = table.getElementsByTagName(\"tr\");"]
[null,null,null,null,null,null,null,null,null,null,null,null,null,null,null,null,null,null,null,null,null,null,null,null,null,null,"  for (i = 0; i < tr.length; i++) {"]
[null,null,null,null,null,null,null,null,null,null,null,null,null,null,null,null,null,null,null,null,null,null,null,null,null,null,"    td = tr[i].getElementsByTagName(\"td\")[0];"]
[null,null,null,null,null,null,null,null,null,null,null,null,null,null,null,null,null,null,null,null,null,null,null,null,null,null,"    if (td) {"]
[null,null,null,null,null,null,null,null,null,null,null,null,null,null,null,null,null,null,null,null,null,null,null,null,null,null,"      txtValue = td.textContent || td.innerText;"]
[null,null,null,null,null,null,null,null,null,null,null,null,null,null,null,null,null,null,null,null,null,null,null,null,null,null,"      if (txtValue.toUpperCase().indexOf(filter) > -1) {"]
[null,null,null,null,null,null,null,null,null,null,null,null,null,null,null,null,null,null,null,null,null,null,null,null,null,null,"        tr[i].style.display = \"\";"]
[null,null,null,null,null,null,null,null,null,null,null,null,null,null,null,null,null,null,null,null,null,null,null,null,null,null,"      } else {"]
[null,null,null,null,null,null,null,null,null,null,null,null,null,null,null,null,null,null,null,null,null,null,null,null,null,null,"        tr[i].style.display = \"none\";"]
[null,null,null,null,null,null,null,null,null,null,null,null,null,null,null,null,null,null,null,null,null,null,null,null,null,null,"      }"]
[null,null,null,null,null,null,null,null,null,null,null,null,null,null,null,null,null,null,null,null,null,null,null,null,null,null,"    }       "]
[null,null,null,null,null,null,null,null,null,null,null,null,null,null,null,null,null,null,null,null,null,null,null,null,null,null,"  }"]
[null,null,null,null,null,null,null,null,null,null,null,null,null,null,null,null,null,null,null,null,null,null,null,null,null,null,"}"]
[null,null,null,null,null,null,null,null,null,null,null,null,null,null,null,null,null,null,null,null,null,null,null,null,null,null,"</script>"]
[]
[null,null,null,null,null,null,null,null,null,null,null,null,null,null,null,null,null,null,null,null,null,null,null,null,null,null,"</body>"]
[null,null,null,null,null,null,null,null,null,null,null,null,null,null,null,null,null,null,null,null,null,null,null,null,null,null,"</html>"]
[null,null,null,null,null,null,null,null,null,null,null,null,null,null,null,null,null,null,null,null,null,null,null,null,null,null,"</html>"]